{"text_format":"1","workbook":"xlsx","n_sheets":19,"sheets":["Introduction","User Guide","Options","Results","Evidence","SHEETS TO BE HIDDEN ->","Calculations","Inequalities","Health outcome totals 2016","Lists","Demographic data","Prevalence Rates","Population 2016","Population at Risk","Pop2016fraction","Pop2016fractionQ1","Pop2016fractionQ1&2","PARfraction","Targeting"],"not_rendered":{"charts":0,"images":4,"macros":1,"external_links":0,"defined_names":2,"comments":0,"pivot_tables":0},"unopened":[],"bounds":{"document_bytes":16777216,"sheet_cells":100000,"rows_first":2000,"rows_last":500,"rows_between":2000,"halvings":0,"cell_chars":16384,"cell_head_chars":4096},"cells_cut":0,"cells_raw":0,"read":"whole","date_system":"1900"}

{"sheet":"Introduction","index":0,"n_rows":51,"n_cols":10,"rows_kept":51,"cut":false,"hidden":false,"merged":[]}
[]
[null,"Informing Interventions to reduce health Inequalities ('Triple I'):"]
[null,"Job Provision"]
[]
[]
[]
[null,"Informing Interventions to reduce health Inequalities ('Triple I') is a collaboration between NHS Health Scotland and the Scottish Public Health Observatory (ScotPHO)."]
[null,"Triple I provides national and local decision makers with practical tools and interpreted results about investing in interventions to reduce health inequalities in Scotland. "]
[null,"It does this by modelling the potential impact of different interventions and policies on overall population health and health inequalities."]
[null,"This tool is part of a set of 9 spreadsheets and associated documentation, produced as an update and extension of our 2014 Triple I work.  "]
[null,"Data and evidence have been updated where applicable, new interventions have been included, and presentation of the results has been improved.  "]
[null,"The tool can be used to produce detailed results for different geographies (Scotland, Local Authorities, Health Boards, City Regions, or Integrated Joint Boards)."]
[null,"Results are provided for three health outcomes: premature mortality, years of life lost, and hospital stays.  "]
[]
[null,"The interventions:"]
[null,"The interventions were chosen based on the highest quality and most generalisable evidence linking them to changes in all-cause mortality and hospital admissions."]
[null,"The topics addressed by the interventions span the determinants of health (including ‘upstream’, ‘downstream’, individual-level and population-wide)."]
[null,"There are 9 Triple I spreadsheet tools (corresponding to the topic areas below)."]
[]
[null,null,"Individual-level interventions: ",null,null,null,null,"Population-wide interventions:"]
[null,null,"(N.B. modelled as being implemented in year 1 only)",null,null,null,null,"(N.B. permanent: modelled as remaining "]
[null,null,"Topic","Intervention(s) ",null,null,null,"in place after implementation in year 1)"]
[null,null,"Mental Health","Interventions for depression",null,null,null,"Topic",null,"Intervention(s) "]
[null,null,"Obesity","Weight management service",null,null,null,"Physical Environment",null,"20 mph speed limits "]
[null,null,"Physical inactivity","Physical activity interventions",null,null,null,"Smoking",null,"Tobacco taxation"]
[null,null,"Smoking","Smoking cessation",null,null,null,"Income",null,"Income-based policies"]
[null,null,"Alcohol consumption","Alcohol Brief Interventions (ABIs)"]
[null,null,"Unemployment","Job provision"]
[]
[null,"Pages in this spreadsheet tool:"]
[null,null,"Introduction",null,">>","Information about the Triple I project"]
[null,null,"User guide",null,">>","How to use this spreadsheet tool"]
[null,null,"Options",null,">>","Where users can change the model options, and see high-level results"]
[null,null,"Results",null,">>","Full results for the chosen model options"]
[null,null,"Evidence",null,">>","Summary of the evidence underpinning the model, and definitions of the policies/interventions"]
[]
[null,"Further information is available on the Triple I website:",null,null,null,null,"Triple I website"]
[null,null,"Interactive results browser",null,">>","An online interactive results browser for comparing different interventions (April 2019)"]
[null,null,"National Overview Report",null,">>","A summary report of the national-level findings (April 2019)"]
[null,null,"Technical Report",null,">>","Details of Triple I's methods and data sources (April 2019)"]
[null,null,"Frequently Asked Questions",null,">>","Answers to frequently-asked questions about Triple I (April 2019)"]
[null,null,"Income-based policies",null,">>","Report and Supplementary Information about the income-based policies work (October 2018)"]
[null,null,"nhs.triple.i@nhs.net",null,">>","Email us for more information."]
[]
[null,"Abbreviations used"]
[null,"IJB","Integrated Joint Board"]
[null,"LA","Local Authority"]
[null,"RII","Relative Index of Inequality"]
[null,"SII","Slope Index of Inequality"]
[null,"SIMD","Scottish Index of Multiple Deprivation"]
[null,"Q1 - Q5","Quintiles of the SIMD: Q1 contains the 20% most deprived areas, and Q5 contains the 20% least deprived areas."]

{"sheet":"User Guide","index":1,"n_rows":72,"n_cols":10,"rows_kept":72,"cut":false,"hidden":false,"merged":[]}
[]
[null,"User Guide"]
[]
[null,"Please note: Macros need to be enabled for the tools to work properly."]
[null,"How to do this in a recent version of Excel: File > Options > Trust Center > Trust Center Settings > Macro Settings > \"Enable all macros\""]
[null,"How to do this in an older version of Excel: Tools > Options > Security > Macro Security > \"Medium\""]
[]
[null,"Changing the intervention details:"]
[null,"You can interact with the Triple I model from the Options tab."]
[null,"Any changes made to the shaded cells (blue) on this tab will cause Excel to recalculate the model and present new results.   "]
[null,"Below are the options available (N.B. not every spreadsheet will have all of these options):"]
[]
[null,"Intervention:"]
[null,"Choose the intervention of interest (only relevant for tools covering more than one intervention: Mental health, Physical activity, and Income-based interventions)"]
[]
[null,"Area:"]
[null,"Choose the area to run the model for.  The available geographies are listed below. "]
[null,null,"1. Health Boards:",null,null,"The 14 territorial NHS health boards responsible for delivery of frontline healthcare services in Scotland (2014 boundaries). "]
[null,null,"2. Local Authorities:",null,null,"The 32 elected councils that provide a range of services to local people, including education and care.  "]
[null,null,null,null,null,"The Gaelic name of Eilean Siar is used for the local authority covering the Western Isles.  "]
[null,null,"3. Integrated Joint Boards:",null,null,"31 integration authorities were created by The Public Bodies (Joint Working) Act 2014, in order to integrate the health "]
[null,null,null,null,null,"and social care functions of health boards and local authorities.  These Integrated Joint Boards (IJBs) or Partnerships "]
[null,null,null,null,null,"correspond to local authority areas, with the exception of Clackmannanshire and Stirling IJB which combines two"]
[null,null,null,null,null,"local authorities.  The Gaelic name of Eilean Siar is used for the IJB covering the Western Isles.  "]
[null,null,"4. City Region Deals: ",null,null,"City Region Deals are agreements between the Scottish Government, the UK Government and local government."]
[null,null,null,null,null,"They have been designed to bring about long-term strategic approaches to improving regional economies.  "]
[null,null,null,null,null,"The following 6 city regions are included:"]
[]
[null,null,null,null,null,"City Region:",null,null,null,"Local Authorities (LAs) included: "]
[null,null,null,null,null,"Aberdeen City Region Deal",null,null,null,"Aberdeen and Aberdeenshire "]
[null,null,null,null,null,"Edinburgh & Southeast Scotland City Region Deal",null,null,null,"Edinburgh, Fife, East Lothian, Midlothian, West Lothian, Borders "]
[null,null,null,null,null,"Glasgow City Region Deal",null,null,null,"East Dunbartonshire, East Renfrewshire, Glasgow City, Inverclyde, "]
[null,null,null,null,null,null,null,null,null,"North Lanarkshire, Renfrewshire, South Lanarkshire, West Dunbartonshire  "]
[null,null,null,null,null,"Inverness & Highland City Region Deal",null,null,null,"Highland "]
[null,null,null,null,null,"Stirling and Clackmannanshire City Region Deal",null,null,null,"Stirling and Clackmannanshire "]
[null,null,null,null,null,"Tay Cities Region Deal ",null,null,null,"Dundee, Perth & Kinross, Angus, Fife"]
[]
[null,"Targeting strategy:"]
[null,"The strategy for delivering the individual-level* interventions can be altered by the user.  "]
[null,"*Interventions delivered to individuals: mental health, weight management, physical activity, smoking cessation, alcohol brief interventions, and job provision. "]
[null,"Four options are available:"]
[null,"·       Even distribution: treat the same proportion of the eligible population in each subgroup (i.e., age group, sex and SIMD 2016 quintile)."]
[null,"·       Proportionate to need: the proportion of each subgroup treated is proportionate to the subgroup's prevalence of the exposure (e.g., smoking or depression)."]
[null,"·       Most deprived 20% only**: treat only those in SIMD quintile 1 (even distribution within this quintile).    "]
[null,"·       Most deprived 40% only: treat only those in SIMD quintiles 1 and 2 (even distribution within these quintiles).  "]
[null,"**The Orkney Islands, Shetland Islands and the Western Isles do not have population in SIMD 2016 quintile 1, so targeting to this quintile will produce an error message."]
[]
[null,"Number to treat:"]
[null,"For individual-level interventions you can choose the number of people to be treated."]
[null,"·       For information the maximum number of people who are eligible to be treated will be calculated in the preceding cell."]
[null,"·       If a higher number is entered an error message will prevent the calculation from occurring."]
[null,"·       Be aware that the model will run and produce results if changes to another cell mean that the number of people then exceeds the new maximum number.  "]
[]
[null,"Number of years:"]
[null,"The interventions are delivered in year 1.  "]
[null,"Their effects can be modelled from year 2 (the first year of follow-up) to year 20."]
[null,"N.B. Individual-level interventions are delivered for a single year, while the population-level interventions are modelled as remaining in place after year 1. "]
[]
[null,"Viewing the results:"]
[null,"Options tab",null,"A summary of the results is shown on the Options tab."]
[null,"Results tab",null,"More detailed results are shown on the Results tab."]
[null,"Technical Report",null,"Further information about how the results are calculated, and how to interpret them, can be found in the Triple I Technical Report.  "]
[]
[null,"For advanced users: How to make more advanced changes to the model"]
[null,"The inner workings of the Triple I tools are described in the Technical Report.  We recommend you consult the report before making any advanced changes."]
[null,"The model data and calculations can be found in a number of 'hidden' tabs."]
[null,"These are hidden to simplify the spreadsheet for users.  "]
[null,"To see the hidden tabs, right-click on any tab, select 'Unhide', then select the tab you want to unhide. "]
[null,"The hidden tabs include population data, prevalence data, targeting calculations, and result calculations."]
[null,"VBA (Visual Basic for Applications) code has been written to create bespoke functions for the calculations.   "]
[null,"The code can be found from the Developer tab > Visual Basic."]
[null,"If the Developer tab is not shown in your version of Excel go to File > Options > Customize Ribbon and switch on the Developer tab (recent Excel versions only)."]

{"sheet":"Options","index":2,"n_rows":30,"n_cols":8,"rows_kept":30,"cut":false,"hidden":false,"merged":[]}
[]
[null,"Options for changing the model:",null,null,"Results summary:"]
[]
[null,"Change the shaded cells (blue) to recalculate.",null,null,"Check the Results tab for a detailed breakdown of the results"]
[null,"N.B. Results may take a few seconds to change.",null,null,"Results shown as cumulative difference from baseline over the follow-up period (% difference in brackets).  "]
[]
[null,"Intervention: (defined on Evidence tab)",null,null,"POLICY IMPACT ON HEALTH*","Whole population","SIMD Q1 & Q2","SIMD Q1"]
[null,"Employment",null,null,"Hospital stays prevented",{"$f":"CONCATENATE(FIXED(Results!E16,0),\" (\",FIXED(Results!F16,2),\"%)\")","v":"1,418 (0.12%)"},{"$f":"CONCATENATE(FIXED(Results!E17,0),\" (\",FIXED(Results!F17,2),\"%)\")","v":"686 (0.13%)"},{"$f":"IF(OR(Calculations!$E$2=\"Orkney Health Board\",Calculations!$E$2=\"Orkney Islands Local Authority\",Calculations!$E$2=\"Shetland Health Board\",Calculations!$E$2=\"Western Isles Health Board\",Calculations!$E$2=\"Shetland Islands Local Authority\",Calculations!$E$2=\"Eilean Siar Local Authority\"),\"N/A\", CONCATENATE(FIXED(Results!E18,0),\" (\",FIXED(Results!F18,2),\"%)\"))","v":"376 (0.13%)"}]
[null,null,null,null,"Premature deaths prevented",{"$f":"CONCATENATE(FIXED(Results!E20,0),\" (\",FIXED(Results!F20,2),\"%)\")","v":"351 (1.62%)"},{"$f":"CONCATENATE(FIXED(Results!E21,0),\" (\",FIXED(Results!F21,2),\"%)\")","v":"182 (1.59%)"},{"$f":"IF(OR(Calculations!$E$2=\"Orkney Health Board\",Calculations!$E$2=\"Orkney Islands Local Authority\",Calculations!$E$2=\"Shetland Health Board\",Calculations!$E$2=\"Western Isles Health Board\",Calculations!$E$2=\"Shetland Islands Local Authority\",Calculations!$E$2=\"Eilean Siar Local Authority\"),\"N/A\", CONCATENATE(FIXED(Results!E22,0),\" (\",FIXED(Results!F22,2),\"%)\"))","v":"102 (1.59%)"}]
[null,"Choose the area to run the model for:",null,null,"Years of life saved",{"$f":"CONCATENATE(FIXED(Results!E24,0),\" (\",FIXED(Results!F24,2),\"%)\")","v":"9,950 (1.67%)"},{"$f":"CONCATENATE(FIXED(Results!E25,0),\" (\",FIXED(Results!F25,2),\"%)\")","v":"5,203 (1.64%)"},{"$f":"IF(OR(Calculations!$E$2=\"Orkney Health Board\",Calculations!$E$2=\"Orkney Islands Local Authority\",Calculations!$E$2=\"Shetland Health Board\",Calculations!$E$2=\"Western Isles Health Board\",Calculations!$E$2=\"Shetland Islands Local Authority\",Calculations!$E$2=\"Eilean Siar Local Authority\"),\"N/A\", CONCATENATE(FIXED(Results!E26,0),\" (\",FIXED(Results!F26,2),\"%)\"))","v":"2,947 (1.64%)"}]
[null,"Scotland",null,null,"*N.B. a positive figure indicates an improvement in health outcomes."]
[]
[null,"Choose the targeting strategy:",null,null,"POLICY IMPACT ON HEALTH INEQUALITIES**"]
[null,"Even distribution",null,null,"Gap between most and least deprived","Absolute","Relative"]
[null,null,null,null,"Hospital stays",{"$f":"CONCATENATE(FIXED(Results!E29,0),\" (\",FIXED(Results!F29,3),\"%)\")","v":"-16 (-0.117%)"},{"$f":"CONCATENATE(FIXED(Results!E33,4),\" (\",FIXED(Results!F33,3),\"%)\")","v":"0.0000 (0.000%)"}]
[null,"Max no. people available to be treated:",null,null,"Premature deaths",{"$f":"CONCATENATE(FIXED(Results!E30,0),\" (\",FIXED(Results!F30,3),\"%)\")","v":"-6 (-1.379%)"},{"$f":"CONCATENATE(FIXED(Results!E34,4),\" (\",FIXED(Results!F34,3),\"%)\")","v":"0.0055 (0.185%)"}]
[null,{"$f":"ROUNDDOWN(IF(OR($B$14=\"Even distribution\",$B$14=\"Proportionate to need\"),HLOOKUP(Calculations!$E$2,'Population at Risk'!$C$3:$BC$257,'Population at Risk'!BD255,FALSE),IF($B$14=\"Targeting to SIMD Q1\",HLOOKUP(Calculations!$E$2,'Population at Risk'!$C$3:$BC$257,'Population at Risk'!BD256,FALSE),IF($B$14=\"Targeting to SIMD Q1 & Q2\",HLOOKUP(Calculations!$E$2,'Population at Risk'!$C$3:$BC$257,'Population at Risk'!BD257,FALSE),\"error\"))),0)","v":236916},null,null,"Years of life lost",{"$f":"CONCATENATE(FIXED(Results!E31,0),\" (\",FIXED(Results!F31,3),\"%)\")","v":"-176 (-1.412%)"},{"$f":"CONCATENATE(FIXED(Results!E35,4),\" (\",FIXED(Results!F35,3),\"%)\")","v":"0.0056 (0.187%)"}]
[null,null,null,null,"Population-wide inequalities slope","Absolute (SII)","Relative (RII)"]
[null,"Choose the number of people to treat:",null,null,"Hospital stays",{"$f":"CONCATENATE(FIXED(Results!E37,0),\" (\",FIXED(Results!F37,3),\"%)\")","v":"-19 (-0.117%)"},{"$f":"CONCATENATE(FIXED(Results!E41,4),\" (\",FIXED(Results!F41,3),\"%)\")","v":"0.0000 (0.001%)"}]
[null,"(in addition to current number treated)",null,null,"Premature deaths",{"$f":"CONCATENATE(FIXED(Results!E38,0),\" (\",FIXED(Results!F38,3),\"%)\")","v":"-7 (-1.381%)"},{"$f":"CONCATENATE(FIXED(Results!E42,4),\" (\",FIXED(Results!F42,3),\"%)\")","v":"0.0025 (0.191%)"}]
[null,236916,null,null,"Years of life lost",{"$f":"CONCATENATE(FIXED(Results!E39,0),\" (\",FIXED(Results!F39,3),\"%)\")","v":"-208 (-1.416%)"},{"$f":"CONCATENATE(FIXED(Results!E43,4),\" (\",FIXED(Results!F43,3),\"%)\")","v":"0.0025 (0.191%)"}]
[null,{"$f":"IF(AND(OR(Calculations!$E$2=\"Orkney Health Board\",Calculations!$E$2=\"Orkney Islands Local Authority\",Calculations!$E$2=\"Shetland Health Board\",Calculations!$E$2=\"Western Isles Health Board\",Calculations!$E$2=\"Shetland Islands Local Authority\",Calculations!$E$2=\"Eilean Siar Local Authority\"),B14=\"Targeting to SIMD Q1\"),\"Error: No Q1 population for this area\", IF(B21>B17,\"Too high: please check and re-enter\",\"\"))","v":""},null,null,"**N.B. Based on rates per 100,000.  A negative figure indicates reduced inequalities / narrowing of the gap."]
[null,"Calculate health impact after this many years:"]
[null,2,null,null,"SELECTED COSTS AND SAVINGS***",null,"£"]
[null,null,null,null,"Direct financial cost of the intervention (£):",null,{"$f":"Results!D50","v":1095973416}]
[null,null,null,null,"Direct financial savings from reduced hospitalisations (£):"]
[null,null,null,null,null,"Whole population",{"$f":"CONCATENATE(FIXED(Results!E54,0),\" (\",FIXED(Results!F54,3),\"%)\")","v":"3,562,073 (0.124%)"}]
[null,null,null,null,null,"SIMD Q1 & Q2",{"$f":"CONCATENATE(FIXED(Results!E55,0),\" (\",FIXED(Results!F55,3),\"%)\")","v":"1,722,579 (0.126%)"}]
[null,null,null,null,null,"SIMD Q1",{"$f":"IF(OR(Calculations!$E$2=\"Orkney Health Board\",Calculations!$E$2=\"Orkney Islands Local Authority\",Calculations!$E$2=\"Shetland Health Board\",Calculations!$E$2=\"Western Isles Health Board\",Calculations!$E$2=\"Shetland Islands Local Authority\",Calculations!$E$2=\"Eilean Siar Local Authority\"),\"N/A\", CONCATENATE(FIXED(Results!E56,0),\" (\",FIXED(Results!F56,3),\"%)\"))","v":"944,994 (0.130%)"}]
[null,null,null,null,"***Costs/savings from changes to other health outcomes and to health inequalities have not been estimated."]

{"sheet":"Results","index":3,"n_rows":59,"n_cols":8,"rows_kept":59,"cut":false,"hidden":false,"merged":[]}
[]
[null,"Detailed results for intervention:",null,{"$f":"Options!B8","v":"Employment"}]
[]
[null,"Area of interest:",{"$f":"Options!B11","v":"Scotland"},"Targeting strategy:",{"$f":"Options!B14","v":"Even distribution"}]
[null,"Age group:","16+ years","Additional people to be treated:",{"$f":"Options!B21","v":236916}]
[null,"Baseline year (prevalence and population data):",2016,"Health impact calculated after:",{"$f":"CONCATENATE(Options!B24,\" years\")","v":"2 years"}]
[]
[null,"Baseline situation (2016):","No. non-employed","No. eligible for intervention","No. all-cause hospital stays","No. all-cause deaths","No. premature all-cause deaths","Years of life lost (all causes)"]
[null,"Whole population",{"$f":"HLOOKUP(Calculations!$E$2,'Population at Risk'!$C$3:$BC$257,'Population at Risk'!BD251,FALSE)","v":789721.35672652686},{"$f":"ROUNDDOWN(HLOOKUP(Calculations!$E$2,'Population at Risk'!$C$3:$BC$257,'Population at Risk'!BD255,FALSE),0)","v":236916},{"$f":"HLOOKUP(Calculations!$E$2,'Health outcome totals 2016'!$C$3:$BC$17,'Health outcome totals 2016'!$BD6,FALSE)","v":1125093},{"$f":"HLOOKUP(Calculations!$E$2,'Health outcome totals 2016'!$C$3:$BC$17,'Health outcome totals 2016'!$BD9,FALSE)","v":56725},{"$f":"HLOOKUP(Calculations!$E$2,'Health outcome totals 2016'!$C$3:$BC$17,'Health outcome totals 2016'!$BD12,FALSE)","v":21313},{"$f":"HLOOKUP(Calculations!$E$2,'Health outcome totals 2016'!$C$3:$BC$17,'Health outcome totals 2016'!$BD15,FALSE)","v":708624.04837918223}]
[null,"Most deprived 40% (Q1 & Q2)",{"$f":"HLOOKUP(Calculations!$E$2,'Population at Risk'!$C$3:$BC$257,'Population at Risk'!BD253,FALSE)","v":429217.13468908105},{"$f":"ROUNDDOWN(HLOOKUP(Calculations!$E$2,'Population at Risk'!$C$3:$BC$257,'Population at Risk'!BD257,FALSE),0)","v":128765},{"$f":"HLOOKUP(Calculations!$E$2,'Health outcome totals 2016'!$C$3:$BC$17,'Health outcome totals 2016'!$BD8,FALSE)","v":534382},{"$f":"HLOOKUP(Calculations!$E$2,'Health outcome totals 2016'!$C$3:$BC$17,'Health outcome totals 2016'!$BD11,FALSE)","v":26567},{"$f":"HLOOKUP(Calculations!$E$2,'Health outcome totals 2016'!$C$3:$BC$17,'Health outcome totals 2016'!$BD14,FALSE)","v":11618},{"$f":"HLOOKUP(Calculations!$E$2,'Health outcome totals 2016'!$C$3:$BC$17,'Health outcome totals 2016'!$BD17,FALSE)","v":372328.97050476068}]
[null,"Most deprived 20% (Q1)",{"$f":"IF(OR(Calculations!$E$2=\"Orkney Health Board\",Calculations!$E$2=\"Orkney Islands Local Authority\",Calculations!$E$2=\"Shetland Health Board\",Calculations!$E$2=\"Western Isles Health Board\",Calculations!$E$2=\"Shetland Islands Local Authority\",Calculations!$E$2=\"Eilean Siar Local Authority\"),\"N/A\", HLOOKUP(Calculations!$E$2,'Population at Risk'!$C$3:$BC$257,'Population at Risk'!BD252,FALSE))","v":254449.94209203299},{"$f":"IF(OR(Calculations!$E$2=\"Orkney Health Board\",Calculations!$E$2=\"Orkney Islands Local Authority\",Calculations!$E$2=\"Shetland Health Board\",Calculations!$E$2=\"Western Isles Health Board\",Calculations!$E$2=\"Shetland Islands Local Authority\",Calculations!$E$2=\"Eilean Siar Local Authority\"),\"N/A\", ROUNDDOWN(HLOOKUP(Calculations!$E$2,'Population at Risk'!$C$3:$BC$257,'Population at Risk'!BD256,FALSE),0))","v":76334},{"$f":"IF(OR(Calculations!$E$2=\"Orkney Health Board\",Calculations!$E$2=\"Orkney Islands Local Authority\",Calculations!$E$2=\"Shetland Health Board\",Calculations!$E$2=\"Western Isles Health Board\",Calculations!$E$2=\"Shetland Islands Local Authority\",Calculations!$E$2=\"Eilean Siar Local Authority\"),\"N/A\", HLOOKUP(Calculations!$E$2,'Health outcome totals 2016'!$C$3:$BC$17,'Health outcome totals 2016'!$BD7,FALSE))","v":283718},{"$f":"IF(OR(Calculations!$E$2=\"Orkney Health Board\",Calculations!$E$2=\"Orkney Islands Local Authority\",Calculations!$E$2=\"Shetland Health Board\",Calculations!$E$2=\"Western Isles Health Board\",Calculations!$E$2=\"Shetland Islands Local Authority\",Calculations!$E$2=\"Eilean Siar Local Authority\"),\"N/A\", HLOOKUP(Calculations!$E$2,'Health outcome totals 2016'!$C$3:$BC$17,'Health outcome totals 2016'!$BD10,FALSE))","v":13665},{"$f":"IF(OR(Calculations!$E$2=\"Orkney Health Board\",Calculations!$E$2=\"Orkney Islands Local Authority\",Calculations!$E$2=\"Shetland Health Board\",Calculations!$E$2=\"Western Isles Health Board\",Calculations!$E$2=\"Shetland Islands Local Authority\",Calculations!$E$2=\"Eilean Siar Local Authority\"),\"N/A\", HLOOKUP(Calculations!$E$2,'Health outcome totals 2016'!$C$3:$BC$17,'Health outcome totals 2016'!$BD13,FALSE))","v":6443},{"$f":"IF(OR(Calculations!$E$2=\"Orkney Health Board\",Calculations!$E$2=\"Orkney Islands Local Authority\",Calculations!$E$2=\"Shetland Health Board\",Calculations!$E$2=\"Western Isles Health Board\",Calculations!$E$2=\"Shetland Islands Local Authority\",Calculations!$E$2=\"Eilean Siar Local Authority\"),\"N/A\", HLOOKUP(Calculations!$E$2,'Health outcome totals 2016'!$C$3:$BC$17,'Health outcome totals 2016'!$BD16,FALSE))","v":203545.71069335938}]
[]
[null,"Health impact","Without intervention","With intervention","Difference","Difference","Interpretation"]
[null,"HEALTH OUTCOMES","n","n","n","%"]
[null,"Hospital stays",null,null,null,"% prevented"]
[null,"Whole population",{"$f":"Calculations!O5","v":1143855.727350824},{"$f":"Calculations!P5","v":1142437.7047637796},{"$f":"C16-D16","v":1418.0225870443974},{"$f":"E16*100/C16","v":0.12396865733483237},"Hospital stays prevented"]
[null,"Q1 & Q2",{"$f":"Calculations!O6","v":542278.73076819046},{"$f":"Calculations!P6","v":541592.99054428958},{"$f":"C17-D17","v":685.74022390088066},{"$f":"E17*100/C17","v":0.12645530517663178},"(N.B. positive difference = "]
[null,"Q1",{"$f":"IF(OR(Calculations!$E$2=\"Orkney Health Board\",Calculations!$E$2=\"Orkney Islands Local Authority\",Calculations!$E$2=\"Shetland Health Board\",Calculations!$E$2=\"Western Isles Health Board\",Calculations!$E$2=\"Shetland Islands Local Authority\",Calculations!$E$2=\"Eilean Siar Local Authority\"),\"N/A\", Calculations!O7)","v":288715.84006160521},{"$f":"IF(OR(Calculations!$E$2=\"Orkney Health Board\",Calculations!$E$2=\"Orkney Islands Local Authority\",Calculations!$E$2=\"Shetland Health Board\",Calculations!$E$2=\"Western Isles Health Board\",Calculations!$E$2=\"Shetland Islands Local Authority\",Calculations!$E$2=\"Eilean Siar Local Authority\"),\"N/A\", Calculations!P7)","v":288339.64806394314},{"$f":"IF(OR(Calculations!$E$2=\"Orkney Health Board\",Calculations!$E$2=\"Orkney Islands Local Authority\",Calculations!$E$2=\"Shetland Health Board\",Calculations!$E$2=\"Western Isles Health Board\",Calculations!$E$2=\"Shetland Islands Local Authority\",Calculations!$E$2=\"Eilean Siar Local Authority\"),\"N/A\", C18-D18)","v":376.19199766207021},{"$f":"IF(OR(Calculations!$E$2=\"Orkney Health Board\",Calculations!$E$2=\"Orkney Islands Local Authority\",Calculations!$E$2=\"Shetland Health Board\",Calculations!$E$2=\"Western Isles Health Board\",Calculations!$E$2=\"Shetland Islands Local Authority\",Calculations!$E$2=\"Eilean Siar Local Authority\"),\"N/A\", E18*100/C18)","v":0.13029835757601649},"fewer stays)"]
[null,"Premature deaths (<75 years)",null,null,null,"% prevented"]
[null,"Whole population",{"$f":"Calculations!Q5","v":21622.6392881457},{"$f":"Calculations!R5","v":21271.4665072922},{"$f":"C20-D20","v":351.17278085349972},{"$f":"E20*100/C20","v":1.6240976699177752},"Premature deaths prevented"]
[null,"Q1 & Q2",{"$f":"Calculations!Q6","v":11404.584690507199},{"$f":"Calculations!R6","v":11222.93429454},{"$f":"C21-D21","v":181.65039596719907},{"$f":"E21*100/C21","v":1.5927839627373619},"(N.B. positive difference = "]
[null,"Q1",{"$f":"IF(OR(Calculations!$E$2=\"Orkney Health Board\",Calculations!$E$2=\"Orkney Islands Local Authority\",Calculations!$E$2=\"Shetland Health Board\",Calculations!$E$2=\"Western Isles Health Board\",Calculations!$E$2=\"Shetland Islands Local Authority\",Calculations!$E$2=\"Eilean Siar Local Authority\"),\"N/A\", Calculations!Q7)","v":6423.5550972694},{"$f":"IF(OR(Calculations!$E$2=\"Orkney Health Board\",Calculations!$E$2=\"Orkney Islands Local Authority\",Calculations!$E$2=\"Shetland Health Board\",Calculations!$E$2=\"Western Isles Health Board\",Calculations!$E$2=\"Shetland Islands Local Authority\",Calculations!$E$2=\"Eilean Siar Local Authority\"),\"N/A\", Calculations!R7)","v":6321.3063405437006},{"$f":"IF(OR(Calculations!$E$2=\"Orkney Health Board\",Calculations!$E$2=\"Orkney Islands Local Authority\",Calculations!$E$2=\"Shetland Health Board\",Calculations!$E$2=\"Western Isles Health Board\",Calculations!$E$2=\"Shetland Islands Local Authority\",Calculations!$E$2=\"Eilean Siar Local Authority\"),\"N/A\", C22-D22)","v":102.24875672569942},{"$f":"IF(OR(Calculations!$E$2=\"Orkney Health Board\",Calculations!$E$2=\"Orkney Islands Local Authority\",Calculations!$E$2=\"Shetland Health Board\",Calculations!$E$2=\"Western Isles Health Board\",Calculations!$E$2=\"Shetland Islands Local Authority\",Calculations!$E$2=\"Eilean Siar Local Authority\"),\"N/A\", E22*100/C22)","v":1.591778309322271},"fewer premature deaths)"]
[null,"Years of life lost",null,null,null,"% saved"]
[null,"Whole population",{"$f":"Calculations!M5","v":595632.27417723415},{"$f":"Calculations!N5","v":585681.93549469416},{"$f":"C24-D24","v":9950.3386825399939},{"$f":"E24*100/C24","v":1.6705506255994462},"Years of life saved"]
[null,"Q1 & Q2",{"$f":"Calculations!M6","v":318036.26014552254},{"$f":"Calculations!N6","v":312833.19315496279},{"$f":"C25-D25","v":5203.066990559746},{"$f":"E25*100/C25","v":1.6359980425436396},"(N.B. positive difference ="]
[null,"Q1",{"$f":"IF(OR(Calculations!$E$2=\"Orkney Health Board\",Calculations!$E$2=\"Orkney Islands Local Authority\",Calculations!$E$2=\"Shetland Health Board\",Calculations!$E$2=\"Western Isles Health Board\",Calculations!$E$2=\"Shetland Islands Local Authority\",Calculations!$E$2=\"Eilean Siar Local Authority\"),\"N/A\", Calculations!M7)","v":179586.14119434051},{"$f":"IF(OR(Calculations!$E$2=\"Orkney Health Board\",Calculations!$E$2=\"Orkney Islands Local Authority\",Calculations!$E$2=\"Shetland Health Board\",Calculations!$E$2=\"Western Isles Health Board\",Calculations!$E$2=\"Shetland Islands Local Authority\",Calculations!$E$2=\"Eilean Siar Local Authority\"),\"N/A\", Calculations!N7)","v":176639.60720602941},{"$f":"IF(OR(Calculations!$E$2=\"Orkney Health Board\",Calculations!$E$2=\"Orkney Islands Local Authority\",Calculations!$E$2=\"Shetland Health Board\",Calculations!$E$2=\"Western Isles Health Board\",Calculations!$E$2=\"Shetland Islands Local Authority\",Calculations!$E$2=\"Eilean Siar Local Authority\"),\"N/A\", C26-D26)","v":2946.533988311101},{"$f":"IF(OR(Calculations!$E$2=\"Orkney Health Board\",Calculations!$E$2=\"Orkney Islands Local Authority\",Calculations!$E$2=\"Shetland Health Board\",Calculations!$E$2=\"Western Isles Health Board\",Calculations!$E$2=\"Shetland Islands Local Authority\",Calculations!$E$2=\"Eilean Siar Local Authority\"),\"N/A\", E26*100/C26)","v":1.6407357320086782},"years of life saved)"]
[null,"HEALTH INEQUALITIES ","rate*","rate*","rate*","%"]
[null,"Absolute gap (Q1 minus Q5**)",null,null,null,"% increase"]
[null,"Hospital stays",{"$f":"Inequalities!H17","v":13347.326196375001},{"$f":"Inequalities!J17","v":13331.680052049836},{"$f":"D29-C29","v":-15.646144325164641},{"$f":"E29*100/C29","v":-0.11722306097092297},"Change in the absolute gap"]
[null,"Premature deaths",{"$f":"Inequalities!N17","v":453.45748003952838},{"$f":"Inequalities!P17","v":447.20532759462731},{"$f":"D30-C30","v":-6.2521524449010712},{"$f":"E30*100/C30","v":-1.3787736932591925},"(N.B. negative = narrower gap)"]
[null,"YLL",{"$f":"Inequalities!T17","v":12490.367304169915},{"$f":"Inequalities!V17","v":12314.008722810282},{"$f":"D31-C31","v":-176.35858135963281},{"$f":"E31*100/C31","v":-1.4119567268510624}]
[null,"Relative gap Q1 to Q5**",null,null,null,"% increase"]
[null,"Hospital stays",{"$f":"Inequalities!H18","v":1.8136171707492037},{"$f":"Inequalities!J18","v":1.8136262172509725},{"$f":"D33-C33","v":9.0465017688057259E-6},{"$f":"E33*100/C33","v":4.9880988748406173E-4},"Change in the relative gap"]
[null,"Premature deaths",{"$f":"Inequalities!N18","v":3.0045167706586984},{"$f":"Inequalities!P18","v":3.0100628574818273},{"$f":"D34-C34","v":5.5460868231289595E-3},{"$f":"E34*100/C34","v":0.18459164140105822},"(N.B. negative = narrower gap)"]
[null,"YLL",{"$f":"Inequalities!T18","v":2.992305880957423},{"$f":"Inequalities!V18","v":2.9978950060943972},{"$f":"D35-C35","v":5.5891251369741823E-3},{"$f":"E35*100/C35","v":0.18678321533044198}]
[null,"Slope Index of Inequality (SII)",null,null,null,"% increase"]
[null,"Hospital stays",{"$f":"Inequalities!H15","v":16090.340555944245},{"$f":"Inequalities!J15","v":16071.474239740539},{"$f":"D37-C37","v":-18.866316203706447},{"$f":"E37*100/C37","v":-0.11725243563435128},"Change in absolute inequalities"]
[null,"Premature deaths",{"$f":"Inequalities!N15","v":534.16101420053064},{"$f":"Inequalities!P15","v":526.78354251793462},{"$f":"D38-C38","v":-7.377471682596024},{"$f":"E38*100/C38","v":-1.3811325586233125},"(N.B. negative = decreased inequalities)"]
[null,"YLL",{"$f":"Inequalities!T15","v":14716.103555851352},{"$f":"Inequalities!V15","v":14507.7709885106},{"$f":"D39-C39","v":-208.33256734075258},{"$f":"E39*100/C39","v":-1.4156775028802804}]
[null,"Relative Index of Inequality (RII)",null,null,null,"% increase"]
[null,"Hospital stays",{"$f":"Inequalities!H16","v":0.73338952625810161},{"$f":"Inequalities!J16","v":0.73339600761747148},{"$f":"D41-C41","v":6.4813593698698213E-6},{"$f":"E41*100/C41","v":8.8375401308756049E-4},"Change in relative inequalities"]
[null,"Premature deaths",{"$f":"Inequalities!N16","v":1.2858666759977377},{"$f":"Inequalities!P16","v":1.2883261464612268},{"$f":"D42-C42","v":2.4594704634890441E-3},{"$f":"E42*100/C42","v":0.191269476797093},"(N.B. negative = decreased inequalities)"]
[null,"YLL",{"$f":"Inequalities!T16","v":1.2811362775093411},{"$f":"Inequalities!V16","v":1.2835893529469593},{"$f":"D43-C43","v":2.4530754376181907E-3},{"$f":"E43*100/C43","v":0.19147654162031991}]
[]
[null,"* European age-standardised rate per 100,000"]
[null,"** or the most and least deprived quintiles in the area"]
[]
[null,"Economic impact","Without intervention","With intervention","Difference","Difference","Interpretation"]
[null,null,"£","£","£"]
[null,"Direct financial cost:",0,{"$f":"Evidence!C145*Results!E5","v":1095973416},{"$f":"D50-C50","v":1095973416},null,"Positive difference = net cost incurred"]
[]
[null,"Direct financial savings:","£","£","£","% saved"]
[null,"Hospital stays"]
[null,"Whole population",{"$f":"Evidence!$C$154*Results!C16","v":2873365587.1052699},{"$f":"Evidence!$C$154*Results!D16","v":2869803514.3666143},{"$f":"C54-D54","v":3562072.7386555672},{"$f":"E54*100/C54","v":0.1239686573348338},"Reduction in hospital stay costs"]
[null,"Q1 & Q2",{"$f":"Evidence!$C$154*Results!C17","v":1362204171.6896944},{"$f":"Evidence!$C$154*Results!D17","v":1360481592.2472553},{"$f":"C55-D55","v":1722579.4424390793},{"$f":"E55*100/C55","v":0.1264553051766367},"(N.B. positive difference = "]
[null,"Q1",{"$f":"IF(OR(Calculations!$E$2=\"Orkney Health Board\",Calculations!$E$2=\"Orkney Islands Local Authority\",Calculations!$E$2=\"Shetland Health Board\",Calculations!$E$2=\"Western Isles Health Board\",Calculations!$E$2=\"Shetland Islands Local Authority\",Calculations!$E$2=\"Eilean Siar Local Authority\"),\"N/A\", Evidence!$C$154*Results!C18)","v":725254190.2347523},{"$f":"IF(OR(Calculations!$E$2=\"Orkney Health Board\",Calculations!$E$2=\"Orkney Islands Local Authority\",Calculations!$E$2=\"Shetland Health Board\",Calculations!$E$2=\"Western Isles Health Board\",Calculations!$E$2=\"Shetland Islands Local Authority\",Calculations!$E$2=\"Eilean Siar Local Authority\"),\"N/A\", Evidence!$C$154*Results!D18)","v":724309195.93662512},{"$f":"IF(OR(Calculations!$E$2=\"Orkney Health Board\",Calculations!$E$2=\"Orkney Islands Local Authority\",Calculations!$E$2=\"Shetland Health Board\",Calculations!$E$2=\"Western Isles Health Board\",Calculations!$E$2=\"Shetland Islands Local Authority\",Calculations!$E$2=\"Eilean Siar Local Authority\"),\"N/A\", C56-D56)","v":944994.29812717438},{"$f":"IF(OR(Calculations!$E$2=\"Orkney Health Board\",Calculations!$E$2=\"Orkney Islands Local Authority\",Calculations!$E$2=\"Shetland Health Board\",Calculations!$E$2=\"Western Isles Health Board\",Calculations!$E$2=\"Shetland Islands Local Authority\",Calculations!$E$2=\"Eilean Siar Local Authority\"),\"N/A\", E56*100/C56)","v":0.13029835757602393},"money saved)"]
[null,"Premature deaths (<75 years)",null,null,"Savings not estimated"]
[null,"Years of life lost",null,null,"Savings not estimated"]
[null,"Inequalities",null,null,"Savings not estimated"]

{"sheet":"Evidence","index":4,"n_rows":164,"n_cols":9,"rows_kept":164,"cut":false,"hidden":false,"merged":[]}
[]
[null,"The intervention: Employment"]
[]
[null,"A user-specified number of adults aged 16-64 not in employment (excluding full-time students aged 16-24) move into sustained employment.  "]
[null,"They are assumed to acquire the risk of mortality and hospitalisation of the employed population."]
[]
[null,"Exposure Rate Ratios (ERR) for non-employment"]
[]
[]
[null,"Outcome","Sex","ERR relative to employed","Source","Quoted/calculated?"]
[null,"All-cause hospitalisation","Men",1.02,"Browning and Heinesen (2012)","Quoted"]
[]
[null,"All-cause mortality","Men",1.78,"Roelfs et al. (2011)","Quoted"]
[null,null,"Women",1.37,"Roelfs et al. (2011)","Quoted"]
[]
[null,"All-cause hospitalisation"]
[null,"ERR chosen comes from the single study published by Browning and Heinesen (2012).  "]
[null,"New searches were conducted, modelled on the Roelfs et al (2011) strategy, to identify if any new evidence useable by the model had been published since 2012.  "]
[null,"78 papers from Medline and 354 papers from ProQuest were initially identified but none yielded new estimates of all-cause hospitalisation linked to employment status."]
[null,"Browning and Heinesen (2012): Danish, men, industrial employees, n=33,065 lost jobs, 1,161,222 controls. ERR given for the 4 years after plant closure."]
[null,"In the absence of ERRs for hospitalisation for females we will apply the male value."]
[]
[null,"All-cause mortality"]
[null,"ERR chosen comes from a meta-analysis (n = 42) (Roelfs et al., 2011). "]
[null,"The studies typically included participants aged 15-64 years and included both sexes.  "]
[null,"Papers included in the meta-analysis provided comparisons of the mortality risk of the non-employed (not just the unemployed) vs. the employed.   "]
[null,"New searches were conducted, modelled on the Roelfs et al. strategy, to identify if any new evidence useable by the model had been published since 2011.  "]
[null,"215 papers from Medline and 296 papers from Proquest were initially identified but after screening, only a single study (Clemens et al. 2015) provided estimates "]
[null,"pertinent to Triple I.  This is a Scotland-specific study, with ERR of 1.85 for men and 1.51 (non-significant) for women: it also focused exclusively on the unemployed.  "]
[null,"We decided to use the meta-analysis for effect estimates, and use Clemens et al (2015) in our sensitivity analyses.    "]
[]
[]
[null,"Intervention Rate Ratios (IRR) for gaining employment + change over time"]
[]
[null,"We found no robust published evidence quantifying the effect on all-cause hospitalisation and mortality of finding a job."]
[null,"We therefore used a large Danish study on the health effects of losing a job, and inverted the effect sizes."]
[null,"We assumed that the reduction in hospitalisation or mortality from gaining employment was the inverse of increased all-cause hospitalisation or mortality from job loss, "]
[null,"which may not be the case. Browning and Heinesen (2012) estimated hazard ratios for all-cause hospitalisation and mortality at 1, 2, 3, 4, 10, 15 and 20 years after the "]
[null,"Danish men in their large study lost their jobs. We used these hazard ratios, and interpolated the intervening values in a linear pattern."]
[]
[null,null,"mortality",null,"hospitalisation"]
[null,"Year","untreated v. treated","treated v. untreated","untreated v. treated","treated v. untreated"]
[null,"1 (intervention)",1.79,{"$f":"1/C43","v":0.55865921787709494},1.05,{"$f":"1/E43","v":0.95238095238095233}]
[null,2,1.44,{"$f":"1/C44","v":0.69444444444444442},1.03,0.970873786407767]
[null,3,1.37,0.72992700729927007,1.04,0.96153846153846145]
[null,4,1.35,0.7407407407407407,1.03,0.970873786407767]
[null,5,{"$f":"C46-(C$46-C$52)/6","v":1.32},0.75757575757575757,{"$f":"E46-(E$46-E$52)/6","v":1.0283333333333333},0.97244732576985415]
[null,6,{"$f":"C47-(C$46-C$52)/6","v":1.29},0.77519379844961234,1.0266666666666666,0.97402597402597413]
[null,7,1.26,0.79365079365079361,1.0249999999999999,0.97560975609756106]
[null,8,1.23,0.81300813008130079,1.0233333333333332,0.97719869706840401]
[null,9,1.2,0.83333333333333337,1.0216666666666665,0.97879282218597075]
[null,10,1.17,0.85470085470085477,1.02,0.98039215686274506]
[null,11,{"$f":"C52-(C$52-C$57)/5","v":1.1599999999999999},0.86206896551724144,{"$f":"E52-(E$52-E$57)/5","v":1.022},0.97847358121330719]
[null,12,{"$f":"C53-(C$52-C$57)/5","v":1.1499999999999999},0.86956521739130443,1.024,0.9765625]
[null,13,1.1399999999999999,0.87719298245614041,1.026,0.97465886939571145]
[null,14,1.1299999999999999,0.88495575221238942,1.028,0.97276264591439687]
[null,15,1.1200000000000001,0.89285714285714279,1.03,0.970873786407767]
[null,16,{"$f":"C57-(C$57-C$62)/5","v":1.1180000000000001},0.89445438282647571,{"$f":"E57-(E$57-E$62)/5","v":1.03},0.970873786407767]
[null,17,{"$f":"C58-(C$57-C$62)/5","v":1.1160000000000001},0.8960573476702508,1.03,0.970873786407767]
[null,18,1.1140000000000001,0.89766606822262107,1.03,0.970873786407767]
[null,19,1.1120000000000001,0.89928057553956831,1.03,0.970873786407767]
[null,20,1.1100000000000001,0.9009009009009008,1.03,0.970873786407767]
[]
[]
[]
[null,"Prevalence of non-employment"]
[]
[null,"The 'population at risk' is assumed to be all those adults aged 16-64 who are unemployed under the International Labour Organisation (ILO) survey based definition "]
[null,"(\"out-of-work, available to start work in the next two weeks, and have looked for work in the last four weeks\", ILO 2013, p.56) or economically inactive (not working or "]
[null,"ILO unemployed), excluding 16-24 year olds in full-time education (FTE).  This was estimated to be 754,200 people in 2016. The estimated proportions of "]
[null,"non-employment were taken from the Annual Population Survey, 2016.  Orkney and Shetland were exceptions: due to small sample sizes and unreliable estimates "]
[null,"we used 2011 Census figures here (% of 16-64 year olds who were unemployed or inactive excluding young adults in FTE).  "]
[null,"Excluding young adults in FTE can be justified given the high proportion of this age group still in FTE (86% of 16 year olds, falling to 11% among 24%).  "]
[null,"Restricting the age bands affected to 16-64 can be justified because studies on the impact of employment have focused on the working-age population (of those in the "]
[null,"Roelfs et al systematic review, 98% were aged <65)."]
[]
[null,"Prevalence by Area (proportion)",null,null,null,"Prevalence by deprivation quintile (proportion)"]
[null,"Area ","Females","Males",null,"SIMD 2016 quintile ","Age group","Females","Males"]
[null,"SCOTLAND",0.26016001337548289,0.17980119823095447,null,"Q1 (most deprived)","16-24",0.2642089093701997,0.2604340567612688]
[null,"Ayrshire & Arran Health Board",0.33660377358490567,0.24909426987060998,null,null,"25-34",0.3894993894993895,0.24063400576368876]
[null,"Borders Health Board",0.29677419354838708,0.17675840978593271,null,null,"35-44",0.36037441497659906,0.35666666666666669]
[null,"Dumfries & Galloway Health Board",0.30872246696035244,0.15220657276995306,null,null,"45-54",0.40929535232383807,0.34569983136593591]
[null,"Fife Health Board",0.27896752706078271,0.18541818181818182,null,null,"55-64",0.54145516074450084,0.47007042253521125]
[null,"Forth Valley Health Board",0.25591666666666668,0.16376623376623375]
[null,"Grampian Health Board",0.25237846314688972,0.17577962577962578]
[null,"Greater Glasgow & Clyde Health Board",0.2693848133848134,0.18491875516386672,null,"Q2","16-24",0.15439856373429084,0.17043478260869566]
[null,"Highland Health Board",0.20994708994708994,0.18310740354535976,null,null,"25-34",0.29191797346200243,0.14460784313725492]
[null,"Lanarkshire Health Board",0.24906965871902759,0.18104228121927238,null,null,"35-44",0.25982905982905985,0.18518518518518517]
[null,"Lothian Health Board",0.25371699390656738,0.17007885304659498,null,null,"45-54",0.24123422159887797,0.20150375939849624]
[null,"Orkney Health Board",0.21711076592185446,0.15910847719659882,null,null,"55-64",0.49693251533742333,0.3551236749116608]
[null,"Shetland Health Board",0.17542630226582573,0.14851822413988872]
[null,"Tayside Health Board",0.21806153846153847,0.21635059760956174]
[null,"Western Isles Health Board",0.20974358974358975,0.14549999999999999,null,"Q3","16-24",0.11,0.12720156555772993]
[null,"Aberdeen City Local Authority",0.25026548672566373,0.21504999999999999,null,null,"25-34",0.18181818181818182,0.10526315789473684]
[null,"Aberdeenshire Local Authority",0.24755077658303465,0.14278846153846153,null,null,"35-44",0.20030581039755352,9.7972972972972971E-2]
[null,"Angus Local Authority",0.25272206303724926,0.13815028901734103,null,null,"45-54",0.18043202033036848,0.15320334261838439]
[null,"Argyll & Bute Local Authority",0.20495867768595041,0.14666666666666667,null,null,"55-64",0.43156424581005587,0.26586102719033233]
[null,"Clackmannanshire Local Authority",0.34708074534161493,0.25554140127388536]
[null,"Dumfries & Galloway Local Authority",0.30872246696035244,0.15220657276995306]
[null,"Dundee City Local Authority",0.22221327967806842,0.28875536480686698,null,"Q4","16-24",0.15,0.11705685618729098]
[null,"East Ayrshire Local Authority",0.34835051546391754,0.27869918699186991,null,null,"25-34",0.15384615384615385,6.2869822485207102E-2]
[null,"East Dunbartonshire Local Authority",0.22480712166172107,0.14855345911949686,null,null,"35-44",0.15722379603399433,6.2869822485207102E-2]
[null,"East Lothian Local Authority",0.27253012048192771,0.18384105960264902,null,null,"45-54",0.17324561403508773,8.5057471264367815E-2]
[null,"East Renfrewshire Local Authority",0.19878378378378378,0.13776173285198556,null,null,"55-64",0.43307086614173229,0.22762148337595908]
[null,"Edinburgh, City of Local Authority",0.24976000000000001,0.16980861244019138]
[null,"Eilean Siar Local Authority",0.20974358974358975,0.14549999999999999]
[null,"Falkirk Local Authority",0.26885375494071145,0.15266802443991853,null,"Q5 (least deprived)","16-24",0.15522875816993464,0.13986013986013987]
[null,"Fife Local Authority",0.27896752706078271,0.18541818181818182,null,null,"25-34",0.19310344827586207,6.0562364816149961E-2]
[null,"Glasgow City Local Authority",0.3041864801864802,0.18336016096579477,null,null,"35-44",0.14190981432360741,6.0562364816149961E-2]
[null,"Highland Local Authority",0.21166429587482219,0.19630681818181819,null,null,"45-54",0.11391129032258064,6.4794816414686832E-2]
[null,"Inverclyde Local Authority",0.25723320158102769,0.25282700421940929,null,null,"55-64",0.40306122448979592,0.29817158931082982]
[null,"Midlothian Local Authority",0.24967971530249111,0.15647509578544061]
[null,"Moray Local Authority",0.27242105263157895,0.16219178082191782]
[null,"North Ayrshire Local Authority",0.37042253521126761,0.2537084398976982]
[null,"North Lanarkshire Local Authority",0.2483836589698046,0.18604127579737337,null,"N.B. In cases where sample sizes were too small to produce reliable estimates we used the values "]
[null,"Orkney Islands Local Authority",0.21711076592185446,0.15910847719659882,null,"for a larger age group, or applied the male:female ratio found in the 2017 data."]
[null,"Perth & Kinross Local Authority",0.18687224669603525,0.20126410835214448]
[null,"Renfrewshire Local Authority",0.20484848484848484,0.19159851301115241]
[null,"Scottish Borders Local Authority",0.29677419354838708,0.17675840978593271]
[null,"Shetland Islands Local Authority",0.17542630226582573,0.14851822413988872]
[null,"South Ayrshire Local Authority",0.28272727272727272,0.20956521739130435]
[null,"South Lanarkshire Local Authority",0.24983218163869694,0.17553719008264462]
[null,"Stirling Local Authority",0.18348122866894198,0.13130434782608696]
[null,"West Dunbartonshire Local Authority",0.27126279863481229,0.21435897435897436]
[null,"West Lothian Local Authority",0.25678510998307952,0.16980180180180179]
[null,"Aberdeen City Region Deal",0.24886977886977887,0.1782107843137255]
[null,"Edinburgh & SE Scotland City Region Deal",0.26372775800711745,0.1745980554896846]
[null,"Glasgow City Region Deal",0.26217131474103583,0.18352691968225948]
[null,"Inverness & Highland City Region Deal",0.21166429587482219,0.19630681818181819]
[null,"Tay Cities Region Deal ",0.24730907636945221,0.2019023354564756]
[null,"Clackmannanshire & Stirling IJB",0.24149779735682819,0.17635103926096998]
[]
[]
[null,"Eligible population"]
[]
[null,"Not all of the non-employed population would be willing or able to take up a job if offered one.  Therefore we needed to identify the 'eligible' proportion: those "]
[null,"able to start work.  We used the number of 'real unemployed' as a proportion of the population at risk defined above. "]
[null,"Real unemployment is defined by Beatty et al (2017) as the ILO unemployed plus the 'hidden unemployed' (those on incapacity benefits who might be expected to"]
[null,"work in a full-employed economy, after adjusting for ill-health and disability). Real unemployment in Scotland in 2017 was estimated as 219,000 by Beatty et al (2017)."]
[null,"This equates to 30% of the population at risk: we used this as our eligible population figure. "]
[]
[]
[null,"Intervention costs"]
[]
[null,"Cost of the intervention per person",4626]
[null,"The figure is based on the work of Beatty et al (2011) and inflated to financial year 2015/16 using the Hospital and Community Health Service (HCHS) inflation index.  "]
[null,"Beatty et al (2011) estimated the annual net cost per job created in a large scale government job creation scheme (wages, National Insurance plus employability "]
[null,"support minus savings in benefits and extra tax revenue). "]
[]
[null,"Hospitalisation costs"]
[]
[null,"The cost of a continuous inpatient stay was estimated to be £2,113 in 2006/07 (Geue et al 2012; based on healthcare resource groups and the English tariff)."]
[null,"This was inflated to £2,512 for 2015/16 using the Hospital and Community Health Service (HCHS) inflation index."]
[null,"Cost of continuous inpatient stay ",2512]
[]
[null,"References"]
[]
[null,"Beatty et al 2011","Beatty, Fothergill, Gore and Powell (2011) Tackling Worklessness in Britain’s Weaker Local Economies. Centre for Regional Economic and Social Research Sheffield Hallam University"]
[null,"Beatty et al 2017","The real level of unemployment 2017. Centre for Regional Economic and Social Research, Sheffield Hallam University. https://www4.shu.ac.uk/research/cresr/sites/shu.ac.uk/files/real-level-unemployment-2017.pdf"]
[null,"Browning and Heinesen 2012","Effect of job loss due to plant closure on mortality and hospitalization. Journal of Health Economics Volume 31, Issue 4, July 2012, Pages 599-616"]
[null,"Clemens et al 2015","What is the effect of unemployment on all-cause mortality? A cohort study using propensity score matching. European Journal of Public Health, 25(1), 115. "]
[null,"Geue et al 2012","Spoilt for choice: implications of using alternative methods of costing hospital episode statistics. Health Economics 21: 1201-1216. https://onlinelibrary.wiley.com/doi/abs/10.1002/hec.1785"]
[null,"ILO (2013)","19th International Conference of Labour Statisticians. Geneva 2-11 October 2013. ICLS/19/2013/3. International Labour Organization, Geneva. http://www.ilo.org/wcmsp5/groups/public/---dgreports/---stat/documents/publication/wcms_234124.pdf"]
[null,"Roelfs et al 2011","Losing life and livelihood: A systematic review and meta-analysis of unemployment and all-cause mortality. Social Science & Medicine Volume 72, Issue 6, March 2011, Pages 840-854"]

{"sheet":"SHEETS TO BE HIDDEN ->","index":5,"n_rows":0,"n_cols":0,"rows_kept":0,"cut":false,"hidden":true,"merged":[]}

{"sheet":"Calculations","index":6,"n_rows":249,"n_cols":43,"rows_kept":249,"cut":false,"hidden":true,"merged":[]}
["Calculating the deaths, years of life lost, hospital stays, and premature deaths for each group ",null,null,null,null,null,null,null,null,null,"COUNTS",null,null,null,null,null,null,null,null,null,null,null,null,null,null,null,null,null,null,null,null,null,null,null,null,"EUROPEAN AGE-STANDARDISED RATE (EASR) PER 100000"]
["AREA:",{"$f":"Options!B11","v":"Scotland"},"EQUIVALENT AREA:",null,{"$f":"VLOOKUP(B2,Lists!D2:E85,2)","v":"Scotland"},null,null,null,null,null,"CUMULATIVE INCIDENCE (DEATHS)",null,"YEARS OF LIFE LOST",null,"HOSPITALISATIONS",null,"PREMATURE MORTALITY",null,"AGE STANDARDISED RATE (ASR)",null,null,null,null,null,null,null,"ASR*EUROPEAN STANDARD POPULATION (ESP2013)",null,null,null,null,null,null,null,null,"CUMULATIVE INCIDENCE (DEATHS)",null,"YEARS OF LIFE LOST",null,"HOSPITALISATIONS",null,"PREMATURE MORTALITY"]
["SIMD","group","mean age (2016)","life exp (2014-16)","sex","SIMD","prevalence exposure","population (2016)","no. treated at base","additional no. treated under policy","Baseline","Policy","Baseline","Policy","Baseline","Policy","Baseline","Policy","CI_BASE","CI_POLICY","YLL_BASE","YLL_POLICY","HOSP_BASE","HOSP_POLICY","PREM_BASE","PREM_POLICY","CI_BASE","CI_POLICY","YLL_BASE","YLL_POLICY","HOSP_BASE","HOSP_POLICY","PREM_BASE","PREM_POLICY","ESP2013","Baseline","Policy","Baseline","Policy","Baseline","Policy","Baseline","Policy"]
[]
["All quintiles","16+ Males and Females","N/A",null,"BOTH","ALL",null,{"$f":"SUM(H7:H11)","v":4488783},{"$f":"SUM(I7:I11)","v":0},{"$f":"SUM(J7:J11)","v":236920},{"$f":"SUMIF(K7:K11,\">0\")","v":44525.443565294707},44174.2707844412,595632.27417723415,585681.93549469416,1143855.727350824,1142437.7047637796,21622.6392881457,21271.4665072922,null,null,null,null,null,null,null,null,{"$f":"SUMIF(AA7:AA11,\">0\")","v":906582583.80222261},{"$f":"SUMIF(AB7:AB11,\">0\")","v":900063148.73309648},11486758914.095345,11302501812.750772,21939692318.814999,21913773831.344856,415409329.88722265,408889894.81809652,{"$f":"SUM(AI7:AI11)","v":1000000},{"$f":"AA5/$AI5","v":906.58258380222264},{"$f":"AB5/$AI5","v":900.06314873309645},{"$f":"AC5/$AI5","v":11486.758914095344},11302.501812750772,21939.692318814999,21913.773831344857,415.40932988722267,408.88989481809654]
["Q1 and Q2","16+ Males and Females","N/A",null,"BOTH","Q1&2",null,{"$f":"SUM(H7:H8)","v":1769266},0,94817,23418.762787620501,23237.112391653303,318036.26014552254,312833.19315496279,542278.73076819046,541592.99054428958,11404.584690507199,11222.93429454,null,null,null,null,null,null,null,null,{"$f":"SUMIF(AA7:AA8,\">0\")","v":502822584.94402015},{"$f":"SUMIF(AB7:AB8,\">0\")","v":499331019.00390005},6392196579.7011909,6293499978.2166977,10787710810.292,10774986214.476288,231421873.43902013,227930307.49890006,{"$f":"SUM(AI7:AI8)","v":400000},{"$f":"AA6/$AI6","v":1257.0564623600503},1248.32754750975,15980.491449252977,15733.749945541744,26969.27702573,26937.465536190721,578.55468359755037,569.82576874725009]
["SIMD Q1 (most deprived)","16+ Males and Females","N/A",null,"BOTH",1,null,{"$f":"H12+H17","v":872234},0,47632,12911.1241501357,12808.87539341,{"$f":"M12+M17","v":179586.14119434051},176639.60720602941,288715.84006160521,288339.64806394314,6423.5550972694,6321.3063405437006,null,null,null,null,null,null,null,null,{"$f":"AA12+AA17","v":294467343.71079546},{"$f":"AB12+AB17","v":292469993.66451848},3751933866.8643608,3695500028.030158,5950449632.4840012,5943437895.6206112,135935066.59579545,133937716.54951848,{"$f":"AI12+AI17","v":200000},{"$f":"AA7/$AI7","v":1472.3367185539773},1462.3499683225923,{"$f":"AC7/$AI7","v":18759.669334321803},{"$f":"AD7/$AI7","v":18477.500140150791},{"$f":"AE7/$AI7","v":29752.248162420005},{"$f":"AF7/$AI7","v":29717.189478103057},{"$f":"AG7/$AI7","v":679.67533297897728},{"$f":"AH7/$AI7","v":669.68858274759236}]
["SIMD Q2",null,"N/A",null,"BOTH",2,null,{"$f":"H13+H18","v":897032},0,47185,{"$f":"K13+K18","v":10507.638637484801},10428.236998243301,138450.118951182,136193.58594893338,253562.89070658525,253253.34248034644,4981.0295932377994,4901.6279539962998,null,null,null,null,null,null,null,null,{"$f":"AA13+AA18","v":208355241.23322469},{"$f":"AB13+AB18","v":206861025.33938158},2640262712.8368306,2597999950.1865396,4837261177.8079996,4831548318.8556757,95486806.843224674,93992590.94938156,{"$f":"AI13+AI18","v":200000},1041.7762061661235,1034.3051266969078,13201.313564184153,12989.999750932699,24186.305889039999,24157.741594278377,477.43403421612339,469.96295474690783]
["SIMD Q3",null,"N/A",null,"BOTH",3,null,907978,0,47063,8992.4339357708013,8922.4362295380015,117522.03240266821,115564.8576565805,227312.98226707341,227040.27027175651,4322.0305572317002,4252.0328509989004,null,null,null,null,null,null,null,null,{"$f":"AA14+AA19","v":169284636.7658453},{"$f":"AB14+AB19","v":168026100.50274569},2139868442.1540835,2104331355.2960606,4182172524.5570002,4177226205.3837056,77326593.250845283,76068056.987745672,{"$f":"AI14+AI19","v":200000},846.42318382922645,840.1305025137284,10699.342210770417,10521.656776480302,20910.862622785,20886.131026918527,386.6329662542264,380.34028493872836]
["SIMD Q4",null,"N/A",null,"BOTH",4,null,910792,0,47661,7032.9695765083998,6974.6437108857999,93240.525000844806,91612.819549663516,200119.05611311671,199873.64970728921,3451.9742284220001,3393.6483627993998,null,null,null,null,null,null,null,null,{"$f":"AA15+AA20","v":134845499.58946747},{"$f":"AB15+AB20","v":133823086.28085774},1700833486.2096949,1671972195.7699125,3688824590.757,3684459526.2742195,61417292.609467462,60394879.30085776,{"$f":"AI15+AI20","v":200000},674.22749794733738,669.11543140428876,8504.1674310484741,8359.8609788495633,18444.122953785001,18422.297631371097,307.0864630473373,301.97439650428879]
["SIMD Q5 (least deprived)",null,"N/A",null,"BOTH",5,null,900747,0,47379,5081.2772653949996,5040.0784523640996,66833.45662819859,65671.065133487282,174144.95820244367,173930.79424044437,2444.0498119847998,2402.8509989538998,null,null,null,null,null,null,null,null,{"$f":"AA16+AA21","v":99629862.502889782},{"$f":"AB16+AB21","v":98882942.945592999},1253860406.0303774,1232698283.468102,3280984393.2090006,3277101885.2106438,45243570.587889776,44496651.030593008,{"$f":"AI16+AI21","v":200000},{"$f":"AA11/$AI11","v":498.14931251444892},494.41471472796502,6269.3020301518873,6163.4914173405095,16404.921966045004,16385.509426053221,226.21785293944887,222.48325515296503]
["SIMD Q1 (most deprived)","16+ Females","N/A",null,"female",1,null,{"$f":"SUM(H60:H78)","v":457633},{"$f":"SUM(I60:I78)","v":0},{"$f":"SUM(J60:J78)","v":24472},{"$f":"SUMIF(K60:K78,\">0\")","v":6432.6821088699999},6396.8628205534005,82589.576637502905,81515.7191197801,155037.8908593776,154833.98630905501,2638.9918357701999,2603.1725474536001,null,null,null,null,null,null,null,null,{"$f":"SUMIF(AA60:AA78,\">0\")","v":124144463.51549102},{"$f":"SUMIF(AB60:AB78,\">0\")","v":123471953.09088893},{"$f":"SUMIF(AC60:AC78,\">0\")","v":1590474839.4596012},1570627867.7917764,2906076588.3480005,2902402715.0968285,53084727.845491007,52412217.420888916,{"$f":"SUM(AI60:AI78)","v":100000},1241.4446351549102,1234.7195309088893,15904.748394596012,15706.278677917764,29060.765883480006,29024.027150968286,530.84727845491011,524.12217420888919]
["SIMD Q2",null,"N/A",null,"female",2,null,{"$f":"SUM(H98:H116)","v":469079},{"$f":"SUM(I98:I116)","v":0},{"$f":"SUM(J98:J116)","v":24086},{"$f":"SUMIF(K98:K116,\">0\")","v":5243.3031462105},5216.3850638890999,64050.963014346096,63255.199279460096,134904.85907071829,134738.45607571077,2052.8167219581001,2025.8986396367,null,null,null,null,null,null,null,null,{"$f":"SUMIF(AA98:AA116,\">0\")","v":87785381.516230255},{"$f":"SUMIF(AB98:AB116,\">0\")","v":87299669.560833037},1118787892.801105,1104418047.544121,2362418359.7929997,2359425779.0427871,37263208.411230259,36777496.455833033,{"$f":"SUM(AI98:AI116)","v":100000},877.85381516230257,872.99669560833036,11187.87892801105,11044.18047544121,23624.183597929998,23594.25779042787,372.63208411230261,367.77496455833034]
["SIMD Q3",null,"N/A",null,"female",3,null,{"$f":"SUM(H136:H154)","v":469093},{"$f":"SUM(I136:I154)","v":0},{"$f":"SUM(J136:J154)","v":23829},{"$f":"SUMIF(K136:K154,\">0\")","v":4357.4910751594998},4334.4463752580996,53303.541385496399,52629.256121041391,118438.08137411861,118293.15463505099,1753.3334964604999,1730.2887965591001,null,null,null,null,null,null,null,null,{"$f":"SUMIF(AA136:AA154,\">0\")","v":71303471.386358783},{"$f":"SUMIF(AB136:AB154,\">0\")","v":70901847.49613589},906584539.43733716,894699108.6688869,2042486603.9890001,2039895752.9672551,30166690.636358783,29765066.74613589,{"$f":"SUM(AI136:AI154)","v":100000},713.03471386358785,709.01847496135895,9065.8453943733712,8946.9910866888695,20424.866039889999,20398.957529672552,301.66690636358783,297.65066746135892]
["SIMD Q4",null,"N/A",null,"female",4,null,{"$f":"SUM(H174:H192)","v":468792},{"$f":"SUM(I174:I192)","v":0},{"$f":"SUM(J174:J192)","v":24118},{"$f":"SUMIF(K174:K192,\">0\")","v":3355.0385071819001},3336.2835623991,41832.213134012498,41283.220618072701,103630.27058914659,103500.1661982768,1387.5232947381,1368.7683499553,null,null,null,null,null,null,null,null,{"$f":"SUMIF(AA174:AA192,\">0\")","v":56783209.307722062},{"$f":"SUMIF(AB174:AB192,\">0\")","v":56463576.45014549},720465780.22355521,710999597.48229373,1801545672.0019999,1799259935.6903131,23953480.297722068,23633847.4401455,{"$f":"SUM(AI174:AI192)","v":100000},567.83209307722063,564.6357645014549,7204.6578022355525,7109.9959748229376,18015.45672002,17992.599356903131,239.53480297722066,236.33847440145499]
["SIMD Q5 (least deprived)",null,"N/A",null,"female",5,null,{"$f":"SUM(H212:H230)","v":465079},{"$f":"SUM(I212:I230)","v":0},{"$f":"SUM(J212:J230)","v":24007},{"$f":"SUMIF(K212:K230,\">0\")","v":2446.2849244393001},2432.7032113491,30220.924485822303,29821.668361249504,90811.936485394297,90697.778077358598,993.57150211520002,979.98978902499994,null,null,null,null,null,null,null,null,{"$f":"SUMIF(AA212:AA230,\">0\")","v":41943379.355583869},{"$f":"SUMIF(AB212:AB230,\">0\")","v":41705419.813218765},531048599.94366163,524008893.69786221,1602364950.7030003,1600331158.8707774,17640757.590583868,17402798.048218768,{"$f":"SUM(AI212:AI230)","v":100000},419.43379355583869,417.05419813218765,5310.4859994366161,5240.0889369786219,16023.649507030002,16003.311588707773,176.40757590583868,174.02798048218767]
["SIMD Q1 (most deprived)","16+ Males","N/A",null,"male",1,null,{"$f":"SUM(H79:H97)","v":414601},{"$f":"SUM(I79:I97)","v":0},{"$f":"SUM(J79:J97)","v":23160},{"$f":"SUMIF(K79:K97,\">0\")","v":6478.4420412657},6412.0125728565999,96996.564556837606,95123.888086249295,133677.94920222761,133505.66175488813,3784.5632614992001,3718.1337930901,null,null,null,null,null,null,null,null,{"$f":"SUMIF(AA79:AA97,\">0\")","v":170322880.19530442},{"$f":"SUMIF(AB79:AB97,\">0\")","v":168998040.57362956},2161459027.4047599,2124872160.2383816,3044373044.1360002,3041035180.5237823,82850338.750304446,81525499.128629565,{"$f":"SUM(AI79:AI97)","v":100000},1703.2288019530442,1689.9804057362956,21614.590274047598,21248.721602383815,30443.730441360003,30410.351805237824,828.50338750304445,815.25499128629565]
["SIMD Q2",null,"N/A",null,"male",2,null,{"$f":"SUM(H117:H135)","v":427953},{"$f":"SUM(I117:I135)","v":0},{"$f":"SUM(J117:J135)","v":23099},{"$f":"SUMIF(K117:K135,\">0\")","v":5264.3354912742998},5211.8519343542002,74399.155936835901,72938.386669473301,118658.03163586698,118514.88640463569,2928.2128712796998,2875.7293143595998,null,null,null,null,null,null,null,null,{"$f":"SUMIF(AA117:AA135,\">0\")","v":120569859.71699443},{"$f":"SUMIF(AB117:AB135,\">0\")","v":119561355.77854854},1521474820.0357256,1493581902.6424184,2474842818.0149999,2472122539.8128886,58223598.431994423,57215094.493548527,{"$f":"SUM(AI117:AI135)","v":100000},1205.6985971699444,1195.6135577854855,15214.748200357257,14935.819026424184,24748.42818015,24721.225398128885,582.23598431994424,572.15094493548531]
["SIMD Q3",null,"N/A",null,"male",3,null,{"$f":"SUM(H155:H173)","v":438885},{"$f":"SUM(I155:I173)","v":0},{"$f":"SUM(J155:J173)","v":23234},{"$f":"SUMIF(K155:K173,\">0\")","v":4634.9428606113006},4587.989854279901,64218.4910171718,62935.601535539106,108874.90089295481,108747.11563670551,2568.6970607712001,2521.7440544398,null,null,null,null,null,null,null,null,{"$f":"SUMIF(AA155:AA173,\">0\")","v":97981165.379486501},{"$f":"SUMIF(AB155:AB173,\">0\")","v":97124253.006609783},1233283902.7167463,1209632246.6271737,2139685920.5679998,2137330452.4164505,47159902.614486508,46302990.241609789,{"$f":"SUM(AI155:AI173)","v":100000},{"$f":"AA19/$AI19","v":979.81165379486504},{"$f":"AB19/$AI19","v":971.24253006609786},{"$f":"AC19/$AI19","v":12332.839027167463},{"$f":"AD19/$AI19","v":12096.322466271737},21396.859205679997,21373.304524164505,471.59902614486509,463.02990241609791]
["SIMD Q4",null,"N/A",null,"male",4,null,{"$f":"SUM(H193:H211)","v":442000},{"$f":"SUM(I193:I211)","v":0},{"$f":"SUM(J193:J211)","v":23543},{"$f":"SUMIF(K193:K211,\">0\")","v":3677.9310693265002},3638.3601484866999,51408.311866832308,50329.598931590808,96488.785523970117,96373.483509012411,2064.4509336839001,2024.8800128440998,null,null,null,null,null,null,null,null,{"$f":"SUMIF(AA193:AA211,\">0\")","v":78062290.281745389},{"$f":"SUMIF(AB193:AB211,\">0\")","v":77359509.830712259},980367705.98613954,960972598.28761876,1887278918.7550004,1885199590.5839062,37463812.31174539,36761031.86071226,{"$f":"SUM(AI193:AI211)","v":100000},780.62290281745391,773.59509830712261,9803.6770598613948,9609.7259828761871,18872.789187550003,18851.995905839063,374.63812311745392,367.61031860712262]
["SIMD Q5 (least deprived)",null,"N/A",null,"male",5,null,{"$f":"SUM(H231:H249)","v":435668},{"$f":"SUM(I231:I249)","v":0},{"$f":"SUM(J231:J249)","v":23372},{"$f":"SUMIF(K231:K249,\">0\")","v":2634.9923409557},2607.375241015,36612.532142376287,35849.396772237786,83333.021717049385,83233.016163085791,1450.4783098696,1422.8612099289001,null,null,null,null,null,null,null,null,{"$f":"SUMIF(AA231:AA249,\">0\")","v":57686483.147305906},{"$f":"SUMIF(AB231:AB249,\">0\")","v":57177523.132374234},722811806.08671582,708689389.77023971,1678619442.506,1676770726.3398662,27602812.997305911,27093852.982374236,{"$f":"SUM(AI231:AI249)","v":100000},{"$f":"AA21/$AI21","v":576.8648314730591},571.77523132374233,7228.1180608671584,7086.8938977023972,16786.194425059999,16767.707263398661,276.02812997305909,270.93852982374239]
[null,"Female 0-4",2.0384007,81.468401,"female","ALL",null,{"$f":"SUM(H60,H98,H136,H174,H212)","v":0},0,0,{"$f":"SUM(K60,K98,K136,K174,K212)","v":{"$error":"#VALUE!"}},{"$error":"#VALUE!"},{"$error":"#VALUE!"},{"$error":"#VALUE!"},{"$error":"#VALUE!"},{"$error":"#VALUE!"},{"$error":"#VALUE!"},{"$error":"#VALUE!"},null,null,null,null,null,null,null,null,{"$f":"SUM(AA60,AA98,AA136,AA174,AA212)","v":{"$error":"#VALUE!"}},{"$error":"#VALUE!"},{"$error":"#VALUE!"},{"$error":"#VALUE!"},{"$error":"#VALUE!"},{"$error":"#VALUE!"},{"$error":"#VALUE!"},{"$error":"#VALUE!"},25000,{"$error":"#VALUE!"},{"$error":"#VALUE!"},{"$error":"#VALUE!"},{"$error":"#VALUE!"},{"$error":"#VALUE!"},{"$error":"#VALUE!"},{"$error":"#VALUE!"},{"$error":"#VALUE!"}]
[null,"Female 5-9",6.9792794999999996,81.439279999999997,"female","ALL",null,{"$f":"SUM(H61,H99,H137,H175,H213)","v":0},0,0,{"$f":"SUM(K61,K99,K137,K175,K213)","v":{"$error":"#VALUE!"}},{"$error":"#VALUE!"},{"$f":"SUM(M61,M99,M137,M175,M213)","v":{"$error":"#VALUE!"}},{"$error":"#VALUE!"},{"$error":"#VALUE!"},{"$error":"#VALUE!"},{"$error":"#VALUE!"},{"$error":"#VALUE!"},null,null,null,null,null,null,null,null,{"$f":"SUM(AA61,AA99,AA137,AA175,AA213)","v":{"$error":"#VALUE!"}},{"$error":"#VALUE!"},{"$error":"#VALUE!"},{"$error":"#VALUE!"},{"$error":"#VALUE!"},{"$error":"#VALUE!"},{"$error":"#VALUE!"},{"$error":"#VALUE!"},27500,{"$error":"#VALUE!"},{"$error":"#VALUE!"},{"$error":"#VALUE!"},{"$error":"#VALUE!"},{"$error":"#VALUE!"},{"$error":"#VALUE!"},{"$error":"#VALUE!"},{"$error":"#VALUE!"}]
[null,"Female 10-15",12.478312000000001,81.948309999999992,"female","ALL",null,{"$f":"SUM(H62,H100,H138,H176,H214)","v":0},0,0,{"$f":"SUM(K62,K100,K138,K176,K214)","v":{"$error":"#VALUE!"}},{"$f":"SUM(L62,L100,L138,L176,L214)","v":{"$error":"#VALUE!"}},{"$error":"#VALUE!"},{"$error":"#VALUE!"},{"$f":"SUM(O62,O100,O138,O176,O214)","v":{"$error":"#VALUE!"}},{"$f":"SUM(P62,P100,P138,P176,P214)","v":{"$error":"#VALUE!"}},{"$error":"#VALUE!"},{"$error":"#VALUE!"},null,null,null,null,null,null,null,null,{"$f":"SUM(AA62,AA100,AA138,AA176,AA214)","v":{"$error":"#VALUE!"}},{"$error":"#VALUE!"},{"$error":"#VALUE!"},{"$error":"#VALUE!"},{"$error":"#VALUE!"},{"$error":"#VALUE!"},{"$error":"#VALUE!"},{"$error":"#VALUE!"},33000,{"$error":"#VALUE!"},{"$error":"#VALUE!"},{"$error":"#VALUE!"},{"$error":"#VALUE!"},{"$error":"#VALUE!"},{"$error":"#VALUE!"},{"$error":"#VALUE!"},{"$error":"#VALUE!"}]
["All quintiles","Female 16-19",17.570053000000001,81.100049999999996,"female","ALL",null,{"$f":"SUM(H63,H101,H139,H177,H215)","v":118803},0,8065,22.937528558899999,22.268825972799998,1434.2835919752999,1392.4696212727999,12465.290273103001,12438.287904461,22.937528558899999,22.268825972799998,null,null,null,null,null,null,null,null,{"$f":"SUM(AA63,AA101,AA139,AA177,AA215)","v":426138.05506830214},413710.45800286322,26646411.305004366,25869313.697789449,231245008.5,230744074.79095533,426138.05506830214,413710.45800286322,22000,19.369911594013733,18.805020818311963,1211.2005138638349,1175.8778953540659,10511.13675,10488.367035952515,19.369911594013733,18.805020818311963]
[null,"Female 20-24",22.077057,81.667060000000006,"female","ALL",null,{"$f":"SUM(H64,H102,H140,H178,H216)","v":182279},0,12375,51.980894246399991,50.465793574299994,3045.5607498392005,2956.7909969154998,21506.627044283003,21460.038168990199,51.980894246399991,50.465793574299994,null,null,null,null,null,null,null,null,{"$f":"SUM(AA64,AA102,AA140,AA178,AA216)","v":852528.01087087987},827666.76517379715,49949618.714507885,48492998.254531115,353188002.77999997,352422886.44129515,852528.01087087987,827666.76517379715,30000,28.417600362362663,27.588892172459904,1664.9872904835961,1616.4332751510372,11772.933426,11747.429548043172,28.417600362362663,27.588892172459904]
[null,"Female 25-29",26.975186999999998,81.645189999999999,"female","ALL",null,{"$f":"SUM(H65,H103,H141,H179,H217)","v":187975},0,12762,84.832940867699989,82.442252558800007,4552.9841908683002,4424.6759421575998,25701.254892726301,25645.681475537698,84.832940867699989,82.442252558800007,null,null,null,null,null,null,null,null,{"$f":"SUM(AA65,AA103,AA141,AA179,AA217)","v":1293008.0387800566},1256432.1567740664,69395745.320350081,67432717.623361215,399497115.36000001,398633096.19570339,1293008.0387800566,1256432.1567740664,30000,43.10026795933522,41.881071892468881,2313.1915106783358,2247.7572541120403,13316.570512,13287.769873190113,43.10026795933522,41.881071892468881]
[null,"Female 30-34",31.999904999999998,81.799899999999994,"female","ALL",null,{"$f":"SUM(H66,H104,H142,H180,H218)","v":179608},0,12193,122.8544277126,119.38938531960001,5995.2954581027998,5826.2014066496004,27681.461214470404,27621.605442423202,122.8544277126,119.38938531960001,null,null,null,null,null,null,null,null,{"$f":"SUM(AA66,AA104,AA142,AA180,AA218)","v":2147391.3528751777},2086657.7769968808,104792687.28335278,101828889.08415994,491095913.10000002,490033853.16555732,2147391.3528751777,2086657.7769968808,32500,66.073580088467011,64.204854676827097,3224.3903779493162,3133.1965872049213,15110.643480000001,15077.964712786379,66.073580088467011,64.204854676827097]
[null,"Female 35-39",36.918118,81.898120000000006,"female","ALL",null,{"$f":"SUM(H67,H105,H143,H181,H219)","v":166485},0,11302,168.2348925755,163.4526210148,7398.9709119402996,7188.6465991360992,28578.8459945453,28517.0209760418,168.2348925755,163.4526210148,null,null,null,null,null,null,null,null,{"$f":"SUM(AA67,AA105,AA143,AA181,AA219)","v":3513022.016917415},3413084.6807041415,154502715.33007243,150107471.08353651,598519214.23000002,597224382.32030749,3513022.016917415,3413084.6807041415,35000,100.37205762621186,97.51670516297547,4414.3632951449263,4288.7848881010432,17100.548977999999,17063.553780580212,100.37205762621186,97.51670516297547]
[null,"Female 40-44",42.077438000000001,82.30744,"female","ALL",null,{"$f":"SUM(H68,H106,H144,H182,H220)","v":172709},0,11724,265.84929772510003,258.28472414779998,10429.268481454199,10132.510244887499,33419.637561234005,33347.339033137803,265.84929772510003,258.28472414779998,null,null,null,null,null,null,null,null,{"$f":"SUM(AA68,AA106,AA144,AA182,AA220)","v":5446515.2934737187},5291635.4978055423,213666805.85600311,207590871.16217953,681457961.73000002,679983787.63298213,5446515.2934737187,5291635.4978055423,35000,155.61472267067768,151.18958565158692,6104.7658816000885,5931.1677474908438,19470.227478000001,19428.108218085203,155.61472267067768,151.18958565158692]
[null,"Female 45-49",47.025772000000003,82.585769999999997,"female","ALL",null,{"$f":"SUM(H69,H107,H145,H183,H221)","v":202829},0,13770,475.68211571190005,462.17531175080006,16439.572967639,15972.7778497571,44462.663781813499,44366.472081307598,475.68211571190005,462.17531175080006,null,null,null,null,null,null,null,null,{"$f":"SUM(AA69,AA107,AA145,AA183,AA221)","v":8292716.3520793794},8057447.1063370146,286596260.54243004,278465355.88011426,771783001.00999999,770113390.89827776,8292716.3520793794,8057447.1063370146,35000,236.93475291655369,230.21277446677183,8188.4645869265723,7956.1530251461218,22050.942886000001,22003.239739950794,236.93475291655369,230.21277446677183]
[null,"Female 50-54",51.990825999999998,82.980829999999997,"female","ALL",null,{"$f":"SUM(H70,H108,H146,H184,H222)","v":209262},0,14206,746.8786640118999,725.67999532190004,22398.894121231599,21763.1459624237,51924.448520960301,51812.117102078206,746.8786640118999,725.67999532190004,null,null,null,null,null,null,null,null,{"$f":"SUM(AA70,AA108,AA146,AA184,AA222)","v":12641048.087772638},12282688.407699725,379105082.7164948,368357874.47766733,874448019.83000016,872556400.66427374,12641048.087772638,12282688.407699725,35000,361.17280250778964,350.93395450570642,10831.573791899851,10524.510699361923,24984.229138000006,24930.182876122108,361.17280250778964,350.93395450570642]
[null,"Female 55-59",56.953040999999999,83.473039999999997,"female","ALL",null,{"$f":"SUM(H71,H109,H147,H185,H223)","v":190084},0,12904,1032.7142296594,1005.4786620814,26354.866108193601,25659.814450838603,53414.8733387307,53299.84185687,1032.7142296594,1005.4786620814,null,null,null,null,null,null,null,null,{"$f":"SUM(AA71,AA109,AA147,AA185,AA223)","v":17881782.758804359},17410514.683541395,456343078.12290341,444316317.31346071,919934892.56499994,917953847.04105127,17881782.758804359,17410514.683541395,32500,550.20870027090336,535.70814410896594,14041.32548070472,13671.271301952636,28305.689001999999,28244.733755109271,550.20870027090336,535.70814410896594]
[null,"Female 60-64",61.947387999999997,84.167389999999997,"female","ALL",null,{"$f":"SUM(H72,H110,H148,H186,H224)","v":165146},0,11211,1358.5118356372002,1322.7205265520001,28827.623869245101,28068.1322188745,52377.011972582302,52264.213470298106,1358.5118356372002,1322.7205265520001,null,null,null,null,null,null,null,null,{"$f":"SUM(AA72,AA110,AA148,AA186,AA224)","v":25199479.239744052},24536353.003186673,534732999.86632812,520661459.80032736,962839226.39999986,960765803.1875577,25199479.239744052,24536353.003186673,30000,839.98264132480176,817.87843343955581,17824.433328877603,17355.381993344246,32094.640879999995,32025.526772918591,839.98264132480176,817.87843343955581]
[null,"Female 65-69",67.063927000000007,85.193929999999995,"female","ALL",null,{"$f":"SUM(H73,H111,H149,H187,H225)","v":164057},0,0,2067.3619805892995,2067.3619805892995,35413.916929580599,35413.916929580599,58973.220499182193,58973.220499182193,2067.3619805892995,2067.3619805892995,null,null,null,null,null,null,null,null,{"$f":"SUM(AA73,AA111,AA149,AA187,AA225)","v":35605067.575000003},35605067.575000003,609914914.37495196,609914914.37495196,1003826931.03,1003826931.03,35605067.575000003,35605067.575000003,27500,1294.72973,1294.72973,22178.724159089161,22178.724159089161,36502.797491999998,36502.797491999998,1294.72973,1294.72973]
[null,"Female 70-74",71.938164,86.248159999999999,"female","ALL",null,{"$f":"SUM(H74,H112,H150,H188,H226)","v":127150},0,0,2428.3980437462005,2428.3980437462005,32321.968248669702,32321.968248669702,51815.942235666997,51815.942235666997,2428.3980437462005,2428.3980437462005,null,null,null,null,null,null,null,null,{"$f":"SUM(AA74,AA112,AA150,AA188,AA226)","v":48810168},48810168,649663140.83932722,649663140.83932722,1031603609.2000002,1031603609.2000002,48810168,48810168,25000,1952.40672,1952.40672,25986.525633573088,25986.525633573088,41264.144368000008,41264.144368000008,1952.40672,1952.40672]
[null,"Female 75-79",76.942824999999999,87.812830000000005,"female","ALL",null,{"$f":"SUM(H75,H113,H151,H189,H227)","v":104331},0,0,3079.3830758716003,3079.3830758716003,30393.526355768099,30393.526355768099,48655.3933290477,48655.3933290477,0,0,null,null,null,null,null,null,null,null,{"$f":"SUM(AA75,AA113,AA151,AA189,AA227)","v":59413070.319999993},59413070.319999993,586407301.12375224,586407301.12375224,935996664.24000001,935996664.24000001,0,0,20000,2970.6535159999999,2970.6535159999999,29320.365056187613,29320.365056187613,46799.833211999998,46799.833211999998,0,0]
[null,"Female 80-84",81.856712000000002,89.736710000000002,"female","ALL",null,{"$f":"SUM(H76,H114,H152,H190,H228)","v":80217},0,0,3572.4471192912997,3572.4471192912997,24578.429035829799,24578.429035829799,42391.156082702597,42391.156082702597,0,0,null,null,null,null,null,null,null,null,{"$f":"SUM(AA76,AA114,AA152,AA190,AA228)","v":55901264.725000001},55901264.725000001,384600589.50546885,384600589.50546885,661963668.95000005,661963668.95000005,0,0,12500,4472.1011779999999,4472.1011779999999,30768.047160437509,30768.047160437509,52957.093516000001,52957.093516000001,0,0]
[null,"Female 85-89",86.730819999999994,92.220819999999989,"female","ALL",null,{"$f":"SUM(H77,H115,H153,H191,H229)","v":49691},0,0,3276.5000444222001,3276.5000444222001,14711.485199455599,14711.485199455599,29525.065473962801,29525.065473962801,0,0,null,null,null,null,null,null,null,null,{"$f":"SUM(AA77,AA115,AA153,AA191,AA229)","v":50101859.864999995},50101859.864999995,224957350.79384872,224957350.79384872,448983820.05000007,448983820.05000007,0,0,7500,6680.247981999999,6680.247981999999,29994.31343917983,29994.31343917983,59864.509340000011,59864.509340000011,0,0]
[null,"Female 90+",92.779342999999997,96.279340000000005,"female","ALL",null,{"$f":"SUM(H78,H116,H154,H192,H230)","v":29050},0,0,3080.232671234,3080.232671234,7700.5724373870007,7700.5724373870007,19930.146163744299,19930.146163744299,0,0,null,null,null,null,null,null,null,null,{"$f":"SUM(AA78,AA116,AA154,AA192,AA230)","v":54434845.389999993},54434845.389999993,136086950.17046392,136086950.17046392,348509125.86000001,348509125.86000001,0,0,5000,10886.969077999998,10886.969077999998,27217.390034092783,27217.390034092783,69701.825171999997,69701.825171999997,0,0]
[null,"Male 0-4",2.0320822999999999,77.402082000000007,"male","ALL",null,{"$f":"SUM(H79,H117,H155,H193,H231)","v":0},0,0,{"$error":"#VALUE!"},{"$error":"#VALUE!"},{"$error":"#VALUE!"},{"$error":"#VALUE!"},{"$error":"#VALUE!"},{"$error":"#VALUE!"},{"$error":"#VALUE!"},{"$error":"#VALUE!"},null,null,null,null,null,null,null,null,{"$f":"SUM(AA79,AA117,AA155,AA193,AA231)","v":{"$error":"#VALUE!"}},{"$error":"#VALUE!"},{"$error":"#VALUE!"},{"$error":"#VALUE!"},{"$error":"#VALUE!"},{"$error":"#VALUE!"},{"$error":"#VALUE!"},{"$error":"#VALUE!"},25000,{"$error":"#VALUE!"},{"$error":"#VALUE!"},{"$error":"#VALUE!"},{"$error":"#VALUE!"},{"$error":"#VALUE!"},{"$error":"#VALUE!"},{"$error":"#VALUE!"},{"$error":"#VALUE!"}]
[null,"Male 5-9",6.9784756000000003,77.398476000000002,"male","ALL",null,{"$f":"SUM(H80,H118,H156,H194,H232)","v":0},0,0,{"$error":"#VALUE!"},{"$error":"#VALUE!"},{"$error":"#VALUE!"},{"$error":"#VALUE!"},{"$error":"#VALUE!"},{"$error":"#VALUE!"},{"$error":"#VALUE!"},{"$error":"#VALUE!"},null,null,null,null,null,null,null,null,{"$f":"SUM(AA80,AA118,AA156,AA194,AA232)","v":{"$error":"#VALUE!"}},{"$error":"#VALUE!"},{"$error":"#VALUE!"},{"$error":"#VALUE!"},{"$error":"#VALUE!"},{"$error":"#VALUE!"},{"$error":"#VALUE!"},{"$error":"#VALUE!"},27500,{"$error":"#VALUE!"},{"$error":"#VALUE!"},{"$error":"#VALUE!"},{"$error":"#VALUE!"},{"$error":"#VALUE!"},{"$error":"#VALUE!"},{"$error":"#VALUE!"},{"$error":"#VALUE!"}]
[null,"Male 10-15",12.471144000000001,77.921140000000008,"male","ALL",null,{"$f":"SUM(H81,H119,H157,H195,H233)","v":0},0,0,{"$error":"#VALUE!"},{"$error":"#VALUE!"},{"$error":"#VALUE!"},{"$error":"#VALUE!"},{"$error":"#VALUE!"},{"$error":"#VALUE!"},{"$error":"#VALUE!"},{"$error":"#VALUE!"},null,null,null,null,null,null,null,null,{"$f":"SUM(AA81,AA119,AA157,AA195,AA233)","v":{"$error":"#VALUE!"}},{"$error":"#VALUE!"},{"$error":"#VALUE!"},{"$error":"#VALUE!"},{"$error":"#VALUE!"},{"$error":"#VALUE!"},{"$error":"#VALUE!"},{"$error":"#VALUE!"},33000,{"$error":"#VALUE!"},{"$error":"#VALUE!"},{"$error":"#VALUE!"},{"$error":"#VALUE!"},{"$error":"#VALUE!"},{"$error":"#VALUE!"},{"$error":"#VALUE!"},{"$error":"#VALUE!"}]
[null,"Male 16-19",17.556318000000001,77.07632000000001,"male","ALL",null,{"$f":"SUM(H82,H120,H158,H196,H234)","v":124418},0,8447,56.983552681700004,54.963042520400002,3334.6776169002001,3216.4373582198996,8826.1892314548004,8807.0675443615,56.983552681700004,54.963042520400002,null,null,null,null,null,null,null,null,{"$f":"SUM(AA82,AA120,AA158,AA196,AA234)","v":1013116.8200293372},977175.79994944704,59287598.334350705,57184329.767393313,156551621.59999999,156212455.21875218,1013116.8200293372,977175.79994944704,22000,46.050764546788052,44.417081815883954,2694.8908333795775,2599.2877166996959,7115.9827999999998,7100.5661463069173,46.050764546788052,44.417081815883954]
[null,"Male 20-24",22.054632000000002,77.704629999999995,"male","ALL",null,{"$f":"SUM(H83,H121,H159,H197,H235)","v":181688},0,12333,117.5306195161,113.36527589450002,6423.0481214935999,6195.412100904,15171.5733622719,15138.7103571558,117.5306195161,113.36527589450002,null,null,null,null,null,null,null,null,{"$f":"SUM(AA83,AA121,AA159,AA197,AA235)","v":1939994.0523168959},1871193.0283088877,106020671.07912984,102260695.25469671,250437460.62000003,249894980.95400116,1939994.0523168959,1871193.0283088877,30000,64.666468410563198,62.373100943629588,3534.0223693043281,3408.6898418232236,8347.9153540000007,8329.8326984667056,64.666468410563198,62.373100943629588]
[null,"Male 25-29",26.959762999999999,77.789760000000001,"male","ALL",null,{"$f":"SUM(H84,H122,H160,H198,H236)","v":186149},0,12637,180.07062391879998,173.56109828190003,8972.9186496619986,8648.5490067038008,18844.707746336899,18803.859745849,180.07062391879998,173.56109828190003,null,null,null,null,null,null,null,null,{"$f":"SUM(AA84,AA122,AA160,AA198,AA236)","v":2809024.7402221425},2707026.6774684633,139973694.37819639,134891131.21717378,298066844.88,297420670.51706553,2809024.7402221425,2707026.6774684633,30000,93.63415800740475,90.234222582282115,4665.7898126065465,4496.3710405724596,9935.5614960000003,9914.02235056885,93.63415800740475,90.234222582282115]
[null,"Male 30-34",31.981521999999998,78.061520000000002,"male","ALL",null,{"$f":"SUM(H85,H123,H161,H199,H237)","v":172305},0,11698,242.74135665029999,233.9602844115,10942.7798723128,10546.9291533498,20810.1130147968,20765.001079829799,242.74135665029999,233.9602844115,null,null,null,null,null,null,null,null,{"$f":"SUM(AA85,AA123,AA161,AA199,AA237)","v":4444862.2506354954},4283517.5533406772,200374381.36892354,193100962.73756164,385911765.13499999,385075102.19358385,4444862.2506354954,4283517.5533406772,32500,136.76499232724601,131.80054010279008,6165.3655805822627,5941.5680842326656,11874.208157999999,11848.464682879503,136.76499232724601,131.80054010279008]
[null,"Male 35-39",36.926009999999998,78.336009999999987,"male","ALL",null,{"$f":"SUM(H86,H124,H162,H200,H238)","v":161268},0,10948,321.66095665539996,310.31935732009998,12998.319258444799,12540.005229305199,22880.108764238601,22830.548143338601,321.66095665539996,310.31935732009998,null,null,null,null,null,null,null,null,{"$f":"SUM(AA86,AA124,AA162,AA200,AA238)","v":6950213.9103893396},6704889.6721962355,280858144.11883503,270944591.65344894,495329032.51999998,494256065.81467521,6950213.9103893396,6704889.6721962355,35000,198.57754029683827,191.56827634846388,8024.5184033952864,7741.274047241398,14152.258071999999,14121.601880419292,198.57754029683827,191.56827634846388]
[null,"Male 40-44",42.067703000000002,78.907700000000006,"male","ALL",null,{"$f":"SUM(H87,H125,H163,H201,H239)","v":164929},0,11197,475.94165352329998,459.11566482789999,17057.747434450099,16454.7040500849,27796.411228545301,27736.191834191297,475.94165352329998,459.11566482789999,null,null,null,null,null,null,null,null,{"$f":"SUM(AA87,AA125,AA163,AA201,AA239)","v":10240833.89251761},9879609.9579953104,367031455.98532915,354085191.25572121,594504097.52999997,593216228.88629138,10240833.89251761,9879609.9579953104,35000,292.59525407193172,282.27457022843743,10486.613028152262,10116.719750163464,16985.831357999999,16949.035111036897,292.59525407193172,282.27457022843743]
[null,"Male 45-49",47.038155000000003,79.418149999999997,"male","ALL",null,{"$f":"SUM(H88,H126,H164,H202,H240)","v":189422},0,12860,794.74843851100002,766.98080142180004,24939.202026733103,24067.853713712,38076.879094208001,37994.409846013703,794.74843851100002,766.98080142180004,null,null,null,null,null,null,null,null,{"$f":"SUM(AA88,AA126,AA164,AA202,AA240)","v":14891887.411697488},14372957.388945621,467307352.51963222,451023331.00032526,709212168.1400001,707676229.30001903,14891887.411697488,14372957.388945621,35000,425.48249747707109,410.6559253984463,13351.638643418064,12886.380885723578,20263.204804000005,20219.320837143401,425.48249747707109,410.6559253984463]
[null,"Male 50-54",51.998646000000001,79.988649999999993,"male","ALL",null,{"$f":"SUM(H89,H127,H165,H203,H241)","v":197429},0,13402,1202.0630296704001,1160.1133271232,32443.685979056198,31311.4633395085,47294.710130008105,47192.289940433497,1202.0630296704001,1160.1133271232,null,null,null,null,null,null,null,null,{"$f":"SUM(AA89,AA127,AA165,AA203,AA241)","v":21631193.813358627},20878696.460400827,583826007.5473243,563516100.9810046,845753788.74000001,843922422.23152936,21631193.813358627,20878696.460400827,35000,618.03410895310367,596.53418458288081,16680.743072780693,16100.460028028703,24164.393963999999,24112.069206615124,618.03410895310367,596.53418458288081]
[null,"Male 55-59",56.950867000000002,80.660870000000003,"male","ALL",null,{"$f":"SUM(H90,H128,H166,H204,H242)","v":180737},0,12269,1595.0356546933999,1544.4128587289999,36223.264503194099,35073.620654974198,51591.136928716893,51479.740021298298,1595.0356546933999,1544.4128587289999,null,null,null,null,null,null,null,null,{"$f":"SUM(AA90,AA128,AA166,AA204,AA242)","v":29140835.312193796},28218888.972161796,661788457.36242723,640851053.21446204,936266656.77999997,934245242.97992301,29140835.312193796,28218888.972161796,32500,896.64108652903985,868.27350683574753,20362.721764997761,19718.493945060371,28808.204824,28746.007476305324,896.64108652903985,868.27350683574753]
[null,"Male 60-64",61.942988999999997,81.612989999999996,"male","ALL",null,{"$f":"SUM(H91,H129,H167,H205,H243)","v":156406},0,10617,1989.4068299936998,1926.3369528426999,37142.227505389201,35964.712835910199,53033.3207283355,52918.806212699899,1989.4068299936998,1926.3369528426999,null,null,null,null,null,null,null,null,{"$f":"SUM(AA91,AA129,AA167,AA205,AA243)","v":39112754.467475951},37878764.761107109,730235165.02052987,707196575.96863532,1031793595.7400001,1029565979.2860526,39112754.467475951,37878764.761107109,30000,1303.7584822491983,1262.6254920369036,24341.172167350996,23573.21919895451,34393.119858000005,34318.865976201756,1303.7584822491983,1262.6254920369036]
[null,"Male 65-69",67.054419999999993,82.954419999999999,"male","ALL",null,{"$f":"SUM(H92,H130,H168,H206,H244)","v":153467},0,0,2845.4399102364,2845.4399102364,42397.054662522496,42397.054662522496,62174.331774444901,62174.331774444901,2845.4399102364,2845.4399102364,null,null,null,null,null,null,null,null,{"$f":"SUM(AA92,AA130,AA168,AA206,AA244)","v":52584699.035000004},52584699.035000004,783512015.62150264,783512015.62150264,1133962873.1749997,1133962873.1749997,52584699.035000004,52584699.035000004,27500,1912.1708740000001,1912.1708740000001,28491.346022600097,28491.346022600097,41235.013569999988,41235.013569999988,1912.1708740000001,1912.1708740000001]
[null,"Male 70-74",71.891098,84.341099999999997,"male","ALL",null,{"$f":"SUM(H93,H131,H169,H207,H245)","v":111869},0,0,2974.7798110531003,2974.7798110531003,34061.234786117602,34061.234786117602,53814.804399198903,53814.804399198903,2974.7798110531003,2974.7798110531003,null,null,null,null,null,null,null,null,{"$f":"SUM(AA93,AA131,AA169,AA207,AA245)","v":68541049.400000006},68541049.400000006,784795152.7120986,784795152.7120986,1223954579.8000002,1223954579.8000002,68541049.400000006,68541049.400000006,25000,2741.6419760000003,2741.6419760000003,31391.806108483943,31391.806108483943,48958.183192000004,48958.183192000004,2741.6419760000003,2741.6419760000003]
[null,"Male 75-79",76.907700000000006,86.357700000000008,"male","ALL",null,{"$f":"SUM(H94,H132,H170,H208,H246)","v":82515},0,0,3204.9415322628001,3204.9415322628001,27081.755947620601,27081.755947620601,47629.863037836702,47629.863037836702,0,0,null,null,null,null,null,null,null,null,{"$f":"SUM(AA94,AA132,AA170,AA208,AA246)","v":79500841.640000001},79500841.640000001,671782111.85799837,671782111.85799837,1170005851.5599999,1170005851.5599999,0,0,20000,3975.0420819999999,3975.0420819999999,33589.105592899919,33589.105592899919,58500.292578000001,58500.292578000001,0,0]
[null,"Male 80-84",81.797089,88.627089999999995,"male","ALL",null,{"$f":"SUM(H95,H133,H171,H209,H247)","v":56201},0,0,3103.9484791937998,3103.9484791937998,18096.022737648404,18096.022737648404,38436.063031124599,38436.063031124599,0,0,null,null,null,null,null,null,null,null,{"$f":"SUM(AA95,AA133,AA171,AA209,AA247)","v":71140704.025000006},71140704.025000006,414750375.60645545,414750375.60645545,869840774.2249999,869840774.2249999,0,0,12500,5691.2563220000002,5691.2563220000002,33180.030048516433,33180.030048516433,69587.261937999996,69587.261937999996,0,0]
[null,"Male 85-89",86.630752999999999,91.420750000000012,"male","ALL",null,{"$f":"SUM(H96,H134,H172,H210,H248)","v":28287},0,0,2197.8595526198001,2197.8595526198001,8329.8811108502996,8329.8811108502996,22836.6916996447,22836.6916996447,0,0,null,null,null,null,null,null,null,null,{"$f":"SUM(AA96,AA134,AA172,AA210,AA248)","v":60596740.920000009},60596740.920000009,229661466.2965751,229661466.2965751,619589003.44500005,619589003.44500005,0,0,7500,8079.5654560000012,8079.5654560000012,30621.528839543345,30621.528839543345,82611.867126000012,82611.867126000012,0,0]
[null,"Male 90+",92.215477000000007,95.515479999999997,"male","ALL",null,{"$f":"SUM(H97,H135,H173,H211,H249)","v":12017},0,0,1387.4918022534998,1387.4918022534998,3191.2353076584004,3191.2353076584004,11815.7848009063,11815.7848009063,0,0,null,null,null,null,null,null,null,null,{"$f":"SUM(AA97,AA135,AA173,AA211,AA249)","v":60083927.029999994},60083927.029999994,138193212.42077881,138193212.42077881,503620030.09000003,503620030.09000003,0,0,5000,{"$f":"AA59/$AI59","v":12016.785405999999},12016.785405999999,{"$f":"AC59/$AI59","v":27638.642484155764},27638.642484155764,100724.006018,100724.006018,0,0]
[null,"Female 0-4",2.0384007,81.468401,"female",1,{"$f":"HLOOKUP(Calculations!$E$2,'Prevalence Rates'!$C$3:$BC$249,'Prevalence Rates'!$BD60,FALSE)","v":0},{"$f":"HLOOKUP(Calculations!$E$2,'Population 2016'!$C$3:$BC$249,'Population 2016'!BD60,FALSE)","v":0},0,{"$f":"HLOOKUP(Results!E$4,Targeting!$C$3:$F$249,Targeting!$G60,FALSE)","v":0},{"$f":"IF(AND(OR(Calculations!$E$2=\"Orkney Health Board\",Calculations!$E$2=\"Orkney Islands Local Authority\"),$F60=1),0,IF(AND(OR(Calculations!$E$2=\"Shetland Health Board\",Calculations!$E$2=\"Western Isles Health Board\",Calculations!$E$2=\"Shetland Islands Local Authority\",Calculations!$E$2=\"Eilean Siar Local Authority\"),OR($F60=1,$F60=5)),0,new_ci(VALUE(LEFT(Options!$B$24,2)),$C60,$E60,$F60,2016,$I60,1,$H60,$G60*$H60,Options!$B$8)))","v":{"$error":"#VALUE!"}},{"$f":"IF(AND(OR(Calculations!$E$2=\"Orkney Health Board\",Calculations!$E$2=\"Orkney Islands Local Authority\"),$F60=1),0,IF(AND(OR(Calculations!$E$2=\"Shetland Health Board\",Calculations!$E$2=\"Western Isles Health Board\",Calculations!$E$2=\"Shetland Islands Local Authority\",Calculations!$E$2=\"Eilean Siar Local Authority\"),OR($F60=1,$F60=5)),0,new_ci(VALUE(LEFT(Options!$B$24,2)),$C60,$E60,$F60,2016,$I60+$J60,1,$H60,$G60*$H60,Options!$B$8)))","v":{"$error":"#VALUE!"}},{"$f":"IF(AND(OR(Calculations!$E$2=\"Orkney Health Board\",Calculations!$E$2=\"Orkney Islands Local Authority\"),$F60=1),0,IF(AND(OR(Calculations!$E$2=\"Shetland Health Board\",Calculations!$E$2=\"Western Isles Health Board\",Calculations!$E$2=\"Shetland Islands Local Authority\",Calculations!$E$2=\"Eilean Siar Local Authority\"),OR($F60=1,$F60=5)),0,new_yllv2(VALUE(LEFT(Options!$B$24,2)),$C60,$D60,$E60,$F60,2016,$I60,1,$H60,$G60*$H60,Options!$B$8)))","v":{"$error":"#VALUE!"}},{"$f":"IF(AND(OR(Calculations!$E$2=\"Orkney Health Board\",Calculations!$E$2=\"Orkney Islands Local Authority\"),$F60=1),0,IF(AND(OR(Calculations!$E$2=\"Shetland Health Board\",Calculations!$E$2=\"Western Isles Health Board\",Calculations!$E$2=\"Shetland Islands Local Authority\",Calculations!$E$2=\"Eilean Siar Local Authority\"),OR($F60=1,$F60=5)),0,new_yllv2(VALUE(LEFT(Options!$B$24,2)),$C60,$D60,$E60,$F60,2016,$I60+$J60,1,$H60,$G60*$H60,Options!$B$8)))","v":{"$error":"#VALUE!"}},{"$f":"IF(AND(OR(Calculations!$E$2=\"Orkney Health Board\",Calculations!$E$2=\"Orkney Islands Local Authority\"),$F60=1),0,IF(AND(OR(Calculations!$E$2=\"Shetland Health Board\",Calculations!$E$2=\"Western Isles Health Board\",Calculations!$E$2=\"Shetland Islands Local Authority\",Calculations!$E$2=\"Eilean Siar Local Authority\"),OR($F60=1,$F60=5)),0,hosp_count(VALUE(LEFT(Options!$B$24,2)),$C60,$E60,$F60,2016,$I60,1,$H60,$G60*$H60, Options!$B$8)))","v":{"$error":"#VALUE!"}},{"$f":"IF(AND(OR(Calculations!$E$2=\"Orkney Health Board\",Calculations!$E$2=\"Orkney Islands Local Authority\"),$F60=1),0,IF(AND(OR(Calculations!$E$2=\"Shetland Health Board\",Calculations!$E$2=\"Western Isles Health Board\",Calculations!$E$2=\"Shetland Islands Local Authority\",Calculations!$E$2=\"Eilean Siar Local Authority\"),OR($F60=1,$F60=5)),0,hosp_count(VALUE(LEFT(Options!$B$24,2)),$C60,$E60,$F60,2016,$I60+$J60,1,$H60,$G60*$H60, Options!$B$8)))","v":{"$error":"#VALUE!"}},{"$f":"IF(AND(OR(Calculations!$E$2=\"Orkney Health Board\",Calculations!$E$2=\"Orkney Islands Local Authority\"),$F60=1),0,IF(AND(OR(Calculations!$E$2=\"Shetland Health Board\",Calculations!$E$2=\"Western Isles Health Board\",Calculations!$E$2=\"Shetland Islands Local Authority\",Calculations!$E$2=\"Eilean Siar Local Authority\"),OR($F60=1,$F60=5)),0,prem_mort(VALUE(LEFT(Options!$B$24,2)),$C60,$E60,$F60,2016,$I60,1,$H60,$G60*$H60,Options!$B$8)))","v":{"$error":"#VALUE!"}},{"$f":"IF(AND(OR(Calculations!$E$2=\"Orkney Health Board\",Calculations!$E$2=\"Orkney Islands Local Authority\"),$F60=1),0,IF(AND(OR(Calculations!$E$2=\"Shetland Health Board\",Calculations!$E$2=\"Western Isles Health Board\",Calculations!$E$2=\"Shetland Islands Local Authority\",Calculations!$E$2=\"Eilean Siar Local Authority\"),OR($F60=1,$F60=5)),0,prem_mort(VALUE(LEFT(Options!$B$24,2)),$C60,$E60,$F60,2016,$I60+$J60,1,$H60,$G60*$H60,Options!$B$8)))","v":{"$error":"#VALUE!"}},{"$f":"K60*100000/$H60","v":{"$error":"#VALUE!"}},{"$error":"#VALUE!"},{"$error":"#VALUE!"},{"$error":"#VALUE!"},{"$error":"#VALUE!"},{"$error":"#VALUE!"},{"$error":"#VALUE!"},{"$error":"#VALUE!"},{"$f":"S60*$AI60","v":{"$error":"#VALUE!"}},{"$f":"T60*$AI60","v":{"$error":"#VALUE!"}},{"$f":"U60*$AI60","v":{"$error":"#VALUE!"}},{"$f":"V60*$AI60","v":{"$error":"#VALUE!"}},{"$f":"W60*$AI60","v":{"$error":"#VALUE!"}},{"$f":"X60*$AI60","v":{"$error":"#VALUE!"}},{"$f":"Y60*$AI60","v":{"$error":"#VALUE!"}},{"$f":"Z60*$AI60","v":{"$error":"#VALUE!"}},5000]
[null,"Female 5-9",6.9792794999999996,81.439279999999997,"female",1,{"$f":"HLOOKUP(Calculations!$E$2,'Prevalence Rates'!$C$3:$BC$249,'Prevalence Rates'!$BD61,FALSE)","v":0},{"$f":"HLOOKUP(Calculations!$E$2,'Population 2016'!$C$3:$BC$249,'Population 2016'!BD61,FALSE)","v":0},0,{"$f":"HLOOKUP(Results!E$4,Targeting!$C$3:$F$249,Targeting!$G61,FALSE)","v":0},{"$f":"IF(AND(OR(Calculations!$E$2=\"Orkney Health Board\",Calculations!$E$2=\"Orkney Islands Local Authority\"),$F61=1),0,IF(AND(OR(Calculations!$E$2=\"Shetland Health Board\",Calculations!$E$2=\"Western Isles Health Board\",Calculations!$E$2=\"Shetland Islands Local Authority\",Calculations!$E$2=\"Eilean Siar Local Authority\"),OR($F61=1,$F61=5)),0,new_ci(VALUE(LEFT(Options!$B$24,2)),$C61,$E61,$F61,2016,$I61,1,$H61,$G61*$H61,Options!$B$8)))","v":{"$error":"#VALUE!"}},{"$f":"IF(AND(OR(Calculations!$E$2=\"Orkney Health Board\",Calculations!$E$2=\"Orkney Islands Local Authority\"),$F61=1),0,IF(AND(OR(Calculations!$E$2=\"Shetland Health Board\",Calculations!$E$2=\"Western Isles Health Board\",Calculations!$E$2=\"Shetland Islands Local Authority\",Calculations!$E$2=\"Eilean Siar Local Authority\"),OR($F61=1,$F61=5)),0,new_ci(VALUE(LEFT(Options!$B$24,2)),$C61,$E61,$F61,2016,$I61+$J61,1,$H61,$G61*$H61,Options!$B$8)))","v":{"$error":"#VALUE!"}},{"$f":"IF(AND(OR(Calculations!$E$2=\"Orkney Health Board\",Calculations!$E$2=\"Orkney Islands Local Authority\"),$F61=1),0,IF(AND(OR(Calculations!$E$2=\"Shetland Health Board\",Calculations!$E$2=\"Western Isles Health Board\",Calculations!$E$2=\"Shetland Islands Local Authority\",Calculations!$E$2=\"Eilean Siar Local Authority\"),OR($F61=1,$F61=5)),0,new_yllv2(VALUE(LEFT(Options!$B$24,2)),$C61,$D61,$E61,$F61,2016,$I61,1,$H61,$G61*$H61,Options!$B$8)))","v":{"$error":"#VALUE!"}},{"$f":"IF(AND(OR(Calculations!$E$2=\"Orkney Health Board\",Calculations!$E$2=\"Orkney Islands Local Authority\"),$F61=1),0,IF(AND(OR(Calculations!$E$2=\"Shetland Health Board\",Calculations!$E$2=\"Western Isles Health Board\",Calculations!$E$2=\"Shetland Islands Local Authority\",Calculations!$E$2=\"Eilean Siar Local Authority\"),OR($F61=1,$F61=5)),0,new_yllv2(VALUE(LEFT(Options!$B$24,2)),$C61,$D61,$E61,$F61,2016,$I61+$J61,1,$H61,$G61*$H61,Options!$B$8)))","v":{"$error":"#VALUE!"}},{"$f":"IF(AND(OR(Calculations!$E$2=\"Orkney Health Board\",Calculations!$E$2=\"Orkney Islands Local Authority\"),$F61=1),0,IF(AND(OR(Calculations!$E$2=\"Shetland Health Board\",Calculations!$E$2=\"Western Isles Health Board\",Calculations!$E$2=\"Shetland Islands Local Authority\",Calculations!$E$2=\"Eilean Siar Local Authority\"),OR($F61=1,$F61=5)),0,hosp_count(VALUE(LEFT(Options!$B$24,2)),$C61,$E61,$F61,2016,$I61,1,$H61,$G61*$H61, Options!$B$8)))","v":{"$error":"#VALUE!"}},{"$f":"IF(AND(OR(Calculations!$E$2=\"Orkney Health Board\",Calculations!$E$2=\"Orkney Islands Local Authority\"),$F61=1),0,IF(AND(OR(Calculations!$E$2=\"Shetland Health Board\",Calculations!$E$2=\"Western Isles Health Board\",Calculations!$E$2=\"Shetland Islands Local Authority\",Calculations!$E$2=\"Eilean Siar Local Authority\"),OR($F61=1,$F61=5)),0,hosp_count(VALUE(LEFT(Options!$B$24,2)),$C61,$E61,$F61,2016,$I61+$J61,1,$H61,$G61*$H61, Options!$B$8)))","v":{"$error":"#VALUE!"}},{"$f":"IF(AND(OR(Calculations!$E$2=\"Orkney Health Board\",Calculations!$E$2=\"Orkney Islands Local Authority\"),$F61=1),0,IF(AND(OR(Calculations!$E$2=\"Shetland Health Board\",Calculations!$E$2=\"Western Isles Health Board\",Calculations!$E$2=\"Shetland Islands Local Authority\",Calculations!$E$2=\"Eilean Siar Local Authority\"),OR($F61=1,$F61=5)),0,prem_mort(VALUE(LEFT(Options!$B$24,2)),$C61,$E61,$F61,2016,$I61,1,$H61,$G61*$H61,Options!$B$8)))","v":{"$error":"#VALUE!"}},{"$f":"IF(AND(OR(Calculations!$E$2=\"Orkney Health Board\",Calculations!$E$2=\"Orkney Islands Local Authority\"),$F61=1),0,IF(AND(OR(Calculations!$E$2=\"Shetland Health Board\",Calculations!$E$2=\"Western Isles Health Board\",Calculations!$E$2=\"Shetland Islands Local Authority\",Calculations!$E$2=\"Eilean Siar Local Authority\"),OR($F61=1,$F61=5)),0,prem_mort(VALUE(LEFT(Options!$B$24,2)),$C61,$E61,$F61,2016,$I61+$J61,1,$H61,$G61*$H61,Options!$B$8)))","v":{"$error":"#VALUE!"}},{"$f":"K61*100000/$H61","v":{"$error":"#VALUE!"}},{"$f":"L61*100000/$H61","v":{"$error":"#VALUE!"}},{"$f":"M61*100000/$H61","v":{"$error":"#VALUE!"}},{"$f":"N61*100000/$H61","v":{"$error":"#VALUE!"}},{"$f":"O61*100000/$H61","v":{"$error":"#VALUE!"}},{"$f":"P61*100000/$H61","v":{"$error":"#VALUE!"}},{"$f":"Q61*100000/$H61","v":{"$error":"#VALUE!"}},{"$f":"R61*100000/$H61","v":{"$error":"#VALUE!"}},{"$f":"S61*$AI61","v":{"$error":"#VALUE!"}},{"$f":"T61*$AI61","v":{"$error":"#VALUE!"}},{"$f":"U61*$AI61","v":{"$error":"#VALUE!"}},{"$error":"#VALUE!"},{"$error":"#VALUE!"},{"$error":"#VALUE!"},{"$error":"#VALUE!"},{"$error":"#VALUE!"},5500]
[null,"Female 10-15",12.478312000000001,81.948309999999992,"female",1,{"$f":"HLOOKUP(Calculations!$E$2,'Prevalence Rates'!$C$3:$BC$249,'Prevalence Rates'!$BD62,FALSE)","v":0},{"$f":"HLOOKUP(Calculations!$E$2,'Population 2016'!$C$3:$BC$249,'Population 2016'!BD62,FALSE)","v":0},0,{"$f":"HLOOKUP(Results!E$4,Targeting!$C$3:$F$249,Targeting!$G62,FALSE)","v":0},{"$f":"IF(AND(OR(Calculations!$E$2=\"Orkney Health Board\",Calculations!$E$2=\"Orkney Islands Local Authority\"),$F62=1),0,IF(AND(OR(Calculations!$E$2=\"Shetland Health Board\",Calculations!$E$2=\"Western Isles Health Board\",Calculations!$E$2=\"Shetland Islands Local Authority\",Calculations!$E$2=\"Eilean Siar Local Authority\"),OR($F62=1,$F62=5)),0,new_ci(VALUE(LEFT(Options!$B$24,2)),$C62,$E62,$F62,2016,$I62,1,$H62,$G62*$H62,Options!$B$8)))","v":{"$error":"#VALUE!"}},{"$f":"IF(AND(OR(Calculations!$E$2=\"Orkney Health Board\",Calculations!$E$2=\"Orkney Islands Local Authority\"),$F62=1),0,IF(AND(OR(Calculations!$E$2=\"Shetland Health Board\",Calculations!$E$2=\"Western Isles Health Board\",Calculations!$E$2=\"Shetland Islands Local Authority\",Calculations!$E$2=\"Eilean Siar Local Authority\"),OR($F62=1,$F62=5)),0,new_ci(VALUE(LEFT(Options!$B$24,2)),$C62,$E62,$F62,2016,$I62+$J62,1,$H62,$G62*$H62,Options!$B$8)))","v":{"$error":"#VALUE!"}},{"$f":"IF(AND(OR(Calculations!$E$2=\"Orkney Health Board\",Calculations!$E$2=\"Orkney Islands Local Authority\"),$F62=1),0,IF(AND(OR(Calculations!$E$2=\"Shetland Health Board\",Calculations!$E$2=\"Western Isles Health Board\",Calculations!$E$2=\"Shetland Islands Local Authority\",Calculations!$E$2=\"Eilean Siar Local Authority\"),OR($F62=1,$F62=5)),0,new_yllv2(VALUE(LEFT(Options!$B$24,2)),$C62,$D62,$E62,$F62,2016,$I62,1,$H62,$G62*$H62,Options!$B$8)))","v":{"$error":"#VALUE!"}},{"$f":"IF(AND(OR(Calculations!$E$2=\"Orkney Health Board\",Calculations!$E$2=\"Orkney Islands Local Authority\"),$F62=1),0,IF(AND(OR(Calculations!$E$2=\"Shetland Health Board\",Calculations!$E$2=\"Western Isles Health Board\",Calculations!$E$2=\"Shetland Islands Local Authority\",Calculations!$E$2=\"Eilean Siar Local Authority\"),OR($F62=1,$F62=5)),0,new_yllv2(VALUE(LEFT(Options!$B$24,2)),$C62,$D62,$E62,$F62,2016,$I62+$J62,1,$H62,$G62*$H62,Options!$B$8)))","v":{"$error":"#VALUE!"}},{"$f":"IF(AND(OR(Calculations!$E$2=\"Orkney Health Board\",Calculations!$E$2=\"Orkney Islands Local Authority\"),$F62=1),0,IF(AND(OR(Calculations!$E$2=\"Shetland Health Board\",Calculations!$E$2=\"Western Isles Health Board\",Calculations!$E$2=\"Shetland Islands Local Authority\",Calculations!$E$2=\"Eilean Siar Local Authority\"),OR($F62=1,$F62=5)),0,hosp_count(VALUE(LEFT(Options!$B$24,2)),$C62,$E62,$F62,2016,$I62,1,$H62,$G62*$H62, Options!$B$8)))","v":{"$error":"#VALUE!"}},{"$f":"IF(AND(OR(Calculations!$E$2=\"Orkney Health Board\",Calculations!$E$2=\"Orkney Islands Local Authority\"),$F62=1),0,IF(AND(OR(Calculations!$E$2=\"Shetland Health Board\",Calculations!$E$2=\"Western Isles Health Board\",Calculations!$E$2=\"Shetland Islands Local Authority\",Calculations!$E$2=\"Eilean Siar Local Authority\"),OR($F62=1,$F62=5)),0,hosp_count(VALUE(LEFT(Options!$B$24,2)),$C62,$E62,$F62,2016,$I62+$J62,1,$H62,$G62*$H62, Options!$B$8)))","v":{"$error":"#VALUE!"}},{"$f":"IF(AND(OR(Calculations!$E$2=\"Orkney Health Board\",Calculations!$E$2=\"Orkney Islands Local Authority\"),$F62=1),0,IF(AND(OR(Calculations!$E$2=\"Shetland Health Board\",Calculations!$E$2=\"Western Isles Health Board\",Calculations!$E$2=\"Shetland Islands Local Authority\",Calculations!$E$2=\"Eilean Siar Local Authority\"),OR($F62=1,$F62=5)),0,prem_mort(VALUE(LEFT(Options!$B$24,2)),$C62,$E62,$F62,2016,$I62,1,$H62,$G62*$H62,Options!$B$8)))","v":{"$error":"#VALUE!"}},{"$f":"IF(AND(OR(Calculations!$E$2=\"Orkney Health Board\",Calculations!$E$2=\"Orkney Islands Local Authority\"),$F62=1),0,IF(AND(OR(Calculations!$E$2=\"Shetland Health Board\",Calculations!$E$2=\"Western Isles Health Board\",Calculations!$E$2=\"Shetland Islands Local Authority\",Calculations!$E$2=\"Eilean Siar Local Authority\"),OR($F62=1,$F62=5)),0,prem_mort(VALUE(LEFT(Options!$B$24,2)),$C62,$E62,$F62,2016,$I62+$J62,1,$H62,$G62*$H62,Options!$B$8)))","v":{"$error":"#VALUE!"}},{"$error":"#VALUE!"},{"$error":"#VALUE!"},{"$error":"#VALUE!"},{"$error":"#VALUE!"},{"$error":"#VALUE!"},{"$error":"#VALUE!"},{"$error":"#VALUE!"},{"$error":"#VALUE!"},{"$error":"#VALUE!"},{"$error":"#VALUE!"},{"$error":"#VALUE!"},{"$error":"#VALUE!"},{"$error":"#VALUE!"},{"$error":"#VALUE!"},{"$error":"#VALUE!"},{"$error":"#VALUE!"},6600]
["SIMD Q1 (most deprived)","Female 16-19",17.570053000000001,81.100049999999996,"female",1,{"$f":"HLOOKUP(Calculations!$E$2,'Prevalence Rates'!$C$3:$BC$249,'Prevalence Rates'!$BD63,FALSE)","v":0.2642089093701997},{"$f":"HLOOKUP(Calculations!$E$2,'Population 2016'!$C$3:$BC$249,'Population 2016'!BD63,FALSE)","v":24142},0,{"$f":"HLOOKUP(Results!E$4,Targeting!$C$3:$F$249,Targeting!$G63,FALSE)","v":1639},{"$f":"IF(AND(OR(Calculations!$E$2=\"Orkney Health Board\",Calculations!$E$2=\"Orkney Islands Local Authority\"),$F63=1),0,IF(AND(OR(Calculations!$E$2=\"Shetland Health Board\",Calculations!$E$2=\"Western Isles Health Board\",Calculations!$E$2=\"Shetland Islands Local Authority\",Calculations!$E$2=\"Eilean Siar Local Authority\"),OR($F63=1,$F63=5)),0,new_ci(VALUE(LEFT(Options!$B$24,2)),$C63,$E63,$F63,2016,$I63,1,$H63,$G63*$H63,Options!$B$8)))","v":7.6776773521999999},{"$f":"IF(AND(OR(Calculations!$E$2=\"Orkney Health Board\",Calculations!$E$2=\"Orkney Islands Local Authority\"),$F63=1),0,IF(AND(OR(Calculations!$E$2=\"Shetland Health Board\",Calculations!$E$2=\"Western Isles Health Board\",Calculations!$E$2=\"Shetland Islands Local Authority\",Calculations!$E$2=\"Eilean Siar Local Authority\"),OR($F63=1,$F63=5)),0,new_ci(VALUE(LEFT(Options!$B$24,2)),$C63,$E63,$F63,2016,$I63+$J63,1,$H63,$G63*$H63,Options!$B$8)))","v":7.4600987910000001},{"$f":"IF(AND(OR(Calculations!$E$2=\"Orkney Health Board\",Calculations!$E$2=\"Orkney Islands Local Authority\"),$F63=1),0,IF(AND(OR(Calculations!$E$2=\"Shetland Health Board\",Calculations!$E$2=\"Western Isles Health Board\",Calculations!$E$2=\"Shetland Islands Local Authority\",Calculations!$E$2=\"Eilean Siar Local Authority\"),OR($F63=1,$F63=5)),0,new_yllv2(VALUE(LEFT(Options!$B$24,2)),$C63,$D63,$E63,$F63,2016,$I63,1,$H63,$G63*$H63,Options!$B$8)))","v":480.08514179999997},{"$f":"IF(AND(OR(Calculations!$E$2=\"Orkney Health Board\",Calculations!$E$2=\"Orkney Islands Local Authority\"),$F63=1),0,IF(AND(OR(Calculations!$E$2=\"Shetland Health Board\",Calculations!$E$2=\"Western Isles Health Board\",Calculations!$E$2=\"Shetland Islands Local Authority\",Calculations!$E$2=\"Eilean Siar Local Authority\"),OR($F63=1,$F63=5)),0,new_yllv2(VALUE(LEFT(Options!$B$24,2)),$C63,$D63,$E63,$F63,2016,$I63+$J63,1,$H63,$G63*$H63,Options!$B$8)))","v":466.47995502089998},{"$f":"IF(AND(OR(Calculations!$E$2=\"Orkney Health Board\",Calculations!$E$2=\"Orkney Islands Local Authority\"),$F63=1),0,IF(AND(OR(Calculations!$E$2=\"Shetland Health Board\",Calculations!$E$2=\"Western Isles Health Board\",Calculations!$E$2=\"Shetland Islands Local Authority\",Calculations!$E$2=\"Eilean Siar Local Authority\"),OR($F63=1,$F63=5)),0,hosp_count(VALUE(LEFT(Options!$B$24,2)),$C63,$E63,$F63,2016,$I63,1,$H63,$G63*$H63, Options!$B$8)))","v":3441.2180067134},{"$f":"IF(AND(OR(Calculations!$E$2=\"Orkney Health Board\",Calculations!$E$2=\"Orkney Islands Local Authority\"),$F63=1),0,IF(AND(OR(Calculations!$E$2=\"Shetland Health Board\",Calculations!$E$2=\"Western Isles Health Board\",Calculations!$E$2=\"Shetland Islands Local Authority\",Calculations!$E$2=\"Eilean Siar Local Authority\"),OR($F63=1,$F63=5)),0,hosp_count(VALUE(LEFT(Options!$B$24,2)),$C63,$E63,$F63,2016,$I63+$J63,1,$H63,$G63*$H63, Options!$B$8)))","v":3433.7763970372998},{"$f":"IF(AND(OR(Calculations!$E$2=\"Orkney Health Board\",Calculations!$E$2=\"Orkney Islands Local Authority\"),$F63=1),0,IF(AND(OR(Calculations!$E$2=\"Shetland Health Board\",Calculations!$E$2=\"Western Isles Health Board\",Calculations!$E$2=\"Shetland Islands Local Authority\",Calculations!$E$2=\"Eilean Siar Local Authority\"),OR($F63=1,$F63=5)),0,prem_mort(VALUE(LEFT(Options!$B$24,2)),$C63,$E63,$F63,2016,$I63,1,$H63,$G63*$H63,Options!$B$8)))","v":7.6776773521999999},{"$f":"IF(AND(OR(Calculations!$E$2=\"Orkney Health Board\",Calculations!$E$2=\"Orkney Islands Local Authority\"),$F63=1),0,IF(AND(OR(Calculations!$E$2=\"Shetland Health Board\",Calculations!$E$2=\"Western Isles Health Board\",Calculations!$E$2=\"Shetland Islands Local Authority\",Calculations!$E$2=\"Eilean Siar Local Authority\"),OR($F63=1,$F63=5)),0,prem_mort(VALUE(LEFT(Options!$B$24,2)),$C63,$E63,$F63,2016,$I63+$J63,1,$H63,$G63*$H63,Options!$B$8)))","v":7.4600987910000001},31.802159523651728,30.900914551404192,1988.5889396073233,1932.2340941964212,14254.071769999999,14223.247440300305,31.802159523651728,30.900914551404192,{"$f":"S63*$AI63","v":139929.50190406761},135964.02402617843,8749791.3342722226,8501830.0144642536,62717915.787999995,62582288.73732134,139929.50190406761,{"$f":"Z63*$AI63","v":135964.02402617843},4400]
[null,"Female 20-24",22.077057,81.667060000000006,"female",1,{"$f":"HLOOKUP(Calculations!$E$2,'Prevalence Rates'!$C$3:$BC$249,'Prevalence Rates'!$BD64,FALSE)","v":0.2642089093701997},{"$f":"HLOOKUP(Calculations!$E$2,'Population 2016'!$C$3:$BC$249,'Population 2016'!BD64,FALSE)","v":37624},0,{"$f":"HLOOKUP(Results!E$4,Targeting!$C$3:$F$249,Targeting!$G64,FALSE)","v":2554},{"$f":"IF(AND(OR(Calculations!$E$2=\"Orkney Health Board\",Calculations!$E$2=\"Orkney Islands Local Authority\"),$F64=1),0,IF(AND(OR(Calculations!$E$2=\"Shetland Health Board\",Calculations!$E$2=\"Western Isles Health Board\",Calculations!$E$2=\"Shetland Islands Local Authority\",Calculations!$E$2=\"Eilean Siar Local Authority\"),OR($F64=1,$F64=5)),0,new_ci(VALUE(LEFT(Options!$B$24,2)),$C64,$E64,$F64,2016,$I64,1,$H64,$G64*$H64,Options!$B$8)))","v":17.553803170599998},{"$f":"IF(AND(OR(Calculations!$E$2=\"Orkney Health Board\",Calculations!$E$2=\"Orkney Islands Local Authority\"),$F64=1),0,IF(AND(OR(Calculations!$E$2=\"Shetland Health Board\",Calculations!$E$2=\"Western Isles Health Board\",Calculations!$E$2=\"Shetland Islands Local Authority\",Calculations!$E$2=\"Eilean Siar Local Authority\"),OR($F64=1,$F64=5)),0,new_ci(VALUE(LEFT(Options!$B$24,2)),$C64,$E64,$F64,2016,$I64+$J64,1,$H64,$G64*$H64,Options!$B$8)))","v":17.0564402754},{"$f":"IF(AND(OR(Calculations!$E$2=\"Orkney Health Board\",Calculations!$E$2=\"Orkney Islands Local Authority\"),$F64=1),0,IF(AND(OR(Calculations!$E$2=\"Shetland Health Board\",Calculations!$E$2=\"Western Isles Health Board\",Calculations!$E$2=\"Shetland Islands Local Authority\",Calculations!$E$2=\"Eilean Siar Local Authority\"),OR($F64=1,$F64=5)),0,new_yllv2(VALUE(LEFT(Options!$B$24,2)),$C64,$D64,$E64,$F64,2016,$I64,1,$H64,$G64*$H64,Options!$B$8)))","v":1028.4773804269},{"$f":"IF(AND(OR(Calculations!$E$2=\"Orkney Health Board\",Calculations!$E$2=\"Orkney Islands Local Authority\"),$F64=1),0,IF(AND(OR(Calculations!$E$2=\"Shetland Health Board\",Calculations!$E$2=\"Western Isles Health Board\",Calculations!$E$2=\"Shetland Islands Local Authority\",Calculations!$E$2=\"Eilean Siar Local Authority\"),OR($F64=1,$F64=5)),0,new_yllv2(VALUE(LEFT(Options!$B$24,2)),$C64,$D64,$E64,$F64,2016,$I64+$J64,1,$H64,$G64*$H64,Options!$B$8)))","v":999.33688690500003},{"$f":"IF(AND(OR(Calculations!$E$2=\"Orkney Health Board\",Calculations!$E$2=\"Orkney Islands Local Authority\"),$F64=1),0,IF(AND(OR(Calculations!$E$2=\"Shetland Health Board\",Calculations!$E$2=\"Western Isles Health Board\",Calculations!$E$2=\"Shetland Islands Local Authority\",Calculations!$E$2=\"Eilean Siar Local Authority\"),OR($F64=1,$F64=5)),0,hosp_count(VALUE(LEFT(Options!$B$24,2)),$C64,$E64,$F64,2016,$I64,1,$H64,$G64*$H64, Options!$B$8)))","v":6006.7410350919999},{"$f":"IF(AND(OR(Calculations!$E$2=\"Orkney Health Board\",Calculations!$E$2=\"Orkney Islands Local Authority\"),$F64=1),0,IF(AND(OR(Calculations!$E$2=\"Shetland Health Board\",Calculations!$E$2=\"Western Isles Health Board\",Calculations!$E$2=\"Shetland Islands Local Authority\",Calculations!$E$2=\"Eilean Siar Local Authority\"),OR($F64=1,$F64=5)),0,hosp_count(VALUE(LEFT(Options!$B$24,2)),$C64,$E64,$F64,2016,$I64+$J64,1,$H64,$G64*$H64, Options!$B$8)))","v":5993.7529886113998},{"$f":"IF(AND(OR(Calculations!$E$2=\"Orkney Health Board\",Calculations!$E$2=\"Orkney Islands Local Authority\"),$F64=1),0,IF(AND(OR(Calculations!$E$2=\"Shetland Health Board\",Calculations!$E$2=\"Western Isles Health Board\",Calculations!$E$2=\"Shetland Islands Local Authority\",Calculations!$E$2=\"Eilean Siar Local Authority\"),OR($F64=1,$F64=5)),0,prem_mort(VALUE(LEFT(Options!$B$24,2)),$C64,$E64,$F64,2016,$I64,1,$H64,$G64*$H64,Options!$B$8)))","v":17.553803170599998},{"$f":"IF(AND(OR(Calculations!$E$2=\"Orkney Health Board\",Calculations!$E$2=\"Orkney Islands Local Authority\"),$F64=1),0,IF(AND(OR(Calculations!$E$2=\"Shetland Health Board\",Calculations!$E$2=\"Western Isles Health Board\",Calculations!$E$2=\"Shetland Islands Local Authority\",Calculations!$E$2=\"Eilean Siar Local Authority\"),OR($F64=1,$F64=5)),0,prem_mort(VALUE(LEFT(Options!$B$24,2)),$C64,$E64,$F64,2016,$I64+$J64,1,$H64,$G64*$H64,Options!$B$8)))","v":17.0564402754},46.655866390070166,45.333936517648304,2733.5673517619075,2656.1154765708061,15965.18455,15930.663907642462,46.655866390070166,45.333936517648304,279935.19834042102,272003.61910588981,16401404.110571446,15936692.859424837,95791107.299999997,95583983.445854768,279935.19834042102,272003.61910588981,6000]
[null,"Female 25-29",26.975186999999998,81.645189999999999,"female",1,{"$f":"HLOOKUP(Calculations!$E$2,'Prevalence Rates'!$C$3:$BC$249,'Prevalence Rates'!$BD65,FALSE)","v":0.3894993894993895},{"$f":"HLOOKUP(Calculations!$E$2,'Population 2016'!$C$3:$BC$249,'Population 2016'!BD65,FALSE)","v":45129},0,{"$f":"HLOOKUP(Results!E$4,Targeting!$C$3:$F$249,Targeting!$G65,FALSE)","v":3064},{"$f":"IF(AND(OR(Calculations!$E$2=\"Orkney Health Board\",Calculations!$E$2=\"Orkney Islands Local Authority\"),$F65=1),0,IF(AND(OR(Calculations!$E$2=\"Shetland Health Board\",Calculations!$E$2=\"Western Isles Health Board\",Calculations!$E$2=\"Shetland Islands Local Authority\",Calculations!$E$2=\"Eilean Siar Local Authority\"),OR($F65=1,$F65=5)),0,new_ci(VALUE(LEFT(Options!$B$24,2)),$C65,$E65,$F65,2016,$I65,1,$H65,$G65*$H65,Options!$B$8)))","v":31.932886256900002},{"$f":"IF(AND(OR(Calculations!$E$2=\"Orkney Health Board\",Calculations!$E$2=\"Orkney Islands Local Authority\"),$F65=1),0,IF(AND(OR(Calculations!$E$2=\"Shetland Health Board\",Calculations!$E$2=\"Western Isles Health Board\",Calculations!$E$2=\"Shetland Islands Local Authority\",Calculations!$E$2=\"Eilean Siar Local Authority\"),OR($F65=1,$F65=5)),0,new_ci(VALUE(LEFT(Options!$B$24,2)),$C65,$E65,$F65,2016,$I65+$J65,1,$H65,$G65*$H65,Options!$B$8)))","v":31.0647012441},{"$f":"IF(AND(OR(Calculations!$E$2=\"Orkney Health Board\",Calculations!$E$2=\"Orkney Islands Local Authority\"),$F65=1),0,IF(AND(OR(Calculations!$E$2=\"Shetland Health Board\",Calculations!$E$2=\"Western Isles Health Board\",Calculations!$E$2=\"Shetland Islands Local Authority\",Calculations!$E$2=\"Eilean Siar Local Authority\"),OR($F65=1,$F65=5)),0,new_yllv2(VALUE(LEFT(Options!$B$24,2)),$C65,$D65,$E65,$F65,2016,$I65,1,$H65,$G65*$H65,Options!$B$8)))","v":1713.8381012064999},{"$f":"IF(AND(OR(Calculations!$E$2=\"Orkney Health Board\",Calculations!$E$2=\"Orkney Islands Local Authority\"),$F65=1),0,IF(AND(OR(Calculations!$E$2=\"Shetland Health Board\",Calculations!$E$2=\"Western Isles Health Board\",Calculations!$E$2=\"Shetland Islands Local Authority\",Calculations!$E$2=\"Eilean Siar Local Authority\"),OR($F65=1,$F65=5)),0,new_yllv2(VALUE(LEFT(Options!$B$24,2)),$C65,$D65,$E65,$F65,2016,$I65+$J65,1,$H65,$G65*$H65,Options!$B$8)))","v":1667.242608965},{"$f":"IF(AND(OR(Calculations!$E$2=\"Orkney Health Board\",Calculations!$E$2=\"Orkney Islands Local Authority\"),$F65=1),0,IF(AND(OR(Calculations!$E$2=\"Shetland Health Board\",Calculations!$E$2=\"Western Isles Health Board\",Calculations!$E$2=\"Shetland Islands Local Authority\",Calculations!$E$2=\"Eilean Siar Local Authority\"),OR($F65=1,$F65=5)),0,hosp_count(VALUE(LEFT(Options!$B$24,2)),$C65,$E65,$F65,2016,$I65,1,$H65,$G65*$H65, Options!$B$8)))","v":8149.6199866325996},{"$f":"IF(AND(OR(Calculations!$E$2=\"Orkney Health Board\",Calculations!$E$2=\"Orkney Islands Local Authority\"),$F65=1),0,IF(AND(OR(Calculations!$E$2=\"Shetland Health Board\",Calculations!$E$2=\"Western Isles Health Board\",Calculations!$E$2=\"Shetland Islands Local Authority\",Calculations!$E$2=\"Eilean Siar Local Authority\"),OR($F65=1,$F65=5)),0,hosp_count(VALUE(LEFT(Options!$B$24,2)),$C65,$E65,$F65,2016,$I65+$J65,1,$H65,$G65*$H65, Options!$B$8)))","v":8132.0392036628},{"$f":"IF(AND(OR(Calculations!$E$2=\"Orkney Health Board\",Calculations!$E$2=\"Orkney Islands Local Authority\"),$F65=1),0,IF(AND(OR(Calculations!$E$2=\"Shetland Health Board\",Calculations!$E$2=\"Western Isles Health Board\",Calculations!$E$2=\"Shetland Islands Local Authority\",Calculations!$E$2=\"Eilean Siar Local Authority\"),OR($F65=1,$F65=5)),0,prem_mort(VALUE(LEFT(Options!$B$24,2)),$C65,$E65,$F65,2016,$I65,1,$H65,$G65*$H65,Options!$B$8)))","v":31.932886256900002},{"$f":"IF(AND(OR(Calculations!$E$2=\"Orkney Health Board\",Calculations!$E$2=\"Orkney Islands Local Authority\"),$F65=1),0,IF(AND(OR(Calculations!$E$2=\"Shetland Health Board\",Calculations!$E$2=\"Western Isles Health Board\",Calculations!$E$2=\"Shetland Islands Local Authority\",Calculations!$E$2=\"Eilean Siar Local Authority\"),OR($F65=1,$F65=5)),0,prem_mort(VALUE(LEFT(Options!$B$24,2)),$C65,$E65,$F65,2016,$I65+$J65,1,$H65,$G65*$H65,Options!$B$8)))","v":31.0647012441},70.759126630104817,68.835341452502831,3797.6425385151451,3694.3929822619598,18058.498940000001,18019.542209361607,70.759126630104817,68.835341452502831,424554.7597806289,413012.04871501698,22785855.23109087,22166357.893571761,108350993.64,108117253.25616965,424554.7597806289,413012.04871501698,6000]
[null,"Female 30-34",31.999904999999998,81.799899999999994,"female",1,{"$f":"HLOOKUP(Calculations!$E$2,'Prevalence Rates'!$C$3:$BC$249,'Prevalence Rates'!$BD66,FALSE)","v":0.3894993894993895},{"$f":"HLOOKUP(Calculations!$E$2,'Population 2016'!$C$3:$BC$249,'Population 2016'!BD66,FALSE)","v":41240},0,{"$f":"HLOOKUP(Results!E$4,Targeting!$C$3:$F$249,Targeting!$G66,FALSE)","v":2800},{"$f":"IF(AND(OR(Calculations!$E$2=\"Orkney Health Board\",Calculations!$E$2=\"Orkney Islands Local Authority\"),$F66=1),0,IF(AND(OR(Calculations!$E$2=\"Shetland Health Board\",Calculations!$E$2=\"Western Isles Health Board\",Calculations!$E$2=\"Shetland Islands Local Authority\",Calculations!$E$2=\"Eilean Siar Local Authority\"),OR($F66=1,$F66=5)),0,new_ci(VALUE(LEFT(Options!$B$24,2)),$C66,$E66,$F66,2016,$I66,1,$H66,$G66*$H66,Options!$B$8)))","v":44.732513768899999},{"$f":"IF(AND(OR(Calculations!$E$2=\"Orkney Health Board\",Calculations!$E$2=\"Orkney Islands Local Authority\"),$F66=1),0,IF(AND(OR(Calculations!$E$2=\"Shetland Health Board\",Calculations!$E$2=\"Western Isles Health Board\",Calculations!$E$2=\"Shetland Islands Local Authority\",Calculations!$E$2=\"Eilean Siar Local Authority\"),OR($F66=1,$F66=5)),0,new_ci(VALUE(LEFT(Options!$B$24,2)),$C66,$E66,$F66,2016,$I66+$J66,1,$H66,$G66*$H66,Options!$B$8)))","v":43.516539848900003},{"$f":"IF(AND(OR(Calculations!$E$2=\"Orkney Health Board\",Calculations!$E$2=\"Orkney Islands Local Authority\"),$F66=1),0,IF(AND(OR(Calculations!$E$2=\"Shetland Health Board\",Calculations!$E$2=\"Western Isles Health Board\",Calculations!$E$2=\"Shetland Islands Local Authority\",Calculations!$E$2=\"Eilean Siar Local Authority\"),OR($F66=1,$F66=5)),0,new_yllv2(VALUE(LEFT(Options!$B$24,2)),$C66,$D66,$E66,$F66,2016,$I66,1,$H66,$G66*$H66,Options!$B$8)))","v":2182.9464482598},{"$f":"IF(AND(OR(Calculations!$E$2=\"Orkney Health Board\",Calculations!$E$2=\"Orkney Islands Local Authority\"),$F66=1),0,IF(AND(OR(Calculations!$E$2=\"Shetland Health Board\",Calculations!$E$2=\"Western Isles Health Board\",Calculations!$E$2=\"Shetland Islands Local Authority\",Calculations!$E$2=\"Eilean Siar Local Authority\"),OR($F66=1,$F66=5)),0,new_yllv2(VALUE(LEFT(Options!$B$24,2)),$C66,$D66,$E66,$F66,2016,$I66+$J66,1,$H66,$G66*$H66,Options!$B$8)))","v":2123.6069270436001},{"$f":"IF(AND(OR(Calculations!$E$2=\"Orkney Health Board\",Calculations!$E$2=\"Orkney Islands Local Authority\"),$F66=1),0,IF(AND(OR(Calculations!$E$2=\"Shetland Health Board\",Calculations!$E$2=\"Western Isles Health Board\",Calculations!$E$2=\"Shetland Islands Local Authority\",Calculations!$E$2=\"Eilean Siar Local Authority\"),OR($F66=1,$F66=5)),0,hosp_count(VALUE(LEFT(Options!$B$24,2)),$C66,$E66,$F66,2016,$I66,1,$H66,$G66*$H66, Options!$B$8)))","v":8450.6647051239997},{"$f":"IF(AND(OR(Calculations!$E$2=\"Orkney Health Board\",Calculations!$E$2=\"Orkney Islands Local Authority\"),$F66=1),0,IF(AND(OR(Calculations!$E$2=\"Shetland Health Board\",Calculations!$E$2=\"Western Isles Health Board\",Calculations!$E$2=\"Shetland Islands Local Authority\",Calculations!$E$2=\"Eilean Siar Local Authority\"),OR($F66=1,$F66=5)),0,hosp_count(VALUE(LEFT(Options!$B$24,2)),$C66,$E66,$F66,2016,$I66+$J66,1,$H66,$G66*$H66, Options!$B$8)))","v":8432.4342274036007},{"$f":"IF(AND(OR(Calculations!$E$2=\"Orkney Health Board\",Calculations!$E$2=\"Orkney Islands Local Authority\"),$F66=1),0,IF(AND(OR(Calculations!$E$2=\"Shetland Health Board\",Calculations!$E$2=\"Western Isles Health Board\",Calculations!$E$2=\"Shetland Islands Local Authority\",Calculations!$E$2=\"Eilean Siar Local Authority\"),OR($F66=1,$F66=5)),0,prem_mort(VALUE(LEFT(Options!$B$24,2)),$C66,$E66,$F66,2016,$I66,1,$H66,$G66*$H66,Options!$B$8)))","v":44.732513768899999},{"$f":"IF(AND(OR(Calculations!$E$2=\"Orkney Health Board\",Calculations!$E$2=\"Orkney Islands Local Authority\"),$F66=1),0,IF(AND(OR(Calculations!$E$2=\"Shetland Health Board\",Calculations!$E$2=\"Western Isles Health Board\",Calculations!$E$2=\"Shetland Islands Local Authority\",Calculations!$E$2=\"Eilean Siar Local Authority\"),OR($F66=1,$F66=5)),0,prem_mort(VALUE(LEFT(Options!$B$24,2)),$C66,$E66,$F66,2016,$I66+$J66,1,$H66,$G66*$H66,Options!$B$8)))","v":43.516539848900003},108.46875307686712,105.52022271799224,5293.2746078074688,5149.3863410368576,20491.427510000001,20447.221695935015,108.46875307686712,105.52022271799224,705046.89499963622,685881.44766694959,34406284.950748548,33471011.216739576,133194278.81500001,132906941.0235776,705046.89499963622,685881.44766694959,6500]
[null,"Female 35-39",36.918118,81.898120000000006,"female",1,{"$f":"HLOOKUP(Calculations!$E$2,'Prevalence Rates'!$C$3:$BC$249,'Prevalence Rates'!$BD67,FALSE)","v":0.36037441497659906},{"$f":"HLOOKUP(Calculations!$E$2,'Population 2016'!$C$3:$BC$249,'Population 2016'!BD67,FALSE)","v":35038},0,{"$f":"HLOOKUP(Results!E$4,Targeting!$C$3:$F$249,Targeting!$G67,FALSE)","v":2379},{"$f":"IF(AND(OR(Calculations!$E$2=\"Orkney Health Board\",Calculations!$E$2=\"Orkney Islands Local Authority\"),$F67=1),0,IF(AND(OR(Calculations!$E$2=\"Shetland Health Board\",Calculations!$E$2=\"Western Isles Health Board\",Calculations!$E$2=\"Shetland Islands Local Authority\",Calculations!$E$2=\"Eilean Siar Local Authority\"),OR($F67=1,$F67=5)),0,new_ci(VALUE(LEFT(Options!$B$24,2)),$C67,$E67,$F67,2016,$I67,1,$H67,$G67*$H67,Options!$B$8)))","v":57.7285552974},{"$f":"IF(AND(OR(Calculations!$E$2=\"Orkney Health Board\",Calculations!$E$2=\"Orkney Islands Local Authority\"),$F67=1),0,IF(AND(OR(Calculations!$E$2=\"Shetland Health Board\",Calculations!$E$2=\"Western Isles Health Board\",Calculations!$E$2=\"Shetland Islands Local Authority\",Calculations!$E$2=\"Eilean Siar Local Authority\"),OR($F67=1,$F67=5)),0,new_ci(VALUE(LEFT(Options!$B$24,2)),$C67,$E67,$F67,2016,$I67+$J67,1,$H67,$G67*$H67,Options!$B$8)))","v":56.144786244300001},{"$f":"IF(AND(OR(Calculations!$E$2=\"Orkney Health Board\",Calculations!$E$2=\"Orkney Islands Local Authority\"),$F67=1),0,IF(AND(OR(Calculations!$E$2=\"Shetland Health Board\",Calculations!$E$2=\"Western Isles Health Board\",Calculations!$E$2=\"Shetland Islands Local Authority\",Calculations!$E$2=\"Eilean Siar Local Authority\"),OR($F67=1,$F67=5)),0,new_yllv2(VALUE(LEFT(Options!$B$24,2)),$C67,$D67,$E67,$F67,2016,$I67,1,$H67,$G67*$H67,Options!$B$8)))","v":2538.9019774367998},{"$f":"IF(AND(OR(Calculations!$E$2=\"Orkney Health Board\",Calculations!$E$2=\"Orkney Islands Local Authority\"),$F67=1),0,IF(AND(OR(Calculations!$E$2=\"Shetland Health Board\",Calculations!$E$2=\"Western Isles Health Board\",Calculations!$E$2=\"Shetland Islands Local Authority\",Calculations!$E$2=\"Eilean Siar Local Authority\"),OR($F67=1,$F67=5)),0,new_yllv2(VALUE(LEFT(Options!$B$24,2)),$C67,$D67,$E67,$F67,2016,$I67+$J67,1,$H67,$G67*$H67,Options!$B$8)))","v":2469.2478113139},{"$f":"IF(AND(OR(Calculations!$E$2=\"Orkney Health Board\",Calculations!$E$2=\"Orkney Islands Local Authority\"),$F67=1),0,IF(AND(OR(Calculations!$E$2=\"Shetland Health Board\",Calculations!$E$2=\"Western Isles Health Board\",Calculations!$E$2=\"Shetland Islands Local Authority\",Calculations!$E$2=\"Eilean Siar Local Authority\"),OR($F67=1,$F67=5)),0,hosp_count(VALUE(LEFT(Options!$B$24,2)),$C67,$E67,$F67,2016,$I67,1,$H67,$G67*$H67, Options!$B$8)))","v":8125.2852417628001},{"$f":"IF(AND(OR(Calculations!$E$2=\"Orkney Health Board\",Calculations!$E$2=\"Orkney Islands Local Authority\"),$F67=1),0,IF(AND(OR(Calculations!$E$2=\"Shetland Health Board\",Calculations!$E$2=\"Western Isles Health Board\",Calculations!$E$2=\"Shetland Islands Local Authority\",Calculations!$E$2=\"Eilean Siar Local Authority\"),OR($F67=1,$F67=5)),0,hosp_count(VALUE(LEFT(Options!$B$24,2)),$C67,$E67,$F67,2016,$I67+$J67,1,$H67,$G67*$H67, Options!$B$8)))","v":8107.7459259205998},{"$f":"IF(AND(OR(Calculations!$E$2=\"Orkney Health Board\",Calculations!$E$2=\"Orkney Islands Local Authority\"),$F67=1),0,IF(AND(OR(Calculations!$E$2=\"Shetland Health Board\",Calculations!$E$2=\"Western Isles Health Board\",Calculations!$E$2=\"Shetland Islands Local Authority\",Calculations!$E$2=\"Eilean Siar Local Authority\"),OR($F67=1,$F67=5)),0,prem_mort(VALUE(LEFT(Options!$B$24,2)),$C67,$E67,$F67,2016,$I67,1,$H67,$G67*$H67,Options!$B$8)))","v":57.7285552974},{"$f":"IF(AND(OR(Calculations!$E$2=\"Orkney Health Board\",Calculations!$E$2=\"Orkney Islands Local Authority\"),$F67=1),0,IF(AND(OR(Calculations!$E$2=\"Shetland Health Board\",Calculations!$E$2=\"Western Isles Health Board\",Calculations!$E$2=\"Shetland Islands Local Authority\",Calculations!$E$2=\"Eilean Siar Local Authority\"),OR($F67=1,$F67=5)),0,prem_mort(VALUE(LEFT(Options!$B$24,2)),$C67,$E67,$F67,2016,$I67+$J67,1,$H67,$G67*$H67,Options!$B$8)))","v":56.144786244300001},164.75984730121581,160.23970045179519,7246.1384138272724,7047.3423463493918,23189.923060000001,23139.865077688795,164.75984730121581,160.23970045179519,1153318.9311085106,1121677.9031625662,50722968.896790907,49331396.424445741,162329461.42000002,161979055.54382157,1153318.9311085106,1121677.9031625662,7000]
[null,"Female 40-44",42.077438000000001,82.30744,"female",1,{"$f":"HLOOKUP(Calculations!$E$2,'Prevalence Rates'!$C$3:$BC$249,'Prevalence Rates'!$BD68,FALSE)","v":0.36037441497659906},{"$f":"HLOOKUP(Calculations!$E$2,'Population 2016'!$C$3:$BC$249,'Population 2016'!BD68,FALSE)","v":33663},0,{"$f":"HLOOKUP(Results!E$4,Targeting!$C$3:$F$249,Targeting!$G68,FALSE)","v":2285},{"$f":"IF(AND(OR(Calculations!$E$2=\"Orkney Health Board\",Calculations!$E$2=\"Orkney Islands Local Authority\"),$F68=1),0,IF(AND(OR(Calculations!$E$2=\"Shetland Health Board\",Calculations!$E$2=\"Western Isles Health Board\",Calculations!$E$2=\"Shetland Islands Local Authority\",Calculations!$E$2=\"Eilean Siar Local Authority\"),OR($F68=1,$F68=5)),0,new_ci(VALUE(LEFT(Options!$B$24,2)),$C68,$E68,$F68,2016,$I68,1,$H68,$G68*$H68,Options!$B$8)))","v":85.976622235600004},{"$f":"IF(AND(OR(Calculations!$E$2=\"Orkney Health Board\",Calculations!$E$2=\"Orkney Islands Local Authority\"),$F68=1),0,IF(AND(OR(Calculations!$E$2=\"Shetland Health Board\",Calculations!$E$2=\"Western Isles Health Board\",Calculations!$E$2=\"Shetland Islands Local Authority\",Calculations!$E$2=\"Eilean Siar Local Authority\"),OR($F68=1,$F68=5)),0,new_ci(VALUE(LEFT(Options!$B$24,2)),$C68,$E68,$F68,2016,$I68+$J68,1,$H68,$G68*$H68,Options!$B$8)))","v":83.619594465600002},{"$f":"IF(AND(OR(Calculations!$E$2=\"Orkney Health Board\",Calculations!$E$2=\"Orkney Islands Local Authority\"),$F68=1),0,IF(AND(OR(Calculations!$E$2=\"Shetland Health Board\",Calculations!$E$2=\"Western Isles Health Board\",Calculations!$E$2=\"Shetland Islands Local Authority\",Calculations!$E$2=\"Eilean Siar Local Authority\"),OR($F68=1,$F68=5)),0,new_yllv2(VALUE(LEFT(Options!$B$24,2)),$C68,$D68,$E68,$F68,2016,$I68,1,$H68,$G68*$H68,Options!$B$8)))","v":3372.8630622557998},{"$f":"IF(AND(OR(Calculations!$E$2=\"Orkney Health Board\",Calculations!$E$2=\"Orkney Islands Local Authority\"),$F68=1),0,IF(AND(OR(Calculations!$E$2=\"Shetland Health Board\",Calculations!$E$2=\"Western Isles Health Board\",Calculations!$E$2=\"Shetland Islands Local Authority\",Calculations!$E$2=\"Eilean Siar Local Authority\"),OR($F68=1,$F68=5)),0,new_yllv2(VALUE(LEFT(Options!$B$24,2)),$C68,$D68,$E68,$F68,2016,$I68+$J68,1,$H68,$G68*$H68,Options!$B$8)))","v":3280.3968581247},{"$f":"IF(AND(OR(Calculations!$E$2=\"Orkney Health Board\",Calculations!$E$2=\"Orkney Islands Local Authority\"),$F68=1),0,IF(AND(OR(Calculations!$E$2=\"Shetland Health Board\",Calculations!$E$2=\"Western Isles Health Board\",Calculations!$E$2=\"Shetland Islands Local Authority\",Calculations!$E$2=\"Eilean Siar Local Authority\"),OR($F68=1,$F68=5)),0,hosp_count(VALUE(LEFT(Options!$B$24,2)),$C68,$E68,$F68,2016,$I68,1,$H68,$G68*$H68, Options!$B$8)))","v":8888.1852506181003},{"$f":"IF(AND(OR(Calculations!$E$2=\"Orkney Health Board\",Calculations!$E$2=\"Orkney Islands Local Authority\"),$F68=1),0,IF(AND(OR(Calculations!$E$2=\"Shetland Health Board\",Calculations!$E$2=\"Western Isles Health Board\",Calculations!$E$2=\"Shetland Islands Local Authority\",Calculations!$E$2=\"Eilean Siar Local Authority\"),OR($F68=1,$F68=5)),0,hosp_count(VALUE(LEFT(Options!$B$24,2)),$C68,$E68,$F68,2016,$I68+$J68,1,$H68,$G68*$H68, Options!$B$8)))","v":8869.0045095082005},{"$f":"IF(AND(OR(Calculations!$E$2=\"Orkney Health Board\",Calculations!$E$2=\"Orkney Islands Local Authority\"),$F68=1),0,IF(AND(OR(Calculations!$E$2=\"Shetland Health Board\",Calculations!$E$2=\"Western Isles Health Board\",Calculations!$E$2=\"Shetland Islands Local Authority\",Calculations!$E$2=\"Eilean Siar Local Authority\"),OR($F68=1,$F68=5)),0,prem_mort(VALUE(LEFT(Options!$B$24,2)),$C68,$E68,$F68,2016,$I68,1,$H68,$G68*$H68,Options!$B$8)))","v":85.976622235600004},{"$f":"IF(AND(OR(Calculations!$E$2=\"Orkney Health Board\",Calculations!$E$2=\"Orkney Islands Local Authority\"),$F68=1),0,IF(AND(OR(Calculations!$E$2=\"Shetland Health Board\",Calculations!$E$2=\"Western Isles Health Board\",Calculations!$E$2=\"Shetland Islands Local Authority\",Calculations!$E$2=\"Eilean Siar Local Authority\"),OR($F68=1,$F68=5)),0,prem_mort(VALUE(LEFT(Options!$B$24,2)),$C68,$E68,$F68,2016,$I68+$J68,1,$H68,$G68*$H68,Options!$B$8)))","v":83.619594465600002},255.40392191902089,248.4020867587559,10019.496367690936,9744.8143603502376,26403.425869999999,26346.447166052345,255.40392191902089,248.4020867587559,1787827.4534331462,1738814.6073112914,70136474.57383655,68213700.522451669,184823981.09,184425130.16236642,1787827.4534331462,1738814.6073112914,7000]
[null,"Female 45-49",47.025772000000003,82.585769999999997,"female",1,{"$f":"HLOOKUP(Calculations!$E$2,'Prevalence Rates'!$C$3:$BC$249,'Prevalence Rates'!$BD69,FALSE)","v":0.40929535232383807},{"$f":"HLOOKUP(Calculations!$E$2,'Population 2016'!$C$3:$BC$249,'Population 2016'!BD69,FALSE)","v":39197},0,{"$f":"HLOOKUP(Results!E$4,Targeting!$C$3:$F$249,Targeting!$G69,FALSE)","v":2661},{"$f":"IF(AND(OR(Calculations!$E$2=\"Orkney Health Board\",Calculations!$E$2=\"Orkney Islands Local Authority\"),$F69=1),0,IF(AND(OR(Calculations!$E$2=\"Shetland Health Board\",Calculations!$E$2=\"Western Isles Health Board\",Calculations!$E$2=\"Shetland Islands Local Authority\",Calculations!$E$2=\"Eilean Siar Local Authority\"),OR($F69=1,$F69=5)),0,new_ci(VALUE(LEFT(Options!$B$24,2)),$C69,$E69,$F69,2016,$I69,1,$H69,$G69*$H69,Options!$B$8)))","v":152.39375001900001},{"$f":"IF(AND(OR(Calculations!$E$2=\"Orkney Health Board\",Calculations!$E$2=\"Orkney Islands Local Authority\"),$F69=1),0,IF(AND(OR(Calculations!$E$2=\"Shetland Health Board\",Calculations!$E$2=\"Western Isles Health Board\",Calculations!$E$2=\"Shetland Islands Local Authority\",Calculations!$E$2=\"Eilean Siar Local Authority\"),OR($F69=1,$F69=5)),0,new_ci(VALUE(LEFT(Options!$B$24,2)),$C69,$E69,$F69,2016,$I69+$J69,1,$H69,$G69*$H69,Options!$B$8)))","v":148.28349890250001},{"$f":"IF(AND(OR(Calculations!$E$2=\"Orkney Health Board\",Calculations!$E$2=\"Orkney Islands Local Authority\"),$F69=1),0,IF(AND(OR(Calculations!$E$2=\"Shetland Health Board\",Calculations!$E$2=\"Western Isles Health Board\",Calculations!$E$2=\"Shetland Islands Local Authority\",Calculations!$E$2=\"Eilean Siar Local Authority\"),OR($F69=1,$F69=5)),0,new_yllv2(VALUE(LEFT(Options!$B$24,2)),$C69,$D69,$E69,$F69,2016,$I69,1,$H69,$G69*$H69,Options!$B$8)))","v":5266.7276958691},{"$f":"IF(AND(OR(Calculations!$E$2=\"Orkney Health Board\",Calculations!$E$2=\"Orkney Islands Local Authority\"),$F69=1),0,IF(AND(OR(Calculations!$E$2=\"Shetland Health Board\",Calculations!$E$2=\"Western Isles Health Board\",Calculations!$E$2=\"Shetland Islands Local Authority\",Calculations!$E$2=\"Eilean Siar Local Authority\"),OR($F69=1,$F69=5)),0,new_yllv2(VALUE(LEFT(Options!$B$24,2)),$C69,$D69,$E69,$F69,2016,$I69+$J69,1,$H69,$G69*$H69,Options!$B$8)))","v":5124.6774255033997},{"$f":"IF(AND(OR(Calculations!$E$2=\"Orkney Health Board\",Calculations!$E$2=\"Orkney Islands Local Authority\"),$F69=1),0,IF(AND(OR(Calculations!$E$2=\"Shetland Health Board\",Calculations!$E$2=\"Western Isles Health Board\",Calculations!$E$2=\"Shetland Islands Local Authority\",Calculations!$E$2=\"Eilean Siar Local Authority\"),OR($F69=1,$F69=5)),0,hosp_count(VALUE(LEFT(Options!$B$24,2)),$C69,$E69,$F69,2016,$I69,1,$H69,$G69*$H69, Options!$B$8)))","v":11721.123672973999},{"$f":"IF(AND(OR(Calculations!$E$2=\"Orkney Health Board\",Calculations!$E$2=\"Orkney Islands Local Authority\"),$F69=1),0,IF(AND(OR(Calculations!$E$2=\"Shetland Health Board\",Calculations!$E$2=\"Western Isles Health Board\",Calculations!$E$2=\"Shetland Islands Local Authority\",Calculations!$E$2=\"Eilean Siar Local Authority\"),OR($F69=1,$F69=5)),0,hosp_count(VALUE(LEFT(Options!$B$24,2)),$C69,$E69,$F69,2016,$I69+$J69,1,$H69,$G69*$H69, Options!$B$8)))","v":11695.850573048099},{"$f":"IF(AND(OR(Calculations!$E$2=\"Orkney Health Board\",Calculations!$E$2=\"Orkney Islands Local Authority\"),$F69=1),0,IF(AND(OR(Calculations!$E$2=\"Shetland Health Board\",Calculations!$E$2=\"Western Isles Health Board\",Calculations!$E$2=\"Shetland Islands Local Authority\",Calculations!$E$2=\"Eilean Siar Local Authority\"),OR($F69=1,$F69=5)),0,prem_mort(VALUE(LEFT(Options!$B$24,2)),$C69,$E69,$F69,2016,$I69,1,$H69,$G69*$H69,Options!$B$8)))","v":152.39375001900001},{"$f":"IF(AND(OR(Calculations!$E$2=\"Orkney Health Board\",Calculations!$E$2=\"Orkney Islands Local Authority\"),$F69=1),0,IF(AND(OR(Calculations!$E$2=\"Shetland Health Board\",Calculations!$E$2=\"Western Isles Health Board\",Calculations!$E$2=\"Shetland Islands Local Authority\",Calculations!$E$2=\"Eilean Siar Local Authority\"),OR($F69=1,$F69=5)),0,prem_mort(VALUE(LEFT(Options!$B$24,2)),$C69,$E69,$F69,2016,$I69+$J69,1,$H69,$G69*$H69,Options!$B$8)))","v":148.28349890250001},388.78932065974436,378.30318366839299,13436.558144422022,13074.157270973288,29903.1142,29838.63707183738,388.78932065974436,378.30318366839299,2721525.2446182105,2648122.2856787508,94055907.010954157,91519100.89681302,209321799.40000001,208870459.50286165,2721525.2446182105,2648122.2856787508,7000]
[null,"Female 50-54",51.990825999999998,82.980829999999997,"female",1,{"$f":"HLOOKUP(Calculations!$E$2,'Prevalence Rates'!$C$3:$BC$249,'Prevalence Rates'!$BD70,FALSE)","v":0.40929535232383807},{"$f":"HLOOKUP(Calculations!$E$2,'Population 2016'!$C$3:$BC$249,'Population 2016'!BD70,FALSE)","v":39704},0,{"$f":"HLOOKUP(Results!E$4,Targeting!$C$3:$F$249,Targeting!$G70,FALSE)","v":2695},{"$f":"IF(AND(OR(Calculations!$E$2=\"Orkney Health Board\",Calculations!$E$2=\"Orkney Islands Local Authority\"),$F70=1),0,IF(AND(OR(Calculations!$E$2=\"Shetland Health Board\",Calculations!$E$2=\"Western Isles Health Board\",Calculations!$E$2=\"Shetland Islands Local Authority\",Calculations!$E$2=\"Eilean Siar Local Authority\"),OR($F70=1,$F70=5)),0,new_ci(VALUE(LEFT(Options!$B$24,2)),$C70,$E70,$F70,2016,$I70,1,$H70,$G70*$H70,Options!$B$8)))","v":235.23161215510001},{"$f":"IF(AND(OR(Calculations!$E$2=\"Orkney Health Board\",Calculations!$E$2=\"Orkney Islands Local Authority\"),$F70=1),0,IF(AND(OR(Calculations!$E$2=\"Shetland Health Board\",Calculations!$E$2=\"Western Isles Health Board\",Calculations!$E$2=\"Shetland Islands Local Authority\",Calculations!$E$2=\"Eilean Siar Local Authority\"),OR($F70=1,$F70=5)),0,new_ci(VALUE(LEFT(Options!$B$24,2)),$C70,$E70,$F70,2016,$I70+$J70,1,$H70,$G70*$H70,Options!$B$8)))","v":228.89431911610001},{"$f":"IF(AND(OR(Calculations!$E$2=\"Orkney Health Board\",Calculations!$E$2=\"Orkney Islands Local Authority\"),$F70=1),0,IF(AND(OR(Calculations!$E$2=\"Shetland Health Board\",Calculations!$E$2=\"Western Isles Health Board\",Calculations!$E$2=\"Shetland Islands Local Authority\",Calculations!$E$2=\"Eilean Siar Local Authority\"),OR($F70=1,$F70=5)),0,new_yllv2(VALUE(LEFT(Options!$B$24,2)),$C70,$D70,$E70,$F70,2016,$I70,1,$H70,$G70*$H70,Options!$B$8)))","v":7054.5969894579002},{"$f":"IF(AND(OR(Calculations!$E$2=\"Orkney Health Board\",Calculations!$E$2=\"Orkney Islands Local Authority\"),$F70=1),0,IF(AND(OR(Calculations!$E$2=\"Shetland Health Board\",Calculations!$E$2=\"Western Isles Health Board\",Calculations!$E$2=\"Shetland Islands Local Authority\",Calculations!$E$2=\"Eilean Siar Local Authority\"),OR($F70=1,$F70=5)),0,new_yllv2(VALUE(LEFT(Options!$B$24,2)),$C70,$D70,$E70,$F70,2016,$I70+$J70,1,$H70,$G70*$H70,Options!$B$8)))","v":6864.5415458691004},{"$f":"IF(AND(OR(Calculations!$E$2=\"Orkney Health Board\",Calculations!$E$2=\"Orkney Islands Local Authority\"),$F70=1),0,IF(AND(OR(Calculations!$E$2=\"Shetland Health Board\",Calculations!$E$2=\"Western Isles Health Board\",Calculations!$E$2=\"Shetland Islands Local Authority\",Calculations!$E$2=\"Eilean Siar Local Authority\"),OR($F70=1,$F70=5)),0,hosp_count(VALUE(LEFT(Options!$B$24,2)),$C70,$E70,$F70,2016,$I70,1,$H70,$G70*$H70, Options!$B$8)))","v":13452.080933396001},{"$f":"IF(AND(OR(Calculations!$E$2=\"Orkney Health Board\",Calculations!$E$2=\"Orkney Islands Local Authority\"),$F70=1),0,IF(AND(OR(Calculations!$E$2=\"Shetland Health Board\",Calculations!$E$2=\"Western Isles Health Board\",Calculations!$E$2=\"Shetland Islands Local Authority\",Calculations!$E$2=\"Eilean Siar Local Authority\"),OR($F70=1,$F70=5)),0,hosp_count(VALUE(LEFT(Options!$B$24,2)),$C70,$E70,$F70,2016,$I70+$J70,1,$H70,$G70*$H70, Options!$B$8)))","v":13423.080051809},{"$f":"IF(AND(OR(Calculations!$E$2=\"Orkney Health Board\",Calculations!$E$2=\"Orkney Islands Local Authority\"),$F70=1),0,IF(AND(OR(Calculations!$E$2=\"Shetland Health Board\",Calculations!$E$2=\"Western Isles Health Board\",Calculations!$E$2=\"Shetland Islands Local Authority\",Calculations!$E$2=\"Eilean Siar Local Authority\"),OR($F70=1,$F70=5)),0,prem_mort(VALUE(LEFT(Options!$B$24,2)),$C70,$E70,$F70,2016,$I70,1,$H70,$G70*$H70,Options!$B$8)))","v":235.23161215510001},{"$f":"IF(AND(OR(Calculations!$E$2=\"Orkney Health Board\",Calculations!$E$2=\"Orkney Islands Local Authority\"),$F70=1),0,IF(AND(OR(Calculations!$E$2=\"Shetland Health Board\",Calculations!$E$2=\"Western Isles Health Board\",Calculations!$E$2=\"Shetland Islands Local Authority\",Calculations!$E$2=\"Eilean Siar Local Authority\"),OR($F70=1,$F70=5)),0,prem_mort(VALUE(LEFT(Options!$B$24,2)),$C70,$E70,$F70,2016,$I70+$J70,1,$H70,$G70*$H70,Options!$B$8)))","v":228.89431911610001},592.46325850065489,576.50191193859564,17767.975492287682,17289.294645046091,33880.921150000002,33807.878429903787,592.46325850065489,576.50191193859564,4147242.8095045844,4035513.3835701696,124375828.44601378,121025062.51532264,237166448.05000001,236655149.00932652,4147242.8095045844,4035513.3835701696,7000]
[null,"Female 55-59",56.953040999999999,83.473039999999997,"female",1,{"$f":"HLOOKUP(Calculations!$E$2,'Prevalence Rates'!$C$3:$BC$249,'Prevalence Rates'!$BD71,FALSE)","v":0.54145516074450084},{"$f":"HLOOKUP(Calculations!$E$2,'Population 2016'!$C$3:$BC$249,'Population 2016'!BD71,FALSE)","v":35528},0,{"$f":"HLOOKUP(Results!E$4,Targeting!$C$3:$F$249,Targeting!$G71,FALSE)","v":2412},{"$f":"IF(AND(OR(Calculations!$E$2=\"Orkney Health Board\",Calculations!$E$2=\"Orkney Islands Local Authority\"),$F71=1),0,IF(AND(OR(Calculations!$E$2=\"Shetland Health Board\",Calculations!$E$2=\"Western Isles Health Board\",Calculations!$E$2=\"Shetland Islands Local Authority\",Calculations!$E$2=\"Eilean Siar Local Authority\"),OR($F71=1,$F71=5)),0,new_ci(VALUE(LEFT(Options!$B$24,2)),$C71,$E71,$F71,2016,$I71,1,$H71,$G71*$H71,Options!$B$8)))","v":320.50789214100001},{"$f":"IF(AND(OR(Calculations!$E$2=\"Orkney Health Board\",Calculations!$E$2=\"Orkney Islands Local Authority\"),$F71=1),0,IF(AND(OR(Calculations!$E$2=\"Shetland Health Board\",Calculations!$E$2=\"Western Isles Health Board\",Calculations!$E$2=\"Shetland Islands Local Authority\",Calculations!$E$2=\"Eilean Siar Local Authority\"),OR($F71=1,$F71=5)),0,new_ci(VALUE(LEFT(Options!$B$24,2)),$C71,$E71,$F71,2016,$I71+$J71,1,$H71,$G71*$H71,Options!$B$8)))","v":312.23279096340002},{"$f":"IF(AND(OR(Calculations!$E$2=\"Orkney Health Board\",Calculations!$E$2=\"Orkney Islands Local Authority\"),$F71=1),0,IF(AND(OR(Calculations!$E$2=\"Shetland Health Board\",Calculations!$E$2=\"Western Isles Health Board\",Calculations!$E$2=\"Shetland Islands Local Authority\",Calculations!$E$2=\"Eilean Siar Local Authority\"),OR($F71=1,$F71=5)),0,new_yllv2(VALUE(LEFT(Options!$B$24,2)),$C71,$D71,$E71,$F71,2016,$I71,1,$H71,$G71*$H71,Options!$B$8)))","v":8179.3610869304002},{"$f":"IF(AND(OR(Calculations!$E$2=\"Orkney Health Board\",Calculations!$E$2=\"Orkney Islands Local Authority\"),$F71=1),0,IF(AND(OR(Calculations!$E$2=\"Shetland Health Board\",Calculations!$E$2=\"Western Isles Health Board\",Calculations!$E$2=\"Shetland Islands Local Authority\",Calculations!$E$2=\"Eilean Siar Local Authority\"),OR($F71=1,$F71=5)),0,new_yllv2(VALUE(LEFT(Options!$B$24,2)),$C71,$D71,$E71,$F71,2016,$I71+$J71,1,$H71,$G71*$H71,Options!$B$8)))","v":7968.1805131532001},{"$f":"IF(AND(OR(Calculations!$E$2=\"Orkney Health Board\",Calculations!$E$2=\"Orkney Islands Local Authority\"),$F71=1),0,IF(AND(OR(Calculations!$E$2=\"Shetland Health Board\",Calculations!$E$2=\"Western Isles Health Board\",Calculations!$E$2=\"Shetland Islands Local Authority\",Calculations!$E$2=\"Eilean Siar Local Authority\"),OR($F71=1,$F71=5)),0,hosp_count(VALUE(LEFT(Options!$B$24,2)),$C71,$E71,$F71,2016,$I71,1,$H71,$G71*$H71, Options!$B$8)))","v":13637.468044908001},{"$f":"IF(AND(OR(Calculations!$E$2=\"Orkney Health Board\",Calculations!$E$2=\"Orkney Islands Local Authority\"),$F71=1),0,IF(AND(OR(Calculations!$E$2=\"Shetland Health Board\",Calculations!$E$2=\"Western Isles Health Board\",Calculations!$E$2=\"Shetland Islands Local Authority\",Calculations!$E$2=\"Eilean Siar Local Authority\"),OR($F71=1,$F71=5)),0,hosp_count(VALUE(LEFT(Options!$B$24,2)),$C71,$E71,$F71,2016,$I71+$J71,1,$H71,$G71*$H71, Options!$B$8)))","v":13608.138832984499},{"$f":"IF(AND(OR(Calculations!$E$2=\"Orkney Health Board\",Calculations!$E$2=\"Orkney Islands Local Authority\"),$F71=1),0,IF(AND(OR(Calculations!$E$2=\"Shetland Health Board\",Calculations!$E$2=\"Western Isles Health Board\",Calculations!$E$2=\"Shetland Islands Local Authority\",Calculations!$E$2=\"Eilean Siar Local Authority\"),OR($F71=1,$F71=5)),0,prem_mort(VALUE(LEFT(Options!$B$24,2)),$C71,$E71,$F71,2016,$I71,1,$H71,$G71*$H71,Options!$B$8)))","v":320.50789214100001},{"$f":"IF(AND(OR(Calculations!$E$2=\"Orkney Health Board\",Calculations!$E$2=\"Orkney Islands Local Authority\"),$F71=1),0,IF(AND(OR(Calculations!$E$2=\"Shetland Health Board\",Calculations!$E$2=\"Western Isles Health Board\",Calculations!$E$2=\"Shetland Islands Local Authority\",Calculations!$E$2=\"Eilean Siar Local Authority\"),OR($F71=1,$F71=5)),0,prem_mort(VALUE(LEFT(Options!$B$24,2)),$C71,$E71,$F71,2016,$I71+$J71,1,$H71,$G71*$H71,Options!$B$8)))","v":312.23279096340002},902.12759553310059,878.8358223468814,23022.295335877054,22427.889307456655,38385.127350000002,38302.574963365514,902.12759553310059,878.8358223468814,5863829.3709651539,5712432.8452547295,149644919.68320084,145781280.49846825,249503327.77500001,248966737.26187584,5863829.3709651539,5712432.8452547295,6500]
[null,"Female 60-64",61.947387999999997,84.167389999999997,"female",1,{"$f":"HLOOKUP(Calculations!$E$2,'Prevalence Rates'!$C$3:$BC$249,'Prevalence Rates'!$BD72,FALSE)","v":0.54145516074450084},{"$f":"HLOOKUP(Calculations!$E$2,'Population 2016'!$C$3:$BC$249,'Population 2016'!BD72,FALSE)","v":29212},0,{"$f":"HLOOKUP(Results!E$4,Targeting!$C$3:$F$249,Targeting!$G72,FALSE)","v":1983},{"$f":"IF(AND(OR(Calculations!$E$2=\"Orkney Health Board\",Calculations!$E$2=\"Orkney Islands Local Authority\"),$F72=1),0,IF(AND(OR(Calculations!$E$2=\"Shetland Health Board\",Calculations!$E$2=\"Western Isles Health Board\",Calculations!$E$2=\"Shetland Islands Local Authority\",Calculations!$E$2=\"Eilean Siar Local Authority\"),OR($F72=1,$F72=5)),0,new_ci(VALUE(LEFT(Options!$B$24,2)),$C72,$E72,$F72,2016,$I72,1,$H72,$G72*$H72,Options!$B$8)))","v":402.02183314090001},{"$f":"IF(AND(OR(Calculations!$E$2=\"Orkney Health Board\",Calculations!$E$2=\"Orkney Islands Local Authority\"),$F72=1),0,IF(AND(OR(Calculations!$E$2=\"Shetland Health Board\",Calculations!$E$2=\"Western Isles Health Board\",Calculations!$E$2=\"Shetland Islands Local Authority\",Calculations!$E$2=\"Eilean Siar Local Authority\"),OR($F72=1,$F72=5)),0,new_ci(VALUE(LEFT(Options!$B$24,2)),$C72,$E72,$F72,2016,$I72+$J72,1,$H72,$G72*$H72,Options!$B$8)))","v":391.66508736970002},{"$f":"IF(AND(OR(Calculations!$E$2=\"Orkney Health Board\",Calculations!$E$2=\"Orkney Islands Local Authority\"),$F72=1),0,IF(AND(OR(Calculations!$E$2=\"Shetland Health Board\",Calculations!$E$2=\"Western Isles Health Board\",Calculations!$E$2=\"Shetland Islands Local Authority\",Calculations!$E$2=\"Eilean Siar Local Authority\"),OR($F72=1,$F72=5)),0,new_yllv2(VALUE(LEFT(Options!$B$24,2)),$C72,$D72,$E72,$F72,2016,$I72,1,$H72,$G72*$H72,Options!$B$8)))","v":8530.9041032936002},{"$f":"IF(AND(OR(Calculations!$E$2=\"Orkney Health Board\",Calculations!$E$2=\"Orkney Islands Local Authority\"),$F72=1),0,IF(AND(OR(Calculations!$E$2=\"Shetland Health Board\",Calculations!$E$2=\"Western Isles Health Board\",Calculations!$E$2=\"Shetland Islands Local Authority\",Calculations!$E$2=\"Eilean Siar Local Authority\"),OR($F72=1,$F72=5)),0,new_yllv2(VALUE(LEFT(Options!$B$24,2)),$C72,$D72,$E72,$F72,2016,$I72+$J72,1,$H72,$G72*$H72,Options!$B$8)))","v":8311.1339373152005},{"$f":"IF(AND(OR(Calculations!$E$2=\"Orkney Health Board\",Calculations!$E$2=\"Orkney Islands Local Authority\"),$F72=1),0,IF(AND(OR(Calculations!$E$2=\"Shetland Health Board\",Calculations!$E$2=\"Western Isles Health Board\",Calculations!$E$2=\"Shetland Islands Local Authority\",Calculations!$E$2=\"Eilean Siar Local Authority\"),OR($F72=1,$F72=5)),0,hosp_count(VALUE(LEFT(Options!$B$24,2)),$C72,$E72,$F72,2016,$I72,1,$H72,$G72*$H72, Options!$B$8)))","v":12714.0251895444},{"$f":"IF(AND(OR(Calculations!$E$2=\"Orkney Health Board\",Calculations!$E$2=\"Orkney Islands Local Authority\"),$F72=1),0,IF(AND(OR(Calculations!$E$2=\"Shetland Health Board\",Calculations!$E$2=\"Western Isles Health Board\",Calculations!$E$2=\"Shetland Islands Local Authority\",Calculations!$E$2=\"Eilean Siar Local Authority\"),OR($F72=1,$F72=5)),0,hosp_count(VALUE(LEFT(Options!$B$24,2)),$C72,$E72,$F72,2016,$I72+$J72,1,$H72,$G72*$H72, Options!$B$8)))","v":12686.6848064572},{"$f":"IF(AND(OR(Calculations!$E$2=\"Orkney Health Board\",Calculations!$E$2=\"Orkney Islands Local Authority\"),$F72=1),0,IF(AND(OR(Calculations!$E$2=\"Shetland Health Board\",Calculations!$E$2=\"Western Isles Health Board\",Calculations!$E$2=\"Shetland Islands Local Authority\",Calculations!$E$2=\"Eilean Siar Local Authority\"),OR($F72=1,$F72=5)),0,prem_mort(VALUE(LEFT(Options!$B$24,2)),$C72,$E72,$F72,2016,$I72,1,$H72,$G72*$H72,Options!$B$8)))","v":402.02183314090001},{"$f":"IF(AND(OR(Calculations!$E$2=\"Orkney Health Board\",Calculations!$E$2=\"Orkney Islands Local Authority\"),$F72=1),0,IF(AND(OR(Calculations!$E$2=\"Shetland Health Board\",Calculations!$E$2=\"Western Isles Health Board\",Calculations!$E$2=\"Shetland Islands Local Authority\",Calculations!$E$2=\"Eilean Siar Local Authority\"),OR($F72=1,$F72=5)),0,prem_mort(VALUE(LEFT(Options!$B$24,2)),$C72,$E72,$F72,2016,$I72+$J72,1,$H72,$G72*$H72,Options!$B$8)))","v":391.66508736970002},1376.221529306107,1340.7677918995619,29203.423604318774,28451.095225644258,43523.295869999994,43429.702883942213,1376.221529306107,1340.7677918995619,8257329.1758366413,8044606.7513973713,175220541.62591264,170706571.35386553,261139775.21999997,260578217.30365327,8257329.1758366413,8044606.7513973713,6000]
[null,"Female 65-69",67.063927000000007,85.193929999999995,"female",1,{"$f":"HLOOKUP(Calculations!$E$2,'Prevalence Rates'!$C$3:$BC$249,'Prevalence Rates'!$BD73,FALSE)","v":0},{"$f":"HLOOKUP(Calculations!$E$2,'Population 2016'!$C$3:$BC$249,'Population 2016'!BD73,FALSE)","v":27762},0,{"$f":"HLOOKUP(Results!E$4,Targeting!$C$3:$F$249,Targeting!$G73,FALSE)","v":0},{"$f":"IF(AND(OR(Calculations!$E$2=\"Orkney Health Board\",Calculations!$E$2=\"Orkney Islands Local Authority\"),$F73=1),0,IF(AND(OR(Calculations!$E$2=\"Shetland Health Board\",Calculations!$E$2=\"Western Isles Health Board\",Calculations!$E$2=\"Shetland Islands Local Authority\",Calculations!$E$2=\"Eilean Siar Local Authority\"),OR($F73=1,$F73=5)),0,new_ci(VALUE(LEFT(Options!$B$24,2)),$C73,$E73,$F73,2016,$I73,1,$H73,$G73*$H73,Options!$B$8)))","v":588.26276296619994},{"$f":"IF(AND(OR(Calculations!$E$2=\"Orkney Health Board\",Calculations!$E$2=\"Orkney Islands Local Authority\"),$F73=1),0,IF(AND(OR(Calculations!$E$2=\"Shetland Health Board\",Calculations!$E$2=\"Western Isles Health Board\",Calculations!$E$2=\"Shetland Islands Local Authority\",Calculations!$E$2=\"Eilean Siar Local Authority\"),OR($F73=1,$F73=5)),0,new_ci(VALUE(LEFT(Options!$B$24,2)),$C73,$E73,$F73,2016,$I73+$J73,1,$H73,$G73*$H73,Options!$B$8)))","v":588.26276296619994},{"$f":"IF(AND(OR(Calculations!$E$2=\"Orkney Health Board\",Calculations!$E$2=\"Orkney Islands Local Authority\"),$F73=1),0,IF(AND(OR(Calculations!$E$2=\"Shetland Health Board\",Calculations!$E$2=\"Western Isles Health Board\",Calculations!$E$2=\"Shetland Islands Local Authority\",Calculations!$E$2=\"Eilean Siar Local Authority\"),OR($F73=1,$F73=5)),0,new_yllv2(VALUE(LEFT(Options!$B$24,2)),$C73,$D73,$E73,$F73,2016,$I73,1,$H73,$G73*$H73,Options!$B$8)))","v":10076.942894399301},{"$f":"IF(AND(OR(Calculations!$E$2=\"Orkney Health Board\",Calculations!$E$2=\"Orkney Islands Local Authority\"),$F73=1),0,IF(AND(OR(Calculations!$E$2=\"Shetland Health Board\",Calculations!$E$2=\"Western Isles Health Board\",Calculations!$E$2=\"Shetland Islands Local Authority\",Calculations!$E$2=\"Eilean Siar Local Authority\"),OR($F73=1,$F73=5)),0,new_yllv2(VALUE(LEFT(Options!$B$24,2)),$C73,$D73,$E73,$F73,2016,$I73+$J73,1,$H73,$G73*$H73,Options!$B$8)))","v":10076.942894399301},{"$f":"IF(AND(OR(Calculations!$E$2=\"Orkney Health Board\",Calculations!$E$2=\"Orkney Islands Local Authority\"),$F73=1),0,IF(AND(OR(Calculations!$E$2=\"Shetland Health Board\",Calculations!$E$2=\"Western Isles Health Board\",Calculations!$E$2=\"Shetland Islands Local Authority\",Calculations!$E$2=\"Eilean Siar Local Authority\"),OR($F73=1,$F73=5)),0,hosp_count(VALUE(LEFT(Options!$B$24,2)),$C73,$E73,$F73,2016,$I73,1,$H73,$G73*$H73, Options!$B$8)))","v":13742.512922031599},{"$f":"IF(AND(OR(Calculations!$E$2=\"Orkney Health Board\",Calculations!$E$2=\"Orkney Islands Local Authority\"),$F73=1),0,IF(AND(OR(Calculations!$E$2=\"Shetland Health Board\",Calculations!$E$2=\"Western Isles Health Board\",Calculations!$E$2=\"Shetland Islands Local Authority\",Calculations!$E$2=\"Eilean Siar Local Authority\"),OR($F73=1,$F73=5)),0,hosp_count(VALUE(LEFT(Options!$B$24,2)),$C73,$E73,$F73,2016,$I73+$J73,1,$H73,$G73*$H73, Options!$B$8)))","v":13742.512922031599},{"$f":"IF(AND(OR(Calculations!$E$2=\"Orkney Health Board\",Calculations!$E$2=\"Orkney Islands Local Authority\"),$F73=1),0,IF(AND(OR(Calculations!$E$2=\"Shetland Health Board\",Calculations!$E$2=\"Western Isles Health Board\",Calculations!$E$2=\"Shetland Islands Local Authority\",Calculations!$E$2=\"Eilean Siar Local Authority\"),OR($F73=1,$F73=5)),0,prem_mort(VALUE(LEFT(Options!$B$24,2)),$C73,$E73,$F73,2016,$I73,1,$H73,$G73*$H73,Options!$B$8)))","v":588.26276296619994},{"$f":"IF(AND(OR(Calculations!$E$2=\"Orkney Health Board\",Calculations!$E$2=\"Orkney Islands Local Authority\"),$F73=1),0,IF(AND(OR(Calculations!$E$2=\"Shetland Health Board\",Calculations!$E$2=\"Western Isles Health Board\",Calculations!$E$2=\"Shetland Islands Local Authority\",Calculations!$E$2=\"Eilean Siar Local Authority\"),OR($F73=1,$F73=5)),0,prem_mort(VALUE(LEFT(Options!$B$24,2)),$C73,$E73,$F73,2016,$I73+$J73,1,$H73,$G73*$H73,Options!$B$8)))","v":588.26276296619994},2118.9495099999999,2118.9495099999999,36297.611463148554,36297.611463148554,49501.163180000003,49501.163180000003,2118.9495099999999,2118.9495099999999,11654222.305,11654222.305,199636863.04731706,199636863.04731706,272256397.49000001,272256397.49000001,11654222.305,11654222.305,5500]
[null,"Female 70-74",71.938164,86.248159999999999,"female",1,{"$f":"HLOOKUP(Calculations!$E$2,'Prevalence Rates'!$C$3:$BC$249,'Prevalence Rates'!$BD74,FALSE)","v":0},{"$f":"HLOOKUP(Calculations!$E$2,'Population 2016'!$C$3:$BC$249,'Population 2016'!BD74,FALSE)","v":21786},0,{"$f":"HLOOKUP(Results!E$4,Targeting!$C$3:$F$249,Targeting!$G74,FALSE)","v":0},{"$f":"IF(AND(OR(Calculations!$E$2=\"Orkney Health Board\",Calculations!$E$2=\"Orkney Islands Local Authority\"),$F74=1),0,IF(AND(OR(Calculations!$E$2=\"Shetland Health Board\",Calculations!$E$2=\"Western Isles Health Board\",Calculations!$E$2=\"Shetland Islands Local Authority\",Calculations!$E$2=\"Eilean Siar Local Authority\"),OR($F74=1,$F74=5)),0,new_ci(VALUE(LEFT(Options!$B$24,2)),$C74,$E74,$F74,2016,$I74,1,$H74,$G74*$H74,Options!$B$8)))","v":694.97192726640003},{"$f":"IF(AND(OR(Calculations!$E$2=\"Orkney Health Board\",Calculations!$E$2=\"Orkney Islands Local Authority\"),$F74=1),0,IF(AND(OR(Calculations!$E$2=\"Shetland Health Board\",Calculations!$E$2=\"Western Isles Health Board\",Calculations!$E$2=\"Shetland Islands Local Authority\",Calculations!$E$2=\"Eilean Siar Local Authority\"),OR($F74=1,$F74=5)),0,new_ci(VALUE(LEFT(Options!$B$24,2)),$C74,$E74,$F74,2016,$I74+$J74,1,$H74,$G74*$H74,Options!$B$8)))","v":694.97192726640003},{"$f":"IF(AND(OR(Calculations!$E$2=\"Orkney Health Board\",Calculations!$E$2=\"Orkney Islands Local Authority\"),$F74=1),0,IF(AND(OR(Calculations!$E$2=\"Shetland Health Board\",Calculations!$E$2=\"Western Isles Health Board\",Calculations!$E$2=\"Shetland Islands Local Authority\",Calculations!$E$2=\"Eilean Siar Local Authority\"),OR($F74=1,$F74=5)),0,new_yllv2(VALUE(LEFT(Options!$B$24,2)),$C74,$D74,$E74,$F74,2016,$I74,1,$H74,$G74*$H74,Options!$B$8)))","v":9250.0735720281009},{"$f":"IF(AND(OR(Calculations!$E$2=\"Orkney Health Board\",Calculations!$E$2=\"Orkney Islands Local Authority\"),$F74=1),0,IF(AND(OR(Calculations!$E$2=\"Shetland Health Board\",Calculations!$E$2=\"Western Isles Health Board\",Calculations!$E$2=\"Shetland Islands Local Authority\",Calculations!$E$2=\"Eilean Siar Local Authority\"),OR($F74=1,$F74=5)),0,new_yllv2(VALUE(LEFT(Options!$B$24,2)),$C74,$D74,$E74,$F74,2016,$I74+$J74,1,$H74,$G74*$H74,Options!$B$8)))","v":9250.0735720281009},{"$f":"IF(AND(OR(Calculations!$E$2=\"Orkney Health Board\",Calculations!$E$2=\"Orkney Islands Local Authority\"),$F74=1),0,IF(AND(OR(Calculations!$E$2=\"Shetland Health Board\",Calculations!$E$2=\"Western Isles Health Board\",Calculations!$E$2=\"Shetland Islands Local Authority\",Calculations!$E$2=\"Eilean Siar Local Authority\"),OR($F74=1,$F74=5)),0,hosp_count(VALUE(LEFT(Options!$B$24,2)),$C74,$E74,$F74,2016,$I74,1,$H74,$G74*$H74, Options!$B$8)))","v":12191.007503147401},{"$f":"IF(AND(OR(Calculations!$E$2=\"Orkney Health Board\",Calculations!$E$2=\"Orkney Islands Local Authority\"),$F74=1),0,IF(AND(OR(Calculations!$E$2=\"Shetland Health Board\",Calculations!$E$2=\"Western Isles Health Board\",Calculations!$E$2=\"Shetland Islands Local Authority\",Calculations!$E$2=\"Eilean Siar Local Authority\"),OR($F74=1,$F74=5)),0,hosp_count(VALUE(LEFT(Options!$B$24,2)),$C74,$E74,$F74,2016,$I74+$J74,1,$H74,$G74*$H74, Options!$B$8)))","v":12191.007503147401},{"$f":"IF(AND(OR(Calculations!$E$2=\"Orkney Health Board\",Calculations!$E$2=\"Orkney Islands Local Authority\"),$F74=1),0,IF(AND(OR(Calculations!$E$2=\"Shetland Health Board\",Calculations!$E$2=\"Western Isles Health Board\",Calculations!$E$2=\"Shetland Islands Local Authority\",Calculations!$E$2=\"Eilean Siar Local Authority\"),OR($F74=1,$F74=5)),0,prem_mort(VALUE(LEFT(Options!$B$24,2)),$C74,$E74,$F74,2016,$I74,1,$H74,$G74*$H74,Options!$B$8)))","v":694.97192726640003},{"$f":"IF(AND(OR(Calculations!$E$2=\"Orkney Health Board\",Calculations!$E$2=\"Orkney Islands Local Authority\"),$F74=1),0,IF(AND(OR(Calculations!$E$2=\"Shetland Health Board\",Calculations!$E$2=\"Western Isles Health Board\",Calculations!$E$2=\"Shetland Islands Local Authority\",Calculations!$E$2=\"Eilean Siar Local Authority\"),OR($F74=1,$F74=5)),0,prem_mort(VALUE(LEFT(Options!$B$24,2)),$C74,$E74,$F74,2016,$I74+$J74,1,$H74,$G74*$H74,Options!$B$8)))","v":694.97192726640003},3189.9932400000002,3189.9932400000002,42458.797264427158,42458.797264427158,55957.98909000001,55957.98909000001,3189.9932400000002,3189.9932400000002,15949966.200000001,15949966.200000001,212293986.32213578,212293986.32213578,279789945.45000005,279789945.45000005,15949966.200000001,15949966.200000001,5000]
[null,"Female 75-79",76.942824999999999,87.812830000000005,"female",1,{"$f":"HLOOKUP(Calculations!$E$2,'Prevalence Rates'!$C$3:$BC$249,'Prevalence Rates'!$BD75,FALSE)","v":0},{"$f":"HLOOKUP(Calculations!$E$2,'Population 2016'!$C$3:$BC$249,'Population 2016'!BD75,FALSE)","v":19138},0,{"$f":"HLOOKUP(Results!E$4,Targeting!$C$3:$F$249,Targeting!$G75,FALSE)","v":0},{"$f":"IF(AND(OR(Calculations!$E$2=\"Orkney Health Board\",Calculations!$E$2=\"Orkney Islands Local Authority\"),$F75=1),0,IF(AND(OR(Calculations!$E$2=\"Shetland Health Board\",Calculations!$E$2=\"Western Isles Health Board\",Calculations!$E$2=\"Shetland Islands Local Authority\",Calculations!$E$2=\"Eilean Siar Local Authority\"),OR($F75=1,$F75=5)),0,new_ci(VALUE(LEFT(Options!$B$24,2)),$C75,$E75,$F75,2016,$I75,1,$H75,$G75*$H75,Options!$B$8)))","v":926.4920777154},{"$f":"IF(AND(OR(Calculations!$E$2=\"Orkney Health Board\",Calculations!$E$2=\"Orkney Islands Local Authority\"),$F75=1),0,IF(AND(OR(Calculations!$E$2=\"Shetland Health Board\",Calculations!$E$2=\"Western Isles Health Board\",Calculations!$E$2=\"Shetland Islands Local Authority\",Calculations!$E$2=\"Eilean Siar Local Authority\"),OR($F75=1,$F75=5)),0,new_ci(VALUE(LEFT(Options!$B$24,2)),$C75,$E75,$F75,2016,$I75+$J75,1,$H75,$G75*$H75,Options!$B$8)))","v":926.4920777154},{"$f":"IF(AND(OR(Calculations!$E$2=\"Orkney Health Board\",Calculations!$E$2=\"Orkney Islands Local Authority\"),$F75=1),0,IF(AND(OR(Calculations!$E$2=\"Shetland Health Board\",Calculations!$E$2=\"Western Isles Health Board\",Calculations!$E$2=\"Shetland Islands Local Authority\",Calculations!$E$2=\"Eilean Siar Local Authority\"),OR($F75=1,$F75=5)),0,new_yllv2(VALUE(LEFT(Options!$B$24,2)),$C75,$D75,$E75,$F75,2016,$I75,1,$H75,$G75*$H75,Options!$B$8)))","v":9144.4814395114008},{"$f":"IF(AND(OR(Calculations!$E$2=\"Orkney Health Board\",Calculations!$E$2=\"Orkney Islands Local Authority\"),$F75=1),0,IF(AND(OR(Calculations!$E$2=\"Shetland Health Board\",Calculations!$E$2=\"Western Isles Health Board\",Calculations!$E$2=\"Shetland Islands Local Authority\",Calculations!$E$2=\"Eilean Siar Local Authority\"),OR($F75=1,$F75=5)),0,new_yllv2(VALUE(LEFT(Options!$B$24,2)),$C75,$D75,$E75,$F75,2016,$I75+$J75,1,$H75,$G75*$H75,Options!$B$8)))","v":9144.4814395114008},{"$f":"IF(AND(OR(Calculations!$E$2=\"Orkney Health Board\",Calculations!$E$2=\"Orkney Islands Local Authority\"),$F75=1),0,IF(AND(OR(Calculations!$E$2=\"Shetland Health Board\",Calculations!$E$2=\"Western Isles Health Board\",Calculations!$E$2=\"Shetland Islands Local Authority\",Calculations!$E$2=\"Eilean Siar Local Authority\"),OR($F75=1,$F75=5)),0,hosp_count(VALUE(LEFT(Options!$B$24,2)),$C75,$E75,$F75,2016,$I75,1,$H75,$G75*$H75, Options!$B$8)))","v":12145.911451996},{"$f":"IF(AND(OR(Calculations!$E$2=\"Orkney Health Board\",Calculations!$E$2=\"Orkney Islands Local Authority\"),$F75=1),0,IF(AND(OR(Calculations!$E$2=\"Shetland Health Board\",Calculations!$E$2=\"Western Isles Health Board\",Calculations!$E$2=\"Shetland Islands Local Authority\",Calculations!$E$2=\"Eilean Siar Local Authority\"),OR($F75=1,$F75=5)),0,hosp_count(VALUE(LEFT(Options!$B$24,2)),$C75,$E75,$F75,2016,$I75+$J75,1,$H75,$G75*$H75, Options!$B$8)))","v":12145.911451996},{"$f":"IF(AND(OR(Calculations!$E$2=\"Orkney Health Board\",Calculations!$E$2=\"Orkney Islands Local Authority\"),$F75=1),0,IF(AND(OR(Calculations!$E$2=\"Shetland Health Board\",Calculations!$E$2=\"Western Isles Health Board\",Calculations!$E$2=\"Shetland Islands Local Authority\",Calculations!$E$2=\"Eilean Siar Local Authority\"),OR($F75=1,$F75=5)),0,prem_mort(VALUE(LEFT(Options!$B$24,2)),$C75,$E75,$F75,2016,$I75,1,$H75,$G75*$H75,Options!$B$8)))","v":0},{"$f":"IF(AND(OR(Calculations!$E$2=\"Orkney Health Board\",Calculations!$E$2=\"Orkney Islands Local Authority\"),$F75=1),0,IF(AND(OR(Calculations!$E$2=\"Shetland Health Board\",Calculations!$E$2=\"Western Isles Health Board\",Calculations!$E$2=\"Shetland Islands Local Authority\",Calculations!$E$2=\"Eilean Siar Local Authority\"),OR($F75=1,$F75=5)),0,prem_mort(VALUE(LEFT(Options!$B$24,2)),$C75,$E75,$F75,2016,$I75+$J75,1,$H75,$G75*$H75,Options!$B$8)))","v":0},4841.1123299999999,4841.1123299999999,47781.802902661722,47781.802902661722,63464.894200000002,63464.894200000002,0,0,19364449.32,19364449.32,191127211.6106469,191127211.6106469,253859576.80000001,253859576.80000001,0,0,4000]
[null,"Female 80-84",81.856712000000002,89.736710000000002,"female",1,{"$f":"HLOOKUP(Calculations!$E$2,'Prevalence Rates'!$C$3:$BC$249,'Prevalence Rates'!$BD76,FALSE)","v":0},{"$f":"HLOOKUP(Calculations!$E$2,'Population 2016'!$C$3:$BC$249,'Population 2016'!BD76,FALSE)","v":14776},0,{"$f":"HLOOKUP(Results!E$4,Targeting!$C$3:$F$249,Targeting!$G76,FALSE)","v":0},{"$f":"IF(AND(OR(Calculations!$E$2=\"Orkney Health Board\",Calculations!$E$2=\"Orkney Islands Local Authority\"),$F76=1),0,IF(AND(OR(Calculations!$E$2=\"Shetland Health Board\",Calculations!$E$2=\"Western Isles Health Board\",Calculations!$E$2=\"Shetland Islands Local Authority\",Calculations!$E$2=\"Eilean Siar Local Authority\"),OR($F76=1,$F76=5)),0,new_ci(VALUE(LEFT(Options!$B$24,2)),$C76,$E76,$F76,2016,$I76,1,$H76,$G76*$H76,Options!$B$8)))","v":1072.7087764568},{"$f":"IF(AND(OR(Calculations!$E$2=\"Orkney Health Board\",Calculations!$E$2=\"Orkney Islands Local Authority\"),$F76=1),0,IF(AND(OR(Calculations!$E$2=\"Shetland Health Board\",Calculations!$E$2=\"Western Isles Health Board\",Calculations!$E$2=\"Shetland Islands Local Authority\",Calculations!$E$2=\"Eilean Siar Local Authority\"),OR($F76=1,$F76=5)),0,new_ci(VALUE(LEFT(Options!$B$24,2)),$C76,$E76,$F76,2016,$I76+$J76,1,$H76,$G76*$H76,Options!$B$8)))","v":1072.7087764568},{"$f":"IF(AND(OR(Calculations!$E$2=\"Orkney Health Board\",Calculations!$E$2=\"Orkney Islands Local Authority\"),$F76=1),0,IF(AND(OR(Calculations!$E$2=\"Shetland Health Board\",Calculations!$E$2=\"Western Isles Health Board\",Calculations!$E$2=\"Shetland Islands Local Authority\",Calculations!$E$2=\"Eilean Siar Local Authority\"),OR($F76=1,$F76=5)),0,new_yllv2(VALUE(LEFT(Options!$B$24,2)),$C76,$D76,$E76,$F76,2016,$I76,1,$H76,$G76*$H76,Options!$B$8)))","v":7380.2342366051998},{"$f":"IF(AND(OR(Calculations!$E$2=\"Orkney Health Board\",Calculations!$E$2=\"Orkney Islands Local Authority\"),$F76=1),0,IF(AND(OR(Calculations!$E$2=\"Shetland Health Board\",Calculations!$E$2=\"Western Isles Health Board\",Calculations!$E$2=\"Shetland Islands Local Authority\",Calculations!$E$2=\"Eilean Siar Local Authority\"),OR($F76=1,$F76=5)),0,new_yllv2(VALUE(LEFT(Options!$B$24,2)),$C76,$D76,$E76,$F76,2016,$I76+$J76,1,$H76,$G76*$H76,Options!$B$8)))","v":7380.2342366051998},{"$f":"IF(AND(OR(Calculations!$E$2=\"Orkney Health Board\",Calculations!$E$2=\"Orkney Islands Local Authority\"),$F76=1),0,IF(AND(OR(Calculations!$E$2=\"Shetland Health Board\",Calculations!$E$2=\"Western Isles Health Board\",Calculations!$E$2=\"Shetland Islands Local Authority\",Calculations!$E$2=\"Eilean Siar Local Authority\"),OR($F76=1,$F76=5)),0,hosp_count(VALUE(LEFT(Options!$B$24,2)),$C76,$E76,$F76,2016,$I76,1,$H76,$G76*$H76, Options!$B$8)))","v":10611.3411920208},{"$f":"IF(AND(OR(Calculations!$E$2=\"Orkney Health Board\",Calculations!$E$2=\"Orkney Islands Local Authority\"),$F76=1),0,IF(AND(OR(Calculations!$E$2=\"Shetland Health Board\",Calculations!$E$2=\"Western Isles Health Board\",Calculations!$E$2=\"Shetland Islands Local Authority\",Calculations!$E$2=\"Eilean Siar Local Authority\"),OR($F76=1,$F76=5)),0,hosp_count(VALUE(LEFT(Options!$B$24,2)),$C76,$E76,$F76,2016,$I76+$J76,1,$H76,$G76*$H76, Options!$B$8)))","v":10611.3411920208},{"$f":"IF(AND(OR(Calculations!$E$2=\"Orkney Health Board\",Calculations!$E$2=\"Orkney Islands Local Authority\"),$F76=1),0,IF(AND(OR(Calculations!$E$2=\"Shetland Health Board\",Calculations!$E$2=\"Western Isles Health Board\",Calculations!$E$2=\"Shetland Islands Local Authority\",Calculations!$E$2=\"Eilean Siar Local Authority\"),OR($F76=1,$F76=5)),0,prem_mort(VALUE(LEFT(Options!$B$24,2)),$C76,$E76,$F76,2016,$I76,1,$H76,$G76*$H76,Options!$B$8)))","v":0},{"$f":"IF(AND(OR(Calculations!$E$2=\"Orkney Health Board\",Calculations!$E$2=\"Orkney Islands Local Authority\"),$F76=1),0,IF(AND(OR(Calculations!$E$2=\"Shetland Health Board\",Calculations!$E$2=\"Western Isles Health Board\",Calculations!$E$2=\"Shetland Islands Local Authority\",Calculations!$E$2=\"Eilean Siar Local Authority\"),OR($F76=1,$F76=5)),0,prem_mort(VALUE(LEFT(Options!$B$24,2)),$C76,$E76,$F76,2016,$I76+$J76,1,$H76,$G76*$H76,Options!$B$8)))","v":0},7259.8049299999993,7259.8049299999993,49947.443398789925,49947.443398789925,71814.707580000002,71814.707580000002,0,0,18149512.324999999,18149512.324999999,124868608.49697481,124868608.49697481,179536768.95000002,179536768.95000002,0,0,2500]
[null,"Female 85-89",86.730819999999994,92.220819999999989,"female",1,{"$f":"HLOOKUP(Calculations!$E$2,'Prevalence Rates'!$C$3:$BC$249,'Prevalence Rates'!$BD77,FALSE)","v":0},{"$f":"HLOOKUP(Calculations!$E$2,'Population 2016'!$C$3:$BC$249,'Population 2016'!BD77,FALSE)","v":8869},0,{"$f":"HLOOKUP(Results!E$4,Targeting!$C$3:$F$249,Targeting!$G77,FALSE)","v":0},{"$f":"IF(AND(OR(Calculations!$E$2=\"Orkney Health Board\",Calculations!$E$2=\"Orkney Islands Local Authority\"),$F77=1),0,IF(AND(OR(Calculations!$E$2=\"Shetland Health Board\",Calculations!$E$2=\"Western Isles Health Board\",Calculations!$E$2=\"Shetland Islands Local Authority\",Calculations!$E$2=\"Eilean Siar Local Authority\"),OR($F77=1,$F77=5)),0,new_ci(VALUE(LEFT(Options!$B$24,2)),$C77,$E77,$F77,2016,$I77,1,$H77,$G77*$H77,Options!$B$8)))","v":956.24194746010005},{"$f":"IF(AND(OR(Calculations!$E$2=\"Orkney Health Board\",Calculations!$E$2=\"Orkney Islands Local Authority\"),$F77=1),0,IF(AND(OR(Calculations!$E$2=\"Shetland Health Board\",Calculations!$E$2=\"Western Isles Health Board\",Calculations!$E$2=\"Shetland Islands Local Authority\",Calculations!$E$2=\"Eilean Siar Local Authority\"),OR($F77=1,$F77=5)),0,new_ci(VALUE(LEFT(Options!$B$24,2)),$C77,$E77,$F77,2016,$I77+$J77,1,$H77,$G77*$H77,Options!$B$8)))","v":956.24194746010005},{"$f":"IF(AND(OR(Calculations!$E$2=\"Orkney Health Board\",Calculations!$E$2=\"Orkney Islands Local Authority\"),$F77=1),0,IF(AND(OR(Calculations!$E$2=\"Shetland Health Board\",Calculations!$E$2=\"Western Isles Health Board\",Calculations!$E$2=\"Shetland Islands Local Authority\",Calculations!$E$2=\"Eilean Siar Local Authority\"),OR($F77=1,$F77=5)),0,new_yllv2(VALUE(LEFT(Options!$B$24,2)),$C77,$D77,$E77,$F77,2016,$I77,1,$H77,$G77*$H77,Options!$B$8)))","v":4293.5263440957997},{"$f":"IF(AND(OR(Calculations!$E$2=\"Orkney Health Board\",Calculations!$E$2=\"Orkney Islands Local Authority\"),$F77=1),0,IF(AND(OR(Calculations!$E$2=\"Shetland Health Board\",Calculations!$E$2=\"Western Isles Health Board\",Calculations!$E$2=\"Shetland Islands Local Authority\",Calculations!$E$2=\"Eilean Siar Local Authority\"),OR($F77=1,$F77=5)),0,new_yllv2(VALUE(LEFT(Options!$B$24,2)),$C77,$D77,$E77,$F77,2016,$I77+$J77,1,$H77,$G77*$H77,Options!$B$8)))","v":4293.5263440957997},{"$f":"IF(AND(OR(Calculations!$E$2=\"Orkney Health Board\",Calculations!$E$2=\"Orkney Islands Local Authority\"),$F77=1),0,IF(AND(OR(Calculations!$E$2=\"Shetland Health Board\",Calculations!$E$2=\"Western Isles Health Board\",Calculations!$E$2=\"Shetland Islands Local Authority\",Calculations!$E$2=\"Eilean Siar Local Authority\"),OR($F77=1,$F77=5)),0,hosp_count(VALUE(LEFT(Options!$B$24,2)),$C77,$E77,$F77,2016,$I77,1,$H77,$G77*$H77, Options!$B$8)))","v":7200.0139395590004},{"$f":"IF(AND(OR(Calculations!$E$2=\"Orkney Health Board\",Calculations!$E$2=\"Orkney Islands Local Authority\"),$F77=1),0,IF(AND(OR(Calculations!$E$2=\"Shetland Health Board\",Calculations!$E$2=\"Western Isles Health Board\",Calculations!$E$2=\"Shetland Islands Local Authority\",Calculations!$E$2=\"Eilean Siar Local Authority\"),OR($F77=1,$F77=5)),0,hosp_count(VALUE(LEFT(Options!$B$24,2)),$C77,$E77,$F77,2016,$I77+$J77,1,$H77,$G77*$H77, Options!$B$8)))","v":7200.0139395590004},{"$f":"IF(AND(OR(Calculations!$E$2=\"Orkney Health Board\",Calculations!$E$2=\"Orkney Islands Local Authority\"),$F77=1),0,IF(AND(OR(Calculations!$E$2=\"Shetland Health Board\",Calculations!$E$2=\"Western Isles Health Board\",Calculations!$E$2=\"Shetland Islands Local Authority\",Calculations!$E$2=\"Eilean Siar Local Authority\"),OR($F77=1,$F77=5)),0,prem_mort(VALUE(LEFT(Options!$B$24,2)),$C77,$E77,$F77,2016,$I77,1,$H77,$G77*$H77,Options!$B$8)))","v":0},{"$f":"IF(AND(OR(Calculations!$E$2=\"Orkney Health Board\",Calculations!$E$2=\"Orkney Islands Local Authority\"),$F77=1),0,IF(AND(OR(Calculations!$E$2=\"Shetland Health Board\",Calculations!$E$2=\"Western Isles Health Board\",Calculations!$E$2=\"Shetland Islands Local Authority\",Calculations!$E$2=\"Eilean Siar Local Authority\"),OR($F77=1,$F77=5)),0,prem_mort(VALUE(LEFT(Options!$B$24,2)),$C77,$E77,$F77,2016,$I77+$J77,1,$H77,$G77*$H77,Options!$B$8)))","v":0},10781.846290000001,10781.846290000001,48410.489842099443,48410.489842099443,81181.801100000012,81181.801100000012,0,0,16172769.435000002,16172769.435000002,72615734.763149172,72615734.763149172,121772701.65000002,121772701.65000002,0,0,1500]
[null,"Female 90+",92.779342999999997,96.279340000000005,"female",1,{"$f":"HLOOKUP(Calculations!$E$2,'Prevalence Rates'!$C$3:$BC$249,'Prevalence Rates'!$BD78,FALSE)","v":0},{"$f":"HLOOKUP(Calculations!$E$2,'Population 2016'!$C$3:$BC$249,'Population 2016'!BD78,FALSE)","v":4825},0,{"$f":"HLOOKUP(Results!E$4,Targeting!$C$3:$F$249,Targeting!$G78,FALSE)","v":0},{"$f":"IF(AND(OR(Calculations!$E$2=\"Orkney Health Board\",Calculations!$E$2=\"Orkney Islands Local Authority\"),$F78=1),0,IF(AND(OR(Calculations!$E$2=\"Shetland Health Board\",Calculations!$E$2=\"Western Isles Health Board\",Calculations!$E$2=\"Shetland Islands Local Authority\",Calculations!$E$2=\"Eilean Siar Local Authority\"),OR($F78=1,$F78=5)),0,new_ci(VALUE(LEFT(Options!$B$24,2)),$C78,$E78,$F78,2016,$I78,1,$H78,$G78*$H78,Options!$B$8)))","v":838.24747146749996},{"$f":"IF(AND(OR(Calculations!$E$2=\"Orkney Health Board\",Calculations!$E$2=\"Orkney Islands Local Authority\"),$F78=1),0,IF(AND(OR(Calculations!$E$2=\"Shetland Health Board\",Calculations!$E$2=\"Western Isles Health Board\",Calculations!$E$2=\"Shetland Islands Local Authority\",Calculations!$E$2=\"Eilean Siar Local Authority\"),OR($F78=1,$F78=5)),0,new_ci(VALUE(LEFT(Options!$B$24,2)),$C78,$E78,$F78,2016,$I78+$J78,1,$H78,$G78*$H78,Options!$B$8)))","v":838.24747146749996},{"$f":"IF(AND(OR(Calculations!$E$2=\"Orkney Health Board\",Calculations!$E$2=\"Orkney Islands Local Authority\"),$F78=1),0,IF(AND(OR(Calculations!$E$2=\"Shetland Health Board\",Calculations!$E$2=\"Western Isles Health Board\",Calculations!$E$2=\"Shetland Islands Local Authority\",Calculations!$E$2=\"Eilean Siar Local Authority\"),OR($F78=1,$F78=5)),0,new_yllv2(VALUE(LEFT(Options!$B$24,2)),$C78,$D78,$E78,$F78,2016,$I78,1,$H78,$G78*$H78,Options!$B$8)))","v":2095.6161639263},{"$f":"IF(AND(OR(Calculations!$E$2=\"Orkney Health Board\",Calculations!$E$2=\"Orkney Islands Local Authority\"),$F78=1),0,IF(AND(OR(Calculations!$E$2=\"Shetland Health Board\",Calculations!$E$2=\"Western Isles Health Board\",Calculations!$E$2=\"Shetland Islands Local Authority\",Calculations!$E$2=\"Eilean Siar Local Authority\"),OR($F78=1,$F78=5)),0,new_yllv2(VALUE(LEFT(Options!$B$24,2)),$C78,$D78,$E78,$F78,2016,$I78+$J78,1,$H78,$G78*$H78,Options!$B$8)))","v":2095.6161639263},{"$f":"IF(AND(OR(Calculations!$E$2=\"Orkney Health Board\",Calculations!$E$2=\"Orkney Islands Local Authority\"),$F78=1),0,IF(AND(OR(Calculations!$E$2=\"Shetland Health Board\",Calculations!$E$2=\"Western Isles Health Board\",Calculations!$E$2=\"Shetland Islands Local Authority\",Calculations!$E$2=\"Eilean Siar Local Authority\"),OR($F78=1,$F78=5)),0,hosp_count(VALUE(LEFT(Options!$B$24,2)),$C78,$E78,$F78,2016,$I78,1,$H78,$G78*$H78, Options!$B$8)))","v":4560.6917838575},{"$f":"IF(AND(OR(Calculations!$E$2=\"Orkney Health Board\",Calculations!$E$2=\"Orkney Islands Local Authority\"),$F78=1),0,IF(AND(OR(Calculations!$E$2=\"Shetland Health Board\",Calculations!$E$2=\"Western Isles Health Board\",Calculations!$E$2=\"Shetland Islands Local Authority\",Calculations!$E$2=\"Eilean Siar Local Authority\"),OR($F78=1,$F78=5)),0,hosp_count(VALUE(LEFT(Options!$B$24,2)),$C78,$E78,$F78,2016,$I78+$J78,1,$H78,$G78*$H78, Options!$B$8)))","v":4560.6917838575},{"$f":"IF(AND(OR(Calculations!$E$2=\"Orkney Health Board\",Calculations!$E$2=\"Orkney Islands Local Authority\"),$F78=1),0,IF(AND(OR(Calculations!$E$2=\"Shetland Health Board\",Calculations!$E$2=\"Western Isles Health Board\",Calculations!$E$2=\"Shetland Islands Local Authority\",Calculations!$E$2=\"Eilean Siar Local Authority\"),OR($F78=1,$F78=5)),0,prem_mort(VALUE(LEFT(Options!$B$24,2)),$C78,$E78,$F78,2016,$I78,1,$H78,$G78*$H78,Options!$B$8)))","v":0},{"$f":"IF(AND(OR(Calculations!$E$2=\"Orkney Health Board\",Calculations!$E$2=\"Orkney Islands Local Authority\"),$F78=1),0,IF(AND(OR(Calculations!$E$2=\"Shetland Health Board\",Calculations!$E$2=\"Western Isles Health Board\",Calculations!$E$2=\"Shetland Islands Local Authority\",Calculations!$E$2=\"Eilean Siar Local Authority\"),OR($F78=1,$F78=5)),0,prem_mort(VALUE(LEFT(Options!$B$24,2)),$C78,$E78,$F78,2016,$I78+$J78,1,$H78,$G78*$H78,Options!$B$8)))","v":0},17373.00459,17373.00459,43432.459355985491,43432.459355985491,94522.109509999995,94522.109509999995,0,0,17373004.59,17373004.59,43432459.355985492,43432459.355985492,94522109.50999999,94522109.50999999,0,0,1000]
[null,"Male 0-4",2.0320822999999999,77.402082000000007,"male",1,{"$f":"HLOOKUP(Calculations!$E$2,'Prevalence Rates'!$C$3:$BC$249,'Prevalence Rates'!$BD79,FALSE)","v":0},{"$f":"HLOOKUP(Calculations!$E$2,'Population 2016'!$C$3:$BC$249,'Population 2016'!BD79,FALSE)","v":0},0,{"$f":"HLOOKUP(Results!E$4,Targeting!$C$3:$F$249,Targeting!$G79,FALSE)","v":0},{"$f":"IF(AND(OR(Calculations!$E$2=\"Orkney Health Board\",Calculations!$E$2=\"Orkney Islands Local Authority\"),$F79=1),0,IF(AND(OR(Calculations!$E$2=\"Shetland Health Board\",Calculations!$E$2=\"Western Isles Health Board\",Calculations!$E$2=\"Shetland Islands Local Authority\",Calculations!$E$2=\"Eilean Siar Local Authority\"),OR($F79=1,$F79=5)),0,new_ci(VALUE(LEFT(Options!$B$24,2)),$C79,$E79,$F79,2016,$I79,1,$H79,$G79*$H79,Options!$B$8)))","v":{"$error":"#VALUE!"}},{"$f":"IF(AND(OR(Calculations!$E$2=\"Orkney Health Board\",Calculations!$E$2=\"Orkney Islands Local Authority\"),$F79=1),0,IF(AND(OR(Calculations!$E$2=\"Shetland Health Board\",Calculations!$E$2=\"Western Isles Health Board\",Calculations!$E$2=\"Shetland Islands Local Authority\",Calculations!$E$2=\"Eilean Siar Local Authority\"),OR($F79=1,$F79=5)),0,new_ci(VALUE(LEFT(Options!$B$24,2)),$C79,$E79,$F79,2016,$I79+$J79,1,$H79,$G79*$H79,Options!$B$8)))","v":{"$error":"#VALUE!"}},{"$f":"IF(AND(OR(Calculations!$E$2=\"Orkney Health Board\",Calculations!$E$2=\"Orkney Islands Local Authority\"),$F79=1),0,IF(AND(OR(Calculations!$E$2=\"Shetland Health Board\",Calculations!$E$2=\"Western Isles Health Board\",Calculations!$E$2=\"Shetland Islands Local Authority\",Calculations!$E$2=\"Eilean Siar Local Authority\"),OR($F79=1,$F79=5)),0,new_yllv2(VALUE(LEFT(Options!$B$24,2)),$C79,$D79,$E79,$F79,2016,$I79,1,$H79,$G79*$H79,Options!$B$8)))","v":{"$error":"#VALUE!"}},{"$f":"IF(AND(OR(Calculations!$E$2=\"Orkney Health Board\",Calculations!$E$2=\"Orkney Islands Local Authority\"),$F79=1),0,IF(AND(OR(Calculations!$E$2=\"Shetland Health Board\",Calculations!$E$2=\"Western Isles Health Board\",Calculations!$E$2=\"Shetland Islands Local Authority\",Calculations!$E$2=\"Eilean Siar Local Authority\"),OR($F79=1,$F79=5)),0,new_yllv2(VALUE(LEFT(Options!$B$24,2)),$C79,$D79,$E79,$F79,2016,$I79+$J79,1,$H79,$G79*$H79,Options!$B$8)))","v":{"$error":"#VALUE!"}},{"$f":"IF(AND(OR(Calculations!$E$2=\"Orkney Health Board\",Calculations!$E$2=\"Orkney Islands Local Authority\"),$F79=1),0,IF(AND(OR(Calculations!$E$2=\"Shetland Health Board\",Calculations!$E$2=\"Western Isles Health Board\",Calculations!$E$2=\"Shetland Islands Local Authority\",Calculations!$E$2=\"Eilean Siar Local Authority\"),OR($F79=1,$F79=5)),0,hosp_count(VALUE(LEFT(Options!$B$24,2)),$C79,$E79,$F79,2016,$I79,1,$H79,$G79*$H79, Options!$B$8)))","v":{"$error":"#VALUE!"}},{"$f":"IF(AND(OR(Calculations!$E$2=\"Orkney Health Board\",Calculations!$E$2=\"Orkney Islands Local Authority\"),$F79=1),0,IF(AND(OR(Calculations!$E$2=\"Shetland Health Board\",Calculations!$E$2=\"Western Isles Health Board\",Calculations!$E$2=\"Shetland Islands Local Authority\",Calculations!$E$2=\"Eilean Siar Local Authority\"),OR($F79=1,$F79=5)),0,hosp_count(VALUE(LEFT(Options!$B$24,2)),$C79,$E79,$F79,2016,$I79+$J79,1,$H79,$G79*$H79, Options!$B$8)))","v":{"$error":"#VALUE!"}},{"$f":"IF(AND(OR(Calculations!$E$2=\"Orkney Health Board\",Calculations!$E$2=\"Orkney Islands Local Authority\"),$F79=1),0,IF(AND(OR(Calculations!$E$2=\"Shetland Health Board\",Calculations!$E$2=\"Western Isles Health Board\",Calculations!$E$2=\"Shetland Islands Local Authority\",Calculations!$E$2=\"Eilean Siar Local Authority\"),OR($F79=1,$F79=5)),0,prem_mort(VALUE(LEFT(Options!$B$24,2)),$C79,$E79,$F79,2016,$I79,1,$H79,$G79*$H79,Options!$B$8)))","v":{"$error":"#VALUE!"}},{"$f":"IF(AND(OR(Calculations!$E$2=\"Orkney Health Board\",Calculations!$E$2=\"Orkney Islands Local Authority\"),$F79=1),0,IF(AND(OR(Calculations!$E$2=\"Shetland Health Board\",Calculations!$E$2=\"Western Isles Health Board\",Calculations!$E$2=\"Shetland Islands Local Authority\",Calculations!$E$2=\"Eilean Siar Local Authority\"),OR($F79=1,$F79=5)),0,prem_mort(VALUE(LEFT(Options!$B$24,2)),$C79,$E79,$F79,2016,$I79+$J79,1,$H79,$G79*$H79,Options!$B$8)))","v":{"$error":"#VALUE!"}},{"$error":"#VALUE!"},{"$error":"#VALUE!"},{"$error":"#VALUE!"},{"$error":"#VALUE!"},{"$error":"#VALUE!"},{"$error":"#VALUE!"},{"$error":"#VALUE!"},{"$error":"#VALUE!"},{"$error":"#VALUE!"},{"$error":"#VALUE!"},{"$error":"#VALUE!"},{"$error":"#VALUE!"},{"$error":"#VALUE!"},{"$error":"#VALUE!"},{"$error":"#VALUE!"},{"$error":"#VALUE!"},5000]
[null,"Male 5-9",6.9784756000000003,77.398476000000002,"male",1,{"$f":"HLOOKUP(Calculations!$E$2,'Prevalence Rates'!$C$3:$BC$249,'Prevalence Rates'!$BD80,FALSE)","v":0},{"$f":"HLOOKUP(Calculations!$E$2,'Population 2016'!$C$3:$BC$249,'Population 2016'!BD80,FALSE)","v":0},0,{"$f":"HLOOKUP(Results!E$4,Targeting!$C$3:$F$249,Targeting!$G80,FALSE)","v":0},{"$f":"IF(AND(OR(Calculations!$E$2=\"Orkney Health Board\",Calculations!$E$2=\"Orkney Islands Local Authority\"),$F80=1),0,IF(AND(OR(Calculations!$E$2=\"Shetland Health Board\",Calculations!$E$2=\"Western Isles Health Board\",Calculations!$E$2=\"Shetland Islands Local Authority\",Calculations!$E$2=\"Eilean Siar Local Authority\"),OR($F80=1,$F80=5)),0,new_ci(VALUE(LEFT(Options!$B$24,2)),$C80,$E80,$F80,2016,$I80,1,$H80,$G80*$H80,Options!$B$8)))","v":{"$error":"#VALUE!"}},{"$f":"IF(AND(OR(Calculations!$E$2=\"Orkney Health Board\",Calculations!$E$2=\"Orkney Islands Local Authority\"),$F80=1),0,IF(AND(OR(Calculations!$E$2=\"Shetland Health Board\",Calculations!$E$2=\"Western Isles Health Board\",Calculations!$E$2=\"Shetland Islands Local Authority\",Calculations!$E$2=\"Eilean Siar Local Authority\"),OR($F80=1,$F80=5)),0,new_ci(VALUE(LEFT(Options!$B$24,2)),$C80,$E80,$F80,2016,$I80+$J80,1,$H80,$G80*$H80,Options!$B$8)))","v":{"$error":"#VALUE!"}},{"$f":"IF(AND(OR(Calculations!$E$2=\"Orkney Health Board\",Calculations!$E$2=\"Orkney Islands Local Authority\"),$F80=1),0,IF(AND(OR(Calculations!$E$2=\"Shetland Health Board\",Calculations!$E$2=\"Western Isles Health Board\",Calculations!$E$2=\"Shetland Islands Local Authority\",Calculations!$E$2=\"Eilean Siar Local Authority\"),OR($F80=1,$F80=5)),0,new_yllv2(VALUE(LEFT(Options!$B$24,2)),$C80,$D80,$E80,$F80,2016,$I80,1,$H80,$G80*$H80,Options!$B$8)))","v":{"$error":"#VALUE!"}},{"$f":"IF(AND(OR(Calculations!$E$2=\"Orkney Health Board\",Calculations!$E$2=\"Orkney Islands Local Authority\"),$F80=1),0,IF(AND(OR(Calculations!$E$2=\"Shetland Health Board\",Calculations!$E$2=\"Western Isles Health Board\",Calculations!$E$2=\"Shetland Islands Local Authority\",Calculations!$E$2=\"Eilean Siar Local Authority\"),OR($F80=1,$F80=5)),0,new_yllv2(VALUE(LEFT(Options!$B$24,2)),$C80,$D80,$E80,$F80,2016,$I80+$J80,1,$H80,$G80*$H80,Options!$B$8)))","v":{"$error":"#VALUE!"}},{"$f":"IF(AND(OR(Calculations!$E$2=\"Orkney Health Board\",Calculations!$E$2=\"Orkney Islands Local Authority\"),$F80=1),0,IF(AND(OR(Calculations!$E$2=\"Shetland Health Board\",Calculations!$E$2=\"Western Isles Health Board\",Calculations!$E$2=\"Shetland Islands Local Authority\",Calculations!$E$2=\"Eilean Siar Local Authority\"),OR($F80=1,$F80=5)),0,hosp_count(VALUE(LEFT(Options!$B$24,2)),$C80,$E80,$F80,2016,$I80,1,$H80,$G80*$H80, Options!$B$8)))","v":{"$error":"#VALUE!"}},{"$f":"IF(AND(OR(Calculations!$E$2=\"Orkney Health Board\",Calculations!$E$2=\"Orkney Islands Local Authority\"),$F80=1),0,IF(AND(OR(Calculations!$E$2=\"Shetland Health Board\",Calculations!$E$2=\"Western Isles Health Board\",Calculations!$E$2=\"Shetland Islands Local Authority\",Calculations!$E$2=\"Eilean Siar Local Authority\"),OR($F80=1,$F80=5)),0,hosp_count(VALUE(LEFT(Options!$B$24,2)),$C80,$E80,$F80,2016,$I80+$J80,1,$H80,$G80*$H80, Options!$B$8)))","v":{"$error":"#VALUE!"}},{"$f":"IF(AND(OR(Calculations!$E$2=\"Orkney Health Board\",Calculations!$E$2=\"Orkney Islands Local Authority\"),$F80=1),0,IF(AND(OR(Calculations!$E$2=\"Shetland Health Board\",Calculations!$E$2=\"Western Isles Health Board\",Calculations!$E$2=\"Shetland Islands Local Authority\",Calculations!$E$2=\"Eilean Siar Local Authority\"),OR($F80=1,$F80=5)),0,prem_mort(VALUE(LEFT(Options!$B$24,2)),$C80,$E80,$F80,2016,$I80,1,$H80,$G80*$H80,Options!$B$8)))","v":{"$error":"#VALUE!"}},{"$f":"IF(AND(OR(Calculations!$E$2=\"Orkney Health Board\",Calculations!$E$2=\"Orkney Islands Local Authority\"),$F80=1),0,IF(AND(OR(Calculations!$E$2=\"Shetland Health Board\",Calculations!$E$2=\"Western Isles Health Board\",Calculations!$E$2=\"Shetland Islands Local Authority\",Calculations!$E$2=\"Eilean Siar Local Authority\"),OR($F80=1,$F80=5)),0,prem_mort(VALUE(LEFT(Options!$B$24,2)),$C80,$E80,$F80,2016,$I80+$J80,1,$H80,$G80*$H80,Options!$B$8)))","v":{"$error":"#VALUE!"}},{"$error":"#VALUE!"},{"$error":"#VALUE!"},{"$error":"#VALUE!"},{"$error":"#VALUE!"},{"$error":"#VALUE!"},{"$error":"#VALUE!"},{"$error":"#VALUE!"},{"$error":"#VALUE!"},{"$error":"#VALUE!"},{"$error":"#VALUE!"},{"$error":"#VALUE!"},{"$error":"#VALUE!"},{"$error":"#VALUE!"},{"$error":"#VALUE!"},{"$error":"#VALUE!"},{"$error":"#VALUE!"},5500]
[null,"Male 10-15",12.471144000000001,77.921140000000008,"male",1,{"$f":"HLOOKUP(Calculations!$E$2,'Prevalence Rates'!$C$3:$BC$249,'Prevalence Rates'!$BD81,FALSE)","v":0},{"$f":"HLOOKUP(Calculations!$E$2,'Population 2016'!$C$3:$BC$249,'Population 2016'!BD81,FALSE)","v":0},0,{"$f":"HLOOKUP(Results!E$4,Targeting!$C$3:$F$249,Targeting!$G81,FALSE)","v":0},{"$f":"IF(AND(OR(Calculations!$E$2=\"Orkney Health Board\",Calculations!$E$2=\"Orkney Islands Local Authority\"),$F81=1),0,IF(AND(OR(Calculations!$E$2=\"Shetland Health Board\",Calculations!$E$2=\"Western Isles Health Board\",Calculations!$E$2=\"Shetland Islands Local Authority\",Calculations!$E$2=\"Eilean Siar Local Authority\"),OR($F81=1,$F81=5)),0,new_ci(VALUE(LEFT(Options!$B$24,2)),$C81,$E81,$F81,2016,$I81,1,$H81,$G81*$H81,Options!$B$8)))","v":{"$error":"#VALUE!"}},{"$f":"IF(AND(OR(Calculations!$E$2=\"Orkney Health Board\",Calculations!$E$2=\"Orkney Islands Local Authority\"),$F81=1),0,IF(AND(OR(Calculations!$E$2=\"Shetland Health Board\",Calculations!$E$2=\"Western Isles Health Board\",Calculations!$E$2=\"Shetland Islands Local Authority\",Calculations!$E$2=\"Eilean Siar Local Authority\"),OR($F81=1,$F81=5)),0,new_ci(VALUE(LEFT(Options!$B$24,2)),$C81,$E81,$F81,2016,$I81+$J81,1,$H81,$G81*$H81,Options!$B$8)))","v":{"$error":"#VALUE!"}},{"$f":"IF(AND(OR(Calculations!$E$2=\"Orkney Health Board\",Calculations!$E$2=\"Orkney Islands Local Authority\"),$F81=1),0,IF(AND(OR(Calculations!$E$2=\"Shetland Health Board\",Calculations!$E$2=\"Western Isles Health Board\",Calculations!$E$2=\"Shetland Islands Local Authority\",Calculations!$E$2=\"Eilean Siar Local Authority\"),OR($F81=1,$F81=5)),0,new_yllv2(VALUE(LEFT(Options!$B$24,2)),$C81,$D81,$E81,$F81,2016,$I81,1,$H81,$G81*$H81,Options!$B$8)))","v":{"$error":"#VALUE!"}},{"$f":"IF(AND(OR(Calculations!$E$2=\"Orkney Health Board\",Calculations!$E$2=\"Orkney Islands Local Authority\"),$F81=1),0,IF(AND(OR(Calculations!$E$2=\"Shetland Health Board\",Calculations!$E$2=\"Western Isles Health Board\",Calculations!$E$2=\"Shetland Islands Local Authority\",Calculations!$E$2=\"Eilean Siar Local Authority\"),OR($F81=1,$F81=5)),0,new_yllv2(VALUE(LEFT(Options!$B$24,2)),$C81,$D81,$E81,$F81,2016,$I81+$J81,1,$H81,$G81*$H81,Options!$B$8)))","v":{"$error":"#VALUE!"}},{"$f":"IF(AND(OR(Calculations!$E$2=\"Orkney Health Board\",Calculations!$E$2=\"Orkney Islands Local Authority\"),$F81=1),0,IF(AND(OR(Calculations!$E$2=\"Shetland Health Board\",Calculations!$E$2=\"Western Isles Health Board\",Calculations!$E$2=\"Shetland Islands Local Authority\",Calculations!$E$2=\"Eilean Siar Local Authority\"),OR($F81=1,$F81=5)),0,hosp_count(VALUE(LEFT(Options!$B$24,2)),$C81,$E81,$F81,2016,$I81,1,$H81,$G81*$H81, Options!$B$8)))","v":{"$error":"#VALUE!"}},{"$f":"IF(AND(OR(Calculations!$E$2=\"Orkney Health Board\",Calculations!$E$2=\"Orkney Islands Local Authority\"),$F81=1),0,IF(AND(OR(Calculations!$E$2=\"Shetland Health Board\",Calculations!$E$2=\"Western Isles Health Board\",Calculations!$E$2=\"Shetland Islands Local Authority\",Calculations!$E$2=\"Eilean Siar Local Authority\"),OR($F81=1,$F81=5)),0,hosp_count(VALUE(LEFT(Options!$B$24,2)),$C81,$E81,$F81,2016,$I81+$J81,1,$H81,$G81*$H81, Options!$B$8)))","v":{"$error":"#VALUE!"}},{"$f":"IF(AND(OR(Calculations!$E$2=\"Orkney Health Board\",Calculations!$E$2=\"Orkney Islands Local Authority\"),$F81=1),0,IF(AND(OR(Calculations!$E$2=\"Shetland Health Board\",Calculations!$E$2=\"Western Isles Health Board\",Calculations!$E$2=\"Shetland Islands Local Authority\",Calculations!$E$2=\"Eilean Siar Local Authority\"),OR($F81=1,$F81=5)),0,prem_mort(VALUE(LEFT(Options!$B$24,2)),$C81,$E81,$F81,2016,$I81,1,$H81,$G81*$H81,Options!$B$8)))","v":{"$error":"#VALUE!"}},{"$f":"IF(AND(OR(Calculations!$E$2=\"Orkney Health Board\",Calculations!$E$2=\"Orkney Islands Local Authority\"),$F81=1),0,IF(AND(OR(Calculations!$E$2=\"Shetland Health Board\",Calculations!$E$2=\"Western Isles Health Board\",Calculations!$E$2=\"Shetland Islands Local Authority\",Calculations!$E$2=\"Eilean Siar Local Authority\"),OR($F81=1,$F81=5)),0,prem_mort(VALUE(LEFT(Options!$B$24,2)),$C81,$E81,$F81,2016,$I81+$J81,1,$H81,$G81*$H81,Options!$B$8)))","v":{"$error":"#VALUE!"}},{"$error":"#VALUE!"},{"$error":"#VALUE!"},{"$error":"#VALUE!"},{"$error":"#VALUE!"},{"$error":"#VALUE!"},{"$error":"#VALUE!"},{"$error":"#VALUE!"},{"$error":"#VALUE!"},{"$error":"#VALUE!"},{"$error":"#VALUE!"},{"$error":"#VALUE!"},{"$error":"#VALUE!"},{"$error":"#VALUE!"},{"$error":"#VALUE!"},{"$error":"#VALUE!"},{"$error":"#VALUE!"},6600]
[null,"Male 16-19",17.556318000000001,77.07632000000001,"male",1,{"$f":"HLOOKUP(Calculations!$E$2,'Prevalence Rates'!$C$3:$BC$249,'Prevalence Rates'!$BD82,FALSE)","v":0.2604340567612688},{"$f":"HLOOKUP(Calculations!$E$2,'Population 2016'!$C$3:$BC$249,'Population 2016'!BD82,FALSE)","v":25359},0,{"$f":"HLOOKUP(Results!E$4,Targeting!$C$3:$F$249,Targeting!$G82,FALSE)","v":1722},{"$f":"IF(AND(OR(Calculations!$E$2=\"Orkney Health Board\",Calculations!$E$2=\"Orkney Islands Local Authority\"),$F82=1),0,IF(AND(OR(Calculations!$E$2=\"Shetland Health Board\",Calculations!$E$2=\"Western Isles Health Board\",Calculations!$E$2=\"Shetland Islands Local Authority\",Calculations!$E$2=\"Eilean Siar Local Authority\"),OR($F82=1,$F82=5)),0,new_ci(VALUE(LEFT(Options!$B$24,2)),$C82,$E82,$F82,2016,$I82,1,$H82,$G82*$H82,Options!$B$8)))","v":19.171869725000001},{"$f":"IF(AND(OR(Calculations!$E$2=\"Orkney Health Board\",Calculations!$E$2=\"Orkney Islands Local Authority\"),$F82=1),0,IF(AND(OR(Calculations!$E$2=\"Shetland Health Board\",Calculations!$E$2=\"Western Isles Health Board\",Calculations!$E$2=\"Shetland Islands Local Authority\",Calculations!$E$2=\"Eilean Siar Local Authority\"),OR($F82=1,$F82=5)),0,new_ci(VALUE(LEFT(Options!$B$24,2)),$C82,$E82,$F82,2016,$I82+$J82,1,$H82,$G82*$H82,Options!$B$8)))","v":18.527838625400001},{"$f":"IF(AND(OR(Calculations!$E$2=\"Orkney Health Board\",Calculations!$E$2=\"Orkney Islands Local Authority\"),$F82=1),0,IF(AND(OR(Calculations!$E$2=\"Shetland Health Board\",Calculations!$E$2=\"Western Isles Health Board\",Calculations!$E$2=\"Shetland Islands Local Authority\",Calculations!$E$2=\"Eilean Siar Local Authority\"),OR($F82=1,$F82=5)),0,new_yllv2(VALUE(LEFT(Options!$B$24,2)),$C82,$D82,$E82,$F82,2016,$I82,1,$H82,$G82*$H82,Options!$B$8)))","v":1121.9378546507},{"$f":"IF(AND(OR(Calculations!$E$2=\"Orkney Health Board\",Calculations!$E$2=\"Orkney Islands Local Authority\"),$F82=1),0,IF(AND(OR(Calculations!$E$2=\"Shetland Health Board\",Calculations!$E$2=\"Western Isles Health Board\",Calculations!$E$2=\"Shetland Islands Local Authority\",Calculations!$E$2=\"Eilean Siar Local Authority\"),OR($F82=1,$F82=5)),0,new_yllv2(VALUE(LEFT(Options!$B$24,2)),$C82,$D82,$E82,$F82,2016,$I82+$J82,1,$H82,$G82*$H82,Options!$B$8)))","v":1084.2491534141},{"$f":"IF(AND(OR(Calculations!$E$2=\"Orkney Health Board\",Calculations!$E$2=\"Orkney Islands Local Authority\"),$F82=1),0,IF(AND(OR(Calculations!$E$2=\"Shetland Health Board\",Calculations!$E$2=\"Western Isles Health Board\",Calculations!$E$2=\"Shetland Islands Local Authority\",Calculations!$E$2=\"Eilean Siar Local Authority\"),OR($F82=1,$F82=5)),0,hosp_count(VALUE(LEFT(Options!$B$24,2)),$C82,$E82,$F82,2016,$I82,1,$H82,$G82*$H82, Options!$B$8)))","v":2447.1256447280998},{"$f":"IF(AND(OR(Calculations!$E$2=\"Orkney Health Board\",Calculations!$E$2=\"Orkney Islands Local Authority\"),$F82=1),0,IF(AND(OR(Calculations!$E$2=\"Shetland Health Board\",Calculations!$E$2=\"Western Isles Health Board\",Calculations!$E$2=\"Shetland Islands Local Authority\",Calculations!$E$2=\"Eilean Siar Local Authority\"),OR($F82=1,$F82=5)),0,hosp_count(VALUE(LEFT(Options!$B$24,2)),$C82,$E82,$F82,2016,$I82+$J82,1,$H82,$G82*$H82, Options!$B$8)))","v":2441.8321937074002},{"$f":"IF(AND(OR(Calculations!$E$2=\"Orkney Health Board\",Calculations!$E$2=\"Orkney Islands Local Authority\"),$F82=1),0,IF(AND(OR(Calculations!$E$2=\"Shetland Health Board\",Calculations!$E$2=\"Western Isles Health Board\",Calculations!$E$2=\"Shetland Islands Local Authority\",Calculations!$E$2=\"Eilean Siar Local Authority\"),OR($F82=1,$F82=5)),0,prem_mort(VALUE(LEFT(Options!$B$24,2)),$C82,$E82,$F82,2016,$I82,1,$H82,$G82*$H82,Options!$B$8)))","v":19.171869725000001},{"$f":"IF(AND(OR(Calculations!$E$2=\"Orkney Health Board\",Calculations!$E$2=\"Orkney Islands Local Authority\"),$F82=1),0,IF(AND(OR(Calculations!$E$2=\"Shetland Health Board\",Calculations!$E$2=\"Western Isles Health Board\",Calculations!$E$2=\"Shetland Islands Local Authority\",Calculations!$E$2=\"Eilean Siar Local Authority\"),OR($F82=1,$F82=5)),0,prem_mort(VALUE(LEFT(Options!$B$24,2)),$C82,$E82,$F82,2016,$I82+$J82,1,$H82,$G82*$H82,Options!$B$8)))","v":18.527838625400001},75.601836527465593,73.062181574194568,4424.2196247908041,4275.5990118462869,9649.9295899999997,9629.0555373137759,75.601836527465593,73.062181574194568,332648.08072084864,321473.59892645612,19466566.349079538,18812635.652123664,42459690.196000002,42367844.364180617,332648.08072084864,321473.59892645612,4400]
[null,"Male 20-24",22.054632000000002,77.704629999999995,"male",1,{"$f":"HLOOKUP(Calculations!$E$2,'Prevalence Rates'!$C$3:$BC$249,'Prevalence Rates'!$BD83,FALSE)","v":0.2604340567612688},{"$f":"HLOOKUP(Calculations!$E$2,'Population 2016'!$C$3:$BC$249,'Population 2016'!BD83,FALSE)","v":37180},0,{"$f":"HLOOKUP(Results!E$4,Targeting!$C$3:$F$249,Targeting!$G83,FALSE)","v":2524},{"$f":"IF(AND(OR(Calculations!$E$2=\"Orkney Health Board\",Calculations!$E$2=\"Orkney Islands Local Authority\"),$F83=1),0,IF(AND(OR(Calculations!$E$2=\"Shetland Health Board\",Calculations!$E$2=\"Western Isles Health Board\",Calculations!$E$2=\"Shetland Islands Local Authority\",Calculations!$E$2=\"Eilean Siar Local Authority\"),OR($F83=1,$F83=5)),0,new_ci(VALUE(LEFT(Options!$B$24,2)),$C83,$E83,$F83,2016,$I83,1,$H83,$G83*$H83,Options!$B$8)))","v":39.469508269000002},{"$f":"IF(AND(OR(Calculations!$E$2=\"Orkney Health Board\",Calculations!$E$2=\"Orkney Islands Local Authority\"),$F83=1),0,IF(AND(OR(Calculations!$E$2=\"Shetland Health Board\",Calculations!$E$2=\"Western Isles Health Board\",Calculations!$E$2=\"Shetland Islands Local Authority\",Calculations!$E$2=\"Eilean Siar Local Authority\"),OR($F83=1,$F83=5)),0,new_ci(VALUE(LEFT(Options!$B$24,2)),$C83,$E83,$F83,2016,$I83+$J83,1,$H83,$G83*$H83,Options!$B$8)))","v":38.144278535399998},{"$f":"IF(AND(OR(Calculations!$E$2=\"Orkney Health Board\",Calculations!$E$2=\"Orkney Islands Local Authority\"),$F83=1),0,IF(AND(OR(Calculations!$E$2=\"Shetland Health Board\",Calculations!$E$2=\"Western Isles Health Board\",Calculations!$E$2=\"Shetland Islands Local Authority\",Calculations!$E$2=\"Eilean Siar Local Authority\"),OR($F83=1,$F83=5)),0,new_yllv2(VALUE(LEFT(Options!$B$24,2)),$C83,$D83,$E83,$F83,2016,$I83,1,$H83,$G83*$H83,Options!$B$8)))","v":2157.0085479618001},{"$f":"IF(AND(OR(Calculations!$E$2=\"Orkney Health Board\",Calculations!$E$2=\"Orkney Islands Local Authority\"),$F83=1),0,IF(AND(OR(Calculations!$E$2=\"Shetland Health Board\",Calculations!$E$2=\"Western Isles Health Board\",Calculations!$E$2=\"Shetland Islands Local Authority\",Calculations!$E$2=\"Eilean Siar Local Authority\"),OR($F83=1,$F83=5)),0,new_yllv2(VALUE(LEFT(Options!$B$24,2)),$C83,$D83,$E83,$F83,2016,$I83+$J83,1,$H83,$G83*$H83,Options!$B$8)))","v":2084.5847456710999},{"$f":"IF(AND(OR(Calculations!$E$2=\"Orkney Health Board\",Calculations!$E$2=\"Orkney Islands Local Authority\"),$F83=1),0,IF(AND(OR(Calculations!$E$2=\"Shetland Health Board\",Calculations!$E$2=\"Western Isles Health Board\",Calculations!$E$2=\"Shetland Islands Local Authority\",Calculations!$E$2=\"Eilean Siar Local Authority\"),OR($F83=1,$F83=5)),0,hosp_count(VALUE(LEFT(Options!$B$24,2)),$C83,$E83,$F83,2016,$I83,1,$H83,$G83*$H83, Options!$B$8)))","v":4208.9782071480004},{"$f":"IF(AND(OR(Calculations!$E$2=\"Orkney Health Board\",Calculations!$E$2=\"Orkney Islands Local Authority\"),$F83=1),0,IF(AND(OR(Calculations!$E$2=\"Shetland Health Board\",Calculations!$E$2=\"Western Isles Health Board\",Calculations!$E$2=\"Shetland Islands Local Authority\",Calculations!$E$2=\"Eilean Siar Local Authority\"),OR($F83=1,$F83=5)),0,hosp_count(VALUE(LEFT(Options!$B$24,2)),$C83,$E83,$F83,2016,$I83+$J83,1,$H83,$G83*$H83, Options!$B$8)))","v":4199.8761773956003},{"$f":"IF(AND(OR(Calculations!$E$2=\"Orkney Health Board\",Calculations!$E$2=\"Orkney Islands Local Authority\"),$F83=1),0,IF(AND(OR(Calculations!$E$2=\"Shetland Health Board\",Calculations!$E$2=\"Western Isles Health Board\",Calculations!$E$2=\"Shetland Islands Local Authority\",Calculations!$E$2=\"Eilean Siar Local Authority\"),OR($F83=1,$F83=5)),0,prem_mort(VALUE(LEFT(Options!$B$24,2)),$C83,$E83,$F83,2016,$I83,1,$H83,$G83*$H83,Options!$B$8)))","v":39.469508269000002},{"$f":"IF(AND(OR(Calculations!$E$2=\"Orkney Health Board\",Calculations!$E$2=\"Orkney Islands Local Authority\"),$F83=1),0,IF(AND(OR(Calculations!$E$2=\"Shetland Health Board\",Calculations!$E$2=\"Western Isles Health Board\",Calculations!$E$2=\"Shetland Islands Local Authority\",Calculations!$E$2=\"Eilean Siar Local Authority\"),OR($F83=1,$F83=5)),0,prem_mort(VALUE(LEFT(Options!$B$24,2)),$C83,$E83,$F83,2016,$I83+$J83,1,$H83,$G83*$H83,Options!$B$8)))","v":38.144278535399998},106.15790282140937,102.5935409774072,5801.5291768741263,5606.7368092283486,11320.543860000002,11296.062876265734,106.15790282140937,102.5935409774072,636947.41692845616,615561.24586444325,34809175.061244756,33640420.855370089,67923263.160000011,67776377.257594407,636947.41692845616,615561.24586444325,6000]
[null,"Male 25-29",26.959762999999999,77.789760000000001,"male",1,{"$f":"HLOOKUP(Calculations!$E$2,'Prevalence Rates'!$C$3:$BC$249,'Prevalence Rates'!$BD84,FALSE)","v":0.24063400576368876},{"$f":"HLOOKUP(Calculations!$E$2,'Population 2016'!$C$3:$BC$249,'Population 2016'!BD84,FALSE)","v":42600},0,{"$f":"HLOOKUP(Results!E$4,Targeting!$C$3:$F$249,Targeting!$G84,FALSE)","v":2892},{"$f":"IF(AND(OR(Calculations!$E$2=\"Orkney Health Board\",Calculations!$E$2=\"Orkney Islands Local Authority\"),$F84=1),0,IF(AND(OR(Calculations!$E$2=\"Shetland Health Board\",Calculations!$E$2=\"Western Isles Health Board\",Calculations!$E$2=\"Shetland Islands Local Authority\",Calculations!$E$2=\"Eilean Siar Local Authority\"),OR($F84=1,$F84=5)),0,new_ci(VALUE(LEFT(Options!$B$24,2)),$C84,$E84,$F84,2016,$I84,1,$H84,$G84*$H84,Options!$B$8)))","v":65.475909055499997},{"$f":"IF(AND(OR(Calculations!$E$2=\"Orkney Health Board\",Calculations!$E$2=\"Orkney Islands Local Authority\"),$F84=1),0,IF(AND(OR(Calculations!$E$2=\"Shetland Health Board\",Calculations!$E$2=\"Western Isles Health Board\",Calculations!$E$2=\"Shetland Islands Local Authority\",Calculations!$E$2=\"Eilean Siar Local Authority\"),OR($F84=1,$F84=5)),0,new_ci(VALUE(LEFT(Options!$B$24,2)),$C84,$E84,$F84,2016,$I84+$J84,1,$H84,$G84*$H84,Options!$B$8)))","v":63.249647455500003},{"$f":"IF(AND(OR(Calculations!$E$2=\"Orkney Health Board\",Calculations!$E$2=\"Orkney Islands Local Authority\"),$F84=1),0,IF(AND(OR(Calculations!$E$2=\"Shetland Health Board\",Calculations!$E$2=\"Western Isles Health Board\",Calculations!$E$2=\"Shetland Islands Local Authority\",Calculations!$E$2=\"Eilean Siar Local Authority\"),OR($F84=1,$F84=5)),0,new_yllv2(VALUE(LEFT(Options!$B$24,2)),$C84,$D84,$E84,$F84,2016,$I84,1,$H84,$G84*$H84,Options!$B$8)))","v":3262.6643518077999},{"$f":"IF(AND(OR(Calculations!$E$2=\"Orkney Health Board\",Calculations!$E$2=\"Orkney Islands Local Authority\"),$F84=1),0,IF(AND(OR(Calculations!$E$2=\"Shetland Health Board\",Calculations!$E$2=\"Western Isles Health Board\",Calculations!$E$2=\"Shetland Islands Local Authority\",Calculations!$E$2=\"Eilean Siar Local Authority\"),OR($F84=1,$F84=5)),0,new_yllv2(VALUE(LEFT(Options!$B$24,2)),$C84,$D84,$E84,$F84,2016,$I84+$J84,1,$H84,$G84*$H84,Options!$B$8)))","v":3151.7297429586001},{"$f":"IF(AND(OR(Calculations!$E$2=\"Orkney Health Board\",Calculations!$E$2=\"Orkney Islands Local Authority\"),$F84=1),0,IF(AND(OR(Calculations!$E$2=\"Shetland Health Board\",Calculations!$E$2=\"Western Isles Health Board\",Calculations!$E$2=\"Shetland Islands Local Authority\",Calculations!$E$2=\"Eilean Siar Local Authority\"),OR($F84=1,$F84=5)),0,hosp_count(VALUE(LEFT(Options!$B$24,2)),$C84,$E84,$F84,2016,$I84,1,$H84,$G84*$H84, Options!$B$8)))","v":5739.7274435999998},{"$f":"IF(AND(OR(Calculations!$E$2=\"Orkney Health Board\",Calculations!$E$2=\"Orkney Islands Local Authority\"),$F84=1),0,IF(AND(OR(Calculations!$E$2=\"Shetland Health Board\",Calculations!$E$2=\"Western Isles Health Board\",Calculations!$E$2=\"Shetland Islands Local Authority\",Calculations!$E$2=\"Eilean Siar Local Authority\"),OR($F84=1,$F84=5)),0,hosp_count(VALUE(LEFT(Options!$B$24,2)),$C84,$E84,$F84,2016,$I84+$J84,1,$H84,$G84*$H84, Options!$B$8)))","v":5727.3099857795996},{"$f":"IF(AND(OR(Calculations!$E$2=\"Orkney Health Board\",Calculations!$E$2=\"Orkney Islands Local Authority\"),$F84=1),0,IF(AND(OR(Calculations!$E$2=\"Shetland Health Board\",Calculations!$E$2=\"Western Isles Health Board\",Calculations!$E$2=\"Shetland Islands Local Authority\",Calculations!$E$2=\"Eilean Siar Local Authority\"),OR($F84=1,$F84=5)),0,prem_mort(VALUE(LEFT(Options!$B$24,2)),$C84,$E84,$F84,2016,$I84,1,$H84,$G84*$H84,Options!$B$8)))","v":65.475909055499997},{"$f":"IF(AND(OR(Calculations!$E$2=\"Orkney Health Board\",Calculations!$E$2=\"Orkney Islands Local Authority\"),$F84=1),0,IF(AND(OR(Calculations!$E$2=\"Shetland Health Board\",Calculations!$E$2=\"Western Isles Health Board\",Calculations!$E$2=\"Shetland Islands Local Authority\",Calculations!$E$2=\"Eilean Siar Local Authority\"),OR($F84=1,$F84=5)),0,prem_mort(VALUE(LEFT(Options!$B$24,2)),$C84,$E84,$F84,2016,$I84+$J84,1,$H84,$G84*$H84,Options!$B$8)))","v":63.249647455500003},153.69931703169013,148.47335083450704,7658.8365065910793,7398.4266266633804,13473.5386,13444.389637980283,153.69931703169013,148.47335083450704,922195.9021901408,890840.10500704229,45953019.039546475,44390559.759980284,80841231.599999994,80666337.827881694,922195.9021901408,890840.10500704229,6000]
[null,"Male 30-34",31.981521999999998,78.061520000000002,"male",1,{"$f":"HLOOKUP(Calculations!$E$2,'Prevalence Rates'!$C$3:$BC$249,'Prevalence Rates'!$BD85,FALSE)","v":0.24063400576368876},{"$f":"HLOOKUP(Calculations!$E$2,'Population 2016'!$C$3:$BC$249,'Population 2016'!BD85,FALSE)","v":38006},0,{"$f":"HLOOKUP(Results!E$4,Targeting!$C$3:$F$249,Targeting!$G85,FALSE)","v":2580},{"$f":"IF(AND(OR(Calculations!$E$2=\"Orkney Health Board\",Calculations!$E$2=\"Orkney Islands Local Authority\"),$F85=1),0,IF(AND(OR(Calculations!$E$2=\"Shetland Health Board\",Calculations!$E$2=\"Western Isles Health Board\",Calculations!$E$2=\"Shetland Islands Local Authority\",Calculations!$E$2=\"Eilean Siar Local Authority\"),OR($F85=1,$F85=5)),0,new_ci(VALUE(LEFT(Options!$B$24,2)),$C85,$E85,$F85,2016,$I85,1,$H85,$G85*$H85,Options!$B$8)))","v":85.312500926200002},{"$f":"IF(AND(OR(Calculations!$E$2=\"Orkney Health Board\",Calculations!$E$2=\"Orkney Islands Local Authority\"),$F85=1),0,IF(AND(OR(Calculations!$E$2=\"Shetland Health Board\",Calculations!$E$2=\"Western Isles Health Board\",Calculations!$E$2=\"Shetland Islands Local Authority\",Calculations!$E$2=\"Eilean Siar Local Authority\"),OR($F85=1,$F85=5)),0,new_ci(VALUE(LEFT(Options!$B$24,2)),$C85,$E85,$F85,2016,$I85+$J85,1,$H85,$G85*$H85,Options!$B$8)))","v":82.413369632200002},{"$f":"IF(AND(OR(Calculations!$E$2=\"Orkney Health Board\",Calculations!$E$2=\"Orkney Islands Local Authority\"),$F85=1),0,IF(AND(OR(Calculations!$E$2=\"Shetland Health Board\",Calculations!$E$2=\"Western Isles Health Board\",Calculations!$E$2=\"Shetland Islands Local Authority\",Calculations!$E$2=\"Eilean Siar Local Authority\"),OR($F85=1,$F85=5)),0,new_yllv2(VALUE(LEFT(Options!$B$24,2)),$C85,$D85,$E85,$F85,2016,$I85,1,$H85,$G85*$H85,Options!$B$8)))","v":3845.8873711280999},{"$f":"IF(AND(OR(Calculations!$E$2=\"Orkney Health Board\",Calculations!$E$2=\"Orkney Islands Local Authority\"),$F85=1),0,IF(AND(OR(Calculations!$E$2=\"Shetland Health Board\",Calculations!$E$2=\"Western Isles Health Board\",Calculations!$E$2=\"Shetland Islands Local Authority\",Calculations!$E$2=\"Eilean Siar Local Authority\"),OR($F85=1,$F85=5)),0,new_yllv2(VALUE(LEFT(Options!$B$24,2)),$C85,$D85,$E85,$F85,2016,$I85+$J85,1,$H85,$G85*$H85,Options!$B$8)))","v":3715.1945381927999},{"$f":"IF(AND(OR(Calculations!$E$2=\"Orkney Health Board\",Calculations!$E$2=\"Orkney Islands Local Authority\"),$F85=1),0,IF(AND(OR(Calculations!$E$2=\"Shetland Health Board\",Calculations!$E$2=\"Western Isles Health Board\",Calculations!$E$2=\"Shetland Islands Local Authority\",Calculations!$E$2=\"Eilean Siar Local Authority\"),OR($F85=1,$F85=5)),0,hosp_count(VALUE(LEFT(Options!$B$24,2)),$C85,$E85,$F85,2016,$I85,1,$H85,$G85*$H85, Options!$B$8)))","v":6119.9246785464002},{"$f":"IF(AND(OR(Calculations!$E$2=\"Orkney Health Board\",Calculations!$E$2=\"Orkney Islands Local Authority\"),$F85=1),0,IF(AND(OR(Calculations!$E$2=\"Shetland Health Board\",Calculations!$E$2=\"Western Isles Health Board\",Calculations!$E$2=\"Shetland Islands Local Authority\",Calculations!$E$2=\"Eilean Siar Local Authority\"),OR($F85=1,$F85=5)),0,hosp_count(VALUE(LEFT(Options!$B$24,2)),$C85,$E85,$F85,2016,$I85+$J85,1,$H85,$G85*$H85, Options!$B$8)))","v":6106.6853380440998},{"$f":"IF(AND(OR(Calculations!$E$2=\"Orkney Health Board\",Calculations!$E$2=\"Orkney Islands Local Authority\"),$F85=1),0,IF(AND(OR(Calculations!$E$2=\"Shetland Health Board\",Calculations!$E$2=\"Western Isles Health Board\",Calculations!$E$2=\"Shetland Islands Local Authority\",Calculations!$E$2=\"Eilean Siar Local Authority\"),OR($F85=1,$F85=5)),0,prem_mort(VALUE(LEFT(Options!$B$24,2)),$C85,$E85,$F85,2016,$I85,1,$H85,$G85*$H85,Options!$B$8)))","v":85.312500926200002},{"$f":"IF(AND(OR(Calculations!$E$2=\"Orkney Health Board\",Calculations!$E$2=\"Orkney Islands Local Authority\"),$F85=1),0,IF(AND(OR(Calculations!$E$2=\"Shetland Health Board\",Calculations!$E$2=\"Western Isles Health Board\",Calculations!$E$2=\"Shetland Islands Local Authority\",Calculations!$E$2=\"Eilean Siar Local Authority\"),OR($F85=1,$F85=5)),0,prem_mort(VALUE(LEFT(Options!$B$24,2)),$C85,$E85,$F85,2016,$I85+$J85,1,$H85,$G85*$H85,Options!$B$8)))","v":82.413369632200002},224.47113857338314,216.84305012945325,10119.15847794585,9775.2842661495542,16102.522440000001,16067.687570499658,224.47113857338314,216.84305012945325,1459062.4007269905,1409479.8258414462,65774530.106648028,63539347.729972102,104666395.86,104439969.20824778,1459062.4007269905,1409479.8258414462,6500]
[null,"Male 35-39",36.926009999999998,78.336009999999987,"male",1,{"$f":"HLOOKUP(Calculations!$E$2,'Prevalence Rates'!$C$3:$BC$249,'Prevalence Rates'!$BD86,FALSE)","v":0.35666666666666669},{"$f":"HLOOKUP(Calculations!$E$2,'Population 2016'!$C$3:$BC$249,'Population 2016'!BD86,FALSE)","v":32984},0,{"$f":"HLOOKUP(Results!E$4,Targeting!$C$3:$F$249,Targeting!$G86,FALSE)","v":2239},{"$f":"IF(AND(OR(Calculations!$E$2=\"Orkney Health Board\",Calculations!$E$2=\"Orkney Islands Local Authority\"),$F86=1),0,IF(AND(OR(Calculations!$E$2=\"Shetland Health Board\",Calculations!$E$2=\"Western Isles Health Board\",Calculations!$E$2=\"Shetland Islands Local Authority\",Calculations!$E$2=\"Eilean Siar Local Authority\"),OR($F86=1,$F86=5)),0,new_ci(VALUE(LEFT(Options!$B$24,2)),$C86,$E86,$F86,2016,$I86,1,$H86,$G86*$H86,Options!$B$8)))","v":107.4835731631},{"$f":"IF(AND(OR(Calculations!$E$2=\"Orkney Health Board\",Calculations!$E$2=\"Orkney Islands Local Authority\"),$F86=1),0,IF(AND(OR(Calculations!$E$2=\"Shetland Health Board\",Calculations!$E$2=\"Western Isles Health Board\",Calculations!$E$2=\"Shetland Islands Local Authority\",Calculations!$E$2=\"Eilean Siar Local Authority\"),OR($F86=1,$F86=5)),0,new_ci(VALUE(LEFT(Options!$B$24,2)),$C86,$E86,$F86,2016,$I86+$J86,1,$H86,$G86*$H86,Options!$B$8)))","v":104.09120201890001},{"$f":"IF(AND(OR(Calculations!$E$2=\"Orkney Health Board\",Calculations!$E$2=\"Orkney Islands Local Authority\"),$F86=1),0,IF(AND(OR(Calculations!$E$2=\"Shetland Health Board\",Calculations!$E$2=\"Western Isles Health Board\",Calculations!$E$2=\"Shetland Islands Local Authority\",Calculations!$E$2=\"Eilean Siar Local Authority\"),OR($F86=1,$F86=5)),0,new_yllv2(VALUE(LEFT(Options!$B$24,2)),$C86,$D86,$E86,$F86,2016,$I86,1,$H86,$G86*$H86,Options!$B$8)))","v":4343.4111915208996},{"$f":"IF(AND(OR(Calculations!$E$2=\"Orkney Health Board\",Calculations!$E$2=\"Orkney Islands Local Authority\"),$F86=1),0,IF(AND(OR(Calculations!$E$2=\"Shetland Health Board\",Calculations!$E$2=\"Western Isles Health Board\",Calculations!$E$2=\"Shetland Islands Local Authority\",Calculations!$E$2=\"Eilean Siar Local Authority\"),OR($F86=1,$F86=5)),0,new_yllv2(VALUE(LEFT(Options!$B$24,2)),$C86,$D86,$E86,$F86,2016,$I86+$J86,1,$H86,$G86*$H86,Options!$B$8)))","v":4206.3254735836999},{"$f":"IF(AND(OR(Calculations!$E$2=\"Orkney Health Board\",Calculations!$E$2=\"Orkney Islands Local Authority\"),$F86=1),0,IF(AND(OR(Calculations!$E$2=\"Shetland Health Board\",Calculations!$E$2=\"Western Isles Health Board\",Calculations!$E$2=\"Shetland Islands Local Authority\",Calculations!$E$2=\"Eilean Siar Local Authority\"),OR($F86=1,$F86=5)),0,hosp_count(VALUE(LEFT(Options!$B$24,2)),$C86,$E86,$F86,2016,$I86,1,$H86,$G86*$H86, Options!$B$8)))","v":6330.2128956528004},{"$f":"IF(AND(OR(Calculations!$E$2=\"Orkney Health Board\",Calculations!$E$2=\"Orkney Islands Local Authority\"),$F86=1),0,IF(AND(OR(Calculations!$E$2=\"Shetland Health Board\",Calculations!$E$2=\"Western Isles Health Board\",Calculations!$E$2=\"Shetland Islands Local Authority\",Calculations!$E$2=\"Eilean Siar Local Authority\"),OR($F86=1,$F86=5)),0,hosp_count(VALUE(LEFT(Options!$B$24,2)),$C86,$E86,$F86,2016,$I86+$J86,1,$H86,$G86*$H86, Options!$B$8)))","v":6316.5507168819004},{"$f":"IF(AND(OR(Calculations!$E$2=\"Orkney Health Board\",Calculations!$E$2=\"Orkney Islands Local Authority\"),$F86=1),0,IF(AND(OR(Calculations!$E$2=\"Shetland Health Board\",Calculations!$E$2=\"Western Isles Health Board\",Calculations!$E$2=\"Shetland Islands Local Authority\",Calculations!$E$2=\"Eilean Siar Local Authority\"),OR($F86=1,$F86=5)),0,prem_mort(VALUE(LEFT(Options!$B$24,2)),$C86,$E86,$F86,2016,$I86,1,$H86,$G86*$H86,Options!$B$8)))","v":107.4835731631},{"$f":"IF(AND(OR(Calculations!$E$2=\"Orkney Health Board\",Calculations!$E$2=\"Orkney Islands Local Authority\"),$F86=1),0,IF(AND(OR(Calculations!$E$2=\"Shetland Health Board\",Calculations!$E$2=\"Western Isles Health Board\",Calculations!$E$2=\"Shetland Islands Local Authority\",Calculations!$E$2=\"Eilean Siar Local Authority\"),OR($F86=1,$F86=5)),0,prem_mort(VALUE(LEFT(Options!$B$24,2)),$C86,$E86,$F86,2016,$I86+$J86,1,$H86,$G86*$H86,Options!$B$8)))","v":104.09120201890001},325.86579299993934,315.58089382397532,13168.236695127636,12752.623919426693,19191.768420000004,19150.347795542992,325.86579299993934,315.58089382397532,2281060.5509995753,2209066.2567678271,92177656.865893453,89268367.435986847,134342378.94000003,134052434.56880094,2281060.5509995753,2209066.2567678271,7000]
[null,"Male 40-44",42.067703000000002,78.907700000000006,"male",1,{"$f":"HLOOKUP(Calculations!$E$2,'Prevalence Rates'!$C$3:$BC$249,'Prevalence Rates'!$BD87,FALSE)","v":0.35666666666666669},{"$f":"HLOOKUP(Calculations!$E$2,'Population 2016'!$C$3:$BC$249,'Population 2016'!BD87,FALSE)","v":31623},0,{"$f":"HLOOKUP(Results!E$4,Targeting!$C$3:$F$249,Targeting!$G87,FALSE)","v":2147},{"$f":"IF(AND(OR(Calculations!$E$2=\"Orkney Health Board\",Calculations!$E$2=\"Orkney Islands Local Authority\"),$F87=1),0,IF(AND(OR(Calculations!$E$2=\"Shetland Health Board\",Calculations!$E$2=\"Western Isles Health Board\",Calculations!$E$2=\"Shetland Islands Local Authority\",Calculations!$E$2=\"Eilean Siar Local Authority\"),OR($F87=1,$F87=5)),0,new_ci(VALUE(LEFT(Options!$B$24,2)),$C87,$E87,$F87,2016,$I87,1,$H87,$G87*$H87,Options!$B$8)))","v":151.79739047499999},{"$f":"IF(AND(OR(Calculations!$E$2=\"Orkney Health Board\",Calculations!$E$2=\"Orkney Islands Local Authority\"),$F87=1),0,IF(AND(OR(Calculations!$E$2=\"Shetland Health Board\",Calculations!$E$2=\"Western Isles Health Board\",Calculations!$E$2=\"Shetland Islands Local Authority\",Calculations!$E$2=\"Eilean Siar Local Authority\"),OR($F87=1,$F87=5)),0,new_ci(VALUE(LEFT(Options!$B$24,2)),$C87,$E87,$F87,2016,$I87+$J87,1,$H87,$G87*$H87,Options!$B$8)))","v":147.0101127163},{"$f":"IF(AND(OR(Calculations!$E$2=\"Orkney Health Board\",Calculations!$E$2=\"Orkney Islands Local Authority\"),$F87=1),0,IF(AND(OR(Calculations!$E$2=\"Shetland Health Board\",Calculations!$E$2=\"Western Isles Health Board\",Calculations!$E$2=\"Shetland Islands Local Authority\",Calculations!$E$2=\"Eilean Siar Local Authority\"),OR($F87=1,$F87=5)),0,new_yllv2(VALUE(LEFT(Options!$B$24,2)),$C87,$D87,$E87,$F87,2016,$I87,1,$H87,$G87*$H87,Options!$B$8)))","v":5440.4180192317999},{"$f":"IF(AND(OR(Calculations!$E$2=\"Orkney Health Board\",Calculations!$E$2=\"Orkney Islands Local Authority\"),$F87=1),0,IF(AND(OR(Calculations!$E$2=\"Shetland Health Board\",Calculations!$E$2=\"Western Isles Health Board\",Calculations!$E$2=\"Shetland Islands Local Authority\",Calculations!$E$2=\"Eilean Siar Local Authority\"),OR($F87=1,$F87=5)),0,new_yllv2(VALUE(LEFT(Options!$B$24,2)),$C87,$D87,$E87,$F87,2016,$I87+$J87,1,$H87,$G87*$H87,Options!$B$8)))","v":5268.8419987219004},{"$f":"IF(AND(OR(Calculations!$E$2=\"Orkney Health Board\",Calculations!$E$2=\"Orkney Islands Local Authority\"),$F87=1),0,IF(AND(OR(Calculations!$E$2=\"Shetland Health Board\",Calculations!$E$2=\"Western Isles Health Board\",Calculations!$E$2=\"Shetland Islands Local Authority\",Calculations!$E$2=\"Eilean Siar Local Authority\"),OR($F87=1,$F87=5)),0,hosp_count(VALUE(LEFT(Options!$B$24,2)),$C87,$E87,$F87,2016,$I87,1,$H87,$G87*$H87, Options!$B$8)))","v":7284.1542018173996},{"$f":"IF(AND(OR(Calculations!$E$2=\"Orkney Health Board\",Calculations!$E$2=\"Orkney Islands Local Authority\"),$F87=1),0,IF(AND(OR(Calculations!$E$2=\"Shetland Health Board\",Calculations!$E$2=\"Western Isles Health Board\",Calculations!$E$2=\"Shetland Islands Local Authority\",Calculations!$E$2=\"Eilean Siar Local Authority\"),OR($F87=1,$F87=5)),0,hosp_count(VALUE(LEFT(Options!$B$24,2)),$C87,$E87,$F87,2016,$I87+$J87,1,$H87,$G87*$H87, Options!$B$8)))","v":7268.4303485395003},{"$f":"IF(AND(OR(Calculations!$E$2=\"Orkney Health Board\",Calculations!$E$2=\"Orkney Islands Local Authority\"),$F87=1),0,IF(AND(OR(Calculations!$E$2=\"Shetland Health Board\",Calculations!$E$2=\"Western Isles Health Board\",Calculations!$E$2=\"Shetland Islands Local Authority\",Calculations!$E$2=\"Eilean Siar Local Authority\"),OR($F87=1,$F87=5)),0,prem_mort(VALUE(LEFT(Options!$B$24,2)),$C87,$E87,$F87,2016,$I87,1,$H87,$G87*$H87,Options!$B$8)))","v":151.79739047499999},{"$f":"IF(AND(OR(Calculations!$E$2=\"Orkney Health Board\",Calculations!$E$2=\"Orkney Islands Local Authority\"),$F87=1),0,IF(AND(OR(Calculations!$E$2=\"Shetland Health Board\",Calculations!$E$2=\"Western Isles Health Board\",Calculations!$E$2=\"Shetland Islands Local Authority\",Calculations!$E$2=\"Eilean Siar Local Authority\"),OR($F87=1,$F87=5)),0,prem_mort(VALUE(LEFT(Options!$B$24,2)),$C87,$E87,$F87,2016,$I87+$J87,1,$H87,$G87*$H87,Options!$B$8)))","v":147.0101127163},480.02210566676149,464.88351110362714,17203.990827030324,16661.423643303609,23034.355379999997,22984.632541313284,480.02210566676149,464.88351110362714,3360154.7396673304,3254184.57772539,120427935.78921227,116629965.50312527,161240487.65999997,160892427.78919297,3360154.7396673304,3254184.57772539,7000]
[null,"Male 45-49",47.038155000000003,79.418149999999997,"male",1,{"$f":"HLOOKUP(Calculations!$E$2,'Prevalence Rates'!$C$3:$BC$249,'Prevalence Rates'!$BD88,FALSE)","v":0.34569983136593591},{"$f":"HLOOKUP(Calculations!$E$2,'Population 2016'!$C$3:$BC$249,'Population 2016'!BD88,FALSE)","v":35878},0,{"$f":"HLOOKUP(Results!E$4,Targeting!$C$3:$F$249,Targeting!$G88,FALSE)","v":2436},{"$f":"IF(AND(OR(Calculations!$E$2=\"Orkney Health Board\",Calculations!$E$2=\"Orkney Islands Local Authority\"),$F88=1),0,IF(AND(OR(Calculations!$E$2=\"Shetland Health Board\",Calculations!$E$2=\"Western Isles Health Board\",Calculations!$E$2=\"Shetland Islands Local Authority\",Calculations!$E$2=\"Eilean Siar Local Authority\"),OR($F88=1,$F88=5)),0,new_ci(VALUE(LEFT(Options!$B$24,2)),$C88,$E88,$F88,2016,$I88,1,$H88,$G88*$H88,Options!$B$8)))","v":250.3491493235},{"$f":"IF(AND(OR(Calculations!$E$2=\"Orkney Health Board\",Calculations!$E$2=\"Orkney Islands Local Authority\"),$F88=1),0,IF(AND(OR(Calculations!$E$2=\"Shetland Health Board\",Calculations!$E$2=\"Western Isles Health Board\",Calculations!$E$2=\"Shetland Islands Local Authority\",Calculations!$E$2=\"Eilean Siar Local Authority\"),OR($F88=1,$F88=5)),0,new_ci(VALUE(LEFT(Options!$B$24,2)),$C88,$E88,$F88,2016,$I88+$J88,1,$H88,$G88*$H88,Options!$B$8)))","v":242.41144283630001},{"$f":"IF(AND(OR(Calculations!$E$2=\"Orkney Health Board\",Calculations!$E$2=\"Orkney Islands Local Authority\"),$F88=1),0,IF(AND(OR(Calculations!$E$2=\"Shetland Health Board\",Calculations!$E$2=\"Western Isles Health Board\",Calculations!$E$2=\"Shetland Islands Local Authority\",Calculations!$E$2=\"Eilean Siar Local Authority\"),OR($F88=1,$F88=5)),0,new_yllv2(VALUE(LEFT(Options!$B$24,2)),$C88,$D88,$E88,$F88,2016,$I88,1,$H88,$G88*$H88,Options!$B$8)))","v":7855.9550540256996},{"$f":"IF(AND(OR(Calculations!$E$2=\"Orkney Health Board\",Calculations!$E$2=\"Orkney Islands Local Authority\"),$F88=1),0,IF(AND(OR(Calculations!$E$2=\"Shetland Health Board\",Calculations!$E$2=\"Western Isles Health Board\",Calculations!$E$2=\"Shetland Islands Local Authority\",Calculations!$E$2=\"Eilean Siar Local Authority\"),OR($F88=1,$F88=5)),0,new_yllv2(VALUE(LEFT(Options!$B$24,2)),$C88,$D88,$E88,$F88,2016,$I88+$J88,1,$H88,$G88*$H88,Options!$B$8)))","v":7606.8698641458996},{"$f":"IF(AND(OR(Calculations!$E$2=\"Orkney Health Board\",Calculations!$E$2=\"Orkney Islands Local Authority\"),$F88=1),0,IF(AND(OR(Calculations!$E$2=\"Shetland Health Board\",Calculations!$E$2=\"Western Isles Health Board\",Calculations!$E$2=\"Shetland Islands Local Authority\",Calculations!$E$2=\"Eilean Siar Local Authority\"),OR($F88=1,$F88=5)),0,hosp_count(VALUE(LEFT(Options!$B$24,2)),$C88,$E88,$F88,2016,$I88,1,$H88,$G88*$H88, Options!$B$8)))","v":9858.8353716774},{"$f":"IF(AND(OR(Calculations!$E$2=\"Orkney Health Board\",Calculations!$E$2=\"Orkney Islands Local Authority\"),$F88=1),0,IF(AND(OR(Calculations!$E$2=\"Shetland Health Board\",Calculations!$E$2=\"Western Isles Health Board\",Calculations!$E$2=\"Shetland Islands Local Authority\",Calculations!$E$2=\"Eilean Siar Local Authority\"),OR($F88=1,$F88=5)),0,hosp_count(VALUE(LEFT(Options!$B$24,2)),$C88,$E88,$F88,2016,$I88+$J88,1,$H88,$G88*$H88, Options!$B$8)))","v":9837.5480933990002},{"$f":"IF(AND(OR(Calculations!$E$2=\"Orkney Health Board\",Calculations!$E$2=\"Orkney Islands Local Authority\"),$F88=1),0,IF(AND(OR(Calculations!$E$2=\"Shetland Health Board\",Calculations!$E$2=\"Western Isles Health Board\",Calculations!$E$2=\"Shetland Islands Local Authority\",Calculations!$E$2=\"Eilean Siar Local Authority\"),OR($F88=1,$F88=5)),0,prem_mort(VALUE(LEFT(Options!$B$24,2)),$C88,$E88,$F88,2016,$I88,1,$H88,$G88*$H88,Options!$B$8)))","v":250.3491493235},{"$f":"IF(AND(OR(Calculations!$E$2=\"Orkney Health Board\",Calculations!$E$2=\"Orkney Islands Local Authority\"),$F88=1),0,IF(AND(OR(Calculations!$E$2=\"Shetland Health Board\",Calculations!$E$2=\"Western Isles Health Board\",Calculations!$E$2=\"Shetland Islands Local Authority\",Calculations!$E$2=\"Eilean Siar Local Authority\"),OR($F88=1,$F88=5)),0,prem_mort(VALUE(LEFT(Options!$B$24,2)),$C88,$E88,$F88,2016,$I88+$J88,1,$H88,$G88*$H88,Options!$B$8)))","v":242.41144283630001},697.7789991735882,675.65483816349854,21896.30150517225,21202.045443296451,27478.776330000001,27419.443930539608,697.7789991735882,675.65483816349854,4884452.9942151178,4729583.8671444897,153274110.53620574,148414318.10307515,192351434.31,191936107.51377726,4884452.9942151178,4729583.8671444897,7000]
[null,"Male 50-54",51.998646000000001,79.988649999999993,"male",1,{"$f":"HLOOKUP(Calculations!$E$2,'Prevalence Rates'!$C$3:$BC$249,'Prevalence Rates'!$BD89,FALSE)","v":0.34569983136593591},{"$f":"HLOOKUP(Calculations!$E$2,'Population 2016'!$C$3:$BC$249,'Population 2016'!BD89,FALSE)","v":36922},0,{"$f":"HLOOKUP(Results!E$4,Targeting!$C$3:$F$249,Targeting!$G89,FALSE)","v":2506},{"$f":"IF(AND(OR(Calculations!$E$2=\"Orkney Health Board\",Calculations!$E$2=\"Orkney Islands Local Authority\"),$F89=1),0,IF(AND(OR(Calculations!$E$2=\"Shetland Health Board\",Calculations!$E$2=\"Western Isles Health Board\",Calculations!$E$2=\"Shetland Islands Local Authority\",Calculations!$E$2=\"Eilean Siar Local Authority\"),OR($F89=1,$F89=5)),0,new_ci(VALUE(LEFT(Options!$B$24,2)),$C89,$E89,$F89,2016,$I89,1,$H89,$G89*$H89,Options!$B$8)))","v":374.02487959259997},{"$f":"IF(AND(OR(Calculations!$E$2=\"Orkney Health Board\",Calculations!$E$2=\"Orkney Islands Local Authority\"),$F89=1),0,IF(AND(OR(Calculations!$E$2=\"Shetland Health Board\",Calculations!$E$2=\"Western Isles Health Board\",Calculations!$E$2=\"Shetland Islands Local Authority\",Calculations!$E$2=\"Eilean Siar Local Authority\"),OR($F89=1,$F89=5)),0,new_ci(VALUE(LEFT(Options!$B$24,2)),$C89,$E89,$F89,2016,$I89+$J89,1,$H89,$G89*$H89,Options!$B$8)))","v":362.19360501860001},{"$f":"IF(AND(OR(Calculations!$E$2=\"Orkney Health Board\",Calculations!$E$2=\"Orkney Islands Local Authority\"),$F89=1),0,IF(AND(OR(Calculations!$E$2=\"Shetland Health Board\",Calculations!$E$2=\"Western Isles Health Board\",Calculations!$E$2=\"Shetland Islands Local Authority\",Calculations!$E$2=\"Eilean Siar Local Authority\"),OR($F89=1,$F89=5)),0,new_yllv2(VALUE(LEFT(Options!$B$24,2)),$C89,$D89,$E89,$F89,2016,$I89,1,$H89,$G89*$H89,Options!$B$8)))","v":10094.9329963038},{"$f":"IF(AND(OR(Calculations!$E$2=\"Orkney Health Board\",Calculations!$E$2=\"Orkney Islands Local Authority\"),$F89=1),0,IF(AND(OR(Calculations!$E$2=\"Shetland Health Board\",Calculations!$E$2=\"Western Isles Health Board\",Calculations!$E$2=\"Shetland Islands Local Authority\",Calculations!$E$2=\"Eilean Siar Local Authority\"),OR($F89=1,$F89=5)),0,new_yllv2(VALUE(LEFT(Options!$B$24,2)),$C89,$D89,$E89,$F89,2016,$I89+$J89,1,$H89,$G89*$H89,Options!$B$8)))","v":9775.6068482264},{"$f":"IF(AND(OR(Calculations!$E$2=\"Orkney Health Board\",Calculations!$E$2=\"Orkney Islands Local Authority\"),$F89=1),0,IF(AND(OR(Calculations!$E$2=\"Shetland Health Board\",Calculations!$E$2=\"Western Isles Health Board\",Calculations!$E$2=\"Shetland Islands Local Authority\",Calculations!$E$2=\"Eilean Siar Local Authority\"),OR($F89=1,$F89=5)),0,hosp_count(VALUE(LEFT(Options!$B$24,2)),$C89,$E89,$F89,2016,$I89,1,$H89,$G89*$H89, Options!$B$8)))","v":12099.025182703401},{"$f":"IF(AND(OR(Calculations!$E$2=\"Orkney Health Board\",Calculations!$E$2=\"Orkney Islands Local Authority\"),$F89=1),0,IF(AND(OR(Calculations!$E$2=\"Shetland Health Board\",Calculations!$E$2=\"Western Isles Health Board\",Calculations!$E$2=\"Shetland Islands Local Authority\",Calculations!$E$2=\"Eilean Siar Local Authority\"),OR($F89=1,$F89=5)),0,hosp_count(VALUE(LEFT(Options!$B$24,2)),$C89,$E89,$F89,2016,$I89+$J89,1,$H89,$G89*$H89, Options!$B$8)))","v":12072.9100824897},{"$f":"IF(AND(OR(Calculations!$E$2=\"Orkney Health Board\",Calculations!$E$2=\"Orkney Islands Local Authority\"),$F89=1),0,IF(AND(OR(Calculations!$E$2=\"Shetland Health Board\",Calculations!$E$2=\"Western Isles Health Board\",Calculations!$E$2=\"Shetland Islands Local Authority\",Calculations!$E$2=\"Eilean Siar Local Authority\"),OR($F89=1,$F89=5)),0,prem_mort(VALUE(LEFT(Options!$B$24,2)),$C89,$E89,$F89,2016,$I89,1,$H89,$G89*$H89,Options!$B$8)))","v":374.02487959259997},{"$f":"IF(AND(OR(Calculations!$E$2=\"Orkney Health Board\",Calculations!$E$2=\"Orkney Islands Local Authority\"),$F89=1),0,IF(AND(OR(Calculations!$E$2=\"Shetland Health Board\",Calculations!$E$2=\"Western Isles Health Board\",Calculations!$E$2=\"Shetland Islands Local Authority\",Calculations!$E$2=\"Eilean Siar Local Authority\"),OR($F89=1,$F89=5)),0,prem_mort(VALUE(LEFT(Options!$B$24,2)),$C89,$E89,$F89,2016,$I89+$J89,1,$H89,$G89*$H89,Options!$B$8)))","v":362.19360501860001},1013.0135951264828,980.96962520611021,27341.240984518176,26476.374108191321,32769.148970000002,32698.418510616164,1013.0135951264828,980.96962520611021,7091095.1658853795,6866787.3764427714,191388686.89162722,185334618.75733924,229384042.79000002,228888929.57431313,7091095.1658853795,6866787.3764427714,7000]
[null,"Male 55-59",56.950867000000002,80.660870000000003,"male",1,{"$f":"HLOOKUP(Calculations!$E$2,'Prevalence Rates'!$C$3:$BC$249,'Prevalence Rates'!$BD90,FALSE)","v":0.47007042253521125},{"$f":"HLOOKUP(Calculations!$E$2,'Population 2016'!$C$3:$BC$249,'Population 2016'!BD90,FALSE)","v":33251},0,{"$f":"HLOOKUP(Results!E$4,Targeting!$C$3:$F$249,Targeting!$G90,FALSE)","v":2257},{"$f":"IF(AND(OR(Calculations!$E$2=\"Orkney Health Board\",Calculations!$E$2=\"Orkney Islands Local Authority\"),$F90=1),0,IF(AND(OR(Calculations!$E$2=\"Shetland Health Board\",Calculations!$E$2=\"Western Isles Health Board\",Calculations!$E$2=\"Shetland Islands Local Authority\",Calculations!$E$2=\"Eilean Siar Local Authority\"),OR($F90=1,$F90=5)),0,new_ci(VALUE(LEFT(Options!$B$24,2)),$C90,$E90,$F90,2016,$I90,1,$H90,$G90*$H90,Options!$B$8)))","v":488.34045495909999},{"$f":"IF(AND(OR(Calculations!$E$2=\"Orkney Health Board\",Calculations!$E$2=\"Orkney Islands Local Authority\"),$F90=1),0,IF(AND(OR(Calculations!$E$2=\"Shetland Health Board\",Calculations!$E$2=\"Western Isles Health Board\",Calculations!$E$2=\"Shetland Islands Local Authority\",Calculations!$E$2=\"Eilean Siar Local Authority\"),OR($F90=1,$F90=5)),0,new_ci(VALUE(LEFT(Options!$B$24,2)),$C90,$E90,$F90,2016,$I90+$J90,1,$H90,$G90*$H90,Options!$B$8)))","v":474.0129004666},{"$f":"IF(AND(OR(Calculations!$E$2=\"Orkney Health Board\",Calculations!$E$2=\"Orkney Islands Local Authority\"),$F90=1),0,IF(AND(OR(Calculations!$E$2=\"Shetland Health Board\",Calculations!$E$2=\"Western Isles Health Board\",Calculations!$E$2=\"Shetland Islands Local Authority\",Calculations!$E$2=\"Eilean Siar Local Authority\"),OR($F90=1,$F90=5)),0,new_yllv2(VALUE(LEFT(Options!$B$24,2)),$C90,$D90,$E90,$F90,2016,$I90,1,$H90,$G90*$H90,Options!$B$8)))","v":11090.213197142501},{"$f":"IF(AND(OR(Calculations!$E$2=\"Orkney Health Board\",Calculations!$E$2=\"Orkney Islands Local Authority\"),$F90=1),0,IF(AND(OR(Calculations!$E$2=\"Shetland Health Board\",Calculations!$E$2=\"Western Isles Health Board\",Calculations!$E$2=\"Shetland Islands Local Authority\",Calculations!$E$2=\"Eilean Siar Local Authority\"),OR($F90=1,$F90=5)),0,new_yllv2(VALUE(LEFT(Options!$B$24,2)),$C90,$D90,$E90,$F90,2016,$I90+$J90,1,$H90,$G90*$H90,Options!$B$8)))","v":10764.834391635201},{"$f":"IF(AND(OR(Calculations!$E$2=\"Orkney Health Board\",Calculations!$E$2=\"Orkney Islands Local Authority\"),$F90=1),0,IF(AND(OR(Calculations!$E$2=\"Shetland Health Board\",Calculations!$E$2=\"Western Isles Health Board\",Calculations!$E$2=\"Shetland Islands Local Authority\",Calculations!$E$2=\"Eilean Siar Local Authority\"),OR($F90=1,$F90=5)),0,hosp_count(VALUE(LEFT(Options!$B$24,2)),$C90,$E90,$F90,2016,$I90,1,$H90,$G90*$H90, Options!$B$8)))","v":12990.0302415269},{"$f":"IF(AND(OR(Calculations!$E$2=\"Orkney Health Board\",Calculations!$E$2=\"Orkney Islands Local Authority\"),$F90=1),0,IF(AND(OR(Calculations!$E$2=\"Shetland Health Board\",Calculations!$E$2=\"Western Isles Health Board\",Calculations!$E$2=\"Shetland Islands Local Authority\",Calculations!$E$2=\"Eilean Siar Local Authority\"),OR($F90=1,$F90=5)),0,hosp_count(VALUE(LEFT(Options!$B$24,2)),$C90,$E90,$F90,2016,$I90+$J90,1,$H90,$G90*$H90, Options!$B$8)))","v":12962.0590512579},{"$f":"IF(AND(OR(Calculations!$E$2=\"Orkney Health Board\",Calculations!$E$2=\"Orkney Islands Local Authority\"),$F90=1),0,IF(AND(OR(Calculations!$E$2=\"Shetland Health Board\",Calculations!$E$2=\"Western Isles Health Board\",Calculations!$E$2=\"Shetland Islands Local Authority\",Calculations!$E$2=\"Eilean Siar Local Authority\"),OR($F90=1,$F90=5)),0,prem_mort(VALUE(LEFT(Options!$B$24,2)),$C90,$E90,$F90,2016,$I90,1,$H90,$G90*$H90,Options!$B$8)))","v":488.34045495909999},{"$f":"IF(AND(OR(Calculations!$E$2=\"Orkney Health Board\",Calculations!$E$2=\"Orkney Islands Local Authority\"),$F90=1),0,IF(AND(OR(Calculations!$E$2=\"Shetland Health Board\",Calculations!$E$2=\"Western Isles Health Board\",Calculations!$E$2=\"Shetland Islands Local Authority\",Calculations!$E$2=\"Eilean Siar Local Authority\"),OR($F90=1,$F90=5)),0,prem_mort(VALUE(LEFT(Options!$B$24,2)),$C90,$E90,$F90,2016,$I90+$J90,1,$H90,$G90*$H90,Options!$B$8)))","v":474.0129004666},1468.6489277287901,1425.5598341902498,33353.021554667532,32374.468111140119,39066.585189999998,38982.463839457159,1468.6489277287901,1425.5598341902498,9546218.0302371364,9266138.9222366232,216794640.10533896,210434042.72241077,253932803.73499998,253386014.95647153,9546218.0302371364,9266138.9222366232,6500]
[null,"Male 60-64",61.942988999999997,81.612989999999996,"male",1,{"$f":"HLOOKUP(Calculations!$E$2,'Prevalence Rates'!$C$3:$BC$249,'Prevalence Rates'!$BD91,FALSE)","v":0.47007042253521125},{"$f":"HLOOKUP(Calculations!$E$2,'Population 2016'!$C$3:$BC$249,'Population 2016'!BD91,FALSE)","v":27358},0,{"$f":"HLOOKUP(Results!E$4,Targeting!$C$3:$F$249,Targeting!$G91,FALSE)","v":1857},{"$f":"IF(AND(OR(Calculations!$E$2=\"Orkney Health Board\",Calculations!$E$2=\"Orkney Islands Local Authority\"),$F91=1),0,IF(AND(OR(Calculations!$E$2=\"Shetland Health Board\",Calculations!$E$2=\"Western Isles Health Board\",Calculations!$E$2=\"Shetland Islands Local Authority\",Calculations!$E$2=\"Eilean Siar Local Authority\"),OR($F91=1,$F91=5)),0,new_ci(VALUE(LEFT(Options!$B$24,2)),$C91,$E91,$F91,2016,$I91,1,$H91,$G91*$H91,Options!$B$8)))","v":583.58064043210004},{"$f":"IF(AND(OR(Calculations!$E$2=\"Orkney Health Board\",Calculations!$E$2=\"Orkney Islands Local Authority\"),$F91=1),0,IF(AND(OR(Calculations!$E$2=\"Shetland Health Board\",Calculations!$E$2=\"Western Isles Health Board\",Calculations!$E$2=\"Shetland Islands Local Authority\",Calculations!$E$2=\"Eilean Siar Local Authority\"),OR($F91=1,$F91=5)),0,new_ci(VALUE(LEFT(Options!$B$24,2)),$C91,$E91,$F91,2016,$I91+$J91,1,$H91,$G91*$H91,Options!$B$8)))","v":566.52201020680002},{"$f":"IF(AND(OR(Calculations!$E$2=\"Orkney Health Board\",Calculations!$E$2=\"Orkney Islands Local Authority\"),$F91=1),0,IF(AND(OR(Calculations!$E$2=\"Shetland Health Board\",Calculations!$E$2=\"Western Isles Health Board\",Calculations!$E$2=\"Shetland Islands Local Authority\",Calculations!$E$2=\"Eilean Siar Local Authority\"),OR($F91=1,$F91=5)),0,new_yllv2(VALUE(LEFT(Options!$B$24,2)),$C91,$D91,$E91,$F91,2016,$I91,1,$H91,$G91*$H91,Options!$B$8)))","v":10895.4511404479},{"$f":"IF(AND(OR(Calculations!$E$2=\"Orkney Health Board\",Calculations!$E$2=\"Orkney Islands Local Authority\"),$F91=1),0,IF(AND(OR(Calculations!$E$2=\"Shetland Health Board\",Calculations!$E$2=\"Western Isles Health Board\",Calculations!$E$2=\"Shetland Islands Local Authority\",Calculations!$E$2=\"Eilean Siar Local Authority\"),OR($F91=1,$F91=5)),0,new_yllv2(VALUE(LEFT(Options!$B$24,2)),$C91,$D91,$E91,$F91,2016,$I91+$J91,1,$H91,$G91*$H91,Options!$B$8)))","v":10576.966497083},{"$f":"IF(AND(OR(Calculations!$E$2=\"Orkney Health Board\",Calculations!$E$2=\"Orkney Islands Local Authority\"),$F91=1),0,IF(AND(OR(Calculations!$E$2=\"Shetland Health Board\",Calculations!$E$2=\"Western Isles Health Board\",Calculations!$E$2=\"Shetland Islands Local Authority\",Calculations!$E$2=\"Eilean Siar Local Authority\"),OR($F91=1,$F91=5)),0,hosp_count(VALUE(LEFT(Options!$B$24,2)),$C91,$E91,$F91,2016,$I91,1,$H91,$G91*$H91, Options!$B$8)))","v":12759.838377569},{"$f":"IF(AND(OR(Calculations!$E$2=\"Orkney Health Board\",Calculations!$E$2=\"Orkney Islands Local Authority\"),$F91=1),0,IF(AND(OR(Calculations!$E$2=\"Shetland Health Board\",Calculations!$E$2=\"Western Isles Health Board\",Calculations!$E$2=\"Shetland Islands Local Authority\",Calculations!$E$2=\"Eilean Siar Local Authority\"),OR($F91=1,$F91=5)),0,hosp_count(VALUE(LEFT(Options!$B$24,2)),$C91,$E91,$F91,2016,$I91+$J91,1,$H91,$G91*$H91, Options!$B$8)))","v":12732.362810135201},{"$f":"IF(AND(OR(Calculations!$E$2=\"Orkney Health Board\",Calculations!$E$2=\"Orkney Islands Local Authority\"),$F91=1),0,IF(AND(OR(Calculations!$E$2=\"Shetland Health Board\",Calculations!$E$2=\"Western Isles Health Board\",Calculations!$E$2=\"Shetland Islands Local Authority\",Calculations!$E$2=\"Eilean Siar Local Authority\"),OR($F91=1,$F91=5)),0,prem_mort(VALUE(LEFT(Options!$B$24,2)),$C91,$E91,$F91,2016,$I91,1,$H91,$G91*$H91,Options!$B$8)))","v":583.58064043210004},{"$f":"IF(AND(OR(Calculations!$E$2=\"Orkney Health Board\",Calculations!$E$2=\"Orkney Islands Local Authority\"),$F91=1),0,IF(AND(OR(Calculations!$E$2=\"Shetland Health Board\",Calculations!$E$2=\"Western Isles Health Board\",Calculations!$E$2=\"Shetland Islands Local Authority\",Calculations!$E$2=\"Eilean Siar Local Authority\"),OR($F91=1,$F91=5)),0,prem_mort(VALUE(LEFT(Options!$B$24,2)),$C91,$E91,$F91,2016,$I91+$J91,1,$H91,$G91*$H91,Options!$B$8)))","v":566.52201020680002},2133.1261072889101,2070.7727546121791,39825.466556209882,38661.329399382266,46640.24555,46539.815813053588,2133.1261072889101,2070.7727546121791,12798756.64373346,12424636.527673075,238952799.33725929,231967976.39629361,279841473.30000001,279238894.87832153,12798756.64373346,12424636.527673075,6000]
[null,"Male 65-69",67.054419999999993,82.954419999999999,"male",1,{"$f":"HLOOKUP(Calculations!$E$2,'Prevalence Rates'!$C$3:$BC$249,'Prevalence Rates'!$BD92,FALSE)","v":0},{"$f":"HLOOKUP(Calculations!$E$2,'Population 2016'!$C$3:$BC$249,'Population 2016'!BD92,FALSE)","v":25567},0,{"$f":"HLOOKUP(Results!E$4,Targeting!$C$3:$F$249,Targeting!$G92,FALSE)","v":0},{"$f":"IF(AND(OR(Calculations!$E$2=\"Orkney Health Board\",Calculations!$E$2=\"Orkney Islands Local Authority\"),$F92=1),0,IF(AND(OR(Calculations!$E$2=\"Shetland Health Board\",Calculations!$E$2=\"Western Isles Health Board\",Calculations!$E$2=\"Shetland Islands Local Authority\",Calculations!$E$2=\"Eilean Siar Local Authority\"),OR($F92=1,$F92=5)),0,new_ci(VALUE(LEFT(Options!$B$24,2)),$C92,$E92,$F92,2016,$I92,1,$H92,$G92*$H92,Options!$B$8)))","v":798.85918262150005},{"$f":"IF(AND(OR(Calculations!$E$2=\"Orkney Health Board\",Calculations!$E$2=\"Orkney Islands Local Authority\"),$F92=1),0,IF(AND(OR(Calculations!$E$2=\"Shetland Health Board\",Calculations!$E$2=\"Western Isles Health Board\",Calculations!$E$2=\"Shetland Islands Local Authority\",Calculations!$E$2=\"Eilean Siar Local Authority\"),OR($F92=1,$F92=5)),0,new_ci(VALUE(LEFT(Options!$B$24,2)),$C92,$E92,$F92,2016,$I92+$J92,1,$H92,$G92*$H92,Options!$B$8)))","v":798.85918262150005},{"$f":"IF(AND(OR(Calculations!$E$2=\"Orkney Health Board\",Calculations!$E$2=\"Orkney Islands Local Authority\"),$F92=1),0,IF(AND(OR(Calculations!$E$2=\"Shetland Health Board\",Calculations!$E$2=\"Western Isles Health Board\",Calculations!$E$2=\"Shetland Islands Local Authority\",Calculations!$E$2=\"Eilean Siar Local Authority\"),OR($F92=1,$F92=5)),0,new_yllv2(VALUE(LEFT(Options!$B$24,2)),$C92,$D92,$E92,$F92,2016,$I92,1,$H92,$G92*$H92,Options!$B$8)))","v":11903.001821060399},{"$f":"IF(AND(OR(Calculations!$E$2=\"Orkney Health Board\",Calculations!$E$2=\"Orkney Islands Local Authority\"),$F92=1),0,IF(AND(OR(Calculations!$E$2=\"Shetland Health Board\",Calculations!$E$2=\"Western Isles Health Board\",Calculations!$E$2=\"Shetland Islands Local Authority\",Calculations!$E$2=\"Eilean Siar Local Authority\"),OR($F92=1,$F92=5)),0,new_yllv2(VALUE(LEFT(Options!$B$24,2)),$C92,$D92,$E92,$F92,2016,$I92+$J92,1,$H92,$G92*$H92,Options!$B$8)))","v":11903.001821060399},{"$f":"IF(AND(OR(Calculations!$E$2=\"Orkney Health Board\",Calculations!$E$2=\"Orkney Islands Local Authority\"),$F92=1),0,IF(AND(OR(Calculations!$E$2=\"Shetland Health Board\",Calculations!$E$2=\"Western Isles Health Board\",Calculations!$E$2=\"Shetland Islands Local Authority\",Calculations!$E$2=\"Eilean Siar Local Authority\"),OR($F92=1,$F92=5)),0,hosp_count(VALUE(LEFT(Options!$B$24,2)),$C92,$E92,$F92,2016,$I92,1,$H92,$G92*$H92, Options!$B$8)))","v":14296.6790701768},{"$f":"IF(AND(OR(Calculations!$E$2=\"Orkney Health Board\",Calculations!$E$2=\"Orkney Islands Local Authority\"),$F92=1),0,IF(AND(OR(Calculations!$E$2=\"Shetland Health Board\",Calculations!$E$2=\"Western Isles Health Board\",Calculations!$E$2=\"Shetland Islands Local Authority\",Calculations!$E$2=\"Eilean Siar Local Authority\"),OR($F92=1,$F92=5)),0,hosp_count(VALUE(LEFT(Options!$B$24,2)),$C92,$E92,$F92,2016,$I92+$J92,1,$H92,$G92*$H92, Options!$B$8)))","v":14296.6790701768},{"$f":"IF(AND(OR(Calculations!$E$2=\"Orkney Health Board\",Calculations!$E$2=\"Orkney Islands Local Authority\"),$F92=1),0,IF(AND(OR(Calculations!$E$2=\"Shetland Health Board\",Calculations!$E$2=\"Western Isles Health Board\",Calculations!$E$2=\"Shetland Islands Local Authority\",Calculations!$E$2=\"Eilean Siar Local Authority\"),OR($F92=1,$F92=5)),0,prem_mort(VALUE(LEFT(Options!$B$24,2)),$C92,$E92,$F92,2016,$I92,1,$H92,$G92*$H92,Options!$B$8)))","v":798.85918262150005},{"$f":"IF(AND(OR(Calculations!$E$2=\"Orkney Health Board\",Calculations!$E$2=\"Orkney Islands Local Authority\"),$F92=1),0,IF(AND(OR(Calculations!$E$2=\"Shetland Health Board\",Calculations!$E$2=\"Western Isles Health Board\",Calculations!$E$2=\"Shetland Islands Local Authority\",Calculations!$E$2=\"Eilean Siar Local Authority\"),OR($F92=1,$F92=5)),0,prem_mort(VALUE(LEFT(Options!$B$24,2)),$C92,$E92,$F92,2016,$I92+$J92,1,$H92,$G92*$H92,Options!$B$8)))","v":798.85918262150005},3124.5714500000004,3124.5714500000004,46556.114605000199,46556.114605000199,55918.48504,55918.48504,3124.5714500000004,3124.5714500000004,17185142.975000001,17185142.975000001,256058630.32750109,256058630.32750109,{"$f":"W92*$AI92","v":307551667.71999997},{"$f":"X92*$AI92","v":307551667.71999997},{"$f":"Y92*$AI92","v":17185142.975000001},{"$f":"Z92*$AI92","v":17185142.975000001},5500]
[null,"Male 70-74",71.891098,84.341099999999997,"male",1,{"$f":"HLOOKUP(Calculations!$E$2,'Prevalence Rates'!$C$3:$BC$249,'Prevalence Rates'!$BD93,FALSE)","v":0},{"$f":"HLOOKUP(Calculations!$E$2,'Population 2016'!$C$3:$BC$249,'Population 2016'!BD93,FALSE)","v":18358},0,{"$f":"HLOOKUP(Results!E$4,Targeting!$C$3:$F$249,Targeting!$G93,FALSE)","v":0},{"$f":"IF(AND(OR(Calculations!$E$2=\"Orkney Health Board\",Calculations!$E$2=\"Orkney Islands Local Authority\"),$F93=1),0,IF(AND(OR(Calculations!$E$2=\"Shetland Health Board\",Calculations!$E$2=\"Western Isles Health Board\",Calculations!$E$2=\"Shetland Islands Local Authority\",Calculations!$E$2=\"Eilean Siar Local Authority\"),OR($F93=1,$F93=5)),0,new_ci(VALUE(LEFT(Options!$B$24,2)),$C93,$E93,$F93,2016,$I93,1,$H93,$G93*$H93,Options!$B$8)))","v":820.69820295659997},{"$f":"IF(AND(OR(Calculations!$E$2=\"Orkney Health Board\",Calculations!$E$2=\"Orkney Islands Local Authority\"),$F93=1),0,IF(AND(OR(Calculations!$E$2=\"Shetland Health Board\",Calculations!$E$2=\"Western Isles Health Board\",Calculations!$E$2=\"Shetland Islands Local Authority\",Calculations!$E$2=\"Eilean Siar Local Authority\"),OR($F93=1,$F93=5)),0,new_ci(VALUE(LEFT(Options!$B$24,2)),$C93,$E93,$F93,2016,$I93+$J93,1,$H93,$G93*$H93,Options!$B$8)))","v":820.69820295659997},{"$f":"IF(AND(OR(Calculations!$E$2=\"Orkney Health Board\",Calculations!$E$2=\"Orkney Islands Local Authority\"),$F93=1),0,IF(AND(OR(Calculations!$E$2=\"Shetland Health Board\",Calculations!$E$2=\"Western Isles Health Board\",Calculations!$E$2=\"Shetland Islands Local Authority\",Calculations!$E$2=\"Eilean Siar Local Authority\"),OR($F93=1,$F93=5)),0,new_yllv2(VALUE(LEFT(Options!$B$24,2)),$C93,$D93,$E93,$F93,2016,$I93,1,$H93,$G93*$H93,Options!$B$8)))","v":9396.9960652494992},{"$f":"IF(AND(OR(Calculations!$E$2=\"Orkney Health Board\",Calculations!$E$2=\"Orkney Islands Local Authority\"),$F93=1),0,IF(AND(OR(Calculations!$E$2=\"Shetland Health Board\",Calculations!$E$2=\"Western Isles Health Board\",Calculations!$E$2=\"Shetland Islands Local Authority\",Calculations!$E$2=\"Eilean Siar Local Authority\"),OR($F93=1,$F93=5)),0,new_yllv2(VALUE(LEFT(Options!$B$24,2)),$C93,$D93,$E93,$F93,2016,$I93+$J93,1,$H93,$G93*$H93,Options!$B$8)))","v":9396.9960652494992},{"$f":"IF(AND(OR(Calculations!$E$2=\"Orkney Health Board\",Calculations!$E$2=\"Orkney Islands Local Authority\"),$F93=1),0,IF(AND(OR(Calculations!$E$2=\"Shetland Health Board\",Calculations!$E$2=\"Western Isles Health Board\",Calculations!$E$2=\"Shetland Islands Local Authority\",Calculations!$E$2=\"Eilean Siar Local Authority\"),OR($F93=1,$F93=5)),0,hosp_count(VALUE(LEFT(Options!$B$24,2)),$C93,$E93,$F93,2016,$I93,1,$H93,$G93*$H93, Options!$B$8)))","v":12188.209584951601},{"$f":"IF(AND(OR(Calculations!$E$2=\"Orkney Health Board\",Calculations!$E$2=\"Orkney Islands Local Authority\"),$F93=1),0,IF(AND(OR(Calculations!$E$2=\"Shetland Health Board\",Calculations!$E$2=\"Western Isles Health Board\",Calculations!$E$2=\"Shetland Islands Local Authority\",Calculations!$E$2=\"Eilean Siar Local Authority\"),OR($F93=1,$F93=5)),0,hosp_count(VALUE(LEFT(Options!$B$24,2)),$C93,$E93,$F93,2016,$I93+$J93,1,$H93,$G93*$H93, Options!$B$8)))","v":12188.209584951601},{"$f":"IF(AND(OR(Calculations!$E$2=\"Orkney Health Board\",Calculations!$E$2=\"Orkney Islands Local Authority\"),$F93=1),0,IF(AND(OR(Calculations!$E$2=\"Shetland Health Board\",Calculations!$E$2=\"Western Isles Health Board\",Calculations!$E$2=\"Shetland Islands Local Authority\",Calculations!$E$2=\"Eilean Siar Local Authority\"),OR($F93=1,$F93=5)),0,prem_mort(VALUE(LEFT(Options!$B$24,2)),$C93,$E93,$F93,2016,$I93,1,$H93,$G93*$H93,Options!$B$8)))","v":820.69820295659997},{"$f":"IF(AND(OR(Calculations!$E$2=\"Orkney Health Board\",Calculations!$E$2=\"Orkney Islands Local Authority\"),$F93=1),0,IF(AND(OR(Calculations!$E$2=\"Shetland Health Board\",Calculations!$E$2=\"Western Isles Health Board\",Calculations!$E$2=\"Shetland Islands Local Authority\",Calculations!$E$2=\"Eilean Siar Local Authority\"),OR($F93=1,$F93=5)),0,prem_mort(VALUE(LEFT(Options!$B$24,2)),$C93,$E93,$F93,2016,$I93+$J93,1,$H93,$G93*$H93,Options!$B$8)))","v":820.69820295659997},4470.5207700000001,4470.5207700000001,51187.471757541665,51187.471757541665,66391.816019999998,66391.816019999998,4470.5207700000001,4470.5207700000001,22352603.850000001,22352603.850000001,255937358.78770831,255937358.78770831,331959080.09999996,331959080.09999996,22352603.850000001,22352603.850000001,5000]
[null,"Male 75-79",76.907700000000006,86.357700000000008,"male",1,{"$f":"HLOOKUP(Calculations!$E$2,'Prevalence Rates'!$C$3:$BC$249,'Prevalence Rates'!$BD94,FALSE)","v":0},{"$f":"HLOOKUP(Calculations!$E$2,'Population 2016'!$C$3:$BC$249,'Population 2016'!BD94,FALSE)","v":13914},0,{"$f":"HLOOKUP(Results!E$4,Targeting!$C$3:$F$249,Targeting!$G94,FALSE)","v":0},{"$f":"IF(AND(OR(Calculations!$E$2=\"Orkney Health Board\",Calculations!$E$2=\"Orkney Islands Local Authority\"),$F94=1),0,IF(AND(OR(Calculations!$E$2=\"Shetland Health Board\",Calculations!$E$2=\"Western Isles Health Board\",Calculations!$E$2=\"Shetland Islands Local Authority\",Calculations!$E$2=\"Eilean Siar Local Authority\"),OR($F94=1,$F94=5)),0,new_ci(VALUE(LEFT(Options!$B$24,2)),$C94,$E94,$F94,2016,$I94,1,$H94,$G94*$H94,Options!$B$8)))","v":899.01246442319996},{"$f":"IF(AND(OR(Calculations!$E$2=\"Orkney Health Board\",Calculations!$E$2=\"Orkney Islands Local Authority\"),$F94=1),0,IF(AND(OR(Calculations!$E$2=\"Shetland Health Board\",Calculations!$E$2=\"Western Isles Health Board\",Calculations!$E$2=\"Shetland Islands Local Authority\",Calculations!$E$2=\"Eilean Siar Local Authority\"),OR($F94=1,$F94=5)),0,new_ci(VALUE(LEFT(Options!$B$24,2)),$C94,$E94,$F94,2016,$I94+$J94,1,$H94,$G94*$H94,Options!$B$8)))","v":899.01246442319996},{"$f":"IF(AND(OR(Calculations!$E$2=\"Orkney Health Board\",Calculations!$E$2=\"Orkney Islands Local Authority\"),$F94=1),0,IF(AND(OR(Calculations!$E$2=\"Shetland Health Board\",Calculations!$E$2=\"Western Isles Health Board\",Calculations!$E$2=\"Shetland Islands Local Authority\",Calculations!$E$2=\"Eilean Siar Local Authority\"),OR($F94=1,$F94=5)),0,new_yllv2(VALUE(LEFT(Options!$B$24,2)),$C94,$D94,$E94,$F94,2016,$I94,1,$H94,$G94*$H94,Options!$B$8)))","v":7596.655324376},{"$f":"IF(AND(OR(Calculations!$E$2=\"Orkney Health Board\",Calculations!$E$2=\"Orkney Islands Local Authority\"),$F94=1),0,IF(AND(OR(Calculations!$E$2=\"Shetland Health Board\",Calculations!$E$2=\"Western Isles Health Board\",Calculations!$E$2=\"Shetland Islands Local Authority\",Calculations!$E$2=\"Eilean Siar Local Authority\"),OR($F94=1,$F94=5)),0,new_yllv2(VALUE(LEFT(Options!$B$24,2)),$C94,$D94,$E94,$F94,2016,$I94+$J94,1,$H94,$G94*$H94,Options!$B$8)))","v":7596.655324376},{"$f":"IF(AND(OR(Calculations!$E$2=\"Orkney Health Board\",Calculations!$E$2=\"Orkney Islands Local Authority\"),$F94=1),0,IF(AND(OR(Calculations!$E$2=\"Shetland Health Board\",Calculations!$E$2=\"Western Isles Health Board\",Calculations!$E$2=\"Shetland Islands Local Authority\",Calculations!$E$2=\"Eilean Siar Local Authority\"),OR($F94=1,$F94=5)),0,hosp_count(VALUE(LEFT(Options!$B$24,2)),$C94,$E94,$F94,2016,$I94,1,$H94,$G94*$H94, Options!$B$8)))","v":11038.2262665822},{"$f":"IF(AND(OR(Calculations!$E$2=\"Orkney Health Board\",Calculations!$E$2=\"Orkney Islands Local Authority\"),$F94=1),0,IF(AND(OR(Calculations!$E$2=\"Shetland Health Board\",Calculations!$E$2=\"Western Isles Health Board\",Calculations!$E$2=\"Shetland Islands Local Authority\",Calculations!$E$2=\"Eilean Siar Local Authority\"),OR($F94=1,$F94=5)),0,hosp_count(VALUE(LEFT(Options!$B$24,2)),$C94,$E94,$F94,2016,$I94+$J94,1,$H94,$G94*$H94, Options!$B$8)))","v":11038.2262665822},{"$f":"IF(AND(OR(Calculations!$E$2=\"Orkney Health Board\",Calculations!$E$2=\"Orkney Islands Local Authority\"),$F94=1),0,IF(AND(OR(Calculations!$E$2=\"Shetland Health Board\",Calculations!$E$2=\"Western Isles Health Board\",Calculations!$E$2=\"Shetland Islands Local Authority\",Calculations!$E$2=\"Eilean Siar Local Authority\"),OR($F94=1,$F94=5)),0,prem_mort(VALUE(LEFT(Options!$B$24,2)),$C94,$E94,$F94,2016,$I94,1,$H94,$G94*$H94,Options!$B$8)))","v":0},{"$f":"IF(AND(OR(Calculations!$E$2=\"Orkney Health Board\",Calculations!$E$2=\"Orkney Islands Local Authority\"),$F94=1),0,IF(AND(OR(Calculations!$E$2=\"Shetland Health Board\",Calculations!$E$2=\"Western Isles Health Board\",Calculations!$E$2=\"Shetland Islands Local Authority\",Calculations!$E$2=\"Eilean Siar Local Authority\"),OR($F94=1,$F94=5)),0,prem_mort(VALUE(LEFT(Options!$B$24,2)),$C94,$E94,$F94,2016,$I94+$J94,1,$H94,$G94*$H94,Options!$B$8)))","v":0},6461.207879999999,6461.207879999999,54597.206585999716,54597.206585999716,79331.797230000011,79331.797230000011,0,0,25844831.519999996,25844831.519999996,218388826.34399888,218388826.34399888,317327188.92000002,317327188.92000002,0,0,4000]
[null,"Male 80-84",81.797089,88.627089999999995,"male",1,{"$f":"HLOOKUP(Calculations!$E$2,'Prevalence Rates'!$C$3:$BC$249,'Prevalence Rates'!$BD95,FALSE)","v":0},{"$f":"HLOOKUP(Calculations!$E$2,'Population 2016'!$C$3:$BC$249,'Population 2016'!BD95,FALSE)","v":9236},0,{"$f":"HLOOKUP(Results!E$4,Targeting!$C$3:$F$249,Targeting!$G95,FALSE)","v":0},{"$f":"IF(AND(OR(Calculations!$E$2=\"Orkney Health Board\",Calculations!$E$2=\"Orkney Islands Local Authority\"),$F95=1),0,IF(AND(OR(Calculations!$E$2=\"Shetland Health Board\",Calculations!$E$2=\"Western Isles Health Board\",Calculations!$E$2=\"Shetland Islands Local Authority\",Calculations!$E$2=\"Eilean Siar Local Authority\"),OR($F95=1,$F95=5)),0,new_ci(VALUE(LEFT(Options!$B$24,2)),$C95,$E95,$F95,2016,$I95,1,$H95,$G95*$H95,Options!$B$8)))","v":850.59802610480006},{"$f":"IF(AND(OR(Calculations!$E$2=\"Orkney Health Board\",Calculations!$E$2=\"Orkney Islands Local Authority\"),$F95=1),0,IF(AND(OR(Calculations!$E$2=\"Shetland Health Board\",Calculations!$E$2=\"Western Isles Health Board\",Calculations!$E$2=\"Shetland Islands Local Authority\",Calculations!$E$2=\"Eilean Siar Local Authority\"),OR($F95=1,$F95=5)),0,new_ci(VALUE(LEFT(Options!$B$24,2)),$C95,$E95,$F95,2016,$I95+$J95,1,$H95,$G95*$H95,Options!$B$8)))","v":850.59802610480006},{"$f":"IF(AND(OR(Calculations!$E$2=\"Orkney Health Board\",Calculations!$E$2=\"Orkney Islands Local Authority\"),$F95=1),0,IF(AND(OR(Calculations!$E$2=\"Shetland Health Board\",Calculations!$E$2=\"Western Isles Health Board\",Calculations!$E$2=\"Shetland Islands Local Authority\",Calculations!$E$2=\"Eilean Siar Local Authority\"),OR($F95=1,$F95=5)),0,new_yllv2(VALUE(LEFT(Options!$B$24,2)),$C95,$D95,$E95,$F95,2016,$I95,1,$H95,$G95*$H95,Options!$B$8)))","v":4958.9873427889997},{"$f":"IF(AND(OR(Calculations!$E$2=\"Orkney Health Board\",Calculations!$E$2=\"Orkney Islands Local Authority\"),$F95=1),0,IF(AND(OR(Calculations!$E$2=\"Shetland Health Board\",Calculations!$E$2=\"Western Isles Health Board\",Calculations!$E$2=\"Shetland Islands Local Authority\",Calculations!$E$2=\"Eilean Siar Local Authority\"),OR($F95=1,$F95=5)),0,new_yllv2(VALUE(LEFT(Options!$B$24,2)),$C95,$D95,$E95,$F95,2016,$I95+$J95,1,$H95,$G95*$H95,Options!$B$8)))","v":4958.9873427889997},{"$f":"IF(AND(OR(Calculations!$E$2=\"Orkney Health Board\",Calculations!$E$2=\"Orkney Islands Local Authority\"),$F95=1),0,IF(AND(OR(Calculations!$E$2=\"Shetland Health Board\",Calculations!$E$2=\"Western Isles Health Board\",Calculations!$E$2=\"Shetland Islands Local Authority\",Calculations!$E$2=\"Eilean Siar Local Authority\"),OR($F95=1,$F95=5)),0,hosp_count(VALUE(LEFT(Options!$B$24,2)),$C95,$E95,$F95,2016,$I95,1,$H95,$G95*$H95, Options!$B$8)))","v":8715.7131399083992},{"$f":"IF(AND(OR(Calculations!$E$2=\"Orkney Health Board\",Calculations!$E$2=\"Orkney Islands Local Authority\"),$F95=1),0,IF(AND(OR(Calculations!$E$2=\"Shetland Health Board\",Calculations!$E$2=\"Western Isles Health Board\",Calculations!$E$2=\"Shetland Islands Local Authority\",Calculations!$E$2=\"Eilean Siar Local Authority\"),OR($F95=1,$F95=5)),0,hosp_count(VALUE(LEFT(Options!$B$24,2)),$C95,$E95,$F95,2016,$I95+$J95,1,$H95,$G95*$H95, Options!$B$8)))","v":8715.7131399083992},{"$f":"IF(AND(OR(Calculations!$E$2=\"Orkney Health Board\",Calculations!$E$2=\"Orkney Islands Local Authority\"),$F95=1),0,IF(AND(OR(Calculations!$E$2=\"Shetland Health Board\",Calculations!$E$2=\"Western Isles Health Board\",Calculations!$E$2=\"Shetland Islands Local Authority\",Calculations!$E$2=\"Eilean Siar Local Authority\"),OR($F95=1,$F95=5)),0,prem_mort(VALUE(LEFT(Options!$B$24,2)),$C95,$E95,$F95,2016,$I95,1,$H95,$G95*$H95,Options!$B$8)))","v":0},{"$f":"IF(AND(OR(Calculations!$E$2=\"Orkney Health Board\",Calculations!$E$2=\"Orkney Islands Local Authority\"),$F95=1),0,IF(AND(OR(Calculations!$E$2=\"Shetland Health Board\",Calculations!$E$2=\"Western Isles Health Board\",Calculations!$E$2=\"Shetland Islands Local Authority\",Calculations!$E$2=\"Eilean Siar Local Authority\"),OR($F95=1,$F95=5)),0,prem_mort(VALUE(LEFT(Options!$B$24,2)),$C95,$E95,$F95,2016,$I95+$J95,1,$H95,$G95*$H95,Options!$B$8)))","v":0},9209.5931800000017,9209.5931800000017,53691.937448993071,53691.937448993071,94366.751189999995,94366.751189999995,0,0,23023982.950000003,23023982.950000003,134229843.62248269,134229843.62248269,235916877.97499999,235916877.97499999,0,0,2500]
[null,"Male 85-89",86.630752999999999,91.420750000000012,"male",1,{"$f":"HLOOKUP(Calculations!$E$2,'Prevalence Rates'!$C$3:$BC$249,'Prevalence Rates'!$BD96,FALSE)","v":0},{"$f":"HLOOKUP(Calculations!$E$2,'Population 2016'!$C$3:$BC$249,'Population 2016'!BD96,FALSE)","v":4449},0,{"$f":"HLOOKUP(Results!E$4,Targeting!$C$3:$F$249,Targeting!$G96,FALSE)","v":0},{"$f":"IF(AND(OR(Calculations!$E$2=\"Orkney Health Board\",Calculations!$E$2=\"Orkney Islands Local Authority\"),$F96=1),0,IF(AND(OR(Calculations!$E$2=\"Shetland Health Board\",Calculations!$E$2=\"Western Isles Health Board\",Calculations!$E$2=\"Shetland Islands Local Authority\",Calculations!$E$2=\"Eilean Siar Local Authority\"),OR($F96=1,$F96=5)),0,new_ci(VALUE(LEFT(Options!$B$24,2)),$C96,$E96,$F96,2016,$I96,1,$H96,$G96*$H96,Options!$B$8)))","v":578.00526786570003},{"$f":"IF(AND(OR(Calculations!$E$2=\"Orkney Health Board\",Calculations!$E$2=\"Orkney Islands Local Authority\"),$F96=1),0,IF(AND(OR(Calculations!$E$2=\"Shetland Health Board\",Calculations!$E$2=\"Western Isles Health Board\",Calculations!$E$2=\"Shetland Islands Local Authority\",Calculations!$E$2=\"Eilean Siar Local Authority\"),OR($F96=1,$F96=5)),0,new_ci(VALUE(LEFT(Options!$B$24,2)),$C96,$E96,$F96,2016,$I96+$J96,1,$H96,$G96*$H96,Options!$B$8)))","v":578.00526786570003},{"$f":"IF(AND(OR(Calculations!$E$2=\"Orkney Health Board\",Calculations!$E$2=\"Orkney Islands Local Authority\"),$F96=1),0,IF(AND(OR(Calculations!$E$2=\"Shetland Health Board\",Calculations!$E$2=\"Western Isles Health Board\",Calculations!$E$2=\"Shetland Islands Local Authority\",Calculations!$E$2=\"Eilean Siar Local Authority\"),OR($F96=1,$F96=5)),0,new_yllv2(VALUE(LEFT(Options!$B$24,2)),$C96,$D96,$E96,$F96,2016,$I96,1,$H96,$G96*$H96,Options!$B$8)))","v":2190.6382311952002},{"$f":"IF(AND(OR(Calculations!$E$2=\"Orkney Health Board\",Calculations!$E$2=\"Orkney Islands Local Authority\"),$F96=1),0,IF(AND(OR(Calculations!$E$2=\"Shetland Health Board\",Calculations!$E$2=\"Western Isles Health Board\",Calculations!$E$2=\"Shetland Islands Local Authority\",Calculations!$E$2=\"Eilean Siar Local Authority\"),OR($F96=1,$F96=5)),0,new_yllv2(VALUE(LEFT(Options!$B$24,2)),$C96,$D96,$E96,$F96,2016,$I96+$J96,1,$H96,$G96*$H96,Options!$B$8)))","v":2190.6382311952002},{"$f":"IF(AND(OR(Calculations!$E$2=\"Orkney Health Board\",Calculations!$E$2=\"Orkney Islands Local Authority\"),$F96=1),0,IF(AND(OR(Calculations!$E$2=\"Shetland Health Board\",Calculations!$E$2=\"Western Isles Health Board\",Calculations!$E$2=\"Shetland Islands Local Authority\",Calculations!$E$2=\"Eilean Siar Local Authority\"),OR($F96=1,$F96=5)),0,hosp_count(VALUE(LEFT(Options!$B$24,2)),$C96,$E96,$F96,2016,$I96,1,$H96,$G96*$H96, Options!$B$8)))","v":4984.1843667180001},{"$f":"IF(AND(OR(Calculations!$E$2=\"Orkney Health Board\",Calculations!$E$2=\"Orkney Islands Local Authority\"),$F96=1),0,IF(AND(OR(Calculations!$E$2=\"Shetland Health Board\",Calculations!$E$2=\"Western Isles Health Board\",Calculations!$E$2=\"Shetland Islands Local Authority\",Calculations!$E$2=\"Eilean Siar Local Authority\"),OR($F96=1,$F96=5)),0,hosp_count(VALUE(LEFT(Options!$B$24,2)),$C96,$E96,$F96,2016,$I96+$J96,1,$H96,$G96*$H96, Options!$B$8)))","v":4984.1843667180001},{"$f":"IF(AND(OR(Calculations!$E$2=\"Orkney Health Board\",Calculations!$E$2=\"Orkney Islands Local Authority\"),$F96=1),0,IF(AND(OR(Calculations!$E$2=\"Shetland Health Board\",Calculations!$E$2=\"Western Isles Health Board\",Calculations!$E$2=\"Shetland Islands Local Authority\",Calculations!$E$2=\"Eilean Siar Local Authority\"),OR($F96=1,$F96=5)),0,prem_mort(VALUE(LEFT(Options!$B$24,2)),$C96,$E96,$F96,2016,$I96,1,$H96,$G96*$H96,Options!$B$8)))","v":0},{"$f":"IF(AND(OR(Calculations!$E$2=\"Orkney Health Board\",Calculations!$E$2=\"Orkney Islands Local Authority\"),$F96=1),0,IF(AND(OR(Calculations!$E$2=\"Shetland Health Board\",Calculations!$E$2=\"Western Isles Health Board\",Calculations!$E$2=\"Shetland Islands Local Authority\",Calculations!$E$2=\"Eilean Siar Local Authority\"),OR($F96=1,$F96=5)),0,prem_mort(VALUE(LEFT(Options!$B$24,2)),$C96,$E96,$F96,2016,$I96+$J96,1,$H96,$G96*$H96,Options!$B$8)))","v":0},12991.801930000001,12991.801930000001,49238.890339294223,49238.890339294223,112029.31820000001,112029.31820000001,0,0,19487702.895000003,19487702.895000003,73858335.508941337,73858335.508941337,168043977.30000001,168043977.30000001,0,0,1500]
[null,"Male 90+",92.215477000000007,95.515479999999997,"male",1,{"$f":"HLOOKUP(Calculations!$E$2,'Prevalence Rates'!$C$3:$BC$249,'Prevalence Rates'!$BD97,FALSE)","v":0},{"$f":"HLOOKUP(Calculations!$E$2,'Population 2016'!$C$3:$BC$249,'Population 2016'!BD97,FALSE)","v":1916},0,{"$f":"HLOOKUP(Results!E$4,Targeting!$C$3:$F$249,Targeting!$G97,FALSE)","v":0},{"$f":"IF(AND(OR(Calculations!$E$2=\"Orkney Health Board\",Calculations!$E$2=\"Orkney Islands Local Authority\"),$F97=1),0,IF(AND(OR(Calculations!$E$2=\"Shetland Health Board\",Calculations!$E$2=\"Western Isles Health Board\",Calculations!$E$2=\"Shetland Islands Local Authority\",Calculations!$E$2=\"Eilean Siar Local Authority\"),OR($F97=1,$F97=5)),0,new_ci(VALUE(LEFT(Options!$B$24,2)),$C97,$E97,$F97,2016,$I97,1,$H97,$G97*$H97,Options!$B$8)))","v":366.26302137279998},{"$f":"IF(AND(OR(Calculations!$E$2=\"Orkney Health Board\",Calculations!$E$2=\"Orkney Islands Local Authority\"),$F97=1),0,IF(AND(OR(Calculations!$E$2=\"Shetland Health Board\",Calculations!$E$2=\"Western Isles Health Board\",Calculations!$E$2=\"Shetland Islands Local Authority\",Calculations!$E$2=\"Eilean Siar Local Authority\"),OR($F97=1,$F97=5)),0,new_ci(VALUE(LEFT(Options!$B$24,2)),$C97,$E97,$F97,2016,$I97+$J97,1,$H97,$G97*$H97,Options!$B$8)))","v":366.26302137279998},{"$f":"IF(AND(OR(Calculations!$E$2=\"Orkney Health Board\",Calculations!$E$2=\"Orkney Islands Local Authority\"),$F97=1),0,IF(AND(OR(Calculations!$E$2=\"Shetland Health Board\",Calculations!$E$2=\"Western Isles Health Board\",Calculations!$E$2=\"Shetland Islands Local Authority\",Calculations!$E$2=\"Eilean Siar Local Authority\"),OR($F97=1,$F97=5)),0,new_yllv2(VALUE(LEFT(Options!$B$24,2)),$C97,$D97,$E97,$F97,2016,$I97,1,$H97,$G97*$H97,Options!$B$8)))","v":842.40604794650005},{"$f":"IF(AND(OR(Calculations!$E$2=\"Orkney Health Board\",Calculations!$E$2=\"Orkney Islands Local Authority\"),$F97=1),0,IF(AND(OR(Calculations!$E$2=\"Shetland Health Board\",Calculations!$E$2=\"Western Isles Health Board\",Calculations!$E$2=\"Shetland Islands Local Authority\",Calculations!$E$2=\"Eilean Siar Local Authority\"),OR($F97=1,$F97=5)),0,new_yllv2(VALUE(LEFT(Options!$B$24,2)),$C97,$D97,$E97,$F97,2016,$I97+$J97,1,$H97,$G97*$H97,Options!$B$8)))","v":842.40604794650005},{"$f":"IF(AND(OR(Calculations!$E$2=\"Orkney Health Board\",Calculations!$E$2=\"Orkney Islands Local Authority\"),$F97=1),0,IF(AND(OR(Calculations!$E$2=\"Shetland Health Board\",Calculations!$E$2=\"Western Isles Health Board\",Calculations!$E$2=\"Shetland Islands Local Authority\",Calculations!$E$2=\"Eilean Siar Local Authority\"),OR($F97=1,$F97=5)),0,hosp_count(VALUE(LEFT(Options!$B$24,2)),$C97,$E97,$F97,2016,$I97,1,$H97,$G97*$H97, Options!$B$8)))","v":2617.0845289212002},{"$f":"IF(AND(OR(Calculations!$E$2=\"Orkney Health Board\",Calculations!$E$2=\"Orkney Islands Local Authority\"),$F97=1),0,IF(AND(OR(Calculations!$E$2=\"Shetland Health Board\",Calculations!$E$2=\"Western Isles Health Board\",Calculations!$E$2=\"Shetland Islands Local Authority\",Calculations!$E$2=\"Eilean Siar Local Authority\"),OR($F97=1,$F97=5)),0,hosp_count(VALUE(LEFT(Options!$B$24,2)),$C97,$E97,$F97,2016,$I97+$J97,1,$H97,$G97*$H97, Options!$B$8)))","v":2617.0845289212002},{"$f":"IF(AND(OR(Calculations!$E$2=\"Orkney Health Board\",Calculations!$E$2=\"Orkney Islands Local Authority\"),$F97=1),0,IF(AND(OR(Calculations!$E$2=\"Shetland Health Board\",Calculations!$E$2=\"Western Isles Health Board\",Calculations!$E$2=\"Shetland Islands Local Authority\",Calculations!$E$2=\"Eilean Siar Local Authority\"),OR($F97=1,$F97=5)),0,prem_mort(VALUE(LEFT(Options!$B$24,2)),$C97,$E97,$F97,2016,$I97,1,$H97,$G97*$H97,Options!$B$8)))","v":0},{"$f":"IF(AND(OR(Calculations!$E$2=\"Orkney Health Board\",Calculations!$E$2=\"Orkney Islands Local Authority\"),$F97=1),0,IF(AND(OR(Calculations!$E$2=\"Shetland Health Board\",Calculations!$E$2=\"Western Isles Health Board\",Calculations!$E$2=\"Shetland Islands Local Authority\",Calculations!$E$2=\"Eilean Siar Local Authority\"),OR($F97=1,$F97=5)),0,prem_mort(VALUE(LEFT(Options!$B$24,2)),$C97,$E97,$F97,2016,$I97+$J97,1,$H97,$G97*$H97,Options!$B$8)))","v":0},19116.024079999996,19116.024079999996,43966.912732072029,43966.912732072029,136591.05057000002,136591.05057000002,0,0,19116024.079999994,19116024.079999994,43966912.732072026,43966912.732072026,136591050.57000002,136591050.57000002,0,0,1000]
[null,"Female 0-4",2.0384007,81.468401,"female",2,{"$f":"HLOOKUP(Calculations!$E$2,'Prevalence Rates'!$C$3:$BC$249,'Prevalence Rates'!$BD98,FALSE)","v":0},{"$f":"HLOOKUP(Calculations!$E$2,'Population 2016'!$C$3:$BC$249,'Population 2016'!BD98,FALSE)","v":0},0,{"$f":"HLOOKUP(Results!E$4,Targeting!$C$3:$F$249,Targeting!$G98,FALSE)","v":0},{"$f":"IF(AND(OR(Calculations!$E$2=\"Orkney Health Board\",Calculations!$E$2=\"Orkney Islands Local Authority\"),$F98=1),0,IF(AND(OR(Calculations!$E$2=\"Shetland Health Board\",Calculations!$E$2=\"Western Isles Health Board\",Calculations!$E$2=\"Shetland Islands Local Authority\",Calculations!$E$2=\"Eilean Siar Local Authority\"),OR($F98=1,$F98=5)),0,new_ci(VALUE(LEFT(Options!$B$24,2)),$C98,$E98,$F98,2016,$I98,1,$H98,$G98*$H98,Options!$B$8)))","v":{"$error":"#VALUE!"}},{"$f":"IF(AND(OR(Calculations!$E$2=\"Orkney Health Board\",Calculations!$E$2=\"Orkney Islands Local Authority\"),$F98=1),0,IF(AND(OR(Calculations!$E$2=\"Shetland Health Board\",Calculations!$E$2=\"Western Isles Health Board\",Calculations!$E$2=\"Shetland Islands Local Authority\",Calculations!$E$2=\"Eilean Siar Local Authority\"),OR($F98=1,$F98=5)),0,new_ci(VALUE(LEFT(Options!$B$24,2)),$C98,$E98,$F98,2016,$I98+$J98,1,$H98,$G98*$H98,Options!$B$8)))","v":{"$error":"#VALUE!"}},{"$f":"IF(AND(OR(Calculations!$E$2=\"Orkney Health Board\",Calculations!$E$2=\"Orkney Islands Local Authority\"),$F98=1),0,IF(AND(OR(Calculations!$E$2=\"Shetland Health Board\",Calculations!$E$2=\"Western Isles Health Board\",Calculations!$E$2=\"Shetland Islands Local Authority\",Calculations!$E$2=\"Eilean Siar Local Authority\"),OR($F98=1,$F98=5)),0,new_yllv2(VALUE(LEFT(Options!$B$24,2)),$C98,$D98,$E98,$F98,2016,$I98,1,$H98,$G98*$H98,Options!$B$8)))","v":{"$error":"#VALUE!"}},{"$f":"IF(AND(OR(Calculations!$E$2=\"Orkney Health Board\",Calculations!$E$2=\"Orkney Islands Local Authority\"),$F98=1),0,IF(AND(OR(Calculations!$E$2=\"Shetland Health Board\",Calculations!$E$2=\"Western Isles Health Board\",Calculations!$E$2=\"Shetland Islands Local Authority\",Calculations!$E$2=\"Eilean Siar Local Authority\"),OR($F98=1,$F98=5)),0,new_yllv2(VALUE(LEFT(Options!$B$24,2)),$C98,$D98,$E98,$F98,2016,$I98+$J98,1,$H98,$G98*$H98,Options!$B$8)))","v":{"$error":"#VALUE!"}},{"$f":"IF(AND(OR(Calculations!$E$2=\"Orkney Health Board\",Calculations!$E$2=\"Orkney Islands Local Authority\"),$F98=1),0,IF(AND(OR(Calculations!$E$2=\"Shetland Health Board\",Calculations!$E$2=\"Western Isles Health Board\",Calculations!$E$2=\"Shetland Islands Local Authority\",Calculations!$E$2=\"Eilean Siar Local Authority\"),OR($F98=1,$F98=5)),0,hosp_count(VALUE(LEFT(Options!$B$24,2)),$C98,$E98,$F98,2016,$I98,1,$H98,$G98*$H98, Options!$B$8)))","v":{"$error":"#VALUE!"}},{"$f":"IF(AND(OR(Calculations!$E$2=\"Orkney Health Board\",Calculations!$E$2=\"Orkney Islands Local Authority\"),$F98=1),0,IF(AND(OR(Calculations!$E$2=\"Shetland Health Board\",Calculations!$E$2=\"Western Isles Health Board\",Calculations!$E$2=\"Shetland Islands Local Authority\",Calculations!$E$2=\"Eilean Siar Local Authority\"),OR($F98=1,$F98=5)),0,hosp_count(VALUE(LEFT(Options!$B$24,2)),$C98,$E98,$F98,2016,$I98+$J98,1,$H98,$G98*$H98, Options!$B$8)))","v":{"$error":"#VALUE!"}},{"$f":"IF(AND(OR(Calculations!$E$2=\"Orkney Health Board\",Calculations!$E$2=\"Orkney Islands Local Authority\"),$F98=1),0,IF(AND(OR(Calculations!$E$2=\"Shetland Health Board\",Calculations!$E$2=\"Western Isles Health Board\",Calculations!$E$2=\"Shetland Islands Local Authority\",Calculations!$E$2=\"Eilean Siar Local Authority\"),OR($F98=1,$F98=5)),0,prem_mort(VALUE(LEFT(Options!$B$24,2)),$C98,$E98,$F98,2016,$I98,1,$H98,$G98*$H98,Options!$B$8)))","v":{"$error":"#VALUE!"}},{"$f":"IF(AND(OR(Calculations!$E$2=\"Orkney Health Board\",Calculations!$E$2=\"Orkney Islands Local Authority\"),$F98=1),0,IF(AND(OR(Calculations!$E$2=\"Shetland Health Board\",Calculations!$E$2=\"Western Isles Health Board\",Calculations!$E$2=\"Shetland Islands Local Authority\",Calculations!$E$2=\"Eilean Siar Local Authority\"),OR($F98=1,$F98=5)),0,prem_mort(VALUE(LEFT(Options!$B$24,2)),$C98,$E98,$F98,2016,$I98+$J98,1,$H98,$G98*$H98,Options!$B$8)))","v":{"$error":"#VALUE!"}},{"$error":"#VALUE!"},{"$error":"#VALUE!"},{"$error":"#VALUE!"},{"$error":"#VALUE!"},{"$error":"#VALUE!"},{"$error":"#VALUE!"},{"$error":"#VALUE!"},{"$error":"#VALUE!"},{"$error":"#VALUE!"},{"$error":"#VALUE!"},{"$error":"#VALUE!"},{"$error":"#VALUE!"},{"$error":"#VALUE!"},{"$error":"#VALUE!"},{"$error":"#VALUE!"},{"$error":"#VALUE!"},5000]
[null,"Female 5-9",6.9792794999999996,81.439279999999997,"female",2,{"$f":"HLOOKUP(Calculations!$E$2,'Prevalence Rates'!$C$3:$BC$249,'Prevalence Rates'!$BD99,FALSE)","v":0},{"$f":"HLOOKUP(Calculations!$E$2,'Population 2016'!$C$3:$BC$249,'Population 2016'!BD99,FALSE)","v":0},0,{"$f":"HLOOKUP(Results!E$4,Targeting!$C$3:$F$249,Targeting!$G99,FALSE)","v":0},{"$f":"IF(AND(OR(Calculations!$E$2=\"Orkney Health Board\",Calculations!$E$2=\"Orkney Islands Local Authority\"),$F99=1),0,IF(AND(OR(Calculations!$E$2=\"Shetland Health Board\",Calculations!$E$2=\"Western Isles Health Board\",Calculations!$E$2=\"Shetland Islands Local Authority\",Calculations!$E$2=\"Eilean Siar Local Authority\"),OR($F99=1,$F99=5)),0,new_ci(VALUE(LEFT(Options!$B$24,2)),$C99,$E99,$F99,2016,$I99,1,$H99,$G99*$H99,Options!$B$8)))","v":{"$error":"#VALUE!"}},{"$f":"IF(AND(OR(Calculations!$E$2=\"Orkney Health Board\",Calculations!$E$2=\"Orkney Islands Local Authority\"),$F99=1),0,IF(AND(OR(Calculations!$E$2=\"Shetland Health Board\",Calculations!$E$2=\"Western Isles Health Board\",Calculations!$E$2=\"Shetland Islands Local Authority\",Calculations!$E$2=\"Eilean Siar Local Authority\"),OR($F99=1,$F99=5)),0,new_ci(VALUE(LEFT(Options!$B$24,2)),$C99,$E99,$F99,2016,$I99+$J99,1,$H99,$G99*$H99,Options!$B$8)))","v":{"$error":"#VALUE!"}},{"$f":"IF(AND(OR(Calculations!$E$2=\"Orkney Health Board\",Calculations!$E$2=\"Orkney Islands Local Authority\"),$F99=1),0,IF(AND(OR(Calculations!$E$2=\"Shetland Health Board\",Calculations!$E$2=\"Western Isles Health Board\",Calculations!$E$2=\"Shetland Islands Local Authority\",Calculations!$E$2=\"Eilean Siar Local Authority\"),OR($F99=1,$F99=5)),0,new_yllv2(VALUE(LEFT(Options!$B$24,2)),$C99,$D99,$E99,$F99,2016,$I99,1,$H99,$G99*$H99,Options!$B$8)))","v":{"$error":"#VALUE!"}},{"$f":"IF(AND(OR(Calculations!$E$2=\"Orkney Health Board\",Calculations!$E$2=\"Orkney Islands Local Authority\"),$F99=1),0,IF(AND(OR(Calculations!$E$2=\"Shetland Health Board\",Calculations!$E$2=\"Western Isles Health Board\",Calculations!$E$2=\"Shetland Islands Local Authority\",Calculations!$E$2=\"Eilean Siar Local Authority\"),OR($F99=1,$F99=5)),0,new_yllv2(VALUE(LEFT(Options!$B$24,2)),$C99,$D99,$E99,$F99,2016,$I99+$J99,1,$H99,$G99*$H99,Options!$B$8)))","v":{"$error":"#VALUE!"}},{"$f":"IF(AND(OR(Calculations!$E$2=\"Orkney Health Board\",Calculations!$E$2=\"Orkney Islands Local Authority\"),$F99=1),0,IF(AND(OR(Calculations!$E$2=\"Shetland Health Board\",Calculations!$E$2=\"Western Isles Health Board\",Calculations!$E$2=\"Shetland Islands Local Authority\",Calculations!$E$2=\"Eilean Siar Local Authority\"),OR($F99=1,$F99=5)),0,hosp_count(VALUE(LEFT(Options!$B$24,2)),$C99,$E99,$F99,2016,$I99,1,$H99,$G99*$H99, Options!$B$8)))","v":{"$error":"#VALUE!"}},{"$f":"IF(AND(OR(Calculations!$E$2=\"Orkney Health Board\",Calculations!$E$2=\"Orkney Islands Local Authority\"),$F99=1),0,IF(AND(OR(Calculations!$E$2=\"Shetland Health Board\",Calculations!$E$2=\"Western Isles Health Board\",Calculations!$E$2=\"Shetland Islands Local Authority\",Calculations!$E$2=\"Eilean Siar Local Authority\"),OR($F99=1,$F99=5)),0,hosp_count(VALUE(LEFT(Options!$B$24,2)),$C99,$E99,$F99,2016,$I99+$J99,1,$H99,$G99*$H99, Options!$B$8)))","v":{"$error":"#VALUE!"}},{"$f":"IF(AND(OR(Calculations!$E$2=\"Orkney Health Board\",Calculations!$E$2=\"Orkney Islands Local Authority\"),$F99=1),0,IF(AND(OR(Calculations!$E$2=\"Shetland Health Board\",Calculations!$E$2=\"Western Isles Health Board\",Calculations!$E$2=\"Shetland Islands Local Authority\",Calculations!$E$2=\"Eilean Siar Local Authority\"),OR($F99=1,$F99=5)),0,prem_mort(VALUE(LEFT(Options!$B$24,2)),$C99,$E99,$F99,2016,$I99,1,$H99,$G99*$H99,Options!$B$8)))","v":{"$error":"#VALUE!"}},{"$f":"IF(AND(OR(Calculations!$E$2=\"Orkney Health Board\",Calculations!$E$2=\"Orkney Islands Local Authority\"),$F99=1),0,IF(AND(OR(Calculations!$E$2=\"Shetland Health Board\",Calculations!$E$2=\"Western Isles Health Board\",Calculations!$E$2=\"Shetland Islands Local Authority\",Calculations!$E$2=\"Eilean Siar Local Authority\"),OR($F99=1,$F99=5)),0,prem_mort(VALUE(LEFT(Options!$B$24,2)),$C99,$E99,$F99,2016,$I99+$J99,1,$H99,$G99*$H99,Options!$B$8)))","v":{"$error":"#VALUE!"}},{"$error":"#VALUE!"},{"$error":"#VALUE!"},{"$error":"#VALUE!"},{"$error":"#VALUE!"},{"$error":"#VALUE!"},{"$error":"#VALUE!"},{"$error":"#VALUE!"},{"$error":"#VALUE!"},{"$error":"#VALUE!"},{"$error":"#VALUE!"},{"$error":"#VALUE!"},{"$error":"#VALUE!"},{"$error":"#VALUE!"},{"$error":"#VALUE!"},{"$error":"#VALUE!"},{"$error":"#VALUE!"},5500]
[null,"Female 10-15",12.478312000000001,81.948309999999992,"female",2,{"$f":"HLOOKUP(Calculations!$E$2,'Prevalence Rates'!$C$3:$BC$249,'Prevalence Rates'!$BD100,FALSE)","v":0},{"$f":"HLOOKUP(Calculations!$E$2,'Population 2016'!$C$3:$BC$249,'Population 2016'!BD100,FALSE)","v":0},0,{"$f":"HLOOKUP(Results!E$4,Targeting!$C$3:$F$249,Targeting!$G100,FALSE)","v":0},{"$f":"IF(AND(OR(Calculations!$E$2=\"Orkney Health Board\",Calculations!$E$2=\"Orkney Islands Local Authority\"),$F100=1),0,IF(AND(OR(Calculations!$E$2=\"Shetland Health Board\",Calculations!$E$2=\"Western Isles Health Board\",Calculations!$E$2=\"Shetland Islands Local Authority\",Calculations!$E$2=\"Eilean Siar Local Authority\"),OR($F100=1,$F100=5)),0,new_ci(VALUE(LEFT(Options!$B$24,2)),$C100,$E100,$F100,2016,$I100,1,$H100,$G100*$H100,Options!$B$8)))","v":{"$error":"#VALUE!"}},{"$f":"IF(AND(OR(Calculations!$E$2=\"Orkney Health Board\",Calculations!$E$2=\"Orkney Islands Local Authority\"),$F100=1),0,IF(AND(OR(Calculations!$E$2=\"Shetland Health Board\",Calculations!$E$2=\"Western Isles Health Board\",Calculations!$E$2=\"Shetland Islands Local Authority\",Calculations!$E$2=\"Eilean Siar Local Authority\"),OR($F100=1,$F100=5)),0,new_ci(VALUE(LEFT(Options!$B$24,2)),$C100,$E100,$F100,2016,$I100+$J100,1,$H100,$G100*$H100,Options!$B$8)))","v":{"$error":"#VALUE!"}},{"$f":"IF(AND(OR(Calculations!$E$2=\"Orkney Health Board\",Calculations!$E$2=\"Orkney Islands Local Authority\"),$F100=1),0,IF(AND(OR(Calculations!$E$2=\"Shetland Health Board\",Calculations!$E$2=\"Western Isles Health Board\",Calculations!$E$2=\"Shetland Islands Local Authority\",Calculations!$E$2=\"Eilean Siar Local Authority\"),OR($F100=1,$F100=5)),0,new_yllv2(VALUE(LEFT(Options!$B$24,2)),$C100,$D100,$E100,$F100,2016,$I100,1,$H100,$G100*$H100,Options!$B$8)))","v":{"$error":"#VALUE!"}},{"$f":"IF(AND(OR(Calculations!$E$2=\"Orkney Health Board\",Calculations!$E$2=\"Orkney Islands Local Authority\"),$F100=1),0,IF(AND(OR(Calculations!$E$2=\"Shetland Health Board\",Calculations!$E$2=\"Western Isles Health Board\",Calculations!$E$2=\"Shetland Islands Local Authority\",Calculations!$E$2=\"Eilean Siar Local Authority\"),OR($F100=1,$F100=5)),0,new_yllv2(VALUE(LEFT(Options!$B$24,2)),$C100,$D100,$E100,$F100,2016,$I100+$J100,1,$H100,$G100*$H100,Options!$B$8)))","v":{"$error":"#VALUE!"}},{"$f":"IF(AND(OR(Calculations!$E$2=\"Orkney Health Board\",Calculations!$E$2=\"Orkney Islands Local Authority\"),$F100=1),0,IF(AND(OR(Calculations!$E$2=\"Shetland Health Board\",Calculations!$E$2=\"Western Isles Health Board\",Calculations!$E$2=\"Shetland Islands Local Authority\",Calculations!$E$2=\"Eilean Siar Local Authority\"),OR($F100=1,$F100=5)),0,hosp_count(VALUE(LEFT(Options!$B$24,2)),$C100,$E100,$F100,2016,$I100,1,$H100,$G100*$H100, Options!$B$8)))","v":{"$error":"#VALUE!"}},{"$f":"IF(AND(OR(Calculations!$E$2=\"Orkney Health Board\",Calculations!$E$2=\"Orkney Islands Local Authority\"),$F100=1),0,IF(AND(OR(Calculations!$E$2=\"Shetland Health Board\",Calculations!$E$2=\"Western Isles Health Board\",Calculations!$E$2=\"Shetland Islands Local Authority\",Calculations!$E$2=\"Eilean Siar Local Authority\"),OR($F100=1,$F100=5)),0,hosp_count(VALUE(LEFT(Options!$B$24,2)),$C100,$E100,$F100,2016,$I100+$J100,1,$H100,$G100*$H100, Options!$B$8)))","v":{"$error":"#VALUE!"}},{"$f":"IF(AND(OR(Calculations!$E$2=\"Orkney Health Board\",Calculations!$E$2=\"Orkney Islands Local Authority\"),$F100=1),0,IF(AND(OR(Calculations!$E$2=\"Shetland Health Board\",Calculations!$E$2=\"Western Isles Health Board\",Calculations!$E$2=\"Shetland Islands Local Authority\",Calculations!$E$2=\"Eilean Siar Local Authority\"),OR($F100=1,$F100=5)),0,prem_mort(VALUE(LEFT(Options!$B$24,2)),$C100,$E100,$F100,2016,$I100,1,$H100,$G100*$H100,Options!$B$8)))","v":{"$error":"#VALUE!"}},{"$f":"IF(AND(OR(Calculations!$E$2=\"Orkney Health Board\",Calculations!$E$2=\"Orkney Islands Local Authority\"),$F100=1),0,IF(AND(OR(Calculations!$E$2=\"Shetland Health Board\",Calculations!$E$2=\"Western Isles Health Board\",Calculations!$E$2=\"Shetland Islands Local Authority\",Calculations!$E$2=\"Eilean Siar Local Authority\"),OR($F100=1,$F100=5)),0,prem_mort(VALUE(LEFT(Options!$B$24,2)),$C100,$E100,$F100,2016,$I100+$J100,1,$H100,$G100*$H100,Options!$B$8)))","v":{"$error":"#VALUE!"}},{"$error":"#VALUE!"},{"$error":"#VALUE!"},{"$error":"#VALUE!"},{"$error":"#VALUE!"},{"$error":"#VALUE!"},{"$error":"#VALUE!"},{"$error":"#VALUE!"},{"$error":"#VALUE!"},{"$error":"#VALUE!"},{"$error":"#VALUE!"},{"$error":"#VALUE!"},{"$error":"#VALUE!"},{"$error":"#VALUE!"},{"$error":"#VALUE!"},{"$error":"#VALUE!"},{"$error":"#VALUE!"},6600]
["SIMD Q2","Female 16-19",17.570053000000001,81.100049999999996,"female",2,{"$f":"HLOOKUP(Calculations!$E$2,'Prevalence Rates'!$C$3:$BC$249,'Prevalence Rates'!$BD101,FALSE)","v":0.15439856373429084},{"$f":"HLOOKUP(Calculations!$E$2,'Population 2016'!$C$3:$BC$249,'Population 2016'!BD101,FALSE)","v":23121},0,{"$f":"HLOOKUP(Results!E$4,Targeting!$C$3:$F$249,Targeting!$G101,FALSE)","v":1570},{"$f":"IF(AND(OR(Calculations!$E$2=\"Orkney Health Board\",Calculations!$E$2=\"Orkney Islands Local Authority\"),$F101=1),0,IF(AND(OR(Calculations!$E$2=\"Shetland Health Board\",Calculations!$E$2=\"Western Isles Health Board\",Calculations!$E$2=\"Shetland Islands Local Authority\",Calculations!$E$2=\"Eilean Siar Local Authority\"),OR($F101=1,$F101=5)),0,new_ci(VALUE(LEFT(Options!$B$24,2)),$C101,$E101,$F101,2016,$I101,1,$H101,$G101*$H101,Options!$B$8)))","v":5.1474687976000002},{"$f":"IF(AND(OR(Calculations!$E$2=\"Orkney Health Board\",Calculations!$E$2=\"Orkney Islands Local Authority\"),$F101=1),0,IF(AND(OR(Calculations!$E$2=\"Shetland Health Board\",Calculations!$E$2=\"Western Isles Health Board\",Calculations!$E$2=\"Shetland Islands Local Authority\",Calculations!$E$2=\"Eilean Siar Local Authority\"),OR($F101=1,$F101=5)),0,new_ci(VALUE(LEFT(Options!$B$24,2)),$C101,$E101,$F101,2016,$I101+$J101,1,$H101,$G101*$H101,Options!$B$8)))","v":4.9959509235999997},{"$f":"IF(AND(OR(Calculations!$E$2=\"Orkney Health Board\",Calculations!$E$2=\"Orkney Islands Local Authority\"),$F101=1),0,IF(AND(OR(Calculations!$E$2=\"Shetland Health Board\",Calculations!$E$2=\"Western Isles Health Board\",Calculations!$E$2=\"Shetland Islands Local Authority\",Calculations!$E$2=\"Eilean Siar Local Authority\"),OR($F101=1,$F101=5)),0,new_yllv2(VALUE(LEFT(Options!$B$24,2)),$C101,$D101,$E101,$F101,2016,$I101,1,$H101,$G101*$H101,Options!$B$8)))","v":321.87120847149998},{"$f":"IF(AND(OR(Calculations!$E$2=\"Orkney Health Board\",Calculations!$E$2=\"Orkney Islands Local Authority\"),$F101=1),0,IF(AND(OR(Calculations!$E$2=\"Shetland Health Board\",Calculations!$E$2=\"Western Isles Health Board\",Calculations!$E$2=\"Shetland Islands Local Authority\",Calculations!$E$2=\"Eilean Siar Local Authority\"),OR($F101=1,$F101=5)),0,new_yllv2(VALUE(LEFT(Options!$B$24,2)),$C101,$D101,$E101,$F101,2016,$I101+$J101,1,$H101,$G101*$H101,Options!$B$8)))","v":312.39679626489999},{"$f":"IF(AND(OR(Calculations!$E$2=\"Orkney Health Board\",Calculations!$E$2=\"Orkney Islands Local Authority\"),$F101=1),0,IF(AND(OR(Calculations!$E$2=\"Shetland Health Board\",Calculations!$E$2=\"Western Isles Health Board\",Calculations!$E$2=\"Shetland Islands Local Authority\",Calculations!$E$2=\"Eilean Siar Local Authority\"),OR($F101=1,$F101=5)),0,hosp_count(VALUE(LEFT(Options!$B$24,2)),$C101,$E101,$F101,2016,$I101,1,$H101,$G101*$H101, Options!$B$8)))","v":2679.1393826232002},{"$f":"IF(AND(OR(Calculations!$E$2=\"Orkney Health Board\",Calculations!$E$2=\"Orkney Islands Local Authority\"),$F101=1),0,IF(AND(OR(Calculations!$E$2=\"Shetland Health Board\",Calculations!$E$2=\"Western Isles Health Board\",Calculations!$E$2=\"Shetland Islands Local Authority\",Calculations!$E$2=\"Eilean Siar Local Authority\"),OR($F101=1,$F101=5)),0,hosp_count(VALUE(LEFT(Options!$B$24,2)),$C101,$E101,$F101,2016,$I101+$J101,1,$H101,$G101*$H101, Options!$B$8)))","v":2673.3319100376998},{"$f":"IF(AND(OR(Calculations!$E$2=\"Orkney Health Board\",Calculations!$E$2=\"Orkney Islands Local Authority\"),$F101=1),0,IF(AND(OR(Calculations!$E$2=\"Shetland Health Board\",Calculations!$E$2=\"Western Isles Health Board\",Calculations!$E$2=\"Shetland Islands Local Authority\",Calculations!$E$2=\"Eilean Siar Local Authority\"),OR($F101=1,$F101=5)),0,prem_mort(VALUE(LEFT(Options!$B$24,2)),$C101,$E101,$F101,2016,$I101,1,$H101,$G101*$H101,Options!$B$8)))","v":5.1474687976000002},{"$f":"IF(AND(OR(Calculations!$E$2=\"Orkney Health Board\",Calculations!$E$2=\"Orkney Islands Local Authority\"),$F101=1),0,IF(AND(OR(Calculations!$E$2=\"Shetland Health Board\",Calculations!$E$2=\"Western Isles Health Board\",Calculations!$E$2=\"Shetland Islands Local Authority\",Calculations!$E$2=\"Eilean Siar Local Authority\"),OR($F101=1,$F101=5)),0,prem_mort(VALUE(LEFT(Options!$B$24,2)),$C101,$E101,$F101,2016,$I101+$J101,1,$H101,$G101*$H101,Options!$B$8)))","v":4.9959509235999997},22.26317545780892,21.607849676052073,1392.1162945871718,1351.1387754201808,11587.47192,11562.354180345574,22.26317545780892,21.607849676052073,97957.972014359242,95074.538574629114,6125311.6961835558,5945010.6118487958,50984876.447999999,50874358.393520527,97957.972014359242,95074.538574629114,4400]
[null,"Female 20-24",22.077057,81.667060000000006,"female",2,{"$f":"HLOOKUP(Calculations!$E$2,'Prevalence Rates'!$C$3:$BC$249,'Prevalence Rates'!$BD102,FALSE)","v":0.15439856373429084},{"$f":"HLOOKUP(Calculations!$E$2,'Population 2016'!$C$3:$BC$249,'Population 2016'!BD102,FALSE)","v":36899},0,{"$f":"HLOOKUP(Results!E$4,Targeting!$C$3:$F$249,Targeting!$G102,FALSE)","v":2505},{"$f":"IF(AND(OR(Calculations!$E$2=\"Orkney Health Board\",Calculations!$E$2=\"Orkney Islands Local Authority\"),$F102=1),0,IF(AND(OR(Calculations!$E$2=\"Shetland Health Board\",Calculations!$E$2=\"Western Isles Health Board\",Calculations!$E$2=\"Shetland Islands Local Authority\",Calculations!$E$2=\"Eilean Siar Local Authority\"),OR($F102=1,$F102=5)),0,new_ci(VALUE(LEFT(Options!$B$24,2)),$C102,$E102,$F102,2016,$I102,1,$H102,$G102*$H102,Options!$B$8)))","v":12.052060665999999},{"$f":"IF(AND(OR(Calculations!$E$2=\"Orkney Health Board\",Calculations!$E$2=\"Orkney Islands Local Authority\"),$F102=1),0,IF(AND(OR(Calculations!$E$2=\"Shetland Health Board\",Calculations!$E$2=\"Western Isles Health Board\",Calculations!$E$2=\"Shetland Islands Local Authority\",Calculations!$E$2=\"Eilean Siar Local Authority\"),OR($F102=1,$F102=5)),0,new_ci(VALUE(LEFT(Options!$B$24,2)),$C102,$E102,$F102,2016,$I102+$J102,1,$H102,$G102*$H102,Options!$B$8)))","v":11.697405772},{"$f":"IF(AND(OR(Calculations!$E$2=\"Orkney Health Board\",Calculations!$E$2=\"Orkney Islands Local Authority\"),$F102=1),0,IF(AND(OR(Calculations!$E$2=\"Shetland Health Board\",Calculations!$E$2=\"Western Isles Health Board\",Calculations!$E$2=\"Shetland Islands Local Authority\",Calculations!$E$2=\"Eilean Siar Local Authority\"),OR($F102=1,$F102=5)),0,new_yllv2(VALUE(LEFT(Options!$B$24,2)),$C102,$D102,$E102,$F102,2016,$I102,1,$H102,$G102*$H102,Options!$B$8)))","v":706.13027057709996},{"$f":"IF(AND(OR(Calculations!$E$2=\"Orkney Health Board\",Calculations!$E$2=\"Orkney Islands Local Authority\"),$F102=1),0,IF(AND(OR(Calculations!$E$2=\"Shetland Health Board\",Calculations!$E$2=\"Western Isles Health Board\",Calculations!$E$2=\"Shetland Islands Local Authority\",Calculations!$E$2=\"Eilean Siar Local Authority\"),OR($F102=1,$F102=5)),0,new_yllv2(VALUE(LEFT(Options!$B$24,2)),$C102,$D102,$E102,$F102,2016,$I102+$J102,1,$H102,$G102*$H102,Options!$B$8)))","v":685.35103927370005},{"$f":"IF(AND(OR(Calculations!$E$2=\"Orkney Health Board\",Calculations!$E$2=\"Orkney Islands Local Authority\"),$F102=1),0,IF(AND(OR(Calculations!$E$2=\"Shetland Health Board\",Calculations!$E$2=\"Western Isles Health Board\",Calculations!$E$2=\"Shetland Islands Local Authority\",Calculations!$E$2=\"Eilean Siar Local Authority\"),OR($F102=1,$F102=5)),0,hosp_count(VALUE(LEFT(Options!$B$24,2)),$C102,$E102,$F102,2016,$I102,1,$H102,$G102*$H102, Options!$B$8)))","v":4788.9278407905003},{"$f":"IF(AND(OR(Calculations!$E$2=\"Orkney Health Board\",Calculations!$E$2=\"Orkney Islands Local Authority\"),$F102=1),0,IF(AND(OR(Calculations!$E$2=\"Shetland Health Board\",Calculations!$E$2=\"Western Isles Health Board\",Calculations!$E$2=\"Shetland Islands Local Authority\",Calculations!$E$2=\"Eilean Siar Local Authority\"),OR($F102=1,$F102=5)),0,hosp_count(VALUE(LEFT(Options!$B$24,2)),$C102,$E102,$F102,2016,$I102+$J102,1,$H102,$G102*$H102, Options!$B$8)))","v":4778.5494444748001},{"$f":"IF(AND(OR(Calculations!$E$2=\"Orkney Health Board\",Calculations!$E$2=\"Orkney Islands Local Authority\"),$F102=1),0,IF(AND(OR(Calculations!$E$2=\"Shetland Health Board\",Calculations!$E$2=\"Western Isles Health Board\",Calculations!$E$2=\"Shetland Islands Local Authority\",Calculations!$E$2=\"Eilean Siar Local Authority\"),OR($F102=1,$F102=5)),0,prem_mort(VALUE(LEFT(Options!$B$24,2)),$C102,$E102,$F102,2016,$I102,1,$H102,$G102*$H102,Options!$B$8)))","v":12.052060665999999},{"$f":"IF(AND(OR(Calculations!$E$2=\"Orkney Health Board\",Calculations!$E$2=\"Orkney Islands Local Authority\"),$F102=1),0,IF(AND(OR(Calculations!$E$2=\"Shetland Health Board\",Calculations!$E$2=\"Western Isles Health Board\",Calculations!$E$2=\"Shetland Islands Local Authority\",Calculations!$E$2=\"Eilean Siar Local Authority\"),OR($F102=1,$F102=5)),0,prem_mort(VALUE(LEFT(Options!$B$24,2)),$C102,$E102,$F102,2016,$I102+$J102,1,$H102,$G102*$H102,Options!$B$8)))","v":11.697405772},32.66229617604813,31.701145754627497,1913.6840309414888,1857.37022486707,12978.47595,12950.349452491397,32.66229617604813,31.701145754627497,195973.77705628879,190206.87452776497,11482104.185648933,11144221.349202421,77870855.700000003,77702096.714948386,195973.77705628879,190206.87452776497,6000]
[null,"Female 25-29",26.975186999999998,81.645189999999999,"female",2,{"$f":"HLOOKUP(Calculations!$E$2,'Prevalence Rates'!$C$3:$BC$249,'Prevalence Rates'!$BD103,FALSE)","v":0.29191797346200243},{"$f":"HLOOKUP(Calculations!$E$2,'Population 2016'!$C$3:$BC$249,'Population 2016'!BD103,FALSE)","v":40610},0,{"$f":"HLOOKUP(Results!E$4,Targeting!$C$3:$F$249,Targeting!$G103,FALSE)","v":2757},{"$f":"IF(AND(OR(Calculations!$E$2=\"Orkney Health Board\",Calculations!$E$2=\"Orkney Islands Local Authority\"),$F103=1),0,IF(AND(OR(Calculations!$E$2=\"Shetland Health Board\",Calculations!$E$2=\"Western Isles Health Board\",Calculations!$E$2=\"Shetland Islands Local Authority\",Calculations!$E$2=\"Eilean Siar Local Authority\"),OR($F103=1,$F103=5)),0,new_ci(VALUE(LEFT(Options!$B$24,2)),$C103,$E103,$F103,2016,$I103,1,$H103,$G103*$H103,Options!$B$8)))","v":20.117400165100001},{"$f":"IF(AND(OR(Calculations!$E$2=\"Orkney Health Board\",Calculations!$E$2=\"Orkney Islands Local Authority\"),$F103=1),0,IF(AND(OR(Calculations!$E$2=\"Shetland Health Board\",Calculations!$E$2=\"Western Isles Health Board\",Calculations!$E$2=\"Shetland Islands Local Authority\",Calculations!$E$2=\"Eilean Siar Local Authority\"),OR($F103=1,$F103=5)),0,new_ci(VALUE(LEFT(Options!$B$24,2)),$C103,$E103,$F103,2016,$I103+$J103,1,$H103,$G103*$H103,Options!$B$8)))","v":19.552618789899999},{"$f":"IF(AND(OR(Calculations!$E$2=\"Orkney Health Board\",Calculations!$E$2=\"Orkney Islands Local Authority\"),$F103=1),0,IF(AND(OR(Calculations!$E$2=\"Shetland Health Board\",Calculations!$E$2=\"Western Isles Health Board\",Calculations!$E$2=\"Shetland Islands Local Authority\",Calculations!$E$2=\"Eilean Siar Local Authority\"),OR($F103=1,$F103=5)),0,new_yllv2(VALUE(LEFT(Options!$B$24,2)),$C103,$D103,$E103,$F103,2016,$I103,1,$H103,$G103*$H103,Options!$B$8)))","v":1079.7009272130999},{"$f":"IF(AND(OR(Calculations!$E$2=\"Orkney Health Board\",Calculations!$E$2=\"Orkney Islands Local Authority\"),$F103=1),0,IF(AND(OR(Calculations!$E$2=\"Shetland Health Board\",Calculations!$E$2=\"Western Isles Health Board\",Calculations!$E$2=\"Shetland Islands Local Authority\",Calculations!$E$2=\"Eilean Siar Local Authority\"),OR($F103=1,$F103=5)),0,new_yllv2(VALUE(LEFT(Options!$B$24,2)),$C103,$D103,$E103,$F103,2016,$I103+$J103,1,$H103,$G103*$H103,Options!$B$8)))","v":1049.3891091118001},{"$f":"IF(AND(OR(Calculations!$E$2=\"Orkney Health Board\",Calculations!$E$2=\"Orkney Islands Local Authority\"),$F103=1),0,IF(AND(OR(Calculations!$E$2=\"Shetland Health Board\",Calculations!$E$2=\"Western Isles Health Board\",Calculations!$E$2=\"Shetland Islands Local Authority\",Calculations!$E$2=\"Eilean Siar Local Authority\"),OR($F103=1,$F103=5)),0,hosp_count(VALUE(LEFT(Options!$B$24,2)),$C103,$E103,$F103,2016,$I103,1,$H103,$G103*$H103, Options!$B$8)))","v":5961.6213822700001},{"$f":"IF(AND(OR(Calculations!$E$2=\"Orkney Health Board\",Calculations!$E$2=\"Orkney Islands Local Authority\"),$F103=1),0,IF(AND(OR(Calculations!$E$2=\"Shetland Health Board\",Calculations!$E$2=\"Western Isles Health Board\",Calculations!$E$2=\"Shetland Islands Local Authority\",Calculations!$E$2=\"Eilean Siar Local Authority\"),OR($F103=1,$F103=5)),0,hosp_count(VALUE(LEFT(Options!$B$24,2)),$C103,$E103,$F103,2016,$I103+$J103,1,$H103,$G103*$H103, Options!$B$8)))","v":5948.7365782959996},{"$f":"IF(AND(OR(Calculations!$E$2=\"Orkney Health Board\",Calculations!$E$2=\"Orkney Islands Local Authority\"),$F103=1),0,IF(AND(OR(Calculations!$E$2=\"Shetland Health Board\",Calculations!$E$2=\"Western Isles Health Board\",Calculations!$E$2=\"Shetland Islands Local Authority\",Calculations!$E$2=\"Eilean Siar Local Authority\"),OR($F103=1,$F103=5)),0,prem_mort(VALUE(LEFT(Options!$B$24,2)),$C103,$E103,$F103,2016,$I103,1,$H103,$G103*$H103,Options!$B$8)))","v":20.117400165100001},{"$f":"IF(AND(OR(Calculations!$E$2=\"Orkney Health Board\",Calculations!$E$2=\"Orkney Islands Local Authority\"),$F103=1),0,IF(AND(OR(Calculations!$E$2=\"Shetland Health Board\",Calculations!$E$2=\"Western Isles Health Board\",Calculations!$E$2=\"Shetland Islands Local Authority\",Calculations!$E$2=\"Eilean Siar Local Authority\"),OR($F103=1,$F103=5)),0,prem_mort(VALUE(LEFT(Options!$B$24,2)),$C103,$E103,$F103,2016,$I103+$J103,1,$H103,$G103*$H103,Options!$B$8)))","v":19.552618789899999},49.538045223097761,48.147300639990149,2658.7070357377493,2584.0657697901997,14680.180700000001,14648.45254443733,49.538045223097761,48.147300639990149,297228.27133858658,288883.80383994087,15952242.214426495,15504394.618741198,88081084.200000003,87890715.266623989,297228.27133858658,288883.80383994087,6000]
[null,"Female 30-34",31.999904999999998,81.799899999999994,"female",2,{"$f":"HLOOKUP(Calculations!$E$2,'Prevalence Rates'!$C$3:$BC$249,'Prevalence Rates'!$BD104,FALSE)","v":0.29191797346200243},{"$f":"HLOOKUP(Calculations!$E$2,'Population 2016'!$C$3:$BC$249,'Population 2016'!BD104,FALSE)","v":38102},0,{"$f":"HLOOKUP(Results!E$4,Targeting!$C$3:$F$249,Targeting!$G104,FALSE)","v":2587},{"$f":"IF(AND(OR(Calculations!$E$2=\"Orkney Health Board\",Calculations!$E$2=\"Orkney Islands Local Authority\"),$F104=1),0,IF(AND(OR(Calculations!$E$2=\"Shetland Health Board\",Calculations!$E$2=\"Western Isles Health Board\",Calculations!$E$2=\"Shetland Islands Local Authority\",Calculations!$E$2=\"Eilean Siar Local Authority\"),OR($F104=1,$F104=5)),0,new_ci(VALUE(LEFT(Options!$B$24,2)),$C104,$E104,$F104,2016,$I104,1,$H104,$G104*$H104,Options!$B$8)))","v":28.935710396800001},{"$f":"IF(AND(OR(Calculations!$E$2=\"Orkney Health Board\",Calculations!$E$2=\"Orkney Islands Local Authority\"),$F104=1),0,IF(AND(OR(Calculations!$E$2=\"Shetland Health Board\",Calculations!$E$2=\"Western Isles Health Board\",Calculations!$E$2=\"Shetland Islands Local Authority\",Calculations!$E$2=\"Eilean Siar Local Authority\"),OR($F104=1,$F104=5)),0,new_ci(VALUE(LEFT(Options!$B$24,2)),$C104,$E104,$F104,2016,$I104+$J104,1,$H104,$G104*$H104,Options!$B$8)))","v":28.123389033700001},{"$f":"IF(AND(OR(Calculations!$E$2=\"Orkney Health Board\",Calculations!$E$2=\"Orkney Islands Local Authority\"),$F104=1),0,IF(AND(OR(Calculations!$E$2=\"Shetland Health Board\",Calculations!$E$2=\"Western Isles Health Board\",Calculations!$E$2=\"Shetland Islands Local Authority\",Calculations!$E$2=\"Eilean Siar Local Authority\"),OR($F104=1,$F104=5)),0,new_yllv2(VALUE(LEFT(Options!$B$24,2)),$C104,$D104,$E104,$F104,2016,$I104,1,$H104,$G104*$H104,Options!$B$8)))","v":1412.0625226853001},{"$f":"IF(AND(OR(Calculations!$E$2=\"Orkney Health Board\",Calculations!$E$2=\"Orkney Islands Local Authority\"),$F104=1),0,IF(AND(OR(Calculations!$E$2=\"Shetland Health Board\",Calculations!$E$2=\"Western Isles Health Board\",Calculations!$E$2=\"Shetland Islands Local Authority\",Calculations!$E$2=\"Eilean Siar Local Authority\"),OR($F104=1,$F104=5)),0,new_yllv2(VALUE(LEFT(Options!$B$24,2)),$C104,$D104,$E104,$F104,2016,$I104+$J104,1,$H104,$G104*$H104,Options!$B$8)))","v":1372.4212442276},{"$f":"IF(AND(OR(Calculations!$E$2=\"Orkney Health Board\",Calculations!$E$2=\"Orkney Islands Local Authority\"),$F104=1),0,IF(AND(OR(Calculations!$E$2=\"Shetland Health Board\",Calculations!$E$2=\"Western Isles Health Board\",Calculations!$E$2=\"Shetland Islands Local Authority\",Calculations!$E$2=\"Eilean Siar Local Authority\"),OR($F104=1,$F104=5)),0,hosp_count(VALUE(LEFT(Options!$B$24,2)),$C104,$E104,$F104,2016,$I104,1,$H104,$G104*$H104, Options!$B$8)))","v":6347.0181481669997},{"$f":"IF(AND(OR(Calculations!$E$2=\"Orkney Health Board\",Calculations!$E$2=\"Orkney Islands Local Authority\"),$F104=1),0,IF(AND(OR(Calculations!$E$2=\"Shetland Health Board\",Calculations!$E$2=\"Western Isles Health Board\",Calculations!$E$2=\"Shetland Islands Local Authority\",Calculations!$E$2=\"Eilean Siar Local Authority\"),OR($F104=1,$F104=5)),0,hosp_count(VALUE(LEFT(Options!$B$24,2)),$C104,$E104,$F104,2016,$I104+$J104,1,$H104,$G104*$H104, Options!$B$8)))","v":6333.2989717087003},{"$f":"IF(AND(OR(Calculations!$E$2=\"Orkney Health Board\",Calculations!$E$2=\"Orkney Islands Local Authority\"),$F104=1),0,IF(AND(OR(Calculations!$E$2=\"Shetland Health Board\",Calculations!$E$2=\"Western Isles Health Board\",Calculations!$E$2=\"Shetland Islands Local Authority\",Calculations!$E$2=\"Eilean Siar Local Authority\"),OR($F104=1,$F104=5)),0,prem_mort(VALUE(LEFT(Options!$B$24,2)),$C104,$E104,$F104,2016,$I104,1,$H104,$G104*$H104,Options!$B$8)))","v":28.935710396800001},{"$f":"IF(AND(OR(Calculations!$E$2=\"Orkney Health Board\",Calculations!$E$2=\"Orkney Islands Local Authority\"),$F104=1),0,IF(AND(OR(Calculations!$E$2=\"Shetland Health Board\",Calculations!$E$2=\"Western Isles Health Board\",Calculations!$E$2=\"Shetland Islands Local Authority\",Calculations!$E$2=\"Eilean Siar Local Authority\"),OR($F104=1,$F104=5)),0,prem_mort(VALUE(LEFT(Options!$B$24,2)),$C104,$E104,$F104,2016,$I104+$J104,1,$H104,$G104*$H104,Options!$B$8)))","v":28.123389033700001},75.942759951708567,73.810794797385967,3706.0063059296103,3601.9664170584224,16657.965850000001,16621.959402941317,75.942759951708567,73.810794797385967,493627.9396861057,479770.16618300875,24089040.988542467,23412781.710879747,108276778.02500001,108042736.11911856,493627.9396861057,479770.16618300875,6500]
[null,"Female 35-39",36.918118,81.898120000000006,"female",2,{"$f":"HLOOKUP(Calculations!$E$2,'Prevalence Rates'!$C$3:$BC$249,'Prevalence Rates'!$BD105,FALSE)","v":0.25982905982905985},{"$f":"HLOOKUP(Calculations!$E$2,'Population 2016'!$C$3:$BC$249,'Population 2016'!BD105,FALSE)","v":33014},0,{"$f":"HLOOKUP(Results!E$4,Targeting!$C$3:$F$249,Targeting!$G105,FALSE)","v":2241},{"$f":"IF(AND(OR(Calculations!$E$2=\"Orkney Health Board\",Calculations!$E$2=\"Orkney Islands Local Authority\"),$F105=1),0,IF(AND(OR(Calculations!$E$2=\"Shetland Health Board\",Calculations!$E$2=\"Western Isles Health Board\",Calculations!$E$2=\"Shetland Islands Local Authority\",Calculations!$E$2=\"Eilean Siar Local Authority\"),OR($F105=1,$F105=5)),0,new_ci(VALUE(LEFT(Options!$B$24,2)),$C105,$E105,$F105,2016,$I105,1,$H105,$G105*$H105,Options!$B$8)))","v":38.086336124600003},{"$f":"IF(AND(OR(Calculations!$E$2=\"Orkney Health Board\",Calculations!$E$2=\"Orkney Islands Local Authority\"),$F105=1),0,IF(AND(OR(Calculations!$E$2=\"Shetland Health Board\",Calculations!$E$2=\"Western Isles Health Board\",Calculations!$E$2=\"Shetland Islands Local Authority\",Calculations!$E$2=\"Eilean Siar Local Authority\"),OR($F105=1,$F105=5)),0,new_ci(VALUE(LEFT(Options!$B$24,2)),$C105,$E105,$F105,2016,$I105+$J105,1,$H105,$G105*$H105,Options!$B$8)))","v":37.006041457400002},{"$f":"IF(AND(OR(Calculations!$E$2=\"Orkney Health Board\",Calculations!$E$2=\"Orkney Islands Local Authority\"),$F105=1),0,IF(AND(OR(Calculations!$E$2=\"Shetland Health Board\",Calculations!$E$2=\"Western Isles Health Board\",Calculations!$E$2=\"Shetland Islands Local Authority\",Calculations!$E$2=\"Eilean Siar Local Authority\"),OR($F105=1,$F105=5)),0,new_yllv2(VALUE(LEFT(Options!$B$24,2)),$C105,$D105,$E105,$F105,2016,$I105,1,$H105,$G105*$H105,Options!$B$8)))","v":1675.0371389326001},{"$f":"IF(AND(OR(Calculations!$E$2=\"Orkney Health Board\",Calculations!$E$2=\"Orkney Islands Local Authority\"),$F105=1),0,IF(AND(OR(Calculations!$E$2=\"Shetland Health Board\",Calculations!$E$2=\"Western Isles Health Board\",Calculations!$E$2=\"Shetland Islands Local Authority\",Calculations!$E$2=\"Eilean Siar Local Authority\"),OR($F105=1,$F105=5)),0,new_yllv2(VALUE(LEFT(Options!$B$24,2)),$C105,$D105,$E105,$F105,2016,$I105+$J105,1,$H105,$G105*$H105,Options!$B$8)))","v":1627.5257773085},{"$f":"IF(AND(OR(Calculations!$E$2=\"Orkney Health Board\",Calculations!$E$2=\"Orkney Islands Local Authority\"),$F105=1),0,IF(AND(OR(Calculations!$E$2=\"Shetland Health Board\",Calculations!$E$2=\"Western Isles Health Board\",Calculations!$E$2=\"Shetland Islands Local Authority\",Calculations!$E$2=\"Eilean Siar Local Authority\"),OR($F105=1,$F105=5)),0,hosp_count(VALUE(LEFT(Options!$B$24,2)),$C105,$E105,$F105,2016,$I105,1,$H105,$G105*$H105, Options!$B$8)))","v":6223.6793335352004},{"$f":"IF(AND(OR(Calculations!$E$2=\"Orkney Health Board\",Calculations!$E$2=\"Orkney Islands Local Authority\"),$F105=1),0,IF(AND(OR(Calculations!$E$2=\"Shetland Health Board\",Calculations!$E$2=\"Western Isles Health Board\",Calculations!$E$2=\"Shetland Islands Local Authority\",Calculations!$E$2=\"Eilean Siar Local Authority\"),OR($F105=1,$F105=5)),0,hosp_count(VALUE(LEFT(Options!$B$24,2)),$C105,$E105,$F105,2016,$I105+$J105,1,$H105,$G105*$H105, Options!$B$8)))","v":6210.2214192739002},{"$f":"IF(AND(OR(Calculations!$E$2=\"Orkney Health Board\",Calculations!$E$2=\"Orkney Islands Local Authority\"),$F105=1),0,IF(AND(OR(Calculations!$E$2=\"Shetland Health Board\",Calculations!$E$2=\"Western Isles Health Board\",Calculations!$E$2=\"Shetland Islands Local Authority\",Calculations!$E$2=\"Eilean Siar Local Authority\"),OR($F105=1,$F105=5)),0,prem_mort(VALUE(LEFT(Options!$B$24,2)),$C105,$E105,$F105,2016,$I105,1,$H105,$G105*$H105,Options!$B$8)))","v":38.086336124600003},{"$f":"IF(AND(OR(Calculations!$E$2=\"Orkney Health Board\",Calculations!$E$2=\"Orkney Islands Local Authority\"),$F105=1),0,IF(AND(OR(Calculations!$E$2=\"Shetland Health Board\",Calculations!$E$2=\"Western Isles Health Board\",Calculations!$E$2=\"Shetland Islands Local Authority\",Calculations!$E$2=\"Eilean Siar Local Authority\"),OR($F105=1,$F105=5)),0,prem_mort(VALUE(LEFT(Options!$B$24,2)),$C105,$E105,$F105,2016,$I105+$J105,1,$H105,$G105*$H105,Options!$B$8)))","v":37.006041457400002},115.36419738474588,112.09196540073908,5073.7176317095782,4929.8048625083302,18851.63668,18810.87241556279,115.36419738474588,112.09196540073908,807549.38169322116,784643.75780517363,35516023.421967044,34508634.03755831,131961456.75999999,131676106.90893953,807549.38169322116,784643.75780517363,7000]
[null,"Female 40-44",42.077438000000001,82.30744,"female",2,{"$f":"HLOOKUP(Calculations!$E$2,'Prevalence Rates'!$C$3:$BC$249,'Prevalence Rates'!$BD106,FALSE)","v":0.25982905982905985},{"$f":"HLOOKUP(Calculations!$E$2,'Population 2016'!$C$3:$BC$249,'Population 2016'!BD106,FALSE)","v":33442},0,{"$f":"HLOOKUP(Results!E$4,Targeting!$C$3:$F$249,Targeting!$G106,FALSE)","v":2270},{"$f":"IF(AND(OR(Calculations!$E$2=\"Orkney Health Board\",Calculations!$E$2=\"Orkney Islands Local Authority\"),$F106=1),0,IF(AND(OR(Calculations!$E$2=\"Shetland Health Board\",Calculations!$E$2=\"Western Isles Health Board\",Calculations!$E$2=\"Shetland Islands Local Authority\",Calculations!$E$2=\"Eilean Siar Local Authority\"),OR($F106=1,$F106=5)),0,new_ci(VALUE(LEFT(Options!$B$24,2)),$C106,$E106,$F106,2016,$I106,1,$H106,$G106*$H106,Options!$B$8)))","v":59.813664034299997},{"$f":"IF(AND(OR(Calculations!$E$2=\"Orkney Health Board\",Calculations!$E$2=\"Orkney Islands Local Authority\"),$F106=1),0,IF(AND(OR(Calculations!$E$2=\"Shetland Health Board\",Calculations!$E$2=\"Western Isles Health Board\",Calculations!$E$2=\"Shetland Islands Local Authority\",Calculations!$E$2=\"Eilean Siar Local Authority\"),OR($F106=1,$F106=5)),0,new_ci(VALUE(LEFT(Options!$B$24,2)),$C106,$E106,$F106,2016,$I106+$J106,1,$H106,$G106*$H106,Options!$B$8)))","v":58.117698229299997},{"$f":"IF(AND(OR(Calculations!$E$2=\"Orkney Health Board\",Calculations!$E$2=\"Orkney Islands Local Authority\"),$F106=1),0,IF(AND(OR(Calculations!$E$2=\"Shetland Health Board\",Calculations!$E$2=\"Western Isles Health Board\",Calculations!$E$2=\"Shetland Islands Local Authority\",Calculations!$E$2=\"Eilean Siar Local Authority\"),OR($F106=1,$F106=5)),0,new_yllv2(VALUE(LEFT(Options!$B$24,2)),$C106,$D106,$E106,$F106,2016,$I106,1,$H106,$G106*$H106,Options!$B$8)))","v":2346.4901596928999},{"$f":"IF(AND(OR(Calculations!$E$2=\"Orkney Health Board\",Calculations!$E$2=\"Orkney Islands Local Authority\"),$F106=1),0,IF(AND(OR(Calculations!$E$2=\"Shetland Health Board\",Calculations!$E$2=\"Western Isles Health Board\",Calculations!$E$2=\"Shetland Islands Local Authority\",Calculations!$E$2=\"Eilean Siar Local Authority\"),OR($F106=1,$F106=5)),0,new_yllv2(VALUE(LEFT(Options!$B$24,2)),$C106,$D106,$E106,$F106,2016,$I106+$J106,1,$H106,$G106*$H106,Options!$B$8)))","v":2279.9574177708},{"$f":"IF(AND(OR(Calculations!$E$2=\"Orkney Health Board\",Calculations!$E$2=\"Orkney Islands Local Authority\"),$F106=1),0,IF(AND(OR(Calculations!$E$2=\"Shetland Health Board\",Calculations!$E$2=\"Western Isles Health Board\",Calculations!$E$2=\"Shetland Islands Local Authority\",Calculations!$E$2=\"Eilean Siar Local Authority\"),OR($F106=1,$F106=5)),0,hosp_count(VALUE(LEFT(Options!$B$24,2)),$C106,$E106,$F106,2016,$I106,1,$H106,$G106*$H106, Options!$B$8)))","v":7177.9805397336004},{"$f":"IF(AND(OR(Calculations!$E$2=\"Orkney Health Board\",Calculations!$E$2=\"Orkney Islands Local Authority\"),$F106=1),0,IF(AND(OR(Calculations!$E$2=\"Shetland Health Board\",Calculations!$E$2=\"Western Isles Health Board\",Calculations!$E$2=\"Shetland Islands Local Authority\",Calculations!$E$2=\"Eilean Siar Local Authority\"),OR($F106=1,$F106=5)),0,hosp_count(VALUE(LEFT(Options!$B$24,2)),$C106,$E106,$F106,2016,$I106+$J106,1,$H106,$G106*$H106, Options!$B$8)))","v":7162.4594313136004},{"$f":"IF(AND(OR(Calculations!$E$2=\"Orkney Health Board\",Calculations!$E$2=\"Orkney Islands Local Authority\"),$F106=1),0,IF(AND(OR(Calculations!$E$2=\"Shetland Health Board\",Calculations!$E$2=\"Western Isles Health Board\",Calculations!$E$2=\"Shetland Islands Local Authority\",Calculations!$E$2=\"Eilean Siar Local Authority\"),OR($F106=1,$F106=5)),0,prem_mort(VALUE(LEFT(Options!$B$24,2)),$C106,$E106,$F106,2016,$I106,1,$H106,$G106*$H106,Options!$B$8)))","v":59.813664034299997},{"$f":"IF(AND(OR(Calculations!$E$2=\"Orkney Health Board\",Calculations!$E$2=\"Orkney Islands Local Authority\"),$F106=1),0,IF(AND(OR(Calculations!$E$2=\"Shetland Health Board\",Calculations!$E$2=\"Western Isles Health Board\",Calculations!$E$2=\"Shetland Islands Local Authority\",Calculations!$E$2=\"Eilean Siar Local Authority\"),OR($F106=1,$F106=5)),0,prem_mort(VALUE(LEFT(Options!$B$24,2)),$C106,$E106,$F106,2016,$I106+$J106,1,$H106,$G106*$H106,Options!$B$8)))","v":58.117698229299997},178.85791529902517,173.78655053316189,7016.5963748965369,6817.6467249889356,21463.969080000003,21417.557057931943,178.85791529902517,173.78655053316189,1252005.4070931762,1216505.8537321333,49116174.624275759,47723527.074922547,150247783.56000003,149922899.4055236,1252005.4070931762,1216505.8537321333,7000]
[null,"Female 45-49",47.025772000000003,82.585769999999997,"female",2,{"$f":"HLOOKUP(Calculations!$E$2,'Prevalence Rates'!$C$3:$BC$249,'Prevalence Rates'!$BD107,FALSE)","v":0.24123422159887797},{"$f":"HLOOKUP(Calculations!$E$2,'Population 2016'!$C$3:$BC$249,'Population 2016'!BD107,FALSE)","v":39170},0,{"$f":"HLOOKUP(Results!E$4,Targeting!$C$3:$F$249,Targeting!$G107,FALSE)","v":2659},{"$f":"IF(AND(OR(Calculations!$E$2=\"Orkney Health Board\",Calculations!$E$2=\"Orkney Islands Local Authority\"),$F107=1),0,IF(AND(OR(Calculations!$E$2=\"Shetland Health Board\",Calculations!$E$2=\"Western Isles Health Board\",Calculations!$E$2=\"Shetland Islands Local Authority\",Calculations!$E$2=\"Eilean Siar Local Authority\"),OR($F107=1,$F107=5)),0,new_ci(VALUE(LEFT(Options!$B$24,2)),$C107,$E107,$F107,2016,$I107,1,$H107,$G107*$H107,Options!$B$8)))","v":106.66921109499999},{"$f":"IF(AND(OR(Calculations!$E$2=\"Orkney Health Board\",Calculations!$E$2=\"Orkney Islands Local Authority\"),$F107=1),0,IF(AND(OR(Calculations!$E$2=\"Shetland Health Board\",Calculations!$E$2=\"Western Isles Health Board\",Calculations!$E$2=\"Shetland Islands Local Authority\",Calculations!$E$2=\"Eilean Siar Local Authority\"),OR($F107=1,$F107=5)),0,new_ci(VALUE(LEFT(Options!$B$24,2)),$C107,$E107,$F107,2016,$I107+$J107,1,$H107,$G107*$H107,Options!$B$8)))","v":103.62694310089999},{"$f":"IF(AND(OR(Calculations!$E$2=\"Orkney Health Board\",Calculations!$E$2=\"Orkney Islands Local Authority\"),$F107=1),0,IF(AND(OR(Calculations!$E$2=\"Shetland Health Board\",Calculations!$E$2=\"Western Isles Health Board\",Calculations!$E$2=\"Shetland Islands Local Authority\",Calculations!$E$2=\"Eilean Siar Local Authority\"),OR($F107=1,$F107=5)),0,new_yllv2(VALUE(LEFT(Options!$B$24,2)),$C107,$D107,$E107,$F107,2016,$I107,1,$H107,$G107*$H107,Options!$B$8)))","v":3686.4877221048},{"$f":"IF(AND(OR(Calculations!$E$2=\"Orkney Health Board\",Calculations!$E$2=\"Orkney Islands Local Authority\"),$F107=1),0,IF(AND(OR(Calculations!$E$2=\"Shetland Health Board\",Calculations!$E$2=\"Western Isles Health Board\",Calculations!$E$2=\"Shetland Islands Local Authority\",Calculations!$E$2=\"Eilean Siar Local Authority\"),OR($F107=1,$F107=5)),0,new_yllv2(VALUE(LEFT(Options!$B$24,2)),$C107,$D107,$E107,$F107,2016,$I107+$J107,1,$H107,$G107*$H107,Options!$B$8)))","v":3581.3469463132001},{"$f":"IF(AND(OR(Calculations!$E$2=\"Orkney Health Board\",Calculations!$E$2=\"Orkney Islands Local Authority\"),$F107=1),0,IF(AND(OR(Calculations!$E$2=\"Shetland Health Board\",Calculations!$E$2=\"Western Isles Health Board\",Calculations!$E$2=\"Shetland Islands Local Authority\",Calculations!$E$2=\"Eilean Siar Local Authority\"),OR($F107=1,$F107=5)),0,hosp_count(VALUE(LEFT(Options!$B$24,2)),$C107,$E107,$F107,2016,$I107,1,$H107,$G107*$H107, Options!$B$8)))","v":9521.8151117819998},{"$f":"IF(AND(OR(Calculations!$E$2=\"Orkney Health Board\",Calculations!$E$2=\"Orkney Islands Local Authority\"),$F107=1),0,IF(AND(OR(Calculations!$E$2=\"Shetland Health Board\",Calculations!$E$2=\"Western Isles Health Board\",Calculations!$E$2=\"Shetland Islands Local Authority\",Calculations!$E$2=\"Eilean Siar Local Authority\"),OR($F107=1,$F107=5)),0,hosp_count(VALUE(LEFT(Options!$B$24,2)),$C107,$E107,$F107,2016,$I107+$J107,1,$H107,$G107*$H107, Options!$B$8)))","v":9501.2167796825997},{"$f":"IF(AND(OR(Calculations!$E$2=\"Orkney Health Board\",Calculations!$E$2=\"Orkney Islands Local Authority\"),$F107=1),0,IF(AND(OR(Calculations!$E$2=\"Shetland Health Board\",Calculations!$E$2=\"Western Isles Health Board\",Calculations!$E$2=\"Shetland Islands Local Authority\",Calculations!$E$2=\"Eilean Siar Local Authority\"),OR($F107=1,$F107=5)),0,prem_mort(VALUE(LEFT(Options!$B$24,2)),$C107,$E107,$F107,2016,$I107,1,$H107,$G107*$H107,Options!$B$8)))","v":106.66921109499999},{"$f":"IF(AND(OR(Calculations!$E$2=\"Orkney Health Board\",Calculations!$E$2=\"Orkney Islands Local Authority\"),$F107=1),0,IF(AND(OR(Calculations!$E$2=\"Shetland Health Board\",Calculations!$E$2=\"Western Isles Health Board\",Calculations!$E$2=\"Shetland Islands Local Authority\",Calculations!$E$2=\"Eilean Siar Local Authority\"),OR($F107=1,$F107=5)),0,prem_mort(VALUE(LEFT(Options!$B$24,2)),$C107,$E107,$F107,2016,$I107+$J107,1,$H107,$G107*$H107,Options!$B$8)))","v":103.62694310089999},272.32374545570588,264.5569137117692,9411.5080983017615,9143.0864087648715,24308.94846,24256.361449279037,272.32374545570588,264.5569137117692,1906266.218189941,1851898.3959823844,65880556.688112333,64001604.861354098,170162639.22,169794530.14495325,1906266.218189941,1851898.3959823844,7000]
[null,"Female 50-54",51.990825999999998,82.980829999999997,"female",2,{"$f":"HLOOKUP(Calculations!$E$2,'Prevalence Rates'!$C$3:$BC$249,'Prevalence Rates'!$BD108,FALSE)","v":0.24123422159887797},{"$f":"HLOOKUP(Calculations!$E$2,'Population 2016'!$C$3:$BC$249,'Population 2016'!BD108,FALSE)","v":40518},0,{"$f":"HLOOKUP(Results!E$4,Targeting!$C$3:$F$249,Targeting!$G108,FALSE)","v":2751},{"$f":"IF(AND(OR(Calculations!$E$2=\"Orkney Health Board\",Calculations!$E$2=\"Orkney Islands Local Authority\"),$F108=1),0,IF(AND(OR(Calculations!$E$2=\"Shetland Health Board\",Calculations!$E$2=\"Western Isles Health Board\",Calculations!$E$2=\"Shetland Islands Local Authority\",Calculations!$E$2=\"Eilean Siar Local Authority\"),OR($F108=1,$F108=5)),0,new_ci(VALUE(LEFT(Options!$B$24,2)),$C108,$E108,$F108,2016,$I108,1,$H108,$G108*$H108,Options!$B$8)))","v":168.19700650959999},{"$f":"IF(AND(OR(Calculations!$E$2=\"Orkney Health Board\",Calculations!$E$2=\"Orkney Islands Local Authority\"),$F108=1),0,IF(AND(OR(Calculations!$E$2=\"Shetland Health Board\",Calculations!$E$2=\"Western Isles Health Board\",Calculations!$E$2=\"Shetland Islands Local Authority\",Calculations!$E$2=\"Eilean Siar Local Authority\"),OR($F108=1,$F108=5)),0,new_ci(VALUE(LEFT(Options!$B$24,2)),$C108,$E108,$F108,2016,$I108+$J108,1,$H108,$G108*$H108,Options!$B$8)))","v":163.40276123140001},{"$f":"IF(AND(OR(Calculations!$E$2=\"Orkney Health Board\",Calculations!$E$2=\"Orkney Islands Local Authority\"),$F108=1),0,IF(AND(OR(Calculations!$E$2=\"Shetland Health Board\",Calculations!$E$2=\"Western Isles Health Board\",Calculations!$E$2=\"Shetland Islands Local Authority\",Calculations!$E$2=\"Eilean Siar Local Authority\"),OR($F108=1,$F108=5)),0,new_yllv2(VALUE(LEFT(Options!$B$24,2)),$C108,$D108,$E108,$F108,2016,$I108,1,$H108,$G108*$H108,Options!$B$8)))","v":5044.2288980108997},{"$f":"IF(AND(OR(Calculations!$E$2=\"Orkney Health Board\",Calculations!$E$2=\"Orkney Islands Local Authority\"),$F108=1),0,IF(AND(OR(Calculations!$E$2=\"Shetland Health Board\",Calculations!$E$2=\"Western Isles Health Board\",Calculations!$E$2=\"Shetland Islands Local Authority\",Calculations!$E$2=\"Eilean Siar Local Authority\"),OR($F108=1,$F108=5)),0,new_yllv2(VALUE(LEFT(Options!$B$24,2)),$C108,$D108,$E108,$F108,2016,$I108+$J108,1,$H108,$G108*$H108,Options!$B$8)))","v":4900.4494629407},{"$f":"IF(AND(OR(Calculations!$E$2=\"Orkney Health Board\",Calculations!$E$2=\"Orkney Islands Local Authority\"),$F108=1),0,IF(AND(OR(Calculations!$E$2=\"Shetland Health Board\",Calculations!$E$2=\"Western Isles Health Board\",Calculations!$E$2=\"Shetland Islands Local Authority\",Calculations!$E$2=\"Eilean Siar Local Authority\"),OR($F108=1,$F108=5)),0,hosp_count(VALUE(LEFT(Options!$B$24,2)),$C108,$E108,$F108,2016,$I108,1,$H108,$G108*$H108, Options!$B$8)))","v":11159.7113811168},{"$f":"IF(AND(OR(Calculations!$E$2=\"Orkney Health Board\",Calculations!$E$2=\"Orkney Islands Local Authority\"),$F108=1),0,IF(AND(OR(Calculations!$E$2=\"Shetland Health Board\",Calculations!$E$2=\"Western Isles Health Board\",Calculations!$E$2=\"Shetland Islands Local Authority\",Calculations!$E$2=\"Eilean Siar Local Authority\"),OR($F108=1,$F108=5)),0,hosp_count(VALUE(LEFT(Options!$B$24,2)),$C108,$E108,$F108,2016,$I108+$J108,1,$H108,$G108*$H108, Options!$B$8)))","v":11135.5654975011},{"$f":"IF(AND(OR(Calculations!$E$2=\"Orkney Health Board\",Calculations!$E$2=\"Orkney Islands Local Authority\"),$F108=1),0,IF(AND(OR(Calculations!$E$2=\"Shetland Health Board\",Calculations!$E$2=\"Western Isles Health Board\",Calculations!$E$2=\"Shetland Islands Local Authority\",Calculations!$E$2=\"Eilean Siar Local Authority\"),OR($F108=1,$F108=5)),0,prem_mort(VALUE(LEFT(Options!$B$24,2)),$C108,$E108,$F108,2016,$I108,1,$H108,$G108*$H108,Options!$B$8)))","v":168.19700650959999},{"$f":"IF(AND(OR(Calculations!$E$2=\"Orkney Health Board\",Calculations!$E$2=\"Orkney Islands Local Authority\"),$F108=1),0,IF(AND(OR(Calculations!$E$2=\"Shetland Health Board\",Calculations!$E$2=\"Western Isles Health Board\",Calculations!$E$2=\"Shetland Islands Local Authority\",Calculations!$E$2=\"Eilean Siar Local Authority\"),OR($F108=1,$F108=5)),0,prem_mort(VALUE(LEFT(Options!$B$24,2)),$C108,$E108,$F108,2016,$I108+$J108,1,$H108,$G108*$H108,Options!$B$8)))","v":163.40276123140001},415.11675430574064,403.28437048077399,12449.353122096103,12094.499883855817,27542.601760000001,27483.008780051085,415.11675430574064,403.28437048077399,2905817.2801401843,2822990.5933654178,87145471.854672715,84661499.186990723,192798212.32000002,192381061.46035761,2905817.2801401843,2822990.5933654178,7000]
[null,"Female 55-59",56.953040999999999,83.473039999999997,"female",2,{"$f":"HLOOKUP(Calculations!$E$2,'Prevalence Rates'!$C$3:$BC$249,'Prevalence Rates'!$BD109,FALSE)","v":0.49693251533742333},{"$f":"HLOOKUP(Calculations!$E$2,'Population 2016'!$C$3:$BC$249,'Population 2016'!BD109,FALSE)","v":37275},0,{"$f":"HLOOKUP(Results!E$4,Targeting!$C$3:$F$249,Targeting!$G109,FALSE)","v":2530},{"$f":"IF(AND(OR(Calculations!$E$2=\"Orkney Health Board\",Calculations!$E$2=\"Orkney Islands Local Authority\"),$F109=1),0,IF(AND(OR(Calculations!$E$2=\"Shetland Health Board\",Calculations!$E$2=\"Western Isles Health Board\",Calculations!$E$2=\"Shetland Islands Local Authority\",Calculations!$E$2=\"Eilean Siar Local Authority\"),OR($F109=1,$F109=5)),0,new_ci(VALUE(LEFT(Options!$B$24,2)),$C109,$E109,$F109,2016,$I109,1,$H109,$G109*$H109,Options!$B$8)))","v":235.72025068440001},{"$f":"IF(AND(OR(Calculations!$E$2=\"Orkney Health Board\",Calculations!$E$2=\"Orkney Islands Local Authority\"),$F109=1),0,IF(AND(OR(Calculations!$E$2=\"Shetland Health Board\",Calculations!$E$2=\"Western Isles Health Board\",Calculations!$E$2=\"Shetland Islands Local Authority\",Calculations!$E$2=\"Eilean Siar Local Authority\"),OR($F109=1,$F109=5)),0,new_ci(VALUE(LEFT(Options!$B$24,2)),$C109,$E109,$F109,2016,$I109+$J109,1,$H109,$G109*$H109,Options!$B$8)))","v":229.54417432739999},{"$f":"IF(AND(OR(Calculations!$E$2=\"Orkney Health Board\",Calculations!$E$2=\"Orkney Islands Local Authority\"),$F109=1),0,IF(AND(OR(Calculations!$E$2=\"Shetland Health Board\",Calculations!$E$2=\"Western Isles Health Board\",Calculations!$E$2=\"Shetland Islands Local Authority\",Calculations!$E$2=\"Eilean Siar Local Authority\"),OR($F109=1,$F109=5)),0,new_yllv2(VALUE(LEFT(Options!$B$24,2)),$C109,$D109,$E109,$F109,2016,$I109,1,$H109,$G109*$H109,Options!$B$8)))","v":6015.5805617455999},{"$f":"IF(AND(OR(Calculations!$E$2=\"Orkney Health Board\",Calculations!$E$2=\"Orkney Islands Local Authority\"),$F109=1),0,IF(AND(OR(Calculations!$E$2=\"Shetland Health Board\",Calculations!$E$2=\"Western Isles Health Board\",Calculations!$E$2=\"Shetland Islands Local Authority\",Calculations!$E$2=\"Eilean Siar Local Authority\"),OR($F109=1,$F109=5)),0,new_yllv2(VALUE(LEFT(Options!$B$24,2)),$C109,$D109,$E109,$F109,2016,$I109+$J109,1,$H109,$G109*$H109,Options!$B$8)))","v":5857.9670992910997},{"$f":"IF(AND(OR(Calculations!$E$2=\"Orkney Health Board\",Calculations!$E$2=\"Orkney Islands Local Authority\"),$F109=1),0,IF(AND(OR(Calculations!$E$2=\"Shetland Health Board\",Calculations!$E$2=\"Western Isles Health Board\",Calculations!$E$2=\"Shetland Islands Local Authority\",Calculations!$E$2=\"Eilean Siar Local Authority\"),OR($F109=1,$F109=5)),0,hosp_count(VALUE(LEFT(Options!$B$24,2)),$C109,$E109,$F109,2016,$I109,1,$H109,$G109*$H109, Options!$B$8)))","v":11631.357148215},{"$f":"IF(AND(OR(Calculations!$E$2=\"Orkney Health Board\",Calculations!$E$2=\"Orkney Islands Local Authority\"),$F109=1),0,IF(AND(OR(Calculations!$E$2=\"Shetland Health Board\",Calculations!$E$2=\"Western Isles Health Board\",Calculations!$E$2=\"Shetland Islands Local Authority\",Calculations!$E$2=\"Eilean Siar Local Authority\"),OR($F109=1,$F109=5)),0,hosp_count(VALUE(LEFT(Options!$B$24,2)),$C109,$E109,$F109,2016,$I109+$J109,1,$H109,$G109*$H109, Options!$B$8)))","v":11606.3262685507},{"$f":"IF(AND(OR(Calculations!$E$2=\"Orkney Health Board\",Calculations!$E$2=\"Orkney Islands Local Authority\"),$F109=1),0,IF(AND(OR(Calculations!$E$2=\"Shetland Health Board\",Calculations!$E$2=\"Western Isles Health Board\",Calculations!$E$2=\"Shetland Islands Local Authority\",Calculations!$E$2=\"Eilean Siar Local Authority\"),OR($F109=1,$F109=5)),0,prem_mort(VALUE(LEFT(Options!$B$24,2)),$C109,$E109,$F109,2016,$I109,1,$H109,$G109*$H109,Options!$B$8)))","v":235.72025068440001},{"$f":"IF(AND(OR(Calculations!$E$2=\"Orkney Health Board\",Calculations!$E$2=\"Orkney Islands Local Authority\"),$F109=1),0,IF(AND(OR(Calculations!$E$2=\"Shetland Health Board\",Calculations!$E$2=\"Western Isles Health Board\",Calculations!$E$2=\"Shetland Islands Local Authority\",Calculations!$E$2=\"Eilean Siar Local Authority\"),OR($F109=1,$F109=5)),0,prem_mort(VALUE(LEFT(Options!$B$24,2)),$C109,$E109,$F109,2016,$I109+$J109,1,$H109,$G109*$H109,Options!$B$8)))","v":229.54417432739999},632.38162490784714,615.8126742519114,16138.378435266532,15715.538831096175,31204.177460000003,31137.025536017973,632.38162490784714,615.8126742519114,4110480.5619010064,4002782.3826374239,104899459.82923245,102151002.40212514,202827153.49000001,202390665.98411682,4110480.5619010064,4002782.3826374239,6500]
[null,"Female 60-64",61.947387999999997,84.167389999999997,"female",2,{"$f":"HLOOKUP(Calculations!$E$2,'Prevalence Rates'!$C$3:$BC$249,'Prevalence Rates'!$BD110,FALSE)","v":0.49693251533742333},{"$f":"HLOOKUP(Calculations!$E$2,'Population 2016'!$C$3:$BC$249,'Population 2016'!BD110,FALSE)","v":32644},0,{"$f":"HLOOKUP(Results!E$4,Targeting!$C$3:$F$249,Targeting!$G110,FALSE)","v":2216},{"$f":"IF(AND(OR(Calculations!$E$2=\"Orkney Health Board\",Calculations!$E$2=\"Orkney Islands Local Authority\"),$F110=1),0,IF(AND(OR(Calculations!$E$2=\"Shetland Health Board\",Calculations!$E$2=\"Western Isles Health Board\",Calculations!$E$2=\"Shetland Islands Local Authority\",Calculations!$E$2=\"Eilean Siar Local Authority\"),OR($F110=1,$F110=5)),0,new_ci(VALUE(LEFT(Options!$B$24,2)),$C110,$E110,$F110,2016,$I110,1,$H110,$G110*$H110,Options!$B$8)))","v":315.15273891390001},{"$f":"IF(AND(OR(Calculations!$E$2=\"Orkney Health Board\",Calculations!$E$2=\"Orkney Islands Local Authority\"),$F110=1),0,IF(AND(OR(Calculations!$E$2=\"Shetland Health Board\",Calculations!$E$2=\"Western Isles Health Board\",Calculations!$E$2=\"Shetland Islands Local Authority\",Calculations!$E$2=\"Eilean Siar Local Authority\"),OR($F110=1,$F110=5)),0,new_ci(VALUE(LEFT(Options!$B$24,2)),$C110,$E110,$F110,2016,$I110+$J110,1,$H110,$G110*$H110,Options!$B$8)))","v":306.90678220029997},{"$f":"IF(AND(OR(Calculations!$E$2=\"Orkney Health Board\",Calculations!$E$2=\"Orkney Islands Local Authority\"),$F110=1),0,IF(AND(OR(Calculations!$E$2=\"Shetland Health Board\",Calculations!$E$2=\"Western Isles Health Board\",Calculations!$E$2=\"Shetland Islands Local Authority\",Calculations!$E$2=\"Eilean Siar Local Authority\"),OR($F110=1,$F110=5)),0,new_yllv2(VALUE(LEFT(Options!$B$24,2)),$C110,$D110,$E110,$F110,2016,$I110,1,$H110,$G110*$H110,Options!$B$8)))","v":6687.5417500583999},{"$f":"IF(AND(OR(Calculations!$E$2=\"Orkney Health Board\",Calculations!$E$2=\"Orkney Islands Local Authority\"),$F110=1),0,IF(AND(OR(Calculations!$E$2=\"Shetland Health Board\",Calculations!$E$2=\"Western Isles Health Board\",Calculations!$E$2=\"Shetland Islands Local Authority\",Calculations!$E$2=\"Eilean Siar Local Authority\"),OR($F110=1,$F110=5)),0,new_yllv2(VALUE(LEFT(Options!$B$24,2)),$C110,$D110,$E110,$F110,2016,$I110+$J110,1,$H110,$G110*$H110,Options!$B$8)))","v":6512.5625321038997},{"$f":"IF(AND(OR(Calculations!$E$2=\"Orkney Health Board\",Calculations!$E$2=\"Orkney Islands Local Authority\"),$F110=1),0,IF(AND(OR(Calculations!$E$2=\"Shetland Health Board\",Calculations!$E$2=\"Western Isles Health Board\",Calculations!$E$2=\"Shetland Islands Local Authority\",Calculations!$E$2=\"Eilean Siar Local Authority\"),OR($F110=1,$F110=5)),0,hosp_count(VALUE(LEFT(Options!$B$24,2)),$C110,$E110,$F110,2016,$I110,1,$H110,$G110*$H110, Options!$B$8)))","v":11549.811549477199},{"$f":"IF(AND(OR(Calculations!$E$2=\"Orkney Health Board\",Calculations!$E$2=\"Orkney Islands Local Authority\"),$F110=1),0,IF(AND(OR(Calculations!$E$2=\"Shetland Health Board\",Calculations!$E$2=\"Western Isles Health Board\",Calculations!$E$2=\"Shetland Islands Local Authority\",Calculations!$E$2=\"Eilean Siar Local Authority\"),OR($F110=1,$F110=5)),0,hosp_count(VALUE(LEFT(Options!$B$24,2)),$C110,$E110,$F110,2016,$I110+$J110,1,$H110,$G110*$H110, Options!$B$8)))","v":11524.952521863899},{"$f":"IF(AND(OR(Calculations!$E$2=\"Orkney Health Board\",Calculations!$E$2=\"Orkney Islands Local Authority\"),$F110=1),0,IF(AND(OR(Calculations!$E$2=\"Shetland Health Board\",Calculations!$E$2=\"Western Isles Health Board\",Calculations!$E$2=\"Shetland Islands Local Authority\",Calculations!$E$2=\"Eilean Siar Local Authority\"),OR($F110=1,$F110=5)),0,prem_mort(VALUE(LEFT(Options!$B$24,2)),$C110,$E110,$F110,2016,$I110,1,$H110,$G110*$H110,Options!$B$8)))","v":315.15273891390001},{"$f":"IF(AND(OR(Calculations!$E$2=\"Orkney Health Board\",Calculations!$E$2=\"Orkney Islands Local Authority\"),$F110=1),0,IF(AND(OR(Calculations!$E$2=\"Shetland Health Board\",Calculations!$E$2=\"Western Isles Health Board\",Calculations!$E$2=\"Shetland Islands Local Authority\",Calculations!$E$2=\"Eilean Siar Local Authority\"),OR($F110=1,$F110=5)),0,prem_mort(VALUE(LEFT(Options!$B$24,2)),$C110,$E110,$F110,2016,$I110+$J110,1,$H110,$G110*$H110,Options!$B$8)))","v":306.90678220029997},965.4231678528979,940.1629156975248,20486.281552684719,19950.258951427215,35381.116129999995,35304.964225780845,965.4231678528979,940.1629156975248,5792539.0071173878,5640977.4941851487,122917689.31610832,119701553.70856328,212286696.77999997,211829785.35468507,5792539.0071173878,5640977.4941851487,6000]
[null,"Female 65-69",67.063927000000007,85.193929999999995,"female",2,{"$f":"HLOOKUP(Calculations!$E$2,'Prevalence Rates'!$C$3:$BC$249,'Prevalence Rates'!$BD111,FALSE)","v":0},{"$f":"HLOOKUP(Calculations!$E$2,'Population 2016'!$C$3:$BC$249,'Population 2016'!BD111,FALSE)","v":32580},0,{"$f":"HLOOKUP(Results!E$4,Targeting!$C$3:$F$249,Targeting!$G111,FALSE)","v":0},{"$f":"IF(AND(OR(Calculations!$E$2=\"Orkney Health Board\",Calculations!$E$2=\"Orkney Islands Local Authority\"),$F111=1),0,IF(AND(OR(Calculations!$E$2=\"Shetland Health Board\",Calculations!$E$2=\"Western Isles Health Board\",Calculations!$E$2=\"Shetland Islands Local Authority\",Calculations!$E$2=\"Eilean Siar Local Authority\"),OR($F111=1,$F111=5)),0,new_ci(VALUE(LEFT(Options!$B$24,2)),$C111,$E111,$F111,2016,$I111,1,$H111,$G111*$H111,Options!$B$8)))","v":484.80997732200001},{"$f":"IF(AND(OR(Calculations!$E$2=\"Orkney Health Board\",Calculations!$E$2=\"Orkney Islands Local Authority\"),$F111=1),0,IF(AND(OR(Calculations!$E$2=\"Shetland Health Board\",Calculations!$E$2=\"Western Isles Health Board\",Calculations!$E$2=\"Shetland Islands Local Authority\",Calculations!$E$2=\"Eilean Siar Local Authority\"),OR($F111=1,$F111=5)),0,new_ci(VALUE(LEFT(Options!$B$24,2)),$C111,$E111,$F111,2016,$I111+$J111,1,$H111,$G111*$H111,Options!$B$8)))","v":484.80997732200001},{"$f":"IF(AND(OR(Calculations!$E$2=\"Orkney Health Board\",Calculations!$E$2=\"Orkney Islands Local Authority\"),$F111=1),0,IF(AND(OR(Calculations!$E$2=\"Shetland Health Board\",Calculations!$E$2=\"Western Isles Health Board\",Calculations!$E$2=\"Shetland Islands Local Authority\",Calculations!$E$2=\"Eilean Siar Local Authority\"),OR($F111=1,$F111=5)),0,new_yllv2(VALUE(LEFT(Options!$B$24,2)),$C111,$D111,$E111,$F111,2016,$I111,1,$H111,$G111*$H111,Options!$B$8)))","v":8304.7963659558009},{"$f":"IF(AND(OR(Calculations!$E$2=\"Orkney Health Board\",Calculations!$E$2=\"Orkney Islands Local Authority\"),$F111=1),0,IF(AND(OR(Calculations!$E$2=\"Shetland Health Board\",Calculations!$E$2=\"Western Isles Health Board\",Calculations!$E$2=\"Shetland Islands Local Authority\",Calculations!$E$2=\"Eilean Siar Local Authority\"),OR($F111=1,$F111=5)),0,new_yllv2(VALUE(LEFT(Options!$B$24,2)),$C111,$D111,$E111,$F111,2016,$I111+$J111,1,$H111,$G111*$H111,Options!$B$8)))","v":8304.7963659558009},{"$f":"IF(AND(OR(Calculations!$E$2=\"Orkney Health Board\",Calculations!$E$2=\"Orkney Islands Local Authority\"),$F111=1),0,IF(AND(OR(Calculations!$E$2=\"Shetland Health Board\",Calculations!$E$2=\"Western Isles Health Board\",Calculations!$E$2=\"Shetland Islands Local Authority\",Calculations!$E$2=\"Eilean Siar Local Authority\"),OR($F111=1,$F111=5)),0,hosp_count(VALUE(LEFT(Options!$B$24,2)),$C111,$E111,$F111,2016,$I111,1,$H111,$G111*$H111, Options!$B$8)))","v":13110.408911123999},{"$f":"IF(AND(OR(Calculations!$E$2=\"Orkney Health Board\",Calculations!$E$2=\"Orkney Islands Local Authority\"),$F111=1),0,IF(AND(OR(Calculations!$E$2=\"Shetland Health Board\",Calculations!$E$2=\"Western Isles Health Board\",Calculations!$E$2=\"Shetland Islands Local Authority\",Calculations!$E$2=\"Eilean Siar Local Authority\"),OR($F111=1,$F111=5)),0,hosp_count(VALUE(LEFT(Options!$B$24,2)),$C111,$E111,$F111,2016,$I111+$J111,1,$H111,$G111*$H111, Options!$B$8)))","v":13110.408911123999},{"$f":"IF(AND(OR(Calculations!$E$2=\"Orkney Health Board\",Calculations!$E$2=\"Orkney Islands Local Authority\"),$F111=1),0,IF(AND(OR(Calculations!$E$2=\"Shetland Health Board\",Calculations!$E$2=\"Western Isles Health Board\",Calculations!$E$2=\"Shetland Islands Local Authority\",Calculations!$E$2=\"Eilean Siar Local Authority\"),OR($F111=1,$F111=5)),0,prem_mort(VALUE(LEFT(Options!$B$24,2)),$C111,$E111,$F111,2016,$I111,1,$H111,$G111*$H111,Options!$B$8)))","v":484.80997732200001},{"$f":"IF(AND(OR(Calculations!$E$2=\"Orkney Health Board\",Calculations!$E$2=\"Orkney Islands Local Authority\"),$F111=1),0,IF(AND(OR(Calculations!$E$2=\"Shetland Health Board\",Calculations!$E$2=\"Western Isles Health Board\",Calculations!$E$2=\"Shetland Islands Local Authority\",Calculations!$E$2=\"Eilean Siar Local Authority\"),OR($F111=1,$F111=5)),0,prem_mort(VALUE(LEFT(Options!$B$24,2)),$C111,$E111,$F111,2016,$I111+$J111,1,$H111,$G111*$H111,Options!$B$8)))","v":484.80997732200001},1488.0600900000002,1488.0600900000002,25490.473805880298,25490.473805880298,40240.665779999996,40240.665779999996,1488.0600900000002,1488.0600900000002,8184330.495000001,8184330.495000001,140197605.93234164,140197605.93234164,221323661.78999996,221323661.78999996,8184330.495000001,8184330.495000001,5500]
[null,"Female 70-74",71.938164,86.248159999999999,"female",2,{"$f":"HLOOKUP(Calculations!$E$2,'Prevalence Rates'!$C$3:$BC$249,'Prevalence Rates'!$BD112,FALSE)","v":0},{"$f":"HLOOKUP(Calculations!$E$2,'Population 2016'!$C$3:$BC$249,'Population 2016'!BD112,FALSE)","v":25764},0,{"$f":"HLOOKUP(Results!E$4,Targeting!$C$3:$F$249,Targeting!$G112,FALSE)","v":0},{"$f":"IF(AND(OR(Calculations!$E$2=\"Orkney Health Board\",Calculations!$E$2=\"Orkney Islands Local Authority\"),$F112=1),0,IF(AND(OR(Calculations!$E$2=\"Shetland Health Board\",Calculations!$E$2=\"Western Isles Health Board\",Calculations!$E$2=\"Shetland Islands Local Authority\",Calculations!$E$2=\"Eilean Siar Local Authority\"),OR($F112=1,$F112=5)),0,new_ci(VALUE(LEFT(Options!$B$24,2)),$C112,$E112,$F112,2016,$I112,1,$H112,$G112*$H112,Options!$B$8)))","v":578.11489724880005},{"$f":"IF(AND(OR(Calculations!$E$2=\"Orkney Health Board\",Calculations!$E$2=\"Orkney Islands Local Authority\"),$F112=1),0,IF(AND(OR(Calculations!$E$2=\"Shetland Health Board\",Calculations!$E$2=\"Western Isles Health Board\",Calculations!$E$2=\"Shetland Islands Local Authority\",Calculations!$E$2=\"Eilean Siar Local Authority\"),OR($F112=1,$F112=5)),0,new_ci(VALUE(LEFT(Options!$B$24,2)),$C112,$E112,$F112,2016,$I112+$J112,1,$H112,$G112*$H112,Options!$B$8)))","v":578.11489724880005},{"$f":"IF(AND(OR(Calculations!$E$2=\"Orkney Health Board\",Calculations!$E$2=\"Orkney Islands Local Authority\"),$F112=1),0,IF(AND(OR(Calculations!$E$2=\"Shetland Health Board\",Calculations!$E$2=\"Western Isles Health Board\",Calculations!$E$2=\"Shetland Islands Local Authority\",Calculations!$E$2=\"Eilean Siar Local Authority\"),OR($F112=1,$F112=5)),0,new_yllv2(VALUE(LEFT(Options!$B$24,2)),$C112,$D112,$E112,$F112,2016,$I112,1,$H112,$G112*$H112,Options!$B$8)))","v":7694.7069699219001},{"$f":"IF(AND(OR(Calculations!$E$2=\"Orkney Health Board\",Calculations!$E$2=\"Orkney Islands Local Authority\"),$F112=1),0,IF(AND(OR(Calculations!$E$2=\"Shetland Health Board\",Calculations!$E$2=\"Western Isles Health Board\",Calculations!$E$2=\"Shetland Islands Local Authority\",Calculations!$E$2=\"Eilean Siar Local Authority\"),OR($F112=1,$F112=5)),0,new_yllv2(VALUE(LEFT(Options!$B$24,2)),$C112,$D112,$E112,$F112,2016,$I112+$J112,1,$H112,$G112*$H112,Options!$B$8)))","v":7694.7069699219001},{"$f":"IF(AND(OR(Calculations!$E$2=\"Orkney Health Board\",Calculations!$E$2=\"Orkney Islands Local Authority\"),$F112=1),0,IF(AND(OR(Calculations!$E$2=\"Shetland Health Board\",Calculations!$E$2=\"Western Isles Health Board\",Calculations!$E$2=\"Shetland Islands Local Authority\",Calculations!$E$2=\"Eilean Siar Local Authority\"),OR($F112=1,$F112=5)),0,hosp_count(VALUE(LEFT(Options!$B$24,2)),$C112,$E112,$F112,2016,$I112,1,$H112,$G112*$H112, Options!$B$8)))","v":11719.9333841844},{"$f":"IF(AND(OR(Calculations!$E$2=\"Orkney Health Board\",Calculations!$E$2=\"Orkney Islands Local Authority\"),$F112=1),0,IF(AND(OR(Calculations!$E$2=\"Shetland Health Board\",Calculations!$E$2=\"Western Isles Health Board\",Calculations!$E$2=\"Shetland Islands Local Authority\",Calculations!$E$2=\"Eilean Siar Local Authority\"),OR($F112=1,$F112=5)),0,hosp_count(VALUE(LEFT(Options!$B$24,2)),$C112,$E112,$F112,2016,$I112+$J112,1,$H112,$G112*$H112, Options!$B$8)))","v":11719.9333841844},{"$f":"IF(AND(OR(Calculations!$E$2=\"Orkney Health Board\",Calculations!$E$2=\"Orkney Islands Local Authority\"),$F112=1),0,IF(AND(OR(Calculations!$E$2=\"Shetland Health Board\",Calculations!$E$2=\"Western Isles Health Board\",Calculations!$E$2=\"Shetland Islands Local Authority\",Calculations!$E$2=\"Eilean Siar Local Authority\"),OR($F112=1,$F112=5)),0,prem_mort(VALUE(LEFT(Options!$B$24,2)),$C112,$E112,$F112,2016,$I112,1,$H112,$G112*$H112,Options!$B$8)))","v":578.11489724880005},{"$f":"IF(AND(OR(Calculations!$E$2=\"Orkney Health Board\",Calculations!$E$2=\"Orkney Islands Local Authority\"),$F112=1),0,IF(AND(OR(Calculations!$E$2=\"Shetland Health Board\",Calculations!$E$2=\"Western Isles Health Board\",Calculations!$E$2=\"Shetland Islands Local Authority\",Calculations!$E$2=\"Eilean Siar Local Authority\"),OR($F112=1,$F112=5)),0,prem_mort(VALUE(LEFT(Options!$B$24,2)),$C112,$E112,$F112,2016,$I112+$J112,1,$H112,$G112*$H112,Options!$B$8)))","v":578.11489724880005},2243.8864200000003,2243.8864200000003,29866.119274654167,29866.119274654167,45489.572210000006,45489.572210000006,2243.8864200000003,2243.8864200000003,11219432.100000001,11219432.100000001,149330596.37327084,149330596.37327084,227447861.05000004,227447861.05000004,11219432.100000001,11219432.100000001,5000]
[null,"Female 75-79",76.942824999999999,87.812830000000005,"female",2,{"$f":"HLOOKUP(Calculations!$E$2,'Prevalence Rates'!$C$3:$BC$249,'Prevalence Rates'!$BD113,FALSE)","v":0},{"$f":"HLOOKUP(Calculations!$E$2,'Population 2016'!$C$3:$BC$249,'Population 2016'!BD113,FALSE)","v":22167},0,{"$f":"HLOOKUP(Results!E$4,Targeting!$C$3:$F$249,Targeting!$G113,FALSE)","v":0},{"$f":"IF(AND(OR(Calculations!$E$2=\"Orkney Health Board\",Calculations!$E$2=\"Orkney Islands Local Authority\"),$F113=1),0,IF(AND(OR(Calculations!$E$2=\"Shetland Health Board\",Calculations!$E$2=\"Western Isles Health Board\",Calculations!$E$2=\"Shetland Islands Local Authority\",Calculations!$E$2=\"Eilean Siar Local Authority\"),OR($F113=1,$F113=5)),0,new_ci(VALUE(LEFT(Options!$B$24,2)),$C113,$E113,$F113,2016,$I113,1,$H113,$G113*$H113,Options!$B$8)))","v":756.7818987078},{"$f":"IF(AND(OR(Calculations!$E$2=\"Orkney Health Board\",Calculations!$E$2=\"Orkney Islands Local Authority\"),$F113=1),0,IF(AND(OR(Calculations!$E$2=\"Shetland Health Board\",Calculations!$E$2=\"Western Isles Health Board\",Calculations!$E$2=\"Shetland Islands Local Authority\",Calculations!$E$2=\"Eilean Siar Local Authority\"),OR($F113=1,$F113=5)),0,new_ci(VALUE(LEFT(Options!$B$24,2)),$C113,$E113,$F113,2016,$I113+$J113,1,$H113,$G113*$H113,Options!$B$8)))","v":756.7818987078},{"$f":"IF(AND(OR(Calculations!$E$2=\"Orkney Health Board\",Calculations!$E$2=\"Orkney Islands Local Authority\"),$F113=1),0,IF(AND(OR(Calculations!$E$2=\"Shetland Health Board\",Calculations!$E$2=\"Western Isles Health Board\",Calculations!$E$2=\"Shetland Islands Local Authority\",Calculations!$E$2=\"Eilean Siar Local Authority\"),OR($F113=1,$F113=5)),0,new_yllv2(VALUE(LEFT(Options!$B$24,2)),$C113,$D113,$E113,$F113,2016,$I113,1,$H113,$G113*$H113,Options!$B$8)))","v":7469.4411241554999},{"$f":"IF(AND(OR(Calculations!$E$2=\"Orkney Health Board\",Calculations!$E$2=\"Orkney Islands Local Authority\"),$F113=1),0,IF(AND(OR(Calculations!$E$2=\"Shetland Health Board\",Calculations!$E$2=\"Western Isles Health Board\",Calculations!$E$2=\"Shetland Islands Local Authority\",Calculations!$E$2=\"Eilean Siar Local Authority\"),OR($F113=1,$F113=5)),0,new_yllv2(VALUE(LEFT(Options!$B$24,2)),$C113,$D113,$E113,$F113,2016,$I113+$J113,1,$H113,$G113*$H113,Options!$B$8)))","v":7469.4411241554999},{"$f":"IF(AND(OR(Calculations!$E$2=\"Orkney Health Board\",Calculations!$E$2=\"Orkney Islands Local Authority\"),$F113=1),0,IF(AND(OR(Calculations!$E$2=\"Shetland Health Board\",Calculations!$E$2=\"Western Isles Health Board\",Calculations!$E$2=\"Shetland Islands Local Authority\",Calculations!$E$2=\"Eilean Siar Local Authority\"),OR($F113=1,$F113=5)),0,hosp_count(VALUE(LEFT(Options!$B$24,2)),$C113,$E113,$F113,2016,$I113,1,$H113,$G113*$H113, Options!$B$8)))","v":11436.4236510261},{"$f":"IF(AND(OR(Calculations!$E$2=\"Orkney Health Board\",Calculations!$E$2=\"Orkney Islands Local Authority\"),$F113=1),0,IF(AND(OR(Calculations!$E$2=\"Shetland Health Board\",Calculations!$E$2=\"Western Isles Health Board\",Calculations!$E$2=\"Shetland Islands Local Authority\",Calculations!$E$2=\"Eilean Siar Local Authority\"),OR($F113=1,$F113=5)),0,hosp_count(VALUE(LEFT(Options!$B$24,2)),$C113,$E113,$F113,2016,$I113+$J113,1,$H113,$G113*$H113, Options!$B$8)))","v":11436.4236510261},{"$f":"IF(AND(OR(Calculations!$E$2=\"Orkney Health Board\",Calculations!$E$2=\"Orkney Islands Local Authority\"),$F113=1),0,IF(AND(OR(Calculations!$E$2=\"Shetland Health Board\",Calculations!$E$2=\"Western Isles Health Board\",Calculations!$E$2=\"Shetland Islands Local Authority\",Calculations!$E$2=\"Eilean Siar Local Authority\"),OR($F113=1,$F113=5)),0,prem_mort(VALUE(LEFT(Options!$B$24,2)),$C113,$E113,$F113,2016,$I113,1,$H113,$G113*$H113,Options!$B$8)))","v":0},{"$f":"IF(AND(OR(Calculations!$E$2=\"Orkney Health Board\",Calculations!$E$2=\"Orkney Islands Local Authority\"),$F113=1),0,IF(AND(OR(Calculations!$E$2=\"Shetland Health Board\",Calculations!$E$2=\"Western Isles Health Board\",Calculations!$E$2=\"Shetland Islands Local Authority\",Calculations!$E$2=\"Eilean Siar Local Authority\"),OR($F113=1,$F113=5)),0,prem_mort(VALUE(LEFT(Options!$B$24,2)),$C113,$E113,$F113,2016,$I113+$J113,1,$H113,$G113*$H113,Options!$B$8)))","v":0},3414.0023400000005,3414.0023400000005,33696.220165811792,33696.220165811792,51592.112829999991,51592.112829999991,0,0,13656009.360000001,13656009.360000001,134784880.66324717,134784880.66324717,206368451.31999996,206368451.31999996,0,0,4000]
[null,"Female 80-84",81.856712000000002,89.736710000000002,"female",2,{"$f":"HLOOKUP(Calculations!$E$2,'Prevalence Rates'!$C$3:$BC$249,'Prevalence Rates'!$BD114,FALSE)","v":0},{"$f":"HLOOKUP(Calculations!$E$2,'Population 2016'!$C$3:$BC$249,'Population 2016'!BD114,FALSE)","v":17470},0,{"$f":"HLOOKUP(Results!E$4,Targeting!$C$3:$F$249,Targeting!$G114,FALSE)","v":0},{"$f":"IF(AND(OR(Calculations!$E$2=\"Orkney Health Board\",Calculations!$E$2=\"Orkney Islands Local Authority\"),$F114=1),0,IF(AND(OR(Calculations!$E$2=\"Shetland Health Board\",Calculations!$E$2=\"Western Isles Health Board\",Calculations!$E$2=\"Shetland Islands Local Authority\",Calculations!$E$2=\"Eilean Siar Local Authority\"),OR($F114=1,$F114=5)),0,new_ci(VALUE(LEFT(Options!$B$24,2)),$C114,$E114,$F114,2016,$I114,1,$H114,$G114*$H114,Options!$B$8)))","v":897.80893023700003},{"$f":"IF(AND(OR(Calculations!$E$2=\"Orkney Health Board\",Calculations!$E$2=\"Orkney Islands Local Authority\"),$F114=1),0,IF(AND(OR(Calculations!$E$2=\"Shetland Health Board\",Calculations!$E$2=\"Western Isles Health Board\",Calculations!$E$2=\"Shetland Islands Local Authority\",Calculations!$E$2=\"Eilean Siar Local Authority\"),OR($F114=1,$F114=5)),0,new_ci(VALUE(LEFT(Options!$B$24,2)),$C114,$E114,$F114,2016,$I114+$J114,1,$H114,$G114*$H114,Options!$B$8)))","v":897.80893023700003},{"$f":"IF(AND(OR(Calculations!$E$2=\"Orkney Health Board\",Calculations!$E$2=\"Orkney Islands Local Authority\"),$F114=1),0,IF(AND(OR(Calculations!$E$2=\"Shetland Health Board\",Calculations!$E$2=\"Western Isles Health Board\",Calculations!$E$2=\"Shetland Islands Local Authority\",Calculations!$E$2=\"Eilean Siar Local Authority\"),OR($F114=1,$F114=5)),0,new_yllv2(VALUE(LEFT(Options!$B$24,2)),$C114,$D114,$E114,$F114,2016,$I114,1,$H114,$G114*$H114,Options!$B$8)))","v":6176.9236444127},{"$f":"IF(AND(OR(Calculations!$E$2=\"Orkney Health Board\",Calculations!$E$2=\"Orkney Islands Local Authority\"),$F114=1),0,IF(AND(OR(Calculations!$E$2=\"Shetland Health Board\",Calculations!$E$2=\"Western Isles Health Board\",Calculations!$E$2=\"Shetland Islands Local Authority\",Calculations!$E$2=\"Eilean Siar Local Authority\"),OR($F114=1,$F114=5)),0,new_yllv2(VALUE(LEFT(Options!$B$24,2)),$C114,$D114,$E114,$F114,2016,$I114+$J114,1,$H114,$G114*$H114,Options!$B$8)))","v":6176.9236444127},{"$f":"IF(AND(OR(Calculations!$E$2=\"Orkney Health Board\",Calculations!$E$2=\"Orkney Islands Local Authority\"),$F114=1),0,IF(AND(OR(Calculations!$E$2=\"Shetland Health Board\",Calculations!$E$2=\"Western Isles Health Board\",Calculations!$E$2=\"Shetland Islands Local Authority\",Calculations!$E$2=\"Eilean Siar Local Authority\"),OR($F114=1,$F114=5)),0,hosp_count(VALUE(LEFT(Options!$B$24,2)),$C114,$E114,$F114,2016,$I114,1,$H114,$G114*$H114, Options!$B$8)))","v":10198.963905691},{"$f":"IF(AND(OR(Calculations!$E$2=\"Orkney Health Board\",Calculations!$E$2=\"Orkney Islands Local Authority\"),$F114=1),0,IF(AND(OR(Calculations!$E$2=\"Shetland Health Board\",Calculations!$E$2=\"Western Isles Health Board\",Calculations!$E$2=\"Shetland Islands Local Authority\",Calculations!$E$2=\"Eilean Siar Local Authority\"),OR($F114=1,$F114=5)),0,hosp_count(VALUE(LEFT(Options!$B$24,2)),$C114,$E114,$F114,2016,$I114+$J114,1,$H114,$G114*$H114, Options!$B$8)))","v":10198.963905691},{"$f":"IF(AND(OR(Calculations!$E$2=\"Orkney Health Board\",Calculations!$E$2=\"Orkney Islands Local Authority\"),$F114=1),0,IF(AND(OR(Calculations!$E$2=\"Shetland Health Board\",Calculations!$E$2=\"Western Isles Health Board\",Calculations!$E$2=\"Shetland Islands Local Authority\",Calculations!$E$2=\"Eilean Siar Local Authority\"),OR($F114=1,$F114=5)),0,prem_mort(VALUE(LEFT(Options!$B$24,2)),$C114,$E114,$F114,2016,$I114,1,$H114,$G114*$H114,Options!$B$8)))","v":0},{"$f":"IF(AND(OR(Calculations!$E$2=\"Orkney Health Board\",Calculations!$E$2=\"Orkney Islands Local Authority\"),$F114=1),0,IF(AND(OR(Calculations!$E$2=\"Shetland Health Board\",Calculations!$E$2=\"Western Isles Health Board\",Calculations!$E$2=\"Shetland Islands Local Authority\",Calculations!$E$2=\"Eilean Siar Local Authority\"),OR($F114=1,$F114=5)),0,prem_mort(VALUE(LEFT(Options!$B$24,2)),$C114,$E114,$F114,2016,$I114+$J114,1,$H114,$G114*$H114,Options!$B$8)))","v":0},5139.14671,5139.14671,35357.319086506584,35357.319086506584,58379.873530000004,58379.873530000004,0,0,12847866.775,12847866.775,88393297.716266468,88393297.716266468,145949683.82500002,145949683.82500002,0,0,2500]
[null,"Female 85-89",86.730819999999994,92.220819999999989,"female",2,{"$f":"HLOOKUP(Calculations!$E$2,'Prevalence Rates'!$C$3:$BC$249,'Prevalence Rates'!$BD115,FALSE)","v":0},{"$f":"HLOOKUP(Calculations!$E$2,'Population 2016'!$C$3:$BC$249,'Population 2016'!BD115,FALSE)","v":10411},0,{"$f":"HLOOKUP(Results!E$4,Targeting!$C$3:$F$249,Targeting!$G115,FALSE)","v":0},{"$f":"IF(AND(OR(Calculations!$E$2=\"Orkney Health Board\",Calculations!$E$2=\"Orkney Islands Local Authority\"),$F115=1),0,IF(AND(OR(Calculations!$E$2=\"Shetland Health Board\",Calculations!$E$2=\"Western Isles Health Board\",Calculations!$E$2=\"Shetland Islands Local Authority\",Calculations!$E$2=\"Eilean Siar Local Authority\"),OR($F115=1,$F115=5)),0,new_ci(VALUE(LEFT(Options!$B$24,2)),$C115,$E115,$F115,2016,$I115,1,$H115,$G115*$H115,Options!$B$8)))","v":799.10903140640005},{"$f":"IF(AND(OR(Calculations!$E$2=\"Orkney Health Board\",Calculations!$E$2=\"Orkney Islands Local Authority\"),$F115=1),0,IF(AND(OR(Calculations!$E$2=\"Shetland Health Board\",Calculations!$E$2=\"Western Isles Health Board\",Calculations!$E$2=\"Shetland Islands Local Authority\",Calculations!$E$2=\"Eilean Siar Local Authority\"),OR($F115=1,$F115=5)),0,new_ci(VALUE(LEFT(Options!$B$24,2)),$C115,$E115,$F115,2016,$I115+$J115,1,$H115,$G115*$H115,Options!$B$8)))","v":799.10903140640005},{"$f":"IF(AND(OR(Calculations!$E$2=\"Orkney Health Board\",Calculations!$E$2=\"Orkney Islands Local Authority\"),$F115=1),0,IF(AND(OR(Calculations!$E$2=\"Shetland Health Board\",Calculations!$E$2=\"Western Isles Health Board\",Calculations!$E$2=\"Shetland Islands Local Authority\",Calculations!$E$2=\"Eilean Siar Local Authority\"),OR($F115=1,$F115=5)),0,new_yllv2(VALUE(LEFT(Options!$B$24,2)),$C115,$D115,$E115,$F115,2016,$I115,1,$H115,$G115*$H115,Options!$B$8)))","v":3587.9995510147},{"$f":"IF(AND(OR(Calculations!$E$2=\"Orkney Health Board\",Calculations!$E$2=\"Orkney Islands Local Authority\"),$F115=1),0,IF(AND(OR(Calculations!$E$2=\"Shetland Health Board\",Calculations!$E$2=\"Western Isles Health Board\",Calculations!$E$2=\"Shetland Islands Local Authority\",Calculations!$E$2=\"Eilean Siar Local Authority\"),OR($F115=1,$F115=5)),0,new_yllv2(VALUE(LEFT(Options!$B$24,2)),$C115,$D115,$E115,$F115,2016,$I115+$J115,1,$H115,$G115*$H115,Options!$B$8)))","v":3587.9995510147},{"$f":"IF(AND(OR(Calculations!$E$2=\"Orkney Health Board\",Calculations!$E$2=\"Orkney Islands Local Authority\"),$F115=1),0,IF(AND(OR(Calculations!$E$2=\"Shetland Health Board\",Calculations!$E$2=\"Western Isles Health Board\",Calculations!$E$2=\"Shetland Islands Local Authority\",Calculations!$E$2=\"Eilean Siar Local Authority\"),OR($F115=1,$F115=5)),0,hosp_count(VALUE(LEFT(Options!$B$24,2)),$C115,$E115,$F115,2016,$I115,1,$H115,$G115*$H115, Options!$B$8)))","v":6870.6983567419002},{"$f":"IF(AND(OR(Calculations!$E$2=\"Orkney Health Board\",Calculations!$E$2=\"Orkney Islands Local Authority\"),$F115=1),0,IF(AND(OR(Calculations!$E$2=\"Shetland Health Board\",Calculations!$E$2=\"Western Isles Health Board\",Calculations!$E$2=\"Shetland Islands Local Authority\",Calculations!$E$2=\"Eilean Siar Local Authority\"),OR($F115=1,$F115=5)),0,hosp_count(VALUE(LEFT(Options!$B$24,2)),$C115,$E115,$F115,2016,$I115+$J115,1,$H115,$G115*$H115, Options!$B$8)))","v":6870.6983567419002},{"$f":"IF(AND(OR(Calculations!$E$2=\"Orkney Health Board\",Calculations!$E$2=\"Orkney Islands Local Authority\"),$F115=1),0,IF(AND(OR(Calculations!$E$2=\"Shetland Health Board\",Calculations!$E$2=\"Western Isles Health Board\",Calculations!$E$2=\"Shetland Islands Local Authority\",Calculations!$E$2=\"Eilean Siar Local Authority\"),OR($F115=1,$F115=5)),0,prem_mort(VALUE(LEFT(Options!$B$24,2)),$C115,$E115,$F115,2016,$I115,1,$H115,$G115*$H115,Options!$B$8)))","v":0},{"$f":"IF(AND(OR(Calculations!$E$2=\"Orkney Health Board\",Calculations!$E$2=\"Orkney Islands Local Authority\"),$F115=1),0,IF(AND(OR(Calculations!$E$2=\"Shetland Health Board\",Calculations!$E$2=\"Western Isles Health Board\",Calculations!$E$2=\"Shetland Islands Local Authority\",Calculations!$E$2=\"Eilean Siar Local Authority\"),OR($F115=1,$F115=5)),0,prem_mort(VALUE(LEFT(Options!$B$24,2)),$C115,$E115,$F115,2016,$I115+$J115,1,$H115,$G115*$H115,Options!$B$8)))","v":0},7675.6222400000006,7675.6222400000006,34463.543857599652,34463.543857599652,65994.605290000007,65994.605290000007,0,0,11513433.360000001,11513433.360000001,51695315.786399476,51695315.786399476,98991907.935000017,98991907.935000017,0,0,1500]
[null,"Female 90+",92.779342999999997,96.279340000000005,"female",2,{"$f":"HLOOKUP(Calculations!$E$2,'Prevalence Rates'!$C$3:$BC$249,'Prevalence Rates'!$BD116,FALSE)","v":0},{"$f":"HLOOKUP(Calculations!$E$2,'Population 2016'!$C$3:$BC$249,'Population 2016'!BD116,FALSE)","v":5892},0,{"$f":"HLOOKUP(Results!E$4,Targeting!$C$3:$F$249,Targeting!$G116,FALSE)","v":0},{"$f":"IF(AND(OR(Calculations!$E$2=\"Orkney Health Board\",Calculations!$E$2=\"Orkney Islands Local Authority\"),$F116=1),0,IF(AND(OR(Calculations!$E$2=\"Shetland Health Board\",Calculations!$E$2=\"Western Isles Health Board\",Calculations!$E$2=\"Shetland Islands Local Authority\",Calculations!$E$2=\"Eilean Siar Local Authority\"),OR($F116=1,$F116=5)),0,new_ci(VALUE(LEFT(Options!$B$24,2)),$C116,$E116,$F116,2016,$I116,1,$H116,$G116*$H116,Options!$B$8)))","v":736.7865639012},{"$f":"IF(AND(OR(Calculations!$E$2=\"Orkney Health Board\",Calculations!$E$2=\"Orkney Islands Local Authority\"),$F116=1),0,IF(AND(OR(Calculations!$E$2=\"Shetland Health Board\",Calculations!$E$2=\"Western Isles Health Board\",Calculations!$E$2=\"Shetland Islands Local Authority\",Calculations!$E$2=\"Eilean Siar Local Authority\"),OR($F116=1,$F116=5)),0,new_ci(VALUE(LEFT(Options!$B$24,2)),$C116,$E116,$F116,2016,$I116+$J116,1,$H116,$G116*$H116,Options!$B$8)))","v":736.7865639012},{"$f":"IF(AND(OR(Calculations!$E$2=\"Orkney Health Board\",Calculations!$E$2=\"Orkney Islands Local Authority\"),$F116=1),0,IF(AND(OR(Calculations!$E$2=\"Shetland Health Board\",Calculations!$E$2=\"Western Isles Health Board\",Calculations!$E$2=\"Shetland Islands Local Authority\",Calculations!$E$2=\"Eilean Siar Local Authority\"),OR($F116=1,$F116=5)),0,new_yllv2(VALUE(LEFT(Options!$B$24,2)),$C116,$D116,$E116,$F116,2016,$I116,1,$H116,$G116*$H116,Options!$B$8)))","v":1841.9641993933001},{"$f":"IF(AND(OR(Calculations!$E$2=\"Orkney Health Board\",Calculations!$E$2=\"Orkney Islands Local Authority\"),$F116=1),0,IF(AND(OR(Calculations!$E$2=\"Shetland Health Board\",Calculations!$E$2=\"Western Isles Health Board\",Calculations!$E$2=\"Shetland Islands Local Authority\",Calculations!$E$2=\"Eilean Siar Local Authority\"),OR($F116=1,$F116=5)),0,new_yllv2(VALUE(LEFT(Options!$B$24,2)),$C116,$D116,$E116,$F116,2016,$I116+$J116,1,$H116,$G116*$H116,Options!$B$8)))","v":1841.9641993933001},{"$f":"IF(AND(OR(Calculations!$E$2=\"Orkney Health Board\",Calculations!$E$2=\"Orkney Islands Local Authority\"),$F116=1),0,IF(AND(OR(Calculations!$E$2=\"Shetland Health Board\",Calculations!$E$2=\"Western Isles Health Board\",Calculations!$E$2=\"Shetland Islands Local Authority\",Calculations!$E$2=\"Eilean Siar Local Authority\"),OR($F116=1,$F116=5)),0,hosp_count(VALUE(LEFT(Options!$B$24,2)),$C116,$E116,$F116,2016,$I116,1,$H116,$G116*$H116, Options!$B$8)))","v":4527.3690442404004},{"$f":"IF(AND(OR(Calculations!$E$2=\"Orkney Health Board\",Calculations!$E$2=\"Orkney Islands Local Authority\"),$F116=1),0,IF(AND(OR(Calculations!$E$2=\"Shetland Health Board\",Calculations!$E$2=\"Western Isles Health Board\",Calculations!$E$2=\"Shetland Islands Local Authority\",Calculations!$E$2=\"Eilean Siar Local Authority\"),OR($F116=1,$F116=5)),0,hosp_count(VALUE(LEFT(Options!$B$24,2)),$C116,$E116,$F116,2016,$I116+$J116,1,$H116,$G116*$H116, Options!$B$8)))","v":4527.3690442404004},{"$f":"IF(AND(OR(Calculations!$E$2=\"Orkney Health Board\",Calculations!$E$2=\"Orkney Islands Local Authority\"),$F116=1),0,IF(AND(OR(Calculations!$E$2=\"Shetland Health Board\",Calculations!$E$2=\"Western Isles Health Board\",Calculations!$E$2=\"Shetland Islands Local Authority\",Calculations!$E$2=\"Eilean Siar Local Authority\"),OR($F116=1,$F116=5)),0,prem_mort(VALUE(LEFT(Options!$B$24,2)),$C116,$E116,$F116,2016,$I116,1,$H116,$G116*$H116,Options!$B$8)))","v":0},{"$f":"IF(AND(OR(Calculations!$E$2=\"Orkney Health Board\",Calculations!$E$2=\"Orkney Islands Local Authority\"),$F116=1),0,IF(AND(OR(Calculations!$E$2=\"Shetland Health Board\",Calculations!$E$2=\"Western Isles Health Board\",Calculations!$E$2=\"Shetland Islands Local Authority\",Calculations!$E$2=\"Eilean Siar Local Authority\"),OR($F116=1,$F116=5)),0,prem_mort(VALUE(LEFT(Options!$B$24,2)),$C116,$E116,$F116,2016,$I116+$J116,1,$H116,$G116*$H116,Options!$B$8)))","v":0},12504.86361,12504.86361,31262.12151040903,31262.12151040903,76839.257370000007,76839.257370000007,0,0,12504863.609999999,12504863.609999999,31262121.510409031,31262121.510409031,76839257.370000005,76839257.370000005,0,0,1000]
[null,"Male 0-4",2.0320822999999999,77.402082000000007,"male",2,{"$f":"HLOOKUP(Calculations!$E$2,'Prevalence Rates'!$C$3:$BC$249,'Prevalence Rates'!$BD117,FALSE)","v":0},{"$f":"HLOOKUP(Calculations!$E$2,'Population 2016'!$C$3:$BC$249,'Population 2016'!BD117,FALSE)","v":0},0,{"$f":"HLOOKUP(Results!E$4,Targeting!$C$3:$F$249,Targeting!$G117,FALSE)","v":0},{"$f":"IF(AND(OR(Calculations!$E$2=\"Orkney Health Board\",Calculations!$E$2=\"Orkney Islands Local Authority\"),$F117=1),0,IF(AND(OR(Calculations!$E$2=\"Shetland Health Board\",Calculations!$E$2=\"Western Isles Health Board\",Calculations!$E$2=\"Shetland Islands Local Authority\",Calculations!$E$2=\"Eilean Siar Local Authority\"),OR($F117=1,$F117=5)),0,new_ci(VALUE(LEFT(Options!$B$24,2)),$C117,$E117,$F117,2016,$I117,1,$H117,$G117*$H117,Options!$B$8)))","v":{"$error":"#VALUE!"}},{"$f":"IF(AND(OR(Calculations!$E$2=\"Orkney Health Board\",Calculations!$E$2=\"Orkney Islands Local Authority\"),$F117=1),0,IF(AND(OR(Calculations!$E$2=\"Shetland Health Board\",Calculations!$E$2=\"Western Isles Health Board\",Calculations!$E$2=\"Shetland Islands Local Authority\",Calculations!$E$2=\"Eilean Siar Local Authority\"),OR($F117=1,$F117=5)),0,new_ci(VALUE(LEFT(Options!$B$24,2)),$C117,$E117,$F117,2016,$I117+$J117,1,$H117,$G117*$H117,Options!$B$8)))","v":{"$error":"#VALUE!"}},{"$f":"IF(AND(OR(Calculations!$E$2=\"Orkney Health Board\",Calculations!$E$2=\"Orkney Islands Local Authority\"),$F117=1),0,IF(AND(OR(Calculations!$E$2=\"Shetland Health Board\",Calculations!$E$2=\"Western Isles Health Board\",Calculations!$E$2=\"Shetland Islands Local Authority\",Calculations!$E$2=\"Eilean Siar Local Authority\"),OR($F117=1,$F117=5)),0,new_yllv2(VALUE(LEFT(Options!$B$24,2)),$C117,$D117,$E117,$F117,2016,$I117,1,$H117,$G117*$H117,Options!$B$8)))","v":{"$error":"#VALUE!"}},{"$f":"IF(AND(OR(Calculations!$E$2=\"Orkney Health Board\",Calculations!$E$2=\"Orkney Islands Local Authority\"),$F117=1),0,IF(AND(OR(Calculations!$E$2=\"Shetland Health Board\",Calculations!$E$2=\"Western Isles Health Board\",Calculations!$E$2=\"Shetland Islands Local Authority\",Calculations!$E$2=\"Eilean Siar Local Authority\"),OR($F117=1,$F117=5)),0,new_yllv2(VALUE(LEFT(Options!$B$24,2)),$C117,$D117,$E117,$F117,2016,$I117+$J117,1,$H117,$G117*$H117,Options!$B$8)))","v":{"$error":"#VALUE!"}},{"$f":"IF(AND(OR(Calculations!$E$2=\"Orkney Health Board\",Calculations!$E$2=\"Orkney Islands Local Authority\"),$F117=1),0,IF(AND(OR(Calculations!$E$2=\"Shetland Health Board\",Calculations!$E$2=\"Western Isles Health Board\",Calculations!$E$2=\"Shetland Islands Local Authority\",Calculations!$E$2=\"Eilean Siar Local Authority\"),OR($F117=1,$F117=5)),0,hosp_count(VALUE(LEFT(Options!$B$24,2)),$C117,$E117,$F117,2016,$I117,1,$H117,$G117*$H117, Options!$B$8)))","v":{"$error":"#VALUE!"}},{"$f":"IF(AND(OR(Calculations!$E$2=\"Orkney Health Board\",Calculations!$E$2=\"Orkney Islands Local Authority\"),$F117=1),0,IF(AND(OR(Calculations!$E$2=\"Shetland Health Board\",Calculations!$E$2=\"Western Isles Health Board\",Calculations!$E$2=\"Shetland Islands Local Authority\",Calculations!$E$2=\"Eilean Siar Local Authority\"),OR($F117=1,$F117=5)),0,hosp_count(VALUE(LEFT(Options!$B$24,2)),$C117,$E117,$F117,2016,$I117+$J117,1,$H117,$G117*$H117, Options!$B$8)))","v":{"$error":"#VALUE!"}},{"$f":"IF(AND(OR(Calculations!$E$2=\"Orkney Health Board\",Calculations!$E$2=\"Orkney Islands Local Authority\"),$F117=1),0,IF(AND(OR(Calculations!$E$2=\"Shetland Health Board\",Calculations!$E$2=\"Western Isles Health Board\",Calculations!$E$2=\"Shetland Islands Local Authority\",Calculations!$E$2=\"Eilean Siar Local Authority\"),OR($F117=1,$F117=5)),0,prem_mort(VALUE(LEFT(Options!$B$24,2)),$C117,$E117,$F117,2016,$I117,1,$H117,$G117*$H117,Options!$B$8)))","v":{"$error":"#VALUE!"}},{"$f":"IF(AND(OR(Calculations!$E$2=\"Orkney Health Board\",Calculations!$E$2=\"Orkney Islands Local Authority\"),$F117=1),0,IF(AND(OR(Calculations!$E$2=\"Shetland Health Board\",Calculations!$E$2=\"Western Isles Health Board\",Calculations!$E$2=\"Shetland Islands Local Authority\",Calculations!$E$2=\"Eilean Siar Local Authority\"),OR($F117=1,$F117=5)),0,prem_mort(VALUE(LEFT(Options!$B$24,2)),$C117,$E117,$F117,2016,$I117+$J117,1,$H117,$G117*$H117,Options!$B$8)))","v":{"$error":"#VALUE!"}},{"$error":"#VALUE!"},{"$error":"#VALUE!"},{"$error":"#VALUE!"},{"$error":"#VALUE!"},{"$error":"#VALUE!"},{"$error":"#VALUE!"},{"$error":"#VALUE!"},{"$error":"#VALUE!"},{"$error":"#VALUE!"},{"$error":"#VALUE!"},{"$error":"#VALUE!"},{"$error":"#VALUE!"},{"$error":"#VALUE!"},{"$error":"#VALUE!"},{"$error":"#VALUE!"},{"$error":"#VALUE!"},5000]
[null,"Male 5-9",6.9784756000000003,77.398476000000002,"male",2,{"$f":"HLOOKUP(Calculations!$E$2,'Prevalence Rates'!$C$3:$BC$249,'Prevalence Rates'!$BD118,FALSE)","v":0},{"$f":"HLOOKUP(Calculations!$E$2,'Population 2016'!$C$3:$BC$249,'Population 2016'!BD118,FALSE)","v":0},0,{"$f":"HLOOKUP(Results!E$4,Targeting!$C$3:$F$249,Targeting!$G118,FALSE)","v":0},{"$f":"IF(AND(OR(Calculations!$E$2=\"Orkney Health Board\",Calculations!$E$2=\"Orkney Islands Local Authority\"),$F118=1),0,IF(AND(OR(Calculations!$E$2=\"Shetland Health Board\",Calculations!$E$2=\"Western Isles Health Board\",Calculations!$E$2=\"Shetland Islands Local Authority\",Calculations!$E$2=\"Eilean Siar Local Authority\"),OR($F118=1,$F118=5)),0,new_ci(VALUE(LEFT(Options!$B$24,2)),$C118,$E118,$F118,2016,$I118,1,$H118,$G118*$H118,Options!$B$8)))","v":{"$error":"#VALUE!"}},{"$f":"IF(AND(OR(Calculations!$E$2=\"Orkney Health Board\",Calculations!$E$2=\"Orkney Islands Local Authority\"),$F118=1),0,IF(AND(OR(Calculations!$E$2=\"Shetland Health Board\",Calculations!$E$2=\"Western Isles Health Board\",Calculations!$E$2=\"Shetland Islands Local Authority\",Calculations!$E$2=\"Eilean Siar Local Authority\"),OR($F118=1,$F118=5)),0,new_ci(VALUE(LEFT(Options!$B$24,2)),$C118,$E118,$F118,2016,$I118+$J118,1,$H118,$G118*$H118,Options!$B$8)))","v":{"$error":"#VALUE!"}},{"$f":"IF(AND(OR(Calculations!$E$2=\"Orkney Health Board\",Calculations!$E$2=\"Orkney Islands Local Authority\"),$F118=1),0,IF(AND(OR(Calculations!$E$2=\"Shetland Health Board\",Calculations!$E$2=\"Western Isles Health Board\",Calculations!$E$2=\"Shetland Islands Local Authority\",Calculations!$E$2=\"Eilean Siar Local Authority\"),OR($F118=1,$F118=5)),0,new_yllv2(VALUE(LEFT(Options!$B$24,2)),$C118,$D118,$E118,$F118,2016,$I118,1,$H118,$G118*$H118,Options!$B$8)))","v":{"$error":"#VALUE!"}},{"$f":"IF(AND(OR(Calculations!$E$2=\"Orkney Health Board\",Calculations!$E$2=\"Orkney Islands Local Authority\"),$F118=1),0,IF(AND(OR(Calculations!$E$2=\"Shetland Health Board\",Calculations!$E$2=\"Western Isles Health Board\",Calculations!$E$2=\"Shetland Islands Local Authority\",Calculations!$E$2=\"Eilean Siar Local Authority\"),OR($F118=1,$F118=5)),0,new_yllv2(VALUE(LEFT(Options!$B$24,2)),$C118,$D118,$E118,$F118,2016,$I118+$J118,1,$H118,$G118*$H118,Options!$B$8)))","v":{"$error":"#VALUE!"}},{"$f":"IF(AND(OR(Calculations!$E$2=\"Orkney Health Board\",Calculations!$E$2=\"Orkney Islands Local Authority\"),$F118=1),0,IF(AND(OR(Calculations!$E$2=\"Shetland Health Board\",Calculations!$E$2=\"Western Isles Health Board\",Calculations!$E$2=\"Shetland Islands Local Authority\",Calculations!$E$2=\"Eilean Siar Local Authority\"),OR($F118=1,$F118=5)),0,hosp_count(VALUE(LEFT(Options!$B$24,2)),$C118,$E118,$F118,2016,$I118,1,$H118,$G118*$H118, Options!$B$8)))","v":{"$error":"#VALUE!"}},{"$f":"IF(AND(OR(Calculations!$E$2=\"Orkney Health Board\",Calculations!$E$2=\"Orkney Islands Local Authority\"),$F118=1),0,IF(AND(OR(Calculations!$E$2=\"Shetland Health Board\",Calculations!$E$2=\"Western Isles Health Board\",Calculations!$E$2=\"Shetland Islands Local Authority\",Calculations!$E$2=\"Eilean Siar Local Authority\"),OR($F118=1,$F118=5)),0,hosp_count(VALUE(LEFT(Options!$B$24,2)),$C118,$E118,$F118,2016,$I118+$J118,1,$H118,$G118*$H118, Options!$B$8)))","v":{"$error":"#VALUE!"}},{"$f":"IF(AND(OR(Calculations!$E$2=\"Orkney Health Board\",Calculations!$E$2=\"Orkney Islands Local Authority\"),$F118=1),0,IF(AND(OR(Calculations!$E$2=\"Shetland Health Board\",Calculations!$E$2=\"Western Isles Health Board\",Calculations!$E$2=\"Shetland Islands Local Authority\",Calculations!$E$2=\"Eilean Siar Local Authority\"),OR($F118=1,$F118=5)),0,prem_mort(VALUE(LEFT(Options!$B$24,2)),$C118,$E118,$F118,2016,$I118,1,$H118,$G118*$H118,Options!$B$8)))","v":{"$error":"#VALUE!"}},{"$f":"IF(AND(OR(Calculations!$E$2=\"Orkney Health Board\",Calculations!$E$2=\"Orkney Islands Local Authority\"),$F118=1),0,IF(AND(OR(Calculations!$E$2=\"Shetland Health Board\",Calculations!$E$2=\"Western Isles Health Board\",Calculations!$E$2=\"Shetland Islands Local Authority\",Calculations!$E$2=\"Eilean Siar Local Authority\"),OR($F118=1,$F118=5)),0,prem_mort(VALUE(LEFT(Options!$B$24,2)),$C118,$E118,$F118,2016,$I118+$J118,1,$H118,$G118*$H118,Options!$B$8)))","v":{"$error":"#VALUE!"}},{"$error":"#VALUE!"},{"$error":"#VALUE!"},{"$error":"#VALUE!"},{"$error":"#VALUE!"},{"$error":"#VALUE!"},{"$error":"#VALUE!"},{"$error":"#VALUE!"},{"$error":"#VALUE!"},{"$error":"#VALUE!"},{"$error":"#VALUE!"},{"$error":"#VALUE!"},{"$error":"#VALUE!"},{"$error":"#VALUE!"},{"$error":"#VALUE!"},{"$error":"#VALUE!"},{"$error":"#VALUE!"},5500]
[null,"Male 10-15",12.471144000000001,77.921140000000008,"male",2,{"$f":"HLOOKUP(Calculations!$E$2,'Prevalence Rates'!$C$3:$BC$249,'Prevalence Rates'!$BD119,FALSE)","v":0},{"$f":"HLOOKUP(Calculations!$E$2,'Population 2016'!$C$3:$BC$249,'Population 2016'!BD119,FALSE)","v":0},0,{"$f":"HLOOKUP(Results!E$4,Targeting!$C$3:$F$249,Targeting!$G119,FALSE)","v":0},{"$f":"IF(AND(OR(Calculations!$E$2=\"Orkney Health Board\",Calculations!$E$2=\"Orkney Islands Local Authority\"),$F119=1),0,IF(AND(OR(Calculations!$E$2=\"Shetland Health Board\",Calculations!$E$2=\"Western Isles Health Board\",Calculations!$E$2=\"Shetland Islands Local Authority\",Calculations!$E$2=\"Eilean Siar Local Authority\"),OR($F119=1,$F119=5)),0,new_ci(VALUE(LEFT(Options!$B$24,2)),$C119,$E119,$F119,2016,$I119,1,$H119,$G119*$H119,Options!$B$8)))","v":{"$error":"#VALUE!"}},{"$f":"IF(AND(OR(Calculations!$E$2=\"Orkney Health Board\",Calculations!$E$2=\"Orkney Islands Local Authority\"),$F119=1),0,IF(AND(OR(Calculations!$E$2=\"Shetland Health Board\",Calculations!$E$2=\"Western Isles Health Board\",Calculations!$E$2=\"Shetland Islands Local Authority\",Calculations!$E$2=\"Eilean Siar Local Authority\"),OR($F119=1,$F119=5)),0,new_ci(VALUE(LEFT(Options!$B$24,2)),$C119,$E119,$F119,2016,$I119+$J119,1,$H119,$G119*$H119,Options!$B$8)))","v":{"$error":"#VALUE!"}},{"$f":"IF(AND(OR(Calculations!$E$2=\"Orkney Health Board\",Calculations!$E$2=\"Orkney Islands Local Authority\"),$F119=1),0,IF(AND(OR(Calculations!$E$2=\"Shetland Health Board\",Calculations!$E$2=\"Western Isles Health Board\",Calculations!$E$2=\"Shetland Islands Local Authority\",Calculations!$E$2=\"Eilean Siar Local Authority\"),OR($F119=1,$F119=5)),0,new_yllv2(VALUE(LEFT(Options!$B$24,2)),$C119,$D119,$E119,$F119,2016,$I119,1,$H119,$G119*$H119,Options!$B$8)))","v":{"$error":"#VALUE!"}},{"$f":"IF(AND(OR(Calculations!$E$2=\"Orkney Health Board\",Calculations!$E$2=\"Orkney Islands Local Authority\"),$F119=1),0,IF(AND(OR(Calculations!$E$2=\"Shetland Health Board\",Calculations!$E$2=\"Western Isles Health Board\",Calculations!$E$2=\"Shetland Islands Local Authority\",Calculations!$E$2=\"Eilean Siar Local Authority\"),OR($F119=1,$F119=5)),0,new_yllv2(VALUE(LEFT(Options!$B$24,2)),$C119,$D119,$E119,$F119,2016,$I119+$J119,1,$H119,$G119*$H119,Options!$B$8)))","v":{"$error":"#VALUE!"}},{"$f":"IF(AND(OR(Calculations!$E$2=\"Orkney Health Board\",Calculations!$E$2=\"Orkney Islands Local Authority\"),$F119=1),0,IF(AND(OR(Calculations!$E$2=\"Shetland Health Board\",Calculations!$E$2=\"Western Isles Health Board\",Calculations!$E$2=\"Shetland Islands Local Authority\",Calculations!$E$2=\"Eilean Siar Local Authority\"),OR($F119=1,$F119=5)),0,hosp_count(VALUE(LEFT(Options!$B$24,2)),$C119,$E119,$F119,2016,$I119,1,$H119,$G119*$H119, Options!$B$8)))","v":{"$error":"#VALUE!"}},{"$f":"IF(AND(OR(Calculations!$E$2=\"Orkney Health Board\",Calculations!$E$2=\"Orkney Islands Local Authority\"),$F119=1),0,IF(AND(OR(Calculations!$E$2=\"Shetland Health Board\",Calculations!$E$2=\"Western Isles Health Board\",Calculations!$E$2=\"Shetland Islands Local Authority\",Calculations!$E$2=\"Eilean Siar Local Authority\"),OR($F119=1,$F119=5)),0,hosp_count(VALUE(LEFT(Options!$B$24,2)),$C119,$E119,$F119,2016,$I119+$J119,1,$H119,$G119*$H119, Options!$B$8)))","v":{"$error":"#VALUE!"}},{"$f":"IF(AND(OR(Calculations!$E$2=\"Orkney Health Board\",Calculations!$E$2=\"Orkney Islands Local Authority\"),$F119=1),0,IF(AND(OR(Calculations!$E$2=\"Shetland Health Board\",Calculations!$E$2=\"Western Isles Health Board\",Calculations!$E$2=\"Shetland Islands Local Authority\",Calculations!$E$2=\"Eilean Siar Local Authority\"),OR($F119=1,$F119=5)),0,prem_mort(VALUE(LEFT(Options!$B$24,2)),$C119,$E119,$F119,2016,$I119,1,$H119,$G119*$H119,Options!$B$8)))","v":{"$error":"#VALUE!"}},{"$f":"IF(AND(OR(Calculations!$E$2=\"Orkney Health Board\",Calculations!$E$2=\"Orkney Islands Local Authority\"),$F119=1),0,IF(AND(OR(Calculations!$E$2=\"Shetland Health Board\",Calculations!$E$2=\"Western Isles Health Board\",Calculations!$E$2=\"Shetland Islands Local Authority\",Calculations!$E$2=\"Eilean Siar Local Authority\"),OR($F119=1,$F119=5)),0,prem_mort(VALUE(LEFT(Options!$B$24,2)),$C119,$E119,$F119,2016,$I119+$J119,1,$H119,$G119*$H119,Options!$B$8)))","v":{"$error":"#VALUE!"}},{"$error":"#VALUE!"},{"$error":"#VALUE!"},{"$error":"#VALUE!"},{"$error":"#VALUE!"},{"$error":"#VALUE!"},{"$error":"#VALUE!"},{"$error":"#VALUE!"},{"$error":"#VALUE!"},{"$error":"#VALUE!"},{"$error":"#VALUE!"},{"$error":"#VALUE!"},{"$error":"#VALUE!"},{"$error":"#VALUE!"},{"$error":"#VALUE!"},{"$error":"#VALUE!"},{"$error":"#VALUE!"},6600]
[null,"Male 16-19",17.556318000000001,77.07632000000001,"male",2,{"$f":"HLOOKUP(Calculations!$E$2,'Prevalence Rates'!$C$3:$BC$249,'Prevalence Rates'!$BD120,FALSE)","v":0.17043478260869566},{"$f":"HLOOKUP(Calculations!$E$2,'Population 2016'!$C$3:$BC$249,'Population 2016'!BD120,FALSE)","v":23693},0,{"$f":"HLOOKUP(Results!E$4,Targeting!$C$3:$F$249,Targeting!$G120,FALSE)","v":1608},{"$f":"IF(AND(OR(Calculations!$E$2=\"Orkney Health Board\",Calculations!$E$2=\"Orkney Islands Local Authority\"),$F120=1),0,IF(AND(OR(Calculations!$E$2=\"Shetland Health Board\",Calculations!$E$2=\"Western Isles Health Board\",Calculations!$E$2=\"Shetland Islands Local Authority\",Calculations!$E$2=\"Eilean Siar Local Authority\"),OR($F120=1,$F120=5)),0,new_ci(VALUE(LEFT(Options!$B$24,2)),$C120,$E120,$F120,2016,$I120,1,$H120,$G120*$H120,Options!$B$8)))","v":12.5405382373},{"$f":"IF(AND(OR(Calculations!$E$2=\"Orkney Health Board\",Calculations!$E$2=\"Orkney Islands Local Authority\"),$F120=1),0,IF(AND(OR(Calculations!$E$2=\"Shetland Health Board\",Calculations!$E$2=\"Western Isles Health Board\",Calculations!$E$2=\"Shetland Islands Local Authority\",Calculations!$E$2=\"Eilean Siar Local Authority\"),OR($F120=1,$F120=5)),0,new_ci(VALUE(LEFT(Options!$B$24,2)),$C120,$E120,$F120,2016,$I120+$J120,1,$H120,$G120*$H120,Options!$B$8)))","v":12.0933590653},{"$f":"IF(AND(OR(Calculations!$E$2=\"Orkney Health Board\",Calculations!$E$2=\"Orkney Islands Local Authority\"),$F120=1),0,IF(AND(OR(Calculations!$E$2=\"Shetland Health Board\",Calculations!$E$2=\"Western Isles Health Board\",Calculations!$E$2=\"Shetland Islands Local Authority\",Calculations!$E$2=\"Eilean Siar Local Authority\"),OR($F120=1,$F120=5)),0,new_yllv2(VALUE(LEFT(Options!$B$24,2)),$C120,$D120,$E120,$F120,2016,$I120,1,$H120,$G120*$H120,Options!$B$8)))","v":733.87232272790004},{"$f":"IF(AND(OR(Calculations!$E$2=\"Orkney Health Board\",Calculations!$E$2=\"Orkney Islands Local Authority\"),$F120=1),0,IF(AND(OR(Calculations!$E$2=\"Shetland Health Board\",Calculations!$E$2=\"Western Isles Health Board\",Calculations!$E$2=\"Shetland Islands Local Authority\",Calculations!$E$2=\"Eilean Siar Local Authority\"),OR($F120=1,$F120=5)),0,new_yllv2(VALUE(LEFT(Options!$B$24,2)),$C120,$D120,$E120,$F120,2016,$I120+$J120,1,$H120,$G120*$H120,Options!$B$8)))","v":707.70339668810004},{"$f":"IF(AND(OR(Calculations!$E$2=\"Orkney Health Board\",Calculations!$E$2=\"Orkney Islands Local Authority\"),$F120=1),0,IF(AND(OR(Calculations!$E$2=\"Shetland Health Board\",Calculations!$E$2=\"Western Isles Health Board\",Calculations!$E$2=\"Shetland Islands Local Authority\",Calculations!$E$2=\"Eilean Siar Local Authority\"),OR($F120=1,$F120=5)),0,hosp_count(VALUE(LEFT(Options!$B$24,2)),$C120,$E120,$F120,2016,$I120,1,$H120,$G120*$H120, Options!$B$8)))","v":1858.6343223870001},{"$f":"IF(AND(OR(Calculations!$E$2=\"Orkney Health Board\",Calculations!$E$2=\"Orkney Islands Local Authority\"),$F120=1),0,IF(AND(OR(Calculations!$E$2=\"Shetland Health Board\",Calculations!$E$2=\"Western Isles Health Board\",Calculations!$E$2=\"Shetland Islands Local Authority\",Calculations!$E$2=\"Eilean Siar Local Authority\"),OR($F120=1,$F120=5)),0,hosp_count(VALUE(LEFT(Options!$B$24,2)),$C120,$E120,$F120,2016,$I120+$J120,1,$H120,$G120*$H120, Options!$B$8)))","v":1854.6088215701},{"$f":"IF(AND(OR(Calculations!$E$2=\"Orkney Health Board\",Calculations!$E$2=\"Orkney Islands Local Authority\"),$F120=1),0,IF(AND(OR(Calculations!$E$2=\"Shetland Health Board\",Calculations!$E$2=\"Western Isles Health Board\",Calculations!$E$2=\"Shetland Islands Local Authority\",Calculations!$E$2=\"Eilean Siar Local Authority\"),OR($F120=1,$F120=5)),0,prem_mort(VALUE(LEFT(Options!$B$24,2)),$C120,$E120,$F120,2016,$I120,1,$H120,$G120*$H120,Options!$B$8)))","v":12.5405382373},{"$f":"IF(AND(OR(Calculations!$E$2=\"Orkney Health Board\",Calculations!$E$2=\"Orkney Islands Local Authority\"),$F120=1),0,IF(AND(OR(Calculations!$E$2=\"Shetland Health Board\",Calculations!$E$2=\"Western Isles Health Board\",Calculations!$E$2=\"Shetland Islands Local Authority\",Calculations!$E$2=\"Eilean Siar Local Authority\"),OR($F120=1,$F120=5)),0,prem_mort(VALUE(LEFT(Options!$B$24,2)),$C120,$E120,$F120,2016,$I120+$J120,1,$H120,$G120*$H120,Options!$B$8)))","v":12.0933590653},52.92929657409362,51.041907167939897,3097.4225413746676,2986.972509551767,7844.6558999999997,7827.6656462672518,52.92929657409362,51.041907167939897,232888.90492601192,224584.39153893554,13628659.182048537,13142679.042027775,34516485.960000001,34441728.84357591,232888.90492601192,224584.39153893554,4400]
[null,"Male 20-24",22.054632000000002,77.704629999999995,"male",2,{"$f":"HLOOKUP(Calculations!$E$2,'Prevalence Rates'!$C$3:$BC$249,'Prevalence Rates'!$BD121,FALSE)","v":0.17043478260869566},{"$f":"HLOOKUP(Calculations!$E$2,'Population 2016'!$C$3:$BC$249,'Population 2016'!BD121,FALSE)","v":35964},0,{"$f":"HLOOKUP(Results!E$4,Targeting!$C$3:$F$249,Targeting!$G121,FALSE)","v":2441},{"$f":"IF(AND(OR(Calculations!$E$2=\"Orkney Health Board\",Calculations!$E$2=\"Orkney Islands Local Authority\"),$F121=1),0,IF(AND(OR(Calculations!$E$2=\"Shetland Health Board\",Calculations!$E$2=\"Western Isles Health Board\",Calculations!$E$2=\"Shetland Islands Local Authority\",Calculations!$E$2=\"Eilean Siar Local Authority\"),OR($F121=1,$F121=5)),0,new_ci(VALUE(LEFT(Options!$B$24,2)),$C121,$E121,$F121,2016,$I121,1,$H121,$G121*$H121,Options!$B$8)))","v":26.730452172900002},{"$f":"IF(AND(OR(Calculations!$E$2=\"Orkney Health Board\",Calculations!$E$2=\"Orkney Islands Local Authority\"),$F121=1),0,IF(AND(OR(Calculations!$E$2=\"Shetland Health Board\",Calculations!$E$2=\"Western Isles Health Board\",Calculations!$E$2=\"Shetland Islands Local Authority\",Calculations!$E$2=\"Eilean Siar Local Authority\"),OR($F121=1,$F121=5)),0,new_ci(VALUE(LEFT(Options!$B$24,2)),$C121,$E121,$F121,2016,$I121+$J121,1,$H121,$G121*$H121,Options!$B$8)))","v":25.7773629906},{"$f":"IF(AND(OR(Calculations!$E$2=\"Orkney Health Board\",Calculations!$E$2=\"Orkney Islands Local Authority\"),$F121=1),0,IF(AND(OR(Calculations!$E$2=\"Shetland Health Board\",Calculations!$E$2=\"Western Isles Health Board\",Calculations!$E$2=\"Shetland Islands Local Authority\",Calculations!$E$2=\"Eilean Siar Local Authority\"),OR($F121=1,$F121=5)),0,new_yllv2(VALUE(LEFT(Options!$B$24,2)),$C121,$D121,$E121,$F121,2016,$I121,1,$H121,$G121*$H121,Options!$B$8)))","v":1460.8191577881},{"$f":"IF(AND(OR(Calculations!$E$2=\"Orkney Health Board\",Calculations!$E$2=\"Orkney Islands Local Authority\"),$F121=1),0,IF(AND(OR(Calculations!$E$2=\"Shetland Health Board\",Calculations!$E$2=\"Western Isles Health Board\",Calculations!$E$2=\"Shetland Islands Local Authority\",Calculations!$E$2=\"Eilean Siar Local Authority\"),OR($F121=1,$F121=5)),0,new_yllv2(VALUE(LEFT(Options!$B$24,2)),$C121,$D121,$E121,$F121,2016,$I121+$J121,1,$H121,$G121*$H121,Options!$B$8)))","v":1408.7328358816001},{"$f":"IF(AND(OR(Calculations!$E$2=\"Orkney Health Board\",Calculations!$E$2=\"Orkney Islands Local Authority\"),$F121=1),0,IF(AND(OR(Calculations!$E$2=\"Shetland Health Board\",Calculations!$E$2=\"Western Isles Health Board\",Calculations!$E$2=\"Shetland Islands Local Authority\",Calculations!$E$2=\"Eilean Siar Local Authority\"),OR($F121=1,$F121=5)),0,hosp_count(VALUE(LEFT(Options!$B$24,2)),$C121,$E121,$F121,2016,$I121,1,$H121,$G121*$H121, Options!$B$8)))","v":3309.6725972171998},{"$f":"IF(AND(OR(Calculations!$E$2=\"Orkney Health Board\",Calculations!$E$2=\"Orkney Islands Local Authority\"),$F121=1),0,IF(AND(OR(Calculations!$E$2=\"Shetland Health Board\",Calculations!$E$2=\"Western Isles Health Board\",Calculations!$E$2=\"Shetland Islands Local Authority\",Calculations!$E$2=\"Eilean Siar Local Authority\"),OR($F121=1,$F121=5)),0,hosp_count(VALUE(LEFT(Options!$B$24,2)),$C121,$E121,$F121,2016,$I121+$J121,1,$H121,$G121*$H121, Options!$B$8)))","v":3302.5038246366998},{"$f":"IF(AND(OR(Calculations!$E$2=\"Orkney Health Board\",Calculations!$E$2=\"Orkney Islands Local Authority\"),$F121=1),0,IF(AND(OR(Calculations!$E$2=\"Shetland Health Board\",Calculations!$E$2=\"Western Isles Health Board\",Calculations!$E$2=\"Shetland Islands Local Authority\",Calculations!$E$2=\"Eilean Siar Local Authority\"),OR($F121=1,$F121=5)),0,prem_mort(VALUE(LEFT(Options!$B$24,2)),$C121,$E121,$F121,2016,$I121,1,$H121,$G121*$H121,Options!$B$8)))","v":26.730452172900002},{"$f":"IF(AND(OR(Calculations!$E$2=\"Orkney Health Board\",Calculations!$E$2=\"Orkney Islands Local Authority\"),$F121=1),0,IF(AND(OR(Calculations!$E$2=\"Shetland Health Board\",Calculations!$E$2=\"Western Isles Health Board\",Calculations!$E$2=\"Shetland Islands Local Authority\",Calculations!$E$2=\"Eilean Siar Local Authority\"),OR($F121=1,$F121=5)),0,prem_mort(VALUE(LEFT(Options!$B$24,2)),$C121,$E121,$F121,2016,$I121+$J121,1,$H121,$G121*$H121,Options!$B$8)))","v":25.7773629906},74.32558161745078,71.675461546546543,4061.8928867425757,3917.063830167946,9202.7377299999989,9182.8045396415855,74.32558161745078,71.675461546546543,445953.48970470467,430052.76927927928,24371357.320455454,23502382.981007677,55216426.379999995,55096827.237849511,445953.48970470467,430052.76927927928,6000]
[null,"Male 25-29",26.959762999999999,77.789760000000001,"male",2,{"$f":"HLOOKUP(Calculations!$E$2,'Prevalence Rates'!$C$3:$BC$249,'Prevalence Rates'!$BD122,FALSE)","v":0.14460784313725492},{"$f":"HLOOKUP(Calculations!$E$2,'Population 2016'!$C$3:$BC$249,'Population 2016'!BD122,FALSE)","v":39611},0,{"$f":"HLOOKUP(Results!E$4,Targeting!$C$3:$F$249,Targeting!$G122,FALSE)","v":2689},{"$f":"IF(AND(OR(Calculations!$E$2=\"Orkney Health Board\",Calculations!$E$2=\"Orkney Islands Local Authority\"),$F122=1),0,IF(AND(OR(Calculations!$E$2=\"Shetland Health Board\",Calculations!$E$2=\"Western Isles Health Board\",Calculations!$E$2=\"Shetland Islands Local Authority\",Calculations!$E$2=\"Eilean Siar Local Authority\"),OR($F122=1,$F122=5)),0,new_ci(VALUE(LEFT(Options!$B$24,2)),$C122,$E122,$F122,2016,$I122,1,$H122,$G122*$H122,Options!$B$8)))","v":42.629379325899997},{"$f":"IF(AND(OR(Calculations!$E$2=\"Orkney Health Board\",Calculations!$E$2=\"Orkney Islands Local Authority\"),$F122=1),0,IF(AND(OR(Calculations!$E$2=\"Shetland Health Board\",Calculations!$E$2=\"Western Isles Health Board\",Calculations!$E$2=\"Shetland Islands Local Authority\",Calculations!$E$2=\"Eilean Siar Local Authority\"),OR($F122=1,$F122=5)),0,new_ci(VALUE(LEFT(Options!$B$24,2)),$C122,$E122,$F122,2016,$I122+$J122,1,$H122,$G122*$H122,Options!$B$8)))","v":41.082065534400002},{"$f":"IF(AND(OR(Calculations!$E$2=\"Orkney Health Board\",Calculations!$E$2=\"Orkney Islands Local Authority\"),$F122=1),0,IF(AND(OR(Calculations!$E$2=\"Shetland Health Board\",Calculations!$E$2=\"Western Isles Health Board\",Calculations!$E$2=\"Shetland Islands Local Authority\",Calculations!$E$2=\"Eilean Siar Local Authority\"),OR($F122=1,$F122=5)),0,new_yllv2(VALUE(LEFT(Options!$B$24,2)),$C122,$D122,$E122,$F122,2016,$I122,1,$H122,$G122*$H122,Options!$B$8)))","v":2124.2218439214998},{"$f":"IF(AND(OR(Calculations!$E$2=\"Orkney Health Board\",Calculations!$E$2=\"Orkney Islands Local Authority\"),$F122=1),0,IF(AND(OR(Calculations!$E$2=\"Shetland Health Board\",Calculations!$E$2=\"Western Isles Health Board\",Calculations!$E$2=\"Shetland Islands Local Authority\",Calculations!$E$2=\"Eilean Siar Local Authority\"),OR($F122=1,$F122=5)),0,new_yllv2(VALUE(LEFT(Options!$B$24,2)),$C122,$D122,$E122,$F122,2016,$I122+$J122,1,$H122,$G122*$H122,Options!$B$8)))","v":2047.119202333},{"$f":"IF(AND(OR(Calculations!$E$2=\"Orkney Health Board\",Calculations!$E$2=\"Orkney Islands Local Authority\"),$F122=1),0,IF(AND(OR(Calculations!$E$2=\"Shetland Health Board\",Calculations!$E$2=\"Western Isles Health Board\",Calculations!$E$2=\"Shetland Islands Local Authority\",Calculations!$E$2=\"Eilean Siar Local Authority\"),OR($F122=1,$F122=5)),0,hosp_count(VALUE(LEFT(Options!$B$24,2)),$C122,$E122,$F122,2016,$I122,1,$H122,$G122*$H122, Options!$B$8)))","v":4338.5762131854999},{"$f":"IF(AND(OR(Calculations!$E$2=\"Orkney Health Board\",Calculations!$E$2=\"Orkney Islands Local Authority\"),$F122=1),0,IF(AND(OR(Calculations!$E$2=\"Shetland Health Board\",Calculations!$E$2=\"Western Isles Health Board\",Calculations!$E$2=\"Shetland Islands Local Authority\",Calculations!$E$2=\"Eilean Siar Local Authority\"),OR($F122=1,$F122=5)),0,hosp_count(VALUE(LEFT(Options!$B$24,2)),$C122,$E122,$F122,2016,$I122+$J122,1,$H122,$G122*$H122, Options!$B$8)))","v":4329.1723602021002},{"$f":"IF(AND(OR(Calculations!$E$2=\"Orkney Health Board\",Calculations!$E$2=\"Orkney Islands Local Authority\"),$F122=1),0,IF(AND(OR(Calculations!$E$2=\"Shetland Health Board\",Calculations!$E$2=\"Western Isles Health Board\",Calculations!$E$2=\"Shetland Islands Local Authority\",Calculations!$E$2=\"Eilean Siar Local Authority\"),OR($F122=1,$F122=5)),0,prem_mort(VALUE(LEFT(Options!$B$24,2)),$C122,$E122,$F122,2016,$I122,1,$H122,$G122*$H122,Options!$B$8)))","v":42.629379325899997},{"$f":"IF(AND(OR(Calculations!$E$2=\"Orkney Health Board\",Calculations!$E$2=\"Orkney Islands Local Authority\"),$F122=1),0,IF(AND(OR(Calculations!$E$2=\"Shetland Health Board\",Calculations!$E$2=\"Western Isles Health Board\",Calculations!$E$2=\"Shetland Islands Local Authority\",Calculations!$E$2=\"Eilean Siar Local Authority\"),OR($F122=1,$F122=5)),0,prem_mort(VALUE(LEFT(Options!$B$24,2)),$C122,$E122,$F122,2016,$I122+$J122,1,$H122,$G122*$H122,Options!$B$8)))","v":41.082065534400002},107.62005333341747,103.71378034990282,5362.7069347441366,5168.0573636944282,10952.958049999999,10929.217541092374,107.62005333341747,103.71378034990282,645720.32000050484,622282.68209941697,32176241.608464818,31008344.182166569,65717748.299999997,65575305.246554241,645720.32000050484,622282.68209941697,6000]
[null,"Male 30-34",31.981521999999998,78.061520000000002,"male",2,{"$f":"HLOOKUP(Calculations!$E$2,'Prevalence Rates'!$C$3:$BC$249,'Prevalence Rates'!$BD123,FALSE)","v":0.14460784313725492},{"$f":"HLOOKUP(Calculations!$E$2,'Population 2016'!$C$3:$BC$249,'Population 2016'!BD123,FALSE)","v":37146},0,{"$f":"HLOOKUP(Results!E$4,Targeting!$C$3:$F$249,Targeting!$G123,FALSE)","v":2522},{"$f":"IF(AND(OR(Calculations!$E$2=\"Orkney Health Board\",Calculations!$E$2=\"Orkney Islands Local Authority\"),$F123=1),0,IF(AND(OR(Calculations!$E$2=\"Shetland Health Board\",Calculations!$E$2=\"Western Isles Health Board\",Calculations!$E$2=\"Shetland Islands Local Authority\",Calculations!$E$2=\"Eilean Siar Local Authority\"),OR($F123=1,$F123=5)),0,new_ci(VALUE(LEFT(Options!$B$24,2)),$C123,$E123,$F123,2016,$I123,1,$H123,$G123*$H123,Options!$B$8)))","v":58.390952731600002},{"$f":"IF(AND(OR(Calculations!$E$2=\"Orkney Health Board\",Calculations!$E$2=\"Orkney Islands Local Authority\"),$F123=1),0,IF(AND(OR(Calculations!$E$2=\"Shetland Health Board\",Calculations!$E$2=\"Western Isles Health Board\",Calculations!$E$2=\"Shetland Islands Local Authority\",Calculations!$E$2=\"Eilean Siar Local Authority\"),OR($F123=1,$F123=5)),0,new_ci(VALUE(LEFT(Options!$B$24,2)),$C123,$E123,$F123,2016,$I123+$J123,1,$H123,$G123*$H123,Options!$B$8)))","v":56.272103006400002},{"$f":"IF(AND(OR(Calculations!$E$2=\"Orkney Health Board\",Calculations!$E$2=\"Orkney Islands Local Authority\"),$F123=1),0,IF(AND(OR(Calculations!$E$2=\"Shetland Health Board\",Calculations!$E$2=\"Western Isles Health Board\",Calculations!$E$2=\"Shetland Islands Local Authority\",Calculations!$E$2=\"Eilean Siar Local Authority\"),OR($F123=1,$F123=5)),0,new_yllv2(VALUE(LEFT(Options!$B$24,2)),$C123,$D123,$E123,$F123,2016,$I123,1,$H123,$G123*$H123,Options!$B$8)))","v":2632.2640323586002},{"$f":"IF(AND(OR(Calculations!$E$2=\"Orkney Health Board\",Calculations!$E$2=\"Orkney Islands Local Authority\"),$F123=1),0,IF(AND(OR(Calculations!$E$2=\"Shetland Health Board\",Calculations!$E$2=\"Western Isles Health Board\",Calculations!$E$2=\"Shetland Islands Local Authority\",Calculations!$E$2=\"Eilean Siar Local Authority\"),OR($F123=1,$F123=5)),0,new_yllv2(VALUE(LEFT(Options!$B$24,2)),$C123,$D123,$E123,$F123,2016,$I123+$J123,1,$H123,$G123*$H123,Options!$B$8)))","v":2536.7462909842998},{"$f":"IF(AND(OR(Calculations!$E$2=\"Orkney Health Board\",Calculations!$E$2=\"Orkney Islands Local Authority\"),$F123=1),0,IF(AND(OR(Calculations!$E$2=\"Shetland Health Board\",Calculations!$E$2=\"Western Isles Health Board\",Calculations!$E$2=\"Shetland Islands Local Authority\",Calculations!$E$2=\"Eilean Siar Local Authority\"),OR($F123=1,$F123=5)),0,hosp_count(VALUE(LEFT(Options!$B$24,2)),$C123,$E123,$F123,2016,$I123,1,$H123,$G123*$H123, Options!$B$8)))","v":4862.4564060936},{"$f":"IF(AND(OR(Calculations!$E$2=\"Orkney Health Board\",Calculations!$E$2=\"Orkney Islands Local Authority\"),$F123=1),0,IF(AND(OR(Calculations!$E$2=\"Shetland Health Board\",Calculations!$E$2=\"Western Isles Health Board\",Calculations!$E$2=\"Shetland Islands Local Authority\",Calculations!$E$2=\"Eilean Siar Local Authority\"),OR($F123=1,$F123=5)),0,hosp_count(VALUE(LEFT(Options!$B$24,2)),$C123,$E123,$F123,2016,$I123+$J123,1,$H123,$G123*$H123, Options!$B$8)))","v":4851.9156357195998},{"$f":"IF(AND(OR(Calculations!$E$2=\"Orkney Health Board\",Calculations!$E$2=\"Orkney Islands Local Authority\"),$F123=1),0,IF(AND(OR(Calculations!$E$2=\"Shetland Health Board\",Calculations!$E$2=\"Western Isles Health Board\",Calculations!$E$2=\"Shetland Islands Local Authority\",Calculations!$E$2=\"Eilean Siar Local Authority\"),OR($F123=1,$F123=5)),0,prem_mort(VALUE(LEFT(Options!$B$24,2)),$C123,$E123,$F123,2016,$I123,1,$H123,$G123*$H123,Options!$B$8)))","v":58.390952731600002},{"$f":"IF(AND(OR(Calculations!$E$2=\"Orkney Health Board\",Calculations!$E$2=\"Orkney Islands Local Authority\"),$F123=1),0,IF(AND(OR(Calculations!$E$2=\"Shetland Health Board\",Calculations!$E$2=\"Western Isles Health Board\",Calculations!$E$2=\"Shetland Islands Local Authority\",Calculations!$E$2=\"Eilean Siar Local Authority\"),OR($F123=1,$F123=5)),0,prem_mort(VALUE(LEFT(Options!$B$24,2)),$C123,$E123,$F123,2016,$I123+$J123,1,$H123,$G123*$H123,Options!$B$8)))","v":56.272103006400002},157.19311024497927,151.48899748667421,7086.2650954573846,6829.1237037212613,13090.121159999999,13061.744563935819,157.19311024497927,151.48899748667421,1021755.2165923652,984678.48366338236,46060723.120472997,44389304.074188195,85085787.539999992,84901339.665582821,1021755.2165923652,984678.48366338236,6500]
[null,"Male 35-39",36.926009999999998,78.336009999999987,"male",2,{"$f":"HLOOKUP(Calculations!$E$2,'Prevalence Rates'!$C$3:$BC$249,'Prevalence Rates'!$BD124,FALSE)","v":0.18518518518518517},{"$f":"HLOOKUP(Calculations!$E$2,'Population 2016'!$C$3:$BC$249,'Population 2016'!BD124,FALSE)","v":32341},0,{"$f":"HLOOKUP(Results!E$4,Targeting!$C$3:$F$249,Targeting!$G124,FALSE)","v":2195},{"$f":"IF(AND(OR(Calculations!$E$2=\"Orkney Health Board\",Calculations!$E$2=\"Orkney Islands Local Authority\"),$F124=1),0,IF(AND(OR(Calculations!$E$2=\"Shetland Health Board\",Calculations!$E$2=\"Western Isles Health Board\",Calculations!$E$2=\"Shetland Islands Local Authority\",Calculations!$E$2=\"Eilean Siar Local Authority\"),OR($F124=1,$F124=5)),0,new_ci(VALUE(LEFT(Options!$B$24,2)),$C124,$E124,$F124,2016,$I124,1,$H124,$G124*$H124,Options!$B$8)))","v":73.814120863300005},{"$f":"IF(AND(OR(Calculations!$E$2=\"Orkney Health Board\",Calculations!$E$2=\"Orkney Islands Local Authority\"),$F124=1),0,IF(AND(OR(Calculations!$E$2=\"Shetland Health Board\",Calculations!$E$2=\"Western Isles Health Board\",Calculations!$E$2=\"Shetland Islands Local Authority\",Calculations!$E$2=\"Eilean Siar Local Authority\"),OR($F124=1,$F124=5)),0,new_ci(VALUE(LEFT(Options!$B$24,2)),$C124,$E124,$F124,2016,$I124+$J124,1,$H124,$G124*$H124,Options!$B$8)))","v":71.211832247800004},{"$f":"IF(AND(OR(Calculations!$E$2=\"Orkney Health Board\",Calculations!$E$2=\"Orkney Islands Local Authority\"),$F124=1),0,IF(AND(OR(Calculations!$E$2=\"Shetland Health Board\",Calculations!$E$2=\"Western Isles Health Board\",Calculations!$E$2=\"Shetland Islands Local Authority\",Calculations!$E$2=\"Eilean Siar Local Authority\"),OR($F124=1,$F124=5)),0,new_yllv2(VALUE(LEFT(Options!$B$24,2)),$C124,$D124,$E124,$F124,2016,$I124,1,$H124,$G124*$H124,Options!$B$8)))","v":2982.8286240860002},{"$f":"IF(AND(OR(Calculations!$E$2=\"Orkney Health Board\",Calculations!$E$2=\"Orkney Islands Local Authority\"),$F124=1),0,IF(AND(OR(Calculations!$E$2=\"Shetland Health Board\",Calculations!$E$2=\"Western Isles Health Board\",Calculations!$E$2=\"Shetland Islands Local Authority\",Calculations!$E$2=\"Eilean Siar Local Authority\"),OR($F124=1,$F124=5)),0,new_yllv2(VALUE(LEFT(Options!$B$24,2)),$C124,$D124,$E124,$F124,2016,$I124+$J124,1,$H124,$G124*$H124,Options!$B$8)))","v":2877.6701411335998},{"$f":"IF(AND(OR(Calculations!$E$2=\"Orkney Health Board\",Calculations!$E$2=\"Orkney Islands Local Authority\"),$F124=1),0,IF(AND(OR(Calculations!$E$2=\"Shetland Health Board\",Calculations!$E$2=\"Western Isles Health Board\",Calculations!$E$2=\"Shetland Islands Local Authority\",Calculations!$E$2=\"Eilean Siar Local Authority\"),OR($F124=1,$F124=5)),0,hosp_count(VALUE(LEFT(Options!$B$24,2)),$C124,$E124,$F124,2016,$I124,1,$H124,$G124*$H124, Options!$B$8)))","v":5045.6624380724998},{"$f":"IF(AND(OR(Calculations!$E$2=\"Orkney Health Board\",Calculations!$E$2=\"Orkney Islands Local Authority\"),$F124=1),0,IF(AND(OR(Calculations!$E$2=\"Shetland Health Board\",Calculations!$E$2=\"Western Isles Health Board\",Calculations!$E$2=\"Shetland Islands Local Authority\",Calculations!$E$2=\"Eilean Siar Local Authority\"),OR($F124=1,$F124=5)),0,hosp_count(VALUE(LEFT(Options!$B$24,2)),$C124,$E124,$F124,2016,$I124+$J124,1,$H124,$G124*$H124, Options!$B$8)))","v":5034.7371828577998},{"$f":"IF(AND(OR(Calculations!$E$2=\"Orkney Health Board\",Calculations!$E$2=\"Orkney Islands Local Authority\"),$F124=1),0,IF(AND(OR(Calculations!$E$2=\"Shetland Health Board\",Calculations!$E$2=\"Western Isles Health Board\",Calculations!$E$2=\"Shetland Islands Local Authority\",Calculations!$E$2=\"Eilean Siar Local Authority\"),OR($F124=1,$F124=5)),0,prem_mort(VALUE(LEFT(Options!$B$24,2)),$C124,$E124,$F124,2016,$I124,1,$H124,$G124*$H124,Options!$B$8)))","v":73.814120863300005},{"$f":"IF(AND(OR(Calculations!$E$2=\"Orkney Health Board\",Calculations!$E$2=\"Orkney Islands Local Authority\"),$F124=1),0,IF(AND(OR(Calculations!$E$2=\"Shetland Health Board\",Calculations!$E$2=\"Western Isles Health Board\",Calculations!$E$2=\"Shetland Islands Local Authority\",Calculations!$E$2=\"Eilean Siar Local Authority\"),OR($F124=1,$F124=5)),0,prem_mort(VALUE(LEFT(Options!$B$24,2)),$C124,$E124,$F124,2016,$I124+$J124,1,$H124,$G124*$H124,Options!$B$8)))","v":71.211832247800004},228.23697740731581,220.19057001267743,9223.056257029777,8897.900934212299,15601.442249999998,15567.660810914318,228.23697740731581,220.19057001267743,1597658.8418512107,1541333.990088742,{"$f":"U124*$AI124","v":64561393.79920844},{"$f":"V124*$AI124","v":62285306.539486095},{"$f":"W124*$AI124","v":109210095.74999999},{"$f":"X124*$AI124","v":108973625.67640023},{"$f":"Y124*$AI124","v":1597658.8418512107},{"$f":"Z124*$AI124","v":1541333.990088742},7000]
[null,"Male 40-44",42.067703000000002,78.907700000000006,"male",2,{"$f":"HLOOKUP(Calculations!$E$2,'Prevalence Rates'!$C$3:$BC$249,'Prevalence Rates'!$BD125,FALSE)","v":0.18518518518518517},{"$f":"HLOOKUP(Calculations!$E$2,'Population 2016'!$C$3:$BC$249,'Population 2016'!BD125,FALSE)","v":32014},0,{"$f":"HLOOKUP(Results!E$4,Targeting!$C$3:$F$249,Targeting!$G125,FALSE)","v":2173},{"$f":"IF(AND(OR(Calculations!$E$2=\"Orkney Health Board\",Calculations!$E$2=\"Orkney Islands Local Authority\"),$F125=1),0,IF(AND(OR(Calculations!$E$2=\"Shetland Health Board\",Calculations!$E$2=\"Western Isles Health Board\",Calculations!$E$2=\"Shetland Islands Local Authority\",Calculations!$E$2=\"Eilean Siar Local Authority\"),OR($F125=1,$F125=5)),0,new_ci(VALUE(LEFT(Options!$B$24,2)),$C125,$E125,$F125,2016,$I125,1,$H125,$G125*$H125,Options!$B$8)))","v":107.6617267407},{"$f":"IF(AND(OR(Calculations!$E$2=\"Orkney Health Board\",Calculations!$E$2=\"Orkney Islands Local Authority\"),$F125=1),0,IF(AND(OR(Calculations!$E$2=\"Shetland Health Board\",Calculations!$E$2=\"Western Isles Health Board\",Calculations!$E$2=\"Shetland Islands Local Authority\",Calculations!$E$2=\"Eilean Siar Local Authority\"),OR($F125=1,$F125=5)),0,new_ci(VALUE(LEFT(Options!$B$24,2)),$C125,$E125,$F125,2016,$I125+$J125,1,$H125,$G125*$H125,Options!$B$8)))","v":103.868942336},{"$f":"IF(AND(OR(Calculations!$E$2=\"Orkney Health Board\",Calculations!$E$2=\"Orkney Islands Local Authority\"),$F125=1),0,IF(AND(OR(Calculations!$E$2=\"Shetland Health Board\",Calculations!$E$2=\"Western Isles Health Board\",Calculations!$E$2=\"Shetland Islands Local Authority\",Calculations!$E$2=\"Eilean Siar Local Authority\"),OR($F125=1,$F125=5)),0,new_yllv2(VALUE(LEFT(Options!$B$24,2)),$C125,$D125,$E125,$F125,2016,$I125,1,$H125,$G125*$H125,Options!$B$8)))","v":3858.5959634014998},{"$f":"IF(AND(OR(Calculations!$E$2=\"Orkney Health Board\",Calculations!$E$2=\"Orkney Islands Local Authority\"),$F125=1),0,IF(AND(OR(Calculations!$E$2=\"Shetland Health Board\",Calculations!$E$2=\"Western Isles Health Board\",Calculations!$E$2=\"Shetland Islands Local Authority\",Calculations!$E$2=\"Eilean Siar Local Authority\"),OR($F125=1,$F125=5)),0,new_yllv2(VALUE(LEFT(Options!$B$24,2)),$C125,$D125,$E125,$F125,2016,$I125+$J125,1,$H125,$G125*$H125,Options!$B$8)))","v":3722.6625817153999},{"$f":"IF(AND(OR(Calculations!$E$2=\"Orkney Health Board\",Calculations!$E$2=\"Orkney Islands Local Authority\"),$F125=1),0,IF(AND(OR(Calculations!$E$2=\"Shetland Health Board\",Calculations!$E$2=\"Western Isles Health Board\",Calculations!$E$2=\"Shetland Islands Local Authority\",Calculations!$E$2=\"Eilean Siar Local Authority\"),OR($F125=1,$F125=5)),0,hosp_count(VALUE(LEFT(Options!$B$24,2)),$C125,$E125,$F125,2016,$I125,1,$H125,$G125*$H125, Options!$B$8)))","v":5994.6765736841999},{"$f":"IF(AND(OR(Calculations!$E$2=\"Orkney Health Board\",Calculations!$E$2=\"Orkney Islands Local Authority\"),$F125=1),0,IF(AND(OR(Calculations!$E$2=\"Shetland Health Board\",Calculations!$E$2=\"Western Isles Health Board\",Calculations!$E$2=\"Shetland Islands Local Authority\",Calculations!$E$2=\"Eilean Siar Local Authority\"),OR($F125=1,$F125=5)),0,hosp_count(VALUE(LEFT(Options!$B$24,2)),$C125,$E125,$F125,2016,$I125+$J125,1,$H125,$G125*$H125, Options!$B$8)))","v":5981.6952835231996},{"$f":"IF(AND(OR(Calculations!$E$2=\"Orkney Health Board\",Calculations!$E$2=\"Orkney Islands Local Authority\"),$F125=1),0,IF(AND(OR(Calculations!$E$2=\"Shetland Health Board\",Calculations!$E$2=\"Western Isles Health Board\",Calculations!$E$2=\"Shetland Islands Local Authority\",Calculations!$E$2=\"Eilean Siar Local Authority\"),OR($F125=1,$F125=5)),0,prem_mort(VALUE(LEFT(Options!$B$24,2)),$C125,$E125,$F125,2016,$I125,1,$H125,$G125*$H125,Options!$B$8)))","v":107.6617267407},{"$f":"IF(AND(OR(Calculations!$E$2=\"Orkney Health Board\",Calculations!$E$2=\"Orkney Islands Local Authority\"),$F125=1),0,IF(AND(OR(Calculations!$E$2=\"Shetland Health Board\",Calculations!$E$2=\"Western Isles Health Board\",Calculations!$E$2=\"Shetland Islands Local Authority\",Calculations!$E$2=\"Eilean Siar Local Authority\"),OR($F125=1,$F125=5)),0,prem_mort(VALUE(LEFT(Options!$B$24,2)),$C125,$E125,$F125,2016,$I125+$J125,1,$H125,$G125*$H125,Options!$B$8)))","v":103.868942336},{"$f":"K125*100000/$H125","v":336.29576666677082},{"$f":"L125*100000/$H125","v":324.44849858187041},{"$f":"M125*100000/$H125","v":12052.839268449741},{"$f":"N125*100000/$H125","v":11628.233215828701},{"$f":"O125*100000/$H125","v":18725.172030000002},{"$f":"P125*100000/$H125","v":18684.623238343225},{"$f":"Q125*100000/$H125","v":336.29576666677082},{"$f":"R125*100000/$H125","v":324.44849858187041},{"$f":"S125*$AI125","v":2354070.3666673959},{"$f":"T125*$AI125","v":2271139.4900730927},84369874.879148185,81397632.510800913,131076204.21000001,130792362.66840258,2354070.3666673959,2271139.4900730927,7000]
[null,"Male 45-49",47.038155000000003,79.418149999999997,"male",2,{"$f":"HLOOKUP(Calculations!$E$2,'Prevalence Rates'!$C$3:$BC$249,'Prevalence Rates'!$BD126,FALSE)","v":0.20150375939849624},{"$f":"HLOOKUP(Calculations!$E$2,'Population 2016'!$C$3:$BC$249,'Population 2016'!BD126,FALSE)","v":36688},0,{"$f":"HLOOKUP(Results!E$4,Targeting!$C$3:$F$249,Targeting!$G126,FALSE)","v":2491},{"$f":"IF(AND(OR(Calculations!$E$2=\"Orkney Health Board\",Calculations!$E$2=\"Orkney Islands Local Authority\"),$F126=1),0,IF(AND(OR(Calculations!$E$2=\"Shetland Health Board\",Calculations!$E$2=\"Western Isles Health Board\",Calculations!$E$2=\"Shetland Islands Local Authority\",Calculations!$E$2=\"Eilean Siar Local Authority\"),OR($F126=1,$F126=5)),0,new_ci(VALUE(LEFT(Options!$B$24,2)),$C126,$E126,$F126,2016,$I126,1,$H126,$G126*$H126,Options!$B$8)))","v":179.41488155939999},{"$f":"IF(AND(OR(Calculations!$E$2=\"Orkney Health Board\",Calculations!$E$2=\"Orkney Islands Local Authority\"),$F126=1),0,IF(AND(OR(Calculations!$E$2=\"Shetland Health Board\",Calculations!$E$2=\"Western Isles Health Board\",Calculations!$E$2=\"Shetland Islands Local Authority\",Calculations!$E$2=\"Eilean Siar Local Authority\"),OR($F126=1,$F126=5)),0,new_ci(VALUE(LEFT(Options!$B$24,2)),$C126,$E126,$F126,2016,$I126+$J126,1,$H126,$G126*$H126,Options!$B$8)))","v":173.16878923359999},{"$f":"IF(AND(OR(Calculations!$E$2=\"Orkney Health Board\",Calculations!$E$2=\"Orkney Islands Local Authority\"),$F126=1),0,IF(AND(OR(Calculations!$E$2=\"Shetland Health Board\",Calculations!$E$2=\"Western Isles Health Board\",Calculations!$E$2=\"Shetland Islands Local Authority\",Calculations!$E$2=\"Eilean Siar Local Authority\"),OR($F126=1,$F126=5)),0,new_yllv2(VALUE(LEFT(Options!$B$24,2)),$C126,$D126,$E126,$F126,2016,$I126,1,$H126,$G126*$H126,Options!$B$8)))","v":5630.0380862596003},{"$f":"IF(AND(OR(Calculations!$E$2=\"Orkney Health Board\",Calculations!$E$2=\"Orkney Islands Local Authority\"),$F126=1),0,IF(AND(OR(Calculations!$E$2=\"Shetland Health Board\",Calculations!$E$2=\"Western Isles Health Board\",Calculations!$E$2=\"Shetland Islands Local Authority\",Calculations!$E$2=\"Eilean Siar Local Authority\"),OR($F126=1,$F126=5)),0,new_yllv2(VALUE(LEFT(Options!$B$24,2)),$C126,$D126,$E126,$F126,2016,$I126+$J126,1,$H126,$G126*$H126,Options!$B$8)))","v":5434.0357403063999},{"$f":"IF(AND(OR(Calculations!$E$2=\"Orkney Health Board\",Calculations!$E$2=\"Orkney Islands Local Authority\"),$F126=1),0,IF(AND(OR(Calculations!$E$2=\"Shetland Health Board\",Calculations!$E$2=\"Western Isles Health Board\",Calculations!$E$2=\"Shetland Islands Local Authority\",Calculations!$E$2=\"Eilean Siar Local Authority\"),OR($F126=1,$F126=5)),0,hosp_count(VALUE(LEFT(Options!$B$24,2)),$C126,$E126,$F126,2016,$I126,1,$H126,$G126*$H126, Options!$B$8)))","v":8195.4193310032006},{"$f":"IF(AND(OR(Calculations!$E$2=\"Orkney Health Board\",Calculations!$E$2=\"Orkney Islands Local Authority\"),$F126=1),0,IF(AND(OR(Calculations!$E$2=\"Shetland Health Board\",Calculations!$E$2=\"Western Isles Health Board\",Calculations!$E$2=\"Shetland Islands Local Authority\",Calculations!$E$2=\"Eilean Siar Local Authority\"),OR($F126=1,$F126=5)),0,hosp_count(VALUE(LEFT(Options!$B$24,2)),$C126,$E126,$F126,2016,$I126+$J126,1,$H126,$G126*$H126, Options!$B$8)))","v":8177.6728604935997},{"$f":"IF(AND(OR(Calculations!$E$2=\"Orkney Health Board\",Calculations!$E$2=\"Orkney Islands Local Authority\"),$F126=1),0,IF(AND(OR(Calculations!$E$2=\"Shetland Health Board\",Calculations!$E$2=\"Western Isles Health Board\",Calculations!$E$2=\"Shetland Islands Local Authority\",Calculations!$E$2=\"Eilean Siar Local Authority\"),OR($F126=1,$F126=5)),0,prem_mort(VALUE(LEFT(Options!$B$24,2)),$C126,$E126,$F126,2016,$I126,1,$H126,$G126*$H126,Options!$B$8)))","v":179.41488155939999},{"$f":"IF(AND(OR(Calculations!$E$2=\"Orkney Health Board\",Calculations!$E$2=\"Orkney Islands Local Authority\"),$F126=1),0,IF(AND(OR(Calculations!$E$2=\"Shetland Health Board\",Calculations!$E$2=\"Western Isles Health Board\",Calculations!$E$2=\"Shetland Islands Local Authority\",Calculations!$E$2=\"Eilean Siar Local Authority\"),OR($F126=1,$F126=5)),0,prem_mort(VALUE(LEFT(Options!$B$24,2)),$C126,$E126,$F126,2016,$I126+$J126,1,$H126,$G126*$H126,Options!$B$8)))","v":173.16878923359999},489.02878750381598,472.00389564326213,15345.720906725905,14811.479885266028,22338.146890000004,22289.775568288267,489.02878750381598,472.00389564326213,3423201.5125267119,3304027.2695028349,107420046.34708133,103680359.19686219,156367028.23000002,156028428.97801787,3423201.5125267119,3304027.2695028349,7000]
[null,"Male 50-54",51.998646000000001,79.988649999999993,"male",2,{"$f":"HLOOKUP(Calculations!$E$2,'Prevalence Rates'!$C$3:$BC$249,'Prevalence Rates'!$BD127,FALSE)","v":0.20150375939849624},{"$f":"HLOOKUP(Calculations!$E$2,'Population 2016'!$C$3:$BC$249,'Population 2016'!BD127,FALSE)","v":37819},0,{"$f":"HLOOKUP(Results!E$4,Targeting!$C$3:$F$249,Targeting!$G127,FALSE)","v":2567},{"$f":"IF(AND(OR(Calculations!$E$2=\"Orkney Health Board\",Calculations!$E$2=\"Orkney Islands Local Authority\"),$F127=1),0,IF(AND(OR(Calculations!$E$2=\"Shetland Health Board\",Calculations!$E$2=\"Western Isles Health Board\",Calculations!$E$2=\"Shetland Islands Local Authority\",Calculations!$E$2=\"Eilean Siar Local Authority\"),OR($F127=1,$F127=5)),0,new_ci(VALUE(LEFT(Options!$B$24,2)),$C127,$E127,$F127,2016,$I127,1,$H127,$G127*$H127,Options!$B$8)))","v":268.64078466460001},{"$f":"IF(AND(OR(Calculations!$E$2=\"Orkney Health Board\",Calculations!$E$2=\"Orkney Islands Local Authority\"),$F127=1),0,IF(AND(OR(Calculations!$E$2=\"Shetland Health Board\",Calculations!$E$2=\"Western Isles Health Board\",Calculations!$E$2=\"Shetland Islands Local Authority\",Calculations!$E$2=\"Eilean Siar Local Authority\"),OR($F127=1,$F127=5)),0,new_ci(VALUE(LEFT(Options!$B$24,2)),$C127,$E127,$F127,2016,$I127+$J127,1,$H127,$G127*$H127,Options!$B$8)))","v":259.30679403210002},{"$f":"IF(AND(OR(Calculations!$E$2=\"Orkney Health Board\",Calculations!$E$2=\"Orkney Islands Local Authority\"),$F127=1),0,IF(AND(OR(Calculations!$E$2=\"Shetland Health Board\",Calculations!$E$2=\"Western Isles Health Board\",Calculations!$E$2=\"Shetland Islands Local Authority\",Calculations!$E$2=\"Eilean Siar Local Authority\"),OR($F127=1,$F127=5)),0,new_yllv2(VALUE(LEFT(Options!$B$24,2)),$C127,$D127,$E127,$F127,2016,$I127,1,$H127,$G127*$H127,Options!$B$8)))","v":7250.6158526606996},{"$f":"IF(AND(OR(Calculations!$E$2=\"Orkney Health Board\",Calculations!$E$2=\"Orkney Islands Local Authority\"),$F127=1),0,IF(AND(OR(Calculations!$E$2=\"Shetland Health Board\",Calculations!$E$2=\"Western Isles Health Board\",Calculations!$E$2=\"Shetland Islands Local Authority\",Calculations!$E$2=\"Eilean Siar Local Authority\"),OR($F127=1,$F127=5)),0,new_yllv2(VALUE(LEFT(Options!$B$24,2)),$C127,$D127,$E127,$F127,2016,$I127+$J127,1,$H127,$G127*$H127,Options!$B$8)))","v":6998.6914081535997},{"$f":"IF(AND(OR(Calculations!$E$2=\"Orkney Health Board\",Calculations!$E$2=\"Orkney Islands Local Authority\"),$F127=1),0,IF(AND(OR(Calculations!$E$2=\"Shetland Health Board\",Calculations!$E$2=\"Western Isles Health Board\",Calculations!$E$2=\"Shetland Islands Local Authority\",Calculations!$E$2=\"Eilean Siar Local Authority\"),OR($F127=1,$F127=5)),0,hosp_count(VALUE(LEFT(Options!$B$24,2)),$C127,$E127,$F127,2016,$I127,1,$H127,$G127*$H127, Options!$B$8)))","v":10074.533773875301},{"$f":"IF(AND(OR(Calculations!$E$2=\"Orkney Health Board\",Calculations!$E$2=\"Orkney Islands Local Authority\"),$F127=1),0,IF(AND(OR(Calculations!$E$2=\"Shetland Health Board\",Calculations!$E$2=\"Western Isles Health Board\",Calculations!$E$2=\"Shetland Islands Local Authority\",Calculations!$E$2=\"Eilean Siar Local Authority\"),OR($F127=1,$F127=5)),0,hosp_count(VALUE(LEFT(Options!$B$24,2)),$C127,$E127,$F127,2016,$I127+$J127,1,$H127,$G127*$H127, Options!$B$8)))","v":10052.7249670048},{"$f":"IF(AND(OR(Calculations!$E$2=\"Orkney Health Board\",Calculations!$E$2=\"Orkney Islands Local Authority\"),$F127=1),0,IF(AND(OR(Calculations!$E$2=\"Shetland Health Board\",Calculations!$E$2=\"Western Isles Health Board\",Calculations!$E$2=\"Shetland Islands Local Authority\",Calculations!$E$2=\"Eilean Siar Local Authority\"),OR($F127=1,$F127=5)),0,prem_mort(VALUE(LEFT(Options!$B$24,2)),$C127,$E127,$F127,2016,$I127,1,$H127,$G127*$H127,Options!$B$8)))","v":268.64078466460001},{"$f":"IF(AND(OR(Calculations!$E$2=\"Orkney Health Board\",Calculations!$E$2=\"Orkney Islands Local Authority\"),$F127=1),0,IF(AND(OR(Calculations!$E$2=\"Shetland Health Board\",Calculations!$E$2=\"Western Isles Health Board\",Calculations!$E$2=\"Shetland Islands Local Authority\",Calculations!$E$2=\"Eilean Siar Local Authority\"),OR($F127=1,$F127=5)),0,prem_mort(VALUE(LEFT(Options!$B$24,2)),$C127,$E127,$F127,2016,$I127+$J127,1,$H127,$G127*$H127,Options!$B$8)))","v":259.30679403210002},710.33286090219201,685.65216962928696,19171.886757081626,18505.754800903247,26638.815870000002,26581.149599420398,710.33286090219201,685.65216962928696,4972330.0263153445,4799565.1874050088,134203207.29957138,129540283.60632274,186471711.09,186068047.19594279,4972330.0263153445,4799565.1874050088,7000]
[null,"Male 55-59",56.950867000000002,80.660870000000003,"male",2,{"$f":"HLOOKUP(Calculations!$E$2,'Prevalence Rates'!$C$3:$BC$249,'Prevalence Rates'!$BD128,FALSE)","v":0.3551236749116608},{"$f":"HLOOKUP(Calculations!$E$2,'Population 2016'!$C$3:$BC$249,'Population 2016'!BD128,FALSE)","v":35036},0,{"$f":"HLOOKUP(Results!E$4,Targeting!$C$3:$F$249,Targeting!$G128,FALSE)","v":2378},{"$f":"IF(AND(OR(Calculations!$E$2=\"Orkney Health Board\",Calculations!$E$2=\"Orkney Islands Local Authority\"),$F128=1),0,IF(AND(OR(Calculations!$E$2=\"Shetland Health Board\",Calculations!$E$2=\"Western Isles Health Board\",Calculations!$E$2=\"Shetland Islands Local Authority\",Calculations!$E$2=\"Eilean Siar Local Authority\"),OR($F128=1,$F128=5)),0,new_ci(VALUE(LEFT(Options!$B$24,2)),$C128,$E128,$F128,2016,$I128,1,$H128,$G128*$H128,Options!$B$8)))","v":361.05350924880003},{"$f":"IF(AND(OR(Calculations!$E$2=\"Orkney Health Board\",Calculations!$E$2=\"Orkney Islands Local Authority\"),$F128=1),0,IF(AND(OR(Calculations!$E$2=\"Shetland Health Board\",Calculations!$E$2=\"Western Isles Health Board\",Calculations!$E$2=\"Shetland Islands Local Authority\",Calculations!$E$2=\"Eilean Siar Local Authority\"),OR($F128=1,$F128=5)),0,new_ci(VALUE(LEFT(Options!$B$24,2)),$C128,$E128,$F128,2016,$I128+$J128,1,$H128,$G128*$H128,Options!$B$8)))","v":349.69871453219997},{"$f":"IF(AND(OR(Calculations!$E$2=\"Orkney Health Board\",Calculations!$E$2=\"Orkney Islands Local Authority\"),$F128=1),0,IF(AND(OR(Calculations!$E$2=\"Shetland Health Board\",Calculations!$E$2=\"Western Isles Health Board\",Calculations!$E$2=\"Shetland Islands Local Authority\",Calculations!$E$2=\"Eilean Siar Local Authority\"),OR($F128=1,$F128=5)),0,new_yllv2(VALUE(LEFT(Options!$B$24,2)),$C128,$D128,$E128,$F128,2016,$I128,1,$H128,$G128*$H128,Options!$B$8)))","v":8199.5262782007994},{"$f":"IF(AND(OR(Calculations!$E$2=\"Orkney Health Board\",Calculations!$E$2=\"Orkney Islands Local Authority\"),$F128=1),0,IF(AND(OR(Calculations!$E$2=\"Shetland Health Board\",Calculations!$E$2=\"Western Isles Health Board\",Calculations!$E$2=\"Shetland Islands Local Authority\",Calculations!$E$2=\"Eilean Siar Local Authority\"),OR($F128=1,$F128=5)),0,new_yllv2(VALUE(LEFT(Options!$B$24,2)),$C128,$D128,$E128,$F128,2016,$I128+$J128,1,$H128,$G128*$H128,Options!$B$8)))","v":7941.6588561223998},{"$f":"IF(AND(OR(Calculations!$E$2=\"Orkney Health Board\",Calculations!$E$2=\"Orkney Islands Local Authority\"),$F128=1),0,IF(AND(OR(Calculations!$E$2=\"Shetland Health Board\",Calculations!$E$2=\"Western Isles Health Board\",Calculations!$E$2=\"Shetland Islands Local Authority\",Calculations!$E$2=\"Eilean Siar Local Authority\"),OR($F128=1,$F128=5)),0,hosp_count(VALUE(LEFT(Options!$B$24,2)),$C128,$E128,$F128,2016,$I128,1,$H128,$G128*$H128, Options!$B$8)))","v":11126.785665237599},{"$f":"IF(AND(OR(Calculations!$E$2=\"Orkney Health Board\",Calculations!$E$2=\"Orkney Islands Local Authority\"),$F128=1),0,IF(AND(OR(Calculations!$E$2=\"Shetland Health Board\",Calculations!$E$2=\"Western Isles Health Board\",Calculations!$E$2=\"Shetland Islands Local Authority\",Calculations!$E$2=\"Eilean Siar Local Authority\"),OR($F128=1,$F128=5)),0,hosp_count(VALUE(LEFT(Options!$B$24,2)),$C128,$E128,$F128,2016,$I128+$J128,1,$H128,$G128*$H128, Options!$B$8)))","v":11102.773504869599},{"$f":"IF(AND(OR(Calculations!$E$2=\"Orkney Health Board\",Calculations!$E$2=\"Orkney Islands Local Authority\"),$F128=1),0,IF(AND(OR(Calculations!$E$2=\"Shetland Health Board\",Calculations!$E$2=\"Western Isles Health Board\",Calculations!$E$2=\"Shetland Islands Local Authority\",Calculations!$E$2=\"Eilean Siar Local Authority\"),OR($F128=1,$F128=5)),0,prem_mort(VALUE(LEFT(Options!$B$24,2)),$C128,$E128,$F128,2016,$I128,1,$H128,$G128*$H128,Options!$B$8)))","v":361.05350924880003},{"$f":"IF(AND(OR(Calculations!$E$2=\"Orkney Health Board\",Calculations!$E$2=\"Orkney Islands Local Authority\"),$F128=1),0,IF(AND(OR(Calculations!$E$2=\"Shetland Health Board\",Calculations!$E$2=\"Western Isles Health Board\",Calculations!$E$2=\"Shetland Islands Local Authority\",Calculations!$E$2=\"Eilean Siar Local Authority\"),OR($F128=1,$F128=5)),0,prem_mort(VALUE(LEFT(Options!$B$24,2)),$C128,$E128,$F128,2016,$I128+$J128,1,$H128,$G128*$H128,Options!$B$8)))","v":349.69871453219997},1030.5214900353924,998.11255432184021,23403.146130268295,22667.139102986643,31758.150659999996,31689.614981360883,1030.5214900353924,998.11255432184021,6698389.6852300502,6487731.6030919617,152120449.84674391,147336404.16941318,206427979.28999996,205982497.37884575,6698389.6852300502,6487731.6030919617,6500]
[null,"Male 60-64",61.942988999999997,81.612989999999996,"male",2,{"$f":"HLOOKUP(Calculations!$E$2,'Prevalence Rates'!$C$3:$BC$249,'Prevalence Rates'!$BD129,FALSE)","v":0.3551236749116608},{"$f":"HLOOKUP(Calculations!$E$2,'Population 2016'!$C$3:$BC$249,'Population 2016'!BD129,FALSE)","v":29980},0,{"$f":"HLOOKUP(Results!E$4,Targeting!$C$3:$F$249,Targeting!$G129,FALSE)","v":2035},{"$f":"IF(AND(OR(Calculations!$E$2=\"Orkney Health Board\",Calculations!$E$2=\"Orkney Islands Local Authority\"),$F129=1),0,IF(AND(OR(Calculations!$E$2=\"Shetland Health Board\",Calculations!$E$2=\"Western Isles Health Board\",Calculations!$E$2=\"Shetland Islands Local Authority\",Calculations!$E$2=\"Eilean Siar Local Authority\"),OR($F129=1,$F129=5)),0,new_ci(VALUE(LEFT(Options!$B$24,2)),$C129,$E129,$F129,2016,$I129,1,$H129,$G129*$H129,Options!$B$8)))","v":449.2176864159},{"$f":"IF(AND(OR(Calculations!$E$2=\"Orkney Health Board\",Calculations!$E$2=\"Orkney Islands Local Authority\"),$F129=1),0,IF(AND(OR(Calculations!$E$2=\"Shetland Health Board\",Calculations!$E$2=\"Western Isles Health Board\",Calculations!$E$2=\"Shetland Islands Local Authority\",Calculations!$E$2=\"Eilean Siar Local Authority\"),OR($F129=1,$F129=5)),0,new_ci(VALUE(LEFT(Options!$B$24,2)),$C129,$E129,$F129,2016,$I129+$J129,1,$H129,$G129*$H129,Options!$B$8)))","v":435.13051206189999},{"$f":"IF(AND(OR(Calculations!$E$2=\"Orkney Health Board\",Calculations!$E$2=\"Orkney Islands Local Authority\"),$F129=1),0,IF(AND(OR(Calculations!$E$2=\"Shetland Health Board\",Calculations!$E$2=\"Western Isles Health Board\",Calculations!$E$2=\"Shetland Islands Local Authority\",Calculations!$E$2=\"Eilean Siar Local Authority\"),OR($F129=1,$F129=5)),0,new_yllv2(VALUE(LEFT(Options!$B$24,2)),$C129,$D129,$E129,$F129,2016,$I129,1,$H129,$G129*$H129,Options!$B$8)))","v":8386.8946546024999},{"$f":"IF(AND(OR(Calculations!$E$2=\"Orkney Health Board\",Calculations!$E$2=\"Orkney Islands Local Authority\"),$F129=1),0,IF(AND(OR(Calculations!$E$2=\"Shetland Health Board\",Calculations!$E$2=\"Western Isles Health Board\",Calculations!$E$2=\"Shetland Islands Local Authority\",Calculations!$E$2=\"Eilean Siar Local Authority\"),OR($F129=1,$F129=5)),0,new_yllv2(VALUE(LEFT(Options!$B$24,2)),$C129,$D129,$E129,$F129,2016,$I129+$J129,1,$H129,$G129*$H129,Options!$B$8)))","v":8123.8870953262003},{"$f":"IF(AND(OR(Calculations!$E$2=\"Orkney Health Board\",Calculations!$E$2=\"Orkney Islands Local Authority\"),$F129=1),0,IF(AND(OR(Calculations!$E$2=\"Shetland Health Board\",Calculations!$E$2=\"Western Isles Health Board\",Calculations!$E$2=\"Shetland Islands Local Authority\",Calculations!$E$2=\"Eilean Siar Local Authority\"),OR($F129=1,$F129=5)),0,hosp_count(VALUE(LEFT(Options!$B$24,2)),$C129,$E129,$F129,2016,$I129,1,$H129,$G129*$H129, Options!$B$8)))","v":11366.904471358001},{"$f":"IF(AND(OR(Calculations!$E$2=\"Orkney Health Board\",Calculations!$E$2=\"Orkney Islands Local Authority\"),$F129=1),0,IF(AND(OR(Calculations!$E$2=\"Shetland Health Board\",Calculations!$E$2=\"Western Isles Health Board\",Calculations!$E$2=\"Shetland Islands Local Authority\",Calculations!$E$2=\"Eilean Siar Local Authority\"),OR($F129=1,$F129=5)),0,hosp_count(VALUE(LEFT(Options!$B$24,2)),$C129,$E129,$F129,2016,$I129+$J129,1,$H129,$G129*$H129, Options!$B$8)))","v":11342.372120005301},{"$f":"IF(AND(OR(Calculations!$E$2=\"Orkney Health Board\",Calculations!$E$2=\"Orkney Islands Local Authority\"),$F129=1),0,IF(AND(OR(Calculations!$E$2=\"Shetland Health Board\",Calculations!$E$2=\"Western Isles Health Board\",Calculations!$E$2=\"Shetland Islands Local Authority\",Calculations!$E$2=\"Eilean Siar Local Authority\"),OR($F129=1,$F129=5)),0,prem_mort(VALUE(LEFT(Options!$B$24,2)),$C129,$E129,$F129,2016,$I129,1,$H129,$G129*$H129,Options!$B$8)))","v":449.2176864159},{"$f":"IF(AND(OR(Calculations!$E$2=\"Orkney Health Board\",Calculations!$E$2=\"Orkney Islands Local Authority\"),$F129=1),0,IF(AND(OR(Calculations!$E$2=\"Shetland Health Board\",Calculations!$E$2=\"Western Isles Health Board\",Calculations!$E$2=\"Shetland Islands Local Authority\",Calculations!$E$2=\"Eilean Siar Local Authority\"),OR($F129=1,$F129=5)),0,prem_mort(VALUE(LEFT(Options!$B$24,2)),$C129,$E129,$F129,2016,$I129+$J129,1,$H129,$G129*$H129,Options!$B$8)))","v":435.13051206189999},1498.39121553002,1451.402641967645,27974.96549233656,27097.688776938627,37914.958210000004,37833.12915278619,1498.39121553002,1451.402641967645,8990347.2931801192,8708415.8518058695,167849792.95401937,162586132.66163176,227489749.26000002,226998774.91671714,8990347.2931801192,8708415.8518058695,6000]
[null,"Male 65-69",67.054419999999993,82.954419999999999,"male",2,{"$f":"HLOOKUP(Calculations!$E$2,'Prevalence Rates'!$C$3:$BC$249,'Prevalence Rates'!$BD130,FALSE)","v":0},{"$f":"HLOOKUP(Calculations!$E$2,'Population 2016'!$C$3:$BC$249,'Population 2016'!BD130,FALSE)","v":29727},0,{"$f":"HLOOKUP(Results!E$4,Targeting!$C$3:$F$249,Targeting!$G130,FALSE)","v":0},{"$f":"IF(AND(OR(Calculations!$E$2=\"Orkney Health Board\",Calculations!$E$2=\"Orkney Islands Local Authority\"),$F130=1),0,IF(AND(OR(Calculations!$E$2=\"Shetland Health Board\",Calculations!$E$2=\"Western Isles Health Board\",Calculations!$E$2=\"Shetland Islands Local Authority\",Calculations!$E$2=\"Eilean Siar Local Authority\"),OR($F130=1,$F130=5)),0,new_ci(VALUE(LEFT(Options!$B$24,2)),$C130,$E130,$F130,2016,$I130,1,$H130,$G130*$H130,Options!$B$8)))","v":653.29456828050002},{"$f":"IF(AND(OR(Calculations!$E$2=\"Orkney Health Board\",Calculations!$E$2=\"Orkney Islands Local Authority\"),$F130=1),0,IF(AND(OR(Calculations!$E$2=\"Shetland Health Board\",Calculations!$E$2=\"Western Isles Health Board\",Calculations!$E$2=\"Shetland Islands Local Authority\",Calculations!$E$2=\"Eilean Siar Local Authority\"),OR($F130=1,$F130=5)),0,new_ci(VALUE(LEFT(Options!$B$24,2)),$C130,$E130,$F130,2016,$I130+$J130,1,$H130,$G130*$H130,Options!$B$8)))","v":653.29456828050002},{"$f":"IF(AND(OR(Calculations!$E$2=\"Orkney Health Board\",Calculations!$E$2=\"Orkney Islands Local Authority\"),$F130=1),0,IF(AND(OR(Calculations!$E$2=\"Shetland Health Board\",Calculations!$E$2=\"Western Isles Health Board\",Calculations!$E$2=\"Shetland Islands Local Authority\",Calculations!$E$2=\"Eilean Siar Local Authority\"),OR($F130=1,$F130=5)),0,new_yllv2(VALUE(LEFT(Options!$B$24,2)),$C130,$D130,$E130,$F130,2016,$I130,1,$H130,$G130*$H130,Options!$B$8)))","v":9734.0890673795002},{"$f":"IF(AND(OR(Calculations!$E$2=\"Orkney Health Board\",Calculations!$E$2=\"Orkney Islands Local Authority\"),$F130=1),0,IF(AND(OR(Calculations!$E$2=\"Shetland Health Board\",Calculations!$E$2=\"Western Isles Health Board\",Calculations!$E$2=\"Shetland Islands Local Authority\",Calculations!$E$2=\"Eilean Siar Local Authority\"),OR($F130=1,$F130=5)),0,new_yllv2(VALUE(LEFT(Options!$B$24,2)),$C130,$D130,$E130,$F130,2016,$I130+$J130,1,$H130,$G130*$H130,Options!$B$8)))","v":9734.0890673795002},{"$f":"IF(AND(OR(Calculations!$E$2=\"Orkney Health Board\",Calculations!$E$2=\"Orkney Islands Local Authority\"),$F130=1),0,IF(AND(OR(Calculations!$E$2=\"Shetland Health Board\",Calculations!$E$2=\"Western Isles Health Board\",Calculations!$E$2=\"Shetland Islands Local Authority\",Calculations!$E$2=\"Eilean Siar Local Authority\"),OR($F130=1,$F130=5)),0,hosp_count(VALUE(LEFT(Options!$B$24,2)),$C130,$E130,$F130,2016,$I130,1,$H130,$G130*$H130, Options!$B$8)))","v":13513.138667486101},{"$f":"IF(AND(OR(Calculations!$E$2=\"Orkney Health Board\",Calculations!$E$2=\"Orkney Islands Local Authority\"),$F130=1),0,IF(AND(OR(Calculations!$E$2=\"Shetland Health Board\",Calculations!$E$2=\"Western Isles Health Board\",Calculations!$E$2=\"Shetland Islands Local Authority\",Calculations!$E$2=\"Eilean Siar Local Authority\"),OR($F130=1,$F130=5)),0,hosp_count(VALUE(LEFT(Options!$B$24,2)),$C130,$E130,$F130,2016,$I130+$J130,1,$H130,$G130*$H130, Options!$B$8)))","v":13513.138667486101},{"$f":"IF(AND(OR(Calculations!$E$2=\"Orkney Health Board\",Calculations!$E$2=\"Orkney Islands Local Authority\"),$F130=1),0,IF(AND(OR(Calculations!$E$2=\"Shetland Health Board\",Calculations!$E$2=\"Western Isles Health Board\",Calculations!$E$2=\"Shetland Islands Local Authority\",Calculations!$E$2=\"Eilean Siar Local Authority\"),OR($F130=1,$F130=5)),0,prem_mort(VALUE(LEFT(Options!$B$24,2)),$C130,$E130,$F130,2016,$I130,1,$H130,$G130*$H130,Options!$B$8)))","v":653.29456828050002},{"$f":"IF(AND(OR(Calculations!$E$2=\"Orkney Health Board\",Calculations!$E$2=\"Orkney Islands Local Authority\"),$F130=1),0,IF(AND(OR(Calculations!$E$2=\"Shetland Health Board\",Calculations!$E$2=\"Western Isles Health Board\",Calculations!$E$2=\"Shetland Islands Local Authority\",Calculations!$E$2=\"Eilean Siar Local Authority\"),OR($F130=1,$F130=5)),0,prem_mort(VALUE(LEFT(Options!$B$24,2)),$C130,$E130,$F130,2016,$I130+$J130,1,$H130,$G130*$H130,Options!$B$8)))","v":653.29456828050002},2197.6471500000002,2197.6471500000002,32744.942535000166,32744.942535000166,45457.458429999999,45457.458429999999,2197.6471500000002,2197.6471500000002,12087059.325000001,12087059.325000001,180097183.94250092,180097183.94250092,250016021.36499998,250016021.36499998,12087059.325000001,12087059.325000001,5500]
[null,"Male 70-74",71.891098,84.341099999999997,"male",2,{"$f":"HLOOKUP(Calculations!$E$2,'Prevalence Rates'!$C$3:$BC$249,'Prevalence Rates'!$BD131,FALSE)","v":0},{"$f":"HLOOKUP(Calculations!$E$2,'Population 2016'!$C$3:$BC$249,'Population 2016'!BD131,FALSE)","v":22052},0,{"$f":"HLOOKUP(Results!E$4,Targeting!$C$3:$F$249,Targeting!$G131,FALSE)","v":0},{"$f":"IF(AND(OR(Calculations!$E$2=\"Orkney Health Board\",Calculations!$E$2=\"Orkney Islands Local Authority\"),$F131=1),0,IF(AND(OR(Calculations!$E$2=\"Shetland Health Board\",Calculations!$E$2=\"Western Isles Health Board\",Calculations!$E$2=\"Shetland Islands Local Authority\",Calculations!$E$2=\"Eilean Siar Local Authority\"),OR($F131=1,$F131=5)),0,new_ci(VALUE(LEFT(Options!$B$24,2)),$C131,$E131,$F131,2016,$I131,1,$H131,$G131*$H131,Options!$B$8)))","v":694.82427103880002},{"$f":"IF(AND(OR(Calculations!$E$2=\"Orkney Health Board\",Calculations!$E$2=\"Orkney Islands Local Authority\"),$F131=1),0,IF(AND(OR(Calculations!$E$2=\"Shetland Health Board\",Calculations!$E$2=\"Western Isles Health Board\",Calculations!$E$2=\"Shetland Islands Local Authority\",Calculations!$E$2=\"Eilean Siar Local Authority\"),OR($F131=1,$F131=5)),0,new_ci(VALUE(LEFT(Options!$B$24,2)),$C131,$E131,$F131,2016,$I131+$J131,1,$H131,$G131*$H131,Options!$B$8)))","v":694.82427103880002},{"$f":"IF(AND(OR(Calculations!$E$2=\"Orkney Health Board\",Calculations!$E$2=\"Orkney Islands Local Authority\"),$F131=1),0,IF(AND(OR(Calculations!$E$2=\"Shetland Health Board\",Calculations!$E$2=\"Western Isles Health Board\",Calculations!$E$2=\"Shetland Islands Local Authority\",Calculations!$E$2=\"Eilean Siar Local Authority\"),OR($F131=1,$F131=5)),0,new_yllv2(VALUE(LEFT(Options!$B$24,2)),$C131,$D131,$E131,$F131,2016,$I131,1,$H131,$G131*$H131,Options!$B$8)))","v":7955.7392930428005},{"$f":"IF(AND(OR(Calculations!$E$2=\"Orkney Health Board\",Calculations!$E$2=\"Orkney Islands Local Authority\"),$F131=1),0,IF(AND(OR(Calculations!$E$2=\"Shetland Health Board\",Calculations!$E$2=\"Western Isles Health Board\",Calculations!$E$2=\"Shetland Islands Local Authority\",Calculations!$E$2=\"Eilean Siar Local Authority\"),OR($F131=1,$F131=5)),0,new_yllv2(VALUE(LEFT(Options!$B$24,2)),$C131,$D131,$E131,$F131,2016,$I131+$J131,1,$H131,$G131*$H131,Options!$B$8)))","v":7955.7392930428005},{"$f":"IF(AND(OR(Calculations!$E$2=\"Orkney Health Board\",Calculations!$E$2=\"Orkney Islands Local Authority\"),$F131=1),0,IF(AND(OR(Calculations!$E$2=\"Shetland Health Board\",Calculations!$E$2=\"Western Isles Health Board\",Calculations!$E$2=\"Shetland Islands Local Authority\",Calculations!$E$2=\"Eilean Siar Local Authority\"),OR($F131=1,$F131=5)),0,hosp_count(VALUE(LEFT(Options!$B$24,2)),$C131,$E131,$F131,2016,$I131,1,$H131,$G131*$H131, Options!$B$8)))","v":11901.790057320401},{"$f":"IF(AND(OR(Calculations!$E$2=\"Orkney Health Board\",Calculations!$E$2=\"Orkney Islands Local Authority\"),$F131=1),0,IF(AND(OR(Calculations!$E$2=\"Shetland Health Board\",Calculations!$E$2=\"Western Isles Health Board\",Calculations!$E$2=\"Shetland Islands Local Authority\",Calculations!$E$2=\"Eilean Siar Local Authority\"),OR($F131=1,$F131=5)),0,hosp_count(VALUE(LEFT(Options!$B$24,2)),$C131,$E131,$F131,2016,$I131+$J131,1,$H131,$G131*$H131, Options!$B$8)))","v":11901.790057320401},{"$f":"IF(AND(OR(Calculations!$E$2=\"Orkney Health Board\",Calculations!$E$2=\"Orkney Islands Local Authority\"),$F131=1),0,IF(AND(OR(Calculations!$E$2=\"Shetland Health Board\",Calculations!$E$2=\"Western Isles Health Board\",Calculations!$E$2=\"Shetland Islands Local Authority\",Calculations!$E$2=\"Eilean Siar Local Authority\"),OR($F131=1,$F131=5)),0,prem_mort(VALUE(LEFT(Options!$B$24,2)),$C131,$E131,$F131,2016,$I131,1,$H131,$G131*$H131,Options!$B$8)))","v":694.82427103880002},{"$f":"IF(AND(OR(Calculations!$E$2=\"Orkney Health Board\",Calculations!$E$2=\"Orkney Islands Local Authority\"),$F131=1),0,IF(AND(OR(Calculations!$E$2=\"Shetland Health Board\",Calculations!$E$2=\"Western Isles Health Board\",Calculations!$E$2=\"Shetland Islands Local Authority\",Calculations!$E$2=\"Eilean Siar Local Authority\"),OR($F131=1,$F131=5)),0,prem_mort(VALUE(LEFT(Options!$B$24,2)),$C131,$E131,$F131,2016,$I131+$J131,1,$H131,$G131*$H131,Options!$B$8)))","v":694.82427103880002},3150.8446900000004,3150.8446900000004,36077.178002189372,36077.178002189372,53971.476770000008,53971.476770000008,3150.8446900000004,3150.8446900000004,15754223.450000001,15754223.450000001,180385890.01094687,180385890.01094687,269857383.85000002,269857383.85000002,15754223.450000001,15754223.450000001,5000]
[null,"Male 75-79",76.907700000000006,86.357700000000008,"male",2,{"$f":"HLOOKUP(Calculations!$E$2,'Prevalence Rates'!$C$3:$BC$249,'Prevalence Rates'!$BD132,FALSE)","v":0},{"$f":"HLOOKUP(Calculations!$E$2,'Population 2016'!$C$3:$BC$249,'Population 2016'!BD132,FALSE)","v":16695},0,{"$f":"HLOOKUP(Results!E$4,Targeting!$C$3:$F$249,Targeting!$G132,FALSE)","v":0},{"$f":"IF(AND(OR(Calculations!$E$2=\"Orkney Health Board\",Calculations!$E$2=\"Orkney Islands Local Authority\"),$F132=1),0,IF(AND(OR(Calculations!$E$2=\"Shetland Health Board\",Calculations!$E$2=\"Western Isles Health Board\",Calculations!$E$2=\"Shetland Islands Local Authority\",Calculations!$E$2=\"Eilean Siar Local Authority\"),OR($F132=1,$F132=5)),0,new_ci(VALUE(LEFT(Options!$B$24,2)),$C132,$E132,$F132,2016,$I132,1,$H132,$G132*$H132,Options!$B$8)))","v":762.63883907399997},{"$f":"IF(AND(OR(Calculations!$E$2=\"Orkney Health Board\",Calculations!$E$2=\"Orkney Islands Local Authority\"),$F132=1),0,IF(AND(OR(Calculations!$E$2=\"Shetland Health Board\",Calculations!$E$2=\"Western Isles Health Board\",Calculations!$E$2=\"Shetland Islands Local Authority\",Calculations!$E$2=\"Eilean Siar Local Authority\"),OR($F132=1,$F132=5)),0,new_ci(VALUE(LEFT(Options!$B$24,2)),$C132,$E132,$F132,2016,$I132+$J132,1,$H132,$G132*$H132,Options!$B$8)))","v":762.63883907399997},{"$f":"IF(AND(OR(Calculations!$E$2=\"Orkney Health Board\",Calculations!$E$2=\"Orkney Islands Local Authority\"),$F132=1),0,IF(AND(OR(Calculations!$E$2=\"Shetland Health Board\",Calculations!$E$2=\"Western Isles Health Board\",Calculations!$E$2=\"Shetland Islands Local Authority\",Calculations!$E$2=\"Eilean Siar Local Authority\"),OR($F132=1,$F132=5)),0,new_yllv2(VALUE(LEFT(Options!$B$24,2)),$C132,$D132,$E132,$F132,2016,$I132,1,$H132,$G132*$H132,Options!$B$8)))","v":6444.2981901753001},{"$f":"IF(AND(OR(Calculations!$E$2=\"Orkney Health Board\",Calculations!$E$2=\"Orkney Islands Local Authority\"),$F132=1),0,IF(AND(OR(Calculations!$E$2=\"Shetland Health Board\",Calculations!$E$2=\"Western Isles Health Board\",Calculations!$E$2=\"Shetland Islands Local Authority\",Calculations!$E$2=\"Eilean Siar Local Authority\"),OR($F132=1,$F132=5)),0,new_yllv2(VALUE(LEFT(Options!$B$24,2)),$C132,$D132,$E132,$F132,2016,$I132+$J132,1,$H132,$G132*$H132,Options!$B$8)))","v":6444.2981901753001},{"$f":"IF(AND(OR(Calculations!$E$2=\"Orkney Health Board\",Calculations!$E$2=\"Orkney Islands Local Authority\"),$F132=1),0,IF(AND(OR(Calculations!$E$2=\"Shetland Health Board\",Calculations!$E$2=\"Western Isles Health Board\",Calculations!$E$2=\"Shetland Islands Local Authority\",Calculations!$E$2=\"Eilean Siar Local Authority\"),OR($F132=1,$F132=5)),0,hosp_count(VALUE(LEFT(Options!$B$24,2)),$C132,$E132,$F132,2016,$I132,1,$H132,$G132*$H132, Options!$B$8)))","v":10766.7212647995},{"$f":"IF(AND(OR(Calculations!$E$2=\"Orkney Health Board\",Calculations!$E$2=\"Orkney Islands Local Authority\"),$F132=1),0,IF(AND(OR(Calculations!$E$2=\"Shetland Health Board\",Calculations!$E$2=\"Western Isles Health Board\",Calculations!$E$2=\"Shetland Islands Local Authority\",Calculations!$E$2=\"Eilean Siar Local Authority\"),OR($F132=1,$F132=5)),0,hosp_count(VALUE(LEFT(Options!$B$24,2)),$C132,$E132,$F132,2016,$I132+$J132,1,$H132,$G132*$H132, Options!$B$8)))","v":10766.7212647995},{"$f":"IF(AND(OR(Calculations!$E$2=\"Orkney Health Board\",Calculations!$E$2=\"Orkney Islands Local Authority\"),$F132=1),0,IF(AND(OR(Calculations!$E$2=\"Shetland Health Board\",Calculations!$E$2=\"Western Isles Health Board\",Calculations!$E$2=\"Shetland Islands Local Authority\",Calculations!$E$2=\"Eilean Siar Local Authority\"),OR($F132=1,$F132=5)),0,prem_mort(VALUE(LEFT(Options!$B$24,2)),$C132,$E132,$F132,2016,$I132,1,$H132,$G132*$H132,Options!$B$8)))","v":0},{"$f":"IF(AND(OR(Calculations!$E$2=\"Orkney Health Board\",Calculations!$E$2=\"Orkney Islands Local Authority\"),$F132=1),0,IF(AND(OR(Calculations!$E$2=\"Shetland Health Board\",Calculations!$E$2=\"Western Isles Health Board\",Calculations!$E$2=\"Shetland Islands Local Authority\",Calculations!$E$2=\"Eilean Siar Local Authority\"),OR($F132=1,$F132=5)),0,prem_mort(VALUE(LEFT(Options!$B$24,2)),$C132,$E132,$F132,2016,$I132+$J132,1,$H132,$G132*$H132,Options!$B$8)))","v":0},4568.0673200000001,4568.0673200000001,38600.168853999996,38600.168853999996,64490.69341,64490.69341,0,0,18272269.280000001,18272269.280000001,154400675.41599998,154400675.41599998,257962773.63999999,257962773.63999999,0,0,4000]
[null,"Male 80-84",81.797089,88.627089999999995,"male",2,{"$f":"HLOOKUP(Calculations!$E$2,'Prevalence Rates'!$C$3:$BC$249,'Prevalence Rates'!$BD133,FALSE)","v":0},{"$f":"HLOOKUP(Calculations!$E$2,'Population 2016'!$C$3:$BC$249,'Population 2016'!BD133,FALSE)","v":11333},0,{"$f":"HLOOKUP(Results!E$4,Targeting!$C$3:$F$249,Targeting!$G133,FALSE)","v":0},{"$f":"IF(AND(OR(Calculations!$E$2=\"Orkney Health Board\",Calculations!$E$2=\"Orkney Islands Local Authority\"),$F133=1),0,IF(AND(OR(Calculations!$E$2=\"Shetland Health Board\",Calculations!$E$2=\"Western Isles Health Board\",Calculations!$E$2=\"Shetland Islands Local Authority\",Calculations!$E$2=\"Eilean Siar Local Authority\"),OR($F133=1,$F133=5)),0,new_ci(VALUE(LEFT(Options!$B$24,2)),$C133,$E133,$F133,2016,$I133,1,$H133,$G133*$H133,Options!$B$8)))","v":741.14265064560004},{"$f":"IF(AND(OR(Calculations!$E$2=\"Orkney Health Board\",Calculations!$E$2=\"Orkney Islands Local Authority\"),$F133=1),0,IF(AND(OR(Calculations!$E$2=\"Shetland Health Board\",Calculations!$E$2=\"Western Isles Health Board\",Calculations!$E$2=\"Shetland Islands Local Authority\",Calculations!$E$2=\"Eilean Siar Local Authority\"),OR($F133=1,$F133=5)),0,new_ci(VALUE(LEFT(Options!$B$24,2)),$C133,$E133,$F133,2016,$I133+$J133,1,$H133,$G133*$H133,Options!$B$8)))","v":741.14265064560004},{"$f":"IF(AND(OR(Calculations!$E$2=\"Orkney Health Board\",Calculations!$E$2=\"Orkney Islands Local Authority\"),$F133=1),0,IF(AND(OR(Calculations!$E$2=\"Shetland Health Board\",Calculations!$E$2=\"Western Isles Health Board\",Calculations!$E$2=\"Shetland Islands Local Authority\",Calculations!$E$2=\"Eilean Siar Local Authority\"),OR($F133=1,$F133=5)),0,new_yllv2(VALUE(LEFT(Options!$B$24,2)),$C133,$D133,$E133,$F133,2016,$I133,1,$H133,$G133*$H133,Options!$B$8)))","v":4320.8623944065002},{"$f":"IF(AND(OR(Calculations!$E$2=\"Orkney Health Board\",Calculations!$E$2=\"Orkney Islands Local Authority\"),$F133=1),0,IF(AND(OR(Calculations!$E$2=\"Shetland Health Board\",Calculations!$E$2=\"Western Isles Health Board\",Calculations!$E$2=\"Shetland Islands Local Authority\",Calculations!$E$2=\"Eilean Siar Local Authority\"),OR($F133=1,$F133=5)),0,new_yllv2(VALUE(LEFT(Options!$B$24,2)),$C133,$D133,$E133,$F133,2016,$I133+$J133,1,$H133,$G133*$H133,Options!$B$8)))","v":4320.8623944065002},{"$f":"IF(AND(OR(Calculations!$E$2=\"Orkney Health Board\",Calculations!$E$2=\"Orkney Islands Local Authority\"),$F133=1),0,IF(AND(OR(Calculations!$E$2=\"Shetland Health Board\",Calculations!$E$2=\"Western Isles Health Board\",Calculations!$E$2=\"Shetland Islands Local Authority\",Calculations!$E$2=\"Eilean Siar Local Authority\"),OR($F133=1,$F133=5)),0,hosp_count(VALUE(LEFT(Options!$B$24,2)),$C133,$E133,$F133,2016,$I133,1,$H133,$G133*$H133, Options!$B$8)))","v":8693.8800865902995},{"$f":"IF(AND(OR(Calculations!$E$2=\"Orkney Health Board\",Calculations!$E$2=\"Orkney Islands Local Authority\"),$F133=1),0,IF(AND(OR(Calculations!$E$2=\"Shetland Health Board\",Calculations!$E$2=\"Western Isles Health Board\",Calculations!$E$2=\"Shetland Islands Local Authority\",Calculations!$E$2=\"Eilean Siar Local Authority\"),OR($F133=1,$F133=5)),0,hosp_count(VALUE(LEFT(Options!$B$24,2)),$C133,$E133,$F133,2016,$I133+$J133,1,$H133,$G133*$H133, Options!$B$8)))","v":8693.8800865902995},{"$f":"IF(AND(OR(Calculations!$E$2=\"Orkney Health Board\",Calculations!$E$2=\"Orkney Islands Local Authority\"),$F133=1),0,IF(AND(OR(Calculations!$E$2=\"Shetland Health Board\",Calculations!$E$2=\"Western Isles Health Board\",Calculations!$E$2=\"Shetland Islands Local Authority\",Calculations!$E$2=\"Eilean Siar Local Authority\"),OR($F133=1,$F133=5)),0,prem_mort(VALUE(LEFT(Options!$B$24,2)),$C133,$E133,$F133,2016,$I133,1,$H133,$G133*$H133,Options!$B$8)))","v":0},{"$f":"IF(AND(OR(Calculations!$E$2=\"Orkney Health Board\",Calculations!$E$2=\"Orkney Islands Local Authority\"),$F133=1),0,IF(AND(OR(Calculations!$E$2=\"Shetland Health Board\",Calculations!$E$2=\"Western Isles Health Board\",Calculations!$E$2=\"Shetland Islands Local Authority\",Calculations!$E$2=\"Eilean Siar Local Authority\"),OR($F133=1,$F133=5)),0,prem_mort(VALUE(LEFT(Options!$B$24,2)),$C133,$E133,$F133,2016,$I133+$J133,1,$H133,$G133*$H133,Options!$B$8)))","v":0},6539.6863200000007,6539.6863200000007,38126.377785286335,38126.377785286335,76712.962910000002,76712.962910000002,0,0,16349215.800000003,16349215.800000003,95315944.463215843,95315944.463215843,191782407.27500001,191782407.27500001,0,0,2500]
[null,"Male 85-89",86.630752999999999,91.420750000000012,"male",2,{"$f":"HLOOKUP(Calculations!$E$2,'Prevalence Rates'!$C$3:$BC$249,'Prevalence Rates'!$BD134,FALSE)","v":0},{"$f":"HLOOKUP(Calculations!$E$2,'Population 2016'!$C$3:$BC$249,'Population 2016'!BD134,FALSE)","v":5568},0,{"$f":"HLOOKUP(Results!E$4,Targeting!$C$3:$F$249,Targeting!$G134,FALSE)","v":0},{"$f":"IF(AND(OR(Calculations!$E$2=\"Orkney Health Board\",Calculations!$E$2=\"Orkney Islands Local Authority\"),$F134=1),0,IF(AND(OR(Calculations!$E$2=\"Shetland Health Board\",Calculations!$E$2=\"Western Isles Health Board\",Calculations!$E$2=\"Shetland Islands Local Authority\",Calculations!$E$2=\"Eilean Siar Local Authority\"),OR($F134=1,$F134=5)),0,new_ci(VALUE(LEFT(Options!$B$24,2)),$C134,$E134,$F134,2016,$I134,1,$H134,$G134*$H134,Options!$B$8)))","v":516.8497854144},{"$f":"IF(AND(OR(Calculations!$E$2=\"Orkney Health Board\",Calculations!$E$2=\"Orkney Islands Local Authority\"),$F134=1),0,IF(AND(OR(Calculations!$E$2=\"Shetland Health Board\",Calculations!$E$2=\"Western Isles Health Board\",Calculations!$E$2=\"Shetland Islands Local Authority\",Calculations!$E$2=\"Eilean Siar Local Authority\"),OR($F134=1,$F134=5)),0,new_ci(VALUE(LEFT(Options!$B$24,2)),$C134,$E134,$F134,2016,$I134+$J134,1,$H134,$G134*$H134,Options!$B$8)))","v":516.8497854144},{"$f":"IF(AND(OR(Calculations!$E$2=\"Orkney Health Board\",Calculations!$E$2=\"Orkney Islands Local Authority\"),$F134=1),0,IF(AND(OR(Calculations!$E$2=\"Shetland Health Board\",Calculations!$E$2=\"Western Isles Health Board\",Calculations!$E$2=\"Shetland Islands Local Authority\",Calculations!$E$2=\"Eilean Siar Local Authority\"),OR($F134=1,$F134=5)),0,new_yllv2(VALUE(LEFT(Options!$B$24,2)),$C134,$D134,$E134,$F134,2016,$I134,1,$H134,$G134*$H134,Options!$B$8)))","v":1958.8591361711999},{"$f":"IF(AND(OR(Calculations!$E$2=\"Orkney Health Board\",Calculations!$E$2=\"Orkney Islands Local Authority\"),$F134=1),0,IF(AND(OR(Calculations!$E$2=\"Shetland Health Board\",Calculations!$E$2=\"Western Isles Health Board\",Calculations!$E$2=\"Shetland Islands Local Authority\",Calculations!$E$2=\"Eilean Siar Local Authority\"),OR($F134=1,$F134=5)),0,new_yllv2(VALUE(LEFT(Options!$B$24,2)),$C134,$D134,$E134,$F134,2016,$I134+$J134,1,$H134,$G134*$H134,Options!$B$8)))","v":1958.8591361711999},{"$f":"IF(AND(OR(Calculations!$E$2=\"Orkney Health Board\",Calculations!$E$2=\"Orkney Islands Local Authority\"),$F134=1),0,IF(AND(OR(Calculations!$E$2=\"Shetland Health Board\",Calculations!$E$2=\"Western Isles Health Board\",Calculations!$E$2=\"Shetland Islands Local Authority\",Calculations!$E$2=\"Eilean Siar Local Authority\"),OR($F134=1,$F134=5)),0,hosp_count(VALUE(LEFT(Options!$B$24,2)),$C134,$E134,$F134,2016,$I134,1,$H134,$G134*$H134, Options!$B$8)))","v":5070.8489366592003},{"$f":"IF(AND(OR(Calculations!$E$2=\"Orkney Health Board\",Calculations!$E$2=\"Orkney Islands Local Authority\"),$F134=1),0,IF(AND(OR(Calculations!$E$2=\"Shetland Health Board\",Calculations!$E$2=\"Western Isles Health Board\",Calculations!$E$2=\"Shetland Islands Local Authority\",Calculations!$E$2=\"Eilean Siar Local Authority\"),OR($F134=1,$F134=5)),0,hosp_count(VALUE(LEFT(Options!$B$24,2)),$C134,$E134,$F134,2016,$I134+$J134,1,$H134,$G134*$H134, Options!$B$8)))","v":5070.8489366592003},{"$f":"IF(AND(OR(Calculations!$E$2=\"Orkney Health Board\",Calculations!$E$2=\"Orkney Islands Local Authority\"),$F134=1),0,IF(AND(OR(Calculations!$E$2=\"Shetland Health Board\",Calculations!$E$2=\"Western Isles Health Board\",Calculations!$E$2=\"Shetland Islands Local Authority\",Calculations!$E$2=\"Eilean Siar Local Authority\"),OR($F134=1,$F134=5)),0,prem_mort(VALUE(LEFT(Options!$B$24,2)),$C134,$E134,$F134,2016,$I134,1,$H134,$G134*$H134,Options!$B$8)))","v":0},{"$f":"IF(AND(OR(Calculations!$E$2=\"Orkney Health Board\",Calculations!$E$2=\"Orkney Islands Local Authority\"),$F134=1),0,IF(AND(OR(Calculations!$E$2=\"Shetland Health Board\",Calculations!$E$2=\"Western Isles Health Board\",Calculations!$E$2=\"Shetland Islands Local Authority\",Calculations!$E$2=\"Eilean Siar Local Authority\"),OR($F134=1,$F134=5)),0,prem_mort(VALUE(LEFT(Options!$B$24,2)),$C134,$E134,$F134,2016,$I134+$J134,1,$H134,$G134*$H134,Options!$B$8)))","v":0},9282.5033300000014,9282.5033300000014,35180.659773189655,35180.659773189655,91071.281190000009,91071.281190000009,0,0,13923754.995000003,13923754.995000003,52770989.659784481,52770989.659784481,136606921.78500003,136606921.78500003,0,0,1500]
[null,"Male 90+",92.215477000000007,95.515479999999997,"male",2,{"$f":"HLOOKUP(Calculations!$E$2,'Prevalence Rates'!$C$3:$BC$249,'Prevalence Rates'!$BD135,FALSE)","v":0},{"$f":"HLOOKUP(Calculations!$E$2,'Population 2016'!$C$3:$BC$249,'Population 2016'!BD135,FALSE)","v":2286},0,{"$f":"HLOOKUP(Results!E$4,Targeting!$C$3:$F$249,Targeting!$G135,FALSE)","v":0},{"$f":"IF(AND(OR(Calculations!$E$2=\"Orkney Health Board\",Calculations!$E$2=\"Orkney Islands Local Authority\"),$F135=1),0,IF(AND(OR(Calculations!$E$2=\"Shetland Health Board\",Calculations!$E$2=\"Western Isles Health Board\",Calculations!$E$2=\"Shetland Islands Local Authority\",Calculations!$E$2=\"Eilean Siar Local Authority\"),OR($F135=1,$F135=5)),0,new_ci(VALUE(LEFT(Options!$B$24,2)),$C135,$E135,$F135,2016,$I135,1,$H135,$G135*$H135,Options!$B$8)))","v":315.49134486060001},{"$f":"IF(AND(OR(Calculations!$E$2=\"Orkney Health Board\",Calculations!$E$2=\"Orkney Islands Local Authority\"),$F135=1),0,IF(AND(OR(Calculations!$E$2=\"Shetland Health Board\",Calculations!$E$2=\"Western Isles Health Board\",Calculations!$E$2=\"Shetland Islands Local Authority\",Calculations!$E$2=\"Eilean Siar Local Authority\"),OR($F135=1,$F135=5)),0,new_ci(VALUE(LEFT(Options!$B$24,2)),$C135,$E135,$F135,2016,$I135+$J135,1,$H135,$G135*$H135,Options!$B$8)))","v":315.49134486060001},{"$f":"IF(AND(OR(Calculations!$E$2=\"Orkney Health Board\",Calculations!$E$2=\"Orkney Islands Local Authority\"),$F135=1),0,IF(AND(OR(Calculations!$E$2=\"Shetland Health Board\",Calculations!$E$2=\"Western Isles Health Board\",Calculations!$E$2=\"Shetland Islands Local Authority\",Calculations!$E$2=\"Eilean Siar Local Authority\"),OR($F135=1,$F135=5)),0,new_yllv2(VALUE(LEFT(Options!$B$24,2)),$C135,$D135,$E135,$F135,2016,$I135,1,$H135,$G135*$H135,Options!$B$8)))","v":725.63103965339997},{"$f":"IF(AND(OR(Calculations!$E$2=\"Orkney Health Board\",Calculations!$E$2=\"Orkney Islands Local Authority\"),$F135=1),0,IF(AND(OR(Calculations!$E$2=\"Shetland Health Board\",Calculations!$E$2=\"Western Isles Health Board\",Calculations!$E$2=\"Shetland Islands Local Authority\",Calculations!$E$2=\"Eilean Siar Local Authority\"),OR($F135=1,$F135=5)),0,new_yllv2(VALUE(LEFT(Options!$B$24,2)),$C135,$D135,$E135,$F135,2016,$I135+$J135,1,$H135,$G135*$H135,Options!$B$8)))","v":725.63103965339997},{"$f":"IF(AND(OR(Calculations!$E$2=\"Orkney Health Board\",Calculations!$E$2=\"Orkney Islands Local Authority\"),$F135=1),0,IF(AND(OR(Calculations!$E$2=\"Shetland Health Board\",Calculations!$E$2=\"Western Isles Health Board\",Calculations!$E$2=\"Shetland Islands Local Authority\",Calculations!$E$2=\"Eilean Siar Local Authority\"),OR($F135=1,$F135=5)),0,hosp_count(VALUE(LEFT(Options!$B$24,2)),$C135,$E135,$F135,2016,$I135,1,$H135,$G135*$H135, Options!$B$8)))","v":2538.3308308974001},{"$f":"IF(AND(OR(Calculations!$E$2=\"Orkney Health Board\",Calculations!$E$2=\"Orkney Islands Local Authority\"),$F135=1),0,IF(AND(OR(Calculations!$E$2=\"Shetland Health Board\",Calculations!$E$2=\"Western Isles Health Board\",Calculations!$E$2=\"Shetland Islands Local Authority\",Calculations!$E$2=\"Eilean Siar Local Authority\"),OR($F135=1,$F135=5)),0,hosp_count(VALUE(LEFT(Options!$B$24,2)),$C135,$E135,$F135,2016,$I135+$J135,1,$H135,$G135*$H135, Options!$B$8)))","v":2538.3308308974001},{"$f":"IF(AND(OR(Calculations!$E$2=\"Orkney Health Board\",Calculations!$E$2=\"Orkney Islands Local Authority\"),$F135=1),0,IF(AND(OR(Calculations!$E$2=\"Shetland Health Board\",Calculations!$E$2=\"Western Isles Health Board\",Calculations!$E$2=\"Shetland Islands Local Authority\",Calculations!$E$2=\"Eilean Siar Local Authority\"),OR($F135=1,$F135=5)),0,prem_mort(VALUE(LEFT(Options!$B$24,2)),$C135,$E135,$F135,2016,$I135,1,$H135,$G135*$H135,Options!$B$8)))","v":0},{"$f":"IF(AND(OR(Calculations!$E$2=\"Orkney Health Board\",Calculations!$E$2=\"Orkney Islands Local Authority\"),$F135=1),0,IF(AND(OR(Calculations!$E$2=\"Shetland Health Board\",Calculations!$E$2=\"Western Isles Health Board\",Calculations!$E$2=\"Shetland Islands Local Authority\",Calculations!$E$2=\"Eilean Siar Local Authority\"),OR($F135=1,$F135=5)),0,prem_mort(VALUE(LEFT(Options!$B$24,2)),$C135,$E135,$F135,2016,$I135+$J135,1,$H135,$G135*$H135,Options!$B$8)))","v":0},13801.021210000001,13801.021210000001,31742.390186062992,31742.390186062992,111038.09409,111038.09409,0,0,13801021.210000001,13801021.210000001,31742390.186062992,31742390.186062992,111038094.09,111038094.09,0,0,1000]
[null,"Female 0-4",2.0384007,81.468401,"female",3,{"$f":"HLOOKUP(Calculations!$E$2,'Prevalence Rates'!$C$3:$BC$249,'Prevalence Rates'!$BD136,FALSE)","v":0},{"$f":"HLOOKUP(Calculations!$E$2,'Population 2016'!$C$3:$BC$249,'Population 2016'!BD136,FALSE)","v":0},0,{"$f":"HLOOKUP(Results!E$4,Targeting!$C$3:$F$249,Targeting!$G136,FALSE)","v":0},{"$f":"IF(AND(OR(Calculations!$E$2=\"Orkney Health Board\",Calculations!$E$2=\"Orkney Islands Local Authority\"),$F136=1),0,IF(AND(OR(Calculations!$E$2=\"Shetland Health Board\",Calculations!$E$2=\"Western Isles Health Board\",Calculations!$E$2=\"Shetland Islands Local Authority\",Calculations!$E$2=\"Eilean Siar Local Authority\"),OR($F136=1,$F136=5)),0,new_ci(VALUE(LEFT(Options!$B$24,2)),$C136,$E136,$F136,2016,$I136,1,$H136,$G136*$H136,Options!$B$8)))","v":{"$error":"#VALUE!"}},{"$f":"IF(AND(OR(Calculations!$E$2=\"Orkney Health Board\",Calculations!$E$2=\"Orkney Islands Local Authority\"),$F136=1),0,IF(AND(OR(Calculations!$E$2=\"Shetland Health Board\",Calculations!$E$2=\"Western Isles Health Board\",Calculations!$E$2=\"Shetland Islands Local Authority\",Calculations!$E$2=\"Eilean Siar Local Authority\"),OR($F136=1,$F136=5)),0,new_ci(VALUE(LEFT(Options!$B$24,2)),$C136,$E136,$F136,2016,$I136+$J136,1,$H136,$G136*$H136,Options!$B$8)))","v":{"$error":"#VALUE!"}},{"$f":"IF(AND(OR(Calculations!$E$2=\"Orkney Health Board\",Calculations!$E$2=\"Orkney Islands Local Authority\"),$F136=1),0,IF(AND(OR(Calculations!$E$2=\"Shetland Health Board\",Calculations!$E$2=\"Western Isles Health Board\",Calculations!$E$2=\"Shetland Islands Local Authority\",Calculations!$E$2=\"Eilean Siar Local Authority\"),OR($F136=1,$F136=5)),0,new_yllv2(VALUE(LEFT(Options!$B$24,2)),$C136,$D136,$E136,$F136,2016,$I136,1,$H136,$G136*$H136,Options!$B$8)))","v":{"$error":"#VALUE!"}},{"$f":"IF(AND(OR(Calculations!$E$2=\"Orkney Health Board\",Calculations!$E$2=\"Orkney Islands Local Authority\"),$F136=1),0,IF(AND(OR(Calculations!$E$2=\"Shetland Health Board\",Calculations!$E$2=\"Western Isles Health Board\",Calculations!$E$2=\"Shetland Islands Local Authority\",Calculations!$E$2=\"Eilean Siar Local Authority\"),OR($F136=1,$F136=5)),0,new_yllv2(VALUE(LEFT(Options!$B$24,2)),$C136,$D136,$E136,$F136,2016,$I136+$J136,1,$H136,$G136*$H136,Options!$B$8)))","v":{"$error":"#VALUE!"}},{"$f":"IF(AND(OR(Calculations!$E$2=\"Orkney Health Board\",Calculations!$E$2=\"Orkney Islands Local Authority\"),$F136=1),0,IF(AND(OR(Calculations!$E$2=\"Shetland Health Board\",Calculations!$E$2=\"Western Isles Health Board\",Calculations!$E$2=\"Shetland Islands Local Authority\",Calculations!$E$2=\"Eilean Siar Local Authority\"),OR($F136=1,$F136=5)),0,hosp_count(VALUE(LEFT(Options!$B$24,2)),$C136,$E136,$F136,2016,$I136,1,$H136,$G136*$H136, Options!$B$8)))","v":{"$error":"#VALUE!"}},{"$f":"IF(AND(OR(Calculations!$E$2=\"Orkney Health Board\",Calculations!$E$2=\"Orkney Islands Local Authority\"),$F136=1),0,IF(AND(OR(Calculations!$E$2=\"Shetland Health Board\",Calculations!$E$2=\"Western Isles Health Board\",Calculations!$E$2=\"Shetland Islands Local Authority\",Calculations!$E$2=\"Eilean Siar Local Authority\"),OR($F136=1,$F136=5)),0,hosp_count(VALUE(LEFT(Options!$B$24,2)),$C136,$E136,$F136,2016,$I136+$J136,1,$H136,$G136*$H136, Options!$B$8)))","v":{"$error":"#VALUE!"}},{"$f":"IF(AND(OR(Calculations!$E$2=\"Orkney Health Board\",Calculations!$E$2=\"Orkney Islands Local Authority\"),$F136=1),0,IF(AND(OR(Calculations!$E$2=\"Shetland Health Board\",Calculations!$E$2=\"Western Isles Health Board\",Calculations!$E$2=\"Shetland Islands Local Authority\",Calculations!$E$2=\"Eilean Siar Local Authority\"),OR($F136=1,$F136=5)),0,prem_mort(VALUE(LEFT(Options!$B$24,2)),$C136,$E136,$F136,2016,$I136,1,$H136,$G136*$H136,Options!$B$8)))","v":{"$error":"#VALUE!"}},{"$f":"IF(AND(OR(Calculations!$E$2=\"Orkney Health Board\",Calculations!$E$2=\"Orkney Islands Local Authority\"),$F136=1),0,IF(AND(OR(Calculations!$E$2=\"Shetland Health Board\",Calculations!$E$2=\"Western Isles Health Board\",Calculations!$E$2=\"Shetland Islands Local Authority\",Calculations!$E$2=\"Eilean Siar Local Authority\"),OR($F136=1,$F136=5)),0,prem_mort(VALUE(LEFT(Options!$B$24,2)),$C136,$E136,$F136,2016,$I136+$J136,1,$H136,$G136*$H136,Options!$B$8)))","v":{"$error":"#VALUE!"}},{"$error":"#VALUE!"},{"$error":"#VALUE!"},{"$error":"#VALUE!"},{"$error":"#VALUE!"},{"$error":"#VALUE!"},{"$error":"#VALUE!"},{"$error":"#VALUE!"},{"$error":"#VALUE!"},{"$error":"#VALUE!"},{"$error":"#VALUE!"},{"$error":"#VALUE!"},{"$error":"#VALUE!"},{"$error":"#VALUE!"},{"$error":"#VALUE!"},{"$error":"#VALUE!"},{"$error":"#VALUE!"},5000]
[null,"Female 5-9",6.9792794999999996,81.439279999999997,"female",3,{"$f":"HLOOKUP(Calculations!$E$2,'Prevalence Rates'!$C$3:$BC$249,'Prevalence Rates'!$BD137,FALSE)","v":0},{"$f":"HLOOKUP(Calculations!$E$2,'Population 2016'!$C$3:$BC$249,'Population 2016'!BD137,FALSE)","v":0},0,{"$f":"HLOOKUP(Results!E$4,Targeting!$C$3:$F$249,Targeting!$G137,FALSE)","v":0},{"$f":"IF(AND(OR(Calculations!$E$2=\"Orkney Health Board\",Calculations!$E$2=\"Orkney Islands Local Authority\"),$F137=1),0,IF(AND(OR(Calculations!$E$2=\"Shetland Health Board\",Calculations!$E$2=\"Western Isles Health Board\",Calculations!$E$2=\"Shetland Islands Local Authority\",Calculations!$E$2=\"Eilean Siar Local Authority\"),OR($F137=1,$F137=5)),0,new_ci(VALUE(LEFT(Options!$B$24,2)),$C137,$E137,$F137,2016,$I137,1,$H137,$G137*$H137,Options!$B$8)))","v":{"$error":"#VALUE!"}},{"$f":"IF(AND(OR(Calculations!$E$2=\"Orkney Health Board\",Calculations!$E$2=\"Orkney Islands Local Authority\"),$F137=1),0,IF(AND(OR(Calculations!$E$2=\"Shetland Health Board\",Calculations!$E$2=\"Western Isles Health Board\",Calculations!$E$2=\"Shetland Islands Local Authority\",Calculations!$E$2=\"Eilean Siar Local Authority\"),OR($F137=1,$F137=5)),0,new_ci(VALUE(LEFT(Options!$B$24,2)),$C137,$E137,$F137,2016,$I137+$J137,1,$H137,$G137*$H137,Options!$B$8)))","v":{"$error":"#VALUE!"}},{"$f":"IF(AND(OR(Calculations!$E$2=\"Orkney Health Board\",Calculations!$E$2=\"Orkney Islands Local Authority\"),$F137=1),0,IF(AND(OR(Calculations!$E$2=\"Shetland Health Board\",Calculations!$E$2=\"Western Isles Health Board\",Calculations!$E$2=\"Shetland Islands Local Authority\",Calculations!$E$2=\"Eilean Siar Local Authority\"),OR($F137=1,$F137=5)),0,new_yllv2(VALUE(LEFT(Options!$B$24,2)),$C137,$D137,$E137,$F137,2016,$I137,1,$H137,$G137*$H137,Options!$B$8)))","v":{"$error":"#VALUE!"}},{"$f":"IF(AND(OR(Calculations!$E$2=\"Orkney Health Board\",Calculations!$E$2=\"Orkney Islands Local Authority\"),$F137=1),0,IF(AND(OR(Calculations!$E$2=\"Shetland Health Board\",Calculations!$E$2=\"Western Isles Health Board\",Calculations!$E$2=\"Shetland Islands Local Authority\",Calculations!$E$2=\"Eilean Siar Local Authority\"),OR($F137=1,$F137=5)),0,new_yllv2(VALUE(LEFT(Options!$B$24,2)),$C137,$D137,$E137,$F137,2016,$I137+$J137,1,$H137,$G137*$H137,Options!$B$8)))","v":{"$error":"#VALUE!"}},{"$f":"IF(AND(OR(Calculations!$E$2=\"Orkney Health Board\",Calculations!$E$2=\"Orkney Islands Local Authority\"),$F137=1),0,IF(AND(OR(Calculations!$E$2=\"Shetland Health Board\",Calculations!$E$2=\"Western Isles Health Board\",Calculations!$E$2=\"Shetland Islands Local Authority\",Calculations!$E$2=\"Eilean Siar Local Authority\"),OR($F137=1,$F137=5)),0,hosp_count(VALUE(LEFT(Options!$B$24,2)),$C137,$E137,$F137,2016,$I137,1,$H137,$G137*$H137, Options!$B$8)))","v":{"$error":"#VALUE!"}},{"$f":"IF(AND(OR(Calculations!$E$2=\"Orkney Health Board\",Calculations!$E$2=\"Orkney Islands Local Authority\"),$F137=1),0,IF(AND(OR(Calculations!$E$2=\"Shetland Health Board\",Calculations!$E$2=\"Western Isles Health Board\",Calculations!$E$2=\"Shetland Islands Local Authority\",Calculations!$E$2=\"Eilean Siar Local Authority\"),OR($F137=1,$F137=5)),0,hosp_count(VALUE(LEFT(Options!$B$24,2)),$C137,$E137,$F137,2016,$I137+$J137,1,$H137,$G137*$H137, Options!$B$8)))","v":{"$error":"#VALUE!"}},{"$f":"IF(AND(OR(Calculations!$E$2=\"Orkney Health Board\",Calculations!$E$2=\"Orkney Islands Local Authority\"),$F137=1),0,IF(AND(OR(Calculations!$E$2=\"Shetland Health Board\",Calculations!$E$2=\"Western Isles Health Board\",Calculations!$E$2=\"Shetland Islands Local Authority\",Calculations!$E$2=\"Eilean Siar Local Authority\"),OR($F137=1,$F137=5)),0,prem_mort(VALUE(LEFT(Options!$B$24,2)),$C137,$E137,$F137,2016,$I137,1,$H137,$G137*$H137,Options!$B$8)))","v":{"$error":"#VALUE!"}},{"$f":"IF(AND(OR(Calculations!$E$2=\"Orkney Health Board\",Calculations!$E$2=\"Orkney Islands Local Authority\"),$F137=1),0,IF(AND(OR(Calculations!$E$2=\"Shetland Health Board\",Calculations!$E$2=\"Western Isles Health Board\",Calculations!$E$2=\"Shetland Islands Local Authority\",Calculations!$E$2=\"Eilean Siar Local Authority\"),OR($F137=1,$F137=5)),0,prem_mort(VALUE(LEFT(Options!$B$24,2)),$C137,$E137,$F137,2016,$I137+$J137,1,$H137,$G137*$H137,Options!$B$8)))","v":{"$error":"#VALUE!"}},{"$error":"#VALUE!"},{"$error":"#VALUE!"},{"$error":"#VALUE!"},{"$error":"#VALUE!"},{"$error":"#VALUE!"},{"$error":"#VALUE!"},{"$error":"#VALUE!"},{"$error":"#VALUE!"},{"$error":"#VALUE!"},{"$error":"#VALUE!"},{"$error":"#VALUE!"},{"$error":"#VALUE!"},{"$error":"#VALUE!"},{"$error":"#VALUE!"},{"$error":"#VALUE!"},{"$error":"#VALUE!"},5500]
[null,"Female 10-15",12.478312000000001,81.948309999999992,"female",3,{"$f":"HLOOKUP(Calculations!$E$2,'Prevalence Rates'!$C$3:$BC$249,'Prevalence Rates'!$BD138,FALSE)","v":0},{"$f":"HLOOKUP(Calculations!$E$2,'Population 2016'!$C$3:$BC$249,'Population 2016'!BD138,FALSE)","v":0},0,{"$f":"HLOOKUP(Results!E$4,Targeting!$C$3:$F$249,Targeting!$G138,FALSE)","v":0},{"$f":"IF(AND(OR(Calculations!$E$2=\"Orkney Health Board\",Calculations!$E$2=\"Orkney Islands Local Authority\"),$F138=1),0,IF(AND(OR(Calculations!$E$2=\"Shetland Health Board\",Calculations!$E$2=\"Western Isles Health Board\",Calculations!$E$2=\"Shetland Islands Local Authority\",Calculations!$E$2=\"Eilean Siar Local Authority\"),OR($F138=1,$F138=5)),0,new_ci(VALUE(LEFT(Options!$B$24,2)),$C138,$E138,$F138,2016,$I138,1,$H138,$G138*$H138,Options!$B$8)))","v":{"$error":"#VALUE!"}},{"$f":"IF(AND(OR(Calculations!$E$2=\"Orkney Health Board\",Calculations!$E$2=\"Orkney Islands Local Authority\"),$F138=1),0,IF(AND(OR(Calculations!$E$2=\"Shetland Health Board\",Calculations!$E$2=\"Western Isles Health Board\",Calculations!$E$2=\"Shetland Islands Local Authority\",Calculations!$E$2=\"Eilean Siar Local Authority\"),OR($F138=1,$F138=5)),0,new_ci(VALUE(LEFT(Options!$B$24,2)),$C138,$E138,$F138,2016,$I138+$J138,1,$H138,$G138*$H138,Options!$B$8)))","v":{"$error":"#VALUE!"}},{"$f":"IF(AND(OR(Calculations!$E$2=\"Orkney Health Board\",Calculations!$E$2=\"Orkney Islands Local Authority\"),$F138=1),0,IF(AND(OR(Calculations!$E$2=\"Shetland Health Board\",Calculations!$E$2=\"Western Isles Health Board\",Calculations!$E$2=\"Shetland Islands Local Authority\",Calculations!$E$2=\"Eilean Siar Local Authority\"),OR($F138=1,$F138=5)),0,new_yllv2(VALUE(LEFT(Options!$B$24,2)),$C138,$D138,$E138,$F138,2016,$I138,1,$H138,$G138*$H138,Options!$B$8)))","v":{"$error":"#VALUE!"}},{"$f":"IF(AND(OR(Calculations!$E$2=\"Orkney Health Board\",Calculations!$E$2=\"Orkney Islands Local Authority\"),$F138=1),0,IF(AND(OR(Calculations!$E$2=\"Shetland Health Board\",Calculations!$E$2=\"Western Isles Health Board\",Calculations!$E$2=\"Shetland Islands Local Authority\",Calculations!$E$2=\"Eilean Siar Local Authority\"),OR($F138=1,$F138=5)),0,new_yllv2(VALUE(LEFT(Options!$B$24,2)),$C138,$D138,$E138,$F138,2016,$I138+$J138,1,$H138,$G138*$H138,Options!$B$8)))","v":{"$error":"#VALUE!"}},{"$f":"IF(AND(OR(Calculations!$E$2=\"Orkney Health Board\",Calculations!$E$2=\"Orkney Islands Local Authority\"),$F138=1),0,IF(AND(OR(Calculations!$E$2=\"Shetland Health Board\",Calculations!$E$2=\"Western Isles Health Board\",Calculations!$E$2=\"Shetland Islands Local Authority\",Calculations!$E$2=\"Eilean Siar Local Authority\"),OR($F138=1,$F138=5)),0,hosp_count(VALUE(LEFT(Options!$B$24,2)),$C138,$E138,$F138,2016,$I138,1,$H138,$G138*$H138, Options!$B$8)))","v":{"$error":"#VALUE!"}},{"$f":"IF(AND(OR(Calculations!$E$2=\"Orkney Health Board\",Calculations!$E$2=\"Orkney Islands Local Authority\"),$F138=1),0,IF(AND(OR(Calculations!$E$2=\"Shetland Health Board\",Calculations!$E$2=\"Western Isles Health Board\",Calculations!$E$2=\"Shetland Islands Local Authority\",Calculations!$E$2=\"Eilean Siar Local Authority\"),OR($F138=1,$F138=5)),0,hosp_count(VALUE(LEFT(Options!$B$24,2)),$C138,$E138,$F138,2016,$I138+$J138,1,$H138,$G138*$H138, Options!$B$8)))","v":{"$error":"#VALUE!"}},{"$f":"IF(AND(OR(Calculations!$E$2=\"Orkney Health Board\",Calculations!$E$2=\"Orkney Islands Local Authority\"),$F138=1),0,IF(AND(OR(Calculations!$E$2=\"Shetland Health Board\",Calculations!$E$2=\"Western Isles Health Board\",Calculations!$E$2=\"Shetland Islands Local Authority\",Calculations!$E$2=\"Eilean Siar Local Authority\"),OR($F138=1,$F138=5)),0,prem_mort(VALUE(LEFT(Options!$B$24,2)),$C138,$E138,$F138,2016,$I138,1,$H138,$G138*$H138,Options!$B$8)))","v":{"$error":"#VALUE!"}},{"$f":"IF(AND(OR(Calculations!$E$2=\"Orkney Health Board\",Calculations!$E$2=\"Orkney Islands Local Authority\"),$F138=1),0,IF(AND(OR(Calculations!$E$2=\"Shetland Health Board\",Calculations!$E$2=\"Western Isles Health Board\",Calculations!$E$2=\"Shetland Islands Local Authority\",Calculations!$E$2=\"Eilean Siar Local Authority\"),OR($F138=1,$F138=5)),0,prem_mort(VALUE(LEFT(Options!$B$24,2)),$C138,$E138,$F138,2016,$I138+$J138,1,$H138,$G138*$H138,Options!$B$8)))","v":{"$error":"#VALUE!"}},{"$error":"#VALUE!"},{"$error":"#VALUE!"},{"$error":"#VALUE!"},{"$error":"#VALUE!"},{"$error":"#VALUE!"},{"$error":"#VALUE!"},{"$error":"#VALUE!"},{"$error":"#VALUE!"},{"$error":"#VALUE!"},{"$error":"#VALUE!"},{"$error":"#VALUE!"},{"$error":"#VALUE!"},{"$error":"#VALUE!"},{"$error":"#VALUE!"},{"$error":"#VALUE!"},{"$error":"#VALUE!"},6600]
["SIMD Q3","Female 16-19",17.570053000000001,81.100049999999996,"female",3,{"$f":"HLOOKUP(Calculations!$E$2,'Prevalence Rates'!$C$3:$BC$249,'Prevalence Rates'!$BD139,FALSE)","v":0.11},{"$f":"HLOOKUP(Calculations!$E$2,'Population 2016'!$C$3:$BC$249,'Population 2016'!BD139,FALSE)","v":22864},0,{"$f":"HLOOKUP(Results!E$4,Targeting!$C$3:$F$249,Targeting!$G139,FALSE)","v":1552},{"$f":"IF(AND(OR(Calculations!$E$2=\"Orkney Health Board\",Calculations!$E$2=\"Orkney Islands Local Authority\"),$F139=1),0,IF(AND(OR(Calculations!$E$2=\"Shetland Health Board\",Calculations!$E$2=\"Western Isles Health Board\",Calculations!$E$2=\"Shetland Islands Local Authority\",Calculations!$E$2=\"Eilean Siar Local Authority\"),OR($F139=1,$F139=5)),0,new_ci(VALUE(LEFT(Options!$B$24,2)),$C139,$E139,$F139,2016,$I139,1,$H139,$G139*$H139,Options!$B$8)))","v":4.1158387469999997},{"$f":"IF(AND(OR(Calculations!$E$2=\"Orkney Health Board\",Calculations!$E$2=\"Orkney Islands Local Authority\"),$F139=1),0,IF(AND(OR(Calculations!$E$2=\"Shetland Health Board\",Calculations!$E$2=\"Western Isles Health Board\",Calculations!$E$2=\"Shetland Islands Local Authority\",Calculations!$E$2=\"Eilean Siar Local Authority\"),OR($F139=1,$F139=5)),0,new_ci(VALUE(LEFT(Options!$B$24,2)),$C139,$E139,$F139,2016,$I139+$J139,1,$H139,$G139*$H139,Options!$B$8)))","v":3.9928158973999999},{"$f":"IF(AND(OR(Calculations!$E$2=\"Orkney Health Board\",Calculations!$E$2=\"Orkney Islands Local Authority\"),$F139=1),0,IF(AND(OR(Calculations!$E$2=\"Shetland Health Board\",Calculations!$E$2=\"Western Isles Health Board\",Calculations!$E$2=\"Shetland Islands Local Authority\",Calculations!$E$2=\"Eilean Siar Local Authority\"),OR($F139=1,$F139=5)),0,new_yllv2(VALUE(LEFT(Options!$B$24,2)),$C139,$D139,$E139,$F139,2016,$I139,1,$H139,$G139*$H139,Options!$B$8)))","v":257.36338450239998},{"$f":"IF(AND(OR(Calculations!$E$2=\"Orkney Health Board\",Calculations!$E$2=\"Orkney Islands Local Authority\"),$F139=1),0,IF(AND(OR(Calculations!$E$2=\"Shetland Health Board\",Calculations!$E$2=\"Western Isles Health Board\",Calculations!$E$2=\"Shetland Islands Local Authority\",Calculations!$E$2=\"Eilean Siar Local Authority\"),OR($F139=1,$F139=5)),0,new_yllv2(VALUE(LEFT(Options!$B$24,2)),$C139,$D139,$E139,$F139,2016,$I139+$J139,1,$H139,$G139*$H139,Options!$B$8)))","v":249.67076608599999},{"$f":"IF(AND(OR(Calculations!$E$2=\"Orkney Health Board\",Calculations!$E$2=\"Orkney Islands Local Authority\"),$F139=1),0,IF(AND(OR(Calculations!$E$2=\"Shetland Health Board\",Calculations!$E$2=\"Western Isles Health Board\",Calculations!$E$2=\"Shetland Islands Local Authority\",Calculations!$E$2=\"Eilean Siar Local Authority\"),OR($F139=1,$F139=5)),0,hosp_count(VALUE(LEFT(Options!$B$24,2)),$C139,$E139,$F139,2016,$I139,1,$H139,$G139*$H139, Options!$B$8)))","v":2290.5686582223998},{"$f":"IF(AND(OR(Calculations!$E$2=\"Orkney Health Board\",Calculations!$E$2=\"Orkney Islands Local Authority\"),$F139=1),0,IF(AND(OR(Calculations!$E$2=\"Shetland Health Board\",Calculations!$E$2=\"Western Isles Health Board\",Calculations!$E$2=\"Shetland Islands Local Authority\",Calculations!$E$2=\"Eilean Siar Local Authority\"),OR($F139=1,$F139=5)),0,hosp_count(VALUE(LEFT(Options!$B$24,2)),$C139,$E139,$F139,2016,$I139+$J139,1,$H139,$G139*$H139, Options!$B$8)))","v":2285.6008335539},{"$f":"IF(AND(OR(Calculations!$E$2=\"Orkney Health Board\",Calculations!$E$2=\"Orkney Islands Local Authority\"),$F139=1),0,IF(AND(OR(Calculations!$E$2=\"Shetland Health Board\",Calculations!$E$2=\"Western Isles Health Board\",Calculations!$E$2=\"Shetland Islands Local Authority\",Calculations!$E$2=\"Eilean Siar Local Authority\"),OR($F139=1,$F139=5)),0,prem_mort(VALUE(LEFT(Options!$B$24,2)),$C139,$E139,$F139,2016,$I139,1,$H139,$G139*$H139,Options!$B$8)))","v":4.1158387469999997},{"$f":"IF(AND(OR(Calculations!$E$2=\"Orkney Health Board\",Calculations!$E$2=\"Orkney Islands Local Authority\"),$F139=1),0,IF(AND(OR(Calculations!$E$2=\"Shetland Health Board\",Calculations!$E$2=\"Western Isles Health Board\",Calculations!$E$2=\"Shetland Islands Local Authority\",Calculations!$E$2=\"Eilean Siar Local Authority\"),OR($F139=1,$F139=5)),0,prem_mort(VALUE(LEFT(Options!$B$24,2)),$C139,$E139,$F139,2016,$I139+$J139,1,$H139,$G139*$H139,Options!$B$8)))","v":3.9928158973999999},18.00139409989503,17.463330551959412,1125.6271190622813,1091.9820070241426,10018.232409999999,9996.5046953896963,18.00139409989503,17.463330551959412,79206.134039538127,76838.654428621419,4952759.3238740377,4804720.8309062272,44080222.603999995,43984620.659714662,79206.134039538127,76838.654428621419,4400]
[null,"Female 20-24",22.077057,81.667060000000006,"female",3,{"$f":"HLOOKUP(Calculations!$E$2,'Prevalence Rates'!$C$3:$BC$249,'Prevalence Rates'!$BD140,FALSE)","v":0.11},{"$f":"HLOOKUP(Calculations!$E$2,'Population 2016'!$C$3:$BC$249,'Population 2016'!BD140,FALSE)","v":34910},0,{"$f":"HLOOKUP(Results!E$4,Targeting!$C$3:$F$249,Targeting!$G140,FALSE)","v":2370},{"$f":"IF(AND(OR(Calculations!$E$2=\"Orkney Health Board\",Calculations!$E$2=\"Orkney Islands Local Authority\"),$F140=1),0,IF(AND(OR(Calculations!$E$2=\"Shetland Health Board\",Calculations!$E$2=\"Western Isles Health Board\",Calculations!$E$2=\"Shetland Islands Local Authority\",Calculations!$E$2=\"Eilean Siar Local Authority\"),OR($F140=1,$F140=5)),0,new_ci(VALUE(LEFT(Options!$B$24,2)),$C140,$E140,$F140,2016,$I140,1,$H140,$G140*$H140,Options!$B$8)))","v":9.2197736599999995},{"$f":"IF(AND(OR(Calculations!$E$2=\"Orkney Health Board\",Calculations!$E$2=\"Orkney Islands Local Authority\"),$F140=1),0,IF(AND(OR(Calculations!$E$2=\"Shetland Health Board\",Calculations!$E$2=\"Western Isles Health Board\",Calculations!$E$2=\"Shetland Islands Local Authority\",Calculations!$E$2=\"Eilean Siar Local Authority\"),OR($F140=1,$F140=5)),0,new_ci(VALUE(LEFT(Options!$B$24,2)),$C140,$E140,$F140,2016,$I140+$J140,1,$H140,$G140*$H140,Options!$B$8)))","v":8.9441696779999997},{"$f":"IF(AND(OR(Calculations!$E$2=\"Orkney Health Board\",Calculations!$E$2=\"Orkney Islands Local Authority\"),$F140=1),0,IF(AND(OR(Calculations!$E$2=\"Shetland Health Board\",Calculations!$E$2=\"Western Isles Health Board\",Calculations!$E$2=\"Shetland Islands Local Authority\",Calculations!$E$2=\"Eilean Siar Local Authority\"),OR($F140=1,$F140=5)),0,new_yllv2(VALUE(LEFT(Options!$B$24,2)),$C140,$D140,$E140,$F140,2016,$I140,1,$H140,$G140*$H140,Options!$B$8)))","v":540.18656639870005},{"$f":"IF(AND(OR(Calculations!$E$2=\"Orkney Health Board\",Calculations!$E$2=\"Orkney Islands Local Authority\"),$F140=1),0,IF(AND(OR(Calculations!$E$2=\"Shetland Health Board\",Calculations!$E$2=\"Western Isles Health Board\",Calculations!$E$2=\"Shetland Islands Local Authority\",Calculations!$E$2=\"Eilean Siar Local Authority\"),OR($F140=1,$F140=5)),0,new_yllv2(VALUE(LEFT(Options!$B$24,2)),$C140,$D140,$E140,$F140,2016,$I140+$J140,1,$H140,$G140*$H140,Options!$B$8)))","v":524.03892826649997},{"$f":"IF(AND(OR(Calculations!$E$2=\"Orkney Health Board\",Calculations!$E$2=\"Orkney Islands Local Authority\"),$F140=1),0,IF(AND(OR(Calculations!$E$2=\"Shetland Health Board\",Calculations!$E$2=\"Western Isles Health Board\",Calculations!$E$2=\"Shetland Islands Local Authority\",Calculations!$E$2=\"Eilean Siar Local Authority\"),OR($F140=1,$F140=5)),0,hosp_count(VALUE(LEFT(Options!$B$24,2)),$C140,$E140,$F140,2016,$I140,1,$H140,$G140*$H140, Options!$B$8)))","v":3917.2018699179998},{"$f":"IF(AND(OR(Calculations!$E$2=\"Orkney Health Board\",Calculations!$E$2=\"Orkney Islands Local Authority\"),$F140=1),0,IF(AND(OR(Calculations!$E$2=\"Shetland Health Board\",Calculations!$E$2=\"Western Isles Health Board\",Calculations!$E$2=\"Shetland Islands Local Authority\",Calculations!$E$2=\"Eilean Siar Local Authority\"),OR($F140=1,$F140=5)),0,hosp_count(VALUE(LEFT(Options!$B$24,2)),$C140,$E140,$F140,2016,$I140+$J140,1,$H140,$G140*$H140, Options!$B$8)))","v":3908.7050210429002},{"$f":"IF(AND(OR(Calculations!$E$2=\"Orkney Health Board\",Calculations!$E$2=\"Orkney Islands Local Authority\"),$F140=1),0,IF(AND(OR(Calculations!$E$2=\"Shetland Health Board\",Calculations!$E$2=\"Western Isles Health Board\",Calculations!$E$2=\"Shetland Islands Local Authority\",Calculations!$E$2=\"Eilean Siar Local Authority\"),OR($F140=1,$F140=5)),0,prem_mort(VALUE(LEFT(Options!$B$24,2)),$C140,$E140,$F140,2016,$I140,1,$H140,$G140*$H140,Options!$B$8)))","v":9.2197736599999995},{"$f":"IF(AND(OR(Calculations!$E$2=\"Orkney Health Board\",Calculations!$E$2=\"Orkney Islands Local Authority\"),$F140=1),0,IF(AND(OR(Calculations!$E$2=\"Shetland Health Board\",Calculations!$E$2=\"Western Isles Health Board\",Calculations!$E$2=\"Shetland Islands Local Authority\",Calculations!$E$2=\"Eilean Siar Local Authority\"),OR($F140=1,$F140=5)),0,prem_mort(VALUE(LEFT(Options!$B$24,2)),$C140,$E140,$F140,2016,$I140+$J140,1,$H140,$G140*$H140,Options!$B$8)))","v":8.9441696779999997},26.410122199942709,25.620652185620166,1547.36913892495,1501.1140884173587,11220.858980000001,11196.519682162418,26.410122199942709,25.620652185620166,158460.73319965624,153723.91311372101,9284214.8335497007,9006684.5305041522,67325153.88000001,67179118.092974499,158460.73319965624,153723.91311372101,6000]
[null,"Female 25-29",26.975186999999998,81.645189999999999,"female",3,{"$f":"HLOOKUP(Calculations!$E$2,'Prevalence Rates'!$C$3:$BC$249,'Prevalence Rates'!$BD141,FALSE)","v":0.18181818181818182},{"$f":"HLOOKUP(Calculations!$E$2,'Population 2016'!$C$3:$BC$249,'Population 2016'!BD141,FALSE)","v":36432},0,{"$f":"HLOOKUP(Results!E$4,Targeting!$C$3:$F$249,Targeting!$G141,FALSE)","v":2473},{"$f":"IF(AND(OR(Calculations!$E$2=\"Orkney Health Board\",Calculations!$E$2=\"Orkney Islands Local Authority\"),$F141=1),0,IF(AND(OR(Calculations!$E$2=\"Shetland Health Board\",Calculations!$E$2=\"Western Isles Health Board\",Calculations!$E$2=\"Shetland Islands Local Authority\",Calculations!$E$2=\"Eilean Siar Local Authority\"),OR($F141=1,$F141=5)),0,new_ci(VALUE(LEFT(Options!$B$24,2)),$C141,$E141,$F141,2016,$I141,1,$H141,$G141*$H141,Options!$B$8)))","v":14.5932824016},{"$f":"IF(AND(OR(Calculations!$E$2=\"Orkney Health Board\",Calculations!$E$2=\"Orkney Islands Local Authority\"),$F141=1),0,IF(AND(OR(Calculations!$E$2=\"Shetland Health Board\",Calculations!$E$2=\"Western Isles Health Board\",Calculations!$E$2=\"Shetland Islands Local Authority\",Calculations!$E$2=\"Eilean Siar Local Authority\"),OR($F141=1,$F141=5)),0,new_ci(VALUE(LEFT(Options!$B$24,2)),$C141,$E141,$F141,2016,$I141+$J141,1,$H141,$G141*$H141,Options!$B$8)))","v":14.167996387500001},{"$f":"IF(AND(OR(Calculations!$E$2=\"Orkney Health Board\",Calculations!$E$2=\"Orkney Islands Local Authority\"),$F141=1),0,IF(AND(OR(Calculations!$E$2=\"Shetland Health Board\",Calculations!$E$2=\"Western Isles Health Board\",Calculations!$E$2=\"Shetland Islands Local Authority\",Calculations!$E$2=\"Eilean Siar Local Authority\"),OR($F141=1,$F141=5)),0,new_yllv2(VALUE(LEFT(Options!$B$24,2)),$C141,$D141,$E141,$F141,2016,$I141,1,$H141,$G141*$H141,Options!$B$8)))","v":783.22151027370001},{"$f":"IF(AND(OR(Calculations!$E$2=\"Orkney Health Board\",Calculations!$E$2=\"Orkney Islands Local Authority\"),$F141=1),0,IF(AND(OR(Calculations!$E$2=\"Shetland Health Board\",Calculations!$E$2=\"Western Isles Health Board\",Calculations!$E$2=\"Shetland Islands Local Authority\",Calculations!$E$2=\"Eilean Siar Local Authority\"),OR($F141=1,$F141=5)),0,new_yllv2(VALUE(LEFT(Options!$B$24,2)),$C141,$D141,$E141,$F141,2016,$I141+$J141,1,$H141,$G141*$H141,Options!$B$8)))","v":760.39640862110002},{"$f":"IF(AND(OR(Calculations!$E$2=\"Orkney Health Board\",Calculations!$E$2=\"Orkney Islands Local Authority\"),$F141=1),0,IF(AND(OR(Calculations!$E$2=\"Shetland Health Board\",Calculations!$E$2=\"Western Isles Health Board\",Calculations!$E$2=\"Shetland Islands Local Authority\",Calculations!$E$2=\"Eilean Siar Local Authority\"),OR($F141=1,$F141=5)),0,hosp_count(VALUE(LEFT(Options!$B$24,2)),$C141,$E141,$F141,2016,$I141,1,$H141,$G141*$H141, Options!$B$8)))","v":4623.9893221104003},{"$f":"IF(AND(OR(Calculations!$E$2=\"Orkney Health Board\",Calculations!$E$2=\"Orkney Islands Local Authority\"),$F141=1),0,IF(AND(OR(Calculations!$E$2=\"Shetland Health Board\",Calculations!$E$2=\"Western Isles Health Board\",Calculations!$E$2=\"Shetland Islands Local Authority\",Calculations!$E$2=\"Eilean Siar Local Authority\"),OR($F141=1,$F141=5)),0,hosp_count(VALUE(LEFT(Options!$B$24,2)),$C141,$E141,$F141,2016,$I141+$J141,1,$H141,$G141*$H141, Options!$B$8)))","v":4613.9750502594998},{"$f":"IF(AND(OR(Calculations!$E$2=\"Orkney Health Board\",Calculations!$E$2=\"Orkney Islands Local Authority\"),$F141=1),0,IF(AND(OR(Calculations!$E$2=\"Shetland Health Board\",Calculations!$E$2=\"Western Isles Health Board\",Calculations!$E$2=\"Shetland Islands Local Authority\",Calculations!$E$2=\"Eilean Siar Local Authority\"),OR($F141=1,$F141=5)),0,prem_mort(VALUE(LEFT(Options!$B$24,2)),$C141,$E141,$F141,2016,$I141,1,$H141,$G141*$H141,Options!$B$8)))","v":14.5932824016},{"$f":"IF(AND(OR(Calculations!$E$2=\"Orkney Health Board\",Calculations!$E$2=\"Orkney Islands Local Authority\"),$F141=1),0,IF(AND(OR(Calculations!$E$2=\"Shetland Health Board\",Calculations!$E$2=\"Western Isles Health Board\",Calculations!$E$2=\"Shetland Islands Local Authority\",Calculations!$E$2=\"Eilean Siar Local Authority\"),OR($F141=1,$F141=5)),0,prem_mort(VALUE(LEFT(Options!$B$24,2)),$C141,$E141,$F141,2016,$I141+$J141,1,$H141,$G141*$H141,Options!$B$8)))","v":14.167996387500001},40.056220909090911,38.888878973155471,2149.8174963595193,2087.166251155852,12692.109470000001,12664.621899043423,40.056220909090911,38.888878973155471,240337.32545454547,233333.27383893283,12898904.978157116,12522997.506935112,76152656.820000008,75987731.394260541,240337.32545454547,233333.27383893283,6000]
[null,"Female 30-34",31.999904999999998,81.799899999999994,"female",3,{"$f":"HLOOKUP(Calculations!$E$2,'Prevalence Rates'!$C$3:$BC$249,'Prevalence Rates'!$BD142,FALSE)","v":0.18181818181818182},{"$f":"HLOOKUP(Calculations!$E$2,'Population 2016'!$C$3:$BC$249,'Population 2016'!BD142,FALSE)","v":34795},0,{"$f":"HLOOKUP(Results!E$4,Targeting!$C$3:$F$249,Targeting!$G142,FALSE)","v":2362},{"$f":"IF(AND(OR(Calculations!$E$2=\"Orkney Health Board\",Calculations!$E$2=\"Orkney Islands Local Authority\"),$F142=1),0,IF(AND(OR(Calculations!$E$2=\"Shetland Health Board\",Calculations!$E$2=\"Western Isles Health Board\",Calculations!$E$2=\"Shetland Islands Local Authority\",Calculations!$E$2=\"Eilean Siar Local Authority\"),OR($F142=1,$F142=5)),0,new_ci(VALUE(LEFT(Options!$B$24,2)),$C142,$E142,$F142,2016,$I142,1,$H142,$G142*$H142,Options!$B$8)))","v":21.3671141457},{"$f":"IF(AND(OR(Calculations!$E$2=\"Orkney Health Board\",Calculations!$E$2=\"Orkney Islands Local Authority\"),$F142=1),0,IF(AND(OR(Calculations!$E$2=\"Shetland Health Board\",Calculations!$E$2=\"Western Isles Health Board\",Calculations!$E$2=\"Shetland Islands Local Authority\",Calculations!$E$2=\"Eilean Siar Local Authority\"),OR($F142=1,$F142=5)),0,new_ci(VALUE(LEFT(Options!$B$24,2)),$C142,$E142,$F142,2016,$I142+$J142,1,$H142,$G142*$H142,Options!$B$8)))","v":20.744464727499999},{"$f":"IF(AND(OR(Calculations!$E$2=\"Orkney Health Board\",Calculations!$E$2=\"Orkney Islands Local Authority\"),$F142=1),0,IF(AND(OR(Calculations!$E$2=\"Shetland Health Board\",Calculations!$E$2=\"Western Isles Health Board\",Calculations!$E$2=\"Shetland Islands Local Authority\",Calculations!$E$2=\"Eilean Siar Local Authority\"),OR($F142=1,$F142=5)),0,new_yllv2(VALUE(LEFT(Options!$B$24,2)),$C142,$D142,$E142,$F142,2016,$I142,1,$H142,$G142*$H142,Options!$B$8)))","v":1042.7150634745999},{"$f":"IF(AND(OR(Calculations!$E$2=\"Orkney Health Board\",Calculations!$E$2=\"Orkney Islands Local Authority\"),$F142=1),0,IF(AND(OR(Calculations!$E$2=\"Shetland Health Board\",Calculations!$E$2=\"Western Isles Health Board\",Calculations!$E$2=\"Shetland Islands Local Authority\",Calculations!$E$2=\"Eilean Siar Local Authority\"),OR($F142=1,$F142=5)),0,new_yllv2(VALUE(LEFT(Options!$B$24,2)),$C142,$D142,$E142,$F142,2016,$I142+$J142,1,$H142,$G142*$H142,Options!$B$8)))","v":1012.3297749797},{"$f":"IF(AND(OR(Calculations!$E$2=\"Orkney Health Board\",Calculations!$E$2=\"Orkney Islands Local Authority\"),$F142=1),0,IF(AND(OR(Calculations!$E$2=\"Shetland Health Board\",Calculations!$E$2=\"Western Isles Health Board\",Calculations!$E$2=\"Shetland Islands Local Authority\",Calculations!$E$2=\"Eilean Siar Local Authority\"),OR($F142=1,$F142=5)),0,hosp_count(VALUE(LEFT(Options!$B$24,2)),$C142,$E142,$F142,2016,$I142,1,$H142,$G142*$H142, Options!$B$8)))","v":5011.1939968795004},{"$f":"IF(AND(OR(Calculations!$E$2=\"Orkney Health Board\",Calculations!$E$2=\"Orkney Islands Local Authority\"),$F142=1),0,IF(AND(OR(Calculations!$E$2=\"Shetland Health Board\",Calculations!$E$2=\"Western Isles Health Board\",Calculations!$E$2=\"Shetland Islands Local Authority\",Calculations!$E$2=\"Eilean Siar Local Authority\"),OR($F142=1,$F142=5)),0,hosp_count(VALUE(LEFT(Options!$B$24,2)),$C142,$E142,$F142,2016,$I142+$J142,1,$H142,$G142*$H142, Options!$B$8)))","v":5000.3405990116999},{"$f":"IF(AND(OR(Calculations!$E$2=\"Orkney Health Board\",Calculations!$E$2=\"Orkney Islands Local Authority\"),$F142=1),0,IF(AND(OR(Calculations!$E$2=\"Shetland Health Board\",Calculations!$E$2=\"Western Isles Health Board\",Calculations!$E$2=\"Shetland Islands Local Authority\",Calculations!$E$2=\"Eilean Siar Local Authority\"),OR($F142=1,$F142=5)),0,prem_mort(VALUE(LEFT(Options!$B$24,2)),$C142,$E142,$F142,2016,$I142,1,$H142,$G142*$H142,Options!$B$8)))","v":21.3671141457},{"$f":"IF(AND(OR(Calculations!$E$2=\"Orkney Health Board\",Calculations!$E$2=\"Orkney Islands Local Authority\"),$F142=1),0,IF(AND(OR(Calculations!$E$2=\"Shetland Health Board\",Calculations!$E$2=\"Western Isles Health Board\",Calculations!$E$2=\"Shetland Islands Local Authority\",Calculations!$E$2=\"Eilean Siar Local Authority\"),OR($F142=1,$F142=5)),0,prem_mort(VALUE(LEFT(Options!$B$24,2)),$C142,$E142,$F142,2016,$I142+$J142,1,$H142,$G142*$H142,Options!$B$8)))","v":20.744464727499999},61.408576363557984,59.619096788331653,2996.7382194987781,2909.4116251751689,14402.052010000001,14370.859603424917,61.408576363557984,59.619096788331653,399155.74636312691,387524.12912415573,19478798.426742058,18911175.563638598,93613338.065000013,93410587.422261953,399155.74636312691,387524.12912415573,6500]
[null,"Female 35-39",36.918118,81.898120000000006,"female",3,{"$f":"HLOOKUP(Calculations!$E$2,'Prevalence Rates'!$C$3:$BC$249,'Prevalence Rates'!$BD143,FALSE)","v":0.20030581039755352},{"$f":"HLOOKUP(Calculations!$E$2,'Population 2016'!$C$3:$BC$249,'Population 2016'!BD143,FALSE)","v":31957},0,{"$f":"HLOOKUP(Results!E$4,Targeting!$C$3:$F$249,Targeting!$G143,FALSE)","v":2169},{"$f":"IF(AND(OR(Calculations!$E$2=\"Orkney Health Board\",Calculations!$E$2=\"Orkney Islands Local Authority\"),$F143=1),0,IF(AND(OR(Calculations!$E$2=\"Shetland Health Board\",Calculations!$E$2=\"Western Isles Health Board\",Calculations!$E$2=\"Shetland Islands Local Authority\",Calculations!$E$2=\"Eilean Siar Local Authority\"),OR($F143=1,$F143=5)),0,new_ci(VALUE(LEFT(Options!$B$24,2)),$C143,$E143,$F143,2016,$I143,1,$H143,$G143*$H143,Options!$B$8)))","v":29.812357374299999},{"$f":"IF(AND(OR(Calculations!$E$2=\"Orkney Health Board\",Calculations!$E$2=\"Orkney Islands Local Authority\"),$F143=1),0,IF(AND(OR(Calculations!$E$2=\"Shetland Health Board\",Calculations!$E$2=\"Western Isles Health Board\",Calculations!$E$2=\"Shetland Islands Local Authority\",Calculations!$E$2=\"Eilean Siar Local Authority\"),OR($F143=1,$F143=5)),0,new_ci(VALUE(LEFT(Options!$B$24,2)),$C143,$E143,$F143,2016,$I143+$J143,1,$H143,$G143*$H143,Options!$B$8)))","v":28.949427448200002},{"$f":"IF(AND(OR(Calculations!$E$2=\"Orkney Health Board\",Calculations!$E$2=\"Orkney Islands Local Authority\"),$F143=1),0,IF(AND(OR(Calculations!$E$2=\"Shetland Health Board\",Calculations!$E$2=\"Western Isles Health Board\",Calculations!$E$2=\"Shetland Islands Local Authority\",Calculations!$E$2=\"Eilean Siar Local Authority\"),OR($F143=1,$F143=5)),0,new_yllv2(VALUE(LEFT(Options!$B$24,2)),$C143,$D143,$E143,$F143,2016,$I143,1,$H143,$G143*$H143,Options!$B$8)))","v":1311.1475369463999},{"$f":"IF(AND(OR(Calculations!$E$2=\"Orkney Health Board\",Calculations!$E$2=\"Orkney Islands Local Authority\"),$F143=1),0,IF(AND(OR(Calculations!$E$2=\"Shetland Health Board\",Calculations!$E$2=\"Western Isles Health Board\",Calculations!$E$2=\"Shetland Islands Local Authority\",Calculations!$E$2=\"Eilean Siar Local Authority\"),OR($F143=1,$F143=5)),0,new_yllv2(VALUE(LEFT(Options!$B$24,2)),$C143,$D143,$E143,$F143,2016,$I143+$J143,1,$H143,$G143*$H143,Options!$B$8)))","v":1273.1958770706999},{"$f":"IF(AND(OR(Calculations!$E$2=\"Orkney Health Board\",Calculations!$E$2=\"Orkney Islands Local Authority\"),$F143=1),0,IF(AND(OR(Calculations!$E$2=\"Shetland Health Board\",Calculations!$E$2=\"Western Isles Health Board\",Calculations!$E$2=\"Shetland Islands Local Authority\",Calculations!$E$2=\"Eilean Siar Local Authority\"),OR($F143=1,$F143=5)),0,hosp_count(VALUE(LEFT(Options!$B$24,2)),$C143,$E143,$F143,2016,$I143,1,$H143,$G143*$H143, Options!$B$8)))","v":5208.5576023617004},{"$f":"IF(AND(OR(Calculations!$E$2=\"Orkney Health Board\",Calculations!$E$2=\"Orkney Islands Local Authority\"),$F143=1),0,IF(AND(OR(Calculations!$E$2=\"Shetland Health Board\",Calculations!$E$2=\"Western Isles Health Board\",Calculations!$E$2=\"Shetland Islands Local Authority\",Calculations!$E$2=\"Eilean Siar Local Authority\"),OR($F143=1,$F143=5)),0,hosp_count(VALUE(LEFT(Options!$B$24,2)),$C143,$E143,$F143,2016,$I143+$J143,1,$H143,$G143*$H143, Options!$B$8)))","v":5197.2827073939998},{"$f":"IF(AND(OR(Calculations!$E$2=\"Orkney Health Board\",Calculations!$E$2=\"Orkney Islands Local Authority\"),$F143=1),0,IF(AND(OR(Calculations!$E$2=\"Shetland Health Board\",Calculations!$E$2=\"Western Isles Health Board\",Calculations!$E$2=\"Shetland Islands Local Authority\",Calculations!$E$2=\"Eilean Siar Local Authority\"),OR($F143=1,$F143=5)),0,prem_mort(VALUE(LEFT(Options!$B$24,2)),$C143,$E143,$F143,2016,$I143,1,$H143,$G143*$H143,Options!$B$8)))","v":29.812357374299999},{"$f":"IF(AND(OR(Calculations!$E$2=\"Orkney Health Board\",Calculations!$E$2=\"Orkney Islands Local Authority\"),$F143=1),0,IF(AND(OR(Calculations!$E$2=\"Shetland Health Board\",Calculations!$E$2=\"Western Isles Health Board\",Calculations!$E$2=\"Shetland Islands Local Authority\",Calculations!$E$2=\"Eilean Siar Local Authority\"),OR($F143=1,$F143=5)),0,prem_mort(VALUE(LEFT(Options!$B$24,2)),$C143,$E143,$F143,2016,$I143+$J143,1,$H143,$G143*$H143,Options!$B$8)))","v":28.949427448200002},93.288973853302863,90.588689326908039,4102.8492566461182,3984.0907377748222,16298.643810000001,16263.362353769126,93.288973853302863,90.588689326908039,653022.81697312009,634120.82528835628,28719944.796522826,27888635.164423756,114090506.67000002,113843536.47638388,653022.81697312009,634120.82528835628,7000]
[null,"Female 40-44",42.077438000000001,82.30744,"female",3,{"$f":"HLOOKUP(Calculations!$E$2,'Prevalence Rates'!$C$3:$BC$249,'Prevalence Rates'!$BD144,FALSE)","v":0.20030581039755352},{"$f":"HLOOKUP(Calculations!$E$2,'Population 2016'!$C$3:$BC$249,'Population 2016'!BD144,FALSE)","v":33291},0,{"$f":"HLOOKUP(Results!E$4,Targeting!$C$3:$F$249,Targeting!$G144,FALSE)","v":2260},{"$f":"IF(AND(OR(Calculations!$E$2=\"Orkney Health Board\",Calculations!$E$2=\"Orkney Islands Local Authority\"),$F144=1),0,IF(AND(OR(Calculations!$E$2=\"Shetland Health Board\",Calculations!$E$2=\"Western Isles Health Board\",Calculations!$E$2=\"Shetland Islands Local Authority\",Calculations!$E$2=\"Eilean Siar Local Authority\"),OR($F144=1,$F144=5)),0,new_ci(VALUE(LEFT(Options!$B$24,2)),$C144,$E144,$F144,2016,$I144,1,$H144,$G144*$H144,Options!$B$8)))","v":48.1528061331},{"$f":"IF(AND(OR(Calculations!$E$2=\"Orkney Health Board\",Calculations!$E$2=\"Orkney Islands Local Authority\"),$F144=1),0,IF(AND(OR(Calculations!$E$2=\"Shetland Health Board\",Calculations!$E$2=\"Western Isles Health Board\",Calculations!$E$2=\"Shetland Islands Local Authority\",Calculations!$E$2=\"Eilean Siar Local Authority\"),OR($F144=1,$F144=5)),0,new_ci(VALUE(LEFT(Options!$B$24,2)),$C144,$E144,$F144,2016,$I144+$J144,1,$H144,$G144*$H144,Options!$B$8)))","v":46.759118373100002},{"$f":"IF(AND(OR(Calculations!$E$2=\"Orkney Health Board\",Calculations!$E$2=\"Orkney Islands Local Authority\"),$F144=1),0,IF(AND(OR(Calculations!$E$2=\"Shetland Health Board\",Calculations!$E$2=\"Western Isles Health Board\",Calculations!$E$2=\"Shetland Islands Local Authority\",Calculations!$E$2=\"Eilean Siar Local Authority\"),OR($F144=1,$F144=5)),0,new_yllv2(VALUE(LEFT(Options!$B$24,2)),$C144,$D144,$E144,$F144,2016,$I144,1,$H144,$G144*$H144,Options!$B$8)))","v":1889.0346809071},{"$f":"IF(AND(OR(Calculations!$E$2=\"Orkney Health Board\",Calculations!$E$2=\"Orkney Islands Local Authority\"),$F144=1),0,IF(AND(OR(Calculations!$E$2=\"Shetland Health Board\",Calculations!$E$2=\"Western Isles Health Board\",Calculations!$E$2=\"Shetland Islands Local Authority\",Calculations!$E$2=\"Eilean Siar Local Authority\"),OR($F144=1,$F144=5)),0,new_yllv2(VALUE(LEFT(Options!$B$24,2)),$C144,$D144,$E144,$F144,2016,$I144+$J144,1,$H144,$G144*$H144,Options!$B$8)))","v":1834.3603072948999},{"$f":"IF(AND(OR(Calculations!$E$2=\"Orkney Health Board\",Calculations!$E$2=\"Orkney Islands Local Authority\"),$F144=1),0,IF(AND(OR(Calculations!$E$2=\"Shetland Health Board\",Calculations!$E$2=\"Western Isles Health Board\",Calculations!$E$2=\"Shetland Islands Local Authority\",Calculations!$E$2=\"Eilean Siar Local Authority\"),OR($F144=1,$F144=5)),0,hosp_count(VALUE(LEFT(Options!$B$24,2)),$C144,$E144,$F144,2016,$I144,1,$H144,$G144*$H144, Options!$B$8)))","v":6177.8773554561003},{"$f":"IF(AND(OR(Calculations!$E$2=\"Orkney Health Board\",Calculations!$E$2=\"Orkney Islands Local Authority\"),$F144=1),0,IF(AND(OR(Calculations!$E$2=\"Shetland Health Board\",Calculations!$E$2=\"Western Isles Health Board\",Calculations!$E$2=\"Shetland Islands Local Authority\",Calculations!$E$2=\"Eilean Siar Local Authority\"),OR($F144=1,$F144=5)),0,hosp_count(VALUE(LEFT(Options!$B$24,2)),$C144,$E144,$F144,2016,$I144+$J144,1,$H144,$G144*$H144, Options!$B$8)))","v":6164.5014753668002},{"$f":"IF(AND(OR(Calculations!$E$2=\"Orkney Health Board\",Calculations!$E$2=\"Orkney Islands Local Authority\"),$F144=1),0,IF(AND(OR(Calculations!$E$2=\"Shetland Health Board\",Calculations!$E$2=\"Western Isles Health Board\",Calculations!$E$2=\"Shetland Islands Local Authority\",Calculations!$E$2=\"Eilean Siar Local Authority\"),OR($F144=1,$F144=5)),0,prem_mort(VALUE(LEFT(Options!$B$24,2)),$C144,$E144,$F144,2016,$I144,1,$H144,$G144*$H144,Options!$B$8)))","v":48.1528061331},{"$f":"IF(AND(OR(Calculations!$E$2=\"Orkney Health Board\",Calculations!$E$2=\"Orkney Islands Local Authority\"),$F144=1),0,IF(AND(OR(Calculations!$E$2=\"Shetland Health Board\",Calculations!$E$2=\"Western Isles Health Board\",Calculations!$E$2=\"Shetland Islands Local Authority\",Calculations!$E$2=\"Eilean Siar Local Authority\"),OR($F144=1,$F144=5)),0,prem_mort(VALUE(LEFT(Options!$B$24,2)),$C144,$E144,$F144,2016,$I144+$J144,1,$H144,$G144*$H144,Options!$B$8)))","v":46.759118373100002},144.64211388393258,140.45573390135473,5674.3104169508269,5510.0787218614632,18557.199710000001,18517.021042824788,144.64211388393258,140.45573390135473,1012494.7971875281,983190.13730948314,39720172.91865579,38570551.053030245,129900397.97,129619147.29977351,1012494.7971875281,983190.13730948314,7000]
[null,"Female 45-49",47.025772000000003,82.585769999999997,"female",3,{"$f":"HLOOKUP(Calculations!$E$2,'Prevalence Rates'!$C$3:$BC$249,'Prevalence Rates'!$BD145,FALSE)","v":0.18043202033036848},{"$f":"HLOOKUP(Calculations!$E$2,'Population 2016'!$C$3:$BC$249,'Population 2016'!BD145,FALSE)","v":40488},0,{"$f":"HLOOKUP(Results!E$4,Targeting!$C$3:$F$249,Targeting!$G145,FALSE)","v":2749},{"$f":"IF(AND(OR(Calculations!$E$2=\"Orkney Health Board\",Calculations!$E$2=\"Orkney Islands Local Authority\"),$F145=1),0,IF(AND(OR(Calculations!$E$2=\"Shetland Health Board\",Calculations!$E$2=\"Western Isles Health Board\",Calculations!$E$2=\"Shetland Islands Local Authority\",Calculations!$E$2=\"Eilean Siar Local Authority\"),OR($F145=1,$F145=5)),0,new_ci(VALUE(LEFT(Options!$B$24,2)),$C145,$E145,$F145,2016,$I145,1,$H145,$G145*$H145,Options!$B$8)))","v":89.174106233100005},{"$f":"IF(AND(OR(Calculations!$E$2=\"Orkney Health Board\",Calculations!$E$2=\"Orkney Islands Local Authority\"),$F145=1),0,IF(AND(OR(Calculations!$E$2=\"Shetland Health Board\",Calculations!$E$2=\"Western Isles Health Board\",Calculations!$E$2=\"Shetland Islands Local Authority\",Calculations!$E$2=\"Eilean Siar Local Authority\"),OR($F145=1,$F145=5)),0,new_ci(VALUE(LEFT(Options!$B$24,2)),$C145,$E145,$F145,2016,$I145+$J145,1,$H145,$G145*$H145,Options!$B$8)))","v":86.576080763299998},{"$f":"IF(AND(OR(Calculations!$E$2=\"Orkney Health Board\",Calculations!$E$2=\"Orkney Islands Local Authority\"),$F145=1),0,IF(AND(OR(Calculations!$E$2=\"Shetland Health Board\",Calculations!$E$2=\"Western Isles Health Board\",Calculations!$E$2=\"Shetland Islands Local Authority\",Calculations!$E$2=\"Eilean Siar Local Authority\"),OR($F145=1,$F145=5)),0,new_yllv2(VALUE(LEFT(Options!$B$24,2)),$C145,$D145,$E145,$F145,2016,$I145,1,$H145,$G145*$H145,Options!$B$8)))","v":3081.8569330677001},{"$f":"IF(AND(OR(Calculations!$E$2=\"Orkney Health Board\",Calculations!$E$2=\"Orkney Islands Local Authority\"),$F145=1),0,IF(AND(OR(Calculations!$E$2=\"Shetland Health Board\",Calculations!$E$2=\"Western Isles Health Board\",Calculations!$E$2=\"Shetland Islands Local Authority\",Calculations!$E$2=\"Eilean Siar Local Authority\"),OR($F145=1,$F145=5)),0,new_yllv2(VALUE(LEFT(Options!$B$24,2)),$C145,$D145,$E145,$F145,2016,$I145+$J145,1,$H145,$G145*$H145,Options!$B$8)))","v":2992.0691780275001},{"$f":"IF(AND(OR(Calculations!$E$2=\"Orkney Health Board\",Calculations!$E$2=\"Orkney Islands Local Authority\"),$F145=1),0,IF(AND(OR(Calculations!$E$2=\"Shetland Health Board\",Calculations!$E$2=\"Western Isles Health Board\",Calculations!$E$2=\"Shetland Islands Local Authority\",Calculations!$E$2=\"Eilean Siar Local Authority\"),OR($F145=1,$F145=5)),0,hosp_count(VALUE(LEFT(Options!$B$24,2)),$C145,$E145,$F145,2016,$I145,1,$H145,$G145*$H145, Options!$B$8)))","v":8509.3209577487996},{"$f":"IF(AND(OR(Calculations!$E$2=\"Orkney Health Board\",Calculations!$E$2=\"Orkney Islands Local Authority\"),$F145=1),0,IF(AND(OR(Calculations!$E$2=\"Shetland Health Board\",Calculations!$E$2=\"Western Isles Health Board\",Calculations!$E$2=\"Shetland Islands Local Authority\",Calculations!$E$2=\"Eilean Siar Local Authority\"),OR($F145=1,$F145=5)),0,hosp_count(VALUE(LEFT(Options!$B$24,2)),$C145,$E145,$F145,2016,$I145+$J145,1,$H145,$G145*$H145, Options!$B$8)))","v":8490.8870772015998},{"$f":"IF(AND(OR(Calculations!$E$2=\"Orkney Health Board\",Calculations!$E$2=\"Orkney Islands Local Authority\"),$F145=1),0,IF(AND(OR(Calculations!$E$2=\"Shetland Health Board\",Calculations!$E$2=\"Western Isles Health Board\",Calculations!$E$2=\"Shetland Islands Local Authority\",Calculations!$E$2=\"Eilean Siar Local Authority\"),OR($F145=1,$F145=5)),0,prem_mort(VALUE(LEFT(Options!$B$24,2)),$C145,$E145,$F145,2016,$I145,1,$H145,$G145*$H145,Options!$B$8)))","v":89.174106233100005},{"$f":"IF(AND(OR(Calculations!$E$2=\"Orkney Health Board\",Calculations!$E$2=\"Orkney Islands Local Authority\"),$F145=1),0,IF(AND(OR(Calculations!$E$2=\"Shetland Health Board\",Calculations!$E$2=\"Western Isles Health Board\",Calculations!$E$2=\"Shetland Islands Local Authority\",Calculations!$E$2=\"Eilean Siar Local Authority\"),OR($F145=1,$F145=5)),0,prem_mort(VALUE(LEFT(Options!$B$24,2)),$C145,$E145,$F145,2016,$I145+$J145,1,$H145,$G145*$H145,Options!$B$8)))","v":86.576080763299998},220.24823709024895,213.83145811919582,7611.7786333424729,7390.0147649365244,21016.896259999998,20971.367015415926,220.24823709024895,213.83145811919582,1541737.6596317426,1496820.2068343707,53282450.433397308,51730103.354555674,147118273.81999999,146799569.1079115,1541737.6596317426,1496820.2068343707,7000]
[null,"Female 50-54",51.990825999999998,82.980829999999997,"female",3,{"$f":"HLOOKUP(Calculations!$E$2,'Prevalence Rates'!$C$3:$BC$249,'Prevalence Rates'!$BD146,FALSE)","v":0.18043202033036848},{"$f":"HLOOKUP(Calculations!$E$2,'Population 2016'!$C$3:$BC$249,'Population 2016'!BD146,FALSE)","v":42537},0,{"$f":"HLOOKUP(Results!E$4,Targeting!$C$3:$F$249,Targeting!$G146,FALSE)","v":2888},{"$f":"IF(AND(OR(Calculations!$E$2=\"Orkney Health Board\",Calculations!$E$2=\"Orkney Islands Local Authority\"),$F146=1),0,IF(AND(OR(Calculations!$E$2=\"Shetland Health Board\",Calculations!$E$2=\"Western Isles Health Board\",Calculations!$E$2=\"Shetland Islands Local Authority\",Calculations!$E$2=\"Eilean Siar Local Authority\"),OR($F146=1,$F146=5)),0,new_ci(VALUE(LEFT(Options!$B$24,2)),$C146,$E146,$F146,2016,$I146,1,$H146,$G146*$H146,Options!$B$8)))","v":142.8320420483},{"$f":"IF(AND(OR(Calculations!$E$2=\"Orkney Health Board\",Calculations!$E$2=\"Orkney Islands Local Authority\"),$F146=1),0,IF(AND(OR(Calculations!$E$2=\"Shetland Health Board\",Calculations!$E$2=\"Western Isles Health Board\",Calculations!$E$2=\"Shetland Islands Local Authority\",Calculations!$E$2=\"Eilean Siar Local Authority\"),OR($F146=1,$F146=5)),0,new_ci(VALUE(LEFT(Options!$B$24,2)),$C146,$E146,$F146,2016,$I146+$J146,1,$H146,$G146*$H146,Options!$B$8)))","v":138.67360622749999},{"$f":"IF(AND(OR(Calculations!$E$2=\"Orkney Health Board\",Calculations!$E$2=\"Orkney Islands Local Authority\"),$F146=1),0,IF(AND(OR(Calculations!$E$2=\"Shetland Health Board\",Calculations!$E$2=\"Western Isles Health Board\",Calculations!$E$2=\"Shetland Islands Local Authority\",Calculations!$E$2=\"Eilean Siar Local Authority\"),OR($F146=1,$F146=5)),0,new_yllv2(VALUE(LEFT(Options!$B$24,2)),$C146,$D146,$E146,$F146,2016,$I146,1,$H146,$G146*$H146,Options!$B$8)))","v":4283.5335123567002},{"$f":"IF(AND(OR(Calculations!$E$2=\"Orkney Health Board\",Calculations!$E$2=\"Orkney Islands Local Authority\"),$F146=1),0,IF(AND(OR(Calculations!$E$2=\"Shetland Health Board\",Calculations!$E$2=\"Western Isles Health Board\",Calculations!$E$2=\"Shetland Islands Local Authority\",Calculations!$E$2=\"Eilean Siar Local Authority\"),OR($F146=1,$F146=5)),0,new_yllv2(VALUE(LEFT(Options!$B$24,2)),$C146,$D146,$E146,$F146,2016,$I146+$J146,1,$H146,$G146*$H146,Options!$B$8)))","v":4158.8220054571002},{"$f":"IF(AND(OR(Calculations!$E$2=\"Orkney Health Board\",Calculations!$E$2=\"Orkney Islands Local Authority\"),$F146=1),0,IF(AND(OR(Calculations!$E$2=\"Shetland Health Board\",Calculations!$E$2=\"Western Isles Health Board\",Calculations!$E$2=\"Shetland Islands Local Authority\",Calculations!$E$2=\"Eilean Siar Local Authority\"),OR($F146=1,$F146=5)),0,hosp_count(VALUE(LEFT(Options!$B$24,2)),$C146,$E146,$F146,2016,$I146,1,$H146,$G146*$H146, Options!$B$8)))","v":10129.178571979501},{"$f":"IF(AND(OR(Calculations!$E$2=\"Orkney Health Board\",Calculations!$E$2=\"Orkney Islands Local Authority\"),$F146=1),0,IF(AND(OR(Calculations!$E$2=\"Shetland Health Board\",Calculations!$E$2=\"Western Isles Health Board\",Calculations!$E$2=\"Shetland Islands Local Authority\",Calculations!$E$2=\"Eilean Siar Local Authority\"),OR($F146=1,$F146=5)),0,hosp_count(VALUE(LEFT(Options!$B$24,2)),$C146,$E146,$F146,2016,$I146+$J146,1,$H146,$G146*$H146, Options!$B$8)))","v":10107.236480896199},{"$f":"IF(AND(OR(Calculations!$E$2=\"Orkney Health Board\",Calculations!$E$2=\"Orkney Islands Local Authority\"),$F146=1),0,IF(AND(OR(Calculations!$E$2=\"Shetland Health Board\",Calculations!$E$2=\"Western Isles Health Board\",Calculations!$E$2=\"Shetland Islands Local Authority\",Calculations!$E$2=\"Eilean Siar Local Authority\"),OR($F146=1,$F146=5)),0,prem_mort(VALUE(LEFT(Options!$B$24,2)),$C146,$E146,$F146,2016,$I146,1,$H146,$G146*$H146,Options!$B$8)))","v":142.8320420483},{"$f":"IF(AND(OR(Calculations!$E$2=\"Orkney Health Board\",Calculations!$E$2=\"Orkney Islands Local Authority\"),$F146=1),0,IF(AND(OR(Calculations!$E$2=\"Shetland Health Board\",Calculations!$E$2=\"Western Isles Health Board\",Calculations!$E$2=\"Shetland Islands Local Authority\",Calculations!$E$2=\"Eilean Siar Local Authority\"),OR($F146=1,$F146=5)),0,prem_mort(VALUE(LEFT(Options!$B$24,2)),$C146,$E146,$F146,2016,$I146+$J146,1,$H146,$G146*$H146,Options!$B$8)))","v":138.67360622749999},335.78306426945954,326.00702030585137,10070.135440573384,9776.9518430004482,23812.630350000003,23761.046808416671,335.78306426945954,326.00702030585137,2350481.4498862168,2282049.1421409594,70490948.084013686,68438662.901003137,166688412.45000002,166327327.65891671,2350481.4498862168,2282049.1421409594,7000]
[null,"Female 55-59",56.953040999999999,83.473039999999997,"female",3,{"$f":"HLOOKUP(Calculations!$E$2,'Prevalence Rates'!$C$3:$BC$249,'Prevalence Rates'!$BD147,FALSE)","v":0.43156424581005587},{"$f":"HLOOKUP(Calculations!$E$2,'Population 2016'!$C$3:$BC$249,'Population 2016'!BD147,FALSE)","v":39153},0,{"$f":"HLOOKUP(Results!E$4,Targeting!$C$3:$F$249,Targeting!$G147,FALSE)","v":2658},{"$f":"IF(AND(OR(Calculations!$E$2=\"Orkney Health Board\",Calculations!$E$2=\"Orkney Islands Local Authority\"),$F147=1),0,IF(AND(OR(Calculations!$E$2=\"Shetland Health Board\",Calculations!$E$2=\"Western Isles Health Board\",Calculations!$E$2=\"Shetland Islands Local Authority\",Calculations!$E$2=\"Eilean Siar Local Authority\"),OR($F147=1,$F147=5)),0,new_ci(VALUE(LEFT(Options!$B$24,2)),$C147,$E147,$F147,2016,$I147,1,$H147,$G147*$H147,Options!$B$8)))","v":200.31949229599999},{"$f":"IF(AND(OR(Calculations!$E$2=\"Orkney Health Board\",Calculations!$E$2=\"Orkney Islands Local Authority\"),$F147=1),0,IF(AND(OR(Calculations!$E$2=\"Shetland Health Board\",Calculations!$E$2=\"Western Isles Health Board\",Calculations!$E$2=\"Shetland Islands Local Authority\",Calculations!$E$2=\"Eilean Siar Local Authority\"),OR($F147=1,$F147=5)),0,new_ci(VALUE(LEFT(Options!$B$24,2)),$C147,$E147,$F147,2016,$I147+$J147,1,$H147,$G147*$H147,Options!$B$8)))","v":194.958011258},{"$f":"IF(AND(OR(Calculations!$E$2=\"Orkney Health Board\",Calculations!$E$2=\"Orkney Islands Local Authority\"),$F147=1),0,IF(AND(OR(Calculations!$E$2=\"Shetland Health Board\",Calculations!$E$2=\"Western Isles Health Board\",Calculations!$E$2=\"Shetland Islands Local Authority\",Calculations!$E$2=\"Eilean Siar Local Authority\"),OR($F147=1,$F147=5)),0,new_yllv2(VALUE(LEFT(Options!$B$24,2)),$C147,$D147,$E147,$F147,2016,$I147,1,$H147,$G147*$H147,Options!$B$8)))","v":5112.1532430744001},{"$f":"IF(AND(OR(Calculations!$E$2=\"Orkney Health Board\",Calculations!$E$2=\"Orkney Islands Local Authority\"),$F147=1),0,IF(AND(OR(Calculations!$E$2=\"Shetland Health Board\",Calculations!$E$2=\"Western Isles Health Board\",Calculations!$E$2=\"Shetland Islands Local Authority\",Calculations!$E$2=\"Eilean Siar Local Authority\"),OR($F147=1,$F147=5)),0,new_yllv2(VALUE(LEFT(Options!$B$24,2)),$C147,$D147,$E147,$F147,2016,$I147+$J147,1,$H147,$G147*$H147,Options!$B$8)))","v":4975.3282523461003},{"$f":"IF(AND(OR(Calculations!$E$2=\"Orkney Health Board\",Calculations!$E$2=\"Orkney Islands Local Authority\"),$F147=1),0,IF(AND(OR(Calculations!$E$2=\"Shetland Health Board\",Calculations!$E$2=\"Western Isles Health Board\",Calculations!$E$2=\"Shetland Islands Local Authority\",Calculations!$E$2=\"Eilean Siar Local Authority\"),OR($F147=1,$F147=5)),0,hosp_count(VALUE(LEFT(Options!$B$24,2)),$C147,$E147,$F147,2016,$I147,1,$H147,$G147*$H147, Options!$B$8)))","v":10562.8275926019},{"$f":"IF(AND(OR(Calculations!$E$2=\"Orkney Health Board\",Calculations!$E$2=\"Orkney Islands Local Authority\"),$F147=1),0,IF(AND(OR(Calculations!$E$2=\"Shetland Health Board\",Calculations!$E$2=\"Western Isles Health Board\",Calculations!$E$2=\"Shetland Islands Local Authority\",Calculations!$E$2=\"Eilean Siar Local Authority\"),OR($F147=1,$F147=5)),0,hosp_count(VALUE(LEFT(Options!$B$24,2)),$C147,$E147,$F147,2016,$I147+$J147,1,$H147,$G147*$H147, Options!$B$8)))","v":10540.0621796454},{"$f":"IF(AND(OR(Calculations!$E$2=\"Orkney Health Board\",Calculations!$E$2=\"Orkney Islands Local Authority\"),$F147=1),0,IF(AND(OR(Calculations!$E$2=\"Shetland Health Board\",Calculations!$E$2=\"Western Isles Health Board\",Calculations!$E$2=\"Shetland Islands Local Authority\",Calculations!$E$2=\"Eilean Siar Local Authority\"),OR($F147=1,$F147=5)),0,prem_mort(VALUE(LEFT(Options!$B$24,2)),$C147,$E147,$F147,2016,$I147,1,$H147,$G147*$H147,Options!$B$8)))","v":200.31949229599999},{"$f":"IF(AND(OR(Calculations!$E$2=\"Orkney Health Board\",Calculations!$E$2=\"Orkney Islands Local Authority\"),$F147=1),0,IF(AND(OR(Calculations!$E$2=\"Shetland Health Board\",Calculations!$E$2=\"Western Isles Health Board\",Calculations!$E$2=\"Shetland Islands Local Authority\",Calculations!$E$2=\"Eilean Siar Local Authority\"),OR($F147=1,$F147=5)),0,prem_mort(VALUE(LEFT(Options!$B$24,2)),$C147,$E147,$F147,2016,$I147+$J147,1,$H147,$G147*$H147,Options!$B$8)))","v":194.958011258},511.63254998595255,497.93888401399636,13056.862164008888,12707.399822098179,26978.335230000001,26920.190482582177,511.63254998595255,497.93888401399636,3325611.5749086915,3236602.7460909765,84869604.066057771,82598098.843638167,175359178.995,174981238.13678414,3325611.5749086915,3236602.7460909765,6500]
[null,"Female 60-64",61.947387999999997,84.167389999999997,"female",3,{"$f":"HLOOKUP(Calculations!$E$2,'Prevalence Rates'!$C$3:$BC$249,'Prevalence Rates'!$BD148,FALSE)","v":0.43156424581005587},{"$f":"HLOOKUP(Calculations!$E$2,'Population 2016'!$C$3:$BC$249,'Population 2016'!BD148,FALSE)","v":34585},0,{"$f":"HLOOKUP(Results!E$4,Targeting!$C$3:$F$249,Targeting!$G148,FALSE)","v":2348},{"$f":"IF(AND(OR(Calculations!$E$2=\"Orkney Health Board\",Calculations!$E$2=\"Orkney Islands Local Authority\"),$F148=1),0,IF(AND(OR(Calculations!$E$2=\"Shetland Health Board\",Calculations!$E$2=\"Western Isles Health Board\",Calculations!$E$2=\"Shetland Islands Local Authority\",Calculations!$E$2=\"Eilean Siar Local Authority\"),OR($F148=1,$F148=5)),0,new_ci(VALUE(LEFT(Options!$B$24,2)),$C148,$E148,$F148,2016,$I148,1,$H148,$G148*$H148,Options!$B$8)))","v":270.22574002070002},{"$f":"IF(AND(OR(Calculations!$E$2=\"Orkney Health Board\",Calculations!$E$2=\"Orkney Islands Local Authority\"),$F148=1),0,IF(AND(OR(Calculations!$E$2=\"Shetland Health Board\",Calculations!$E$2=\"Western Isles Health Board\",Calculations!$E$2=\"Shetland Islands Local Authority\",Calculations!$E$2=\"Eilean Siar Local Authority\"),OR($F148=1,$F148=5)),0,new_ci(VALUE(LEFT(Options!$B$24,2)),$C148,$E148,$F148,2016,$I148+$J148,1,$H148,$G148*$H148,Options!$B$8)))","v":263.00216239790001},{"$f":"IF(AND(OR(Calculations!$E$2=\"Orkney Health Board\",Calculations!$E$2=\"Orkney Islands Local Authority\"),$F148=1),0,IF(AND(OR(Calculations!$E$2=\"Shetland Health Board\",Calculations!$E$2=\"Western Isles Health Board\",Calculations!$E$2=\"Shetland Islands Local Authority\",Calculations!$E$2=\"Eilean Siar Local Authority\"),OR($F148=1,$F148=5)),0,new_yllv2(VALUE(LEFT(Options!$B$24,2)),$C148,$D148,$E148,$F148,2016,$I148,1,$H148,$G148*$H148,Options!$B$8)))","v":5734.1907436907004},{"$f":"IF(AND(OR(Calculations!$E$2=\"Orkney Health Board\",Calculations!$E$2=\"Orkney Islands Local Authority\"),$F148=1),0,IF(AND(OR(Calculations!$E$2=\"Shetland Health Board\",Calculations!$E$2=\"Western Isles Health Board\",Calculations!$E$2=\"Shetland Islands Local Authority\",Calculations!$E$2=\"Eilean Siar Local Authority\"),OR($F148=1,$F148=5)),0,new_yllv2(VALUE(LEFT(Options!$B$24,2)),$C148,$D148,$E148,$F148,2016,$I148+$J148,1,$H148,$G148*$H148,Options!$B$8)))","v":5580.9064120878002},{"$f":"IF(AND(OR(Calculations!$E$2=\"Orkney Health Board\",Calculations!$E$2=\"Orkney Islands Local Authority\"),$F148=1),0,IF(AND(OR(Calculations!$E$2=\"Shetland Health Board\",Calculations!$E$2=\"Western Isles Health Board\",Calculations!$E$2=\"Shetland Islands Local Authority\",Calculations!$E$2=\"Eilean Siar Local Authority\"),OR($F148=1,$F148=5)),0,hosp_count(VALUE(LEFT(Options!$B$24,2)),$C148,$E148,$F148,2016,$I148,1,$H148,$G148*$H148, Options!$B$8)))","v":10579.416535496001},{"$f":"IF(AND(OR(Calculations!$E$2=\"Orkney Health Board\",Calculations!$E$2=\"Orkney Islands Local Authority\"),$F148=1),0,IF(AND(OR(Calculations!$E$2=\"Shetland Health Board\",Calculations!$E$2=\"Western Isles Health Board\",Calculations!$E$2=\"Shetland Islands Local Authority\",Calculations!$E$2=\"Eilean Siar Local Authority\"),OR($F148=1,$F148=5)),0,hosp_count(VALUE(LEFT(Options!$B$24,2)),$C148,$E148,$F148,2016,$I148+$J148,1,$H148,$G148*$H148, Options!$B$8)))","v":10556.6142993347},{"$f":"IF(AND(OR(Calculations!$E$2=\"Orkney Health Board\",Calculations!$E$2=\"Orkney Islands Local Authority\"),$F148=1),0,IF(AND(OR(Calculations!$E$2=\"Shetland Health Board\",Calculations!$E$2=\"Western Isles Health Board\",Calculations!$E$2=\"Shetland Islands Local Authority\",Calculations!$E$2=\"Eilean Siar Local Authority\"),OR($F148=1,$F148=5)),0,prem_mort(VALUE(LEFT(Options!$B$24,2)),$C148,$E148,$F148,2016,$I148,1,$H148,$G148*$H148,Options!$B$8)))","v":270.22574002070002},{"$f":"IF(AND(OR(Calculations!$E$2=\"Orkney Health Board\",Calculations!$E$2=\"Orkney Islands Local Authority\"),$F148=1),0,IF(AND(OR(Calculations!$E$2=\"Shetland Health Board\",Calculations!$E$2=\"Western Isles Health Board\",Calculations!$E$2=\"Shetland Islands Local Authority\",Calculations!$E$2=\"Eilean Siar Local Authority\"),OR($F148=1,$F148=5)),0,prem_mort(VALUE(LEFT(Options!$B$24,2)),$C148,$E148,$F148,2016,$I148+$J148,1,$H148,$G148*$H148,Options!$B$8)))","v":263.00216239790001},781.33797895243606,760.45153216105246,16579.993476046555,16136.783033360707,30589.609759999999,30523.678760545612,781.33797895243606,760.45153216105246,4688027.8737146165,4562709.192966315,99479960.856279328,96820698.200164244,183537658.56,183142072.56327367,4688027.8737146165,4562709.192966315,6000]
[null,"Female 65-69",67.063927000000007,85.193929999999995,"female",3,{"$f":"HLOOKUP(Calculations!$E$2,'Prevalence Rates'!$C$3:$BC$249,'Prevalence Rates'!$BD149,FALSE)","v":0},{"$f":"HLOOKUP(Calculations!$E$2,'Population 2016'!$C$3:$BC$249,'Population 2016'!BD149,FALSE)","v":35061},0,{"$f":"HLOOKUP(Results!E$4,Targeting!$C$3:$F$249,Targeting!$G149,FALSE)","v":0},{"$f":"IF(AND(OR(Calculations!$E$2=\"Orkney Health Board\",Calculations!$E$2=\"Orkney Islands Local Authority\"),$F149=1),0,IF(AND(OR(Calculations!$E$2=\"Shetland Health Board\",Calculations!$E$2=\"Western Isles Health Board\",Calculations!$E$2=\"Shetland Islands Local Authority\",Calculations!$E$2=\"Eilean Siar Local Authority\"),OR($F149=1,$F149=5)),0,new_ci(VALUE(LEFT(Options!$B$24,2)),$C149,$E149,$F149,2016,$I149,1,$H149,$G149*$H149,Options!$B$8)))","v":422.45091811650002},{"$f":"IF(AND(OR(Calculations!$E$2=\"Orkney Health Board\",Calculations!$E$2=\"Orkney Islands Local Authority\"),$F149=1),0,IF(AND(OR(Calculations!$E$2=\"Shetland Health Board\",Calculations!$E$2=\"Western Isles Health Board\",Calculations!$E$2=\"Shetland Islands Local Authority\",Calculations!$E$2=\"Eilean Siar Local Authority\"),OR($F149=1,$F149=5)),0,new_ci(VALUE(LEFT(Options!$B$24,2)),$C149,$E149,$F149,2016,$I149+$J149,1,$H149,$G149*$H149,Options!$B$8)))","v":422.45091811650002},{"$f":"IF(AND(OR(Calculations!$E$2=\"Orkney Health Board\",Calculations!$E$2=\"Orkney Islands Local Authority\"),$F149=1),0,IF(AND(OR(Calculations!$E$2=\"Shetland Health Board\",Calculations!$E$2=\"Western Isles Health Board\",Calculations!$E$2=\"Shetland Islands Local Authority\",Calculations!$E$2=\"Eilean Siar Local Authority\"),OR($F149=1,$F149=5)),0,new_yllv2(VALUE(LEFT(Options!$B$24,2)),$C149,$D149,$E149,$F149,2016,$I149,1,$H149,$G149*$H149,Options!$B$8)))","v":7236.5854946884001},{"$f":"IF(AND(OR(Calculations!$E$2=\"Orkney Health Board\",Calculations!$E$2=\"Orkney Islands Local Authority\"),$F149=1),0,IF(AND(OR(Calculations!$E$2=\"Shetland Health Board\",Calculations!$E$2=\"Western Isles Health Board\",Calculations!$E$2=\"Shetland Islands Local Authority\",Calculations!$E$2=\"Eilean Siar Local Authority\"),OR($F149=1,$F149=5)),0,new_yllv2(VALUE(LEFT(Options!$B$24,2)),$C149,$D149,$E149,$F149,2016,$I149+$J149,1,$H149,$G149*$H149,Options!$B$8)))","v":7236.5854946884001},{"$f":"IF(AND(OR(Calculations!$E$2=\"Orkney Health Board\",Calculations!$E$2=\"Orkney Islands Local Authority\"),$F149=1),0,IF(AND(OR(Calculations!$E$2=\"Shetland Health Board\",Calculations!$E$2=\"Western Isles Health Board\",Calculations!$E$2=\"Shetland Islands Local Authority\",Calculations!$E$2=\"Eilean Siar Local Authority\"),OR($F149=1,$F149=5)),0,hosp_count(VALUE(LEFT(Options!$B$24,2)),$C149,$E149,$F149,2016,$I149,1,$H149,$G149*$H149, Options!$B$8)))","v":12198.090860927399},{"$f":"IF(AND(OR(Calculations!$E$2=\"Orkney Health Board\",Calculations!$E$2=\"Orkney Islands Local Authority\"),$F149=1),0,IF(AND(OR(Calculations!$E$2=\"Shetland Health Board\",Calculations!$E$2=\"Western Isles Health Board\",Calculations!$E$2=\"Shetland Islands Local Authority\",Calculations!$E$2=\"Eilean Siar Local Authority\"),OR($F149=1,$F149=5)),0,hosp_count(VALUE(LEFT(Options!$B$24,2)),$C149,$E149,$F149,2016,$I149+$J149,1,$H149,$G149*$H149, Options!$B$8)))","v":12198.090860927399},{"$f":"IF(AND(OR(Calculations!$E$2=\"Orkney Health Board\",Calculations!$E$2=\"Orkney Islands Local Authority\"),$F149=1),0,IF(AND(OR(Calculations!$E$2=\"Shetland Health Board\",Calculations!$E$2=\"Western Isles Health Board\",Calculations!$E$2=\"Shetland Islands Local Authority\",Calculations!$E$2=\"Eilean Siar Local Authority\"),OR($F149=1,$F149=5)),0,prem_mort(VALUE(LEFT(Options!$B$24,2)),$C149,$E149,$F149,2016,$I149,1,$H149,$G149*$H149,Options!$B$8)))","v":422.45091811650002},{"$f":"IF(AND(OR(Calculations!$E$2=\"Orkney Health Board\",Calculations!$E$2=\"Orkney Islands Local Authority\"),$F149=1),0,IF(AND(OR(Calculations!$E$2=\"Shetland Health Board\",Calculations!$E$2=\"Western Isles Health Board\",Calculations!$E$2=\"Shetland Islands Local Authority\",Calculations!$E$2=\"Eilean Siar Local Authority\"),OR($F149=1,$F149=5)),0,prem_mort(VALUE(LEFT(Options!$B$24,2)),$C149,$E149,$F149,2016,$I149+$J149,1,$H149,$G149*$H149,Options!$B$8)))","v":422.45091811650002},1204.90265,1204.90265,20639.986009207951,20639.986009207951,34791.052339999995,34791.052339999995,1204.90265,1204.90265,6626964.5750000002,6626964.5750000002,113519923.05064373,113519923.05064373,191350787.86999997,191350787.86999997,6626964.5750000002,6626964.5750000002,5500]
[null,"Female 70-74",71.938164,86.248159999999999,"female",3,{"$f":"HLOOKUP(Calculations!$E$2,'Prevalence Rates'!$C$3:$BC$249,'Prevalence Rates'!$BD150,FALSE)","v":0},{"$f":"HLOOKUP(Calculations!$E$2,'Population 2016'!$C$3:$BC$249,'Population 2016'!BD150,FALSE)","v":27558},0,{"$f":"HLOOKUP(Results!E$4,Targeting!$C$3:$F$249,Targeting!$G150,FALSE)","v":0},{"$f":"IF(AND(OR(Calculations!$E$2=\"Orkney Health Board\",Calculations!$E$2=\"Orkney Islands Local Authority\"),$F150=1),0,IF(AND(OR(Calculations!$E$2=\"Shetland Health Board\",Calculations!$E$2=\"Western Isles Health Board\",Calculations!$E$2=\"Shetland Islands Local Authority\",Calculations!$E$2=\"Eilean Siar Local Authority\"),OR($F150=1,$F150=5)),0,new_ci(VALUE(LEFT(Options!$B$24,2)),$C150,$E150,$F150,2016,$I150,1,$H150,$G150*$H150,Options!$B$8)))","v":501.07002528420003},{"$f":"IF(AND(OR(Calculations!$E$2=\"Orkney Health Board\",Calculations!$E$2=\"Orkney Islands Local Authority\"),$F150=1),0,IF(AND(OR(Calculations!$E$2=\"Shetland Health Board\",Calculations!$E$2=\"Western Isles Health Board\",Calculations!$E$2=\"Shetland Islands Local Authority\",Calculations!$E$2=\"Eilean Siar Local Authority\"),OR($F150=1,$F150=5)),0,new_ci(VALUE(LEFT(Options!$B$24,2)),$C150,$E150,$F150,2016,$I150+$J150,1,$H150,$G150*$H150,Options!$B$8)))","v":501.07002528420003},{"$f":"IF(AND(OR(Calculations!$E$2=\"Orkney Health Board\",Calculations!$E$2=\"Orkney Islands Local Authority\"),$F150=1),0,IF(AND(OR(Calculations!$E$2=\"Shetland Health Board\",Calculations!$E$2=\"Western Isles Health Board\",Calculations!$E$2=\"Shetland Islands Local Authority\",Calculations!$E$2=\"Eilean Siar Local Authority\"),OR($F150=1,$F150=5)),0,new_yllv2(VALUE(LEFT(Options!$B$24,2)),$C150,$D150,$E150,$F150,2016,$I150,1,$H150,$G150*$H150,Options!$B$8)))","v":6669.2400322526},{"$f":"IF(AND(OR(Calculations!$E$2=\"Orkney Health Board\",Calculations!$E$2=\"Orkney Islands Local Authority\"),$F150=1),0,IF(AND(OR(Calculations!$E$2=\"Shetland Health Board\",Calculations!$E$2=\"Western Isles Health Board\",Calculations!$E$2=\"Shetland Islands Local Authority\",Calculations!$E$2=\"Eilean Siar Local Authority\"),OR($F150=1,$F150=5)),0,new_yllv2(VALUE(LEFT(Options!$B$24,2)),$C150,$D150,$E150,$F150,2016,$I150+$J150,1,$H150,$G150*$H150,Options!$B$8)))","v":6669.2400322526},{"$f":"IF(AND(OR(Calculations!$E$2=\"Orkney Health Board\",Calculations!$E$2=\"Orkney Islands Local Authority\"),$F150=1),0,IF(AND(OR(Calculations!$E$2=\"Shetland Health Board\",Calculations!$E$2=\"Western Isles Health Board\",Calculations!$E$2=\"Shetland Islands Local Authority\",Calculations!$E$2=\"Eilean Siar Local Authority\"),OR($F150=1,$F150=5)),0,hosp_count(VALUE(LEFT(Options!$B$24,2)),$C150,$E150,$F150,2016,$I150,1,$H150,$G150*$H150, Options!$B$8)))","v":10838.3196694914},{"$f":"IF(AND(OR(Calculations!$E$2=\"Orkney Health Board\",Calculations!$E$2=\"Orkney Islands Local Authority\"),$F150=1),0,IF(AND(OR(Calculations!$E$2=\"Shetland Health Board\",Calculations!$E$2=\"Western Isles Health Board\",Calculations!$E$2=\"Shetland Islands Local Authority\",Calculations!$E$2=\"Eilean Siar Local Authority\"),OR($F150=1,$F150=5)),0,hosp_count(VALUE(LEFT(Options!$B$24,2)),$C150,$E150,$F150,2016,$I150+$J150,1,$H150,$G150*$H150, Options!$B$8)))","v":10838.3196694914},{"$f":"IF(AND(OR(Calculations!$E$2=\"Orkney Health Board\",Calculations!$E$2=\"Orkney Islands Local Authority\"),$F150=1),0,IF(AND(OR(Calculations!$E$2=\"Shetland Health Board\",Calculations!$E$2=\"Western Isles Health Board\",Calculations!$E$2=\"Shetland Islands Local Authority\",Calculations!$E$2=\"Eilean Siar Local Authority\"),OR($F150=1,$F150=5)),0,prem_mort(VALUE(LEFT(Options!$B$24,2)),$C150,$E150,$F150,2016,$I150,1,$H150,$G150*$H150,Options!$B$8)))","v":501.07002528420003},{"$f":"IF(AND(OR(Calculations!$E$2=\"Orkney Health Board\",Calculations!$E$2=\"Orkney Islands Local Authority\"),$F150=1),0,IF(AND(OR(Calculations!$E$2=\"Shetland Health Board\",Calculations!$E$2=\"Western Isles Health Board\",Calculations!$E$2=\"Shetland Islands Local Authority\",Calculations!$E$2=\"Eilean Siar Local Authority\"),OR($F150=1,$F150=5)),0,prem_mort(VALUE(LEFT(Options!$B$24,2)),$C150,$E150,$F150,2016,$I150+$J150,1,$H150,$G150*$H150,Options!$B$8)))","v":501.07002528420003},1818.2379900000001,1818.2379900000001,24200.740373948036,24200.740373948036,39329.12283,39329.12283,1818.2379900000001,1818.2379900000001,9091189.9500000011,9091189.9500000011,121003701.86974017,121003701.86974017,196645614.15000001,196645614.15000001,9091189.9500000011,9091189.9500000011,5000]
[null,"Female 75-79",76.942824999999999,87.812830000000005,"female",3,{"$f":"HLOOKUP(Calculations!$E$2,'Prevalence Rates'!$C$3:$BC$249,'Prevalence Rates'!$BD151,FALSE)","v":0},{"$f":"HLOOKUP(Calculations!$E$2,'Population 2016'!$C$3:$BC$249,'Population 2016'!BD151,FALSE)","v":22028},0,{"$f":"HLOOKUP(Results!E$4,Targeting!$C$3:$F$249,Targeting!$G151,FALSE)","v":0},{"$f":"IF(AND(OR(Calculations!$E$2=\"Orkney Health Board\",Calculations!$E$2=\"Orkney Islands Local Authority\"),$F151=1),0,IF(AND(OR(Calculations!$E$2=\"Shetland Health Board\",Calculations!$E$2=\"Western Isles Health Board\",Calculations!$E$2=\"Shetland Islands Local Authority\",Calculations!$E$2=\"Eilean Siar Local Authority\"),OR($F151=1,$F151=5)),0,new_ci(VALUE(LEFT(Options!$B$24,2)),$C151,$E151,$F151,2016,$I151,1,$H151,$G151*$H151,Options!$B$8)))","v":610.07750270760005},{"$f":"IF(AND(OR(Calculations!$E$2=\"Orkney Health Board\",Calculations!$E$2=\"Orkney Islands Local Authority\"),$F151=1),0,IF(AND(OR(Calculations!$E$2=\"Shetland Health Board\",Calculations!$E$2=\"Western Isles Health Board\",Calculations!$E$2=\"Shetland Islands Local Authority\",Calculations!$E$2=\"Eilean Siar Local Authority\"),OR($F151=1,$F151=5)),0,new_ci(VALUE(LEFT(Options!$B$24,2)),$C151,$E151,$F151,2016,$I151+$J151,1,$H151,$G151*$H151,Options!$B$8)))","v":610.07750270760005},{"$f":"IF(AND(OR(Calculations!$E$2=\"Orkney Health Board\",Calculations!$E$2=\"Orkney Islands Local Authority\"),$F151=1),0,IF(AND(OR(Calculations!$E$2=\"Shetland Health Board\",Calculations!$E$2=\"Western Isles Health Board\",Calculations!$E$2=\"Shetland Islands Local Authority\",Calculations!$E$2=\"Eilean Siar Local Authority\"),OR($F151=1,$F151=5)),0,new_yllv2(VALUE(LEFT(Options!$B$24,2)),$C151,$D151,$E151,$F151,2016,$I151,1,$H151,$G151*$H151,Options!$B$8)))","v":6021.4680021115},{"$f":"IF(AND(OR(Calculations!$E$2=\"Orkney Health Board\",Calculations!$E$2=\"Orkney Islands Local Authority\"),$F151=1),0,IF(AND(OR(Calculations!$E$2=\"Shetland Health Board\",Calculations!$E$2=\"Western Isles Health Board\",Calculations!$E$2=\"Shetland Islands Local Authority\",Calculations!$E$2=\"Eilean Siar Local Authority\"),OR($F151=1,$F151=5)),0,new_yllv2(VALUE(LEFT(Options!$B$24,2)),$C151,$D151,$E151,$F151,2016,$I151+$J151,1,$H151,$G151*$H151,Options!$B$8)))","v":6021.4680021115},{"$f":"IF(AND(OR(Calculations!$E$2=\"Orkney Health Board\",Calculations!$E$2=\"Orkney Islands Local Authority\"),$F151=1),0,IF(AND(OR(Calculations!$E$2=\"Shetland Health Board\",Calculations!$E$2=\"Western Isles Health Board\",Calculations!$E$2=\"Shetland Islands Local Authority\",Calculations!$E$2=\"Eilean Siar Local Authority\"),OR($F151=1,$F151=5)),0,hosp_count(VALUE(LEFT(Options!$B$24,2)),$C151,$E151,$F151,2016,$I151,1,$H151,$G151*$H151, Options!$B$8)))","v":9825.6386700275998},{"$f":"IF(AND(OR(Calculations!$E$2=\"Orkney Health Board\",Calculations!$E$2=\"Orkney Islands Local Authority\"),$F151=1),0,IF(AND(OR(Calculations!$E$2=\"Shetland Health Board\",Calculations!$E$2=\"Western Isles Health Board\",Calculations!$E$2=\"Shetland Islands Local Authority\",Calculations!$E$2=\"Eilean Siar Local Authority\"),OR($F151=1,$F151=5)),0,hosp_count(VALUE(LEFT(Options!$B$24,2)),$C151,$E151,$F151,2016,$I151+$J151,1,$H151,$G151*$H151, Options!$B$8)))","v":9825.6386700275998},{"$f":"IF(AND(OR(Calculations!$E$2=\"Orkney Health Board\",Calculations!$E$2=\"Orkney Islands Local Authority\"),$F151=1),0,IF(AND(OR(Calculations!$E$2=\"Shetland Health Board\",Calculations!$E$2=\"Western Isles Health Board\",Calculations!$E$2=\"Shetland Islands Local Authority\",Calculations!$E$2=\"Eilean Siar Local Authority\"),OR($F151=1,$F151=5)),0,prem_mort(VALUE(LEFT(Options!$B$24,2)),$C151,$E151,$F151,2016,$I151,1,$H151,$G151*$H151,Options!$B$8)))","v":0},{"$f":"IF(AND(OR(Calculations!$E$2=\"Orkney Health Board\",Calculations!$E$2=\"Orkney Islands Local Authority\"),$F151=1),0,IF(AND(OR(Calculations!$E$2=\"Shetland Health Board\",Calculations!$E$2=\"Western Isles Health Board\",Calculations!$E$2=\"Shetland Islands Local Authority\",Calculations!$E$2=\"Eilean Siar Local Authority\"),OR($F151=1,$F151=5)),0,prem_mort(VALUE(LEFT(Options!$B$24,2)),$C151,$E151,$F151,2016,$I151+$J151,1,$H151,$G151*$H151,Options!$B$8)))","v":0},2769.5546700000004,2769.5546700000004,27335.518440673237,27335.518440673237,44605.223669999999,44605.223669999999,0,0,11078218.680000002,11078218.680000002,109342073.76269294,109342073.76269294,178420894.68000001,178420894.68000001,0,0,4000]
[null,"Female 80-84",81.856712000000002,89.736710000000002,"female",3,{"$f":"HLOOKUP(Calculations!$E$2,'Prevalence Rates'!$C$3:$BC$249,'Prevalence Rates'!$BD152,FALSE)","v":0},{"$f":"HLOOKUP(Calculations!$E$2,'Population 2016'!$C$3:$BC$249,'Population 2016'!BD152,FALSE)","v":16697},0,{"$f":"HLOOKUP(Results!E$4,Targeting!$C$3:$F$249,Targeting!$G152,FALSE)","v":0},{"$f":"IF(AND(OR(Calculations!$E$2=\"Orkney Health Board\",Calculations!$E$2=\"Orkney Islands Local Authority\"),$F152=1),0,IF(AND(OR(Calculations!$E$2=\"Shetland Health Board\",Calculations!$E$2=\"Western Isles Health Board\",Calculations!$E$2=\"Shetland Islands Local Authority\",Calculations!$E$2=\"Eilean Siar Local Authority\"),OR($F152=1,$F152=5)),0,new_ci(VALUE(LEFT(Options!$B$24,2)),$C152,$E152,$F152,2016,$I152,1,$H152,$G152*$H152,Options!$B$8)))","v":697.29242169209999},{"$f":"IF(AND(OR(Calculations!$E$2=\"Orkney Health Board\",Calculations!$E$2=\"Orkney Islands Local Authority\"),$F152=1),0,IF(AND(OR(Calculations!$E$2=\"Shetland Health Board\",Calculations!$E$2=\"Western Isles Health Board\",Calculations!$E$2=\"Shetland Islands Local Authority\",Calculations!$E$2=\"Eilean Siar Local Authority\"),OR($F152=1,$F152=5)),0,new_ci(VALUE(LEFT(Options!$B$24,2)),$C152,$E152,$F152,2016,$I152+$J152,1,$H152,$G152*$H152,Options!$B$8)))","v":697.29242169209999},{"$f":"IF(AND(OR(Calculations!$E$2=\"Orkney Health Board\",Calculations!$E$2=\"Orkney Islands Local Authority\"),$F152=1),0,IF(AND(OR(Calculations!$E$2=\"Shetland Health Board\",Calculations!$E$2=\"Western Isles Health Board\",Calculations!$E$2=\"Shetland Islands Local Authority\",Calculations!$E$2=\"Eilean Siar Local Authority\"),OR($F152=1,$F152=5)),0,new_yllv2(VALUE(LEFT(Options!$B$24,2)),$C152,$D152,$E152,$F152,2016,$I152,1,$H152,$G152*$H152,Options!$B$8)))","v":4797.3704666568001},{"$f":"IF(AND(OR(Calculations!$E$2=\"Orkney Health Board\",Calculations!$E$2=\"Orkney Islands Local Authority\"),$F152=1),0,IF(AND(OR(Calculations!$E$2=\"Shetland Health Board\",Calculations!$E$2=\"Western Isles Health Board\",Calculations!$E$2=\"Shetland Islands Local Authority\",Calculations!$E$2=\"Eilean Siar Local Authority\"),OR($F152=1,$F152=5)),0,new_yllv2(VALUE(LEFT(Options!$B$24,2)),$C152,$D152,$E152,$F152,2016,$I152+$J152,1,$H152,$G152*$H152,Options!$B$8)))","v":4797.3704666568001},{"$f":"IF(AND(OR(Calculations!$E$2=\"Orkney Health Board\",Calculations!$E$2=\"Orkney Islands Local Authority\"),$F152=1),0,IF(AND(OR(Calculations!$E$2=\"Shetland Health Board\",Calculations!$E$2=\"Western Isles Health Board\",Calculations!$E$2=\"Shetland Islands Local Authority\",Calculations!$E$2=\"Eilean Siar Local Authority\"),OR($F152=1,$F152=5)),0,hosp_count(VALUE(LEFT(Options!$B$24,2)),$C152,$E152,$F152,2016,$I152,1,$H152,$G152*$H152, Options!$B$8)))","v":8427.6017503116},{"$f":"IF(AND(OR(Calculations!$E$2=\"Orkney Health Board\",Calculations!$E$2=\"Orkney Islands Local Authority\"),$F152=1),0,IF(AND(OR(Calculations!$E$2=\"Shetland Health Board\",Calculations!$E$2=\"Western Isles Health Board\",Calculations!$E$2=\"Shetland Islands Local Authority\",Calculations!$E$2=\"Eilean Siar Local Authority\"),OR($F152=1,$F152=5)),0,hosp_count(VALUE(LEFT(Options!$B$24,2)),$C152,$E152,$F152,2016,$I152+$J152,1,$H152,$G152*$H152, Options!$B$8)))","v":8427.6017503116},{"$f":"IF(AND(OR(Calculations!$E$2=\"Orkney Health Board\",Calculations!$E$2=\"Orkney Islands Local Authority\"),$F152=1),0,IF(AND(OR(Calculations!$E$2=\"Shetland Health Board\",Calculations!$E$2=\"Western Isles Health Board\",Calculations!$E$2=\"Shetland Islands Local Authority\",Calculations!$E$2=\"Eilean Siar Local Authority\"),OR($F152=1,$F152=5)),0,prem_mort(VALUE(LEFT(Options!$B$24,2)),$C152,$E152,$F152,2016,$I152,1,$H152,$G152*$H152,Options!$B$8)))","v":0},{"$f":"IF(AND(OR(Calculations!$E$2=\"Orkney Health Board\",Calculations!$E$2=\"Orkney Islands Local Authority\"),$F152=1),0,IF(AND(OR(Calculations!$E$2=\"Shetland Health Board\",Calculations!$E$2=\"Western Isles Health Board\",Calculations!$E$2=\"Shetland Islands Local Authority\",Calculations!$E$2=\"Eilean Siar Local Authority\"),OR($F152=1,$F152=5)),0,prem_mort(VALUE(LEFT(Options!$B$24,2)),$C152,$E152,$F152,2016,$I152+$J152,1,$H152,$G152*$H152,Options!$B$8)))","v":0},4176.1539300000004,4176.1539300000004,28731.930686092113,28731.930686092113,50473.74828,50473.74828,0,0,10440384.825000001,10440384.825000001,71829826.715230286,71829826.715230286,126184370.7,126184370.7,0,0,2500]
[null,"Female 85-89",86.730819999999994,92.220819999999989,"female",3,{"$f":"HLOOKUP(Calculations!$E$2,'Prevalence Rates'!$C$3:$BC$249,'Prevalence Rates'!$BD153,FALSE)","v":0},{"$f":"HLOOKUP(Calculations!$E$2,'Population 2016'!$C$3:$BC$249,'Population 2016'!BD153,FALSE)","v":10459},0,{"$f":"HLOOKUP(Results!E$4,Targeting!$C$3:$F$249,Targeting!$G153,FALSE)","v":0},{"$f":"IF(AND(OR(Calculations!$E$2=\"Orkney Health Board\",Calculations!$E$2=\"Orkney Islands Local Authority\"),$F153=1),0,IF(AND(OR(Calculations!$E$2=\"Shetland Health Board\",Calculations!$E$2=\"Western Isles Health Board\",Calculations!$E$2=\"Shetland Islands Local Authority\",Calculations!$E$2=\"Eilean Siar Local Authority\"),OR($F153=1,$F153=5)),0,new_ci(VALUE(LEFT(Options!$B$24,2)),$C153,$E153,$F153,2016,$I153,1,$H153,$G153*$H153,Options!$B$8)))","v":654.02362192889996},{"$f":"IF(AND(OR(Calculations!$E$2=\"Orkney Health Board\",Calculations!$E$2=\"Orkney Islands Local Authority\"),$F153=1),0,IF(AND(OR(Calculations!$E$2=\"Shetland Health Board\",Calculations!$E$2=\"Western Isles Health Board\",Calculations!$E$2=\"Shetland Islands Local Authority\",Calculations!$E$2=\"Eilean Siar Local Authority\"),OR($F153=1,$F153=5)),0,new_ci(VALUE(LEFT(Options!$B$24,2)),$C153,$E153,$F153,2016,$I153+$J153,1,$H153,$G153*$H153,Options!$B$8)))","v":654.02362192889996},{"$f":"IF(AND(OR(Calculations!$E$2=\"Orkney Health Board\",Calculations!$E$2=\"Orkney Islands Local Authority\"),$F153=1),0,IF(AND(OR(Calculations!$E$2=\"Shetland Health Board\",Calculations!$E$2=\"Western Isles Health Board\",Calculations!$E$2=\"Shetland Islands Local Authority\",Calculations!$E$2=\"Eilean Siar Local Authority\"),OR($F153=1,$F153=5)),0,new_yllv2(VALUE(LEFT(Options!$B$24,2)),$C153,$D153,$E153,$F153,2016,$I153,1,$H153,$G153*$H153,Options!$B$8)))","v":2936.5660624607999},{"$f":"IF(AND(OR(Calculations!$E$2=\"Orkney Health Board\",Calculations!$E$2=\"Orkney Islands Local Authority\"),$F153=1),0,IF(AND(OR(Calculations!$E$2=\"Shetland Health Board\",Calculations!$E$2=\"Western Isles Health Board\",Calculations!$E$2=\"Shetland Islands Local Authority\",Calculations!$E$2=\"Eilean Siar Local Authority\"),OR($F153=1,$F153=5)),0,new_yllv2(VALUE(LEFT(Options!$B$24,2)),$C153,$D153,$E153,$F153,2016,$I153+$J153,1,$H153,$G153*$H153,Options!$B$8)))","v":2936.5660624607999},{"$f":"IF(AND(OR(Calculations!$E$2=\"Orkney Health Board\",Calculations!$E$2=\"Orkney Islands Local Authority\"),$F153=1),0,IF(AND(OR(Calculations!$E$2=\"Shetland Health Board\",Calculations!$E$2=\"Western Isles Health Board\",Calculations!$E$2=\"Shetland Islands Local Authority\",Calculations!$E$2=\"Eilean Siar Local Authority\"),OR($F153=1,$F153=5)),0,hosp_count(VALUE(LEFT(Options!$B$24,2)),$C153,$E153,$F153,2016,$I153,1,$H153,$G153*$H153, Options!$B$8)))","v":5967.6178789523001},{"$f":"IF(AND(OR(Calculations!$E$2=\"Orkney Health Board\",Calculations!$E$2=\"Orkney Islands Local Authority\"),$F153=1),0,IF(AND(OR(Calculations!$E$2=\"Shetland Health Board\",Calculations!$E$2=\"Western Isles Health Board\",Calculations!$E$2=\"Shetland Islands Local Authority\",Calculations!$E$2=\"Eilean Siar Local Authority\"),OR($F153=1,$F153=5)),0,hosp_count(VALUE(LEFT(Options!$B$24,2)),$C153,$E153,$F153,2016,$I153+$J153,1,$H153,$G153*$H153, Options!$B$8)))","v":5967.6178789523001},{"$f":"IF(AND(OR(Calculations!$E$2=\"Orkney Health Board\",Calculations!$E$2=\"Orkney Islands Local Authority\"),$F153=1),0,IF(AND(OR(Calculations!$E$2=\"Shetland Health Board\",Calculations!$E$2=\"Western Isles Health Board\",Calculations!$E$2=\"Shetland Islands Local Authority\",Calculations!$E$2=\"Eilean Siar Local Authority\"),OR($F153=1,$F153=5)),0,prem_mort(VALUE(LEFT(Options!$B$24,2)),$C153,$E153,$F153,2016,$I153,1,$H153,$G153*$H153,Options!$B$8)))","v":0},{"$f":"IF(AND(OR(Calculations!$E$2=\"Orkney Health Board\",Calculations!$E$2=\"Orkney Islands Local Authority\"),$F153=1),0,IF(AND(OR(Calculations!$E$2=\"Shetland Health Board\",Calculations!$E$2=\"Western Isles Health Board\",Calculations!$E$2=\"Shetland Islands Local Authority\",Calculations!$E$2=\"Eilean Siar Local Authority\"),OR($F153=1,$F153=5)),0,prem_mort(VALUE(LEFT(Options!$B$24,2)),$C153,$E153,$F153,2016,$I153+$J153,1,$H153,$G153*$H153,Options!$B$8)))","v":0},6253.21371,6253.21371,28076.92955790037,28076.92955790037,57057.250970000008,57057.250970000008,0,0,9379820.5649999995,9379820.5649999995,42115394.336850554,42115394.336850554,85585876.455000013,85585876.455000013,0,0,1500]
[null,"Female 90+",92.779342999999997,96.279340000000005,"female",3,{"$f":"HLOOKUP(Calculations!$E$2,'Prevalence Rates'!$C$3:$BC$249,'Prevalence Rates'!$BD154,FALSE)","v":0},{"$f":"HLOOKUP(Calculations!$E$2,'Population 2016'!$C$3:$BC$249,'Population 2016'!BD154,FALSE)","v":6278},0,{"$f":"HLOOKUP(Results!E$4,Targeting!$C$3:$F$249,Targeting!$G154,FALSE)","v":0},{"$f":"IF(AND(OR(Calculations!$E$2=\"Orkney Health Board\",Calculations!$E$2=\"Orkney Islands Local Authority\"),$F154=1),0,IF(AND(OR(Calculations!$E$2=\"Shetland Health Board\",Calculations!$E$2=\"Western Isles Health Board\",Calculations!$E$2=\"Shetland Islands Local Authority\",Calculations!$E$2=\"Eilean Siar Local Authority\"),OR($F154=1,$F154=5)),0,new_ci(VALUE(LEFT(Options!$B$24,2)),$C154,$E154,$F154,2016,$I154,1,$H154,$G154*$H154,Options!$B$8)))","v":642.76403237039995},{"$f":"IF(AND(OR(Calculations!$E$2=\"Orkney Health Board\",Calculations!$E$2=\"Orkney Islands Local Authority\"),$F154=1),0,IF(AND(OR(Calculations!$E$2=\"Shetland Health Board\",Calculations!$E$2=\"Western Isles Health Board\",Calculations!$E$2=\"Shetland Islands Local Authority\",Calculations!$E$2=\"Eilean Siar Local Authority\"),OR($F154=1,$F154=5)),0,new_ci(VALUE(LEFT(Options!$B$24,2)),$C154,$E154,$F154,2016,$I154+$J154,1,$H154,$G154*$H154,Options!$B$8)))","v":642.76403237039995},{"$f":"IF(AND(OR(Calculations!$E$2=\"Orkney Health Board\",Calculations!$E$2=\"Orkney Islands Local Authority\"),$F154=1),0,IF(AND(OR(Calculations!$E$2=\"Shetland Health Board\",Calculations!$E$2=\"Western Isles Health Board\",Calculations!$E$2=\"Shetland Islands Local Authority\",Calculations!$E$2=\"Eilean Siar Local Authority\"),OR($F154=1,$F154=5)),0,new_yllv2(VALUE(LEFT(Options!$B$24,2)),$C154,$D154,$E154,$F154,2016,$I154,1,$H154,$G154*$H154,Options!$B$8)))","v":1606.9081526339},{"$f":"IF(AND(OR(Calculations!$E$2=\"Orkney Health Board\",Calculations!$E$2=\"Orkney Islands Local Authority\"),$F154=1),0,IF(AND(OR(Calculations!$E$2=\"Shetland Health Board\",Calculations!$E$2=\"Western Isles Health Board\",Calculations!$E$2=\"Shetland Islands Local Authority\",Calculations!$E$2=\"Eilean Siar Local Authority\"),OR($F154=1,$F154=5)),0,new_yllv2(VALUE(LEFT(Options!$B$24,2)),$C154,$D154,$E154,$F154,2016,$I154+$J154,1,$H154,$G154*$H154,Options!$B$8)))","v":1606.9081526339},{"$f":"IF(AND(OR(Calculations!$E$2=\"Orkney Health Board\",Calculations!$E$2=\"Orkney Islands Local Authority\"),$F154=1),0,IF(AND(OR(Calculations!$E$2=\"Shetland Health Board\",Calculations!$E$2=\"Western Isles Health Board\",Calculations!$E$2=\"Shetland Islands Local Authority\",Calculations!$E$2=\"Eilean Siar Local Authority\"),OR($F154=1,$F154=5)),0,hosp_count(VALUE(LEFT(Options!$B$24,2)),$C154,$E154,$F154,2016,$I154,1,$H154,$G154*$H154, Options!$B$8)))","v":4170.6800816340001},{"$f":"IF(AND(OR(Calculations!$E$2=\"Orkney Health Board\",Calculations!$E$2=\"Orkney Islands Local Authority\"),$F154=1),0,IF(AND(OR(Calculations!$E$2=\"Shetland Health Board\",Calculations!$E$2=\"Western Isles Health Board\",Calculations!$E$2=\"Shetland Islands Local Authority\",Calculations!$E$2=\"Eilean Siar Local Authority\"),OR($F154=1,$F154=5)),0,hosp_count(VALUE(LEFT(Options!$B$24,2)),$C154,$E154,$F154,2016,$I154+$J154,1,$H154,$G154*$H154, Options!$B$8)))","v":4170.6800816340001},{"$f":"IF(AND(OR(Calculations!$E$2=\"Orkney Health Board\",Calculations!$E$2=\"Orkney Islands Local Authority\"),$F154=1),0,IF(AND(OR(Calculations!$E$2=\"Shetland Health Board\",Calculations!$E$2=\"Western Isles Health Board\",Calculations!$E$2=\"Shetland Islands Local Authority\",Calculations!$E$2=\"Eilean Siar Local Authority\"),OR($F154=1,$F154=5)),0,prem_mort(VALUE(LEFT(Options!$B$24,2)),$C154,$E154,$F154,2016,$I154,1,$H154,$G154*$H154,Options!$B$8)))","v":0},{"$f":"IF(AND(OR(Calculations!$E$2=\"Orkney Health Board\",Calculations!$E$2=\"Orkney Islands Local Authority\"),$F154=1),0,IF(AND(OR(Calculations!$E$2=\"Shetland Health Board\",Calculations!$E$2=\"Western Isles Health Board\",Calculations!$E$2=\"Shetland Islands Local Authority\",Calculations!$E$2=\"Eilean Siar Local Authority\"),OR($F154=1,$F154=5)),0,prem_mort(VALUE(LEFT(Options!$B$24,2)),$C154,$E154,$F154,2016,$I154+$J154,1,$H154,$G154*$H154,Options!$B$8)))","v":0},10238.356679999999,10238.356679999999,25595.860984929914,25595.860984929914,66433.260299999994,66433.260299999994,0,0,10238356.68,10238356.68,25595860.984929916,25595860.984929916,66433260.299999997,66433260.299999997,0,0,1000]
[null,"Male 0-4",2.0320822999999999,77.402082000000007,"male",3,{"$f":"HLOOKUP(Calculations!$E$2,'Prevalence Rates'!$C$3:$BC$249,'Prevalence Rates'!$BD155,FALSE)","v":0},{"$f":"HLOOKUP(Calculations!$E$2,'Population 2016'!$C$3:$BC$249,'Population 2016'!BD155,FALSE)","v":0},0,{"$f":"HLOOKUP(Results!E$4,Targeting!$C$3:$F$249,Targeting!$G155,FALSE)","v":0},{"$f":"IF(AND(OR(Calculations!$E$2=\"Orkney Health Board\",Calculations!$E$2=\"Orkney Islands Local Authority\"),$F155=1),0,IF(AND(OR(Calculations!$E$2=\"Shetland Health Board\",Calculations!$E$2=\"Western Isles Health Board\",Calculations!$E$2=\"Shetland Islands Local Authority\",Calculations!$E$2=\"Eilean Siar Local Authority\"),OR($F155=1,$F155=5)),0,new_ci(VALUE(LEFT(Options!$B$24,2)),$C155,$E155,$F155,2016,$I155,1,$H155,$G155*$H155,Options!$B$8)))","v":{"$error":"#VALUE!"}},{"$f":"IF(AND(OR(Calculations!$E$2=\"Orkney Health Board\",Calculations!$E$2=\"Orkney Islands Local Authority\"),$F155=1),0,IF(AND(OR(Calculations!$E$2=\"Shetland Health Board\",Calculations!$E$2=\"Western Isles Health Board\",Calculations!$E$2=\"Shetland Islands Local Authority\",Calculations!$E$2=\"Eilean Siar Local Authority\"),OR($F155=1,$F155=5)),0,new_ci(VALUE(LEFT(Options!$B$24,2)),$C155,$E155,$F155,2016,$I155+$J155,1,$H155,$G155*$H155,Options!$B$8)))","v":{"$error":"#VALUE!"}},{"$f":"IF(AND(OR(Calculations!$E$2=\"Orkney Health Board\",Calculations!$E$2=\"Orkney Islands Local Authority\"),$F155=1),0,IF(AND(OR(Calculations!$E$2=\"Shetland Health Board\",Calculations!$E$2=\"Western Isles Health Board\",Calculations!$E$2=\"Shetland Islands Local Authority\",Calculations!$E$2=\"Eilean Siar Local Authority\"),OR($F155=1,$F155=5)),0,new_yllv2(VALUE(LEFT(Options!$B$24,2)),$C155,$D155,$E155,$F155,2016,$I155,1,$H155,$G155*$H155,Options!$B$8)))","v":{"$error":"#VALUE!"}},{"$f":"IF(AND(OR(Calculations!$E$2=\"Orkney Health Board\",Calculations!$E$2=\"Orkney Islands Local Authority\"),$F155=1),0,IF(AND(OR(Calculations!$E$2=\"Shetland Health Board\",Calculations!$E$2=\"Western Isles Health Board\",Calculations!$E$2=\"Shetland Islands Local Authority\",Calculations!$E$2=\"Eilean Siar Local Authority\"),OR($F155=1,$F155=5)),0,new_yllv2(VALUE(LEFT(Options!$B$24,2)),$C155,$D155,$E155,$F155,2016,$I155+$J155,1,$H155,$G155*$H155,Options!$B$8)))","v":{"$error":"#VALUE!"}},{"$f":"IF(AND(OR(Calculations!$E$2=\"Orkney Health Board\",Calculations!$E$2=\"Orkney Islands Local Authority\"),$F155=1),0,IF(AND(OR(Calculations!$E$2=\"Shetland Health Board\",Calculations!$E$2=\"Western Isles Health Board\",Calculations!$E$2=\"Shetland Islands Local Authority\",Calculations!$E$2=\"Eilean Siar Local Authority\"),OR($F155=1,$F155=5)),0,hosp_count(VALUE(LEFT(Options!$B$24,2)),$C155,$E155,$F155,2016,$I155,1,$H155,$G155*$H155, Options!$B$8)))","v":{"$error":"#VALUE!"}},{"$f":"IF(AND(OR(Calculations!$E$2=\"Orkney Health Board\",Calculations!$E$2=\"Orkney Islands Local Authority\"),$F155=1),0,IF(AND(OR(Calculations!$E$2=\"Shetland Health Board\",Calculations!$E$2=\"Western Isles Health Board\",Calculations!$E$2=\"Shetland Islands Local Authority\",Calculations!$E$2=\"Eilean Siar Local Authority\"),OR($F155=1,$F155=5)),0,hosp_count(VALUE(LEFT(Options!$B$24,2)),$C155,$E155,$F155,2016,$I155+$J155,1,$H155,$G155*$H155, Options!$B$8)))","v":{"$error":"#VALUE!"}},{"$f":"IF(AND(OR(Calculations!$E$2=\"Orkney Health Board\",Calculations!$E$2=\"Orkney Islands Local Authority\"),$F155=1),0,IF(AND(OR(Calculations!$E$2=\"Shetland Health Board\",Calculations!$E$2=\"Western Isles Health Board\",Calculations!$E$2=\"Shetland Islands Local Authority\",Calculations!$E$2=\"Eilean Siar Local Authority\"),OR($F155=1,$F155=5)),0,prem_mort(VALUE(LEFT(Options!$B$24,2)),$C155,$E155,$F155,2016,$I155,1,$H155,$G155*$H155,Options!$B$8)))","v":{"$error":"#VALUE!"}},{"$f":"IF(AND(OR(Calculations!$E$2=\"Orkney Health Board\",Calculations!$E$2=\"Orkney Islands Local Authority\"),$F155=1),0,IF(AND(OR(Calculations!$E$2=\"Shetland Health Board\",Calculations!$E$2=\"Western Isles Health Board\",Calculations!$E$2=\"Shetland Islands Local Authority\",Calculations!$E$2=\"Eilean Siar Local Authority\"),OR($F155=1,$F155=5)),0,prem_mort(VALUE(LEFT(Options!$B$24,2)),$C155,$E155,$F155,2016,$I155+$J155,1,$H155,$G155*$H155,Options!$B$8)))","v":{"$error":"#VALUE!"}},{"$error":"#VALUE!"},{"$error":"#VALUE!"},{"$error":"#VALUE!"},{"$error":"#VALUE!"},{"$error":"#VALUE!"},{"$error":"#VALUE!"},{"$error":"#VALUE!"},{"$error":"#VALUE!"},{"$error":"#VALUE!"},{"$error":"#VALUE!"},{"$error":"#VALUE!"},{"$error":"#VALUE!"},{"$error":"#VALUE!"},{"$error":"#VALUE!"},{"$error":"#VALUE!"},{"$error":"#VALUE!"},5000]
[null,"Male 5-9",6.9784756000000003,77.398476000000002,"male",3,{"$f":"HLOOKUP(Calculations!$E$2,'Prevalence Rates'!$C$3:$BC$249,'Prevalence Rates'!$BD156,FALSE)","v":0},{"$f":"HLOOKUP(Calculations!$E$2,'Population 2016'!$C$3:$BC$249,'Population 2016'!BD156,FALSE)","v":0},0,{"$f":"HLOOKUP(Results!E$4,Targeting!$C$3:$F$249,Targeting!$G156,FALSE)","v":0},{"$f":"IF(AND(OR(Calculations!$E$2=\"Orkney Health Board\",Calculations!$E$2=\"Orkney Islands Local Authority\"),$F156=1),0,IF(AND(OR(Calculations!$E$2=\"Shetland Health Board\",Calculations!$E$2=\"Western Isles Health Board\",Calculations!$E$2=\"Shetland Islands Local Authority\",Calculations!$E$2=\"Eilean Siar Local Authority\"),OR($F156=1,$F156=5)),0,new_ci(VALUE(LEFT(Options!$B$24,2)),$C156,$E156,$F156,2016,$I156,1,$H156,$G156*$H156,Options!$B$8)))","v":{"$error":"#VALUE!"}},{"$f":"IF(AND(OR(Calculations!$E$2=\"Orkney Health Board\",Calculations!$E$2=\"Orkney Islands Local Authority\"),$F156=1),0,IF(AND(OR(Calculations!$E$2=\"Shetland Health Board\",Calculations!$E$2=\"Western Isles Health Board\",Calculations!$E$2=\"Shetland Islands Local Authority\",Calculations!$E$2=\"Eilean Siar Local Authority\"),OR($F156=1,$F156=5)),0,new_ci(VALUE(LEFT(Options!$B$24,2)),$C156,$E156,$F156,2016,$I156+$J156,1,$H156,$G156*$H156,Options!$B$8)))","v":{"$error":"#VALUE!"}},{"$f":"IF(AND(OR(Calculations!$E$2=\"Orkney Health Board\",Calculations!$E$2=\"Orkney Islands Local Authority\"),$F156=1),0,IF(AND(OR(Calculations!$E$2=\"Shetland Health Board\",Calculations!$E$2=\"Western Isles Health Board\",Calculations!$E$2=\"Shetland Islands Local Authority\",Calculations!$E$2=\"Eilean Siar Local Authority\"),OR($F156=1,$F156=5)),0,new_yllv2(VALUE(LEFT(Options!$B$24,2)),$C156,$D156,$E156,$F156,2016,$I156,1,$H156,$G156*$H156,Options!$B$8)))","v":{"$error":"#VALUE!"}},{"$f":"IF(AND(OR(Calculations!$E$2=\"Orkney Health Board\",Calculations!$E$2=\"Orkney Islands Local Authority\"),$F156=1),0,IF(AND(OR(Calculations!$E$2=\"Shetland Health Board\",Calculations!$E$2=\"Western Isles Health Board\",Calculations!$E$2=\"Shetland Islands Local Authority\",Calculations!$E$2=\"Eilean Siar Local Authority\"),OR($F156=1,$F156=5)),0,new_yllv2(VALUE(LEFT(Options!$B$24,2)),$C156,$D156,$E156,$F156,2016,$I156+$J156,1,$H156,$G156*$H156,Options!$B$8)))","v":{"$error":"#VALUE!"}},{"$f":"IF(AND(OR(Calculations!$E$2=\"Orkney Health Board\",Calculations!$E$2=\"Orkney Islands Local Authority\"),$F156=1),0,IF(AND(OR(Calculations!$E$2=\"Shetland Health Board\",Calculations!$E$2=\"Western Isles Health Board\",Calculations!$E$2=\"Shetland Islands Local Authority\",Calculations!$E$2=\"Eilean Siar Local Authority\"),OR($F156=1,$F156=5)),0,hosp_count(VALUE(LEFT(Options!$B$24,2)),$C156,$E156,$F156,2016,$I156,1,$H156,$G156*$H156, Options!$B$8)))","v":{"$error":"#VALUE!"}},{"$f":"IF(AND(OR(Calculations!$E$2=\"Orkney Health Board\",Calculations!$E$2=\"Orkney Islands Local Authority\"),$F156=1),0,IF(AND(OR(Calculations!$E$2=\"Shetland Health Board\",Calculations!$E$2=\"Western Isles Health Board\",Calculations!$E$2=\"Shetland Islands Local Authority\",Calculations!$E$2=\"Eilean Siar Local Authority\"),OR($F156=1,$F156=5)),0,hosp_count(VALUE(LEFT(Options!$B$24,2)),$C156,$E156,$F156,2016,$I156+$J156,1,$H156,$G156*$H156, Options!$B$8)))","v":{"$error":"#VALUE!"}},{"$f":"IF(AND(OR(Calculations!$E$2=\"Orkney Health Board\",Calculations!$E$2=\"Orkney Islands Local Authority\"),$F156=1),0,IF(AND(OR(Calculations!$E$2=\"Shetland Health Board\",Calculations!$E$2=\"Western Isles Health Board\",Calculations!$E$2=\"Shetland Islands Local Authority\",Calculations!$E$2=\"Eilean Siar Local Authority\"),OR($F156=1,$F156=5)),0,prem_mort(VALUE(LEFT(Options!$B$24,2)),$C156,$E156,$F156,2016,$I156,1,$H156,$G156*$H156,Options!$B$8)))","v":{"$error":"#VALUE!"}},{"$f":"IF(AND(OR(Calculations!$E$2=\"Orkney Health Board\",Calculations!$E$2=\"Orkney Islands Local Authority\"),$F156=1),0,IF(AND(OR(Calculations!$E$2=\"Shetland Health Board\",Calculations!$E$2=\"Western Isles Health Board\",Calculations!$E$2=\"Shetland Islands Local Authority\",Calculations!$E$2=\"Eilean Siar Local Authority\"),OR($F156=1,$F156=5)),0,prem_mort(VALUE(LEFT(Options!$B$24,2)),$C156,$E156,$F156,2016,$I156+$J156,1,$H156,$G156*$H156,Options!$B$8)))","v":{"$error":"#VALUE!"}},{"$error":"#VALUE!"},{"$error":"#VALUE!"},{"$error":"#VALUE!"},{"$error":"#VALUE!"},{"$error":"#VALUE!"},{"$error":"#VALUE!"},{"$error":"#VALUE!"},{"$error":"#VALUE!"},{"$error":"#VALUE!"},{"$error":"#VALUE!"},{"$error":"#VALUE!"},{"$error":"#VALUE!"},{"$f":"W156*$AI156","v":{"$error":"#VALUE!"}},{"$f":"X156*$AI156","v":{"$error":"#VALUE!"}},{"$f":"Y156*$AI156","v":{"$error":"#VALUE!"}},{"$f":"Z156*$AI156","v":{"$error":"#VALUE!"}},5500]
[null,"Male 10-15",12.471144000000001,77.921140000000008,"male",3,{"$f":"HLOOKUP(Calculations!$E$2,'Prevalence Rates'!$C$3:$BC$249,'Prevalence Rates'!$BD157,FALSE)","v":0},{"$f":"HLOOKUP(Calculations!$E$2,'Population 2016'!$C$3:$BC$249,'Population 2016'!BD157,FALSE)","v":0},0,{"$f":"HLOOKUP(Results!E$4,Targeting!$C$3:$F$249,Targeting!$G157,FALSE)","v":0},{"$f":"IF(AND(OR(Calculations!$E$2=\"Orkney Health Board\",Calculations!$E$2=\"Orkney Islands Local Authority\"),$F157=1),0,IF(AND(OR(Calculations!$E$2=\"Shetland Health Board\",Calculations!$E$2=\"Western Isles Health Board\",Calculations!$E$2=\"Shetland Islands Local Authority\",Calculations!$E$2=\"Eilean Siar Local Authority\"),OR($F157=1,$F157=5)),0,new_ci(VALUE(LEFT(Options!$B$24,2)),$C157,$E157,$F157,2016,$I157,1,$H157,$G157*$H157,Options!$B$8)))","v":{"$error":"#VALUE!"}},{"$f":"IF(AND(OR(Calculations!$E$2=\"Orkney Health Board\",Calculations!$E$2=\"Orkney Islands Local Authority\"),$F157=1),0,IF(AND(OR(Calculations!$E$2=\"Shetland Health Board\",Calculations!$E$2=\"Western Isles Health Board\",Calculations!$E$2=\"Shetland Islands Local Authority\",Calculations!$E$2=\"Eilean Siar Local Authority\"),OR($F157=1,$F157=5)),0,new_ci(VALUE(LEFT(Options!$B$24,2)),$C157,$E157,$F157,2016,$I157+$J157,1,$H157,$G157*$H157,Options!$B$8)))","v":{"$error":"#VALUE!"}},{"$f":"IF(AND(OR(Calculations!$E$2=\"Orkney Health Board\",Calculations!$E$2=\"Orkney Islands Local Authority\"),$F157=1),0,IF(AND(OR(Calculations!$E$2=\"Shetland Health Board\",Calculations!$E$2=\"Western Isles Health Board\",Calculations!$E$2=\"Shetland Islands Local Authority\",Calculations!$E$2=\"Eilean Siar Local Authority\"),OR($F157=1,$F157=5)),0,new_yllv2(VALUE(LEFT(Options!$B$24,2)),$C157,$D157,$E157,$F157,2016,$I157,1,$H157,$G157*$H157,Options!$B$8)))","v":{"$error":"#VALUE!"}},{"$f":"IF(AND(OR(Calculations!$E$2=\"Orkney Health Board\",Calculations!$E$2=\"Orkney Islands Local Authority\"),$F157=1),0,IF(AND(OR(Calculations!$E$2=\"Shetland Health Board\",Calculations!$E$2=\"Western Isles Health Board\",Calculations!$E$2=\"Shetland Islands Local Authority\",Calculations!$E$2=\"Eilean Siar Local Authority\"),OR($F157=1,$F157=5)),0,new_yllv2(VALUE(LEFT(Options!$B$24,2)),$C157,$D157,$E157,$F157,2016,$I157+$J157,1,$H157,$G157*$H157,Options!$B$8)))","v":{"$error":"#VALUE!"}},{"$f":"IF(AND(OR(Calculations!$E$2=\"Orkney Health Board\",Calculations!$E$2=\"Orkney Islands Local Authority\"),$F157=1),0,IF(AND(OR(Calculations!$E$2=\"Shetland Health Board\",Calculations!$E$2=\"Western Isles Health Board\",Calculations!$E$2=\"Shetland Islands Local Authority\",Calculations!$E$2=\"Eilean Siar Local Authority\"),OR($F157=1,$F157=5)),0,hosp_count(VALUE(LEFT(Options!$B$24,2)),$C157,$E157,$F157,2016,$I157,1,$H157,$G157*$H157, Options!$B$8)))","v":{"$error":"#VALUE!"}},{"$f":"IF(AND(OR(Calculations!$E$2=\"Orkney Health Board\",Calculations!$E$2=\"Orkney Islands Local Authority\"),$F157=1),0,IF(AND(OR(Calculations!$E$2=\"Shetland Health Board\",Calculations!$E$2=\"Western Isles Health Board\",Calculations!$E$2=\"Shetland Islands Local Authority\",Calculations!$E$2=\"Eilean Siar Local Authority\"),OR($F157=1,$F157=5)),0,hosp_count(VALUE(LEFT(Options!$B$24,2)),$C157,$E157,$F157,2016,$I157+$J157,1,$H157,$G157*$H157, Options!$B$8)))","v":{"$error":"#VALUE!"}},{"$f":"IF(AND(OR(Calculations!$E$2=\"Orkney Health Board\",Calculations!$E$2=\"Orkney Islands Local Authority\"),$F157=1),0,IF(AND(OR(Calculations!$E$2=\"Shetland Health Board\",Calculations!$E$2=\"Western Isles Health Board\",Calculations!$E$2=\"Shetland Islands Local Authority\",Calculations!$E$2=\"Eilean Siar Local Authority\"),OR($F157=1,$F157=5)),0,prem_mort(VALUE(LEFT(Options!$B$24,2)),$C157,$E157,$F157,2016,$I157,1,$H157,$G157*$H157,Options!$B$8)))","v":{"$error":"#VALUE!"}},{"$f":"IF(AND(OR(Calculations!$E$2=\"Orkney Health Board\",Calculations!$E$2=\"Orkney Islands Local Authority\"),$F157=1),0,IF(AND(OR(Calculations!$E$2=\"Shetland Health Board\",Calculations!$E$2=\"Western Isles Health Board\",Calculations!$E$2=\"Shetland Islands Local Authority\",Calculations!$E$2=\"Eilean Siar Local Authority\"),OR($F157=1,$F157=5)),0,prem_mort(VALUE(LEFT(Options!$B$24,2)),$C157,$E157,$F157,2016,$I157+$J157,1,$H157,$G157*$H157,Options!$B$8)))","v":{"$error":"#VALUE!"}},{"$error":"#VALUE!"},{"$error":"#VALUE!"},{"$error":"#VALUE!"},{"$error":"#VALUE!"},{"$error":"#VALUE!"},{"$error":"#VALUE!"},{"$error":"#VALUE!"},{"$error":"#VALUE!"},{"$error":"#VALUE!"},{"$error":"#VALUE!"},{"$error":"#VALUE!"},{"$error":"#VALUE!"},{"$error":"#VALUE!"},{"$error":"#VALUE!"},{"$error":"#VALUE!"},{"$error":"#VALUE!"},6600]
[null,"Male 16-19",17.556318000000001,77.07632000000001,"male",3,{"$f":"HLOOKUP(Calculations!$E$2,'Prevalence Rates'!$C$3:$BC$249,'Prevalence Rates'!$BD158,FALSE)","v":0.12720156555772993},{"$f":"HLOOKUP(Calculations!$E$2,'Population 2016'!$C$3:$BC$249,'Population 2016'!BD158,FALSE)","v":23727},0,{"$f":"HLOOKUP(Results!E$4,Targeting!$C$3:$F$249,Targeting!$G158,FALSE)","v":1611},{"$f":"IF(AND(OR(Calculations!$E$2=\"Orkney Health Board\",Calculations!$E$2=\"Orkney Islands Local Authority\"),$F158=1),0,IF(AND(OR(Calculations!$E$2=\"Shetland Health Board\",Calculations!$E$2=\"Western Isles Health Board\",Calculations!$E$2=\"Shetland Islands Local Authority\",Calculations!$E$2=\"Eilean Siar Local Authority\"),OR($F158=1,$F158=5)),0,new_ci(VALUE(LEFT(Options!$B$24,2)),$C158,$E158,$F158,2016,$I158,1,$H158,$G158*$H158,Options!$B$8)))","v":10.1548410067},{"$f":"IF(AND(OR(Calculations!$E$2=\"Orkney Health Board\",Calculations!$E$2=\"Orkney Islands Local Authority\"),$F158=1),0,IF(AND(OR(Calculations!$E$2=\"Shetland Health Board\",Calculations!$E$2=\"Western Isles Health Board\",Calculations!$E$2=\"Shetland Islands Local Authority\",Calculations!$E$2=\"Eilean Siar Local Authority\"),OR($F158=1,$F158=5)),0,new_ci(VALUE(LEFT(Options!$B$24,2)),$C158,$E158,$F158,2016,$I158+$J158,1,$H158,$G158*$H158,Options!$B$8)))","v":9.7814413324},{"$f":"IF(AND(OR(Calculations!$E$2=\"Orkney Health Board\",Calculations!$E$2=\"Orkney Islands Local Authority\"),$F158=1),0,IF(AND(OR(Calculations!$E$2=\"Shetland Health Board\",Calculations!$E$2=\"Western Isles Health Board\",Calculations!$E$2=\"Shetland Islands Local Authority\",Calculations!$E$2=\"Eilean Siar Local Authority\"),OR($F158=1,$F158=5)),0,new_yllv2(VALUE(LEFT(Options!$B$24,2)),$C158,$D158,$E158,$F158,2016,$I158,1,$H158,$G158*$H158,Options!$B$8)))","v":594.26131602179998},{"$f":"IF(AND(OR(Calculations!$E$2=\"Orkney Health Board\",Calculations!$E$2=\"Orkney Islands Local Authority\"),$F158=1),0,IF(AND(OR(Calculations!$E$2=\"Shetland Health Board\",Calculations!$E$2=\"Western Isles Health Board\",Calculations!$E$2=\"Shetland Islands Local Authority\",Calculations!$E$2=\"Eilean Siar Local Authority\"),OR($F158=1,$F158=5)),0,new_yllv2(VALUE(LEFT(Options!$B$24,2)),$C158,$D158,$E158,$F158,2016,$I158+$J158,1,$H158,$G158*$H158,Options!$B$8)))","v":572.40996633489999},{"$f":"IF(AND(OR(Calculations!$E$2=\"Orkney Health Board\",Calculations!$E$2=\"Orkney Islands Local Authority\"),$F158=1),0,IF(AND(OR(Calculations!$E$2=\"Shetland Health Board\",Calculations!$E$2=\"Western Isles Health Board\",Calculations!$E$2=\"Shetland Islands Local Authority\",Calculations!$E$2=\"Eilean Siar Local Authority\"),OR($F158=1,$F158=5)),0,hosp_count(VALUE(LEFT(Options!$B$24,2)),$C158,$E158,$F158,2016,$I158,1,$H158,$G158*$H158, Options!$B$8)))","v":1609.2337632294},{"$f":"IF(AND(OR(Calculations!$E$2=\"Orkney Health Board\",Calculations!$E$2=\"Orkney Islands Local Authority\"),$F158=1),0,IF(AND(OR(Calculations!$E$2=\"Shetland Health Board\",Calculations!$E$2=\"Western Isles Health Board\",Calculations!$E$2=\"Shetland Islands Local Authority\",Calculations!$E$2=\"Eilean Siar Local Authority\"),OR($F158=1,$F158=5)),0,hosp_count(VALUE(LEFT(Options!$B$24,2)),$C158,$E158,$F158,2016,$I158+$J158,1,$H158,$G158*$H158, Options!$B$8)))","v":1605.7439175294001},{"$f":"IF(AND(OR(Calculations!$E$2=\"Orkney Health Board\",Calculations!$E$2=\"Orkney Islands Local Authority\"),$F158=1),0,IF(AND(OR(Calculations!$E$2=\"Shetland Health Board\",Calculations!$E$2=\"Western Isles Health Board\",Calculations!$E$2=\"Shetland Islands Local Authority\",Calculations!$E$2=\"Eilean Siar Local Authority\"),OR($F158=1,$F158=5)),0,prem_mort(VALUE(LEFT(Options!$B$24,2)),$C158,$E158,$F158,2016,$I158,1,$H158,$G158*$H158,Options!$B$8)))","v":10.1548410067},{"$f":"IF(AND(OR(Calculations!$E$2=\"Orkney Health Board\",Calculations!$E$2=\"Orkney Islands Local Authority\"),$F158=1),0,IF(AND(OR(Calculations!$E$2=\"Shetland Health Board\",Calculations!$E$2=\"Western Isles Health Board\",Calculations!$E$2=\"Shetland Islands Local Authority\",Calculations!$E$2=\"Eilean Siar Local Authority\"),OR($F158=1,$F158=5)),0,prem_mort(VALUE(LEFT(Options!$B$24,2)),$C158,$E158,$F158,2016,$I158+$J158,1,$H158,$G158*$H158,Options!$B$8)))","v":9.7814413324},42.798672426771184,41.224939235470138,2504.578396012138,2412.4835265094616,6782.2892199999997,6767.5808889847012,42.798672426771184,41.224939235470138,188314.1586777932,181389.7326360686,11020144.942453407,10614927.516641632,29842072.568,29777355.911532685,188314.1586777932,181389.7326360686,4400]
[null,"Male 20-24",22.054632000000002,77.704629999999995,"male",3,{"$f":"HLOOKUP(Calculations!$E$2,'Prevalence Rates'!$C$3:$BC$249,'Prevalence Rates'!$BD159,FALSE)","v":0.12720156555772993},{"$f":"HLOOKUP(Calculations!$E$2,'Population 2016'!$C$3:$BC$249,'Population 2016'!BD159,FALSE)","v":35247},0,{"$f":"HLOOKUP(Results!E$4,Targeting!$C$3:$F$249,Targeting!$G159,FALSE)","v":2393},{"$f":"IF(AND(OR(Calculations!$E$2=\"Orkney Health Board\",Calculations!$E$2=\"Orkney Islands Local Authority\"),$F159=1),0,IF(AND(OR(Calculations!$E$2=\"Shetland Health Board\",Calculations!$E$2=\"Western Isles Health Board\",Calculations!$E$2=\"Shetland Islands Local Authority\",Calculations!$E$2=\"Eilean Siar Local Authority\"),OR($F159=1,$F159=5)),0,new_ci(VALUE(LEFT(Options!$B$24,2)),$C159,$E159,$F159,2016,$I159,1,$H159,$G159*$H159,Options!$B$8)))","v":21.1838332823},{"$f":"IF(AND(OR(Calculations!$E$2=\"Orkney Health Board\",Calculations!$E$2=\"Orkney Islands Local Authority\"),$F159=1),0,IF(AND(OR(Calculations!$E$2=\"Shetland Health Board\",Calculations!$E$2=\"Western Isles Health Board\",Calculations!$E$2=\"Shetland Islands Local Authority\",Calculations!$E$2=\"Eilean Siar Local Authority\"),OR($F159=1,$F159=5)),0,new_ci(VALUE(LEFT(Options!$B$24,2)),$C159,$E159,$F159,2016,$I159+$J159,1,$H159,$G159*$H159,Options!$B$8)))","v":20.405059191100001},{"$f":"IF(AND(OR(Calculations!$E$2=\"Orkney Health Board\",Calculations!$E$2=\"Orkney Islands Local Authority\"),$F159=1),0,IF(AND(OR(Calculations!$E$2=\"Shetland Health Board\",Calculations!$E$2=\"Western Isles Health Board\",Calculations!$E$2=\"Shetland Islands Local Authority\",Calculations!$E$2=\"Eilean Siar Local Authority\"),OR($F159=1,$F159=5)),0,new_yllv2(VALUE(LEFT(Options!$B$24,2)),$C159,$D159,$E159,$F159,2016,$I159,1,$H159,$G159*$H159,Options!$B$8)))","v":1157.69644651},{"$f":"IF(AND(OR(Calculations!$E$2=\"Orkney Health Board\",Calculations!$E$2=\"Orkney Islands Local Authority\"),$F159=1),0,IF(AND(OR(Calculations!$E$2=\"Shetland Health Board\",Calculations!$E$2=\"Western Isles Health Board\",Calculations!$E$2=\"Shetland Islands Local Authority\",Calculations!$E$2=\"Eilean Siar Local Authority\"),OR($F159=1,$F159=5)),0,new_yllv2(VALUE(LEFT(Options!$B$24,2)),$C159,$D159,$E159,$F159,2016,$I159+$J159,1,$H159,$G159*$H159,Options!$B$8)))","v":1115.1364439834999},{"$f":"IF(AND(OR(Calculations!$E$2=\"Orkney Health Board\",Calculations!$E$2=\"Orkney Islands Local Authority\"),$F159=1),0,IF(AND(OR(Calculations!$E$2=\"Shetland Health Board\",Calculations!$E$2=\"Western Isles Health Board\",Calculations!$E$2=\"Shetland Islands Local Authority\",Calculations!$E$2=\"Eilean Siar Local Authority\"),OR($F159=1,$F159=5)),0,hosp_count(VALUE(LEFT(Options!$B$24,2)),$C159,$E159,$F159,2016,$I159,1,$H159,$G159*$H159, Options!$B$8)))","v":2804.4106752117},{"$f":"IF(AND(OR(Calculations!$E$2=\"Orkney Health Board\",Calculations!$E$2=\"Orkney Islands Local Authority\"),$F159=1),0,IF(AND(OR(Calculations!$E$2=\"Shetland Health Board\",Calculations!$E$2=\"Western Isles Health Board\",Calculations!$E$2=\"Shetland Islands Local Authority\",Calculations!$E$2=\"Eilean Siar Local Authority\"),OR($F159=1,$F159=5)),0,hosp_count(VALUE(LEFT(Options!$B$24,2)),$C159,$E159,$F159,2016,$I159+$J159,1,$H159,$G159*$H159, Options!$B$8)))","v":2798.3293736917999},{"$f":"IF(AND(OR(Calculations!$E$2=\"Orkney Health Board\",Calculations!$E$2=\"Orkney Islands Local Authority\"),$F159=1),0,IF(AND(OR(Calculations!$E$2=\"Shetland Health Board\",Calculations!$E$2=\"Western Isles Health Board\",Calculations!$E$2=\"Shetland Islands Local Authority\",Calculations!$E$2=\"Eilean Siar Local Authority\"),OR($F159=1,$F159=5)),0,prem_mort(VALUE(LEFT(Options!$B$24,2)),$C159,$E159,$F159,2016,$I159,1,$H159,$G159*$H159,Options!$B$8)))","v":21.1838332823},{"$f":"IF(AND(OR(Calculations!$E$2=\"Orkney Health Board\",Calculations!$E$2=\"Orkney Islands Local Authority\"),$F159=1),0,IF(AND(OR(Calculations!$E$2=\"Shetland Health Board\",Calculations!$E$2=\"Western Isles Health Board\",Calculations!$E$2=\"Shetland Islands Local Authority\",Calculations!$E$2=\"Eilean Siar Local Authority\"),OR($F159=1,$F159=5)),0,prem_mort(VALUE(LEFT(Options!$B$24,2)),$C159,$E159,$F159,2016,$I159+$J159,1,$H159,$G159*$H159,Options!$B$8)))","v":20.405059191100001},60.101095929582662,57.891619687065571,3284.5247723494194,3163.7769001149036,7956.4521100000002,7939.198722421198,60.101095929582662,57.891619687065571,360606.57557749597,347349.71812239342,19707148.634096518,18982661.400689423,47738712.660000004,47635192.334527187,360606.57557749597,347349.71812239342,6000]
[null,"Male 25-29",26.959762999999999,77.789760000000001,"male",3,{"$f":"HLOOKUP(Calculations!$E$2,'Prevalence Rates'!$C$3:$BC$249,'Prevalence Rates'!$BD160,FALSE)","v":0.10526315789473684},{"$f":"HLOOKUP(Calculations!$E$2,'Population 2016'!$C$3:$BC$249,'Population 2016'!BD160,FALSE)","v":35940},0,{"$f":"HLOOKUP(Results!E$4,Targeting!$C$3:$F$249,Targeting!$G160,FALSE)","v":2440},{"$f":"IF(AND(OR(Calculations!$E$2=\"Orkney Health Board\",Calculations!$E$2=\"Orkney Islands Local Authority\"),$F160=1),0,IF(AND(OR(Calculations!$E$2=\"Shetland Health Board\",Calculations!$E$2=\"Western Isles Health Board\",Calculations!$E$2=\"Shetland Islands Local Authority\",Calculations!$E$2=\"Eilean Siar Local Authority\"),OR($F160=1,$F160=5)),0,new_ci(VALUE(LEFT(Options!$B$24,2)),$C160,$E160,$F160,2016,$I160,1,$H160,$G160*$H160,Options!$B$8)))","v":31.277397871600002},{"$f":"IF(AND(OR(Calculations!$E$2=\"Orkney Health Board\",Calculations!$E$2=\"Orkney Islands Local Authority\"),$F160=1),0,IF(AND(OR(Calculations!$E$2=\"Shetland Health Board\",Calculations!$E$2=\"Western Isles Health Board\",Calculations!$E$2=\"Shetland Islands Local Authority\",Calculations!$E$2=\"Eilean Siar Local Authority\"),OR($F160=1,$F160=5)),0,new_ci(VALUE(LEFT(Options!$B$24,2)),$C160,$E160,$F160,2016,$I160+$J160,1,$H160,$G160*$H160,Options!$B$8)))","v":30.109681459600001},{"$f":"IF(AND(OR(Calculations!$E$2=\"Orkney Health Board\",Calculations!$E$2=\"Orkney Islands Local Authority\"),$F160=1),0,IF(AND(OR(Calculations!$E$2=\"Shetland Health Board\",Calculations!$E$2=\"Western Isles Health Board\",Calculations!$E$2=\"Shetland Islands Local Authority\",Calculations!$E$2=\"Eilean Siar Local Authority\"),OR($F160=1,$F160=5)),0,new_yllv2(VALUE(LEFT(Options!$B$24,2)),$C160,$D160,$E160,$F160,2016,$I160,1,$H160,$G160*$H160,Options!$B$8)))","v":1558.5526421095999},{"$f":"IF(AND(OR(Calculations!$E$2=\"Orkney Health Board\",Calculations!$E$2=\"Orkney Islands Local Authority\"),$F160=1),0,IF(AND(OR(Calculations!$E$2=\"Shetland Health Board\",Calculations!$E$2=\"Western Isles Health Board\",Calculations!$E$2=\"Shetland Islands Local Authority\",Calculations!$E$2=\"Eilean Siar Local Authority\"),OR($F160=1,$F160=5)),0,new_yllv2(VALUE(LEFT(Options!$B$24,2)),$C160,$D160,$E160,$F160,2016,$I160+$J160,1,$H160,$G160*$H160,Options!$B$8)))","v":1500.3653368027999},{"$f":"IF(AND(OR(Calculations!$E$2=\"Orkney Health Board\",Calculations!$E$2=\"Orkney Islands Local Authority\"),$F160=1),0,IF(AND(OR(Calculations!$E$2=\"Shetland Health Board\",Calculations!$E$2=\"Western Isles Health Board\",Calculations!$E$2=\"Shetland Islands Local Authority\",Calculations!$E$2=\"Eilean Siar Local Authority\"),OR($F160=1,$F160=5)),0,hosp_count(VALUE(LEFT(Options!$B$24,2)),$C160,$E160,$F160,2016,$I160,1,$H160,$G160*$H160, Options!$B$8)))","v":3403.3914588540001},{"$f":"IF(AND(OR(Calculations!$E$2=\"Orkney Health Board\",Calculations!$E$2=\"Orkney Islands Local Authority\"),$F160=1),0,IF(AND(OR(Calculations!$E$2=\"Shetland Health Board\",Calculations!$E$2=\"Western Isles Health Board\",Calculations!$E$2=\"Shetland Islands Local Authority\",Calculations!$E$2=\"Eilean Siar Local Authority\"),OR($F160=1,$F160=5)),0,hosp_count(VALUE(LEFT(Options!$B$24,2)),$C160,$E160,$F160,2016,$I160+$J160,1,$H160,$G160*$H160, Options!$B$8)))","v":3396.0081988649999},{"$f":"IF(AND(OR(Calculations!$E$2=\"Orkney Health Board\",Calculations!$E$2=\"Orkney Islands Local Authority\"),$F160=1),0,IF(AND(OR(Calculations!$E$2=\"Shetland Health Board\",Calculations!$E$2=\"Western Isles Health Board\",Calculations!$E$2=\"Shetland Islands Local Authority\",Calculations!$E$2=\"Eilean Siar Local Authority\"),OR($F160=1,$F160=5)),0,prem_mort(VALUE(LEFT(Options!$B$24,2)),$C160,$E160,$F160,2016,$I160,1,$H160,$G160*$H160,Options!$B$8)))","v":31.277397871600002},{"$f":"IF(AND(OR(Calculations!$E$2=\"Orkney Health Board\",Calculations!$E$2=\"Orkney Islands Local Authority\"),$F160=1),0,IF(AND(OR(Calculations!$E$2=\"Shetland Health Board\",Calculations!$E$2=\"Western Isles Health Board\",Calculations!$E$2=\"Shetland Islands Local Authority\",Calculations!$E$2=\"Eilean Siar Local Authority\"),OR($F160=1,$F160=5)),0,prem_mort(VALUE(LEFT(Options!$B$24,2)),$C160,$E160,$F160,2016,$I160+$J160,1,$H160,$G160*$H160,Options!$B$8)))","v":30.109681459600001},87.026705263216485,83.777633443516976,4336.5404621858652,4174.6392231574846,9469.6479099999997,9449.1046156510856,87.026705263216485,83.777633443516976,522160.23157929891,502665.80066110188,26019242.773115192,25047835.338944908,56817887.460000001,56694627.693906516,522160.23157929891,502665.80066110188,6000]
[null,"Male 30-34",31.981521999999998,78.061520000000002,"male",3,{"$f":"HLOOKUP(Calculations!$E$2,'Prevalence Rates'!$C$3:$BC$249,'Prevalence Rates'!$BD161,FALSE)","v":0.10526315789473684},{"$f":"HLOOKUP(Calculations!$E$2,'Population 2016'!$C$3:$BC$249,'Population 2016'!BD161,FALSE)","v":34643},0,{"$f":"HLOOKUP(Results!E$4,Targeting!$C$3:$F$249,Targeting!$G161,FALSE)","v":2352},{"$f":"IF(AND(OR(Calculations!$E$2=\"Orkney Health Board\",Calculations!$E$2=\"Orkney Islands Local Authority\"),$F161=1),0,IF(AND(OR(Calculations!$E$2=\"Shetland Health Board\",Calculations!$E$2=\"Western Isles Health Board\",Calculations!$E$2=\"Shetland Islands Local Authority\",Calculations!$E$2=\"Eilean Siar Local Authority\"),OR($F161=1,$F161=5)),0,new_ci(VALUE(LEFT(Options!$B$24,2)),$C161,$E161,$F161,2016,$I161,1,$H161,$G161*$H161,Options!$B$8)))","v":44.0383726835},{"$f":"IF(AND(OR(Calculations!$E$2=\"Orkney Health Board\",Calculations!$E$2=\"Orkney Islands Local Authority\"),$F161=1),0,IF(AND(OR(Calculations!$E$2=\"Shetland Health Board\",Calculations!$E$2=\"Western Isles Health Board\",Calculations!$E$2=\"Shetland Islands Local Authority\",Calculations!$E$2=\"Eilean Siar Local Authority\"),OR($F161=1,$F161=5)),0,new_ci(VALUE(LEFT(Options!$B$24,2)),$C161,$E161,$F161,2016,$I161+$J161,1,$H161,$G161*$H161,Options!$B$8)))","v":42.394755334700001},{"$f":"IF(AND(OR(Calculations!$E$2=\"Orkney Health Board\",Calculations!$E$2=\"Orkney Islands Local Authority\"),$F161=1),0,IF(AND(OR(Calculations!$E$2=\"Shetland Health Board\",Calculations!$E$2=\"Western Isles Health Board\",Calculations!$E$2=\"Shetland Islands Local Authority\",Calculations!$E$2=\"Eilean Siar Local Authority\"),OR($F161=1,$F161=5)),0,new_yllv2(VALUE(LEFT(Options!$B$24,2)),$C161,$D161,$E161,$F161,2016,$I161,1,$H161,$G161*$H161,Options!$B$8)))","v":1985.2497524953999},{"$f":"IF(AND(OR(Calculations!$E$2=\"Orkney Health Board\",Calculations!$E$2=\"Orkney Islands Local Authority\"),$F161=1),0,IF(AND(OR(Calculations!$E$2=\"Shetland Health Board\",Calculations!$E$2=\"Western Isles Health Board\",Calculations!$E$2=\"Shetland Islands Local Authority\",Calculations!$E$2=\"Eilean Siar Local Authority\"),OR($F161=1,$F161=5)),0,new_yllv2(VALUE(LEFT(Options!$B$24,2)),$C161,$D161,$E161,$F161,2016,$I161+$J161,1,$H161,$G161*$H161,Options!$B$8)))","v":1911.1554856988},{"$f":"IF(AND(OR(Calculations!$E$2=\"Orkney Health Board\",Calculations!$E$2=\"Orkney Islands Local Authority\"),$F161=1),0,IF(AND(OR(Calculations!$E$2=\"Shetland Health Board\",Calculations!$E$2=\"Western Isles Health Board\",Calculations!$E$2=\"Shetland Islands Local Authority\",Calculations!$E$2=\"Eilean Siar Local Authority\"),OR($F161=1,$F161=5)),0,hosp_count(VALUE(LEFT(Options!$B$24,2)),$C161,$E161,$F161,2016,$I161,1,$H161,$G161*$H161, Options!$B$8)))","v":3920.6815400494002},{"$f":"IF(AND(OR(Calculations!$E$2=\"Orkney Health Board\",Calculations!$E$2=\"Orkney Islands Local Authority\"),$F161=1),0,IF(AND(OR(Calculations!$E$2=\"Shetland Health Board\",Calculations!$E$2=\"Western Isles Health Board\",Calculations!$E$2=\"Shetland Islands Local Authority\",Calculations!$E$2=\"Eilean Siar Local Authority\"),OR($F161=1,$F161=5)),0,hosp_count(VALUE(LEFT(Options!$B$24,2)),$C161,$E161,$F161,2016,$I161+$J161,1,$H161,$G161*$H161, Options!$B$8)))","v":3912.1758826066002},{"$f":"IF(AND(OR(Calculations!$E$2=\"Orkney Health Board\",Calculations!$E$2=\"Orkney Islands Local Authority\"),$F161=1),0,IF(AND(OR(Calculations!$E$2=\"Shetland Health Board\",Calculations!$E$2=\"Western Isles Health Board\",Calculations!$E$2=\"Shetland Islands Local Authority\",Calculations!$E$2=\"Eilean Siar Local Authority\"),OR($F161=1,$F161=5)),0,prem_mort(VALUE(LEFT(Options!$B$24,2)),$C161,$E161,$F161,2016,$I161,1,$H161,$G161*$H161,Options!$B$8)))","v":44.0383726835},{"$f":"IF(AND(OR(Calculations!$E$2=\"Orkney Health Board\",Calculations!$E$2=\"Orkney Islands Local Authority\"),$F161=1),0,IF(AND(OR(Calculations!$E$2=\"Shetland Health Board\",Calculations!$E$2=\"Western Isles Health Board\",Calculations!$E$2=\"Shetland Islands Local Authority\",Calculations!$E$2=\"Eilean Siar Local Authority\"),OR($F161=1,$F161=5)),0,prem_mort(VALUE(LEFT(Options!$B$24,2)),$C161,$E161,$F161,2016,$I161+$J161,1,$H161,$G161*$H161,Options!$B$8)))","v":42.394755334700001},127.12055157896258,122.37610869353117,5730.5942109384296,5516.7147351522681,11317.384580000002,11292.832268009701,127.12055157896258,122.37610869353117,826283.5852632568,795444.70650795253,37248862.371099792,35858645.778489746,73562999.770000011,73403409.74206306,826283.5852632568,795444.70650795253,6500]
[null,"Male 35-39",36.926009999999998,78.336009999999987,"male",3,{"$f":"HLOOKUP(Calculations!$E$2,'Prevalence Rates'!$C$3:$BC$249,'Prevalence Rates'!$BD162,FALSE)","v":9.7972972972972971E-2},{"$f":"HLOOKUP(Calculations!$E$2,'Population 2016'!$C$3:$BC$249,'Population 2016'!BD162,FALSE)","v":32007},0,{"$f":"HLOOKUP(Results!E$4,Targeting!$C$3:$F$249,Targeting!$G162,FALSE)","v":2173},{"$f":"IF(AND(OR(Calculations!$E$2=\"Orkney Health Board\",Calculations!$E$2=\"Orkney Islands Local Authority\"),$F162=1),0,IF(AND(OR(Calculations!$E$2=\"Shetland Health Board\",Calculations!$E$2=\"Western Isles Health Board\",Calculations!$E$2=\"Shetland Islands Local Authority\",Calculations!$E$2=\"Eilean Siar Local Authority\"),OR($F162=1,$F162=5)),0,new_ci(VALUE(LEFT(Options!$B$24,2)),$C162,$E162,$F162,2016,$I162,1,$H162,$G162*$H162,Options!$B$8)))","v":59.081526468200003},{"$f":"IF(AND(OR(Calculations!$E$2=\"Orkney Health Board\",Calculations!$E$2=\"Orkney Islands Local Authority\"),$F162=1),0,IF(AND(OR(Calculations!$E$2=\"Shetland Health Board\",Calculations!$E$2=\"Western Isles Health Board\",Calculations!$E$2=\"Shetland Islands Local Authority\",Calculations!$E$2=\"Eilean Siar Local Authority\"),OR($F162=1,$F162=5)),0,new_ci(VALUE(LEFT(Options!$B$24,2)),$C162,$E162,$F162,2016,$I162+$J162,1,$H162,$G162*$H162,Options!$B$8)))","v":56.865963482600002},{"$f":"IF(AND(OR(Calculations!$E$2=\"Orkney Health Board\",Calculations!$E$2=\"Orkney Islands Local Authority\"),$F162=1),0,IF(AND(OR(Calculations!$E$2=\"Shetland Health Board\",Calculations!$E$2=\"Western Isles Health Board\",Calculations!$E$2=\"Shetland Islands Local Authority\",Calculations!$E$2=\"Eilean Siar Local Authority\"),OR($F162=1,$F162=5)),0,new_yllv2(VALUE(LEFT(Options!$B$24,2)),$C162,$D162,$E162,$F162,2016,$I162,1,$H162,$G162*$H162,Options!$B$8)))","v":2387.4844845799998},{"$f":"IF(AND(OR(Calculations!$E$2=\"Orkney Health Board\",Calculations!$E$2=\"Orkney Islands Local Authority\"),$F162=1),0,IF(AND(OR(Calculations!$E$2=\"Shetland Health Board\",Calculations!$E$2=\"Western Isles Health Board\",Calculations!$E$2=\"Shetland Islands Local Authority\",Calculations!$E$2=\"Eilean Siar Local Authority\"),OR($F162=1,$F162=5)),0,new_yllv2(VALUE(LEFT(Options!$B$24,2)),$C162,$D162,$E162,$F162,2016,$I162+$J162,1,$H162,$G162*$H162,Options!$B$8)))","v":2297.9535843318999},{"$f":"IF(AND(OR(Calculations!$E$2=\"Orkney Health Board\",Calculations!$E$2=\"Orkney Islands Local Authority\"),$F162=1),0,IF(AND(OR(Calculations!$E$2=\"Shetland Health Board\",Calculations!$E$2=\"Western Isles Health Board\",Calculations!$E$2=\"Shetland Islands Local Authority\",Calculations!$E$2=\"Eilean Siar Local Authority\"),OR($F162=1,$F162=5)),0,hosp_count(VALUE(LEFT(Options!$B$24,2)),$C162,$E162,$F162,2016,$I162,1,$H162,$G162*$H162, Options!$B$8)))","v":4317.2989802075999},{"$f":"IF(AND(OR(Calculations!$E$2=\"Orkney Health Board\",Calculations!$E$2=\"Orkney Islands Local Authority\"),$F162=1),0,IF(AND(OR(Calculations!$E$2=\"Shetland Health Board\",Calculations!$E$2=\"Western Isles Health Board\",Calculations!$E$2=\"Shetland Islands Local Authority\",Calculations!$E$2=\"Eilean Siar Local Authority\"),OR($F162=1,$F162=5)),0,hosp_count(VALUE(LEFT(Options!$B$24,2)),$C162,$E162,$F162,2016,$I162+$J162,1,$H162,$G162*$H162, Options!$B$8)))","v":4307.9316771169997},{"$f":"IF(AND(OR(Calculations!$E$2=\"Orkney Health Board\",Calculations!$E$2=\"Orkney Islands Local Authority\"),$F162=1),0,IF(AND(OR(Calculations!$E$2=\"Shetland Health Board\",Calculations!$E$2=\"Western Isles Health Board\",Calculations!$E$2=\"Shetland Islands Local Authority\",Calculations!$E$2=\"Eilean Siar Local Authority\"),OR($F162=1,$F162=5)),0,prem_mort(VALUE(LEFT(Options!$B$24,2)),$C162,$E162,$F162,2016,$I162,1,$H162,$G162*$H162,Options!$B$8)))","v":59.081526468200003},{"$f":"IF(AND(OR(Calculations!$E$2=\"Orkney Health Board\",Calculations!$E$2=\"Orkney Islands Local Authority\"),$F162=1),0,IF(AND(OR(Calculations!$E$2=\"Shetland Health Board\",Calculations!$E$2=\"Western Isles Health Board\",Calculations!$E$2=\"Shetland Islands Local Authority\",Calculations!$E$2=\"Eilean Siar Local Authority\"),OR($F162=1,$F162=5)),0,prem_mort(VALUE(LEFT(Options!$B$24,2)),$C162,$E162,$F162,2016,$I162+$J162,1,$H162,$G162*$H162,Options!$B$8)))","v":56.865963482600002},184.58939128378168,177.66727116755712,7459.2573017777349,7179.534427881088,13488.608679999999,13459.342259871277,184.58939128378168,177.66727116755712,1292125.7389864717,1243670.8981728998,52214801.112444147,50256740.995167613,94420260.75999999,94215395.819098935,1292125.7389864717,1243670.8981728998,7000]
[null,"Male 40-44",42.067703000000002,78.907700000000006,"male",3,{"$f":"HLOOKUP(Calculations!$E$2,'Prevalence Rates'!$C$3:$BC$249,'Prevalence Rates'!$BD163,FALSE)","v":9.7972972972972971E-2},{"$f":"HLOOKUP(Calculations!$E$2,'Population 2016'!$C$3:$BC$249,'Population 2016'!BD163,FALSE)","v":31831},0,{"$f":"HLOOKUP(Results!E$4,Targeting!$C$3:$F$249,Targeting!$G163,FALSE)","v":2161},{"$f":"IF(AND(OR(Calculations!$E$2=\"Orkney Health Board\",Calculations!$E$2=\"Orkney Islands Local Authority\"),$F163=1),0,IF(AND(OR(Calculations!$E$2=\"Shetland Health Board\",Calculations!$E$2=\"Western Isles Health Board\",Calculations!$E$2=\"Shetland Islands Local Authority\",Calculations!$E$2=\"Eilean Siar Local Authority\"),OR($F163=1,$F163=5)),0,new_ci(VALUE(LEFT(Options!$B$24,2)),$C163,$E163,$F163,2016,$I163,1,$H163,$G163*$H163,Options!$B$8)))","v":86.585481869800006},{"$f":"IF(AND(OR(Calculations!$E$2=\"Orkney Health Board\",Calculations!$E$2=\"Orkney Islands Local Authority\"),$F163=1),0,IF(AND(OR(Calculations!$E$2=\"Shetland Health Board\",Calculations!$E$2=\"Western Isles Health Board\",Calculations!$E$2=\"Shetland Islands Local Authority\",Calculations!$E$2=\"Eilean Siar Local Authority\"),OR($F163=1,$F163=5)),0,new_ci(VALUE(LEFT(Options!$B$24,2)),$C163,$E163,$F163,2016,$I163+$J163,1,$H163,$G163*$H163,Options!$B$8)))","v":83.341023892999999},{"$f":"IF(AND(OR(Calculations!$E$2=\"Orkney Health Board\",Calculations!$E$2=\"Orkney Islands Local Authority\"),$F163=1),0,IF(AND(OR(Calculations!$E$2=\"Shetland Health Board\",Calculations!$E$2=\"Western Isles Health Board\",Calculations!$E$2=\"Shetland Islands Local Authority\",Calculations!$E$2=\"Eilean Siar Local Authority\"),OR($F163=1,$F163=5)),0,new_yllv2(VALUE(LEFT(Options!$B$24,2)),$C163,$D163,$E163,$F163,2016,$I163,1,$H163,$G163*$H163,Options!$B$8)))","v":3103.2234104571999},{"$f":"IF(AND(OR(Calculations!$E$2=\"Orkney Health Board\",Calculations!$E$2=\"Orkney Islands Local Authority\"),$F163=1),0,IF(AND(OR(Calculations!$E$2=\"Shetland Health Board\",Calculations!$E$2=\"Western Isles Health Board\",Calculations!$E$2=\"Shetland Islands Local Authority\",Calculations!$E$2=\"Eilean Siar Local Authority\"),OR($F163=1,$F163=5)),0,new_yllv2(VALUE(LEFT(Options!$B$24,2)),$C163,$D163,$E163,$F163,2016,$I163+$J163,1,$H163,$G163*$H163,Options!$B$8)))","v":2986.9420463020001},{"$f":"IF(AND(OR(Calculations!$E$2=\"Orkney Health Board\",Calculations!$E$2=\"Orkney Islands Local Authority\"),$F163=1),0,IF(AND(OR(Calculations!$E$2=\"Shetland Health Board\",Calculations!$E$2=\"Western Isles Health Board\",Calculations!$E$2=\"Shetland Islands Local Authority\",Calculations!$E$2=\"Eilean Siar Local Authority\"),OR($F163=1,$F163=5)),0,hosp_count(VALUE(LEFT(Options!$B$24,2)),$C163,$E163,$F163,2016,$I163,1,$H163,$G163*$H163, Options!$B$8)))","v":5153.2179005501002},{"$f":"IF(AND(OR(Calculations!$E$2=\"Orkney Health Board\",Calculations!$E$2=\"Orkney Islands Local Authority\"),$F163=1),0,IF(AND(OR(Calculations!$E$2=\"Shetland Health Board\",Calculations!$E$2=\"Western Isles Health Board\",Calculations!$E$2=\"Shetland Islands Local Authority\",Calculations!$E$2=\"Eilean Siar Local Authority\"),OR($F163=1,$F163=5)),0,hosp_count(VALUE(LEFT(Options!$B$24,2)),$C163,$E163,$F163,2016,$I163+$J163,1,$H163,$G163*$H163, Options!$B$8)))","v":5142.0371570812003},{"$f":"IF(AND(OR(Calculations!$E$2=\"Orkney Health Board\",Calculations!$E$2=\"Orkney Islands Local Authority\"),$F163=1),0,IF(AND(OR(Calculations!$E$2=\"Shetland Health Board\",Calculations!$E$2=\"Western Isles Health Board\",Calculations!$E$2=\"Shetland Islands Local Authority\",Calculations!$E$2=\"Eilean Siar Local Authority\"),OR($F163=1,$F163=5)),0,prem_mort(VALUE(LEFT(Options!$B$24,2)),$C163,$E163,$F163,2016,$I163,1,$H163,$G163*$H163,Options!$B$8)))","v":86.585481869800006},{"$f":"IF(AND(OR(Calculations!$E$2=\"Orkney Health Board\",Calculations!$E$2=\"Orkney Islands Local Authority\"),$F163=1),0,IF(AND(OR(Calculations!$E$2=\"Shetland Health Board\",Calculations!$E$2=\"Western Isles Health Board\",Calculations!$E$2=\"Shetland Islands Local Authority\",Calculations!$E$2=\"Eilean Siar Local Authority\"),OR($F163=1,$F163=5)),0,prem_mort(VALUE(LEFT(Options!$B$24,2)),$C163,$E163,$F163,2016,$I163+$J163,1,$H163,$G163*$H163,Options!$B$8)))","v":83.341023892999999},272.01621648644402,261.82345478621471,9749.0603828255462,9383.7518340674196,16189.305710000001,16154.180381015993,272.01621648644402,261.82345478621471,1904113.5154051082,1832764.183503503,68243422.679778829,65686262.838471934,113325139.97,113079262.66711195,1904113.5154051082,1832764.183503503,7000]
[null,"Male 45-49",47.038155000000003,79.418149999999997,"male",3,{"$f":"HLOOKUP(Calculations!$E$2,'Prevalence Rates'!$C$3:$BC$249,'Prevalence Rates'!$BD164,FALSE)","v":0.15320334261838439},{"$f":"HLOOKUP(Calculations!$E$2,'Population 2016'!$C$3:$BC$249,'Population 2016'!BD164,FALSE)","v":37651},0,{"$f":"HLOOKUP(Results!E$4,Targeting!$C$3:$F$249,Targeting!$G164,FALSE)","v":2556},{"$f":"IF(AND(OR(Calculations!$E$2=\"Orkney Health Board\",Calculations!$E$2=\"Orkney Islands Local Authority\"),$F164=1),0,IF(AND(OR(Calculations!$E$2=\"Shetland Health Board\",Calculations!$E$2=\"Western Isles Health Board\",Calculations!$E$2=\"Shetland Islands Local Authority\",Calculations!$E$2=\"Eilean Siar Local Authority\"),OR($F164=1,$F164=5)),0,new_ci(VALUE(LEFT(Options!$B$24,2)),$C164,$E164,$F164,2016,$I164,1,$H164,$G164*$H164,Options!$B$8)))","v":148.95249444909999},{"$f":"IF(AND(OR(Calculations!$E$2=\"Orkney Health Board\",Calculations!$E$2=\"Orkney Islands Local Authority\"),$F164=1),0,IF(AND(OR(Calculations!$E$2=\"Shetland Health Board\",Calculations!$E$2=\"Western Isles Health Board\",Calculations!$E$2=\"Shetland Islands Local Authority\",Calculations!$E$2=\"Eilean Siar Local Authority\"),OR($F164=1,$F164=5)),0,new_ci(VALUE(LEFT(Options!$B$24,2)),$C164,$E164,$F164,2016,$I164+$J164,1,$H164,$G164*$H164,Options!$B$8)))","v":143.5904818651},{"$f":"IF(AND(OR(Calculations!$E$2=\"Orkney Health Board\",Calculations!$E$2=\"Orkney Islands Local Authority\"),$F164=1),0,IF(AND(OR(Calculations!$E$2=\"Shetland Health Board\",Calculations!$E$2=\"Western Isles Health Board\",Calculations!$E$2=\"Shetland Islands Local Authority\",Calculations!$E$2=\"Eilean Siar Local Authority\"),OR($F164=1,$F164=5)),0,new_yllv2(VALUE(LEFT(Options!$B$24,2)),$C164,$D164,$E164,$F164,2016,$I164,1,$H164,$G164*$H164,Options!$B$8)))","v":4674.1285310502999},{"$f":"IF(AND(OR(Calculations!$E$2=\"Orkney Health Board\",Calculations!$E$2=\"Orkney Islands Local Authority\"),$F164=1),0,IF(AND(OR(Calculations!$E$2=\"Shetland Health Board\",Calculations!$E$2=\"Western Isles Health Board\",Calculations!$E$2=\"Shetland Islands Local Authority\",Calculations!$E$2=\"Eilean Siar Local Authority\"),OR($F164=1,$F164=5)),0,new_yllv2(VALUE(LEFT(Options!$B$24,2)),$C164,$D164,$E164,$F164,2016,$I164+$J164,1,$H164,$G164*$H164,Options!$B$8)))","v":4505.8686029744003},{"$f":"IF(AND(OR(Calculations!$E$2=\"Orkney Health Board\",Calculations!$E$2=\"Orkney Islands Local Authority\"),$F164=1),0,IF(AND(OR(Calculations!$E$2=\"Shetland Health Board\",Calculations!$E$2=\"Western Isles Health Board\",Calculations!$E$2=\"Shetland Islands Local Authority\",Calculations!$E$2=\"Eilean Siar Local Authority\"),OR($F164=1,$F164=5)),0,hosp_count(VALUE(LEFT(Options!$B$24,2)),$C164,$E164,$F164,2016,$I164,1,$H164,$G164*$H164, Options!$B$8)))","v":7271.5344409603003},{"$f":"IF(AND(OR(Calculations!$E$2=\"Orkney Health Board\",Calculations!$E$2=\"Orkney Islands Local Authority\"),$F164=1),0,IF(AND(OR(Calculations!$E$2=\"Shetland Health Board\",Calculations!$E$2=\"Western Isles Health Board\",Calculations!$E$2=\"Shetland Islands Local Authority\",Calculations!$E$2=\"Eilean Siar Local Authority\"),OR($F164=1,$F164=5)),0,hosp_count(VALUE(LEFT(Options!$B$24,2)),$C164,$E164,$F164,2016,$I164+$J164,1,$H164,$G164*$H164, Options!$B$8)))","v":7255.7757705342001},{"$f":"IF(AND(OR(Calculations!$E$2=\"Orkney Health Board\",Calculations!$E$2=\"Orkney Islands Local Authority\"),$F164=1),0,IF(AND(OR(Calculations!$E$2=\"Shetland Health Board\",Calculations!$E$2=\"Western Isles Health Board\",Calculations!$E$2=\"Shetland Islands Local Authority\",Calculations!$E$2=\"Eilean Siar Local Authority\"),OR($F164=1,$F164=5)),0,prem_mort(VALUE(LEFT(Options!$B$24,2)),$C164,$E164,$F164,2016,$I164,1,$H164,$G164*$H164,Options!$B$8)))","v":148.95249444909999},{"$f":"IF(AND(OR(Calculations!$E$2=\"Orkney Health Board\",Calculations!$E$2=\"Orkney Islands Local Authority\"),$F164=1),0,IF(AND(OR(Calculations!$E$2=\"Shetland Health Board\",Calculations!$E$2=\"Western Isles Health Board\",Calculations!$E$2=\"Shetland Islands Local Authority\",Calculations!$E$2=\"Eilean Siar Local Authority\"),OR($F164=1,$F164=5)),0,prem_mort(VALUE(LEFT(Options!$B$24,2)),$C164,$E164,$F164,2016,$I164+$J164,1,$H164,$G164*$H164,Options!$B$8)))","v":143.5904818651},395.61364757669116,381.37229254229635,12414.354282888369,11967.460633115723,19312.991529999999,19271.136943332716,395.61364757669116,381.37229254229635,2769295.5330368383,2669606.0477960743,86900479.980218589,83772224.431810066,135190940.71000001,134897958.603329,2769295.5330368383,2669606.0477960743,7000]
[null,"Male 50-54",51.998646000000001,79.988649999999993,"male",3,{"$f":"HLOOKUP(Calculations!$E$2,'Prevalence Rates'!$C$3:$BC$249,'Prevalence Rates'!$BD165,FALSE)","v":0.15320334261838439},{"$f":"HLOOKUP(Calculations!$E$2,'Population 2016'!$C$3:$BC$249,'Population 2016'!BD165,FALSE)","v":40386},0,{"$f":"HLOOKUP(Results!E$4,Targeting!$C$3:$F$249,Targeting!$G165,FALSE)","v":2742},{"$f":"IF(AND(OR(Calculations!$E$2=\"Orkney Health Board\",Calculations!$E$2=\"Orkney Islands Local Authority\"),$F165=1),0,IF(AND(OR(Calculations!$E$2=\"Shetland Health Board\",Calculations!$E$2=\"Western Isles Health Board\",Calculations!$E$2=\"Shetland Islands Local Authority\",Calculations!$E$2=\"Eilean Siar Local Authority\"),OR($F165=1,$F165=5)),0,new_ci(VALUE(LEFT(Options!$B$24,2)),$C165,$E165,$F165,2016,$I165,1,$H165,$G165*$H165,Options!$B$8)))","v":232.1307312683},{"$f":"IF(AND(OR(Calculations!$E$2=\"Orkney Health Board\",Calculations!$E$2=\"Orkney Islands Local Authority\"),$F165=1),0,IF(AND(OR(Calculations!$E$2=\"Shetland Health Board\",Calculations!$E$2=\"Western Isles Health Board\",Calculations!$E$2=\"Shetland Islands Local Authority\",Calculations!$E$2=\"Eilean Siar Local Authority\"),OR($F165=1,$F165=5)),0,new_ci(VALUE(LEFT(Options!$B$24,2)),$C165,$E165,$F165,2016,$I165+$J165,1,$H165,$G165*$H165,Options!$B$8)))","v":223.78537831489999},{"$f":"IF(AND(OR(Calculations!$E$2=\"Orkney Health Board\",Calculations!$E$2=\"Orkney Islands Local Authority\"),$F165=1),0,IF(AND(OR(Calculations!$E$2=\"Shetland Health Board\",Calculations!$E$2=\"Western Isles Health Board\",Calculations!$E$2=\"Shetland Islands Local Authority\",Calculations!$E$2=\"Eilean Siar Local Authority\"),OR($F165=1,$F165=5)),0,new_yllv2(VALUE(LEFT(Options!$B$24,2)),$C165,$D165,$E165,$F165,2016,$I165,1,$H165,$G165*$H165,Options!$B$8)))","v":6265.2093654542996},{"$f":"IF(AND(OR(Calculations!$E$2=\"Orkney Health Board\",Calculations!$E$2=\"Orkney Islands Local Authority\"),$F165=1),0,IF(AND(OR(Calculations!$E$2=\"Shetland Health Board\",Calculations!$E$2=\"Western Isles Health Board\",Calculations!$E$2=\"Shetland Islands Local Authority\",Calculations!$E$2=\"Eilean Siar Local Authority\"),OR($F165=1,$F165=5)),0,new_yllv2(VALUE(LEFT(Options!$B$24,2)),$C165,$D165,$E165,$F165,2016,$I165+$J165,1,$H165,$G165*$H165,Options!$B$8)))","v":6039.9682558607001},{"$f":"IF(AND(OR(Calculations!$E$2=\"Orkney Health Board\",Calculations!$E$2=\"Orkney Islands Local Authority\"),$F165=1),0,IF(AND(OR(Calculations!$E$2=\"Shetland Health Board\",Calculations!$E$2=\"Western Isles Health Board\",Calculations!$E$2=\"Shetland Islands Local Authority\",Calculations!$E$2=\"Eilean Siar Local Authority\"),OR($F165=1,$F165=5)),0,hosp_count(VALUE(LEFT(Options!$B$24,2)),$C165,$E165,$F165,2016,$I165,1,$H165,$G165*$H165, Options!$B$8)))","v":9301.3966469789993},{"$f":"IF(AND(OR(Calculations!$E$2=\"Orkney Health Board\",Calculations!$E$2=\"Orkney Islands Local Authority\"),$F165=1),0,IF(AND(OR(Calculations!$E$2=\"Shetland Health Board\",Calculations!$E$2=\"Western Isles Health Board\",Calculations!$E$2=\"Shetland Islands Local Authority\",Calculations!$E$2=\"Eilean Siar Local Authority\"),OR($F165=1,$F165=5)),0,hosp_count(VALUE(LEFT(Options!$B$24,2)),$C165,$E165,$F165,2016,$I165+$J165,1,$H165,$G165*$H165, Options!$B$8)))","v":9281.2364883313003},{"$f":"IF(AND(OR(Calculations!$E$2=\"Orkney Health Board\",Calculations!$E$2=\"Orkney Islands Local Authority\"),$F165=1),0,IF(AND(OR(Calculations!$E$2=\"Shetland Health Board\",Calculations!$E$2=\"Western Isles Health Board\",Calculations!$E$2=\"Shetland Islands Local Authority\",Calculations!$E$2=\"Eilean Siar Local Authority\"),OR($F165=1,$F165=5)),0,prem_mort(VALUE(LEFT(Options!$B$24,2)),$C165,$E165,$F165,2016,$I165,1,$H165,$G165*$H165,Options!$B$8)))","v":232.1307312683},{"$f":"IF(AND(OR(Calculations!$E$2=\"Orkney Health Board\",Calculations!$E$2=\"Orkney Islands Local Authority\"),$F165=1),0,IF(AND(OR(Calculations!$E$2=\"Shetland Health Board\",Calculations!$E$2=\"Western Isles Health Board\",Calculations!$E$2=\"Shetland Islands Local Authority\",Calculations!$E$2=\"Eilean Siar Local Authority\"),OR($F165=1,$F165=5)),0,prem_mort(VALUE(LEFT(Options!$B$24,2)),$C165,$E165,$F165,2016,$I165+$J165,1,$H165,$G165*$H165,Options!$B$8)))","v":223.78537831489999},574.78019924800674,554.1162242234933,15513.319876824393,14955.599108257071,23031.240149999998,22981.321468655722,574.78019924800674,554.1162242234933,4023461.3947360474,3878813.5695644533,108593239.13777076,104689193.75779949,161218681.04999998,160869250.28059006,4023461.3947360474,3878813.5695644533,7000]
[null,"Male 55-59",56.950867000000002,80.660870000000003,"male",3,{"$f":"HLOOKUP(Calculations!$E$2,'Prevalence Rates'!$C$3:$BC$249,'Prevalence Rates'!$BD166,FALSE)","v":0.26586102719033233},{"$f":"HLOOKUP(Calculations!$E$2,'Population 2016'!$C$3:$BC$249,'Population 2016'!BD166,FALSE)","v":37545},0,{"$f":"HLOOKUP(Results!E$4,Targeting!$C$3:$F$249,Targeting!$G166,FALSE)","v":2549},{"$f":"IF(AND(OR(Calculations!$E$2=\"Orkney Health Board\",Calculations!$E$2=\"Orkney Islands Local Authority\"),$F166=1),0,IF(AND(OR(Calculations!$E$2=\"Shetland Health Board\",Calculations!$E$2=\"Western Isles Health Board\",Calculations!$E$2=\"Shetland Islands Local Authority\",Calculations!$E$2=\"Eilean Siar Local Authority\"),OR($F166=1,$F166=5)),0,new_ci(VALUE(LEFT(Options!$B$24,2)),$C166,$E166,$F166,2016,$I166,1,$H166,$G166*$H166,Options!$B$8)))","v":313.1790125009},{"$f":"IF(AND(OR(Calculations!$E$2=\"Orkney Health Board\",Calculations!$E$2=\"Orkney Islands Local Authority\"),$F166=1),0,IF(AND(OR(Calculations!$E$2=\"Shetland Health Board\",Calculations!$E$2=\"Western Isles Health Board\",Calculations!$E$2=\"Shetland Islands Local Authority\",Calculations!$E$2=\"Eilean Siar Local Authority\"),OR($F166=1,$F166=5)),0,new_ci(VALUE(LEFT(Options!$B$24,2)),$C166,$E166,$F166,2016,$I166+$J166,1,$H166,$G166*$H166,Options!$B$8)))","v":302.75218729609998},{"$f":"IF(AND(OR(Calculations!$E$2=\"Orkney Health Board\",Calculations!$E$2=\"Orkney Islands Local Authority\"),$F166=1),0,IF(AND(OR(Calculations!$E$2=\"Shetland Health Board\",Calculations!$E$2=\"Western Isles Health Board\",Calculations!$E$2=\"Shetland Islands Local Authority\",Calculations!$E$2=\"Eilean Siar Local Authority\"),OR($F166=1,$F166=5)),0,new_yllv2(VALUE(LEFT(Options!$B$24,2)),$C166,$D166,$E166,$F166,2016,$I166,1,$H166,$G166*$H166,Options!$B$8)))","v":7112.2963134325},{"$f":"IF(AND(OR(Calculations!$E$2=\"Orkney Health Board\",Calculations!$E$2=\"Orkney Islands Local Authority\"),$F166=1),0,IF(AND(OR(Calculations!$E$2=\"Shetland Health Board\",Calculations!$E$2=\"Western Isles Health Board\",Calculations!$E$2=\"Shetland Islands Local Authority\",Calculations!$E$2=\"Eilean Siar Local Authority\"),OR($F166=1,$F166=5)),0,new_yllv2(VALUE(LEFT(Options!$B$24,2)),$C166,$D166,$E166,$F166,2016,$I166+$J166,1,$H166,$G166*$H166,Options!$B$8)))","v":6875.5030817509996},{"$f":"IF(AND(OR(Calculations!$E$2=\"Orkney Health Board\",Calculations!$E$2=\"Orkney Islands Local Authority\"),$F166=1),0,IF(AND(OR(Calculations!$E$2=\"Shetland Health Board\",Calculations!$E$2=\"Western Isles Health Board\",Calculations!$E$2=\"Shetland Islands Local Authority\",Calculations!$E$2=\"Eilean Siar Local Authority\"),OR($F166=1,$F166=5)),0,hosp_count(VALUE(LEFT(Options!$B$24,2)),$C166,$E166,$F166,2016,$I166,1,$H166,$G166*$H166, Options!$B$8)))","v":10308.838145089499},{"$f":"IF(AND(OR(Calculations!$E$2=\"Orkney Health Board\",Calculations!$E$2=\"Orkney Islands Local Authority\"),$F166=1),0,IF(AND(OR(Calculations!$E$2=\"Shetland Health Board\",Calculations!$E$2=\"Western Isles Health Board\",Calculations!$E$2=\"Shetland Islands Local Authority\",Calculations!$E$2=\"Eilean Siar Local Authority\"),OR($F166=1,$F166=5)),0,hosp_count(VALUE(LEFT(Options!$B$24,2)),$C166,$E166,$F166,2016,$I166+$J166,1,$H166,$G166*$H166, Options!$B$8)))","v":10286.5454708303},{"$f":"IF(AND(OR(Calculations!$E$2=\"Orkney Health Board\",Calculations!$E$2=\"Orkney Islands Local Authority\"),$F166=1),0,IF(AND(OR(Calculations!$E$2=\"Shetland Health Board\",Calculations!$E$2=\"Western Isles Health Board\",Calculations!$E$2=\"Shetland Islands Local Authority\",Calculations!$E$2=\"Eilean Siar Local Authority\"),OR($F166=1,$F166=5)),0,prem_mort(VALUE(LEFT(Options!$B$24,2)),$C166,$E166,$F166,2016,$I166,1,$H166,$G166*$H166,Options!$B$8)))","v":313.1790125009},{"$f":"IF(AND(OR(Calculations!$E$2=\"Orkney Health Board\",Calculations!$E$2=\"Orkney Islands Local Authority\"),$F166=1),0,IF(AND(OR(Calculations!$E$2=\"Shetland Health Board\",Calculations!$E$2=\"Western Isles Health Board\",Calculations!$E$2=\"Shetland Islands Local Authority\",Calculations!$E$2=\"Eilean Siar Local Authority\"),OR($F166=1,$F166=5)),0,prem_mort(VALUE(LEFT(Options!$B$24,2)),$C166,$E166,$F166,2016,$I166+$J166,1,$H166,$G166*$H166,Options!$B$8)))","v":302.75218729609998},834.14306166173924,806.37152029857498,18943.391432767348,18312.699645095217,27457.28631,27397.910429698499,834.14306166173924,806.37152029857498,5421929.9008013047,5241414.8819407374,123132044.31298776,119032547.69311891,178472361.01499999,178086417.79304025,5421929.9008013047,5241414.8819407374,6500]
[null,"Male 60-64",61.942988999999997,81.612989999999996,"male",3,{"$f":"HLOOKUP(Calculations!$E$2,'Prevalence Rates'!$C$3:$BC$249,'Prevalence Rates'!$BD167,FALSE)","v":0.26586102719033233},{"$f":"HLOOKUP(Calculations!$E$2,'Population 2016'!$C$3:$BC$249,'Population 2016'!BD167,FALSE)","v":33247},0,{"$f":"HLOOKUP(Results!E$4,Targeting!$C$3:$F$249,Targeting!$G167,FALSE)","v":2257},{"$f":"IF(AND(OR(Calculations!$E$2=\"Orkney Health Board\",Calculations!$E$2=\"Orkney Islands Local Authority\"),$F167=1),0,IF(AND(OR(Calculations!$E$2=\"Shetland Health Board\",Calculations!$E$2=\"Western Isles Health Board\",Calculations!$E$2=\"Shetland Islands Local Authority\",Calculations!$E$2=\"Eilean Siar Local Authority\"),OR($F167=1,$F167=5)),0,new_ci(VALUE(LEFT(Options!$B$24,2)),$C167,$E167,$F167,2016,$I167,1,$H167,$G167*$H167,Options!$B$8)))","v":403.43854641019999},{"$f":"IF(AND(OR(Calculations!$E$2=\"Orkney Health Board\",Calculations!$E$2=\"Orkney Islands Local Authority\"),$F167=1),0,IF(AND(OR(Calculations!$E$2=\"Shetland Health Board\",Calculations!$E$2=\"Western Isles Health Board\",Calculations!$E$2=\"Shetland Islands Local Authority\",Calculations!$E$2=\"Eilean Siar Local Authority\"),OR($F167=1,$F167=5)),0,new_ci(VALUE(LEFT(Options!$B$24,2)),$C167,$E167,$F167,2016,$I167+$J167,1,$H167,$G167*$H167,Options!$B$8)))","v":390.04325930969998},{"$f":"IF(AND(OR(Calculations!$E$2=\"Orkney Health Board\",Calculations!$E$2=\"Orkney Islands Local Authority\"),$F167=1),0,IF(AND(OR(Calculations!$E$2=\"Shetland Health Board\",Calculations!$E$2=\"Western Isles Health Board\",Calculations!$E$2=\"Shetland Islands Local Authority\",Calculations!$E$2=\"Eilean Siar Local Authority\"),OR($F167=1,$F167=5)),0,new_yllv2(VALUE(LEFT(Options!$B$24,2)),$C167,$D167,$E167,$F167,2016,$I167,1,$H167,$G167*$H167,Options!$B$8)))","v":7532.198064917},{"$f":"IF(AND(OR(Calculations!$E$2=\"Orkney Health Board\",Calculations!$E$2=\"Orkney Islands Local Authority\"),$F167=1),0,IF(AND(OR(Calculations!$E$2=\"Shetland Health Board\",Calculations!$E$2=\"Western Isles Health Board\",Calculations!$E$2=\"Shetland Islands Local Authority\",Calculations!$E$2=\"Eilean Siar Local Authority\"),OR($F167=1,$F167=5)),0,new_yllv2(VALUE(LEFT(Options!$B$24,2)),$C167,$D167,$E167,$F167,2016,$I167+$J167,1,$H167,$G167*$H167,Options!$B$8)))","v":7282.1080413554},{"$f":"IF(AND(OR(Calculations!$E$2=\"Orkney Health Board\",Calculations!$E$2=\"Orkney Islands Local Authority\"),$F167=1),0,IF(AND(OR(Calculations!$E$2=\"Shetland Health Board\",Calculations!$E$2=\"Western Isles Health Board\",Calculations!$E$2=\"Shetland Islands Local Authority\",Calculations!$E$2=\"Eilean Siar Local Authority\"),OR($F167=1,$F167=5)),0,hosp_count(VALUE(LEFT(Options!$B$24,2)),$C167,$E167,$F167,2016,$I167,1,$H167,$G167*$H167, Options!$B$8)))","v":10898.467983401801},{"$f":"IF(AND(OR(Calculations!$E$2=\"Orkney Health Board\",Calculations!$E$2=\"Orkney Islands Local Authority\"),$F167=1),0,IF(AND(OR(Calculations!$E$2=\"Shetland Health Board\",Calculations!$E$2=\"Western Isles Health Board\",Calculations!$E$2=\"Shetland Islands Local Authority\",Calculations!$E$2=\"Eilean Siar Local Authority\"),OR($F167=1,$F167=5)),0,hosp_count(VALUE(LEFT(Options!$B$24,2)),$C167,$E167,$F167,2016,$I167+$J167,1,$H167,$G167*$H167, Options!$B$8)))","v":10874.902341696699},{"$f":"IF(AND(OR(Calculations!$E$2=\"Orkney Health Board\",Calculations!$E$2=\"Orkney Islands Local Authority\"),$F167=1),0,IF(AND(OR(Calculations!$E$2=\"Shetland Health Board\",Calculations!$E$2=\"Western Isles Health Board\",Calculations!$E$2=\"Shetland Islands Local Authority\",Calculations!$E$2=\"Eilean Siar Local Authority\"),OR($F167=1,$F167=5)),0,prem_mort(VALUE(LEFT(Options!$B$24,2)),$C167,$E167,$F167,2016,$I167,1,$H167,$G167*$H167,Options!$B$8)))","v":403.43854641019999},{"$f":"IF(AND(OR(Calculations!$E$2=\"Orkney Health Board\",Calculations!$E$2=\"Orkney Islands Local Authority\"),$F167=1),0,IF(AND(OR(Calculations!$E$2=\"Shetland Health Board\",Calculations!$E$2=\"Western Isles Health Board\",Calculations!$E$2=\"Shetland Islands Local Authority\",Calculations!$E$2=\"Eilean Siar Local Authority\"),OR($F167=1,$F167=5)),0,prem_mort(VALUE(LEFT(Options!$B$24,2)),$C167,$E167,$F167,2016,$I167+$J167,1,$H167,$G167*$H167,Options!$B$8)))","v":390.04325930969998},1213.4584967371493,1173.1682837841008,22655.271347541133,21903.05303141757,32780.304940000002,32709.424434375127,1213.4584967371493,1173.1682837841008,7280750.9804228954,7039009.7027046047,135931628.0852468,131418318.18850543,196681829.64000002,196256546.60625076,7280750.9804228954,7039009.7027046047,6000]
[null,"Male 65-69",67.054419999999993,82.954419999999999,"male",3,{"$f":"HLOOKUP(Calculations!$E$2,'Prevalence Rates'!$C$3:$BC$249,'Prevalence Rates'!$BD168,FALSE)","v":0},{"$f":"HLOOKUP(Calculations!$E$2,'Population 2016'!$C$3:$BC$249,'Population 2016'!BD168,FALSE)","v":33371},0,{"$f":"HLOOKUP(Results!E$4,Targeting!$C$3:$F$249,Targeting!$G168,FALSE)","v":0},{"$f":"IF(AND(OR(Calculations!$E$2=\"Orkney Health Board\",Calculations!$E$2=\"Orkney Islands Local Authority\"),$F168=1),0,IF(AND(OR(Calculations!$E$2=\"Shetland Health Board\",Calculations!$E$2=\"Western Isles Health Board\",Calculations!$E$2=\"Shetland Islands Local Authority\",Calculations!$E$2=\"Eilean Siar Local Authority\"),OR($F168=1,$F168=5)),0,new_ci(VALUE(LEFT(Options!$B$24,2)),$C168,$E168,$F168,2016,$I168,1,$H168,$G168*$H168,Options!$B$8)))","v":594.23402652899995},{"$f":"IF(AND(OR(Calculations!$E$2=\"Orkney Health Board\",Calculations!$E$2=\"Orkney Islands Local Authority\"),$F168=1),0,IF(AND(OR(Calculations!$E$2=\"Shetland Health Board\",Calculations!$E$2=\"Western Isles Health Board\",Calculations!$E$2=\"Shetland Islands Local Authority\",Calculations!$E$2=\"Eilean Siar Local Authority\"),OR($F168=1,$F168=5)),0,new_ci(VALUE(LEFT(Options!$B$24,2)),$C168,$E168,$F168,2016,$I168+$J168,1,$H168,$G168*$H168,Options!$B$8)))","v":594.23402652899995},{"$f":"IF(AND(OR(Calculations!$E$2=\"Orkney Health Board\",Calculations!$E$2=\"Orkney Islands Local Authority\"),$F168=1),0,IF(AND(OR(Calculations!$E$2=\"Shetland Health Board\",Calculations!$E$2=\"Western Isles Health Board\",Calculations!$E$2=\"Shetland Islands Local Authority\",Calculations!$E$2=\"Eilean Siar Local Authority\"),OR($F168=1,$F168=5)),0,new_yllv2(VALUE(LEFT(Options!$B$24,2)),$C168,$D168,$E168,$F168,2016,$I168,1,$H168,$G168*$H168,Options!$B$8)))","v":8854.0869952820995},{"$f":"IF(AND(OR(Calculations!$E$2=\"Orkney Health Board\",Calculations!$E$2=\"Orkney Islands Local Authority\"),$F168=1),0,IF(AND(OR(Calculations!$E$2=\"Shetland Health Board\",Calculations!$E$2=\"Western Isles Health Board\",Calculations!$E$2=\"Shetland Islands Local Authority\",Calculations!$E$2=\"Eilean Siar Local Authority\"),OR($F168=1,$F168=5)),0,new_yllv2(VALUE(LEFT(Options!$B$24,2)),$C168,$D168,$E168,$F168,2016,$I168+$J168,1,$H168,$G168*$H168,Options!$B$8)))","v":8854.0869952820995},{"$f":"IF(AND(OR(Calculations!$E$2=\"Orkney Health Board\",Calculations!$E$2=\"Orkney Islands Local Authority\"),$F168=1),0,IF(AND(OR(Calculations!$E$2=\"Shetland Health Board\",Calculations!$E$2=\"Western Isles Health Board\",Calculations!$E$2=\"Shetland Islands Local Authority\",Calculations!$E$2=\"Eilean Siar Local Authority\"),OR($F168=1,$F168=5)),0,hosp_count(VALUE(LEFT(Options!$B$24,2)),$C168,$E168,$F168,2016,$I168,1,$H168,$G168*$H168, Options!$B$8)))","v":13115.2562048768},{"$f":"IF(AND(OR(Calculations!$E$2=\"Orkney Health Board\",Calculations!$E$2=\"Orkney Islands Local Authority\"),$F168=1),0,IF(AND(OR(Calculations!$E$2=\"Shetland Health Board\",Calculations!$E$2=\"Western Isles Health Board\",Calculations!$E$2=\"Shetland Islands Local Authority\",Calculations!$E$2=\"Eilean Siar Local Authority\"),OR($F168=1,$F168=5)),0,hosp_count(VALUE(LEFT(Options!$B$24,2)),$C168,$E168,$F168,2016,$I168+$J168,1,$H168,$G168*$H168, Options!$B$8)))","v":13115.2562048768},{"$f":"IF(AND(OR(Calculations!$E$2=\"Orkney Health Board\",Calculations!$E$2=\"Orkney Islands Local Authority\"),$F168=1),0,IF(AND(OR(Calculations!$E$2=\"Shetland Health Board\",Calculations!$E$2=\"Western Isles Health Board\",Calculations!$E$2=\"Shetland Islands Local Authority\",Calculations!$E$2=\"Eilean Siar Local Authority\"),OR($F168=1,$F168=5)),0,prem_mort(VALUE(LEFT(Options!$B$24,2)),$C168,$E168,$F168,2016,$I168,1,$H168,$G168*$H168,Options!$B$8)))","v":594.23402652899995},{"$f":"IF(AND(OR(Calculations!$E$2=\"Orkney Health Board\",Calculations!$E$2=\"Orkney Islands Local Authority\"),$F168=1),0,IF(AND(OR(Calculations!$E$2=\"Shetland Health Board\",Calculations!$E$2=\"Western Isles Health Board\",Calculations!$E$2=\"Shetland Islands Local Authority\",Calculations!$E$2=\"Eilean Siar Local Authority\"),OR($F168=1,$F168=5)),0,prem_mort(VALUE(LEFT(Options!$B$24,2)),$C168,$E168,$F168,2016,$I168+$J168,1,$H168,$G168*$H168,Options!$B$8)))","v":594.23402652899995},1780.6898999999999,1780.6898999999999,26532.279509999997,26532.279509999997,39301.358079999998,39301.358079999998,1780.6898999999999,1780.6898999999999,9793794.4499999993,9793794.4499999993,145927537.30499998,145927537.30499998,216157469.44,216157469.44,9793794.4499999993,9793794.4499999993,5500]
[null,"Male 70-74",71.891098,84.341099999999997,"male",3,{"$f":"HLOOKUP(Calculations!$E$2,'Prevalence Rates'!$C$3:$BC$249,'Prevalence Rates'!$BD169,FALSE)","v":0},{"$f":"HLOOKUP(Calculations!$E$2,'Population 2016'!$C$3:$BC$249,'Population 2016'!BD169,FALSE)","v":24436},0,{"$f":"HLOOKUP(Results!E$4,Targeting!$C$3:$F$249,Targeting!$G169,FALSE)","v":0},{"$f":"IF(AND(OR(Calculations!$E$2=\"Orkney Health Board\",Calculations!$E$2=\"Orkney Islands Local Authority\"),$F169=1),0,IF(AND(OR(Calculations!$E$2=\"Shetland Health Board\",Calculations!$E$2=\"Western Isles Health Board\",Calculations!$E$2=\"Shetland Islands Local Authority\",Calculations!$E$2=\"Eilean Siar Local Authority\"),OR($F169=1,$F169=5)),0,new_ci(VALUE(LEFT(Options!$B$24,2)),$C169,$E169,$F169,2016,$I169,1,$H169,$G169*$H169,Options!$B$8)))","v":624.44079643160001},{"$f":"IF(AND(OR(Calculations!$E$2=\"Orkney Health Board\",Calculations!$E$2=\"Orkney Islands Local Authority\"),$F169=1),0,IF(AND(OR(Calculations!$E$2=\"Shetland Health Board\",Calculations!$E$2=\"Western Isles Health Board\",Calculations!$E$2=\"Shetland Islands Local Authority\",Calculations!$E$2=\"Eilean Siar Local Authority\"),OR($F169=1,$F169=5)),0,new_ci(VALUE(LEFT(Options!$B$24,2)),$C169,$E169,$F169,2016,$I169+$J169,1,$H169,$G169*$H169,Options!$B$8)))","v":624.44079643160001},{"$f":"IF(AND(OR(Calculations!$E$2=\"Orkney Health Board\",Calculations!$E$2=\"Orkney Islands Local Authority\"),$F169=1),0,IF(AND(OR(Calculations!$E$2=\"Shetland Health Board\",Calculations!$E$2=\"Western Isles Health Board\",Calculations!$E$2=\"Shetland Islands Local Authority\",Calculations!$E$2=\"Eilean Siar Local Authority\"),OR($F169=1,$F169=5)),0,new_yllv2(VALUE(LEFT(Options!$B$24,2)),$C169,$D169,$E169,$F169,2016,$I169,1,$H169,$G169*$H169,Options!$B$8)))","v":7149.8483680234003},{"$f":"IF(AND(OR(Calculations!$E$2=\"Orkney Health Board\",Calculations!$E$2=\"Orkney Islands Local Authority\"),$F169=1),0,IF(AND(OR(Calculations!$E$2=\"Shetland Health Board\",Calculations!$E$2=\"Western Isles Health Board\",Calculations!$E$2=\"Shetland Islands Local Authority\",Calculations!$E$2=\"Eilean Siar Local Authority\"),OR($F169=1,$F169=5)),0,new_yllv2(VALUE(LEFT(Options!$B$24,2)),$C169,$D169,$E169,$F169,2016,$I169+$J169,1,$H169,$G169*$H169,Options!$B$8)))","v":7149.8483680234003},{"$f":"IF(AND(OR(Calculations!$E$2=\"Orkney Health Board\",Calculations!$E$2=\"Orkney Islands Local Authority\"),$F169=1),0,IF(AND(OR(Calculations!$E$2=\"Shetland Health Board\",Calculations!$E$2=\"Western Isles Health Board\",Calculations!$E$2=\"Shetland Islands Local Authority\",Calculations!$E$2=\"Eilean Siar Local Authority\"),OR($F169=1,$F169=5)),0,hosp_count(VALUE(LEFT(Options!$B$24,2)),$C169,$E169,$F169,2016,$I169,1,$H169,$G169*$H169, Options!$B$8)))","v":11402.414531516401},{"$f":"IF(AND(OR(Calculations!$E$2=\"Orkney Health Board\",Calculations!$E$2=\"Orkney Islands Local Authority\"),$F169=1),0,IF(AND(OR(Calculations!$E$2=\"Shetland Health Board\",Calculations!$E$2=\"Western Isles Health Board\",Calculations!$E$2=\"Shetland Islands Local Authority\",Calculations!$E$2=\"Eilean Siar Local Authority\"),OR($F169=1,$F169=5)),0,hosp_count(VALUE(LEFT(Options!$B$24,2)),$C169,$E169,$F169,2016,$I169+$J169,1,$H169,$G169*$H169, Options!$B$8)))","v":11402.414531516401},{"$f":"IF(AND(OR(Calculations!$E$2=\"Orkney Health Board\",Calculations!$E$2=\"Orkney Islands Local Authority\"),$F169=1),0,IF(AND(OR(Calculations!$E$2=\"Shetland Health Board\",Calculations!$E$2=\"Western Isles Health Board\",Calculations!$E$2=\"Shetland Islands Local Authority\",Calculations!$E$2=\"Eilean Siar Local Authority\"),OR($F169=1,$F169=5)),0,prem_mort(VALUE(LEFT(Options!$B$24,2)),$C169,$E169,$F169,2016,$I169,1,$H169,$G169*$H169,Options!$B$8)))","v":624.44079643160001},{"$f":"IF(AND(OR(Calculations!$E$2=\"Orkney Health Board\",Calculations!$E$2=\"Orkney Islands Local Authority\"),$F169=1),0,IF(AND(OR(Calculations!$E$2=\"Shetland Health Board\",Calculations!$E$2=\"Western Isles Health Board\",Calculations!$E$2=\"Shetland Islands Local Authority\",Calculations!$E$2=\"Eilean Siar Local Authority\"),OR($F169=1,$F169=5)),0,prem_mort(VALUE(LEFT(Options!$B$24,2)),$C169,$E169,$F169,2016,$I169+$J169,1,$H169,$G169*$H169,Options!$B$8)))","v":624.44079643160001},2555.4133099999999,2555.4133099999999,29259.487510326569,29259.487510326569,46662.360990000001,46662.360990000001,2555.4133099999999,2555.4133099999999,12777066.549999999,12777066.549999999,146297437.55163285,146297437.55163285,233311804.95000002,233311804.95000002,12777066.549999999,12777066.549999999,5000]
[null,"Male 75-79",76.907700000000006,86.357700000000008,"male",3,{"$f":"HLOOKUP(Calculations!$E$2,'Prevalence Rates'!$C$3:$BC$249,'Prevalence Rates'!$BD170,FALSE)","v":0},{"$f":"HLOOKUP(Calculations!$E$2,'Population 2016'!$C$3:$BC$249,'Population 2016'!BD170,FALSE)","v":18146},0,{"$f":"HLOOKUP(Results!E$4,Targeting!$C$3:$F$249,Targeting!$G170,FALSE)","v":0},{"$f":"IF(AND(OR(Calculations!$E$2=\"Orkney Health Board\",Calculations!$E$2=\"Orkney Islands Local Authority\"),$F170=1),0,IF(AND(OR(Calculations!$E$2=\"Shetland Health Board\",Calculations!$E$2=\"Western Isles Health Board\",Calculations!$E$2=\"Shetland Islands Local Authority\",Calculations!$E$2=\"Eilean Siar Local Authority\"),OR($F170=1,$F170=5)),0,new_ci(VALUE(LEFT(Options!$B$24,2)),$C170,$E170,$F170,2016,$I170,1,$H170,$G170*$H170,Options!$B$8)))","v":673.21395249859995},{"$f":"IF(AND(OR(Calculations!$E$2=\"Orkney Health Board\",Calculations!$E$2=\"Orkney Islands Local Authority\"),$F170=1),0,IF(AND(OR(Calculations!$E$2=\"Shetland Health Board\",Calculations!$E$2=\"Western Isles Health Board\",Calculations!$E$2=\"Shetland Islands Local Authority\",Calculations!$E$2=\"Eilean Siar Local Authority\"),OR($F170=1,$F170=5)),0,new_ci(VALUE(LEFT(Options!$B$24,2)),$C170,$E170,$F170,2016,$I170+$J170,1,$H170,$G170*$H170,Options!$B$8)))","v":673.21395249859995},{"$f":"IF(AND(OR(Calculations!$E$2=\"Orkney Health Board\",Calculations!$E$2=\"Orkney Islands Local Authority\"),$F170=1),0,IF(AND(OR(Calculations!$E$2=\"Shetland Health Board\",Calculations!$E$2=\"Western Isles Health Board\",Calculations!$E$2=\"Shetland Islands Local Authority\",Calculations!$E$2=\"Eilean Siar Local Authority\"),OR($F170=1,$F170=5)),0,new_yllv2(VALUE(LEFT(Options!$B$24,2)),$C170,$D170,$E170,$F170,2016,$I170,1,$H170,$G170*$H170,Options!$B$8)))","v":5688.6578986131999},{"$f":"IF(AND(OR(Calculations!$E$2=\"Orkney Health Board\",Calculations!$E$2=\"Orkney Islands Local Authority\"),$F170=1),0,IF(AND(OR(Calculations!$E$2=\"Shetland Health Board\",Calculations!$E$2=\"Western Isles Health Board\",Calculations!$E$2=\"Shetland Islands Local Authority\",Calculations!$E$2=\"Eilean Siar Local Authority\"),OR($F170=1,$F170=5)),0,new_yllv2(VALUE(LEFT(Options!$B$24,2)),$C170,$D170,$E170,$F170,2016,$I170+$J170,1,$H170,$G170*$H170,Options!$B$8)))","v":5688.6578986131999},{"$f":"IF(AND(OR(Calculations!$E$2=\"Orkney Health Board\",Calculations!$E$2=\"Orkney Islands Local Authority\"),$F170=1),0,IF(AND(OR(Calculations!$E$2=\"Shetland Health Board\",Calculations!$E$2=\"Western Isles Health Board\",Calculations!$E$2=\"Shetland Islands Local Authority\",Calculations!$E$2=\"Eilean Siar Local Authority\"),OR($F170=1,$F170=5)),0,hosp_count(VALUE(LEFT(Options!$B$24,2)),$C170,$E170,$F170,2016,$I170,1,$H170,$G170*$H170, Options!$B$8)))","v":10117.666517439},{"$f":"IF(AND(OR(Calculations!$E$2=\"Orkney Health Board\",Calculations!$E$2=\"Orkney Islands Local Authority\"),$F170=1),0,IF(AND(OR(Calculations!$E$2=\"Shetland Health Board\",Calculations!$E$2=\"Western Isles Health Board\",Calculations!$E$2=\"Shetland Islands Local Authority\",Calculations!$E$2=\"Eilean Siar Local Authority\"),OR($F170=1,$F170=5)),0,hosp_count(VALUE(LEFT(Options!$B$24,2)),$C170,$E170,$F170,2016,$I170+$J170,1,$H170,$G170*$H170, Options!$B$8)))","v":10117.666517439},{"$f":"IF(AND(OR(Calculations!$E$2=\"Orkney Health Board\",Calculations!$E$2=\"Orkney Islands Local Authority\"),$F170=1),0,IF(AND(OR(Calculations!$E$2=\"Shetland Health Board\",Calculations!$E$2=\"Western Isles Health Board\",Calculations!$E$2=\"Shetland Islands Local Authority\",Calculations!$E$2=\"Eilean Siar Local Authority\"),OR($F170=1,$F170=5)),0,prem_mort(VALUE(LEFT(Options!$B$24,2)),$C170,$E170,$F170,2016,$I170,1,$H170,$G170*$H170,Options!$B$8)))","v":0},{"$f":"IF(AND(OR(Calculations!$E$2=\"Orkney Health Board\",Calculations!$E$2=\"Orkney Islands Local Authority\"),$F170=1),0,IF(AND(OR(Calculations!$E$2=\"Shetland Health Board\",Calculations!$E$2=\"Western Isles Health Board\",Calculations!$E$2=\"Shetland Islands Local Authority\",Calculations!$E$2=\"Eilean Siar Local Authority\"),OR($F170=1,$F170=5)),0,prem_mort(VALUE(LEFT(Options!$B$24,2)),$C170,$E170,$F170,2016,$I170+$J170,1,$H170,$G170*$H170,Options!$B$8)))","v":0},3709.9854099999993,3709.9854099999993,31349.376714500166,31349.376714500166,55757.007150000005,55757.007150000005,0,0,14839941.639999997,14839941.639999997,125397506.85800067,125397506.85800067,223028028.60000002,223028028.60000002,0,0,4000]
[null,"Male 80-84",81.797089,88.627089999999995,"male",3,{"$f":"HLOOKUP(Calculations!$E$2,'Prevalence Rates'!$C$3:$BC$249,'Prevalence Rates'!$BD171,FALSE)","v":0},{"$f":"HLOOKUP(Calculations!$E$2,'Population 2016'!$C$3:$BC$249,'Population 2016'!BD171,FALSE)","v":12096},0,{"$f":"HLOOKUP(Results!E$4,Targeting!$C$3:$F$249,Targeting!$G171,FALSE)","v":0},{"$f":"IF(AND(OR(Calculations!$E$2=\"Orkney Health Board\",Calculations!$E$2=\"Orkney Islands Local Authority\"),$F171=1),0,IF(AND(OR(Calculations!$E$2=\"Shetland Health Board\",Calculations!$E$2=\"Western Isles Health Board\",Calculations!$E$2=\"Shetland Islands Local Authority\",Calculations!$E$2=\"Eilean Siar Local Authority\"),OR($F171=1,$F171=5)),0,new_ci(VALUE(LEFT(Options!$B$24,2)),$C171,$E171,$F171,2016,$I171,1,$H171,$G171*$H171,Options!$B$8)))","v":643.71155829120005},{"$f":"IF(AND(OR(Calculations!$E$2=\"Orkney Health Board\",Calculations!$E$2=\"Orkney Islands Local Authority\"),$F171=1),0,IF(AND(OR(Calculations!$E$2=\"Shetland Health Board\",Calculations!$E$2=\"Western Isles Health Board\",Calculations!$E$2=\"Shetland Islands Local Authority\",Calculations!$E$2=\"Eilean Siar Local Authority\"),OR($F171=1,$F171=5)),0,new_ci(VALUE(LEFT(Options!$B$24,2)),$C171,$E171,$F171,2016,$I171+$J171,1,$H171,$G171*$H171,Options!$B$8)))","v":643.71155829120005},{"$f":"IF(AND(OR(Calculations!$E$2=\"Orkney Health Board\",Calculations!$E$2=\"Orkney Islands Local Authority\"),$F171=1),0,IF(AND(OR(Calculations!$E$2=\"Shetland Health Board\",Calculations!$E$2=\"Western Isles Health Board\",Calculations!$E$2=\"Shetland Islands Local Authority\",Calculations!$E$2=\"Eilean Siar Local Authority\"),OR($F171=1,$F171=5)),0,new_yllv2(VALUE(LEFT(Options!$B$24,2)),$C171,$D171,$E171,$F171,2016,$I171,1,$H171,$G171*$H171,Options!$B$8)))","v":3752.8390285493001},{"$f":"IF(AND(OR(Calculations!$E$2=\"Orkney Health Board\",Calculations!$E$2=\"Orkney Islands Local Authority\"),$F171=1),0,IF(AND(OR(Calculations!$E$2=\"Shetland Health Board\",Calculations!$E$2=\"Western Isles Health Board\",Calculations!$E$2=\"Shetland Islands Local Authority\",Calculations!$E$2=\"Eilean Siar Local Authority\"),OR($F171=1,$F171=5)),0,new_yllv2(VALUE(LEFT(Options!$B$24,2)),$C171,$D171,$E171,$F171,2016,$I171+$J171,1,$H171,$G171*$H171,Options!$B$8)))","v":3752.8390285493001},{"$f":"IF(AND(OR(Calculations!$E$2=\"Orkney Health Board\",Calculations!$E$2=\"Orkney Islands Local Authority\"),$F171=1),0,IF(AND(OR(Calculations!$E$2=\"Shetland Health Board\",Calculations!$E$2=\"Western Isles Health Board\",Calculations!$E$2=\"Shetland Islands Local Authority\",Calculations!$E$2=\"Eilean Siar Local Authority\"),OR($F171=1,$F171=5)),0,hosp_count(VALUE(LEFT(Options!$B$24,2)),$C171,$E171,$F171,2016,$I171,1,$H171,$G171*$H171, Options!$B$8)))","v":8022.5594273664001},{"$f":"IF(AND(OR(Calculations!$E$2=\"Orkney Health Board\",Calculations!$E$2=\"Orkney Islands Local Authority\"),$F171=1),0,IF(AND(OR(Calculations!$E$2=\"Shetland Health Board\",Calculations!$E$2=\"Western Isles Health Board\",Calculations!$E$2=\"Shetland Islands Local Authority\",Calculations!$E$2=\"Eilean Siar Local Authority\"),OR($F171=1,$F171=5)),0,hosp_count(VALUE(LEFT(Options!$B$24,2)),$C171,$E171,$F171,2016,$I171+$J171,1,$H171,$G171*$H171, Options!$B$8)))","v":8022.5594273664001},{"$f":"IF(AND(OR(Calculations!$E$2=\"Orkney Health Board\",Calculations!$E$2=\"Orkney Islands Local Authority\"),$F171=1),0,IF(AND(OR(Calculations!$E$2=\"Shetland Health Board\",Calculations!$E$2=\"Western Isles Health Board\",Calculations!$E$2=\"Shetland Islands Local Authority\",Calculations!$E$2=\"Eilean Siar Local Authority\"),OR($F171=1,$F171=5)),0,prem_mort(VALUE(LEFT(Options!$B$24,2)),$C171,$E171,$F171,2016,$I171,1,$H171,$G171*$H171,Options!$B$8)))","v":0},{"$f":"IF(AND(OR(Calculations!$E$2=\"Orkney Health Board\",Calculations!$E$2=\"Orkney Islands Local Authority\"),$F171=1),0,IF(AND(OR(Calculations!$E$2=\"Shetland Health Board\",Calculations!$E$2=\"Western Isles Health Board\",Calculations!$E$2=\"Shetland Islands Local Authority\",Calculations!$E$2=\"Eilean Siar Local Authority\"),OR($F171=1,$F171=5)),0,prem_mort(VALUE(LEFT(Options!$B$24,2)),$C171,$E171,$F171,2016,$I171+$J171,1,$H171,$G171*$H171,Options!$B$8)))","v":0},5321.6894700000003,5321.6894700000003,31025.454931789845,31025.454931789845,66324.069340000002,66324.069340000002,0,0,13304223.675000001,13304223.675000001,77563637.329474613,77563637.329474613,165810173.34999999,165810173.34999999,0,0,2500]
[null,"Male 85-89",86.630752999999999,91.420750000000012,"male",3,{"$f":"HLOOKUP(Calculations!$E$2,'Prevalence Rates'!$C$3:$BC$249,'Prevalence Rates'!$BD172,FALSE)","v":0},{"$f":"HLOOKUP(Calculations!$E$2,'Population 2016'!$C$3:$BC$249,'Population 2016'!BD172,FALSE)","v":6019},0,{"$f":"HLOOKUP(Results!E$4,Targeting!$C$3:$F$249,Targeting!$G172,FALSE)","v":0},{"$f":"IF(AND(OR(Calculations!$E$2=\"Orkney Health Board\",Calculations!$E$2=\"Orkney Islands Local Authority\"),$F172=1),0,IF(AND(OR(Calculations!$E$2=\"Shetland Health Board\",Calculations!$E$2=\"Western Isles Health Board\",Calculations!$E$2=\"Shetland Islands Local Authority\",Calculations!$E$2=\"Eilean Siar Local Authority\"),OR($F172=1,$F172=5)),0,new_ci(VALUE(LEFT(Options!$B$24,2)),$C172,$E172,$F172,2016,$I172,1,$H172,$G172*$H172,Options!$B$8)))","v":455.92095464760001},{"$f":"IF(AND(OR(Calculations!$E$2=\"Orkney Health Board\",Calculations!$E$2=\"Orkney Islands Local Authority\"),$F172=1),0,IF(AND(OR(Calculations!$E$2=\"Shetland Health Board\",Calculations!$E$2=\"Western Isles Health Board\",Calculations!$E$2=\"Shetland Islands Local Authority\",Calculations!$E$2=\"Eilean Siar Local Authority\"),OR($F172=1,$F172=5)),0,new_ci(VALUE(LEFT(Options!$B$24,2)),$C172,$E172,$F172,2016,$I172+$J172,1,$H172,$G172*$H172,Options!$B$8)))","v":455.92095464760001},{"$f":"IF(AND(OR(Calculations!$E$2=\"Orkney Health Board\",Calculations!$E$2=\"Orkney Islands Local Authority\"),$F172=1),0,IF(AND(OR(Calculations!$E$2=\"Shetland Health Board\",Calculations!$E$2=\"Western Isles Health Board\",Calculations!$E$2=\"Shetland Islands Local Authority\",Calculations!$E$2=\"Eilean Siar Local Authority\"),OR($F172=1,$F172=5)),0,new_yllv2(VALUE(LEFT(Options!$B$24,2)),$C172,$D172,$E172,$F172,2016,$I172,1,$H172,$G172*$H172,Options!$B$8)))","v":1727.9390503515001},{"$f":"IF(AND(OR(Calculations!$E$2=\"Orkney Health Board\",Calculations!$E$2=\"Orkney Islands Local Authority\"),$F172=1),0,IF(AND(OR(Calculations!$E$2=\"Shetland Health Board\",Calculations!$E$2=\"Western Isles Health Board\",Calculations!$E$2=\"Shetland Islands Local Authority\",Calculations!$E$2=\"Eilean Siar Local Authority\"),OR($F172=1,$F172=5)),0,new_yllv2(VALUE(LEFT(Options!$B$24,2)),$C172,$D172,$E172,$F172,2016,$I172+$J172,1,$H172,$G172*$H172,Options!$B$8)))","v":1727.9390503515001},{"$f":"IF(AND(OR(Calculations!$E$2=\"Orkney Health Board\",Calculations!$E$2=\"Orkney Islands Local Authority\"),$F172=1),0,IF(AND(OR(Calculations!$E$2=\"Shetland Health Board\",Calculations!$E$2=\"Western Isles Health Board\",Calculations!$E$2=\"Shetland Islands Local Authority\",Calculations!$E$2=\"Eilean Siar Local Authority\"),OR($F172=1,$F172=5)),0,hosp_count(VALUE(LEFT(Options!$B$24,2)),$C172,$E172,$F172,2016,$I172,1,$H172,$G172*$H172, Options!$B$8)))","v":4739.2344881063},{"$f":"IF(AND(OR(Calculations!$E$2=\"Orkney Health Board\",Calculations!$E$2=\"Orkney Islands Local Authority\"),$F172=1),0,IF(AND(OR(Calculations!$E$2=\"Shetland Health Board\",Calculations!$E$2=\"Western Isles Health Board\",Calculations!$E$2=\"Shetland Islands Local Authority\",Calculations!$E$2=\"Eilean Siar Local Authority\"),OR($F172=1,$F172=5)),0,hosp_count(VALUE(LEFT(Options!$B$24,2)),$C172,$E172,$F172,2016,$I172+$J172,1,$H172,$G172*$H172, Options!$B$8)))","v":4739.2344881063},{"$f":"IF(AND(OR(Calculations!$E$2=\"Orkney Health Board\",Calculations!$E$2=\"Orkney Islands Local Authority\"),$F172=1),0,IF(AND(OR(Calculations!$E$2=\"Shetland Health Board\",Calculations!$E$2=\"Western Isles Health Board\",Calculations!$E$2=\"Shetland Islands Local Authority\",Calculations!$E$2=\"Eilean Siar Local Authority\"),OR($F172=1,$F172=5)),0,prem_mort(VALUE(LEFT(Options!$B$24,2)),$C172,$E172,$F172,2016,$I172,1,$H172,$G172*$H172,Options!$B$8)))","v":0},{"$f":"IF(AND(OR(Calculations!$E$2=\"Orkney Health Board\",Calculations!$E$2=\"Orkney Islands Local Authority\"),$F172=1),0,IF(AND(OR(Calculations!$E$2=\"Shetland Health Board\",Calculations!$E$2=\"Western Isles Health Board\",Calculations!$E$2=\"Shetland Islands Local Authority\",Calculations!$E$2=\"Eilean Siar Local Authority\"),OR($F172=1,$F172=5)),0,prem_mort(VALUE(LEFT(Options!$B$24,2)),$C172,$E172,$F172,2016,$I172+$J172,1,$H172,$G172*$H172,Options!$B$8)))","v":0},7574.6960399999998,7574.6960399999998,28708.075267511216,28708.075267511216,78737.904770000008,78737.904770000008,0,0,11362044.060000001,11362044.060000001,43062112.901266821,43062112.901266821,118106857.15500002,118106857.15500002,0,0,1500]
[null,"Male 90+",92.215477000000007,95.515479999999997,"male",3,{"$f":"HLOOKUP(Calculations!$E$2,'Prevalence Rates'!$C$3:$BC$249,'Prevalence Rates'!$BD173,FALSE)","v":0},{"$f":"HLOOKUP(Calculations!$E$2,'Population 2016'!$C$3:$BC$249,'Population 2016'!BD173,FALSE)","v":2593},0,{"$f":"HLOOKUP(Results!E$4,Targeting!$C$3:$F$249,Targeting!$G173,FALSE)","v":0},{"$f":"IF(AND(OR(Calculations!$E$2=\"Orkney Health Board\",Calculations!$E$2=\"Orkney Islands Local Authority\"),$F173=1),0,IF(AND(OR(Calculations!$E$2=\"Shetland Health Board\",Calculations!$E$2=\"Western Isles Health Board\",Calculations!$E$2=\"Shetland Islands Local Authority\",Calculations!$E$2=\"Eilean Siar Local Authority\"),OR($F173=1,$F173=5)),0,new_ci(VALUE(LEFT(Options!$B$24,2)),$C173,$E173,$F173,2016,$I173,1,$H173,$G173*$H173,Options!$B$8)))","v":293.39933440269999},{"$f":"IF(AND(OR(Calculations!$E$2=\"Orkney Health Board\",Calculations!$E$2=\"Orkney Islands Local Authority\"),$F173=1),0,IF(AND(OR(Calculations!$E$2=\"Shetland Health Board\",Calculations!$E$2=\"Western Isles Health Board\",Calculations!$E$2=\"Shetland Islands Local Authority\",Calculations!$E$2=\"Eilean Siar Local Authority\"),OR($F173=1,$F173=5)),0,new_ci(VALUE(LEFT(Options!$B$24,2)),$C173,$E173,$F173,2016,$I173+$J173,1,$H173,$G173*$H173,Options!$B$8)))","v":293.39933440269999},{"$f":"IF(AND(OR(Calculations!$E$2=\"Orkney Health Board\",Calculations!$E$2=\"Orkney Islands Local Authority\"),$F173=1),0,IF(AND(OR(Calculations!$E$2=\"Shetland Health Board\",Calculations!$E$2=\"Western Isles Health Board\",Calculations!$E$2=\"Shetland Islands Local Authority\",Calculations!$E$2=\"Eilean Siar Local Authority\"),OR($F173=1,$F173=5)),0,new_yllv2(VALUE(LEFT(Options!$B$24,2)),$C173,$D173,$E173,$F173,2016,$I173,1,$H173,$G173*$H173,Options!$B$8)))","v":674.81934932419995},{"$f":"IF(AND(OR(Calculations!$E$2=\"Orkney Health Board\",Calculations!$E$2=\"Orkney Islands Local Authority\"),$F173=1),0,IF(AND(OR(Calculations!$E$2=\"Shetland Health Board\",Calculations!$E$2=\"Western Isles Health Board\",Calculations!$E$2=\"Shetland Islands Local Authority\",Calculations!$E$2=\"Eilean Siar Local Authority\"),OR($F173=1,$F173=5)),0,new_yllv2(VALUE(LEFT(Options!$B$24,2)),$C173,$D173,$E173,$F173,2016,$I173+$J173,1,$H173,$G173*$H173,Options!$B$8)))","v":674.81934932419995},{"$f":"IF(AND(OR(Calculations!$E$2=\"Orkney Health Board\",Calculations!$E$2=\"Orkney Islands Local Authority\"),$F173=1),0,IF(AND(OR(Calculations!$E$2=\"Shetland Health Board\",Calculations!$E$2=\"Western Isles Health Board\",Calculations!$E$2=\"Shetland Islands Local Authority\",Calculations!$E$2=\"Eilean Siar Local Authority\"),OR($F173=1,$F173=5)),0,hosp_count(VALUE(LEFT(Options!$B$24,2)),$C173,$E173,$F173,2016,$I173,1,$H173,$G173*$H173, Options!$B$8)))","v":2489.2981891170998},{"$f":"IF(AND(OR(Calculations!$E$2=\"Orkney Health Board\",Calculations!$E$2=\"Orkney Islands Local Authority\"),$F173=1),0,IF(AND(OR(Calculations!$E$2=\"Shetland Health Board\",Calculations!$E$2=\"Western Isles Health Board\",Calculations!$E$2=\"Shetland Islands Local Authority\",Calculations!$E$2=\"Eilean Siar Local Authority\"),OR($F173=1,$F173=5)),0,hosp_count(VALUE(LEFT(Options!$B$24,2)),$C173,$E173,$F173,2016,$I173+$J173,1,$H173,$G173*$H173, Options!$B$8)))","v":2489.2981891170998},{"$f":"IF(AND(OR(Calculations!$E$2=\"Orkney Health Board\",Calculations!$E$2=\"Orkney Islands Local Authority\"),$F173=1),0,IF(AND(OR(Calculations!$E$2=\"Shetland Health Board\",Calculations!$E$2=\"Western Isles Health Board\",Calculations!$E$2=\"Shetland Islands Local Authority\",Calculations!$E$2=\"Eilean Siar Local Authority\"),OR($F173=1,$F173=5)),0,prem_mort(VALUE(LEFT(Options!$B$24,2)),$C173,$E173,$F173,2016,$I173,1,$H173,$G173*$H173,Options!$B$8)))","v":0},{"$f":"IF(AND(OR(Calculations!$E$2=\"Orkney Health Board\",Calculations!$E$2=\"Orkney Islands Local Authority\"),$F173=1),0,IF(AND(OR(Calculations!$E$2=\"Shetland Health Board\",Calculations!$E$2=\"Western Isles Health Board\",Calculations!$E$2=\"Shetland Islands Local Authority\",Calculations!$E$2=\"Eilean Siar Local Authority\"),OR($F173=1,$F173=5)),0,prem_mort(VALUE(LEFT(Options!$B$24,2)),$C173,$E173,$F173,2016,$I173+$J173,1,$H173,$G173*$H173,Options!$B$8)))","v":0},11315.053389999999,11315.053389999999,26024.656742159659,26024.656742159659,96000.70147,96000.70147,0,0,11315053.389999999,11315053.389999999,26024656.742159661,26024656.742159661,96000701.469999999,96000701.469999999,0,0,1000]
[null,"Female 0-4",2.0384007,81.468401,"female",4,{"$f":"HLOOKUP(Calculations!$E$2,'Prevalence Rates'!$C$3:$BC$249,'Prevalence Rates'!$BD174,FALSE)","v":0},{"$f":"HLOOKUP(Calculations!$E$2,'Population 2016'!$C$3:$BC$249,'Population 2016'!BD174,FALSE)","v":0},0,{"$f":"HLOOKUP(Results!E$4,Targeting!$C$3:$F$249,Targeting!$G174,FALSE)","v":0},{"$f":"IF(AND(OR(Calculations!$E$2=\"Orkney Health Board\",Calculations!$E$2=\"Orkney Islands Local Authority\"),$F174=1),0,IF(AND(OR(Calculations!$E$2=\"Shetland Health Board\",Calculations!$E$2=\"Western Isles Health Board\",Calculations!$E$2=\"Shetland Islands Local Authority\",Calculations!$E$2=\"Eilean Siar Local Authority\"),OR($F174=1,$F174=5)),0,new_ci(VALUE(LEFT(Options!$B$24,2)),$C174,$E174,$F174,2016,$I174,1,$H174,$G174*$H174,Options!$B$8)))","v":{"$error":"#VALUE!"}},{"$f":"IF(AND(OR(Calculations!$E$2=\"Orkney Health Board\",Calculations!$E$2=\"Orkney Islands Local Authority\"),$F174=1),0,IF(AND(OR(Calculations!$E$2=\"Shetland Health Board\",Calculations!$E$2=\"Western Isles Health Board\",Calculations!$E$2=\"Shetland Islands Local Authority\",Calculations!$E$2=\"Eilean Siar Local Authority\"),OR($F174=1,$F174=5)),0,new_ci(VALUE(LEFT(Options!$B$24,2)),$C174,$E174,$F174,2016,$I174+$J174,1,$H174,$G174*$H174,Options!$B$8)))","v":{"$error":"#VALUE!"}},{"$f":"IF(AND(OR(Calculations!$E$2=\"Orkney Health Board\",Calculations!$E$2=\"Orkney Islands Local Authority\"),$F174=1),0,IF(AND(OR(Calculations!$E$2=\"Shetland Health Board\",Calculations!$E$2=\"Western Isles Health Board\",Calculations!$E$2=\"Shetland Islands Local Authority\",Calculations!$E$2=\"Eilean Siar Local Authority\"),OR($F174=1,$F174=5)),0,new_yllv2(VALUE(LEFT(Options!$B$24,2)),$C174,$D174,$E174,$F174,2016,$I174,1,$H174,$G174*$H174,Options!$B$8)))","v":{"$error":"#VALUE!"}},{"$f":"IF(AND(OR(Calculations!$E$2=\"Orkney Health Board\",Calculations!$E$2=\"Orkney Islands Local Authority\"),$F174=1),0,IF(AND(OR(Calculations!$E$2=\"Shetland Health Board\",Calculations!$E$2=\"Western Isles Health Board\",Calculations!$E$2=\"Shetland Islands Local Authority\",Calculations!$E$2=\"Eilean Siar Local Authority\"),OR($F174=1,$F174=5)),0,new_yllv2(VALUE(LEFT(Options!$B$24,2)),$C174,$D174,$E174,$F174,2016,$I174+$J174,1,$H174,$G174*$H174,Options!$B$8)))","v":{"$error":"#VALUE!"}},{"$f":"IF(AND(OR(Calculations!$E$2=\"Orkney Health Board\",Calculations!$E$2=\"Orkney Islands Local Authority\"),$F174=1),0,IF(AND(OR(Calculations!$E$2=\"Shetland Health Board\",Calculations!$E$2=\"Western Isles Health Board\",Calculations!$E$2=\"Shetland Islands Local Authority\",Calculations!$E$2=\"Eilean Siar Local Authority\"),OR($F174=1,$F174=5)),0,hosp_count(VALUE(LEFT(Options!$B$24,2)),$C174,$E174,$F174,2016,$I174,1,$H174,$G174*$H174, Options!$B$8)))","v":{"$error":"#VALUE!"}},{"$f":"IF(AND(OR(Calculations!$E$2=\"Orkney Health Board\",Calculations!$E$2=\"Orkney Islands Local Authority\"),$F174=1),0,IF(AND(OR(Calculations!$E$2=\"Shetland Health Board\",Calculations!$E$2=\"Western Isles Health Board\",Calculations!$E$2=\"Shetland Islands Local Authority\",Calculations!$E$2=\"Eilean Siar Local Authority\"),OR($F174=1,$F174=5)),0,hosp_count(VALUE(LEFT(Options!$B$24,2)),$C174,$E174,$F174,2016,$I174+$J174,1,$H174,$G174*$H174, Options!$B$8)))","v":{"$error":"#VALUE!"}},{"$f":"IF(AND(OR(Calculations!$E$2=\"Orkney Health Board\",Calculations!$E$2=\"Orkney Islands Local Authority\"),$F174=1),0,IF(AND(OR(Calculations!$E$2=\"Shetland Health Board\",Calculations!$E$2=\"Western Isles Health Board\",Calculations!$E$2=\"Shetland Islands Local Authority\",Calculations!$E$2=\"Eilean Siar Local Authority\"),OR($F174=1,$F174=5)),0,prem_mort(VALUE(LEFT(Options!$B$24,2)),$C174,$E174,$F174,2016,$I174,1,$H174,$G174*$H174,Options!$B$8)))","v":{"$error":"#VALUE!"}},{"$f":"IF(AND(OR(Calculations!$E$2=\"Orkney Health Board\",Calculations!$E$2=\"Orkney Islands Local Authority\"),$F174=1),0,IF(AND(OR(Calculations!$E$2=\"Shetland Health Board\",Calculations!$E$2=\"Western Isles Health Board\",Calculations!$E$2=\"Shetland Islands Local Authority\",Calculations!$E$2=\"Eilean Siar Local Authority\"),OR($F174=1,$F174=5)),0,prem_mort(VALUE(LEFT(Options!$B$24,2)),$C174,$E174,$F174,2016,$I174+$J174,1,$H174,$G174*$H174,Options!$B$8)))","v":{"$error":"#VALUE!"}},{"$error":"#VALUE!"},{"$error":"#VALUE!"},{"$error":"#VALUE!"},{"$error":"#VALUE!"},{"$error":"#VALUE!"},{"$error":"#VALUE!"},{"$error":"#VALUE!"},{"$error":"#VALUE!"},{"$error":"#VALUE!"},{"$error":"#VALUE!"},{"$error":"#VALUE!"},{"$error":"#VALUE!"},{"$error":"#VALUE!"},{"$error":"#VALUE!"},{"$error":"#VALUE!"},{"$error":"#VALUE!"},5000]
[null,"Female 5-9",6.9792794999999996,81.439279999999997,"female",4,{"$f":"HLOOKUP(Calculations!$E$2,'Prevalence Rates'!$C$3:$BC$249,'Prevalence Rates'!$BD175,FALSE)","v":0},{"$f":"HLOOKUP(Calculations!$E$2,'Population 2016'!$C$3:$BC$249,'Population 2016'!BD175,FALSE)","v":0},0,{"$f":"HLOOKUP(Results!E$4,Targeting!$C$3:$F$249,Targeting!$G175,FALSE)","v":0},{"$f":"IF(AND(OR(Calculations!$E$2=\"Orkney Health Board\",Calculations!$E$2=\"Orkney Islands Local Authority\"),$F175=1),0,IF(AND(OR(Calculations!$E$2=\"Shetland Health Board\",Calculations!$E$2=\"Western Isles Health Board\",Calculations!$E$2=\"Shetland Islands Local Authority\",Calculations!$E$2=\"Eilean Siar Local Authority\"),OR($F175=1,$F175=5)),0,new_ci(VALUE(LEFT(Options!$B$24,2)),$C175,$E175,$F175,2016,$I175,1,$H175,$G175*$H175,Options!$B$8)))","v":{"$error":"#VALUE!"}},{"$f":"IF(AND(OR(Calculations!$E$2=\"Orkney Health Board\",Calculations!$E$2=\"Orkney Islands Local Authority\"),$F175=1),0,IF(AND(OR(Calculations!$E$2=\"Shetland Health Board\",Calculations!$E$2=\"Western Isles Health Board\",Calculations!$E$2=\"Shetland Islands Local Authority\",Calculations!$E$2=\"Eilean Siar Local Authority\"),OR($F175=1,$F175=5)),0,new_ci(VALUE(LEFT(Options!$B$24,2)),$C175,$E175,$F175,2016,$I175+$J175,1,$H175,$G175*$H175,Options!$B$8)))","v":{"$error":"#VALUE!"}},{"$f":"IF(AND(OR(Calculations!$E$2=\"Orkney Health Board\",Calculations!$E$2=\"Orkney Islands Local Authority\"),$F175=1),0,IF(AND(OR(Calculations!$E$2=\"Shetland Health Board\",Calculations!$E$2=\"Western Isles Health Board\",Calculations!$E$2=\"Shetland Islands Local Authority\",Calculations!$E$2=\"Eilean Siar Local Authority\"),OR($F175=1,$F175=5)),0,new_yllv2(VALUE(LEFT(Options!$B$24,2)),$C175,$D175,$E175,$F175,2016,$I175,1,$H175,$G175*$H175,Options!$B$8)))","v":{"$error":"#VALUE!"}},{"$f":"IF(AND(OR(Calculations!$E$2=\"Orkney Health Board\",Calculations!$E$2=\"Orkney Islands Local Authority\"),$F175=1),0,IF(AND(OR(Calculations!$E$2=\"Shetland Health Board\",Calculations!$E$2=\"Western Isles Health Board\",Calculations!$E$2=\"Shetland Islands Local Authority\",Calculations!$E$2=\"Eilean Siar Local Authority\"),OR($F175=1,$F175=5)),0,new_yllv2(VALUE(LEFT(Options!$B$24,2)),$C175,$D175,$E175,$F175,2016,$I175+$J175,1,$H175,$G175*$H175,Options!$B$8)))","v":{"$error":"#VALUE!"}},{"$f":"IF(AND(OR(Calculations!$E$2=\"Orkney Health Board\",Calculations!$E$2=\"Orkney Islands Local Authority\"),$F175=1),0,IF(AND(OR(Calculations!$E$2=\"Shetland Health Board\",Calculations!$E$2=\"Western Isles Health Board\",Calculations!$E$2=\"Shetland Islands Local Authority\",Calculations!$E$2=\"Eilean Siar Local Authority\"),OR($F175=1,$F175=5)),0,hosp_count(VALUE(LEFT(Options!$B$24,2)),$C175,$E175,$F175,2016,$I175,1,$H175,$G175*$H175, Options!$B$8)))","v":{"$error":"#VALUE!"}},{"$f":"IF(AND(OR(Calculations!$E$2=\"Orkney Health Board\",Calculations!$E$2=\"Orkney Islands Local Authority\"),$F175=1),0,IF(AND(OR(Calculations!$E$2=\"Shetland Health Board\",Calculations!$E$2=\"Western Isles Health Board\",Calculations!$E$2=\"Shetland Islands Local Authority\",Calculations!$E$2=\"Eilean Siar Local Authority\"),OR($F175=1,$F175=5)),0,hosp_count(VALUE(LEFT(Options!$B$24,2)),$C175,$E175,$F175,2016,$I175+$J175,1,$H175,$G175*$H175, Options!$B$8)))","v":{"$error":"#VALUE!"}},{"$f":"IF(AND(OR(Calculations!$E$2=\"Orkney Health Board\",Calculations!$E$2=\"Orkney Islands Local Authority\"),$F175=1),0,IF(AND(OR(Calculations!$E$2=\"Shetland Health Board\",Calculations!$E$2=\"Western Isles Health Board\",Calculations!$E$2=\"Shetland Islands Local Authority\",Calculations!$E$2=\"Eilean Siar Local Authority\"),OR($F175=1,$F175=5)),0,prem_mort(VALUE(LEFT(Options!$B$24,2)),$C175,$E175,$F175,2016,$I175,1,$H175,$G175*$H175,Options!$B$8)))","v":{"$error":"#VALUE!"}},{"$f":"IF(AND(OR(Calculations!$E$2=\"Orkney Health Board\",Calculations!$E$2=\"Orkney Islands Local Authority\"),$F175=1),0,IF(AND(OR(Calculations!$E$2=\"Shetland Health Board\",Calculations!$E$2=\"Western Isles Health Board\",Calculations!$E$2=\"Shetland Islands Local Authority\",Calculations!$E$2=\"Eilean Siar Local Authority\"),OR($F175=1,$F175=5)),0,prem_mort(VALUE(LEFT(Options!$B$24,2)),$C175,$E175,$F175,2016,$I175+$J175,1,$H175,$G175*$H175,Options!$B$8)))","v":{"$error":"#VALUE!"}},{"$error":"#VALUE!"},{"$error":"#VALUE!"},{"$error":"#VALUE!"},{"$error":"#VALUE!"},{"$error":"#VALUE!"},{"$error":"#VALUE!"},{"$error":"#VALUE!"},{"$error":"#VALUE!"},{"$error":"#VALUE!"},{"$error":"#VALUE!"},{"$error":"#VALUE!"},{"$error":"#VALUE!"},{"$error":"#VALUE!"},{"$error":"#VALUE!"},{"$error":"#VALUE!"},{"$error":"#VALUE!"},5500]
[null,"Female 10-15",12.478312000000001,81.948309999999992,"female",4,{"$f":"HLOOKUP(Calculations!$E$2,'Prevalence Rates'!$C$3:$BC$249,'Prevalence Rates'!$BD176,FALSE)","v":0},{"$f":"HLOOKUP(Calculations!$E$2,'Population 2016'!$C$3:$BC$249,'Population 2016'!BD176,FALSE)","v":0},0,{"$f":"HLOOKUP(Results!E$4,Targeting!$C$3:$F$249,Targeting!$G176,FALSE)","v":0},{"$f":"IF(AND(OR(Calculations!$E$2=\"Orkney Health Board\",Calculations!$E$2=\"Orkney Islands Local Authority\"),$F176=1),0,IF(AND(OR(Calculations!$E$2=\"Shetland Health Board\",Calculations!$E$2=\"Western Isles Health Board\",Calculations!$E$2=\"Shetland Islands Local Authority\",Calculations!$E$2=\"Eilean Siar Local Authority\"),OR($F176=1,$F176=5)),0,new_ci(VALUE(LEFT(Options!$B$24,2)),$C176,$E176,$F176,2016,$I176,1,$H176,$G176*$H176,Options!$B$8)))","v":{"$error":"#VALUE!"}},{"$f":"IF(AND(OR(Calculations!$E$2=\"Orkney Health Board\",Calculations!$E$2=\"Orkney Islands Local Authority\"),$F176=1),0,IF(AND(OR(Calculations!$E$2=\"Shetland Health Board\",Calculations!$E$2=\"Western Isles Health Board\",Calculations!$E$2=\"Shetland Islands Local Authority\",Calculations!$E$2=\"Eilean Siar Local Authority\"),OR($F176=1,$F176=5)),0,new_ci(VALUE(LEFT(Options!$B$24,2)),$C176,$E176,$F176,2016,$I176+$J176,1,$H176,$G176*$H176,Options!$B$8)))","v":{"$error":"#VALUE!"}},{"$f":"IF(AND(OR(Calculations!$E$2=\"Orkney Health Board\",Calculations!$E$2=\"Orkney Islands Local Authority\"),$F176=1),0,IF(AND(OR(Calculations!$E$2=\"Shetland Health Board\",Calculations!$E$2=\"Western Isles Health Board\",Calculations!$E$2=\"Shetland Islands Local Authority\",Calculations!$E$2=\"Eilean Siar Local Authority\"),OR($F176=1,$F176=5)),0,new_yllv2(VALUE(LEFT(Options!$B$24,2)),$C176,$D176,$E176,$F176,2016,$I176,1,$H176,$G176*$H176,Options!$B$8)))","v":{"$error":"#VALUE!"}},{"$f":"IF(AND(OR(Calculations!$E$2=\"Orkney Health Board\",Calculations!$E$2=\"Orkney Islands Local Authority\"),$F176=1),0,IF(AND(OR(Calculations!$E$2=\"Shetland Health Board\",Calculations!$E$2=\"Western Isles Health Board\",Calculations!$E$2=\"Shetland Islands Local Authority\",Calculations!$E$2=\"Eilean Siar Local Authority\"),OR($F176=1,$F176=5)),0,new_yllv2(VALUE(LEFT(Options!$B$24,2)),$C176,$D176,$E176,$F176,2016,$I176+$J176,1,$H176,$G176*$H176,Options!$B$8)))","v":{"$error":"#VALUE!"}},{"$f":"IF(AND(OR(Calculations!$E$2=\"Orkney Health Board\",Calculations!$E$2=\"Orkney Islands Local Authority\"),$F176=1),0,IF(AND(OR(Calculations!$E$2=\"Shetland Health Board\",Calculations!$E$2=\"Western Isles Health Board\",Calculations!$E$2=\"Shetland Islands Local Authority\",Calculations!$E$2=\"Eilean Siar Local Authority\"),OR($F176=1,$F176=5)),0,hosp_count(VALUE(LEFT(Options!$B$24,2)),$C176,$E176,$F176,2016,$I176,1,$H176,$G176*$H176, Options!$B$8)))","v":{"$error":"#VALUE!"}},{"$f":"IF(AND(OR(Calculations!$E$2=\"Orkney Health Board\",Calculations!$E$2=\"Orkney Islands Local Authority\"),$F176=1),0,IF(AND(OR(Calculations!$E$2=\"Shetland Health Board\",Calculations!$E$2=\"Western Isles Health Board\",Calculations!$E$2=\"Shetland Islands Local Authority\",Calculations!$E$2=\"Eilean Siar Local Authority\"),OR($F176=1,$F176=5)),0,hosp_count(VALUE(LEFT(Options!$B$24,2)),$C176,$E176,$F176,2016,$I176+$J176,1,$H176,$G176*$H176, Options!$B$8)))","v":{"$error":"#VALUE!"}},{"$f":"IF(AND(OR(Calculations!$E$2=\"Orkney Health Board\",Calculations!$E$2=\"Orkney Islands Local Authority\"),$F176=1),0,IF(AND(OR(Calculations!$E$2=\"Shetland Health Board\",Calculations!$E$2=\"Western Isles Health Board\",Calculations!$E$2=\"Shetland Islands Local Authority\",Calculations!$E$2=\"Eilean Siar Local Authority\"),OR($F176=1,$F176=5)),0,prem_mort(VALUE(LEFT(Options!$B$24,2)),$C176,$E176,$F176,2016,$I176,1,$H176,$G176*$H176,Options!$B$8)))","v":{"$error":"#VALUE!"}},{"$f":"IF(AND(OR(Calculations!$E$2=\"Orkney Health Board\",Calculations!$E$2=\"Orkney Islands Local Authority\"),$F176=1),0,IF(AND(OR(Calculations!$E$2=\"Shetland Health Board\",Calculations!$E$2=\"Western Isles Health Board\",Calculations!$E$2=\"Shetland Islands Local Authority\",Calculations!$E$2=\"Eilean Siar Local Authority\"),OR($F176=1,$F176=5)),0,prem_mort(VALUE(LEFT(Options!$B$24,2)),$C176,$E176,$F176,2016,$I176+$J176,1,$H176,$G176*$H176,Options!$B$8)))","v":{"$error":"#VALUE!"}},{"$error":"#VALUE!"},{"$error":"#VALUE!"},{"$error":"#VALUE!"},{"$error":"#VALUE!"},{"$error":"#VALUE!"},{"$error":"#VALUE!"},{"$error":"#VALUE!"},{"$error":"#VALUE!"},{"$error":"#VALUE!"},{"$error":"#VALUE!"},{"$error":"#VALUE!"},{"$error":"#VALUE!"},{"$error":"#VALUE!"},{"$error":"#VALUE!"},{"$error":"#VALUE!"},{"$error":"#VALUE!"},6600]
["SIMD Q4","Female 16-19",17.570053000000001,81.100049999999996,"female",4,{"$f":"HLOOKUP(Calculations!$E$2,'Prevalence Rates'!$C$3:$BC$249,'Prevalence Rates'!$BD177,FALSE)","v":0.15},{"$f":"HLOOKUP(Calculations!$E$2,'Population 2016'!$C$3:$BC$249,'Population 2016'!BD177,FALSE)","v":23408},0,{"$f":"HLOOKUP(Results!E$4,Targeting!$C$3:$F$249,Targeting!$G177,FALSE)","v":1589},{"$f":"IF(AND(OR(Calculations!$E$2=\"Orkney Health Board\",Calculations!$E$2=\"Orkney Islands Local Authority\"),$F177=1),0,IF(AND(OR(Calculations!$E$2=\"Shetland Health Board\",Calculations!$E$2=\"Western Isles Health Board\",Calculations!$E$2=\"Shetland Islands Local Authority\",Calculations!$E$2=\"Eilean Siar Local Authority\"),OR($F177=1,$F177=5)),0,new_ci(VALUE(LEFT(Options!$B$24,2)),$C177,$E177,$F177,2016,$I177,1,$H177,$G177*$H177,Options!$B$8)))","v":3.3423294212000001},{"$f":"IF(AND(OR(Calculations!$E$2=\"Orkney Health Board\",Calculations!$E$2=\"Orkney Islands Local Authority\"),$F177=1),0,IF(AND(OR(Calculations!$E$2=\"Shetland Health Board\",Calculations!$E$2=\"Western Isles Health Board\",Calculations!$E$2=\"Shetland Islands Local Authority\",Calculations!$E$2=\"Eilean Siar Local Authority\"),OR($F177=1,$F177=5)),0,new_ci(VALUE(LEFT(Options!$B$24,2)),$C177,$E177,$F177,2016,$I177+$J177,1,$H177,$G177*$H177,Options!$B$8)))","v":3.2438206373999998},{"$f":"IF(AND(OR(Calculations!$E$2=\"Orkney Health Board\",Calculations!$E$2=\"Orkney Islands Local Authority\"),$F177=1),0,IF(AND(OR(Calculations!$E$2=\"Shetland Health Board\",Calculations!$E$2=\"Western Isles Health Board\",Calculations!$E$2=\"Shetland Islands Local Authority\",Calculations!$E$2=\"Eilean Siar Local Authority\"),OR($F177=1,$F177=5)),0,new_yllv2(VALUE(LEFT(Options!$B$24,2)),$C177,$D177,$E177,$F177,2016,$I177,1,$H177,$G177*$H177,Options!$B$8)))","v":208.99584868060001},{"$f":"IF(AND(OR(Calculations!$E$2=\"Orkney Health Board\",Calculations!$E$2=\"Orkney Islands Local Authority\"),$F177=1),0,IF(AND(OR(Calculations!$E$2=\"Shetland Health Board\",Calculations!$E$2=\"Western Isles Health Board\",Calculations!$E$2=\"Shetland Islands Local Authority\",Calculations!$E$2=\"Eilean Siar Local Authority\"),OR($F177=1,$F177=5)),0,new_yllv2(VALUE(LEFT(Options!$B$24,2)),$C177,$D177,$E177,$F177,2016,$I177+$J177,1,$H177,$G177*$H177,Options!$B$8)))","v":202.83609472520001},{"$f":"IF(AND(OR(Calculations!$E$2=\"Orkney Health Board\",Calculations!$E$2=\"Orkney Islands Local Authority\"),$F177=1),0,IF(AND(OR(Calculations!$E$2=\"Shetland Health Board\",Calculations!$E$2=\"Western Isles Health Board\",Calculations!$E$2=\"Shetland Islands Local Authority\",Calculations!$E$2=\"Eilean Siar Local Authority\"),OR($F177=1,$F177=5)),0,hosp_count(VALUE(LEFT(Options!$B$24,2)),$C177,$E177,$F177,2016,$I177,1,$H177,$G177*$H177, Options!$B$8)))","v":2068.4330629423998},{"$f":"IF(AND(OR(Calculations!$E$2=\"Orkney Health Board\",Calculations!$E$2=\"Orkney Islands Local Authority\"),$F177=1),0,IF(AND(OR(Calculations!$E$2=\"Shetland Health Board\",Calculations!$E$2=\"Western Isles Health Board\",Calculations!$E$2=\"Shetland Islands Local Authority\",Calculations!$E$2=\"Eilean Siar Local Authority\"),OR($F177=1,$F177=5)),0,hosp_count(VALUE(LEFT(Options!$B$24,2)),$C177,$E177,$F177,2016,$I177+$J177,1,$H177,$G177*$H177, Options!$B$8)))","v":2063.9503805578001},{"$f":"IF(AND(OR(Calculations!$E$2=\"Orkney Health Board\",Calculations!$E$2=\"Orkney Islands Local Authority\"),$F177=1),0,IF(AND(OR(Calculations!$E$2=\"Shetland Health Board\",Calculations!$E$2=\"Western Isles Health Board\",Calculations!$E$2=\"Shetland Islands Local Authority\",Calculations!$E$2=\"Eilean Siar Local Authority\"),OR($F177=1,$F177=5)),0,prem_mort(VALUE(LEFT(Options!$B$24,2)),$C177,$E177,$F177,2016,$I177,1,$H177,$G177*$H177,Options!$B$8)))","v":3.3423294212000001},{"$f":"IF(AND(OR(Calculations!$E$2=\"Orkney Health Board\",Calculations!$E$2=\"Orkney Islands Local Authority\"),$F177=1),0,IF(AND(OR(Calculations!$E$2=\"Shetland Health Board\",Calculations!$E$2=\"Western Isles Health Board\",Calculations!$E$2=\"Shetland Islands Local Authority\",Calculations!$E$2=\"Eilean Siar Local Authority\"),OR($F177=1,$F177=5)),0,prem_mort(VALUE(LEFT(Options!$B$24,2)),$C177,$E177,$F177,2016,$I177+$J177,1,$H177,$G177*$H177,Options!$B$8)))","v":3.2438206373999998},14.278577500000001,13.857743666267941,892.83940823906357,866.52466987867399,8836.436529999999,8817.2863147547851,14.278577500000001,13.857743666267941,62825.741000000002,60974.072131578941,3928493.3962518796,3812708.5474661654,38880320.731999993,38796059.784921058,62825.741000000002,60974.072131578941,4400]
[null,"Female 20-24",22.077057,81.667060000000006,"female",4,{"$f":"HLOOKUP(Calculations!$E$2,'Prevalence Rates'!$C$3:$BC$249,'Prevalence Rates'!$BD178,FALSE)","v":0.15},{"$f":"HLOOKUP(Calculations!$E$2,'Population 2016'!$C$3:$BC$249,'Population 2016'!BD178,FALSE)","v":34833},0,{"$f":"HLOOKUP(Results!E$4,Targeting!$C$3:$F$249,Targeting!$G178,FALSE)","v":2365},{"$f":"IF(AND(OR(Calculations!$E$2=\"Orkney Health Board\",Calculations!$E$2=\"Orkney Islands Local Authority\"),$F178=1),0,IF(AND(OR(Calculations!$E$2=\"Shetland Health Board\",Calculations!$E$2=\"Western Isles Health Board\",Calculations!$E$2=\"Shetland Islands Local Authority\",Calculations!$E$2=\"Eilean Siar Local Authority\"),OR($F178=1,$F178=5)),0,new_ci(VALUE(LEFT(Options!$B$24,2)),$C178,$E178,$F178,2016,$I178,1,$H178,$G178*$H178,Options!$B$8)))","v":7.2969930950000004},{"$f":"IF(AND(OR(Calculations!$E$2=\"Orkney Health Board\",Calculations!$E$2=\"Orkney Islands Local Authority\"),$F178=1),0,IF(AND(OR(Calculations!$E$2=\"Shetland Health Board\",Calculations!$E$2=\"Western Isles Health Board\",Calculations!$E$2=\"Shetland Islands Local Authority\",Calculations!$E$2=\"Eilean Siar Local Authority\"),OR($F178=1,$F178=5)),0,new_ci(VALUE(LEFT(Options!$B$24,2)),$C178,$E178,$F178,2016,$I178+$J178,1,$H178,$G178*$H178,Options!$B$8)))","v":7.0818963449999996},{"$f":"IF(AND(OR(Calculations!$E$2=\"Orkney Health Board\",Calculations!$E$2=\"Orkney Islands Local Authority\"),$F178=1),0,IF(AND(OR(Calculations!$E$2=\"Shetland Health Board\",Calculations!$E$2=\"Western Isles Health Board\",Calculations!$E$2=\"Shetland Islands Local Authority\",Calculations!$E$2=\"Eilean Siar Local Authority\"),OR($F178=1,$F178=5)),0,new_yllv2(VALUE(LEFT(Options!$B$24,2)),$C178,$D178,$E178,$F178,2016,$I178,1,$H178,$G178*$H178,Options!$B$8)))","v":427.530847327},{"$f":"IF(AND(OR(Calculations!$E$2=\"Orkney Health Board\",Calculations!$E$2=\"Orkney Islands Local Authority\"),$F178=1),0,IF(AND(OR(Calculations!$E$2=\"Shetland Health Board\",Calculations!$E$2=\"Western Isles Health Board\",Calculations!$E$2=\"Shetland Islands Local Authority\",Calculations!$E$2=\"Eilean Siar Local Authority\"),OR($F178=1,$F178=5)),0,new_yllv2(VALUE(LEFT(Options!$B$24,2)),$C178,$D178,$E178,$F178,2016,$I178+$J178,1,$H178,$G178*$H178,Options!$B$8)))","v":414.92832809919997},{"$f":"IF(AND(OR(Calculations!$E$2=\"Orkney Health Board\",Calculations!$E$2=\"Orkney Islands Local Authority\"),$F178=1),0,IF(AND(OR(Calculations!$E$2=\"Shetland Health Board\",Calculations!$E$2=\"Western Isles Health Board\",Calculations!$E$2=\"Shetland Islands Local Authority\",Calculations!$E$2=\"Eilean Siar Local Authority\"),OR($F178=1,$F178=5)),0,hosp_count(VALUE(LEFT(Options!$B$24,2)),$C178,$E178,$F178,2016,$I178,1,$H178,$G178*$H178, Options!$B$8)))","v":3447.4902269472},{"$f":"IF(AND(OR(Calculations!$E$2=\"Orkney Health Board\",Calculations!$E$2=\"Orkney Islands Local Authority\"),$F178=1),0,IF(AND(OR(Calculations!$E$2=\"Shetland Health Board\",Calculations!$E$2=\"Western Isles Health Board\",Calculations!$E$2=\"Shetland Islands Local Authority\",Calculations!$E$2=\"Eilean Siar Local Authority\"),OR($F178=1,$F178=5)),0,hosp_count(VALUE(LEFT(Options!$B$24,2)),$C178,$E178,$F178,2016,$I178+$J178,1,$H178,$G178*$H178, Options!$B$8)))","v":3440.0174809699001},{"$f":"IF(AND(OR(Calculations!$E$2=\"Orkney Health Board\",Calculations!$E$2=\"Orkney Islands Local Authority\"),$F178=1),0,IF(AND(OR(Calculations!$E$2=\"Shetland Health Board\",Calculations!$E$2=\"Western Isles Health Board\",Calculations!$E$2=\"Shetland Islands Local Authority\",Calculations!$E$2=\"Eilean Siar Local Authority\"),OR($F178=1,$F178=5)),0,prem_mort(VALUE(LEFT(Options!$B$24,2)),$C178,$E178,$F178,2016,$I178,1,$H178,$G178*$H178,Options!$B$8)))","v":7.2969930950000004},{"$f":"IF(AND(OR(Calculations!$E$2=\"Orkney Health Board\",Calculations!$E$2=\"Orkney Islands Local Authority\"),$F178=1),0,IF(AND(OR(Calculations!$E$2=\"Shetland Health Board\",Calculations!$E$2=\"Western Isles Health Board\",Calculations!$E$2=\"Shetland Islands Local Authority\",Calculations!$E$2=\"Eilean Siar Local Authority\"),OR($F178=1,$F178=5)),0,prem_mort(VALUE(LEFT(Options!$B$24,2)),$C178,$E178,$F178,2016,$I178+$J178,1,$H178,$G178*$H178,Options!$B$8)))","v":7.0818963449999996},20.948506000057421,20.330997459305827,1227.3730293887979,1191.1932021336088,9897.1958399999985,9875.7427754425389,20.948506000057421,20.330997459305827,125691.03600034452,121985.98475583496,7364238.1763327876,7147159.212801653,59383175.039999992,59254456.652655236,125691.03600034452,121985.98475583496,6000]
[null,"Female 25-29",26.975186999999998,81.645189999999999,"female",4,{"$f":"HLOOKUP(Calculations!$E$2,'Prevalence Rates'!$C$3:$BC$249,'Prevalence Rates'!$BD179,FALSE)","v":0.15384615384615385},{"$f":"HLOOKUP(Calculations!$E$2,'Population 2016'!$C$3:$BC$249,'Population 2016'!BD179,FALSE)","v":33433},0,{"$f":"HLOOKUP(Results!E$4,Targeting!$C$3:$F$249,Targeting!$G179,FALSE)","v":2270},{"$f":"IF(AND(OR(Calculations!$E$2=\"Orkney Health Board\",Calculations!$E$2=\"Orkney Islands Local Authority\"),$F179=1),0,IF(AND(OR(Calculations!$E$2=\"Shetland Health Board\",Calculations!$E$2=\"Western Isles Health Board\",Calculations!$E$2=\"Shetland Islands Local Authority\",Calculations!$E$2=\"Eilean Siar Local Authority\"),OR($F179=1,$F179=5)),0,new_ci(VALUE(LEFT(Options!$B$24,2)),$C179,$E179,$F179,2016,$I179,1,$H179,$G179*$H179,Options!$B$8)))","v":10.6226938364},{"$f":"IF(AND(OR(Calculations!$E$2=\"Orkney Health Board\",Calculations!$E$2=\"Orkney Islands Local Authority\"),$F179=1),0,IF(AND(OR(Calculations!$E$2=\"Shetland Health Board\",Calculations!$E$2=\"Western Isles Health Board\",Calculations!$E$2=\"Shetland Islands Local Authority\",Calculations!$E$2=\"Eilean Siar Local Authority\"),OR($F179=1,$F179=5)),0,new_ci(VALUE(LEFT(Options!$B$24,2)),$C179,$E179,$F179,2016,$I179+$J179,1,$H179,$G179*$H179,Options!$B$8)))","v":10.309997704400001},{"$f":"IF(AND(OR(Calculations!$E$2=\"Orkney Health Board\",Calculations!$E$2=\"Orkney Islands Local Authority\"),$F179=1),0,IF(AND(OR(Calculations!$E$2=\"Shetland Health Board\",Calculations!$E$2=\"Western Isles Health Board\",Calculations!$E$2=\"Shetland Islands Local Authority\",Calculations!$E$2=\"Eilean Siar Local Authority\"),OR($F179=1,$F179=5)),0,new_yllv2(VALUE(LEFT(Options!$B$24,2)),$C179,$D179,$E179,$F179,2016,$I179,1,$H179,$G179*$H179,Options!$B$8)))","v":570.12001006770004},{"$f":"IF(AND(OR(Calculations!$E$2=\"Orkney Health Board\",Calculations!$E$2=\"Orkney Islands Local Authority\"),$F179=1),0,IF(AND(OR(Calculations!$E$2=\"Shetland Health Board\",Calculations!$E$2=\"Western Isles Health Board\",Calculations!$E$2=\"Shetland Islands Local Authority\",Calculations!$E$2=\"Eilean Siar Local Authority\"),OR($F179=1,$F179=5)),0,new_yllv2(VALUE(LEFT(Options!$B$24,2)),$C179,$D179,$E179,$F179,2016,$I179+$J179,1,$H179,$G179*$H179,Options!$B$8)))","v":553.33760772510004},{"$f":"IF(AND(OR(Calculations!$E$2=\"Orkney Health Board\",Calculations!$E$2=\"Orkney Islands Local Authority\"),$F179=1),0,IF(AND(OR(Calculations!$E$2=\"Shetland Health Board\",Calculations!$E$2=\"Western Isles Health Board\",Calculations!$E$2=\"Shetland Islands Local Authority\",Calculations!$E$2=\"Eilean Siar Local Authority\"),OR($F179=1,$F179=5)),0,hosp_count(VALUE(LEFT(Options!$B$24,2)),$C179,$E179,$F179,2016,$I179,1,$H179,$G179*$H179, Options!$B$8)))","v":3742.7879046867001},{"$f":"IF(AND(OR(Calculations!$E$2=\"Orkney Health Board\",Calculations!$E$2=\"Orkney Islands Local Authority\"),$F179=1),0,IF(AND(OR(Calculations!$E$2=\"Shetland Health Board\",Calculations!$E$2=\"Western Isles Health Board\",Calculations!$E$2=\"Shetland Islands Local Authority\",Calculations!$E$2=\"Eilean Siar Local Authority\"),OR($F179=1,$F179=5)),0,hosp_count(VALUE(LEFT(Options!$B$24,2)),$C179,$E179,$F179,2016,$I179+$J179,1,$H179,$G179*$H179, Options!$B$8)))","v":3734.6755051445002},{"$f":"IF(AND(OR(Calculations!$E$2=\"Orkney Health Board\",Calculations!$E$2=\"Orkney Islands Local Authority\"),$F179=1),0,IF(AND(OR(Calculations!$E$2=\"Shetland Health Board\",Calculations!$E$2=\"Western Isles Health Board\",Calculations!$E$2=\"Shetland Islands Local Authority\",Calculations!$E$2=\"Eilean Siar Local Authority\"),OR($F179=1,$F179=5)),0,prem_mort(VALUE(LEFT(Options!$B$24,2)),$C179,$E179,$F179,2016,$I179,1,$H179,$G179*$H179,Options!$B$8)))","v":10.6226938364},{"$f":"IF(AND(OR(Calculations!$E$2=\"Orkney Health Board\",Calculations!$E$2=\"Orkney Islands Local Authority\"),$F179=1),0,IF(AND(OR(Calculations!$E$2=\"Shetland Health Board\",Calculations!$E$2=\"Western Isles Health Board\",Calculations!$E$2=\"Shetland Islands Local Authority\",Calculations!$E$2=\"Eilean Siar Local Authority\"),OR($F179=1,$F179=5)),0,prem_mort(VALUE(LEFT(Options!$B$24,2)),$C179,$E179,$F179,2016,$I179+$J179,1,$H179,$G179*$H179,Options!$B$8)))","v":10.309997704400001},31.773079999999997,30.837788126701167,1705.2612989193315,1655.0641812732931,11194.89099,11170.62634266892,31.773079999999997,30.837788126701167,190638.47999999998,185026.72876020701,10231567.79351599,9930385.0876397584,67169345.939999998,67023758.056013525,190638.47999999998,185026.72876020701,6000]
[null,"Female 30-34",31.999904999999998,81.799899999999994,"female",4,{"$f":"HLOOKUP(Calculations!$E$2,'Prevalence Rates'!$C$3:$BC$249,'Prevalence Rates'!$BD180,FALSE)","v":0.15384615384615385},{"$f":"HLOOKUP(Calculations!$E$2,'Population 2016'!$C$3:$BC$249,'Population 2016'!BD180,FALSE)","v":33838},0,{"$f":"HLOOKUP(Results!E$4,Targeting!$C$3:$F$249,Targeting!$G180,FALSE)","v":2297},{"$f":"IF(AND(OR(Calculations!$E$2=\"Orkney Health Board\",Calculations!$E$2=\"Orkney Islands Local Authority\"),$F180=1),0,IF(AND(OR(Calculations!$E$2=\"Shetland Health Board\",Calculations!$E$2=\"Western Isles Health Board\",Calculations!$E$2=\"Shetland Islands Local Authority\",Calculations!$E$2=\"Eilean Siar Local Authority\"),OR($F180=1,$F180=5)),0,new_ci(VALUE(LEFT(Options!$B$24,2)),$C180,$E180,$F180,2016,$I180,1,$H180,$G180*$H180,Options!$B$8)))","v":16.482870867900001},{"$f":"IF(AND(OR(Calculations!$E$2=\"Orkney Health Board\",Calculations!$E$2=\"Orkney Islands Local Authority\"),$F180=1),0,IF(AND(OR(Calculations!$E$2=\"Shetland Health Board\",Calculations!$E$2=\"Western Isles Health Board\",Calculations!$E$2=\"Shetland Islands Local Authority\",Calculations!$E$2=\"Eilean Siar Local Authority\"),OR($F180=1,$F180=5)),0,new_ci(VALUE(LEFT(Options!$B$24,2)),$C180,$E180,$F180,2016,$I180+$J180,1,$H180,$G180*$H180,Options!$B$8)))","v":15.997823255},{"$f":"IF(AND(OR(Calculations!$E$2=\"Orkney Health Board\",Calculations!$E$2=\"Orkney Islands Local Authority\"),$F180=1),0,IF(AND(OR(Calculations!$E$2=\"Shetland Health Board\",Calculations!$E$2=\"Western Isles Health Board\",Calculations!$E$2=\"Shetland Islands Local Authority\",Calculations!$E$2=\"Eilean Siar Local Authority\"),OR($F180=1,$F180=5)),0,new_yllv2(VALUE(LEFT(Options!$B$24,2)),$C180,$D180,$E180,$F180,2016,$I180,1,$H180,$G180*$H180,Options!$B$8)))","v":804.36401593920004},{"$f":"IF(AND(OR(Calculations!$E$2=\"Orkney Health Board\",Calculations!$E$2=\"Orkney Islands Local Authority\"),$F180=1),0,IF(AND(OR(Calculations!$E$2=\"Shetland Health Board\",Calculations!$E$2=\"Western Isles Health Board\",Calculations!$E$2=\"Shetland Islands Local Authority\",Calculations!$E$2=\"Eilean Siar Local Authority\"),OR($F180=1,$F180=5)),0,new_yllv2(VALUE(LEFT(Options!$B$24,2)),$C180,$D180,$E180,$F180,2016,$I180+$J180,1,$H180,$G180*$H180,Options!$B$8)))","v":780.69369485489995},{"$f":"IF(AND(OR(Calculations!$E$2=\"Orkney Health Board\",Calculations!$E$2=\"Orkney Islands Local Authority\"),$F180=1),0,IF(AND(OR(Calculations!$E$2=\"Shetland Health Board\",Calculations!$E$2=\"Western Isles Health Board\",Calculations!$E$2=\"Shetland Islands Local Authority\",Calculations!$E$2=\"Eilean Siar Local Authority\"),OR($F180=1,$F180=5)),0,hosp_count(VALUE(LEFT(Options!$B$24,2)),$C180,$E180,$F180,2016,$I180,1,$H180,$G180*$H180, Options!$B$8)))","v":4298.4820839800004},{"$f":"IF(AND(OR(Calculations!$E$2=\"Orkney Health Board\",Calculations!$E$2=\"Orkney Islands Local Authority\"),$F180=1),0,IF(AND(OR(Calculations!$E$2=\"Shetland Health Board\",Calculations!$E$2=\"Western Isles Health Board\",Calculations!$E$2=\"Shetland Islands Local Authority\",Calculations!$E$2=\"Eilean Siar Local Authority\"),OR($F180=1,$F180=5)),0,hosp_count(VALUE(LEFT(Options!$B$24,2)),$C180,$E180,$F180,2016,$I180+$J180,1,$H180,$G180*$H180, Options!$B$8)))","v":4289.1672518700998},{"$f":"IF(AND(OR(Calculations!$E$2=\"Orkney Health Board\",Calculations!$E$2=\"Orkney Islands Local Authority\"),$F180=1),0,IF(AND(OR(Calculations!$E$2=\"Shetland Health Board\",Calculations!$E$2=\"Western Isles Health Board\",Calculations!$E$2=\"Shetland Islands Local Authority\",Calculations!$E$2=\"Eilean Siar Local Authority\"),OR($F180=1,$F180=5)),0,prem_mort(VALUE(LEFT(Options!$B$24,2)),$C180,$E180,$F180,2016,$I180,1,$H180,$G180*$H180,Options!$B$8)))","v":16.482870867900001},{"$f":"IF(AND(OR(Calculations!$E$2=\"Orkney Health Board\",Calculations!$E$2=\"Orkney Islands Local Authority\"),$F180=1),0,IF(AND(OR(Calculations!$E$2=\"Shetland Health Board\",Calculations!$E$2=\"Western Isles Health Board\",Calculations!$E$2=\"Shetland Islands Local Authority\",Calculations!$E$2=\"Eilean Siar Local Authority\"),OR($F180=1,$F180=5)),0,prem_mort(VALUE(LEFT(Options!$B$24,2)),$C180,$E180,$F180,2016,$I180+$J180,1,$H180,$G180*$H180,Options!$B$8)))","v":15.997823255},48.711126153732494,47.27768560494119,2377.1027127466164,2307.15082113275,12703.121000000001,12675.593273450262,48.711126153732494,47.27768560494119,316622.31999926124,307304.95643211773,15451167.632853007,14996480.337362874,82570286.5,82391356.277426705,316622.31999926124,307304.95643211773,6500]
[null,"Female 35-39",36.918118,81.898120000000006,"female",4,{"$f":"HLOOKUP(Calculations!$E$2,'Prevalence Rates'!$C$3:$BC$249,'Prevalence Rates'!$BD181,FALSE)","v":0.15722379603399433},{"$f":"HLOOKUP(Calculations!$E$2,'Population 2016'!$C$3:$BC$249,'Population 2016'!BD181,FALSE)","v":32800},0,{"$f":"HLOOKUP(Results!E$4,Targeting!$C$3:$F$249,Targeting!$G181,FALSE)","v":2227},{"$f":"IF(AND(OR(Calculations!$E$2=\"Orkney Health Board\",Calculations!$E$2=\"Orkney Islands Local Authority\"),$F181=1),0,IF(AND(OR(Calculations!$E$2=\"Shetland Health Board\",Calculations!$E$2=\"Western Isles Health Board\",Calculations!$E$2=\"Shetland Islands Local Authority\",Calculations!$E$2=\"Eilean Siar Local Authority\"),OR($F181=1,$F181=5)),0,new_ci(VALUE(LEFT(Options!$B$24,2)),$C181,$E181,$F181,2016,$I181,1,$H181,$G181*$H181,Options!$B$8)))","v":24.272701251000001},{"$f":"IF(AND(OR(Calculations!$E$2=\"Orkney Health Board\",Calculations!$E$2=\"Orkney Islands Local Authority\"),$F181=1),0,IF(AND(OR(Calculations!$E$2=\"Shetland Health Board\",Calculations!$E$2=\"Western Isles Health Board\",Calculations!$E$2=\"Shetland Islands Local Authority\",Calculations!$E$2=\"Eilean Siar Local Authority\"),OR($F181=1,$F181=5)),0,new_ci(VALUE(LEFT(Options!$B$24,2)),$C181,$E181,$F181,2016,$I181+$J181,1,$H181,$G181*$H181,Options!$B$8)))","v":23.559216995300002},{"$f":"IF(AND(OR(Calculations!$E$2=\"Orkney Health Board\",Calculations!$E$2=\"Orkney Islands Local Authority\"),$F181=1),0,IF(AND(OR(Calculations!$E$2=\"Shetland Health Board\",Calculations!$E$2=\"Western Isles Health Board\",Calculations!$E$2=\"Shetland Islands Local Authority\",Calculations!$E$2=\"Eilean Siar Local Authority\"),OR($F181=1,$F181=5)),0,new_yllv2(VALUE(LEFT(Options!$B$24,2)),$C181,$D181,$E181,$F181,2016,$I181,1,$H181,$G181*$H181,Options!$B$8)))","v":1067.5134495643999},{"$f":"IF(AND(OR(Calculations!$E$2=\"Orkney Health Board\",Calculations!$E$2=\"Orkney Islands Local Authority\"),$F181=1),0,IF(AND(OR(Calculations!$E$2=\"Shetland Health Board\",Calculations!$E$2=\"Western Isles Health Board\",Calculations!$E$2=\"Shetland Islands Local Authority\",Calculations!$E$2=\"Eilean Siar Local Authority\"),OR($F181=1,$F181=5)),0,new_yllv2(VALUE(LEFT(Options!$B$24,2)),$C181,$D181,$E181,$F181,2016,$I181+$J181,1,$H181,$G181*$H181,Options!$B$8)))","v":1036.1344105717001},{"$f":"IF(AND(OR(Calculations!$E$2=\"Orkney Health Board\",Calculations!$E$2=\"Orkney Islands Local Authority\"),$F181=1),0,IF(AND(OR(Calculations!$E$2=\"Shetland Health Board\",Calculations!$E$2=\"Western Isles Health Board\",Calculations!$E$2=\"Shetland Islands Local Authority\",Calculations!$E$2=\"Eilean Siar Local Authority\"),OR($F181=1,$F181=5)),0,hosp_count(VALUE(LEFT(Options!$B$24,2)),$C181,$E181,$F181,2016,$I181,1,$H181,$G181*$H181, Options!$B$8)))","v":4715.32218784},{"$f":"IF(AND(OR(Calculations!$E$2=\"Orkney Health Board\",Calculations!$E$2=\"Orkney Islands Local Authority\"),$F181=1),0,IF(AND(OR(Calculations!$E$2=\"Shetland Health Board\",Calculations!$E$2=\"Western Isles Health Board\",Calculations!$E$2=\"Shetland Islands Local Authority\",Calculations!$E$2=\"Eilean Siar Local Authority\"),OR($F181=1,$F181=5)),0,hosp_count(VALUE(LEFT(Options!$B$24,2)),$C181,$E181,$F181,2016,$I181+$J181,1,$H181,$G181*$H181, Options!$B$8)))","v":4705.1026301402999},{"$f":"IF(AND(OR(Calculations!$E$2=\"Orkney Health Board\",Calculations!$E$2=\"Orkney Islands Local Authority\"),$F181=1),0,IF(AND(OR(Calculations!$E$2=\"Shetland Health Board\",Calculations!$E$2=\"Western Isles Health Board\",Calculations!$E$2=\"Shetland Islands Local Authority\",Calculations!$E$2=\"Eilean Siar Local Authority\"),OR($F181=1,$F181=5)),0,prem_mort(VALUE(LEFT(Options!$B$24,2)),$C181,$E181,$F181,2016,$I181,1,$H181,$G181*$H181,Options!$B$8)))","v":24.272701251000001},{"$f":"IF(AND(OR(Calculations!$E$2=\"Orkney Health Board\",Calculations!$E$2=\"Orkney Islands Local Authority\"),$F181=1),0,IF(AND(OR(Calculations!$E$2=\"Shetland Health Board\",Calculations!$E$2=\"Western Isles Health Board\",Calculations!$E$2=\"Shetland Islands Local Authority\",Calculations!$E$2=\"Eilean Siar Local Authority\"),OR($F181=1,$F181=5)),0,prem_mort(VALUE(LEFT(Options!$B$24,2)),$C181,$E181,$F181,2016,$I181+$J181,1,$H181,$G181*$H181,Options!$B$8)))","v":23.559216995300002},74.002137960365857,71.826881083231712,3254.6141755012191,3158.9463736942075,14375.98228,14344.825091891158,74.002137960365857,71.826881083231712,518014.965722561,502788.16758262197,22782299.228508532,22112624.615859453,100631875.96000001,100413775.64323811,518014.965722561,502788.16758262197,7000]
[null,"Female 40-44",42.077438000000001,82.30744,"female",4,{"$f":"HLOOKUP(Calculations!$E$2,'Prevalence Rates'!$C$3:$BC$249,'Prevalence Rates'!$BD182,FALSE)","v":0.15722379603399433},{"$f":"HLOOKUP(Calculations!$E$2,'Population 2016'!$C$3:$BC$249,'Population 2016'!BD182,FALSE)","v":35805},0,{"$f":"HLOOKUP(Results!E$4,Targeting!$C$3:$F$249,Targeting!$G182,FALSE)","v":2431},{"$f":"IF(AND(OR(Calculations!$E$2=\"Orkney Health Board\",Calculations!$E$2=\"Orkney Islands Local Authority\"),$F182=1),0,IF(AND(OR(Calculations!$E$2=\"Shetland Health Board\",Calculations!$E$2=\"Western Isles Health Board\",Calculations!$E$2=\"Shetland Islands Local Authority\",Calculations!$E$2=\"Eilean Siar Local Authority\"),OR($F182=1,$F182=5)),0,new_ci(VALUE(LEFT(Options!$B$24,2)),$C182,$E182,$F182,2016,$I182,1,$H182,$G182*$H182,Options!$B$8)))","v":41.084326167199997},{"$f":"IF(AND(OR(Calculations!$E$2=\"Orkney Health Board\",Calculations!$E$2=\"Orkney Islands Local Authority\"),$F182=1),0,IF(AND(OR(Calculations!$E$2=\"Shetland Health Board\",Calculations!$E$2=\"Western Isles Health Board\",Calculations!$E$2=\"Shetland Islands Local Authority\",Calculations!$E$2=\"Eilean Siar Local Authority\"),OR($F182=1,$F182=5)),0,new_ci(VALUE(LEFT(Options!$B$24,2)),$C182,$E182,$F182,2016,$I182+$J182,1,$H182,$G182*$H182,Options!$B$8)))","v":39.876967343099999},{"$f":"IF(AND(OR(Calculations!$E$2=\"Orkney Health Board\",Calculations!$E$2=\"Orkney Islands Local Authority\"),$F182=1),0,IF(AND(OR(Calculations!$E$2=\"Shetland Health Board\",Calculations!$E$2=\"Western Isles Health Board\",Calculations!$E$2=\"Shetland Islands Local Authority\",Calculations!$E$2=\"Eilean Siar Local Authority\"),OR($F182=1,$F182=5)),0,new_yllv2(VALUE(LEFT(Options!$B$24,2)),$C182,$D182,$E182,$F182,2016,$I182,1,$H182,$G182*$H182,Options!$B$8)))","v":1611.7381977079001},{"$f":"IF(AND(OR(Calculations!$E$2=\"Orkney Health Board\",Calculations!$E$2=\"Orkney Islands Local Authority\"),$F182=1),0,IF(AND(OR(Calculations!$E$2=\"Shetland Health Board\",Calculations!$E$2=\"Western Isles Health Board\",Calculations!$E$2=\"Shetland Islands Local Authority\",Calculations!$E$2=\"Eilean Siar Local Authority\"),OR($F182=1,$F182=5)),0,new_yllv2(VALUE(LEFT(Options!$B$24,2)),$C182,$D182,$E182,$F182,2016,$I182+$J182,1,$H182,$G182*$H182,Options!$B$8)))","v":1564.3735086237},{"$f":"IF(AND(OR(Calculations!$E$2=\"Orkney Health Board\",Calculations!$E$2=\"Orkney Islands Local Authority\"),$F182=1),0,IF(AND(OR(Calculations!$E$2=\"Shetland Health Board\",Calculations!$E$2=\"Western Isles Health Board\",Calculations!$E$2=\"Shetland Islands Local Authority\",Calculations!$E$2=\"Eilean Siar Local Authority\"),OR($F182=1,$F182=5)),0,hosp_count(VALUE(LEFT(Options!$B$24,2)),$C182,$E182,$F182,2016,$I182,1,$H182,$G182*$H182, Options!$B$8)))","v":5860.6013343570003},{"$f":"IF(AND(OR(Calculations!$E$2=\"Orkney Health Board\",Calculations!$E$2=\"Orkney Islands Local Authority\"),$F182=1),0,IF(AND(OR(Calculations!$E$2=\"Shetland Health Board\",Calculations!$E$2=\"Western Isles Health Board\",Calculations!$E$2=\"Shetland Islands Local Authority\",Calculations!$E$2=\"Eilean Siar Local Authority\"),OR($F182=1,$F182=5)),0,hosp_count(VALUE(LEFT(Options!$B$24,2)),$C182,$E182,$F182,2016,$I182+$J182,1,$H182,$G182*$H182, Options!$B$8)))","v":5847.8997522611999},{"$f":"IF(AND(OR(Calculations!$E$2=\"Orkney Health Board\",Calculations!$E$2=\"Orkney Islands Local Authority\"),$F182=1),0,IF(AND(OR(Calculations!$E$2=\"Shetland Health Board\",Calculations!$E$2=\"Western Isles Health Board\",Calculations!$E$2=\"Shetland Islands Local Authority\",Calculations!$E$2=\"Eilean Siar Local Authority\"),OR($F182=1,$F182=5)),0,prem_mort(VALUE(LEFT(Options!$B$24,2)),$C182,$E182,$F182,2016,$I182,1,$H182,$G182*$H182,Options!$B$8)))","v":41.084326167199997},{"$f":"IF(AND(OR(Calculations!$E$2=\"Orkney Health Board\",Calculations!$E$2=\"Orkney Islands Local Authority\"),$F182=1),0,IF(AND(OR(Calculations!$E$2=\"Shetland Health Board\",Calculations!$E$2=\"Western Isles Health Board\",Calculations!$E$2=\"Shetland Islands Local Authority\",Calculations!$E$2=\"Eilean Siar Local Authority\"),OR($F182=1,$F182=5)),0,prem_mort(VALUE(LEFT(Options!$B$24,2)),$C182,$E182,$F182,2016,$I182+$J182,1,$H182,$G182*$H182,Options!$B$8)))","v":39.876967343099999},114.74466182711912,111.3726221005446,4501.4333129671841,4369.1481877494762,16368.108740000001,16332.634414917469,114.74466182711912,111.3726221005446,803212.63278983382,779608.35470381228,31510033.190770287,30584037.314246334,114576761.18000001,114328440.90442228,803212.63278983382,779608.35470381228,7000]
[null,"Female 45-49",47.025772000000003,82.585769999999997,"female",4,{"$f":"HLOOKUP(Calculations!$E$2,'Prevalence Rates'!$C$3:$BC$249,'Prevalence Rates'!$BD183,FALSE)","v":0.17324561403508773},{"$f":"HLOOKUP(Calculations!$E$2,'Population 2016'!$C$3:$BC$249,'Population 2016'!BD183,FALSE)","v":42189},0,{"$f":"HLOOKUP(Results!E$4,Targeting!$C$3:$F$249,Targeting!$G183,FALSE)","v":2864},{"$f":"IF(AND(OR(Calculations!$E$2=\"Orkney Health Board\",Calculations!$E$2=\"Orkney Islands Local Authority\"),$F183=1),0,IF(AND(OR(Calculations!$E$2=\"Shetland Health Board\",Calculations!$E$2=\"Western Isles Health Board\",Calculations!$E$2=\"Shetland Islands Local Authority\",Calculations!$E$2=\"Eilean Siar Local Authority\"),OR($F183=1,$F183=5)),0,new_ci(VALUE(LEFT(Options!$B$24,2)),$C183,$E183,$F183,2016,$I183,1,$H183,$G183*$H183,Options!$B$8)))","v":73.719677891000003},{"$f":"IF(AND(OR(Calculations!$E$2=\"Orkney Health Board\",Calculations!$E$2=\"Orkney Islands Local Authority\"),$F183=1),0,IF(AND(OR(Calculations!$E$2=\"Shetland Health Board\",Calculations!$E$2=\"Western Isles Health Board\",Calculations!$E$2=\"Shetland Islands Local Authority\",Calculations!$E$2=\"Eilean Siar Local Authority\"),OR($F183=1,$F183=5)),0,new_ci(VALUE(LEFT(Options!$B$24,2)),$C183,$E183,$F183,2016,$I183+$J183,1,$H183,$G183*$H183,Options!$B$8)))","v":71.566369753399997},{"$f":"IF(AND(OR(Calculations!$E$2=\"Orkney Health Board\",Calculations!$E$2=\"Orkney Islands Local Authority\"),$F183=1),0,IF(AND(OR(Calculations!$E$2=\"Shetland Health Board\",Calculations!$E$2=\"Western Isles Health Board\",Calculations!$E$2=\"Shetland Islands Local Authority\",Calculations!$E$2=\"Eilean Siar Local Authority\"),OR($F183=1,$F183=5)),0,new_yllv2(VALUE(LEFT(Options!$B$24,2)),$C183,$D183,$E183,$F183,2016,$I183,1,$H183,$G183*$H183,Options!$B$8)))","v":2547.7519204736},{"$f":"IF(AND(OR(Calculations!$E$2=\"Orkney Health Board\",Calculations!$E$2=\"Orkney Islands Local Authority\"),$F183=1),0,IF(AND(OR(Calculations!$E$2=\"Shetland Health Board\",Calculations!$E$2=\"Western Isles Health Board\",Calculations!$E$2=\"Shetland Islands Local Authority\",Calculations!$E$2=\"Eilean Siar Local Authority\"),OR($F183=1,$F183=5)),0,new_yllv2(VALUE(LEFT(Options!$B$24,2)),$C183,$D183,$E183,$F183,2016,$I183+$J183,1,$H183,$G183*$H183,Options!$B$8)))","v":2473.3335955448001},{"$f":"IF(AND(OR(Calculations!$E$2=\"Orkney Health Board\",Calculations!$E$2=\"Orkney Islands Local Authority\"),$F183=1),0,IF(AND(OR(Calculations!$E$2=\"Shetland Health Board\",Calculations!$E$2=\"Western Isles Health Board\",Calculations!$E$2=\"Shetland Islands Local Authority\",Calculations!$E$2=\"Eilean Siar Local Authority\"),OR($F183=1,$F183=5)),0,hosp_count(VALUE(LEFT(Options!$B$24,2)),$C183,$E183,$F183,2016,$I183,1,$H183,$G183*$H183, Options!$B$8)))","v":7820.8484750382004},{"$f":"IF(AND(OR(Calculations!$E$2=\"Orkney Health Board\",Calculations!$E$2=\"Orkney Islands Local Authority\"),$F183=1),0,IF(AND(OR(Calculations!$E$2=\"Shetland Health Board\",Calculations!$E$2=\"Western Isles Health Board\",Calculations!$E$2=\"Shetland Islands Local Authority\",Calculations!$E$2=\"Eilean Siar Local Authority\"),OR($F183=1,$F183=5)),0,hosp_count(VALUE(LEFT(Options!$B$24,2)),$C183,$E183,$F183,2016,$I183+$J183,1,$H183,$G183*$H183, Options!$B$8)))","v":7803.9065284430999},{"$f":"IF(AND(OR(Calculations!$E$2=\"Orkney Health Board\",Calculations!$E$2=\"Orkney Islands Local Authority\"),$F183=1),0,IF(AND(OR(Calculations!$E$2=\"Shetland Health Board\",Calculations!$E$2=\"Western Isles Health Board\",Calculations!$E$2=\"Shetland Islands Local Authority\",Calculations!$E$2=\"Eilean Siar Local Authority\"),OR($F183=1,$F183=5)),0,prem_mort(VALUE(LEFT(Options!$B$24,2)),$C183,$E183,$F183,2016,$I183,1,$H183,$G183*$H183,Options!$B$8)))","v":73.719677891000003},{"$f":"IF(AND(OR(Calculations!$E$2=\"Orkney Health Board\",Calculations!$E$2=\"Orkney Islands Local Authority\"),$F183=1),0,IF(AND(OR(Calculations!$E$2=\"Shetland Health Board\",Calculations!$E$2=\"Western Isles Health Board\",Calculations!$E$2=\"Shetland Islands Local Authority\",Calculations!$E$2=\"Eilean Siar Local Authority\"),OR($F183=1,$F183=5)),0,prem_mort(VALUE(LEFT(Options!$B$24,2)),$C183,$E183,$F183,2016,$I183+$J183,1,$H183,$G183*$H183,Options!$B$8)))","v":71.566369753399997},174.73672732465809,169.6327709910166,6038.9009468667191,5862.5082261840771,18537.648380000002,18497.491119588281,174.73672732465809,169.6327709910166,1223157.0912726067,1187429.3969371163,42272306.628067032,41037557.583288543,129763538.66000001,129482437.83711797,1223157.0912726067,1187429.3969371163,7000]
[null,"Female 50-54",51.990825999999998,82.980829999999997,"female",4,{"$f":"HLOOKUP(Calculations!$E$2,'Prevalence Rates'!$C$3:$BC$249,'Prevalence Rates'!$BD184,FALSE)","v":0.17324561403508773},{"$f":"HLOOKUP(Calculations!$E$2,'Population 2016'!$C$3:$BC$249,'Population 2016'!BD184,FALSE)","v":44075},0,{"$f":"HLOOKUP(Results!E$4,Targeting!$C$3:$F$249,Targeting!$G184,FALSE)","v":2992},{"$f":"IF(AND(OR(Calculations!$E$2=\"Orkney Health Board\",Calculations!$E$2=\"Orkney Islands Local Authority\"),$F184=1),0,IF(AND(OR(Calculations!$E$2=\"Shetland Health Board\",Calculations!$E$2=\"Western Isles Health Board\",Calculations!$E$2=\"Shetland Islands Local Authority\",Calculations!$E$2=\"Eilean Siar Local Authority\"),OR($F184=1,$F184=5)),0,new_ci(VALUE(LEFT(Options!$B$24,2)),$C184,$E184,$F184,2016,$I184,1,$H184,$G184*$H184,Options!$B$8)))","v":117.4291375879},{"$f":"IF(AND(OR(Calculations!$E$2=\"Orkney Health Board\",Calculations!$E$2=\"Orkney Islands Local Authority\"),$F184=1),0,IF(AND(OR(Calculations!$E$2=\"Shetland Health Board\",Calculations!$E$2=\"Western Isles Health Board\",Calculations!$E$2=\"Shetland Islands Local Authority\",Calculations!$E$2=\"Eilean Siar Local Authority\"),OR($F184=1,$F184=5)),0,new_ci(VALUE(LEFT(Options!$B$24,2)),$C184,$E184,$F184,2016,$I184+$J184,1,$H184,$G184*$H184,Options!$B$8)))","v":114.0009144599},{"$f":"IF(AND(OR(Calculations!$E$2=\"Orkney Health Board\",Calculations!$E$2=\"Orkney Islands Local Authority\"),$F184=1),0,IF(AND(OR(Calculations!$E$2=\"Shetland Health Board\",Calculations!$E$2=\"Western Isles Health Board\",Calculations!$E$2=\"Shetland Islands Local Authority\",Calculations!$E$2=\"Eilean Siar Local Authority\"),OR($F184=1,$F184=5)),0,new_yllv2(VALUE(LEFT(Options!$B$24,2)),$C184,$D184,$E184,$F184,2016,$I184,1,$H184,$G184*$H184,Options!$B$8)))","v":3521.7003059776998},{"$f":"IF(AND(OR(Calculations!$E$2=\"Orkney Health Board\",Calculations!$E$2=\"Orkney Islands Local Authority\"),$F184=1),0,IF(AND(OR(Calculations!$E$2=\"Shetland Health Board\",Calculations!$E$2=\"Western Isles Health Board\",Calculations!$E$2=\"Shetland Islands Local Authority\",Calculations!$E$2=\"Eilean Siar Local Authority\"),OR($F184=1,$F184=5)),0,new_yllv2(VALUE(LEFT(Options!$B$24,2)),$C184,$D184,$E184,$F184,2016,$I184+$J184,1,$H184,$G184*$H184,Options!$B$8)))","v":3418.8878806561002},{"$f":"IF(AND(OR(Calculations!$E$2=\"Orkney Health Board\",Calculations!$E$2=\"Orkney Islands Local Authority\"),$F184=1),0,IF(AND(OR(Calculations!$E$2=\"Shetland Health Board\",Calculations!$E$2=\"Western Isles Health Board\",Calculations!$E$2=\"Shetland Islands Local Authority\",Calculations!$E$2=\"Eilean Siar Local Authority\"),OR($F184=1,$F184=5)),0,hosp_count(VALUE(LEFT(Options!$B$24,2)),$C184,$E184,$F184,2016,$I184,1,$H184,$G184*$H184, Options!$B$8)))","v":9257.3301240100009},{"$f":"IF(AND(OR(Calculations!$E$2=\"Orkney Health Board\",Calculations!$E$2=\"Orkney Islands Local Authority\"),$F184=1),0,IF(AND(OR(Calculations!$E$2=\"Shetland Health Board\",Calculations!$E$2=\"Western Isles Health Board\",Calculations!$E$2=\"Shetland Islands Local Authority\",Calculations!$E$2=\"Eilean Siar Local Authority\"),OR($F184=1,$F184=5)),0,hosp_count(VALUE(LEFT(Options!$B$24,2)),$C184,$E184,$F184,2016,$I184+$J184,1,$H184,$G184*$H184, Options!$B$8)))","v":9237.2766014899007},{"$f":"IF(AND(OR(Calculations!$E$2=\"Orkney Health Board\",Calculations!$E$2=\"Orkney Islands Local Authority\"),$F184=1),0,IF(AND(OR(Calculations!$E$2=\"Shetland Health Board\",Calculations!$E$2=\"Western Isles Health Board\",Calculations!$E$2=\"Shetland Islands Local Authority\",Calculations!$E$2=\"Eilean Siar Local Authority\"),OR($F184=1,$F184=5)),0,prem_mort(VALUE(LEFT(Options!$B$24,2)),$C184,$E184,$F184,2016,$I184,1,$H184,$G184*$H184,Options!$B$8)))","v":117.4291375879},{"$f":"IF(AND(OR(Calculations!$E$2=\"Orkney Health Board\",Calculations!$E$2=\"Orkney Islands Local Authority\"),$F184=1),0,IF(AND(OR(Calculations!$E$2=\"Shetland Health Board\",Calculations!$E$2=\"Western Isles Health Board\",Calculations!$E$2=\"Shetland Islands Local Authority\",Calculations!$E$2=\"Eilean Siar Local Authority\"),OR($F184=1,$F184=5)),0,prem_mort(VALUE(LEFT(Options!$B$24,2)),$C184,$E184,$F184,2016,$I184+$J184,1,$H184,$G184*$H184,Options!$B$8)))","v":114.0009144599},266.43026111832103,258.65210314214409,7990.2445966595569,7756.9776078414061,21003.585080000004,20958.086446942485,266.43026111832103,258.65210314214409,1865011.8278282471,1810564.7219950086,55931712.1766169,54298843.254889846,147025095.56000003,146706605.12859741,1865011.8278282471,1810564.7219950086,7000]
[null,"Female 55-59",56.953040999999999,83.473039999999997,"female",4,{"$f":"HLOOKUP(Calculations!$E$2,'Prevalence Rates'!$C$3:$BC$249,'Prevalence Rates'!$BD185,FALSE)","v":0.43307086614173229},{"$f":"HLOOKUP(Calculations!$E$2,'Population 2016'!$C$3:$BC$249,'Population 2016'!BD185,FALSE)","v":39814},0,{"$f":"HLOOKUP(Results!E$4,Targeting!$C$3:$F$249,Targeting!$G185,FALSE)","v":2703},{"$f":"IF(AND(OR(Calculations!$E$2=\"Orkney Health Board\",Calculations!$E$2=\"Orkney Islands Local Authority\"),$F185=1),0,IF(AND(OR(Calculations!$E$2=\"Shetland Health Board\",Calculations!$E$2=\"Western Isles Health Board\",Calculations!$E$2=\"Shetland Islands Local Authority\",Calculations!$E$2=\"Eilean Siar Local Authority\"),OR($F185=1,$F185=5)),0,new_ci(VALUE(LEFT(Options!$B$24,2)),$C185,$E185,$F185,2016,$I185,1,$H185,$G185*$H185,Options!$B$8)))","v":161.6593150537},{"$f":"IF(AND(OR(Calculations!$E$2=\"Orkney Health Board\",Calculations!$E$2=\"Orkney Islands Local Authority\"),$F185=1),0,IF(AND(OR(Calculations!$E$2=\"Shetland Health Board\",Calculations!$E$2=\"Western Isles Health Board\",Calculations!$E$2=\"Shetland Islands Local Authority\",Calculations!$E$2=\"Eilean Siar Local Authority\"),OR($F185=1,$F185=5)),0,new_ci(VALUE(LEFT(Options!$B$24,2)),$C185,$E185,$F185,2016,$I185+$J185,1,$H185,$G185*$H185,Options!$B$8)))","v":157.33226372499999},{"$f":"IF(AND(OR(Calculations!$E$2=\"Orkney Health Board\",Calculations!$E$2=\"Orkney Islands Local Authority\"),$F185=1),0,IF(AND(OR(Calculations!$E$2=\"Shetland Health Board\",Calculations!$E$2=\"Western Isles Health Board\",Calculations!$E$2=\"Shetland Islands Local Authority\",Calculations!$E$2=\"Eilean Siar Local Authority\"),OR($F185=1,$F185=5)),0,new_yllv2(VALUE(LEFT(Options!$B$24,2)),$C185,$D185,$E185,$F185,2016,$I185,1,$H185,$G185*$H185,Options!$B$8)))","v":4125.5455585111004},{"$f":"IF(AND(OR(Calculations!$E$2=\"Orkney Health Board\",Calculations!$E$2=\"Orkney Islands Local Authority\"),$F185=1),0,IF(AND(OR(Calculations!$E$2=\"Shetland Health Board\",Calculations!$E$2=\"Western Isles Health Board\",Calculations!$E$2=\"Shetland Islands Local Authority\",Calculations!$E$2=\"Eilean Siar Local Authority\"),OR($F185=1,$F185=5)),0,new_yllv2(VALUE(LEFT(Options!$B$24,2)),$C185,$D185,$E185,$F185,2016,$I185+$J185,1,$H185,$G185*$H185,Options!$B$8)))","v":4015.1192129297001},{"$f":"IF(AND(OR(Calculations!$E$2=\"Orkney Health Board\",Calculations!$E$2=\"Orkney Islands Local Authority\"),$F185=1),0,IF(AND(OR(Calculations!$E$2=\"Shetland Health Board\",Calculations!$E$2=\"Western Isles Health Board\",Calculations!$E$2=\"Shetland Islands Local Authority\",Calculations!$E$2=\"Eilean Siar Local Authority\"),OR($F185=1,$F185=5)),0,hosp_count(VALUE(LEFT(Options!$B$24,2)),$C185,$E185,$F185,2016,$I185,1,$H185,$G185*$H185, Options!$B$8)))","v":9474.0793686367997},{"$f":"IF(AND(OR(Calculations!$E$2=\"Orkney Health Board\",Calculations!$E$2=\"Orkney Islands Local Authority\"),$F185=1),0,IF(AND(OR(Calculations!$E$2=\"Shetland Health Board\",Calculations!$E$2=\"Western Isles Health Board\",Calculations!$E$2=\"Shetland Islands Local Authority\",Calculations!$E$2=\"Eilean Siar Local Authority\"),OR($F185=1,$F185=5)),0,hosp_count(VALUE(LEFT(Options!$B$24,2)),$C185,$E185,$F185,2016,$I185+$J185,1,$H185,$G185*$H185, Options!$B$8)))","v":9453.6601232231005},{"$f":"IF(AND(OR(Calculations!$E$2=\"Orkney Health Board\",Calculations!$E$2=\"Orkney Islands Local Authority\"),$F185=1),0,IF(AND(OR(Calculations!$E$2=\"Shetland Health Board\",Calculations!$E$2=\"Western Isles Health Board\",Calculations!$E$2=\"Shetland Islands Local Authority\",Calculations!$E$2=\"Eilean Siar Local Authority\"),OR($F185=1,$F185=5)),0,prem_mort(VALUE(LEFT(Options!$B$24,2)),$C185,$E185,$F185,2016,$I185,1,$H185,$G185*$H185,Options!$B$8)))","v":161.6593150537},{"$f":"IF(AND(OR(Calculations!$E$2=\"Orkney Health Board\",Calculations!$E$2=\"Orkney Islands Local Authority\"),$F185=1),0,IF(AND(OR(Calculations!$E$2=\"Shetland Health Board\",Calculations!$E$2=\"Western Isles Health Board\",Calculations!$E$2=\"Shetland Islands Local Authority\",Calculations!$E$2=\"Eilean Siar Local Authority\"),OR($F185=1,$F185=5)),0,prem_mort(VALUE(LEFT(Options!$B$24,2)),$C185,$E185,$F185,2016,$I185+$J185,1,$H185,$G185*$H185,Options!$B$8)))","v":157.33226372499999},406.03635669287189,395.1681914025217,10362.047416765712,10084.691849424073,23795.849119999999,23744.562523793393,406.03635669287189,395.1681914025217,2639236.3185036671,2568593.2441163911,67353308.208977133,65550497.021256469,154673019.28,154339656.40465707,2639236.3185036671,2568593.2441163911,6500]
[null,"Female 60-64",61.947387999999997,84.167389999999997,"female",4,{"$f":"HLOOKUP(Calculations!$E$2,'Prevalence Rates'!$C$3:$BC$249,'Prevalence Rates'!$BD186,FALSE)","v":0.43307086614173229},{"$f":"HLOOKUP(Calculations!$E$2,'Population 2016'!$C$3:$BC$249,'Population 2016'!BD186,FALSE)","v":35061},0,{"$f":"HLOOKUP(Results!E$4,Targeting!$C$3:$F$249,Targeting!$G186,FALSE)","v":2380},{"$f":"IF(AND(OR(Calculations!$E$2=\"Orkney Health Board\",Calculations!$E$2=\"Orkney Islands Local Authority\"),$F186=1),0,IF(AND(OR(Calculations!$E$2=\"Shetland Health Board\",Calculations!$E$2=\"Western Isles Health Board\",Calculations!$E$2=\"Shetland Islands Local Authority\",Calculations!$E$2=\"Eilean Siar Local Authority\"),OR($F186=1,$F186=5)),0,new_ci(VALUE(LEFT(Options!$B$24,2)),$C186,$E186,$F186,2016,$I186,1,$H186,$G186*$H186,Options!$B$8)))","v":217.4676680524},{"$f":"IF(AND(OR(Calculations!$E$2=\"Orkney Health Board\",Calculations!$E$2=\"Orkney Islands Local Authority\"),$F186=1),0,IF(AND(OR(Calculations!$E$2=\"Shetland Health Board\",Calculations!$E$2=\"Western Isles Health Board\",Calculations!$E$2=\"Shetland Islands Local Authority\",Calculations!$E$2=\"Eilean Siar Local Authority\"),OR($F186=1,$F186=5)),0,new_ci(VALUE(LEFT(Options!$B$24,2)),$C186,$E186,$F186,2016,$I186+$J186,1,$H186,$G186*$H186,Options!$B$8)))","v":211.6534982224},{"$f":"IF(AND(OR(Calculations!$E$2=\"Orkney Health Board\",Calculations!$E$2=\"Orkney Islands Local Authority\"),$F186=1),0,IF(AND(OR(Calculations!$E$2=\"Shetland Health Board\",Calculations!$E$2=\"Western Isles Health Board\",Calculations!$E$2=\"Shetland Islands Local Authority\",Calculations!$E$2=\"Eilean Siar Local Authority\"),OR($F186=1,$F186=5)),0,new_yllv2(VALUE(LEFT(Options!$B$24,2)),$C186,$D186,$E186,$F186,2016,$I186,1,$H186,$G186*$H186,Options!$B$8)))","v":4614.6643510073},{"$f":"IF(AND(OR(Calculations!$E$2=\"Orkney Health Board\",Calculations!$E$2=\"Orkney Islands Local Authority\"),$F186=1),0,IF(AND(OR(Calculations!$E$2=\"Shetland Health Board\",Calculations!$E$2=\"Western Isles Health Board\",Calculations!$E$2=\"Shetland Islands Local Authority\",Calculations!$E$2=\"Eilean Siar Local Authority\"),OR($F186=1,$F186=5)),0,new_yllv2(VALUE(LEFT(Options!$B$24,2)),$C186,$D186,$E186,$F186,2016,$I186+$J186,1,$H186,$G186*$H186,Options!$B$8)))","v":4491.2876555863004},{"$f":"IF(AND(OR(Calculations!$E$2=\"Orkney Health Board\",Calculations!$E$2=\"Orkney Islands Local Authority\"),$F186=1),0,IF(AND(OR(Calculations!$E$2=\"Shetland Health Board\",Calculations!$E$2=\"Western Isles Health Board\",Calculations!$E$2=\"Shetland Islands Local Authority\",Calculations!$E$2=\"Eilean Siar Local Authority\"),OR($F186=1,$F186=5)),0,hosp_count(VALUE(LEFT(Options!$B$24,2)),$C186,$E186,$F186,2016,$I186,1,$H186,$G186*$H186, Options!$B$8)))","v":9459.8509845723001},{"$f":"IF(AND(OR(Calculations!$E$2=\"Orkney Health Board\",Calculations!$E$2=\"Orkney Islands Local Authority\"),$F186=1),0,IF(AND(OR(Calculations!$E$2=\"Shetland Health Board\",Calculations!$E$2=\"Western Isles Health Board\",Calculations!$E$2=\"Shetland Islands Local Authority\",Calculations!$E$2=\"Eilean Siar Local Authority\"),OR($F186=1,$F186=5)),0,hosp_count(VALUE(LEFT(Options!$B$24,2)),$C186,$E186,$F186,2016,$I186+$J186,1,$H186,$G186*$H186, Options!$B$8)))","v":9439.4651080409003},{"$f":"IF(AND(OR(Calculations!$E$2=\"Orkney Health Board\",Calculations!$E$2=\"Orkney Islands Local Authority\"),$F186=1),0,IF(AND(OR(Calculations!$E$2=\"Shetland Health Board\",Calculations!$E$2=\"Western Isles Health Board\",Calculations!$E$2=\"Shetland Islands Local Authority\",Calculations!$E$2=\"Eilean Siar Local Authority\"),OR($F186=1,$F186=5)),0,prem_mort(VALUE(LEFT(Options!$B$24,2)),$C186,$E186,$F186,2016,$I186,1,$H186,$G186*$H186,Options!$B$8)))","v":217.4676680524},{"$f":"IF(AND(OR(Calculations!$E$2=\"Orkney Health Board\",Calculations!$E$2=\"Orkney Islands Local Authority\"),$F186=1),0,IF(AND(OR(Calculations!$E$2=\"Shetland Health Board\",Calculations!$E$2=\"Western Isles Health Board\",Calculations!$E$2=\"Shetland Islands Local Authority\",Calculations!$E$2=\"Eilean Siar Local Authority\"),OR($F186=1,$F186=5)),0,prem_mort(VALUE(LEFT(Options!$B$24,2)),$C186,$E186,$F186,2016,$I186+$J186,1,$H186,$G186*$H186,Options!$B$8)))","v":211.6534982224},620.25517826759085,603.67216628846859,13161.816123348735,12809.924575985569,26981.121429999999,26922.977405210633,620.25517826759085,603.67216628846859,3721531.0696055451,3622032.9977308116,78970896.740092412,76859547.45591341,161886728.57999998,161537864.4312638,3721531.0696055451,3622032.9977308116,6000]
[null,"Female 65-69",67.063927000000007,85.193929999999995,"female",4,{"$f":"HLOOKUP(Calculations!$E$2,'Prevalence Rates'!$C$3:$BC$249,'Prevalence Rates'!$BD187,FALSE)","v":0},{"$f":"HLOOKUP(Calculations!$E$2,'Population 2016'!$C$3:$BC$249,'Population 2016'!BD187,FALSE)","v":34888},0,{"$f":"HLOOKUP(Results!E$4,Targeting!$C$3:$F$249,Targeting!$G187,FALSE)","v":0},{"$f":"IF(AND(OR(Calculations!$E$2=\"Orkney Health Board\",Calculations!$E$2=\"Orkney Islands Local Authority\"),$F187=1),0,IF(AND(OR(Calculations!$E$2=\"Shetland Health Board\",Calculations!$E$2=\"Western Isles Health Board\",Calculations!$E$2=\"Shetland Islands Local Authority\",Calculations!$E$2=\"Eilean Siar Local Authority\"),OR($F187=1,$F187=5)),0,new_ci(VALUE(LEFT(Options!$B$24,2)),$C187,$E187,$F187,2016,$I187,1,$H187,$G187*$H187,Options!$B$8)))","v":333.8430033624},{"$f":"IF(AND(OR(Calculations!$E$2=\"Orkney Health Board\",Calculations!$E$2=\"Orkney Islands Local Authority\"),$F187=1),0,IF(AND(OR(Calculations!$E$2=\"Shetland Health Board\",Calculations!$E$2=\"Western Isles Health Board\",Calculations!$E$2=\"Shetland Islands Local Authority\",Calculations!$E$2=\"Eilean Siar Local Authority\"),OR($F187=1,$F187=5)),0,new_ci(VALUE(LEFT(Options!$B$24,2)),$C187,$E187,$F187,2016,$I187+$J187,1,$H187,$G187*$H187,Options!$B$8)))","v":333.8430033624},{"$f":"IF(AND(OR(Calculations!$E$2=\"Orkney Health Board\",Calculations!$E$2=\"Orkney Islands Local Authority\"),$F187=1),0,IF(AND(OR(Calculations!$E$2=\"Shetland Health Board\",Calculations!$E$2=\"Western Isles Health Board\",Calculations!$E$2=\"Shetland Islands Local Authority\",Calculations!$E$2=\"Eilean Siar Local Authority\"),OR($F187=1,$F187=5)),0,new_yllv2(VALUE(LEFT(Options!$B$24,2)),$C187,$D187,$E187,$F187,2016,$I187,1,$H187,$G187*$H187,Options!$B$8)))","v":5718.7316491269003},{"$f":"IF(AND(OR(Calculations!$E$2=\"Orkney Health Board\",Calculations!$E$2=\"Orkney Islands Local Authority\"),$F187=1),0,IF(AND(OR(Calculations!$E$2=\"Shetland Health Board\",Calculations!$E$2=\"Western Isles Health Board\",Calculations!$E$2=\"Shetland Islands Local Authority\",Calculations!$E$2=\"Eilean Siar Local Authority\"),OR($F187=1,$F187=5)),0,new_yllv2(VALUE(LEFT(Options!$B$24,2)),$C187,$D187,$E187,$F187,2016,$I187+$J187,1,$H187,$G187*$H187,Options!$B$8)))","v":5718.7316491269003},{"$f":"IF(AND(OR(Calculations!$E$2=\"Orkney Health Board\",Calculations!$E$2=\"Orkney Islands Local Authority\"),$F187=1),0,IF(AND(OR(Calculations!$E$2=\"Shetland Health Board\",Calculations!$E$2=\"Western Isles Health Board\",Calculations!$E$2=\"Shetland Islands Local Authority\",Calculations!$E$2=\"Eilean Siar Local Authority\"),OR($F187=1,$F187=5)),0,hosp_count(VALUE(LEFT(Options!$B$24,2)),$C187,$E187,$F187,2016,$I187,1,$H187,$G187*$H187, Options!$B$8)))","v":10706.0606319744},{"$f":"IF(AND(OR(Calculations!$E$2=\"Orkney Health Board\",Calculations!$E$2=\"Orkney Islands Local Authority\"),$F187=1),0,IF(AND(OR(Calculations!$E$2=\"Shetland Health Board\",Calculations!$E$2=\"Western Isles Health Board\",Calculations!$E$2=\"Shetland Islands Local Authority\",Calculations!$E$2=\"Eilean Siar Local Authority\"),OR($F187=1,$F187=5)),0,hosp_count(VALUE(LEFT(Options!$B$24,2)),$C187,$E187,$F187,2016,$I187+$J187,1,$H187,$G187*$H187, Options!$B$8)))","v":10706.0606319744},{"$f":"IF(AND(OR(Calculations!$E$2=\"Orkney Health Board\",Calculations!$E$2=\"Orkney Islands Local Authority\"),$F187=1),0,IF(AND(OR(Calculations!$E$2=\"Shetland Health Board\",Calculations!$E$2=\"Western Isles Health Board\",Calculations!$E$2=\"Shetland Islands Local Authority\",Calculations!$E$2=\"Eilean Siar Local Authority\"),OR($F187=1,$F187=5)),0,prem_mort(VALUE(LEFT(Options!$B$24,2)),$C187,$E187,$F187,2016,$I187,1,$H187,$G187*$H187,Options!$B$8)))","v":333.8430033624},{"$f":"IF(AND(OR(Calculations!$E$2=\"Orkney Health Board\",Calculations!$E$2=\"Orkney Islands Local Authority\"),$F187=1),0,IF(AND(OR(Calculations!$E$2=\"Shetland Health Board\",Calculations!$E$2=\"Western Isles Health Board\",Calculations!$E$2=\"Shetland Islands Local Authority\",Calculations!$E$2=\"Eilean Siar Local Authority\"),OR($F187=1,$F187=5)),0,prem_mort(VALUE(LEFT(Options!$B$24,2)),$C187,$E187,$F187,2016,$I187+$J187,1,$H187,$G187*$H187,Options!$B$8)))","v":333.8430033624},956.89922999999999,956.89922999999999,16391.686680597628,16391.686680597628,30686.942880000002,30686.942880000002,956.89922999999999,956.89922999999999,5262945.7649999997,5262945.7649999997,90154276.743286952,90154276.743286952,168778185.84,168778185.84,5262945.7649999997,5262945.7649999997,5500]
[null,"Female 70-74",71.938164,86.248159999999999,"female",4,{"$f":"HLOOKUP(Calculations!$E$2,'Prevalence Rates'!$C$3:$BC$249,'Prevalence Rates'!$BD188,FALSE)","v":0},{"$f":"HLOOKUP(Calculations!$E$2,'Population 2016'!$C$3:$BC$249,'Population 2016'!BD188,FALSE)","v":26320},0,{"$f":"HLOOKUP(Results!E$4,Targeting!$C$3:$F$249,Targeting!$G188,FALSE)","v":0},{"$f":"IF(AND(OR(Calculations!$E$2=\"Orkney Health Board\",Calculations!$E$2=\"Orkney Islands Local Authority\"),$F188=1),0,IF(AND(OR(Calculations!$E$2=\"Shetland Health Board\",Calculations!$E$2=\"Western Isles Health Board\",Calculations!$E$2=\"Shetland Islands Local Authority\",Calculations!$E$2=\"Eilean Siar Local Authority\"),OR($F188=1,$F188=5)),0,new_ci(VALUE(LEFT(Options!$B$24,2)),$C188,$E188,$F188,2016,$I188,1,$H188,$G188*$H188,Options!$B$8)))","v":380.30257815200002},{"$f":"IF(AND(OR(Calculations!$E$2=\"Orkney Health Board\",Calculations!$E$2=\"Orkney Islands Local Authority\"),$F188=1),0,IF(AND(OR(Calculations!$E$2=\"Shetland Health Board\",Calculations!$E$2=\"Western Isles Health Board\",Calculations!$E$2=\"Shetland Islands Local Authority\",Calculations!$E$2=\"Eilean Siar Local Authority\"),OR($F188=1,$F188=5)),0,new_ci(VALUE(LEFT(Options!$B$24,2)),$C188,$E188,$F188,2016,$I188+$J188,1,$H188,$G188*$H188,Options!$B$8)))","v":380.30257815200002},{"$f":"IF(AND(OR(Calculations!$E$2=\"Orkney Health Board\",Calculations!$E$2=\"Orkney Islands Local Authority\"),$F188=1),0,IF(AND(OR(Calculations!$E$2=\"Shetland Health Board\",Calculations!$E$2=\"Western Isles Health Board\",Calculations!$E$2=\"Shetland Islands Local Authority\",Calculations!$E$2=\"Eilean Siar Local Authority\"),OR($F188=1,$F188=5)),0,new_yllv2(VALUE(LEFT(Options!$B$24,2)),$C188,$D188,$E188,$F188,2016,$I188,1,$H188,$G188*$H188,Options!$B$8)))","v":5061.8257939927998},{"$f":"IF(AND(OR(Calculations!$E$2=\"Orkney Health Board\",Calculations!$E$2=\"Orkney Islands Local Authority\"),$F188=1),0,IF(AND(OR(Calculations!$E$2=\"Shetland Health Board\",Calculations!$E$2=\"Western Isles Health Board\",Calculations!$E$2=\"Shetland Islands Local Authority\",Calculations!$E$2=\"Eilean Siar Local Authority\"),OR($F188=1,$F188=5)),0,new_yllv2(VALUE(LEFT(Options!$B$24,2)),$C188,$D188,$E188,$F188,2016,$I188+$J188,1,$H188,$G188*$H188,Options!$B$8)))","v":5061.8257939927998},{"$f":"IF(AND(OR(Calculations!$E$2=\"Orkney Health Board\",Calculations!$E$2=\"Orkney Islands Local Authority\"),$F188=1),0,IF(AND(OR(Calculations!$E$2=\"Shetland Health Board\",Calculations!$E$2=\"Western Isles Health Board\",Calculations!$E$2=\"Shetland Islands Local Authority\",Calculations!$E$2=\"Eilean Siar Local Authority\"),OR($F188=1,$F188=5)),0,hosp_count(VALUE(LEFT(Options!$B$24,2)),$C188,$E188,$F188,2016,$I188,1,$H188,$G188*$H188, Options!$B$8)))","v":9130.3243339839992},{"$f":"IF(AND(OR(Calculations!$E$2=\"Orkney Health Board\",Calculations!$E$2=\"Orkney Islands Local Authority\"),$F188=1),0,IF(AND(OR(Calculations!$E$2=\"Shetland Health Board\",Calculations!$E$2=\"Western Isles Health Board\",Calculations!$E$2=\"Shetland Islands Local Authority\",Calculations!$E$2=\"Eilean Siar Local Authority\"),OR($F188=1,$F188=5)),0,hosp_count(VALUE(LEFT(Options!$B$24,2)),$C188,$E188,$F188,2016,$I188+$J188,1,$H188,$G188*$H188, Options!$B$8)))","v":9130.3243339839992},{"$f":"IF(AND(OR(Calculations!$E$2=\"Orkney Health Board\",Calculations!$E$2=\"Orkney Islands Local Authority\"),$F188=1),0,IF(AND(OR(Calculations!$E$2=\"Shetland Health Board\",Calculations!$E$2=\"Western Isles Health Board\",Calculations!$E$2=\"Shetland Islands Local Authority\",Calculations!$E$2=\"Eilean Siar Local Authority\"),OR($F188=1,$F188=5)),0,prem_mort(VALUE(LEFT(Options!$B$24,2)),$C188,$E188,$F188,2016,$I188,1,$H188,$G188*$H188,Options!$B$8)))","v":380.30257815200002},{"$f":"IF(AND(OR(Calculations!$E$2=\"Orkney Health Board\",Calculations!$E$2=\"Orkney Islands Local Authority\"),$F188=1),0,IF(AND(OR(Calculations!$E$2=\"Shetland Health Board\",Calculations!$E$2=\"Western Isles Health Board\",Calculations!$E$2=\"Shetland Islands Local Authority\",Calculations!$E$2=\"Eilean Siar Local Authority\"),OR($F188=1,$F188=5)),0,prem_mort(VALUE(LEFT(Options!$B$24,2)),$C188,$E188,$F188,2016,$I188+$J188,1,$H188,$G188*$H188,Options!$B$8)))","v":380.30257815200002},1444.9186099999999,1444.9186099999999,19231.860919425533,19231.860919425533,34689.682119999998,34689.682119999998,1444.9186099999999,1444.9186099999999,7224593.0499999998,7224593.0499999998,{"$f":"U188*$AI188","v":96159304.597127661},{"$f":"V188*$AI188","v":96159304.597127661},{"$f":"W188*$AI188","v":173448410.59999999},{"$f":"X188*$AI188","v":173448410.59999999},{"$f":"Y188*$AI188","v":7224593.0499999998},{"$f":"Z188*$AI188","v":7224593.0499999998},5000]
[null,"Female 75-79",76.942824999999999,87.812830000000005,"female",4,{"$f":"HLOOKUP(Calculations!$E$2,'Prevalence Rates'!$C$3:$BC$249,'Prevalence Rates'!$BD189,FALSE)","v":0},{"$f":"HLOOKUP(Calculations!$E$2,'Population 2016'!$C$3:$BC$249,'Population 2016'!BD189,FALSE)","v":20708},0,{"$f":"HLOOKUP(Results!E$4,Targeting!$C$3:$F$249,Targeting!$G189,FALSE)","v":0},{"$f":"IF(AND(OR(Calculations!$E$2=\"Orkney Health Board\",Calculations!$E$2=\"Orkney Islands Local Authority\"),$F189=1),0,IF(AND(OR(Calculations!$E$2=\"Shetland Health Board\",Calculations!$E$2=\"Western Isles Health Board\",Calculations!$E$2=\"Shetland Islands Local Authority\",Calculations!$E$2=\"Eilean Siar Local Authority\"),OR($F189=1,$F189=5)),0,new_ci(VALUE(LEFT(Options!$B$24,2)),$C189,$E189,$F189,2016,$I189,1,$H189,$G189*$H189,Options!$B$8)))","v":456.22071458879998},{"$f":"IF(AND(OR(Calculations!$E$2=\"Orkney Health Board\",Calculations!$E$2=\"Orkney Islands Local Authority\"),$F189=1),0,IF(AND(OR(Calculations!$E$2=\"Shetland Health Board\",Calculations!$E$2=\"Western Isles Health Board\",Calculations!$E$2=\"Shetland Islands Local Authority\",Calculations!$E$2=\"Eilean Siar Local Authority\"),OR($F189=1,$F189=5)),0,new_ci(VALUE(LEFT(Options!$B$24,2)),$C189,$E189,$F189,2016,$I189+$J189,1,$H189,$G189*$H189,Options!$B$8)))","v":456.22071458879998},{"$f":"IF(AND(OR(Calculations!$E$2=\"Orkney Health Board\",Calculations!$E$2=\"Orkney Islands Local Authority\"),$F189=1),0,IF(AND(OR(Calculations!$E$2=\"Shetland Health Board\",Calculations!$E$2=\"Western Isles Health Board\",Calculations!$E$2=\"Shetland Islands Local Authority\",Calculations!$E$2=\"Eilean Siar Local Authority\"),OR($F189=1,$F189=5)),0,new_yllv2(VALUE(LEFT(Options!$B$24,2)),$C189,$D189,$E189,$F189,2016,$I189,1,$H189,$G189*$H189,Options!$B$8)))","v":4502.9007340950002},{"$f":"IF(AND(OR(Calculations!$E$2=\"Orkney Health Board\",Calculations!$E$2=\"Orkney Islands Local Authority\"),$F189=1),0,IF(AND(OR(Calculations!$E$2=\"Shetland Health Board\",Calculations!$E$2=\"Western Isles Health Board\",Calculations!$E$2=\"Shetland Islands Local Authority\",Calculations!$E$2=\"Eilean Siar Local Authority\"),OR($F189=1,$F189=5)),0,new_yllv2(VALUE(LEFT(Options!$B$24,2)),$C189,$D189,$E189,$F189,2016,$I189+$J189,1,$H189,$G189*$H189,Options!$B$8)))","v":4502.9007340950002},{"$f":"IF(AND(OR(Calculations!$E$2=\"Orkney Health Board\",Calculations!$E$2=\"Orkney Islands Local Authority\"),$F189=1),0,IF(AND(OR(Calculations!$E$2=\"Shetland Health Board\",Calculations!$E$2=\"Western Isles Health Board\",Calculations!$E$2=\"Shetland Islands Local Authority\",Calculations!$E$2=\"Eilean Siar Local Authority\"),OR($F189=1,$F189=5)),0,hosp_count(VALUE(LEFT(Options!$B$24,2)),$C189,$E189,$F189,2016,$I189,1,$H189,$G189*$H189, Options!$B$8)))","v":8147.2292633240004},{"$f":"IF(AND(OR(Calculations!$E$2=\"Orkney Health Board\",Calculations!$E$2=\"Orkney Islands Local Authority\"),$F189=1),0,IF(AND(OR(Calculations!$E$2=\"Shetland Health Board\",Calculations!$E$2=\"Western Isles Health Board\",Calculations!$E$2=\"Shetland Islands Local Authority\",Calculations!$E$2=\"Eilean Siar Local Authority\"),OR($F189=1,$F189=5)),0,hosp_count(VALUE(LEFT(Options!$B$24,2)),$C189,$E189,$F189,2016,$I189+$J189,1,$H189,$G189*$H189, Options!$B$8)))","v":8147.2292633240004},{"$f":"IF(AND(OR(Calculations!$E$2=\"Orkney Health Board\",Calculations!$E$2=\"Orkney Islands Local Authority\"),$F189=1),0,IF(AND(OR(Calculations!$E$2=\"Shetland Health Board\",Calculations!$E$2=\"Western Isles Health Board\",Calculations!$E$2=\"Shetland Islands Local Authority\",Calculations!$E$2=\"Eilean Siar Local Authority\"),OR($F189=1,$F189=5)),0,prem_mort(VALUE(LEFT(Options!$B$24,2)),$C189,$E189,$F189,2016,$I189,1,$H189,$G189*$H189,Options!$B$8)))","v":0},{"$f":"IF(AND(OR(Calculations!$E$2=\"Orkney Health Board\",Calculations!$E$2=\"Orkney Islands Local Authority\"),$F189=1),0,IF(AND(OR(Calculations!$E$2=\"Shetland Health Board\",Calculations!$E$2=\"Western Isles Health Board\",Calculations!$E$2=\"Shetland Islands Local Authority\",Calculations!$E$2=\"Eilean Siar Local Authority\"),OR($F189=1,$F189=5)),0,prem_mort(VALUE(LEFT(Options!$B$24,2)),$C189,$E189,$F189,2016,$I189+$J189,1,$H189,$G189*$H189,Options!$B$8)))","v":0},{"$f":"K189*100000/$H189","v":2203.1133599999998},{"$f":"L189*100000/$H189","v":2203.1133599999998},{"$f":"M189*100000/$H189","v":21744.739878766661},{"$f":"N189*100000/$H189","v":21744.739878766661},{"$f":"O189*100000/$H189","v":39343.390300000006},{"$f":"P189*100000/$H189","v":39343.390300000006},{"$f":"Q189*100000/$H189","v":0},{"$f":"R189*100000/$H189","v":0},{"$f":"S189*$AI189","v":8812453.4399999995},{"$f":"T189*$AI189","v":8812453.4399999995},86978959.515066639,86978959.515066639,157373561.20000002,157373561.20000002,0,0,4000]
[null,"Female 80-84",81.856712000000002,89.736710000000002,"female",4,{"$f":"HLOOKUP(Calculations!$E$2,'Prevalence Rates'!$C$3:$BC$249,'Prevalence Rates'!$BD190,FALSE)","v":0},{"$f":"HLOOKUP(Calculations!$E$2,'Population 2016'!$C$3:$BC$249,'Population 2016'!BD190,FALSE)","v":15634},0,{"$f":"HLOOKUP(Results!E$4,Targeting!$C$3:$F$249,Targeting!$G190,FALSE)","v":0},{"$f":"IF(AND(OR(Calculations!$E$2=\"Orkney Health Board\",Calculations!$E$2=\"Orkney Islands Local Authority\"),$F190=1),0,IF(AND(OR(Calculations!$E$2=\"Shetland Health Board\",Calculations!$E$2=\"Western Isles Health Board\",Calculations!$E$2=\"Shetland Islands Local Authority\",Calculations!$E$2=\"Eilean Siar Local Authority\"),OR($F190=1,$F190=5)),0,new_ci(VALUE(LEFT(Options!$B$24,2)),$C190,$E190,$F190,2016,$I190,1,$H190,$G190*$H190,Options!$B$8)))","v":520.14094590139996},{"$f":"IF(AND(OR(Calculations!$E$2=\"Orkney Health Board\",Calculations!$E$2=\"Orkney Islands Local Authority\"),$F190=1),0,IF(AND(OR(Calculations!$E$2=\"Shetland Health Board\",Calculations!$E$2=\"Western Isles Health Board\",Calculations!$E$2=\"Shetland Islands Local Authority\",Calculations!$E$2=\"Eilean Siar Local Authority\"),OR($F190=1,$F190=5)),0,new_ci(VALUE(LEFT(Options!$B$24,2)),$C190,$E190,$F190,2016,$I190+$J190,1,$H190,$G190*$H190,Options!$B$8)))","v":520.14094590139996},{"$f":"IF(AND(OR(Calculations!$E$2=\"Orkney Health Board\",Calculations!$E$2=\"Orkney Islands Local Authority\"),$F190=1),0,IF(AND(OR(Calculations!$E$2=\"Shetland Health Board\",Calculations!$E$2=\"Western Isles Health Board\",Calculations!$E$2=\"Shetland Islands Local Authority\",Calculations!$E$2=\"Eilean Siar Local Authority\"),OR($F190=1,$F190=5)),0,new_yllv2(VALUE(LEFT(Options!$B$24,2)),$C190,$D190,$E190,$F190,2016,$I190,1,$H190,$G190*$H190,Options!$B$8)))","v":3578.5686675196998},{"$f":"IF(AND(OR(Calculations!$E$2=\"Orkney Health Board\",Calculations!$E$2=\"Orkney Islands Local Authority\"),$F190=1),0,IF(AND(OR(Calculations!$E$2=\"Shetland Health Board\",Calculations!$E$2=\"Western Isles Health Board\",Calculations!$E$2=\"Shetland Islands Local Authority\",Calculations!$E$2=\"Eilean Siar Local Authority\"),OR($F190=1,$F190=5)),0,new_yllv2(VALUE(LEFT(Options!$B$24,2)),$C190,$D190,$E190,$F190,2016,$I190+$J190,1,$H190,$G190*$H190,Options!$B$8)))","v":3578.5686675196998},{"$f":"IF(AND(OR(Calculations!$E$2=\"Orkney Health Board\",Calculations!$E$2=\"Orkney Islands Local Authority\"),$F190=1),0,IF(AND(OR(Calculations!$E$2=\"Shetland Health Board\",Calculations!$E$2=\"Western Isles Health Board\",Calculations!$E$2=\"Shetland Islands Local Authority\",Calculations!$E$2=\"Eilean Siar Local Authority\"),OR($F190=1,$F190=5)),0,hosp_count(VALUE(LEFT(Options!$B$24,2)),$C190,$E190,$F190,2016,$I190,1,$H190,$G190*$H190, Options!$B$8)))","v":6960.2000923551996},{"$f":"IF(AND(OR(Calculations!$E$2=\"Orkney Health Board\",Calculations!$E$2=\"Orkney Islands Local Authority\"),$F190=1),0,IF(AND(OR(Calculations!$E$2=\"Shetland Health Board\",Calculations!$E$2=\"Western Isles Health Board\",Calculations!$E$2=\"Shetland Islands Local Authority\",Calculations!$E$2=\"Eilean Siar Local Authority\"),OR($F190=1,$F190=5)),0,hosp_count(VALUE(LEFT(Options!$B$24,2)),$C190,$E190,$F190,2016,$I190+$J190,1,$H190,$G190*$H190, Options!$B$8)))","v":6960.2000923551996},{"$f":"IF(AND(OR(Calculations!$E$2=\"Orkney Health Board\",Calculations!$E$2=\"Orkney Islands Local Authority\"),$F190=1),0,IF(AND(OR(Calculations!$E$2=\"Shetland Health Board\",Calculations!$E$2=\"Western Isles Health Board\",Calculations!$E$2=\"Shetland Islands Local Authority\",Calculations!$E$2=\"Eilean Siar Local Authority\"),OR($F190=1,$F190=5)),0,prem_mort(VALUE(LEFT(Options!$B$24,2)),$C190,$E190,$F190,2016,$I190,1,$H190,$G190*$H190,Options!$B$8)))","v":0},{"$f":"IF(AND(OR(Calculations!$E$2=\"Orkney Health Board\",Calculations!$E$2=\"Orkney Islands Local Authority\"),$F190=1),0,IF(AND(OR(Calculations!$E$2=\"Shetland Health Board\",Calculations!$E$2=\"Western Isles Health Board\",Calculations!$E$2=\"Shetland Islands Local Authority\",Calculations!$E$2=\"Eilean Siar Local Authority\"),OR($F190=1,$F190=5)),0,prem_mort(VALUE(LEFT(Options!$B$24,2)),$C190,$E190,$F190,2016,$I190+$J190,1,$H190,$G190*$H190,Options!$B$8)))","v":0},3326.9857099999995,3326.9857099999995,22889.655030828322,22889.655030828322,44519.637280000003,44519.637280000003,0,0,8317464.2749999985,8317464.2749999985,57224137.577070802,57224137.577070802,111299093.2,111299093.2,0,0,2500]
[null,"Female 85-89",86.730819999999994,92.220819999999989,"female",4,{"$f":"HLOOKUP(Calculations!$E$2,'Prevalence Rates'!$C$3:$BC$249,'Prevalence Rates'!$BD191,FALSE)","v":0},{"$f":"HLOOKUP(Calculations!$E$2,'Population 2016'!$C$3:$BC$249,'Population 2016'!BD191,FALSE)","v":9988},0,{"$f":"HLOOKUP(Results!E$4,Targeting!$C$3:$F$249,Targeting!$G191,FALSE)","v":0},{"$f":"IF(AND(OR(Calculations!$E$2=\"Orkney Health Board\",Calculations!$E$2=\"Orkney Islands Local Authority\"),$F191=1),0,IF(AND(OR(Calculations!$E$2=\"Shetland Health Board\",Calculations!$E$2=\"Western Isles Health Board\",Calculations!$E$2=\"Shetland Islands Local Authority\",Calculations!$E$2=\"Eilean Siar Local Authority\"),OR($F191=1,$F191=5)),0,new_ci(VALUE(LEFT(Options!$B$24,2)),$C191,$E191,$F191,2016,$I191,1,$H191,$G191*$H191,Options!$B$8)))","v":498.68310630600001},{"$f":"IF(AND(OR(Calculations!$E$2=\"Orkney Health Board\",Calculations!$E$2=\"Orkney Islands Local Authority\"),$F191=1),0,IF(AND(OR(Calculations!$E$2=\"Shetland Health Board\",Calculations!$E$2=\"Western Isles Health Board\",Calculations!$E$2=\"Shetland Islands Local Authority\",Calculations!$E$2=\"Eilean Siar Local Authority\"),OR($F191=1,$F191=5)),0,new_ci(VALUE(LEFT(Options!$B$24,2)),$C191,$E191,$F191,2016,$I191+$J191,1,$H191,$G191*$H191,Options!$B$8)))","v":498.68310630600001},{"$f":"IF(AND(OR(Calculations!$E$2=\"Orkney Health Board\",Calculations!$E$2=\"Orkney Islands Local Authority\"),$F191=1),0,IF(AND(OR(Calculations!$E$2=\"Shetland Health Board\",Calculations!$E$2=\"Western Isles Health Board\",Calculations!$E$2=\"Shetland Islands Local Authority\",Calculations!$E$2=\"Eilean Siar Local Authority\"),OR($F191=1,$F191=5)),0,new_yllv2(VALUE(LEFT(Options!$B$24,2)),$C191,$D191,$E191,$F191,2016,$I191,1,$H191,$G191*$H191,Options!$B$8)))","v":2239.0871473139},{"$f":"IF(AND(OR(Calculations!$E$2=\"Orkney Health Board\",Calculations!$E$2=\"Orkney Islands Local Authority\"),$F191=1),0,IF(AND(OR(Calculations!$E$2=\"Shetland Health Board\",Calculations!$E$2=\"Western Isles Health Board\",Calculations!$E$2=\"Shetland Islands Local Authority\",Calculations!$E$2=\"Eilean Siar Local Authority\"),OR($F191=1,$F191=5)),0,new_yllv2(VALUE(LEFT(Options!$B$24,2)),$C191,$D191,$E191,$F191,2016,$I191+$J191,1,$H191,$G191*$H191,Options!$B$8)))","v":2239.0871473139},{"$f":"IF(AND(OR(Calculations!$E$2=\"Orkney Health Board\",Calculations!$E$2=\"Orkney Islands Local Authority\"),$F191=1),0,IF(AND(OR(Calculations!$E$2=\"Shetland Health Board\",Calculations!$E$2=\"Western Isles Health Board\",Calculations!$E$2=\"Shetland Islands Local Authority\",Calculations!$E$2=\"Eilean Siar Local Authority\"),OR($F191=1,$F191=5)),0,hosp_count(VALUE(LEFT(Options!$B$24,2)),$C191,$E191,$F191,2016,$I191,1,$H191,$G191*$H191, Options!$B$8)))","v":5026.6128475639998},{"$f":"IF(AND(OR(Calculations!$E$2=\"Orkney Health Board\",Calculations!$E$2=\"Orkney Islands Local Authority\"),$F191=1),0,IF(AND(OR(Calculations!$E$2=\"Shetland Health Board\",Calculations!$E$2=\"Western Isles Health Board\",Calculations!$E$2=\"Shetland Islands Local Authority\",Calculations!$E$2=\"Eilean Siar Local Authority\"),OR($F191=1,$F191=5)),0,hosp_count(VALUE(LEFT(Options!$B$24,2)),$C191,$E191,$F191,2016,$I191+$J191,1,$H191,$G191*$H191, Options!$B$8)))","v":5026.6128475639998},{"$f":"IF(AND(OR(Calculations!$E$2=\"Orkney Health Board\",Calculations!$E$2=\"Orkney Islands Local Authority\"),$F191=1),0,IF(AND(OR(Calculations!$E$2=\"Shetland Health Board\",Calculations!$E$2=\"Western Isles Health Board\",Calculations!$E$2=\"Shetland Islands Local Authority\",Calculations!$E$2=\"Eilean Siar Local Authority\"),OR($F191=1,$F191=5)),0,prem_mort(VALUE(LEFT(Options!$B$24,2)),$C191,$E191,$F191,2016,$I191,1,$H191,$G191*$H191,Options!$B$8)))","v":0},{"$f":"IF(AND(OR(Calculations!$E$2=\"Orkney Health Board\",Calculations!$E$2=\"Orkney Islands Local Authority\"),$F191=1),0,IF(AND(OR(Calculations!$E$2=\"Shetland Health Board\",Calculations!$E$2=\"Western Isles Health Board\",Calculations!$E$2=\"Shetland Islands Local Authority\",Calculations!$E$2=\"Eilean Siar Local Authority\"),OR($F191=1,$F191=5)),0,prem_mort(VALUE(LEFT(Options!$B$24,2)),$C191,$E191,$F191,2016,$I191+$J191,1,$H191,$G191*$H191,Options!$B$8)))","v":0},4992.8224499999997,4992.8224499999997,22417.772800499599,22417.772800499599,50326.520299999996,50326.520299999996,0,0,7489233.6749999998,7489233.6749999998,33626659.200749397,33626659.200749397,75489780.449999988,75489780.449999988,0,0,1500]
[null,"Female 90+",92.779342999999997,96.279340000000005,"female",4,{"$f":"HLOOKUP(Calculations!$E$2,'Prevalence Rates'!$C$3:$BC$249,'Prevalence Rates'!$BD192,FALSE)","v":0},{"$f":"HLOOKUP(Calculations!$E$2,'Population 2016'!$C$3:$BC$249,'Population 2016'!BD192,FALSE)","v":5998},0,{"$f":"HLOOKUP(Results!E$4,Targeting!$C$3:$F$249,Targeting!$G192,FALSE)","v":0},{"$f":"IF(AND(OR(Calculations!$E$2=\"Orkney Health Board\",Calculations!$E$2=\"Orkney Islands Local Authority\"),$F192=1),0,IF(AND(OR(Calculations!$E$2=\"Shetland Health Board\",Calculations!$E$2=\"Western Isles Health Board\",Calculations!$E$2=\"Shetland Islands Local Authority\",Calculations!$E$2=\"Eilean Siar Local Authority\"),OR($F192=1,$F192=5)),0,new_ci(VALUE(LEFT(Options!$B$24,2)),$C192,$E192,$F192,2016,$I192,1,$H192,$G192*$H192,Options!$B$8)))","v":492.4704456476},{"$f":"IF(AND(OR(Calculations!$E$2=\"Orkney Health Board\",Calculations!$E$2=\"Orkney Islands Local Authority\"),$F192=1),0,IF(AND(OR(Calculations!$E$2=\"Shetland Health Board\",Calculations!$E$2=\"Western Isles Health Board\",Calculations!$E$2=\"Shetland Islands Local Authority\",Calculations!$E$2=\"Eilean Siar Local Authority\"),OR($F192=1,$F192=5)),0,new_ci(VALUE(LEFT(Options!$B$24,2)),$C192,$E192,$F192,2016,$I192+$J192,1,$H192,$G192*$H192,Options!$B$8)))","v":492.4704456476},{"$f":"IF(AND(OR(Calculations!$E$2=\"Orkney Health Board\",Calculations!$E$2=\"Orkney Islands Local Authority\"),$F192=1),0,IF(AND(OR(Calculations!$E$2=\"Shetland Health Board\",Calculations!$E$2=\"Western Isles Health Board\",Calculations!$E$2=\"Shetland Islands Local Authority\",Calculations!$E$2=\"Eilean Siar Local Authority\"),OR($F192=1,$F192=5)),0,new_yllv2(VALUE(LEFT(Options!$B$24,2)),$C192,$D192,$E192,$F192,2016,$I192,1,$H192,$G192*$H192,Options!$B$8)))","v":1231.1746367077001},{"$f":"IF(AND(OR(Calculations!$E$2=\"Orkney Health Board\",Calculations!$E$2=\"Orkney Islands Local Authority\"),$F192=1),0,IF(AND(OR(Calculations!$E$2=\"Shetland Health Board\",Calculations!$E$2=\"Western Isles Health Board\",Calculations!$E$2=\"Shetland Islands Local Authority\",Calculations!$E$2=\"Eilean Siar Local Authority\"),OR($F192=1,$F192=5)),0,new_yllv2(VALUE(LEFT(Options!$B$24,2)),$C192,$D192,$E192,$F192,2016,$I192+$J192,1,$H192,$G192*$H192,Options!$B$8)))","v":1231.1746367077001},{"$f":"IF(AND(OR(Calculations!$E$2=\"Orkney Health Board\",Calculations!$E$2=\"Orkney Islands Local Authority\"),$F192=1),0,IF(AND(OR(Calculations!$E$2=\"Shetland Health Board\",Calculations!$E$2=\"Western Isles Health Board\",Calculations!$E$2=\"Shetland Islands Local Authority\",Calculations!$E$2=\"Eilean Siar Local Authority\"),OR($F192=1,$F192=5)),0,hosp_count(VALUE(LEFT(Options!$B$24,2)),$C192,$E192,$F192,2016,$I192,1,$H192,$G192*$H192, Options!$B$8)))","v":3514.6176669343999},{"$f":"IF(AND(OR(Calculations!$E$2=\"Orkney Health Board\",Calculations!$E$2=\"Orkney Islands Local Authority\"),$F192=1),0,IF(AND(OR(Calculations!$E$2=\"Shetland Health Board\",Calculations!$E$2=\"Western Isles Health Board\",Calculations!$E$2=\"Shetland Islands Local Authority\",Calculations!$E$2=\"Eilean Siar Local Authority\"),OR($F192=1,$F192=5)),0,hosp_count(VALUE(LEFT(Options!$B$24,2)),$C192,$E192,$F192,2016,$I192+$J192,1,$H192,$G192*$H192, Options!$B$8)))","v":3514.6176669343999},{"$f":"IF(AND(OR(Calculations!$E$2=\"Orkney Health Board\",Calculations!$E$2=\"Orkney Islands Local Authority\"),$F192=1),0,IF(AND(OR(Calculations!$E$2=\"Shetland Health Board\",Calculations!$E$2=\"Western Isles Health Board\",Calculations!$E$2=\"Shetland Islands Local Authority\",Calculations!$E$2=\"Eilean Siar Local Authority\"),OR($F192=1,$F192=5)),0,prem_mort(VALUE(LEFT(Options!$B$24,2)),$C192,$E192,$F192,2016,$I192,1,$H192,$G192*$H192,Options!$B$8)))","v":0},{"$f":"IF(AND(OR(Calculations!$E$2=\"Orkney Health Board\",Calculations!$E$2=\"Orkney Islands Local Authority\"),$F192=1),0,IF(AND(OR(Calculations!$E$2=\"Shetland Health Board\",Calculations!$E$2=\"Western Isles Health Board\",Calculations!$E$2=\"Shetland Islands Local Authority\",Calculations!$E$2=\"Eilean Siar Local Authority\"),OR($F192=1,$F192=5)),0,prem_mort(VALUE(LEFT(Options!$B$24,2)),$C192,$E192,$F192,2016,$I192+$J192,1,$H192,$G192*$H192,Options!$B$8)))","v":0},8210.57762,8210.57762,20526.419418267757,20526.419418267757,58596.493280000002,58596.493280000002,0,0,8210577.6200000001,8210577.6200000001,20526419.418267757,20526419.418267757,58596493.280000001,58596493.280000001,0,0,1000]
[null,"Male 0-4",2.0320822999999999,77.402082000000007,"male",4,{"$f":"HLOOKUP(Calculations!$E$2,'Prevalence Rates'!$C$3:$BC$249,'Prevalence Rates'!$BD193,FALSE)","v":0},{"$f":"HLOOKUP(Calculations!$E$2,'Population 2016'!$C$3:$BC$249,'Population 2016'!BD193,FALSE)","v":0},0,{"$f":"HLOOKUP(Results!E$4,Targeting!$C$3:$F$249,Targeting!$G193,FALSE)","v":0},{"$f":"IF(AND(OR(Calculations!$E$2=\"Orkney Health Board\",Calculations!$E$2=\"Orkney Islands Local Authority\"),$F193=1),0,IF(AND(OR(Calculations!$E$2=\"Shetland Health Board\",Calculations!$E$2=\"Western Isles Health Board\",Calculations!$E$2=\"Shetland Islands Local Authority\",Calculations!$E$2=\"Eilean Siar Local Authority\"),OR($F193=1,$F193=5)),0,new_ci(VALUE(LEFT(Options!$B$24,2)),$C193,$E193,$F193,2016,$I193,1,$H193,$G193*$H193,Options!$B$8)))","v":{"$error":"#VALUE!"}},{"$f":"IF(AND(OR(Calculations!$E$2=\"Orkney Health Board\",Calculations!$E$2=\"Orkney Islands Local Authority\"),$F193=1),0,IF(AND(OR(Calculations!$E$2=\"Shetland Health Board\",Calculations!$E$2=\"Western Isles Health Board\",Calculations!$E$2=\"Shetland Islands Local Authority\",Calculations!$E$2=\"Eilean Siar Local Authority\"),OR($F193=1,$F193=5)),0,new_ci(VALUE(LEFT(Options!$B$24,2)),$C193,$E193,$F193,2016,$I193+$J193,1,$H193,$G193*$H193,Options!$B$8)))","v":{"$error":"#VALUE!"}},{"$f":"IF(AND(OR(Calculations!$E$2=\"Orkney Health Board\",Calculations!$E$2=\"Orkney Islands Local Authority\"),$F193=1),0,IF(AND(OR(Calculations!$E$2=\"Shetland Health Board\",Calculations!$E$2=\"Western Isles Health Board\",Calculations!$E$2=\"Shetland Islands Local Authority\",Calculations!$E$2=\"Eilean Siar Local Authority\"),OR($F193=1,$F193=5)),0,new_yllv2(VALUE(LEFT(Options!$B$24,2)),$C193,$D193,$E193,$F193,2016,$I193,1,$H193,$G193*$H193,Options!$B$8)))","v":{"$error":"#VALUE!"}},{"$f":"IF(AND(OR(Calculations!$E$2=\"Orkney Health Board\",Calculations!$E$2=\"Orkney Islands Local Authority\"),$F193=1),0,IF(AND(OR(Calculations!$E$2=\"Shetland Health Board\",Calculations!$E$2=\"Western Isles Health Board\",Calculations!$E$2=\"Shetland Islands Local Authority\",Calculations!$E$2=\"Eilean Siar Local Authority\"),OR($F193=1,$F193=5)),0,new_yllv2(VALUE(LEFT(Options!$B$24,2)),$C193,$D193,$E193,$F193,2016,$I193+$J193,1,$H193,$G193*$H193,Options!$B$8)))","v":{"$error":"#VALUE!"}},{"$f":"IF(AND(OR(Calculations!$E$2=\"Orkney Health Board\",Calculations!$E$2=\"Orkney Islands Local Authority\"),$F193=1),0,IF(AND(OR(Calculations!$E$2=\"Shetland Health Board\",Calculations!$E$2=\"Western Isles Health Board\",Calculations!$E$2=\"Shetland Islands Local Authority\",Calculations!$E$2=\"Eilean Siar Local Authority\"),OR($F193=1,$F193=5)),0,hosp_count(VALUE(LEFT(Options!$B$24,2)),$C193,$E193,$F193,2016,$I193,1,$H193,$G193*$H193, Options!$B$8)))","v":{"$error":"#VALUE!"}},{"$f":"IF(AND(OR(Calculations!$E$2=\"Orkney Health Board\",Calculations!$E$2=\"Orkney Islands Local Authority\"),$F193=1),0,IF(AND(OR(Calculations!$E$2=\"Shetland Health Board\",Calculations!$E$2=\"Western Isles Health Board\",Calculations!$E$2=\"Shetland Islands Local Authority\",Calculations!$E$2=\"Eilean Siar Local Authority\"),OR($F193=1,$F193=5)),0,hosp_count(VALUE(LEFT(Options!$B$24,2)),$C193,$E193,$F193,2016,$I193+$J193,1,$H193,$G193*$H193, Options!$B$8)))","v":{"$error":"#VALUE!"}},{"$f":"IF(AND(OR(Calculations!$E$2=\"Orkney Health Board\",Calculations!$E$2=\"Orkney Islands Local Authority\"),$F193=1),0,IF(AND(OR(Calculations!$E$2=\"Shetland Health Board\",Calculations!$E$2=\"Western Isles Health Board\",Calculations!$E$2=\"Shetland Islands Local Authority\",Calculations!$E$2=\"Eilean Siar Local Authority\"),OR($F193=1,$F193=5)),0,prem_mort(VALUE(LEFT(Options!$B$24,2)),$C193,$E193,$F193,2016,$I193,1,$H193,$G193*$H193,Options!$B$8)))","v":{"$error":"#VALUE!"}},{"$f":"IF(AND(OR(Calculations!$E$2=\"Orkney Health Board\",Calculations!$E$2=\"Orkney Islands Local Authority\"),$F193=1),0,IF(AND(OR(Calculations!$E$2=\"Shetland Health Board\",Calculations!$E$2=\"Western Isles Health Board\",Calculations!$E$2=\"Shetland Islands Local Authority\",Calculations!$E$2=\"Eilean Siar Local Authority\"),OR($F193=1,$F193=5)),0,prem_mort(VALUE(LEFT(Options!$B$24,2)),$C193,$E193,$F193,2016,$I193+$J193,1,$H193,$G193*$H193,Options!$B$8)))","v":{"$error":"#VALUE!"}},{"$error":"#VALUE!"},{"$error":"#VALUE!"},{"$error":"#VALUE!"},{"$error":"#VALUE!"},{"$error":"#VALUE!"},{"$error":"#VALUE!"},{"$error":"#VALUE!"},{"$error":"#VALUE!"},{"$error":"#VALUE!"},{"$error":"#VALUE!"},{"$error":"#VALUE!"},{"$error":"#VALUE!"},{"$error":"#VALUE!"},{"$error":"#VALUE!"},{"$error":"#VALUE!"},{"$error":"#VALUE!"},5000]
[null,"Male 5-9",6.9784756000000003,77.398476000000002,"male",4,{"$f":"HLOOKUP(Calculations!$E$2,'Prevalence Rates'!$C$3:$BC$249,'Prevalence Rates'!$BD194,FALSE)","v":0},{"$f":"HLOOKUP(Calculations!$E$2,'Population 2016'!$C$3:$BC$249,'Population 2016'!BD194,FALSE)","v":0},0,{"$f":"HLOOKUP(Results!E$4,Targeting!$C$3:$F$249,Targeting!$G194,FALSE)","v":0},{"$f":"IF(AND(OR(Calculations!$E$2=\"Orkney Health Board\",Calculations!$E$2=\"Orkney Islands Local Authority\"),$F194=1),0,IF(AND(OR(Calculations!$E$2=\"Shetland Health Board\",Calculations!$E$2=\"Western Isles Health Board\",Calculations!$E$2=\"Shetland Islands Local Authority\",Calculations!$E$2=\"Eilean Siar Local Authority\"),OR($F194=1,$F194=5)),0,new_ci(VALUE(LEFT(Options!$B$24,2)),$C194,$E194,$F194,2016,$I194,1,$H194,$G194*$H194,Options!$B$8)))","v":{"$error":"#VALUE!"}},{"$f":"IF(AND(OR(Calculations!$E$2=\"Orkney Health Board\",Calculations!$E$2=\"Orkney Islands Local Authority\"),$F194=1),0,IF(AND(OR(Calculations!$E$2=\"Shetland Health Board\",Calculations!$E$2=\"Western Isles Health Board\",Calculations!$E$2=\"Shetland Islands Local Authority\",Calculations!$E$2=\"Eilean Siar Local Authority\"),OR($F194=1,$F194=5)),0,new_ci(VALUE(LEFT(Options!$B$24,2)),$C194,$E194,$F194,2016,$I194+$J194,1,$H194,$G194*$H194,Options!$B$8)))","v":{"$error":"#VALUE!"}},{"$f":"IF(AND(OR(Calculations!$E$2=\"Orkney Health Board\",Calculations!$E$2=\"Orkney Islands Local Authority\"),$F194=1),0,IF(AND(OR(Calculations!$E$2=\"Shetland Health Board\",Calculations!$E$2=\"Western Isles Health Board\",Calculations!$E$2=\"Shetland Islands Local Authority\",Calculations!$E$2=\"Eilean Siar Local Authority\"),OR($F194=1,$F194=5)),0,new_yllv2(VALUE(LEFT(Options!$B$24,2)),$C194,$D194,$E194,$F194,2016,$I194,1,$H194,$G194*$H194,Options!$B$8)))","v":{"$error":"#VALUE!"}},{"$f":"IF(AND(OR(Calculations!$E$2=\"Orkney Health Board\",Calculations!$E$2=\"Orkney Islands Local Authority\"),$F194=1),0,IF(AND(OR(Calculations!$E$2=\"Shetland Health Board\",Calculations!$E$2=\"Western Isles Health Board\",Calculations!$E$2=\"Shetland Islands Local Authority\",Calculations!$E$2=\"Eilean Siar Local Authority\"),OR($F194=1,$F194=5)),0,new_yllv2(VALUE(LEFT(Options!$B$24,2)),$C194,$D194,$E194,$F194,2016,$I194+$J194,1,$H194,$G194*$H194,Options!$B$8)))","v":{"$error":"#VALUE!"}},{"$f":"IF(AND(OR(Calculations!$E$2=\"Orkney Health Board\",Calculations!$E$2=\"Orkney Islands Local Authority\"),$F194=1),0,IF(AND(OR(Calculations!$E$2=\"Shetland Health Board\",Calculations!$E$2=\"Western Isles Health Board\",Calculations!$E$2=\"Shetland Islands Local Authority\",Calculations!$E$2=\"Eilean Siar Local Authority\"),OR($F194=1,$F194=5)),0,hosp_count(VALUE(LEFT(Options!$B$24,2)),$C194,$E194,$F194,2016,$I194,1,$H194,$G194*$H194, Options!$B$8)))","v":{"$error":"#VALUE!"}},{"$f":"IF(AND(OR(Calculations!$E$2=\"Orkney Health Board\",Calculations!$E$2=\"Orkney Islands Local Authority\"),$F194=1),0,IF(AND(OR(Calculations!$E$2=\"Shetland Health Board\",Calculations!$E$2=\"Western Isles Health Board\",Calculations!$E$2=\"Shetland Islands Local Authority\",Calculations!$E$2=\"Eilean Siar Local Authority\"),OR($F194=1,$F194=5)),0,hosp_count(VALUE(LEFT(Options!$B$24,2)),$C194,$E194,$F194,2016,$I194+$J194,1,$H194,$G194*$H194, Options!$B$8)))","v":{"$error":"#VALUE!"}},{"$f":"IF(AND(OR(Calculations!$E$2=\"Orkney Health Board\",Calculations!$E$2=\"Orkney Islands Local Authority\"),$F194=1),0,IF(AND(OR(Calculations!$E$2=\"Shetland Health Board\",Calculations!$E$2=\"Western Isles Health Board\",Calculations!$E$2=\"Shetland Islands Local Authority\",Calculations!$E$2=\"Eilean Siar Local Authority\"),OR($F194=1,$F194=5)),0,prem_mort(VALUE(LEFT(Options!$B$24,2)),$C194,$E194,$F194,2016,$I194,1,$H194,$G194*$H194,Options!$B$8)))","v":{"$error":"#VALUE!"}},{"$f":"IF(AND(OR(Calculations!$E$2=\"Orkney Health Board\",Calculations!$E$2=\"Orkney Islands Local Authority\"),$F194=1),0,IF(AND(OR(Calculations!$E$2=\"Shetland Health Board\",Calculations!$E$2=\"Western Isles Health Board\",Calculations!$E$2=\"Shetland Islands Local Authority\",Calculations!$E$2=\"Eilean Siar Local Authority\"),OR($F194=1,$F194=5)),0,prem_mort(VALUE(LEFT(Options!$B$24,2)),$C194,$E194,$F194,2016,$I194+$J194,1,$H194,$G194*$H194,Options!$B$8)))","v":{"$error":"#VALUE!"}},{"$error":"#VALUE!"},{"$error":"#VALUE!"},{"$error":"#VALUE!"},{"$error":"#VALUE!"},{"$error":"#VALUE!"},{"$error":"#VALUE!"},{"$error":"#VALUE!"},{"$error":"#VALUE!"},{"$error":"#VALUE!"},{"$error":"#VALUE!"},{"$error":"#VALUE!"},{"$error":"#VALUE!"},{"$error":"#VALUE!"},{"$error":"#VALUE!"},{"$error":"#VALUE!"},{"$error":"#VALUE!"},5500]
[null,"Male 10-15",12.471144000000001,77.921140000000008,"male",4,{"$f":"HLOOKUP(Calculations!$E$2,'Prevalence Rates'!$C$3:$BC$249,'Prevalence Rates'!$BD195,FALSE)","v":0},{"$f":"HLOOKUP(Calculations!$E$2,'Population 2016'!$C$3:$BC$249,'Population 2016'!BD195,FALSE)","v":0},0,{"$f":"HLOOKUP(Results!E$4,Targeting!$C$3:$F$249,Targeting!$G195,FALSE)","v":0},{"$f":"IF(AND(OR(Calculations!$E$2=\"Orkney Health Board\",Calculations!$E$2=\"Orkney Islands Local Authority\"),$F195=1),0,IF(AND(OR(Calculations!$E$2=\"Shetland Health Board\",Calculations!$E$2=\"Western Isles Health Board\",Calculations!$E$2=\"Shetland Islands Local Authority\",Calculations!$E$2=\"Eilean Siar Local Authority\"),OR($F195=1,$F195=5)),0,new_ci(VALUE(LEFT(Options!$B$24,2)),$C195,$E195,$F195,2016,$I195,1,$H195,$G195*$H195,Options!$B$8)))","v":{"$error":"#VALUE!"}},{"$f":"IF(AND(OR(Calculations!$E$2=\"Orkney Health Board\",Calculations!$E$2=\"Orkney Islands Local Authority\"),$F195=1),0,IF(AND(OR(Calculations!$E$2=\"Shetland Health Board\",Calculations!$E$2=\"Western Isles Health Board\",Calculations!$E$2=\"Shetland Islands Local Authority\",Calculations!$E$2=\"Eilean Siar Local Authority\"),OR($F195=1,$F195=5)),0,new_ci(VALUE(LEFT(Options!$B$24,2)),$C195,$E195,$F195,2016,$I195+$J195,1,$H195,$G195*$H195,Options!$B$8)))","v":{"$error":"#VALUE!"}},{"$f":"IF(AND(OR(Calculations!$E$2=\"Orkney Health Board\",Calculations!$E$2=\"Orkney Islands Local Authority\"),$F195=1),0,IF(AND(OR(Calculations!$E$2=\"Shetland Health Board\",Calculations!$E$2=\"Western Isles Health Board\",Calculations!$E$2=\"Shetland Islands Local Authority\",Calculations!$E$2=\"Eilean Siar Local Authority\"),OR($F195=1,$F195=5)),0,new_yllv2(VALUE(LEFT(Options!$B$24,2)),$C195,$D195,$E195,$F195,2016,$I195,1,$H195,$G195*$H195,Options!$B$8)))","v":{"$error":"#VALUE!"}},{"$f":"IF(AND(OR(Calculations!$E$2=\"Orkney Health Board\",Calculations!$E$2=\"Orkney Islands Local Authority\"),$F195=1),0,IF(AND(OR(Calculations!$E$2=\"Shetland Health Board\",Calculations!$E$2=\"Western Isles Health Board\",Calculations!$E$2=\"Shetland Islands Local Authority\",Calculations!$E$2=\"Eilean Siar Local Authority\"),OR($F195=1,$F195=5)),0,new_yllv2(VALUE(LEFT(Options!$B$24,2)),$C195,$D195,$E195,$F195,2016,$I195+$J195,1,$H195,$G195*$H195,Options!$B$8)))","v":{"$error":"#VALUE!"}},{"$f":"IF(AND(OR(Calculations!$E$2=\"Orkney Health Board\",Calculations!$E$2=\"Orkney Islands Local Authority\"),$F195=1),0,IF(AND(OR(Calculations!$E$2=\"Shetland Health Board\",Calculations!$E$2=\"Western Isles Health Board\",Calculations!$E$2=\"Shetland Islands Local Authority\",Calculations!$E$2=\"Eilean Siar Local Authority\"),OR($F195=1,$F195=5)),0,hosp_count(VALUE(LEFT(Options!$B$24,2)),$C195,$E195,$F195,2016,$I195,1,$H195,$G195*$H195, Options!$B$8)))","v":{"$error":"#VALUE!"}},{"$f":"IF(AND(OR(Calculations!$E$2=\"Orkney Health Board\",Calculations!$E$2=\"Orkney Islands Local Authority\"),$F195=1),0,IF(AND(OR(Calculations!$E$2=\"Shetland Health Board\",Calculations!$E$2=\"Western Isles Health Board\",Calculations!$E$2=\"Shetland Islands Local Authority\",Calculations!$E$2=\"Eilean Siar Local Authority\"),OR($F195=1,$F195=5)),0,hosp_count(VALUE(LEFT(Options!$B$24,2)),$C195,$E195,$F195,2016,$I195+$J195,1,$H195,$G195*$H195, Options!$B$8)))","v":{"$error":"#VALUE!"}},{"$f":"IF(AND(OR(Calculations!$E$2=\"Orkney Health Board\",Calculations!$E$2=\"Orkney Islands Local Authority\"),$F195=1),0,IF(AND(OR(Calculations!$E$2=\"Shetland Health Board\",Calculations!$E$2=\"Western Isles Health Board\",Calculations!$E$2=\"Shetland Islands Local Authority\",Calculations!$E$2=\"Eilean Siar Local Authority\"),OR($F195=1,$F195=5)),0,prem_mort(VALUE(LEFT(Options!$B$24,2)),$C195,$E195,$F195,2016,$I195,1,$H195,$G195*$H195,Options!$B$8)))","v":{"$error":"#VALUE!"}},{"$f":"IF(AND(OR(Calculations!$E$2=\"Orkney Health Board\",Calculations!$E$2=\"Orkney Islands Local Authority\"),$F195=1),0,IF(AND(OR(Calculations!$E$2=\"Shetland Health Board\",Calculations!$E$2=\"Western Isles Health Board\",Calculations!$E$2=\"Shetland Islands Local Authority\",Calculations!$E$2=\"Eilean Siar Local Authority\"),OR($F195=1,$F195=5)),0,prem_mort(VALUE(LEFT(Options!$B$24,2)),$C195,$E195,$F195,2016,$I195+$J195,1,$H195,$G195*$H195,Options!$B$8)))","v":{"$error":"#VALUE!"}},{"$error":"#VALUE!"},{"$error":"#VALUE!"},{"$error":"#VALUE!"},{"$error":"#VALUE!"},{"$error":"#VALUE!"},{"$error":"#VALUE!"},{"$error":"#VALUE!"},{"$error":"#VALUE!"},{"$error":"#VALUE!"},{"$error":"#VALUE!"},{"$error":"#VALUE!"},{"$error":"#VALUE!"},{"$error":"#VALUE!"},{"$error":"#VALUE!"},{"$error":"#VALUE!"},{"$error":"#VALUE!"},6600]
[null,"Male 16-19",17.556318000000001,77.07632000000001,"male",4,{"$f":"HLOOKUP(Calculations!$E$2,'Prevalence Rates'!$C$3:$BC$249,'Prevalence Rates'!$BD196,FALSE)","v":0.11705685618729098},{"$f":"HLOOKUP(Calculations!$E$2,'Population 2016'!$C$3:$BC$249,'Population 2016'!BD196,FALSE)","v":24732},0,{"$f":"HLOOKUP(Results!E$4,Targeting!$C$3:$F$249,Targeting!$G196,FALSE)","v":1679},{"$f":"IF(AND(OR(Calculations!$E$2=\"Orkney Health Board\",Calculations!$E$2=\"Orkney Islands Local Authority\"),$F196=1),0,IF(AND(OR(Calculations!$E$2=\"Shetland Health Board\",Calculations!$E$2=\"Western Isles Health Board\",Calculations!$E$2=\"Shetland Islands Local Authority\",Calculations!$E$2=\"Eilean Siar Local Authority\"),OR($F196=1,$F196=5)),0,new_ci(VALUE(LEFT(Options!$B$24,2)),$C196,$E196,$F196,2016,$I196,1,$H196,$G196*$H196,Options!$B$8)))","v":8.3961625988000002},{"$f":"IF(AND(OR(Calculations!$E$2=\"Orkney Health Board\",Calculations!$E$2=\"Orkney Islands Local Authority\"),$F196=1),0,IF(AND(OR(Calculations!$E$2=\"Shetland Health Board\",Calculations!$E$2=\"Western Isles Health Board\",Calculations!$E$2=\"Shetland Islands Local Authority\",Calculations!$E$2=\"Eilean Siar Local Authority\"),OR($F196=1,$F196=5)),0,new_ci(VALUE(LEFT(Options!$B$24,2)),$C196,$E196,$F196,2016,$I196+$J196,1,$H196,$G196*$H196,Options!$B$8)))","v":8.0852144851999999},{"$f":"IF(AND(OR(Calculations!$E$2=\"Orkney Health Board\",Calculations!$E$2=\"Orkney Islands Local Authority\"),$F196=1),0,IF(AND(OR(Calculations!$E$2=\"Shetland Health Board\",Calculations!$E$2=\"Western Isles Health Board\",Calculations!$E$2=\"Shetland Islands Local Authority\",Calculations!$E$2=\"Eilean Siar Local Authority\"),OR($F196=1,$F196=5)),0,new_yllv2(VALUE(LEFT(Options!$B$24,2)),$C196,$D196,$E196,$F196,2016,$I196,1,$H196,$G196*$H196,Options!$B$8)))","v":491.34345207410001},{"$f":"IF(AND(OR(Calculations!$E$2=\"Orkney Health Board\",Calculations!$E$2=\"Orkney Islands Local Authority\"),$F196=1),0,IF(AND(OR(Calculations!$E$2=\"Shetland Health Board\",Calculations!$E$2=\"Western Isles Health Board\",Calculations!$E$2=\"Shetland Islands Local Authority\",Calculations!$E$2=\"Eilean Siar Local Authority\"),OR($F196=1,$F196=5)),0,new_yllv2(VALUE(LEFT(Options!$B$24,2)),$C196,$D196,$E196,$F196,2016,$I196+$J196,1,$H196,$G196*$H196,Options!$B$8)))","v":473.14676784429997},{"$f":"IF(AND(OR(Calculations!$E$2=\"Orkney Health Board\",Calculations!$E$2=\"Orkney Islands Local Authority\"),$F196=1),0,IF(AND(OR(Calculations!$E$2=\"Shetland Health Board\",Calculations!$E$2=\"Western Isles Health Board\",Calculations!$E$2=\"Shetland Islands Local Authority\",Calculations!$E$2=\"Eilean Siar Local Authority\"),OR($F196=1,$F196=5)),0,hosp_count(VALUE(LEFT(Options!$B$24,2)),$C196,$E196,$F196,2016,$I196,1,$H196,$G196*$H196, Options!$B$8)))","v":1479.5226009359999},{"$f":"IF(AND(OR(Calculations!$E$2=\"Orkney Health Board\",Calculations!$E$2=\"Orkney Islands Local Authority\"),$F196=1),0,IF(AND(OR(Calculations!$E$2=\"Shetland Health Board\",Calculations!$E$2=\"Western Isles Health Board\",Calculations!$E$2=\"Shetland Islands Local Authority\",Calculations!$E$2=\"Eilean Siar Local Authority\"),OR($F196=1,$F196=5)),0,hosp_count(VALUE(LEFT(Options!$B$24,2)),$C196,$E196,$F196,2016,$I196+$J196,1,$H196,$G196*$H196, Options!$B$8)))","v":1476.3138549288999},{"$f":"IF(AND(OR(Calculations!$E$2=\"Orkney Health Board\",Calculations!$E$2=\"Orkney Islands Local Authority\"),$F196=1),0,IF(AND(OR(Calculations!$E$2=\"Shetland Health Board\",Calculations!$E$2=\"Western Isles Health Board\",Calculations!$E$2=\"Shetland Islands Local Authority\",Calculations!$E$2=\"Eilean Siar Local Authority\"),OR($F196=1,$F196=5)),0,prem_mort(VALUE(LEFT(Options!$B$24,2)),$C196,$E196,$F196,2016,$I196,1,$H196,$G196*$H196,Options!$B$8)))","v":8.3961625988000002},{"$f":"IF(AND(OR(Calculations!$E$2=\"Orkney Health Board\",Calculations!$E$2=\"Orkney Islands Local Authority\"),$F196=1),0,IF(AND(OR(Calculations!$E$2=\"Shetland Health Board\",Calculations!$E$2=\"Western Isles Health Board\",Calculations!$E$2=\"Shetland Islands Local Authority\",Calculations!$E$2=\"Eilean Siar Local Authority\"),OR($F196=1,$F196=5)),0,prem_mort(VALUE(LEFT(Options!$B$24,2)),$C196,$E196,$F196,2016,$I196+$J196,1,$H196,$G196*$H196,Options!$B$8)))","v":8.0852144851999999},33.948579163836328,32.691308770823227,1986.6709205648554,1913.0954546510593,5982.2197999999989,5969.2457339839075,33.948579163836328,32.691308770823227,149373.74832087985,143841.7585916222,8741352.0504853632,8417620.000464661,26321767.119999994,26264681.229529195,149373.74832087985,143841.7585916222,4400]
[null,"Male 20-24",22.054632000000002,77.704629999999995,"male",4,{"$f":"HLOOKUP(Calculations!$E$2,'Prevalence Rates'!$C$3:$BC$249,'Prevalence Rates'!$BD197,FALSE)","v":0.11705685618729098},{"$f":"HLOOKUP(Calculations!$E$2,'Population 2016'!$C$3:$BC$249,'Population 2016'!BD197,FALSE)","v":35228},0,{"$f":"HLOOKUP(Results!E$4,Targeting!$C$3:$F$249,Targeting!$G197,FALSE)","v":2391},{"$f":"IF(AND(OR(Calculations!$E$2=\"Orkney Health Board\",Calculations!$E$2=\"Orkney Islands Local Authority\"),$F197=1),0,IF(AND(OR(Calculations!$E$2=\"Shetland Health Board\",Calculations!$E$2=\"Western Isles Health Board\",Calculations!$E$2=\"Shetland Islands Local Authority\",Calculations!$E$2=\"Eilean Siar Local Authority\"),OR($F197=1,$F197=5)),0,new_ci(VALUE(LEFT(Options!$B$24,2)),$C197,$E197,$F197,2016,$I197,1,$H197,$G197*$H197,Options!$B$8)))","v":16.794612390000001},{"$f":"IF(AND(OR(Calculations!$E$2=\"Orkney Health Board\",Calculations!$E$2=\"Orkney Islands Local Authority\"),$F197=1),0,IF(AND(OR(Calculations!$E$2=\"Shetland Health Board\",Calculations!$E$2=\"Western Isles Health Board\",Calculations!$E$2=\"Shetland Islands Local Authority\",Calculations!$E$2=\"Eilean Siar Local Authority\"),OR($F197=1,$F197=5)),0,new_ci(VALUE(LEFT(Options!$B$24,2)),$C197,$E197,$F197,2016,$I197+$J197,1,$H197,$G197*$H197,Options!$B$8)))","v":16.1728455123},{"$f":"IF(AND(OR(Calculations!$E$2=\"Orkney Health Board\",Calculations!$E$2=\"Orkney Islands Local Authority\"),$F197=1),0,IF(AND(OR(Calculations!$E$2=\"Shetland Health Board\",Calculations!$E$2=\"Western Isles Health Board\",Calculations!$E$2=\"Shetland Islands Local Authority\",Calculations!$E$2=\"Eilean Siar Local Authority\"),OR($F197=1,$F197=5)),0,new_yllv2(VALUE(LEFT(Options!$B$24,2)),$C197,$D197,$E197,$F197,2016,$I197,1,$H197,$G197*$H197,Options!$B$8)))","v":917.8255335243},{"$f":"IF(AND(OR(Calculations!$E$2=\"Orkney Health Board\",Calculations!$E$2=\"Orkney Islands Local Authority\"),$F197=1),0,IF(AND(OR(Calculations!$E$2=\"Shetland Health Board\",Calculations!$E$2=\"Western Isles Health Board\",Calculations!$E$2=\"Shetland Islands Local Authority\",Calculations!$E$2=\"Eilean Siar Local Authority\"),OR($F197=1,$F197=5)),0,new_yllv2(VALUE(LEFT(Options!$B$24,2)),$C197,$D197,$E197,$F197,2016,$I197+$J197,1,$H197,$G197*$H197,Options!$B$8)))","v":883.84597490149997},{"$f":"IF(AND(OR(Calculations!$E$2=\"Orkney Health Board\",Calculations!$E$2=\"Orkney Islands Local Authority\"),$F197=1),0,IF(AND(OR(Calculations!$E$2=\"Shetland Health Board\",Calculations!$E$2=\"Western Isles Health Board\",Calculations!$E$2=\"Shetland Islands Local Authority\",Calculations!$E$2=\"Eilean Siar Local Authority\"),OR($F197=1,$F197=5)),0,hosp_count(VALUE(LEFT(Options!$B$24,2)),$C197,$E197,$F197,2016,$I197,1,$H197,$G197*$H197, Options!$B$8)))","v":2472.2563462364001},{"$f":"IF(AND(OR(Calculations!$E$2=\"Orkney Health Board\",Calculations!$E$2=\"Orkney Islands Local Authority\"),$F197=1),0,IF(AND(OR(Calculations!$E$2=\"Shetland Health Board\",Calculations!$E$2=\"Western Isles Health Board\",Calculations!$E$2=\"Shetland Islands Local Authority\",Calculations!$E$2=\"Eilean Siar Local Authority\"),OR($F197=1,$F197=5)),0,hosp_count(VALUE(LEFT(Options!$B$24,2)),$C197,$E197,$F197,2016,$I197+$J197,1,$H197,$G197*$H197, Options!$B$8)))","v":2466.8958206534999},{"$f":"IF(AND(OR(Calculations!$E$2=\"Orkney Health Board\",Calculations!$E$2=\"Orkney Islands Local Authority\"),$F197=1),0,IF(AND(OR(Calculations!$E$2=\"Shetland Health Board\",Calculations!$E$2=\"Western Isles Health Board\",Calculations!$E$2=\"Shetland Islands Local Authority\",Calculations!$E$2=\"Eilean Siar Local Authority\"),OR($F197=1,$F197=5)),0,prem_mort(VALUE(LEFT(Options!$B$24,2)),$C197,$E197,$F197,2016,$I197,1,$H197,$G197*$H197,Options!$B$8)))","v":16.794612390000001},{"$f":"IF(AND(OR(Calculations!$E$2=\"Orkney Health Board\",Calculations!$E$2=\"Orkney Islands Local Authority\"),$F197=1),0,IF(AND(OR(Calculations!$E$2=\"Shetland Health Board\",Calculations!$E$2=\"Western Isles Health Board\",Calculations!$E$2=\"Shetland Islands Local Authority\",Calculations!$E$2=\"Eilean Siar Local Authority\"),OR($F197=1,$F197=5)),0,prem_mort(VALUE(LEFT(Options!$B$24,2)),$C197,$E197,$F197,2016,$I197+$J197,1,$H197,$G197*$H197,Options!$B$8)))","v":16.1728455123},47.674044481662314,45.909065267117072,2605.3864355748269,2508.9303250298053,7017.8731299999999,7002.6564683022025,47.674044481662314,45.909065267117072,286044.26688997389,275454.39160270244,15632318.613448961,15053581.950178832,42107238.780000001,42015938.809813216,286044.26688997389,275454.39160270244,6000]
[null,"Male 25-29",26.959762999999999,77.789760000000001,"male",4,{"$f":"HLOOKUP(Calculations!$E$2,'Prevalence Rates'!$C$3:$BC$249,'Prevalence Rates'!$BD198,FALSE)","v":6.2869822485207102E-2},{"$f":"HLOOKUP(Calculations!$E$2,'Population 2016'!$C$3:$BC$249,'Population 2016'!BD198,FALSE)","v":33718},0,{"$f":"HLOOKUP(Results!E$4,Targeting!$C$3:$F$249,Targeting!$G198,FALSE)","v":2289},{"$f":"IF(AND(OR(Calculations!$E$2=\"Orkney Health Board\",Calculations!$E$2=\"Orkney Islands Local Authority\"),$F198=1),0,IF(AND(OR(Calculations!$E$2=\"Shetland Health Board\",Calculations!$E$2=\"Western Isles Health Board\",Calculations!$E$2=\"Shetland Islands Local Authority\",Calculations!$E$2=\"Eilean Siar Local Authority\"),OR($F198=1,$F198=5)),0,new_ci(VALUE(LEFT(Options!$B$24,2)),$C198,$E198,$F198,2016,$I198,1,$H198,$G198*$H198,Options!$B$8)))","v":23.277085318200001},{"$f":"IF(AND(OR(Calculations!$E$2=\"Orkney Health Board\",Calculations!$E$2=\"Orkney Islands Local Authority\"),$F198=1),0,IF(AND(OR(Calculations!$E$2=\"Shetland Health Board\",Calculations!$E$2=\"Western Isles Health Board\",Calculations!$E$2=\"Shetland Islands Local Authority\",Calculations!$E$2=\"Eilean Siar Local Authority\"),OR($F198=1,$F198=5)),0,new_ci(VALUE(LEFT(Options!$B$24,2)),$C198,$E198,$F198,2016,$I198+$J198,1,$H198,$G198*$H198,Options!$B$8)))","v":22.380614033400001},{"$f":"IF(AND(OR(Calculations!$E$2=\"Orkney Health Board\",Calculations!$E$2=\"Orkney Islands Local Authority\"),$F198=1),0,IF(AND(OR(Calculations!$E$2=\"Shetland Health Board\",Calculations!$E$2=\"Western Isles Health Board\",Calculations!$E$2=\"Shetland Islands Local Authority\",Calculations!$E$2=\"Eilean Siar Local Authority\"),OR($F198=1,$F198=5)),0,new_yllv2(VALUE(LEFT(Options!$B$24,2)),$C198,$D198,$E198,$F198,2016,$I198,1,$H198,$G198*$H198,Options!$B$8)))","v":1159.8970915747},{"$f":"IF(AND(OR(Calculations!$E$2=\"Orkney Health Board\",Calculations!$E$2=\"Orkney Islands Local Authority\"),$F198=1),0,IF(AND(OR(Calculations!$E$2=\"Shetland Health Board\",Calculations!$E$2=\"Western Isles Health Board\",Calculations!$E$2=\"Shetland Islands Local Authority\",Calculations!$E$2=\"Eilean Siar Local Authority\"),OR($F198=1,$F198=5)),0,new_yllv2(VALUE(LEFT(Options!$B$24,2)),$C198,$D198,$E198,$F198,2016,$I198+$J198,1,$H198,$G198*$H198,Options!$B$8)))","v":1115.2259301424999},{"$f":"IF(AND(OR(Calculations!$E$2=\"Orkney Health Board\",Calculations!$E$2=\"Orkney Islands Local Authority\"),$F198=1),0,IF(AND(OR(Calculations!$E$2=\"Shetland Health Board\",Calculations!$E$2=\"Western Isles Health Board\",Calculations!$E$2=\"Shetland Islands Local Authority\",Calculations!$E$2=\"Eilean Siar Local Authority\"),OR($F198=1,$F198=5)),0,hosp_count(VALUE(LEFT(Options!$B$24,2)),$C198,$E198,$F198,2016,$I198,1,$H198,$G198*$H198, Options!$B$8)))","v":2816.3180454054},{"$f":"IF(AND(OR(Calculations!$E$2=\"Orkney Health Board\",Calculations!$E$2=\"Orkney Islands Local Authority\"),$F198=1),0,IF(AND(OR(Calculations!$E$2=\"Shetland Health Board\",Calculations!$E$2=\"Western Isles Health Board\",Calculations!$E$2=\"Shetland Islands Local Authority\",Calculations!$E$2=\"Eilean Siar Local Authority\"),OR($F198=1,$F198=5)),0,hosp_count(VALUE(LEFT(Options!$B$24,2)),$C198,$E198,$F198,2016,$I198+$J198,1,$H198,$G198*$H198, Options!$B$8)))","v":2810.2035898560998},{"$f":"IF(AND(OR(Calculations!$E$2=\"Orkney Health Board\",Calculations!$E$2=\"Orkney Islands Local Authority\"),$F198=1),0,IF(AND(OR(Calculations!$E$2=\"Shetland Health Board\",Calculations!$E$2=\"Western Isles Health Board\",Calculations!$E$2=\"Shetland Islands Local Authority\",Calculations!$E$2=\"Eilean Siar Local Authority\"),OR($F198=1,$F198=5)),0,prem_mort(VALUE(LEFT(Options!$B$24,2)),$C198,$E198,$F198,2016,$I198,1,$H198,$G198*$H198,Options!$B$8)))","v":23.277085318200001},{"$f":"IF(AND(OR(Calculations!$E$2=\"Orkney Health Board\",Calculations!$E$2=\"Orkney Islands Local Authority\"),$F198=1),0,IF(AND(OR(Calculations!$E$2=\"Shetland Health Board\",Calculations!$E$2=\"Western Isles Health Board\",Calculations!$E$2=\"Shetland Islands Local Authority\",Calculations!$E$2=\"Eilean Siar Local Authority\"),OR($F198=1,$F198=5)),0,prem_mort(VALUE(LEFT(Options!$B$24,2)),$C198,$E198,$F198,2016,$I198+$J198,1,$H198,$G198*$H198,Options!$B$8)))","v":22.380614033400001},69.034596708582953,66.375864622456859,3439.9937468850467,3307.5091350094904,8352.5655299999999,8334.4314308562189,69.034596708582953,66.375864622456859,414207.58025149774,398255.18773474114,20639962.481310282,19845054.810056943,50115393.18,50006588.585137315,414207.58025149774,398255.18773474114,6000]
[null,"Male 30-34",31.981521999999998,78.061520000000002,"male",4,{"$f":"HLOOKUP(Calculations!$E$2,'Prevalence Rates'!$C$3:$BC$249,'Prevalence Rates'!$BD199,FALSE)","v":6.2869822485207102E-2},{"$f":"HLOOKUP(Calculations!$E$2,'Population 2016'!$C$3:$BC$249,'Population 2016'!BD199,FALSE)","v":32346},0,{"$f":"HLOOKUP(Results!E$4,Targeting!$C$3:$F$249,Targeting!$G199,FALSE)","v":2196},{"$f":"IF(AND(OR(Calculations!$E$2=\"Orkney Health Board\",Calculations!$E$2=\"Orkney Islands Local Authority\"),$F199=1),0,IF(AND(OR(Calculations!$E$2=\"Shetland Health Board\",Calculations!$E$2=\"Western Isles Health Board\",Calculations!$E$2=\"Shetland Islands Local Authority\",Calculations!$E$2=\"Eilean Siar Local Authority\"),OR($F199=1,$F199=5)),0,new_ci(VALUE(LEFT(Options!$B$24,2)),$C199,$E199,$F199,2016,$I199,1,$H199,$G199*$H199,Options!$B$8)))","v":32.619000134700002},{"$f":"IF(AND(OR(Calculations!$E$2=\"Orkney Health Board\",Calculations!$E$2=\"Orkney Islands Local Authority\"),$F199=1),0,IF(AND(OR(Calculations!$E$2=\"Shetland Health Board\",Calculations!$E$2=\"Western Isles Health Board\",Calculations!$E$2=\"Shetland Islands Local Authority\",Calculations!$E$2=\"Eilean Siar Local Authority\"),OR($F199=1,$F199=5)),0,new_ci(VALUE(LEFT(Options!$B$24,2)),$C199,$E199,$F199,2016,$I199+$J199,1,$H199,$G199*$H199,Options!$B$8)))","v":31.363021431899998},{"$f":"IF(AND(OR(Calculations!$E$2=\"Orkney Health Board\",Calculations!$E$2=\"Orkney Islands Local Authority\"),$F199=1),0,IF(AND(OR(Calculations!$E$2=\"Shetland Health Board\",Calculations!$E$2=\"Western Isles Health Board\",Calculations!$E$2=\"Shetland Islands Local Authority\",Calculations!$E$2=\"Eilean Siar Local Authority\"),OR($F199=1,$F199=5)),0,new_yllv2(VALUE(LEFT(Options!$B$24,2)),$C199,$D199,$E199,$F199,2016,$I199,1,$H199,$G199*$H199,Options!$B$8)))","v":1470.4644608343001},{"$f":"IF(AND(OR(Calculations!$E$2=\"Orkney Health Board\",Calculations!$E$2=\"Orkney Islands Local Authority\"),$F199=1),0,IF(AND(OR(Calculations!$E$2=\"Shetland Health Board\",Calculations!$E$2=\"Western Isles Health Board\",Calculations!$E$2=\"Shetland Islands Local Authority\",Calculations!$E$2=\"Eilean Siar Local Authority\"),OR($F199=1,$F199=5)),0,new_yllv2(VALUE(LEFT(Options!$B$24,2)),$C199,$D199,$E199,$F199,2016,$I199+$J199,1,$H199,$G199*$H199,Options!$B$8)))","v":1413.8449434239999},{"$f":"IF(AND(OR(Calculations!$E$2=\"Orkney Health Board\",Calculations!$E$2=\"Orkney Islands Local Authority\"),$F199=1),0,IF(AND(OR(Calculations!$E$2=\"Shetland Health Board\",Calculations!$E$2=\"Western Isles Health Board\",Calculations!$E$2=\"Shetland Islands Local Authority\",Calculations!$E$2=\"Eilean Siar Local Authority\"),OR($F199=1,$F199=5)),0,hosp_count(VALUE(LEFT(Options!$B$24,2)),$C199,$E199,$F199,2016,$I199,1,$H199,$G199*$H199, Options!$B$8)))","v":3228.8860305809999},{"$f":"IF(AND(OR(Calculations!$E$2=\"Orkney Health Board\",Calculations!$E$2=\"Orkney Islands Local Authority\"),$F199=1),0,IF(AND(OR(Calculations!$E$2=\"Shetland Health Board\",Calculations!$E$2=\"Western Isles Health Board\",Calculations!$E$2=\"Shetland Islands Local Authority\",Calculations!$E$2=\"Eilean Siar Local Authority\"),OR($F199=1,$F199=5)),0,hosp_count(VALUE(LEFT(Options!$B$24,2)),$C199,$E199,$F199,2016,$I199+$J199,1,$H199,$G199*$H199, Options!$B$8)))","v":3221.8754081599},{"$f":"IF(AND(OR(Calculations!$E$2=\"Orkney Health Board\",Calculations!$E$2=\"Orkney Islands Local Authority\"),$F199=1),0,IF(AND(OR(Calculations!$E$2=\"Shetland Health Board\",Calculations!$E$2=\"Western Isles Health Board\",Calculations!$E$2=\"Shetland Islands Local Authority\",Calculations!$E$2=\"Eilean Siar Local Authority\"),OR($F199=1,$F199=5)),0,prem_mort(VALUE(LEFT(Options!$B$24,2)),$C199,$E199,$F199,2016,$I199,1,$H199,$G199*$H199,Options!$B$8)))","v":32.619000134700002},{"$f":"IF(AND(OR(Calculations!$E$2=\"Orkney Health Board\",Calculations!$E$2=\"Orkney Islands Local Authority\"),$F199=1),0,IF(AND(OR(Calculations!$E$2=\"Shetland Health Board\",Calculations!$E$2=\"Western Isles Health Board\",Calculations!$E$2=\"Shetland Islands Local Authority\",Calculations!$E$2=\"Eilean Siar Local Authority\"),OR($F199=1,$F199=5)),0,prem_mort(VALUE(LEFT(Options!$B$24,2)),$C199,$E199,$F199,2016,$I199+$J199,1,$H199,$G199*$H199,Options!$B$8)))","v":31.363021431899998},100.84399967445744,96.961050614913731,4546.0473036366175,4371.0039677981813,9982.3348499999993,9960.6610034004188,100.84399967445744,96.961050614913731,655485.99788397329,630246.82899693924,29549307.473638013,28411525.790688179,64885176.524999999,64744296.522102721,655485.99788397329,630246.82899693924,6500]
[null,"Male 35-39",36.926009999999998,78.336009999999987,"male",4,{"$f":"HLOOKUP(Calculations!$E$2,'Prevalence Rates'!$C$3:$BC$249,'Prevalence Rates'!$BD200,FALSE)","v":6.2869822485207102E-2},{"$f":"HLOOKUP(Calculations!$E$2,'Population 2016'!$C$3:$BC$249,'Population 2016'!BD200,FALSE)","v":32021},0,{"$f":"HLOOKUP(Results!E$4,Targeting!$C$3:$F$249,Targeting!$G200,FALSE)","v":2174},{"$f":"IF(AND(OR(Calculations!$E$2=\"Orkney Health Board\",Calculations!$E$2=\"Orkney Islands Local Authority\"),$F200=1),0,IF(AND(OR(Calculations!$E$2=\"Shetland Health Board\",Calculations!$E$2=\"Western Isles Health Board\",Calculations!$E$2=\"Shetland Islands Local Authority\",Calculations!$E$2=\"Eilean Siar Local Authority\"),OR($F200=1,$F200=5)),0,new_ci(VALUE(LEFT(Options!$B$24,2)),$C200,$E200,$F200,2016,$I200,1,$H200,$G200*$H200,Options!$B$8)))","v":46.892529890799999},{"$f":"IF(AND(OR(Calculations!$E$2=\"Orkney Health Board\",Calculations!$E$2=\"Orkney Islands Local Authority\"),$F200=1),0,IF(AND(OR(Calculations!$E$2=\"Shetland Health Board\",Calculations!$E$2=\"Western Isles Health Board\",Calculations!$E$2=\"Shetland Islands Local Authority\",Calculations!$E$2=\"Eilean Siar Local Authority\"),OR($F200=1,$F200=5)),0,new_ci(VALUE(LEFT(Options!$B$24,2)),$C200,$E200,$F200,2016,$I200+$J200,1,$H200,$G200*$H200,Options!$B$8)))","v":45.087641611199999},{"$f":"IF(AND(OR(Calculations!$E$2=\"Orkney Health Board\",Calculations!$E$2=\"Orkney Islands Local Authority\"),$F200=1),0,IF(AND(OR(Calculations!$E$2=\"Shetland Health Board\",Calculations!$E$2=\"Western Isles Health Board\",Calculations!$E$2=\"Shetland Islands Local Authority\",Calculations!$E$2=\"Eilean Siar Local Authority\"),OR($F200=1,$F200=5)),0,new_yllv2(VALUE(LEFT(Options!$B$24,2)),$C200,$D200,$E200,$F200,2016,$I200,1,$H200,$G200*$H200,Options!$B$8)))","v":1894.9271328872001},{"$f":"IF(AND(OR(Calculations!$E$2=\"Orkney Health Board\",Calculations!$E$2=\"Orkney Islands Local Authority\"),$F200=1),0,IF(AND(OR(Calculations!$E$2=\"Shetland Health Board\",Calculations!$E$2=\"Western Isles Health Board\",Calculations!$E$2=\"Shetland Islands Local Authority\",Calculations!$E$2=\"Eilean Siar Local Authority\"),OR($F200=1,$F200=5)),0,new_yllv2(VALUE(LEFT(Options!$B$24,2)),$C200,$D200,$E200,$F200,2016,$I200+$J200,1,$H200,$G200*$H200,Options!$B$8)))","v":1821.9915975086001},{"$f":"IF(AND(OR(Calculations!$E$2=\"Orkney Health Board\",Calculations!$E$2=\"Orkney Islands Local Authority\"),$F200=1),0,IF(AND(OR(Calculations!$E$2=\"Shetland Health Board\",Calculations!$E$2=\"Western Isles Health Board\",Calculations!$E$2=\"Shetland Islands Local Authority\",Calculations!$E$2=\"Eilean Siar Local Authority\"),OR($F200=1,$F200=5)),0,hosp_count(VALUE(LEFT(Options!$B$24,2)),$C200,$E200,$F200,2016,$I200,1,$H200,$G200*$H200, Options!$B$8)))","v":3809.6765630297},{"$f":"IF(AND(OR(Calculations!$E$2=\"Orkney Health Board\",Calculations!$E$2=\"Orkney Islands Local Authority\"),$F200=1),0,IF(AND(OR(Calculations!$E$2=\"Shetland Health Board\",Calculations!$E$2=\"Western Isles Health Board\",Calculations!$E$2=\"Shetland Islands Local Authority\",Calculations!$E$2=\"Eilean Siar Local Authority\"),OR($F200=1,$F200=5)),0,hosp_count(VALUE(LEFT(Options!$B$24,2)),$C200,$E200,$F200,2016,$I200+$J200,1,$H200,$G200*$H200, Options!$B$8)))","v":3801.4046709555},{"$f":"IF(AND(OR(Calculations!$E$2=\"Orkney Health Board\",Calculations!$E$2=\"Orkney Islands Local Authority\"),$F200=1),0,IF(AND(OR(Calculations!$E$2=\"Shetland Health Board\",Calculations!$E$2=\"Western Isles Health Board\",Calculations!$E$2=\"Shetland Islands Local Authority\",Calculations!$E$2=\"Eilean Siar Local Authority\"),OR($F200=1,$F200=5)),0,prem_mort(VALUE(LEFT(Options!$B$24,2)),$C200,$E200,$F200,2016,$I200,1,$H200,$G200*$H200,Options!$B$8)))","v":46.892529890799999},{"$f":"IF(AND(OR(Calculations!$E$2=\"Orkney Health Board\",Calculations!$E$2=\"Orkney Islands Local Authority\"),$F200=1),0,IF(AND(OR(Calculations!$E$2=\"Shetland Health Board\",Calculations!$E$2=\"Western Isles Health Board\",Calculations!$E$2=\"Shetland Islands Local Authority\",Calculations!$E$2=\"Eilean Siar Local Authority\"),OR($F200=1,$F200=5)),0,prem_mort(VALUE(LEFT(Options!$B$24,2)),$C200,$E200,$F200,2016,$I200+$J200,1,$H200,$G200*$H200,Options!$B$8)))","v":45.087641611199999},146.44305265544486,140.80647578526592,5917.7637578064396,5689.9896864826205,11897.431570000001,11871.598859984073,146.44305265544486,140.80647578526592,1025101.368588114,985645.33049686137,41424346.304645076,39829927.80537834,83282020.99000001,83101192.019888505,1025101.368588114,985645.33049686137,7000]
[null,"Male 40-44",42.067703000000002,78.907700000000006,"male",4,{"$f":"HLOOKUP(Calculations!$E$2,'Prevalence Rates'!$C$3:$BC$249,'Prevalence Rates'!$BD201,FALSE)","v":6.2869822485207102E-2},{"$f":"HLOOKUP(Calculations!$E$2,'Population 2016'!$C$3:$BC$249,'Population 2016'!BD201,FALSE)","v":34348},0,{"$f":"HLOOKUP(Results!E$4,Targeting!$C$3:$F$249,Targeting!$G201,FALSE)","v":2332},{"$f":"IF(AND(OR(Calculations!$E$2=\"Orkney Health Board\",Calculations!$E$2=\"Orkney Islands Local Authority\"),$F201=1),0,IF(AND(OR(Calculations!$E$2=\"Shetland Health Board\",Calculations!$E$2=\"Western Isles Health Board\",Calculations!$E$2=\"Shetland Islands Local Authority\",Calculations!$E$2=\"Eilean Siar Local Authority\"),OR($F201=1,$F201=5)),0,new_ci(VALUE(LEFT(Options!$B$24,2)),$C201,$E201,$F201,2016,$I201,1,$H201,$G201*$H201,Options!$B$8)))","v":74.131279882900003},{"$f":"IF(AND(OR(Calculations!$E$2=\"Orkney Health Board\",Calculations!$E$2=\"Orkney Islands Local Authority\"),$F201=1),0,IF(AND(OR(Calculations!$E$2=\"Shetland Health Board\",Calculations!$E$2=\"Western Isles Health Board\",Calculations!$E$2=\"Shetland Islands Local Authority\",Calculations!$E$2=\"Eilean Siar Local Authority\"),OR($F201=1,$F201=5)),0,new_ci(VALUE(LEFT(Options!$B$24,2)),$C201,$E201,$F201,2016,$I201+$J201,1,$H201,$G201*$H201,Options!$B$8)))","v":71.279737334100005},{"$f":"IF(AND(OR(Calculations!$E$2=\"Orkney Health Board\",Calculations!$E$2=\"Orkney Islands Local Authority\"),$F201=1),0,IF(AND(OR(Calculations!$E$2=\"Shetland Health Board\",Calculations!$E$2=\"Western Isles Health Board\",Calculations!$E$2=\"Shetland Islands Local Authority\",Calculations!$E$2=\"Eilean Siar Local Authority\"),OR($F201=1,$F201=5)),0,new_yllv2(VALUE(LEFT(Options!$B$24,2)),$C201,$D201,$E201,$F201,2016,$I201,1,$H201,$G201*$H201,Options!$B$8)))","v":2656.8648486093002},{"$f":"IF(AND(OR(Calculations!$E$2=\"Orkney Health Board\",Calculations!$E$2=\"Orkney Islands Local Authority\"),$F201=1),0,IF(AND(OR(Calculations!$E$2=\"Shetland Health Board\",Calculations!$E$2=\"Western Isles Health Board\",Calculations!$E$2=\"Shetland Islands Local Authority\",Calculations!$E$2=\"Eilean Siar Local Authority\"),OR($F201=1,$F201=5)),0,new_yllv2(VALUE(LEFT(Options!$B$24,2)),$C201,$D201,$E201,$F201,2016,$I201+$J201,1,$H201,$G201*$H201,Options!$B$8)))","v":2554.6655722148998},{"$f":"IF(AND(OR(Calculations!$E$2=\"Orkney Health Board\",Calculations!$E$2=\"Orkney Islands Local Authority\"),$F201=1),0,IF(AND(OR(Calculations!$E$2=\"Shetland Health Board\",Calculations!$E$2=\"Western Isles Health Board\",Calculations!$E$2=\"Shetland Islands Local Authority\",Calculations!$E$2=\"Eilean Siar Local Authority\"),OR($F201=1,$F201=5)),0,hosp_count(VALUE(LEFT(Options!$B$24,2)),$C201,$E201,$F201,2016,$I201,1,$H201,$G201*$H201, Options!$B$8)))","v":4904.7371514212},{"$f":"IF(AND(OR(Calculations!$E$2=\"Orkney Health Board\",Calculations!$E$2=\"Orkney Islands Local Authority\"),$F201=1),0,IF(AND(OR(Calculations!$E$2=\"Shetland Health Board\",Calculations!$E$2=\"Western Isles Health Board\",Calculations!$E$2=\"Shetland Islands Local Authority\",Calculations!$E$2=\"Eilean Siar Local Authority\"),OR($F201=1,$F201=5)),0,hosp_count(VALUE(LEFT(Options!$B$24,2)),$C201,$E201,$F201,2016,$I201+$J201,1,$H201,$G201*$H201, Options!$B$8)))","v":4894.0875111016003},{"$f":"IF(AND(OR(Calculations!$E$2=\"Orkney Health Board\",Calculations!$E$2=\"Orkney Islands Local Authority\"),$F201=1),0,IF(AND(OR(Calculations!$E$2=\"Shetland Health Board\",Calculations!$E$2=\"Western Isles Health Board\",Calculations!$E$2=\"Shetland Islands Local Authority\",Calculations!$E$2=\"Eilean Siar Local Authority\"),OR($F201=1,$F201=5)),0,prem_mort(VALUE(LEFT(Options!$B$24,2)),$C201,$E201,$F201,2016,$I201,1,$H201,$G201*$H201,Options!$B$8)))","v":74.131279882900003},{"$f":"IF(AND(OR(Calculations!$E$2=\"Orkney Health Board\",Calculations!$E$2=\"Orkney Islands Local Authority\"),$F201=1),0,IF(AND(OR(Calculations!$E$2=\"Shetland Health Board\",Calculations!$E$2=\"Western Isles Health Board\",Calculations!$E$2=\"Shetland Islands Local Authority\",Calculations!$E$2=\"Eilean Siar Local Authority\"),OR($F201=1,$F201=5)),0,prem_mort(VALUE(LEFT(Options!$B$24,2)),$C201,$E201,$F201,2016,$I201+$J201,1,$H201,$G201*$H201,Options!$B$8)))","v":71.279737334100005},215.8241524481775,207.52223516391058,7735.1369762702352,7437.5962857077557,14279.54219,14248.537065044837,215.8241524481775,207.52223516391058,1510769.0671372425,1452655.6461473741,54145958.833891645,52063173.999954291,99956795.329999998,99739759.455313861,1510769.0671372425,1452655.6461473741,7000]
[null,"Male 45-49",47.038155000000003,79.418149999999997,"male",4,{"$f":"HLOOKUP(Calculations!$E$2,'Prevalence Rates'!$C$3:$BC$249,'Prevalence Rates'!$BD202,FALSE)","v":8.5057471264367815E-2},{"$f":"HLOOKUP(Calculations!$E$2,'Population 2016'!$C$3:$BC$249,'Population 2016'!BD202,FALSE)","v":39846},0,{"$f":"HLOOKUP(Results!E$4,Targeting!$C$3:$F$249,Targeting!$G202,FALSE)","v":2705},{"$f":"IF(AND(OR(Calculations!$E$2=\"Orkney Health Board\",Calculations!$E$2=\"Orkney Islands Local Authority\"),$F202=1),0,IF(AND(OR(Calculations!$E$2=\"Shetland Health Board\",Calculations!$E$2=\"Western Isles Health Board\",Calculations!$E$2=\"Shetland Islands Local Authority\",Calculations!$E$2=\"Eilean Siar Local Authority\"),OR($F202=1,$F202=5)),0,new_ci(VALUE(LEFT(Options!$B$24,2)),$C202,$E202,$F202,2016,$I202,1,$H202,$G202*$H202,Options!$B$8)))","v":125.0922687019},{"$f":"IF(AND(OR(Calculations!$E$2=\"Orkney Health Board\",Calculations!$E$2=\"Orkney Islands Local Authority\"),$F202=1),0,IF(AND(OR(Calculations!$E$2=\"Shetland Health Board\",Calculations!$E$2=\"Western Isles Health Board\",Calculations!$E$2=\"Shetland Islands Local Authority\",Calculations!$E$2=\"Eilean Siar Local Authority\"),OR($F202=1,$F202=5)),0,new_ci(VALUE(LEFT(Options!$B$24,2)),$C202,$E202,$F202,2016,$I202+$J202,1,$H202,$G202*$H202,Options!$B$8)))","v":120.3628007169},{"$f":"IF(AND(OR(Calculations!$E$2=\"Orkney Health Board\",Calculations!$E$2=\"Orkney Islands Local Authority\"),$F202=1),0,IF(AND(OR(Calculations!$E$2=\"Shetland Health Board\",Calculations!$E$2=\"Western Isles Health Board\",Calculations!$E$2=\"Shetland Islands Local Authority\",Calculations!$E$2=\"Eilean Siar Local Authority\"),OR($F202=1,$F202=5)),0,new_yllv2(VALUE(LEFT(Options!$B$24,2)),$C202,$D202,$E202,$F202,2016,$I202,1,$H202,$G202*$H202,Options!$B$8)))","v":3925.3947664042998},{"$f":"IF(AND(OR(Calculations!$E$2=\"Orkney Health Board\",Calculations!$E$2=\"Orkney Islands Local Authority\"),$F202=1),0,IF(AND(OR(Calculations!$E$2=\"Shetland Health Board\",Calculations!$E$2=\"Western Isles Health Board\",Calculations!$E$2=\"Shetland Islands Local Authority\",Calculations!$E$2=\"Eilean Siar Local Authority\"),OR($F202=1,$F202=5)),0,new_yllv2(VALUE(LEFT(Options!$B$24,2)),$C202,$D202,$E202,$F202,2016,$I202+$J202,1,$H202,$G202*$H202,Options!$B$8)))","v":3776.9840846822999},{"$f":"IF(AND(OR(Calculations!$E$2=\"Orkney Health Board\",Calculations!$E$2=\"Orkney Islands Local Authority\"),$F202=1),0,IF(AND(OR(Calculations!$E$2=\"Shetland Health Board\",Calculations!$E$2=\"Western Isles Health Board\",Calculations!$E$2=\"Shetland Islands Local Authority\",Calculations!$E$2=\"Eilean Siar Local Authority\"),OR($F202=1,$F202=5)),0,hosp_count(VALUE(LEFT(Options!$B$24,2)),$C202,$E202,$F202,2016,$I202,1,$H202,$G202*$H202, Options!$B$8)))","v":6787.6640703324001},{"$f":"IF(AND(OR(Calculations!$E$2=\"Orkney Health Board\",Calculations!$E$2=\"Orkney Islands Local Authority\"),$F202=1),0,IF(AND(OR(Calculations!$E$2=\"Shetland Health Board\",Calculations!$E$2=\"Western Isles Health Board\",Calculations!$E$2=\"Shetland Islands Local Authority\",Calculations!$E$2=\"Eilean Siar Local Authority\"),OR($F202=1,$F202=5)),0,hosp_count(VALUE(LEFT(Options!$B$24,2)),$C202,$E202,$F202,2016,$I202+$J202,1,$H202,$G202*$H202, Options!$B$8)))","v":6772.9340770073004},{"$f":"IF(AND(OR(Calculations!$E$2=\"Orkney Health Board\",Calculations!$E$2=\"Orkney Islands Local Authority\"),$F202=1),0,IF(AND(OR(Calculations!$E$2=\"Shetland Health Board\",Calculations!$E$2=\"Western Isles Health Board\",Calculations!$E$2=\"Shetland Islands Local Authority\",Calculations!$E$2=\"Eilean Siar Local Authority\"),OR($F202=1,$F202=5)),0,prem_mort(VALUE(LEFT(Options!$B$24,2)),$C202,$E202,$F202,2016,$I202,1,$H202,$G202*$H202,Options!$B$8)))","v":125.0922687019},{"$f":"IF(AND(OR(Calculations!$E$2=\"Orkney Health Board\",Calculations!$E$2=\"Orkney Islands Local Authority\"),$F202=1),0,IF(AND(OR(Calculations!$E$2=\"Shetland Health Board\",Calculations!$E$2=\"Western Isles Health Board\",Calculations!$E$2=\"Shetland Islands Local Authority\",Calculations!$E$2=\"Eilean Siar Local Authority\"),OR($F202=1,$F202=5)),0,prem_mort(VALUE(LEFT(Options!$B$24,2)),$C202,$E202,$F202,2016,$I202+$J202,1,$H202,$G202*$H202,Options!$B$8)))","v":120.3628007169},313.93933820684634,302.069971181298,9851.4148632342003,9478.9541853192295,17034.74394,16997.776632553585,313.93933820684634,302.069971181298,2197575.3674479243,2114489.7982690861,68959904.042639405,66352679.29723461,119243207.58,118984436.4278751,2197575.3674479243,2114489.7982690861,7000]
[null,"Male 50-54",51.998646000000001,79.988649999999993,"male",4,{"$f":"HLOOKUP(Calculations!$E$2,'Prevalence Rates'!$C$3:$BC$249,'Prevalence Rates'!$BD203,FALSE)","v":8.5057471264367815E-2},{"$f":"HLOOKUP(Calculations!$E$2,'Population 2016'!$C$3:$BC$249,'Population 2016'!BD203,FALSE)","v":42258},0,{"$f":"HLOOKUP(Results!E$4,Targeting!$C$3:$F$249,Targeting!$G203,FALSE)","v":2869},{"$f":"IF(AND(OR(Calculations!$E$2=\"Orkney Health Board\",Calculations!$E$2=\"Orkney Islands Local Authority\"),$F203=1),0,IF(AND(OR(Calculations!$E$2=\"Shetland Health Board\",Calculations!$E$2=\"Western Isles Health Board\",Calculations!$E$2=\"Shetland Islands Local Authority\",Calculations!$E$2=\"Eilean Siar Local Authority\"),OR($F203=1,$F203=5)),0,new_ci(VALUE(LEFT(Options!$B$24,2)),$C203,$E203,$F203,2016,$I203,1,$H203,$G203*$H203,Options!$B$8)))","v":192.78693269530001},{"$f":"IF(AND(OR(Calculations!$E$2=\"Orkney Health Board\",Calculations!$E$2=\"Orkney Islands Local Authority\"),$F203=1),0,IF(AND(OR(Calculations!$E$2=\"Shetland Health Board\",Calculations!$E$2=\"Western Isles Health Board\",Calculations!$E$2=\"Shetland Islands Local Authority\",Calculations!$E$2=\"Eilean Siar Local Authority\"),OR($F203=1,$F203=5)),0,new_ci(VALUE(LEFT(Options!$B$24,2)),$C203,$E203,$F203,2016,$I203+$J203,1,$H203,$G203*$H203,Options!$B$8)))","v":185.5064690694},{"$f":"IF(AND(OR(Calculations!$E$2=\"Orkney Health Board\",Calculations!$E$2=\"Orkney Islands Local Authority\"),$F203=1),0,IF(AND(OR(Calculations!$E$2=\"Shetland Health Board\",Calculations!$E$2=\"Western Isles Health Board\",Calculations!$E$2=\"Shetland Islands Local Authority\",Calculations!$E$2=\"Eilean Siar Local Authority\"),OR($F203=1,$F203=5)),0,new_yllv2(VALUE(LEFT(Options!$B$24,2)),$C203,$D203,$E203,$F203,2016,$I203,1,$H203,$G203*$H203,Options!$B$8)))","v":5203.3200845939},{"$f":"IF(AND(OR(Calculations!$E$2=\"Orkney Health Board\",Calculations!$E$2=\"Orkney Islands Local Authority\"),$F203=1),0,IF(AND(OR(Calculations!$E$2=\"Shetland Health Board\",Calculations!$E$2=\"Western Isles Health Board\",Calculations!$E$2=\"Shetland Islands Local Authority\",Calculations!$E$2=\"Eilean Siar Local Authority\"),OR($F203=1,$F203=5)),0,new_yllv2(VALUE(LEFT(Options!$B$24,2)),$C203,$D203,$E203,$F203,2016,$I203+$J203,1,$H203,$G203*$H203,Options!$B$8)))","v":5006.820342209},{"$f":"IF(AND(OR(Calculations!$E$2=\"Orkney Health Board\",Calculations!$E$2=\"Orkney Islands Local Authority\"),$F203=1),0,IF(AND(OR(Calculations!$E$2=\"Shetland Health Board\",Calculations!$E$2=\"Western Isles Health Board\",Calculations!$E$2=\"Shetland Islands Local Authority\",Calculations!$E$2=\"Eilean Siar Local Authority\"),OR($F203=1,$F203=5)),0,hosp_count(VALUE(LEFT(Options!$B$24,2)),$C203,$E203,$F203,2016,$I203,1,$H203,$G203*$H203, Options!$B$8)))","v":8584.4469732443995},{"$f":"IF(AND(OR(Calculations!$E$2=\"Orkney Health Board\",Calculations!$E$2=\"Orkney Islands Local Authority\"),$F203=1),0,IF(AND(OR(Calculations!$E$2=\"Shetland Health Board\",Calculations!$E$2=\"Western Isles Health Board\",Calculations!$E$2=\"Shetland Islands Local Authority\",Calculations!$E$2=\"Eilean Siar Local Authority\"),OR($F203=1,$F203=5)),0,hosp_count(VALUE(LEFT(Options!$B$24,2)),$C203,$E203,$F203,2016,$I203+$J203,1,$H203,$G203*$H203, Options!$B$8)))","v":8565.8160831481},{"$f":"IF(AND(OR(Calculations!$E$2=\"Orkney Health Board\",Calculations!$E$2=\"Orkney Islands Local Authority\"),$F203=1),0,IF(AND(OR(Calculations!$E$2=\"Shetland Health Board\",Calculations!$E$2=\"Western Isles Health Board\",Calculations!$E$2=\"Shetland Islands Local Authority\",Calculations!$E$2=\"Eilean Siar Local Authority\"),OR($F203=1,$F203=5)),0,prem_mort(VALUE(LEFT(Options!$B$24,2)),$C203,$E203,$F203,2016,$I203,1,$H203,$G203*$H203,Options!$B$8)))","v":192.78693269530001},{"$f":"IF(AND(OR(Calculations!$E$2=\"Orkney Health Board\",Calculations!$E$2=\"Orkney Islands Local Authority\"),$F203=1),0,IF(AND(OR(Calculations!$E$2=\"Shetland Health Board\",Calculations!$E$2=\"Western Isles Health Board\",Calculations!$E$2=\"Shetland Islands Local Authority\",Calculations!$E$2=\"Eilean Siar Local Authority\"),OR($F203=1,$F203=5)),0,prem_mort(VALUE(LEFT(Options!$B$24,2)),$C203,$E203,$F203,2016,$I203+$J203,1,$H203,$G203*$H203,Options!$B$8)))","v":185.5064690694},456.21404868971558,438.98544434047989,12313.21899899167,11848.218898691372,20314.371179999998,20270.282746812674,456.21404868971558,438.98544434047989,3193498.3408280089,3072898.1103833592,86192532.992941692,82937532.290839598,142200598.25999999,141891979.22768873,3193498.3408280089,3072898.1103833592,7000]
[null,"Male 55-59",56.950867000000002,80.660870000000003,"male",4,{"$f":"HLOOKUP(Calculations!$E$2,'Prevalence Rates'!$C$3:$BC$249,'Prevalence Rates'!$BD204,FALSE)","v":0.22762148337595908},{"$f":"HLOOKUP(Calculations!$E$2,'Population 2016'!$C$3:$BC$249,'Population 2016'!BD204,FALSE)","v":38483},0,{"$f":"HLOOKUP(Results!E$4,Targeting!$C$3:$F$249,Targeting!$G204,FALSE)","v":2612},{"$f":"IF(AND(OR(Calculations!$E$2=\"Orkney Health Board\",Calculations!$E$2=\"Orkney Islands Local Authority\"),$F204=1),0,IF(AND(OR(Calculations!$E$2=\"Shetland Health Board\",Calculations!$E$2=\"Western Isles Health Board\",Calculations!$E$2=\"Shetland Islands Local Authority\",Calculations!$E$2=\"Eilean Siar Local Authority\"),OR($F204=1,$F204=5)),0,new_ci(VALUE(LEFT(Options!$B$24,2)),$C204,$E204,$F204,2016,$I204,1,$H204,$G204*$H204,Options!$B$8)))","v":254.85475576179999},{"$f":"IF(AND(OR(Calculations!$E$2=\"Orkney Health Board\",Calculations!$E$2=\"Orkney Islands Local Authority\"),$F204=1),0,IF(AND(OR(Calculations!$E$2=\"Shetland Health Board\",Calculations!$E$2=\"Western Isles Health Board\",Calculations!$E$2=\"Shetland Islands Local Authority\",Calculations!$E$2=\"Eilean Siar Local Authority\"),OR($F204=1,$F204=5)),0,new_ci(VALUE(LEFT(Options!$B$24,2)),$C204,$E204,$F204,2016,$I204+$J204,1,$H204,$G204*$H204,Options!$B$8)))","v":246.14865050099999},{"$f":"IF(AND(OR(Calculations!$E$2=\"Orkney Health Board\",Calculations!$E$2=\"Orkney Islands Local Authority\"),$F204=1),0,IF(AND(OR(Calculations!$E$2=\"Shetland Health Board\",Calculations!$E$2=\"Western Isles Health Board\",Calculations!$E$2=\"Shetland Islands Local Authority\",Calculations!$E$2=\"Eilean Siar Local Authority\"),OR($F204=1,$F204=5)),0,new_yllv2(VALUE(LEFT(Options!$B$24,2)),$C204,$D204,$E204,$F204,2016,$I204,1,$H204,$G204*$H204,Options!$B$8)))","v":5787.7522679146996},{"$f":"IF(AND(OR(Calculations!$E$2=\"Orkney Health Board\",Calculations!$E$2=\"Orkney Islands Local Authority\"),$F204=1),0,IF(AND(OR(Calculations!$E$2=\"Shetland Health Board\",Calculations!$E$2=\"Western Isles Health Board\",Calculations!$E$2=\"Shetland Islands Local Authority\",Calculations!$E$2=\"Eilean Siar Local Authority\"),OR($F204=1,$F204=5)),0,new_yllv2(VALUE(LEFT(Options!$B$24,2)),$C204,$D204,$E204,$F204,2016,$I204+$J204,1,$H204,$G204*$H204,Options!$B$8)))","v":5590.0365913237001},{"$f":"IF(AND(OR(Calculations!$E$2=\"Orkney Health Board\",Calculations!$E$2=\"Orkney Islands Local Authority\"),$F204=1),0,IF(AND(OR(Calculations!$E$2=\"Shetland Health Board\",Calculations!$E$2=\"Western Isles Health Board\",Calculations!$E$2=\"Shetland Islands Local Authority\",Calculations!$E$2=\"Eilean Siar Local Authority\"),OR($F204=1,$F204=5)),0,hosp_count(VALUE(LEFT(Options!$B$24,2)),$C204,$E204,$F204,2016,$I204,1,$H204,$G204*$H204, Options!$B$8)))","v":9319.9287622851007},{"$f":"IF(AND(OR(Calculations!$E$2=\"Orkney Health Board\",Calculations!$E$2=\"Orkney Islands Local Authority\"),$F204=1),0,IF(AND(OR(Calculations!$E$2=\"Shetland Health Board\",Calculations!$E$2=\"Western Isles Health Board\",Calculations!$E$2=\"Shetland Islands Local Authority\",Calculations!$E$2=\"Eilean Siar Local Authority\"),OR($F204=1,$F204=5)),0,hosp_count(VALUE(LEFT(Options!$B$24,2)),$C204,$E204,$F204,2016,$I204+$J204,1,$H204,$G204*$H204, Options!$B$8)))","v":9299.7645118754008},{"$f":"IF(AND(OR(Calculations!$E$2=\"Orkney Health Board\",Calculations!$E$2=\"Orkney Islands Local Authority\"),$F204=1),0,IF(AND(OR(Calculations!$E$2=\"Shetland Health Board\",Calculations!$E$2=\"Western Isles Health Board\",Calculations!$E$2=\"Shetland Islands Local Authority\",Calculations!$E$2=\"Eilean Siar Local Authority\"),OR($F204=1,$F204=5)),0,prem_mort(VALUE(LEFT(Options!$B$24,2)),$C204,$E204,$F204,2016,$I204,1,$H204,$G204*$H204,Options!$B$8)))","v":254.85475576179999},{"$f":"IF(AND(OR(Calculations!$E$2=\"Orkney Health Board\",Calculations!$E$2=\"Orkney Islands Local Authority\"),$F204=1),0,IF(AND(OR(Calculations!$E$2=\"Shetland Health Board\",Calculations!$E$2=\"Western Isles Health Board\",Calculations!$E$2=\"Shetland Islands Local Authority\",Calculations!$E$2=\"Eilean Siar Local Authority\"),OR($F204=1,$F204=5)),0,prem_mort(VALUE(LEFT(Options!$B$24,2)),$C204,$E204,$F204,2016,$I204+$J204,1,$H204,$G204*$H204,Options!$B$8)))","v":246.14865050099999},662.25282790271024,639.62957799807702,15039.763708428914,14525.989635225164,24218.30097,24165.903156914483,662.25282790271024,639.62957799807702,4304643.3813676164,4157592.2569875005,97758464.104787946,94418932.62896356,157418956.30500001,157078370.51994413,4304643.3813676164,4157592.2569875005,6500]
[null,"Male 60-64",61.942988999999997,81.612989999999996,"male",4,{"$f":"HLOOKUP(Calculations!$E$2,'Prevalence Rates'!$C$3:$BC$249,'Prevalence Rates'!$BD205,FALSE)","v":0.22762148337595908},{"$f":"HLOOKUP(Calculations!$E$2,'Population 2016'!$C$3:$BC$249,'Population 2016'!BD205,FALSE)","v":33820},0,{"$f":"HLOOKUP(Results!E$4,Targeting!$C$3:$F$249,Targeting!$G205,FALSE)","v":2296},{"$f":"IF(AND(OR(Calculations!$E$2=\"Orkney Health Board\",Calculations!$E$2=\"Orkney Islands Local Authority\"),$F205=1),0,IF(AND(OR(Calculations!$E$2=\"Shetland Health Board\",Calculations!$E$2=\"Western Isles Health Board\",Calculations!$E$2=\"Shetland Islands Local Authority\",Calculations!$E$2=\"Eilean Siar Local Authority\"),OR($F205=1,$F205=5)),0,new_ci(VALUE(LEFT(Options!$B$24,2)),$C205,$E205,$F205,2016,$I205,1,$H205,$G205*$H205,Options!$B$8)))","v":325.96435960330001},{"$f":"IF(AND(OR(Calculations!$E$2=\"Orkney Health Board\",Calculations!$E$2=\"Orkney Islands Local Authority\"),$F205=1),0,IF(AND(OR(Calculations!$E$2=\"Shetland Health Board\",Calculations!$E$2=\"Western Isles Health Board\",Calculations!$E$2=\"Shetland Islands Local Authority\",Calculations!$E$2=\"Eilean Siar Local Authority\"),OR($F205=1,$F205=5)),0,new_ci(VALUE(LEFT(Options!$B$24,2)),$C205,$E205,$F205,2016,$I205+$J205,1,$H205,$G205*$H205,Options!$B$8)))","v":314.85107144249997},{"$f":"IF(AND(OR(Calculations!$E$2=\"Orkney Health Board\",Calculations!$E$2=\"Orkney Islands Local Authority\"),$F205=1),0,IF(AND(OR(Calculations!$E$2=\"Shetland Health Board\",Calculations!$E$2=\"Western Isles Health Board\",Calculations!$E$2=\"Shetland Islands Local Authority\",Calculations!$E$2=\"Eilean Siar Local Authority\"),OR($F205=1,$F205=5)),0,new_yllv2(VALUE(LEFT(Options!$B$24,2)),$C205,$D205,$E205,$F205,2016,$I205,1,$H205,$G205*$H205,Options!$B$8)))","v":6085.7549197580001},{"$f":"IF(AND(OR(Calculations!$E$2=\"Orkney Health Board\",Calculations!$E$2=\"Orkney Islands Local Authority\"),$F205=1),0,IF(AND(OR(Calculations!$E$2=\"Shetland Health Board\",Calculations!$E$2=\"Western Isles Health Board\",Calculations!$E$2=\"Shetland Islands Local Authority\",Calculations!$E$2=\"Eilean Siar Local Authority\"),OR($F205=1,$F205=5)),0,new_yllv2(VALUE(LEFT(Options!$B$24,2)),$C205,$D205,$E205,$F205,2016,$I205+$J205,1,$H205,$G205*$H205,Options!$B$8)))","v":5878.2698186825},{"$f":"IF(AND(OR(Calculations!$E$2=\"Orkney Health Board\",Calculations!$E$2=\"Orkney Islands Local Authority\"),$F205=1),0,IF(AND(OR(Calculations!$E$2=\"Shetland Health Board\",Calculations!$E$2=\"Western Isles Health Board\",Calculations!$E$2=\"Shetland Islands Local Authority\",Calculations!$E$2=\"Eilean Siar Local Authority\"),OR($F205=1,$F205=5)),0,hosp_count(VALUE(LEFT(Options!$B$24,2)),$C205,$E205,$F205,2016,$I205,1,$H205,$G205*$H205, Options!$B$8)))","v":9778.5092826239998},{"$f":"IF(AND(OR(Calculations!$E$2=\"Orkney Health Board\",Calculations!$E$2=\"Orkney Islands Local Authority\"),$F205=1),0,IF(AND(OR(Calculations!$E$2=\"Shetland Health Board\",Calculations!$E$2=\"Western Isles Health Board\",Calculations!$E$2=\"Shetland Islands Local Authority\",Calculations!$E$2=\"Eilean Siar Local Authority\"),OR($F205=1,$F205=5)),0,hosp_count(VALUE(LEFT(Options!$B$24,2)),$C205,$E205,$F205,2016,$I205+$J205,1,$H205,$G205*$H205, Options!$B$8)))","v":9757.3482834515999},{"$f":"IF(AND(OR(Calculations!$E$2=\"Orkney Health Board\",Calculations!$E$2=\"Orkney Islands Local Authority\"),$F205=1),0,IF(AND(OR(Calculations!$E$2=\"Shetland Health Board\",Calculations!$E$2=\"Western Isles Health Board\",Calculations!$E$2=\"Shetland Islands Local Authority\",Calculations!$E$2=\"Eilean Siar Local Authority\"),OR($F205=1,$F205=5)),0,prem_mort(VALUE(LEFT(Options!$B$24,2)),$C205,$E205,$F205,2016,$I205,1,$H205,$G205*$H205,Options!$B$8)))","v":325.96435960330001},{"$f":"IF(AND(OR(Calculations!$E$2=\"Orkney Health Board\",Calculations!$E$2=\"Orkney Islands Local Authority\"),$F205=1),0,IF(AND(OR(Calculations!$E$2=\"Shetland Health Board\",Calculations!$E$2=\"Western Isles Health Board\",Calculations!$E$2=\"Shetland Islands Local Authority\",Calculations!$E$2=\"Eilean Siar Local Authority\"),OR($F205=1,$F205=5)),0,prem_mort(VALUE(LEFT(Options!$B$24,2)),$C205,$E205,$F205,2016,$I205+$J205,1,$H205,$G205*$H205,Options!$B$8)))","v":314.85107144249997},963.82128800502664,930.96118108367818,17994.544410875224,17381.046181793317,28913.392320000003,28850.822836935542,963.82128800502664,930.96118108367818,5782927.7280301601,5585767.0865020687,107967266.46525134,104286277.0907599,173480353.92000002,173104937.02161324,5782927.7280301601,5585767.0865020687,6000]
[null,"Male 65-69",67.054419999999993,82.954419999999999,"male",4,{"$f":"HLOOKUP(Calculations!$E$2,'Prevalence Rates'!$C$3:$BC$249,'Prevalence Rates'!$BD206,FALSE)","v":0},{"$f":"HLOOKUP(Calculations!$E$2,'Population 2016'!$C$3:$BC$249,'Population 2016'!BD206,FALSE)","v":33114},0,{"$f":"HLOOKUP(Results!E$4,Targeting!$C$3:$F$249,Targeting!$G206,FALSE)","v":0},{"$f":"IF(AND(OR(Calculations!$E$2=\"Orkney Health Board\",Calculations!$E$2=\"Orkney Islands Local Authority\"),$F206=1),0,IF(AND(OR(Calculations!$E$2=\"Shetland Health Board\",Calculations!$E$2=\"Western Isles Health Board\",Calculations!$E$2=\"Shetland Islands Local Authority\",Calculations!$E$2=\"Eilean Siar Local Authority\"),OR($F206=1,$F206=5)),0,new_ci(VALUE(LEFT(Options!$B$24,2)),$C206,$E206,$F206,2016,$I206,1,$H206,$G206*$H206,Options!$B$8)))","v":468.57112352220003},{"$f":"IF(AND(OR(Calculations!$E$2=\"Orkney Health Board\",Calculations!$E$2=\"Orkney Islands Local Authority\"),$F206=1),0,IF(AND(OR(Calculations!$E$2=\"Shetland Health Board\",Calculations!$E$2=\"Western Isles Health Board\",Calculations!$E$2=\"Shetland Islands Local Authority\",Calculations!$E$2=\"Eilean Siar Local Authority\"),OR($F206=1,$F206=5)),0,new_ci(VALUE(LEFT(Options!$B$24,2)),$C206,$E206,$F206,2016,$I206+$J206,1,$H206,$G206*$H206,Options!$B$8)))","v":468.57112352220003},{"$f":"IF(AND(OR(Calculations!$E$2=\"Orkney Health Board\",Calculations!$E$2=\"Orkney Islands Local Authority\"),$F206=1),0,IF(AND(OR(Calculations!$E$2=\"Shetland Health Board\",Calculations!$E$2=\"Western Isles Health Board\",Calculations!$E$2=\"Shetland Islands Local Authority\",Calculations!$E$2=\"Eilean Siar Local Authority\"),OR($F206=1,$F206=5)),0,new_yllv2(VALUE(LEFT(Options!$B$24,2)),$C206,$D206,$E206,$F206,2016,$I206,1,$H206,$G206*$H206,Options!$B$8)))","v":6981.7097404808001},{"$f":"IF(AND(OR(Calculations!$E$2=\"Orkney Health Board\",Calculations!$E$2=\"Orkney Islands Local Authority\"),$F206=1),0,IF(AND(OR(Calculations!$E$2=\"Shetland Health Board\",Calculations!$E$2=\"Western Isles Health Board\",Calculations!$E$2=\"Shetland Islands Local Authority\",Calculations!$E$2=\"Eilean Siar Local Authority\"),OR($F206=1,$F206=5)),0,new_yllv2(VALUE(LEFT(Options!$B$24,2)),$C206,$D206,$E206,$F206,2016,$I206+$J206,1,$H206,$G206*$H206,Options!$B$8)))","v":6981.7097404808001},{"$f":"IF(AND(OR(Calculations!$E$2=\"Orkney Health Board\",Calculations!$E$2=\"Orkney Islands Local Authority\"),$F206=1),0,IF(AND(OR(Calculations!$E$2=\"Shetland Health Board\",Calculations!$E$2=\"Western Isles Health Board\",Calculations!$E$2=\"Shetland Islands Local Authority\",Calculations!$E$2=\"Eilean Siar Local Authority\"),OR($F206=1,$F206=5)),0,hosp_count(VALUE(LEFT(Options!$B$24,2)),$C206,$E206,$F206,2016,$I206,1,$H206,$G206*$H206, Options!$B$8)))","v":11479.031884186799},{"$f":"IF(AND(OR(Calculations!$E$2=\"Orkney Health Board\",Calculations!$E$2=\"Orkney Islands Local Authority\"),$F206=1),0,IF(AND(OR(Calculations!$E$2=\"Shetland Health Board\",Calculations!$E$2=\"Western Isles Health Board\",Calculations!$E$2=\"Shetland Islands Local Authority\",Calculations!$E$2=\"Eilean Siar Local Authority\"),OR($F206=1,$F206=5)),0,hosp_count(VALUE(LEFT(Options!$B$24,2)),$C206,$E206,$F206,2016,$I206+$J206,1,$H206,$G206*$H206, Options!$B$8)))","v":11479.031884186799},{"$f":"IF(AND(OR(Calculations!$E$2=\"Orkney Health Board\",Calculations!$E$2=\"Orkney Islands Local Authority\"),$F206=1),0,IF(AND(OR(Calculations!$E$2=\"Shetland Health Board\",Calculations!$E$2=\"Western Isles Health Board\",Calculations!$E$2=\"Shetland Islands Local Authority\",Calculations!$E$2=\"Eilean Siar Local Authority\"),OR($F206=1,$F206=5)),0,prem_mort(VALUE(LEFT(Options!$B$24,2)),$C206,$E206,$F206,2016,$I206,1,$H206,$G206*$H206,Options!$B$8)))","v":468.57112352220003},{"$f":"IF(AND(OR(Calculations!$E$2=\"Orkney Health Board\",Calculations!$E$2=\"Orkney Islands Local Authority\"),$F206=1),0,IF(AND(OR(Calculations!$E$2=\"Shetland Health Board\",Calculations!$E$2=\"Western Isles Health Board\",Calculations!$E$2=\"Shetland Islands Local Authority\",Calculations!$E$2=\"Eilean Siar Local Authority\"),OR($F206=1,$F206=5)),0,prem_mort(VALUE(LEFT(Options!$B$24,2)),$C206,$E206,$F206,2016,$I206+$J206,1,$H206,$G206*$H206,Options!$B$8)))","v":468.57112352220003},1415.02423,1415.02423,21083.861027000061,21083.861027000061,34665.192620000002,34665.192620000002,1415.02423,1415.02423,7782633.2649999997,7782633.2649999997,115961235.64850034,115961235.64850034,190658559.41,190658559.41,7782633.2649999997,7782633.2649999997,5500]
[null,"Male 70-74",71.891098,84.341099999999997,"male",4,{"$f":"HLOOKUP(Calculations!$E$2,'Prevalence Rates'!$C$3:$BC$249,'Prevalence Rates'!$BD207,FALSE)","v":0},{"$f":"HLOOKUP(Calculations!$E$2,'Population 2016'!$C$3:$BC$249,'Population 2016'!BD207,FALSE)","v":24360},0,{"$f":"HLOOKUP(Results!E$4,Targeting!$C$3:$F$249,Targeting!$G207,FALSE)","v":0},{"$f":"IF(AND(OR(Calculations!$E$2=\"Orkney Health Board\",Calculations!$E$2=\"Orkney Islands Local Authority\"),$F207=1),0,IF(AND(OR(Calculations!$E$2=\"Shetland Health Board\",Calculations!$E$2=\"Western Isles Health Board\",Calculations!$E$2=\"Shetland Islands Local Authority\",Calculations!$E$2=\"Eilean Siar Local Authority\"),OR($F207=1,$F207=5)),0,new_ci(VALUE(LEFT(Options!$B$24,2)),$C207,$E207,$F207,2016,$I207,1,$H207,$G207*$H207,Options!$B$8)))","v":495.07082318400001},{"$f":"IF(AND(OR(Calculations!$E$2=\"Orkney Health Board\",Calculations!$E$2=\"Orkney Islands Local Authority\"),$F207=1),0,IF(AND(OR(Calculations!$E$2=\"Shetland Health Board\",Calculations!$E$2=\"Western Isles Health Board\",Calculations!$E$2=\"Shetland Islands Local Authority\",Calculations!$E$2=\"Eilean Siar Local Authority\"),OR($F207=1,$F207=5)),0,new_ci(VALUE(LEFT(Options!$B$24,2)),$C207,$E207,$F207,2016,$I207+$J207,1,$H207,$G207*$H207,Options!$B$8)))","v":495.07082318400001},{"$f":"IF(AND(OR(Calculations!$E$2=\"Orkney Health Board\",Calculations!$E$2=\"Orkney Islands Local Authority\"),$F207=1),0,IF(AND(OR(Calculations!$E$2=\"Shetland Health Board\",Calculations!$E$2=\"Western Isles Health Board\",Calculations!$E$2=\"Shetland Islands Local Authority\",Calculations!$E$2=\"Eilean Siar Local Authority\"),OR($F207=1,$F207=5)),0,new_yllv2(VALUE(LEFT(Options!$B$24,2)),$C207,$D207,$E207,$F207,2016,$I207,1,$H207,$G207*$H207,Options!$B$8)))","v":5668.5619155984004},{"$f":"IF(AND(OR(Calculations!$E$2=\"Orkney Health Board\",Calculations!$E$2=\"Orkney Islands Local Authority\"),$F207=1),0,IF(AND(OR(Calculations!$E$2=\"Shetland Health Board\",Calculations!$E$2=\"Western Isles Health Board\",Calculations!$E$2=\"Shetland Islands Local Authority\",Calculations!$E$2=\"Eilean Siar Local Authority\"),OR($F207=1,$F207=5)),0,new_yllv2(VALUE(LEFT(Options!$B$24,2)),$C207,$D207,$E207,$F207,2016,$I207+$J207,1,$H207,$G207*$H207,Options!$B$8)))","v":5668.5619155984004},{"$f":"IF(AND(OR(Calculations!$E$2=\"Orkney Health Board\",Calculations!$E$2=\"Orkney Islands Local Authority\"),$F207=1),0,IF(AND(OR(Calculations!$E$2=\"Shetland Health Board\",Calculations!$E$2=\"Western Isles Health Board\",Calculations!$E$2=\"Shetland Islands Local Authority\",Calculations!$E$2=\"Eilean Siar Local Authority\"),OR($F207=1,$F207=5)),0,hosp_count(VALUE(LEFT(Options!$B$24,2)),$C207,$E207,$F207,2016,$I207,1,$H207,$G207*$H207, Options!$B$8)))","v":10026.054313548},{"$f":"IF(AND(OR(Calculations!$E$2=\"Orkney Health Board\",Calculations!$E$2=\"Orkney Islands Local Authority\"),$F207=1),0,IF(AND(OR(Calculations!$E$2=\"Shetland Health Board\",Calculations!$E$2=\"Western Isles Health Board\",Calculations!$E$2=\"Shetland Islands Local Authority\",Calculations!$E$2=\"Eilean Siar Local Authority\"),OR($F207=1,$F207=5)),0,hosp_count(VALUE(LEFT(Options!$B$24,2)),$C207,$E207,$F207,2016,$I207+$J207,1,$H207,$G207*$H207, Options!$B$8)))","v":10026.054313548},{"$f":"IF(AND(OR(Calculations!$E$2=\"Orkney Health Board\",Calculations!$E$2=\"Orkney Islands Local Authority\"),$F207=1),0,IF(AND(OR(Calculations!$E$2=\"Shetland Health Board\",Calculations!$E$2=\"Western Isles Health Board\",Calculations!$E$2=\"Shetland Islands Local Authority\",Calculations!$E$2=\"Eilean Siar Local Authority\"),OR($F207=1,$F207=5)),0,prem_mort(VALUE(LEFT(Options!$B$24,2)),$C207,$E207,$F207,2016,$I207,1,$H207,$G207*$H207,Options!$B$8)))","v":495.07082318400001},{"$f":"IF(AND(OR(Calculations!$E$2=\"Orkney Health Board\",Calculations!$E$2=\"Orkney Islands Local Authority\"),$F207=1),0,IF(AND(OR(Calculations!$E$2=\"Shetland Health Board\",Calculations!$E$2=\"Western Isles Health Board\",Calculations!$E$2=\"Shetland Islands Local Authority\",Calculations!$E$2=\"Eilean Siar Local Authority\"),OR($F207=1,$F207=5)),0,prem_mort(VALUE(LEFT(Options!$B$24,2)),$C207,$E207,$F207,2016,$I207+$J207,1,$H207,$G207*$H207,Options!$B$8)))","v":495.07082318400001},2032.3104400000002,2032.3104400000002,23269.958602620693,23269.958602620693,41157.85843,41157.85843,2032.3104400000002,2032.3104400000002,10161552.200000001,10161552.200000001,116349793.01310346,116349793.01310346,205789292.15000001,205789292.15000001,10161552.200000001,10161552.200000001,5000]
[null,"Male 75-79",76.907700000000006,86.357700000000008,"male",4,{"$f":"HLOOKUP(Calculations!$E$2,'Prevalence Rates'!$C$3:$BC$249,'Prevalence Rates'!$BD208,FALSE)","v":0},{"$f":"HLOOKUP(Calculations!$E$2,'Population 2016'!$C$3:$BC$249,'Population 2016'!BD208,FALSE)","v":17285},0,{"$f":"HLOOKUP(Results!E$4,Targeting!$C$3:$F$249,Targeting!$G208,FALSE)","v":0},{"$f":"IF(AND(OR(Calculations!$E$2=\"Orkney Health Board\",Calculations!$E$2=\"Orkney Islands Local Authority\"),$F208=1),0,IF(AND(OR(Calculations!$E$2=\"Shetland Health Board\",Calculations!$E$2=\"Western Isles Health Board\",Calculations!$E$2=\"Shetland Islands Local Authority\",Calculations!$E$2=\"Eilean Siar Local Authority\"),OR($F208=1,$F208=5)),0,new_ci(VALUE(LEFT(Options!$B$24,2)),$C208,$E208,$F208,2016,$I208,1,$H208,$G208*$H208,Options!$B$8)))","v":510.62337037449998},{"$f":"IF(AND(OR(Calculations!$E$2=\"Orkney Health Board\",Calculations!$E$2=\"Orkney Islands Local Authority\"),$F208=1),0,IF(AND(OR(Calculations!$E$2=\"Shetland Health Board\",Calculations!$E$2=\"Western Isles Health Board\",Calculations!$E$2=\"Shetland Islands Local Authority\",Calculations!$E$2=\"Eilean Siar Local Authority\"),OR($F208=1,$F208=5)),0,new_ci(VALUE(LEFT(Options!$B$24,2)),$C208,$E208,$F208,2016,$I208+$J208,1,$H208,$G208*$H208,Options!$B$8)))","v":510.62337037449998},{"$f":"IF(AND(OR(Calculations!$E$2=\"Orkney Health Board\",Calculations!$E$2=\"Orkney Islands Local Authority\"),$F208=1),0,IF(AND(OR(Calculations!$E$2=\"Shetland Health Board\",Calculations!$E$2=\"Western Isles Health Board\",Calculations!$E$2=\"Shetland Islands Local Authority\",Calculations!$E$2=\"Eilean Siar Local Authority\"),OR($F208=1,$F208=5)),0,new_yllv2(VALUE(LEFT(Options!$B$24,2)),$C208,$D208,$E208,$F208,2016,$I208,1,$H208,$G208*$H208,Options!$B$8)))","v":4314.7674796644997},{"$f":"IF(AND(OR(Calculations!$E$2=\"Orkney Health Board\",Calculations!$E$2=\"Orkney Islands Local Authority\"),$F208=1),0,IF(AND(OR(Calculations!$E$2=\"Shetland Health Board\",Calculations!$E$2=\"Western Isles Health Board\",Calculations!$E$2=\"Shetland Islands Local Authority\",Calculations!$E$2=\"Eilean Siar Local Authority\"),OR($F208=1,$F208=5)),0,new_yllv2(VALUE(LEFT(Options!$B$24,2)),$C208,$D208,$E208,$F208,2016,$I208+$J208,1,$H208,$G208*$H208,Options!$B$8)))","v":4314.7674796644997},{"$f":"IF(AND(OR(Calculations!$E$2=\"Orkney Health Board\",Calculations!$E$2=\"Orkney Islands Local Authority\"),$F208=1),0,IF(AND(OR(Calculations!$E$2=\"Shetland Health Board\",Calculations!$E$2=\"Western Isles Health Board\",Calculations!$E$2=\"Shetland Islands Local Authority\",Calculations!$E$2=\"Eilean Siar Local Authority\"),OR($F208=1,$F208=5)),0,hosp_count(VALUE(LEFT(Options!$B$24,2)),$C208,$E208,$F208,2016,$I208,1,$H208,$G208*$H208, Options!$B$8)))","v":8500.7040771635002},{"$f":"IF(AND(OR(Calculations!$E$2=\"Orkney Health Board\",Calculations!$E$2=\"Orkney Islands Local Authority\"),$F208=1),0,IF(AND(OR(Calculations!$E$2=\"Shetland Health Board\",Calculations!$E$2=\"Western Isles Health Board\",Calculations!$E$2=\"Shetland Islands Local Authority\",Calculations!$E$2=\"Eilean Siar Local Authority\"),OR($F208=1,$F208=5)),0,hosp_count(VALUE(LEFT(Options!$B$24,2)),$C208,$E208,$F208,2016,$I208+$J208,1,$H208,$G208*$H208, Options!$B$8)))","v":8500.7040771635002},{"$f":"IF(AND(OR(Calculations!$E$2=\"Orkney Health Board\",Calculations!$E$2=\"Orkney Islands Local Authority\"),$F208=1),0,IF(AND(OR(Calculations!$E$2=\"Shetland Health Board\",Calculations!$E$2=\"Western Isles Health Board\",Calculations!$E$2=\"Shetland Islands Local Authority\",Calculations!$E$2=\"Eilean Siar Local Authority\"),OR($F208=1,$F208=5)),0,prem_mort(VALUE(LEFT(Options!$B$24,2)),$C208,$E208,$F208,2016,$I208,1,$H208,$G208*$H208,Options!$B$8)))","v":0},{"$f":"IF(AND(OR(Calculations!$E$2=\"Orkney Health Board\",Calculations!$E$2=\"Orkney Islands Local Authority\"),$F208=1),0,IF(AND(OR(Calculations!$E$2=\"Shetland Health Board\",Calculations!$E$2=\"Western Isles Health Board\",Calculations!$E$2=\"Shetland Islands Local Authority\",Calculations!$E$2=\"Eilean Siar Local Authority\"),OR($F208=1,$F208=5)),0,prem_mort(VALUE(LEFT(Options!$B$24,2)),$C208,$E208,$F208,2016,$I208+$J208,1,$H208,$G208*$H208,Options!$B$8)))","v":0},2954.1415700000002,2954.1415700000002,24962.496266499853,24962.496266499853,49179.659110000001,49179.659110000001,0,0,11816566.280000001,11816566.280000001,99849985.065999418,99849985.065999418,196718636.44,196718636.44,0,0,4000]
[null,"Male 80-84",81.797089,88.627089999999995,"male",4,{"$f":"HLOOKUP(Calculations!$E$2,'Prevalence Rates'!$C$3:$BC$249,'Prevalence Rates'!$BD209,FALSE)","v":0},{"$f":"HLOOKUP(Calculations!$E$2,'Population 2016'!$C$3:$BC$249,'Population 2016'!BD209,FALSE)","v":11713},0,{"$f":"HLOOKUP(Results!E$4,Targeting!$C$3:$F$249,Targeting!$G209,FALSE)","v":0},{"$f":"IF(AND(OR(Calculations!$E$2=\"Orkney Health Board\",Calculations!$E$2=\"Orkney Islands Local Authority\"),$F209=1),0,IF(AND(OR(Calculations!$E$2=\"Shetland Health Board\",Calculations!$E$2=\"Western Isles Health Board\",Calculations!$E$2=\"Shetland Islands Local Authority\",Calculations!$E$2=\"Eilean Siar Local Authority\"),OR($F209=1,$F209=5)),0,new_ci(VALUE(LEFT(Options!$B$24,2)),$C209,$E209,$F209,2016,$I209,1,$H209,$G209*$H209,Options!$B$8)))","v":497.19228198249999},{"$f":"IF(AND(OR(Calculations!$E$2=\"Orkney Health Board\",Calculations!$E$2=\"Orkney Islands Local Authority\"),$F209=1),0,IF(AND(OR(Calculations!$E$2=\"Shetland Health Board\",Calculations!$E$2=\"Western Isles Health Board\",Calculations!$E$2=\"Shetland Islands Local Authority\",Calculations!$E$2=\"Eilean Siar Local Authority\"),OR($F209=1,$F209=5)),0,new_ci(VALUE(LEFT(Options!$B$24,2)),$C209,$E209,$F209,2016,$I209+$J209,1,$H209,$G209*$H209,Options!$B$8)))","v":497.19228198249999},{"$f":"IF(AND(OR(Calculations!$E$2=\"Orkney Health Board\",Calculations!$E$2=\"Orkney Islands Local Authority\"),$F209=1),0,IF(AND(OR(Calculations!$E$2=\"Shetland Health Board\",Calculations!$E$2=\"Western Isles Health Board\",Calculations!$E$2=\"Shetland Islands Local Authority\",Calculations!$E$2=\"Eilean Siar Local Authority\"),OR($F209=1,$F209=5)),0,new_yllv2(VALUE(LEFT(Options!$B$24,2)),$C209,$D209,$E209,$F209,2016,$I209,1,$H209,$G209*$H209,Options!$B$8)))","v":2898.6315011503002},{"$f":"IF(AND(OR(Calculations!$E$2=\"Orkney Health Board\",Calculations!$E$2=\"Orkney Islands Local Authority\"),$F209=1),0,IF(AND(OR(Calculations!$E$2=\"Shetland Health Board\",Calculations!$E$2=\"Western Isles Health Board\",Calculations!$E$2=\"Shetland Islands Local Authority\",Calculations!$E$2=\"Eilean Siar Local Authority\"),OR($F209=1,$F209=5)),0,new_yllv2(VALUE(LEFT(Options!$B$24,2)),$C209,$D209,$E209,$F209,2016,$I209+$J209,1,$H209,$G209*$H209,Options!$B$8)))","v":2898.6315011503002},{"$f":"IF(AND(OR(Calculations!$E$2=\"Orkney Health Board\",Calculations!$E$2=\"Orkney Islands Local Authority\"),$F209=1),0,IF(AND(OR(Calculations!$E$2=\"Shetland Health Board\",Calculations!$E$2=\"Western Isles Health Board\",Calculations!$E$2=\"Shetland Islands Local Authority\",Calculations!$E$2=\"Eilean Siar Local Authority\"),OR($F209=1,$F209=5)),0,hosp_count(VALUE(LEFT(Options!$B$24,2)),$C209,$E209,$F209,2016,$I209,1,$H209,$G209*$H209, Options!$B$8)))","v":6852.1264324473996},{"$f":"IF(AND(OR(Calculations!$E$2=\"Orkney Health Board\",Calculations!$E$2=\"Orkney Islands Local Authority\"),$F209=1),0,IF(AND(OR(Calculations!$E$2=\"Shetland Health Board\",Calculations!$E$2=\"Western Isles Health Board\",Calculations!$E$2=\"Shetland Islands Local Authority\",Calculations!$E$2=\"Eilean Siar Local Authority\"),OR($F209=1,$F209=5)),0,hosp_count(VALUE(LEFT(Options!$B$24,2)),$C209,$E209,$F209,2016,$I209+$J209,1,$H209,$G209*$H209, Options!$B$8)))","v":6852.1264324473996},{"$f":"IF(AND(OR(Calculations!$E$2=\"Orkney Health Board\",Calculations!$E$2=\"Orkney Islands Local Authority\"),$F209=1),0,IF(AND(OR(Calculations!$E$2=\"Shetland Health Board\",Calculations!$E$2=\"Western Isles Health Board\",Calculations!$E$2=\"Shetland Islands Local Authority\",Calculations!$E$2=\"Eilean Siar Local Authority\"),OR($F209=1,$F209=5)),0,prem_mort(VALUE(LEFT(Options!$B$24,2)),$C209,$E209,$F209,2016,$I209,1,$H209,$G209*$H209,Options!$B$8)))","v":0},{"$f":"IF(AND(OR(Calculations!$E$2=\"Orkney Health Board\",Calculations!$E$2=\"Orkney Islands Local Authority\"),$F209=1),0,IF(AND(OR(Calculations!$E$2=\"Shetland Health Board\",Calculations!$E$2=\"Western Isles Health Board\",Calculations!$E$2=\"Shetland Islands Local Authority\",Calculations!$E$2=\"Eilean Siar Local Authority\"),OR($F209=1,$F209=5)),0,prem_mort(VALUE(LEFT(Options!$B$24,2)),$C209,$E209,$F209,2016,$I209+$J209,1,$H209,$G209*$H209,Options!$B$8)))","v":0},4244.79025,4244.79025,24747.131402290623,24747.131402290623,58500.182979999998,58500.182979999998,0,0,10611975.625,10611975.625,61867828.505726553,61867828.505726553,146250457.44999999,146250457.44999999,0,0,2500]
[null,"Male 85-89",86.630752999999999,91.420750000000012,"male",4,{"$f":"HLOOKUP(Calculations!$E$2,'Prevalence Rates'!$C$3:$BC$249,'Prevalence Rates'!$BD210,FALSE)","v":0},{"$f":"HLOOKUP(Calculations!$E$2,'Population 2016'!$C$3:$BC$249,'Population 2016'!BD210,FALSE)","v":6184},0,{"$f":"HLOOKUP(Results!E$4,Targeting!$C$3:$F$249,Targeting!$G210,FALSE)","v":0},{"$f":"IF(AND(OR(Calculations!$E$2=\"Orkney Health Board\",Calculations!$E$2=\"Orkney Islands Local Authority\"),$F210=1),0,IF(AND(OR(Calculations!$E$2=\"Shetland Health Board\",Calculations!$E$2=\"Western Isles Health Board\",Calculations!$E$2=\"Shetland Islands Local Authority\",Calculations!$E$2=\"Eilean Siar Local Authority\"),OR($F210=1,$F210=5)),0,new_ci(VALUE(LEFT(Options!$B$24,2)),$C210,$E210,$F210,2016,$I210,1,$H210,$G210*$H210,Options!$B$8)))","v":374.54281239599999},{"$f":"IF(AND(OR(Calculations!$E$2=\"Orkney Health Board\",Calculations!$E$2=\"Orkney Islands Local Authority\"),$F210=1),0,IF(AND(OR(Calculations!$E$2=\"Shetland Health Board\",Calculations!$E$2=\"Western Isles Health Board\",Calculations!$E$2=\"Shetland Islands Local Authority\",Calculations!$E$2=\"Eilean Siar Local Authority\"),OR($F210=1,$F210=5)),0,new_ci(VALUE(LEFT(Options!$B$24,2)),$C210,$E210,$F210,2016,$I210+$J210,1,$H210,$G210*$H210,Options!$B$8)))","v":374.54281239599999},{"$f":"IF(AND(OR(Calculations!$E$2=\"Orkney Health Board\",Calculations!$E$2=\"Orkney Islands Local Authority\"),$F210=1),0,IF(AND(OR(Calculations!$E$2=\"Shetland Health Board\",Calculations!$E$2=\"Western Isles Health Board\",Calculations!$E$2=\"Shetland Islands Local Authority\",Calculations!$E$2=\"Eilean Siar Local Authority\"),OR($F210=1,$F210=5)),0,new_yllv2(VALUE(LEFT(Options!$B$24,2)),$C210,$D210,$E210,$F210,2016,$I210,1,$H210,$G210*$H210,Options!$B$8)))","v":1419.5161353523999},{"$f":"IF(AND(OR(Calculations!$E$2=\"Orkney Health Board\",Calculations!$E$2=\"Orkney Islands Local Authority\"),$F210=1),0,IF(AND(OR(Calculations!$E$2=\"Shetland Health Board\",Calculations!$E$2=\"Western Isles Health Board\",Calculations!$E$2=\"Shetland Islands Local Authority\",Calculations!$E$2=\"Eilean Siar Local Authority\"),OR($F210=1,$F210=5)),0,new_yllv2(VALUE(LEFT(Options!$B$24,2)),$C210,$D210,$E210,$F210,2016,$I210+$J210,1,$H210,$G210*$H210,Options!$B$8)))","v":1419.5161353523999},{"$f":"IF(AND(OR(Calculations!$E$2=\"Orkney Health Board\",Calculations!$E$2=\"Orkney Islands Local Authority\"),$F210=1),0,IF(AND(OR(Calculations!$E$2=\"Shetland Health Board\",Calculations!$E$2=\"Western Isles Health Board\",Calculations!$E$2=\"Shetland Islands Local Authority\",Calculations!$E$2=\"Eilean Siar Local Authority\"),OR($F210=1,$F210=5)),0,hosp_count(VALUE(LEFT(Options!$B$24,2)),$C210,$E210,$F210,2016,$I210,1,$H210,$G210*$H210, Options!$B$8)))","v":4294.7648959575999},{"$f":"IF(AND(OR(Calculations!$E$2=\"Orkney Health Board\",Calculations!$E$2=\"Orkney Islands Local Authority\"),$F210=1),0,IF(AND(OR(Calculations!$E$2=\"Shetland Health Board\",Calculations!$E$2=\"Western Isles Health Board\",Calculations!$E$2=\"Shetland Islands Local Authority\",Calculations!$E$2=\"Eilean Siar Local Authority\"),OR($F210=1,$F210=5)),0,hosp_count(VALUE(LEFT(Options!$B$24,2)),$C210,$E210,$F210,2016,$I210+$J210,1,$H210,$G210*$H210, Options!$B$8)))","v":4294.7648959575999},{"$f":"IF(AND(OR(Calculations!$E$2=\"Orkney Health Board\",Calculations!$E$2=\"Orkney Islands Local Authority\"),$F210=1),0,IF(AND(OR(Calculations!$E$2=\"Shetland Health Board\",Calculations!$E$2=\"Western Isles Health Board\",Calculations!$E$2=\"Shetland Islands Local Authority\",Calculations!$E$2=\"Eilean Siar Local Authority\"),OR($F210=1,$F210=5)),0,prem_mort(VALUE(LEFT(Options!$B$24,2)),$C210,$E210,$F210,2016,$I210,1,$H210,$G210*$H210,Options!$B$8)))","v":0},{"$f":"IF(AND(OR(Calculations!$E$2=\"Orkney Health Board\",Calculations!$E$2=\"Orkney Islands Local Authority\"),$F210=1),0,IF(AND(OR(Calculations!$E$2=\"Shetland Health Board\",Calculations!$E$2=\"Western Isles Health Board\",Calculations!$E$2=\"Shetland Islands Local Authority\",Calculations!$E$2=\"Eilean Siar Local Authority\"),OR($F210=1,$F210=5)),0,prem_mort(VALUE(LEFT(Options!$B$24,2)),$C210,$E210,$F210,2016,$I210+$J210,1,$H210,$G210*$H210,Options!$B$8)))","v":0},6056.643149999999,6056.643149999999,22954.659368570505,22954.659368570505,69449.626390000005,69449.626390000005,0,0,9084964.7249999978,9084964.7249999978,34431989.05285576,34431989.05285576,104174439.58500001,104174439.58500001,0,0,1500]
[null,"Male 90+",92.215477000000007,95.515479999999997,"male",4,{"$f":"HLOOKUP(Calculations!$E$2,'Prevalence Rates'!$C$3:$BC$249,'Prevalence Rates'!$BD211,FALSE)","v":0},{"$f":"HLOOKUP(Calculations!$E$2,'Population 2016'!$C$3:$BC$249,'Population 2016'!BD211,FALSE)","v":2544},0,{"$f":"HLOOKUP(Results!E$4,Targeting!$C$3:$F$249,Targeting!$G211,FALSE)","v":0},{"$f":"IF(AND(OR(Calculations!$E$2=\"Orkney Health Board\",Calculations!$E$2=\"Orkney Islands Local Authority\"),$F211=1),0,IF(AND(OR(Calculations!$E$2=\"Shetland Health Board\",Calculations!$E$2=\"Western Isles Health Board\",Calculations!$E$2=\"Shetland Islands Local Authority\",Calculations!$E$2=\"Eilean Siar Local Authority\"),OR($F211=1,$F211=5)),0,new_ci(VALUE(LEFT(Options!$B$24,2)),$C211,$E211,$F211,2016,$I211,1,$H211,$G211*$H211,Options!$B$8)))","v":231.12167088960001},{"$f":"IF(AND(OR(Calculations!$E$2=\"Orkney Health Board\",Calculations!$E$2=\"Orkney Islands Local Authority\"),$F211=1),0,IF(AND(OR(Calculations!$E$2=\"Shetland Health Board\",Calculations!$E$2=\"Western Isles Health Board\",Calculations!$E$2=\"Shetland Islands Local Authority\",Calculations!$E$2=\"Eilean Siar Local Authority\"),OR($F211=1,$F211=5)),0,new_ci(VALUE(LEFT(Options!$B$24,2)),$C211,$E211,$F211,2016,$I211+$J211,1,$H211,$G211*$H211,Options!$B$8)))","v":231.12167088960001},{"$f":"IF(AND(OR(Calculations!$E$2=\"Orkney Health Board\",Calculations!$E$2=\"Orkney Islands Local Authority\"),$F211=1),0,IF(AND(OR(Calculations!$E$2=\"Shetland Health Board\",Calculations!$E$2=\"Western Isles Health Board\",Calculations!$E$2=\"Shetland Islands Local Authority\",Calculations!$E$2=\"Eilean Siar Local Authority\"),OR($F211=1,$F211=5)),0,new_yllv2(VALUE(LEFT(Options!$B$24,2)),$C211,$D211,$E211,$F211,2016,$I211,1,$H211,$G211*$H211,Options!$B$8)))","v":531.58053641109996},{"$f":"IF(AND(OR(Calculations!$E$2=\"Orkney Health Board\",Calculations!$E$2=\"Orkney Islands Local Authority\"),$F211=1),0,IF(AND(OR(Calculations!$E$2=\"Shetland Health Board\",Calculations!$E$2=\"Western Isles Health Board\",Calculations!$E$2=\"Shetland Islands Local Authority\",Calculations!$E$2=\"Eilean Siar Local Authority\"),OR($F211=1,$F211=5)),0,new_yllv2(VALUE(LEFT(Options!$B$24,2)),$C211,$D211,$E211,$F211,2016,$I211+$J211,1,$H211,$G211*$H211,Options!$B$8)))","v":531.58053641109996},{"$f":"IF(AND(OR(Calculations!$E$2=\"Orkney Health Board\",Calculations!$E$2=\"Orkney Islands Local Authority\"),$F211=1),0,IF(AND(OR(Calculations!$E$2=\"Shetland Health Board\",Calculations!$E$2=\"Western Isles Health Board\",Calculations!$E$2=\"Shetland Islands Local Authority\",Calculations!$E$2=\"Eilean Siar Local Authority\"),OR($F211=1,$F211=5)),0,hosp_count(VALUE(LEFT(Options!$B$24,2)),$C211,$E211,$F211,2016,$I211,1,$H211,$G211*$H211, Options!$B$8)))","v":2154.1580945711999},{"$f":"IF(AND(OR(Calculations!$E$2=\"Orkney Health Board\",Calculations!$E$2=\"Orkney Islands Local Authority\"),$F211=1),0,IF(AND(OR(Calculations!$E$2=\"Shetland Health Board\",Calculations!$E$2=\"Western Isles Health Board\",Calculations!$E$2=\"Shetland Islands Local Authority\",Calculations!$E$2=\"Eilean Siar Local Authority\"),OR($F211=1,$F211=5)),0,hosp_count(VALUE(LEFT(Options!$B$24,2)),$C211,$E211,$F211,2016,$I211+$J211,1,$H211,$G211*$H211, Options!$B$8)))","v":2154.1580945711999},{"$f":"IF(AND(OR(Calculations!$E$2=\"Orkney Health Board\",Calculations!$E$2=\"Orkney Islands Local Authority\"),$F211=1),0,IF(AND(OR(Calculations!$E$2=\"Shetland Health Board\",Calculations!$E$2=\"Western Isles Health Board\",Calculations!$E$2=\"Shetland Islands Local Authority\",Calculations!$E$2=\"Eilean Siar Local Authority\"),OR($F211=1,$F211=5)),0,prem_mort(VALUE(LEFT(Options!$B$24,2)),$C211,$E211,$F211,2016,$I211,1,$H211,$G211*$H211,Options!$B$8)))","v":0},{"$f":"IF(AND(OR(Calculations!$E$2=\"Orkney Health Board\",Calculations!$E$2=\"Orkney Islands Local Authority\"),$F211=1),0,IF(AND(OR(Calculations!$E$2=\"Shetland Health Board\",Calculations!$E$2=\"Western Isles Health Board\",Calculations!$E$2=\"Shetland Islands Local Authority\",Calculations!$E$2=\"Eilean Siar Local Authority\"),OR($F211=1,$F211=5)),0,prem_mort(VALUE(LEFT(Options!$B$24,2)),$C211,$E211,$F211,2016,$I211+$J211,1,$H211,$G211*$H211,Options!$B$8)))","v":0},9084.9713400000001,9084.9713400000001,20895.461336914308,20895.461336914308,84676.025729999994,84676.025729999994,0,0,9084971.3399999999,9084971.3399999999,20895461.336914308,20895461.336914308,84676025.729999989,84676025.729999989,0,0,1000]
[null,"Female 0-4",2.0384007,81.468401,"female",5,{"$f":"HLOOKUP(Calculations!$E$2,'Prevalence Rates'!$C$3:$BC$249,'Prevalence Rates'!$BD212,FALSE)","v":0},{"$f":"HLOOKUP(Calculations!$E$2,'Population 2016'!$C$3:$BC$249,'Population 2016'!BD212,FALSE)","v":0},0,{"$f":"HLOOKUP(Results!E$4,Targeting!$C$3:$F$249,Targeting!$G212,FALSE)","v":0},{"$f":"IF(AND(OR(Calculations!$E$2=\"Orkney Health Board\",Calculations!$E$2=\"Orkney Islands Local Authority\"),$F212=1),0,IF(AND(OR(Calculations!$E$2=\"Shetland Health Board\",Calculations!$E$2=\"Western Isles Health Board\",Calculations!$E$2=\"Shetland Islands Local Authority\",Calculations!$E$2=\"Eilean Siar Local Authority\"),OR($F212=1,$F212=5)),0,new_ci(VALUE(LEFT(Options!$B$24,2)),$C212,$E212,$F212,2016,$I212,1,$H212,$G212*$H212,Options!$B$8)))","v":{"$error":"#VALUE!"}},{"$f":"IF(AND(OR(Calculations!$E$2=\"Orkney Health Board\",Calculations!$E$2=\"Orkney Islands Local Authority\"),$F212=1),0,IF(AND(OR(Calculations!$E$2=\"Shetland Health Board\",Calculations!$E$2=\"Western Isles Health Board\",Calculations!$E$2=\"Shetland Islands Local Authority\",Calculations!$E$2=\"Eilean Siar Local Authority\"),OR($F212=1,$F212=5)),0,new_ci(VALUE(LEFT(Options!$B$24,2)),$C212,$E212,$F212,2016,$I212+$J212,1,$H212,$G212*$H212,Options!$B$8)))","v":{"$error":"#VALUE!"}},{"$f":"IF(AND(OR(Calculations!$E$2=\"Orkney Health Board\",Calculations!$E$2=\"Orkney Islands Local Authority\"),$F212=1),0,IF(AND(OR(Calculations!$E$2=\"Shetland Health Board\",Calculations!$E$2=\"Western Isles Health Board\",Calculations!$E$2=\"Shetland Islands Local Authority\",Calculations!$E$2=\"Eilean Siar Local Authority\"),OR($F212=1,$F212=5)),0,new_yllv2(VALUE(LEFT(Options!$B$24,2)),$C212,$D212,$E212,$F212,2016,$I212,1,$H212,$G212*$H212,Options!$B$8)))","v":{"$error":"#VALUE!"}},{"$f":"IF(AND(OR(Calculations!$E$2=\"Orkney Health Board\",Calculations!$E$2=\"Orkney Islands Local Authority\"),$F212=1),0,IF(AND(OR(Calculations!$E$2=\"Shetland Health Board\",Calculations!$E$2=\"Western Isles Health Board\",Calculations!$E$2=\"Shetland Islands Local Authority\",Calculations!$E$2=\"Eilean Siar Local Authority\"),OR($F212=1,$F212=5)),0,new_yllv2(VALUE(LEFT(Options!$B$24,2)),$C212,$D212,$E212,$F212,2016,$I212+$J212,1,$H212,$G212*$H212,Options!$B$8)))","v":{"$error":"#VALUE!"}},{"$f":"IF(AND(OR(Calculations!$E$2=\"Orkney Health Board\",Calculations!$E$2=\"Orkney Islands Local Authority\"),$F212=1),0,IF(AND(OR(Calculations!$E$2=\"Shetland Health Board\",Calculations!$E$2=\"Western Isles Health Board\",Calculations!$E$2=\"Shetland Islands Local Authority\",Calculations!$E$2=\"Eilean Siar Local Authority\"),OR($F212=1,$F212=5)),0,hosp_count(VALUE(LEFT(Options!$B$24,2)),$C212,$E212,$F212,2016,$I212,1,$H212,$G212*$H212, Options!$B$8)))","v":{"$error":"#VALUE!"}},{"$f":"IF(AND(OR(Calculations!$E$2=\"Orkney Health Board\",Calculations!$E$2=\"Orkney Islands Local Authority\"),$F212=1),0,IF(AND(OR(Calculations!$E$2=\"Shetland Health Board\",Calculations!$E$2=\"Western Isles Health Board\",Calculations!$E$2=\"Shetland Islands Local Authority\",Calculations!$E$2=\"Eilean Siar Local Authority\"),OR($F212=1,$F212=5)),0,hosp_count(VALUE(LEFT(Options!$B$24,2)),$C212,$E212,$F212,2016,$I212+$J212,1,$H212,$G212*$H212, Options!$B$8)))","v":{"$error":"#VALUE!"}},{"$f":"IF(AND(OR(Calculations!$E$2=\"Orkney Health Board\",Calculations!$E$2=\"Orkney Islands Local Authority\"),$F212=1),0,IF(AND(OR(Calculations!$E$2=\"Shetland Health Board\",Calculations!$E$2=\"Western Isles Health Board\",Calculations!$E$2=\"Shetland Islands Local Authority\",Calculations!$E$2=\"Eilean Siar Local Authority\"),OR($F212=1,$F212=5)),0,prem_mort(VALUE(LEFT(Options!$B$24,2)),$C212,$E212,$F212,2016,$I212,1,$H212,$G212*$H212,Options!$B$8)))","v":{"$error":"#VALUE!"}},{"$f":"IF(AND(OR(Calculations!$E$2=\"Orkney Health Board\",Calculations!$E$2=\"Orkney Islands Local Authority\"),$F212=1),0,IF(AND(OR(Calculations!$E$2=\"Shetland Health Board\",Calculations!$E$2=\"Western Isles Health Board\",Calculations!$E$2=\"Shetland Islands Local Authority\",Calculations!$E$2=\"Eilean Siar Local Authority\"),OR($F212=1,$F212=5)),0,prem_mort(VALUE(LEFT(Options!$B$24,2)),$C212,$E212,$F212,2016,$I212+$J212,1,$H212,$G212*$H212,Options!$B$8)))","v":{"$error":"#VALUE!"}},{"$error":"#VALUE!"},{"$error":"#VALUE!"},{"$error":"#VALUE!"},{"$error":"#VALUE!"},{"$error":"#VALUE!"},{"$error":"#VALUE!"},{"$error":"#VALUE!"},{"$error":"#VALUE!"},{"$error":"#VALUE!"},{"$error":"#VALUE!"},{"$error":"#VALUE!"},{"$error":"#VALUE!"},{"$error":"#VALUE!"},{"$error":"#VALUE!"},{"$error":"#VALUE!"},{"$error":"#VALUE!"},5000]
[null,"Female 5-9",6.9792794999999996,81.439279999999997,"female",5,{"$f":"HLOOKUP(Calculations!$E$2,'Prevalence Rates'!$C$3:$BC$249,'Prevalence Rates'!$BD213,FALSE)","v":0},{"$f":"HLOOKUP(Calculations!$E$2,'Population 2016'!$C$3:$BC$249,'Population 2016'!BD213,FALSE)","v":0},0,{"$f":"HLOOKUP(Results!E$4,Targeting!$C$3:$F$249,Targeting!$G213,FALSE)","v":0},{"$f":"IF(AND(OR(Calculations!$E$2=\"Orkney Health Board\",Calculations!$E$2=\"Orkney Islands Local Authority\"),$F213=1),0,IF(AND(OR(Calculations!$E$2=\"Shetland Health Board\",Calculations!$E$2=\"Western Isles Health Board\",Calculations!$E$2=\"Shetland Islands Local Authority\",Calculations!$E$2=\"Eilean Siar Local Authority\"),OR($F213=1,$F213=5)),0,new_ci(VALUE(LEFT(Options!$B$24,2)),$C213,$E213,$F213,2016,$I213,1,$H213,$G213*$H213,Options!$B$8)))","v":{"$error":"#VALUE!"}},{"$f":"IF(AND(OR(Calculations!$E$2=\"Orkney Health Board\",Calculations!$E$2=\"Orkney Islands Local Authority\"),$F213=1),0,IF(AND(OR(Calculations!$E$2=\"Shetland Health Board\",Calculations!$E$2=\"Western Isles Health Board\",Calculations!$E$2=\"Shetland Islands Local Authority\",Calculations!$E$2=\"Eilean Siar Local Authority\"),OR($F213=1,$F213=5)),0,new_ci(VALUE(LEFT(Options!$B$24,2)),$C213,$E213,$F213,2016,$I213+$J213,1,$H213,$G213*$H213,Options!$B$8)))","v":{"$error":"#VALUE!"}},{"$f":"IF(AND(OR(Calculations!$E$2=\"Orkney Health Board\",Calculations!$E$2=\"Orkney Islands Local Authority\"),$F213=1),0,IF(AND(OR(Calculations!$E$2=\"Shetland Health Board\",Calculations!$E$2=\"Western Isles Health Board\",Calculations!$E$2=\"Shetland Islands Local Authority\",Calculations!$E$2=\"Eilean Siar Local Authority\"),OR($F213=1,$F213=5)),0,new_yllv2(VALUE(LEFT(Options!$B$24,2)),$C213,$D213,$E213,$F213,2016,$I213,1,$H213,$G213*$H213,Options!$B$8)))","v":{"$error":"#VALUE!"}},{"$f":"IF(AND(OR(Calculations!$E$2=\"Orkney Health Board\",Calculations!$E$2=\"Orkney Islands Local Authority\"),$F213=1),0,IF(AND(OR(Calculations!$E$2=\"Shetland Health Board\",Calculations!$E$2=\"Western Isles Health Board\",Calculations!$E$2=\"Shetland Islands Local Authority\",Calculations!$E$2=\"Eilean Siar Local Authority\"),OR($F213=1,$F213=5)),0,new_yllv2(VALUE(LEFT(Options!$B$24,2)),$C213,$D213,$E213,$F213,2016,$I213+$J213,1,$H213,$G213*$H213,Options!$B$8)))","v":{"$error":"#VALUE!"}},{"$f":"IF(AND(OR(Calculations!$E$2=\"Orkney Health Board\",Calculations!$E$2=\"Orkney Islands Local Authority\"),$F213=1),0,IF(AND(OR(Calculations!$E$2=\"Shetland Health Board\",Calculations!$E$2=\"Western Isles Health Board\",Calculations!$E$2=\"Shetland Islands Local Authority\",Calculations!$E$2=\"Eilean Siar Local Authority\"),OR($F213=1,$F213=5)),0,hosp_count(VALUE(LEFT(Options!$B$24,2)),$C213,$E213,$F213,2016,$I213,1,$H213,$G213*$H213, Options!$B$8)))","v":{"$error":"#VALUE!"}},{"$f":"IF(AND(OR(Calculations!$E$2=\"Orkney Health Board\",Calculations!$E$2=\"Orkney Islands Local Authority\"),$F213=1),0,IF(AND(OR(Calculations!$E$2=\"Shetland Health Board\",Calculations!$E$2=\"Western Isles Health Board\",Calculations!$E$2=\"Shetland Islands Local Authority\",Calculations!$E$2=\"Eilean Siar Local Authority\"),OR($F213=1,$F213=5)),0,hosp_count(VALUE(LEFT(Options!$B$24,2)),$C213,$E213,$F213,2016,$I213+$J213,1,$H213,$G213*$H213, Options!$B$8)))","v":{"$error":"#VALUE!"}},{"$f":"IF(AND(OR(Calculations!$E$2=\"Orkney Health Board\",Calculations!$E$2=\"Orkney Islands Local Authority\"),$F213=1),0,IF(AND(OR(Calculations!$E$2=\"Shetland Health Board\",Calculations!$E$2=\"Western Isles Health Board\",Calculations!$E$2=\"Shetland Islands Local Authority\",Calculations!$E$2=\"Eilean Siar Local Authority\"),OR($F213=1,$F213=5)),0,prem_mort(VALUE(LEFT(Options!$B$24,2)),$C213,$E213,$F213,2016,$I213,1,$H213,$G213*$H213,Options!$B$8)))","v":{"$error":"#VALUE!"}},{"$f":"IF(AND(OR(Calculations!$E$2=\"Orkney Health Board\",Calculations!$E$2=\"Orkney Islands Local Authority\"),$F213=1),0,IF(AND(OR(Calculations!$E$2=\"Shetland Health Board\",Calculations!$E$2=\"Western Isles Health Board\",Calculations!$E$2=\"Shetland Islands Local Authority\",Calculations!$E$2=\"Eilean Siar Local Authority\"),OR($F213=1,$F213=5)),0,prem_mort(VALUE(LEFT(Options!$B$24,2)),$C213,$E213,$F213,2016,$I213+$J213,1,$H213,$G213*$H213,Options!$B$8)))","v":{"$error":"#VALUE!"}},{"$error":"#VALUE!"},{"$error":"#VALUE!"},{"$error":"#VALUE!"},{"$error":"#VALUE!"},{"$error":"#VALUE!"},{"$error":"#VALUE!"},{"$error":"#VALUE!"},{"$error":"#VALUE!"},{"$error":"#VALUE!"},{"$error":"#VALUE!"},{"$error":"#VALUE!"},{"$error":"#VALUE!"},{"$error":"#VALUE!"},{"$error":"#VALUE!"},{"$error":"#VALUE!"},{"$error":"#VALUE!"},5500]
[null,"Female 10-15",12.478312000000001,81.948309999999992,"female",5,{"$f":"HLOOKUP(Calculations!$E$2,'Prevalence Rates'!$C$3:$BC$249,'Prevalence Rates'!$BD214,FALSE)","v":0},{"$f":"HLOOKUP(Calculations!$E$2,'Population 2016'!$C$3:$BC$249,'Population 2016'!BD214,FALSE)","v":0},0,{"$f":"HLOOKUP(Results!E$4,Targeting!$C$3:$F$249,Targeting!$G214,FALSE)","v":0},{"$f":"IF(AND(OR(Calculations!$E$2=\"Orkney Health Board\",Calculations!$E$2=\"Orkney Islands Local Authority\"),$F214=1),0,IF(AND(OR(Calculations!$E$2=\"Shetland Health Board\",Calculations!$E$2=\"Western Isles Health Board\",Calculations!$E$2=\"Shetland Islands Local Authority\",Calculations!$E$2=\"Eilean Siar Local Authority\"),OR($F214=1,$F214=5)),0,new_ci(VALUE(LEFT(Options!$B$24,2)),$C214,$E214,$F214,2016,$I214,1,$H214,$G214*$H214,Options!$B$8)))","v":{"$error":"#VALUE!"}},{"$f":"IF(AND(OR(Calculations!$E$2=\"Orkney Health Board\",Calculations!$E$2=\"Orkney Islands Local Authority\"),$F214=1),0,IF(AND(OR(Calculations!$E$2=\"Shetland Health Board\",Calculations!$E$2=\"Western Isles Health Board\",Calculations!$E$2=\"Shetland Islands Local Authority\",Calculations!$E$2=\"Eilean Siar Local Authority\"),OR($F214=1,$F214=5)),0,new_ci(VALUE(LEFT(Options!$B$24,2)),$C214,$E214,$F214,2016,$I214+$J214,1,$H214,$G214*$H214,Options!$B$8)))","v":{"$error":"#VALUE!"}},{"$f":"IF(AND(OR(Calculations!$E$2=\"Orkney Health Board\",Calculations!$E$2=\"Orkney Islands Local Authority\"),$F214=1),0,IF(AND(OR(Calculations!$E$2=\"Shetland Health Board\",Calculations!$E$2=\"Western Isles Health Board\",Calculations!$E$2=\"Shetland Islands Local Authority\",Calculations!$E$2=\"Eilean Siar Local Authority\"),OR($F214=1,$F214=5)),0,new_yllv2(VALUE(LEFT(Options!$B$24,2)),$C214,$D214,$E214,$F214,2016,$I214,1,$H214,$G214*$H214,Options!$B$8)))","v":{"$error":"#VALUE!"}},{"$f":"IF(AND(OR(Calculations!$E$2=\"Orkney Health Board\",Calculations!$E$2=\"Orkney Islands Local Authority\"),$F214=1),0,IF(AND(OR(Calculations!$E$2=\"Shetland Health Board\",Calculations!$E$2=\"Western Isles Health Board\",Calculations!$E$2=\"Shetland Islands Local Authority\",Calculations!$E$2=\"Eilean Siar Local Authority\"),OR($F214=1,$F214=5)),0,new_yllv2(VALUE(LEFT(Options!$B$24,2)),$C214,$D214,$E214,$F214,2016,$I214+$J214,1,$H214,$G214*$H214,Options!$B$8)))","v":{"$error":"#VALUE!"}},{"$f":"IF(AND(OR(Calculations!$E$2=\"Orkney Health Board\",Calculations!$E$2=\"Orkney Islands Local Authority\"),$F214=1),0,IF(AND(OR(Calculations!$E$2=\"Shetland Health Board\",Calculations!$E$2=\"Western Isles Health Board\",Calculations!$E$2=\"Shetland Islands Local Authority\",Calculations!$E$2=\"Eilean Siar Local Authority\"),OR($F214=1,$F214=5)),0,hosp_count(VALUE(LEFT(Options!$B$24,2)),$C214,$E214,$F214,2016,$I214,1,$H214,$G214*$H214, Options!$B$8)))","v":{"$error":"#VALUE!"}},{"$f":"IF(AND(OR(Calculations!$E$2=\"Orkney Health Board\",Calculations!$E$2=\"Orkney Islands Local Authority\"),$F214=1),0,IF(AND(OR(Calculations!$E$2=\"Shetland Health Board\",Calculations!$E$2=\"Western Isles Health Board\",Calculations!$E$2=\"Shetland Islands Local Authority\",Calculations!$E$2=\"Eilean Siar Local Authority\"),OR($F214=1,$F214=5)),0,hosp_count(VALUE(LEFT(Options!$B$24,2)),$C214,$E214,$F214,2016,$I214+$J214,1,$H214,$G214*$H214, Options!$B$8)))","v":{"$error":"#VALUE!"}},{"$f":"IF(AND(OR(Calculations!$E$2=\"Orkney Health Board\",Calculations!$E$2=\"Orkney Islands Local Authority\"),$F214=1),0,IF(AND(OR(Calculations!$E$2=\"Shetland Health Board\",Calculations!$E$2=\"Western Isles Health Board\",Calculations!$E$2=\"Shetland Islands Local Authority\",Calculations!$E$2=\"Eilean Siar Local Authority\"),OR($F214=1,$F214=5)),0,prem_mort(VALUE(LEFT(Options!$B$24,2)),$C214,$E214,$F214,2016,$I214,1,$H214,$G214*$H214,Options!$B$8)))","v":{"$error":"#VALUE!"}},{"$f":"IF(AND(OR(Calculations!$E$2=\"Orkney Health Board\",Calculations!$E$2=\"Orkney Islands Local Authority\"),$F214=1),0,IF(AND(OR(Calculations!$E$2=\"Shetland Health Board\",Calculations!$E$2=\"Western Isles Health Board\",Calculations!$E$2=\"Shetland Islands Local Authority\",Calculations!$E$2=\"Eilean Siar Local Authority\"),OR($F214=1,$F214=5)),0,prem_mort(VALUE(LEFT(Options!$B$24,2)),$C214,$E214,$F214,2016,$I214+$J214,1,$H214,$G214*$H214,Options!$B$8)))","v":{"$error":"#VALUE!"}},{"$error":"#VALUE!"},{"$error":"#VALUE!"},{"$error":"#VALUE!"},{"$error":"#VALUE!"},{"$error":"#VALUE!"},{"$error":"#VALUE!"},{"$error":"#VALUE!"},{"$error":"#VALUE!"},{"$error":"#VALUE!"},{"$error":"#VALUE!"},{"$error":"#VALUE!"},{"$error":"#VALUE!"},{"$error":"#VALUE!"},{"$error":"#VALUE!"},{"$error":"#VALUE!"},{"$error":"#VALUE!"},6600]
["SIMD Q5 (least deprived)","Female 16-19",17.570053000000001,81.100049999999996,"female",5,{"$f":"HLOOKUP(Calculations!$E$2,'Prevalence Rates'!$C$3:$BC$249,'Prevalence Rates'!$BD215,FALSE)","v":0.15522875816993464},{"$f":"HLOOKUP(Calculations!$E$2,'Population 2016'!$C$3:$BC$249,'Population 2016'!BD215,FALSE)","v":25268},0,{"$f":"HLOOKUP(Results!E$4,Targeting!$C$3:$F$249,Targeting!$G215,FALSE)","v":1715},{"$f":"IF(AND(OR(Calculations!$E$2=\"Orkney Health Board\",Calculations!$E$2=\"Orkney Islands Local Authority\"),$F215=1),0,IF(AND(OR(Calculations!$E$2=\"Shetland Health Board\",Calculations!$E$2=\"Western Isles Health Board\",Calculations!$E$2=\"Shetland Islands Local Authority\",Calculations!$E$2=\"Eilean Siar Local Authority\"),OR($F215=1,$F215=5)),0,new_ci(VALUE(LEFT(Options!$B$24,2)),$C215,$E215,$F215,2016,$I215,1,$H215,$G215*$H215,Options!$B$8)))","v":2.6542142409},{"$f":"IF(AND(OR(Calculations!$E$2=\"Orkney Health Board\",Calculations!$E$2=\"Orkney Islands Local Authority\"),$F215=1),0,IF(AND(OR(Calculations!$E$2=\"Shetland Health Board\",Calculations!$E$2=\"Western Isles Health Board\",Calculations!$E$2=\"Shetland Islands Local Authority\",Calculations!$E$2=\"Eilean Siar Local Authority\"),OR($F215=1,$F215=5)),0,new_ci(VALUE(LEFT(Options!$B$24,2)),$C215,$E215,$F215,2016,$I215+$J215,1,$H215,$G215*$H215,Options!$B$8)))","v":2.5761397233999999},{"$f":"IF(AND(OR(Calculations!$E$2=\"Orkney Health Board\",Calculations!$E$2=\"Orkney Islands Local Authority\"),$F215=1),0,IF(AND(OR(Calculations!$E$2=\"Shetland Health Board\",Calculations!$E$2=\"Western Isles Health Board\",Calculations!$E$2=\"Shetland Islands Local Authority\",Calculations!$E$2=\"Eilean Siar Local Authority\"),OR($F215=1,$F215=5)),0,new_yllv2(VALUE(LEFT(Options!$B$24,2)),$C215,$D215,$E215,$F215,2016,$I215,1,$H215,$G215*$H215,Options!$B$8)))","v":165.9680085208},{"$f":"IF(AND(OR(Calculations!$E$2=\"Orkney Health Board\",Calculations!$E$2=\"Orkney Islands Local Authority\"),$F215=1),0,IF(AND(OR(Calculations!$E$2=\"Shetland Health Board\",Calculations!$E$2=\"Western Isles Health Board\",Calculations!$E$2=\"Shetland Islands Local Authority\",Calculations!$E$2=\"Eilean Siar Local Authority\"),OR($F215=1,$F215=5)),0,new_yllv2(VALUE(LEFT(Options!$B$24,2)),$C215,$D215,$E215,$F215,2016,$I215+$J215,1,$H215,$G215*$H215,Options!$B$8)))","v":161.0860091758},{"$f":"IF(AND(OR(Calculations!$E$2=\"Orkney Health Board\",Calculations!$E$2=\"Orkney Islands Local Authority\"),$F215=1),0,IF(AND(OR(Calculations!$E$2=\"Shetland Health Board\",Calculations!$E$2=\"Western Isles Health Board\",Calculations!$E$2=\"Shetland Islands Local Authority\",Calculations!$E$2=\"Eilean Siar Local Authority\"),OR($F215=1,$F215=5)),0,hosp_count(VALUE(LEFT(Options!$B$24,2)),$C215,$E215,$F215,2016,$I215,1,$H215,$G215*$H215, Options!$B$8)))","v":1985.9311626015999},{"$f":"IF(AND(OR(Calculations!$E$2=\"Orkney Health Board\",Calculations!$E$2=\"Orkney Islands Local Authority\"),$F215=1),0,IF(AND(OR(Calculations!$E$2=\"Shetland Health Board\",Calculations!$E$2=\"Western Isles Health Board\",Calculations!$E$2=\"Shetland Islands Local Authority\",Calculations!$E$2=\"Eilean Siar Local Authority\"),OR($F215=1,$F215=5)),0,hosp_count(VALUE(LEFT(Options!$B$24,2)),$C215,$E215,$F215,2016,$I215+$J215,1,$H215,$G215*$H215, Options!$B$8)))","v":1981.6283832742999},{"$f":"IF(AND(OR(Calculations!$E$2=\"Orkney Health Board\",Calculations!$E$2=\"Orkney Islands Local Authority\"),$F215=1),0,IF(AND(OR(Calculations!$E$2=\"Shetland Health Board\",Calculations!$E$2=\"Western Isles Health Board\",Calculations!$E$2=\"Shetland Islands Local Authority\",Calculations!$E$2=\"Eilean Siar Local Authority\"),OR($F215=1,$F215=5)),0,prem_mort(VALUE(LEFT(Options!$B$24,2)),$C215,$E215,$F215,2016,$I215,1,$H215,$G215*$H215,Options!$B$8)))","v":2.6542142409},{"$f":"IF(AND(OR(Calculations!$E$2=\"Orkney Health Board\",Calculations!$E$2=\"Orkney Islands Local Authority\"),$F215=1),0,IF(AND(OR(Calculations!$E$2=\"Shetland Health Board\",Calculations!$E$2=\"Western Isles Health Board\",Calculations!$E$2=\"Shetland Islands Local Authority\",Calculations!$E$2=\"Eilean Siar Local Authority\"),OR($F215=1,$F215=5)),0,prem_mort(VALUE(LEFT(Options!$B$24,2)),$C215,$E215,$F215,2016,$I215+$J215,1,$H215,$G215*$H215,Options!$B$8)))","v":2.5761397233999999},10.504251388712996,10.195265645876207,656.83080782333388,637.5099302509102,7859.4711200000002,7842.442548972218,10.504251388712996,10.195265645876207,46218.706110337182,44859.168841855309,2890055.5544226691,2805043.693104005,34581672.928000003,34506747.215477757,46218.706110337182,44859.168841855309,4400]
[null,"Female 20-24",22.077057,81.667060000000006,"female",5,{"$f":"HLOOKUP(Calculations!$E$2,'Prevalence Rates'!$C$3:$BC$249,'Prevalence Rates'!$BD216,FALSE)","v":0.15522875816993464},{"$f":"HLOOKUP(Calculations!$E$2,'Population 2016'!$C$3:$BC$249,'Population 2016'!BD216,FALSE)","v":38013},0,{"$f":"HLOOKUP(Results!E$4,Targeting!$C$3:$F$249,Targeting!$G216,FALSE)","v":2581},{"$f":"IF(AND(OR(Calculations!$E$2=\"Orkney Health Board\",Calculations!$E$2=\"Orkney Islands Local Authority\"),$F216=1),0,IF(AND(OR(Calculations!$E$2=\"Shetland Health Board\",Calculations!$E$2=\"Western Isles Health Board\",Calculations!$E$2=\"Shetland Islands Local Authority\",Calculations!$E$2=\"Eilean Siar Local Authority\"),OR($F216=1,$F216=5)),0,new_ci(VALUE(LEFT(Options!$B$24,2)),$C216,$E216,$F216,2016,$I216,1,$H216,$G216*$H216,Options!$B$8)))","v":5.8582636548},{"$f":"IF(AND(OR(Calculations!$E$2=\"Orkney Health Board\",Calculations!$E$2=\"Orkney Islands Local Authority\"),$F216=1),0,IF(AND(OR(Calculations!$E$2=\"Shetland Health Board\",Calculations!$E$2=\"Western Isles Health Board\",Calculations!$E$2=\"Shetland Islands Local Authority\",Calculations!$E$2=\"Eilean Siar Local Authority\"),OR($F216=1,$F216=5)),0,new_ci(VALUE(LEFT(Options!$B$24,2)),$C216,$E216,$F216,2016,$I216+$J216,1,$H216,$G216*$H216,Options!$B$8)))","v":5.6858815039000001},{"$f":"IF(AND(OR(Calculations!$E$2=\"Orkney Health Board\",Calculations!$E$2=\"Orkney Islands Local Authority\"),$F216=1),0,IF(AND(OR(Calculations!$E$2=\"Shetland Health Board\",Calculations!$E$2=\"Western Isles Health Board\",Calculations!$E$2=\"Shetland Islands Local Authority\",Calculations!$E$2=\"Eilean Siar Local Authority\"),OR($F216=1,$F216=5)),0,new_yllv2(VALUE(LEFT(Options!$B$24,2)),$C216,$D216,$E216,$F216,2016,$I216,1,$H216,$G216*$H216,Options!$B$8)))","v":343.23568510950003},{"$f":"IF(AND(OR(Calculations!$E$2=\"Orkney Health Board\",Calculations!$E$2=\"Orkney Islands Local Authority\"),$F216=1),0,IF(AND(OR(Calculations!$E$2=\"Shetland Health Board\",Calculations!$E$2=\"Western Isles Health Board\",Calculations!$E$2=\"Shetland Islands Local Authority\",Calculations!$E$2=\"Eilean Siar Local Authority\"),OR($F216=1,$F216=5)),0,new_yllv2(VALUE(LEFT(Options!$B$24,2)),$C216,$D216,$E216,$F216,2016,$I216+$J216,1,$H216,$G216*$H216,Options!$B$8)))","v":333.13581437110003},{"$f":"IF(AND(OR(Calculations!$E$2=\"Orkney Health Board\",Calculations!$E$2=\"Orkney Islands Local Authority\"),$F216=1),0,IF(AND(OR(Calculations!$E$2=\"Shetland Health Board\",Calculations!$E$2=\"Western Isles Health Board\",Calculations!$E$2=\"Shetland Islands Local Authority\",Calculations!$E$2=\"Eilean Siar Local Authority\"),OR($F216=1,$F216=5)),0,hosp_count(VALUE(LEFT(Options!$B$24,2)),$C216,$E216,$F216,2016,$I216,1,$H216,$G216*$H216, Options!$B$8)))","v":3346.2660715352999},{"$f":"IF(AND(OR(Calculations!$E$2=\"Orkney Health Board\",Calculations!$E$2=\"Orkney Islands Local Authority\"),$F216=1),0,IF(AND(OR(Calculations!$E$2=\"Shetland Health Board\",Calculations!$E$2=\"Western Isles Health Board\",Calculations!$E$2=\"Shetland Islands Local Authority\",Calculations!$E$2=\"Eilean Siar Local Authority\"),OR($F216=1,$F216=5)),0,hosp_count(VALUE(LEFT(Options!$B$24,2)),$C216,$E216,$F216,2016,$I216+$J216,1,$H216,$G216*$H216, Options!$B$8)))","v":3339.0132338911999},{"$f":"IF(AND(OR(Calculations!$E$2=\"Orkney Health Board\",Calculations!$E$2=\"Orkney Islands Local Authority\"),$F216=1),0,IF(AND(OR(Calculations!$E$2=\"Shetland Health Board\",Calculations!$E$2=\"Western Isles Health Board\",Calculations!$E$2=\"Shetland Islands Local Authority\",Calculations!$E$2=\"Eilean Siar Local Authority\"),OR($F216=1,$F216=5)),0,prem_mort(VALUE(LEFT(Options!$B$24,2)),$C216,$E216,$F216,2016,$I216,1,$H216,$G216*$H216,Options!$B$8)))","v":5.8582636548},{"$f":"IF(AND(OR(Calculations!$E$2=\"Orkney Health Board\",Calculations!$E$2=\"Orkney Islands Local Authority\"),$F216=1),0,IF(AND(OR(Calculations!$E$2=\"Shetland Health Board\",Calculations!$E$2=\"Western Isles Health Board\",Calculations!$E$2=\"Shetland Islands Local Authority\",Calculations!$E$2=\"Eilean Siar Local Authority\"),OR($F216=1,$F216=5)),0,prem_mort(VALUE(LEFT(Options!$B$24,2)),$C216,$E216,$F216,2016,$I216+$J216,1,$H216,$G216*$H216,Options!$B$8)))","v":5.6858815039000001},15.411211045694895,14.957728945097729,902.94290140083649,876.37338376634318,8802.9518100000005,8783.8719224770466,15.411211045694895,14.957728945097729,92467.266274169364,89746.37367058637,5417657.408405019,5258240.3025980592,52817710.859999999,52703231.53486228,92467.266274169364,89746.37367058637,6000]
[null,"Female 25-29",26.975186999999998,81.645189999999999,"female",5,{"$f":"HLOOKUP(Calculations!$E$2,'Prevalence Rates'!$C$3:$BC$249,'Prevalence Rates'!$BD217,FALSE)","v":0.19310344827586207},{"$f":"HLOOKUP(Calculations!$E$2,'Population 2016'!$C$3:$BC$249,'Population 2016'!BD217,FALSE)","v":32371},0,{"$f":"HLOOKUP(Results!E$4,Targeting!$C$3:$F$249,Targeting!$G217,FALSE)","v":2198},{"$f":"IF(AND(OR(Calculations!$E$2=\"Orkney Health Board\",Calculations!$E$2=\"Orkney Islands Local Authority\"),$F217=1),0,IF(AND(OR(Calculations!$E$2=\"Shetland Health Board\",Calculations!$E$2=\"Western Isles Health Board\",Calculations!$E$2=\"Shetland Islands Local Authority\",Calculations!$E$2=\"Eilean Siar Local Authority\"),OR($F217=1,$F217=5)),0,new_ci(VALUE(LEFT(Options!$B$24,2)),$C217,$E217,$F217,2016,$I217,1,$H217,$G217*$H217,Options!$B$8)))","v":7.5666782076999999},{"$f":"IF(AND(OR(Calculations!$E$2=\"Orkney Health Board\",Calculations!$E$2=\"Orkney Islands Local Authority\"),$F217=1),0,IF(AND(OR(Calculations!$E$2=\"Shetland Health Board\",Calculations!$E$2=\"Western Isles Health Board\",Calculations!$E$2=\"Shetland Islands Local Authority\",Calculations!$E$2=\"Eilean Siar Local Authority\"),OR($F217=1,$F217=5)),0,new_ci(VALUE(LEFT(Options!$B$24,2)),$C217,$E217,$F217,2016,$I217+$J217,1,$H217,$G217*$H217,Options!$B$8)))","v":7.3469384329},{"$f":"IF(AND(OR(Calculations!$E$2=\"Orkney Health Board\",Calculations!$E$2=\"Orkney Islands Local Authority\"),$F217=1),0,IF(AND(OR(Calculations!$E$2=\"Shetland Health Board\",Calculations!$E$2=\"Western Isles Health Board\",Calculations!$E$2=\"Shetland Islands Local Authority\",Calculations!$E$2=\"Eilean Siar Local Authority\"),OR($F217=1,$F217=5)),0,new_yllv2(VALUE(LEFT(Options!$B$24,2)),$C217,$D217,$E217,$F217,2016,$I217,1,$H217,$G217*$H217,Options!$B$8)))","v":406.1036421073},{"$f":"IF(AND(OR(Calculations!$E$2=\"Orkney Health Board\",Calculations!$E$2=\"Orkney Islands Local Authority\"),$F217=1),0,IF(AND(OR(Calculations!$E$2=\"Shetland Health Board\",Calculations!$E$2=\"Western Isles Health Board\",Calculations!$E$2=\"Shetland Islands Local Authority\",Calculations!$E$2=\"Eilean Siar Local Authority\"),OR($F217=1,$F217=5)),0,new_yllv2(VALUE(LEFT(Options!$B$24,2)),$C217,$D217,$E217,$F217,2016,$I217+$J217,1,$H217,$G217*$H217,Options!$B$8)))","v":394.3102077346},{"$f":"IF(AND(OR(Calculations!$E$2=\"Orkney Health Board\",Calculations!$E$2=\"Orkney Islands Local Authority\"),$F217=1),0,IF(AND(OR(Calculations!$E$2=\"Shetland Health Board\",Calculations!$E$2=\"Western Isles Health Board\",Calculations!$E$2=\"Shetland Islands Local Authority\",Calculations!$E$2=\"Eilean Siar Local Authority\"),OR($F217=1,$F217=5)),0,hosp_count(VALUE(LEFT(Options!$B$24,2)),$C217,$E217,$F217,2016,$I217,1,$H217,$G217*$H217, Options!$B$8)))","v":3223.2362970265999},{"$f":"IF(AND(OR(Calculations!$E$2=\"Orkney Health Board\",Calculations!$E$2=\"Orkney Islands Local Authority\"),$F217=1),0,IF(AND(OR(Calculations!$E$2=\"Shetland Health Board\",Calculations!$E$2=\"Western Isles Health Board\",Calculations!$E$2=\"Shetland Islands Local Authority\",Calculations!$E$2=\"Eilean Siar Local Authority\"),OR($F217=1,$F217=5)),0,hosp_count(VALUE(LEFT(Options!$B$24,2)),$C217,$E217,$F217,2016,$I217+$J217,1,$H217,$G217*$H217, Options!$B$8)))","v":3216.2551381748999},{"$f":"IF(AND(OR(Calculations!$E$2=\"Orkney Health Board\",Calculations!$E$2=\"Orkney Islands Local Authority\"),$F217=1),0,IF(AND(OR(Calculations!$E$2=\"Shetland Health Board\",Calculations!$E$2=\"Western Isles Health Board\",Calculations!$E$2=\"Shetland Islands Local Authority\",Calculations!$E$2=\"Eilean Siar Local Authority\"),OR($F217=1,$F217=5)),0,prem_mort(VALUE(LEFT(Options!$B$24,2)),$C217,$E217,$F217,2016,$I217,1,$H217,$G217*$H217,Options!$B$8)))","v":7.5666782076999999},{"$f":"IF(AND(OR(Calculations!$E$2=\"Orkney Health Board\",Calculations!$E$2=\"Orkney Islands Local Authority\"),$F217=1),0,IF(AND(OR(Calculations!$E$2=\"Shetland Health Board\",Calculations!$E$2=\"Western Isles Health Board\",Calculations!$E$2=\"Shetland Islands Local Authority\",Calculations!$E$2=\"Eilean Siar Local Authority\"),OR($F217=1,$F217=5)),0,prem_mort(VALUE(LEFT(Options!$B$24,2)),$C217,$E217,$F217,2016,$I217+$J217,1,$H217,$G217*$H217,Options!$B$8)))","v":7.3469384329},23.374867034382625,22.69605026999475,1254.5291838599364,1218.0970860788977,9957.1724599999998,9935.6063704392818,23.374867034382625,22.69605026999475,140249.20220629574,136176.30161996849,7527175.1031596186,7308582.5164733864,59743034.759999998,59613638.222635694,140249.20220629574,136176.30161996849,6000]
[null,"Female 30-34",31.999904999999998,81.799899999999994,"female",5,{"$f":"HLOOKUP(Calculations!$E$2,'Prevalence Rates'!$C$3:$BC$249,'Prevalence Rates'!$BD218,FALSE)","v":0.19310344827586207},{"$f":"HLOOKUP(Calculations!$E$2,'Population 2016'!$C$3:$BC$249,'Population 2016'!BD218,FALSE)","v":31633},0,{"$f":"HLOOKUP(Results!E$4,Targeting!$C$3:$F$249,Targeting!$G218,FALSE)","v":2147},{"$f":"IF(AND(OR(Calculations!$E$2=\"Orkney Health Board\",Calculations!$E$2=\"Orkney Islands Local Authority\"),$F218=1),0,IF(AND(OR(Calculations!$E$2=\"Shetland Health Board\",Calculations!$E$2=\"Western Isles Health Board\",Calculations!$E$2=\"Shetland Islands Local Authority\",Calculations!$E$2=\"Eilean Siar Local Authority\"),OR($F218=1,$F218=5)),0,new_ci(VALUE(LEFT(Options!$B$24,2)),$C218,$E218,$F218,2016,$I218,1,$H218,$G218*$H218,Options!$B$8)))","v":11.3362185333},{"$f":"IF(AND(OR(Calculations!$E$2=\"Orkney Health Board\",Calculations!$E$2=\"Orkney Islands Local Authority\"),$F218=1),0,IF(AND(OR(Calculations!$E$2=\"Shetland Health Board\",Calculations!$E$2=\"Western Isles Health Board\",Calculations!$E$2=\"Shetland Islands Local Authority\",Calculations!$E$2=\"Eilean Siar Local Authority\"),OR($F218=1,$F218=5)),0,new_ci(VALUE(LEFT(Options!$B$24,2)),$C218,$E218,$F218,2016,$I218+$J218,1,$H218,$G218*$H218,Options!$B$8)))","v":11.0071684545},{"$f":"IF(AND(OR(Calculations!$E$2=\"Orkney Health Board\",Calculations!$E$2=\"Orkney Islands Local Authority\"),$F218=1),0,IF(AND(OR(Calculations!$E$2=\"Shetland Health Board\",Calculations!$E$2=\"Western Isles Health Board\",Calculations!$E$2=\"Shetland Islands Local Authority\",Calculations!$E$2=\"Eilean Siar Local Authority\"),OR($F218=1,$F218=5)),0,new_yllv2(VALUE(LEFT(Options!$B$24,2)),$C218,$D218,$E218,$F218,2016,$I218,1,$H218,$G218*$H218,Options!$B$8)))","v":553.20740774390003},{"$f":"IF(AND(OR(Calculations!$E$2=\"Orkney Health Board\",Calculations!$E$2=\"Orkney Islands Local Authority\"),$F218=1),0,IF(AND(OR(Calculations!$E$2=\"Shetland Health Board\",Calculations!$E$2=\"Western Isles Health Board\",Calculations!$E$2=\"Shetland Islands Local Authority\",Calculations!$E$2=\"Eilean Siar Local Authority\"),OR($F218=1,$F218=5)),0,new_yllv2(VALUE(LEFT(Options!$B$24,2)),$C218,$D218,$E218,$F218,2016,$I218+$J218,1,$H218,$G218*$H218,Options!$B$8)))","v":537.14976554379996},{"$f":"IF(AND(OR(Calculations!$E$2=\"Orkney Health Board\",Calculations!$E$2=\"Orkney Islands Local Authority\"),$F218=1),0,IF(AND(OR(Calculations!$E$2=\"Shetland Health Board\",Calculations!$E$2=\"Western Isles Health Board\",Calculations!$E$2=\"Shetland Islands Local Authority\",Calculations!$E$2=\"Eilean Siar Local Authority\"),OR($F218=1,$F218=5)),0,hosp_count(VALUE(LEFT(Options!$B$24,2)),$C218,$E218,$F218,2016,$I218,1,$H218,$G218*$H218, Options!$B$8)))","v":3574.1022803198998},{"$f":"IF(AND(OR(Calculations!$E$2=\"Orkney Health Board\",Calculations!$E$2=\"Orkney Islands Local Authority\"),$F218=1),0,IF(AND(OR(Calculations!$E$2=\"Shetland Health Board\",Calculations!$E$2=\"Western Isles Health Board\",Calculations!$E$2=\"Shetland Islands Local Authority\",Calculations!$E$2=\"Eilean Siar Local Authority\"),OR($F218=1,$F218=5)),0,hosp_count(VALUE(LEFT(Options!$B$24,2)),$C218,$E218,$F218,2016,$I218+$J218,1,$H218,$G218*$H218, Options!$B$8)))","v":3566.3643924291},{"$f":"IF(AND(OR(Calculations!$E$2=\"Orkney Health Board\",Calculations!$E$2=\"Orkney Islands Local Authority\"),$F218=1),0,IF(AND(OR(Calculations!$E$2=\"Shetland Health Board\",Calculations!$E$2=\"Western Isles Health Board\",Calculations!$E$2=\"Shetland Islands Local Authority\",Calculations!$E$2=\"Eilean Siar Local Authority\"),OR($F218=1,$F218=5)),0,prem_mort(VALUE(LEFT(Options!$B$24,2)),$C218,$E218,$F218,2016,$I218,1,$H218,$G218*$H218,Options!$B$8)))","v":11.3362185333},{"$f":"IF(AND(OR(Calculations!$E$2=\"Orkney Health Board\",Calculations!$E$2=\"Orkney Islands Local Authority\"),$F218=1),0,IF(AND(OR(Calculations!$E$2=\"Shetland Health Board\",Calculations!$E$2=\"Western Isles Health Board\",Calculations!$E$2=\"Shetland Islands Local Authority\",Calculations!$E$2=\"Eilean Siar Local Authority\"),OR($F218=1,$F218=5)),0,prem_mort(VALUE(LEFT(Options!$B$24,2)),$C218,$E218,$F218,2016,$I218+$J218,1,$H218,$G218*$H218,Options!$B$8)))","v":11.0071684545},35.836684896468881,34.796473475484468,1748.8300437641074,1698.0677316214078,11298.651029999999,11274.189588180383,35.836684896468881,34.796473475484468,232938.45182704774,226177.07759064905,11367395.284466697,11037440.255539151,73441231.694999993,73282232.323172495,232938.45182704774,226177.07759064905,6500]
[null,"Female 35-39",36.918118,81.898120000000006,"female",5,{"$f":"HLOOKUP(Calculations!$E$2,'Prevalence Rates'!$C$3:$BC$249,'Prevalence Rates'!$BD219,FALSE)","v":0.14190981432360741},{"$f":"HLOOKUP(Calculations!$E$2,'Population 2016'!$C$3:$BC$249,'Population 2016'!BD219,FALSE)","v":33676},0,{"$f":"HLOOKUP(Results!E$4,Targeting!$C$3:$F$249,Targeting!$G219,FALSE)","v":2286},{"$f":"IF(AND(OR(Calculations!$E$2=\"Orkney Health Board\",Calculations!$E$2=\"Orkney Islands Local Authority\"),$F219=1),0,IF(AND(OR(Calculations!$E$2=\"Shetland Health Board\",Calculations!$E$2=\"Western Isles Health Board\",Calculations!$E$2=\"Shetland Islands Local Authority\",Calculations!$E$2=\"Eilean Siar Local Authority\"),OR($F219=1,$F219=5)),0,new_ci(VALUE(LEFT(Options!$B$24,2)),$C219,$E219,$F219,2016,$I219,1,$H219,$G219*$H219,Options!$B$8)))","v":18.334942528199999},{"$f":"IF(AND(OR(Calculations!$E$2=\"Orkney Health Board\",Calculations!$E$2=\"Orkney Islands Local Authority\"),$F219=1),0,IF(AND(OR(Calculations!$E$2=\"Shetland Health Board\",Calculations!$E$2=\"Western Isles Health Board\",Calculations!$E$2=\"Shetland Islands Local Authority\",Calculations!$E$2=\"Eilean Siar Local Authority\"),OR($F219=1,$F219=5)),0,new_ci(VALUE(LEFT(Options!$B$24,2)),$C219,$E219,$F219,2016,$I219+$J219,1,$H219,$G219*$H219,Options!$B$8)))","v":17.7931488696},{"$f":"IF(AND(OR(Calculations!$E$2=\"Orkney Health Board\",Calculations!$E$2=\"Orkney Islands Local Authority\"),$F219=1),0,IF(AND(OR(Calculations!$E$2=\"Shetland Health Board\",Calculations!$E$2=\"Western Isles Health Board\",Calculations!$E$2=\"Shetland Islands Local Authority\",Calculations!$E$2=\"Eilean Siar Local Authority\"),OR($F219=1,$F219=5)),0,new_yllv2(VALUE(LEFT(Options!$B$24,2)),$C219,$D219,$E219,$F219,2016,$I219,1,$H219,$G219*$H219,Options!$B$8)))","v":806.37080906009999},{"$f":"IF(AND(OR(Calculations!$E$2=\"Orkney Health Board\",Calculations!$E$2=\"Orkney Islands Local Authority\"),$F219=1),0,IF(AND(OR(Calculations!$E$2=\"Shetland Health Board\",Calculations!$E$2=\"Western Isles Health Board\",Calculations!$E$2=\"Shetland Islands Local Authority\",Calculations!$E$2=\"Eilean Siar Local Authority\"),OR($F219=1,$F219=5)),0,new_yllv2(VALUE(LEFT(Options!$B$24,2)),$C219,$D219,$E219,$F219,2016,$I219+$J219,1,$H219,$G219*$H219,Options!$B$8)))","v":782.54272287130004},{"$f":"IF(AND(OR(Calculations!$E$2=\"Orkney Health Board\",Calculations!$E$2=\"Orkney Islands Local Authority\"),$F219=1),0,IF(AND(OR(Calculations!$E$2=\"Shetland Health Board\",Calculations!$E$2=\"Western Isles Health Board\",Calculations!$E$2=\"Shetland Islands Local Authority\",Calculations!$E$2=\"Eilean Siar Local Authority\"),OR($F219=1,$F219=5)),0,hosp_count(VALUE(LEFT(Options!$B$24,2)),$C219,$E219,$F219,2016,$I219,1,$H219,$G219*$H219, Options!$B$8)))","v":4306.0016290455997},{"$f":"IF(AND(OR(Calculations!$E$2=\"Orkney Health Board\",Calculations!$E$2=\"Orkney Islands Local Authority\"),$F219=1),0,IF(AND(OR(Calculations!$E$2=\"Shetland Health Board\",Calculations!$E$2=\"Western Isles Health Board\",Calculations!$E$2=\"Shetland Islands Local Authority\",Calculations!$E$2=\"Eilean Siar Local Authority\"),OR($F219=1,$F219=5)),0,hosp_count(VALUE(LEFT(Options!$B$24,2)),$C219,$E219,$F219,2016,$I219+$J219,1,$H219,$G219*$H219, Options!$B$8)))","v":4296.6682933129996},{"$f":"IF(AND(OR(Calculations!$E$2=\"Orkney Health Board\",Calculations!$E$2=\"Orkney Islands Local Authority\"),$F219=1),0,IF(AND(OR(Calculations!$E$2=\"Shetland Health Board\",Calculations!$E$2=\"Western Isles Health Board\",Calculations!$E$2=\"Shetland Islands Local Authority\",Calculations!$E$2=\"Eilean Siar Local Authority\"),OR($F219=1,$F219=5)),0,prem_mort(VALUE(LEFT(Options!$B$24,2)),$C219,$E219,$F219,2016,$I219,1,$H219,$G219*$H219,Options!$B$8)))","v":18.334942528199999},{"$f":"IF(AND(OR(Calculations!$E$2=\"Orkney Health Board\",Calculations!$E$2=\"Orkney Islands Local Authority\"),$F219=1),0,IF(AND(OR(Calculations!$E$2=\"Shetland Health Board\",Calculations!$E$2=\"Western Isles Health Board\",Calculations!$E$2=\"Shetland Islands Local Authority\",Calculations!$E$2=\"Eilean Siar Local Authority\"),OR($F219=1,$F219=5)),0,prem_mort(VALUE(LEFT(Options!$B$24,2)),$C219,$E219,$F219,2016,$I219+$J219,1,$H219,$G219*$H219,Options!$B$8)))","v":17.7931488696},54.445131631428907,52.836289552203354,2394.4969980404444,2323.7401201784655,12786.55906,12758.843963989189,54.445131631428907,52.836289552203354,381115.92142000236,369854.02686542348,16761478.98628311,16266180.841249259,89505913.420000002,89311907.747924328,381115.92142000236,369854.02686542348,7000]
[null,"Female 40-44",42.077438000000001,82.30744,"female",5,{"$f":"HLOOKUP(Calculations!$E$2,'Prevalence Rates'!$C$3:$BC$249,'Prevalence Rates'!$BD220,FALSE)","v":0.14190981432360741},{"$f":"HLOOKUP(Calculations!$E$2,'Population 2016'!$C$3:$BC$249,'Population 2016'!BD220,FALSE)","v":36508},0,{"$f":"HLOOKUP(Results!E$4,Targeting!$C$3:$F$249,Targeting!$G220,FALSE)","v":2478},{"$f":"IF(AND(OR(Calculations!$E$2=\"Orkney Health Board\",Calculations!$E$2=\"Orkney Islands Local Authority\"),$F220=1),0,IF(AND(OR(Calculations!$E$2=\"Shetland Health Board\",Calculations!$E$2=\"Western Isles Health Board\",Calculations!$E$2=\"Shetland Islands Local Authority\",Calculations!$E$2=\"Eilean Siar Local Authority\"),OR($F220=1,$F220=5)),0,new_ci(VALUE(LEFT(Options!$B$24,2)),$C220,$E220,$F220,2016,$I220,1,$H220,$G220*$H220,Options!$B$8)))","v":30.8218791549},{"$f":"IF(AND(OR(Calculations!$E$2=\"Orkney Health Board\",Calculations!$E$2=\"Orkney Islands Local Authority\"),$F220=1),0,IF(AND(OR(Calculations!$E$2=\"Shetland Health Board\",Calculations!$E$2=\"Western Isles Health Board\",Calculations!$E$2=\"Shetland Islands Local Authority\",Calculations!$E$2=\"Eilean Siar Local Authority\"),OR($F220=1,$F220=5)),0,new_ci(VALUE(LEFT(Options!$B$24,2)),$C220,$E220,$F220,2016,$I220+$J220,1,$H220,$G220*$H220,Options!$B$8)))","v":29.9113457367},{"$f":"IF(AND(OR(Calculations!$E$2=\"Orkney Health Board\",Calculations!$E$2=\"Orkney Islands Local Authority\"),$F220=1),0,IF(AND(OR(Calculations!$E$2=\"Shetland Health Board\",Calculations!$E$2=\"Western Isles Health Board\",Calculations!$E$2=\"Shetland Islands Local Authority\",Calculations!$E$2=\"Eilean Siar Local Authority\"),OR($F220=1,$F220=5)),0,new_yllv2(VALUE(LEFT(Options!$B$24,2)),$C220,$D220,$E220,$F220,2016,$I220,1,$H220,$G220*$H220,Options!$B$8)))","v":1209.1423808904999},{"$f":"IF(AND(OR(Calculations!$E$2=\"Orkney Health Board\",Calculations!$E$2=\"Orkney Islands Local Authority\"),$F220=1),0,IF(AND(OR(Calculations!$E$2=\"Shetland Health Board\",Calculations!$E$2=\"Western Isles Health Board\",Calculations!$E$2=\"Shetland Islands Local Authority\",Calculations!$E$2=\"Eilean Siar Local Authority\"),OR($F220=1,$F220=5)),0,new_yllv2(VALUE(LEFT(Options!$B$24,2)),$C220,$D220,$E220,$F220,2016,$I220+$J220,1,$H220,$G220*$H220,Options!$B$8)))","v":1173.4221530734001},{"$f":"IF(AND(OR(Calculations!$E$2=\"Orkney Health Board\",Calculations!$E$2=\"Orkney Islands Local Authority\"),$F220=1),0,IF(AND(OR(Calculations!$E$2=\"Shetland Health Board\",Calculations!$E$2=\"Western Isles Health Board\",Calculations!$E$2=\"Shetland Islands Local Authority\",Calculations!$E$2=\"Eilean Siar Local Authority\"),OR($F220=1,$F220=5)),0,hosp_count(VALUE(LEFT(Options!$B$24,2)),$C220,$E220,$F220,2016,$I220,1,$H220,$G220*$H220, Options!$B$8)))","v":5314.9930810692003},{"$f":"IF(AND(OR(Calculations!$E$2=\"Orkney Health Board\",Calculations!$E$2=\"Orkney Islands Local Authority\"),$F220=1),0,IF(AND(OR(Calculations!$E$2=\"Shetland Health Board\",Calculations!$E$2=\"Western Isles Health Board\",Calculations!$E$2=\"Shetland Islands Local Authority\",Calculations!$E$2=\"Eilean Siar Local Authority\"),OR($F220=1,$F220=5)),0,hosp_count(VALUE(LEFT(Options!$B$24,2)),$C220,$E220,$F220,2016,$I220+$J220,1,$H220,$G220*$H220, Options!$B$8)))","v":5303.4738646879996},{"$f":"IF(AND(OR(Calculations!$E$2=\"Orkney Health Board\",Calculations!$E$2=\"Orkney Islands Local Authority\"),$F220=1),0,IF(AND(OR(Calculations!$E$2=\"Shetland Health Board\",Calculations!$E$2=\"Western Isles Health Board\",Calculations!$E$2=\"Shetland Islands Local Authority\",Calculations!$E$2=\"Eilean Siar Local Authority\"),OR($F220=1,$F220=5)),0,prem_mort(VALUE(LEFT(Options!$B$24,2)),$C220,$E220,$F220,2016,$I220,1,$H220,$G220*$H220,Options!$B$8)))","v":30.8218791549},{"$f":"IF(AND(OR(Calculations!$E$2=\"Orkney Health Board\",Calculations!$E$2=\"Orkney Islands Local Authority\"),$F220=1),0,IF(AND(OR(Calculations!$E$2=\"Shetland Health Board\",Calculations!$E$2=\"Western Isles Health Board\",Calculations!$E$2=\"Shetland Islands Local Authority\",Calculations!$E$2=\"Eilean Siar Local Authority\"),OR($F220=1,$F220=5)),0,prem_mort(VALUE(LEFT(Options!$B$24,2)),$C220,$E220,$F220,2016,$I220+$J220,1,$H220,$G220*$H220,Options!$B$8)))","v":29.9113457367},84.425000424290573,81.930934964117455,3311.99293549496,3214.1507425041091,14558.433990000001,14526.881408699463,84.425000424290573,81.930934964117455,590975.00297003402,573516.54474882223,23183950.548464719,22499055.197528765,{"$f":"W220*$AI220","v":101909037.93000001},{"$f":"X220*$AI220","v":101688169.86089624},{"$f":"Y220*$AI220","v":590975.00297003402},{"$f":"Z220*$AI220","v":573516.54474882223},7000]
[null,"Female 45-49",47.025772000000003,82.585769999999997,"female",5,{"$f":"HLOOKUP(Calculations!$E$2,'Prevalence Rates'!$C$3:$BC$249,'Prevalence Rates'!$BD221,FALSE)","v":0.11391129032258064},{"$f":"HLOOKUP(Calculations!$E$2,'Population 2016'!$C$3:$BC$249,'Population 2016'!BD221,FALSE)","v":41785},0,{"$f":"HLOOKUP(Results!E$4,Targeting!$C$3:$F$249,Targeting!$G221,FALSE)","v":2837},{"$f":"IF(AND(OR(Calculations!$E$2=\"Orkney Health Board\",Calculations!$E$2=\"Orkney Islands Local Authority\"),$F221=1),0,IF(AND(OR(Calculations!$E$2=\"Shetland Health Board\",Calculations!$E$2=\"Western Isles Health Board\",Calculations!$E$2=\"Shetland Islands Local Authority\",Calculations!$E$2=\"Eilean Siar Local Authority\"),OR($F221=1,$F221=5)),0,new_ci(VALUE(LEFT(Options!$B$24,2)),$C221,$E221,$F221,2016,$I221,1,$H221,$G221*$H221,Options!$B$8)))","v":53.725370473799998},{"$f":"IF(AND(OR(Calculations!$E$2=\"Orkney Health Board\",Calculations!$E$2=\"Orkney Islands Local Authority\"),$F221=1),0,IF(AND(OR(Calculations!$E$2=\"Shetland Health Board\",Calculations!$E$2=\"Western Isles Health Board\",Calculations!$E$2=\"Shetland Islands Local Authority\",Calculations!$E$2=\"Eilean Siar Local Authority\"),OR($F221=1,$F221=5)),0,new_ci(VALUE(LEFT(Options!$B$24,2)),$C221,$E221,$F221,2016,$I221+$J221,1,$H221,$G221*$H221,Options!$B$8)))","v":52.122419230699997},{"$f":"IF(AND(OR(Calculations!$E$2=\"Orkney Health Board\",Calculations!$E$2=\"Orkney Islands Local Authority\"),$F221=1),0,IF(AND(OR(Calculations!$E$2=\"Shetland Health Board\",Calculations!$E$2=\"Western Isles Health Board\",Calculations!$E$2=\"Shetland Islands Local Authority\",Calculations!$E$2=\"Eilean Siar Local Authority\"),OR($F221=1,$F221=5)),0,new_yllv2(VALUE(LEFT(Options!$B$24,2)),$C221,$D221,$E221,$F221,2016,$I221,1,$H221,$G221*$H221,Options!$B$8)))","v":1856.7486961238001},{"$f":"IF(AND(OR(Calculations!$E$2=\"Orkney Health Board\",Calculations!$E$2=\"Orkney Islands Local Authority\"),$F221=1),0,IF(AND(OR(Calculations!$E$2=\"Shetland Health Board\",Calculations!$E$2=\"Western Isles Health Board\",Calculations!$E$2=\"Shetland Islands Local Authority\",Calculations!$E$2=\"Eilean Siar Local Authority\"),OR($F221=1,$F221=5)),0,new_yllv2(VALUE(LEFT(Options!$B$24,2)),$C221,$D221,$E221,$F221,2016,$I221+$J221,1,$H221,$G221*$H221,Options!$B$8)))","v":1801.3507043682},{"$f":"IF(AND(OR(Calculations!$E$2=\"Orkney Health Board\",Calculations!$E$2=\"Orkney Islands Local Authority\"),$F221=1),0,IF(AND(OR(Calculations!$E$2=\"Shetland Health Board\",Calculations!$E$2=\"Western Isles Health Board\",Calculations!$E$2=\"Shetland Islands Local Authority\",Calculations!$E$2=\"Eilean Siar Local Authority\"),OR($F221=1,$F221=5)),0,hosp_count(VALUE(LEFT(Options!$B$24,2)),$C221,$E221,$F221,2016,$I221,1,$H221,$G221*$H221, Options!$B$8)))","v":6889.5555642705003},{"$f":"IF(AND(OR(Calculations!$E$2=\"Orkney Health Board\",Calculations!$E$2=\"Orkney Islands Local Authority\"),$F221=1),0,IF(AND(OR(Calculations!$E$2=\"Shetland Health Board\",Calculations!$E$2=\"Western Isles Health Board\",Calculations!$E$2=\"Shetland Islands Local Authority\",Calculations!$E$2=\"Eilean Siar Local Authority\"),OR($F221=1,$F221=5)),0,hosp_count(VALUE(LEFT(Options!$B$24,2)),$C221,$E221,$F221,2016,$I221+$J221,1,$H221,$G221*$H221, Options!$B$8)))","v":6874.6111229321996},{"$f":"IF(AND(OR(Calculations!$E$2=\"Orkney Health Board\",Calculations!$E$2=\"Orkney Islands Local Authority\"),$F221=1),0,IF(AND(OR(Calculations!$E$2=\"Shetland Health Board\",Calculations!$E$2=\"Western Isles Health Board\",Calculations!$E$2=\"Shetland Islands Local Authority\",Calculations!$E$2=\"Eilean Siar Local Authority\"),OR($F221=1,$F221=5)),0,prem_mort(VALUE(LEFT(Options!$B$24,2)),$C221,$E221,$F221,2016,$I221,1,$H221,$G221*$H221,Options!$B$8)))","v":53.725370473799998},{"$f":"IF(AND(OR(Calculations!$E$2=\"Orkney Health Board\",Calculations!$E$2=\"Orkney Islands Local Authority\"),$F221=1),0,IF(AND(OR(Calculations!$E$2=\"Shetland Health Board\",Calculations!$E$2=\"Western Isles Health Board\",Calculations!$E$2=\"Shetland Islands Local Authority\",Calculations!$E$2=\"Eilean Siar Local Authority\"),OR($F221=1,$F221=5)),0,prem_mort(VALUE(LEFT(Options!$B$24,2)),$C221,$E221,$F221,2016,$I221+$J221,1,$H221,$G221*$H221,Options!$B$8)))","v":52.122419230699997},128.57573405241115,124.73954584348449,4443.5771116998922,4310.9984548718439,16488.10713,16452.342043633358,128.57573405241115,124.73954584348449,900030.13836687803,873176.82090439147,31105039.781899244,30176989.184102908,115416749.91,115166394.30543351,900030.13836687803,873176.82090439147,7000]
[null,"Female 50-54",51.990825999999998,82.980829999999997,"female",5,{"$f":"HLOOKUP(Calculations!$E$2,'Prevalence Rates'!$C$3:$BC$249,'Prevalence Rates'!$BD222,FALSE)","v":0.11391129032258064},{"$f":"HLOOKUP(Calculations!$E$2,'Population 2016'!$C$3:$BC$249,'Population 2016'!BD222,FALSE)","v":42428},0,{"$f":"HLOOKUP(Results!E$4,Targeting!$C$3:$F$249,Targeting!$G222,FALSE)","v":2880},{"$f":"IF(AND(OR(Calculations!$E$2=\"Orkney Health Board\",Calculations!$E$2=\"Orkney Islands Local Authority\"),$F222=1),0,IF(AND(OR(Calculations!$E$2=\"Shetland Health Board\",Calculations!$E$2=\"Western Isles Health Board\",Calculations!$E$2=\"Shetland Islands Local Authority\",Calculations!$E$2=\"Eilean Siar Local Authority\"),OR($F222=1,$F222=5)),0,new_ci(VALUE(LEFT(Options!$B$24,2)),$C222,$E222,$F222,2016,$I222,1,$H222,$G222*$H222,Options!$B$8)))","v":83.188865711000005},{"$f":"IF(AND(OR(Calculations!$E$2=\"Orkney Health Board\",Calculations!$E$2=\"Orkney Islands Local Authority\"),$F222=1),0,IF(AND(OR(Calculations!$E$2=\"Shetland Health Board\",Calculations!$E$2=\"Western Isles Health Board\",Calculations!$E$2=\"Shetland Islands Local Authority\",Calculations!$E$2=\"Eilean Siar Local Authority\"),OR($F222=1,$F222=5)),0,new_ci(VALUE(LEFT(Options!$B$24,2)),$C222,$E222,$F222,2016,$I222+$J222,1,$H222,$G222*$H222,Options!$B$8)))","v":80.708394287000004},{"$f":"IF(AND(OR(Calculations!$E$2=\"Orkney Health Board\",Calculations!$E$2=\"Orkney Islands Local Authority\"),$F222=1),0,IF(AND(OR(Calculations!$E$2=\"Shetland Health Board\",Calculations!$E$2=\"Western Isles Health Board\",Calculations!$E$2=\"Shetland Islands Local Authority\",Calculations!$E$2=\"Eilean Siar Local Authority\"),OR($F222=1,$F222=5)),0,new_yllv2(VALUE(LEFT(Options!$B$24,2)),$C222,$D222,$E222,$F222,2016,$I222,1,$H222,$G222*$H222,Options!$B$8)))","v":2494.8344154284},{"$f":"IF(AND(OR(Calculations!$E$2=\"Orkney Health Board\",Calculations!$E$2=\"Orkney Islands Local Authority\"),$F222=1),0,IF(AND(OR(Calculations!$E$2=\"Shetland Health Board\",Calculations!$E$2=\"Western Isles Health Board\",Calculations!$E$2=\"Shetland Islands Local Authority\",Calculations!$E$2=\"Eilean Siar Local Authority\"),OR($F222=1,$F222=5)),0,new_yllv2(VALUE(LEFT(Options!$B$24,2)),$C222,$D222,$E222,$F222,2016,$I222+$J222,1,$H222,$G222*$H222,Options!$B$8)))","v":2420.4450675007001},{"$f":"IF(AND(OR(Calculations!$E$2=\"Orkney Health Board\",Calculations!$E$2=\"Orkney Islands Local Authority\"),$F222=1),0,IF(AND(OR(Calculations!$E$2=\"Shetland Health Board\",Calculations!$E$2=\"Western Isles Health Board\",Calculations!$E$2=\"Shetland Islands Local Authority\",Calculations!$E$2=\"Eilean Siar Local Authority\"),OR($F222=1,$F222=5)),0,hosp_count(VALUE(LEFT(Options!$B$24,2)),$C222,$E222,$F222,2016,$I222,1,$H222,$G222*$H222, Options!$B$8)))","v":7926.1475104580004},{"$f":"IF(AND(OR(Calculations!$E$2=\"Orkney Health Board\",Calculations!$E$2=\"Orkney Islands Local Authority\"),$F222=1),0,IF(AND(OR(Calculations!$E$2=\"Shetland Health Board\",Calculations!$E$2=\"Western Isles Health Board\",Calculations!$E$2=\"Shetland Islands Local Authority\",Calculations!$E$2=\"Eilean Siar Local Authority\"),OR($F222=1,$F222=5)),0,hosp_count(VALUE(LEFT(Options!$B$24,2)),$C222,$E222,$F222,2016,$I222+$J222,1,$H222,$G222*$H222, Options!$B$8)))","v":7908.9584703820001},{"$f":"IF(AND(OR(Calculations!$E$2=\"Orkney Health Board\",Calculations!$E$2=\"Orkney Islands Local Authority\"),$F222=1),0,IF(AND(OR(Calculations!$E$2=\"Shetland Health Board\",Calculations!$E$2=\"Western Isles Health Board\",Calculations!$E$2=\"Shetland Islands Local Authority\",Calculations!$E$2=\"Eilean Siar Local Authority\"),OR($F222=1,$F222=5)),0,prem_mort(VALUE(LEFT(Options!$B$24,2)),$C222,$E222,$F222,2016,$I222,1,$H222,$G222*$H222,Options!$B$8)))","v":83.188865711000005},{"$f":"IF(AND(OR(Calculations!$E$2=\"Orkney Health Board\",Calculations!$E$2=\"Orkney Islands Local Authority\"),$F222=1),0,IF(AND(OR(Calculations!$E$2=\"Shetland Health Board\",Calculations!$E$2=\"Western Isles Health Board\",Calculations!$E$2=\"Shetland Islands Local Authority\",Calculations!$E$2=\"Eilean Siar Local Authority\"),OR($F222=1,$F222=5)),0,prem_mort(VALUE(LEFT(Options!$B$24,2)),$C222,$E222,$F222,2016,$I222+$J222,1,$H222,$G222*$H222,Options!$B$8)))","v":80.708394287000004},196.07067434477233,190.22436666116715,5880.1603078825301,5704.829517065853,18681.407350000001,18640.893915296503,196.07067434477233,190.22436666116715,1372494.7204134064,1331570.56662817,41161122.155177712,39933806.61946097,130769851.45,130486257.40707552,1372494.7204134064,1331570.56662817,7000]
[null,"Female 55-59",56.953040999999999,83.473039999999997,"female",5,{"$f":"HLOOKUP(Calculations!$E$2,'Prevalence Rates'!$C$3:$BC$249,'Prevalence Rates'!$BD223,FALSE)","v":0.40306122448979592},{"$f":"HLOOKUP(Calculations!$E$2,'Population 2016'!$C$3:$BC$249,'Population 2016'!BD223,FALSE)","v":38314},0,{"$f":"HLOOKUP(Results!E$4,Targeting!$C$3:$F$249,Targeting!$G223,FALSE)","v":2601},{"$f":"IF(AND(OR(Calculations!$E$2=\"Orkney Health Board\",Calculations!$E$2=\"Orkney Islands Local Authority\"),$F223=1),0,IF(AND(OR(Calculations!$E$2=\"Shetland Health Board\",Calculations!$E$2=\"Western Isles Health Board\",Calculations!$E$2=\"Shetland Islands Local Authority\",Calculations!$E$2=\"Eilean Siar Local Authority\"),OR($F223=1,$F223=5)),0,new_ci(VALUE(LEFT(Options!$B$24,2)),$C223,$E223,$F223,2016,$I223,1,$H223,$G223*$H223,Options!$B$8)))","v":114.5072794843},{"$f":"IF(AND(OR(Calculations!$E$2=\"Orkney Health Board\",Calculations!$E$2=\"Orkney Islands Local Authority\"),$F223=1),0,IF(AND(OR(Calculations!$E$2=\"Shetland Health Board\",Calculations!$E$2=\"Western Isles Health Board\",Calculations!$E$2=\"Shetland Islands Local Authority\",Calculations!$E$2=\"Eilean Siar Local Authority\"),OR($F223=1,$F223=5)),0,new_ci(VALUE(LEFT(Options!$B$24,2)),$C223,$E223,$F223,2016,$I223+$J223,1,$H223,$G223*$H223,Options!$B$8)))","v":111.41142180759999},{"$f":"IF(AND(OR(Calculations!$E$2=\"Orkney Health Board\",Calculations!$E$2=\"Orkney Islands Local Authority\"),$F223=1),0,IF(AND(OR(Calculations!$E$2=\"Shetland Health Board\",Calculations!$E$2=\"Western Isles Health Board\",Calculations!$E$2=\"Shetland Islands Local Authority\",Calculations!$E$2=\"Eilean Siar Local Authority\"),OR($F223=1,$F223=5)),0,new_yllv2(VALUE(LEFT(Options!$B$24,2)),$C223,$D223,$E223,$F223,2016,$I223,1,$H223,$G223*$H223,Options!$B$8)))","v":2922.2256579321001},{"$f":"IF(AND(OR(Calculations!$E$2=\"Orkney Health Board\",Calculations!$E$2=\"Orkney Islands Local Authority\"),$F223=1),0,IF(AND(OR(Calculations!$E$2=\"Shetland Health Board\",Calculations!$E$2=\"Western Isles Health Board\",Calculations!$E$2=\"Shetland Islands Local Authority\",Calculations!$E$2=\"Eilean Siar Local Authority\"),OR($F223=1,$F223=5)),0,new_yllv2(VALUE(LEFT(Options!$B$24,2)),$C223,$D223,$E223,$F223,2016,$I223+$J223,1,$H223,$G223*$H223,Options!$B$8)))","v":2843.2193731184998},{"$f":"IF(AND(OR(Calculations!$E$2=\"Orkney Health Board\",Calculations!$E$2=\"Orkney Islands Local Authority\"),$F223=1),0,IF(AND(OR(Calculations!$E$2=\"Shetland Health Board\",Calculations!$E$2=\"Western Isles Health Board\",Calculations!$E$2=\"Shetland Islands Local Authority\",Calculations!$E$2=\"Eilean Siar Local Authority\"),OR($F223=1,$F223=5)),0,hosp_count(VALUE(LEFT(Options!$B$24,2)),$C223,$E223,$F223,2016,$I223,1,$H223,$G223*$H223, Options!$B$8)))","v":8109.1411843690003},{"$f":"IF(AND(OR(Calculations!$E$2=\"Orkney Health Board\",Calculations!$E$2=\"Orkney Islands Local Authority\"),$F223=1),0,IF(AND(OR(Calculations!$E$2=\"Shetland Health Board\",Calculations!$E$2=\"Western Isles Health Board\",Calculations!$E$2=\"Shetland Islands Local Authority\",Calculations!$E$2=\"Eilean Siar Local Authority\"),OR($F223=1,$F223=5)),0,hosp_count(VALUE(LEFT(Options!$B$24,2)),$C223,$E223,$F223,2016,$I223+$J223,1,$H223,$G223*$H223, Options!$B$8)))","v":8091.6544524663004},{"$f":"IF(AND(OR(Calculations!$E$2=\"Orkney Health Board\",Calculations!$E$2=\"Orkney Islands Local Authority\"),$F223=1),0,IF(AND(OR(Calculations!$E$2=\"Shetland Health Board\",Calculations!$E$2=\"Western Isles Health Board\",Calculations!$E$2=\"Shetland Islands Local Authority\",Calculations!$E$2=\"Eilean Siar Local Authority\"),OR($F223=1,$F223=5)),0,prem_mort(VALUE(LEFT(Options!$B$24,2)),$C223,$E223,$F223,2016,$I223,1,$H223,$G223*$H223,Options!$B$8)))","v":114.5072794843},{"$f":"IF(AND(OR(Calculations!$E$2=\"Orkney Health Board\",Calculations!$E$2=\"Orkney Islands Local Authority\"),$F223=1),0,IF(AND(OR(Calculations!$E$2=\"Shetland Health Board\",Calculations!$E$2=\"Western Isles Health Board\",Calculations!$E$2=\"Shetland Islands Local Authority\",Calculations!$E$2=\"Eilean Siar Local Authority\"),OR($F223=1,$F223=5)),0,prem_mort(VALUE(LEFT(Options!$B$24,2)),$C223,$E223,$F223,2016,$I223+$J223,1,$H223,$G223*$H223,Options!$B$8)))","v":111.41142180759999},298.86537423474448,290.78514852951923,7627.0440516054196,7420.8366996881023,21164.955850000002,21119.315269787287,298.86537423474448,290.78514852951923,1942624.9325258392,1890103.4654418749,49575786.335435227,48235438.547972664,137572213.02500001,137275549.25361738,1942624.9325258392,1890103.4654418749,6500]
[null,"Female 60-64",61.947387999999997,84.167389999999997,"female",5,{"$f":"HLOOKUP(Calculations!$E$2,'Prevalence Rates'!$C$3:$BC$249,'Prevalence Rates'!$BD224,FALSE)","v":0.40306122448979592},{"$f":"HLOOKUP(Calculations!$E$2,'Population 2016'!$C$3:$BC$249,'Population 2016'!BD224,FALSE)","v":33644},0,{"$f":"HLOOKUP(Results!E$4,Targeting!$C$3:$F$249,Targeting!$G224,FALSE)","v":2284},{"$f":"IF(AND(OR(Calculations!$E$2=\"Orkney Health Board\",Calculations!$E$2=\"Orkney Islands Local Authority\"),$F224=1),0,IF(AND(OR(Calculations!$E$2=\"Shetland Health Board\",Calculations!$E$2=\"Western Isles Health Board\",Calculations!$E$2=\"Shetland Islands Local Authority\",Calculations!$E$2=\"Eilean Siar Local Authority\"),OR($F224=1,$F224=5)),0,new_ci(VALUE(LEFT(Options!$B$24,2)),$C224,$E224,$F224,2016,$I224,1,$H224,$G224*$H224,Options!$B$8)))","v":153.64385550930001},{"$f":"IF(AND(OR(Calculations!$E$2=\"Orkney Health Board\",Calculations!$E$2=\"Orkney Islands Local Authority\"),$F224=1),0,IF(AND(OR(Calculations!$E$2=\"Shetland Health Board\",Calculations!$E$2=\"Western Isles Health Board\",Calculations!$E$2=\"Shetland Islands Local Authority\",Calculations!$E$2=\"Eilean Siar Local Authority\"),OR($F224=1,$F224=5)),0,new_ci(VALUE(LEFT(Options!$B$24,2)),$C224,$E224,$F224,2016,$I224+$J224,1,$H224,$G224*$H224,Options!$B$8)))","v":149.49299636169999},{"$f":"IF(AND(OR(Calculations!$E$2=\"Orkney Health Board\",Calculations!$E$2=\"Orkney Islands Local Authority\"),$F224=1),0,IF(AND(OR(Calculations!$E$2=\"Shetland Health Board\",Calculations!$E$2=\"Western Isles Health Board\",Calculations!$E$2=\"Shetland Islands Local Authority\",Calculations!$E$2=\"Eilean Siar Local Authority\"),OR($F224=1,$F224=5)),0,new_yllv2(VALUE(LEFT(Options!$B$24,2)),$C224,$D224,$E224,$F224,2016,$I224,1,$H224,$G224*$H224,Options!$B$8)))","v":3260.3229211951002},{"$f":"IF(AND(OR(Calculations!$E$2=\"Orkney Health Board\",Calculations!$E$2=\"Orkney Islands Local Authority\"),$F224=1),0,IF(AND(OR(Calculations!$E$2=\"Shetland Health Board\",Calculations!$E$2=\"Western Isles Health Board\",Calculations!$E$2=\"Shetland Islands Local Authority\",Calculations!$E$2=\"Eilean Siar Local Authority\"),OR($F224=1,$F224=5)),0,new_yllv2(VALUE(LEFT(Options!$B$24,2)),$C224,$D224,$E224,$F224,2016,$I224+$J224,1,$H224,$G224*$H224,Options!$B$8)))","v":3172.2416817813},{"$f":"IF(AND(OR(Calculations!$E$2=\"Orkney Health Board\",Calculations!$E$2=\"Orkney Islands Local Authority\"),$F224=1),0,IF(AND(OR(Calculations!$E$2=\"Shetland Health Board\",Calculations!$E$2=\"Western Isles Health Board\",Calculations!$E$2=\"Shetland Islands Local Authority\",Calculations!$E$2=\"Eilean Siar Local Authority\"),OR($F224=1,$F224=5)),0,hosp_count(VALUE(LEFT(Options!$B$24,2)),$C224,$E224,$F224,2016,$I224,1,$H224,$G224*$H224, Options!$B$8)))","v":8073.9077134924},{"$f":"IF(AND(OR(Calculations!$E$2=\"Orkney Health Board\",Calculations!$E$2=\"Orkney Islands Local Authority\"),$F224=1),0,IF(AND(OR(Calculations!$E$2=\"Shetland Health Board\",Calculations!$E$2=\"Western Isles Health Board\",Calculations!$E$2=\"Shetland Islands Local Authority\",Calculations!$E$2=\"Eilean Siar Local Authority\"),OR($F224=1,$F224=5)),0,hosp_count(VALUE(LEFT(Options!$B$24,2)),$C224,$E224,$F224,2016,$I224+$J224,1,$H224,$G224*$H224, Options!$B$8)))","v":8056.4967346014},{"$f":"IF(AND(OR(Calculations!$E$2=\"Orkney Health Board\",Calculations!$E$2=\"Orkney Islands Local Authority\"),$F224=1),0,IF(AND(OR(Calculations!$E$2=\"Shetland Health Board\",Calculations!$E$2=\"Western Isles Health Board\",Calculations!$E$2=\"Shetland Islands Local Authority\",Calculations!$E$2=\"Eilean Siar Local Authority\"),OR($F224=1,$F224=5)),0,prem_mort(VALUE(LEFT(Options!$B$24,2)),$C224,$E224,$F224,2016,$I224,1,$H224,$G224*$H224,Options!$B$8)))","v":153.64385550930001},{"$f":"IF(AND(OR(Calculations!$E$2=\"Orkney Health Board\",Calculations!$E$2=\"Orkney Islands Local Authority\"),$F224=1),0,IF(AND(OR(Calculations!$E$2=\"Shetland Health Board\",Calculations!$E$2=\"Western Isles Health Board\",Calculations!$E$2=\"Shetland Islands Local Authority\",Calculations!$E$2=\"Eilean Siar Local Authority\"),OR($F224=1,$F224=5)),0,prem_mort(VALUE(LEFT(Options!$B$24,2)),$C224,$E224,$F224,2016,$I224+$J224,1,$H224,$G224*$H224,Options!$B$8)))","v":149.49299636169999},456.67535224497686,444.33776115117109,9690.651887989241,9428.848180303472,23998.06121,23946.310589113662,456.67535224497686,444.33776115117109,2740052.113469861,2666026.5669070263,58143911.327935442,56573089.081820831,143988367.25999999,143677863.53468198,2740052.113469861,2666026.5669070263,6000]
[null,"Female 65-69",67.063927000000007,85.193929999999995,"female",5,{"$f":"HLOOKUP(Calculations!$E$2,'Prevalence Rates'!$C$3:$BC$249,'Prevalence Rates'!$BD225,FALSE)","v":0},{"$f":"HLOOKUP(Calculations!$E$2,'Population 2016'!$C$3:$BC$249,'Population 2016'!BD225,FALSE)","v":33766},0,{"$f":"HLOOKUP(Results!E$4,Targeting!$C$3:$F$249,Targeting!$G225,FALSE)","v":0},{"$f":"IF(AND(OR(Calculations!$E$2=\"Orkney Health Board\",Calculations!$E$2=\"Orkney Islands Local Authority\"),$F225=1),0,IF(AND(OR(Calculations!$E$2=\"Shetland Health Board\",Calculations!$E$2=\"Western Isles Health Board\",Calculations!$E$2=\"Shetland Islands Local Authority\",Calculations!$E$2=\"Eilean Siar Local Authority\"),OR($F225=1,$F225=5)),0,new_ci(VALUE(LEFT(Options!$B$24,2)),$C225,$E225,$F225,2016,$I225,1,$H225,$G225*$H225,Options!$B$8)))","v":237.99531882220001},{"$f":"IF(AND(OR(Calculations!$E$2=\"Orkney Health Board\",Calculations!$E$2=\"Orkney Islands Local Authority\"),$F225=1),0,IF(AND(OR(Calculations!$E$2=\"Shetland Health Board\",Calculations!$E$2=\"Western Isles Health Board\",Calculations!$E$2=\"Shetland Islands Local Authority\",Calculations!$E$2=\"Eilean Siar Local Authority\"),OR($F225=1,$F225=5)),0,new_ci(VALUE(LEFT(Options!$B$24,2)),$C225,$E225,$F225,2016,$I225+$J225,1,$H225,$G225*$H225,Options!$B$8)))","v":237.99531882220001},{"$f":"IF(AND(OR(Calculations!$E$2=\"Orkney Health Board\",Calculations!$E$2=\"Orkney Islands Local Authority\"),$F225=1),0,IF(AND(OR(Calculations!$E$2=\"Shetland Health Board\",Calculations!$E$2=\"Western Isles Health Board\",Calculations!$E$2=\"Shetland Islands Local Authority\",Calculations!$E$2=\"Eilean Siar Local Authority\"),OR($F225=1,$F225=5)),0,new_yllv2(VALUE(LEFT(Options!$B$24,2)),$C225,$D225,$E225,$F225,2016,$I225,1,$H225,$G225*$H225,Options!$B$8)))","v":4076.8605254101999},{"$f":"IF(AND(OR(Calculations!$E$2=\"Orkney Health Board\",Calculations!$E$2=\"Orkney Islands Local Authority\"),$F225=1),0,IF(AND(OR(Calculations!$E$2=\"Shetland Health Board\",Calculations!$E$2=\"Western Isles Health Board\",Calculations!$E$2=\"Shetland Islands Local Authority\",Calculations!$E$2=\"Eilean Siar Local Authority\"),OR($F225=1,$F225=5)),0,new_yllv2(VALUE(LEFT(Options!$B$24,2)),$C225,$D225,$E225,$F225,2016,$I225+$J225,1,$H225,$G225*$H225,Options!$B$8)))","v":4076.8605254101999},{"$f":"IF(AND(OR(Calculations!$E$2=\"Orkney Health Board\",Calculations!$E$2=\"Orkney Islands Local Authority\"),$F225=1),0,IF(AND(OR(Calculations!$E$2=\"Shetland Health Board\",Calculations!$E$2=\"Western Isles Health Board\",Calculations!$E$2=\"Shetland Islands Local Authority\",Calculations!$E$2=\"Eilean Siar Local Authority\"),OR($F225=1,$F225=5)),0,hosp_count(VALUE(LEFT(Options!$B$24,2)),$C225,$E225,$F225,2016,$I225,1,$H225,$G225*$H225, Options!$B$8)))","v":9216.1471731248002},{"$f":"IF(AND(OR(Calculations!$E$2=\"Orkney Health Board\",Calculations!$E$2=\"Orkney Islands Local Authority\"),$F225=1),0,IF(AND(OR(Calculations!$E$2=\"Shetland Health Board\",Calculations!$E$2=\"Western Isles Health Board\",Calculations!$E$2=\"Shetland Islands Local Authority\",Calculations!$E$2=\"Eilean Siar Local Authority\"),OR($F225=1,$F225=5)),0,hosp_count(VALUE(LEFT(Options!$B$24,2)),$C225,$E225,$F225,2016,$I225+$J225,1,$H225,$G225*$H225, Options!$B$8)))","v":9216.1471731248002},{"$f":"IF(AND(OR(Calculations!$E$2=\"Orkney Health Board\",Calculations!$E$2=\"Orkney Islands Local Authority\"),$F225=1),0,IF(AND(OR(Calculations!$E$2=\"Shetland Health Board\",Calculations!$E$2=\"Western Isles Health Board\",Calculations!$E$2=\"Shetland Islands Local Authority\",Calculations!$E$2=\"Eilean Siar Local Authority\"),OR($F225=1,$F225=5)),0,prem_mort(VALUE(LEFT(Options!$B$24,2)),$C225,$E225,$F225,2016,$I225,1,$H225,$G225*$H225,Options!$B$8)))","v":237.99531882220001},{"$f":"IF(AND(OR(Calculations!$E$2=\"Orkney Health Board\",Calculations!$E$2=\"Orkney Islands Local Authority\"),$F225=1),0,IF(AND(OR(Calculations!$E$2=\"Shetland Health Board\",Calculations!$E$2=\"Western Isles Health Board\",Calculations!$E$2=\"Shetland Islands Local Authority\",Calculations!$E$2=\"Eilean Siar Local Authority\"),OR($F225=1,$F225=5)),0,prem_mort(VALUE(LEFT(Options!$B$24,2)),$C225,$E225,$F225,2016,$I225+$J225,1,$H225,$G225*$H225,Options!$B$8)))","v":237.99531882220001},704.83717000000001,704.83717000000001,12073.862836611384,12073.862836611384,27294.163280000001,27294.163280000001,704.83717000000001,704.83717000000001,3876604.4350000001,3876604.4350000001,66406245.601362616,66406245.601362616,150117898.03999999,150117898.03999999,3876604.4350000001,3876604.4350000001,5500]
[null,"Female 70-74",71.938164,86.248159999999999,"female",5,{"$f":"HLOOKUP(Calculations!$E$2,'Prevalence Rates'!$C$3:$BC$249,'Prevalence Rates'!$BD226,FALSE)","v":0},{"$f":"HLOOKUP(Calculations!$E$2,'Population 2016'!$C$3:$BC$249,'Population 2016'!BD226,FALSE)","v":25722},0,{"$f":"HLOOKUP(Results!E$4,Targeting!$C$3:$F$249,Targeting!$G226,FALSE)","v":0},{"$f":"IF(AND(OR(Calculations!$E$2=\"Orkney Health Board\",Calculations!$E$2=\"Orkney Islands Local Authority\"),$F226=1),0,IF(AND(OR(Calculations!$E$2=\"Shetland Health Board\",Calculations!$E$2=\"Western Isles Health Board\",Calculations!$E$2=\"Shetland Islands Local Authority\",Calculations!$E$2=\"Eilean Siar Local Authority\"),OR($F226=1,$F226=5)),0,new_ci(VALUE(LEFT(Options!$B$24,2)),$C226,$E226,$F226,2016,$I226,1,$H226,$G226*$H226,Options!$B$8)))","v":273.9386157948},{"$f":"IF(AND(OR(Calculations!$E$2=\"Orkney Health Board\",Calculations!$E$2=\"Orkney Islands Local Authority\"),$F226=1),0,IF(AND(OR(Calculations!$E$2=\"Shetland Health Board\",Calculations!$E$2=\"Western Isles Health Board\",Calculations!$E$2=\"Shetland Islands Local Authority\",Calculations!$E$2=\"Eilean Siar Local Authority\"),OR($F226=1,$F226=5)),0,new_ci(VALUE(LEFT(Options!$B$24,2)),$C226,$E226,$F226,2016,$I226+$J226,1,$H226,$G226*$H226,Options!$B$8)))","v":273.9386157948},{"$f":"IF(AND(OR(Calculations!$E$2=\"Orkney Health Board\",Calculations!$E$2=\"Orkney Islands Local Authority\"),$F226=1),0,IF(AND(OR(Calculations!$E$2=\"Shetland Health Board\",Calculations!$E$2=\"Western Isles Health Board\",Calculations!$E$2=\"Shetland Islands Local Authority\",Calculations!$E$2=\"Eilean Siar Local Authority\"),OR($F226=1,$F226=5)),0,new_yllv2(VALUE(LEFT(Options!$B$24,2)),$C226,$D226,$E226,$F226,2016,$I226,1,$H226,$G226*$H226,Options!$B$8)))","v":3646.1218804742998},{"$f":"IF(AND(OR(Calculations!$E$2=\"Orkney Health Board\",Calculations!$E$2=\"Orkney Islands Local Authority\"),$F226=1),0,IF(AND(OR(Calculations!$E$2=\"Shetland Health Board\",Calculations!$E$2=\"Western Isles Health Board\",Calculations!$E$2=\"Shetland Islands Local Authority\",Calculations!$E$2=\"Eilean Siar Local Authority\"),OR($F226=1,$F226=5)),0,new_yllv2(VALUE(LEFT(Options!$B$24,2)),$C226,$D226,$E226,$F226,2016,$I226+$J226,1,$H226,$G226*$H226,Options!$B$8)))","v":3646.1218804742998},{"$f":"IF(AND(OR(Calculations!$E$2=\"Orkney Health Board\",Calculations!$E$2=\"Orkney Islands Local Authority\"),$F226=1),0,IF(AND(OR(Calculations!$E$2=\"Shetland Health Board\",Calculations!$E$2=\"Western Isles Health Board\",Calculations!$E$2=\"Shetland Islands Local Authority\",Calculations!$E$2=\"Eilean Siar Local Authority\"),OR($F226=1,$F226=5)),0,hosp_count(VALUE(LEFT(Options!$B$24,2)),$C226,$E226,$F226,2016,$I226,1,$H226,$G226*$H226, Options!$B$8)))","v":7936.3573448597999},{"$f":"IF(AND(OR(Calculations!$E$2=\"Orkney Health Board\",Calculations!$E$2=\"Orkney Islands Local Authority\"),$F226=1),0,IF(AND(OR(Calculations!$E$2=\"Shetland Health Board\",Calculations!$E$2=\"Western Isles Health Board\",Calculations!$E$2=\"Shetland Islands Local Authority\",Calculations!$E$2=\"Eilean Siar Local Authority\"),OR($F226=1,$F226=5)),0,hosp_count(VALUE(LEFT(Options!$B$24,2)),$C226,$E226,$F226,2016,$I226+$J226,1,$H226,$G226*$H226, Options!$B$8)))","v":7936.3573448597999},{"$f":"IF(AND(OR(Calculations!$E$2=\"Orkney Health Board\",Calculations!$E$2=\"Orkney Islands Local Authority\"),$F226=1),0,IF(AND(OR(Calculations!$E$2=\"Shetland Health Board\",Calculations!$E$2=\"Western Isles Health Board\",Calculations!$E$2=\"Shetland Islands Local Authority\",Calculations!$E$2=\"Eilean Siar Local Authority\"),OR($F226=1,$F226=5)),0,prem_mort(VALUE(LEFT(Options!$B$24,2)),$C226,$E226,$F226,2016,$I226,1,$H226,$G226*$H226,Options!$B$8)))","v":273.9386157948},{"$f":"IF(AND(OR(Calculations!$E$2=\"Orkney Health Board\",Calculations!$E$2=\"Orkney Islands Local Authority\"),$F226=1),0,IF(AND(OR(Calculations!$E$2=\"Shetland Health Board\",Calculations!$E$2=\"Western Isles Health Board\",Calculations!$E$2=\"Shetland Islands Local Authority\",Calculations!$E$2=\"Eilean Siar Local Authority\"),OR($F226=1,$F226=5)),0,prem_mort(VALUE(LEFT(Options!$B$24,2)),$C226,$E226,$F226,2016,$I226+$J226,1,$H226,$G226*$H226,Options!$B$8)))","v":273.9386157948},1064.9973399999999,1064.9973399999999,14175.110335410543,14175.110335410543,30854.355590000003,30854.355590000003,1064.9973399999999,1064.9973399999999,5324986.6999999993,5324986.6999999993,70875551.677052721,70875551.677052721,154271777.95000002,154271777.95000002,5324986.6999999993,5324986.6999999993,5000]
[null,"Female 75-79",76.942824999999999,87.812830000000005,"female",5,{"$f":"HLOOKUP(Calculations!$E$2,'Prevalence Rates'!$C$3:$BC$249,'Prevalence Rates'!$BD227,FALSE)","v":0},{"$f":"HLOOKUP(Calculations!$E$2,'Population 2016'!$C$3:$BC$249,'Population 2016'!BD227,FALSE)","v":20290},0,{"$f":"HLOOKUP(Results!E$4,Targeting!$C$3:$F$249,Targeting!$G227,FALSE)","v":0},{"$f":"IF(AND(OR(Calculations!$E$2=\"Orkney Health Board\",Calculations!$E$2=\"Orkney Islands Local Authority\"),$F227=1),0,IF(AND(OR(Calculations!$E$2=\"Shetland Health Board\",Calculations!$E$2=\"Western Isles Health Board\",Calculations!$E$2=\"Shetland Islands Local Authority\",Calculations!$E$2=\"Eilean Siar Local Authority\"),OR($F227=1,$F227=5)),0,new_ci(VALUE(LEFT(Options!$B$24,2)),$C227,$E227,$F227,2016,$I227,1,$H227,$G227*$H227,Options!$B$8)))","v":329.81088215199998},{"$f":"IF(AND(OR(Calculations!$E$2=\"Orkney Health Board\",Calculations!$E$2=\"Orkney Islands Local Authority\"),$F227=1),0,IF(AND(OR(Calculations!$E$2=\"Shetland Health Board\",Calculations!$E$2=\"Western Isles Health Board\",Calculations!$E$2=\"Shetland Islands Local Authority\",Calculations!$E$2=\"Eilean Siar Local Authority\"),OR($F227=1,$F227=5)),0,new_ci(VALUE(LEFT(Options!$B$24,2)),$C227,$E227,$F227,2016,$I227+$J227,1,$H227,$G227*$H227,Options!$B$8)))","v":329.81088215199998},{"$f":"IF(AND(OR(Calculations!$E$2=\"Orkney Health Board\",Calculations!$E$2=\"Orkney Islands Local Authority\"),$F227=1),0,IF(AND(OR(Calculations!$E$2=\"Shetland Health Board\",Calculations!$E$2=\"Western Isles Health Board\",Calculations!$E$2=\"Shetland Islands Local Authority\",Calculations!$E$2=\"Eilean Siar Local Authority\"),OR($F227=1,$F227=5)),0,new_yllv2(VALUE(LEFT(Options!$B$24,2)),$C227,$D227,$E227,$F227,2016,$I227,1,$H227,$G227*$H227,Options!$B$8)))","v":3255.2350558947001},{"$f":"IF(AND(OR(Calculations!$E$2=\"Orkney Health Board\",Calculations!$E$2=\"Orkney Islands Local Authority\"),$F227=1),0,IF(AND(OR(Calculations!$E$2=\"Shetland Health Board\",Calculations!$E$2=\"Western Isles Health Board\",Calculations!$E$2=\"Shetland Islands Local Authority\",Calculations!$E$2=\"Eilean Siar Local Authority\"),OR($F227=1,$F227=5)),0,new_yllv2(VALUE(LEFT(Options!$B$24,2)),$C227,$D227,$E227,$F227,2016,$I227+$J227,1,$H227,$G227*$H227,Options!$B$8)))","v":3255.2350558947001},{"$f":"IF(AND(OR(Calculations!$E$2=\"Orkney Health Board\",Calculations!$E$2=\"Orkney Islands Local Authority\"),$F227=1),0,IF(AND(OR(Calculations!$E$2=\"Shetland Health Board\",Calculations!$E$2=\"Western Isles Health Board\",Calculations!$E$2=\"Shetland Islands Local Authority\",Calculations!$E$2=\"Eilean Siar Local Authority\"),OR($F227=1,$F227=5)),0,hosp_count(VALUE(LEFT(Options!$B$24,2)),$C227,$E227,$F227,2016,$I227,1,$H227,$G227*$H227, Options!$B$8)))","v":7100.1902926740004},{"$f":"IF(AND(OR(Calculations!$E$2=\"Orkney Health Board\",Calculations!$E$2=\"Orkney Islands Local Authority\"),$F227=1),0,IF(AND(OR(Calculations!$E$2=\"Shetland Health Board\",Calculations!$E$2=\"Western Isles Health Board\",Calculations!$E$2=\"Shetland Islands Local Authority\",Calculations!$E$2=\"Eilean Siar Local Authority\"),OR($F227=1,$F227=5)),0,hosp_count(VALUE(LEFT(Options!$B$24,2)),$C227,$E227,$F227,2016,$I227+$J227,1,$H227,$G227*$H227, Options!$B$8)))","v":7100.1902926740004},{"$f":"IF(AND(OR(Calculations!$E$2=\"Orkney Health Board\",Calculations!$E$2=\"Orkney Islands Local Authority\"),$F227=1),0,IF(AND(OR(Calculations!$E$2=\"Shetland Health Board\",Calculations!$E$2=\"Western Isles Health Board\",Calculations!$E$2=\"Shetland Islands Local Authority\",Calculations!$E$2=\"Eilean Siar Local Authority\"),OR($F227=1,$F227=5)),0,prem_mort(VALUE(LEFT(Options!$B$24,2)),$C227,$E227,$F227,2016,$I227,1,$H227,$G227*$H227,Options!$B$8)))","v":0},{"$f":"IF(AND(OR(Calculations!$E$2=\"Orkney Health Board\",Calculations!$E$2=\"Orkney Islands Local Authority\"),$F227=1),0,IF(AND(OR(Calculations!$E$2=\"Shetland Health Board\",Calculations!$E$2=\"Western Isles Health Board\",Calculations!$E$2=\"Shetland Islands Local Authority\",Calculations!$E$2=\"Eilean Siar Local Authority\"),OR($F227=1,$F227=5)),0,prem_mort(VALUE(LEFT(Options!$B$24,2)),$C227,$E227,$F227,2016,$I227+$J227,1,$H227,$G227*$H227,Options!$B$8)))","v":0},1625.48488,1625.48488,16043.543893024644,16043.543893024644,34993.545060000004,34993.545060000004,0,0,6501939.5199999996,6501939.5199999996,64174175.572098576,64174175.572098576,139974180.24000001,139974180.24000001,0,0,4000]
[null,"Female 80-84",81.856712000000002,89.736710000000002,"female",5,{"$f":"HLOOKUP(Calculations!$E$2,'Prevalence Rates'!$C$3:$BC$249,'Prevalence Rates'!$BD228,FALSE)","v":0},{"$f":"HLOOKUP(Calculations!$E$2,'Population 2016'!$C$3:$BC$249,'Population 2016'!BD228,FALSE)","v":15640},0,{"$f":"HLOOKUP(Results!E$4,Targeting!$C$3:$F$249,Targeting!$G228,FALSE)","v":0},{"$f":"IF(AND(OR(Calculations!$E$2=\"Orkney Health Board\",Calculations!$E$2=\"Orkney Islands Local Authority\"),$F228=1),0,IF(AND(OR(Calculations!$E$2=\"Shetland Health Board\",Calculations!$E$2=\"Western Isles Health Board\",Calculations!$E$2=\"Shetland Islands Local Authority\",Calculations!$E$2=\"Eilean Siar Local Authority\"),OR($F228=1,$F228=5)),0,new_ci(VALUE(LEFT(Options!$B$24,2)),$C228,$E228,$F228,2016,$I228,1,$H228,$G228*$H228,Options!$B$8)))","v":384.496045004},{"$f":"IF(AND(OR(Calculations!$E$2=\"Orkney Health Board\",Calculations!$E$2=\"Orkney Islands Local Authority\"),$F228=1),0,IF(AND(OR(Calculations!$E$2=\"Shetland Health Board\",Calculations!$E$2=\"Western Isles Health Board\",Calculations!$E$2=\"Shetland Islands Local Authority\",Calculations!$E$2=\"Eilean Siar Local Authority\"),OR($F228=1,$F228=5)),0,new_ci(VALUE(LEFT(Options!$B$24,2)),$C228,$E228,$F228,2016,$I228+$J228,1,$H228,$G228*$H228,Options!$B$8)))","v":384.496045004},{"$f":"IF(AND(OR(Calculations!$E$2=\"Orkney Health Board\",Calculations!$E$2=\"Orkney Islands Local Authority\"),$F228=1),0,IF(AND(OR(Calculations!$E$2=\"Shetland Health Board\",Calculations!$E$2=\"Western Isles Health Board\",Calculations!$E$2=\"Shetland Islands Local Authority\",Calculations!$E$2=\"Eilean Siar Local Authority\"),OR($F228=1,$F228=5)),0,new_yllv2(VALUE(LEFT(Options!$B$24,2)),$C228,$D228,$E228,$F228,2016,$I228,1,$H228,$G228*$H228,Options!$B$8)))","v":2645.3320206354001},{"$f":"IF(AND(OR(Calculations!$E$2=\"Orkney Health Board\",Calculations!$E$2=\"Orkney Islands Local Authority\"),$F228=1),0,IF(AND(OR(Calculations!$E$2=\"Shetland Health Board\",Calculations!$E$2=\"Western Isles Health Board\",Calculations!$E$2=\"Shetland Islands Local Authority\",Calculations!$E$2=\"Eilean Siar Local Authority\"),OR($F228=1,$F228=5)),0,new_yllv2(VALUE(LEFT(Options!$B$24,2)),$C228,$D228,$E228,$F228,2016,$I228+$J228,1,$H228,$G228*$H228,Options!$B$8)))","v":2645.3320206354001},{"$f":"IF(AND(OR(Calculations!$E$2=\"Orkney Health Board\",Calculations!$E$2=\"Orkney Islands Local Authority\"),$F228=1),0,IF(AND(OR(Calculations!$E$2=\"Shetland Health Board\",Calculations!$E$2=\"Western Isles Health Board\",Calculations!$E$2=\"Shetland Islands Local Authority\",Calculations!$E$2=\"Eilean Siar Local Authority\"),OR($F228=1,$F228=5)),0,hosp_count(VALUE(LEFT(Options!$B$24,2)),$C228,$E228,$F228,2016,$I228,1,$H228,$G228*$H228, Options!$B$8)))","v":6193.0491423240001},{"$f":"IF(AND(OR(Calculations!$E$2=\"Orkney Health Board\",Calculations!$E$2=\"Orkney Islands Local Authority\"),$F228=1),0,IF(AND(OR(Calculations!$E$2=\"Shetland Health Board\",Calculations!$E$2=\"Western Isles Health Board\",Calculations!$E$2=\"Shetland Islands Local Authority\",Calculations!$E$2=\"Eilean Siar Local Authority\"),OR($F228=1,$F228=5)),0,hosp_count(VALUE(LEFT(Options!$B$24,2)),$C228,$E228,$F228,2016,$I228+$J228,1,$H228,$G228*$H228, Options!$B$8)))","v":6193.0491423240001},{"$f":"IF(AND(OR(Calculations!$E$2=\"Orkney Health Board\",Calculations!$E$2=\"Orkney Islands Local Authority\"),$F228=1),0,IF(AND(OR(Calculations!$E$2=\"Shetland Health Board\",Calculations!$E$2=\"Western Isles Health Board\",Calculations!$E$2=\"Shetland Islands Local Authority\",Calculations!$E$2=\"Eilean Siar Local Authority\"),OR($F228=1,$F228=5)),0,prem_mort(VALUE(LEFT(Options!$B$24,2)),$C228,$E228,$F228,2016,$I228,1,$H228,$G228*$H228,Options!$B$8)))","v":0},{"$f":"IF(AND(OR(Calculations!$E$2=\"Orkney Health Board\",Calculations!$E$2=\"Orkney Islands Local Authority\"),$F228=1),0,IF(AND(OR(Calculations!$E$2=\"Shetland Health Board\",Calculations!$E$2=\"Western Isles Health Board\",Calculations!$E$2=\"Shetland Islands Local Authority\",Calculations!$E$2=\"Eilean Siar Local Authority\"),OR($F228=1,$F228=5)),0,prem_mort(VALUE(LEFT(Options!$B$24,2)),$C228,$E228,$F228,2016,$I228+$J228,1,$H228,$G228*$H228,Options!$B$8)))","v":0},2458.4146099999998,2458.4146099999998,16913.887599970589,16913.887599970589,39597.500910000002,39597.500910000002,0,0,6146036.5249999994,6146036.5249999994,42284718.99992647,42284718.99992647,98993752.275000006,98993752.275000006,0,0,2500]
[null,"Female 85-89",86.730819999999994,92.220819999999989,"female",5,{"$f":"HLOOKUP(Calculations!$E$2,'Prevalence Rates'!$C$3:$BC$249,'Prevalence Rates'!$BD229,FALSE)","v":0},{"$f":"HLOOKUP(Calculations!$E$2,'Population 2016'!$C$3:$BC$249,'Population 2016'!BD229,FALSE)","v":9964},0,{"$f":"HLOOKUP(Results!E$4,Targeting!$C$3:$F$249,Targeting!$G229,FALSE)","v":0},{"$f":"IF(AND(OR(Calculations!$E$2=\"Orkney Health Board\",Calculations!$E$2=\"Orkney Islands Local Authority\"),$F229=1),0,IF(AND(OR(Calculations!$E$2=\"Shetland Health Board\",Calculations!$E$2=\"Western Isles Health Board\",Calculations!$E$2=\"Shetland Islands Local Authority\",Calculations!$E$2=\"Eilean Siar Local Authority\"),OR($F229=1,$F229=5)),0,new_ci(VALUE(LEFT(Options!$B$24,2)),$C229,$E229,$F229,2016,$I229,1,$H229,$G229*$H229,Options!$B$8)))","v":368.44233732079999},{"$f":"IF(AND(OR(Calculations!$E$2=\"Orkney Health Board\",Calculations!$E$2=\"Orkney Islands Local Authority\"),$F229=1),0,IF(AND(OR(Calculations!$E$2=\"Shetland Health Board\",Calculations!$E$2=\"Western Isles Health Board\",Calculations!$E$2=\"Shetland Islands Local Authority\",Calculations!$E$2=\"Eilean Siar Local Authority\"),OR($F229=1,$F229=5)),0,new_ci(VALUE(LEFT(Options!$B$24,2)),$C229,$E229,$F229,2016,$I229+$J229,1,$H229,$G229*$H229,Options!$B$8)))","v":368.44233732079999},{"$f":"IF(AND(OR(Calculations!$E$2=\"Orkney Health Board\",Calculations!$E$2=\"Orkney Islands Local Authority\"),$F229=1),0,IF(AND(OR(Calculations!$E$2=\"Shetland Health Board\",Calculations!$E$2=\"Western Isles Health Board\",Calculations!$E$2=\"Shetland Islands Local Authority\",Calculations!$E$2=\"Eilean Siar Local Authority\"),OR($F229=1,$F229=5)),0,new_yllv2(VALUE(LEFT(Options!$B$24,2)),$C229,$D229,$E229,$F229,2016,$I229,1,$H229,$G229*$H229,Options!$B$8)))","v":1654.3060945704001},{"$f":"IF(AND(OR(Calculations!$E$2=\"Orkney Health Board\",Calculations!$E$2=\"Orkney Islands Local Authority\"),$F229=1),0,IF(AND(OR(Calculations!$E$2=\"Shetland Health Board\",Calculations!$E$2=\"Western Isles Health Board\",Calculations!$E$2=\"Shetland Islands Local Authority\",Calculations!$E$2=\"Eilean Siar Local Authority\"),OR($F229=1,$F229=5)),0,new_yllv2(VALUE(LEFT(Options!$B$24,2)),$C229,$D229,$E229,$F229,2016,$I229+$J229,1,$H229,$G229*$H229,Options!$B$8)))","v":1654.3060945704001},{"$f":"IF(AND(OR(Calculations!$E$2=\"Orkney Health Board\",Calculations!$E$2=\"Orkney Islands Local Authority\"),$F229=1),0,IF(AND(OR(Calculations!$E$2=\"Shetland Health Board\",Calculations!$E$2=\"Western Isles Health Board\",Calculations!$E$2=\"Shetland Islands Local Authority\",Calculations!$E$2=\"Eilean Siar Local Authority\"),OR($F229=1,$F229=5)),0,hosp_count(VALUE(LEFT(Options!$B$24,2)),$C229,$E229,$F229,2016,$I229,1,$H229,$G229*$H229, Options!$B$8)))","v":4460.1224511456003},{"$f":"IF(AND(OR(Calculations!$E$2=\"Orkney Health Board\",Calculations!$E$2=\"Orkney Islands Local Authority\"),$F229=1),0,IF(AND(OR(Calculations!$E$2=\"Shetland Health Board\",Calculations!$E$2=\"Western Isles Health Board\",Calculations!$E$2=\"Shetland Islands Local Authority\",Calculations!$E$2=\"Eilean Siar Local Authority\"),OR($F229=1,$F229=5)),0,hosp_count(VALUE(LEFT(Options!$B$24,2)),$C229,$E229,$F229,2016,$I229+$J229,1,$H229,$G229*$H229, Options!$B$8)))","v":4460.1224511456003},{"$f":"IF(AND(OR(Calculations!$E$2=\"Orkney Health Board\",Calculations!$E$2=\"Orkney Islands Local Authority\"),$F229=1),0,IF(AND(OR(Calculations!$E$2=\"Shetland Health Board\",Calculations!$E$2=\"Western Isles Health Board\",Calculations!$E$2=\"Shetland Islands Local Authority\",Calculations!$E$2=\"Eilean Siar Local Authority\"),OR($F229=1,$F229=5)),0,prem_mort(VALUE(LEFT(Options!$B$24,2)),$C229,$E229,$F229,2016,$I229,1,$H229,$G229*$H229,Options!$B$8)))","v":0},{"$f":"IF(AND(OR(Calculations!$E$2=\"Orkney Health Board\",Calculations!$E$2=\"Orkney Islands Local Authority\"),$F229=1),0,IF(AND(OR(Calculations!$E$2=\"Shetland Health Board\",Calculations!$E$2=\"Western Isles Health Board\",Calculations!$E$2=\"Shetland Islands Local Authority\",Calculations!$E$2=\"Eilean Siar Local Authority\"),OR($F229=1,$F229=5)),0,prem_mort(VALUE(LEFT(Options!$B$24,2)),$C229,$E229,$F229,2016,$I229+$J229,1,$H229,$G229*$H229,Options!$B$8)))","v":0},3697.7352199999996,3697.7352199999996,16602.83113780008,16602.83113780008,44762.369039999998,44762.369039999998,0,0,5546602.8299999991,5546602.8299999991,24904246.70670012,24904246.70670012,67143553.560000002,67143553.560000002,0,0,1500]
[null,"Female 90+",92.779342999999997,96.279340000000005,"female",5,{"$f":"HLOOKUP(Calculations!$E$2,'Prevalence Rates'!$C$3:$BC$249,'Prevalence Rates'!$BD230,FALSE)","v":0},{"$f":"HLOOKUP(Calculations!$E$2,'Population 2016'!$C$3:$BC$249,'Population 2016'!BD230,FALSE)","v":6057},0,{"$f":"HLOOKUP(Results!E$4,Targeting!$C$3:$F$249,Targeting!$G230,FALSE)","v":0},{"$f":"IF(AND(OR(Calculations!$E$2=\"Orkney Health Board\",Calculations!$E$2=\"Orkney Islands Local Authority\"),$F230=1),0,IF(AND(OR(Calculations!$E$2=\"Shetland Health Board\",Calculations!$E$2=\"Western Isles Health Board\",Calculations!$E$2=\"Shetland Islands Local Authority\",Calculations!$E$2=\"Eilean Siar Local Authority\"),OR($F230=1,$F230=5)),0,new_ci(VALUE(LEFT(Options!$B$24,2)),$C230,$E230,$F230,2016,$I230,1,$H230,$G230*$H230,Options!$B$8)))","v":369.96415784729999},{"$f":"IF(AND(OR(Calculations!$E$2=\"Orkney Health Board\",Calculations!$E$2=\"Orkney Islands Local Authority\"),$F230=1),0,IF(AND(OR(Calculations!$E$2=\"Shetland Health Board\",Calculations!$E$2=\"Western Isles Health Board\",Calculations!$E$2=\"Shetland Islands Local Authority\",Calculations!$E$2=\"Eilean Siar Local Authority\"),OR($F230=1,$F230=5)),0,new_ci(VALUE(LEFT(Options!$B$24,2)),$C230,$E230,$F230,2016,$I230+$J230,1,$H230,$G230*$H230,Options!$B$8)))","v":369.96415784729999},{"$f":"IF(AND(OR(Calculations!$E$2=\"Orkney Health Board\",Calculations!$E$2=\"Orkney Islands Local Authority\"),$F230=1),0,IF(AND(OR(Calculations!$E$2=\"Shetland Health Board\",Calculations!$E$2=\"Western Isles Health Board\",Calculations!$E$2=\"Shetland Islands Local Authority\",Calculations!$E$2=\"Eilean Siar Local Authority\"),OR($F230=1,$F230=5)),0,new_yllv2(VALUE(LEFT(Options!$B$24,2)),$C230,$D230,$E230,$F230,2016,$I230,1,$H230,$G230*$H230,Options!$B$8)))","v":924.90928472580003},{"$f":"IF(AND(OR(Calculations!$E$2=\"Orkney Health Board\",Calculations!$E$2=\"Orkney Islands Local Authority\"),$F230=1),0,IF(AND(OR(Calculations!$E$2=\"Shetland Health Board\",Calculations!$E$2=\"Western Isles Health Board\",Calculations!$E$2=\"Shetland Islands Local Authority\",Calculations!$E$2=\"Eilean Siar Local Authority\"),OR($F230=1,$F230=5)),0,new_yllv2(VALUE(LEFT(Options!$B$24,2)),$C230,$D230,$E230,$F230,2016,$I230+$J230,1,$H230,$G230*$H230,Options!$B$8)))","v":924.90928472580003},{"$f":"IF(AND(OR(Calculations!$E$2=\"Orkney Health Board\",Calculations!$E$2=\"Orkney Islands Local Authority\"),$F230=1),0,IF(AND(OR(Calculations!$E$2=\"Shetland Health Board\",Calculations!$E$2=\"Western Isles Health Board\",Calculations!$E$2=\"Shetland Islands Local Authority\",Calculations!$E$2=\"Eilean Siar Local Authority\"),OR($F230=1,$F230=5)),0,hosp_count(VALUE(LEFT(Options!$B$24,2)),$C230,$E230,$F230,2016,$I230,1,$H230,$G230*$H230, Options!$B$8)))","v":3156.7875870779999},{"$f":"IF(AND(OR(Calculations!$E$2=\"Orkney Health Board\",Calculations!$E$2=\"Orkney Islands Local Authority\"),$F230=1),0,IF(AND(OR(Calculations!$E$2=\"Shetland Health Board\",Calculations!$E$2=\"Western Isles Health Board\",Calculations!$E$2=\"Shetland Islands Local Authority\",Calculations!$E$2=\"Eilean Siar Local Authority\"),OR($F230=1,$F230=5)),0,hosp_count(VALUE(LEFT(Options!$B$24,2)),$C230,$E230,$F230,2016,$I230+$J230,1,$H230,$G230*$H230, Options!$B$8)))","v":3156.7875870779999},{"$f":"IF(AND(OR(Calculations!$E$2=\"Orkney Health Board\",Calculations!$E$2=\"Orkney Islands Local Authority\"),$F230=1),0,IF(AND(OR(Calculations!$E$2=\"Shetland Health Board\",Calculations!$E$2=\"Western Isles Health Board\",Calculations!$E$2=\"Shetland Islands Local Authority\",Calculations!$E$2=\"Eilean Siar Local Authority\"),OR($F230=1,$F230=5)),0,prem_mort(VALUE(LEFT(Options!$B$24,2)),$C230,$E230,$F230,2016,$I230,1,$H230,$G230*$H230,Options!$B$8)))","v":0},{"$f":"IF(AND(OR(Calculations!$E$2=\"Orkney Health Board\",Calculations!$E$2=\"Orkney Islands Local Authority\"),$F230=1),0,IF(AND(OR(Calculations!$E$2=\"Shetland Health Board\",Calculations!$E$2=\"Western Isles Health Board\",Calculations!$E$2=\"Shetland Islands Local Authority\",Calculations!$E$2=\"Eilean Siar Local Authority\"),OR($F230=1,$F230=5)),0,prem_mort(VALUE(LEFT(Options!$B$24,2)),$C230,$E230,$F230,2016,$I230+$J230,1,$H230,$G230*$H230,Options!$B$8)))","v":0},6108.0428900000006,6108.0428900000006,15270.088900871719,15270.088900871719,52118.005399999995,52118.005399999995,0,0,6108042.8900000006,6108042.8900000006,15270088.900871718,15270088.900871718,52118005.399999991,52118005.399999991,0,0,1000]
[null,"Male 0-4",2.0320822999999999,77.402082000000007,"male",5,{"$f":"HLOOKUP(Calculations!$E$2,'Prevalence Rates'!$C$3:$BC$249,'Prevalence Rates'!$BD231,FALSE)","v":0},{"$f":"HLOOKUP(Calculations!$E$2,'Population 2016'!$C$3:$BC$249,'Population 2016'!BD231,FALSE)","v":0},0,{"$f":"HLOOKUP(Results!E$4,Targeting!$C$3:$F$249,Targeting!$G231,FALSE)","v":0},{"$f":"IF(AND(OR(Calculations!$E$2=\"Orkney Health Board\",Calculations!$E$2=\"Orkney Islands Local Authority\"),$F231=1),0,IF(AND(OR(Calculations!$E$2=\"Shetland Health Board\",Calculations!$E$2=\"Western Isles Health Board\",Calculations!$E$2=\"Shetland Islands Local Authority\",Calculations!$E$2=\"Eilean Siar Local Authority\"),OR($F231=1,$F231=5)),0,new_ci(VALUE(LEFT(Options!$B$24,2)),$C231,$E231,$F231,2016,$I231,1,$H231,$G231*$H231,Options!$B$8)))","v":{"$error":"#VALUE!"}},{"$f":"IF(AND(OR(Calculations!$E$2=\"Orkney Health Board\",Calculations!$E$2=\"Orkney Islands Local Authority\"),$F231=1),0,IF(AND(OR(Calculations!$E$2=\"Shetland Health Board\",Calculations!$E$2=\"Western Isles Health Board\",Calculations!$E$2=\"Shetland Islands Local Authority\",Calculations!$E$2=\"Eilean Siar Local Authority\"),OR($F231=1,$F231=5)),0,new_ci(VALUE(LEFT(Options!$B$24,2)),$C231,$E231,$F231,2016,$I231+$J231,1,$H231,$G231*$H231,Options!$B$8)))","v":{"$error":"#VALUE!"}},{"$f":"IF(AND(OR(Calculations!$E$2=\"Orkney Health Board\",Calculations!$E$2=\"Orkney Islands Local Authority\"),$F231=1),0,IF(AND(OR(Calculations!$E$2=\"Shetland Health Board\",Calculations!$E$2=\"Western Isles Health Board\",Calculations!$E$2=\"Shetland Islands Local Authority\",Calculations!$E$2=\"Eilean Siar Local Authority\"),OR($F231=1,$F231=5)),0,new_yllv2(VALUE(LEFT(Options!$B$24,2)),$C231,$D231,$E231,$F231,2016,$I231,1,$H231,$G231*$H231,Options!$B$8)))","v":{"$error":"#VALUE!"}},{"$f":"IF(AND(OR(Calculations!$E$2=\"Orkney Health Board\",Calculations!$E$2=\"Orkney Islands Local Authority\"),$F231=1),0,IF(AND(OR(Calculations!$E$2=\"Shetland Health Board\",Calculations!$E$2=\"Western Isles Health Board\",Calculations!$E$2=\"Shetland Islands Local Authority\",Calculations!$E$2=\"Eilean Siar Local Authority\"),OR($F231=1,$F231=5)),0,new_yllv2(VALUE(LEFT(Options!$B$24,2)),$C231,$D231,$E231,$F231,2016,$I231+$J231,1,$H231,$G231*$H231,Options!$B$8)))","v":{"$error":"#VALUE!"}},{"$f":"IF(AND(OR(Calculations!$E$2=\"Orkney Health Board\",Calculations!$E$2=\"Orkney Islands Local Authority\"),$F231=1),0,IF(AND(OR(Calculations!$E$2=\"Shetland Health Board\",Calculations!$E$2=\"Western Isles Health Board\",Calculations!$E$2=\"Shetland Islands Local Authority\",Calculations!$E$2=\"Eilean Siar Local Authority\"),OR($F231=1,$F231=5)),0,hosp_count(VALUE(LEFT(Options!$B$24,2)),$C231,$E231,$F231,2016,$I231,1,$H231,$G231*$H231, Options!$B$8)))","v":{"$error":"#VALUE!"}},{"$f":"IF(AND(OR(Calculations!$E$2=\"Orkney Health Board\",Calculations!$E$2=\"Orkney Islands Local Authority\"),$F231=1),0,IF(AND(OR(Calculations!$E$2=\"Shetland Health Board\",Calculations!$E$2=\"Western Isles Health Board\",Calculations!$E$2=\"Shetland Islands Local Authority\",Calculations!$E$2=\"Eilean Siar Local Authority\"),OR($F231=1,$F231=5)),0,hosp_count(VALUE(LEFT(Options!$B$24,2)),$C231,$E231,$F231,2016,$I231+$J231,1,$H231,$G231*$H231, Options!$B$8)))","v":{"$error":"#VALUE!"}},{"$f":"IF(AND(OR(Calculations!$E$2=\"Orkney Health Board\",Calculations!$E$2=\"Orkney Islands Local Authority\"),$F231=1),0,IF(AND(OR(Calculations!$E$2=\"Shetland Health Board\",Calculations!$E$2=\"Western Isles Health Board\",Calculations!$E$2=\"Shetland Islands Local Authority\",Calculations!$E$2=\"Eilean Siar Local Authority\"),OR($F231=1,$F231=5)),0,prem_mort(VALUE(LEFT(Options!$B$24,2)),$C231,$E231,$F231,2016,$I231,1,$H231,$G231*$H231,Options!$B$8)))","v":{"$error":"#VALUE!"}},{"$f":"IF(AND(OR(Calculations!$E$2=\"Orkney Health Board\",Calculations!$E$2=\"Orkney Islands Local Authority\"),$F231=1),0,IF(AND(OR(Calculations!$E$2=\"Shetland Health Board\",Calculations!$E$2=\"Western Isles Health Board\",Calculations!$E$2=\"Shetland Islands Local Authority\",Calculations!$E$2=\"Eilean Siar Local Authority\"),OR($F231=1,$F231=5)),0,prem_mort(VALUE(LEFT(Options!$B$24,2)),$C231,$E231,$F231,2016,$I231+$J231,1,$H231,$G231*$H231,Options!$B$8)))","v":{"$error":"#VALUE!"}},{"$error":"#VALUE!"},{"$error":"#VALUE!"},{"$error":"#VALUE!"},{"$error":"#VALUE!"},{"$error":"#VALUE!"},{"$error":"#VALUE!"},{"$error":"#VALUE!"},{"$error":"#VALUE!"},{"$error":"#VALUE!"},{"$error":"#VALUE!"},{"$error":"#VALUE!"},{"$error":"#VALUE!"},{"$error":"#VALUE!"},{"$error":"#VALUE!"},{"$error":"#VALUE!"},{"$error":"#VALUE!"},5000]
[null,"Male 5-9",6.9784756000000003,77.398476000000002,"male",5,{"$f":"HLOOKUP(Calculations!$E$2,'Prevalence Rates'!$C$3:$BC$249,'Prevalence Rates'!$BD232,FALSE)","v":0},{"$f":"HLOOKUP(Calculations!$E$2,'Population 2016'!$C$3:$BC$249,'Population 2016'!BD232,FALSE)","v":0},0,{"$f":"HLOOKUP(Results!E$4,Targeting!$C$3:$F$249,Targeting!$G232,FALSE)","v":0},{"$f":"IF(AND(OR(Calculations!$E$2=\"Orkney Health Board\",Calculations!$E$2=\"Orkney Islands Local Authority\"),$F232=1),0,IF(AND(OR(Calculations!$E$2=\"Shetland Health Board\",Calculations!$E$2=\"Western Isles Health Board\",Calculations!$E$2=\"Shetland Islands Local Authority\",Calculations!$E$2=\"Eilean Siar Local Authority\"),OR($F232=1,$F232=5)),0,new_ci(VALUE(LEFT(Options!$B$24,2)),$C232,$E232,$F232,2016,$I232,1,$H232,$G232*$H232,Options!$B$8)))","v":{"$error":"#VALUE!"}},{"$f":"IF(AND(OR(Calculations!$E$2=\"Orkney Health Board\",Calculations!$E$2=\"Orkney Islands Local Authority\"),$F232=1),0,IF(AND(OR(Calculations!$E$2=\"Shetland Health Board\",Calculations!$E$2=\"Western Isles Health Board\",Calculations!$E$2=\"Shetland Islands Local Authority\",Calculations!$E$2=\"Eilean Siar Local Authority\"),OR($F232=1,$F232=5)),0,new_ci(VALUE(LEFT(Options!$B$24,2)),$C232,$E232,$F232,2016,$I232+$J232,1,$H232,$G232*$H232,Options!$B$8)))","v":{"$error":"#VALUE!"}},{"$f":"IF(AND(OR(Calculations!$E$2=\"Orkney Health Board\",Calculations!$E$2=\"Orkney Islands Local Authority\"),$F232=1),0,IF(AND(OR(Calculations!$E$2=\"Shetland Health Board\",Calculations!$E$2=\"Western Isles Health Board\",Calculations!$E$2=\"Shetland Islands Local Authority\",Calculations!$E$2=\"Eilean Siar Local Authority\"),OR($F232=1,$F232=5)),0,new_yllv2(VALUE(LEFT(Options!$B$24,2)),$C232,$D232,$E232,$F232,2016,$I232,1,$H232,$G232*$H232,Options!$B$8)))","v":{"$error":"#VALUE!"}},{"$f":"IF(AND(OR(Calculations!$E$2=\"Orkney Health Board\",Calculations!$E$2=\"Orkney Islands Local Authority\"),$F232=1),0,IF(AND(OR(Calculations!$E$2=\"Shetland Health Board\",Calculations!$E$2=\"Western Isles Health Board\",Calculations!$E$2=\"Shetland Islands Local Authority\",Calculations!$E$2=\"Eilean Siar Local Authority\"),OR($F232=1,$F232=5)),0,new_yllv2(VALUE(LEFT(Options!$B$24,2)),$C232,$D232,$E232,$F232,2016,$I232+$J232,1,$H232,$G232*$H232,Options!$B$8)))","v":{"$error":"#VALUE!"}},{"$f":"IF(AND(OR(Calculations!$E$2=\"Orkney Health Board\",Calculations!$E$2=\"Orkney Islands Local Authority\"),$F232=1),0,IF(AND(OR(Calculations!$E$2=\"Shetland Health Board\",Calculations!$E$2=\"Western Isles Health Board\",Calculations!$E$2=\"Shetland Islands Local Authority\",Calculations!$E$2=\"Eilean Siar Local Authority\"),OR($F232=1,$F232=5)),0,hosp_count(VALUE(LEFT(Options!$B$24,2)),$C232,$E232,$F232,2016,$I232,1,$H232,$G232*$H232, Options!$B$8)))","v":{"$error":"#VALUE!"}},{"$f":"IF(AND(OR(Calculations!$E$2=\"Orkney Health Board\",Calculations!$E$2=\"Orkney Islands Local Authority\"),$F232=1),0,IF(AND(OR(Calculations!$E$2=\"Shetland Health Board\",Calculations!$E$2=\"Western Isles Health Board\",Calculations!$E$2=\"Shetland Islands Local Authority\",Calculations!$E$2=\"Eilean Siar Local Authority\"),OR($F232=1,$F232=5)),0,hosp_count(VALUE(LEFT(Options!$B$24,2)),$C232,$E232,$F232,2016,$I232+$J232,1,$H232,$G232*$H232, Options!$B$8)))","v":{"$error":"#VALUE!"}},{"$f":"IF(AND(OR(Calculations!$E$2=\"Orkney Health Board\",Calculations!$E$2=\"Orkney Islands Local Authority\"),$F232=1),0,IF(AND(OR(Calculations!$E$2=\"Shetland Health Board\",Calculations!$E$2=\"Western Isles Health Board\",Calculations!$E$2=\"Shetland Islands Local Authority\",Calculations!$E$2=\"Eilean Siar Local Authority\"),OR($F232=1,$F232=5)),0,prem_mort(VALUE(LEFT(Options!$B$24,2)),$C232,$E232,$F232,2016,$I232,1,$H232,$G232*$H232,Options!$B$8)))","v":{"$error":"#VALUE!"}},{"$f":"IF(AND(OR(Calculations!$E$2=\"Orkney Health Board\",Calculations!$E$2=\"Orkney Islands Local Authority\"),$F232=1),0,IF(AND(OR(Calculations!$E$2=\"Shetland Health Board\",Calculations!$E$2=\"Western Isles Health Board\",Calculations!$E$2=\"Shetland Islands Local Authority\",Calculations!$E$2=\"Eilean Siar Local Authority\"),OR($F232=1,$F232=5)),0,prem_mort(VALUE(LEFT(Options!$B$24,2)),$C232,$E232,$F232,2016,$I232+$J232,1,$H232,$G232*$H232,Options!$B$8)))","v":{"$error":"#VALUE!"}},{"$error":"#VALUE!"},{"$error":"#VALUE!"},{"$error":"#VALUE!"},{"$error":"#VALUE!"},{"$error":"#VALUE!"},{"$error":"#VALUE!"},{"$error":"#VALUE!"},{"$error":"#VALUE!"},{"$error":"#VALUE!"},{"$error":"#VALUE!"},{"$error":"#VALUE!"},{"$error":"#VALUE!"},{"$error":"#VALUE!"},{"$error":"#VALUE!"},{"$error":"#VALUE!"},{"$error":"#VALUE!"},5500]
[null,"Male 10-15",12.471144000000001,77.921140000000008,"male",5,{"$f":"HLOOKUP(Calculations!$E$2,'Prevalence Rates'!$C$3:$BC$249,'Prevalence Rates'!$BD233,FALSE)","v":0},{"$f":"HLOOKUP(Calculations!$E$2,'Population 2016'!$C$3:$BC$249,'Population 2016'!BD233,FALSE)","v":0},0,{"$f":"HLOOKUP(Results!E$4,Targeting!$C$3:$F$249,Targeting!$G233,FALSE)","v":0},{"$f":"IF(AND(OR(Calculations!$E$2=\"Orkney Health Board\",Calculations!$E$2=\"Orkney Islands Local Authority\"),$F233=1),0,IF(AND(OR(Calculations!$E$2=\"Shetland Health Board\",Calculations!$E$2=\"Western Isles Health Board\",Calculations!$E$2=\"Shetland Islands Local Authority\",Calculations!$E$2=\"Eilean Siar Local Authority\"),OR($F233=1,$F233=5)),0,new_ci(VALUE(LEFT(Options!$B$24,2)),$C233,$E233,$F233,2016,$I233,1,$H233,$G233*$H233,Options!$B$8)))","v":{"$error":"#VALUE!"}},{"$f":"IF(AND(OR(Calculations!$E$2=\"Orkney Health Board\",Calculations!$E$2=\"Orkney Islands Local Authority\"),$F233=1),0,IF(AND(OR(Calculations!$E$2=\"Shetland Health Board\",Calculations!$E$2=\"Western Isles Health Board\",Calculations!$E$2=\"Shetland Islands Local Authority\",Calculations!$E$2=\"Eilean Siar Local Authority\"),OR($F233=1,$F233=5)),0,new_ci(VALUE(LEFT(Options!$B$24,2)),$C233,$E233,$F233,2016,$I233+$J233,1,$H233,$G233*$H233,Options!$B$8)))","v":{"$error":"#VALUE!"}},{"$f":"IF(AND(OR(Calculations!$E$2=\"Orkney Health Board\",Calculations!$E$2=\"Orkney Islands Local Authority\"),$F233=1),0,IF(AND(OR(Calculations!$E$2=\"Shetland Health Board\",Calculations!$E$2=\"Western Isles Health Board\",Calculations!$E$2=\"Shetland Islands Local Authority\",Calculations!$E$2=\"Eilean Siar Local Authority\"),OR($F233=1,$F233=5)),0,new_yllv2(VALUE(LEFT(Options!$B$24,2)),$C233,$D233,$E233,$F233,2016,$I233,1,$H233,$G233*$H233,Options!$B$8)))","v":{"$error":"#VALUE!"}},{"$f":"IF(AND(OR(Calculations!$E$2=\"Orkney Health Board\",Calculations!$E$2=\"Orkney Islands Local Authority\"),$F233=1),0,IF(AND(OR(Calculations!$E$2=\"Shetland Health Board\",Calculations!$E$2=\"Western Isles Health Board\",Calculations!$E$2=\"Shetland Islands Local Authority\",Calculations!$E$2=\"Eilean Siar Local Authority\"),OR($F233=1,$F233=5)),0,new_yllv2(VALUE(LEFT(Options!$B$24,2)),$C233,$D233,$E233,$F233,2016,$I233+$J233,1,$H233,$G233*$H233,Options!$B$8)))","v":{"$error":"#VALUE!"}},{"$f":"IF(AND(OR(Calculations!$E$2=\"Orkney Health Board\",Calculations!$E$2=\"Orkney Islands Local Authority\"),$F233=1),0,IF(AND(OR(Calculations!$E$2=\"Shetland Health Board\",Calculations!$E$2=\"Western Isles Health Board\",Calculations!$E$2=\"Shetland Islands Local Authority\",Calculations!$E$2=\"Eilean Siar Local Authority\"),OR($F233=1,$F233=5)),0,hosp_count(VALUE(LEFT(Options!$B$24,2)),$C233,$E233,$F233,2016,$I233,1,$H233,$G233*$H233, Options!$B$8)))","v":{"$error":"#VALUE!"}},{"$f":"IF(AND(OR(Calculations!$E$2=\"Orkney Health Board\",Calculations!$E$2=\"Orkney Islands Local Authority\"),$F233=1),0,IF(AND(OR(Calculations!$E$2=\"Shetland Health Board\",Calculations!$E$2=\"Western Isles Health Board\",Calculations!$E$2=\"Shetland Islands Local Authority\",Calculations!$E$2=\"Eilean Siar Local Authority\"),OR($F233=1,$F233=5)),0,hosp_count(VALUE(LEFT(Options!$B$24,2)),$C233,$E233,$F233,2016,$I233+$J233,1,$H233,$G233*$H233, Options!$B$8)))","v":{"$error":"#VALUE!"}},{"$f":"IF(AND(OR(Calculations!$E$2=\"Orkney Health Board\",Calculations!$E$2=\"Orkney Islands Local Authority\"),$F233=1),0,IF(AND(OR(Calculations!$E$2=\"Shetland Health Board\",Calculations!$E$2=\"Western Isles Health Board\",Calculations!$E$2=\"Shetland Islands Local Authority\",Calculations!$E$2=\"Eilean Siar Local Authority\"),OR($F233=1,$F233=5)),0,prem_mort(VALUE(LEFT(Options!$B$24,2)),$C233,$E233,$F233,2016,$I233,1,$H233,$G233*$H233,Options!$B$8)))","v":{"$error":"#VALUE!"}},{"$f":"IF(AND(OR(Calculations!$E$2=\"Orkney Health Board\",Calculations!$E$2=\"Orkney Islands Local Authority\"),$F233=1),0,IF(AND(OR(Calculations!$E$2=\"Shetland Health Board\",Calculations!$E$2=\"Western Isles Health Board\",Calculations!$E$2=\"Shetland Islands Local Authority\",Calculations!$E$2=\"Eilean Siar Local Authority\"),OR($F233=1,$F233=5)),0,prem_mort(VALUE(LEFT(Options!$B$24,2)),$C233,$E233,$F233,2016,$I233+$J233,1,$H233,$G233*$H233,Options!$B$8)))","v":{"$error":"#VALUE!"}},{"$error":"#VALUE!"},{"$error":"#VALUE!"},{"$error":"#VALUE!"},{"$error":"#VALUE!"},{"$error":"#VALUE!"},{"$error":"#VALUE!"},{"$error":"#VALUE!"},{"$error":"#VALUE!"},{"$error":"#VALUE!"},{"$error":"#VALUE!"},{"$error":"#VALUE!"},{"$error":"#VALUE!"},{"$error":"#VALUE!"},{"$error":"#VALUE!"},{"$error":"#VALUE!"},{"$error":"#VALUE!"},6600]
[null,"Male 16-19",17.556318000000001,77.07632000000001,"male",5,{"$f":"HLOOKUP(Calculations!$E$2,'Prevalence Rates'!$C$3:$BC$249,'Prevalence Rates'!$BD234,FALSE)","v":0.13986013986013987},{"$f":"HLOOKUP(Calculations!$E$2,'Population 2016'!$C$3:$BC$249,'Population 2016'!BD234,FALSE)","v":26907},0,{"$f":"HLOOKUP(Results!E$4,Targeting!$C$3:$F$249,Targeting!$G234,FALSE)","v":1827},{"$f":"IF(AND(OR(Calculations!$E$2=\"Orkney Health Board\",Calculations!$E$2=\"Orkney Islands Local Authority\"),$F234=1),0,IF(AND(OR(Calculations!$E$2=\"Shetland Health Board\",Calculations!$E$2=\"Western Isles Health Board\",Calculations!$E$2=\"Shetland Islands Local Authority\",Calculations!$E$2=\"Eilean Siar Local Authority\"),OR($F234=1,$F234=5)),0,new_ci(VALUE(LEFT(Options!$B$24,2)),$C234,$E234,$F234,2016,$I234,1,$H234,$G234*$H234,Options!$B$8)))","v":6.7201411138999996},{"$f":"IF(AND(OR(Calculations!$E$2=\"Orkney Health Board\",Calculations!$E$2=\"Orkney Islands Local Authority\"),$F234=1),0,IF(AND(OR(Calculations!$E$2=\"Shetland Health Board\",Calculations!$E$2=\"Western Isles Health Board\",Calculations!$E$2=\"Shetland Islands Local Authority\",Calculations!$E$2=\"Eilean Siar Local Authority\"),OR($F234=1,$F234=5)),0,new_ci(VALUE(LEFT(Options!$B$24,2)),$C234,$E234,$F234,2016,$I234+$J234,1,$H234,$G234*$H234,Options!$B$8)))","v":6.4751890121000004},{"$f":"IF(AND(OR(Calculations!$E$2=\"Orkney Health Board\",Calculations!$E$2=\"Orkney Islands Local Authority\"),$F234=1),0,IF(AND(OR(Calculations!$E$2=\"Shetland Health Board\",Calculations!$E$2=\"Western Isles Health Board\",Calculations!$E$2=\"Shetland Islands Local Authority\",Calculations!$E$2=\"Eilean Siar Local Authority\"),OR($F234=1,$F234=5)),0,new_yllv2(VALUE(LEFT(Options!$B$24,2)),$C234,$D234,$E234,$F234,2016,$I234,1,$H234,$G234*$H234,Options!$B$8)))","v":393.26267142569998},{"$f":"IF(AND(OR(Calculations!$E$2=\"Orkney Health Board\",Calculations!$E$2=\"Orkney Islands Local Authority\"),$F234=1),0,IF(AND(OR(Calculations!$E$2=\"Shetland Health Board\",Calculations!$E$2=\"Western Isles Health Board\",Calculations!$E$2=\"Shetland Islands Local Authority\",Calculations!$E$2=\"Eilean Siar Local Authority\"),OR($F234=1,$F234=5)),0,new_yllv2(VALUE(LEFT(Options!$B$24,2)),$C234,$D234,$E234,$F234,2016,$I234+$J234,1,$H234,$G234*$H234,Options!$B$8)))","v":378.92807393850001},{"$f":"IF(AND(OR(Calculations!$E$2=\"Orkney Health Board\",Calculations!$E$2=\"Orkney Islands Local Authority\"),$F234=1),0,IF(AND(OR(Calculations!$E$2=\"Shetland Health Board\",Calculations!$E$2=\"Western Isles Health Board\",Calculations!$E$2=\"Shetland Islands Local Authority\",Calculations!$E$2=\"Eilean Siar Local Authority\"),OR($F234=1,$F234=5)),0,hosp_count(VALUE(LEFT(Options!$B$24,2)),$C234,$E234,$F234,2016,$I234,1,$H234,$G234*$H234, Options!$B$8)))","v":1431.6729001742999},{"$f":"IF(AND(OR(Calculations!$E$2=\"Orkney Health Board\",Calculations!$E$2=\"Orkney Islands Local Authority\"),$F234=1),0,IF(AND(OR(Calculations!$E$2=\"Shetland Health Board\",Calculations!$E$2=\"Western Isles Health Board\",Calculations!$E$2=\"Shetland Islands Local Authority\",Calculations!$E$2=\"Eilean Siar Local Authority\"),OR($F234=1,$F234=5)),0,hosp_count(VALUE(LEFT(Options!$B$24,2)),$C234,$E234,$F234,2016,$I234+$J234,1,$H234,$G234*$H234, Options!$B$8)))","v":1428.5687566257},{"$f":"IF(AND(OR(Calculations!$E$2=\"Orkney Health Board\",Calculations!$E$2=\"Orkney Islands Local Authority\"),$F234=1),0,IF(AND(OR(Calculations!$E$2=\"Shetland Health Board\",Calculations!$E$2=\"Western Isles Health Board\",Calculations!$E$2=\"Shetland Islands Local Authority\",Calculations!$E$2=\"Eilean Siar Local Authority\"),OR($F234=1,$F234=5)),0,prem_mort(VALUE(LEFT(Options!$B$24,2)),$C234,$E234,$F234,2016,$I234,1,$H234,$G234*$H234,Options!$B$8)))","v":6.7201411138999996},{"$f":"IF(AND(OR(Calculations!$E$2=\"Orkney Health Board\",Calculations!$E$2=\"Orkney Islands Local Authority\"),$F234=1),0,IF(AND(OR(Calculations!$E$2=\"Shetland Health Board\",Calculations!$E$2=\"Western Isles Health Board\",Calculations!$E$2=\"Shetland Islands Local Authority\",Calculations!$E$2=\"Eilean Siar Local Authority\"),OR($F234=1,$F234=5)),0,prem_mort(VALUE(LEFT(Options!$B$24,2)),$C234,$E234,$F234,2016,$I234+$J234,1,$H234,$G234*$H234,Options!$B$8)))","v":6.4751890121000004},24.975438041773515,24.065072330991935,1461.562684155424,1408.2880809399041,5320.819489999999,5309.2829249849483,24.975438041773515,24.065072330991935,109891.92738380347,105886.31825636451,6430875.8102838658,6196467.5561355781,23411605.755999994,23360844.869933773,109891.92738380347,105886.31825636451,4400]
[null,"Male 20-24",22.054632000000002,77.704629999999995,"male",5,{"$f":"HLOOKUP(Calculations!$E$2,'Prevalence Rates'!$C$3:$BC$249,'Prevalence Rates'!$BD235,FALSE)","v":0.13986013986013987},{"$f":"HLOOKUP(Calculations!$E$2,'Population 2016'!$C$3:$BC$249,'Population 2016'!BD235,FALSE)","v":38069},0,{"$f":"HLOOKUP(Results!E$4,Targeting!$C$3:$F$249,Targeting!$G235,FALSE)","v":2584},{"$f":"IF(AND(OR(Calculations!$E$2=\"Orkney Health Board\",Calculations!$E$2=\"Orkney Islands Local Authority\"),$F235=1),0,IF(AND(OR(Calculations!$E$2=\"Shetland Health Board\",Calculations!$E$2=\"Western Isles Health Board\",Calculations!$E$2=\"Shetland Islands Local Authority\",Calculations!$E$2=\"Eilean Siar Local Authority\"),OR($F235=1,$F235=5)),0,new_ci(VALUE(LEFT(Options!$B$24,2)),$C235,$E235,$F235,2016,$I235,1,$H235,$G235*$H235,Options!$B$8)))","v":13.3522134019},{"$f":"IF(AND(OR(Calculations!$E$2=\"Orkney Health Board\",Calculations!$E$2=\"Orkney Islands Local Authority\"),$F235=1),0,IF(AND(OR(Calculations!$E$2=\"Shetland Health Board\",Calculations!$E$2=\"Western Isles Health Board\",Calculations!$E$2=\"Shetland Islands Local Authority\",Calculations!$E$2=\"Eilean Siar Local Authority\"),OR($F235=1,$F235=5)),0,new_ci(VALUE(LEFT(Options!$B$24,2)),$C235,$E235,$F235,2016,$I235+$J235,1,$H235,$G235*$H235,Options!$B$8)))","v":12.8657296651},{"$f":"IF(AND(OR(Calculations!$E$2=\"Orkney Health Board\",Calculations!$E$2=\"Orkney Islands Local Authority\"),$F235=1),0,IF(AND(OR(Calculations!$E$2=\"Shetland Health Board\",Calculations!$E$2=\"Western Isles Health Board\",Calculations!$E$2=\"Shetland Islands Local Authority\",Calculations!$E$2=\"Eilean Siar Local Authority\"),OR($F235=1,$F235=5)),0,new_yllv2(VALUE(LEFT(Options!$B$24,2)),$C235,$D235,$E235,$F235,2016,$I235,1,$H235,$G235*$H235,Options!$B$8)))","v":729.69843570939997},{"$f":"IF(AND(OR(Calculations!$E$2=\"Orkney Health Board\",Calculations!$E$2=\"Orkney Islands Local Authority\"),$F235=1),0,IF(AND(OR(Calculations!$E$2=\"Shetland Health Board\",Calculations!$E$2=\"Western Isles Health Board\",Calculations!$E$2=\"Shetland Islands Local Authority\",Calculations!$E$2=\"Eilean Siar Local Authority\"),OR($F235=1,$F235=5)),0,new_yllv2(VALUE(LEFT(Options!$B$24,2)),$C235,$D235,$E235,$F235,2016,$I235+$J235,1,$H235,$G235*$H235,Options!$B$8)))","v":703.11210046630003},{"$f":"IF(AND(OR(Calculations!$E$2=\"Orkney Health Board\",Calculations!$E$2=\"Orkney Islands Local Authority\"),$F235=1),0,IF(AND(OR(Calculations!$E$2=\"Shetland Health Board\",Calculations!$E$2=\"Western Isles Health Board\",Calculations!$E$2=\"Shetland Islands Local Authority\",Calculations!$E$2=\"Eilean Siar Local Authority\"),OR($F235=1,$F235=5)),0,hosp_count(VALUE(LEFT(Options!$B$24,2)),$C235,$E235,$F235,2016,$I235,1,$H235,$G235*$H235, Options!$B$8)))","v":2376.2555364586001},{"$f":"IF(AND(OR(Calculations!$E$2=\"Orkney Health Board\",Calculations!$E$2=\"Orkney Islands Local Authority\"),$F235=1),0,IF(AND(OR(Calculations!$E$2=\"Shetland Health Board\",Calculations!$E$2=\"Western Isles Health Board\",Calculations!$E$2=\"Shetland Islands Local Authority\",Calculations!$E$2=\"Eilean Siar Local Authority\"),OR($F235=1,$F235=5)),0,hosp_count(VALUE(LEFT(Options!$B$24,2)),$C235,$E235,$F235,2016,$I235+$J235,1,$H235,$G235*$H235, Options!$B$8)))","v":2371.1051607782001},{"$f":"IF(AND(OR(Calculations!$E$2=\"Orkney Health Board\",Calculations!$E$2=\"Orkney Islands Local Authority\"),$F235=1),0,IF(AND(OR(Calculations!$E$2=\"Shetland Health Board\",Calculations!$E$2=\"Western Isles Health Board\",Calculations!$E$2=\"Shetland Islands Local Authority\",Calculations!$E$2=\"Eilean Siar Local Authority\"),OR($F235=1,$F235=5)),0,prem_mort(VALUE(LEFT(Options!$B$24,2)),$C235,$E235,$F235,2016,$I235,1,$H235,$G235*$H235,Options!$B$8)))","v":13.3522134019},{"$f":"IF(AND(OR(Calculations!$E$2=\"Orkney Health Board\",Calculations!$E$2=\"Orkney Islands Local Authority\"),$F235=1),0,IF(AND(OR(Calculations!$E$2=\"Shetland Health Board\",Calculations!$E$2=\"Western Isles Health Board\",Calculations!$E$2=\"Shetland Islands Local Authority\",Calculations!$E$2=\"Eilean Siar Local Authority\"),OR($F235=1,$F235=5)),0,prem_mort(VALUE(LEFT(Options!$B$24,2)),$C235,$E235,$F235,2016,$I235+$J235,1,$H235,$G235*$H235,Options!$B$8)))","v":12.8657296651},35.073717202710874,33.795817240011559,1916.7785749806931,1846.9413445751138,6241.9699400000009,6228.4408857028029,35.073717202710874,33.795817240011559,210442.30321626525,202774.90344006935,11500671.449884158,11081648.067450684,37451819.640000008,37370645.314216815,210442.30321626525,202774.90344006935,6000]
[null,"Male 25-29",26.959762999999999,77.789760000000001,"male",5,{"$f":"HLOOKUP(Calculations!$E$2,'Prevalence Rates'!$C$3:$BC$249,'Prevalence Rates'!$BD236,FALSE)","v":6.0562364816149961E-2},{"$f":"HLOOKUP(Calculations!$E$2,'Population 2016'!$C$3:$BC$249,'Population 2016'!BD236,FALSE)","v":34280},0,{"$f":"HLOOKUP(Results!E$4,Targeting!$C$3:$F$249,Targeting!$G236,FALSE)","v":2327},{"$f":"IF(AND(OR(Calculations!$E$2=\"Orkney Health Board\",Calculations!$E$2=\"Orkney Islands Local Authority\"),$F236=1),0,IF(AND(OR(Calculations!$E$2=\"Shetland Health Board\",Calculations!$E$2=\"Western Isles Health Board\",Calculations!$E$2=\"Shetland Islands Local Authority\",Calculations!$E$2=\"Eilean Siar Local Authority\"),OR($F236=1,$F236=5)),0,new_ci(VALUE(LEFT(Options!$B$24,2)),$C236,$E236,$F236,2016,$I236,1,$H236,$G236*$H236,Options!$B$8)))","v":17.410852347599999},{"$f":"IF(AND(OR(Calculations!$E$2=\"Orkney Health Board\",Calculations!$E$2=\"Orkney Islands Local Authority\"),$F236=1),0,IF(AND(OR(Calculations!$E$2=\"Shetland Health Board\",Calculations!$E$2=\"Western Isles Health Board\",Calculations!$E$2=\"Shetland Islands Local Authority\",Calculations!$E$2=\"Eilean Siar Local Authority\"),OR($F236=1,$F236=5)),0,new_ci(VALUE(LEFT(Options!$B$24,2)),$C236,$E236,$F236,2016,$I236+$J236,1,$H236,$G236*$H236,Options!$B$8)))","v":16.739089798999998},{"$f":"IF(AND(OR(Calculations!$E$2=\"Orkney Health Board\",Calculations!$E$2=\"Orkney Islands Local Authority\"),$F236=1),0,IF(AND(OR(Calculations!$E$2=\"Shetland Health Board\",Calculations!$E$2=\"Western Isles Health Board\",Calculations!$E$2=\"Shetland Islands Local Authority\",Calculations!$E$2=\"Eilean Siar Local Authority\"),OR($F236=1,$F236=5)),0,new_yllv2(VALUE(LEFT(Options!$B$24,2)),$C236,$D236,$E236,$F236,2016,$I236,1,$H236,$G236*$H236,Options!$B$8)))","v":867.58272024840005},{"$f":"IF(AND(OR(Calculations!$E$2=\"Orkney Health Board\",Calculations!$E$2=\"Orkney Islands Local Authority\"),$F236=1),0,IF(AND(OR(Calculations!$E$2=\"Shetland Health Board\",Calculations!$E$2=\"Western Isles Health Board\",Calculations!$E$2=\"Shetland Islands Local Authority\",Calculations!$E$2=\"Eilean Siar Local Authority\"),OR($F236=1,$F236=5)),0,new_yllv2(VALUE(LEFT(Options!$B$24,2)),$C236,$D236,$E236,$F236,2016,$I236+$J236,1,$H236,$G236*$H236,Options!$B$8)))","v":834.10879446690001},{"$f":"IF(AND(OR(Calculations!$E$2=\"Orkney Health Board\",Calculations!$E$2=\"Orkney Islands Local Authority\"),$F236=1),0,IF(AND(OR(Calculations!$E$2=\"Shetland Health Board\",Calculations!$E$2=\"Western Isles Health Board\",Calculations!$E$2=\"Shetland Islands Local Authority\",Calculations!$E$2=\"Eilean Siar Local Authority\"),OR($F236=1,$F236=5)),0,hosp_count(VALUE(LEFT(Options!$B$24,2)),$C236,$E236,$F236,2016,$I236,1,$H236,$G236*$H236, Options!$B$8)))","v":2546.6945852919998},{"$f":"IF(AND(OR(Calculations!$E$2=\"Orkney Health Board\",Calculations!$E$2=\"Orkney Islands Local Authority\"),$F236=1),0,IF(AND(OR(Calculations!$E$2=\"Shetland Health Board\",Calculations!$E$2=\"Western Isles Health Board\",Calculations!$E$2=\"Shetland Islands Local Authority\",Calculations!$E$2=\"Eilean Siar Local Authority\"),OR($F236=1,$F236=5)),0,hosp_count(VALUE(LEFT(Options!$B$24,2)),$C236,$E236,$F236,2016,$I236+$J236,1,$H236,$G236*$H236, Options!$B$8)))","v":2541.1656111461998},{"$f":"IF(AND(OR(Calculations!$E$2=\"Orkney Health Board\",Calculations!$E$2=\"Orkney Islands Local Authority\"),$F236=1),0,IF(AND(OR(Calculations!$E$2=\"Shetland Health Board\",Calculations!$E$2=\"Western Isles Health Board\",Calculations!$E$2=\"Shetland Islands Local Authority\",Calculations!$E$2=\"Eilean Siar Local Authority\"),OR($F236=1,$F236=5)),0,prem_mort(VALUE(LEFT(Options!$B$24,2)),$C236,$E236,$F236,2016,$I236,1,$H236,$G236*$H236,Options!$B$8)))","v":17.410852347599999},{"$f":"IF(AND(OR(Calculations!$E$2=\"Orkney Health Board\",Calculations!$E$2=\"Orkney Islands Local Authority\"),$F236=1),0,IF(AND(OR(Calculations!$E$2=\"Shetland Health Board\",Calculations!$E$2=\"Western Isles Health Board\",Calculations!$E$2=\"Shetland Islands Local Authority\",Calculations!$E$2=\"Eilean Siar Local Authority\"),OR($F236=1,$F236=5)),0,prem_mort(VALUE(LEFT(Options!$B$24,2)),$C236,$E236,$F236,2016,$I236+$J236,1,$H236,$G236*$H236,Options!$B$8)))","v":16.739089798999998},50.790117700116681,48.830483661026832,2530.871412626605,2433.2228543375149,7429.0973899999999,7412.9685272642928,50.790117700116681,48.830483661026832,304740.70620070008,292982.90196616098,15185228.475759629,14599337.12602509,44574584.339999996,44477811.16358576,304740.70620070008,292982.90196616098,6000]
[null,"Male 30-34",31.981521999999998,78.061520000000002,"male",5,{"$f":"HLOOKUP(Calculations!$E$2,'Prevalence Rates'!$C$3:$BC$249,'Prevalence Rates'!$BD237,FALSE)","v":6.0562364816149961E-2},{"$f":"HLOOKUP(Calculations!$E$2,'Population 2016'!$C$3:$BC$249,'Population 2016'!BD237,FALSE)","v":30164},0,{"$f":"HLOOKUP(Results!E$4,Targeting!$C$3:$F$249,Targeting!$G237,FALSE)","v":2048},{"$f":"IF(AND(OR(Calculations!$E$2=\"Orkney Health Board\",Calculations!$E$2=\"Orkney Islands Local Authority\"),$F237=1),0,IF(AND(OR(Calculations!$E$2=\"Shetland Health Board\",Calculations!$E$2=\"Western Isles Health Board\",Calculations!$E$2=\"Shetland Islands Local Authority\",Calculations!$E$2=\"Eilean Siar Local Authority\"),OR($F237=1,$F237=5)),0,new_ci(VALUE(LEFT(Options!$B$24,2)),$C237,$E237,$F237,2016,$I237,1,$H237,$G237*$H237,Options!$B$8)))","v":22.380530174299999},{"$f":"IF(AND(OR(Calculations!$E$2=\"Orkney Health Board\",Calculations!$E$2=\"Orkney Islands Local Authority\"),$F237=1),0,IF(AND(OR(Calculations!$E$2=\"Shetland Health Board\",Calculations!$E$2=\"Western Isles Health Board\",Calculations!$E$2=\"Shetland Islands Local Authority\",Calculations!$E$2=\"Eilean Siar Local Authority\"),OR($F237=1,$F237=5)),0,new_ci(VALUE(LEFT(Options!$B$24,2)),$C237,$E237,$F237,2016,$I237+$J237,1,$H237,$G237*$H237,Options!$B$8)))","v":21.517035006299999},{"$f":"IF(AND(OR(Calculations!$E$2=\"Orkney Health Board\",Calculations!$E$2=\"Orkney Islands Local Authority\"),$F237=1),0,IF(AND(OR(Calculations!$E$2=\"Shetland Health Board\",Calculations!$E$2=\"Western Isles Health Board\",Calculations!$E$2=\"Shetland Islands Local Authority\",Calculations!$E$2=\"Eilean Siar Local Authority\"),OR($F237=1,$F237=5)),0,new_yllv2(VALUE(LEFT(Options!$B$24,2)),$C237,$D237,$E237,$F237,2016,$I237,1,$H237,$G237*$H237,Options!$B$8)))","v":1008.9142554964},{"$f":"IF(AND(OR(Calculations!$E$2=\"Orkney Health Board\",Calculations!$E$2=\"Orkney Islands Local Authority\"),$F237=1),0,IF(AND(OR(Calculations!$E$2=\"Shetland Health Board\",Calculations!$E$2=\"Western Isles Health Board\",Calculations!$E$2=\"Shetland Islands Local Authority\",Calculations!$E$2=\"Eilean Siar Local Authority\"),OR($F237=1,$F237=5)),0,new_yllv2(VALUE(LEFT(Options!$B$24,2)),$C237,$D237,$E237,$F237,2016,$I237+$J237,1,$H237,$G237*$H237,Options!$B$8)))","v":969.98789504989998},{"$f":"IF(AND(OR(Calculations!$E$2=\"Orkney Health Board\",Calculations!$E$2=\"Orkney Islands Local Authority\"),$F237=1),0,IF(AND(OR(Calculations!$E$2=\"Shetland Health Board\",Calculations!$E$2=\"Western Isles Health Board\",Calculations!$E$2=\"Shetland Islands Local Authority\",Calculations!$E$2=\"Eilean Siar Local Authority\"),OR($F237=1,$F237=5)),0,hosp_count(VALUE(LEFT(Options!$B$24,2)),$C237,$E237,$F237,2016,$I237,1,$H237,$G237*$H237, Options!$B$8)))","v":2678.1643595263999},{"$f":"IF(AND(OR(Calculations!$E$2=\"Orkney Health Board\",Calculations!$E$2=\"Orkney Islands Local Authority\"),$F237=1),0,IF(AND(OR(Calculations!$E$2=\"Shetland Health Board\",Calculations!$E$2=\"Western Isles Health Board\",Calculations!$E$2=\"Shetland Islands Local Authority\",Calculations!$E$2=\"Eilean Siar Local Authority\"),OR($F237=1,$F237=5)),0,hosp_count(VALUE(LEFT(Options!$B$24,2)),$C237,$E237,$F237,2016,$I237+$J237,1,$H237,$G237*$H237, Options!$B$8)))","v":2672.3488152996001},{"$f":"IF(AND(OR(Calculations!$E$2=\"Orkney Health Board\",Calculations!$E$2=\"Orkney Islands Local Authority\"),$F237=1),0,IF(AND(OR(Calculations!$E$2=\"Shetland Health Board\",Calculations!$E$2=\"Western Isles Health Board\",Calculations!$E$2=\"Shetland Islands Local Authority\",Calculations!$E$2=\"Eilean Siar Local Authority\"),OR($F237=1,$F237=5)),0,prem_mort(VALUE(LEFT(Options!$B$24,2)),$C237,$E237,$F237,2016,$I237,1,$H237,$G237*$H237,Options!$B$8)))","v":22.380530174299999},{"$f":"IF(AND(OR(Calculations!$E$2=\"Orkney Health Board\",Calculations!$E$2=\"Orkney Islands Local Authority\"),$F237=1),0,IF(AND(OR(Calculations!$E$2=\"Shetland Health Board\",Calculations!$E$2=\"Western Isles Health Board\",Calculations!$E$2=\"Shetland Islands Local Authority\",Calculations!$E$2=\"Eilean Siar Local Authority\"),OR($F237=1,$F237=5)),0,prem_mort(VALUE(LEFT(Options!$B$24,2)),$C237,$E237,$F237,2016,$I237+$J237,1,$H237,$G237*$H237,Options!$B$8)))","v":21.517035006299999},74.196161564447692,71.333493589378051,3344.7628149330326,3215.7137483420634,8878.6777600000005,8859.3980085519161,74.196161564447692,71.333493589378051,482275.05016891001,463667.70833095734,21740958.29706471,20902139.364223413,57711405.440000005,57586087.055587456,482275.05016891001,463667.70833095734,6500]
[null,"Male 35-39",36.926009999999998,78.336009999999987,"male",5,{"$f":"HLOOKUP(Calculations!$E$2,'Prevalence Rates'!$C$3:$BC$249,'Prevalence Rates'!$BD238,FALSE)","v":6.0562364816149961E-2},{"$f":"HLOOKUP(Calculations!$E$2,'Population 2016'!$C$3:$BC$249,'Population 2016'!BD238,FALSE)","v":31915},0,{"$f":"HLOOKUP(Results!E$4,Targeting!$C$3:$F$249,Targeting!$G238,FALSE)","v":2167},{"$f":"IF(AND(OR(Calculations!$E$2=\"Orkney Health Board\",Calculations!$E$2=\"Orkney Islands Local Authority\"),$F238=1),0,IF(AND(OR(Calculations!$E$2=\"Shetland Health Board\",Calculations!$E$2=\"Western Isles Health Board\",Calculations!$E$2=\"Shetland Islands Local Authority\",Calculations!$E$2=\"Eilean Siar Local Authority\"),OR($F238=1,$F238=5)),0,new_ci(VALUE(LEFT(Options!$B$24,2)),$C238,$E238,$F238,2016,$I238,1,$H238,$G238*$H238,Options!$B$8)))","v":34.389206270000003},{"$f":"IF(AND(OR(Calculations!$E$2=\"Orkney Health Board\",Calculations!$E$2=\"Orkney Islands Local Authority\"),$F238=1),0,IF(AND(OR(Calculations!$E$2=\"Shetland Health Board\",Calculations!$E$2=\"Western Isles Health Board\",Calculations!$E$2=\"Shetland Islands Local Authority\",Calculations!$E$2=\"Eilean Siar Local Authority\"),OR($F238=1,$F238=5)),0,new_ci(VALUE(LEFT(Options!$B$24,2)),$C238,$E238,$F238,2016,$I238+$J238,1,$H238,$G238*$H238,Options!$B$8)))","v":33.0627179596},{"$f":"IF(AND(OR(Calculations!$E$2=\"Orkney Health Board\",Calculations!$E$2=\"Orkney Islands Local Authority\"),$F238=1),0,IF(AND(OR(Calculations!$E$2=\"Shetland Health Board\",Calculations!$E$2=\"Western Isles Health Board\",Calculations!$E$2=\"Shetland Islands Local Authority\",Calculations!$E$2=\"Eilean Siar Local Authority\"),OR($F238=1,$F238=5)),0,new_yllv2(VALUE(LEFT(Options!$B$24,2)),$C238,$D238,$E238,$F238,2016,$I238,1,$H238,$G238*$H238,Options!$B$8)))","v":1389.6678253707},{"$f":"IF(AND(OR(Calculations!$E$2=\"Orkney Health Board\",Calculations!$E$2=\"Orkney Islands Local Authority\"),$F238=1),0,IF(AND(OR(Calculations!$E$2=\"Shetland Health Board\",Calculations!$E$2=\"Western Isles Health Board\",Calculations!$E$2=\"Shetland Islands Local Authority\",Calculations!$E$2=\"Eilean Siar Local Authority\"),OR($F238=1,$F238=5)),0,new_yllv2(VALUE(LEFT(Options!$B$24,2)),$C238,$D238,$E238,$F238,2016,$I238+$J238,1,$H238,$G238*$H238,Options!$B$8)))","v":1336.0644327473999},{"$f":"IF(AND(OR(Calculations!$E$2=\"Orkney Health Board\",Calculations!$E$2=\"Orkney Islands Local Authority\"),$F238=1),0,IF(AND(OR(Calculations!$E$2=\"Shetland Health Board\",Calculations!$E$2=\"Western Isles Health Board\",Calculations!$E$2=\"Shetland Islands Local Authority\",Calculations!$E$2=\"Eilean Siar Local Authority\"),OR($F238=1,$F238=5)),0,hosp_count(VALUE(LEFT(Options!$B$24,2)),$C238,$E238,$F238,2016,$I238,1,$H238,$G238*$H238, Options!$B$8)))","v":3377.257887276},{"$f":"IF(AND(OR(Calculations!$E$2=\"Orkney Health Board\",Calculations!$E$2=\"Orkney Islands Local Authority\"),$F238=1),0,IF(AND(OR(Calculations!$E$2=\"Shetland Health Board\",Calculations!$E$2=\"Western Isles Health Board\",Calculations!$E$2=\"Shetland Islands Local Authority\",Calculations!$E$2=\"Eilean Siar Local Authority\"),OR($F238=1,$F238=5)),0,hosp_count(VALUE(LEFT(Options!$B$24,2)),$C238,$E238,$F238,2016,$I238+$J238,1,$H238,$G238*$H238, Options!$B$8)))","v":3369.9238955264},{"$f":"IF(AND(OR(Calculations!$E$2=\"Orkney Health Board\",Calculations!$E$2=\"Orkney Islands Local Authority\"),$F238=1),0,IF(AND(OR(Calculations!$E$2=\"Shetland Health Board\",Calculations!$E$2=\"Western Isles Health Board\",Calculations!$E$2=\"Shetland Islands Local Authority\",Calculations!$E$2=\"Eilean Siar Local Authority\"),OR($F238=1,$F238=5)),0,prem_mort(VALUE(LEFT(Options!$B$24,2)),$C238,$E238,$F238,2016,$I238,1,$H238,$G238*$H238,Options!$B$8)))","v":34.389206270000003},{"$f":"IF(AND(OR(Calculations!$E$2=\"Orkney Health Board\",Calculations!$E$2=\"Orkney Islands Local Authority\"),$F238=1),0,IF(AND(OR(Calculations!$E$2=\"Shetland Health Board\",Calculations!$E$2=\"Western Isles Health Board\",Calculations!$E$2=\"Shetland Islands Local Authority\",Calculations!$E$2=\"Eilean Siar Local Authority\"),OR($F238=1,$F238=5)),0,prem_mort(VALUE(LEFT(Options!$B$24,2)),$C238,$E238,$F238,2016,$I238+$J238,1,$H238,$G238*$H238,Options!$B$8)))","v":33.0627179596},107.75248713770955,103.59617095284349,4354.2780052348426,4186.3212682042922,10582.039439999999,10559.059675783801,107.75248713770955,103.59617095284349,754267.40996396681,725173.1966699044,30479946.036643896,29304248.877430044,74074276.079999983,73913417.730486602,754267.40996396681,725173.1966699044,7000]
[null,"Male 40-44",42.067703000000002,78.907700000000006,"male",5,{"$f":"HLOOKUP(Calculations!$E$2,'Prevalence Rates'!$C$3:$BC$249,'Prevalence Rates'!$BD239,FALSE)","v":6.0562364816149961E-2},{"$f":"HLOOKUP(Calculations!$E$2,'Population 2016'!$C$3:$BC$249,'Population 2016'!BD239,FALSE)","v":35113},0,{"$f":"HLOOKUP(Results!E$4,Targeting!$C$3:$F$249,Targeting!$G239,FALSE)","v":2384},{"$f":"IF(AND(OR(Calculations!$E$2=\"Orkney Health Board\",Calculations!$E$2=\"Orkney Islands Local Authority\"),$F239=1),0,IF(AND(OR(Calculations!$E$2=\"Shetland Health Board\",Calculations!$E$2=\"Western Isles Health Board\",Calculations!$E$2=\"Shetland Islands Local Authority\",Calculations!$E$2=\"Eilean Siar Local Authority\"),OR($F239=1,$F239=5)),0,new_ci(VALUE(LEFT(Options!$B$24,2)),$C239,$E239,$F239,2016,$I239,1,$H239,$G239*$H239,Options!$B$8)))","v":55.765774554899998},{"$f":"IF(AND(OR(Calculations!$E$2=\"Orkney Health Board\",Calculations!$E$2=\"Orkney Islands Local Authority\"),$F239=1),0,IF(AND(OR(Calculations!$E$2=\"Shetland Health Board\",Calculations!$E$2=\"Western Isles Health Board\",Calculations!$E$2=\"Shetland Islands Local Authority\",Calculations!$E$2=\"Eilean Siar Local Authority\"),OR($F239=1,$F239=5)),0,new_ci(VALUE(LEFT(Options!$B$24,2)),$C239,$E239,$F239,2016,$I239+$J239,1,$H239,$G239*$H239,Options!$B$8)))","v":53.615848548499997},{"$f":"IF(AND(OR(Calculations!$E$2=\"Orkney Health Board\",Calculations!$E$2=\"Orkney Islands Local Authority\"),$F239=1),0,IF(AND(OR(Calculations!$E$2=\"Shetland Health Board\",Calculations!$E$2=\"Western Isles Health Board\",Calculations!$E$2=\"Shetland Islands Local Authority\",Calculations!$E$2=\"Eilean Siar Local Authority\"),OR($F239=1,$F239=5)),0,new_yllv2(VALUE(LEFT(Options!$B$24,2)),$C239,$D239,$E239,$F239,2016,$I239,1,$H239,$G239*$H239,Options!$B$8)))","v":1998.6451927503001},{"$f":"IF(AND(OR(Calculations!$E$2=\"Orkney Health Board\",Calculations!$E$2=\"Orkney Islands Local Authority\"),$F239=1),0,IF(AND(OR(Calculations!$E$2=\"Shetland Health Board\",Calculations!$E$2=\"Western Isles Health Board\",Calculations!$E$2=\"Shetland Islands Local Authority\",Calculations!$E$2=\"Eilean Siar Local Authority\"),OR($F239=1,$F239=5)),0,new_yllv2(VALUE(LEFT(Options!$B$24,2)),$C239,$D239,$E239,$F239,2016,$I239+$J239,1,$H239,$G239*$H239,Options!$B$8)))","v":1921.5918511307},{"$f":"IF(AND(OR(Calculations!$E$2=\"Orkney Health Board\",Calculations!$E$2=\"Orkney Islands Local Authority\"),$F239=1),0,IF(AND(OR(Calculations!$E$2=\"Shetland Health Board\",Calculations!$E$2=\"Western Isles Health Board\",Calculations!$E$2=\"Shetland Islands Local Authority\",Calculations!$E$2=\"Eilean Siar Local Authority\"),OR($F239=1,$F239=5)),0,hosp_count(VALUE(LEFT(Options!$B$24,2)),$C239,$E239,$F239,2016,$I239,1,$H239,$G239*$H239, Options!$B$8)))","v":4459.6254010723997},{"$f":"IF(AND(OR(Calculations!$E$2=\"Orkney Health Board\",Calculations!$E$2=\"Orkney Islands Local Authority\"),$F239=1),0,IF(AND(OR(Calculations!$E$2=\"Shetland Health Board\",Calculations!$E$2=\"Western Isles Health Board\",Calculations!$E$2=\"Shetland Islands Local Authority\",Calculations!$E$2=\"Eilean Siar Local Authority\"),OR($F239=1,$F239=5)),0,hosp_count(VALUE(LEFT(Options!$B$24,2)),$C239,$E239,$F239,2016,$I239+$J239,1,$H239,$G239*$H239, Options!$B$8)))","v":4449.9415339458001},{"$f":"IF(AND(OR(Calculations!$E$2=\"Orkney Health Board\",Calculations!$E$2=\"Orkney Islands Local Authority\"),$F239=1),0,IF(AND(OR(Calculations!$E$2=\"Shetland Health Board\",Calculations!$E$2=\"Western Isles Health Board\",Calculations!$E$2=\"Shetland Islands Local Authority\",Calculations!$E$2=\"Eilean Siar Local Authority\"),OR($F239=1,$F239=5)),0,prem_mort(VALUE(LEFT(Options!$B$24,2)),$C239,$E239,$F239,2016,$I239,1,$H239,$G239*$H239,Options!$B$8)))","v":55.765774554899998},{"$f":"IF(AND(OR(Calculations!$E$2=\"Orkney Health Board\",Calculations!$E$2=\"Orkney Islands Local Authority\"),$F239=1),0,IF(AND(OR(Calculations!$E$2=\"Shetland Health Board\",Calculations!$E$2=\"Western Isles Health Board\",Calculations!$E$2=\"Shetland Islands Local Authority\",Calculations!$E$2=\"Eilean Siar Local Authority\"),OR($F239=1,$F239=5)),0,prem_mort(VALUE(LEFT(Options!$B$24,2)),$C239,$E239,$F239,2016,$I239+$J239,1,$H239,$G239*$H239,Options!$B$8)))","v":53.615848548499997},158.81802909150457,152.69515150656451,5692.0376861854593,5472.5937719098347,12700.78148,12673.202329467149,158.81802909150457,152.69515150656451,1111726.203640532,1068866.0605459516,39844263.803298213,38308156.403368846,88905470.359999999,88712416.306270048,1111726.203640532,1068866.0605459516,7000]
[null,"Male 45-49",47.038155000000003,79.418149999999997,"male",5,{"$f":"HLOOKUP(Calculations!$E$2,'Prevalence Rates'!$C$3:$BC$249,'Prevalence Rates'!$BD240,FALSE)","v":6.4794816414686832E-2},{"$f":"HLOOKUP(Calculations!$E$2,'Population 2016'!$C$3:$BC$249,'Population 2016'!BD240,FALSE)","v":39359},0,{"$f":"HLOOKUP(Results!E$4,Targeting!$C$3:$F$249,Targeting!$G240,FALSE)","v":2672},{"$f":"IF(AND(OR(Calculations!$E$2=\"Orkney Health Board\",Calculations!$E$2=\"Orkney Islands Local Authority\"),$F240=1),0,IF(AND(OR(Calculations!$E$2=\"Shetland Health Board\",Calculations!$E$2=\"Western Isles Health Board\",Calculations!$E$2=\"Shetland Islands Local Authority\",Calculations!$E$2=\"Eilean Siar Local Authority\"),OR($F240=1,$F240=5)),0,new_ci(VALUE(LEFT(Options!$B$24,2)),$C240,$E240,$F240,2016,$I240,1,$H240,$G240*$H240,Options!$B$8)))","v":90.939644477100003},{"$f":"IF(AND(OR(Calculations!$E$2=\"Orkney Health Board\",Calculations!$E$2=\"Orkney Islands Local Authority\"),$F240=1),0,IF(AND(OR(Calculations!$E$2=\"Shetland Health Board\",Calculations!$E$2=\"Western Isles Health Board\",Calculations!$E$2=\"Shetland Islands Local Authority\",Calculations!$E$2=\"Eilean Siar Local Authority\"),OR($F240=1,$F240=5)),0,new_ci(VALUE(LEFT(Options!$B$24,2)),$C240,$E240,$F240,2016,$I240+$J240,1,$H240,$G240*$H240,Options!$B$8)))","v":87.447286769900003},{"$f":"IF(AND(OR(Calculations!$E$2=\"Orkney Health Board\",Calculations!$E$2=\"Orkney Islands Local Authority\"),$F240=1),0,IF(AND(OR(Calculations!$E$2=\"Shetland Health Board\",Calculations!$E$2=\"Western Isles Health Board\",Calculations!$E$2=\"Shetland Islands Local Authority\",Calculations!$E$2=\"Eilean Siar Local Authority\"),OR($F240=1,$F240=5)),0,new_yllv2(VALUE(LEFT(Options!$B$24,2)),$C240,$D240,$E240,$F240,2016,$I240,1,$H240,$G240*$H240,Options!$B$8)))","v":2853.6855889931999},{"$f":"IF(AND(OR(Calculations!$E$2=\"Orkney Health Board\",Calculations!$E$2=\"Orkney Islands Local Authority\"),$F240=1),0,IF(AND(OR(Calculations!$E$2=\"Shetland Health Board\",Calculations!$E$2=\"Western Isles Health Board\",Calculations!$E$2=\"Shetland Islands Local Authority\",Calculations!$E$2=\"Eilean Siar Local Authority\"),OR($F240=1,$F240=5)),0,new_yllv2(VALUE(LEFT(Options!$B$24,2)),$C240,$D240,$E240,$F240,2016,$I240+$J240,1,$H240,$G240*$H240,Options!$B$8)))","v":2744.095421603},{"$f":"IF(AND(OR(Calculations!$E$2=\"Orkney Health Board\",Calculations!$E$2=\"Orkney Islands Local Authority\"),$F240=1),0,IF(AND(OR(Calculations!$E$2=\"Shetland Health Board\",Calculations!$E$2=\"Western Isles Health Board\",Calculations!$E$2=\"Shetland Islands Local Authority\",Calculations!$E$2=\"Eilean Siar Local Authority\"),OR($F240=1,$F240=5)),0,hosp_count(VALUE(LEFT(Options!$B$24,2)),$C240,$E240,$F240,2016,$I240,1,$H240,$G240*$H240, Options!$B$8)))","v":5963.4258802347003},{"$f":"IF(AND(OR(Calculations!$E$2=\"Orkney Health Board\",Calculations!$E$2=\"Orkney Islands Local Authority\"),$F240=1),0,IF(AND(OR(Calculations!$E$2=\"Shetland Health Board\",Calculations!$E$2=\"Western Isles Health Board\",Calculations!$E$2=\"Shetland Islands Local Authority\",Calculations!$E$2=\"Eilean Siar Local Authority\"),OR($F240=1,$F240=5)),0,hosp_count(VALUE(LEFT(Options!$B$24,2)),$C240,$E240,$F240,2016,$I240+$J240,1,$H240,$G240*$H240, Options!$B$8)))","v":5950.4790445795998},{"$f":"IF(AND(OR(Calculations!$E$2=\"Orkney Health Board\",Calculations!$E$2=\"Orkney Islands Local Authority\"),$F240=1),0,IF(AND(OR(Calculations!$E$2=\"Shetland Health Board\",Calculations!$E$2=\"Western Isles Health Board\",Calculations!$E$2=\"Shetland Islands Local Authority\",Calculations!$E$2=\"Eilean Siar Local Authority\"),OR($F240=1,$F240=5)),0,prem_mort(VALUE(LEFT(Options!$B$24,2)),$C240,$E240,$F240,2016,$I240,1,$H240,$G240*$H240,Options!$B$8)))","v":90.939644477100003},{"$f":"IF(AND(OR(Calculations!$E$2=\"Orkney Health Board\",Calculations!$E$2=\"Orkney Islands Local Authority\"),$F240=1),0,IF(AND(OR(Calculations!$E$2=\"Shetland Health Board\",Calculations!$E$2=\"Western Isles Health Board\",Calculations!$E$2=\"Shetland Islands Local Authority\",Calculations!$E$2=\"Eilean Siar Local Authority\"),OR($F240=1,$F240=5)),0,prem_mort(VALUE(LEFT(Options!$B$24,2)),$C240,$E240,$F240,2016,$I240+$J240,1,$H240,$G240*$H240,Options!$B$8)))","v":87.447286769900003},231.05171492441372,222.1786294618766,7250.4016590695901,6971.9642816204687,15151.365330000001,15118.47111100282,231.05171492441372,222.1786294618766,1617362.004470896,1555250.4062331361,50752811.613487132,48803749.971343279,106059557.31,105829297.77701974,1617362.004470896,1555250.4062331361,7000]
[null,"Male 50-54",51.998646000000001,79.988649999999993,"male",5,{"$f":"HLOOKUP(Calculations!$E$2,'Prevalence Rates'!$C$3:$BC$249,'Prevalence Rates'!$BD241,FALSE)","v":6.4794816414686832E-2},{"$f":"HLOOKUP(Calculations!$E$2,'Population 2016'!$C$3:$BC$249,'Population 2016'!BD241,FALSE)","v":40044},0,{"$f":"HLOOKUP(Results!E$4,Targeting!$C$3:$F$249,Targeting!$G241,FALSE)","v":2718},{"$f":"IF(AND(OR(Calculations!$E$2=\"Orkney Health Board\",Calculations!$E$2=\"Orkney Islands Local Authority\"),$F241=1),0,IF(AND(OR(Calculations!$E$2=\"Shetland Health Board\",Calculations!$E$2=\"Western Isles Health Board\",Calculations!$E$2=\"Shetland Islands Local Authority\",Calculations!$E$2=\"Eilean Siar Local Authority\"),OR($F241=1,$F241=5)),0,new_ci(VALUE(LEFT(Options!$B$24,2)),$C241,$E241,$F241,2016,$I241,1,$H241,$G241*$H241,Options!$B$8)))","v":134.47970144959999},{"$f":"IF(AND(OR(Calculations!$E$2=\"Orkney Health Board\",Calculations!$E$2=\"Orkney Islands Local Authority\"),$F241=1),0,IF(AND(OR(Calculations!$E$2=\"Shetland Health Board\",Calculations!$E$2=\"Western Isles Health Board\",Calculations!$E$2=\"Shetland Islands Local Authority\",Calculations!$E$2=\"Eilean Siar Local Authority\"),OR($F241=1,$F241=5)),0,new_ci(VALUE(LEFT(Options!$B$24,2)),$C241,$E241,$F241,2016,$I241+$J241,1,$H241,$G241*$H241,Options!$B$8)))","v":129.3210806882},{"$f":"IF(AND(OR(Calculations!$E$2=\"Orkney Health Board\",Calculations!$E$2=\"Orkney Islands Local Authority\"),$F241=1),0,IF(AND(OR(Calculations!$E$2=\"Shetland Health Board\",Calculations!$E$2=\"Western Isles Health Board\",Calculations!$E$2=\"Shetland Islands Local Authority\",Calculations!$E$2=\"Eilean Siar Local Authority\"),OR($F241=1,$F241=5)),0,new_yllv2(VALUE(LEFT(Options!$B$24,2)),$C241,$D241,$E241,$F241,2016,$I241,1,$H241,$G241*$H241,Options!$B$8)))","v":3629.6076800434998},{"$f":"IF(AND(OR(Calculations!$E$2=\"Orkney Health Board\",Calculations!$E$2=\"Orkney Islands Local Authority\"),$F241=1),0,IF(AND(OR(Calculations!$E$2=\"Shetland Health Board\",Calculations!$E$2=\"Western Isles Health Board\",Calculations!$E$2=\"Shetland Islands Local Authority\",Calculations!$E$2=\"Eilean Siar Local Authority\"),OR($F241=1,$F241=5)),0,new_yllv2(VALUE(LEFT(Options!$B$24,2)),$C241,$D241,$E241,$F241,2016,$I241+$J241,1,$H241,$G241*$H241,Options!$B$8)))","v":3490.3764850588},{"$f":"IF(AND(OR(Calculations!$E$2=\"Orkney Health Board\",Calculations!$E$2=\"Orkney Islands Local Authority\"),$F241=1),0,IF(AND(OR(Calculations!$E$2=\"Shetland Health Board\",Calculations!$E$2=\"Western Isles Health Board\",Calculations!$E$2=\"Shetland Islands Local Authority\",Calculations!$E$2=\"Eilean Siar Local Authority\"),OR($F241=1,$F241=5)),0,hosp_count(VALUE(LEFT(Options!$B$24,2)),$C241,$E241,$F241,2016,$I241,1,$H241,$G241*$H241, Options!$B$8)))","v":7235.3075532060002},{"$f":"IF(AND(OR(Calculations!$E$2=\"Orkney Health Board\",Calculations!$E$2=\"Orkney Islands Local Authority\"),$F241=1),0,IF(AND(OR(Calculations!$E$2=\"Shetland Health Board\",Calculations!$E$2=\"Western Isles Health Board\",Calculations!$E$2=\"Shetland Islands Local Authority\",Calculations!$E$2=\"Eilean Siar Local Authority\"),OR($F241=1,$F241=5)),0,hosp_count(VALUE(LEFT(Options!$B$24,2)),$C241,$E241,$F241,2016,$I241+$J241,1,$H241,$G241*$H241, Options!$B$8)))","v":7219.6023194596},{"$f":"IF(AND(OR(Calculations!$E$2=\"Orkney Health Board\",Calculations!$E$2=\"Orkney Islands Local Authority\"),$F241=1),0,IF(AND(OR(Calculations!$E$2=\"Shetland Health Board\",Calculations!$E$2=\"Western Isles Health Board\",Calculations!$E$2=\"Shetland Islands Local Authority\",Calculations!$E$2=\"Eilean Siar Local Authority\"),OR($F241=1,$F241=5)),0,prem_mort(VALUE(LEFT(Options!$B$24,2)),$C241,$E241,$F241,2016,$I241,1,$H241,$G241*$H241,Options!$B$8)))","v":134.47970144959999},{"$f":"IF(AND(OR(Calculations!$E$2=\"Orkney Health Board\",Calculations!$E$2=\"Orkney Islands Local Authority\"),$F241=1),0,IF(AND(OR(Calculations!$E$2=\"Shetland Health Board\",Calculations!$E$2=\"Western Isles Health Board\",Calculations!$E$2=\"Shetland Islands Local Authority\",Calculations!$E$2=\"Eilean Siar Local Authority\"),OR($F241=1,$F241=5)),0,prem_mort(VALUE(LEFT(Options!$B$24,2)),$C241,$E241,$F241,2016,$I241+$J241,1,$H241,$G241*$H241,Options!$B$8)))","v":129.3210806882},335.82984079912097,322.94745951503347,9064.0487464876132,8716.3532241004887,18068.393650000002,18029.173707570673,335.82984079912097,322.94745951503347,2350808.8855938469,2260632.2166052344,63448341.225413293,61014472.56870342,126478755.55000001,126204215.95299472,2350808.8855938469,2260632.2166052344,7000]
[null,"Male 55-59",56.950867000000002,80.660870000000003,"male",5,{"$f":"HLOOKUP(Calculations!$E$2,'Prevalence Rates'!$C$3:$BC$249,'Prevalence Rates'!$BD242,FALSE)","v":0.29817158931082982},{"$f":"HLOOKUP(Calculations!$E$2,'Population 2016'!$C$3:$BC$249,'Population 2016'!BD242,FALSE)","v":36422},0,{"$f":"HLOOKUP(Results!E$4,Targeting!$C$3:$F$249,Targeting!$G242,FALSE)","v":2473},{"$f":"IF(AND(OR(Calculations!$E$2=\"Orkney Health Board\",Calculations!$E$2=\"Orkney Islands Local Authority\"),$F242=1),0,IF(AND(OR(Calculations!$E$2=\"Shetland Health Board\",Calculations!$E$2=\"Western Isles Health Board\",Calculations!$E$2=\"Shetland Islands Local Authority\",Calculations!$E$2=\"Eilean Siar Local Authority\"),OR($F242=1,$F242=5)),0,new_ci(VALUE(LEFT(Options!$B$24,2)),$C242,$E242,$F242,2016,$I242,1,$H242,$G242*$H242,Options!$B$8)))","v":177.6079222228},{"$f":"IF(AND(OR(Calculations!$E$2=\"Orkney Health Board\",Calculations!$E$2=\"Orkney Islands Local Authority\"),$F242=1),0,IF(AND(OR(Calculations!$E$2=\"Shetland Health Board\",Calculations!$E$2=\"Western Isles Health Board\",Calculations!$E$2=\"Shetland Islands Local Authority\",Calculations!$E$2=\"Eilean Siar Local Authority\"),OR($F242=1,$F242=5)),0,new_ci(VALUE(LEFT(Options!$B$24,2)),$C242,$E242,$F242,2016,$I242+$J242,1,$H242,$G242*$H242,Options!$B$8)))","v":171.8004059331},{"$f":"IF(AND(OR(Calculations!$E$2=\"Orkney Health Board\",Calculations!$E$2=\"Orkney Islands Local Authority\"),$F242=1),0,IF(AND(OR(Calculations!$E$2=\"Shetland Health Board\",Calculations!$E$2=\"Western Isles Health Board\",Calculations!$E$2=\"Shetland Islands Local Authority\",Calculations!$E$2=\"Eilean Siar Local Authority\"),OR($F242=1,$F242=5)),0,new_yllv2(VALUE(LEFT(Options!$B$24,2)),$C242,$D242,$E242,$F242,2016,$I242,1,$H242,$G242*$H242,Options!$B$8)))","v":4033.4764465036001},{"$f":"IF(AND(OR(Calculations!$E$2=\"Orkney Health Board\",Calculations!$E$2=\"Orkney Islands Local Authority\"),$F242=1),0,IF(AND(OR(Calculations!$E$2=\"Shetland Health Board\",Calculations!$E$2=\"Western Isles Health Board\",Calculations!$E$2=\"Shetland Islands Local Authority\",Calculations!$E$2=\"Eilean Siar Local Authority\"),OR($F242=1,$F242=5)),0,new_yllv2(VALUE(LEFT(Options!$B$24,2)),$C242,$D242,$E242,$F242,2016,$I242+$J242,1,$H242,$G242*$H242,Options!$B$8)))","v":3901.5877341419},{"$f":"IF(AND(OR(Calculations!$E$2=\"Orkney Health Board\",Calculations!$E$2=\"Orkney Islands Local Authority\"),$F242=1),0,IF(AND(OR(Calculations!$E$2=\"Shetland Health Board\",Calculations!$E$2=\"Western Isles Health Board\",Calculations!$E$2=\"Shetland Islands Local Authority\",Calculations!$E$2=\"Eilean Siar Local Authority\"),OR($F242=1,$F242=5)),0,hosp_count(VALUE(LEFT(Options!$B$24,2)),$C242,$E242,$F242,2016,$I242,1,$H242,$G242*$H242, Options!$B$8)))","v":7845.5541145777997},{"$f":"IF(AND(OR(Calculations!$E$2=\"Orkney Health Board\",Calculations!$E$2=\"Orkney Islands Local Authority\"),$F242=1),0,IF(AND(OR(Calculations!$E$2=\"Shetland Health Board\",Calculations!$E$2=\"Western Isles Health Board\",Calculations!$E$2=\"Shetland Islands Local Authority\",Calculations!$E$2=\"Eilean Siar Local Authority\"),OR($F242=1,$F242=5)),0,hosp_count(VALUE(LEFT(Options!$B$24,2)),$C242,$E242,$F242,2016,$I242+$J242,1,$H242,$G242*$H242, Options!$B$8)))","v":7828.5974824651003},{"$f":"IF(AND(OR(Calculations!$E$2=\"Orkney Health Board\",Calculations!$E$2=\"Orkney Islands Local Authority\"),$F242=1),0,IF(AND(OR(Calculations!$E$2=\"Shetland Health Board\",Calculations!$E$2=\"Western Isles Health Board\",Calculations!$E$2=\"Shetland Islands Local Authority\",Calculations!$E$2=\"Eilean Siar Local Authority\"),OR($F242=1,$F242=5)),0,prem_mort(VALUE(LEFT(Options!$B$24,2)),$C242,$E242,$F242,2016,$I242,1,$H242,$G242*$H242,Options!$B$8)))","v":177.6079222228},{"$f":"IF(AND(OR(Calculations!$E$2=\"Orkney Health Board\",Calculations!$E$2=\"Orkney Islands Local Authority\"),$F242=1),0,IF(AND(OR(Calculations!$E$2=\"Shetland Health Board\",Calculations!$E$2=\"Western Isles Health Board\",Calculations!$E$2=\"Shetland Islands Local Authority\",Calculations!$E$2=\"Eilean Siar Local Authority\"),OR($F242=1,$F242=5)),0,prem_mort(VALUE(LEFT(Options!$B$24,2)),$C242,$E242,$F242,2016,$I242+$J242,1,$H242,$G242*$H242,Options!$B$8)))","v":171.8004059331},487.63912531656689,471.6940473699961,11074.285998856734,10712.173230854703,21540.700990000001,21494.144974095601,487.63912531656689,471.6940473699961,3169654.3145576846,3066011.3079049746,71982858.992568776,69629126.000555575,140014556.435,139711942.33162141,3169654.3145576846,3066011.3079049746,6500]
[null,"Male 60-64",61.942988999999997,81.612989999999996,"male",5,{"$f":"HLOOKUP(Calculations!$E$2,'Prevalence Rates'!$C$3:$BC$249,'Prevalence Rates'!$BD243,FALSE)","v":0.29817158931082982},{"$f":"HLOOKUP(Calculations!$E$2,'Population 2016'!$C$3:$BC$249,'Population 2016'!BD243,FALSE)","v":32001},0,{"$f":"HLOOKUP(Results!E$4,Targeting!$C$3:$F$249,Targeting!$G243,FALSE)","v":2172},{"$f":"IF(AND(OR(Calculations!$E$2=\"Orkney Health Board\",Calculations!$E$2=\"Orkney Islands Local Authority\"),$F243=1),0,IF(AND(OR(Calculations!$E$2=\"Shetland Health Board\",Calculations!$E$2=\"Western Isles Health Board\",Calculations!$E$2=\"Shetland Islands Local Authority\",Calculations!$E$2=\"Eilean Siar Local Authority\"),OR($F243=1,$F243=5)),0,new_ci(VALUE(LEFT(Options!$B$24,2)),$C243,$E243,$F243,2016,$I243,1,$H243,$G243*$H243,Options!$B$8)))","v":227.20559713220001},{"$f":"IF(AND(OR(Calculations!$E$2=\"Orkney Health Board\",Calculations!$E$2=\"Orkney Islands Local Authority\"),$F243=1),0,IF(AND(OR(Calculations!$E$2=\"Shetland Health Board\",Calculations!$E$2=\"Western Isles Health Board\",Calculations!$E$2=\"Shetland Islands Local Authority\",Calculations!$E$2=\"Eilean Siar Local Authority\"),OR($F243=1,$F243=5)),0,new_ci(VALUE(LEFT(Options!$B$24,2)),$C243,$E243,$F243,2016,$I243+$J243,1,$H243,$G243*$H243,Options!$B$8)))","v":219.7900998218},{"$f":"IF(AND(OR(Calculations!$E$2=\"Orkney Health Board\",Calculations!$E$2=\"Orkney Islands Local Authority\"),$F243=1),0,IF(AND(OR(Calculations!$E$2=\"Shetland Health Board\",Calculations!$E$2=\"Western Isles Health Board\",Calculations!$E$2=\"Shetland Islands Local Authority\",Calculations!$E$2=\"Eilean Siar Local Authority\"),OR($F243=1,$F243=5)),0,new_yllv2(VALUE(LEFT(Options!$B$24,2)),$C243,$D243,$E243,$F243,2016,$I243,1,$H243,$G243*$H243,Options!$B$8)))","v":4241.9287256637999},{"$f":"IF(AND(OR(Calculations!$E$2=\"Orkney Health Board\",Calculations!$E$2=\"Orkney Islands Local Authority\"),$F243=1),0,IF(AND(OR(Calculations!$E$2=\"Shetland Health Board\",Calculations!$E$2=\"Western Isles Health Board\",Calculations!$E$2=\"Shetland Islands Local Authority\",Calculations!$E$2=\"Eilean Siar Local Authority\"),OR($F243=1,$F243=5)),0,new_yllv2(VALUE(LEFT(Options!$B$24,2)),$C243,$D243,$E243,$F243,2016,$I243+$J243,1,$H243,$G243*$H243,Options!$B$8)))","v":4103.4813834631004},{"$f":"IF(AND(OR(Calculations!$E$2=\"Orkney Health Board\",Calculations!$E$2=\"Orkney Islands Local Authority\"),$F243=1),0,IF(AND(OR(Calculations!$E$2=\"Shetland Health Board\",Calculations!$E$2=\"Western Isles Health Board\",Calculations!$E$2=\"Shetland Islands Local Authority\",Calculations!$E$2=\"Eilean Siar Local Authority\"),OR($F243=1,$F243=5)),0,hosp_count(VALUE(LEFT(Options!$B$24,2)),$C243,$E243,$F243,2016,$I243,1,$H243,$G243*$H243, Options!$B$8)))","v":8229.6006133826995},{"$f":"IF(AND(OR(Calculations!$E$2=\"Orkney Health Board\",Calculations!$E$2=\"Orkney Islands Local Authority\"),$F243=1),0,IF(AND(OR(Calculations!$E$2=\"Shetland Health Board\",Calculations!$E$2=\"Western Isles Health Board\",Calculations!$E$2=\"Shetland Islands Local Authority\",Calculations!$E$2=\"Eilean Siar Local Authority\"),OR($F243=1,$F243=5)),0,hosp_count(VALUE(LEFT(Options!$B$24,2)),$C243,$E243,$F243,2016,$I243+$J243,1,$H243,$G243*$H243, Options!$B$8)))","v":8211.8206574110991},{"$f":"IF(AND(OR(Calculations!$E$2=\"Orkney Health Board\",Calculations!$E$2=\"Orkney Islands Local Authority\"),$F243=1),0,IF(AND(OR(Calculations!$E$2=\"Shetland Health Board\",Calculations!$E$2=\"Western Isles Health Board\",Calculations!$E$2=\"Shetland Islands Local Authority\",Calculations!$E$2=\"Eilean Siar Local Authority\"),OR($F243=1,$F243=5)),0,prem_mort(VALUE(LEFT(Options!$B$24,2)),$C243,$E243,$F243,2016,$I243,1,$H243,$G243*$H243,Options!$B$8)))","v":227.20559713220001},{"$f":"IF(AND(OR(Calculations!$E$2=\"Orkney Health Board\",Calculations!$E$2=\"Orkney Islands Local Authority\"),$F243=1),0,IF(AND(OR(Calculations!$E$2=\"Shetland Health Board\",Calculations!$E$2=\"Western Isles Health Board\",Calculations!$E$2=\"Shetland Islands Local Authority\",Calculations!$E$2=\"Eilean Siar Local Authority\"),OR($F243=1,$F243=5)),0,prem_mort(VALUE(LEFT(Options!$B$24,2)),$C243,$E243,$F243,2016,$I243+$J243,1,$H243,$G243*$H243,Options!$B$8)))","v":219.7900998218},709.9953036848849,686.82259873691441,13255.613029792194,12822.978605240774,25716.698269999997,25661.137643858317,709.9953036848849,686.82259873691441,4259971.822109309,4120935.5924214865,79533678.178753167,76937871.631444648,154300189.61999997,153966825.86314991,4259971.822109309,4120935.5924214865,6000]
[null,"Male 65-69",67.054419999999993,82.954419999999999,"male",5,{"$f":"HLOOKUP(Calculations!$E$2,'Prevalence Rates'!$C$3:$BC$249,'Prevalence Rates'!$BD244,FALSE)","v":0},{"$f":"HLOOKUP(Calculations!$E$2,'Population 2016'!$C$3:$BC$249,'Population 2016'!BD244,FALSE)","v":31688},0,{"$f":"HLOOKUP(Results!E$4,Targeting!$C$3:$F$249,Targeting!$G244,FALSE)","v":0},{"$f":"IF(AND(OR(Calculations!$E$2=\"Orkney Health Board\",Calculations!$E$2=\"Orkney Islands Local Authority\"),$F244=1),0,IF(AND(OR(Calculations!$E$2=\"Shetland Health Board\",Calculations!$E$2=\"Western Isles Health Board\",Calculations!$E$2=\"Shetland Islands Local Authority\",Calculations!$E$2=\"Eilean Siar Local Authority\"),OR($F244=1,$F244=5)),0,new_ci(VALUE(LEFT(Options!$B$24,2)),$C244,$E244,$F244,2016,$I244,1,$H244,$G244*$H244,Options!$B$8)))","v":330.48100928320002},{"$f":"IF(AND(OR(Calculations!$E$2=\"Orkney Health Board\",Calculations!$E$2=\"Orkney Islands Local Authority\"),$F244=1),0,IF(AND(OR(Calculations!$E$2=\"Shetland Health Board\",Calculations!$E$2=\"Western Isles Health Board\",Calculations!$E$2=\"Shetland Islands Local Authority\",Calculations!$E$2=\"Eilean Siar Local Authority\"),OR($F244=1,$F244=5)),0,new_ci(VALUE(LEFT(Options!$B$24,2)),$C244,$E244,$F244,2016,$I244+$J244,1,$H244,$G244*$H244,Options!$B$8)))","v":330.48100928320002},{"$f":"IF(AND(OR(Calculations!$E$2=\"Orkney Health Board\",Calculations!$E$2=\"Orkney Islands Local Authority\"),$F244=1),0,IF(AND(OR(Calculations!$E$2=\"Shetland Health Board\",Calculations!$E$2=\"Western Isles Health Board\",Calculations!$E$2=\"Shetland Islands Local Authority\",Calculations!$E$2=\"Eilean Siar Local Authority\"),OR($F244=1,$F244=5)),0,new_yllv2(VALUE(LEFT(Options!$B$24,2)),$C244,$D244,$E244,$F244,2016,$I244,1,$H244,$G244*$H244,Options!$B$8)))","v":4924.1670383196997},{"$f":"IF(AND(OR(Calculations!$E$2=\"Orkney Health Board\",Calculations!$E$2=\"Orkney Islands Local Authority\"),$F244=1),0,IF(AND(OR(Calculations!$E$2=\"Shetland Health Board\",Calculations!$E$2=\"Western Isles Health Board\",Calculations!$E$2=\"Shetland Islands Local Authority\",Calculations!$E$2=\"Eilean Siar Local Authority\"),OR($F244=1,$F244=5)),0,new_yllv2(VALUE(LEFT(Options!$B$24,2)),$C244,$D244,$E244,$F244,2016,$I244+$J244,1,$H244,$G244*$H244,Options!$B$8)))","v":4924.1670383196997},{"$f":"IF(AND(OR(Calculations!$E$2=\"Orkney Health Board\",Calculations!$E$2=\"Orkney Islands Local Authority\"),$F244=1),0,IF(AND(OR(Calculations!$E$2=\"Shetland Health Board\",Calculations!$E$2=\"Western Isles Health Board\",Calculations!$E$2=\"Shetland Islands Local Authority\",Calculations!$E$2=\"Eilean Siar Local Authority\"),OR($F244=1,$F244=5)),0,hosp_count(VALUE(LEFT(Options!$B$24,2)),$C244,$E244,$F244,2016,$I244,1,$H244,$G244*$H244, Options!$B$8)))","v":9770.2259477183998},{"$f":"IF(AND(OR(Calculations!$E$2=\"Orkney Health Board\",Calculations!$E$2=\"Orkney Islands Local Authority\"),$F244=1),0,IF(AND(OR(Calculations!$E$2=\"Shetland Health Board\",Calculations!$E$2=\"Western Isles Health Board\",Calculations!$E$2=\"Shetland Islands Local Authority\",Calculations!$E$2=\"Eilean Siar Local Authority\"),OR($F244=1,$F244=5)),0,hosp_count(VALUE(LEFT(Options!$B$24,2)),$C244,$E244,$F244,2016,$I244+$J244,1,$H244,$G244*$H244, Options!$B$8)))","v":9770.2259477183998},{"$f":"IF(AND(OR(Calculations!$E$2=\"Orkney Health Board\",Calculations!$E$2=\"Orkney Islands Local Authority\"),$F244=1),0,IF(AND(OR(Calculations!$E$2=\"Shetland Health Board\",Calculations!$E$2=\"Western Isles Health Board\",Calculations!$E$2=\"Shetland Islands Local Authority\",Calculations!$E$2=\"Eilean Siar Local Authority\"),OR($F244=1,$F244=5)),0,prem_mort(VALUE(LEFT(Options!$B$24,2)),$C244,$E244,$F244,2016,$I244,1,$H244,$G244*$H244,Options!$B$8)))","v":330.48100928320002},{"$f":"IF(AND(OR(Calculations!$E$2=\"Orkney Health Board\",Calculations!$E$2=\"Orkney Islands Local Authority\"),$F244=1),0,IF(AND(OR(Calculations!$E$2=\"Shetland Health Board\",Calculations!$E$2=\"Western Isles Health Board\",Calculations!$E$2=\"Shetland Islands Local Authority\",Calculations!$E$2=\"Eilean Siar Local Authority\"),OR($F244=1,$F244=5)),0,prem_mort(VALUE(LEFT(Options!$B$24,2)),$C244,$E244,$F244,2016,$I244+$J244,1,$H244,$G244*$H244,Options!$B$8)))","v":330.48100928320002},1042.92164,1042.92164,15539.532436000063,15539.532436000063,30832.573679999998,30832.573679999998,1042.92164,1042.92164,5736069.0200000005,5736069.0200000005,85467428.398000345,85467428.398000345,169579155.23999998,169579155.23999998,5736069.0200000005,5736069.0200000005,5500]
[null,"Male 70-74",71.891098,84.341099999999997,"male",5,{"$f":"HLOOKUP(Calculations!$E$2,'Prevalence Rates'!$C$3:$BC$249,'Prevalence Rates'!$BD245,FALSE)","v":0},{"$f":"HLOOKUP(Calculations!$E$2,'Population 2016'!$C$3:$BC$249,'Population 2016'!BD245,FALSE)","v":22663},0,{"$f":"HLOOKUP(Results!E$4,Targeting!$C$3:$F$249,Targeting!$G245,FALSE)","v":0},{"$f":"IF(AND(OR(Calculations!$E$2=\"Orkney Health Board\",Calculations!$E$2=\"Orkney Islands Local Authority\"),$F245=1),0,IF(AND(OR(Calculations!$E$2=\"Shetland Health Board\",Calculations!$E$2=\"Western Isles Health Board\",Calculations!$E$2=\"Shetland Islands Local Authority\",Calculations!$E$2=\"Eilean Siar Local Authority\"),OR($F245=1,$F245=5)),0,new_ci(VALUE(LEFT(Options!$B$24,2)),$C245,$E245,$F245,2016,$I245,1,$H245,$G245*$H245,Options!$B$8)))","v":339.74571744209999},{"$f":"IF(AND(OR(Calculations!$E$2=\"Orkney Health Board\",Calculations!$E$2=\"Orkney Islands Local Authority\"),$F245=1),0,IF(AND(OR(Calculations!$E$2=\"Shetland Health Board\",Calculations!$E$2=\"Western Isles Health Board\",Calculations!$E$2=\"Shetland Islands Local Authority\",Calculations!$E$2=\"Eilean Siar Local Authority\"),OR($F245=1,$F245=5)),0,new_ci(VALUE(LEFT(Options!$B$24,2)),$C245,$E245,$F245,2016,$I245+$J245,1,$H245,$G245*$H245,Options!$B$8)))","v":339.74571744209999},{"$f":"IF(AND(OR(Calculations!$E$2=\"Orkney Health Board\",Calculations!$E$2=\"Orkney Islands Local Authority\"),$F245=1),0,IF(AND(OR(Calculations!$E$2=\"Shetland Health Board\",Calculations!$E$2=\"Western Isles Health Board\",Calculations!$E$2=\"Shetland Islands Local Authority\",Calculations!$E$2=\"Eilean Siar Local Authority\"),OR($F245=1,$F245=5)),0,new_yllv2(VALUE(LEFT(Options!$B$24,2)),$C245,$D245,$E245,$F245,2016,$I245,1,$H245,$G245*$H245,Options!$B$8)))","v":3890.0891442034999},{"$f":"IF(AND(OR(Calculations!$E$2=\"Orkney Health Board\",Calculations!$E$2=\"Orkney Islands Local Authority\"),$F245=1),0,IF(AND(OR(Calculations!$E$2=\"Shetland Health Board\",Calculations!$E$2=\"Western Isles Health Board\",Calculations!$E$2=\"Shetland Islands Local Authority\",Calculations!$E$2=\"Eilean Siar Local Authority\"),OR($F245=1,$F245=5)),0,new_yllv2(VALUE(LEFT(Options!$B$24,2)),$C245,$D245,$E245,$F245,2016,$I245+$J245,1,$H245,$G245*$H245,Options!$B$8)))","v":3890.0891442034999},{"$f":"IF(AND(OR(Calculations!$E$2=\"Orkney Health Board\",Calculations!$E$2=\"Orkney Islands Local Authority\"),$F245=1),0,IF(AND(OR(Calculations!$E$2=\"Shetland Health Board\",Calculations!$E$2=\"Western Isles Health Board\",Calculations!$E$2=\"Shetland Islands Local Authority\",Calculations!$E$2=\"Eilean Siar Local Authority\"),OR($F245=1,$F245=5)),0,hosp_count(VALUE(LEFT(Options!$B$24,2)),$C245,$E245,$F245,2016,$I245,1,$H245,$G245*$H245, Options!$B$8)))","v":8296.3359118624994},{"$f":"IF(AND(OR(Calculations!$E$2=\"Orkney Health Board\",Calculations!$E$2=\"Orkney Islands Local Authority\"),$F245=1),0,IF(AND(OR(Calculations!$E$2=\"Shetland Health Board\",Calculations!$E$2=\"Western Isles Health Board\",Calculations!$E$2=\"Shetland Islands Local Authority\",Calculations!$E$2=\"Eilean Siar Local Authority\"),OR($F245=1,$F245=5)),0,hosp_count(VALUE(LEFT(Options!$B$24,2)),$C245,$E245,$F245,2016,$I245+$J245,1,$H245,$G245*$H245, Options!$B$8)))","v":8296.3359118624994},{"$f":"IF(AND(OR(Calculations!$E$2=\"Orkney Health Board\",Calculations!$E$2=\"Orkney Islands Local Authority\"),$F245=1),0,IF(AND(OR(Calculations!$E$2=\"Shetland Health Board\",Calculations!$E$2=\"Western Isles Health Board\",Calculations!$E$2=\"Shetland Islands Local Authority\",Calculations!$E$2=\"Eilean Siar Local Authority\"),OR($F245=1,$F245=5)),0,prem_mort(VALUE(LEFT(Options!$B$24,2)),$C245,$E245,$F245,2016,$I245,1,$H245,$G245*$H245,Options!$B$8)))","v":339.74571744209999},{"$f":"IF(AND(OR(Calculations!$E$2=\"Orkney Health Board\",Calculations!$E$2=\"Orkney Islands Local Authority\"),$F245=1),0,IF(AND(OR(Calculations!$E$2=\"Shetland Health Board\",Calculations!$E$2=\"Western Isles Health Board\",Calculations!$E$2=\"Shetland Islands Local Authority\",Calculations!$E$2=\"Eilean Siar Local Authority\"),OR($F245=1,$F245=5)),0,prem_mort(VALUE(LEFT(Options!$B$24,2)),$C245,$E245,$F245,2016,$I245+$J245,1,$H245,$G245*$H245,Options!$B$8)))","v":339.74571744209999},1499.1206699999998,1499.1206699999998,17164.934669741429,17164.934669741429,36607.403749999998,36607.403749999998,1499.1206699999998,1499.1206699999998,7495603.3499999987,7495603.3499999987,85824673.348707139,85824673.348707139,183037018.75,183037018.75,7495603.3499999987,7495603.3499999987,5000]
[null,"Male 75-79",76.907700000000006,86.357700000000008,"male",5,{"$f":"HLOOKUP(Calculations!$E$2,'Prevalence Rates'!$C$3:$BC$249,'Prevalence Rates'!$BD246,FALSE)","v":0},{"$f":"HLOOKUP(Calculations!$E$2,'Population 2016'!$C$3:$BC$249,'Population 2016'!BD246,FALSE)","v":16475},0,{"$f":"HLOOKUP(Results!E$4,Targeting!$C$3:$F$249,Targeting!$G246,FALSE)","v":0},{"$f":"IF(AND(OR(Calculations!$E$2=\"Orkney Health Board\",Calculations!$E$2=\"Orkney Islands Local Authority\"),$F246=1),0,IF(AND(OR(Calculations!$E$2=\"Shetland Health Board\",Calculations!$E$2=\"Western Isles Health Board\",Calculations!$E$2=\"Shetland Islands Local Authority\",Calculations!$E$2=\"Eilean Siar Local Authority\"),OR($F246=1,$F246=5)),0,new_ci(VALUE(LEFT(Options!$B$24,2)),$C246,$E246,$F246,2016,$I246,1,$H246,$G246*$H246,Options!$B$8)))","v":359.45290589249998},{"$f":"IF(AND(OR(Calculations!$E$2=\"Orkney Health Board\",Calculations!$E$2=\"Orkney Islands Local Authority\"),$F246=1),0,IF(AND(OR(Calculations!$E$2=\"Shetland Health Board\",Calculations!$E$2=\"Western Isles Health Board\",Calculations!$E$2=\"Shetland Islands Local Authority\",Calculations!$E$2=\"Eilean Siar Local Authority\"),OR($F246=1,$F246=5)),0,new_ci(VALUE(LEFT(Options!$B$24,2)),$C246,$E246,$F246,2016,$I246+$J246,1,$H246,$G246*$H246,Options!$B$8)))","v":359.45290589249998},{"$f":"IF(AND(OR(Calculations!$E$2=\"Orkney Health Board\",Calculations!$E$2=\"Orkney Islands Local Authority\"),$F246=1),0,IF(AND(OR(Calculations!$E$2=\"Shetland Health Board\",Calculations!$E$2=\"Western Isles Health Board\",Calculations!$E$2=\"Shetland Islands Local Authority\",Calculations!$E$2=\"Eilean Siar Local Authority\"),OR($F246=1,$F246=5)),0,new_yllv2(VALUE(LEFT(Options!$B$24,2)),$C246,$D246,$E246,$F246,2016,$I246,1,$H246,$G246*$H246,Options!$B$8)))","v":3037.3770547916001},{"$f":"IF(AND(OR(Calculations!$E$2=\"Orkney Health Board\",Calculations!$E$2=\"Orkney Islands Local Authority\"),$F246=1),0,IF(AND(OR(Calculations!$E$2=\"Shetland Health Board\",Calculations!$E$2=\"Western Isles Health Board\",Calculations!$E$2=\"Shetland Islands Local Authority\",Calculations!$E$2=\"Eilean Siar Local Authority\"),OR($F246=1,$F246=5)),0,new_yllv2(VALUE(LEFT(Options!$B$24,2)),$C246,$D246,$E246,$F246,2016,$I246+$J246,1,$H246,$G246*$H246,Options!$B$8)))","v":3037.3770547916001},{"$f":"IF(AND(OR(Calculations!$E$2=\"Orkney Health Board\",Calculations!$E$2=\"Orkney Islands Local Authority\"),$F246=1),0,IF(AND(OR(Calculations!$E$2=\"Shetland Health Board\",Calculations!$E$2=\"Western Isles Health Board\",Calculations!$E$2=\"Shetland Islands Local Authority\",Calculations!$E$2=\"Eilean Siar Local Authority\"),OR($F246=1,$F246=5)),0,hosp_count(VALUE(LEFT(Options!$B$24,2)),$C246,$E246,$F246,2016,$I246,1,$H246,$G246*$H246, Options!$B$8)))","v":7206.5449118525003},{"$f":"IF(AND(OR(Calculations!$E$2=\"Orkney Health Board\",Calculations!$E$2=\"Orkney Islands Local Authority\"),$F246=1),0,IF(AND(OR(Calculations!$E$2=\"Shetland Health Board\",Calculations!$E$2=\"Western Isles Health Board\",Calculations!$E$2=\"Shetland Islands Local Authority\",Calculations!$E$2=\"Eilean Siar Local Authority\"),OR($F246=1,$F246=5)),0,hosp_count(VALUE(LEFT(Options!$B$24,2)),$C246,$E246,$F246,2016,$I246+$J246,1,$H246,$G246*$H246, Options!$B$8)))","v":7206.5449118525003},{"$f":"IF(AND(OR(Calculations!$E$2=\"Orkney Health Board\",Calculations!$E$2=\"Orkney Islands Local Authority\"),$F246=1),0,IF(AND(OR(Calculations!$E$2=\"Shetland Health Board\",Calculations!$E$2=\"Western Isles Health Board\",Calculations!$E$2=\"Shetland Islands Local Authority\",Calculations!$E$2=\"Eilean Siar Local Authority\"),OR($F246=1,$F246=5)),0,prem_mort(VALUE(LEFT(Options!$B$24,2)),$C246,$E246,$F246,2016,$I246,1,$H246,$G246*$H246,Options!$B$8)))","v":0},{"$f":"IF(AND(OR(Calculations!$E$2=\"Orkney Health Board\",Calculations!$E$2=\"Orkney Islands Local Authority\"),$F246=1),0,IF(AND(OR(Calculations!$E$2=\"Shetland Health Board\",Calculations!$E$2=\"Western Isles Health Board\",Calculations!$E$2=\"Shetland Islands Local Authority\",Calculations!$E$2=\"Eilean Siar Local Authority\"),OR($F246=1,$F246=5)),0,prem_mort(VALUE(LEFT(Options!$B$24,2)),$C246,$E246,$F246,2016,$I246+$J246,1,$H246,$G246*$H246,Options!$B$8)))","v":0},2181.8082300000001,2181.8082300000001,18436.279543499848,18436.279543499848,43742.305990000001,43742.305990000001,0,0,8727232.9199999999,8727232.9199999999,73745118.173999399,73745118.173999399,174969223.96000001,174969223.96000001,0,0,4000]
[null,"Male 80-84",81.797089,88.627089999999995,"male",5,{"$f":"HLOOKUP(Calculations!$E$2,'Prevalence Rates'!$C$3:$BC$249,'Prevalence Rates'!$BD247,FALSE)","v":0},{"$f":"HLOOKUP(Calculations!$E$2,'Population 2016'!$C$3:$BC$249,'Population 2016'!BD247,FALSE)","v":11823},0,{"$f":"HLOOKUP(Results!E$4,Targeting!$C$3:$F$249,Targeting!$G247,FALSE)","v":0},{"$f":"IF(AND(OR(Calculations!$E$2=\"Orkney Health Board\",Calculations!$E$2=\"Orkney Islands Local Authority\"),$F247=1),0,IF(AND(OR(Calculations!$E$2=\"Shetland Health Board\",Calculations!$E$2=\"Western Isles Health Board\",Calculations!$E$2=\"Shetland Islands Local Authority\",Calculations!$E$2=\"Eilean Siar Local Authority\"),OR($F247=1,$F247=5)),0,new_ci(VALUE(LEFT(Options!$B$24,2)),$C247,$E247,$F247,2016,$I247,1,$H247,$G247*$H247,Options!$B$8)))","v":371.30396216970001},{"$f":"IF(AND(OR(Calculations!$E$2=\"Orkney Health Board\",Calculations!$E$2=\"Orkney Islands Local Authority\"),$F247=1),0,IF(AND(OR(Calculations!$E$2=\"Shetland Health Board\",Calculations!$E$2=\"Western Isles Health Board\",Calculations!$E$2=\"Shetland Islands Local Authority\",Calculations!$E$2=\"Eilean Siar Local Authority\"),OR($F247=1,$F247=5)),0,new_ci(VALUE(LEFT(Options!$B$24,2)),$C247,$E247,$F247,2016,$I247+$J247,1,$H247,$G247*$H247,Options!$B$8)))","v":371.30396216970001},{"$f":"IF(AND(OR(Calculations!$E$2=\"Orkney Health Board\",Calculations!$E$2=\"Orkney Islands Local Authority\"),$F247=1),0,IF(AND(OR(Calculations!$E$2=\"Shetland Health Board\",Calculations!$E$2=\"Western Isles Health Board\",Calculations!$E$2=\"Shetland Islands Local Authority\",Calculations!$E$2=\"Eilean Siar Local Authority\"),OR($F247=1,$F247=5)),0,new_yllv2(VALUE(LEFT(Options!$B$24,2)),$C247,$D247,$E247,$F247,2016,$I247,1,$H247,$G247*$H247,Options!$B$8)))","v":2164.7024707533001},{"$f":"IF(AND(OR(Calculations!$E$2=\"Orkney Health Board\",Calculations!$E$2=\"Orkney Islands Local Authority\"),$F247=1),0,IF(AND(OR(Calculations!$E$2=\"Shetland Health Board\",Calculations!$E$2=\"Western Isles Health Board\",Calculations!$E$2=\"Shetland Islands Local Authority\",Calculations!$E$2=\"Eilean Siar Local Authority\"),OR($F247=1,$F247=5)),0,new_yllv2(VALUE(LEFT(Options!$B$24,2)),$C247,$D247,$E247,$F247,2016,$I247+$J247,1,$H247,$G247*$H247,Options!$B$8)))","v":2164.7024707533001},{"$f":"IF(AND(OR(Calculations!$E$2=\"Orkney Health Board\",Calculations!$E$2=\"Orkney Islands Local Authority\"),$F247=1),0,IF(AND(OR(Calculations!$E$2=\"Shetland Health Board\",Calculations!$E$2=\"Western Isles Health Board\",Calculations!$E$2=\"Shetland Islands Local Authority\",Calculations!$E$2=\"Eilean Siar Local Authority\"),OR($F247=1,$F247=5)),0,hosp_count(VALUE(LEFT(Options!$B$24,2)),$C247,$E247,$F247,2016,$I247,1,$H247,$G247*$H247, Options!$B$8)))","v":6151.7839448121003},{"$f":"IF(AND(OR(Calculations!$E$2=\"Orkney Health Board\",Calculations!$E$2=\"Orkney Islands Local Authority\"),$F247=1),0,IF(AND(OR(Calculations!$E$2=\"Shetland Health Board\",Calculations!$E$2=\"Western Isles Health Board\",Calculations!$E$2=\"Shetland Islands Local Authority\",Calculations!$E$2=\"Eilean Siar Local Authority\"),OR($F247=1,$F247=5)),0,hosp_count(VALUE(LEFT(Options!$B$24,2)),$C247,$E247,$F247,2016,$I247+$J247,1,$H247,$G247*$H247, Options!$B$8)))","v":6151.7839448121003},{"$f":"IF(AND(OR(Calculations!$E$2=\"Orkney Health Board\",Calculations!$E$2=\"Orkney Islands Local Authority\"),$F247=1),0,IF(AND(OR(Calculations!$E$2=\"Shetland Health Board\",Calculations!$E$2=\"Western Isles Health Board\",Calculations!$E$2=\"Shetland Islands Local Authority\",Calculations!$E$2=\"Eilean Siar Local Authority\"),OR($F247=1,$F247=5)),0,prem_mort(VALUE(LEFT(Options!$B$24,2)),$C247,$E247,$F247,2016,$I247,1,$H247,$G247*$H247,Options!$B$8)))","v":0},{"$f":"IF(AND(OR(Calculations!$E$2=\"Orkney Health Board\",Calculations!$E$2=\"Orkney Islands Local Authority\"),$F247=1),0,IF(AND(OR(Calculations!$E$2=\"Shetland Health Board\",Calculations!$E$2=\"Western Isles Health Board\",Calculations!$E$2=\"Shetland Islands Local Authority\",Calculations!$E$2=\"Eilean Siar Local Authority\"),OR($F247=1,$F247=5)),0,prem_mort(VALUE(LEFT(Options!$B$24,2)),$C247,$E247,$F247,2016,$I247+$J247,1,$H247,$G247*$H247,Options!$B$8)))","v":0},3140.5223900000005,3140.5223900000005,18309.248674222279,18309.248674222279,52032.343269999998,52032.343269999998,0,0,7851305.9750000015,7851305.9750000015,45773121.685555696,45773121.685555696,130080858.175,130080858.175,0,0,2500]
[null,"Male 85-89",86.630752999999999,91.420750000000012,"male",5,{"$f":"HLOOKUP(Calculations!$E$2,'Prevalence Rates'!$C$3:$BC$249,'Prevalence Rates'!$BD248,FALSE)","v":0},{"$f":"HLOOKUP(Calculations!$E$2,'Population 2016'!$C$3:$BC$249,'Population 2016'!BD248,FALSE)","v":6067},0,{"$f":"HLOOKUP(Results!E$4,Targeting!$C$3:$F$249,Targeting!$G248,FALSE)","v":0},{"$f":"IF(AND(OR(Calculations!$E$2=\"Orkney Health Board\",Calculations!$E$2=\"Orkney Islands Local Authority\"),$F248=1),0,IF(AND(OR(Calculations!$E$2=\"Shetland Health Board\",Calculations!$E$2=\"Western Isles Health Board\",Calculations!$E$2=\"Shetland Islands Local Authority\",Calculations!$E$2=\"Eilean Siar Local Authority\"),OR($F248=1,$F248=5)),0,new_ci(VALUE(LEFT(Options!$B$24,2)),$C248,$E248,$F248,2016,$I248,1,$H248,$G248*$H248,Options!$B$8)))","v":272.54073229609997},{"$f":"IF(AND(OR(Calculations!$E$2=\"Orkney Health Board\",Calculations!$E$2=\"Orkney Islands Local Authority\"),$F248=1),0,IF(AND(OR(Calculations!$E$2=\"Shetland Health Board\",Calculations!$E$2=\"Western Isles Health Board\",Calculations!$E$2=\"Shetland Islands Local Authority\",Calculations!$E$2=\"Eilean Siar Local Authority\"),OR($F248=1,$F248=5)),0,new_ci(VALUE(LEFT(Options!$B$24,2)),$C248,$E248,$F248,2016,$I248+$J248,1,$H248,$G248*$H248,Options!$B$8)))","v":272.54073229609997},{"$f":"IF(AND(OR(Calculations!$E$2=\"Orkney Health Board\",Calculations!$E$2=\"Orkney Islands Local Authority\"),$F248=1),0,IF(AND(OR(Calculations!$E$2=\"Shetland Health Board\",Calculations!$E$2=\"Western Isles Health Board\",Calculations!$E$2=\"Shetland Islands Local Authority\",Calculations!$E$2=\"Eilean Siar Local Authority\"),OR($F248=1,$F248=5)),0,new_yllv2(VALUE(LEFT(Options!$B$24,2)),$C248,$D248,$E248,$F248,2016,$I248,1,$H248,$G248*$H248,Options!$B$8)))","v":1032.9285577799999},{"$f":"IF(AND(OR(Calculations!$E$2=\"Orkney Health Board\",Calculations!$E$2=\"Orkney Islands Local Authority\"),$F248=1),0,IF(AND(OR(Calculations!$E$2=\"Shetland Health Board\",Calculations!$E$2=\"Western Isles Health Board\",Calculations!$E$2=\"Shetland Islands Local Authority\",Calculations!$E$2=\"Eilean Siar Local Authority\"),OR($F248=1,$F248=5)),0,new_yllv2(VALUE(LEFT(Options!$B$24,2)),$C248,$D248,$E248,$F248,2016,$I248+$J248,1,$H248,$G248*$H248,Options!$B$8)))","v":1032.9285577799999},{"$f":"IF(AND(OR(Calculations!$E$2=\"Orkney Health Board\",Calculations!$E$2=\"Orkney Islands Local Authority\"),$F248=1),0,IF(AND(OR(Calculations!$E$2=\"Shetland Health Board\",Calculations!$E$2=\"Western Isles Health Board\",Calculations!$E$2=\"Shetland Islands Local Authority\",Calculations!$E$2=\"Eilean Siar Local Authority\"),OR($F248=1,$F248=5)),0,hosp_count(VALUE(LEFT(Options!$B$24,2)),$C248,$E248,$F248,2016,$I248,1,$H248,$G248*$H248, Options!$B$8)))","v":3747.6590122036},{"$f":"IF(AND(OR(Calculations!$E$2=\"Orkney Health Board\",Calculations!$E$2=\"Orkney Islands Local Authority\"),$F248=1),0,IF(AND(OR(Calculations!$E$2=\"Shetland Health Board\",Calculations!$E$2=\"Western Isles Health Board\",Calculations!$E$2=\"Shetland Islands Local Authority\",Calculations!$E$2=\"Eilean Siar Local Authority\"),OR($F248=1,$F248=5)),0,hosp_count(VALUE(LEFT(Options!$B$24,2)),$C248,$E248,$F248,2016,$I248+$J248,1,$H248,$G248*$H248, Options!$B$8)))","v":3747.6590122036},{"$f":"IF(AND(OR(Calculations!$E$2=\"Orkney Health Board\",Calculations!$E$2=\"Orkney Islands Local Authority\"),$F248=1),0,IF(AND(OR(Calculations!$E$2=\"Shetland Health Board\",Calculations!$E$2=\"Western Isles Health Board\",Calculations!$E$2=\"Shetland Islands Local Authority\",Calculations!$E$2=\"Eilean Siar Local Authority\"),OR($F248=1,$F248=5)),0,prem_mort(VALUE(LEFT(Options!$B$24,2)),$C248,$E248,$F248,2016,$I248,1,$H248,$G248*$H248,Options!$B$8)))","v":0},{"$f":"IF(AND(OR(Calculations!$E$2=\"Orkney Health Board\",Calculations!$E$2=\"Orkney Islands Local Authority\"),$F248=1),0,IF(AND(OR(Calculations!$E$2=\"Shetland Health Board\",Calculations!$E$2=\"Western Isles Health Board\",Calculations!$E$2=\"Shetland Islands Local Authority\",Calculations!$E$2=\"Eilean Siar Local Authority\"),OR($F248=1,$F248=5)),0,prem_mort(VALUE(LEFT(Options!$B$24,2)),$C248,$E248,$F248,2016,$I248+$J248,1,$H248,$G248*$H248,Options!$B$8)))","v":0},4492.1828299999997,4492.1828299999997,17025.359449151143,17025.359449151143,61771.20508,61771.20508,0,0,6738274.2449999992,6738274.2449999992,25538039.173726715,25538039.173726715,92656807.620000005,92656807.620000005,0,0,1500]
[null,"Male 90+",92.215477000000007,95.515479999999997,"male",5,{"$f":"HLOOKUP(Calculations!$E$2,'Prevalence Rates'!$C$3:$BC$249,'Prevalence Rates'!$BD249,FALSE)","v":0},{"$f":"HLOOKUP(Calculations!$E$2,'Population 2016'!$C$3:$BC$249,'Population 2016'!BD249,FALSE)","v":2678},0,{"$f":"HLOOKUP(Results!E$4,Targeting!$C$3:$F$249,Targeting!$G249,FALSE)","v":0},{"$f":"IF(AND(OR(Calculations!$E$2=\"Orkney Health Board\",Calculations!$E$2=\"Orkney Islands Local Authority\"),$F249=1),0,IF(AND(OR(Calculations!$E$2=\"Shetland Health Board\",Calculations!$E$2=\"Western Isles Health Board\",Calculations!$E$2=\"Shetland Islands Local Authority\",Calculations!$E$2=\"Eilean Siar Local Authority\"),OR($F249=1,$F249=5)),0,new_ci(VALUE(LEFT(Options!$B$24,2)),$C249,$E249,$F249,2016,$I249,1,$H249,$G249*$H249,Options!$B$8)))","v":181.2164307278},{"$f":"IF(AND(OR(Calculations!$E$2=\"Orkney Health Board\",Calculations!$E$2=\"Orkney Islands Local Authority\"),$F249=1),0,IF(AND(OR(Calculations!$E$2=\"Shetland Health Board\",Calculations!$E$2=\"Western Isles Health Board\",Calculations!$E$2=\"Shetland Islands Local Authority\",Calculations!$E$2=\"Eilean Siar Local Authority\"),OR($F249=1,$F249=5)),0,new_ci(VALUE(LEFT(Options!$B$24,2)),$C249,$E249,$F249,2016,$I249+$J249,1,$H249,$G249*$H249,Options!$B$8)))","v":181.2164307278},{"$f":"IF(AND(OR(Calculations!$E$2=\"Orkney Health Board\",Calculations!$E$2=\"Orkney Islands Local Authority\"),$F249=1),0,IF(AND(OR(Calculations!$E$2=\"Shetland Health Board\",Calculations!$E$2=\"Western Isles Health Board\",Calculations!$E$2=\"Shetland Islands Local Authority\",Calculations!$E$2=\"Eilean Siar Local Authority\"),OR($F249=1,$F249=5)),0,new_yllv2(VALUE(LEFT(Options!$B$24,2)),$C249,$D249,$E249,$F249,2016,$I249,1,$H249,$G249*$H249,Options!$B$8)))","v":416.79833432319998},{"$f":"IF(AND(OR(Calculations!$E$2=\"Orkney Health Board\",Calculations!$E$2=\"Orkney Islands Local Authority\"),$F249=1),0,IF(AND(OR(Calculations!$E$2=\"Shetland Health Board\",Calculations!$E$2=\"Western Isles Health Board\",Calculations!$E$2=\"Shetland Islands Local Authority\",Calculations!$E$2=\"Eilean Siar Local Authority\"),OR($F249=1,$F249=5)),0,new_yllv2(VALUE(LEFT(Options!$B$24,2)),$C249,$D249,$E249,$F249,2016,$I249+$J249,1,$H249,$G249*$H249,Options!$B$8)))","v":416.79833432319998},{"$f":"IF(AND(OR(Calculations!$E$2=\"Orkney Health Board\",Calculations!$E$2=\"Orkney Islands Local Authority\"),$F249=1),0,IF(AND(OR(Calculations!$E$2=\"Shetland Health Board\",Calculations!$E$2=\"Western Isles Health Board\",Calculations!$E$2=\"Shetland Islands Local Authority\",Calculations!$E$2=\"Eilean Siar Local Authority\"),OR($F249=1,$F249=5)),0,hosp_count(VALUE(LEFT(Options!$B$24,2)),$C249,$E249,$F249,2016,$I249,1,$H249,$G249*$H249, Options!$B$8)))","v":2016.9131573994},{"$f":"IF(AND(OR(Calculations!$E$2=\"Orkney Health Board\",Calculations!$E$2=\"Orkney Islands Local Authority\"),$F249=1),0,IF(AND(OR(Calculations!$E$2=\"Shetland Health Board\",Calculations!$E$2=\"Western Isles Health Board\",Calculations!$E$2=\"Shetland Islands Local Authority\",Calculations!$E$2=\"Eilean Siar Local Authority\"),OR($F249=1,$F249=5)),0,hosp_count(VALUE(LEFT(Options!$B$24,2)),$C249,$E249,$F249,2016,$I249+$J249,1,$H249,$G249*$H249, Options!$B$8)))","v":2016.9131573994},{"$f":"IF(AND(OR(Calculations!$E$2=\"Orkney Health Board\",Calculations!$E$2=\"Orkney Islands Local Authority\"),$F249=1),0,IF(AND(OR(Calculations!$E$2=\"Shetland Health Board\",Calculations!$E$2=\"Western Isles Health Board\",Calculations!$E$2=\"Shetland Islands Local Authority\",Calculations!$E$2=\"Eilean Siar Local Authority\"),OR($F249=1,$F249=5)),0,prem_mort(VALUE(LEFT(Options!$B$24,2)),$C249,$E249,$F249,2016,$I249,1,$H249,$G249*$H249,Options!$B$8)))","v":0},{"$f":"IF(AND(OR(Calculations!$E$2=\"Orkney Health Board\",Calculations!$E$2=\"Orkney Islands Local Authority\"),$F249=1),0,IF(AND(OR(Calculations!$E$2=\"Shetland Health Board\",Calculations!$E$2=\"Western Isles Health Board\",Calculations!$E$2=\"Shetland Islands Local Authority\",Calculations!$E$2=\"Eilean Siar Local Authority\"),OR($F249=1,$F249=5)),0,prem_mort(VALUE(LEFT(Options!$B$24,2)),$C249,$E249,$F249,2016,$I249+$J249,1,$H249,$G249*$H249,Options!$B$8)))","v":0},6766.8570100000006,6766.8570100000006,15563.791423569828,15563.791423569828,75314.158230000001,75314.158230000001,0,0,6766857.0100000007,6766857.0100000007,15563791.423569828,15563791.423569828,75314158.230000004,75314158.230000004,0,0,1000]

{"sheet":"Inequalities","index":7,"n_rows":18,"n_cols":25,"rows_kept":18,"cut":false,"hidden":true,"merged":[]}
["Relative Index of Inequality calculation"]
["Area:",{"$f":"Options!$B$11","v":"Scotland"}]
["Years:",{"$f":"Options!B24","v":2},null,null,null,null,null,"STANDARDISED RATES"]
[null,null,null,null,null,null,null,"Hospital Stays",null,null,null,null,null,"Premature Death",null,null,null,null,null,"Years of Life Lost (YLL)"]
[null,null,null,null,null,null,null,"Without intervention",null,"With intervention",null,"Difference","% Difference","Without intervention",null,"With intervention",null,"Difference","% Difference","Without intervention",null,"With intervention",null,"Difference","% Difference"]
[null,null,"a",null,"b","√a","b*√a","Y","Y*√a","Y","Y*√a",null,null,"Y","Y*√a","Y","Y*√a",null,null,"Y","Y*√a","Y","Y*√a"]
["SIMD quintile","Population","Proportion of total population","Cumulative proportion","Relative rank"]
[null,null,null,0," "]
["Q1 (most dep)",{"$f":"Calculations!H7","v":872234},{"$f":"B9/$B$14","v":0.19431413815281337},{"$f":"D8+C9","v":0.19431413815281337},{"$f":"D8+(0.5*C9)","v":9.7157069076406685E-2},{"$f":"SQRT(C9)","v":0.44081077363514309},{"$f":"E9*SQRT(C9)","v":4.2827882783693871E-2},{"$f":"Calculations!AN7/($B$3-1)","v":29752.248162420005},{"$f":"SQRT($C9)*H9","v":13115.111529861128},{"$f":"Calculations!AO7/($B$3-1)","v":29717.189478103057},{"$f":"SQRT($C9)*J9","v":13099.657284104742},null,null,{"$f":"Calculations!AP7/($B$3-1)","v":679.67533297897728},{"$f":"SQRT($C9)*N9","v":299.60820935118647},{"$f":"Calculations!AQ7/($B$3-1)","v":669.68858274759236},{"$f":"SQRT($C9)*P9","v":295.20594225558875},null,null,{"$f":"Calculations!AL7/($B$3-1)","v":18759.669334321803},{"$f":"SQRT($C9)*T9","v":8269.4643524018647},{"$f":"Calculations!AM7/($B$3-1)","v":18477.500140150791},{"$f":"SQRT($C9)*V9","v":8145.0811316233348}]
["Q2",{"$f":"Calculations!H8","v":897032},{"$f":"B10/$B$14","v":0.19983857540005831},{"$f":"D9+C10","v":0.39415271355287168},{"$f":"D9+(0.5*C10)","v":0.29423342585284251},{"$f":"SQRT(C10)","v":0.44703308087887444},{"$f":"E10*SQRT(C10)","v":0.13153207485654206},{"$f":"Calculations!AN8/($B$3-1)","v":24186.305889039999},10812.078836656416,{"$f":"Calculations!AO8/($B$3-1)","v":24157.741594278377},10799.309651965996,null,null,{"$f":"Calculations!AP8/($B$3-1)","v":477.43403421612339},213.4288072320636,{"$f":"Calculations!AQ8/($B$3-1)","v":469.96295474690783},210.08898755944927,null,null,{"$f":"Calculations!AL8/($B$3-1)","v":13201.313564184153},5901.4238742453163,{"$f":"Calculations!AM8/($B$3-1)","v":12989.999750932699},5806.9596092752563]
["Q3",{"$f":"Calculations!H9","v":907978},{"$f":"B11/$B$14","v":0.2022770982691745},{"$f":"D10+C11","v":0.59642981182204613},{"$f":"D10+(0.5*C11)","v":0.49529126268745893},{"$f":"SQRT(C11)","v":0.44975226321740119},{"$f":"E11*SQRT(C11)","v":0.22275836634548904},{"$f":"Calculations!AN9/($B$3-1)","v":20910.862622785},9404.7077904257148,{"$f":"Calculations!AO9/($B$3-1)","v":20886.131026918527},9393.5846992117913,null,null,{"$f":"Calculations!AP9/($B$3-1)","v":386.6329662542264},173.88905160729541,{"$f":"Calculations!AQ9/($B$3-1)","v":380.34028493872836},171.05890394394433,null,null,{"$f":"Calculations!AL9/($B$3-1)","v":10699.342210770417},4812.0533742314683,{"$f":"Calculations!AM9/($B$3-1)","v":10521.656776480302},4732.1389480187217]
["Q4",{"$f":"Calculations!H10","v":910792},0.20290399424521077,{"$f":"D11+C12","v":0.7993338060672569},{"$f":"D11+(0.5*C12)","v":0.69788180894465146},{"$f":"SQRT(C12)","v":0.45044865883384622},{"$f":"E12*SQRT(C12)","v":0.31435992486365677},{"$f":"Calculations!AN10/($B$3-1)","v":18444.122953785001},8308.1304478990114,{"$f":"Calculations!AO10/($B$3-1)","v":18422.297631371097},8298.299260689053,null,null,{"$f":"Calculations!AP10/($B$3-1)","v":307.0864630473373},138.32668542570258,{"$f":"Calculations!AQ10/($B$3-1)","v":301.97439650428879},136.02396190751699,null,null,{"$f":"Calculations!AL10/($B$3-1)","v":8504.1674310484741},3830.6908138142603,{"$f":"Calculations!AM10/($B$3-1)","v":8359.8609788495633},3765.6881659601904]
["Q5 (least dep)",{"$f":"Calculations!H11","v":900747},0.20066619393274301,{"$f":"D12+C13","v":0.99999999999999989},{"$f":"D12+(0.5*C13)","v":0.8996669030336284},{"$f":"SQRT(C13)","v":0.44795780374131561},{"$f":"E13*SQRT(C13)","v":0.40301280998169531},{"$f":"Calculations!AN11/($B$3-1)","v":16404.921966045004},7348.7128144571852,{"$f":"Calculations!AO11/($B$3-1)","v":16385.509426053221},7340.0168156774253,null,null,{"$f":"Calculations!AP11/($B$3-1)","v":226.21785293944887},101.33605256983144,{"$f":"Calculations!AQ11/($B$3-1)","v":222.48325515296503},99.66311034754095,null,null,{"$f":"Calculations!AL11/($B$3-1)","v":6269.3020301518873},2808.3827684178104,{"$f":"Calculations!AM11/($B$3-1)","v":6163.4914173405095},2760.9840786903032]
["Total",{"$f":"SUM(B9:B13)","v":4488783},null,null,null,null,{"$f":"E14*SQRT(D14)","v":0},{"$f":"IF(OR(Calculations!$E$2=\"Orkney Health Board\",Calculations!$E$2=\"Orkney Islands Local Authority\"),AVERAGE(H10:H13),IF(OR(Calculations!$E$2=\"Shetland Health Board\",Calculations!$E$2=\"Western Isles Health Board\",Calculations!$E$2=\"Shetland Islands Local Authority\",Calculations!$E$2=\"Eilean Siar Local Authority\"),AVERAGE(H10:H12),AVERAGE(H9:H13)))","v":21939.692318815003},0,{"$f":"IF(OR(Calculations!$E$2=\"Orkney Health Board\",Calculations!$E$2=\"Orkney Islands Local Authority\"),AVERAGE(J10:J13),IF(OR(Calculations!$E$2=\"Shetland Health Board\",Calculations!$E$2=\"Western Isles Health Board\",Calculations!$E$2=\"Shetland Islands Local Authority\",Calculations!$E$2=\"Eilean Siar Local Authority\"),AVERAGE(J10:J12),AVERAGE(J9:J13)))","v":21913.773831344857},0,null,null,{"$f":"IF(OR(Calculations!$E$2=\"Orkney Health Board\",Calculations!$E$2=\"Orkney Islands Local Authority\"),AVERAGE(N10:N13),IF(OR(Calculations!$E$2=\"Shetland Health Board\",Calculations!$E$2=\"Western Isles Health Board\",Calculations!$E$2=\"Shetland Islands Local Authority\",Calculations!$E$2=\"Eilean Siar Local Authority\"),AVERAGE(N10:N12),AVERAGE(N9:N13)))","v":415.40932988722261},0,{"$f":"IF(OR(Calculations!$E$2=\"Orkney Health Board\",Calculations!$E$2=\"Orkney Islands Local Authority\"),AVERAGE(P10:P13),IF(OR(Calculations!$E$2=\"Shetland Health Board\",Calculations!$E$2=\"Western Isles Health Board\",Calculations!$E$2=\"Shetland Islands Local Authority\",Calculations!$E$2=\"Eilean Siar Local Authority\"),AVERAGE(P10:P12),AVERAGE(P9:P13)))","v":408.88989481809648},0,null,null,{"$f":"IF(OR(Calculations!$E$2=\"Orkney Health Board\",Calculations!$E$2=\"Orkney Islands Local Authority\"),AVERAGE(T10:T13),IF(OR(Calculations!$E$2=\"Shetland Health Board\",Calculations!$E$2=\"Western Isles Health Board\",Calculations!$E$2=\"Shetland Islands Local Authority\",Calculations!$E$2=\"Eilean Siar Local Authority\"),AVERAGE(T10:T12),AVERAGE(T9:T13)))","v":11486.758914095346},0,{"$f":"IF(OR(Calculations!$E$2=\"Orkney Health Board\",Calculations!$E$2=\"Orkney Islands Local Authority\"),AVERAGE(V10:V13),IF(OR(Calculations!$E$2=\"Shetland Health Board\",Calculations!$E$2=\"Western Isles Health Board\",Calculations!$E$2=\"Shetland Islands Local Authority\",Calculations!$E$2=\"Eilean Siar Local Authority\"),AVERAGE(V10:V12),AVERAGE(V9:V13)))","v":11302.501812750774},0]
[null,null,null,null,"Slope Index of Inequality =",null,null,{"$f":"IF(OR(Calculations!$E$2=\"Orkney Health Board\",Calculations!$E$2=\"Orkney Islands Local Authority\"),-LINEST(I10:I13,$F10:$G13,0),IF(OR(Calculations!$E$2=\"Shetland Health Board\",Calculations!$E$2=\"Western Isles Health Board\",Calculations!$E$2=\"Shetland Islands Local Authority\",Calculations!$E$2=\"Eilean Siar Local Authority\"),-LINEST(I10:I12,$F10:$G12,0),-LINEST(I9:I13,$F9:$G13,0)))","v":16090.340555944245},null,{"$f":"IF(OR(Calculations!$E$2=\"Orkney Health Board\",Calculations!$E$2=\"Orkney Islands Local Authority\"),-LINEST(K10:K13,$F10:$G13,0),IF(OR(Calculations!$E$2=\"Shetland Health Board\",Calculations!$E$2=\"Western Isles Health Board\",Calculations!$E$2=\"Shetland Islands Local Authority\",Calculations!$E$2=\"Eilean Siar Local Authority\"),-LINEST(K10:K12,$F10:$G12,0),-LINEST(K9:K13,$F9:$G13,0)))","v":16071.474239740539},null,{"$f":"H15-J15","v":18.866316203706447},{"$f":"L15*100/H15","v":0.11725243563435128},{"$f":"IF(OR(Calculations!$E$2=\"Orkney Health Board\",Calculations!$E$2=\"Orkney Islands Local Authority\"),-LINEST(O10:O13,$F10:$G13,0),IF(OR(Calculations!$E$2=\"Shetland Health Board\",Calculations!$E$2=\"Western Isles Health Board\",Calculations!$E$2=\"Shetland Islands Local Authority\",Calculations!$E$2=\"Eilean Siar Local Authority\"),-LINEST(O10:O12,$F10:$G12,0),-LINEST(O9:O13,$F9:$G13,0)))","v":534.16101420053064},null,{"$f":"IF(OR(Calculations!$E$2=\"Orkney Health Board\",Calculations!$E$2=\"Orkney Islands Local Authority\"),-LINEST(Q10:Q13,$F10:$G13,0),IF(OR(Calculations!$E$2=\"Shetland Health Board\",Calculations!$E$2=\"Western Isles Health Board\",Calculations!$E$2=\"Shetland Islands Local Authority\",Calculations!$E$2=\"Eilean Siar Local Authority\"),-LINEST(Q10:Q12,$F10:$G12,0),-LINEST(Q9:Q13,$F9:$G13,0)))","v":526.78354251793462},null,{"$f":"N15-P15","v":7.377471682596024},{"$f":"R15*100/N15","v":1.3811325586233125},{"$f":"IF(OR(Calculations!$E$2=\"Orkney Health Board\",Calculations!$E$2=\"Orkney Islands Local Authority\"),-LINEST(U10:U13,$F10:$G13,0),IF(OR(Calculations!$E$2=\"Shetland Health Board\",Calculations!$E$2=\"Western Isles Health Board\",Calculations!$E$2=\"Shetland Islands Local Authority\",Calculations!$E$2=\"Eilean Siar Local Authority\"),-LINEST(U10:U12,$F10:$G12,0),-LINEST(U9:U13,$F9:$G13,0)))","v":14716.103555851352},null,{"$f":"IF(OR(Calculations!$E$2=\"Orkney Health Board\",Calculations!$E$2=\"Orkney Islands Local Authority\"),-LINEST(W10:W13,$F10:$G13,0),IF(OR(Calculations!$E$2=\"Shetland Health Board\",Calculations!$E$2=\"Western Isles Health Board\",Calculations!$E$2=\"Shetland Islands Local Authority\",Calculations!$E$2=\"Eilean Siar Local Authority\"),-LINEST(W10:W12,$F10:$G12,0),-LINEST(W9:W13,$F9:$G13,0)))","v":14507.7709885106},null,{"$f":"T15-V15","v":208.33256734075258},{"$f":"X15*100/T15","v":1.4156775028802804}]
[null,null,null,null,"Relative Index of Inequality =",null,null,{"$f":"H15/H14","v":0.73338952625810161},null,{"$f":"J15/J14","v":0.73339600761747148},null,{"$f":"H16-J16","v":-6.4813593698698213E-6},{"$f":"L16*100/H16","v":-8.8375401308756049E-4},{"$f":"N15/N14","v":1.2858666759977377},null,{"$f":"P15/P14","v":1.2883261464612268},null,{"$f":"N16-P16","v":-2.4594704634890441E-3},{"$f":"R16*100/N16","v":-0.191269476797093},{"$f":"T15/T14","v":1.2811362775093411},null,{"$f":"V15/V14","v":1.2835893529469593},null,{"$f":"T16-V16","v":-2.4530754376181907E-3},{"$f":"X16*100/T16","v":-0.19147654162031991}]
[null,null,null,null,"Absolute difference (Q1-Q5) =",null,null,{"$f":"IF(OR(Calculations!$E$2=\"Orkney Health Board\",Calculations!$E$2=\"Orkney Islands Local Authority\"),H10-H13,IF(OR(Calculations!$E$2=\"Shetland Health Board\",Calculations!$E$2=\"Western Isles Health Board\",Calculations!$E$2=\"Shetland Islands Local Authority\",Calculations!$E$2=\"Eilean Siar Local Authority\"),H10-H12,H9-H13))","v":13347.326196375001},null,{"$f":"IF(OR(Calculations!$E$2=\"Orkney Health Board\",Calculations!$E$2=\"Orkney Islands Local Authority\"),J10-J13,IF(OR(Calculations!$E$2=\"Shetland Health Board\",Calculations!$E$2=\"Western Isles Health Board\",Calculations!$E$2=\"Shetland Islands Local Authority\",Calculations!$E$2=\"Eilean Siar Local Authority\"),J10-J12,J9-J13))","v":13331.680052049836},null,{"$f":"H17-J17","v":15.646144325164641},{"$f":"L17*100/H17","v":0.11722306097092297},{"$f":"IF(OR(Calculations!$E$2=\"Orkney Health Board\",Calculations!$E$2=\"Orkney Islands Local Authority\"),N10-N13,IF(OR(Calculations!$E$2=\"Shetland Health Board\",Calculations!$E$2=\"Western Isles Health Board\",Calculations!$E$2=\"Shetland Islands Local Authority\",Calculations!$E$2=\"Eilean Siar Local Authority\"),N10-N12,N9-N13))","v":453.45748003952838},null,{"$f":"IF(OR(Calculations!$E$2=\"Orkney Health Board\",Calculations!$E$2=\"Orkney Islands Local Authority\"),P10-P13,IF(OR(Calculations!$E$2=\"Shetland Health Board\",Calculations!$E$2=\"Western Isles Health Board\",Calculations!$E$2=\"Shetland Islands Local Authority\",Calculations!$E$2=\"Eilean Siar Local Authority\"),P10-P12,P9-P13))","v":447.20532759462731},null,{"$f":"N17-P17","v":6.2521524449010712},{"$f":"R17*100/N17","v":1.3787736932591925},{"$f":"IF(OR(Calculations!$E$2=\"Orkney Health Board\",Calculations!$E$2=\"Orkney Islands Local Authority\"),T10-T13,IF(OR(Calculations!$E$2=\"Shetland Health Board\",Calculations!$E$2=\"Western Isles Health Board\",Calculations!$E$2=\"Shetland Islands Local Authority\",Calculations!$E$2=\"Eilean Siar Local Authority\"),T10-T12,T9-T13))","v":12490.367304169915},null,{"$f":"IF(OR(Calculations!$E$2=\"Orkney Health Board\",Calculations!$E$2=\"Orkney Islands Local Authority\"),V10-V13,IF(OR(Calculations!$E$2=\"Shetland Health Board\",Calculations!$E$2=\"Western Isles Health Board\",Calculations!$E$2=\"Shetland Islands Local Authority\",Calculations!$E$2=\"Eilean Siar Local Authority\"),V10-V12,V9-V13))","v":12314.008722810282},null,{"$f":"T17-V17","v":176.35858135963281},{"$f":"X17*100/T17","v":1.4119567268510624}]
[null,null,null,null,"Relative difference (Q1/Q5) =",null,null,{"$f":"IF(OR(Calculations!$E$2=\"Orkney Health Board\",Calculations!$E$2=\"Orkney Islands Local Authority\"),H10/H13,IF(OR(Calculations!$E$2=\"Shetland Health Board\",Calculations!$E$2=\"Western Isles Health Board\",Calculations!$E$2=\"Shetland Islands Local Authority\",Calculations!$E$2=\"Eilean Siar Local Authority\"),H10/H12,H9/H13))","v":1.8136171707492037},null,{"$f":"IF(OR(Calculations!$E$2=\"Orkney Health Board\",Calculations!$E$2=\"Orkney Islands Local Authority\"),J10/J13,IF(OR(Calculations!$E$2=\"Shetland Health Board\",Calculations!$E$2=\"Western Isles Health Board\",Calculations!$E$2=\"Shetland Islands Local Authority\",Calculations!$E$2=\"Eilean Siar Local Authority\"),J10/J12,J9/J13))","v":1.8136262172509725},null,{"$f":"H18-J18","v":-9.0465017688057259E-6},{"$f":"L18*100/H18","v":-4.9880988748406173E-4},{"$f":"IF(OR(Calculations!$E$2=\"Orkney Health Board\",Calculations!$E$2=\"Orkney Islands Local Authority\"),N10/N13,IF(OR(Calculations!$E$2=\"Shetland Health Board\",Calculations!$E$2=\"Western Isles Health Board\",Calculations!$E$2=\"Shetland Islands Local Authority\",Calculations!$E$2=\"Eilean Siar Local Authority\"),N10/N12,N9/N13))","v":3.0045167706586984},null,{"$f":"IF(OR(Calculations!$E$2=\"Orkney Health Board\",Calculations!$E$2=\"Orkney Islands Local Authority\"),P10/P13,IF(OR(Calculations!$E$2=\"Shetland Health Board\",Calculations!$E$2=\"Western Isles Health Board\",Calculations!$E$2=\"Shetland Islands Local Authority\",Calculations!$E$2=\"Eilean Siar Local Authority\"),P10/P12,P9/P13))","v":3.0100628574818273},null,{"$f":"N18-P18","v":-5.5460868231289595E-3},{"$f":"R18*100/N18","v":-0.18459164140105822},{"$f":"IF(OR(Calculations!$E$2=\"Orkney Health Board\",Calculations!$E$2=\"Orkney Islands Local Authority\"),T10/T13,IF(OR(Calculations!$E$2=\"Shetland Health Board\",Calculations!$E$2=\"Western Isles Health Board\",Calculations!$E$2=\"Shetland Islands Local Authority\",Calculations!$E$2=\"Eilean Siar Local Authority\"),T10/T12,T9/T13))","v":2.992305880957423},null,{"$f":"IF(OR(Calculations!$E$2=\"Orkney Health Board\",Calculations!$E$2=\"Orkney Islands Local Authority\"),V10/V13,IF(OR(Calculations!$E$2=\"Shetland Health Board\",Calculations!$E$2=\"Western Isles Health Board\",Calculations!$E$2=\"Shetland Islands Local Authority\",Calculations!$E$2=\"Eilean Siar Local Authority\"),V10/V12,V9/V13))","v":2.9978950060943972},null,{"$f":"T18-V18","v":-5.5891251369741823E-3},{"$f":"X18*100/T18","v":-0.18678321533044198}]

{"sheet":"Health outcome totals 2016","index":8,"n_rows":17,"n_cols":56,"rows_kept":17,"cut":false,"hidden":true,"merged":[]}
["Health outcome totals, 2016"]
[]
[null,null,"Aberdeen City Local Authority","Aberdeen City Region Deal","Aberdeenshire Local Authority","Angus Local Authority","Argyll & Bute Local Authority","Ayrshire & Arran Health Board","Borders Health Board","Clackmannanshire & Stirling IJB","Clackmannanshire Local Authority","Dumfries & Galloway Health Board","Dumfries & Galloway Local Authority","Dundee City Local Authority","East Ayrshire Local Authority","East Dunbartonshire Local Authority","East Lothian Local Authority","East Renfrewshire Local Authority","Edinburgh & SE Scotland City Region Deal","Edinburgh, City of Local Authority","Eilean Siar Local Authority","Falkirk Local Authority","Fife Health Board","Fife Local Authority","Forth Valley Health Board","Glasgow City Local Authority","Glasgow City Region Deal","Grampian Health Board","Greater Glasgow & Clyde Health Board","Highland Health Board","Highland Local Authority","Inverclyde Local Authority","Inverness & Highland City Region Deal","Lanarkshire Health Board","Lothian Health Board","Midlothian Local Authority","Moray Local Authority","North Ayrshire Local Authority","North Lanarkshire Local Authority","Orkney Health Board","Orkney Islands Local Authority","Perth & Kinross Local Authority","Renfrewshire Local Authority","Scotland","Scottish Borders Local Authority","Shetland Health Board","Shetland Islands Local Authority","South Ayrshire Local Authority","South Lanarkshire Local Authority","Stirling Local Authority","Tay Cities Region Deal ","Tayside Health Board","West Dunbartonshire Local Authority","West Lothian Local Authority","Western Isles Health Board",1]
[null,null,"S12000033","Aber_deal","S12000034","S12000041","S12000035","S08000015","S08000016","ClacksStirIJB","S12000005","S08000017","S12000006","S12000042","S12000008","S12000045","S12000010","S12000011","EdinSE_deal","S12000036","S12000013","S12000014","S08000018","S12000015","S08000019","S12000046","GClyde_deal","S08000020","S08000021","S08000022","S12000017","S12000018","Inver_deal","S08000023","S08000024","S12000019","S12000020","S12000021","S12000044","S08000025","S12000023","S12000024","S12000038","S00000001","S12000026","S08000026","S12000027","S12000028","S12000029","S12000030","Tay_deal","S08000027","S12000039","S12000040","S08000028",2]
[null,null,null,null,null,null,null,null,null,null,null,null,null,null,null,null,null,null,null,null,null,null,null,null,null,null,null,null,null,null,null,null,null,null,null,null,null,null,null,null,null,null,null,null,null,null,null,null,null,null,null,null,null,null,null,3]
[null,"All hospital admissions (16+)",41626,84145,42519,18091,21023,90768,25209,20471,7651,34490,34490,23727,28249,28833,18105,21705,243108,77192,7253,24369,73148,73148,44840,155175,465272,101100,299797,63264,42241,21552,42241,165475,144751,16294,16955,33649,88230,4636,4636,23268,47578,1125093,25209,5276,5276,28870,77245,12820,138234,65086,24954,33160,7253,4]
[null,"All hospital admissions (SIMD Q1, 16+)",4722,5748,1026,1291,1909,30005,1818,4205,2064,3291,3291,9713,9944,1787,691,1667,41988,13947,0,4489,16974,16974,8694,88379,175909,5919,127063,5479,3570,10387,3570,48846,23196,1769,171,14603,30793,0,0,1429,14646,283718,1818,0,0,5458,18053,2141,29407,12433,10197,6789,0,5]
[null,"All hospital admissions (SIMD Q1 and Q2, 16+)",15717,21194,5477,4707,5862,52925,6550,8550,4153,13054,13054,14796,17671,7386,6437,3905,98104,26095,1759,12454,34033,34033,21004,114868,279835,24321,181891,18570,12708,13017,12708,97944,57521,8106,3127,21482,57322,758,758,4360,25069,534382,6550,189,189,13772,40622,4397,57896,23863,17646,16883,1759,6]
[null,"All deaths (16+)",2126,4486,2360,1434,1110,4492,1277,1445,546,1858,1858,1690,1454,1113,1001,883,13129,4361,359,1734,4091,4091,3179,6321,19540,5465,12443,3507,2397,1006,2397,7097,7761,848,979,1593,3569,223,223,1617,2070,56725,1277,232,232,1445,3528,899,8832,4741,1050,1551,359,7]
[null,"All deaths (SIMD Q1, 16+)",202,270,68,101,108,1512,66,296,141,153,153,703,542,54,27,76,2183,793,0,306,909,909,602,3747,7764,282,5491,286,178,495,178,2273,1208,86,12,699,1432,0,0,79,684,13665,66,0,0,271,841,155,1792,883,435,302,0,8]
[null,"All deaths (SIMD Q1 and Q2, 16+)",759,1068,309,366,335,2716,302,581,291,699,699,1072,985,270,354,152,5276,1482,88,941,1903,1903,1522,4890,12279,1233,7808,1019,684,593,684,4471,3071,440,165,1017,2551,35,35,252,1137,26567,302,10,10,714,1920,290,3593,1690,766,795,88,9]
[null,"Premature deaths (16+)",811,1608,797,476,393,1746,418,519,224,616,616,687,565,356,362,248,4764,1514,133,665,1511,1511,1184,2759,7841,1940,4946,1277,884,382,884,2895,2835,327,332,659,1546,66,66,520,784,21313,418,63,63,522,1349,295,3194,1683,417,632,133,10]
[null,"Premature deaths (SIMD Q1, 16+)",107,137,30,43,47,690,33,124,56,77,77,368,228,26,18,35,1042,380,0,144,431,431,268,1758,3631,142,2540,142,95,222,95,1091,578,43,5,329,672,0,0,40,308,6443,33,0,0,133,419,68,882,451,191,137,0,11]
[null,"Premature deaths (SIMD Q1 and Q2, 16+)",364,493,129,150,141,1182,114,247,124,288,288,516,405,100,145,71,2222,649,42,398,801,801,645,2232,5428,569,3464,449,308,273,308,1964,1307,173,76,469,1151,10,10,112,460,11618,114,5,5,308,813,123,1579,778,328,340,42,12]
[null,"Years of Life Lost (16+)",27478.849984764998,54444.2399408817,26965.3899561166,16090.8199598789,12686.9499692916,56848.409873366298,13994.529939413,17303.359948515801,7163.6299738883899,21118.8499506712,21118.8499506712,23122.199981927799,17993.719950675899,12374.2699501514,12200.3899704217,9172.4499734640103,160653.58962154301,53280.459909200603,4023.4899880886001,22452.289941430001,50451.919886112199,50451.919886112199,39755.649889945897,89197.719813108401,256885.999366998,65559.529895305604,162663.369581103,41357.789903044701,28670.839933752999,12320.2399550676,28670.839933752999,94222.629785895304,96207.1397960186,10264.6499630212,11115.289954423901,21125.3999617099,49180.329858660698,2374.0299997329698,2374.0299997329698,18424.4199427366,25842.089928984598,708624.04837918223,13994.529939413,2409.2700059413901,2409.2700059413901,17729.289960980401,45042.299927234599,10139.7299746275,108089.35977065501,57637.439884543397,13756.599960327099,20461.639953374801,4023.4899880886001,13]
[null,"Years of Life Lost (SIMD Q1, 16+)",3295.92993164062,4366.02978515625,1070.09997558593,1397.83996582031,1470.84997558593,22073.8203125,964.219970703125,4154.080078125,1917.78002929687,2255.6298828125,2255.6298828125,11311.849609375,7246.14013671875,801.34997558593705,506.52999877929602,1143.19995117187,33291.8515625,12423.990234375,0,4594.18994140625,13844.83984375,13844.83984375,8748.26953125,55460.6796875,114187.4921875,4533.0498046875,80170.8125,4432.89990234375,2962.05004882812,6832.72021484375,2962.05004882812,34016.6796875,18482.7890625,1343.33996582031,167.02000427246,10474.1796875,20828.01953125,0,0,1313.01000976562,9733.16015625,203545.71069335938,964.219970703125,0,0,4353.5,13188.66015625,2236.30004882812,27867.5390625,14022.7001953125,6199.7001953125,4208.93017578125,0,14]
[null,"Years of Life Lost (SIMD Q1 and Q2, 16+)",11539.6896972656,15803.310058593701,4263.6199951171802,4814.6199951171802,4330.8499755859302,37723.6103515625,3783.65991210937,8139.5300292968705,4124.93994140625,9004.40966796875,9004.40966796875,16525.039550781199,12834.580078125,3274.6199951171802,4628.5700378417896,2192.68994140625,71927.140625,21426.830078125,1201.05004882812,13288.649902343701,25972.349609375,25972.349609375,21428.1796875,71527.9296875,173737.29296875,18071.849609375,110859.11328125,13808.199707031201,9477.3498535156195,8312.5902099609302,9477.3498535156195,62878.1796875,42171.12890625,5422.7598876953098,2268.54002380371,14767.939453125,36228.279296875,369.36999511718699,369.36999511718699,3594.6298828125,14987.880371093701,372328.97050476068,3783.65991210937,123.58000183105401,123.58000183105401,10121.08984375,26649.900390625,4014.59008789062,50906.638671875,24934.2900390625,10563.400390625,10692.970214843701,1201.05004882812,15]

{"sheet":"Lists","index":9,"n_rows":85,"n_cols":12,"rows_kept":85,"cut":false,"hidden":true,"merged":[]}
["AREA LOOK-UP",null,null,"AREA name","Equivalent to",null,"AREA CODE LOOK-UP",null,"INTERVENTIONS",null,"TARGETING OPTIONS"]
[1,"Scotland",null,"Aberdeen City IJB","Aberdeen City Local Authority",null,"Scotland","S00000001",1,"Employment",1,"Even distribution"]
[2,"Ayrshire & Arran Health Board",null,"Aberdeen City Local Authority","Aberdeen City Local Authority",null,"Ayrshire & Arran Health Board","S08000015",null,null,2,"Targeting to SIMD Q1"]
[3,"Borders Health Board",null,"Aberdeen City Region Deal","Aberdeen City Region Deal",null,"Borders Health Board","S08000016",null,null,3,"Targeting to SIMD Q1 & Q2"]
[4,"Dumfries & Galloway Health Board",null,"Aberdeenshire IJB","Aberdeenshire Local Authority",null,"Dumfries & Galloway Health Board","S08000017",null,null,4,"Proportionate to need"]
[5,"Fife Health Board",null,"Aberdeenshire Local Authority","Aberdeenshire Local Authority",null,"Fife Health Board","S08000018"]
[6,"Forth Valley Health Board",null,"Angus IJB","Angus Local Authority",null,"Forth Valley Health Board","S08000019"]
[7,"Grampian Health Board",null,"Angus Local Authority","Angus Local Authority",null,"Grampian Health Board","S08000020"]
[8,"Greater Glasgow & Clyde Health Board",null,"Argyll & Bute IJB","Argyll & Bute Local Authority",null,"Greater Glasgow & Clyde Health Board","S08000021"]
[9,"Highland Health Board",null,"Argyll & Bute Local Authority","Argyll & Bute Local Authority",null,"Highland Health Board","S08000022"]
[10,"Lanarkshire Health Board",null,"Ayrshire & Arran Health Board","Ayrshire & Arran Health Board",null,"Lanarkshire Health Board","S08000023"]
[11,"Lothian Health Board",null,"Borders Health Board","Borders Health Board",null,"Lothian Health Board","S08000024"]
[12,"Orkney Health Board",null,"Clackmannanshire & Stirling IJB","Clackmannanshire & Stirling IJB",null,"Orkney Health Board","S08000025"]
[13,"Shetland Health Board",null,"Clackmannanshire Local Authority","Clackmannanshire Local Authority",null,"Shetland Health Board","S08000026"]
[14,"Tayside Health Board",null,"Dumfries & Galloway Health Board","Dumfries & Galloway Health Board",null,"Tayside Health Board","S08000027"]
[15,"Western Isles Health Board",null,"Dumfries & Galloway IJB","Dumfries & Galloway Local Authority",null,"Western Isles Health Board","S08000028"]
[16,"Aberdeen City Local Authority",null,"Dumfries & Galloway Local Authority","Dumfries & Galloway Local Authority",null,"Clackmannanshire Local Authority","S12000005"]
[17,"Aberdeenshire Local Authority",null,"Dundee City IJB","Dundee City Local Authority",null,"Dumfries & Galloway Local Authority","S12000006"]
[18,"Angus Local Authority",null,"Dundee City Local Authority","Dundee City Local Authority",null,"East Ayrshire Local Authority","S12000008"]
[19,"Argyll & Bute Local Authority",null,"East Ayrshire IJB","East Ayrshire Local Authority",null,"East Lothian Local Authority","S12000010"]
[20,"Clackmannanshire Local Authority",null,"East Ayrshire Local Authority","East Ayrshire Local Authority",null,"East Renfrewshire Local Authority","S12000011"]
[21,"Dumfries & Galloway Local Authority",null,"East Dunbartonshire IJB","East Dunbartonshire Local Authority",null,"Eilean Siar Local Authority","S12000013"]
[22,"Dundee City Local Authority",null,"East Dunbartonshire Local Authority","East Dunbartonshire Local Authority",null,"Falkirk Local Authority","S12000014"]
[23,"East Ayrshire Local Authority",null,"East Lothian IJB","East Lothian Local Authority",null,"Fife Local Authority","S12000015"]
[24,"East Dunbartonshire Local Authority",null,"East Lothian Local Authority","East Lothian Local Authority",null,"Highland Local Authority","S12000017"]
[25,"East Lothian Local Authority",null,"East Renfrewshire IJB","East Renfrewshire Local Authority",null,"Inverclyde Local Authority","S12000018"]
[26,"East Renfrewshire Local Authority",null,"East Renfrewshire Local Authority","East Renfrewshire Local Authority",null,"Midlothian Local Authority","S12000019"]
[27,"Edinburgh, City of Local Authority",null,"Edinburgh & SE Scotland City Region Deal","Edinburgh & SE Scotland City Region Deal",null,"Moray Local Authority","S12000020"]
[28,"Eilean Siar Local Authority",null,"Edinburgh, City of Local Authority","Edinburgh, City of Local Authority",null,"North Ayrshire Local Authority","S12000021"]
[29,"Falkirk Local Authority",null,"Edinburgh, City of, IJB","Edinburgh, City of Local Authority",null,"Orkney Islands Local Authority","S12000023"]
[30,"Fife Local Authority",null,"Eilean Siar IJB","Eilean Siar Local Authority",null,"Perth & Kinross Local Authority","S12000024"]
[31,"Glasgow City Local Authority",null,"Eilean Siar Local Authority","Eilean Siar Local Authority",null,"Scottish Borders Local Authority","S12000026"]
[32,"Highland Local Authority",null,"Falkirk IJB","Falkirk Local Authority",null,"Shetland Islands Local Authority","S12000027"]
[33,"Inverclyde Local Authority",null,"Falkirk Local Authority","Falkirk Local Authority",null,"South Ayrshire Local Authority","S12000028"]
[34,"Midlothian Local Authority",null,"Fife Health Board","Fife Health Board",null,"South Lanarkshire Local Authority","S12000029"]
[35,"Moray Local Authority",null,"Fife IJB","Fife Local Authority",null,"Stirling Local Authority","S12000030"]
[36,"North Ayrshire Local Authority",null,"Fife Local Authority","Fife Local Authority",null,"Aberdeen City Local Authority","S12000033"]
[37,"North Lanarkshire Local Authority",null,"Forth Valley Health Board","Forth Valley Health Board",null,"Aberdeenshire Local Authority","S12000034"]
[38,"Orkney Islands Local Authority",null,"Glasgow City IJB","Glasgow City Local Authority",null,"Argyll & Bute Local Authority","S12000035"]
[39,"Perth & Kinross Local Authority",null,"Glasgow City Local Authority","Glasgow City Local Authority",null,"Edinburgh, City of Local Authority","S12000036"]
[40,"Renfrewshire Local Authority",null,"Glasgow City Region Deal","Glasgow City Region Deal",null,"Renfrewshire Local Authority","S12000038"]
[41,"Scottish Borders Local Authority",null,"Grampian Health Board","Grampian Health Board",null,"West Dunbartonshire Local Authority","S12000039"]
[42,"Shetland Islands Local Authority",null,"Greater Glasgow & Clyde Health Board","Greater Glasgow & Clyde Health Board",null,"West Lothian Local Authority","S12000040"]
[43,"South Ayrshire Local Authority",null,"Highland Health Board","Highland Health Board",null,"Angus Local Authority","S12000041"]
[44,"South Lanarkshire Local Authority",null,"Highland Local Authority","Highland Local Authority",null,"Dundee City Local Authority","S12000042"]
[45,"Stirling Local Authority",null,"Highland Partnership","Highland Local Authority",null,"North Lanarkshire Local Authority","S12000044"]
[46,"West Dunbartonshire Local Authority",null,"Inverclyde IJB","Inverclyde Local Authority",null,"East Dunbartonshire Local Authority","S12000045"]
[47,"West Lothian Local Authority",null,"Inverclyde Local Authority","Inverclyde Local Authority",null,"Glasgow City Local Authority","S12000046"]
[48,"Aberdeen City Region Deal",null,"Inverness & Highland City Region Deal","Inverness & Highland City Region Deal"]
[49,"Edinburgh & SE Scotland City Region Deal",null,"Lanarkshire Health Board","Lanarkshire Health Board"]
[50,"Glasgow City Region Deal",null,"Lothian Health Board","Lothian Health Board"]
[51,"Inverness & Highland City Region Deal",null,"Midlothian IJB","Midlothian Local Authority"]
[52,"Stirling & Clackmannanshire City Region Deal",null,"Midlothian Local Authority","Midlothian Local Authority"]
[53,"Tay Cities Region Deal ",null,"Moray IJB","Moray Local Authority"]
[54,"Aberdeen City IJB",null,"Moray Local Authority","Moray Local Authority"]
[55,"Aberdeenshire IJB",null,"North Ayrshire IJB","North Ayrshire Local Authority"]
[56,"Angus IJB",null,"North Ayrshire Local Authority","North Ayrshire Local Authority"]
[57,"Argyll & Bute IJB",null,"North Lanarkshire IJB","North Lanarkshire Local Authority"]
[58,"Clackmannanshire & Stirling IJB",null,"North Lanarkshire Local Authority","North Lanarkshire Local Authority"]
[59,"Dumfries & Galloway IJB",null,"Orkney Health Board","Orkney Health Board"]
[60,"Dundee City IJB",null,"Orkney Islands IJB","Orkney Islands Local Authority"]
[61,"East Ayrshire IJB",null,"Orkney Islands Local Authority","Orkney Islands Local Authority"]
[62,"East Dunbartonshire IJB",null,"Perth & Kinross IJB","Perth & Kinross Local Authority"]
[63,"East Lothian IJB",null,"Perth & Kinross Local Authority","Perth & Kinross Local Authority"]
[64,"East Renfrewshire IJB",null,"Renfrewshire IJB","Renfrewshire Local Authority"]
[65,"Edinburgh, City of, IJB",null,"Renfrewshire Local Authority","Renfrewshire Local Authority"]
[66,"Eilean Siar IJB",null,"Scotland","Scotland"]
[67,"Falkirk IJB",null,"Scottish Borders IJB","Scottish Borders Local Authority"]
[68,"Fife IJB",null,"Scottish Borders Local Authority","Scottish Borders Local Authority"]
[69,"Glasgow City IJB",null,"Shetland Health Board","Shetland Health Board"]
[70,"Highland Partnership",null,"Shetland Islands IJB","Shetland Islands Local Authority"]
[71,"Inverclyde IJB",null,"Shetland Islands Local Authority","Shetland Islands Local Authority"]
[72,"Midlothian IJB",null,"South Ayrshire IJB","South Ayrshire Local Authority"]
[73,"Moray IJB",null,"South Ayrshire Local Authority","South Ayrshire Local Authority"]
[74,"North Ayrshire IJB",null,"South Lanarkshire IJB","South Lanarkshire Local Authority"]
[75,"North Lanarkshire IJB",null,"South Lanarkshire Local Authority","South Lanarkshire Local Authority"]
[76,"Orkney Islands IJB",null,"Stirling & Clackmannanshire City Region Deal","Clackmannanshire & Stirling IJB"]
[77,"Perth & Kinross IJB",null,"Stirling Local Authority","Stirling Local Authority"]
[78,"Renfrewshire IJB",null,"Tay Cities Region Deal ","Tay Cities Region Deal "]
[79,"Scottish Borders IJB",null,"Tayside Health Board","Tayside Health Board"]
[80,"Shetland Islands IJB",null,"West Dunbartonshire IJB","West Dunbartonshire Local Authority"]
[81,"South Ayrshire IJB",null,"West Dunbartonshire Local Authority","West Dunbartonshire Local Authority"]
[82,"South Lanarkshire IJB",null,"West Lothian IJB","West Lothian Local Authority"]
[83,"West Dunbartonshire IJB",null,"West Lothian Local Authority","West Lothian Local Authority"]
[84,"West Lothian IJB",null,"Western Isles Health Board","Western Isles Health Board"]

{"sheet":"Demographic data","index":10,"n_rows":41,"n_cols":4,"rows_kept":41,"cut":false,"hidden":true,"merged":[]}
["Demographic data"]
[]
["sub group","European Standard Population (ESP 2013)","mean age (2016)","life expectancy (2014-2016)"]
["Female 0-4",5000,2.0384009999999999,81.468401]
["Female 5-9",5500,6.9792800000000002,81.439279999999997]
["Female 10-15",6600,12.47831,81.948309999999992]
["Female 16-19",4400,17.570049999999998,81.100049999999996]
["Female 20-24",6000,22.077059999999999,81.667060000000006]
["Female 25-29",6000,26.975190000000001,81.645189999999999]
["Female 30-34",6500,31.9999,81.799899999999994]
["Female 35-39",7000,36.918120000000002,81.898120000000006]
["Female 40-44",7000,42.077440000000003,82.30744]
["Female 45-49",7000,47.025770000000001,82.585769999999997]
["Female 50-54",7000,51.990830000000003,82.980829999999997]
["Female 55-59",6500,56.953040000000001,83.473039999999997]
["Female 60-64",6000,61.947389999999999,84.167389999999997]
["Female 65-69",5500,67.063929999999999,85.193929999999995]
["Female 70-74",5000,71.938159999999996,86.248159999999999]
["Female 75-79",4000,76.942830000000001,87.812830000000005]
["Female 80-84",2500,81.856710000000007,89.736710000000002]
["Female 85-89",1500,86.730819999999994,92.220819999999989]
["Female 90+",1000,92.779340000000005,96.279340000000005]
["Male 0-4",5000,2.0320819999999999,77.402082000000007]
["Male 5-9",5500,6.9784759999999997,77.398476000000002]
["Male 10-15",6600,12.47114,77.921140000000008]
["Male 16-19",4400,17.556319999999999,77.07632000000001]
["Male 20-24",6000,22.05463,77.704629999999995]
["Male 25-29",6000,26.959759999999999,77.789760000000001]
["Male 30-34",6500,31.98152,78.061520000000002]
["Male 35-39",7000,36.926009999999998,78.336009999999987]
["Male 40-44",7000,42.067700000000002,78.907700000000006]
["Male 45-49",7000,47.038150000000002,79.418149999999997]
["Male 50-54",7000,51.998649999999998,79.988649999999993]
["Male 55-59",6500,56.950870000000002,80.660870000000003]
["Male 60-64",6000,61.942990000000002,81.612989999999996]
["Male 65-69",5500,67.054419999999993,82.954419999999999]
["Male 70-74",5000,71.891099999999994,84.341099999999997]
["Male 75-79",4000,76.907700000000006,86.357700000000008]
["Male 80-84",2500,81.797089999999997,88.627089999999995]
["Male 85-89",1500,86.630750000000006,91.420750000000012]
["Male 90+",1000,92.215479999999999,95.515479999999997]

{"sheet":"Prevalence Rates","index":11,"n_rows":254,"n_cols":56,"rows_kept":254,"cut":false,"hidden":true,"merged":[]}
["Prevalence of unemployment"]
[]
["SIMD","group","Aberdeen City Local Authority","Aberdeen City Region Deal","Aberdeenshire Local Authority","Angus Local Authority","Argyll & Bute Local Authority","Ayrshire & Arran Health Board","Borders Health Board","Clackmannanshire & Stirling IJB","Clackmannanshire Local Authority","Dumfries & Galloway Health Board","Dumfries & Galloway Local Authority","Dundee City Local Authority","East Ayrshire Local Authority","East Dunbartonshire Local Authority","East Lothian Local Authority","East Renfrewshire Local Authority","Edinburgh & SE Scotland City Region Deal","Edinburgh, City of Local Authority","Eilean Siar Local Authority","Falkirk Local Authority","Fife Health Board","Fife Local Authority","Forth Valley Health Board","Glasgow City Local Authority","Glasgow City Region Deal","Grampian Health Board","Greater Glasgow & Clyde Health Board","Highland Health Board","Highland Local Authority","Inverclyde Local Authority","Inverness & Highland City Region Deal","Lanarkshire Health Board","Lothian Health Board","Midlothian Local Authority","Moray Local Authority","North Ayrshire Local Authority","North Lanarkshire Local Authority","Orkney Health Board","Orkney Islands Local Authority","Perth & Kinross Local Authority","Renfrewshire Local Authority","Scotland","Scottish Borders Local Authority","Shetland Health Board","Shetland Islands Local Authority","South Ayrshire Local Authority","South Lanarkshire Local Authority","Stirling Local Authority","Tay Cities Region Deal ","Tayside Health Board","West Dunbartonshire Local Authority","West Lothian Local Authority","Western Isles Health Board",1]
[null,null,null,null,null,null,null,null,null,null,null,null,null,null,null,null,null,null,null,null,null,null,null,null,null,null,null,null,null,null,null,null,null,null,null,null,null,null,null,null,null,null,null,null,null,null,null,null,null,null,null,null,null,null,null,2]
["All quintiles","16+ Males and Females",null,null,null,null,null,null,null,null,null,null,null,null,null,null,null,null,null,null,null,null,null,null,null,null,null,null,null,null,null,null,null,null,null,null,null,null,null,null,null,null,null,null,null,null,null,null,null,null,null,null,null,null,null,3]
["Q1 and Q2","16+ Males and Females",null,null,null,null,null,null,null,null,null,null,null,null,null,null,null,null,null,null,null,null,null,null,null,null,null,null,null,null,null,null,null,null,null,null,null,null,null,null,null,null,null,null,null,null,null,null,null,null,null,null,null,null,null,4]
["SIMD Q1 (most deprived)","16+ Males and Females",null,null,null,null,null,null,null,null,null,null,null,null,null,null,null,null,null,null,null,null,null,null,null,null,null,null,null,null,null,null,null,null,null,null,null,null,null,null,null,null,null,null,null,null,null,null,null,null,null,null,null,null,null,5]
["SIMD Q2",null,null,null,null,null,null,null,null,null,null,null,null,null,null,null,null,null,null,null,null,null,null,null,null,null,null,null,null,null,null,null,null,null,null,null,null,null,null,null,null,null,null,null,null,null,null,null,null,null,null,null,null,null,null,6]
["SIMD Q3",null,null,null,null,null,null,null,null,null,null,null,null,null,null,null,null,null,null,null,null,null,null,null,null,null,null,null,null,null,null,null,null,null,null,null,null,null,null,null,null,null,null,null,null,null,null,null,null,null,null,null,null,null,null,7]
["SIMD Q4",null,null,null,null,null,null,null,null,null,null,null,null,null,null,null,null,null,null,null,null,null,null,null,null,null,null,null,null,null,null,null,null,null,null,null,null,null,null,null,null,null,null,null,null,null,null,null,null,null,null,null,null,null,null,8]
["SIMD Q5 (least deprived)",null,null,null,null,null,null,null,null,null,null,null,null,null,null,null,null,null,null,null,null,null,null,null,null,null,null,null,null,null,null,null,null,null,null,null,null,null,null,null,null,null,null,null,null,null,null,null,null,null,null,null,null,null,null,9]
["SIMD Q1 (most deprived)","16+ Females",null,null,null,null,null,null,null,null,null,null,null,null,null,null,null,null,null,null,null,null,null,null,null,null,null,null,null,null,null,null,null,null,null,null,null,null,null,null,null,null,null,null,null,null,null,null,null,null,null,null,null,null,null,10]
["SIMD Q2",null,null,null,null,null,null,null,null,null,null,null,null,null,null,null,null,null,null,null,null,null,null,null,null,null,null,null,null,null,null,null,null,null,null,null,null,null,null,null,null,null,null,null,null,null,null,null,null,null,null,null,null,null,null,11]
["SIMD Q3",null,null,null,null,null,null,null,null,null,null,null,null,null,null,null,null,null,null,null,null,null,null,null,null,null,null,null,null,null,null,null,null,null,null,null,null,null,null,null,null,null,null,null,null,null,null,null,null,null,null,null,null,null,null,12]
["SIMD Q4",null,null,null,null,null,null,null,null,null,null,null,null,null,null,null,null,null,null,null,null,null,null,null,null,null,null,null,null,null,null,null,null,null,null,null,null,null,null,null,null,null,null,null,null,null,null,null,null,null,null,null,null,null,null,13]
["SIMD Q5 (least deprived)",null,null,null,null,null,null,null,null,null,null,null,null,null,null,null,null,null,null,null,null,null,null,null,null,null,null,null,null,null,null,null,null,null,null,null,null,null,null,null,null,null,null,null,null,null,null,null,null,null,null,null,null,null,null,14]
["SIMD Q1 (most deprived)","16+ Males",null,null,null,null,null,null,null,null,null,null,null,null,null,null,null,null,null,null,null,null,null,null,null,null,null,null,null,null,null,null,null,null,null,null,null,null,null,null,null,null,null,null,null,null,null,null,null,null,null,null,null,null,null,15]
["SIMD Q2",null,null,null,null,null,null,null,null,null,null,null,null,null,null,null,null,null,null,null,null,null,null,null,null,null,null,null,null,null,null,null,null,null,null,null,null,null,null,null,null,null,null,null,null,null,null,null,null,null,null,null,null,null,null,16]
["SIMD Q3",null,null,null,null,null,null,null,null,null,null,null,null,null,null,null,null,null,null,null,null,null,null,null,null,null,null,null,null,null,null,null,null,null,null,null,null,null,null,null,null,null,null,null,null,null,null,null,null,null,null,null,null,null,null,17]
["SIMD Q4",null,null,null,null,null,null,null,null,null,null,null,null,null,null,null,null,null,null,null,null,null,null,null,null,null,null,null,null,null,null,null,null,null,null,null,null,null,null,null,null,null,null,null,null,null,null,null,null,null,null,null,null,null,null,18]
["SIMD Q5 (least deprived)",null,null,null,null,null,null,null,null,null,null,null,null,null,null,null,null,null,null,null,null,null,null,null,null,null,null,null,null,null,null,null,null,null,null,null,null,null,null,null,null,null,null,null,null,null,null,null,null,null,null,null,null,null,null,19]
["All quintiles","Female 0-4",null,null,null,null,null,null,null,null,null,null,null,null,null,null,null,null,null,null,null,null,null,null,null,null,null,null,null,null,null,null,null,null,null,null,null,null,null,null,null,null,null,null,null,null,null,null,null,null,null,null,null,null,null,20]
[null,"Female 5-9",null,null,null,null,null,null,null,null,null,null,null,null,null,null,null,null,null,null,null,null,null,null,null,null,null,null,null,null,null,null,null,null,null,null,null,null,null,null,null,null,null,null,null,null,null,null,null,null,null,null,null,null,null,21]
[null,"Female 10-15",null,null,null,null,null,null,null,null,null,null,null,null,null,null,null,null,null,null,null,null,null,null,null,null,null,null,null,null,null,null,null,null,null,null,null,null,null,null,null,null,null,null,null,null,null,null,null,null,null,null,null,null,null,22]
[null,"Female 16-19",null,null,null,null,null,null,null,null,null,null,null,null,null,null,null,null,null,null,null,null,null,null,null,null,null,null,null,null,null,null,null,null,null,null,null,null,null,null,null,null,null,null,null,null,null,null,null,null,null,null,null,null,null,23]
[null,"Female 20-24",null,null,null,null,null,null,null,null,null,null,null,null,null,null,null,null,null,null,null,null,null,null,null,null,null,null,null,null,null,null,null,null,null,null,null,null,null,null,null,null,null,null,null,null,null,null,null,null,null,null,null,null,null,24]
[null,"Female 25-29",null,null,null,null,null,null,null,null,null,null,null,null,null,null,null,null,null,null,null,null,null,null,null,null,null,null,null,null,null,null,null,null,null,null,null,null,null,null,null,null,null,null,null,null,null,null,null,null,null,null,null,null,null,25]
[null,"Female 30-34",null,null,null,null,null,null,null,null,null,null,null,null,null,null,null,null,null,null,null,null,null,null,null,null,null,null,null,null,null,null,null,null,null,null,null,null,null,null,null,null,null,null,null,null,null,null,null,null,null,null,null,null,null,26]
[null,"Female 35-39",null,null,null,null,null,null,null,null,null,null,null,null,null,null,null,null,null,null,null,null,null,null,null,null,null,null,null,null,null,null,null,null,null,null,null,null,null,null,null,null,null,null,null,null,null,null,null,null,null,null,null,null,null,27]
[null,"Female 40-44",null,null,null,null,null,null,null,null,null,null,null,null,null,null,null,null,null,null,null,null,null,null,null,null,null,null,null,null,null,null,null,null,null,null,null,null,null,null,null,null,null,null,null,null,null,null,null,null,null,null,null,null,null,28]
[null,"Female 45-49",null,null,null,null,null,null,null,null,null,null,null,null,null,null,null,null,null,null,null,null,null,null,null,null,null,null,null,null,null,null,null,null,null,null,null,null,null,null,null,null,null,null,null,null,null,null,null,null,null,null,null,null,null,29]
[null,"Female 50-54",null,null,null,null,null,null,null,null,null,null,null,null,null,null,null,null,null,null,null,null,null,null,null,null,null,null,null,null,null,null,null,null,null,null,null,null,null,null,null,null,null,null,null,null,null,null,null,null,null,null,null,null,null,30]
[null,"Female 55-59",null,null,null,null,null,null,null,null,null,null,null,null,null,null,null,null,null,null,null,null,null,null,null,null,null,null,null,null,null,null,null,null,null,null,null,null,null,null,null,null,null,null,null,null,null,null,null,null,null,null,null,null,null,31]
[null,"Female 60-64",null,null,null,null,null,null,null,null,null,null,null,null,null,null,null,null,null,null,null,null,null,null,null,null,null,null,null,null,null,null,null,null,null,null,null,null,null,null,null,null,null,null,null,null,null,null,null,null,null,null,null,null,null,32]
[null,"Female 65-69",null,null,null,null,null,null,null,null,null,null,null,null,null,null,null,null,null,null,null,null,null,null,null,null,null,null,null,null,null,null,null,null,null,null,null,null,null,null,null,null,null,null,null,null,null,null,null,null,null,null,null,null,null,33]
[null,"Female 70-74",null,null,null,null,null,null,null,null,null,null,null,null,null,null,null,null,null,null,null,null,null,null,null,null,null,null,null,null,null,null,null,null,null,null,null,null,null,null,null,null,null,null,null,null,null,null,null,null,null,null,null,null,null,34]
[null,"Female 75-79",null,null,null,null,null,null,null,null,null,null,null,null,null,null,null,null,null,null,null,null,null,null,null,null,null,null,null,null,null,null,null,null,null,null,null,null,null,null,null,null,null,null,null,null,null,null,null,null,null,null,null,null,null,35]
[null,"Female 80-84",null,null,null,null,null,null,null,null,null,null,null,null,null,null,null,null,null,null,null,null,null,null,null,null,null,null,null,null,null,null,null,null,null,null,null,null,null,null,null,null,null,null,null,null,null,null,null,null,null,null,null,null,null,36]
[null,"Female 85-89",null,null,null,null,null,null,null,null,null,null,null,null,null,null,null,null,null,null,null,null,null,null,null,null,null,null,null,null,null,null,null,null,null,null,null,null,null,null,null,null,null,null,null,null,null,null,null,null,null,null,null,null,null,37]
[null,"Female 90+",null,null,null,null,null,null,null,null,null,null,null,null,null,null,null,null,null,null,null,null,null,null,null,null,null,null,null,null,null,null,null,null,null,null,null,null,null,null,null,null,null,null,null,null,null,null,null,null,null,null,null,null,null,38]
[null,"Male 0-4",null,null,null,null,null,null,null,null,null,null,null,null,null,null,null,null,null,null,null,null,null,null,null,null,null,null,null,null,null,null,null,null,null,null,null,null,null,null,null,null,null,null,null,null,null,null,null,null,null,null,null,null,null,39]
[null,"Male 5-9",null,null,null,null,null,null,null,null,null,null,null,null,null,null,null,null,null,null,null,null,null,null,null,null,null,null,null,null,null,null,null,null,null,null,null,null,null,null,null,null,null,null,null,null,null,null,null,null,null,null,null,null,null,40]
[null,"Male 10-15",null,null,null,null,null,null,null,null,null,null,null,null,null,null,null,null,null,null,null,null,null,null,null,null,null,null,null,null,null,null,null,null,null,null,null,null,null,null,null,null,null,null,null,null,null,null,null,null,null,null,null,null,null,41]
[null,"Male 16-19",null,null,null,null,null,null,null,null,null,null,null,null,null,null,null,null,null,null,null,null,null,null,null,null,null,null,null,null,null,null,null,null,null,null,null,null,null,null,null,null,null,null,null,null,null,null,null,null,null,null,null,null,null,42]
[null,"Male 20-24",null,null,null,null,null,null,null,null,null,null,null,null,null,null,null,null,null,null,null,null,null,null,null,null,null,null,null,null,null,null,null,null,null,null,null,null,null,null,null,null,null,null,null,null,null,null,null,null,null,null,null,null,null,43]
[null,"Male 25-29",null,null,null,null,null,null,null,null,null,null,null,null,null,null,null,null,null,null,null,null,null,null,null,null,null,null,null,null,null,null,null,null,null,null,null,null,null,null,null,null,null,null,null,null,null,null,null,null,null,null,null,null,null,44]
[null,"Male 30-34",null,null,null,null,null,null,null,null,null,null,null,null,null,null,null,null,null,null,null,null,null,null,null,null,null,null,null,null,null,null,null,null,null,null,null,null,null,null,null,null,null,null,null,null,null,null,null,null,null,null,null,null,null,45]
[null,"Male 35-39",null,null,null,null,null,null,null,null,null,null,null,null,null,null,null,null,null,null,null,null,null,null,null,null,null,null,null,null,null,null,null,null,null,null,null,null,null,null,null,null,null,null,null,null,null,null,null,null,null,null,null,null,null,46]
[null,"Male 40-44",null,null,null,null,null,null,null,null,null,null,null,null,null,null,null,null,null,null,null,null,null,null,null,null,null,null,null,null,null,null,null,null,null,null,null,null,null,null,null,null,null,null,null,null,null,null,null,null,null,null,null,null,null,47]
[null,"Male 45-49",null,null,null,null,null,null,null,null,null,null,null,null,null,null,null,null,null,null,null,null,null,null,null,null,null,null,null,null,null,null,null,null,null,null,null,null,null,null,null,null,null,null,null,null,null,null,null,null,null,null,null,null,null,48]
[null,"Male 50-54",null,null,null,null,null,null,null,null,null,null,null,null,null,null,null,null,null,null,null,null,null,null,null,null,null,null,null,null,null,null,null,null,null,null,null,null,null,null,null,null,null,null,null,null,null,null,null,null,null,null,null,null,null,49]
[null,"Male 55-59",null,null,null,null,null,null,null,null,null,null,null,null,null,null,null,null,null,null,null,null,null,null,null,null,null,null,null,null,null,null,null,null,null,null,null,null,null,null,null,null,null,null,null,null,null,null,null,null,null,null,null,null,null,50]
[null,"Male 60-64",null,null,null,null,null,null,null,null,null,null,null,null,null,null,null,null,null,null,null,null,null,null,null,null,null,null,null,null,null,null,null,null,null,null,null,null,null,null,null,null,null,null,null,null,null,null,null,null,null,null,null,null,null,51]
[null,"Male 65-69",null,null,null,null,null,null,null,null,null,null,null,null,null,null,null,null,null,null,null,null,null,null,null,null,null,null,null,null,null,null,null,null,null,null,null,null,null,null,null,null,null,null,null,null,null,null,null,null,null,null,null,null,null,52]
[null,"Male 70-74",null,null,null,null,null,null,null,null,null,null,null,null,null,null,null,null,null,null,null,null,null,null,null,null,null,null,null,null,null,null,null,null,null,null,null,null,null,null,null,null,null,null,null,null,null,null,null,null,null,null,null,null,null,53]
[null,"Male 75-79",null,null,null,null,null,null,null,null,null,null,null,null,null,null,null,null,null,null,null,null,null,null,null,null,null,null,null,null,null,null,null,null,null,null,null,null,null,null,null,null,null,null,null,null,null,null,null,null,null,null,null,null,null,54]
[null,"Male 80-84",null,null,null,null,null,null,null,null,null,null,null,null,null,null,null,null,null,null,null,null,null,null,null,null,null,null,null,null,null,null,null,null,null,null,null,null,null,null,null,null,null,null,null,null,null,null,null,null,null,null,null,null,null,55]
[null,"Male 85-89",null,null,null,null,null,null,null,null,null,null,null,null,null,null,null,null,null,null,null,null,null,null,null,null,null,null,null,null,null,null,null,null,null,null,null,null,null,null,null,null,null,null,null,null,null,null,null,null,null,null,null,null,null,56]
[null,"Male 90+",null,null,null,null,null,null,null,null,null,null,null,null,null,null,null,null,null,null,null,null,null,null,null,null,null,null,null,null,null,null,null,null,null,null,null,null,null,null,null,null,null,null,null,null,null,null,null,null,null,null,null,null,null,57]
["SIMD Q1 (most deprived)","Female 0-4",null,null,null,null,null,null,null,null,null,null,null,null,null,null,null,null,null,null,null,null,null,null,null,null,null,null,null,null,null,null,null,null,null,null,null,null,null,null,null,null,null,null,null,null,null,null,null,null,null,null,null,null,null,58]
[null,"Female 5-9",null,null,null,null,null,null,null,null,null,null,null,null,null,null,null,null,null,null,null,null,null,null,null,null,null,null,null,null,null,null,null,null,null,null,null,null,null,null,null,null,null,null,null,null,null,null,null,null,null,null,null,null,null,59]
[null,"Female 10-15",null,null,null,null,null,null,null,null,null,null,null,null,null,null,null,null,null,null,null,null,null,null,null,null,null,null,null,null,null,null,null,null,null,null,null,null,null,null,null,null,null,null,null,null,null,null,null,null,null,null,null,null,null,60]
[null,"Female 16-19",{"$f":"$AR63*C$253","v":0.25416039322444578},0.25274296382928912,0.25140343377962493,0.25665520147590415,0.20814846983885665,0.34184237137321177,0.3013929196470021,0.24525625143962282,0.35248239727660602,0.31352714521869335,{"$f":"$AR63*M$253","v":0.31352714521869335},0.22567160690671473,0.35377192895678872,0.22830581710945791,0.27677153367583923,0.20187747545274595,0.26783217916406721,0.25364703955892315,0.21300784995564881,0.27303795249444129,{"$f":"$AR63*W$253","v":0.28330912624936461},0.28330912624936461,0.25989952303726677,0.30892056443445598,0.26625151281764253,0.25630625410649965,0.27357727585358299,0.21321451725292404,0.21495844822618768,0.26123654731458751,{"$f":"$AR63*AG$253","v":0.21495844822618768},0.25294595442838191,0.25766561655265113,0.25356550538273392,0.2766607683917584,0.37618745772841522,0.25224927839727779,0.22048968222473062,0.22048968222473062,0.18978055793631524,0.20803656205937338,0.2642089093701997,{"$f":"$AR63*AS$253","v":0.3013929196470021},0.17815647914195828,0.17815647914195828,0.28712738520916475,0.2537203445675954,0.18633676516059797,0.251157971961736,0.2214552517313961,0.27548448837359241,0.26078148202282425,0.21300784995564881,61]
[null,"Female 20-24",0.25416039322444578,0.25274296382928912,0.25140343377962493,0.25665520147590415,0.20814846983885665,0.34184237137321177,0.3013929196470021,0.24525625143962282,0.35248239727660602,0.31352714521869335,0.31352714521869335,0.22567160690671473,0.35377192895678872,0.22830581710945791,0.27677153367583923,0.20187747545274595,0.26783217916406721,0.25364703955892315,0.21300784995564881,0.27303795249444129,0.28330912624936461,0.28330912624936461,0.25989952303726677,0.30892056443445598,0.26625151281764253,0.25630625410649965,0.27357727585358299,0.21321451725292404,0.21495844822618768,0.26123654731458751,0.21495844822618768,0.25294595442838191,0.25766561655265113,0.25356550538273392,0.2766607683917584,0.37618745772841522,0.25224927839727779,0.22048968222473062,0.22048968222473062,0.18978055793631524,0.20803656205937338,0.2642089093701997,0.3013929196470021,0.17815647914195828,0.17815647914195828,0.28712738520916475,0.2537203445675954,0.18633676516059797,0.251157971961736,0.2214552517313961,0.27548448837359241,0.26078148202282425,0.21300784995564881,62]
[null,"Female 25-29",0.37468576753079075,0.3725961790858438,0.37062143062711855,0.37836363855027078,0.30685453462081891,0.50394740764902968,0.4443164255201556,0.36155919357281308,0.51963303915747716,0.46220482097013393,0.46220482097013393,0.33268731674127933,0.52153407952499753,0.33657069549723156,0.40801933460351431,0.29760977262257077,0.39484084969491062,0.37392897647558004,0.31401828089019251,0.40251525226856444,0.41765711828860563,0.41765711828860563,0.38314644951036536,0.45541375397917938,0.39251061572058243,0.37784921688419426,0.40331032810317269,0.31432295186555842,0.3168938721688685,0.38511750393469824,0.3168938721688685,0.37289542983635493,0.37985320245813464,0.3738087779859654,0.40785604332529796,0.55457927392312134,0.37186838313516396,0.325048072081151,0.325048072081151,0.27977637707695607,0.30668955906457118,0.3894993894993895,0.4443164255201556,0.2626400450558774,0.2626400450558774,0.42328603344266996,0.37403704344498373,0.27469950367816831,0.37025956838545132,0.32647152420569109,0.4061219596789587,0.38444664217705865,0.31401828089019251,63]
[null,"Female 30-34",0.37468576753079075,0.3725961790858438,0.37062143062711855,0.37836363855027078,0.30685453462081891,0.50394740764902968,0.4443164255201556,0.36155919357281308,0.51963303915747716,0.46220482097013393,0.46220482097013393,0.33268731674127933,0.52153407952499753,0.33657069549723156,0.40801933460351431,0.29760977262257077,0.39484084969491062,0.37392897647558004,0.31401828089019251,0.40251525226856444,0.41765711828860563,0.41765711828860563,0.38314644951036536,0.45541375397917938,0.39251061572058243,0.37784921688419426,0.40331032810317269,0.31432295186555842,0.3168938721688685,0.38511750393469824,0.3168938721688685,0.37289542983635493,0.37985320245813464,0.3738087779859654,0.40785604332529796,0.55457927392312134,0.37186838313516396,0.325048072081151,0.325048072081151,0.27977637707695607,0.30668955906457118,0.3894993894993895,0.4443164255201556,0.2626400450558774,0.2626400450558774,0.42328603344266996,0.37403704344498373,0.27469950367816831,0.37025956838545132,0.32647152420569109,0.4061219596789587,0.38444664217705865,0.31401828089019251,64]
[null,"Female 35-39",0.34666848758739416,0.34473514896430291,0.34290806312097538,0.35007134431255615,0.28390936257697913,0.46626453623947828,0.41109248493846662,0.33452345851088344,0.48077726830219214,0.42764326837728406,0.42764326837728406,0.30781048795703175,0.48253615760667234,0.31140348549447983,0.37750952368851703,0.27535588139951556,0.3653164653237273,0.34596828588969286,0.29053743681910915,0.37241701133826671,0.38642663819709117,0.38642663819709117,0.35449651864698339,0.42136000616966518,0.36316047553812991,0.34959538873480323,0.37315263505548801,0.29081932589895848,0.2931980045958561,0.35632018667883558,0.2931980045958561,0.34501202311880513,0.35144952547622021,0.34585707529079662,0.37735844258173112,0.51311038421667454,0.34406177425045376,0.3007424709088018,0.3007424709088018,0.25885598522494846,0.28375672313473338,0.36037441497659906,0.41109248493846662,0.24300102936769244,0.24300102936769244,0.39163464894187316,0.3460682721077129,0.25415873708972064,0.342573259274914,0.30205948382450271,0.37575402574202005,0.35569948888069458,0.29053743681910915,65]
[null,"Female 40-44",0.34666848758739416,0.34473514896430291,0.34290806312097538,0.35007134431255615,0.28390936257697913,0.46626453623947828,0.41109248493846662,0.33452345851088344,0.48077726830219214,0.42764326837728406,0.42764326837728406,0.30781048795703175,0.48253615760667234,0.31140348549447983,0.37750952368851703,0.27535588139951556,0.3653164653237273,0.34596828588969286,0.29053743681910915,0.37241701133826671,0.38642663819709117,0.38642663819709117,0.35449651864698339,0.42136000616966518,0.36316047553812991,0.34959538873480323,0.37315263505548801,0.29081932589895848,0.2931980045958561,0.35632018667883558,0.2931980045958561,0.34501202311880513,0.35144952547622021,0.34585707529079662,0.37735844258173112,0.51311038421667454,0.34406177425045376,0.3007424709088018,0.3007424709088018,0.25885598522494846,0.28375672313473338,0.36037441497659906,0.41109248493846662,0.24300102936769244,0.24300102936769244,0.39163464894187316,0.3460682721077129,0.25415873708972064,0.342573259274914,0.30205948382450271,0.37575402574202005,0.35569948888069458,0.29053743681910915,66]
[null,"Female 45-49",0.39372884108842243,0.3915330511543596,0.38945793784749733,0.39759363665756176,0.32245014561182594,0.52956009002093118,0.4668984158364784,0.37993512059032186,0.54604292991170322,0.48569597320265884,0.48569597320265884,0.34959585609185573,0.54804058897865626,0.35367660414685842,0.42875655729813444,0.31273552674146965,0.41490828752114212,0.39293358679553098,0.32997798296492253,0.42297273483464309,0.4388841728358131,0.4388841728358131,0.40261952976493287,0.47855975622350005,0.41245962146098358,0.39705306996417,0.42380821969706711,0.33029813857380685,0.33299972363326547,0.40469076129136389,0.33299972363326547,0.39184751106024301,0.39915890633683287,0.39280727932373016,0.42858496688477105,0.5827652762270068,0.39076826561660505,0.34156835356181614,0.34156835356181614,0.29399576460126697,0.32227678531848625,0.40929535232383807,0.4668984158364784,0.27598849362423078,0.27598849362423078,0.44479917263631308,0.39304714617330949,0.28866086359120102,0.38907768427666056,0.34306415138470508,0.42676274996705099,0.40398580357677905,0.32997798296492253,67]
[null,"Female 50-54",0.39372884108842243,0.3915330511543596,0.38945793784749733,0.39759363665756176,0.32245014561182594,0.52956009002093118,0.4668984158364784,0.37993512059032186,0.54604292991170322,0.48569597320265884,0.48569597320265884,0.34959585609185573,0.54804058897865626,0.35367660414685842,0.42875655729813444,0.31273552674146965,0.41490828752114212,0.39293358679553098,0.32997798296492253,0.42297273483464309,0.4388841728358131,0.4388841728358131,0.40261952976493287,0.47855975622350005,0.41245962146098358,0.39705306996417,0.42380821969706711,0.33029813857380685,0.33299972363326547,0.40469076129136389,0.33299972363326547,0.39184751106024301,0.39915890633683287,0.39280727932373016,0.42858496688477105,0.5827652762270068,0.39076826561660505,0.34156835356181614,0.34156835356181614,0.29399576460126697,0.32227678531848625,0.40929535232383807,0.4668984158364784,0.27598849362423078,0.27598849362423078,0.44479917263631308,0.39304714617330949,0.28866086359120102,0.38907768427666056,0.34306415138470508,0.42676274996705099,0.40398580357677905,0.32997798296492253,68]
[null,"Female 55-59",0.52086228619718788,0.51795748460352486,0.51521232563030206,0.52597500857297796,0.42656798918693795,0.70055289423196276,0.61765801972281387,0.50261462932261269,0.72235797623915476,0.64252523208552903,0.64252523208552903,0.46247893942870588,0.72500067131269641,0.46787734447174939,0.56720030983503356,0.41371655930346707,0.54888048994076333,0.51981024752011629,0.43652653467478025,0.55954891456776079,0.58059809133384122,0.58059809133384122,0.53262374217057618,0.63308475960124611,0.54564115954601278,0.52525989508780946,0.56065417410201879,0.43695006723064117,0.44052398314326735,0.53536376595221802,0.44052398314326735,0.51837348233699798,0.52804569748011143,0.51964315587820342,0.56697331357347724,0.77093781916719251,0.51694575291898737,0.45185938890583444,0.45185938890583444,0.3889258040106755,0.42633865155834277,0.54145516074450084,0.61765801972281387,0.36510405830532355,0.36510405830532355,0.58842302056794948,0.51996047476017659,0.38186828511249915,0.51470928972444063,0.45383817377606372,0.56456271020724402,0.5344311802521815,0.43652653467478025,69]
[null,"Female 60-64",0.52086228619718788,0.51795748460352486,0.51521232563030206,0.52597500857297796,0.42656798918693795,0.70055289423196276,0.61765801972281387,0.50261462932261269,0.72235797623915476,0.64252523208552903,0.64252523208552903,0.46247893942870588,0.72500067131269641,0.46787734447174939,0.56720030983503356,0.41371655930346707,0.54888048994076333,0.51981024752011629,0.43652653467478025,0.55954891456776079,0.58059809133384122,0.58059809133384122,0.53262374217057618,0.63308475960124611,0.54564115954601278,0.52525989508780946,0.56065417410201879,0.43695006723064117,0.44052398314326735,0.53536376595221802,0.44052398314326735,0.51837348233699798,0.52804569748011143,0.51964315587820342,0.56697331357347724,0.77093781916719251,0.51694575291898737,0.45185938890583444,0.45185938890583444,0.3889258040106755,0.42633865155834277,0.54145516074450084,0.61765801972281387,0.36510405830532355,0.36510405830532355,0.58842302056794948,0.51996047476017659,0.38186828511249915,0.51470928972444063,0.45383817377606372,0.56456271020724402,0.5344311802521815,0.43652653467478025,70]
[null,"Female 65-69",{"$f":"$AR73*C$253","v":0},0,0,0,0,0,0,0,0,0,{"$f":"$AR73*M$253","v":0},0,0,0,0,0,0,0,0,0,{"$f":"$AR73*W$253","v":0},0,0,0,0,0,0,0,0,0,{"$f":"$AR73*AG$253","v":0},0,0,0,0,0,0,0,0,0,0,null,{"$f":"$AR73*AS$253","v":0},0,0,0,0,0,0,0,0,0,0,71]
[null,"Female 70-74",0,0,0,0,0,0,0,0,0,0,0,0,0,0,0,0,0,0,0,0,0,0,0,0,0,0,0,0,0,0,0,0,0,0,0,0,0,0,0,0,0,null,0,0,0,0,0,0,0,0,0,0,0,72]
[null,"Female 75-79",0,0,0,0,0,0,0,0,0,0,0,0,0,0,0,0,0,0,0,0,0,0,0,0,0,0,0,0,0,0,0,0,0,0,0,0,0,0,0,0,0,null,0,0,0,0,0,0,0,0,0,0,0,73]
[null,"Female 80-84",0,0,0,0,0,0,0,0,0,0,0,0,0,0,0,0,0,0,0,0,0,0,0,0,0,0,0,0,0,0,0,0,0,0,0,0,0,0,0,0,0,null,0,0,0,0,0,0,0,0,0,0,0,74]
[null,"Female 85-89",0,0,0,0,0,0,0,0,0,0,0,0,0,0,0,0,0,0,0,0,0,0,0,0,0,0,0,0,0,0,0,0,0,0,0,0,0,0,0,0,0,null,0,0,0,0,0,0,0,0,0,0,0,75]
[null,"Female 90+",0,0,0,0,0,0,0,0,0,0,0,0,0,0,0,0,0,0,0,0,0,0,0,0,0,0,0,0,0,0,0,0,0,0,0,0,0,0,0,0,0,null,0,0,0,0,0,0,0,0,0,0,0,76]
[null,"Male 0-4",null,null,null,null,null,null,null,null,null,null,null,null,null,null,null,null,null,null,null,null,null,null,null,null,null,null,null,null,null,null,null,null,null,null,null,null,null,null,null,null,null,null,null,null,null,null,null,null,null,null,null,null,null,77]
[null,"Male 5-9",null,null,null,null,null,null,null,null,null,null,null,null,null,null,null,null,null,null,null,null,null,null,null,null,null,null,null,null,null,null,null,null,null,null,null,null,null,null,null,null,null,null,null,null,null,null,null,null,null,null,null,null,null,78]
[null,"Male 10-15",null,null,null,null,null,null,null,null,null,null,null,null,null,null,null,null,null,null,null,null,null,null,null,null,null,null,null,null,null,null,null,null,null,null,null,null,null,null,null,null,null,null,null,null,null,null,null,null,null,null,null,null,null,79]
[null,"Male 16-19",{"$f":"$AR82*C$254","v":0.31149038191931711},0.25813041277853244,0.20682275014316254,0.20010456307033528,0.21244015817174228,0.36080199607491165,0.2560267127257444,0.25543665459785181,0.37014037981399683,0.22046446632291566,{"$f":"$AR82*M$254","v":0.22046446632291566},0.41824933208529519,0.40368340477424197,0.21517309331117293,0.26628561668486905,0.1995417567074258,0.25289753539573112,0.24596023967535233,0.2107502932771943,0.22113285858943438,{"$f":"$AR82*W$254","v":0.26857000822753235},0.26857000822753235,0.2372081223033356,0.26558905634979246,0.26583059895048983,0.25460898752722749,0.26784661088136502,0.26522294844268141,0.2843417148050244,0.36620869613494811,{"$f":"$AR82*AG$254","v":0.2843417148050244},0.26223171039542231,0.24635167120150328,0.22664723249043767,0.23492759708157801,0.36748541660027029,0.2694725322059095,0.2304615686052989,0.2304615686052989,0.29152212963152896,0.27752194370154437,0.2604340567612688,{"$f":"$AR82*AS$254","v":0.2560267127257444},0.21512205700680159,0.21512205700680159,0.30354591770389266,0.25425783017850145,0.19018852105098666,0.29244657327012169,0.31337423984131546,0.31048946194331567,0.24595037476787457,0.2107502932771943,80]
[null,"Male 20-24",0.31149038191931711,0.25813041277853244,0.20682275014316254,0.20010456307033528,0.21244015817174228,0.36080199607491165,0.2560267127257444,0.25543665459785181,0.37014037981399683,0.22046446632291566,0.22046446632291566,0.41824933208529519,0.40368340477424197,0.21517309331117293,0.26628561668486905,0.1995417567074258,0.25289753539573112,0.24596023967535233,0.2107502932771943,0.22113285858943438,0.26857000822753235,0.26857000822753235,0.2372081223033356,0.26558905634979246,0.26583059895048983,0.25460898752722749,0.26784661088136502,0.26522294844268141,0.2843417148050244,0.36620869613494811,0.2843417148050244,0.26223171039542231,0.24635167120150328,0.22664723249043767,0.23492759708157801,0.36748541660027029,0.2694725322059095,0.2304615686052989,0.2304615686052989,0.29152212963152896,0.27752194370154437,0.2604340567612688,0.2560267127257444,0.21512205700680159,0.21512205700680159,0.30354591770389266,0.25425783017850145,0.19018852105098666,0.29244657327012169,0.31337423984131546,0.31048946194331567,0.24595037476787457,0.2107502932771943,81]
[null,"Male 25-29",0.28780866561862717,0.23850550119591865,0.19109861232792966,0.18489118966244408,0.19628894500844135,0.33337125982193189,0.23656173939716241,0.23601654168871378,0.34199967315020269,0.20370318812975893,0.20370318812975893,0.38645104038727862,0.37299251856371229,0.1988141029630954,0.24604068844525884,0.18437117184580215,0.2336704644040602,0.22726059129022128,0.19472755567314692,0.20432076445796282,0.24815140428050639,0.24815140428050639,0.21917387218622597,0.24539708558559437,0.24562026439827042,0.23525179976087293,0.24748300475038409,0.24505881180786548,0.2627240334468614,0.33836690405367681,0.2627240334468614,0.24229498897126725,0.22762226340519451,0.20941589639876554,0.21706672872664498,0.33954655914038678,0.24898531196107426,0.21294023952831839,0.21294023952831839,0.26935854202163911,0.25642274989189928,0.24063400576368876,0.23656173939716241,0.19876694680190443,0.19876694680190443,0.28046819612866225,0.23492733989364917,0.17572903574866391,0.27021270287380922,0.28954929925040923,0.28688384270464506,0.22725147638323723,0.19472755567314692,82]
[null,"Male 30-34",0.28780866561862717,0.23850550119591865,0.19109861232792966,0.18489118966244408,0.19628894500844135,0.33337125982193189,0.23656173939716241,0.23601654168871378,0.34199967315020269,0.20370318812975893,0.20370318812975893,0.38645104038727862,0.37299251856371229,0.1988141029630954,0.24604068844525884,0.18437117184580215,0.2336704644040602,0.22726059129022128,0.19472755567314692,0.20432076445796282,0.24815140428050639,0.24815140428050639,0.21917387218622597,0.24539708558559437,0.24562026439827042,0.23525179976087293,0.24748300475038409,0.24505881180786548,0.2627240334468614,0.33836690405367681,0.2627240334468614,0.24229498897126725,0.22762226340519451,0.20941589639876554,0.21706672872664498,0.33954655914038678,0.24898531196107426,0.21294023952831839,0.21294023952831839,0.26935854202163911,0.25642274989189928,0.24063400576368876,0.23656173939716241,0.19876694680190443,0.19876694680190443,0.28046819612866225,0.23492733989364917,0.17572903574866391,0.27021270287380922,0.28954929925040923,0.28688384270464506,0.22725147638323723,0.19472755567314692,83]
[null,"Male 35-39",0.42658874034946137,0.35351180654304448,0.28324552403687431,0.27404490942023502,0.29093861234404866,0.49412141740233573,0.35063077134040893,0.34982268169102809,0.50691041374825851,0.30192797094091095,0.30192797094091095,0.57279603507142784,0.55284787312383532,0.29468139037591895,0.36468042799536987,0.2732741412959197,0.34634533624185032,0.33684465045966572,0.28862432792767551,0.30284333986266276,0.36780892173776136,0.36780892173776136,0.32485855091426685,0.36372648266297541,0.36405727731909715,0.3486891845637306,0.36681822288930188,0.36322509475505937,0.38940840869654764,0.50152593934566736,0.38940840869654764,0.35912856868320092,0.33738071928029806,0.31039532205148768,0.32173535213140131,0.50327441893506675,0.36904493604002903,0.31561908796195348,0.31561908796195348,0.39924204817251258,0.3800686738816898,0.35666666666666669,0.35063077134040893,0.29461149572087464,0.29461149572087464,0.415708728705034,0.34820827157330542,0.26046480512224118,0.40050808163679297,0.42916869987498785,0.42521797188745575,0.33683114038455952,0.28862432792767551,84]
[null,"Male 40-44",0.42658874034946137,0.35351180654304448,0.28324552403687431,0.27404490942023502,0.29093861234404866,0.49412141740233573,0.35063077134040893,0.34982268169102809,0.50691041374825851,0.30192797094091095,0.30192797094091095,0.57279603507142784,0.55284787312383532,0.29468139037591895,0.36468042799536987,0.2732741412959197,0.34634533624185032,0.33684465045966572,0.28862432792767551,0.30284333986266276,0.36780892173776136,0.36780892173776136,0.32485855091426685,0.36372648266297541,0.36405727731909715,0.3486891845637306,0.36681822288930188,0.36322509475505937,0.38940840869654764,0.50152593934566736,0.38940840869654764,0.35912856868320092,0.33738071928029806,0.31039532205148768,0.32173535213140131,0.50327441893506675,0.36904493604002903,0.31561908796195348,0.31561908796195348,0.39924204817251258,0.3800686738816898,0.35666666666666669,0.35063077134040893,0.29461149572087464,0.29461149572087464,0.415708728705034,0.34820827157330542,0.26046480512224118,0.40050808163679297,0.42916869987498785,0.42521797188745575,0.33683114038455952,0.28862432792767551,85]
[null,"Male 45-49",0.41347193159275458,0.34264197731158269,0.274536252041225,0.26561853917738809,0.28199279222012247,0.47892810468304114,0.33984952857220763,0.33906628617355483,0.49132386322544791,0.29264424852037041,0.29264424852037041,0.55518362448019432,0.53584883133624162,0.28562048680271412,0.35346718446857017,0.264871470736459,0.33569586261640944,0.32648730521614222,0.2797496677365533,0.29353147155369902,0.35649948285877797,0.35649948285877797,0.3148697558939561,0.35254257117733345,0.35286319451426251,0.33796764197048795,0.35553924615359983,0.3520566000131779,0.37743482584731014,0.48610495137599941,0.37743482584731014,0.34808603448356767,0.32700689091958096,0.3008512443644149,0.31184258965313671,0.48779966847656619,0.35769749202474005,0.30591438920836767,0.30591438920836767,0.38696609923578068,0.36838227047207955,0.34569983136593591,0.33984952857220763,0.28555274127805375,0.28555274127805375,0.40292646002993787,0.33750151615826829,0.25245599777809385,0.38819320453046863,0.41597256217099415,0.41214331170633289,0.32647421055066755,0.2797496677365533,86]
[null,"Male 50-54",0.41347193159275458,0.34264197731158269,0.274536252041225,0.26561853917738809,0.28199279222012247,0.47892810468304114,0.33984952857220763,0.33906628617355483,0.49132386322544791,0.29264424852037041,0.29264424852037041,0.55518362448019432,0.53584883133624162,0.28562048680271412,0.35346718446857017,0.264871470736459,0.33569586261640944,0.32648730521614222,0.2797496677365533,0.29353147155369902,0.35649948285877797,0.35649948285877797,0.3148697558939561,0.35254257117733345,0.35286319451426251,0.33796764197048795,0.35553924615359983,0.3520566000131779,0.37743482584731014,0.48610495137599941,0.37743482584731014,0.34808603448356767,0.32700689091958096,0.3008512443644149,0.31184258965313671,0.48779966847656619,0.35769749202474005,0.30591438920836767,0.30591438920836767,0.38696609923578068,0.36838227047207955,0.34569983136593591,0.33984952857220763,0.28555274127805375,0.28555274127805375,0.40292646002993787,0.33750151615826829,0.25245599777809385,0.38819320453046863,0.41597256217099415,0.41214331170633289,0.32647421055066755,0.2797496677365533,87]
[null,"Male 55-59",0.56222453109766768,0.46591246057815355,0.37330470046323594,0.3611787094340006,0.3834438404758177,0.65122952372527132,0.46211538739579361,0.46105036204178207,0.66808483844339051,0.39792731460390557,0.39792731460390557,0.75491908663323304,0.72862831771125447,0.3883766514596404,0.48063219498534165,0.36016287215024295,0.45646737911300861,0.44394590795411382,0.38039371901748731,0.39913372915294332,0.48475540725277544,0.48475540725277544,0.42814877465171736,0.47937493848401225,0.47981091077497168,0.45955646445233017,0.4834497112911853,0.47871413205673713,0.51322254733107575,0.66098834641285953,0.51322254733107575,0.47331509726741461,0.44465242224483142,0.40908689772811896,0.42403254089978348,0.66329276287841976,0.48638441780976571,0.41597158328538353,0.41597158328538353,0.52618283629423213,0.50091320221671964,0.47007042253521125,0.46211538739579361,0.38828453348759473,0.38828453348759473,0.54788517127275926,0.45892264303379232,0.34328075046550477,0.52785141073955366,0.56562480024987694,0.56041792069542584,0.44392810229043067,0.38039371901748731,88]
[null,"Male 60-64",0.56222453109766768,0.46591246057815355,0.37330470046323594,0.3611787094340006,0.3834438404758177,0.65122952372527132,0.46211538739579361,0.46105036204178207,0.66808483844339051,0.39792731460390557,0.39792731460390557,0.75491908663323304,0.72862831771125447,0.3883766514596404,0.48063219498534165,0.36016287215024295,0.45646737911300861,0.44394590795411382,0.38039371901748731,0.39913372915294332,0.48475540725277544,0.48475540725277544,0.42814877465171736,0.47937493848401225,0.47981091077497168,0.45955646445233017,0.4834497112911853,0.47871413205673713,0.51322254733107575,0.66098834641285953,0.51322254733107575,0.47331509726741461,0.44465242224483142,0.40908689772811896,0.42403254089978348,0.66329276287841976,0.48638441780976571,0.41597158328538353,0.41597158328538353,0.52618283629423213,0.50091320221671964,0.47007042253521125,0.46211538739579361,0.38828453348759473,0.38828453348759473,0.54788517127275926,0.45892264303379232,0.34328075046550477,0.52785141073955366,0.56562480024987694,0.56041792069542584,0.44392810229043067,0.38039371901748731,89]
[null,"Male 65-69",{"$f":"$AR92*C$254","v":0},0,0,0,0,0,0,0,0,0,{"$f":"$AR92*M$254","v":0},0,0,0,0,0,0,0,0,0,{"$f":"$AR92*W$254","v":0},0,0,0,0,0,0,0,0,0,{"$f":"$AR92*AG$254","v":0},0,0,0,0,0,0,0,0,0,0,null,{"$f":"$AR92*AS$254","v":0},0,0,0,0,0,0,0,0,0,0,90]
[null,"Male 70-74",0,0,0,0,0,0,0,0,0,0,0,0,0,0,0,0,0,0,0,0,0,0,0,0,0,0,0,0,0,0,0,0,0,0,0,0,0,0,0,0,0,null,0,0,0,0,0,0,0,0,0,0,0,91]
[null,"Male 75-79",0,0,0,0,0,0,0,0,0,0,0,0,0,0,0,0,0,0,0,0,0,0,0,0,0,0,0,0,0,0,0,0,0,0,0,0,0,0,0,0,0,null,0,0,0,0,0,0,0,0,0,0,0,92]
[null,"Male 80-84",0,0,0,0,0,0,0,0,0,0,0,0,0,0,0,0,0,0,0,0,0,0,0,0,0,0,0,0,0,0,0,0,0,0,0,0,0,0,0,0,0,null,0,0,0,0,0,0,0,0,0,0,0,93]
[null,"Male 85-89",0,0,0,0,0,0,0,0,0,0,0,0,0,0,0,0,0,0,0,0,0,0,0,0,0,0,0,0,0,0,0,0,0,0,0,0,0,0,0,0,0,null,0,0,0,0,0,0,0,0,0,0,0,94]
[null,"Male 90+",0,0,0,0,0,0,0,0,0,0,0,0,0,0,0,0,0,0,0,0,0,0,0,0,0,0,0,0,0,0,0,0,0,0,0,0,0,0,0,0,0,null,0,0,0,0,0,0,0,0,0,0,0,95]
["SIMD Q2","Female 0-4",null,null,null,null,null,null,null,null,null,null,null,null,null,null,null,null,null,null,null,null,null,null,null,null,null,null,null,null,null,null,null,null,null,null,null,null,null,null,null,null,null,null,null,null,null,null,null,null,null,null,null,null,null,96]
[null,"Female 5-9",null,null,null,null,null,null,null,null,null,null,null,null,null,null,null,null,null,null,null,null,null,null,null,null,null,null,null,null,null,null,null,null,null,null,null,null,null,null,null,null,null,null,null,null,null,null,null,null,null,null,null,null,null,97]
[null,"Female 10-15",null,null,null,null,null,null,null,null,null,null,null,null,null,null,null,null,null,null,null,null,null,null,null,null,null,null,null,null,null,null,null,null,null,null,null,null,null,null,null,null,null,null,null,null,null,null,null,null,null,null,null,null,null,98]
[null,"Female 16-19",{"$f":"$AR101*C$253","v":0.14852640573529102},0.14769808748013213,0.14691529209204293,0.14998432330414146,0.12163792986094764,0.19976605364807976,0.17612817835744915,0.14332299792387293,0.20598387848031463,0.18321918450392222,{"$f":"$AR101*M$253","v":0.18321918450392222},0.13187811139701192,0.20673745579072661,0.13341749276324694,0.16173991779440874,0.11797328233369624,0.15651593234812183,0.14822641180687518,0.12447765737982709,0.1595580853445972,{"$f":"$AR101*W$253","v":0.1655603601331565},0.1655603601331565,0.15188024191854638,0.18052718801331316,0.15559222158373903,0.1497804052274069,0.15987325545842238,0.12459842974116117,0.12561754918783496,0.15266157298186397,{"$f":"$AR101*AG$253","v":0.12561754918783496},0.1478167112503381,0.1505747902834613,0.14817876481522421,0.16167518871008502,0.2198366561770182,0.14740958728602138,0.12884989508824024,0.12884989508824024,0.11090407829132963,0.12157253312446326,0.15439856373429084,{"$f":"$AR101*AS$253","v":0.17612817835744915},0.10411119202999537,0.10411119202999537,0.16779167663479913,0.14826924983258941,0.10889159256692034,0.14677184896507192,0.12941415518594152,0.16098779347505263,0.15239564164888564,0.12447765737982709,99]
[null,"Female 20-24",0.14852640573529102,0.14769808748013213,0.14691529209204293,0.14998432330414146,0.12163792986094764,0.19976605364807976,0.17612817835744915,0.14332299792387293,0.20598387848031463,0.18321918450392222,0.18321918450392222,0.13187811139701192,0.20673745579072661,0.13341749276324694,0.16173991779440874,0.11797328233369624,0.15651593234812183,0.14822641180687518,0.12447765737982709,0.1595580853445972,0.1655603601331565,0.1655603601331565,0.15188024191854638,0.18052718801331316,0.15559222158373903,0.1497804052274069,0.15987325545842238,0.12459842974116117,0.12561754918783496,0.15266157298186397,0.12561754918783496,0.1478167112503381,0.1505747902834613,0.14817876481522421,0.16167518871008502,0.2198366561770182,0.14740958728602138,0.12884989508824024,0.12884989508824024,0.11090407829132963,0.12157253312446326,0.15439856373429084,0.17612817835744915,0.10411119202999537,0.10411119202999537,0.16779167663479913,0.14826924983258941,0.10889159256692034,0.14677184896507192,0.12941415518594152,0.16098779347505263,0.15239564164888564,0.12447765737982709,100]
[null,"Female 25-29",0.28081561330101862,0.27924953016799359,0.27776951611993772,0.28357206602881657,0.22997816250563272,0.3776932902549901,0.33300167859166274,0.27097764443221772,0.38944919510583687,0.34640848817602732,0.34640848817602732,0.24933904883508887,0.39087396717613271,0.25224952337544687,0.30579811034840987,0.22304949391096379,0.29592123579730045,0.28024842136920269,0.23534717295784238,0.30167296765421547,0.31302133677151933,0.31302133677151933,0.28715663771381239,0.34131878953441436,0.29417479614215108,0.28318652259970106,0.30226885286647664,0.23557551460894438,0.23750234136428072,0.28863388319518296,0.23750234136428072,0.2794738095250382,0.28468844897843976,0.28015833624853892,0.30567572849029656,0.41564033765429065,0.27870406918719626,0.24361366676752963,0.24361366676752963,0.20968390508600288,0.22985451833224257,0.29191797346200243,0.33300167859166274,0.1968407442209891,0.1968407442209891,0.31724003787571348,0.2803294142835871,0.2058789425262359,0.2774983113501544,0.24468050094164731,0.30437608541639194,0.28813109266445835,0.23534717295784238,101]
[null,"Female 30-34",0.28081561330101862,0.27924953016799359,0.27776951611993772,0.28357206602881657,0.22997816250563272,0.3776932902549901,0.33300167859166274,0.27097764443221772,0.38944919510583687,0.34640848817602732,0.34640848817602732,0.24933904883508887,0.39087396717613271,0.25224952337544687,0.30579811034840987,0.22304949391096379,0.29592123579730045,0.28024842136920269,0.23534717295784238,0.30167296765421547,0.31302133677151933,0.31302133677151933,0.28715663771381239,0.34131878953441436,0.29417479614215108,0.28318652259970106,0.30226885286647664,0.23557551460894438,0.23750234136428072,0.28863388319518296,0.23750234136428072,0.2794738095250382,0.28468844897843976,0.28015833624853892,0.30567572849029656,0.41564033765429065,0.27870406918719626,0.24361366676752963,0.24361366676752963,0.20968390508600288,0.22985451833224257,0.29191797346200243,0.33300167859166274,0.1968407442209891,0.1968407442209891,0.31724003787571348,0.2803294142835871,0.2058789425262359,0.2774983113501544,0.24468050094164731,0.30437608541639194,0.28813109266445835,0.23534717295784238,102]
[null,"Female 35-39",0.24994712015847109,0.24855318780397356,0.24723586344028473,0.25240057142162264,0.20469794660598831,0.33617557475772264,0.29639666254134517,0.24119058430186405,0.34663921859784058,0.3083297363712994,0.3083297363712994,0.22193059875405721,0.34790737342607986,0.22452114107150745,0.27218343073237572,0.19853090788113811,0.26339226587798426,0.24944227647023021,0.20947677170355161,0.26851174195219596,0.27861264818750875,0.27861264818750875,0.2555911111467265,0.30379951989582876,0.26183780258727257,0.25205740862995785,0.26904212482869955,0.20968001303131922,0.21139503447503205,0.25690597127681442,0.21139503447503205,0.24875281338299793,0.25339423662410987,0.24936209390411737,0.2720745016289135,0.36995131501830791,0.24806768630458589,0.21683457598391517,0.21683457598391517,0.18663452364255881,0.20458789394652271,0.25982905982905985,0.29639666254134517,0.17520313977395208,0.17520313977395208,0.28236761102382502,0.24951436628555657,0.1832478193815493,0.24699447069725405,0.21778413903125729,0.27091772106483519,0.25645844970306608,0.20947677170355161,103]
[null,"Female 40-44",0.24994712015847109,0.24855318780397356,0.24723586344028473,0.25240057142162264,0.20469794660598831,0.33617557475772264,0.29639666254134517,0.24119058430186405,0.34663921859784058,0.3083297363712994,0.3083297363712994,0.22193059875405721,0.34790737342607986,0.22452114107150745,0.27218343073237572,0.19853090788113811,0.26339226587798426,0.24944227647023021,0.20947677170355161,0.26851174195219596,0.27861264818750875,0.27861264818750875,0.2555911111467265,0.30379951989582876,0.26183780258727257,0.25205740862995785,0.26904212482869955,0.20968001303131922,0.21139503447503205,0.25690597127681442,0.21139503447503205,0.24875281338299793,0.25339423662410987,0.24936209390411737,0.2720745016289135,0.36995131501830791,0.24806768630458589,0.21683457598391517,0.21683457598391517,0.18663452364255881,0.20458789394652271,0.25982905982905985,0.29639666254134517,0.17520313977395208,0.17520313977395208,0.28236761102382502,0.24951436628555657,0.1832478193815493,0.24699447069725405,0.21778413903125729,0.27091772106483519,0.25645844970306608,0.20947677170355161,104]
[null,"Female 45-49",0.23205948946579832,0.23076531480065526,0.22954226562487495,0.23433735786930379,0.19004860289634737,0.31211694777554116,0.27518483967769752,0.22392962087965562,0.32183175403516201,0.28626391519967648,0.28626391519967648,0.20604798891482648,0.32300915252576357,0.20845313736080939,0.25270444379098361,0.18432291236989845,0.24454242445414828,0.23159077524945154,0.19448542822037501,0.24929552184275075,0.25867355005376769,0.25867355005376769,0.23729956451228704,0.28205790665754676,0.24309920735523879,0.23401875374941272,0.24978794751848882,0.19467412444832194,0.19626640924999744,0.2385203258089712,0.19626640924999744,0.23095065404330523,0.23525991076546407,0.23151633100162664,0.2526033102707359,0.34347550488246603,0.2303145585366449,0.20131666637910187,0.20131666637910187,0.17327790072446173,0.18994642622812352,0.24123422159887797,0.27518483967769752,0.16266461139048366,0.16266461139048366,0.26215978649532434,0.23165770590954363,0.17013356819011116,0.22931814831288938,0.20219827331997034,0.25152931547154084,0.23810483141214389,0.19448542822037501,105]
[null,"Female 50-54",0.23205948946579832,0.23076531480065526,0.22954226562487495,0.23433735786930379,0.19004860289634737,0.31211694777554116,0.27518483967769752,0.22392962087965562,0.32183175403516201,0.28626391519967648,0.28626391519967648,0.20604798891482648,0.32300915252576357,0.20845313736080939,0.25270444379098361,0.18432291236989845,0.24454242445414828,0.23159077524945154,0.19448542822037501,0.24929552184275075,0.25867355005376769,0.25867355005376769,0.23729956451228704,0.28205790665754676,0.24309920735523879,0.23401875374941272,0.24978794751848882,0.19467412444832194,0.19626640924999744,0.2385203258089712,0.19626640924999744,0.23095065404330523,0.23525991076546407,0.23151633100162664,0.2526033102707359,0.34347550488246603,0.2303145585366449,0.20131666637910187,0.20131666637910187,0.17327790072446173,0.18994642622812352,0.24123422159887797,0.27518483967769752,0.16266461139048366,0.16266461139048366,0.26215978649532434,0.23165770590954363,0.17013356819011116,0.22931814831288938,0.20219827331997034,0.25152931547154084,0.23810483141214389,0.19448542822037501,106]
[null,"Female 55-59",0.47803294675125735,0.47536700048802416,0.47284756979003439,0.48272526141482031,0.39149225863435405,0.64294799846200712,0.56686938386025354,0.46128575384016091,0.6629600974030786,0.58969182103463114,0.58969182103463114,0.42445033185183245,0.66538548957841437,0.42940483813663949,0.52056069846842201,0.37969757305245921,0.50374727634114802,0.47706741485880921,0.40063193522654156,0.51353846030048456,0.53285681039574995,0.53285681039574995,0.48882728453695656,0.58102761746302256,0.50077430883104246,0.48206895011020956,0.51455283681820818,0.40102064164873513,0.40430068245880663,0.49134200229867009,0.40430068245880663,0.47574879165940248,0.4846256822099389,0.47691406278844856,0.520352367601149,0.70754532863022768,0.47443846123437206,0.41470400318848161,0.41470400318848161,0.35694530605435293,0.39128177892541083,0.49693251533742333,0.56686938386025354,0.33508236915517914,0.33508236915517914,0.54003831322101825,0.47720528924931777,0.35046811113152698,0.47238589740028181,0.41652007700985333,0.51813998275174422,0.49048610103244211,0.40063193522654156,107]
[null,"Female 60-64",0.47803294675125735,0.47536700048802416,0.47284756979003439,0.48272526141482031,0.39149225863435405,0.64294799846200712,0.56686938386025354,0.46128575384016091,0.6629600974030786,0.58969182103463114,0.58969182103463114,0.42445033185183245,0.66538548957841437,0.42940483813663949,0.52056069846842201,0.37969757305245921,0.50374727634114802,0.47706741485880921,0.40063193522654156,0.51353846030048456,0.53285681039574995,0.53285681039574995,0.48882728453695656,0.58102761746302256,0.50077430883104246,0.48206895011020956,0.51455283681820818,0.40102064164873513,0.40430068245880663,0.49134200229867009,0.40430068245880663,0.47574879165940248,0.4846256822099389,0.47691406278844856,0.520352367601149,0.70754532863022768,0.47443846123437206,0.41470400318848161,0.41470400318848161,0.35694530605435293,0.39128177892541083,0.49693251533742333,0.56686938386025354,0.33508236915517914,0.33508236915517914,0.54003831322101825,0.47720528924931777,0.35046811113152698,0.47238589740028181,0.41652007700985333,0.51813998275174422,0.49048610103244211,0.40063193522654156,108]
[null,"Female 65-69",{"$f":"$AR111*C$253","v":0},0,0,0,0,0,0,0,0,0,{"$f":"$AR111*M$253","v":0},0,0,0,0,0,0,0,0,0,{"$f":"$AR111*W$253","v":0},0,0,0,0,0,0,0,0,0,{"$f":"$AR111*AG$253","v":0},0,0,0,0,0,0,0,0,0,0,null,{"$f":"$AR111*AS$253","v":0},0,0,0,0,0,0,0,0,0,0,109]
[null,"Female 70-74",0,0,0,0,0,0,0,0,0,0,0,0,0,0,0,0,0,0,0,0,0,0,0,0,0,0,0,0,0,0,0,0,0,0,0,0,0,0,0,0,0,null,0,0,0,0,0,0,0,0,0,0,0,110]
[null,"Female 75-79",0,0,0,0,0,0,0,0,0,0,0,0,0,0,0,0,0,0,0,0,0,0,0,0,0,0,0,0,0,0,0,0,0,0,0,0,0,0,0,0,0,null,0,0,0,0,0,0,0,0,0,0,0,111]
[null,"Female 80-84",0,0,0,0,0,0,0,0,0,0,0,0,0,0,0,0,0,0,0,0,0,0,0,0,0,0,0,0,0,0,0,0,0,0,0,0,0,0,0,0,0,null,0,0,0,0,0,0,0,0,0,0,0,112]
[null,"Female 85-89",0,0,0,0,0,0,0,0,0,0,0,0,0,0,0,0,0,0,0,0,0,0,0,0,0,0,0,0,0,0,0,0,0,0,0,0,0,0,0,0,0,null,0,0,0,0,0,0,0,0,0,0,0,113]
[null,"Female 90+",0,0,0,0,0,0,0,0,0,0,0,0,0,0,0,0,0,0,0,0,0,0,0,0,0,0,0,0,0,0,0,0,0,0,0,0,0,0,0,0,0,null,0,0,0,0,0,0,0,0,0,0,0,114]
[null,"Male 0-4",null,null,null,null,null,null,null,null,null,null,null,null,null,null,null,null,null,null,null,null,null,null,null,null,null,null,null,null,null,null,null,null,null,null,null,null,null,null,null,null,null,null,null,null,null,null,null,null,null,null,null,null,null,115]
[null,"Male 5-9",null,null,null,null,null,null,null,null,null,null,null,null,null,null,null,null,null,null,null,null,null,null,null,null,null,null,null,null,null,null,null,null,null,null,null,null,null,null,null,null,null,null,null,null,null,null,null,null,null,null,null,null,null,116]
[null,"Male 10-15",null,null,null,null,null,null,null,null,null,null,null,null,null,null,null,null,null,null,null,null,null,null,null,null,null,null,null,null,null,null,null,null,null,null,null,null,null,null,null,null,null,null,null,null,null,null,null,null,null,null,null,null,null,117]
[null,"Male 16-19",{"$f":"$AR120*C$254","v":0.20384736231246103},0.16892721840496558,0.13535015695545069,0.130953601575862,0.13902633405794443,0.23611815801103081,0.16755050268034169,0.16716435338019059,0.24222943785776188,0.14427764885270675,{"$f":"$AR120*M$254","v":0.14427764885270675},0.27371318051361204,0.26418086094824472,0.14081483749779791,0.17426419476739333,0.13058528653555529,0.16550268810256644,0.1609627423569959,0.13792044276430168,0.1447150620392082,{"$f":"$AR120*W$254","v":0.17575915967639469},0.17575915967639469,0.1552351303840625,0.17380834766828893,0.17396641939344096,0.16662270664240031,0.17528574974312028,0.17356875718486381,0.18608057237998374,0.23965644236916081,{"$f":"$AR120*AG$254","v":0.18608057237998374},0.17161121364138326,0.16121890527169058,0.14832381094374217,0.15374269569546034,0.24049196126275435,0.17634979471071682,0.15082001115126259,0.15082001115126259,0.19077962155663339,0.18161753778336739,0.17043478260869566,{"$f":"$AR120*AS$254","v":0.16755050268034169},0.14078143802021478,0.14078143802021478,0.19864829945433563,0.16639290019106345,0.12446428720997792,0.19138460138353047,0.2050802076607012,0.20319233439238032,0.16095628650639657,0.13792044276430168,118]
[null,"Male 20-24",0.20384736231246103,0.16892721840496558,0.13535015695545069,0.130953601575862,0.13902633405794443,0.23611815801103081,0.16755050268034169,0.16716435338019059,0.24222943785776188,0.14427764885270675,0.14427764885270675,0.27371318051361204,0.26418086094824472,0.14081483749779791,0.17426419476739333,0.13058528653555529,0.16550268810256644,0.1609627423569959,0.13792044276430168,0.1447150620392082,0.17575915967639469,0.17575915967639469,0.1552351303840625,0.17380834766828893,0.17396641939344096,0.16662270664240031,0.17528574974312028,0.17356875718486381,0.18608057237998374,0.23965644236916081,0.18608057237998374,0.17161121364138326,0.16121890527169058,0.14832381094374217,0.15374269569546034,0.24049196126275435,0.17634979471071682,0.15082001115126259,0.15082001115126259,0.19077962155663339,0.18161753778336739,0.17043478260869566,0.16755050268034169,0.14078143802021478,0.14078143802021478,0.19864829945433563,0.16639290019106345,0.12446428720997792,0.19138460138353047,0.2050802076607012,0.20319233439238032,0.16095628650639657,0.13792044276430168,119]
[null,"Male 25-29",0.17295722705207683,0.14332872860115189,0.11483978778295481,0.11110946712337731,0.11795889313014618,0.20033784790226641,0.1421606343395006,0.14183300041073846,0.20552305120359574,0.12241444671188666,0.12241444671188666,0.23223588557733815,0.22414805191249507,0.11947637460266092,0.1478569629722844,0.11079696492893941,0.14042313660162981,0.13657115432325645,0.11702058375297456,0.12278557622249246,0.14912538745552448,0.14912538745552448,0.13171147954880252,0.1474701929433449,0.14760431117253114,0.14137343244406342,0.14872371598727879,0.14726690895099304,0.1578827385451918,0.20333995616681125,0.1578827385451918,0.14560600297078652,0.13678849943332591,0.12584747114511938,0.13044520186745928,0.20404886419165022,0.14962652024712556,0.12796540812091298,0.12796540812091298,0.16186971441848708,0.15409601263757353,0.14460784313725492,0.1421606343395006,0.11944803633542884,0.11944803633542884,0.16854600737765948,0.14117844985448749,0.10560351499596091,0.16238301825570908,0.1740032524232015,0.17240145919021366,0.13656567676394318,0.11702058375297456,120]
[null,"Male 30-34",0.17295722705207683,0.14332872860115189,0.11483978778295481,0.11110946712337731,0.11795889313014618,0.20033784790226641,0.1421606343395006,0.14183300041073846,0.20552305120359574,0.12241444671188666,0.12241444671188666,0.23223588557733815,0.22414805191249507,0.11947637460266092,0.1478569629722844,0.11079696492893941,0.14042313660162981,0.13657115432325645,0.11702058375297456,0.12278557622249246,0.14912538745552448,0.14912538745552448,0.13171147954880252,0.1474701929433449,0.14760431117253114,0.14137343244406342,0.14872371598727879,0.14726690895099304,0.1578827385451918,0.20333995616681125,0.1578827385451918,0.14560600297078652,0.13678849943332591,0.12584747114511938,0.13044520186745928,0.20404886419165022,0.14962652024712556,0.12796540812091298,0.12796540812091298,0.16186971441848708,0.15409601263757353,0.14460784313725492,0.1421606343395006,0.11944803633542884,0.11944803633542884,0.16854600737765948,0.14117844985448749,0.10560351499596091,0.16238301825570908,0.1740032524232015,0.17240145919021366,0.13656567676394318,0.11702058375297456,121]
[null,"Male 35-39",0.22148948097064453,0.1835471477378216,0.14706413501395341,0.14228707654217806,0.15105846954519658,0.25655317622135809,0.18205128314662974,0.18163171427363867,0.26319336124000958,0.1567642632091957,0.1567642632091957,0.29740188736834261,0.28704458625328932,0.15300176031979174,0.18934601661234157,0.14188688540805797,0.1798262389625391,0.17489338030096868,0.14985686808290524,0.15723953263897339,0.19097036434982415,0.19097036434982415,0.16867006797210116,0.18885071789354899,0.18902247005145228,0.18104319032384766,0.19045598280856793,0.18859039187697785,0.20218505124431338,0.26039768398009722,0.20218505124431338,0.18646343129968893,0.17517171302196161,0.16116060334968205,0.16704846943478777,0.26130551346576669,0.19161211632400257,0.16387283902489794,0.16387283902489794,0.20729078305945614,0.19733576006318262,0.18518518518518517,0.18205128314662974,0.15296547026005952,0.15296547026005952,0.21584046142525126,0.18079349510555834,0.13523613973117404,0.20794812130674606,0.22282902381878911,0.22077776318144118,0.17488636572407035,0.14985686808290524,122]
[null,"Male 40-44",0.22148948097064453,0.1835471477378216,0.14706413501395341,0.14228707654217806,0.15105846954519658,0.25655317622135809,0.18205128314662974,0.18163171427363867,0.26319336124000958,0.1567642632091957,0.1567642632091957,0.29740188736834261,0.28704458625328932,0.15300176031979174,0.18934601661234157,0.14188688540805797,0.1798262389625391,0.17489338030096868,0.14985686808290524,0.15723953263897339,0.19097036434982415,0.19097036434982415,0.16867006797210116,0.18885071789354899,0.18902247005145228,0.18104319032384766,0.19045598280856793,0.18859039187697785,0.20218505124431338,0.26039768398009722,0.20218505124431338,0.18646343129968893,0.17517171302196161,0.16116060334968205,0.16704846943478777,0.26130551346576669,0.19161211632400257,0.16387283902489794,0.16387283902489794,0.20729078305945614,0.19733576006318262,0.18518518518518517,0.18205128314662974,0.15296547026005952,0.15296547026005952,0.21584046142525126,0.18079349510555834,0.13523613973117404,0.20794812130674606,0.22282902381878911,0.22077776318144118,0.17488636572407035,0.14985686808290524,123]
[null,"Male 45-49",0.24100720064715545,0.19972137759862815,0.16002347082119803,0.15482545652018054,0.16436978731263799,0.27916071926883418,0.19809369696977638,0.19763715556151118,0.28638603938837737,0.17057837723033686,0.17057837723033686,0.32360903112741762,0.31233904152312808,0.16648432145473882,0.20603124454239152,0.15439000042296355,0.19567258122299744,0.19030503757260292,0.16306230036810562,0.17109552754520471,0.20779873029102672,0.20779873029102672,0.18353332508964271,0.20549229995153692,0.20567918696124945,0.19699677070426491,0.20723902129365376,0.20520903392809201,0.2200016587674965,0.28334400620751632,0.2200016587674965,0.20289464494504497,0.19060789705667883,0.17536212418621042,0.18176883080152245,0.28433183390049444,0.20849703364217786,0.17831336288483632,0.17831336288483632,0.22555730920574807,0.21472504658905106,0.20150375939849624,0.19809369696977638,0.16644483350402867,0.16644483350402867,0.23486038780046892,0.19672507226824365,0.14715318903680832,0.22627257229708489,0.24246478441394856,0.24023276607231706,0.19029740486907865,0.16306230036810562,124]
[null,"Male 50-54",0.24100720064715545,0.19972137759862815,0.16002347082119803,0.15482545652018054,0.16436978731263799,0.27916071926883418,0.19809369696977638,0.19763715556151118,0.28638603938837737,0.17057837723033686,0.17057837723033686,0.32360903112741762,0.31233904152312808,0.16648432145473882,0.20603124454239152,0.15439000042296355,0.19567258122299744,0.19030503757260292,0.16306230036810562,0.17109552754520471,0.20779873029102672,0.20779873029102672,0.18353332508964271,0.20549229995153692,0.20567918696124945,0.19699677070426491,0.20723902129365376,0.20520903392809201,0.2200016587674965,0.28334400620751632,0.2200016587674965,0.20289464494504497,0.19060789705667883,0.17536212418621042,0.18176883080152245,0.28433183390049444,0.20849703364217786,0.17831336288483632,0.17831336288483632,0.22555730920574807,0.21472504658905106,0.20150375939849624,0.19809369696977638,0.16644483350402867,0.16644483350402867,0.23486038780046892,0.19672507226824365,0.14715318903680832,0.22627257229708489,0.24246478441394856,0.24023276607231706,0.19029740486907865,0.16306230036810562,125]
[null,"Male 55-59",0.42474325555748688,0.35198246317072723,0.28202016279884284,0.27285935137611328,0.28967996968967563,0.49198377644993307,0.34911389174443808,0.34830929800814031,0.50471744574188415,0.30062178672660961,0.30062178672660961,0.57031803630671218,0.55045617300233263,0.29340655592067488,0.36310276754599924,0.27209191770654795,0.34484699605996461,0.33538741162309443,0.2873756972035077,0.30153319562957903,0.36621772697049321,0.36621772697049321,0.32345316568360177,0.36215294911953727,0.36248231270997588,0.34718070455389444,0.36523131402900999,0.36165373028846604,0.38772377141444836,0.49935626535688615,0.38772377141444836,0.35757492638283106,0.33592116133222111,0.30905250684760588,0.32034347831187043,0.50109718076986431,0.36744839409553431,0.31425367398873538,0.31425367398873538,0.3975148691391055,0.37842444164766514,0.3551236749116608,0.34911389174443808,0.29333696364005057,0.29333696364005057,0.4139103124222045,0.34670187206284991,0.25933799657988749,0.39877542555890849,0.42731205380373449,0.42337841723875669,0.33537395999453351,0.2873756972035077,126]
[null,"Male 60-64",0.42474325555748688,0.35198246317072723,0.28202016279884284,0.27285935137611328,0.28967996968967563,0.49198377644993307,0.34911389174443808,0.34830929800814031,0.50471744574188415,0.30062178672660961,0.30062178672660961,0.57031803630671218,0.55045617300233263,0.29340655592067488,0.36310276754599924,0.27209191770654795,0.34484699605996461,0.33538741162309443,0.2873756972035077,0.30153319562957903,0.36621772697049321,0.36621772697049321,0.32345316568360177,0.36215294911953727,0.36248231270997588,0.34718070455389444,0.36523131402900999,0.36165373028846604,0.38772377141444836,0.49935626535688615,0.38772377141444836,0.35757492638283106,0.33592116133222111,0.30905250684760588,0.32034347831187043,0.50109718076986431,0.36744839409553431,0.31425367398873538,0.31425367398873538,0.3975148691391055,0.37842444164766514,0.3551236749116608,0.34911389174443808,0.29333696364005057,0.29333696364005057,0.4139103124222045,0.34670187206284991,0.25933799657988749,0.39877542555890849,0.42731205380373449,0.42337841723875669,0.33537395999453351,0.2873756972035077,127]
[null,"Male 65-69",{"$f":"$AR130*C$254","v":0},0,0,0,0,0,0,0,0,0,{"$f":"$AR130*M$254","v":0},0,0,0,0,0,0,0,0,0,{"$f":"$AR130*W$254","v":0},0,0,0,0,0,0,0,0,0,{"$f":"$AR130*AG$254","v":0},0,0,0,0,0,0,0,0,0,0,null,{"$f":"$AR130*AS$254","v":0},0,0,0,0,0,0,0,0,0,0,128]
[null,"Male 70-74",0,0,0,0,0,0,0,0,0,0,0,0,0,0,0,0,0,0,0,0,0,0,0,0,0,0,0,0,0,0,0,0,0,0,0,0,0,0,0,0,0,null,0,0,0,0,0,0,0,0,0,0,0,129]
[null,"Male 75-79",0,0,0,0,0,0,0,0,0,0,0,0,0,0,0,0,0,0,0,0,0,0,0,0,0,0,0,0,0,0,0,0,0,0,0,0,0,0,0,0,0,null,0,0,0,0,0,0,0,0,0,0,0,130]
[null,"Male 80-84",0,0,0,0,0,0,0,0,0,0,0,0,0,0,0,0,0,0,0,0,0,0,0,0,0,0,0,0,0,0,0,0,0,0,0,0,0,0,0,0,0,null,0,0,0,0,0,0,0,0,0,0,0,131]
[null,"Male 85-89",0,0,0,0,0,0,0,0,0,0,0,0,0,0,0,0,0,0,0,0,0,0,0,0,0,0,0,0,0,0,0,0,0,0,0,0,0,0,0,0,0,null,0,0,0,0,0,0,0,0,0,0,0,132]
[null,"Male 90+",0,0,0,0,0,0,0,0,0,0,0,0,0,0,0,0,0,0,0,0,0,0,0,0,0,0,0,0,0,0,0,0,0,0,0,0,0,0,0,0,0,null,0,0,0,0,0,0,0,0,0,0,0,133]
["SIMD Q3","Female 0-4",null,null,null,null,null,null,null,null,null,null,null,null,null,null,null,null,null,null,null,null,null,null,null,null,null,null,null,null,null,null,null,null,null,null,null,null,null,null,null,null,null,null,null,null,null,null,null,null,null,null,null,null,null,134]
[null,"Female 5-9",null,null,null,null,null,null,null,null,null,null,null,null,null,null,null,null,null,null,null,null,null,null,null,null,null,null,null,null,null,null,null,null,null,null,null,null,null,null,null,null,null,null,null,null,null,null,null,null,null,null,null,null,null,135]
[null,"Female 10-15",null,null,null,null,null,null,null,null,null,null,null,null,null,null,null,null,null,null,null,null,null,null,null,null,null,null,null,null,null,null,null,null,null,null,null,null,null,null,null,null,null,null,null,null,null,null,null,null,null,null,null,null,null,136]
[null,"Female 16-19",{"$f":"$AR139*C$253","v":0.10581642883024746},0.10522630023148485,0.10466860402883106,0.10685511033540405,8.6659953053258867E-2,0.14232169891881219,0.12548108706931291,0.10210930328832205,0.1467515376103358,0.13053301668087575,{"$f":"$AR139*M$253","v":0.13053301668087575},9.3955487038313024E-2,0.14728841763136999,9.5052206762838834E-2,0.11523028794492353,8.4049104750994988E-2,0.1115085020345282,0.10560270059775863,8.8683093810023331E-2,0.11367585917515664,{"$f":"$AR139*W$253","v":0.11795213099254069},0.11795213099254069,0.10820584212034112,0.12861512569274067,0.11085041181901965,0.10670983056143279,0.11390039955741324,8.8769137095824943E-2,8.9495200450449411E-2,0.10876249507673029,{"$f":"$AR139*AG$253","v":8.9495200450449411E-2},0.10531081277102576,0.10727578372869388,0.10556875488638126,0.11518417223566174,0.15662083632518495,0.10502076061644802,9.1798058977400926E-2,9.1798058977400926E-2,7.9012707871043794E-2,8.6613361680649578E-2,0.11,{"$f":"$AR139*AS$253","v":0.12548108706931291},7.4173171345090883E-2,7.4173171345090883E-2,0.11954181427225748,0.10563322020049713,7.7578928797386162E-2,0.10456640914058089,9.2200061491193447E-2,0.11469444309554042,0.10857303446310725,8.8683093810023331E-2,137]
[null,"Female 20-24",0.10581642883024746,0.10522630023148485,0.10466860402883106,0.10685511033540405,8.6659953053258867E-2,0.14232169891881219,0.12548108706931291,0.10210930328832205,0.1467515376103358,0.13053301668087575,0.13053301668087575,9.3955487038313024E-2,0.14728841763136999,9.5052206762838834E-2,0.11523028794492353,8.4049104750994988E-2,0.1115085020345282,0.10560270059775863,8.8683093810023331E-2,0.11367585917515664,0.11795213099254069,0.11795213099254069,0.10820584212034112,0.12861512569274067,0.11085041181901965,0.10670983056143279,0.11390039955741324,8.8769137095824943E-2,8.9495200450449411E-2,0.10876249507673029,8.9495200450449411E-2,0.10531081277102576,0.10727578372869388,0.10556875488638126,0.11518417223566174,0.15662083632518495,0.10502076061644802,9.1798058977400926E-2,9.1798058977400926E-2,7.9012707871043794E-2,8.6613361680649578E-2,0.11,0.12548108706931291,7.4173171345090883E-2,7.4173171345090883E-2,0.11954181427225748,0.10563322020049713,7.7578928797386162E-2,0.10456640914058089,9.2200061491193447E-2,0.11469444309554042,0.10857303446310725,8.8683093810023331E-2,138]
[null,"Female 25-29",0.17490318814916936,0.17392776897766091,0.17300595707244804,0.17662001708331249,0.14323959182356838,0.23524247755175567,0.20740675548646761,0.16877570791458188,0.24256452497576164,0.21575705236508388,0.21575705236508388,0.15529832568316204,0.24345192996920662,0.1571110855584113,0.19046328585937775,0.13892414008428924,0.18431157361079042,0.17454991834340269,0.14658362613226997,0.18789398210769695,0.19496219998767056,0.19496219998767056,0.17885263160386963,0.21258698461610029,0.18322382118846223,0.17637988522550876,0.18826512323539379,0.14672584643938008,0.14792595115776763,0.17977271913509141,0.14792595115776763,0.1740674591256624,0.1773153450061056,0.1744938097295558,0.19038706154654833,0.25887741541352888,0.17358803407677362,0.15173232888826599,0.15173232888826599,0.13059951714222115,0.14316258129032988,0.18181818181818182,0.20740675548646761,0.12260028321502627,0.12260028321502627,0.19758977565662394,0.17460036396776385,0.12822963437584489,0.17283703990178662,0.15239679585321234,0.18957759189345522,0.17945956109604505,0.14658362613226997,139]
[null,"Female 30-34",0.17490318814916936,0.17392776897766091,0.17300595707244804,0.17662001708331249,0.14323959182356838,0.23524247755175567,0.20740675548646761,0.16877570791458188,0.24256452497576164,0.21575705236508388,0.21575705236508388,0.15529832568316204,0.24345192996920662,0.1571110855584113,0.19046328585937775,0.13892414008428924,0.18431157361079042,0.17454991834340269,0.14658362613226997,0.18789398210769695,0.19496219998767056,0.19496219998767056,0.17885263160386963,0.21258698461610029,0.18322382118846223,0.17637988522550876,0.18826512323539379,0.14672584643938008,0.14792595115776763,0.17977271913509141,0.14792595115776763,0.1740674591256624,0.1773153450061056,0.1744938097295558,0.19038706154654833,0.25887741541352888,0.17358803407677362,0.15173232888826599,0.15173232888826599,0.13059951714222115,0.14316258129032988,0.18181818181818182,0.20740675548646761,0.12260028321502627,0.12260028321502627,0.19758977565662394,0.17460036396776385,0.12822963437584489,0.17283703990178662,0.15239679585321234,0.18957759189345522,0.17945956109604505,0.14658362613226997,140]
[null,"Female 35-39",0.19268768663834329,0.19161308493639859,0.19059754139250581,0.19457908609866459,0.15780447386679053,0.25916239308262989,0.22849628031804267,0.18593715222088111,0.2672289606193215,0.23769565172636534,0.23769565172636534,0.17108936338641934,0.26820659868931707,0.17308644823369318,0.20982996553773953,0.15305021854851741,0.20305273514766742,0.19229849566731139,0.16148853612889985,0.2069994099519811,0.21478633805981137,0.21478633805981137,0.19703871723331509,0.23420324528425115,0.2018543779301025,0.19431453716357655,0.20740828943593459,0.16164521767518861,0.1629673513901706,0.19805236106549443,0.1629673513901706,0.19176697905204856,0.19534511632553375,0.1922366818197935,0.20974599058759644,0.28520057768417056,0.1912388051258645,0.16716076905809732,0.16716076905809732,0.14387913165285984,0.15771963275180839,0.20030581039755352,0.22849628031804267,0.13506651996395477,0.13506651996395477,0.21768109076543968,0.19235407070148908,0.14126827456849578,0.19041144839332913,0.16789280032452519,0.20885421247589372,0.19770736050412913,0.16148853612889985,141]
[null,"Female 40-44",0.19268768663834329,0.19161308493639859,0.19059754139250581,0.19457908609866459,0.15780447386679053,0.25916239308262989,0.22849628031804267,0.18593715222088111,0.2672289606193215,0.23769565172636534,0.23769565172636534,0.17108936338641934,0.26820659868931707,0.17308644823369318,0.20982996553773953,0.15305021854851741,0.20305273514766742,0.19229849566731139,0.16148853612889985,0.2069994099519811,0.21478633805981137,0.21478633805981137,0.19703871723331509,0.23420324528425115,0.2018543779301025,0.19431453716357655,0.20740828943593459,0.16164521767518861,0.1629673513901706,0.19805236106549443,0.1629673513901706,0.19176697905204856,0.19534511632553375,0.1922366818197935,0.20974599058759644,0.28520057768417056,0.1912388051258645,0.16716076905809732,0.16716076905809732,0.14387913165285984,0.15771963275180839,0.20030581039755352,0.22849628031804267,0.13506651996395477,0.13506651996395477,0.21768109076543968,0.19235407070148908,0.14126827456849578,0.19041144839332913,0.16789280032452519,0.20885421247589372,0.19770736050412913,0.16148853612889985,142]
[null,"Female 45-49",0.17356974579987453,0.1726017631150612,0.1716869790007394,0.17527348582219446,0.14214754919213074,0.23344901520701547,0.20582550957424547,0.16748898078943894,0.24071524016019039,0.21411214472316456,0.21411214472316456,0.15411434861315063,0.24159587967719232,0.15591328820980843,0.18901121506502414,0.13786499797437088,0.18290640278275389,0.17321916928360548,0.14546608895718277,0.18646149939785425,0.19347582997505808,0.19347582997505808,0.17748907913929118,0.21096624521623164,0.18182694326326429,0.17503518470282381,0.18682981098709345,0.14560722499257411,0.14679818024678082,0.17840215202605639,0.14679818024678082,0.17274038828099408,0.1759635126426537,0.17316348843555665,0.18893557187783258,0.25690376294531897,0.17226461831507012,0.15057553857907971,0.15057553857907971,0.12960384102677855,0.14207112577858658,0.18043202033036848,0.20582550957424547,0.12166559236459404,0.12166559236459404,0.19608337330091904,0.17326923031616717,0.12725202598161989,0.17151934963569929,0.15123493972218402,0.18813227353086218,0.17809138146888331,0.14546608895718277,143]
[null,"Female 50-54",0.17356974579987453,0.1726017631150612,0.1716869790007394,0.17527348582219446,0.14214754919213074,0.23344901520701547,0.20582550957424547,0.16748898078943894,0.24071524016019039,0.21411214472316456,0.21411214472316456,0.15411434861315063,0.24159587967719232,0.15591328820980843,0.18901121506502414,0.13786499797437088,0.18290640278275389,0.17321916928360548,0.14546608895718277,0.18646149939785425,0.19347582997505808,0.19347582997505808,0.17748907913929118,0.21096624521623164,0.18182694326326429,0.17503518470282381,0.18682981098709345,0.14560722499257411,0.14679818024678082,0.17840215202605639,0.14679818024678082,0.17274038828099408,0.1759635126426537,0.17316348843555665,0.18893557187783258,0.25690376294531897,0.17226461831507012,0.15057553857907971,0.15057553857907971,0.12960384102677855,0.14207112577858658,0.18043202033036848,0.20582550957424547,0.12166559236459404,0.12166559236459404,0.19608337330091904,0.17326923031616717,0.12725202598161989,0.17151934963569929,0.15123493972218402,0.18813227353086218,0.17809138146888331,0.14546608895718277,144]
[null,"Female 55-59",0.41515079365853813,0.41283553544348423,0.41064751961539864,0.41922586457135413,0.33999397528513192,0.55837233323911839,0.49230137004085434,0.40060658603468147,0.57575196954791463,0.51212166270175985,0.51212166270175985,0.36861662639460041,0.57785831701489754,0.37291939931078216,0.45208429374024084,0.32975080457157757,0.43748256892672949,0.41431227126342585,0.34793138632931953,0.44598578574305997,0.46276293139531582,0.46276293139531582,0.42452520588097264,0.504597179266847,0.43490067613099381,0.41865588678875998,0.44686672756780971,0.34826896092699222,0.35111753350925429,0.42670912872917294,0.35111753350925429,0.41316710444701571,0.42087629725960402,0.41417909166952527,0.4519033674558085,0.61447230097107863,0.41202913954396192,0.36015236444917326,0.36015236444917326,0.30999145165252073,0.33981118282530115,0.43156424581005587,0.49230137004085434,0.29100444318985635,0.29100444318985635,0.46899975381065973,0.41443200916650091,0.30436628997450893,0.41024657725291391,0.36172954546443342,0.44998200757392059,0.42596581575800074,0.34793138632931953,145]
[null,"Female 60-64",0.41515079365853813,0.41283553544348423,0.41064751961539864,0.41922586457135413,0.33999397528513192,0.55837233323911839,0.49230137004085434,0.40060658603468147,0.57575196954791463,0.51212166270175985,0.51212166270175985,0.36861662639460041,0.57785831701489754,0.37291939931078216,0.45208429374024084,0.32975080457157757,0.43748256892672949,0.41431227126342585,0.34793138632931953,0.44598578574305997,0.46276293139531582,0.46276293139531582,0.42452520588097264,0.504597179266847,0.43490067613099381,0.41865588678875998,0.44686672756780971,0.34826896092699222,0.35111753350925429,0.42670912872917294,0.35111753350925429,0.41316710444701571,0.42087629725960402,0.41417909166952527,0.4519033674558085,0.61447230097107863,0.41202913954396192,0.36015236444917326,0.36015236444917326,0.30999145165252073,0.33981118282530115,0.43156424581005587,0.49230137004085434,0.29100444318985635,0.29100444318985635,0.46899975381065973,0.41443200916650091,0.30436628997450893,0.41024657725291391,0.36172954546443342,0.44998200757392059,0.42596581575800074,0.34793138632931953,146]
[null,"Female 65-69",{"$f":"$AR149*C$253","v":0},0,0,0,0,0,0,0,0,0,{"$f":"$AR149*M$253","v":0},0,0,0,0,0,0,0,0,0,{"$f":"$AR149*W$253","v":0},0,0,0,0,0,0,0,0,0,{"$f":"$AR149*AG$253","v":0},0,0,0,0,0,0,0,0,0,0,null,{"$f":"$AR149*AS$253","v":0},0,0,0,0,0,0,0,0,0,0,147]
[null,"Female 70-74",0,0,0,0,0,0,0,0,0,0,0,0,0,0,0,0,0,0,0,0,0,0,0,0,0,0,0,0,0,0,0,0,0,0,0,0,0,0,0,0,0,null,0,0,0,0,0,0,0,0,0,0,0,148]
[null,"Female 75-79",0,0,0,0,0,0,0,0,0,0,0,0,0,0,0,0,0,0,0,0,0,0,0,0,0,0,0,0,0,0,0,0,0,0,0,0,0,0,0,0,0,null,0,0,0,0,0,0,0,0,0,0,0,149]
[null,"Female 80-84",0,0,0,0,0,0,0,0,0,0,0,0,0,0,0,0,0,0,0,0,0,0,0,0,0,0,0,0,0,0,0,0,0,0,0,0,0,0,0,0,0,null,0,0,0,0,0,0,0,0,0,0,0,150]
[null,"Female 85-89",0,0,0,0,0,0,0,0,0,0,0,0,0,0,0,0,0,0,0,0,0,0,0,0,0,0,0,0,0,0,0,0,0,0,0,0,0,0,0,0,0,null,0,0,0,0,0,0,0,0,0,0,0,151]
[null,"Female 90+",0,0,0,0,0,0,0,0,0,0,0,0,0,0,0,0,0,0,0,0,0,0,0,0,0,0,0,0,0,0,0,0,0,0,0,0,0,0,0,0,0,null,0,0,0,0,0,0,0,0,0,0,0,152]
[null,"Male 0-4",null,null,null,null,null,null,null,null,null,null,null,null,null,null,null,null,null,null,null,null,null,null,null,null,null,null,null,null,null,null,null,null,null,null,null,null,null,null,null,null,null,null,null,null,null,null,null,null,null,null,null,null,null,153]
[null,"Male 5-9",null,null,null,null,null,null,null,null,null,null,null,null,null,null,null,null,null,null,null,null,null,null,null,null,null,null,null,null,null,null,null,null,null,null,null,null,null,null,null,null,null,null,null,null,null,null,null,null,null,null,null,null,null,154]
[null,"Male 10-15",null,null,null,null,null,null,null,null,null,null,null,null,null,null,null,null,null,null,null,null,null,null,null,null,null,null,null,null,null,null,null,null,null,null,null,null,null,null,null,null,null,null,null,null,null,null,null,null,null,null,null,null,null,155]
[null,"Male 16-19",{"$f":"$AR158*C$254","v":0.1521385671637891},0.12607641654789703,0.1010166563403085,9.7735350031907059E-2,0.10376031861127985,0.17622341458649057,0.12504892443144236,0.12476072741692205,0.18078448100830405,0.10767956240005419,{"$f":"$AR158*M$254","v":0.10767956240005419},0.20428192263461498,0.19716761208396194,0.10509514260713679,0.13005959262413286,9.7460463362482097E-2,0.1235205672717245,0.12013224361181998,0.10293495244050829,0.10800601948391322,{"$f":"$AR158*W$254","v":0.13117533833030973},0.13117533833030973,0.11585752222741194,0.12971937765290742,0.12983735222712281,0.12435647711090123,0.13082201558866408,0.12954056271784584,0.13887857727349118,0.17886416257732707,{"$f":"$AR158*AG$254","v":0.13887857727349118},0.12807957805516793,0.12032342714424368,0.11069935768246261,0.11474366491508906,0.17948774016924485,0.13161615035171215,0.11256236105232716,0.11256236105232716,0.14238564550659316,0.13554765515103151,0.12720156555772993,{"$f":"$AR158*AS$254","v":0.12504892443144236},0.10507021538411133,0.10507021538411133,0.14825832086157181,0.12418496434843636,9.2892142946462003E-2,0.14283716355903692,0.15305868367983361,0.15164969643187057,0.12012742537993873,0.10293495244050829,156]
[null,"Male 20-24",0.1521385671637891,0.12607641654789703,0.1010166563403085,9.7735350031907059E-2,0.10376031861127985,0.17622341458649057,0.12504892443144236,0.12476072741692205,0.18078448100830405,0.10767956240005419,0.10767956240005419,0.20428192263461498,0.19716761208396194,0.10509514260713679,0.13005959262413286,9.7460463362482097E-2,0.1235205672717245,0.12013224361181998,0.10293495244050829,0.10800601948391322,0.13117533833030973,0.13117533833030973,0.11585752222741194,0.12971937765290742,0.12983735222712281,0.12435647711090123,0.13082201558866408,0.12954056271784584,0.13887857727349118,0.17886416257732707,0.13887857727349118,0.12807957805516793,0.12032342714424368,0.11069935768246261,0.11474366491508906,0.17948774016924485,0.13161615035171215,0.11256236105232716,0.11256236105232716,0.14238564550659316,0.13554765515103151,0.12720156555772993,0.12504892443144236,0.10507021538411133,0.10507021538411133,0.14825832086157181,0.12418496434843636,9.2892142946462003E-2,0.14283716355903692,0.15305868367983361,0.15164969643187057,0.12012742537993873,0.10293495244050829,157]
[null,"Male 25-29",0.12589928392015584,0.10433206292465649,8.3594350428984041E-2,8.0878969823974911E-2,8.586481426779595E-2,0.14583022648371932,0.10348178199913691,0.10324329021869987,0.14960464744168966,8.9108107508384923E-2,8.9108107508384923E-2,0.16904949387253157,0.16316218587029077,8.6969421655460566E-2,0.10762826207438363,8.0651492758264526E-2,0.10221702004186432,9.9413079328971671E-2,8.5181798699756658E-2,8.9378260657942757E-2,0.1085515755251632,0.1085515755251632,9.5875617584141704E-2,0.10734672385528048,0.10744435139766761,0.10290876081566076,0.10825919022802809,0.10719874906691373,0.11492623965466234,0.14801552563079209,0.11492623965466234,0.10598973989666528,9.9571289507220273E-2,9.160707979876663E-2,9.4953866836616205E-2,0.14853155502264634,0.1089163608578541,9.3148771656257776E-2,9.3148771656257776E-2,0.11782844510748032,0.11216980045696696,0.10526315789473684,0.10348178199913691,8.6948793621507509E-2,8.6948793621507509E-2,0.12268826228382704,0.10276682879684369,7.6871068899825243E-2,0.11820209000593987,0.12666070827594328,0.12549472854524024,9.9409092095787355E-2,8.5181798699756658E-2,158]
[null,"Male 30-34",0.12589928392015584,0.10433206292465649,8.3594350428984041E-2,8.0878969823974911E-2,8.586481426779595E-2,0.14583022648371932,0.10348178199913691,0.10324329021869987,0.14960464744168966,8.9108107508384923E-2,8.9108107508384923E-2,0.16904949387253157,0.16316218587029077,8.6969421655460566E-2,0.10762826207438363,8.0651492758264526E-2,0.10221702004186432,9.9413079328971671E-2,8.5181798699756658E-2,8.9378260657942757E-2,0.1085515755251632,0.1085515755251632,9.5875617584141704E-2,0.10734672385528048,0.10744435139766761,0.10290876081566076,0.10825919022802809,0.10719874906691373,0.11492623965466234,0.14801552563079209,0.11492623965466234,0.10598973989666528,9.9571289507220273E-2,9.160707979876663E-2,9.4953866836616205E-2,0.14853155502264634,0.1089163608578541,9.3148771656257776E-2,9.3148771656257776E-2,0.11782844510748032,0.11216980045696696,0.10526315789473684,0.10348178199913691,8.6948793621507509E-2,8.6948793621507509E-2,0.12268826228382704,0.10276682879684369,7.6871068899825243E-2,0.11820209000593987,0.12666070827594328,0.12549472854524024,9.9409092095787355E-2,8.5181798699756658E-2,159]
[null,"Male 35-39",0.11717990783784775,9.7106362620752923E-2,7.7804876835084816E-2,7.5277554684138812E-2,7.991809571208712E-2,0.13573049796035364,9.6314969394466959E-2,9.609299478125613E-2,0.13924351476414021,8.2936768981621778E-2,8.2936768981621778E-2,0.15734167419554881,0.1518621020515713,8.0946201574592522E-2,0.10017427770774558,7.506583194223608E-2,9.51378007484244E-2,9.2528051875444925E-2,7.9282383587104599E-2,8.3188212200213621E-2,0.10103364546345427,0.10103364546345427,8.9235583258212972E-2,9.9912237912600593E-2,0.10000310408803186,9.5781633799711288E-2,0.10076150982372209,9.9774511378157876E-2,0.10696682102993067,0.13776445037595686,0.10696682102993067,9.8649234261930022E-2,9.2675304929862118E-2,8.5262670555946649E-2,8.8377669977999215E-2,0.1382447412457401,0.10137316694709056,8.6697589835469657E-2,8.6697589835469657E-2,0.1096680291456447,0.10440128387126488,9.7972972972972971E-2,9.6314969394466959E-2,8.0927002171369333E-2,8.0927002171369333E-2,0.11419127114592686,9.5649531532197435E-2,7.1547227979398151E-2,0.11001579661025822,0.11788859841223776,0.11680337065612734,9.2524340785099385E-2,7.9282383587104599E-2,160]
[null,"Male 40-44",0.11717990783784775,9.7106362620752923E-2,7.7804876835084816E-2,7.5277554684138812E-2,7.991809571208712E-2,0.13573049796035364,9.6314969394466959E-2,9.609299478125613E-2,0.13924351476414021,8.2936768981621778E-2,8.2936768981621778E-2,0.15734167419554881,0.1518621020515713,8.0946201574592522E-2,0.10017427770774558,7.506583194223608E-2,9.51378007484244E-2,9.2528051875444925E-2,7.9282383587104599E-2,8.3188212200213621E-2,0.10103364546345427,0.10103364546345427,8.9235583258212972E-2,9.9912237912600593E-2,0.10000310408803186,9.5781633799711288E-2,0.10076150982372209,9.9774511378157876E-2,0.10696682102993067,0.13776445037595686,0.10696682102993067,9.8649234261930022E-2,9.2675304929862118E-2,8.5262670555946649E-2,8.8377669977999215E-2,0.1382447412457401,0.10137316694709056,8.6697589835469657E-2,8.6697589835469657E-2,0.1096680291456447,0.10440128387126488,9.7972972972972971E-2,9.6314969394466959E-2,8.0927002171369333E-2,8.0927002171369333E-2,0.11419127114592686,9.5649531532197435E-2,7.1547227979398151E-2,0.11001579661025822,0.11788859841223776,0.11680337065612734,9.2524340785099385E-2,7.9282383587104599E-2,161]
[null,"Male 45-49",0.18323781573337444,0.15184819743212541,0.12166587214246284,0.11771382098336181,0.1249703773117643,0.21224594244496756,0.15061067157255997,0.15026356306203534,0.21773935456346197,0.12969076928448781,0.12969076928448781,0.24604000152757033,0.23747142651038142,0.12657805798044053,0.15664559034502909,0.11738274363842122,0.14876989685758804,0.14468895250525821,0.12397629476496617,0.13008395875703369,0.15798941006099657,0.15798941006099657,0.13954041835017839,0.15623583068073552,0.15637792090607613,0.14977667834591296,0.15756386321488766,0.15602046347482568,0.16726729866173001,0.21542649621751775,0.16726729866173001,0.15426083313651145,0.14491921662262561,0.1333278529104612,0.13819887304215034,0.21617754178087106,0.15852033021790743,0.13557168019608548,0.13557168019608548,0.17149126063693168,0.16325548952302296,0.15320334261838439,0.15061067157255997,0.12654803528478462,0.12654803528478462,0.17856439287827194,0.14957010597869311,0.11188059470796291,0.17203507528719661,0.18434601691972247,0.18264901299411707,0.14468314935946766,0.12397629476496617,162]
[null,"Male 50-54",0.18323781573337444,0.15184819743212541,0.12166587214246284,0.11771382098336181,0.1249703773117643,0.21224594244496756,0.15061067157255997,0.15026356306203534,0.21773935456346197,0.12969076928448781,0.12969076928448781,0.24604000152757033,0.23747142651038142,0.12657805798044053,0.15664559034502909,0.11738274363842122,0.14876989685758804,0.14468895250525821,0.12397629476496617,0.13008395875703369,0.15798941006099657,0.15798941006099657,0.13954041835017839,0.15623583068073552,0.15637792090607613,0.14977667834591296,0.15756386321488766,0.15602046347482568,0.16726729866173001,0.21542649621751775,0.16726729866173001,0.15426083313651145,0.14491921662262561,0.1333278529104612,0.13819887304215034,0.21617754178087106,0.15852033021790743,0.13557168019608548,0.13557168019608548,0.17149126063693168,0.16325548952302296,0.15320334261838439,0.15061067157255997,0.12654803528478462,0.12654803528478462,0.17856439287827194,0.14957010597869311,0.11188059470796291,0.17203507528719661,0.18434601691972247,0.18264901299411707,0.14468314935946766,0.12397629476496617,163]
[null,"Male 55-59",0.31798127298262924,0.2635093794713379,0.21113255878740381,0.20427437695722969,0.2168670233470617,0.36832045117942408,0.26136184214887753,0.2607594882865048,0.3778534297923038,0.22505854343507495,0.22505854343507495,0.42696488482609191,0.41209543017390665,0.21965690786696387,0.27183452294315624,0.20369984273688566,0.25816745847431599,0.25108560217226683,0.21514194475225551,0.22574086377655636,0.27416651703636385,0.27416651703636385,0.24215110664756034,0.27112344756197732,0.27137002346963784,0.25991457414469005,0.27342804540976279,0.27074971063425946,0.29026687719425298,0.37383981700103386,0.29026687719425298,0.26769614064535402,0.25148519041702766,0.231370147165465,0.23982305944232979,0.37514314199073218,0.27508784796726898,0.23526396708347885,0.23526396708347885,0.2975969187608869,0.28330499450762658,0.26586102719033233,0.26136184214887753,0.21960480805915494,0.21960480805915494,0.30987126063226411,0.25955609931770796,0.19415170271980031,0.29854062611772125,0.31990438706552443,0.31695949566109022,0.25107553169812152,0.21514194475225551,164]
[null,"Male 60-64",0.31798127298262924,0.2635093794713379,0.21113255878740381,0.20427437695722969,0.2168670233470617,0.36832045117942408,0.26136184214887753,0.2607594882865048,0.3778534297923038,0.22505854343507495,0.22505854343507495,0.42696488482609191,0.41209543017390665,0.21965690786696387,0.27183452294315624,0.20369984273688566,0.25816745847431599,0.25108560217226683,0.21514194475225551,0.22574086377655636,0.27416651703636385,0.27416651703636385,0.24215110664756034,0.27112344756197732,0.27137002346963784,0.25991457414469005,0.27342804540976279,0.27074971063425946,0.29026687719425298,0.37383981700103386,0.29026687719425298,0.26769614064535402,0.25148519041702766,0.231370147165465,0.23982305944232979,0.37514314199073218,0.27508784796726898,0.23526396708347885,0.23526396708347885,0.2975969187608869,0.28330499450762658,0.26586102719033233,0.26136184214887753,0.21960480805915494,0.21960480805915494,0.30987126063226411,0.25955609931770796,0.19415170271980031,0.29854062611772125,0.31990438706552443,0.31695949566109022,0.25107553169812152,0.21514194475225551,165]
[null,"Male 65-69",{"$f":"$AR168*C$254","v":0},0,0,0,0,0,0,0,0,0,{"$f":"$AR168*M$254","v":0},0,0,0,0,0,0,0,0,0,{"$f":"$AR168*W$254","v":0},0,0,0,0,0,0,0,0,0,{"$f":"$AR168*AG$254","v":0},0,0,0,0,0,0,0,0,0,0,null,{"$f":"$AR168*AS$254","v":0},0,0,0,0,0,0,0,0,0,0,166]
[null,"Male 70-74",0,0,0,0,0,0,0,0,0,0,0,0,0,0,0,0,0,0,0,0,0,0,0,0,0,0,0,0,0,0,0,0,0,0,0,0,0,0,0,0,0,null,0,0,0,0,0,0,0,0,0,0,0,167]
[null,"Male 75-79",0,0,0,0,0,0,0,0,0,0,0,0,0,0,0,0,0,0,0,0,0,0,0,0,0,0,0,0,0,0,0,0,0,0,0,0,0,0,0,0,0,null,0,0,0,0,0,0,0,0,0,0,0,168]
[null,"Male 80-84",0,0,0,0,0,0,0,0,0,0,0,0,0,0,0,0,0,0,0,0,0,0,0,0,0,0,0,0,0,0,0,0,0,0,0,0,0,0,0,0,0,null,0,0,0,0,0,0,0,0,0,0,0,169]
[null,"Male 85-89",0,0,0,0,0,0,0,0,0,0,0,0,0,0,0,0,0,0,0,0,0,0,0,0,0,0,0,0,0,0,0,0,0,0,0,0,0,0,0,0,0,null,0,0,0,0,0,0,0,0,0,0,0,170]
[null,"Male 90+",0,0,0,0,0,0,0,0,0,0,0,0,0,0,0,0,0,0,0,0,0,0,0,0,0,0,0,0,0,0,0,0,0,0,0,0,0,0,0,0,0,null,0,0,0,0,0,0,0,0,0,0,0,171]
["SIMD Q4","Female 0-4",null,null,null,null,null,null,null,null,null,null,null,null,null,null,null,null,null,null,null,null,null,null,null,null,null,null,null,null,null,null,null,null,null,null,null,null,null,null,null,null,null,null,null,null,null,null,null,null,null,null,null,null,null,172]
[null,"Female 5-9",null,null,null,null,null,null,null,null,null,null,null,null,null,null,null,null,null,null,null,null,null,null,null,null,null,null,null,null,null,null,null,null,null,null,null,null,null,null,null,null,null,null,null,null,null,null,null,null,null,null,null,null,null,173]
[null,"Female 10-15",null,null,null,null,null,null,null,null,null,null,null,null,null,null,null,null,null,null,null,null,null,null,null,null,null,null,null,null,null,null,null,null,null,null,null,null,null,null,null,null,null,null,null,null,null,null,null,null,null,null,null,null,null,174]
[null,"Female 16-19",{"$f":"$AR177*C$253","v":0.1442951302230647},0.14349040940657024,0.14272991458476963,0.14571151409373279,0.11817266325444389,0.19407504398019843,0.17111057327633578,0.13923995902953004,0.20011573310500333,0.1779995682011942,{"$f":"$AR177*M$253","v":0.1779995682011942},0.12812111868860868,0.20084784222459542,0.12961664558568933,0.15713221083398662,0.11461241556953861,0.15205704822890209,0.14400368263330723,0.12093149155912271,0.15501253523884997,{"$f":"$AR177*W$253","v":0.16084381498982822},0.16084381498982822,0.14755342107319244,0.17538426230828272,0.15115965248048133,0.14551340531104473,0.15531872666919988,0.12104882331248856,0.12203890970515828,0.14831249328645041,{"$f":"$AR177*AG$253","v":0.12203890970515828},0.14360565377867149,0.1462851596300371,0.14395739302688354,0.15706932577590235,0.2135738677161613,0.14321012811333822,0.12517917133281944,0.12517917133281944,0.10774460164233245,0.11810912956452214,0.15,{"$f":"$AR177*AS$253","v":0.17111057327633578},0.10114523365239667,0.10114523365239667,0.16301156491671473,0.14404530027340517,0.10578944836007204,0.14259055791897396,0.12572735657890016,0.15640151331210056,0.14805413790423716,0.12093149155912271,175]
[null,"Female 20-24",0.1442951302230647,0.14349040940657024,0.14272991458476963,0.14571151409373279,0.11817266325444389,0.19407504398019843,0.17111057327633578,0.13923995902953004,0.20011573310500333,0.1779995682011942,0.1779995682011942,0.12812111868860868,0.20084784222459542,0.12961664558568933,0.15713221083398662,0.11461241556953861,0.15205704822890209,0.14400368263330723,0.12093149155912271,0.15501253523884997,0.16084381498982822,0.16084381498982822,0.14755342107319244,0.17538426230828272,0.15115965248048133,0.14551340531104473,0.15531872666919988,0.12104882331248856,0.12203890970515828,0.14831249328645041,0.12203890970515828,0.14360565377867149,0.1462851596300371,0.14395739302688354,0.15706932577590235,0.2135738677161613,0.14321012811333822,0.12517917133281944,0.12517917133281944,0.10774460164233245,0.11810912956452214,0.15,0.17111057327633578,0.10114523365239667,0.10114523365239667,0.16301156491671473,0.14404530027340517,0.10578944836007204,0.14259055791897396,0.12572735657890016,0.15640151331210056,0.14805413790423716,0.12093149155912271,176]
[null,"Female 25-29",0.14799500535698945,0.1471696506734054,0.14638965598437911,0.14944770676280289,0.1212027315430194,0.19905132715917789,0.1754980238731649,0.14281021438926161,0.2052469057487214,0.18256365969353253,0.18256365969353253,0.1314062755780602,0.20599778689702097,0.13294014931865572,0.16116124188101194,0.11755119545593705,0.15595594690143805,0.14769608475210999,0.12403229903499767,0.15898721562958973,0.16496801537418279,0.16496801537418279,0.15133684212635123,0.17988129467516178,0.15503554100562189,0.14924451826773819,0.15930125812225629,0.12415263929486008,0.12516811251811108,0.15211537772969272,0.12516811251811108,0.14728785002940667,0.15003606115901244,0.14764860823270107,0.16109674438554089,0.21905012073452443,0.14688218268034689,0.12838889367468662,0.12838889367468662,0.1105072837357256,0.12113756878412529,0.15384615384615385,0.1754980238731649,0.10373870118194531,0.10373870118194531,0.16719134863252796,0.14773876951118481,0.10850199831802261,0.14624672607074252,0.12895113495271812,0.16041180852523135,0.15185039785049964,0.12403229903499767,177]
[null,"Female 30-34",0.14799500535698945,0.1471696506734054,0.14638965598437911,0.14944770676280289,0.1212027315430194,0.19905132715917789,0.1754980238731649,0.14281021438926161,0.2052469057487214,0.18256365969353253,0.18256365969353253,0.1314062755780602,0.20599778689702097,0.13294014931865572,0.16116124188101194,0.11755119545593705,0.15595594690143805,0.14769608475210999,0.12403229903499767,0.15898721562958973,0.16496801537418279,0.16496801537418279,0.15133684212635123,0.17988129467516178,0.15503554100562189,0.14924451826773819,0.15930125812225629,0.12415263929486008,0.12516811251811108,0.15211537772969272,0.12516811251811108,0.14728785002940667,0.15003606115901244,0.14764860823270107,0.16109674438554089,0.21905012073452443,0.14688218268034689,0.12838889367468662,0.12838889367468662,0.1105072837357256,0.12113756878412529,0.15384615384615385,0.1754980238731649,0.10373870118194531,0.10373870118194531,0.16719134863252796,0.14773876951118481,0.10850199831802261,0.14624672607074252,0.12895113495271812,0.16041180852523135,0.15185039785049964,0.12403229903499767,178]
[null,"Female 35-39",0.15124418748593185,0.15040071240915295,0.14960359319083502,0.15272878247785024,0.12386369802873724,0.20342143420020797,0.17935102581372306,0.14594556612160373,0.20975303469929529,0.18657178536669081,0.18657178536669081,0.13429125754896659,0.21052040119858445,0.13585880698783301,0.16469948444355539,0.1201319936564569,0.15937990890848094,0.15093870417655431,0.12675538775318812,0.16247772815403538,0.16858983440860181,0.16858983440860181,0.15465939319286459,0.18383052989820003,0.15843929580107111,0.15252113304557097,0.16279866534731999,0.12687837004425145,0.12791613765129906,0.15545502129174688,0.12791613765129906,0.15052150679350837,0.15333005400315505,0.15089018532562865,0.16463357092658321,0.22385929477331354,0.15010693314995791,0.13120763000890423,0.13120763000890423,0.11293343514918699,0.12379710464270027,0.15722379603399433,0.17935102581372306,0.10601625057050075,0.10601625057050075,0.17086198022431856,0.15098232606560882,0.11088412434341828,0.14945752529750811,0.1317822151110285,0.16393359752259831,0.15518422386563102,0.12675538775318812,179]
[null,"Female 40-44",0.15124418748593185,0.15040071240915295,0.14960359319083502,0.15272878247785024,0.12386369802873724,0.20342143420020797,0.17935102581372306,0.14594556612160373,0.20975303469929529,0.18657178536669081,0.18657178536669081,0.13429125754896659,0.21052040119858445,0.13585880698783301,0.16469948444355539,0.1201319936564569,0.15937990890848094,0.15093870417655431,0.12675538775318812,0.16247772815403538,0.16858983440860181,0.16858983440860181,0.15465939319286459,0.18383052989820003,0.15843929580107111,0.15252113304557097,0.16279866534731999,0.12687837004425145,0.12791613765129906,0.15545502129174688,0.12791613765129906,0.15052150679350837,0.15333005400315505,0.15089018532562865,0.16463357092658321,0.22385929477331354,0.15010693314995791,0.13120763000890423,0.13120763000890423,0.11293343514918699,0.12379710464270027,0.15722379603399433,0.17935102581372306,0.10601625057050075,0.10601625057050075,0.17086198022431856,0.15098232606560882,0.11088412434341828,0.14945752529750811,0.1317822151110285,0.16393359752259831,0.15518422386563102,0.12675538775318812,180]
[null,"Female 45-49",0.16665665625178527,0.1657272272385826,0.1648488779560936,0.16829253820767384,0.1364859707178519,0.22415100108824088,0.1976277089010311,0.16081808133527595,0.23112782039905358,0.20558429660664243,0.20558429660664243,0.14797614585380242,0.23197338502548306,0.14970343569107394,0.18148310900416587,0.13237398874259576,0.1756214445918606,0.16632004280747473,0.13967233674226162,0.17903494567060158,0.18576990327772558,0.18576990327772558,0.17041988691202051,0.20256369477126221,0.17458497874207643,0.16806372835632361,0.17938858781968994,0.13980785148664615,0.14095137232028518,0.1712965931232395,0.14095137232028518,0.16586033111864107,0.16895508202884404,0.16626657966555264,0.18141047860082293,0.24667157236223311,0.16540351054025906,0.14457828267971837,0.14457828267971837,0.12444186446994539,0.1364125911637025,0.17324561403508773,0.1976277089010311,0.11681978740554587,0.11681978740554587,0.18827359105877875,0.16636810996489781,0.12218371959715923,0.1646879250818559,0.14521142061013323,0.18063917473181207,0.17099820021103415,0.13967233674226162,181]
[null,"Female 50-54",0.16665665625178527,0.1657272272385826,0.1648488779560936,0.16829253820767384,0.1364859707178519,0.22415100108824088,0.1976277089010311,0.16081808133527595,0.23112782039905358,0.20558429660664243,0.20558429660664243,0.14797614585380242,0.23197338502548306,0.14970343569107394,0.18148310900416587,0.13237398874259576,0.1756214445918606,0.16632004280747473,0.13967233674226162,0.17903494567060158,0.18576990327772558,0.18576990327772558,0.17041988691202051,0.20256369477126221,0.17458497874207643,0.16806372835632361,0.17938858781968994,0.13980785148664615,0.14095137232028518,0.1712965931232395,0.14095137232028518,0.16586033111864107,0.16895508202884404,0.16626657966555264,0.18141047860082293,0.24667157236223311,0.16540351054025906,0.14457828267971837,0.14457828267971837,0.12444186446994539,0.1364125911637025,0.17324561403508773,0.1976277089010311,0.11681978740554587,0.11681978740554587,0.18827359105877875,0.16636810996489781,0.12218371959715923,0.1646879250818559,0.14521142061013323,0.18063917473181207,0.17099820021103415,0.13967233674226162,182]
[null,"Female 55-59",0.41660011350491122,0.41427677256490097,0.41208111822374432,0.42068941076930727,0.34118091753251523,0.56032164928666217,0.49402002783194054,0.40200513105638597,0.57776195909581018,0.5139095144916368,0.5139095144916368,0.36990349227682295,0.57987565996602364,0.37422128646786945,0.45366255096426589,0.33090198720864167,0.43900985052963859,0.41575866377070331,0.34914603862213911,0.44754275265809701,0.46437846847456965,0.46437846847456965,0.42600725244228788,0.50635876256984513,0.43641894416936872,0.42011744315524724,0.44842676991107577,0.34948479171584623,0.35234330886003706,0.4281987995146862,0.35234330886003706,0.41460949909852662,0.42234560523107828,0.41562501923772149,0.45348099305378636,0.61661746584718491,0.41346756148207886,0.36140968101338949,0.36140968101338949,0.31107365303560552,0.34099748693169124,0.43307086614173229,0.49402002783194054,0.2920203596263421,0.2920203596263421,0.47063706406400585,0.41587881968699658,0.30542885353301641,0.41167877614401932,0.36299236807556479,0.45155292557299376,0.42745289158703642,0.34914603862213911,183]
[null,"Female 60-64",0.41660011350491122,0.41427677256490097,0.41208111822374432,0.42068941076930727,0.34118091753251523,0.56032164928666217,0.49402002783194054,0.40200513105638597,0.57776195909581018,0.5139095144916368,0.5139095144916368,0.36990349227682295,0.57987565996602364,0.37422128646786945,0.45366255096426589,0.33090198720864167,0.43900985052963859,0.41575866377070331,0.34914603862213911,0.44754275265809701,0.46437846847456965,0.46437846847456965,0.42600725244228788,0.50635876256984513,0.43641894416936872,0.42011744315524724,0.44842676991107577,0.34948479171584623,0.35234330886003706,0.4281987995146862,0.35234330886003706,0.41460949909852662,0.42234560523107828,0.41562501923772149,0.45348099305378636,0.61661746584718491,0.41346756148207886,0.36140968101338949,0.36140968101338949,0.31107365303560552,0.34099748693169124,0.43307086614173229,0.49402002783194054,0.2920203596263421,0.2920203596263421,0.47063706406400585,0.41587881968699658,0.30542885353301641,0.41167877614401932,0.36299236807556479,0.45155292557299376,0.42745289158703642,0.34914603862213911,184]
[null,"Female 65-69",{"$f":"$AR187*C$253","v":0},0,0,0,0,0,0,0,0,0,{"$f":"$AR187*M$253","v":0},0,0,0,0,0,0,0,0,0,{"$f":"$AR187*W$253","v":0},0,0,0,0,0,0,0,0,0,{"$f":"$AR187*AG$253","v":0},0,0,0,0,0,0,0,0,0,0,null,{"$f":"$AR187*AS$253","v":0},0,0,0,0,0,0,0,0,0,0,185]
[null,"Female 70-74",0,0,0,0,0,0,0,0,0,0,0,0,0,0,0,0,0,0,0,0,0,0,0,0,0,0,0,0,0,0,0,0,0,0,0,0,0,0,0,0,0,null,0,0,0,0,0,0,0,0,0,0,0,186]
[null,"Female 75-79",0,0,0,0,0,0,0,0,0,0,0,0,0,0,0,0,0,0,0,0,0,0,0,0,0,0,0,0,0,0,0,0,0,0,0,0,0,0,0,0,0,null,0,0,0,0,0,0,0,0,0,0,0,187]
[null,"Female 80-84",0,0,0,0,0,0,0,0,0,0,0,0,0,0,0,0,0,0,0,0,0,0,0,0,0,0,0,0,0,0,0,0,0,0,0,0,0,0,0,0,0,null,0,0,0,0,0,0,0,0,0,0,0,188]
[null,"Female 85-89",0,0,0,0,0,0,0,0,0,0,0,0,0,0,0,0,0,0,0,0,0,0,0,0,0,0,0,0,0,0,0,0,0,0,0,0,0,0,0,0,0,null,0,0,0,0,0,0,0,0,0,0,0,189]
[null,"Female 90+",0,0,0,0,0,0,0,0,0,0,0,0,0,0,0,0,0,0,0,0,0,0,0,0,0,0,0,0,0,0,0,0,0,0,0,0,0,0,0,0,0,null,0,0,0,0,0,0,0,0,0,0,0,190]
[null,"Male 0-4",null,null,null,null,null,null,null,null,null,null,null,null,null,null,null,null,null,null,null,null,null,null,null,null,null,null,null,null,null,null,null,null,null,null,null,null,null,null,null,null,null,null,null,null,null,null,null,null,null,null,null,null,null,191]
[null,"Male 5-9",null,null,null,null,null,null,null,null,null,null,null,null,null,null,null,null,null,null,null,null,null,null,null,null,null,null,null,null,null,null,null,null,null,null,null,null,null,null,null,null,null,null,null,null,null,null,null,null,null,null,null,null,null,192]
[null,"Male 10-15",null,null,null,null,null,null,null,null,null,null,null,null,null,null,null,null,null,null,null,null,null,null,null,null,null,null,null,null,null,null,null,null,null,null,null,null,null,null,null,null,null,null,null,null,null,null,null,null,null,null,null,null,null,193]
[null,"Male 16-19",{"$f":"$AR196*C$254","v":0.14000505653328368},0.11602144121220163,9.2960272634238117E-2,8.9940660422982141E-2,9.54851195452915E-2,0.16216906456801566,0.11507589469803688,0.11481068226661442,0.16636637215505623,9.9091791794441442E-2,{"$f":"$AR196*M$254","v":9.9091791794441442E-2},0.18798982178132695,0.18144289900291533,9.6713487292443626E-2,0.11968694695562729,8.9687696796397862E-2,0.11366942864187254,0.11055133403639827,9.4725578821635764E-2,9.9392212939016622E-2,{"$f":"$AR196*W$254","v":0.1207137085689524},0.1207137085689524,0.10661753460443853,0.11937386515679185,0.11948243090208858,0.11443867214450572,0.12038856438401117,0.11920931125334053,0.12780259092031851,0.16459920492387417,{"$f":"$AR196*AG$254","v":0.12780259092031851},0.11786484453391709,0.1107272701041831,0.10187074927454819,0.10559251077984914,0.16517305031782581,0.1211193644991187,0.10358517249399904,0.10358517249399904,0.13102995986032512,0.12473731990615894,0.11705685618729098,{"$f":"$AR196*AS$254","v":0.11507589469803688},9.6690548090806863E-2,9.6690548090806863E-2,0.1364342716032525,0.11428083804331282,8.5483713743116696E-2,0.13144546798319401,0.14085179097575634,0.13955517472004142,0.11054690007307458,9.4725578821635764E-2,194]
[null,"Male 20-24",0.14000505653328368,0.11602144121220163,9.2960272634238117E-2,8.9940660422982141E-2,9.54851195452915E-2,0.16216906456801566,0.11507589469803688,0.11481068226661442,0.16636637215505623,9.9091791794441442E-2,9.9091791794441442E-2,0.18798982178132695,0.18144289900291533,9.6713487292443626E-2,0.11968694695562729,8.9687696796397862E-2,0.11366942864187254,0.11055133403639827,9.4725578821635764E-2,9.9392212939016622E-2,0.1207137085689524,0.1207137085689524,0.10661753460443853,0.11937386515679185,0.11948243090208858,0.11443867214450572,0.12038856438401117,0.11920931125334053,0.12780259092031851,0.16459920492387417,0.12780259092031851,0.11786484453391709,0.1107272701041831,0.10187074927454819,0.10559251077984914,0.16517305031782581,0.1211193644991187,0.10358517249399904,0.10358517249399904,0.13102995986032512,0.12473731990615894,0.11705685618729098,0.11507589469803688,9.6690548090806863E-2,9.6690548090806863E-2,0.1364342716032525,0.11428083804331282,8.5483713743116696E-2,0.13144546798319401,0.14085179097575634,0.13955517472004142,0.11054690007307458,9.4725578821635764E-2,195]
[null,"Male 25-29",7.5195023495211427E-2,6.2313713618091807E-2,4.9927838736246018E-2,4.8306041518387383E-2,5.1283903492045299E-2,8.709904429408534E-2,6.1805872015017055E-2,6.1663429623964608E-2,8.9353367462399705E-2,5.322100355992665E-2,5.322100355992665E-2,0.10096706087431158,9.7450787788653709E-2,5.1943644960639364E-2,6.4282412444574541E-2,4.8170177812351049E-2,6.1050476097489238E-2,5.9375785176142483E-2,5.0875963350631298E-2,5.3382356125213602E-2,6.4833873695687341E-2,6.4833873695687341E-2,5.7262989052658607E-2,6.4114259994925288E-2,6.4172569344390987E-2,6.1463627484205682E-2,6.4659242684269744E-2,6.4025880082494713E-2,6.8641226716819423E-2,8.8404243303893959E-2,6.8641226716819423E-2,6.3303783259287885E-2,5.9470278311449985E-2,5.4713548030698271E-2,5.6712461146869522E-2,8.8712448728392707E-2,6.505174659224644E-2,5.5634344018068167E-2,5.5634344018068167E-2,7.0374607562344954E-2,6.6994906707840862E-2,6.2869822485207102E-2,6.1805872015017055E-2,5.1931324592727313E-2,5.1931324592727313E-2,7.327719807262599E-2,6.1378856696339711E-2,4.5912269331811306E-2,7.059777195251217E-2,7.5649794329011991E-2,7.4953397411450823E-2,5.9373403748038678E-2,5.0875963350631298E-2,196]
[null,"Male 30-34",7.5195023495211427E-2,6.2313713618091807E-2,4.9927838736246018E-2,4.8306041518387383E-2,5.1283903492045299E-2,8.709904429408534E-2,6.1805872015017055E-2,6.1663429623964608E-2,8.9353367462399705E-2,5.322100355992665E-2,5.322100355992665E-2,0.10096706087431158,9.7450787788653709E-2,5.1943644960639364E-2,6.4282412444574541E-2,4.8170177812351049E-2,6.1050476097489238E-2,5.9375785176142483E-2,5.0875963350631298E-2,5.3382356125213602E-2,6.4833873695687341E-2,6.4833873695687341E-2,5.7262989052658607E-2,6.4114259994925288E-2,6.4172569344390987E-2,6.1463627484205682E-2,6.4659242684269744E-2,6.4025880082494713E-2,6.8641226716819423E-2,8.8404243303893959E-2,6.8641226716819423E-2,6.3303783259287885E-2,5.9470278311449985E-2,5.4713548030698271E-2,5.6712461146869522E-2,8.8712448728392707E-2,6.505174659224644E-2,5.5634344018068167E-2,5.5634344018068167E-2,7.0374607562344954E-2,6.6994906707840862E-2,6.2869822485207102E-2,6.1805872015017055E-2,5.1931324592727313E-2,5.1931324592727313E-2,7.327719807262599E-2,6.1378856696339711E-2,4.5912269331811306E-2,7.059777195251217E-2,7.5649794329011991E-2,7.4953397411450823E-2,5.9373403748038678E-2,5.0875963350631298E-2,197]
[null,"Male 35-39",7.5195023495211427E-2,6.2313713618091807E-2,4.9927838736246018E-2,4.8306041518387383E-2,5.1283903492045299E-2,8.709904429408534E-2,6.1805872015017055E-2,6.1663429623964608E-2,8.9353367462399705E-2,5.322100355992665E-2,5.322100355992665E-2,0.10096706087431158,9.7450787788653709E-2,5.1943644960639364E-2,6.4282412444574541E-2,4.8170177812351049E-2,6.1050476097489238E-2,5.9375785176142483E-2,5.0875963350631298E-2,5.3382356125213602E-2,6.4833873695687341E-2,6.4833873695687341E-2,5.7262989052658607E-2,6.4114259994925288E-2,6.4172569344390987E-2,6.1463627484205682E-2,6.4659242684269744E-2,6.4025880082494713E-2,6.8641226716819423E-2,8.8404243303893959E-2,6.8641226716819423E-2,6.3303783259287885E-2,5.9470278311449985E-2,5.4713548030698271E-2,5.6712461146869522E-2,8.8712448728392707E-2,6.505174659224644E-2,5.5634344018068167E-2,5.5634344018068167E-2,7.0374607562344954E-2,6.6994906707840862E-2,6.2869822485207102E-2,6.1805872015017055E-2,5.1931324592727313E-2,5.1931324592727313E-2,7.327719807262599E-2,6.1378856696339711E-2,4.5912269331811306E-2,7.059777195251217E-2,7.5649794329011991E-2,7.4953397411450823E-2,5.9373403748038678E-2,5.0875963350631298E-2,198]
[null,"Male 40-44",7.5195023495211427E-2,6.2313713618091807E-2,4.9927838736246018E-2,4.8306041518387383E-2,5.1283903492045299E-2,8.709904429408534E-2,6.1805872015017055E-2,6.1663429623964608E-2,8.9353367462399705E-2,5.322100355992665E-2,5.322100355992665E-2,0.10096706087431158,9.7450787788653709E-2,5.1943644960639364E-2,6.4282412444574541E-2,4.8170177812351049E-2,6.1050476097489238E-2,5.9375785176142483E-2,5.0875963350631298E-2,5.3382356125213602E-2,6.4833873695687341E-2,6.4833873695687341E-2,5.7262989052658607E-2,6.4114259994925288E-2,6.4172569344390987E-2,6.1463627484205682E-2,6.4659242684269744E-2,6.4025880082494713E-2,6.8641226716819423E-2,8.8404243303893959E-2,6.8641226716819423E-2,6.3303783259287885E-2,5.9470278311449985E-2,5.4713548030698271E-2,5.6712461146869522E-2,8.8712448728392707E-2,6.505174659224644E-2,5.5634344018068167E-2,5.5634344018068167E-2,7.0374607562344954E-2,6.6994906707840862E-2,6.2869822485207102E-2,6.1805872015017055E-2,5.1931324592727313E-2,5.1931324592727313E-2,7.327719807262599E-2,6.1378856696339711E-2,4.5912269331811306E-2,7.059777195251217E-2,7.5649794329011991E-2,7.4953397411450823E-2,5.9373403748038678E-2,5.0875963350631298E-2,199]
[null,"Male 45-49",0.10173240988030983,8.4305103719578764E-2,6.7548078565029632E-2,6.5353926191096964E-2,6.9382717735931673E-2,0.11783752783684448,8.3618037638383047E-2,8.3425325314650592E-2,0.12088743350748027,7.2003447791258168E-2,7.2003447791258168E-2,0.1365997634395284,0.13184254789289013,7.0275291291711242E-2,8.6968584181944475E-2,6.5170114263287324E-2,8.2596051826931749E-2,8.0330338814100108E-2,6.8830809753941305E-2,7.2221743956935355E-2,8.7714663901367507E-2,8.7714663901367507E-2,7.7471907082358182E-2,8.6741088356623197E-2,8.6819975899494639E-2,8.3155010176332783E-2,8.7478403138280161E-2,8.6621517924184321E-2,9.2865685606008774E-2,0.11960335002120329,9.2865685606008774E-2,8.5644582927995053E-2,8.0458179912156161E-2,7.4022732297164315E-2,7.6727090099012865E-2,0.12002032549531079,8.8009427221921191E-2,7.5268490200401397E-2,7.5268490200401397E-2,9.5210801046619165E-2,9.0638356001434231E-2,8.5057471264367815E-2,8.3618037638383047E-2,7.0258622891861827E-2,7.0258622891861827E-2,9.9137756764977478E-2,8.304032257951853E-2,6.2115357973077177E-2,9.5512723303650265E-2,0.10234767576780245,0.10140551053713093,8.0327116946366101E-2,6.8830809753941305E-2,200]
[null,"Male 50-54",0.10173240988030983,8.4305103719578764E-2,6.7548078565029632E-2,6.5353926191096964E-2,6.9382717735931673E-2,0.11783752783684448,8.3618037638383047E-2,8.3425325314650592E-2,0.12088743350748027,7.2003447791258168E-2,7.2003447791258168E-2,0.1365997634395284,0.13184254789289013,7.0275291291711242E-2,8.6968584181944475E-2,6.5170114263287324E-2,8.2596051826931749E-2,8.0330338814100108E-2,6.8830809753941305E-2,7.2221743956935355E-2,8.7714663901367507E-2,8.7714663901367507E-2,7.7471907082358182E-2,8.6741088356623197E-2,8.6819975899494639E-2,8.3155010176332783E-2,8.7478403138280161E-2,8.6621517924184321E-2,9.2865685606008774E-2,0.11960335002120329,9.2865685606008774E-2,8.5644582927995053E-2,8.0458179912156161E-2,7.4022732297164315E-2,7.6727090099012865E-2,0.12002032549531079,8.8009427221921191E-2,7.5268490200401397E-2,7.5268490200401397E-2,9.5210801046619165E-2,9.0638356001434231E-2,8.5057471264367815E-2,8.3618037638383047E-2,7.0258622891861827E-2,7.0258622891861827E-2,9.9137756764977478E-2,8.304032257951853E-2,6.2115357973077177E-2,9.5512723303650265E-2,0.10234767576780245,0.10140551053713093,8.0327116946366101E-2,6.8830809753941305E-2,201]
[null,"Male 55-59",0.27224512673783058,0.22560807980255007,0.18076476544170336,0.1748930153098997,0.18567442573765086,0.31534387849612455,0.22376942884979606,0.22325371324785356,0.32350570182084043,0.19268773631288866,0.19268773631288866,0.3655533173125971,0.35282257839726561,0.18806303327286936,0.23273579433220298,0.17440111797215516,0.22103450241789335,0.21497124954640809,0.18419747007837409,0.19327191658897855,0.23473237111643347,0.23473237111643347,0.20732182779384098,0.23212699493513977,0.23233810513229661,0.22253032549780355,0.23410011595344693,0.23180701364725209,0.24851697091564456,0.32006937831415533,0.24851697091564456,0.22919264727015473,0.21531336388326022,0.19809152421958362,0.20532863020552175,0.32118524238273016,0.23552118441257197,0.20142528500093593,0.20142528500093593,0.25479271186285068,0.24255643551500147,0.22762148337595908,0.22376942884979606,0.18801842712783787,0.18801842712783787,0.26530160041170275,0.22222341111951752,0.16622631395090087,0.2556006831202613,0.27389163388058835,0.27137031453964361,0.21496262753705425,0.18419747007837409,202]
[null,"Male 60-64",0.27224512673783058,0.22560807980255007,0.18076476544170336,0.1748930153098997,0.18567442573765086,0.31534387849612455,0.22376942884979606,0.22325371324785356,0.32350570182084043,0.19268773631288866,0.19268773631288866,0.3655533173125971,0.35282257839726561,0.18806303327286936,0.23273579433220298,0.17440111797215516,0.22103450241789335,0.21497124954640809,0.18419747007837409,0.19327191658897855,0.23473237111643347,0.23473237111643347,0.20732182779384098,0.23212699493513977,0.23233810513229661,0.22253032549780355,0.23410011595344693,0.23180701364725209,0.24851697091564456,0.32006937831415533,0.24851697091564456,0.22919264727015473,0.21531336388326022,0.19809152421958362,0.20532863020552175,0.32118524238273016,0.23552118441257197,0.20142528500093593,0.20142528500093593,0.25479271186285068,0.24255643551500147,0.22762148337595908,0.22376942884979606,0.18801842712783787,0.18801842712783787,0.26530160041170275,0.22222341111951752,0.16622631395090087,0.2556006831202613,0.27389163388058835,0.27137031453964361,0.21496262753705425,0.18419747007837409,203]
[null,"Male 65-69",{"$f":"$AR206*C$254","v":0},0,0,0,0,0,0,0,0,0,{"$f":"$AR206*M$254","v":0},0,0,0,0,0,0,0,0,0,{"$f":"$AR206*W$254","v":0},0,0,0,0,0,0,0,0,0,{"$f":"$AR206*AG$254","v":0},0,0,0,0,0,0,0,0,0,0,null,{"$f":"$AR206*AS$254","v":0},0,0,0,0,0,0,0,0,0,0,204]
[null,"Male 70-74",0,0,0,0,0,0,0,0,0,0,0,0,0,0,0,0,0,0,0,0,0,0,0,0,0,0,0,0,0,0,0,0,0,0,0,0,0,0,0,0,0,null,0,0,0,0,0,0,0,0,0,0,0,205]
[null,"Male 75-79",0,0,0,0,0,0,0,0,0,0,0,0,0,0,0,0,0,0,0,0,0,0,0,0,0,0,0,0,0,0,0,0,0,0,0,0,0,0,0,0,0,null,0,0,0,0,0,0,0,0,0,0,0,206]
[null,"Male 80-84",0,0,0,0,0,0,0,0,0,0,0,0,0,0,0,0,0,0,0,0,0,0,0,0,0,0,0,0,0,0,0,0,0,0,0,0,0,0,0,0,0,null,0,0,0,0,0,0,0,0,0,0,0,207]
[null,"Male 85-89",0,0,0,0,0,0,0,0,0,0,0,0,0,0,0,0,0,0,0,0,0,0,0,0,0,0,0,0,0,0,0,0,0,0,0,0,0,0,0,0,0,null,0,0,0,0,0,0,0,0,0,0,0,208]
[null,"Male 90+",0,0,0,0,0,0,0,0,0,0,0,0,0,0,0,0,0,0,0,0,0,0,0,0,0,0,0,0,0,0,0,0,0,0,0,0,0,0,0,0,0,null,0,0,0,0,0,0,0,0,0,0,0,209]
["SIMD Q5 (least deprived)","Female 0-4",null,null,null,null,null,null,null,null,null,null,null,null,null,null,null,null,null,null,null,null,null,null,null,null,null,null,null,null,null,null,null,null,null,null,null,null,null,null,null,null,null,null,null,null,null,null,null,null,null,null,null,null,null,210]
[null,"Female 5-9",null,null,null,null,null,null,null,null,null,null,null,null,null,null,null,null,null,null,null,null,null,null,null,null,null,null,null,null,null,null,null,null,null,null,null,null,null,null,null,null,null,null,null,null,null,null,null,null,null,null,null,null,null,211]
[null,"Female 10-15",null,null,null,null,null,null,null,null,null,null,null,null,null,null,null,null,null,null,null,null,null,null,null,null,null,null,null,null,null,null,null,null,null,null,null,null,null,null,null,null,null,null,null,null,null,null,null,null,null,null,null,null,null,212]
[null,"Female 16-19",{"$f":"$AR215*C$253","v":0.14932502582996893},0.14849225374318273,0.14770524929796422,0.15079078255887382,0.12229197177747463,0.20084018712547769,0.17707521199620804,0.14409363951857684,0.20709144493437165,0.18420434617770642,{"$f":"$AR215*M$253","v":0.18420434617770642},0.1325872143291702,0.2078490741975661,0.13413487288279397,0.16260958637504064,0.11860761959810641,0.1573575117837222,0.14902341884710443,0.12514696838907036,0.16041602230599944,{"$f":"$AR215*W$253","v":0.16645057106790501},0.16645057106790501,0.15269689544611417,0.18149787493776534,0.15642883426629334,0.15058576802341231,0.16073288707596939,0.12526839013819624,0.12629298934629671,0.15348242769294976,{"$f":"$AR215*AG$253","v":0.12629298934629671},0.14861151534829839,0.15138442445374212,0.14897551565962894,0.16254450924521488,0.2210187084208641,0.14820220229593825,0.12954271543156698,0.12954271543156698,0.11150040474969045,0.12222622340555125,0.15522875816993464,{"$f":"$AR215*AS$253","v":0.17707521199620804},0.10467099343112946,0.10467099343112946,0.16869388526239543,0.14906648721104021,0.10947709797610941,0.14756103488346978,0.13011000953154156,0.16185341791557248,0.15321506645863323,0.12514696838907036,213]
[null,"Female 20-24",0.14932502582996893,0.14849225374318273,0.14770524929796422,0.15079078255887382,0.12229197177747463,0.20084018712547769,0.17707521199620804,0.14409363951857684,0.20709144493437165,0.18420434617770642,0.18420434617770642,0.1325872143291702,0.2078490741975661,0.13413487288279397,0.16260958637504064,0.11860761959810641,0.1573575117837222,0.14902341884710443,0.12514696838907036,0.16041602230599944,0.16645057106790501,0.16645057106790501,0.15269689544611417,0.18149787493776534,0.15642883426629334,0.15058576802341231,0.16073288707596939,0.12526839013819624,0.12629298934629671,0.15348242769294976,0.12629298934629671,0.14861151534829839,0.15138442445374212,0.14897551565962894,0.16254450924521488,0.2210187084208641,0.14820220229593825,0.12954271543156698,0.12954271543156698,0.11150040474969045,0.12222622340555125,0.15522875816993464,0.17707521199620804,0.10467099343112946,0.10467099343112946,0.16869388526239543,0.14906648721104021,0.10947709797610941,0.14756103488346978,0.13011000953154156,0.16185341791557248,0.15321506645863323,0.12514696838907036,214]
[null,"Female 25-29",0.18575924810325573,0.18472328567282606,0.18374425785625514,0.18758263883331119,0.15213032510916916,0.24984373477910601,0.22028027824080007,0.17925144150928007,0.2576202541121882,0.2291488694084339,0.2291488694084339,0.16493753210487552,0.25856273941557112,0.1668628081103127,0.20228514498168393,0.14754701774469339,0.19575160231766706,0.18538405120609666,0.15568192016806603,0.19955636720403674,0.20706330205587081,0.20706330205587081,0.18995382942755806,0.22578203883365133,0.19459633422774608,0.18732760223950584,0.19995054467759066,0.155832967942514,0.15710756191928424,0.19093102584002811,0.15710756191928424,0.18487164624380698,0.18832112504096732,0.18532445998863167,0.20220418950460994,0.27494566878402377,0.18436246377809057,0.16115019757788251,0.16115019757788251,0.13870569406829006,0.15204853461179862,0.19310344827586207,0.22028027824080007,0.13020995596630375,0.13020995596630375,0.20985396862841438,0.18543762793817678,0.13618871513020767,0.18356485617155269,0.16185590731996344,0.20134447690753174,0.19059843040545471,0.15568192016806603,215]
[null,"Female 30-34",0.18575924810325573,0.18472328567282606,0.18374425785625514,0.18758263883331119,0.15213032510916916,0.24984373477910601,0.22028027824080007,0.17925144150928007,0.2576202541121882,0.2291488694084339,0.2291488694084339,0.16493753210487552,0.25856273941557112,0.1668628081103127,0.20228514498168393,0.14754701774469339,0.19575160231766706,0.18538405120609666,0.15568192016806603,0.19955636720403674,0.20706330205587081,0.20706330205587081,0.18995382942755806,0.22578203883365133,0.19459633422774608,0.18732760223950584,0.19995054467759066,0.155832967942514,0.15710756191928424,0.19093102584002811,0.15710756191928424,0.18487164624380698,0.18832112504096732,0.18532445998863167,0.20220418950460994,0.27494566878402377,0.18436246377809057,0.16115019757788251,0.16115019757788251,0.13870569406829006,0.15204853461179862,0.19310344827586207,0.22028027824080007,0.13020995596630375,0.13020995596630375,0.20985396862841438,0.18543762793817678,0.13618871513020767,0.18356485617155269,0.16185590731996344,0.20134447690753174,0.19059843040545471,0.15568192016806603,216]
[null,"Female 35-39",0.13651263425170576,0.13575131570736529,0.13503183784766001,0.13785262606568885,0.11179907133709546,0.18360768970717267,0.16188179788300552,0.13173011154871542,0.18932257685442402,0.16839923782075841,0.16839923782075841,0.1212109610935555,0.19001519998259692,0.12262582738876,0.1486573524247265,0.1084308440843557,0.14385591653839541,0.13623690576272213,0.11440910342021335,0.14665200062384567,0.15216877280204791,0.15216877280204791,0.13959519058206532,0.16592498732967506,0.14300692144484087,0.13766520219524123,0.14694167775070191,0.11452010693577608,0.11545679344343002,0.14031332256100965,0.11545679344343002,0.13586034442367681,0.13839533227598558,0.13619311276637081,0.14859785904528339,0.20205485274650095,0.13548615126549238,0.11842768640682298,0.11842768640682298,0.10193344275622963,0.11173896430949487,0.14190981432360741,0.16188179788300552,9.569000884886332E-2,9.569000884886332E-2,0.1542196060662111,0.13627627877324805,0.10008373982783118,0.13489999732387456,0.11894630551673135,0.14796606476034269,0.14006890146554707,0.11440910342021335,217]
[null,"Female 40-44",0.13651263425170576,0.13575131570736529,0.13503183784766001,0.13785262606568885,0.11179907133709546,0.18360768970717267,0.16188179788300552,0.13173011154871542,0.18932257685442402,0.16839923782075841,0.16839923782075841,0.1212109610935555,0.19001519998259692,0.12262582738876,0.1486573524247265,0.1084308440843557,0.14385591653839541,0.13623690576272213,0.11440910342021335,0.14665200062384567,0.15216877280204791,0.15216877280204791,0.13959519058206532,0.16592498732967506,0.14300692144484087,0.13766520219524123,0.14694167775070191,0.11452010693577608,0.11545679344343002,0.14031332256100965,0.11545679344343002,0.13586034442367681,0.13839533227598558,0.13619311276637081,0.14859785904528339,0.20205485274650095,0.13548615126549238,0.11842768640682298,0.11842768640682298,0.10193344275622963,0.11173896430949487,0.14190981432360741,0.16188179788300552,9.569000884886332E-2,9.569000884886332E-2,0.1542196060662111,0.13627627877324805,0.10008373982783118,0.13489999732387456,0.11894630551673135,0.14796606476034269,0.14006890146554707,0.11440910342021335,218]
[null,"Female 45-49",0.10957896313982736,0.10896785122945186,0.10839032491988554,0.11065457723515998,8.9741337014463449E-2,0.1473822578613066,0.12994284126495928,0.10574002265011355,0.15196960914560065,0.13517440327106817,0.13517440327106817,9.7296279649279435E-2,0.15252557910873174,9.8431995639669978E-2,0.11932755258226135,8.7037654296759831E-2,0.11547343044264742,0.1093576353330895,9.1836414960892926E-2,0.11771785270154601,0.12214617670598513,0.12214617670598513,0.11205333723972274,0.13318831747873619,0.11479194039176338,0.11050413172142509,0.1179503771076585,9.1925517703704343E-2,9.2677397827169938E-2,0.11262978320812429,9.2677397827169938E-2,0.10905536879697499,0.11109020859001474,0.10932248260778117,0.11927979712820543,0.16218983233821388,0.10875500320434958,9.5062139520219066E-2,9.5062139520219066E-2,8.1822177322470213E-2,8.9693088983810509E-2,0.11391129032258064,0.12994284126495928,7.6810560502156067E-2,7.6810560502156067E-2,0.12379238464777396,0.10938924012698108,8.0337417101398786E-2,0.10828449626911328,9.5478436111664775E-2,0.11877265459857099,0.11243358590845966,9.1836414960892926E-2,219]
[null,"Female 50-54",0.10957896313982736,0.10896785122945186,0.10839032491988554,0.11065457723515998,8.9741337014463449E-2,0.1473822578613066,0.12994284126495928,0.10574002265011355,0.15196960914560065,0.13517440327106817,0.13517440327106817,9.7296279649279435E-2,0.15252557910873174,9.8431995639669978E-2,0.11932755258226135,8.7037654296759831E-2,0.11547343044264742,0.1093576353330895,9.1836414960892926E-2,0.11771785270154601,0.12214617670598513,0.12214617670598513,0.11205333723972274,0.13318831747873619,0.11479194039176338,0.11050413172142509,0.1179503771076585,9.1925517703704343E-2,9.2677397827169938E-2,0.11262978320812429,9.2677397827169938E-2,0.10905536879697499,0.11109020859001474,0.10932248260778117,0.11927979712820543,0.16218983233821388,0.10875500320434958,9.5062139520219066E-2,9.5062139520219066E-2,8.1822177322470213E-2,8.9693088983810509E-2,0.11391129032258064,0.12994284126495928,7.6810560502156067E-2,7.6810560502156067E-2,0.12379238464777396,0.10938924012698108,8.0337417101398786E-2,0.10828449626911328,9.5478436111664775E-2,0.11877265459857099,0.11243358590845966,9.1836414960892926E-2,220]
[null,"Female 55-59",0.38773181250415345,0.38556946745302889,0.38352596095907487,0.39153774195254731,0.31753878901704313,0.52149416579713181,0.45978691458607235,0.37414818922900933,0.53772594949983887,0.47829815945218851,0.47829815945218851,0.34427103321088726,0.5396931814878585,0.34828962589351892,0.42222600870356952,0.30797213707461057,0.40858866700963486,0.38694867102147179,0.32495196711464946,0.41653028176425672,0.43219936680940235,0.43219936680940235,0.39648708383612935,0.47127063681477332,0.4061772974815655,0.39100540882899776,0.41735304104989085,0.32526724631587062,0.32792768254107157,0.39852676767447559,0.32792768254107157,0.38587913770459348,0.39307917043445345,0.38682428738516322,0.42205703184681248,0.57388896427131775,0.38481633064468435,0.33636580052016107,0.33636580052016107,0.28951780713415864,0.3173680692380017,0.40306122448979592,0.45978691458607235,0.27178481151494344,0.27178481151494344,0.43802427307552605,0.3870605007346602,0.28426416396073778,0.38315149917003205,0.33783881529704468,0.42026256978421578,0.39783254742975288,0.32495196711464946,221]
[null,"Female 60-64",0.38773181250415345,0.38556946745302889,0.38352596095907487,0.39153774195254731,0.31753878901704313,0.52149416579713181,0.45978691458607235,0.37414818922900933,0.53772594949983887,0.47829815945218851,0.47829815945218851,0.34427103321088726,0.5396931814878585,0.34828962589351892,0.42222600870356952,0.30797213707461057,0.40858866700963486,0.38694867102147179,0.32495196711464946,0.41653028176425672,0.43219936680940235,0.43219936680940235,0.39648708383612935,0.47127063681477332,0.4061772974815655,0.39100540882899776,0.41735304104989085,0.32526724631587062,0.32792768254107157,0.39852676767447559,0.32792768254107157,0.38587913770459348,0.39307917043445345,0.38682428738516322,0.42205703184681248,0.57388896427131775,0.38481633064468435,0.33636580052016107,0.33636580052016107,0.28951780713415864,0.3173680692380017,0.40306122448979592,0.45978691458607235,0.27178481151494344,0.27178481151494344,0.43802427307552605,0.3870605007346602,0.28426416396073778,0.38315149917003205,0.33783881529704468,0.42026256978421578,0.39783254742975288,0.32495196711464946,222]
[null,"Female 65-69",{"$f":"$AR225*C$253","v":0},0,0,0,0,0,0,0,0,0,{"$f":"$AR225*M$253","v":0},0,0,0,0,0,0,0,0,0,{"$f":"$AR225*W$253","v":0},0,0,0,0,0,0,0,0,0,{"$f":"$AR225*AG$253","v":0},0,0,0,0,0,0,0,0,0,0,null,{"$f":"$AR225*AS$253","v":0},0,0,0,0,0,0,0,0,0,0,223]
[null,"Female 70-74",0,0,0,0,0,0,0,0,0,0,0,0,0,0,0,0,0,0,0,0,0,0,0,0,0,0,0,0,0,0,0,0,0,0,0,0,0,0,0,0,0,null,0,0,0,0,0,0,0,0,0,0,0,224]
[null,"Female 75-79",0,0,0,0,0,0,0,0,0,0,0,0,0,0,0,0,0,0,0,0,0,0,0,0,0,0,0,0,0,0,0,0,0,0,0,0,0,0,0,0,0,null,0,0,0,0,0,0,0,0,0,0,0,225]
[null,"Female 80-84",0,0,0,0,0,0,0,0,0,0,0,0,0,0,0,0,0,0,0,0,0,0,0,0,0,0,0,0,0,0,0,0,0,0,0,0,0,0,0,0,0,null,0,0,0,0,0,0,0,0,0,0,0,226]
[null,"Female 85-89",0,0,0,0,0,0,0,0,0,0,0,0,0,0,0,0,0,0,0,0,0,0,0,0,0,0,0,0,0,0,0,0,0,0,0,0,0,0,0,0,0,null,0,0,0,0,0,0,0,0,0,0,0,227]
[null,"Female 90+",0,0,0,0,0,0,0,0,0,0,0,0,0,0,0,0,0,0,0,0,0,0,0,0,0,0,0,0,0,0,0,0,0,0,0,0,0,0,0,0,0,null,0,0,0,0,0,0,0,0,0,0,0,228]
[null,"Male 0-4",null,null,null,null,null,null,null,null,null,null,null,null,null,null,null,null,null,null,null,null,null,null,null,null,null,null,null,null,null,null,null,null,null,null,null,null,null,null,null,null,null,null,null,null,null,null,null,null,null,null,null,null,null,229]
[null,"Male 5-9",null,null,null,null,null,null,null,null,null,null,null,null,null,null,null,null,null,null,null,null,null,null,null,null,null,null,null,null,null,null,null,null,null,null,null,null,null,null,null,null,null,null,null,null,null,null,null,null,null,null,null,null,null,230]
[null,"Male 10-15",null,null,null,null,null,null,null,null,null,null,null,null,null,null,null,null,null,null,null,null,null,null,null,null,null,null,null,null,null,null,null,null,null,null,null,null,null,null,null,null,null,null,null,null,null,null,null,null,null,null,null,null,null,231]
[null,"Male 16-19",{"$f":"$AR234*C$254","v":0.16727876884496232},0.13862302066912402,0.1110694166538949,0.10746156829758904,0.11408611685930933,0.19376044078256419,0.13749327678207005,0.13717639959127956,0.1987754056917555,0.11839538759855342,{"$f":"$AR234*M$254","v":0.11839538759855342},0.22461121563483219,0.21678891828919755,0.11555377702473783,0.14300258597295729,0.10715932604244939,0.13581282383184773,0.13208730819933301,0.11317861365701935,0.11875433234272116,{"$f":"$AR234*W$254","v":0.14422936608238468},0.14422936608238468,0.12738718420270578,0.14262851421330974,0.14275822912976818,0.13673191996486397,0.14384088212115623,0.14243190435464065,0.15269919954115979,0.19666398510384969,{"$f":"$AR234*AG$254","v":0.15269919954115979},0.1408255285340308,0.13229751752707591,0.12171570043192771,0.12616248041228728,0.19734961856155811,0.14471404589505091,0.12376410220062223,0.12376410220062223,0.15655527671623262,0.14903679780995613,0.13986013986013987,{"$f":"$AR234*AS$254","v":0.13749327678207005},0.11552636914745755,0.11552636914745755,0.16301237646102895,0.13654333896084128,0.10213638525151607,0.15705172797992012,0.16829045155544914,0.16674124771745211,0.13208201047692028,0.11317861365701935,232]
[null,"Male 20-24",0.16727876884496232,0.13862302066912402,0.1110694166538949,0.10746156829758904,0.11408611685930933,0.19376044078256419,0.13749327678207005,0.13717639959127956,0.1987754056917555,0.11839538759855342,0.11839538759855342,0.22461121563483219,0.21678891828919755,0.11555377702473783,0.14300258597295729,0.10715932604244939,0.13581282383184773,0.13208730819933301,0.11317861365701935,0.11875433234272116,0.14422936608238468,0.14422936608238468,0.12738718420270578,0.14262851421330974,0.14275822912976818,0.13673191996486397,0.14384088212115623,0.14243190435464065,0.15269919954115979,0.19666398510384969,0.15269919954115979,0.1408255285340308,0.13229751752707591,0.12171570043192771,0.12616248041228728,0.19734961856155811,0.14471404589505091,0.12376410220062223,0.12376410220062223,0.15655527671623262,0.14903679780995613,0.13986013986013987,0.13749327678207005,0.11552636914745755,0.11552636914745755,0.16301237646102895,0.13654333896084128,0.10213638525151607,0.15705172797992012,0.16829045155544914,0.16674124771745211,0.13208201047692028,0.11317861365701935,233]
[null,"Male 25-29",7.2435204447212936E-2,6.0026666340213329E-2,4.8095379698867534E-2,4.6533105926122552E-2,4.9401673962293564E-2,8.3902322086523456E-2,5.9537463615941782E-2,5.9400249166923214E-2,8.6073906747273499E-2,5.1267678292495435E-2,5.1267678292495435E-2,9.7261352638990772E-2,9.3874134336331669E-2,5.0037201500401973E-2,6.1923109686631672E-2,4.6402228710234389E-2,5.8809792352853447E-2,5.7196566189271374E-2,4.9008706101229864E-2,5.1423108871693095E-2,6.2454331124066495E-2,6.2454331124066495E-2,5.5161314226492487E-2,6.1761128793449041E-2,6.1817298064411504E-2,5.9207780195311678E-2,6.2286109446262734E-2,6.1675992613840776E-2,6.6121946102682447E-2,8.5159617486209163E-2,6.6121946102682447E-2,6.0980398296711529E-2,5.7287591223332213E-2,5.2705443171893136E-2,5.4630991878601105E-2,8.5456511108919816E-2,6.2664207616847559E-2,5.3592443966614063E-2,5.3592443966614063E-2,6.779170814402978E-2,6.4536049577980995E-2,6.0562364816149961E-2,5.9537463615941782E-2,5.0025333316483775E-2,5.0025333316483775E-2,7.0587767341379934E-2,5.9126120677636097E-2,4.4227190325926848E-2,6.8006681921225678E-2,7.2873284213556405E-2,7.2202446560275219E-2,5.7194272164699571E-2,4.9008706101229864E-2,234]
[null,"Male 30-34",7.2435204447212936E-2,6.0026666340213329E-2,4.8095379698867534E-2,4.6533105926122552E-2,4.9401673962293564E-2,8.3902322086523456E-2,5.9537463615941782E-2,5.9400249166923214E-2,8.6073906747273499E-2,5.1267678292495435E-2,5.1267678292495435E-2,9.7261352638990772E-2,9.3874134336331669E-2,5.0037201500401973E-2,6.1923109686631672E-2,4.6402228710234389E-2,5.8809792352853447E-2,5.7196566189271374E-2,4.9008706101229864E-2,5.1423108871693095E-2,6.2454331124066495E-2,6.2454331124066495E-2,5.5161314226492487E-2,6.1761128793449041E-2,6.1817298064411504E-2,5.9207780195311678E-2,6.2286109446262734E-2,6.1675992613840776E-2,6.6121946102682447E-2,8.5159617486209163E-2,6.6121946102682447E-2,6.0980398296711529E-2,5.7287591223332213E-2,5.2705443171893136E-2,5.4630991878601105E-2,8.5456511108919816E-2,6.2664207616847559E-2,5.3592443966614063E-2,5.3592443966614063E-2,6.779170814402978E-2,6.4536049577980995E-2,6.0562364816149961E-2,5.9537463615941782E-2,5.0025333316483775E-2,5.0025333316483775E-2,7.0587767341379934E-2,5.9126120677636097E-2,4.4227190325926848E-2,6.8006681921225678E-2,7.2873284213556405E-2,7.2202446560275219E-2,5.7194272164699571E-2,4.9008706101229864E-2,235]
[null,"Male 35-39",7.2435204447212936E-2,6.0026666340213329E-2,4.8095379698867534E-2,4.6533105926122552E-2,4.9401673962293564E-2,8.3902322086523456E-2,5.9537463615941782E-2,5.9400249166923214E-2,8.6073906747273499E-2,5.1267678292495435E-2,5.1267678292495435E-2,9.7261352638990772E-2,9.3874134336331669E-2,5.0037201500401973E-2,6.1923109686631672E-2,4.6402228710234389E-2,5.8809792352853447E-2,5.7196566189271374E-2,4.9008706101229864E-2,5.1423108871693095E-2,6.2454331124066495E-2,6.2454331124066495E-2,5.5161314226492487E-2,6.1761128793449041E-2,6.1817298064411504E-2,5.9207780195311678E-2,6.2286109446262734E-2,6.1675992613840776E-2,6.6121946102682447E-2,8.5159617486209163E-2,6.6121946102682447E-2,6.0980398296711529E-2,5.7287591223332213E-2,5.2705443171893136E-2,5.4630991878601105E-2,8.5456511108919816E-2,6.2664207616847559E-2,5.3592443966614063E-2,5.3592443966614063E-2,6.779170814402978E-2,6.4536049577980995E-2,6.0562364816149961E-2,5.9537463615941782E-2,5.0025333316483775E-2,5.0025333316483775E-2,7.0587767341379934E-2,5.9126120677636097E-2,4.4227190325926848E-2,6.8006681921225678E-2,7.2873284213556405E-2,7.2202446560275219E-2,5.7194272164699571E-2,4.9008706101229864E-2,236]
[null,"Male 40-44",7.2435204447212936E-2,6.0026666340213329E-2,4.8095379698867534E-2,4.6533105926122552E-2,4.9401673962293564E-2,8.3902322086523456E-2,5.9537463615941782E-2,5.9400249166923214E-2,8.6073906747273499E-2,5.1267678292495435E-2,5.1267678292495435E-2,9.7261352638990772E-2,9.3874134336331669E-2,5.0037201500401973E-2,6.1923109686631672E-2,4.6402228710234389E-2,5.8809792352853447E-2,5.7196566189271374E-2,4.9008706101229864E-2,5.1423108871693095E-2,6.2454331124066495E-2,6.2454331124066495E-2,5.5161314226492487E-2,6.1761128793449041E-2,6.1817298064411504E-2,5.9207780195311678E-2,6.2286109446262734E-2,6.1675992613840776E-2,6.6121946102682447E-2,8.5159617486209163E-2,6.6121946102682447E-2,6.0980398296711529E-2,5.7287591223332213E-2,5.2705443171893136E-2,5.4630991878601105E-2,8.5456511108919816E-2,6.2664207616847559E-2,5.3592443966614063E-2,5.3592443966614063E-2,6.779170814402978E-2,6.4536049577980995E-2,6.0562364816149961E-2,5.9537463615941782E-2,5.0025333316483775E-2,5.0025333316483775E-2,7.0587767341379934E-2,5.9126120677636097E-2,4.4227190325926848E-2,6.8006681921225678E-2,7.2873284213556405E-2,7.2202446560275219E-2,5.7194272164699571E-2,4.9008706101229864E-2,237]
[null,"Male 45-49",7.7497399389296798E-2,6.422168020200239E-2,5.1456565598834679E-2,4.9785111014757778E-2,5.2854151331148708E-2,8.976590615088556E-2,6.369828913553785E-2,6.3551485339804467E-2,9.2089253824798184E-2,5.4850562937126798E-2,5.4850562937126798E-2,0.1040585437444309,0.10043460685320275,5.3534093243642042E-2,6.6250658080344138E-2,4.9645087335000851E-2,6.2919763956655161E-2,6.1193796131224477E-2,5.2433720581923658E-2,5.5016855912556568E-2,6.6819004372940638E-2,6.6819004372940638E-2,5.9016308880087236E-2,6.6077357016749341E-2,6.6137451724266258E-2,6.3345565512879745E-2,6.6639026382263516E-2,6.5986271023910192E-2,7.0742933696714416E-2,9.1111068692820207E-2,7.0742933696714416E-2,6.5242064515225934E-2,6.129118252604273E-2,5.6388807219543188E-2,5.8448924510660097E-2,9.1428710975063096E-2,6.7043548260234176E-2,5.7337796807847667E-2,5.7337796807847667E-2,7.252938845708834E-2,6.9046205464871682E-2,6.4794816414686832E-2,6.369828913553785E-2,5.3521395641748695E-2,5.3521395641748695E-2,7.5520852593716437E-2,6.3258199151404876E-2,4.7318044571166729E-2,7.2759385856788053E-2,7.7966094727092525E-2,7.7248375022448121E-2,6.1191341786823755E-2,5.2433720581923658E-2,238]
[null,"Male 50-54",7.7497399389296798E-2,6.422168020200239E-2,5.1456565598834679E-2,4.9785111014757778E-2,5.2854151331148708E-2,8.976590615088556E-2,6.369828913553785E-2,6.3551485339804467E-2,9.2089253824798184E-2,5.4850562937126798E-2,5.4850562937126798E-2,0.1040585437444309,0.10043460685320275,5.3534093243642042E-2,6.6250658080344138E-2,4.9645087335000851E-2,6.2919763956655161E-2,6.1193796131224477E-2,5.2433720581923658E-2,5.5016855912556568E-2,6.6819004372940638E-2,6.6819004372940638E-2,5.9016308880087236E-2,6.6077357016749341E-2,6.6137451724266258E-2,6.3345565512879745E-2,6.6639026382263516E-2,6.5986271023910192E-2,7.0742933696714416E-2,9.1111068692820207E-2,7.0742933696714416E-2,6.5242064515225934E-2,6.129118252604273E-2,5.6388807219543188E-2,5.8448924510660097E-2,9.1428710975063096E-2,6.7043548260234176E-2,5.7337796807847667E-2,5.7337796807847667E-2,7.252938845708834E-2,6.9046205464871682E-2,6.4794816414686832E-2,6.369828913553785E-2,5.3521395641748695E-2,5.3521395641748695E-2,7.5520852593716437E-2,6.3258199151404876E-2,4.7318044571166729E-2,7.2759385856788053E-2,7.7966094727092525E-2,7.7248375022448121E-2,6.1191341786823755E-2,5.2433720581923658E-2,239]
[null,"Male 55-59",0.35662610100589853,0.29553414167406217,0.23679187308575791,0.22910020425525382,0.24322325729302541,0.41308308880198419,0.29312561033229501,0.29245005133679541,0.42377462721176229,0.25241030734442654,0.25241030734442654,0.47885468447155927,0.46217811862554942,0.2463522014262976,0.30487105459607405,0.22845584587221487,0.28954300754474649,0.28160048068712934,0.24128852683728541,0.25317555128705588,0.30748646006705865,0.30748646006705865,0.27158016007659835,0.30407356096277766,0.30435010367778143,0.29150245328092939,0.30665824067404862,0.30365440312343778,0.32554352554780586,0.41927323294010593,0.32554352554780586,0.30022972735848646,0.28204863159991794,0.25948897146936151,0.26896918116588614,0.4207349533271586,0.30851976197991304,0.2638560142274306,0.2638560142274306,0.33376440006535218,0.31773555291185862,0.29817158931082982,0.29312561033229501,0.24629376983645027,0.24629376983645027,0.34753046447205016,0.29110041237249396,0.21774730346589036,0.33482279785086205,0.35878293455379717,0.35548014527442179,0.28158918633040186,0.24128852683728541,240]
[null,"Male 60-64",0.35662610100589853,0.29553414167406217,0.23679187308575791,0.22910020425525382,0.24322325729302541,0.41308308880198419,0.29312561033229501,0.29245005133679541,0.42377462721176229,0.25241030734442654,0.25241030734442654,0.47885468447155927,0.46217811862554942,0.2463522014262976,0.30487105459607405,0.22845584587221487,0.28954300754474649,0.28160048068712934,0.24128852683728541,0.25317555128705588,0.30748646006705865,0.30748646006705865,0.27158016007659835,0.30407356096277766,0.30435010367778143,0.29150245328092939,0.30665824067404862,0.30365440312343778,0.32554352554780586,0.41927323294010593,0.32554352554780586,0.30022972735848646,0.28204863159991794,0.25948897146936151,0.26896918116588614,0.4207349533271586,0.30851976197991304,0.2638560142274306,0.2638560142274306,0.33376440006535218,0.31773555291185862,0.29817158931082982,0.29312561033229501,0.24629376983645027,0.24629376983645027,0.34753046447205016,0.29110041237249396,0.21774730346589036,0.33482279785086205,0.35878293455379717,0.35548014527442179,0.28158918633040186,0.24128852683728541,241]
[null,"Male 65-69",{"$f":"$AR244*C$254","v":0},0,0,0,0,0,0,0,0,0,{"$f":"$AR244*M$254","v":0},0,0,0,0,0,0,0,0,0,{"$f":"$AR244*W$254","v":0},0,0,0,0,0,0,0,0,0,{"$f":"$AR244*AG$254","v":0},0,0,0,0,0,0,0,0,0,0,null,{"$f":"$AR244*AS$254","v":0},0,0,0,0,0,0,0,0,0,0,242]
[null,"Male 70-74",0,0,0,0,0,0,0,0,0,0,0,0,0,0,0,0,0,0,0,0,0,0,0,0,0,0,0,0,0,0,0,0,0,0,0,0,0,0,0,0,0,null,0,0,0,0,0,0,0,0,0,0,0,243]
[null,"Male 75-79",0,0,0,0,0,0,0,0,0,0,0,0,0,0,0,0,0,0,0,0,0,0,0,0,0,0,0,0,0,0,0,0,0,0,0,0,0,0,0,0,0,null,0,0,0,0,0,0,0,0,0,0,0,244]
[null,"Male 80-84",0,0,0,0,0,0,0,0,0,0,0,0,0,0,0,0,0,0,0,0,0,0,0,0,0,0,0,0,0,0,0,0,0,0,0,0,0,0,0,0,0,null,0,0,0,0,0,0,0,0,0,0,0,245]
[null,"Male 85-89",0,0,0,0,0,0,0,0,0,0,0,0,0,0,0,0,0,0,0,0,0,0,0,0,0,0,0,0,0,0,0,0,0,0,0,0,0,0,0,0,0,null,0,0,0,0,0,0,0,0,0,0,0,246]
[null,"Male 90+",0,0,0,0,0,0,0,0,0,0,0,0,0,0,0,0,0,0,0,0,0,0,0,0,0,0,0,0,0,0,0,0,0,0,0,0,0,0,0,0,0,null,0,0,0,0,0,0,0,0,0,0,0,247]
[null,null,"Aberdeen City Local Authority","Aberdeen City Deal","Aberdeenshire Local Authority","Angus Local Authority","Argyll & Bute Local Authority","Ayrshire & Arran Health Board","Borders Health Board","Clacks & Stirling IJB","Clackmannanshire Local Authority","Dumfries & Galloway Health Board","Dumfries & Galloway Local Authority","Dundee City Local Authority","East Ayrshire Local Authority","East Dunbartonshire Local Authority","East Lothian Local Authority","East Renfrewshire Local Authority","Edinburgh & Southeast City Deal","Edinburgh, City of Local Authority","Eilean Siar Local Authority","Falkirk Local Authority","Fife Health Board","Fife Local Authority","Forth Valley Health Board","Glasgow City Local Authority","Glasgow & Clyde City Deal","Grampian Health Board","Greater Glasgow & Clyde Health Board","Highland Health Board","Highland Local Authority","Inverclyde Local Authority","Inverness City Deal","Lanarkshire Health Board","Lothian Health Board","Midlothian Local Authority","Moray Local Authority","North Ayrshire Local Authority","North Lanarkshire Local Authority","Orkney Health Board","Orkney Islands Local Authority","Perth & Kinross Local Authority","Renfrewshire Local Authority",null,"Scottish Borders Local Authority","Shetland Health Board","Shetland Islands Local Authority","South Ayrshire Local Authority","South Lanarkshire Local Authority","Stirling Local Authority","Tay Cities Deal ","Tayside Health Board","West Dunbartonshire Local Authority","West Lothian Local Authority","Western Isles Health Board",248]
["Overall prevalence","Female",0.25026548672566373,0.24886977886977887,0.24755077658303465,0.25272206303724926,0.20495867768595041,0.33660377358490567,0.29677419354838708,0.24149779735682819,0.34708074534161493,0.30872246696035244,0.30872246696035244,0.22221327967806842,0.34835051546391754,0.22480712166172107,0.27253012048192771,0.19878378378378378,0.26372775800711745,0.24976000000000001,0.20974358974358975,0.26885375494071145,0.27896752706078271,0.27896752706078271,0.25591666666666668,0.3041864801864802,0.26217131474103583,0.25237846314688972,0.2693848133848134,0.20994708994708994,0.21166429587482219,0.25723320158102769,0.21166429587482219,0.24906965871902759,0.25371699390656738,0.24967971530249111,0.27242105263157895,0.37042253521126761,0.2483836589698046,0.21711076592185446,0.21711076592185446,0.18687224669603525,0.20484848484848484,0.26016001337548289,0.29677419354838708,0.17542630226582573,0.17542630226582573,0.28272727272727272,0.24983218163869694,0.18348122866894198,0.24730907636945221,0.21806153846153847,0.27126279863481229,0.25678510998307952,0.20974358974358975,249]
[null,"Male",0.21504999999999999,0.1782107843137255,0.14278846153846153,0.13815028901734103,0.14666666666666667,0.24909426987060998,0.17675840978593271,0.17635103926096998,0.25554140127388536,0.15220657276995306,0.15220657276995306,0.28875536480686698,0.27869918699186991,0.14855345911949686,0.18384105960264902,0.13776173285198556,0.1745980554896846,0.16980861244019138,0.14549999999999999,0.15266802443991853,0.18541818181818182,0.18541818181818182,0.16376623376623375,0.18336016096579477,0.18352691968225948,0.17577962577962578,0.18491875516386672,0.18310740354535976,0.19630681818181819,0.25282700421940929,0.19630681818181819,0.18104228121927238,0.17007885304659498,0.15647509578544061,0.16219178082191782,0.2537084398976982,0.18604127579737337,0.15910847719659882,0.15910847719659882,0.20126410835214448,0.19159851301115241,0.17980119823095447,0.17675840978593271,0.14851822413988872,0.14851822413988872,0.20956521739130435,0.17553719008264462,0.13130434782608696,0.2019023354564756,0.21635059760956174,0.21435897435897436,0.16980180180180179,0.14549999999999999,250]
["Crude weights","Female",{"$f":"C251/$AR251","v":0.9619675348204314},0.95660272937713497,0.9515327638984642,0.97141009395821865,0.78781775502962603,1.2938336265346562,1.1407371551755718,0.92826639353020035,1.334104887366689,1.1866637880079614,1.1866637880079614,0.85414079125739117,1.3389856148306363,0.86411097057126218,1.0475480722265775,0.76408277046359074,1.0137136548593473,0.96002455088871486,0.80620994372748478,1.0334169015923331,1.0722920999321881,1.0722920999321881,0.98368947382128291,1.1692284153885515,1.0077310165365423,0.97008936874029816,1.0354581777946659,0.80699215541659042,0.81359273136772192,0.98874995524300269,0.81359273136772192,0.95737102519114325,0.97523439753358077,0.9597159535125569,1.0471288385060158,1.4238257847744087,0.9547341874222548,0.83452780888546296,0.83452780888546296,0.71829734428221637,0.78739419709681435,null,{"$f":"AS251/$AR251","v":1.1407371551755718},0.67430155768264444,0.67430155768264444,1.0867437661114316,0.9603020018227012,0.70526298906714691,0.95060371945982636,0.83818237719266775,1.0426767554140037,0.98702758602824769,0.80620994372748478,251]
[null,"Male",{"$f":"C252/$AR252","v":1.1960431972414804},0.99115459778423676,0.79414632907534843,0.76835021332776166,0.81571573554406163,1.3853871515953338,0.98307692899180066,0.98081125707764882,1.4212441506960518,0.84652702132965685,0.84652702132965685,1.6059701917890501,1.5500407657677624,0.82620950572687546,1.0224684897066445,0.76618918120351309,0.97106169039771117,0.94442425362523097,0.80922708764768836,0.84909347625045628,1.0312399674890504,1.0312399674890504,0.91081836704934627,1.0197938766251646,1.0207213382778424,0.97763322774877737,1.0284623071662669,1.0183881161356805,1.0917992767192923,1.4061474934925251,1.0917992767192923,1.0069025290183202,0.94592725031859271,0.87026725808828309,0.90206173494785402,1.4110497727151403,1.034705428149614,0.88491333073444889,0.88491333073444889,1.1193702285210632,1.0656131043411863,null,{"$f":"AS252/$AR252","v":0.98307692899180066},0.82601353940432143,0.82601353940432143,1.1655384916963569,0.97628487357001514,0.7302751545483398,1.1229198550564288,1.2032767286214612,1.1921999211797825,0.9443863749099799,0.80922708764768836,252]

{"sheet":"Population 2016","index":12,"n_rows":249,"n_cols":56,"rows_kept":249,"cut":false,"hidden":true,"merged":[]}
["Population 2016 (16+ only)"]
[]
["SIMD","group","Aberdeen City Local Authority","Aberdeen City Region Deal","Aberdeenshire Local Authority","Angus Local Authority","Argyll & Bute Local Authority","Ayrshire & Arran Health Board","Borders Health Board","Clackmannanshire & Stirling IJB","Clackmannanshire Local Authority","Dumfries & Galloway Health Board","Dumfries & Galloway Local Authority","Dundee City Local Authority","East Ayrshire Local Authority","East Dunbartonshire Local Authority","East Lothian Local Authority","East Renfrewshire Local Authority","Edinburgh & SE Scotland City Region Deal","Edinburgh, City of Local Authority","Eilean Siar Local Authority","Falkirk Local Authority","Fife Health Board","Fife Local Authority","Forth Valley Health Board","Glasgow City Local Authority","Glasgow City Region Deal","Grampian Health Board","Greater Glasgow & Clyde Health Board","Highland Health Board","Highland Local Authority","Inverclyde Local Authority","Inverness & Highland City Region Deal","Lanarkshire Health Board","Lothian Health Board","Midlothian Local Authority","Moray Local Authority","North Ayrshire Local Authority","North Lanarkshire Local Authority","Orkney Health Board","Orkney Islands Local Authority","Perth & Kinross Local Authority","Renfrewshire Local Authority","Scotland","Scottish Borders Local Authority","Shetland Health Board","Shetland Islands Local Authority","South Ayrshire Local Authority","South Lanarkshire Local Authority","Stirling Local Authority","Tay Cities Region Deal ","Tayside Health Board","West Dunbartonshire Local Authority","West Lothian Local Authority","Western Isles Health Board",1]
[null,null,"popS12000033","Aber_deal","popS12000034","popS12000041","popS12000035","popS08000015","popS08000016","ClacksStirIJB","popS12000005","popS08000017","popS12000006","popS12000042","popS12000008","popS12000045","popS12000010","popS12000011","EdinSE_deal","popS12000036","popS12000013","popS12000014","popS08000018","popS12000015","popS08000019","popS12000046","GClyde_deal","popS08000020","popS08000021","popS08000022","popS12000017","popS12000018","Inver_deal","popS08000023","popS08000024","popS12000019","popS12000020","popS12000021","popS12000044","popS08000025","popS12000023","popS12000024","popS12000038","popS00000001","popS12000026","popS08000026","popS12000027","popS12000028","popS12000029","popS12000030","Tay_deal","popS08000027","popS12000039","popS12000040","popS08000028",2]
["All quintiles","16+ Males and Females",195653,408972,213319,97075,73892,308413,95528,120583,42326,125906,125906,124421,100941,88730,85101,75148,1132942,429806,22593,131021,305958,305958,251604,516583,1505157,488515,966842,268690,194798,66309,194798,538315,731456,71726,79543,112762,276091,18334,18334,126166,145976,4488783,95528,18967,18967,94710,262224,78257,653620,347662,74096,144823,22593,3]
["Q1 and Q2","16+ Males and Females",55772,76466,20694,23106,17866,167717,20594,42609,21032,44748,44748,68009,58204,18917,25984,11714,380156,118643,5432,56576,120625,120625,99185,329151,800085,89168,514066,67593,49727,36156,49727,286019,238937,32594,12702,67548,163920,2601,2601,20837,67935,1769266,20594,629,629,41965,122099,21577,232577,111952,50193,61716,5432,4]
["SIMD Q1 (most deprived)","16+ Males and Females",15706,20077,4371,6722,5398,92567,5141,19886,9977,9984,9984,43099,31424,4139,2919,4928,153150,55966,0,19042,59089,59089,38928,237443,481887,20712,343232,18565,13167,27666,13167,138655,88920,7071,635,44986,86094,0,0,6620,40910,872234,5141,0,0,16157,52561,9909,115530,56441,28146,22964,0,5]
["SIMD Q2",null,40066,56389,16323,16384,12468,75150,15453,22723,11055,34764,34764,24910,26780,14778,23065,6786,227006,62677,5432,37534,61536,61536,60257,91708,318198,68456,170834,49028,36560,8490,36560,147364,150017,25523,12067,22562,77826,2601,2601,14217,27025,897032,15453,629,629,25808,69538,11668,117047,55511,22047,38752,5432,6]
["SIMD Q3",null,30458,73451,42993,31913,30426,53711,31989,20856,8000,46905,46905,15883,17462,5452,18382,8332,231265,65662,15862,24167,66386,66386,45023,73726,236775,95627,135271,92816,62390,10471,62390,101504,132890,16953,22176,16287,50065,5744,5744,30213,25960,907978,31989,6241,6241,19962,51439,12856,144395,78009,11330,31893,15862,7]
["SIMD Q4",null,33670,111128,77458,24649,18051,45109,34098,29073,7505,22879,22879,21569,13653,16324,26540,11252,219384,69016,1299,25092,52998,52998,54165,60616,224957,141579,135338,82327,64276,11701,64276,89619,132288,11108,30451,18431,37360,8622,8622,52156,25824,910792,34098,12097,12097,13025,52259,21568,151372,98374,9621,25624,1299,8]
["SIMD Q5 (least deprived)",null,75753,147927,72174,17407,7549,41876,8847,28045,5789,11374,11374,18960,11622,48037,14195,43850,302137,176485,0,25186,65949,65949,53231,53090,243340,162141,182167,25954,18405,7981,18405,61173,227341,11071,14214,10496,24746,1367,1367,22960,26257,900747,8847,0,0,19758,36427,22256,125276,59327,2952,25590,0,9]
[]
[]
["All quintiles","16-64 Males and Females",{"$f":"SUM(C16:C20)","v":160821},326369,165548,70588,52336,228012,68285,93275,32443,88999,88999,98454,77024,65325,64703,56795,890676,353873,15954,101864,232300,232300,195139,432793,1198712,386158,776269,197058,144722,50140,144722,422443,{"$f":"SUM(AI16:AI20)","v":590091},55334,59789,83535,219594,13367,13367,92250,113311,3489931,68285,14564,14564,67453,202849,60832,493592,261292,57905,116181,15954]
["Q1 and Q2","16-64 Males and Females",{"$f":"SUM(C16:C17)","v":46230},62172,15942,17846,12767,127438,15167,33758,16465,32741,32741,54846,44631,14643,19987,9381,301774,100187,3874,43526,92524,92524,77284,271895,638946,72067,416799,50686,37919,27834,37919,222147,{"$f":"SUM(AI16:AI17)","v":194083},25263,9895,51784,128357,1855,1855,16876,53381,1396725,15167,492,492,31023,93790,17293,182092,89568,39665,48646,3874]
["SIMD Q1 (most deprived)","16-64 Males and Females",{"$f":"SUM(C63:C72,C82:C91)","v":13301},16996,3695,5435,4068,71787,4010,15946,7900,7905,7905,35117,24370,3353,2304,3951,123814,47110,0,14911,46353,46353,30857,195062,388907,17505,279334,14788,10720,21255,10720,109573,{"$f":"SUM(AI63:AI72,AI82:AI91)","v":73451},5605,509,34834,68406,0,0,5523,33059,701638,4010,0,0,12583,41167,8046,92428,46075,22654,18432,0,10]
["SIMD Q2",null,{"$f":"SUM(C101:C110,C120:C129)","v":32929},45176,12247,12411,8699,55651,11157,17812,8565,24836,24836,19729,20261,11290,17683,5430,177960,53077,3874,28615,46171,46171,46427,76833,250039,54562,137465,35898,27199,6579,27199,112574,{"$f":"SUM(AI101:AI110,AI120:AI129)","v":120632},19658,9386,16950,59951,1855,1855,11353,20322,695087,11157,492,492,18440,52623,9247,89664,43493,17011,30214,3874,11]
["SIMD Q3",null,{"$f":"SUM(C139:C148,C158:C167)","v":25205},57636,32431,23270,20995,38996,22887,15837,5916,32369,32369,12198,13031,4271,13650,6116,181310,57056,11127,18510,49730,49730,34347,63671,189037,73959,110209,66297,45302,7766,45302,78828,{"$f":"SUM(AI139:AI148,AI158:AI167)","v":108693},12839,16323,11382,39804,4104,4104,21665,19776,693236,22887,4557,4557,14583,39024,9921,106863,57133,8609,25148,11127,12]
["SIMD Q4",null,{"$f":"SUM(C177:C186,C196:C205)","v":28010},87662,59652,17205,12580,32580,23737,22605,5862,15907,15907,17291,10475,11884,20564,8445,170182,56937,953,19343,39370,39370,41948,51988,181170,110333,108286,60386,47806,9047,47806,72884,{"$f":"SUM(AI177:AI186,AI196:AI205)","v":107075},8451,22671,13015,31058,6364,6364,38222,19822,702056,23737,9515,9515,9090,41826,16743,112088,72718,7100,21123,953,13]
["SIMD Q5 (least deprived)",null,{"$f":"SUM(C215:C224,C234:C243)","v":61376},118899,57523,12267,5994,28998,6494,21075,4200,7982,7982,14119,8887,34527,10502,32853,237410,139693,0,20485,50676,50676,41560,45239,189559,129799,140975,19689,13695,5493,13695,48584,{"$f":"SUM(AI215:AI224,AI234:AI243)","v":180240},8781,10900,7354,20375,1044,1044,15487,20332,697914,6494,0,0,12757,28209,16875,92549,41873,2531,21264,0,14]
[]
["All quintiles","Female 0-4",null,null,null,null,null,null,null,null,null,null,null,null,null,null,null,null,null,null,null,null,null,null,null,null,null,null,null,null,null,null,null,null,null,null,null,null,null,null,null,null,null,null,null,null,null,null,null,null,null,null,null,null,null,20]
[null,"Female 5-9",null,null,null,null,null,null,null,null,null,null,null,null,null,null,null,null,null,null,null,null,null,null,null,null,null,null,null,null,null,null,null,null,null,null,null,null,null,null,null,null,null,null,null,null,null,null,null,null,null,null,null,null,null,21]
[null,"Female 10-15",null,null,null,null,null,null,null,null,null,null,null,null,null,null,null,null,null,null,null,null,null,null,null,null,null,null,null,null,null,null,null,null,null,null,null,null,null,null,null,null,null,null,null,null,null,null,null,null,null,null,null,null,null,22]
[null,"Female 16-19",5132,10449,5317,2420,1755,8055,2394,3878,1120,3007,3007,3946,2632,2319,2320,2269,29879,10481,506,3283,8533,8533,7161,13662,40734,12500,25770,6512,4757,1715,4757,14964,18952,2013,2051,3036,8055,395,395,3162,3858,118803,2394,526,526,2387,6909,2758,18061,9528,1947,4138,506,23]
[null,"Female 20-24",11186,17539,6353,3023,1897,10449,2757,5440,1411,3797,3797,7387,3516,2847,3144,2491,50597,24791,559,4465,12368,12368,9905,28898,64015,20059,44900,7538,5641,2383,5641,19115,35472,2476,2520,3967,10067,534,534,3854,5454,182279,2757,562,562,2966,9048,4029,26632,14264,2827,5061,559,24]
[null,"Female 25-29",11646,18412,6766,2919,1880,10393,2483,4660,1408,3846,3846,6884,3706,2469,2796,2248,52083,27486,611,4641,11146,11146,9301,32603,67710,21019,48136,8030,6150,2297,6150,19574,38454,2653,2607,3823,10607,595,595,3890,5624,187975,2483,694,694,2864,8967,3252,24839,13693,2895,5519,611,25]
[null,"Female 30-34",9712,17943,8231,3238,1920,10174,2828,3996,1462,3753,3753,5361,3622,2437,2969,2196,48660,22996,664,5214,10880,10880,9210,26708,63296,20877,42021,8755,6835,2230,6835,21275,34952,2878,2934,3676,11344,594,594,4385,5477,179608,2828,641,641,2876,9931,2534,23864,12984,2973,6109,664,26]
[null,"Female 35-39",7583,16085,8502,3276,2083,10193,2805,4130,1504,3612,3612,4328,3547,3044,3171,2902,44086,18399,746,5111,10973,10973,9241,21043,58299,18652,37236,8759,6676,2249,6676,21063,30308,2893,2567,3679,11088,587,587,4006,5318,166485,2805,700,700,2967,9975,2626,22583,11610,2680,5845,746,27]
[null,"Female 40-44",6824,15898,9074,3662,2531,11821,3657,4700,1736,4255,4255,3957,4002,3415,3457,3182,44368,16077,826,5798,11795,11795,10498,18545,58315,19026,36123,9983,7452,2474,7452,22192,28916,2880,3128,4405,11655,679,679,4598,5707,172709,3657,721,721,3414,10537,2964,24012,12217,2800,6502,826,28]
[null,"Female 45-49",7059,17560,10501,4288,3168,14637,4591,5736,2106,5713,5713,4585,4999,4300,4361,3828,50032,16115,994,6395,13972,13972,12131,21204,69713,21168,43438,12131,8963,3245,8963,26275,31469,3511,3608,5391,13605,825,825,5763,7211,202829,4591,849,849,4247,12670,3630,28608,14636,3650,7482,994,29]
[null,"Female 50-54",7514,18002,10488,4561,3606,15343,4773,5816,2099,6247,6247,5222,5016,4541,4176,3870,50162,16086,1055,6308,14461,14461,12124,22092,71857,21705,45100,13200,9594,3438,9594,26757,30928,3468,3703,5694,13668,884,884,6032,7332,209262,4773,870,870,4633,13089,3717,30276,15815,3827,7198,1055,30]
[null,"Female 55-59",6840,15898,9058,4348,3443,14228,4541,5068,1864,5813,5813,4949,4484,4332,3915,3436,45797,14875,972,5503,13155,13155,10571,19421,64733,19238,40548,12373,8930,3211,8930,24185,28101,3217,3340,5208,12011,805,805,5481,6630,190084,4541,776,776,4536,12174,3204,27933,14778,3518,6094,972,31]
[null,"Female 60-64",5820,14164,8344,3966,3221,12941,4117,4397,1655,5644,5644,3904,3948,3656,3310,2999,39293,12299,979,4825,11746,11746,9222,15156,53781,17262,32864,11540,8319,2621,8319,20917,23430,2702,3098,4810,10348,750,750,5122,5470,165146,4117,742,742,4183,10569,2742,24738,12992,2962,5119,979,32]
[null,"Female 65-69",5622,13715,8093,4306,3532,13256,4447,4573,1787,5665,5665,4107,4031,3622,3350,2876,40441,12277,1002,4943,12418,12418,9516,13288,50288,16937,30723,11757,8225,2639,8225,19565,23576,2896,3222,4928,9706,779,779,5320,5474,164057,4447,683,683,4297,9859,2786,26151,13733,2824,5053,1002,33]
[null,"Female 70-74",4129,10057,5928,3313,2739,10604,3466,3610,1346,4801,4801,3099,3110,2935,2627,2330,30842,9152,794,3713,9547,9547,7323,10260,39137,12629,23856,9093,6354,2076,6354,15281,17829,2151,2572,3901,7638,666,666,4272,4201,127150,3466,577,577,3593,7643,2264,20231,10684,2054,3899,794,34]
[null,"Female 75-79",3695,8281,4586,2642,2245,8316,2800,2850,983,3660,3660,2766,2449,2597,2148,1948,24775,7867,713,3109,7370,7370,5959,9530,33698,10254,21120,7233,4988,1746,4988,12578,14605,1653,1973,3062,6233,498,498,3398,3509,104331,2800,419,419,2805,6345,1867,16176,8806,1790,2937,713,35]
[null,"Female 80-84",3033,6388,3355,2034,1632,6246,2000,2054,662,2870,2870,2379,1804,1951,1635,1685,18839,6454,553,2196,5495,5495,4250,7853,26368,7981,16925,5426,3794,1382,3794,9443,11344,1238,1593,2273,4548,327,327,2633,2732,80217,2000,311,311,2169,4895,1392,12541,7046,1322,2017,553,36]
[null,"Female 85-89",2017,4180,2163,1315,1000,3632,1227,1203,412,1757,1757,1526,1048,1203,1030,1082,12103,4595,330,1285,3473,3473,2488,4753,15785,5134,10347,3415,2415,892,2415,5438,7403,693,954,1283,2478,219,219,1798,1579,49691,1227,189,189,1301,2960,791,8112,4639,838,1085,330,37]
[null,"Female 90+",1109,2389,1280,884,634,2253,751,747,225,991,991,840,608,710,568,667,7232,2758,240,780,2124,2124,1527,2768,8781,2925,6002,1989,1355,525,1355,2779,4357,403,536,783,1168,134,134,1129,882,29050,751,125,125,862,1611,522,4977,2853,450,628,240,38]
[null,"Male 0-4",null,null,null,null,null,null,null,null,null,null,null,null,null,null,null,null,null,null,null,null,null,null,null,null,null,null,null,null,null,null,null,null,null,null,null,null,null,null,null,null,null,null,null,null,null,null,null,null,null,null,null,null,null,39]
[null,"Male 5-9",null,null,null,null,null,null,null,null,null,null,null,null,null,null,null,null,null,null,null,null,null,null,null,null,null,null,null,null,null,null,null,null,null,null,null,null,null,null,null,null,null,null,null,null,null,null,null,null,null,null,null,null,null,40]
[null,"Male 10-15",null,null,null,null,null,null,null,null,null,null,null,null,null,null,null,null,null,null,null,null,null,null,null,null,null,null,null,null,null,null,null,null,null,null,null,null,null,null,null,null,null,null,null,null,null,null,null,null,null,null,null,null,null,41]
[null,"Male 16-19",4618,10741,6123,2762,2139,8596,2478,3910,1252,3221,3221,3524,2828,2623,2309,2475,30158,10532,556,3747,8648,8648,7657,13791,42639,13104,26871,7596,5457,1848,5457,15768,19032,1961,2363,3245,8401,494,494,3562,4118,124418,2478,549,549,2523,7367,2658,18496,9848,2016,4230,556,42]
[null,"Male 20-24",10055,17241,7186,3297,2955,10847,2809,5494,1591,3996,3996,6850,3689,3335,2990,2815,46618,20799,650,4670,12020,12020,10164,27102,64147,20259,44004,9133,6178,2412,6178,20143,31789,2508,3018,4148,10761,577,577,4430,5464,181688,2809,720,720,3010,9382,3903,26597,14577,2876,5492,650,43]
[null,"Male 25-29",13084,20153,7069,3008,2486,9915,2465,4320,1326,3672,3672,7015,3552,2823,2551,2235,49299,25953,613,4538,10466,10466,8858,31828,66712,23042,47795,8662,6176,2322,6176,18917,36368,2460,2889,3564,10197,605,605,4041,5719,186149,2465,707,707,2799,8720,2994,24530,14064,2868,5404,613,44]
[null,"Male 30-34",10533,18196,7663,3098,1993,9097,2438,3686,1379,3519,3519,5275,3358,2430,2530,1892,45742,22449,618,4657,10197,10197,8343,27904,61765,21010,42551,8457,6464,2227,6464,19214,33107,2518,2814,3224,10357,540,540,4186,5418,172305,2438,655,655,2515,8857,2307,22756,12559,2680,5610,618,45]
[null,"Male 35-39",8518,16872,8354,2990,2111,9060,2607,3767,1433,3252,3252,4008,3246,2566,2713,2396,42754,18925,687,4994,10280,10280,8761,22182,56216,19515,36499,8592,6481,2010,6481,19717,29867,2614,2643,3157,10380,536,536,4185,4942,161268,2607,712,712,2657,9337,2334,21463,11183,2403,5615,687,46]
[null,"Male 40-44",7308,16431,9123,3389,2439,10458,3273,4276,1613,3894,3894,3685,3714,3061,3382,2856,43545,16766,816,5398,11190,11190,9674,18717,55295,19411,34216,9153,6714,2118,6714,21079,29082,2717,2980,3700,11022,622,622,4187,5030,164929,3273,800,800,3044,10057,2663,22451,11261,2434,6217,816,47]
[null,"Male 45-49",7281,17228,9947,4018,3009,12866,4231,5337,2056,5061,5061,4514,4466,3704,3741,3208,47799,16303,1062,6279,13408,13408,11616,19948,63590,20910,38936,11193,8184,2694,8184,24654,30160,3128,3682,4645,12690,795,795,5184,6312,189422,4231,814,814,3755,11964,3281,27124,13716,3070,6988,1062,48]
[null,"Male 50-54",7284,17410,10126,4570,3357,13909,4657,5491,2021,5884,5884,4693,4685,4160,4090,3473,48325,16177,1035,6186,13327,13327,11677,19976,66121,21027,41191,12412,9055,3256,9055,24930,30341,3186,3617,5069,12858,908,908,5940,6814,197429,4657,928,928,4155,12072,3470,28530,15203,3512,6888,1035,49]
[null,"Male 55-59",6797,15936,9139,4032,3246,13173,4341,4964,1828,5552,5552,4632,4283,3876,3744,3233,44067,14276,1018,5421,12779,12779,10385,17580,59729,19197,37212,11962,8716,2965,8716,22517,26947,2942,3261,4790,11103,876,876,5288,6350,180737,4341,826,826,4100,11414,3136,26731,13952,3208,5985,1018,50]
[null,"Male 60-64",6027,14211,8184,3723,3097,11857,4040,4209,1579,5261,5261,3735,3731,3387,3034,2791,37412,12088,987,4431,10956,10956,8640,14433,50045,17177,30858,11077,7980,2425,7980,19187,22416,2609,2966,4304,9377,766,766,4954,5063,156406,4040,772,772,3822,9810,2630,23368,12412,2759,4685,987,51]
[null,"Male 65-69",5436,13667,8231,4139,3351,12280,4344,4311,1637,5663,5663,3703,3787,3321,3001,2478,37322,11191,1050,4682,11517,11517,8993,12473,45785,16610,27887,11360,8009,2361,8009,17898,21461,2602,2943,4478,8878,770,770,5018,4816,153467,4344,774,774,4015,9020,2674,24377,12860,2438,4667,1050,52]
[null,"Male 70-74",3551,9080,5529,2968,2599,9328,3194,3112,1185,4333,4333,2650,2773,2472,2305,1844,27189,7692,741,3266,8633,8633,6378,8760,33436,11338,20327,8593,5994,1795,5994,13109,15362,1939,2258,3391,6342,611,611,3766,3632,111869,3194,538,538,3164,6767,1927,18017,9384,1824,3426,741,53]
[null,"Male 75-79",2734,6713,3979,2218,1841,6859,2310,2318,810,3339,3339,2157,2086,2013,1690,1519,19727,5881,580,2408,6060,6060,4726,6503,24796,8457,15290,5897,4056,1293,4056,9506,11357,1321,1744,2461,4679,467,467,2901,2725,82515,2310,391,391,2312,4827,1508,13336,7276,1237,2465,580,54]
[null,"Male 80-84",2016,4681,2665,1505,1171,4512,1523,1512,486,2250,2250,1534,1329,1495,1188,1102,13669,4490,355,1683,4105,4105,3195,4488,16812,5789,10574,3989,2818,847,2818,6238,8041,862,1108,1620,2981,282,282,2077,1771,56201,1523,232,232,1563,3257,1026,9221,5116,871,1501,355,55]
[null,"Male 85-89",1046,2394,1348,820,580,2206,872,732,249,1098,1098,852,643,749,598,561,7057,2411,210,763,2030,2030,1495,2162,8120,2993,5207,2040,1460,423,1460,2913,4155,460,599,748,1326,147,147,1130,930,28287,872,119,119,815,1587,483,4832,2802,382,686,210,56]
[null,"Male 90+",444,1058,614,343,232,909,309,286,101,480,480,354,249,337,258,261,3070,1165,71,329,886,886,615,952,3439,1310,2315,840,608,190,608,1124,1875,174,252,299,520,67,67,474,414,12017,309,45,45,361,604,185,2057,1171,161,278,71,57]
["SIMD Q1 (most deprived)","Female 0-4",null,null,null,null,null,null,null,null,null,null,null,null,null,null,null,null,null,null,null,null,null,null,null,null,null,null,null,null,null,null,null,null,null,null,null,null,null,null,null,null,null,null,null,null,null,null,null,null,null,null,null,null,null,58]
[null,"Female 5-9",null,null,null,null,null,null,null,null,null,null,null,null,null,null,null,null,null,null,null,null,null,null,null,null,null,null,null,null,null,null,null,null,null,null,null,null,null,null,null,null,null,null,null,null,null,null,null,null,null,null,null,null,null,59]
[null,"Female 10-15",null,null,null,null,null,null,null,null,null,null,null,null,null,null,null,null,null,null,null,null,null,null,null,null,null,null,null,null,null,null,null,null,null,null,null,null,null,null,null,null,null,null,null,null,null,null,null,null,null,null,null,null,null,60]
[null,"Female 16-19",367,479,112,222,146,2710,169,594,274,315,315,1259,870,113,83,167,4509,1504,0,474,1829,1829,1068,6019,12832,495,8838,549,403,688,403,3994,2511,205,16,1351,2539,0,0,183,1046,24142,169,0,0,489,1455,320,3493,1664,805,719,0,61]
[null,"Female 20-24",782,982,200,320,208,4057,217,957,442,502,502,2144,1363,177,120,229,6262,2376,0,776,2248,2248,1733,10248,20452,1017,14969,811,603,1133,603,5483,3797,326,35,1946,3424,0,0,326,1925,37624,217,0,0,748,2059,515,5038,2790,1257,975,0,62]
[null,"Female 25-29",1031,1269,238,299,172,4063,204,1014,428,504,504,2793,1402,192,137,220,8045,3578,0,892,2758,2758,1906,14159,25059,1292,19205,767,595,1143,595,5854,5083,337,23,1950,3719,0,0,401,2185,45129,204,0,0,711,2135,586,6251,3493,1306,1031,0,63]
[null,"Female 30-34",906,1141,235,332,201,3606,207,887,409,430,430,2239,1246,165,124,214,7688,3523,0,874,2433,2433,1761,11989,22794,1174,16689,856,655,1118,655,6105,5048,296,33,1693,3760,0,0,360,1864,41240,207,0,0,667,2345,478,5364,2931,1339,1105,0,64]
[null,"Female 35-39",648,820,172,298,177,3239,192,774,422,361,361,1753,1095,151,145,215,6597,2822,0,690,2211,2211,1464,9938,19487,844,14051,699,522,993,522,5436,4194,280,24,1582,3365,0,0,296,1645,35038,192,0,0,562,2071,352,4558,2347,1109,947,0,65]
[null,"Female 40-44",661,829,168,255,208,3677,233,774,407,365,365,1449,1232,176,106,201,6089,2185,0,792,2275,2275,1566,8898,18428,857,12865,734,526,999,526,5563,3581,284,28,1837,3465,0,0,243,1486,33663,233,0,0,608,2098,367,4222,1947,1105,1006,0,66]
[null,"Female 45-49",594,790,196,304,239,4383,227,982,472,458,458,1647,1527,211,153,246,6820,2329,0,789,2760,2760,1771,10444,21908,818,15496,849,610,1343,610,6412,3833,312,28,2122,3984,0,0,239,1877,39197,227,0,0,734,2428,510,4950,2190,1375,1039,0,67]
[null,"Female 50-54",627,812,185,279,233,4464,220,905,457,473,473,1866,1566,212,125,258,6559,2093,0,840,2766,2766,1745,10956,22425,839,15965,795,562,1323,562,6460,3573,317,27,2202,4042,0,0,259,1798,39704,220,0,0,696,2418,448,5170,2404,1418,1038,0,68]
[null,"Female 55-59",541,700,159,260,223,3913,195,835,419,384,384,1669,1268,212,137,195,6082,2063,0,766,2446,2446,1601,9487,19924,723,14043,739,516,1263,516,5881,3441,310,23,1961,3571,0,0,233,1653,35528,195,0,0,684,2310,416,4608,2162,1233,931,0,69]
[null,"Female 60-64",440,565,125,209,200,3543,186,639,338,345,345,1330,1151,163,97,172,4925,1543,0,649,2086,2086,1288,7302,16077,602,10991,681,481,1042,481,5086,2653,232,37,1762,3061,0,0,212,1259,29212,186,0,0,630,2025,301,3837,1751,1053,781,0,70]
[null,"Female 65-69",408,525,117,187,225,3388,193,684,372,298,298,1327,1122,147,102,173,4911,1493,0,654,2098,2098,1338,6552,14944,557,10089,630,405,1045,405,4855,2620,261,32,1726,2902,0,0,182,1213,27762,193,0,0,540,1953,312,3794,1696,959,764,0,71]
[null,"Female 70-74",287,367,80,161,166,2652,149,528,279,311,311,958,867,102,87,124,3786,1086,0,473,1663,1663,1001,5396,11902,381,8053,483,317,788,317,3849,1974,198,14,1345,2379,0,0,151,960,21786,149,0,0,440,1470,249,2933,1270,683,603,0,72]
[null,"Female 75-79",243,297,54,166,144,2288,104,412,213,189,189,839,739,86,75,109,3115,962,0,508,1365,1365,920,5115,10810,307,7609,409,265,751,265,3201,1646,130,10,1167,1967,0,0,95,958,19138,104,0,0,382,1234,199,2465,1100,590,479,0,73]
[null,"Female 80-84",189,239,50,97,117,1672,82,311,140,151,151,671,560,56,42,94,2364,762,0,363,986,986,674,4049,8473,249,6032,316,199,598,199,2441,1296,136,10,821,1481,0,0,109,787,14776,82,0,0,291,960,171,1863,877,448,356,0,74]
[null,"Female 85-89",145,180,35,60,86,1027,59,165,88,101,101,442,381,33,21,44,1424,509,0,217,605,605,382,2360,4985,188,3577,208,122,361,122,1408,760,72,8,453,894,0,0,52,453,8869,59,0,0,193,514,77,1159,554,326,158,0,75]
[null,"Female 90+",71,89,18,37,55,568,24,100,56,40,40,239,203,5,6,26,814,271,0,104,352,352,204,1272,2684,91,1908,121,66,181,66,776,438,38,2,257,464,0,0,27,211,4825,24,0,0,108,312,44,655,303,213,123,0,76]
[null,"Male 0-4",null,null,null,null,null,null,null,null,null,null,null,null,null,null,null,null,null,null,null,null,null,null,null,null,null,null,null,null,null,null,null,null,null,null,null,null,null,null,null,null,null,null,null,null,null,null,null,null,null,null,null,null,null,77]
[null,"Male 5-9",null,null,null,null,null,null,null,null,null,null,null,null,null,null,null,null,null,null,null,null,null,null,null,null,null,null,null,null,null,null,null,null,null,null,null,null,null,null,null,null,null,null,null,null,null,null,null,null,null,null,null,null,null,78]
[null,"Male 10-15",null,null,null,null,null,null,null,null,null,null,null,null,null,null,null,null,null,null,null,null,null,null,null,null,null,null,null,null,null,null,null,null,null,null,null,null,null,null,null,null,null,null,null,null,null,null,null,null,null,null,null,null,null,79]
[null,"Male 16-19",377,466,89,241,178,2741,177,694,342,294,294,1171,940,136,88,163,4493,1501,0,502,1784,1784,1196,6797,13975,489,9777,588,410,774,410,4198,2532,207,23,1370,2730,0,0,171,1068,25359,177,0,0,431,1468,352,3367,1583,839,736,0,80]
[null,"Male 20-24",616,848,232,340,279,3842,211,887,427,439,439,1933,1299,169,119,194,6147,2198,0,737,2299,2299,1624,10608,20829,872,15004,845,566,1102,566,5825,3637,331,24,1872,3747,0,0,309,1746,37180,211,0,0,671,2078,460,4881,2582,1185,989,0,81]
[null,"Male 25-29",1034,1297,263,314,225,3699,158,865,346,496,496,2715,1282,163,105,196,7309,3335,0,832,2441,2441,1697,13525,23796,1309,18229,822,597,1111,597,5567,4710,255,12,1707,3574,0,0,443,2064,42600,158,0,0,710,1993,519,5913,3472,1170,1015,0,82]
[null,"Male 30-34",867,1140,273,258,176,3261,174,759,363,346,346,2130,1116,134,110,184,6619,2881,0,764,2287,2287,1523,11843,21614,1149,16292,796,620,1046,620,5322,4158,281,9,1550,3370,0,0,310,1941,38006,174,0,0,595,1952,396,4985,2698,1144,886,0,83]
[null,"Male 35-39",826,1033,207,256,150,2914,187,657,362,298,298,1533,948,136,86,165,6118,2620,0,721,2123,2123,1378,9660,18511,1059,13358,612,462,831,462,5153,3808,238,26,1384,3174,0,0,305,1610,32984,187,0,0,582,1979,295,4217,2094,956,864,0,84]
[null,"Male 40-44",675,887,212,251,167,3182,190,633,352,341,341,1296,1123,136,133,169,5949,2370,0,754,2102,2102,1387,8680,17348,917,12125,700,533,854,533,5223,3657,267,30,1491,3200,0,0,252,1408,31623,190,0,0,568,2023,281,3901,1799,878,887,0,85]
[null,"Male 45-49",626,815,189,277,203,3604,252,780,425,406,406,1626,1280,185,94,183,6621,2305,0,851,2635,2635,1631,9474,19864,854,13826,738,535,1118,535,6038,3734,309,39,1724,3787,0,0,257,1813,35878,252,0,0,600,2251,355,4795,2160,1053,1026,0,86]
[null,"Male 50-54",615,772,157,292,263,3880,260,861,454,437,437,1665,1353,189,143,241,6530,2390,0,858,2439,2439,1719,9703,20490,797,14561,815,552,1285,552,5929,3831,305,25,1895,3785,0,0,297,1800,36922,260,0,0,632,2144,407,4693,2254,1343,993,0,87]
[null,"Male 55-59",562,744,182,232,213,3779,197,814,428,389,389,1605,1264,173,112,193,5690,1884,0,727,2413,2413,1541,8490,18264,771,12759,747,534,1125,534,5505,3080,269,27,1860,3387,0,0,233,1675,33251,197,0,0,655,2118,386,4483,2070,1103,815,0,88]
[null,"Male 60-64",506,607,101,196,207,3230,154,635,333,322,322,1294,1045,160,87,146,4762,1610,0,623,2018,2018,1258,6842,14830,627,10291,645,438,964,438,4539,2590,244,20,1575,2722,0,0,194,1196,27358,154,0,0,610,1817,302,3702,1684,983,649,0,89]
[null,"Male 65-69",435,554,119,205,171,3104,200,620,337,371,371,1230,1089,127,101,136,4456,1314,0,644,1949,1949,1264,6096,13626,573,9229,577,406,978,406,4397,2307,203,19,1490,2667,0,0,161,1075,25567,200,0,0,525,1730,283,3545,1596,817,689,0,90]
[null,"Male 70-74",253,320,67,135,156,2302,139,445,245,226,226,875,747,88,64,87,3277,894,0,406,1490,1490,851,4417,9819,335,6634,419,263,674,263,3185,1648,152,15,1143,1879,0,0,119,770,18358,139,0,0,412,1306,200,2619,1129,598,538,0,91]
[null,"Male 75-79",167,225,58,122,90,1795,73,356,182,183,183,664,635,67,61,101,2383,725,0,350,1000,1000,706,3313,7452,232,5066,281,191,506,191,2386,1310,116,7,852,1478,0,0,96,679,13914,73,0,0,308,908,174,1882,882,400,408,0,92]
[null,"Male 80-84",120,162,42,69,69,1204,56,170,81,116,116,422,422,43,39,48,1646,496,0,256,725,725,426,2264,4928,165,3371,196,127,325,127,1557,865,74,3,555,970,0,0,64,425,9236,56,0,0,227,587,89,1280,555,266,256,0,93]
[null,"Male 85-89",62,83,21,37,39,565,38,104,55,67,67,224,208,23,10,24,789,234,0,104,347,347,208,1083,2336,87,1617,104,65,141,65,719,404,56,4,251,419,0,0,32,226,4449,38,0,0,106,300,49,640,293,120,104,0,94]
[null,"Male 90+",25,40,15,11,12,215,14,45,29,26,26,91,81,9,7,11,371,110,0,52,156,156,97,464,1021,42,713,33,21,63,21,308,201,30,2,92,188,0,0,9,94,1916,14,0,0,42,120,16,267,111,72,54,0,95]
["SIMD Q2","Female 0-4",null,null,null,null,null,null,null,null,null,null,null,null,null,null,null,null,null,null,null,null,null,null,null,null,null,null,null,null,null,null,null,null,null,null,null,null,null,null,null,null,null,null,null,null,null,null,null,null,null,null,null,null,null,96]
[null,"Female 5-9",null,null,null,null,null,null,null,null,null,null,null,null,null,null,null,null,null,null,null,null,null,null,null,null,null,null,null,null,null,null,null,null,null,null,null,null,null,null,null,null,null,null,null,null,null,null,null,null,null,null,null,null,null,97]
[null,"Female 10-15",null,null,null,null,null,null,null,null,null,null,null,null,null,null,null,null,null,null,null,null,null,null,null,null,null,null,null,null,null,null,null,null,null,null,null,null,null,null,null,null,null,null,null,null,null,null,null,null,null,null,null,null,null,98]
[null,"Female 16-19",959,1342,383,387,281,1847,362,646,329,884,884,668,690,359,552,215,5913,1606,118,929,1557,1557,1575,2401,8450,1616,4538,1238,957,231,957,3912,3994,760,274,561,2196,49,49,362,755,23121,362,14,14,596,1716,317,2974,1417,577,1076,118,99]
[null,"Female 20-24",2193,2788,595,753,365,2502,553,1032,376,1105,1105,1621,894,514,929,273,10080,4104,144,1303,2106,2106,2335,4568,12732,3344,7386,1593,1228,289,1228,5346,7421,953,556,762,2801,88,88,576,960,36899,553,26,26,846,2545,656,5056,2950,782,1435,144,100]
[null,"Female 25-29",2497,3162,665,776,428,2689,560,1019,434,1072,1072,1497,1016,584,927,254,11158,4643,157,1414,2393,2393,2433,5944,14679,3657,9066,1727,1299,357,1299,5613,8205,1001,495,763,3033,100,100,642,1074,40610,560,23,23,910,2580,585,5308,2915,853,1634,157,101]
[null,"Female 30-34",2127,2745,618,706,356,2556,474,846,403,1091,1091,1106,966,516,953,246,10451,3896,150,1505,2371,2371,2351,4938,13925,3276,7994,1718,1362,379,1362,5931,7606,1060,531,786,3202,62,62,694,1031,38102,474,16,16,804,2729,443,4877,2506,884,1697,150,102]
[null,"Female 35-39",1590,2207,617,566,373,2574,455,848,407,1065,1065,862,960,578,899,269,8704,2632,153,1467,2235,2235,2315,3687,11871,2646,6545,1625,1252,248,1252,5326,6014,1025,439,770,2945,71,71,528,956,33014,455,34,34,844,2381,441,4191,1956,807,1458,153,103]
[null,"Female 40-44",1433,2044,611,626,439,2816,494,905,462,1197,1197,767,1025,550,873,266,8657,2320,200,1535,2390,2390,2440,3234,11853,2501,6289,1806,1367,291,1367,5564,5773,971,457,916,3066,105,105,460,1112,33442,494,14,14,875,2498,443,4243,1853,836,1609,200,104]
[null,"Female 45-49",1498,2184,686,665,520,3587,664,1040,545,1566,1566,799,1328,754,1094,385,9718,2170,233,1758,2735,2735,2798,3645,14257,2712,7483,2134,1614,400,1614,6774,6319,1216,528,1140,3608,95,95,583,1267,39170,664,23,23,1119,3166,495,4782,2047,1032,1839,233,105]
[null,"Female 50-54",1562,2295,733,620,577,3706,713,1090,562,1695,1695,953,1254,740,1112,363,9801,2060,270,1752,2947,2947,2842,3735,14788,2808,7726,2331,1754,480,1754,7062,6141,1207,513,1189,3723,122,122,562,1315,40518,713,20,20,1263,3339,528,5082,2135,1093,1762,270,106]
[null,"Female 55-59",1390,2044,654,671,587,3484,693,936,471,1582,1582,900,1188,700,1053,288,9078,1871,231,1530,2660,2660,2466,3343,13419,2553,6938,2259,1672,438,1672,6481,5725,1183,509,1060,3369,109,109,509,1159,37275,693,14,14,1236,3112,465,4740,2080,1010,1618,231,107]
[null,"Female 60-64",1242,1852,610,563,526,3066,629,796,418,1556,1556,775,1040,528,882,251,7802,1536,248,1426,2425,2425,2222,2630,11399,2340,5533,2041,1515,318,1515,5866,4748,969,488,923,3059,104,104,498,941,32644,629,30,30,1103,2807,378,4261,1836,865,1361,248,108]
[null,"Female 65-69",1175,1846,671,601,577,3156,684,825,459,1539,1539,799,1047,523,858,247,8027,1507,236,1421,2498,2498,2246,2289,10956,2299,5323,2117,1540,360,1540,5633,4845,1041,453,976,2936,119,119,460,1056,32580,684,25,25,1133,2697,366,4358,1860,848,1439,236,109]
[null,"Female 70-74",810,1333,523,485,476,2542,547,672,353,1252,1252,642,854,468,694,146,6254,1136,173,1160,1922,1922,1832,1748,8804,1687,4127,1602,1126,274,1126,4677,3785,756,354,747,2486,103,103,369,855,25764,547,19,19,941,2191,319,3418,1496,636,1199,173,110]
[null,"Female 75-79",804,1228,424,427,440,2066,442,534,240,981,981,617,730,380,613,158,5240,1088,166,962,1578,1578,1496,1715,7811,1536,3868,1472,1032,202,1032,3943,3220,601,308,568,2070,63,63,282,805,22167,442,10,10,768,1873,294,2904,1326,608,918,166,111]
[null,"Female 80-84",713,1051,338,330,334,1620,350,357,161,817,817,502,541,350,483,151,4031,815,153,693,1257,1257,1050,1545,6306,1272,3305,1078,744,156,744,3001,2424,473,221,478,1529,60,60,236,671,17470,350,15,15,601,1472,196,2325,1068,432,653,153,112]
[null,"Female 85-89",401,587,186,245,187,890,213,208,102,455,455,275,289,203,272,67,2527,556,63,433,809,809,641,960,3673,728,1920,676,489,80,489,1753,1505,307,141,244,842,29,29,204,353,10411,213,5,5,357,911,106,1533,724,257,370,63,113]
[null,"Female 90+",195,309,114,161,104,620,147,126,61,276,276,165,184,139,147,35,1456,336,57,276,482,482,402,563,1897,373,1033,376,272,26,272,864,827,139,64,154,360,12,12,96,168,5892,147,1,1,282,504,65,904,422,102,205,57,114]
[null,"Male 0-4",null,null,null,null,null,null,null,null,null,null,null,null,null,null,null,null,null,null,null,null,null,null,null,null,null,null,null,null,null,null,null,null,null,null,null,null,null,null,null,null,null,null,null,null,null,null,null,null,null,null,null,null,null,115]
[null,"Male 5-9",null,null,null,null,null,null,null,null,null,null,null,null,null,null,null,null,null,null,null,null,null,null,null,null,null,null,null,null,null,null,null,null,null,null,null,null,null,null,null,null,null,null,null,null,null,null,null,null,null,null,null,null,null,116]
[null,"Male 10-15",null,null,null,null,null,null,null,null,null,null,null,null,null,null,null,null,null,null,null,null,null,null,null,null,null,null,null,null,null,null,null,null,null,null,null,null,null,null,null,null,null,null,null,null,null,null,null,null,null,null,null,null,null,117]
[null,"Male 16-19",925,1350,425,390,304,2032,365,621,306,904,904,564,727,419,608,218,5932,1517,140,1094,1635,1635,1715,2329,8547,1696,4487,1318,1014,213,1014,4060,3932,717,346,663,2211,67,67,380,725,23693,365,8,8,642,1849,315,2969,1334,583,1090,140,118]
[null,"Male 20-24",2227,2839,612,608,398,2609,540,1032,406,1220,1220,1679,978,616,853,295,8771,2929,156,1315,2030,2030,2347,4391,12741,3325,7435,1706,1308,322,1308,5306,6201,886,486,832,2832,91,91,669,976,35964,540,42,42,799,2474,626,4986,2956,835,1533,156,119]
[null,"Male 25-29",2659,3378,719,711,364,2551,568,1041,387,993,993,1555,940,580,850,258,10315,4305,177,1333,2157,2157,2374,6039,14465,3910,9057,1655,1291,320,1291,5408,7590,932,532,776,2896,104,104,755,1016,39611,568,46,46,835,2512,654,5178,3021,844,1503,177,120]
[null,"Male 30-34",2113,2753,640,719,387,2429,483,825,367,997,997,1196,961,508,831,220,9827,3889,146,1335,2107,2107,2160,5603,13940,3248,8561,1637,1250,319,1250,5379,7237,902,495,704,2963,71,71,752,1092,37146,483,24,24,764,2416,458,4774,2667,819,1615,146,121]
[null,"Male 35-39",1642,2265,623,614,377,2151,472,729,384,940,940,817,848,442,798,199,8615,2981,142,1335,2065,2065,2064,4380,11927,2731,6999,1557,1180,307,1180,4928,6078,886,466,603,2651,72,72,678,866,32341,472,33,33,700,2277,345,4174,2109,805,1413,142,122]
[null,"Male 40-44",1429,2014,585,580,360,2509,514,785,417,1122,1122,767,944,496,822,265,8563,2552,199,1446,2265,2265,2231,3379,11460,2417,6072,1530,1170,261,1170,5388,5784,883,403,743,2932,102,102,505,918,32014,514,29,29,822,2456,368,4117,1852,753,1527,199,123]
[null,"Male 45-49",1517,2140,623,666,498,3221,612,967,533,1351,1351,912,1179,566,936,284,9183,2341,235,1710,2595,2595,2677,3570,13124,2662,6727,1928,1430,319,1430,6397,5976,1025,522,992,3316,105,105,611,1061,36688,612,13,13,1050,3081,434,4784,2189,927,1674,235,124]
[null,"Male 50-54",1408,2065,657,667,512,3406,693,977,498,1582,1582,848,1234,726,1012,342,9438,2254,259,1662,2706,2706,2639,3451,13528,2570,7034,2125,1613,419,1613,6494,6039,1112,505,1006,3378,119,119,602,1120,37819,693,36,36,1166,3116,479,4823,2117,976,1661,259,125]
[null,"Male 55-59",1385,2032,647,563,542,3150,671,911,448,1530,1530,788,1136,622,950,282,8618,1937,257,1517,2522,2522,2428,3099,12461,2499,6391,2091,1549,381,1549,6070,5425,1049,467,914,3042,110,110,515,1055,35036,671,26,26,1100,3028,463,4388,1866,952,1489,257,126]
[null,"Male 60-64",1133,1677,544,560,505,2766,642,766,412,1384,1384,655,953,492,749,257,7336,1534,259,1249,2270,2270,2015,2467,10473,2051,5204,1879,1374,287,1374,5269,4424,921,374,847,2728,109,109,472,923,29980,642,21,21,966,2541,354,3957,1687,778,1220,259,127]
[null,"Male 65-69",1034,1670,636,598,547,2950,661,800,404,1537,1537,728,959,443,765,202,7355,1418,255,1398,2351,2351,2198,2048,9471,2054,4509,2003,1456,271,1456,4962,4343,881,384,883,2561,121,121,434,842,29727,661,23,23,1108,2401,396,4111,1760,703,1279,255,128]
[null,"Male 70-74",672,1103,431,406,433,2179,474,531,287,1161,1161,498,722,319,546,121,5419,1031,163,980,1692,1692,1511,1516,7393,1401,3466,1508,1075,216,1075,3927,3253,680,298,610,2005,98,98,291,704,22052,474,24,24,847,1922,244,2887,1195,590,996,163,129]
[null,"Male 75-79",558,884,326,303,321,1673,350,423,214,919,919,446,575,282,463,98,4030,750,145,725,1276,1276,1148,1131,5554,1091,2681,1066,745,152,745,2873,2404,472,207,468,1489,81,81,231,589,16695,350,8,8,630,1384,209,2256,980,429,719,145,130]
[null,"Male 80-84",451,719,268,227,211,1039,221,271,127,583,583,297,357,202,324,82,2740,546,89,525,878,878,796,800,3807,867,1869,697,486,107,486,1938,1641,294,148,292,1002,35,35,150,413,11333,221,6,6,390,936,144,1552,674,265,477,89,131]
[null,"Male 85-89",231,334,103,122,104,550,151,127,62,284,284,145,191,115,150,32,1369,272,49,253,430,430,380,396,1801,406,894,364,260,49,260,907,788,157,72,136,447,16,16,81,174,5568,151,1,1,223,460,65,778,348,128,209,49,132]
[null,"Male 90+",93,149,56,68,35,214,56,37,20,124,124,67,70,64,67,17,598,145,9,93,192,192,130,164,686,180,374,171,136,18,136,312,350,64,31,56,148,9,9,30,73,2286,56,0,0,88,164,17,357,165,38,74,9,133]
["SIMD Q3","Female 0-4",null,null,null,null,null,null,null,null,null,null,null,null,null,null,null,null,null,null,null,null,null,null,null,null,null,null,null,null,null,null,null,null,null,null,null,null,null,null,null,null,null,null,null,null,null,null,null,null,null,null,null,null,null,134]
[null,"Female 5-9",null,null,null,null,null,null,null,null,null,null,null,null,null,null,null,null,null,null,null,null,null,null,null,null,null,null,null,null,null,null,null,null,null,null,null,null,null,null,null,null,null,null,null,null,null,null,null,null,null,null,null,null,null,135]
[null,"Female 10-15",null,null,null,null,null,null,null,null,null,null,null,null,null,null,null,null,null,null,null,null,null,null,null,null,null,null,null,null,null,null,null,null,null,null,null,null,null,null,null,null,null,null,null,null,null,null,null,null,null,null,null,null,null,136]
[null,"Female 16-19",686,1739,1053,783,761,1343,778,521,175,1068,1068,476,417,164,454,231,5612,1436,359,598,1613,1613,1119,2366,6658,2309,3947,2204,1443,276,1443,2711,3221,478,570,407,1401,123,123,661,662,22864,778,149,149,519,1310,346,3533,1920,248,853,359,137]
[null,"Female 20-24",2047,3366,1319,892,679,1536,944,908,256,1258,1258,856,496,216,627,258,9979,4577,365,780,2249,2249,1688,5281,10715,4056,7340,2329,1650,319,1650,3375,6786,516,690,475,1711,169,169,894,872,34910,944,173,173,565,1664,652,4891,2642,394,1066,365,138]
[null,"Female 25-29",2001,3419,1418,811,728,1569,769,843,265,1309,1309,957,535,200,591,266,11165,5634,413,789,2483,2483,1632,4977,10596,4149,7016,2509,1781,307,1781,3580,7913,581,730,430,1886,184,184,928,883,36432,769,210,210,604,1694,578,5179,2696,383,1107,413,139]
[null,"Female 30-34",1580,3122,1542,1001,825,1684,948,690,274,1254,1254,616,555,161,607,281,10090,4317,453,918,2372,2372,1608,3952,9993,3968,6020,2744,1919,269,1919,3973,6770,615,846,465,2153,203,203,993,973,34795,948,188,188,664,1820,416,4982,2610,384,1231,453,140]
[null,"Female 35-39",986,2487,1501,1074,844,1712,901,700,237,1233,1233,481,545,195,619,295,8723,2948,547,934,2446,2446,1634,2996,9211,3196,5164,2899,2055,373,2055,4047,5376,619,709,499,2218,142,142,915,930,31957,901,190,190,668,1829,463,4916,2470,375,1190,547,141]
[null,"Female 40-44",869,2490,1621,1248,1048,1991,1201,773,293,1568,1568,422,658,213,683,311,8627,2347,574,1000,2434,2434,1773,2508,9074,3339,4878,3250,2202,415,2202,4196,4992,659,849,586,2292,193,193,1034,1027,33291,1201,198,198,747,1904,480,5138,2704,404,1303,574,142]
[null,"Female 45-49",895,2978,2083,1415,1294,2544,1550,940,393,2162,2162,536,868,310,942,357,10109,2094,709,1129,3028,3028,2069,2734,10876,3978,5847,4181,2887,489,2887,5029,5531,869,1000,744,2502,260,260,1369,1377,40488,1550,280,280,932,2527,547,6348,3320,580,1626,709,143]
[null,"Female 50-54",996,3074,2078,1588,1612,2825,1593,997,405,2340,2340,660,926,266,849,404,10273,2070,719,1196,3271,3271,2193,2861,10969,4168,5977,4739,3127,546,3127,4992,5409,875,1094,798,2428,284,284,1497,1329,42537,1593,282,282,1101,2564,592,7016,3745,571,1615,719,144]
[null,"Female 55-59",906,2768,1862,1542,1487,2500,1570,898,386,2173,2173,638,808,279,836,395,9353,1821,683,1070,2987,2987,1968,2555,10187,3724,5518,4507,3020,571,3020,4669,4796,764,956,764,2144,244,244,1372,1172,39153,1570,262,262,928,2525,512,6539,3552,546,1375,683,145]
[null,"Female 60-64",841,2642,1801,1362,1473,2298,1415,833,326,2131,2131,526,666,240,729,343,8015,1486,693,970,2581,2581,1803,1882,8296,3506,4371,4238,2765,397,2765,3925,4019,649,864,762,1815,221,221,1235,1017,34585,1415,261,261,870,2110,507,5704,3123,492,1155,693,146]
[null,"Female 65-69",794,2604,1810,1443,1556,2476,1515,823,359,2297,2297,548,770,211,739,327,8396,1422,707,1016,2823,2823,1839,1598,7763,3496,4058,4342,2786,395,2786,3705,4058,720,892,784,1794,227,227,1293,1042,35061,1515,234,234,922,1911,464,6107,3284,485,1177,707,147]
[null,"Female 70-74",599,1937,1338,1085,1160,1997,1143,657,279,1869,1869,415,608,162,589,261,6421,1066,575,729,2149,2149,1386,1242,6160,2692,3141,3394,2234,329,2234,3019,3129,545,755,653,1406,229,229,1119,795,27558,1143,216,216,736,1613,378,4768,2619,352,929,575,148]
[null,"Female 75-79",553,1598,1045,818,954,1479,921,537,217,1422,1422,400,433,119,501,257,5125,892,509,604,1689,1689,1141,1038,5134,2207,2637,2589,1635,296,1635,2497,2515,430,609,517,1087,185,185,851,639,22028,921,168,168,529,1410,320,3758,2069,288,692,509,149]
[null,"Female 80-84",501,1179,678,624,676,1081,680,386,148,1051,1051,397,318,78,390,250,3774,707,381,419,1223,1223,805,937,4117,1687,2178,1879,1203,216,1203,1939,1871,297,508,359,834,106,106,671,454,16697,680,124,124,404,1105,238,2915,1692,243,477,381,150]
[null,"Female 85-89",331,820,489,408,407,610,397,243,108,717,717,222,144,50,302,154,2406,491,245,220,815,815,463,565,2472,1088,1337,1219,812,175,812,1135,1194,155,268,227,441,78,78,458,259,10459,397,73,73,239,694,135,1903,1088,134,246,245,151]
[null,"Female 90+",190,459,269,274,271,363,232,142,45,413,413,132,97,47,172,82,1406,290,172,104,451,451,246,383,1563,629,981,666,395,153,395,582,723,109,170,149,199,67,67,288,243,6278,232,59,59,117,383,97,1145,694,73,152,172,152]
[null,"Male 0-4",null,null,null,null,null,null,null,null,null,null,null,null,null,null,null,null,null,null,null,null,null,null,null,null,null,null,null,null,null,null,null,null,null,null,null,null,null,null,null,null,null,null,null,null,null,null,null,null,null,null,null,null,null,153]
[null,"Male 5-9",null,null,null,null,null,null,null,null,null,null,null,null,null,null,null,null,null,null,null,null,null,null,null,null,null,null,null,null,null,null,null,null,null,null,null,null,null,null,null,null,null,null,null,null,null,null,null,null,null,null,null,null,null,154]
[null,"Male 10-15",null,null,null,null,null,null,null,null,null,null,null,null,null,null,null,null,null,null,null,null,null,null,null,null,null,null,null,null,null,null,null,null,null,null,null,null,null,null,null,null,null,null,null,null,null,null,null,null,null,null,null,null,null,155]
[null,"Male 16-19",619,1851,1232,925,815,1444,794,512,217,1208,1208,389,465,160,516,246,5571,1311,381,626,1656,1656,1138,2054,6634,2408,3768,2505,1690,260,1690,2866,3121,412,557,383,1487,150,150,807,785,23727,794,167,167,596,1379,295,3777,2121,263,882,381,156]
[null,"Male 20-24",2020,3535,1515,983,822,1804,938,931,293,1382,1382,762,629,221,635,326,9367,3675,447,830,2293,2293,1761,4734,10454,4210,6922,2598,1776,386,1776,3532,6136,599,675,528,1746,180,180,1070,864,35247,938,229,229,647,1786,638,5108,2815,391,1227,447,157]
[null,"Male 25-29",2507,3861,1354,874,741,1601,868,783,228,1315,1315,898,628,208,597,252,10586,5065,411,773,2284,2284,1556,4871,10361,4548,7046,2522,1781,364,1781,3315,7434,568,687,422,1654,203,203,863,916,35940,868,202,202,551,1661,555,4919,2635,435,1204,411,158]
[null,"Male 30-34",1901,3336,1435,977,702,1491,885,655,220,1233,1233,736,532,179,525,254,9969,4483,449,775,2265,2265,1430,4492,10217,4128,6576,2653,1951,323,1951,3641,6819,567,792,394,1927,175,175,963,950,34643,885,222,222,565,1714,435,4941,2676,378,1244,449,159]
[null,"Male 35-39",1378,2828,1450,967,788,1594,835,642,222,1144,1144,528,598,158,540,263,8852,3418,495,936,2232,2232,1578,3444,9199,3551,5375,2770,1982,347,1982,3824,5785,586,723,417,2112,162,162,942,831,32007,835,225,225,579,1712,420,4669,2437,332,1241,495,160]
[null,"Male 40-44",1063,2661,1598,1136,943,1780,1098,717,292,1367,1367,478,609,188,701,265,8689,2555,562,954,2385,2385,1671,2499,8483,3466,4552,2890,1947,349,1947,3931,5206,640,805,515,2101,166,166,923,847,31831,1098,220,220,656,1830,425,4922,2537,404,1310,562,161]
[null,"Male 45-49",1045,3055,2010,1368,1251,2296,1359,882,370,1886,1886,501,798,236,802,305,9492,2240,755,1160,2847,2847,2042,2602,9794,4032,5135,3799,2548,402,2548,4659,5286,743,977,674,2351,216,216,1207,1096,37651,1359,263,263,824,2308,512,5923,3076,494,1501,755,162]
[null,"Male 50-54",1068,3059,1991,1592,1399,2568,1561,946,380,2194,2194,642,905,242,819,388,9822,2201,720,1203,2967,2967,2149,2611,10234,4060,5533,4402,3003,479,3003,4701,5294,749,1001,756,2320,284,284,1419,1267,40386,1561,300,300,907,2381,566,6620,3653,546,1525,720,163]
[null,"Male 55-59",947,2791,1844,1476,1413,2249,1530,888,376,2106,2106,596,713,231,839,380,9193,1854,709,1022,2906,2906,1910,2317,9276,3753,5061,4380,2967,511,2967,4215,4757,692,962,722,1919,303,303,1324,1096,37545,1530,270,270,814,2296,512,6302,3396,526,1372,709,164]
[null,"Male 60-64",850,2574,1724,1256,1370,2167,1350,778,308,2038,2038,500,680,204,739,296,7823,1524,683,847,2431,2431,1625,1935,7810,3410,4163,4178,2808,383,2808,3647,4042,658,836,641,1637,242,242,1249,882,33247,1350,266,266,846,2010,470,5436,3005,463,1121,683,165]
[null,"Male 65-69",802,2600,1798,1465,1569,2320,1462,797,326,2190,2190,503,709,222,691,261,7857,1374,743,911,2594,2594,1708,1535,7064,3469,3692,4333,2764,358,2764,3372,3801,662,869,763,1649,234,234,1208,918,33371,1462,277,277,848,1723,471,5770,3176,398,1074,743,166]
[null,"Male 70-74",496,1770,1274,957,1133,1761,1079,571,249,1755,1755,354,545,123,526,217,5596,815,536,687,1900,1900,1258,1089,5184,2408,2713,3255,2122,301,2122,2471,2617,470,638,574,1160,195,195,970,679,24436,1079,207,207,642,1311,322,4181,2281,304,806,536,167]
[null,"Male 75-79",449,1329,880,715,851,1302,799,400,165,1317,1317,308,407,68,349,172,4159,651,413,488,1438,1438,888,776,3820,1893,1896,2293,1442,214,1442,1924,1922,344,564,429,846,140,140,742,479,18146,799,156,156,466,1078,235,3203,1765,187,578,413,168]
[null,"Male 80-84",317,916,599,470,508,803,522,283,105,892,892,210,259,69,274,129,2829,545,245,290,910,910,573,535,2594,1232,1373,1521,1013,141,1013,1221,1397,223,316,274,511,105,105,529,335,12096,522,93,93,270,710,178,2119,1209,164,355,245,169]
[null,"Male 85-89",158,417,259,267,245,374,259,124,56,413,413,144,106,20,140,71,1413,248,149,125,467,467,249,237,1267,607,694,740,495,89,495,573,687,121,190,117,244,53,53,286,208,6019,259,57,57,151,329,68,1164,697,69,178,149,170]
[null,"Male 90+",63,186,123,117,101,149,93,56,27,200,200,52,35,12,59,35,573,105,60,64,197,197,120,120,600,260,362,288,187,38,187,238,283,38,74,59,90,21,21,133,133,2593,93,20,20,55,148,29,499,302,24,81,60,171]
["SIMD Q4","Female 0-4",null,null,null,null,null,null,null,null,null,null,null,null,null,null,null,null,null,null,null,null,null,null,null,null,null,null,null,null,null,null,null,null,null,null,null,null,null,null,null,null,null,null,null,null,null,null,null,null,null,null,null,null,null,172]
[null,"Female 5-9",null,null,null,null,null,null,null,null,null,null,null,null,null,null,null,null,null,null,null,null,null,null,null,null,null,null,null,null,null,null,null,null,null,null,null,null,null,null,null,null,null,null,null,null,null,null,null,null,null,null,null,null,null,173]
[null,"Female 10-15",null,null,null,null,null,null,null,null,null,null,null,null,null,null,null,null,null,null,null,null,null,null,null,null,null,null,null,null,null,null,null,null,null,null,null,null,null,null,null,null,null,null,null,null,null,null,null,null,null,null,null,null,null,174]
[null,"Female 16-19",1082,2976,1894,569,433,1093,875,880,179,481,481,911,337,362,874,347,5276,1328,29,605,1236,1236,1485,1386,5855,3751,3282,1946,1513,325,1513,2573,3165,287,775,461,1132,197,197,1452,647,23408,875,363,363,295,1441,701,4168,2932,215,676,29,175]
[null,"Female 20-24",2572,4756,2184,634,461,1319,840,1254,191,624,624,1990,445,550,1110,357,8161,3456,50,805,1598,1598,2059,4937,10228,5560,7331,2129,1668,397,1668,2897,5723,332,804,535,1272,233,233,1483,814,34833,840,363,363,339,1625,1063,5705,4107,276,825,50,176]
[null,"Female 25-29",2096,4458,2362,631,406,1203,792,987,175,607,607,998,412,436,777,382,9342,4806,41,776,1580,1580,1763,4096,9115,5351,6268,2277,1871,319,1871,2847,6970,385,893,498,1234,257,257,1387,750,33433,792,461,461,293,1613,812,4596,3016,285,1002,41,177]
[null,"Female 30-34",1659,4533,2874,707,426,1307,920,894,235,624,624,781,461,467,863,341,9182,4054,61,882,1666,1666,1776,3266,8788,5547,5502,2667,2241,285,2241,3286,6596,481,1014,469,1365,290,290,1671,859,33838,920,437,437,377,1921,659,4825,3159,284,1198,61,178]
[null,"Female 35-39",1289,4279,2990,763,521,1435,946,980,244,605,605,660,543,502,958,404,8414,3028,46,941,1788,1788,1921,2401,8648,5267,4827,2670,2149,403,2149,3821,5680,492,988,512,1524,315,315,1580,853,32800,946,476,476,380,2297,736,4791,3003,264,1202,46,179]
[null,"Female 40-44",1032,4278,3246,824,642,1765,1248,1195,324,749,749,647,559,597,1156,463,8792,2583,52,1157,2062,2062,2352,2023,9050,5535,4898,3193,2551,466,2551,4152,5482,472,1257,661,1717,338,338,1999,1017,35805,1248,509,509,545,2435,871,5532,3470,332,1271,52,180]
[null,"Female 45-49",1060,4916,3856,1089,851,2127,1657,1405,401,1025,1025,749,671,762,1391,564,9998,2440,52,1304,2558,2558,2709,2256,10779,6352,5996,3821,2970,619,2970,4783,5783,552,1436,848,2076,395,395,2547,1313,42189,1657,546,546,608,2707,1004,6943,4385,482,1400,52,181]
[null,"Female 50-54",1120,5059,3939,1238,908,2293,1803,1481,361,1135,1135,834,692,853,1356,566,10326,2652,66,1218,2674,2674,2699,2381,11241,6550,6431,4130,3222,690,3222,4810,5849,539,1491,986,2063,411,411,2584,1401,44075,1803,568,568,615,2747,1120,7330,4656,540,1302,66,182]
[null,"Female 55-59",1037,4423,3386,1097,848,2195,1691,1228,322,1139,1139,841,660,914,1271,522,9310,2379,58,1067,2469,2469,2295,2093,10126,5775,5988,3761,2913,591,2913,4138,5150,462,1352,889,1694,399,399,2318,1309,39814,1691,500,500,646,2444,906,6725,4256,559,1038,58,183]
[null,"Female 60-64",959,3995,3036,1106,803,2041,1524,1023,264,1097,1097,601,589,730,1062,466,8119,1996,38,888,2250,2250,1911,1635,8356,5199,4848,3583,2780,464,2780,3508,4345,422,1204,891,1445,369,369,2190,1135,35061,1524,451,451,561,2063,759,6147,3897,418,865,38,184]
[null,"Female 65-69",988,3965,2977,1187,921,2080,1655,1061,293,1044,1044,664,582,714,1063,425,8269,1919,59,987,2316,2316,2048,1431,7576,5290,4498,3646,2725,434,2725,3078,4298,459,1325,914,1206,382,382,2219,1057,34888,1655,424,424,584,1872,768,6386,4070,437,857,59,185]
[null,"Female 70-74",696,2869,2173,943,729,1752,1324,844,227,900,900,466,431,507,761,332,6267,1445,46,739,1793,1793,1583,1025,5385,3866,3323,2793,2064,363,2064,2062,3150,354,997,745,790,289,289,1688,760,26320,1324,342,342,576,1272,617,4890,3097,336,590,46,186]
[null,"Female 75-79",592,2298,1706,734,561,1235,1068,619,149,709,709,407,305,480,570,302,4862,1182,38,582,1309,1309,1201,920,4486,3022,2785,2157,1596,242,1596,1701,2485,263,724,512,677,227,227,1389,570,20708,1068,241,241,418,1024,470,3839,2530,271,470,38,187]
[null,"Female 80-84",457,1728,1271,591,383,941,729,486,110,561,561,405,191,337,443,257,3631,1013,19,423,976,976,909,691,3303,2317,2127,1636,1253,226,1253,1176,1926,178,589,381,429,134,134,1015,439,15634,729,172,172,369,747,376,2987,2011,177,292,19,188]
[null,"Female 85-89",280,1087,807,349,250,552,474,299,69,328,328,324,116,258,253,169,2389,835,22,254,592,592,553,445,2100,1464,1421,1002,752,144,752,679,1323,96,377,226,178,98,98,696,294,9988,474,111,111,210,501,230,1961,1369,111,139,22,189]
[null,"Female 90+",129,593,464,283,160,342,279,217,45,171,171,187,71,129,129,168,1420,493,11,173,407,407,390,274,1185,790,862,652,492,75,492,323,734,71,197,150,79,48,48,454,161,5998,279,65,65,121,244,172,1331,924,55,41,11,190]
[null,"Male 0-4",null,null,null,null,null,null,null,null,null,null,null,null,null,null,null,null,null,null,null,null,null,null,null,null,null,null,null,null,null,null,null,null,null,null,null,null,null,null,null,null,null,null,null,null,null,null,null,null,null,null,null,null,null,191]
[null,"Male 5-9",null,null,null,null,null,null,null,null,null,null,null,null,null,null,null,null,null,null,null,null,null,null,null,null,null,null,null,null,null,null,null,null,null,null,null,null,null,null,null,null,null,null,null,null,null,null,null,null,null,null,null,null,null,192]
[null,"Male 10-15",null,null,null,null,null,null,null,null,null,null,null,null,null,null,null,null,null,null,null,null,null,null,null,null,null,null,null,null,null,null,null,null,null,null,null,null,null,null,null,null,null,null,null,null,null,null,null,null,null,null,null,null,null,193]
[null,"Male 16-19",864,3036,2172,703,506,1224,850,887,230,530,530,764,360,450,741,351,5165,1255,35,817,1393,1393,1704,1295,6138,3869,3424,2351,1845,396,1845,2714,2922,275,833,516,1150,247,247,1628,709,24732,850,374,374,348,1564,657,4488,3095,223,651,35,194]
[null,"Male 20-24",2141,4587,2446,841,566,1330,880,1289,301,642,642,1669,402,597,931,359,7703,2963,47,956,1822,1822,2245,4227,10081,5633,6841,2612,2046,415,2046,3240,5001,299,1046,586,1511,259,259,1717,915,35228,880,449,449,342,1729,988,6049,4227,328,808,47,195]
[null,"Male 25-29",2425,4870,2445,698,460,1183,705,923,250,607,607,1097,396,471,656,379,8535,4394,25,783,1592,1592,1706,4060,9419,5814,6535,2476,2016,329,2016,2884,6238,329,944,447,1294,253,253,1446,969,33718,705,459,459,340,1590,673,4833,3241,327,859,25,196]
[null,"Male 30-34",1793,4435,2642,681,400,1120,711,862,311,641,641,696,421,426,691,297,8655,4162,23,811,1593,1593,1673,3364,8697,5396,5455,2509,2109,350,2109,3242,6351,386,961,379,1407,253,253,1593,763,32346,711,409,409,320,1835,551,4563,2970,255,1112,23,197]
[null,"Male 35-39",1410,4392,2982,650,500,1313,843,1016,315,547,547,567,468,424,839,355,8327,3277,50,937,1744,1744,1953,2491,8318,5349,4664,2650,2150,338,2150,3654,5740,473,957,472,1527,241,241,1602,833,32021,843,454,454,373,2127,701,4563,2819,223,1151,50,198]
[null,"Male 40-44",1182,4472,3290,768,626,1567,1096,1129,340,713,713,578,556,506,1115,431,8523,2736,55,1029,1858,1858,2158,2165,8703,5637,4733,2996,2370,409,2370,3970,5569,453,1165,599,1714,308,308,1791,917,34348,1096,551,551,412,2256,789,4995,3137,305,1265,55,199]
[null,"Male 45-49",1108,4649,3541,985,767,1992,1507,1411,427,944,944,692,628,668,1232,447,9571,2552,72,1240,2496,2496,2651,2237,10048,6126,5484,3583,2816,566,2816,4564,5568,471,1477,782,1991,406,406,2238,1135,39846,1507,538,538,582,2573,984,6411,3915,431,1313,72,200]
[null,"Male 50-54",1144,4977,3833,1168,865,2145,1729,1457,400,1119,1119,765,662,716,1335,559,9927,2528,56,1183,2559,2559,2640,2180,10501,6471,5827,3900,3035,645,3035,4674,5639,485,1494,887,2030,442,442,2532,1256,42258,1729,592,592,596,2644,1057,7024,4465,471,1291,56,201]
[null,"Male 55-59",1038,4504,3466,1025,803,2055,1594,1286,335,1032,1032,828,629,765,1249,420,9120,2326,52,1095,2389,2389,2381,1892,9235,5816,5354,3697,2894,566,2894,3881,5137,464,1312,830,1589,390,390,2322,1225,38483,1594,530,530,596,2292,951,6564,4175,486,1098,52,202]
[null,"Male 60-64",999,4067,3068,1028,788,1873,1526,1018,257,1046,1046,623,584,688,957,435,7736,2022,45,849,2043,2043,1867,1603,7844,5335,4598,3435,2647,474,2647,3246,4167,392,1268,767,1323,361,361,2142,1002,33820,1526,485,485,522,1923,761,5836,3793,396,796,45,203]
[null,"Male 65-69",920,4039,3119,1056,822,1882,1618,974,265,1053,1053,585,538,687,936,388,7692,1704,52,891,2202,2202,1865,1386,7242,5241,4231,3458,2636,403,2636,3011,3872,430,1202,837,1159,352,352,2162,944,33114,1618,474,474,507,1852,709,6005,3803,423,802,52,204]
[null,"Male 70-74",663,2714,2051,866,675,1555,1242,803,207,826,826,410,439,479,744,277,5750,1199,42,643,1652,1652,1446,896,4974,3647,2962,2680,2005,307,2005,2012,2856,353,933,678,793,277,277,1580,720,24360,1242,307,307,438,1219,596,4508,2856,283,560,42,205]
[null,"Male 75-79",448,1947,1499,681,453,1024,911,527,128,609,609,317,253,373,491,207,4096,953,22,475,1142,1142,1002,699,3473,2624,2183,1770,1317,221,1317,1290,2043,207,677,461,506,224,224,1216,494,17285,911,227,227,310,784,399,3356,2214,189,392,22,206]
[null,"Male 80-84",305,1272,967,409,307,702,594,362,92,456,456,278,156,270,327,157,2720,696,21,341,720,720,703,501,2361,1719,1523,1230,923,133,923,838,1406,158,447,309,302,126,126,855,307,11713,594,133,133,237,536,270,2262,1542,155,225,21,207]
[null,"Male 85-89",141,684,543,250,140,324,344,200,42,229,229,152,63,144,197,76,1510,429,12,171,360,360,371,256,1204,898,792,639,499,77,499,412,806,70,214,153,129,68,68,466,180,6184,344,61,61,108,283,158,1228,868,59,110,12,208]
[null,"Male 90+",41,270,229,95,70,140,123,76,16,86,86,83,33,62,62,49,596,211,2,70,159,159,146,104,498,368,345,278,208,29,208,153,314,18,98,50,54,33,33,194,76,2544,123,25,25,57,99,60,531,372,25,23,2,209]
["SIMD Q5 (least deprived)","Female 0-4",null,null,null,null,null,null,null,null,null,null,null,null,null,null,null,null,null,null,null,null,null,null,null,null,null,null,null,null,null,null,null,null,null,null,null,null,null,null,null,null,null,null,null,null,null,null,null,null,null,null,null,null,null,210]
[null,"Female 5-9",null,null,null,null,null,null,null,null,null,null,null,null,null,null,null,null,null,null,null,null,null,null,null,null,null,null,null,null,null,null,null,null,null,null,null,null,null,null,null,null,null,null,null,null,null,null,null,null,null,null,null,null,null,211]
[null,"Female 10-15",null,null,null,null,null,null,null,null,null,null,null,null,null,null,null,null,null,null,null,null,null,null,null,null,null,null,null,null,null,null,null,null,null,null,null,null,null,null,null,null,null,null,null,null,null,null,null,null,null,null,null,null,null,212]
[null,"Female 16-19",2038,3913,1875,459,134,1062,210,1237,163,259,259,632,318,1321,357,1309,8569,4607,0,677,2298,2298,1914,1490,6939,4329,5165,575,441,195,441,1774,6061,283,416,256,787,26,26,504,748,25268,210,0,0,488,987,1074,3893,1595,102,814,0,213]
[null,"Female 20-24",3592,5647,2055,424,184,1035,203,1289,146,308,308,776,318,1390,358,1374,16115,10278,0,801,4167,4167,2090,3864,9888,6082,7874,676,492,245,492,2014,11745,349,435,249,859,44,44,575,883,38013,203,0,0,468,1155,1143,5942,1775,118,760,0,214]
[null,"Female 25-29",4021,6104,2083,402,146,869,158,797,106,354,354,639,341,1057,364,1126,12373,8825,0,770,1932,1932,1567,3427,8261,6570,6581,750,604,171,604,1680,10283,349,466,182,735,54,54,532,732,32371,158,0,0,346,945,691,3505,1573,68,745,0,215]
[null,"Female 30-34",3440,6402,2962,492,112,1021,279,679,141,354,354,619,394,1128,422,1114,11249,7206,0,1035,2038,2038,1714,2563,7796,6912,5816,770,658,179,658,1980,8932,426,510,263,864,39,39,667,750,31633,279,0,0,364,1116,538,3816,1778,82,878,0,216]
[null,"Female 35-39",3070,6292,3222,575,168,1233,311,828,194,348,348,572,404,1618,550,1719,11648,6969,0,1079,2293,2293,1907,2021,9082,6699,6649,866,698,232,698,2433,9044,477,407,316,1036,59,59,687,934,33676,311,0,0,513,1397,634,4127,1834,125,1048,0,217]
[null,"Female 40-44",2829,6257,3428,709,194,1572,481,1053,250,376,376,672,528,1879,639,1941,12203,6642,0,1314,2634,2634,2367,1882,9910,6794,7193,1000,806,303,806,2717,9088,494,537,405,1115,43,43,862,1065,36508,481,0,0,639,1602,803,4877,2243,123,1313,0,218]
[null,"Female 45-49",3012,6692,3680,815,264,1996,493,1369,295,502,502,854,605,2263,781,2276,13387,7082,0,1415,2891,2891,2784,2125,11893,7308,8616,1146,882,394,882,3277,10003,562,616,537,1435,75,75,1025,1377,41785,493,0,0,854,1842,1074,5585,2694,181,1578,0,219]
[null,"Female 50-54",3209,6762,3553,836,276,2055,444,1343,314,604,604,909,578,2470,734,2279,13203,7211,0,1302,2803,2803,2645,2159,12434,7340,9001,1205,929,399,929,3433,9956,530,578,519,1412,67,67,1130,1489,42428,444,0,0,958,2021,1029,5678,2875,205,1481,0,220]
[null,"Female 55-59",2966,5963,2997,778,298,2136,392,1171,266,535,535,901,560,2227,618,2036,11974,6741,0,1070,2593,2593,2241,1943,11077,6463,8061,1107,809,348,809,3016,8989,498,500,534,1233,53,53,1049,1337,38314,392,0,0,1042,1783,905,5321,2728,170,1132,0,221]
[null,"Female 60-64",2338,5110,2772,726,219,1993,363,1106,309,515,515,672,502,1995,540,1767,10432,5738,0,892,2404,2404,1998,1707,9653,5615,7121,997,778,400,778,2532,7665,430,505,472,968,56,56,987,1118,33644,363,0,0,1019,1564,797,4789,2385,134,957,0,222]
[null,"Female 65-69",2257,4775,2518,888,253,2156,400,1180,304,487,487,769,510,2027,588,1704,10838,5936,0,865,2683,2683,2045,1418,9049,5295,6755,1022,769,405,769,2294,7755,415,520,528,868,51,51,1166,1106,33766,400,0,0,1118,1426,876,5506,2823,95,816,0,223]
[null,"Female 70-74",1737,3551,1814,639,208,1661,303,909,208,469,469,618,350,1696,496,1467,8114,4419,0,612,2020,2020,1521,849,6886,4003,5212,821,613,322,613,1674,5791,298,452,411,577,45,45,945,831,25722,303,0,0,900,1097,701,4222,2202,47,578,0,224]
[null,"Female 75-79",1503,2860,1357,497,146,1248,265,748,164,359,359,503,242,1532,389,1122,6433,3743,0,453,1429,1429,1201,742,5457,3182,4221,606,460,255,460,1236,4739,229,322,298,432,23,23,781,537,20290,265,0,0,708,804,584,3210,1781,33,378,0,225]
[null,"Female 80-84",1173,2191,1018,392,122,932,159,514,103,290,290,404,194,1130,277,933,5039,3157,0,298,1053,1053,812,631,4169,2456,3283,517,395,186,395,886,3827,154,265,234,275,27,27,602,381,15640,159,0,0,504,611,411,2451,1398,22,239,0,226]
[null,"Female 85-89",860,1506,646,253,70,553,84,288,45,156,156,263,118,659,182,648,3357,2204,0,161,652,652,449,423,2555,1666,2092,310,240,132,240,463,2621,63,160,133,123,14,14,388,220,9964,84,0,0,302,340,243,1556,904,10,172,0,227]
[null,"Female 90+",524,939,415,129,44,360,69,162,18,91,91,117,53,390,114,356,2136,1368,0,123,432,432,285,276,1452,1042,1218,174,130,90,130,234,1635,46,103,73,66,7,7,264,99,6057,69,0,0,234,168,144,942,510,7,107,0,228]
[null,"Male 0-4",null,null,null,null,null,null,null,null,null,null,null,null,null,null,null,null,null,null,null,null,null,null,null,null,null,null,null,null,null,null,null,null,null,null,null,null,null,null,null,null,null,null,null,null,null,null,null,null,null,null,null,null,null,229]
[null,"Male 5-9",null,null,null,null,null,null,null,null,null,null,null,null,null,null,null,null,null,null,null,null,null,null,null,null,null,null,null,null,null,null,null,null,null,null,null,null,null,null,null,null,null,null,null,null,null,null,null,null,null,null,null,null,null,230]
[null,"Male 10-15",null,null,null,null,null,null,null,null,null,null,null,null,null,null,null,null,null,null,null,null,null,null,null,null,null,null,null,null,null,null,null,null,null,null,null,null,null,null,null,null,null,null,null,null,null,null,null,null,null,null,null,null,null,231]
[null,"Male 16-19",1833,4038,2205,503,336,1155,292,1196,157,285,285,636,336,1458,356,1497,8997,4948,0,708,2180,2180,1904,1316,7345,4642,5415,834,498,205,498,1930,6525,350,604,313,823,30,30,576,831,26907,292,0,0,506,1107,1039,3895,1715,108,871,0,232]
[null,"Male 20-24",3051,5432,2381,525,890,1262,240,1355,164,313,313,807,381,1732,452,1641,14630,9034,0,832,3576,3576,2187,3142,10042,6219,7802,1372,482,187,482,2240,10814,393,787,330,925,47,47,665,963,38069,240,0,0,551,1315,1191,5573,1997,137,935,0,233]
[null,"Male 25-29",4459,6747,2288,411,696,881,166,708,115,261,261,750,306,1401,343,1150,12554,8854,0,817,1992,1992,1525,3333,8671,7461,6928,1187,491,198,491,1743,10396,376,714,212,779,45,45,534,754,34280,166,0,0,363,964,593,3687,1695,92,823,0,234]
[null,"Male 30-34",3859,6532,2673,463,328,796,185,585,118,302,302,517,328,1183,373,937,10672,7034,0,972,1945,1945,1557,2602,7297,7089,5667,862,534,189,534,1630,8542,382,557,197,690,41,41,568,672,30164,185,0,0,271,940,467,3493,1548,84,753,0,235]
[null,"Male 35-39",3262,6354,3092,503,296,1088,270,723,150,323,323,563,384,1406,450,1414,10842,6629,0,1065,2116,2116,1788,2207,8261,6825,6103,1003,707,187,707,2158,8456,431,471,281,916,61,61,658,802,31915,270,0,0,423,1242,573,3840,1724,87,946,0,236]
[null,"Male 40-44",2959,6397,3438,654,343,1420,375,1012,212,351,351,566,482,1735,611,1726,11821,6553,0,1215,2580,2580,2227,1994,9301,6974,6734,1037,694,245,694,2567,8866,474,577,352,1075,46,46,716,940,35113,375,0,0,586,1492,800,4516,1936,94,1228,0,237]
[null,"Male 45-49",2985,6569,3584,722,290,1753,501,1297,301,474,474,783,581,2049,677,1989,12932,6865,0,1318,2835,2835,2615,2065,10760,7236,7764,1145,855,289,855,2996,9596,580,667,473,1245,68,68,871,1207,39359,501,0,0,699,1751,996,5211,2376,165,1474,0,238]
[null,"Male 50-54",3049,6537,3488,851,318,1910,414,1250,289,552,552,773,531,2287,781,1943,12608,6804,0,1280,2656,2656,2530,2031,11368,7129,8236,1170,852,428,852,3132,9538,535,592,525,1345,63,63,1090,1371,40044,414,0,0,854,1787,961,5370,2714,176,1418,0,239]
[null,"Male 55-59",2865,5865,3000,736,275,1940,349,1065,241,495,495,815,541,2085,594,1958,11446,6275,0,1060,2549,2549,2125,1782,10493,6358,7647,1047,772,382,772,2846,8548,468,493,464,1166,73,73,894,1299,36422,349,0,0,935,1680,824,4994,2445,141,1211,0,240]
[null,"Male 60-64",2539,5286,2747,683,227,1821,368,1012,269,471,471,663,469,1843,502,1657,9755,5398,0,863,2194,2194,1875,1586,9088,5754,6602,940,713,317,713,2486,7193,394,468,474,967,54,54,897,1060,32001,368,0,0,878,1519,743,4437,2243,139,899,0,241]
[null,"Male 65-69",2245,4804,2559,815,242,2024,403,1120,305,512,512,657,492,1842,508,1491,9962,5381,0,838,2421,2421,1958,1408,8382,5273,6226,989,747,351,747,2156,7138,426,469,505,842,63,63,1053,1037,31688,403,0,0,1027,1314,815,4946,2525,97,823,0,242]
[null,"Male 70-74",1467,3173,1706,604,202,1531,260,762,197,365,365,513,320,1463,425,1142,7147,3753,0,550,1899,1899,1312,842,6066,3547,4552,731,529,297,529,1514,4988,284,374,386,505,41,41,806,759,22663,260,0,0,825,1009,565,3822,1923,49,526,0,243]
[null,"Male 75-79",1112,2328,1216,397,126,1065,177,612,121,311,311,422,216,1223,326,941,5059,2802,0,370,1204,1204,982,584,4497,2617,3464,487,361,200,361,1033,3678,182,289,251,360,22,22,616,484,16475,177,0,0,598,673,491,2639,1435,32,368,0,244]
[null,"Male 80-84",823,1612,789,330,76,764,130,426,81,203,203,327,135,911,224,686,3734,2207,0,271,872,872,697,388,3122,1806,2438,345,269,141,269,684,2732,113,194,190,196,16,16,479,291,11823,130,0,0,439,488,345,2008,1136,21,188,0,245]
[null,"Male 85-89",454,876,422,144,52,393,80,177,34,105,105,187,75,447,101,358,1976,1228,0,110,426,426,287,190,1512,995,1210,193,141,67,141,302,1470,56,119,91,87,10,10,265,142,6067,80,0,0,227,215,143,1022,596,6,85,0,246]
[null,"Male 90+",222,413,191,52,14,191,23,72,9,44,44,61,30,190,63,149,932,594,0,50,182,182,122,100,634,460,521,70,56,42,56,113,727,24,47,42,40,4,4,108,38,2678,23,0,0,119,73,63,403,221,2,46,0,247]

{"sheet":"Population at Risk","index":13,"n_rows":257,"n_cols":56,"rows_kept":257,"cut":false,"hidden":true,"merged":[]}
["Population at Risk "]
["(=prevalence*population in 2016)"]
["SIMD","group","Aberdeen City Local Authority","Aberdeen City Region Deal","Aberdeenshire Local Authority","Angus Local Authority","Argyll & Bute Local Authority","Ayrshire & Arran Health Board","Borders Health Board","Clackmannanshire & Stirling IJB","Clackmannanshire Local Authority","Dumfries & Galloway Health Board","Dumfries & Galloway Local Authority","Dundee City Local Authority","East Ayrshire Local Authority","East Dunbartonshire Local Authority","East Lothian Local Authority","East Renfrewshire Local Authority","Edinburgh & SE Scotland City Region Deal","Edinburgh, City of Local Authority","Eilean Siar Local Authority","Falkirk Local Authority","Fife Health Board","Fife Local Authority","Forth Valley Health Board","Glasgow City Local Authority","Glasgow City Region Deal","Grampian Health Board","Greater Glasgow & Clyde Health Board","Highland Health Board","Highland Local Authority","Inverclyde Local Authority","Inverness & Highland City Region Deal","Lanarkshire Health Board","Lothian Health Board","Midlothian Local Authority","Moray Local Authority","North Ayrshire Local Authority","North Lanarkshire Local Authority","Orkney Health Board","Orkney Islands Local Authority","Perth & Kinross Local Authority","Renfrewshire Local Authority","Scotland","Scottish Borders Local Authority","Shetland Health Board","Shetland Islands Local Authority","South Ayrshire Local Authority","South Lanarkshire Local Authority","Stirling Local Authority","Tay Cities Region Deal ","Tayside Health Board","West Dunbartonshire Local Authority","West Lothian Local Authority","Western Isles Health Board",1]
[null,null,"popS12000033","Aber_deal","popS12000034","popS12000041","popS12000035","popS08000015","popS08000016","ClacksStirIJB","popS12000005","popS08000017","popS12000006","popS12000042","popS12000008","popS12000045","popS12000010","popS12000011","EdinSE_deal","popS12000036","popS12000013","popS12000014","popS08000018","popS12000015","popS08000019","popS12000046","GClyde_deal","popS08000020","popS08000021","popS08000022","popS12000017","popS12000018","Inver_deal","popS08000023","popS08000024","popS12000019","popS12000020","popS12000021","popS12000044","popS08000025","popS12000023","popS12000024","popS12000038","popS00000001","popS12000026","popS08000026","popS12000027","popS12000028","popS12000029","popS12000030","Tay_deal","popS08000027","popS12000039","popS12000040","popS08000028",2]
["All quintiles","16+ Males and Females",{"$f":"SUM(C7:C11)","v":32394.620186872122},58624.141491570743,26534.180843660703,13140.962817818103,8933.027520466947,79008.868289304315,15424.159212198389,19411.879393226605,10824.544972932868,21226.181506955698,21226.181506955698,28623.28002185878,28410.123674931081,10965.470446382511,13724.104464107471,8368.6275052684141,187854.10390330659,66318.482639316979,2737.2424883539152,21709.302430996875,56341.824633622098,56341.824633622098,41126.439556295809,126362.22213464633,303339.71794731752,69706.675823737169,201788.66271397105,37005.072788164209,28017.133059724609,15748.91771824615,28017.133059724609,101666.51935829443,{"$f":"SUM(AI7:AI11)","v":116415.84419575104},11425.138898940892,11111.799798496468,32796.052473485637,55325.67294234845,2175.7300074070699,2175.7300074070699,15885.223201912353,24997.066046230651,789721.35672652686,15424.159212198389,1863.8513634786905,1863.8513634786905,18244.108242761242,46389.45037980577,8973.6193521227178,113059.44662993975,56580.267279161526,17699.417145818705,24925.811808051141,2737.2424883539152,3]
["Q1 and Q2","16+ Males and Females",{"$f":"SUM(C7:C8)","v":13486.656953256861},16609.380681037124,3895.0297355885568,4477.7803907498392,3026.6927827349309,54366.36663687518,4676.5051562994813,9735.1157504012845,6954.9364717006056,9819.302368593786,9819.302368593786,20350.216626169749,20183.0104083923,3501.3808526102925,5566.2999836238296,2147.0112586371488,88877.420323113474,27991.610638390823,827.10082387685702,12132.399822298521,30422.828064215224,30422.828064215224,21865.449221903385,97804.809862179056,206444.67373377018,19127.148018171945,139184.83313963457,13183.223463583914,10163.771977538347,11140.399768594929,10163.771977538347,67437.545433604377,{"$f":"SUM(AI7:AI8)","v":53984.00396162516},6534.0561751591285,2524.143015445944,24418.18545621492,39761.633691861673,410.79953436313735,410.79953436313735,4254.3545142343864,15528.437880392641,429217.13468908105,4676.5051562994813,88.816117680980994,88.816117680980994,10592.556654893302,27769.412618877239,3701.0325498422599,57313.184774503585,26966.732335498091,13992.380006358218,13819.668329113363,827.10082387685702,4]
["SIMD Q1 (most deprived)","16+ Males and Females",{"$f":"SUM(C12,C17)","v":5073.6128796726844},5890.5191779690122,1153.1679312984393,1716.6041148586178,1190.5607460038693,35167.399361028591,1563.9674437823478,5506.2275471275352,3969.309469135691,2974.5797723509572,2974.5797723509572,14849.417761381716,12779.246670858211,1054.232979964449,876.65416746542837,1100.0785838917386,44634.31621366465,16070.989924453123,0,5172.0949834930534,17893.817259658412,17893.817259658412,10687.564072774465,77369.185478289961,142921.77297197271,6082.0853779376757,104166.80331364568,4846.576162223404,3642.9531359445427,9180.0222786464765,3642.9531359445427,39292.81464944889,{"$f":"SUM(AI12,AI17)","v":25432.080029551071},1880.5670112278406,187.66748186706013,18192.987760715056,24706.426173564767,0,0,1772.7080918093541,10898.224357496998,254449.94209203299,1563.9674437823478,0,0,5173.9917104312481,14679.848888685679,2074.7497717172264,34347.015779105597,16454.498695186721,9185.356528414206,6466.7706073890331,0,5]
["SIMD Q2",null,{"$f":"SUM(C13,C18)","v":8413.0440735841767},10718.861503068114,2741.8618042901176,2761.1762758912214,1836.1320367310614,19198.967275846589,3112.5377125171335,4228.8882032737492,2985.6270025649146,6844.7225962428283,6844.7225962428283,5500.7988647880356,7403.7637375340892,2447.1478726458436,4689.6458161584014,1046.9326747454102,44243.104109448832,11920.6207139377,827.10082387685702,6960.3048388054685,12529.010804556812,12529.010804556812,11177.885149128921,20435.624383889091,63522.900761797471,13045.062640234271,35018.02982598891,8336.64730136051,6520.8188415938039,1960.377489948452,6520.8188415938039,28144.73078415549,{"$f":"SUM(AI13,AI18)","v":28551.923932074093},4653.4891639312882,2336.4755335788836,6225.1976954998645,15055.207518296902,410.79953436313735,410.79953436313735,2481.6464224250321,4630.213522895644,174767.19259704807,3112.5377125171335,88.816117680980994,88.816117680980994,5418.564944462054,13089.563730191559,1626.2827781250335,22966.168995397988,10512.23364031137,4807.0234779440125,7352.89772172433,827.10082387685702,6]
["SIMD Q3",null,{"$f":"SUM(C14,C19)","v":4527.5368307902754},10211.596201199449,5561.9012569935712,4095.6138337908278,3432.0796459347503,10207.227297219331,4945.5945816758431,2864.5999977361544,1590.2001006235903,6866.467848445056,6866.467848445056,2556.1355099335165,3574.4054685930359,704.56830148252891,2749.6197376898094,913.35044119814779,33386.584570867308,9073.1474168003788,1783.286380597066,3403.1893111309205,10105.660196340057,10105.660196340057,6264.7702578652188,12036.692765497595,35365.856177260153,13295.136050837618,20527.197880431413,11888.648920462339,8367.2683822159051,1759.1492074304153,8367.2683822159051,14688.428898939079,{"$f":"SUM(AI14,AI19)","v":18635.114866466458},2278.2385740259042,3111.4628113393323,3247.1209912784993,7332.2121240265733,687.70557104941372,687.70557104941372,3736.7555777450789,3389.6854007614197,131140.24633295723,4945.5945816758431,649.09720107483827,649.09720107483827,3215.7576310359095,7346.4195264493319,1327.6817058930578,21018.142858694464,10883.673895570286,1855.9601589634235,4572.1745393271758,1783.286380597066,7]
["SIMD Q4",null,{"$f":"SUM(C15,C20)","v":4345.3167623904428},13621.977123457553,8888.496150414132,2709.7708105704501,1766.7595189209683,7574.7251027555249,4634.6582491994959,3498.0359362510439,1280.5052049264871,3065.7694261681349,3065.7694261681349,3032.0810579299373,2525.0540495257146,1811.2316591142694,3630.1346216084821,1095.1220195191763,27772.313960299041,8184.3882651287295,126.85528387999261,3066.4964390989071,7115.5921073706995,7115.5921073706995,6573.3266648724657,8701.6023444621951,29865.90009476143,17388.18466170397,18132.893342889711,9102.9324076393277,7393.8372007172911,1747.2929121574075,7393.8372007172911,11646.984628946146,{"$f":"SUM(AI15,AI20)","v":16225.982035054614},1299.8316342983489,3799.4056721918359,3300.6577167099017,4943.5600197801159,930.03348071378514,930.03348071378514,5581.6765566847635,2995.3291664042572,116028.95692517683,4634.6582491994959,1125.9380447228712,1125.9380447228712,1785.1490709892428,6685.4035346388591,1969.0505789906456,19153.969953514428,11798.417553182184,1382.4618913972042,3253.6207900781892,126.85528387999261,8]
["SIMD Q5 (least deprived)",null,{"$f":"SUM(C16,C21)","v":10035.109640434541},18181.187485876617,8188.7537006644397,1857.7977827069863,707.49557287629727,6860.5492524542806,1167.4012250235673,3314.1277088381216,998.90319568218479,1474.6418637487193,1474.6418637487193,2684.8468278255773,2127.6537484200312,4948.28963317542,1778.05012118535,4213.1437859139414,37817.785049026774,21069.336318997051,0,3107.2168584685287,8697.7442656961157,8697.7442656961157,6422.8934116547416,7819.117162507493,31663.287941525738,19896.207093023637,23943.738351015345,2830.2679964786184,2092.2554992530631,1102.0758300633986,2092.2554992530631,7893.5603968048435,{"$f":"SUM(AI16,AI21)","v":27570.74333260479},1313.0125154575105,1676.788299519354,1830.0883092823176,3288.2671066800913,147.19142128073355,147.19142128073355,2312.4365532481243,3083.6135986723339,113335.01877931181,1167.4012250235673,0,0,2650.6448858427884,4588.2146998403496,1975.854517396755,15574.149043227275,6931.4434949109655,468.61508909985764,3280.348149532414,0,9]
["SIMD Q1 (most deprived)","16+ Females",{"$f":"SUM(C60:C78)","v":2463.2944915023336},3118.1346883663537,665.03432428590395,1049.9233977220897,630.08113248351424,19311.046024783856,917.69732136467314,3043.3503229150883,2139.9734755483883,1918.9038385137119,1918.9038385137119,6042.7568203814617,6742.7227643098258,613.25257274197656,509.35175354380959,633.10685100175465,25323.841700646346,8983.6714562587858,0,3084.8456860866627,10113.163796722634,10113.163796722634,6161.4613036665523,45740.145549042907,79343.155059773446,3267.8592792053282,58402.09844269442,2380.3412236378344,1749.1151352351121,4369.1712910430952,1749.1151352351121,21380.275640971784,{"$f":"SUM(AI60:AI78)","v":14380.248904669481},1095.0499994679697,114.1628486215174,10405.025301834361,13199.998335879056,0,0,768.51337653757685,5174.1702900490291,142065.50265144199,917.69732136467314,0,0,2805.9279347459405,8168.7530003023367,1180.948270536212,17735.172878639038,7732.5636716984845,4956.6997275617596,3711.6476546415629,0,10]
["SIMD Q2",null,{"$f":"SUM(C98:C116)","v":4490.5215246352582},6201.7473562434525,1727.0668882888685,1788.9038890039453,1069.3099159759799,11149.348512700213,1915.0923013120266,2444.5934097883378,1718.0563699019917,4595.1059434477447,4595.1059434477447,2384.3738689064512,4109.2689717686035,1485.9459224728089,2861.4972595056056,617.84027477869404,26746.952025854163,7079.6498962986025,468.53889611128807,4435.8362587285756,7565.624737682394,7565.624737682394,6812.9366879856298,12626.986828416635,37411.203609219025,7654.1293469160719,20731.935279808418,4477.3166518868156,3409.6432119860883,1011.6433149501163,3409.6432119860883,16373.154487615333,{"$f":"SUM(AI98:AI116)","v":17213.601422894579},2916.2464277070185,1473.343814010103,3761.4255338145636,8703.5868988739694,227.29840430000945,227.29840430000945,1126.4077515172573,2427.5618283436115,103480.14651312196,1915.0923013120266,41.989189947586766,41.989189947586766,3158.7091720321328,7668.936211083751,949.07740276023458,12601.989291609769,5197.7901974664373,2698.6137504469384,4447.5617839757415,468.53889611128807,11]
["SIMD Q3",null,{"$f":"SUM(C136:C154)","v":2326.4491012983972},5906.5262404146661,3574.0084698915184,2694.6086073271254,2065.2704278509846,6067.1245097758565,3168.9241784959509,1696.408936068601,937.64970476617782,4690.4951543090374,4690.4951543090374,1137.3171842372265,2007.6756346079665,446.8074335869577,1671.968578743069,558.11130652206487,20505.232065767235,5481.5711126530205,1058.6557917695,2221.0512092641893,6245.5981955872212,6245.5981955872212,3911.870241511047,7590.0175402458826,21399.38553194817,7833.4477763348841,12450.752752846232,6511.5263235264811,4431.9458765001118,922.02869526888458,4431.9458765001118,8818.1778602081231,{"$f":"SUM(AI136:AI154)","v":11337.433533214862},1446.5405985199577,1990.061535631522,2013.1078249647944,4370.9216195399649,390.90824459150758,390.90824459150758,1833.7591836019726,1835.5231145496973,79178.109998653963,3168.9241784959509,345.65587033591089,345.65587033591089,1930.0449609091579,4448.7626358139978,793.18931750456238,11866.294729027748,5580.9309933113864,1065.3588476640903,2775.7002379224432,1058.6557917695,12]
["SIMD Q4",null,{"$f":"SUM(C174:C192)","v":2628.8587472901163},8860.1600339775086,6212.8587824495826,1936.0280692297802,1153.9090317395708,4982.9463578787663,3259.4696629523387,2252.2302248912374,792.02168348925034,2267.2073404052053,2267.2073404052053,1548.6168779352702,1609.3369857888699,1244.5550080827852,2481.1582849272413,746.3448640170169,18895.242154899366,5510.2638097285708,84.626265777865115,2149.5189662956413,4803.7385387394424,4803.7385387394424,4432.7872478741319,6073.5003657581747,19921.01679659338,11407.602400530177,12195.004934333567,5529.2010247731232,4382.7642521550843,1010.026695690394,4382.7642521550843,7650.1496705927848,{"$f":"SUM(AI174:AI192)","v":11022.498803086752},911.24081508832978,2614.9122127836422,2237.102744685003,3195.0003167280779,603.82708176711651,603.82708176711651,3099.1816783628342,1802.5900026286158,77242.913893781806,3259.4696629523387,678.86340527939956,678.86340527939956,1171.7324056386269,4459.9375811110949,1292.46707580969,11978.156979511818,6806.6276303618943,891.55233107129334,2215.5507115454093,84.626265777865115,13]
["SIMD Q5 (least deprived)",null,{"$f":"SUM(C212:C230)","v":5770.1579381868241},11168.742800769351,5401.9816212311816,1249.4133828966906,331.23761063705268,4158.6810379357667,766.50049084675538,2015.0423692163181,613.42459630587382,1040.3182694487593,1040.3182694487593,1258.0323250261936,1252.9217098696126,3093.4148303697766,1121.7345304876171,2613.2610050950598,24164.640824662474,13436.20698625329,0,2085.3041798759882,5503.0803608219667,5503.0803608219667,4120.3130445216129,5262.4958370309178,19685.447695677536,12292.043586797223,15022.735383101934,1507.7505652476634,1178.0081191988356,596.83919510359817,1178.0081191988356,4811.8703997864104,{"$f":"SUM(AI212:AI230)","v":17587.115621977184},848.37558458534966,1042.5404400400487,1128.2515801977536,1986.7733538040889,86.297278537017391,86.297278537017391,1210.2970141972658,1684.2520913307151,70738.513641460202,766.50049084675538,0,0,1615.0084860157249,2828.2420573970367,1206.6741864660708,9103.0506041030749,3724.8832384618568,276.11107342757066,2056.2109743888304,0,14]
["SIMD Q1 (most deprived)","16+ Males",{"$f":"SUM(C79:C97)","v":2610.3183881703508},2772.384489602658,488.13360701253544,666.68071713652807,560.47961352035509,15856.353336244734,646.27012241767466,2462.8772242124469,1829.3359935873027,1055.6759338372453,1055.6759338372453,8806.6609410002529,6036.5239065483838,440.98040722247231,367.30241392161872,466.97173288998397,19310.474513018304,7087.3184681943376,0,2087.2492974063907,7780.6534629357784,7780.6534629357784,4526.1027691079116,31629.039929247061,63578.617912199275,2814.2260987323471,45764.70487095126,2466.23493858557,1893.8380007094304,4810.8509876033822,1893.8380007094304,17912.539008477102,{"$f":"SUM(AI79:AI97)","v":11051.831124881588},785.51701175987091,73.504633245542749,7787.9624588806964,11506.427837685711,0,0,1004.1947152717772,5724.054067447968,112384.43944059098,646.27012241767466,0,0,2368.0637756853071,6511.0958883833428,893.80150118101437,16611.842900466556,8721.9350234882368,4228.6568008524455,2755.1229527474698,0,15]
["SIMD Q2",null,{"$f":"SUM(C117:C135)","v":3922.5225489489189},4517.1141468246606,1014.7949160012489,972.27238688727618,766.82212075508141,8049.6187631463781,1197.4454112051067,1784.294793485411,1267.5706326629227,2249.6166527950836,2249.6166527950836,3116.4249958815844,3294.4947657654861,961.2019501730349,1828.1485566527963,429.09239996671624,17496.152083594669,4840.9708176390986,358.5619277655689,2524.4685800768934,4963.3860668744173,4963.3860668744173,4364.9484611432908,7808.6375554724555,26111.697152578443,5390.9332933181995,14286.094546180488,3859.3306494736953,3111.1756296077156,948.73417499833567,3111.1756296077156,11771.576296540157,{"$f":"SUM(AI117:AI135)","v":11338.322509179514},1737.2427362242702,863.13171956878068,2463.7721616853009,6351.6206194229317,183.5011300631279,183.5011300631279,1355.2386709077746,2202.6516945520325,71287.046083926121,1197.4454112051067,46.826927733394228,46.826927733394228,2259.8557724299212,5420.6275191078075,677.20537536479901,10364.179703788219,5314.4434428449331,2108.4097274970745,2905.3359377485885,358.5619277655689,16]
["SIMD Q3",null,{"$f":"SUM(C155:C173)","v":2201.0877294918778},4305.0699607847819,1987.892787102053,1401.0052264637025,1366.8092180837657,4140.102787443474,1776.6704031798922,1168.1910616675536,652.55039585741247,2175.9726941360182,2175.9726941360182,1418.81832569629,1566.7298339850695,257.76086789557121,1077.6511589467405,355.23913467608287,12881.352505100071,3591.5763041473579,724.63058882756593,1182.1381018667312,3860.0620007528364,3860.0620007528364,2352.9000163541718,4446.6752252517135,13966.470645311983,5461.6882745027342,8076.4451275851798,5377.1225969358584,3935.3225057157924,837.12051216153077,3935.3225057157924,5870.2510387309558,{"$f":"SUM(AI155:AI173)","v":7297.681333251594},831.69797550594626,1121.4012757078103,1234.0131663137049,2961.2905044866079,296.79732645790614,296.79732645790614,1902.9963941431063,1554.1622862117224,51962.136334303286,1776.6704031798922,303.44133073892743,303.44133073892743,1285.7126701267516,2897.6568906353345,534.49238838849533,9151.848129666716,5302.7429022588985,790.60131129933336,1796.4743014047328,724.63058882756593,17]
["SIMD Q4",null,{"$f":"SUM(C193:C211)","v":1716.4580151003261},4761.8170894800451,2675.6373679645485,773.7427413406698,612.85048718139751,2591.778744876759,1375.1885862471572,1245.8057113598065,488.48352143723667,798.56208576292954,798.56208576292954,1483.4641799946671,915.71706373684447,566.67665103148408,1148.9763366812406,348.77715550215947,8877.0718053996752,2674.1244554001587,42.229018102127498,916.97747280326553,2311.8535686312575,2311.8535686312575,2140.5394169983342,2628.1019787040204,9944.8832981680498,5980.5822611737949,5937.8884085561431,3573.7313828662036,3011.0729485622069,737.26621646701346,3011.0729485622069,3996.8349583533618,{"$f":"SUM(AI193:AI211)","v":5203.4832319678617},388.59081921001916,1184.4934594081935,1063.5549720248987,1748.559703052038,326.20639894666868,326.20639894666868,2482.4948783219293,1192.7391637756416,38786.04303139502,1375.1885862471572,447.0746394434716,447.0746394434716,613.41666535061597,2225.4659535277638,676.58350318095563,7175.8129740026116,4991.7899228202896,490.90956032591095,1038.0700785327797,42.229018102127498,18]
["SIMD Q5 (least deprived)",null,{"$f":"SUM(C231:C249)","v":4264.9517022477175},7012.444685107268,2786.7720794332581,608.38439981029558,376.25796223924459,2701.8682145185144,400.90073417681191,1299.0853396218035,385.47859937631091,434.32359429995995,434.32359429995995,1426.8145027993837,874.73203855041845,1854.8748028056439,656.31559069773289,1599.8827808188814,13653.144224364301,7633.1293327437616,0,1021.9126785925403,3194.663904874149,3194.663904874149,2302.5803671331287,2556.6213254765748,11977.840245848201,7604.1635062264122,8921.0029679134095,1322.5174312309553,914.24738005422751,505.23663495980048,914.24738005422751,3081.6899970184327,{"$f":"SUM(AI231:AI249)","v":9983.6277106276048},464.63693087216086,634.24785947930525,701.83672908456401,1301.4937528760024,60.894142743716159,60.894142743716159,1102.1395390508585,1399.3615073416186,42596.505137851607,400.90073417681191,0,0,1035.6363998270633,1759.9726424433125,769.18033093068436,6471.0984391242,3206.5602564491087,192.50401567228695,1224.1371751435836,0,19]
["All quintiles","Female 0-4",{"$f":"SUM(C60,C98,C136,C174,C212)","v":0},0,0,0,0,0,0,0,0,0,0,0,0,0,0,0,0,0,0,0,0,0,0,0,0,0,0,0,0,0,0,0,{"$f":"SUM(AI60,AI98,AI136,AI174,AI212)","v":0},0,0,0,0,0,0,0,0,0,0,0,0,0,0,0,0,0,0,0,0,20]
[null,"Female 5-9",{"$f":"SUM(C61,C99,C137,C175,C213)","v":0},0,0,0,0,0,0,0,0,0,0,0,0,0,0,0,0,0,0,0,0,0,0,0,0,0,0,0,0,0,0,0,{"$f":"SUM(AI61,AI99,AI137,AI175,AI213)","v":0},0,0,0,0,0,0,0,0,0,0,0,0,0,0,0,0,0,0,0,0,21]
[null,"Female 10-15",{"$f":"SUM(C62,C100,C138,C176,C214)","v":0},0,0,0,0,0,0,0,0,0,0,0,0,0,0,0,0,0,0,0,0,0,0,0,0,0,0,0,0,0,0,0,{"$f":"SUM(AI62,AI100,AI138,AI176,AI214)","v":0},0,0,0,0,0,0,0,0,0,0,0,0,0,0,0,0,0,0,0,0,22]
[null,"Female 16-19",{"$f":"SUM(C63,C101,C139,C177,C215)","v":768.7554911338982},1510.340896466146,741.91958215416616,350.81175995283195,198.07404656828518,1911.9150709549863,399.22563586166291,592.24281305763964,259.60701370572048,533.46278962533131,533.46278962533131,617.45140192035285,645.63142126480352,313.39739192467033,359.95219724939739,273.52101955638432,4909.5692221733989,1648.9700240824855,50.032607503832537,548.0118454749055,1547.5130275698543,1547.5130275698543,1149.2450971357264,3110.6564643565307,7439.8351729966444,1813.016302491636,4932.8870969930931,774.5451386461765,576.32590214353161,323.14465027064597,576.32590214353161,2507.1569052209338,{"$f":"SUM(AI63,AI101,AI139,AI177,AI215)","v":2974.462901789173},298.53449742911164,303.72779549749237,850.34064226363807,1390.0554553856371,45.633213467330258,45.633213467330258,339.74588392507764,534.5733737912625,19896.940943553807,399.22563586166291,49.225079034658464,49.225079034658464,432.86235990740329,1116.6705530924996,312.7255155857527,2851.9999525857711,1305.0635895347577,393.23456585303131,668.89405570623376,50.032607503832537,23]
[null,"Female 20-24",{"$f":"SUM(C64,C102,C140,C178,C216)","v":1648.5806328094973},2535.1437289795495,891.00959502517208,446.69901007987733,223.5141548162448,2569.1298731126622,460.93444197585245,835.6784238334285,339.27300751657805,691.86502994143848,691.86502994143848,1135.8889451971158,895.54277517494302,387.25462594866889,488.34934416156318,304.00481866765807,8144.3429187877664,3723.6695467746076,56.340686481309753,761.72713123069855,2201.4513228449287,2201.4513228449287,1610.6467052746068,6236.8625097279992,11706.967506786856,2919.2613829117327,8516.2833778676923,920.53996893167619,697.24242757287607,471.2786932481568,697.24242757287607,3247.8839704856218,{"$f":"SUM(AI64,AI102,AI140,AI178,AI216)","v":5438.9453668988035},378.13650459518851,376.04221010461936,1143.266899625788,1765.755279367545,61.719289134481777,61.719289134481777,420.28454878640883,796.77345188192771,30603.509393689717,460.93444197585245,52.25456945130059,52.25456945130059,558.47382644288814,1481.7745143752811,455.56428695095309,4209.1334404225345,1990.5319929768848,579.63158795091715,827.27665975563377,56.340686481309753,24]
[null,"Female 25-29",{"$f":"SUM(C65,C103,C141,C179,C217)","v":2494.6143600748173},3734.1038462347251,1246.7587323874272,646.13120879777875,326.90739282715401,3888.8239741479147,610.41600465612953,1068.8422442163521,518.92944599582847,1078.6619518441034,1078.6619518441034,1687.6152754852267,1431.6064950208051,477.69340557394617,650.79137679142889,370.12504133746404,12415.197535616038,5968.3671734060072,102.57386800744365,1210.8900152452632,3045.7452975667575,3045.7452975667575,2285.281230483718,11045.596480090477,19116.26423454731,4284.9442091263418,14121.187196361958,1415.6300521582166,1089.606020305295,679.59583898693018,1089.606020305295,5104.6907175192491,{"$f":"SUM(AI65,AI103,AI141,AI179,AI217)","v":8652.0163520706938},629.31590692455211,537.75927457359512,1669.0075222526132,2872.4340152976806,93.978171535794019,93.978171535794019,595.06877796683614,1245.5457024482082,47450.997036686254,610.41600465612953,78.09693783711505,78.09693783711505,830.5855670360005,2231.1331867912049,537.73984399170081,5998.1214021778542,2907.9864211473414,922.04508775549891,1359.9823569298587,102.57386800744365,25]
[null,"Female 30-34",{"$f":"SUM(C66,C104,C142,C180,C218)","v":2097.6426795122961},3584.3931967763265,1490.5071460345425,700.56543070272096,330.39361061478695,3694.0172718778249,669.35427952878661,915.7893907986039,520.4980971671871,1042.2775007023683,1042.2775007023683,1321.0442924155434,1359.3702356024626,461.29410087392296,682.07769409509649,362.04868562507545,11621.910344425376,5097.3690318425379,109.27042882272951,1325.0703866186614,2917.6154198554577,2917.6154198554577,2231.776279727183,9151.7031163198735,17753.752012147626,4193.857142744092,12319.927207439054,1527.5013778398711,1198.7920913764913,665.84200885563394,1198.7920913764913,5475.6895133095732,{"$f":"SUM(AI66,AI104,AI142,AI180,AI218)","v":7954.9863429007773},664.89612820606021,603.3167507807517,1561.0192318300981,3024.1539355558562,89.423346975101367,89.423346975101367,653.09981546556276,1166.0401106368065,44826.264617324181,669.35427952878661,71.532117568470866,71.532117568470866,808.0103688095387,2450.663069889717,420.62660782926707,5606.6296665069431,2662.9494485140644,947.7307595328864,1483.948922087355,109.27042882272951,26]
[null,"Female 35-39",{"$f":"SUM(C67,C105,C143,C181,C219)","v":1426.0947048561097},2805.4933767004291,1379.998949415372,651.95524351811673,343.10649786133433,3337.5308187497531,639.67669669245083,845.70596609152926,495.2117532360117,947.3079926067137,947.3079926067137,971.15484503137338,1199.6194859978211,477.1567130774738,668.86018376162724,392.6820896109507,9490.4442820308941,3606.2279321846104,126.21492316979825,1155.3409630285028,2652.8175686048253,2652.8175686048253,1995.9463123265839,6785.968995720521,14713.437307088932,3308.5796693587763,9837.9491618115972,1450.561876644171,1108.0944703047337,586.6132213408913,1108.0944703047337,4882.1147014161133,{"$f":"SUM(AI67,AI105,AI143,AI181,AI219)","v":6170.6296861126684},610.6327193493637,500.34451287055504,1417.3835210511079,2681.6214951205361,87.449721051915176,87.449721051915176,555.27690828146774,1019.0082175539856,37541.863533098098,639.67669669245083,82.083280817024132,82.083280817024132,747.87011543796211,2199.8010573929378,380.74718149565933,4805.4487154248473,2163.5041175789283,775.43637296669101,1279.3592404593837,126.21492316979825,27]
[null,"Female 40-44",{"$f":"SUM(C68,C106,C144,C182,C220)","v":1297.0459369546343},2763.7549659217025,1466.1306854028187,713.69167860309301,415.50414856228286,3824.7875624808671,818.32375794530856,934.04481332346552,549.41238010883342,1100.9276499613516,1100.9276499613516,856.77808713222055,1345.5784757315428,526.6826919453506,706.33066321877311,421.83975305694821,9413.0766578222174,3080.7315563751331,141.18105424186462,1294.8066671224612,2816.2395640152404,2816.2395640152404,2222.3142139512224,6003.2907095521996,14478.585561139416,3358.3169218401372,9358.6915598370051,1637.1331886758319,1221.4255129698133,627.87221063382981,1221.4255129698133,5102.1146343810851,{"$f":"SUM(AI68,AI106,AI144,AI182,AI220)","v":5794.840635227848},605.53754106301199,599.71987860760362,1678.389928093218,2799.869578215666,104.4702283650269,104.4702283650269,611.14547193339138,1056.0459438940925,38299.109602429053,818.32375794530856,83.158286450083267,83.158286450083267,839.45940850285183,2301.5368350434383,419.21112767569753,4957.3821785664122,2169.7268064180398,798.69829543842025,1409.2376382805726,141.18105424186462,28]
[null,"Female 45-49",{"$f":"SUM(C69,C107,C145,C183,C221)","v":1243.5528619212289},2871.2385180255915,1625.9573963991895,798.16884552020315,499.67106101465458,4805.4638269251109,999.26914817358568,1134.1302313606786,665.24494892841471,1412.2299582848777,1412.2299582848777,1016.9471650478642,1723.4514741973069,616.9581725192495,865.74480255674428,469.8716959479122,10356.844643835604,2960.7069242971493,155.71352335658756,1382.5343787314187,3332.9612990297996,3332.9612990297996,2517.8522379783203,7342.9697482324518,17726.652654102214,3530.8432332864736,11620.763710274587,1944.1939527347536,1444.0772029930549,876.55520080591793,1444.0772029930549,6096.3817913608946,{"$f":"SUM(AI69,AI107,AI145,AI183,AI221)","v":6078.1402484412883},707.77718829843855,668.292301075311,2115.5998246798317,3318.2428899208944,122.51280545908058,122.51280545908058,749.53482278820672,1343.8247039995933,44866.468500856834,999.26914817358568,101.59125584749549,101.59125584749549,1022.7781375727146,2777.451566816243,509.99485534001383,5859.535929395448,2561.2813431563932,1064.0596861223,1564.0103000106076,155.71352335658756,29]
[null,"Female 50-54",{"$f":"SUM(C70,C108,C146,C184,C222)","v":1320.5147204423984},2953.363707434085,1631.5202962777628,835.40547086176684,562.62864752426412,4997.0039036697326,1040.8218595961976,1135.0915136167828,659.05633743806345,1530.9574664647787,1530.9574664647787,1162.279494831178,1735.6881913514444,641.53175626441282,828.74995215307479,476.57493404184299,10335.203974703336,2887.709336506311,166.31955780470494,1386.404012853639,3448.2484685922418,3448.2484685922418,2522.554344110803,7670.0191328012097,18228.650563157444,3631.716583638839,12027.961042875839,2094.581718967836,1530.677660335474,910.4371413380843,1530.677660335474,6196.803732362393,{"$f":"SUM(AI70,AI108,AI146,AI184,AI222)","v":5916.9449157452291},703.03677366755483,687.27955424305503,2224.04540972018,3349.9944310923324,133.11492378392799,133.11492378392799,781.56087142069327,1342.712786369603,46168.856372604831,1040.8218595961976,103.91662852097525,103.91662852097525,1090.9571914964968,2846.2442383798839,513.99675842051352,6202.3080751465332,2773.3992609083634,1109.3881979976804,1515.6493555383361,166.31955780470494,30]
[null,"Female 55-59",{"$f":"SUM(C71,C109,C147,C185,C223)","v":2904.4057854634739},6608.446049804521,3700.5207232417188,1873.2210826603587,1214.4496358506958,8721.0426931959955,2301.8212854067979,2142.9812258623283,1166.236911562359,3133.6949753614485,3133.6949753614485,2010.3370941407318,2861.634450202469,1621.4971488278661,1841.3401031558769,1120.0413063158753,20982.705788820669,6316.9351722717747,350.43358414034037,2614.7486221376648,6487.0583199335715,6487.0583199335715,4759.8584992887982,11213.18396993249,30939.982253607282,8122.8056476645579,19958.507113609241,4472.9430793808569,3255.3456214560138,1526.7759515727237,3255.3456214560138,10940.425165618346,{"$f":"SUM(AI71,AI109,AI147,AI185,AI223)","v":12318.47852731338},1426.3687946421337,1534.0541791410533,3585.8935837358413,5502.679519590095,295.10976342505376,295.10976342505376,1722.3860522036775,2427.1788980365372,87342.184596003164,2301.8212854067979,226.9444970970859,226.9444970970859,2265.6533086759941,5439.1490881102181,1011.6380284352889,12100.780826036633,5598.9430440339538,1788.9801026587743,2770.9074821103472,350.43358414034037,31]
[null,"Female 60-64",{"$f":"SUM(C72,C110,C148,C186,C224)","v":2478.0746297445753},5889.0328334282549,3406.6269798088852,1702.2276154828837,1135.5589230473993,7919.4314479596123,2087.8408451349733,1847.1186407187745,1027.6559343526853,3040.6452313320465,3040.6452313320465,1591.6004752849958,2523.8030618012795,1360.5097602987435,1553.51409006376,977.9549572544787,17966.613403614279,5200.6765634516505,353.74072013004201,2297.0222778078432,5781.5553415409813,5781.5553415409813,4143.8936052820118,8732.8949937607686,25656.081427637822,7291.7412967210967,16108.369325714499,4168.5054350925284,3029.8896856179485,1241.5942750032746,3029.8896856179485,9480.3669275002248,{"$f":"SUM(AI72,AI110,AI148,AI186,AI224)","v":10241.453309342995},1193.2173711932105,1424.484394192797,3299.9664222441588,4751.4739252789141,274.91954599793911,274.91954599793911,1610.0558514455847,1992.3941382896521,75708.992102213961,2087.8408451349733,217.70581293868815,217.70581293868815,2084.7726754597334,4730.2073758167926,860.11204735192302,10693.324296628471,4909.4097070313319,1509.1310738954521,2327.4053515956584,353.74072013004201,32]
[null,"Female 65-69",{"$f":"SUM(C73,C111,C149,C187,C225)","v":0},0,0,0,0,0,0,0,0,0,0,0,0,0,0,0,0,0,0,0,0,0,0,0,0,0,0,0,0,0,0,0,{"$f":"SUM(AI73,AI111,AI149,AI187,AI225)","v":0},0,0,0,0,0,0,0,0,0,0,0,0,0,0,0,0,0,0,0,0,33]
[null,"Female 70-74",{"$f":"SUM(C74,C112,C150,C188,C226)","v":0},0,0,0,0,0,0,0,0,0,0,0,0,0,0,0,0,0,0,0,0,0,0,0,0,0,0,0,0,0,0,0,{"$f":"SUM(AI74,AI112,AI150,AI188,AI226)","v":0},0,0,0,0,0,0,0,0,0,0,0,0,0,0,0,0,0,0,0,0,34]
[null,"Female 75-79",{"$f":"SUM(C75,C113,C151,C189,C227)","v":0},0,0,0,0,0,0,0,0,0,0,0,0,0,0,0,0,0,0,0,0,0,0,0,0,0,0,0,0,0,0,0,{"$f":"SUM(AI75,AI113,AI151,AI189,AI227)","v":0},0,0,0,0,0,0,0,0,0,0,0,0,0,0,0,0,0,0,0,0,35]
[null,"Female 80-84",{"$f":"SUM(C76,C114,C152,C190,C228)","v":0},0,0,0,0,0,0,0,0,0,0,0,0,0,0,0,0,0,0,0,0,0,0,0,0,0,0,0,0,0,0,0,{"$f":"SUM(AI76,AI114,AI152,AI190,AI228)","v":0},0,0,0,0,0,0,0,0,0,0,0,0,0,0,0,0,0,0,0,0,36]
[null,"Female 85-89",{"$f":"SUM(C77,C115,C153,C191,C229)","v":0},0,0,0,0,0,0,0,0,0,0,0,0,0,0,0,0,0,0,0,0,0,0,0,0,0,0,0,0,0,0,0,{"$f":"SUM(AI77,AI115,AI153,AI191,AI229)","v":0},0,0,0,0,0,0,0,0,0,0,0,0,0,0,0,0,0,0,0,0,37]
[null,"Female 90+",{"$f":"SUM(C78,C116,C154,C192,C230)","v":0},0,0,0,0,0,0,0,0,0,0,0,0,0,0,0,0,0,0,0,0,0,0,0,0,0,0,0,0,0,0,0,{"$f":"SUM(AI78,AI116,AI154,AI192,AI230)","v":0},0,0,0,0,0,0,0,0,0,0,0,0,0,0,0,0,0,0,0,0,38]
[null,"Male 0-4",{"$f":"SUM(C79,C117,C155,C193,C231)","v":0},0,0,0,0,0,0,0,0,0,0,0,0,0,0,0,0,0,0,0,0,0,0,0,0,0,0,0,0,0,0,0,{"$f":"SUM(AI79,AI117,AI155,AI193,AI231)","v":0},0,0,0,0,0,0,0,0,0,0,0,0,0,0,0,0,0,0,0,0,39]
[null,"Male 5-9",{"$f":"SUM(C80,C118,C156,C194,C232)","v":0},0,0,0,0,0,0,0,0,0,0,0,0,0,0,0,0,0,0,0,0,0,0,0,0,0,0,0,0,0,0,0,{"$f":"SUM(AI80,AI118,AI156,AI194,AI232)","v":0},0,0,0,0,0,0,0,0,0,0,0,0,0,0,0,0,0,0,0,0,40]
[null,"Male 10-15",{"$f":"SUM(C81,C119,C157,C195,C233)","v":0},0,0,0,0,0,0,0,0,0,0,0,0,0,0,0,0,0,0,0,0,0,0,0,0,0,0,0,0,0,0,0,{"$f":"SUM(AI81,AI119,AI157,AI195,AI233)","v":0},0,0,0,0,0,0,0,0,0,0,0,0,0,0,0,0,0,0,0,0,41]
[null,"Male 16-19",{"$f":"SUM(C82,C120,C158,C196,C234)","v":827.75080933456752},1493.7088172138242,647.20133796347159,306.98375622509474,251.29141913102376,2145.5052231177524,343.72405494304252,610.85964325912892,309.4124545489326,411.58179415769121,411.58179415769121,1010.0868265711101,801.36534620242344,317.07865660270613,336.09346278138878,276.86606545631446,4615.1742275786264,1563.1700964693423,61.842474125593142,502.22024634954272,1466.2956951199651,1466.2956951199651,1105.9965008661666,2818.7403395108172,7845.1569553987356,1784.0190972533665,5089.2896495594878,1108.2631242505249,851.81058067504887,486.49443739932951,851.81058067504887,2756.3447764658404,{"$f":"SUM(AI82,AI120,AI158,AI196,AI234)","v":2819.9909682362718},269.48723613903377,286.67122844984601,878.64472011816292,1579.6695535461372,56.2877555770201,56.2877555770201,540.74437032349203,746.7593988532908,20318.837046185963,343.72405494304252,54.835242459270077,54.835242459270077,476.68584702077055,1182.0507399212029,295.83829625584951,3294.0282012610478,1818.840304260666,467.97451839883558,649.42368037920301,61.842474125593142,42]
[null,"Male 20-24",{"$f":"SUM(C83,C121,C159,C197,C235)","v":1763.2844065867444},2429.3496946997593,775.69451636178712,375.78660905536498,355.47548865087032,2780.3511152276756,396.05997271117877,849.10315342965555,392.04039143838088,522.29047420331574,522.29047420331574,1918.7194776211513,1062.3086760772919,404.20931290484373,438.98890431387599,317.05220857096481,7025.7396025476883,2974.4068194661263,71.979615016755147,636.74277961246389,2010.7231839728172,2010.7231839728172,1471.540075312766,5147.384817854896,11748.891898059013,2794.5491557981072,8173.3948221691144,1363.5593669006994,986.06426769219365,654.85775959625846,986.06426769219365,3587.7771625314881,{"$f":"SUM(AI83,AI121,AI159,AI197,AI235)","v":4618.4164410355188},351.03767000512306,367.54882461582895,1144.7083200672391,2055.8098475214729,66.631318483558786,66.631318483558786,699.15224566605775,1036.5822886350775,29743.942927437962,396.05997271117877,73.387955812582803,73.387955812582803,594.80277595910241,1538.9442122203186,430.7688946894977,4781.6504939517426,2777.6661278847951,665.50829117079252,850.2058338558835,71.979615016755147,43]
[null,"Male 25-29",{"$f":"SUM(C84,C122,C160,C198,C236)","v":1578.4534403749738},1904.7998783354228,478.13128740016481,260.58560782035352,208.70203778280646,2154.6324478385727,261.40254063567221,531.61268018265912,264.21600848400328,385.45750146600687,385.45750146600687,1745.8547024801185,858.65742739419159,214.36021183538799,279.17565245775648,156.66560321617683,5497.7953992280563,2616.6957352195268,56.994261673642264,486.56850941641278,1402.95739161243,1402.95739161243,1015.6152380290438,5198.6077074770565,10233.566319734469,2127.8425491632879,7475.2189608236331,947.25780508360117,736.2030848520975,540.81866801587341,736.2030848520975,2776.506400577458,{"$f":"SUM(AI84,AI122,AI160,AI198,AI236)","v":3817.0759319986723},260.54172194936746,229.77804617892946,858.39945622160019,1636.3319462673369,48.704752105864159,48.704752105864159,481.18587131336204,902.14388781693197,23958.150355233622,261.40254063567221,46.894743971036078,46.894743971036078,458.00717481969832,1148.1361195544939,260.05719272390161,3611.9627294501643,2233.4311590373291,566.90352047524436,653.67964739963327,56.994261673642264,44]
[null,"Male 30-34",{"$f":"SUM(C85,C123,C161,C199,C237)","v":1268.6754036733132},1682.987527549483,506.09357808844288,261.04962963045887,177.1913560352954,1955.5143565113985,256.36511188194754,451.67615767234901,270.43148185939947,351.99630514873286,351.99630514873286,1345.872456348462,790.28570920934533,184.22461669974189,273.95491646031286,136.57053817635136,5101.6144146854567,2280.9744817804917,56.501780001189545,482.56431295365064,1352.3528063563422,1352.3528063563422,937.08788324610498,4591.0974869531592,9473.3890902434487,1905.674278859947,6722.8208319745263,934.34666418646862,764.53688384939448,513.64289529736095,764.53688384939448,2763.2461787989541,{"$f":"SUM(AI85,AI123,AI161,AI199,AI237)","v":3482.4147065732359},265.55440893836419,226.6575756560546,778.92595049396198,1627.0718188850535,41.659358255632355,41.659358255632355,469.30840598053834,867.03605290901123,22024.160993599449,256.36511188194754,43.409296814450428,43.409296814450428,407.54458285620251,1144.0164023533964,197.3457812800809,3265.9483530681978,1921.7024720564577,542.00704037198284,654.65379852431374,56.501780001189545,45]
[null,"Male 35-39",{"$f":"SUM(C86,C124,C162,C200,C238)","v":1219.8305603180643},1710.6200474129951,560.66558014058296,285.11823645583115,203.83014153013258,2413.7168776996227,300.09662461520929,529.53114887168795,356.53727753341929,377.88395550776664,377.88395550776664,1316.156532771171,939.98176616126602,212.86935777413481,318.35309142641529,175.78120183049441,5656.2867111683972,2293.8815174826814,63.06825331092088,610.91386937108757,1645.9428802898874,1645.9428802898874,1147.0669012925473,4980.8771471635846,10957.923946380031,1936.6734240962119,7456.2551941649435,1023.8339974703415,824.82013790317558,590.31989156523366,824.82013790317558,3509.6236992407635,{"$f":"SUM(AI86,AI124,AI162,AI200,AI238)","v":3711.3493586783297},315.22186038746332,230.11178379849622,977.63263294687113,2050.1469071816305,42.520869953456625,42.520869953456625,522.96632433577315,977.12546911043,24835.190812259596,300.09662461520929,46.833257372238265,46.833257372238265,516.33856956399052,1468.5104258567885,211.07010232801923,3653.8650849668293,1994.8104953003299,646.0094200167996,775.40381615647743,63.06825331092088,46]
[null,"Male 40-44",{"$f":"SUM(C87,C125,C163,C201,C239)","v":1032.2343978052127},1604.2864707599279,600.02726810840159,304.35876994192961,227.37905930931208,2713.2120554547441,356.01382707160695,562.64839467577008,377.47101675523783,448.16303522833874,448.16303522833874,1159.0691161085826,1083.7322418511824,244.28145705904601,383.87700114609117,204.52739336782622,5642.4366034240311,2018.3201471394627,77.176394308735652,652.48331862335885,1728.2409848021427,1728.2409848021427,1222.4121685463558,4306.9121915236683,10463.646046001442,1848.6940432180513,6788.2529294997748,1086.928744850901,860.9439302505051,601.3681826966282,860.9439302505051,3676.0363239257608,{"$f":"SUM(AI87,AI125,AI163,AI201,AI239)","v":3568.5638796944663},329.516090222706,245.70871762850672,1098.9476455774525,2134.5982609931275,50.707459873256795,50.707459873256795,481.09421766121375,926.81702405677436,24611.945199732592,356.01382707160695,50.854098965835732,50.854098965835732,560.00752833571448,1550.1796728339448,224.97161431520661,3619.7562392597474,1862.2333004069035,616.42341292504523,832.36951036975984,77.176394308735652,47]
[null,"Male 45-49",{"$f":"SUM(C88,C126,C164,C202,C240)","v":1159.9741173246098},1984.3598471644227,819.73845426874163,438.0410639507013,363.98288130888847,3504.6422388297369,569.48055199075611,788.25870576876764,521.35776156225972,687.83216495514523,687.83216495514523,1497.1309266103565,1384.7860590798873,333.57758932435394,503.69791492098597,255.99509585961823,7035.8326802492866,2147.2590201868893,136.87756143633806,855.33320515200637,2336.7773713768515,2336.7773713768515,1649.5184907958399,4810.6110184856716,12824.179601256086,2384.7054413396831,8115.9899148127506,1634.101708008679,1264.7220598331305,814.48012006223337,1264.7220598331305,4704.708843279227,{"$f":"SUM(AI88,AI126,AI164,AI202,AI240)","v":4162.3008358424186},439.34202161124205,394.37683436190019,1405.8291456717357,2677.3538493802894,82.464363229558884,82.464363229558884,720.51062510554186,1260.8416513718246,31503.506706749529,569.48055199075611,73.245055231272389,73.245055231272389,745.98359334037593,2035.4615218407553,319.01951238206516,4954.3193813183407,2582.2430871190654,803.36305071510753,1066.3553453087404,136.87756143633806,48]
[null,"Male 50-54",{"$f":"SUM(C89,C127,C165,C203,C241)","v":1141.9928112850232},1980.8515118634136,828.86664928413688,486.9301112090298,409.97866428200734,3778.3244141567488,631.68974653247221,828.16695969391412,523.39100401223959,793.13144601167289,793.13144601167289,1541.694947481958,1465.9520299735143,378.23135922619457,555.1869891921292,295.07040768893188,7113.2931218544927,2147.1502840181965,135.35059337233574,848.56167042704249,2302.4932830491844,2302.4932830491844,1679.3150104918573,4861.1049338922767,13276.513657483856,2373.4218328372158,8565.1027705611814,1824.8252633264119,1407.6307326646995,962.69499097150276,1407.6307326646995,4711.2210259680714,{"$f":"SUM(AI89,AI127,AI165,AI203,AI241)","v":4209.3457976964228},452.69391048272826,387.15843212952575,1528.3065202295775,2694.7878627329778,96.602601226455619,96.602601226455619,814.19131212695936,1318.9289670852909,32760.872294570261,631.68974653247221,85.549529343562625,85.549529343562625,814.03555040182061,2025.3260129502503,347.68895945945621,5113.5747939873627,2792.8984569380627,949.05971786991404,1051.3863139690154,135.35059337233574,49]
[null,"Male 55-59",{"$f":"SUM(C90,C128,C166,C204,C242)","v":2509.6920818743256},4546.7684462866282,1976.6432354973504,886.80534682682492,761.09614520546711,6288.510823263,1184.1650787578178,1522.7227706962694,864.63071141605769,1412.5151975572921,1412.5151975572921,2608.4715325915304,2312.0922118199733,957.94134463002172,1098.6280133073551,744.2123111243618,13272.468171360535,4218.6183560835489,235.96946145472609,1458.3020746731127,4234.6024249362963,4234.6024249362963,2978.3712738548288,6801.4416051047647,21136.574949565169,5344.9909825933246,13484.735119391651,3474.617828781752,2706.3945023839051,1466.2204164119012,2706.3945023839051,7648.369114538792,{"$f":"SUM(AI90,AI128,AI166,AI204,AI242)","v":7905.233264739587},807.70390289605234,793.75203530388535,2424.3854802162928,4027.0328227096365,203.67023635402242,203.67023635402242,1611.3531295065739,2258.6397903700322,57673.740130420367,1184.1650787578178,166.56982560836724,166.56982560836724,1549.4620751294869,3616.1369816570632,689.49053651191093,9347.4554039603881,5075.3247738250257,1369.9265878060448,1782.6823289701863,235.96946145472609,50]
[null,"Male 60-64",{"$f":"SUM(C91,C129,C167,C205,C243)","v":2213.4503553823565},4031.0981305135365,1760.1688504005645,816.42634052288327,724.29220854404059,5605.3122941306074,1097.4777480869395,1285.6745160968198,743.93103531125496,1323.2990865952745,1323.2990865952745,2109.1264267877377,1989.0361408171264,834.72077307177574,890.43811089381802,637.222378562784,11257.554199380447,3566.6429202784461,229.66113999502585,1199.0561441671432,3630.2329825525212,3630.2329825525212,2480.1474883013266,5552.2987661859306,17619.66678998369,4751.0226287942914,11115.075728229416,3201.2024962329015,2462.530284545222,1208.3111641737421,2462.530284545222,6499.0577737936574,{"$f":"SUM(AI91,AI129,AI167,AI205,AI243)","v":6580.2547254132414},716.58665094018716,715.01546928665914,2155.3596164462729,3386.5895483056279,178.15028315259318,178.15028315259318,1506.5576956759335,1778.0941891203199,49585.823561877682,1097.4777480869395,155.76389233717765,155.76389233717765,1439.8175859924968,3106.0568049093458,575.01220909996084,8132.2214658244811,4478.3213710328328,1183.9058558972847,1402.9801706439412,229.66113999502585,51]
[null,"Male 65-69",{"$f":"SUM(C92,C130,C168,C206,C244)","v":0},0,0,0,0,0,0,0,0,0,0,0,0,0,0,0,0,0,0,0,0,0,0,0,0,0,0,0,0,0,0,0,{"$f":"SUM(AI92,AI130,AI168,AI206,AI244)","v":0},0,0,0,0,0,0,0,0,0,0,0,0,0,0,0,0,0,0,0,0,52]
[null,"Male 70-74",{"$f":"SUM(C93,C131,C169,C207,C245)","v":0},0,0,0,0,0,0,0,0,0,0,0,0,0,0,0,0,0,0,0,0,0,0,0,0,0,0,0,0,0,0,0,{"$f":"SUM(AI93,AI131,AI169,AI207,AI245)","v":0},0,0,0,0,0,0,0,0,0,0,0,0,0,0,0,0,0,0,0,0,53]
[null,"Male 75-79",{"$f":"SUM(C94,C132,C170,C208,C246)","v":0},0,0,0,0,0,0,0,0,0,0,0,0,0,0,0,0,0,0,0,0,0,0,0,0,0,0,0,0,0,0,0,{"$f":"SUM(AI94,AI132,AI170,AI208,AI246)","v":0},0,0,0,0,0,0,0,0,0,0,0,0,0,0,0,0,0,0,0,0,54]
[null,"Male 80-84",{"$f":"SUM(C95,C133,C171,C209,C247)","v":0},0,0,0,0,0,0,0,0,0,0,0,0,0,0,0,0,0,0,0,0,0,0,0,0,0,0,0,0,0,0,0,{"$f":"SUM(AI95,AI133,AI171,AI209,AI247)","v":0},0,0,0,0,0,0,0,0,0,0,0,0,0,0,0,0,0,0,0,0,55]
[null,"Male 85-89",{"$f":"SUM(C96,C134,C172,C210,C248)","v":0},0,0,0,0,0,0,0,0,0,0,0,0,0,0,0,0,0,0,0,0,0,0,0,0,0,0,0,0,0,0,0,{"$f":"SUM(AI96,AI134,AI172,AI210,AI248)","v":0},0,0,0,0,0,0,0,0,0,0,0,0,0,0,0,0,0,0,0,0,56]
[null,"Male 90+",{"$f":"SUM(C97,C135,C173,C211,C249)","v":0},0,0,0,0,0,0,0,0,0,0,0,0,0,0,0,0,0,0,0,0,0,0,0,0,0,0,0,0,0,0,0,{"$f":"SUM(AI97,AI135,AI173,AI211,AI249)","v":0},0,0,0,0,0,0,0,0,0,0,0,0,0,0,0,0,0,0,0,0,57]
["SIMD Q1 (most deprived)","Female 0-4",{"$f":"'Population 2016'!C60*'Prevalence Rates'!C60","v":0},{"$f":"'Population 2016'!D60*'Prevalence Rates'!D60","v":0},{"$f":"'Population 2016'!E60*'Prevalence Rates'!E60","v":0},{"$f":"'Population 2016'!F60*'Prevalence Rates'!F60","v":0},{"$f":"'Population 2016'!G60*'Prevalence Rates'!G60","v":0},{"$f":"'Population 2016'!H60*'Prevalence Rates'!H60","v":0},{"$f":"'Population 2016'!I60*'Prevalence Rates'!I60","v":0},{"$f":"'Population 2016'!J60*'Prevalence Rates'!J60","v":0},{"$f":"'Population 2016'!K60*'Prevalence Rates'!K60","v":0},{"$f":"'Population 2016'!L60*'Prevalence Rates'!L60","v":0},{"$f":"'Population 2016'!M60*'Prevalence Rates'!M60","v":0},{"$f":"'Population 2016'!N60*'Prevalence Rates'!N60","v":0},{"$f":"'Population 2016'!O60*'Prevalence Rates'!O60","v":0},{"$f":"'Population 2016'!P60*'Prevalence Rates'!P60","v":0},{"$f":"'Population 2016'!Q60*'Prevalence Rates'!Q60","v":0},{"$f":"'Population 2016'!R60*'Prevalence Rates'!R60","v":0},{"$f":"'Population 2016'!S60*'Prevalence Rates'!S60","v":0},{"$f":"'Population 2016'!T60*'Prevalence Rates'!T60","v":0},{"$f":"'Population 2016'!U60*'Prevalence Rates'!U60","v":0},{"$f":"'Population 2016'!V60*'Prevalence Rates'!V60","v":0},{"$f":"'Population 2016'!W60*'Prevalence Rates'!W60","v":0},{"$f":"'Population 2016'!X60*'Prevalence Rates'!X60","v":0},{"$f":"'Population 2016'!Y60*'Prevalence Rates'!Y60","v":0},{"$f":"'Population 2016'!Z60*'Prevalence Rates'!Z60","v":0},{"$f":"'Population 2016'!AA60*'Prevalence Rates'!AA60","v":0},{"$f":"'Population 2016'!AB60*'Prevalence Rates'!AB60","v":0},{"$f":"'Population 2016'!AC60*'Prevalence Rates'!AC60","v":0},{"$f":"'Population 2016'!AD60*'Prevalence Rates'!AD60","v":0},{"$f":"'Population 2016'!AE60*'Prevalence Rates'!AE60","v":0},{"$f":"'Population 2016'!AF60*'Prevalence Rates'!AF60","v":0},{"$f":"'Population 2016'!AG60*'Prevalence Rates'!AG60","v":0},{"$f":"'Population 2016'!AH60*'Prevalence Rates'!AH60","v":0},{"$f":"'Population 2016'!AI60*'Prevalence Rates'!AI60","v":0},{"$f":"'Population 2016'!AJ60*'Prevalence Rates'!AJ60","v":0},{"$f":"'Population 2016'!AK60*'Prevalence Rates'!AK60","v":0},{"$f":"'Population 2016'!AL60*'Prevalence Rates'!AL60","v":0},{"$f":"'Population 2016'!AM60*'Prevalence Rates'!AM60","v":0},{"$f":"'Population 2016'!AN60*'Prevalence Rates'!AN60","v":0},{"$f":"'Population 2016'!AO60*'Prevalence Rates'!AO60","v":0},{"$f":"'Population 2016'!AP60*'Prevalence Rates'!AP60","v":0},{"$f":"'Population 2016'!AQ60*'Prevalence Rates'!AQ60","v":0},{"$f":"'Population 2016'!AR60*'Prevalence Rates'!AR60","v":0},{"$f":"'Population 2016'!AS60*'Prevalence Rates'!AS60","v":0},{"$f":"'Population 2016'!AT60*'Prevalence Rates'!AT60","v":0},{"$f":"'Population 2016'!AU60*'Prevalence Rates'!AU60","v":0},{"$f":"'Population 2016'!AV60*'Prevalence Rates'!AV60","v":0},{"$f":"'Population 2016'!AW60*'Prevalence Rates'!AW60","v":0},{"$f":"'Population 2016'!AX60*'Prevalence Rates'!AX60","v":0},{"$f":"'Population 2016'!AY60*'Prevalence Rates'!AY60","v":0},{"$f":"'Population 2016'!AZ60*'Prevalence Rates'!AZ60","v":0},{"$f":"'Population 2016'!BA60*'Prevalence Rates'!BA60","v":0},{"$f":"'Population 2016'!BB60*'Prevalence Rates'!BB60","v":0},{"$f":"'Population 2016'!BC60*'Prevalence Rates'!BC60","v":0},58]
[null,"Female 5-9",{"$f":"'Population 2016'!C61*'Prevalence Rates'!C61","v":0},{"$f":"'Population 2016'!D61*'Prevalence Rates'!D61","v":0},{"$f":"'Population 2016'!E61*'Prevalence Rates'!E61","v":0},{"$f":"'Population 2016'!F61*'Prevalence Rates'!F61","v":0},{"$f":"'Population 2016'!G61*'Prevalence Rates'!G61","v":0},{"$f":"'Population 2016'!H61*'Prevalence Rates'!H61","v":0},{"$f":"'Population 2016'!I61*'Prevalence Rates'!I61","v":0},{"$f":"'Population 2016'!J61*'Prevalence Rates'!J61","v":0},{"$f":"'Population 2016'!K61*'Prevalence Rates'!K61","v":0},{"$f":"'Population 2016'!L61*'Prevalence Rates'!L61","v":0},{"$f":"'Population 2016'!M61*'Prevalence Rates'!M61","v":0},{"$f":"'Population 2016'!N61*'Prevalence Rates'!N61","v":0},{"$f":"'Population 2016'!O61*'Prevalence Rates'!O61","v":0},{"$f":"'Population 2016'!P61*'Prevalence Rates'!P61","v":0},{"$f":"'Population 2016'!Q61*'Prevalence Rates'!Q61","v":0},{"$f":"'Population 2016'!R61*'Prevalence Rates'!R61","v":0},{"$f":"'Population 2016'!S61*'Prevalence Rates'!S61","v":0},{"$f":"'Population 2016'!T61*'Prevalence Rates'!T61","v":0},{"$f":"'Population 2016'!U61*'Prevalence Rates'!U61","v":0},{"$f":"'Population 2016'!V61*'Prevalence Rates'!V61","v":0},{"$f":"'Population 2016'!W61*'Prevalence Rates'!W61","v":0},{"$f":"'Population 2016'!X61*'Prevalence Rates'!X61","v":0},{"$f":"'Population 2016'!Y61*'Prevalence Rates'!Y61","v":0},{"$f":"'Population 2016'!Z61*'Prevalence Rates'!Z61","v":0},{"$f":"'Population 2016'!AA61*'Prevalence Rates'!AA61","v":0},{"$f":"'Population 2016'!AB61*'Prevalence Rates'!AB61","v":0},{"$f":"'Population 2016'!AC61*'Prevalence Rates'!AC61","v":0},{"$f":"'Population 2016'!AD61*'Prevalence Rates'!AD61","v":0},{"$f":"'Population 2016'!AE61*'Prevalence Rates'!AE61","v":0},{"$f":"'Population 2016'!AF61*'Prevalence Rates'!AF61","v":0},{"$f":"'Population 2016'!AG61*'Prevalence Rates'!AG61","v":0},{"$f":"'Population 2016'!AH61*'Prevalence Rates'!AH61","v":0},{"$f":"'Population 2016'!AI61*'Prevalence Rates'!AI61","v":0},{"$f":"'Population 2016'!AJ61*'Prevalence Rates'!AJ61","v":0},{"$f":"'Population 2016'!AK61*'Prevalence Rates'!AK61","v":0},{"$f":"'Population 2016'!AL61*'Prevalence Rates'!AL61","v":0},{"$f":"'Population 2016'!AM61*'Prevalence Rates'!AM61","v":0},{"$f":"'Population 2016'!AN61*'Prevalence Rates'!AN61","v":0},{"$f":"'Population 2016'!AO61*'Prevalence Rates'!AO61","v":0},{"$f":"'Population 2016'!AP61*'Prevalence Rates'!AP61","v":0},{"$f":"'Population 2016'!AQ61*'Prevalence Rates'!AQ61","v":0},{"$f":"'Population 2016'!AR61*'Prevalence Rates'!AR61","v":0},{"$f":"'Population 2016'!AS61*'Prevalence Rates'!AS61","v":0},{"$f":"'Population 2016'!AT61*'Prevalence Rates'!AT61","v":0},{"$f":"'Population 2016'!AU61*'Prevalence Rates'!AU61","v":0},{"$f":"'Population 2016'!AV61*'Prevalence Rates'!AV61","v":0},{"$f":"'Population 2016'!AW61*'Prevalence Rates'!AW61","v":0},{"$f":"'Population 2016'!AX61*'Prevalence Rates'!AX61","v":0},{"$f":"'Population 2016'!AY61*'Prevalence Rates'!AY61","v":0},{"$f":"'Population 2016'!AZ61*'Prevalence Rates'!AZ61","v":0},{"$f":"'Population 2016'!BA61*'Prevalence Rates'!BA61","v":0},{"$f":"'Population 2016'!BB61*'Prevalence Rates'!BB61","v":0},{"$f":"'Population 2016'!BC61*'Prevalence Rates'!BC61","v":0},59]
[null,"Female 10-15",{"$f":"'Population 2016'!C62*'Prevalence Rates'!C62","v":0},{"$f":"'Population 2016'!D62*'Prevalence Rates'!D62","v":0},{"$f":"'Population 2016'!E62*'Prevalence Rates'!E62","v":0},{"$f":"'Population 2016'!F62*'Prevalence Rates'!F62","v":0},{"$f":"'Population 2016'!G62*'Prevalence Rates'!G62","v":0},{"$f":"'Population 2016'!H62*'Prevalence Rates'!H62","v":0},{"$f":"'Population 2016'!I62*'Prevalence Rates'!I62","v":0},{"$f":"'Population 2016'!J62*'Prevalence Rates'!J62","v":0},{"$f":"'Population 2016'!K62*'Prevalence Rates'!K62","v":0},{"$f":"'Population 2016'!L62*'Prevalence Rates'!L62","v":0},{"$f":"'Population 2016'!M62*'Prevalence Rates'!M62","v":0},{"$f":"'Population 2016'!N62*'Prevalence Rates'!N62","v":0},{"$f":"'Population 2016'!O62*'Prevalence Rates'!O62","v":0},{"$f":"'Population 2016'!P62*'Prevalence Rates'!P62","v":0},{"$f":"'Population 2016'!Q62*'Prevalence Rates'!Q62","v":0},{"$f":"'Population 2016'!R62*'Prevalence Rates'!R62","v":0},{"$f":"'Population 2016'!S62*'Prevalence Rates'!S62","v":0},{"$f":"'Population 2016'!T62*'Prevalence Rates'!T62","v":0},{"$f":"'Population 2016'!U62*'Prevalence Rates'!U62","v":0},{"$f":"'Population 2016'!V62*'Prevalence Rates'!V62","v":0},{"$f":"'Population 2016'!W62*'Prevalence Rates'!W62","v":0},{"$f":"'Population 2016'!X62*'Prevalence Rates'!X62","v":0},{"$f":"'Population 2016'!Y62*'Prevalence Rates'!Y62","v":0},{"$f":"'Population 2016'!Z62*'Prevalence Rates'!Z62","v":0},{"$f":"'Population 2016'!AA62*'Prevalence Rates'!AA62","v":0},{"$f":"'Population 2016'!AB62*'Prevalence Rates'!AB62","v":0},{"$f":"'Population 2016'!AC62*'Prevalence Rates'!AC62","v":0},{"$f":"'Population 2016'!AD62*'Prevalence Rates'!AD62","v":0},{"$f":"'Population 2016'!AE62*'Prevalence Rates'!AE62","v":0},{"$f":"'Population 2016'!AF62*'Prevalence Rates'!AF62","v":0},{"$f":"'Population 2016'!AG62*'Prevalence Rates'!AG62","v":0},{"$f":"'Population 2016'!AH62*'Prevalence Rates'!AH62","v":0},{"$f":"'Population 2016'!AI62*'Prevalence Rates'!AI62","v":0},{"$f":"'Population 2016'!AJ62*'Prevalence Rates'!AJ62","v":0},{"$f":"'Population 2016'!AK62*'Prevalence Rates'!AK62","v":0},{"$f":"'Population 2016'!AL62*'Prevalence Rates'!AL62","v":0},{"$f":"'Population 2016'!AM62*'Prevalence Rates'!AM62","v":0},{"$f":"'Population 2016'!AN62*'Prevalence Rates'!AN62","v":0},{"$f":"'Population 2016'!AO62*'Prevalence Rates'!AO62","v":0},{"$f":"'Population 2016'!AP62*'Prevalence Rates'!AP62","v":0},{"$f":"'Population 2016'!AQ62*'Prevalence Rates'!AQ62","v":0},{"$f":"'Population 2016'!AR62*'Prevalence Rates'!AR62","v":0},{"$f":"'Population 2016'!AS62*'Prevalence Rates'!AS62","v":0},{"$f":"'Population 2016'!AT62*'Prevalence Rates'!AT62","v":0},{"$f":"'Population 2016'!AU62*'Prevalence Rates'!AU62","v":0},{"$f":"'Population 2016'!AV62*'Prevalence Rates'!AV62","v":0},{"$f":"'Population 2016'!AW62*'Prevalence Rates'!AW62","v":0},{"$f":"'Population 2016'!AX62*'Prevalence Rates'!AX62","v":0},{"$f":"'Population 2016'!AY62*'Prevalence Rates'!AY62","v":0},{"$f":"'Population 2016'!AZ62*'Prevalence Rates'!AZ62","v":0},{"$f":"'Population 2016'!BA62*'Prevalence Rates'!BA62","v":0},{"$f":"'Population 2016'!BB62*'Prevalence Rates'!BB62","v":0},{"$f":"'Population 2016'!BC62*'Prevalence Rates'!BC62","v":0},60]
[null,"Female 16-19",{"$f":"'Population 2016'!C63*'Prevalence Rates'!C63","v":93.276864313371604},{"$f":"'Population 2016'!D63*'Prevalence Rates'!D63","v":121.0638796742295},{"$f":"'Population 2016'!E63*'Prevalence Rates'!E63","v":28.157184583317992},{"$f":"'Population 2016'!F63*'Prevalence Rates'!F63","v":56.977454727650723},{"$f":"'Population 2016'!G63*'Prevalence Rates'!G63","v":30.38967659647307},{"$f":"'Population 2016'!H63*'Prevalence Rates'!H63","v":926.39282642140392},{"$f":"'Population 2016'!I63*'Prevalence Rates'!I63","v":50.935403420343356},{"$f":"'Population 2016'!J63*'Prevalence Rates'!J63","v":145.68221335513596},{"$f":"'Population 2016'!K63*'Prevalence Rates'!K63","v":96.58017685379005},{"$f":"'Population 2016'!L63*'Prevalence Rates'!L63","v":98.761050743888404},{"$f":"'Population 2016'!M63*'Prevalence Rates'!M63","v":98.761050743888404},{"$f":"'Population 2016'!N63*'Prevalence Rates'!N63","v":284.12055309555382},{"$f":"'Population 2016'!O63*'Prevalence Rates'!O63","v":307.78157819240619},{"$f":"'Population 2016'!P63*'Prevalence Rates'!P63","v":25.798557333368745},{"$f":"'Population 2016'!Q63*'Prevalence Rates'!Q63","v":22.972037295094655},{"$f":"'Population 2016'!R63*'Prevalence Rates'!R63","v":33.713538400608577},{"$f":"'Population 2016'!S63*'Prevalence Rates'!S63","v":1207.6552958507791},{"$f":"'Population 2016'!T63*'Prevalence Rates'!T63","v":381.48514749662041},{"$f":"'Population 2016'!U63*'Prevalence Rates'!U63","v":0},{"$f":"'Population 2016'!V63*'Prevalence Rates'!V63","v":129.41998948236517},{"$f":"'Population 2016'!W63*'Prevalence Rates'!W63","v":518.17239191008787},{"$f":"'Population 2016'!X63*'Prevalence Rates'!X63","v":518.17239191008787},{"$f":"'Population 2016'!Y63*'Prevalence Rates'!Y63","v":277.57269060380088},{"$f":"'Population 2016'!Z63*'Prevalence Rates'!Z63","v":1859.3928773309906},{"$f":"'Population 2016'!AA63*'Prevalence Rates'!AA63","v":3416.5394124759891},{"$f":"'Population 2016'!AB63*'Prevalence Rates'!AB63","v":126.87159578271734},{"$f":"'Population 2016'!AC63*'Prevalence Rates'!AC63","v":2417.8759639939663},{"$f":"'Population 2016'!AD63*'Prevalence Rates'!AD63","v":117.05476997185529},{"$f":"'Population 2016'!AE63*'Prevalence Rates'!AE63","v":86.628254635153638},{"$f":"'Population 2016'!AF63*'Prevalence Rates'!AF63","v":179.73074455243619},{"$f":"'Population 2016'!AG63*'Prevalence Rates'!AG63","v":86.628254635153638},{"$f":"'Population 2016'!AH63*'Prevalence Rates'!AH63","v":1010.2661419869573},{"$f":"'Population 2016'!AI63*'Prevalence Rates'!AI63","v":646.99836316370704},{"$f":"'Population 2016'!AJ63*'Prevalence Rates'!AJ63","v":51.980928603460455},{"$f":"'Population 2016'!AK63*'Prevalence Rates'!AK63","v":4.4265722942681345},{"$f":"'Population 2016'!AL63*'Prevalence Rates'!AL63","v":508.22925539108894},{"$f":"'Population 2016'!AM63*'Prevalence Rates'!AM63","v":640.46091785068825},{"$f":"'Population 2016'!AN63*'Prevalence Rates'!AN63","v":0},{"$f":"'Population 2016'!AO63*'Prevalence Rates'!AO63","v":0},{"$f":"'Population 2016'!AP63*'Prevalence Rates'!AP63","v":34.729842102345685},{"$f":"'Population 2016'!AQ63*'Prevalence Rates'!AQ63","v":217.60624391410454},{"$f":"'Population 2016'!AR63*'Prevalence Rates'!AR63","v":6378.5314900153608},{"$f":"'Population 2016'!AS63*'Prevalence Rates'!AS63","v":50.935403420343356},{"$f":"'Population 2016'!AT63*'Prevalence Rates'!AT63","v":0},{"$f":"'Population 2016'!AU63*'Prevalence Rates'!AU63","v":0},{"$f":"'Population 2016'!AV63*'Prevalence Rates'!AV63","v":140.40529136728156},{"$f":"'Population 2016'!AW63*'Prevalence Rates'!AW63","v":369.16310134585132},{"$f":"'Population 2016'!AX63*'Prevalence Rates'!AX63","v":59.627764851391348},{"$f":"'Population 2016'!AY63*'Prevalence Rates'!AY63","v":877.29479606234383},{"$f":"'Population 2016'!AZ63*'Prevalence Rates'!AZ63","v":368.50153888104313},{"$f":"'Population 2016'!BA63*'Prevalence Rates'!BA63","v":221.7650131407419},{"$f":"'Population 2016'!BB63*'Prevalence Rates'!BB63","v":187.50188557441064},{"$f":"'Population 2016'!BC63*'Prevalence Rates'!BC63","v":0},61]
[null,"Female 20-24",{"$f":"'Population 2016'!C64*'Prevalence Rates'!C64","v":198.7534275015166},{"$f":"'Population 2016'!D64*'Prevalence Rates'!D64","v":248.19359048036193},{"$f":"'Population 2016'!E64*'Prevalence Rates'!E64","v":50.280686755924989},{"$f":"'Population 2016'!F64*'Prevalence Rates'!F64","v":82.129664472289335},{"$f":"'Population 2016'!G64*'Prevalence Rates'!G64","v":43.294881726482181},{"$f":"'Population 2016'!H64*'Prevalence Rates'!H64","v":1386.8545006611203},{"$f":"'Population 2016'!I64*'Prevalence Rates'!I64","v":65.402263563399458},{"$f":"'Population 2016'!J64*'Prevalence Rates'!J64","v":234.71023262771905},{"$f":"'Population 2016'!K64*'Prevalence Rates'!K64","v":155.79721959625985},{"$f":"'Population 2016'!L64*'Prevalence Rates'!L64","v":157.39062689978405},{"$f":"'Population 2016'!M64*'Prevalence Rates'!M64","v":157.39062689978405},{"$f":"'Population 2016'!N64*'Prevalence Rates'!N64","v":483.83992520799637},{"$f":"'Population 2016'!O64*'Prevalence Rates'!O64","v":482.19113916810301},{"$f":"'Population 2016'!P64*'Prevalence Rates'!P64","v":40.410129628374051},{"$f":"'Population 2016'!Q64*'Prevalence Rates'!Q64","v":33.212584041100705},{"$f":"'Population 2016'!R64*'Prevalence Rates'!R64","v":46.229941878678822},{"$f":"'Population 2016'!S64*'Prevalence Rates'!S64","v":1677.1651059253888},{"$f":"'Population 2016'!T64*'Prevalence Rates'!T64","v":602.6653659920014},{"$f":"'Population 2016'!U64*'Prevalence Rates'!U64","v":0},{"$f":"'Population 2016'!V64*'Prevalence Rates'!V64","v":211.87745113568644},{"$f":"'Population 2016'!W64*'Prevalence Rates'!W64","v":636.87891580857161},{"$f":"'Population 2016'!X64*'Prevalence Rates'!X64","v":636.87891580857161},{"$f":"'Population 2016'!Y64*'Prevalence Rates'!Y64","v":450.40587342358333},{"$f":"'Population 2016'!Z64*'Prevalence Rates'!Z64","v":3165.8179443243048},{"$f":"'Population 2016'!AA64*'Prevalence Rates'!AA64","v":5445.3759401464249},{"$f":"'Population 2016'!AB64*'Prevalence Rates'!AB64","v":260.66346042631017},{"$f":"'Population 2016'!AC64*'Prevalence Rates'!AC64","v":4095.1782422522838},{"$f":"'Population 2016'!AD64*'Prevalence Rates'!AD64","v":172.9169734921214},{"$f":"'Population 2016'!AE64*'Prevalence Rates'!AE64","v":129.61994428039117},{"$f":"'Population 2016'!AF64*'Prevalence Rates'!AF64","v":295.98100810742767},{"$f":"'Population 2016'!AG64*'Prevalence Rates'!AG64","v":129.61994428039117},{"$f":"'Population 2016'!AH64*'Prevalence Rates'!AH64","v":1386.902668130818},{"$f":"'Population 2016'!AI64*'Prevalence Rates'!AI64","v":978.35634605041639},{"$f":"'Population 2016'!AJ64*'Prevalence Rates'!AJ64","v":82.662354754771258},{"$f":"'Population 2016'!AK64*'Prevalence Rates'!AK64","v":9.6831268937115436},{"$f":"'Population 2016'!AL64*'Prevalence Rates'!AL64","v":732.06079273949604},{"$f":"'Population 2016'!AM64*'Prevalence Rates'!AM64","v":863.7015292322792},{"$f":"'Population 2016'!AN64*'Prevalence Rates'!AN64","v":0},{"$f":"'Population 2016'!AO64*'Prevalence Rates'!AO64","v":0},{"$f":"'Population 2016'!AP64*'Prevalence Rates'!AP64","v":61.868461887238766},{"$f":"'Population 2016'!AQ64*'Prevalence Rates'!AQ64","v":400.47038196429372},{"$f":"'Population 2016'!AR64*'Prevalence Rates'!AR64","v":9940.596006144393},{"$f":"'Population 2016'!AS64*'Prevalence Rates'!AS64","v":65.402263563399458},{"$f":"'Population 2016'!AT64*'Prevalence Rates'!AT64","v":0},{"$f":"'Population 2016'!AU64*'Prevalence Rates'!AU64","v":0},{"$f":"'Population 2016'!AV64*'Prevalence Rates'!AV64","v":214.77128413645522},{"$f":"'Population 2016'!AW64*'Prevalence Rates'!AW64","v":522.41018946467898},{"$f":"'Population 2016'!AX64*'Prevalence Rates'!AX64","v":95.963434057707957},{"$f":"'Population 2016'!AY64*'Prevalence Rates'!AY64","v":1265.3338627432261},{"$f":"'Population 2016'!AZ64*'Prevalence Rates'!AZ64","v":617.86015233059516},{"$f":"'Population 2016'!BA64*'Prevalence Rates'!BA64","v":346.28400188560568},{"$f":"'Population 2016'!BB64*'Prevalence Rates'!BB64","v":254.26194497225364},{"$f":"'Population 2016'!BC64*'Prevalence Rates'!BC64","v":0},62]
[null,"Female 25-29",{"$f":"'Population 2016'!C65*'Prevalence Rates'!C65","v":386.30102632424524},{"$f":"'Population 2016'!D65*'Prevalence Rates'!D65","v":472.82455125993579},{"$f":"'Population 2016'!E65*'Prevalence Rates'!E65","v":88.207900489254214},{"$f":"'Population 2016'!F65*'Prevalence Rates'!F65","v":113.13072792653097},{"$f":"'Population 2016'!G65*'Prevalence Rates'!G65","v":52.778979954780851},{"$f":"'Population 2016'!H65*'Prevalence Rates'!H65","v":2047.5383172780075},{"$f":"'Population 2016'!I65*'Prevalence Rates'!I65","v":90.640550806111747},{"$f":"'Population 2016'!J65*'Prevalence Rates'!J65","v":366.62102228283248},{"$f":"'Population 2016'!K65*'Prevalence Rates'!K65","v":222.40294075940022},{"$f":"'Population 2016'!L65*'Prevalence Rates'!L65","v":232.95122976894751},{"$f":"'Population 2016'!M65*'Prevalence Rates'!M65","v":232.95122976894751},{"$f":"'Population 2016'!N65*'Prevalence Rates'!N65","v":929.19567565839316},{"$f":"'Population 2016'!O65*'Prevalence Rates'!O65","v":731.19077949404652},{"$f":"'Population 2016'!P65*'Prevalence Rates'!P65","v":64.621573535468457},{"$f":"'Population 2016'!Q65*'Prevalence Rates'!Q65","v":55.89864884068146},{"$f":"'Population 2016'!R65*'Prevalence Rates'!R65","v":65.474149976965563},{"$f":"'Population 2016'!S65*'Prevalence Rates'!S65","v":3176.494635795556},{"$f":"'Population 2016'!T65*'Prevalence Rates'!T65","v":1337.9178778296255},{"$f":"'Population 2016'!U65*'Prevalence Rates'!U65","v":0},{"$f":"'Population 2016'!V65*'Prevalence Rates'!V65","v":359.04360502355951},{"$f":"'Population 2016'!W65*'Prevalence Rates'!W65","v":1151.8983322399743},{"$f":"'Population 2016'!X65*'Prevalence Rates'!X65","v":1151.8983322399743},{"$f":"'Population 2016'!Y65*'Prevalence Rates'!Y65","v":730.27713276675638},{"$f":"'Population 2016'!Z65*'Prevalence Rates'!Z65","v":6448.2033425912005},{"$f":"'Population 2016'!AA65*'Prevalence Rates'!AA65","v":9835.9235193420755},{"$f":"'Population 2016'!AB65*'Prevalence Rates'!AB65","v":488.18118821437901},{"$f":"'Population 2016'!AC65*'Prevalence Rates'!AC65","v":7745.5748512214313},{"$f":"'Population 2016'!AD65*'Prevalence Rates'!AD65","v":241.08570408088332},{"$f":"'Population 2016'!AE65*'Prevalence Rates'!AE65","v":188.55185394047675},{"$f":"'Population 2016'!AF65*'Prevalence Rates'!AF65","v":440.18930699736006},{"$f":"'Population 2016'!AG65*'Prevalence Rates'!AG65","v":188.55185394047675},{"$f":"'Population 2016'!AH65*'Prevalence Rates'!AH65","v":2182.9298462620218},{"$f":"'Population 2016'!AI65*'Prevalence Rates'!AI65","v":1930.7938280946985},{"$f":"'Population 2016'!AJ65*'Prevalence Rates'!AJ65","v":125.97355818127033},{"$f":"'Population 2016'!AK65*'Prevalence Rates'!AK65","v":9.3806889964818527},{"$f":"'Population 2016'!AL65*'Prevalence Rates'!AL65","v":1081.4295841500866},{"$f":"'Population 2016'!AM65*'Prevalence Rates'!AM65","v":1382.9785168796748},{"$f":"'Population 2016'!AN65*'Prevalence Rates'!AN65","v":0},{"$f":"'Population 2016'!AO65*'Prevalence Rates'!AO65","v":0},{"$f":"'Population 2016'!AP65*'Prevalence Rates'!AP65","v":112.19032720785938},{"$f":"'Population 2016'!AQ65*'Prevalence Rates'!AQ65","v":670.11668655608798},{"$f":"'Population 2016'!AR65*'Prevalence Rates'!AR65","v":17577.717948717949},{"$f":"'Population 2016'!AS65*'Prevalence Rates'!AS65","v":90.640550806111747},{"$f":"'Population 2016'!AT65*'Prevalence Rates'!AT65","v":0},{"$f":"'Population 2016'!AU65*'Prevalence Rates'!AU65","v":0},{"$f":"'Population 2016'!AV65*'Prevalence Rates'!AV65","v":300.95636977773836},{"$f":"'Population 2016'!AW65*'Prevalence Rates'!AW65","v":798.5690877550403},{"$f":"'Population 2016'!AX65*'Prevalence Rates'!AX65","v":160.97390915540663},{"$f":"'Population 2016'!AY65*'Prevalence Rates'!AY65","v":2314.4925619774563},{"$f":"'Population 2016'!AZ65*'Prevalence Rates'!AZ65","v":1140.3650340504789},{"$f":"'Population 2016'!BA65*'Prevalence Rates'!BA65","v":530.39527934072009},{"$f":"'Population 2016'!BB65*'Prevalence Rates'!BB65","v":396.36448808454747},{"$f":"'Population 2016'!BC65*'Prevalence Rates'!BC65","v":0},63]
[null,"Female 30-34",{"$f":"'Population 2016'!C66*'Prevalence Rates'!C66","v":339.46530538289642},{"$f":"'Population 2016'!D66*'Prevalence Rates'!D66","v":425.1322403369478},{"$f":"'Population 2016'!E66*'Prevalence Rates'!E66","v":87.096036197372854},{"$f":"'Population 2016'!F66*'Prevalence Rates'!F66","v":125.6167279986899},{"$f":"'Population 2016'!G66*'Prevalence Rates'!G66","v":61.677761458784602},{"$f":"'Population 2016'!H66*'Prevalence Rates'!H66","v":1817.234351982401},{"$f":"'Population 2016'!I66*'Prevalence Rates'!I66","v":91.973500082672203},{"$f":"'Population 2016'!J66*'Prevalence Rates'!J66","v":320.70300469908517},{"$f":"'Population 2016'!K66*'Prevalence Rates'!K66","v":212.52991301540817},{"$f":"'Population 2016'!L66*'Prevalence Rates'!L66","v":198.74807301715759},{"$f":"'Population 2016'!M66*'Prevalence Rates'!M66","v":198.74807301715759},{"$f":"'Population 2016'!N66*'Prevalence Rates'!N66","v":744.88690218372437},{"$f":"'Population 2016'!O66*'Prevalence Rates'!O66","v":649.83146308814696},{"$f":"'Population 2016'!P66*'Prevalence Rates'!P66","v":55.534164757043207},{"$f":"'Population 2016'!Q66*'Prevalence Rates'!Q66","v":50.594397490835775},{"$f":"'Population 2016'!R66*'Prevalence Rates'!R66","v":63.688491341230147},{"$f":"'Population 2016'!S66*'Prevalence Rates'!S66","v":3035.536452454473},{"$f":"'Population 2016'!T66*'Prevalence Rates'!T66","v":1317.3517841234684},{"$f":"'Population 2016'!U66*'Prevalence Rates'!U66","v":0},{"$f":"'Population 2016'!V66*'Prevalence Rates'!V66","v":351.79833048272531},{"$f":"'Population 2016'!W66*'Prevalence Rates'!W66","v":1016.1597687961776},{"$f":"'Population 2016'!X66*'Prevalence Rates'!X66","v":1016.1597687961776},{"$f":"'Population 2016'!Y66*'Prevalence Rates'!Y66","v":674.72089758775337},{"$f":"'Population 2016'!Z66*'Prevalence Rates'!Z66","v":5459.9554964563813},{"$f":"'Population 2016'!AA66*'Prevalence Rates'!AA66","v":8946.8869747349563},{"$f":"'Population 2016'!AB66*'Prevalence Rates'!AB66","v":443.59498062204409},{"$f":"'Population 2016'!AC66*'Prevalence Rates'!AC66","v":6730.8460657138494},{"$f":"'Population 2016'!AD66*'Prevalence Rates'!AD66","v":269.06044679691803},{"$f":"'Population 2016'!AE66*'Prevalence Rates'!AE66","v":207.56548627060886},{"$f":"'Population 2016'!AF66*'Prevalence Rates'!AF66","v":430.56136939899261},{"$f":"'Population 2016'!AG66*'Prevalence Rates'!AG66","v":207.56548627060886},{"$f":"'Population 2016'!AH66*'Prevalence Rates'!AH66","v":2276.5265991509468},{"$f":"'Population 2016'!AI66*'Prevalence Rates'!AI66","v":1917.4989660086637},{"$f":"'Population 2016'!AJ66*'Prevalence Rates'!AJ66","v":110.64739828384576},{"$f":"'Population 2016'!AK66*'Prevalence Rates'!AK66","v":13.459249429734832},{"$f":"'Population 2016'!AL66*'Prevalence Rates'!AL66","v":938.90271075184444},{"$f":"'Population 2016'!AM66*'Prevalence Rates'!AM66","v":1398.2251205882164},{"$f":"'Population 2016'!AN66*'Prevalence Rates'!AN66","v":0},{"$f":"'Population 2016'!AO66*'Prevalence Rates'!AO66","v":0},{"$f":"'Population 2016'!AP66*'Prevalence Rates'!AP66","v":100.71949574770419},{"$f":"'Population 2016'!AQ66*'Prevalence Rates'!AQ66","v":571.66933809636066},{"$f":"'Population 2016'!AR66*'Prevalence Rates'!AR66","v":16062.954822954824},{"$f":"'Population 2016'!AS66*'Prevalence Rates'!AS66","v":91.973500082672203},{"$f":"'Population 2016'!AT66*'Prevalence Rates'!AT66","v":0},{"$f":"'Population 2016'!AU66*'Prevalence Rates'!AU66","v":0},{"$f":"'Population 2016'!AV66*'Prevalence Rates'!AV66","v":282.33178430626089},{"$f":"'Population 2016'!AW66*'Prevalence Rates'!AW66","v":877.1168668784868},{"$f":"'Population 2016'!AX66*'Prevalence Rates'!AX66","v":131.30636275816445},{"$f":"'Population 2016'!AY66*'Prevalence Rates'!AY66","v":1986.0723248195609},{"$f":"'Population 2016'!AZ66*'Prevalence Rates'!AZ66","v":956.88803744688062},{"$f":"'Population 2016'!BA66*'Prevalence Rates'!BA66","v":543.79730401012569},{"$f":"'Population 2016'!BB66*'Prevalence Rates'!BB66","v":424.81353960564979},{"$f":"'Population 2016'!BC66*'Prevalence Rates'!BC66","v":0},64]
[null,"Female 35-39",{"$f":"'Population 2016'!C67*'Prevalence Rates'!C67","v":224.64117995663142},{"$f":"'Population 2016'!D67*'Prevalence Rates'!D67","v":282.68282215072838},{"$f":"'Population 2016'!E67*'Prevalence Rates'!E67","v":58.980186856807762},{"$f":"'Population 2016'!F67*'Prevalence Rates'!F67","v":104.32126060514173},{"$f":"'Population 2016'!G67*'Prevalence Rates'!G67","v":50.251957176125309},{"$f":"'Population 2016'!H67*'Prevalence Rates'!H67","v":1510.2308328796701},{"$f":"'Population 2016'!I67*'Prevalence Rates'!I67","v":78.929757108185584},{"$f":"'Population 2016'!J67*'Prevalence Rates'!J67","v":258.92115688742376},{"$f":"'Population 2016'!K67*'Prevalence Rates'!K67","v":202.88800722352508},{"$f":"'Population 2016'!L67*'Prevalence Rates'!L67","v":154.37921988419956},{"$f":"'Population 2016'!M67*'Prevalence Rates'!M67","v":154.37921988419956},{"$f":"'Population 2016'!N67*'Prevalence Rates'!N67","v":539.59178538867661},{"$f":"'Population 2016'!O67*'Prevalence Rates'!O67","v":528.37709257930624},{"$f":"'Population 2016'!P67*'Prevalence Rates'!P67","v":47.021926309666455},{"$f":"'Population 2016'!Q67*'Prevalence Rates'!Q67","v":54.738880934834967},{"$f":"'Population 2016'!R67*'Prevalence Rates'!R67","v":59.201514500895847},{"$f":"'Population 2016'!S67*'Prevalence Rates'!S67","v":2409.9927217406289},{"$f":"'Population 2016'!T67*'Prevalence Rates'!T67","v":976.32250278071331},{"$f":"'Population 2016'!U67*'Prevalence Rates'!U67","v":0},{"$f":"'Population 2016'!V67*'Prevalence Rates'!V67","v":256.96773782340404},{"$f":"'Population 2016'!W67*'Prevalence Rates'!W67","v":854.38929705376859},{"$f":"'Population 2016'!X67*'Prevalence Rates'!X67","v":854.38929705376859},{"$f":"'Population 2016'!Y67*'Prevalence Rates'!Y67","v":518.9829032991837},{"$f":"'Population 2016'!Z67*'Prevalence Rates'!Z67","v":4187.4757413141324},{"$f":"'Population 2016'!AA67*'Prevalence Rates'!AA67","v":7076.9081868115372},{"$f":"'Population 2016'!AB67*'Prevalence Rates'!AB67","v":295.05850809217389},{"$f":"'Population 2016'!AC67*'Prevalence Rates'!AC67","v":5243.1676751646619},{"$f":"'Population 2016'!AD67*'Prevalence Rates'!AD67","v":203.28270880337197},{"$f":"'Population 2016'!AE67*'Prevalence Rates'!AE67","v":153.04935839903689},{"$f":"'Population 2016'!AF67*'Prevalence Rates'!AF67","v":353.82594537208371},{"$f":"'Population 2016'!AG67*'Prevalence Rates'!AG67","v":153.04935839903689},{"$f":"'Population 2016'!AH67*'Prevalence Rates'!AH67","v":1875.4853576738246},{"$f":"'Population 2016'!AI67*'Prevalence Rates'!AI67","v":1473.9793098472676},{"$f":"'Population 2016'!AJ67*'Prevalence Rates'!AJ67","v":96.839981081423048},{"$f":"'Population 2016'!AK67*'Prevalence Rates'!AK67","v":9.056602621961547},{"$f":"'Population 2016'!AL67*'Prevalence Rates'!AL67","v":811.74062783077909},{"$f":"'Population 2016'!AM67*'Prevalence Rates'!AM67","v":1157.767870352777},{"$f":"'Population 2016'!AN67*'Prevalence Rates'!AN67","v":0},{"$f":"'Population 2016'!AO67*'Prevalence Rates'!AO67","v":0},{"$f":"'Population 2016'!AP67*'Prevalence Rates'!AP67","v":76.621371626584747},{"$f":"'Population 2016'!AQ67*'Prevalence Rates'!AQ67","v":466.77980955663639},{"$f":"'Population 2016'!AR67*'Prevalence Rates'!AR67","v":12626.798751950078},{"$f":"'Population 2016'!AS67*'Prevalence Rates'!AS67","v":78.929757108185584},{"$f":"'Population 2016'!AT67*'Prevalence Rates'!AT67","v":0},{"$f":"'Population 2016'!AU67*'Prevalence Rates'!AU67","v":0},{"$f":"'Population 2016'!AV67*'Prevalence Rates'!AV67","v":220.09867270533272},{"$f":"'Population 2016'!AW67*'Prevalence Rates'!AW67","v":716.70739153507338},{"$f":"'Population 2016'!AX67*'Prevalence Rates'!AX67","v":89.463875455581672},{"$f":"'Population 2016'!AY67*'Prevalence Rates'!AY67","v":1561.4489157750579},{"$f":"'Population 2016'!AZ67*'Prevalence Rates'!AZ67","v":708.93360853610784},{"$f":"'Population 2016'!BA67*'Prevalence Rates'!BA67","v":416.71121454790023},{"$f":"'Population 2016'!BB67*'Prevalence Rates'!BB67","v":336.84741597001778},{"$f":"'Population 2016'!BC67*'Prevalence Rates'!BC67","v":0},65]
[null,"Female 40-44",{"$f":"'Population 2016'!C68*'Prevalence Rates'!C68","v":229.14787029526755},{"$f":"'Population 2016'!D68*'Prevalence Rates'!D68","v":285.78543849140709},{"$f":"'Population 2016'!E68*'Prevalence Rates'!E68","v":57.608554604323864},{"$f":"'Population 2016'!F68*'Prevalence Rates'!F68","v":89.268192799701822},{"$f":"'Population 2016'!G68*'Prevalence Rates'!G68","v":59.053147416011662},{"$f":"'Population 2016'!H68*'Prevalence Rates'!H68","v":1714.4546997525617},{"$f":"'Population 2016'!I68*'Prevalence Rates'!I68","v":95.784548990662728},{"$f":"'Population 2016'!J68*'Prevalence Rates'!J68","v":258.92115688742376},{"$f":"'Population 2016'!K68*'Prevalence Rates'!K68","v":195.6763481989922},{"$f":"'Population 2016'!L68*'Prevalence Rates'!L68","v":156.08979295770868},{"$f":"'Population 2016'!M68*'Prevalence Rates'!M68","v":156.08979295770868},{"$f":"'Population 2016'!N68*'Prevalence Rates'!N68","v":446.01739704973903},{"$f":"'Population 2016'!O68*'Prevalence Rates'!O68","v":594.48454617142033},{"$f":"'Population 2016'!P68*'Prevalence Rates'!P68","v":54.807013447028453},{"$f":"'Population 2016'!Q68*'Prevalence Rates'!Q68","v":40.016009510982805},{"$f":"'Population 2016'!R68*'Prevalence Rates'!R68","v":55.346532161302626},{"$f":"'Population 2016'!S68*'Prevalence Rates'!S68","v":2224.4119573561757},{"$f":"'Population 2016'!T68*'Prevalence Rates'!T68","v":755.94070466897892},{"$f":"'Population 2016'!U68*'Prevalence Rates'!U68","v":0},{"$f":"'Population 2016'!V68*'Prevalence Rates'!V68","v":294.95427297990722},{"$f":"'Population 2016'!W68*'Prevalence Rates'!W68","v":879.12060189838235},{"$f":"'Population 2016'!X68*'Prevalence Rates'!X68","v":879.12060189838235},{"$f":"'Population 2016'!Y68*'Prevalence Rates'!Y68","v":555.14154820117597},{"$f":"'Population 2016'!Z68*'Prevalence Rates'!Z68","v":3749.2613348976806},{"$f":"'Population 2016'!AA68*'Prevalence Rates'!AA68","v":6692.3212432166583},{"$f":"'Population 2016'!AB68*'Prevalence Rates'!AB68","v":299.60324814572635},{"$f":"'Population 2016'!AC68*'Prevalence Rates'!AC68","v":4800.6086499888534},{"$f":"'Population 2016'!AD68*'Prevalence Rates'!AD68","v":213.46138520983553},{"$f":"'Population 2016'!AE68*'Prevalence Rates'!AE68","v":154.22215041742029},{"$f":"'Population 2016'!AF68*'Prevalence Rates'!AF68","v":355.96386649215674},{"$f":"'Population 2016'!AG68*'Prevalence Rates'!AG68","v":154.22215041742029},{"$f":"'Population 2016'!AH68*'Prevalence Rates'!AH68","v":1919.301884609913},{"$f":"'Population 2016'!AI68*'Prevalence Rates'!AI68","v":1258.5407507303446},{"$f":"'Population 2016'!AJ68*'Prevalence Rates'!AJ68","v":98.22340938258624},{"$f":"'Population 2016'!AK68*'Prevalence Rates'!AK68","v":10.566036392288471},{"$f":"'Population 2016'!AL68*'Prevalence Rates'!AL68","v":942.5837758060311},{"$f":"'Population 2016'!AM68*'Prevalence Rates'!AM68","v":1192.1740477778224},{"$f":"'Population 2016'!AN68*'Prevalence Rates'!AN68","v":0},{"$f":"'Population 2016'!AO68*'Prevalence Rates'!AO68","v":0},{"$f":"'Population 2016'!AP68*'Prevalence Rates'!AP68","v":62.902004409662474},{"$f":"'Population 2016'!AQ68*'Prevalence Rates'!AQ68","v":421.66249057821381},{"$f":"'Population 2016'!AR68*'Prevalence Rates'!AR68","v":12131.283931357255},{"$f":"'Population 2016'!AS68*'Prevalence Rates'!AS68","v":95.784548990662728},{"$f":"'Population 2016'!AT68*'Prevalence Rates'!AT68","v":0},{"$f":"'Population 2016'!AU68*'Prevalence Rates'!AU68","v":0},{"$f":"'Population 2016'!AV68*'Prevalence Rates'!AV68","v":238.11386655665888},{"$f":"'Population 2016'!AW68*'Prevalence Rates'!AW68","v":726.05123488198171},{"$f":"'Population 2016'!AX68*'Prevalence Rates'!AX68","v":93.276256511927471},{"$f":"'Population 2016'!AY68*'Prevalence Rates'!AY68","v":1446.344300658687},{"$f":"'Population 2016'!AZ68*'Prevalence Rates'!AZ68","v":588.1098150063068},{"$f":"'Population 2016'!BA68*'Prevalence Rates'!BA68","v":415.20819844493218},{"$f":"'Population 2016'!BB68*'Prevalence Rates'!BB68","v":357.83368581397878},{"$f":"'Population 2016'!BC68*'Prevalence Rates'!BC68","v":0},66]
[null,"Female 45-49",{"$f":"'Population 2016'!C69*'Prevalence Rates'!C69","v":233.87493160652292},{"$f":"'Population 2016'!D69*'Prevalence Rates'!D69","v":309.31111041194407},{"$f":"'Population 2016'!E69*'Prevalence Rates'!E69","v":76.333755818109481},{"$f":"'Population 2016'!F69*'Prevalence Rates'!F69","v":120.86846554389878},{"$f":"'Population 2016'!G69*'Prevalence Rates'!G69","v":77.065584801226407},{"$f":"'Population 2016'!H69*'Prevalence Rates'!H69","v":2321.0618745617412},{"$f":"'Population 2016'!I69*'Prevalence Rates'!I69","v":105.9859403948806},{"$f":"'Population 2016'!J69*'Prevalence Rates'!J69","v":373.09628841969607},{"$f":"'Population 2016'!K69*'Prevalence Rates'!K69","v":257.7322629183239},{"$f":"'Population 2016'!L69*'Prevalence Rates'!L69","v":222.44875572681775},{"$f":"'Population 2016'!M69*'Prevalence Rates'!M69","v":222.44875572681775},{"$f":"'Population 2016'!N69*'Prevalence Rates'!N69","v":575.7843749832864},{"$f":"'Population 2016'!O69*'Prevalence Rates'!O69","v":836.85797937040809},{"$f":"'Population 2016'!P69*'Prevalence Rates'!P69","v":74.625763474987124},{"$f":"'Population 2016'!Q69*'Prevalence Rates'!Q69","v":65.59975326661457},{"$f":"'Population 2016'!R69*'Prevalence Rates'!R69","v":76.93293957840153},{"$f":"'Population 2016'!S69*'Prevalence Rates'!S69","v":2829.6745208941893},{"$f":"'Population 2016'!T69*'Prevalence Rates'!T69","v":915.14232364679162},{"$f":"'Population 2016'!U69*'Prevalence Rates'!U69","v":0},{"$f":"'Population 2016'!V69*'Prevalence Rates'!V69","v":333.72548778453341},{"$f":"'Population 2016'!W69*'Prevalence Rates'!W69","v":1211.3203170268441},{"$f":"'Population 2016'!X69*'Prevalence Rates'!X69","v":1211.3203170268441},{"$f":"'Population 2016'!Y69*'Prevalence Rates'!Y69","v":713.0391872136961},{"$f":"'Population 2016'!Z69*'Prevalence Rates'!Z69","v":4998.0780939982342},{"$f":"'Population 2016'!AA69*'Prevalence Rates'!AA69","v":9036.1653869672282},{"$f":"'Population 2016'!AB69*'Prevalence Rates'!AB69","v":324.78941123069109},{"$f":"'Population 2016'!AC69*'Prevalence Rates'!AC69","v":6567.3321724257521},{"$f":"'Population 2016'!AD69*'Prevalence Rates'!AD69","v":280.423119649162},{"$f":"'Population 2016'!AE69*'Prevalence Rates'!AE69","v":203.12983141629192},{"$f":"'Population 2016'!AF69*'Prevalence Rates'!AF69","v":543.49969241430165},{"$f":"'Population 2016'!AG69*'Prevalence Rates'!AG69","v":203.12983141629192},{"$f":"'Population 2016'!AH69*'Prevalence Rates'!AH69","v":2512.5262409182783},{"$f":"'Population 2016'!AI69*'Prevalence Rates'!AI69","v":1529.9760879890805},{"$f":"'Population 2016'!AJ69*'Prevalence Rates'!AJ69","v":122.55587114900381},{"$f":"'Population 2016'!AK69*'Prevalence Rates'!AK69","v":12.000379072773589},{"$f":"'Population 2016'!AL69*'Prevalence Rates'!AL69","v":1236.6279161537084},{"$f":"'Population 2016'!AM69*'Prevalence Rates'!AM69","v":1556.8207702165546},{"$f":"'Population 2016'!AN69*'Prevalence Rates'!AN69","v":0},{"$f":"'Population 2016'!AO69*'Prevalence Rates'!AO69","v":0},{"$f":"'Population 2016'!AP69*'Prevalence Rates'!AP69","v":70.264987739702804},{"$f":"'Population 2016'!AQ69*'Prevalence Rates'!AQ69","v":604.91352604279871},{"$f":"'Population 2016'!AR69*'Prevalence Rates'!AR69","v":16043.14992503748},{"$f":"'Population 2016'!AS69*'Prevalence Rates'!AS69","v":105.9859403948806},{"$f":"'Population 2016'!AT69*'Prevalence Rates'!AT69","v":0},{"$f":"'Population 2016'!AU69*'Prevalence Rates'!AU69","v":0},{"$f":"'Population 2016'!AV69*'Prevalence Rates'!AV69","v":326.48259271505378},{"$f":"'Population 2016'!AW69*'Prevalence Rates'!AW69","v":954.31847090879546},{"$f":"'Population 2016'!AX69*'Prevalence Rates'!AX69","v":147.21704043151252},{"$f":"'Population 2016'!AY69*'Prevalence Rates'!AY69","v":1925.9345371694699},{"$f":"'Population 2016'!AZ69*'Prevalence Rates'!AZ69","v":751.3104915325041},{"$f":"'Population 2016'!BA69*'Prevalence Rates'!BA69","v":586.79878120469516},{"$f":"'Population 2016'!BB69*'Prevalence Rates'!BB69","v":419.74124991627343},{"$f":"'Population 2016'!BC69*'Prevalence Rates'!BC69","v":0},67]
[null,"Female 50-54",{"$f":"'Population 2016'!C70*'Prevalence Rates'!C70","v":246.86798336244087},{"$f":"'Population 2016'!D70*'Prevalence Rates'!D70","v":317.92483753734001},{"$f":"'Population 2016'!E70*'Prevalence Rates'!E70","v":72.049718501787012},{"$f":"'Population 2016'!F70*'Prevalence Rates'!F70","v":110.92862462745973},{"$f":"'Population 2016'!G70*'Prevalence Rates'!G70","v":75.130883927555445},{"$f":"'Population 2016'!H70*'Prevalence Rates'!H70","v":2363.9562418534369},{"$f":"'Population 2016'!I70*'Prevalence Rates'!I70","v":102.71765148402525},{"$f":"'Population 2016'!J70*'Prevalence Rates'!J70","v":343.84128413424128},{"$f":"'Population 2016'!K70*'Prevalence Rates'!K70","v":249.54161896964837},{"$f":"'Population 2016'!L70*'Prevalence Rates'!L70","v":229.73419532485764},{"$f":"'Population 2016'!M70*'Prevalence Rates'!M70","v":229.73419532485764},{"$f":"'Population 2016'!N70*'Prevalence Rates'!N70","v":652.34586746740274},{"$f":"'Population 2016'!O70*'Prevalence Rates'!O70","v":858.23156234057569},{"$f":"'Population 2016'!P70*'Prevalence Rates'!P70","v":74.97944007913398},{"$f":"'Population 2016'!Q70*'Prevalence Rates'!Q70","v":53.594569662266807},{"$f":"'Population 2016'!R70*'Prevalence Rates'!R70","v":80.68576589929917},{"$f":"'Population 2016'!S70*'Prevalence Rates'!S70","v":2721.383457851171},{"$f":"'Population 2016'!T70*'Prevalence Rates'!T70","v":822.40999716304634},{"$f":"'Population 2016'!U70*'Prevalence Rates'!U70","v":0},{"$f":"'Population 2016'!V70*'Prevalence Rates'!V70","v":355.29709726110019},{"$f":"'Population 2016'!W70*'Prevalence Rates'!W70","v":1213.953622063859},{"$f":"'Population 2016'!X70*'Prevalence Rates'!X70","v":1213.953622063859},{"$f":"'Population 2016'!Y70*'Prevalence Rates'!Y70","v":702.57107943980782},{"$f":"'Population 2016'!Z70*'Prevalence Rates'!Z70","v":5243.1006891846664},{"$f":"'Population 2016'!AA70*'Prevalence Rates'!AA70","v":9249.4070112625577},{"$f":"'Population 2016'!AB70*'Prevalence Rates'!AB70","v":333.12752569993864},{"$f":"'Population 2016'!AC70*'Prevalence Rates'!AC70","v":6766.0982274636763},{"$f":"'Population 2016'!AD70*'Prevalence Rates'!AD70","v":262.58702016617644},{"$f":"'Population 2016'!AE70*'Prevalence Rates'!AE70","v":187.1458446818952},{"$f":"'Population 2016'!AF70*'Prevalence Rates'!AF70","v":535.40587718847439},{"$f":"'Population 2016'!AG70*'Prevalence Rates'!AG70","v":187.1458446818952},{"$f":"'Population 2016'!AH70*'Prevalence Rates'!AH70","v":2531.33492144917},{"$f":"'Population 2016'!AI70*'Prevalence Rates'!AI70","v":1426.1947723415039},{"$f":"'Population 2016'!AJ70*'Prevalence Rates'!AJ70","v":124.51990754562246},{"$f":"'Population 2016'!AK70*'Prevalence Rates'!AK70","v":11.571794105888818},{"$f":"'Population 2016'!AL70*'Prevalence Rates'!AL70","v":1283.249138251869},{"$f":"'Population 2016'!AM70*'Prevalence Rates'!AM70","v":1579.4853296223175},{"$f":"'Population 2016'!AN70*'Prevalence Rates'!AN70","v":0},{"$f":"'Population 2016'!AO70*'Prevalence Rates'!AO70","v":0},{"$f":"'Population 2016'!AP70*'Prevalence Rates'!AP70","v":76.144903031728148},{"$f":"'Population 2016'!AQ70*'Prevalence Rates'!AQ70","v":579.45366000263823},{"$f":"'Population 2016'!AR70*'Prevalence Rates'!AR70","v":16250.662668665667},{"$f":"'Population 2016'!AS70*'Prevalence Rates'!AS70","v":102.71765148402525},{"$f":"'Population 2016'!AT70*'Prevalence Rates'!AT70","v":0},{"$f":"'Population 2016'!AU70*'Prevalence Rates'!AU70","v":0},{"$f":"'Population 2016'!AV70*'Prevalence Rates'!AV70","v":309.58022415487392},{"$f":"'Population 2016'!AW70*'Prevalence Rates'!AW70","v":950.38799944706238},{"$f":"'Population 2016'!AX70*'Prevalence Rates'!AX70","v":129.32006688885807},{"$f":"'Population 2016'!AY70*'Prevalence Rates'!AY70","v":2011.5316277103352},{"$f":"'Population 2016'!AZ70*'Prevalence Rates'!AZ70","v":824.72621992883103},{"$f":"'Population 2016'!BA70*'Prevalence Rates'!BA70","v":605.14957945327831},{"$f":"'Population 2016'!BB70*'Prevalence Rates'!BB70","v":419.33726411269663},{"$f":"'Population 2016'!BC70*'Prevalence Rates'!BC70","v":0},68]
[null,"Female 55-59",{"$f":"'Population 2016'!C71*'Prevalence Rates'!C71","v":281.78649683267867},{"$f":"'Population 2016'!D71*'Prevalence Rates'!D71","v":362.57023922246742},{"$f":"'Population 2016'!E71*'Prevalence Rates'!E71","v":81.918759775218021},{"$f":"'Population 2016'!F71*'Prevalence Rates'!F71","v":136.75350222897427},{"$f":"'Population 2016'!G71*'Prevalence Rates'!G71","v":95.124661588687161},{"$f":"'Population 2016'!H71*'Prevalence Rates'!H71","v":2741.2634751296705},{"$f":"'Population 2016'!I71*'Prevalence Rates'!I71","v":120.44331384594871},{"$f":"'Population 2016'!J71*'Prevalence Rates'!J71","v":419.68321548438161},{"$f":"'Population 2016'!K71*'Prevalence Rates'!K71","v":302.66799204420585},{"$f":"'Population 2016'!L71*'Prevalence Rates'!L71","v":246.72968912084315},{"$f":"'Population 2016'!M71*'Prevalence Rates'!M71","v":246.72968912084315},{"$f":"'Population 2016'!N71*'Prevalence Rates'!N71","v":771.87734990651006},{"$f":"'Population 2016'!O71*'Prevalence Rates'!O71","v":919.30085122449907},{"$f":"'Population 2016'!P71*'Prevalence Rates'!P71","v":99.189997028010865},{"$f":"'Population 2016'!Q71*'Prevalence Rates'!Q71","v":77.706442447399596},{"$f":"'Population 2016'!R71*'Prevalence Rates'!R71","v":80.674729064176077},{"$f":"'Population 2016'!S71*'Prevalence Rates'!S71","v":3338.2911398197225},{"$f":"'Population 2016'!T71*'Prevalence Rates'!T71","v":1072.3685406339998},{"$f":"'Population 2016'!U71*'Prevalence Rates'!U71","v":0},{"$f":"'Population 2016'!V71*'Prevalence Rates'!V71","v":428.61446855890478},{"$f":"'Population 2016'!W71*'Prevalence Rates'!W71","v":1420.1429314025756},{"$f":"'Population 2016'!X71*'Prevalence Rates'!X71","v":1420.1429314025756},{"$f":"'Population 2016'!Y71*'Prevalence Rates'!Y71","v":852.73061121509249},{"$f":"'Population 2016'!Z71*'Prevalence Rates'!Z71","v":6006.0751143370217},{"$f":"'Population 2016'!AA71*'Prevalence Rates'!AA71","v":10871.354462794759},{"$f":"'Population 2016'!AB71*'Prevalence Rates'!AB71","v":379.76290414848626},{"$f":"'Population 2016'!AC71*'Prevalence Rates'!AC71","v":7873.26656691465},{"$f":"'Population 2016'!AD71*'Prevalence Rates'!AD71","v":322.90609968344381},{"$f":"'Population 2016'!AE71*'Prevalence Rates'!AE71","v":227.31037530192594},{"$f":"'Population 2016'!AF71*'Prevalence Rates'!AF71","v":676.16443639765134},{"$f":"'Population 2016'!AG71*'Prevalence Rates'!AG71","v":227.31037530192594},{"$f":"'Population 2016'!AH71*'Prevalence Rates'!AH71","v":3048.5544496238849},{"$f":"'Population 2016'!AI71*'Prevalence Rates'!AI71","v":1817.0052450290634},{"$f":"'Population 2016'!AJ71*'Prevalence Rates'!AJ71","v":161.08937832224305},{"$f":"'Population 2016'!AK71*'Prevalence Rates'!AK71","v":13.040386212189977},{"$f":"'Population 2016'!AL71*'Prevalence Rates'!AL71","v":1511.8090633868644},{"$f":"'Population 2016'!AM71*'Prevalence Rates'!AM71","v":1846.0132836737039},{"$f":"'Population 2016'!AN71*'Prevalence Rates'!AN71","v":0},{"$f":"'Population 2016'!AO71*'Prevalence Rates'!AO71","v":0},{"$f":"'Population 2016'!AP71*'Prevalence Rates'!AP71","v":90.619712334487389},{"$f":"'Population 2016'!AQ71*'Prevalence Rates'!AQ71","v":704.73779102594062},{"$f":"'Population 2016'!AR71*'Prevalence Rates'!AR71","v":19236.818950930625},{"$f":"'Population 2016'!AS71*'Prevalence Rates'!AS71","v":120.44331384594871},{"$f":"'Population 2016'!AT71*'Prevalence Rates'!AT71","v":0},{"$f":"'Population 2016'!AU71*'Prevalence Rates'!AU71","v":0},{"$f":"'Population 2016'!AV71*'Prevalence Rates'!AV71","v":402.48134606847742},{"$f":"'Population 2016'!AW71*'Prevalence Rates'!AW71","v":1201.1086966960079},{"$f":"'Population 2016'!AX71*'Prevalence Rates'!AX71","v":158.85720660679965},{"$f":"'Population 2016'!AY71*'Prevalence Rates'!AY71","v":2371.7804070502225},{"$f":"'Population 2016'!AZ71*'Prevalence Rates'!AZ71","v":981.19813170384975},{"$f":"'Population 2016'!BA71*'Prevalence Rates'!BA71","v":696.10582168553185},{"$f":"'Population 2016'!BB71*'Prevalence Rates'!BB71","v":497.55542881478095},{"$f":"'Population 2016'!BC71*'Prevalence Rates'!BC71","v":0},69]
[null,"Female 60-64",{"$f":"'Population 2016'!C72*'Prevalence Rates'!C72","v":229.17940592676268},{"$f":"'Population 2016'!D72*'Prevalence Rates'!D72","v":292.64597880099154},{"$f":"'Population 2016'!E72*'Prevalence Rates'!E72","v":64.401540703787759},{"$f":"'Population 2016'!F72*'Prevalence Rates'!F72","v":109.9287767917524},{"$f":"'Population 2016'!G72*'Prevalence Rates'!G72","v":85.31359783738759},{"$f":"'Population 2016'!H72*'Prevalence Rates'!H72","v":2482.0589042638439},{"$f":"'Population 2016'!I72*'Prevalence Rates'!I72","v":114.88439166844339},{"$f":"'Population 2016'!J72*'Prevalence Rates'!J72","v":321.17074813714953},{"$f":"'Population 2016'!K72*'Prevalence Rates'!K72","v":244.15699596883431},{"$f":"'Population 2016'!L72*'Prevalence Rates'!L72","v":221.67120506950752},{"$f":"'Population 2016'!M72*'Prevalence Rates'!M72","v":221.67120506950752},{"$f":"'Population 2016'!N72*'Prevalence Rates'!N72","v":615.09698944017885},{"$f":"'Population 2016'!O72*'Prevalence Rates'!O72","v":834.47577268091356},{"$f":"'Population 2016'!P72*'Prevalence Rates'!P72","v":76.264007148895146},{"$f":"'Population 2016'!Q72*'Prevalence Rates'!Q72","v":55.018430053998252},{"$f":"'Population 2016'!R72*'Prevalence Rates'!R72","v":71.15924820019633},{"$f":"'Population 2016'!S72*'Prevalence Rates'!S72","v":2703.2364129582593},{"$f":"'Population 2016'!T72*'Prevalence Rates'!T72","v":802.06721192353939},{"$f":"'Population 2016'!U72*'Prevalence Rates'!U72","v":0},{"$f":"'Population 2016'!V72*'Prevalence Rates'!V72","v":363.14724555447674},{"$f":"'Population 2016'!W72*'Prevalence Rates'!W72","v":1211.1276185223928},{"$f":"'Population 2016'!X72*'Prevalence Rates'!X72","v":1211.1276185223928},{"$f":"'Population 2016'!Y72*'Prevalence Rates'!Y72","v":686.01937991570207},{"$f":"'Population 2016'!Z72*'Prevalence Rates'!Z72","v":4622.784914608299},{"$f":"'Population 2016'!AA72*'Prevalence Rates'!AA72","v":8772.2729220212477},{"$f":"'Population 2016'!AB72*'Prevalence Rates'!AB72","v":316.20645684286131},{"$f":"'Population 2016'!AC72*'Prevalence Rates'!AC72","v":6162.1500275552889},{"$f":"'Population 2016'!AD72*'Prevalence Rates'!AD72","v":297.56299578406663},{"$f":"'Population 2016'!AE72*'Prevalence Rates'!AE72","v":211.8920358919116},{"$f":"'Population 2016'!AF72*'Prevalence Rates'!AF72","v":557.84904412221113},{"$f":"'Population 2016'!AG72*'Prevalence Rates'!AG72","v":211.8920358919116},{"$f":"'Population 2016'!AH72*'Prevalence Rates'!AH72","v":2636.4475311659717},{"$f":"'Population 2016'!AI72*'Prevalence Rates'!AI72","v":1400.9052354147357},{"$f":"'Population 2016'!AJ72*'Prevalence Rates'!AJ72","v":120.55721216374319},{"$f":"'Population 2016'!AK72*'Prevalence Rates'!AK72","v":20.978012602218659},{"$f":"'Population 2016'!AL72*'Prevalence Rates'!AL72","v":1358.3924373725931},{"$f":"'Population 2016'!AM72*'Prevalence Rates'!AM72","v":1582.3709496850204},{"$f":"'Population 2016'!AN72*'Prevalence Rates'!AN72","v":0},{"$f":"'Population 2016'!AO72*'Prevalence Rates'!AO72","v":0},{"$f":"'Population 2016'!AP72*'Prevalence Rates'!AP72","v":82.4522704502632},{"$f":"'Population 2016'!AQ72*'Prevalence Rates'!AQ72","v":536.7603623119536},{"$f":"'Population 2016'!AR72*'Prevalence Rates'!AR72","v":15816.988155668359},{"$f":"'Population 2016'!AS72*'Prevalence Rates'!AS72","v":114.88439166844339},{"$f":"'Population 2016'!AT72*'Prevalence Rates'!AT72","v":0},{"$f":"'Population 2016'!AU72*'Prevalence Rates'!AU72","v":0},{"$f":"'Population 2016'!AV72*'Prevalence Rates'!AV72","v":370.7065029578082},{"$f":"'Population 2016'!AW72*'Prevalence Rates'!AW72","v":1052.9199613893577},{"$f":"'Population 2016'!AX72*'Prevalence Rates'!AX72","v":114.94235381886224},{"$f":"'Population 2016'!AY72*'Prevalence Rates'!AY72","v":1974.9395446726787},{"$f":"'Population 2016'!AZ72*'Prevalence Rates'!AZ72","v":794.67064228188758},{"$f":"'Population 2016'!BA72*'Prevalence Rates'!BA72","v":594.48453384822801},{"$f":"'Population 2016'!BB72*'Prevalence Rates'!BB72","v":417.39075177695378},{"$f":"'Population 2016'!BC72*'Prevalence Rates'!BC72","v":0},70]
[null,"Female 65-69",{"$f":"'Population 2016'!C73*'Prevalence Rates'!C73","v":0},{"$f":"'Population 2016'!D73*'Prevalence Rates'!D73","v":0},{"$f":"'Population 2016'!E73*'Prevalence Rates'!E73","v":0},{"$f":"'Population 2016'!F73*'Prevalence Rates'!F73","v":0},{"$f":"'Population 2016'!G73*'Prevalence Rates'!G73","v":0},{"$f":"'Population 2016'!H73*'Prevalence Rates'!H73","v":0},{"$f":"'Population 2016'!I73*'Prevalence Rates'!I73","v":0},{"$f":"'Population 2016'!J73*'Prevalence Rates'!J73","v":0},{"$f":"'Population 2016'!K73*'Prevalence Rates'!K73","v":0},{"$f":"'Population 2016'!L73*'Prevalence Rates'!L73","v":0},{"$f":"'Population 2016'!M73*'Prevalence Rates'!M73","v":0},{"$f":"'Population 2016'!N73*'Prevalence Rates'!N73","v":0},{"$f":"'Population 2016'!O73*'Prevalence Rates'!O73","v":0},{"$f":"'Population 2016'!P73*'Prevalence Rates'!P73","v":0},{"$f":"'Population 2016'!Q73*'Prevalence Rates'!Q73","v":0},{"$f":"'Population 2016'!R73*'Prevalence Rates'!R73","v":0},{"$f":"'Population 2016'!S73*'Prevalence Rates'!S73","v":0},{"$f":"'Population 2016'!T73*'Prevalence Rates'!T73","v":0},{"$f":"'Population 2016'!U73*'Prevalence Rates'!U73","v":0},{"$f":"'Population 2016'!V73*'Prevalence Rates'!V73","v":0},{"$f":"'Population 2016'!W73*'Prevalence Rates'!W73","v":0},{"$f":"'Population 2016'!X73*'Prevalence Rates'!X73","v":0},{"$f":"'Population 2016'!Y73*'Prevalence Rates'!Y73","v":0},{"$f":"'Population 2016'!Z73*'Prevalence Rates'!Z73","v":0},{"$f":"'Population 2016'!AA73*'Prevalence Rates'!AA73","v":0},{"$f":"'Population 2016'!AB73*'Prevalence Rates'!AB73","v":0},{"$f":"'Population 2016'!AC73*'Prevalence Rates'!AC73","v":0},{"$f":"'Population 2016'!AD73*'Prevalence Rates'!AD73","v":0},{"$f":"'Population 2016'!AE73*'Prevalence Rates'!AE73","v":0},{"$f":"'Population 2016'!AF73*'Prevalence Rates'!AF73","v":0},{"$f":"'Population 2016'!AG73*'Prevalence Rates'!AG73","v":0},{"$f":"'Population 2016'!AH73*'Prevalence Rates'!AH73","v":0},{"$f":"'Population 2016'!AI73*'Prevalence Rates'!AI73","v":0},{"$f":"'Population 2016'!AJ73*'Prevalence Rates'!AJ73","v":0},{"$f":"'Population 2016'!AK73*'Prevalence Rates'!AK73","v":0},{"$f":"'Population 2016'!AL73*'Prevalence Rates'!AL73","v":0},{"$f":"'Population 2016'!AM73*'Prevalence Rates'!AM73","v":0},{"$f":"'Population 2016'!AN73*'Prevalence Rates'!AN73","v":0},{"$f":"'Population 2016'!AO73*'Prevalence Rates'!AO73","v":0},{"$f":"'Population 2016'!AP73*'Prevalence Rates'!AP73","v":0},{"$f":"'Population 2016'!AQ73*'Prevalence Rates'!AQ73","v":0},{"$f":"'Population 2016'!AR73*'Prevalence Rates'!AR73","v":0},{"$f":"'Population 2016'!AS73*'Prevalence Rates'!AS73","v":0},{"$f":"'Population 2016'!AT73*'Prevalence Rates'!AT73","v":0},{"$f":"'Population 2016'!AU73*'Prevalence Rates'!AU73","v":0},{"$f":"'Population 2016'!AV73*'Prevalence Rates'!AV73","v":0},{"$f":"'Population 2016'!AW73*'Prevalence Rates'!AW73","v":0},{"$f":"'Population 2016'!AX73*'Prevalence Rates'!AX73","v":0},{"$f":"'Population 2016'!AY73*'Prevalence Rates'!AY73","v":0},{"$f":"'Population 2016'!AZ73*'Prevalence Rates'!AZ73","v":0},{"$f":"'Population 2016'!BA73*'Prevalence Rates'!BA73","v":0},{"$f":"'Population 2016'!BB73*'Prevalence Rates'!BB73","v":0},{"$f":"'Population 2016'!BC73*'Prevalence Rates'!BC73","v":0},71]
[null,"Female 70-74",{"$f":"'Population 2016'!C74*'Prevalence Rates'!C74","v":0},{"$f":"'Population 2016'!D74*'Prevalence Rates'!D74","v":0},{"$f":"'Population 2016'!E74*'Prevalence Rates'!E74","v":0},{"$f":"'Population 2016'!F74*'Prevalence Rates'!F74","v":0},{"$f":"'Population 2016'!G74*'Prevalence Rates'!G74","v":0},{"$f":"'Population 2016'!H74*'Prevalence Rates'!H74","v":0},{"$f":"'Population 2016'!I74*'Prevalence Rates'!I74","v":0},{"$f":"'Population 2016'!J74*'Prevalence Rates'!J74","v":0},{"$f":"'Population 2016'!K74*'Prevalence Rates'!K74","v":0},{"$f":"'Population 2016'!L74*'Prevalence Rates'!L74","v":0},{"$f":"'Population 2016'!M74*'Prevalence Rates'!M74","v":0},{"$f":"'Population 2016'!N74*'Prevalence Rates'!N74","v":0},{"$f":"'Population 2016'!O74*'Prevalence Rates'!O74","v":0},{"$f":"'Population 2016'!P74*'Prevalence Rates'!P74","v":0},{"$f":"'Population 2016'!Q74*'Prevalence Rates'!Q74","v":0},{"$f":"'Population 2016'!R74*'Prevalence Rates'!R74","v":0},{"$f":"'Population 2016'!S74*'Prevalence Rates'!S74","v":0},{"$f":"'Population 2016'!T74*'Prevalence Rates'!T74","v":0},{"$f":"'Population 2016'!U74*'Prevalence Rates'!U74","v":0},{"$f":"'Population 2016'!V74*'Prevalence Rates'!V74","v":0},{"$f":"'Population 2016'!W74*'Prevalence Rates'!W74","v":0},{"$f":"'Population 2016'!X74*'Prevalence Rates'!X74","v":0},{"$f":"'Population 2016'!Y74*'Prevalence Rates'!Y74","v":0},{"$f":"'Population 2016'!Z74*'Prevalence Rates'!Z74","v":0},{"$f":"'Population 2016'!AA74*'Prevalence Rates'!AA74","v":0},{"$f":"'Population 2016'!AB74*'Prevalence Rates'!AB74","v":0},{"$f":"'Population 2016'!AC74*'Prevalence Rates'!AC74","v":0},{"$f":"'Population 2016'!AD74*'Prevalence Rates'!AD74","v":0},{"$f":"'Population 2016'!AE74*'Prevalence Rates'!AE74","v":0},{"$f":"'Population 2016'!AF74*'Prevalence Rates'!AF74","v":0},{"$f":"'Population 2016'!AG74*'Prevalence Rates'!AG74","v":0},{"$f":"'Population 2016'!AH74*'Prevalence Rates'!AH74","v":0},{"$f":"'Population 2016'!AI74*'Prevalence Rates'!AI74","v":0},{"$f":"'Population 2016'!AJ74*'Prevalence Rates'!AJ74","v":0},{"$f":"'Population 2016'!AK74*'Prevalence Rates'!AK74","v":0},{"$f":"'Population 2016'!AL74*'Prevalence Rates'!AL74","v":0},{"$f":"'Population 2016'!AM74*'Prevalence Rates'!AM74","v":0},{"$f":"'Population 2016'!AN74*'Prevalence Rates'!AN74","v":0},{"$f":"'Population 2016'!AO74*'Prevalence Rates'!AO74","v":0},{"$f":"'Population 2016'!AP74*'Prevalence Rates'!AP74","v":0},{"$f":"'Population 2016'!AQ74*'Prevalence Rates'!AQ74","v":0},{"$f":"'Population 2016'!AR74*'Prevalence Rates'!AR74","v":0},{"$f":"'Population 2016'!AS74*'Prevalence Rates'!AS74","v":0},{"$f":"'Population 2016'!AT74*'Prevalence Rates'!AT74","v":0},{"$f":"'Population 2016'!AU74*'Prevalence Rates'!AU74","v":0},{"$f":"'Population 2016'!AV74*'Prevalence Rates'!AV74","v":0},{"$f":"'Population 2016'!AW74*'Prevalence Rates'!AW74","v":0},{"$f":"'Population 2016'!AX74*'Prevalence Rates'!AX74","v":0},{"$f":"'Population 2016'!AY74*'Prevalence Rates'!AY74","v":0},{"$f":"'Population 2016'!AZ74*'Prevalence Rates'!AZ74","v":0},{"$f":"'Population 2016'!BA74*'Prevalence Rates'!BA74","v":0},{"$f":"'Population 2016'!BB74*'Prevalence Rates'!BB74","v":0},{"$f":"'Population 2016'!BC74*'Prevalence Rates'!BC74","v":0},72]
[null,"Female 75-79",{"$f":"'Population 2016'!C75*'Prevalence Rates'!C75","v":0},{"$f":"'Population 2016'!D75*'Prevalence Rates'!D75","v":0},{"$f":"'Population 2016'!E75*'Prevalence Rates'!E75","v":0},{"$f":"'Population 2016'!F75*'Prevalence Rates'!F75","v":0},{"$f":"'Population 2016'!G75*'Prevalence Rates'!G75","v":0},{"$f":"'Population 2016'!H75*'Prevalence Rates'!H75","v":0},{"$f":"'Population 2016'!I75*'Prevalence Rates'!I75","v":0},{"$f":"'Population 2016'!J75*'Prevalence Rates'!J75","v":0},{"$f":"'Population 2016'!K75*'Prevalence Rates'!K75","v":0},{"$f":"'Population 2016'!L75*'Prevalence Rates'!L75","v":0},{"$f":"'Population 2016'!M75*'Prevalence Rates'!M75","v":0},{"$f":"'Population 2016'!N75*'Prevalence Rates'!N75","v":0},{"$f":"'Population 2016'!O75*'Prevalence Rates'!O75","v":0},{"$f":"'Population 2016'!P75*'Prevalence Rates'!P75","v":0},{"$f":"'Population 2016'!Q75*'Prevalence Rates'!Q75","v":0},{"$f":"'Population 2016'!R75*'Prevalence Rates'!R75","v":0},{"$f":"'Population 2016'!S75*'Prevalence Rates'!S75","v":0},{"$f":"'Population 2016'!T75*'Prevalence Rates'!T75","v":0},{"$f":"'Population 2016'!U75*'Prevalence Rates'!U75","v":0},{"$f":"'Population 2016'!V75*'Prevalence Rates'!V75","v":0},{"$f":"'Population 2016'!W75*'Prevalence Rates'!W75","v":0},{"$f":"'Population 2016'!X75*'Prevalence Rates'!X75","v":0},{"$f":"'Population 2016'!Y75*'Prevalence Rates'!Y75","v":0},{"$f":"'Population 2016'!Z75*'Prevalence Rates'!Z75","v":0},{"$f":"'Population 2016'!AA75*'Prevalence Rates'!AA75","v":0},{"$f":"'Population 2016'!AB75*'Prevalence Rates'!AB75","v":0},{"$f":"'Population 2016'!AC75*'Prevalence Rates'!AC75","v":0},{"$f":"'Population 2016'!AD75*'Prevalence Rates'!AD75","v":0},{"$f":"'Population 2016'!AE75*'Prevalence Rates'!AE75","v":0},{"$f":"'Population 2016'!AF75*'Prevalence Rates'!AF75","v":0},{"$f":"'Population 2016'!AG75*'Prevalence Rates'!AG75","v":0},{"$f":"'Population 2016'!AH75*'Prevalence Rates'!AH75","v":0},{"$f":"'Population 2016'!AI75*'Prevalence Rates'!AI75","v":0},{"$f":"'Population 2016'!AJ75*'Prevalence Rates'!AJ75","v":0},{"$f":"'Population 2016'!AK75*'Prevalence Rates'!AK75","v":0},{"$f":"'Population 2016'!AL75*'Prevalence Rates'!AL75","v":0},{"$f":"'Population 2016'!AM75*'Prevalence Rates'!AM75","v":0},{"$f":"'Population 2016'!AN75*'Prevalence Rates'!AN75","v":0},{"$f":"'Population 2016'!AO75*'Prevalence Rates'!AO75","v":0},{"$f":"'Population 2016'!AP75*'Prevalence Rates'!AP75","v":0},{"$f":"'Population 2016'!AQ75*'Prevalence Rates'!AQ75","v":0},{"$f":"'Population 2016'!AR75*'Prevalence Rates'!AR75","v":0},{"$f":"'Population 2016'!AS75*'Prevalence Rates'!AS75","v":0},{"$f":"'Population 2016'!AT75*'Prevalence Rates'!AT75","v":0},{"$f":"'Population 2016'!AU75*'Prevalence Rates'!AU75","v":0},{"$f":"'Population 2016'!AV75*'Prevalence Rates'!AV75","v":0},{"$f":"'Population 2016'!AW75*'Prevalence Rates'!AW75","v":0},{"$f":"'Population 2016'!AX75*'Prevalence Rates'!AX75","v":0},{"$f":"'Population 2016'!AY75*'Prevalence Rates'!AY75","v":0},{"$f":"'Population 2016'!AZ75*'Prevalence Rates'!AZ75","v":0},{"$f":"'Population 2016'!BA75*'Prevalence Rates'!BA75","v":0},{"$f":"'Population 2016'!BB75*'Prevalence Rates'!BB75","v":0},{"$f":"'Population 2016'!BC75*'Prevalence Rates'!BC75","v":0},73]
[null,"Female 80-84",{"$f":"'Population 2016'!C76*'Prevalence Rates'!C76","v":0},{"$f":"'Population 2016'!D76*'Prevalence Rates'!D76","v":0},{"$f":"'Population 2016'!E76*'Prevalence Rates'!E76","v":0},{"$f":"'Population 2016'!F76*'Prevalence Rates'!F76","v":0},{"$f":"'Population 2016'!G76*'Prevalence Rates'!G76","v":0},{"$f":"'Population 2016'!H76*'Prevalence Rates'!H76","v":0},{"$f":"'Population 2016'!I76*'Prevalence Rates'!I76","v":0},{"$f":"'Population 2016'!J76*'Prevalence Rates'!J76","v":0},{"$f":"'Population 2016'!K76*'Prevalence Rates'!K76","v":0},{"$f":"'Population 2016'!L76*'Prevalence Rates'!L76","v":0},{"$f":"'Population 2016'!M76*'Prevalence Rates'!M76","v":0},{"$f":"'Population 2016'!N76*'Prevalence Rates'!N76","v":0},{"$f":"'Population 2016'!O76*'Prevalence Rates'!O76","v":0},{"$f":"'Population 2016'!P76*'Prevalence Rates'!P76","v":0},{"$f":"'Population 2016'!Q76*'Prevalence Rates'!Q76","v":0},{"$f":"'Population 2016'!R76*'Prevalence Rates'!R76","v":0},{"$f":"'Population 2016'!S76*'Prevalence Rates'!S76","v":0},{"$f":"'Population 2016'!T76*'Prevalence Rates'!T76","v":0},{"$f":"'Population 2016'!U76*'Prevalence Rates'!U76","v":0},{"$f":"'Population 2016'!V76*'Prevalence Rates'!V76","v":0},{"$f":"'Population 2016'!W76*'Prevalence Rates'!W76","v":0},{"$f":"'Population 2016'!X76*'Prevalence Rates'!X76","v":0},{"$f":"'Population 2016'!Y76*'Prevalence Rates'!Y76","v":0},{"$f":"'Population 2016'!Z76*'Prevalence Rates'!Z76","v":0},{"$f":"'Population 2016'!AA76*'Prevalence Rates'!AA76","v":0},{"$f":"'Population 2016'!AB76*'Prevalence Rates'!AB76","v":0},{"$f":"'Population 2016'!AC76*'Prevalence Rates'!AC76","v":0},{"$f":"'Population 2016'!AD76*'Prevalence Rates'!AD76","v":0},{"$f":"'Population 2016'!AE76*'Prevalence Rates'!AE76","v":0},{"$f":"'Population 2016'!AF76*'Prevalence Rates'!AF76","v":0},{"$f":"'Population 2016'!AG76*'Prevalence Rates'!AG76","v":0},{"$f":"'Population 2016'!AH76*'Prevalence Rates'!AH76","v":0},{"$f":"'Population 2016'!AI76*'Prevalence Rates'!AI76","v":0},{"$f":"'Population 2016'!AJ76*'Prevalence Rates'!AJ76","v":0},{"$f":"'Population 2016'!AK76*'Prevalence Rates'!AK76","v":0},{"$f":"'Population 2016'!AL76*'Prevalence Rates'!AL76","v":0},{"$f":"'Population 2016'!AM76*'Prevalence Rates'!AM76","v":0},{"$f":"'Population 2016'!AN76*'Prevalence Rates'!AN76","v":0},{"$f":"'Population 2016'!AO76*'Prevalence Rates'!AO76","v":0},{"$f":"'Population 2016'!AP76*'Prevalence Rates'!AP76","v":0},{"$f":"'Population 2016'!AQ76*'Prevalence Rates'!AQ76","v":0},{"$f":"'Population 2016'!AR76*'Prevalence Rates'!AR76","v":0},{"$f":"'Population 2016'!AS76*'Prevalence Rates'!AS76","v":0},{"$f":"'Population 2016'!AT76*'Prevalence Rates'!AT76","v":0},{"$f":"'Population 2016'!AU76*'Prevalence Rates'!AU76","v":0},{"$f":"'Population 2016'!AV76*'Prevalence Rates'!AV76","v":0},{"$f":"'Population 2016'!AW76*'Prevalence Rates'!AW76","v":0},{"$f":"'Population 2016'!AX76*'Prevalence Rates'!AX76","v":0},{"$f":"'Population 2016'!AY76*'Prevalence Rates'!AY76","v":0},{"$f":"'Population 2016'!AZ76*'Prevalence Rates'!AZ76","v":0},{"$f":"'Population 2016'!BA76*'Prevalence Rates'!BA76","v":0},{"$f":"'Population 2016'!BB76*'Prevalence Rates'!BB76","v":0},{"$f":"'Population 2016'!BC76*'Prevalence Rates'!BC76","v":0},74]
[null,"Female 85-89",{"$f":"'Population 2016'!C77*'Prevalence Rates'!C77","v":0},{"$f":"'Population 2016'!D77*'Prevalence Rates'!D77","v":0},{"$f":"'Population 2016'!E77*'Prevalence Rates'!E77","v":0},{"$f":"'Population 2016'!F77*'Prevalence Rates'!F77","v":0},{"$f":"'Population 2016'!G77*'Prevalence Rates'!G77","v":0},{"$f":"'Population 2016'!H77*'Prevalence Rates'!H77","v":0},{"$f":"'Population 2016'!I77*'Prevalence Rates'!I77","v":0},{"$f":"'Population 2016'!J77*'Prevalence Rates'!J77","v":0},{"$f":"'Population 2016'!K77*'Prevalence Rates'!K77","v":0},{"$f":"'Population 2016'!L77*'Prevalence Rates'!L77","v":0},{"$f":"'Population 2016'!M77*'Prevalence Rates'!M77","v":0},{"$f":"'Population 2016'!N77*'Prevalence Rates'!N77","v":0},{"$f":"'Population 2016'!O77*'Prevalence Rates'!O77","v":0},{"$f":"'Population 2016'!P77*'Prevalence Rates'!P77","v":0},{"$f":"'Population 2016'!Q77*'Prevalence Rates'!Q77","v":0},{"$f":"'Population 2016'!R77*'Prevalence Rates'!R77","v":0},{"$f":"'Population 2016'!S77*'Prevalence Rates'!S77","v":0},{"$f":"'Population 2016'!T77*'Prevalence Rates'!T77","v":0},{"$f":"'Population 2016'!U77*'Prevalence Rates'!U77","v":0},{"$f":"'Population 2016'!V77*'Prevalence Rates'!V77","v":0},{"$f":"'Population 2016'!W77*'Prevalence Rates'!W77","v":0},{"$f":"'Population 2016'!X77*'Prevalence Rates'!X77","v":0},{"$f":"'Population 2016'!Y77*'Prevalence Rates'!Y77","v":0},{"$f":"'Population 2016'!Z77*'Prevalence Rates'!Z77","v":0},{"$f":"'Population 2016'!AA77*'Prevalence Rates'!AA77","v":0},{"$f":"'Population 2016'!AB77*'Prevalence Rates'!AB77","v":0},{"$f":"'Population 2016'!AC77*'Prevalence Rates'!AC77","v":0},{"$f":"'Population 2016'!AD77*'Prevalence Rates'!AD77","v":0},{"$f":"'Population 2016'!AE77*'Prevalence Rates'!AE77","v":0},{"$f":"'Population 2016'!AF77*'Prevalence Rates'!AF77","v":0},{"$f":"'Population 2016'!AG77*'Prevalence Rates'!AG77","v":0},{"$f":"'Population 2016'!AH77*'Prevalence Rates'!AH77","v":0},{"$f":"'Population 2016'!AI77*'Prevalence Rates'!AI77","v":0},{"$f":"'Population 2016'!AJ77*'Prevalence Rates'!AJ77","v":0},{"$f":"'Population 2016'!AK77*'Prevalence Rates'!AK77","v":0},{"$f":"'Population 2016'!AL77*'Prevalence Rates'!AL77","v":0},{"$f":"'Population 2016'!AM77*'Prevalence Rates'!AM77","v":0},{"$f":"'Population 2016'!AN77*'Prevalence Rates'!AN77","v":0},{"$f":"'Population 2016'!AO77*'Prevalence Rates'!AO77","v":0},{"$f":"'Population 2016'!AP77*'Prevalence Rates'!AP77","v":0},{"$f":"'Population 2016'!AQ77*'Prevalence Rates'!AQ77","v":0},{"$f":"'Population 2016'!AR77*'Prevalence Rates'!AR77","v":0},{"$f":"'Population 2016'!AS77*'Prevalence Rates'!AS77","v":0},{"$f":"'Population 2016'!AT77*'Prevalence Rates'!AT77","v":0},{"$f":"'Population 2016'!AU77*'Prevalence Rates'!AU77","v":0},{"$f":"'Population 2016'!AV77*'Prevalence Rates'!AV77","v":0},{"$f":"'Population 2016'!AW77*'Prevalence Rates'!AW77","v":0},{"$f":"'Population 2016'!AX77*'Prevalence Rates'!AX77","v":0},{"$f":"'Population 2016'!AY77*'Prevalence Rates'!AY77","v":0},{"$f":"'Population 2016'!AZ77*'Prevalence Rates'!AZ77","v":0},{"$f":"'Population 2016'!BA77*'Prevalence Rates'!BA77","v":0},{"$f":"'Population 2016'!BB77*'Prevalence Rates'!BB77","v":0},{"$f":"'Population 2016'!BC77*'Prevalence Rates'!BC77","v":0},75]
[null,"Female 90+",{"$f":"'Population 2016'!C78*'Prevalence Rates'!C78","v":0},{"$f":"'Population 2016'!D78*'Prevalence Rates'!D78","v":0},{"$f":"'Population 2016'!E78*'Prevalence Rates'!E78","v":0},{"$f":"'Population 2016'!F78*'Prevalence Rates'!F78","v":0},{"$f":"'Population 2016'!G78*'Prevalence Rates'!G78","v":0},{"$f":"'Population 2016'!H78*'Prevalence Rates'!H78","v":0},{"$f":"'Population 2016'!I78*'Prevalence Rates'!I78","v":0},{"$f":"'Population 2016'!J78*'Prevalence Rates'!J78","v":0},{"$f":"'Population 2016'!K78*'Prevalence Rates'!K78","v":0},{"$f":"'Population 2016'!L78*'Prevalence Rates'!L78","v":0},{"$f":"'Population 2016'!M78*'Prevalence Rates'!M78","v":0},{"$f":"'Population 2016'!N78*'Prevalence Rates'!N78","v":0},{"$f":"'Population 2016'!O78*'Prevalence Rates'!O78","v":0},{"$f":"'Population 2016'!P78*'Prevalence Rates'!P78","v":0},{"$f":"'Population 2016'!Q78*'Prevalence Rates'!Q78","v":0},{"$f":"'Population 2016'!R78*'Prevalence Rates'!R78","v":0},{"$f":"'Population 2016'!S78*'Prevalence Rates'!S78","v":0},{"$f":"'Population 2016'!T78*'Prevalence Rates'!T78","v":0},{"$f":"'Population 2016'!U78*'Prevalence Rates'!U78","v":0},{"$f":"'Population 2016'!V78*'Prevalence Rates'!V78","v":0},{"$f":"'Population 2016'!W78*'Prevalence Rates'!W78","v":0},{"$f":"'Population 2016'!X78*'Prevalence Rates'!X78","v":0},{"$f":"'Population 2016'!Y78*'Prevalence Rates'!Y78","v":0},{"$f":"'Population 2016'!Z78*'Prevalence Rates'!Z78","v":0},{"$f":"'Population 2016'!AA78*'Prevalence Rates'!AA78","v":0},{"$f":"'Population 2016'!AB78*'Prevalence Rates'!AB78","v":0},{"$f":"'Population 2016'!AC78*'Prevalence Rates'!AC78","v":0},{"$f":"'Population 2016'!AD78*'Prevalence Rates'!AD78","v":0},{"$f":"'Population 2016'!AE78*'Prevalence Rates'!AE78","v":0},{"$f":"'Population 2016'!AF78*'Prevalence Rates'!AF78","v":0},{"$f":"'Population 2016'!AG78*'Prevalence Rates'!AG78","v":0},{"$f":"'Population 2016'!AH78*'Prevalence Rates'!AH78","v":0},{"$f":"'Population 2016'!AI78*'Prevalence Rates'!AI78","v":0},{"$f":"'Population 2016'!AJ78*'Prevalence Rates'!AJ78","v":0},{"$f":"'Population 2016'!AK78*'Prevalence Rates'!AK78","v":0},{"$f":"'Population 2016'!AL78*'Prevalence Rates'!AL78","v":0},{"$f":"'Population 2016'!AM78*'Prevalence Rates'!AM78","v":0},{"$f":"'Population 2016'!AN78*'Prevalence Rates'!AN78","v":0},{"$f":"'Population 2016'!AO78*'Prevalence Rates'!AO78","v":0},{"$f":"'Population 2016'!AP78*'Prevalence Rates'!AP78","v":0},{"$f":"'Population 2016'!AQ78*'Prevalence Rates'!AQ78","v":0},{"$f":"'Population 2016'!AR78*'Prevalence Rates'!AR78","v":0},{"$f":"'Population 2016'!AS78*'Prevalence Rates'!AS78","v":0},{"$f":"'Population 2016'!AT78*'Prevalence Rates'!AT78","v":0},{"$f":"'Population 2016'!AU78*'Prevalence Rates'!AU78","v":0},{"$f":"'Population 2016'!AV78*'Prevalence Rates'!AV78","v":0},{"$f":"'Population 2016'!AW78*'Prevalence Rates'!AW78","v":0},{"$f":"'Population 2016'!AX78*'Prevalence Rates'!AX78","v":0},{"$f":"'Population 2016'!AY78*'Prevalence Rates'!AY78","v":0},{"$f":"'Population 2016'!AZ78*'Prevalence Rates'!AZ78","v":0},{"$f":"'Population 2016'!BA78*'Prevalence Rates'!BA78","v":0},{"$f":"'Population 2016'!BB78*'Prevalence Rates'!BB78","v":0},{"$f":"'Population 2016'!BC78*'Prevalence Rates'!BC78","v":0},76]
[null,"Male 0-4",{"$f":"'Population 2016'!C79*'Prevalence Rates'!C79","v":0},{"$f":"'Population 2016'!D79*'Prevalence Rates'!D79","v":0},{"$f":"'Population 2016'!E79*'Prevalence Rates'!E79","v":0},{"$f":"'Population 2016'!F79*'Prevalence Rates'!F79","v":0},{"$f":"'Population 2016'!G79*'Prevalence Rates'!G79","v":0},{"$f":"'Population 2016'!H79*'Prevalence Rates'!H79","v":0},{"$f":"'Population 2016'!I79*'Prevalence Rates'!I79","v":0},{"$f":"'Population 2016'!J79*'Prevalence Rates'!J79","v":0},{"$f":"'Population 2016'!K79*'Prevalence Rates'!K79","v":0},{"$f":"'Population 2016'!L79*'Prevalence Rates'!L79","v":0},{"$f":"'Population 2016'!M79*'Prevalence Rates'!M79","v":0},{"$f":"'Population 2016'!N79*'Prevalence Rates'!N79","v":0},{"$f":"'Population 2016'!O79*'Prevalence Rates'!O79","v":0},{"$f":"'Population 2016'!P79*'Prevalence Rates'!P79","v":0},{"$f":"'Population 2016'!Q79*'Prevalence Rates'!Q79","v":0},{"$f":"'Population 2016'!R79*'Prevalence Rates'!R79","v":0},{"$f":"'Population 2016'!S79*'Prevalence Rates'!S79","v":0},{"$f":"'Population 2016'!T79*'Prevalence Rates'!T79","v":0},{"$f":"'Population 2016'!U79*'Prevalence Rates'!U79","v":0},{"$f":"'Population 2016'!V79*'Prevalence Rates'!V79","v":0},{"$f":"'Population 2016'!W79*'Prevalence Rates'!W79","v":0},{"$f":"'Population 2016'!X79*'Prevalence Rates'!X79","v":0},{"$f":"'Population 2016'!Y79*'Prevalence Rates'!Y79","v":0},{"$f":"'Population 2016'!Z79*'Prevalence Rates'!Z79","v":0},{"$f":"'Population 2016'!AA79*'Prevalence Rates'!AA79","v":0},{"$f":"'Population 2016'!AB79*'Prevalence Rates'!AB79","v":0},{"$f":"'Population 2016'!AC79*'Prevalence Rates'!AC79","v":0},{"$f":"'Population 2016'!AD79*'Prevalence Rates'!AD79","v":0},{"$f":"'Population 2016'!AE79*'Prevalence Rates'!AE79","v":0},{"$f":"'Population 2016'!AF79*'Prevalence Rates'!AF79","v":0},{"$f":"'Population 2016'!AG79*'Prevalence Rates'!AG79","v":0},{"$f":"'Population 2016'!AH79*'Prevalence Rates'!AH79","v":0},{"$f":"'Population 2016'!AI79*'Prevalence Rates'!AI79","v":0},{"$f":"'Population 2016'!AJ79*'Prevalence Rates'!AJ79","v":0},{"$f":"'Population 2016'!AK79*'Prevalence Rates'!AK79","v":0},{"$f":"'Population 2016'!AL79*'Prevalence Rates'!AL79","v":0},{"$f":"'Population 2016'!AM79*'Prevalence Rates'!AM79","v":0},{"$f":"'Population 2016'!AN79*'Prevalence Rates'!AN79","v":0},{"$f":"'Population 2016'!AO79*'Prevalence Rates'!AO79","v":0},{"$f":"'Population 2016'!AP79*'Prevalence Rates'!AP79","v":0},{"$f":"'Population 2016'!AQ79*'Prevalence Rates'!AQ79","v":0},{"$f":"'Population 2016'!AR79*'Prevalence Rates'!AR79","v":0},{"$f":"'Population 2016'!AS79*'Prevalence Rates'!AS79","v":0},{"$f":"'Population 2016'!AT79*'Prevalence Rates'!AT79","v":0},{"$f":"'Population 2016'!AU79*'Prevalence Rates'!AU79","v":0},{"$f":"'Population 2016'!AV79*'Prevalence Rates'!AV79","v":0},{"$f":"'Population 2016'!AW79*'Prevalence Rates'!AW79","v":0},{"$f":"'Population 2016'!AX79*'Prevalence Rates'!AX79","v":0},{"$f":"'Population 2016'!AY79*'Prevalence Rates'!AY79","v":0},{"$f":"'Population 2016'!AZ79*'Prevalence Rates'!AZ79","v":0},{"$f":"'Population 2016'!BA79*'Prevalence Rates'!BA79","v":0},{"$f":"'Population 2016'!BB79*'Prevalence Rates'!BB79","v":0},{"$f":"'Population 2016'!BC79*'Prevalence Rates'!BC79","v":0},77]
[null,"Male 5-9",{"$f":"'Population 2016'!C80*'Prevalence Rates'!C80","v":0},{"$f":"'Population 2016'!D80*'Prevalence Rates'!D80","v":0},{"$f":"'Population 2016'!E80*'Prevalence Rates'!E80","v":0},{"$f":"'Population 2016'!F80*'Prevalence Rates'!F80","v":0},{"$f":"'Population 2016'!G80*'Prevalence Rates'!G80","v":0},{"$f":"'Population 2016'!H80*'Prevalence Rates'!H80","v":0},{"$f":"'Population 2016'!I80*'Prevalence Rates'!I80","v":0},{"$f":"'Population 2016'!J80*'Prevalence Rates'!J80","v":0},{"$f":"'Population 2016'!K80*'Prevalence Rates'!K80","v":0},{"$f":"'Population 2016'!L80*'Prevalence Rates'!L80","v":0},{"$f":"'Population 2016'!M80*'Prevalence Rates'!M80","v":0},{"$f":"'Population 2016'!N80*'Prevalence Rates'!N80","v":0},{"$f":"'Population 2016'!O80*'Prevalence Rates'!O80","v":0},{"$f":"'Population 2016'!P80*'Prevalence Rates'!P80","v":0},{"$f":"'Population 2016'!Q80*'Prevalence Rates'!Q80","v":0},{"$f":"'Population 2016'!R80*'Prevalence Rates'!R80","v":0},{"$f":"'Population 2016'!S80*'Prevalence Rates'!S80","v":0},{"$f":"'Population 2016'!T80*'Prevalence Rates'!T80","v":0},{"$f":"'Population 2016'!U80*'Prevalence Rates'!U80","v":0},{"$f":"'Population 2016'!V80*'Prevalence Rates'!V80","v":0},{"$f":"'Population 2016'!W80*'Prevalence Rates'!W80","v":0},{"$f":"'Population 2016'!X80*'Prevalence Rates'!X80","v":0},{"$f":"'Population 2016'!Y80*'Prevalence Rates'!Y80","v":0},{"$f":"'Population 2016'!Z80*'Prevalence Rates'!Z80","v":0},{"$f":"'Population 2016'!AA80*'Prevalence Rates'!AA80","v":0},{"$f":"'Population 2016'!AB80*'Prevalence Rates'!AB80","v":0},{"$f":"'Population 2016'!AC80*'Prevalence Rates'!AC80","v":0},{"$f":"'Population 2016'!AD80*'Prevalence Rates'!AD80","v":0},{"$f":"'Population 2016'!AE80*'Prevalence Rates'!AE80","v":0},{"$f":"'Population 2016'!AF80*'Prevalence Rates'!AF80","v":0},{"$f":"'Population 2016'!AG80*'Prevalence Rates'!AG80","v":0},{"$f":"'Population 2016'!AH80*'Prevalence Rates'!AH80","v":0},{"$f":"'Population 2016'!AI80*'Prevalence Rates'!AI80","v":0},{"$f":"'Population 2016'!AJ80*'Prevalence Rates'!AJ80","v":0},{"$f":"'Population 2016'!AK80*'Prevalence Rates'!AK80","v":0},{"$f":"'Population 2016'!AL80*'Prevalence Rates'!AL80","v":0},{"$f":"'Population 2016'!AM80*'Prevalence Rates'!AM80","v":0},{"$f":"'Population 2016'!AN80*'Prevalence Rates'!AN80","v":0},{"$f":"'Population 2016'!AO80*'Prevalence Rates'!AO80","v":0},{"$f":"'Population 2016'!AP80*'Prevalence Rates'!AP80","v":0},{"$f":"'Population 2016'!AQ80*'Prevalence Rates'!AQ80","v":0},{"$f":"'Population 2016'!AR80*'Prevalence Rates'!AR80","v":0},{"$f":"'Population 2016'!AS80*'Prevalence Rates'!AS80","v":0},{"$f":"'Population 2016'!AT80*'Prevalence Rates'!AT80","v":0},{"$f":"'Population 2016'!AU80*'Prevalence Rates'!AU80","v":0},{"$f":"'Population 2016'!AV80*'Prevalence Rates'!AV80","v":0},{"$f":"'Population 2016'!AW80*'Prevalence Rates'!AW80","v":0},{"$f":"'Population 2016'!AX80*'Prevalence Rates'!AX80","v":0},{"$f":"'Population 2016'!AY80*'Prevalence Rates'!AY80","v":0},{"$f":"'Population 2016'!AZ80*'Prevalence Rates'!AZ80","v":0},{"$f":"'Population 2016'!BA80*'Prevalence Rates'!BA80","v":0},{"$f":"'Population 2016'!BB80*'Prevalence Rates'!BB80","v":0},{"$f":"'Population 2016'!BC80*'Prevalence Rates'!BC80","v":0},78]
[null,"Male 10-15",{"$f":"'Population 2016'!C81*'Prevalence Rates'!C81","v":0},{"$f":"'Population 2016'!D81*'Prevalence Rates'!D81","v":0},{"$f":"'Population 2016'!E81*'Prevalence Rates'!E81","v":0},{"$f":"'Population 2016'!F81*'Prevalence Rates'!F81","v":0},{"$f":"'Population 2016'!G81*'Prevalence Rates'!G81","v":0},{"$f":"'Population 2016'!H81*'Prevalence Rates'!H81","v":0},{"$f":"'Population 2016'!I81*'Prevalence Rates'!I81","v":0},{"$f":"'Population 2016'!J81*'Prevalence Rates'!J81","v":0},{"$f":"'Population 2016'!K81*'Prevalence Rates'!K81","v":0},{"$f":"'Population 2016'!L81*'Prevalence Rates'!L81","v":0},{"$f":"'Population 2016'!M81*'Prevalence Rates'!M81","v":0},{"$f":"'Population 2016'!N81*'Prevalence Rates'!N81","v":0},{"$f":"'Population 2016'!O81*'Prevalence Rates'!O81","v":0},{"$f":"'Population 2016'!P81*'Prevalence Rates'!P81","v":0},{"$f":"'Population 2016'!Q81*'Prevalence Rates'!Q81","v":0},{"$f":"'Population 2016'!R81*'Prevalence Rates'!R81","v":0},{"$f":"'Population 2016'!S81*'Prevalence Rates'!S81","v":0},{"$f":"'Population 2016'!T81*'Prevalence Rates'!T81","v":0},{"$f":"'Population 2016'!U81*'Prevalence Rates'!U81","v":0},{"$f":"'Population 2016'!V81*'Prevalence Rates'!V81","v":0},{"$f":"'Population 2016'!W81*'Prevalence Rates'!W81","v":0},{"$f":"'Population 2016'!X81*'Prevalence Rates'!X81","v":0},{"$f":"'Population 2016'!Y81*'Prevalence Rates'!Y81","v":0},{"$f":"'Population 2016'!Z81*'Prevalence Rates'!Z81","v":0},{"$f":"'Population 2016'!AA81*'Prevalence Rates'!AA81","v":0},{"$f":"'Population 2016'!AB81*'Prevalence Rates'!AB81","v":0},{"$f":"'Population 2016'!AC81*'Prevalence Rates'!AC81","v":0},{"$f":"'Population 2016'!AD81*'Prevalence Rates'!AD81","v":0},{"$f":"'Population 2016'!AE81*'Prevalence Rates'!AE81","v":0},{"$f":"'Population 2016'!AF81*'Prevalence Rates'!AF81","v":0},{"$f":"'Population 2016'!AG81*'Prevalence Rates'!AG81","v":0},{"$f":"'Population 2016'!AH81*'Prevalence Rates'!AH81","v":0},{"$f":"'Population 2016'!AI81*'Prevalence Rates'!AI81","v":0},{"$f":"'Population 2016'!AJ81*'Prevalence Rates'!AJ81","v":0},{"$f":"'Population 2016'!AK81*'Prevalence Rates'!AK81","v":0},{"$f":"'Population 2016'!AL81*'Prevalence Rates'!AL81","v":0},{"$f":"'Population 2016'!AM81*'Prevalence Rates'!AM81","v":0},{"$f":"'Population 2016'!AN81*'Prevalence Rates'!AN81","v":0},{"$f":"'Population 2016'!AO81*'Prevalence Rates'!AO81","v":0},{"$f":"'Population 2016'!AP81*'Prevalence Rates'!AP81","v":0},{"$f":"'Population 2016'!AQ81*'Prevalence Rates'!AQ81","v":0},{"$f":"'Population 2016'!AR81*'Prevalence Rates'!AR81","v":0},{"$f":"'Population 2016'!AS81*'Prevalence Rates'!AS81","v":0},{"$f":"'Population 2016'!AT81*'Prevalence Rates'!AT81","v":0},{"$f":"'Population 2016'!AU81*'Prevalence Rates'!AU81","v":0},{"$f":"'Population 2016'!AV81*'Prevalence Rates'!AV81","v":0},{"$f":"'Population 2016'!AW81*'Prevalence Rates'!AW81","v":0},{"$f":"'Population 2016'!AX81*'Prevalence Rates'!AX81","v":0},{"$f":"'Population 2016'!AY81*'Prevalence Rates'!AY81","v":0},{"$f":"'Population 2016'!AZ81*'Prevalence Rates'!AZ81","v":0},{"$f":"'Population 2016'!BA81*'Prevalence Rates'!BA81","v":0},{"$f":"'Population 2016'!BB81*'Prevalence Rates'!BB81","v":0},{"$f":"'Population 2016'!BC81*'Prevalence Rates'!BC81","v":0},79]
[null,"Male 16-19",{"$f":"'Population 2016'!C82*'Prevalence Rates'!C82","v":117.43187398358255},{"$f":"'Population 2016'!D82*'Prevalence Rates'!D82","v":120.28877235479611},{"$f":"'Population 2016'!E82*'Prevalence Rates'!E82","v":18.407224762741464},{"$f":"'Population 2016'!F82*'Prevalence Rates'!F82","v":48.225199699950799},{"$f":"'Population 2016'!G82*'Prevalence Rates'!G82","v":37.814348154570126},{"$f":"'Population 2016'!H82*'Prevalence Rates'!H82","v":988.9582712413328},{"$f":"'Population 2016'!I82*'Prevalence Rates'!I82","v":45.316728152456761},{"$f":"'Population 2016'!J82*'Prevalence Rates'!J82","v":177.27303829090914},{"$f":"'Population 2016'!K82*'Prevalence Rates'!K82","v":126.58800989638692},{"$f":"'Population 2016'!L82*'Prevalence Rates'!L82","v":64.816553098937206},{"$f":"'Population 2016'!M82*'Prevalence Rates'!M82","v":64.816553098937206},{"$f":"'Population 2016'!N82*'Prevalence Rates'!N82","v":489.76996787188068},{"$f":"'Population 2016'!O82*'Prevalence Rates'!O82","v":379.46240048778748},{"$f":"'Population 2016'!P82*'Prevalence Rates'!P82","v":29.26354069031952},{"$f":"'Population 2016'!Q82*'Prevalence Rates'!Q82","v":23.433134268268475},{"$f":"'Population 2016'!R82*'Prevalence Rates'!R82","v":32.525306343310405},{"$f":"'Population 2016'!S82*'Prevalence Rates'!S82","v":1136.2686265330199},{"$f":"'Population 2016'!T82*'Prevalence Rates'!T82","v":369.18631975270387},{"$f":"'Population 2016'!U82*'Prevalence Rates'!U82","v":0},{"$f":"'Population 2016'!V82*'Prevalence Rates'!V82","v":111.00869501189605},{"$f":"'Population 2016'!W82*'Prevalence Rates'!W82","v":479.12889467791774},{"$f":"'Population 2016'!X82*'Prevalence Rates'!X82","v":479.12889467791774},{"$f":"'Population 2016'!Y82*'Prevalence Rates'!Y82","v":283.7009142747894},{"$f":"'Population 2016'!Z82*'Prevalence Rates'!Z82","v":1805.2088160095393},{"$f":"'Population 2016'!AA82*'Prevalence Rates'!AA82","v":3714.9826203330954},{"$f":"'Population 2016'!AB82*'Prevalence Rates'!AB82","v":124.50379490081424},{"$f":"'Population 2016'!AC82*'Prevalence Rates'!AC82","v":2618.7363145871059},{"$f":"'Population 2016'!AD82*'Prevalence Rates'!AD82","v":155.95109368429667},{"$f":"'Population 2016'!AE82*'Prevalence Rates'!AE82","v":116.58010307006001},{"$f":"'Population 2016'!AF82*'Prevalence Rates'!AF82","v":283.44553080844986},{"$f":"'Population 2016'!AG82*'Prevalence Rates'!AG82","v":116.58010307006001},{"$f":"'Population 2016'!AH82*'Prevalence Rates'!AH82","v":1100.8487202399829},{"$f":"'Population 2016'!AI82*'Prevalence Rates'!AI82","v":623.76243148220635},{"$f":"'Population 2016'!AJ82*'Prevalence Rates'!AJ82","v":46.915977125520598},{"$f":"'Population 2016'!AK82*'Prevalence Rates'!AK82","v":5.403334732876294},{"$f":"'Population 2016'!AL82*'Prevalence Rates'!AL82","v":503.45502074237027},{"$f":"'Population 2016'!AM82*'Prevalence Rates'!AM82","v":735.66001292213298},{"$f":"'Population 2016'!AN82*'Prevalence Rates'!AN82","v":0},{"$f":"'Population 2016'!AO82*'Prevalence Rates'!AO82","v":0},{"$f":"'Population 2016'!AP82*'Prevalence Rates'!AP82","v":49.85028416699145},{"$f":"'Population 2016'!AQ82*'Prevalence Rates'!AQ82","v":296.39343587324942},{"$f":"'Population 2016'!AR82*'Prevalence Rates'!AR82","v":6604.3472454090152},{"$f":"'Population 2016'!AS82*'Prevalence Rates'!AS82","v":45.316728152456761},{"$f":"'Population 2016'!AT82*'Prevalence Rates'!AT82","v":0},{"$f":"'Population 2016'!AU82*'Prevalence Rates'!AU82","v":0},{"$f":"'Population 2016'!AV82*'Prevalence Rates'!AV82","v":130.82829053037773},{"$f":"'Population 2016'!AW82*'Prevalence Rates'!AW82","v":373.25049470204016},{"$f":"'Population 2016'!AX82*'Prevalence Rates'!AX82","v":66.946359409947306},{"$f":"'Population 2016'!AY82*'Prevalence Rates'!AY82","v":984.66761220049978},{"$f":"'Population 2016'!AZ82*'Prevalence Rates'!AZ82","v":496.07142166880237},{"$f":"'Population 2016'!BA82*'Prevalence Rates'!BA82","v":260.50065857044183},{"$f":"'Population 2016'!BB82*'Prevalence Rates'!BB82","v":181.01947582915568},{"$f":"'Population 2016'!BC82*'Prevalence Rates'!BC82","v":0},80]
[null,"Male 20-24",{"$f":"'Population 2016'!C83*'Prevalence Rates'!C83","v":191.87807526229935},{"$f":"'Population 2016'!D83*'Prevalence Rates'!D83","v":218.8945900361955},{"$f":"'Population 2016'!E83*'Prevalence Rates'!E83","v":47.982878033213709},{"$f":"'Population 2016'!F83*'Prevalence Rates'!F83","v":68.035551443913988},{"$f":"'Population 2016'!G83*'Prevalence Rates'!G83","v":59.270804129916094},{"$f":"'Population 2016'!H83*'Prevalence Rates'!H83","v":1386.2012689198104},{"$f":"'Population 2016'!I83*'Prevalence Rates'!I83","v":54.021636385132069},{"$f":"'Population 2016'!J83*'Prevalence Rates'!J83","v":226.57231262829455},{"$f":"'Population 2016'!K83*'Prevalence Rates'!K83","v":158.04994218057664},{"$f":"'Population 2016'!L83*'Prevalence Rates'!L83","v":96.78390071575997},{"$f":"'Population 2016'!M83*'Prevalence Rates'!M83","v":96.78390071575997},{"$f":"'Population 2016'!N83*'Prevalence Rates'!N83","v":808.47595892087566},{"$f":"'Population 2016'!O83*'Prevalence Rates'!O83","v":524.38474280174034},{"$f":"'Population 2016'!P83*'Prevalence Rates'!P83","v":36.364252769588226},{"$f":"'Population 2016'!Q83*'Prevalence Rates'!Q83","v":31.687988385499416},{"$f":"'Population 2016'!R83*'Prevalence Rates'!R83","v":38.711100801240605},{"$f":"'Population 2016'!S83*'Prevalence Rates'!S83","v":1554.5611500775592},{"$f":"'Population 2016'!T83*'Prevalence Rates'!T83","v":540.62060680642446},{"$f":"'Population 2016'!U83*'Prevalence Rates'!U83","v":0},{"$f":"'Population 2016'!V83*'Prevalence Rates'!V83","v":162.97491678041314},{"$f":"'Population 2016'!W83*'Prevalence Rates'!W83","v":617.44244891509686},{"$f":"'Population 2016'!X83*'Prevalence Rates'!X83","v":617.44244891509686},{"$f":"'Population 2016'!Y83*'Prevalence Rates'!Y83","v":385.22599062061704},{"$f":"'Population 2016'!Z83*'Prevalence Rates'!Z83","v":2817.3687097585985},{"$f":"'Population 2016'!AA83*'Prevalence Rates'!AA83","v":5536.9855455397528},{"$f":"'Population 2016'!AB83*'Prevalence Rates'!AB83","v":222.01903712374238},{"$f":"'Population 2016'!AC83*'Prevalence Rates'!AC83","v":4018.770549664001},{"$f":"'Population 2016'!AD83*'Prevalence Rates'!AD83","v":224.11339143406579},{"$f":"'Population 2016'!AE83*'Prevalence Rates'!AE83","v":160.93741057964382},{"$f":"'Population 2016'!AF83*'Prevalence Rates'!AF83","v":403.56198314071281},{"$f":"'Population 2016'!AG83*'Prevalence Rates'!AG83","v":160.93741057964382},{"$f":"'Population 2016'!AH83*'Prevalence Rates'!AH83","v":1527.499713053335},{"$f":"'Population 2016'!AI83*'Prevalence Rates'!AI83","v":895.98102815986738},{"$f":"'Population 2016'!AJ83*'Prevalence Rates'!AJ83","v":75.02023395433487},{"$f":"'Population 2016'!AK83*'Prevalence Rates'!AK83","v":5.6382623299578718},{"$f":"'Population 2016'!AL83*'Prevalence Rates'!AL83","v":687.93269987570602},{"$f":"'Population 2016'!AM83*'Prevalence Rates'!AM83","v":1009.7135781755429},{"$f":"'Population 2016'!AN83*'Prevalence Rates'!AN83","v":0},{"$f":"'Population 2016'!AO83*'Prevalence Rates'!AO83","v":0},{"$f":"'Population 2016'!AP83*'Prevalence Rates'!AP83","v":90.080338056142452},{"$f":"'Population 2016'!AQ83*'Prevalence Rates'!AQ83","v":484.55331370289645},{"$f":"'Population 2016'!AR83*'Prevalence Rates'!AR83","v":9682.9382303839739},{"$f":"'Population 2016'!AS83*'Prevalence Rates'!AS83","v":54.021636385132069},{"$f":"'Population 2016'!AT83*'Prevalence Rates'!AT83","v":0},{"$f":"'Population 2016'!AU83*'Prevalence Rates'!AU83","v":0},{"$f":"'Population 2016'!AV83*'Prevalence Rates'!AV83","v":203.67931077931198},{"$f":"'Population 2016'!AW83*'Prevalence Rates'!AW83","v":528.34777111092603},{"$f":"'Population 2016'!AX83*'Prevalence Rates'!AX83","v":87.486719683453856},{"$f":"'Population 2016'!AY83*'Prevalence Rates'!AY83","v":1427.4317241314641},{"$f":"'Population 2016'!AZ83*'Prevalence Rates'!AZ83","v":809.13228727027649},{"$f":"'Population 2016'!BA83*'Prevalence Rates'!BA83","v":367.93001240282905},{"$f":"'Population 2016'!BB83*'Prevalence Rates'!BB83","v":243.24492064542795},{"$f":"'Population 2016'!BC83*'Prevalence Rates'!BC83","v":0},81]
[null,"Male 25-29",{"$f":"'Population 2016'!C84*'Prevalence Rates'!C84","v":297.59416024966049},{"$f":"'Population 2016'!D84*'Prevalence Rates'!D84","v":309.34163505110649},{"$f":"'Population 2016'!E84*'Prevalence Rates'!E84","v":50.258935042245497},{"$f":"'Population 2016'!F84*'Prevalence Rates'!F84","v":58.055833554007442},{"$f":"'Population 2016'!G84*'Prevalence Rates'!G84","v":44.165012626899305},{"$f":"'Population 2016'!H84*'Prevalence Rates'!H84","v":1233.1402900813262},{"$f":"'Population 2016'!I84*'Prevalence Rates'!I84","v":37.376754824751657},{"$f":"'Population 2016'!J84*'Prevalence Rates'!J84","v":204.15430856073741},{"$f":"'Population 2016'!K84*'Prevalence Rates'!K84","v":118.33188690997012},{"$f":"'Population 2016'!L84*'Prevalence Rates'!L84","v":101.03678131236043},{"$f":"'Population 2016'!M84*'Prevalence Rates'!M84","v":101.03678131236043},{"$f":"'Population 2016'!N84*'Prevalence Rates'!N84","v":1049.2145746514614},{"$f":"'Population 2016'!O84*'Prevalence Rates'!O84","v":478.17640879867918},{"$f":"'Population 2016'!P84*'Prevalence Rates'!P84","v":32.406698782984549},{"$f":"'Population 2016'!Q84*'Prevalence Rates'!Q84","v":25.834272286752178},{"$f":"'Population 2016'!R84*'Prevalence Rates'!R84","v":36.136749681777225},{"$f":"'Population 2016'!S84*'Prevalence Rates'!S84","v":1707.897424329276},{"$f":"'Population 2016'!T84*'Prevalence Rates'!T84","v":757.91407195288798},{"$f":"'Population 2016'!U84*'Prevalence Rates'!U84","v":0},{"$f":"'Population 2016'!V84*'Prevalence Rates'!V84","v":169.99487602902508},{"$f":"'Population 2016'!W84*'Prevalence Rates'!W84","v":605.73757784871611},{"$f":"'Population 2016'!X84*'Prevalence Rates'!X84","v":605.73757784871611},{"$f":"'Population 2016'!Y84*'Prevalence Rates'!Y84","v":371.93806110002549},{"$f":"'Population 2016'!Z84*'Prevalence Rates'!Z84","v":3318.9955825451639},{"$f":"'Population 2016'!AA84*'Prevalence Rates'!AA84","v":5844.7798116212425},{"$f":"'Population 2016'!AB84*'Prevalence Rates'!AB84","v":307.94460588698269},{"$f":"'Population 2016'!AC84*'Prevalence Rates'!AC84","v":4511.3676935947515},{"$f":"'Population 2016'!AD84*'Prevalence Rates'!AD84","v":201.43834330606543},{"$f":"'Population 2016'!AE84*'Prevalence Rates'!AE84","v":156.84624796777626},{"$f":"'Population 2016'!AF84*'Prevalence Rates'!AF84","v":375.92563040363495},{"$f":"'Population 2016'!AG84*'Prevalence Rates'!AG84","v":156.84624796777626},{"$f":"'Population 2016'!AH84*'Prevalence Rates'!AH84","v":1348.8562036030448},{"$f":"'Population 2016'!AI84*'Prevalence Rates'!AI84","v":1072.1008606384662},{"$f":"'Population 2016'!AJ84*'Prevalence Rates'!AJ84","v":53.401053581685211},{"$f":"'Population 2016'!AK84*'Prevalence Rates'!AK84","v":2.6048007447197397},{"$f":"'Population 2016'!AL84*'Prevalence Rates'!AL84","v":579.60597645264022},{"$f":"'Population 2016'!AM84*'Prevalence Rates'!AM84","v":889.87350494887937},{"$f":"'Population 2016'!AN84*'Prevalence Rates'!AN84","v":0},{"$f":"'Population 2016'!AO84*'Prevalence Rates'!AO84","v":0},{"$f":"'Population 2016'!AP84*'Prevalence Rates'!AP84","v":119.32583411558613},{"$f":"'Population 2016'!AQ84*'Prevalence Rates'!AQ84","v":529.25655577688008},{"$f":"'Population 2016'!AR84*'Prevalence Rates'!AR84","v":10251.008645533142},{"$f":"'Population 2016'!AS84*'Prevalence Rates'!AS84","v":37.376754824751657},{"$f":"'Population 2016'!AT84*'Prevalence Rates'!AT84","v":0},{"$f":"'Population 2016'!AU84*'Prevalence Rates'!AU84","v":0},{"$f":"'Population 2016'!AV84*'Prevalence Rates'!AV84","v":199.1324192513502},{"$f":"'Population 2016'!AW84*'Prevalence Rates'!AW84","v":468.21018840804277},{"$f":"'Population 2016'!AX84*'Prevalence Rates'!AX84","v":91.20336955355657},{"$f":"'Population 2016'!AY84*'Prevalence Rates'!AY84","v":1597.767712092834},{"$f":"'Population 2016'!AZ84*'Prevalence Rates'!AZ84","v":1005.3151669974209},{"$f":"'Population 2016'!BA84*'Prevalence Rates'!BA84","v":335.6540959644347},{"$f":"'Population 2016'!BB84*'Prevalence Rates'!BB84","v":230.66024852898579},{"$f":"'Population 2016'!BC84*'Prevalence Rates'!BC84","v":0},82]
[null,"Male 30-34",{"$f":"'Population 2016'!C85*'Prevalence Rates'!C85","v":249.53011309134976},{"$f":"'Population 2016'!D85*'Prevalence Rates'!D85","v":271.89627136334724},{"$f":"'Population 2016'!E85*'Prevalence Rates'!E85","v":52.169921165524798},{"$f":"'Population 2016'!F85*'Prevalence Rates'!F85","v":47.701926932910574},{"$f":"'Population 2016'!G85*'Prevalence Rates'!G85","v":34.546854321485675},{"$f":"'Population 2016'!H85*'Prevalence Rates'!H85","v":1087.1236782793198},{"$f":"'Population 2016'!I85*'Prevalence Rates'!I85","v":41.161742655106259},{"$f":"'Population 2016'!J85*'Prevalence Rates'!J85","v":179.13655514173377},{"$f":"'Population 2016'!K85*'Prevalence Rates'!K85","v":124.14588135352358},{"$f":"'Population 2016'!L85*'Prevalence Rates'!L85","v":70.481303092896596},{"$f":"'Population 2016'!M85*'Prevalence Rates'!M85","v":70.481303092896596},{"$f":"'Population 2016'!N85*'Prevalence Rates'!N85","v":823.14071602490344},{"$f":"'Population 2016'!O85*'Prevalence Rates'!O85","v":416.25965071710294},{"$f":"'Population 2016'!P85*'Prevalence Rates'!P85","v":26.641089797054782},{"$f":"'Population 2016'!Q85*'Prevalence Rates'!Q85","v":27.064475728978472},{"$f":"'Population 2016'!R85*'Prevalence Rates'!R85","v":33.924295619627593},{"$f":"'Population 2016'!S85*'Prevalence Rates'!S85","v":1546.6648038904743},{"$f":"'Population 2016'!T85*'Prevalence Rates'!T85","v":654.73776350712751},{"$f":"'Population 2016'!U85*'Prevalence Rates'!U85","v":0},{"$f":"'Population 2016'!V85*'Prevalence Rates'!V85","v":156.10106404588359},{"$f":"'Population 2016'!W85*'Prevalence Rates'!W85","v":567.52226158951817},{"$f":"'Population 2016'!X85*'Prevalence Rates'!X85","v":567.52226158951817},{"$f":"'Population 2016'!Y85*'Prevalence Rates'!Y85","v":333.80180733962214},{"$f":"'Population 2016'!Z85*'Prevalence Rates'!Z85","v":2906.237684590194},{"$f":"'Population 2016'!AA85*'Prevalence Rates'!AA85","v":5308.8363947042171},{"$f":"'Population 2016'!AB85*'Prevalence Rates'!AB85","v":270.30431792524303},{"$f":"'Population 2016'!AC85*'Prevalence Rates'!AC85","v":4031.9931133932578},{"$f":"'Population 2016'!AD85*'Prevalence Rates'!AD85","v":195.06681419906093},{"$f":"'Population 2016'!AE85*'Prevalence Rates'!AE85","v":162.88890073705406},{"$f":"'Population 2016'!AF85*'Prevalence Rates'!AF85","v":353.93178164014591},{"$f":"'Population 2016'!AG85*'Prevalence Rates'!AG85","v":162.88890073705406},{"$f":"'Population 2016'!AH85*'Prevalence Rates'!AH85","v":1289.4939313050843},{"$f":"'Population 2016'!AI85*'Prevalence Rates'!AI85","v":946.45337123879881},{"$f":"'Population 2016'!AJ85*'Prevalence Rates'!AJ85","v":58.845866888053116},{"$f":"'Population 2016'!AK85*'Prevalence Rates'!AK85","v":1.9536005585398049},{"$f":"'Population 2016'!AL85*'Prevalence Rates'!AL85","v":526.29716666759953},{"$f":"'Population 2016'!AM85*'Prevalence Rates'!AM85","v":839.08050130882032},{"$f":"'Population 2016'!AN85*'Prevalence Rates'!AN85","v":0},{"$f":"'Population 2016'!AO85*'Prevalence Rates'!AO85","v":0},{"$f":"'Population 2016'!AP85*'Prevalence Rates'!AP85","v":83.501148026708123},{"$f":"'Population 2016'!AQ85*'Prevalence Rates'!AQ85","v":497.7165575401765},{"$f":"'Population 2016'!AR85*'Prevalence Rates'!AR85","v":9145.5360230547558},{"$f":"'Population 2016'!AS85*'Prevalence Rates'!AS85","v":41.161742655106259},{"$f":"'Population 2016'!AT85*'Prevalence Rates'!AT85","v":0},{"$f":"'Population 2016'!AU85*'Prevalence Rates'!AU85","v":0},{"$f":"'Population 2016'!AV85*'Prevalence Rates'!AV85","v":166.87857669655403},{"$f":"'Population 2016'!AW85*'Prevalence Rates'!AW85","v":458.57816747240315},{"$f":"'Population 2016'!AX85*'Prevalence Rates'!AX85","v":69.588698156470912},{"$f":"'Population 2016'!AY85*'Prevalence Rates'!AY85","v":1347.0103238259389},{"$f":"'Population 2016'!AZ85*'Prevalence Rates'!AZ85","v":781.20400937760405},{"$f":"'Population 2016'!BA85*'Prevalence Rates'!BA85","v":328.19511605411395},{"$f":"'Population 2016'!BB85*'Prevalence Rates'!BB85","v":201.34480807554817},{"$f":"'Population 2016'!BC85*'Prevalence Rates'!BC85","v":0},83]
[null,"Male 35-39",{"$f":"'Population 2016'!C86*'Prevalence Rates'!C86","v":352.36229952865511},{"$f":"'Population 2016'!D86*'Prevalence Rates'!D86","v":365.17769615896498},{"$f":"'Population 2016'!E86*'Prevalence Rates'!E86","v":58.631823475632984},{"$f":"'Population 2016'!F86*'Prevalence Rates'!F86","v":70.155496811580164},{"$f":"'Population 2016'!G86*'Prevalence Rates'!G86","v":43.640791851607297},{"$f":"'Population 2016'!H86*'Prevalence Rates'!H86","v":1439.8698103104064},{"$f":"'Population 2016'!I86*'Prevalence Rates'!I86","v":65.567954240656476},{"$f":"'Population 2016'!J86*'Prevalence Rates'!J86","v":229.83350187100547},{"$f":"'Population 2016'!K86*'Prevalence Rates'!K86","v":183.50156977686959},{"$f":"'Population 2016'!L86*'Prevalence Rates'!L86","v":89.974535340391469},{"$f":"'Population 2016'!M86*'Prevalence Rates'!M86","v":89.974535340391469},{"$f":"'Population 2016'!N86*'Prevalence Rates'!N86","v":878.09632176449884},{"$f":"'Population 2016'!O86*'Prevalence Rates'!O86","v":524.09978372139585},{"$f":"'Population 2016'!P86*'Prevalence Rates'!P86","v":40.076669091124977},{"$f":"'Population 2016'!Q86*'Prevalence Rates'!Q86","v":31.362516807601811},{"$f":"'Population 2016'!R86*'Prevalence Rates'!R86","v":45.090233313826751},{"$f":"'Population 2016'!S86*'Prevalence Rates'!S86","v":2118.9407671276404},{"$f":"'Population 2016'!T86*'Prevalence Rates'!T86","v":882.53298420432418},{"$f":"'Population 2016'!U86*'Prevalence Rates'!U86","v":0},{"$f":"'Population 2016'!V86*'Prevalence Rates'!V86","v":218.35004804097986},{"$f":"'Population 2016'!W86*'Prevalence Rates'!W86","v":780.85834084926739},{"$f":"'Population 2016'!X86*'Prevalence Rates'!X86","v":780.85834084926739},{"$f":"'Population 2016'!Y86*'Prevalence Rates'!Y86","v":447.65508315985971},{"$f":"'Population 2016'!Z86*'Prevalence Rates'!Z86","v":3513.5978225243425},{"$f":"'Population 2016'!AA86*'Prevalence Rates'!AA86","v":6739.064260453807},{"$f":"'Population 2016'!AB86*'Prevalence Rates'!AB86","v":369.26184645299071},{"$f":"'Population 2016'!AC86*'Prevalence Rates'!AC86","v":4899.957821355295},{"$f":"'Population 2016'!AD86*'Prevalence Rates'!AD86","v":222.29375799009634},{"$f":"'Population 2016'!AE86*'Prevalence Rates'!AE86","v":179.906684817805},{"$f":"'Population 2016'!AF86*'Prevalence Rates'!AF86","v":416.76805559624955},{"$f":"'Population 2016'!AG86*'Prevalence Rates'!AG86","v":179.906684817805},{"$f":"'Population 2016'!AH86*'Prevalence Rates'!AH86","v":1850.5895144245344},{"$f":"'Population 2016'!AI86*'Prevalence Rates'!AI86","v":1284.745779019375},{"$f":"'Population 2016'!AJ86*'Prevalence Rates'!AJ86","v":73.874086648254064},{"$f":"'Population 2016'!AK86*'Prevalence Rates'!AK86","v":8.3651191554164335},{"$f":"'Population 2016'!AL86*'Prevalence Rates'!AL86","v":696.53179580613232},{"$f":"'Population 2016'!AM86*'Prevalence Rates'!AM86","v":1171.348626991052},{"$f":"'Population 2016'!AN86*'Prevalence Rates'!AN86","v":0},{"$f":"'Population 2016'!AO86*'Prevalence Rates'!AO86","v":0},{"$f":"'Population 2016'!AP86*'Prevalence Rates'!AP86","v":121.76882469261633},{"$f":"'Population 2016'!AQ86*'Prevalence Rates'!AQ86","v":611.91056494952056},{"$f":"'Population 2016'!AR86*'Prevalence Rates'!AR86","v":11764.293333333335},{"$f":"'Population 2016'!AS86*'Prevalence Rates'!AS86","v":65.567954240656476},{"$f":"'Population 2016'!AT86*'Prevalence Rates'!AT86","v":0},{"$f":"'Population 2016'!AU86*'Prevalence Rates'!AU86","v":0},{"$f":"'Population 2016'!AV86*'Prevalence Rates'!AV86","v":241.94248010632978},{"$f":"'Population 2016'!AW86*'Prevalence Rates'!AW86","v":689.10416944357144},{"$f":"'Population 2016'!AX86*'Prevalence Rates'!AX86","v":76.837117511061152},{"$f":"'Population 2016'!AY86*'Prevalence Rates'!AY86","v":1688.9425802623559},{"$f":"'Population 2016'!AZ86*'Prevalence Rates'!AZ86","v":898.67925753822453},{"$f":"'Population 2016'!BA86*'Prevalence Rates'!BA86","v":406.50838112440772},{"$f":"'Population 2016'!BB86*'Prevalence Rates'!BB86","v":291.02210529225943},{"$f":"'Population 2016'!BC86*'Prevalence Rates'!BC86","v":0},84]
[null,"Male 40-44",{"$f":"'Population 2016'!C87*'Prevalence Rates'!C87","v":287.94739973588645},{"$f":"'Population 2016'!D87*'Prevalence Rates'!D87","v":313.56497240368043},{"$f":"'Population 2016'!E87*'Prevalence Rates'!E87","v":60.048051095817357},{"$f":"'Population 2016'!F87*'Prevalence Rates'!F87","v":68.785272264478991},{"$f":"'Population 2016'!G87*'Prevalence Rates'!G87","v":48.58674826145613},{"$f":"'Population 2016'!H87*'Prevalence Rates'!H87","v":1572.2943501742322},{"$f":"'Population 2016'!I87*'Prevalence Rates'!I87","v":66.619846554677693},{"$f":"'Population 2016'!J87*'Prevalence Rates'!J87","v":221.43775751042079},{"$f":"'Population 2016'!K87*'Prevalence Rates'!K87","v":178.432465639387},{"$f":"'Population 2016'!L87*'Prevalence Rates'!L87","v":102.95743809085063},{"$f":"'Population 2016'!M87*'Prevalence Rates'!M87","v":102.95743809085063},{"$f":"'Population 2016'!N87*'Prevalence Rates'!N87","v":742.34366145257047},{"$f":"'Population 2016'!O87*'Prevalence Rates'!O87","v":620.84816151806706},{"$f":"'Population 2016'!P87*'Prevalence Rates'!P87","v":40.076669091124977},{"$f":"'Population 2016'!Q87*'Prevalence Rates'!Q87","v":48.502496923384193},{"$f":"'Population 2016'!R87*'Prevalence Rates'!R87","v":46.183329879010429},{"$f":"'Population 2016'!S87*'Prevalence Rates'!S87","v":2060.4084053027677},{"$f":"'Population 2016'!T87*'Prevalence Rates'!T87","v":798.3218215894077},{"$f":"'Population 2016'!U87*'Prevalence Rates'!U87","v":0},{"$f":"'Population 2016'!V87*'Prevalence Rates'!V87","v":228.34387825644774},{"$f":"'Population 2016'!W87*'Prevalence Rates'!W87","v":773.13435349277438},{"$f":"'Population 2016'!X87*'Prevalence Rates'!X87","v":773.13435349277438},{"$f":"'Population 2016'!Y87*'Prevalence Rates'!Y87","v":450.57881011808814},{"$f":"'Population 2016'!Z87*'Prevalence Rates'!Z87","v":3157.1458695146266},{"$f":"'Population 2016'!AA87*'Prevalence Rates'!AA87","v":6315.6656469316977},{"$f":"'Population 2016'!AB87*'Prevalence Rates'!AB87","v":319.74798224494094},{"$f":"'Population 2016'!AC87*'Prevalence Rates'!AC87","v":4447.6709525327851},{"$f":"'Population 2016'!AD87*'Prevalence Rates'!AD87","v":254.25756632854157},{"$f":"'Population 2016'!AE87*'Prevalence Rates'!AE87","v":207.55468183525988},{"$f":"'Population 2016'!AF87*'Prevalence Rates'!AF87","v":428.30315220119991},{"$f":"'Population 2016'!AG87*'Prevalence Rates'!AG87","v":207.55468183525988},{"$f":"'Population 2016'!AH87*'Prevalence Rates'!AH87","v":1875.7285142323585},{"$f":"'Population 2016'!AI87*'Prevalence Rates'!AI87","v":1233.8012904080499},{"$f":"'Population 2016'!AJ87*'Prevalence Rates'!AJ87","v":82.875550987747204},{"$f":"'Population 2016'!AK87*'Prevalence Rates'!AK87","v":9.6520605639420385},{"$f":"'Population 2016'!AL87*'Prevalence Rates'!AL87","v":750.38215863218454},{"$f":"'Population 2016'!AM87*'Prevalence Rates'!AM87","v":1180.9437953280928},{"$f":"'Population 2016'!AN87*'Prevalence Rates'!AN87","v":0},{"$f":"'Population 2016'!AO87*'Prevalence Rates'!AO87","v":0},{"$f":"'Population 2016'!AP87*'Prevalence Rates'!AP87","v":100.60899613947316},{"$f":"'Population 2016'!AQ87*'Prevalence Rates'!AQ87","v":535.13669282541923},{"$f":"'Population 2016'!AR87*'Prevalence Rates'!AR87","v":11278.87},{"$f":"'Population 2016'!AS87*'Prevalence Rates'!AS87","v":66.619846554677693},{"$f":"'Population 2016'!AT87*'Prevalence Rates'!AT87","v":0},{"$f":"'Population 2016'!AU87*'Prevalence Rates'!AU87","v":0},{"$f":"'Population 2016'!AV87*'Prevalence Rates'!AV87","v":236.12255790445931},{"$f":"'Population 2016'!AW87*'Prevalence Rates'!AW87","v":704.4253333927968},{"$f":"'Population 2016'!AX87*'Prevalence Rates'!AX87","v":73.190610239349766},{"$f":"'Population 2016'!AY87*'Prevalence Rates'!AY87","v":1562.3820264651295},{"$f":"'Population 2016'!AZ87*'Prevalence Rates'!AZ87","v":772.07449107510308},{"$f":"'Population 2016'!BA87*'Prevalence Rates'!BA87","v":373.34137931718612},{"$f":"'Population 2016'!BB87*'Prevalence Rates'!BB87","v":298.76922152110427},{"$f":"'Population 2016'!BC87*'Prevalence Rates'!BC87","v":0},85]
[null,"Male 45-49",{"$f":"'Population 2016'!C88*'Prevalence Rates'!C88","v":258.83342917706437},{"$f":"'Population 2016'!D88*'Prevalence Rates'!D88","v":279.2532115089399},{"$f":"'Population 2016'!E88*'Prevalence Rates'!E88","v":51.887351635791525},{"$f":"'Population 2016'!F88*'Prevalence Rates'!F88","v":73.576335352136496},{"$f":"'Population 2016'!G88*'Prevalence Rates'!G88","v":57.244536820684864},{"$f":"'Population 2016'!H88*'Prevalence Rates'!H88","v":1726.0568892776803},{"$f":"'Population 2016'!I88*'Prevalence Rates'!I88","v":85.642081200196316},{"$f":"'Population 2016'!J88*'Prevalence Rates'!J88","v":264.47170321537277},{"$f":"'Population 2016'!K88*'Prevalence Rates'!K88","v":208.81264187081536},{"$f":"'Population 2016'!L88*'Prevalence Rates'!L88","v":118.81356489927039},{"$f":"'Population 2016'!M88*'Prevalence Rates'!M88","v":118.81356489927039},{"$f":"'Population 2016'!N88*'Prevalence Rates'!N88","v":902.72857340479595},{"$f":"'Population 2016'!O88*'Prevalence Rates'!O88","v":685.8865041103893},{"$f":"'Population 2016'!P88*'Prevalence Rates'!P88","v":52.839790058502111},{"$f":"'Population 2016'!Q88*'Prevalence Rates'!Q88","v":33.225915340045596},{"$f":"'Population 2016'!R88*'Prevalence Rates'!R88","v":48.471479144771997},{"$f":"'Population 2016'!S88*'Prevalence Rates'!S88","v":2222.6423063832467},{"$f":"'Population 2016'!T88*'Prevalence Rates'!T88","v":752.55323852320782},{"$f":"'Population 2016'!U88*'Prevalence Rates'!U88","v":0},{"$f":"'Population 2016'!V88*'Prevalence Rates'!V88","v":249.79528229219787},{"$f":"'Population 2016'!W88*'Prevalence Rates'!W88","v":939.37613733287992},{"$f":"'Population 2016'!X88*'Prevalence Rates'!X88","v":939.37613733287992},{"$f":"'Population 2016'!Y88*'Prevalence Rates'!Y88","v":513.55257186304243},{"$f":"'Population 2016'!Z88*'Prevalence Rates'!Z88","v":3339.988319334057},{"$f":"'Population 2016'!AA88*'Prevalence Rates'!AA88","v":7009.2744958313106},{"$f":"'Population 2016'!AB88*'Prevalence Rates'!AB88","v":288.62436624279673},{"$f":"'Population 2016'!AC88*'Prevalence Rates'!AC88","v":4915.6856173196711},{"$f":"'Population 2016'!AD88*'Prevalence Rates'!AD88","v":259.81777080972529},{"$f":"'Population 2016'!AE88*'Prevalence Rates'!AE88","v":201.92763182831092},{"$f":"'Population 2016'!AF88*'Prevalence Rates'!AF88","v":543.46533563836738},{"$f":"'Population 2016'!AG88*'Prevalence Rates'!AG88","v":201.92763182831092},{"$f":"'Population 2016'!AH88*'Prevalence Rates'!AH88","v":2101.7434762117814},{"$f":"'Population 2016'!AI88*'Prevalence Rates'!AI88","v":1221.0437306937154},{"$f":"'Population 2016'!AJ88*'Prevalence Rates'!AJ88","v":92.96303450860421},{"$f":"'Population 2016'!AK88*'Prevalence Rates'!AK88","v":12.161860996472331},{"$f":"'Population 2016'!AL88*'Prevalence Rates'!AL88","v":840.96662845360015},{"$f":"'Population 2016'!AM88*'Prevalence Rates'!AM88","v":1354.6004022976906},{"$f":"'Population 2016'!AN88*'Prevalence Rates'!AN88","v":0},{"$f":"'Population 2016'!AO88*'Prevalence Rates'!AO88","v":0},{"$f":"'Population 2016'!AP88*'Prevalence Rates'!AP88","v":99.450287503595632},{"$f":"'Population 2016'!AQ88*'Prevalence Rates'!AQ88","v":667.87705636588021},{"$f":"'Population 2016'!AR88*'Prevalence Rates'!AR88","v":12403.018549747048},{"$f":"'Population 2016'!AS88*'Prevalence Rates'!AS88","v":85.642081200196316},{"$f":"'Population 2016'!AT88*'Prevalence Rates'!AT88","v":0},{"$f":"'Population 2016'!AU88*'Prevalence Rates'!AU88","v":0},{"$f":"'Population 2016'!AV88*'Prevalence Rates'!AV88","v":241.75587601796272},{"$f":"'Population 2016'!AW88*'Prevalence Rates'!AW88","v":759.71591287226192},{"$f":"'Population 2016'!AX88*'Prevalence Rates'!AX88","v":89.621879211223316},{"$f":"'Population 2016'!AY88*'Prevalence Rates'!AY88","v":1861.3864157235971},{"$f":"'Population 2016'!AZ88*'Prevalence Rates'!AZ88","v":898.50073428934741},{"$f":"'Population 2016'!BA88*'Prevalence Rates'!BA88","v":433.98690722676855},{"$f":"'Population 2016'!BB88*'Prevalence Rates'!BB88","v":334.96254002498489},{"$f":"'Population 2016'!BC88*'Prevalence Rates'!BC88","v":0},86]
[null,"Male 50-54",{"$f":"'Population 2016'!C89*'Prevalence Rates'!C89","v":254.28523792954408},{"$f":"'Population 2016'!D89*'Prevalence Rates'!D89","v":264.51960648454184},{"$f":"'Population 2016'!E89*'Prevalence Rates'!E89","v":43.102191570472328},{"$f":"'Population 2016'!F89*'Prevalence Rates'!F89","v":77.560613439797322},{"$f":"'Population 2016'!G89*'Prevalence Rates'!G89","v":74.164104353892213},{"$f":"'Population 2016'!H89*'Prevalence Rates'!H89","v":1858.2410461701998},{"$f":"'Population 2016'!I89*'Prevalence Rates'!I89","v":88.360877428773989},{"$f":"'Population 2016'!J89*'Prevalence Rates'!J89","v":291.9360723954307},{"$f":"'Population 2016'!K89*'Prevalence Rates'!K89","v":223.06103390435334},{"$f":"'Population 2016'!L89*'Prevalence Rates'!L89","v":127.88553660340187},{"$f":"'Population 2016'!M89*'Prevalence Rates'!M89","v":127.88553660340187},{"$f":"'Population 2016'!N89*'Prevalence Rates'!N89","v":924.38073475952353},{"$f":"'Population 2016'!O89*'Prevalence Rates'!O89","v":725.00346879793494},{"$f":"'Population 2016'!P89*'Prevalence Rates'!P89","v":53.982272005712971},{"$f":"'Population 2016'!Q89*'Prevalence Rates'!Q89","v":50.545807379005538},{"$f":"'Population 2016'!R89*'Prevalence Rates'!R89","v":63.83402444748662},{"$f":"'Population 2016'!S89*'Prevalence Rates'!S89","v":2192.0939828851538},{"$f":"'Population 2016'!T89*'Prevalence Rates'!T89","v":780.30465946657989},{"$f":"'Population 2016'!U89*'Prevalence Rates'!U89","v":0},{"$f":"'Population 2016'!V89*'Prevalence Rates'!V89","v":251.85000259307375},{"$f":"'Population 2016'!W89*'Prevalence Rates'!W89","v":869.50223869255944},{"$f":"'Population 2016'!X89*'Prevalence Rates'!X89","v":869.50223869255944},{"$f":"'Population 2016'!Y89*'Prevalence Rates'!Y89","v":541.26111038171052},{"$f":"'Population 2016'!Z89*'Prevalence Rates'!Z89","v":3420.7205681336663},{"$f":"'Population 2016'!AA89*'Prevalence Rates'!AA89","v":7230.1668555972392},{"$f":"'Population 2016'!AB89*'Prevalence Rates'!AB89","v":269.3602106504789},{"$f":"'Population 2016'!AC89*'Prevalence Rates'!AC89","v":5177.0069632425675},{"$f":"'Population 2016'!AD89*'Prevalence Rates'!AD89","v":286.92612901074},{"$f":"'Population 2016'!AE89*'Prevalence Rates'!AE89","v":208.34402386771521},{"$f":"'Population 2016'!AF89*'Prevalence Rates'!AF89","v":624.64486251815924},{"$f":"'Population 2016'!AG89*'Prevalence Rates'!AG89","v":208.34402386771521},{"$f":"'Population 2016'!AH89*'Prevalence Rates'!AH89","v":2063.8020984530726},{"$f":"'Population 2016'!AI89*'Prevalence Rates'!AI89","v":1252.7633991129146},{"$f":"'Population 2016'!AJ89*'Prevalence Rates'!AJ89","v":91.759629531146544},{"$f":"'Population 2016'!AK89*'Prevalence Rates'!AK89","v":7.7960647413284176},{"$f":"'Population 2016'!AL89*'Prevalence Rates'!AL89","v":924.38037176309297},{"$f":"'Population 2016'!AM89*'Prevalence Rates'!AM89","v":1353.8850073136412},{"$f":"'Population 2016'!AN89*'Prevalence Rates'!AN89","v":0},{"$f":"'Population 2016'!AO89*'Prevalence Rates'!AO89","v":0},{"$f":"'Population 2016'!AP89*'Prevalence Rates'!AP89","v":114.92893147302686},{"$f":"'Population 2016'!AQ89*'Prevalence Rates'!AQ89","v":663.08808684974315},{"$f":"'Population 2016'!AR89*'Prevalence Rates'!AR89","v":12763.929173693086},{"$f":"'Population 2016'!AS89*'Prevalence Rates'!AS89","v":88.360877428773989},{"$f":"'Population 2016'!AT89*'Prevalence Rates'!AT89","v":0},{"$f":"'Population 2016'!AU89*'Prevalence Rates'!AU89","v":0},{"$f":"'Population 2016'!AV89*'Prevalence Rates'!AV89","v":254.64952273892072},{"$f":"'Population 2016'!AW89*'Prevalence Rates'!AW89","v":723.60325064332721},{"$f":"'Population 2016'!AX89*'Prevalence Rates'!AX89","v":102.7495910956842},{"$f":"'Population 2016'!AY89*'Prevalence Rates'!AY89","v":1821.7907088614893},{"$f":"'Population 2016'!AZ89*'Prevalence Rates'!AZ89","v":937.60215513342087},{"$f":"'Population 2016'!BA89*'Prevalence Rates'!BA89","v":553.50846762160506},{"$f":"'Population 2016'!BB89*'Prevalence Rates'!BB89","v":324.18889107681287},{"$f":"'Population 2016'!BC89*'Prevalence Rates'!BC89","v":0},87]
[null,"Male 55-59",{"$f":"'Population 2016'!C90*'Prevalence Rates'!C90","v":315.97018647688924},{"$f":"'Population 2016'!D90*'Prevalence Rates'!D90","v":346.63887067014622},{"$f":"'Population 2016'!E90*'Prevalence Rates'!E90","v":67.941455484308946},{"$f":"'Population 2016'!F90*'Prevalence Rates'!F90","v":83.793460588688134},{"$f":"'Population 2016'!G90*'Prevalence Rates'!G90","v":81.673538021349174},{"$f":"'Population 2016'!H90*'Prevalence Rates'!H90","v":2460.9963701578004},{"$f":"'Population 2016'!I90*'Prevalence Rates'!I90","v":91.036731316971341},{"$f":"'Population 2016'!J90*'Prevalence Rates'!J90","v":375.29499470201063},{"$f":"'Population 2016'!K90*'Prevalence Rates'!K90","v":285.94031085377111},{"$f":"'Population 2016'!L90*'Prevalence Rates'!L90","v":154.79372538091926},{"$f":"'Population 2016'!M90*'Prevalence Rates'!M90","v":154.79372538091926},{"$f":"'Population 2016'!N90*'Prevalence Rates'!N90","v":1211.6451340463391},{"$f":"'Population 2016'!O90*'Prevalence Rates'!O90","v":920.9861935870257},{"$f":"'Population 2016'!P90*'Prevalence Rates'!P90","v":67.189160702517782},{"$f":"'Population 2016'!Q90*'Prevalence Rates'!Q90","v":53.830805838358266},{"$f":"'Population 2016'!R90*'Prevalence Rates'!R90","v":69.511434324996884},{"$f":"'Population 2016'!S90*'Prevalence Rates'!S90","v":2597.2993871530189},{"$f":"'Population 2016'!T90*'Prevalence Rates'!T90","v":836.39409058555043},{"$f":"'Population 2016'!U90*'Prevalence Rates'!U90","v":0},{"$f":"'Population 2016'!V90*'Prevalence Rates'!V90","v":290.1702210941898},{"$f":"'Population 2016'!W90*'Prevalence Rates'!W90","v":1169.7147977009472},{"$f":"'Population 2016'!X90*'Prevalence Rates'!X90","v":1169.7147977009472},{"$f":"'Population 2016'!Y90*'Prevalence Rates'!Y90","v":659.77726173829649},{"$f":"'Population 2016'!Z90*'Prevalence Rates'!Z90","v":4069.8932277292638},{"$f":"'Population 2016'!AA90*'Prevalence Rates'!AA90","v":8763.2664743940823},{"$f":"'Population 2016'!AB90*'Prevalence Rates'!AB90","v":354.31803409274659},{"$f":"'Population 2016'!AC90*'Prevalence Rates'!AC90","v":6168.3348663642337},{"$f":"'Population 2016'!AD90*'Prevalence Rates'!AD90","v":357.59945664638263},{"$f":"'Population 2016'!AE90*'Prevalence Rates'!AE90","v":274.06084027479443},{"$f":"'Population 2016'!AF90*'Prevalence Rates'!AF90","v":743.611889714467},{"$f":"'Population 2016'!AG90*'Prevalence Rates'!AG90","v":274.06084027479443},{"$f":"'Population 2016'!AH90*'Prevalence Rates'!AH90","v":2605.5996104571173},{"$f":"'Population 2016'!AI90*'Prevalence Rates'!AI90","v":1369.5294605140807},{"$f":"'Population 2016'!AJ90*'Prevalence Rates'!AJ90","v":110.04437548886401},{"$f":"'Population 2016'!AK90*'Prevalence Rates'!AK90","v":11.448878604294155},{"$f":"'Population 2016'!AL90*'Prevalence Rates'!AL90","v":1233.7245389538607},{"$f":"'Population 2016'!AM90*'Prevalence Rates'!AM90","v":1647.3840231216764},{"$f":"'Population 2016'!AN90*'Prevalence Rates'!AN90","v":0},{"$f":"'Population 2016'!AO90*'Prevalence Rates'!AO90","v":0},{"$f":"'Population 2016'!AP90*'Prevalence Rates'!AP90","v":122.60060085655608},{"$f":"'Population 2016'!AQ90*'Prevalence Rates'!AQ90","v":839.02961371300546},{"$f":"'Population 2016'!AR90*'Prevalence Rates'!AR90","v":15630.31161971831},{"$f":"'Population 2016'!AS90*'Prevalence Rates'!AS90","v":91.036731316971341},{"$f":"'Population 2016'!AT90*'Prevalence Rates'!AT90","v":0},{"$f":"'Population 2016'!AU90*'Prevalence Rates'!AU90","v":0},{"$f":"'Population 2016'!AV90*'Prevalence Rates'!AV90","v":358.86478718365731},{"$f":"'Population 2016'!AW90*'Prevalence Rates'!AW90","v":971.99815794557219},{"$f":"'Population 2016'!AX90*'Prevalence Rates'!AX90","v":132.50636967968484},{"$f":"'Population 2016'!AY90*'Prevalence Rates'!AY90","v":2366.3578743454191},{"$f":"'Population 2016'!AZ90*'Prevalence Rates'!AZ90","v":1170.8433365172452},{"$f":"'Population 2016'!BA90*'Prevalence Rates'!BA90","v":618.14096652705473},{"$f":"'Population 2016'!BB90*'Prevalence Rates'!BB90","v":361.80140336670098},{"$f":"'Population 2016'!BC90*'Prevalence Rates'!BC90","v":0},88]
[null,"Male 60-64",{"$f":"'Population 2016'!C91*'Prevalence Rates'!C91","v":284.48561273541986},{"$f":"'Population 2016'!D91*'Prevalence Rates'!D91","v":282.8088635709392},{"$f":"'Population 2016'!E91*'Prevalence Rates'!E91","v":37.703774746786827},{"$f":"'Population 2016'!F91*'Prevalence Rates'!F91","v":70.791027049064112},{"$f":"'Population 2016'!G91*'Prevalence Rates'!G91","v":79.372874978494266},{"$f":"'Population 2016'!H91*'Prevalence Rates'!H91","v":2103.4713616326262},{"$f":"'Population 2016'!I91*'Prevalence Rates'!I91","v":71.165769658952215},{"$f":"'Population 2016'!J91*'Prevalence Rates'!J91","v":292.76697989653161},{"$f":"'Population 2016'!K91*'Prevalence Rates'!K91","v":222.47225120164904},{"$f":"'Population 2016'!L91*'Prevalence Rates'!L91","v":128.13259530245759},{"$f":"'Population 2016'!M91*'Prevalence Rates'!M91","v":128.13259530245759},{"$f":"'Population 2016'!N91*'Prevalence Rates'!N91","v":976.86529810340357},{"$f":"'Population 2016'!O91*'Prevalence Rates'!O91","v":761.41659200826098},{"$f":"'Population 2016'!P91*'Prevalence Rates'!P91","v":62.140264233542467},{"$f":"'Population 2016'!Q91*'Prevalence Rates'!Q91","v":41.815000963724721},{"$f":"'Population 2016'!R91*'Prevalence Rates'!R91","v":52.583779333935468},{"$f":"'Population 2016'!S91*'Prevalence Rates'!S91","v":2173.6976593361469},{"$f":"'Population 2016'!T91*'Prevalence Rates'!T91","v":714.75291180612328},{"$f":"'Population 2016'!U91*'Prevalence Rates'!U91","v":0},{"$f":"'Population 2016'!V91*'Prevalence Rates'!V91","v":248.66031326228369},{"$f":"'Population 2016'!W91*'Prevalence Rates'!W91","v":978.23641183610084},{"$f":"'Population 2016'!X91*'Prevalence Rates'!X91","v":978.23641183610084},{"$f":"'Population 2016'!Y91*'Prevalence Rates'!Y91","v":538.61115851186048},{"$f":"'Population 2016'!Z91*'Prevalence Rates'!Z91","v":3279.8833291076116},{"$f":"'Population 2016'!AA91*'Prevalence Rates'!AA91","v":7115.5958067928295},{"$f":"'Population 2016'!AB91*'Prevalence Rates'!AB91","v":288.14190321161101},{"$f":"'Population 2016'!AC91*'Prevalence Rates'!AC91","v":4975.1809788975879},{"$f":"'Population 2016'!AD91*'Prevalence Rates'!AD91","v":308.77061517659547},{"$f":"'Population 2016'!AE91*'Prevalence Rates'!AE91","v":224.79147573101119},{"$f":"'Population 2016'!AF91*'Prevalence Rates'!AF91","v":637.19276594199664},{"$f":"'Population 2016'!AG91*'Prevalence Rates'!AG91","v":224.79147573101119},{"$f":"'Population 2016'!AH91*'Prevalence Rates'!AH91","v":2148.3772264967947},{"$f":"'Population 2016'!AI91*'Prevalence Rates'!AI91","v":1151.6497736141134},{"$f":"'Population 2016'!AJ91*'Prevalence Rates'!AJ91","v":99.817203045661032},{"$f":"'Population 2016'!AK91*'Prevalence Rates'!AK91","v":8.4806508179956701},{"$f":"'Population 2016'!AL91*'Prevalence Rates'!AL91","v":1044.6861015335112},{"$f":"'Population 2016'!AM91*'Prevalence Rates'!AM91","v":1323.9383852781823},{"$f":"'Population 2016'!AN91*'Prevalence Rates'!AN91","v":0},{"$f":"'Population 2016'!AO91*'Prevalence Rates'!AO91","v":0},{"$f":"'Population 2016'!AP91*'Prevalence Rates'!AP91","v":102.07947024108103},{"$f":"'Population 2016'!AQ91*'Prevalence Rates'!AQ91","v":599.09218985119674},{"$f":"'Population 2016'!AR91*'Prevalence Rates'!AR91","v":12860.18661971831},{"$f":"'Population 2016'!AS91*'Prevalence Rates'!AS91","v":71.165769658952215},{"$f":"'Population 2016'!AT91*'Prevalence Rates'!AT91","v":0},{"$f":"'Population 2016'!AU91*'Prevalence Rates'!AU91","v":0},{"$f":"'Population 2016'!AV91*'Prevalence Rates'!AV91","v":334.20995447638313},{"$f":"'Population 2016'!AW91*'Prevalence Rates'!AW91","v":833.86244239240068},{"$f":"'Population 2016'!AX91*'Prevalence Rates'!AX91","v":103.67078664058243},{"$f":"'Population 2016'!AY91*'Prevalence Rates'!AY91","v":1954.1059225578276},{"$f":"'Population 2016'!AZ91*'Prevalence Rates'!AZ91","v":952.51216362079276},{"$f":"'Population 2016'!BA91*'Prevalence Rates'!BA91","v":550.89081604360365},{"$f":"'Population 2016'!BB91*'Prevalence Rates'!BB91","v":288.10933838648953},{"$f":"'Population 2016'!BC91*'Prevalence Rates'!BC91","v":0},89]
[null,"Male 65-69",{"$f":"'Population 2016'!C92*'Prevalence Rates'!C92","v":0},{"$f":"'Population 2016'!D92*'Prevalence Rates'!D92","v":0},{"$f":"'Population 2016'!E92*'Prevalence Rates'!E92","v":0},{"$f":"'Population 2016'!F92*'Prevalence Rates'!F92","v":0},{"$f":"'Population 2016'!G92*'Prevalence Rates'!G92","v":0},{"$f":"'Population 2016'!H92*'Prevalence Rates'!H92","v":0},{"$f":"'Population 2016'!I92*'Prevalence Rates'!I92","v":0},{"$f":"'Population 2016'!J92*'Prevalence Rates'!J92","v":0},{"$f":"'Population 2016'!K92*'Prevalence Rates'!K92","v":0},{"$f":"'Population 2016'!L92*'Prevalence Rates'!L92","v":0},{"$f":"'Population 2016'!M92*'Prevalence Rates'!M92","v":0},{"$f":"'Population 2016'!N92*'Prevalence Rates'!N92","v":0},{"$f":"'Population 2016'!O92*'Prevalence Rates'!O92","v":0},{"$f":"'Population 2016'!P92*'Prevalence Rates'!P92","v":0},{"$f":"'Population 2016'!Q92*'Prevalence Rates'!Q92","v":0},{"$f":"'Population 2016'!R92*'Prevalence Rates'!R92","v":0},{"$f":"'Population 2016'!S92*'Prevalence Rates'!S92","v":0},{"$f":"'Population 2016'!T92*'Prevalence Rates'!T92","v":0},{"$f":"'Population 2016'!U92*'Prevalence Rates'!U92","v":0},{"$f":"'Population 2016'!V92*'Prevalence Rates'!V92","v":0},{"$f":"'Population 2016'!W92*'Prevalence Rates'!W92","v":0},{"$f":"'Population 2016'!X92*'Prevalence Rates'!X92","v":0},{"$f":"'Population 2016'!Y92*'Prevalence Rates'!Y92","v":0},{"$f":"'Population 2016'!Z92*'Prevalence Rates'!Z92","v":0},{"$f":"'Population 2016'!AA92*'Prevalence Rates'!AA92","v":0},{"$f":"'Population 2016'!AB92*'Prevalence Rates'!AB92","v":0},{"$f":"'Population 2016'!AC92*'Prevalence Rates'!AC92","v":0},{"$f":"'Population 2016'!AD92*'Prevalence Rates'!AD92","v":0},{"$f":"'Population 2016'!AE92*'Prevalence Rates'!AE92","v":0},{"$f":"'Population 2016'!AF92*'Prevalence Rates'!AF92","v":0},{"$f":"'Population 2016'!AG92*'Prevalence Rates'!AG92","v":0},{"$f":"'Population 2016'!AH92*'Prevalence Rates'!AH92","v":0},{"$f":"'Population 2016'!AI92*'Prevalence Rates'!AI92","v":0},{"$f":"'Population 2016'!AJ92*'Prevalence Rates'!AJ92","v":0},{"$f":"'Population 2016'!AK92*'Prevalence Rates'!AK92","v":0},{"$f":"'Population 2016'!AL92*'Prevalence Rates'!AL92","v":0},{"$f":"'Population 2016'!AM92*'Prevalence Rates'!AM92","v":0},{"$f":"'Population 2016'!AN92*'Prevalence Rates'!AN92","v":0},{"$f":"'Population 2016'!AO92*'Prevalence Rates'!AO92","v":0},{"$f":"'Population 2016'!AP92*'Prevalence Rates'!AP92","v":0},{"$f":"'Population 2016'!AQ92*'Prevalence Rates'!AQ92","v":0},{"$f":"'Population 2016'!AR92*'Prevalence Rates'!AR92","v":0},{"$f":"'Population 2016'!AS92*'Prevalence Rates'!AS92","v":0},{"$f":"'Population 2016'!AT92*'Prevalence Rates'!AT92","v":0},{"$f":"'Population 2016'!AU92*'Prevalence Rates'!AU92","v":0},{"$f":"'Population 2016'!AV92*'Prevalence Rates'!AV92","v":0},{"$f":"'Population 2016'!AW92*'Prevalence Rates'!AW92","v":0},{"$f":"'Population 2016'!AX92*'Prevalence Rates'!AX92","v":0},{"$f":"'Population 2016'!AY92*'Prevalence Rates'!AY92","v":0},{"$f":"'Population 2016'!AZ92*'Prevalence Rates'!AZ92","v":0},{"$f":"'Population 2016'!BA92*'Prevalence Rates'!BA92","v":0},{"$f":"'Population 2016'!BB92*'Prevalence Rates'!BB92","v":0},{"$f":"'Population 2016'!BC92*'Prevalence Rates'!BC92","v":0},90]
[null,"Male 70-74",{"$f":"'Population 2016'!C93*'Prevalence Rates'!C93","v":0},{"$f":"'Population 2016'!D93*'Prevalence Rates'!D93","v":0},{"$f":"'Population 2016'!E93*'Prevalence Rates'!E93","v":0},{"$f":"'Population 2016'!F93*'Prevalence Rates'!F93","v":0},{"$f":"'Population 2016'!G93*'Prevalence Rates'!G93","v":0},{"$f":"'Population 2016'!H93*'Prevalence Rates'!H93","v":0},{"$f":"'Population 2016'!I93*'Prevalence Rates'!I93","v":0},{"$f":"'Population 2016'!J93*'Prevalence Rates'!J93","v":0},{"$f":"'Population 2016'!K93*'Prevalence Rates'!K93","v":0},{"$f":"'Population 2016'!L93*'Prevalence Rates'!L93","v":0},{"$f":"'Population 2016'!M93*'Prevalence Rates'!M93","v":0},{"$f":"'Population 2016'!N93*'Prevalence Rates'!N93","v":0},{"$f":"'Population 2016'!O93*'Prevalence Rates'!O93","v":0},{"$f":"'Population 2016'!P93*'Prevalence Rates'!P93","v":0},{"$f":"'Population 2016'!Q93*'Prevalence Rates'!Q93","v":0},{"$f":"'Population 2016'!R93*'Prevalence Rates'!R93","v":0},{"$f":"'Population 2016'!S93*'Prevalence Rates'!S93","v":0},{"$f":"'Population 2016'!T93*'Prevalence Rates'!T93","v":0},{"$f":"'Population 2016'!U93*'Prevalence Rates'!U93","v":0},{"$f":"'Population 2016'!V93*'Prevalence Rates'!V93","v":0},{"$f":"'Population 2016'!W93*'Prevalence Rates'!W93","v":0},{"$f":"'Population 2016'!X93*'Prevalence Rates'!X93","v":0},{"$f":"'Population 2016'!Y93*'Prevalence Rates'!Y93","v":0},{"$f":"'Population 2016'!Z93*'Prevalence Rates'!Z93","v":0},{"$f":"'Population 2016'!AA93*'Prevalence Rates'!AA93","v":0},{"$f":"'Population 2016'!AB93*'Prevalence Rates'!AB93","v":0},{"$f":"'Population 2016'!AC93*'Prevalence Rates'!AC93","v":0},{"$f":"'Population 2016'!AD93*'Prevalence Rates'!AD93","v":0},{"$f":"'Population 2016'!AE93*'Prevalence Rates'!AE93","v":0},{"$f":"'Population 2016'!AF93*'Prevalence Rates'!AF93","v":0},{"$f":"'Population 2016'!AG93*'Prevalence Rates'!AG93","v":0},{"$f":"'Population 2016'!AH93*'Prevalence Rates'!AH93","v":0},{"$f":"'Population 2016'!AI93*'Prevalence Rates'!AI93","v":0},{"$f":"'Population 2016'!AJ93*'Prevalence Rates'!AJ93","v":0},{"$f":"'Population 2016'!AK93*'Prevalence Rates'!AK93","v":0},{"$f":"'Population 2016'!AL93*'Prevalence Rates'!AL93","v":0},{"$f":"'Population 2016'!AM93*'Prevalence Rates'!AM93","v":0},{"$f":"'Population 2016'!AN93*'Prevalence Rates'!AN93","v":0},{"$f":"'Population 2016'!AO93*'Prevalence Rates'!AO93","v":0},{"$f":"'Population 2016'!AP93*'Prevalence Rates'!AP93","v":0},{"$f":"'Population 2016'!AQ93*'Prevalence Rates'!AQ93","v":0},{"$f":"'Population 2016'!AR93*'Prevalence Rates'!AR93","v":0},{"$f":"'Population 2016'!AS93*'Prevalence Rates'!AS93","v":0},{"$f":"'Population 2016'!AT93*'Prevalence Rates'!AT93","v":0},{"$f":"'Population 2016'!AU93*'Prevalence Rates'!AU93","v":0},{"$f":"'Population 2016'!AV93*'Prevalence Rates'!AV93","v":0},{"$f":"'Population 2016'!AW93*'Prevalence Rates'!AW93","v":0},{"$f":"'Population 2016'!AX93*'Prevalence Rates'!AX93","v":0},{"$f":"'Population 2016'!AY93*'Prevalence Rates'!AY93","v":0},{"$f":"'Population 2016'!AZ93*'Prevalence Rates'!AZ93","v":0},{"$f":"'Population 2016'!BA93*'Prevalence Rates'!BA93","v":0},{"$f":"'Population 2016'!BB93*'Prevalence Rates'!BB93","v":0},{"$f":"'Population 2016'!BC93*'Prevalence Rates'!BC93","v":0},91]
[null,"Male 75-79",{"$f":"'Population 2016'!C94*'Prevalence Rates'!C94","v":0},{"$f":"'Population 2016'!D94*'Prevalence Rates'!D94","v":0},{"$f":"'Population 2016'!E94*'Prevalence Rates'!E94","v":0},{"$f":"'Population 2016'!F94*'Prevalence Rates'!F94","v":0},{"$f":"'Population 2016'!G94*'Prevalence Rates'!G94","v":0},{"$f":"'Population 2016'!H94*'Prevalence Rates'!H94","v":0},{"$f":"'Population 2016'!I94*'Prevalence Rates'!I94","v":0},{"$f":"'Population 2016'!J94*'Prevalence Rates'!J94","v":0},{"$f":"'Population 2016'!K94*'Prevalence Rates'!K94","v":0},{"$f":"'Population 2016'!L94*'Prevalence Rates'!L94","v":0},{"$f":"'Population 2016'!M94*'Prevalence Rates'!M94","v":0},{"$f":"'Population 2016'!N94*'Prevalence Rates'!N94","v":0},{"$f":"'Population 2016'!O94*'Prevalence Rates'!O94","v":0},{"$f":"'Population 2016'!P94*'Prevalence Rates'!P94","v":0},{"$f":"'Population 2016'!Q94*'Prevalence Rates'!Q94","v":0},{"$f":"'Population 2016'!R94*'Prevalence Rates'!R94","v":0},{"$f":"'Population 2016'!S94*'Prevalence Rates'!S94","v":0},{"$f":"'Population 2016'!T94*'Prevalence Rates'!T94","v":0},{"$f":"'Population 2016'!U94*'Prevalence Rates'!U94","v":0},{"$f":"'Population 2016'!V94*'Prevalence Rates'!V94","v":0},{"$f":"'Population 2016'!W94*'Prevalence Rates'!W94","v":0},{"$f":"'Population 2016'!X94*'Prevalence Rates'!X94","v":0},{"$f":"'Population 2016'!Y94*'Prevalence Rates'!Y94","v":0},{"$f":"'Population 2016'!Z94*'Prevalence Rates'!Z94","v":0},{"$f":"'Population 2016'!AA94*'Prevalence Rates'!AA94","v":0},{"$f":"'Population 2016'!AB94*'Prevalence Rates'!AB94","v":0},{"$f":"'Population 2016'!AC94*'Prevalence Rates'!AC94","v":0},{"$f":"'Population 2016'!AD94*'Prevalence Rates'!AD94","v":0},{"$f":"'Population 2016'!AE94*'Prevalence Rates'!AE94","v":0},{"$f":"'Population 2016'!AF94*'Prevalence Rates'!AF94","v":0},{"$f":"'Population 2016'!AG94*'Prevalence Rates'!AG94","v":0},{"$f":"'Population 2016'!AH94*'Prevalence Rates'!AH94","v":0},{"$f":"'Population 2016'!AI94*'Prevalence Rates'!AI94","v":0},{"$f":"'Population 2016'!AJ94*'Prevalence Rates'!AJ94","v":0},{"$f":"'Population 2016'!AK94*'Prevalence Rates'!AK94","v":0},{"$f":"'Population 2016'!AL94*'Prevalence Rates'!AL94","v":0},{"$f":"'Population 2016'!AM94*'Prevalence Rates'!AM94","v":0},{"$f":"'Population 2016'!AN94*'Prevalence Rates'!AN94","v":0},{"$f":"'Population 2016'!AO94*'Prevalence Rates'!AO94","v":0},{"$f":"'Population 2016'!AP94*'Prevalence Rates'!AP94","v":0},{"$f":"'Population 2016'!AQ94*'Prevalence Rates'!AQ94","v":0},{"$f":"'Population 2016'!AR94*'Prevalence Rates'!AR94","v":0},{"$f":"'Population 2016'!AS94*'Prevalence Rates'!AS94","v":0},{"$f":"'Population 2016'!AT94*'Prevalence Rates'!AT94","v":0},{"$f":"'Population 2016'!AU94*'Prevalence Rates'!AU94","v":0},{"$f":"'Population 2016'!AV94*'Prevalence Rates'!AV94","v":0},{"$f":"'Population 2016'!AW94*'Prevalence Rates'!AW94","v":0},{"$f":"'Population 2016'!AX94*'Prevalence Rates'!AX94","v":0},{"$f":"'Population 2016'!AY94*'Prevalence Rates'!AY94","v":0},{"$f":"'Population 2016'!AZ94*'Prevalence Rates'!AZ94","v":0},{"$f":"'Population 2016'!BA94*'Prevalence Rates'!BA94","v":0},{"$f":"'Population 2016'!BB94*'Prevalence Rates'!BB94","v":0},{"$f":"'Population 2016'!BC94*'Prevalence Rates'!BC94","v":0},92]
[null,"Male 80-84",{"$f":"'Population 2016'!C95*'Prevalence Rates'!C95","v":0},{"$f":"'Population 2016'!D95*'Prevalence Rates'!D95","v":0},{"$f":"'Population 2016'!E95*'Prevalence Rates'!E95","v":0},{"$f":"'Population 2016'!F95*'Prevalence Rates'!F95","v":0},{"$f":"'Population 2016'!G95*'Prevalence Rates'!G95","v":0},{"$f":"'Population 2016'!H95*'Prevalence Rates'!H95","v":0},{"$f":"'Population 2016'!I95*'Prevalence Rates'!I95","v":0},{"$f":"'Population 2016'!J95*'Prevalence Rates'!J95","v":0},{"$f":"'Population 2016'!K95*'Prevalence Rates'!K95","v":0},{"$f":"'Population 2016'!L95*'Prevalence Rates'!L95","v":0},{"$f":"'Population 2016'!M95*'Prevalence Rates'!M95","v":0},{"$f":"'Population 2016'!N95*'Prevalence Rates'!N95","v":0},{"$f":"'Population 2016'!O95*'Prevalence Rates'!O95","v":0},{"$f":"'Population 2016'!P95*'Prevalence Rates'!P95","v":0},{"$f":"'Population 2016'!Q95*'Prevalence Rates'!Q95","v":0},{"$f":"'Population 2016'!R95*'Prevalence Rates'!R95","v":0},{"$f":"'Population 2016'!S95*'Prevalence Rates'!S95","v":0},{"$f":"'Population 2016'!T95*'Prevalence Rates'!T95","v":0},{"$f":"'Population 2016'!U95*'Prevalence Rates'!U95","v":0},{"$f":"'Population 2016'!V95*'Prevalence Rates'!V95","v":0},{"$f":"'Population 2016'!W95*'Prevalence Rates'!W95","v":0},{"$f":"'Population 2016'!X95*'Prevalence Rates'!X95","v":0},{"$f":"'Population 2016'!Y95*'Prevalence Rates'!Y95","v":0},{"$f":"'Population 2016'!Z95*'Prevalence Rates'!Z95","v":0},{"$f":"'Population 2016'!AA95*'Prevalence Rates'!AA95","v":0},{"$f":"'Population 2016'!AB95*'Prevalence Rates'!AB95","v":0},{"$f":"'Population 2016'!AC95*'Prevalence Rates'!AC95","v":0},{"$f":"'Population 2016'!AD95*'Prevalence Rates'!AD95","v":0},{"$f":"'Population 2016'!AE95*'Prevalence Rates'!AE95","v":0},{"$f":"'Population 2016'!AF95*'Prevalence Rates'!AF95","v":0},{"$f":"'Population 2016'!AG95*'Prevalence Rates'!AG95","v":0},{"$f":"'Population 2016'!AH95*'Prevalence Rates'!AH95","v":0},{"$f":"'Population 2016'!AI95*'Prevalence Rates'!AI95","v":0},{"$f":"'Population 2016'!AJ95*'Prevalence Rates'!AJ95","v":0},{"$f":"'Population 2016'!AK95*'Prevalence Rates'!AK95","v":0},{"$f":"'Population 2016'!AL95*'Prevalence Rates'!AL95","v":0},{"$f":"'Population 2016'!AM95*'Prevalence Rates'!AM95","v":0},{"$f":"'Population 2016'!AN95*'Prevalence Rates'!AN95","v":0},{"$f":"'Population 2016'!AO95*'Prevalence Rates'!AO95","v":0},{"$f":"'Population 2016'!AP95*'Prevalence Rates'!AP95","v":0},{"$f":"'Population 2016'!AQ95*'Prevalence Rates'!AQ95","v":0},{"$f":"'Population 2016'!AR95*'Prevalence Rates'!AR95","v":0},{"$f":"'Population 2016'!AS95*'Prevalence Rates'!AS95","v":0},{"$f":"'Population 2016'!AT95*'Prevalence Rates'!AT95","v":0},{"$f":"'Population 2016'!AU95*'Prevalence Rates'!AU95","v":0},{"$f":"'Population 2016'!AV95*'Prevalence Rates'!AV95","v":0},{"$f":"'Population 2016'!AW95*'Prevalence Rates'!AW95","v":0},{"$f":"'Population 2016'!AX95*'Prevalence Rates'!AX95","v":0},{"$f":"'Population 2016'!AY95*'Prevalence Rates'!AY95","v":0},{"$f":"'Population 2016'!AZ95*'Prevalence Rates'!AZ95","v":0},{"$f":"'Population 2016'!BA95*'Prevalence Rates'!BA95","v":0},{"$f":"'Population 2016'!BB95*'Prevalence Rates'!BB95","v":0},{"$f":"'Population 2016'!BC95*'Prevalence Rates'!BC95","v":0},93]
[null,"Male 85-89",{"$f":"'Population 2016'!C96*'Prevalence Rates'!C96","v":0},{"$f":"'Population 2016'!D96*'Prevalence Rates'!D96","v":0},{"$f":"'Population 2016'!E96*'Prevalence Rates'!E96","v":0},{"$f":"'Population 2016'!F96*'Prevalence Rates'!F96","v":0},{"$f":"'Population 2016'!G96*'Prevalence Rates'!G96","v":0},{"$f":"'Population 2016'!H96*'Prevalence Rates'!H96","v":0},{"$f":"'Population 2016'!I96*'Prevalence Rates'!I96","v":0},{"$f":"'Population 2016'!J96*'Prevalence Rates'!J96","v":0},{"$f":"'Population 2016'!K96*'Prevalence Rates'!K96","v":0},{"$f":"'Population 2016'!L96*'Prevalence Rates'!L96","v":0},{"$f":"'Population 2016'!M96*'Prevalence Rates'!M96","v":0},{"$f":"'Population 2016'!N96*'Prevalence Rates'!N96","v":0},{"$f":"'Population 2016'!O96*'Prevalence Rates'!O96","v":0},{"$f":"'Population 2016'!P96*'Prevalence Rates'!P96","v":0},{"$f":"'Population 2016'!Q96*'Prevalence Rates'!Q96","v":0},{"$f":"'Population 2016'!R96*'Prevalence Rates'!R96","v":0},{"$f":"'Population 2016'!S96*'Prevalence Rates'!S96","v":0},{"$f":"'Population 2016'!T96*'Prevalence Rates'!T96","v":0},{"$f":"'Population 2016'!U96*'Prevalence Rates'!U96","v":0},{"$f":"'Population 2016'!V96*'Prevalence Rates'!V96","v":0},{"$f":"'Population 2016'!W96*'Prevalence Rates'!W96","v":0},{"$f":"'Population 2016'!X96*'Prevalence Rates'!X96","v":0},{"$f":"'Population 2016'!Y96*'Prevalence Rates'!Y96","v":0},{"$f":"'Population 2016'!Z96*'Prevalence Rates'!Z96","v":0},{"$f":"'Population 2016'!AA96*'Prevalence Rates'!AA96","v":0},{"$f":"'Population 2016'!AB96*'Prevalence Rates'!AB96","v":0},{"$f":"'Population 2016'!AC96*'Prevalence Rates'!AC96","v":0},{"$f":"'Population 2016'!AD96*'Prevalence Rates'!AD96","v":0},{"$f":"'Population 2016'!AE96*'Prevalence Rates'!AE96","v":0},{"$f":"'Population 2016'!AF96*'Prevalence Rates'!AF96","v":0},{"$f":"'Population 2016'!AG96*'Prevalence Rates'!AG96","v":0},{"$f":"'Population 2016'!AH96*'Prevalence Rates'!AH96","v":0},{"$f":"'Population 2016'!AI96*'Prevalence Rates'!AI96","v":0},{"$f":"'Population 2016'!AJ96*'Prevalence Rates'!AJ96","v":0},{"$f":"'Population 2016'!AK96*'Prevalence Rates'!AK96","v":0},{"$f":"'Population 2016'!AL96*'Prevalence Rates'!AL96","v":0},{"$f":"'Population 2016'!AM96*'Prevalence Rates'!AM96","v":0},{"$f":"'Population 2016'!AN96*'Prevalence Rates'!AN96","v":0},{"$f":"'Population 2016'!AO96*'Prevalence Rates'!AO96","v":0},{"$f":"'Population 2016'!AP96*'Prevalence Rates'!AP96","v":0},{"$f":"'Population 2016'!AQ96*'Prevalence Rates'!AQ96","v":0},{"$f":"'Population 2016'!AR96*'Prevalence Rates'!AR96","v":0},{"$f":"'Population 2016'!AS96*'Prevalence Rates'!AS96","v":0},{"$f":"'Population 2016'!AT96*'Prevalence Rates'!AT96","v":0},{"$f":"'Population 2016'!AU96*'Prevalence Rates'!AU96","v":0},{"$f":"'Population 2016'!AV96*'Prevalence Rates'!AV96","v":0},{"$f":"'Population 2016'!AW96*'Prevalence Rates'!AW96","v":0},{"$f":"'Population 2016'!AX96*'Prevalence Rates'!AX96","v":0},{"$f":"'Population 2016'!AY96*'Prevalence Rates'!AY96","v":0},{"$f":"'Population 2016'!AZ96*'Prevalence Rates'!AZ96","v":0},{"$f":"'Population 2016'!BA96*'Prevalence Rates'!BA96","v":0},{"$f":"'Population 2016'!BB96*'Prevalence Rates'!BB96","v":0},{"$f":"'Population 2016'!BC96*'Prevalence Rates'!BC96","v":0},94]
[null,"Male 90+",{"$f":"'Population 2016'!C97*'Prevalence Rates'!C97","v":0},{"$f":"'Population 2016'!D97*'Prevalence Rates'!D97","v":0},{"$f":"'Population 2016'!E97*'Prevalence Rates'!E97","v":0},{"$f":"'Population 2016'!F97*'Prevalence Rates'!F97","v":0},{"$f":"'Population 2016'!G97*'Prevalence Rates'!G97","v":0},{"$f":"'Population 2016'!H97*'Prevalence Rates'!H97","v":0},{"$f":"'Population 2016'!I97*'Prevalence Rates'!I97","v":0},{"$f":"'Population 2016'!J97*'Prevalence Rates'!J97","v":0},{"$f":"'Population 2016'!K97*'Prevalence Rates'!K97","v":0},{"$f":"'Population 2016'!L97*'Prevalence Rates'!L97","v":0},{"$f":"'Population 2016'!M97*'Prevalence Rates'!M97","v":0},{"$f":"'Population 2016'!N97*'Prevalence Rates'!N97","v":0},{"$f":"'Population 2016'!O97*'Prevalence Rates'!O97","v":0},{"$f":"'Population 2016'!P97*'Prevalence Rates'!P97","v":0},{"$f":"'Population 2016'!Q97*'Prevalence Rates'!Q97","v":0},{"$f":"'Population 2016'!R97*'Prevalence Rates'!R97","v":0},{"$f":"'Population 2016'!S97*'Prevalence Rates'!S97","v":0},{"$f":"'Population 2016'!T97*'Prevalence Rates'!T97","v":0},{"$f":"'Population 2016'!U97*'Prevalence Rates'!U97","v":0},{"$f":"'Population 2016'!V97*'Prevalence Rates'!V97","v":0},{"$f":"'Population 2016'!W97*'Prevalence Rates'!W97","v":0},{"$f":"'Population 2016'!X97*'Prevalence Rates'!X97","v":0},{"$f":"'Population 2016'!Y97*'Prevalence Rates'!Y97","v":0},{"$f":"'Population 2016'!Z97*'Prevalence Rates'!Z97","v":0},{"$f":"'Population 2016'!AA97*'Prevalence Rates'!AA97","v":0},{"$f":"'Population 2016'!AB97*'Prevalence Rates'!AB97","v":0},{"$f":"'Population 2016'!AC97*'Prevalence Rates'!AC97","v":0},{"$f":"'Population 2016'!AD97*'Prevalence Rates'!AD97","v":0},{"$f":"'Population 2016'!AE97*'Prevalence Rates'!AE97","v":0},{"$f":"'Population 2016'!AF97*'Prevalence Rates'!AF97","v":0},{"$f":"'Population 2016'!AG97*'Prevalence Rates'!AG97","v":0},{"$f":"'Population 2016'!AH97*'Prevalence Rates'!AH97","v":0},{"$f":"'Population 2016'!AI97*'Prevalence Rates'!AI97","v":0},{"$f":"'Population 2016'!AJ97*'Prevalence Rates'!AJ97","v":0},{"$f":"'Population 2016'!AK97*'Prevalence Rates'!AK97","v":0},{"$f":"'Population 2016'!AL97*'Prevalence Rates'!AL97","v":0},{"$f":"'Population 2016'!AM97*'Prevalence Rates'!AM97","v":0},{"$f":"'Population 2016'!AN97*'Prevalence Rates'!AN97","v":0},{"$f":"'Population 2016'!AO97*'Prevalence Rates'!AO97","v":0},{"$f":"'Population 2016'!AP97*'Prevalence Rates'!AP97","v":0},{"$f":"'Population 2016'!AQ97*'Prevalence Rates'!AQ97","v":0},{"$f":"'Population 2016'!AR97*'Prevalence Rates'!AR97","v":0},{"$f":"'Population 2016'!AS97*'Prevalence Rates'!AS97","v":0},{"$f":"'Population 2016'!AT97*'Prevalence Rates'!AT97","v":0},{"$f":"'Population 2016'!AU97*'Prevalence Rates'!AU97","v":0},{"$f":"'Population 2016'!AV97*'Prevalence Rates'!AV97","v":0},{"$f":"'Population 2016'!AW97*'Prevalence Rates'!AW97","v":0},{"$f":"'Population 2016'!AX97*'Prevalence Rates'!AX97","v":0},{"$f":"'Population 2016'!AY97*'Prevalence Rates'!AY97","v":0},{"$f":"'Population 2016'!AZ97*'Prevalence Rates'!AZ97","v":0},{"$f":"'Population 2016'!BA97*'Prevalence Rates'!BA97","v":0},{"$f":"'Population 2016'!BB97*'Prevalence Rates'!BB97","v":0},{"$f":"'Population 2016'!BC97*'Prevalence Rates'!BC97","v":0},95]
["SIMD Q2","Female 0-4",{"$f":"'Population 2016'!C98*'Prevalence Rates'!C98","v":0},{"$f":"'Population 2016'!D98*'Prevalence Rates'!D98","v":0},{"$f":"'Population 2016'!E98*'Prevalence Rates'!E98","v":0},{"$f":"'Population 2016'!F98*'Prevalence Rates'!F98","v":0},{"$f":"'Population 2016'!G98*'Prevalence Rates'!G98","v":0},{"$f":"'Population 2016'!H98*'Prevalence Rates'!H98","v":0},{"$f":"'Population 2016'!I98*'Prevalence Rates'!I98","v":0},{"$f":"'Population 2016'!J98*'Prevalence Rates'!J98","v":0},{"$f":"'Population 2016'!K98*'Prevalence Rates'!K98","v":0},{"$f":"'Population 2016'!L98*'Prevalence Rates'!L98","v":0},{"$f":"'Population 2016'!M98*'Prevalence Rates'!M98","v":0},{"$f":"'Population 2016'!N98*'Prevalence Rates'!N98","v":0},{"$f":"'Population 2016'!O98*'Prevalence Rates'!O98","v":0},{"$f":"'Population 2016'!P98*'Prevalence Rates'!P98","v":0},{"$f":"'Population 2016'!Q98*'Prevalence Rates'!Q98","v":0},{"$f":"'Population 2016'!R98*'Prevalence Rates'!R98","v":0},{"$f":"'Population 2016'!S98*'Prevalence Rates'!S98","v":0},{"$f":"'Population 2016'!T98*'Prevalence Rates'!T98","v":0},{"$f":"'Population 2016'!U98*'Prevalence Rates'!U98","v":0},{"$f":"'Population 2016'!V98*'Prevalence Rates'!V98","v":0},{"$f":"'Population 2016'!W98*'Prevalence Rates'!W98","v":0},{"$f":"'Population 2016'!X98*'Prevalence Rates'!X98","v":0},{"$f":"'Population 2016'!Y98*'Prevalence Rates'!Y98","v":0},{"$f":"'Population 2016'!Z98*'Prevalence Rates'!Z98","v":0},{"$f":"'Population 2016'!AA98*'Prevalence Rates'!AA98","v":0},{"$f":"'Population 2016'!AB98*'Prevalence Rates'!AB98","v":0},{"$f":"'Population 2016'!AC98*'Prevalence Rates'!AC98","v":0},{"$f":"'Population 2016'!AD98*'Prevalence Rates'!AD98","v":0},{"$f":"'Population 2016'!AE98*'Prevalence Rates'!AE98","v":0},{"$f":"'Population 2016'!AF98*'Prevalence Rates'!AF98","v":0},{"$f":"'Population 2016'!AG98*'Prevalence Rates'!AG98","v":0},{"$f":"'Population 2016'!AH98*'Prevalence Rates'!AH98","v":0},{"$f":"'Population 2016'!AI98*'Prevalence Rates'!AI98","v":0},{"$f":"'Population 2016'!AJ98*'Prevalence Rates'!AJ98","v":0},{"$f":"'Population 2016'!AK98*'Prevalence Rates'!AK98","v":0},{"$f":"'Population 2016'!AL98*'Prevalence Rates'!AL98","v":0},{"$f":"'Population 2016'!AM98*'Prevalence Rates'!AM98","v":0},{"$f":"'Population 2016'!AN98*'Prevalence Rates'!AN98","v":0},{"$f":"'Population 2016'!AO98*'Prevalence Rates'!AO98","v":0},{"$f":"'Population 2016'!AP98*'Prevalence Rates'!AP98","v":0},{"$f":"'Population 2016'!AQ98*'Prevalence Rates'!AQ98","v":0},{"$f":"'Population 2016'!AR98*'Prevalence Rates'!AR98","v":0},{"$f":"'Population 2016'!AS98*'Prevalence Rates'!AS98","v":0},{"$f":"'Population 2016'!AT98*'Prevalence Rates'!AT98","v":0},{"$f":"'Population 2016'!AU98*'Prevalence Rates'!AU98","v":0},{"$f":"'Population 2016'!AV98*'Prevalence Rates'!AV98","v":0},{"$f":"'Population 2016'!AW98*'Prevalence Rates'!AW98","v":0},{"$f":"'Population 2016'!AX98*'Prevalence Rates'!AX98","v":0},{"$f":"'Population 2016'!AY98*'Prevalence Rates'!AY98","v":0},{"$f":"'Population 2016'!AZ98*'Prevalence Rates'!AZ98","v":0},{"$f":"'Population 2016'!BA98*'Prevalence Rates'!BA98","v":0},{"$f":"'Population 2016'!BB98*'Prevalence Rates'!BB98","v":0},{"$f":"'Population 2016'!BC98*'Prevalence Rates'!BC98","v":0},96]
[null,"Female 5-9",{"$f":"'Population 2016'!C99*'Prevalence Rates'!C99","v":0},{"$f":"'Population 2016'!D99*'Prevalence Rates'!D99","v":0},{"$f":"'Population 2016'!E99*'Prevalence Rates'!E99","v":0},{"$f":"'Population 2016'!F99*'Prevalence Rates'!F99","v":0},{"$f":"'Population 2016'!G99*'Prevalence Rates'!G99","v":0},{"$f":"'Population 2016'!H99*'Prevalence Rates'!H99","v":0},{"$f":"'Population 2016'!I99*'Prevalence Rates'!I99","v":0},{"$f":"'Population 2016'!J99*'Prevalence Rates'!J99","v":0},{"$f":"'Population 2016'!K99*'Prevalence Rates'!K99","v":0},{"$f":"'Population 2016'!L99*'Prevalence Rates'!L99","v":0},{"$f":"'Population 2016'!M99*'Prevalence Rates'!M99","v":0},{"$f":"'Population 2016'!N99*'Prevalence Rates'!N99","v":0},{"$f":"'Population 2016'!O99*'Prevalence Rates'!O99","v":0},{"$f":"'Population 2016'!P99*'Prevalence Rates'!P99","v":0},{"$f":"'Population 2016'!Q99*'Prevalence Rates'!Q99","v":0},{"$f":"'Population 2016'!R99*'Prevalence Rates'!R99","v":0},{"$f":"'Population 2016'!S99*'Prevalence Rates'!S99","v":0},{"$f":"'Population 2016'!T99*'Prevalence Rates'!T99","v":0},{"$f":"'Population 2016'!U99*'Prevalence Rates'!U99","v":0},{"$f":"'Population 2016'!V99*'Prevalence Rates'!V99","v":0},{"$f":"'Population 2016'!W99*'Prevalence Rates'!W99","v":0},{"$f":"'Population 2016'!X99*'Prevalence Rates'!X99","v":0},{"$f":"'Population 2016'!Y99*'Prevalence Rates'!Y99","v":0},{"$f":"'Population 2016'!Z99*'Prevalence Rates'!Z99","v":0},{"$f":"'Population 2016'!AA99*'Prevalence Rates'!AA99","v":0},{"$f":"'Population 2016'!AB99*'Prevalence Rates'!AB99","v":0},{"$f":"'Population 2016'!AC99*'Prevalence Rates'!AC99","v":0},{"$f":"'Population 2016'!AD99*'Prevalence Rates'!AD99","v":0},{"$f":"'Population 2016'!AE99*'Prevalence Rates'!AE99","v":0},{"$f":"'Population 2016'!AF99*'Prevalence Rates'!AF99","v":0},{"$f":"'Population 2016'!AG99*'Prevalence Rates'!AG99","v":0},{"$f":"'Population 2016'!AH99*'Prevalence Rates'!AH99","v":0},{"$f":"'Population 2016'!AI99*'Prevalence Rates'!AI99","v":0},{"$f":"'Population 2016'!AJ99*'Prevalence Rates'!AJ99","v":0},{"$f":"'Population 2016'!AK99*'Prevalence Rates'!AK99","v":0},{"$f":"'Population 2016'!AL99*'Prevalence Rates'!AL99","v":0},{"$f":"'Population 2016'!AM99*'Prevalence Rates'!AM99","v":0},{"$f":"'Population 2016'!AN99*'Prevalence Rates'!AN99","v":0},{"$f":"'Population 2016'!AO99*'Prevalence Rates'!AO99","v":0},{"$f":"'Population 2016'!AP99*'Prevalence Rates'!AP99","v":0},{"$f":"'Population 2016'!AQ99*'Prevalence Rates'!AQ99","v":0},{"$f":"'Population 2016'!AR99*'Prevalence Rates'!AR99","v":0},{"$f":"'Population 2016'!AS99*'Prevalence Rates'!AS99","v":0},{"$f":"'Population 2016'!AT99*'Prevalence Rates'!AT99","v":0},{"$f":"'Population 2016'!AU99*'Prevalence Rates'!AU99","v":0},{"$f":"'Population 2016'!AV99*'Prevalence Rates'!AV99","v":0},{"$f":"'Population 2016'!AW99*'Prevalence Rates'!AW99","v":0},{"$f":"'Population 2016'!AX99*'Prevalence Rates'!AX99","v":0},{"$f":"'Population 2016'!AY99*'Prevalence Rates'!AY99","v":0},{"$f":"'Population 2016'!AZ99*'Prevalence Rates'!AZ99","v":0},{"$f":"'Population 2016'!BA99*'Prevalence Rates'!BA99","v":0},{"$f":"'Population 2016'!BB99*'Prevalence Rates'!BB99","v":0},{"$f":"'Population 2016'!BC99*'Prevalence Rates'!BC99","v":0},97]
[null,"Female 10-15",{"$f":"'Population 2016'!C100*'Prevalence Rates'!C100","v":0},{"$f":"'Population 2016'!D100*'Prevalence Rates'!D100","v":0},{"$f":"'Population 2016'!E100*'Prevalence Rates'!E100","v":0},{"$f":"'Population 2016'!F100*'Prevalence Rates'!F100","v":0},{"$f":"'Population 2016'!G100*'Prevalence Rates'!G100","v":0},{"$f":"'Population 2016'!H100*'Prevalence Rates'!H100","v":0},{"$f":"'Population 2016'!I100*'Prevalence Rates'!I100","v":0},{"$f":"'Population 2016'!J100*'Prevalence Rates'!J100","v":0},{"$f":"'Population 2016'!K100*'Prevalence Rates'!K100","v":0},{"$f":"'Population 2016'!L100*'Prevalence Rates'!L100","v":0},{"$f":"'Population 2016'!M100*'Prevalence Rates'!M100","v":0},{"$f":"'Population 2016'!N100*'Prevalence Rates'!N100","v":0},{"$f":"'Population 2016'!O100*'Prevalence Rates'!O100","v":0},{"$f":"'Population 2016'!P100*'Prevalence Rates'!P100","v":0},{"$f":"'Population 2016'!Q100*'Prevalence Rates'!Q100","v":0},{"$f":"'Population 2016'!R100*'Prevalence Rates'!R100","v":0},{"$f":"'Population 2016'!S100*'Prevalence Rates'!S100","v":0},{"$f":"'Population 2016'!T100*'Prevalence Rates'!T100","v":0},{"$f":"'Population 2016'!U100*'Prevalence Rates'!U100","v":0},{"$f":"'Population 2016'!V100*'Prevalence Rates'!V100","v":0},{"$f":"'Population 2016'!W100*'Prevalence Rates'!W100","v":0},{"$f":"'Population 2016'!X100*'Prevalence Rates'!X100","v":0},{"$f":"'Population 2016'!Y100*'Prevalence Rates'!Y100","v":0},{"$f":"'Population 2016'!Z100*'Prevalence Rates'!Z100","v":0},{"$f":"'Population 2016'!AA100*'Prevalence Rates'!AA100","v":0},{"$f":"'Population 2016'!AB100*'Prevalence Rates'!AB100","v":0},{"$f":"'Population 2016'!AC100*'Prevalence Rates'!AC100","v":0},{"$f":"'Population 2016'!AD100*'Prevalence Rates'!AD100","v":0},{"$f":"'Population 2016'!AE100*'Prevalence Rates'!AE100","v":0},{"$f":"'Population 2016'!AF100*'Prevalence Rates'!AF100","v":0},{"$f":"'Population 2016'!AG100*'Prevalence Rates'!AG100","v":0},{"$f":"'Population 2016'!AH100*'Prevalence Rates'!AH100","v":0},{"$f":"'Population 2016'!AI100*'Prevalence Rates'!AI100","v":0},{"$f":"'Population 2016'!AJ100*'Prevalence Rates'!AJ100","v":0},{"$f":"'Population 2016'!AK100*'Prevalence Rates'!AK100","v":0},{"$f":"'Population 2016'!AL100*'Prevalence Rates'!AL100","v":0},{"$f":"'Population 2016'!AM100*'Prevalence Rates'!AM100","v":0},{"$f":"'Population 2016'!AN100*'Prevalence Rates'!AN100","v":0},{"$f":"'Population 2016'!AO100*'Prevalence Rates'!AO100","v":0},{"$f":"'Population 2016'!AP100*'Prevalence Rates'!AP100","v":0},{"$f":"'Population 2016'!AQ100*'Prevalence Rates'!AQ100","v":0},{"$f":"'Population 2016'!AR100*'Prevalence Rates'!AR100","v":0},{"$f":"'Population 2016'!AS100*'Prevalence Rates'!AS100","v":0},{"$f":"'Population 2016'!AT100*'Prevalence Rates'!AT100","v":0},{"$f":"'Population 2016'!AU100*'Prevalence Rates'!AU100","v":0},{"$f":"'Population 2016'!AV100*'Prevalence Rates'!AV100","v":0},{"$f":"'Population 2016'!AW100*'Prevalence Rates'!AW100","v":0},{"$f":"'Population 2016'!AX100*'Prevalence Rates'!AX100","v":0},{"$f":"'Population 2016'!AY100*'Prevalence Rates'!AY100","v":0},{"$f":"'Population 2016'!AZ100*'Prevalence Rates'!AZ100","v":0},{"$f":"'Population 2016'!BA100*'Prevalence Rates'!BA100","v":0},{"$f":"'Population 2016'!BB100*'Prevalence Rates'!BB100","v":0},{"$f":"'Population 2016'!BC100*'Prevalence Rates'!BC100","v":0},98]
[null,"Female 16-19",{"$f":"'Population 2016'!C101*'Prevalence Rates'!C101","v":142.4368231001441},{"$f":"'Population 2016'!D101*'Prevalence Rates'!D101","v":198.21083339833731},{"$f":"'Population 2016'!E101*'Prevalence Rates'!E101","v":56.268556871252443},{"$f":"'Population 2016'!F101*'Prevalence Rates'!F101","v":58.043933118702746},{"$f":"'Population 2016'!G101*'Prevalence Rates'!G101","v":34.18025829092629},{"$f":"'Population 2016'!H101*'Prevalence Rates'!H101","v":368.96790108800332},{"$f":"'Population 2016'!I101*'Prevalence Rates'!I101","v":63.758400565396592},{"$f":"'Population 2016'!J101*'Prevalence Rates'!J101","v":92.586656658821909},{"$f":"'Population 2016'!K101*'Prevalence Rates'!K101","v":67.768696020023512},{"$f":"'Population 2016'!L101*'Prevalence Rates'!L101","v":161.96575910146723},{"$f":"'Population 2016'!M101*'Prevalence Rates'!M101","v":161.96575910146723},{"$f":"'Population 2016'!N101*'Prevalence Rates'!N101","v":88.094578413203962},{"$f":"'Population 2016'!O101*'Prevalence Rates'!O101","v":142.64884449560137},{"$f":"'Population 2016'!P101*'Prevalence Rates'!P101","v":47.896879902005651},{"$f":"'Population 2016'!Q101*'Prevalence Rates'!Q101","v":89.280434622513624},{"$f":"'Population 2016'!R101*'Prevalence Rates'!R101","v":25.364255701744689},{"$f":"'Population 2016'!S101*'Prevalence Rates'!S101","v":925.47870797444443},{"$f":"'Population 2016'!T101*'Prevalence Rates'!T101","v":238.05161736184155},{"$f":"'Population 2016'!U101*'Prevalence Rates'!U101","v":14.688363570819597},{"$f":"'Population 2016'!V101*'Prevalence Rates'!V101","v":148.22946128513081},{"$f":"'Population 2016'!W101*'Prevalence Rates'!W101","v":257.7774807273247},{"$f":"'Population 2016'!X101*'Prevalence Rates'!X101","v":257.7774807273247},{"$f":"'Population 2016'!Y101*'Prevalence Rates'!Y101","v":239.21138102171054},{"$f":"'Population 2016'!Z101*'Prevalence Rates'!Z101","v":433.44577841996488},{"$f":"'Population 2016'!AA101*'Prevalence Rates'!AA101","v":1314.7542723825948},{"$f":"'Population 2016'!AB101*'Prevalence Rates'!AB101","v":242.04513484748955},{"$f":"'Population 2016'!AC101*'Prevalence Rates'!AC101","v":725.50483327032077},{"$f":"'Population 2016'!AD101*'Prevalence Rates'!AD101","v":154.25285601955753},{"$f":"'Population 2016'!AE101*'Prevalence Rates'!AE101","v":120.21599457275806},{"$f":"'Population 2016'!AF101*'Prevalence Rates'!AF101","v":35.264823358810581},{"$f":"'Population 2016'!AG101*'Prevalence Rates'!AG101","v":120.21599457275806},{"$f":"'Population 2016'!AH101*'Prevalence Rates'!AH101","v":578.2589744113227},{"$f":"'Population 2016'!AI101*'Prevalence Rates'!AI101","v":601.39571239214445},{"$f":"'Population 2016'!AJ101*'Prevalence Rates'!AJ101","v":112.61586125957039},{"$f":"'Population 2016'!AK101*'Prevalence Rates'!AK101","v":44.299001706563295},{"$f":"'Population 2016'!AL101*'Prevalence Rates'!AL101","v":123.32836411530721},{"$f":"'Population 2016'!AM101*'Prevalence Rates'!AM101","v":323.71145368010298},{"$f":"'Population 2016'!AN101*'Prevalence Rates'!AN101","v":6.3136448593237722},{"$f":"'Population 2016'!AO101*'Prevalence Rates'!AO101","v":6.3136448593237722},{"$f":"'Population 2016'!AP101*'Prevalence Rates'!AP101","v":40.147276341461328},{"$f":"'Population 2016'!AQ101*'Prevalence Rates'!AQ101","v":91.787262508969761},{"$f":"'Population 2016'!AR101*'Prevalence Rates'!AR101","v":3569.8491921005384},{"$f":"'Population 2016'!AS101*'Prevalence Rates'!AS101","v":63.758400565396592},{"$f":"'Population 2016'!AT101*'Prevalence Rates'!AT101","v":1.4575566884199351},{"$f":"'Population 2016'!AU101*'Prevalence Rates'!AU101","v":1.4575566884199351},{"$f":"'Population 2016'!AV101*'Prevalence Rates'!AV101","v":100.00383927434028},{"$f":"'Population 2016'!AW101*'Prevalence Rates'!AW101","v":254.43003271272343},{"$f":"'Population 2016'!AX101*'Prevalence Rates'!AX101","v":34.518634843713748},{"$f":"'Population 2016'!AY101*'Prevalence Rates'!AY101","v":436.49947882212388},{"$f":"'Population 2016'!AZ101*'Prevalence Rates'!AZ101","v":183.37985789847912},{"$f":"'Population 2016'!BA101*'Prevalence Rates'!BA101","v":92.889956835105366},{"$f":"'Population 2016'!BB101*'Prevalence Rates'!BB101","v":163.97771041420094},{"$f":"'Population 2016'!BC101*'Prevalence Rates'!BC101","v":14.688363570819597},99]
[null,"Female 20-24",{"$f":"'Population 2016'!C102*'Prevalence Rates'!C102","v":325.71840777749321},{"$f":"'Population 2016'!D102*'Prevalence Rates'!D102","v":411.78226789460837},{"$f":"'Population 2016'!E102*'Prevalence Rates'!E102","v":87.414598794765539},{"$f":"'Population 2016'!F102*'Prevalence Rates'!F102","v":112.93819544801852},{"$f":"'Population 2016'!G102*'Prevalence Rates'!G102","v":44.397844399245891},{"$f":"'Population 2016'!H102*'Prevalence Rates'!H102","v":499.81466622749554},{"$f":"'Population 2016'!I102*'Prevalence Rates'!I102","v":97.39888263166938},{"$f":"'Population 2016'!J102*'Prevalence Rates'!J102","v":147.90933385743688},{"$f":"'Population 2016'!K102*'Prevalence Rates'!K102","v":77.449938308598306},{"$f":"'Population 2016'!L102*'Prevalence Rates'!L102","v":202.45719887683404},{"$f":"'Population 2016'!M102*'Prevalence Rates'!M102","v":202.45719887683404},{"$f":"'Population 2016'!N102*'Prevalence Rates'!N102","v":213.77441857455631},{"$f":"'Population 2016'!O102*'Prevalence Rates'!O102","v":184.82328547690958},{"$f":"'Population 2016'!P102*'Prevalence Rates'!P102","v":68.576591280308932},{"$f":"'Population 2016'!Q102*'Prevalence Rates'!Q102","v":150.25638363100572},{"$f":"'Population 2016'!R102*'Prevalence Rates'!R102","v":32.206706077099071},{"$f":"'Population 2016'!S102*'Prevalence Rates'!S102","v":1577.6805980690681},{"$f":"'Population 2016'!T102*'Prevalence Rates'!T102","v":608.32119405541573},{"$f":"'Population 2016'!U102*'Prevalence Rates'!U102","v":17.924782662695101},{"$f":"'Population 2016'!V102*'Prevalence Rates'!V102","v":207.90418520401016},{"$f":"'Population 2016'!W102*'Prevalence Rates'!W102","v":348.67011844042759},{"$f":"'Population 2016'!X102*'Prevalence Rates'!X102","v":348.67011844042759},{"$f":"'Population 2016'!Y102*'Prevalence Rates'!Y102","v":354.64036487980582},{"$f":"'Population 2016'!Z102*'Prevalence Rates'!Z102","v":824.6481948448145},{"$f":"'Population 2016'!AA102*'Prevalence Rates'!AA102","v":1981.0001652041653},{"$f":"'Population 2016'!AB102*'Prevalence Rates'!AB102","v":500.86567508044868},{"$f":"'Population 2016'!AC102*'Prevalence Rates'!AC102","v":1180.8238648159077},{"$f":"'Population 2016'!AD102*'Prevalence Rates'!AD102","v":198.48529857766974},{"$f":"'Population 2016'!AE102*'Prevalence Rates'!AE102","v":154.25835040266134},{"$f":"'Population 2016'!AF102*'Prevalence Rates'!AF102","v":44.119194591758692},{"$f":"'Population 2016'!AG102*'Prevalence Rates'!AG102","v":154.25835040266134},{"$f":"'Population 2016'!AH102*'Prevalence Rates'!AH102","v":790.22813834430747},{"$f":"'Population 2016'!AI102*'Prevalence Rates'!AI102","v":1117.4155186935664},{"$f":"'Population 2016'!AJ102*'Prevalence Rates'!AJ102","v":141.21436286890867},{"$f":"'Population 2016'!AK102*'Prevalence Rates'!AK102","v":89.891404922807268},{"$f":"'Population 2016'!AL102*'Prevalence Rates'!AL102","v":167.51553200688787},{"$f":"'Population 2016'!AM102*'Prevalence Rates'!AM102","v":412.89425398814586},{"$f":"'Population 2016'!AN102*'Prevalence Rates'!AN102","v":11.338790767765142},{"$f":"'Population 2016'!AO102*'Prevalence Rates'!AO102","v":11.338790767765142},{"$f":"'Population 2016'!AP102*'Prevalence Rates'!AP102","v":63.880749095805868},{"$f":"'Population 2016'!AQ102*'Prevalence Rates'!AQ102","v":116.70963179948473},{"$f":"'Population 2016'!AR102*'Prevalence Rates'!AR102","v":5697.1526032315978},{"$f":"'Population 2016'!AS102*'Prevalence Rates'!AS102","v":97.39888263166938},{"$f":"'Population 2016'!AT102*'Prevalence Rates'!AT102","v":2.7068909927798797},{"$f":"'Population 2016'!AU102*'Prevalence Rates'!AU102","v":2.7068909927798797},{"$f":"'Population 2016'!AV102*'Prevalence Rates'!AV102","v":141.95175843304006},{"$f":"'Population 2016'!AW102*'Prevalence Rates'!AW102","v":377.34524082394006},{"$f":"'Population 2016'!AX102*'Prevalence Rates'!AX102","v":71.432884723899747},{"$f":"'Population 2016'!AY102*'Prevalence Rates'!AY102","v":742.07846836740362},{"$f":"'Population 2016'!AZ102*'Prevalence Rates'!AZ102","v":381.77175779852746},{"$f":"'Population 2016'!BA102*'Prevalence Rates'!BA102","v":125.89245449749116},{"$f":"'Population 2016'!BB102*'Prevalence Rates'!BB102","v":218.6877457661509},{"$f":"'Population 2016'!BC102*'Prevalence Rates'!BC102","v":17.924782662695101},100]
[null,"Female 25-29",{"$f":"'Population 2016'!C103*'Prevalence Rates'!C103","v":701.19658641264346},{"$f":"'Population 2016'!D103*'Prevalence Rates'!D103","v":882.98701439119577},{"$f":"'Population 2016'!E103*'Prevalence Rates'!E103","v":184.71672821975858},{"$f":"'Population 2016'!F103*'Prevalence Rates'!F103","v":220.05192323836167},{"$f":"'Population 2016'!G103*'Prevalence Rates'!G103","v":98.430653552410803},{"$f":"'Population 2016'!H103*'Prevalence Rates'!H103","v":1015.6172574956684},{"$f":"'Population 2016'!I103*'Prevalence Rates'!I103","v":186.48094001133114},{"$f":"'Population 2016'!J103*'Prevalence Rates'!J103","v":276.12621967642986},{"$f":"'Population 2016'!K103*'Prevalence Rates'!K103","v":169.02095067593319},{"$f":"'Population 2016'!L103*'Prevalence Rates'!L103","v":371.34989932470131},{"$f":"'Population 2016'!M103*'Prevalence Rates'!M103","v":371.34989932470131},{"$f":"'Population 2016'!N103*'Prevalence Rates'!N103","v":373.26055610612804},{"$f":"'Population 2016'!O103*'Prevalence Rates'!O103","v":397.12795065095082},{"$f":"'Population 2016'!P103*'Prevalence Rates'!P103","v":147.31372165126098},{"$f":"'Population 2016'!Q103*'Prevalence Rates'!Q103","v":283.47484829297593},{"$f":"'Population 2016'!R103*'Prevalence Rates'!R103","v":56.654571453384804},{"$f":"'Population 2016'!S103*'Prevalence Rates'!S103","v":3301.8891490262786},{"$f":"'Population 2016'!T103*'Prevalence Rates'!T103","v":1301.193420417208},{"$f":"'Population 2016'!U103*'Prevalence Rates'!U103","v":36.949506154381254},{"$f":"'Population 2016'!V103*'Prevalence Rates'!V103","v":426.56557626306068},{"$f":"'Population 2016'!W103*'Prevalence Rates'!W103","v":749.0600588942458},{"$f":"'Population 2016'!X103*'Prevalence Rates'!X103","v":749.0600588942458},{"$f":"'Population 2016'!Y103*'Prevalence Rates'!Y103","v":698.65209955770558},{"$f":"'Population 2016'!Z103*'Prevalence Rates'!Z103","v":2028.7988849925589},{"$f":"'Population 2016'!AA103*'Prevalence Rates'!AA103","v":4318.1918325706356},{"$f":"'Population 2016'!AB103*'Prevalence Rates'!AB103","v":1035.6131131471068},{"$f":"'Population 2016'!AC103*'Prevalence Rates'!AC103","v":2740.3694200874775},{"$f":"'Population 2016'!AD103*'Prevalence Rates'!AD103","v":406.83891372964695},{"$f":"'Population 2016'!AE103*'Prevalence Rates'!AE103","v":308.51554143220068},{"$f":"'Population 2016'!AF103*'Prevalence Rates'!AF103","v":103.04229630068032},{"$f":"'Population 2016'!AG103*'Prevalence Rates'!AG103","v":308.51554143220068},{"$f":"'Population 2016'!AH103*'Prevalence Rates'!AH103","v":1568.6864928640393},{"$f":"'Population 2016'!AI103*'Prevalence Rates'!AI103","v":2335.8687238680982},{"$f":"'Population 2016'!AJ103*'Prevalence Rates'!AJ103","v":280.43849458478746},{"$f":"'Population 2016'!AK103*'Prevalence Rates'!AK103","v":151.30948560269681},{"$f":"'Population 2016'!AL103*'Prevalence Rates'!AL103","v":317.13357763022378},{"$f":"'Population 2016'!AM103*'Prevalence Rates'!AM103","v":845.3094418447663},{"$f":"'Population 2016'!AN103*'Prevalence Rates'!AN103","v":24.361366676752962},{"$f":"'Population 2016'!AO103*'Prevalence Rates'!AO103","v":24.361366676752962},{"$f":"'Population 2016'!AP103*'Prevalence Rates'!AP103","v":134.61706706521386},{"$f":"'Population 2016'!AQ103*'Prevalence Rates'!AQ103","v":246.86375268882853},{"$f":"'Population 2016'!AR103*'Prevalence Rates'!AR103","v":11854.788902291919},{"$f":"'Population 2016'!AS103*'Prevalence Rates'!AS103","v":186.48094001133114},{"$f":"'Population 2016'!AT103*'Prevalence Rates'!AT103","v":4.527337117082749},{"$f":"'Population 2016'!AU103*'Prevalence Rates'!AU103","v":4.527337117082749},{"$f":"'Population 2016'!AV103*'Prevalence Rates'!AV103","v":288.68843446689925},{"$f":"'Population 2016'!AW103*'Prevalence Rates'!AW103","v":723.24988885165476},{"$f":"'Population 2016'!AX103*'Prevalence Rates'!AX103","v":120.439181377848},{"$f":"'Population 2016'!AY103*'Prevalence Rates'!AY103","v":1472.9610366466195},{"$f":"'Population 2016'!AZ103*'Prevalence Rates'!AZ103","v":713.24366024490189},{"$f":"'Population 2016'!BA103*'Prevalence Rates'!BA103","v":259.63280086018233},{"$f":"'Population 2016'!BB103*'Prevalence Rates'!BB103","v":470.80620541372497},{"$f":"'Population 2016'!BC103*'Prevalence Rates'!BC103","v":36.949506154381254},101]
[null,"Female 30-34",{"$f":"'Population 2016'!C104*'Prevalence Rates'!C104","v":597.29480949126662},{"$f":"'Population 2016'!D104*'Prevalence Rates'!D104","v":766.53996031114241},{"$f":"'Population 2016'!E104*'Prevalence Rates'!E104","v":171.66156096212151},{"$f":"'Population 2016'!F104*'Prevalence Rates'!F104","v":200.20187861634449},{"$f":"'Population 2016'!G104*'Prevalence Rates'!G104","v":81.872225852005243},{"$f":"'Population 2016'!H104*'Prevalence Rates'!H104","v":965.38404989175467},{"$f":"'Population 2016'!I104*'Prevalence Rates'!I104","v":157.84279565244813},{"$f":"'Population 2016'!J104*'Prevalence Rates'!J104","v":229.24708718965618},{"$f":"'Population 2016'!K104*'Prevalence Rates'!K104","v":156.94802562765224},{"$f":"'Population 2016'!L104*'Prevalence Rates'!L104","v":377.9316606000458},{"$f":"'Population 2016'!M104*'Prevalence Rates'!M104","v":377.9316606000458},{"$f":"'Population 2016'!N104*'Prevalence Rates'!N104","v":275.76898801160831},{"$f":"'Population 2016'!O104*'Prevalence Rates'!O104","v":377.58425229214419},{"$f":"'Population 2016'!P104*'Prevalence Rates'!P104","v":130.16075406173059},{"$f":"'Population 2016'!Q104*'Prevalence Rates'!Q104","v":291.42559916203459},{"$f":"'Population 2016'!R104*'Prevalence Rates'!R104","v":54.870175502097091},{"$f":"'Population 2016'!S104*'Prevalence Rates'!S104","v":3092.6728353175872},{"$f":"'Population 2016'!T104*'Prevalence Rates'!T104","v":1091.8478496544137},{"$f":"'Population 2016'!U104*'Prevalence Rates'!U104","v":35.302075943676357},{"$f":"'Population 2016'!V104*'Prevalence Rates'!V104","v":454.01781631959426},{"$f":"'Population 2016'!W104*'Prevalence Rates'!W104","v":742.17358948527237},{"$f":"'Population 2016'!X104*'Prevalence Rates'!X104","v":742.17358948527237},{"$f":"'Population 2016'!Y104*'Prevalence Rates'!Y104","v":675.1052552651729},{"$f":"'Population 2016'!Z104*'Prevalence Rates'!Z104","v":1685.432182720938},{"$f":"'Population 2016'!AA104*'Prevalence Rates'!AA104","v":4096.3840362794535},{"$f":"'Population 2016'!AB104*'Prevalence Rates'!AB104","v":927.71904803662073},{"$f":"'Population 2016'!AC104*'Prevalence Rates'!AC104","v":2416.3372098146142},{"$f":"'Population 2016'!AD104*'Prevalence Rates'!AD104","v":404.71873409816646},{"$f":"'Population 2016'!AE104*'Prevalence Rates'!AE104","v":323.47818893815037},{"$f":"'Population 2016'!AF104*'Prevalence Rates'!AF104","v":109.39224173097435},{"$f":"'Population 2016'!AG104*'Prevalence Rates'!AG104","v":323.47818893815037},{"$f":"'Population 2016'!AH104*'Prevalence Rates'!AH104","v":1657.5591642930015},{"$f":"'Population 2016'!AI104*'Prevalence Rates'!AI104","v":2165.3403429300129},{"$f":"'Population 2016'!AJ104*'Prevalence Rates'!AJ104","v":296.96783642345127},{"$f":"'Population 2016'!AK104*'Prevalence Rates'!AK104","v":162.31381182834747},{"$f":"'Population 2016'!AL104*'Prevalence Rates'!AL104","v":326.69330539627242},{"$f":"'Population 2016'!AM104*'Prevalence Rates'!AM104","v":892.41042953740236},{"$f":"'Population 2016'!AN104*'Prevalence Rates'!AN104","v":15.104047339586836},{"$f":"'Population 2016'!AO104*'Prevalence Rates'!AO104","v":15.104047339586836},{"$f":"'Population 2016'!AP104*'Prevalence Rates'!AP104","v":145.520630129686},{"$f":"'Population 2016'!AQ104*'Prevalence Rates'!AQ104","v":236.98000840054209},{"$f":"'Population 2016'!AR104*'Prevalence Rates'!AR104","v":11122.658624849217},{"$f":"'Population 2016'!AS104*'Prevalence Rates'!AS104","v":157.84279565244813},{"$f":"'Population 2016'!AT104*'Prevalence Rates'!AT104","v":3.1494519075358256},{"$f":"'Population 2016'!AU104*'Prevalence Rates'!AU104","v":3.1494519075358256},{"$f":"'Population 2016'!AV104*'Prevalence Rates'!AV104","v":255.06099045207364},{"$f":"'Population 2016'!AW104*'Prevalence Rates'!AW104","v":765.01897157990913},{"$f":"'Population 2016'!AX104*'Prevalence Rates'!AX104","v":91.204371539122505},{"$f":"'Population 2016'!AY104*'Prevalence Rates'!AY104","v":1353.359264454703},{"$f":"'Population 2016'!AZ104*'Prevalence Rates'!AZ104","v":613.16933535976818},{"$f":"'Population 2016'!BA104*'Prevalence Rates'!BA104","v":269.06845950809048},{"$f":"'Population 2016'!BB104*'Prevalence Rates'!BB104","v":488.95846425158584},{"$f":"'Population 2016'!BC104*'Prevalence Rates'!BC104","v":35.302075943676357},102]
[null,"Female 35-39",{"$f":"'Population 2016'!C105*'Prevalence Rates'!C105","v":397.41592105196906},{"$f":"'Population 2016'!D105*'Prevalence Rates'!D105","v":548.55688548336968},{"$f":"'Population 2016'!E105*'Prevalence Rates'!E105","v":152.54452774265567},{"$f":"'Population 2016'!F105*'Prevalence Rates'!F105","v":142.85872342463841},{"$f":"'Population 2016'!G105*'Prevalence Rates'!G105","v":76.352334084033643},{"$f":"'Population 2016'!H105*'Prevalence Rates'!H105","v":865.31592942637803},{"$f":"'Population 2016'!I105*'Prevalence Rates'!I105","v":134.86048145631204},{"$f":"'Population 2016'!J105*'Prevalence Rates'!J105","v":204.52961548798072},{"$f":"'Population 2016'!K105*'Prevalence Rates'!K105","v":141.08216196932111},{"$f":"'Population 2016'!L105*'Prevalence Rates'!L105","v":328.37116923543385},{"$f":"'Population 2016'!M105*'Prevalence Rates'!M105","v":328.37116923543385},{"$f":"'Population 2016'!N105*'Prevalence Rates'!N105","v":191.30417612599732},{"$f":"'Population 2016'!O105*'Prevalence Rates'!O105","v":333.99107848903668},{"$f":"'Population 2016'!P105*'Prevalence Rates'!P105","v":129.77321953933131},{"$f":"'Population 2016'!Q105*'Prevalence Rates'!Q105","v":244.69290422840578},{"$f":"'Population 2016'!R105*'Prevalence Rates'!R105","v":53.404814220026154},{"$f":"'Population 2016'!S105*'Prevalence Rates'!S105","v":2292.5662822019749},{"$f":"'Population 2016'!T105*'Prevalence Rates'!T105","v":656.53207166964592},{"$f":"'Population 2016'!U105*'Prevalence Rates'!U105","v":32.049946070643394},{"$f":"'Population 2016'!V105*'Prevalence Rates'!V105","v":393.90672544387149},{"$f":"'Population 2016'!W105*'Prevalence Rates'!W105","v":622.69926869908204},{"$f":"'Population 2016'!X105*'Prevalence Rates'!X105","v":622.69926869908204},{"$f":"'Population 2016'!Y105*'Prevalence Rates'!Y105","v":591.6934223046718},{"$f":"'Population 2016'!Z105*'Prevalence Rates'!Z105","v":1120.1088298559207},{"$f":"'Population 2016'!AA105*'Prevalence Rates'!AA105","v":3108.2765545135126},{"$f":"'Population 2016'!AB105*'Prevalence Rates'!AB105","v":666.94390323486846},{"$f":"'Population 2016'!AC105*'Prevalence Rates'!AC105","v":1760.8807070038386},{"$f":"'Population 2016'!AD105*'Prevalence Rates'!AD105","v":340.73002117589374},{"$f":"'Population 2016'!AE105*'Prevalence Rates'!AE105","v":264.66658316274015},{"$f":"'Population 2016'!AF105*'Prevalence Rates'!AF105","v":63.712680876649976},{"$f":"'Population 2016'!AG105*'Prevalence Rates'!AG105","v":264.66658316274015},{"$f":"'Population 2016'!AH105*'Prevalence Rates'!AH105","v":1324.8574840778469},{"$f":"'Population 2016'!AI105*'Prevalence Rates'!AI105","v":1523.9129390573967},{"$f":"'Population 2016'!AJ105*'Prevalence Rates'!AJ105","v":255.59614625172031},{"$f":"'Population 2016'!AK105*'Prevalence Rates'!AK105","v":119.44070621509303},{"$f":"'Population 2016'!AL105*'Prevalence Rates'!AL105","v":284.86251256409707},{"$f":"'Population 2016'!AM105*'Prevalence Rates'!AM105","v":730.55933616700543},{"$f":"'Population 2016'!AN105*'Prevalence Rates'!AN105","v":15.395254894857977},{"$f":"'Population 2016'!AO105*'Prevalence Rates'!AO105","v":15.395254894857977},{"$f":"'Population 2016'!AP105*'Prevalence Rates'!AP105","v":98.543028483271044},{"$f":"'Population 2016'!AQ105*'Prevalence Rates'!AQ105","v":195.58602661287571},{"$f":"'Population 2016'!AR105*'Prevalence Rates'!AR105","v":8577.9965811965812},{"$f":"'Population 2016'!AS105*'Prevalence Rates'!AS105","v":134.86048145631204},{"$f":"'Population 2016'!AT105*'Prevalence Rates'!AT105","v":5.9569067523143708},{"$f":"'Population 2016'!AU105*'Prevalence Rates'!AU105","v":5.9569067523143708},{"$f":"'Population 2016'!AV105*'Prevalence Rates'!AV105","v":238.31826370410832},{"$f":"'Population 2016'!AW105*'Prevalence Rates'!AW105","v":594.09370612591022},{"$f":"'Population 2016'!AX105*'Prevalence Rates'!AX105","v":80.812288347263234},{"$f":"'Population 2016'!AY105*'Prevalence Rates'!AY105","v":1035.1538266921918},{"$f":"'Population 2016'!AZ105*'Prevalence Rates'!AZ105","v":425.98577594513927},{"$f":"'Population 2016'!BA105*'Prevalence Rates'!BA105","v":218.63060089932199},{"$f":"'Population 2016'!BB105*'Prevalence Rates'!BB105","v":373.91641966707033},{"$f":"'Population 2016'!BC105*'Prevalence Rates'!BC105","v":32.049946070643394},103]
[null,"Female 40-44",{"$f":"'Population 2016'!C106*'Prevalence Rates'!C106","v":358.17422318708907},{"$f":"'Population 2016'!D106*'Prevalence Rates'!D106","v":508.04271587132195},{"$f":"'Population 2016'!E106*'Prevalence Rates'!E106","v":151.06111256201396},{"$f":"'Population 2016'!F106*'Prevalence Rates'!F106","v":158.00275770993576},{"$f":"'Population 2016'!G106*'Prevalence Rates'!G106","v":89.862398560028865},{"$f":"'Population 2016'!H106*'Prevalence Rates'!H106","v":946.67041851774695},{"$f":"'Population 2016'!I106*'Prevalence Rates'!I106","v":146.41995129542451},{"$f":"'Population 2016'!J106*'Prevalence Rates'!J106","v":218.27747879318696},{"$f":"'Population 2016'!K106*'Prevalence Rates'!K106","v":160.14731899220234},{"$f":"'Population 2016'!L106*'Prevalence Rates'!L106","v":369.07069443644536},{"$f":"'Population 2016'!M106*'Prevalence Rates'!M106","v":369.07069443644536},{"$f":"'Population 2016'!N106*'Prevalence Rates'!N106","v":170.22076924436189},{"$f":"'Population 2016'!O106*'Prevalence Rates'!O106","v":356.60505776173187},{"$f":"'Population 2016'!P106*'Prevalence Rates'!P106","v":123.48662758932909},{"$f":"'Population 2016'!Q106*'Prevalence Rates'!Q106","v":237.61613502936402},{"$f":"'Population 2016'!R106*'Prevalence Rates'!R106","v":52.80922149638274},{"$f":"'Population 2016'!S106*'Prevalence Rates'!S106","v":2280.1868457057099},{"$f":"'Population 2016'!T106*'Prevalence Rates'!T106","v":578.70608141093408},{"$f":"'Population 2016'!U106*'Prevalence Rates'!U106","v":41.89535434071032},{"$f":"'Population 2016'!V106*'Prevalence Rates'!V106","v":412.16552389662081},{"$f":"'Population 2016'!W106*'Prevalence Rates'!W106","v":665.88422916814591},{"$f":"'Population 2016'!X106*'Prevalence Rates'!X106","v":665.88422916814591},{"$f":"'Population 2016'!Y106*'Prevalence Rates'!Y106","v":623.64231119801264},{"$f":"'Population 2016'!Z106*'Prevalence Rates'!Z106","v":982.48764734311021},{"$f":"'Population 2016'!AA106*'Prevalence Rates'!AA106","v":3103.5634740669416},{"$f":"'Population 2016'!AB106*'Prevalence Rates'!AB106","v":630.39557898352462},{"$f":"'Population 2016'!AC106*'Prevalence Rates'!AC106","v":1692.0059230476913},{"$f":"'Population 2016'!AD106*'Prevalence Rates'!AD106","v":378.68210353456254},{"$f":"'Population 2016'!AE106*'Prevalence Rates'!AE106","v":288.97701212736882},{"$f":"'Population 2016'!AF106*'Prevalence Rates'!AF106","v":74.759637641552999},{"$f":"'Population 2016'!AG106*'Prevalence Rates'!AG106","v":288.97701212736882},{"$f":"'Population 2016'!AH106*'Prevalence Rates'!AH106","v":1384.0606536630005},{"$f":"'Population 2016'!AI106*'Prevalence Rates'!AI106","v":1462.8449280309862},{"$f":"'Population 2016'!AJ106*'Prevalence Rates'!AJ106","v":242.13059318089796},{"$f":"'Population 2016'!AK106*'Prevalence Rates'!AK106","v":124.33804724441347},{"$f":"'Population 2016'!AL106*'Prevalence Rates'!AL106","v":338.87540455677004},{"$f":"'Population 2016'!AM106*'Prevalence Rates'!AM106","v":760.5755262098603},{"$f":"'Population 2016'!AN106*'Prevalence Rates'!AN106","v":22.767630478311094},{"$f":"'Population 2016'!AO106*'Prevalence Rates'!AO106","v":22.767630478311094},{"$f":"'Population 2016'!AP106*'Prevalence Rates'!AP106","v":85.851880875577052},{"$f":"'Population 2016'!AQ106*'Prevalence Rates'!AQ106","v":227.50173806853326},{"$f":"'Population 2016'!AR106*'Prevalence Rates'!AR106","v":8689.2034188034195},{"$f":"'Population 2016'!AS106*'Prevalence Rates'!AS106","v":146.41995129542451},{"$f":"'Population 2016'!AT106*'Prevalence Rates'!AT106","v":2.4528439568353289},{"$f":"'Population 2016'!AU106*'Prevalence Rates'!AU106","v":2.4528439568353289},{"$f":"'Population 2016'!AV106*'Prevalence Rates'!AV106","v":247.07165964584689},{"$f":"'Population 2016'!AW106*'Prevalence Rates'!AW106","v":623.28688698132032},{"$f":"'Population 2016'!AX106*'Prevalence Rates'!AX106","v":81.178783986026346},{"$f":"'Population 2016'!AY106*'Prevalence Rates'!AY106","v":1047.9975391684488},{"$f":"'Population 2016'!AZ106*'Prevalence Rates'!AZ106","v":403.55400962491979},{"$f":"'Population 2016'!BA106*'Prevalence Rates'!BA106","v":226.48721481020223},{"$f":"'Population 2016'!BB106*'Prevalence Rates'!BB106","v":412.6416455722333},{"$f":"'Population 2016'!BC106*'Prevalence Rates'!BC106","v":41.89535434071032},104]
[null,"Female 45-49",{"$f":"'Population 2016'!C107*'Prevalence Rates'!C107","v":347.62511521976592},{"$f":"'Population 2016'!D107*'Prevalence Rates'!D107","v":503.9914475246311},{"$f":"'Population 2016'!E107*'Prevalence Rates'!E107","v":157.46599421866421},{"$f":"'Population 2016'!F107*'Prevalence Rates'!F107","v":155.83434298308703},{"$f":"'Population 2016'!G107*'Prevalence Rates'!G107","v":98.825273506100629},{"$f":"'Population 2016'!H107*'Prevalence Rates'!H107","v":1119.5634916708661},{"$f":"'Population 2016'!I107*'Prevalence Rates'!I107","v":182.72273354599116},{"$f":"'Population 2016'!J107*'Prevalence Rates'!J107","v":232.88680571484184},{"$f":"'Population 2016'!K107*'Prevalence Rates'!K107","v":175.3983059491633},{"$f":"'Population 2016'!L107*'Prevalence Rates'!L107","v":448.28929120269339},{"$f":"'Population 2016'!M107*'Prevalence Rates'!M107","v":448.28929120269339},{"$f":"'Population 2016'!N107*'Prevalence Rates'!N107","v":164.63234314294635},{"$f":"'Population 2016'!O107*'Prevalence Rates'!O107","v":428.95615455421404},{"$f":"'Population 2016'!P107*'Prevalence Rates'!P107","v":157.17366557005028},{"$f":"'Population 2016'!Q107*'Prevalence Rates'!Q107","v":276.45866150733605},{"$f":"'Population 2016'!R107*'Prevalence Rates'!R107","v":70.964321262410905},{"$f":"'Population 2016'!S107*'Prevalence Rates'!S107","v":2376.463280845413},{"$f":"'Population 2016'!T107*'Prevalence Rates'!T107","v":502.55198229130986},{"$f":"'Population 2016'!U107*'Prevalence Rates'!U107","v":45.315104775347379},{"$f":"'Population 2016'!V107*'Prevalence Rates'!V107","v":438.2615273995558},{"$f":"'Population 2016'!W107*'Prevalence Rates'!W107","v":707.47215939705461},{"$f":"'Population 2016'!X107*'Prevalence Rates'!X107","v":707.47215939705461},{"$f":"'Population 2016'!Y107*'Prevalence Rates'!Y107","v":663.96418150537909},{"$f":"'Population 2016'!Z107*'Prevalence Rates'!Z107","v":1028.101069766758},{"$f":"'Population 2016'!AA107*'Prevalence Rates'!AA107","v":3465.8653992636396},{"$f":"'Population 2016'!AB107*'Prevalence Rates'!AB107","v":634.65886016840727},{"$f":"'Population 2016'!AC107*'Prevalence Rates'!AC107","v":1869.1632112808518},{"$f":"'Population 2016'!AD107*'Prevalence Rates'!AD107","v":415.43458157271903},{"$f":"'Population 2016'!AE107*'Prevalence Rates'!AE107","v":316.77398452949586},{"$f":"'Population 2016'!AF107*'Prevalence Rates'!AF107","v":95.40813032358848},{"$f":"'Population 2016'!AG107*'Prevalence Rates'!AG107","v":316.77398452949586},{"$f":"'Population 2016'!AH107*'Prevalence Rates'!AH107","v":1564.4597304893496},{"$f":"'Population 2016'!AI107*'Prevalence Rates'!AI107","v":1486.6073761269674},{"$f":"'Population 2016'!AJ107*'Prevalence Rates'!AJ107","v":281.52385849797798},{"$f":"'Population 2016'!AK107*'Prevalence Rates'!AK107","v":133.37454782294856},{"$f":"'Population 2016'!AL107*'Prevalence Rates'!AL107","v":391.56207556601129},{"$f":"'Population 2016'!AM107*'Prevalence Rates'!AM107","v":830.97492720021478},{"$f":"'Population 2016'!AN107*'Prevalence Rates'!AN107","v":19.125083306014677},{"$f":"'Population 2016'!AO107*'Prevalence Rates'!AO107","v":19.125083306014677},{"$f":"'Population 2016'!AP107*'Prevalence Rates'!AP107","v":101.02101612236119},{"$f":"'Population 2016'!AQ107*'Prevalence Rates'!AQ107","v":240.66212203103251},{"$f":"'Population 2016'!AR107*'Prevalence Rates'!AR107","v":9449.1444600280502},{"$f":"'Population 2016'!AS107*'Prevalence Rates'!AS107","v":182.72273354599116},{"$f":"'Population 2016'!AT107*'Prevalence Rates'!AT107","v":3.7412860619811243},{"$f":"'Population 2016'!AU107*'Prevalence Rates'!AU107","v":3.7412860619811243},{"$f":"'Population 2016'!AV107*'Prevalence Rates'!AV107","v":293.35680108826796},{"$f":"'Population 2016'!AW107*'Prevalence Rates'!AW107","v":733.42829690961514},{"$f":"'Population 2016'!AX107*'Prevalence Rates'!AX107","v":84.216116254105032},{"$f":"'Population 2016'!AY107*'Prevalence Rates'!AY107","v":1096.599385232237},{"$f":"'Population 2016'!AZ107*'Prevalence Rates'!AZ107","v":413.89986548597926},{"$f":"'Population 2016'!BA107*'Prevalence Rates'!BA107","v":259.57825356663017},{"$f":"'Population 2016'!BB107*'Prevalence Rates'!BB107","v":437.87478496693262},{"$f":"'Population 2016'!BC107*'Prevalence Rates'!BC107","v":45.315104775347379},105]
[null,"Female 50-54",{"$f":"'Population 2016'!C108*'Prevalence Rates'!C108","v":362.476922545577},{"$f":"'Population 2016'!D108*'Prevalence Rates'!D108","v":529.60639746750383},{"$f":"'Population 2016'!E108*'Prevalence Rates'!E108","v":168.25448070303335},{"$f":"'Population 2016'!F108*'Prevalence Rates'!F108","v":145.28916187896834},{"$f":"'Population 2016'!G108*'Prevalence Rates'!G108","v":109.65804387119243},{"$f":"'Population 2016'!H108*'Prevalence Rates'!H108","v":1156.7054084561555},{"$f":"'Population 2016'!I108*'Prevalence Rates'!I108","v":196.20679069019835},{"$f":"'Population 2016'!J108*'Prevalence Rates'!J108","v":244.08328675882464},{"$f":"'Population 2016'!K108*'Prevalence Rates'!K108","v":180.86944576776105},{"$f":"'Population 2016'!L108*'Prevalence Rates'!L108","v":485.21733626345161},{"$f":"'Population 2016'!M108*'Prevalence Rates'!M108","v":485.21733626345161},{"$f":"'Population 2016'!N108*'Prevalence Rates'!N108","v":196.36373343582963},{"$f":"'Population 2016'!O108*'Prevalence Rates'!O108","v":405.05347726730753},{"$f":"'Population 2016'!P108*'Prevalence Rates'!P108","v":154.25532164699894},{"$f":"'Population 2016'!Q108*'Prevalence Rates'!Q108","v":281.00734149557377},{"$f":"'Population 2016'!R108*'Prevalence Rates'!R108","v":66.909217190273139},{"$f":"'Population 2016'!S108*'Prevalence Rates'!S108","v":2396.7603020751071},{"$f":"'Population 2016'!T108*'Prevalence Rates'!T108","v":477.0769970138702},{"$f":"'Population 2016'!U108*'Prevalence Rates'!U108","v":52.511065619501252},{"$f":"'Population 2016'!V108*'Prevalence Rates'!V108","v":436.76575426849934},{"$f":"'Population 2016'!W108*'Prevalence Rates'!W108","v":762.31095200845334},{"$f":"'Population 2016'!X108*'Prevalence Rates'!X108","v":762.31095200845334},{"$f":"'Population 2016'!Y108*'Prevalence Rates'!Y108","v":674.40536234391971},{"$f":"'Population 2016'!Z108*'Prevalence Rates'!Z108","v":1053.4862813659372},{"$f":"'Population 2016'!AA108*'Prevalence Rates'!AA108","v":3594.9510783692713},{"$f":"'Population 2016'!AB108*'Prevalence Rates'!AB108","v":657.12466052835089},{"$f":"'Population 2016'!AC108*'Prevalence Rates'!AC108","v":1929.8616825278446},{"$f":"'Population 2016'!AD108*'Prevalence Rates'!AD108","v":453.78538408903842},{"$f":"'Population 2016'!AE108*'Prevalence Rates'!AE108","v":344.25128182449549},{"$f":"'Population 2016'!AF108*'Prevalence Rates'!AF108","v":114.48975638830618},{"$f":"'Population 2016'!AG108*'Prevalence Rates'!AG108","v":344.25128182449549},{"$f":"'Population 2016'!AH108*'Prevalence Rates'!AH108","v":1630.9735188538216},{"$f":"'Population 2016'!AI108*'Prevalence Rates'!AI108","v":1444.7311120107149},{"$f":"'Population 2016'!AJ108*'Prevalence Rates'!AJ108","v":279.44021151896334},{"$f":"'Population 2016'!AK108*'Prevalence Rates'!AK108","v":129.58549816888751},{"$f":"'Population 2016'!AL108*'Prevalence Rates'!AL108","v":408.39237530525213},{"$f":"'Population 2016'!AM108*'Prevalence Rates'!AM108","v":857.46110143192891},{"$f":"'Population 2016'!AN108*'Prevalence Rates'!AN108","v":24.560633298250426},{"$f":"'Population 2016'!AO108*'Prevalence Rates'!AO108","v":24.560633298250426},{"$f":"'Population 2016'!AP108*'Prevalence Rates'!AP108","v":97.382180207147485},{"$f":"'Population 2016'!AQ108*'Prevalence Rates'!AQ108","v":249.77955048998243},{"$f":"'Population 2016'!AR108*'Prevalence Rates'!AR108","v":9774.3281907433375},{"$f":"'Population 2016'!AS108*'Prevalence Rates'!AS108","v":196.20679069019835},{"$f":"'Population 2016'!AT108*'Prevalence Rates'!AT108","v":3.2532922278096734},{"$f":"'Population 2016'!AU108*'Prevalence Rates'!AU108","v":3.2532922278096734},{"$f":"'Population 2016'!AV108*'Prevalence Rates'!AV108","v":331.10781034359462},{"$f":"'Population 2016'!AW108*'Prevalence Rates'!AW108","v":773.50508003196614},{"$f":"'Population 2016'!AX108*'Prevalence Rates'!AX108","v":89.830524004378688},{"$f":"'Population 2016'!AY108*'Prevalence Rates'!AY108","v":1165.3948297261038},{"$f":"'Population 2016'!AZ108*'Prevalence Rates'!AZ108","v":431.69331353813669},{"$f":"'Population 2016'!BA108*'Prevalence Rates'!BA108","v":274.92154181039416},{"$f":"'Population 2016'!BB108*'Prevalence Rates'!BB108","v":419.54071294819755},{"$f":"'Population 2016'!BC108*'Prevalence Rates'!BC108","v":52.511065619501252},106]
[null,"Female 55-59",{"$f":"'Population 2016'!C109*'Prevalence Rates'!C109","v":664.46579598424773},{"$f":"'Population 2016'!D109*'Prevalence Rates'!D109","v":971.65014899752134},{"$f":"'Population 2016'!E109*'Prevalence Rates'!E109","v":309.24231064268247},{"$f":"'Population 2016'!F109*'Prevalence Rates'!F109","v":323.90865040934443},{"$f":"'Population 2016'!G109*'Prevalence Rates'!G109","v":229.80595581836582},{"$f":"'Population 2016'!H109*'Prevalence Rates'!H109","v":2240.0308266416328},{"$f":"'Population 2016'!I109*'Prevalence Rates'!I109","v":392.84048301515571},{"$f":"'Population 2016'!J109*'Prevalence Rates'!J109","v":431.7634655943906},{"$f":"'Population 2016'!K109*'Prevalence Rates'!K109","v":312.25420587684999},{"$f":"'Population 2016'!L109*'Prevalence Rates'!L109","v":932.89246087678646},{"$f":"'Population 2016'!M109*'Prevalence Rates'!M109","v":932.89246087678646},{"$f":"'Population 2016'!N109*'Prevalence Rates'!N109","v":382.0052986666492},{"$f":"'Population 2016'!O109*'Prevalence Rates'!O109","v":790.4779616191563},{"$f":"'Population 2016'!P109*'Prevalence Rates'!P109","v":300.58338669564762},{"$f":"'Population 2016'!Q109*'Prevalence Rates'!Q109","v":548.15041548724832},{"$f":"'Population 2016'!R109*'Prevalence Rates'!R109","v":109.35290103910825},{"$f":"'Population 2016'!S109*'Prevalence Rates'!S109","v":4573.0177746249419},{"$f":"'Population 2016'!T109*'Prevalence Rates'!T109","v":892.59313320083209},{"$f":"'Population 2016'!U109*'Prevalence Rates'!U109","v":92.545977037331099},{"$f":"'Population 2016'!V109*'Prevalence Rates'!V109","v":785.71384425974134},{"$f":"'Population 2016'!W109*'Prevalence Rates'!W109","v":1417.3991156526949},{"$f":"'Population 2016'!X109*'Prevalence Rates'!X109","v":1417.3991156526949},{"$f":"'Population 2016'!Y109*'Prevalence Rates'!Y109","v":1205.4480836681348},{"$f":"'Population 2016'!Z109*'Prevalence Rates'!Z109","v":1942.3753251788844},{"$f":"'Population 2016'!AA109*'Prevalence Rates'!AA109","v":6719.8904502037585},{"$f":"'Population 2016'!AB109*'Prevalence Rates'!AB109","v":1230.7220296313651},{"$f":"'Population 2016'!AC109*'Prevalence Rates'!AC109","v":3569.9675818447286},{"$f":"'Population 2016'!AD109*'Prevalence Rates'!AD109","v":905.90562948449269},{"$f":"'Population 2016'!AE109*'Prevalence Rates'!AE109","v":675.99074107112472},{"$f":"'Population 2016'!AF109*'Prevalence Rates'!AF109","v":215.20779700681749},{"$f":"'Population 2016'!AG109*'Prevalence Rates'!AG109","v":675.99074107112472},{"$f":"'Population 2016'!AH109*'Prevalence Rates'!AH109","v":3083.3279187445874},{"$f":"'Population 2016'!AI109*'Prevalence Rates'!AI109","v":2774.4820306519},{"$f":"'Population 2016'!AJ109*'Prevalence Rates'!AJ109","v":564.18933627873469},{"$f":"'Population 2016'!AK109*'Prevalence Rates'!AK109","v":264.85935510898486},{"$f":"'Population 2016'!AL109*'Prevalence Rates'!AL109","v":749.99804834804138},{"$f":"'Population 2016'!AM109*'Prevalence Rates'!AM109","v":1598.3831758985993},{"$f":"'Population 2016'!AN109*'Prevalence Rates'!AN109","v":45.202736347544494},{"$f":"'Population 2016'!AO109*'Prevalence Rates'!AO109","v":45.202736347544494},{"$f":"'Population 2016'!AP109*'Prevalence Rates'!AP109","v":181.68516078166564},{"$f":"'Population 2016'!AQ109*'Prevalence Rates'!AQ109","v":453.49558177455117},{"$f":"'Population 2016'!AR109*'Prevalence Rates'!AR109","v":18523.159509202455},{"$f":"'Population 2016'!AS109*'Prevalence Rates'!AS109","v":392.84048301515571},{"$f":"'Population 2016'!AT109*'Prevalence Rates'!AT109","v":4.6911531681725078},{"$f":"'Population 2016'!AU109*'Prevalence Rates'!AU109","v":4.6911531681725078},{"$f":"'Population 2016'!AV109*'Prevalence Rates'!AV109","v":667.48735514117857},{"$f":"'Population 2016'!AW109*'Prevalence Rates'!AW109","v":1485.0628601438768},{"$f":"'Population 2016'!AX109*'Prevalence Rates'!AX109","v":162.96767167616005},{"$f":"'Population 2016'!AY109*'Prevalence Rates'!AY109","v":2239.1091536773356},{"$f":"'Population 2016'!AZ109*'Prevalence Rates'!AZ109","v":866.36176018049491},{"$f":"'Population 2016'!BA109*'Prevalence Rates'!BA109","v":523.32138257926169},{"$f":"'Population 2016'!BB109*'Prevalence Rates'!BB109","v":793.60651147049134},{"$f":"'Population 2016'!BC109*'Prevalence Rates'!BC109","v":92.545977037331099},107]
[null,"Female 60-64",{"$f":"'Population 2016'!C110*'Prevalence Rates'!C110","v":593.71691986506164},{"$f":"'Population 2016'!D110*'Prevalence Rates'!D110","v":880.3796849038207},{"$f":"'Population 2016'!E110*'Prevalence Rates'!E110","v":288.43701757192099},{"$f":"'Population 2016'!F110*'Prevalence Rates'!F110","v":271.77432217654382},{"$f":"'Population 2016'!G110*'Prevalence Rates'!G110","v":205.92492804167023},{"$f":"'Population 2016'!H110*'Prevalence Rates'!H110","v":1971.2785632845139},{"$f":"'Population 2016'!I110*'Prevalence Rates'!I110","v":356.56084244809949},{"$f":"'Population 2016'!J110*'Prevalence Rates'!J110","v":367.18346005676807},{"$f":"'Population 2016'!K110*'Prevalence Rates'!K110","v":277.11732071448688},{"$f":"'Population 2016'!L110*'Prevalence Rates'!L110","v":917.56047352988605},{"$f":"'Population 2016'!M110*'Prevalence Rates'!M110","v":917.56047352988605},{"$f":"'Population 2016'!N110*'Prevalence Rates'!N110","v":328.94900718517016},{"$f":"'Population 2016'!O110*'Prevalence Rates'!O110","v":692.00090916155091},{"$f":"'Population 2016'!P110*'Prevalence Rates'!P110","v":226.72575453614564},{"$f":"'Population 2016'!Q110*'Prevalence Rates'!Q110","v":459.13453604914821},{"$f":"'Population 2016'!R110*'Prevalence Rates'!R110","v":95.304090836167262},{"$f":"'Population 2016'!S110*'Prevalence Rates'!S110","v":3930.2362500136369},{"$f":"'Population 2016'!T110*'Prevalence Rates'!T110","v":732.77554922313095},{"$f":"'Population 2016'!U110*'Prevalence Rates'!U110","v":99.356719936182301},{"$f":"'Population 2016'!V110*'Prevalence Rates'!V110","v":732.30584438849098},{"$f":"'Population 2016'!W110*'Prevalence Rates'!W110","v":1292.1777652096937},{"$f":"'Population 2016'!X110*'Prevalence Rates'!X110","v":1292.1777652096937},{"$f":"'Population 2016'!Y110*'Prevalence Rates'!Y110","v":1086.1742262411176},{"$f":"'Population 2016'!Z110*'Prevalence Rates'!Z110","v":1528.1026339277494},{"$f":"'Population 2016'!AA110*'Prevalence Rates'!AA110","v":5708.3263463650528},{"$f":"'Population 2016'!AB110*'Prevalence Rates'!AB110","v":1128.0413432578903},{"$f":"'Population 2016'!AC110*'Prevalence Rates'!AC110","v":2847.020846115146},{"$f":"'Population 2016'!AD110*'Prevalence Rates'!AD110","v":818.48312960506837},{"$f":"'Population 2016'!AE110*'Prevalence Rates'!AE110","v":612.51553392509209},{"$f":"'Population 2016'!AF110*'Prevalence Rates'!AF110","v":156.2467567309771},{"$f":"'Population 2016'!AG110*'Prevalence Rates'!AG110","v":612.51553392509209},{"$f":"'Population 2016'!AH110*'Prevalence Rates'!AH110","v":2790.7424118740551},{"$f":"'Population 2016'!AI110*'Prevalence Rates'!AI110","v":2301.0027391327899},{"$f":"'Population 2016'!AJ110*'Prevalence Rates'!AJ110","v":462.12972684200668},{"$f":"'Population 2016'!AK110*'Prevalence Rates'!AK110","v":253.93195538936072},{"$f":"'Population 2016'!AL110*'Prevalence Rates'!AL110","v":653.06433832570019},{"$f":"'Population 2016'!AM110*'Prevalence Rates'!AM110","v":1451.3072529159442},{"$f":"'Population 2016'!AN110*'Prevalence Rates'!AN110","v":43.129216331602088},{"$f":"'Population 2016'!AO110*'Prevalence Rates'!AO110","v":43.129216331602088},{"$f":"'Population 2016'!AP110*'Prevalence Rates'!AP110","v":177.75876241506776},{"$f":"'Population 2016'!AQ110*'Prevalence Rates'!AQ110","v":368.19615396881159},{"$f":"'Population 2016'!AR110*'Prevalence Rates'!AR110","v":16221.865030674848},{"$f":"'Population 2016'!AS110*'Prevalence Rates'!AS110","v":356.56084244809949},{"$f":"'Population 2016'!AT110*'Prevalence Rates'!AT110","v":10.052471074655374},{"$f":"'Population 2016'!AU110*'Prevalence Rates'!AU110","v":10.052471074655374},{"$f":"'Population 2016'!AV110*'Prevalence Rates'!AV110","v":595.66225948278316},{"$f":"'Population 2016'!AW110*'Prevalence Rates'!AW110","v":1339.5152469228349},{"$f":"'Population 2016'!AX110*'Prevalence Rates'!AX110","v":132.4769460077172},{"$f":"'Population 2016'!AY110*'Prevalence Rates'!AY110","v":2012.8363088226008},{"$f":"'Population 2016'!AZ110*'Prevalence Rates'!AZ110","v":764.73086139009069},{"$f":"'Population 2016'!BA110*'Prevalence Rates'!BA110","v":448.19108508025874},{"$f":"'Population 2016'!BB110*'Prevalence Rates'!BB110","v":667.55158350515376},{"$f":"'Population 2016'!BC110*'Prevalence Rates'!BC110","v":99.356719936182301},108]
[null,"Female 65-69",{"$f":"'Population 2016'!C111*'Prevalence Rates'!C111","v":0},{"$f":"'Population 2016'!D111*'Prevalence Rates'!D111","v":0},{"$f":"'Population 2016'!E111*'Prevalence Rates'!E111","v":0},{"$f":"'Population 2016'!F111*'Prevalence Rates'!F111","v":0},{"$f":"'Population 2016'!G111*'Prevalence Rates'!G111","v":0},{"$f":"'Population 2016'!H111*'Prevalence Rates'!H111","v":0},{"$f":"'Population 2016'!I111*'Prevalence Rates'!I111","v":0},{"$f":"'Population 2016'!J111*'Prevalence Rates'!J111","v":0},{"$f":"'Population 2016'!K111*'Prevalence Rates'!K111","v":0},{"$f":"'Population 2016'!L111*'Prevalence Rates'!L111","v":0},{"$f":"'Population 2016'!M111*'Prevalence Rates'!M111","v":0},{"$f":"'Population 2016'!N111*'Prevalence Rates'!N111","v":0},{"$f":"'Population 2016'!O111*'Prevalence Rates'!O111","v":0},{"$f":"'Population 2016'!P111*'Prevalence Rates'!P111","v":0},{"$f":"'Population 2016'!Q111*'Prevalence Rates'!Q111","v":0},{"$f":"'Population 2016'!R111*'Prevalence Rates'!R111","v":0},{"$f":"'Population 2016'!S111*'Prevalence Rates'!S111","v":0},{"$f":"'Population 2016'!T111*'Prevalence Rates'!T111","v":0},{"$f":"'Population 2016'!U111*'Prevalence Rates'!U111","v":0},{"$f":"'Population 2016'!V111*'Prevalence Rates'!V111","v":0},{"$f":"'Population 2016'!W111*'Prevalence Rates'!W111","v":0},{"$f":"'Population 2016'!X111*'Prevalence Rates'!X111","v":0},{"$f":"'Population 2016'!Y111*'Prevalence Rates'!Y111","v":0},{"$f":"'Population 2016'!Z111*'Prevalence Rates'!Z111","v":0},{"$f":"'Population 2016'!AA111*'Prevalence Rates'!AA111","v":0},{"$f":"'Population 2016'!AB111*'Prevalence Rates'!AB111","v":0},{"$f":"'Population 2016'!AC111*'Prevalence Rates'!AC111","v":0},{"$f":"'Population 2016'!AD111*'Prevalence Rates'!AD111","v":0},{"$f":"'Population 2016'!AE111*'Prevalence Rates'!AE111","v":0},{"$f":"'Population 2016'!AF111*'Prevalence Rates'!AF111","v":0},{"$f":"'Population 2016'!AG111*'Prevalence Rates'!AG111","v":0},{"$f":"'Population 2016'!AH111*'Prevalence Rates'!AH111","v":0},{"$f":"'Population 2016'!AI111*'Prevalence Rates'!AI111","v":0},{"$f":"'Population 2016'!AJ111*'Prevalence Rates'!AJ111","v":0},{"$f":"'Population 2016'!AK111*'Prevalence Rates'!AK111","v":0},{"$f":"'Population 2016'!AL111*'Prevalence Rates'!AL111","v":0},{"$f":"'Population 2016'!AM111*'Prevalence Rates'!AM111","v":0},{"$f":"'Population 2016'!AN111*'Prevalence Rates'!AN111","v":0},{"$f":"'Population 2016'!AO111*'Prevalence Rates'!AO111","v":0},{"$f":"'Population 2016'!AP111*'Prevalence Rates'!AP111","v":0},{"$f":"'Population 2016'!AQ111*'Prevalence Rates'!AQ111","v":0},{"$f":"'Population 2016'!AR111*'Prevalence Rates'!AR111","v":0},{"$f":"'Population 2016'!AS111*'Prevalence Rates'!AS111","v":0},{"$f":"'Population 2016'!AT111*'Prevalence Rates'!AT111","v":0},{"$f":"'Population 2016'!AU111*'Prevalence Rates'!AU111","v":0},{"$f":"'Population 2016'!AV111*'Prevalence Rates'!AV111","v":0},{"$f":"'Population 2016'!AW111*'Prevalence Rates'!AW111","v":0},{"$f":"'Population 2016'!AX111*'Prevalence Rates'!AX111","v":0},{"$f":"'Population 2016'!AY111*'Prevalence Rates'!AY111","v":0},{"$f":"'Population 2016'!AZ111*'Prevalence Rates'!AZ111","v":0},{"$f":"'Population 2016'!BA111*'Prevalence Rates'!BA111","v":0},{"$f":"'Population 2016'!BB111*'Prevalence Rates'!BB111","v":0},{"$f":"'Population 2016'!BC111*'Prevalence Rates'!BC111","v":0},109]
[null,"Female 70-74",{"$f":"'Population 2016'!C112*'Prevalence Rates'!C112","v":0},{"$f":"'Population 2016'!D112*'Prevalence Rates'!D112","v":0},{"$f":"'Population 2016'!E112*'Prevalence Rates'!E112","v":0},{"$f":"'Population 2016'!F112*'Prevalence Rates'!F112","v":0},{"$f":"'Population 2016'!G112*'Prevalence Rates'!G112","v":0},{"$f":"'Population 2016'!H112*'Prevalence Rates'!H112","v":0},{"$f":"'Population 2016'!I112*'Prevalence Rates'!I112","v":0},{"$f":"'Population 2016'!J112*'Prevalence Rates'!J112","v":0},{"$f":"'Population 2016'!K112*'Prevalence Rates'!K112","v":0},{"$f":"'Population 2016'!L112*'Prevalence Rates'!L112","v":0},{"$f":"'Population 2016'!M112*'Prevalence Rates'!M112","v":0},{"$f":"'Population 2016'!N112*'Prevalence Rates'!N112","v":0},{"$f":"'Population 2016'!O112*'Prevalence Rates'!O112","v":0},{"$f":"'Population 2016'!P112*'Prevalence Rates'!P112","v":0},{"$f":"'Population 2016'!Q112*'Prevalence Rates'!Q112","v":0},{"$f":"'Population 2016'!R112*'Prevalence Rates'!R112","v":0},{"$f":"'Population 2016'!S112*'Prevalence Rates'!S112","v":0},{"$f":"'Population 2016'!T112*'Prevalence Rates'!T112","v":0},{"$f":"'Population 2016'!U112*'Prevalence Rates'!U112","v":0},{"$f":"'Population 2016'!V112*'Prevalence Rates'!V112","v":0},{"$f":"'Population 2016'!W112*'Prevalence Rates'!W112","v":0},{"$f":"'Population 2016'!X112*'Prevalence Rates'!X112","v":0},{"$f":"'Population 2016'!Y112*'Prevalence Rates'!Y112","v":0},{"$f":"'Population 2016'!Z112*'Prevalence Rates'!Z112","v":0},{"$f":"'Population 2016'!AA112*'Prevalence Rates'!AA112","v":0},{"$f":"'Population 2016'!AB112*'Prevalence Rates'!AB112","v":0},{"$f":"'Population 2016'!AC112*'Prevalence Rates'!AC112","v":0},{"$f":"'Population 2016'!AD112*'Prevalence Rates'!AD112","v":0},{"$f":"'Population 2016'!AE112*'Prevalence Rates'!AE112","v":0},{"$f":"'Population 2016'!AF112*'Prevalence Rates'!AF112","v":0},{"$f":"'Population 2016'!AG112*'Prevalence Rates'!AG112","v":0},{"$f":"'Population 2016'!AH112*'Prevalence Rates'!AH112","v":0},{"$f":"'Population 2016'!AI112*'Prevalence Rates'!AI112","v":0},{"$f":"'Population 2016'!AJ112*'Prevalence Rates'!AJ112","v":0},{"$f":"'Population 2016'!AK112*'Prevalence Rates'!AK112","v":0},{"$f":"'Population 2016'!AL112*'Prevalence Rates'!AL112","v":0},{"$f":"'Population 2016'!AM112*'Prevalence Rates'!AM112","v":0},{"$f":"'Population 2016'!AN112*'Prevalence Rates'!AN112","v":0},{"$f":"'Population 2016'!AO112*'Prevalence Rates'!AO112","v":0},{"$f":"'Population 2016'!AP112*'Prevalence Rates'!AP112","v":0},{"$f":"'Population 2016'!AQ112*'Prevalence Rates'!AQ112","v":0},{"$f":"'Population 2016'!AR112*'Prevalence Rates'!AR112","v":0},{"$f":"'Population 2016'!AS112*'Prevalence Rates'!AS112","v":0},{"$f":"'Population 2016'!AT112*'Prevalence Rates'!AT112","v":0},{"$f":"'Population 2016'!AU112*'Prevalence Rates'!AU112","v":0},{"$f":"'Population 2016'!AV112*'Prevalence Rates'!AV112","v":0},{"$f":"'Population 2016'!AW112*'Prevalence Rates'!AW112","v":0},{"$f":"'Population 2016'!AX112*'Prevalence Rates'!AX112","v":0},{"$f":"'Population 2016'!AY112*'Prevalence Rates'!AY112","v":0},{"$f":"'Population 2016'!AZ112*'Prevalence Rates'!AZ112","v":0},{"$f":"'Population 2016'!BA112*'Prevalence Rates'!BA112","v":0},{"$f":"'Population 2016'!BB112*'Prevalence Rates'!BB112","v":0},{"$f":"'Population 2016'!BC112*'Prevalence Rates'!BC112","v":0},110]
[null,"Female 75-79",{"$f":"'Population 2016'!C113*'Prevalence Rates'!C113","v":0},{"$f":"'Population 2016'!D113*'Prevalence Rates'!D113","v":0},{"$f":"'Population 2016'!E113*'Prevalence Rates'!E113","v":0},{"$f":"'Population 2016'!F113*'Prevalence Rates'!F113","v":0},{"$f":"'Population 2016'!G113*'Prevalence Rates'!G113","v":0},{"$f":"'Population 2016'!H113*'Prevalence Rates'!H113","v":0},{"$f":"'Population 2016'!I113*'Prevalence Rates'!I113","v":0},{"$f":"'Population 2016'!J113*'Prevalence Rates'!J113","v":0},{"$f":"'Population 2016'!K113*'Prevalence Rates'!K113","v":0},{"$f":"'Population 2016'!L113*'Prevalence Rates'!L113","v":0},{"$f":"'Population 2016'!M113*'Prevalence Rates'!M113","v":0},{"$f":"'Population 2016'!N113*'Prevalence Rates'!N113","v":0},{"$f":"'Population 2016'!O113*'Prevalence Rates'!O113","v":0},{"$f":"'Population 2016'!P113*'Prevalence Rates'!P113","v":0},{"$f":"'Population 2016'!Q113*'Prevalence Rates'!Q113","v":0},{"$f":"'Population 2016'!R113*'Prevalence Rates'!R113","v":0},{"$f":"'Population 2016'!S113*'Prevalence Rates'!S113","v":0},{"$f":"'Population 2016'!T113*'Prevalence Rates'!T113","v":0},{"$f":"'Population 2016'!U113*'Prevalence Rates'!U113","v":0},{"$f":"'Population 2016'!V113*'Prevalence Rates'!V113","v":0},{"$f":"'Population 2016'!W113*'Prevalence Rates'!W113","v":0},{"$f":"'Population 2016'!X113*'Prevalence Rates'!X113","v":0},{"$f":"'Population 2016'!Y113*'Prevalence Rates'!Y113","v":0},{"$f":"'Population 2016'!Z113*'Prevalence Rates'!Z113","v":0},{"$f":"'Population 2016'!AA113*'Prevalence Rates'!AA113","v":0},{"$f":"'Population 2016'!AB113*'Prevalence Rates'!AB113","v":0},{"$f":"'Population 2016'!AC113*'Prevalence Rates'!AC113","v":0},{"$f":"'Population 2016'!AD113*'Prevalence Rates'!AD113","v":0},{"$f":"'Population 2016'!AE113*'Prevalence Rates'!AE113","v":0},{"$f":"'Population 2016'!AF113*'Prevalence Rates'!AF113","v":0},{"$f":"'Population 2016'!AG113*'Prevalence Rates'!AG113","v":0},{"$f":"'Population 2016'!AH113*'Prevalence Rates'!AH113","v":0},{"$f":"'Population 2016'!AI113*'Prevalence Rates'!AI113","v":0},{"$f":"'Population 2016'!AJ113*'Prevalence Rates'!AJ113","v":0},{"$f":"'Population 2016'!AK113*'Prevalence Rates'!AK113","v":0},{"$f":"'Population 2016'!AL113*'Prevalence Rates'!AL113","v":0},{"$f":"'Population 2016'!AM113*'Prevalence Rates'!AM113","v":0},{"$f":"'Population 2016'!AN113*'Prevalence Rates'!AN113","v":0},{"$f":"'Population 2016'!AO113*'Prevalence Rates'!AO113","v":0},{"$f":"'Population 2016'!AP113*'Prevalence Rates'!AP113","v":0},{"$f":"'Population 2016'!AQ113*'Prevalence Rates'!AQ113","v":0},{"$f":"'Population 2016'!AR113*'Prevalence Rates'!AR113","v":0},{"$f":"'Population 2016'!AS113*'Prevalence Rates'!AS113","v":0},{"$f":"'Population 2016'!AT113*'Prevalence Rates'!AT113","v":0},{"$f":"'Population 2016'!AU113*'Prevalence Rates'!AU113","v":0},{"$f":"'Population 2016'!AV113*'Prevalence Rates'!AV113","v":0},{"$f":"'Population 2016'!AW113*'Prevalence Rates'!AW113","v":0},{"$f":"'Population 2016'!AX113*'Prevalence Rates'!AX113","v":0},{"$f":"'Population 2016'!AY113*'Prevalence Rates'!AY113","v":0},{"$f":"'Population 2016'!AZ113*'Prevalence Rates'!AZ113","v":0},{"$f":"'Population 2016'!BA113*'Prevalence Rates'!BA113","v":0},{"$f":"'Population 2016'!BB113*'Prevalence Rates'!BB113","v":0},{"$f":"'Population 2016'!BC113*'Prevalence Rates'!BC113","v":0},111]
[null,"Female 80-84",{"$f":"'Population 2016'!C114*'Prevalence Rates'!C114","v":0},{"$f":"'Population 2016'!D114*'Prevalence Rates'!D114","v":0},{"$f":"'Population 2016'!E114*'Prevalence Rates'!E114","v":0},{"$f":"'Population 2016'!F114*'Prevalence Rates'!F114","v":0},{"$f":"'Population 2016'!G114*'Prevalence Rates'!G114","v":0},{"$f":"'Population 2016'!H114*'Prevalence Rates'!H114","v":0},{"$f":"'Population 2016'!I114*'Prevalence Rates'!I114","v":0},{"$f":"'Population 2016'!J114*'Prevalence Rates'!J114","v":0},{"$f":"'Population 2016'!K114*'Prevalence Rates'!K114","v":0},{"$f":"'Population 2016'!L114*'Prevalence Rates'!L114","v":0},{"$f":"'Population 2016'!M114*'Prevalence Rates'!M114","v":0},{"$f":"'Population 2016'!N114*'Prevalence Rates'!N114","v":0},{"$f":"'Population 2016'!O114*'Prevalence Rates'!O114","v":0},{"$f":"'Population 2016'!P114*'Prevalence Rates'!P114","v":0},{"$f":"'Population 2016'!Q114*'Prevalence Rates'!Q114","v":0},{"$f":"'Population 2016'!R114*'Prevalence Rates'!R114","v":0},{"$f":"'Population 2016'!S114*'Prevalence Rates'!S114","v":0},{"$f":"'Population 2016'!T114*'Prevalence Rates'!T114","v":0},{"$f":"'Population 2016'!U114*'Prevalence Rates'!U114","v":0},{"$f":"'Population 2016'!V114*'Prevalence Rates'!V114","v":0},{"$f":"'Population 2016'!W114*'Prevalence Rates'!W114","v":0},{"$f":"'Population 2016'!X114*'Prevalence Rates'!X114","v":0},{"$f":"'Population 2016'!Y114*'Prevalence Rates'!Y114","v":0},{"$f":"'Population 2016'!Z114*'Prevalence Rates'!Z114","v":0},{"$f":"'Population 2016'!AA114*'Prevalence Rates'!AA114","v":0},{"$f":"'Population 2016'!AB114*'Prevalence Rates'!AB114","v":0},{"$f":"'Population 2016'!AC114*'Prevalence Rates'!AC114","v":0},{"$f":"'Population 2016'!AD114*'Prevalence Rates'!AD114","v":0},{"$f":"'Population 2016'!AE114*'Prevalence Rates'!AE114","v":0},{"$f":"'Population 2016'!AF114*'Prevalence Rates'!AF114","v":0},{"$f":"'Population 2016'!AG114*'Prevalence Rates'!AG114","v":0},{"$f":"'Population 2016'!AH114*'Prevalence Rates'!AH114","v":0},{"$f":"'Population 2016'!AI114*'Prevalence Rates'!AI114","v":0},{"$f":"'Population 2016'!AJ114*'Prevalence Rates'!AJ114","v":0},{"$f":"'Population 2016'!AK114*'Prevalence Rates'!AK114","v":0},{"$f":"'Population 2016'!AL114*'Prevalence Rates'!AL114","v":0},{"$f":"'Population 2016'!AM114*'Prevalence Rates'!AM114","v":0},{"$f":"'Population 2016'!AN114*'Prevalence Rates'!AN114","v":0},{"$f":"'Population 2016'!AO114*'Prevalence Rates'!AO114","v":0},{"$f":"'Population 2016'!AP114*'Prevalence Rates'!AP114","v":0},{"$f":"'Population 2016'!AQ114*'Prevalence Rates'!AQ114","v":0},{"$f":"'Population 2016'!AR114*'Prevalence Rates'!AR114","v":0},{"$f":"'Population 2016'!AS114*'Prevalence Rates'!AS114","v":0},{"$f":"'Population 2016'!AT114*'Prevalence Rates'!AT114","v":0},{"$f":"'Population 2016'!AU114*'Prevalence Rates'!AU114","v":0},{"$f":"'Population 2016'!AV114*'Prevalence Rates'!AV114","v":0},{"$f":"'Population 2016'!AW114*'Prevalence Rates'!AW114","v":0},{"$f":"'Population 2016'!AX114*'Prevalence Rates'!AX114","v":0},{"$f":"'Population 2016'!AY114*'Prevalence Rates'!AY114","v":0},{"$f":"'Population 2016'!AZ114*'Prevalence Rates'!AZ114","v":0},{"$f":"'Population 2016'!BA114*'Prevalence Rates'!BA114","v":0},{"$f":"'Population 2016'!BB114*'Prevalence Rates'!BB114","v":0},{"$f":"'Population 2016'!BC114*'Prevalence Rates'!BC114","v":0},112]
[null,"Female 85-89",{"$f":"'Population 2016'!C115*'Prevalence Rates'!C115","v":0},{"$f":"'Population 2016'!D115*'Prevalence Rates'!D115","v":0},{"$f":"'Population 2016'!E115*'Prevalence Rates'!E115","v":0},{"$f":"'Population 2016'!F115*'Prevalence Rates'!F115","v":0},{"$f":"'Population 2016'!G115*'Prevalence Rates'!G115","v":0},{"$f":"'Population 2016'!H115*'Prevalence Rates'!H115","v":0},{"$f":"'Population 2016'!I115*'Prevalence Rates'!I115","v":0},{"$f":"'Population 2016'!J115*'Prevalence Rates'!J115","v":0},{"$f":"'Population 2016'!K115*'Prevalence Rates'!K115","v":0},{"$f":"'Population 2016'!L115*'Prevalence Rates'!L115","v":0},{"$f":"'Population 2016'!M115*'Prevalence Rates'!M115","v":0},{"$f":"'Population 2016'!N115*'Prevalence Rates'!N115","v":0},{"$f":"'Population 2016'!O115*'Prevalence Rates'!O115","v":0},{"$f":"'Population 2016'!P115*'Prevalence Rates'!P115","v":0},{"$f":"'Population 2016'!Q115*'Prevalence Rates'!Q115","v":0},{"$f":"'Population 2016'!R115*'Prevalence Rates'!R115","v":0},{"$f":"'Population 2016'!S115*'Prevalence Rates'!S115","v":0},{"$f":"'Population 2016'!T115*'Prevalence Rates'!T115","v":0},{"$f":"'Population 2016'!U115*'Prevalence Rates'!U115","v":0},{"$f":"'Population 2016'!V115*'Prevalence Rates'!V115","v":0},{"$f":"'Population 2016'!W115*'Prevalence Rates'!W115","v":0},{"$f":"'Population 2016'!X115*'Prevalence Rates'!X115","v":0},{"$f":"'Population 2016'!Y115*'Prevalence Rates'!Y115","v":0},{"$f":"'Population 2016'!Z115*'Prevalence Rates'!Z115","v":0},{"$f":"'Population 2016'!AA115*'Prevalence Rates'!AA115","v":0},{"$f":"'Population 2016'!AB115*'Prevalence Rates'!AB115","v":0},{"$f":"'Population 2016'!AC115*'Prevalence Rates'!AC115","v":0},{"$f":"'Population 2016'!AD115*'Prevalence Rates'!AD115","v":0},{"$f":"'Population 2016'!AE115*'Prevalence Rates'!AE115","v":0},{"$f":"'Population 2016'!AF115*'Prevalence Rates'!AF115","v":0},{"$f":"'Population 2016'!AG115*'Prevalence Rates'!AG115","v":0},{"$f":"'Population 2016'!AH115*'Prevalence Rates'!AH115","v":0},{"$f":"'Population 2016'!AI115*'Prevalence Rates'!AI115","v":0},{"$f":"'Population 2016'!AJ115*'Prevalence Rates'!AJ115","v":0},{"$f":"'Population 2016'!AK115*'Prevalence Rates'!AK115","v":0},{"$f":"'Population 2016'!AL115*'Prevalence Rates'!AL115","v":0},{"$f":"'Population 2016'!AM115*'Prevalence Rates'!AM115","v":0},{"$f":"'Population 2016'!AN115*'Prevalence Rates'!AN115","v":0},{"$f":"'Population 2016'!AO115*'Prevalence Rates'!AO115","v":0},{"$f":"'Population 2016'!AP115*'Prevalence Rates'!AP115","v":0},{"$f":"'Population 2016'!AQ115*'Prevalence Rates'!AQ115","v":0},{"$f":"'Population 2016'!AR115*'Prevalence Rates'!AR115","v":0},{"$f":"'Population 2016'!AS115*'Prevalence Rates'!AS115","v":0},{"$f":"'Population 2016'!AT115*'Prevalence Rates'!AT115","v":0},{"$f":"'Population 2016'!AU115*'Prevalence Rates'!AU115","v":0},{"$f":"'Population 2016'!AV115*'Prevalence Rates'!AV115","v":0},{"$f":"'Population 2016'!AW115*'Prevalence Rates'!AW115","v":0},{"$f":"'Population 2016'!AX115*'Prevalence Rates'!AX115","v":0},{"$f":"'Population 2016'!AY115*'Prevalence Rates'!AY115","v":0},{"$f":"'Population 2016'!AZ115*'Prevalence Rates'!AZ115","v":0},{"$f":"'Population 2016'!BA115*'Prevalence Rates'!BA115","v":0},{"$f":"'Population 2016'!BB115*'Prevalence Rates'!BB115","v":0},{"$f":"'Population 2016'!BC115*'Prevalence Rates'!BC115","v":0},113]
[null,"Female 90+",{"$f":"'Population 2016'!C116*'Prevalence Rates'!C116","v":0},{"$f":"'Population 2016'!D116*'Prevalence Rates'!D116","v":0},{"$f":"'Population 2016'!E116*'Prevalence Rates'!E116","v":0},{"$f":"'Population 2016'!F116*'Prevalence Rates'!F116","v":0},{"$f":"'Population 2016'!G116*'Prevalence Rates'!G116","v":0},{"$f":"'Population 2016'!H116*'Prevalence Rates'!H116","v":0},{"$f":"'Population 2016'!I116*'Prevalence Rates'!I116","v":0},{"$f":"'Population 2016'!J116*'Prevalence Rates'!J116","v":0},{"$f":"'Population 2016'!K116*'Prevalence Rates'!K116","v":0},{"$f":"'Population 2016'!L116*'Prevalence Rates'!L116","v":0},{"$f":"'Population 2016'!M116*'Prevalence Rates'!M116","v":0},{"$f":"'Population 2016'!N116*'Prevalence Rates'!N116","v":0},{"$f":"'Population 2016'!O116*'Prevalence Rates'!O116","v":0},{"$f":"'Population 2016'!P116*'Prevalence Rates'!P116","v":0},{"$f":"'Population 2016'!Q116*'Prevalence Rates'!Q116","v":0},{"$f":"'Population 2016'!R116*'Prevalence Rates'!R116","v":0},{"$f":"'Population 2016'!S116*'Prevalence Rates'!S116","v":0},{"$f":"'Population 2016'!T116*'Prevalence Rates'!T116","v":0},{"$f":"'Population 2016'!U116*'Prevalence Rates'!U116","v":0},{"$f":"'Population 2016'!V116*'Prevalence Rates'!V116","v":0},{"$f":"'Population 2016'!W116*'Prevalence Rates'!W116","v":0},{"$f":"'Population 2016'!X116*'Prevalence Rates'!X116","v":0},{"$f":"'Population 2016'!Y116*'Prevalence Rates'!Y116","v":0},{"$f":"'Population 2016'!Z116*'Prevalence Rates'!Z116","v":0},{"$f":"'Population 2016'!AA116*'Prevalence Rates'!AA116","v":0},{"$f":"'Population 2016'!AB116*'Prevalence Rates'!AB116","v":0},{"$f":"'Population 2016'!AC116*'Prevalence Rates'!AC116","v":0},{"$f":"'Population 2016'!AD116*'Prevalence Rates'!AD116","v":0},{"$f":"'Population 2016'!AE116*'Prevalence Rates'!AE116","v":0},{"$f":"'Population 2016'!AF116*'Prevalence Rates'!AF116","v":0},{"$f":"'Population 2016'!AG116*'Prevalence Rates'!AG116","v":0},{"$f":"'Population 2016'!AH116*'Prevalence Rates'!AH116","v":0},{"$f":"'Population 2016'!AI116*'Prevalence Rates'!AI116","v":0},{"$f":"'Population 2016'!AJ116*'Prevalence Rates'!AJ116","v":0},{"$f":"'Population 2016'!AK116*'Prevalence Rates'!AK116","v":0},{"$f":"'Population 2016'!AL116*'Prevalence Rates'!AL116","v":0},{"$f":"'Population 2016'!AM116*'Prevalence Rates'!AM116","v":0},{"$f":"'Population 2016'!AN116*'Prevalence Rates'!AN116","v":0},{"$f":"'Population 2016'!AO116*'Prevalence Rates'!AO116","v":0},{"$f":"'Population 2016'!AP116*'Prevalence Rates'!AP116","v":0},{"$f":"'Population 2016'!AQ116*'Prevalence Rates'!AQ116","v":0},{"$f":"'Population 2016'!AR116*'Prevalence Rates'!AR116","v":0},{"$f":"'Population 2016'!AS116*'Prevalence Rates'!AS116","v":0},{"$f":"'Population 2016'!AT116*'Prevalence Rates'!AT116","v":0},{"$f":"'Population 2016'!AU116*'Prevalence Rates'!AU116","v":0},{"$f":"'Population 2016'!AV116*'Prevalence Rates'!AV116","v":0},{"$f":"'Population 2016'!AW116*'Prevalence Rates'!AW116","v":0},{"$f":"'Population 2016'!AX116*'Prevalence Rates'!AX116","v":0},{"$f":"'Population 2016'!AY116*'Prevalence Rates'!AY116","v":0},{"$f":"'Population 2016'!AZ116*'Prevalence Rates'!AZ116","v":0},{"$f":"'Population 2016'!BA116*'Prevalence Rates'!BA116","v":0},{"$f":"'Population 2016'!BB116*'Prevalence Rates'!BB116","v":0},{"$f":"'Population 2016'!BC116*'Prevalence Rates'!BC116","v":0},114]
[null,"Male 0-4",{"$f":"'Population 2016'!C117*'Prevalence Rates'!C117","v":0},{"$f":"'Population 2016'!D117*'Prevalence Rates'!D117","v":0},{"$f":"'Population 2016'!E117*'Prevalence Rates'!E117","v":0},{"$f":"'Population 2016'!F117*'Prevalence Rates'!F117","v":0},{"$f":"'Population 2016'!G117*'Prevalence Rates'!G117","v":0},{"$f":"'Population 2016'!H117*'Prevalence Rates'!H117","v":0},{"$f":"'Population 2016'!I117*'Prevalence Rates'!I117","v":0},{"$f":"'Population 2016'!J117*'Prevalence Rates'!J117","v":0},{"$f":"'Population 2016'!K117*'Prevalence Rates'!K117","v":0},{"$f":"'Population 2016'!L117*'Prevalence Rates'!L117","v":0},{"$f":"'Population 2016'!M117*'Prevalence Rates'!M117","v":0},{"$f":"'Population 2016'!N117*'Prevalence Rates'!N117","v":0},{"$f":"'Population 2016'!O117*'Prevalence Rates'!O117","v":0},{"$f":"'Population 2016'!P117*'Prevalence Rates'!P117","v":0},{"$f":"'Population 2016'!Q117*'Prevalence Rates'!Q117","v":0},{"$f":"'Population 2016'!R117*'Prevalence Rates'!R117","v":0},{"$f":"'Population 2016'!S117*'Prevalence Rates'!S117","v":0},{"$f":"'Population 2016'!T117*'Prevalence Rates'!T117","v":0},{"$f":"'Population 2016'!U117*'Prevalence Rates'!U117","v":0},{"$f":"'Population 2016'!V117*'Prevalence Rates'!V117","v":0},{"$f":"'Population 2016'!W117*'Prevalence Rates'!W117","v":0},{"$f":"'Population 2016'!X117*'Prevalence Rates'!X117","v":0},{"$f":"'Population 2016'!Y117*'Prevalence Rates'!Y117","v":0},{"$f":"'Population 2016'!Z117*'Prevalence Rates'!Z117","v":0},{"$f":"'Population 2016'!AA117*'Prevalence Rates'!AA117","v":0},{"$f":"'Population 2016'!AB117*'Prevalence Rates'!AB117","v":0},{"$f":"'Population 2016'!AC117*'Prevalence Rates'!AC117","v":0},{"$f":"'Population 2016'!AD117*'Prevalence Rates'!AD117","v":0},{"$f":"'Population 2016'!AE117*'Prevalence Rates'!AE117","v":0},{"$f":"'Population 2016'!AF117*'Prevalence Rates'!AF117","v":0},{"$f":"'Population 2016'!AG117*'Prevalence Rates'!AG117","v":0},{"$f":"'Population 2016'!AH117*'Prevalence Rates'!AH117","v":0},{"$f":"'Population 2016'!AI117*'Prevalence Rates'!AI117","v":0},{"$f":"'Population 2016'!AJ117*'Prevalence Rates'!AJ117","v":0},{"$f":"'Population 2016'!AK117*'Prevalence Rates'!AK117","v":0},{"$f":"'Population 2016'!AL117*'Prevalence Rates'!AL117","v":0},{"$f":"'Population 2016'!AM117*'Prevalence Rates'!AM117","v":0},{"$f":"'Population 2016'!AN117*'Prevalence Rates'!AN117","v":0},{"$f":"'Population 2016'!AO117*'Prevalence Rates'!AO117","v":0},{"$f":"'Population 2016'!AP117*'Prevalence Rates'!AP117","v":0},{"$f":"'Population 2016'!AQ117*'Prevalence Rates'!AQ117","v":0},{"$f":"'Population 2016'!AR117*'Prevalence Rates'!AR117","v":0},{"$f":"'Population 2016'!AS117*'Prevalence Rates'!AS117","v":0},{"$f":"'Population 2016'!AT117*'Prevalence Rates'!AT117","v":0},{"$f":"'Population 2016'!AU117*'Prevalence Rates'!AU117","v":0},{"$f":"'Population 2016'!AV117*'Prevalence Rates'!AV117","v":0},{"$f":"'Population 2016'!AW117*'Prevalence Rates'!AW117","v":0},{"$f":"'Population 2016'!AX117*'Prevalence Rates'!AX117","v":0},{"$f":"'Population 2016'!AY117*'Prevalence Rates'!AY117","v":0},{"$f":"'Population 2016'!AZ117*'Prevalence Rates'!AZ117","v":0},{"$f":"'Population 2016'!BA117*'Prevalence Rates'!BA117","v":0},{"$f":"'Population 2016'!BB117*'Prevalence Rates'!BB117","v":0},{"$f":"'Population 2016'!BC117*'Prevalence Rates'!BC117","v":0},115]
[null,"Male 5-9",{"$f":"'Population 2016'!C118*'Prevalence Rates'!C118","v":0},{"$f":"'Population 2016'!D118*'Prevalence Rates'!D118","v":0},{"$f":"'Population 2016'!E118*'Prevalence Rates'!E118","v":0},{"$f":"'Population 2016'!F118*'Prevalence Rates'!F118","v":0},{"$f":"'Population 2016'!G118*'Prevalence Rates'!G118","v":0},{"$f":"'Population 2016'!H118*'Prevalence Rates'!H118","v":0},{"$f":"'Population 2016'!I118*'Prevalence Rates'!I118","v":0},{"$f":"'Population 2016'!J118*'Prevalence Rates'!J118","v":0},{"$f":"'Population 2016'!K118*'Prevalence Rates'!K118","v":0},{"$f":"'Population 2016'!L118*'Prevalence Rates'!L118","v":0},{"$f":"'Population 2016'!M118*'Prevalence Rates'!M118","v":0},{"$f":"'Population 2016'!N118*'Prevalence Rates'!N118","v":0},{"$f":"'Population 2016'!O118*'Prevalence Rates'!O118","v":0},{"$f":"'Population 2016'!P118*'Prevalence Rates'!P118","v":0},{"$f":"'Population 2016'!Q118*'Prevalence Rates'!Q118","v":0},{"$f":"'Population 2016'!R118*'Prevalence Rates'!R118","v":0},{"$f":"'Population 2016'!S118*'Prevalence Rates'!S118","v":0},{"$f":"'Population 2016'!T118*'Prevalence Rates'!T118","v":0},{"$f":"'Population 2016'!U118*'Prevalence Rates'!U118","v":0},{"$f":"'Population 2016'!V118*'Prevalence Rates'!V118","v":0},{"$f":"'Population 2016'!W118*'Prevalence Rates'!W118","v":0},{"$f":"'Population 2016'!X118*'Prevalence Rates'!X118","v":0},{"$f":"'Population 2016'!Y118*'Prevalence Rates'!Y118","v":0},{"$f":"'Population 2016'!Z118*'Prevalence Rates'!Z118","v":0},{"$f":"'Population 2016'!AA118*'Prevalence Rates'!AA118","v":0},{"$f":"'Population 2016'!AB118*'Prevalence Rates'!AB118","v":0},{"$f":"'Population 2016'!AC118*'Prevalence Rates'!AC118","v":0},{"$f":"'Population 2016'!AD118*'Prevalence Rates'!AD118","v":0},{"$f":"'Population 2016'!AE118*'Prevalence Rates'!AE118","v":0},{"$f":"'Population 2016'!AF118*'Prevalence Rates'!AF118","v":0},{"$f":"'Population 2016'!AG118*'Prevalence Rates'!AG118","v":0},{"$f":"'Population 2016'!AH118*'Prevalence Rates'!AH118","v":0},{"$f":"'Population 2016'!AI118*'Prevalence Rates'!AI118","v":0},{"$f":"'Population 2016'!AJ118*'Prevalence Rates'!AJ118","v":0},{"$f":"'Population 2016'!AK118*'Prevalence Rates'!AK118","v":0},{"$f":"'Population 2016'!AL118*'Prevalence Rates'!AL118","v":0},{"$f":"'Population 2016'!AM118*'Prevalence Rates'!AM118","v":0},{"$f":"'Population 2016'!AN118*'Prevalence Rates'!AN118","v":0},{"$f":"'Population 2016'!AO118*'Prevalence Rates'!AO118","v":0},{"$f":"'Population 2016'!AP118*'Prevalence Rates'!AP118","v":0},{"$f":"'Population 2016'!AQ118*'Prevalence Rates'!AQ118","v":0},{"$f":"'Population 2016'!AR118*'Prevalence Rates'!AR118","v":0},{"$f":"'Population 2016'!AS118*'Prevalence Rates'!AS118","v":0},{"$f":"'Population 2016'!AT118*'Prevalence Rates'!AT118","v":0},{"$f":"'Population 2016'!AU118*'Prevalence Rates'!AU118","v":0},{"$f":"'Population 2016'!AV118*'Prevalence Rates'!AV118","v":0},{"$f":"'Population 2016'!AW118*'Prevalence Rates'!AW118","v":0},{"$f":"'Population 2016'!AX118*'Prevalence Rates'!AX118","v":0},{"$f":"'Population 2016'!AY118*'Prevalence Rates'!AY118","v":0},{"$f":"'Population 2016'!AZ118*'Prevalence Rates'!AZ118","v":0},{"$f":"'Population 2016'!BA118*'Prevalence Rates'!BA118","v":0},{"$f":"'Population 2016'!BB118*'Prevalence Rates'!BB118","v":0},{"$f":"'Population 2016'!BC118*'Prevalence Rates'!BC118","v":0},116]
[null,"Male 10-15",{"$f":"'Population 2016'!C119*'Prevalence Rates'!C119","v":0},{"$f":"'Population 2016'!D119*'Prevalence Rates'!D119","v":0},{"$f":"'Population 2016'!E119*'Prevalence Rates'!E119","v":0},{"$f":"'Population 2016'!F119*'Prevalence Rates'!F119","v":0},{"$f":"'Population 2016'!G119*'Prevalence Rates'!G119","v":0},{"$f":"'Population 2016'!H119*'Prevalence Rates'!H119","v":0},{"$f":"'Population 2016'!I119*'Prevalence Rates'!I119","v":0},{"$f":"'Population 2016'!J119*'Prevalence Rates'!J119","v":0},{"$f":"'Population 2016'!K119*'Prevalence Rates'!K119","v":0},{"$f":"'Population 2016'!L119*'Prevalence Rates'!L119","v":0},{"$f":"'Population 2016'!M119*'Prevalence Rates'!M119","v":0},{"$f":"'Population 2016'!N119*'Prevalence Rates'!N119","v":0},{"$f":"'Population 2016'!O119*'Prevalence Rates'!O119","v":0},{"$f":"'Population 2016'!P119*'Prevalence Rates'!P119","v":0},{"$f":"'Population 2016'!Q119*'Prevalence Rates'!Q119","v":0},{"$f":"'Population 2016'!R119*'Prevalence Rates'!R119","v":0},{"$f":"'Population 2016'!S119*'Prevalence Rates'!S119","v":0},{"$f":"'Population 2016'!T119*'Prevalence Rates'!T119","v":0},{"$f":"'Population 2016'!U119*'Prevalence Rates'!U119","v":0},{"$f":"'Population 2016'!V119*'Prevalence Rates'!V119","v":0},{"$f":"'Population 2016'!W119*'Prevalence Rates'!W119","v":0},{"$f":"'Population 2016'!X119*'Prevalence Rates'!X119","v":0},{"$f":"'Population 2016'!Y119*'Prevalence Rates'!Y119","v":0},{"$f":"'Population 2016'!Z119*'Prevalence Rates'!Z119","v":0},{"$f":"'Population 2016'!AA119*'Prevalence Rates'!AA119","v":0},{"$f":"'Population 2016'!AB119*'Prevalence Rates'!AB119","v":0},{"$f":"'Population 2016'!AC119*'Prevalence Rates'!AC119","v":0},{"$f":"'Population 2016'!AD119*'Prevalence Rates'!AD119","v":0},{"$f":"'Population 2016'!AE119*'Prevalence Rates'!AE119","v":0},{"$f":"'Population 2016'!AF119*'Prevalence Rates'!AF119","v":0},{"$f":"'Population 2016'!AG119*'Prevalence Rates'!AG119","v":0},{"$f":"'Population 2016'!AH119*'Prevalence Rates'!AH119","v":0},{"$f":"'Population 2016'!AI119*'Prevalence Rates'!AI119","v":0},{"$f":"'Population 2016'!AJ119*'Prevalence Rates'!AJ119","v":0},{"$f":"'Population 2016'!AK119*'Prevalence Rates'!AK119","v":0},{"$f":"'Population 2016'!AL119*'Prevalence Rates'!AL119","v":0},{"$f":"'Population 2016'!AM119*'Prevalence Rates'!AM119","v":0},{"$f":"'Population 2016'!AN119*'Prevalence Rates'!AN119","v":0},{"$f":"'Population 2016'!AO119*'Prevalence Rates'!AO119","v":0},{"$f":"'Population 2016'!AP119*'Prevalence Rates'!AP119","v":0},{"$f":"'Population 2016'!AQ119*'Prevalence Rates'!AQ119","v":0},{"$f":"'Population 2016'!AR119*'Prevalence Rates'!AR119","v":0},{"$f":"'Population 2016'!AS119*'Prevalence Rates'!AS119","v":0},{"$f":"'Population 2016'!AT119*'Prevalence Rates'!AT119","v":0},{"$f":"'Population 2016'!AU119*'Prevalence Rates'!AU119","v":0},{"$f":"'Population 2016'!AV119*'Prevalence Rates'!AV119","v":0},{"$f":"'Population 2016'!AW119*'Prevalence Rates'!AW119","v":0},{"$f":"'Population 2016'!AX119*'Prevalence Rates'!AX119","v":0},{"$f":"'Population 2016'!AY119*'Prevalence Rates'!AY119","v":0},{"$f":"'Population 2016'!AZ119*'Prevalence Rates'!AZ119","v":0},{"$f":"'Population 2016'!BA119*'Prevalence Rates'!BA119","v":0},{"$f":"'Population 2016'!BB119*'Prevalence Rates'!BB119","v":0},{"$f":"'Population 2016'!BC119*'Prevalence Rates'!BC119","v":0},117]
[null,"Male 16-19",{"$f":"'Population 2016'!C120*'Prevalence Rates'!C120","v":188.55881013902646},{"$f":"'Population 2016'!D120*'Prevalence Rates'!D120","v":228.05174484670354},{"$f":"'Population 2016'!E120*'Prevalence Rates'!E120","v":57.52381670606654},{"$f":"'Population 2016'!F120*'Prevalence Rates'!F120","v":51.071904614586181},{"$f":"'Population 2016'!G120*'Prevalence Rates'!G120","v":42.264005553615107},{"$f":"'Population 2016'!H120*'Prevalence Rates'!H120","v":479.7920970784146},{"$f":"'Population 2016'!I120*'Prevalence Rates'!I120","v":61.155933478324719},{"$f":"'Population 2016'!J120*'Prevalence Rates'!J120","v":103.80906344909836},{"$f":"'Population 2016'!K120*'Prevalence Rates'!K120","v":74.122207984475139},{"$f":"'Population 2016'!L120*'Prevalence Rates'!L120","v":130.42699456284689},{"$f":"'Population 2016'!M120*'Prevalence Rates'!M120","v":130.42699456284689},{"$f":"'Population 2016'!N120*'Prevalence Rates'!N120","v":154.37423380967718},{"$f":"'Population 2016'!O120*'Prevalence Rates'!O120","v":192.0594859093739},{"$f":"'Population 2016'!P120*'Prevalence Rates'!P120","v":59.001416911577323},{"$f":"'Population 2016'!Q120*'Prevalence Rates'!Q120","v":105.95263041857514},{"$f":"'Population 2016'!R120*'Prevalence Rates'!R120","v":28.467592464751053},{"$f":"'Population 2016'!S120*'Prevalence Rates'!S120","v":981.76194582442406},{"$f":"'Population 2016'!T120*'Prevalence Rates'!T120","v":244.18048015556278},{"$f":"'Population 2016'!U120*'Prevalence Rates'!U120","v":19.308861987002235},{"$f":"'Population 2016'!V120*'Prevalence Rates'!V120","v":158.31827787089378},{"$f":"'Population 2016'!W120*'Prevalence Rates'!W120","v":287.36622607090533},{"$f":"'Population 2016'!X120*'Prevalence Rates'!X120","v":287.36622607090533},{"$f":"'Population 2016'!Y120*'Prevalence Rates'!Y120","v":266.22824860866717},{"$f":"'Population 2016'!Z120*'Prevalence Rates'!Z120","v":404.79964171944494},{"$f":"'Population 2016'!AA120*'Prevalence Rates'!AA120","v":1486.8909865557398},{"$f":"'Population 2016'!AB120*'Prevalence Rates'!AB120","v":282.59211046551093},{"$f":"'Population 2016'!AC120*'Prevalence Rates'!AC120","v":786.50715909738074},{"$f":"'Population 2016'!AD120*'Prevalence Rates'!AD120","v":228.7636219696505},{"$f":"'Population 2016'!AE120*'Prevalence Rates'!AE120","v":188.68570039330351},{"$f":"'Population 2016'!AF120*'Prevalence Rates'!AF120","v":51.046822224631249},{"$f":"'Population 2016'!AG120*'Prevalence Rates'!AG120","v":188.68570039330351},{"$f":"'Population 2016'!AH120*'Prevalence Rates'!AH120","v":696.74152738401608},{"$f":"'Population 2016'!AI120*'Prevalence Rates'!AI120","v":633.91273552828739},{"$f":"'Population 2016'!AJ120*'Prevalence Rates'!AJ120","v":106.34817244666313},{"$f":"'Population 2016'!AK120*'Prevalence Rates'!AK120","v":53.19497271062928},{"$f":"'Population 2016'!AL120*'Prevalence Rates'!AL120","v":159.44617031720614},{"$f":"'Population 2016'!AM120*'Prevalence Rates'!AM120","v":389.90939610539488},{"$f":"'Population 2016'!AN120*'Prevalence Rates'!AN120","v":10.104940747134593},{"$f":"'Population 2016'!AO120*'Prevalence Rates'!AO120","v":10.104940747134593},{"$f":"'Population 2016'!AP120*'Prevalence Rates'!AP120","v":72.496256191520686},{"$f":"'Population 2016'!AQ120*'Prevalence Rates'!AQ120","v":131.67271489294137},{"$f":"'Population 2016'!AR120*'Prevalence Rates'!AR120","v":4038.1113043478263},{"$f":"'Population 2016'!AS120*'Prevalence Rates'!AS120","v":61.155933478324719},{"$f":"'Population 2016'!AT120*'Prevalence Rates'!AT120","v":1.1262515041617183},{"$f":"'Population 2016'!AU120*'Prevalence Rates'!AU120","v":1.1262515041617183},{"$f":"'Population 2016'!AV120*'Prevalence Rates'!AV120","v":127.53220824968348},{"$f":"'Population 2016'!AW120*'Prevalence Rates'!AW120","v":307.66047245327633},{"$f":"'Population 2016'!AX120*'Prevalence Rates'!AX120","v":39.206250471143044},{"$f":"'Population 2016'!AY120*'Prevalence Rates'!AY120","v":568.22088150770196},{"$f":"'Population 2016'!AZ120*'Prevalence Rates'!AZ120","v":273.57699701937543},{"$f":"'Population 2016'!BA120*'Prevalence Rates'!BA120","v":118.46113095075773},{"$f":"'Population 2016'!BB120*'Prevalence Rates'!BB120","v":175.44235229197227},{"$f":"'Population 2016'!BC120*'Prevalence Rates'!BC120","v":19.308861987002235},118]
[null,"Male 20-24",{"$f":"'Population 2016'!C121*'Prevalence Rates'!C121","v":453.96807586985074},{"$f":"'Population 2016'!D121*'Prevalence Rates'!D121","v":479.5843730516973},{"$f":"'Population 2016'!E121*'Prevalence Rates'!E121","v":82.834296056735823},{"$f":"'Population 2016'!F121*'Prevalence Rates'!F121","v":79.619789758124099},{"$f":"'Population 2016'!G121*'Prevalence Rates'!G121","v":55.332480955061882},{"$f":"'Population 2016'!H121*'Prevalence Rates'!H121","v":616.03227425077944},{"$f":"'Population 2016'!I121*'Prevalence Rates'!I121","v":90.47727144738451},{"$f":"'Population 2016'!J121*'Prevalence Rates'!J121","v":172.51361268835669},{"$f":"'Population 2016'!K121*'Prevalence Rates'!K121","v":98.34515177025132},{"$f":"'Population 2016'!L121*'Prevalence Rates'!L121","v":176.01873160030223},{"$f":"'Population 2016'!M121*'Prevalence Rates'!M121","v":176.01873160030223},{"$f":"'Population 2016'!N121*'Prevalence Rates'!N121","v":459.56443008235459},{"$f":"'Population 2016'!O121*'Prevalence Rates'!O121","v":258.36888200738332},{"$f":"'Population 2016'!P121*'Prevalence Rates'!P121","v":86.741939898643508},{"$f":"'Population 2016'!Q121*'Prevalence Rates'!Q121","v":148.64735813658652},{"$f":"'Population 2016'!R121*'Prevalence Rates'!R121","v":38.522659527988807},{"$f":"'Population 2016'!S121*'Prevalence Rates'!S121","v":1451.6240773476102},{"$f":"'Population 2016'!T121*'Prevalence Rates'!T121","v":471.45987236364095},{"$f":"'Population 2016'!U121*'Prevalence Rates'!U121","v":21.515589071231062},{"$f":"'Population 2016'!V121*'Prevalence Rates'!V121","v":190.30030658155877},{"$f":"'Population 2016'!W121*'Prevalence Rates'!W121","v":356.79109414308124},{"$f":"'Population 2016'!X121*'Prevalence Rates'!X121","v":356.79109414308124},{"$f":"'Population 2016'!Y121*'Prevalence Rates'!Y121","v":364.33685101139469},{"$f":"'Population 2016'!Z121*'Prevalence Rates'!Z121","v":763.1924546114567},{"$f":"'Population 2016'!AA121*'Prevalence Rates'!AA121","v":2216.5061494918314},{"$f":"'Population 2016'!AB121*'Prevalence Rates'!AB121","v":554.02049958598104},{"$f":"'Population 2016'!AC121*'Prevalence Rates'!AC121","v":1303.2495493400993},{"$f":"'Population 2016'!AD121*'Prevalence Rates'!AD121","v":296.10829975737767},{"$f":"'Population 2016'!AE121*'Prevalence Rates'!AE121","v":243.39338867301873},{"$f":"'Population 2016'!AF121*'Prevalence Rates'!AF121","v":77.169374442869781},{"$f":"'Population 2016'!AG121*'Prevalence Rates'!AG121","v":243.39338867301873},{"$f":"'Population 2016'!AH121*'Prevalence Rates'!AH121","v":910.56909958117956},{"$f":"'Population 2016'!AI121*'Prevalence Rates'!AI121","v":999.71843158975332},{"$f":"'Population 2016'!AJ121*'Prevalence Rates'!AJ121","v":131.41489649615556},{"$f":"'Population 2016'!AK121*'Prevalence Rates'!AK121","v":74.71895010799372},{"$f":"'Population 2016'!AL121*'Prevalence Rates'!AL121","v":200.08931177061163},{"$f":"'Population 2016'!AM121*'Prevalence Rates'!AM121","v":499.42261862075003},{"$f":"'Population 2016'!AN121*'Prevalence Rates'!AN121","v":13.724621014764896},{"$f":"'Population 2016'!AO121*'Prevalence Rates'!AO121","v":13.724621014764896},{"$f":"'Population 2016'!AP121*'Prevalence Rates'!AP121","v":127.63156682138774},{"$f":"'Population 2016'!AQ121*'Prevalence Rates'!AQ121","v":177.25871687656658},{"$f":"'Population 2016'!AR121*'Prevalence Rates'!AR121","v":6129.5165217391304},{"$f":"'Population 2016'!AS121*'Prevalence Rates'!AS121","v":90.47727144738451},{"$f":"'Population 2016'!AT121*'Prevalence Rates'!AT121","v":5.9128203968490212},{"$f":"'Population 2016'!AU121*'Prevalence Rates'!AU121","v":5.9128203968490212},{"$f":"'Population 2016'!AV121*'Prevalence Rates'!AV121","v":158.71999126401417},{"$f":"'Population 2016'!AW121*'Prevalence Rates'!AW121","v":411.656035072691},{"$f":"'Population 2016'!AX121*'Prevalence Rates'!AX121","v":77.914643793446174},{"$f":"'Population 2016'!AY121*'Prevalence Rates'!AY121","v":954.24362249828289},{"$f":"'Population 2016'!AZ121*'Prevalence Rates'!AZ121","v":606.21709384503276},{"$f":"'Population 2016'!BA121*'Prevalence Rates'!BA121","v":169.66559921763758},{"$f":"'Population 2016'!BB121*'Prevalence Rates'!BB121","v":246.74598721430593},{"$f":"'Population 2016'!BC121*'Prevalence Rates'!BC121","v":21.515589071231062},119]
[null,"Male 25-29",{"$f":"'Population 2016'!C122*'Prevalence Rates'!C122","v":459.89326673147229},{"$f":"'Population 2016'!D122*'Prevalence Rates'!D122","v":484.16444521469111},{"$f":"'Population 2016'!E122*'Prevalence Rates'!E122","v":82.56980741594451},{"$f":"'Population 2016'!F122*'Prevalence Rates'!F122","v":78.998831124721264},{"$f":"'Population 2016'!G122*'Prevalence Rates'!G122","v":42.937037099373207},{"$f":"'Population 2016'!H122*'Prevalence Rates'!H122","v":511.06184999868162},{"$f":"'Population 2016'!I122*'Prevalence Rates'!I122","v":80.747240304836339},{"$f":"'Population 2016'!J122*'Prevalence Rates'!J122","v":147.64815342757873},{"$f":"'Population 2016'!K122*'Prevalence Rates'!K122","v":79.537420815791549},{"$f":"'Population 2016'!L122*'Prevalence Rates'!L122","v":121.55754558490345},{"$f":"'Population 2016'!M122*'Prevalence Rates'!M122","v":121.55754558490345},{"$f":"'Population 2016'!N122*'Prevalence Rates'!N122","v":361.12680207276082},{"$f":"'Population 2016'!O122*'Prevalence Rates'!O122","v":210.69916879774536},{"$f":"'Population 2016'!P122*'Prevalence Rates'!P122","v":69.296297269543331},{"$f":"'Population 2016'!Q122*'Prevalence Rates'!Q122","v":125.67841852644175},{"$f":"'Population 2016'!R122*'Prevalence Rates'!R122","v":28.585616951666367},{"$f":"'Population 2016'!S122*'Prevalence Rates'!S122","v":1448.4646540458114},{"$f":"'Population 2016'!T122*'Prevalence Rates'!T122","v":587.93881936161904},{"$f":"'Population 2016'!U122*'Prevalence Rates'!U122","v":20.712643324276495},{"$f":"'Population 2016'!V122*'Prevalence Rates'!V122","v":163.67317310458245},{"$f":"'Population 2016'!W122*'Prevalence Rates'!W122","v":321.66346074156633},{"$f":"'Population 2016'!X122*'Prevalence Rates'!X122","v":321.66346074156633},{"$f":"'Population 2016'!Y122*'Prevalence Rates'!Y122","v":312.68305244885721},{"$f":"'Population 2016'!Z122*'Prevalence Rates'!Z122","v":890.57249518485992},{"$f":"'Population 2016'!AA122*'Prevalence Rates'!AA122","v":2135.0963611106631},{"$f":"'Population 2016'!AB122*'Prevalence Rates'!AB122","v":552.77012085628792},{"$f":"'Population 2016'!AC122*'Prevalence Rates'!AC122","v":1346.9906956967841},{"$f":"'Population 2016'!AD122*'Prevalence Rates'!AD122","v":243.72673431389347},{"$f":"'Population 2016'!AE122*'Prevalence Rates'!AE122","v":203.82661546184261},{"$f":"'Population 2016'!AF122*'Prevalence Rates'!AF122","v":65.068785973379605},{"$f":"'Population 2016'!AG122*'Prevalence Rates'!AG122","v":203.82661546184261},{"$f":"'Population 2016'!AH122*'Prevalence Rates'!AH122","v":787.43726406601354},{"$f":"'Population 2016'!AI122*'Prevalence Rates'!AI122","v":1038.2247106989437},{"$f":"'Population 2016'!AJ122*'Prevalence Rates'!AJ122","v":117.28984310725126},{"$f":"'Population 2016'!AK122*'Prevalence Rates'!AK122","v":69.396847393488343},{"$f":"'Population 2016'!AL122*'Prevalence Rates'!AL122","v":158.34191861272058},{"$f":"'Population 2016'!AM122*'Prevalence Rates'!AM122","v":433.31840263567562},{"$f":"'Population 2016'!AN122*'Prevalence Rates'!AN122","v":13.30840244457495},{"$f":"'Population 2016'!AO122*'Prevalence Rates'!AO122","v":13.30840244457495},{"$f":"'Population 2016'!AP122*'Prevalence Rates'!AP122","v":122.21163438595774},{"$f":"'Population 2016'!AQ122*'Prevalence Rates'!AQ122","v":156.5615488397747},{"$f":"'Population 2016'!AR122*'Prevalence Rates'!AR122","v":5728.0612745098042},{"$f":"'Population 2016'!AS122*'Prevalence Rates'!AS122","v":80.747240304836339},{"$f":"'Population 2016'!AT122*'Prevalence Rates'!AT122","v":5.4946096714297266},{"$f":"'Population 2016'!AU122*'Prevalence Rates'!AU122","v":5.4946096714297266},{"$f":"'Population 2016'!AV122*'Prevalence Rates'!AV122","v":140.73591616034568},{"$f":"'Population 2016'!AW122*'Prevalence Rates'!AW122","v":354.64026603447257},{"$f":"'Population 2016'!AX122*'Prevalence Rates'!AX122","v":69.06469880735844},{"$f":"'Population 2016'!AY122*'Prevalence Rates'!AY122","v":840.81926852806168},{"$f":"'Population 2016'!AZ122*'Prevalence Rates'!AZ122","v":525.66382557049178},{"$f":"'Population 2016'!BA122*'Prevalence Rates'!BA122","v":145.50683155654033},{"$f":"'Population 2016'!BB122*'Prevalence Rates'!BB122","v":205.2582121762066},{"$f":"'Population 2016'!BC122*'Prevalence Rates'!BC122","v":20.712643324276495},120]
[null,"Male 30-34",{"$f":"'Population 2016'!C123*'Prevalence Rates'!C123","v":365.45862076103833},{"$f":"'Population 2016'!D123*'Prevalence Rates'!D123","v":394.58398983897115},{"$f":"'Population 2016'!E123*'Prevalence Rates'!E123","v":73.497464181091075},{"$f":"'Population 2016'!F123*'Prevalence Rates'!F123","v":79.887706861708281},{"$f":"'Population 2016'!G123*'Prevalence Rates'!G123","v":45.650091641366572},{"$f":"'Population 2016'!H123*'Prevalence Rates'!H123","v":486.62063255460509},{"$f":"'Population 2016'!I123*'Prevalence Rates'!I123","v":68.663586385978789},{"$f":"'Population 2016'!J123*'Prevalence Rates'!J123","v":117.01222533885922},{"$f":"'Population 2016'!K123*'Prevalence Rates'!K123","v":75.426959791719639},{"$f":"'Population 2016'!L123*'Prevalence Rates'!L123","v":122.047203371751},{"$f":"'Population 2016'!M123*'Prevalence Rates'!M123","v":122.047203371751},{"$f":"'Population 2016'!N123*'Prevalence Rates'!N123","v":277.75411915049642},{"$f":"'Population 2016'!O123*'Prevalence Rates'!O123","v":215.40627788790775},{"$f":"'Population 2016'!P123*'Prevalence Rates'!P123","v":60.693998298151747},{"$f":"'Population 2016'!Q123*'Prevalence Rates'!Q123","v":122.86913622996833},{"$f":"'Population 2016'!R123*'Prevalence Rates'!R123","v":24.375332284366671},{"$f":"'Population 2016'!S123*'Prevalence Rates'!S123","v":1379.9381633842161},{"$f":"'Population 2016'!T123*'Prevalence Rates'!T123","v":531.12521916314438},{"$f":"'Population 2016'!U123*'Prevalence Rates'!U123","v":17.085005227934285},{"$f":"'Population 2016'!V123*'Prevalence Rates'!V123","v":163.91874425702744},{"$f":"'Population 2016'!W123*'Prevalence Rates'!W123","v":314.20719136879006},{"$f":"'Population 2016'!X123*'Prevalence Rates'!X123","v":314.20719136879006},{"$f":"'Population 2016'!Y123*'Prevalence Rates'!Y123","v":284.49679582541347},{"$f":"'Population 2016'!Z123*'Prevalence Rates'!Z123","v":826.27549106156152},{"$f":"'Population 2016'!AA123*'Prevalence Rates'!AA123","v":2057.6040977450843},{"$f":"'Population 2016'!AB123*'Prevalence Rates'!AB123","v":459.180908578318},{"$f":"'Population 2016'!AC123*'Prevalence Rates'!AC123","v":1273.2237325670937},{"$f":"'Population 2016'!AD123*'Prevalence Rates'!AD123","v":241.0759299527756},{"$f":"'Population 2016'!AE123*'Prevalence Rates'!AE123","v":197.35342318148975},{"$f":"'Population 2016'!AF123*'Prevalence Rates'!AF123","v":64.86544601721279},{"$f":"'Population 2016'!AG123*'Prevalence Rates'!AG123","v":197.35342318148975},{"$f":"'Population 2016'!AH123*'Prevalence Rates'!AH123","v":783.21468997986074},{"$f":"'Population 2016'!AI123*'Prevalence Rates'!AI123","v":989.9383703989796},{"$f":"'Population 2016'!AJ123*'Prevalence Rates'!AJ123","v":113.51441897289767},{"$f":"'Population 2016'!AK123*'Prevalence Rates'!AK123","v":64.57037492439234},{"$f":"'Population 2016'!AL123*'Prevalence Rates'!AL123","v":143.65040039092176},{"$f":"'Population 2016'!AM123*'Prevalence Rates'!AM123","v":443.343379492233},{"$f":"'Population 2016'!AN123*'Prevalence Rates'!AN123","v":9.0855439765848214},{"$f":"'Population 2016'!AO123*'Prevalence Rates'!AO123","v":9.0855439765848214},{"$f":"'Population 2016'!AP123*'Prevalence Rates'!AP123","v":121.72602524270228},{"$f":"'Population 2016'!AQ123*'Prevalence Rates'!AQ123","v":168.2728458002303},{"$f":"'Population 2016'!AR123*'Prevalence Rates'!AR123","v":5371.6029411764712},{"$f":"'Population 2016'!AS123*'Prevalence Rates'!AS123","v":68.663586385978789},{"$f":"'Population 2016'!AT123*'Prevalence Rates'!AT123","v":2.8667528720502924},{"$f":"'Population 2016'!AU123*'Prevalence Rates'!AU123","v":2.8667528720502924},{"$f":"'Population 2016'!AV123*'Prevalence Rates'!AV123","v":128.76914963653184},{"$f":"'Population 2016'!AW123*'Prevalence Rates'!AW123","v":341.08713484844179},{"$f":"'Population 2016'!AX123*'Prevalence Rates'!AX123","v":48.366409868150093},{"$f":"'Population 2016'!AY123*'Prevalence Rates'!AY123","v":775.21652915275513},{"$f":"'Population 2016'!AZ123*'Prevalence Rates'!AZ123","v":464.06667421267838},{"$f":"'Population 2016'!BA123*'Prevalence Rates'!BA123","v":141.19679507678498},{"$f":"'Population 2016'!BB123*'Prevalence Rates'!BB123","v":220.55356797376825},{"$f":"'Population 2016'!BC123*'Prevalence Rates'!BC123","v":17.085005227934285},121]
[null,"Male 35-39",{"$f":"'Population 2016'!C124*'Prevalence Rates'!C124","v":363.68572775379829},{"$f":"'Population 2016'!D124*'Prevalence Rates'!D124","v":415.73428962616595},{"$f":"'Population 2016'!E124*'Prevalence Rates'!E124","v":91.620956113692969},{"$f":"'Population 2016'!F124*'Prevalence Rates'!F124","v":87.364264996897333},{"$f":"'Population 2016'!G124*'Prevalence Rates'!G124","v":56.949043018539115},{"$f":"'Population 2016'!H124*'Prevalence Rates'!H124","v":551.84588205214129},{"$f":"'Population 2016'!I124*'Prevalence Rates'!I124","v":85.928205645209246},{"$f":"'Population 2016'!J124*'Prevalence Rates'!J124","v":132.40951970548258},{"$f":"'Population 2016'!K124*'Prevalence Rates'!K124","v":101.06625071616368},{"$f":"'Population 2016'!L124*'Prevalence Rates'!L124","v":147.35840741664396},{"$f":"'Population 2016'!M124*'Prevalence Rates'!M124","v":147.35840741664396},{"$f":"'Population 2016'!N124*'Prevalence Rates'!N124","v":242.97734197993591},{"$f":"'Population 2016'!O124*'Prevalence Rates'!O124","v":243.41380914278935},{"$f":"'Population 2016'!P124*'Prevalence Rates'!P124","v":67.626778061347949},{"$f":"'Population 2016'!Q124*'Prevalence Rates'!Q124","v":151.09812125664857},{"$f":"'Population 2016'!R124*'Prevalence Rates'!R124","v":28.235490196203536},{"$f":"'Population 2016'!S124*'Prevalence Rates'!S124","v":1549.2030486622743},{"$f":"'Population 2016'!T124*'Prevalence Rates'!T124","v":521.35716667718759},{"$f":"'Population 2016'!U124*'Prevalence Rates'!U124","v":21.279675267772543},{"$f":"'Population 2016'!V124*'Prevalence Rates'!V124","v":209.91477607302949},{"$f":"'Population 2016'!W124*'Prevalence Rates'!W124","v":394.35380238238685},{"$f":"'Population 2016'!X124*'Prevalence Rates'!X124","v":394.35380238238685},{"$f":"'Population 2016'!Y124*'Prevalence Rates'!Y124","v":348.13502029441679},{"$f":"'Population 2016'!Z124*'Prevalence Rates'!Z124","v":827.1661443737446},{"$f":"'Population 2016'!AA124*'Prevalence Rates'!AA124","v":2254.4710003036712},{"$f":"'Population 2016'!AB124*'Prevalence Rates'!AB124","v":494.42895277442796},{"$f":"'Population 2016'!AC124*'Prevalence Rates'!AC124","v":1333.0014236771669},{"$f":"'Population 2016'!AD124*'Prevalence Rates'!AD124","v":293.63524015245451},{"$f":"'Population 2016'!AE124*'Prevalence Rates'!AE124","v":238.57836046828979},{"$f":"'Population 2016'!AF124*'Prevalence Rates'!AF124","v":79.942088981889839},{"$f":"'Population 2016'!AG124*'Prevalence Rates'!AG124","v":238.57836046828979},{"$f":"'Population 2016'!AH124*'Prevalence Rates'!AH124","v":918.89178944486707},{"$f":"'Population 2016'!AI124*'Prevalence Rates'!AI124","v":1064.6936717474825},{"$f":"'Population 2016'!AJ124*'Prevalence Rates'!AJ124","v":142.7882945678183},{"$f":"'Population 2016'!AK124*'Prevalence Rates'!AK124","v":77.844586756611093},{"$f":"'Population 2016'!AL124*'Prevalence Rates'!AL124","v":157.56722461985731},{"$f":"'Population 2016'!AM124*'Prevalence Rates'!AM124","v":507.9637203749308},{"$f":"'Population 2016'!AN124*'Prevalence Rates'!AN124","v":11.798844409792652},{"$f":"'Population 2016'!AO124*'Prevalence Rates'!AO124","v":11.798844409792652},{"$f":"'Population 2016'!AP124*'Prevalence Rates'!AP124","v":140.54315091431127},{"$f":"'Population 2016'!AQ124*'Prevalence Rates'!AQ124","v":170.89276821471614},{"$f":"'Population 2016'!AR124*'Prevalence Rates'!AR124","v":5989.0740740740739},{"$f":"'Population 2016'!AS124*'Prevalence Rates'!AS124","v":85.928205645209246},{"$f":"'Population 2016'!AT124*'Prevalence Rates'!AT124","v":5.0478605185819641},{"$f":"'Population 2016'!AU124*'Prevalence Rates'!AU124","v":5.0478605185819641},{"$f":"'Population 2016'!AV124*'Prevalence Rates'!AV124","v":151.08832299767587},{"$f":"'Population 2016'!AW124*'Prevalence Rates'!AW124","v":411.66678835535635},{"$f":"'Population 2016'!AX124*'Prevalence Rates'!AX124","v":46.656468207255045},{"$f":"'Population 2016'!AY124*'Prevalence Rates'!AY124","v":867.975458334358},{"$f":"'Population 2016'!AZ124*'Prevalence Rates'!AZ124","v":469.94641123382621},{"$f":"'Population 2016'!BA124*'Prevalence Rates'!BA124","v":177.72609936106016},{"$f":"'Population 2016'!BB124*'Prevalence Rates'!BB124","v":247.11443476811141},{"$f":"'Population 2016'!BC124*'Prevalence Rates'!BC124","v":21.279675267772543},122]
[null,"Male 40-44",{"$f":"'Population 2016'!C125*'Prevalence Rates'!C125","v":316.50846830705103},{"$f":"'Population 2016'!D125*'Prevalence Rates'!D125","v":369.66395554397269},{"$f":"'Population 2016'!E125*'Prevalence Rates'!E125","v":86.032518983162745},{"$f":"'Population 2016'!F125*'Prevalence Rates'!F125","v":82.526504394463274},{"$f":"'Population 2016'!G125*'Prevalence Rates'!G125","v":54.381049036270767},{"$f":"'Population 2016'!H125*'Prevalence Rates'!H125","v":643.69191913938744},{"$f":"'Population 2016'!I125*'Prevalence Rates'!I125","v":93.574359537367684},{"$f":"'Population 2016'!J125*'Prevalence Rates'!J125","v":142.58089570480635},{"$f":"'Population 2016'!K125*'Prevalence Rates'!K125","v":109.75163163708399},{"$f":"'Population 2016'!L125*'Prevalence Rates'!L125","v":175.88950332071758},{"$f":"'Population 2016'!M125*'Prevalence Rates'!M125","v":175.88950332071758},{"$f":"'Population 2016'!N125*'Prevalence Rates'!N125","v":228.10724761151877},{"$f":"'Population 2016'!O125*'Prevalence Rates'!O125","v":270.97008942310515},{"$f":"'Population 2016'!P125*'Prevalence Rates'!P125","v":75.888873118616701},{"$f":"'Population 2016'!Q125*'Prevalence Rates'!Q125","v":155.64242565534477},{"$f":"'Population 2016'!R125*'Prevalence Rates'!R125","v":37.600024633135362},{"$f":"'Population 2016'!S125*'Prevalence Rates'!S125","v":1539.8520842362223},{"$f":"'Population 2016'!T125*'Prevalence Rates'!T125","v":446.32790652807205},{"$f":"'Population 2016'!U125*'Prevalence Rates'!U125","v":29.821516748498144},{"$f":"'Population 2016'!V125*'Prevalence Rates'!V125","v":227.36836419595551},{"$f":"'Population 2016'!W125*'Prevalence Rates'!W125","v":432.54787525235167},{"$f":"'Population 2016'!X125*'Prevalence Rates'!X125","v":432.54787525235167},{"$f":"'Population 2016'!Y125*'Prevalence Rates'!Y125","v":376.30292164575769},{"$f":"'Population 2016'!Z125*'Prevalence Rates'!Z125","v":638.12657576230197},{"$f":"'Population 2016'!AA125*'Prevalence Rates'!AA125","v":2166.1975067896433},{"$f":"'Population 2016'!AB125*'Prevalence Rates'!AB125","v":437.5813910127398},{"$f":"'Population 2016'!AC125*'Prevalence Rates'!AC125","v":1156.4487276136244},{"$f":"'Population 2016'!AD125*'Prevalence Rates'!AD125","v":288.54329957177612},{"$f":"'Population 2016'!AE125*'Prevalence Rates'!AE125","v":236.55650995584665},{"$f":"'Population 2016'!AF125*'Prevalence Rates'!AF125","v":67.96379551880537},{"$f":"'Population 2016'!AG125*'Prevalence Rates'!AG125","v":236.55650995584665},{"$f":"'Population 2016'!AH125*'Prevalence Rates'!AH125","v":1004.664967842724},{"$f":"'Population 2016'!AI125*'Prevalence Rates'!AI125","v":1013.1931881190259},{"$f":"'Population 2016'!AJ125*'Prevalence Rates'!AJ125","v":142.30481275776924},{"$f":"'Population 2016'!AK125*'Prevalence Rates'!AK125","v":67.320533182219464},{"$f":"'Population 2016'!AL125*'Prevalence Rates'!AL125","v":194.14999650506465},{"$f":"'Population 2016'!AM125*'Prevalence Rates'!AM125","v":561.8067250619755},{"$f":"'Population 2016'!AN125*'Prevalence Rates'!AN125","v":16.715029580539589},{"$f":"'Population 2016'!AO125*'Prevalence Rates'!AO125","v":16.715029580539589},{"$f":"'Population 2016'!AP125*'Prevalence Rates'!AP125","v":104.68184544502535},{"$f":"'Population 2016'!AQ125*'Prevalence Rates'!AQ125","v":181.15422773800165},{"$f":"'Population 2016'!AR125*'Prevalence Rates'!AR125","v":5928.5185185185182},{"$f":"'Population 2016'!AS125*'Prevalence Rates'!AS125","v":93.574359537367684},{"$f":"'Population 2016'!AT125*'Prevalence Rates'!AT125","v":4.4359986375417257},{"$f":"'Population 2016'!AU125*'Prevalence Rates'!AU125","v":4.4359986375417257},{"$f":"'Population 2016'!AV125*'Prevalence Rates'!AV125","v":177.42085929155652},{"$f":"'Population 2016'!AW125*'Prevalence Rates'!AW125","v":444.02882397925129},{"$f":"'Population 2016'!AX125*'Prevalence Rates'!AX125","v":49.766899421072047},{"$f":"'Population 2016'!AY125*'Prevalence Rates'!AY125","v":856.12241541987351},{"$f":"'Population 2016'!AZ125*'Prevalence Rates'!AZ125","v":412.67935211239745},{"$f":"'Population 2016'!BA125*'Prevalence Rates'!BA125","v":166.24565567562522},{"$f":"'Population 2016'!BB125*'Prevalence Rates'!BB125","v":267.0514804606554},{"$f":"'Population 2016'!BC125*'Prevalence Rates'!BC125","v":29.821516748498144},123]
[null,"Male 45-49",{"$f":"'Population 2016'!C126*'Prevalence Rates'!C126","v":365.60792338173479},{"$f":"'Population 2016'!D126*'Prevalence Rates'!D126","v":427.40374806106422},{"$f":"'Population 2016'!E126*'Prevalence Rates'!E126","v":99.694622321606374},{"$f":"'Population 2016'!F126*'Prevalence Rates'!F126","v":103.11375404244023},{"$f":"'Population 2016'!G126*'Prevalence Rates'!G126","v":81.856154081693717},{"$f":"'Population 2016'!H126*'Prevalence Rates'!H126","v":899.17667676491487},{"$f":"'Population 2016'!I126*'Prevalence Rates'!I126","v":121.23334254550315},{"$f":"'Population 2016'!J126*'Prevalence Rates'!J126","v":191.11512942798132},{"$f":"'Population 2016'!K126*'Prevalence Rates'!K126","v":152.64375899400514},{"$f":"'Population 2016'!L126*'Prevalence Rates'!L126","v":230.45138763818511},{"$f":"'Population 2016'!M126*'Prevalence Rates'!M126","v":230.45138763818511},{"$f":"'Population 2016'!N126*'Prevalence Rates'!N126","v":295.13143638820486},{"$f":"'Population 2016'!O126*'Prevalence Rates'!O126","v":368.24772995576802},{"$f":"'Population 2016'!P126*'Prevalence Rates'!P126","v":94.230125943382177},{"$f":"'Population 2016'!Q126*'Prevalence Rates'!Q126","v":192.84524489167848},{"$f":"'Population 2016'!R126*'Prevalence Rates'!R126","v":43.846760120121651},{"$f":"'Population 2016'!S126*'Prevalence Rates'!S126","v":1796.8613133707854},{"$f":"'Population 2016'!T126*'Prevalence Rates'!T126","v":445.50409295746346},{"$f":"'Population 2016'!U126*'Prevalence Rates'!U126","v":38.319640586504825},{"$f":"'Population 2016'!V126*'Prevalence Rates'!V126","v":292.57335210230008},{"$f":"'Population 2016'!W126*'Prevalence Rates'!W126","v":539.23770510521433},{"$f":"'Population 2016'!X126*'Prevalence Rates'!X126","v":539.23770510521433},{"$f":"'Population 2016'!Y126*'Prevalence Rates'!Y126","v":491.3187112649735},{"$f":"'Population 2016'!Z126*'Prevalence Rates'!Z126","v":733.60751082698687},{"$f":"'Population 2016'!AA126*'Prevalence Rates'!AA126","v":2699.3336496794377},{"$f":"'Population 2016'!AB126*'Prevalence Rates'!AB126","v":524.40540361475314},{"$f":"'Population 2016'!AC126*'Prevalence Rates'!AC126","v":1394.0968962424088},{"$f":"'Population 2016'!AD126*'Prevalence Rates'!AD126","v":395.64301741336141},{"$f":"'Population 2016'!AE126*'Prevalence Rates'!AE126","v":314.60237203752001},{"$f":"'Population 2016'!AF126*'Prevalence Rates'!AF126","v":90.386737980197708},{"$f":"'Population 2016'!AG126*'Prevalence Rates'!AG126","v":314.60237203752001},{"$f":"'Population 2016'!AH126*'Prevalence Rates'!AH126","v":1297.9170437134526},{"$f":"'Population 2016'!AI126*'Prevalence Rates'!AI126","v":1139.0727928107126},{"$f":"'Population 2016'!AJ126*'Prevalence Rates'!AJ126","v":179.74617729086569},{"$f":"'Population 2016'!AK126*'Prevalence Rates'!AK126","v":94.883329678394716},{"$f":"'Population 2016'!AL126*'Prevalence Rates'!AL126","v":282.05717922929045},{"$f":"'Population 2016'!AM126*'Prevalence Rates'!AM126","v":691.37616355746184},{"$f":"'Population 2016'!AN126*'Prevalence Rates'!AN126","v":18.722903102907814},{"$f":"'Population 2016'!AO126*'Prevalence Rates'!AO126","v":18.722903102907814},{"$f":"'Population 2016'!AP126*'Prevalence Rates'!AP126","v":137.81551592471206},{"$f":"'Population 2016'!AQ126*'Prevalence Rates'!AQ126","v":227.82327443098316},{"$f":"'Population 2016'!AR126*'Prevalence Rates'!AR126","v":7392.7699248120298},{"$f":"'Population 2016'!AS126*'Prevalence Rates'!AS126","v":121.23334254550315},{"$f":"'Population 2016'!AT126*'Prevalence Rates'!AT126","v":2.1637828355523725},{"$f":"'Population 2016'!AU126*'Prevalence Rates'!AU126","v":2.1637828355523725},{"$f":"'Population 2016'!AV126*'Prevalence Rates'!AV126","v":246.60340719049236},{"$f":"'Population 2016'!AW126*'Prevalence Rates'!AW126","v":606.10994765845874},{"$f":"'Population 2016'!AX126*'Prevalence Rates'!AX126","v":63.864484041974812},{"$f":"'Population 2016'!AY126*'Prevalence Rates'!AY126","v":1082.4879858692541},{"$f":"'Population 2016'!AZ126*'Prevalence Rates'!AZ126","v":530.75541308213337},{"$f":"'Population 2016'!BA126*'Prevalence Rates'!BA126","v":222.6957741490379},{"$f":"'Population 2016'!BB126*'Prevalence Rates'!BB126","v":318.55785575083763},{"$f":"'Population 2016'!BC126*'Prevalence Rates'!BC126","v":38.319640586504825},124]
[null,"Male 50-54",{"$f":"'Population 2016'!C127*'Prevalence Rates'!C127","v":339.33813851119487},{"$f":"'Population 2016'!D127*'Prevalence Rates'!D127","v":412.42464474116713},{"$f":"'Population 2016'!E127*'Prevalence Rates'!E127","v":105.13542032952711},{"$f":"'Population 2016'!F127*'Prevalence Rates'!F127","v":103.26857949896042},{"$f":"'Population 2016'!G127*'Prevalence Rates'!G127","v":84.15733110407065},{"$f":"'Population 2016'!H127*'Prevalence Rates'!H127","v":950.82140982964927},{"$f":"'Population 2016'!I127*'Prevalence Rates'!I127","v":137.27893200005502},{"$f":"'Population 2016'!J127*'Prevalence Rates'!J127","v":193.09150098359643},{"$f":"'Population 2016'!K127*'Prevalence Rates'!K127","v":142.62024761541193},{"$f":"'Population 2016'!L127*'Prevalence Rates'!L127","v":269.8549927783929},{"$f":"'Population 2016'!M127*'Prevalence Rates'!M127","v":269.8549927783929},{"$f":"'Population 2016'!N127*'Prevalence Rates'!N127","v":274.42045839605015},{"$f":"'Population 2016'!O127*'Prevalence Rates'!O127","v":385.42637723954005},{"$f":"'Population 2016'!P127*'Prevalence Rates'!P127","v":120.86761737614039},{"$f":"'Population 2016'!Q127*'Prevalence Rates'!Q127","v":208.50361947690021},{"$f":"'Population 2016'!R127*'Prevalence Rates'!R127","v":52.801380144653535},{"$f":"'Population 2016'!S127*'Prevalence Rates'!S127","v":1846.7578215826497},{"$f":"'Population 2016'!T127*'Prevalence Rates'!T127","v":428.94755468864696},{"$f":"'Population 2016'!U127*'Prevalence Rates'!U127","v":42.233135795339358},{"$f":"'Population 2016'!V127*'Prevalence Rates'!V127","v":284.36076678013023},{"$f":"'Population 2016'!W127*'Prevalence Rates'!W127","v":562.30336416751834},{"$f":"'Population 2016'!X127*'Prevalence Rates'!X127","v":562.30336416751834},{"$f":"'Population 2016'!Y127*'Prevalence Rates'!Y127","v":484.34444491156711},{"$f":"'Population 2016'!Z127*'Prevalence Rates'!Z127","v":709.15392713275389},{"$f":"'Population 2016'!AA127*'Prevalence Rates'!AA127","v":2782.4280412117828},{"$f":"'Population 2016'!AB127*'Prevalence Rates'!AB127","v":506.28170070996083},{"$f":"'Population 2016'!AC127*'Prevalence Rates'!AC127","v":1457.7192757795606},{"$f":"'Population 2016'!AD127*'Prevalence Rates'!AD127","v":436.06919709719551},{"$f":"'Population 2016'!AE127*'Prevalence Rates'!AE127","v":354.86267559197188},{"$f":"'Population 2016'!AF127*'Prevalence Rates'!AF127","v":118.72113860094933},{"$f":"'Population 2016'!AG127*'Prevalence Rates'!AG127","v":354.86267559197188},{"$f":"'Population 2016'!AH127*'Prevalence Rates'!AH127","v":1317.5978242731221},{"$f":"'Population 2016'!AI127*'Prevalence Rates'!AI127","v":1151.0810903252834},{"$f":"'Population 2016'!AJ127*'Prevalence Rates'!AJ127","v":195.00268209506598},{"$f":"'Population 2016'!AK127*'Prevalence Rates'!AK127","v":91.793259554768838},{"$f":"'Population 2016'!AL127*'Prevalence Rates'!AL127","v":286.03782490389739},{"$f":"'Population 2016'!AM127*'Prevalence Rates'!AM127","v":704.30297964327679},{"$f":"'Population 2016'!AN127*'Prevalence Rates'!AN127","v":21.219290183295524},{"$f":"'Population 2016'!AO127*'Prevalence Rates'!AO127","v":21.219290183295524},{"$f":"'Population 2016'!AP127*'Prevalence Rates'!AP127","v":135.78550014186033},{"$f":"'Population 2016'!AQ127*'Prevalence Rates'!AQ127","v":240.49205217973719},{"$f":"'Population 2016'!AR127*'Prevalence Rates'!AR127","v":7620.6706766917296},{"$f":"'Population 2016'!AS127*'Prevalence Rates'!AS127","v":137.27893200005502},{"$f":"'Population 2016'!AT127*'Prevalence Rates'!AT127","v":5.9920140061450322},{"$f":"'Population 2016'!AU127*'Prevalence Rates'!AU127","v":5.9920140061450322},{"$f":"'Population 2016'!AV127*'Prevalence Rates'!AV127","v":273.84721217534678},{"$f":"'Population 2016'!AW127*'Prevalence Rates'!AW127","v":612.99532518784724},{"$f":"'Population 2016'!AX127*'Prevalence Rates'!AX127","v":70.486377548631182},{"$f":"'Population 2016'!AY127*'Prevalence Rates'!AY127","v":1091.3126161888404},{"$f":"'Population 2016'!AZ127*'Prevalence Rates'!AZ127","v":513.29794860432912},{"$f":"'Population 2016'!BA127*'Prevalence Rates'!BA127","v":234.46717968658146},{"$f":"'Population 2016'!BB127*'Prevalence Rates'!BB127","v":316.08398948753961},{"$f":"'Population 2016'!BC127*'Prevalence Rates'!BC127","v":42.233135795339358},125]
[null,"Male 55-59",{"$f":"'Population 2016'!C128*'Prevalence Rates'!C128","v":588.26940894711936},{"$f":"'Population 2016'!D128*'Prevalence Rates'!D128","v":715.22836516291773},{"$f":"'Population 2016'!E128*'Prevalence Rates'!E128","v":182.46704533085131},{"$f":"'Population 2016'!F128*'Prevalence Rates'!F128","v":153.61981482475178},{"$f":"'Population 2016'!G128*'Prevalence Rates'!G128","v":157.0065435718042},{"$f":"'Population 2016'!H128*'Prevalence Rates'!H128","v":1549.7488958172892},{"$f":"'Population 2016'!I128*'Prevalence Rates'!I128","v":234.25542136051794},{"$f":"'Population 2016'!J128*'Prevalence Rates'!J128","v":317.30977048541581},{"$f":"'Population 2016'!K128*'Prevalence Rates'!K128","v":226.1134156923641},{"$f":"'Population 2016'!L128*'Prevalence Rates'!L128","v":459.9513336917127},{"$f":"'Population 2016'!M128*'Prevalence Rates'!M128","v":459.9513336917127},{"$f":"'Population 2016'!N128*'Prevalence Rates'!N128","v":449.41061260968922},{"$f":"'Population 2016'!O128*'Prevalence Rates'!O128","v":625.31821253064982},{"$f":"'Population 2016'!P128*'Prevalence Rates'!P128","v":182.49887778265978},{"$f":"'Population 2016'!Q128*'Prevalence Rates'!Q128","v":344.94762916869928},{"$f":"'Population 2016'!R128*'Prevalence Rates'!R128","v":76.729920793246521},{"$f":"'Population 2016'!S128*'Prevalence Rates'!S128","v":2971.8914120447748},{"$f":"'Population 2016'!T128*'Prevalence Rates'!T128","v":649.64541631393388},{"$f":"'Population 2016'!U128*'Prevalence Rates'!U128","v":73.855554181301471},{"$f":"'Population 2016'!V128*'Prevalence Rates'!V128","v":457.42585777007139},{"$f":"'Population 2016'!W128*'Prevalence Rates'!W128","v":923.60110741958385},{"$f":"'Population 2016'!X128*'Prevalence Rates'!X128","v":923.60110741958385},{"$f":"'Population 2016'!Y128*'Prevalence Rates'!Y128","v":785.34428627978514},{"$f":"'Population 2016'!Z128*'Prevalence Rates'!Z128","v":1122.3119893214459},{"$f":"'Population 2016'!AA128*'Prevalence Rates'!AA128","v":4516.8920986790099},{"$f":"'Population 2016'!AB128*'Prevalence Rates'!AB128","v":867.60458068018215},{"$f":"'Population 2016'!AC128*'Prevalence Rates'!AC128","v":2334.1933279594027},{"$f":"'Population 2016'!AD128*'Prevalence Rates'!AD128","v":756.21795003318243},{"$f":"'Population 2016'!AE128*'Prevalence Rates'!AE128","v":600.58412192098046},{"$f":"'Population 2016'!AF128*'Prevalence Rates'!AF128","v":190.25473710097361},{"$f":"'Population 2016'!AG128*'Prevalence Rates'!AG128","v":600.58412192098046},{"$f":"'Population 2016'!AH128*'Prevalence Rates'!AH128","v":2170.4798031437845},{"$f":"'Population 2016'!AI128*'Prevalence Rates'!AI128","v":1822.3723002272995},{"$f":"'Population 2016'!AJ128*'Prevalence Rates'!AJ128","v":324.19607968313858},{"$f":"'Population 2016'!AK128*'Prevalence Rates'!AK128","v":149.60040437164349},{"$f":"'Population 2016'!AL128*'Prevalence Rates'!AL128","v":458.00282322365598},{"$f":"'Population 2016'!AM128*'Prevalence Rates'!AM128","v":1117.7780148386155},{"$f":"'Population 2016'!AN128*'Prevalence Rates'!AN128","v":34.567904138760895},{"$f":"'Population 2016'!AO128*'Prevalence Rates'!AO128","v":34.567904138760895},{"$f":"'Population 2016'!AP128*'Prevalence Rates'!AP128","v":204.72015760663933},{"$f":"'Population 2016'!AQ128*'Prevalence Rates'!AQ128","v":399.23778593828672},{"$f":"'Population 2016'!AR128*'Prevalence Rates'!AR128","v":12442.113074204948},{"$f":"'Population 2016'!AS128*'Prevalence Rates'!AS128","v":234.25542136051794},{"$f":"'Population 2016'!AT128*'Prevalence Rates'!AT128","v":7.6267610546413147},{"$f":"'Population 2016'!AU128*'Prevalence Rates'!AU128","v":7.6267610546413147},{"$f":"'Population 2016'!AV128*'Prevalence Rates'!AV128","v":455.30134366442496},{"$f":"'Population 2016'!AW128*'Prevalence Rates'!AW128","v":1049.8132686063095},{"$f":"'Population 2016'!AX128*'Prevalence Rates'!AX128","v":120.07349241648791},{"$f":"'Population 2016'!AY128*'Prevalence Rates'!AY128","v":1749.8265673524904},{"$f":"'Population 2016'!AZ128*'Prevalence Rates'!AZ128","v":797.36429239776851},{"$f":"'Population 2016'!BA128*'Prevalence Rates'!BA128","v":403.05625321129639},{"$f":"'Population 2016'!BB128*'Prevalence Rates'!BB128","v":499.37182643186037},{"$f":"'Population 2016'!BC128*'Prevalence Rates'!BC128","v":73.855554181301471},126]
[null,"Male 60-64",{"$f":"'Population 2016'!C129*'Prevalence Rates'!C129","v":481.23410854663263},{"$f":"'Population 2016'!D129*'Prevalence Rates'!D129","v":590.27459073730961},{"$f":"'Population 2016'!E129*'Prevalence Rates'!E129","v":153.41896856257051},{"$f":"'Population 2016'!F129*'Prevalence Rates'!F129","v":152.80123677062343},{"$f":"'Population 2016'!G129*'Prevalence Rates'!G129","v":146.28838469328619},{"$f":"'Population 2016'!H129*'Prevalence Rates'!H129","v":1360.8271256605149},{"$f":"'Population 2016'!I129*'Prevalence Rates'!I129","v":224.13111849992924},{"$f":"'Population 2016'!J129*'Prevalence Rates'!J129","v":266.80492227423548},{"$f":"'Population 2016'!K129*'Prevalence Rates'!K129","v":207.94358764565627},{"$f":"'Population 2016'!L129*'Prevalence Rates'!L129","v":416.06055282962768},{"$f":"'Population 2016'!M129*'Prevalence Rates'!M129","v":416.06055282962768},{"$f":"'Population 2016'!N129*'Prevalence Rates'!N129","v":373.55831378089647},{"$f":"'Population 2016'!O129*'Prevalence Rates'!O129","v":524.58473287122297},{"$f":"'Population 2016'!P129*'Prevalence Rates'!P129","v":144.35602551297205},{"$f":"'Population 2016'!Q129*'Prevalence Rates'!Q129","v":271.9639728919534},{"$f":"'Population 2016'!R129*'Prevalence Rates'!R129","v":69.927622850582821},{"$f":"'Population 2016'!S129*'Prevalence Rates'!S129","v":2529.7975630959004},{"$f":"'Population 2016'!T129*'Prevalence Rates'!T129","v":514.48428942982684},{"$f":"'Population 2016'!U129*'Prevalence Rates'!U129","v":74.430305575708488},{"$f":"'Population 2016'!V129*'Prevalence Rates'!V129","v":376.61496134134421},{"$f":"'Population 2016'!W129*'Prevalence Rates'!W129","v":831.31424022301962},{"$f":"'Population 2016'!X129*'Prevalence Rates'!X129","v":831.31424022301962},{"$f":"'Population 2016'!Y129*'Prevalence Rates'!Y129","v":651.75812885245762},{"$f":"'Population 2016'!Z129*'Prevalence Rates'!Z129","v":893.43132547789844},{"$f":"'Population 2016'!AA129*'Prevalence Rates'!AA129","v":3796.2772610115776},{"$f":"'Population 2016'!AB129*'Prevalence Rates'!AB129","v":712.06762504003746},{"$f":"'Population 2016'!AC129*'Prevalence Rates'!AC129","v":1900.6637582069679},{"$f":"'Population 2016'!AD129*'Prevalence Rates'!AD129","v":679.54735921202769},{"$f":"'Population 2016'!AE129*'Prevalence Rates'!AE129","v":532.73246192345209},{"$f":"'Population 2016'!AF129*'Prevalence Rates'!AF129","v":143.31524815742634},{"$f":"'Population 2016'!AG129*'Prevalence Rates'!AG129","v":532.73246192345209},{"$f":"'Population 2016'!AH129*'Prevalence Rates'!AH129","v":1884.0622871111368},{"$f":"'Population 2016'!AI129*'Prevalence Rates'!AI129","v":1486.1152177337462},{"$f":"'Population 2016'!AJ129*'Prevalence Rates'!AJ129","v":284.63735880664501},{"$f":"'Population 2016'!AK129*'Prevalence Rates'!AK129","v":119.80846088863954},{"$f":"'Population 2016'!AL129*'Prevalence Rates'!AL129","v":424.42931211207508},{"$f":"'Population 2016'!AM129*'Prevalence Rates'!AM129","v":1002.3992190926176},{"$f":"'Population 2016'!AN129*'Prevalence Rates'!AN129","v":34.253650464772157},{"$f":"'Population 2016'!AO129*'Prevalence Rates'!AO129","v":34.253650464772157},{"$f":"'Population 2016'!AP129*'Prevalence Rates'!AP129","v":187.62701823365779},{"$f":"'Population 2016'!AQ129*'Prevalence Rates'!AQ129","v":349.28575964079494},{"$f":"'Population 2016'!AR129*'Prevalence Rates'!AR129","v":10646.607773851591},{"$f":"'Population 2016'!AS129*'Prevalence Rates'!AS129","v":224.13111849992924},{"$f":"'Population 2016'!AT129*'Prevalence Rates'!AT129","v":6.1600762364410624},{"$f":"'Population 2016'!AU129*'Prevalence Rates'!AU129","v":6.1600762364410624},{"$f":"'Population 2016'!AV129*'Prevalence Rates'!AV129","v":399.83736179984953},{"$f":"'Population 2016'!AW129*'Prevalence Rates'!AW129","v":880.96945691170163},{"$f":"'Population 2016'!AX129*'Prevalence Rates'!AX129","v":91.805650789280165},{"$f":"'Population 2016'!AY129*'Prevalence Rates'!AY129","v":1577.954358936601},{"$f":"'Population 2016'!AZ129*'Prevalence Rates'!AZ129","v":720.87543476690007},{"$f":"'Population 2016'!BA129*'Prevalence Rates'!BA129","v":329.38840861175271},{"$f":"'Population 2016'!BB129*'Prevalence Rates'!BB129","v":409.15623119333088},{"$f":"'Population 2016'!BC129*'Prevalence Rates'!BC129","v":74.430305575708488},127]
[null,"Male 65-69",{"$f":"'Population 2016'!C130*'Prevalence Rates'!C130","v":0},{"$f":"'Population 2016'!D130*'Prevalence Rates'!D130","v":0},{"$f":"'Population 2016'!E130*'Prevalence Rates'!E130","v":0},{"$f":"'Population 2016'!F130*'Prevalence Rates'!F130","v":0},{"$f":"'Population 2016'!G130*'Prevalence Rates'!G130","v":0},{"$f":"'Population 2016'!H130*'Prevalence Rates'!H130","v":0},{"$f":"'Population 2016'!I130*'Prevalence Rates'!I130","v":0},{"$f":"'Population 2016'!J130*'Prevalence Rates'!J130","v":0},{"$f":"'Population 2016'!K130*'Prevalence Rates'!K130","v":0},{"$f":"'Population 2016'!L130*'Prevalence Rates'!L130","v":0},{"$f":"'Population 2016'!M130*'Prevalence Rates'!M130","v":0},{"$f":"'Population 2016'!N130*'Prevalence Rates'!N130","v":0},{"$f":"'Population 2016'!O130*'Prevalence Rates'!O130","v":0},{"$f":"'Population 2016'!P130*'Prevalence Rates'!P130","v":0},{"$f":"'Population 2016'!Q130*'Prevalence Rates'!Q130","v":0},{"$f":"'Population 2016'!R130*'Prevalence Rates'!R130","v":0},{"$f":"'Population 2016'!S130*'Prevalence Rates'!S130","v":0},{"$f":"'Population 2016'!T130*'Prevalence Rates'!T130","v":0},{"$f":"'Population 2016'!U130*'Prevalence Rates'!U130","v":0},{"$f":"'Population 2016'!V130*'Prevalence Rates'!V130","v":0},{"$f":"'Population 2016'!W130*'Prevalence Rates'!W130","v":0},{"$f":"'Population 2016'!X130*'Prevalence Rates'!X130","v":0},{"$f":"'Population 2016'!Y130*'Prevalence Rates'!Y130","v":0},{"$f":"'Population 2016'!Z130*'Prevalence Rates'!Z130","v":0},{"$f":"'Population 2016'!AA130*'Prevalence Rates'!AA130","v":0},{"$f":"'Population 2016'!AB130*'Prevalence Rates'!AB130","v":0},{"$f":"'Population 2016'!AC130*'Prevalence Rates'!AC130","v":0},{"$f":"'Population 2016'!AD130*'Prevalence Rates'!AD130","v":0},{"$f":"'Population 2016'!AE130*'Prevalence Rates'!AE130","v":0},{"$f":"'Population 2016'!AF130*'Prevalence Rates'!AF130","v":0},{"$f":"'Population 2016'!AG130*'Prevalence Rates'!AG130","v":0},{"$f":"'Population 2016'!AH130*'Prevalence Rates'!AH130","v":0},{"$f":"'Population 2016'!AI130*'Prevalence Rates'!AI130","v":0},{"$f":"'Population 2016'!AJ130*'Prevalence Rates'!AJ130","v":0},{"$f":"'Population 2016'!AK130*'Prevalence Rates'!AK130","v":0},{"$f":"'Population 2016'!AL130*'Prevalence Rates'!AL130","v":0},{"$f":"'Population 2016'!AM130*'Prevalence Rates'!AM130","v":0},{"$f":"'Population 2016'!AN130*'Prevalence Rates'!AN130","v":0},{"$f":"'Population 2016'!AO130*'Prevalence Rates'!AO130","v":0},{"$f":"'Population 2016'!AP130*'Prevalence Rates'!AP130","v":0},{"$f":"'Population 2016'!AQ130*'Prevalence Rates'!AQ130","v":0},{"$f":"'Population 2016'!AR130*'Prevalence Rates'!AR130","v":0},{"$f":"'Population 2016'!AS130*'Prevalence Rates'!AS130","v":0},{"$f":"'Population 2016'!AT130*'Prevalence Rates'!AT130","v":0},{"$f":"'Population 2016'!AU130*'Prevalence Rates'!AU130","v":0},{"$f":"'Population 2016'!AV130*'Prevalence Rates'!AV130","v":0},{"$f":"'Population 2016'!AW130*'Prevalence Rates'!AW130","v":0},{"$f":"'Population 2016'!AX130*'Prevalence Rates'!AX130","v":0},{"$f":"'Population 2016'!AY130*'Prevalence Rates'!AY130","v":0},{"$f":"'Population 2016'!AZ130*'Prevalence Rates'!AZ130","v":0},{"$f":"'Population 2016'!BA130*'Prevalence Rates'!BA130","v":0},{"$f":"'Population 2016'!BB130*'Prevalence Rates'!BB130","v":0},{"$f":"'Population 2016'!BC130*'Prevalence Rates'!BC130","v":0},128]
[null,"Male 70-74",{"$f":"'Population 2016'!C131*'Prevalence Rates'!C131","v":0},{"$f":"'Population 2016'!D131*'Prevalence Rates'!D131","v":0},{"$f":"'Population 2016'!E131*'Prevalence Rates'!E131","v":0},{"$f":"'Population 2016'!F131*'Prevalence Rates'!F131","v":0},{"$f":"'Population 2016'!G131*'Prevalence Rates'!G131","v":0},{"$f":"'Population 2016'!H131*'Prevalence Rates'!H131","v":0},{"$f":"'Population 2016'!I131*'Prevalence Rates'!I131","v":0},{"$f":"'Population 2016'!J131*'Prevalence Rates'!J131","v":0},{"$f":"'Population 2016'!K131*'Prevalence Rates'!K131","v":0},{"$f":"'Population 2016'!L131*'Prevalence Rates'!L131","v":0},{"$f":"'Population 2016'!M131*'Prevalence Rates'!M131","v":0},{"$f":"'Population 2016'!N131*'Prevalence Rates'!N131","v":0},{"$f":"'Population 2016'!O131*'Prevalence Rates'!O131","v":0},{"$f":"'Population 2016'!P131*'Prevalence Rates'!P131","v":0},{"$f":"'Population 2016'!Q131*'Prevalence Rates'!Q131","v":0},{"$f":"'Population 2016'!R131*'Prevalence Rates'!R131","v":0},{"$f":"'Population 2016'!S131*'Prevalence Rates'!S131","v":0},{"$f":"'Population 2016'!T131*'Prevalence Rates'!T131","v":0},{"$f":"'Population 2016'!U131*'Prevalence Rates'!U131","v":0},{"$f":"'Population 2016'!V131*'Prevalence Rates'!V131","v":0},{"$f":"'Population 2016'!W131*'Prevalence Rates'!W131","v":0},{"$f":"'Population 2016'!X131*'Prevalence Rates'!X131","v":0},{"$f":"'Population 2016'!Y131*'Prevalence Rates'!Y131","v":0},{"$f":"'Population 2016'!Z131*'Prevalence Rates'!Z131","v":0},{"$f":"'Population 2016'!AA131*'Prevalence Rates'!AA131","v":0},{"$f":"'Population 2016'!AB131*'Prevalence Rates'!AB131","v":0},{"$f":"'Population 2016'!AC131*'Prevalence Rates'!AC131","v":0},{"$f":"'Population 2016'!AD131*'Prevalence Rates'!AD131","v":0},{"$f":"'Population 2016'!AE131*'Prevalence Rates'!AE131","v":0},{"$f":"'Population 2016'!AF131*'Prevalence Rates'!AF131","v":0},{"$f":"'Population 2016'!AG131*'Prevalence Rates'!AG131","v":0},{"$f":"'Population 2016'!AH131*'Prevalence Rates'!AH131","v":0},{"$f":"'Population 2016'!AI131*'Prevalence Rates'!AI131","v":0},{"$f":"'Population 2016'!AJ131*'Prevalence Rates'!AJ131","v":0},{"$f":"'Population 2016'!AK131*'Prevalence Rates'!AK131","v":0},{"$f":"'Population 2016'!AL131*'Prevalence Rates'!AL131","v":0},{"$f":"'Population 2016'!AM131*'Prevalence Rates'!AM131","v":0},{"$f":"'Population 2016'!AN131*'Prevalence Rates'!AN131","v":0},{"$f":"'Population 2016'!AO131*'Prevalence Rates'!AO131","v":0},{"$f":"'Population 2016'!AP131*'Prevalence Rates'!AP131","v":0},{"$f":"'Population 2016'!AQ131*'Prevalence Rates'!AQ131","v":0},{"$f":"'Population 2016'!AR131*'Prevalence Rates'!AR131","v":0},{"$f":"'Population 2016'!AS131*'Prevalence Rates'!AS131","v":0},{"$f":"'Population 2016'!AT131*'Prevalence Rates'!AT131","v":0},{"$f":"'Population 2016'!AU131*'Prevalence Rates'!AU131","v":0},{"$f":"'Population 2016'!AV131*'Prevalence Rates'!AV131","v":0},{"$f":"'Population 2016'!AW131*'Prevalence Rates'!AW131","v":0},{"$f":"'Population 2016'!AX131*'Prevalence Rates'!AX131","v":0},{"$f":"'Population 2016'!AY131*'Prevalence Rates'!AY131","v":0},{"$f":"'Population 2016'!AZ131*'Prevalence Rates'!AZ131","v":0},{"$f":"'Population 2016'!BA131*'Prevalence Rates'!BA131","v":0},{"$f":"'Population 2016'!BB131*'Prevalence Rates'!BB131","v":0},{"$f":"'Population 2016'!BC131*'Prevalence Rates'!BC131","v":0},129]
[null,"Male 75-79",{"$f":"'Population 2016'!C132*'Prevalence Rates'!C132","v":0},{"$f":"'Population 2016'!D132*'Prevalence Rates'!D132","v":0},{"$f":"'Population 2016'!E132*'Prevalence Rates'!E132","v":0},{"$f":"'Population 2016'!F132*'Prevalence Rates'!F132","v":0},{"$f":"'Population 2016'!G132*'Prevalence Rates'!G132","v":0},{"$f":"'Population 2016'!H132*'Prevalence Rates'!H132","v":0},{"$f":"'Population 2016'!I132*'Prevalence Rates'!I132","v":0},{"$f":"'Population 2016'!J132*'Prevalence Rates'!J132","v":0},{"$f":"'Population 2016'!K132*'Prevalence Rates'!K132","v":0},{"$f":"'Population 2016'!L132*'Prevalence Rates'!L132","v":0},{"$f":"'Population 2016'!M132*'Prevalence Rates'!M132","v":0},{"$f":"'Population 2016'!N132*'Prevalence Rates'!N132","v":0},{"$f":"'Population 2016'!O132*'Prevalence Rates'!O132","v":0},{"$f":"'Population 2016'!P132*'Prevalence Rates'!P132","v":0},{"$f":"'Population 2016'!Q132*'Prevalence Rates'!Q132","v":0},{"$f":"'Population 2016'!R132*'Prevalence Rates'!R132","v":0},{"$f":"'Population 2016'!S132*'Prevalence Rates'!S132","v":0},{"$f":"'Population 2016'!T132*'Prevalence Rates'!T132","v":0},{"$f":"'Population 2016'!U132*'Prevalence Rates'!U132","v":0},{"$f":"'Population 2016'!V132*'Prevalence Rates'!V132","v":0},{"$f":"'Population 2016'!W132*'Prevalence Rates'!W132","v":0},{"$f":"'Population 2016'!X132*'Prevalence Rates'!X132","v":0},{"$f":"'Population 2016'!Y132*'Prevalence Rates'!Y132","v":0},{"$f":"'Population 2016'!Z132*'Prevalence Rates'!Z132","v":0},{"$f":"'Population 2016'!AA132*'Prevalence Rates'!AA132","v":0},{"$f":"'Population 2016'!AB132*'Prevalence Rates'!AB132","v":0},{"$f":"'Population 2016'!AC132*'Prevalence Rates'!AC132","v":0},{"$f":"'Population 2016'!AD132*'Prevalence Rates'!AD132","v":0},{"$f":"'Population 2016'!AE132*'Prevalence Rates'!AE132","v":0},{"$f":"'Population 2016'!AF132*'Prevalence Rates'!AF132","v":0},{"$f":"'Population 2016'!AG132*'Prevalence Rates'!AG132","v":0},{"$f":"'Population 2016'!AH132*'Prevalence Rates'!AH132","v":0},{"$f":"'Population 2016'!AI132*'Prevalence Rates'!AI132","v":0},{"$f":"'Population 2016'!AJ132*'Prevalence Rates'!AJ132","v":0},{"$f":"'Population 2016'!AK132*'Prevalence Rates'!AK132","v":0},{"$f":"'Population 2016'!AL132*'Prevalence Rates'!AL132","v":0},{"$f":"'Population 2016'!AM132*'Prevalence Rates'!AM132","v":0},{"$f":"'Population 2016'!AN132*'Prevalence Rates'!AN132","v":0},{"$f":"'Population 2016'!AO132*'Prevalence Rates'!AO132","v":0},{"$f":"'Population 2016'!AP132*'Prevalence Rates'!AP132","v":0},{"$f":"'Population 2016'!AQ132*'Prevalence Rates'!AQ132","v":0},{"$f":"'Population 2016'!AR132*'Prevalence Rates'!AR132","v":0},{"$f":"'Population 2016'!AS132*'Prevalence Rates'!AS132","v":0},{"$f":"'Population 2016'!AT132*'Prevalence Rates'!AT132","v":0},{"$f":"'Population 2016'!AU132*'Prevalence Rates'!AU132","v":0},{"$f":"'Population 2016'!AV132*'Prevalence Rates'!AV132","v":0},{"$f":"'Population 2016'!AW132*'Prevalence Rates'!AW132","v":0},{"$f":"'Population 2016'!AX132*'Prevalence Rates'!AX132","v":0},{"$f":"'Population 2016'!AY132*'Prevalence Rates'!AY132","v":0},{"$f":"'Population 2016'!AZ132*'Prevalence Rates'!AZ132","v":0},{"$f":"'Population 2016'!BA132*'Prevalence Rates'!BA132","v":0},{"$f":"'Population 2016'!BB132*'Prevalence Rates'!BB132","v":0},{"$f":"'Population 2016'!BC132*'Prevalence Rates'!BC132","v":0},130]
[null,"Male 80-84",{"$f":"'Population 2016'!C133*'Prevalence Rates'!C133","v":0},{"$f":"'Population 2016'!D133*'Prevalence Rates'!D133","v":0},{"$f":"'Population 2016'!E133*'Prevalence Rates'!E133","v":0},{"$f":"'Population 2016'!F133*'Prevalence Rates'!F133","v":0},{"$f":"'Population 2016'!G133*'Prevalence Rates'!G133","v":0},{"$f":"'Population 2016'!H133*'Prevalence Rates'!H133","v":0},{"$f":"'Population 2016'!I133*'Prevalence Rates'!I133","v":0},{"$f":"'Population 2016'!J133*'Prevalence Rates'!J133","v":0},{"$f":"'Population 2016'!K133*'Prevalence Rates'!K133","v":0},{"$f":"'Population 2016'!L133*'Prevalence Rates'!L133","v":0},{"$f":"'Population 2016'!M133*'Prevalence Rates'!M133","v":0},{"$f":"'Population 2016'!N133*'Prevalence Rates'!N133","v":0},{"$f":"'Population 2016'!O133*'Prevalence Rates'!O133","v":0},{"$f":"'Population 2016'!P133*'Prevalence Rates'!P133","v":0},{"$f":"'Population 2016'!Q133*'Prevalence Rates'!Q133","v":0},{"$f":"'Population 2016'!R133*'Prevalence Rates'!R133","v":0},{"$f":"'Population 2016'!S133*'Prevalence Rates'!S133","v":0},{"$f":"'Population 2016'!T133*'Prevalence Rates'!T133","v":0},{"$f":"'Population 2016'!U133*'Prevalence Rates'!U133","v":0},{"$f":"'Population 2016'!V133*'Prevalence Rates'!V133","v":0},{"$f":"'Population 2016'!W133*'Prevalence Rates'!W133","v":0},{"$f":"'Population 2016'!X133*'Prevalence Rates'!X133","v":0},{"$f":"'Population 2016'!Y133*'Prevalence Rates'!Y133","v":0},{"$f":"'Population 2016'!Z133*'Prevalence Rates'!Z133","v":0},{"$f":"'Population 2016'!AA133*'Prevalence Rates'!AA133","v":0},{"$f":"'Population 2016'!AB133*'Prevalence Rates'!AB133","v":0},{"$f":"'Population 2016'!AC133*'Prevalence Rates'!AC133","v":0},{"$f":"'Population 2016'!AD133*'Prevalence Rates'!AD133","v":0},{"$f":"'Population 2016'!AE133*'Prevalence Rates'!AE133","v":0},{"$f":"'Population 2016'!AF133*'Prevalence Rates'!AF133","v":0},{"$f":"'Population 2016'!AG133*'Prevalence Rates'!AG133","v":0},{"$f":"'Population 2016'!AH133*'Prevalence Rates'!AH133","v":0},{"$f":"'Population 2016'!AI133*'Prevalence Rates'!AI133","v":0},{"$f":"'Population 2016'!AJ133*'Prevalence Rates'!AJ133","v":0},{"$f":"'Population 2016'!AK133*'Prevalence Rates'!AK133","v":0},{"$f":"'Population 2016'!AL133*'Prevalence Rates'!AL133","v":0},{"$f":"'Population 2016'!AM133*'Prevalence Rates'!AM133","v":0},{"$f":"'Population 2016'!AN133*'Prevalence Rates'!AN133","v":0},{"$f":"'Population 2016'!AO133*'Prevalence Rates'!AO133","v":0},{"$f":"'Population 2016'!AP133*'Prevalence Rates'!AP133","v":0},{"$f":"'Population 2016'!AQ133*'Prevalence Rates'!AQ133","v":0},{"$f":"'Population 2016'!AR133*'Prevalence Rates'!AR133","v":0},{"$f":"'Population 2016'!AS133*'Prevalence Rates'!AS133","v":0},{"$f":"'Population 2016'!AT133*'Prevalence Rates'!AT133","v":0},{"$f":"'Population 2016'!AU133*'Prevalence Rates'!AU133","v":0},{"$f":"'Population 2016'!AV133*'Prevalence Rates'!AV133","v":0},{"$f":"'Population 2016'!AW133*'Prevalence Rates'!AW133","v":0},{"$f":"'Population 2016'!AX133*'Prevalence Rates'!AX133","v":0},{"$f":"'Population 2016'!AY133*'Prevalence Rates'!AY133","v":0},{"$f":"'Population 2016'!AZ133*'Prevalence Rates'!AZ133","v":0},{"$f":"'Population 2016'!BA133*'Prevalence Rates'!BA133","v":0},{"$f":"'Population 2016'!BB133*'Prevalence Rates'!BB133","v":0},{"$f":"'Population 2016'!BC133*'Prevalence Rates'!BC133","v":0},131]
[null,"Male 85-89",{"$f":"'Population 2016'!C134*'Prevalence Rates'!C134","v":0},{"$f":"'Population 2016'!D134*'Prevalence Rates'!D134","v":0},{"$f":"'Population 2016'!E134*'Prevalence Rates'!E134","v":0},{"$f":"'Population 2016'!F134*'Prevalence Rates'!F134","v":0},{"$f":"'Population 2016'!G134*'Prevalence Rates'!G134","v":0},{"$f":"'Population 2016'!H134*'Prevalence Rates'!H134","v":0},{"$f":"'Population 2016'!I134*'Prevalence Rates'!I134","v":0},{"$f":"'Population 2016'!J134*'Prevalence Rates'!J134","v":0},{"$f":"'Population 2016'!K134*'Prevalence Rates'!K134","v":0},{"$f":"'Population 2016'!L134*'Prevalence Rates'!L134","v":0},{"$f":"'Population 2016'!M134*'Prevalence Rates'!M134","v":0},{"$f":"'Population 2016'!N134*'Prevalence Rates'!N134","v":0},{"$f":"'Population 2016'!O134*'Prevalence Rates'!O134","v":0},{"$f":"'Population 2016'!P134*'Prevalence Rates'!P134","v":0},{"$f":"'Population 2016'!Q134*'Prevalence Rates'!Q134","v":0},{"$f":"'Population 2016'!R134*'Prevalence Rates'!R134","v":0},{"$f":"'Population 2016'!S134*'Prevalence Rates'!S134","v":0},{"$f":"'Population 2016'!T134*'Prevalence Rates'!T134","v":0},{"$f":"'Population 2016'!U134*'Prevalence Rates'!U134","v":0},{"$f":"'Population 2016'!V134*'Prevalence Rates'!V134","v":0},{"$f":"'Population 2016'!W134*'Prevalence Rates'!W134","v":0},{"$f":"'Population 2016'!X134*'Prevalence Rates'!X134","v":0},{"$f":"'Population 2016'!Y134*'Prevalence Rates'!Y134","v":0},{"$f":"'Population 2016'!Z134*'Prevalence Rates'!Z134","v":0},{"$f":"'Population 2016'!AA134*'Prevalence Rates'!AA134","v":0},{"$f":"'Population 2016'!AB134*'Prevalence Rates'!AB134","v":0},{"$f":"'Population 2016'!AC134*'Prevalence Rates'!AC134","v":0},{"$f":"'Population 2016'!AD134*'Prevalence Rates'!AD134","v":0},{"$f":"'Population 2016'!AE134*'Prevalence Rates'!AE134","v":0},{"$f":"'Population 2016'!AF134*'Prevalence Rates'!AF134","v":0},{"$f":"'Population 2016'!AG134*'Prevalence Rates'!AG134","v":0},{"$f":"'Population 2016'!AH134*'Prevalence Rates'!AH134","v":0},{"$f":"'Population 2016'!AI134*'Prevalence Rates'!AI134","v":0},{"$f":"'Population 2016'!AJ134*'Prevalence Rates'!AJ134","v":0},{"$f":"'Population 2016'!AK134*'Prevalence Rates'!AK134","v":0},{"$f":"'Population 2016'!AL134*'Prevalence Rates'!AL134","v":0},{"$f":"'Population 2016'!AM134*'Prevalence Rates'!AM134","v":0},{"$f":"'Population 2016'!AN134*'Prevalence Rates'!AN134","v":0},{"$f":"'Population 2016'!AO134*'Prevalence Rates'!AO134","v":0},{"$f":"'Population 2016'!AP134*'Prevalence Rates'!AP134","v":0},{"$f":"'Population 2016'!AQ134*'Prevalence Rates'!AQ134","v":0},{"$f":"'Population 2016'!AR134*'Prevalence Rates'!AR134","v":0},{"$f":"'Population 2016'!AS134*'Prevalence Rates'!AS134","v":0},{"$f":"'Population 2016'!AT134*'Prevalence Rates'!AT134","v":0},{"$f":"'Population 2016'!AU134*'Prevalence Rates'!AU134","v":0},{"$f":"'Population 2016'!AV134*'Prevalence Rates'!AV134","v":0},{"$f":"'Population 2016'!AW134*'Prevalence Rates'!AW134","v":0},{"$f":"'Population 2016'!AX134*'Prevalence Rates'!AX134","v":0},{"$f":"'Population 2016'!AY134*'Prevalence Rates'!AY134","v":0},{"$f":"'Population 2016'!AZ134*'Prevalence Rates'!AZ134","v":0},{"$f":"'Population 2016'!BA134*'Prevalence Rates'!BA134","v":0},{"$f":"'Population 2016'!BB134*'Prevalence Rates'!BB134","v":0},{"$f":"'Population 2016'!BC134*'Prevalence Rates'!BC134","v":0},132]
[null,"Male 90+",{"$f":"'Population 2016'!C135*'Prevalence Rates'!C135","v":0},{"$f":"'Population 2016'!D135*'Prevalence Rates'!D135","v":0},{"$f":"'Population 2016'!E135*'Prevalence Rates'!E135","v":0},{"$f":"'Population 2016'!F135*'Prevalence Rates'!F135","v":0},{"$f":"'Population 2016'!G135*'Prevalence Rates'!G135","v":0},{"$f":"'Population 2016'!H135*'Prevalence Rates'!H135","v":0},{"$f":"'Population 2016'!I135*'Prevalence Rates'!I135","v":0},{"$f":"'Population 2016'!J135*'Prevalence Rates'!J135","v":0},{"$f":"'Population 2016'!K135*'Prevalence Rates'!K135","v":0},{"$f":"'Population 2016'!L135*'Prevalence Rates'!L135","v":0},{"$f":"'Population 2016'!M135*'Prevalence Rates'!M135","v":0},{"$f":"'Population 2016'!N135*'Prevalence Rates'!N135","v":0},{"$f":"'Population 2016'!O135*'Prevalence Rates'!O135","v":0},{"$f":"'Population 2016'!P135*'Prevalence Rates'!P135","v":0},{"$f":"'Population 2016'!Q135*'Prevalence Rates'!Q135","v":0},{"$f":"'Population 2016'!R135*'Prevalence Rates'!R135","v":0},{"$f":"'Population 2016'!S135*'Prevalence Rates'!S135","v":0},{"$f":"'Population 2016'!T135*'Prevalence Rates'!T135","v":0},{"$f":"'Population 2016'!U135*'Prevalence Rates'!U135","v":0},{"$f":"'Population 2016'!V135*'Prevalence Rates'!V135","v":0},{"$f":"'Population 2016'!W135*'Prevalence Rates'!W135","v":0},{"$f":"'Population 2016'!X135*'Prevalence Rates'!X135","v":0},{"$f":"'Population 2016'!Y135*'Prevalence Rates'!Y135","v":0},{"$f":"'Population 2016'!Z135*'Prevalence Rates'!Z135","v":0},{"$f":"'Population 2016'!AA135*'Prevalence Rates'!AA135","v":0},{"$f":"'Population 2016'!AB135*'Prevalence Rates'!AB135","v":0},{"$f":"'Population 2016'!AC135*'Prevalence Rates'!AC135","v":0},{"$f":"'Population 2016'!AD135*'Prevalence Rates'!AD135","v":0},{"$f":"'Population 2016'!AE135*'Prevalence Rates'!AE135","v":0},{"$f":"'Population 2016'!AF135*'Prevalence Rates'!AF135","v":0},{"$f":"'Population 2016'!AG135*'Prevalence Rates'!AG135","v":0},{"$f":"'Population 2016'!AH135*'Prevalence Rates'!AH135","v":0},{"$f":"'Population 2016'!AI135*'Prevalence Rates'!AI135","v":0},{"$f":"'Population 2016'!AJ135*'Prevalence Rates'!AJ135","v":0},{"$f":"'Population 2016'!AK135*'Prevalence Rates'!AK135","v":0},{"$f":"'Population 2016'!AL135*'Prevalence Rates'!AL135","v":0},{"$f":"'Population 2016'!AM135*'Prevalence Rates'!AM135","v":0},{"$f":"'Population 2016'!AN135*'Prevalence Rates'!AN135","v":0},{"$f":"'Population 2016'!AO135*'Prevalence Rates'!AO135","v":0},{"$f":"'Population 2016'!AP135*'Prevalence Rates'!AP135","v":0},{"$f":"'Population 2016'!AQ135*'Prevalence Rates'!AQ135","v":0},{"$f":"'Population 2016'!AR135*'Prevalence Rates'!AR135","v":0},{"$f":"'Population 2016'!AS135*'Prevalence Rates'!AS135","v":0},{"$f":"'Population 2016'!AT135*'Prevalence Rates'!AT135","v":0},{"$f":"'Population 2016'!AU135*'Prevalence Rates'!AU135","v":0},{"$f":"'Population 2016'!AV135*'Prevalence Rates'!AV135","v":0},{"$f":"'Population 2016'!AW135*'Prevalence Rates'!AW135","v":0},{"$f":"'Population 2016'!AX135*'Prevalence Rates'!AX135","v":0},{"$f":"'Population 2016'!AY135*'Prevalence Rates'!AY135","v":0},{"$f":"'Population 2016'!AZ135*'Prevalence Rates'!AZ135","v":0},{"$f":"'Population 2016'!BA135*'Prevalence Rates'!BA135","v":0},{"$f":"'Population 2016'!BB135*'Prevalence Rates'!BB135","v":0},{"$f":"'Population 2016'!BC135*'Prevalence Rates'!BC135","v":0},133]
["SIMD Q3","Female 0-4",{"$f":"'Population 2016'!C136*'Prevalence Rates'!C136","v":0},{"$f":"'Population 2016'!D136*'Prevalence Rates'!D136","v":0},{"$f":"'Population 2016'!E136*'Prevalence Rates'!E136","v":0},{"$f":"'Population 2016'!F136*'Prevalence Rates'!F136","v":0},{"$f":"'Population 2016'!G136*'Prevalence Rates'!G136","v":0},{"$f":"'Population 2016'!H136*'Prevalence Rates'!H136","v":0},{"$f":"'Population 2016'!I136*'Prevalence Rates'!I136","v":0},{"$f":"'Population 2016'!J136*'Prevalence Rates'!J136","v":0},{"$f":"'Population 2016'!K136*'Prevalence Rates'!K136","v":0},{"$f":"'Population 2016'!L136*'Prevalence Rates'!L136","v":0},{"$f":"'Population 2016'!M136*'Prevalence Rates'!M136","v":0},{"$f":"'Population 2016'!N136*'Prevalence Rates'!N136","v":0},{"$f":"'Population 2016'!O136*'Prevalence Rates'!O136","v":0},{"$f":"'Population 2016'!P136*'Prevalence Rates'!P136","v":0},{"$f":"'Population 2016'!Q136*'Prevalence Rates'!Q136","v":0},{"$f":"'Population 2016'!R136*'Prevalence Rates'!R136","v":0},{"$f":"'Population 2016'!S136*'Prevalence Rates'!S136","v":0},{"$f":"'Population 2016'!T136*'Prevalence Rates'!T136","v":0},{"$f":"'Population 2016'!U136*'Prevalence Rates'!U136","v":0},{"$f":"'Population 2016'!V136*'Prevalence Rates'!V136","v":0},{"$f":"'Population 2016'!W136*'Prevalence Rates'!W136","v":0},{"$f":"'Population 2016'!X136*'Prevalence Rates'!X136","v":0},{"$f":"'Population 2016'!Y136*'Prevalence Rates'!Y136","v":0},{"$f":"'Population 2016'!Z136*'Prevalence Rates'!Z136","v":0},{"$f":"'Population 2016'!AA136*'Prevalence Rates'!AA136","v":0},{"$f":"'Population 2016'!AB136*'Prevalence Rates'!AB136","v":0},{"$f":"'Population 2016'!AC136*'Prevalence Rates'!AC136","v":0},{"$f":"'Population 2016'!AD136*'Prevalence Rates'!AD136","v":0},{"$f":"'Population 2016'!AE136*'Prevalence Rates'!AE136","v":0},{"$f":"'Population 2016'!AF136*'Prevalence Rates'!AF136","v":0},{"$f":"'Population 2016'!AG136*'Prevalence Rates'!AG136","v":0},{"$f":"'Population 2016'!AH136*'Prevalence Rates'!AH136","v":0},{"$f":"'Population 2016'!AI136*'Prevalence Rates'!AI136","v":0},{"$f":"'Population 2016'!AJ136*'Prevalence Rates'!AJ136","v":0},{"$f":"'Population 2016'!AK136*'Prevalence Rates'!AK136","v":0},{"$f":"'Population 2016'!AL136*'Prevalence Rates'!AL136","v":0},{"$f":"'Population 2016'!AM136*'Prevalence Rates'!AM136","v":0},{"$f":"'Population 2016'!AN136*'Prevalence Rates'!AN136","v":0},{"$f":"'Population 2016'!AO136*'Prevalence Rates'!AO136","v":0},{"$f":"'Population 2016'!AP136*'Prevalence Rates'!AP136","v":0},{"$f":"'Population 2016'!AQ136*'Prevalence Rates'!AQ136","v":0},{"$f":"'Population 2016'!AR136*'Prevalence Rates'!AR136","v":0},{"$f":"'Population 2016'!AS136*'Prevalence Rates'!AS136","v":0},{"$f":"'Population 2016'!AT136*'Prevalence Rates'!AT136","v":0},{"$f":"'Population 2016'!AU136*'Prevalence Rates'!AU136","v":0},{"$f":"'Population 2016'!AV136*'Prevalence Rates'!AV136","v":0},{"$f":"'Population 2016'!AW136*'Prevalence Rates'!AW136","v":0},{"$f":"'Population 2016'!AX136*'Prevalence Rates'!AX136","v":0},{"$f":"'Population 2016'!AY136*'Prevalence Rates'!AY136","v":0},{"$f":"'Population 2016'!AZ136*'Prevalence Rates'!AZ136","v":0},{"$f":"'Population 2016'!BA136*'Prevalence Rates'!BA136","v":0},{"$f":"'Population 2016'!BB136*'Prevalence Rates'!BB136","v":0},{"$f":"'Population 2016'!BC136*'Prevalence Rates'!BC136","v":0},134]
[null,"Female 5-9",{"$f":"'Population 2016'!C137*'Prevalence Rates'!C137","v":0},{"$f":"'Population 2016'!D137*'Prevalence Rates'!D137","v":0},{"$f":"'Population 2016'!E137*'Prevalence Rates'!E137","v":0},{"$f":"'Population 2016'!F137*'Prevalence Rates'!F137","v":0},{"$f":"'Population 2016'!G137*'Prevalence Rates'!G137","v":0},{"$f":"'Population 2016'!H137*'Prevalence Rates'!H137","v":0},{"$f":"'Population 2016'!I137*'Prevalence Rates'!I137","v":0},{"$f":"'Population 2016'!J137*'Prevalence Rates'!J137","v":0},{"$f":"'Population 2016'!K137*'Prevalence Rates'!K137","v":0},{"$f":"'Population 2016'!L137*'Prevalence Rates'!L137","v":0},{"$f":"'Population 2016'!M137*'Prevalence Rates'!M137","v":0},{"$f":"'Population 2016'!N137*'Prevalence Rates'!N137","v":0},{"$f":"'Population 2016'!O137*'Prevalence Rates'!O137","v":0},{"$f":"'Population 2016'!P137*'Prevalence Rates'!P137","v":0},{"$f":"'Population 2016'!Q137*'Prevalence Rates'!Q137","v":0},{"$f":"'Population 2016'!R137*'Prevalence Rates'!R137","v":0},{"$f":"'Population 2016'!S137*'Prevalence Rates'!S137","v":0},{"$f":"'Population 2016'!T137*'Prevalence Rates'!T137","v":0},{"$f":"'Population 2016'!U137*'Prevalence Rates'!U137","v":0},{"$f":"'Population 2016'!V137*'Prevalence Rates'!V137","v":0},{"$f":"'Population 2016'!W137*'Prevalence Rates'!W137","v":0},{"$f":"'Population 2016'!X137*'Prevalence Rates'!X137","v":0},{"$f":"'Population 2016'!Y137*'Prevalence Rates'!Y137","v":0},{"$f":"'Population 2016'!Z137*'Prevalence Rates'!Z137","v":0},{"$f":"'Population 2016'!AA137*'Prevalence Rates'!AA137","v":0},{"$f":"'Population 2016'!AB137*'Prevalence Rates'!AB137","v":0},{"$f":"'Population 2016'!AC137*'Prevalence Rates'!AC137","v":0},{"$f":"'Population 2016'!AD137*'Prevalence Rates'!AD137","v":0},{"$f":"'Population 2016'!AE137*'Prevalence Rates'!AE137","v":0},{"$f":"'Population 2016'!AF137*'Prevalence Rates'!AF137","v":0},{"$f":"'Population 2016'!AG137*'Prevalence Rates'!AG137","v":0},{"$f":"'Population 2016'!AH137*'Prevalence Rates'!AH137","v":0},{"$f":"'Population 2016'!AI137*'Prevalence Rates'!AI137","v":0},{"$f":"'Population 2016'!AJ137*'Prevalence Rates'!AJ137","v":0},{"$f":"'Population 2016'!AK137*'Prevalence Rates'!AK137","v":0},{"$f":"'Population 2016'!AL137*'Prevalence Rates'!AL137","v":0},{"$f":"'Population 2016'!AM137*'Prevalence Rates'!AM137","v":0},{"$f":"'Population 2016'!AN137*'Prevalence Rates'!AN137","v":0},{"$f":"'Population 2016'!AO137*'Prevalence Rates'!AO137","v":0},{"$f":"'Population 2016'!AP137*'Prevalence Rates'!AP137","v":0},{"$f":"'Population 2016'!AQ137*'Prevalence Rates'!AQ137","v":0},{"$f":"'Population 2016'!AR137*'Prevalence Rates'!AR137","v":0},{"$f":"'Population 2016'!AS137*'Prevalence Rates'!AS137","v":0},{"$f":"'Population 2016'!AT137*'Prevalence Rates'!AT137","v":0},{"$f":"'Population 2016'!AU137*'Prevalence Rates'!AU137","v":0},{"$f":"'Population 2016'!AV137*'Prevalence Rates'!AV137","v":0},{"$f":"'Population 2016'!AW137*'Prevalence Rates'!AW137","v":0},{"$f":"'Population 2016'!AX137*'Prevalence Rates'!AX137","v":0},{"$f":"'Population 2016'!AY137*'Prevalence Rates'!AY137","v":0},{"$f":"'Population 2016'!AZ137*'Prevalence Rates'!AZ137","v":0},{"$f":"'Population 2016'!BA137*'Prevalence Rates'!BA137","v":0},{"$f":"'Population 2016'!BB137*'Prevalence Rates'!BB137","v":0},{"$f":"'Population 2016'!BC137*'Prevalence Rates'!BC137","v":0},135]
[null,"Female 10-15",{"$f":"'Population 2016'!C138*'Prevalence Rates'!C138","v":0},{"$f":"'Population 2016'!D138*'Prevalence Rates'!D138","v":0},{"$f":"'Population 2016'!E138*'Prevalence Rates'!E138","v":0},{"$f":"'Population 2016'!F138*'Prevalence Rates'!F138","v":0},{"$f":"'Population 2016'!G138*'Prevalence Rates'!G138","v":0},{"$f":"'Population 2016'!H138*'Prevalence Rates'!H138","v":0},{"$f":"'Population 2016'!I138*'Prevalence Rates'!I138","v":0},{"$f":"'Population 2016'!J138*'Prevalence Rates'!J138","v":0},{"$f":"'Population 2016'!K138*'Prevalence Rates'!K138","v":0},{"$f":"'Population 2016'!L138*'Prevalence Rates'!L138","v":0},{"$f":"'Population 2016'!M138*'Prevalence Rates'!M138","v":0},{"$f":"'Population 2016'!N138*'Prevalence Rates'!N138","v":0},{"$f":"'Population 2016'!O138*'Prevalence Rates'!O138","v":0},{"$f":"'Population 2016'!P138*'Prevalence Rates'!P138","v":0},{"$f":"'Population 2016'!Q138*'Prevalence Rates'!Q138","v":0},{"$f":"'Population 2016'!R138*'Prevalence Rates'!R138","v":0},{"$f":"'Population 2016'!S138*'Prevalence Rates'!S138","v":0},{"$f":"'Population 2016'!T138*'Prevalence Rates'!T138","v":0},{"$f":"'Population 2016'!U138*'Prevalence Rates'!U138","v":0},{"$f":"'Population 2016'!V138*'Prevalence Rates'!V138","v":0},{"$f":"'Population 2016'!W138*'Prevalence Rates'!W138","v":0},{"$f":"'Population 2016'!X138*'Prevalence Rates'!X138","v":0},{"$f":"'Population 2016'!Y138*'Prevalence Rates'!Y138","v":0},{"$f":"'Population 2016'!Z138*'Prevalence Rates'!Z138","v":0},{"$f":"'Population 2016'!AA138*'Prevalence Rates'!AA138","v":0},{"$f":"'Population 2016'!AB138*'Prevalence Rates'!AB138","v":0},{"$f":"'Population 2016'!AC138*'Prevalence Rates'!AC138","v":0},{"$f":"'Population 2016'!AD138*'Prevalence Rates'!AD138","v":0},{"$f":"'Population 2016'!AE138*'Prevalence Rates'!AE138","v":0},{"$f":"'Population 2016'!AF138*'Prevalence Rates'!AF138","v":0},{"$f":"'Population 2016'!AG138*'Prevalence Rates'!AG138","v":0},{"$f":"'Population 2016'!AH138*'Prevalence Rates'!AH138","v":0},{"$f":"'Population 2016'!AI138*'Prevalence Rates'!AI138","v":0},{"$f":"'Population 2016'!AJ138*'Prevalence Rates'!AJ138","v":0},{"$f":"'Population 2016'!AK138*'Prevalence Rates'!AK138","v":0},{"$f":"'Population 2016'!AL138*'Prevalence Rates'!AL138","v":0},{"$f":"'Population 2016'!AM138*'Prevalence Rates'!AM138","v":0},{"$f":"'Population 2016'!AN138*'Prevalence Rates'!AN138","v":0},{"$f":"'Population 2016'!AO138*'Prevalence Rates'!AO138","v":0},{"$f":"'Population 2016'!AP138*'Prevalence Rates'!AP138","v":0},{"$f":"'Population 2016'!AQ138*'Prevalence Rates'!AQ138","v":0},{"$f":"'Population 2016'!AR138*'Prevalence Rates'!AR138","v":0},{"$f":"'Population 2016'!AS138*'Prevalence Rates'!AS138","v":0},{"$f":"'Population 2016'!AT138*'Prevalence Rates'!AT138","v":0},{"$f":"'Population 2016'!AU138*'Prevalence Rates'!AU138","v":0},{"$f":"'Population 2016'!AV138*'Prevalence Rates'!AV138","v":0},{"$f":"'Population 2016'!AW138*'Prevalence Rates'!AW138","v":0},{"$f":"'Population 2016'!AX138*'Prevalence Rates'!AX138","v":0},{"$f":"'Population 2016'!AY138*'Prevalence Rates'!AY138","v":0},{"$f":"'Population 2016'!AZ138*'Prevalence Rates'!AZ138","v":0},{"$f":"'Population 2016'!BA138*'Prevalence Rates'!BA138","v":0},{"$f":"'Population 2016'!BB138*'Prevalence Rates'!BB138","v":0},{"$f":"'Population 2016'!BC138*'Prevalence Rates'!BC138","v":0},136]
[null,"Female 16-19",{"$f":"'Population 2016'!C139*'Prevalence Rates'!C139","v":72.590070177549762},{"$f":"'Population 2016'!D139*'Prevalence Rates'!D139","v":182.98853610255216},{"$f":"'Population 2016'!E139*'Prevalence Rates'!E139","v":110.21604004235911},{"$f":"'Population 2016'!F139*'Prevalence Rates'!F139","v":83.667551392621377},{"$f":"'Population 2016'!G139*'Prevalence Rates'!G139","v":65.948224273530002},{"$f":"'Population 2016'!H139*'Prevalence Rates'!H139","v":191.13804164796477},{"$f":"'Population 2016'!I139*'Prevalence Rates'!I139","v":97.62428573992544},{"$f":"'Population 2016'!J139*'Prevalence Rates'!J139","v":53.198947013215786},{"$f":"'Population 2016'!K139*'Prevalence Rates'!K139","v":25.681519081808766},{"$f":"'Population 2016'!L139*'Prevalence Rates'!L139","v":139.40926181517528},{"$f":"'Population 2016'!M139*'Prevalence Rates'!M139","v":139.40926181517528},{"$f":"'Population 2016'!N139*'Prevalence Rates'!N139","v":44.722811830236999},{"$f":"'Population 2016'!O139*'Prevalence Rates'!O139","v":61.419270152281285},{"$f":"'Population 2016'!P139*'Prevalence Rates'!P139","v":15.588561909105568},{"$f":"'Population 2016'!Q139*'Prevalence Rates'!Q139","v":52.314550726995279},{"$f":"'Population 2016'!R139*'Prevalence Rates'!R139","v":19.415343197479842},{"$f":"'Population 2016'!S139*'Prevalence Rates'!S139","v":625.78571341777229},{"$f":"'Population 2016'!T139*'Prevalence Rates'!T139","v":151.6454780583814},{"$f":"'Population 2016'!U139*'Prevalence Rates'!U139","v":31.837230677798377},{"$f":"'Population 2016'!V139*'Prevalence Rates'!V139","v":67.978163786743679},{"$f":"'Population 2016'!W139*'Prevalence Rates'!W139","v":190.25678729096813},{"$f":"'Population 2016'!X139*'Prevalence Rates'!X139","v":190.25678729096813},{"$f":"'Population 2016'!Y139*'Prevalence Rates'!Y139","v":121.08233733266172},{"$f":"'Population 2016'!Z139*'Prevalence Rates'!Z139","v":304.30338738902441},{"$f":"'Population 2016'!AA139*'Prevalence Rates'!AA139","v":738.04204189103291},{"$f":"'Population 2016'!AB139*'Prevalence Rates'!AB139","v":246.39299876634831},{"$f":"'Population 2016'!AC139*'Prevalence Rates'!AC139","v":449.56487705311008},{"$f":"'Population 2016'!AD139*'Prevalence Rates'!AD139","v":195.64717815919818},{"$f":"'Population 2016'!AE139*'Prevalence Rates'!AE139","v":129.14157424999851},{"$f":"'Population 2016'!AF139*'Prevalence Rates'!AF139","v":30.01844864117756},{"$f":"'Population 2016'!AG139*'Prevalence Rates'!AG139","v":129.14157424999851},{"$f":"'Population 2016'!AH139*'Prevalence Rates'!AH139","v":285.49761342225082},{"$f":"'Population 2016'!AI139*'Prevalence Rates'!AI139","v":345.53529939012299},{"$f":"'Population 2016'!AJ139*'Prevalence Rates'!AJ139","v":50.461864835690243},{"$f":"'Population 2016'!AK139*'Prevalence Rates'!AK139","v":65.654978174327198},{"$f":"'Population 2016'!AL139*'Prevalence Rates'!AL139","v":63.744680384350275},{"$f":"'Population 2016'!AM139*'Prevalence Rates'!AM139","v":147.13408562364367},{"$f":"'Population 2016'!AN139*'Prevalence Rates'!AN139","v":11.291161254220313},{"$f":"'Population 2016'!AO139*'Prevalence Rates'!AO139","v":11.291161254220313},{"$f":"'Population 2016'!AP139*'Prevalence Rates'!AP139","v":52.227399902759949},{"$f":"'Population 2016'!AQ139*'Prevalence Rates'!AQ139","v":57.338045432590022},{"$f":"'Population 2016'!AR139*'Prevalence Rates'!AR139","v":2515.04},{"$f":"'Population 2016'!AS139*'Prevalence Rates'!AS139","v":97.62428573992544},{"$f":"'Population 2016'!AT139*'Prevalence Rates'!AT139","v":11.051802530418541},{"$f":"'Population 2016'!AU139*'Prevalence Rates'!AU139","v":11.051802530418541},{"$f":"'Population 2016'!AV139*'Prevalence Rates'!AV139","v":62.042201607301628},{"$f":"'Population 2016'!AW139*'Prevalence Rates'!AW139","v":138.37951846265125},{"$f":"'Population 2016'!AX139*'Prevalence Rates'!AX139","v":26.842309363895613},{"$f":"'Population 2016'!AY139*'Prevalence Rates'!AY139","v":369.43312349367227},{"$f":"'Population 2016'!AZ139*'Prevalence Rates'!AZ139","v":177.02411806309141},{"$f":"'Population 2016'!BA139*'Prevalence Rates'!BA139","v":28.444221887694024},{"$f":"'Population 2016'!BB139*'Prevalence Rates'!BB139","v":92.612798397030474},{"$f":"'Population 2016'!BC139*'Prevalence Rates'!BC139","v":31.837230677798377},137]
[null,"Female 20-24",{"$f":"'Population 2016'!C140*'Prevalence Rates'!C140","v":216.60622981551654},{"$f":"'Population 2016'!D140*'Prevalence Rates'!D140","v":354.19172657917801},{"$f":"'Population 2016'!E140*'Prevalence Rates'!E140","v":138.05788871402817},{"$f":"'Population 2016'!F140*'Prevalence Rates'!F140","v":95.314758419180421},{"$f":"'Population 2016'!G140*'Prevalence Rates'!G140","v":58.842108123162774},{"$f":"'Population 2016'!H140*'Prevalence Rates'!H140","v":218.60612953929552},{"$f":"'Population 2016'!I140*'Prevalence Rates'!I140","v":118.45414619343138},{"$f":"'Population 2016'!J140*'Prevalence Rates'!J140","v":92.715247385796417},{"$f":"'Population 2016'!K140*'Prevalence Rates'!K140","v":37.568393628245964},{"$f":"'Population 2016'!L140*'Prevalence Rates'!L140","v":164.21053498454168},{"$f":"'Population 2016'!M140*'Prevalence Rates'!M140","v":164.21053498454168},{"$f":"'Population 2016'!N140*'Prevalence Rates'!N140","v":80.425896904795948},{"$f":"'Population 2016'!O140*'Prevalence Rates'!O140","v":73.055055145159514},{"$f":"'Population 2016'!P140*'Prevalence Rates'!P140","v":20.531276660773187},{"$f":"'Population 2016'!Q140*'Prevalence Rates'!Q140","v":72.249390541467051},{"$f":"'Population 2016'!R140*'Prevalence Rates'!R140","v":21.684669025756708},{"$f":"'Population 2016'!S140*'Prevalence Rates'!S140","v":1112.7433418025569},{"$f":"'Population 2016'!T140*'Prevalence Rates'!T140","v":483.34356063594123},{"$f":"'Population 2016'!U140*'Prevalence Rates'!U140","v":32.369329240658516},{"$f":"'Population 2016'!V140*'Prevalence Rates'!V140","v":88.667170156622177},{"$f":"'Population 2016'!W140*'Prevalence Rates'!W140","v":265.27434260222401},{"$f":"'Population 2016'!X140*'Prevalence Rates'!X140","v":265.27434260222401},{"$f":"'Population 2016'!Y140*'Prevalence Rates'!Y140","v":182.65146149913582},{"$f":"'Population 2016'!Z140*'Prevalence Rates'!Z140","v":679.21647878336341},{"$f":"'Population 2016'!AA140*'Prevalence Rates'!AA140","v":1187.7621626407956},{"$f":"'Population 2016'!AB140*'Prevalence Rates'!AB140","v":432.81507275717144},{"$f":"'Population 2016'!AC140*'Prevalence Rates'!AC140","v":836.02893275141321},{"$f":"'Population 2016'!AD140*'Prevalence Rates'!AD140","v":206.74332029617628},{"$f":"'Population 2016'!AE140*'Prevalence Rates'!AE140","v":147.66708074324154},{"$f":"'Population 2016'!AF140*'Prevalence Rates'!AF140","v":34.695235929476965},{"$f":"'Population 2016'!AG140*'Prevalence Rates'!AG140","v":147.66708074324154},{"$f":"'Population 2016'!AH140*'Prevalence Rates'!AH140","v":355.42399310221197},{"$f":"'Population 2016'!AI140*'Prevalence Rates'!AI140","v":727.97346838291674},{"$f":"'Population 2016'!AJ140*'Prevalence Rates'!AJ140","v":54.473477521372729},{"$f":"'Population 2016'!AK140*'Prevalence Rates'!AK140","v":79.477078842606602},{"$f":"'Population 2016'!AL140*'Prevalence Rates'!AL140","v":74.394897254462848},{"$f":"'Population 2016'!AM140*'Prevalence Rates'!AM140","v":179.69052141474256},{"$f":"'Population 2016'!AN140*'Prevalence Rates'!AN140","v":15.513871967180757},{"$f":"'Population 2016'!AO140*'Prevalence Rates'!AO140","v":15.513871967180757},{"$f":"'Population 2016'!AP140*'Prevalence Rates'!AP140","v":70.637360836713157},{"$f":"'Population 2016'!AQ140*'Prevalence Rates'!AQ140","v":75.526851385526427},{"$f":"'Population 2016'!AR140*'Prevalence Rates'!AR140","v":3840.1},{"$f":"'Population 2016'!AS140*'Prevalence Rates'!AS140","v":118.45414619343138},{"$f":"'Population 2016'!AT140*'Prevalence Rates'!AT140","v":12.831958642700723},{"$f":"'Population 2016'!AU140*'Prevalence Rates'!AU140","v":12.831958642700723},{"$f":"'Population 2016'!AV140*'Prevalence Rates'!AV140","v":67.541125063825476},{"$f":"'Population 2016'!AW140*'Prevalence Rates'!AW140","v":175.77367841362724},{"$f":"'Population 2016'!AX140*'Prevalence Rates'!AX140","v":50.58146157589578},{"$f":"'Population 2016'!AY140*'Prevalence Rates'!AY140","v":511.43430710658117},{"$f":"'Population 2016'!AZ140*'Prevalence Rates'!AZ140","v":243.59256245973307},{"$f":"'Population 2016'!BA140*'Prevalence Rates'!BA140","v":45.189610579642924},{"$f":"'Population 2016'!BB140*'Prevalence Rates'!BB140","v":115.73885473767233},{"$f":"'Population 2016'!BC140*'Prevalence Rates'!BC140","v":32.369329240658516},138]
[null,"Female 25-29",{"$f":"'Population 2016'!C141*'Prevalence Rates'!C141","v":349.98127948648789},{"$f":"'Population 2016'!D141*'Prevalence Rates'!D141","v":594.65904213462261},{"$f":"'Population 2016'!E141*'Prevalence Rates'!E141","v":245.32244712873131},{"$f":"'Population 2016'!F141*'Prevalence Rates'!F141","v":143.23883385456642},{"$f":"'Population 2016'!G141*'Prevalence Rates'!G141","v":104.27842284755778},{"$f":"'Population 2016'!H141*'Prevalence Rates'!H141","v":369.09544727870463},{"$f":"'Population 2016'!I141*'Prevalence Rates'!I141","v":159.49579496909359},{"$f":"'Population 2016'!J141*'Prevalence Rates'!J141","v":142.27792177199254},{"$f":"'Population 2016'!K141*'Prevalence Rates'!K141","v":64.27959911857684},{"$f":"'Population 2016'!L141*'Prevalence Rates'!L141","v":282.42598154589479},{"$f":"'Population 2016'!M141*'Prevalence Rates'!M141","v":282.42598154589479},{"$f":"'Population 2016'!N141*'Prevalence Rates'!N141","v":148.62049767878608},{"$f":"'Population 2016'!O141*'Prevalence Rates'!O141","v":130.24678253352553},{"$f":"'Population 2016'!P141*'Prevalence Rates'!P141","v":31.422217111682262},{"$f":"'Population 2016'!Q141*'Prevalence Rates'!Q141","v":112.56380194289225},{"$f":"'Population 2016'!R141*'Prevalence Rates'!R141","v":36.953821262420938},{"$f":"'Population 2016'!S141*'Prevalence Rates'!S141","v":2057.8387193644753},{"$f":"'Population 2016'!T141*'Prevalence Rates'!T141","v":983.41423994673073},{"$f":"'Population 2016'!U141*'Prevalence Rates'!U141","v":60.539037592627494},{"$f":"'Population 2016'!V141*'Prevalence Rates'!V141","v":148.24835188297288},{"$f":"'Population 2016'!W141*'Prevalence Rates'!W141","v":484.09114256938602},{"$f":"'Population 2016'!X141*'Prevalence Rates'!X141","v":484.09114256938602},{"$f":"'Population 2016'!Y141*'Prevalence Rates'!Y141","v":291.88749477751526},{"$f":"'Population 2016'!Z141*'Prevalence Rates'!Z141","v":1058.0454224343312},{"$f":"'Population 2016'!AA141*'Prevalence Rates'!AA141","v":1941.4396093129458},{"$f":"'Population 2016'!AB141*'Prevalence Rates'!AB141","v":731.80014380063585},{"$f":"'Population 2016'!AC141*'Prevalence Rates'!AC141","v":1320.8681046195229},{"$f":"'Population 2016'!AD141*'Prevalence Rates'!AD141","v":368.13514871640461},{"$f":"'Population 2016'!AE141*'Prevalence Rates'!AE141","v":263.45611901198413},{"$f":"'Population 2016'!AF141*'Prevalence Rates'!AF141","v":55.190224774473059},{"$f":"'Population 2016'!AG141*'Prevalence Rates'!AG141","v":263.45611901198413},{"$f":"'Population 2016'!AH141*'Prevalence Rates'!AH141","v":623.16150366987142},{"$f":"'Population 2016'!AI141*'Prevalence Rates'!AI141","v":1403.0963250333136},{"$f":"'Population 2016'!AJ141*'Prevalence Rates'!AJ141","v":101.38090345287192},{"$f":"'Population 2016'!AK141*'Prevalence Rates'!AK141","v":138.98255492898028},{"$f":"'Population 2016'!AL141*'Prevalence Rates'!AL141","v":111.31728862781742},{"$f":"'Population 2016'!AM141*'Prevalence Rates'!AM141","v":327.38703226879505},{"$f":"'Population 2016'!AN141*'Prevalence Rates'!AN141","v":27.918748515440942},{"$f":"'Population 2016'!AO141*'Prevalence Rates'!AO141","v":27.918748515440942},{"$f":"'Population 2016'!AP141*'Prevalence Rates'!AP141","v":121.19635190798122},{"$f":"'Population 2016'!AQ141*'Prevalence Rates'!AQ141","v":126.41255927936129},{"$f":"'Population 2016'!AR141*'Prevalence Rates'!AR141","v":6624},{"$f":"'Population 2016'!AS141*'Prevalence Rates'!AS141","v":159.49579496909359},{"$f":"'Population 2016'!AT141*'Prevalence Rates'!AT141","v":25.746059475155516},{"$f":"'Population 2016'!AU141*'Prevalence Rates'!AU141","v":25.746059475155516},{"$f":"'Population 2016'!AV141*'Prevalence Rates'!AV141","v":119.34422449660086},{"$f":"'Population 2016'!AW141*'Prevalence Rates'!AW141","v":295.77301656139196},{"$f":"'Population 2016'!AX141*'Prevalence Rates'!AX141","v":74.116728669238341},{"$f":"'Population 2016'!AY141*'Prevalence Rates'!AY141","v":895.12302965135291},{"$f":"'Population 2016'!AZ141*'Prevalence Rates'!AZ141","v":410.86176162026044},{"$f":"'Population 2016'!BA141*'Prevalence Rates'!BA141","v":72.608217695193346},{"$f":"'Population 2016'!BB141*'Prevalence Rates'!BB141","v":198.66173413332186},{"$f":"'Population 2016'!BC141*'Prevalence Rates'!BC141","v":60.539037592627494},139]
[null,"Female 30-34",{"$f":"'Population 2016'!C142*'Prevalence Rates'!C142","v":276.34703727568757},{"$f":"'Population 2016'!D142*'Prevalence Rates'!D142","v":543.00249474825739},{"$f":"'Population 2016'!E142*'Prevalence Rates'!E142","v":266.7751858057149},{"$f":"'Population 2016'!F142*'Prevalence Rates'!F142","v":176.7966371003958},{"$f":"'Population 2016'!G142*'Prevalence Rates'!G142","v":118.17266325444392},{"$f":"'Population 2016'!H142*'Prevalence Rates'!H142","v":396.14833219715655},{"$f":"'Population 2016'!I142*'Prevalence Rates'!I142","v":196.62160420117129},{"$f":"'Population 2016'!J142*'Prevalence Rates'!J142","v":116.4552384610615},{"$f":"'Population 2016'!K142*'Prevalence Rates'!K142","v":66.462679843358686},{"$f":"'Population 2016'!L142*'Prevalence Rates'!L142","v":270.55934366581516},{"$f":"'Population 2016'!M142*'Prevalence Rates'!M142","v":270.55934366581516},{"$f":"'Population 2016'!N142*'Prevalence Rates'!N142","v":95.663768620827824},{"$f":"'Population 2016'!O142*'Prevalence Rates'!O142","v":135.11582113290967},{"$f":"'Population 2016'!P142*'Prevalence Rates'!P142","v":25.294884774904219},{"$f":"'Population 2016'!Q142*'Prevalence Rates'!Q142","v":115.61121451664229},{"$f":"'Population 2016'!R142*'Prevalence Rates'!R142","v":39.037683363685275},{"$f":"'Population 2016'!S142*'Prevalence Rates'!S142","v":1859.7037777328753},{"$f":"'Population 2016'!T142*'Prevalence Rates'!T142","v":753.53199748846941},{"$f":"'Population 2016'!U142*'Prevalence Rates'!U142","v":66.402382637918294},{"$f":"'Population 2016'!V142*'Prevalence Rates'!V142","v":172.48667557486581},{"$f":"'Population 2016'!W142*'Prevalence Rates'!W142","v":462.45033837075459},{"$f":"'Population 2016'!X142*'Prevalence Rates'!X142","v":462.45033837075459},{"$f":"'Population 2016'!Y142*'Prevalence Rates'!Y142","v":287.59503161902239},{"$f":"'Population 2016'!Z142*'Prevalence Rates'!Z142","v":840.14376320282838},{"$f":"'Population 2016'!AA142*'Prevalence Rates'!AA142","v":1830.955645136303},{"$f":"'Population 2016'!AB142*'Prevalence Rates'!AB142","v":699.87538457481878},{"$f":"'Population 2016'!AC142*'Prevalence Rates'!AC142","v":1133.3560418770705},{"$f":"'Population 2016'!AD142*'Prevalence Rates'!AD142","v":402.61572262965893},{"$f":"'Population 2016'!AE142*'Prevalence Rates'!AE142","v":283.86990027175608},{"$f":"'Population 2016'!AF142*'Prevalence Rates'!AF142","v":48.358861447339592},{"$f":"'Population 2016'!AG142*'Prevalence Rates'!AG142","v":283.86990027175608},{"$f":"'Population 2016'!AH142*'Prevalence Rates'!AH142","v":691.57001510625673},{"$f":"'Population 2016'!AI142*'Prevalence Rates'!AI142","v":1200.424885691335},{"$f":"'Population 2016'!AJ142*'Prevalence Rates'!AJ142","v":107.31369298367682},{"$f":"'Population 2016'!AK142*'Prevalence Rates'!AK142","v":161.06745406837987},{"$f":"'Population 2016'!AL142*'Prevalence Rates'!AL142","v":120.37799816729093},{"$f":"'Population 2016'!AM142*'Prevalence Rates'!AM142","v":373.73503736729361},{"$f":"'Population 2016'!AN142*'Prevalence Rates'!AN142","v":30.801662764317996},{"$f":"'Population 2016'!AO142*'Prevalence Rates'!AO142","v":30.801662764317996},{"$f":"'Population 2016'!AP142*'Prevalence Rates'!AP142","v":129.6853205222256},{"$f":"'Population 2016'!AQ142*'Prevalence Rates'!AQ142","v":139.29719159549097},{"$f":"'Population 2016'!AR142*'Prevalence Rates'!AR142","v":6326.3636363636369},{"$f":"'Population 2016'!AS142*'Prevalence Rates'!AS142","v":196.62160420117129},{"$f":"'Population 2016'!AT142*'Prevalence Rates'!AT142","v":23.048853244424937},{"$f":"'Population 2016'!AU142*'Prevalence Rates'!AU142","v":23.048853244424937},{"$f":"'Population 2016'!AV142*'Prevalence Rates'!AV142","v":131.19961103599829},{"$f":"'Population 2016'!AW142*'Prevalence Rates'!AW142","v":317.77266242133021},{"$f":"'Population 2016'!AX142*'Prevalence Rates'!AX142","v":53.343527900351475},{"$f":"'Population 2016'!AY142*'Prevalence Rates'!AY142","v":861.0741327907009},{"$f":"'Population 2016'!AZ142*'Prevalence Rates'!AZ142","v":397.75563717688419},{"$f":"'Population 2016'!BA142*'Prevalence Rates'!BA142","v":72.797795287086799},{"$f":"'Population 2016'!BB142*'Prevalence Rates'!BB142","v":220.91471970923146},{"$f":"'Population 2016'!BC142*'Prevalence Rates'!BC142","v":66.402382637918294},140]
[null,"Female 35-39",{"$f":"'Population 2016'!C143*'Prevalence Rates'!C143","v":189.99005902540648},{"$f":"'Population 2016'!D143*'Prevalence Rates'!D143","v":476.54174223682327},{"$f":"'Population 2016'!E143*'Prevalence Rates'!E143","v":286.08690963015124},{"$f":"'Population 2016'!F143*'Prevalence Rates'!F143","v":208.97793846996578},{"$f":"'Population 2016'!G143*'Prevalence Rates'!G143","v":133.18697594357121},{"$f":"'Population 2016'!H143*'Prevalence Rates'!H143","v":443.68601695746236},{"$f":"'Population 2016'!I143*'Prevalence Rates'!I143","v":205.87514856655645},{"$f":"'Population 2016'!J143*'Prevalence Rates'!J143","v":130.15600655461677},{"$f":"'Population 2016'!K143*'Prevalence Rates'!K143","v":63.333263666779196},{"$f":"'Population 2016'!L143*'Prevalence Rates'!L143","v":293.07873857860847},{"$f":"'Population 2016'!M143*'Prevalence Rates'!M143","v":293.07873857860847},{"$f":"'Population 2016'!N143*'Prevalence Rates'!N143","v":82.293983788867706},{"$f":"'Population 2016'!O143*'Prevalence Rates'!O143","v":146.1725962856778},{"$f":"'Population 2016'!P143*'Prevalence Rates'!P143","v":33.751857405570171},{"$f":"'Population 2016'!Q143*'Prevalence Rates'!Q143","v":129.88474866786078},{"$f":"'Population 2016'!R143*'Prevalence Rates'!R143","v":45.14981447181264},{"$f":"'Population 2016'!S143*'Prevalence Rates'!S143","v":1771.229008693103},{"$f":"'Population 2016'!T143*'Prevalence Rates'!T143","v":566.895965227234},{"$f":"'Population 2016'!U143*'Prevalence Rates'!U143","v":88.334229262508217},{"$f":"'Population 2016'!V143*'Prevalence Rates'!V143","v":193.33744889515035},{"$f":"'Population 2016'!W143*'Prevalence Rates'!W143","v":525.36738289429866},{"$f":"'Population 2016'!X143*'Prevalence Rates'!X143","v":525.36738289429866},{"$f":"'Population 2016'!Y143*'Prevalence Rates'!Y143","v":321.96126395923687},{"$f":"'Population 2016'!Z143*'Prevalence Rates'!Z143","v":701.67292287161649},{"$f":"'Population 2016'!AA143*'Prevalence Rates'!AA143","v":1859.2806751141741},{"$f":"'Population 2016'!AB143*'Prevalence Rates'!AB143","v":621.0292607747906},{"$f":"'Population 2016'!AC143*'Prevalence Rates'!AC143","v":1071.0564066471661},{"$f":"'Population 2016'!AD143*'Prevalence Rates'!AD143","v":468.60948604037179},{"$f":"'Population 2016'!AE143*'Prevalence Rates'!AE143","v":334.89790710680057},{"$f":"'Population 2016'!AF143*'Prevalence Rates'!AF143","v":73.873530677429414},{"$f":"'Population 2016'!AG143*'Prevalence Rates'!AG143","v":334.89790710680057},{"$f":"'Population 2016'!AH143*'Prevalence Rates'!AH143","v":776.08096422364054},{"$f":"'Population 2016'!AI143*'Prevalence Rates'!AI143","v":1050.1753453660695},{"$f":"'Population 2016'!AJ143*'Prevalence Rates'!AJ143","v":118.99450604645217},{"$f":"'Population 2016'!AK143*'Prevalence Rates'!AK143","v":148.70990732660587},{"$f":"'Population 2016'!AL143*'Prevalence Rates'!AL143","v":142.31508826440111},{"$f":"'Population 2016'!AM143*'Prevalence Rates'!AM143","v":424.16766976916745},{"$f":"'Population 2016'!AN143*'Prevalence Rates'!AN143","v":23.736829206249819},{"$f":"'Population 2016'!AO143*'Prevalence Rates'!AO143","v":23.736829206249819},{"$f":"'Population 2016'!AP143*'Prevalence Rates'!AP143","v":131.64940546236676},{"$f":"'Population 2016'!AQ143*'Prevalence Rates'!AQ143","v":146.6792584591818},{"$f":"'Population 2016'!AR143*'Prevalence Rates'!AR143","v":6401.172782874618},{"$f":"'Population 2016'!AS143*'Prevalence Rates'!AS143","v":205.87514856655645},{"$f":"'Population 2016'!AT143*'Prevalence Rates'!AT143","v":25.662638793151405},{"$f":"'Population 2016'!AU143*'Prevalence Rates'!AU143","v":25.662638793151405},{"$f":"'Population 2016'!AV143*'Prevalence Rates'!AV143","v":145.41096863131369},{"$f":"'Population 2016'!AW143*'Prevalence Rates'!AW143","v":351.81559531302355},{"$f":"'Population 2016'!AX143*'Prevalence Rates'!AX143","v":65.40721112521355},{"$f":"'Population 2016'!AY143*'Prevalence Rates'!AY143","v":936.06268030160595},{"$f":"'Population 2016'!AZ143*'Prevalence Rates'!AZ143","v":414.6952168015772},{"$f":"'Population 2016'!BA143*'Prevalence Rates'!BA143","v":78.320329678460141},{"$f":"'Population 2016'!BB143*'Prevalence Rates'!BB143","v":235.27175899991366},{"$f":"'Population 2016'!BC143*'Prevalence Rates'!BC143","v":88.334229262508217},141]
[null,"Female 40-44",{"$f":"'Population 2016'!C144*'Prevalence Rates'!C144","v":167.44559968872031},{"$f":"'Population 2016'!D144*'Prevalence Rates'!D144","v":477.11658149163247},{"$f":"'Population 2016'!E144*'Prevalence Rates'!E144","v":308.95861459725194},{"$f":"'Population 2016'!F144*'Prevalence Rates'!F144","v":242.83469945113342},{"$f":"'Population 2016'!G144*'Prevalence Rates'!G144","v":165.37908861239649},{"$f":"'Population 2016'!H144*'Prevalence Rates'!H144","v":515.99232462751615},{"$f":"'Population 2016'!I144*'Prevalence Rates'!I144","v":274.42403266196925},{"$f":"'Population 2016'!J144*'Prevalence Rates'!J144","v":143.72941866674111},{"$f":"'Population 2016'!K144*'Prevalence Rates'!K144","v":78.298085461461199},{"$f":"'Population 2016'!L144*'Prevalence Rates'!L144","v":372.70678190694088},{"$f":"'Population 2016'!M144*'Prevalence Rates'!M144","v":372.70678190694088},{"$f":"'Population 2016'!N144*'Prevalence Rates'!N144","v":72.199711349068963},{"$f":"'Population 2016'!O144*'Prevalence Rates'!O144","v":176.47994193757063},{"$f":"'Population 2016'!P144*'Prevalence Rates'!P144","v":36.867413473776651},{"$f":"'Population 2016'!Q144*'Prevalence Rates'!Q144","v":143.31386646227611},{"$f":"'Population 2016'!R144*'Prevalence Rates'!R144","v":47.598617968588918},{"$f":"'Population 2016'!S144*'Prevalence Rates'!S144","v":1751.7359461189269},{"$f":"'Population 2016'!T144*'Prevalence Rates'!T144","v":451.32456933117982},{"$f":"'Population 2016'!U144*'Prevalence Rates'!U144","v":92.694419737988511},{"$f":"'Population 2016'!V144*'Prevalence Rates'!V144","v":206.99940995198111},{"$f":"'Population 2016'!W144*'Prevalence Rates'!W144","v":522.78994683758083},{"$f":"'Population 2016'!X144*'Prevalence Rates'!X144","v":522.78994683758083},{"$f":"'Population 2016'!Y144*'Prevalence Rates'!Y144","v":349.34964565466765},{"$f":"'Population 2016'!Z144*'Prevalence Rates'!Z144","v":587.38173917290192},{"$f":"'Population 2016'!AA144*'Prevalence Rates'!AA144","v":1831.6266253377501},{"$f":"'Population 2016'!AB144*'Prevalence Rates'!AB144","v":648.81623958918215},{"$f":"'Population 2016'!AC144*'Prevalence Rates'!AC144","v":1011.737635868489},{"$f":"'Population 2016'!AD144*'Prevalence Rates'!AD144","v":525.34695744436294},{"$f":"'Population 2016'!AE144*'Prevalence Rates'!AE144","v":358.85410776115566},{"$f":"'Population 2016'!AF144*'Prevalence Rates'!AF144","v":82.19172984218018},{"$f":"'Population 2016'!AG144*'Prevalence Rates'!AG144","v":358.85410776115566},{"$f":"'Population 2016'!AH144*'Prevalence Rates'!AH144","v":804.65424410239575},{"$f":"'Population 2016'!AI144*'Prevalence Rates'!AI144","v":975.16282069706449},{"$f":"'Population 2016'!AJ144*'Prevalence Rates'!AJ144","v":126.68397331924392},{"$f":"'Population 2016'!AK144*'Prevalence Rates'!AK144","v":178.07434600886938},{"$f":"'Population 2016'!AL144*'Prevalence Rates'!AL144","v":167.12753852292394},{"$f":"'Population 2016'!AM144*'Prevalence Rates'!AM144","v":438.31934134848143},{"$f":"'Population 2016'!AN144*'Prevalence Rates'!AN144","v":32.26202842821278},{"$f":"'Population 2016'!AO144*'Prevalence Rates'!AO144","v":32.26202842821278},{"$f":"'Population 2016'!AP144*'Prevalence Rates'!AP144","v":148.77102212905709},{"$f":"'Population 2016'!AQ144*'Prevalence Rates'!AQ144","v":161.97806283610723},{"$f":"'Population 2016'!AR144*'Prevalence Rates'!AR144","v":6668.380733944954},{"$f":"'Population 2016'!AS144*'Prevalence Rates'!AS144","v":274.42403266196925},{"$f":"'Population 2016'!AT144*'Prevalence Rates'!AT144","v":26.743170952863046},{"$f":"'Population 2016'!AU144*'Prevalence Rates'!AU144","v":26.743170952863046},{"$f":"'Population 2016'!AV144*'Prevalence Rates'!AV144","v":162.60777480178345},{"$f":"'Population 2016'!AW144*'Prevalence Rates'!AW144","v":366.24215061563518},{"$f":"'Population 2016'!AX144*'Prevalence Rates'!AX144","v":67.808771792877977},{"$f":"'Population 2016'!AY144*'Prevalence Rates'!AY144","v":978.33402184492502},{"$f":"'Population 2016'!AZ144*'Prevalence Rates'!AZ144","v":453.9821320775161},{"$f":"'Population 2016'!BA144*'Prevalence Rates'!BA144","v":84.377101840261062},{"$f":"'Population 2016'!BB144*'Prevalence Rates'!BB144","v":257.61269073688027},{"$f":"'Population 2016'!BC144*'Prevalence Rates'!BC144","v":92.694419737988511},142]
[null,"Female 45-49",{"$f":"'Population 2016'!C145*'Prevalence Rates'!C145","v":155.34492249088771},{"$f":"'Population 2016'!D145*'Prevalence Rates'!D145","v":514.00805055665228},{"$f":"'Population 2016'!E145*'Prevalence Rates'!E145","v":357.62397725854015},{"$f":"'Population 2016'!F145*'Prevalence Rates'!F145","v":248.01198243840517},{"$f":"'Population 2016'!G145*'Prevalence Rates'!G145","v":183.93892865461717},{"$f":"'Population 2016'!H145*'Prevalence Rates'!H145","v":593.8942946866473},{"$f":"'Population 2016'!I145*'Prevalence Rates'!I145","v":319.02953984008047},{"$f":"'Population 2016'!J145*'Prevalence Rates'!J145","v":157.4396419420726},{"$f":"'Population 2016'!K145*'Prevalence Rates'!K145","v":94.601089382954825},{"$f":"'Population 2016'!L145*'Prevalence Rates'!L145","v":462.91045689148177},{"$f":"'Population 2016'!M145*'Prevalence Rates'!M145","v":462.91045689148177},{"$f":"'Population 2016'!N145*'Prevalence Rates'!N145","v":82.605290856648736},{"$f":"'Population 2016'!O145*'Prevalence Rates'!O145","v":209.70522355980293},{"$f":"'Population 2016'!P145*'Prevalence Rates'!P145","v":48.333119345040615},{"$f":"'Population 2016'!Q145*'Prevalence Rates'!Q145","v":178.04856459125273},{"$f":"'Population 2016'!R145*'Prevalence Rates'!R145","v":49.217804276850401},{"$f":"'Population 2016'!S145*'Prevalence Rates'!S145","v":1849.0008257308591},{"$f":"'Population 2016'!T145*'Prevalence Rates'!T145","v":362.72094047986985},{"$f":"'Population 2016'!U145*'Prevalence Rates'!U145","v":103.13545707064259},{"$f":"'Population 2016'!V145*'Prevalence Rates'!V145","v":210.51503282017745},{"$f":"'Population 2016'!W145*'Prevalence Rates'!W145","v":585.84481316447591},{"$f":"'Population 2016'!X145*'Prevalence Rates'!X145","v":585.84481316447591},{"$f":"'Population 2016'!Y145*'Prevalence Rates'!Y145","v":367.22490473919345},{"$f":"'Population 2016'!Z145*'Prevalence Rates'!Z145","v":576.7817144211773},{"$f":"'Population 2016'!AA145*'Prevalence Rates'!AA145","v":1977.5498349312625},{"$f":"'Population 2016'!AB145*'Prevalence Rates'!AB145","v":696.2899647478331},{"$f":"'Population 2016'!AC145*'Prevalence Rates'!AC145","v":1092.3939048415355},{"$f":"'Population 2016'!AD145*'Prevalence Rates'!AD145","v":608.78380769395233},{"$f":"'Population 2016'!AE145*'Prevalence Rates'!AE145","v":423.80634637245623},{"$f":"'Population 2016'!AF145*'Prevalence Rates'!AF145","v":87.238652340741567},{"$f":"'Population 2016'!AG145*'Prevalence Rates'!AG145","v":423.80634637245623},{"$f":"'Population 2016'!AH145*'Prevalence Rates'!AH145","v":868.71141266511927},{"$f":"'Population 2016'!AI145*'Prevalence Rates'!AI145","v":973.25418842651754},{"$f":"'Population 2016'!AJ145*'Prevalence Rates'!AJ145","v":150.47907145049874},{"$f":"'Population 2016'!AK145*'Prevalence Rates'!AK145","v":188.93557187783259},{"$f":"'Population 2016'!AL145*'Prevalence Rates'!AL145","v":191.13639963131732},{"$f":"'Population 2016'!AM145*'Prevalence Rates'!AM145","v":431.00607502430546},{"$f":"'Population 2016'!AN145*'Prevalence Rates'!AN145","v":39.149640030560725},{"$f":"'Population 2016'!AO145*'Prevalence Rates'!AO145","v":39.149640030560725},{"$f":"'Population 2016'!AP145*'Prevalence Rates'!AP145","v":177.42765836565982},{"$f":"'Population 2016'!AQ145*'Prevalence Rates'!AQ145","v":195.63194019711372},{"$f":"'Population 2016'!AR145*'Prevalence Rates'!AR145","v":7305.3316391359594},{"$f":"'Population 2016'!AS145*'Prevalence Rates'!AS145","v":319.02953984008047},{"$f":"'Population 2016'!AT145*'Prevalence Rates'!AT145","v":34.066365862086329},{"$f":"'Population 2016'!AU145*'Prevalence Rates'!AU145","v":34.066365862086329},{"$f":"'Population 2016'!AV145*'Prevalence Rates'!AV145","v":182.74970391645655},{"$f":"'Population 2016'!AW145*'Prevalence Rates'!AW145","v":437.85134500895447},{"$f":"'Population 2016'!AX145*'Prevalence Rates'!AX145","v":69.606858211946076},{"$f":"'Population 2016'!AY145*'Prevalence Rates'!AY145","v":1088.8048314874191},{"$f":"'Population 2016'!AZ145*'Prevalence Rates'!AZ145","v":502.09999987765093},{"$f":"'Population 2016'!BA145*'Prevalence Rates'!BA145","v":109.11671864790006},{"$f":"'Population 2016'!BB145*'Prevalence Rates'!BB145","v":289.57658626840424},{"$f":"'Population 2016'!BC145*'Prevalence Rates'!BC145","v":103.13545707064259},143]
[null,"Female 50-54",{"$f":"'Population 2016'!C146*'Prevalence Rates'!C146","v":172.87546681667502},{"$f":"'Population 2016'!D146*'Prevalence Rates'!D146","v":530.57781981569815},{"$f":"'Population 2016'!E146*'Prevalence Rates'!E146","v":356.7655423635365},{"$f":"'Population 2016'!F146*'Prevalence Rates'!F146","v":278.33429548564482},{"$f":"'Population 2016'!G146*'Prevalence Rates'!G146","v":229.14184929771474},{"$f":"'Population 2016'!H146*'Prevalence Rates'!H146","v":659.49346795981876},{"$f":"'Population 2016'!I146*'Prevalence Rates'!I146","v":327.88003675177305},{"$f":"'Population 2016'!J146*'Prevalence Rates'!J146","v":166.98651384707063},{"$f":"'Population 2016'!K146*'Prevalence Rates'!K146","v":97.4896722648771},{"$f":"'Population 2016'!L146*'Prevalence Rates'!L146","v":501.02241865220509},{"$f":"'Population 2016'!M146*'Prevalence Rates'!M146","v":501.02241865220509},{"$f":"'Population 2016'!N146*'Prevalence Rates'!N146","v":101.71547008467941},{"$f":"'Population 2016'!O146*'Prevalence Rates'!O146","v":223.71778458108008},{"$f":"'Population 2016'!P146*'Prevalence Rates'!P146","v":41.472934663809042},{"$f":"'Population 2016'!Q146*'Prevalence Rates'!Q146","v":160.47052159020549},{"$f":"'Population 2016'!R146*'Prevalence Rates'!R146","v":55.697459181645833},{"$f":"'Population 2016'!S146*'Prevalence Rates'!S146","v":1878.9974757872308},{"$f":"'Population 2016'!T146*'Prevalence Rates'!T146","v":358.56368041706332},{"$f":"'Population 2016'!U146*'Prevalence Rates'!U146","v":104.59011796021441},{"$f":"'Population 2016'!V146*'Prevalence Rates'!V146","v":223.00795327983369},{"$f":"'Population 2016'!W146*'Prevalence Rates'!W146","v":632.85943984841492},{"$f":"'Population 2016'!X146*'Prevalence Rates'!X146","v":632.85943984841492},{"$f":"'Population 2016'!Y146*'Prevalence Rates'!Y146","v":389.23355055246554},{"$f":"'Population 2016'!Z146*'Prevalence Rates'!Z146","v":603.57442756363878},{"$f":"'Population 2016'!AA146*'Prevalence Rates'!AA146","v":1994.4597406547459},{"$f":"'Population 2016'!AB146*'Prevalence Rates'!AB146","v":729.54664984136969},{"$f":"'Population 2016'!AC146*'Prevalence Rates'!AC146","v":1116.6817802698574},{"$f":"'Population 2016'!AD146*'Prevalence Rates'!AD146","v":690.03263923980876},{"$f":"'Population 2016'!AE146*'Prevalence Rates'!AE146","v":459.03790963168365},{"$f":"'Population 2016'!AF146*'Prevalence Rates'!AF146","v":97.407575006226793},{"$f":"'Population 2016'!AG146*'Prevalence Rates'!AG146","v":459.03790963168365},{"$f":"'Population 2016'!AH146*'Prevalence Rates'!AH146","v":862.32001829872252},{"$f":"'Population 2016'!AI146*'Prevalence Rates'!AI146","v":951.78663988411381},{"$f":"'Population 2016'!AJ146*'Prevalence Rates'!AJ146","v":151.51805238111206},{"$f":"'Population 2016'!AK146*'Prevalence Rates'!AK146","v":206.69551563434885},{"$f":"'Population 2016'!AL146*'Prevalence Rates'!AL146","v":205.00920283036453},{"$f":"'Population 2016'!AM146*'Prevalence Rates'!AM146","v":418.25849326899026},{"$f":"'Population 2016'!AN146*'Prevalence Rates'!AN146","v":42.763452956458636},{"$f":"'Population 2016'!AO146*'Prevalence Rates'!AO146","v":42.763452956458636},{"$f":"'Population 2016'!AP146*'Prevalence Rates'!AP146","v":194.01695001708748},{"$f":"'Population 2016'!AQ146*'Prevalence Rates'!AQ146","v":188.81252615974157},{"$f":"'Population 2016'!AR146*'Prevalence Rates'!AR146","v":7675.0368487928845},{"$f":"'Population 2016'!AS146*'Prevalence Rates'!AS146","v":327.88003675177305},{"$f":"'Population 2016'!AT146*'Prevalence Rates'!AT146","v":34.309697046815522},{"$f":"'Population 2016'!AU146*'Prevalence Rates'!AU146","v":34.309697046815522},{"$f":"'Population 2016'!AV146*'Prevalence Rates'!AV146","v":215.88779400431187},{"$f":"'Population 2016'!AW146*'Prevalence Rates'!AW146","v":444.26230653065261},{"$f":"'Population 2016'!AX146*'Prevalence Rates'!AX146","v":75.333199381118973},{"$f":"'Population 2016'!AY146*'Prevalence Rates'!AY146","v":1203.3797570440661},{"$f":"'Population 2016'!AZ146*'Prevalence Rates'!AZ146","v":566.37484925957915},{"$f":"'Population 2016'!BA146*'Prevalence Rates'!BA146","v":107.4235281861223},{"$f":"'Population 2016'!BB146*'Prevalence Rates'!BB146","v":287.61758107224654},{"$f":"'Population 2016'!BC146*'Prevalence Rates'!BC146","v":104.59011796021441},144]
[null,"Female 55-59",{"$f":"'Population 2016'!C147*'Prevalence Rates'!C147","v":376.12661905463557},{"$f":"'Population 2016'!D147*'Prevalence Rates'!D147","v":1142.7287621075643},{"$f":"'Population 2016'!E147*'Prevalence Rates'!E147","v":764.62568152387223},{"$f":"'Population 2016'!F147*'Prevalence Rates'!F147","v":646.44628316902811},{"$f":"'Population 2016'!G147*'Prevalence Rates'!G147","v":505.57104124899115},{"$f":"'Population 2016'!H147*'Prevalence Rates'!H147","v":1395.930833097796},{"$f":"'Population 2016'!I147*'Prevalence Rates'!I147","v":772.91315096414132},{"$f":"'Population 2016'!J147*'Prevalence Rates'!J147","v":359.74471425914396},{"$f":"'Population 2016'!K147*'Prevalence Rates'!K147","v":222.24026024549505},{"$f":"'Population 2016'!L147*'Prevalence Rates'!L147","v":1112.8403730509242},{"$f":"'Population 2016'!M147*'Prevalence Rates'!M147","v":1112.8403730509242},{"$f":"'Population 2016'!N147*'Prevalence Rates'!N147","v":235.17740763975507},{"$f":"'Population 2016'!O147*'Prevalence Rates'!O147","v":466.90952014803719},{"$f":"'Population 2016'!P147*'Prevalence Rates'!P147","v":104.04451240770823},{"$f":"'Population 2016'!Q147*'Prevalence Rates'!Q147","v":377.94246956684134},{"$f":"'Population 2016'!R147*'Prevalence Rates'!R147","v":130.25156780577313},{"$f":"'Population 2016'!S147*'Prevalence Rates'!S147","v":4091.774467171701},{"$f":"'Population 2016'!T147*'Prevalence Rates'!T147","v":754.46264597069842},{"$f":"'Population 2016'!U147*'Prevalence Rates'!U147","v":237.63713686292525},{"$f":"'Population 2016'!V147*'Prevalence Rates'!V147","v":477.20479074507415},{"$f":"'Population 2016'!W147*'Prevalence Rates'!W147","v":1382.2728760778084},{"$f":"'Population 2016'!X147*'Prevalence Rates'!X147","v":1382.2728760778084},{"$f":"'Population 2016'!Y147*'Prevalence Rates'!Y147","v":835.46560517375417},{"$f":"'Population 2016'!Z147*'Prevalence Rates'!Z147","v":1289.245793026794},{"$f":"'Population 2016'!AA147*'Prevalence Rates'!AA147","v":4430.3331877464343},{"$f":"'Population 2016'!AB147*'Prevalence Rates'!AB147","v":1559.0745224013422},{"$f":"'Population 2016'!AC147*'Prevalence Rates'!AC147","v":2465.8106027191739},{"$f":"'Population 2016'!AD147*'Prevalence Rates'!AD147","v":1569.648206897954},{"$f":"'Population 2016'!AE147*'Prevalence Rates'!AE147","v":1060.3749511979479},{"$f":"'Population 2016'!AF147*'Prevalence Rates'!AF147","v":243.65091250435773},{"$f":"'Population 2016'!AG147*'Prevalence Rates'!AG147","v":1060.3749511979479},{"$f":"'Population 2016'!AH147*'Prevalence Rates'!AH147","v":1929.0772106631164},{"$f":"'Population 2016'!AI147*'Prevalence Rates'!AI147","v":2018.5227216570609},{"$f":"'Population 2016'!AJ147*'Prevalence Rates'!AJ147","v":316.43282603551728},{"$f":"'Population 2016'!AK147*'Prevalence Rates'!AK147","v":432.0196192877529},{"$f":"'Population 2016'!AL147*'Prevalence Rates'!AL147","v":469.4568379419041},{"$f":"'Population 2016'!AM147*'Prevalence Rates'!AM147","v":883.39047518225436},{"$f":"'Population 2016'!AN147*'Prevalence Rates'!AN147","v":87.877176925598278},{"$f":"'Population 2016'!AO147*'Prevalence Rates'!AO147","v":87.877176925598278},{"$f":"'Population 2016'!AP147*'Prevalence Rates'!AP147","v":425.30827166725845},{"$f":"'Population 2016'!AQ147*'Prevalence Rates'!AQ147","v":398.25870627125295},{"$f":"'Population 2016'!AR147*'Prevalence Rates'!AR147","v":16897.034916201119},{"$f":"'Population 2016'!AS147*'Prevalence Rates'!AS147","v":772.91315096414132},{"$f":"'Population 2016'!AT147*'Prevalence Rates'!AT147","v":76.24316411574236},{"$f":"'Population 2016'!AU147*'Prevalence Rates'!AU147","v":76.24316411574236},{"$f":"'Population 2016'!AV147*'Prevalence Rates'!AV147","v":435.23177153629223},{"$f":"'Population 2016'!AW147*'Prevalence Rates'!AW147","v":1046.4408231454147},{"$f":"'Population 2016'!AX147*'Prevalence Rates'!AX147","v":155.83554046694857},{"$f":"'Population 2016'!AY147*'Prevalence Rates'!AY147","v":2682.6023686568042},{"$f":"'Population 2016'!AZ147*'Prevalence Rates'!AZ147","v":1284.8633454896676},{"$f":"'Population 2016'!BA147*'Prevalence Rates'!BA147","v":245.69017613536064},{"$f":"'Population 2016'!BB147*'Prevalence Rates'!BB147","v":585.702996667251},{"$f":"'Population 2016'!BC147*'Prevalence Rates'!BC147","v":237.63713686292525},145]
[null,"Female 60-64",{"$f":"'Population 2016'!C148*'Prevalence Rates'!C148","v":349.14181746683056},{"$f":"'Population 2016'!D148*'Prevalence Rates'!D148","v":1090.7114846416853},{"$f":"'Population 2016'!E148*'Prevalence Rates'!E148","v":739.5761828273329},{"$f":"'Population 2016'!F148*'Prevalence Rates'!F148","v":570.98562754618433},{"$f":"'Population 2016'!G148*'Prevalence Rates'!G148","v":500.81112559499934},{"$f":"'Population 2016'!H148*'Prevalence Rates'!H148","v":1283.139621783494},{"$f":"'Population 2016'!I148*'Prevalence Rates'!I148","v":696.60643860780885},{"$f":"'Population 2016'!J148*'Prevalence Rates'!J148","v":333.70528616688966},{"$f":"'Population 2016'!K148*'Prevalence Rates'!K148","v":187.69514207262017},{"$f":"'Population 2016'!L148*'Prevalence Rates'!L148","v":1091.3312632174502},{"$f":"'Population 2016'!M148*'Prevalence Rates'!M148","v":1091.3312632174502},{"$f":"'Population 2016'!N148*'Prevalence Rates'!N148","v":193.89234548355981},{"$f":"'Population 2016'!O148*'Prevalence Rates'!O148","v":384.85363913192174},{"$f":"'Population 2016'!P148*'Prevalence Rates'!P148","v":89.500655834587718},{"$f":"'Population 2016'!Q148*'Prevalence Rates'!Q148","v":329.56945013663557},{"$f":"'Population 2016'!R148*'Prevalence Rates'!R148","v":113.10452596805111},{"$f":"'Population 2016'!S148*'Prevalence Rates'!S148","v":3506.4227899477369},{"$f":"'Population 2016'!T148*'Prevalence Rates'!T148","v":615.6680350974508},{"$f":"'Population 2016'!U148*'Prevalence Rates'!U148","v":241.11645072621843},{"$f":"'Population 2016'!V148*'Prevalence Rates'!V148","v":432.60621217076817},{"$f":"'Population 2016'!W148*'Prevalence Rates'!W148","v":1194.3911259313102},{"$f":"'Population 2016'!X148*'Prevalence Rates'!X148","v":1194.3911259313102},{"$f":"'Population 2016'!Y148*'Prevalence Rates'!Y148","v":765.41894620339372},{"$f":"'Population 2016'!Z148*'Prevalence Rates'!Z148","v":949.65189138020605},{"$f":"'Population 2016'!AA148*'Prevalence Rates'!AA148","v":3607.9360091827248},{"$f":"'Population 2016'!AB148*'Prevalence Rates'!AB148","v":1467.8075390813924},{"$f":"'Population 2016'!AC148*'Prevalence Rates'!AC148","v":1953.2544661988961},{"$f":"'Population 2016'!AD148*'Prevalence Rates'!AD148","v":1475.9638564085931},{"$f":"'Population 2016'!AE148*'Prevalence Rates'!AE148","v":970.83998015308805},{"$f":"'Population 2016'!AF148*'Prevalence Rates'!AF148","v":169.40352410548167},{"$f":"'Population 2016'!AG148*'Prevalence Rates'!AG148","v":970.83998015308805},{"$f":"'Population 2016'!AH148*'Prevalence Rates'!AH148","v":1621.6808849545366},{"$f":"'Population 2016'!AI148*'Prevalence Rates'!AI148","v":1691.5018386863485},{"$f":"'Population 2016'!AJ148*'Prevalence Rates'!AJ148","v":268.8022304935219},{"$f":"'Population 2016'!AK148*'Prevalence Rates'!AK148","v":390.44450948181856},{"$f":"'Population 2016'!AL148*'Prevalence Rates'!AL148","v":468.22789333996189},{"$f":"'Population 2016'!AM148*'Prevalence Rates'!AM148","v":747.83288827229092},{"$f":"'Population 2016'!AN148*'Prevalence Rates'!AN148","v":79.593672543267289},{"$f":"'Population 2016'!AO148*'Prevalence Rates'!AO148","v":79.593672543267289},{"$f":"'Population 2016'!AP148*'Prevalence Rates'!AP148","v":382.83944279086313},{"$f":"'Population 2016'!AQ148*'Prevalence Rates'!AQ148","v":345.58797293333129},{"$f":"'Population 2016'!AR148*'Prevalence Rates'!AR148","v":14925.649441340782},{"$f":"'Population 2016'!AS148*'Prevalence Rates'!AS148","v":696.60643860780885},{"$f":"'Population 2016'!AT148*'Prevalence Rates'!AT148","v":75.952159672552511},{"$f":"'Population 2016'!AU148*'Prevalence Rates'!AU148","v":75.952159672552511},{"$f":"'Population 2016'!AV148*'Prevalence Rates'!AV148","v":408.02978581527395},{"$f":"'Population 2016'!AW148*'Prevalence Rates'!AW148","v":874.4515393413169},{"$f":"'Population 2016'!AX148*'Prevalence Rates'!AX148","v":154.31370901707604},{"$f":"'Population 2016'!AY148*'Prevalence Rates'!AY148","v":2340.0464766506211},{"$f":"'Population 2016'!AZ148*'Prevalence Rates'!AZ148","v":1129.6813704854255},{"$f":"'Population 2016'!BA148*'Prevalence Rates'!BA148","v":221.39114772636893},{"$f":"'Population 2016'!BB148*'Prevalence Rates'!BB148","v":491.99051720049084},{"$f":"'Population 2016'!BC148*'Prevalence Rates'!BC148","v":241.11645072621843},146]
[null,"Female 65-69",{"$f":"'Population 2016'!C149*'Prevalence Rates'!C149","v":0},{"$f":"'Population 2016'!D149*'Prevalence Rates'!D149","v":0},{"$f":"'Population 2016'!E149*'Prevalence Rates'!E149","v":0},{"$f":"'Population 2016'!F149*'Prevalence Rates'!F149","v":0},{"$f":"'Population 2016'!G149*'Prevalence Rates'!G149","v":0},{"$f":"'Population 2016'!H149*'Prevalence Rates'!H149","v":0},{"$f":"'Population 2016'!I149*'Prevalence Rates'!I149","v":0},{"$f":"'Population 2016'!J149*'Prevalence Rates'!J149","v":0},{"$f":"'Population 2016'!K149*'Prevalence Rates'!K149","v":0},{"$f":"'Population 2016'!L149*'Prevalence Rates'!L149","v":0},{"$f":"'Population 2016'!M149*'Prevalence Rates'!M149","v":0},{"$f":"'Population 2016'!N149*'Prevalence Rates'!N149","v":0},{"$f":"'Population 2016'!O149*'Prevalence Rates'!O149","v":0},{"$f":"'Population 2016'!P149*'Prevalence Rates'!P149","v":0},{"$f":"'Population 2016'!Q149*'Prevalence Rates'!Q149","v":0},{"$f":"'Population 2016'!R149*'Prevalence Rates'!R149","v":0},{"$f":"'Population 2016'!S149*'Prevalence Rates'!S149","v":0},{"$f":"'Population 2016'!T149*'Prevalence Rates'!T149","v":0},{"$f":"'Population 2016'!U149*'Prevalence Rates'!U149","v":0},{"$f":"'Population 2016'!V149*'Prevalence Rates'!V149","v":0},{"$f":"'Population 2016'!W149*'Prevalence Rates'!W149","v":0},{"$f":"'Population 2016'!X149*'Prevalence Rates'!X149","v":0},{"$f":"'Population 2016'!Y149*'Prevalence Rates'!Y149","v":0},{"$f":"'Population 2016'!Z149*'Prevalence Rates'!Z149","v":0},{"$f":"'Population 2016'!AA149*'Prevalence Rates'!AA149","v":0},{"$f":"'Population 2016'!AB149*'Prevalence Rates'!AB149","v":0},{"$f":"'Population 2016'!AC149*'Prevalence Rates'!AC149","v":0},{"$f":"'Population 2016'!AD149*'Prevalence Rates'!AD149","v":0},{"$f":"'Population 2016'!AE149*'Prevalence Rates'!AE149","v":0},{"$f":"'Population 2016'!AF149*'Prevalence Rates'!AF149","v":0},{"$f":"'Population 2016'!AG149*'Prevalence Rates'!AG149","v":0},{"$f":"'Population 2016'!AH149*'Prevalence Rates'!AH149","v":0},{"$f":"'Population 2016'!AI149*'Prevalence Rates'!AI149","v":0},{"$f":"'Population 2016'!AJ149*'Prevalence Rates'!AJ149","v":0},{"$f":"'Population 2016'!AK149*'Prevalence Rates'!AK149","v":0},{"$f":"'Population 2016'!AL149*'Prevalence Rates'!AL149","v":0},{"$f":"'Population 2016'!AM149*'Prevalence Rates'!AM149","v":0},{"$f":"'Population 2016'!AN149*'Prevalence Rates'!AN149","v":0},{"$f":"'Population 2016'!AO149*'Prevalence Rates'!AO149","v":0},{"$f":"'Population 2016'!AP149*'Prevalence Rates'!AP149","v":0},{"$f":"'Population 2016'!AQ149*'Prevalence Rates'!AQ149","v":0},{"$f":"'Population 2016'!AR149*'Prevalence Rates'!AR149","v":0},{"$f":"'Population 2016'!AS149*'Prevalence Rates'!AS149","v":0},{"$f":"'Population 2016'!AT149*'Prevalence Rates'!AT149","v":0},{"$f":"'Population 2016'!AU149*'Prevalence Rates'!AU149","v":0},{"$f":"'Population 2016'!AV149*'Prevalence Rates'!AV149","v":0},{"$f":"'Population 2016'!AW149*'Prevalence Rates'!AW149","v":0},{"$f":"'Population 2016'!AX149*'Prevalence Rates'!AX149","v":0},{"$f":"'Population 2016'!AY149*'Prevalence Rates'!AY149","v":0},{"$f":"'Population 2016'!AZ149*'Prevalence Rates'!AZ149","v":0},{"$f":"'Population 2016'!BA149*'Prevalence Rates'!BA149","v":0},{"$f":"'Population 2016'!BB149*'Prevalence Rates'!BB149","v":0},{"$f":"'Population 2016'!BC149*'Prevalence Rates'!BC149","v":0},147]
[null,"Female 70-74",{"$f":"'Population 2016'!C150*'Prevalence Rates'!C150","v":0},{"$f":"'Population 2016'!D150*'Prevalence Rates'!D150","v":0},{"$f":"'Population 2016'!E150*'Prevalence Rates'!E150","v":0},{"$f":"'Population 2016'!F150*'Prevalence Rates'!F150","v":0},{"$f":"'Population 2016'!G150*'Prevalence Rates'!G150","v":0},{"$f":"'Population 2016'!H150*'Prevalence Rates'!H150","v":0},{"$f":"'Population 2016'!I150*'Prevalence Rates'!I150","v":0},{"$f":"'Population 2016'!J150*'Prevalence Rates'!J150","v":0},{"$f":"'Population 2016'!K150*'Prevalence Rates'!K150","v":0},{"$f":"'Population 2016'!L150*'Prevalence Rates'!L150","v":0},{"$f":"'Population 2016'!M150*'Prevalence Rates'!M150","v":0},{"$f":"'Population 2016'!N150*'Prevalence Rates'!N150","v":0},{"$f":"'Population 2016'!O150*'Prevalence Rates'!O150","v":0},{"$f":"'Population 2016'!P150*'Prevalence Rates'!P150","v":0},{"$f":"'Population 2016'!Q150*'Prevalence Rates'!Q150","v":0},{"$f":"'Population 2016'!R150*'Prevalence Rates'!R150","v":0},{"$f":"'Population 2016'!S150*'Prevalence Rates'!S150","v":0},{"$f":"'Population 2016'!T150*'Prevalence Rates'!T150","v":0},{"$f":"'Population 2016'!U150*'Prevalence Rates'!U150","v":0},{"$f":"'Population 2016'!V150*'Prevalence Rates'!V150","v":0},{"$f":"'Population 2016'!W150*'Prevalence Rates'!W150","v":0},{"$f":"'Population 2016'!X150*'Prevalence Rates'!X150","v":0},{"$f":"'Population 2016'!Y150*'Prevalence Rates'!Y150","v":0},{"$f":"'Population 2016'!Z150*'Prevalence Rates'!Z150","v":0},{"$f":"'Population 2016'!AA150*'Prevalence Rates'!AA150","v":0},{"$f":"'Population 2016'!AB150*'Prevalence Rates'!AB150","v":0},{"$f":"'Population 2016'!AC150*'Prevalence Rates'!AC150","v":0},{"$f":"'Population 2016'!AD150*'Prevalence Rates'!AD150","v":0},{"$f":"'Population 2016'!AE150*'Prevalence Rates'!AE150","v":0},{"$f":"'Population 2016'!AF150*'Prevalence Rates'!AF150","v":0},{"$f":"'Population 2016'!AG150*'Prevalence Rates'!AG150","v":0},{"$f":"'Population 2016'!AH150*'Prevalence Rates'!AH150","v":0},{"$f":"'Population 2016'!AI150*'Prevalence Rates'!AI150","v":0},{"$f":"'Population 2016'!AJ150*'Prevalence Rates'!AJ150","v":0},{"$f":"'Population 2016'!AK150*'Prevalence Rates'!AK150","v":0},{"$f":"'Population 2016'!AL150*'Prevalence Rates'!AL150","v":0},{"$f":"'Population 2016'!AM150*'Prevalence Rates'!AM150","v":0},{"$f":"'Population 2016'!AN150*'Prevalence Rates'!AN150","v":0},{"$f":"'Population 2016'!AO150*'Prevalence Rates'!AO150","v":0},{"$f":"'Population 2016'!AP150*'Prevalence Rates'!AP150","v":0},{"$f":"'Population 2016'!AQ150*'Prevalence Rates'!AQ150","v":0},{"$f":"'Population 2016'!AR150*'Prevalence Rates'!AR150","v":0},{"$f":"'Population 2016'!AS150*'Prevalence Rates'!AS150","v":0},{"$f":"'Population 2016'!AT150*'Prevalence Rates'!AT150","v":0},{"$f":"'Population 2016'!AU150*'Prevalence Rates'!AU150","v":0},{"$f":"'Population 2016'!AV150*'Prevalence Rates'!AV150","v":0},{"$f":"'Population 2016'!AW150*'Prevalence Rates'!AW150","v":0},{"$f":"'Population 2016'!AX150*'Prevalence Rates'!AX150","v":0},{"$f":"'Population 2016'!AY150*'Prevalence Rates'!AY150","v":0},{"$f":"'Population 2016'!AZ150*'Prevalence Rates'!AZ150","v":0},{"$f":"'Population 2016'!BA150*'Prevalence Rates'!BA150","v":0},{"$f":"'Population 2016'!BB150*'Prevalence Rates'!BB150","v":0},{"$f":"'Population 2016'!BC150*'Prevalence Rates'!BC150","v":0},148]
[null,"Female 75-79",{"$f":"'Population 2016'!C151*'Prevalence Rates'!C151","v":0},{"$f":"'Population 2016'!D151*'Prevalence Rates'!D151","v":0},{"$f":"'Population 2016'!E151*'Prevalence Rates'!E151","v":0},{"$f":"'Population 2016'!F151*'Prevalence Rates'!F151","v":0},{"$f":"'Population 2016'!G151*'Prevalence Rates'!G151","v":0},{"$f":"'Population 2016'!H151*'Prevalence Rates'!H151","v":0},{"$f":"'Population 2016'!I151*'Prevalence Rates'!I151","v":0},{"$f":"'Population 2016'!J151*'Prevalence Rates'!J151","v":0},{"$f":"'Population 2016'!K151*'Prevalence Rates'!K151","v":0},{"$f":"'Population 2016'!L151*'Prevalence Rates'!L151","v":0},{"$f":"'Population 2016'!M151*'Prevalence Rates'!M151","v":0},{"$f":"'Population 2016'!N151*'Prevalence Rates'!N151","v":0},{"$f":"'Population 2016'!O151*'Prevalence Rates'!O151","v":0},{"$f":"'Population 2016'!P151*'Prevalence Rates'!P151","v":0},{"$f":"'Population 2016'!Q151*'Prevalence Rates'!Q151","v":0},{"$f":"'Population 2016'!R151*'Prevalence Rates'!R151","v":0},{"$f":"'Population 2016'!S151*'Prevalence Rates'!S151","v":0},{"$f":"'Population 2016'!T151*'Prevalence Rates'!T151","v":0},{"$f":"'Population 2016'!U151*'Prevalence Rates'!U151","v":0},{"$f":"'Population 2016'!V151*'Prevalence Rates'!V151","v":0},{"$f":"'Population 2016'!W151*'Prevalence Rates'!W151","v":0},{"$f":"'Population 2016'!X151*'Prevalence Rates'!X151","v":0},{"$f":"'Population 2016'!Y151*'Prevalence Rates'!Y151","v":0},{"$f":"'Population 2016'!Z151*'Prevalence Rates'!Z151","v":0},{"$f":"'Population 2016'!AA151*'Prevalence Rates'!AA151","v":0},{"$f":"'Population 2016'!AB151*'Prevalence Rates'!AB151","v":0},{"$f":"'Population 2016'!AC151*'Prevalence Rates'!AC151","v":0},{"$f":"'Population 2016'!AD151*'Prevalence Rates'!AD151","v":0},{"$f":"'Population 2016'!AE151*'Prevalence Rates'!AE151","v":0},{"$f":"'Population 2016'!AF151*'Prevalence Rates'!AF151","v":0},{"$f":"'Population 2016'!AG151*'Prevalence Rates'!AG151","v":0},{"$f":"'Population 2016'!AH151*'Prevalence Rates'!AH151","v":0},{"$f":"'Population 2016'!AI151*'Prevalence Rates'!AI151","v":0},{"$f":"'Population 2016'!AJ151*'Prevalence Rates'!AJ151","v":0},{"$f":"'Population 2016'!AK151*'Prevalence Rates'!AK151","v":0},{"$f":"'Population 2016'!AL151*'Prevalence Rates'!AL151","v":0},{"$f":"'Population 2016'!AM151*'Prevalence Rates'!AM151","v":0},{"$f":"'Population 2016'!AN151*'Prevalence Rates'!AN151","v":0},{"$f":"'Population 2016'!AO151*'Prevalence Rates'!AO151","v":0},{"$f":"'Population 2016'!AP151*'Prevalence Rates'!AP151","v":0},{"$f":"'Population 2016'!AQ151*'Prevalence Rates'!AQ151","v":0},{"$f":"'Population 2016'!AR151*'Prevalence Rates'!AR151","v":0},{"$f":"'Population 2016'!AS151*'Prevalence Rates'!AS151","v":0},{"$f":"'Population 2016'!AT151*'Prevalence Rates'!AT151","v":0},{"$f":"'Population 2016'!AU151*'Prevalence Rates'!AU151","v":0},{"$f":"'Population 2016'!AV151*'Prevalence Rates'!AV151","v":0},{"$f":"'Population 2016'!AW151*'Prevalence Rates'!AW151","v":0},{"$f":"'Population 2016'!AX151*'Prevalence Rates'!AX151","v":0},{"$f":"'Population 2016'!AY151*'Prevalence Rates'!AY151","v":0},{"$f":"'Population 2016'!AZ151*'Prevalence Rates'!AZ151","v":0},{"$f":"'Population 2016'!BA151*'Prevalence Rates'!BA151","v":0},{"$f":"'Population 2016'!BB151*'Prevalence Rates'!BB151","v":0},{"$f":"'Population 2016'!BC151*'Prevalence Rates'!BC151","v":0},149]
[null,"Female 80-84",{"$f":"'Population 2016'!C152*'Prevalence Rates'!C152","v":0},{"$f":"'Population 2016'!D152*'Prevalence Rates'!D152","v":0},{"$f":"'Population 2016'!E152*'Prevalence Rates'!E152","v":0},{"$f":"'Population 2016'!F152*'Prevalence Rates'!F152","v":0},{"$f":"'Population 2016'!G152*'Prevalence Rates'!G152","v":0},{"$f":"'Population 2016'!H152*'Prevalence Rates'!H152","v":0},{"$f":"'Population 2016'!I152*'Prevalence Rates'!I152","v":0},{"$f":"'Population 2016'!J152*'Prevalence Rates'!J152","v":0},{"$f":"'Population 2016'!K152*'Prevalence Rates'!K152","v":0},{"$f":"'Population 2016'!L152*'Prevalence Rates'!L152","v":0},{"$f":"'Population 2016'!M152*'Prevalence Rates'!M152","v":0},{"$f":"'Population 2016'!N152*'Prevalence Rates'!N152","v":0},{"$f":"'Population 2016'!O152*'Prevalence Rates'!O152","v":0},{"$f":"'Population 2016'!P152*'Prevalence Rates'!P152","v":0},{"$f":"'Population 2016'!Q152*'Prevalence Rates'!Q152","v":0},{"$f":"'Population 2016'!R152*'Prevalence Rates'!R152","v":0},{"$f":"'Population 2016'!S152*'Prevalence Rates'!S152","v":0},{"$f":"'Population 2016'!T152*'Prevalence Rates'!T152","v":0},{"$f":"'Population 2016'!U152*'Prevalence Rates'!U152","v":0},{"$f":"'Population 2016'!V152*'Prevalence Rates'!V152","v":0},{"$f":"'Population 2016'!W152*'Prevalence Rates'!W152","v":0},{"$f":"'Population 2016'!X152*'Prevalence Rates'!X152","v":0},{"$f":"'Population 2016'!Y152*'Prevalence Rates'!Y152","v":0},{"$f":"'Population 2016'!Z152*'Prevalence Rates'!Z152","v":0},{"$f":"'Population 2016'!AA152*'Prevalence Rates'!AA152","v":0},{"$f":"'Population 2016'!AB152*'Prevalence Rates'!AB152","v":0},{"$f":"'Population 2016'!AC152*'Prevalence Rates'!AC152","v":0},{"$f":"'Population 2016'!AD152*'Prevalence Rates'!AD152","v":0},{"$f":"'Population 2016'!AE152*'Prevalence Rates'!AE152","v":0},{"$f":"'Population 2016'!AF152*'Prevalence Rates'!AF152","v":0},{"$f":"'Population 2016'!AG152*'Prevalence Rates'!AG152","v":0},{"$f":"'Population 2016'!AH152*'Prevalence Rates'!AH152","v":0},{"$f":"'Population 2016'!AI152*'Prevalence Rates'!AI152","v":0},{"$f":"'Population 2016'!AJ152*'Prevalence Rates'!AJ152","v":0},{"$f":"'Population 2016'!AK152*'Prevalence Rates'!AK152","v":0},{"$f":"'Population 2016'!AL152*'Prevalence Rates'!AL152","v":0},{"$f":"'Population 2016'!AM152*'Prevalence Rates'!AM152","v":0},{"$f":"'Population 2016'!AN152*'Prevalence Rates'!AN152","v":0},{"$f":"'Population 2016'!AO152*'Prevalence Rates'!AO152","v":0},{"$f":"'Population 2016'!AP152*'Prevalence Rates'!AP152","v":0},{"$f":"'Population 2016'!AQ152*'Prevalence Rates'!AQ152","v":0},{"$f":"'Population 2016'!AR152*'Prevalence Rates'!AR152","v":0},{"$f":"'Population 2016'!AS152*'Prevalence Rates'!AS152","v":0},{"$f":"'Population 2016'!AT152*'Prevalence Rates'!AT152","v":0},{"$f":"'Population 2016'!AU152*'Prevalence Rates'!AU152","v":0},{"$f":"'Population 2016'!AV152*'Prevalence Rates'!AV152","v":0},{"$f":"'Population 2016'!AW152*'Prevalence Rates'!AW152","v":0},{"$f":"'Population 2016'!AX152*'Prevalence Rates'!AX152","v":0},{"$f":"'Population 2016'!AY152*'Prevalence Rates'!AY152","v":0},{"$f":"'Population 2016'!AZ152*'Prevalence Rates'!AZ152","v":0},{"$f":"'Population 2016'!BA152*'Prevalence Rates'!BA152","v":0},{"$f":"'Population 2016'!BB152*'Prevalence Rates'!BB152","v":0},{"$f":"'Population 2016'!BC152*'Prevalence Rates'!BC152","v":0},150]
[null,"Female 85-89",{"$f":"'Population 2016'!C153*'Prevalence Rates'!C153","v":0},{"$f":"'Population 2016'!D153*'Prevalence Rates'!D153","v":0},{"$f":"'Population 2016'!E153*'Prevalence Rates'!E153","v":0},{"$f":"'Population 2016'!F153*'Prevalence Rates'!F153","v":0},{"$f":"'Population 2016'!G153*'Prevalence Rates'!G153","v":0},{"$f":"'Population 2016'!H153*'Prevalence Rates'!H153","v":0},{"$f":"'Population 2016'!I153*'Prevalence Rates'!I153","v":0},{"$f":"'Population 2016'!J153*'Prevalence Rates'!J153","v":0},{"$f":"'Population 2016'!K153*'Prevalence Rates'!K153","v":0},{"$f":"'Population 2016'!L153*'Prevalence Rates'!L153","v":0},{"$f":"'Population 2016'!M153*'Prevalence Rates'!M153","v":0},{"$f":"'Population 2016'!N153*'Prevalence Rates'!N153","v":0},{"$f":"'Population 2016'!O153*'Prevalence Rates'!O153","v":0},{"$f":"'Population 2016'!P153*'Prevalence Rates'!P153","v":0},{"$f":"'Population 2016'!Q153*'Prevalence Rates'!Q153","v":0},{"$f":"'Population 2016'!R153*'Prevalence Rates'!R153","v":0},{"$f":"'Population 2016'!S153*'Prevalence Rates'!S153","v":0},{"$f":"'Population 2016'!T153*'Prevalence Rates'!T153","v":0},{"$f":"'Population 2016'!U153*'Prevalence Rates'!U153","v":0},{"$f":"'Population 2016'!V153*'Prevalence Rates'!V153","v":0},{"$f":"'Population 2016'!W153*'Prevalence Rates'!W153","v":0},{"$f":"'Population 2016'!X153*'Prevalence Rates'!X153","v":0},{"$f":"'Population 2016'!Y153*'Prevalence Rates'!Y153","v":0},{"$f":"'Population 2016'!Z153*'Prevalence Rates'!Z153","v":0},{"$f":"'Population 2016'!AA153*'Prevalence Rates'!AA153","v":0},{"$f":"'Population 2016'!AB153*'Prevalence Rates'!AB153","v":0},{"$f":"'Population 2016'!AC153*'Prevalence Rates'!AC153","v":0},{"$f":"'Population 2016'!AD153*'Prevalence Rates'!AD153","v":0},{"$f":"'Population 2016'!AE153*'Prevalence Rates'!AE153","v":0},{"$f":"'Population 2016'!AF153*'Prevalence Rates'!AF153","v":0},{"$f":"'Population 2016'!AG153*'Prevalence Rates'!AG153","v":0},{"$f":"'Population 2016'!AH153*'Prevalence Rates'!AH153","v":0},{"$f":"'Population 2016'!AI153*'Prevalence Rates'!AI153","v":0},{"$f":"'Population 2016'!AJ153*'Prevalence Rates'!AJ153","v":0},{"$f":"'Population 2016'!AK153*'Prevalence Rates'!AK153","v":0},{"$f":"'Population 2016'!AL153*'Prevalence Rates'!AL153","v":0},{"$f":"'Population 2016'!AM153*'Prevalence Rates'!AM153","v":0},{"$f":"'Population 2016'!AN153*'Prevalence Rates'!AN153","v":0},{"$f":"'Population 2016'!AO153*'Prevalence Rates'!AO153","v":0},{"$f":"'Population 2016'!AP153*'Prevalence Rates'!AP153","v":0},{"$f":"'Population 2016'!AQ153*'Prevalence Rates'!AQ153","v":0},{"$f":"'Population 2016'!AR153*'Prevalence Rates'!AR153","v":0},{"$f":"'Population 2016'!AS153*'Prevalence Rates'!AS153","v":0},{"$f":"'Population 2016'!AT153*'Prevalence Rates'!AT153","v":0},{"$f":"'Population 2016'!AU153*'Prevalence Rates'!AU153","v":0},{"$f":"'Population 2016'!AV153*'Prevalence Rates'!AV153","v":0},{"$f":"'Population 2016'!AW153*'Prevalence Rates'!AW153","v":0},{"$f":"'Population 2016'!AX153*'Prevalence Rates'!AX153","v":0},{"$f":"'Population 2016'!AY153*'Prevalence Rates'!AY153","v":0},{"$f":"'Population 2016'!AZ153*'Prevalence Rates'!AZ153","v":0},{"$f":"'Population 2016'!BA153*'Prevalence Rates'!BA153","v":0},{"$f":"'Population 2016'!BB153*'Prevalence Rates'!BB153","v":0},{"$f":"'Population 2016'!BC153*'Prevalence Rates'!BC153","v":0},151]
[null,"Female 90+",{"$f":"'Population 2016'!C154*'Prevalence Rates'!C154","v":0},{"$f":"'Population 2016'!D154*'Prevalence Rates'!D154","v":0},{"$f":"'Population 2016'!E154*'Prevalence Rates'!E154","v":0},{"$f":"'Population 2016'!F154*'Prevalence Rates'!F154","v":0},{"$f":"'Population 2016'!G154*'Prevalence Rates'!G154","v":0},{"$f":"'Population 2016'!H154*'Prevalence Rates'!H154","v":0},{"$f":"'Population 2016'!I154*'Prevalence Rates'!I154","v":0},{"$f":"'Population 2016'!J154*'Prevalence Rates'!J154","v":0},{"$f":"'Population 2016'!K154*'Prevalence Rates'!K154","v":0},{"$f":"'Population 2016'!L154*'Prevalence Rates'!L154","v":0},{"$f":"'Population 2016'!M154*'Prevalence Rates'!M154","v":0},{"$f":"'Population 2016'!N154*'Prevalence Rates'!N154","v":0},{"$f":"'Population 2016'!O154*'Prevalence Rates'!O154","v":0},{"$f":"'Population 2016'!P154*'Prevalence Rates'!P154","v":0},{"$f":"'Population 2016'!Q154*'Prevalence Rates'!Q154","v":0},{"$f":"'Population 2016'!R154*'Prevalence Rates'!R154","v":0},{"$f":"'Population 2016'!S154*'Prevalence Rates'!S154","v":0},{"$f":"'Population 2016'!T154*'Prevalence Rates'!T154","v":0},{"$f":"'Population 2016'!U154*'Prevalence Rates'!U154","v":0},{"$f":"'Population 2016'!V154*'Prevalence Rates'!V154","v":0},{"$f":"'Population 2016'!W154*'Prevalence Rates'!W154","v":0},{"$f":"'Population 2016'!X154*'Prevalence Rates'!X154","v":0},{"$f":"'Population 2016'!Y154*'Prevalence Rates'!Y154","v":0},{"$f":"'Population 2016'!Z154*'Prevalence Rates'!Z154","v":0},{"$f":"'Population 2016'!AA154*'Prevalence Rates'!AA154","v":0},{"$f":"'Population 2016'!AB154*'Prevalence Rates'!AB154","v":0},{"$f":"'Population 2016'!AC154*'Prevalence Rates'!AC154","v":0},{"$f":"'Population 2016'!AD154*'Prevalence Rates'!AD154","v":0},{"$f":"'Population 2016'!AE154*'Prevalence Rates'!AE154","v":0},{"$f":"'Population 2016'!AF154*'Prevalence Rates'!AF154","v":0},{"$f":"'Population 2016'!AG154*'Prevalence Rates'!AG154","v":0},{"$f":"'Population 2016'!AH154*'Prevalence Rates'!AH154","v":0},{"$f":"'Population 2016'!AI154*'Prevalence Rates'!AI154","v":0},{"$f":"'Population 2016'!AJ154*'Prevalence Rates'!AJ154","v":0},{"$f":"'Population 2016'!AK154*'Prevalence Rates'!AK154","v":0},{"$f":"'Population 2016'!AL154*'Prevalence Rates'!AL154","v":0},{"$f":"'Population 2016'!AM154*'Prevalence Rates'!AM154","v":0},{"$f":"'Population 2016'!AN154*'Prevalence Rates'!AN154","v":0},{"$f":"'Population 2016'!AO154*'Prevalence Rates'!AO154","v":0},{"$f":"'Population 2016'!AP154*'Prevalence Rates'!AP154","v":0},{"$f":"'Population 2016'!AQ154*'Prevalence Rates'!AQ154","v":0},{"$f":"'Population 2016'!AR154*'Prevalence Rates'!AR154","v":0},{"$f":"'Population 2016'!AS154*'Prevalence Rates'!AS154","v":0},{"$f":"'Population 2016'!AT154*'Prevalence Rates'!AT154","v":0},{"$f":"'Population 2016'!AU154*'Prevalence Rates'!AU154","v":0},{"$f":"'Population 2016'!AV154*'Prevalence Rates'!AV154","v":0},{"$f":"'Population 2016'!AW154*'Prevalence Rates'!AW154","v":0},{"$f":"'Population 2016'!AX154*'Prevalence Rates'!AX154","v":0},{"$f":"'Population 2016'!AY154*'Prevalence Rates'!AY154","v":0},{"$f":"'Population 2016'!AZ154*'Prevalence Rates'!AZ154","v":0},{"$f":"'Population 2016'!BA154*'Prevalence Rates'!BA154","v":0},{"$f":"'Population 2016'!BB154*'Prevalence Rates'!BB154","v":0},{"$f":"'Population 2016'!BC154*'Prevalence Rates'!BC154","v":0},152]
[null,"Male 0-4",{"$f":"'Population 2016'!C155*'Prevalence Rates'!C155","v":0},{"$f":"'Population 2016'!D155*'Prevalence Rates'!D155","v":0},{"$f":"'Population 2016'!E155*'Prevalence Rates'!E155","v":0},{"$f":"'Population 2016'!F155*'Prevalence Rates'!F155","v":0},{"$f":"'Population 2016'!G155*'Prevalence Rates'!G155","v":0},{"$f":"'Population 2016'!H155*'Prevalence Rates'!H155","v":0},{"$f":"'Population 2016'!I155*'Prevalence Rates'!I155","v":0},{"$f":"'Population 2016'!J155*'Prevalence Rates'!J155","v":0},{"$f":"'Population 2016'!K155*'Prevalence Rates'!K155","v":0},{"$f":"'Population 2016'!L155*'Prevalence Rates'!L155","v":0},{"$f":"'Population 2016'!M155*'Prevalence Rates'!M155","v":0},{"$f":"'Population 2016'!N155*'Prevalence Rates'!N155","v":0},{"$f":"'Population 2016'!O155*'Prevalence Rates'!O155","v":0},{"$f":"'Population 2016'!P155*'Prevalence Rates'!P155","v":0},{"$f":"'Population 2016'!Q155*'Prevalence Rates'!Q155","v":0},{"$f":"'Population 2016'!R155*'Prevalence Rates'!R155","v":0},{"$f":"'Population 2016'!S155*'Prevalence Rates'!S155","v":0},{"$f":"'Population 2016'!T155*'Prevalence Rates'!T155","v":0},{"$f":"'Population 2016'!U155*'Prevalence Rates'!U155","v":0},{"$f":"'Population 2016'!V155*'Prevalence Rates'!V155","v":0},{"$f":"'Population 2016'!W155*'Prevalence Rates'!W155","v":0},{"$f":"'Population 2016'!X155*'Prevalence Rates'!X155","v":0},{"$f":"'Population 2016'!Y155*'Prevalence Rates'!Y155","v":0},{"$f":"'Population 2016'!Z155*'Prevalence Rates'!Z155","v":0},{"$f":"'Population 2016'!AA155*'Prevalence Rates'!AA155","v":0},{"$f":"'Population 2016'!AB155*'Prevalence Rates'!AB155","v":0},{"$f":"'Population 2016'!AC155*'Prevalence Rates'!AC155","v":0},{"$f":"'Population 2016'!AD155*'Prevalence Rates'!AD155","v":0},{"$f":"'Population 2016'!AE155*'Prevalence Rates'!AE155","v":0},{"$f":"'Population 2016'!AF155*'Prevalence Rates'!AF155","v":0},{"$f":"'Population 2016'!AG155*'Prevalence Rates'!AG155","v":0},{"$f":"'Population 2016'!AH155*'Prevalence Rates'!AH155","v":0},{"$f":"'Population 2016'!AI155*'Prevalence Rates'!AI155","v":0},{"$f":"'Population 2016'!AJ155*'Prevalence Rates'!AJ155","v":0},{"$f":"'Population 2016'!AK155*'Prevalence Rates'!AK155","v":0},{"$f":"'Population 2016'!AL155*'Prevalence Rates'!AL155","v":0},{"$f":"'Population 2016'!AM155*'Prevalence Rates'!AM155","v":0},{"$f":"'Population 2016'!AN155*'Prevalence Rates'!AN155","v":0},{"$f":"'Population 2016'!AO155*'Prevalence Rates'!AO155","v":0},{"$f":"'Population 2016'!AP155*'Prevalence Rates'!AP155","v":0},{"$f":"'Population 2016'!AQ155*'Prevalence Rates'!AQ155","v":0},{"$f":"'Population 2016'!AR155*'Prevalence Rates'!AR155","v":0},{"$f":"'Population 2016'!AS155*'Prevalence Rates'!AS155","v":0},{"$f":"'Population 2016'!AT155*'Prevalence Rates'!AT155","v":0},{"$f":"'Population 2016'!AU155*'Prevalence Rates'!AU155","v":0},{"$f":"'Population 2016'!AV155*'Prevalence Rates'!AV155","v":0},{"$f":"'Population 2016'!AW155*'Prevalence Rates'!AW155","v":0},{"$f":"'Population 2016'!AX155*'Prevalence Rates'!AX155","v":0},{"$f":"'Population 2016'!AY155*'Prevalence Rates'!AY155","v":0},{"$f":"'Population 2016'!AZ155*'Prevalence Rates'!AZ155","v":0},{"$f":"'Population 2016'!BA155*'Prevalence Rates'!BA155","v":0},{"$f":"'Population 2016'!BB155*'Prevalence Rates'!BB155","v":0},{"$f":"'Population 2016'!BC155*'Prevalence Rates'!BC155","v":0},153]
[null,"Male 5-9",{"$f":"'Population 2016'!C156*'Prevalence Rates'!C156","v":0},{"$f":"'Population 2016'!D156*'Prevalence Rates'!D156","v":0},{"$f":"'Population 2016'!E156*'Prevalence Rates'!E156","v":0},{"$f":"'Population 2016'!F156*'Prevalence Rates'!F156","v":0},{"$f":"'Population 2016'!G156*'Prevalence Rates'!G156","v":0},{"$f":"'Population 2016'!H156*'Prevalence Rates'!H156","v":0},{"$f":"'Population 2016'!I156*'Prevalence Rates'!I156","v":0},{"$f":"'Population 2016'!J156*'Prevalence Rates'!J156","v":0},{"$f":"'Population 2016'!K156*'Prevalence Rates'!K156","v":0},{"$f":"'Population 2016'!L156*'Prevalence Rates'!L156","v":0},{"$f":"'Population 2016'!M156*'Prevalence Rates'!M156","v":0},{"$f":"'Population 2016'!N156*'Prevalence Rates'!N156","v":0},{"$f":"'Population 2016'!O156*'Prevalence Rates'!O156","v":0},{"$f":"'Population 2016'!P156*'Prevalence Rates'!P156","v":0},{"$f":"'Population 2016'!Q156*'Prevalence Rates'!Q156","v":0},{"$f":"'Population 2016'!R156*'Prevalence Rates'!R156","v":0},{"$f":"'Population 2016'!S156*'Prevalence Rates'!S156","v":0},{"$f":"'Population 2016'!T156*'Prevalence Rates'!T156","v":0},{"$f":"'Population 2016'!U156*'Prevalence Rates'!U156","v":0},{"$f":"'Population 2016'!V156*'Prevalence Rates'!V156","v":0},{"$f":"'Population 2016'!W156*'Prevalence Rates'!W156","v":0},{"$f":"'Population 2016'!X156*'Prevalence Rates'!X156","v":0},{"$f":"'Population 2016'!Y156*'Prevalence Rates'!Y156","v":0},{"$f":"'Population 2016'!Z156*'Prevalence Rates'!Z156","v":0},{"$f":"'Population 2016'!AA156*'Prevalence Rates'!AA156","v":0},{"$f":"'Population 2016'!AB156*'Prevalence Rates'!AB156","v":0},{"$f":"'Population 2016'!AC156*'Prevalence Rates'!AC156","v":0},{"$f":"'Population 2016'!AD156*'Prevalence Rates'!AD156","v":0},{"$f":"'Population 2016'!AE156*'Prevalence Rates'!AE156","v":0},{"$f":"'Population 2016'!AF156*'Prevalence Rates'!AF156","v":0},{"$f":"'Population 2016'!AG156*'Prevalence Rates'!AG156","v":0},{"$f":"'Population 2016'!AH156*'Prevalence Rates'!AH156","v":0},{"$f":"'Population 2016'!AI156*'Prevalence Rates'!AI156","v":0},{"$f":"'Population 2016'!AJ156*'Prevalence Rates'!AJ156","v":0},{"$f":"'Population 2016'!AK156*'Prevalence Rates'!AK156","v":0},{"$f":"'Population 2016'!AL156*'Prevalence Rates'!AL156","v":0},{"$f":"'Population 2016'!AM156*'Prevalence Rates'!AM156","v":0},{"$f":"'Population 2016'!AN156*'Prevalence Rates'!AN156","v":0},{"$f":"'Population 2016'!AO156*'Prevalence Rates'!AO156","v":0},{"$f":"'Population 2016'!AP156*'Prevalence Rates'!AP156","v":0},{"$f":"'Population 2016'!AQ156*'Prevalence Rates'!AQ156","v":0},{"$f":"'Population 2016'!AR156*'Prevalence Rates'!AR156","v":0},{"$f":"'Population 2016'!AS156*'Prevalence Rates'!AS156","v":0},{"$f":"'Population 2016'!AT156*'Prevalence Rates'!AT156","v":0},{"$f":"'Population 2016'!AU156*'Prevalence Rates'!AU156","v":0},{"$f":"'Population 2016'!AV156*'Prevalence Rates'!AV156","v":0},{"$f":"'Population 2016'!AW156*'Prevalence Rates'!AW156","v":0},{"$f":"'Population 2016'!AX156*'Prevalence Rates'!AX156","v":0},{"$f":"'Population 2016'!AY156*'Prevalence Rates'!AY156","v":0},{"$f":"'Population 2016'!AZ156*'Prevalence Rates'!AZ156","v":0},{"$f":"'Population 2016'!BA156*'Prevalence Rates'!BA156","v":0},{"$f":"'Population 2016'!BB156*'Prevalence Rates'!BB156","v":0},{"$f":"'Population 2016'!BC156*'Prevalence Rates'!BC156","v":0},154]
[null,"Male 10-15",{"$f":"'Population 2016'!C157*'Prevalence Rates'!C157","v":0},{"$f":"'Population 2016'!D157*'Prevalence Rates'!D157","v":0},{"$f":"'Population 2016'!E157*'Prevalence Rates'!E157","v":0},{"$f":"'Population 2016'!F157*'Prevalence Rates'!F157","v":0},{"$f":"'Population 2016'!G157*'Prevalence Rates'!G157","v":0},{"$f":"'Population 2016'!H157*'Prevalence Rates'!H157","v":0},{"$f":"'Population 2016'!I157*'Prevalence Rates'!I157","v":0},{"$f":"'Population 2016'!J157*'Prevalence Rates'!J157","v":0},{"$f":"'Population 2016'!K157*'Prevalence Rates'!K157","v":0},{"$f":"'Population 2016'!L157*'Prevalence Rates'!L157","v":0},{"$f":"'Population 2016'!M157*'Prevalence Rates'!M157","v":0},{"$f":"'Population 2016'!N157*'Prevalence Rates'!N157","v":0},{"$f":"'Population 2016'!O157*'Prevalence Rates'!O157","v":0},{"$f":"'Population 2016'!P157*'Prevalence Rates'!P157","v":0},{"$f":"'Population 2016'!Q157*'Prevalence Rates'!Q157","v":0},{"$f":"'Population 2016'!R157*'Prevalence Rates'!R157","v":0},{"$f":"'Population 2016'!S157*'Prevalence Rates'!S157","v":0},{"$f":"'Population 2016'!T157*'Prevalence Rates'!T157","v":0},{"$f":"'Population 2016'!U157*'Prevalence Rates'!U157","v":0},{"$f":"'Population 2016'!V157*'Prevalence Rates'!V157","v":0},{"$f":"'Population 2016'!W157*'Prevalence Rates'!W157","v":0},{"$f":"'Population 2016'!X157*'Prevalence Rates'!X157","v":0},{"$f":"'Population 2016'!Y157*'Prevalence Rates'!Y157","v":0},{"$f":"'Population 2016'!Z157*'Prevalence Rates'!Z157","v":0},{"$f":"'Population 2016'!AA157*'Prevalence Rates'!AA157","v":0},{"$f":"'Population 2016'!AB157*'Prevalence Rates'!AB157","v":0},{"$f":"'Population 2016'!AC157*'Prevalence Rates'!AC157","v":0},{"$f":"'Population 2016'!AD157*'Prevalence Rates'!AD157","v":0},{"$f":"'Population 2016'!AE157*'Prevalence Rates'!AE157","v":0},{"$f":"'Population 2016'!AF157*'Prevalence Rates'!AF157","v":0},{"$f":"'Population 2016'!AG157*'Prevalence Rates'!AG157","v":0},{"$f":"'Population 2016'!AH157*'Prevalence Rates'!AH157","v":0},{"$f":"'Population 2016'!AI157*'Prevalence Rates'!AI157","v":0},{"$f":"'Population 2016'!AJ157*'Prevalence Rates'!AJ157","v":0},{"$f":"'Population 2016'!AK157*'Prevalence Rates'!AK157","v":0},{"$f":"'Population 2016'!AL157*'Prevalence Rates'!AL157","v":0},{"$f":"'Population 2016'!AM157*'Prevalence Rates'!AM157","v":0},{"$f":"'Population 2016'!AN157*'Prevalence Rates'!AN157","v":0},{"$f":"'Population 2016'!AO157*'Prevalence Rates'!AO157","v":0},{"$f":"'Population 2016'!AP157*'Prevalence Rates'!AP157","v":0},{"$f":"'Population 2016'!AQ157*'Prevalence Rates'!AQ157","v":0},{"$f":"'Population 2016'!AR157*'Prevalence Rates'!AR157","v":0},{"$f":"'Population 2016'!AS157*'Prevalence Rates'!AS157","v":0},{"$f":"'Population 2016'!AT157*'Prevalence Rates'!AT157","v":0},{"$f":"'Population 2016'!AU157*'Prevalence Rates'!AU157","v":0},{"$f":"'Population 2016'!AV157*'Prevalence Rates'!AV157","v":0},{"$f":"'Population 2016'!AW157*'Prevalence Rates'!AW157","v":0},{"$f":"'Population 2016'!AX157*'Prevalence Rates'!AX157","v":0},{"$f":"'Population 2016'!AY157*'Prevalence Rates'!AY157","v":0},{"$f":"'Population 2016'!AZ157*'Prevalence Rates'!AZ157","v":0},{"$f":"'Population 2016'!BA157*'Prevalence Rates'!BA157","v":0},{"$f":"'Population 2016'!BB157*'Prevalence Rates'!BB157","v":0},{"$f":"'Population 2016'!BC157*'Prevalence Rates'!BC157","v":0},155]
[null,"Male 16-19",{"$f":"'Population 2016'!C158*'Prevalence Rates'!C158","v":94.173773074385451},{"$f":"'Population 2016'!D158*'Prevalence Rates'!D158","v":233.36744703015739},{"$f":"'Population 2016'!E158*'Prevalence Rates'!E158","v":124.45252061126007},{"$f":"'Population 2016'!F158*'Prevalence Rates'!F158","v":90.405198779514023},{"$f":"'Population 2016'!G158*'Prevalence Rates'!G158","v":84.564659668193073},{"$f":"'Population 2016'!H158*'Prevalence Rates'!H158","v":254.46661066289238},{"$f":"'Population 2016'!I158*'Prevalence Rates'!I158","v":99.288845998565236},{"$f":"'Population 2016'!J158*'Prevalence Rates'!J158","v":63.877492437464092},{"$f":"'Population 2016'!K158*'Prevalence Rates'!K158","v":39.230232378801979},{"$f":"'Population 2016'!L158*'Prevalence Rates'!L158","v":130.07691137926545},{"$f":"'Population 2016'!M158*'Prevalence Rates'!M158","v":130.07691137926545},{"$f":"'Population 2016'!N158*'Prevalence Rates'!N158","v":79.465667904865228},{"$f":"'Population 2016'!O158*'Prevalence Rates'!O158","v":91.682939619042301},{"$f":"'Population 2016'!P158*'Prevalence Rates'!P158","v":16.815222817141887},{"$f":"'Population 2016'!Q158*'Prevalence Rates'!Q158","v":67.110749794052552},{"$f":"'Population 2016'!R158*'Prevalence Rates'!R158","v":23.975273987170596},{"$f":"'Population 2016'!S158*'Prevalence Rates'!S158","v":688.13308027077721},{"$f":"'Population 2016'!T158*'Prevalence Rates'!T158","v":157.49337137509599},{"$f":"'Population 2016'!U158*'Prevalence Rates'!U158","v":39.218216879833662},{"$f":"'Population 2016'!V158*'Prevalence Rates'!V158","v":67.611768196929674},{"$f":"'Population 2016'!W158*'Prevalence Rates'!W158","v":217.22636027499291},{"$f":"'Population 2016'!X158*'Prevalence Rates'!X158","v":217.22636027499291},{"$f":"'Population 2016'!Y158*'Prevalence Rates'!Y158","v":131.84586029479479},{"$f":"'Population 2016'!Z158*'Prevalence Rates'!Z158","v":266.44360169907185},{"$f":"'Population 2016'!AA158*'Prevalence Rates'!AA158","v":861.34099467473277},{"$f":"'Population 2016'!AB158*'Prevalence Rates'!AB158","v":299.45039688305013},{"$f":"'Population 2016'!AC158*'Prevalence Rates'!AC158","v":492.93735473808624},{"$f":"'Population 2016'!AD158*'Prevalence Rates'!AD158","v":324.49910960820381},{"$f":"'Population 2016'!AE158*'Prevalence Rates'!AE158","v":234.7047955922001},{"$f":"'Population 2016'!AF158*'Prevalence Rates'!AF158","v":46.504682270105036},{"$f":"'Population 2016'!AG158*'Prevalence Rates'!AG158","v":234.7047955922001},{"$f":"'Population 2016'!AH158*'Prevalence Rates'!AH158","v":367.0760707061113},{"$f":"'Population 2016'!AI158*'Prevalence Rates'!AI158","v":375.52941611718455},{"$f":"'Population 2016'!AJ158*'Prevalence Rates'!AJ158","v":45.608135365174597},{"$f":"'Population 2016'!AK158*'Prevalence Rates'!AK158","v":63.912221357704603},{"$f":"'Population 2016'!AL158*'Prevalence Rates'!AL158","v":68.743804484820771},{"$f":"'Population 2016'!AM158*'Prevalence Rates'!AM158","v":195.71321557299595},{"$f":"'Population 2016'!AN158*'Prevalence Rates'!AN158","v":16.884354157849074},{"$f":"'Population 2016'!AO158*'Prevalence Rates'!AO158","v":16.884354157849074},{"$f":"'Population 2016'!AP158*'Prevalence Rates'!AP158","v":114.90521592382068},{"$f":"'Population 2016'!AQ158*'Prevalence Rates'!AQ158","v":106.40490929355974},{"$f":"'Population 2016'!AR158*'Prevalence Rates'!AR158","v":3018.1115459882581},{"$f":"'Population 2016'!AS158*'Prevalence Rates'!AS158","v":99.288845998565236},{"$f":"'Population 2016'!AT158*'Prevalence Rates'!AT158","v":17.546725969146593},{"$f":"'Population 2016'!AU158*'Prevalence Rates'!AU158","v":17.546725969146593},{"$f":"'Population 2016'!AV158*'Prevalence Rates'!AV158","v":88.361959233496805},{"$f":"'Population 2016'!AW158*'Prevalence Rates'!AW158","v":171.25106583649375},{"$f":"'Population 2016'!AX158*'Prevalence Rates'!AX158","v":27.403182169206289},{"$f":"'Population 2016'!AY158*'Prevalence Rates'!AY158","v":539.49596676248245},{"$f":"'Population 2016'!AZ158*'Prevalence Rates'!AZ158","v":324.63746808492709},{"$f":"'Population 2016'!BA158*'Prevalence Rates'!BA158","v":39.88387016158196},{"$f":"'Population 2016'!BB158*'Prevalence Rates'!BB158","v":105.95238918510596},{"$f":"'Population 2016'!BC158*'Prevalence Rates'!BC158","v":39.218216879833662},156]
[null,"Male 20-24",{"$f":"'Population 2016'!C159*'Prevalence Rates'!C159","v":307.31990567085398},{"$f":"'Population 2016'!D159*'Prevalence Rates'!D159","v":445.68013249681599},{"$f":"'Population 2016'!E159*'Prevalence Rates'!E159","v":153.04023435556738},{"$f":"'Population 2016'!F159*'Prevalence Rates'!F159","v":96.073849081364642},{"$f":"'Population 2016'!G159*'Prevalence Rates'!G159","v":85.29098189847204},{"$f":"'Population 2016'!H159*'Prevalence Rates'!H159","v":317.90703991402899},{"$f":"'Population 2016'!I159*'Prevalence Rates'!I159","v":117.29589111669293},{"$f":"'Population 2016'!J159*'Prevalence Rates'!J159","v":116.15223722515444},{"$f":"'Population 2016'!K159*'Prevalence Rates'!K159","v":52.969852935433089},{"$f":"'Population 2016'!L159*'Prevalence Rates'!L159","v":148.81315523687491},{"$f":"'Population 2016'!M159*'Prevalence Rates'!M159","v":148.81315523687491},{"$f":"'Population 2016'!N159*'Prevalence Rates'!N159","v":155.6628250475766},{"$f":"'Population 2016'!O159*'Prevalence Rates'!O159","v":124.01842800081207},{"$f":"'Population 2016'!P159*'Prevalence Rates'!P159","v":23.226026516177232},{"$f":"'Population 2016'!Q159*'Prevalence Rates'!Q159","v":82.587841316324358},{"$f":"'Population 2016'!R159*'Prevalence Rates'!R159","v":31.772111056169162},{"$f":"'Population 2016'!S159*'Prevalence Rates'!S159","v":1157.0171536342434},{"$f":"'Population 2016'!T159*'Prevalence Rates'!T159","v":441.48599527343845},{"$f":"'Population 2016'!U159*'Prevalence Rates'!U159","v":46.011923740907207},{"$f":"'Population 2016'!V159*'Prevalence Rates'!V159","v":89.644996171647975},{"$f":"'Population 2016'!W159*'Prevalence Rates'!W159","v":300.78505079140018},{"$f":"'Population 2016'!X159*'Prevalence Rates'!X159","v":300.78505079140018},{"$f":"'Population 2016'!Y159*'Prevalence Rates'!Y159","v":204.02509664247242},{"$f":"'Population 2016'!Z159*'Prevalence Rates'!Z159","v":614.09153380886369},{"$f":"'Population 2016'!AA159*'Prevalence Rates'!AA159","v":1357.3196801823419},{"$f":"'Population 2016'!AB159*'Prevalence Rates'!AB159","v":523.5407686368942},{"$f":"'Population 2016'!AC159*'Prevalence Rates'!AC159","v":905.54999190473268},{"$f":"'Population 2016'!AD159*'Prevalence Rates'!AD159","v":336.5463819409635},{"$f":"'Population 2016'!AE159*'Prevalence Rates'!AE159","v":246.64835323772033},{"$f":"'Population 2016'!AF159*'Prevalence Rates'!AF159","v":69.041566754848247},{"$f":"'Population 2016'!AG159*'Prevalence Rates'!AG159","v":246.64835323772033},{"$f":"'Population 2016'!AH159*'Prevalence Rates'!AH159","v":452.37706969085309},{"$f":"'Population 2016'!AI159*'Prevalence Rates'!AI159","v":738.30454895707919},{"$f":"'Population 2016'!AJ159*'Prevalence Rates'!AJ159","v":66.308915251795099},{"$f":"'Population 2016'!AK159*'Prevalence Rates'!AK159","v":77.451973817685115},{"$f":"'Population 2016'!AL159*'Prevalence Rates'!AL159","v":94.769526809361281},{"$f":"'Population 2016'!AM159*'Prevalence Rates'!AM159","v":229.8017985140894},{"$f":"'Population 2016'!AN159*'Prevalence Rates'!AN159","v":20.261224989418888},{"$f":"'Population 2016'!AO159*'Prevalence Rates'!AO159","v":20.261224989418888},{"$f":"'Population 2016'!AP159*'Prevalence Rates'!AP159","v":152.35264069205468},{"$f":"'Population 2016'!AQ159*'Prevalence Rates'!AQ159","v":117.11317405049122},{"$f":"'Population 2016'!AR159*'Prevalence Rates'!AR159","v":4483.4735812133067},{"$f":"'Population 2016'!AS159*'Prevalence Rates'!AS159","v":117.29589111669293},{"$f":"'Population 2016'!AT159*'Prevalence Rates'!AT159","v":24.061079322961497},{"$f":"'Population 2016'!AU159*'Prevalence Rates'!AU159","v":24.061079322961497},{"$f":"'Population 2016'!AV159*'Prevalence Rates'!AV159","v":95.923133597436959},{"$f":"'Population 2016'!AW159*'Prevalence Rates'!AW159","v":221.79434632630733},{"$f":"'Population 2016'!AX159*'Prevalence Rates'!AX159","v":59.265187199842757},{"$f":"'Population 2016'!AY159*'Prevalence Rates'!AY159","v":729.61223145956058},{"$f":"'Population 2016'!AZ159*'Prevalence Rates'!AZ159","v":430.86019455873162},{"$f":"'Population 2016'!BA159*'Prevalence Rates'!BA159","v":59.295031304861389},{"$f":"'Population 2016'!BB159*'Prevalence Rates'!BB159","v":147.39635094118483},{"$f":"'Population 2016'!BC159*'Prevalence Rates'!BC159","v":46.011923740907207},157]
[null,"Male 25-29",{"$f":"'Population 2016'!C160*'Prevalence Rates'!C160","v":315.62950478783068},{"$f":"'Population 2016'!D160*'Prevalence Rates'!D160","v":402.82609495209874},{"$f":"'Population 2016'!E160*'Prevalence Rates'!E160","v":113.1867504808444},{"$f":"'Population 2016'!F160*'Prevalence Rates'!F160","v":70.688219626154066},{"$f":"'Population 2016'!G160*'Prevalence Rates'!G160","v":63.625827372436795},{"$f":"'Population 2016'!H160*'Prevalence Rates'!H160","v":233.47419260043463},{"$f":"'Population 2016'!I160*'Prevalence Rates'!I160","v":89.822186775250842},{"$f":"'Population 2016'!J160*'Prevalence Rates'!J160","v":80.839496241241989},{"$f":"'Population 2016'!K160*'Prevalence Rates'!K160","v":34.109859616705243},{"$f":"'Population 2016'!L160*'Prevalence Rates'!L160","v":117.17716137352618},{"$f":"'Population 2016'!M160*'Prevalence Rates'!M160","v":117.17716137352618},{"$f":"'Population 2016'!N160*'Prevalence Rates'!N160","v":151.80644549753336},{"$f":"'Population 2016'!O160*'Prevalence Rates'!O160","v":102.46585272654261},{"$f":"'Population 2016'!P160*'Prevalence Rates'!P160","v":18.089639704335799},{"$f":"'Population 2016'!Q160*'Prevalence Rates'!Q160","v":64.254072458407023},{"$f":"'Population 2016'!R160*'Prevalence Rates'!R160","v":20.324176175082659},{"$f":"'Population 2016'!S160*'Prevalence Rates'!S160","v":1082.0693741631758},{"$f":"'Population 2016'!T160*'Prevalence Rates'!T160","v":503.52724680124152},{"$f":"'Population 2016'!U160*'Prevalence Rates'!U160","v":35.009719265599983},{"$f":"'Population 2016'!V160*'Prevalence Rates'!V160","v":69.089395488589744},{"$f":"'Population 2016'!W160*'Prevalence Rates'!W160","v":247.93179849947276},{"$f":"'Population 2016'!X160*'Prevalence Rates'!X160","v":247.93179849947276},{"$f":"'Population 2016'!Y160*'Prevalence Rates'!Y160","v":149.18246096092449},{"$f":"'Population 2016'!Z160*'Prevalence Rates'!Z160","v":522.88589189907123},{"$f":"'Population 2016'!AA160*'Prevalence Rates'!AA160","v":1113.2309248312342},{"$f":"'Population 2016'!AB160*'Prevalence Rates'!AB160","v":468.02904418962515},{"$f":"'Population 2016'!AC160*'Prevalence Rates'!AC160","v":762.79425434668588},{"$f":"'Population 2016'!AD160*'Prevalence Rates'!AD160","v":270.35524514675643},{"$f":"'Population 2016'!AE160*'Prevalence Rates'!AE160","v":204.68363282495363},{"$f":"'Population 2016'!AF160*'Prevalence Rates'!AF160","v":53.877651329608319},{"$f":"'Population 2016'!AG160*'Prevalence Rates'!AG160","v":204.68363282495363},{"$f":"'Population 2016'!AH160*'Prevalence Rates'!AH160","v":351.3559877574454},{"$f":"'Population 2016'!AI160*'Prevalence Rates'!AI160","v":740.21296619667555},{"$f":"'Population 2016'!AJ160*'Prevalence Rates'!AJ160","v":52.032821325699445},{"$f":"'Population 2016'!AK160*'Prevalence Rates'!AK160","v":65.233306516755334},{"$f":"'Population 2016'!AL160*'Prevalence Rates'!AL160","v":62.680316219556758},{"$f":"'Population 2016'!AM160*'Prevalence Rates'!AM160","v":180.14766085889067},{"$f":"'Population 2016'!AN160*'Prevalence Rates'!AN160","v":18.909200646220327},{"$f":"'Population 2016'!AO160*'Prevalence Rates'!AO160","v":18.909200646220327},{"$f":"'Population 2016'!AP160*'Prevalence Rates'!AP160","v":101.68594812775552},{"$f":"'Population 2016'!AQ160*'Prevalence Rates'!AQ160","v":102.74753721858174},{"$f":"'Population 2016'!AR160*'Prevalence Rates'!AR160","v":3783.1578947368421},{"$f":"'Population 2016'!AS160*'Prevalence Rates'!AS160","v":89.822186775250842},{"$f":"'Population 2016'!AT160*'Prevalence Rates'!AT160","v":17.563656311544516},{"$f":"'Population 2016'!AU160*'Prevalence Rates'!AU160","v":17.563656311544516},{"$f":"'Population 2016'!AV160*'Prevalence Rates'!AV160","v":67.601232518388699},{"$f":"'Population 2016'!AW160*'Prevalence Rates'!AW160","v":170.69570263155737},{"$f":"'Population 2016'!AX160*'Prevalence Rates'!AX160","v":42.663443239403009},{"$f":"'Population 2016'!AY160*'Prevalence Rates'!AY160","v":581.43608073921826},{"$f":"'Population 2016'!AZ160*'Prevalence Rates'!AZ160","v":333.75096630711056},{"$f":"'Population 2016'!BA160*'Prevalence Rates'!BA160","v":54.590206917179508},{"$f":"'Population 2016'!BB160*'Prevalence Rates'!BB160","v":119.68854688332797},{"$f":"'Population 2016'!BC160*'Prevalence Rates'!BC160","v":35.009719265599983},158]
[null,"Male 30-34",{"$f":"'Population 2016'!C161*'Prevalence Rates'!C161","v":239.33453873221626},{"$f":"'Population 2016'!D161*'Prevalence Rates'!D161","v":348.05176191665407},{"$f":"'Population 2016'!E161*'Prevalence Rates'!E161","v":119.9578928655921},{"$f":"'Population 2016'!F161*'Prevalence Rates'!F161","v":79.018753518023487},{"$f":"'Population 2016'!G161*'Prevalence Rates'!G161","v":60.277099615992753},{"$f":"'Population 2016'!H161*'Prevalence Rates'!H161","v":217.4328676872255},{"$f":"'Population 2016'!I161*'Prevalence Rates'!I161","v":91.581377069236169},{"$f":"'Population 2016'!J161*'Prevalence Rates'!J161","v":67.624355093248411},{"$f":"'Population 2016'!K161*'Prevalence Rates'!K161","v":32.913022437171726},{"$f":"'Population 2016'!L161*'Prevalence Rates'!L161","v":109.87029655783861},{"$f":"'Population 2016'!M161*'Prevalence Rates'!M161","v":109.87029655783861},{"$f":"'Population 2016'!N161*'Prevalence Rates'!N161","v":124.42042749018323},{"$f":"'Population 2016'!O161*'Prevalence Rates'!O161","v":86.802282882994689},{"$f":"'Population 2016'!P161*'Prevalence Rates'!P161","v":15.567526476327441},{"$f":"'Population 2016'!Q161*'Prevalence Rates'!Q161","v":56.504837589051405},{"$f":"'Population 2016'!R161*'Prevalence Rates'!R161","v":20.485479160599191},{"$f":"'Population 2016'!S161*'Prevalence Rates'!S161","v":1019.0014727973454},{"$f":"'Population 2016'!T161*'Prevalence Rates'!T161","v":445.66883463177999},{"$f":"'Population 2016'!U161*'Prevalence Rates'!U161","v":38.246627616190743},{"$f":"'Population 2016'!V161*'Prevalence Rates'!V161","v":69.268152009905634},{"$f":"'Population 2016'!W161*'Prevalence Rates'!W161","v":245.86931856449465},{"$f":"'Population 2016'!X161*'Prevalence Rates'!X161","v":245.86931856449465},{"$f":"'Population 2016'!Y161*'Prevalence Rates'!Y161","v":137.10213314532263},{"$f":"'Population 2016'!Z161*'Prevalence Rates'!Z161","v":482.20148355791991},{"$f":"'Population 2016'!AA161*'Prevalence Rates'!AA161","v":1097.75893822997},{"$f":"'Population 2016'!AB161*'Prevalence Rates'!AB161","v":424.80736464704762},{"$f":"'Population 2016'!AC161*'Prevalence Rates'!AC161","v":711.91243493951265},{"$f":"'Population 2016'!AD161*'Prevalence Rates'!AD161","v":284.39828127452216},{"$f":"'Population 2016'!AE161*'Prevalence Rates'!AE161","v":224.22109356624622},{"$f":"'Population 2016'!AF161*'Prevalence Rates'!AF161","v":47.809014778745848},{"$f":"'Population 2016'!AG161*'Prevalence Rates'!AG161","v":224.22109356624622},{"$f":"'Population 2016'!AH161*'Prevalence Rates'!AH161","v":385.90864296375827},{"$f":"'Population 2016'!AI161*'Prevalence Rates'!AI161","v":678.97662314973502},{"$f":"'Population 2016'!AJ161*'Prevalence Rates'!AJ161","v":51.941214245900682},{"$f":"'Population 2016'!AK161*'Prevalence Rates'!AK161","v":75.203462534600035},{"$f":"'Population 2016'!AL161*'Prevalence Rates'!AL161","v":58.521432678922658},{"$f":"'Population 2016'!AM161*'Prevalence Rates'!AM161","v":209.88182737308483},{"$f":"'Population 2016'!AN161*'Prevalence Rates'!AN161","v":16.301035039845111},{"$f":"'Population 2016'!AO161*'Prevalence Rates'!AO161","v":16.301035039845111},{"$f":"'Population 2016'!AP161*'Prevalence Rates'!AP161","v":113.46879263850354},{"$f":"'Population 2016'!AQ161*'Prevalence Rates'!AQ161","v":106.56131043411861},{"$f":"'Population 2016'!AR161*'Prevalence Rates'!AR161","v":3646.6315789473683},{"$f":"'Population 2016'!AS161*'Prevalence Rates'!AS161","v":91.581377069236169},{"$f":"'Population 2016'!AT161*'Prevalence Rates'!AT161","v":19.302632183974666},{"$f":"'Population 2016'!AU161*'Prevalence Rates'!AU161","v":19.302632183974666},{"$f":"'Population 2016'!AV161*'Prevalence Rates'!AV161","v":69.318868190362281},{"$f":"'Population 2016'!AW161*'Prevalence Rates'!AW161","v":176.1423445577901},{"$f":"'Population 2016'!AX161*'Prevalence Rates'!AX161","v":33.438914971423984},{"$f":"'Population 2016'!AY161*'Prevalence Rates'!AY161","v":584.0365267193489},{"$f":"'Population 2016'!AZ161*'Prevalence Rates'!AZ161","v":338.94405534642419},{"$f":"'Population 2016'!BA161*'Prevalence Rates'!BA161","v":47.43700739010081},{"$f":"'Population 2016'!BB161*'Prevalence Rates'!BB161","v":123.66491056715947},{"$f":"'Population 2016'!BC161*'Prevalence Rates'!BC161","v":38.246627616190743},159]
[null,"Male 35-39",{"$f":"'Population 2016'!C162*'Prevalence Rates'!C162","v":161.47391300055421},{"$f":"'Population 2016'!D162*'Prevalence Rates'!D162","v":274.61679349148926},{"$f":"'Population 2016'!E162*'Prevalence Rates'!E162","v":112.81707141087298},{"$f":"'Population 2016'!F162*'Prevalence Rates'!F162","v":72.793395379562227},{"$f":"'Population 2016'!G162*'Prevalence Rates'!G162","v":62.975459421124647},{"$f":"'Population 2016'!H162*'Prevalence Rates'!H162","v":216.35441374880369},{"$f":"'Population 2016'!I162*'Prevalence Rates'!I162","v":80.422999444379911},{"$f":"'Population 2016'!J162*'Prevalence Rates'!J162","v":61.691702649566437},{"$f":"'Population 2016'!K162*'Prevalence Rates'!K162","v":30.912060277639128},{"$f":"'Population 2016'!L162*'Prevalence Rates'!L162","v":94.879663714975308},{"$f":"'Population 2016'!M162*'Prevalence Rates'!M162","v":94.879663714975308},{"$f":"'Population 2016'!N162*'Prevalence Rates'!N162","v":83.076403975249775},{"$f":"'Population 2016'!O162*'Prevalence Rates'!O162","v":90.81353702683964},{"$f":"'Population 2016'!P162*'Prevalence Rates'!P162","v":12.789499848785619},{"$f":"'Population 2016'!Q162*'Prevalence Rates'!Q162","v":54.094109962182614},{"$f":"'Population 2016'!R162*'Prevalence Rates'!R162","v":19.742313800808088},{"$f":"'Population 2016'!S162*'Prevalence Rates'!S162","v":842.15981222505275},{"$f":"'Population 2016'!T162*'Prevalence Rates'!T162","v":316.26088131027075},{"$f":"'Population 2016'!U162*'Prevalence Rates'!U162","v":39.244779875616778},{"$f":"'Population 2016'!V162*'Prevalence Rates'!V162","v":77.864166619399953},{"$f":"'Population 2016'!W162*'Prevalence Rates'!W162","v":225.50709667442993},{"$f":"'Population 2016'!X162*'Prevalence Rates'!X162","v":225.50709667442993},{"$f":"'Population 2016'!Y162*'Prevalence Rates'!Y162","v":140.81375038146007},{"$f":"'Population 2016'!Z162*'Prevalence Rates'!Z162","v":344.09774737099644},{"$f":"'Population 2016'!AA162*'Prevalence Rates'!AA162","v":919.92855450580498},{"$f":"'Population 2016'!AB162*'Prevalence Rates'!AB162","v":340.12058162277481},{"$f":"'Population 2016'!AC162*'Prevalence Rates'!AC162","v":541.59311530250625},{"$f":"'Population 2016'!AD162*'Prevalence Rates'!AD162","v":276.37539651749734},{"$f":"'Population 2016'!AE162*'Prevalence Rates'!AE162","v":212.0082392813226},{"$f":"'Population 2016'!AF162*'Prevalence Rates'!AF162","v":47.804264280457033},{"$f":"'Population 2016'!AG162*'Prevalence Rates'!AG162","v":212.0082392813226},{"$f":"'Population 2016'!AH162*'Prevalence Rates'!AH162","v":377.23467181762038},{"$f":"'Population 2016'!AI162*'Prevalence Rates'!AI162","v":536.12663901925237},{"$f":"'Population 2016'!AJ162*'Prevalence Rates'!AJ162","v":49.963924945784733},{"$f":"'Population 2016'!AK162*'Prevalence Rates'!AK162","v":63.897055394093435},{"$f":"'Population 2016'!AL162*'Prevalence Rates'!AL162","v":57.648057099473618},{"$f":"'Population 2016'!AM162*'Prevalence Rates'!AM162","v":214.10012859225526},{"$f":"'Population 2016'!AN162*'Prevalence Rates'!AN162","v":14.045009553346084},{"$f":"'Population 2016'!AO162*'Prevalence Rates'!AO162","v":14.045009553346084},{"$f":"'Population 2016'!AP162*'Prevalence Rates'!AP162","v":103.30728345519731},{"$f":"'Population 2016'!AQ162*'Prevalence Rates'!AQ162","v":86.757466897021118},{"$f":"'Population 2016'!AR162*'Prevalence Rates'!AR162","v":3135.8209459459458},{"$f":"'Population 2016'!AS162*'Prevalence Rates'!AS162","v":80.422999444379911},{"$f":"'Population 2016'!AT162*'Prevalence Rates'!AT162","v":18.2085754885581},{"$f":"'Population 2016'!AU162*'Prevalence Rates'!AU162","v":18.2085754885581},{"$f":"'Population 2016'!AV162*'Prevalence Rates'!AV162","v":66.116745993491648},{"$f":"'Population 2016'!AW162*'Prevalence Rates'!AW162","v":163.75199798312201},{"$f":"'Population 2016'!AX162*'Prevalence Rates'!AX162","v":30.049835751347224},{"$f":"'Population 2016'!AY162*'Prevalence Rates'!AY162","v":513.66375437329566},{"$f":"'Population 2016'!AZ162*'Prevalence Rates'!AZ162","v":287.29451433062343},{"$f":"'Population 2016'!BA162*'Prevalence Rates'!BA162","v":38.778719057834273},{"$f":"'Population 2016'!BB162*'Prevalence Rates'!BB162","v":114.82270691430834},{"$f":"'Population 2016'!BC162*'Prevalence Rates'!BC162","v":39.244779875616778},160]
[null,"Male 40-44",{"$f":"'Population 2016'!C163*'Prevalence Rates'!C163","v":124.56224203163215},{"$f":"'Population 2016'!D163*'Prevalence Rates'!D163","v":258.40003093382353},{"$f":"'Population 2016'!E163*'Prevalence Rates'!E163","v":124.33219318246553},{"$f":"'Population 2016'!F163*'Prevalence Rates'!F163","v":85.515302121181691},{"$f":"'Population 2016'!G163*'Prevalence Rates'!G163","v":75.362764256498153},{"$f":"'Population 2016'!H163*'Prevalence Rates'!H163","v":241.60028636942948},{"$f":"'Population 2016'!I163*'Prevalence Rates'!I163","v":105.75383639512472},{"$f":"'Population 2016'!J163*'Prevalence Rates'!J163","v":68.898677258160646},{"$f":"'Population 2016'!K163*'Prevalence Rates'!K163","v":40.659106311128937},{"$f":"'Population 2016'!L163*'Prevalence Rates'!L163","v":113.37456319787697},{"$f":"'Population 2016'!M163*'Prevalence Rates'!M163","v":113.37456319787697},{"$f":"'Population 2016'!N163*'Prevalence Rates'!N163","v":75.209320265472329},{"$f":"'Population 2016'!O163*'Prevalence Rates'!O163","v":92.484020149406916},{"$f":"'Population 2016'!P163*'Prevalence Rates'!P163","v":15.217885896023395},{"$f":"'Population 2016'!Q163*'Prevalence Rates'!Q163","v":70.222168673129644},{"$f":"'Population 2016'!R163*'Prevalence Rates'!R163","v":19.89244546469256},{"$f":"'Population 2016'!S163*'Prevalence Rates'!S163","v":826.6523507030596},{"$f":"'Population 2016'!T163*'Prevalence Rates'!T163","v":236.40917254176179},{"$f":"'Population 2016'!U163*'Prevalence Rates'!U163","v":44.556699575952784},{"$f":"'Population 2016'!V163*'Prevalence Rates'!V163","v":79.361554439003797},{"$f":"'Population 2016'!W163*'Prevalence Rates'!W163","v":240.96524443033843},{"$f":"'Population 2016'!X163*'Prevalence Rates'!X163","v":240.96524443033843},{"$f":"'Population 2016'!Y163*'Prevalence Rates'!Y163","v":149.11265962447388},{"$f":"'Population 2016'!Z163*'Prevalence Rates'!Z163","v":249.68068254358889},{"$f":"'Population 2016'!AA163*'Prevalence Rates'!AA163","v":848.32633197877419},{"$f":"'Population 2016'!AB163*'Prevalence Rates'!AB163","v":331.97914274979934},{"$f":"'Population 2016'!AC163*'Prevalence Rates'!AC163","v":458.66639271758294},{"$f":"'Population 2016'!AD163*'Prevalence Rates'!AD163","v":288.34833788287625},{"$f":"'Population 2016'!AE163*'Prevalence Rates'!AE163","v":208.26440054527501},{"$f":"'Population 2016'!AF163*'Prevalence Rates'!AF163","v":48.079793181208942},{"$f":"'Population 2016'!AG163*'Prevalence Rates'!AG163","v":208.26440054527501},{"$f":"'Population 2016'!AH163*'Prevalence Rates'!AH163","v":387.79013988364693},{"$f":"'Population 2016'!AI163*'Prevalence Rates'!AI163","v":482.46763746486221},{"$f":"'Population 2016'!AJ163*'Prevalence Rates'!AJ163","v":54.568109155805857},{"$f":"'Population 2016'!AK163*'Prevalence Rates'!AK163","v":71.144024332289362},{"$f":"'Population 2016'!AL163*'Prevalence Rates'!AL163","v":71.196041741556158},{"$f":"'Population 2016'!AM163*'Prevalence Rates'!AM163","v":212.98502375583726},{"$f":"'Population 2016'!AN163*'Prevalence Rates'!AN163","v":14.391799912687963},{"$f":"'Population 2016'!AO163*'Prevalence Rates'!AO163","v":14.391799912687963},{"$f":"'Population 2016'!AP163*'Prevalence Rates'!AP163","v":101.22359090143006},{"$f":"'Population 2016'!AQ163*'Prevalence Rates'!AQ163","v":88.427887438961349},{"$f":"'Population 2016'!AR163*'Prevalence Rates'!AR163","v":3118.5777027027025},{"$f":"'Population 2016'!AS163*'Prevalence Rates'!AS163","v":105.75383639512472},{"$f":"'Population 2016'!AT163*'Prevalence Rates'!AT163","v":17.803940477701254},{"$f":"'Population 2016'!AU163*'Prevalence Rates'!AU163","v":17.803940477701254},{"$f":"'Population 2016'!AV163*'Prevalence Rates'!AV163","v":74.909473871728025},{"$f":"'Population 2016'!AW163*'Prevalence Rates'!AW163","v":175.03864270392131},{"$f":"'Population 2016'!AX163*'Prevalence Rates'!AX163","v":30.407571891244213},{"$f":"'Population 2016'!AY163*'Prevalence Rates'!AY163","v":541.49775091569097},{"$f":"'Population 2016'!AZ163*'Prevalence Rates'!AZ163","v":299.0833741718472},{"$f":"'Population 2016'!BA163*'Prevalence Rates'!BA163","v":47.188561745075447},{"$f":"'Population 2016'!BB163*'Prevalence Rates'!BB163","v":121.20688642848019},{"$f":"'Population 2016'!BC163*'Prevalence Rates'!BC163","v":44.556699575952784},161]
[null,"Male 45-49",{"$f":"'Population 2016'!C164*'Prevalence Rates'!C164","v":191.48351744137628},{"$f":"'Population 2016'!D164*'Prevalence Rates'!D164","v":463.89624315514311},{"$f":"'Population 2016'!E164*'Prevalence Rates'!E164","v":244.5484030063503},{"$f":"'Population 2016'!F164*'Prevalence Rates'!F164","v":161.03250710523895},{"$f":"'Population 2016'!G164*'Prevalence Rates'!G164","v":156.33794201701716},{"$f":"'Population 2016'!H164*'Prevalence Rates'!H164","v":487.31668385364549},{"$f":"'Population 2016'!I164*'Prevalence Rates'!I164","v":204.67990266710899},{"$f":"'Population 2016'!J164*'Prevalence Rates'!J164","v":132.53246262071517},{"$f":"'Population 2016'!K164*'Prevalence Rates'!K164","v":80.563561188480932},{"$f":"'Population 2016'!L164*'Prevalence Rates'!L164","v":244.596790870544},{"$f":"'Population 2016'!M164*'Prevalence Rates'!M164","v":244.596790870544},{"$f":"'Population 2016'!N164*'Prevalence Rates'!N164","v":123.26604076531274},{"$f":"'Population 2016'!O164*'Prevalence Rates'!O164","v":189.50219835528438},{"$f":"'Population 2016'!P164*'Prevalence Rates'!P164","v":29.872421683383966},{"$f":"'Population 2016'!Q164*'Prevalence Rates'!Q164","v":125.62976345671333},{"$f":"'Population 2016'!R164*'Prevalence Rates'!R164","v":35.80173680971847},{"$f":"'Population 2016'!S164*'Prevalence Rates'!S164","v":1412.1238609722257},{"$f":"'Population 2016'!T164*'Prevalence Rates'!T164","v":324.10325361177837},{"$f":"'Population 2016'!U164*'Prevalence Rates'!U164","v":93.602102547549464},{"$f":"'Population 2016'!V164*'Prevalence Rates'!V164","v":150.89739215815908},{"$f":"'Population 2016'!W164*'Prevalence Rates'!W164","v":449.79585044365723},{"$f":"'Population 2016'!X164*'Prevalence Rates'!X164","v":449.79585044365723},{"$f":"'Population 2016'!Y164*'Prevalence Rates'!Y164","v":284.94153427106426},{"$f":"'Population 2016'!Z164*'Prevalence Rates'!Z164","v":406.52563143127384},{"$f":"'Population 2016'!AA164*'Prevalence Rates'!AA164","v":1531.5653573541097},{"$f":"'Population 2016'!AB164*'Prevalence Rates'!AB164","v":603.89956709072101},{"$f":"'Population 2016'!AC164*'Prevalence Rates'!AC164","v":809.09043760844816},{"$f":"'Population 2016'!AD164*'Prevalence Rates'!AD164","v":592.72174074086274},{"$f":"'Population 2016'!AE164*'Prevalence Rates'!AE164","v":426.19707699008808},{"$f":"'Population 2016'!AF164*'Prevalence Rates'!AF164","v":86.601451479442133},{"$f":"'Population 2016'!AG164*'Prevalence Rates'!AG164","v":426.19707699008808},{"$f":"'Population 2016'!AH164*'Prevalence Rates'!AH164","v":718.70122158300683},{"$f":"'Population 2016'!AI164*'Prevalence Rates'!AI164","v":766.04297906719898},{"$f":"'Population 2016'!AJ164*'Prevalence Rates'!AJ164","v":99.062594712472674},{"$f":"'Population 2016'!AK164*'Prevalence Rates'!AK164","v":135.02029896218087},{"$f":"'Population 2016'!AL164*'Prevalence Rates'!AL164","v":145.70366316030709},{"$f":"'Population 2016'!AM164*'Prevalence Rates'!AM164","v":372.68129634230036},{"$f":"'Population 2016'!AN164*'Prevalence Rates'!AN164","v":29.283482922354462},{"$f":"'Population 2016'!AO164*'Prevalence Rates'!AO164","v":29.283482922354462},{"$f":"'Population 2016'!AP164*'Prevalence Rates'!AP164","v":206.98995158877653},{"$f":"'Population 2016'!AQ164*'Prevalence Rates'!AQ164","v":178.92801651723317},{"$f":"'Population 2016'!AR164*'Prevalence Rates'!AR164","v":5768.2590529247909},{"$f":"'Population 2016'!AS164*'Prevalence Rates'!AS164","v":204.67990266710899},{"$f":"'Population 2016'!AT164*'Prevalence Rates'!AT164","v":33.282133279898353},{"$f":"'Population 2016'!AU164*'Prevalence Rates'!AU164","v":33.282133279898353},{"$f":"'Population 2016'!AV164*'Prevalence Rates'!AV164","v":147.13705973169607},{"$f":"'Population 2016'!AW164*'Prevalence Rates'!AW164","v":345.20780459882371},{"$f":"'Population 2016'!AX164*'Prevalence Rates'!AX164","v":57.28286449047701},{"$f":"'Population 2016'!AY164*'Prevalence Rates'!AY164","v":1018.9637509260655},{"$f":"'Population 2016'!AZ164*'Prevalence Rates'!AZ164","v":567.04834804506629},{"$f":"'Population 2016'!BA164*'Prevalence Rates'!BA164","v":90.228612419093835},{"$f":"'Population 2016'!BB164*'Prevalence Rates'!BB164","v":217.16940718856097},{"$f":"'Population 2016'!BC164*'Prevalence Rates'!BC164","v":93.602102547549464},162]
[null,"Male 50-54",{"$f":"'Population 2016'!C165*'Prevalence Rates'!C165","v":195.69798720324391},{"$f":"'Population 2016'!D165*'Prevalence Rates'!D165","v":464.50363594487163},{"$f":"'Population 2016'!E165*'Prevalence Rates'!E165","v":242.23675143564353},{"$f":"'Population 2016'!F165*'Prevalence Rates'!F165","v":187.400403005512},{"$f":"'Population 2016'!G165*'Prevalence Rates'!G165","v":174.83355785915825},{"$f":"'Population 2016'!H165*'Prevalence Rates'!H165","v":545.04758019867666},{"$f":"'Population 2016'!I165*'Prevalence Rates'!I165","v":235.10325832476613},{"$f":"'Population 2016'!J165*'Prevalence Rates'!J165","v":142.14933065668544},{"$f":"'Population 2016'!K165*'Prevalence Rates'!K165","v":82.740954734115547},{"$f":"'Population 2016'!L165*'Prevalence Rates'!L165","v":284.54154781016626},{"$f":"'Population 2016'!M165*'Prevalence Rates'!M165","v":284.54154781016626},{"$f":"'Population 2016'!N165*'Prevalence Rates'!N165","v":157.95768098070016},{"$f":"'Population 2016'!O165*'Prevalence Rates'!O165","v":214.91164099189518},{"$f":"'Population 2016'!P165*'Prevalence Rates'!P165","v":30.631890031266607},{"$f":"'Population 2016'!Q165*'Prevalence Rates'!Q165","v":128.29273849257882},{"$f":"'Population 2016'!R165*'Prevalence Rates'!R165","v":45.544504531707432},{"$f":"'Population 2016'!S165*'Prevalence Rates'!S165","v":1461.2179269352298},{"$f":"'Population 2016'!T165*'Prevalence Rates'!T165","v":318.46038446407329},{"$f":"'Population 2016'!U165*'Prevalence Rates'!U165","v":89.262932230775647},{"$f":"'Population 2016'!V165*'Prevalence Rates'!V165","v":156.49100238471152},{"$f":"'Population 2016'!W165*'Prevalence Rates'!W165","v":468.75457965097684},{"$f":"'Population 2016'!X165*'Prevalence Rates'!X165","v":468.75457965097684},{"$f":"'Population 2016'!Y165*'Prevalence Rates'!Y165","v":299.87235903453336},{"$f":"'Population 2016'!Z165*'Prevalence Rates'!Z165","v":407.93175390740043},{"$f":"'Population 2016'!AA165*'Prevalence Rates'!AA165","v":1600.3716425527832},{"$f":"'Population 2016'!AB165*'Prevalence Rates'!AB165","v":608.09331408440664},{"$f":"'Population 2016'!AC165*'Prevalence Rates'!AC165","v":871.8008551679734},{"$f":"'Population 2016'!AD165*'Prevalence Rates'!AD165","v":686.80208021618262},{"$f":"'Population 2016'!AE165*'Prevalence Rates'!AE165","v":502.30369788117525},{"$f":"'Population 2016'!AF165*'Prevalence Rates'!AF165","v":103.18929168819101},{"$f":"'Population 2016'!AG165*'Prevalence Rates'!AG165","v":502.30369788117525},{"$f":"'Population 2016'!AH165*'Prevalence Rates'!AH165","v":725.18017657474036},{"$f":"'Population 2016'!AI165*'Prevalence Rates'!AI165","v":767.20233280017999},{"$f":"'Population 2016'!AJ165*'Prevalence Rates'!AJ165","v":99.862561829935444},{"$f":"'Population 2016'!AK165*'Prevalence Rates'!AK165","v":138.3370719151925},{"$f":"'Population 2016'!AL165*'Prevalence Rates'!AL165","v":163.43022158633852},{"$f":"'Population 2016'!AM165*'Prevalence Rates'!AM165","v":367.76716610554524},{"$f":"'Population 2016'!AN165*'Prevalence Rates'!AN165","v":38.502357175688275},{"$f":"'Population 2016'!AO165*'Prevalence Rates'!AO165","v":38.502357175688275},{"$f":"'Population 2016'!AP165*'Prevalence Rates'!AP165","v":243.34609884380606},{"$f":"'Population 2016'!AQ165*'Prevalence Rates'!AQ165","v":206.84470522567008},{"$f":"'Population 2016'!AR165*'Prevalence Rates'!AR165","v":6187.2701949860721},{"$f":"'Population 2016'!AS165*'Prevalence Rates'!AS165","v":235.10325832476613},{"$f":"'Population 2016'!AT165*'Prevalence Rates'!AT165","v":37.964410585435388},{"$f":"'Population 2016'!AU165*'Prevalence Rates'!AU165","v":37.964410585435388},{"$f":"'Population 2016'!AV165*'Prevalence Rates'!AV165","v":161.95790434059265},{"$f":"'Population 2016'!AW165*'Prevalence Rates'!AW165","v":356.12642233526827},{"$f":"'Population 2016'!AX165*'Prevalence Rates'!AX165","v":63.324416604707004},{"$f":"'Population 2016'!AY165*'Prevalence Rates'!AY165","v":1138.8721984012416},{"$f":"'Population 2016'!AZ165*'Prevalence Rates'!AZ165","v":673.41599980774618},{"$f":"'Population 2016'!BA165*'Prevalence Rates'!BA165","v":99.726361094787919},{"$f":"'Population 2016'!BB165*'Prevalence Rates'!BB165","v":220.64180277318818},{"$f":"'Population 2016'!BC165*'Prevalence Rates'!BC165","v":89.262932230775647},163]
[null,"Male 55-59",{"$f":"'Population 2016'!C166*'Prevalence Rates'!C166","v":301.12826551454987},{"$f":"'Population 2016'!D166*'Prevalence Rates'!D166","v":735.45467810450407},{"$f":"'Population 2016'!E166*'Prevalence Rates'!E166","v":389.3284384039726},{"$f":"'Population 2016'!F166*'Prevalence Rates'!F166","v":301.50898038887101},{"$f":"'Population 2016'!G166*'Prevalence Rates'!G166","v":306.43310398939821},{"$f":"'Population 2016'!H166*'Prevalence Rates'!H166","v":828.35269470252479},{"$f":"'Population 2016'!I166*'Prevalence Rates'!I166","v":399.8836184877826},{"$f":"'Population 2016'!J166*'Prevalence Rates'!J166","v":231.55442559841626},{"$f":"'Population 2016'!K166*'Prevalence Rates'!K166","v":142.07288960190624},{"$f":"'Population 2016'!L166*'Prevalence Rates'!L166","v":473.97329247426785},{"$f":"'Population 2016'!M166*'Prevalence Rates'!M166","v":473.97329247426785},{"$f":"'Population 2016'!N166*'Prevalence Rates'!N166","v":254.47107135635076},{"$f":"'Population 2016'!O166*'Prevalence Rates'!O166","v":293.82404171399543},{"$f":"'Population 2016'!P166*'Prevalence Rates'!P166","v":50.740745717268652},{"$f":"'Population 2016'!Q166*'Prevalence Rates'!Q166","v":228.0691647493081},{"$f":"'Population 2016'!R166*'Prevalence Rates'!R166","v":77.405940240016548},{"$f":"'Population 2016'!S166*'Prevalence Rates'!S166","v":2373.333445754387},{"$f":"'Population 2016'!T166*'Prevalence Rates'!T166","v":465.51270642738268},{"$f":"'Population 2016'!U166*'Prevalence Rates'!U166","v":152.53563882934915},{"$f":"'Population 2016'!V166*'Prevalence Rates'!V166","v":230.70716277964061},{"$f":"'Population 2016'!W166*'Prevalence Rates'!W166","v":796.72789850767333},{"$f":"'Population 2016'!X166*'Prevalence Rates'!X166","v":796.72789850767333},{"$f":"'Population 2016'!Y166*'Prevalence Rates'!Y166","v":462.50861369684026},{"$f":"'Population 2016'!Z166*'Prevalence Rates'!Z166","v":628.19302800110142},{"$f":"'Population 2016'!AA166*'Prevalence Rates'!AA166","v":2517.2283377043605},{"$f":"'Population 2016'!AB166*'Prevalence Rates'!AB166","v":975.45939676502178},{"$f":"'Population 2016'!AC166*'Prevalence Rates'!AC166","v":1383.8193378188096},{"$f":"'Population 2016'!AD166*'Prevalence Rates'!AD166","v":1185.8837325780564},{"$f":"'Population 2016'!AE166*'Prevalence Rates'!AE166","v":861.22182463534864},{"$f":"'Population 2016'!AF166*'Prevalence Rates'!AF166","v":191.03214648752831},{"$f":"'Population 2016'!AG166*'Prevalence Rates'!AG166","v":861.22182463534864},{"$f":"'Population 2016'!AH166*'Prevalence Rates'!AH166","v":1128.3392328201671},{"$f":"'Population 2016'!AI166*'Prevalence Rates'!AI166","v":1196.3150508138006},{"$f":"'Population 2016'!AJ166*'Prevalence Rates'!AJ166","v":160.10814183850178},{"$f":"'Population 2016'!AK166*'Prevalence Rates'!AK166","v":230.70978318352127},{"$f":"'Population 2016'!AL166*'Prevalence Rates'!AL166","v":270.85334851730863},{"$f":"'Population 2016'!AM166*'Prevalence Rates'!AM166","v":527.8935802491892},{"$f":"'Population 2016'!AN166*'Prevalence Rates'!AN166","v":71.284982026294088},{"$f":"'Population 2016'!AO166*'Prevalence Rates'!AO166","v":71.284982026294088},{"$f":"'Population 2016'!AP166*'Prevalence Rates'!AP166","v":394.01832043941425},{"$f":"'Population 2016'!AQ166*'Prevalence Rates'!AQ166","v":310.50227398035872},{"$f":"'Population 2016'!AR166*'Prevalence Rates'!AR166","v":9981.7522658610269},{"$f":"'Population 2016'!AS166*'Prevalence Rates'!AS166","v":399.8836184877826},{"$f":"'Population 2016'!AT166*'Prevalence Rates'!AT166","v":59.293298175971834},{"$f":"'Population 2016'!AU166*'Prevalence Rates'!AU166","v":59.293298175971834},{"$f":"'Population 2016'!AV166*'Prevalence Rates'!AV166","v":252.23520615466299},{"$f":"'Population 2016'!AW166*'Prevalence Rates'!AW166","v":595.94080403345743},{"$f":"'Population 2016'!AX166*'Prevalence Rates'!AX166","v":99.40567179253776},{"$f":"'Population 2016'!AY166*'Prevalence Rates'!AY166","v":1881.4030257938794},{"$f":"'Population 2016'!AZ166*'Prevalence Rates'!AZ166","v":1086.395298474521},{"$f":"'Population 2016'!BA166*'Prevalence Rates'!BA166","v":166.72069471773347},{"$f":"'Population 2016'!BB166*'Prevalence Rates'!BB166","v":344.47562948982272},{"$f":"'Population 2016'!BC166*'Prevalence Rates'!BC166","v":152.53563882934915},164]
[null,"Male 60-64",{"$f":"'Population 2016'!C167*'Prevalence Rates'!C167","v":270.28408203523486},{"$f":"'Population 2016'!D167*'Prevalence Rates'!D167","v":678.27314275922379},{"$f":"'Population 2016'!E167*'Prevalence Rates'!E167","v":363.99253134948418},{"$f":"'Population 2016'!F167*'Prevalence Rates'!F167","v":256.56861745828047},{"$f":"'Population 2016'!G167*'Prevalence Rates'!G167","v":297.10782198547452},{"$f":"'Population 2016'!H167*'Prevalence Rates'!H167","v":798.15041770581195},{"$f":"'Population 2016'!I167*'Prevalence Rates'!I167","v":352.83848690098466},{"$f":"'Population 2016'!J167*'Prevalence Rates'!J167","v":202.87088188690075},{"$f":"'Population 2016'!K167*'Prevalence Rates'!K167","v":116.37885637602957},{"$f":"'Population 2016'!L167*'Prevalence Rates'!L167","v":458.66931152068275},{"$f":"'Population 2016'!M167*'Prevalence Rates'!M167","v":458.66931152068275},{"$f":"'Population 2016'!N167*'Prevalence Rates'!N167","v":213.48244241304596},{"$f":"'Population 2016'!O167*'Prevalence Rates'!O167","v":280.22489251825652},{"$f":"'Population 2016'!P167*'Prevalence Rates'!P167","v":44.810009204860627},{"$f":"'Population 2016'!Q167*'Prevalence Rates'!Q167","v":200.88571245499247},{"$f":"'Population 2016'!R167*'Prevalence Rates'!R167","v":60.295153450118157},{"$f":"'Population 2016'!S167*'Prevalence Rates'!S167","v":2019.644027644574},{"$f":"'Population 2016'!T167*'Prevalence Rates'!T167","v":382.65445771053464},{"$f":"'Population 2016'!U167*'Prevalence Rates'!U167","v":146.9419482657905},{"$f":"'Population 2016'!V167*'Prevalence Rates'!V167","v":191.20251161874324},{"$f":"'Population 2016'!W167*'Prevalence Rates'!W167","v":666.49880291540057},{"$f":"'Population 2016'!X167*'Prevalence Rates'!X167","v":666.49880291540057},{"$f":"'Population 2016'!Y167*'Prevalence Rates'!Y167","v":393.49554830228556},{"$f":"'Population 2016'!Z167*'Prevalence Rates'!Z167","v":524.62387103242611},{"$f":"'Population 2016'!AA167*'Prevalence Rates'!AA167","v":2119.3998832978714},{"$f":"'Population 2016'!AB167*'Prevalence Rates'!AB167","v":886.30869783339301},{"$f":"'Population 2016'!AC167*'Prevalence Rates'!AC167","v":1138.2809530408424},{"$f":"'Population 2016'!AD167*'Prevalence Rates'!AD167","v":1131.1922910299361},{"$f":"'Population 2016'!AE167*'Prevalence Rates'!AE167","v":815.06939116146236},{"$f":"'Population 2016'!AF167*'Prevalence Rates'!AF167","v":143.18064991139596},{"$f":"'Population 2016'!AG167*'Prevalence Rates'!AG167","v":815.06939116146236},{"$f":"'Population 2016'!AH167*'Prevalence Rates'!AH167","v":976.28782493360609},{"$f":"'Population 2016'!AI167*'Prevalence Rates'!AI167","v":1016.5031396656258},{"$f":"'Population 2016'!AJ167*'Prevalence Rates'!AJ167","v":152.24155683487598},{"$f":"'Population 2016'!AK167*'Prevalence Rates'!AK167","v":200.49207769378771},{"$f":"'Population 2016'!AL167*'Prevalence Rates'!AL167","v":240.46675401605933},{"$f":"'Population 2016'!AM167*'Prevalence Rates'!AM167","v":450.31880712241934},{"$f":"'Population 2016'!AN167*'Prevalence Rates'!AN167","v":56.933880034201884},{"$f":"'Population 2016'!AO167*'Prevalence Rates'!AO167","v":56.933880034201884},{"$f":"'Population 2016'!AP167*'Prevalence Rates'!AP167","v":371.69855153234772},{"$f":"'Population 2016'!AQ167*'Prevalence Rates'!AQ167","v":249.87500515572665},{"$f":"'Population 2016'!AR167*'Prevalence Rates'!AR167","v":8839.0815709969793},{"$f":"'Population 2016'!AS167*'Prevalence Rates'!AS167","v":352.83848690098466},{"$f":"'Population 2016'!AT167*'Prevalence Rates'!AT167","v":58.414878943735218},{"$f":"'Population 2016'!AU167*'Prevalence Rates'!AU167","v":58.414878943735218},{"$f":"'Population 2016'!AV167*'Prevalence Rates'!AV167","v":262.15108649489542},{"$f":"'Population 2016'!AW167*'Prevalence Rates'!AW167","v":521.70775962859295},{"$f":"'Population 2016'!AX167*'Prevalence Rates'!AX167","v":91.251300278306147},{"$f":"'Population 2016'!AY167*'Prevalence Rates'!AY167","v":1622.8668435759328},{"$f":"'Population 2016'!AZ167*'Prevalence Rates'!AZ167","v":961.31268313190094},{"$f":"'Population 2016'!BA167*'Prevalence Rates'!BA167","v":146.75224649108478},{"$f":"'Population 2016'!BB167*'Prevalence Rates'!BB167","v":281.45567103359423},{"$f":"'Population 2016'!BC167*'Prevalence Rates'!BC167","v":146.9419482657905},165]
[null,"Male 65-69",{"$f":"'Population 2016'!C168*'Prevalence Rates'!C168","v":0},{"$f":"'Population 2016'!D168*'Prevalence Rates'!D168","v":0},{"$f":"'Population 2016'!E168*'Prevalence Rates'!E168","v":0},{"$f":"'Population 2016'!F168*'Prevalence Rates'!F168","v":0},{"$f":"'Population 2016'!G168*'Prevalence Rates'!G168","v":0},{"$f":"'Population 2016'!H168*'Prevalence Rates'!H168","v":0},{"$f":"'Population 2016'!I168*'Prevalence Rates'!I168","v":0},{"$f":"'Population 2016'!J168*'Prevalence Rates'!J168","v":0},{"$f":"'Population 2016'!K168*'Prevalence Rates'!K168","v":0},{"$f":"'Population 2016'!L168*'Prevalence Rates'!L168","v":0},{"$f":"'Population 2016'!M168*'Prevalence Rates'!M168","v":0},{"$f":"'Population 2016'!N168*'Prevalence Rates'!N168","v":0},{"$f":"'Population 2016'!O168*'Prevalence Rates'!O168","v":0},{"$f":"'Population 2016'!P168*'Prevalence Rates'!P168","v":0},{"$f":"'Population 2016'!Q168*'Prevalence Rates'!Q168","v":0},{"$f":"'Population 2016'!R168*'Prevalence Rates'!R168","v":0},{"$f":"'Population 2016'!S168*'Prevalence Rates'!S168","v":0},{"$f":"'Population 2016'!T168*'Prevalence Rates'!T168","v":0},{"$f":"'Population 2016'!U168*'Prevalence Rates'!U168","v":0},{"$f":"'Population 2016'!V168*'Prevalence Rates'!V168","v":0},{"$f":"'Population 2016'!W168*'Prevalence Rates'!W168","v":0},{"$f":"'Population 2016'!X168*'Prevalence Rates'!X168","v":0},{"$f":"'Population 2016'!Y168*'Prevalence Rates'!Y168","v":0},{"$f":"'Population 2016'!Z168*'Prevalence Rates'!Z168","v":0},{"$f":"'Population 2016'!AA168*'Prevalence Rates'!AA168","v":0},{"$f":"'Population 2016'!AB168*'Prevalence Rates'!AB168","v":0},{"$f":"'Population 2016'!AC168*'Prevalence Rates'!AC168","v":0},{"$f":"'Population 2016'!AD168*'Prevalence Rates'!AD168","v":0},{"$f":"'Population 2016'!AE168*'Prevalence Rates'!AE168","v":0},{"$f":"'Population 2016'!AF168*'Prevalence Rates'!AF168","v":0},{"$f":"'Population 2016'!AG168*'Prevalence Rates'!AG168","v":0},{"$f":"'Population 2016'!AH168*'Prevalence Rates'!AH168","v":0},{"$f":"'Population 2016'!AI168*'Prevalence Rates'!AI168","v":0},{"$f":"'Population 2016'!AJ168*'Prevalence Rates'!AJ168","v":0},{"$f":"'Population 2016'!AK168*'Prevalence Rates'!AK168","v":0},{"$f":"'Population 2016'!AL168*'Prevalence Rates'!AL168","v":0},{"$f":"'Population 2016'!AM168*'Prevalence Rates'!AM168","v":0},{"$f":"'Population 2016'!AN168*'Prevalence Rates'!AN168","v":0},{"$f":"'Population 2016'!AO168*'Prevalence Rates'!AO168","v":0},{"$f":"'Population 2016'!AP168*'Prevalence Rates'!AP168","v":0},{"$f":"'Population 2016'!AQ168*'Prevalence Rates'!AQ168","v":0},{"$f":"'Population 2016'!AR168*'Prevalence Rates'!AR168","v":0},{"$f":"'Population 2016'!AS168*'Prevalence Rates'!AS168","v":0},{"$f":"'Population 2016'!AT168*'Prevalence Rates'!AT168","v":0},{"$f":"'Population 2016'!AU168*'Prevalence Rates'!AU168","v":0},{"$f":"'Population 2016'!AV168*'Prevalence Rates'!AV168","v":0},{"$f":"'Population 2016'!AW168*'Prevalence Rates'!AW168","v":0},{"$f":"'Population 2016'!AX168*'Prevalence Rates'!AX168","v":0},{"$f":"'Population 2016'!AY168*'Prevalence Rates'!AY168","v":0},{"$f":"'Population 2016'!AZ168*'Prevalence Rates'!AZ168","v":0},{"$f":"'Population 2016'!BA168*'Prevalence Rates'!BA168","v":0},{"$f":"'Population 2016'!BB168*'Prevalence Rates'!BB168","v":0},{"$f":"'Population 2016'!BC168*'Prevalence Rates'!BC168","v":0},166]
[null,"Male 70-74",{"$f":"'Population 2016'!C169*'Prevalence Rates'!C169","v":0},{"$f":"'Population 2016'!D169*'Prevalence Rates'!D169","v":0},{"$f":"'Population 2016'!E169*'Prevalence Rates'!E169","v":0},{"$f":"'Population 2016'!F169*'Prevalence Rates'!F169","v":0},{"$f":"'Population 2016'!G169*'Prevalence Rates'!G169","v":0},{"$f":"'Population 2016'!H169*'Prevalence Rates'!H169","v":0},{"$f":"'Population 2016'!I169*'Prevalence Rates'!I169","v":0},{"$f":"'Population 2016'!J169*'Prevalence Rates'!J169","v":0},{"$f":"'Population 2016'!K169*'Prevalence Rates'!K169","v":0},{"$f":"'Population 2016'!L169*'Prevalence Rates'!L169","v":0},{"$f":"'Population 2016'!M169*'Prevalence Rates'!M169","v":0},{"$f":"'Population 2016'!N169*'Prevalence Rates'!N169","v":0},{"$f":"'Population 2016'!O169*'Prevalence Rates'!O169","v":0},{"$f":"'Population 2016'!P169*'Prevalence Rates'!P169","v":0},{"$f":"'Population 2016'!Q169*'Prevalence Rates'!Q169","v":0},{"$f":"'Population 2016'!R169*'Prevalence Rates'!R169","v":0},{"$f":"'Population 2016'!S169*'Prevalence Rates'!S169","v":0},{"$f":"'Population 2016'!T169*'Prevalence Rates'!T169","v":0},{"$f":"'Population 2016'!U169*'Prevalence Rates'!U169","v":0},{"$f":"'Population 2016'!V169*'Prevalence Rates'!V169","v":0},{"$f":"'Population 2016'!W169*'Prevalence Rates'!W169","v":0},{"$f":"'Population 2016'!X169*'Prevalence Rates'!X169","v":0},{"$f":"'Population 2016'!Y169*'Prevalence Rates'!Y169","v":0},{"$f":"'Population 2016'!Z169*'Prevalence Rates'!Z169","v":0},{"$f":"'Population 2016'!AA169*'Prevalence Rates'!AA169","v":0},{"$f":"'Population 2016'!AB169*'Prevalence Rates'!AB169","v":0},{"$f":"'Population 2016'!AC169*'Prevalence Rates'!AC169","v":0},{"$f":"'Population 2016'!AD169*'Prevalence Rates'!AD169","v":0},{"$f":"'Population 2016'!AE169*'Prevalence Rates'!AE169","v":0},{"$f":"'Population 2016'!AF169*'Prevalence Rates'!AF169","v":0},{"$f":"'Population 2016'!AG169*'Prevalence Rates'!AG169","v":0},{"$f":"'Population 2016'!AH169*'Prevalence Rates'!AH169","v":0},{"$f":"'Population 2016'!AI169*'Prevalence Rates'!AI169","v":0},{"$f":"'Population 2016'!AJ169*'Prevalence Rates'!AJ169","v":0},{"$f":"'Population 2016'!AK169*'Prevalence Rates'!AK169","v":0},{"$f":"'Population 2016'!AL169*'Prevalence Rates'!AL169","v":0},{"$f":"'Population 2016'!AM169*'Prevalence Rates'!AM169","v":0},{"$f":"'Population 2016'!AN169*'Prevalence Rates'!AN169","v":0},{"$f":"'Population 2016'!AO169*'Prevalence Rates'!AO169","v":0},{"$f":"'Population 2016'!AP169*'Prevalence Rates'!AP169","v":0},{"$f":"'Population 2016'!AQ169*'Prevalence Rates'!AQ169","v":0},{"$f":"'Population 2016'!AR169*'Prevalence Rates'!AR169","v":0},{"$f":"'Population 2016'!AS169*'Prevalence Rates'!AS169","v":0},{"$f":"'Population 2016'!AT169*'Prevalence Rates'!AT169","v":0},{"$f":"'Population 2016'!AU169*'Prevalence Rates'!AU169","v":0},{"$f":"'Population 2016'!AV169*'Prevalence Rates'!AV169","v":0},{"$f":"'Population 2016'!AW169*'Prevalence Rates'!AW169","v":0},{"$f":"'Population 2016'!AX169*'Prevalence Rates'!AX169","v":0},{"$f":"'Population 2016'!AY169*'Prevalence Rates'!AY169","v":0},{"$f":"'Population 2016'!AZ169*'Prevalence Rates'!AZ169","v":0},{"$f":"'Population 2016'!BA169*'Prevalence Rates'!BA169","v":0},{"$f":"'Population 2016'!BB169*'Prevalence Rates'!BB169","v":0},{"$f":"'Population 2016'!BC169*'Prevalence Rates'!BC169","v":0},167]
[null,"Male 75-79",{"$f":"'Population 2016'!C170*'Prevalence Rates'!C170","v":0},{"$f":"'Population 2016'!D170*'Prevalence Rates'!D170","v":0},{"$f":"'Population 2016'!E170*'Prevalence Rates'!E170","v":0},{"$f":"'Population 2016'!F170*'Prevalence Rates'!F170","v":0},{"$f":"'Population 2016'!G170*'Prevalence Rates'!G170","v":0},{"$f":"'Population 2016'!H170*'Prevalence Rates'!H170","v":0},{"$f":"'Population 2016'!I170*'Prevalence Rates'!I170","v":0},{"$f":"'Population 2016'!J170*'Prevalence Rates'!J170","v":0},{"$f":"'Population 2016'!K170*'Prevalence Rates'!K170","v":0},{"$f":"'Population 2016'!L170*'Prevalence Rates'!L170","v":0},{"$f":"'Population 2016'!M170*'Prevalence Rates'!M170","v":0},{"$f":"'Population 2016'!N170*'Prevalence Rates'!N170","v":0},{"$f":"'Population 2016'!O170*'Prevalence Rates'!O170","v":0},{"$f":"'Population 2016'!P170*'Prevalence Rates'!P170","v":0},{"$f":"'Population 2016'!Q170*'Prevalence Rates'!Q170","v":0},{"$f":"'Population 2016'!R170*'Prevalence Rates'!R170","v":0},{"$f":"'Population 2016'!S170*'Prevalence Rates'!S170","v":0},{"$f":"'Population 2016'!T170*'Prevalence Rates'!T170","v":0},{"$f":"'Population 2016'!U170*'Prevalence Rates'!U170","v":0},{"$f":"'Population 2016'!V170*'Prevalence Rates'!V170","v":0},{"$f":"'Population 2016'!W170*'Prevalence Rates'!W170","v":0},{"$f":"'Population 2016'!X170*'Prevalence Rates'!X170","v":0},{"$f":"'Population 2016'!Y170*'Prevalence Rates'!Y170","v":0},{"$f":"'Population 2016'!Z170*'Prevalence Rates'!Z170","v":0},{"$f":"'Population 2016'!AA170*'Prevalence Rates'!AA170","v":0},{"$f":"'Population 2016'!AB170*'Prevalence Rates'!AB170","v":0},{"$f":"'Population 2016'!AC170*'Prevalence Rates'!AC170","v":0},{"$f":"'Population 2016'!AD170*'Prevalence Rates'!AD170","v":0},{"$f":"'Population 2016'!AE170*'Prevalence Rates'!AE170","v":0},{"$f":"'Population 2016'!AF170*'Prevalence Rates'!AF170","v":0},{"$f":"'Population 2016'!AG170*'Prevalence Rates'!AG170","v":0},{"$f":"'Population 2016'!AH170*'Prevalence Rates'!AH170","v":0},{"$f":"'Population 2016'!AI170*'Prevalence Rates'!AI170","v":0},{"$f":"'Population 2016'!AJ170*'Prevalence Rates'!AJ170","v":0},{"$f":"'Population 2016'!AK170*'Prevalence Rates'!AK170","v":0},{"$f":"'Population 2016'!AL170*'Prevalence Rates'!AL170","v":0},{"$f":"'Population 2016'!AM170*'Prevalence Rates'!AM170","v":0},{"$f":"'Population 2016'!AN170*'Prevalence Rates'!AN170","v":0},{"$f":"'Population 2016'!AO170*'Prevalence Rates'!AO170","v":0},{"$f":"'Population 2016'!AP170*'Prevalence Rates'!AP170","v":0},{"$f":"'Population 2016'!AQ170*'Prevalence Rates'!AQ170","v":0},{"$f":"'Population 2016'!AR170*'Prevalence Rates'!AR170","v":0},{"$f":"'Population 2016'!AS170*'Prevalence Rates'!AS170","v":0},{"$f":"'Population 2016'!AT170*'Prevalence Rates'!AT170","v":0},{"$f":"'Population 2016'!AU170*'Prevalence Rates'!AU170","v":0},{"$f":"'Population 2016'!AV170*'Prevalence Rates'!AV170","v":0},{"$f":"'Population 2016'!AW170*'Prevalence Rates'!AW170","v":0},{"$f":"'Population 2016'!AX170*'Prevalence Rates'!AX170","v":0},{"$f":"'Population 2016'!AY170*'Prevalence Rates'!AY170","v":0},{"$f":"'Population 2016'!AZ170*'Prevalence Rates'!AZ170","v":0},{"$f":"'Population 2016'!BA170*'Prevalence Rates'!BA170","v":0},{"$f":"'Population 2016'!BB170*'Prevalence Rates'!BB170","v":0},{"$f":"'Population 2016'!BC170*'Prevalence Rates'!BC170","v":0},168]
[null,"Male 80-84",{"$f":"'Population 2016'!C171*'Prevalence Rates'!C171","v":0},{"$f":"'Population 2016'!D171*'Prevalence Rates'!D171","v":0},{"$f":"'Population 2016'!E171*'Prevalence Rates'!E171","v":0},{"$f":"'Population 2016'!F171*'Prevalence Rates'!F171","v":0},{"$f":"'Population 2016'!G171*'Prevalence Rates'!G171","v":0},{"$f":"'Population 2016'!H171*'Prevalence Rates'!H171","v":0},{"$f":"'Population 2016'!I171*'Prevalence Rates'!I171","v":0},{"$f":"'Population 2016'!J171*'Prevalence Rates'!J171","v":0},{"$f":"'Population 2016'!K171*'Prevalence Rates'!K171","v":0},{"$f":"'Population 2016'!L171*'Prevalence Rates'!L171","v":0},{"$f":"'Population 2016'!M171*'Prevalence Rates'!M171","v":0},{"$f":"'Population 2016'!N171*'Prevalence Rates'!N171","v":0},{"$f":"'Population 2016'!O171*'Prevalence Rates'!O171","v":0},{"$f":"'Population 2016'!P171*'Prevalence Rates'!P171","v":0},{"$f":"'Population 2016'!Q171*'Prevalence Rates'!Q171","v":0},{"$f":"'Population 2016'!R171*'Prevalence Rates'!R171","v":0},{"$f":"'Population 2016'!S171*'Prevalence Rates'!S171","v":0},{"$f":"'Population 2016'!T171*'Prevalence Rates'!T171","v":0},{"$f":"'Population 2016'!U171*'Prevalence Rates'!U171","v":0},{"$f":"'Population 2016'!V171*'Prevalence Rates'!V171","v":0},{"$f":"'Population 2016'!W171*'Prevalence Rates'!W171","v":0},{"$f":"'Population 2016'!X171*'Prevalence Rates'!X171","v":0},{"$f":"'Population 2016'!Y171*'Prevalence Rates'!Y171","v":0},{"$f":"'Population 2016'!Z171*'Prevalence Rates'!Z171","v":0},{"$f":"'Population 2016'!AA171*'Prevalence Rates'!AA171","v":0},{"$f":"'Population 2016'!AB171*'Prevalence Rates'!AB171","v":0},{"$f":"'Population 2016'!AC171*'Prevalence Rates'!AC171","v":0},{"$f":"'Population 2016'!AD171*'Prevalence Rates'!AD171","v":0},{"$f":"'Population 2016'!AE171*'Prevalence Rates'!AE171","v":0},{"$f":"'Population 2016'!AF171*'Prevalence Rates'!AF171","v":0},{"$f":"'Population 2016'!AG171*'Prevalence Rates'!AG171","v":0},{"$f":"'Population 2016'!AH171*'Prevalence Rates'!AH171","v":0},{"$f":"'Population 2016'!AI171*'Prevalence Rates'!AI171","v":0},{"$f":"'Population 2016'!AJ171*'Prevalence Rates'!AJ171","v":0},{"$f":"'Population 2016'!AK171*'Prevalence Rates'!AK171","v":0},{"$f":"'Population 2016'!AL171*'Prevalence Rates'!AL171","v":0},{"$f":"'Population 2016'!AM171*'Prevalence Rates'!AM171","v":0},{"$f":"'Population 2016'!AN171*'Prevalence Rates'!AN171","v":0},{"$f":"'Population 2016'!AO171*'Prevalence Rates'!AO171","v":0},{"$f":"'Population 2016'!AP171*'Prevalence Rates'!AP171","v":0},{"$f":"'Population 2016'!AQ171*'Prevalence Rates'!AQ171","v":0},{"$f":"'Population 2016'!AR171*'Prevalence Rates'!AR171","v":0},{"$f":"'Population 2016'!AS171*'Prevalence Rates'!AS171","v":0},{"$f":"'Population 2016'!AT171*'Prevalence Rates'!AT171","v":0},{"$f":"'Population 2016'!AU171*'Prevalence Rates'!AU171","v":0},{"$f":"'Population 2016'!AV171*'Prevalence Rates'!AV171","v":0},{"$f":"'Population 2016'!AW171*'Prevalence Rates'!AW171","v":0},{"$f":"'Population 2016'!AX171*'Prevalence Rates'!AX171","v":0},{"$f":"'Population 2016'!AY171*'Prevalence Rates'!AY171","v":0},{"$f":"'Population 2016'!AZ171*'Prevalence Rates'!AZ171","v":0},{"$f":"'Population 2016'!BA171*'Prevalence Rates'!BA171","v":0},{"$f":"'Population 2016'!BB171*'Prevalence Rates'!BB171","v":0},{"$f":"'Population 2016'!BC171*'Prevalence Rates'!BC171","v":0},169]
[null,"Male 85-89",{"$f":"'Population 2016'!C172*'Prevalence Rates'!C172","v":0},{"$f":"'Population 2016'!D172*'Prevalence Rates'!D172","v":0},{"$f":"'Population 2016'!E172*'Prevalence Rates'!E172","v":0},{"$f":"'Population 2016'!F172*'Prevalence Rates'!F172","v":0},{"$f":"'Population 2016'!G172*'Prevalence Rates'!G172","v":0},{"$f":"'Population 2016'!H172*'Prevalence Rates'!H172","v":0},{"$f":"'Population 2016'!I172*'Prevalence Rates'!I172","v":0},{"$f":"'Population 2016'!J172*'Prevalence Rates'!J172","v":0},{"$f":"'Population 2016'!K172*'Prevalence Rates'!K172","v":0},{"$f":"'Population 2016'!L172*'Prevalence Rates'!L172","v":0},{"$f":"'Population 2016'!M172*'Prevalence Rates'!M172","v":0},{"$f":"'Population 2016'!N172*'Prevalence Rates'!N172","v":0},{"$f":"'Population 2016'!O172*'Prevalence Rates'!O172","v":0},{"$f":"'Population 2016'!P172*'Prevalence Rates'!P172","v":0},{"$f":"'Population 2016'!Q172*'Prevalence Rates'!Q172","v":0},{"$f":"'Population 2016'!R172*'Prevalence Rates'!R172","v":0},{"$f":"'Population 2016'!S172*'Prevalence Rates'!S172","v":0},{"$f":"'Population 2016'!T172*'Prevalence Rates'!T172","v":0},{"$f":"'Population 2016'!U172*'Prevalence Rates'!U172","v":0},{"$f":"'Population 2016'!V172*'Prevalence Rates'!V172","v":0},{"$f":"'Population 2016'!W172*'Prevalence Rates'!W172","v":0},{"$f":"'Population 2016'!X172*'Prevalence Rates'!X172","v":0},{"$f":"'Population 2016'!Y172*'Prevalence Rates'!Y172","v":0},{"$f":"'Population 2016'!Z172*'Prevalence Rates'!Z172","v":0},{"$f":"'Population 2016'!AA172*'Prevalence Rates'!AA172","v":0},{"$f":"'Population 2016'!AB172*'Prevalence Rates'!AB172","v":0},{"$f":"'Population 2016'!AC172*'Prevalence Rates'!AC172","v":0},{"$f":"'Population 2016'!AD172*'Prevalence Rates'!AD172","v":0},{"$f":"'Population 2016'!AE172*'Prevalence Rates'!AE172","v":0},{"$f":"'Population 2016'!AF172*'Prevalence Rates'!AF172","v":0},{"$f":"'Population 2016'!AG172*'Prevalence Rates'!AG172","v":0},{"$f":"'Population 2016'!AH172*'Prevalence Rates'!AH172","v":0},{"$f":"'Population 2016'!AI172*'Prevalence Rates'!AI172","v":0},{"$f":"'Population 2016'!AJ172*'Prevalence Rates'!AJ172","v":0},{"$f":"'Population 2016'!AK172*'Prevalence Rates'!AK172","v":0},{"$f":"'Population 2016'!AL172*'Prevalence Rates'!AL172","v":0},{"$f":"'Population 2016'!AM172*'Prevalence Rates'!AM172","v":0},{"$f":"'Population 2016'!AN172*'Prevalence Rates'!AN172","v":0},{"$f":"'Population 2016'!AO172*'Prevalence Rates'!AO172","v":0},{"$f":"'Population 2016'!AP172*'Prevalence Rates'!AP172","v":0},{"$f":"'Population 2016'!AQ172*'Prevalence Rates'!AQ172","v":0},{"$f":"'Population 2016'!AR172*'Prevalence Rates'!AR172","v":0},{"$f":"'Population 2016'!AS172*'Prevalence Rates'!AS172","v":0},{"$f":"'Population 2016'!AT172*'Prevalence Rates'!AT172","v":0},{"$f":"'Population 2016'!AU172*'Prevalence Rates'!AU172","v":0},{"$f":"'Population 2016'!AV172*'Prevalence Rates'!AV172","v":0},{"$f":"'Population 2016'!AW172*'Prevalence Rates'!AW172","v":0},{"$f":"'Population 2016'!AX172*'Prevalence Rates'!AX172","v":0},{"$f":"'Population 2016'!AY172*'Prevalence Rates'!AY172","v":0},{"$f":"'Population 2016'!AZ172*'Prevalence Rates'!AZ172","v":0},{"$f":"'Population 2016'!BA172*'Prevalence Rates'!BA172","v":0},{"$f":"'Population 2016'!BB172*'Prevalence Rates'!BB172","v":0},{"$f":"'Population 2016'!BC172*'Prevalence Rates'!BC172","v":0},170]
[null,"Male 90+",{"$f":"'Population 2016'!C173*'Prevalence Rates'!C173","v":0},{"$f":"'Population 2016'!D173*'Prevalence Rates'!D173","v":0},{"$f":"'Population 2016'!E173*'Prevalence Rates'!E173","v":0},{"$f":"'Population 2016'!F173*'Prevalence Rates'!F173","v":0},{"$f":"'Population 2016'!G173*'Prevalence Rates'!G173","v":0},{"$f":"'Population 2016'!H173*'Prevalence Rates'!H173","v":0},{"$f":"'Population 2016'!I173*'Prevalence Rates'!I173","v":0},{"$f":"'Population 2016'!J173*'Prevalence Rates'!J173","v":0},{"$f":"'Population 2016'!K173*'Prevalence Rates'!K173","v":0},{"$f":"'Population 2016'!L173*'Prevalence Rates'!L173","v":0},{"$f":"'Population 2016'!M173*'Prevalence Rates'!M173","v":0},{"$f":"'Population 2016'!N173*'Prevalence Rates'!N173","v":0},{"$f":"'Population 2016'!O173*'Prevalence Rates'!O173","v":0},{"$f":"'Population 2016'!P173*'Prevalence Rates'!P173","v":0},{"$f":"'Population 2016'!Q173*'Prevalence Rates'!Q173","v":0},{"$f":"'Population 2016'!R173*'Prevalence Rates'!R173","v":0},{"$f":"'Population 2016'!S173*'Prevalence Rates'!S173","v":0},{"$f":"'Population 2016'!T173*'Prevalence Rates'!T173","v":0},{"$f":"'Population 2016'!U173*'Prevalence Rates'!U173","v":0},{"$f":"'Population 2016'!V173*'Prevalence Rates'!V173","v":0},{"$f":"'Population 2016'!W173*'Prevalence Rates'!W173","v":0},{"$f":"'Population 2016'!X173*'Prevalence Rates'!X173","v":0},{"$f":"'Population 2016'!Y173*'Prevalence Rates'!Y173","v":0},{"$f":"'Population 2016'!Z173*'Prevalence Rates'!Z173","v":0},{"$f":"'Population 2016'!AA173*'Prevalence Rates'!AA173","v":0},{"$f":"'Population 2016'!AB173*'Prevalence Rates'!AB173","v":0},{"$f":"'Population 2016'!AC173*'Prevalence Rates'!AC173","v":0},{"$f":"'Population 2016'!AD173*'Prevalence Rates'!AD173","v":0},{"$f":"'Population 2016'!AE173*'Prevalence Rates'!AE173","v":0},{"$f":"'Population 2016'!AF173*'Prevalence Rates'!AF173","v":0},{"$f":"'Population 2016'!AG173*'Prevalence Rates'!AG173","v":0},{"$f":"'Population 2016'!AH173*'Prevalence Rates'!AH173","v":0},{"$f":"'Population 2016'!AI173*'Prevalence Rates'!AI173","v":0},{"$f":"'Population 2016'!AJ173*'Prevalence Rates'!AJ173","v":0},{"$f":"'Population 2016'!AK173*'Prevalence Rates'!AK173","v":0},{"$f":"'Population 2016'!AL173*'Prevalence Rates'!AL173","v":0},{"$f":"'Population 2016'!AM173*'Prevalence Rates'!AM173","v":0},{"$f":"'Population 2016'!AN173*'Prevalence Rates'!AN173","v":0},{"$f":"'Population 2016'!AO173*'Prevalence Rates'!AO173","v":0},{"$f":"'Population 2016'!AP173*'Prevalence Rates'!AP173","v":0},{"$f":"'Population 2016'!AQ173*'Prevalence Rates'!AQ173","v":0},{"$f":"'Population 2016'!AR173*'Prevalence Rates'!AR173","v":0},{"$f":"'Population 2016'!AS173*'Prevalence Rates'!AS173","v":0},{"$f":"'Population 2016'!AT173*'Prevalence Rates'!AT173","v":0},{"$f":"'Population 2016'!AU173*'Prevalence Rates'!AU173","v":0},{"$f":"'Population 2016'!AV173*'Prevalence Rates'!AV173","v":0},{"$f":"'Population 2016'!AW173*'Prevalence Rates'!AW173","v":0},{"$f":"'Population 2016'!AX173*'Prevalence Rates'!AX173","v":0},{"$f":"'Population 2016'!AY173*'Prevalence Rates'!AY173","v":0},{"$f":"'Population 2016'!AZ173*'Prevalence Rates'!AZ173","v":0},{"$f":"'Population 2016'!BA173*'Prevalence Rates'!BA173","v":0},{"$f":"'Population 2016'!BB173*'Prevalence Rates'!BB173","v":0},{"$f":"'Population 2016'!BC173*'Prevalence Rates'!BC173","v":0},171]
["SIMD Q4","Female 0-4",{"$f":"'Population 2016'!C174*'Prevalence Rates'!C174","v":0},{"$f":"'Population 2016'!D174*'Prevalence Rates'!D174","v":0},{"$f":"'Population 2016'!E174*'Prevalence Rates'!E174","v":0},{"$f":"'Population 2016'!F174*'Prevalence Rates'!F174","v":0},{"$f":"'Population 2016'!G174*'Prevalence Rates'!G174","v":0},{"$f":"'Population 2016'!H174*'Prevalence Rates'!H174","v":0},{"$f":"'Population 2016'!I174*'Prevalence Rates'!I174","v":0},{"$f":"'Population 2016'!J174*'Prevalence Rates'!J174","v":0},{"$f":"'Population 2016'!K174*'Prevalence Rates'!K174","v":0},{"$f":"'Population 2016'!L174*'Prevalence Rates'!L174","v":0},{"$f":"'Population 2016'!M174*'Prevalence Rates'!M174","v":0},{"$f":"'Population 2016'!N174*'Prevalence Rates'!N174","v":0},{"$f":"'Population 2016'!O174*'Prevalence Rates'!O174","v":0},{"$f":"'Population 2016'!P174*'Prevalence Rates'!P174","v":0},{"$f":"'Population 2016'!Q174*'Prevalence Rates'!Q174","v":0},{"$f":"'Population 2016'!R174*'Prevalence Rates'!R174","v":0},{"$f":"'Population 2016'!S174*'Prevalence Rates'!S174","v":0},{"$f":"'Population 2016'!T174*'Prevalence Rates'!T174","v":0},{"$f":"'Population 2016'!U174*'Prevalence Rates'!U174","v":0},{"$f":"'Population 2016'!V174*'Prevalence Rates'!V174","v":0},{"$f":"'Population 2016'!W174*'Prevalence Rates'!W174","v":0},{"$f":"'Population 2016'!X174*'Prevalence Rates'!X174","v":0},{"$f":"'Population 2016'!Y174*'Prevalence Rates'!Y174","v":0},{"$f":"'Population 2016'!Z174*'Prevalence Rates'!Z174","v":0},{"$f":"'Population 2016'!AA174*'Prevalence Rates'!AA174","v":0},{"$f":"'Population 2016'!AB174*'Prevalence Rates'!AB174","v":0},{"$f":"'Population 2016'!AC174*'Prevalence Rates'!AC174","v":0},{"$f":"'Population 2016'!AD174*'Prevalence Rates'!AD174","v":0},{"$f":"'Population 2016'!AE174*'Prevalence Rates'!AE174","v":0},{"$f":"'Population 2016'!AF174*'Prevalence Rates'!AF174","v":0},{"$f":"'Population 2016'!AG174*'Prevalence Rates'!AG174","v":0},{"$f":"'Population 2016'!AH174*'Prevalence Rates'!AH174","v":0},{"$f":"'Population 2016'!AI174*'Prevalence Rates'!AI174","v":0},{"$f":"'Population 2016'!AJ174*'Prevalence Rates'!AJ174","v":0},{"$f":"'Population 2016'!AK174*'Prevalence Rates'!AK174","v":0},{"$f":"'Population 2016'!AL174*'Prevalence Rates'!AL174","v":0},{"$f":"'Population 2016'!AM174*'Prevalence Rates'!AM174","v":0},{"$f":"'Population 2016'!AN174*'Prevalence Rates'!AN174","v":0},{"$f":"'Population 2016'!AO174*'Prevalence Rates'!AO174","v":0},{"$f":"'Population 2016'!AP174*'Prevalence Rates'!AP174","v":0},{"$f":"'Population 2016'!AQ174*'Prevalence Rates'!AQ174","v":0},{"$f":"'Population 2016'!AR174*'Prevalence Rates'!AR174","v":0},{"$f":"'Population 2016'!AS174*'Prevalence Rates'!AS174","v":0},{"$f":"'Population 2016'!AT174*'Prevalence Rates'!AT174","v":0},{"$f":"'Population 2016'!AU174*'Prevalence Rates'!AU174","v":0},{"$f":"'Population 2016'!AV174*'Prevalence Rates'!AV174","v":0},{"$f":"'Population 2016'!AW174*'Prevalence Rates'!AW174","v":0},{"$f":"'Population 2016'!AX174*'Prevalence Rates'!AX174","v":0},{"$f":"'Population 2016'!AY174*'Prevalence Rates'!AY174","v":0},{"$f":"'Population 2016'!AZ174*'Prevalence Rates'!AZ174","v":0},{"$f":"'Population 2016'!BA174*'Prevalence Rates'!BA174","v":0},{"$f":"'Population 2016'!BB174*'Prevalence Rates'!BB174","v":0},{"$f":"'Population 2016'!BC174*'Prevalence Rates'!BC174","v":0},172]
[null,"Female 5-9",{"$f":"'Population 2016'!C175*'Prevalence Rates'!C175","v":0},{"$f":"'Population 2016'!D175*'Prevalence Rates'!D175","v":0},{"$f":"'Population 2016'!E175*'Prevalence Rates'!E175","v":0},{"$f":"'Population 2016'!F175*'Prevalence Rates'!F175","v":0},{"$f":"'Population 2016'!G175*'Prevalence Rates'!G175","v":0},{"$f":"'Population 2016'!H175*'Prevalence Rates'!H175","v":0},{"$f":"'Population 2016'!I175*'Prevalence Rates'!I175","v":0},{"$f":"'Population 2016'!J175*'Prevalence Rates'!J175","v":0},{"$f":"'Population 2016'!K175*'Prevalence Rates'!K175","v":0},{"$f":"'Population 2016'!L175*'Prevalence Rates'!L175","v":0},{"$f":"'Population 2016'!M175*'Prevalence Rates'!M175","v":0},{"$f":"'Population 2016'!N175*'Prevalence Rates'!N175","v":0},{"$f":"'Population 2016'!O175*'Prevalence Rates'!O175","v":0},{"$f":"'Population 2016'!P175*'Prevalence Rates'!P175","v":0},{"$f":"'Population 2016'!Q175*'Prevalence Rates'!Q175","v":0},{"$f":"'Population 2016'!R175*'Prevalence Rates'!R175","v":0},{"$f":"'Population 2016'!S175*'Prevalence Rates'!S175","v":0},{"$f":"'Population 2016'!T175*'Prevalence Rates'!T175","v":0},{"$f":"'Population 2016'!U175*'Prevalence Rates'!U175","v":0},{"$f":"'Population 2016'!V175*'Prevalence Rates'!V175","v":0},{"$f":"'Population 2016'!W175*'Prevalence Rates'!W175","v":0},{"$f":"'Population 2016'!X175*'Prevalence Rates'!X175","v":0},{"$f":"'Population 2016'!Y175*'Prevalence Rates'!Y175","v":0},{"$f":"'Population 2016'!Z175*'Prevalence Rates'!Z175","v":0},{"$f":"'Population 2016'!AA175*'Prevalence Rates'!AA175","v":0},{"$f":"'Population 2016'!AB175*'Prevalence Rates'!AB175","v":0},{"$f":"'Population 2016'!AC175*'Prevalence Rates'!AC175","v":0},{"$f":"'Population 2016'!AD175*'Prevalence Rates'!AD175","v":0},{"$f":"'Population 2016'!AE175*'Prevalence Rates'!AE175","v":0},{"$f":"'Population 2016'!AF175*'Prevalence Rates'!AF175","v":0},{"$f":"'Population 2016'!AG175*'Prevalence Rates'!AG175","v":0},{"$f":"'Population 2016'!AH175*'Prevalence Rates'!AH175","v":0},{"$f":"'Population 2016'!AI175*'Prevalence Rates'!AI175","v":0},{"$f":"'Population 2016'!AJ175*'Prevalence Rates'!AJ175","v":0},{"$f":"'Population 2016'!AK175*'Prevalence Rates'!AK175","v":0},{"$f":"'Population 2016'!AL175*'Prevalence Rates'!AL175","v":0},{"$f":"'Population 2016'!AM175*'Prevalence Rates'!AM175","v":0},{"$f":"'Population 2016'!AN175*'Prevalence Rates'!AN175","v":0},{"$f":"'Population 2016'!AO175*'Prevalence Rates'!AO175","v":0},{"$f":"'Population 2016'!AP175*'Prevalence Rates'!AP175","v":0},{"$f":"'Population 2016'!AQ175*'Prevalence Rates'!AQ175","v":0},{"$f":"'Population 2016'!AR175*'Prevalence Rates'!AR175","v":0},{"$f":"'Population 2016'!AS175*'Prevalence Rates'!AS175","v":0},{"$f":"'Population 2016'!AT175*'Prevalence Rates'!AT175","v":0},{"$f":"'Population 2016'!AU175*'Prevalence Rates'!AU175","v":0},{"$f":"'Population 2016'!AV175*'Prevalence Rates'!AV175","v":0},{"$f":"'Population 2016'!AW175*'Prevalence Rates'!AW175","v":0},{"$f":"'Population 2016'!AX175*'Prevalence Rates'!AX175","v":0},{"$f":"'Population 2016'!AY175*'Prevalence Rates'!AY175","v":0},{"$f":"'Population 2016'!AZ175*'Prevalence Rates'!AZ175","v":0},{"$f":"'Population 2016'!BA175*'Prevalence Rates'!BA175","v":0},{"$f":"'Population 2016'!BB175*'Prevalence Rates'!BB175","v":0},{"$f":"'Population 2016'!BC175*'Prevalence Rates'!BC175","v":0},173]
[null,"Female 10-15",{"$f":"'Population 2016'!C176*'Prevalence Rates'!C176","v":0},{"$f":"'Population 2016'!D176*'Prevalence Rates'!D176","v":0},{"$f":"'Population 2016'!E176*'Prevalence Rates'!E176","v":0},{"$f":"'Population 2016'!F176*'Prevalence Rates'!F176","v":0},{"$f":"'Population 2016'!G176*'Prevalence Rates'!G176","v":0},{"$f":"'Population 2016'!H176*'Prevalence Rates'!H176","v":0},{"$f":"'Population 2016'!I176*'Prevalence Rates'!I176","v":0},{"$f":"'Population 2016'!J176*'Prevalence Rates'!J176","v":0},{"$f":"'Population 2016'!K176*'Prevalence Rates'!K176","v":0},{"$f":"'Population 2016'!L176*'Prevalence Rates'!L176","v":0},{"$f":"'Population 2016'!M176*'Prevalence Rates'!M176","v":0},{"$f":"'Population 2016'!N176*'Prevalence Rates'!N176","v":0},{"$f":"'Population 2016'!O176*'Prevalence Rates'!O176","v":0},{"$f":"'Population 2016'!P176*'Prevalence Rates'!P176","v":0},{"$f":"'Population 2016'!Q176*'Prevalence Rates'!Q176","v":0},{"$f":"'Population 2016'!R176*'Prevalence Rates'!R176","v":0},{"$f":"'Population 2016'!S176*'Prevalence Rates'!S176","v":0},{"$f":"'Population 2016'!T176*'Prevalence Rates'!T176","v":0},{"$f":"'Population 2016'!U176*'Prevalence Rates'!U176","v":0},{"$f":"'Population 2016'!V176*'Prevalence Rates'!V176","v":0},{"$f":"'Population 2016'!W176*'Prevalence Rates'!W176","v":0},{"$f":"'Population 2016'!X176*'Prevalence Rates'!X176","v":0},{"$f":"'Population 2016'!Y176*'Prevalence Rates'!Y176","v":0},{"$f":"'Population 2016'!Z176*'Prevalence Rates'!Z176","v":0},{"$f":"'Population 2016'!AA176*'Prevalence Rates'!AA176","v":0},{"$f":"'Population 2016'!AB176*'Prevalence Rates'!AB176","v":0},{"$f":"'Population 2016'!AC176*'Prevalence Rates'!AC176","v":0},{"$f":"'Population 2016'!AD176*'Prevalence Rates'!AD176","v":0},{"$f":"'Population 2016'!AE176*'Prevalence Rates'!AE176","v":0},{"$f":"'Population 2016'!AF176*'Prevalence Rates'!AF176","v":0},{"$f":"'Population 2016'!AG176*'Prevalence Rates'!AG176","v":0},{"$f":"'Population 2016'!AH176*'Prevalence Rates'!AH176","v":0},{"$f":"'Population 2016'!AI176*'Prevalence Rates'!AI176","v":0},{"$f":"'Population 2016'!AJ176*'Prevalence Rates'!AJ176","v":0},{"$f":"'Population 2016'!AK176*'Prevalence Rates'!AK176","v":0},{"$f":"'Population 2016'!AL176*'Prevalence Rates'!AL176","v":0},{"$f":"'Population 2016'!AM176*'Prevalence Rates'!AM176","v":0},{"$f":"'Population 2016'!AN176*'Prevalence Rates'!AN176","v":0},{"$f":"'Population 2016'!AO176*'Prevalence Rates'!AO176","v":0},{"$f":"'Population 2016'!AP176*'Prevalence Rates'!AP176","v":0},{"$f":"'Population 2016'!AQ176*'Prevalence Rates'!AQ176","v":0},{"$f":"'Population 2016'!AR176*'Prevalence Rates'!AR176","v":0},{"$f":"'Population 2016'!AS176*'Prevalence Rates'!AS176","v":0},{"$f":"'Population 2016'!AT176*'Prevalence Rates'!AT176","v":0},{"$f":"'Population 2016'!AU176*'Prevalence Rates'!AU176","v":0},{"$f":"'Population 2016'!AV176*'Prevalence Rates'!AV176","v":0},{"$f":"'Population 2016'!AW176*'Prevalence Rates'!AW176","v":0},{"$f":"'Population 2016'!AX176*'Prevalence Rates'!AX176","v":0},{"$f":"'Population 2016'!AY176*'Prevalence Rates'!AY176","v":0},{"$f":"'Population 2016'!AZ176*'Prevalence Rates'!AZ176","v":0},{"$f":"'Population 2016'!BA176*'Prevalence Rates'!BA176","v":0},{"$f":"'Population 2016'!BB176*'Prevalence Rates'!BB176","v":0},{"$f":"'Population 2016'!BC176*'Prevalence Rates'!BC176","v":0},174]
[null,"Female 16-19",{"$f":"'Population 2016'!C177*'Prevalence Rates'!C177","v":156.127330901356},{"$f":"'Population 2016'!D177*'Prevalence Rates'!D177","v":427.027458393953},{"$f":"'Population 2016'!E177*'Prevalence Rates'!E177","v":270.33045822355371},{"$f":"'Population 2016'!F177*'Prevalence Rates'!F177","v":82.909851519333955},{"$f":"'Population 2016'!G177*'Prevalence Rates'!G177","v":51.168763189174207},{"$f":"'Population 2016'!H177*'Prevalence Rates'!H177","v":212.12402307035688},{"$f":"'Population 2016'!I177*'Prevalence Rates'!I177","v":149.7217516167938},{"$f":"'Population 2016'!J177*'Prevalence Rates'!J177","v":122.53116394598644},{"$f":"'Population 2016'!K177*'Prevalence Rates'!K177","v":35.820716225795593},{"$f":"'Population 2016'!L177*'Prevalence Rates'!L177","v":85.617792304774412},{"$f":"'Population 2016'!M177*'Prevalence Rates'!M177","v":85.617792304774412},{"$f":"'Population 2016'!N177*'Prevalence Rates'!N177","v":116.7183391253225},{"$f":"'Population 2016'!O177*'Prevalence Rates'!O177","v":67.685722829688657},{"$f":"'Population 2016'!P177*'Prevalence Rates'!P177","v":46.921225702019541},{"$f":"'Population 2016'!Q177*'Prevalence Rates'!Q177","v":137.3335522689043},{"$f":"'Population 2016'!R177*'Prevalence Rates'!R177","v":39.770508202629898},{"$f":"'Population 2016'!S177*'Prevalence Rates'!S177","v":802.25298645568739},{"$f":"'Population 2016'!T177*'Prevalence Rates'!T177","v":191.236890537032},{"$f":"'Population 2016'!U177*'Prevalence Rates'!U177","v":3.5070132552145585},{"$f":"'Population 2016'!V177*'Prevalence Rates'!V177","v":93.782583819504239},{"$f":"'Population 2016'!W177*'Prevalence Rates'!W177","v":198.80295532742767},{"$f":"'Population 2016'!X177*'Prevalence Rates'!X177","v":198.80295532742767},{"$f":"'Population 2016'!Y177*'Prevalence Rates'!Y177","v":219.11683029369078},{"$f":"'Population 2016'!Z177*'Prevalence Rates'!Z177","v":243.08258755927986},{"$f":"'Population 2016'!AA177*'Prevalence Rates'!AA177","v":885.03976527321822},{"$f":"'Population 2016'!AB177*'Prevalence Rates'!AB177","v":545.82078332172875},{"$f":"'Population 2016'!AC177*'Prevalence Rates'!AC177","v":509.75606092831401},{"$f":"'Population 2016'!AD177*'Prevalence Rates'!AD177","v":235.56101016610273},{"$f":"'Population 2016'!AE177*'Prevalence Rates'!AE177","v":184.64487038390448},{"$f":"'Population 2016'!AF177*'Prevalence Rates'!AF177","v":48.201560318096384},{"$f":"'Population 2016'!AG177*'Prevalence Rates'!AG177","v":184.64487038390448},{"$f":"'Population 2016'!AH177*'Prevalence Rates'!AH177","v":369.49734717252176},{"$f":"'Population 2016'!AI177*'Prevalence Rates'!AI177","v":462.99253022906743},{"$f":"'Population 2016'!AJ177*'Prevalence Rates'!AJ177","v":41.315771798715573},{"$f":"'Population 2016'!AK177*'Prevalence Rates'!AK177","v":121.72872747632432},{"$f":"'Population 2016'!AL177*'Prevalence Rates'!AL177","v":98.45755301715036},{"$f":"'Population 2016'!AM177*'Prevalence Rates'!AM177","v":162.11386502429886},{"$f":"'Population 2016'!AN177*'Prevalence Rates'!AN177","v":24.660296752565429},{"$f":"'Population 2016'!AO177*'Prevalence Rates'!AO177","v":24.660296752565429},{"$f":"'Population 2016'!AP177*'Prevalence Rates'!AP177","v":156.44516158466672},{"$f":"'Population 2016'!AQ177*'Prevalence Rates'!AQ177","v":76.416606828245833},{"$f":"'Population 2016'!AR177*'Prevalence Rates'!AR177","v":3511.2},{"$f":"'Population 2016'!AS177*'Prevalence Rates'!AS177","v":149.7217516167938},{"$f":"'Population 2016'!AT177*'Prevalence Rates'!AT177","v":36.715719815819988},{"$f":"'Population 2016'!AU177*'Prevalence Rates'!AU177","v":36.715719815819988},{"$f":"'Population 2016'!AV177*'Prevalence Rates'!AV177","v":48.088411650430842},{"$f":"'Population 2016'!AW177*'Prevalence Rates'!AW177","v":207.56927769397686},{"$f":"'Population 2016'!AX177*'Prevalence Rates'!AX177","v":74.158403300410498},{"$f":"'Population 2016'!AY177*'Prevalence Rates'!AY177","v":594.31744540628347},{"$f":"'Population 2016'!AZ177*'Prevalence Rates'!AZ177","v":368.63260948933527},{"$f":"'Population 2016'!BA177*'Prevalence Rates'!BA177","v":33.626325362101618},{"$f":"'Population 2016'!BB177*'Prevalence Rates'!BB177","v":100.08459722326432},{"$f":"'Population 2016'!BC177*'Prevalence Rates'!BC177","v":3.5070132552145585},175]
[null,"Female 20-24",{"$f":"'Population 2016'!C178*'Prevalence Rates'!C178","v":371.12707493372238},{"$f":"'Population 2016'!D178*'Prevalence Rates'!D178","v":682.44038713764803},{"$f":"'Population 2016'!E178*'Prevalence Rates'!E178","v":311.72213345313691},{"$f":"'Population 2016'!F178*'Prevalence Rates'!F178","v":92.38109993542659},{"$f":"'Population 2016'!G178*'Prevalence Rates'!G178","v":54.477597760298636},{"$f":"'Population 2016'!H178*'Prevalence Rates'!H178","v":255.98498300988172},{"$f":"'Population 2016'!I178*'Prevalence Rates'!I178","v":143.73288155212205},{"$f":"'Population 2016'!J178*'Prevalence Rates'!J178","v":174.60690862303068},{"$f":"'Population 2016'!K178*'Prevalence Rates'!K178","v":38.222105023055633},{"$f":"'Population 2016'!L178*'Prevalence Rates'!L178","v":111.07173055754518},{"$f":"'Population 2016'!M178*'Prevalence Rates'!M178","v":111.07173055754518},{"$f":"'Population 2016'!N178*'Prevalence Rates'!N178","v":254.96102619033127},{"$f":"'Population 2016'!O178*'Prevalence Rates'!O178","v":89.377289789944967},{"$f":"'Population 2016'!P178*'Prevalence Rates'!P178","v":71.289155072129134},{"$f":"'Population 2016'!Q178*'Prevalence Rates'!Q178","v":174.41675402572514},{"$f":"'Population 2016'!R178*'Prevalence Rates'!R178","v":40.91663235832528},{"$f":"'Population 2016'!S178*'Prevalence Rates'!S178","v":1240.9375705960699},{"$f":"'Population 2016'!T178*'Prevalence Rates'!T178","v":497.6767271807098},{"$f":"'Population 2016'!U178*'Prevalence Rates'!U178","v":6.0465745779561351},{"$f":"'Population 2016'!V178*'Prevalence Rates'!V178","v":124.78509086727423},{"$f":"'Population 2016'!W178*'Prevalence Rates'!W178","v":257.02841635374551},{"$f":"'Population 2016'!X178*'Prevalence Rates'!X178","v":257.02841635374551},{"$f":"'Population 2016'!Y178*'Prevalence Rates'!Y178","v":303.81249398970323},{"$f":"'Population 2016'!Z178*'Prevalence Rates'!Z178","v":865.8721030159918},{"$f":"'Population 2016'!AA178*'Prevalence Rates'!AA178","v":1546.060925570363},{"$f":"'Population 2016'!AB178*'Prevalence Rates'!AB178","v":809.05453352940867},{"$f":"'Population 2016'!AC178*'Prevalence Rates'!AC178","v":1138.6415852119044},{"$f":"'Population 2016'!AD178*'Prevalence Rates'!AD178","v":257.71294483228814},{"$f":"'Population 2016'!AE178*'Prevalence Rates'!AE178","v":203.560901388204},{"$f":"'Population 2016'!AF178*'Prevalence Rates'!AF178","v":58.880059834720811},{"$f":"'Population 2016'!AG178*'Prevalence Rates'!AG178","v":203.560901388204},{"$f":"'Population 2016'!AH178*'Prevalence Rates'!AH178","v":416.0255789968113},{"$f":"'Population 2016'!AI178*'Prevalence Rates'!AI178","v":837.18996856270235},{"$f":"'Population 2016'!AJ178*'Prevalence Rates'!AJ178","v":47.793854484925333},{"$f":"'Population 2016'!AK178*'Prevalence Rates'!AK178","v":126.28373792382548},{"$f":"'Population 2016'!AL178*'Prevalence Rates'!AL178","v":114.2620192281463},{"$f":"'Population 2016'!AM178*'Prevalence Rates'!AM178","v":182.16328296016621},{"$f":"'Population 2016'!AN178*'Prevalence Rates'!AN178","v":29.166746920546931},{"$f":"'Population 2016'!AO178*'Prevalence Rates'!AO178","v":29.166746920546931},{"$f":"'Population 2016'!AP178*'Prevalence Rates'!AP178","v":159.78524423557903},{"$f":"'Population 2016'!AQ178*'Prevalence Rates'!AQ178","v":96.140831465521032},{"$f":"'Population 2016'!AR178*'Prevalence Rates'!AR178","v":5224.95},{"$f":"'Population 2016'!AS178*'Prevalence Rates'!AS178","v":143.73288155212205},{"$f":"'Population 2016'!AT178*'Prevalence Rates'!AT178","v":36.715719815819988},{"$f":"'Population 2016'!AU178*'Prevalence Rates'!AU178","v":36.715719815819988},{"$f":"'Population 2016'!AV178*'Prevalence Rates'!AV178","v":55.26092050676629},{"$f":"'Population 2016'!AW178*'Prevalence Rates'!AW178","v":234.07361294428341},{"$f":"'Population 2016'!AX178*'Prevalence Rates'!AX178","v":112.45418360675657},{"$f":"'Population 2016'!AY178*'Prevalence Rates'!AY178","v":813.47913292774649},{"$f":"'Population 2016'!AZ178*'Prevalence Rates'!AZ178","v":516.36225346954302},{"$f":"'Population 2016'!BA178*'Prevalence Rates'!BA178","v":43.166817674139757},{"$f":"'Population 2016'!BB178*'Prevalence Rates'!BB178","v":122.14466377099566},{"$f":"'Population 2016'!BC178*'Prevalence Rates'!BC178","v":6.0465745779561351},176]
[null,"Female 25-29",{"$f":"'Population 2016'!C179*'Prevalence Rates'!C179","v":310.19753122824989},{"$f":"'Population 2016'!D179*'Prevalence Rates'!D179","v":656.08230270204126},{"$f":"'Population 2016'!E179*'Prevalence Rates'!E179","v":345.77236743510349},{"$f":"'Population 2016'!F179*'Prevalence Rates'!F179","v":94.301502967328616},{"$f":"'Population 2016'!G179*'Prevalence Rates'!G179","v":49.208309006465875},{"$f":"'Population 2016'!H179*'Prevalence Rates'!H179","v":239.45874657249101},{"$f":"'Population 2016'!I179*'Prevalence Rates'!I179","v":138.99443490754661},{"$f":"'Population 2016'!J179*'Prevalence Rates'!J179","v":140.95368160220121},{"$f":"'Population 2016'!K179*'Prevalence Rates'!K179","v":35.918208506026247},{"$f":"'Population 2016'!L179*'Prevalence Rates'!L179","v":110.81614143397424},{"$f":"'Population 2016'!M179*'Prevalence Rates'!M179","v":110.81614143397424},{"$f":"'Population 2016'!N179*'Prevalence Rates'!N179","v":131.14346302690407},{"$f":"'Population 2016'!O179*'Prevalence Rates'!O179","v":84.871088201572647},{"$f":"'Population 2016'!P179*'Prevalence Rates'!P179","v":57.961905102933898},{"$f":"'Population 2016'!Q179*'Prevalence Rates'!Q179","v":125.22228494154628},{"$f":"'Population 2016'!R179*'Prevalence Rates'!R179","v":44.904556664167956},{"$f":"'Population 2016'!S179*'Prevalence Rates'!S179","v":1456.9404559532343},{"$f":"'Population 2016'!T179*'Prevalence Rates'!T179","v":709.82738331864061},{"$f":"'Population 2016'!U179*'Prevalence Rates'!U179","v":5.0853242604349047},{"$f":"'Population 2016'!V179*'Prevalence Rates'!V179","v":123.37407932856163},{"$f":"'Population 2016'!W179*'Prevalence Rates'!W179","v":260.6494642912088},{"$f":"'Population 2016'!X179*'Prevalence Rates'!X179","v":260.6494642912088},{"$f":"'Population 2016'!Y179*'Prevalence Rates'!Y179","v":266.80685266875724},{"$f":"'Population 2016'!Z179*'Prevalence Rates'!Z179","v":736.79378298946267},{"$f":"'Population 2016'!AA179*'Prevalence Rates'!AA179","v":1413.1489562662434},{"$f":"'Population 2016'!AB179*'Prevalence Rates'!AB179","v":798.60741725066703},{"$f":"'Population 2016'!AC179*'Prevalence Rates'!AC179","v":998.50028591030241},{"$f":"'Population 2016'!AD179*'Prevalence Rates'!AD179","v":282.69555967439641},{"$f":"'Population 2016'!AE179*'Prevalence Rates'!AE179","v":234.18953852138583},{"$f":"'Population 2016'!AF179*'Prevalence Rates'!AF179","v":48.524805495771979},{"$f":"'Population 2016'!AG179*'Prevalence Rates'!AG179","v":234.18953852138583},{"$f":"'Population 2016'!AH179*'Prevalence Rates'!AH179","v":419.32850903372076},{"$f":"'Population 2016'!AI179*'Prevalence Rates'!AI179","v":1045.7513462783168},{"$f":"'Population 2016'!AJ179*'Prevalence Rates'!AJ179","v":56.844714169589913},{"$f":"'Population 2016'!AK179*'Prevalence Rates'!AK179","v":143.85939273628802},{"$f":"'Population 2016'!AL179*'Prevalence Rates'!AL179","v":109.08696012579317},{"$f":"'Population 2016'!AM179*'Prevalence Rates'!AM179","v":181.25261342754806},{"$f":"'Population 2016'!AN179*'Prevalence Rates'!AN179","v":32.995945674394463},{"$f":"'Population 2016'!AO179*'Prevalence Rates'!AO179","v":32.995945674394463},{"$f":"'Population 2016'!AP179*'Prevalence Rates'!AP179","v":153.27360254145142},{"$f":"'Population 2016'!AQ179*'Prevalence Rates'!AQ179","v":90.853176588093973},{"$f":"'Population 2016'!AR179*'Prevalence Rates'!AR179","v":5143.5384615384619},{"$f":"'Population 2016'!AS179*'Prevalence Rates'!AS179","v":138.99443490754661},{"$f":"'Population 2016'!AT179*'Prevalence Rates'!AT179","v":47.823541244876786},{"$f":"'Population 2016'!AU179*'Prevalence Rates'!AU179","v":47.823541244876786},{"$f":"'Population 2016'!AV179*'Prevalence Rates'!AV179","v":48.987065149330697},{"$f":"'Population 2016'!AW179*'Prevalence Rates'!AW179","v":238.3026352215411},{"$f":"'Population 2016'!AX179*'Prevalence Rates'!AX179","v":88.103622634234355},{"$f":"'Population 2016'!AY179*'Prevalence Rates'!AY179","v":672.14995302113266},{"$f":"'Population 2016'!AZ179*'Prevalence Rates'!AZ179","v":388.91662301739785},{"$f":"'Population 2016'!BA179*'Prevalence Rates'!BA179","v":45.717365429690936},{"$f":"'Population 2016'!BB179*'Prevalence Rates'!BB179","v":152.15409864620065},{"$f":"'Population 2016'!BC179*'Prevalence Rates'!BC179","v":5.0853242604349047},177]
[null,"Female 30-34",{"$f":"'Population 2016'!C180*'Prevalence Rates'!C180","v":245.52371388724549},{"$f":"'Population 2016'!D180*'Prevalence Rates'!D180","v":667.12002650254669},{"$f":"'Population 2016'!E180*'Prevalence Rates'!E180","v":420.72387129910555},{"$f":"'Population 2016'!F180*'Prevalence Rates'!F180","v":105.65952868130164},{"$f":"'Population 2016'!G180*'Prevalence Rates'!G180","v":51.632363637326264},{"$f":"'Population 2016'!H180*'Prevalence Rates'!H180","v":260.16008459704551},{"$f":"'Population 2016'!I180*'Prevalence Rates'!I180","v":161.45818196331172},{"$f":"'Population 2016'!J180*'Prevalence Rates'!J180","v":127.67233166399988},{"$f":"'Population 2016'!K180*'Prevalence Rates'!K180","v":48.233022850949531},{"$f":"'Population 2016'!L180*'Prevalence Rates'!L180","v":113.91972364876429},{"$f":"'Population 2016'!M180*'Prevalence Rates'!M180","v":113.91972364876429},{"$f":"'Population 2016'!N180*'Prevalence Rates'!N180","v":102.62830122646501},{"$f":"'Population 2016'!O180*'Prevalence Rates'!O180","v":94.96497975952667},{"$f":"'Population 2016'!P180*'Prevalence Rates'!P180","v":62.083049731812224},{"$f":"'Population 2016'!Q180*'Prevalence Rates'!Q180","v":139.08215174331332},{"$f":"'Population 2016'!R180*'Prevalence Rates'!R180","v":40.084957650474536},{"$f":"'Population 2016'!S180*'Prevalence Rates'!S180","v":1431.9875044490041},{"$f":"'Population 2016'!T180*'Prevalence Rates'!T180","v":598.7599275850539},{"$f":"'Population 2016'!U180*'Prevalence Rates'!U180","v":7.5659702411348579},{"$f":"'Population 2016'!V180*'Prevalence Rates'!V180","v":140.22672418529814},{"$f":"'Population 2016'!W180*'Prevalence Rates'!W180","v":274.83671361338855},{"$f":"'Population 2016'!X180*'Prevalence Rates'!X180","v":274.83671361338855},{"$f":"'Population 2016'!Y180*'Prevalence Rates'!Y180","v":268.77423161639979},{"$f":"'Population 2016'!Z180*'Prevalence Rates'!Z180","v":587.49230840907842},{"$f":"'Population 2016'!AA180*'Prevalence Rates'!AA180","v":1362.4523343574051},{"$f":"'Population 2016'!AB180*'Prevalence Rates'!AB180","v":827.85934283114375},{"$f":"'Population 2016'!AC180*'Prevalence Rates'!AC180","v":876.47552218865405},{"$f":"'Population 2016'!AD180*'Prevalence Rates'!AD180","v":331.11508899939184},{"$f":"'Population 2016'!AE180*'Prevalence Rates'!AE180","v":280.50174015308693},{"$f":"'Population 2016'!AF180*'Prevalence Rates'!AF180","v":43.352882652962428},{"$f":"'Population 2016'!AG180*'Prevalence Rates'!AG180","v":280.50174015308693},{"$f":"'Population 2016'!AH180*'Prevalence Rates'!AH180","v":483.98787519663034},{"$f":"'Population 2016'!AI180*'Prevalence Rates'!AI180","v":989.63785940484604},{"$f":"'Population 2016'!AJ180*'Prevalence Rates'!AJ180","v":71.018980559929219},{"$f":"'Population 2016'!AK180*'Prevalence Rates'!AK180","v":163.35209880693847},{"$f":"'Population 2016'!AL180*'Prevalence Rates'!AL180","v":102.73450662449196},{"$f":"'Population 2016'!AM180*'Prevalence Rates'!AM180","v":200.49417935867351},{"$f":"'Population 2016'!AN180*'Prevalence Rates'!AN180","v":37.232779165659117},{"$f":"'Population 2016'!AO180*'Prevalence Rates'!AO180","v":37.232779165659117},{"$f":"'Population 2016'!AP180*'Prevalence Rates'!AP180","v":184.65767112239749},{"$f":"'Population 2016'!AQ180*'Prevalence Rates'!AQ180","v":104.05717158556362},{"$f":"'Population 2016'!AR180*'Prevalence Rates'!AR180","v":5205.8461538461543},{"$f":"'Population 2016'!AS180*'Prevalence Rates'!AS180","v":161.45818196331172},{"$f":"'Population 2016'!AT180*'Prevalence Rates'!AT180","v":45.333812416510099},{"$f":"'Population 2016'!AU180*'Prevalence Rates'!AU180","v":45.333812416510099},{"$f":"'Population 2016'!AV180*'Prevalence Rates'!AV180","v":63.031138434463045},{"$f":"'Population 2016'!AW180*'Prevalence Rates'!AW180","v":283.80617623098601},{"$f":"'Population 2016'!AX180*'Prevalence Rates'!AX180","v":71.502816891576899},{"$f":"'Population 2016'!AY180*'Prevalence Rates'!AY180","v":705.64045329133262},{"$f":"'Population 2016'!AZ180*'Prevalence Rates'!AZ180","v":407.35663531563654},{"$f":"'Population 2016'!BA180*'Prevalence Rates'!BA180","v":45.556953621165704},{"$f":"'Population 2016'!BB180*'Prevalence Rates'!BB180","v":181.91677662489857},{"$f":"'Population 2016'!BC180*'Prevalence Rates'!BC180","v":7.5659702411348579},178]
[null,"Female 35-39",{"$f":"'Population 2016'!C181*'Prevalence Rates'!C181","v":194.95375766936615},{"$f":"'Population 2016'!D181*'Prevalence Rates'!D181","v":643.56464839876548},{"$f":"'Population 2016'!E181*'Prevalence Rates'!E181","v":447.3147436405967},{"$f":"'Population 2016'!F181*'Prevalence Rates'!F181","v":116.53206103059973},{"$f":"'Population 2016'!G181*'Prevalence Rates'!G181","v":64.5329866729721},{"$f":"'Population 2016'!H181*'Prevalence Rates'!H181","v":291.90975807729842},{"$f":"'Population 2016'!I181*'Prevalence Rates'!I181","v":169.66607041978202},{"$f":"'Population 2016'!J181*'Prevalence Rates'!J181","v":143.02665479917164},{"$f":"'Population 2016'!K181*'Prevalence Rates'!K181","v":51.179740466628054},{"$f":"'Population 2016'!L181*'Prevalence Rates'!L181","v":112.87593014684794},{"$f":"'Population 2016'!M181*'Prevalence Rates'!M181","v":112.87593014684794},{"$f":"'Population 2016'!N181*'Prevalence Rates'!N181","v":88.632229982317952},{"$f":"'Population 2016'!O181*'Prevalence Rates'!O181","v":114.31257785083136},{"$f":"'Population 2016'!P181*'Prevalence Rates'!P181","v":68.201121107892163},{"$f":"'Population 2016'!Q181*'Prevalence Rates'!Q181","v":157.78210609692607},{"$f":"'Population 2016'!R181*'Prevalence Rates'!R181","v":48.533325437208589},{"$f":"'Population 2016'!S181*'Prevalence Rates'!S181","v":1341.0225535559587},{"$f":"'Population 2016'!T181*'Prevalence Rates'!T181","v":457.04239624660642},{"$f":"'Population 2016'!U181*'Prevalence Rates'!U181","v":5.8307478366466539},{"$f":"'Population 2016'!V181*'Prevalence Rates'!V181","v":152.8915421929473},{"$f":"'Population 2016'!W181*'Prevalence Rates'!W181","v":301.43862392258006},{"$f":"'Population 2016'!X181*'Prevalence Rates'!X181","v":301.43862392258006},{"$f":"'Population 2016'!Y181*'Prevalence Rates'!Y181","v":297.10069432349286},{"$f":"'Population 2016'!Z181*'Prevalence Rates'!Z181","v":441.3771022855783},{"$f":"'Population 2016'!AA181*'Prevalence Rates'!AA181","v":1370.1830300876629},{"$f":"'Population 2016'!AB181*'Prevalence Rates'!AB181","v":803.32880775102228},{"$f":"'Population 2016'!AC181*'Prevalence Rates'!AC181","v":785.82915763151357},{"$f":"'Population 2016'!AD181*'Prevalence Rates'!AD181","v":338.7652480181514},{"$f":"'Population 2016'!AE181*'Prevalence Rates'!AE181","v":274.89177981264169},{"$f":"'Population 2016'!AF181*'Prevalence Rates'!AF181","v":62.648373580573988},{"$f":"'Population 2016'!AG181*'Prevalence Rates'!AG181","v":274.89177981264169},{"$f":"'Population 2016'!AH181*'Prevalence Rates'!AH181","v":575.14267745799543},{"$f":"'Population 2016'!AI181*'Prevalence Rates'!AI181","v":870.91470673792071},{"$f":"'Population 2016'!AJ181*'Prevalence Rates'!AJ181","v":74.2379711802093},{"$f":"'Population 2016'!AK181*'Prevalence Rates'!AK181","v":162.6579680754642},{"$f":"'Population 2016'!AL181*'Prevalence Rates'!AL181","v":114.61595892393653},{"$f":"'Population 2016'!AM181*'Prevalence Rates'!AM181","v":228.76296612053585},{"$f":"'Population 2016'!AN181*'Prevalence Rates'!AN181","v":41.330403452804831},{"$f":"'Population 2016'!AO181*'Prevalence Rates'!AO181","v":41.330403452804831},{"$f":"'Population 2016'!AP181*'Prevalence Rates'!AP181","v":178.43482753571544},{"$f":"'Population 2016'!AQ181*'Prevalence Rates'!AQ181","v":105.59893026022333},{"$f":"'Population 2016'!AR181*'Prevalence Rates'!AR181","v":5156.9405099150144},{"$f":"'Population 2016'!AS181*'Prevalence Rates'!AS181","v":169.66607041978202},{"$f":"'Population 2016'!AT181*'Prevalence Rates'!AT181","v":50.463735271558356},{"$f":"'Population 2016'!AU181*'Prevalence Rates'!AU181","v":50.463735271558356},{"$f":"'Population 2016'!AV181*'Prevalence Rates'!AV181","v":64.927552485241051},{"$f":"'Population 2016'!AW181*'Prevalence Rates'!AW181","v":346.80640297270349},{"$f":"'Population 2016'!AX181*'Prevalence Rates'!AX181","v":81.61071551675586},{"$f":"'Population 2016'!AY181*'Prevalence Rates'!AY181","v":716.05100370036132},{"$f":"'Population 2016'!AZ181*'Prevalence Rates'!AZ181","v":395.74199197841858},{"$f":"'Population 2016'!BA181*'Prevalence Rates'!BA181","v":43.278469745965957},{"$f":"'Population 2016'!BB181*'Prevalence Rates'!BB181","v":186.53143708648849},{"$f":"'Population 2016'!BC181*'Prevalence Rates'!BC181","v":5.8307478366466539},179]
[null,"Female 40-44",{"$f":"'Population 2016'!C182*'Prevalence Rates'!C182","v":156.08400148548168},{"$f":"'Population 2016'!D182*'Prevalence Rates'!D182","v":643.41424768635636},{"$f":"'Population 2016'!E182*'Prevalence Rates'!E182","v":485.61326349745048},{"$f":"'Population 2016'!F182*'Prevalence Rates'!F182","v":125.8485167617486},{"$f":"'Population 2016'!G182*'Prevalence Rates'!G182","v":79.520494134449308},{"$f":"'Population 2016'!H182*'Prevalence Rates'!H182","v":359.03883136336708},{"$f":"'Population 2016'!I182*'Prevalence Rates'!I182","v":223.83008021552638},{"$f":"'Population 2016'!J182*'Prevalence Rates'!J182","v":174.40495151531644},{"$f":"'Population 2016'!K182*'Prevalence Rates'!K182","v":67.959983242571681},{"$f":"'Population 2016'!L182*'Prevalence Rates'!L182","v":139.74226723965143},{"$f":"'Population 2016'!M182*'Prevalence Rates'!M182","v":139.74226723965143},{"$f":"'Population 2016'!N182*'Prevalence Rates'!N182","v":86.88644363418139},{"$f":"'Population 2016'!O182*'Prevalence Rates'!O182","v":117.68090427000871},{"$f":"'Population 2016'!P182*'Prevalence Rates'!P182","v":81.107707771736301},{"$f":"'Population 2016'!Q182*'Prevalence Rates'!Q182","v":190.39260401675003},{"$f":"'Population 2016'!R182*'Prevalence Rates'!R182","v":55.621113062939543},{"$f":"'Population 2016'!S182*'Prevalence Rates'!S182","v":1401.2681591233645},{"$f":"'Population 2016'!T182*'Prevalence Rates'!T182","v":389.87467288803975},{"$f":"'Population 2016'!U182*'Prevalence Rates'!U182","v":6.5912801631657825},{"$f":"'Population 2016'!V182*'Prevalence Rates'!V182","v":187.98673147421894},{"$f":"'Population 2016'!W182*'Prevalence Rates'!W182","v":347.63223855053695},{"$f":"'Population 2016'!X182*'Prevalence Rates'!X182","v":347.63223855053695},{"$f":"'Population 2016'!Y182*'Prevalence Rates'!Y182","v":363.75889278961751},{"$f":"'Population 2016'!Z182*'Prevalence Rates'!Z182","v":371.88916198405866},{"$f":"'Population 2016'!AA182*'Prevalence Rates'!AA182","v":1433.8756269996936},{"$f":"'Population 2016'!AB182*'Prevalence Rates'!AB182","v":844.20447140723525},{"$f":"'Population 2016'!AC182*'Prevalence Rates'!AC182","v":797.3878628711733},{"$f":"'Population 2016'!AD182*'Prevalence Rates'!AD182","v":405.12263555129488},{"$f":"'Population 2016'!AE182*'Prevalence Rates'!AE182","v":326.31406714846389},{"$f":"'Population 2016'!AF182*'Prevalence Rates'!AF182","v":72.442039921954049},{"$f":"'Population 2016'!AG182*'Prevalence Rates'!AG182","v":326.31406714846389},{"$f":"'Population 2016'!AH182*'Prevalence Rates'!AH182","v":624.96529620664671},{"$f":"'Population 2016'!AI182*'Prevalence Rates'!AI182","v":840.55535604529598},{"$f":"'Population 2016'!AJ182*'Prevalence Rates'!AJ182","v":71.220167473696719},{"$f":"'Population 2016'!AK182*'Prevalence Rates'!AK182","v":206.94439865471509},{"$f":"'Population 2016'!AL182*'Prevalence Rates'!AL182","v":147.97099384516025},{"$f":"'Population 2016'!AM182*'Prevalence Rates'!AM182","v":257.73360421847775},{"$f":"'Population 2016'!AN182*'Prevalence Rates'!AN182","v":44.348178943009628},{"$f":"'Population 2016'!AO182*'Prevalence Rates'!AO182","v":44.348178943009628},{"$f":"'Population 2016'!AP182*'Prevalence Rates'!AP182","v":225.75393686322479},{"$f":"'Population 2016'!AQ182*'Prevalence Rates'!AQ182","v":125.90165542162617},{"$f":"'Population 2016'!AR182*'Prevalence Rates'!AR182","v":5629.3980169971674},{"$f":"'Population 2016'!AS182*'Prevalence Rates'!AS182","v":223.83008021552638},{"$f":"'Population 2016'!AT182*'Prevalence Rates'!AT182","v":53.962271540384883},{"$f":"'Population 2016'!AU182*'Prevalence Rates'!AU182","v":53.962271540384883},{"$f":"'Population 2016'!AV182*'Prevalence Rates'!AV182","v":93.119779222253612},{"$f":"'Population 2016'!AW182*'Prevalence Rates'!AW182","v":367.64196396975751},{"$f":"'Population 2016'!AX182*'Prevalence Rates'!AX182","v":96.580072303117319},{"$f":"'Population 2016'!AY182*'Prevalence Rates'!AY182","v":826.79902994581482},{"$f":"'Population 2016'!AZ182*'Prevalence Rates'!AZ182","v":457.28428643526888},{"$f":"'Population 2016'!BA182*'Prevalence Rates'!BA182","v":54.425954377502642},{"$f":"'Population 2016'!BB182*'Prevalence Rates'!BB182","v":197.23914853321702},{"$f":"'Population 2016'!BC182*'Prevalence Rates'!BC182","v":6.5912801631657825},180]
[null,"Female 45-49",{"$f":"'Population 2016'!C183*'Prevalence Rates'!C183","v":176.6560556268924},{"$f":"'Population 2016'!D183*'Prevalence Rates'!D183","v":814.71504910487204},{"$f":"'Population 2016'!E183*'Prevalence Rates'!E183","v":635.65727339869693},{"$f":"'Population 2016'!F183*'Prevalence Rates'!F183","v":183.27057410815681},{"$f":"'Population 2016'!G183*'Prevalence Rates'!G183","v":116.14956108089197},{"$f":"'Population 2016'!H183*'Prevalence Rates'!H183","v":476.76917931468836},{"$f":"'Population 2016'!I183*'Prevalence Rates'!I183","v":327.46911364900853},{"$f":"'Population 2016'!J183*'Prevalence Rates'!J183","v":225.94940427606269},{"$f":"'Population 2016'!K183*'Prevalence Rates'!K183","v":92.682255980020486},{"$f":"'Population 2016'!L183*'Prevalence Rates'!L183","v":210.72390402180849},{"$f":"'Population 2016'!M183*'Prevalence Rates'!M183","v":210.72390402180849},{"$f":"'Population 2016'!N183*'Prevalence Rates'!N183","v":110.83413324449802},{"$f":"'Population 2016'!O183*'Prevalence Rates'!O183","v":155.65414135209915},{"$f":"'Population 2016'!P183*'Prevalence Rates'!P183","v":114.07401799659834},{"$f":"'Population 2016'!Q183*'Prevalence Rates'!Q183","v":252.44300462479472},{"$f":"'Population 2016'!R183*'Prevalence Rates'!R183","v":74.658929650824007},{"$f":"'Population 2016'!S183*'Prevalence Rates'!S183","v":1755.8632030294223},{"$f":"'Population 2016'!T183*'Prevalence Rates'!T183","v":405.82090445023834},{"$f":"'Population 2016'!U183*'Prevalence Rates'!U183","v":7.262961510597604},{"$f":"'Population 2016'!V183*'Prevalence Rates'!V183","v":233.46156915446446},{"$f":"'Population 2016'!W183*'Prevalence Rates'!W183","v":475.19941258442202},{"$f":"'Population 2016'!X183*'Prevalence Rates'!X183","v":475.19941258442202},{"$f":"'Population 2016'!Y183*'Prevalence Rates'!Y183","v":461.66747364466357},{"$f":"'Population 2016'!Z183*'Prevalence Rates'!Z183","v":456.98369540396754},{"$f":"'Population 2016'!AA183*'Prevalence Rates'!AA183","v":1881.8514858608419},{"$f":"'Population 2016'!AB183*'Prevalence Rates'!AB183","v":1067.5408025193676},{"$f":"'Population 2016'!AC183*'Prevalence Rates'!AC183","v":1075.6139725668609},{"$f":"'Population 2016'!AD183*'Prevalence Rates'!AD183","v":534.2058005304749},{"$f":"'Population 2016'!AE183*'Prevalence Rates'!AE183","v":418.625575791247},{"$f":"'Population 2016'!AF183*'Prevalence Rates'!AF183","v":106.03259114328525},{"$f":"'Population 2016'!AG183*'Prevalence Rates'!AG183","v":418.625575791247},{"$f":"'Population 2016'!AH183*'Prevalence Rates'!AH183","v":793.30996374046026},{"$f":"'Population 2016'!AI183*'Prevalence Rates'!AI183","v":977.06723937280515},{"$f":"'Population 2016'!AJ183*'Prevalence Rates'!AJ183","v":91.779151975385062},{"$f":"'Population 2016'!AK183*'Prevalence Rates'!AK183","v":260.50544727078176},{"$f":"'Population 2016'!AL183*'Prevalence Rates'!AL183","v":209.17749336317368},{"$f":"'Population 2016'!AM183*'Prevalence Rates'!AM183","v":343.3776878815778},{"$f":"'Population 2016'!AN183*'Prevalence Rates'!AN183","v":57.108421658488759},{"$f":"'Population 2016'!AO183*'Prevalence Rates'!AO183","v":57.108421658488759},{"$f":"'Population 2016'!AP183*'Prevalence Rates'!AP183","v":316.95342880495087},{"$f":"'Population 2016'!AQ183*'Prevalence Rates'!AQ183","v":179.10973219794138},{"$f":"'Population 2016'!AR183*'Prevalence Rates'!AR183","v":7309.0592105263158},{"$f":"'Population 2016'!AS183*'Prevalence Rates'!AS183","v":327.46911364900853},{"$f":"'Population 2016'!AT183*'Prevalence Rates'!AT183","v":63.783603923428046},{"$f":"'Population 2016'!AU183*'Prevalence Rates'!AU183","v":63.783603923428046},{"$f":"'Population 2016'!AV183*'Prevalence Rates'!AV183","v":114.47034336373748},{"$f":"'Population 2016'!AW183*'Prevalence Rates'!AW183","v":450.35847367497837},{"$f":"'Population 2016'!AX183*'Prevalence Rates'!AX183","v":122.67245447554787},{"$f":"'Population 2016'!AY183*'Prevalence Rates'!AY183","v":1143.4282638433256},{"$f":"'Population 2016'!AZ183*'Prevalence Rates'!AZ183","v":636.75207937543416},{"$f":"'Population 2016'!BA183*'Prevalence Rates'!BA183","v":87.068082220733416},{"$f":"'Population 2016'!BB183*'Prevalence Rates'!BB183","v":239.39748029544782},{"$f":"'Population 2016'!BC183*'Prevalence Rates'!BC183","v":7.262961510597604},181]
[null,"Female 50-54",{"$f":"'Population 2016'!C184*'Prevalence Rates'!C184","v":186.65545500199951},{"$f":"'Population 2016'!D184*'Prevalence Rates'!D184","v":838.41404259998944},{"$f":"'Population 2016'!E184*'Prevalence Rates'!E184","v":649.33973026905267},{"$f":"'Population 2016'!F184*'Prevalence Rates'!F184","v":208.34616230110021},{"$f":"'Population 2016'!G184*'Prevalence Rates'!G184","v":123.92926141180952},{"$f":"'Population 2016'!H184*'Prevalence Rates'!H184","v":513.9782454953363},{"$f":"'Population 2016'!I184*'Prevalence Rates'!I184","v":356.32275914855904},{"$f":"'Population 2016'!J184*'Prevalence Rates'!J184","v":238.17157845754369},{"$f":"'Population 2016'!K184*'Prevalence Rates'!K184","v":83.437143164058341},{"$f":"'Population 2016'!L184*'Prevalence Rates'!L184","v":233.33817664853916},{"$f":"'Population 2016'!M184*'Prevalence Rates'!M184","v":233.33817664853916},{"$f":"'Population 2016'!N184*'Prevalence Rates'!N184","v":123.41210564207123},{"$f":"'Population 2016'!O184*'Prevalence Rates'!O184","v":160.52558243763428},{"$f":"'Population 2016'!P184*'Prevalence Rates'!P184","v":127.69703064448608},{"$f":"'Population 2016'!Q184*'Prevalence Rates'!Q184","v":246.09109580964892},{"$f":"'Population 2016'!R184*'Prevalence Rates'!R184","v":74.923677628309207},{"$f":"'Population 2016'!S184*'Prevalence Rates'!S184","v":1813.4670368555526},{"$f":"'Population 2016'!T184*'Prevalence Rates'!T184","v":441.08075352542295},{"$f":"'Population 2016'!U184*'Prevalence Rates'!U184","v":9.2183742249892671},{"$f":"'Population 2016'!V184*'Prevalence Rates'!V184","v":218.06456382679272},{"$f":"'Population 2016'!W184*'Prevalence Rates'!W184","v":496.74872136463819},{"$f":"'Population 2016'!X184*'Prevalence Rates'!X184","v":496.74872136463819},{"$f":"'Population 2016'!Y184*'Prevalence Rates'!Y184","v":459.96327477554337},{"$f":"'Population 2016'!Z184*'Prevalence Rates'!Z184","v":482.30415725037534},{"$f":"'Population 2016'!AA184*'Prevalence Rates'!AA184","v":1962.5097460396812},{"$f":"'Population 2016'!AB184*'Prevalence Rates'!AB184","v":1100.8174207339196},{"$f":"'Population 2016'!AC184*'Prevalence Rates'!AC184","v":1153.6480082684261},{"$f":"'Population 2016'!AD184*'Prevalence Rates'!AD184","v":577.40642663984863},{"$f":"'Population 2016'!AE184*'Prevalence Rates'!AE184","v":454.14532161595884},{"$f":"'Population 2016'!AF184*'Prevalence Rates'!AF184","v":118.19464925503526},{"$f":"'Population 2016'!AG184*'Prevalence Rates'!AG184","v":454.14532161595884},{"$f":"'Population 2016'!AH184*'Prevalence Rates'!AH184","v":797.78819268066354},{"$f":"'Population 2016'!AI184*'Prevalence Rates'!AI184","v":988.21827478670878},{"$f":"'Population 2016'!AJ184*'Prevalence Rates'!AJ184","v":89.617686439732879},{"$f":"'Population 2016'!AK184*'Prevalence Rates'!AK184","v":270.483023593827},{"$f":"'Population 2016'!AL184*'Prevalence Rates'!AL184","v":243.21817034916185},{"$f":"'Population 2016'!AM184*'Prevalence Rates'!AM184","v":341.22744224455442},{"$f":"'Population 2016'!AN184*'Prevalence Rates'!AN184","v":59.421674181364246},{"$f":"'Population 2016'!AO184*'Prevalence Rates'!AO184","v":59.421674181364246},{"$f":"'Population 2016'!AP184*'Prevalence Rates'!AP184","v":321.55777779033889},{"$f":"'Population 2016'!AQ184*'Prevalence Rates'!AQ184","v":191.11404022034719},{"$f":"'Population 2016'!AR184*'Prevalence Rates'!AR184","v":7635.8004385964914},{"$f":"'Population 2016'!AS184*'Prevalence Rates'!AS184","v":356.32275914855904},{"$f":"'Population 2016'!AT184*'Prevalence Rates'!AT184","v":66.353639246350056},{"$f":"'Population 2016'!AU184*'Prevalence Rates'!AU184","v":66.353639246350056},{"$f":"'Population 2016'!AV184*'Prevalence Rates'!AV184","v":115.78825850114893},{"$f":"'Population 2016'!AW184*'Prevalence Rates'!AW184","v":457.0131980735743},{"$f":"'Population 2016'!AX184*'Prevalence Rates'!AX184","v":136.84576594881835},{"$f":"'Population 2016'!AY184*'Prevalence Rates'!AY184","v":1207.1624908500037},{"$f":"'Population 2016'!AZ184*'Prevalence Rates'!AZ184","v":676.1043743607803},{"$f":"'Population 2016'!BA184*'Prevalence Rates'!BA184","v":97.545154355178511},{"$f":"'Population 2016'!BB184*'Prevalence Rates'!BB184","v":222.63965667476646},{"$f":"'Population 2016'!BC184*'Prevalence Rates'!BC184","v":9.2183742249892671},182]
[null,"Female 55-59",{"$f":"'Population 2016'!C185*'Prevalence Rates'!C185","v":432.01431770459294},{"$f":"'Population 2016'!D185*'Prevalence Rates'!D185","v":1832.3461650545571},{"$f":"'Population 2016'!E185*'Prevalence Rates'!E185","v":1395.3066663055984},{"$f":"'Population 2016'!F185*'Prevalence Rates'!F185","v":461.49628361393007},{"$f":"'Population 2016'!G185*'Prevalence Rates'!G185","v":289.32141806757289},{"$f":"'Population 2016'!H185*'Prevalence Rates'!H185","v":1229.9060201842235},{"$f":"'Population 2016'!I185*'Prevalence Rates'!I185","v":835.38786706381143},{"$f":"'Population 2016'!J185*'Prevalence Rates'!J185","v":493.66230093724198},{"$f":"'Population 2016'!K185*'Prevalence Rates'!K185","v":186.03935082885087},{"$f":"'Population 2016'!L185*'Prevalence Rates'!L185","v":585.34293700597436},{"$f":"'Population 2016'!M185*'Prevalence Rates'!M185","v":585.34293700597436},{"$f":"'Population 2016'!N185*'Prevalence Rates'!N185","v":311.08883700480811},{"$f":"'Population 2016'!O185*'Prevalence Rates'!O185","v":382.71793557757559},{"$f":"'Population 2016'!P185*'Prevalence Rates'!P185","v":342.03825583163268},{"$f":"'Population 2016'!Q185*'Prevalence Rates'!Q185","v":576.605102275582},{"$f":"'Population 2016'!R185*'Prevalence Rates'!R185","v":172.73083732291096},{"$f":"'Population 2016'!S185*'Prevalence Rates'!S185","v":4087.1817084309355},{"$f":"'Population 2016'!T185*'Prevalence Rates'!T185","v":989.08986111050319},{"$f":"'Population 2016'!U185*'Prevalence Rates'!U185","v":20.25047024008407},{"$f":"'Population 2016'!V185*'Prevalence Rates'!V185","v":477.52811708618952},{"$f":"'Population 2016'!W185*'Prevalence Rates'!W185","v":1146.5504386637124},{"$f":"'Population 2016'!X185*'Prevalence Rates'!X185","v":1146.5504386637124},{"$f":"'Population 2016'!Y185*'Prevalence Rates'!Y185","v":977.6866443550507},{"$f":"'Population 2016'!Z185*'Prevalence Rates'!Z185","v":1059.8088900586858},{"$f":"'Population 2016'!AA185*'Prevalence Rates'!AA185","v":4419.1782286590278},{"$f":"'Population 2016'!AB185*'Prevalence Rates'!AB185","v":2426.1782342215529},{"$f":"'Population 2016'!AC185*'Prevalence Rates'!AC185","v":2685.1794982275219},{"$f":"'Population 2016'!AD185*'Prevalence Rates'!AD185","v":1314.4123016432977},{"$f":"'Population 2016'!AE185*'Prevalence Rates'!AE185","v":1026.3760587092879},{"$f":"'Population 2016'!AF185*'Prevalence Rates'!AF185","v":253.06549051317955},{"$f":"'Population 2016'!AG185*'Prevalence Rates'!AG185","v":1026.3760587092879},{"$f":"'Population 2016'!AH185*'Prevalence Rates'!AH185","v":1715.6541072697032},{"$f":"'Population 2016'!AI185*'Prevalence Rates'!AI185","v":2175.0798669400533},{"$f":"'Population 2016'!AJ185*'Prevalence Rates'!AJ185","v":192.01875888782732},{"$f":"'Population 2016'!AK185*'Prevalence Rates'!AK185","v":613.10630260871915},{"$f":"'Population 2016'!AL185*'Prevalence Rates'!AL185","v":548.17292713814743},{"$f":"'Population 2016'!AM185*'Prevalence Rates'!AM185","v":700.41404915064163},{"$f":"'Population 2016'!AN185*'Prevalence Rates'!AN185","v":144.20246272434241},{"$f":"'Population 2016'!AO185*'Prevalence Rates'!AO185","v":144.20246272434241},{"$f":"'Population 2016'!AP185*'Prevalence Rates'!AP185","v":721.06872773653356},{"$f":"'Population 2016'!AQ185*'Prevalence Rates'!AQ185","v":446.36571039358381},{"$f":"'Population 2016'!AR185*'Prevalence Rates'!AR185","v":17242.283464566928},{"$f":"'Population 2016'!AS185*'Prevalence Rates'!AS185","v":835.38786706381143},{"$f":"'Population 2016'!AT185*'Prevalence Rates'!AT185","v":146.01017981317105},{"$f":"'Population 2016'!AU185*'Prevalence Rates'!AU185","v":146.01017981317105},{"$f":"'Population 2016'!AV185*'Prevalence Rates'!AV185","v":304.03154338534779},{"$f":"'Population 2016'!AW185*'Prevalence Rates'!AW185","v":1016.4078353150196},{"$f":"'Population 2016'!AX185*'Prevalence Rates'!AX185","v":276.71854130091288},{"$f":"'Population 2016'!AY185*'Prevalence Rates'!AY185","v":2768.5397695685301},{"$f":"'Population 2016'!AZ185*'Prevalence Rates'!AZ185","v":1544.8955185296038},{"$f":"'Population 2016'!BA185*'Prevalence Rates'!BA185","v":252.41808539530351},{"$f":"'Population 2016'!BB185*'Prevalence Rates'!BB185","v":443.69610146734379},{"$f":"'Population 2016'!BC185*'Prevalence Rates'!BC185","v":20.25047024008407},183]
[null,"Female 60-64",{"$f":"'Population 2016'!C186*'Prevalence Rates'!C186","v":399.51950885120988},{"$f":"'Population 2016'!D186*'Prevalence Rates'!D186","v":1655.0357063967795},{"$f":"'Population 2016'!E186*'Prevalence Rates'!E186","v":1251.0782749272878},{"$f":"'Population 2016'!F186*'Prevalence Rates'!F186","v":465.28248831085386},{"$f":"'Population 2016'!G186*'Prevalence Rates'!G186","v":273.96827677860972},{"$f":"'Population 2016'!H186*'Prevalence Rates'!H186","v":1143.6164861940774},{"$f":"'Population 2016'!I186*'Prevalence Rates'!I186","v":752.88652241587738},{"$f":"'Population 2016'!J186*'Prevalence Rates'!J186","v":411.25124907068283},{"$f":"'Population 2016'!K186*'Prevalence Rates'!K186","v":152.52915720129388},{"$f":"'Population 2016'!L186*'Prevalence Rates'!L186","v":563.7587373973256},{"$f":"'Population 2016'!M186*'Prevalence Rates'!M186","v":563.7587373973256},{"$f":"'Population 2016'!N186*'Prevalence Rates'!N186","v":222.3119988583706},{"$f":"'Population 2016'!O186*'Prevalence Rates'!O186","v":341.54676371998795},{"$f":"'Population 2016'!P186*'Prevalence Rates'!P186","v":273.18153912154469},{"$f":"'Population 2016'!Q186*'Prevalence Rates'!Q186","v":481.78962912405035},{"$f":"'Population 2016'!R186*'Prevalence Rates'!R186","v":154.20032603922701},{"$f":"'Population 2016'!S186*'Prevalence Rates'!S186","v":3564.3209764501357},{"$f":"'Population 2016'!T186*'Prevalence Rates'!T186","v":829.85429288632383},{"$f":"'Population 2016'!U186*'Prevalence Rates'!U186","v":13.267549467641286},{"$f":"'Population 2016'!V186*'Prevalence Rates'!V186","v":397.41796436039016},{"$f":"'Population 2016'!W186*'Prevalence Rates'!W186","v":1044.8515540677818},{"$f":"'Population 2016'!X186*'Prevalence Rates'!X186","v":1044.8515540677818},{"$f":"'Population 2016'!Y186*'Prevalence Rates'!Y186","v":814.09985941721209},{"$f":"'Population 2016'!Z186*'Prevalence Rates'!Z186","v":827.89657680169682},{"$f":"'Population 2016'!AA186*'Prevalence Rates'!AA186","v":3646.7166974792449},{"$f":"'Population 2016'!AB186*'Prevalence Rates'!AB186","v":2184.1905869641305},{"$f":"'Population 2016'!AC186*'Prevalence Rates'!AC186","v":2173.9729805288953},{"$f":"'Population 2016'!AD186*'Prevalence Rates'!AD186","v":1252.2040087178771},{"$f":"'Population 2016'!AE186*'Prevalence Rates'!AE186","v":979.51439863090309},{"$f":"'Population 2016'!AF186*'Prevalence Rates'!AF186","v":198.6842429748144},{"$f":"'Population 2016'!AG186*'Prevalence Rates'!AG186","v":979.51439863090309},{"$f":"'Population 2016'!AH186*'Prevalence Rates'!AH186","v":1454.4501228376314},{"$f":"'Population 2016'!AI186*'Prevalence Rates'!AI186","v":1835.0916547290351},{"$f":"'Population 2016'!AJ186*'Prevalence Rates'!AJ186","v":175.39375811831846},{"$f":"'Population 2016'!AK186*'Prevalence Rates'!AK186","v":545.99111563675876},{"$f":"'Population 2016'!AL186*'Prevalence Rates'!AL186","v":549.4061620698418},{"$f":"'Population 2016'!AM186*'Prevalence Rates'!AM186","v":597.46062634160398},{"$f":"'Population 2016'!AN186*'Prevalence Rates'!AN186","v":133.36017229394074},{"$f":"'Population 2016'!AO186*'Prevalence Rates'!AO186","v":133.36017229394074},{"$f":"'Population 2016'!AP186*'Prevalence Rates'!AP186","v":681.25130014797605},{"$f":"'Population 2016'!AQ186*'Prevalence Rates'!AQ186","v":387.03214766746953},{"$f":"'Population 2016'!AR186*'Prevalence Rates'!AR186","v":15183.897637795277},{"$f":"'Population 2016'!AS186*'Prevalence Rates'!AS186","v":752.88652241587738},{"$f":"'Population 2016'!AT186*'Prevalence Rates'!AT186","v":131.70118219148029},{"$f":"'Population 2016'!AU186*'Prevalence Rates'!AU186","v":131.70118219148029},{"$f":"'Population 2016'!AV186*'Prevalence Rates'!AV186","v":264.02739293990726},{"$f":"'Population 2016'!AW186*'Prevalence Rates'!AW186","v":857.95800501427391},{"$f":"'Population 2016'!AX186*'Prevalence Rates'!AX186","v":231.82049983155946},{"$f":"'Population 2016'!AY186*'Prevalence Rates'!AY186","v":2530.5894369572866},{"$f":"'Population 2016'!AZ186*'Prevalence Rates'!AZ186","v":1414.581258390476},{"$f":"'Population 2016'!BA186*'Prevalence Rates'!BA186","v":188.7491228895114},{"$f":"'Population 2016'!BB186*'Prevalence Rates'!BB186","v":369.74675122278649},{"$f":"'Population 2016'!BC186*'Prevalence Rates'!BC186","v":13.267549467641286},184]
[null,"Female 65-69",{"$f":"'Population 2016'!C187*'Prevalence Rates'!C187","v":0},{"$f":"'Population 2016'!D187*'Prevalence Rates'!D187","v":0},{"$f":"'Population 2016'!E187*'Prevalence Rates'!E187","v":0},{"$f":"'Population 2016'!F187*'Prevalence Rates'!F187","v":0},{"$f":"'Population 2016'!G187*'Prevalence Rates'!G187","v":0},{"$f":"'Population 2016'!H187*'Prevalence Rates'!H187","v":0},{"$f":"'Population 2016'!I187*'Prevalence Rates'!I187","v":0},{"$f":"'Population 2016'!J187*'Prevalence Rates'!J187","v":0},{"$f":"'Population 2016'!K187*'Prevalence Rates'!K187","v":0},{"$f":"'Population 2016'!L187*'Prevalence Rates'!L187","v":0},{"$f":"'Population 2016'!M187*'Prevalence Rates'!M187","v":0},{"$f":"'Population 2016'!N187*'Prevalence Rates'!N187","v":0},{"$f":"'Population 2016'!O187*'Prevalence Rates'!O187","v":0},{"$f":"'Population 2016'!P187*'Prevalence Rates'!P187","v":0},{"$f":"'Population 2016'!Q187*'Prevalence Rates'!Q187","v":0},{"$f":"'Population 2016'!R187*'Prevalence Rates'!R187","v":0},{"$f":"'Population 2016'!S187*'Prevalence Rates'!S187","v":0},{"$f":"'Population 2016'!T187*'Prevalence Rates'!T187","v":0},{"$f":"'Population 2016'!U187*'Prevalence Rates'!U187","v":0},{"$f":"'Population 2016'!V187*'Prevalence Rates'!V187","v":0},{"$f":"'Population 2016'!W187*'Prevalence Rates'!W187","v":0},{"$f":"'Population 2016'!X187*'Prevalence Rates'!X187","v":0},{"$f":"'Population 2016'!Y187*'Prevalence Rates'!Y187","v":0},{"$f":"'Population 2016'!Z187*'Prevalence Rates'!Z187","v":0},{"$f":"'Population 2016'!AA187*'Prevalence Rates'!AA187","v":0},{"$f":"'Population 2016'!AB187*'Prevalence Rates'!AB187","v":0},{"$f":"'Population 2016'!AC187*'Prevalence Rates'!AC187","v":0},{"$f":"'Population 2016'!AD187*'Prevalence Rates'!AD187","v":0},{"$f":"'Population 2016'!AE187*'Prevalence Rates'!AE187","v":0},{"$f":"'Population 2016'!AF187*'Prevalence Rates'!AF187","v":0},{"$f":"'Population 2016'!AG187*'Prevalence Rates'!AG187","v":0},{"$f":"'Population 2016'!AH187*'Prevalence Rates'!AH187","v":0},{"$f":"'Population 2016'!AI187*'Prevalence Rates'!AI187","v":0},{"$f":"'Population 2016'!AJ187*'Prevalence Rates'!AJ187","v":0},{"$f":"'Population 2016'!AK187*'Prevalence Rates'!AK187","v":0},{"$f":"'Population 2016'!AL187*'Prevalence Rates'!AL187","v":0},{"$f":"'Population 2016'!AM187*'Prevalence Rates'!AM187","v":0},{"$f":"'Population 2016'!AN187*'Prevalence Rates'!AN187","v":0},{"$f":"'Population 2016'!AO187*'Prevalence Rates'!AO187","v":0},{"$f":"'Population 2016'!AP187*'Prevalence Rates'!AP187","v":0},{"$f":"'Population 2016'!AQ187*'Prevalence Rates'!AQ187","v":0},{"$f":"'Population 2016'!AR187*'Prevalence Rates'!AR187","v":0},{"$f":"'Population 2016'!AS187*'Prevalence Rates'!AS187","v":0},{"$f":"'Population 2016'!AT187*'Prevalence Rates'!AT187","v":0},{"$f":"'Population 2016'!AU187*'Prevalence Rates'!AU187","v":0},{"$f":"'Population 2016'!AV187*'Prevalence Rates'!AV187","v":0},{"$f":"'Population 2016'!AW187*'Prevalence Rates'!AW187","v":0},{"$f":"'Population 2016'!AX187*'Prevalence Rates'!AX187","v":0},{"$f":"'Population 2016'!AY187*'Prevalence Rates'!AY187","v":0},{"$f":"'Population 2016'!AZ187*'Prevalence Rates'!AZ187","v":0},{"$f":"'Population 2016'!BA187*'Prevalence Rates'!BA187","v":0},{"$f":"'Population 2016'!BB187*'Prevalence Rates'!BB187","v":0},{"$f":"'Population 2016'!BC187*'Prevalence Rates'!BC187","v":0},185]
[null,"Female 70-74",{"$f":"'Population 2016'!C188*'Prevalence Rates'!C188","v":0},{"$f":"'Population 2016'!D188*'Prevalence Rates'!D188","v":0},{"$f":"'Population 2016'!E188*'Prevalence Rates'!E188","v":0},{"$f":"'Population 2016'!F188*'Prevalence Rates'!F188","v":0},{"$f":"'Population 2016'!G188*'Prevalence Rates'!G188","v":0},{"$f":"'Population 2016'!H188*'Prevalence Rates'!H188","v":0},{"$f":"'Population 2016'!I188*'Prevalence Rates'!I188","v":0},{"$f":"'Population 2016'!J188*'Prevalence Rates'!J188","v":0},{"$f":"'Population 2016'!K188*'Prevalence Rates'!K188","v":0},{"$f":"'Population 2016'!L188*'Prevalence Rates'!L188","v":0},{"$f":"'Population 2016'!M188*'Prevalence Rates'!M188","v":0},{"$f":"'Population 2016'!N188*'Prevalence Rates'!N188","v":0},{"$f":"'Population 2016'!O188*'Prevalence Rates'!O188","v":0},{"$f":"'Population 2016'!P188*'Prevalence Rates'!P188","v":0},{"$f":"'Population 2016'!Q188*'Prevalence Rates'!Q188","v":0},{"$f":"'Population 2016'!R188*'Prevalence Rates'!R188","v":0},{"$f":"'Population 2016'!S188*'Prevalence Rates'!S188","v":0},{"$f":"'Population 2016'!T188*'Prevalence Rates'!T188","v":0},{"$f":"'Population 2016'!U188*'Prevalence Rates'!U188","v":0},{"$f":"'Population 2016'!V188*'Prevalence Rates'!V188","v":0},{"$f":"'Population 2016'!W188*'Prevalence Rates'!W188","v":0},{"$f":"'Population 2016'!X188*'Prevalence Rates'!X188","v":0},{"$f":"'Population 2016'!Y188*'Prevalence Rates'!Y188","v":0},{"$f":"'Population 2016'!Z188*'Prevalence Rates'!Z188","v":0},{"$f":"'Population 2016'!AA188*'Prevalence Rates'!AA188","v":0},{"$f":"'Population 2016'!AB188*'Prevalence Rates'!AB188","v":0},{"$f":"'Population 2016'!AC188*'Prevalence Rates'!AC188","v":0},{"$f":"'Population 2016'!AD188*'Prevalence Rates'!AD188","v":0},{"$f":"'Population 2016'!AE188*'Prevalence Rates'!AE188","v":0},{"$f":"'Population 2016'!AF188*'Prevalence Rates'!AF188","v":0},{"$f":"'Population 2016'!AG188*'Prevalence Rates'!AG188","v":0},{"$f":"'Population 2016'!AH188*'Prevalence Rates'!AH188","v":0},{"$f":"'Population 2016'!AI188*'Prevalence Rates'!AI188","v":0},{"$f":"'Population 2016'!AJ188*'Prevalence Rates'!AJ188","v":0},{"$f":"'Population 2016'!AK188*'Prevalence Rates'!AK188","v":0},{"$f":"'Population 2016'!AL188*'Prevalence Rates'!AL188","v":0},{"$f":"'Population 2016'!AM188*'Prevalence Rates'!AM188","v":0},{"$f":"'Population 2016'!AN188*'Prevalence Rates'!AN188","v":0},{"$f":"'Population 2016'!AO188*'Prevalence Rates'!AO188","v":0},{"$f":"'Population 2016'!AP188*'Prevalence Rates'!AP188","v":0},{"$f":"'Population 2016'!AQ188*'Prevalence Rates'!AQ188","v":0},{"$f":"'Population 2016'!AR188*'Prevalence Rates'!AR188","v":0},{"$f":"'Population 2016'!AS188*'Prevalence Rates'!AS188","v":0},{"$f":"'Population 2016'!AT188*'Prevalence Rates'!AT188","v":0},{"$f":"'Population 2016'!AU188*'Prevalence Rates'!AU188","v":0},{"$f":"'Population 2016'!AV188*'Prevalence Rates'!AV188","v":0},{"$f":"'Population 2016'!AW188*'Prevalence Rates'!AW188","v":0},{"$f":"'Population 2016'!AX188*'Prevalence Rates'!AX188","v":0},{"$f":"'Population 2016'!AY188*'Prevalence Rates'!AY188","v":0},{"$f":"'Population 2016'!AZ188*'Prevalence Rates'!AZ188","v":0},{"$f":"'Population 2016'!BA188*'Prevalence Rates'!BA188","v":0},{"$f":"'Population 2016'!BB188*'Prevalence Rates'!BB188","v":0},{"$f":"'Population 2016'!BC188*'Prevalence Rates'!BC188","v":0},186]
[null,"Female 75-79",{"$f":"'Population 2016'!C189*'Prevalence Rates'!C189","v":0},{"$f":"'Population 2016'!D189*'Prevalence Rates'!D189","v":0},{"$f":"'Population 2016'!E189*'Prevalence Rates'!E189","v":0},{"$f":"'Population 2016'!F189*'Prevalence Rates'!F189","v":0},{"$f":"'Population 2016'!G189*'Prevalence Rates'!G189","v":0},{"$f":"'Population 2016'!H189*'Prevalence Rates'!H189","v":0},{"$f":"'Population 2016'!I189*'Prevalence Rates'!I189","v":0},{"$f":"'Population 2016'!J189*'Prevalence Rates'!J189","v":0},{"$f":"'Population 2016'!K189*'Prevalence Rates'!K189","v":0},{"$f":"'Population 2016'!L189*'Prevalence Rates'!L189","v":0},{"$f":"'Population 2016'!M189*'Prevalence Rates'!M189","v":0},{"$f":"'Population 2016'!N189*'Prevalence Rates'!N189","v":0},{"$f":"'Population 2016'!O189*'Prevalence Rates'!O189","v":0},{"$f":"'Population 2016'!P189*'Prevalence Rates'!P189","v":0},{"$f":"'Population 2016'!Q189*'Prevalence Rates'!Q189","v":0},{"$f":"'Population 2016'!R189*'Prevalence Rates'!R189","v":0},{"$f":"'Population 2016'!S189*'Prevalence Rates'!S189","v":0},{"$f":"'Population 2016'!T189*'Prevalence Rates'!T189","v":0},{"$f":"'Population 2016'!U189*'Prevalence Rates'!U189","v":0},{"$f":"'Population 2016'!V189*'Prevalence Rates'!V189","v":0},{"$f":"'Population 2016'!W189*'Prevalence Rates'!W189","v":0},{"$f":"'Population 2016'!X189*'Prevalence Rates'!X189","v":0},{"$f":"'Population 2016'!Y189*'Prevalence Rates'!Y189","v":0},{"$f":"'Population 2016'!Z189*'Prevalence Rates'!Z189","v":0},{"$f":"'Population 2016'!AA189*'Prevalence Rates'!AA189","v":0},{"$f":"'Population 2016'!AB189*'Prevalence Rates'!AB189","v":0},{"$f":"'Population 2016'!AC189*'Prevalence Rates'!AC189","v":0},{"$f":"'Population 2016'!AD189*'Prevalence Rates'!AD189","v":0},{"$f":"'Population 2016'!AE189*'Prevalence Rates'!AE189","v":0},{"$f":"'Population 2016'!AF189*'Prevalence Rates'!AF189","v":0},{"$f":"'Population 2016'!AG189*'Prevalence Rates'!AG189","v":0},{"$f":"'Population 2016'!AH189*'Prevalence Rates'!AH189","v":0},{"$f":"'Population 2016'!AI189*'Prevalence Rates'!AI189","v":0},{"$f":"'Population 2016'!AJ189*'Prevalence Rates'!AJ189","v":0},{"$f":"'Population 2016'!AK189*'Prevalence Rates'!AK189","v":0},{"$f":"'Population 2016'!AL189*'Prevalence Rates'!AL189","v":0},{"$f":"'Population 2016'!AM189*'Prevalence Rates'!AM189","v":0},{"$f":"'Population 2016'!AN189*'Prevalence Rates'!AN189","v":0},{"$f":"'Population 2016'!AO189*'Prevalence Rates'!AO189","v":0},{"$f":"'Population 2016'!AP189*'Prevalence Rates'!AP189","v":0},{"$f":"'Population 2016'!AQ189*'Prevalence Rates'!AQ189","v":0},{"$f":"'Population 2016'!AR189*'Prevalence Rates'!AR189","v":0},{"$f":"'Population 2016'!AS189*'Prevalence Rates'!AS189","v":0},{"$f":"'Population 2016'!AT189*'Prevalence Rates'!AT189","v":0},{"$f":"'Population 2016'!AU189*'Prevalence Rates'!AU189","v":0},{"$f":"'Population 2016'!AV189*'Prevalence Rates'!AV189","v":0},{"$f":"'Population 2016'!AW189*'Prevalence Rates'!AW189","v":0},{"$f":"'Population 2016'!AX189*'Prevalence Rates'!AX189","v":0},{"$f":"'Population 2016'!AY189*'Prevalence Rates'!AY189","v":0},{"$f":"'Population 2016'!AZ189*'Prevalence Rates'!AZ189","v":0},{"$f":"'Population 2016'!BA189*'Prevalence Rates'!BA189","v":0},{"$f":"'Population 2016'!BB189*'Prevalence Rates'!BB189","v":0},{"$f":"'Population 2016'!BC189*'Prevalence Rates'!BC189","v":0},187]
[null,"Female 80-84",{"$f":"'Population 2016'!C190*'Prevalence Rates'!C190","v":0},{"$f":"'Population 2016'!D190*'Prevalence Rates'!D190","v":0},{"$f":"'Population 2016'!E190*'Prevalence Rates'!E190","v":0},{"$f":"'Population 2016'!F190*'Prevalence Rates'!F190","v":0},{"$f":"'Population 2016'!G190*'Prevalence Rates'!G190","v":0},{"$f":"'Population 2016'!H190*'Prevalence Rates'!H190","v":0},{"$f":"'Population 2016'!I190*'Prevalence Rates'!I190","v":0},{"$f":"'Population 2016'!J190*'Prevalence Rates'!J190","v":0},{"$f":"'Population 2016'!K190*'Prevalence Rates'!K190","v":0},{"$f":"'Population 2016'!L190*'Prevalence Rates'!L190","v":0},{"$f":"'Population 2016'!M190*'Prevalence Rates'!M190","v":0},{"$f":"'Population 2016'!N190*'Prevalence Rates'!N190","v":0},{"$f":"'Population 2016'!O190*'Prevalence Rates'!O190","v":0},{"$f":"'Population 2016'!P190*'Prevalence Rates'!P190","v":0},{"$f":"'Population 2016'!Q190*'Prevalence Rates'!Q190","v":0},{"$f":"'Population 2016'!R190*'Prevalence Rates'!R190","v":0},{"$f":"'Population 2016'!S190*'Prevalence Rates'!S190","v":0},{"$f":"'Population 2016'!T190*'Prevalence Rates'!T190","v":0},{"$f":"'Population 2016'!U190*'Prevalence Rates'!U190","v":0},{"$f":"'Population 2016'!V190*'Prevalence Rates'!V190","v":0},{"$f":"'Population 2016'!W190*'Prevalence Rates'!W190","v":0},{"$f":"'Population 2016'!X190*'Prevalence Rates'!X190","v":0},{"$f":"'Population 2016'!Y190*'Prevalence Rates'!Y190","v":0},{"$f":"'Population 2016'!Z190*'Prevalence Rates'!Z190","v":0},{"$f":"'Population 2016'!AA190*'Prevalence Rates'!AA190","v":0},{"$f":"'Population 2016'!AB190*'Prevalence Rates'!AB190","v":0},{"$f":"'Population 2016'!AC190*'Prevalence Rates'!AC190","v":0},{"$f":"'Population 2016'!AD190*'Prevalence Rates'!AD190","v":0},{"$f":"'Population 2016'!AE190*'Prevalence Rates'!AE190","v":0},{"$f":"'Population 2016'!AF190*'Prevalence Rates'!AF190","v":0},{"$f":"'Population 2016'!AG190*'Prevalence Rates'!AG190","v":0},{"$f":"'Population 2016'!AH190*'Prevalence Rates'!AH190","v":0},{"$f":"'Population 2016'!AI190*'Prevalence Rates'!AI190","v":0},{"$f":"'Population 2016'!AJ190*'Prevalence Rates'!AJ190","v":0},{"$f":"'Population 2016'!AK190*'Prevalence Rates'!AK190","v":0},{"$f":"'Population 2016'!AL190*'Prevalence Rates'!AL190","v":0},{"$f":"'Population 2016'!AM190*'Prevalence Rates'!AM190","v":0},{"$f":"'Population 2016'!AN190*'Prevalence Rates'!AN190","v":0},{"$f":"'Population 2016'!AO190*'Prevalence Rates'!AO190","v":0},{"$f":"'Population 2016'!AP190*'Prevalence Rates'!AP190","v":0},{"$f":"'Population 2016'!AQ190*'Prevalence Rates'!AQ190","v":0},{"$f":"'Population 2016'!AR190*'Prevalence Rates'!AR190","v":0},{"$f":"'Population 2016'!AS190*'Prevalence Rates'!AS190","v":0},{"$f":"'Population 2016'!AT190*'Prevalence Rates'!AT190","v":0},{"$f":"'Population 2016'!AU190*'Prevalence Rates'!AU190","v":0},{"$f":"'Population 2016'!AV190*'Prevalence Rates'!AV190","v":0},{"$f":"'Population 2016'!AW190*'Prevalence Rates'!AW190","v":0},{"$f":"'Population 2016'!AX190*'Prevalence Rates'!AX190","v":0},{"$f":"'Population 2016'!AY190*'Prevalence Rates'!AY190","v":0},{"$f":"'Population 2016'!AZ190*'Prevalence Rates'!AZ190","v":0},{"$f":"'Population 2016'!BA190*'Prevalence Rates'!BA190","v":0},{"$f":"'Population 2016'!BB190*'Prevalence Rates'!BB190","v":0},{"$f":"'Population 2016'!BC190*'Prevalence Rates'!BC190","v":0},188]
[null,"Female 85-89",{"$f":"'Population 2016'!C191*'Prevalence Rates'!C191","v":0},{"$f":"'Population 2016'!D191*'Prevalence Rates'!D191","v":0},{"$f":"'Population 2016'!E191*'Prevalence Rates'!E191","v":0},{"$f":"'Population 2016'!F191*'Prevalence Rates'!F191","v":0},{"$f":"'Population 2016'!G191*'Prevalence Rates'!G191","v":0},{"$f":"'Population 2016'!H191*'Prevalence Rates'!H191","v":0},{"$f":"'Population 2016'!I191*'Prevalence Rates'!I191","v":0},{"$f":"'Population 2016'!J191*'Prevalence Rates'!J191","v":0},{"$f":"'Population 2016'!K191*'Prevalence Rates'!K191","v":0},{"$f":"'Population 2016'!L191*'Prevalence Rates'!L191","v":0},{"$f":"'Population 2016'!M191*'Prevalence Rates'!M191","v":0},{"$f":"'Population 2016'!N191*'Prevalence Rates'!N191","v":0},{"$f":"'Population 2016'!O191*'Prevalence Rates'!O191","v":0},{"$f":"'Population 2016'!P191*'Prevalence Rates'!P191","v":0},{"$f":"'Population 2016'!Q191*'Prevalence Rates'!Q191","v":0},{"$f":"'Population 2016'!R191*'Prevalence Rates'!R191","v":0},{"$f":"'Population 2016'!S191*'Prevalence Rates'!S191","v":0},{"$f":"'Population 2016'!T191*'Prevalence Rates'!T191","v":0},{"$f":"'Population 2016'!U191*'Prevalence Rates'!U191","v":0},{"$f":"'Population 2016'!V191*'Prevalence Rates'!V191","v":0},{"$f":"'Population 2016'!W191*'Prevalence Rates'!W191","v":0},{"$f":"'Population 2016'!X191*'Prevalence Rates'!X191","v":0},{"$f":"'Population 2016'!Y191*'Prevalence Rates'!Y191","v":0},{"$f":"'Population 2016'!Z191*'Prevalence Rates'!Z191","v":0},{"$f":"'Population 2016'!AA191*'Prevalence Rates'!AA191","v":0},{"$f":"'Population 2016'!AB191*'Prevalence Rates'!AB191","v":0},{"$f":"'Population 2016'!AC191*'Prevalence Rates'!AC191","v":0},{"$f":"'Population 2016'!AD191*'Prevalence Rates'!AD191","v":0},{"$f":"'Population 2016'!AE191*'Prevalence Rates'!AE191","v":0},{"$f":"'Population 2016'!AF191*'Prevalence Rates'!AF191","v":0},{"$f":"'Population 2016'!AG191*'Prevalence Rates'!AG191","v":0},{"$f":"'Population 2016'!AH191*'Prevalence Rates'!AH191","v":0},{"$f":"'Population 2016'!AI191*'Prevalence Rates'!AI191","v":0},{"$f":"'Population 2016'!AJ191*'Prevalence Rates'!AJ191","v":0},{"$f":"'Population 2016'!AK191*'Prevalence Rates'!AK191","v":0},{"$f":"'Population 2016'!AL191*'Prevalence Rates'!AL191","v":0},{"$f":"'Population 2016'!AM191*'Prevalence Rates'!AM191","v":0},{"$f":"'Population 2016'!AN191*'Prevalence Rates'!AN191","v":0},{"$f":"'Population 2016'!AO191*'Prevalence Rates'!AO191","v":0},{"$f":"'Population 2016'!AP191*'Prevalence Rates'!AP191","v":0},{"$f":"'Population 2016'!AQ191*'Prevalence Rates'!AQ191","v":0},{"$f":"'Population 2016'!AR191*'Prevalence Rates'!AR191","v":0},{"$f":"'Population 2016'!AS191*'Prevalence Rates'!AS191","v":0},{"$f":"'Population 2016'!AT191*'Prevalence Rates'!AT191","v":0},{"$f":"'Population 2016'!AU191*'Prevalence Rates'!AU191","v":0},{"$f":"'Population 2016'!AV191*'Prevalence Rates'!AV191","v":0},{"$f":"'Population 2016'!AW191*'Prevalence Rates'!AW191","v":0},{"$f":"'Population 2016'!AX191*'Prevalence Rates'!AX191","v":0},{"$f":"'Population 2016'!AY191*'Prevalence Rates'!AY191","v":0},{"$f":"'Population 2016'!AZ191*'Prevalence Rates'!AZ191","v":0},{"$f":"'Population 2016'!BA191*'Prevalence Rates'!BA191","v":0},{"$f":"'Population 2016'!BB191*'Prevalence Rates'!BB191","v":0},{"$f":"'Population 2016'!BC191*'Prevalence Rates'!BC191","v":0},189]
[null,"Female 90+",{"$f":"'Population 2016'!C192*'Prevalence Rates'!C192","v":0},{"$f":"'Population 2016'!D192*'Prevalence Rates'!D192","v":0},{"$f":"'Population 2016'!E192*'Prevalence Rates'!E192","v":0},{"$f":"'Population 2016'!F192*'Prevalence Rates'!F192","v":0},{"$f":"'Population 2016'!G192*'Prevalence Rates'!G192","v":0},{"$f":"'Population 2016'!H192*'Prevalence Rates'!H192","v":0},{"$f":"'Population 2016'!I192*'Prevalence Rates'!I192","v":0},{"$f":"'Population 2016'!J192*'Prevalence Rates'!J192","v":0},{"$f":"'Population 2016'!K192*'Prevalence Rates'!K192","v":0},{"$f":"'Population 2016'!L192*'Prevalence Rates'!L192","v":0},{"$f":"'Population 2016'!M192*'Prevalence Rates'!M192","v":0},{"$f":"'Population 2016'!N192*'Prevalence Rates'!N192","v":0},{"$f":"'Population 2016'!O192*'Prevalence Rates'!O192","v":0},{"$f":"'Population 2016'!P192*'Prevalence Rates'!P192","v":0},{"$f":"'Population 2016'!Q192*'Prevalence Rates'!Q192","v":0},{"$f":"'Population 2016'!R192*'Prevalence Rates'!R192","v":0},{"$f":"'Population 2016'!S192*'Prevalence Rates'!S192","v":0},{"$f":"'Population 2016'!T192*'Prevalence Rates'!T192","v":0},{"$f":"'Population 2016'!U192*'Prevalence Rates'!U192","v":0},{"$f":"'Population 2016'!V192*'Prevalence Rates'!V192","v":0},{"$f":"'Population 2016'!W192*'Prevalence Rates'!W192","v":0},{"$f":"'Population 2016'!X192*'Prevalence Rates'!X192","v":0},{"$f":"'Population 2016'!Y192*'Prevalence Rates'!Y192","v":0},{"$f":"'Population 2016'!Z192*'Prevalence Rates'!Z192","v":0},{"$f":"'Population 2016'!AA192*'Prevalence Rates'!AA192","v":0},{"$f":"'Population 2016'!AB192*'Prevalence Rates'!AB192","v":0},{"$f":"'Population 2016'!AC192*'Prevalence Rates'!AC192","v":0},{"$f":"'Population 2016'!AD192*'Prevalence Rates'!AD192","v":0},{"$f":"'Population 2016'!AE192*'Prevalence Rates'!AE192","v":0},{"$f":"'Population 2016'!AF192*'Prevalence Rates'!AF192","v":0},{"$f":"'Population 2016'!AG192*'Prevalence Rates'!AG192","v":0},{"$f":"'Population 2016'!AH192*'Prevalence Rates'!AH192","v":0},{"$f":"'Population 2016'!AI192*'Prevalence Rates'!AI192","v":0},{"$f":"'Population 2016'!AJ192*'Prevalence Rates'!AJ192","v":0},{"$f":"'Population 2016'!AK192*'Prevalence Rates'!AK192","v":0},{"$f":"'Population 2016'!AL192*'Prevalence Rates'!AL192","v":0},{"$f":"'Population 2016'!AM192*'Prevalence Rates'!AM192","v":0},{"$f":"'Population 2016'!AN192*'Prevalence Rates'!AN192","v":0},{"$f":"'Population 2016'!AO192*'Prevalence Rates'!AO192","v":0},{"$f":"'Population 2016'!AP192*'Prevalence Rates'!AP192","v":0},{"$f":"'Population 2016'!AQ192*'Prevalence Rates'!AQ192","v":0},{"$f":"'Population 2016'!AR192*'Prevalence Rates'!AR192","v":0},{"$f":"'Population 2016'!AS192*'Prevalence Rates'!AS192","v":0},{"$f":"'Population 2016'!AT192*'Prevalence Rates'!AT192","v":0},{"$f":"'Population 2016'!AU192*'Prevalence Rates'!AU192","v":0},{"$f":"'Population 2016'!AV192*'Prevalence Rates'!AV192","v":0},{"$f":"'Population 2016'!AW192*'Prevalence Rates'!AW192","v":0},{"$f":"'Population 2016'!AX192*'Prevalence Rates'!AX192","v":0},{"$f":"'Population 2016'!AY192*'Prevalence Rates'!AY192","v":0},{"$f":"'Population 2016'!AZ192*'Prevalence Rates'!AZ192","v":0},{"$f":"'Population 2016'!BA192*'Prevalence Rates'!BA192","v":0},{"$f":"'Population 2016'!BB192*'Prevalence Rates'!BB192","v":0},{"$f":"'Population 2016'!BC192*'Prevalence Rates'!BC192","v":0},190]
[null,"Male 0-4",{"$f":"'Population 2016'!C193*'Prevalence Rates'!C193","v":0},{"$f":"'Population 2016'!D193*'Prevalence Rates'!D193","v":0},{"$f":"'Population 2016'!E193*'Prevalence Rates'!E193","v":0},{"$f":"'Population 2016'!F193*'Prevalence Rates'!F193","v":0},{"$f":"'Population 2016'!G193*'Prevalence Rates'!G193","v":0},{"$f":"'Population 2016'!H193*'Prevalence Rates'!H193","v":0},{"$f":"'Population 2016'!I193*'Prevalence Rates'!I193","v":0},{"$f":"'Population 2016'!J193*'Prevalence Rates'!J193","v":0},{"$f":"'Population 2016'!K193*'Prevalence Rates'!K193","v":0},{"$f":"'Population 2016'!L193*'Prevalence Rates'!L193","v":0},{"$f":"'Population 2016'!M193*'Prevalence Rates'!M193","v":0},{"$f":"'Population 2016'!N193*'Prevalence Rates'!N193","v":0},{"$f":"'Population 2016'!O193*'Prevalence Rates'!O193","v":0},{"$f":"'Population 2016'!P193*'Prevalence Rates'!P193","v":0},{"$f":"'Population 2016'!Q193*'Prevalence Rates'!Q193","v":0},{"$f":"'Population 2016'!R193*'Prevalence Rates'!R193","v":0},{"$f":"'Population 2016'!S193*'Prevalence Rates'!S193","v":0},{"$f":"'Population 2016'!T193*'Prevalence Rates'!T193","v":0},{"$f":"'Population 2016'!U193*'Prevalence Rates'!U193","v":0},{"$f":"'Population 2016'!V193*'Prevalence Rates'!V193","v":0},{"$f":"'Population 2016'!W193*'Prevalence Rates'!W193","v":0},{"$f":"'Population 2016'!X193*'Prevalence Rates'!X193","v":0},{"$f":"'Population 2016'!Y193*'Prevalence Rates'!Y193","v":0},{"$f":"'Population 2016'!Z193*'Prevalence Rates'!Z193","v":0},{"$f":"'Population 2016'!AA193*'Prevalence Rates'!AA193","v":0},{"$f":"'Population 2016'!AB193*'Prevalence Rates'!AB193","v":0},{"$f":"'Population 2016'!AC193*'Prevalence Rates'!AC193","v":0},{"$f":"'Population 2016'!AD193*'Prevalence Rates'!AD193","v":0},{"$f":"'Population 2016'!AE193*'Prevalence Rates'!AE193","v":0},{"$f":"'Population 2016'!AF193*'Prevalence Rates'!AF193","v":0},{"$f":"'Population 2016'!AG193*'Prevalence Rates'!AG193","v":0},{"$f":"'Population 2016'!AH193*'Prevalence Rates'!AH193","v":0},{"$f":"'Population 2016'!AI193*'Prevalence Rates'!AI193","v":0},{"$f":"'Population 2016'!AJ193*'Prevalence Rates'!AJ193","v":0},{"$f":"'Population 2016'!AK193*'Prevalence Rates'!AK193","v":0},{"$f":"'Population 2016'!AL193*'Prevalence Rates'!AL193","v":0},{"$f":"'Population 2016'!AM193*'Prevalence Rates'!AM193","v":0},{"$f":"'Population 2016'!AN193*'Prevalence Rates'!AN193","v":0},{"$f":"'Population 2016'!AO193*'Prevalence Rates'!AO193","v":0},{"$f":"'Population 2016'!AP193*'Prevalence Rates'!AP193","v":0},{"$f":"'Population 2016'!AQ193*'Prevalence Rates'!AQ193","v":0},{"$f":"'Population 2016'!AR193*'Prevalence Rates'!AR193","v":0},{"$f":"'Population 2016'!AS193*'Prevalence Rates'!AS193","v":0},{"$f":"'Population 2016'!AT193*'Prevalence Rates'!AT193","v":0},{"$f":"'Population 2016'!AU193*'Prevalence Rates'!AU193","v":0},{"$f":"'Population 2016'!AV193*'Prevalence Rates'!AV193","v":0},{"$f":"'Population 2016'!AW193*'Prevalence Rates'!AW193","v":0},{"$f":"'Population 2016'!AX193*'Prevalence Rates'!AX193","v":0},{"$f":"'Population 2016'!AY193*'Prevalence Rates'!AY193","v":0},{"$f":"'Population 2016'!AZ193*'Prevalence Rates'!AZ193","v":0},{"$f":"'Population 2016'!BA193*'Prevalence Rates'!BA193","v":0},{"$f":"'Population 2016'!BB193*'Prevalence Rates'!BB193","v":0},{"$f":"'Population 2016'!BC193*'Prevalence Rates'!BC193","v":0},191]
[null,"Male 5-9",{"$f":"'Population 2016'!C194*'Prevalence Rates'!C194","v":0},{"$f":"'Population 2016'!D194*'Prevalence Rates'!D194","v":0},{"$f":"'Population 2016'!E194*'Prevalence Rates'!E194","v":0},{"$f":"'Population 2016'!F194*'Prevalence Rates'!F194","v":0},{"$f":"'Population 2016'!G194*'Prevalence Rates'!G194","v":0},{"$f":"'Population 2016'!H194*'Prevalence Rates'!H194","v":0},{"$f":"'Population 2016'!I194*'Prevalence Rates'!I194","v":0},{"$f":"'Population 2016'!J194*'Prevalence Rates'!J194","v":0},{"$f":"'Population 2016'!K194*'Prevalence Rates'!K194","v":0},{"$f":"'Population 2016'!L194*'Prevalence Rates'!L194","v":0},{"$f":"'Population 2016'!M194*'Prevalence Rates'!M194","v":0},{"$f":"'Population 2016'!N194*'Prevalence Rates'!N194","v":0},{"$f":"'Population 2016'!O194*'Prevalence Rates'!O194","v":0},{"$f":"'Population 2016'!P194*'Prevalence Rates'!P194","v":0},{"$f":"'Population 2016'!Q194*'Prevalence Rates'!Q194","v":0},{"$f":"'Population 2016'!R194*'Prevalence Rates'!R194","v":0},{"$f":"'Population 2016'!S194*'Prevalence Rates'!S194","v":0},{"$f":"'Population 2016'!T194*'Prevalence Rates'!T194","v":0},{"$f":"'Population 2016'!U194*'Prevalence Rates'!U194","v":0},{"$f":"'Population 2016'!V194*'Prevalence Rates'!V194","v":0},{"$f":"'Population 2016'!W194*'Prevalence Rates'!W194","v":0},{"$f":"'Population 2016'!X194*'Prevalence Rates'!X194","v":0},{"$f":"'Population 2016'!Y194*'Prevalence Rates'!Y194","v":0},{"$f":"'Population 2016'!Z194*'Prevalence Rates'!Z194","v":0},{"$f":"'Population 2016'!AA194*'Prevalence Rates'!AA194","v":0},{"$f":"'Population 2016'!AB194*'Prevalence Rates'!AB194","v":0},{"$f":"'Population 2016'!AC194*'Prevalence Rates'!AC194","v":0},{"$f":"'Population 2016'!AD194*'Prevalence Rates'!AD194","v":0},{"$f":"'Population 2016'!AE194*'Prevalence Rates'!AE194","v":0},{"$f":"'Population 2016'!AF194*'Prevalence Rates'!AF194","v":0},{"$f":"'Population 2016'!AG194*'Prevalence Rates'!AG194","v":0},{"$f":"'Population 2016'!AH194*'Prevalence Rates'!AH194","v":0},{"$f":"'Population 2016'!AI194*'Prevalence Rates'!AI194","v":0},{"$f":"'Population 2016'!AJ194*'Prevalence Rates'!AJ194","v":0},{"$f":"'Population 2016'!AK194*'Prevalence Rates'!AK194","v":0},{"$f":"'Population 2016'!AL194*'Prevalence Rates'!AL194","v":0},{"$f":"'Population 2016'!AM194*'Prevalence Rates'!AM194","v":0},{"$f":"'Population 2016'!AN194*'Prevalence Rates'!AN194","v":0},{"$f":"'Population 2016'!AO194*'Prevalence Rates'!AO194","v":0},{"$f":"'Population 2016'!AP194*'Prevalence Rates'!AP194","v":0},{"$f":"'Population 2016'!AQ194*'Prevalence Rates'!AQ194","v":0},{"$f":"'Population 2016'!AR194*'Prevalence Rates'!AR194","v":0},{"$f":"'Population 2016'!AS194*'Prevalence Rates'!AS194","v":0},{"$f":"'Population 2016'!AT194*'Prevalence Rates'!AT194","v":0},{"$f":"'Population 2016'!AU194*'Prevalence Rates'!AU194","v":0},{"$f":"'Population 2016'!AV194*'Prevalence Rates'!AV194","v":0},{"$f":"'Population 2016'!AW194*'Prevalence Rates'!AW194","v":0},{"$f":"'Population 2016'!AX194*'Prevalence Rates'!AX194","v":0},{"$f":"'Population 2016'!AY194*'Prevalence Rates'!AY194","v":0},{"$f":"'Population 2016'!AZ194*'Prevalence Rates'!AZ194","v":0},{"$f":"'Population 2016'!BA194*'Prevalence Rates'!BA194","v":0},{"$f":"'Population 2016'!BB194*'Prevalence Rates'!BB194","v":0},{"$f":"'Population 2016'!BC194*'Prevalence Rates'!BC194","v":0},192]
[null,"Male 10-15",{"$f":"'Population 2016'!C195*'Prevalence Rates'!C195","v":0},{"$f":"'Population 2016'!D195*'Prevalence Rates'!D195","v":0},{"$f":"'Population 2016'!E195*'Prevalence Rates'!E195","v":0},{"$f":"'Population 2016'!F195*'Prevalence Rates'!F195","v":0},{"$f":"'Population 2016'!G195*'Prevalence Rates'!G195","v":0},{"$f":"'Population 2016'!H195*'Prevalence Rates'!H195","v":0},{"$f":"'Population 2016'!I195*'Prevalence Rates'!I195","v":0},{"$f":"'Population 2016'!J195*'Prevalence Rates'!J195","v":0},{"$f":"'Population 2016'!K195*'Prevalence Rates'!K195","v":0},{"$f":"'Population 2016'!L195*'Prevalence Rates'!L195","v":0},{"$f":"'Population 2016'!M195*'Prevalence Rates'!M195","v":0},{"$f":"'Population 2016'!N195*'Prevalence Rates'!N195","v":0},{"$f":"'Population 2016'!O195*'Prevalence Rates'!O195","v":0},{"$f":"'Population 2016'!P195*'Prevalence Rates'!P195","v":0},{"$f":"'Population 2016'!Q195*'Prevalence Rates'!Q195","v":0},{"$f":"'Population 2016'!R195*'Prevalence Rates'!R195","v":0},{"$f":"'Population 2016'!S195*'Prevalence Rates'!S195","v":0},{"$f":"'Population 2016'!T195*'Prevalence Rates'!T195","v":0},{"$f":"'Population 2016'!U195*'Prevalence Rates'!U195","v":0},{"$f":"'Population 2016'!V195*'Prevalence Rates'!V195","v":0},{"$f":"'Population 2016'!W195*'Prevalence Rates'!W195","v":0},{"$f":"'Population 2016'!X195*'Prevalence Rates'!X195","v":0},{"$f":"'Population 2016'!Y195*'Prevalence Rates'!Y195","v":0},{"$f":"'Population 2016'!Z195*'Prevalence Rates'!Z195","v":0},{"$f":"'Population 2016'!AA195*'Prevalence Rates'!AA195","v":0},{"$f":"'Population 2016'!AB195*'Prevalence Rates'!AB195","v":0},{"$f":"'Population 2016'!AC195*'Prevalence Rates'!AC195","v":0},{"$f":"'Population 2016'!AD195*'Prevalence Rates'!AD195","v":0},{"$f":"'Population 2016'!AE195*'Prevalence Rates'!AE195","v":0},{"$f":"'Population 2016'!AF195*'Prevalence Rates'!AF195","v":0},{"$f":"'Population 2016'!AG195*'Prevalence Rates'!AG195","v":0},{"$f":"'Population 2016'!AH195*'Prevalence Rates'!AH195","v":0},{"$f":"'Population 2016'!AI195*'Prevalence Rates'!AI195","v":0},{"$f":"'Population 2016'!AJ195*'Prevalence Rates'!AJ195","v":0},{"$f":"'Population 2016'!AK195*'Prevalence Rates'!AK195","v":0},{"$f":"'Population 2016'!AL195*'Prevalence Rates'!AL195","v":0},{"$f":"'Population 2016'!AM195*'Prevalence Rates'!AM195","v":0},{"$f":"'Population 2016'!AN195*'Prevalence Rates'!AN195","v":0},{"$f":"'Population 2016'!AO195*'Prevalence Rates'!AO195","v":0},{"$f":"'Population 2016'!AP195*'Prevalence Rates'!AP195","v":0},{"$f":"'Population 2016'!AQ195*'Prevalence Rates'!AQ195","v":0},{"$f":"'Population 2016'!AR195*'Prevalence Rates'!AR195","v":0},{"$f":"'Population 2016'!AS195*'Prevalence Rates'!AS195","v":0},{"$f":"'Population 2016'!AT195*'Prevalence Rates'!AT195","v":0},{"$f":"'Population 2016'!AU195*'Prevalence Rates'!AU195","v":0},{"$f":"'Population 2016'!AV195*'Prevalence Rates'!AV195","v":0},{"$f":"'Population 2016'!AW195*'Prevalence Rates'!AW195","v":0},{"$f":"'Population 2016'!AX195*'Prevalence Rates'!AX195","v":0},{"$f":"'Population 2016'!AY195*'Prevalence Rates'!AY195","v":0},{"$f":"'Population 2016'!AZ195*'Prevalence Rates'!AZ195","v":0},{"$f":"'Population 2016'!BA195*'Prevalence Rates'!BA195","v":0},{"$f":"'Population 2016'!BB195*'Prevalence Rates'!BB195","v":0},{"$f":"'Population 2016'!BC195*'Prevalence Rates'!BC195","v":0},193]
[null,"Male 16-19",{"$f":"'Population 2016'!C196*'Prevalence Rates'!C196","v":120.9643688447571},{"$f":"'Population 2016'!D196*'Prevalence Rates'!D196","v":352.24109552024419},{"$f":"'Population 2016'!E196*'Prevalence Rates'!E196","v":201.90971216156518},{"$f":"'Population 2016'!F196*'Prevalence Rates'!F196","v":63.228284277356444},{"$f":"'Population 2016'!G196*'Prevalence Rates'!G196","v":48.315470489917502},{"$f":"'Population 2016'!H196*'Prevalence Rates'!H196","v":198.49493503125117},{"$f":"'Population 2016'!I196*'Prevalence Rates'!I196","v":97.814510493331341},{"$f":"'Population 2016'!J196*'Prevalence Rates'!J196","v":101.837075170487},{"$f":"'Population 2016'!K196*'Prevalence Rates'!K196","v":38.264265595662934},{"$f":"'Population 2016'!L196*'Prevalence Rates'!L196","v":52.518649651053963},{"$f":"'Population 2016'!M196*'Prevalence Rates'!M196","v":52.518649651053963},{"$f":"'Population 2016'!N196*'Prevalence Rates'!N196","v":143.62422384093378},{"$f":"'Population 2016'!O196*'Prevalence Rates'!O196","v":65.319443641049517},{"$f":"'Population 2016'!P196*'Prevalence Rates'!P196","v":43.52106928159963},{"$f":"'Population 2016'!Q196*'Prevalence Rates'!Q196","v":88.688027694119825},{"$f":"'Population 2016'!R196*'Prevalence Rates'!R196","v":31.480381575535649},{"$f":"'Population 2016'!S196*'Prevalence Rates'!S196","v":587.10259893527166},{"$f":"'Population 2016'!T196*'Prevalence Rates'!T196","v":138.74192421567983},{"$f":"'Population 2016'!U196*'Prevalence Rates'!U196","v":3.3153952587572517},{"$f":"'Population 2016'!V196*'Prevalence Rates'!V196","v":81.203437971176584},{"$f":"'Population 2016'!W196*'Prevalence Rates'!W196","v":168.1541960365507},{"$f":"'Population 2016'!X196*'Prevalence Rates'!X196","v":168.1541960365507},{"$f":"'Population 2016'!Y196*'Prevalence Rates'!Y196","v":181.67627896596326},{"$f":"'Population 2016'!Z196*'Prevalence Rates'!Z196","v":154.58915537804546},{"$f":"'Population 2016'!AA196*'Prevalence Rates'!AA196","v":733.38316087701969},{"$f":"'Population 2016'!AB196*'Prevalence Rates'!AB196","v":442.76322252709264},{"$f":"'Population 2016'!AC196*'Prevalence Rates'!AC196","v":412.21044445085425},{"$f":"'Population 2016'!AD196*'Prevalence Rates'!AD196","v":280.26109075660361},{"$f":"'Population 2016'!AE196*'Prevalence Rates'!AE196","v":235.79578024798764},{"$f":"'Population 2016'!AF196*'Prevalence Rates'!AF196","v":65.181285149854176},{"$f":"'Population 2016'!AG196*'Prevalence Rates'!AG196","v":235.79578024798764},{"$f":"'Population 2016'!AH196*'Prevalence Rates'!AH196","v":319.88518806505095},{"$f":"'Population 2016'!AI196*'Prevalence Rates'!AI196","v":323.54508324442298},{"$f":"'Population 2016'!AJ196*'Prevalence Rates'!AJ196","v":28.014456050500751},{"$f":"'Population 2016'!AK196*'Prevalence Rates'!AK196","v":87.958561479614332},{"$f":"'Population 2016'!AL196*'Prevalence Rates'!AL196","v":85.229293963998117},{"$f":"'Population 2016'!AM196*'Prevalence Rates'!AM196","v":139.28726917398652},{"$f":"'Population 2016'!AN196*'Prevalence Rates'!AN196","v":25.585537606017763},{"$f":"'Population 2016'!AO196*'Prevalence Rates'!AO196","v":25.585537606017763},{"$f":"'Population 2016'!AP196*'Prevalence Rates'!AP196","v":213.3167746526093},{"$f":"'Population 2016'!AQ196*'Prevalence Rates'!AQ196","v":88.438759813466689},{"$f":"'Population 2016'!AR196*'Prevalence Rates'!AR196","v":2895.0501672240803},{"$f":"'Population 2016'!AS196*'Prevalence Rates'!AS196","v":97.814510493331341},{"$f":"'Population 2016'!AT196*'Prevalence Rates'!AT196","v":36.16226498596177},{"$f":"'Population 2016'!AU196*'Prevalence Rates'!AU196","v":36.16226498596177},{"$f":"'Population 2016'!AV196*'Prevalence Rates'!AV196","v":47.479126517931867},{"$f":"'Population 2016'!AW196*'Prevalence Rates'!AW196","v":178.73523069974127},{"$f":"'Population 2016'!AX196*'Prevalence Rates'!AX196","v":56.162799929227667},{"$f":"'Population 2016'!AY196*'Prevalence Rates'!AY196","v":589.92726030857466},{"$f":"'Population 2016'!AZ196*'Prevalence Rates'!AZ196","v":435.93629306996587},{"$f":"'Population 2016'!BA196*'Prevalence Rates'!BA196","v":31.120803962569237},{"$f":"'Population 2016'!BB196*'Prevalence Rates'!BB196","v":71.966031947571551},{"$f":"'Population 2016'!BC196*'Prevalence Rates'!BC196","v":3.3153952587572517},194]
[null,"Male 20-24",{"$f":"'Population 2016'!C197*'Prevalence Rates'!C197","v":299.75082603776036},{"$f":"'Population 2016'!D197*'Prevalence Rates'!D197","v":532.19035084036886},{"$f":"'Population 2016'!E197*'Prevalence Rates'!E197","v":227.38082686334644},{"$f":"'Population 2016'!F197*'Prevalence Rates'!F197","v":75.640095415727984},{"$f":"'Population 2016'!G197*'Prevalence Rates'!G197","v":54.044577662634985},{"$f":"'Population 2016'!H197*'Prevalence Rates'!H197","v":215.68485587546084},{"$f":"'Population 2016'!I197*'Prevalence Rates'!I197","v":101.26678733427245},{"$f":"'Population 2016'!J197*'Prevalence Rates'!J197","v":147.99096944166598},{"$f":"'Population 2016'!K197*'Prevalence Rates'!K197","v":50.076278018671928},{"$f":"'Population 2016'!L197*'Prevalence Rates'!L197","v":63.616930332031409},{"$f":"'Population 2016'!M197*'Prevalence Rates'!M197","v":63.616930332031409},{"$f":"'Population 2016'!N197*'Prevalence Rates'!N197","v":313.7550125530347},{"$f":"'Population 2016'!O197*'Prevalence Rates'!O197","v":72.940045399171964},{"$f":"'Population 2016'!P197*'Prevalence Rates'!P197","v":57.737951913588844},{"$f":"'Population 2016'!Q197*'Prevalence Rates'!Q197","v":111.428547615689},{"$f":"'Population 2016'!R197*'Prevalence Rates'!R197","v":32.197883149906829},{"$f":"'Population 2016'!S197*'Prevalence Rates'!S197","v":875.59560882834421},{"$f":"'Population 2016'!T197*'Prevalence Rates'!T197","v":327.56360274984809},{"$f":"'Population 2016'!U197*'Prevalence Rates'!U197","v":4.4521022046168808},{"$f":"'Population 2016'!V197*'Prevalence Rates'!V197","v":95.018955569699884},{"$f":"'Population 2016'!W197*'Prevalence Rates'!W197","v":219.94037701263127},{"$f":"'Population 2016'!X197*'Prevalence Rates'!X197","v":219.94037701263127},{"$f":"'Population 2016'!Y197*'Prevalence Rates'!Y197","v":239.3563651869645},{"$f":"'Population 2016'!Z197*'Prevalence Rates'!Z197","v":504.59332801775918},{"$f":"'Population 2016'!AA197*'Prevalence Rates'!AA197","v":1204.502385923955},{"$f":"'Population 2016'!AB197*'Prevalence Rates'!AB197","v":644.63304019000066},{"$f":"'Population 2016'!AC197*'Prevalence Rates'!AC197","v":823.57816895102042},{"$f":"'Population 2016'!AD197*'Prevalence Rates'!AD197","v":311.37472099372548},{"$f":"'Population 2016'!AE197*'Prevalence Rates'!AE197","v":261.48410102297169},{"$f":"'Population 2016'!AF197*'Prevalence Rates'!AF197","v":68.308670043407787},{"$f":"'Population 2016'!AG197*'Prevalence Rates'!AG197","v":261.48410102297169},{"$f":"'Population 2016'!AH197*'Prevalence Rates'!AH197","v":381.88209628989136},{"$f":"'Population 2016'!AI197*'Prevalence Rates'!AI197","v":553.74707779101971},{"$f":"'Population 2016'!AJ197*'Prevalence Rates'!AJ197","v":30.459354033089909},{"$f":"'Population 2016'!AK197*'Prevalence Rates'!AK197","v":110.44976627572221},{"$f":"'Population 2016'!AL197*'Prevalence Rates'!AL197","v":96.79140748624593},{"$f":"'Population 2016'!AM197*'Prevalence Rates'!AM197","v":183.01135975816834},{"$f":"'Population 2016'!AN197*'Prevalence Rates'!AN197","v":26.828559675945751},{"$f":"'Population 2016'!AO197*'Prevalence Rates'!AO197","v":26.828559675945751},{"$f":"'Population 2016'!AP197*'Prevalence Rates'!AP197","v":224.97844108017821},{"$f":"'Population 2016'!AQ197*'Prevalence Rates'!AQ197","v":114.13464771413543},{"$f":"'Population 2016'!AR197*'Prevalence Rates'!AR197","v":4123.6789297658861},{"$f":"'Population 2016'!AS197*'Prevalence Rates'!AS197","v":101.26678733427245},{"$f":"'Population 2016'!AT197*'Prevalence Rates'!AT197","v":43.414056092772285},{"$f":"'Population 2016'!AU197*'Prevalence Rates'!AU197","v":43.414056092772285},{"$f":"'Population 2016'!AV197*'Prevalence Rates'!AV197","v":46.660520888312355},{"$f":"'Population 2016'!AW197*'Prevalence Rates'!AW197","v":197.59156897688786},{"$f":"'Population 2016'!AX197*'Prevalence Rates'!AX197","v":84.457909178199301},{"$f":"'Population 2016'!AY197*'Prevalence Rates'!AY197","v":795.11363583034051},{"$f":"'Population 2016'!AZ197*'Prevalence Rates'!AZ197","v":595.38052045452207},{"$f":"'Population 2016'!BA197*'Prevalence Rates'!BA197","v":45.774097308173587},{"$f":"'Population 2016'!BB197*'Prevalence Rates'!BB197","v":89.321895259044254},{"$f":"'Population 2016'!BC197*'Prevalence Rates'!BC197","v":4.4521022046168808},195]
[null,"Male 25-29",{"$f":"'Population 2016'!C198*'Prevalence Rates'!C198","v":182.34793197588772},{"$f":"'Population 2016'!D198*'Prevalence Rates'!D198","v":303.46778532010711},{"$f":"'Population 2016'!E198*'Prevalence Rates'!E198","v":122.07356571012151},{"$f":"'Population 2016'!F198*'Prevalence Rates'!F198","v":33.717616979834396},{"$f":"'Population 2016'!G198*'Prevalence Rates'!G198","v":23.590595606340838},{"$f":"'Population 2016'!H198*'Prevalence Rates'!H198","v":103.03816939990296},{"$f":"'Population 2016'!I198*'Prevalence Rates'!I198","v":43.573139770587026},{"$f":"'Population 2016'!J198*'Prevalence Rates'!J198","v":56.915345542919333},{"$f":"'Population 2016'!K198*'Prevalence Rates'!K198","v":22.338341865599926},{"$f":"'Population 2016'!L198*'Prevalence Rates'!L198","v":32.305149160875473},{"$f":"'Population 2016'!M198*'Prevalence Rates'!M198","v":32.305149160875473},{"$f":"'Population 2016'!N198*'Prevalence Rates'!N198","v":110.7608657791198},{"$f":"'Population 2016'!O198*'Prevalence Rates'!O198","v":38.59051196430687},{"$f":"'Population 2016'!P198*'Prevalence Rates'!P198","v":24.465456776461139},{"$f":"'Population 2016'!Q198*'Prevalence Rates'!Q198","v":42.169262563640899},{"$f":"'Population 2016'!R198*'Prevalence Rates'!R198","v":18.256497390881048},{"$f":"'Population 2016'!S198*'Prevalence Rates'!S198","v":521.06581349207067},{"$f":"'Population 2016'!T198*'Prevalence Rates'!T198","v":260.89720006397005},{"$f":"'Population 2016'!U198*'Prevalence Rates'!U198","v":1.2718990837657824},{"$f":"'Population 2016'!V198*'Prevalence Rates'!V198","v":41.798384846042254},{"$f":"'Population 2016'!W198*'Prevalence Rates'!W198","v":103.21552692353424},{"$f":"'Population 2016'!X198*'Prevalence Rates'!X198","v":103.21552692353424},{"$f":"'Population 2016'!Y198*'Prevalence Rates'!Y198","v":97.69065932383559},{"$f":"'Population 2016'!Z198*'Prevalence Rates'!Z198","v":260.30389557939668},{"$f":"'Population 2016'!AA198*'Prevalence Rates'!AA198","v":604.44143065481876},{"$f":"'Population 2016'!AB198*'Prevalence Rates'!AB198","v":357.34953019317186},{"$f":"'Population 2016'!AC198*'Prevalence Rates'!AC198","v":422.54815094170277},{"$f":"'Population 2016'!AD198*'Prevalence Rates'!AD198","v":158.52807908425692},{"$f":"'Population 2016'!AE198*'Prevalence Rates'!AE198","v":138.38071306110797},{"$f":"'Population 2016'!AF198*'Prevalence Rates'!AF198","v":29.084996046981111},{"$f":"'Population 2016'!AG198*'Prevalence Rates'!AG198","v":138.38071306110797},{"$f":"'Population 2016'!AH198*'Prevalence Rates'!AH198","v":182.56811091978625},{"$f":"'Population 2016'!AI198*'Prevalence Rates'!AI198","v":370.97559610682498},{"$f":"'Population 2016'!AJ198*'Prevalence Rates'!AJ198","v":18.000757302099732},{"$f":"'Population 2016'!AK198*'Prevalence Rates'!AK198","v":53.536563322644831},{"$f":"'Population 2016'!AL198*'Prevalence Rates'!AL198","v":39.65446458159154},{"$f":"'Population 2016'!AM198*'Prevalence Rates'!AM198","v":84.17696009036689},{"$f":"'Population 2016'!AN198*'Prevalence Rates'!AN198","v":14.075489036571247},{"$f":"'Population 2016'!AO198*'Prevalence Rates'!AO198","v":14.075489036571247},{"$f":"'Population 2016'!AP198*'Prevalence Rates'!AP198","v":101.7616825351508},{"$f":"'Population 2016'!AQ198*'Prevalence Rates'!AQ198","v":64.918064599897789},{"$f":"'Population 2016'!AR198*'Prevalence Rates'!AR198","v":2119.8446745562132},{"$f":"'Population 2016'!AS198*'Prevalence Rates'!AS198","v":43.573139770587026},{"$f":"'Population 2016'!AT198*'Prevalence Rates'!AT198","v":23.836477988061837},{"$f":"'Population 2016'!AU198*'Prevalence Rates'!AU198","v":23.836477988061837},{"$f":"'Population 2016'!AV198*'Prevalence Rates'!AV198","v":24.914247344692836},{"$f":"'Population 2016'!AW198*'Prevalence Rates'!AW198","v":97.592382147180146},{"$f":"'Population 2016'!AX198*'Prevalence Rates'!AX198","v":30.898957260309007},{"$f":"'Population 2016'!AY198*'Prevalence Rates'!AY198","v":341.19903184649132},{"$f":"'Population 2016'!AZ198*'Prevalence Rates'!AZ198","v":245.18098342032786},{"$f":"'Population 2016'!BA198*'Prevalence Rates'!BA198","v":24.509760953544419},{"$f":"'Population 2016'!BB198*'Prevalence Rates'!BB198","v":51.001753819565224},{"$f":"'Population 2016'!BC198*'Prevalence Rates'!BC198","v":1.2718990837657824},196]
[null,"Male 30-34",{"$f":"'Population 2016'!C199*'Prevalence Rates'!C199","v":134.82467712691408},{"$f":"'Population 2016'!D199*'Prevalence Rates'!D199","v":276.36131989623715},{"$f":"'Population 2016'!E199*'Prevalence Rates'!E199","v":131.90934994116199},{"$f":"'Population 2016'!F199*'Prevalence Rates'!F199","v":32.896414274021808},{"$f":"'Population 2016'!G199*'Prevalence Rates'!G199","v":20.513561396818119},{"$f":"'Population 2016'!H199*'Prevalence Rates'!H199","v":97.550929609375586},{"$f":"'Population 2016'!I199*'Prevalence Rates'!I199","v":43.943975002677128},{"$f":"'Population 2016'!J199*'Prevalence Rates'!J199","v":53.15387633585749},{"$f":"'Population 2016'!K199*'Prevalence Rates'!K199","v":27.788897280806307},{"$f":"'Population 2016'!L199*'Prevalence Rates'!L199","v":34.114663281912982},{"$f":"'Population 2016'!M199*'Prevalence Rates'!M199","v":34.114663281912982},{"$f":"'Population 2016'!N199*'Prevalence Rates'!N199","v":70.273074368520852},{"$f":"'Population 2016'!O199*'Prevalence Rates'!O199","v":41.026781659023214},{"$f":"'Population 2016'!P199*'Prevalence Rates'!P199","v":22.12799275323237},{"$f":"'Population 2016'!Q199*'Prevalence Rates'!Q199","v":44.419146999201011},{"$f":"'Population 2016'!R199*'Prevalence Rates'!R199","v":14.306542810268262},{"$f":"'Population 2016'!S199*'Prevalence Rates'!S199","v":528.39187062376936},{"$f":"'Population 2016'!T199*'Prevalence Rates'!T199","v":247.12201790310502},{"$f":"'Population 2016'!U199*'Prevalence Rates'!U199","v":1.1701471570645199},{"$f":"'Population 2016'!V199*'Prevalence Rates'!V199","v":43.293090817548233},{"$f":"'Population 2016'!W199*'Prevalence Rates'!W199","v":103.28036079722993},{"$f":"'Population 2016'!X199*'Prevalence Rates'!X199","v":103.28036079722993},{"$f":"'Population 2016'!Y199*'Prevalence Rates'!Y199","v":95.800980685097855},{"$f":"'Population 2016'!Z199*'Prevalence Rates'!Z199","v":215.68037062292868},{"$f":"'Population 2016'!AA199*'Prevalence Rates'!AA199","v":558.1088355881684},{"$f":"'Population 2016'!AB199*'Prevalence Rates'!AB199","v":331.65773390477386},{"$f":"'Population 2016'!AC199*'Prevalence Rates'!AC199","v":352.71616884269145},{"$f":"'Population 2016'!AD199*'Prevalence Rates'!AD199","v":160.64093312697923},{"$f":"'Population 2016'!AE199*'Prevalence Rates'!AE199","v":144.76434714577215},{"$f":"'Population 2016'!AF199*'Prevalence Rates'!AF199","v":30.941485156362887},{"$f":"'Population 2016'!AG199*'Prevalence Rates'!AG199","v":144.76434714577215},{"$f":"'Population 2016'!AH199*'Prevalence Rates'!AH199","v":205.23086532661134},{"$f":"'Population 2016'!AI199*'Prevalence Rates'!AI199","v":377.69573755601886},{"$f":"'Population 2016'!AJ199*'Prevalence Rates'!AJ199","v":21.119429539849534},{"$f":"'Population 2016'!AK199*'Prevalence Rates'!AK199","v":54.500675162141611},{"$f":"'Population 2016'!AL199*'Prevalence Rates'!AL199","v":33.622018068060832},{"$f":"'Population 2016'!AM199*'Prevalence Rates'!AM199","v":91.527807455290741},{"$f":"'Population 2016'!AN199*'Prevalence Rates'!AN199","v":14.075489036571247},{"$f":"'Population 2016'!AO199*'Prevalence Rates'!AO199","v":14.075489036571247},{"$f":"'Population 2016'!AP199*'Prevalence Rates'!AP199","v":112.10674984681552},{"$f":"'Population 2016'!AQ199*'Prevalence Rates'!AQ199","v":51.117113818082579},{"$f":"'Population 2016'!AR199*'Prevalence Rates'!AR199","v":2033.5872781065088},{"$f":"'Population 2016'!AS199*'Prevalence Rates'!AS199","v":43.943975002677128},{"$f":"'Population 2016'!AT199*'Prevalence Rates'!AT199","v":21.239911758425471},{"$f":"'Population 2016'!AU199*'Prevalence Rates'!AU199","v":21.239911758425471},{"$f":"'Population 2016'!AV199*'Prevalence Rates'!AV199","v":23.448703383240318},{"$f":"'Population 2016'!AW199*'Prevalence Rates'!AW199","v":112.63020203778336},{"$f":"'Population 2016'!AX199*'Prevalence Rates'!AX199","v":25.297660401828029},{"$f":"'Population 2016'!AY199*'Prevalence Rates'!AY199","v":322.13763341931303},{"$f":"'Population 2016'!AZ199*'Prevalence Rates'!AZ199","v":224.6798891571656},{"$f":"'Population 2016'!BA199*'Prevalence Rates'!BA199","v":19.113116339919959},{"$f":"'Population 2016'!BB199*'Prevalence Rates'!BB199","v":66.023224967819004},{"$f":"'Population 2016'!BC199*'Prevalence Rates'!BC199","v":1.1701471570645199},197]
[null,"Male 35-39",{"$f":"'Population 2016'!C200*'Prevalence Rates'!C200","v":106.02498312824811},{"$f":"'Population 2016'!D200*'Prevalence Rates'!D200","v":273.6818302106592},{"$f":"'Population 2016'!E200*'Prevalence Rates'!E200","v":148.88481511148564},{"$f":"'Population 2016'!F200*'Prevalence Rates'!F200","v":31.3989269869518},{"$f":"'Population 2016'!G200*'Prevalence Rates'!G200","v":25.641951746022649},{"$f":"'Population 2016'!H200*'Prevalence Rates'!H200","v":114.36104515813405},{"$f":"'Population 2016'!I200*'Prevalence Rates'!I200","v":52.10235010865938},{"$f":"'Population 2016'!J200*'Prevalence Rates'!J200","v":62.650044497948045},{"$f":"'Population 2016'!K200*'Prevalence Rates'!K200","v":28.146310750655907},{"$f":"'Population 2016'!L200*'Prevalence Rates'!L200","v":29.111888947279876},{"$f":"'Population 2016'!M200*'Prevalence Rates'!M200","v":29.111888947279876},{"$f":"'Population 2016'!N200*'Prevalence Rates'!N200","v":57.248323515734668},{"$f":"'Population 2016'!O200*'Prevalence Rates'!O200","v":45.606968685089939},{"$f":"'Population 2016'!P200*'Prevalence Rates'!P200","v":22.024105463311091},{"$f":"'Population 2016'!Q200*'Prevalence Rates'!Q200","v":53.932944040998038},{"$f":"'Population 2016'!R200*'Prevalence Rates'!R200","v":17.100413123384623},{"$f":"'Population 2016'!S200*'Prevalence Rates'!S200","v":508.36731446379287},{"$f":"'Population 2016'!T200*'Prevalence Rates'!T200","v":194.57444802221892},{"$f":"'Population 2016'!U200*'Prevalence Rates'!U200","v":2.5437981675315648},{"$f":"'Population 2016'!V200*'Prevalence Rates'!V200","v":50.019267689325147},{"$f":"'Population 2016'!W200*'Prevalence Rates'!W200","v":113.07027572527872},{"$f":"'Population 2016'!X200*'Prevalence Rates'!X200","v":113.07027572527872},{"$f":"'Population 2016'!Y200*'Prevalence Rates'!Y200","v":111.83461761984226},{"$f":"'Population 2016'!Z200*'Prevalence Rates'!Z200","v":159.70862164735888},{"$f":"'Population 2016'!AA200*'Prevalence Rates'!AA200","v":533.78743180664424},{"$f":"'Population 2016'!AB200*'Prevalence Rates'!AB200","v":328.76894341301619},{"$f":"'Population 2016'!AC200*'Prevalence Rates'!AC200","v":301.57070787943411},{"$f":"'Population 2016'!AD200*'Prevalence Rates'!AD200","v":169.66858221861099},{"$f":"'Population 2016'!AE200*'Prevalence Rates'!AE200","v":147.57863744116176},{"$f":"'Population 2016'!AF200*'Prevalence Rates'!AF200","v":29.880634236716158},{"$f":"'Population 2016'!AG200*'Prevalence Rates'!AG200","v":147.57863744116176},{"$f":"'Population 2016'!AH200*'Prevalence Rates'!AH200","v":231.31202402943794},{"$f":"'Population 2016'!AI200*'Prevalence Rates'!AI200","v":341.35939750772292},{"$f":"'Population 2016'!AJ200*'Prevalence Rates'!AJ200","v":25.879508218520282},{"$f":"'Population 2016'!AK200*'Prevalence Rates'!AK200","v":54.273825317554135},{"$f":"'Population 2016'!AL200*'Prevalence Rates'!AL200","v":41.872275799801358},{"$f":"'Population 2016'!AM200*'Prevalence Rates'!AM200","v":99.334017046360316},{"$f":"'Population 2016'!AN200*'Prevalence Rates'!AN200","v":13.407876908354428},{"$f":"'Population 2016'!AO200*'Prevalence Rates'!AO200","v":13.407876908354428},{"$f":"'Population 2016'!AP200*'Prevalence Rates'!AP200","v":112.74012131487662},{"$f":"'Population 2016'!AQ200*'Prevalence Rates'!AQ200","v":55.806757287631441},{"$f":"'Population 2016'!AR200*'Prevalence Rates'!AR200","v":2013.1545857988167},{"$f":"'Population 2016'!AS200*'Prevalence Rates'!AS200","v":52.10235010865938},{"$f":"'Population 2016'!AT200*'Prevalence Rates'!AT200","v":23.576821365098201},{"$f":"'Population 2016'!AU200*'Prevalence Rates'!AU200","v":23.576821365098201},{"$f":"'Population 2016'!AV200*'Prevalence Rates'!AV200","v":27.332394881089495},{"$f":"'Population 2016'!AW200*'Prevalence Rates'!AW200","v":130.55282819311458},{"$f":"'Population 2016'!AX200*'Prevalence Rates'!AX200","v":32.184500801599725},{"$f":"'Population 2016'!AY200*'Prevalence Rates'!AY200","v":322.13763341931303},{"$f":"'Population 2016'!AZ200*'Prevalence Rates'!AZ200","v":213.2567702134848},{"$f":"'Population 2016'!BA200*'Prevalence Rates'!BA200","v":16.714607622753533},{"$f":"'Population 2016'!BB200*'Prevalence Rates'!BB200","v":68.338787713992517},{"$f":"'Population 2016'!BC200*'Prevalence Rates'!BC200","v":2.5437981675315648},198]
[null,"Male 40-44",{"$f":"'Population 2016'!C201*'Prevalence Rates'!C201","v":88.88051777133991},{"$f":"'Population 2016'!D201*'Prevalence Rates'!D201","v":278.66692730010658},{"$f":"'Population 2016'!E201*'Prevalence Rates'!E201","v":164.26258944224941},{"$f":"'Population 2016'!F201*'Prevalence Rates'!F201","v":37.09903988612151},{"$f":"'Population 2016'!G201*'Prevalence Rates'!G201","v":32.103723586020358},{"$f":"'Population 2016'!H201*'Prevalence Rates'!H201","v":136.48420240883172},{"$f":"'Population 2016'!I201*'Prevalence Rates'!I201","v":67.739235728458695},{"$f":"'Population 2016'!J201*'Prevalence Rates'!J201","v":69.618012045456041},{"$f":"'Population 2016'!K201*'Prevalence Rates'!K201","v":30.380144937215899},{"$f":"'Population 2016'!L201*'Prevalence Rates'!L201","v":37.946575538227698},{"$f":"'Population 2016'!M201*'Prevalence Rates'!M201","v":37.946575538227698},{"$f":"'Population 2016'!N201*'Prevalence Rates'!N201","v":58.358961185352094},{"$f":"'Population 2016'!O201*'Prevalence Rates'!O201","v":54.182638010491459},{"$f":"'Population 2016'!P201*'Prevalence Rates'!P201","v":26.283484350083519},{"$f":"'Population 2016'!Q201*'Prevalence Rates'!Q201","v":71.674889875700615},{"$f":"'Population 2016'!R201*'Prevalence Rates'!R201","v":20.761346637123303},{"$f":"'Population 2016'!S201*'Prevalence Rates'!S201","v":520.33320777890083},{"$f":"'Population 2016'!T201*'Prevalence Rates'!T201","v":162.45214824192584},{"$f":"'Population 2016'!U201*'Prevalence Rates'!U201","v":2.7981779842847212},{"$f":"'Population 2016'!V201*'Prevalence Rates'!V201","v":54.930444452844796},{"$f":"'Population 2016'!W201*'Prevalence Rates'!W201","v":120.46133732658708},{"$f":"'Population 2016'!X201*'Prevalence Rates'!X201","v":120.46133732658708},{"$f":"'Population 2016'!Y201*'Prevalence Rates'!Y201","v":123.57353037563728},{"$f":"'Population 2016'!Z201*'Prevalence Rates'!Z201","v":138.80737288901324},{"$f":"'Population 2016'!AA201*'Prevalence Rates'!AA201","v":558.49387100423473},{"$f":"'Population 2016'!AB201*'Prevalence Rates'!AB201","v":346.47046812846742},{"$f":"'Population 2016'!AC201*'Prevalence Rates'!AC201","v":306.03219562464869},{"$f":"'Population 2016'!AD201*'Prevalence Rates'!AD201","v":191.82153672715415},{"$f":"'Population 2016'!AE201*'Prevalence Rates'!AE201","v":162.67970731886203},{"$f":"'Population 2016'!AF201*'Prevalence Rates'!AF201","v":36.157335511292629},{"$f":"'Population 2016'!AG201*'Prevalence Rates'!AG201","v":162.67970731886203},{"$f":"'Population 2016'!AH201*'Prevalence Rates'!AH201","v":251.31601953937292},{"$f":"'Population 2016'!AI201*'Prevalence Rates'!AI201","v":331.18997991646495},{"$f":"'Population 2016'!AJ201*'Prevalence Rates'!AJ201","v":24.785237257906317},{"$f":"'Population 2016'!AK201*'Prevalence Rates'!AK201","v":66.070017236102998},{"$f":"'Population 2016'!AL201*'Prevalence Rates'!AL201","v":53.138756788307234},{"$f":"'Population 2016'!AM201*'Prevalence Rates'!AM201","v":111.4986936591104},{"$f":"'Population 2016'!AN201*'Prevalence Rates'!AN201","v":17.135377957564994},{"$f":"'Population 2016'!AO201*'Prevalence Rates'!AO201","v":17.135377957564994},{"$f":"'Population 2016'!AP201*'Prevalence Rates'!AP201","v":126.04092214415981},{"$f":"'Population 2016'!AQ201*'Prevalence Rates'!AQ201","v":61.434329451090072},{"$f":"'Population 2016'!AR201*'Prevalence Rates'!AR201","v":2159.4526627218934},{"$f":"'Population 2016'!AS201*'Prevalence Rates'!AS201","v":67.739235728458695},{"$f":"'Population 2016'!AT201*'Prevalence Rates'!AT201","v":28.614159850592749},{"$f":"'Population 2016'!AU201*'Prevalence Rates'!AU201","v":28.614159850592749},{"$f":"'Population 2016'!AV201*'Prevalence Rates'!AV201","v":30.190205605921907},{"$f":"'Population 2016'!AW201*'Prevalence Rates'!AW201","v":138.47070070694238},{"$f":"'Population 2016'!AX201*'Prevalence Rates'!AX201","v":36.224780502799121},{"$f":"'Population 2016'!AY201*'Prevalence Rates'!AY201","v":352.63587090279827},{"$f":"'Population 2016'!AZ201*'Prevalence Rates'!AZ201","v":237.31340481011063},{"$f":"'Population 2016'!BA201*'Prevalence Rates'!BA201","v":22.860786210492503},{"$f":"'Population 2016'!BB201*'Prevalence Rates'!BB201","v":75.107355741268933},{"$f":"'Population 2016'!BC201*'Prevalence Rates'!BC201","v":2.7981779842847212},199]
[null,"Male 45-49",{"$f":"'Population 2016'!C202*'Prevalence Rates'!C202","v":112.7195101473833},{"$f":"'Population 2016'!D202*'Prevalence Rates'!D202","v":391.93442719232166},{"$f":"'Population 2016'!E202*'Prevalence Rates'!E202","v":239.18774619876993},{"$f":"'Population 2016'!F202*'Prevalence Rates'!F202","v":64.373617298230513},{"$f":"'Population 2016'!G202*'Prevalence Rates'!G202","v":53.216544503459595},{"$f":"'Population 2016'!H202*'Prevalence Rates'!H202","v":234.73235545099419},{"$f":"'Population 2016'!I202*'Prevalence Rates'!I202","v":126.01238272104325},{"$f":"'Population 2016'!J202*'Prevalence Rates'!J202","v":117.71313401897199},{"$f":"'Population 2016'!K202*'Prevalence Rates'!K202","v":51.618934107694074},{"$f":"'Population 2016'!L202*'Prevalence Rates'!L202","v":67.971254714947705},{"$f":"'Population 2016'!M202*'Prevalence Rates'!M202","v":67.971254714947705},{"$f":"'Population 2016'!N202*'Prevalence Rates'!N202","v":94.527036300153654},{"$f":"'Population 2016'!O202*'Prevalence Rates'!O202","v":82.797120076734998},{"$f":"'Population 2016'!P202*'Prevalence Rates'!P202","v":46.943894582863109},{"$f":"'Population 2016'!Q202*'Prevalence Rates'!Q202","v":107.14529571215559},{"$f":"'Population 2016'!R202*'Prevalence Rates'!R202","v":29.131041075689435},{"$f":"'Population 2016'!S202*'Prevalence Rates'!S202","v":790.52681203556381},{"$f":"'Population 2016'!T202*'Prevalence Rates'!T202","v":205.00302465358348},{"$f":"'Population 2016'!U202*'Prevalence Rates'!U202","v":4.9558183022837738},{"$f":"'Population 2016'!V202*'Prevalence Rates'!V202","v":89.554962506599836},{"$f":"'Population 2016'!W202*'Prevalence Rates'!W202","v":218.93580109781328},{"$f":"'Population 2016'!X202*'Prevalence Rates'!X202","v":218.93580109781328},{"$f":"'Population 2016'!Y202*'Prevalence Rates'!Y202","v":205.37802567533154},{"$f":"'Population 2016'!Z202*'Prevalence Rates'!Z202","v":194.03981465376609},{"$f":"'Population 2016'!AA202*'Prevalence Rates'!AA202","v":872.36711783812211},{"$f":"'Population 2016'!AB202*'Prevalence Rates'!AB202","v":509.40759234021465},{"$f":"'Population 2016'!AC202*'Prevalence Rates'!AC202","v":479.7315628103284},{"$f":"'Population 2016'!AD202*'Prevalence Rates'!AD202","v":310.36489872235245},{"$f":"'Population 2016'!AE202*'Prevalence Rates'!AE202","v":261.50977066652069},{"$f":"'Population 2016'!AF202*'Prevalence Rates'!AF202","v":67.695496112001067},{"$f":"'Population 2016'!AG202*'Prevalence Rates'!AG202","v":261.50977066652069},{"$f":"'Population 2016'!AH202*'Prevalence Rates'!AH202","v":390.88187648336941},{"$f":"'Population 2016'!AI202*'Prevalence Rates'!AI202","v":447.99114575088549},{"$f":"'Population 2016'!AJ202*'Prevalence Rates'!AJ202","v":34.86470691196439},{"$f":"'Population 2016'!AK202*'Prevalence Rates'!AK202","v":113.32591207624201},{"$f":"'Population 2016'!AL202*'Prevalence Rates'!AL202","v":93.855894537333043},{"$f":"'Population 2016'!AM202*'Prevalence Rates'!AM202","v":175.2267695988451},{"$f":"'Population 2016'!AN202*'Prevalence Rates'!AN202","v":30.559007021362966},{"$f":"'Population 2016'!AO202*'Prevalence Rates'!AO202","v":30.559007021362966},{"$f":"'Population 2016'!AP202*'Prevalence Rates'!AP202","v":213.0817727423337},{"$f":"'Population 2016'!AQ202*'Prevalence Rates'!AQ202","v":102.87453406162786},{"$f":"'Population 2016'!AR202*'Prevalence Rates'!AR202","v":3389.2},{"$f":"'Population 2016'!AS202*'Prevalence Rates'!AS202","v":126.01238272104325},{"$f":"'Population 2016'!AT202*'Prevalence Rates'!AT202","v":37.79913911582166},{"$f":"'Population 2016'!AU202*'Prevalence Rates'!AU202","v":37.79913911582166},{"$f":"'Population 2016'!AV202*'Prevalence Rates'!AV202","v":57.698174437216892},{"$f":"'Population 2016'!AW202*'Prevalence Rates'!AW202","v":213.66274999710117},{"$f":"'Population 2016'!AX202*'Prevalence Rates'!AX202","v":61.121512245507944},{"$f":"'Population 2016'!AY202*'Prevalence Rates'!AY202","v":612.33206909970181},{"$f":"'Population 2016'!AZ202*'Prevalence Rates'!AZ202","v":400.69115063094659},{"$f":"'Population 2016'!BA202*'Prevalence Rates'!BA202","v":43.705775041503429},{"$f":"'Population 2016'!BB202*'Prevalence Rates'!BB202","v":105.46950455057869},{"$f":"'Population 2016'!BC202*'Prevalence Rates'!BC202","v":4.9558183022837738},200]
[null,"Male 50-54",{"$f":"'Population 2016'!C203*'Prevalence Rates'!C203","v":116.38187690307446},{"$f":"'Population 2016'!D203*'Prevalence Rates'!D203","v":419.58650121234353},{"$f":"'Population 2016'!E203*'Prevalence Rates'!E203","v":258.91178513975859},{"$f":"'Population 2016'!F203*'Prevalence Rates'!F203","v":76.333385791201252},{"$f":"'Population 2016'!G203*'Prevalence Rates'!G203","v":60.016050841580899},{"$f":"'Population 2016'!H203*'Prevalence Rates'!H203","v":252.76149721003142},{"$f":"'Population 2016'!I203*'Prevalence Rates'!I203","v":144.57558707676429},{"$f":"'Population 2016'!J203*'Prevalence Rates'!J203","v":121.55069898344591},{"$f":"'Population 2016'!K203*'Prevalence Rates'!K203","v":48.354973402992108},{"$f":"'Population 2016'!L203*'Prevalence Rates'!L203","v":80.57185807841789},{"$f":"'Population 2016'!M203*'Prevalence Rates'!M203","v":80.57185807841789},{"$f":"'Population 2016'!N203*'Prevalence Rates'!N203","v":104.49881903123922},{"$f":"'Population 2016'!O203*'Prevalence Rates'!O203","v":87.279766705093266},{"$f":"'Population 2016'!P203*'Prevalence Rates'!P203","v":50.317108564865251},{"$f":"'Population 2016'!Q203*'Prevalence Rates'!Q203","v":116.10305988289588},{"$f":"'Population 2016'!R203*'Prevalence Rates'!R203","v":36.430093873177611},{"$f":"'Population 2016'!S203*'Prevalence Rates'!S203","v":819.93100648595146},{"$f":"'Population 2016'!T203*'Prevalence Rates'!T203","v":203.07509652204507},{"$f":"'Population 2016'!U203*'Prevalence Rates'!U203","v":3.8545253462207132},{"$f":"'Population 2016'!V203*'Prevalence Rates'!V203","v":85.438323101054522},{"$f":"'Population 2016'!W203*'Prevalence Rates'!W203","v":224.46182492359944},{"$f":"'Population 2016'!X203*'Prevalence Rates'!X203","v":224.46182492359944},{"$f":"'Population 2016'!Y203*'Prevalence Rates'!Y203","v":204.52583469742561},{"$f":"'Population 2016'!Z203*'Prevalence Rates'!Z203","v":189.09557261743856},{"$f":"'Population 2016'!AA203*'Prevalence Rates'!AA203","v":911.69656692059323},{"$f":"'Population 2016'!AB203*'Prevalence Rates'!AB203","v":538.09607085104949},{"$f":"'Population 2016'!AC203*'Prevalence Rates'!AC203","v":509.7366550867585},{"$f":"'Population 2016'!AD203*'Prevalence Rates'!AD203","v":337.82391990431887},{"$f":"'Population 2016'!AE203*'Prevalence Rates'!AE203","v":281.84735581423661},{"$f":"'Population 2016'!AF203*'Prevalence Rates'!AF203","v":77.144160763676126},{"$f":"'Population 2016'!AG203*'Prevalence Rates'!AG203","v":281.84735581423661},{"$f":"'Population 2016'!AH203*'Prevalence Rates'!AH203","v":400.3027806054489},{"$f":"'Population 2016'!AI203*'Prevalence Rates'!AI203","v":453.70367652464859},{"$f":"'Population 2016'!AJ203*'Prevalence Rates'!AJ203","v":35.90102516412469},{"$f":"'Population 2016'!AK203*'Prevalence Rates'!AK203","v":114.63027260792522},{"$f":"'Population 2016'!AL203*'Prevalence Rates'!AL203","v":106.45802871434067},{"$f":"'Population 2016'!AM203*'Prevalence Rates'!AM203","v":178.65913726050002},{"$f":"'Population 2016'!AN203*'Prevalence Rates'!AN203","v":33.268672668577416},{"$f":"'Population 2016'!AO203*'Prevalence Rates'!AO203","v":33.268672668577416},{"$f":"'Population 2016'!AP203*'Prevalence Rates'!AP203","v":241.07374825003973},{"$f":"'Population 2016'!AQ203*'Prevalence Rates'!AQ203","v":113.84177513780139},{"$f":"'Population 2016'!AR203*'Prevalence Rates'!AR203","v":3594.3586206896553},{"$f":"'Population 2016'!AS203*'Prevalence Rates'!AS203","v":144.57558707676429},{"$f":"'Population 2016'!AT203*'Prevalence Rates'!AT203","v":41.593104751982203},{"$f":"'Population 2016'!AU203*'Prevalence Rates'!AU203","v":41.593104751982203},{"$f":"'Population 2016'!AV203*'Prevalence Rates'!AV203","v":59.086103031926577},{"$f":"'Population 2016'!AW203*'Prevalence Rates'!AW203","v":219.558612900247},{"$f":"'Population 2016'!AX203*'Prevalence Rates'!AX203","v":65.655933377542581},{"$f":"'Population 2016'!AY203*'Prevalence Rates'!AY203","v":670.88136848483941},{"$f":"'Population 2016'!AZ203*'Prevalence Rates'!AZ203","v":456.98237230323792},{"$f":"'Population 2016'!BA203*'Prevalence Rates'!BA203","v":47.761995462988665},{"$f":"'Population 2016'!BB203*'Prevalence Rates'!BB203","v":103.70230797775864},{"$f":"'Population 2016'!BC203*'Prevalence Rates'!BC203","v":3.8545253462207132},201]
[null,"Male 55-59",{"$f":"'Population 2016'!C204*'Prevalence Rates'!C204","v":282.59044155386812},{"$f":"'Population 2016'!D204*'Prevalence Rates'!D204","v":1016.1387914306855},{"$f":"'Population 2016'!E204*'Prevalence Rates'!E204","v":626.53067702094381},{"$f":"'Population 2016'!F204*'Prevalence Rates'!F204","v":179.26534069264719},{"$f":"'Population 2016'!G204*'Prevalence Rates'!G204","v":149.09656386733363},{"$f":"'Population 2016'!H204*'Prevalence Rates'!H204","v":648.03167030953591},{"$f":"'Population 2016'!I204*'Prevalence Rates'!I204","v":356.68846958657491},{"$f":"'Population 2016'!J204*'Prevalence Rates'!J204","v":287.10427523673968},{"$f":"'Population 2016'!K204*'Prevalence Rates'!K204","v":108.37441010998154},{"$f":"'Population 2016'!L204*'Prevalence Rates'!L204","v":198.85374387490108},{"$f":"'Population 2016'!M204*'Prevalence Rates'!M204","v":198.85374387490108},{"$f":"'Population 2016'!N204*'Prevalence Rates'!N204","v":302.67814673483042},{"$f":"'Population 2016'!O204*'Prevalence Rates'!O204","v":221.92540181188008},{"$f":"'Population 2016'!P204*'Prevalence Rates'!P204","v":143.86822045374507},{"$f":"'Population 2016'!Q204*'Prevalence Rates'!Q204","v":290.68700712092152},{"$f":"'Population 2016'!R204*'Prevalence Rates'!R204","v":73.248469548305167},{"$f":"'Population 2016'!S204*'Prevalence Rates'!S204","v":2015.8346620511875},{"$f":"'Population 2016'!T204*'Prevalence Rates'!T204","v":500.02312644494521},{"$f":"'Population 2016'!U204*'Prevalence Rates'!U204","v":9.5782684440754533},{"$f":"'Population 2016'!V204*'Prevalence Rates'!V204","v":211.63274866493151},{"$f":"'Population 2016'!W204*'Prevalence Rates'!W204","v":560.77563459715952},{"$f":"'Population 2016'!X204*'Prevalence Rates'!X204","v":560.77563459715952},{"$f":"'Population 2016'!Y204*'Prevalence Rates'!Y204","v":493.63327197713539},{"$f":"'Population 2016'!Z204*'Prevalence Rates'!Z204","v":439.18427441728443},{"$f":"'Population 2016'!AA204*'Prevalence Rates'!AA204","v":2145.6424008967592},{"$f":"'Population 2016'!AB204*'Prevalence Rates'!AB204","v":1294.2363730952254},{"$f":"'Population 2016'!AC204*'Prevalence Rates'!AC204","v":1253.3720208147549},{"$f":"'Population 2016'!AD204*'Prevalence Rates'!AD204","v":856.99052945389099},{"$f":"'Population 2016'!AE204*'Prevalence Rates'!AE204","v":719.2081138298754},{"$f":"'Population 2016'!AF204*'Prevalence Rates'!AF204","v":181.15926812581191},{"$f":"'Population 2016'!AG204*'Prevalence Rates'!AG204","v":719.2081138298754},{"$f":"'Population 2016'!AH204*'Prevalence Rates'!AH204","v":889.49666405547055},{"$f":"'Population 2016'!AI204*'Prevalence Rates'!AI204","v":1106.0647502683078},{"$f":"'Population 2016'!AJ204*'Prevalence Rates'!AJ204","v":91.914467237886797},{"$f":"'Population 2016'!AK204*'Prevalence Rates'!AK204","v":269.39116282964454},{"$f":"'Population 2016'!AL204*'Prevalence Rates'!AL204","v":266.58375117766604},{"$f":"'Population 2016'!AM204*'Prevalence Rates'!AM204","v":374.24316203157684},{"$f":"'Population 2016'!AN204*'Prevalence Rates'!AN204","v":78.555861150365018},{"$f":"'Population 2016'!AO204*'Prevalence Rates'!AO204","v":78.555861150365018},{"$f":"'Population 2016'!AP204*'Prevalence Rates'!AP204","v":591.62867694553927},{"$f":"'Population 2016'!AQ204*'Prevalence Rates'!AQ204","v":297.13163350587678},{"$f":"'Population 2016'!AR204*'Prevalence Rates'!AR204","v":8759.5575447570336},{"$f":"'Population 2016'!AS204*'Prevalence Rates'!AS204","v":356.68846958657491},{"$f":"'Population 2016'!AT204*'Prevalence Rates'!AT204","v":99.649766377754077},{"$f":"'Population 2016'!AU204*'Prevalence Rates'!AU204","v":99.649766377754077},{"$f":"'Population 2016'!AV204*'Prevalence Rates'!AV204","v":158.11975384537485},{"$f":"'Population 2016'!AW204*'Prevalence Rates'!AW204","v":509.33605828593414},{"$f":"'Population 2016'!AX204*'Prevalence Rates'!AX204","v":158.08122456730672},{"$f":"'Population 2016'!AY204*'Prevalence Rates'!AY204","v":1677.7628840013952},{"$f":"'Population 2016'!AZ204*'Prevalence Rates'!AZ204","v":1143.4975714514565},{"$f":"'Population 2016'!BA204*'Prevalence Rates'!BA204","v":131.8859728662668},{"$f":"'Population 2016'!BB204*'Prevalence Rates'!BB204","v":236.02896503568556},{"$f":"'Population 2016'!BC204*'Prevalence Rates'!BC204","v":9.5782684440754533},202]
[null,"Male 60-64",{"$f":"'Population 2016'!C205*'Prevalence Rates'!C205","v":271.97288161109276},{"$f":"'Population 2016'!D205*'Prevalence Rates'!D205","v":917.54806055697111},{"$f":"'Population 2016'!E205*'Prevalence Rates'!E205","v":554.58630037514592},{"$f":"'Population 2016'!F205*'Prevalence Rates'!F205","v":179.79001973857689},{"$f":"'Population 2016'!G205*'Prevalence Rates'!G205","v":146.31144748126889},{"$f":"'Population 2016'!H205*'Prevalence Rates'!H205","v":590.63908442324134},{"$f":"'Population 2016'!I205*'Prevalence Rates'!I205","v":341.47214842478877},{"$f":"'Population 2016'!J205*'Prevalence Rates'!J205","v":227.27228008631494},{"$f":"'Population 2016'!K205*'Prevalence Rates'!K205","v":83.140965367955985},{"$f":"'Population 2016'!L205*'Prevalence Rates'!L205","v":201.55137218328153},{"$f":"'Population 2016'!M205*'Prevalence Rates'!M205","v":201.55137218328153},{"$f":"'Population 2016'!N205*'Prevalence Rates'!N205","v":227.73971668574799},{"$f":"'Population 2016'!O205*'Prevalence Rates'!O205","v":206.0483857840031},{"$f":"'Population 2016'!P205*'Prevalence Rates'!P205","v":129.3873668917341},{"$f":"'Population 2016'!Q205*'Prevalence Rates'!Q205","v":222.72815517591826},{"$f":"'Population 2016'!R205*'Prevalence Rates'!R205","v":75.864486317887497},{"$f":"'Population 2016'!S205*'Prevalence Rates'!S205","v":1709.9229107048229},{"$f":"'Population 2016'!T205*'Prevalence Rates'!T205","v":434.67186658283714},{"$f":"'Population 2016'!U205*'Prevalence Rates'!U205","v":8.2888861535268337},{"$f":"'Population 2016'!V205*'Prevalence Rates'!V205","v":164.08785718404278},{"$f":"'Population 2016'!W205*'Prevalence Rates'!W205","v":479.55823419087358},{"$f":"'Population 2016'!X205*'Prevalence Rates'!X205","v":479.55823419087358},{"$f":"'Population 2016'!Y205*'Prevalence Rates'!Y205","v":387.06985249110113},{"$f":"'Population 2016'!Z205*'Prevalence Rates'!Z205","v":372.09957288102908},{"$f":"'Population 2016'!AA205*'Prevalence Rates'!AA205","v":1822.4600966577345},{"$f":"'Population 2016'!AB205*'Prevalence Rates'!AB205","v":1187.199286530782},{"$f":"'Population 2016'!AC205*'Prevalence Rates'!AC205","v":1076.392333153949},{"$f":"'Population 2016'!AD205*'Prevalence Rates'!AD205","v":796.25709187831092},{"$f":"'Population 2016'!AE205*'Prevalence Rates'!AE205","v":657.82442201371111},{"$f":"'Population 2016'!AF205*'Prevalence Rates'!AF205","v":151.71288532090963},{"$f":"'Population 2016'!AG205*'Prevalence Rates'!AG205","v":657.82442201371111},{"$f":"'Population 2016'!AH205*'Prevalence Rates'!AH205","v":743.9593330389223},{"$f":"'Population 2016'!AI205*'Prevalence Rates'!AI205","v":897.21078730154534},{"$f":"'Population 2016'!AJ205*'Prevalence Rates'!AJ205","v":77.651877494076786},{"$f":"'Population 2016'!AK205*'Prevalence Rates'!AK205","v":260.35670310060158},{"$f":"'Population 2016'!AL205*'Prevalence Rates'!AL205","v":246.34908090755403},{"$f":"'Population 2016'!AM205*'Prevalence Rates'!AM205","v":311.59452697783274},{"$f":"'Population 2016'!AN205*'Prevalence Rates'!AN205","v":72.714527885337873},{"$f":"'Population 2016'!AO205*'Prevalence Rates'!AO205","v":72.714527885337873},{"$f":"'Population 2016'!AP205*'Prevalence Rates'!AP205","v":545.76598881022619},{"$f":"'Population 2016'!AQ205*'Prevalence Rates'!AQ205","v":243.04154838603148},{"$f":"'Population 2016'!AR205*'Prevalence Rates'!AR205","v":7698.1585677749363},{"$f":"'Population 2016'!AS205*'Prevalence Rates'!AS205","v":341.47214842478877},{"$f":"'Population 2016'!AT205*'Prevalence Rates'!AT205","v":91.188937157001362},{"$f":"'Population 2016'!AU205*'Prevalence Rates'!AU205","v":91.188937157001362},{"$f":"'Population 2016'!AV205*'Prevalence Rates'!AV205","v":138.48743541490884},{"$f":"'Population 2016'!AW205*'Prevalence Rates'!AW205","v":427.33561958283218},{"$f":"'Population 2016'!AX205*'Prevalence Rates'!AX205","v":126.49822491663556},{"$f":"'Population 2016'!AY205*'Prevalence Rates'!AY205","v":1491.685586689845},{"$f":"'Population 2016'!AZ205*'Prevalence Rates'!AZ205","v":1038.8709673090716},{"$f":"'Population 2016'!BA205*'Prevalence Rates'!BA205","v":107.46264455769887},{"$f":"'Population 2016'!BB205*'Prevalence Rates'!BB205","v":171.11025151949519},{"$f":"'Population 2016'!BC205*'Prevalence Rates'!BC205","v":8.2888861535268337},203]
[null,"Male 65-69",{"$f":"'Population 2016'!C206*'Prevalence Rates'!C206","v":0},{"$f":"'Population 2016'!D206*'Prevalence Rates'!D206","v":0},{"$f":"'Population 2016'!E206*'Prevalence Rates'!E206","v":0},{"$f":"'Population 2016'!F206*'Prevalence Rates'!F206","v":0},{"$f":"'Population 2016'!G206*'Prevalence Rates'!G206","v":0},{"$f":"'Population 2016'!H206*'Prevalence Rates'!H206","v":0},{"$f":"'Population 2016'!I206*'Prevalence Rates'!I206","v":0},{"$f":"'Population 2016'!J206*'Prevalence Rates'!J206","v":0},{"$f":"'Population 2016'!K206*'Prevalence Rates'!K206","v":0},{"$f":"'Population 2016'!L206*'Prevalence Rates'!L206","v":0},{"$f":"'Population 2016'!M206*'Prevalence Rates'!M206","v":0},{"$f":"'Population 2016'!N206*'Prevalence Rates'!N206","v":0},{"$f":"'Population 2016'!O206*'Prevalence Rates'!O206","v":0},{"$f":"'Population 2016'!P206*'Prevalence Rates'!P206","v":0},{"$f":"'Population 2016'!Q206*'Prevalence Rates'!Q206","v":0},{"$f":"'Population 2016'!R206*'Prevalence Rates'!R206","v":0},{"$f":"'Population 2016'!S206*'Prevalence Rates'!S206","v":0},{"$f":"'Population 2016'!T206*'Prevalence Rates'!T206","v":0},{"$f":"'Population 2016'!U206*'Prevalence Rates'!U206","v":0},{"$f":"'Population 2016'!V206*'Prevalence Rates'!V206","v":0},{"$f":"'Population 2016'!W206*'Prevalence Rates'!W206","v":0},{"$f":"'Population 2016'!X206*'Prevalence Rates'!X206","v":0},{"$f":"'Population 2016'!Y206*'Prevalence Rates'!Y206","v":0},{"$f":"'Population 2016'!Z206*'Prevalence Rates'!Z206","v":0},{"$f":"'Population 2016'!AA206*'Prevalence Rates'!AA206","v":0},{"$f":"'Population 2016'!AB206*'Prevalence Rates'!AB206","v":0},{"$f":"'Population 2016'!AC206*'Prevalence Rates'!AC206","v":0},{"$f":"'Population 2016'!AD206*'Prevalence Rates'!AD206","v":0},{"$f":"'Population 2016'!AE206*'Prevalence Rates'!AE206","v":0},{"$f":"'Population 2016'!AF206*'Prevalence Rates'!AF206","v":0},{"$f":"'Population 2016'!AG206*'Prevalence Rates'!AG206","v":0},{"$f":"'Population 2016'!AH206*'Prevalence Rates'!AH206","v":0},{"$f":"'Population 2016'!AI206*'Prevalence Rates'!AI206","v":0},{"$f":"'Population 2016'!AJ206*'Prevalence Rates'!AJ206","v":0},{"$f":"'Population 2016'!AK206*'Prevalence Rates'!AK206","v":0},{"$f":"'Population 2016'!AL206*'Prevalence Rates'!AL206","v":0},{"$f":"'Population 2016'!AM206*'Prevalence Rates'!AM206","v":0},{"$f":"'Population 2016'!AN206*'Prevalence Rates'!AN206","v":0},{"$f":"'Population 2016'!AO206*'Prevalence Rates'!AO206","v":0},{"$f":"'Population 2016'!AP206*'Prevalence Rates'!AP206","v":0},{"$f":"'Population 2016'!AQ206*'Prevalence Rates'!AQ206","v":0},{"$f":"'Population 2016'!AR206*'Prevalence Rates'!AR206","v":0},{"$f":"'Population 2016'!AS206*'Prevalence Rates'!AS206","v":0},{"$f":"'Population 2016'!AT206*'Prevalence Rates'!AT206","v":0},{"$f":"'Population 2016'!AU206*'Prevalence Rates'!AU206","v":0},{"$f":"'Population 2016'!AV206*'Prevalence Rates'!AV206","v":0},{"$f":"'Population 2016'!AW206*'Prevalence Rates'!AW206","v":0},{"$f":"'Population 2016'!AX206*'Prevalence Rates'!AX206","v":0},{"$f":"'Population 2016'!AY206*'Prevalence Rates'!AY206","v":0},{"$f":"'Population 2016'!AZ206*'Prevalence Rates'!AZ206","v":0},{"$f":"'Population 2016'!BA206*'Prevalence Rates'!BA206","v":0},{"$f":"'Population 2016'!BB206*'Prevalence Rates'!BB206","v":0},{"$f":"'Population 2016'!BC206*'Prevalence Rates'!BC206","v":0},204]
[null,"Male 70-74",{"$f":"'Population 2016'!C207*'Prevalence Rates'!C207","v":0},{"$f":"'Population 2016'!D207*'Prevalence Rates'!D207","v":0},{"$f":"'Population 2016'!E207*'Prevalence Rates'!E207","v":0},{"$f":"'Population 2016'!F207*'Prevalence Rates'!F207","v":0},{"$f":"'Population 2016'!G207*'Prevalence Rates'!G207","v":0},{"$f":"'Population 2016'!H207*'Prevalence Rates'!H207","v":0},{"$f":"'Population 2016'!I207*'Prevalence Rates'!I207","v":0},{"$f":"'Population 2016'!J207*'Prevalence Rates'!J207","v":0},{"$f":"'Population 2016'!K207*'Prevalence Rates'!K207","v":0},{"$f":"'Population 2016'!L207*'Prevalence Rates'!L207","v":0},{"$f":"'Population 2016'!M207*'Prevalence Rates'!M207","v":0},{"$f":"'Population 2016'!N207*'Prevalence Rates'!N207","v":0},{"$f":"'Population 2016'!O207*'Prevalence Rates'!O207","v":0},{"$f":"'Population 2016'!P207*'Prevalence Rates'!P207","v":0},{"$f":"'Population 2016'!Q207*'Prevalence Rates'!Q207","v":0},{"$f":"'Population 2016'!R207*'Prevalence Rates'!R207","v":0},{"$f":"'Population 2016'!S207*'Prevalence Rates'!S207","v":0},{"$f":"'Population 2016'!T207*'Prevalence Rates'!T207","v":0},{"$f":"'Population 2016'!U207*'Prevalence Rates'!U207","v":0},{"$f":"'Population 2016'!V207*'Prevalence Rates'!V207","v":0},{"$f":"'Population 2016'!W207*'Prevalence Rates'!W207","v":0},{"$f":"'Population 2016'!X207*'Prevalence Rates'!X207","v":0},{"$f":"'Population 2016'!Y207*'Prevalence Rates'!Y207","v":0},{"$f":"'Population 2016'!Z207*'Prevalence Rates'!Z207","v":0},{"$f":"'Population 2016'!AA207*'Prevalence Rates'!AA207","v":0},{"$f":"'Population 2016'!AB207*'Prevalence Rates'!AB207","v":0},{"$f":"'Population 2016'!AC207*'Prevalence Rates'!AC207","v":0},{"$f":"'Population 2016'!AD207*'Prevalence Rates'!AD207","v":0},{"$f":"'Population 2016'!AE207*'Prevalence Rates'!AE207","v":0},{"$f":"'Population 2016'!AF207*'Prevalence Rates'!AF207","v":0},{"$f":"'Population 2016'!AG207*'Prevalence Rates'!AG207","v":0},{"$f":"'Population 2016'!AH207*'Prevalence Rates'!AH207","v":0},{"$f":"'Population 2016'!AI207*'Prevalence Rates'!AI207","v":0},{"$f":"'Population 2016'!AJ207*'Prevalence Rates'!AJ207","v":0},{"$f":"'Population 2016'!AK207*'Prevalence Rates'!AK207","v":0},{"$f":"'Population 2016'!AL207*'Prevalence Rates'!AL207","v":0},{"$f":"'Population 2016'!AM207*'Prevalence Rates'!AM207","v":0},{"$f":"'Population 2016'!AN207*'Prevalence Rates'!AN207","v":0},{"$f":"'Population 2016'!AO207*'Prevalence Rates'!AO207","v":0},{"$f":"'Population 2016'!AP207*'Prevalence Rates'!AP207","v":0},{"$f":"'Population 2016'!AQ207*'Prevalence Rates'!AQ207","v":0},{"$f":"'Population 2016'!AR207*'Prevalence Rates'!AR207","v":0},{"$f":"'Population 2016'!AS207*'Prevalence Rates'!AS207","v":0},{"$f":"'Population 2016'!AT207*'Prevalence Rates'!AT207","v":0},{"$f":"'Population 2016'!AU207*'Prevalence Rates'!AU207","v":0},{"$f":"'Population 2016'!AV207*'Prevalence Rates'!AV207","v":0},{"$f":"'Population 2016'!AW207*'Prevalence Rates'!AW207","v":0},{"$f":"'Population 2016'!AX207*'Prevalence Rates'!AX207","v":0},{"$f":"'Population 2016'!AY207*'Prevalence Rates'!AY207","v":0},{"$f":"'Population 2016'!AZ207*'Prevalence Rates'!AZ207","v":0},{"$f":"'Population 2016'!BA207*'Prevalence Rates'!BA207","v":0},{"$f":"'Population 2016'!BB207*'Prevalence Rates'!BB207","v":0},{"$f":"'Population 2016'!BC207*'Prevalence Rates'!BC207","v":0},205]
[null,"Male 75-79",{"$f":"'Population 2016'!C208*'Prevalence Rates'!C208","v":0},{"$f":"'Population 2016'!D208*'Prevalence Rates'!D208","v":0},{"$f":"'Population 2016'!E208*'Prevalence Rates'!E208","v":0},{"$f":"'Population 2016'!F208*'Prevalence Rates'!F208","v":0},{"$f":"'Population 2016'!G208*'Prevalence Rates'!G208","v":0},{"$f":"'Population 2016'!H208*'Prevalence Rates'!H208","v":0},{"$f":"'Population 2016'!I208*'Prevalence Rates'!I208","v":0},{"$f":"'Population 2016'!J208*'Prevalence Rates'!J208","v":0},{"$f":"'Population 2016'!K208*'Prevalence Rates'!K208","v":0},{"$f":"'Population 2016'!L208*'Prevalence Rates'!L208","v":0},{"$f":"'Population 2016'!M208*'Prevalence Rates'!M208","v":0},{"$f":"'Population 2016'!N208*'Prevalence Rates'!N208","v":0},{"$f":"'Population 2016'!O208*'Prevalence Rates'!O208","v":0},{"$f":"'Population 2016'!P208*'Prevalence Rates'!P208","v":0},{"$f":"'Population 2016'!Q208*'Prevalence Rates'!Q208","v":0},{"$f":"'Population 2016'!R208*'Prevalence Rates'!R208","v":0},{"$f":"'Population 2016'!S208*'Prevalence Rates'!S208","v":0},{"$f":"'Population 2016'!T208*'Prevalence Rates'!T208","v":0},{"$f":"'Population 2016'!U208*'Prevalence Rates'!U208","v":0},{"$f":"'Population 2016'!V208*'Prevalence Rates'!V208","v":0},{"$f":"'Population 2016'!W208*'Prevalence Rates'!W208","v":0},{"$f":"'Population 2016'!X208*'Prevalence Rates'!X208","v":0},{"$f":"'Population 2016'!Y208*'Prevalence Rates'!Y208","v":0},{"$f":"'Population 2016'!Z208*'Prevalence Rates'!Z208","v":0},{"$f":"'Population 2016'!AA208*'Prevalence Rates'!AA208","v":0},{"$f":"'Population 2016'!AB208*'Prevalence Rates'!AB208","v":0},{"$f":"'Population 2016'!AC208*'Prevalence Rates'!AC208","v":0},{"$f":"'Population 2016'!AD208*'Prevalence Rates'!AD208","v":0},{"$f":"'Population 2016'!AE208*'Prevalence Rates'!AE208","v":0},{"$f":"'Population 2016'!AF208*'Prevalence Rates'!AF208","v":0},{"$f":"'Population 2016'!AG208*'Prevalence Rates'!AG208","v":0},{"$f":"'Population 2016'!AH208*'Prevalence Rates'!AH208","v":0},{"$f":"'Population 2016'!AI208*'Prevalence Rates'!AI208","v":0},{"$f":"'Population 2016'!AJ208*'Prevalence Rates'!AJ208","v":0},{"$f":"'Population 2016'!AK208*'Prevalence Rates'!AK208","v":0},{"$f":"'Population 2016'!AL208*'Prevalence Rates'!AL208","v":0},{"$f":"'Population 2016'!AM208*'Prevalence Rates'!AM208","v":0},{"$f":"'Population 2016'!AN208*'Prevalence Rates'!AN208","v":0},{"$f":"'Population 2016'!AO208*'Prevalence Rates'!AO208","v":0},{"$f":"'Population 2016'!AP208*'Prevalence Rates'!AP208","v":0},{"$f":"'Population 2016'!AQ208*'Prevalence Rates'!AQ208","v":0},{"$f":"'Population 2016'!AR208*'Prevalence Rates'!AR208","v":0},{"$f":"'Population 2016'!AS208*'Prevalence Rates'!AS208","v":0},{"$f":"'Population 2016'!AT208*'Prevalence Rates'!AT208","v":0},{"$f":"'Population 2016'!AU208*'Prevalence Rates'!AU208","v":0},{"$f":"'Population 2016'!AV208*'Prevalence Rates'!AV208","v":0},{"$f":"'Population 2016'!AW208*'Prevalence Rates'!AW208","v":0},{"$f":"'Population 2016'!AX208*'Prevalence Rates'!AX208","v":0},{"$f":"'Population 2016'!AY208*'Prevalence Rates'!AY208","v":0},{"$f":"'Population 2016'!AZ208*'Prevalence Rates'!AZ208","v":0},{"$f":"'Population 2016'!BA208*'Prevalence Rates'!BA208","v":0},{"$f":"'Population 2016'!BB208*'Prevalence Rates'!BB208","v":0},{"$f":"'Population 2016'!BC208*'Prevalence Rates'!BC208","v":0},206]
[null,"Male 80-84",{"$f":"'Population 2016'!C209*'Prevalence Rates'!C209","v":0},{"$f":"'Population 2016'!D209*'Prevalence Rates'!D209","v":0},{"$f":"'Population 2016'!E209*'Prevalence Rates'!E209","v":0},{"$f":"'Population 2016'!F209*'Prevalence Rates'!F209","v":0},{"$f":"'Population 2016'!G209*'Prevalence Rates'!G209","v":0},{"$f":"'Population 2016'!H209*'Prevalence Rates'!H209","v":0},{"$f":"'Population 2016'!I209*'Prevalence Rates'!I209","v":0},{"$f":"'Population 2016'!J209*'Prevalence Rates'!J209","v":0},{"$f":"'Population 2016'!K209*'Prevalence Rates'!K209","v":0},{"$f":"'Population 2016'!L209*'Prevalence Rates'!L209","v":0},{"$f":"'Population 2016'!M209*'Prevalence Rates'!M209","v":0},{"$f":"'Population 2016'!N209*'Prevalence Rates'!N209","v":0},{"$f":"'Population 2016'!O209*'Prevalence Rates'!O209","v":0},{"$f":"'Population 2016'!P209*'Prevalence Rates'!P209","v":0},{"$f":"'Population 2016'!Q209*'Prevalence Rates'!Q209","v":0},{"$f":"'Population 2016'!R209*'Prevalence Rates'!R209","v":0},{"$f":"'Population 2016'!S209*'Prevalence Rates'!S209","v":0},{"$f":"'Population 2016'!T209*'Prevalence Rates'!T209","v":0},{"$f":"'Population 2016'!U209*'Prevalence Rates'!U209","v":0},{"$f":"'Population 2016'!V209*'Prevalence Rates'!V209","v":0},{"$f":"'Population 2016'!W209*'Prevalence Rates'!W209","v":0},{"$f":"'Population 2016'!X209*'Prevalence Rates'!X209","v":0},{"$f":"'Population 2016'!Y209*'Prevalence Rates'!Y209","v":0},{"$f":"'Population 2016'!Z209*'Prevalence Rates'!Z209","v":0},{"$f":"'Population 2016'!AA209*'Prevalence Rates'!AA209","v":0},{"$f":"'Population 2016'!AB209*'Prevalence Rates'!AB209","v":0},{"$f":"'Population 2016'!AC209*'Prevalence Rates'!AC209","v":0},{"$f":"'Population 2016'!AD209*'Prevalence Rates'!AD209","v":0},{"$f":"'Population 2016'!AE209*'Prevalence Rates'!AE209","v":0},{"$f":"'Population 2016'!AF209*'Prevalence Rates'!AF209","v":0},{"$f":"'Population 2016'!AG209*'Prevalence Rates'!AG209","v":0},{"$f":"'Population 2016'!AH209*'Prevalence Rates'!AH209","v":0},{"$f":"'Population 2016'!AI209*'Prevalence Rates'!AI209","v":0},{"$f":"'Population 2016'!AJ209*'Prevalence Rates'!AJ209","v":0},{"$f":"'Population 2016'!AK209*'Prevalence Rates'!AK209","v":0},{"$f":"'Population 2016'!AL209*'Prevalence Rates'!AL209","v":0},{"$f":"'Population 2016'!AM209*'Prevalence Rates'!AM209","v":0},{"$f":"'Population 2016'!AN209*'Prevalence Rates'!AN209","v":0},{"$f":"'Population 2016'!AO209*'Prevalence Rates'!AO209","v":0},{"$f":"'Population 2016'!AP209*'Prevalence Rates'!AP209","v":0},{"$f":"'Population 2016'!AQ209*'Prevalence Rates'!AQ209","v":0},{"$f":"'Population 2016'!AR209*'Prevalence Rates'!AR209","v":0},{"$f":"'Population 2016'!AS209*'Prevalence Rates'!AS209","v":0},{"$f":"'Population 2016'!AT209*'Prevalence Rates'!AT209","v":0},{"$f":"'Population 2016'!AU209*'Prevalence Rates'!AU209","v":0},{"$f":"'Population 2016'!AV209*'Prevalence Rates'!AV209","v":0},{"$f":"'Population 2016'!AW209*'Prevalence Rates'!AW209","v":0},{"$f":"'Population 2016'!AX209*'Prevalence Rates'!AX209","v":0},{"$f":"'Population 2016'!AY209*'Prevalence Rates'!AY209","v":0},{"$f":"'Population 2016'!AZ209*'Prevalence Rates'!AZ209","v":0},{"$f":"'Population 2016'!BA209*'Prevalence Rates'!BA209","v":0},{"$f":"'Population 2016'!BB209*'Prevalence Rates'!BB209","v":0},{"$f":"'Population 2016'!BC209*'Prevalence Rates'!BC209","v":0},207]
[null,"Male 85-89",{"$f":"'Population 2016'!C210*'Prevalence Rates'!C210","v":0},{"$f":"'Population 2016'!D210*'Prevalence Rates'!D210","v":0},{"$f":"'Population 2016'!E210*'Prevalence Rates'!E210","v":0},{"$f":"'Population 2016'!F210*'Prevalence Rates'!F210","v":0},{"$f":"'Population 2016'!G210*'Prevalence Rates'!G210","v":0},{"$f":"'Population 2016'!H210*'Prevalence Rates'!H210","v":0},{"$f":"'Population 2016'!I210*'Prevalence Rates'!I210","v":0},{"$f":"'Population 2016'!J210*'Prevalence Rates'!J210","v":0},{"$f":"'Population 2016'!K210*'Prevalence Rates'!K210","v":0},{"$f":"'Population 2016'!L210*'Prevalence Rates'!L210","v":0},{"$f":"'Population 2016'!M210*'Prevalence Rates'!M210","v":0},{"$f":"'Population 2016'!N210*'Prevalence Rates'!N210","v":0},{"$f":"'Population 2016'!O210*'Prevalence Rates'!O210","v":0},{"$f":"'Population 2016'!P210*'Prevalence Rates'!P210","v":0},{"$f":"'Population 2016'!Q210*'Prevalence Rates'!Q210","v":0},{"$f":"'Population 2016'!R210*'Prevalence Rates'!R210","v":0},{"$f":"'Population 2016'!S210*'Prevalence Rates'!S210","v":0},{"$f":"'Population 2016'!T210*'Prevalence Rates'!T210","v":0},{"$f":"'Population 2016'!U210*'Prevalence Rates'!U210","v":0},{"$f":"'Population 2016'!V210*'Prevalence Rates'!V210","v":0},{"$f":"'Population 2016'!W210*'Prevalence Rates'!W210","v":0},{"$f":"'Population 2016'!X210*'Prevalence Rates'!X210","v":0},{"$f":"'Population 2016'!Y210*'Prevalence Rates'!Y210","v":0},{"$f":"'Population 2016'!Z210*'Prevalence Rates'!Z210","v":0},{"$f":"'Population 2016'!AA210*'Prevalence Rates'!AA210","v":0},{"$f":"'Population 2016'!AB210*'Prevalence Rates'!AB210","v":0},{"$f":"'Population 2016'!AC210*'Prevalence Rates'!AC210","v":0},{"$f":"'Population 2016'!AD210*'Prevalence Rates'!AD210","v":0},{"$f":"'Population 2016'!AE210*'Prevalence Rates'!AE210","v":0},{"$f":"'Population 2016'!AF210*'Prevalence Rates'!AF210","v":0},{"$f":"'Population 2016'!AG210*'Prevalence Rates'!AG210","v":0},{"$f":"'Population 2016'!AH210*'Prevalence Rates'!AH210","v":0},{"$f":"'Population 2016'!AI210*'Prevalence Rates'!AI210","v":0},{"$f":"'Population 2016'!AJ210*'Prevalence Rates'!AJ210","v":0},{"$f":"'Population 2016'!AK210*'Prevalence Rates'!AK210","v":0},{"$f":"'Population 2016'!AL210*'Prevalence Rates'!AL210","v":0},{"$f":"'Population 2016'!AM210*'Prevalence Rates'!AM210","v":0},{"$f":"'Population 2016'!AN210*'Prevalence Rates'!AN210","v":0},{"$f":"'Population 2016'!AO210*'Prevalence Rates'!AO210","v":0},{"$f":"'Population 2016'!AP210*'Prevalence Rates'!AP210","v":0},{"$f":"'Population 2016'!AQ210*'Prevalence Rates'!AQ210","v":0},{"$f":"'Population 2016'!AR210*'Prevalence Rates'!AR210","v":0},{"$f":"'Population 2016'!AS210*'Prevalence Rates'!AS210","v":0},{"$f":"'Population 2016'!AT210*'Prevalence Rates'!AT210","v":0},{"$f":"'Population 2016'!AU210*'Prevalence Rates'!AU210","v":0},{"$f":"'Population 2016'!AV210*'Prevalence Rates'!AV210","v":0},{"$f":"'Population 2016'!AW210*'Prevalence Rates'!AW210","v":0},{"$f":"'Population 2016'!AX210*'Prevalence Rates'!AX210","v":0},{"$f":"'Population 2016'!AY210*'Prevalence Rates'!AY210","v":0},{"$f":"'Population 2016'!AZ210*'Prevalence Rates'!AZ210","v":0},{"$f":"'Population 2016'!BA210*'Prevalence Rates'!BA210","v":0},{"$f":"'Population 2016'!BB210*'Prevalence Rates'!BB210","v":0},{"$f":"'Population 2016'!BC210*'Prevalence Rates'!BC210","v":0},208]
[null,"Male 90+",{"$f":"'Population 2016'!C211*'Prevalence Rates'!C211","v":0},{"$f":"'Population 2016'!D211*'Prevalence Rates'!D211","v":0},{"$f":"'Population 2016'!E211*'Prevalence Rates'!E211","v":0},{"$f":"'Population 2016'!F211*'Prevalence Rates'!F211","v":0},{"$f":"'Population 2016'!G211*'Prevalence Rates'!G211","v":0},{"$f":"'Population 2016'!H211*'Prevalence Rates'!H211","v":0},{"$f":"'Population 2016'!I211*'Prevalence Rates'!I211","v":0},{"$f":"'Population 2016'!J211*'Prevalence Rates'!J211","v":0},{"$f":"'Population 2016'!K211*'Prevalence Rates'!K211","v":0},{"$f":"'Population 2016'!L211*'Prevalence Rates'!L211","v":0},{"$f":"'Population 2016'!M211*'Prevalence Rates'!M211","v":0},{"$f":"'Population 2016'!N211*'Prevalence Rates'!N211","v":0},{"$f":"'Population 2016'!O211*'Prevalence Rates'!O211","v":0},{"$f":"'Population 2016'!P211*'Prevalence Rates'!P211","v":0},{"$f":"'Population 2016'!Q211*'Prevalence Rates'!Q211","v":0},{"$f":"'Population 2016'!R211*'Prevalence Rates'!R211","v":0},{"$f":"'Population 2016'!S211*'Prevalence Rates'!S211","v":0},{"$f":"'Population 2016'!T211*'Prevalence Rates'!T211","v":0},{"$f":"'Population 2016'!U211*'Prevalence Rates'!U211","v":0},{"$f":"'Population 2016'!V211*'Prevalence Rates'!V211","v":0},{"$f":"'Population 2016'!W211*'Prevalence Rates'!W211","v":0},{"$f":"'Population 2016'!X211*'Prevalence Rates'!X211","v":0},{"$f":"'Population 2016'!Y211*'Prevalence Rates'!Y211","v":0},{"$f":"'Population 2016'!Z211*'Prevalence Rates'!Z211","v":0},{"$f":"'Population 2016'!AA211*'Prevalence Rates'!AA211","v":0},{"$f":"'Population 2016'!AB211*'Prevalence Rates'!AB211","v":0},{"$f":"'Population 2016'!AC211*'Prevalence Rates'!AC211","v":0},{"$f":"'Population 2016'!AD211*'Prevalence Rates'!AD211","v":0},{"$f":"'Population 2016'!AE211*'Prevalence Rates'!AE211","v":0},{"$f":"'Population 2016'!AF211*'Prevalence Rates'!AF211","v":0},{"$f":"'Population 2016'!AG211*'Prevalence Rates'!AG211","v":0},{"$f":"'Population 2016'!AH211*'Prevalence Rates'!AH211","v":0},{"$f":"'Population 2016'!AI211*'Prevalence Rates'!AI211","v":0},{"$f":"'Population 2016'!AJ211*'Prevalence Rates'!AJ211","v":0},{"$f":"'Population 2016'!AK211*'Prevalence Rates'!AK211","v":0},{"$f":"'Population 2016'!AL211*'Prevalence Rates'!AL211","v":0},{"$f":"'Population 2016'!AM211*'Prevalence Rates'!AM211","v":0},{"$f":"'Population 2016'!AN211*'Prevalence Rates'!AN211","v":0},{"$f":"'Population 2016'!AO211*'Prevalence Rates'!AO211","v":0},{"$f":"'Population 2016'!AP211*'Prevalence Rates'!AP211","v":0},{"$f":"'Population 2016'!AQ211*'Prevalence Rates'!AQ211","v":0},{"$f":"'Population 2016'!AR211*'Prevalence Rates'!AR211","v":0},{"$f":"'Population 2016'!AS211*'Prevalence Rates'!AS211","v":0},{"$f":"'Population 2016'!AT211*'Prevalence Rates'!AT211","v":0},{"$f":"'Population 2016'!AU211*'Prevalence Rates'!AU211","v":0},{"$f":"'Population 2016'!AV211*'Prevalence Rates'!AV211","v":0},{"$f":"'Population 2016'!AW211*'Prevalence Rates'!AW211","v":0},{"$f":"'Population 2016'!AX211*'Prevalence Rates'!AX211","v":0},{"$f":"'Population 2016'!AY211*'Prevalence Rates'!AY211","v":0},{"$f":"'Population 2016'!AZ211*'Prevalence Rates'!AZ211","v":0},{"$f":"'Population 2016'!BA211*'Prevalence Rates'!BA211","v":0},{"$f":"'Population 2016'!BB211*'Prevalence Rates'!BB211","v":0},{"$f":"'Population 2016'!BC211*'Prevalence Rates'!BC211","v":0},209]
["SIMD Q5 (least deprived)","Female 0-4",{"$f":"'Population 2016'!C212*'Prevalence Rates'!C212","v":0},{"$f":"'Population 2016'!D212*'Prevalence Rates'!D212","v":0},{"$f":"'Population 2016'!E212*'Prevalence Rates'!E212","v":0},{"$f":"'Population 2016'!F212*'Prevalence Rates'!F212","v":0},{"$f":"'Population 2016'!G212*'Prevalence Rates'!G212","v":0},{"$f":"'Population 2016'!H212*'Prevalence Rates'!H212","v":0},{"$f":"'Population 2016'!I212*'Prevalence Rates'!I212","v":0},{"$f":"'Population 2016'!J212*'Prevalence Rates'!J212","v":0},{"$f":"'Population 2016'!K212*'Prevalence Rates'!K212","v":0},{"$f":"'Population 2016'!L212*'Prevalence Rates'!L212","v":0},{"$f":"'Population 2016'!M212*'Prevalence Rates'!M212","v":0},{"$f":"'Population 2016'!N212*'Prevalence Rates'!N212","v":0},{"$f":"'Population 2016'!O212*'Prevalence Rates'!O212","v":0},{"$f":"'Population 2016'!P212*'Prevalence Rates'!P212","v":0},{"$f":"'Population 2016'!Q212*'Prevalence Rates'!Q212","v":0},{"$f":"'Population 2016'!R212*'Prevalence Rates'!R212","v":0},{"$f":"'Population 2016'!S212*'Prevalence Rates'!S212","v":0},{"$f":"'Population 2016'!T212*'Prevalence Rates'!T212","v":0},{"$f":"'Population 2016'!U212*'Prevalence Rates'!U212","v":0},{"$f":"'Population 2016'!V212*'Prevalence Rates'!V212","v":0},{"$f":"'Population 2016'!W212*'Prevalence Rates'!W212","v":0},{"$f":"'Population 2016'!X212*'Prevalence Rates'!X212","v":0},{"$f":"'Population 2016'!Y212*'Prevalence Rates'!Y212","v":0},{"$f":"'Population 2016'!Z212*'Prevalence Rates'!Z212","v":0},{"$f":"'Population 2016'!AA212*'Prevalence Rates'!AA212","v":0},{"$f":"'Population 2016'!AB212*'Prevalence Rates'!AB212","v":0},{"$f":"'Population 2016'!AC212*'Prevalence Rates'!AC212","v":0},{"$f":"'Population 2016'!AD212*'Prevalence Rates'!AD212","v":0},{"$f":"'Population 2016'!AE212*'Prevalence Rates'!AE212","v":0},{"$f":"'Population 2016'!AF212*'Prevalence Rates'!AF212","v":0},{"$f":"'Population 2016'!AG212*'Prevalence Rates'!AG212","v":0},{"$f":"'Population 2016'!AH212*'Prevalence Rates'!AH212","v":0},{"$f":"'Population 2016'!AI212*'Prevalence Rates'!AI212","v":0},{"$f":"'Population 2016'!AJ212*'Prevalence Rates'!AJ212","v":0},{"$f":"'Population 2016'!AK212*'Prevalence Rates'!AK212","v":0},{"$f":"'Population 2016'!AL212*'Prevalence Rates'!AL212","v":0},{"$f":"'Population 2016'!AM212*'Prevalence Rates'!AM212","v":0},{"$f":"'Population 2016'!AN212*'Prevalence Rates'!AN212","v":0},{"$f":"'Population 2016'!AO212*'Prevalence Rates'!AO212","v":0},{"$f":"'Population 2016'!AP212*'Prevalence Rates'!AP212","v":0},{"$f":"'Population 2016'!AQ212*'Prevalence Rates'!AQ212","v":0},{"$f":"'Population 2016'!AR212*'Prevalence Rates'!AR212","v":0},{"$f":"'Population 2016'!AS212*'Prevalence Rates'!AS212","v":0},{"$f":"'Population 2016'!AT212*'Prevalence Rates'!AT212","v":0},{"$f":"'Population 2016'!AU212*'Prevalence Rates'!AU212","v":0},{"$f":"'Population 2016'!AV212*'Prevalence Rates'!AV212","v":0},{"$f":"'Population 2016'!AW212*'Prevalence Rates'!AW212","v":0},{"$f":"'Population 2016'!AX212*'Prevalence Rates'!AX212","v":0},{"$f":"'Population 2016'!AY212*'Prevalence Rates'!AY212","v":0},{"$f":"'Population 2016'!AZ212*'Prevalence Rates'!AZ212","v":0},{"$f":"'Population 2016'!BA212*'Prevalence Rates'!BA212","v":0},{"$f":"'Population 2016'!BB212*'Prevalence Rates'!BB212","v":0},{"$f":"'Population 2016'!BC212*'Prevalence Rates'!BC212","v":0},210]
[null,"Female 5-9",{"$f":"'Population 2016'!C213*'Prevalence Rates'!C213","v":0},{"$f":"'Population 2016'!D213*'Prevalence Rates'!D213","v":0},{"$f":"'Population 2016'!E213*'Prevalence Rates'!E213","v":0},{"$f":"'Population 2016'!F213*'Prevalence Rates'!F213","v":0},{"$f":"'Population 2016'!G213*'Prevalence Rates'!G213","v":0},{"$f":"'Population 2016'!H213*'Prevalence Rates'!H213","v":0},{"$f":"'Population 2016'!I213*'Prevalence Rates'!I213","v":0},{"$f":"'Population 2016'!J213*'Prevalence Rates'!J213","v":0},{"$f":"'Population 2016'!K213*'Prevalence Rates'!K213","v":0},{"$f":"'Population 2016'!L213*'Prevalence Rates'!L213","v":0},{"$f":"'Population 2016'!M213*'Prevalence Rates'!M213","v":0},{"$f":"'Population 2016'!N213*'Prevalence Rates'!N213","v":0},{"$f":"'Population 2016'!O213*'Prevalence Rates'!O213","v":0},{"$f":"'Population 2016'!P213*'Prevalence Rates'!P213","v":0},{"$f":"'Population 2016'!Q213*'Prevalence Rates'!Q213","v":0},{"$f":"'Population 2016'!R213*'Prevalence Rates'!R213","v":0},{"$f":"'Population 2016'!S213*'Prevalence Rates'!S213","v":0},{"$f":"'Population 2016'!T213*'Prevalence Rates'!T213","v":0},{"$f":"'Population 2016'!U213*'Prevalence Rates'!U213","v":0},{"$f":"'Population 2016'!V213*'Prevalence Rates'!V213","v":0},{"$f":"'Population 2016'!W213*'Prevalence Rates'!W213","v":0},{"$f":"'Population 2016'!X213*'Prevalence Rates'!X213","v":0},{"$f":"'Population 2016'!Y213*'Prevalence Rates'!Y213","v":0},{"$f":"'Population 2016'!Z213*'Prevalence Rates'!Z213","v":0},{"$f":"'Population 2016'!AA213*'Prevalence Rates'!AA213","v":0},{"$f":"'Population 2016'!AB213*'Prevalence Rates'!AB213","v":0},{"$f":"'Population 2016'!AC213*'Prevalence Rates'!AC213","v":0},{"$f":"'Population 2016'!AD213*'Prevalence Rates'!AD213","v":0},{"$f":"'Population 2016'!AE213*'Prevalence Rates'!AE213","v":0},{"$f":"'Population 2016'!AF213*'Prevalence Rates'!AF213","v":0},{"$f":"'Population 2016'!AG213*'Prevalence Rates'!AG213","v":0},{"$f":"'Population 2016'!AH213*'Prevalence Rates'!AH213","v":0},{"$f":"'Population 2016'!AI213*'Prevalence Rates'!AI213","v":0},{"$f":"'Population 2016'!AJ213*'Prevalence Rates'!AJ213","v":0},{"$f":"'Population 2016'!AK213*'Prevalence Rates'!AK213","v":0},{"$f":"'Population 2016'!AL213*'Prevalence Rates'!AL213","v":0},{"$f":"'Population 2016'!AM213*'Prevalence Rates'!AM213","v":0},{"$f":"'Population 2016'!AN213*'Prevalence Rates'!AN213","v":0},{"$f":"'Population 2016'!AO213*'Prevalence Rates'!AO213","v":0},{"$f":"'Population 2016'!AP213*'Prevalence Rates'!AP213","v":0},{"$f":"'Population 2016'!AQ213*'Prevalence Rates'!AQ213","v":0},{"$f":"'Population 2016'!AR213*'Prevalence Rates'!AR213","v":0},{"$f":"'Population 2016'!AS213*'Prevalence Rates'!AS213","v":0},{"$f":"'Population 2016'!AT213*'Prevalence Rates'!AT213","v":0},{"$f":"'Population 2016'!AU213*'Prevalence Rates'!AU213","v":0},{"$f":"'Population 2016'!AV213*'Prevalence Rates'!AV213","v":0},{"$f":"'Population 2016'!AW213*'Prevalence Rates'!AW213","v":0},{"$f":"'Population 2016'!AX213*'Prevalence Rates'!AX213","v":0},{"$f":"'Population 2016'!AY213*'Prevalence Rates'!AY213","v":0},{"$f":"'Population 2016'!AZ213*'Prevalence Rates'!AZ213","v":0},{"$f":"'Population 2016'!BA213*'Prevalence Rates'!BA213","v":0},{"$f":"'Population 2016'!BB213*'Prevalence Rates'!BB213","v":0},{"$f":"'Population 2016'!BC213*'Prevalence Rates'!BC213","v":0},211]
[null,"Female 10-15",{"$f":"'Population 2016'!C214*'Prevalence Rates'!C214","v":0},{"$f":"'Population 2016'!D214*'Prevalence Rates'!D214","v":0},{"$f":"'Population 2016'!E214*'Prevalence Rates'!E214","v":0},{"$f":"'Population 2016'!F214*'Prevalence Rates'!F214","v":0},{"$f":"'Population 2016'!G214*'Prevalence Rates'!G214","v":0},{"$f":"'Population 2016'!H214*'Prevalence Rates'!H214","v":0},{"$f":"'Population 2016'!I214*'Prevalence Rates'!I214","v":0},{"$f":"'Population 2016'!J214*'Prevalence Rates'!J214","v":0},{"$f":"'Population 2016'!K214*'Prevalence Rates'!K214","v":0},{"$f":"'Population 2016'!L214*'Prevalence Rates'!L214","v":0},{"$f":"'Population 2016'!M214*'Prevalence Rates'!M214","v":0},{"$f":"'Population 2016'!N214*'Prevalence Rates'!N214","v":0},{"$f":"'Population 2016'!O214*'Prevalence Rates'!O214","v":0},{"$f":"'Population 2016'!P214*'Prevalence Rates'!P214","v":0},{"$f":"'Population 2016'!Q214*'Prevalence Rates'!Q214","v":0},{"$f":"'Population 2016'!R214*'Prevalence Rates'!R214","v":0},{"$f":"'Population 2016'!S214*'Prevalence Rates'!S214","v":0},{"$f":"'Population 2016'!T214*'Prevalence Rates'!T214","v":0},{"$f":"'Population 2016'!U214*'Prevalence Rates'!U214","v":0},{"$f":"'Population 2016'!V214*'Prevalence Rates'!V214","v":0},{"$f":"'Population 2016'!W214*'Prevalence Rates'!W214","v":0},{"$f":"'Population 2016'!X214*'Prevalence Rates'!X214","v":0},{"$f":"'Population 2016'!Y214*'Prevalence Rates'!Y214","v":0},{"$f":"'Population 2016'!Z214*'Prevalence Rates'!Z214","v":0},{"$f":"'Population 2016'!AA214*'Prevalence Rates'!AA214","v":0},{"$f":"'Population 2016'!AB214*'Prevalence Rates'!AB214","v":0},{"$f":"'Population 2016'!AC214*'Prevalence Rates'!AC214","v":0},{"$f":"'Population 2016'!AD214*'Prevalence Rates'!AD214","v":0},{"$f":"'Population 2016'!AE214*'Prevalence Rates'!AE214","v":0},{"$f":"'Population 2016'!AF214*'Prevalence Rates'!AF214","v":0},{"$f":"'Population 2016'!AG214*'Prevalence Rates'!AG214","v":0},{"$f":"'Population 2016'!AH214*'Prevalence Rates'!AH214","v":0},{"$f":"'Population 2016'!AI214*'Prevalence Rates'!AI214","v":0},{"$f":"'Population 2016'!AJ214*'Prevalence Rates'!AJ214","v":0},{"$f":"'Population 2016'!AK214*'Prevalence Rates'!AK214","v":0},{"$f":"'Population 2016'!AL214*'Prevalence Rates'!AL214","v":0},{"$f":"'Population 2016'!AM214*'Prevalence Rates'!AM214","v":0},{"$f":"'Population 2016'!AN214*'Prevalence Rates'!AN214","v":0},{"$f":"'Population 2016'!AO214*'Prevalence Rates'!AO214","v":0},{"$f":"'Population 2016'!AP214*'Prevalence Rates'!AP214","v":0},{"$f":"'Population 2016'!AQ214*'Prevalence Rates'!AQ214","v":0},{"$f":"'Population 2016'!AR214*'Prevalence Rates'!AR214","v":0},{"$f":"'Population 2016'!AS214*'Prevalence Rates'!AS214","v":0},{"$f":"'Population 2016'!AT214*'Prevalence Rates'!AT214","v":0},{"$f":"'Population 2016'!AU214*'Prevalence Rates'!AU214","v":0},{"$f":"'Population 2016'!AV214*'Prevalence Rates'!AV214","v":0},{"$f":"'Population 2016'!AW214*'Prevalence Rates'!AW214","v":0},{"$f":"'Population 2016'!AX214*'Prevalence Rates'!AX214","v":0},{"$f":"'Population 2016'!AY214*'Prevalence Rates'!AY214","v":0},{"$f":"'Population 2016'!AZ214*'Prevalence Rates'!AZ214","v":0},{"$f":"'Population 2016'!BA214*'Prevalence Rates'!BA214","v":0},{"$f":"'Population 2016'!BB214*'Prevalence Rates'!BB214","v":0},{"$f":"'Population 2016'!BC214*'Prevalence Rates'!BC214","v":0},212]
[null,"Female 16-19",{"$f":"'Population 2016'!C215*'Prevalence Rates'!C215","v":304.32440264147669},{"$f":"'Population 2016'!D215*'Prevalence Rates'!D215","v":581.05018889707401},{"$f":"'Population 2016'!E215*'Prevalence Rates'!E215","v":276.94734243368293},{"$f":"'Population 2016'!F215*'Prevalence Rates'!F215","v":69.212969194523083},{"$f":"'Population 2016'!G215*'Prevalence Rates'!G215","v":16.387124218181601},{"$f":"'Population 2016'!H215*'Prevalence Rates'!H215","v":213.2922787272573},{"$f":"'Population 2016'!I215*'Prevalence Rates'!I215","v":37.185794519203689},{"$f":"'Population 2016'!J215*'Prevalence Rates'!J215","v":178.24383208447955},{"$f":"'Population 2016'!K215*'Prevalence Rates'!K215","v":33.755905524302577},{"$f":"'Population 2016'!L215*'Prevalence Rates'!L215","v":47.708925660025962},{"$f":"'Population 2016'!M215*'Prevalence Rates'!M215","v":47.708925660025962},{"$f":"'Population 2016'!N215*'Prevalence Rates'!N215","v":83.795119456035565},{"$f":"'Population 2016'!O215*'Prevalence Rates'!O215","v":66.096005594826025},{"$f":"'Population 2016'!P215*'Prevalence Rates'!P215","v":177.19216707817083},{"$f":"'Population 2016'!Q215*'Prevalence Rates'!Q215","v":58.051622335889505},{"$f":"'Population 2016'!R215*'Prevalence Rates'!R215","v":155.2573740539213},{"$f":"'Population 2016'!S215*'Prevalence Rates'!S215","v":1348.3965184747155},{"$f":"'Population 2016'!T215*'Prevalence Rates'!T215","v":686.55089062861009},{"$f":"'Population 2016'!U215*'Prevalence Rates'!U215","v":0},{"$f":"'Population 2016'!V215*'Prevalence Rates'!V215","v":108.60164710116162},{"$f":"'Population 2016'!W215*'Prevalence Rates'!W215","v":382.5034123140457},{"$f":"'Population 2016'!X215*'Prevalence Rates'!X215","v":382.5034123140457},{"$f":"'Population 2016'!Y215*'Prevalence Rates'!Y215","v":292.26185788386255},{"$f":"'Population 2016'!Z215*'Prevalence Rates'!Z215","v":270.43183365727037},{"$f":"'Population 2016'!AA215*'Prevalence Rates'!AA215","v":1085.4596809738096},{"$f":"'Population 2016'!AB215*'Prevalence Rates'!AB215","v":651.88578977335192},{"$f":"'Population 2016'!AC215*'Prevalence Rates'!AC215","v":830.18536174738188},{"$f":"'Population 2016'!AD215*'Prevalence Rates'!AD215","v":72.029324329462838},{"$f":"'Population 2016'!AE215*'Prevalence Rates'!AE215","v":55.695208301716846},{"$f":"'Population 2016'!AF215*'Prevalence Rates'!AF215","v":29.929073400125201},{"$f":"'Population 2016'!AG215*'Prevalence Rates'!AG215","v":55.695208301716846},{"$f":"'Population 2016'!AH215*'Prevalence Rates'!AH215","v":263.63682822788132},{"$f":"'Population 2016'!AI215*'Prevalence Rates'!AI215","v":917.54099661413102},{"$f":"'Population 2016'!AJ215*'Prevalence Rates'!AJ215","v":42.160070931674987},{"$f":"'Population 2016'!AK215*'Prevalence Rates'!AK215","v":67.618515846009387},{"$f":"'Population 2016'!AL215*'Prevalence Rates'!AL215","v":56.58078935574121},{"$f":"'Population 2016'!AM215*'Prevalence Rates'!AM215","v":116.6351332069034},{"$f":"'Population 2016'!AN215*'Prevalence Rates'!AN215","v":3.3681106012207414},{"$f":"'Population 2016'!AO215*'Prevalence Rates'!AO215","v":3.3681106012207414},{"$f":"'Population 2016'!AP215*'Prevalence Rates'!AP215","v":56.196203993843987},{"$f":"'Population 2016'!AQ215*'Prevalence Rates'!AQ215","v":91.425215107352344},{"$f":"'Population 2016'!AR215*'Prevalence Rates'!AR215","v":3922.3202614379088},{"$f":"'Population 2016'!AS215*'Prevalence Rates'!AS215","v":37.185794519203689},{"$f":"'Population 2016'!AT215*'Prevalence Rates'!AT215","v":0},{"$f":"'Population 2016'!AU215*'Prevalence Rates'!AU215","v":0},{"$f":"'Population 2016'!AV215*'Prevalence Rates'!AV215","v":82.322616008048968},{"$f":"'Population 2016'!AW215*'Prevalence Rates'!AW215","v":147.12862287729669},{"$f":"'Population 2016'!AX215*'Prevalence Rates'!AX215","v":117.57840322634151},{"$f":"'Population 2016'!AY215*'Prevalence Rates'!AY215","v":574.45510880134782},{"$f":"'Population 2016'!AZ215*'Prevalence Rates'!AZ215","v":207.52546520280879},{"$f":"'Population 2016'!BA215*'Prevalence Rates'!BA215","v":16.509048627388392},{"$f":"'Population 2016'!BB215*'Prevalence Rates'!BB215","v":124.71706409732745},{"$f":"'Population 2016'!BC215*'Prevalence Rates'!BC215","v":0},213]
[null,"Female 20-24",{"$f":"'Population 2016'!C216*'Prevalence Rates'!C216","v":536.37549278124834},{"$f":"'Population 2016'!D216*'Prevalence Rates'!D216","v":838.53575688775288},{"$f":"'Population 2016'!E216*'Prevalence Rates'!E216","v":303.53428730731645},{"$f":"'Population 2016'!F216*'Prevalence Rates'!F216","v":63.935291804962503},{"$f":"'Population 2016'!G216*'Prevalence Rates'!G216","v":22.50172280705533},{"$f":"'Population 2016'!H216*'Prevalence Rates'!H216","v":207.86959367486941},{"$f":"'Population 2016'!I216*'Prevalence Rates'!I216","v":35.946268035230233},{"$f":"'Population 2016'!J216*'Prevalence Rates'!J216","v":185.73670133944555},{"$f":"'Population 2016'!K216*'Prevalence Rates'!K216","v":30.235350960418259},{"$f":"'Population 2016'!L216*'Prevalence Rates'!L216","v":56.73493862273358},{"$f":"'Population 2016'!M216*'Prevalence Rates'!M216","v":56.73493862273358},{"$f":"'Population 2016'!N216*'Prevalence Rates'!N216","v":102.88767831943608},{"$f":"'Population 2016'!O216*'Prevalence Rates'!O216","v":66.096005594826025},{"$f":"'Population 2016'!P216*'Prevalence Rates'!P216","v":186.44747330708361},{"$f":"'Population 2016'!Q216*'Prevalence Rates'!Q216","v":58.214231922264545},{"$f":"'Population 2016'!R216*'Prevalence Rates'!R216","v":162.96686932779821},{"$f":"'Population 2016'!S216*'Prevalence Rates'!S216","v":2535.8163023946831},{"$f":"'Population 2016'!T216*'Prevalence Rates'!T216","v":1531.6626989105393},{"$f":"'Population 2016'!U216*'Prevalence Rates'!U216","v":0},{"$f":"'Population 2016'!V216*'Prevalence Rates'!V216","v":128.49323386710554},{"$f":"'Population 2016'!W216*'Prevalence Rates'!W216","v":693.59952963996011},{"$f":"'Population 2016'!X216*'Prevalence Rates'!X216","v":693.59952963996011},{"$f":"'Population 2016'!Y216*'Prevalence Rates'!Y216","v":319.13651148237864},{"$f":"'Population 2016'!Z216*'Prevalence Rates'!Z216","v":701.30778875952524},{"$f":"'Population 2016'!AA216*'Prevalence Rates'!AA216","v":1546.7683132251086},{"$f":"'Population 2016'!AB216*'Prevalence Rates'!AB216","v":915.86264111839364},{"$f":"'Population 2016'!AC216*'Prevalence Rates'!AC216","v":1265.6107528361829},{"$f":"'Population 2016'!AD216*'Prevalence Rates'!AD216","v":84.681431733420652},{"$f":"'Population 2016'!AE216*'Prevalence Rates'!AE216","v":62.13615075837798},{"$f":"'Population 2016'!AF216*'Prevalence Rates'!AF216","v":37.60319478477269},{"$f":"'Population 2016'!AG216*'Prevalence Rates'!AG216","v":62.13615075837798},{"$f":"'Population 2016'!AH216*'Prevalence Rates'!AH216","v":299.30359191147295},{"$f":"'Population 2016'!AI216*'Prevalence Rates'!AI216","v":1778.0100652092012},{"$f":"'Population 2016'!AJ216*'Prevalence Rates'!AJ216","v":51.992454965210499},{"$f":"'Population 2016'!AK216*'Prevalence Rates'!AK216","v":70.706861521668472},{"$f":"'Population 2016'!AL216*'Prevalence Rates'!AL216","v":55.033658396795161},{"$f":"'Population 2016'!AM216*'Prevalence Rates'!AM216","v":127.30569177221096},{"$f":"'Population 2016'!AN216*'Prevalence Rates'!AN216","v":5.6998794789889473},{"$f":"'Population 2016'!AO216*'Prevalence Rates'!AO216","v":5.6998794789889473},{"$f":"'Population 2016'!AP216*'Prevalence Rates'!AP216","v":64.112732731072001},{"$f":"'Population 2016'!AQ216*'Prevalence Rates'!AQ216","v":107.92575526710176},{"$f":"'Population 2016'!AR216*'Prevalence Rates'!AR216","v":5900.7107843137255},{"$f":"'Population 2016'!AS216*'Prevalence Rates'!AS216","v":35.946268035230233},{"$f":"'Population 2016'!AT216*'Prevalence Rates'!AT216","v":0},{"$f":"'Population 2016'!AU216*'Prevalence Rates'!AU216","v":0},{"$f":"'Population 2016'!AV216*'Prevalence Rates'!AV216","v":78.948738302801061},{"$f":"'Population 2016'!AW216*'Prevalence Rates'!AW216","v":172.17179272875146},{"$f":"'Population 2016'!AX216*'Prevalence Rates'!AX216","v":125.13232298669305},{"$f":"'Population 2016'!AY216*'Prevalence Rates'!AY216","v":876.80766927757736},{"$f":"'Population 2016'!AZ216*'Prevalence Rates'!AZ216","v":230.94526691848625},{"$f":"'Population 2016'!BA216*'Prevalence Rates'!BA216","v":19.098703314037554},{"$f":"'Population 2016'!BB216*'Prevalence Rates'!BB216","v":116.44345050856126},{"$f":"'Population 2016'!BC216*'Prevalence Rates'!BC216","v":0},214]
[null,"Female 25-29",{"$f":"'Population 2016'!C217*'Prevalence Rates'!C217","v":746.93793662319126},{"$f":"'Population 2016'!D217*'Prevalence Rates'!D217","v":1127.5509357469302},{"$f":"'Population 2016'!E217*'Prevalence Rates'!E217","v":382.73928911457949},{"$f":"'Population 2016'!F217*'Prevalence Rates'!F217","v":75.408220810991097},{"$f":"'Population 2016'!G217*'Prevalence Rates'!G217","v":22.211027465938695},{"$f":"'Population 2016'!H217*'Prevalence Rates'!H217","v":217.11420552304313},{"$f":"'Population 2016'!I217*'Prevalence Rates'!I217","v":34.804283962046412},{"$f":"'Population 2016'!J217*'Prevalence Rates'!J217","v":142.86339888289621},{"$f":"'Population 2016'!K217*'Prevalence Rates'!K217","v":27.307746935891949},{"$f":"'Population 2016'!L217*'Prevalence Rates'!L217","v":81.118699770585607},{"$f":"'Population 2016'!M217*'Prevalence Rates'!M217","v":81.118699770585607},{"$f":"'Population 2016'!N217*'Prevalence Rates'!N217","v":105.39508301501546},{"$f":"'Population 2016'!O217*'Prevalence Rates'!O217","v":88.169894140709758},{"$f":"'Population 2016'!P217*'Prevalence Rates'!P217","v":176.37398817260052},{"$f":"'Population 2016'!Q217*'Prevalence Rates'!Q217","v":73.631792773332947},{"$f":"'Population 2016'!R217*'Prevalence Rates'!R217","v":166.13794198052477},{"$f":"'Population 2016'!S217*'Prevalence Rates'!S217","v":2422.0345754764944},{"$f":"'Population 2016'!T217*'Prevalence Rates'!T217","v":1636.014251893803},{"$f":"'Population 2016'!U217*'Prevalence Rates'!U217","v":0},{"$f":"'Population 2016'!V217*'Prevalence Rates'!V217","v":153.65840274710828},{"$f":"'Population 2016'!W217*'Prevalence Rates'!W217","v":400.04629957194243},{"$f":"'Population 2016'!X217*'Prevalence Rates'!X217","v":400.04629957194243},{"$f":"'Population 2016'!Y217*'Prevalence Rates'!Y217","v":297.65765071298347},{"$f":"'Population 2016'!Z217*'Prevalence Rates'!Z217","v":773.75504708292317},{"$f":"'Population 2016'!AA217*'Prevalence Rates'!AA217","v":1607.5603170554105},{"$f":"'Population 2016'!AB217*'Prevalence Rates'!AB217","v":1230.7423467135534},{"$f":"'Population 2016'!AC217*'Prevalence Rates'!AC217","v":1315.8745345232242},{"$f":"'Population 2016'!AD217*'Prevalence Rates'!AD217","v":116.8747259568855},{"$f":"'Population 2016'!AE217*'Prevalence Rates'!AE217","v":94.892967399247681},{"$f":"'Population 2016'!AF217*'Prevalence Rates'!AF217","v":32.649205418644804},{"$f":"'Population 2016'!AG217*'Prevalence Rates'!AG217","v":94.892967399247681},{"$f":"'Population 2016'!AH217*'Prevalence Rates'!AH217","v":310.5843656895957},{"$f":"'Population 2016'!AI217*'Prevalence Rates'!AI217","v":1936.5061287962669},{"$f":"'Population 2016'!AJ217*'Prevalence Rates'!AJ217","v":64.678236536032458},{"$f":"'Population 2016'!AK217*'Prevalence Rates'!AK217","v":94.227152309148238},{"$f":"'Population 2016'!AL217*'Prevalence Rates'!AL217","v":50.040111718692323},{"$f":"'Population 2016'!AM217*'Prevalence Rates'!AM217","v":135.50641087689658},{"$f":"'Population 2016'!AN217*'Prevalence Rates'!AN217","v":8.7021106692056556},{"$f":"'Population 2016'!AO217*'Prevalence Rates'!AO217","v":8.7021106692056556},{"$f":"'Population 2016'!AP217*'Prevalence Rates'!AP217","v":73.791429244330317},{"$f":"'Population 2016'!AQ217*'Prevalence Rates'!AQ217","v":111.29952733583659},{"$f":"'Population 2016'!AR217*'Prevalence Rates'!AR217","v":6250.9517241379308},{"$f":"'Population 2016'!AS217*'Prevalence Rates'!AS217","v":34.804283962046412},{"$f":"'Population 2016'!AT217*'Prevalence Rates'!AT217","v":0},{"$f":"'Population 2016'!AU217*'Prevalence Rates'!AU217","v":0},{"$f":"'Population 2016'!AV217*'Prevalence Rates'!AV217","v":72.60947314543138},{"$f":"'Population 2016'!AW217*'Prevalence Rates'!AW217","v":175.23855840157705},{"$f":"'Population 2016'!AX217*'Prevalence Rates'!AX217","v":94.106402154973495},{"$f":"'Population 2016'!AY217*'Prevalence Rates'!AY217","v":643.39482088129216},{"$f":"'Population 2016'!AZ217*'Prevalence Rates'!AZ217","v":254.59934221430248},{"$f":"'Population 2016'!BA217*'Prevalence Rates'!BA217","v":13.691424429712159},{"$f":"'Population 2016'!BB217*'Prevalence Rates'!BB217","v":141.99583065206377},{"$f":"'Population 2016'!BC217*'Prevalence Rates'!BC217","v":0},215]
[null,"Female 30-34",{"$f":"'Population 2016'!C218*'Prevalence Rates'!C218","v":639.01181347519969},{"$f":"'Population 2016'!D218*'Prevalence Rates'!D218","v":1182.5984748774324},{"$f":"'Population 2016'!E218*'Prevalence Rates'!E218","v":544.25049177022777},{"$f":"'Population 2016'!F218*'Prevalence Rates'!F218","v":92.290658305989112},{"$f":"'Population 2016'!G218*'Prevalence Rates'!G218","v":17.038596412226944},{"$f":"'Population 2016'!H218*'Prevalence Rates'!H218","v":255.09045320946723},{"$f":"'Population 2016'!I218*'Prevalence Rates'!I218","v":61.458197629183218},{"$f":"'Population 2016'!J218*'Prevalence Rates'!J218","v":121.71172878480117},{"$f":"'Population 2016'!K218*'Prevalence Rates'!K218","v":36.324455829818532},{"$f":"'Population 2016'!L218*'Prevalence Rates'!L218","v":81.118699770585607},{"$f":"'Population 2016'!M218*'Prevalence Rates'!M218","v":81.118699770585607},{"$f":"'Population 2016'!N218*'Prevalence Rates'!N218","v":102.09633237291794},{"$f":"'Population 2016'!O218*'Prevalence Rates'!O218","v":101.87371932973502},{"$f":"'Population 2016'!P218*'Prevalence Rates'!P218","v":188.22124754843273},{"$f":"'Population 2016'!Q218*'Prevalence Rates'!Q218","v":85.364331182270618},{"$f":"'Population 2016'!R218*'Prevalence Rates'!R218","v":164.36737776758844},{"$f":"'Population 2016'!S218*'Prevalence Rates'!S218","v":2202.0097744714367},{"$f":"'Population 2016'!T218*'Prevalence Rates'!T218","v":1335.8774729911324},{"$f":"'Population 2016'!U218*'Prevalence Rates'!U218","v":0},{"$f":"'Population 2016'!V218*'Prevalence Rates'!V218","v":206.54084005617804},{"$f":"'Population 2016'!W218*'Prevalence Rates'!W218","v":421.99500958986471},{"$f":"'Population 2016'!X218*'Prevalence Rates'!X218","v":421.99500958986471},{"$f":"'Population 2016'!Y218*'Prevalence Rates'!Y218","v":325.5808636388345},{"$f":"'Population 2016'!Z218*'Prevalence Rates'!Z218","v":578.6793655306484},{"$f":"'Population 2016'!AA218*'Prevalence Rates'!AA218","v":1517.0730216395084},{"$f":"'Population 2016'!AB218*'Prevalence Rates'!AB218","v":1294.8083866794643},{"$f":"'Population 2016'!AC218*'Prevalence Rates'!AC218","v":1162.9123678448673},{"$f":"'Population 2016'!AD218*'Prevalence Rates'!AD218","v":119.99138531573578},{"$f":"'Population 2016'!AE218*'Prevalence Rates'!AE218","v":103.37677574288902},{"$f":"'Population 2016'!AF218*'Prevalence Rates'!AF218","v":34.176653625365034},{"$f":"'Population 2016'!AG218*'Prevalence Rates'!AG218","v":103.37677574288902},{"$f":"'Population 2016'!AH218*'Prevalence Rates'!AH218","v":366.0458595627378},{"$f":"'Population 2016'!AI218*'Prevalence Rates'!AI218","v":1682.0842888659201},{"$f":"'Population 2016'!AJ218*'Prevalence Rates'!AJ218","v":78.9482199551571},{"$f":"'Population 2016'!AK218*'Prevalence Rates'!AK218","v":103.12413664735107},{"$f":"'Population 2016'!AL218*'Prevalence Rates'!AL218","v":72.310710890198251},{"$f":"'Population 2016'!AM218*'Prevalence Rates'!AM218","v":159.28916870427025},{"$f":"'Population 2016'!AN218*'Prevalence Rates'!AN218","v":6.2848577055374184},{"$f":"'Population 2016'!AO218*'Prevalence Rates'!AO218","v":6.2848577055374184},{"$f":"'Population 2016'!AP218*'Prevalence Rates'!AP218","v":92.516697943549474},{"$f":"'Population 2016'!AQ218*'Prevalence Rates'!AQ218","v":114.03640095884897},{"$f":"'Population 2016'!AR218*'Prevalence Rates'!AR218","v":6108.4413793103449},{"$f":"'Population 2016'!AS218*'Prevalence Rates'!AS218","v":61.458197629183218},{"$f":"'Population 2016'!AT218*'Prevalence Rates'!AT218","v":0},{"$f":"'Population 2016'!AU218*'Prevalence Rates'!AU218","v":0},{"$f":"'Population 2016'!AV218*'Prevalence Rates'!AV218","v":76.386844580742832},{"$f":"'Population 2016'!AW218*'Prevalence Rates'!AW218","v":206.94839277900527},{"$f":"'Population 2016'!AX218*'Prevalence Rates'!AX218","v":73.269528740051726},{"$f":"'Population 2016'!AY218*'Prevalence Rates'!AY218","v":700.48349115064502},{"$f":"'Population 2016'!AZ218*'Prevalence Rates'!AZ218","v":287.77980321489497},{"$f":"'Population 2016'!BA218*'Prevalence Rates'!BA218","v":16.510247106417602},{"$f":"'Population 2016'!BB218*'Prevalence Rates'!BB218","v":167.34542189598923},{"$f":"'Population 2016'!BC218*'Prevalence Rates'!BC218","v":0},216]
[null,"Female 35-39",{"$f":"'Population 2016'!C219*'Prevalence Rates'!C219","v":419.0937871527367},{"$f":"'Population 2016'!D219*'Prevalence Rates'!D219","v":854.1472784307424},{"$f":"'Population 2016'!E219*'Prevalence Rates'!E219","v":435.07258154516057},{"$f":"'Population 2016'!F219*'Prevalence Rates'!F219","v":79.265259987771088},{"$f":"'Population 2016'!G219*'Prevalence Rates'!G219","v":18.782243984632039},{"$f":"'Population 2016'!H219*'Prevalence Rates'!H219","v":226.3882814089439},{"$f":"'Population 2016'!I219*'Prevalence Rates'!I219","v":50.345239141614719},{"$f":"'Population 2016'!J219*'Prevalence Rates'!J219","v":109.07253236233636},{"$f":"'Population 2016'!K219*'Prevalence Rates'!K219","v":36.72857990975826},{"$f":"'Population 2016'!L219*'Prevalence Rates'!L219","v":58.602934761623928},{"$f":"'Population 2016'!M219*'Prevalence Rates'!M219","v":58.602934761623928},{"$f":"'Population 2016'!N219*'Prevalence Rates'!N219","v":69.332669745513741},{"$f":"'Population 2016'!O219*'Prevalence Rates'!O219","v":76.766140792969153},{"$f":"'Population 2016'!P219*'Prevalence Rates'!P219","v":198.40858871501368},{"$f":"'Population 2016'!Q219*'Prevalence Rates'!Q219","v":81.761543833599575},{"$f":"'Population 2016'!R219*'Prevalence Rates'!R219","v":186.39262098100744},{"$f":"'Population 2016'!S219*'Prevalence Rates'!S219","v":1675.6337158392298},{"$f":"'Population 2016'!T219*'Prevalence Rates'!T219","v":949.43499626041046},{"$f":"'Population 2016'!U219*'Prevalence Rates'!U219","v":0},{"$f":"'Population 2016'!V219*'Prevalence Rates'!V219","v":158.23750867312947},{"$f":"'Population 2016'!W219*'Prevalence Rates'!W219","v":348.92299603509588},{"$f":"'Population 2016'!X219*'Prevalence Rates'!X219","v":348.92299603509588},{"$f":"'Population 2016'!Y219*'Prevalence Rates'!Y219","v":266.20802843999854},{"$f":"'Population 2016'!Z219*'Prevalence Rates'!Z219","v":335.33439939327332},{"$f":"'Population 2016'!AA219*'Prevalence Rates'!AA219","v":1298.7888605620446},{"$f":"'Population 2016'!AB219*'Prevalence Rates'!AB219","v":922.21918950592101},{"$f":"'Population 2016'!AC219*'Prevalence Rates'!AC219","v":977.01521536441703},{"$f":"'Population 2016'!AD219*'Prevalence Rates'!AD219","v":99.174412606382077},{"$f":"'Population 2016'!AE219*'Prevalence Rates'!AE219","v":80.588841823514159},{"$f":"'Population 2016'!AF219*'Prevalence Rates'!AF219","v":32.552690834154241},{"$f":"'Population 2016'!AG219*'Prevalence Rates'!AG219","v":80.588841823514159},{"$f":"'Population 2016'!AH219*'Prevalence Rates'!AH219","v":330.54821798280568},{"$f":"'Population 2016'!AI219*'Prevalence Rates'!AI219","v":1251.6473851040137},{"$f":"'Population 2016'!AJ219*'Prevalence Rates'!AJ219","v":64.964114789558877},{"$f":"'Population 2016'!AK219*'Prevalence Rates'!AK219","v":60.479328631430342},{"$f":"'Population 2016'!AL219*'Prevalence Rates'!AL219","v":63.849333467894297},{"$f":"'Population 2016'!AM219*'Prevalence Rates'!AM219","v":140.36365271105009},{"$f":"'Population 2016'!AN219*'Prevalence Rates'!AN219","v":6.9872334980025563},{"$f":"'Population 2016'!AO219*'Prevalence Rates'!AO219","v":6.9872334980025563},{"$f":"'Population 2016'!AP219*'Prevalence Rates'!AP219","v":70.028275173529764},{"$f":"'Population 2016'!AQ219*'Prevalence Rates'!AQ219","v":104.3641926650682},{"$f":"'Population 2016'!AR219*'Prevalence Rates'!AR219","v":4778.954907161803},{"$f":"'Population 2016'!AS219*'Prevalence Rates'!AS219","v":50.345239141614719},{"$f":"'Population 2016'!AT219*'Prevalence Rates'!AT219","v":0},{"$f":"'Population 2016'!AU219*'Prevalence Rates'!AU219","v":0},{"$f":"'Population 2016'!AV219*'Prevalence Rates'!AV219","v":79.11465791196629},{"$f":"'Population 2016'!AW219*'Prevalence Rates'!AW219","v":190.37796144622752},{"$f":"'Population 2016'!AX219*'Prevalence Rates'!AX219","v":63.453091050844968},{"$f":"'Population 2016'!AY219*'Prevalence Rates'!AY219","v":556.73228895563034},{"$f":"'Population 2016'!AZ219*'Prevalence Rates'!AZ219","v":218.14752431768531},{"$f":"'Population 2016'!BA219*'Prevalence Rates'!BA219","v":18.495758095042834},{"$f":"'Population 2016'!BB219*'Prevalence Rates'!BB219","v":146.79220873589333},{"$f":"'Population 2016'!BC219*'Prevalence Rates'!BC219","v":0},217]
[null,"Female 40-44",{"$f":"'Population 2016'!C220*'Prevalence Rates'!C220","v":386.19424229807561},{"$f":"'Population 2016'!D220*'Prevalence Rates'!D220","v":849.39598238098461},{"$f":"'Population 2016'!E220*'Prevalence Rates'!E220","v":462.88914014177851},{"$f":"'Population 2016'!F220*'Prevalence Rates'!F220","v":97.737511880573393},{"$f":"'Population 2016'!G220*'Prevalence Rates'!G220","v":21.689019839396519},{"$f":"'Population 2016'!H220*'Prevalence Rates'!H220","v":288.63128821967547},{"$f":"'Population 2016'!I220*'Prevalence Rates'!I220","v":77.865144781725661},{"$f":"'Population 2016'!J220*'Prevalence Rates'!J220","v":138.71180746079733},{"$f":"'Population 2016'!K220*'Prevalence Rates'!K220","v":47.330644213606007},{"$f":"'Population 2016'!L220*'Prevalence Rates'!L220","v":63.318113420605165},{"$f":"'Population 2016'!M220*'Prevalence Rates'!M220","v":63.318113420605165},{"$f":"'Population 2016'!N220*'Prevalence Rates'!N220","v":81.453765854869303},{"$f":"'Population 2016'!O220*'Prevalence Rates'!O220","v":100.32802559081117},{"$f":"'Population 2016'!P220*'Prevalence Rates'!P220","v":230.41392966348005},{"$f":"'Population 2016'!Q220*'Prevalence Rates'!Q220","v":94.99204819940023},{"$f":"'Population 2016'!R220*'Prevalence Rates'!R220","v":210.46426836773441},{"$f":"'Population 2016'!S220*'Prevalence Rates'!S220","v":1755.4737495180393},{"$f":"'Population 2016'!T220*'Prevalence Rates'!T220","v":904.88552807600036},{"$f":"'Population 2016'!U220*'Prevalence Rates'!U220","v":0},{"$f":"'Population 2016'!V220*'Prevalence Rates'!V220","v":192.70072881973323},{"$f":"'Population 2016'!W220*'Prevalence Rates'!W220","v":400.81254756059417},{"$f":"'Population 2016'!X220*'Prevalence Rates'!X220","v":400.81254756059417},{"$f":"'Population 2016'!Y220*'Prevalence Rates'!Y220","v":330.42181610774861},{"$f":"'Population 2016'!Z220*'Prevalence Rates'!Z220","v":312.27082615444846},{"$f":"'Population 2016'!AA220*'Prevalence Rates'!AA220","v":1417.198591518373},{"$f":"'Population 2016'!AB220*'Prevalence Rates'!AB220","v":935.29738371446888},{"$f":"'Population 2016'!AC220*'Prevalence Rates'!AC220","v":1056.9514880607987},{"$f":"'Population 2016'!AD220*'Prevalence Rates'!AD220","v":114.52010693577608},{"$f":"'Population 2016'!AE220*'Prevalence Rates'!AE220","v":93.058175515404599},{"$f":"'Population 2016'!AF220*'Prevalence Rates'!AF220","v":42.51493673598592},{"$f":"'Population 2016'!AG220*'Prevalence Rates'!AG220","v":93.058175515404599},{"$f":"'Population 2016'!AH220*'Prevalence Rates'!AH220","v":369.13255579912988},{"$f":"'Population 2016'!AI220*'Prevalence Rates'!AI220","v":1257.736779724157},{"$f":"'Population 2016'!AJ220*'Prevalence Rates'!AJ220","v":67.279397706587176},{"$f":"'Population 2016'!AK220*'Prevalence Rates'!AK220","v":79.797050307317178},{"$f":"'Population 2016'!AL220*'Prevalence Rates'!AL220","v":81.832215362332889},{"$f":"'Population 2016'!AM220*'Prevalence Rates'!AM220","v":151.06705866102399},{"$f":"'Population 2016'!AN220*'Prevalence Rates'!AN220","v":5.0923905154933884},{"$f":"'Population 2016'!AO220*'Prevalence Rates'!AO220","v":5.0923905154933884},{"$f":"'Population 2016'!AP220*'Prevalence Rates'!AP220","v":87.866627655869948},{"$f":"'Population 2016'!AQ220*'Prevalence Rates'!AQ220","v":119.00199698961204},{"$f":"'Population 2016'!AR220*'Prevalence Rates'!AR220","v":5180.8435013262597},{"$f":"'Population 2016'!AS220*'Prevalence Rates'!AS220","v":77.865144781725661},{"$f":"'Population 2016'!AT220*'Prevalence Rates'!AT220","v":0},{"$f":"'Population 2016'!AU220*'Prevalence Rates'!AU220","v":0},{"$f":"'Population 2016'!AV220*'Prevalence Rates'!AV220","v":98.546328276308898},{"$f":"'Population 2016'!AW220*'Prevalence Rates'!AW220","v":218.31459859474339},{"$f":"'Population 2016'!AX220*'Prevalence Rates'!AX220","v":80.367243081748441},{"$f":"'Population 2016'!AY220*'Prevalence Rates'!AY220","v":657.90728694853624},{"$f":"'Population 2016'!AZ220*'Prevalence Rates'!AZ220","v":266.79656327402841},{"$f":"'Population 2016'!BA220*'Prevalence Rates'!BA220","v":18.199825965522152},{"$f":"'Population 2016'!BB220*'Prevalence Rates'!BB220","v":183.9104676242633},{"$f":"'Population 2016'!BC220*'Prevalence Rates'!BC220","v":0},218]
[null,"Female 45-49",{"$f":"'Population 2016'!C221*'Prevalence Rates'!C221","v":330.05183697716001},{"$f":"'Population 2016'!D221*'Prevalence Rates'!D221","v":729.21286042749193},{"$f":"'Population 2016'!E221*'Prevalence Rates'!E221","v":398.87639570517877},{"$f":"'Population 2016'!F221*'Prevalence Rates'!F221","v":90.183480446655381},{"$f":"'Population 2016'!G221*'Prevalence Rates'!G221","v":23.691712971818351},{"$f":"'Population 2016'!H221*'Prevalence Rates'!H221","v":294.17498669116799},{"$f":"'Population 2016'!I221*'Prevalence Rates'!I221","v":64.061820743624921},{"$f":"'Population 2016'!J221*'Prevalence Rates'!J221","v":144.75809100800544},{"$f":"'Population 2016'!K221*'Prevalence Rates'!K221","v":44.831034697952191},{"$f":"'Population 2016'!L221*'Prevalence Rates'!L221","v":67.857550442076217},{"$f":"'Population 2016'!M221*'Prevalence Rates'!M221","v":67.857550442076217},{"$f":"'Population 2016'!N221*'Prevalence Rates'!N221","v":83.091022820484639},{"$f":"'Population 2016'!O221*'Prevalence Rates'!O221","v":92.277975360782705},{"$f":"'Population 2016'!P221*'Prevalence Rates'!P221","v":222.75160613257316},{"$f":"'Population 2016'!Q221*'Prevalence Rates'!Q221","v":93.194818566746122},{"$f":"'Population 2016'!R221*'Prevalence Rates'!R221","v":198.09770117942537},{"$f":"'Population 2016'!S221*'Prevalence Rates'!S221","v":1545.8428133357211},{"$f":"'Population 2016'!T221*'Prevalence Rates'!T221","v":774.47077342893976},{"$f":"'Population 2016'!U221*'Prevalence Rates'!U221","v":0},{"$f":"'Population 2016'!V221*'Prevalence Rates'!V221","v":166.57076157268762},{"$f":"'Population 2016'!W221*'Prevalence Rates'!W221","v":353.12459685700298},{"$f":"'Population 2016'!X221*'Prevalence Rates'!X221","v":353.12459685700298},{"$f":"'Population 2016'!Y221*'Prevalence Rates'!Y221","v":311.95649087538811},{"$f":"'Population 2016'!Z221*'Prevalence Rates'!Z221","v":283.02517464231443},{"$f":"'Population 2016'!AA221*'Prevalence Rates'!AA221","v":1365.2205470792419},{"$f":"'Population 2016'!AB221*'Prevalence Rates'!AB221","v":807.56419462017459},{"$f":"'Population 2016'!AC221*'Prevalence Rates'!AC221","v":1016.2604491595856},{"$f":"'Population 2016'!AD221*'Prevalence Rates'!AD221","v":105.34664328844518},{"$f":"'Population 2016'!AE221*'Prevalence Rates'!AE221","v":81.741464883563879},{"$f":"'Population 2016'!AF221*'Prevalence Rates'!AF221","v":44.376134584000972},{"$f":"'Population 2016'!AG221*'Prevalence Rates'!AG221","v":81.741464883563879},{"$f":"'Population 2016'!AH221*'Prevalence Rates'!AH221","v":357.37444354768701},{"$f":"'Population 2016'!AI221*'Prevalence Rates'!AI221","v":1111.2353565259175},{"$f":"'Population 2016'!AJ221*'Prevalence Rates'!AJ221","v":61.439235225573022},{"$f":"'Population 2016'!AK221*'Prevalence Rates'!AK221","v":73.476355030974545},{"$f":"'Population 2016'!AL221*'Prevalence Rates'!AL221","v":87.095939965620857},{"$f":"'Population 2016'!AM221*'Prevalence Rates'!AM221","v":156.06342959824164},{"$f":"'Population 2016'!AN221*'Prevalence Rates'!AN221","v":7.1296604640164301},{"$f":"'Population 2016'!AO221*'Prevalence Rates'!AO221","v":7.1296604640164301},{"$f":"'Population 2016'!AP221*'Prevalence Rates'!AP221","v":83.867731755531963},{"$f":"'Population 2016'!AQ221*'Prevalence Rates'!AQ221","v":123.50738353070707},{"$f":"'Population 2016'!AR221*'Prevalence Rates'!AR221","v":4759.7832661290322},{"$f":"'Population 2016'!AS221*'Prevalence Rates'!AS221","v":64.061820743624921},{"$f":"'Population 2016'!AT221*'Prevalence Rates'!AT221","v":0},{"$f":"'Population 2016'!AU221*'Prevalence Rates'!AU221","v":0},{"$f":"'Population 2016'!AV221*'Prevalence Rates'!AV221","v":105.71869648919896},{"$f":"'Population 2016'!AW221*'Prevalence Rates'!AW221","v":201.49498031389913},{"$f":"'Population 2016'!AX221*'Prevalence Rates'!AX221","v":86.282385966902297},{"$f":"'Population 2016'!AY221*'Prevalence Rates'!AY221","v":604.76891166299765},{"$f":"'Population 2016'!AZ221*'Prevalence Rates'!AZ221","v":257.21890688482489},{"$f":"'Population 2016'!BA221*'Prevalence Rates'!BA221","v":21.497850482341349},{"$f":"'Population 2016'!BB221*'Prevalence Rates'!BB221","v":177.42019856354935},{"$f":"'Population 2016'!BC221*'Prevalence Rates'!BC221","v":0},219]
[null,"Female 50-54",{"$f":"'Population 2016'!C222*'Prevalence Rates'!C222","v":351.63889271570599},{"$f":"'Population 2016'!D222*'Prevalence Rates'!D222","v":736.84061001355349},{"$f":"'Population 2016'!E222*'Prevalence Rates'!E222","v":385.11082444035333},{"$f":"'Population 2016'!F222*'Prevalence Rates'!F222","v":92.507226568593737},{"$f":"'Population 2016'!G222*'Prevalence Rates'!G222","v":24.768609015991913},{"$f":"'Population 2016'!H222*'Prevalence Rates'!H222","v":302.87053990498504},{"$f":"'Population 2016'!I222*'Prevalence Rates'!I222","v":57.69462152164192},{"$f":"'Population 2016'!J222*'Prevalence Rates'!J222","v":142.00885041910249},{"$f":"'Population 2016'!K222*'Prevalence Rates'!K222","v":47.718457271718606},{"$f":"'Population 2016'!L222*'Prevalence Rates'!L222","v":81.645339575725174},{"$f":"'Population 2016'!M222*'Prevalence Rates'!M222","v":81.645339575725174},{"$f":"'Population 2016'!N222*'Prevalence Rates'!N222","v":88.442318201195008},{"$f":"'Population 2016'!O222*'Prevalence Rates'!O222","v":88.159784724846944},{"$f":"'Population 2016'!P222*'Prevalence Rates'!P222","v":243.12702922998486},{"$f":"'Population 2016'!Q222*'Prevalence Rates'!Q222","v":87.586423595379827},{"$f":"'Population 2016'!R222*'Prevalence Rates'!R222","v":198.35881414231565},{"$f":"'Population 2016'!S222*'Prevalence Rates'!S222","v":1524.595702134274},{"$f":"'Population 2016'!T222*'Prevalence Rates'!T222","v":788.57790838690835},{"$f":"'Population 2016'!U222*'Prevalence Rates'!U222","v":0},{"$f":"'Population 2016'!V222*'Prevalence Rates'!V222","v":153.26864421741291},{"$f":"'Population 2016'!W222*'Prevalence Rates'!W222","v":342.37573330687633},{"$f":"'Population 2016'!X222*'Prevalence Rates'!X222","v":342.37573330687633},{"$f":"'Population 2016'!Y222*'Prevalence Rates'!Y222","v":296.38107699906664},{"$f":"'Population 2016'!Z222*'Prevalence Rates'!Z222","v":287.55357743659141},{"$f":"'Population 2016'!AA222*'Prevalence Rates'!AA222","v":1427.322986831186},{"$f":"'Population 2016'!AB222*'Prevalence Rates'!AB222","v":811.10032683526015},{"$f":"'Population 2016'!AC222*'Prevalence Rates'!AC222","v":1061.6713443460342},{"$f":"'Population 2016'!AD222*'Prevalence Rates'!AD222","v":110.77024883296373},{"$f":"'Population 2016'!AE222*'Prevalence Rates'!AE222","v":86.097302581440871},{"$f":"'Population 2016'!AF222*'Prevalence Rates'!AF222","v":44.93928350004159},{"$f":"'Population 2016'!AG222*'Prevalence Rates'!AG222","v":86.097302581440871},{"$f":"'Population 2016'!AH222*'Prevalence Rates'!AH222","v":374.38708108001515},{"$f":"'Population 2016'!AI222*'Prevalence Rates'!AI222","v":1106.0141167221868},{"$f":"'Population 2016'!AJ222*'Prevalence Rates'!AJ222","v":57.940915782124023},{"$f":"'Population 2016'!AK222*'Prevalence Rates'!AK222","v":68.943722740102743},{"$f":"'Population 2016'!AL222*'Prevalence Rates'!AL222","v":84.176522983533005},{"$f":"'Population 2016'!AM222*'Prevalence Rates'!AM222","v":153.5620645245416},{"$f":"'Population 2016'!AN222*'Prevalence Rates'!AN222","v":6.3691633478546779},{"$f":"'Population 2016'!AO222*'Prevalence Rates'!AO222","v":6.3691633478546779},{"$f":"'Population 2016'!AP222*'Prevalence Rates'!AP222","v":92.459060374391342},{"$f":"'Population 2016'!AQ222*'Prevalence Rates'!AQ222","v":133.55300949689385},{"$f":"'Population 2016'!AR222*'Prevalence Rates'!AR222","v":4833.0282258064517},{"$f":"'Population 2016'!AS222*'Prevalence Rates'!AS222","v":57.69462152164192},{"$f":"'Population 2016'!AT222*'Prevalence Rates'!AT222","v":0},{"$f":"'Population 2016'!AU222*'Prevalence Rates'!AU222","v":0},{"$f":"'Population 2016'!AV222*'Prevalence Rates'!AV222","v":118.59310449256746},{"$f":"'Population 2016'!AW222*'Prevalence Rates'!AW222","v":221.07565429662876},{"$f":"'Population 2016'!AX222*'Prevalence Rates'!AX222","v":82.66720219733935},{"$f":"'Population 2016'!AY222*'Prevalence Rates'!AY222","v":614.83936981602517},{"$f":"'Population 2016'!AZ222*'Prevalence Rates'!AZ222","v":274.5005038210362},{"$f":"'Population 2016'!BA222*'Prevalence Rates'!BA222","v":24.348394192707055},{"$f":"'Population 2016'!BB222*'Prevalence Rates'!BB222","v":166.51414073042875},{"$f":"'Population 2016'!BC222*'Prevalence Rates'!BC222","v":0},220]
[null,"Female 55-59",{"$f":"'Population 2016'!C223*'Prevalence Rates'!C223","v":1150.0125558873192},{"$f":"'Population 2016'!D223*'Prevalence Rates'!D223","v":2299.1507344224115},{"$f":"'Population 2016'!E223*'Prevalence Rates'!E223","v":1149.4273049943474},{"$f":"'Population 2016'!F223*'Prevalence Rates'!F223","v":304.61636323908181},{"$f":"'Population 2016'!G223*'Prevalence Rates'!G223","v":94.626559127078849},{"$f":"'Population 2016'!H223*'Prevalence Rates'!H223","v":1113.9115381426736},{"$f":"'Population 2016'!I223*'Prevalence Rates'!I223","v":180.23647051774037},{"$f":"'Population 2016'!J223*'Prevalence Rates'!J223","v":438.12752958716993},{"$f":"'Population 2016'!K223*'Prevalence Rates'!K223","v":143.03510256695714},{"$f":"'Population 2016'!L223*'Prevalence Rates'!L223","v":255.88951530692086},{"$f":"'Population 2016'!M223*'Prevalence Rates'!M223","v":255.88951530692086},{"$f":"'Population 2016'!N223*'Prevalence Rates'!N223","v":310.18820092300939},{"$f":"'Population 2016'!O223*'Prevalence Rates'!O223","v":302.22818163320073},{"$f":"'Population 2016'!P223*'Prevalence Rates'!P223","v":775.64099686486668},{"$f":"'Population 2016'!Q223*'Prevalence Rates'!Q223","v":260.93567337880597},{"$f":"'Population 2016'!R223*'Prevalence Rates'!R223","v":627.03127108390709},{"$f":"'Population 2016'!S223*'Prevalence Rates'!S223","v":4892.4406987733682},{"$f":"'Population 2016'!T223*'Prevalence Rates'!T223","v":2608.4209913557415},{"$f":"'Population 2016'!U223*'Prevalence Rates'!U223","v":0},{"$f":"'Population 2016'!V223*'Prevalence Rates'!V223","v":445.6874014877547},{"$f":"'Population 2016'!W223*'Prevalence Rates'!W223","v":1120.6929581367804},{"$f":"'Population 2016'!X223*'Prevalence Rates'!X223","v":1120.6929581367804},{"$f":"'Population 2016'!Y223*'Prevalence Rates'!Y223","v":888.52755487676586},{"$f":"'Population 2016'!Z223*'Prevalence Rates'!Z223","v":915.67884733110452},{"$f":"'Population 2016'!AA223*'Prevalence Rates'!AA223","v":4499.2259242033015},{"$f":"'Population 2016'!AB223*'Prevalence Rates'!AB223","v":2527.0679572618124},{"$f":"'Population 2016'!AC223*'Prevalence Rates'!AC223","v":3364.28286390317},{"$f":"'Population 2016'!AD223*'Prevalence Rates'!AD223","v":360.07084167166875},{"$f":"'Population 2016'!AE223*'Prevalence Rates'!AE223","v":265.29349517572689},{"$f":"'Population 2016'!AF223*'Prevalence Rates'!AF223","v":138.6873151507175},{"$f":"'Population 2016'!AG223*'Prevalence Rates'!AG223","v":265.29349517572689},{"$f":"'Population 2016'!AH223*'Prevalence Rates'!AH223","v":1163.8114793170539},{"$f":"'Population 2016'!AI223*'Prevalence Rates'!AI223","v":3533.3886630353022},{"$f":"'Population 2016'!AJ223*'Prevalence Rates'!AJ223","v":192.63849511781129},{"$f":"'Population 2016'!AK223*'Prevalence Rates'!AK223","v":211.02851592340625},{"$f":"'Population 2016'!AL223*'Prevalence Rates'!AL223","v":306.45670692088368},{"$f":"'Population 2016'!AM223*'Prevalence Rates'!AM223","v":474.4785356848958},{"$f":"'Population 2016'!AN223*'Prevalence Rates'!AN223","v":17.827387427568539},{"$f":"'Population 2016'!AO223*'Prevalence Rates'!AO223","v":17.827387427568539},{"$f":"'Population 2016'!AP223*'Prevalence Rates'!AP223","v":303.70417968373243},{"$f":"'Population 2016'!AQ223*'Prevalence Rates'!AQ223","v":424.3211085712083},{"$f":"'Population 2016'!AR223*'Prevalence Rates'!AR223","v":15442.887755102041},{"$f":"'Population 2016'!AS223*'Prevalence Rates'!AS223","v":180.23647051774037},{"$f":"'Population 2016'!AT223*'Prevalence Rates'!AT223","v":0},{"$f":"'Population 2016'!AU223*'Prevalence Rates'!AU223","v":0},{"$f":"'Population 2016'!AV223*'Prevalence Rates'!AV223","v":456.42129254469813},{"$f":"'Population 2016'!AW223*'Prevalence Rates'!AW223","v":690.12887280989912},{"$f":"'Population 2016'!AX223*'Prevalence Rates'!AX223","v":257.2590683844677},{"$f":"'Population 2016'!AY223*'Prevalence Rates'!AY223","v":2038.7491270837406},{"$f":"'Population 2016'!AZ223*'Prevalence Rates'!AZ223","v":921.62428813033785},{"$f":"'Population 2016'!BA223*'Prevalence Rates'!BA223","v":71.444636863316688},{"$f":"'Population 2016'!BB223*'Prevalence Rates'!BB223","v":450.34644369048027},{"$f":"'Population 2016'!BC223*'Prevalence Rates'!BC223","v":0},221]
[null,"Female 60-64",{"$f":"'Population 2016'!C224*'Prevalence Rates'!C224","v":906.51697763471077},{"$f":"'Population 2016'!D224*'Prevalence Rates'!D224","v":1970.2599786849776},{"$f":"'Population 2016'!E224*'Prevalence Rates'!E224","v":1063.1339637785557},{"$f":"'Population 2016'!F224*'Prevalence Rates'!F224","v":284.25640065754936},{"$f":"'Population 2016'!G224*'Prevalence Rates'!G224","v":69.540994794732441},{"$f":"'Population 2016'!H224*'Prevalence Rates'!H224","v":1039.3378724336837},{"$f":"'Population 2016'!I224*'Prevalence Rates'!I224","v":166.90264999474425},{"$f":"'Population 2016'!J224*'Prevalence Rates'!J224","v":413.80789728728433},{"$f":"'Population 2016'!K224*'Prevalence Rates'!K224","v":166.1573183954502},{"$f":"'Population 2016'!L224*'Prevalence Rates'!L224","v":246.32355211787709},{"$f":"'Population 2016'!M224*'Prevalence Rates'!M224","v":246.32355211787709},{"$f":"'Population 2016'!N224*'Prevalence Rates'!N224","v":231.35013431771623},{"$f":"'Population 2016'!O224*'Prevalence Rates'!O224","v":270.92597710690495},{"$f":"'Population 2016'!P224*'Prevalence Rates'!P224","v":694.83780365757025},{"$f":"'Population 2016'!Q224*'Prevalence Rates'!Q224","v":228.00204469992755},{"$f":"'Population 2016'!R224*'Prevalence Rates'!R224","v":544.18676621083694},{"$f":"'Population 2016'!S224*'Prevalence Rates'!S224","v":4262.3969742445106},{"$f":"'Population 2016'!T224*'Prevalence Rates'!T224","v":2220.311474321205},{"$f":"'Population 2016'!U224*'Prevalence Rates'!U224","v":0},{"$f":"'Population 2016'!V224*'Prevalence Rates'!V224","v":371.54501133371701},{"$f":"'Population 2016'!W224*'Prevalence Rates'!W224","v":1039.0072778098033},{"$f":"'Population 2016'!X224*'Prevalence Rates'!X224","v":1039.0072778098033},{"$f":"'Population 2016'!Y224*'Prevalence Rates'!Y224","v":792.18119350458642},{"$f":"'Population 2016'!Z224*'Prevalence Rates'!Z224","v":804.45897704281811},{"$f":"'Population 2016'!AA224*'Prevalence Rates'!AA224","v":3920.8294525895517},{"$f":"'Population 2016'!AB224*'Prevalence Rates'!AB224","v":2195.4953705748226},{"$f":"'Population 2016'!AC224*'Prevalence Rates'!AC224","v":2971.9710053162726},{"$f":"'Population 2016'!AD224*'Prevalence Rates'!AD224","v":324.29144457692303},{"$f":"'Population 2016'!AE224*'Prevalence Rates'!AE224","v":255.12773701695369},{"$f":"'Population 2016'!AF224*'Prevalence Rates'!AF224","v":159.41070706979025},{"$f":"'Population 2016'!AG224*'Prevalence Rates'!AG224","v":255.12773701695369},{"$f":"'Population 2016'!AH224*'Prevalence Rates'!AH224","v":977.04597666803068},{"$f":"'Population 2016'!AI224*'Prevalence Rates'!AI224","v":3012.9518413800856},{"$f":"'Population 2016'!AJ224*'Prevalence Rates'!AJ224","v":166.33444357562018},{"$f":"'Population 2016'!AK224*'Prevalence Rates'!AK224","v":213.1388010826403},{"$f":"'Population 2016'!AL224*'Prevalence Rates'!AL224","v":270.87559113606198},{"$f":"'Population 2016'!AM224*'Prevalence Rates'!AM224","v":372.50220806405446},{"$f":"'Population 2016'!AN224*'Prevalence Rates'!AN224","v":18.83648482912902},{"$f":"'Population 2016'!AO224*'Prevalence Rates'!AO224","v":18.83648482912902},{"$f":"'Population 2016'!AP224*'Prevalence Rates'!AP224","v":285.7540756414146},{"$f":"'Population 2016'!AQ224*'Prevalence Rates'!AQ224","v":354.81750140808589},{"$f":"'Population 2016'!AR224*'Prevalence Rates'!AR224","v":13560.591836734695},{"$f":"'Population 2016'!AS224*'Prevalence Rates'!AS224","v":166.90264999474425},{"$f":"'Population 2016'!AT224*'Prevalence Rates'!AT224","v":0},{"$f":"'Population 2016'!AU224*'Prevalence Rates'!AU224","v":0},{"$f":"'Population 2016'!AV224*'Prevalence Rates'!AV224","v":446.34673426396103},{"$f":"'Population 2016'!AW224*'Prevalence Rates'!AW224","v":605.36262314900853},{"$f":"'Population 2016'!AX224*'Prevalence Rates'!AX224","v":226.55853867670803},{"$f":"'Population 2016'!AY224*'Prevalence Rates'!AY224","v":1834.9125295252834},{"$f":"'Population 2016'!AZ224*'Prevalence Rates'!AZ224","v":805.74557448345161},{"$f":"'Population 2016'!BA224*'Prevalence Rates'!BA224","v":56.315184351084916},{"$f":"'Population 2016'!BB224*'Prevalence Rates'!BB224","v":380.72574789027351},{"$f":"'Population 2016'!BC224*'Prevalence Rates'!BC224","v":0},222]
[null,"Female 65-69",{"$f":"'Population 2016'!C225*'Prevalence Rates'!C225","v":0},{"$f":"'Population 2016'!D225*'Prevalence Rates'!D225","v":0},{"$f":"'Population 2016'!E225*'Prevalence Rates'!E225","v":0},{"$f":"'Population 2016'!F225*'Prevalence Rates'!F225","v":0},{"$f":"'Population 2016'!G225*'Prevalence Rates'!G225","v":0},{"$f":"'Population 2016'!H225*'Prevalence Rates'!H225","v":0},{"$f":"'Population 2016'!I225*'Prevalence Rates'!I225","v":0},{"$f":"'Population 2016'!J225*'Prevalence Rates'!J225","v":0},{"$f":"'Population 2016'!K225*'Prevalence Rates'!K225","v":0},{"$f":"'Population 2016'!L225*'Prevalence Rates'!L225","v":0},{"$f":"'Population 2016'!M225*'Prevalence Rates'!M225","v":0},{"$f":"'Population 2016'!N225*'Prevalence Rates'!N225","v":0},{"$f":"'Population 2016'!O225*'Prevalence Rates'!O225","v":0},{"$f":"'Population 2016'!P225*'Prevalence Rates'!P225","v":0},{"$f":"'Population 2016'!Q225*'Prevalence Rates'!Q225","v":0},{"$f":"'Population 2016'!R225*'Prevalence Rates'!R225","v":0},{"$f":"'Population 2016'!S225*'Prevalence Rates'!S225","v":0},{"$f":"'Population 2016'!T225*'Prevalence Rates'!T225","v":0},{"$f":"'Population 2016'!U225*'Prevalence Rates'!U225","v":0},{"$f":"'Population 2016'!V225*'Prevalence Rates'!V225","v":0},{"$f":"'Population 2016'!W225*'Prevalence Rates'!W225","v":0},{"$f":"'Population 2016'!X225*'Prevalence Rates'!X225","v":0},{"$f":"'Population 2016'!Y225*'Prevalence Rates'!Y225","v":0},{"$f":"'Population 2016'!Z225*'Prevalence Rates'!Z225","v":0},{"$f":"'Population 2016'!AA225*'Prevalence Rates'!AA225","v":0},{"$f":"'Population 2016'!AB225*'Prevalence Rates'!AB225","v":0},{"$f":"'Population 2016'!AC225*'Prevalence Rates'!AC225","v":0},{"$f":"'Population 2016'!AD225*'Prevalence Rates'!AD225","v":0},{"$f":"'Population 2016'!AE225*'Prevalence Rates'!AE225","v":0},{"$f":"'Population 2016'!AF225*'Prevalence Rates'!AF225","v":0},{"$f":"'Population 2016'!AG225*'Prevalence Rates'!AG225","v":0},{"$f":"'Population 2016'!AH225*'Prevalence Rates'!AH225","v":0},{"$f":"'Population 2016'!AI225*'Prevalence Rates'!AI225","v":0},{"$f":"'Population 2016'!AJ225*'Prevalence Rates'!AJ225","v":0},{"$f":"'Population 2016'!AK225*'Prevalence Rates'!AK225","v":0},{"$f":"'Population 2016'!AL225*'Prevalence Rates'!AL225","v":0},{"$f":"'Population 2016'!AM225*'Prevalence Rates'!AM225","v":0},{"$f":"'Population 2016'!AN225*'Prevalence Rates'!AN225","v":0},{"$f":"'Population 2016'!AO225*'Prevalence Rates'!AO225","v":0},{"$f":"'Population 2016'!AP225*'Prevalence Rates'!AP225","v":0},{"$f":"'Population 2016'!AQ225*'Prevalence Rates'!AQ225","v":0},{"$f":"'Population 2016'!AR225*'Prevalence Rates'!AR225","v":0},{"$f":"'Population 2016'!AS225*'Prevalence Rates'!AS225","v":0},{"$f":"'Population 2016'!AT225*'Prevalence Rates'!AT225","v":0},{"$f":"'Population 2016'!AU225*'Prevalence Rates'!AU225","v":0},{"$f":"'Population 2016'!AV225*'Prevalence Rates'!AV225","v":0},{"$f":"'Population 2016'!AW225*'Prevalence Rates'!AW225","v":0},{"$f":"'Population 2016'!AX225*'Prevalence Rates'!AX225","v":0},{"$f":"'Population 2016'!AY225*'Prevalence Rates'!AY225","v":0},{"$f":"'Population 2016'!AZ225*'Prevalence Rates'!AZ225","v":0},{"$f":"'Population 2016'!BA225*'Prevalence Rates'!BA225","v":0},{"$f":"'Population 2016'!BB225*'Prevalence Rates'!BB225","v":0},{"$f":"'Population 2016'!BC225*'Prevalence Rates'!BC225","v":0},223]
[null,"Female 70-74",{"$f":"'Population 2016'!C226*'Prevalence Rates'!C226","v":0},{"$f":"'Population 2016'!D226*'Prevalence Rates'!D226","v":0},{"$f":"'Population 2016'!E226*'Prevalence Rates'!E226","v":0},{"$f":"'Population 2016'!F226*'Prevalence Rates'!F226","v":0},{"$f":"'Population 2016'!G226*'Prevalence Rates'!G226","v":0},{"$f":"'Population 2016'!H226*'Prevalence Rates'!H226","v":0},{"$f":"'Population 2016'!I226*'Prevalence Rates'!I226","v":0},{"$f":"'Population 2016'!J226*'Prevalence Rates'!J226","v":0},{"$f":"'Population 2016'!K226*'Prevalence Rates'!K226","v":0},{"$f":"'Population 2016'!L226*'Prevalence Rates'!L226","v":0},{"$f":"'Population 2016'!M226*'Prevalence Rates'!M226","v":0},{"$f":"'Population 2016'!N226*'Prevalence Rates'!N226","v":0},{"$f":"'Population 2016'!O226*'Prevalence Rates'!O226","v":0},{"$f":"'Population 2016'!P226*'Prevalence Rates'!P226","v":0},{"$f":"'Population 2016'!Q226*'Prevalence Rates'!Q226","v":0},{"$f":"'Population 2016'!R226*'Prevalence Rates'!R226","v":0},{"$f":"'Population 2016'!S226*'Prevalence Rates'!S226","v":0},{"$f":"'Population 2016'!T226*'Prevalence Rates'!T226","v":0},{"$f":"'Population 2016'!U226*'Prevalence Rates'!U226","v":0},{"$f":"'Population 2016'!V226*'Prevalence Rates'!V226","v":0},{"$f":"'Population 2016'!W226*'Prevalence Rates'!W226","v":0},{"$f":"'Population 2016'!X226*'Prevalence Rates'!X226","v":0},{"$f":"'Population 2016'!Y226*'Prevalence Rates'!Y226","v":0},{"$f":"'Population 2016'!Z226*'Prevalence Rates'!Z226","v":0},{"$f":"'Population 2016'!AA226*'Prevalence Rates'!AA226","v":0},{"$f":"'Population 2016'!AB226*'Prevalence Rates'!AB226","v":0},{"$f":"'Population 2016'!AC226*'Prevalence Rates'!AC226","v":0},{"$f":"'Population 2016'!AD226*'Prevalence Rates'!AD226","v":0},{"$f":"'Population 2016'!AE226*'Prevalence Rates'!AE226","v":0},{"$f":"'Population 2016'!AF226*'Prevalence Rates'!AF226","v":0},{"$f":"'Population 2016'!AG226*'Prevalence Rates'!AG226","v":0},{"$f":"'Population 2016'!AH226*'Prevalence Rates'!AH226","v":0},{"$f":"'Population 2016'!AI226*'Prevalence Rates'!AI226","v":0},{"$f":"'Population 2016'!AJ226*'Prevalence Rates'!AJ226","v":0},{"$f":"'Population 2016'!AK226*'Prevalence Rates'!AK226","v":0},{"$f":"'Population 2016'!AL226*'Prevalence Rates'!AL226","v":0},{"$f":"'Population 2016'!AM226*'Prevalence Rates'!AM226","v":0},{"$f":"'Population 2016'!AN226*'Prevalence Rates'!AN226","v":0},{"$f":"'Population 2016'!AO226*'Prevalence Rates'!AO226","v":0},{"$f":"'Population 2016'!AP226*'Prevalence Rates'!AP226","v":0},{"$f":"'Population 2016'!AQ226*'Prevalence Rates'!AQ226","v":0},{"$f":"'Population 2016'!AR226*'Prevalence Rates'!AR226","v":0},{"$f":"'Population 2016'!AS226*'Prevalence Rates'!AS226","v":0},{"$f":"'Population 2016'!AT226*'Prevalence Rates'!AT226","v":0},{"$f":"'Population 2016'!AU226*'Prevalence Rates'!AU226","v":0},{"$f":"'Population 2016'!AV226*'Prevalence Rates'!AV226","v":0},{"$f":"'Population 2016'!AW226*'Prevalence Rates'!AW226","v":0},{"$f":"'Population 2016'!AX226*'Prevalence Rates'!AX226","v":0},{"$f":"'Population 2016'!AY226*'Prevalence Rates'!AY226","v":0},{"$f":"'Population 2016'!AZ226*'Prevalence Rates'!AZ226","v":0},{"$f":"'Population 2016'!BA226*'Prevalence Rates'!BA226","v":0},{"$f":"'Population 2016'!BB226*'Prevalence Rates'!BB226","v":0},{"$f":"'Population 2016'!BC226*'Prevalence Rates'!BC226","v":0},224]
[null,"Female 75-79",{"$f":"'Population 2016'!C227*'Prevalence Rates'!C227","v":0},{"$f":"'Population 2016'!D227*'Prevalence Rates'!D227","v":0},{"$f":"'Population 2016'!E227*'Prevalence Rates'!E227","v":0},{"$f":"'Population 2016'!F227*'Prevalence Rates'!F227","v":0},{"$f":"'Population 2016'!G227*'Prevalence Rates'!G227","v":0},{"$f":"'Population 2016'!H227*'Prevalence Rates'!H227","v":0},{"$f":"'Population 2016'!I227*'Prevalence Rates'!I227","v":0},{"$f":"'Population 2016'!J227*'Prevalence Rates'!J227","v":0},{"$f":"'Population 2016'!K227*'Prevalence Rates'!K227","v":0},{"$f":"'Population 2016'!L227*'Prevalence Rates'!L227","v":0},{"$f":"'Population 2016'!M227*'Prevalence Rates'!M227","v":0},{"$f":"'Population 2016'!N227*'Prevalence Rates'!N227","v":0},{"$f":"'Population 2016'!O227*'Prevalence Rates'!O227","v":0},{"$f":"'Population 2016'!P227*'Prevalence Rates'!P227","v":0},{"$f":"'Population 2016'!Q227*'Prevalence Rates'!Q227","v":0},{"$f":"'Population 2016'!R227*'Prevalence Rates'!R227","v":0},{"$f":"'Population 2016'!S227*'Prevalence Rates'!S227","v":0},{"$f":"'Population 2016'!T227*'Prevalence Rates'!T227","v":0},{"$f":"'Population 2016'!U227*'Prevalence Rates'!U227","v":0},{"$f":"'Population 2016'!V227*'Prevalence Rates'!V227","v":0},{"$f":"'Population 2016'!W227*'Prevalence Rates'!W227","v":0},{"$f":"'Population 2016'!X227*'Prevalence Rates'!X227","v":0},{"$f":"'Population 2016'!Y227*'Prevalence Rates'!Y227","v":0},{"$f":"'Population 2016'!Z227*'Prevalence Rates'!Z227","v":0},{"$f":"'Population 2016'!AA227*'Prevalence Rates'!AA227","v":0},{"$f":"'Population 2016'!AB227*'Prevalence Rates'!AB227","v":0},{"$f":"'Population 2016'!AC227*'Prevalence Rates'!AC227","v":0},{"$f":"'Population 2016'!AD227*'Prevalence Rates'!AD227","v":0},{"$f":"'Population 2016'!AE227*'Prevalence Rates'!AE227","v":0},{"$f":"'Population 2016'!AF227*'Prevalence Rates'!AF227","v":0},{"$f":"'Population 2016'!AG227*'Prevalence Rates'!AG227","v":0},{"$f":"'Population 2016'!AH227*'Prevalence Rates'!AH227","v":0},{"$f":"'Population 2016'!AI227*'Prevalence Rates'!AI227","v":0},{"$f":"'Population 2016'!AJ227*'Prevalence Rates'!AJ227","v":0},{"$f":"'Population 2016'!AK227*'Prevalence Rates'!AK227","v":0},{"$f":"'Population 2016'!AL227*'Prevalence Rates'!AL227","v":0},{"$f":"'Population 2016'!AM227*'Prevalence Rates'!AM227","v":0},{"$f":"'Population 2016'!AN227*'Prevalence Rates'!AN227","v":0},{"$f":"'Population 2016'!AO227*'Prevalence Rates'!AO227","v":0},{"$f":"'Population 2016'!AP227*'Prevalence Rates'!AP227","v":0},{"$f":"'Population 2016'!AQ227*'Prevalence Rates'!AQ227","v":0},{"$f":"'Population 2016'!AR227*'Prevalence Rates'!AR227","v":0},{"$f":"'Population 2016'!AS227*'Prevalence Rates'!AS227","v":0},{"$f":"'Population 2016'!AT227*'Prevalence Rates'!AT227","v":0},{"$f":"'Population 2016'!AU227*'Prevalence Rates'!AU227","v":0},{"$f":"'Population 2016'!AV227*'Prevalence Rates'!AV227","v":0},{"$f":"'Population 2016'!AW227*'Prevalence Rates'!AW227","v":0},{"$f":"'Population 2016'!AX227*'Prevalence Rates'!AX227","v":0},{"$f":"'Population 2016'!AY227*'Prevalence Rates'!AY227","v":0},{"$f":"'Population 2016'!AZ227*'Prevalence Rates'!AZ227","v":0},{"$f":"'Population 2016'!BA227*'Prevalence Rates'!BA227","v":0},{"$f":"'Population 2016'!BB227*'Prevalence Rates'!BB227","v":0},{"$f":"'Population 2016'!BC227*'Prevalence Rates'!BC227","v":0},225]
[null,"Female 80-84",{"$f":"'Population 2016'!C228*'Prevalence Rates'!C228","v":0},{"$f":"'Population 2016'!D228*'Prevalence Rates'!D228","v":0},{"$f":"'Population 2016'!E228*'Prevalence Rates'!E228","v":0},{"$f":"'Population 2016'!F228*'Prevalence Rates'!F228","v":0},{"$f":"'Population 2016'!G228*'Prevalence Rates'!G228","v":0},{"$f":"'Population 2016'!H228*'Prevalence Rates'!H228","v":0},{"$f":"'Population 2016'!I228*'Prevalence Rates'!I228","v":0},{"$f":"'Population 2016'!J228*'Prevalence Rates'!J228","v":0},{"$f":"'Population 2016'!K228*'Prevalence Rates'!K228","v":0},{"$f":"'Population 2016'!L228*'Prevalence Rates'!L228","v":0},{"$f":"'Population 2016'!M228*'Prevalence Rates'!M228","v":0},{"$f":"'Population 2016'!N228*'Prevalence Rates'!N228","v":0},{"$f":"'Population 2016'!O228*'Prevalence Rates'!O228","v":0},{"$f":"'Population 2016'!P228*'Prevalence Rates'!P228","v":0},{"$f":"'Population 2016'!Q228*'Prevalence Rates'!Q228","v":0},{"$f":"'Population 2016'!R228*'Prevalence Rates'!R228","v":0},{"$f":"'Population 2016'!S228*'Prevalence Rates'!S228","v":0},{"$f":"'Population 2016'!T228*'Prevalence Rates'!T228","v":0},{"$f":"'Population 2016'!U228*'Prevalence Rates'!U228","v":0},{"$f":"'Population 2016'!V228*'Prevalence Rates'!V228","v":0},{"$f":"'Population 2016'!W228*'Prevalence Rates'!W228","v":0},{"$f":"'Population 2016'!X228*'Prevalence Rates'!X228","v":0},{"$f":"'Population 2016'!Y228*'Prevalence Rates'!Y228","v":0},{"$f":"'Population 2016'!Z228*'Prevalence Rates'!Z228","v":0},{"$f":"'Population 2016'!AA228*'Prevalence Rates'!AA228","v":0},{"$f":"'Population 2016'!AB228*'Prevalence Rates'!AB228","v":0},{"$f":"'Population 2016'!AC228*'Prevalence Rates'!AC228","v":0},{"$f":"'Population 2016'!AD228*'Prevalence Rates'!AD228","v":0},{"$f":"'Population 2016'!AE228*'Prevalence Rates'!AE228","v":0},{"$f":"'Population 2016'!AF228*'Prevalence Rates'!AF228","v":0},{"$f":"'Population 2016'!AG228*'Prevalence Rates'!AG228","v":0},{"$f":"'Population 2016'!AH228*'Prevalence Rates'!AH228","v":0},{"$f":"'Population 2016'!AI228*'Prevalence Rates'!AI228","v":0},{"$f":"'Population 2016'!AJ228*'Prevalence Rates'!AJ228","v":0},{"$f":"'Population 2016'!AK228*'Prevalence Rates'!AK228","v":0},{"$f":"'Population 2016'!AL228*'Prevalence Rates'!AL228","v":0},{"$f":"'Population 2016'!AM228*'Prevalence Rates'!AM228","v":0},{"$f":"'Population 2016'!AN228*'Prevalence Rates'!AN228","v":0},{"$f":"'Population 2016'!AO228*'Prevalence Rates'!AO228","v":0},{"$f":"'Population 2016'!AP228*'Prevalence Rates'!AP228","v":0},{"$f":"'Population 2016'!AQ228*'Prevalence Rates'!AQ228","v":0},{"$f":"'Population 2016'!AR228*'Prevalence Rates'!AR228","v":0},{"$f":"'Population 2016'!AS228*'Prevalence Rates'!AS228","v":0},{"$f":"'Population 2016'!AT228*'Prevalence Rates'!AT228","v":0},{"$f":"'Population 2016'!AU228*'Prevalence Rates'!AU228","v":0},{"$f":"'Population 2016'!AV228*'Prevalence Rates'!AV228","v":0},{"$f":"'Population 2016'!AW228*'Prevalence Rates'!AW228","v":0},{"$f":"'Population 2016'!AX228*'Prevalence Rates'!AX228","v":0},{"$f":"'Population 2016'!AY228*'Prevalence Rates'!AY228","v":0},{"$f":"'Population 2016'!AZ228*'Prevalence Rates'!AZ228","v":0},{"$f":"'Population 2016'!BA228*'Prevalence Rates'!BA228","v":0},{"$f":"'Population 2016'!BB228*'Prevalence Rates'!BB228","v":0},{"$f":"'Population 2016'!BC228*'Prevalence Rates'!BC228","v":0},226]
[null,"Female 85-89",{"$f":"'Population 2016'!C229*'Prevalence Rates'!C229","v":0},{"$f":"'Population 2016'!D229*'Prevalence Rates'!D229","v":0},{"$f":"'Population 2016'!E229*'Prevalence Rates'!E229","v":0},{"$f":"'Population 2016'!F229*'Prevalence Rates'!F229","v":0},{"$f":"'Population 2016'!G229*'Prevalence Rates'!G229","v":0},{"$f":"'Population 2016'!H229*'Prevalence Rates'!H229","v":0},{"$f":"'Population 2016'!I229*'Prevalence Rates'!I229","v":0},{"$f":"'Population 2016'!J229*'Prevalence Rates'!J229","v":0},{"$f":"'Population 2016'!K229*'Prevalence Rates'!K229","v":0},{"$f":"'Population 2016'!L229*'Prevalence Rates'!L229","v":0},{"$f":"'Population 2016'!M229*'Prevalence Rates'!M229","v":0},{"$f":"'Population 2016'!N229*'Prevalence Rates'!N229","v":0},{"$f":"'Population 2016'!O229*'Prevalence Rates'!O229","v":0},{"$f":"'Population 2016'!P229*'Prevalence Rates'!P229","v":0},{"$f":"'Population 2016'!Q229*'Prevalence Rates'!Q229","v":0},{"$f":"'Population 2016'!R229*'Prevalence Rates'!R229","v":0},{"$f":"'Population 2016'!S229*'Prevalence Rates'!S229","v":0},{"$f":"'Population 2016'!T229*'Prevalence Rates'!T229","v":0},{"$f":"'Population 2016'!U229*'Prevalence Rates'!U229","v":0},{"$f":"'Population 2016'!V229*'Prevalence Rates'!V229","v":0},{"$f":"'Population 2016'!W229*'Prevalence Rates'!W229","v":0},{"$f":"'Population 2016'!X229*'Prevalence Rates'!X229","v":0},{"$f":"'Population 2016'!Y229*'Prevalence Rates'!Y229","v":0},{"$f":"'Population 2016'!Z229*'Prevalence Rates'!Z229","v":0},{"$f":"'Population 2016'!AA229*'Prevalence Rates'!AA229","v":0},{"$f":"'Population 2016'!AB229*'Prevalence Rates'!AB229","v":0},{"$f":"'Population 2016'!AC229*'Prevalence Rates'!AC229","v":0},{"$f":"'Population 2016'!AD229*'Prevalence Rates'!AD229","v":0},{"$f":"'Population 2016'!AE229*'Prevalence Rates'!AE229","v":0},{"$f":"'Population 2016'!AF229*'Prevalence Rates'!AF229","v":0},{"$f":"'Population 2016'!AG229*'Prevalence Rates'!AG229","v":0},{"$f":"'Population 2016'!AH229*'Prevalence Rates'!AH229","v":0},{"$f":"'Population 2016'!AI229*'Prevalence Rates'!AI229","v":0},{"$f":"'Population 2016'!AJ229*'Prevalence Rates'!AJ229","v":0},{"$f":"'Population 2016'!AK229*'Prevalence Rates'!AK229","v":0},{"$f":"'Population 2016'!AL229*'Prevalence Rates'!AL229","v":0},{"$f":"'Population 2016'!AM229*'Prevalence Rates'!AM229","v":0},{"$f":"'Population 2016'!AN229*'Prevalence Rates'!AN229","v":0},{"$f":"'Population 2016'!AO229*'Prevalence Rates'!AO229","v":0},{"$f":"'Population 2016'!AP229*'Prevalence Rates'!AP229","v":0},{"$f":"'Population 2016'!AQ229*'Prevalence Rates'!AQ229","v":0},{"$f":"'Population 2016'!AR229*'Prevalence Rates'!AR229","v":0},{"$f":"'Population 2016'!AS229*'Prevalence Rates'!AS229","v":0},{"$f":"'Population 2016'!AT229*'Prevalence Rates'!AT229","v":0},{"$f":"'Population 2016'!AU229*'Prevalence Rates'!AU229","v":0},{"$f":"'Population 2016'!AV229*'Prevalence Rates'!AV229","v":0},{"$f":"'Population 2016'!AW229*'Prevalence Rates'!AW229","v":0},{"$f":"'Population 2016'!AX229*'Prevalence Rates'!AX229","v":0},{"$f":"'Population 2016'!AY229*'Prevalence Rates'!AY229","v":0},{"$f":"'Population 2016'!AZ229*'Prevalence Rates'!AZ229","v":0},{"$f":"'Population 2016'!BA229*'Prevalence Rates'!BA229","v":0},{"$f":"'Population 2016'!BB229*'Prevalence Rates'!BB229","v":0},{"$f":"'Population 2016'!BC229*'Prevalence Rates'!BC229","v":0},227]
[null,"Female 90+",{"$f":"'Population 2016'!C230*'Prevalence Rates'!C230","v":0},{"$f":"'Population 2016'!D230*'Prevalence Rates'!D230","v":0},{"$f":"'Population 2016'!E230*'Prevalence Rates'!E230","v":0},{"$f":"'Population 2016'!F230*'Prevalence Rates'!F230","v":0},{"$f":"'Population 2016'!G230*'Prevalence Rates'!G230","v":0},{"$f":"'Population 2016'!H230*'Prevalence Rates'!H230","v":0},{"$f":"'Population 2016'!I230*'Prevalence Rates'!I230","v":0},{"$f":"'Population 2016'!J230*'Prevalence Rates'!J230","v":0},{"$f":"'Population 2016'!K230*'Prevalence Rates'!K230","v":0},{"$f":"'Population 2016'!L230*'Prevalence Rates'!L230","v":0},{"$f":"'Population 2016'!M230*'Prevalence Rates'!M230","v":0},{"$f":"'Population 2016'!N230*'Prevalence Rates'!N230","v":0},{"$f":"'Population 2016'!O230*'Prevalence Rates'!O230","v":0},{"$f":"'Population 2016'!P230*'Prevalence Rates'!P230","v":0},{"$f":"'Population 2016'!Q230*'Prevalence Rates'!Q230","v":0},{"$f":"'Population 2016'!R230*'Prevalence Rates'!R230","v":0},{"$f":"'Population 2016'!S230*'Prevalence Rates'!S230","v":0},{"$f":"'Population 2016'!T230*'Prevalence Rates'!T230","v":0},{"$f":"'Population 2016'!U230*'Prevalence Rates'!U230","v":0},{"$f":"'Population 2016'!V230*'Prevalence Rates'!V230","v":0},{"$f":"'Population 2016'!W230*'Prevalence Rates'!W230","v":0},{"$f":"'Population 2016'!X230*'Prevalence Rates'!X230","v":0},{"$f":"'Population 2016'!Y230*'Prevalence Rates'!Y230","v":0},{"$f":"'Population 2016'!Z230*'Prevalence Rates'!Z230","v":0},{"$f":"'Population 2016'!AA230*'Prevalence Rates'!AA230","v":0},{"$f":"'Population 2016'!AB230*'Prevalence Rates'!AB230","v":0},{"$f":"'Population 2016'!AC230*'Prevalence Rates'!AC230","v":0},{"$f":"'Population 2016'!AD230*'Prevalence Rates'!AD230","v":0},{"$f":"'Population 2016'!AE230*'Prevalence Rates'!AE230","v":0},{"$f":"'Population 2016'!AF230*'Prevalence Rates'!AF230","v":0},{"$f":"'Population 2016'!AG230*'Prevalence Rates'!AG230","v":0},{"$f":"'Population 2016'!AH230*'Prevalence Rates'!AH230","v":0},{"$f":"'Population 2016'!AI230*'Prevalence Rates'!AI230","v":0},{"$f":"'Population 2016'!AJ230*'Prevalence Rates'!AJ230","v":0},{"$f":"'Population 2016'!AK230*'Prevalence Rates'!AK230","v":0},{"$f":"'Population 2016'!AL230*'Prevalence Rates'!AL230","v":0},{"$f":"'Population 2016'!AM230*'Prevalence Rates'!AM230","v":0},{"$f":"'Population 2016'!AN230*'Prevalence Rates'!AN230","v":0},{"$f":"'Population 2016'!AO230*'Prevalence Rates'!AO230","v":0},{"$f":"'Population 2016'!AP230*'Prevalence Rates'!AP230","v":0},{"$f":"'Population 2016'!AQ230*'Prevalence Rates'!AQ230","v":0},{"$f":"'Population 2016'!AR230*'Prevalence Rates'!AR230","v":0},{"$f":"'Population 2016'!AS230*'Prevalence Rates'!AS230","v":0},{"$f":"'Population 2016'!AT230*'Prevalence Rates'!AT230","v":0},{"$f":"'Population 2016'!AU230*'Prevalence Rates'!AU230","v":0},{"$f":"'Population 2016'!AV230*'Prevalence Rates'!AV230","v":0},{"$f":"'Population 2016'!AW230*'Prevalence Rates'!AW230","v":0},{"$f":"'Population 2016'!AX230*'Prevalence Rates'!AX230","v":0},{"$f":"'Population 2016'!AY230*'Prevalence Rates'!AY230","v":0},{"$f":"'Population 2016'!AZ230*'Prevalence Rates'!AZ230","v":0},{"$f":"'Population 2016'!BA230*'Prevalence Rates'!BA230","v":0},{"$f":"'Population 2016'!BB230*'Prevalence Rates'!BB230","v":0},{"$f":"'Population 2016'!BC230*'Prevalence Rates'!BC230","v":0},228]
[null,"Male 0-4",{"$f":"'Population 2016'!C231*'Prevalence Rates'!C231","v":0},{"$f":"'Population 2016'!D231*'Prevalence Rates'!D231","v":0},{"$f":"'Population 2016'!E231*'Prevalence Rates'!E231","v":0},{"$f":"'Population 2016'!F231*'Prevalence Rates'!F231","v":0},{"$f":"'Population 2016'!G231*'Prevalence Rates'!G231","v":0},{"$f":"'Population 2016'!H231*'Prevalence Rates'!H231","v":0},{"$f":"'Population 2016'!I231*'Prevalence Rates'!I231","v":0},{"$f":"'Population 2016'!J231*'Prevalence Rates'!J231","v":0},{"$f":"'Population 2016'!K231*'Prevalence Rates'!K231","v":0},{"$f":"'Population 2016'!L231*'Prevalence Rates'!L231","v":0},{"$f":"'Population 2016'!M231*'Prevalence Rates'!M231","v":0},{"$f":"'Population 2016'!N231*'Prevalence Rates'!N231","v":0},{"$f":"'Population 2016'!O231*'Prevalence Rates'!O231","v":0},{"$f":"'Population 2016'!P231*'Prevalence Rates'!P231","v":0},{"$f":"'Population 2016'!Q231*'Prevalence Rates'!Q231","v":0},{"$f":"'Population 2016'!R231*'Prevalence Rates'!R231","v":0},{"$f":"'Population 2016'!S231*'Prevalence Rates'!S231","v":0},{"$f":"'Population 2016'!T231*'Prevalence Rates'!T231","v":0},{"$f":"'Population 2016'!U231*'Prevalence Rates'!U231","v":0},{"$f":"'Population 2016'!V231*'Prevalence Rates'!V231","v":0},{"$f":"'Population 2016'!W231*'Prevalence Rates'!W231","v":0},{"$f":"'Population 2016'!X231*'Prevalence Rates'!X231","v":0},{"$f":"'Population 2016'!Y231*'Prevalence Rates'!Y231","v":0},{"$f":"'Population 2016'!Z231*'Prevalence Rates'!Z231","v":0},{"$f":"'Population 2016'!AA231*'Prevalence Rates'!AA231","v":0},{"$f":"'Population 2016'!AB231*'Prevalence Rates'!AB231","v":0},{"$f":"'Population 2016'!AC231*'Prevalence Rates'!AC231","v":0},{"$f":"'Population 2016'!AD231*'Prevalence Rates'!AD231","v":0},{"$f":"'Population 2016'!AE231*'Prevalence Rates'!AE231","v":0},{"$f":"'Population 2016'!AF231*'Prevalence Rates'!AF231","v":0},{"$f":"'Population 2016'!AG231*'Prevalence Rates'!AG231","v":0},{"$f":"'Population 2016'!AH231*'Prevalence Rates'!AH231","v":0},{"$f":"'Population 2016'!AI231*'Prevalence Rates'!AI231","v":0},{"$f":"'Population 2016'!AJ231*'Prevalence Rates'!AJ231","v":0},{"$f":"'Population 2016'!AK231*'Prevalence Rates'!AK231","v":0},{"$f":"'Population 2016'!AL231*'Prevalence Rates'!AL231","v":0},{"$f":"'Population 2016'!AM231*'Prevalence Rates'!AM231","v":0},{"$f":"'Population 2016'!AN231*'Prevalence Rates'!AN231","v":0},{"$f":"'Population 2016'!AO231*'Prevalence Rates'!AO231","v":0},{"$f":"'Population 2016'!AP231*'Prevalence Rates'!AP231","v":0},{"$f":"'Population 2016'!AQ231*'Prevalence Rates'!AQ231","v":0},{"$f":"'Population 2016'!AR231*'Prevalence Rates'!AR231","v":0},{"$f":"'Population 2016'!AS231*'Prevalence Rates'!AS231","v":0},{"$f":"'Population 2016'!AT231*'Prevalence Rates'!AT231","v":0},{"$f":"'Population 2016'!AU231*'Prevalence Rates'!AU231","v":0},{"$f":"'Population 2016'!AV231*'Prevalence Rates'!AV231","v":0},{"$f":"'Population 2016'!AW231*'Prevalence Rates'!AW231","v":0},{"$f":"'Population 2016'!AX231*'Prevalence Rates'!AX231","v":0},{"$f":"'Population 2016'!AY231*'Prevalence Rates'!AY231","v":0},{"$f":"'Population 2016'!AZ231*'Prevalence Rates'!AZ231","v":0},{"$f":"'Population 2016'!BA231*'Prevalence Rates'!BA231","v":0},{"$f":"'Population 2016'!BB231*'Prevalence Rates'!BB231","v":0},{"$f":"'Population 2016'!BC231*'Prevalence Rates'!BC231","v":0},229]
[null,"Male 5-9",{"$f":"'Population 2016'!C232*'Prevalence Rates'!C232","v":0},{"$f":"'Population 2016'!D232*'Prevalence Rates'!D232","v":0},{"$f":"'Population 2016'!E232*'Prevalence Rates'!E232","v":0},{"$f":"'Population 2016'!F232*'Prevalence Rates'!F232","v":0},{"$f":"'Population 2016'!G232*'Prevalence Rates'!G232","v":0},{"$f":"'Population 2016'!H232*'Prevalence Rates'!H232","v":0},{"$f":"'Population 2016'!I232*'Prevalence Rates'!I232","v":0},{"$f":"'Population 2016'!J232*'Prevalence Rates'!J232","v":0},{"$f":"'Population 2016'!K232*'Prevalence Rates'!K232","v":0},{"$f":"'Population 2016'!L232*'Prevalence Rates'!L232","v":0},{"$f":"'Population 2016'!M232*'Prevalence Rates'!M232","v":0},{"$f":"'Population 2016'!N232*'Prevalence Rates'!N232","v":0},{"$f":"'Population 2016'!O232*'Prevalence Rates'!O232","v":0},{"$f":"'Population 2016'!P232*'Prevalence Rates'!P232","v":0},{"$f":"'Population 2016'!Q232*'Prevalence Rates'!Q232","v":0},{"$f":"'Population 2016'!R232*'Prevalence Rates'!R232","v":0},{"$f":"'Population 2016'!S232*'Prevalence Rates'!S232","v":0},{"$f":"'Population 2016'!T232*'Prevalence Rates'!T232","v":0},{"$f":"'Population 2016'!U232*'Prevalence Rates'!U232","v":0},{"$f":"'Population 2016'!V232*'Prevalence Rates'!V232","v":0},{"$f":"'Population 2016'!W232*'Prevalence Rates'!W232","v":0},{"$f":"'Population 2016'!X232*'Prevalence Rates'!X232","v":0},{"$f":"'Population 2016'!Y232*'Prevalence Rates'!Y232","v":0},{"$f":"'Population 2016'!Z232*'Prevalence Rates'!Z232","v":0},{"$f":"'Population 2016'!AA232*'Prevalence Rates'!AA232","v":0},{"$f":"'Population 2016'!AB232*'Prevalence Rates'!AB232","v":0},{"$f":"'Population 2016'!AC232*'Prevalence Rates'!AC232","v":0},{"$f":"'Population 2016'!AD232*'Prevalence Rates'!AD232","v":0},{"$f":"'Population 2016'!AE232*'Prevalence Rates'!AE232","v":0},{"$f":"'Population 2016'!AF232*'Prevalence Rates'!AF232","v":0},{"$f":"'Population 2016'!AG232*'Prevalence Rates'!AG232","v":0},{"$f":"'Population 2016'!AH232*'Prevalence Rates'!AH232","v":0},{"$f":"'Population 2016'!AI232*'Prevalence Rates'!AI232","v":0},{"$f":"'Population 2016'!AJ232*'Prevalence Rates'!AJ232","v":0},{"$f":"'Population 2016'!AK232*'Prevalence Rates'!AK232","v":0},{"$f":"'Population 2016'!AL232*'Prevalence Rates'!AL232","v":0},{"$f":"'Population 2016'!AM232*'Prevalence Rates'!AM232","v":0},{"$f":"'Population 2016'!AN232*'Prevalence Rates'!AN232","v":0},{"$f":"'Population 2016'!AO232*'Prevalence Rates'!AO232","v":0},{"$f":"'Population 2016'!AP232*'Prevalence Rates'!AP232","v":0},{"$f":"'Population 2016'!AQ232*'Prevalence Rates'!AQ232","v":0},{"$f":"'Population 2016'!AR232*'Prevalence Rates'!AR232","v":0},{"$f":"'Population 2016'!AS232*'Prevalence Rates'!AS232","v":0},{"$f":"'Population 2016'!AT232*'Prevalence Rates'!AT232","v":0},{"$f":"'Population 2016'!AU232*'Prevalence Rates'!AU232","v":0},{"$f":"'Population 2016'!AV232*'Prevalence Rates'!AV232","v":0},{"$f":"'Population 2016'!AW232*'Prevalence Rates'!AW232","v":0},{"$f":"'Population 2016'!AX232*'Prevalence Rates'!AX232","v":0},{"$f":"'Population 2016'!AY232*'Prevalence Rates'!AY232","v":0},{"$f":"'Population 2016'!AZ232*'Prevalence Rates'!AZ232","v":0},{"$f":"'Population 2016'!BA232*'Prevalence Rates'!BA232","v":0},{"$f":"'Population 2016'!BB232*'Prevalence Rates'!BB232","v":0},{"$f":"'Population 2016'!BC232*'Prevalence Rates'!BC232","v":0},230]
[null,"Male 10-15",{"$f":"'Population 2016'!C233*'Prevalence Rates'!C233","v":0},{"$f":"'Population 2016'!D233*'Prevalence Rates'!D233","v":0},{"$f":"'Population 2016'!E233*'Prevalence Rates'!E233","v":0},{"$f":"'Population 2016'!F233*'Prevalence Rates'!F233","v":0},{"$f":"'Population 2016'!G233*'Prevalence Rates'!G233","v":0},{"$f":"'Population 2016'!H233*'Prevalence Rates'!H233","v":0},{"$f":"'Population 2016'!I233*'Prevalence Rates'!I233","v":0},{"$f":"'Population 2016'!J233*'Prevalence Rates'!J233","v":0},{"$f":"'Population 2016'!K233*'Prevalence Rates'!K233","v":0},{"$f":"'Population 2016'!L233*'Prevalence Rates'!L233","v":0},{"$f":"'Population 2016'!M233*'Prevalence Rates'!M233","v":0},{"$f":"'Population 2016'!N233*'Prevalence Rates'!N233","v":0},{"$f":"'Population 2016'!O233*'Prevalence Rates'!O233","v":0},{"$f":"'Population 2016'!P233*'Prevalence Rates'!P233","v":0},{"$f":"'Population 2016'!Q233*'Prevalence Rates'!Q233","v":0},{"$f":"'Population 2016'!R233*'Prevalence Rates'!R233","v":0},{"$f":"'Population 2016'!S233*'Prevalence Rates'!S233","v":0},{"$f":"'Population 2016'!T233*'Prevalence Rates'!T233","v":0},{"$f":"'Population 2016'!U233*'Prevalence Rates'!U233","v":0},{"$f":"'Population 2016'!V233*'Prevalence Rates'!V233","v":0},{"$f":"'Population 2016'!W233*'Prevalence Rates'!W233","v":0},{"$f":"'Population 2016'!X233*'Prevalence Rates'!X233","v":0},{"$f":"'Population 2016'!Y233*'Prevalence Rates'!Y233","v":0},{"$f":"'Population 2016'!Z233*'Prevalence Rates'!Z233","v":0},{"$f":"'Population 2016'!AA233*'Prevalence Rates'!AA233","v":0},{"$f":"'Population 2016'!AB233*'Prevalence Rates'!AB233","v":0},{"$f":"'Population 2016'!AC233*'Prevalence Rates'!AC233","v":0},{"$f":"'Population 2016'!AD233*'Prevalence Rates'!AD233","v":0},{"$f":"'Population 2016'!AE233*'Prevalence Rates'!AE233","v":0},{"$f":"'Population 2016'!AF233*'Prevalence Rates'!AF233","v":0},{"$f":"'Population 2016'!AG233*'Prevalence Rates'!AG233","v":0},{"$f":"'Population 2016'!AH233*'Prevalence Rates'!AH233","v":0},{"$f":"'Population 2016'!AI233*'Prevalence Rates'!AI233","v":0},{"$f":"'Population 2016'!AJ233*'Prevalence Rates'!AJ233","v":0},{"$f":"'Population 2016'!AK233*'Prevalence Rates'!AK233","v":0},{"$f":"'Population 2016'!AL233*'Prevalence Rates'!AL233","v":0},{"$f":"'Population 2016'!AM233*'Prevalence Rates'!AM233","v":0},{"$f":"'Population 2016'!AN233*'Prevalence Rates'!AN233","v":0},{"$f":"'Population 2016'!AO233*'Prevalence Rates'!AO233","v":0},{"$f":"'Population 2016'!AP233*'Prevalence Rates'!AP233","v":0},{"$f":"'Population 2016'!AQ233*'Prevalence Rates'!AQ233","v":0},{"$f":"'Population 2016'!AR233*'Prevalence Rates'!AR233","v":0},{"$f":"'Population 2016'!AS233*'Prevalence Rates'!AS233","v":0},{"$f":"'Population 2016'!AT233*'Prevalence Rates'!AT233","v":0},{"$f":"'Population 2016'!AU233*'Prevalence Rates'!AU233","v":0},{"$f":"'Population 2016'!AV233*'Prevalence Rates'!AV233","v":0},{"$f":"'Population 2016'!AW233*'Prevalence Rates'!AW233","v":0},{"$f":"'Population 2016'!AX233*'Prevalence Rates'!AX233","v":0},{"$f":"'Population 2016'!AY233*'Prevalence Rates'!AY233","v":0},{"$f":"'Population 2016'!AZ233*'Prevalence Rates'!AZ233","v":0},{"$f":"'Population 2016'!BA233*'Prevalence Rates'!BA233","v":0},{"$f":"'Population 2016'!BB233*'Prevalence Rates'!BB233","v":0},{"$f":"'Population 2016'!BC233*'Prevalence Rates'!BC233","v":0},231]
[null,"Male 16-19",{"$f":"'Population 2016'!C234*'Prevalence Rates'!C234","v":306.62198329281591},{"$f":"'Population 2016'!D234*'Prevalence Rates'!D234","v":559.75975746192285},{"$f":"'Population 2016'!E234*'Prevalence Rates'!E234","v":244.90806372183826},{"$f":"'Population 2016'!F234*'Prevalence Rates'!F234","v":54.053168853687289},{"$f":"'Population 2016'!G234*'Prevalence Rates'!G234","v":38.332935264727936},{"$f":"'Population 2016'!H234*'Prevalence Rates'!H234","v":223.79330910386165},{"$f":"'Population 2016'!I234*'Prevalence Rates'!I234","v":40.148036820364453},{"$f":"'Population 2016'!J234*'Prevalence Rates'!J234","v":164.06297391117036},{"$f":"'Population 2016'!K234*'Prevalence Rates'!K234","v":31.207738693605613},{"$f":"'Population 2016'!L234*'Prevalence Rates'!L234","v":33.742685465587726},{"$f":"'Population 2016'!M234*'Prevalence Rates'!M234","v":33.742685465587726},{"$f":"'Population 2016'!N234*'Prevalence Rates'!N234","v":142.85273314375328},{"$f":"'Population 2016'!O234*'Prevalence Rates'!O234","v":72.841076545170381},{"$f":"'Population 2016'!P234*'Prevalence Rates'!P234","v":168.47740690206777},{"$f":"'Population 2016'!Q234*'Prevalence Rates'!Q234","v":50.908920606372796},{"$f":"'Population 2016'!R234*'Prevalence Rates'!R234","v":160.41751108554675},{"$f":"'Population 2016'!S234*'Prevalence Rates'!S234","v":1221.907976015134},{"$f":"'Population 2016'!T234*'Prevalence Rates'!T234","v":653.56800097029975},{"$f":"'Population 2016'!U234*'Prevalence Rates'!U234","v":0},{"$f":"'Population 2016'!V234*'Prevalence Rates'!V234","v":84.078067298646587},{"$f":"'Population 2016'!W234*'Prevalence Rates'!W234","v":314.42001805959859},{"$f":"'Population 2016'!X234*'Prevalence Rates'!X234","v":314.42001805959859},{"$f":"'Population 2016'!Y234*'Prevalence Rates'!Y234","v":242.54519872195181},{"$f":"'Population 2016'!Z234*'Prevalence Rates'!Z234","v":187.69912470471562},{"$f":"'Population 2016'!AA234*'Prevalence Rates'!AA234","v":1048.5591929581474},{"$f":"'Population 2016'!AB234*'Prevalence Rates'!AB234","v":634.70957247689853},{"$f":"'Population 2016'!AC234*'Prevalence Rates'!AC234","v":778.89837668606094},{"$f":"'Population 2016'!AD234*'Prevalence Rates'!AD234","v":118.7882082317703},{"$f":"'Population 2016'!AE234*'Prevalence Rates'!AE234","v":76.044201371497579},{"$f":"'Population 2016'!AF234*'Prevalence Rates'!AF234","v":40.316116946289185},{"$f":"'Population 2016'!AG234*'Prevalence Rates'!AG234","v":76.044201371497579},{"$f":"'Population 2016'!AH234*'Prevalence Rates'!AH234","v":271.79327007067945},{"$f":"'Population 2016'!AI234*'Prevalence Rates'!AI234","v":863.2413018641704},{"$f":"'Population 2016'!AJ234*'Prevalence Rates'!AJ234","v":42.600495151174698},{"$f":"'Population 2016'!AK234*'Prevalence Rates'!AK234","v":76.202138169021524},{"$f":"'Population 2016'!AL234*'Prevalence Rates'!AL234","v":61.770430609767686},{"$f":"'Population 2016'!AM234*'Prevalence Rates'!AM234","v":119.0996597716269},{"$f":"'Population 2016'!AN234*'Prevalence Rates'!AN234","v":3.712923066018667},{"$f":"'Population 2016'!AO234*'Prevalence Rates'!AO234","v":3.712923066018667},{"$f":"'Population 2016'!AP234*'Prevalence Rates'!AP234","v":90.175839388549988},{"$f":"'Population 2016'!AQ234*'Prevalence Rates'!AQ234","v":123.84957898007355},{"$f":"'Population 2016'!AR234*'Prevalence Rates'!AR234","v":3763.2167832167834},{"$f":"'Population 2016'!AS234*'Prevalence Rates'!AS234","v":40.148036820364453},{"$f":"'Population 2016'!AT234*'Prevalence Rates'!AT234","v":0},{"$f":"'Population 2016'!AU234*'Prevalence Rates'!AU234","v":0},{"$f":"'Population 2016'!AV234*'Prevalence Rates'!AV234","v":82.484262489280653},{"$f":"'Population 2016'!AW234*'Prevalence Rates'!AW234","v":151.15347622965129},{"$f":"'Population 2016'!AX234*'Prevalence Rates'!AX234","v":106.11970427632519},{"$f":"'Population 2016'!AY234*'Prevalence Rates'!AY234","v":611.71648048178884},{"$f":"'Population 2016'!AZ234*'Prevalence Rates'!AZ234","v":288.61812441759525},{"$f":"'Population 2016'!BA234*'Prevalence Rates'!BA234","v":18.008054753484828},{"$f":"'Population 2016'!BB234*'Prevalence Rates'!BB234","v":115.04343112539756},{"$f":"'Population 2016'!BC234*'Prevalence Rates'!BC234","v":0},232]
[null,"Male 20-24",{"$f":"'Population 2016'!C235*'Prevalence Rates'!C235","v":510.36752374598001},{"$f":"'Population 2016'!D235*'Prevalence Rates'!D235","v":753.00024827468167},{"$f":"'Population 2016'!E235*'Prevalence Rates'!E235","v":264.45628105292377},{"$f":"'Population 2016'!F235*'Prevalence Rates'!F235","v":56.417323356234249},{"$f":"'Population 2016'!G235*'Prevalence Rates'!G235","v":101.5366440047853},{"$f":"'Population 2016'!H235*'Prevalence Rates'!H235","v":244.525676267596},{"$f":"'Population 2016'!I235*'Prevalence Rates'!I235","v":32.998386427696808},{"$f":"'Population 2016'!J235*'Prevalence Rates'!J235","v":185.8740214461838},{"$f":"'Population 2016'!K235*'Prevalence Rates'!K235","v":32.599166533447899},{"$f":"'Population 2016'!L235*'Prevalence Rates'!L235","v":37.057756318347224},{"$f":"'Population 2016'!M235*'Prevalence Rates'!M235","v":37.057756318347224},{"$f":"'Population 2016'!N235*'Prevalence Rates'!N235","v":181.26125101730958},{"$f":"'Population 2016'!O235*'Prevalence Rates'!O235","v":82.596577868184269},{"$f":"'Population 2016'!P235*'Prevalence Rates'!P235","v":200.13914180684591},{"$f":"'Population 2016'!Q235*'Prevalence Rates'!Q235","v":64.637168859776693},{"$f":"'Population 2016'!R235*'Prevalence Rates'!R235","v":175.84845403565944},{"$f":"'Population 2016'!S235*'Prevalence Rates'!S235","v":1986.9416126599322},{"$f":"'Population 2016'!T235*'Prevalence Rates'!T235","v":1193.2767422727743},{"$f":"'Population 2016'!U235*'Prevalence Rates'!U235","v":0},{"$f":"'Population 2016'!V235*'Prevalence Rates'!V235","v":98.803604509144009},{"$f":"'Population 2016'!W235*'Prevalence Rates'!W235","v":515.76421311060767},{"$f":"'Population 2016'!X235*'Prevalence Rates'!X235","v":515.76421311060767},{"$f":"'Population 2016'!Y235*'Prevalence Rates'!Y235","v":278.59577185131752},{"$f":"'Population 2016'!Z235*'Prevalence Rates'!Z235","v":448.13879165821919},{"$f":"'Population 2016'!AA235*'Prevalence Rates'!AA235","v":1433.578136921132},{"$f":"'Population 2016'!AB235*'Prevalence Rates'!AB235","v":850.33581026148909},{"$f":"'Population 2016'!AC235*'Prevalence Rates'!AC235","v":1122.246562309261},{"$f":"'Population 2016'!AD235*'Prevalence Rates'!AD235","v":195.41657277456696},{"$f":"'Population 2016'!AE235*'Prevalence Rates'!AE235","v":73.601014178839023},{"$f":"'Population 2016'!AF235*'Prevalence Rates'!AF235","v":36.776165214419891},{"$f":"'Population 2016'!AG235*'Prevalence Rates'!AG235","v":73.601014178839023},{"$f":"'Population 2016'!AH235*'Prevalence Rates'!AH235","v":315.449183916229},{"$f":"'Population 2016'!AI235*'Prevalence Rates'!AI235","v":1430.665354537799},{"$f":"'Population 2016'!AJ235*'Prevalence Rates'!AJ235","v":47.834270269747591},{"$f":"'Population 2016'!AK235*'Prevalence Rates'!AK235","v":99.28987208447009},{"$f":"'Population 2016'!AL235*'Prevalence Rates'!AL235","v":65.125374125314181},{"$f":"'Population 2016'!AM235*'Prevalence Rates'!AM235","v":133.8604924529221},{"$f":"'Population 2016'!AN235*'Prevalence Rates'!AN235","v":5.8169128034292443},{"$f":"'Population 2016'!AO235*'Prevalence Rates'!AO235","v":5.8169128034292443},{"$f":"'Population 2016'!AP235*'Prevalence Rates'!AP235","v":104.1092590162947},{"$f":"'Population 2016'!AQ235*'Prevalence Rates'!AQ235","v":143.52243629098774},{"$f":"'Population 2016'!AR235*'Prevalence Rates'!AR235","v":5324.3356643356647},{"$f":"'Population 2016'!AS235*'Prevalence Rates'!AS235","v":32.998386427696808},{"$f":"'Population 2016'!AT235*'Prevalence Rates'!AT235","v":0},{"$f":"'Population 2016'!AU235*'Prevalence Rates'!AU235","v":0},{"$f":"'Population 2016'!AV235*'Prevalence Rates'!AV235","v":89.819819430026953},{"$f":"'Population 2016'!AW235*'Prevalence Rates'!AW235","v":179.5544907335063},{"$f":"'Population 2016'!AX235*'Prevalence Rates'!AX235","v":121.64443483455564},{"$f":"'Population 2016'!AY235*'Prevalence Rates'!AY235","v":875.24928003209482},{"$f":"'Population 2016'!AZ235*'Prevalence Rates'!AZ235","v":336.07603175623194},{"$f":"'Population 2016'!BA235*'Prevalence Rates'!BA235","v":22.843550937290939},{"$f":"'Population 2016'!BB235*'Prevalence Rates'!BB235","v":123.49667979592046},{"$f":"'Population 2016'!BC235*'Prevalence Rates'!BC235","v":0},233]
[null,"Male 25-29",{"$f":"'Population 2016'!C236*'Prevalence Rates'!C236","v":322.98857663012251},{"$f":"'Population 2016'!D236*'Prevalence Rates'!D236","v":404.99991779741936},{"$f":"'Population 2016'!E236*'Prevalence Rates'!E236","v":110.04222875100892},{"$f":"'Population 2016'!F236*'Prevalence Rates'!F236","v":19.12510653563637},{"$f":"'Population 2016'!G236*'Prevalence Rates'!G236","v":34.383565077756323},{"$f":"'Population 2016'!H236*'Prevalence Rates'!H236","v":73.917945758227162},{"$f":"'Population 2016'!I236*'Prevalence Rates'!I236","v":9.8832189602463352},{"$f":"'Population 2016'!J236*'Prevalence Rates'!J236","v":42.055376410181637},{"$f":"'Population 2016'!K236*'Prevalence Rates'!K236","v":9.8984992759364516},{"$f":"'Population 2016'!L236*'Prevalence Rates'!L236","v":13.380864034341309},{"$f":"'Population 2016'!M236*'Prevalence Rates'!M236","v":13.380864034341309},{"$f":"'Population 2016'!N236*'Prevalence Rates'!N236","v":72.946014479243075},{"$f":"'Population 2016'!O236*'Prevalence Rates'!O236","v":28.725485106917489},{"$f":"'Population 2016'!P236*'Prevalence Rates'!P236","v":70.102119302063159},{"$f":"'Population 2016'!Q236*'Prevalence Rates'!Q236","v":21.239626622514663},{"$f":"'Population 2016'!R236*'Prevalence Rates'!R236","v":53.362563016769549},{"$f":"'Population 2016'!S236*'Prevalence Rates'!S236","v":738.29813319772222},{"$f":"'Population 2016'!T236*'Prevalence Rates'!T236","v":506.41839703980872},{"$f":"'Population 2016'!U236*'Prevalence Rates'!U236","v":0},{"$f":"'Population 2016'!V236*'Prevalence Rates'!V236","v":42.012679948173258},{"$f":"'Population 2016'!W236*'Prevalence Rates'!W236","v":124.40902759914046},{"$f":"'Population 2016'!X236*'Prevalence Rates'!X236","v":124.40902759914046},{"$f":"'Population 2016'!Y236*'Prevalence Rates'!Y236","v":84.121004195401042},{"$f":"'Population 2016'!Z236*'Prevalence Rates'!Z236","v":205.84984226856565},{"$f":"'Population 2016'!AA236*'Prevalence Rates'!AA236","v":536.01779151651215},{"$f":"'Population 2016'!AB236*'Prevalence Rates'!AB236","v":441.74924803722041},{"$f":"'Population 2016'!AC236*'Prevalence Rates'!AC236","v":431.51816624370821},{"$f":"'Population 2016'!AD236*'Prevalence Rates'!AD236","v":73.209403232629001},{"$f":"'Population 2016'!AE236*'Prevalence Rates'!AE236","v":32.46587553641708},{"$f":"'Population 2016'!AF236*'Prevalence Rates'!AF236","v":16.861604262269413},{"$f":"'Population 2016'!AG236*'Prevalence Rates'!AG236","v":32.46587553641708},{"$f":"'Population 2016'!AH236*'Prevalence Rates'!AH236","v":106.2888342311682},{"$f":"'Population 2016'!AI236*'Prevalence Rates'!AI236","v":595.56179835776163},{"$f":"'Population 2016'!AJ236*'Prevalence Rates'!AJ236","v":19.817246632631818},{"$f":"'Population 2016'!AK236*'Prevalence Rates'!AK236","v":39.006528201321188},{"$f":"'Population 2016'!AL236*'Prevalence Rates'!AL236","v":18.116780355091002},{"$f":"'Population 2016'!AM236*'Prevalence Rates'!AM236","v":48.815417733524249},{"$f":"'Population 2016'!AN236*'Prevalence Rates'!AN236","v":2.4116599784976329},{"$f":"'Population 2016'!AO236*'Prevalence Rates'!AO236","v":2.4116599784976329},{"$f":"'Population 2016'!AP236*'Prevalence Rates'!AP236","v":36.200772148911902},{"$f":"'Population 2016'!AQ236*'Prevalence Rates'!AQ236","v":48.66018138179767},{"$f":"'Population 2016'!AR236*'Prevalence Rates'!AR236","v":2076.0778658976205},{"$f":"'Population 2016'!AS236*'Prevalence Rates'!AS236","v":9.8832189602463352},{"$f":"'Population 2016'!AT236*'Prevalence Rates'!AT236","v":0},{"$f":"'Population 2016'!AU236*'Prevalence Rates'!AU236","v":0},{"$f":"'Population 2016'!AV236*'Prevalence Rates'!AV236","v":25.623359544920916},{"$f":"'Population 2016'!AW236*'Prevalence Rates'!AW236","v":56.997580333241196},{"$f":"'Population 2016'!AX236*'Prevalence Rates'!AX236","v":26.226723863274621},{"$f":"'Population 2016'!AY236*'Prevalence Rates'!AY236","v":250.74063624355907},{"$f":"'Population 2016'!AZ236*'Prevalence Rates'!AZ236","v":123.5202167419781},{"$f":"'Population 2016'!BA236*'Prevalence Rates'!BA236","v":6.6426250835453198},{"$f":"'Population 2016'!BB236*'Prevalence Rates'!BB236","v":47.070885991547748},{"$f":"'Population 2016'!BC236*'Prevalence Rates'!BC236","v":0},234]
[null,"Male 30-34",{"$f":"'Population 2016'!C237*'Prevalence Rates'!C237","v":279.52745396179472},{"$f":"'Population 2016'!D237*'Prevalence Rates'!D237","v":392.09418453427344},{"$f":"'Population 2016'!E237*'Prevalence Rates'!E237","v":128.55894993507292},{"$f":"'Population 2016'!F237*'Prevalence Rates'!F237","v":21.544828043794741},{"$f":"'Population 2016'!G237*'Prevalence Rates'!G237","v":16.20374905963229},{"$f":"'Population 2016'!H237*'Prevalence Rates'!H237","v":66.786248380872678},{"$f":"'Population 2016'!I237*'Prevalence Rates'!I237","v":11.01443076894923},{"$f":"'Population 2016'!J237*'Prevalence Rates'!J237","v":34.74914576265008},{"$f":"'Population 2016'!K237*'Prevalence Rates'!K237","v":10.156720996178272},{"$f":"'Population 2016'!L237*'Prevalence Rates'!L237","v":15.482838844333621},{"$f":"'Population 2016'!M237*'Prevalence Rates'!M237","v":15.482838844333621},{"$f":"'Population 2016'!N237*'Prevalence Rates'!N237","v":50.284119314358229},{"$f":"'Population 2016'!O237*'Prevalence Rates'!O237","v":30.790716062316786},{"$f":"'Population 2016'!P237*'Prevalence Rates'!P237","v":59.194009374975536},{"$f":"'Population 2016'!Q237*'Prevalence Rates'!Q237","v":23.097319913113612},{"$f":"'Population 2016'!R237*'Prevalence Rates'!R237","v":43.478888301489626},{"$f":"'Population 2016'!S237*'Prevalence Rates'!S237","v":627.61810398965201},{"$f":"'Population 2016'!T237*'Prevalence Rates'!T237","v":402.32064657533482},{"$f":"'Population 2016'!U237*'Prevalence Rates'!U237","v":0},{"$f":"'Population 2016'!V237*'Prevalence Rates'!V237","v":49.983261823285687},{"$f":"'Population 2016'!W237*'Prevalence Rates'!W237","v":121.47367403630933},{"$f":"'Population 2016'!X237*'Prevalence Rates'!X237","v":121.47367403630933},{"$f":"'Population 2016'!Y237*'Prevalence Rates'!Y237","v":85.886166250648799},{"$f":"'Population 2016'!Z237*'Prevalence Rates'!Z237","v":160.70245712055441},{"$f":"'Population 2016'!AA237*'Prevalence Rates'!AA237","v":451.08082397601072},{"$f":"'Population 2016'!AB237*'Prevalence Rates'!AB237","v":419.72395380456447},{"$f":"'Population 2016'!AC237*'Prevalence Rates'!AC237","v":352.97538223197091},{"$f":"'Population 2016'!AD237*'Prevalence Rates'!AD237","v":53.164705633130751},{"$f":"'Population 2016'!AE237*'Prevalence Rates'!AE237","v":35.309119218832429},{"$f":"'Population 2016'!AF237*'Prevalence Rates'!AF237","v":16.09516770489353},{"$f":"'Population 2016'!AG237*'Prevalence Rates'!AG237","v":35.309119218832429},{"$f":"'Population 2016'!AH237*'Prevalence Rates'!AH237","v":99.398049223639788},{"$f":"'Population 2016'!AI237*'Prevalence Rates'!AI237","v":489.35060422970378},{"$f":"'Population 2016'!AJ237*'Prevalence Rates'!AJ237","v":20.133479291663178},{"$f":"'Population 2016'!AK237*'Prevalence Rates'!AK237","v":30.429462476380817},{"$f":"'Population 2016'!AL237*'Prevalence Rates'!AL237","v":16.834932688457204},{"$f":"'Population 2016'!AM237*'Prevalence Rates'!AM237","v":43.238303255624814},{"$f":"'Population 2016'!AN237*'Prevalence Rates'!AN237","v":2.1972902026311765},{"$f":"'Population 2016'!AO237*'Prevalence Rates'!AO237","v":2.1972902026311765},{"$f":"'Population 2016'!AP237*'Prevalence Rates'!AP237","v":38.505690225808912},{"$f":"'Population 2016'!AQ237*'Prevalence Rates'!AQ237","v":43.368225316403226},{"$f":"'Population 2016'!AR237*'Prevalence Rates'!AR237","v":1826.8031723143474},{"$f":"'Population 2016'!AS237*'Prevalence Rates'!AS237","v":11.01443076894923},{"$f":"'Population 2016'!AT237*'Prevalence Rates'!AT237","v":0},{"$f":"'Population 2016'!AU237*'Prevalence Rates'!AU237","v":0},{"$f":"'Population 2016'!AV237*'Prevalence Rates'!AV237","v":19.129284949513963},{"$f":"'Population 2016'!AW237*'Prevalence Rates'!AW237","v":55.578553436977934},{"$f":"'Population 2016'!AX237*'Prevalence Rates'!AX237","v":20.654097882207839},{"$f":"'Population 2016'!AY237*'Prevalence Rates'!AY237","v":237.54733995084129},{"$f":"'Population 2016'!AZ237*'Prevalence Rates'!AZ237","v":112.80784396258531},{"$f":"'Population 2016'!BA237*'Prevalence Rates'!BA237","v":6.0650055110631182},{"$f":"'Population 2016'!BB237*'Prevalence Rates'!BB237","v":43.067286940018775},{"$f":"'Population 2016'!BC237*'Prevalence Rates'!BC237","v":0},235]
[null,"Male 35-39",{"$f":"'Population 2016'!C238*'Prevalence Rates'!C238","v":236.2836369068086},{"$f":"'Population 2016'!D238*'Prevalence Rates'!D238","v":381.40943792571551},{"$f":"'Population 2016'!E238*'Prevalence Rates'!E238","v":148.7109140288984},{"$f":"'Population 2016'!F238*'Prevalence Rates'!F238","v":23.406152280839642},{"$f":"'Population 2016'!G238*'Prevalence Rates'!G238","v":14.622895492838895},{"$f":"'Population 2016'!H238*'Prevalence Rates'!H238","v":91.285726430137515},{"$f":"'Population 2016'!I238*'Prevalence Rates'!I238","v":16.07511517630428},{"$f":"'Population 2016'!J238*'Prevalence Rates'!J238","v":42.946380147685481},{"$f":"'Population 2016'!K238*'Prevalence Rates'!K238","v":12.911086012091024},{"$f":"'Population 2016'!L238*'Prevalence Rates'!L238","v":16.559460088476026},{"$f":"'Population 2016'!M238*'Prevalence Rates'!M238","v":16.559460088476026},{"$f":"'Population 2016'!N238*'Prevalence Rates'!N238","v":54.758141535751804},{"$f":"'Population 2016'!O238*'Prevalence Rates'!O238","v":36.047667585151359},{"$f":"'Population 2016'!P238*'Prevalence Rates'!P238","v":70.352305309565168},{"$f":"'Population 2016'!Q238*'Prevalence Rates'!Q238","v":27.865399358984252},{"$f":"'Population 2016'!R238*'Prevalence Rates'!R238","v":65.61275139627142},{"$f":"'Population 2016'!S238*'Prevalence Rates'!S238","v":637.61576868963709},{"$f":"'Population 2016'!T238*'Prevalence Rates'!T238","v":379.15603726867994},{"$f":"'Population 2016'!U238*'Prevalence Rates'!U238","v":0},{"$f":"'Population 2016'!V238*'Prevalence Rates'!V238","v":54.765610948353149},{"$f":"'Population 2016'!W238*'Prevalence Rates'!W238","v":132.15336465852471},{"$f":"'Population 2016'!X238*'Prevalence Rates'!X238","v":132.15336465852471},{"$f":"'Population 2016'!Y238*'Prevalence Rates'!Y238","v":98.628429836968564},{"$f":"'Population 2016'!Z238*'Prevalence Rates'!Z238","v":136.30681124714204},{"$f":"'Population 2016'!AA238*'Prevalence Rates'!AA238","v":510.67269931010344},{"$f":"'Population 2016'!AB238*'Prevalence Rates'!AB238","v":404.09309983300221},{"$f":"'Population 2016'!AC238*'Prevalence Rates'!AC238","v":380.13212595054148},{"$f":"'Population 2016'!AD238*'Prevalence Rates'!AD238","v":61.861020591682298},{"$f":"'Population 2016'!AE238*'Prevalence Rates'!AE238","v":46.748215894596491},{"$f":"'Population 2016'!AF238*'Prevalence Rates'!AF238","v":15.924848469921114},{"$f":"'Population 2016'!AG238*'Prevalence Rates'!AG238","v":46.748215894596491},{"$f":"'Population 2016'!AH238*'Prevalence Rates'!AH238","v":131.59569952430348},{"$f":"'Population 2016'!AI238*'Prevalence Rates'!AI238","v":484.4238713844972},{"$f":"'Population 2016'!AJ238*'Prevalence Rates'!AJ238","v":22.716046007085943},{"$f":"'Population 2016'!AK238*'Prevalence Rates'!AK238","v":25.731197174821119},{"$f":"'Population 2016'!AL238*'Prevalence Rates'!AL238","v":24.013279621606468},{"$f":"'Population 2016'!AM238*'Prevalence Rates'!AM238","v":57.400414177032367},{"$f":"'Population 2016'!AN238*'Prevalence Rates'!AN238","v":3.2691390819634578},{"$f":"'Population 2016'!AO238*'Prevalence Rates'!AO238","v":3.2691390819634578},{"$f":"'Population 2016'!AP238*'Prevalence Rates'!AP238","v":44.606943958771595},{"$f":"'Population 2016'!AQ238*'Prevalence Rates'!AQ238","v":51.757911761540761},{"$f":"'Population 2016'!AR238*'Prevalence Rates'!AR238","v":1932.847873107426},{"$f":"'Population 2016'!AS238*'Prevalence Rates'!AS238","v":16.07511517630428},{"$f":"'Population 2016'!AT238*'Prevalence Rates'!AT238","v":0},{"$f":"'Population 2016'!AU238*'Prevalence Rates'!AU238","v":0},{"$f":"'Population 2016'!AV238*'Prevalence Rates'!AV238","v":29.858625585403711},{"$f":"'Population 2016'!AW238*'Prevalence Rates'!AW238","v":73.434641881624032},{"$f":"'Population 2016'!AX238*'Prevalence Rates'!AX238","v":25.342180056756085},{"$f":"'Population 2016'!AY238*'Prevalence Rates'!AY238","v":261.14565857750659},{"$f":"'Population 2016'!AZ238*'Prevalence Rates'!AZ238","v":125.63354198417125},{"$f":"'Population 2016'!BA238*'Prevalence Rates'!BA238","v":6.2816128507439437},{"$f":"'Population 2016'!BB238*'Prevalence Rates'!BB238","v":54.105781467805791},{"$f":"'Population 2016'!BC238*'Prevalence Rates'!BC238","v":0},236]
[null,"Male 40-44",{"$f":"'Population 2016'!C239*'Prevalence Rates'!C239","v":214.33576995930309},{"$f":"'Population 2016'!D239*'Prevalence Rates'!D239","v":383.99058457834468},{"$f":"'Population 2016'!E239*'Prevalence Rates'!E239","v":165.35191540470657},{"$f":"'Population 2016'!F239*'Prevalence Rates'!F239","v":30.432651275684147},{"$f":"'Population 2016'!G239*'Prevalence Rates'!G239","v":16.944774169066694},{"$f":"'Population 2016'!H239*'Prevalence Rates'!H239","v":119.14129736286331},{"$f":"'Population 2016'!I239*'Prevalence Rates'!I239","v":22.326548855978167},{"$f":"'Population 2016'!J239*'Prevalence Rates'!J239","v":60.113052156926294},{"$f":"'Population 2016'!K239*'Prevalence Rates'!K239","v":18.247668230421983},{"$f":"'Population 2016'!L239*'Prevalence Rates'!L239","v":17.994955080665896},{"$f":"'Population 2016'!M239*'Prevalence Rates'!M239","v":17.994955080665896},{"$f":"'Population 2016'!N239*'Prevalence Rates'!N239","v":55.049925593668775},{"$f":"'Population 2016'!O239*'Prevalence Rates'!O239","v":45.247332750111866},{"$f":"'Population 2016'!P239*'Prevalence Rates'!P239","v":86.814544603197419},{"$f":"'Population 2016'!Q239*'Prevalence Rates'!Q239","v":37.835020018531949},{"$f":"'Population 2016'!R239*'Prevalence Rates'!R239","v":80.090246753864548},{"$f":"'Population 2016'!S239*'Prevalence Rates'!S239","v":695.19055540308057},{"$f":"'Population 2016'!T239*'Prevalence Rates'!T239","v":374.80909823829529},{"$f":"'Population 2016'!U239*'Prevalence Rates'!U239","v":0},{"$f":"'Population 2016'!V239*'Prevalence Rates'!V239","v":62.479077279107109},{"$f":"'Population 2016'!W239*'Prevalence Rates'!W239","v":161.13217430009155},{"$f":"'Population 2016'!X239*'Prevalence Rates'!X239","v":161.13217430009155},{"$f":"'Population 2016'!Y239*'Prevalence Rates'!Y239","v":122.84424678239877},{"$f":"'Population 2016'!Z239*'Prevalence Rates'!Z239","v":123.15169081413738},{"$f":"'Population 2016'!AA239*'Prevalence Rates'!AA239","v":574.9626892970914},{"$f":"'Population 2016'!AB239*'Prevalence Rates'!AB239","v":412.91505908210365},{"$f":"'Population 2016'!AC239*'Prevalence Rates'!AC239","v":419.43466101113324},{"$f":"'Population 2016'!AD239*'Prevalence Rates'!AD239","v":63.958004340552883},{"$f":"'Population 2016'!AE239*'Prevalence Rates'!AE239","v":45.888630595261617},{"$f":"'Population 2016'!AF239*'Prevalence Rates'!AF239","v":20.864106284121245},{"$f":"'Population 2016'!AG239*'Prevalence Rates'!AG239","v":45.888630595261617},{"$f":"'Population 2016'!AH239*'Prevalence Rates'!AH239","v":156.53668242765849},{"$f":"'Population 2016'!AI239*'Prevalence Rates'!AI239","v":507.91178378606338},{"$f":"'Population 2016'!AJ239*'Prevalence Rates'!AJ239","v":24.982380063477347},{"$f":"'Population 2016'!AK239*'Prevalence Rates'!AK239","v":31.522082313952836},{"$f":"'Population 2016'!AL239*'Prevalence Rates'!AL239","v":30.080691910339777},{"$f":"'Population 2016'!AM239*'Prevalence Rates'!AM239","v":67.364023188111119},{"$f":"'Population 2016'!AN239*'Prevalence Rates'!AN239","v":2.4652524224642467},{"$f":"'Population 2016'!AO239*'Prevalence Rates'!AO239","v":2.4652524224642467},{"$f":"'Population 2016'!AP239*'Prevalence Rates'!AP239","v":48.538863031125324},{"$f":"'Population 2016'!AQ239*'Prevalence Rates'!AQ239","v":60.663886603302132},{"$f":"'Population 2016'!AR239*'Prevalence Rates'!AR239","v":2126.5263157894738},{"$f":"'Population 2016'!AS239*'Prevalence Rates'!AS239","v":22.326548855978167},{"$f":"'Population 2016'!AT239*'Prevalence Rates'!AT239","v":0},{"$f":"'Population 2016'!AU239*'Prevalence Rates'!AU239","v":0},{"$f":"'Population 2016'!AV239*'Prevalence Rates'!AV239","v":41.364431662048638},{"$f":"'Population 2016'!AW239*'Prevalence Rates'!AW239","v":88.216172051033055},{"$f":"'Population 2016'!AX239*'Prevalence Rates'!AX239","v":35.381752260741479},{"$f":"'Population 2016'!AY239*'Prevalence Rates'!AY239","v":307.11817555625515},{"$f":"'Population 2016'!AZ239*'Prevalence Rates'!AZ239","v":141.08267823744521},{"$f":"'Population 2016'!BA239*'Prevalence Rates'!BA239","v":6.7870299766658704},{"$f":"'Population 2016'!BB239*'Prevalence Rates'!BB239","v":70.234566218251075},{"$f":"'Population 2016'!BC239*'Prevalence Rates'!BC239","v":0},237]
[null,"Male 45-49",{"$f":"'Population 2016'!C240*'Prevalence Rates'!C240","v":231.32973717705093},{"$f":"'Population 2016'!D240*'Prevalence Rates'!D240","v":421.87221724695371},{"$f":"'Population 2016'!E240*'Prevalence Rates'!E240","v":184.4203311062235},{"$f":"'Population 2016'!F240*'Prevalence Rates'!F240","v":35.944850152655114},{"$f":"'Population 2016'!G240*'Prevalence Rates'!G240","v":15.327703886033126},{"$f":"'Population 2016'!H240*'Prevalence Rates'!H240","v":157.35963348250237},{"$f":"'Population 2016'!I240*'Prevalence Rates'!I240","v":31.912842856904462},{"$f":"'Population 2016'!J240*'Prevalence Rates'!J240","v":82.42627648572639},{"$f":"'Population 2016'!K240*'Prevalence Rates'!K240","v":27.718865401264253},{"$f":"'Population 2016'!L240*'Prevalence Rates'!L240","v":25.999166832198103},{"$f":"'Population 2016'!M240*'Prevalence Rates'!M240","v":25.999166832198103},{"$f":"'Population 2016'!N240*'Prevalence Rates'!N240","v":81.477839751889391},{"$f":"'Population 2016'!O240*'Prevalence Rates'!O240","v":58.352506581710799},{"$f":"'Population 2016'!P240*'Prevalence Rates'!P240","v":109.69135705622254},{"$f":"'Population 2016'!Q240*'Prevalence Rates'!Q240","v":44.85169552039298},{"$f":"'Population 2016'!R240*'Prevalence Rates'!R240","v":98.744078709316696},{"$f":"'Population 2016'!S240*'Prevalence Rates'!S240","v":813.67838748746453},{"$f":"'Population 2016'!T240*'Prevalence Rates'!T240","v":420.09541044085603},{"$f":"'Population 2016'!U240*'Prevalence Rates'!U240","v":0},{"$f":"'Population 2016'!V240*'Prevalence Rates'!V240","v":72.512216092749554},{"$f":"'Population 2016'!W240*'Prevalence Rates'!W240","v":189.43187739728671},{"$f":"'Population 2016'!X240*'Prevalence Rates'!X240","v":189.43187739728671},{"$f":"'Population 2016'!Y240*'Prevalence Rates'!Y240","v":154.32764772142812},{"$f":"'Population 2016'!Z240*'Prevalence Rates'!Z240","v":136.44974223958738},{"$f":"'Population 2016'!AA240*'Prevalence Rates'!AA240","v":711.63898055310494},{"$f":"'Population 2016'!AB240*'Prevalence Rates'!AB240","v":458.36851205119785},{"$f":"'Population 2016'!AC240*'Prevalence Rates'!AC240","v":517.38540083189389},{"$f":"'Population 2016'!AD240*'Prevalence Rates'!AD240","v":75.554280322377167},{"$f":"'Population 2016'!AE240*'Prevalence Rates'!AE240","v":60.485208310690822},{"$f":"'Population 2016'!AF240*'Prevalence Rates'!AF240","v":26.33109885222504},{"$f":"'Population 2016'!AG240*'Prevalence Rates'!AG240","v":60.485208310690822},{"$f":"'Population 2016'!AH240*'Prevalence Rates'!AH240","v":195.4652252876169},{"$f":"'Population 2016'!AI240*'Prevalence Rates'!AI240","v":588.15018751990601},{"$f":"'Population 2016'!AJ240*'Prevalence Rates'!AJ240","v":32.705508187335049},{"$f":"'Population 2016'!AK240*'Prevalence Rates'!AK240","v":38.985432648610285},{"$f":"'Population 2016'!AL240*'Prevalence Rates'!AL240","v":43.245780291204845},{"$f":"'Population 2016'!AM240*'Prevalence Rates'!AM240","v":83.469217583991551},{"$f":"'Population 2016'!AN240*'Prevalence Rates'!AN240","v":3.8989701829336414},{"$f":"'Population 2016'!AO240*'Prevalence Rates'!AO240","v":3.8989701829336414},{"$f":"'Population 2016'!AP240*'Prevalence Rates'!AP240","v":63.173097346123946},{"$f":"'Population 2016'!AQ240*'Prevalence Rates'!AQ240","v":83.338769996100126},{"$f":"'Population 2016'!AR240*'Prevalence Rates'!AR240","v":2550.259179265659},{"$f":"'Population 2016'!AS240*'Prevalence Rates'!AS240","v":31.912842856904462},{"$f":"'Population 2016'!AT240*'Prevalence Rates'!AT240","v":0},{"$f":"'Population 2016'!AU240*'Prevalence Rates'!AU240","v":0},{"$f":"'Population 2016'!AV240*'Prevalence Rates'!AV240","v":52.789075963007789},{"$f":"'Population 2016'!AW240*'Prevalence Rates'!AW240","v":110.76510671410993},{"$f":"'Population 2016'!AX240*'Prevalence Rates'!AX240","v":47.128772392882063},{"$f":"'Population 2016'!AY240*'Prevalence Rates'!AY240","v":379.14915969972253},{"$f":"'Population 2016'!AZ240*'Prevalence Rates'!AZ240","v":185.24744107157184},{"$f":"'Population 2016'!BA240*'Prevalence Rates'!BA240","v":12.74598187870394},{"$f":"'Population 2016'!BB240*'Prevalence Rates'!BB240","v":90.196037793778217},{"$f":"'Population 2016'!BC240*'Prevalence Rates'!BC240","v":0},238]
[null,"Male 50-54",{"$f":"'Population 2016'!C241*'Prevalence Rates'!C241","v":236.28957073796593},{"$f":"'Population 2016'!D241*'Prevalence Rates'!D241","v":419.81712348048961},{"$f":"'Population 2016'!E241*'Prevalence Rates'!E241","v":179.48050080873537},{"$f":"'Population 2016'!F241*'Prevalence Rates'!F241","v":42.367129473558869},{"$f":"'Population 2016'!G241*'Prevalence Rates'!G241","v":16.807620123305288},{"$f":"'Population 2016'!H241*'Prevalence Rates'!H241","v":171.45288074819143},{"$f":"'Population 2016'!I241*'Prevalence Rates'!I241","v":26.371091702112668},{"$f":"'Population 2016'!J241*'Prevalence Rates'!J241","v":79.439356674755587},{"$f":"'Population 2016'!K241*'Prevalence Rates'!K241","v":26.613794355366675},{"$f":"'Population 2016'!L241*'Prevalence Rates'!L241","v":30.277510741293991},{"$f":"'Population 2016'!M241*'Prevalence Rates'!M241","v":30.277510741293991},{"$f":"'Population 2016'!N241*'Prevalence Rates'!N241","v":80.437254314445084},{"$f":"'Population 2016'!O241*'Prevalence Rates'!O241","v":53.330776239050664},{"$f":"'Population 2016'!P241*'Prevalence Rates'!P241","v":122.43247124820935},{"$f":"'Population 2016'!Q241*'Prevalence Rates'!Q241","v":51.74176396074877},{"$f":"'Population 2016'!R241*'Prevalence Rates'!R241","v":96.460404691906646},{"$f":"'Population 2016'!S241*'Prevalence Rates'!S241","v":793.29238396550829},{"$f":"'Population 2016'!T241*'Prevalence Rates'!T241","v":416.36258887685136},{"$f":"'Population 2016'!U241*'Prevalence Rates'!U241","v":0},{"$f":"'Population 2016'!V241*'Prevalence Rates'!V241","v":70.421575568072413},{"$f":"'Population 2016'!W241*'Prevalence Rates'!W241","v":177.47127561453033},{"$f":"'Population 2016'!X241*'Prevalence Rates'!X241","v":177.47127561453033},{"$f":"'Population 2016'!Y241*'Prevalence Rates'!Y241","v":149.31126146662069},{"$f":"'Population 2016'!Z241*'Prevalence Rates'!Z241","v":134.20311210101792},{"$f":"'Population 2016'!AA241*'Prevalence Rates'!AA241","v":751.85055120145887},{"$f":"'Population 2016'!AB241*'Prevalence Rates'!AB241","v":451.59053654131969},{"$f":"'Population 2016'!AC241*'Prevalence Rates'!AC241","v":548.83902128432237},{"$f":"'Population 2016'!AD241*'Prevalence Rates'!AD241","v":77.203937097974929},{"$f":"'Population 2016'!AE241*'Prevalence Rates'!AE241","v":60.272979509600681},{"$f":"'Population 2016'!AF241*'Prevalence Rates'!AF241","v":38.995537400527049},{"$f":"'Population 2016'!AG241*'Prevalence Rates'!AG241","v":60.272979509600681},{"$f":"'Population 2016'!AH241*'Prevalence Rates'!AH241","v":204.33814606168764},{"$f":"'Population 2016'!AI241*'Prevalence Rates'!AI241","v":584.59529893339561},{"$f":"'Population 2016'!AJ241*'Prevalence Rates'!AJ241","v":30.168011862455607},{"$f":"'Population 2016'!AK241*'Prevalence Rates'!AK241","v":34.60176331031078},{"$f":"'Population 2016'!AL241*'Prevalence Rates'!AL241","v":48.000073261908128},{"$f":"'Population 2016'!AM241*'Prevalence Rates'!AM241","v":90.17357241001497},{"$f":"'Population 2016'!AN241*'Prevalence Rates'!AN241","v":3.612281198894403},{"$f":"'Population 2016'!AO241*'Prevalence Rates'!AO241","v":3.612281198894403},{"$f":"'Population 2016'!AP241*'Prevalence Rates'!AP241","v":79.057033418226297},{"$f":"'Population 2016'!AQ241*'Prevalence Rates'!AQ241","v":94.662347692339083},{"$f":"'Population 2016'!AR241*'Prevalence Rates'!AR241","v":2594.6436285097193},{"$f":"'Population 2016'!AS241*'Prevalence Rates'!AS241","v":26.371091702112668},{"$f":"'Population 2016'!AT241*'Prevalence Rates'!AT241","v":0},{"$f":"'Population 2016'!AU241*'Prevalence Rates'!AU241","v":0},{"$f":"'Population 2016'!AV241*'Prevalence Rates'!AV241","v":64.494808115033834},{"$f":"'Population 2016'!AW241*'Prevalence Rates'!AW241","v":113.04240188356052},{"$f":"'Population 2016'!AX241*'Prevalence Rates'!AX241","v":45.472640832891223},{"$f":"'Population 2016'!AY241*'Prevalence Rates'!AY241","v":390.71790205095186},{"$f":"'Population 2016'!AZ241*'Prevalence Rates'!AZ241","v":211.59998108932911},{"$f":"'Population 2016'!BA241*'Prevalence Rates'!BA241","v":13.595714003950869},{"$f":"'Population 2016'!BB241*'Prevalence Rates'!BB241","v":86.769322653716088},{"$f":"'Population 2016'!BC241*'Prevalence Rates'!BC241","v":0},239]
[null,"Male 55-59",{"$f":"'Population 2016'!C242*'Prevalence Rates'!C242","v":1021.7337793818992},{"$f":"'Population 2016'!D242*'Prevalence Rates'!D242","v":1733.3077409183745},{"$f":"'Population 2016'!E242*'Prevalence Rates'!E242","v":710.3756192572738},{"$f":"'Population 2016'!F242*'Prevalence Rates'!F242","v":168.6177503318668},{"$f":"'Population 2016'!G242*'Prevalence Rates'!G242","v":66.886395755581987},{"$f":"'Population 2016'!H242*'Prevalence Rates'!H242","v":801.38119227584934},{"$f":"'Population 2016'!I242*'Prevalence Rates'!I242","v":102.30083800597096},{"$f":"'Population 2016'!J242*'Prevalence Rates'!J242","v":311.45930467368714},{"$f":"'Population 2016'!K242*'Prevalence Rates'!K242","v":102.12968515803472},{"$f":"'Population 2016'!L242*'Prevalence Rates'!L242","v":124.94310213549115},{"$f":"'Population 2016'!M242*'Prevalence Rates'!M242","v":124.94310213549115},{"$f":"'Population 2016'!N242*'Prevalence Rates'!N242","v":390.26656784432078},{"$f":"'Population 2016'!O242*'Prevalence Rates'!O242","v":250.03836217642223},{"$f":"'Population 2016'!P242*'Prevalence Rates'!P242","v":513.64433997383048},{"$f":"'Population 2016'!Q242*'Prevalence Rates'!Q242","v":181.093406430068},{"$f":"'Population 2016'!R242*'Prevalence Rates'!R242","v":447.31654621779671},{"$f":"'Population 2016'!S242*'Prevalence Rates'!S242","v":3314.1092643571683},{"$f":"'Population 2016'!T242*'Prevalence Rates'!T242","v":1767.0430163117367},{"$f":"'Population 2016'!U242*'Prevalence Rates'!U242","v":0},{"$f":"'Population 2016'!V242*'Prevalence Rates'!V242","v":268.36608436427923},{"$f":"'Population 2016'!W242*'Prevalence Rates'!W242","v":783.78298671093251},{"$f":"'Population 2016'!X242*'Prevalence Rates'!X242","v":783.78298671093251},{"$f":"'Population 2016'!Y242*'Prevalence Rates'!Y242","v":577.10784016277148},{"$f":"'Population 2016'!Z242*'Prevalence Rates'!Z242","v":541.85908563566977},{"$f":"'Population 2016'!AA242*'Prevalence Rates'!AA242","v":3193.5456378909603},{"$f":"'Population 2016'!AB242*'Prevalence Rates'!AB242","v":1853.3725979601491},{"$f":"'Population 2016'!AC242*'Prevalence Rates'!AC242","v":2345.0155664344497},{"$f":"'Population 2016'!AD242*'Prevalence Rates'!AD242","v":317.92616007023935},{"$f":"'Population 2016'!AE242*'Prevalence Rates'!AE242","v":251.31960172290613},{"$f":"'Population 2016'!AF242*'Prevalence Rates'!AF242","v":160.16237498312046},{"$f":"'Population 2016'!AG242*'Prevalence Rates'!AG242","v":251.31960172290613},{"$f":"'Population 2016'!AH242*'Prevalence Rates'!AH242","v":854.45380406225252},{"$f":"'Population 2016'!AI242*'Prevalence Rates'!AI242","v":2410.9517029160984},{"$f":"'Population 2016'!AJ242*'Prevalence Rates'!AJ242","v":121.44083864766118},{"$f":"'Population 2016'!AK242*'Prevalence Rates'!AK242","v":132.60180631478187},{"$f":"'Population 2016'!AL242*'Prevalence Rates'!AL242","v":195.2210183438016},{"$f":"'Population 2016'!AM242*'Prevalence Rates'!AM242","v":359.73404246857859},{"$f":"'Population 2016'!AN242*'Prevalence Rates'!AN242","v":19.261489038602434},{"$f":"'Population 2016'!AO242*'Prevalence Rates'!AO242","v":19.261489038602434},{"$f":"'Population 2016'!AP242*'Prevalence Rates'!AP242","v":298.38537365842484},{"$f":"'Population 2016'!AQ242*'Prevalence Rates'!AQ242","v":412.73848323250434},{"$f":"'Population 2016'!AR242*'Prevalence Rates'!AR242","v":10860.005625879045},{"$f":"'Population 2016'!AS242*'Prevalence Rates'!AS242","v":102.30083800597096},{"$f":"'Population 2016'!AT242*'Prevalence Rates'!AT242","v":0},{"$f":"'Population 2016'!AU242*'Prevalence Rates'!AU242","v":0},{"$f":"'Population 2016'!AV242*'Prevalence Rates'!AV242","v":324.94098428136692},{"$f":"'Population 2016'!AW242*'Prevalence Rates'!AW242","v":489.04869278578985},{"$f":"'Population 2016'!AX242*'Prevalence Rates'!AX242","v":179.42377805589365},{"$f":"'Population 2016'!AY242*'Prevalence Rates'!AY242","v":1672.105052467205},{"$f":"'Population 2016'!AZ242*'Prevalence Rates'!AZ242","v":877.22427498403408},{"$f":"'Population 2016'!BA242*'Prevalence Rates'!BA242","v":50.122700483693471},{"$f":"'Population 2016'!BB242*'Prevalence Rates'!BB242","v":341.00450464611663},{"$f":"'Population 2016'!BC242*'Prevalence Rates'!BC242","v":0},240]
[null,"Male 60-64",{"$f":"'Population 2016'!C243*'Prevalence Rates'!C243","v":905.47367045397641},{"$f":"'Population 2016'!D243*'Prevalence Rates'!D243","v":1562.1934728890926},{"$f":"'Population 2016'!E243*'Prevalence Rates'!E243","v":650.46727536657704},{"$f":"'Population 2016'!F243*'Prevalence Rates'!F243","v":156.47543950633835},{"$f":"'Population 2016'!G243*'Prevalence Rates'!G243","v":55.211679405516769},{"$f":"'Population 2016'!H243*'Prevalence Rates'!H243","v":752.22430470841323},{"$f":"'Population 2016'!I243*'Prevalence Rates'!I243","v":107.87022460228457},{"$f":"'Population 2016'!J243*'Prevalence Rates'!J243","v":295.95945195283696},{"$f":"'Population 2016'!K243*'Prevalence Rates'!K243","v":113.99537471996406},{"$f":"'Population 2016'!L243*'Prevalence Rates'!L243","v":118.88525475922491},{"$f":"'Population 2016'!M243*'Prevalence Rates'!M243","v":118.88525475922491},{"$f":"'Population 2016'!N243*'Prevalence Rates'!N243","v":317.48065580464379},{"$f":"'Population 2016'!O243*'Prevalence Rates'!O243","v":216.76153763538267},{"$f":"'Population 2016'!P243*'Prevalence Rates'!P243","v":454.02710722866647},{"$f":"'Population 2016'!Q243*'Prevalence Rates'!Q243","v":153.04526940722917},{"$f":"'Population 2016'!R243*'Prevalence Rates'!R243","v":378.55133661026002},{"$f":"'Population 2016'!S243*'Prevalence Rates'!S243","v":2824.4920385990022},{"$f":"'Population 2016'!T243*'Prevalence Rates'!T243","v":1520.0793947491243},{"$f":"'Population 2016'!U243*'Prevalence Rates'!U243","v":0},{"$f":"'Population 2016'!V243*'Prevalence Rates'!V243","v":218.49050076072922},{"$f":"'Population 2016'!W243*'Prevalence Rates'!W243","v":674.6252933871267},{"$f":"'Population 2016'!X243*'Prevalence Rates'!X243","v":674.6252933871267},{"$f":"'Population 2016'!Y243*'Prevalence Rates'!Y243","v":509.21280014362191},{"$f":"'Population 2016'!Z243*'Prevalence Rates'!Z243","v":482.26066768696535},{"$f":"'Population 2016'!AA243*'Prevalence Rates'!AA243","v":2765.9337422236777},{"$f":"'Population 2016'!AB243*'Prevalence Rates'!AB243","v":1677.3051161784676},{"$f":"'Population 2016'!AC243*'Prevalence Rates'!AC243","v":2024.5577049300689},{"$f":"'Population 2016'!AD243*'Prevalence Rates'!AD243","v":285.43513893603154},{"$f":"'Population 2016'!AE243*'Prevalence Rates'!AE243","v":232.11253371558558},{"$f":"'Population 2016'!AF243*'Prevalence Rates'!AF243","v":132.90961484201358},{"$f":"'Population 2016'!AG243*'Prevalence Rates'!AG243","v":232.11253371558558},{"$f":"'Population 2016'!AH243*'Prevalence Rates'!AH243","v":746.37110221319733},{"$f":"'Population 2016'!AI243*'Prevalence Rates'!AI243","v":2028.7758070982097},{"$f":"'Population 2016'!AJ243*'Prevalence Rates'!AJ243","v":102.23865475892843},{"$f":"'Population 2016'!AK243*'Prevalence Rates'!AK243","v":125.87757678563472},{"$f":"'Population 2016'!AL243*'Prevalence Rates'!AL243","v":199.42836787707319},{"$f":"'Population 2016'!AM243*'Prevalence Rates'!AM243","v":298.33860983457589},{"$f":"'Population 2016'!AN243*'Prevalence Rates'!AN243","v":14.248224768281252},{"$f":"'Population 2016'!AO243*'Prevalence Rates'!AO243","v":14.248224768281252},{"$f":"'Population 2016'!AP243*'Prevalence Rates'!AP243","v":299.38666685862091},{"$f":"'Population 2016'!AQ243*'Prevalence Rates'!AQ243","v":336.79968608657015},{"$f":"'Population 2016'!AR243*'Prevalence Rates'!AR243","v":9541.7890295358648},{"$f":"'Population 2016'!AS243*'Prevalence Rates'!AS243","v":107.87022460228457},{"$f":"'Population 2016'!AT243*'Prevalence Rates'!AT243","v":0},{"$f":"'Population 2016'!AU243*'Prevalence Rates'!AU243","v":0},{"$f":"'Population 2016'!AV243*'Prevalence Rates'!AV243","v":305.13174780646006},{"$f":"'Population 2016'!AW243*'Prevalence Rates'!AW243","v":442.18152639381833},{"$f":"'Population 2016'!AX243*'Prevalence Rates'!AX243","v":161.78624647515653},{"$f":"'Population 2016'!AY243*'Prevalence Rates'!AY243","v":1485.608754064275},{"$f":"'Population 2016'!AZ243*'Prevalence Rates'!AZ243","v":804.75012220416704},{"$f":"'Population 2016'!BA243*'Prevalence Rates'!BA243","v":49.411740193144631},{"$f":"'Population 2016'!BB243*'Prevalence Rates'!BB243","v":253.14867851103128},{"$f":"'Population 2016'!BC243*'Prevalence Rates'!BC243","v":0},241]
[null,"Male 65-69",{"$f":"'Population 2016'!C244*'Prevalence Rates'!C244","v":0},{"$f":"'Population 2016'!D244*'Prevalence Rates'!D244","v":0},{"$f":"'Population 2016'!E244*'Prevalence Rates'!E244","v":0},{"$f":"'Population 2016'!F244*'Prevalence Rates'!F244","v":0},{"$f":"'Population 2016'!G244*'Prevalence Rates'!G244","v":0},{"$f":"'Population 2016'!H244*'Prevalence Rates'!H244","v":0},{"$f":"'Population 2016'!I244*'Prevalence Rates'!I244","v":0},{"$f":"'Population 2016'!J244*'Prevalence Rates'!J244","v":0},{"$f":"'Population 2016'!K244*'Prevalence Rates'!K244","v":0},{"$f":"'Population 2016'!L244*'Prevalence Rates'!L244","v":0},{"$f":"'Population 2016'!M244*'Prevalence Rates'!M244","v":0},{"$f":"'Population 2016'!N244*'Prevalence Rates'!N244","v":0},{"$f":"'Population 2016'!O244*'Prevalence Rates'!O244","v":0},{"$f":"'Population 2016'!P244*'Prevalence Rates'!P244","v":0},{"$f":"'Population 2016'!Q244*'Prevalence Rates'!Q244","v":0},{"$f":"'Population 2016'!R244*'Prevalence Rates'!R244","v":0},{"$f":"'Population 2016'!S244*'Prevalence Rates'!S244","v":0},{"$f":"'Population 2016'!T244*'Prevalence Rates'!T244","v":0},{"$f":"'Population 2016'!U244*'Prevalence Rates'!U244","v":0},{"$f":"'Population 2016'!V244*'Prevalence Rates'!V244","v":0},{"$f":"'Population 2016'!W244*'Prevalence Rates'!W244","v":0},{"$f":"'Population 2016'!X244*'Prevalence Rates'!X244","v":0},{"$f":"'Population 2016'!Y244*'Prevalence Rates'!Y244","v":0},{"$f":"'Population 2016'!Z244*'Prevalence Rates'!Z244","v":0},{"$f":"'Population 2016'!AA244*'Prevalence Rates'!AA244","v":0},{"$f":"'Population 2016'!AB244*'Prevalence Rates'!AB244","v":0},{"$f":"'Population 2016'!AC244*'Prevalence Rates'!AC244","v":0},{"$f":"'Population 2016'!AD244*'Prevalence Rates'!AD244","v":0},{"$f":"'Population 2016'!AE244*'Prevalence Rates'!AE244","v":0},{"$f":"'Population 2016'!AF244*'Prevalence Rates'!AF244","v":0},{"$f":"'Population 2016'!AG244*'Prevalence Rates'!AG244","v":0},{"$f":"'Population 2016'!AH244*'Prevalence Rates'!AH244","v":0},{"$f":"'Population 2016'!AI244*'Prevalence Rates'!AI244","v":0},{"$f":"'Population 2016'!AJ244*'Prevalence Rates'!AJ244","v":0},{"$f":"'Population 2016'!AK244*'Prevalence Rates'!AK244","v":0},{"$f":"'Population 2016'!AL244*'Prevalence Rates'!AL244","v":0},{"$f":"'Population 2016'!AM244*'Prevalence Rates'!AM244","v":0},{"$f":"'Population 2016'!AN244*'Prevalence Rates'!AN244","v":0},{"$f":"'Population 2016'!AO244*'Prevalence Rates'!AO244","v":0},{"$f":"'Population 2016'!AP244*'Prevalence Rates'!AP244","v":0},{"$f":"'Population 2016'!AQ244*'Prevalence Rates'!AQ244","v":0},{"$f":"'Population 2016'!AR244*'Prevalence Rates'!AR244","v":0},{"$f":"'Population 2016'!AS244*'Prevalence Rates'!AS244","v":0},{"$f":"'Population 2016'!AT244*'Prevalence Rates'!AT244","v":0},{"$f":"'Population 2016'!AU244*'Prevalence Rates'!AU244","v":0},{"$f":"'Population 2016'!AV244*'Prevalence Rates'!AV244","v":0},{"$f":"'Population 2016'!AW244*'Prevalence Rates'!AW244","v":0},{"$f":"'Population 2016'!AX244*'Prevalence Rates'!AX244","v":0},{"$f":"'Population 2016'!AY244*'Prevalence Rates'!AY244","v":0},{"$f":"'Population 2016'!AZ244*'Prevalence Rates'!AZ244","v":0},{"$f":"'Population 2016'!BA244*'Prevalence Rates'!BA244","v":0},{"$f":"'Population 2016'!BB244*'Prevalence Rates'!BB244","v":0},{"$f":"'Population 2016'!BC244*'Prevalence Rates'!BC244","v":0},242]
[null,"Male 70-74",{"$f":"'Population 2016'!C245*'Prevalence Rates'!C245","v":0},{"$f":"'Population 2016'!D245*'Prevalence Rates'!D245","v":0},{"$f":"'Population 2016'!E245*'Prevalence Rates'!E245","v":0},{"$f":"'Population 2016'!F245*'Prevalence Rates'!F245","v":0},{"$f":"'Population 2016'!G245*'Prevalence Rates'!G245","v":0},{"$f":"'Population 2016'!H245*'Prevalence Rates'!H245","v":0},{"$f":"'Population 2016'!I245*'Prevalence Rates'!I245","v":0},{"$f":"'Population 2016'!J245*'Prevalence Rates'!J245","v":0},{"$f":"'Population 2016'!K245*'Prevalence Rates'!K245","v":0},{"$f":"'Population 2016'!L245*'Prevalence Rates'!L245","v":0},{"$f":"'Population 2016'!M245*'Prevalence Rates'!M245","v":0},{"$f":"'Population 2016'!N245*'Prevalence Rates'!N245","v":0},{"$f":"'Population 2016'!O245*'Prevalence Rates'!O245","v":0},{"$f":"'Population 2016'!P245*'Prevalence Rates'!P245","v":0},{"$f":"'Population 2016'!Q245*'Prevalence Rates'!Q245","v":0},{"$f":"'Population 2016'!R245*'Prevalence Rates'!R245","v":0},{"$f":"'Population 2016'!S245*'Prevalence Rates'!S245","v":0},{"$f":"'Population 2016'!T245*'Prevalence Rates'!T245","v":0},{"$f":"'Population 2016'!U245*'Prevalence Rates'!U245","v":0},{"$f":"'Population 2016'!V245*'Prevalence Rates'!V245","v":0},{"$f":"'Population 2016'!W245*'Prevalence Rates'!W245","v":0},{"$f":"'Population 2016'!X245*'Prevalence Rates'!X245","v":0},{"$f":"'Population 2016'!Y245*'Prevalence Rates'!Y245","v":0},{"$f":"'Population 2016'!Z245*'Prevalence Rates'!Z245","v":0},{"$f":"'Population 2016'!AA245*'Prevalence Rates'!AA245","v":0},{"$f":"'Population 2016'!AB245*'Prevalence Rates'!AB245","v":0},{"$f":"'Population 2016'!AC245*'Prevalence Rates'!AC245","v":0},{"$f":"'Population 2016'!AD245*'Prevalence Rates'!AD245","v":0},{"$f":"'Population 2016'!AE245*'Prevalence Rates'!AE245","v":0},{"$f":"'Population 2016'!AF245*'Prevalence Rates'!AF245","v":0},{"$f":"'Population 2016'!AG245*'Prevalence Rates'!AG245","v":0},{"$f":"'Population 2016'!AH245*'Prevalence Rates'!AH245","v":0},{"$f":"'Population 2016'!AI245*'Prevalence Rates'!AI245","v":0},{"$f":"'Population 2016'!AJ245*'Prevalence Rates'!AJ245","v":0},{"$f":"'Population 2016'!AK245*'Prevalence Rates'!AK245","v":0},{"$f":"'Population 2016'!AL245*'Prevalence Rates'!AL245","v":0},{"$f":"'Population 2016'!AM245*'Prevalence Rates'!AM245","v":0},{"$f":"'Population 2016'!AN245*'Prevalence Rates'!AN245","v":0},{"$f":"'Population 2016'!AO245*'Prevalence Rates'!AO245","v":0},{"$f":"'Population 2016'!AP245*'Prevalence Rates'!AP245","v":0},{"$f":"'Population 2016'!AQ245*'Prevalence Rates'!AQ245","v":0},{"$f":"'Population 2016'!AR245*'Prevalence Rates'!AR245","v":0},{"$f":"'Population 2016'!AS245*'Prevalence Rates'!AS245","v":0},{"$f":"'Population 2016'!AT245*'Prevalence Rates'!AT245","v":0},{"$f":"'Population 2016'!AU245*'Prevalence Rates'!AU245","v":0},{"$f":"'Population 2016'!AV245*'Prevalence Rates'!AV245","v":0},{"$f":"'Population 2016'!AW245*'Prevalence Rates'!AW245","v":0},{"$f":"'Population 2016'!AX245*'Prevalence Rates'!AX245","v":0},{"$f":"'Population 2016'!AY245*'Prevalence Rates'!AY245","v":0},{"$f":"'Population 2016'!AZ245*'Prevalence Rates'!AZ245","v":0},{"$f":"'Population 2016'!BA245*'Prevalence Rates'!BA245","v":0},{"$f":"'Population 2016'!BB245*'Prevalence Rates'!BB245","v":0},{"$f":"'Population 2016'!BC245*'Prevalence Rates'!BC245","v":0},243]
[null,"Male 75-79",{"$f":"'Population 2016'!C246*'Prevalence Rates'!C246","v":0},{"$f":"'Population 2016'!D246*'Prevalence Rates'!D246","v":0},{"$f":"'Population 2016'!E246*'Prevalence Rates'!E246","v":0},{"$f":"'Population 2016'!F246*'Prevalence Rates'!F246","v":0},{"$f":"'Population 2016'!G246*'Prevalence Rates'!G246","v":0},{"$f":"'Population 2016'!H246*'Prevalence Rates'!H246","v":0},{"$f":"'Population 2016'!I246*'Prevalence Rates'!I246","v":0},{"$f":"'Population 2016'!J246*'Prevalence Rates'!J246","v":0},{"$f":"'Population 2016'!K246*'Prevalence Rates'!K246","v":0},{"$f":"'Population 2016'!L246*'Prevalence Rates'!L246","v":0},{"$f":"'Population 2016'!M246*'Prevalence Rates'!M246","v":0},{"$f":"'Population 2016'!N246*'Prevalence Rates'!N246","v":0},{"$f":"'Population 2016'!O246*'Prevalence Rates'!O246","v":0},{"$f":"'Population 2016'!P246*'Prevalence Rates'!P246","v":0},{"$f":"'Population 2016'!Q246*'Prevalence Rates'!Q246","v":0},{"$f":"'Population 2016'!R246*'Prevalence Rates'!R246","v":0},{"$f":"'Population 2016'!S246*'Prevalence Rates'!S246","v":0},{"$f":"'Population 2016'!T246*'Prevalence Rates'!T246","v":0},{"$f":"'Population 2016'!U246*'Prevalence Rates'!U246","v":0},{"$f":"'Population 2016'!V246*'Prevalence Rates'!V246","v":0},{"$f":"'Population 2016'!W246*'Prevalence Rates'!W246","v":0},{"$f":"'Population 2016'!X246*'Prevalence Rates'!X246","v":0},{"$f":"'Population 2016'!Y246*'Prevalence Rates'!Y246","v":0},{"$f":"'Population 2016'!Z246*'Prevalence Rates'!Z246","v":0},{"$f":"'Population 2016'!AA246*'Prevalence Rates'!AA246","v":0},{"$f":"'Population 2016'!AB246*'Prevalence Rates'!AB246","v":0},{"$f":"'Population 2016'!AC246*'Prevalence Rates'!AC246","v":0},{"$f":"'Population 2016'!AD246*'Prevalence Rates'!AD246","v":0},{"$f":"'Population 2016'!AE246*'Prevalence Rates'!AE246","v":0},{"$f":"'Population 2016'!AF246*'Prevalence Rates'!AF246","v":0},{"$f":"'Population 2016'!AG246*'Prevalence Rates'!AG246","v":0},{"$f":"'Population 2016'!AH246*'Prevalence Rates'!AH246","v":0},{"$f":"'Population 2016'!AI246*'Prevalence Rates'!AI246","v":0},{"$f":"'Population 2016'!AJ246*'Prevalence Rates'!AJ246","v":0},{"$f":"'Population 2016'!AK246*'Prevalence Rates'!AK246","v":0},{"$f":"'Population 2016'!AL246*'Prevalence Rates'!AL246","v":0},{"$f":"'Population 2016'!AM246*'Prevalence Rates'!AM246","v":0},{"$f":"'Population 2016'!AN246*'Prevalence Rates'!AN246","v":0},{"$f":"'Population 2016'!AO246*'Prevalence Rates'!AO246","v":0},{"$f":"'Population 2016'!AP246*'Prevalence Rates'!AP246","v":0},{"$f":"'Population 2016'!AQ246*'Prevalence Rates'!AQ246","v":0},{"$f":"'Population 2016'!AR246*'Prevalence Rates'!AR246","v":0},{"$f":"'Population 2016'!AS246*'Prevalence Rates'!AS246","v":0},{"$f":"'Population 2016'!AT246*'Prevalence Rates'!AT246","v":0},{"$f":"'Population 2016'!AU246*'Prevalence Rates'!AU246","v":0},{"$f":"'Population 2016'!AV246*'Prevalence Rates'!AV246","v":0},{"$f":"'Population 2016'!AW246*'Prevalence Rates'!AW246","v":0},{"$f":"'Population 2016'!AX246*'Prevalence Rates'!AX246","v":0},{"$f":"'Population 2016'!AY246*'Prevalence Rates'!AY246","v":0},{"$f":"'Population 2016'!AZ246*'Prevalence Rates'!AZ246","v":0},{"$f":"'Population 2016'!BA246*'Prevalence Rates'!BA246","v":0},{"$f":"'Population 2016'!BB246*'Prevalence Rates'!BB246","v":0},{"$f":"'Population 2016'!BC246*'Prevalence Rates'!BC246","v":0},244]
[null,"Male 80-84",{"$f":"'Population 2016'!C247*'Prevalence Rates'!C247","v":0},{"$f":"'Population 2016'!D247*'Prevalence Rates'!D247","v":0},{"$f":"'Population 2016'!E247*'Prevalence Rates'!E247","v":0},{"$f":"'Population 2016'!F247*'Prevalence Rates'!F247","v":0},{"$f":"'Population 2016'!G247*'Prevalence Rates'!G247","v":0},{"$f":"'Population 2016'!H247*'Prevalence Rates'!H247","v":0},{"$f":"'Population 2016'!I247*'Prevalence Rates'!I247","v":0},{"$f":"'Population 2016'!J247*'Prevalence Rates'!J247","v":0},{"$f":"'Population 2016'!K247*'Prevalence Rates'!K247","v":0},{"$f":"'Population 2016'!L247*'Prevalence Rates'!L247","v":0},{"$f":"'Population 2016'!M247*'Prevalence Rates'!M247","v":0},{"$f":"'Population 2016'!N247*'Prevalence Rates'!N247","v":0},{"$f":"'Population 2016'!O247*'Prevalence Rates'!O247","v":0},{"$f":"'Population 2016'!P247*'Prevalence Rates'!P247","v":0},{"$f":"'Population 2016'!Q247*'Prevalence Rates'!Q247","v":0},{"$f":"'Population 2016'!R247*'Prevalence Rates'!R247","v":0},{"$f":"'Population 2016'!S247*'Prevalence Rates'!S247","v":0},{"$f":"'Population 2016'!T247*'Prevalence Rates'!T247","v":0},{"$f":"'Population 2016'!U247*'Prevalence Rates'!U247","v":0},{"$f":"'Population 2016'!V247*'Prevalence Rates'!V247","v":0},{"$f":"'Population 2016'!W247*'Prevalence Rates'!W247","v":0},{"$f":"'Population 2016'!X247*'Prevalence Rates'!X247","v":0},{"$f":"'Population 2016'!Y247*'Prevalence Rates'!Y247","v":0},{"$f":"'Population 2016'!Z247*'Prevalence Rates'!Z247","v":0},{"$f":"'Population 2016'!AA247*'Prevalence Rates'!AA247","v":0},{"$f":"'Population 2016'!AB247*'Prevalence Rates'!AB247","v":0},{"$f":"'Population 2016'!AC247*'Prevalence Rates'!AC247","v":0},{"$f":"'Population 2016'!AD247*'Prevalence Rates'!AD247","v":0},{"$f":"'Population 2016'!AE247*'Prevalence Rates'!AE247","v":0},{"$f":"'Population 2016'!AF247*'Prevalence Rates'!AF247","v":0},{"$f":"'Population 2016'!AG247*'Prevalence Rates'!AG247","v":0},{"$f":"'Population 2016'!AH247*'Prevalence Rates'!AH247","v":0},{"$f":"'Population 2016'!AI247*'Prevalence Rates'!AI247","v":0},{"$f":"'Population 2016'!AJ247*'Prevalence Rates'!AJ247","v":0},{"$f":"'Population 2016'!AK247*'Prevalence Rates'!AK247","v":0},{"$f":"'Population 2016'!AL247*'Prevalence Rates'!AL247","v":0},{"$f":"'Population 2016'!AM247*'Prevalence Rates'!AM247","v":0},{"$f":"'Population 2016'!AN247*'Prevalence Rates'!AN247","v":0},{"$f":"'Population 2016'!AO247*'Prevalence Rates'!AO247","v":0},{"$f":"'Population 2016'!AP247*'Prevalence Rates'!AP247","v":0},{"$f":"'Population 2016'!AQ247*'Prevalence Rates'!AQ247","v":0},{"$f":"'Population 2016'!AR247*'Prevalence Rates'!AR247","v":0},{"$f":"'Population 2016'!AS247*'Prevalence Rates'!AS247","v":0},{"$f":"'Population 2016'!AT247*'Prevalence Rates'!AT247","v":0},{"$f":"'Population 2016'!AU247*'Prevalence Rates'!AU247","v":0},{"$f":"'Population 2016'!AV247*'Prevalence Rates'!AV247","v":0},{"$f":"'Population 2016'!AW247*'Prevalence Rates'!AW247","v":0},{"$f":"'Population 2016'!AX247*'Prevalence Rates'!AX247","v":0},{"$f":"'Population 2016'!AY247*'Prevalence Rates'!AY247","v":0},{"$f":"'Population 2016'!AZ247*'Prevalence Rates'!AZ247","v":0},{"$f":"'Population 2016'!BA247*'Prevalence Rates'!BA247","v":0},{"$f":"'Population 2016'!BB247*'Prevalence Rates'!BB247","v":0},{"$f":"'Population 2016'!BC247*'Prevalence Rates'!BC247","v":0},245]
[null,"Male 85-89",{"$f":"'Population 2016'!C248*'Prevalence Rates'!C248","v":0},{"$f":"'Population 2016'!D248*'Prevalence Rates'!D248","v":0},{"$f":"'Population 2016'!E248*'Prevalence Rates'!E248","v":0},{"$f":"'Population 2016'!F248*'Prevalence Rates'!F248","v":0},{"$f":"'Population 2016'!G248*'Prevalence Rates'!G248","v":0},{"$f":"'Population 2016'!H248*'Prevalence Rates'!H248","v":0},{"$f":"'Population 2016'!I248*'Prevalence Rates'!I248","v":0},{"$f":"'Population 2016'!J248*'Prevalence Rates'!J248","v":0},{"$f":"'Population 2016'!K248*'Prevalence Rates'!K248","v":0},{"$f":"'Population 2016'!L248*'Prevalence Rates'!L248","v":0},{"$f":"'Population 2016'!M248*'Prevalence Rates'!M248","v":0},{"$f":"'Population 2016'!N248*'Prevalence Rates'!N248","v":0},{"$f":"'Population 2016'!O248*'Prevalence Rates'!O248","v":0},{"$f":"'Population 2016'!P248*'Prevalence Rates'!P248","v":0},{"$f":"'Population 2016'!Q248*'Prevalence Rates'!Q248","v":0},{"$f":"'Population 2016'!R248*'Prevalence Rates'!R248","v":0},{"$f":"'Population 2016'!S248*'Prevalence Rates'!S248","v":0},{"$f":"'Population 2016'!T248*'Prevalence Rates'!T248","v":0},{"$f":"'Population 2016'!U248*'Prevalence Rates'!U248","v":0},{"$f":"'Population 2016'!V248*'Prevalence Rates'!V248","v":0},{"$f":"'Population 2016'!W248*'Prevalence Rates'!W248","v":0},{"$f":"'Population 2016'!X248*'Prevalence Rates'!X248","v":0},{"$f":"'Population 2016'!Y248*'Prevalence Rates'!Y248","v":0},{"$f":"'Population 2016'!Z248*'Prevalence Rates'!Z248","v":0},{"$f":"'Population 2016'!AA248*'Prevalence Rates'!AA248","v":0},{"$f":"'Population 2016'!AB248*'Prevalence Rates'!AB248","v":0},{"$f":"'Population 2016'!AC248*'Prevalence Rates'!AC248","v":0},{"$f":"'Population 2016'!AD248*'Prevalence Rates'!AD248","v":0},{"$f":"'Population 2016'!AE248*'Prevalence Rates'!AE248","v":0},{"$f":"'Population 2016'!AF248*'Prevalence Rates'!AF248","v":0},{"$f":"'Population 2016'!AG248*'Prevalence Rates'!AG248","v":0},{"$f":"'Population 2016'!AH248*'Prevalence Rates'!AH248","v":0},{"$f":"'Population 2016'!AI248*'Prevalence Rates'!AI248","v":0},{"$f":"'Population 2016'!AJ248*'Prevalence Rates'!AJ248","v":0},{"$f":"'Population 2016'!AK248*'Prevalence Rates'!AK248","v":0},{"$f":"'Population 2016'!AL248*'Prevalence Rates'!AL248","v":0},{"$f":"'Population 2016'!AM248*'Prevalence Rates'!AM248","v":0},{"$f":"'Population 2016'!AN248*'Prevalence Rates'!AN248","v":0},{"$f":"'Population 2016'!AO248*'Prevalence Rates'!AO248","v":0},{"$f":"'Population 2016'!AP248*'Prevalence Rates'!AP248","v":0},{"$f":"'Population 2016'!AQ248*'Prevalence Rates'!AQ248","v":0},{"$f":"'Population 2016'!AR248*'Prevalence Rates'!AR248","v":0},{"$f":"'Population 2016'!AS248*'Prevalence Rates'!AS248","v":0},{"$f":"'Population 2016'!AT248*'Prevalence Rates'!AT248","v":0},{"$f":"'Population 2016'!AU248*'Prevalence Rates'!AU248","v":0},{"$f":"'Population 2016'!AV248*'Prevalence Rates'!AV248","v":0},{"$f":"'Population 2016'!AW248*'Prevalence Rates'!AW248","v":0},{"$f":"'Population 2016'!AX248*'Prevalence Rates'!AX248","v":0},{"$f":"'Population 2016'!AY248*'Prevalence Rates'!AY248","v":0},{"$f":"'Population 2016'!AZ248*'Prevalence Rates'!AZ248","v":0},{"$f":"'Population 2016'!BA248*'Prevalence Rates'!BA248","v":0},{"$f":"'Population 2016'!BB248*'Prevalence Rates'!BB248","v":0},{"$f":"'Population 2016'!BC248*'Prevalence Rates'!BC248","v":0},246]
[null,"Male 90+",{"$f":"'Population 2016'!C249*'Prevalence Rates'!C249","v":0},{"$f":"'Population 2016'!D249*'Prevalence Rates'!D249","v":0},{"$f":"'Population 2016'!E249*'Prevalence Rates'!E249","v":0},{"$f":"'Population 2016'!F249*'Prevalence Rates'!F249","v":0},{"$f":"'Population 2016'!G249*'Prevalence Rates'!G249","v":0},{"$f":"'Population 2016'!H249*'Prevalence Rates'!H249","v":0},{"$f":"'Population 2016'!I249*'Prevalence Rates'!I249","v":0},{"$f":"'Population 2016'!J249*'Prevalence Rates'!J249","v":0},{"$f":"'Population 2016'!K249*'Prevalence Rates'!K249","v":0},{"$f":"'Population 2016'!L249*'Prevalence Rates'!L249","v":0},{"$f":"'Population 2016'!M249*'Prevalence Rates'!M249","v":0},{"$f":"'Population 2016'!N249*'Prevalence Rates'!N249","v":0},{"$f":"'Population 2016'!O249*'Prevalence Rates'!O249","v":0},{"$f":"'Population 2016'!P249*'Prevalence Rates'!P249","v":0},{"$f":"'Population 2016'!Q249*'Prevalence Rates'!Q249","v":0},{"$f":"'Population 2016'!R249*'Prevalence Rates'!R249","v":0},{"$f":"'Population 2016'!S249*'Prevalence Rates'!S249","v":0},{"$f":"'Population 2016'!T249*'Prevalence Rates'!T249","v":0},{"$f":"'Population 2016'!U249*'Prevalence Rates'!U249","v":0},{"$f":"'Population 2016'!V249*'Prevalence Rates'!V249","v":0},{"$f":"'Population 2016'!W249*'Prevalence Rates'!W249","v":0},{"$f":"'Population 2016'!X249*'Prevalence Rates'!X249","v":0},{"$f":"'Population 2016'!Y249*'Prevalence Rates'!Y249","v":0},{"$f":"'Population 2016'!Z249*'Prevalence Rates'!Z249","v":0},{"$f":"'Population 2016'!AA249*'Prevalence Rates'!AA249","v":0},{"$f":"'Population 2016'!AB249*'Prevalence Rates'!AB249","v":0},{"$f":"'Population 2016'!AC249*'Prevalence Rates'!AC249","v":0},{"$f":"'Population 2016'!AD249*'Prevalence Rates'!AD249","v":0},{"$f":"'Population 2016'!AE249*'Prevalence Rates'!AE249","v":0},{"$f":"'Population 2016'!AF249*'Prevalence Rates'!AF249","v":0},{"$f":"'Population 2016'!AG249*'Prevalence Rates'!AG249","v":0},{"$f":"'Population 2016'!AH249*'Prevalence Rates'!AH249","v":0},{"$f":"'Population 2016'!AI249*'Prevalence Rates'!AI249","v":0},{"$f":"'Population 2016'!AJ249*'Prevalence Rates'!AJ249","v":0},{"$f":"'Population 2016'!AK249*'Prevalence Rates'!AK249","v":0},{"$f":"'Population 2016'!AL249*'Prevalence Rates'!AL249","v":0},{"$f":"'Population 2016'!AM249*'Prevalence Rates'!AM249","v":0},{"$f":"'Population 2016'!AN249*'Prevalence Rates'!AN249","v":0},{"$f":"'Population 2016'!AO249*'Prevalence Rates'!AO249","v":0},{"$f":"'Population 2016'!AP249*'Prevalence Rates'!AP249","v":0},{"$f":"'Population 2016'!AQ249*'Prevalence Rates'!AQ249","v":0},{"$f":"'Population 2016'!AR249*'Prevalence Rates'!AR249","v":0},{"$f":"'Population 2016'!AS249*'Prevalence Rates'!AS249","v":0},{"$f":"'Population 2016'!AT249*'Prevalence Rates'!AT249","v":0},{"$f":"'Population 2016'!AU249*'Prevalence Rates'!AU249","v":0},{"$f":"'Population 2016'!AV249*'Prevalence Rates'!AV249","v":0},{"$f":"'Population 2016'!AW249*'Prevalence Rates'!AW249","v":0},{"$f":"'Population 2016'!AX249*'Prevalence Rates'!AX249","v":0},{"$f":"'Population 2016'!AY249*'Prevalence Rates'!AY249","v":0},{"$f":"'Population 2016'!AZ249*'Prevalence Rates'!AZ249","v":0},{"$f":"'Population 2016'!BA249*'Prevalence Rates'!BA249","v":0},{"$f":"'Population 2016'!BB249*'Prevalence Rates'!BB249","v":0},{"$f":"'Population 2016'!BC249*'Prevalence Rates'!BC249","v":0},247]
["Estimated number of people non-employed",null,null,null,null,null,null,null,null,null,null,null,null,null,null,null,null,null,null,null,null,null,null,null,null,null,null,null,null,null,null,null,null,null,null,null,null,null,null,null,null,null,null,null,null,null,null,null,null,null,null,null,null,null,null,248]
[null,"Total at risk",{"$f":"C5","v":32394.620186872122},58624.141491570743,26534.180843660703,13140.962817818103,8933.027520466947,79008.868289304315,15424.159212198389,19411.879393226605,10824.544972932868,21226.181506955698,21226.181506955698,28623.28002185878,28410.123674931081,10965.470446382511,13724.104464107471,8368.6275052684141,187854.10390330659,66318.482639316979,2737.2424883539152,21709.302430996875,56341.824633622098,56341.824633622098,41126.439556295809,126362.22213464633,303339.71794731752,69706.675823737169,201788.66271397105,37005.072788164209,28017.133059724609,15748.91771824615,28017.133059724609,101666.51935829443,{"$f":"AI5","v":116415.84419575104},11425.138898940892,11111.799798496468,32796.052473485637,55325.67294234845,2175.7300074070699,2175.7300074070699,15885.223201912353,24997.066046230651,789721.35672652686,15424.159212198389,1863.8513634786905,1863.8513634786905,18244.108242761242,46389.45037980577,8973.6193521227178,113059.44662993975,56580.267279161526,17699.417145818705,24925.811808051141,2737.2424883539152,249]
[null,"Q1 only",{"$f":"C7","v":5073.6128796726844},5890.5191779690122,1153.1679312984393,1716.6041148586178,1190.5607460038693,35167.399361028591,1563.9674437823478,5506.2275471275352,3969.309469135691,2974.5797723509572,2974.5797723509572,14849.417761381716,12779.246670858211,1054.232979964449,876.65416746542837,1100.0785838917386,44634.31621366465,16070.989924453123,0,5172.0949834930534,17893.817259658412,17893.817259658412,10687.564072774465,77369.185478289961,142921.77297197271,6082.0853779376757,104166.80331364568,4846.576162223404,3642.9531359445427,9180.0222786464765,3642.9531359445427,39292.81464944889,{"$f":"AI7","v":25432.080029551071},1880.5670112278406,187.66748186706013,18192.987760715056,24706.426173564767,0,0,1772.7080918093541,10898.224357496998,254449.94209203299,1563.9674437823478,0,0,5173.9917104312481,14679.848888685679,2074.7497717172264,34347.015779105597,16454.498695186721,9185.356528414206,6466.7706073890331,0,250]
[null,"Q1 & Q2",{"$f":"SUM(C7:C8)","v":13486.656953256861},16609.380681037124,3895.0297355885568,4477.7803907498392,3026.6927827349309,54366.36663687518,4676.5051562994813,9735.1157504012845,6954.9364717006056,9819.302368593786,9819.302368593786,20350.216626169749,20183.0104083923,3501.3808526102925,5566.2999836238296,2147.0112586371488,88877.420323113474,27991.610638390823,827.10082387685702,12132.399822298521,30422.828064215224,30422.828064215224,21865.449221903385,97804.809862179056,206444.67373377018,19127.148018171945,139184.83313963457,13183.223463583914,10163.771977538347,11140.399768594929,10163.771977538347,67437.545433604377,{"$f":"SUM(AI7:AI8)","v":53984.00396162516},6534.0561751591285,2524.143015445944,24418.18545621492,39761.633691861673,410.79953436313735,410.79953436313735,4254.3545142343864,15528.437880392641,429217.13468908105,4676.5051562994813,88.816117680980994,88.816117680980994,10592.556654893302,27769.412618877239,3701.0325498422599,57313.184774503585,26966.732335498091,13992.380006358218,13819.668329113363,827.10082387685702,251]
["Estimated no. of unemployed who are 'real unemployed' (estimated at 30%)",null,null,null,null,null,null,null,null,null,null,null,null,null,null,null,null,null,null,null,null,null,null,null,null,null,null,null,null,null,null,null,null,null,null,null,null,null,null,null,null,null,null,null,null,null,null,null,null,null,null,null,null,null,null,252]
[null,"Eligible at risk",{"$f":"0.3*C251","v":9718.3860560616358},17587.242447471221,7960.25425309821,3942.2888453454307,2679.9082561400842,23702.660486791294,4627.2477636595167,5823.5638179679818,3247.3634918798602,6367.854452086709,6367.854452086709,8586.9840065576336,8523.0371024793239,3289.641133914753,4117.2313392322412,2510.5882515805242,56356.231170991974,19895.544791795091,821.17274650617458,6512.7907292990621,16902.547390086627,16902.547390086627,12337.931866888743,37908.666640393902,91001.91538419525,20912.002747121151,60536.598814191311,11101.521836449263,8405.1399179173823,4724.6753154738444,8405.1399179173823,30499.955807488328,{"$f":"0.3*AI251","v":34924.753258725308},3427.5416696822672,3333.5399395489403,9838.8157420456901,16597.701882704536,652.71900222212093,652.71900222212093,4765.5669605737057,7499.1198138691952,236916.40701795806,4627.2477636595167,559.15540904360716,559.15540904360716,5473.232472828372,13916.83511394173,2692.0858056368152,33917.833988981925,16974.080183748458,5309.8251437456111,7477.7435424153418,821.17274650617458,253]
[null,"Q1",{"$f":"0.3*C252","v":1522.0838639018052},1767.1557533907037,345.95037938953175,514.98123445758529,357.16822380116076,10550.219808308577,469.19023313470433,1651.8682641382604,1190.7928407407073,892.37393170528719,892.37393170528719,4454.8253284145148,3833.7740012574632,316.26989398933466,262.99625023962852,330.02357516752159,13390.294864099395,4821.2969773359364,0,1551.628495047916,5368.1451778975234,5368.1451778975234,3206.2692218323396,23210.755643486988,42876.531891591811,1824.6256133813026,31250.040994093702,1453.9728486670213,1092.8859407833627,2754.0066835939429,1092.8859407833627,11787.844394834667,{"$f":"0.3*AI252","v":7629.6240088653212},564.1701033683521,56.300244560118038,5457.8963282145169,7411.9278520694297,0,0,531.81242754280618,3269.4673072490991,76334.98262760989,469.19023313470433,0,0,1552.1975131293743,4403.954666605704,622.42493151516794,10304.10473373168,4936.3496085560164,2755.6069585242617,1940.0311822167098,0,254]
[null,"Q1 & Q2",{"$f":"0.3*C253","v":4045.9970859770583},4982.8142043111375,1168.508920676567,1343.3341172249518,908.00783482047927,16309.909991062554,1402.9515468898444,2920.5347251203852,2086.4809415101818,2945.7907105781355,2945.7907105781355,6105.0649878509248,6054.9031225176896,1050.4142557830878,1669.8899950871489,644.10337759114464,26663.226096934042,8397.4831915172472,248.13024716305711,3639.7199466895563,9126.8484192645665,9126.8484192645665,6559.6347665710155,29341.442958653715,61933.402120131053,5738.1444054515832,41755.449941890372,3954.9670390751739,3049.1315932615039,3342.1199305784785,3049.1315932615039,20231.263630081314,{"$f":"0.3*AI253","v":16195.201188487546},1960.2168525477384,757.24290463378316,7325.4556368644762,11928.490107558502,123.2398603089412,123.2398603089412,1276.306354270316,4658.5313641177918,128765.14040672431,1402.9515468898444,26.644835304294297,26.644835304294297,3177.7669964679903,8330.8237856631713,1110.3097649526778,17193.955432351075,8090.0197006494273,4197.714001907465,4145.9004987340086,248.13024716305711,255]

{"sheet":"Pop2016fraction","index":14,"n_rows":249,"n_cols":56,"rows_kept":249,"cut":false,"hidden":true,"merged":[]}
["Subgroup's fraction of area's 2016 population (16-64 only)"]
[]
["SIMD","group","Aberdeen City Local Authority","Aberdeen City Region Deal","Aberdeenshire Local Authority","Angus Local Authority","Argyll & Bute Local Authority","Ayrshire & Arran Health Board","Borders Health Board","Clackmannanshire & Stirling IJB","Clackmannanshire Local Authority","Dumfries & Galloway Health Board","Dumfries & Galloway Local Authority","Dundee City Local Authority","East Ayrshire Local Authority","East Dunbartonshire Local Authority","East Lothian Local Authority","East Renfrewshire Local Authority","Edinburgh & SE Scotland City Region Deal","Edinburgh, City of Local Authority","Eilean Siar Local Authority","Falkirk Local Authority","Fife Health Board","Fife Local Authority","Forth Valley Health Board","Glasgow City Local Authority","Glasgow City Region Deal","Grampian Health Board","Greater Glasgow & Clyde Health Board","Highland Health Board","Highland Local Authority","Inverclyde Local Authority","Inverness & Highland City Region Deal","Lanarkshire Health Board","Lothian Health Board","Midlothian Local Authority","Moray Local Authority","North Ayrshire Local Authority","North Lanarkshire Local Authority","Orkney Health Board","Orkney Islands Local Authority","Perth & Kinross Local Authority","Renfrewshire Local Authority","Scotland","Scottish Borders Local Authority","Shetland Health Board","Shetland Islands Local Authority","South Ayrshire Local Authority","South Lanarkshire Local Authority","Stirling Local Authority","Tay Cities Region Deal ","Tayside Health Board","West Dunbartonshire Local Authority","West Lothian Local Authority","Western Isles Health Board",1]
[null,null,"popS12000033","Aber_deal","popS12000034","popS12000041","popS12000035","popS08000015","popS08000016","ClacksStirIJB","popS12000005","popS08000017","popS12000006","popS12000042","popS12000008","popS12000045","popS12000010","popS12000011","EdinSE_deal","popS12000036","popS12000013","popS12000014","popS08000018","popS12000015","popS08000019","popS12000046","GClyde_deal","popS08000020","popS08000021","popS08000022","popS12000017","popS12000018","Inver_deal","popS08000023","popS08000024","popS12000019","popS12000020","popS12000021","popS12000044","popS08000025","popS12000023","popS12000024","popS12000038","popS00000001","popS12000026","popS08000026","popS12000027","popS12000028","popS12000029","popS12000030","Tay_deal","popS08000027","popS12000039","popS12000040","popS08000028",2]
[]
[]
[]
[]
[]
[]
[]
[]
[]
["All quintiles","16-64 Males and Females",{"$f":"'Population 2016'!R14/'Population 2016'!R$14","v":1},{"$f":"'Population 2016'!AX14/'Population 2016'!AX$14","v":1},{"$f":"'Population 2016'!S14/'Population 2016'!S$14","v":1},{"$f":"'Population 2016'!T14/'Population 2016'!T$14","v":1},{"$f":"'Population 2016'!U14/'Population 2016'!U$14","v":1},{"$f":"'Population 2016'!D14/'Population 2016'!D$14","v":1},{"$f":"'Population 2016'!E14/'Population 2016'!E$14","v":1},{"$f":"'Population 2016'!BC14/'Population 2016'!BC$14","v":1},{"$f":"'Population 2016'!V14/'Population 2016'!V$14","v":1},{"$f":"'Population 2016'!F14/'Population 2016'!F$14","v":1},{"$f":"'Population 2016'!W14/'Population 2016'!W$14","v":1},{"$f":"'Population 2016'!X14/'Population 2016'!X$14","v":1},{"$f":"'Population 2016'!Y14/'Population 2016'!Y$14","v":1},{"$f":"'Population 2016'!Z14/'Population 2016'!Z$14","v":1},{"$f":"'Population 2016'!AA14/'Population 2016'!AA$14","v":1},{"$f":"'Population 2016'!AB14/'Population 2016'!AB$14","v":1},{"$f":"'Population 2016'!AY14/'Population 2016'!AY$14","v":1},{"$f":"'Population 2016'!AC14/'Population 2016'!AC$14","v":1},{"$f":"'Population 2016'!AD14/'Population 2016'!AD$14","v":1},{"$f":"'Population 2016'!AE14/'Population 2016'!AE$14","v":1},{"$f":"'Population 2016'!G14/'Population 2016'!G$14","v":1},{"$f":"'Population 2016'!AF14/'Population 2016'!AF$14","v":1},{"$f":"'Population 2016'!H14/'Population 2016'!H$14","v":1},{"$f":"'Population 2016'!AG14/'Population 2016'!AG$14","v":1},{"$f":"'Population 2016'!AZ14/'Population 2016'!AZ$14","v":1},{"$f":"'Population 2016'!I14/'Population 2016'!I$14","v":1},{"$f":"'Population 2016'!J14/'Population 2016'!J$14","v":1},{"$f":"'Population 2016'!K14/'Population 2016'!K$14","v":1},{"$f":"'Population 2016'!AH14/'Population 2016'!AH$14","v":1},{"$f":"'Population 2016'!AI14/'Population 2016'!AI$14","v":1},{"$f":"'Population 2016'!BA14/'Population 2016'!BA$14","v":1},{"$f":"'Population 2016'!L14/'Population 2016'!L$14","v":1},{"$f":"'Population 2016'!M14/'Population 2016'!M$14","v":1},{"$f":"'Population 2016'!AJ14/'Population 2016'!AJ$14","v":1},{"$f":"'Population 2016'!AK14/'Population 2016'!AK$14","v":1},{"$f":"'Population 2016'!AL14/'Population 2016'!AL$14","v":1},{"$f":"'Population 2016'!AM14/'Population 2016'!AM$14","v":1},{"$f":"'Population 2016'!N14/'Population 2016'!N$14","v":1},{"$f":"'Population 2016'!AN14/'Population 2016'!AN$14","v":1},{"$f":"'Population 2016'!AO14/'Population 2016'!AO$14","v":1},{"$f":"'Population 2016'!AP14/'Population 2016'!AP$14","v":1},{"$f":"'Population 2016'!C14/'Population 2016'!C$14","v":1},{"$f":"'Population 2016'!AQ14/'Population 2016'!AQ$14","v":1},{"$f":"'Population 2016'!O14/'Population 2016'!O$14","v":1},{"$f":"'Population 2016'!AR14/'Population 2016'!AR$14","v":1},{"$f":"'Population 2016'!AS14/'Population 2016'!AS$14","v":1},{"$f":"'Population 2016'!AT14/'Population 2016'!AT$14","v":1},{"$f":"'Population 2016'!AU14/'Population 2016'!AU$14","v":1},{"$f":"'Population 2016'!BB14/'Population 2016'!BB$14","v":1},{"$f":"'Population 2016'!P14/'Population 2016'!P$14","v":1},{"$f":"'Population 2016'!AV14/'Population 2016'!AV$14","v":1},{"$f":"'Population 2016'!AW14/'Population 2016'!AW$14","v":1},{"$f":"'Population 2016'!Q14/'Population 2016'!Q$14","v":1},12]
["Q1 and Q2","16-64 Males and Females",{"$f":"'Population 2016'!R15/'Population 2016'!R$14","v":0.16517299058015669},{"$f":"'Population 2016'!AX15/'Population 2016'!AX$14","v":0.28427472382956337},{"$f":"'Population 2016'!S15/'Population 2016'!S$14","v":0.33881456332044424},{"$f":"'Population 2016'!T15/'Population 2016'!T$14","v":0.28311569404842979},{"$f":"'Population 2016'!U15/'Population 2016'!U$14","v":0.24282311645982199},{"$f":"'Population 2016'!D15/'Population 2016'!D$14","v":0.19049603363064507},{"$f":"'Population 2016'!E15/'Population 2016'!E$14","v":9.6298354555778384E-2},{"$f":"'Population 2016'!BC15/'Population 2016'!BC$14","v":0.24282311645982199},{"$f":"'Population 2016'!V15/'Population 2016'!V$14","v":0.42729521715228147},{"$f":"'Population 2016'!F15/'Population 2016'!F$14","v":0.25281917606392024},{"$f":"'Population 2016'!W15/'Population 2016'!W$14","v":0.39829530779164873},{"$f":"'Population 2016'!X15/'Population 2016'!X$14","v":0.39829530779164873},{"$f":"'Population 2016'!Y15/'Population 2016'!Y$14","v":0.39604589548988156},{"$f":"'Population 2016'!Z15/'Population 2016'!Z$14","v":0.62823335867262176},{"$f":"'Population 2016'!AA15/'Population 2016'!AA$14","v":0.53302711577092743},{"$f":"'Population 2016'!AB15/'Population 2016'!AB$14","v":0.18662568171577437},{"$f":"'Population 2016'!AY15/'Population 2016'!AY$14","v":0.36891197588291547},{"$f":"'Population 2016'!AC15/'Population 2016'!AC$14","v":0.53692598828498883},{"$f":"'Population 2016'!AD15/'Population 2016'!AD$14","v":0.25721361223599143},{"$f":"'Population 2016'!AE15/'Population 2016'!AE$14","v":0.26201268639184089},{"$f":"'Population 2016'!G15/'Population 2016'!G$14","v":0.24394298379700396},{"$f":"'Population 2016'!AF15/'Population 2016'!AF$14","v":0.55512564818508181},{"$f":"'Population 2016'!H15/'Population 2016'!H$14","v":0.55890918021858493},{"$f":"'Population 2016'!AG15/'Population 2016'!AG$14","v":0.26201268639184089},{"$f":"'Population 2016'!AZ15/'Population 2016'!AZ$14","v":0.34278891049094501},{"$f":"'Population 2016'!I15/'Population 2016'!I$14","v":0.22211320202094165},{"$f":"'Population 2016'!J15/'Population 2016'!J$14","v":0.36191905655320289},{"$f":"'Population 2016'!K15/'Population 2016'!K$14","v":0.50750547113398881},{"$f":"'Population 2016'!AH15/'Population 2016'!AH$14","v":0.52586266076133348},{"$f":"'Population 2016'!AI15/'Population 2016'!AI$14","v":0.32890350810298752},{"$f":"'Population 2016'!BA15/'Population 2016'!BA$14","v":0.68500129522493736},{"$f":"'Population 2016'!L15/'Population 2016'!L$14","v":0.36788053798357284},{"$f":"'Population 2016'!M15/'Population 2016'!M$14","v":0.36788053798357284},{"$f":"'Population 2016'!AJ15/'Population 2016'!AJ$14","v":0.45655474030433368},{"$f":"'Population 2016'!AK15/'Population 2016'!AK$14","v":0.16549867032397264},{"$f":"'Population 2016'!AL15/'Population 2016'!AL$14","v":0.61990782306817505},{"$f":"'Population 2016'!AM15/'Population 2016'!AM$14","v":0.58451961346849191},{"$f":"'Population 2016'!N15/'Population 2016'!N$14","v":0.55707233835090497},{"$f":"'Population 2016'!AN15/'Population 2016'!AN$14","v":0.13877459414977183},{"$f":"'Population 2016'!AO15/'Population 2016'!AO$14","v":0.13877459414977183},{"$f":"'Population 2016'!AP15/'Population 2016'!AP$14","v":0.18293766937669376},{"$f":"'Population 2016'!C15/'Population 2016'!C$14","v":0.28746245826104799},{"$f":"'Population 2016'!AQ15/'Population 2016'!AQ$14","v":0.47110165826795281},{"$f":"'Population 2016'!O15/'Population 2016'!O$14","v":0.57944277108433739},{"$f":"'Population 2016'!AR15/'Population 2016'!AR$14","v":0.40021564896268724},{"$f":"'Population 2016'!AS15/'Population 2016'!AS$14","v":0.22211320202094165},{"$f":"'Population 2016'!AT15/'Population 2016'!AT$14","v":3.3781928041746775E-2},{"$f":"'Population 2016'!AU15/'Population 2016'!AU$14","v":3.3781928041746775E-2},{"$f":"'Population 2016'!BB15/'Population 2016'!BB$14","v":0.41870873895043081},{"$f":"'Population 2016'!P15/'Population 2016'!P$14","v":0.22415614236509759},{"$f":"'Population 2016'!AV15/'Population 2016'!AV$14","v":0.45992024076023308},{"$f":"'Population 2016'!AW15/'Population 2016'!AW$14","v":0.46236363008937681},{"$f":"'Population 2016'!Q15/'Population 2016'!Q$14","v":0.30890376025841149},13]
["SIMD Q1 (most deprived)","16-64 Males and Females",{"$f":"'Population 2016'!R16/'Population 2016'!R$14","v":6.9565982921031777E-2},{"$f":"'Population 2016'!AX16/'Population 2016'!AX$14","v":0.13226591267753815},{"$f":"'Population 2016'!S16/'Population 2016'!S$14","v":0.13901126784599563},{"$f":"'Population 2016'!T16/'Population 2016'!T$14","v":0.13312685624503706},{"$f":"'Population 2016'!U16/'Population 2016'!U$14","v":0},{"$f":"'Population 2016'!D16/'Population 2016'!D$14","v":5.2076024377315247E-2},{"$f":"'Population 2016'!E16/'Population 2016'!E$14","v":2.2319810568536012E-2},{"$f":"'Population 2016'!BC16/'Population 2016'!BC$14","v":0},{"$f":"'Population 2016'!V16/'Population 2016'!V$14","v":0.14638144977617215},{"$f":"'Population 2016'!F16/'Population 2016'!F$14","v":7.6996089986966623E-2},{"$f":"'Population 2016'!W16/'Population 2016'!W$14","v":0.19953938872148083},{"$f":"'Population 2016'!X16/'Population 2016'!X$14","v":0.19953938872148083},{"$f":"'Population 2016'!Y16/'Population 2016'!Y$14","v":0.15812830853904139},{"$f":"'Population 2016'!Z16/'Population 2016'!Z$14","v":0.45070507147758859},{"$f":"'Population 2016'!AA16/'Population 2016'!AA$14","v":0.32443739613852202},{"$f":"'Population 2016'!AB16/'Population 2016'!AB$14","v":4.5331185680472758E-2},{"$f":"'Population 2016'!AY16/'Population 2016'!AY$14","v":0.1872558712458873},{"$f":"'Population 2016'!AC16/'Population 2016'!AC$14","v":0.35984175588616835},{"$f":"'Population 2016'!AD16/'Population 2016'!AD$14","v":7.5043895705832794E-2},{"$f":"'Population 2016'!AE16/'Population 2016'!AE$14","v":7.4073050400077389E-2},{"$f":"'Population 2016'!G16/'Population 2016'!G$14","v":7.7728523387343318E-2},{"$f":"'Population 2016'!AF16/'Population 2016'!AF$14","v":0.42391304347826086},{"$f":"'Population 2016'!H16/'Population 2016'!H$14","v":0.31483869270038417},{"$f":"'Population 2016'!AG16/'Population 2016'!AG$14","v":7.4073050400077389E-2},{"$f":"'Population 2016'!AZ16/'Population 2016'!AZ$14","v":0.1763352877240788},{"$f":"'Population 2016'!I16/'Population 2016'!I$14","v":5.8724463645017204E-2},{"$f":"'Population 2016'!J16/'Population 2016'!J$14","v":0.17095684803001876},{"$f":"'Population 2016'!K16/'Population 2016'!K$14","v":0.24350399161606509},{"$f":"'Population 2016'!AH16/'Population 2016'!AH$14","v":0.25937937189159249},{"$f":"'Population 2016'!AI16/'Population 2016'!AI$14","v":0.12447402180341677},{"$f":"'Population 2016'!BA16/'Population 2016'!BA$14","v":0.39122700975736119},{"$f":"'Population 2016'!L16/'Population 2016'!L$14","v":8.8821222710367534E-2},{"$f":"'Population 2016'!M16/'Population 2016'!M$14","v":8.8821222710367534E-2},{"$f":"'Population 2016'!AJ16/'Population 2016'!AJ$14","v":0.10129396031373115},{"$f":"'Population 2016'!AK16/'Population 2016'!AK$14","v":8.5132716720466971E-3},{"$f":"'Population 2016'!AL16/'Population 2016'!AL$14","v":0.41699886275213982},{"$f":"'Population 2016'!AM16/'Population 2016'!AM$14","v":0.3115112434765977},{"$f":"'Population 2016'!N16/'Population 2016'!N$14","v":0.35668433989477322},{"$f":"'Population 2016'!AN16/'Population 2016'!AN$14","v":0},{"$f":"'Population 2016'!AO16/'Population 2016'!AO$14","v":0},{"$f":"'Population 2016'!AP16/'Population 2016'!AP$14","v":5.9869918699186994E-2},{"$f":"'Population 2016'!C16/'Population 2016'!C$14","v":8.2706860422457271E-2},{"$f":"'Population 2016'!AQ16/'Population 2016'!AQ$14","v":0.29175455163223341},{"$f":"'Population 2016'!O16/'Population 2016'!O$14","v":0.31639488990444536},{"$f":"'Population 2016'!AR16/'Population 2016'!AR$14","v":0.20104638171929473},{"$f":"'Population 2016'!AS16/'Population 2016'!AS$14","v":5.8724463645017204E-2},{"$f":"'Population 2016'!AT16/'Population 2016'!AT$14","v":0},{"$f":"'Population 2016'!AU16/'Population 2016'!AU$14","v":0},{"$f":"'Population 2016'!BB16/'Population 2016'!BB$14","v":0.15864900457045472},{"$f":"'Population 2016'!P16/'Population 2016'!P$14","v":5.1327975507079987E-2},{"$f":"'Population 2016'!AV16/'Population 2016'!AV$14","v":0.18654470520214075},{"$f":"'Population 2016'!AW16/'Population 2016'!AW$14","v":0.20294406183910199},{"$f":"'Population 2016'!Q16/'Population 2016'!Q$14","v":3.5608858940080056E-2},14]
["SIMD Q2",null,{"$f":"'Population 2016'!R17/'Population 2016'!R$14","v":9.5607007659124929E-2},{"$f":"'Population 2016'!AX17/'Population 2016'!AX$14","v":0.15200881115202525},{"$f":"'Population 2016'!S17/'Population 2016'!S$14","v":0.19980329547444861},{"$f":"'Population 2016'!T17/'Population 2016'!T$14","v":0.14998883780339275},{"$f":"'Population 2016'!U17/'Population 2016'!U$14","v":0.24282311645982199},{"$f":"'Population 2016'!D17/'Population 2016'!D$14","v":0.13842000925332981},{"$f":"'Population 2016'!E17/'Population 2016'!E$14","v":7.3978543987242365E-2},{"$f":"'Population 2016'!BC17/'Population 2016'!BC$14","v":0.24282311645982199},{"$f":"'Population 2016'!V17/'Population 2016'!V$14","v":0.28091376737610935},{"$f":"'Population 2016'!F17/'Population 2016'!F$14","v":0.1758230860769536},{"$f":"'Population 2016'!W17/'Population 2016'!W$14","v":0.19875591907016787},{"$f":"'Population 2016'!X17/'Population 2016'!X$14","v":0.19875591907016787},{"$f":"'Population 2016'!Y17/'Population 2016'!Y$14","v":0.23791758695084017},{"$f":"'Population 2016'!Z17/'Population 2016'!Z$14","v":0.17752828719503319},{"$f":"'Population 2016'!AA17/'Population 2016'!AA$14","v":0.20858971963240544},{"$f":"'Population 2016'!AB17/'Population 2016'!AB$14","v":0.14129449603530161},{"$f":"'Population 2016'!AY17/'Population 2016'!AY$14","v":0.18165610463702817},{"$f":"'Population 2016'!AC17/'Population 2016'!AC$14","v":0.17708423239882051},{"$f":"'Population 2016'!AD17/'Population 2016'!AD$14","v":0.18216971653015862},{"$f":"'Population 2016'!AE17/'Population 2016'!AE$14","v":0.18793963599176353},{"$f":"'Population 2016'!G17/'Population 2016'!G$14","v":0.16621446040966065},{"$f":"'Population 2016'!AF17/'Population 2016'!AF$14","v":0.13121260470682089},{"$f":"'Population 2016'!H17/'Population 2016'!H$14","v":0.24407048751820079},{"$f":"'Population 2016'!AG17/'Population 2016'!AG$14","v":0.18793963599176353},{"$f":"'Population 2016'!AZ17/'Population 2016'!AZ$14","v":0.16645362276686618},{"$f":"'Population 2016'!I17/'Population 2016'!I$14","v":0.16338873837592444},{"$f":"'Population 2016'!J17/'Population 2016'!J$14","v":0.19096220852318413},{"$f":"'Population 2016'!K17/'Population 2016'!K$14","v":0.26400147951792374},{"$f":"'Population 2016'!AH17/'Population 2016'!AH$14","v":0.26648328886974099},{"$f":"'Population 2016'!AI17/'Population 2016'!AI$14","v":0.20442948629957075},{"$f":"'Population 2016'!BA17/'Population 2016'!BA$14","v":0.29377428546757622},{"$f":"'Population 2016'!L17/'Population 2016'!L$14","v":0.27905931527320532},{"$f":"'Population 2016'!M17/'Population 2016'!M$14","v":0.27905931527320532},{"$f":"'Population 2016'!AJ17/'Population 2016'!AJ$14","v":0.35526077999060252},{"$f":"'Population 2016'!AK17/'Population 2016'!AK$14","v":0.15698539865192593},{"$f":"'Population 2016'!AL17/'Population 2016'!AL$14","v":0.2029089603160352},{"$f":"'Population 2016'!AM17/'Population 2016'!AM$14","v":0.27300836999189415},{"$f":"'Population 2016'!N17/'Population 2016'!N$14","v":0.20038799845613181},{"$f":"'Population 2016'!AN17/'Population 2016'!AN$14","v":0.13877459414977183},{"$f":"'Population 2016'!AO17/'Population 2016'!AO$14","v":0.13877459414977183},{"$f":"'Population 2016'!AP17/'Population 2016'!AP$14","v":0.12306775067750678},{"$f":"'Population 2016'!C17/'Population 2016'!C$14","v":0.20475559783859074},{"$f":"'Population 2016'!AQ17/'Population 2016'!AQ$14","v":0.1793471066357194},{"$f":"'Population 2016'!O17/'Population 2016'!O$14","v":0.26304788117989197},{"$f":"'Population 2016'!AR17/'Population 2016'!AR$14","v":0.19916926724339248},{"$f":"'Population 2016'!AS17/'Population 2016'!AS$14","v":0.16338873837592444},{"$f":"'Population 2016'!AT17/'Population 2016'!AT$14","v":3.3781928041746775E-2},{"$f":"'Population 2016'!AU17/'Population 2016'!AU$14","v":3.3781928041746775E-2},{"$f":"'Population 2016'!BB17/'Population 2016'!BB$14","v":0.26005973437997609},{"$f":"'Population 2016'!P17/'Population 2016'!P$14","v":0.17282816685801761},{"$f":"'Population 2016'!AV17/'Population 2016'!AV$14","v":0.2733755355580923},{"$f":"'Population 2016'!AW17/'Population 2016'!AW$14","v":0.25941956825027485},{"$f":"'Population 2016'!Q17/'Population 2016'!Q$14","v":0.27329490131833145},15]
["SIMD Q3",null,{"$f":"'Population 2016'!R18/'Population 2016'!R$14","v":0.10768553569856501},{"$f":"'Population 2016'!AX18/'Population 2016'!AX$14","v":0.16308850604944766},{"$f":"'Population 2016'!S18/'Population 2016'!S$14","v":0.20356448360571072},{"$f":"'Population 2016'!T18/'Population 2016'!T$14","v":0.16123298471485534},{"$f":"'Population 2016'!U18/'Population 2016'!U$14","v":0.69744264761188413},{"$f":"'Population 2016'!D18/'Population 2016'!D$14","v":0.17659765480177345},{"$f":"'Population 2016'!E18/'Population 2016'!E$14","v":0.19590088675187861},{"$f":"'Population 2016'!BC18/'Population 2016'!BC$14","v":0.69744264761188413},{"$f":"'Population 2016'!V18/'Population 2016'!V$14","v":0.18171287206471373},{"$f":"'Population 2016'!F18/'Population 2016'!F$14","v":0.32965943219810734},{"$f":"'Population 2016'!W18/'Population 2016'!W$14","v":0.21407662505380973},{"$f":"'Population 2016'!X18/'Population 2016'!X$14","v":0.21407662505380973},{"$f":"'Population 2016'!Y18/'Population 2016'!Y$14","v":0.17601299586448635},{"$f":"'Population 2016'!Z18/'Population 2016'!Z$14","v":0.14711651990674526},{"$f":"'Population 2016'!AA18/'Population 2016'!AA$14","v":0.1577000981052997},{"$f":"'Population 2016'!AB18/'Population 2016'!AB$14","v":0.19152523060508911},{"$f":"'Population 2016'!AY18/'Population 2016'!AY$14","v":0.21650067262030179},{"$f":"'Population 2016'!AC18/'Population 2016'!AC$14","v":0.14197269245583682},{"$f":"'Population 2016'!AD18/'Population 2016'!AD$14","v":0.33643394330603171},{"$f":"'Population 2016'!AE18/'Population 2016'!AE$14","v":0.31302773593510319},{"$f":"'Population 2016'!G18/'Population 2016'!G$14","v":0.40115790278202385},{"$f":"'Population 2016'!AF18/'Population 2016'!AF$14","v":0.15488631830873553},{"$f":"'Population 2016'!H18/'Population 2016'!H$14","v":0.17102608634633265},{"$f":"'Population 2016'!AG18/'Population 2016'!AG$14","v":0.31302773593510319},{"$f":"'Population 2016'!AZ18/'Population 2016'!AZ$14","v":0.21865575677785773},{"$f":"'Population 2016'!I18/'Population 2016'!I$14","v":0.33516877791608701},{"$f":"'Population 2016'!J18/'Population 2016'!J$14","v":0.16978826051996784},{"$f":"'Population 2016'!K18/'Population 2016'!K$14","v":0.18235058410134697},{"$f":"'Population 2016'!AH18/'Population 2016'!AH$14","v":0.18660032241036068},{"$f":"'Population 2016'!AI18/'Population 2016'!AI$14","v":0.18419701368094074},{"$f":"'Population 2016'!BA18/'Population 2016'!BA$14","v":0.14867455314739661},{"$f":"'Population 2016'!L18/'Population 2016'!L$14","v":0.36370071573837909},{"$f":"'Population 2016'!M18/'Population 2016'!M$14","v":0.36370071573837909},{"$f":"'Population 2016'!AJ18/'Population 2016'!AJ$14","v":0.2320273249719883},{"$f":"'Population 2016'!AK18/'Population 2016'!AK$14","v":0.27301008546722644},{"$f":"'Population 2016'!AL18/'Population 2016'!AL$14","v":0.13625426467947566},{"$f":"'Population 2016'!AM18/'Population 2016'!AM$14","v":0.18126178310882812},{"$f":"'Population 2016'!N18/'Population 2016'!N$14","v":0.12389542324334207},{"$f":"'Population 2016'!AN18/'Population 2016'!AN$14","v":0.30702476247475124},{"$f":"'Population 2016'!AO18/'Population 2016'!AO$14","v":0.30702476247475124},{"$f":"'Population 2016'!AP18/'Population 2016'!AP$14","v":0.2348509485094851},{"$f":"'Population 2016'!C18/'Population 2016'!C$14","v":0.15672704435366028},{"$f":"'Population 2016'!AQ18/'Population 2016'!AQ$14","v":0.17452851002991765},{"$f":"'Population 2016'!O18/'Population 2016'!O$14","v":0.16918103448275862},{"$f":"'Population 2016'!AR18/'Population 2016'!AR$14","v":0.19863888426447399},{"$f":"'Population 2016'!AS18/'Population 2016'!AS$14","v":0.33516877791608701},{"$f":"'Population 2016'!AT18/'Population 2016'!AT$14","v":0.31289480911837408},{"$f":"'Population 2016'!AU18/'Population 2016'!AU$14","v":0.31289480911837408},{"$f":"'Population 2016'!BB18/'Population 2016'!BB$14","v":0.21645535844931615},{"$f":"'Population 2016'!P18/'Population 2016'!P$14","v":6.5380788365862988E-2},{"$f":"'Population 2016'!AV18/'Population 2016'!AV$14","v":0.21619498020844144},{"$f":"'Population 2016'!AW18/'Population 2016'!AW$14","v":0.19237955326375777},{"$f":"'Population 2016'!Q18/'Population 2016'!Q$14","v":0.21096394293927639},16]
["SIMD Q4",null,{"$f":"'Population 2016'!R19/'Population 2016'!R$14","v":0.14869266660797606},{"$f":"'Population 2016'!AX19/'Population 2016'!AX$14","v":0.27523342977380327},{"$f":"'Population 2016'!S19/'Population 2016'!S$14","v":0.19107060255356606},{"$f":"'Population 2016'!T19/'Population 2016'!T$14","v":0.1608967058803582},{"$f":"'Population 2016'!U19/'Population 2016'!U$14","v":5.9734235928293848E-2},{"$f":"'Population 2016'!D19/'Population 2016'!D$14","v":0.26859781413063127},{"$f":"'Population 2016'!E19/'Population 2016'!E$14","v":0.36033053857491482},{"$f":"'Population 2016'!BC19/'Population 2016'!BC$14","v":5.9734235928293848E-2},{"$f":"'Population 2016'!V19/'Population 2016'!V$14","v":0.18989044215817169},{"$f":"'Population 2016'!F19/'Population 2016'!F$14","v":0.24373831246104152},{"$f":"'Population 2016'!W19/'Population 2016'!W$14","v":0.16947912182522601},{"$f":"'Population 2016'!X19/'Population 2016'!X$14","v":0.16947912182522601},{"$f":"'Population 2016'!Y19/'Population 2016'!Y$14","v":0.21496471745781212},{"$f":"'Population 2016'!Z19/'Population 2016'!Z$14","v":0.12012209069924883},{"$f":"'Population 2016'!AA19/'Population 2016'!AA$14","v":0.15113722061679535},{"$f":"'Population 2016'!AB19/'Population 2016'!AB$14","v":0.28571983488623826},{"$f":"'Population 2016'!AY19/'Population 2016'!AY$14","v":0.22708633851440055},{"$f":"'Population 2016'!AC19/'Population 2016'!AC$14","v":0.13949545840423874},{"$f":"'Population 2016'!AD19/'Population 2016'!AD$14","v":0.30643769854560587},{"$f":"'Population 2016'!AE19/'Population 2016'!AE$14","v":0.33032987382706153},{"$f":"'Population 2016'!G19/'Population 2016'!G$14","v":0.24036991745643535},{"$f":"'Population 2016'!AF19/'Population 2016'!AF$14","v":0.18043478260869567},{"$f":"'Population 2016'!H19/'Population 2016'!H$14","v":0.14288721646229147},{"$f":"'Population 2016'!AG19/'Population 2016'!AG$14","v":0.33032987382706153},{"$f":"'Population 2016'!AZ19/'Population 2016'!AZ$14","v":0.27830167016211749},{"$f":"'Population 2016'!I19/'Population 2016'!I$14","v":0.34761660686827267},{"$f":"'Population 2016'!J19/'Population 2016'!J$14","v":0.24234789600643258},{"$f":"'Population 2016'!K19/'Population 2016'!K$14","v":0.18068612643713591},{"$f":"'Population 2016'!AH19/'Population 2016'!AH$14","v":0.17252978508343136},{"$f":"'Population 2016'!AI19/'Population 2016'!AI$14","v":0.18145506371051245},{"$f":"'Population 2016'!BA19/'Population 2016'!BA$14","v":0.12261462740695968},{"$f":"'Population 2016'!L19/'Population 2016'!L$14","v":0.17873234530725066},{"$f":"'Population 2016'!M19/'Population 2016'!M$14","v":0.17873234530725066},{"$f":"'Population 2016'!AJ19/'Population 2016'!AJ$14","v":0.15272707557740267},{"$f":"'Population 2016'!AK19/'Population 2016'!AK$14","v":0.37918346184080681},{"$f":"'Population 2016'!AL19/'Population 2016'!AL$14","v":0.15580295684443646},{"$f":"'Population 2016'!AM19/'Population 2016'!AM$14","v":0.14143373680519505},{"$f":"'Population 2016'!N19/'Population 2016'!N$14","v":0.17562516505169928},{"$f":"'Population 2016'!AN19/'Population 2016'!AN$14","v":0.47609785292137352},{"$f":"'Population 2016'!AO19/'Population 2016'!AO$14","v":0.47609785292137352},{"$f":"'Population 2016'!AP19/'Population 2016'!AP$14","v":0.41433062330623305},{"$f":"'Population 2016'!C19/'Population 2016'!C$14","v":0.17416879636365898},{"$f":"'Population 2016'!AQ19/'Population 2016'!AQ$14","v":0.1749344723813222},{"$f":"'Population 2016'!O19/'Population 2016'!O$14","v":0.1359965724968841},{"$f":"'Population 2016'!AR19/'Population 2016'!AR$14","v":0.20116615486094139},{"$f":"'Population 2016'!AS19/'Population 2016'!AS$14","v":0.34761660686827267},{"$f":"'Population 2016'!AT19/'Population 2016'!AT$14","v":0.65332326283987918},{"$f":"'Population 2016'!AU19/'Population 2016'!AU$14","v":0.65332326283987918},{"$f":"'Population 2016'!BB19/'Population 2016'!BB$14","v":0.181811139515067},{"$f":"'Population 2016'!P19/'Population 2016'!P$14","v":0.18192116341370074},{"$f":"'Population 2016'!AV19/'Population 2016'!AV$14","v":0.13476049990363662},{"$f":"'Population 2016'!AW19/'Population 2016'!AW$14","v":0.20619278379484246},{"$f":"'Population 2016'!Q19/'Population 2016'!Q$14","v":0.31782143022734649},17]
["SIMD Q5 (least deprived)",null,{"$f":"'Population 2016'!R20/'Population 2016'!R$14","v":0.57844880711330227},{"$f":"'Population 2016'!AX20/'Population 2016'!AX$14","v":0.27740334034718567},{"$f":"'Population 2016'!S20/'Population 2016'!S$14","v":0.26655035052027898},{"$f":"'Population 2016'!T20/'Population 2016'!T$14","v":0.39475461535635664},{"$f":"'Population 2016'!U20/'Population 2016'!U$14","v":0},{"$f":"'Population 2016'!D20/'Population 2016'!D$14","v":0.36430849743695021},{"$f":"'Population 2016'!E20/'Population 2016'!E$14","v":0.34747022011742817},{"$f":"'Population 2016'!BC20/'Population 2016'!BC$14","v":0},{"$f":"'Population 2016'!V20/'Population 2016'!V$14","v":0.20110146862483311},{"$f":"'Population 2016'!F20/'Population 2016'!F$14","v":0.17378307927693093},{"$f":"'Population 2016'!W20/'Population 2016'!W$14","v":0.21814894532931553},{"$f":"'Population 2016'!X20/'Population 2016'!X$14","v":0.21814894532931553},{"$f":"'Population 2016'!Y20/'Population 2016'!Y$14","v":0.21297639118781997},{"$f":"'Population 2016'!Z20/'Population 2016'!Z$14","v":0.10452803072138413},{"$f":"'Population 2016'!AA20/'Population 2016'!AA$14","v":0.15813556550697749},{"$f":"'Population 2016'!AB20/'Population 2016'!AB$14","v":0.33612925279289824},{"$f":"'Population 2016'!AY20/'Population 2016'!AY$14","v":0.1875010129823822},{"$f":"'Population 2016'!AC20/'Population 2016'!AC$14","v":0.1816058608549356},{"$f":"'Population 2016'!AD20/'Population 2016'!AD$14","v":9.9914745912370984E-2},{"$f":"'Population 2016'!AE20/'Population 2016'!AE$14","v":9.4629703845994395E-2},{"$f":"'Population 2016'!G20/'Population 2016'!G$14","v":0.11452919596453684},{"$f":"'Population 2016'!AF20/'Population 2016'!AF$14","v":0.10955325089748703},{"$f":"'Population 2016'!H20/'Population 2016'!H$14","v":0.12717751697279089},{"$f":"'Population 2016'!AG20/'Population 2016'!AG$14","v":9.4629703845994395E-2},{"$f":"'Population 2016'!AZ20/'Population 2016'!AZ$14","v":0.1602536625690798},{"$f":"'Population 2016'!I20/'Population 2016'!I$14","v":9.5101413194698683E-2},{"$f":"'Population 2016'!J20/'Population 2016'!J$14","v":0.22594478692039668},{"$f":"'Population 2016'!K20/'Population 2016'!K$14","v":0.12945781832752828},{"$f":"'Population 2016'!AH20/'Population 2016'!AH$14","v":0.11500723174487446},{"$f":"'Population 2016'!AI20/'Population 2016'!AI$14","v":0.30544441450555931},{"$f":"'Population 2016'!BA20/'Population 2016'!BA$14","v":4.3709524220706328E-2},{"$f":"'Population 2016'!L20/'Population 2016'!L$14","v":8.9686400970797428E-2},{"$f":"'Population 2016'!M20/'Population 2016'!M$14","v":8.9686400970797428E-2},{"$f":"'Population 2016'!AJ20/'Population 2016'!AJ$14","v":0.15869085914627534},{"$f":"'Population 2016'!AK20/'Population 2016'!AK$14","v":0.18230778236799411},{"$f":"'Population 2016'!AL20/'Population 2016'!AL$14","v":8.8034955407912854E-2},{"$f":"'Population 2016'!AM20/'Population 2016'!AM$14","v":9.2784866617485001E-2},{"$f":"'Population 2016'!N20/'Population 2016'!N$14","v":0.14340707335405367},{"$f":"'Population 2016'!AN20/'Population 2016'!AN$14","v":7.8102790454103385E-2},{"$f":"'Population 2016'!AO20/'Population 2016'!AO$14","v":7.8102790454103385E-2},{"$f":"'Population 2016'!AP20/'Population 2016'!AP$14","v":0.16788075880758807},{"$f":"'Population 2016'!C20/'Population 2016'!C$14","v":0.38164170102163275},{"$f":"'Population 2016'!AQ20/'Population 2016'!AQ$14","v":0.17943535932080734},{"$f":"'Population 2016'!O20/'Population 2016'!O$14","v":0.11537962193601994},{"$f":"'Population 2016'!AR20/'Population 2016'!AR$14","v":0.19997931191189741},{"$f":"'Population 2016'!AS20/'Population 2016'!AS$14","v":9.5101413194698683E-2},{"$f":"'Population 2016'!AT20/'Population 2016'!AT$14","v":0},{"$f":"'Population 2016'!AU20/'Population 2016'!AU$14","v":0},{"$f":"'Population 2016'!BB20/'Population 2016'!BB$14","v":0.18302476308518606},{"$f":"'Population 2016'!P20/'Population 2016'!P$14","v":0.52854190585533867},{"$f":"'Population 2016'!AV20/'Population 2016'!AV$14","v":0.18912427912768892},{"$f":"'Population 2016'!AW20/'Population 2016'!AW$14","v":0.13906403285202293},{"$f":"'Population 2016'!Q20/'Population 2016'!Q$14","v":0.1623108665749656},18]
[]
["All quintiles","Female 0-4",{"$f":"'Population 2016'!R22/'Population 2016'!R$14","v":0},{"$f":"'Population 2016'!AX22/'Population 2016'!AX$14","v":0},{"$f":"'Population 2016'!S22/'Population 2016'!S$14","v":0},{"$f":"'Population 2016'!T22/'Population 2016'!T$14","v":0},{"$f":"'Population 2016'!U22/'Population 2016'!U$14","v":0},{"$f":"'Population 2016'!D22/'Population 2016'!D$14","v":0},{"$f":"'Population 2016'!E22/'Population 2016'!E$14","v":0},{"$f":"'Population 2016'!BC22/'Population 2016'!BC$14","v":0},{"$f":"'Population 2016'!V22/'Population 2016'!V$14","v":0},{"$f":"'Population 2016'!F22/'Population 2016'!F$14","v":0},{"$f":"'Population 2016'!W22/'Population 2016'!W$14","v":0},{"$f":"'Population 2016'!X22/'Population 2016'!X$14","v":0},{"$f":"'Population 2016'!Y22/'Population 2016'!Y$14","v":0},{"$f":"'Population 2016'!Z22/'Population 2016'!Z$14","v":0},{"$f":"'Population 2016'!AA22/'Population 2016'!AA$14","v":0},{"$f":"'Population 2016'!AB22/'Population 2016'!AB$14","v":0},{"$f":"'Population 2016'!AY22/'Population 2016'!AY$14","v":0},{"$f":"'Population 2016'!AC22/'Population 2016'!AC$14","v":0},{"$f":"'Population 2016'!AD22/'Population 2016'!AD$14","v":0},{"$f":"'Population 2016'!AE22/'Population 2016'!AE$14","v":0},{"$f":"'Population 2016'!G22/'Population 2016'!G$14","v":0},{"$f":"'Population 2016'!AF22/'Population 2016'!AF$14","v":0},{"$f":"'Population 2016'!H22/'Population 2016'!H$14","v":0},{"$f":"'Population 2016'!AG22/'Population 2016'!AG$14","v":0},{"$f":"'Population 2016'!AZ22/'Population 2016'!AZ$14","v":0},{"$f":"'Population 2016'!I22/'Population 2016'!I$14","v":0},{"$f":"'Population 2016'!J22/'Population 2016'!J$14","v":0},{"$f":"'Population 2016'!K22/'Population 2016'!K$14","v":0},{"$f":"'Population 2016'!AH22/'Population 2016'!AH$14","v":0},{"$f":"'Population 2016'!AI22/'Population 2016'!AI$14","v":0},{"$f":"'Population 2016'!BA22/'Population 2016'!BA$14","v":0},{"$f":"'Population 2016'!L22/'Population 2016'!L$14","v":0},{"$f":"'Population 2016'!M22/'Population 2016'!M$14","v":0},{"$f":"'Population 2016'!AJ22/'Population 2016'!AJ$14","v":0},{"$f":"'Population 2016'!AK22/'Population 2016'!AK$14","v":0},{"$f":"'Population 2016'!AL22/'Population 2016'!AL$14","v":0},{"$f":"'Population 2016'!AM22/'Population 2016'!AM$14","v":0},{"$f":"'Population 2016'!N22/'Population 2016'!N$14","v":0},{"$f":"'Population 2016'!AN22/'Population 2016'!AN$14","v":0},{"$f":"'Population 2016'!AO22/'Population 2016'!AO$14","v":0},{"$f":"'Population 2016'!AP22/'Population 2016'!AP$14","v":0},{"$f":"'Population 2016'!C22/'Population 2016'!C$14","v":0},{"$f":"'Population 2016'!AQ22/'Population 2016'!AQ$14","v":0},{"$f":"'Population 2016'!O22/'Population 2016'!O$14","v":0},{"$f":"'Population 2016'!AR22/'Population 2016'!AR$14","v":0},{"$f":"'Population 2016'!AS22/'Population 2016'!AS$14","v":0},{"$f":"'Population 2016'!AT22/'Population 2016'!AT$14","v":0},{"$f":"'Population 2016'!AU22/'Population 2016'!AU$14","v":0},{"$f":"'Population 2016'!BB22/'Population 2016'!BB$14","v":0},{"$f":"'Population 2016'!P22/'Population 2016'!P$14","v":0},{"$f":"'Population 2016'!AV22/'Population 2016'!AV$14","v":0},{"$f":"'Population 2016'!AW22/'Population 2016'!AW$14","v":0},{"$f":"'Population 2016'!Q22/'Population 2016'!Q$14","v":0},20]
[null,"Female 5-9",{"$f":"'Population 2016'!R23/'Population 2016'!R$14","v":0},{"$f":"'Population 2016'!AX23/'Population 2016'!AX$14","v":0},{"$f":"'Population 2016'!S23/'Population 2016'!S$14","v":0},{"$f":"'Population 2016'!T23/'Population 2016'!T$14","v":0},{"$f":"'Population 2016'!U23/'Population 2016'!U$14","v":0},{"$f":"'Population 2016'!D23/'Population 2016'!D$14","v":0},{"$f":"'Population 2016'!E23/'Population 2016'!E$14","v":0},{"$f":"'Population 2016'!BC23/'Population 2016'!BC$14","v":0},{"$f":"'Population 2016'!V23/'Population 2016'!V$14","v":0},{"$f":"'Population 2016'!F23/'Population 2016'!F$14","v":0},{"$f":"'Population 2016'!W23/'Population 2016'!W$14","v":0},{"$f":"'Population 2016'!X23/'Population 2016'!X$14","v":0},{"$f":"'Population 2016'!Y23/'Population 2016'!Y$14","v":0},{"$f":"'Population 2016'!Z23/'Population 2016'!Z$14","v":0},{"$f":"'Population 2016'!AA23/'Population 2016'!AA$14","v":0},{"$f":"'Population 2016'!AB23/'Population 2016'!AB$14","v":0},{"$f":"'Population 2016'!AY23/'Population 2016'!AY$14","v":0},{"$f":"'Population 2016'!AC23/'Population 2016'!AC$14","v":0},{"$f":"'Population 2016'!AD23/'Population 2016'!AD$14","v":0},{"$f":"'Population 2016'!AE23/'Population 2016'!AE$14","v":0},{"$f":"'Population 2016'!G23/'Population 2016'!G$14","v":0},{"$f":"'Population 2016'!AF23/'Population 2016'!AF$14","v":0},{"$f":"'Population 2016'!H23/'Population 2016'!H$14","v":0},{"$f":"'Population 2016'!AG23/'Population 2016'!AG$14","v":0},{"$f":"'Population 2016'!AZ23/'Population 2016'!AZ$14","v":0},{"$f":"'Population 2016'!I23/'Population 2016'!I$14","v":0},{"$f":"'Population 2016'!J23/'Population 2016'!J$14","v":0},{"$f":"'Population 2016'!K23/'Population 2016'!K$14","v":0},{"$f":"'Population 2016'!AH23/'Population 2016'!AH$14","v":0},{"$f":"'Population 2016'!AI23/'Population 2016'!AI$14","v":0},{"$f":"'Population 2016'!BA23/'Population 2016'!BA$14","v":0},{"$f":"'Population 2016'!L23/'Population 2016'!L$14","v":0},{"$f":"'Population 2016'!M23/'Population 2016'!M$14","v":0},{"$f":"'Population 2016'!AJ23/'Population 2016'!AJ$14","v":0},{"$f":"'Population 2016'!AK23/'Population 2016'!AK$14","v":0},{"$f":"'Population 2016'!AL23/'Population 2016'!AL$14","v":0},{"$f":"'Population 2016'!AM23/'Population 2016'!AM$14","v":0},{"$f":"'Population 2016'!N23/'Population 2016'!N$14","v":0},{"$f":"'Population 2016'!AN23/'Population 2016'!AN$14","v":0},{"$f":"'Population 2016'!AO23/'Population 2016'!AO$14","v":0},{"$f":"'Population 2016'!AP23/'Population 2016'!AP$14","v":0},{"$f":"'Population 2016'!C23/'Population 2016'!C$14","v":0},{"$f":"'Population 2016'!AQ23/'Population 2016'!AQ$14","v":0},{"$f":"'Population 2016'!O23/'Population 2016'!O$14","v":0},{"$f":"'Population 2016'!AR23/'Population 2016'!AR$14","v":0},{"$f":"'Population 2016'!AS23/'Population 2016'!AS$14","v":0},{"$f":"'Population 2016'!AT23/'Population 2016'!AT$14","v":0},{"$f":"'Population 2016'!AU23/'Population 2016'!AU$14","v":0},{"$f":"'Population 2016'!BB23/'Population 2016'!BB$14","v":0},{"$f":"'Population 2016'!P23/'Population 2016'!P$14","v":0},{"$f":"'Population 2016'!AV23/'Population 2016'!AV$14","v":0},{"$f":"'Population 2016'!AW23/'Population 2016'!AW$14","v":0},{"$f":"'Population 2016'!Q23/'Population 2016'!Q$14","v":0},21]
[null,"Female 10-15",{"$f":"'Population 2016'!R24/'Population 2016'!R$14","v":0},{"$f":"'Population 2016'!AX24/'Population 2016'!AX$14","v":0},{"$f":"'Population 2016'!S24/'Population 2016'!S$14","v":0},{"$f":"'Population 2016'!T24/'Population 2016'!T$14","v":0},{"$f":"'Population 2016'!U24/'Population 2016'!U$14","v":0},{"$f":"'Population 2016'!D24/'Population 2016'!D$14","v":0},{"$f":"'Population 2016'!E24/'Population 2016'!E$14","v":0},{"$f":"'Population 2016'!BC24/'Population 2016'!BC$14","v":0},{"$f":"'Population 2016'!V24/'Population 2016'!V$14","v":0},{"$f":"'Population 2016'!F24/'Population 2016'!F$14","v":0},{"$f":"'Population 2016'!W24/'Population 2016'!W$14","v":0},{"$f":"'Population 2016'!X24/'Population 2016'!X$14","v":0},{"$f":"'Population 2016'!Y24/'Population 2016'!Y$14","v":0},{"$f":"'Population 2016'!Z24/'Population 2016'!Z$14","v":0},{"$f":"'Population 2016'!AA24/'Population 2016'!AA$14","v":0},{"$f":"'Population 2016'!AB24/'Population 2016'!AB$14","v":0},{"$f":"'Population 2016'!AY24/'Population 2016'!AY$14","v":0},{"$f":"'Population 2016'!AC24/'Population 2016'!AC$14","v":0},{"$f":"'Population 2016'!AD24/'Population 2016'!AD$14","v":0},{"$f":"'Population 2016'!AE24/'Population 2016'!AE$14","v":0},{"$f":"'Population 2016'!G24/'Population 2016'!G$14","v":0},{"$f":"'Population 2016'!AF24/'Population 2016'!AF$14","v":0},{"$f":"'Population 2016'!H24/'Population 2016'!H$14","v":0},{"$f":"'Population 2016'!AG24/'Population 2016'!AG$14","v":0},{"$f":"'Population 2016'!AZ24/'Population 2016'!AZ$14","v":0},{"$f":"'Population 2016'!I24/'Population 2016'!I$14","v":0},{"$f":"'Population 2016'!J24/'Population 2016'!J$14","v":0},{"$f":"'Population 2016'!K24/'Population 2016'!K$14","v":0},{"$f":"'Population 2016'!AH24/'Population 2016'!AH$14","v":0},{"$f":"'Population 2016'!AI24/'Population 2016'!AI$14","v":0},{"$f":"'Population 2016'!BA24/'Population 2016'!BA$14","v":0},{"$f":"'Population 2016'!L24/'Population 2016'!L$14","v":0},{"$f":"'Population 2016'!M24/'Population 2016'!M$14","v":0},{"$f":"'Population 2016'!AJ24/'Population 2016'!AJ$14","v":0},{"$f":"'Population 2016'!AK24/'Population 2016'!AK$14","v":0},{"$f":"'Population 2016'!AL24/'Population 2016'!AL$14","v":0},{"$f":"'Population 2016'!AM24/'Population 2016'!AM$14","v":0},{"$f":"'Population 2016'!N24/'Population 2016'!N$14","v":0},{"$f":"'Population 2016'!AN24/'Population 2016'!AN$14","v":0},{"$f":"'Population 2016'!AO24/'Population 2016'!AO$14","v":0},{"$f":"'Population 2016'!AP24/'Population 2016'!AP$14","v":0},{"$f":"'Population 2016'!C24/'Population 2016'!C$14","v":0},{"$f":"'Population 2016'!AQ24/'Population 2016'!AQ$14","v":0},{"$f":"'Population 2016'!O24/'Population 2016'!O$14","v":0},{"$f":"'Population 2016'!AR24/'Population 2016'!AR$14","v":0},{"$f":"'Population 2016'!AS24/'Population 2016'!AS$14","v":0},{"$f":"'Population 2016'!AT24/'Population 2016'!AT$14","v":0},{"$f":"'Population 2016'!AU24/'Population 2016'!AU$14","v":0},{"$f":"'Population 2016'!BB24/'Population 2016'!BB$14","v":0},{"$f":"'Population 2016'!P24/'Population 2016'!P$14","v":0},{"$f":"'Population 2016'!AV24/'Population 2016'!AV$14","v":0},{"$f":"'Population 2016'!AW24/'Population 2016'!AW$14","v":0},{"$f":"'Population 2016'!Q24/'Population 2016'!Q$14","v":0},22]
[null,"Female 16-19",{"$f":"'Population 2016'!R25/'Population 2016'!R$14","v":3.9950699885553304E-2},{"$f":"'Population 2016'!AX25/'Population 2016'!AX$14","v":4.5337980010520779E-2},{"$f":"'Population 2016'!S25/'Population 2016'!S$14","v":3.3546429902680662E-2},{"$f":"'Population 2016'!T25/'Population 2016'!T$14","v":2.9617970288775917E-2},{"$f":"'Population 2016'!U25/'Population 2016'!U$14","v":3.1716184029083612E-2},{"$f":"'Population 2016'!D25/'Population 2016'!D$14","v":3.2015908373650682E-2},{"$f":"'Population 2016'!E25/'Population 2016'!E$14","v":3.211757315098944E-2},{"$f":"'Population 2016'!BC25/'Population 2016'!BC$14","v":3.1716184029083612E-2},{"$f":"'Population 2016'!V25/'Population 2016'!V$14","v":3.2229246838922483E-2},{"$f":"'Population 2016'!F25/'Population 2016'!F$14","v":3.4283447611492039E-2},{"$f":"'Population 2016'!W25/'Population 2016'!W$14","v":3.6732673267326731E-2},{"$f":"'Population 2016'!X25/'Population 2016'!X$14","v":3.6732673267326731E-2},{"$f":"'Population 2016'!Y25/'Population 2016'!Y$14","v":3.6696918606736739E-2},{"$f":"'Population 2016'!Z25/'Population 2016'!Z$14","v":3.1567053995790136E-2},{"$f":"'Population 2016'!AA25/'Population 2016'!AA$14","v":3.3981473448167702E-2},{"$f":"'Population 2016'!AB25/'Population 2016'!AB$14","v":3.2370169723273896E-2},{"$f":"'Population 2016'!AY25/'Population 2016'!AY$14","v":3.6590949610204378E-2},{"$f":"'Population 2016'!AC25/'Population 2016'!AC$14","v":3.3197255075238095E-2},{"$f":"'Population 2016'!AD25/'Population 2016'!AD$14","v":3.3046108252392695E-2},{"$f":"'Population 2016'!AE25/'Population 2016'!AE$14","v":3.2869916115034342E-2},{"$f":"'Population 2016'!G25/'Population 2016'!G$14","v":3.3533323142769793E-2},{"$f":"'Population 2016'!AF25/'Population 2016'!AF$14","v":3.4204228161148785E-2},{"$f":"'Population 2016'!H25/'Population 2016'!H$14","v":3.5327088047997474E-2},{"$f":"'Population 2016'!AG25/'Population 2016'!AG$14","v":3.2869916115034342E-2},{"$f":"'Population 2016'!AZ25/'Population 2016'!AZ$14","v":3.6464951089202884E-2},{"$f":"'Population 2016'!I25/'Population 2016'!I$14","v":3.5058944131214763E-2},{"$f":"'Population 2016'!J25/'Population 2016'!J$14","v":4.1575984990619139E-2},{"$f":"'Population 2016'!K25/'Population 2016'!K$14","v":3.4522084887340876E-2},{"$f":"'Population 2016'!AH25/'Population 2016'!AH$14","v":3.5422530376879251E-2},{"$f":"'Population 2016'!AI25/'Population 2016'!AI$14","v":3.2117080246944964E-2},{"$f":"'Population 2016'!BA25/'Population 2016'!BA$14","v":3.3624039374838099E-2},{"$f":"'Population 2016'!L25/'Population 2016'!L$14","v":3.3786896481982943E-2},{"$f":"'Population 2016'!M25/'Population 2016'!M$14","v":3.3786896481982943E-2},{"$f":"'Population 2016'!AJ25/'Population 2016'!AJ$14","v":3.6379079770123252E-2},{"$f":"'Population 2016'!AK25/'Population 2016'!AK$14","v":3.4303968957500541E-2},{"$f":"'Population 2016'!AL25/'Population 2016'!AL$14","v":3.6344047405279224E-2},{"$f":"'Population 2016'!AM25/'Population 2016'!AM$14","v":3.6681330090986092E-2},{"$f":"'Population 2016'!N25/'Population 2016'!N$14","v":4.0079631096755844E-2},{"$f":"'Population 2016'!AN25/'Population 2016'!AN$14","v":2.9550385277175132E-2},{"$f":"'Population 2016'!AO25/'Population 2016'!AO$14","v":2.9550385277175132E-2},{"$f":"'Population 2016'!AP25/'Population 2016'!AP$14","v":3.427642276422764E-2},{"$f":"'Population 2016'!C25/'Population 2016'!C$14","v":3.1911255370878182E-2},{"$f":"'Population 2016'!AQ25/'Population 2016'!AQ$14","v":3.404788590692872E-2},{"$f":"'Population 2016'!O25/'Population 2016'!O$14","v":3.4171167428334023E-2},{"$f":"'Population 2016'!AR25/'Population 2016'!AR$14","v":3.4041647241736299E-2},{"$f":"'Population 2016'!AS25/'Population 2016'!AS$14","v":3.5058944131214763E-2},{"$f":"'Population 2016'!AT25/'Population 2016'!AT$14","v":3.6116451524306509E-2},{"$f":"'Population 2016'!AU25/'Population 2016'!AU$14","v":3.6116451524306509E-2},{"$f":"'Population 2016'!BB25/'Population 2016'!BB$14","v":3.5616839242216883E-2},{"$f":"'Population 2016'!P25/'Population 2016'!P$14","v":3.5499425947187142E-2},{"$f":"'Population 2016'!AV25/'Population 2016'!AV$14","v":3.5387603220019867E-2},{"$f":"'Population 2016'!AW25/'Population 2016'!AW$14","v":3.4059817894098565E-2},{"$f":"'Population 2016'!Q25/'Population 2016'!Q$14","v":3.58561426827195E-2},23]
[null,"Female 20-24",{"$f":"'Population 2016'!R26/'Population 2016'!R$14","v":4.3859494673826924E-2},{"$f":"'Population 2016'!AX26/'Population 2016'!AX$14","v":6.623158863755918E-2},{"$f":"'Population 2016'!S26/'Population 2016'!S$14","v":5.6807413694766669E-2},{"$f":"'Population 2016'!T26/'Population 2016'!T$14","v":7.0056206605194515E-2},{"$f":"'Population 2016'!U26/'Population 2016'!U$14","v":3.5038234925410555E-2},{"$f":"'Population 2016'!D26/'Population 2016'!D$14","v":5.3739785335004245E-2},{"$f":"'Population 2016'!E26/'Population 2016'!E$14","v":3.8375576871964627E-2},{"$f":"'Population 2016'!BC26/'Population 2016'!BC$14","v":3.5038234925410555E-2},{"$f":"'Population 2016'!V26/'Population 2016'!V$14","v":4.3832953742244558E-2},{"$f":"'Population 2016'!F26/'Population 2016'!F$14","v":4.2825976086586955E-2},{"$f":"'Population 2016'!W26/'Population 2016'!W$14","v":5.3241498062849765E-2},{"$f":"'Population 2016'!X26/'Population 2016'!X$14","v":5.3241498062849765E-2},{"$f":"'Population 2016'!Y26/'Population 2016'!Y$14","v":5.0758689959464795E-2},{"$f":"'Population 2016'!Z26/'Population 2016'!Z$14","v":6.67709505467972E-2},{"$f":"'Population 2016'!AA26/'Population 2016'!AA$14","v":5.3403152717249845E-2},{"$f":"'Population 2016'!AB26/'Population 2016'!AB$14","v":5.194505875833208E-2},{"$f":"'Population 2016'!AY26/'Population 2016'!AY$14","v":5.3955493606055206E-2},{"$f":"'Population 2016'!AC26/'Population 2016'!AC$14","v":5.7840774267682984E-2},{"$f":"'Population 2016'!AD26/'Population 2016'!AD$14","v":3.8252697175450885E-2},{"$f":"'Population 2016'!AE26/'Population 2016'!AE$14","v":3.8978178853249681E-2},{"$f":"'Population 2016'!G26/'Population 2016'!G$14","v":3.6246560684805869E-2},{"$f":"'Population 2016'!AF26/'Population 2016'!AF$14","v":4.7526924611088948E-2},{"$f":"'Population 2016'!H26/'Population 2016'!H$14","v":4.5826535445502865E-2},{"$f":"'Population 2016'!AG26/'Population 2016'!AG$14","v":3.8978178853249681E-2},{"$f":"'Population 2016'!AZ26/'Population 2016'!AZ$14","v":5.4590266827916657E-2},{"$f":"'Population 2016'!I26/'Population 2016'!I$14","v":4.0374899319030537E-2},{"$f":"'Population 2016'!J26/'Population 2016'!J$14","v":5.832216563923881E-2},{"$f":"'Population 2016'!K26/'Population 2016'!K$14","v":4.3491662300033908E-2},{"$f":"'Population 2016'!AH26/'Population 2016'!AH$14","v":4.5248708109733145E-2},{"$f":"'Population 2016'!AI26/'Population 2016'!AI$14","v":6.0112762268870391E-2},{"$f":"'Population 2016'!BA26/'Population 2016'!BA$14","v":4.8821345306968307E-2},{"$f":"'Population 2016'!L26/'Population 2016'!L$14","v":4.2663400712367558E-2},{"$f":"'Population 2016'!M26/'Population 2016'!M$14","v":4.2663400712367558E-2},{"$f":"'Population 2016'!AJ26/'Population 2016'!AJ$14","v":4.4746448837965809E-2},{"$f":"'Population 2016'!AK26/'Population 2016'!AK$14","v":4.2148221244710564E-2},{"$f":"'Population 2016'!AL26/'Population 2016'!AL$14","v":4.7489076435027235E-2},{"$f":"'Population 2016'!AM26/'Population 2016'!AM$14","v":4.58436933613851E-2},{"$f":"'Population 2016'!N26/'Population 2016'!N$14","v":7.5029963231559915E-2},{"$f":"'Population 2016'!AN26/'Population 2016'!AN$14","v":3.9949128450662078E-2},{"$f":"'Population 2016'!AO26/'Population 2016'!AO$14","v":3.9949128450662078E-2},{"$f":"'Population 2016'!AP26/'Population 2016'!AP$14","v":4.1777777777777775E-2},{"$f":"'Population 2016'!C26/'Population 2016'!C$14","v":6.9555592864116E-2},{"$f":"'Population 2016'!AQ26/'Population 2016'!AQ$14","v":4.813301444696455E-2},{"$f":"'Population 2016'!O26/'Population 2016'!O$14","v":4.5648109680099712E-2},{"$f":"'Population 2016'!AR26/'Population 2016'!AR$14","v":5.2229972455042808E-2},{"$f":"'Population 2016'!AS26/'Population 2016'!AS$14","v":4.0374899319030537E-2},{"$f":"'Population 2016'!AT26/'Population 2016'!AT$14","v":3.8588299917605054E-2},{"$f":"'Population 2016'!AU26/'Population 2016'!AU$14","v":3.8588299917605054E-2},{"$f":"'Population 2016'!BB26/'Population 2016'!BB$14","v":4.3561339633847188E-2},{"$f":"'Population 2016'!P26/'Population 2016'!P$14","v":4.3582089552238808E-2},{"$f":"'Population 2016'!AV26/'Population 2016'!AV$14","v":4.3971357834343916E-2},{"$f":"'Population 2016'!AW26/'Population 2016'!AW$14","v":4.460460736804224E-2},{"$f":"'Population 2016'!Q26/'Population 2016'!Q$14","v":4.8591255428650913E-2},24]
[null,"Female 25-29",{"$f":"'Population 2016'!R27/'Population 2016'!R$14","v":3.9580949027203098E-2},{"$f":"'Population 2016'!AX27/'Population 2016'!AX$14","v":5.3458705944239876E-2},{"$f":"'Population 2016'!S27/'Population 2016'!S$14","v":5.8475809385230997E-2},{"$f":"'Population 2016'!T27/'Population 2016'!T$14","v":7.7671933151158751E-2},{"$f":"'Population 2016'!U27/'Population 2016'!U$14","v":3.8297605616146424E-2},{"$f":"'Population 2016'!D27/'Population 2016'!D$14","v":5.6414671736592627E-2},{"$f":"'Population 2016'!E27/'Population 2016'!E$14","v":4.0870321598569598E-2},{"$f":"'Population 2016'!BC27/'Population 2016'!BC$14","v":3.8297605616146424E-2},{"$f":"'Population 2016'!V27/'Population 2016'!V$14","v":4.55607476635514E-2},{"$f":"'Population 2016'!F27/'Population 2016'!F$14","v":4.1352637842126137E-2},{"$f":"'Population 2016'!W27/'Population 2016'!W$14","v":4.7981058975462766E-2},{"$f":"'Population 2016'!X27/'Population 2016'!X$14","v":4.7981058975462766E-2},{"$f":"'Population 2016'!Y27/'Population 2016'!Y$14","v":4.7663460405147101E-2},{"$f":"'Population 2016'!Z27/'Population 2016'!Z$14","v":7.5331625049388506E-2},{"$f":"'Population 2016'!AA27/'Population 2016'!AA$14","v":5.6485627907287152E-2},{"$f":"'Population 2016'!AB27/'Population 2016'!AB$14","v":5.4431087793079515E-2},{"$f":"'Population 2016'!AY27/'Population 2016'!AY$14","v":5.0322938783448679E-2},{"$f":"'Population 2016'!AC27/'Population 2016'!AC$14","v":6.2009432297309312E-2},{"$f":"'Population 2016'!AD27/'Population 2016'!AD$14","v":4.0749424027443699E-2},{"$f":"'Population 2016'!AE27/'Population 2016'!AE$14","v":4.2495266787357829E-2},{"$f":"'Population 2016'!G27/'Population 2016'!G$14","v":3.5921736472026906E-2},{"$f":"'Population 2016'!AF27/'Population 2016'!AF$14","v":4.5811727163940968E-2},{"$f":"'Population 2016'!H27/'Population 2016'!H$14","v":4.5580934336789294E-2},{"$f":"'Population 2016'!AG27/'Population 2016'!AG$14","v":4.2495266787357829E-2},{"$f":"'Population 2016'!AZ27/'Population 2016'!AZ$14","v":5.2404972214993191E-2},{"$f":"'Population 2016'!I27/'Population 2016'!I$14","v":3.6362305045031851E-2},{"$f":"'Population 2016'!J27/'Population 2016'!J$14","v":4.9959796301259719E-2},{"$f":"'Population 2016'!K27/'Population 2016'!K$14","v":4.3399192429799956E-2},{"$f":"'Population 2016'!AH27/'Population 2016'!AH$14","v":4.6335245228350336E-2},{"$f":"'Population 2016'!AI27/'Population 2016'!AI$14","v":6.5166220125370489E-2},{"$f":"'Population 2016'!BA27/'Population 2016'!BA$14","v":4.9995682583542006E-2},{"$f":"'Population 2016'!L27/'Population 2016'!L$14","v":4.3213968696277485E-2},{"$f":"'Population 2016'!M27/'Population 2016'!M$14","v":4.3213968696277485E-2},{"$f":"'Population 2016'!AJ27/'Population 2016'!AJ$14","v":4.7945205479452052E-2},{"$f":"'Population 2016'!AK27/'Population 2016'!AK$14","v":4.3603338406730335E-2},{"$f":"'Population 2016'!AL27/'Population 2016'!AL$14","v":4.5765248099598969E-2},{"$f":"'Population 2016'!AM27/'Population 2016'!AM$14","v":4.8302776942903719E-2},{"$f":"'Population 2016'!N27/'Population 2016'!N$14","v":6.9920978324903002E-2},{"$f":"'Population 2016'!AN27/'Population 2016'!AN$14","v":4.4512605670681528E-2},{"$f":"'Population 2016'!AO27/'Population 2016'!AO$14","v":4.4512605670681528E-2},{"$f":"'Population 2016'!AP27/'Population 2016'!AP$14","v":4.21680216802168E-2},{"$f":"'Population 2016'!C27/'Population 2016'!C$14","v":7.2415915831887626E-2},{"$f":"'Population 2016'!AQ27/'Population 2016'!AQ$14","v":4.9633310093459594E-2},{"$f":"'Population 2016'!O27/'Population 2016'!O$14","v":4.8114873286248444E-2},{"$f":"'Population 2016'!AR27/'Population 2016'!AR$14","v":5.3862096413940561E-2},{"$f":"'Population 2016'!AS27/'Population 2016'!AS$14","v":3.6362305045031851E-2},{"$f":"'Population 2016'!AT27/'Population 2016'!AT$14","v":4.7651744026366384E-2},{"$f":"'Population 2016'!AU27/'Population 2016'!AU$14","v":4.7651744026366384E-2},{"$f":"'Population 2016'!BB27/'Population 2016'!BB$14","v":4.7503464421893425E-2},{"$f":"'Population 2016'!P27/'Population 2016'!P$14","v":3.7795637198622271E-2},{"$f":"'Population 2016'!AV27/'Population 2016'!AV$14","v":4.2459193809022577E-2},{"$f":"'Population 2016'!AW27/'Population 2016'!AW$14","v":4.420529556468112E-2},{"$f":"'Population 2016'!Q27/'Population 2016'!Q$14","v":4.3212834026242986E-2},25]
[null,"Female 30-34",{"$f":"'Population 2016'!R28/'Population 2016'!R$14","v":3.8665375473193063E-2},{"$f":"'Population 2016'!AX28/'Population 2016'!AX$14","v":4.1655707522356651E-2},{"$f":"'Population 2016'!S28/'Population 2016'!S$14","v":5.4632661034989156E-2},{"$f":"'Population 2016'!T28/'Population 2016'!T$14","v":6.4983765362149698E-2},{"$f":"'Population 2016'!U28/'Population 2016'!U$14","v":4.161965651247336E-2},{"$f":"'Population 2016'!D28/'Population 2016'!D$14","v":5.4977647999656827E-2},{"$f":"'Population 2016'!E28/'Population 2016'!E$14","v":4.9719718752265205E-2},{"$f":"'Population 2016'!BC28/'Population 2016'!BC$14","v":4.161965651247336E-2},{"$f":"'Population 2016'!V28/'Population 2016'!V$14","v":5.1185894918715148E-2},{"$f":"'Population 2016'!F28/'Population 2016'!F$14","v":4.5871819572731912E-2},{"$f":"'Population 2016'!W28/'Population 2016'!W$14","v":4.683598794662075E-2},{"$f":"'Population 2016'!X28/'Population 2016'!X$14","v":4.683598794662075E-2},{"$f":"'Population 2016'!Y28/'Population 2016'!Y$14","v":4.7197126151102546E-2},{"$f":"'Population 2016'!Z28/'Population 2016'!Z$14","v":6.171079476793756E-2},{"$f":"'Population 2016'!AA28/'Population 2016'!AA$14","v":5.2803342254019316E-2},{"$f":"'Population 2016'!AB28/'Population 2016'!AB$14","v":5.4063362665023124E-2},{"$f":"'Population 2016'!AY28/'Population 2016'!AY$14","v":4.8347623138138382E-2},{"$f":"'Population 2016'!AC28/'Population 2016'!AC$14","v":5.4132008363080325E-2},{"$f":"'Population 2016'!AD28/'Population 2016'!AD$14","v":4.442854388048189E-2},{"$f":"'Population 2016'!AE28/'Population 2016'!AE$14","v":4.7228479429526952E-2},{"$f":"'Population 2016'!G28/'Population 2016'!G$14","v":3.668602873738918E-2},{"$f":"'Population 2016'!AF28/'Population 2016'!AF$14","v":4.4475468687674512E-2},{"$f":"'Population 2016'!H28/'Population 2016'!H$14","v":4.4620458572355838E-2},{"$f":"'Population 2016'!AG28/'Population 2016'!AG$14","v":4.7228479429526952E-2},{"$f":"'Population 2016'!AZ28/'Population 2016'!AZ$14","v":4.9691532844480503E-2},{"$f":"'Population 2016'!I28/'Population 2016'!I$14","v":4.1414659149154279E-2},{"$f":"'Population 2016'!J28/'Population 2016'!J$14","v":4.2841061377646747E-2},{"$f":"'Population 2016'!K28/'Population 2016'!K$14","v":4.5063650094011032E-2},{"$f":"'Population 2016'!AH28/'Population 2016'!AH$14","v":5.0361823962049315E-2},{"$f":"'Population 2016'!AI28/'Population 2016'!AI$14","v":5.9231542253652403E-2},{"$f":"'Population 2016'!BA28/'Population 2016'!BA$14","v":5.1342716518435368E-2},{"$f":"'Population 2016'!L28/'Population 2016'!L$14","v":4.2169013134979047E-2},{"$f":"'Population 2016'!M28/'Population 2016'!M$14","v":4.2169013134979047E-2},{"$f":"'Population 2016'!AJ28/'Population 2016'!AJ$14","v":5.2011421549137959E-2},{"$f":"'Population 2016'!AK28/'Population 2016'!AK$14","v":4.9072571877770158E-2},{"$f":"'Population 2016'!AL28/'Population 2016'!AL$14","v":4.4005506673849282E-2},{"$f":"'Population 2016'!AM28/'Population 2016'!AM$14","v":5.1658970645828209E-2},{"$f":"'Population 2016'!N28/'Population 2016'!N$14","v":5.445182521786824E-2},{"$f":"'Population 2016'!AN28/'Population 2016'!AN$14","v":4.4437794568713995E-2},{"$f":"'Population 2016'!AO28/'Population 2016'!AO$14","v":4.4437794568713995E-2},{"$f":"'Population 2016'!AP28/'Population 2016'!AP$14","v":4.753387533875339E-2},{"$f":"'Population 2016'!C28/'Population 2016'!C$14","v":6.0390123180430418E-2},{"$f":"'Population 2016'!AQ28/'Population 2016'!AQ$14","v":4.8335995622666821E-2},{"$f":"'Population 2016'!O28/'Population 2016'!O$14","v":4.7024304113003741E-2},{"$f":"'Population 2016'!AR28/'Population 2016'!AR$14","v":5.1464627810693109E-2},{"$f":"'Population 2016'!AS28/'Population 2016'!AS$14","v":4.1414659149154279E-2},{"$f":"'Population 2016'!AT28/'Population 2016'!AT$14","v":4.4012633891787972E-2},{"$f":"'Population 2016'!AU28/'Population 2016'!AU$14","v":4.4012633891787972E-2},{"$f":"'Population 2016'!BB28/'Population 2016'!BB$14","v":5.2581747445795787E-2},{"$f":"'Population 2016'!P28/'Population 2016'!P$14","v":3.7305778798316112E-2},{"$f":"'Population 2016'!AV28/'Population 2016'!AV$14","v":4.263709545906038E-2},{"$f":"'Population 2016'!AW28/'Population 2016'!AW$14","v":4.895759900221347E-2},{"$f":"'Population 2016'!Q28/'Population 2016'!Q$14","v":4.5886589493531985E-2},26]
[null,"Female 35-39",{"$f":"'Population 2016'!R29/'Population 2016'!R$14","v":5.10960471872524E-2},{"$f":"'Population 2016'!AX29/'Population 2016'!AX$14","v":4.316806943713835E-2},{"$f":"'Population 2016'!S29/'Population 2016'!S$14","v":4.9497235807409203E-2},{"$f":"'Population 2016'!T29/'Population 2016'!T$14","v":5.1993229209349116E-2},{"$f":"'Population 2016'!U29/'Population 2016'!U$14","v":4.6759433370941454E-2},{"$f":"'Population 2016'!D29/'Population 2016'!D$14","v":4.9284705348853597E-2},{"$f":"'Population 2016'!E29/'Population 2016'!E$14","v":5.1356706212095586E-2},{"$f":"'Population 2016'!BC29/'Population 2016'!BC$14","v":4.6759433370941454E-2},{"$f":"'Population 2016'!V29/'Population 2016'!V$14","v":5.0174742794313984E-2},{"$f":"'Population 2016'!F29/'Population 2016'!F$14","v":4.6410154700515668E-2},{"$f":"'Population 2016'!W29/'Population 2016'!W$14","v":4.7236332328885064E-2},{"$f":"'Population 2016'!X29/'Population 2016'!X$14","v":4.7236332328885064E-2},{"$f":"'Population 2016'!Y29/'Population 2016'!Y$14","v":4.7355987270612229E-2},{"$f":"'Population 2016'!Z29/'Population 2016'!Z$14","v":4.8621396371937624E-2},{"$f":"'Population 2016'!AA29/'Population 2016'!AA$14","v":4.8634701246004046E-2},{"$f":"'Population 2016'!AB29/'Population 2016'!AB$14","v":4.8301472454280375E-2},{"$f":"'Population 2016'!AY29/'Population 2016'!AY$14","v":4.5752362274915317E-2},{"$f":"'Population 2016'!AC29/'Population 2016'!AC$14","v":4.7967908031880703E-2},{"$f":"'Population 2016'!AD29/'Population 2016'!AD$14","v":4.4448842472774516E-2},{"$f":"'Population 2016'!AE29/'Population 2016'!AE$14","v":4.6129821312585507E-2},{"$f":"'Population 2016'!G29/'Population 2016'!G$14","v":3.9800519718740449E-2},{"$f":"'Population 2016'!AF29/'Population 2016'!AF$14","v":4.4854407658556042E-2},{"$f":"'Population 2016'!H29/'Population 2016'!H$14","v":4.4703787519955088E-2},{"$f":"'Population 2016'!AG29/'Population 2016'!AG$14","v":4.6129821312585507E-2},{"$f":"'Population 2016'!AZ29/'Population 2016'!AZ$14","v":4.4433048084135757E-2},{"$f":"'Population 2016'!I29/'Population 2016'!I$14","v":4.1077835542212782E-2},{"$f":"'Population 2016'!J29/'Population 2016'!J$14","v":4.4277673545966227E-2},{"$f":"'Population 2016'!K29/'Population 2016'!K$14","v":4.635822827728632E-2},{"$f":"'Population 2016'!AH29/'Population 2016'!AH$14","v":4.9859981109877542E-2},{"$f":"'Population 2016'!AI29/'Population 2016'!AI$14","v":5.1361569656205565E-2},{"$f":"'Population 2016'!BA29/'Population 2016'!BA$14","v":4.6282704429669287E-2},{"$f":"'Population 2016'!L29/'Population 2016'!L$14","v":4.0584725671074955E-2},{"$f":"'Population 2016'!M29/'Population 2016'!M$14","v":4.0584725671074955E-2},{"$f":"'Population 2016'!AJ29/'Population 2016'!AJ$14","v":5.2282502620450359E-2},{"$f":"'Population 2016'!AK29/'Population 2016'!AK$14","v":4.2934319021893659E-2},{"$f":"'Population 2016'!AL29/'Population 2016'!AL$14","v":4.4041419764170704E-2},{"$f":"'Population 2016'!AM29/'Population 2016'!AM$14","v":5.0493182873849012E-2},{"$f":"'Population 2016'!N29/'Population 2016'!N$14","v":4.3959615658073818E-2},{"$f":"'Population 2016'!AN29/'Population 2016'!AN$14","v":4.3914116854941274E-2},{"$f":"'Population 2016'!AO29/'Population 2016'!AO$14","v":4.3914116854941274E-2},{"$f":"'Population 2016'!AP29/'Population 2016'!AP$14","v":4.3425474254742545E-2},{"$f":"'Population 2016'!C29/'Population 2016'!C$14","v":4.7151802314374366E-2},{"$f":"'Population 2016'!AQ29/'Population 2016'!AQ$14","v":4.6932777929768514E-2},{"$f":"'Population 2016'!O29/'Population 2016'!O$14","v":4.60505816368924E-2},{"$f":"'Population 2016'!AR29/'Population 2016'!AR$14","v":4.7704381547944645E-2},{"$f":"'Population 2016'!AS29/'Population 2016'!AS$14","v":4.1077835542212782E-2},{"$f":"'Population 2016'!AT29/'Population 2016'!AT$14","v":4.8063718758582806E-2},{"$f":"'Population 2016'!AU29/'Population 2016'!AU$14","v":4.8063718758582806E-2},{"$f":"'Population 2016'!BB29/'Population 2016'!BB$14","v":5.0309430974083545E-2},{"$f":"'Population 2016'!P29/'Population 2016'!P$14","v":4.6597780329123616E-2},{"$f":"'Population 2016'!AV29/'Population 2016'!AV$14","v":4.3986182971847067E-2},{"$f":"'Population 2016'!AW29/'Population 2016'!AW$14","v":4.917450911761951E-2},{"$f":"'Population 2016'!Q29/'Population 2016'!Q$14","v":4.9008546744354974E-2},27]
[null,"Female 40-44",{"$f":"'Population 2016'!R30/'Population 2016'!R$14","v":5.6026058631921824E-2},{"$f":"'Population 2016'!AX30/'Population 2016'!AX$14","v":4.872435560231457E-2},{"$f":"'Population 2016'!S30/'Population 2016'!S$14","v":4.9813849256070672E-2},{"$f":"'Population 2016'!T30/'Population 2016'!T$14","v":4.5431553127817041E-2},{"$f":"'Population 2016'!U30/'Population 2016'!U$14","v":5.1773849818227406E-2},{"$f":"'Population 2016'!D30/'Population 2016'!D$14","v":4.8711734263977277E-2},{"$f":"'Population 2016'!E30/'Population 2016'!E$14","v":5.4811897455722812E-2},{"$f":"'Population 2016'!BC30/'Population 2016'!BC$14","v":5.1773849818227406E-2},{"$f":"'Population 2016'!V30/'Population 2016'!V$14","v":5.6919029293960574E-2},{"$f":"'Population 2016'!F30/'Population 2016'!F$14","v":5.1878506261687538E-2},{"$f":"'Population 2016'!W30/'Population 2016'!W$14","v":5.0774860094705124E-2},{"$f":"'Population 2016'!X30/'Population 2016'!X$14","v":5.0774860094705124E-2},{"$f":"'Population 2016'!Y30/'Population 2016'!Y$14","v":5.3797549439117756E-2},{"$f":"'Population 2016'!Z30/'Population 2016'!Z$14","v":4.2849583981256628E-2},{"$f":"'Population 2016'!AA30/'Population 2016'!AA$14","v":4.8648048905825587E-2},{"$f":"'Population 2016'!AB30/'Population 2016'!AB$14","v":4.9269987932400727E-2},{"$f":"'Population 2016'!AY30/'Population 2016'!AY$14","v":4.8647465923272661E-2},{"$f":"'Population 2016'!AC30/'Population 2016'!AC$14","v":4.653412670092455E-2},{"$f":"'Population 2016'!AD30/'Population 2016'!AD$14","v":5.0660211714317609E-2},{"$f":"'Population 2016'!AE30/'Population 2016'!AE$14","v":5.1491825707217977E-2},{"$f":"'Population 2016'!G30/'Population 2016'!G$14","v":4.8360593090797918E-2},{"$f":"'Population 2016'!AF30/'Population 2016'!AF$14","v":4.9341842840047868E-2},{"$f":"'Population 2016'!H30/'Population 2016'!H$14","v":5.1843762608985489E-2},{"$f":"'Population 2016'!AG30/'Population 2016'!AG$14","v":5.1491825707217977E-2},{"$f":"'Population 2016'!AZ30/'Population 2016'!AZ$14","v":4.675611959034337E-2},{"$f":"'Population 2016'!I30/'Population 2016'!I$14","v":5.3554953503697739E-2},{"$f":"'Population 2016'!J30/'Population 2016'!J$14","v":5.0388635754489416E-2},{"$f":"'Population 2016'!K30/'Population 2016'!K$14","v":5.3509231575378353E-2},{"$f":"'Population 2016'!AH30/'Population 2016'!AH$14","v":5.2532531016018728E-2},{"$f":"'Population 2016'!AI30/'Population 2016'!AI$14","v":4.900261146162202E-2},{"$f":"'Population 2016'!BA30/'Population 2016'!BA$14","v":4.8355064329505225E-2},{"$f":"'Population 2016'!L30/'Population 2016'!L$14","v":4.7809525949729773E-2},{"$f":"'Population 2016'!M30/'Population 2016'!M$14","v":4.7809525949729773E-2},{"$f":"'Population 2016'!AJ30/'Population 2016'!AJ$14","v":5.2047565691979616E-2},{"$f":"'Population 2016'!AK30/'Population 2016'!AK$14","v":5.2317315894228035E-2},{"$f":"'Population 2016'!AL30/'Population 2016'!AL$14","v":5.2732387621954868E-2},{"$f":"'Population 2016'!AM30/'Population 2016'!AM$14","v":5.3075220634443566E-2},{"$f":"'Population 2016'!N30/'Population 2016'!N$14","v":4.0191358400877564E-2},{"$f":"'Population 2016'!AN30/'Population 2016'!AN$14","v":5.0796738235954216E-2},{"$f":"'Population 2016'!AO30/'Population 2016'!AO$14","v":5.0796738235954216E-2},{"$f":"'Population 2016'!AP30/'Population 2016'!AP$14","v":4.9842818428184284E-2},{"$f":"'Population 2016'!C30/'Population 2016'!C$14","v":4.243226941755119E-2},{"$f":"'Population 2016'!AQ30/'Population 2016'!AQ$14","v":5.0365807379689528E-2},{"$f":"'Population 2016'!O30/'Population 2016'!O$14","v":5.1957831325301206E-2},{"$f":"'Population 2016'!AR30/'Population 2016'!AR$14","v":4.9487797896290785E-2},{"$f":"'Population 2016'!AS30/'Population 2016'!AS$14","v":5.3554953503697739E-2},{"$f":"'Population 2016'!AT30/'Population 2016'!AT$14","v":4.950563032134029E-2},{"$f":"'Population 2016'!AU30/'Population 2016'!AU$14","v":4.950563032134029E-2},{"$f":"'Population 2016'!BB30/'Population 2016'!BB$14","v":5.5964400375276509E-2},{"$f":"'Population 2016'!P30/'Population 2016'!P$14","v":5.2277076157673172E-2},{"$f":"'Population 2016'!AV30/'Population 2016'!AV$14","v":5.0613019435755267E-2},{"$f":"'Population 2016'!AW30/'Population 2016'!AW$14","v":5.1945042864396669E-2},{"$f":"'Population 2016'!Q30/'Population 2016'!Q$14","v":5.3428743644035055E-2},28]
[null,"Female 45-49",{"$f":"'Population 2016'!R31/'Population 2016'!R$14","v":6.7400299322123422E-2},{"$f":"'Population 2016'!AX31/'Population 2016'!AX$14","v":5.9672540768016834E-2},{"$f":"'Population 2016'!S31/'Population 2016'!S$14","v":5.6173064054717989E-2},{"$f":"'Population 2016'!T31/'Population 2016'!T$14","v":4.5538936285051415E-2},{"$f":"'Population 2016'!U31/'Population 2016'!U$14","v":6.2304124357527892E-2},{"$f":"'Population 2016'!D31/'Population 2016'!D$14","v":5.3804129681434207E-2},{"$f":"'Population 2016'!E31/'Population 2016'!E$14","v":6.3431753932394225E-2},{"$f":"'Population 2016'!BC31/'Population 2016'!BC$14","v":6.2304124357527892E-2},{"$f":"'Population 2016'!V31/'Population 2016'!V$14","v":6.2779784811120704E-2},{"$f":"'Population 2016'!F31/'Population 2016'!F$14","v":6.0746869156230524E-2},{"$f":"'Population 2016'!W31/'Population 2016'!W$14","v":6.0146362462333187E-2},{"$f":"'Population 2016'!X31/'Population 2016'!X$14","v":6.0146362462333187E-2},{"$f":"'Population 2016'!Y31/'Population 2016'!Y$14","v":6.2165943250708469E-2},{"$f":"'Population 2016'!Z31/'Population 2016'!Z$14","v":4.8993398691753336E-2},{"$f":"'Population 2016'!AA31/'Population 2016'!AA$14","v":5.8156588071196419E-2},{"$f":"'Population 2016'!AB31/'Population 2016'!AB$14","v":5.4816940216180943E-2},{"$f":"'Population 2016'!AY31/'Population 2016'!AY$14","v":5.7958799980550736E-2},{"$f":"'Population 2016'!AC31/'Population 2016'!AC$14","v":5.5957406517586045E-2},{"$f":"'Population 2016'!AD31/'Population 2016'!AD$14","v":6.1560555775456972E-2},{"$f":"'Population 2016'!AE31/'Population 2016'!AE$14","v":6.1932532717900529E-2},{"$f":"'Population 2016'!G31/'Population 2016'!G$14","v":6.0531947416692142E-2},{"$f":"'Population 2016'!AF31/'Population 2016'!AF$14","v":6.4718787395293173E-2},{"$f":"'Population 2016'!H31/'Population 2016'!H$14","v":6.419398979001105E-2},{"$f":"'Population 2016'!AG31/'Population 2016'!AG$14","v":6.1932532717900529E-2},{"$f":"'Population 2016'!AZ31/'Population 2016'!AZ$14","v":5.6013961391852794E-2},{"$f":"'Population 2016'!I31/'Population 2016'!I$14","v":6.7232920846452368E-2},{"$f":"'Population 2016'!J31/'Population 2016'!J$14","v":6.1495577593138569E-2},{"$f":"'Population 2016'!K31/'Population 2016'!K$14","v":6.4913848904232033E-2},{"$f":"'Population 2016'!AH31/'Population 2016'!AH$14","v":6.219774028685527E-2},{"$f":"'Population 2016'!AI31/'Population 2016'!AI$14","v":5.3329062805567276E-2},{"$f":"'Population 2016'!BA31/'Population 2016'!BA$14","v":6.3034280286676458E-2},{"$f":"'Population 2016'!L31/'Population 2016'!L$14","v":6.4191732491376302E-2},{"$f":"'Population 2016'!M31/'Population 2016'!M$14","v":6.4191732491376302E-2},{"$f":"'Population 2016'!AJ31/'Population 2016'!AJ$14","v":6.3451042758520981E-2},{"$f":"'Population 2016'!AK31/'Population 2016'!AK$14","v":6.0345548512268143E-2},{"$f":"'Population 2016'!AL31/'Population 2016'!AL$14","v":6.4535823307595622E-2},{"$f":"'Population 2016'!AM31/'Population 2016'!AM$14","v":6.1955244678816364E-2},{"$f":"'Population 2016'!N31/'Population 2016'!N$14","v":4.6569971763463142E-2},{"$f":"'Population 2016'!AN31/'Population 2016'!AN$14","v":6.1719159123213886E-2},{"$f":"'Population 2016'!AO31/'Population 2016'!AO$14","v":6.1719159123213886E-2},{"$f":"'Population 2016'!AP31/'Population 2016'!AP$14","v":6.2471544715447157E-2},{"$f":"'Population 2016'!C31/'Population 2016'!C$14","v":4.3893521368477996E-2},{"$f":"'Population 2016'!AQ31/'Population 2016'!AQ$14","v":6.3639011216916272E-2},{"$f":"'Population 2016'!O31/'Population 2016'!O$14","v":6.490184877440798E-2},{"$f":"'Population 2016'!AR31/'Population 2016'!AR$14","v":5.8118341021641977E-2},{"$f":"'Population 2016'!AS31/'Population 2016'!AS$14","v":6.7232920846452368E-2},{"$f":"'Population 2016'!AT31/'Population 2016'!AT$14","v":5.8294424608624003E-2},{"$f":"'Population 2016'!AU31/'Population 2016'!AU$14","v":5.8294424608624003E-2},{"$f":"'Population 2016'!BB31/'Population 2016'!BB$14","v":6.4399514550571954E-2},{"$f":"'Population 2016'!P31/'Population 2016'!P$14","v":6.5824722541140454E-2},{"$f":"'Population 2016'!AV31/'Population 2016'!AV$14","v":6.2962358975879498E-2},{"$f":"'Population 2016'!AW31/'Population 2016'!AW$14","v":6.2460253686239517E-2},{"$f":"'Population 2016'!Q31/'Population 2016'!Q$14","v":6.7400275103163682E-2},29]
[null,"Female 50-54",{"$f":"'Population 2016'!R32/'Population 2016'!R$14","v":6.8139801038823847E-2},{"$f":"'Population 2016'!AX32/'Population 2016'!AX$14","v":6.1102709100473433E-2},{"$f":"'Population 2016'!S32/'Population 2016'!S$14","v":5.6319020609065476E-2},{"$f":"'Population 2016'!T32/'Population 2016'!T$14","v":4.5456985980846236E-2},{"$f":"'Population 2016'!U32/'Population 2016'!U$14","v":6.612761689858343E-2},{"$f":"'Population 2016'!D32/'Population 2016'!D$14","v":5.5158424972960057E-2},{"$f":"'Population 2016'!E32/'Population 2016'!E$14","v":6.3353226858675435E-2},{"$f":"'Population 2016'!BC32/'Population 2016'!BC$14","v":6.612761689858343E-2},{"$f":"'Population 2016'!V32/'Population 2016'!V$14","v":6.1925704861383803E-2},{"$f":"'Population 2016'!F32/'Population 2016'!F$14","v":6.4614382047940164E-2},{"$f":"'Population 2016'!W32/'Population 2016'!W$14","v":6.2251399052948776E-2},{"$f":"'Population 2016'!X32/'Population 2016'!X$14","v":6.2251399052948776E-2},{"$f":"'Population 2016'!Y32/'Population 2016'!Y$14","v":6.2130071385012732E-2},{"$f":"'Population 2016'!Z32/'Population 2016'!Z$14","v":5.1045187884277241E-2},{"$f":"'Population 2016'!AA32/'Population 2016'!AA$14","v":5.9945174487283016E-2},{"$f":"'Population 2016'!AB32/'Population 2016'!AB$14","v":5.6207562707492789E-2},{"$f":"'Population 2016'!AY32/'Population 2016'!AY$14","v":6.1338109207604664E-2},{"$f":"'Population 2016'!AC32/'Population 2016'!AC$14","v":5.8098416914755063E-2},{"$f":"'Population 2016'!AD32/'Population 2016'!AD$14","v":6.6985354565660876E-2},{"$f":"'Population 2016'!AE32/'Population 2016'!AE$14","v":6.6292616188278211E-2},{"$f":"'Population 2016'!G32/'Population 2016'!G$14","v":6.8900947722409053E-2},{"$f":"'Population 2016'!AF32/'Population 2016'!AF$14","v":6.856800957319506E-2},{"$f":"'Population 2016'!H32/'Population 2016'!H$14","v":6.7290318053435785E-2},{"$f":"'Population 2016'!AG32/'Population 2016'!AG$14","v":6.6292616188278211E-2},{"$f":"'Population 2016'!AZ32/'Population 2016'!AZ$14","v":6.0526154646908442E-2},{"$f":"'Population 2016'!I32/'Population 2016'!I$14","v":6.9898220692685073E-2},{"$f":"'Population 2016'!J32/'Population 2016'!J$14","v":6.2353256499597963E-2},{"$f":"'Population 2016'!K32/'Population 2016'!K$14","v":6.4698085873686154E-2},{"$f":"'Population 2016'!AH32/'Population 2016'!AH$14","v":6.3338722620566557E-2},{"$f":"'Population 2016'!AI32/'Population 2016'!AI$14","v":5.2412255058965483E-2},{"$f":"'Population 2016'!BA32/'Population 2016'!BA$14","v":6.6091011138934466E-2},{"$f":"'Population 2016'!L32/'Population 2016'!L$14","v":7.019179990786413E-2},{"$f":"'Population 2016'!M32/'Population 2016'!M$14","v":7.019179990786413E-2},{"$f":"'Population 2016'!AJ32/'Population 2016'!AJ$14","v":6.267394368742546E-2},{"$f":"'Population 2016'!AK32/'Population 2016'!AK$14","v":6.1934469551255249E-2},{"$f":"'Population 2016'!AL32/'Population 2016'!AL$14","v":6.8163045430059258E-2},{"$f":"'Population 2016'!AM32/'Population 2016'!AM$14","v":6.224213776332687E-2},{"$f":"'Population 2016'!N32/'Population 2016'!N$14","v":5.3039998374875573E-2},{"$f":"'Population 2016'!AN32/'Population 2016'!AN$14","v":6.6133014139298271E-2},{"$f":"'Population 2016'!AO32/'Population 2016'!AO$14","v":6.6133014139298271E-2},{"$f":"'Population 2016'!AP32/'Population 2016'!AP$14","v":6.5387533875338757E-2},{"$f":"'Population 2016'!C32/'Population 2016'!C$14","v":4.6722753869208621E-2},{"$f":"'Population 2016'!AQ32/'Population 2016'!AQ$14","v":6.4706868706480389E-2},{"$f":"'Population 2016'!O32/'Population 2016'!O$14","v":6.5122559202326541E-2},{"$f":"'Population 2016'!AR32/'Population 2016'!AR$14","v":5.9961643940811438E-2},{"$f":"'Population 2016'!AS32/'Population 2016'!AS$14","v":6.9898220692685073E-2},{"$f":"'Population 2016'!AT32/'Population 2016'!AT$14","v":5.9736336171381486E-2},{"$f":"'Population 2016'!AU32/'Population 2016'!AU$14","v":5.9736336171381486E-2},{"$f":"'Population 2016'!BB32/'Population 2016'!BB$14","v":6.1955052891608783E-2},{"$f":"'Population 2016'!P32/'Population 2016'!P$14","v":6.9513968618446234E-2},{"$f":"'Population 2016'!AV32/'Population 2016'!AV$14","v":6.8684862052095536E-2},{"$f":"'Population 2016'!AW32/'Population 2016'!AW$14","v":6.4525829557947043E-2},{"$f":"'Population 2016'!Q32/'Population 2016'!Q$14","v":6.4541056828895105E-2},30]
[null,"Female 55-59",{"$f":"'Population 2016'!R33/'Population 2016'!R$14","v":6.0498283299586231E-2},{"$f":"'Population 2016'!AX33/'Population 2016'!AX$14","v":5.2669647553918987E-2},{"$f":"'Population 2016'!S33/'Population 2016'!S$14","v":5.1418248611167248E-2},{"$f":"'Population 2016'!T33/'Population 2016'!T$14","v":4.2034854312140234E-2},{"$f":"'Population 2016'!U33/'Population 2016'!U$14","v":6.0925159834524255E-2},{"$f":"'Population 2016'!D33/'Population 2016'!D$14","v":4.8711734263977277E-2},{"$f":"'Population 2016'!E33/'Population 2016'!E$14","v":5.4715248749607363E-2},{"$f":"'Population 2016'!BC33/'Population 2016'!BC$14","v":6.0925159834524255E-2},{"$f":"'Population 2016'!V33/'Population 2016'!V$14","v":5.4023011073588312E-2},{"$f":"'Population 2016'!F33/'Population 2016'!F$14","v":6.1596871989573296E-2},{"$f":"'Population 2016'!W33/'Population 2016'!W$14","v":5.6629358588032717E-2},{"$f":"'Population 2016'!X33/'Population 2016'!X$14","v":5.6629358588032717E-2},{"$f":"'Population 2016'!Y33/'Population 2016'!Y$14","v":5.4171641752801848E-2},{"$f":"'Population 2016'!Z33/'Population 2016'!Z$14","v":4.4873646292800481E-2},{"$f":"'Population 2016'!AA33/'Population 2016'!AA$14","v":5.4002128951741536E-2},{"$f":"'Population 2016'!AB33/'Population 2016'!AB$14","v":4.9818986010907451E-2},{"$f":"'Population 2016'!AY33/'Population 2016'!AY$14","v":5.6591273764566685E-2},{"$f":"'Population 2016'!AC33/'Population 2016'!AC$14","v":5.2234470267394424E-2},{"$f":"'Population 2016'!AD33/'Population 2016'!AD$14","v":6.2788620609160753E-2},{"$f":"'Population 2016'!AE33/'Population 2016'!AE$14","v":6.1704509335139095E-2},{"$f":"'Population 2016'!G33/'Population 2016'!G$14","v":6.5786456741057778E-2},{"$f":"'Population 2016'!AF33/'Population 2016'!AF$14","v":6.4040686078978865E-2},{"$f":"'Population 2016'!H33/'Population 2016'!H$14","v":6.2400224549585111E-2},{"$f":"'Population 2016'!AG33/'Population 2016'!AG$14","v":6.1704509335139095E-2},{"$f":"'Population 2016'!AZ33/'Population 2016'!AZ$14","v":5.655741469314024E-2},{"$f":"'Population 2016'!I33/'Population 2016'!I$14","v":6.6500695613970859E-2},{"$f":"'Population 2016'!J33/'Population 2016'!J$14","v":5.433395872420263E-2},{"$f":"'Population 2016'!K33/'Population 2016'!K$14","v":5.7454612705360168E-2},{"$f":"'Population 2016'!AH33/'Population 2016'!AH$14","v":5.7250327263086383E-2},{"$f":"'Population 2016'!AI33/'Population 2016'!AI$14","v":4.7621468553155362E-2},{"$f":"'Population 2016'!BA33/'Population 2016'!BA$14","v":6.0754684396856919E-2},{"$f":"'Population 2016'!L33/'Population 2016'!L$14","v":6.5315340621804746E-2},{"$f":"'Population 2016'!M33/'Population 2016'!M$14","v":6.5315340621804746E-2},{"$f":"'Population 2016'!AJ33/'Population 2016'!AJ$14","v":5.813785376079806E-2},{"$f":"'Population 2016'!AK33/'Population 2016'!AK$14","v":5.5863118633862417E-2},{"$f":"'Population 2016'!AL33/'Population 2016'!AL$14","v":6.2345124797988864E-2},{"$f":"'Population 2016'!AM33/'Population 2016'!AM$14","v":5.4696394254852135E-2},{"$f":"'Population 2016'!N33/'Population 2016'!N$14","v":5.0267129827127388E-2},{"$f":"'Population 2016'!AN33/'Population 2016'!AN$14","v":6.0222937083863247E-2},{"$f":"'Population 2016'!AO33/'Population 2016'!AO$14","v":6.0222937083863247E-2},{"$f":"'Population 2016'!AP33/'Population 2016'!AP$14","v":5.9414634146341461E-2},{"$f":"'Population 2016'!C33/'Population 2016'!C$14","v":4.2531758912082378E-2},{"$f":"'Population 2016'!AQ33/'Population 2016'!AQ$14","v":5.8511530213306739E-2},{"$f":"'Population 2016'!O33/'Population 2016'!O$14","v":5.8215621105110096E-2},{"$f":"'Population 2016'!AR33/'Population 2016'!AR$14","v":5.4466406355884976E-2},{"$f":"'Population 2016'!AS33/'Population 2016'!AS$14","v":6.6500695613970859E-2},{"$f":"'Population 2016'!AT33/'Population 2016'!AT$14","v":5.3282065366657513E-2},{"$f":"'Population 2016'!AU33/'Population 2016'!AU$14","v":5.3282065366657513E-2},{"$f":"'Population 2016'!BB33/'Population 2016'!BB$14","v":5.2452638555357589E-2},{"$f":"'Population 2016'!P33/'Population 2016'!P$14","v":6.6314580941446613E-2},{"$f":"'Population 2016'!AV33/'Population 2016'!AV$14","v":6.7246823714289944E-2},{"$f":"'Population 2016'!AW33/'Population 2016'!AW$14","v":6.001508511257142E-2},{"$f":"'Population 2016'!Q33/'Population 2016'!Q$14","v":6.0507240777089161E-2},31]
[null,"Female 60-64",{"$f":"'Population 2016'!R34/'Population 2016'!R$14","v":5.2803944009155737E-2},{"$f":"'Population 2016'!AX34/'Population 2016'!AX$14","v":4.5074960547080482E-2},{"$f":"'Population 2016'!S34/'Population 2016'!S$14","v":4.4115929922890026E-2},{"$f":"'Population 2016'!T34/'Population 2016'!T$14","v":3.4755406600673125E-2},{"$f":"'Population 2016'!U34/'Population 2016'!U$14","v":6.1363921273661776E-2},{"$f":"'Population 2016'!D34/'Population 2016'!D$14","v":4.3398729658760481E-2},{"$f":"'Population 2016'!E34/'Population 2016'!E$14","v":5.0402300239205548E-2},{"$f":"'Population 2016'!BC34/'Population 2016'!BC$14","v":6.1363921273661776E-2},{"$f":"'Population 2016'!V34/'Population 2016'!V$14","v":4.7367077672190373E-2},{"$f":"'Population 2016'!F34/'Population 2016'!F$14","v":5.6185187283957612E-2},{"$f":"'Population 2016'!W34/'Population 2016'!W$14","v":5.0563925957813172E-2},{"$f":"'Population 2016'!X34/'Population 2016'!X$14","v":5.0563925957813172E-2},{"$f":"'Population 2016'!Y34/'Population 2016'!Y$14","v":4.7258620778009519E-2},{"$f":"'Population 2016'!Z34/'Population 2016'!Z$14","v":3.501905067780671E-2},{"$f":"'Population 2016'!AA34/'Population 2016'!AA$14","v":4.4865655803896183E-2},{"$f":"'Population 2016'!AB34/'Population 2016'!AB$14","v":4.4701909581052315E-2},{"$f":"'Population 2016'!AY34/'Population 2016'!AY$14","v":5.0118316342242175E-2},{"$f":"'Population 2016'!AC34/'Population 2016'!AC$14","v":4.2335839766884931E-2},{"$f":"'Population 2016'!AD34/'Population 2016'!AD$14","v":5.85614387642217E-2},{"$f":"'Population 2016'!AE34/'Population 2016'!AE$14","v":5.7482621854313791E-2},{"$f":"'Population 2016'!G34/'Population 2016'!G$14","v":6.1544634668297155E-2},{"$f":"'Population 2016'!AF34/'Population 2016'!AF$14","v":5.2273633825289191E-2},{"$f":"'Population 2016'!H34/'Population 2016'!H$14","v":5.6755784783257018E-2},{"$f":"'Population 2016'!AG34/'Population 2016'!AG$14","v":5.7482621854313791E-2},{"$f":"'Population 2016'!AZ34/'Population 2016'!AZ$14","v":4.9722149931876979E-2},{"$f":"'Population 2016'!I34/'Population 2016'!I$14","v":6.0291425642527645E-2},{"$f":"'Population 2016'!J34/'Population 2016'!J$14","v":4.7140176896274456E-2},{"$f":"'Population 2016'!K34/'Population 2016'!K$14","v":5.1012545079061736E-2},{"$f":"'Population 2016'!AH34/'Population 2016'!AH$14","v":4.9514372353193212E-2},{"$f":"'Population 2016'!AI34/'Population 2016'!AI$14","v":3.9705740301072205E-2},{"$f":"'Population 2016'!BA34/'Population 2016'!BA$14","v":5.1152750194283739E-2},{"$f":"'Population 2016'!L34/'Population 2016'!L$14","v":6.3416442881380694E-2},{"$f":"'Population 2016'!M34/'Population 2016'!M$14","v":6.3416442881380694E-2},{"$f":"'Population 2016'!AJ34/'Population 2016'!AJ$14","v":4.8830736979072538E-2},{"$f":"'Population 2016'!AK34/'Population 2016'!AK$14","v":5.181555135560053E-2},{"$f":"'Population 2016'!AL34/'Population 2016'!AL$14","v":5.7580654815346861E-2},{"$f":"'Population 2016'!AM34/'Population 2016'!AM$14","v":4.7123327595471644E-2},{"$f":"'Population 2016'!N34/'Population 2016'!N$14","v":3.9653035935563817E-2},{"$f":"'Population 2016'!AN34/'Population 2016'!AN$14","v":5.6108326475648986E-2},{"$f":"'Population 2016'!AO34/'Population 2016'!AO$14","v":5.6108326475648986E-2},{"$f":"'Population 2016'!AP34/'Population 2016'!AP$14","v":5.5523035230352305E-2},{"$f":"'Population 2016'!C34/'Population 2016'!C$14","v":3.6189303635719212E-2},{"$f":"'Population 2016'!AQ34/'Population 2016'!AQ$14","v":4.8274218743105259E-2},{"$f":"'Population 2016'!O34/'Population 2016'!O$14","v":5.1256751142501042E-2},{"$f":"'Population 2016'!AR34/'Population 2016'!AR$14","v":4.7320706340612466E-2},{"$f":"'Population 2016'!AS34/'Population 2016'!AS$14","v":6.0291425642527645E-2},{"$f":"'Population 2016'!AT34/'Population 2016'!AT$14","v":5.0947541884097773E-2},{"$f":"'Population 2016'!AU34/'Population 2016'!AU$14","v":5.0947541884097773E-2},{"$f":"'Population 2016'!BB34/'Population 2016'!BB$14","v":4.4060560676874874E-2},{"$f":"'Population 2016'!P34/'Population 2016'!P$14","v":5.5966322234978952E-2},{"$f":"'Population 2016'!AV34/'Population 2016'!AV$14","v":6.2013550175677883E-2},{"$f":"'Population 2016'!AW34/'Population 2016'!AW$14","v":5.2102795675601062E-2},{"$f":"'Population 2016'!Q34/'Population 2016'!Q$14","v":5.1156824258535155E-2},32]
[null,"Female 65-69",0,0,0,0,0,0,0,0,0,0,0,0,0,0,0,0,0,0,0,0,0,0,0,0,0,0,0,0,0,0,0,0,0,0,0,0,0,0,0,0,0,0,0,0,0,0,0,0,0,0,0,0,0,33]
[null,"Female 70-74",0,0,0,0,0,0,0,0,0,0,0,0,0,0,0,0,0,0,0,0,0,0,0,0,0,0,0,0,0,0,0,0,0,0,0,0,0,0,0,0,0,0,0,0,0,0,0,0,0,0,0,0,0,34]
[null,"Female 75-79",0,0,0,0,0,0,0,0,0,0,0,0,0,0,0,0,0,0,0,0,0,0,0,0,0,0,0,0,0,0,0,0,0,0,0,0,0,0,0,0,0,0,0,0,0,0,0,0,0,0,0,0,0,35]
[null,"Female 80-84",0,0,0,0,0,0,0,0,0,0,0,0,0,0,0,0,0,0,0,0,0,0,0,0,0,0,0,0,0,0,0,0,0,0,0,0,0,0,0,0,0,0,0,0,0,0,0,0,0,0,0,0,0,36]
[null,"Female 85-89",0,0,0,0,0,0,0,0,0,0,0,0,0,0,0,0,0,0,0,0,0,0,0,0,0,0,0,0,0,0,0,0,0,0,0,0,0,0,0,0,0,0,0,0,0,0,0,0,0,0,0,0,0,37]
[null,"Female 90+",0,0,0,0,0,0,0,0,0,0,0,0,0,0,0,0,0,0,0,0,0,0,0,0,0,0,0,0,0,0,0,0,0,0,0,0,0,0,0,0,0,0,0,0,0,0,0,0,0,0,0,0,0,38]
[null,"Male 0-4",{"$f":"'Population 2016'!R41/'Population 2016'!R$14","v":0},{"$f":"'Population 2016'!AX41/'Population 2016'!AX$14","v":0},{"$f":"'Population 2016'!S41/'Population 2016'!S$14","v":0},{"$f":"'Population 2016'!T41/'Population 2016'!T$14","v":0},{"$f":"'Population 2016'!U41/'Population 2016'!U$14","v":0},{"$f":"'Population 2016'!D41/'Population 2016'!D$14","v":0},{"$f":"'Population 2016'!E41/'Population 2016'!E$14","v":0},{"$f":"'Population 2016'!BC41/'Population 2016'!BC$14","v":0},{"$f":"'Population 2016'!V41/'Population 2016'!V$14","v":0},{"$f":"'Population 2016'!F41/'Population 2016'!F$14","v":0},{"$f":"'Population 2016'!W41/'Population 2016'!W$14","v":0},{"$f":"'Population 2016'!X41/'Population 2016'!X$14","v":0},{"$f":"'Population 2016'!Y41/'Population 2016'!Y$14","v":0},{"$f":"'Population 2016'!Z41/'Population 2016'!Z$14","v":0},{"$f":"'Population 2016'!AA41/'Population 2016'!AA$14","v":0},{"$f":"'Population 2016'!AB41/'Population 2016'!AB$14","v":0},{"$f":"'Population 2016'!AY41/'Population 2016'!AY$14","v":0},{"$f":"'Population 2016'!AC41/'Population 2016'!AC$14","v":0},{"$f":"'Population 2016'!AD41/'Population 2016'!AD$14","v":0},{"$f":"'Population 2016'!AE41/'Population 2016'!AE$14","v":0},{"$f":"'Population 2016'!G41/'Population 2016'!G$14","v":0},{"$f":"'Population 2016'!AF41/'Population 2016'!AF$14","v":0},{"$f":"'Population 2016'!H41/'Population 2016'!H$14","v":0},{"$f":"'Population 2016'!AG41/'Population 2016'!AG$14","v":0},{"$f":"'Population 2016'!AZ41/'Population 2016'!AZ$14","v":0},{"$f":"'Population 2016'!I41/'Population 2016'!I$14","v":0},{"$f":"'Population 2016'!J41/'Population 2016'!J$14","v":0},{"$f":"'Population 2016'!K41/'Population 2016'!K$14","v":0},{"$f":"'Population 2016'!AH41/'Population 2016'!AH$14","v":0},{"$f":"'Population 2016'!AI41/'Population 2016'!AI$14","v":0},{"$f":"'Population 2016'!BA41/'Population 2016'!BA$14","v":0},{"$f":"'Population 2016'!L41/'Population 2016'!L$14","v":0},{"$f":"'Population 2016'!M41/'Population 2016'!M$14","v":0},{"$f":"'Population 2016'!AJ41/'Population 2016'!AJ$14","v":0},{"$f":"'Population 2016'!AK41/'Population 2016'!AK$14","v":0},{"$f":"'Population 2016'!AL41/'Population 2016'!AL$14","v":0},{"$f":"'Population 2016'!AM41/'Population 2016'!AM$14","v":0},{"$f":"'Population 2016'!N41/'Population 2016'!N$14","v":0},{"$f":"'Population 2016'!AN41/'Population 2016'!AN$14","v":0},{"$f":"'Population 2016'!AO41/'Population 2016'!AO$14","v":0},{"$f":"'Population 2016'!AP41/'Population 2016'!AP$14","v":0},{"$f":"'Population 2016'!C41/'Population 2016'!C$14","v":0},{"$f":"'Population 2016'!AQ41/'Population 2016'!AQ$14","v":0},{"$f":"'Population 2016'!O41/'Population 2016'!O$14","v":0},{"$f":"'Population 2016'!AR41/'Population 2016'!AR$14","v":0},{"$f":"'Population 2016'!AS41/'Population 2016'!AS$14","v":0},{"$f":"'Population 2016'!AT41/'Population 2016'!AT$14","v":0},{"$f":"'Population 2016'!AU41/'Population 2016'!AU$14","v":0},{"$f":"'Population 2016'!BB41/'Population 2016'!BB$14","v":0},{"$f":"'Population 2016'!P41/'Population 2016'!P$14","v":0},{"$f":"'Population 2016'!AV41/'Population 2016'!AV$14","v":0},{"$f":"'Population 2016'!AW41/'Population 2016'!AW$14","v":0},{"$f":"'Population 2016'!Q41/'Population 2016'!Q$14","v":0},39]
[null,"Male 5-9",{"$f":"'Population 2016'!R42/'Population 2016'!R$14","v":0},{"$f":"'Population 2016'!AX42/'Population 2016'!AX$14","v":0},{"$f":"'Population 2016'!S42/'Population 2016'!S$14","v":0},{"$f":"'Population 2016'!T42/'Population 2016'!T$14","v":0},{"$f":"'Population 2016'!U42/'Population 2016'!U$14","v":0},{"$f":"'Population 2016'!D42/'Population 2016'!D$14","v":0},{"$f":"'Population 2016'!E42/'Population 2016'!E$14","v":0},{"$f":"'Population 2016'!BC42/'Population 2016'!BC$14","v":0},{"$f":"'Population 2016'!V42/'Population 2016'!V$14","v":0},{"$f":"'Population 2016'!F42/'Population 2016'!F$14","v":0},{"$f":"'Population 2016'!W42/'Population 2016'!W$14","v":0},{"$f":"'Population 2016'!X42/'Population 2016'!X$14","v":0},{"$f":"'Population 2016'!Y42/'Population 2016'!Y$14","v":0},{"$f":"'Population 2016'!Z42/'Population 2016'!Z$14","v":0},{"$f":"'Population 2016'!AA42/'Population 2016'!AA$14","v":0},{"$f":"'Population 2016'!AB42/'Population 2016'!AB$14","v":0},{"$f":"'Population 2016'!AY42/'Population 2016'!AY$14","v":0},{"$f":"'Population 2016'!AC42/'Population 2016'!AC$14","v":0},{"$f":"'Population 2016'!AD42/'Population 2016'!AD$14","v":0},{"$f":"'Population 2016'!AE42/'Population 2016'!AE$14","v":0},{"$f":"'Population 2016'!G42/'Population 2016'!G$14","v":0},{"$f":"'Population 2016'!AF42/'Population 2016'!AF$14","v":0},{"$f":"'Population 2016'!H42/'Population 2016'!H$14","v":0},{"$f":"'Population 2016'!AG42/'Population 2016'!AG$14","v":0},{"$f":"'Population 2016'!AZ42/'Population 2016'!AZ$14","v":0},{"$f":"'Population 2016'!I42/'Population 2016'!I$14","v":0},{"$f":"'Population 2016'!J42/'Population 2016'!J$14","v":0},{"$f":"'Population 2016'!K42/'Population 2016'!K$14","v":0},{"$f":"'Population 2016'!AH42/'Population 2016'!AH$14","v":0},{"$f":"'Population 2016'!AI42/'Population 2016'!AI$14","v":0},{"$f":"'Population 2016'!BA42/'Population 2016'!BA$14","v":0},{"$f":"'Population 2016'!L42/'Population 2016'!L$14","v":0},{"$f":"'Population 2016'!M42/'Population 2016'!M$14","v":0},{"$f":"'Population 2016'!AJ42/'Population 2016'!AJ$14","v":0},{"$f":"'Population 2016'!AK42/'Population 2016'!AK$14","v":0},{"$f":"'Population 2016'!AL42/'Population 2016'!AL$14","v":0},{"$f":"'Population 2016'!AM42/'Population 2016'!AM$14","v":0},{"$f":"'Population 2016'!N42/'Population 2016'!N$14","v":0},{"$f":"'Population 2016'!AN42/'Population 2016'!AN$14","v":0},{"$f":"'Population 2016'!AO42/'Population 2016'!AO$14","v":0},{"$f":"'Population 2016'!AP42/'Population 2016'!AP$14","v":0},{"$f":"'Population 2016'!C42/'Population 2016'!C$14","v":0},{"$f":"'Population 2016'!AQ42/'Population 2016'!AQ$14","v":0},{"$f":"'Population 2016'!O42/'Population 2016'!O$14","v":0},{"$f":"'Population 2016'!AR42/'Population 2016'!AR$14","v":0},{"$f":"'Population 2016'!AS42/'Population 2016'!AS$14","v":0},{"$f":"'Population 2016'!AT42/'Population 2016'!AT$14","v":0},{"$f":"'Population 2016'!AU42/'Population 2016'!AU$14","v":0},{"$f":"'Population 2016'!BB42/'Population 2016'!BB$14","v":0},{"$f":"'Population 2016'!P42/'Population 2016'!P$14","v":0},{"$f":"'Population 2016'!AV42/'Population 2016'!AV$14","v":0},{"$f":"'Population 2016'!AW42/'Population 2016'!AW$14","v":0},{"$f":"'Population 2016'!Q42/'Population 2016'!Q$14","v":0},40]
[null,"Male 10-15",{"$f":"'Population 2016'!R43/'Population 2016'!R$14","v":0},{"$f":"'Population 2016'!AX43/'Population 2016'!AX$14","v":0},{"$f":"'Population 2016'!S43/'Population 2016'!S$14","v":0},{"$f":"'Population 2016'!T43/'Population 2016'!T$14","v":0},{"$f":"'Population 2016'!U43/'Population 2016'!U$14","v":0},{"$f":"'Population 2016'!D43/'Population 2016'!D$14","v":0},{"$f":"'Population 2016'!E43/'Population 2016'!E$14","v":0},{"$f":"'Population 2016'!BC43/'Population 2016'!BC$14","v":0},{"$f":"'Population 2016'!V43/'Population 2016'!V$14","v":0},{"$f":"'Population 2016'!F43/'Population 2016'!F$14","v":0},{"$f":"'Population 2016'!W43/'Population 2016'!W$14","v":0},{"$f":"'Population 2016'!X43/'Population 2016'!X$14","v":0},{"$f":"'Population 2016'!Y43/'Population 2016'!Y$14","v":0},{"$f":"'Population 2016'!Z43/'Population 2016'!Z$14","v":0},{"$f":"'Population 2016'!AA43/'Population 2016'!AA$14","v":0},{"$f":"'Population 2016'!AB43/'Population 2016'!AB$14","v":0},{"$f":"'Population 2016'!AY43/'Population 2016'!AY$14","v":0},{"$f":"'Population 2016'!AC43/'Population 2016'!AC$14","v":0},{"$f":"'Population 2016'!AD43/'Population 2016'!AD$14","v":0},{"$f":"'Population 2016'!AE43/'Population 2016'!AE$14","v":0},{"$f":"'Population 2016'!G43/'Population 2016'!G$14","v":0},{"$f":"'Population 2016'!AF43/'Population 2016'!AF$14","v":0},{"$f":"'Population 2016'!H43/'Population 2016'!H$14","v":0},{"$f":"'Population 2016'!AG43/'Population 2016'!AG$14","v":0},{"$f":"'Population 2016'!AZ43/'Population 2016'!AZ$14","v":0},{"$f":"'Population 2016'!I43/'Population 2016'!I$14","v":0},{"$f":"'Population 2016'!J43/'Population 2016'!J$14","v":0},{"$f":"'Population 2016'!K43/'Population 2016'!K$14","v":0},{"$f":"'Population 2016'!AH43/'Population 2016'!AH$14","v":0},{"$f":"'Population 2016'!AI43/'Population 2016'!AI$14","v":0},{"$f":"'Population 2016'!BA43/'Population 2016'!BA$14","v":0},{"$f":"'Population 2016'!L43/'Population 2016'!L$14","v":0},{"$f":"'Population 2016'!M43/'Population 2016'!M$14","v":0},{"$f":"'Population 2016'!AJ43/'Population 2016'!AJ$14","v":0},{"$f":"'Population 2016'!AK43/'Population 2016'!AK$14","v":0},{"$f":"'Population 2016'!AL43/'Population 2016'!AL$14","v":0},{"$f":"'Population 2016'!AM43/'Population 2016'!AM$14","v":0},{"$f":"'Population 2016'!N43/'Population 2016'!N$14","v":0},{"$f":"'Population 2016'!AN43/'Population 2016'!AN$14","v":0},{"$f":"'Population 2016'!AO43/'Population 2016'!AO$14","v":0},{"$f":"'Population 2016'!AP43/'Population 2016'!AP$14","v":0},{"$f":"'Population 2016'!C43/'Population 2016'!C$14","v":0},{"$f":"'Population 2016'!AQ43/'Population 2016'!AQ$14","v":0},{"$f":"'Population 2016'!O43/'Population 2016'!O$14","v":0},{"$f":"'Population 2016'!AR43/'Population 2016'!AR$14","v":0},{"$f":"'Population 2016'!AS43/'Population 2016'!AS$14","v":0},{"$f":"'Population 2016'!AT43/'Population 2016'!AT$14","v":0},{"$f":"'Population 2016'!AU43/'Population 2016'!AU$14","v":0},{"$f":"'Population 2016'!BB43/'Population 2016'!BB$14","v":0},{"$f":"'Population 2016'!P43/'Population 2016'!P$14","v":0},{"$f":"'Population 2016'!AV43/'Population 2016'!AV$14","v":0},{"$f":"'Population 2016'!AW43/'Population 2016'!AW$14","v":0},{"$f":"'Population 2016'!Q43/'Population 2016'!Q$14","v":0},41]
[null,"Male 16-19",{"$f":"'Population 2016'!R44/'Population 2016'!R$14","v":4.3577779734131523E-2},{"$f":"'Population 2016'!AX44/'Population 2016'!AX$14","v":4.3694108364018935E-2},{"$f":"'Population 2016'!S44/'Population 2016'!S$14","v":3.385967512316488E-2},{"$f":"'Population 2016'!T44/'Population 2016'!T$14","v":2.9762089789274682E-2},{"$f":"'Population 2016'!U44/'Population 2016'!U$14","v":3.4850194308637332E-2},{"$f":"'Population 2016'!D44/'Population 2016'!D$14","v":3.2910601190676812E-2},{"$f":"'Population 2016'!E44/'Population 2016'!E$14","v":3.6986251721555077E-2},{"$f":"'Population 2016'!BC44/'Population 2016'!BC$14","v":3.4850194308637332E-2},{"$f":"'Population 2016'!V44/'Population 2016'!V$14","v":3.6784339904185975E-2},{"$f":"'Population 2016'!F44/'Population 2016'!F$14","v":3.912846376154587E-2},{"$f":"'Population 2016'!W44/'Population 2016'!W$14","v":3.7227722772277226E-2},{"$f":"'Population 2016'!X44/'Population 2016'!X$14","v":3.7227722772277226E-2},{"$f":"'Population 2016'!Y44/'Population 2016'!Y$14","v":3.9238696518891662E-2},{"$f":"'Population 2016'!Z44/'Population 2016'!Z$14","v":3.1865117966325705E-2},{"$f":"'Population 2016'!AA44/'Population 2016'!AA$14","v":3.5570679195670016E-2},{"$f":"'Population 2016'!AB44/'Population 2016'!AB$14","v":3.393429632430249E-2},{"$f":"'Population 2016'!AY44/'Population 2016'!AY$14","v":3.7472244282727434E-2},{"$f":"'Population 2016'!AC44/'Population 2016'!AC$14","v":3.4615577847369919E-2},{"$f":"'Population 2016'!AD44/'Population 2016'!AD$14","v":3.854702676369394E-2},{"$f":"'Population 2016'!AE44/'Population 2016'!AE$14","v":3.7706775749367753E-2},{"$f":"'Population 2016'!G44/'Population 2016'!G$14","v":4.0870528890247629E-2},{"$f":"'Population 2016'!AF44/'Population 2016'!AF$14","v":3.6856800957319504E-2},{"$f":"'Population 2016'!H44/'Population 2016'!H$14","v":3.7699770187533989E-2},{"$f":"'Population 2016'!AG44/'Population 2016'!AG$14","v":3.7706775749367753E-2},{"$f":"'Population 2016'!AZ44/'Population 2016'!AZ$14","v":3.7689634585061922E-2},{"$f":"'Population 2016'!I44/'Population 2016'!I$14","v":3.62890825217837E-2},{"$f":"'Population 2016'!J44/'Population 2016'!J$14","v":4.1919056553202896E-2},{"$f":"'Population 2016'!K44/'Population 2016'!K$14","v":3.8590759177634618E-2},{"$f":"'Population 2016'!AH44/'Population 2016'!AH$14","v":3.7325745721908048E-2},{"$f":"'Population 2016'!AI44/'Population 2016'!AI$14","v":3.2252652556978498E-2},{"$f":"'Population 2016'!BA44/'Population 2016'!BA$14","v":3.4815646317243765E-2},{"$f":"'Population 2016'!L44/'Population 2016'!L$14","v":3.6191417881099787E-2},{"$f":"'Population 2016'!M44/'Population 2016'!M$14","v":3.6191417881099787E-2},{"$f":"'Population 2016'!AJ44/'Population 2016'!AJ$14","v":3.5439332056240287E-2},{"$f":"'Population 2016'!AK44/'Population 2016'!AK$14","v":3.9522320159226611E-2},{"$f":"'Population 2016'!AL44/'Population 2016'!AL$14","v":3.8845992697671632E-2},{"$f":"'Population 2016'!AM44/'Population 2016'!AM$14","v":3.8256965126551724E-2},{"$f":"'Population 2016'!N44/'Population 2016'!N$14","v":3.5793365429540702E-2},{"$f":"'Population 2016'!AN44/'Population 2016'!AN$14","v":3.6956684371960799E-2},{"$f":"'Population 2016'!AO44/'Population 2016'!AO$14","v":3.6956684371960799E-2},{"$f":"'Population 2016'!AP44/'Population 2016'!AP$14","v":3.8612466124661245E-2},{"$f":"'Population 2016'!C44/'Population 2016'!C$14","v":2.8715155359063802E-2},{"$f":"'Population 2016'!AQ44/'Population 2016'!AQ$14","v":3.6342455719215259E-2},{"$f":"'Population 2016'!O44/'Population 2016'!O$14","v":3.6715828832571663E-2},{"$f":"'Population 2016'!AR44/'Population 2016'!AR$14","v":3.5650561572707309E-2},{"$f":"'Population 2016'!AS44/'Population 2016'!AS$14","v":3.62890825217837E-2},{"$f":"'Population 2016'!AT44/'Population 2016'!AT$14","v":3.7695687997802804E-2},{"$f":"'Population 2016'!AU44/'Population 2016'!AU$14","v":3.7695687997802804E-2},{"$f":"'Population 2016'!BB44/'Population 2016'!BB$14","v":3.640870710357115E-2},{"$f":"'Population 2016'!P44/'Population 2016'!P$14","v":4.0153080750095674E-2},{"$f":"'Population 2016'!AV44/'Population 2016'!AV$14","v":3.7403821920448312E-2},{"$f":"'Population 2016'!AW44/'Population 2016'!AW$14","v":3.6317655004461449E-2},{"$f":"'Population 2016'!Q44/'Population 2016'!Q$14","v":3.5686135109654883E-2},42]
[null,"Male 20-24",{"$f":"'Population 2016'!R45/'Population 2016'!R$14","v":4.9564222202658687E-2},{"$f":"'Population 2016'!AX45/'Population 2016'!AX$14","v":6.4160310362966863E-2},{"$f":"'Population 2016'!S45/'Population 2016'!S$14","v":5.2340020389007896E-2},{"$f":"'Population 2016'!T45/'Population 2016'!T$14","v":5.8775323350467541E-2},{"$f":"'Population 2016'!U45/'Population 2016'!U$14","v":4.0742133634198319E-2},{"$f":"'Population 2016'!D45/'Population 2016'!D$14","v":5.2826708418998128E-2},{"$f":"'Population 2016'!E45/'Population 2016'!E$14","v":4.3407350134100083E-2},{"$f":"'Population 2016'!BC45/'Population 2016'!BC$14","v":4.0742133634198319E-2},{"$f":"'Population 2016'!V45/'Population 2016'!V$14","v":4.5845440980130367E-2},{"$f":"'Population 2016'!F45/'Population 2016'!F$14","v":4.6707655692185643E-2},{"$f":"'Population 2016'!W45/'Population 2016'!W$14","v":5.1743435213086525E-2},{"$f":"'Population 2016'!X45/'Population 2016'!X$14","v":5.1743435213086525E-2},{"$f":"'Population 2016'!Y45/'Population 2016'!Y$14","v":5.2085948990206979E-2},{"$f":"'Population 2016'!Z45/'Population 2016'!Z$14","v":6.2621160693449293E-2},{"$f":"'Population 2016'!AA45/'Population 2016'!AA$14","v":5.3513270910777566E-2},{"$f":"'Population 2016'!AB45/'Population 2016'!AB$14","v":5.2462981473904463E-2},{"$f":"'Population 2016'!AY45/'Population 2016'!AY$14","v":5.3884584839300476E-2},{"$f":"'Population 2016'!AC45/'Population 2016'!AC$14","v":5.6686535208800043E-2},{"$f":"'Population 2016'!AD45/'Population 2016'!AD$14","v":4.6346760852134905E-2},{"$f":"'Population 2016'!AE45/'Population 2016'!AE$14","v":4.2688741172731165E-2},{"$f":"'Population 2016'!G45/'Population 2016'!G$14","v":5.6462091103638035E-2},{"$f":"'Population 2016'!AF45/'Population 2016'!AF$14","v":4.8105305145592345E-2},{"$f":"'Population 2016'!H45/'Population 2016'!H$14","v":4.757205761100293E-2},{"$f":"'Population 2016'!AG45/'Population 2016'!AG$14","v":4.2688741172731165E-2},{"$f":"'Population 2016'!AZ45/'Population 2016'!AZ$14","v":5.5788160372303781E-2},{"$f":"'Population 2016'!I45/'Population 2016'!I$14","v":4.1136413560811304E-2},{"$f":"'Population 2016'!J45/'Population 2016'!J$14","v":5.8901098901098903E-2},{"$f":"'Population 2016'!K45/'Population 2016'!K$14","v":4.9039854514070835E-2},{"$f":"'Population 2016'!AH45/'Population 2016'!AH$14","v":4.768217250611325E-2},{"$f":"'Population 2016'!AI45/'Population 2016'!AI$14","v":5.3871352045701426E-2},{"$f":"'Population 2016'!BA45/'Population 2016'!BA$14","v":4.9667558932734654E-2},{"$f":"'Population 2016'!L45/'Population 2016'!L$14","v":4.4899380891920131E-2},{"$f":"'Population 2016'!M45/'Population 2016'!M$14","v":4.4899380891920131E-2},{"$f":"'Population 2016'!AJ45/'Population 2016'!AJ$14","v":4.5324755123432245E-2},{"$f":"'Population 2016'!AK45/'Population 2016'!AK$14","v":5.0477512585927177E-2},{"$f":"'Population 2016'!AL45/'Population 2016'!AL$14","v":4.9655832884419701E-2},{"$f":"'Population 2016'!AM45/'Population 2016'!AM$14","v":4.9004071149484955E-2},{"$f":"'Population 2016'!N45/'Population 2016'!N$14","v":6.9575639384890406E-2},{"$f":"'Population 2016'!AN45/'Population 2016'!AN$14","v":4.3166005835265954E-2},{"$f":"'Population 2016'!AO45/'Population 2016'!AO$14","v":4.3166005835265954E-2},{"$f":"'Population 2016'!AP45/'Population 2016'!AP$14","v":4.8021680216802171E-2},{"$f":"'Population 2016'!C45/'Population 2016'!C$14","v":6.2522929219442733E-2},{"$f":"'Population 2016'!AQ45/'Population 2016'!AQ$14","v":4.8221267132052492E-2},{"$f":"'Population 2016'!O45/'Population 2016'!O$14","v":4.789416285832987E-2},{"$f":"'Population 2016'!AR45/'Population 2016'!AR$14","v":5.2060628132762507E-2},{"$f":"'Population 2016'!AS45/'Population 2016'!AS$14","v":4.1136413560811304E-2},{"$f":"'Population 2016'!AT45/'Population 2016'!AT$14","v":4.9436967865970891E-2},{"$f":"'Population 2016'!AU45/'Population 2016'!AU$14","v":4.9436967865970891E-2},{"$f":"'Population 2016'!BB45/'Population 2016'!BB$14","v":4.7271068419104674E-2},{"$f":"'Population 2016'!P45/'Population 2016'!P$14","v":5.1052430156907767E-2},{"$f":"'Population 2016'!AV45/'Population 2016'!AV$14","v":4.462366388448253E-2},{"$f":"'Population 2016'!AW45/'Population 2016'!AW$14","v":4.6251152334988097E-2},{"$f":"'Population 2016'!Q45/'Population 2016'!Q$14","v":4.6211149405746256E-2},43]
[null,"Male 25-29",{"$f":"'Population 2016'!R46/'Population 2016'!R$14","v":3.9352055638700589E-2},{"$f":"'Population 2016'!AX46/'Population 2016'!AX$14","v":4.9217517096265123E-2},{"$f":"'Population 2016'!S46/'Population 2016'!S$14","v":5.5350093636743328E-2},{"$f":"'Population 2016'!T46/'Population 2016'!T$14","v":7.3339870518519354E-2},{"$f":"'Population 2016'!U46/'Population 2016'!U$14","v":3.8422966027328573E-2},{"$f":"'Population 2016'!D46/'Population 2016'!D$14","v":6.174912445728608E-2},{"$f":"'Population 2016'!E46/'Population 2016'!E$14","v":4.2700606470630877E-2},{"$f":"'Population 2016'!BC46/'Population 2016'!BC$14","v":3.8422966027328573E-2},{"$f":"'Population 2016'!V46/'Population 2016'!V$14","v":4.4549595539150243E-2},{"$f":"'Population 2016'!F46/'Population 2016'!F$14","v":4.2613475378251262E-2},{"$f":"'Population 2016'!W46/'Population 2016'!W$14","v":4.5053809728798966E-2},{"$f":"'Population 2016'!X46/'Population 2016'!X$14","v":4.5053809728798966E-2},{"$f":"'Population 2016'!Y46/'Population 2016'!Y$14","v":4.5393283761831313E-2},{"$f":"'Population 2016'!Z46/'Population 2016'!Z$14","v":7.35409306527601E-2},{"$f":"'Population 2016'!AA46/'Population 2016'!AA$14","v":5.5653067625918484E-2},{"$f":"'Population 2016'!AB46/'Population 2016'!AB$14","v":5.9669876061094161E-2},{"$f":"'Population 2016'!AY46/'Population 2016'!AY$14","v":4.9696915671242646E-2},{"$f":"'Population 2016'!AC46/'Population 2016'!AC$14","v":6.1570151584051408E-2},{"$f":"'Population 2016'!AD46/'Population 2016'!AD$14","v":4.3956601609678368E-2},{"$f":"'Population 2016'!AE46/'Population 2016'!AE$14","v":4.2674921573775927E-2},{"$f":"'Population 2016'!G46/'Population 2016'!G$14","v":4.7500764292265366E-2},{"$f":"'Population 2016'!AF46/'Population 2016'!AF$14","v":4.6310331072995613E-2},{"$f":"'Population 2016'!H46/'Population 2016'!H$14","v":4.3484553444555547E-2},{"$f":"'Population 2016'!AG46/'Population 2016'!AG$14","v":4.2674921573775927E-2},{"$f":"'Population 2016'!AZ46/'Population 2016'!AZ$14","v":5.382483964300476E-2},{"$f":"'Population 2016'!I46/'Population 2016'!I$14","v":3.6098703961338505E-2},{"$f":"'Population 2016'!J46/'Population 2016'!J$14","v":4.631466094880729E-2},{"$f":"'Population 2016'!K46/'Population 2016'!K$14","v":4.0871682643405356E-2},{"$f":"'Population 2016'!AH46/'Population 2016'!AH$14","v":4.4780005823270831E-2},{"$f":"'Population 2016'!AI46/'Population 2016'!AI$14","v":6.1631172141246013E-2},{"$f":"'Population 2016'!BA46/'Population 2016'!BA$14","v":4.9529401606078924E-2},{"$f":"'Population 2016'!L46/'Population 2016'!L$14","v":4.1258890549332017E-2},{"$f":"'Population 2016'!M46/'Population 2016'!M$14","v":4.1258890549332017E-2},{"$f":"'Population 2016'!AJ46/'Population 2016'!AJ$14","v":4.4457295695232588E-2},{"$f":"'Population 2016'!AK46/'Population 2016'!AK$14","v":4.8319925069828899E-2},{"$f":"'Population 2016'!AL46/'Population 2016'!AL$14","v":4.2664751301849525E-2},{"$f":"'Population 2016'!AM46/'Population 2016'!AM$14","v":4.6435694964343285E-2},{"$f":"'Population 2016'!N46/'Population 2016'!N$14","v":7.1251548946716231E-2},{"$f":"'Population 2016'!AN46/'Population 2016'!AN$14","v":4.5260716690356848E-2},{"$f":"'Population 2016'!AO46/'Population 2016'!AO$14","v":4.5260716690356848E-2},{"$f":"'Population 2016'!AP46/'Population 2016'!AP$14","v":4.3804878048780485E-2},{"$f":"'Population 2016'!C46/'Population 2016'!C$14","v":8.1357534152878039E-2},{"$f":"'Population 2016'!AQ46/'Population 2016'!AQ$14","v":5.0471710601795061E-2},{"$f":"'Population 2016'!O46/'Population 2016'!O$14","v":4.6115496468633152E-2},{"$f":"'Population 2016'!AR46/'Population 2016'!AR$14","v":5.3338876900431556E-2},{"$f":"'Population 2016'!AS46/'Population 2016'!AS$14","v":3.6098703961338505E-2},{"$f":"'Population 2016'!AT46/'Population 2016'!AT$14","v":4.8544355946168634E-2},{"$f":"'Population 2016'!AU46/'Population 2016'!AU$14","v":4.8544355946168634E-2},{"$f":"'Population 2016'!BB46/'Population 2016'!BB$14","v":4.6513629595200591E-2},{"$f":"'Population 2016'!P46/'Population 2016'!P$14","v":4.3214695752009182E-2},{"$f":"'Population 2016'!AV46/'Population 2016'!AV$14","v":4.1495559871317804E-2},{"$f":"'Population 2016'!AW46/'Population 2016'!AW$14","v":4.2987641053197204E-2},{"$f":"'Population 2016'!Q46/'Population 2016'!Q$14","v":3.9426301717076485E-2},44]
[null,"Male 30-34",{"$f":"'Population 2016'!R47/'Population 2016'!R$14","v":3.3312791618980542E-2},{"$f":"'Population 2016'!AX47/'Population 2016'!AX$14","v":3.7924118884797478E-2},{"$f":"'Population 2016'!S47/'Population 2016'!S$14","v":5.1356497761251008E-2},{"$f":"'Population 2016'!T47/'Population 2016'!T$14","v":6.3438013072486463E-2},{"$f":"'Population 2016'!U47/'Population 2016'!U$14","v":3.8736367055283938E-2},{"$f":"'Population 2016'!D47/'Population 2016'!D$14","v":5.5752844173313026E-2},{"$f":"'Population 2016'!E47/'Population 2016'!E$14","v":4.6288689685166841E-2},{"$f":"'Population 2016'!BC47/'Population 2016'!BC$14","v":3.8736367055283938E-2},{"$f":"'Population 2016'!V47/'Population 2016'!V$14","v":4.5717819838215663E-2},{"$f":"'Population 2016'!F47/'Population 2016'!F$14","v":4.3888479628265427E-2},{"$f":"'Population 2016'!W47/'Population 2016'!W$14","v":4.3895824365045202E-2},{"$f":"'Population 2016'!X47/'Population 2016'!X$14","v":4.3895824365045202E-2},{"$f":"'Population 2016'!Y47/'Population 2016'!Y$14","v":4.2754139357073673E-2},{"$f":"'Population 2016'!Z47/'Population 2016'!Z$14","v":6.447424057228282E-2},{"$f":"'Population 2016'!AA47/'Population 2016'!AA$14","v":5.1526138054845537E-2},{"$f":"'Population 2016'!AB47/'Population 2016'!AB$14","v":5.4407781270878759E-2},{"$f":"'Population 2016'!AY47/'Population 2016'!AY$14","v":4.6102854179160116E-2},{"$f":"'Population 2016'!AC47/'Population 2016'!AC$14","v":5.4814761377821347E-2},{"$f":"'Population 2016'!AD47/'Population 2016'!AD$14","v":4.2916298754681365E-2},{"$f":"'Population 2016'!AE47/'Population 2016'!AE$14","v":4.466494382333025E-2},{"$f":"'Population 2016'!G47/'Population 2016'!G$14","v":3.808086212167533E-2},{"$f":"'Population 2016'!AF47/'Population 2016'!AF$14","v":4.4415636218587955E-2},{"$f":"'Population 2016'!H47/'Population 2016'!H$14","v":3.9897022963703663E-2},{"$f":"'Population 2016'!AG47/'Population 2016'!AG$14","v":4.466494382333025E-2},{"$f":"'Population 2016'!AZ47/'Population 2016'!AZ$14","v":4.806500007654272E-2},{"$f":"'Population 2016'!I47/'Population 2016'!I$14","v":3.5703302335798492E-2},{"$f":"'Population 2016'!J47/'Population 2016'!J$14","v":3.9517555615116592E-2},{"$f":"'Population 2016'!K47/'Population 2016'!K$14","v":4.2505317017538451E-2},{"$f":"'Population 2016'!AH47/'Population 2016'!AH$14","v":4.5483059252964309E-2},{"$f":"'Population 2016'!AI47/'Population 2016'!AI$14","v":5.6104905853503952E-2},{"$f":"'Population 2016'!BA47/'Population 2016'!BA$14","v":4.6282704429669287E-2},{"$f":"'Population 2016'!L47/'Population 2016'!L$14","v":3.9539770109776516E-2},{"$f":"'Population 2016'!M47/'Population 2016'!M$14","v":3.9539770109776516E-2},{"$f":"'Population 2016'!AJ47/'Population 2016'!AJ$14","v":4.5505475837640509E-2},{"$f":"'Population 2016'!AK47/'Population 2016'!AK$14","v":4.7065513723260129E-2},{"$f":"'Population 2016'!AL47/'Population 2016'!AL$14","v":3.8594601065421681E-2},{"$f":"'Population 2016'!AM47/'Population 2016'!AM$14","v":4.7164312321830285E-2},{"$f":"'Population 2016'!N47/'Population 2016'!N$14","v":5.3578320840189327E-2},{"$f":"'Population 2016'!AN47/'Population 2016'!AN$14","v":4.0397995062467273E-2},{"$f":"'Population 2016'!AO47/'Population 2016'!AO$14","v":4.0397995062467273E-2},{"$f":"'Population 2016'!AP47/'Population 2016'!AP$14","v":4.5376693766937669E-2},{"$f":"'Population 2016'!C47/'Population 2016'!C$14","v":6.5495177868561946E-2},{"$f":"'Population 2016'!AQ47/'Population 2016'!AQ$14","v":4.7815304780647952E-2},{"$f":"'Population 2016'!O47/'Population 2016'!O$14","v":4.3596800997091817E-2},{"$f":"'Population 2016'!AR47/'Population 2016'!AR$14","v":4.937203629527346E-2},{"$f":"'Population 2016'!AS47/'Population 2016'!AS$14","v":3.5703302335798492E-2},{"$f":"'Population 2016'!AT47/'Population 2016'!AT$14","v":4.4973908266959628E-2},{"$f":"'Population 2016'!AU47/'Population 2016'!AU$14","v":4.4973908266959628E-2},{"$f":"'Population 2016'!BB47/'Population 2016'!BB$14","v":4.8286725023885146E-2},{"$f":"'Population 2016'!P47/'Population 2016'!P$14","v":3.7198622273249139E-2},{"$f":"'Population 2016'!AV47/'Population 2016'!AV$14","v":3.7285220820423112E-2},{"$f":"'Population 2016'!AW47/'Population 2016'!AW$14","v":4.3663020276166017E-2},{"$f":"'Population 2016'!Q47/'Population 2016'!Q$14","v":3.9101741804862214E-2},45]
[null,"Male 35-39",{"$f":"'Population 2016'!R48/'Population 2016'!R$14","v":4.2186812219385507E-2},{"$f":"'Population 2016'!AX48/'Population 2016'!AX$14","v":3.8367964229352972E-2},{"$f":"'Population 2016'!S48/'Population 2016'!S$14","v":4.800174249671036E-2},{"$f":"'Population 2016'!T48/'Population 2016'!T$14","v":5.3479638175277573E-2},{"$f":"'Population 2016'!U48/'Population 2016'!U$14","v":4.3061301241068071E-2},{"$f":"'Population 2016'!D48/'Population 2016'!D$14","v":5.1696086331728813E-2},{"$f":"'Population 2016'!E48/'Population 2016'!E$14","v":5.04627056805277E-2},{"$f":"'Population 2016'!BC48/'Population 2016'!BC$14","v":4.3061301241068071E-2},{"$f":"'Population 2016'!V48/'Population 2016'!V$14","v":4.9026152517081596E-2},{"$f":"'Population 2016'!F48/'Population 2016'!F$14","v":4.2358474528248424E-2},{"$f":"'Population 2016'!W48/'Population 2016'!W$14","v":4.4253120964270337E-2},{"$f":"'Population 2016'!X48/'Population 2016'!X$14","v":4.4253120964270337E-2},{"$f":"'Population 2016'!Y48/'Population 2016'!Y$14","v":4.4896202194333268E-2},{"$f":"'Population 2016'!Z48/'Population 2016'!Z$14","v":5.1253139491627638E-2},{"$f":"'Population 2016'!AA48/'Population 2016'!AA$14","v":4.6897002782987071E-2},{"$f":"'Population 2016'!AB48/'Population 2016'!AB$14","v":5.0536308971975204E-2},{"$f":"'Population 2016'!AY48/'Population 2016'!AY$14","v":4.3483281738764E-2},{"$f":"'Population 2016'!AC48/'Population 2016'!AC$14","v":4.7018494877420068E-2},{"$f":"'Population 2016'!AD48/'Population 2016'!AD$14","v":4.3601376244557441E-2},{"$f":"'Population 2016'!AE48/'Population 2016'!AE$14","v":4.4782410414449775E-2},{"$f":"'Population 2016'!G48/'Population 2016'!G$14","v":4.0335524304494039E-2},{"$f":"'Population 2016'!AF48/'Population 2016'!AF$14","v":4.0087754287993618E-2},{"$f":"'Population 2016'!H48/'Population 2016'!H$14","v":3.9734750802589335E-2},{"$f":"'Population 2016'!AG48/'Population 2016'!AG$14","v":4.4782410414449775E-2},{"$f":"'Population 2016'!AZ48/'Population 2016'!AZ$14","v":4.2798861044348852E-2},{"$f":"'Population 2016'!I48/'Population 2016'!I$14","v":3.8178223621586002E-2},{"$f":"'Population 2016'!J48/'Population 2016'!J$14","v":4.0385955507906725E-2},{"$f":"'Population 2016'!K48/'Population 2016'!K$14","v":4.4169774681749527E-2},{"$f":"'Population 2016'!AH48/'Population 2016'!AH$14","v":4.6673752435239781E-2},{"$f":"'Population 2016'!AI48/'Population 2016'!AI$14","v":5.0614227297145695E-2},{"$f":"'Population 2016'!BA48/'Population 2016'!BA$14","v":4.149900699421466E-2},{"$f":"'Population 2016'!L48/'Population 2016'!L$14","v":3.6539736401532602E-2},{"$f":"'Population 2016'!M48/'Population 2016'!M$14","v":3.6539736401532602E-2},{"$f":"'Population 2016'!AJ48/'Population 2016'!AJ$14","v":4.7240394694039831E-2},{"$f":"'Population 2016'!AK48/'Population 2016'!AK$14","v":4.4205455853083345E-2},{"$f":"'Population 2016'!AL48/'Population 2016'!AL$14","v":3.7792542048243248E-2},{"$f":"'Population 2016'!AM48/'Population 2016'!AM$14","v":4.7269051066969041E-2},{"$f":"'Population 2016'!N48/'Population 2016'!N$14","v":4.0709366810896458E-2},{"$f":"'Population 2016'!AN48/'Population 2016'!AN$14","v":4.0098750654597143E-2},{"$f":"'Population 2016'!AO48/'Population 2016'!AO$14","v":4.0098750654597143E-2},{"$f":"'Population 2016'!AP48/'Population 2016'!AP$14","v":4.5365853658536584E-2},{"$f":"'Population 2016'!C48/'Population 2016'!C$14","v":5.2965719651040598E-2},{"$f":"'Population 2016'!AQ48/'Population 2016'!AQ$14","v":4.3614476970461828E-2},{"$f":"'Population 2016'!O48/'Population 2016'!O$14","v":4.214270876609888E-2},{"$f":"'Population 2016'!AR48/'Population 2016'!AR$14","v":4.6209509586292677E-2},{"$f":"'Population 2016'!AS48/'Population 2016'!AS$14","v":3.8178223621586002E-2},{"$f":"'Population 2016'!AT48/'Population 2016'!AT$14","v":4.8887668223015657E-2},{"$f":"'Population 2016'!AU48/'Population 2016'!AU$14","v":4.8887668223015657E-2},{"$f":"'Population 2016'!BB48/'Population 2016'!BB$14","v":4.8329761320697877E-2},{"$f":"'Population 2016'!P48/'Population 2016'!P$14","v":3.9280520474550322E-2},{"$f":"'Population 2016'!AV48/'Population 2016'!AV$14","v":3.9390390345870455E-2},{"$f":"'Population 2016'!AW48/'Population 2016'!AW$14","v":4.6029312444231918E-2},{"$f":"'Population 2016'!Q48/'Population 2016'!Q$14","v":4.1930049611300868E-2},46]
[null,"Male 40-44",{"$f":"'Population 2016'!R49/'Population 2016'!R$14","v":5.0286116735628134E-2},{"$f":"'Population 2016'!AX49/'Population 2016'!AX$14","v":4.3776301946344028E-2},{"$f":"'Population 2016'!S49/'Population 2016'!S$14","v":4.8889831992778521E-2},{"$f":"'Population 2016'!T49/'Population 2016'!T$14","v":4.737857932082979E-2},{"$f":"'Population 2016'!U49/'Population 2016'!U$14","v":5.1147047762316662E-2},{"$f":"'Population 2016'!D49/'Population 2016'!D$14","v":5.0344855056699625E-2},{"$f":"'Population 2016'!E49/'Population 2016'!E$14","v":5.5107884118201368E-2},{"$f":"'Population 2016'!BC49/'Population 2016'!BC$14","v":5.1147047762316662E-2},{"$f":"'Population 2016'!V49/'Population 2016'!V$14","v":5.2992224927354122E-2},{"$f":"'Population 2016'!F49/'Population 2016'!F$14","v":4.8010993369977897E-2},{"$f":"'Population 2016'!W49/'Population 2016'!W$14","v":4.8170469220835128E-2},{"$f":"'Population 2016'!X49/'Population 2016'!X$14","v":4.8170469220835128E-2},{"$f":"'Population 2016'!Y49/'Population 2016'!Y$14","v":4.9574918391505539E-2},{"$f":"'Population 2016'!Z49/'Population 2016'!Z$14","v":4.3247002608637383E-2},{"$f":"'Population 2016'!AA49/'Population 2016'!AA$14","v":4.6128678114509575E-2},{"$f":"'Population 2016'!AB49/'Population 2016'!AB$14","v":5.0266989159877561E-2},{"$f":"'Population 2016'!AY49/'Population 2016'!AY$14","v":4.5484934926011765E-2},{"$f":"'Population 2016'!AC49/'Population 2016'!AC$14","v":4.4077504061092225E-2},{"$f":"'Population 2016'!AD49/'Population 2016'!AD$14","v":4.6448253813598024E-2},{"$f":"'Population 2016'!AE49/'Population 2016'!AE$14","v":4.639239369273504E-2},{"$f":"'Population 2016'!G49/'Population 2016'!G$14","v":4.6602720880464688E-2},{"$f":"'Population 2016'!AF49/'Population 2016'!AF$14","v":4.2241723175109692E-2},{"$f":"'Population 2016'!H49/'Population 2016'!H$14","v":4.5866007052260405E-2},{"$f":"'Population 2016'!AG49/'Population 2016'!AG$14","v":4.639239369273504E-2},{"$f":"'Population 2016'!AZ49/'Population 2016'!AZ$14","v":4.3097377646464492E-2},{"$f":"'Population 2016'!I49/'Population 2016'!I$14","v":4.7931463718239732E-2},{"$f":"'Population 2016'!J49/'Population 2016'!J$14","v":4.5842937550254627E-2},{"$f":"'Population 2016'!K49/'Population 2016'!K$14","v":4.9717966895786454E-2},{"$f":"'Population 2016'!AH49/'Population 2016'!AH$14","v":4.9897856042116925E-2},{"$f":"'Population 2016'!AI49/'Population 2016'!AI$14","v":4.9283924004941609E-2},{"$f":"'Population 2016'!BA49/'Population 2016'!BA$14","v":4.2034366635005614E-2},{"$f":"'Population 2016'!L49/'Population 2016'!L$14","v":4.3753300598883132E-2},{"$f":"'Population 2016'!M49/'Population 2016'!M$14","v":4.3753300598883132E-2},{"$f":"'Population 2016'!AJ49/'Population 2016'!AJ$14","v":4.9101818050384938E-2},{"$f":"'Population 2016'!AK49/'Population 2016'!AK$14","v":4.9841944170332338E-2},{"$f":"'Population 2016'!AL49/'Population 2016'!AL$14","v":4.4292811396420662E-2},{"$f":"'Population 2016'!AM49/'Population 2016'!AM$14","v":5.0192628213885628E-2},{"$f":"'Population 2016'!N49/'Population 2016'!N$14","v":3.7428646880776809E-2},{"$f":"'Population 2016'!AN49/'Population 2016'!AN$14","v":4.6532505423804896E-2},{"$f":"'Population 2016'!AO49/'Population 2016'!AO$14","v":4.6532505423804896E-2},{"$f":"'Population 2016'!AP49/'Population 2016'!AP$14","v":4.5387533875338754E-2},{"$f":"'Population 2016'!C49/'Population 2016'!C$14","v":4.544182662711959E-2},{"$f":"'Population 2016'!AQ49/'Population 2016'!AQ$14","v":4.4391100599235733E-2},{"$f":"'Population 2016'!O49/'Population 2016'!O$14","v":4.821873701703365E-2},{"$f":"'Population 2016'!AR49/'Population 2016'!AR$14","v":4.725852746085811E-2},{"$f":"'Population 2016'!AS49/'Population 2016'!AS$14","v":4.7931463718239732E-2},{"$f":"'Population 2016'!AT49/'Population 2016'!AT$14","v":5.4929964295523208E-2},{"$f":"'Population 2016'!AU49/'Population 2016'!AU$14","v":5.4929964295523208E-2},{"$f":"'Population 2016'!BB49/'Population 2016'!BB$14","v":5.3511331456950792E-2},{"$f":"'Population 2016'!P49/'Population 2016'!P$14","v":4.6858017604286262E-2},{"$f":"'Population 2016'!AV49/'Population 2016'!AV$14","v":4.5127718559589643E-2},{"$f":"'Population 2016'!AW49/'Population 2016'!AW$14","v":4.9578750696330769E-2},{"$f":"'Population 2016'!Q49/'Population 2016'!Q$14","v":5.2269601100412656E-2},47]
[null,"Male 45-49",{"$f":"'Population 2016'!R50/'Population 2016'!R$14","v":5.6483845408926842E-2},{"$f":"'Population 2016'!AX50/'Population 2016'!AX$14","v":5.3935428721725409E-2},{"$f":"'Population 2016'!S50/'Population 2016'!S$14","v":5.3665979548118505E-2},{"$f":"'Population 2016'!T50/'Population 2016'!T$14","v":4.6070200326105697E-2},{"$f":"'Population 2016'!U50/'Population 2016'!U$14","v":6.6566378337720944E-2},{"$f":"'Population 2016'!D50/'Population 2016'!D$14","v":5.2786876204541484E-2},{"$f":"'Population 2016'!E50/'Population 2016'!E$14","v":6.0085292483146882E-2},{"$f":"'Population 2016'!BC50/'Population 2016'!BC$14","v":6.6566378337720944E-2},{"$f":"'Population 2016'!V50/'Population 2016'!V$14","v":6.1641011544804836E-2},{"$f":"'Population 2016'!F50/'Population 2016'!F$14","v":5.6921856406188021E-2},{"$f":"'Population 2016'!W50/'Population 2016'!W$14","v":5.7718467498923808E-2},{"$f":"'Population 2016'!X50/'Population 2016'!X$14","v":5.7718467498923808E-2},{"$f":"'Population 2016'!Y50/'Population 2016'!Y$14","v":5.9526798845950836E-2},{"$f":"'Population 2016'!Z50/'Population 2016'!Z$14","v":4.6091318482507804E-2},{"$f":"'Population 2016'!AA50/'Population 2016'!AA$14","v":5.3048605503240143E-2},{"$f":"'Population 2016'!AB50/'Population 2016'!AB$14","v":5.4148819913092568E-2},{"$f":"'Population 2016'!AY50/'Population 2016'!AY$14","v":5.4952268270150248E-2},{"$f":"'Population 2016'!AC50/'Population 2016'!AC$14","v":5.0157870531993422E-2},{"$f":"'Population 2016'!AD50/'Population 2016'!AD$14","v":5.6800535882836525E-2},{"$f":"'Population 2016'!AE50/'Population 2016'!AE$14","v":5.65497989248352E-2},{"$f":"'Population 2016'!G50/'Population 2016'!G$14","v":5.7493885661877103E-2},{"$f":"'Population 2016'!AF50/'Population 2016'!AF$14","v":5.3729557239728762E-2},{"$f":"'Population 2016'!H50/'Population 2016'!H$14","v":5.6426854726944198E-2},{"$f":"'Population 2016'!AG50/'Population 2016'!AG$14","v":5.65497989248352E-2},{"$f":"'Population 2016'!AZ50/'Population 2016'!AZ$14","v":5.2492996341258057E-2},{"$f":"'Population 2016'!I50/'Population 2016'!I$14","v":6.1960899172585487E-2},{"$f":"'Population 2016'!J50/'Population 2016'!J$14","v":5.7217904047172342E-2},{"$f":"'Population 2016'!K50/'Population 2016'!K$14","v":6.337268440033289E-2},{"$f":"'Population 2016'!AH50/'Population 2016'!AH$14","v":5.8360536214353179E-2},{"$f":"'Population 2016'!AI50/'Population 2016'!AI$14","v":5.1110760882643526E-2},{"$f":"'Population 2016'!BA50/'Population 2016'!BA$14","v":5.3017874104136088E-2},{"$f":"'Population 2016'!L50/'Population 2016'!L$14","v":5.6865807480982931E-2},{"$f":"'Population 2016'!M50/'Population 2016'!M$14","v":5.6865807480982931E-2},{"$f":"'Population 2016'!AJ50/'Population 2016'!AJ$14","v":5.6529439404344524E-2},{"$f":"'Population 2016'!AK50/'Population 2016'!AK$14","v":6.1583234374215992E-2},{"$f":"'Population 2016'!AL50/'Population 2016'!AL$14","v":5.5605434847668639E-2},{"$f":"'Population 2016'!AM50/'Population 2016'!AM$14","v":5.7788464165687586E-2},{"$f":"'Population 2016'!N50/'Population 2016'!N$14","v":4.584882280049566E-2},{"$f":"'Population 2016'!AN50/'Population 2016'!AN$14","v":5.9474826064187927E-2},{"$f":"'Population 2016'!AO50/'Population 2016'!AO$14","v":5.9474826064187927E-2},{"$f":"'Population 2016'!AP50/'Population 2016'!AP$14","v":5.6195121951219514E-2},{"$f":"'Population 2016'!C50/'Population 2016'!C$14","v":4.5273938105098215E-2},{"$f":"'Population 2016'!AQ50/'Population 2016'!AQ$14","v":5.5705094827510127E-2},{"$f":"'Population 2016'!O50/'Population 2016'!O$14","v":5.7981927710843373E-2},{"$f":"'Population 2016'!AR50/'Population 2016'!AR$14","v":5.4276717791841733E-2},{"$f":"'Population 2016'!AS50/'Population 2016'!AS$14","v":6.1960899172585487E-2},{"$f":"'Population 2016'!AT50/'Population 2016'!AT$14","v":5.5891238670694864E-2},{"$f":"'Population 2016'!AU50/'Population 2016'!AU$14","v":5.5891238670694864E-2},{"$f":"'Population 2016'!BB50/'Population 2016'!BB$14","v":6.0147528425474044E-2},{"$f":"'Population 2016'!P50/'Population 2016'!P$14","v":5.670110983543819E-2},{"$f":"'Population 2016'!AV50/'Population 2016'!AV$14","v":5.5668391324329533E-2},{"$f":"'Population 2016'!AW50/'Population 2016'!AW$14","v":5.8979832289042591E-2},{"$f":"'Population 2016'!Q50/'Population 2016'!Q$14","v":5.78180300758852E-2},48]
[null,"Male 50-54",{"$f":"'Population 2016'!R51/'Population 2016'!R$14","v":6.1149749097631836E-2},{"$f":"'Population 2016'!AX51/'Population 2016'!AX$14","v":5.7042346133613885E-2},{"$f":"'Population 2016'!S51/'Population 2016'!S$14","v":5.4256542221862943E-2},{"$f":"'Population 2016'!T51/'Population 2016'!T$14","v":4.5714140383696977E-2},{"$f":"'Population 2016'!U51/'Population 2016'!U$14","v":6.4874012786761942E-2},{"$f":"'Population 2016'!D51/'Population 2016'!D$14","v":5.3344527206934479E-2},{"$f":"'Population 2016'!E51/'Population 2016'!E$14","v":6.1166549882813441E-2},{"$f":"'Population 2016'!BC51/'Population 2016'!BC$14","v":6.4874012786761942E-2},{"$f":"'Population 2016'!V51/'Population 2016'!V$14","v":6.0728029529568836E-2},{"$f":"'Population 2016'!F51/'Population 2016'!F$14","v":6.4741882472941575E-2},{"$f":"'Population 2016'!W51/'Population 2016'!W$14","v":5.7369780456306502E-2},{"$f":"'Population 2016'!X51/'Population 2016'!X$14","v":5.7369780456306502E-2},{"$f":"'Population 2016'!Y51/'Population 2016'!Y$14","v":5.9839396532727955E-2},{"$f":"'Population 2016'!Z51/'Population 2016'!Z$14","v":4.6156014538127926E-2},{"$f":"'Population 2016'!AA51/'Population 2016'!AA$14","v":5.5160038441260287E-2},{"$f":"'Population 2016'!AB51/'Population 2016'!AB$14","v":5.4451804701702411E-2},{"$f":"'Population 2016'!AY51/'Population 2016'!AY$14","v":5.7800774728925912E-2},{"$f":"'Population 2016'!AC51/'Population 2016'!AC$14","v":5.3062791377731171E-2},{"$f":"'Population 2016'!AD51/'Population 2016'!AD$14","v":6.2986531884013847E-2},{"$f":"'Population 2016'!AE51/'Population 2016'!AE$14","v":6.2568234269841483E-2},{"$f":"'Population 2016'!G51/'Population 2016'!G$14","v":6.4143228370528896E-2},{"$f":"'Population 2016'!AF51/'Population 2016'!AF$14","v":6.493817311527722E-2},{"$f":"'Population 2016'!H51/'Population 2016'!H$14","v":6.1001175376734558E-2},{"$f":"'Population 2016'!AG51/'Population 2016'!AG$14","v":6.2568234269841483E-2},{"$f":"'Population 2016'!AZ51/'Population 2016'!AZ$14","v":5.818394746107803E-2},{"$f":"'Population 2016'!I51/'Population 2016'!I$14","v":6.8199458153327966E-2},{"$f":"'Population 2016'!J51/'Population 2016'!J$14","v":5.8868935942106675E-2},{"$f":"'Population 2016'!K51/'Population 2016'!K$14","v":6.2293869247603488E-2},{"$f":"'Population 2016'!AH51/'Population 2016'!AH$14","v":5.901387879548247E-2},{"$f":"'Population 2016'!AI51/'Population 2016'!AI$14","v":5.1417493234094405E-2},{"$f":"'Population 2016'!BA51/'Population 2016'!BA$14","v":6.0651066401865121E-2},{"$f":"'Population 2016'!L51/'Population 2016'!L$14","v":6.6113102394408929E-2},{"$f":"'Population 2016'!M51/'Population 2016'!M$14","v":6.6113102394408929E-2},{"$f":"'Population 2016'!AJ51/'Population 2016'!AJ$14","v":5.7577619546752445E-2},{"$f":"'Population 2016'!AK51/'Population 2016'!AK$14","v":6.0496077873856392E-2},{"$f":"'Population 2016'!AL51/'Population 2016'!AL$14","v":6.0681151613096306E-2},{"$f":"'Population 2016'!AM51/'Population 2016'!AM$14","v":5.8553512391048938E-2},{"$f":"'Population 2016'!N51/'Population 2016'!N$14","v":4.7666930749385501E-2},{"$f":"'Population 2016'!AN51/'Population 2016'!AN$14","v":6.7928480586519041E-2},{"$f":"'Population 2016'!AO51/'Population 2016'!AO$14","v":6.7928480586519041E-2},{"$f":"'Population 2016'!AP51/'Population 2016'!AP$14","v":6.4390243902439026E-2},{"$f":"'Population 2016'!C51/'Population 2016'!C$14","v":4.5292592385322815E-2},{"$f":"'Population 2016'!AQ51/'Population 2016'!AQ$14","v":6.0135379618924907E-2},{"$f":"'Population 2016'!O51/'Population 2016'!O$14","v":6.0825197341088495E-2},{"$f":"'Population 2016'!AR51/'Population 2016'!AR$14","v":5.6571032493192557E-2},{"$f":"'Population 2016'!AS51/'Population 2016'!AS$14","v":6.8199458153327966E-2},{"$f":"'Population 2016'!AT51/'Population 2016'!AT$14","v":6.3718758582806928E-2},{"$f":"'Population 2016'!AU51/'Population 2016'!AU$14","v":6.3718758582806928E-2},{"$f":"'Population 2016'!BB51/'Population 2016'!BB$14","v":5.9286802489219408E-2},{"$f":"'Population 2016'!P51/'Population 2016'!P$14","v":6.3681592039800991E-2},{"$f":"'Population 2016'!AV51/'Population 2016'!AV$14","v":6.1598446325589667E-2},{"$f":"'Population 2016'!AW51/'Population 2016'!AW$14","v":5.9512248026857416E-2},{"$f":"'Population 2016'!Q51/'Population 2016'!Q$14","v":6.3211906712208082E-2},49]
[null,"Male 55-59",{"$f":"'Population 2016'!R52/'Population 2016'!R$14","v":5.6924025002200895E-2},{"$f":"'Population 2016'!AX52/'Population 2016'!AX$14","v":5.1551814834297736E-2},{"$f":"'Population 2016'!S52/'Population 2016'!S$14","v":4.9475903695619959E-2},{"$f":"'Population 2016'!T52/'Population 2016'!T$14","v":4.0342156649419425E-2},{"$f":"'Population 2016'!U52/'Population 2016'!U$14","v":6.380844929171367E-2},{"$f":"'Population 2016'!D52/'Population 2016'!D$14","v":4.8828166890850538E-2},{"$f":"'Population 2016'!E52/'Population 2016'!E$14","v":5.5204532824316817E-2},{"$f":"'Population 2016'!BC52/'Population 2016'!BC$14","v":6.380844929171367E-2},{"$f":"'Population 2016'!V52/'Population 2016'!V$14","v":5.321801617843399E-2},{"$f":"'Population 2016'!F52/'Population 2016'!F$14","v":5.7120190400634666E-2},{"$f":"'Population 2016'!W52/'Population 2016'!W$14","v":5.5010761945759795E-2},{"$f":"'Population 2016'!X52/'Population 2016'!X$14","v":5.5010761945759795E-2},{"$f":"'Population 2016'!Y52/'Population 2016'!Y$14","v":5.3218475035743749E-2},{"$f":"'Population 2016'!Z52/'Population 2016'!Z$14","v":4.0619880635777379E-2},{"$f":"'Population 2016'!AA52/'Population 2016'!AA$14","v":4.9827648342554341E-2},{"$f":"'Population 2016'!AB52/'Population 2016'!AB$14","v":4.9712811854215111E-2},{"$f":"'Population 2016'!AY52/'Population 2016'!AY$14","v":5.4156064117732862E-2},{"$f":"'Population 2016'!AC52/'Population 2016'!AC$14","v":4.793699091423205E-2},{"$f":"'Population 2016'!AD52/'Population 2016'!AD$14","v":6.0702940251093587E-2},{"$f":"'Population 2016'!AE52/'Population 2016'!AE$14","v":6.0225812246928592E-2},{"$f":"'Population 2016'!G52/'Population 2016'!G$14","v":6.2022317334148577E-2},{"$f":"'Population 2016'!AF52/'Population 2016'!AF$14","v":5.9134423613881132E-2},{"$f":"'Population 2016'!H52/'Population 2016'!H$14","v":5.7773275090784698E-2},{"$f":"'Population 2016'!AG52/'Population 2016'!AG$14","v":6.0225812246928592E-2},{"$f":"'Population 2016'!AZ52/'Population 2016'!AZ$14","v":5.3396200419454094E-2},{"$f":"'Population 2016'!I52/'Population 2016'!I$14","v":6.3571794684044808E-2},{"$f":"'Population 2016'!J52/'Population 2016'!J$14","v":5.3218976145805418E-2},{"$f":"'Population 2016'!K52/'Population 2016'!K$14","v":5.6344974262552784E-2},{"$f":"'Population 2016'!AH52/'Population 2016'!AH$14","v":5.3301865577131118E-2},{"$f":"'Population 2016'!AI52/'Population 2016'!AI$14","v":4.5665837980921588E-2},{"$f":"'Population 2016'!BA52/'Population 2016'!BA$14","v":5.5401087988947412E-2},{"$f":"'Population 2016'!L52/'Population 2016'!L$14","v":6.2382723401386529E-2},{"$f":"'Population 2016'!M52/'Population 2016'!M$14","v":6.2382723401386529E-2},{"$f":"'Population 2016'!AJ52/'Population 2016'!AJ$14","v":5.3168034120070845E-2},{"$f":"'Population 2016'!AK52/'Population 2016'!AK$14","v":5.454180534880998E-2},{"$f":"'Population 2016'!AL52/'Population 2016'!AL$14","v":5.734123421320405E-2},{"$f":"'Population 2016'!AM52/'Population 2016'!AM$14","v":5.0561490751113415E-2},{"$f":"'Population 2016'!N52/'Population 2016'!N$14","v":4.7047352062892317E-2},{"$f":"'Population 2016'!AN52/'Population 2016'!AN$14","v":6.553452532355801E-2},{"$f":"'Population 2016'!AO52/'Population 2016'!AO$14","v":6.553452532355801E-2},{"$f":"'Population 2016'!AP52/'Population 2016'!AP$14","v":5.7322493224932249E-2},{"$f":"'Population 2016'!C52/'Population 2016'!C$14","v":4.2264380895529814E-2},{"$f":"'Population 2016'!AQ52/'Population 2016'!AQ$14","v":5.6040455030844316E-2},{"$f":"'Population 2016'!O52/'Population 2016'!O$14","v":5.5606044869131697E-2},{"$f":"'Population 2016'!AR52/'Population 2016'!AR$14","v":5.1788129908585584E-2},{"$f":"'Population 2016'!AS52/'Population 2016'!AS$14","v":6.3571794684044808E-2},{"$f":"'Population 2016'!AT52/'Population 2016'!AT$14","v":5.6715188135127714E-2},{"$f":"'Population 2016'!AU52/'Population 2016'!AU$14","v":5.6715188135127714E-2},{"$f":"'Population 2016'!BB52/'Population 2016'!BB$14","v":5.1514447284840031E-2},{"$f":"'Population 2016'!P52/'Population 2016'!P$14","v":5.9334098737083812E-2},{"$f":"'Population 2016'!AV52/'Population 2016'!AV$14","v":6.0783063762916402E-2},{"$f":"'Population 2016'!AW52/'Population 2016'!AW$14","v":5.6268455846467079E-2},{"$f":"'Population 2016'!Q52/'Population 2016'!Q$14","v":5.7864395777630091E-2},50]
[null,"Male 60-64",{"$f":"'Population 2016'!R53/'Population 2016'!R$14","v":4.914164979311559E-2},{"$f":"'Population 2016'!AX53/'Population 2016'!AX$14","v":4.3233824302998422E-2},{"$f":"'Population 2016'!S53/'Population 2016'!S$14","v":4.2004050855754503E-2},{"$f":"'Population 2016'!T53/'Population 2016'!T$14","v":3.4159147490766463E-2},{"$f":"'Population 2016'!U53/'Population 2016'!U$14","v":6.1865362918390371E-2},{"$f":"'Population 2016'!D53/'Population 2016'!D$14","v":4.354273843410373E-2},{"$f":"'Population 2016'!E53/'Population 2016'!E$14","v":4.9435813178051076E-2},{"$f":"'Population 2016'!BC53/'Population 2016'!BC$14","v":6.1865362918390371E-2},{"$f":"'Population 2016'!V53/'Population 2016'!V$14","v":4.3499175371083013E-2},{"$f":"'Population 2016'!F53/'Population 2016'!F$14","v":5.2742675808919365E-2},{"$f":"'Population 2016'!W53/'Population 2016'!W$14","v":4.7163151097718466E-2},{"$f":"'Population 2016'!X53/'Population 2016'!X$14","v":4.7163151097718466E-2},{"$f":"'Population 2016'!Y53/'Population 2016'!Y$14","v":4.4276131373021284E-2},{"$f":"'Population 2016'!Z53/'Population 2016'!Z$14","v":3.3348506098758529E-2},{"$f":"'Population 2016'!AA53/'Population 2016'!AA$14","v":4.1748977235566177E-2},{"$f":"'Population 2016'!AB53/'Population 2016'!AB$14","v":4.448179242693405E-2},{"$f":"'Population 2016'!AY53/'Population 2016'!AY$14","v":4.7342744614985659E-2},{"$f":"'Population 2016'!AC53/'Population 2016'!AC$14","v":3.9751684016751922E-2},{"$f":"'Population 2016'!AD53/'Population 2016'!AD$14","v":5.6211876706350417E-2},{"$f":"'Population 2016'!AE53/'Population 2016'!AE$14","v":5.5140199831400893E-2},{"$f":"'Population 2016'!G53/'Population 2016'!G$14","v":5.9175328645674104E-2},{"$f":"'Population 2016'!AF53/'Population 2016'!AF$14","v":4.8364579178300761E-2},{"$f":"'Population 2016'!H53/'Population 2016'!H$14","v":5.2001649036015646E-2},{"$f":"'Population 2016'!AG53/'Population 2016'!AG$14","v":5.5140199831400893E-2},{"$f":"'Population 2016'!AZ53/'Population 2016'!AZ$14","v":4.7502411095632475E-2},{"$f":"'Population 2016'!I53/'Population 2016'!I$14","v":5.9163798784506116E-2},{"$f":"'Population 2016'!J53/'Population 2016'!J$14","v":4.5124631466094883E-2},{"$f":"'Population 2016'!K53/'Population 2016'!K$14","v":4.8669975033135034E-2},{"$f":"'Population 2016'!AH53/'Population 2016'!AH$14","v":4.5419145304810352E-2},{"$f":"'Population 2016'!AI53/'Population 2016'!AI$14","v":3.7987361271397124E-2},{"$f":"'Population 2016'!BA53/'Population 2016'!BA$14","v":4.7647008030394615E-2},{"$f":"'Population 2016'!L53/'Population 2016'!L$14","v":5.9113023741839799E-2},{"$f":"'Population 2016'!M53/'Population 2016'!M$14","v":5.9113023741839799E-2},{"$f":"'Population 2016'!AJ53/'Population 2016'!AJ$14","v":4.7150034336935702E-2},{"$f":"'Population 2016'!AK53/'Population 2016'!AK$14","v":4.96077873856395E-2},{"$f":"'Population 2016'!AL53/'Population 2016'!AL$14","v":5.1523313581133656E-2},{"$f":"'Population 2016'!AM53/'Population 2016'!AM$14","v":4.2701531007222418E-2},{"$f":"'Population 2016'!N53/'Population 2016'!N$14","v":3.7936498263148273E-2},{"$f":"'Population 2016'!AN53/'Population 2016'!AN$14","v":5.7305304107129501E-2},{"$f":"'Population 2016'!AO53/'Population 2016'!AO$14","v":5.7305304107129501E-2},{"$f":"'Population 2016'!AP53/'Population 2016'!AP$14","v":5.3701897018970192E-2},{"$f":"'Population 2016'!C53/'Population 2016'!C$14","v":3.7476448971216443E-2},{"$f":"'Population 2016'!AQ53/'Population 2016'!AQ$14","v":4.4682334460025945E-2},{"$f":"'Population 2016'!O53/'Population 2016'!O$14","v":4.8439447444952224E-2},{"$f":"'Population 2016'!AR53/'Population 2016'!AR$14","v":4.4816358833455444E-2},{"$f":"'Population 2016'!AS53/'Population 2016'!AS$14","v":5.9163798784506116E-2},{"$f":"'Population 2016'!AT53/'Population 2016'!AT$14","v":5.3007415545179896E-2},{"$f":"'Population 2016'!AU53/'Population 2016'!AU$14","v":5.3007415545179896E-2},{"$f":"'Population 2016'!BB53/'Population 2016'!BB$14","v":4.032501011352975E-2},{"$f":"'Population 2016'!P53/'Population 2016'!P$14","v":5.1848450057405279E-2},{"$f":"'Population 2016'!AV53/'Population 2016'!AV$14","v":5.6661675537040608E-2},{"$f":"'Population 2016'!AW53/'Population 2016'!AW$14","v":4.8361096184846859E-2},{"$f":"'Population 2016'!Q53/'Population 2016'!Q$14","v":4.6891179698004729E-2},51]
[null,"Male 65-69",0,0,0,0,0,0,0,0,0,0,0,0,0,0,0,0,0,0,0,0,0,0,0,0,0,0,0,0,0,0,0,0,0,0,0,0,0,0,0,0,0,0,0,0,0,0,0,0,0,0,0,0,0,52]
[null,"Male 70-74",0,0,0,0,0,0,0,0,0,0,0,0,0,0,0,0,0,0,0,0,0,0,0,0,0,0,0,0,0,0,0,0,0,0,0,0,0,0,0,0,0,0,0,0,0,0,0,0,0,0,0,0,0,53]
[null,"Male 75-79",0,0,0,0,0,0,0,0,0,0,0,0,0,0,0,0,0,0,0,0,0,0,0,0,0,0,0,0,0,0,0,0,0,0,0,0,0,0,0,0,0,0,0,0,0,0,0,0,0,0,0,0,0,54]
[null,"Male 80-84",0,0,0,0,0,0,0,0,0,0,0,0,0,0,0,0,0,0,0,0,0,0,0,0,0,0,0,0,0,0,0,0,0,0,0,0,0,0,0,0,0,0,0,0,0,0,0,0,0,0,0,0,0,55]
[null,"Male 85-89",0,0,0,0,0,0,0,0,0,0,0,0,0,0,0,0,0,0,0,0,0,0,0,0,0,0,0,0,0,0,0,0,0,0,0,0,0,0,0,0,0,0,0,0,0,0,0,0,0,0,0,0,0,56]
[null,"Male 90+",0,0,0,0,0,0,0,0,0,0,0,0,0,0,0,0,0,0,0,0,0,0,0,0,0,0,0,0,0,0,0,0,0,0,0,0,0,0,0,0,0,0,0,0,0,0,0,0,0,0,0,0,0,57]
["SIMD Q1 (most deprived)","Female 0-4",{"$f":"'Population 2016'!C60/'Population 2016'!C$14","v":0},{"$f":"'Population 2016'!D60/'Population 2016'!D$14","v":0},{"$f":"'Population 2016'!E60/'Population 2016'!E$14","v":0},{"$f":"'Population 2016'!F60/'Population 2016'!F$14","v":0},{"$f":"'Population 2016'!G60/'Population 2016'!G$14","v":0},{"$f":"'Population 2016'!H60/'Population 2016'!H$14","v":0},{"$f":"'Population 2016'!I60/'Population 2016'!I$14","v":0},{"$f":"'Population 2016'!J60/'Population 2016'!J$14","v":0},{"$f":"'Population 2016'!K60/'Population 2016'!K$14","v":0},{"$f":"'Population 2016'!L60/'Population 2016'!L$14","v":0},{"$f":"'Population 2016'!M60/'Population 2016'!M$14","v":0},{"$f":"'Population 2016'!N60/'Population 2016'!N$14","v":0},{"$f":"'Population 2016'!O60/'Population 2016'!O$14","v":0},{"$f":"'Population 2016'!P60/'Population 2016'!P$14","v":0},{"$f":"'Population 2016'!Q60/'Population 2016'!Q$14","v":0},{"$f":"'Population 2016'!R60/'Population 2016'!R$14","v":0},{"$f":"'Population 2016'!S60/'Population 2016'!S$14","v":0},{"$f":"'Population 2016'!T60/'Population 2016'!T$14","v":0},{"$f":"'Population 2016'!U60/'Population 2016'!U$14","v":0},{"$f":"'Population 2016'!V60/'Population 2016'!V$14","v":0},{"$f":"'Population 2016'!W60/'Population 2016'!W$14","v":0},{"$f":"'Population 2016'!X60/'Population 2016'!X$14","v":0},{"$f":"'Population 2016'!Y60/'Population 2016'!Y$14","v":0},{"$f":"'Population 2016'!Z60/'Population 2016'!Z$14","v":0},{"$f":"'Population 2016'!AA60/'Population 2016'!AA$14","v":0},{"$f":"'Population 2016'!AB60/'Population 2016'!AB$14","v":0},{"$f":"'Population 2016'!AC60/'Population 2016'!AC$14","v":0},{"$f":"'Population 2016'!AD60/'Population 2016'!AD$14","v":0},{"$f":"'Population 2016'!AE60/'Population 2016'!AE$14","v":0},{"$f":"'Population 2016'!AF60/'Population 2016'!AF$14","v":0},{"$f":"'Population 2016'!AG60/'Population 2016'!AG$14","v":0},{"$f":"'Population 2016'!AH60/'Population 2016'!AH$14","v":0},{"$f":"'Population 2016'!AI60/'Population 2016'!AI$14","v":0},{"$f":"'Population 2016'!AJ60/'Population 2016'!AJ$14","v":0},{"$f":"'Population 2016'!AK60/'Population 2016'!AK$14","v":0},{"$f":"'Population 2016'!AL60/'Population 2016'!AL$14","v":0},{"$f":"'Population 2016'!AM60/'Population 2016'!AM$14","v":0},{"$f":"'Population 2016'!AN60/'Population 2016'!AN$14","v":0},{"$f":"'Population 2016'!AO60/'Population 2016'!AO$14","v":0},{"$f":"'Population 2016'!AP60/'Population 2016'!AP$14","v":0},{"$f":"'Population 2016'!AQ60/'Population 2016'!AQ$14","v":0},{"$f":"'Population 2016'!AR60/'Population 2016'!AR$14","v":0},{"$f":"'Population 2016'!AS60/'Population 2016'!AS$14","v":0},{"$f":"'Population 2016'!AT60/'Population 2016'!AT$14","v":0},{"$f":"'Population 2016'!AU60/'Population 2016'!AU$14","v":0},{"$f":"'Population 2016'!AV60/'Population 2016'!AV$14","v":0},{"$f":"'Population 2016'!AW60/'Population 2016'!AW$14","v":0},{"$f":"'Population 2016'!AX60/'Population 2016'!AX$14","v":0},{"$f":"'Population 2016'!AY60/'Population 2016'!AY$14","v":0},{"$f":"'Population 2016'!AZ60/'Population 2016'!AZ$14","v":0},{"$f":"'Population 2016'!BA60/'Population 2016'!BA$14","v":0},{"$f":"'Population 2016'!BB60/'Population 2016'!BB$14","v":0},{"$f":"'Population 2016'!BC60/'Population 2016'!BC$14","v":0},58]
[null,"Female 5-9",{"$f":"'Population 2016'!C61/'Population 2016'!C$14","v":0},{"$f":"'Population 2016'!D61/'Population 2016'!D$14","v":0},{"$f":"'Population 2016'!E61/'Population 2016'!E$14","v":0},{"$f":"'Population 2016'!F61/'Population 2016'!F$14","v":0},{"$f":"'Population 2016'!G61/'Population 2016'!G$14","v":0},{"$f":"'Population 2016'!H61/'Population 2016'!H$14","v":0},{"$f":"'Population 2016'!I61/'Population 2016'!I$14","v":0},{"$f":"'Population 2016'!J61/'Population 2016'!J$14","v":0},{"$f":"'Population 2016'!K61/'Population 2016'!K$14","v":0},{"$f":"'Population 2016'!L61/'Population 2016'!L$14","v":0},{"$f":"'Population 2016'!M61/'Population 2016'!M$14","v":0},{"$f":"'Population 2016'!N61/'Population 2016'!N$14","v":0},{"$f":"'Population 2016'!O61/'Population 2016'!O$14","v":0},{"$f":"'Population 2016'!P61/'Population 2016'!P$14","v":0},{"$f":"'Population 2016'!Q61/'Population 2016'!Q$14","v":0},{"$f":"'Population 2016'!R61/'Population 2016'!R$14","v":0},{"$f":"'Population 2016'!S61/'Population 2016'!S$14","v":0},{"$f":"'Population 2016'!T61/'Population 2016'!T$14","v":0},{"$f":"'Population 2016'!U61/'Population 2016'!U$14","v":0},{"$f":"'Population 2016'!V61/'Population 2016'!V$14","v":0},{"$f":"'Population 2016'!W61/'Population 2016'!W$14","v":0},{"$f":"'Population 2016'!X61/'Population 2016'!X$14","v":0},{"$f":"'Population 2016'!Y61/'Population 2016'!Y$14","v":0},{"$f":"'Population 2016'!Z61/'Population 2016'!Z$14","v":0},{"$f":"'Population 2016'!AA61/'Population 2016'!AA$14","v":0},{"$f":"'Population 2016'!AB61/'Population 2016'!AB$14","v":0},{"$f":"'Population 2016'!AC61/'Population 2016'!AC$14","v":0},{"$f":"'Population 2016'!AD61/'Population 2016'!AD$14","v":0},{"$f":"'Population 2016'!AE61/'Population 2016'!AE$14","v":0},{"$f":"'Population 2016'!AF61/'Population 2016'!AF$14","v":0},{"$f":"'Population 2016'!AG61/'Population 2016'!AG$14","v":0},{"$f":"'Population 2016'!AH61/'Population 2016'!AH$14","v":0},{"$f":"'Population 2016'!AI61/'Population 2016'!AI$14","v":0},{"$f":"'Population 2016'!AJ61/'Population 2016'!AJ$14","v":0},{"$f":"'Population 2016'!AK61/'Population 2016'!AK$14","v":0},{"$f":"'Population 2016'!AL61/'Population 2016'!AL$14","v":0},{"$f":"'Population 2016'!AM61/'Population 2016'!AM$14","v":0},{"$f":"'Population 2016'!AN61/'Population 2016'!AN$14","v":0},{"$f":"'Population 2016'!AO61/'Population 2016'!AO$14","v":0},{"$f":"'Population 2016'!AP61/'Population 2016'!AP$14","v":0},{"$f":"'Population 2016'!AQ61/'Population 2016'!AQ$14","v":0},{"$f":"'Population 2016'!AR61/'Population 2016'!AR$14","v":0},{"$f":"'Population 2016'!AS61/'Population 2016'!AS$14","v":0},{"$f":"'Population 2016'!AT61/'Population 2016'!AT$14","v":0},{"$f":"'Population 2016'!AU61/'Population 2016'!AU$14","v":0},{"$f":"'Population 2016'!AV61/'Population 2016'!AV$14","v":0},{"$f":"'Population 2016'!AW61/'Population 2016'!AW$14","v":0},{"$f":"'Population 2016'!AX61/'Population 2016'!AX$14","v":0},{"$f":"'Population 2016'!AY61/'Population 2016'!AY$14","v":0},{"$f":"'Population 2016'!AZ61/'Population 2016'!AZ$14","v":0},{"$f":"'Population 2016'!BA61/'Population 2016'!BA$14","v":0},{"$f":"'Population 2016'!BB61/'Population 2016'!BB$14","v":0},{"$f":"'Population 2016'!BC61/'Population 2016'!BC$14","v":0},59]
[null,"Female 10-15",{"$f":"'Population 2016'!C62/'Population 2016'!C$14","v":0},{"$f":"'Population 2016'!D62/'Population 2016'!D$14","v":0},{"$f":"'Population 2016'!E62/'Population 2016'!E$14","v":0},{"$f":"'Population 2016'!F62/'Population 2016'!F$14","v":0},{"$f":"'Population 2016'!G62/'Population 2016'!G$14","v":0},{"$f":"'Population 2016'!H62/'Population 2016'!H$14","v":0},{"$f":"'Population 2016'!I62/'Population 2016'!I$14","v":0},{"$f":"'Population 2016'!J62/'Population 2016'!J$14","v":0},{"$f":"'Population 2016'!K62/'Population 2016'!K$14","v":0},{"$f":"'Population 2016'!L62/'Population 2016'!L$14","v":0},{"$f":"'Population 2016'!M62/'Population 2016'!M$14","v":0},{"$f":"'Population 2016'!N62/'Population 2016'!N$14","v":0},{"$f":"'Population 2016'!O62/'Population 2016'!O$14","v":0},{"$f":"'Population 2016'!P62/'Population 2016'!P$14","v":0},{"$f":"'Population 2016'!Q62/'Population 2016'!Q$14","v":0},{"$f":"'Population 2016'!R62/'Population 2016'!R$14","v":0},{"$f":"'Population 2016'!S62/'Population 2016'!S$14","v":0},{"$f":"'Population 2016'!T62/'Population 2016'!T$14","v":0},{"$f":"'Population 2016'!U62/'Population 2016'!U$14","v":0},{"$f":"'Population 2016'!V62/'Population 2016'!V$14","v":0},{"$f":"'Population 2016'!W62/'Population 2016'!W$14","v":0},{"$f":"'Population 2016'!X62/'Population 2016'!X$14","v":0},{"$f":"'Population 2016'!Y62/'Population 2016'!Y$14","v":0},{"$f":"'Population 2016'!Z62/'Population 2016'!Z$14","v":0},{"$f":"'Population 2016'!AA62/'Population 2016'!AA$14","v":0},{"$f":"'Population 2016'!AB62/'Population 2016'!AB$14","v":0},{"$f":"'Population 2016'!AC62/'Population 2016'!AC$14","v":0},{"$f":"'Population 2016'!AD62/'Population 2016'!AD$14","v":0},{"$f":"'Population 2016'!AE62/'Population 2016'!AE$14","v":0},{"$f":"'Population 2016'!AF62/'Population 2016'!AF$14","v":0},{"$f":"'Population 2016'!AG62/'Population 2016'!AG$14","v":0},{"$f":"'Population 2016'!AH62/'Population 2016'!AH$14","v":0},{"$f":"'Population 2016'!AI62/'Population 2016'!AI$14","v":0},{"$f":"'Population 2016'!AJ62/'Population 2016'!AJ$14","v":0},{"$f":"'Population 2016'!AK62/'Population 2016'!AK$14","v":0},{"$f":"'Population 2016'!AL62/'Population 2016'!AL$14","v":0},{"$f":"'Population 2016'!AM62/'Population 2016'!AM$14","v":0},{"$f":"'Population 2016'!AN62/'Population 2016'!AN$14","v":0},{"$f":"'Population 2016'!AO62/'Population 2016'!AO$14","v":0},{"$f":"'Population 2016'!AP62/'Population 2016'!AP$14","v":0},{"$f":"'Population 2016'!AQ62/'Population 2016'!AQ$14","v":0},{"$f":"'Population 2016'!AR62/'Population 2016'!AR$14","v":0},{"$f":"'Population 2016'!AS62/'Population 2016'!AS$14","v":0},{"$f":"'Population 2016'!AT62/'Population 2016'!AT$14","v":0},{"$f":"'Population 2016'!AU62/'Population 2016'!AU$14","v":0},{"$f":"'Population 2016'!AV62/'Population 2016'!AV$14","v":0},{"$f":"'Population 2016'!AW62/'Population 2016'!AW$14","v":0},{"$f":"'Population 2016'!AX62/'Population 2016'!AX$14","v":0},{"$f":"'Population 2016'!AY62/'Population 2016'!AY$14","v":0},{"$f":"'Population 2016'!AZ62/'Population 2016'!AZ$14","v":0},{"$f":"'Population 2016'!BA62/'Population 2016'!BA$14","v":0},{"$f":"'Population 2016'!BB62/'Population 2016'!BB$14","v":0},{"$f":"'Population 2016'!BC62/'Population 2016'!BC$14","v":0},60]
[null,"Female 16-19",{"$f":"'Population 2016'!C63/'Population 2016'!C$14","v":2.2820402808090981E-3},{"$f":"'Population 2016'!D63/'Population 2016'!D$14","v":1.4676639019024478E-3},{"$f":"'Population 2016'!E63/'Population 2016'!E$14","v":6.7654094280812811E-4},{"$f":"'Population 2016'!F63/'Population 2016'!F$14","v":3.1450104833682779E-3},{"$f":"'Population 2016'!G63/'Population 2016'!G$14","v":2.7896667685723023E-3},{"$f":"'Population 2016'!H63/'Population 2016'!H$14","v":1.1885339368103433E-2},{"$f":"'Population 2016'!I63/'Population 2016'!I$14","v":2.4749212857875084E-3},{"$f":"'Population 2016'!J63/'Population 2016'!J$14","v":6.3682658804610024E-3},{"$f":"'Population 2016'!K63/'Population 2016'!K$14","v":8.4455814813673216E-3},{"$f":"'Population 2016'!L63/'Population 2016'!L$14","v":3.5393656108495602E-3},{"$f":"'Population 2016'!M63/'Population 2016'!M$14","v":3.5393656108495602E-3},{"$f":"'Population 2016'!N63/'Population 2016'!N$14","v":1.2787697808113434E-2},{"$f":"'Population 2016'!O63/'Population 2016'!O$14","v":1.1295180722891566E-2},{"$f":"'Population 2016'!P63/'Population 2016'!P$14","v":1.7298124760811327E-3},{"$f":"'Population 2016'!Q63/'Population 2016'!Q$14","v":1.2827844149421201E-3},{"$f":"'Population 2016'!R63/'Population 2016'!R$14","v":2.9403996830706927E-3},{"$f":"'Population 2016'!S63/'Population 2016'!S$14","v":5.0624469504062086E-3},{"$f":"'Population 2016'!T63/'Population 2016'!T$14","v":4.2501123284342125E-3},{"$f":"'Population 2016'!U63/'Population 2016'!U$14","v":0},{"$f":"'Population 2016'!V63/'Population 2016'!V$14","v":4.6532631744286498E-3},{"$f":"'Population 2016'!W63/'Population 2016'!W$14","v":7.8734395178648303E-3},{"$f":"'Population 2016'!X63/'Population 2016'!X$14","v":7.8734395178648303E-3},{"$f":"'Population 2016'!Y63/'Population 2016'!Y$14","v":5.4730217947206866E-3},{"$f":"'Population 2016'!Z63/'Population 2016'!Z$14","v":1.3907341384911493E-2},{"$f":"'Population 2016'!AA63/'Population 2016'!AA$14","v":1.0704823176876514E-2},{"$f":"'Population 2016'!AB63/'Population 2016'!AB$14","v":1.2818587210416462E-3},{"$f":"'Population 2016'!AC63/'Population 2016'!AC$14","v":1.1385228574115416E-2},{"$f":"'Population 2016'!AD63/'Population 2016'!AD$14","v":2.7859817921627133E-3},{"$f":"'Population 2016'!AE63/'Population 2016'!AE$14","v":2.7846491894805213E-3},{"$f":"'Population 2016'!AF63/'Population 2016'!AF$14","v":1.3721579577183885E-2},{"$f":"'Population 2016'!AG63/'Population 2016'!AG$14","v":2.7846491894805213E-3},{"$f":"'Population 2016'!AH63/'Population 2016'!AH$14","v":9.4545299602549933E-3},{"$f":"'Population 2016'!AI63/'Population 2016'!AI$14","v":4.2552758811776493E-3},{"$f":"'Population 2016'!AJ63/'Population 2016'!AJ$14","v":3.7047746412693823E-3},{"$f":"'Population 2016'!AK63/'Population 2016'!AK$14","v":2.6760775393467028E-4},{"$f":"'Population 2016'!AL63/'Population 2016'!AL$14","v":1.6172861674747113E-2},{"$f":"'Population 2016'!AM63/'Population 2016'!AM$14","v":1.1562246691621812E-2},{"$f":"'Population 2016'!AN63/'Population 2016'!AN$14","v":0},{"$f":"'Population 2016'!AO63/'Population 2016'!AO$14","v":0},{"$f":"'Population 2016'!AP63/'Population 2016'!AP$14","v":1.9837398373983742E-3},{"$f":"'Population 2016'!AQ63/'Population 2016'!AQ$14","v":9.2312308601989208E-3},{"$f":"'Population 2016'!AR63/'Population 2016'!AR$14","v":6.9176152766344092E-3},{"$f":"'Population 2016'!AS63/'Population 2016'!AS$14","v":2.4749212857875084E-3},{"$f":"'Population 2016'!AT63/'Population 2016'!AT$14","v":0},{"$f":"'Population 2016'!AU63/'Population 2016'!AU$14","v":0},{"$f":"'Population 2016'!AV63/'Population 2016'!AV$14","v":7.2494922390405172E-3},{"$f":"'Population 2016'!AW63/'Population 2016'!AW$14","v":7.172823134449763E-3},{"$f":"'Population 2016'!AX63/'Population 2016'!AX$14","v":5.2603892688058915E-3},{"$f":"'Population 2016'!AY63/'Population 2016'!AY$14","v":7.0766949221219141E-3},{"$f":"'Population 2016'!AZ63/'Population 2016'!AZ$14","v":6.3683541784670021E-3},{"$f":"'Population 2016'!BA63/'Population 2016'!BA$14","v":1.3902080994732752E-2},{"$f":"'Population 2016'!BB63/'Population 2016'!BB$14","v":6.1886194816708415E-3},{"$f":"'Population 2016'!BC63/'Population 2016'!BC$14","v":0},61]
[null,"Female 20-24",{"$f":"'Population 2016'!C64/'Population 2016'!C$14","v":4.8625490452117569E-3},{"$f":"'Population 2016'!D64/'Population 2016'!D$14","v":3.0088641997248512E-3},{"$f":"'Population 2016'!E64/'Population 2016'!E$14","v":1.2081088264430859E-3},{"$f":"'Population 2016'!F64/'Population 2016'!F$14","v":4.5333484444948146E-3},{"$f":"'Population 2016'!G64/'Population 2016'!G$14","v":3.9743197798838273E-3},{"$f":"'Population 2016'!H64/'Population 2016'!H$14","v":1.7792923179481782E-2},{"$f":"'Population 2016'!I64/'Population 2016'!I$14","v":3.1778575089697592E-3},{"$f":"'Population 2016'!J64/'Population 2016'!J$14","v":1.0259983918520505E-2},{"$f":"'Population 2016'!K64/'Population 2016'!K$14","v":1.3623894214468453E-2},{"$f":"'Population 2016'!L64/'Population 2016'!L$14","v":5.6405128147507273E-3},{"$f":"'Population 2016'!M64/'Population 2016'!M$14","v":5.6405128147507273E-3},{"$f":"'Population 2016'!N64/'Population 2016'!N$14","v":2.1776667276088325E-2},{"$f":"'Population 2016'!O64/'Population 2016'!O$14","v":1.7695783132530122E-2},{"$f":"'Population 2016'!P64/'Population 2016'!P$14","v":2.7095292766934559E-3},{"$f":"'Population 2016'!Q64/'Population 2016'!Q$14","v":1.8546280697958363E-3},{"$f":"'Population 2016'!R64/'Population 2016'!R$14","v":4.0320450743903512E-3},{"$f":"'Population 2016'!S64/'Population 2016'!S$14","v":7.030614948645748E-3},{"$f":"'Population 2016'!T64/'Population 2016'!T$14","v":6.7142731997072392E-3},{"$f":"'Population 2016'!U64/'Population 2016'!U$14","v":0},{"$f":"'Population 2016'!V64/'Population 2016'!V$14","v":7.6180004712165239E-3},{"$f":"'Population 2016'!W64/'Population 2016'!W$14","v":9.6771416272061987E-3},{"$f":"'Population 2016'!X64/'Population 2016'!X$14","v":9.6771416272061987E-3},{"$f":"'Population 2016'!Y64/'Population 2016'!Y$14","v":8.8808490358154961E-3},{"$f":"'Population 2016'!Z64/'Population 2016'!Z$14","v":2.3678756356965109E-2},{"$f":"'Population 2016'!AA64/'Population 2016'!AA$14","v":1.706164616688579E-2},{"$f":"'Population 2016'!AB64/'Population 2016'!AB$14","v":2.6336370086855639E-3},{"$f":"'Population 2016'!AC64/'Population 2016'!AC$14","v":1.9283263920110167E-2},{"$f":"'Population 2016'!AD64/'Population 2016'!AD$14","v":4.1155395873296186E-3},{"$f":"'Population 2016'!AE64/'Population 2016'!AE$14","v":4.1666090850043533E-3},{"$f":"'Population 2016'!AF64/'Population 2016'!AF$14","v":2.2596729158356602E-2},{"$f":"'Population 2016'!AG64/'Population 2016'!AG$14","v":4.1666090850043533E-3},{"$f":"'Population 2016'!AH64/'Population 2016'!AH$14","v":1.2979265841782205E-2},{"$f":"'Population 2016'!AI64/'Population 2016'!AI$14","v":6.4346007649667596E-3},{"$f":"'Population 2016'!AJ64/'Population 2016'!AJ$14","v":5.8914952831893592E-3},{"$f":"'Population 2016'!AK64/'Population 2016'!AK$14","v":5.853919617320912E-4},{"$f":"'Population 2016'!AL64/'Population 2016'!AL$14","v":2.329562458849584E-2},{"$f":"'Population 2016'!AM64/'Population 2016'!AM$14","v":1.5592411450221774E-2},{"$f":"'Population 2016'!AN64/'Population 2016'!AN$14","v":0},{"$f":"'Population 2016'!AO64/'Population 2016'!AO$14","v":0},{"$f":"'Population 2016'!AP64/'Population 2016'!AP$14","v":3.5338753387533874E-3},{"$f":"'Population 2016'!AQ64/'Population 2016'!AQ$14","v":1.6988641879429181E-2},{"$f":"'Population 2016'!AR64/'Population 2016'!AR$14","v":1.0780728902663118E-2},{"$f":"'Population 2016'!AS64/'Population 2016'!AS$14","v":3.1778575089697592E-3},{"$f":"'Population 2016'!AT64/'Population 2016'!AT$14","v":0},{"$f":"'Population 2016'!AU64/'Population 2016'!AU$14","v":0},{"$f":"'Population 2016'!AV64/'Population 2016'!AV$14","v":1.1089202852356456E-2},{"$f":"'Population 2016'!AW64/'Population 2016'!AW$14","v":1.0150407445932689E-2},{"$f":"'Population 2016'!AX64/'Population 2016'!AX$14","v":8.4659389794844823E-3},{"$f":"'Population 2016'!AY64/'Population 2016'!AY$14","v":1.0206810483152078E-2},{"$f":"'Population 2016'!AZ64/'Population 2016'!AZ$14","v":1.0677709229520996E-2},{"$f":"'Population 2016'!BA64/'Population 2016'!BA$14","v":2.1707969950781451E-2},{"$f":"'Population 2016'!BB64/'Population 2016'!BB$14","v":8.3920778784827132E-3},{"$f":"'Population 2016'!BC64/'Population 2016'!BC$14","v":0},62]
[null,"Female 25-29",{"$f":"'Population 2016'!C65/'Population 2016'!C$14","v":6.4108543038533528E-3},{"$f":"'Population 2016'!D65/'Population 2016'!D$14","v":3.8882369342676539E-3},{"$f":"'Population 2016'!E65/'Population 2016'!E$14","v":1.4376495034672723E-3},{"$f":"'Population 2016'!F65/'Population 2016'!F$14","v":4.2358474528248428E-3},{"$f":"'Population 2016'!G65/'Population 2016'!G$14","v":3.2864567410577803E-3},{"$f":"'Population 2016'!H65/'Population 2016'!H$14","v":1.7819237583986808E-2},{"$f":"'Population 2016'!I65/'Population 2016'!I$14","v":2.9874789485245662E-3},{"$f":"'Population 2016'!J65/'Population 2016'!J$14","v":1.0871080139372822E-2},{"$f":"'Population 2016'!K65/'Population 2016'!K$14","v":1.3192368153376691E-2},{"$f":"'Population 2016'!L65/'Population 2016'!L$14","v":5.6629849773592962E-3},{"$f":"'Population 2016'!M65/'Population 2016'!M$14","v":5.6629849773592962E-3},{"$f":"'Population 2016'!N65/'Population 2016'!N$14","v":2.8368578219269913E-2},{"$f":"'Population 2016'!O65/'Population 2016'!O$14","v":1.8202118820108019E-2},{"$f":"'Population 2016'!P65/'Population 2016'!P$14","v":2.9391504018369688E-3},{"$f":"'Population 2016'!Q65/'Population 2016'!Q$14","v":2.1173670463502463E-3},{"$f":"'Population 2016'!R65/'Population 2016'!R$14","v":3.8735804208116912E-3},{"$f":"'Population 2016'!S65/'Population 2016'!S$14","v":9.0324652286577836E-3},{"$f":"'Population 2016'!T65/'Population 2016'!T$14","v":1.0110972015384051E-2},{"$f":"'Population 2016'!U65/'Population 2016'!U$14","v":0},{"$f":"'Population 2016'!V65/'Population 2016'!V$14","v":8.7567737375323969E-3},{"$f":"'Population 2016'!W65/'Population 2016'!W$14","v":1.1872578562204047E-2},{"$f":"'Population 2016'!X65/'Population 2016'!X$14","v":1.1872578562204047E-2},{"$f":"'Population 2016'!Y65/'Population 2016'!Y$14","v":9.7673965737243712E-3},{"$f":"'Population 2016'!Z65/'Population 2016'!Z$14","v":3.2715408983047325E-2},{"$f":"'Population 2016'!AA65/'Population 2016'!AA$14","v":2.090493796675098E-2},{"$f":"'Population 2016'!AB65/'Population 2016'!AB$14","v":3.3457807425975898E-3},{"$f":"'Population 2016'!AC65/'Population 2016'!AC$14","v":2.474013518509692E-2},{"$f":"'Population 2016'!AD65/'Population 2016'!AD$14","v":3.8922550721107491E-3},{"$f":"'Population 2016'!AE65/'Population 2016'!AE$14","v":4.1113306891834003E-3},{"$f":"'Population 2016'!AF65/'Population 2016'!AF$14","v":2.2796170721978461E-2},{"$f":"'Population 2016'!AG65/'Population 2016'!AG$14","v":4.1113306891834003E-3},{"$f":"'Population 2016'!AH65/'Population 2016'!AH$14","v":1.3857490833082806E-2},{"$f":"'Population 2016'!AI65/'Population 2016'!AI$14","v":8.6139256487558699E-3},{"$f":"'Population 2016'!AJ65/'Population 2016'!AJ$14","v":6.0902880688184476E-3},{"$f":"'Population 2016'!AK65/'Population 2016'!AK$14","v":3.846861462810885E-4},{"$f":"'Population 2016'!AL65/'Population 2016'!AL$14","v":2.3343508708924404E-2},{"$f":"'Population 2016'!AM65/'Population 2016'!AM$14","v":1.6935799703088426E-2},{"$f":"'Population 2016'!AN65/'Population 2016'!AN$14","v":0},{"$f":"'Population 2016'!AO65/'Population 2016'!AO$14","v":0},{"$f":"'Population 2016'!AP65/'Population 2016'!AP$14","v":4.3468834688346883E-3},{"$f":"'Population 2016'!AQ65/'Population 2016'!AQ$14","v":1.9283211691715721E-2},{"$f":"'Population 2016'!AR65/'Population 2016'!AR$14","v":1.2931201218591428E-2},{"$f":"'Population 2016'!AS65/'Population 2016'!AS$14","v":2.9874789485245662E-3},{"$f":"'Population 2016'!AT65/'Population 2016'!AT$14","v":0},{"$f":"'Population 2016'!AU65/'Population 2016'!AU$14","v":0},{"$f":"'Population 2016'!AV65/'Population 2016'!AV$14","v":1.0540672764739892E-2},{"$f":"'Population 2016'!AW65/'Population 2016'!AW$14","v":1.0525070372543124E-2},{"$f":"'Population 2016'!AX65/'Population 2016'!AX$14","v":9.633087848500789E-3},{"$f":"'Population 2016'!AY65/'Population 2016'!AY$14","v":1.2664305742394528E-2},{"$f":"'Population 2016'!AZ65/'Population 2016'!AZ$14","v":1.3368185784486323E-2},{"$f":"'Population 2016'!BA65/'Population 2016'!BA$14","v":2.2554183576547794E-2},{"$f":"'Population 2016'!BB65/'Population 2016'!BB$14","v":8.8740844027853094E-3},{"$f":"'Population 2016'!BC65/'Population 2016'!BC$14","v":0},63]
[null,"Female 30-34",{"$f":"'Population 2016'!C66/'Population 2016'!C$14","v":5.6335926278284557E-3},{"$f":"'Population 2016'!D66/'Population 2016'!D$14","v":3.4960428226945574E-3},{"$f":"'Population 2016'!E66/'Population 2016'!E$14","v":1.4195278710706261E-3},{"$f":"'Population 2016'!F66/'Population 2016'!F$14","v":4.7033490111633705E-3},{"$f":"'Population 2016'!G66/'Population 2016'!G$14","v":3.8405686334454297E-3},{"$f":"'Population 2016'!H66/'Population 2016'!H$14","v":1.5814957107520657E-2},{"$f":"'Population 2016'!I66/'Population 2016'!I$14","v":3.0314124624734569E-3},{"$f":"'Population 2016'!J66/'Population 2016'!J$14","v":9.5095148753685348E-3},{"$f":"'Population 2016'!K66/'Population 2016'!K$14","v":1.2606725641895015E-2},{"$f":"'Population 2016'!L66/'Population 2016'!L$14","v":4.8315149608422567E-3},{"$f":"'Population 2016'!M66/'Population 2016'!M$14","v":4.8315149608422567E-3},{"$f":"'Population 2016'!N66/'Population 2016'!N$14","v":2.2741584902594106E-2},{"$f":"'Population 2016'!O66/'Population 2016'!O$14","v":1.6176776069796426E-2},{"$f":"'Population 2016'!P66/'Population 2016'!P$14","v":2.5258323765786454E-3},{"$f":"'Population 2016'!Q66/'Population 2016'!Q$14","v":1.9164490054556975E-3},{"$f":"'Population 2016'!R66/'Population 2016'!R$14","v":3.7679373184259179E-3},{"$f":"'Population 2016'!S66/'Population 2016'!S$14","v":8.6316460755650765E-3},{"$f":"'Population 2016'!T66/'Population 2016'!T$14","v":9.9555490246500868E-3},{"$f":"'Population 2016'!U66/'Population 2016'!U$14","v":0},{"$f":"'Population 2016'!V66/'Population 2016'!V$14","v":8.5800675410351059E-3},{"$f":"'Population 2016'!W66/'Population 2016'!W$14","v":1.0473525613430908E-2},{"$f":"'Population 2016'!X66/'Population 2016'!X$14","v":1.0473525613430908E-2},{"$f":"'Population 2016'!Y66/'Population 2016'!Y$14","v":9.0243364985984342E-3},{"$f":"'Population 2016'!Z66/'Population 2016'!Z$14","v":2.7701464672487772E-2},{"$f":"'Population 2016'!AA66/'Population 2016'!AA$14","v":1.9015409873263969E-2},{"$f":"'Population 2016'!AB66/'Population 2016'!AB$14","v":3.040206340409884E-3},{"$f":"'Population 2016'!AC66/'Population 2016'!AC$14","v":2.1498990684930094E-2},{"$f":"'Population 2016'!AD66/'Population 2016'!AD$14","v":4.3438987506216444E-3},{"$f":"'Population 2016'!AE66/'Population 2016'!AE$14","v":4.5259186578405497E-3},{"$f":"'Population 2016'!AF66/'Population 2016'!AF$14","v":2.2297566812923813E-2},{"$f":"'Population 2016'!AG66/'Population 2016'!AG$14","v":4.5259186578405497E-3},{"$f":"'Population 2016'!AH66/'Population 2016'!AH$14","v":1.4451653832588065E-2},{"$f":"'Population 2016'!AI66/'Population 2016'!AI$14","v":8.5546127631161966E-3},{"$f":"'Population 2016'!AJ66/'Population 2016'!AJ$14","v":5.3493331405645717E-3},{"$f":"'Population 2016'!AK66/'Population 2016'!AK$14","v":5.5194099249025741E-4},{"$f":"'Population 2016'!AL66/'Population 2016'!AL$14","v":2.0266953971389237E-2},{"$f":"'Population 2016'!AM66/'Population 2016'!AM$14","v":1.712250790094447E-2},{"$f":"'Population 2016'!AN66/'Population 2016'!AN$14","v":0},{"$f":"'Population 2016'!AO66/'Population 2016'!AO$14","v":0},{"$f":"'Population 2016'!AP66/'Population 2016'!AP$14","v":3.9024390243902439E-3},{"$f":"'Population 2016'!AQ66/'Population 2016'!AQ$14","v":1.6450300500392725E-2},{"$f":"'Population 2016'!AR66/'Population 2016'!AR$14","v":1.1816852539491468E-2},{"$f":"'Population 2016'!AS66/'Population 2016'!AS$14","v":3.0314124624734569E-3},{"$f":"'Population 2016'!AT66/'Population 2016'!AT$14","v":0},{"$f":"'Population 2016'!AU66/'Population 2016'!AU$14","v":0},{"$f":"'Population 2016'!AV66/'Population 2016'!AV$14","v":9.8883667146012783E-3},{"$f":"'Population 2016'!AW66/'Population 2016'!AW$14","v":1.1560323196071955E-2},{"$f":"'Population 2016'!AX66/'Population 2016'!AX$14","v":7.857706470278801E-3},{"$f":"'Population 2016'!AY66/'Population 2016'!AY$14","v":1.0867274996353263E-2},{"$f":"'Population 2016'!AZ66/'Population 2016'!AZ$14","v":1.1217335394883884E-2},{"$f":"'Population 2016'!BA66/'Population 2016'!BA$14","v":2.3124082549002677E-2},{"$f":"'Population 2016'!BB66/'Population 2016'!BB$14","v":9.5110215956137403E-3},{"$f":"'Population 2016'!BC66/'Population 2016'!BC$14","v":0},64]
[null,"Female 35-39",{"$f":"'Population 2016'!C67/'Population 2016'!C$14","v":4.0293245285130674E-3},{"$f":"'Population 2016'!D67/'Population 2016'!D$14","v":2.512493527265151E-3},{"$f":"'Population 2016'!E67/'Population 2016'!E$14","v":1.0389735907410541E-3},{"$f":"'Population 2016'!F67/'Population 2016'!F$14","v":4.2216807389357965E-3},{"$f":"'Population 2016'!G67/'Population 2016'!G$14","v":3.381993274228065E-3},{"$f":"'Population 2016'!H67/'Population 2016'!H$14","v":1.4205392698629896E-2},{"$f":"'Population 2016'!I67/'Population 2016'!I$14","v":2.8117448927290033E-3},{"$f":"'Population 2016'!J67/'Population 2016'!J$14","v":8.2980434199946395E-3},{"$f":"'Population 2016'!K67/'Population 2016'!K$14","v":1.3007428412908794E-2},{"$f":"'Population 2016'!L67/'Population 2016'!L$14","v":4.0562253508466383E-3},{"$f":"'Population 2016'!M67/'Population 2016'!M$14","v":4.0562253508466383E-3},{"$f":"'Population 2016'!N67/'Population 2016'!N$14","v":1.7805269465943487E-2},{"$f":"'Population 2016'!O67/'Population 2016'!O$14","v":1.4216348151225591E-2},{"$f":"'Population 2016'!P67/'Population 2016'!P$14","v":2.3115193264446996E-3},{"$f":"'Population 2016'!Q67/'Population 2016'!Q$14","v":2.2410089176699687E-3},{"$f":"'Population 2016'!R67/'Population 2016'!R$14","v":3.7855445021568799E-3},{"$f":"'Population 2016'!S67/'Population 2016'!S$14","v":7.4067337617719576E-3},{"$f":"'Population 2016'!T67/'Population 2016'!T$14","v":7.974612360931747E-3},{"$f":"'Population 2016'!U67/'Population 2016'!U$14","v":0},{"$f":"'Population 2016'!V67/'Population 2016'!V$14","v":6.773737532396136E-3},{"$f":"'Population 2016'!W67/'Population 2016'!W$14","v":9.5178648299612569E-3},{"$f":"'Population 2016'!X67/'Population 2016'!X$14","v":9.5178648299612569E-3},{"$f":"'Population 2016'!Y67/'Population 2016'!Y$14","v":7.5023444826508284E-3},{"$f":"'Population 2016'!Z67/'Population 2016'!Z$14","v":2.2962478598313744E-2},{"$f":"'Population 2016'!AA67/'Population 2016'!AA$14","v":1.6256615433899051E-2},{"$f":"'Population 2016'!AB67/'Population 2016'!AB$14","v":2.1856338597154531E-3},{"$f":"'Population 2016'!AC67/'Population 2016'!AC$14","v":1.81006841700493E-2},{"$f":"'Population 2016'!AD67/'Population 2016'!AD$14","v":3.5471790031361325E-3},{"$f":"'Population 2016'!AE67/'Population 2016'!AE$14","v":3.6069153273172012E-3},{"$f":"'Population 2016'!AF67/'Population 2016'!AF$14","v":1.9804547267650578E-2},{"$f":"'Population 2016'!AG67/'Population 2016'!AG$14","v":3.6069153273172012E-3},{"$f":"'Population 2016'!AH67/'Population 2016'!AH$14","v":1.286800822832903E-2},{"$f":"'Population 2016'!AI67/'Population 2016'!AI$14","v":7.1073783535081881E-3},{"$f":"'Population 2016'!AJ67/'Population 2016'!AJ$14","v":5.0601799978313511E-3},{"$f":"'Population 2016'!AK67/'Population 2016'!AK$14","v":4.014116309020054E-4},{"$f":"'Population 2016'!AL67/'Population 2016'!AL$14","v":1.8938169629496619E-2},{"$f":"'Population 2016'!AM67/'Population 2016'!AM$14","v":1.5323733799648442E-2},{"$f":"'Population 2016'!AN67/'Population 2016'!AN$14","v":0},{"$f":"'Population 2016'!AO67/'Population 2016'!AO$14","v":0},{"$f":"'Population 2016'!AP67/'Population 2016'!AP$14","v":3.2086720867208671E-3},{"$f":"'Population 2016'!AQ67/'Population 2016'!AQ$14","v":1.4517566696966756E-2},{"$f":"'Population 2016'!AR67/'Population 2016'!AR$14","v":1.0039740040705675E-2},{"$f":"'Population 2016'!AS67/'Population 2016'!AS$14","v":2.8117448927290033E-3},{"$f":"'Population 2016'!AT67/'Population 2016'!AT$14","v":0},{"$f":"'Population 2016'!AU67/'Population 2016'!AU$14","v":0},{"$f":"'Population 2016'!AV67/'Population 2016'!AV$14","v":8.3317272767704925E-3},{"$f":"'Population 2016'!AW67/'Population 2016'!AW$14","v":1.0209564750134336E-2},{"$f":"'Population 2016'!AX67/'Population 2016'!AX$14","v":5.7864281956864806E-3},{"$f":"'Population 2016'!AY67/'Population 2016'!AY$14","v":9.2343473962300856E-3},{"$f":"'Population 2016'!AZ67/'Population 2016'!AZ$14","v":8.9822880149411383E-3},{"$f":"'Population 2016'!BA67/'Population 2016'!BA$14","v":1.9152059407650461E-2},{"$f":"'Population 2016'!BB67/'Population 2016'!BB$14","v":8.1510746163314142E-3},{"$f":"'Population 2016'!BC67/'Population 2016'!BC$14","v":0},65]
[null,"Female 40-44",{"$f":"'Population 2016'!C68/'Population 2016'!C$14","v":4.1101597428196569E-3},{"$f":"'Population 2016'!D68/'Population 2016'!D$14","v":2.5400696757351343E-3},{"$f":"'Population 2016'!E68/'Population 2016'!E$14","v":1.0148114142121923E-3},{"$f":"'Population 2016'!F68/'Population 2016'!F$14","v":3.6125120417068056E-3},{"$f":"'Population 2016'!G68/'Population 2016'!G$14","v":3.9743197798838273E-3},{"$f":"'Population 2016'!H68/'Population 2016'!H$14","v":1.61263442274968E-2},{"$f":"'Population 2016'!I68/'Population 2016'!I$14","v":3.4121695833638425E-3},{"$f":"'Population 2016'!J68/'Population 2016'!J$14","v":8.2980434199946395E-3},{"$f":"'Population 2016'!K68/'Population 2016'!K$14","v":1.254507906173905E-2},{"$f":"'Population 2016'!L68/'Population 2016'!L$14","v":4.1011696760637761E-3},{"$f":"'Population 2016'!M68/'Population 2016'!M$14","v":4.1011696760637761E-3},{"$f":"'Population 2016'!N68/'Population 2016'!N$14","v":1.4717533061124992E-2},{"$f":"'Population 2016'!O68/'Population 2016'!O$14","v":1.5995014540922309E-2},{"$f":"'Population 2016'!P68/'Population 2016'!P$14","v":2.6942212016838885E-3},{"$f":"'Population 2016'!Q68/'Population 2016'!Q$14","v":1.638254794986322E-3},{"$f":"'Population 2016'!R68/'Population 2016'!R$14","v":3.5390439299234086E-3},{"$f":"'Population 2016'!S68/'Population 2016'!S$14","v":6.8363804570910182E-3},{"$f":"'Population 2016'!T68/'Population 2016'!T$14","v":6.1745315409765652E-3},{"$f":"'Population 2016'!U68/'Population 2016'!U$14","v":0},{"$f":"'Population 2016'!V68/'Population 2016'!V$14","v":7.7750726458807821E-3},{"$f":"'Population 2016'!W68/'Population 2016'!W$14","v":9.7933706414119678E-3},{"$f":"'Population 2016'!X68/'Population 2016'!X$14","v":9.7933706414119678E-3},{"$f":"'Population 2016'!Y68/'Population 2016'!Y$14","v":8.0250488113601075E-3},{"$f":"'Population 2016'!Z68/'Population 2016'!Z$14","v":2.0559482246709167E-2},{"$f":"'Population 2016'!AA68/'Population 2016'!AA$14","v":1.5373167199460755E-2},{"$f":"'Population 2016'!AB68/'Population 2016'!AB$14","v":2.2192988362276581E-3},{"$f":"'Population 2016'!AC68/'Population 2016'!AC$14","v":1.6572863272911839E-2},{"$f":"'Population 2016'!AD68/'Population 2016'!AD$14","v":3.724791685696597E-3},{"$f":"'Population 2016'!AE68/'Population 2016'!AE$14","v":3.6345545252276781E-3},{"$f":"'Population 2016'!AF68/'Population 2016'!AF$14","v":1.9924212205823695E-2},{"$f":"'Population 2016'!AG68/'Population 2016'!AG$14","v":3.6345545252276781E-3},{"$f":"'Population 2016'!AH68/'Population 2016'!AH$14","v":1.31686405029791E-2},{"$f":"'Population 2016'!AI68/'Population 2016'!AI$14","v":6.0685555278762087E-3},{"$f":"'Population 2016'!AJ68/'Population 2016'!AJ$14","v":5.1324682835146565E-3},{"$f":"'Population 2016'!AK68/'Population 2016'!AK$14","v":4.6831356938567293E-4},{"$f":"'Population 2016'!AL68/'Population 2016'!AL$14","v":2.1990782306817502E-2},{"$f":"'Population 2016'!AM68/'Population 2016'!AM$14","v":1.5779119648077815E-2},{"$f":"'Population 2016'!AN68/'Population 2016'!AN$14","v":0},{"$f":"'Population 2016'!AO68/'Population 2016'!AO$14","v":0},{"$f":"'Population 2016'!AP68/'Population 2016'!AP$14","v":2.6341463414634148E-3},{"$f":"'Population 2016'!AQ68/'Population 2016'!AQ$14","v":1.311434900406845E-2},{"$f":"'Population 2016'!AR68/'Population 2016'!AR$14","v":9.6457494431838337E-3},{"$f":"'Population 2016'!AS68/'Population 2016'!AS$14","v":3.4121695833638425E-3},{"$f":"'Population 2016'!AT68/'Population 2016'!AT$14","v":0},{"$f":"'Population 2016'!AU68/'Population 2016'!AU$14","v":0},{"$f":"'Population 2016'!AV68/'Population 2016'!AV$14","v":9.0136836019154079E-3},{"$f":"'Population 2016'!AW68/'Population 2016'!AW$14","v":1.0342668684588044E-2},{"$f":"'Population 2016'!AX68/'Population 2016'!AX$14","v":6.0330089426617571E-3},{"$f":"'Population 2016'!AY68/'Population 2016'!AY$14","v":8.5536232353846907E-3},{"$f":"'Population 2016'!AZ68/'Population 2016'!AZ$14","v":7.4514336451173401E-3},{"$f":"'Population 2016'!BA68/'Population 2016'!BA$14","v":1.9082980744322596E-2},{"$f":"'Population 2016'!BB68/'Population 2016'!BB$14","v":8.6589029187216504E-3},{"$f":"'Population 2016'!BC68/'Population 2016'!BC$14","v":0},66]
[null,"Female 45-49",{"$f":"'Population 2016'!C69/'Population 2016'!C$14","v":3.6935474844703117E-3},{"$f":"'Population 2016'!D69/'Population 2016'!D$14","v":2.4205730323652061E-3},{"$f":"'Population 2016'!E69/'Population 2016'!E$14","v":1.1839466499142242E-3},{"$f":"'Population 2016'!F69/'Population 2016'!F$14","v":4.3066810222700744E-3},{"$f":"'Population 2016'!G69/'Population 2016'!G$14","v":4.56664628553959E-3},{"$f":"'Population 2016'!H69/'Population 2016'!H$14","v":1.9222672490921529E-2},{"$f":"'Population 2016'!I69/'Population 2016'!I$14","v":3.3243025554660615E-3},{"$f":"'Population 2016'!J69/'Population 2016'!J$14","v":1.0528008576789065E-2},{"$f":"'Population 2016'!K69/'Population 2016'!K$14","v":1.4548592916807939E-2},{"$f":"'Population 2016'!L69/'Population 2016'!L$14","v":5.1461252373622172E-3},{"$f":"'Population 2016'!M69/'Population 2016'!M$14","v":5.1461252373622172E-3},{"$f":"'Population 2016'!N69/'Population 2016'!N$14","v":1.6728624535315983E-2},{"$f":"'Population 2016'!O69/'Population 2016'!O$14","v":1.9824989613626921E-2},{"$f":"'Population 2016'!P69/'Population 2016'!P$14","v":3.2300038270187525E-3},{"$f":"'Population 2016'!Q69/'Population 2016'!Q$14","v":2.3646507889896915E-3},{"$f":"'Population 2016'!R69/'Population 2016'!R$14","v":4.3313671978167092E-3},{"$f":"'Population 2016'!S69/'Population 2016'!S$14","v":7.6571053896141803E-3},{"$f":"'Population 2016'!T69/'Population 2016'!T$14","v":6.5814571894436706E-3},{"$f":"'Population 2016'!U69/'Population 2016'!U$14","v":0},{"$f":"'Population 2016'!V69/'Population 2016'!V$14","v":7.7456216131312336E-3},{"$f":"'Population 2016'!W69/'Population 2016'!W$14","v":1.1881188118811881E-2},{"$f":"'Population 2016'!X69/'Population 2016'!X$14","v":1.1881188118811881E-2},{"$f":"'Population 2016'!Y69/'Population 2016'!Y$14","v":9.0755820210209129E-3},{"$f":"'Population 2016'!Z69/'Population 2016'!Z$14","v":2.4131628746305971E-2},{"$f":"'Population 2016'!AA69/'Population 2016'!AA$14","v":1.8276283210646095E-2},{"$f":"'Population 2016'!AB69/'Population 2016'!AB$14","v":2.1183039066910436E-3},{"$f":"'Population 2016'!AC69/'Population 2016'!AC$14","v":1.996215229514511E-2},{"$f":"'Population 2016'!AD69/'Population 2016'!AD$14","v":4.3083762141095513E-3},{"$f":"'Population 2016'!AE69/'Population 2016'!AE$14","v":4.2149776813476874E-3},{"$f":"'Population 2016'!AF69/'Population 2016'!AF$14","v":2.6785001994415636E-2},{"$f":"'Population 2016'!AG69/'Population 2016'!AG$14","v":4.2149776813476874E-3},{"$f":"'Population 2016'!AH69/'Population 2016'!AH$14","v":1.517837909493115E-2},{"$f":"'Population 2016'!AI69/'Population 2016'!AI$14","v":6.4956083044818511E-3},{"$f":"'Population 2016'!AJ69/'Population 2016'!AJ$14","v":5.6384862832977913E-3},{"$f":"'Population 2016'!AK69/'Population 2016'!AK$14","v":4.6831356938567293E-4},{"$f":"'Population 2016'!AL69/'Population 2016'!AL$14","v":2.5402525887352607E-2},{"$f":"'Population 2016'!AM69/'Population 2016'!AM$14","v":1.8142572201426267E-2},{"$f":"'Population 2016'!AN69/'Population 2016'!AN$14","v":0},{"$f":"'Population 2016'!AO69/'Population 2016'!AO$14","v":0},{"$f":"'Population 2016'!AP69/'Population 2016'!AP$14","v":2.5907859078590787E-3},{"$f":"'Population 2016'!AQ69/'Population 2016'!AQ$14","v":1.656502899100705E-2},{"$f":"'Population 2016'!AR69/'Population 2016'!AR$14","v":1.1231454146228106E-2},{"$f":"'Population 2016'!AS69/'Population 2016'!AS$14","v":3.3243025554660615E-3},{"$f":"'Population 2016'!AT69/'Population 2016'!AT$14","v":0},{"$f":"'Population 2016'!AU69/'Population 2016'!AU$14","v":0},{"$f":"'Population 2016'!AV69/'Population 2016'!AV$14","v":1.0881650927312352E-2},{"$f":"'Population 2016'!AW69/'Population 2016'!AW$14","v":1.1969494550133351E-2},{"$f":"'Population 2016'!AX69/'Population 2016'!AX$14","v":8.3837453971593902E-3},{"$f":"'Population 2016'!AY69/'Population 2016'!AY$14","v":1.0028525583883044E-2},{"$f":"'Population 2016'!AZ69/'Population 2016'!AZ$14","v":8.3814276747852974E-3},{"$f":"'Population 2016'!BA69/'Population 2016'!BA$14","v":2.3745790518953459E-2},{"$f":"'Population 2016'!BB69/'Population 2016'!BB$14","v":8.9429424776856798E-3},{"$f":"'Population 2016'!BC69/'Population 2016'!BC$14","v":0},67]
[null,"Female 50-54",{"$f":"'Population 2016'!C70/'Population 2016'!C$14","v":3.8987445669408844E-3},{"$f":"'Population 2016'!D70/'Population 2016'!D$14","v":2.487981395291832E-3},{"$f":"'Population 2016'!E70/'Population 2016'!E$14","v":1.1175006644598545E-3},{"$f":"'Population 2016'!F70/'Population 2016'!F$14","v":3.9525131750439172E-3},{"$f":"'Population 2016'!G70/'Population 2016'!G$14","v":4.4520024457352491E-3},{"$f":"'Population 2016'!H70/'Population 2016'!H$14","v":1.9577916951739383E-2},{"$f":"'Population 2016'!I70/'Population 2016'!I$14","v":3.2217910229186499E-3},{"$f":"'Population 2016'!J70/'Population 2016'!J$14","v":9.7024926293218985E-3},{"$f":"'Population 2016'!K70/'Population 2016'!K$14","v":1.4086243565638196E-2},{"$f":"'Population 2016'!L70/'Population 2016'!L$14","v":5.3146664569264819E-3},{"$f":"'Population 2016'!M70/'Population 2016'!M$14","v":5.3146664569264819E-3},{"$f":"'Population 2016'!N70/'Population 2016'!N$14","v":1.8953013590102992E-2},{"$f":"'Population 2016'!O70/'Population 2016'!O$14","v":2.0331325301204819E-2},{"$f":"'Population 2016'!P70/'Population 2016'!P$14","v":3.2453119020283199E-3},{"$f":"'Population 2016'!Q70/'Population 2016'!Q$14","v":1.931904239370663E-3},{"$f":"'Population 2016'!R70/'Population 2016'!R$14","v":4.5426534025882559E-3},{"$f":"'Population 2016'!S70/'Population 2016'!S$14","v":7.364069538193462E-3},{"$f":"'Population 2016'!T70/'Population 2016'!T$14","v":5.9145512655670255E-3},{"$f":"'Population 2016'!U70/'Population 2016'!U$14","v":0},{"$f":"'Population 2016'!V70/'Population 2016'!V$14","v":8.2462891698735566E-3},{"$f":"'Population 2016'!W70/'Population 2016'!W$14","v":1.1907016788635386E-2},{"$f":"'Population 2016'!X70/'Population 2016'!X$14","v":1.1907016788635386E-2},{"$f":"'Population 2016'!Y70/'Population 2016'!Y$14","v":8.9423436627224691E-3},{"$f":"'Population 2016'!Z70/'Population 2016'!Z$14","v":2.5314642334788223E-2},{"$f":"'Population 2016'!AA70/'Population 2016'!AA$14","v":1.8707579468629661E-2},{"$f":"'Population 2016'!AB70/'Population 2016'!AB$14","v":2.1726857918261439E-3},{"$f":"'Population 2016'!AC70/'Population 2016'!AC$14","v":2.0566324302529148E-2},{"$f":"'Population 2016'!AD70/'Population 2016'!AD$14","v":4.0343452181591209E-3},{"$f":"'Population 2016'!AE70/'Population 2016'!AE$14","v":3.8833073064219676E-3},{"$f":"'Population 2016'!AF70/'Population 2016'!AF$14","v":2.6386118867171918E-2},{"$f":"'Population 2016'!AG70/'Population 2016'!AG$14","v":3.8833073064219676E-3},{"$f":"'Population 2016'!AH70/'Population 2016'!AH$14","v":1.5292003891649288E-2},{"$f":"'Population 2016'!AI70/'Population 2016'!AI$14","v":6.0549982968728551E-3},{"$f":"'Population 2016'!AJ70/'Population 2016'!AJ$14","v":5.7288466404019226E-3},{"$f":"'Population 2016'!AK70/'Population 2016'!AK$14","v":4.5158808476475603E-4},{"$f":"'Population 2016'!AL70/'Population 2016'!AL$14","v":2.6360208295923865E-2},{"$f":"'Population 2016'!AM70/'Population 2016'!AM$14","v":1.8406695993515305E-2},{"$f":"'Population 2016'!AN70/'Population 2016'!AN$14","v":0},{"$f":"'Population 2016'!AO70/'Population 2016'!AO$14","v":0},{"$f":"'Population 2016'!AP70/'Population 2016'!AP$14","v":2.8075880758807589E-3},{"$f":"'Population 2016'!AQ70/'Population 2016'!AQ$14","v":1.5867832778812294E-2},{"$f":"'Population 2016'!AR70/'Population 2016'!AR$14","v":1.1376729224732523E-2},{"$f":"'Population 2016'!AS70/'Population 2016'!AS$14","v":3.2217910229186499E-3},{"$f":"'Population 2016'!AT70/'Population 2016'!AT$14","v":0},{"$f":"'Population 2016'!AU70/'Population 2016'!AU$14","v":0},{"$f":"'Population 2016'!AV70/'Population 2016'!AV$14","v":1.0318295702192637E-2},{"$f":"'Population 2016'!AW70/'Population 2016'!AW$14","v":1.1920196796631977E-2},{"$f":"'Population 2016'!AX70/'Population 2016'!AX$14","v":7.3645449763282481E-3},{"$f":"'Population 2016'!AY70/'Population 2016'!AY$14","v":1.0474237832055625E-2},{"$f":"'Population 2016'!AZ70/'Population 2016'!AZ$14","v":9.2004347626410306E-3},{"$f":"'Population 2016'!BA70/'Population 2016'!BA$14","v":2.4488386149728002E-2},{"$f":"'Population 2016'!BB70/'Population 2016'!BB$14","v":8.9343352183231337E-3},{"$f":"'Population 2016'!BC70/'Population 2016'!BC$14","v":0},68]
[null,"Female 55-59",{"$f":"'Population 2016'!C71/'Population 2016'!C$14","v":3.3639885338357552E-3},{"$f":"'Population 2016'!D71/'Population 2016'!D$14","v":2.1448115476653726E-3},{"$f":"'Population 2016'!E71/'Population 2016'!E$14","v":9.6044651702225335E-4},{"$f":"'Population 2016'!F71/'Population 2016'!F$14","v":3.6833456111520372E-3},{"$f":"'Population 2016'!G71/'Population 2016'!G$14","v":4.2609293793946807E-3},{"$f":"'Population 2016'!H71/'Population 2016'!H$14","v":1.7161377471361157E-2},{"$f":"'Population 2016'!I71/'Population 2016'!I$14","v":2.855678406677894E-3},{"$f":"'Population 2016'!J71/'Population 2016'!J$14","v":8.9520235861699285E-3},{"$f":"'Population 2016'!K71/'Population 2016'!K$14","v":1.2914958542674845E-2},{"$f":"'Population 2016'!L71/'Population 2016'!L$14","v":4.3146552208451778E-3},{"$f":"'Population 2016'!M71/'Population 2016'!M$14","v":4.3146552208451778E-3},{"$f":"'Population 2016'!N71/'Population 2016'!N$14","v":1.695207914355943E-2},{"$f":"'Population 2016'!O71/'Population 2016'!O$14","v":1.6462401329455752E-2},{"$f":"'Population 2016'!P71/'Population 2016'!P$14","v":3.2453119020283199E-3},{"$f":"'Population 2016'!Q71/'Population 2016'!Q$14","v":2.1173670463502463E-3},{"$f":"'Population 2016'!R71/'Population 2016'!R$14","v":3.4334008275376353E-3},{"$f":"'Population 2016'!S71/'Population 2016'!S$14","v":6.8285212580107696E-3},{"$f":"'Population 2016'!T71/'Population 2016'!T$14","v":5.8297750888030454E-3},{"$f":"'Population 2016'!U71/'Population 2016'!U$14","v":0},{"$f":"'Population 2016'!V71/'Population 2016'!V$14","v":7.5198303620513628E-3},{"$f":"'Population 2016'!W71/'Population 2016'!W$14","v":1.0529487731381834E-2},{"$f":"'Population 2016'!X71/'Population 2016'!X$14","v":1.0529487731381834E-2},{"$f":"'Population 2016'!Y71/'Population 2016'!Y$14","v":8.204408139838781E-3},{"$f":"'Population 2016'!Z71/'Population 2016'!Z$14","v":2.1920409988146757E-2},{"$f":"'Population 2016'!AA71/'Population 2016'!AA$14","v":1.6621173392774913E-2},{"$f":"'Population 2016'!AB71/'Population 2016'!AB$14","v":1.8722906167941619E-3},{"$f":"'Population 2016'!AC71/'Population 2016'!AC$14","v":1.8090378464166418E-2},{"$f":"'Population 2016'!AD71/'Population 2016'!AD$14","v":3.7501649260623777E-3},{"$f":"'Population 2016'!AE71/'Population 2016'!AE$14","v":3.5654565304514864E-3},{"$f":"'Population 2016'!AF71/'Population 2016'!AF$14","v":2.5189469485440766E-2},{"$f":"'Population 2016'!AG71/'Population 2016'!AG$14","v":3.5654565304514864E-3},{"$f":"'Population 2016'!AH71/'Population 2016'!AH$14","v":1.3921404781236759E-2},{"$f":"'Population 2016'!AI71/'Population 2016'!AI$14","v":5.8313039853175189E-3},{"$f":"'Population 2016'!AJ71/'Population 2016'!AJ$14","v":5.6023421404561395E-3},{"$f":"'Population 2016'!AK71/'Population 2016'!AK$14","v":3.846861462810885E-4},{"$f":"'Population 2016'!AL71/'Population 2016'!AL$14","v":2.3475190040102952E-2},{"$f":"'Population 2016'!AM71/'Population 2016'!AM$14","v":1.6261828647412952E-2},{"$f":"'Population 2016'!AN71/'Population 2016'!AN$14","v":0},{"$f":"'Population 2016'!AO71/'Population 2016'!AO$14","v":0},{"$f":"'Population 2016'!AP71/'Population 2016'!AP$14","v":2.5257452574525747E-3},{"$f":"'Population 2016'!AQ71/'Population 2016'!AQ$14","v":1.458816884503711E-2},{"$f":"'Population 2016'!AR71/'Population 2016'!AR$14","v":1.0180143962731642E-2},{"$f":"'Population 2016'!AS71/'Population 2016'!AS$14","v":2.855678406677894E-3},{"$f":"'Population 2016'!AT71/'Population 2016'!AT$14","v":0},{"$f":"'Population 2016'!AU71/'Population 2016'!AU$14","v":0},{"$f":"'Population 2016'!AV71/'Population 2016'!AV$14","v":1.0140394052154833E-2},{"$f":"'Population 2016'!AW71/'Population 2016'!AW$14","v":1.138778105881715E-2},{"$f":"'Population 2016'!AX71/'Population 2016'!AX$14","v":6.8385060494476589E-3},{"$f":"'Population 2016'!AY71/'Population 2016'!AY$14","v":9.3356456344511254E-3},{"$f":"'Population 2016'!AZ71/'Population 2016'!AZ$14","v":8.274267868897631E-3},{"$f":"'Population 2016'!BA71/'Population 2016'!BA$14","v":2.1293497970814264E-2},{"$f":"'Population 2016'!BB71/'Population 2016'!BB$14","v":8.0133584665306717E-3},{"$f":"'Population 2016'!BC71/'Population 2016'!BC$14","v":0},69]
[null,"Female 60-64",{"$f":"'Population 2016'!C72/'Population 2016'!C$14","v":2.7359610996076384E-3},{"$f":"'Population 2016'!D72/'Population 2016'!D$14","v":1.7311693206156222E-3},{"$f":"'Population 2016'!E72/'Population 2016'!E$14","v":7.5506801652692871E-4},{"$f":"'Population 2016'!F72/'Population 2016'!F$14","v":2.9608432028106761E-3},{"$f":"'Population 2016'!G72/'Population 2016'!G$14","v":3.8214613268113726E-3},{"$f":"'Population 2016'!H72/'Population 2016'!H$14","v":1.5538655860217883E-2},{"$f":"'Population 2016'!I72/'Population 2016'!I$14","v":2.7238778648312222E-3},{"$f":"'Population 2016'!J72/'Population 2016'!J$14","v":6.8507102653444117E-3},{"$f":"'Population 2016'!K72/'Population 2016'!K$14","v":1.0418272046358229E-2},{"$f":"'Population 2016'!L72/'Population 2016'!L$14","v":3.8764480499780896E-3},{"$f":"'Population 2016'!M72/'Population 2016'!M$14","v":3.8764480499780896E-3},{"$f":"'Population 2016'!N72/'Population 2016'!N$14","v":1.3508846771080911E-2},{"$f":"'Population 2016'!O72/'Population 2016'!O$14","v":1.494339426672206E-2},{"$f":"'Population 2016'!P72/'Population 2016'!P$14","v":2.4952162265595101E-3},{"$f":"'Population 2016'!Q72/'Population 2016'!Q$14","v":1.4991576897516344E-3},{"$f":"'Population 2016'!R72/'Population 2016'!R$14","v":3.028435601725504E-3},{"$f":"'Population 2016'!S72/'Population 2016'!S$14","v":5.5295079243181579E-3},{"$f":"'Population 2016'!T72/'Population 2016'!T$14","v":4.3603213582273865E-3},{"$f":"'Population 2016'!U72/'Population 2016'!U$14","v":0},{"$f":"'Population 2016'!V72/'Population 2016'!V$14","v":6.3712400848189741E-3},{"$f":"'Population 2016'!W72/'Population 2016'!W$14","v":8.9797675419715887E-3},{"$f":"'Population 2016'!X72/'Population 2016'!X$14","v":8.9797675419715887E-3},{"$f":"'Population 2016'!Y72/'Population 2016'!Y$14","v":6.60042328801521E-3},{"$f":"'Population 2016'!Z72/'Population 2016'!Z$14","v":1.6871807076362141E-2},{"$f":"'Population 2016'!AA72/'Population 2016'!AA$14","v":1.3411895434432958E-2},{"$f":"'Population 2016'!AB72/'Population 2016'!AB$14","v":1.5589473738728708E-3},{"$f":"'Population 2016'!AC72/'Population 2016'!AC$14","v":1.4158751669846406E-2},{"$f":"'Population 2016'!AD72/'Population 2016'!AD$14","v":3.4558353378193224E-3},{"$f":"'Population 2016'!AE72/'Population 2016'!AE$14","v":3.3236135487348158E-3},{"$f":"'Population 2016'!AF72/'Population 2016'!AF$14","v":2.0781810929397685E-2},{"$f":"'Population 2016'!AG72/'Population 2016'!AG$14","v":3.3236135487348158E-3},{"$f":"'Population 2016'!AH72/'Population 2016'!AH$14","v":1.2039494085592612E-2},{"$f":"'Population 2016'!AI72/'Population 2016'!AI$14","v":4.4959167314871772E-3},{"$f":"'Population 2016'!AJ72/'Population 2016'!AJ$14","v":4.1927205696316912E-3},{"$f":"'Population 2016'!AK72/'Population 2016'!AK$14","v":6.1884293097392499E-4},{"$f":"'Population 2016'!AL72/'Population 2016'!AL$14","v":2.1092955048781947E-2},{"$f":"'Population 2016'!AM72/'Population 2016'!AM$14","v":1.3939360820423144E-2},{"$f":"'Population 2016'!AN72/'Population 2016'!AN$14","v":0},{"$f":"'Population 2016'!AO72/'Population 2016'!AO$14","v":0},{"$f":"'Population 2016'!AP72/'Population 2016'!AP$14","v":2.2981029810298101E-3},{"$f":"'Population 2016'!AQ72/'Population 2016'!AQ$14","v":1.1111013052572125E-2},{"$f":"'Population 2016'!AR72/'Population 2016'!AR$14","v":8.370366061678583E-3},{"$f":"'Population 2016'!AS72/'Population 2016'!AS$14","v":2.7238778648312222E-3},{"$f":"'Population 2016'!AT72/'Population 2016'!AT$14","v":0},{"$f":"'Population 2016'!AU72/'Population 2016'!AU$14","v":0},{"$f":"'Population 2016'!AV72/'Population 2016'!AV$14","v":9.3398366269847148E-3},{"$f":"'Population 2016'!AW72/'Population 2016'!AW$14","v":9.9827950840280216E-3},{"$f":"'Population 2016'!AX72/'Population 2016'!AX$14","v":4.9480536559705418E-3},{"$f":"'Population 2016'!AY72/'Population 2016'!AY$14","v":7.7736268010826755E-3},{"$f":"'Population 2016'!AZ72/'Population 2016'!AZ$14","v":6.7013150039036788E-3},{"$f":"'Population 2016'!BA72/'Population 2016'!BA$14","v":1.8184958121060357E-2},{"$f":"'Population 2016'!BB72/'Population 2016'!BB$14","v":6.7222695621487159E-3},{"$f":"'Population 2016'!BC72/'Population 2016'!BC$14","v":0},70]
[null,"Female 65-69",0,0,0,0,0,0,0,0,0,0,0,0,0,0,0,0,0,0,0,0,0,0,0,0,0,0,0,0,0,0,0,0,0,0,0,0,0,0,0,0,0,0,0,0,0,0,0,0,0,0,0,0,0,71]
[null,"Female 70-74",0,0,0,0,0,0,0,0,0,0,0,0,0,0,0,0,0,0,0,0,0,0,0,0,0,0,0,0,0,0,0,0,0,0,0,0,0,0,0,0,0,0,0,0,0,0,0,0,0,0,0,0,0,72]
[null,"Female 75-79",0,0,0,0,0,0,0,0,0,0,0,0,0,0,0,0,0,0,0,0,0,0,0,0,0,0,0,0,0,0,0,0,0,0,0,0,0,0,0,0,0,0,0,0,0,0,0,0,0,0,0,0,0,73]
[null,"Female 80-84",0,0,0,0,0,0,0,0,0,0,0,0,0,0,0,0,0,0,0,0,0,0,0,0,0,0,0,0,0,0,0,0,0,0,0,0,0,0,0,0,0,0,0,0,0,0,0,0,0,0,0,0,0,74]
[null,"Female 85-89",0,0,0,0,0,0,0,0,0,0,0,0,0,0,0,0,0,0,0,0,0,0,0,0,0,0,0,0,0,0,0,0,0,0,0,0,0,0,0,0,0,0,0,0,0,0,0,0,0,0,0,0,0,75]
[null,"Female 90+",0,0,0,0,0,0,0,0,0,0,0,0,0,0,0,0,0,0,0,0,0,0,0,0,0,0,0,0,0,0,0,0,0,0,0,0,0,0,0,0,0,0,0,0,0,0,0,0,0,0,0,0,0,76]
[null,"Male 0-4",{"$f":"'Population 2016'!C79/'Population 2016'!C$14","v":0},{"$f":"'Population 2016'!D79/'Population 2016'!D$14","v":0},{"$f":"'Population 2016'!E79/'Population 2016'!E$14","v":0},{"$f":"'Population 2016'!F79/'Population 2016'!F$14","v":0},{"$f":"'Population 2016'!G79/'Population 2016'!G$14","v":0},{"$f":"'Population 2016'!H79/'Population 2016'!H$14","v":0},{"$f":"'Population 2016'!I79/'Population 2016'!I$14","v":0},{"$f":"'Population 2016'!J79/'Population 2016'!J$14","v":0},{"$f":"'Population 2016'!K79/'Population 2016'!K$14","v":0},{"$f":"'Population 2016'!L79/'Population 2016'!L$14","v":0},{"$f":"'Population 2016'!M79/'Population 2016'!M$14","v":0},{"$f":"'Population 2016'!N79/'Population 2016'!N$14","v":0},{"$f":"'Population 2016'!O79/'Population 2016'!O$14","v":0},{"$f":"'Population 2016'!P79/'Population 2016'!P$14","v":0},{"$f":"'Population 2016'!Q79/'Population 2016'!Q$14","v":0},{"$f":"'Population 2016'!R79/'Population 2016'!R$14","v":0},{"$f":"'Population 2016'!S79/'Population 2016'!S$14","v":0},{"$f":"'Population 2016'!T79/'Population 2016'!T$14","v":0},{"$f":"'Population 2016'!U79/'Population 2016'!U$14","v":0},{"$f":"'Population 2016'!V79/'Population 2016'!V$14","v":0},{"$f":"'Population 2016'!W79/'Population 2016'!W$14","v":0},{"$f":"'Population 2016'!X79/'Population 2016'!X$14","v":0},{"$f":"'Population 2016'!Y79/'Population 2016'!Y$14","v":0},{"$f":"'Population 2016'!Z79/'Population 2016'!Z$14","v":0},{"$f":"'Population 2016'!AA79/'Population 2016'!AA$14","v":0},{"$f":"'Population 2016'!AB79/'Population 2016'!AB$14","v":0},{"$f":"'Population 2016'!AC79/'Population 2016'!AC$14","v":0},{"$f":"'Population 2016'!AD79/'Population 2016'!AD$14","v":0},{"$f":"'Population 2016'!AE79/'Population 2016'!AE$14","v":0},{"$f":"'Population 2016'!AF79/'Population 2016'!AF$14","v":0},{"$f":"'Population 2016'!AG79/'Population 2016'!AG$14","v":0},{"$f":"'Population 2016'!AH79/'Population 2016'!AH$14","v":0},{"$f":"'Population 2016'!AI79/'Population 2016'!AI$14","v":0},{"$f":"'Population 2016'!AJ79/'Population 2016'!AJ$14","v":0},{"$f":"'Population 2016'!AK79/'Population 2016'!AK$14","v":0},{"$f":"'Population 2016'!AL79/'Population 2016'!AL$14","v":0},{"$f":"'Population 2016'!AM79/'Population 2016'!AM$14","v":0},{"$f":"'Population 2016'!AN79/'Population 2016'!AN$14","v":0},{"$f":"'Population 2016'!AO79/'Population 2016'!AO$14","v":0},{"$f":"'Population 2016'!AP79/'Population 2016'!AP$14","v":0},{"$f":"'Population 2016'!AQ79/'Population 2016'!AQ$14","v":0},{"$f":"'Population 2016'!AR79/'Population 2016'!AR$14","v":0},{"$f":"'Population 2016'!AS79/'Population 2016'!AS$14","v":0},{"$f":"'Population 2016'!AT79/'Population 2016'!AT$14","v":0},{"$f":"'Population 2016'!AU79/'Population 2016'!AU$14","v":0},{"$f":"'Population 2016'!AV79/'Population 2016'!AV$14","v":0},{"$f":"'Population 2016'!AW79/'Population 2016'!AW$14","v":0},{"$f":"'Population 2016'!AX79/'Population 2016'!AX$14","v":0},{"$f":"'Population 2016'!AY79/'Population 2016'!AY$14","v":0},{"$f":"'Population 2016'!AZ79/'Population 2016'!AZ$14","v":0},{"$f":"'Population 2016'!BA79/'Population 2016'!BA$14","v":0},{"$f":"'Population 2016'!BB79/'Population 2016'!BB$14","v":0},{"$f":"'Population 2016'!BC79/'Population 2016'!BC$14","v":0},77]
[null,"Male 5-9",{"$f":"'Population 2016'!C80/'Population 2016'!C$14","v":0},{"$f":"'Population 2016'!D80/'Population 2016'!D$14","v":0},{"$f":"'Population 2016'!E80/'Population 2016'!E$14","v":0},{"$f":"'Population 2016'!F80/'Population 2016'!F$14","v":0},{"$f":"'Population 2016'!G80/'Population 2016'!G$14","v":0},{"$f":"'Population 2016'!H80/'Population 2016'!H$14","v":0},{"$f":"'Population 2016'!I80/'Population 2016'!I$14","v":0},{"$f":"'Population 2016'!J80/'Population 2016'!J$14","v":0},{"$f":"'Population 2016'!K80/'Population 2016'!K$14","v":0},{"$f":"'Population 2016'!L80/'Population 2016'!L$14","v":0},{"$f":"'Population 2016'!M80/'Population 2016'!M$14","v":0},{"$f":"'Population 2016'!N80/'Population 2016'!N$14","v":0},{"$f":"'Population 2016'!O80/'Population 2016'!O$14","v":0},{"$f":"'Population 2016'!P80/'Population 2016'!P$14","v":0},{"$f":"'Population 2016'!Q80/'Population 2016'!Q$14","v":0},{"$f":"'Population 2016'!R80/'Population 2016'!R$14","v":0},{"$f":"'Population 2016'!S80/'Population 2016'!S$14","v":0},{"$f":"'Population 2016'!T80/'Population 2016'!T$14","v":0},{"$f":"'Population 2016'!U80/'Population 2016'!U$14","v":0},{"$f":"'Population 2016'!V80/'Population 2016'!V$14","v":0},{"$f":"'Population 2016'!W80/'Population 2016'!W$14","v":0},{"$f":"'Population 2016'!X80/'Population 2016'!X$14","v":0},{"$f":"'Population 2016'!Y80/'Population 2016'!Y$14","v":0},{"$f":"'Population 2016'!Z80/'Population 2016'!Z$14","v":0},{"$f":"'Population 2016'!AA80/'Population 2016'!AA$14","v":0},{"$f":"'Population 2016'!AB80/'Population 2016'!AB$14","v":0},{"$f":"'Population 2016'!AC80/'Population 2016'!AC$14","v":0},{"$f":"'Population 2016'!AD80/'Population 2016'!AD$14","v":0},{"$f":"'Population 2016'!AE80/'Population 2016'!AE$14","v":0},{"$f":"'Population 2016'!AF80/'Population 2016'!AF$14","v":0},{"$f":"'Population 2016'!AG80/'Population 2016'!AG$14","v":0},{"$f":"'Population 2016'!AH80/'Population 2016'!AH$14","v":0},{"$f":"'Population 2016'!AI80/'Population 2016'!AI$14","v":0},{"$f":"'Population 2016'!AJ80/'Population 2016'!AJ$14","v":0},{"$f":"'Population 2016'!AK80/'Population 2016'!AK$14","v":0},{"$f":"'Population 2016'!AL80/'Population 2016'!AL$14","v":0},{"$f":"'Population 2016'!AM80/'Population 2016'!AM$14","v":0},{"$f":"'Population 2016'!AN80/'Population 2016'!AN$14","v":0},{"$f":"'Population 2016'!AO80/'Population 2016'!AO$14","v":0},{"$f":"'Population 2016'!AP80/'Population 2016'!AP$14","v":0},{"$f":"'Population 2016'!AQ80/'Population 2016'!AQ$14","v":0},{"$f":"'Population 2016'!AR80/'Population 2016'!AR$14","v":0},{"$f":"'Population 2016'!AS80/'Population 2016'!AS$14","v":0},{"$f":"'Population 2016'!AT80/'Population 2016'!AT$14","v":0},{"$f":"'Population 2016'!AU80/'Population 2016'!AU$14","v":0},{"$f":"'Population 2016'!AV80/'Population 2016'!AV$14","v":0},{"$f":"'Population 2016'!AW80/'Population 2016'!AW$14","v":0},{"$f":"'Population 2016'!AX80/'Population 2016'!AX$14","v":0},{"$f":"'Population 2016'!AY80/'Population 2016'!AY$14","v":0},{"$f":"'Population 2016'!AZ80/'Population 2016'!AZ$14","v":0},{"$f":"'Population 2016'!BA80/'Population 2016'!BA$14","v":0},{"$f":"'Population 2016'!BB80/'Population 2016'!BB$14","v":0},{"$f":"'Population 2016'!BC80/'Population 2016'!BC$14","v":0},78]
[null,"Male 10-15",{"$f":"'Population 2016'!C81/'Population 2016'!C$14","v":0},{"$f":"'Population 2016'!D81/'Population 2016'!D$14","v":0},{"$f":"'Population 2016'!E81/'Population 2016'!E$14","v":0},{"$f":"'Population 2016'!F81/'Population 2016'!F$14","v":0},{"$f":"'Population 2016'!G81/'Population 2016'!G$14","v":0},{"$f":"'Population 2016'!H81/'Population 2016'!H$14","v":0},{"$f":"'Population 2016'!I81/'Population 2016'!I$14","v":0},{"$f":"'Population 2016'!J81/'Population 2016'!J$14","v":0},{"$f":"'Population 2016'!K81/'Population 2016'!K$14","v":0},{"$f":"'Population 2016'!L81/'Population 2016'!L$14","v":0},{"$f":"'Population 2016'!M81/'Population 2016'!M$14","v":0},{"$f":"'Population 2016'!N81/'Population 2016'!N$14","v":0},{"$f":"'Population 2016'!O81/'Population 2016'!O$14","v":0},{"$f":"'Population 2016'!P81/'Population 2016'!P$14","v":0},{"$f":"'Population 2016'!Q81/'Population 2016'!Q$14","v":0},{"$f":"'Population 2016'!R81/'Population 2016'!R$14","v":0},{"$f":"'Population 2016'!S81/'Population 2016'!S$14","v":0},{"$f":"'Population 2016'!T81/'Population 2016'!T$14","v":0},{"$f":"'Population 2016'!U81/'Population 2016'!U$14","v":0},{"$f":"'Population 2016'!V81/'Population 2016'!V$14","v":0},{"$f":"'Population 2016'!W81/'Population 2016'!W$14","v":0},{"$f":"'Population 2016'!X81/'Population 2016'!X$14","v":0},{"$f":"'Population 2016'!Y81/'Population 2016'!Y$14","v":0},{"$f":"'Population 2016'!Z81/'Population 2016'!Z$14","v":0},{"$f":"'Population 2016'!AA81/'Population 2016'!AA$14","v":0},{"$f":"'Population 2016'!AB81/'Population 2016'!AB$14","v":0},{"$f":"'Population 2016'!AC81/'Population 2016'!AC$14","v":0},{"$f":"'Population 2016'!AD81/'Population 2016'!AD$14","v":0},{"$f":"'Population 2016'!AE81/'Population 2016'!AE$14","v":0},{"$f":"'Population 2016'!AF81/'Population 2016'!AF$14","v":0},{"$f":"'Population 2016'!AG81/'Population 2016'!AG$14","v":0},{"$f":"'Population 2016'!AH81/'Population 2016'!AH$14","v":0},{"$f":"'Population 2016'!AI81/'Population 2016'!AI$14","v":0},{"$f":"'Population 2016'!AJ81/'Population 2016'!AJ$14","v":0},{"$f":"'Population 2016'!AK81/'Population 2016'!AK$14","v":0},{"$f":"'Population 2016'!AL81/'Population 2016'!AL$14","v":0},{"$f":"'Population 2016'!AM81/'Population 2016'!AM$14","v":0},{"$f":"'Population 2016'!AN81/'Population 2016'!AN$14","v":0},{"$f":"'Population 2016'!AO81/'Population 2016'!AO$14","v":0},{"$f":"'Population 2016'!AP81/'Population 2016'!AP$14","v":0},{"$f":"'Population 2016'!AQ81/'Population 2016'!AQ$14","v":0},{"$f":"'Population 2016'!AR81/'Population 2016'!AR$14","v":0},{"$f":"'Population 2016'!AS81/'Population 2016'!AS$14","v":0},{"$f":"'Population 2016'!AT81/'Population 2016'!AT$14","v":0},{"$f":"'Population 2016'!AU81/'Population 2016'!AU$14","v":0},{"$f":"'Population 2016'!AV81/'Population 2016'!AV$14","v":0},{"$f":"'Population 2016'!AW81/'Population 2016'!AW$14","v":0},{"$f":"'Population 2016'!AX81/'Population 2016'!AX$14","v":0},{"$f":"'Population 2016'!AY81/'Population 2016'!AY$14","v":0},{"$f":"'Population 2016'!AZ81/'Population 2016'!AZ$14","v":0},{"$f":"'Population 2016'!BA81/'Population 2016'!BA$14","v":0},{"$f":"'Population 2016'!BB81/'Population 2016'!BB$14","v":0},{"$f":"'Population 2016'!BC81/'Population 2016'!BC$14","v":0},79]
[null,"Male 16-19",{"$f":"'Population 2016'!C82/'Population 2016'!C$14","v":2.3442212148910902E-3},{"$f":"'Population 2016'!D82/'Population 2016'!D$14","v":1.4278316874458052E-3},{"$f":"'Population 2016'!E82/'Population 2016'!E$14","v":5.3760842776717332E-4},{"$f":"'Population 2016'!F82/'Population 2016'!F$14","v":3.4141780472601575E-3},{"$f":"'Population 2016'!G82/'Population 2016'!G$14","v":3.4011005808621216E-3},{"$f":"'Population 2016'!H82/'Population 2016'!H$14","v":1.2021297124712735E-2},{"$f":"'Population 2016'!I82/'Population 2016'!I$14","v":2.5920773229845501E-3},{"$f":"'Population 2016'!J82/'Population 2016'!J$14","v":7.4403645135352452E-3},{"$f":"'Population 2016'!K82/'Population 2016'!K$14","v":1.0541565206670159E-2},{"$f":"'Population 2016'!L82/'Population 2016'!L$14","v":3.3034079034595892E-3},{"$f":"'Population 2016'!M82/'Population 2016'!M$14","v":3.3034079034595892E-3},{"$f":"'Population 2016'!N82/'Population 2016'!N$14","v":1.1893879375139658E-2},{"$f":"'Population 2016'!O82/'Population 2016'!O$14","v":1.2203988367262152E-2},{"$f":"'Population 2016'!P82/'Population 2016'!P$14","v":2.0818982013011862E-3},{"$f":"'Population 2016'!Q82/'Population 2016'!Q$14","v":1.3600605845169467E-3},{"$f":"'Population 2016'!R82/'Population 2016'!R$14","v":2.8699709481468439E-3},{"$f":"'Population 2016'!S82/'Population 2016'!S$14","v":5.0444830667942106E-3},{"$f":"'Population 2016'!T82/'Population 2016'!T$14","v":4.2416347107578139E-3},{"$f":"'Population 2016'!U82/'Population 2016'!U$14","v":0},{"$f":"'Population 2016'!V82/'Population 2016'!V$14","v":4.9281394800911021E-3},{"$f":"'Population 2016'!W82/'Population 2016'!W$14","v":7.6797244941885492E-3},{"$f":"'Population 2016'!X82/'Population 2016'!X$14","v":7.6797244941885492E-3},{"$f":"'Population 2016'!Y82/'Population 2016'!Y$14","v":6.1289644817284087E-3},{"$f":"'Population 2016'!Z82/'Population 2016'!Z$14","v":1.5704967501784919E-2},{"$f":"'Population 2016'!AA82/'Population 2016'!AA$14","v":1.1658346625377906E-2},{"$f":"'Population 2016'!AB82/'Population 2016'!AB$14","v":1.2663210395744747E-3},{"$f":"'Population 2016'!AC82/'Population 2016'!AC$14","v":1.2594860802118853E-2},{"$f":"'Population 2016'!AD82/'Population 2016'!AD$14","v":2.9838930670158022E-3},{"$f":"'Population 2016'!AE82/'Population 2016'!AE$14","v":2.8330177858238554E-3},{"$f":"'Population 2016'!AF82/'Population 2016'!AF$14","v":1.543677702433187E-2},{"$f":"'Population 2016'!AG82/'Population 2016'!AG$14","v":2.8330177858238554E-3},{"$f":"'Population 2016'!AH82/'Population 2016'!AH$14","v":9.9374353463070764E-3},{"$f":"'Population 2016'!AI82/'Population 2016'!AI$14","v":4.2908636125614527E-3},{"$f":"'Population 2016'!AJ82/'Population 2016'!AJ$14","v":3.740918784111035E-3},{"$f":"'Population 2016'!AK82/'Population 2016'!AK$14","v":3.846861462810885E-4},{"$f":"'Population 2016'!AL82/'Population 2016'!AL$14","v":1.6400311246782786E-2},{"$f":"'Population 2016'!AM82/'Population 2016'!AM$14","v":1.2432033662121917E-2},{"$f":"'Population 2016'!AN82/'Population 2016'!AN$14","v":0},{"$f":"'Population 2016'!AO82/'Population 2016'!AO$14","v":0},{"$f":"'Population 2016'!AP82/'Population 2016'!AP$14","v":1.8536585365853658E-3},{"$f":"'Population 2016'!AQ82/'Population 2016'!AQ$14","v":9.4253867673923988E-3},{"$f":"'Population 2016'!AR82/'Population 2016'!AR$14","v":7.2663327727682872E-3},{"$f":"'Population 2016'!AS82/'Population 2016'!AS$14","v":2.5920773229845501E-3},{"$f":"'Population 2016'!AT82/'Population 2016'!AT$14","v":0},{"$f":"'Population 2016'!AU82/'Population 2016'!AU$14","v":0},{"$f":"'Population 2016'!AV82/'Population 2016'!AV$14","v":6.3896342638577975E-3},{"$f":"'Population 2016'!AW82/'Population 2016'!AW$14","v":7.2369102140015483E-3},{"$f":"'Population 2016'!AX82/'Population 2016'!AX$14","v":5.7864281956864806E-3},{"$f":"'Population 2016'!AY82/'Population 2016'!AY$14","v":6.8214233618048917E-3},{"$f":"'Population 2016'!AZ82/'Population 2016'!AZ$14","v":6.058356168577683E-3},{"$f":"'Population 2016'!BA82/'Population 2016'!BA$14","v":1.4489249633019601E-2},{"$f":"'Population 2016'!BB82/'Population 2016'!BB$14","v":6.3349428908341292E-3},{"$f":"'Population 2016'!BC82/'Population 2016'!BC$14","v":0},80]
[null,"Male 20-24",{"$f":"'Population 2016'!C83/'Population 2016'!C$14","v":3.8303455394506935E-3},{"$f":"'Population 2016'!D83/'Population 2016'!D$14","v":2.5982859891717659E-3},{"$f":"'Population 2016'!E83/'Population 2016'!E$14","v":1.4014062386739797E-3},{"$f":"'Population 2016'!F83/'Population 2016'!F$14","v":4.816682722275741E-3},{"$f":"'Population 2016'!G83/'Population 2016'!G$14","v":5.3309385509018653E-3},{"$f":"'Population 2016'!H83/'Population 2016'!H$14","v":1.6849990351385014E-2},{"$f":"'Population 2016'!I83/'Population 2016'!I$14","v":3.0899904810719778E-3},{"$f":"'Population 2016'!J83/'Population 2016'!J$14","v":9.5095148753685348E-3},{"$f":"'Population 2016'!K83/'Population 2016'!K$14","v":1.3161544863298709E-2},{"$f":"'Population 2016'!L83/'Population 2016'!L$14","v":4.9326396925808156E-3},{"$f":"'Population 2016'!M83/'Population 2016'!M$14","v":4.9326396925808156E-3},{"$f":"'Population 2016'!N83/'Population 2016'!N$14","v":1.9633534442480751E-2},{"$f":"'Population 2016'!O83/'Population 2016'!O$14","v":1.6864873286248441E-2},{"$f":"'Population 2016'!P83/'Population 2016'!P$14","v":2.5870646766169153E-3},{"$f":"'Population 2016'!Q83/'Population 2016'!Q$14","v":1.8391728358808711E-3},{"$f":"'Population 2016'!R83/'Population 2016'!R$14","v":3.4157936438066732E-3},{"$f":"'Population 2016'!S83/'Population 2016'!S$14","v":6.9014995351845115E-3},{"$f":"'Population 2016'!T83/'Population 2016'!T$14","v":6.2112678842409568E-3},{"$f":"'Population 2016'!U83/'Population 2016'!U$14","v":0},{"$f":"'Population 2016'!V83/'Population 2016'!V$14","v":7.2351370454723949E-3},{"$f":"'Population 2016'!W83/'Population 2016'!W$14","v":9.8966853207059832E-3},{"$f":"'Population 2016'!X83/'Population 2016'!X$14","v":9.8966853207059832E-3},{"$f":"'Population 2016'!Y83/'Population 2016'!Y$14","v":8.3222728414104816E-3},{"$f":"'Population 2016'!Z83/'Population 2016'!Z$14","v":2.4510562786366694E-2},{"$f":"'Population 2016'!AA83/'Population 2016'!AA$14","v":1.7376150401430868E-2},{"$f":"'Population 2016'!AB83/'Population 2016'!AB$14","v":2.2581430398955866E-3},{"$f":"'Population 2016'!AC83/'Population 2016'!AC$14","v":1.9328351383347781E-2},{"$f":"'Population 2016'!AD83/'Population 2016'!AD$14","v":4.2880776218169273E-3},{"$f":"'Population 2016'!AE83/'Population 2016'!AE$14","v":3.9109465043324441E-3},{"$f":"'Population 2016'!AF83/'Population 2016'!AF$14","v":2.197846031112884E-2},{"$f":"'Population 2016'!AG83/'Population 2016'!AG$14","v":3.9109465043324441E-3},{"$f":"'Population 2016'!AH83/'Population 2016'!AH$14","v":1.3788842518398932E-2},{"$f":"'Population 2016'!AI83/'Population 2016'!AI$14","v":6.1634561448996846E-3},{"$f":"'Population 2016'!AJ83/'Population 2016'!AJ$14","v":5.9818556402934904E-3},{"$f":"'Population 2016'!AK83/'Population 2016'!AK$14","v":4.014116309020054E-4},{"$f":"'Population 2016'!AL83/'Population 2016'!AL$14","v":2.2409768360567427E-2},{"$f":"'Population 2016'!AM83/'Population 2016'!AM$14","v":1.7063307740648653E-2},{"$f":"'Population 2016'!AN83/'Population 2016'!AN$14","v":0},{"$f":"'Population 2016'!AO83/'Population 2016'!AO$14","v":0},{"$f":"'Population 2016'!AP83/'Population 2016'!AP$14","v":3.3495934959349594E-3},{"$f":"'Population 2016'!AQ83/'Population 2016'!AQ$14","v":1.5408918816354988E-2},{"$f":"'Population 2016'!AR83/'Population 2016'!AR$14","v":1.0653505756990611E-2},{"$f":"'Population 2016'!AS83/'Population 2016'!AS$14","v":3.0899904810719778E-3},{"$f":"'Population 2016'!AT83/'Population 2016'!AT$14","v":0},{"$f":"'Population 2016'!AU83/'Population 2016'!AU$14","v":0},{"$f":"'Population 2016'!AV83/'Population 2016'!AV$14","v":9.9476672646138797E-3},{"$f":"'Population 2016'!AW83/'Population 2016'!AW$14","v":1.0244073177585298E-2},{"$f":"'Population 2016'!AX83/'Population 2016'!AX$14","v":7.5618095739084694E-3},{"$f":"'Population 2016'!AY83/'Population 2016'!AY$14","v":9.8887340151380086E-3},{"$f":"'Population 2016'!AZ83/'Population 2016'!AZ$14","v":9.88166495721262E-3},{"$f":"'Population 2016'!BA83/'Population 2016'!BA$14","v":2.046455401087989E-2},{"$f":"'Population 2016'!BB83/'Population 2016'!BB$14","v":8.5125795095583618E-3},{"$f":"'Population 2016'!BC83/'Population 2016'!BC$14","v":0},81]
[null,"Male 25-29",{"$f":"'Population 2016'!C84/'Population 2016'!C$14","v":6.4295085840779496E-3},{"$f":"'Population 2016'!D84/'Population 2016'!D$14","v":3.9740293961742692E-3},{"$f":"'Population 2016'!E84/'Population 2016'!E$14","v":1.5886631067726581E-3},{"$f":"'Population 2016'!F84/'Population 2016'!F$14","v":4.4483481611605376E-3},{"$f":"'Population 2016'!G84/'Population 2016'!G$14","v":4.299143992662794E-3},{"$f":"'Population 2016'!H84/'Population 2016'!H$14","v":1.6222830377348559E-2},{"$f":"'Population 2016'!I84/'Population 2016'!I$14","v":2.3138317346415756E-3},{"$f":"'Population 2016'!J84/'Population 2016'!J$14","v":9.2736531760922013E-3},{"$f":"'Population 2016'!K84/'Population 2016'!K$14","v":1.0664858366982092E-2},{"$f":"'Population 2016'!L84/'Population 2016'!L$14","v":5.5730963269250214E-3},{"$f":"'Population 2016'!M84/'Population 2016'!M$14","v":5.5730963269250214E-3},{"$f":"'Population 2016'!N84/'Population 2016'!N$14","v":2.7576330062770431E-2},{"$f":"'Population 2016'!O84/'Population 2016'!O$14","v":1.664416285832987E-2},{"$f":"'Population 2016'!P84/'Population 2016'!P$14","v":2.4952162265595101E-3},{"$f":"'Population 2016'!Q84/'Population 2016'!Q$14","v":1.6227995610713568E-3},{"$f":"'Population 2016'!R84/'Population 2016'!R$14","v":3.4510080112685978E-3},{"$f":"'Population 2016'!S84/'Population 2016'!S$14","v":8.2061265825058727E-3},{"$f":"'Population 2016'!T84/'Population 2016'!T$14","v":9.4242849835958105E-3},{"$f":"'Population 2016'!U84/'Population 2016'!U$14","v":0},{"$f":"'Population 2016'!V84/'Population 2016'!V$14","v":8.1677530825414284E-3},{"$f":"'Population 2016'!W84/'Population 2016'!W$14","v":1.0507963839862248E-2},{"$f":"'Population 2016'!X84/'Population 2016'!X$14","v":1.0507963839862248E-2},{"$f":"'Population 2016'!Y84/'Population 2016'!Y$14","v":8.6963651550945736E-3},{"$f":"'Population 2016'!Z84/'Population 2016'!Z$14","v":3.1250505437934534E-2},{"$f":"'Population 2016'!AA84/'Population 2016'!AA$14","v":1.9851307069588025E-2},{"$f":"'Population 2016'!AB84/'Population 2016'!AB$14","v":3.3898041734212419E-3},{"$f":"'Population 2016'!AC84/'Population 2016'!AC$14","v":2.3482839067385144E-2},{"$f":"'Population 2016'!AD84/'Population 2016'!AD$14","v":4.1713607161343357E-3},{"$f":"'Population 2016'!AE84/'Population 2016'!AE$14","v":4.1251502881386381E-3},{"$f":"'Population 2016'!AF84/'Population 2016'!AF$14","v":2.2157957718388511E-2},{"$f":"'Population 2016'!AG84/'Population 2016'!AG$14","v":4.1251502881386381E-3},{"$f":"'Population 2016'!AH84/'Population 2016'!AH$14","v":1.3178109236038946E-2},{"$f":"'Population 2016'!AI84/'Population 2016'!AI$14","v":7.981819753224503E-3},{"$f":"'Population 2016'!AJ84/'Population 2016'!AJ$14","v":4.6083782123106948E-3},{"$f":"'Population 2016'!AK84/'Population 2016'!AK$14","v":2.007058154510027E-4},{"$f":"'Population 2016'!AL84/'Population 2016'!AL$14","v":2.0434548392889208E-2},{"$f":"'Population 2016'!AM84/'Population 2016'!AM$14","v":1.6275490222865834E-2},{"$f":"'Population 2016'!AN84/'Population 2016'!AN$14","v":0},{"$f":"'Population 2016'!AO84/'Population 2016'!AO$14","v":0},{"$f":"'Population 2016'!AP84/'Population 2016'!AP$14","v":4.8021680216802165E-3},{"$f":"'Population 2016'!AQ84/'Population 2016'!AQ$14","v":1.8215354202151601E-2},{"$f":"'Population 2016'!AR84/'Population 2016'!AR$14","v":1.2206545057767618E-2},{"$f":"'Population 2016'!AS84/'Population 2016'!AS$14","v":2.3138317346415756E-3},{"$f":"'Population 2016'!AT84/'Population 2016'!AT$14","v":0},{"$f":"'Population 2016'!AU84/'Population 2016'!AU$14","v":0},{"$f":"'Population 2016'!AV84/'Population 2016'!AV$14","v":1.0525847627236743E-2},{"$f":"'Population 2016'!AW84/'Population 2016'!AW$14","v":9.8250422728236274E-3},{"$f":"'Population 2016'!AX84/'Population 2016'!AX$14","v":8.5316938453445547E-3},{"$f":"'Population 2016'!AY84/'Population 2016'!AY$14","v":1.1979529652020293E-2},{"$f":"'Population 2016'!AZ84/'Population 2016'!AZ$14","v":1.3287815930070572E-2},{"$f":"'Population 2016'!BA84/'Population 2016'!BA$14","v":2.0205509023400396E-2},{"$f":"'Population 2016'!BB84/'Population 2016'!BB$14","v":8.7363682529845669E-3},{"$f":"'Population 2016'!BC84/'Population 2016'!BC$14","v":0},82]
[null,"Male 30-34",{"$f":"'Population 2016'!C85/'Population 2016'!C$14","v":5.3910869849086874E-3},{"$f":"'Population 2016'!D85/'Population 2016'!D$14","v":3.4929788061978926E-3},{"$f":"'Population 2016'!E85/'Population 2016'!E$14","v":1.6490685480948124E-3},{"$f":"'Population 2016'!F85/'Population 2016'!F$14","v":3.6550121833739445E-3},{"$f":"'Population 2016'!G85/'Population 2016'!G$14","v":3.3628859675940079E-3},{"$f":"'Population 2016'!H85/'Population 2016'!H$14","v":1.4301878848481659E-2},{"$f":"'Population 2016'!I85/'Population 2016'!I$14","v":2.5481438090356593E-3},{"$f":"'Population 2016'!J85/'Population 2016'!J$14","v":8.1372286250335039E-3},{"$f":"'Population 2016'!K85/'Population 2016'!K$14","v":1.1188854298307802E-2},{"$f":"'Population 2016'!L85/'Population 2016'!L$14","v":3.8876841312823741E-3},{"$f":"'Population 2016'!M85/'Population 2016'!M$14","v":3.8876841312823741E-3},{"$f":"'Population 2016'!N85/'Population 2016'!N$14","v":2.1634468889024316E-2},{"$f":"'Population 2016'!O85/'Population 2016'!O$14","v":1.4488990444536767E-2},{"$f":"'Population 2016'!P85/'Population 2016'!P$14","v":2.0512820512820513E-3},{"$f":"'Population 2016'!Q85/'Population 2016'!Q$14","v":1.7000757306461834E-3},{"$f":"'Population 2016'!R85/'Population 2016'!R$14","v":3.2397218064970507E-3},{"$f":"'Population 2016'!S85/'Population 2016'!S$14","v":7.4314341017384551E-3},{"$f":"'Population 2016'!T85/'Population 2016'!T$14","v":8.1413388419009081E-3},{"$f":"'Population 2016'!U85/'Population 2016'!U$14","v":0},{"$f":"'Population 2016'!V85/'Population 2016'!V$14","v":7.5001963402183307E-3},{"$f":"'Population 2016'!W85/'Population 2016'!W$14","v":9.8450279810589746E-3},{"$f":"'Population 2016'!X85/'Population 2016'!X$14","v":9.8450279810589746E-3},{"$f":"'Population 2016'!Y85/'Population 2016'!Y$14","v":7.8046930649434505E-3},{"$f":"'Population 2016'!Z85/'Population 2016'!Z$14","v":2.736412095389713E-2},{"$f":"'Population 2016'!AA85/'Population 2016'!AA$14","v":1.8031019961425265E-2},{"$f":"'Population 2016'!AB85/'Population 2016'!AB$14","v":2.9754660009633361E-3},{"$f":"'Population 2016'!AC85/'Population 2016'!AC$14","v":2.0987570030492009E-2},{"$f":"'Population 2016'!AD85/'Population 2016'!AD$14","v":4.0394198662322767E-3},{"$f":"'Population 2016'!AE85/'Population 2016'!AE$14","v":4.2840756761238791E-3},{"$f":"'Population 2016'!AF85/'Population 2016'!AF$14","v":2.086158755484643E-2},{"$f":"'Population 2016'!AG85/'Population 2016'!AG$14","v":4.2840756761238791E-3},{"$f":"'Population 2016'!AH85/'Population 2016'!AH$14","v":1.2598149336123453E-2},{"$f":"'Population 2016'!AI85/'Population 2016'!AI$14","v":7.0463708139930957E-3},{"$f":"'Population 2016'!AJ85/'Population 2016'!AJ$14","v":5.0782520692521779E-3},{"$f":"'Population 2016'!AK85/'Population 2016'!AK$14","v":1.5052936158825201E-4},{"$f":"'Population 2016'!AL85/'Population 2016'!AL$14","v":1.8555096666068114E-2},{"$f":"'Population 2016'!AM85/'Population 2016'!AM$14","v":1.5346503092069912E-2},{"$f":"'Population 2016'!AN85/'Population 2016'!AN$14","v":0},{"$f":"'Population 2016'!AO85/'Population 2016'!AO$14","v":0},{"$f":"'Population 2016'!AP85/'Population 2016'!AP$14","v":3.3604336043360434E-3},{"$f":"'Population 2016'!AQ85/'Population 2016'!AQ$14","v":1.7129846175569893E-2},{"$f":"'Population 2016'!AR85/'Population 2016'!AR$14","v":1.0890186654120096E-2},{"$f":"'Population 2016'!AS85/'Population 2016'!AS$14","v":2.5481438090356593E-3},{"$f":"'Population 2016'!AT85/'Population 2016'!AT$14","v":0},{"$f":"'Population 2016'!AU85/'Population 2016'!AU$14","v":0},{"$f":"'Population 2016'!AV85/'Population 2016'!AV$14","v":8.8209568143744529E-3},{"$f":"'Population 2016'!AW85/'Population 2016'!AW$14","v":9.6229214834679978E-3},{"$f":"'Population 2016'!AX85/'Population 2016'!AX$14","v":6.5097317201472911E-3},{"$f":"'Population 2016'!AY85/'Population 2016'!AY$14","v":1.0099434350637773E-2},{"$f":"'Population 2016'!AZ85/'Population 2016'!AZ$14","v":1.0325612724461522E-2},{"$f":"'Population 2016'!BA85/'Population 2016'!BA$14","v":1.9756497711769277E-2},{"$f":"'Population 2016'!BB85/'Population 2016'!BB$14","v":7.626031795216085E-3},{"$f":"'Population 2016'!BC85/'Population 2016'!BC$14","v":0},83]
[null,"Male 35-39",{"$f":"'Population 2016'!C86/'Population 2016'!C$14","v":5.1361451551725206E-3},{"$f":"'Population 2016'!D86/'Population 2016'!D$14","v":3.1651290410547568E-3},{"$f":"'Population 2016'!E86/'Population 2016'!E$14","v":1.250392635368594E-3},{"$f":"'Population 2016'!F86/'Population 2016'!F$14","v":3.6266787555958519E-3},{"$f":"'Population 2016'!G86/'Population 2016'!G$14","v":2.8660959951085294E-3},{"$f":"'Population 2016'!H86/'Population 2016'!H$14","v":1.2780029121274319E-2},{"$f":"'Population 2016'!I86/'Population 2016'!I$14","v":2.7385223694808523E-3},{"$f":"'Population 2016'!J86/'Population 2016'!J$14","v":7.0436880192977754E-3},{"$f":"'Population 2016'!K86/'Population 2016'!K$14","v":1.1158031008229818E-2},{"$f":"'Population 2016'!L86/'Population 2016'!L$14","v":3.3483522286767266E-3},{"$f":"'Population 2016'!M86/'Population 2016'!M$14","v":3.3483522286767266E-3},{"$f":"'Population 2016'!N86/'Population 2016'!N$14","v":1.5570723383509051E-2},{"$f":"'Population 2016'!O86/'Population 2016'!O$14","v":1.2307852098047361E-2},{"$f":"'Population 2016'!P86/'Population 2016'!P$14","v":2.0818982013011862E-3},{"$f":"'Population 2016'!Q86/'Population 2016'!Q$14","v":1.329150116687016E-3},{"$f":"'Population 2016'!R86/'Population 2016'!R$14","v":2.9051853156087685E-3},{"$f":"'Population 2016'!S86/'Population 2016'!S$14","v":6.8689399961377653E-3},{"$f":"'Population 2016'!T86/'Population 2016'!T$14","v":7.403786104054279E-3},{"$f":"'Population 2016'!U86/'Population 2016'!U$14","v":0},{"$f":"'Population 2016'!V86/'Population 2016'!V$14","v":7.0780648708081368E-3},{"$f":"'Population 2016'!W86/'Population 2016'!W$14","v":9.1390443392165305E-3},{"$f":"'Population 2016'!X86/'Population 2016'!X$14","v":9.1390443392165305E-3},{"$f":"'Population 2016'!Y86/'Population 2016'!Y$14","v":7.0616329898175144E-3},{"$f":"'Population 2016'!Z86/'Population 2016'!Z$14","v":2.2320139188942521E-2},{"$f":"'Population 2016'!AA86/'Population 2016'!AA$14","v":1.5442408184785003E-2},{"$f":"'Population 2016'!AB86/'Population 2016'!AB$14","v":2.7424007789557643E-3},{"$f":"'Population 2016'!AC86/'Population 2016'!AC$14","v":1.7207952397944527E-2},{"$f":"'Population 2016'!AD86/'Population 2016'!AD$14","v":3.1056846207715497E-3},{"$f":"'Population 2016'!AE86/'Population 2016'!AE$14","v":3.1923273586600518E-3},{"$f":"'Population 2016'!AF86/'Population 2016'!AF$14","v":1.6573593936976466E-2},{"$f":"'Population 2016'!AG86/'Population 2016'!AG$14","v":3.1923273586600518E-3},{"$f":"'Population 2016'!AH86/'Population 2016'!AH$14","v":1.2198095364345012E-2},{"$f":"'Population 2016'!AI86/'Population 2016'!AI$14","v":6.4532419575963704E-3},{"$f":"'Population 2016'!AJ86/'Population 2016'!AJ$14","v":4.3011529981566484E-3},{"$f":"'Population 2016'!AK86/'Population 2016'!AK$14","v":4.3486260014383919E-4},{"$f":"'Population 2016'!AL86/'Population 2016'!AL$14","v":1.6567905668282756E-2},{"$f":"'Population 2016'!AM86/'Population 2016'!AM$14","v":1.4453946829148337E-2},{"$f":"'Population 2016'!AN86/'Population 2016'!AN$14","v":0},{"$f":"'Population 2016'!AO86/'Population 2016'!AO$14","v":0},{"$f":"'Population 2016'!AP86/'Population 2016'!AP$14","v":3.3062330623306233E-3},{"$f":"'Population 2016'!AQ86/'Population 2016'!AQ$14","v":1.4208682299158951E-2},{"$f":"'Population 2016'!AR86/'Population 2016'!AR$14","v":9.4511897226621389E-3},{"$f":"'Population 2016'!AS86/'Population 2016'!AS$14","v":2.7385223694808523E-3},{"$f":"'Population 2016'!AT86/'Population 2016'!AT$14","v":0},{"$f":"'Population 2016'!AU86/'Population 2016'!AU$14","v":0},{"$f":"'Population 2016'!AV86/'Population 2016'!AV$14","v":8.6282300268334996E-3},{"$f":"'Population 2016'!AW86/'Population 2016'!AW$14","v":9.7560254179217057E-3},{"$f":"'Population 2016'!AX86/'Population 2016'!AX$14","v":4.8494213571804315E-3},{"$f":"'Population 2016'!AY86/'Population 2016'!AY$14","v":8.5434934115625853E-3},{"$f":"'Population 2016'!AZ86/'Population 2016'!AZ$14","v":8.0140226260275865E-3},{"$f":"'Population 2016'!BA86/'Population 2016'!BA$14","v":1.650980053535964E-2},{"$f":"'Population 2016'!BB86/'Population 2016'!BB$14","v":7.4366720892400651E-3},{"$f":"'Population 2016'!BC86/'Population 2016'!BC$14","v":0},84]
[null,"Male 40-44",{"$f":"'Population 2016'!C87/'Population 2016'!C$14","v":4.1972130505344455E-3},{"$f":"'Population 2016'!D87/'Population 2016'!D$14","v":2.7177826325416937E-3},{"$f":"'Population 2016'!E87/'Population 2016'!E$14","v":1.2805953560296711E-3},{"$f":"'Population 2016'!F87/'Population 2016'!F$14","v":3.5558451861506207E-3},{"$f":"'Population 2016'!G87/'Population 2016'!G$14","v":3.1909202078874961E-3},{"$f":"'Population 2016'!H87/'Population 2016'!H$14","v":1.3955405855832149E-2},{"$f":"'Population 2016'!I87/'Population 2016'!I$14","v":2.7824558834297431E-3},{"$f":"'Population 2016'!J87/'Population 2016'!J$14","v":6.7863843473599571E-3},{"$f":"'Population 2016'!K87/'Population 2016'!K$14","v":1.0849798107449989E-2},{"$f":"'Population 2016'!L87/'Population 2016'!L$14","v":3.8315037247609522E-3},{"$f":"'Population 2016'!M87/'Population 2016'!M$14","v":3.8315037247609522E-3},{"$f":"'Population 2016'!N87/'Population 2016'!N$14","v":1.3163507831068316E-2},{"$f":"'Population 2016'!O87/'Population 2016'!O$14","v":1.4579871208973826E-2},{"$f":"'Population 2016'!P87/'Population 2016'!P$14","v":2.0818982013011862E-3},{"$f":"'Population 2016'!Q87/'Population 2016'!Q$14","v":2.0555461106903854E-3},{"$f":"'Population 2016'!R87/'Population 2016'!R$14","v":2.9756140505326173E-3},{"$f":"'Population 2016'!S87/'Population 2016'!S$14","v":6.6791964754860352E-3},{"$f":"'Population 2016'!T87/'Population 2016'!T$14","v":6.6973179643544439E-3},{"$f":"'Population 2016'!U87/'Population 2016'!U$14","v":0},{"$f":"'Population 2016'!V87/'Population 2016'!V$14","v":7.4020262310531687E-3},{"$f":"'Population 2016'!W87/'Population 2016'!W$14","v":9.0486439948342656E-3},{"$f":"'Population 2016'!X87/'Population 2016'!X$14","v":9.0486439948342656E-3},{"$f":"'Population 2016'!Y87/'Population 2016'!Y$14","v":7.107753959997745E-3},{"$f":"'Population 2016'!Z87/'Population 2016'!Z$14","v":2.0055777242238206E-2},{"$f":"'Population 2016'!AA87/'Population 2016'!AA$14","v":1.4472200161506684E-2},{"$f":"'Population 2016'!AB87/'Population 2016'!AB$14","v":2.3746756508993727E-3},{"$f":"'Population 2016'!AC87/'Population 2016'!AC$14","v":1.5619585478745125E-2},{"$f":"'Population 2016'!AD87/'Population 2016'!AD$14","v":3.5522536512092888E-3},{"$f":"'Population 2016'!AE87/'Population 2016'!AE$14","v":3.6829231215710122E-3},{"$f":"'Population 2016'!AF87/'Population 2016'!AF$14","v":1.7032309533306741E-2},{"$f":"'Population 2016'!AG87/'Population 2016'!AG$14","v":3.6829231215710122E-3},{"$f":"'Population 2016'!AH87/'Population 2016'!AH$14","v":1.2363798192892296E-2},{"$f":"'Population 2016'!AI87/'Population 2016'!AI$14","v":6.197349222408069E-3},{"$f":"'Population 2016'!AJ87/'Population 2016'!AJ$14","v":4.82524306936061E-3},{"$f":"'Population 2016'!AK87/'Population 2016'!AK$14","v":5.0176453862750678E-4},{"$f":"'Population 2016'!AL87/'Population 2016'!AL$14","v":1.7848805889746813E-2},{"$f":"'Population 2016'!AM87/'Population 2016'!AM$14","v":1.4572347149739975E-2},{"$f":"'Population 2016'!AN87/'Population 2016'!AN$14","v":0},{"$f":"'Population 2016'!AO87/'Population 2016'!AO$14","v":0},{"$f":"'Population 2016'!AP87/'Population 2016'!AP$14","v":2.7317073170731706E-3},{"$f":"'Population 2016'!AQ87/'Population 2016'!AQ$14","v":1.2425978060382488E-2},{"$f":"'Population 2016'!AR87/'Population 2016'!AR$14","v":9.0612106657696097E-3},{"$f":"'Population 2016'!AS87/'Population 2016'!AS$14","v":2.7824558834297431E-3},{"$f":"'Population 2016'!AT87/'Population 2016'!AT$14","v":0},{"$f":"'Population 2016'!AU87/'Population 2016'!AU$14","v":0},{"$f":"'Population 2016'!AV87/'Population 2016'!AV$14","v":8.4206781017893938E-3},{"$f":"'Population 2016'!AW87/'Population 2016'!AW$14","v":9.972935533327747E-3},{"$f":"'Population 2016'!AX87/'Population 2016'!AX$14","v":4.619279326670174E-3},{"$f":"'Population 2016'!AY87/'Population 2016'!AY$14","v":7.9032885460056084E-3},{"$f":"'Population 2016'!AZ87/'Population 2016'!AZ$14","v":6.8850175282825343E-3},{"$f":"'Population 2016'!BA87/'Population 2016'!BA$14","v":1.516276660046628E-2},{"$f":"'Population 2016'!BB87/'Population 2016'!BB$14","v":7.6346390545786319E-3},{"$f":"'Population 2016'!BC87/'Population 2016'!BC$14","v":0},85]
[null,"Male 45-49",{"$f":"'Population 2016'!C88/'Population 2016'!C$14","v":3.8925264735326856E-3},{"$f":"'Population 2016'!D88/'Population 2016'!D$14","v":2.4971734447818269E-3},{"$f":"'Population 2016'!E88/'Population 2016'!E$14","v":1.1416628409887163E-3},{"$f":"'Population 2016'!F88/'Population 2016'!F$14","v":3.9241797472658246E-3},{"$f":"'Population 2016'!G88/'Population 2016'!G$14","v":3.8787832467135431E-3},{"$f":"'Population 2016'!H88/'Population 2016'!H$14","v":1.5806185639352315E-2},{"$f":"'Population 2016'!I88/'Population 2016'!I$14","v":3.690415171706817E-3},{"$f":"'Population 2016'!J88/'Population 2016'!J$14","v":8.3623693379790941E-3},{"$f":"'Population 2016'!K88/'Population 2016'!K$14","v":1.3099898283142742E-2},{"$f":"'Population 2016'!L88/'Population 2016'!L$14","v":4.5618490095394332E-3},{"$f":"'Population 2016'!M88/'Population 2016'!M$14","v":4.5618490095394332E-3},{"$f":"'Population 2016'!N88/'Population 2016'!N$14","v":1.651532695471997E-2},{"$f":"'Population 2016'!O88/'Population 2016'!O$14","v":1.6618196925633568E-2},{"$f":"'Population 2016'!P88/'Population 2016'!P$14","v":2.8319938767699961E-3},{"$f":"'Population 2016'!Q88/'Population 2016'!Q$14","v":1.4527919880067384E-3},{"$f":"'Population 2016'!R88/'Population 2016'!R$14","v":3.2221146227660886E-3},{"$f":"'Population 2016'!S88/'Population 2016'!S$14","v":7.433679587189955E-3},{"$f":"'Population 2016'!T88/'Population 2016'!T$14","v":6.5136362480324866E-3},{"$f":"'Population 2016'!U88/'Population 2016'!U$14","v":0},{"$f":"'Population 2016'!V88/'Population 2016'!V$14","v":8.3542762899552342E-3},{"$f":"'Population 2016'!W88/'Population 2016'!W$14","v":1.1343090830822213E-2},{"$f":"'Population 2016'!X88/'Population 2016'!X$14","v":1.1343090830822213E-2},{"$f":"'Population 2016'!Y88/'Population 2016'!Y$14","v":8.358144707106217E-3},{"$f":"'Population 2016'!Z88/'Population 2016'!Z$14","v":2.1890372533751701E-2},{"$f":"'Population 2016'!AA88/'Population 2016'!AA$14","v":1.6571119668444129E-2},{"$f":"'Population 2016'!AB88/'Population 2016'!AB$14","v":2.2115299954940724E-3},{"$f":"'Population 2016'!AC88/'Population 2016'!AC$14","v":1.7810836192093206E-2},{"$f":"'Population 2016'!AD88/'Population 2016'!AD$14","v":3.7450902779892215E-3},{"$f":"'Population 2016'!AE88/'Population 2016'!AE$14","v":3.6967427205262505E-3},{"$f":"'Population 2016'!AF88/'Population 2016'!AF$14","v":2.2297566812923813E-2},{"$f":"'Population 2016'!AG88/'Population 2016'!AG$14","v":3.6967427205262505E-3},{"$f":"'Population 2016'!AH88/'Population 2016'!AH$14","v":1.4293052553835665E-2},{"$f":"'Population 2016'!AI88/'Population 2016'!AI$14","v":6.3278375708153492E-3},{"$f":"'Population 2016'!AJ88/'Population 2016'!AJ$14","v":5.5842700690353127E-3},{"$f":"'Population 2016'!AK88/'Population 2016'!AK$14","v":6.5229390021575879E-4},{"$f":"'Population 2016'!AL88/'Population 2016'!AL$14","v":2.06380559047106E-2},{"$f":"'Population 2016'!AM88/'Population 2016'!AM$14","v":1.72454620800204E-2},{"$f":"'Population 2016'!AN88/'Population 2016'!AN$14","v":0},{"$f":"'Population 2016'!AO88/'Population 2016'!AO$14","v":0},{"$f":"'Population 2016'!AP88/'Population 2016'!AP$14","v":2.7859078590785906E-3},{"$f":"'Population 2016'!AQ88/'Population 2016'!AQ$14","v":1.600021180644421E-2},{"$f":"'Population 2016'!AR88/'Population 2016'!AR$14","v":1.0280432478464474E-2},{"$f":"'Population 2016'!AS88/'Population 2016'!AS$14","v":3.690415171706817E-3},{"$f":"'Population 2016'!AT88/'Population 2016'!AT$14","v":0},{"$f":"'Population 2016'!AU88/'Population 2016'!AU$14","v":0},{"$f":"'Population 2016'!AV88/'Population 2016'!AV$14","v":8.8950825018902051E-3},{"$f":"'Population 2016'!AW88/'Population 2016'!AW$14","v":1.109692431315905E-2},{"$f":"'Population 2016'!AX88/'Population 2016'!AX$14","v":5.8357443450815357E-3},{"$f":"'Population 2016'!AY88/'Population 2016'!AY$14","v":9.7145010453978178E-3},{"$f":"'Population 2016'!AZ88/'Population 2016'!AZ$14","v":8.2666135970485121E-3},{"$f":"'Population 2016'!BA88/'Population 2016'!BA$14","v":1.8184958121060357E-2},{"$f":"'Population 2016'!BB88/'Population 2016'!BB$14","v":8.8310481059725773E-3},{"$f":"'Population 2016'!BC88/'Population 2016'!BC$14","v":0},86]
[null,"Male 50-54",{"$f":"'Population 2016'!C89/'Population 2016'!C$14","v":3.8241274460424943E-3},{"$f":"'Population 2016'!D89/'Population 2016'!D$14","v":2.3654207354252394E-3},{"$f":"'Population 2016'!E89/'Population 2016'!E$14","v":9.4836542875782249E-4},{"$f":"'Population 2016'!F89/'Population 2016'!F$14","v":4.1366804556015185E-3},{"$f":"'Population 2016'!G89/'Population 2016'!G$14","v":5.0252216447569551E-3},{"$f":"'Population 2016'!H89/'Population 2016'!H$14","v":1.7016648246583513E-2},{"$f":"'Population 2016'!I89/'Population 2016'!I$14","v":3.8075712089038587E-3},{"$f":"'Population 2016'!J89/'Population 2016'!J$14","v":9.2307692307692316E-3},{"$f":"'Population 2016'!K89/'Population 2016'!K$14","v":1.3993773695404247E-2},{"$f":"'Population 2016'!L89/'Population 2016'!L$14","v":4.9101675299722466E-3},{"$f":"'Population 2016'!M89/'Population 2016'!M$14","v":4.9101675299722466E-3},{"$f":"'Population 2016'!N89/'Population 2016'!N$14","v":1.6911451032969711E-2},{"$f":"'Population 2016'!O89/'Population 2016'!O$14","v":1.7565953469048608E-2},{"$f":"'Population 2016'!P89/'Population 2016'!P$14","v":2.8932261768082664E-3},{"$f":"'Population 2016'!Q89/'Population 2016'!Q$14","v":2.2100984498400382E-3},{"$f":"'Population 2016'!R89/'Population 2016'!R$14","v":4.243331279161898E-3},{"$f":"'Population 2016'!S89/'Population 2016'!S$14","v":7.3315099991467158E-3},{"$f":"'Population 2016'!T89/'Population 2016'!T$14","v":6.7538354155304301E-3},{"$f":"'Population 2016'!U89/'Population 2016'!U$14","v":0},{"$f":"'Population 2016'!V89/'Population 2016'!V$14","v":8.4229953663708477E-3},{"$f":"'Population 2016'!W89/'Population 2016'!W$14","v":1.0499354283254412E-2},{"$f":"'Population 2016'!X89/'Population 2016'!X$14","v":1.0499354283254412E-2},{"$f":"'Population 2016'!Y89/'Population 2016'!Y$14","v":8.8091053044240253E-3},{"$f":"'Population 2016'!Z89/'Population 2016'!Z$14","v":2.2419493845787709E-2},{"$f":"'Population 2016'!AA89/'Population 2016'!AA$14","v":1.7093346858961952E-2},{"$f":"'Population 2016'!AB89/'Population 2016'!AB$14","v":2.0639220215559434E-3},{"$f":"'Population 2016'!AC89/'Population 2016'!AC$14","v":1.8757672920083117E-2},{"$f":"'Population 2016'!AD89/'Population 2016'!AD$14","v":4.1358381796222435E-3},{"$f":"'Population 2016'!AE89/'Population 2016'!AE$14","v":3.8142093116457759E-3},{"$f":"'Population 2016'!AF89/'Population 2016'!AF$14","v":2.5628240925408854E-2},{"$f":"'Population 2016'!AG89/'Population 2016'!AG$14","v":3.8142093116457759E-3},{"$f":"'Population 2016'!AH89/'Population 2016'!AH$14","v":1.4035029577954895E-2},{"$f":"'Population 2016'!AI89/'Population 2016'!AI$14","v":6.492218996731013E-3},{"$f":"'Population 2016'!AJ89/'Population 2016'!AJ$14","v":5.5119817833520074E-3},{"$f":"'Population 2016'!AK89/'Population 2016'!AK$14","v":4.1813711552292229E-4},{"$f":"'Population 2016'!AL89/'Population 2016'!AL$14","v":2.2685102053031665E-2},{"$f":"'Population 2016'!AM89/'Population 2016'!AM$14","v":1.7236354363051813E-2},{"$f":"'Population 2016'!AN89/'Population 2016'!AN$14","v":0},{"$f":"'Population 2016'!AO89/'Population 2016'!AO$14","v":0},{"$f":"'Population 2016'!AP89/'Population 2016'!AP$14","v":3.219512195121951E-3},{"$f":"'Population 2016'!AQ89/'Population 2016'!AQ$14","v":1.5885483315829885E-2},{"$f":"'Population 2016'!AR89/'Population 2016'!AR$14","v":1.0579578793964695E-2},{"$f":"'Population 2016'!AS89/'Population 2016'!AS$14","v":3.8075712089038587E-3},{"$f":"'Population 2016'!AT89/'Population 2016'!AT$14","v":0},{"$f":"'Population 2016'!AU89/'Population 2016'!AU$14","v":0},{"$f":"'Population 2016'!AV89/'Population 2016'!AV$14","v":9.3694869019910164E-3},{"$f":"'Population 2016'!AW89/'Population 2016'!AW$14","v":1.0569438350694359E-2},{"$f":"'Population 2016'!AX89/'Population 2016'!AX$14","v":6.6905576012624935E-3},{"$f":"'Population 2016'!AY89/'Population 2016'!AY$14","v":9.5078526394268958E-3},{"$f":"'Population 2016'!AZ89/'Population 2016'!AZ$14","v":8.6263643739571058E-3},{"$f":"'Population 2016'!BA89/'Population 2016'!BA$14","v":2.3193161212330542E-2},{"$f":"'Population 2016'!BB89/'Population 2016'!BB$14","v":8.5470085470085479E-3},{"$f":"'Population 2016'!BC89/'Population 2016'!BC$14","v":0},87]
[null,"Male 55-59",{"$f":"'Population 2016'!C90/'Population 2016'!C$14","v":3.4945684954079382E-3},{"$f":"'Population 2016'!D90/'Population 2016'!D$14","v":2.2796282735186245E-3},{"$f":"'Population 2016'!E90/'Population 2016'!E$14","v":1.0993790320632081E-3},{"$f":"'Population 2016'!F90/'Population 2016'!F$14","v":3.2866776222587411E-3},{"$f":"'Population 2016'!G90/'Population 2016'!G$14","v":4.0698563130541123E-3},{"$f":"'Population 2016'!H90/'Population 2016'!H$14","v":1.6573689104082242E-2},{"$f":"'Population 2016'!I90/'Population 2016'!I$14","v":2.8849674159771546E-3},{"$f":"'Population 2016'!J90/'Population 2016'!J$14","v":8.7268828732243366E-3},{"$f":"'Population 2016'!K90/'Population 2016'!K$14","v":1.3192368153376691E-2},{"$f":"'Population 2016'!L90/'Population 2016'!L$14","v":4.3708356273665996E-3},{"$f":"'Population 2016'!M90/'Population 2016'!M$14","v":4.3708356273665996E-3},{"$f":"'Population 2016'!N90/'Population 2016'!N$14","v":1.6302029374123957E-2},{"$f":"'Population 2016'!O90/'Population 2016'!O$14","v":1.6410469464063149E-2},{"$f":"'Population 2016'!P90/'Population 2016'!P$14","v":2.6482969766551856E-3},{"$f":"'Population 2016'!Q90/'Population 2016'!Q$14","v":1.7309861984761139E-3},{"$f":"'Population 2016'!R90/'Population 2016'!R$14","v":3.3981864600757107E-3},{"$f":"'Population 2016'!S90/'Population 2016'!S$14","v":6.3884061095168167E-3},{"$f":"'Population 2016'!T90/'Population 2016'!T$14","v":5.3239439007779629E-3},{"$f":"'Population 2016'!U90/'Population 2016'!U$14","v":0},{"$f":"'Population 2016'!V90/'Population 2016'!V$14","v":7.1369669363072329E-3},{"$f":"'Population 2016'!W90/'Population 2016'!W$14","v":1.0387430047352561E-2},{"$f":"'Population 2016'!X90/'Population 2016'!X$14","v":1.0387430047352561E-2},{"$f":"'Population 2016'!Y90/'Population 2016'!Y$14","v":7.8969350053039108E-3},{"$f":"'Population 2016'!Z90/'Population 2016'!Z$14","v":1.961676829338737E-2},{"$f":"'Population 2016'!AA90/'Population 2016'!AA$14","v":1.5236353686289951E-2},{"$f":"'Population 2016'!AB90/'Population 2016'!AB$14","v":1.9965920685315339E-3},{"$f":"'Population 2016'!AC90/'Population 2016'!AC$14","v":1.6436312669963635E-2},{"$f":"'Population 2016'!AD90/'Population 2016'!AD$14","v":3.7907621106476265E-3},{"$f":"'Population 2016'!AE90/'Population 2016'!AE$14","v":3.6898329210486311E-3},{"$f":"'Population 2016'!AF90/'Population 2016'!AF$14","v":2.2437175907459115E-2},{"$f":"'Population 2016'!AG90/'Population 2016'!AG$14","v":3.6898329210486311E-3},{"$f":"'Population 2016'!AH90/'Population 2016'!AH$14","v":1.3031343873611351E-2},{"$f":"'Population 2016'!AI90/'Population 2016'!AI$14","v":5.2195339362911819E-3},{"$f":"'Population 2016'!AJ90/'Population 2016'!AJ$14","v":4.8613872122022627E-3},{"$f":"'Population 2016'!AK90/'Population 2016'!AK$14","v":4.5158808476475603E-4},{"$f":"'Population 2016'!AL90/'Population 2016'!AL$14","v":2.2266115999281737E-2},{"$f":"'Population 2016'!AM90/'Population 2016'!AM$14","v":1.5423918686302905E-2},{"$f":"'Population 2016'!AN90/'Population 2016'!AN$14","v":0},{"$f":"'Population 2016'!AO90/'Population 2016'!AO$14","v":0},{"$f":"'Population 2016'!AP90/'Population 2016'!AP$14","v":2.5257452574525747E-3},{"$f":"'Population 2016'!AQ90/'Population 2016'!AQ$14","v":1.4782324752230586E-2},{"$f":"'Population 2016'!AR90/'Population 2016'!AR$14","v":9.5276955332354706E-3},{"$f":"'Population 2016'!AS90/'Population 2016'!AS$14","v":2.8849674159771546E-3},{"$f":"'Population 2016'!AT90/'Population 2016'!AT$14","v":0},{"$f":"'Population 2016'!AU90/'Population 2016'!AU$14","v":0},{"$f":"'Population 2016'!AV90/'Population 2016'!AV$14","v":9.7104650645634741E-3},{"$f":"'Population 2016'!AW90/'Population 2016'!AW$14","v":1.0441264191590789E-2},{"$f":"'Population 2016'!AX90/'Population 2016'!AX$14","v":6.3453445554971068E-3},{"$f":"'Population 2016'!AY90/'Population 2016'!AY$14","v":9.0824000388985242E-3},{"$f":"'Population 2016'!AZ90/'Population 2016'!AZ$14","v":7.9221713638381579E-3},{"$f":"'Population 2016'!BA90/'Population 2016'!BA$14","v":1.9048441412658663E-2},{"$f":"'Population 2016'!BB90/'Population 2016'!BB$14","v":7.0149163804752931E-3},{"$f":"'Population 2016'!BC90/'Population 2016'!BC$14","v":0},88]
[null,"Male 60-64",{"$f":"'Population 2016'!C91/'Population 2016'!C$14","v":3.1463552645487839E-3},{"$f":"'Population 2016'!D91/'Population 2016'!D$14","v":1.8598580134755445E-3},{"$f":"'Population 2016'!E91/'Population 2016'!E$14","v":6.1009495735375838E-4},{"$f":"'Population 2016'!F91/'Population 2016'!F$14","v":2.776675922253074E-3},{"$f":"'Population 2016'!G91/'Population 2016'!G$14","v":3.9552124732497706E-3},{"$f":"'Population 2016'!H91/'Population 2016'!H$14","v":1.4165921091872358E-2},{"$f":"'Population 2016'!I91/'Population 2016'!I$14","v":2.2552537160430547E-3},{"$f":"'Population 2016'!J91/'Population 2016'!J$14","v":6.807826320021442E-3},{"$f":"'Population 2016'!K91/'Population 2016'!K$14","v":1.0264155595968313E-2},{"$f":"'Population 2016'!L91/'Population 2016'!L$14","v":3.6180181799795501E-3},{"$f":"'Population 2016'!M91/'Population 2016'!M$14","v":3.6180181799795501E-3},{"$f":"'Population 2016'!N91/'Population 2016'!N$14","v":1.3143193775773457E-2},{"$f":"'Population 2016'!O91/'Population 2016'!O$14","v":1.3567199833818031E-2},{"$f":"'Population 2016'!P91/'Population 2016'!P$14","v":2.4492920015308076E-3},{"$f":"'Population 2016'!Q91/'Population 2016'!Q$14","v":1.3446053506019813E-3},{"$f":"'Population 2016'!R91/'Population 2016'!R$14","v":2.5706488247204859E-3},{"$f":"'Population 2016'!S91/'Population 2016'!S$14","v":5.3465008600209283E-3},{"$f":"'Population 2016'!T91/'Population 2016'!T$14","v":4.549654819666943E-3},{"$f":"'Population 2016'!U91/'Population 2016'!U$14","v":0},{"$f":"'Population 2016'!V91/'Population 2016'!V$14","v":6.1159978009895548E-3},{"$f":"'Population 2016'!W91/'Population 2016'!W$14","v":8.6870426173052094E-3},{"$f":"'Population 2016'!X91/'Population 2016'!X$14","v":8.6870426173052094E-3},{"$f":"'Population 2016'!Y91/'Population 2016'!Y$14","v":6.4466867207477749E-3},{"$f":"'Population 2016'!Z91/'Population 2016'!Z$14","v":1.5808943305460114E-2},{"$f":"'Population 2016'!AA91/'Population 2016'!AA$14","v":1.2371612197091545E-2},{"$f":"'Population 2016'!AB91/'Population 2016'!AB$14","v":1.6236877133194185E-3},{"$f":"'Population 2016'!AC91/'Population 2016'!AC$14","v":1.325700240509411E-2},{"$f":"'Population 2016'!AD91/'Population 2016'!AD$14","v":3.2731480071857017E-3},{"$f":"'Population 2016'!AE91/'Population 2016'!AE$14","v":3.0264921711971918E-3},{"$f":"'Population 2016'!AF91/'Population 2016'!AF$14","v":1.9226166733147188E-2},{"$f":"'Population 2016'!AG91/'Population 2016'!AG$14","v":3.0264921711971918E-3},{"$f":"'Population 2016'!AH91/'Population 2016'!AH$14","v":1.0744644839658842E-2},{"$f":"'Population 2016'!AI91/'Population 2016'!AI$14","v":4.3891535373357668E-3},{"$f":"'Population 2016'!AJ91/'Population 2016'!AJ$14","v":4.4095854266816064E-3},{"$f":"'Population 2016'!AK91/'Population 2016'!AK$14","v":3.3450969241833781E-4},{"$f":"'Population 2016'!AL91/'Population 2016'!AL$14","v":1.8854372418746632E-2},{"$f":"'Population 2016'!AM91/'Population 2016'!AM$14","v":1.2395602794247566E-2},{"$f":"'Population 2016'!AN91/'Population 2016'!AN$14","v":0},{"$f":"'Population 2016'!AO91/'Population 2016'!AO$14","v":0},{"$f":"'Population 2016'!AP91/'Population 2016'!AP$14","v":2.1029810298102982E-3},{"$f":"'Population 2016'!AQ91/'Population 2016'!AQ$14","v":1.0555021136518079E-2},{"$f":"'Population 2016'!AR91/'Population 2016'!AR$14","v":7.8391234669109508E-3},{"$f":"'Population 2016'!AS91/'Population 2016'!AS$14","v":2.2552537160430547E-3},{"$f":"'Population 2016'!AT91/'Population 2016'!AT$14","v":0},{"$f":"'Population 2016'!AU91/'Population 2016'!AU$14","v":0},{"$f":"'Population 2016'!AV91/'Population 2016'!AV$14","v":9.0433338769217077E-3},{"$f":"'Population 2016'!AW91/'Population 2016'!AW$14","v":8.9574018111994638E-3},{"$f":"'Population 2016'!AX91/'Population 2016'!AX$14","v":4.9644923724355599E-3},{"$f":"'Population 2016'!AY91/'Population 2016'!AY$14","v":7.5001215578858653E-3},{"$f":"'Population 2016'!AZ91/'Population 2016'!AZ$14","v":6.4448968969581921E-3},{"$f":"'Population 2016'!BA91/'Population 2016'!BA$14","v":1.6976081512822726E-2},{"$f":"'Population 2016'!BB91/'Population 2016'!BB$14","v":5.5861113262925949E-3},{"$f":"'Population 2016'!BC91/'Population 2016'!BC$14","v":0},89]
[null,"Male 65-69",0,0,0,0,0,0,0,0,0,0,0,0,0,0,0,0,0,0,0,0,0,0,0,0,0,0,0,0,0,0,0,0,0,0,0,0,0,0,0,0,0,0,0,0,0,0,0,0,0,0,0,0,0,90]
[null,"Male 70-74",0,0,0,0,0,0,0,0,0,0,0,0,0,0,0,0,0,0,0,0,0,0,0,0,0,0,0,0,0,0,0,0,0,0,0,0,0,0,0,0,0,0,0,0,0,0,0,0,0,0,0,0,0,91]
[null,"Male 75-79",0,0,0,0,0,0,0,0,0,0,0,0,0,0,0,0,0,0,0,0,0,0,0,0,0,0,0,0,0,0,0,0,0,0,0,0,0,0,0,0,0,0,0,0,0,0,0,0,0,0,0,0,0,92]
[null,"Male 80-84",0,0,0,0,0,0,0,0,0,0,0,0,0,0,0,0,0,0,0,0,0,0,0,0,0,0,0,0,0,0,0,0,0,0,0,0,0,0,0,0,0,0,0,0,0,0,0,0,0,0,0,0,0,93]
[null,"Male 85-89",0,0,0,0,0,0,0,0,0,0,0,0,0,0,0,0,0,0,0,0,0,0,0,0,0,0,0,0,0,0,0,0,0,0,0,0,0,0,0,0,0,0,0,0,0,0,0,0,0,0,0,0,0,94]
[null,"Male 90+",0,0,0,0,0,0,0,0,0,0,0,0,0,0,0,0,0,0,0,0,0,0,0,0,0,0,0,0,0,0,0,0,0,0,0,0,0,0,0,0,0,0,0,0,0,0,0,0,0,0,0,0,0,95]
["SIMD Q2","Female 0-4",{"$f":"'Population 2016'!C98/'Population 2016'!C$14","v":0},{"$f":"'Population 2016'!D98/'Population 2016'!D$14","v":0},{"$f":"'Population 2016'!E98/'Population 2016'!E$14","v":0},{"$f":"'Population 2016'!F98/'Population 2016'!F$14","v":0},{"$f":"'Population 2016'!G98/'Population 2016'!G$14","v":0},{"$f":"'Population 2016'!H98/'Population 2016'!H$14","v":0},{"$f":"'Population 2016'!I98/'Population 2016'!I$14","v":0},{"$f":"'Population 2016'!J98/'Population 2016'!J$14","v":0},{"$f":"'Population 2016'!K98/'Population 2016'!K$14","v":0},{"$f":"'Population 2016'!L98/'Population 2016'!L$14","v":0},{"$f":"'Population 2016'!M98/'Population 2016'!M$14","v":0},{"$f":"'Population 2016'!N98/'Population 2016'!N$14","v":0},{"$f":"'Population 2016'!O98/'Population 2016'!O$14","v":0},{"$f":"'Population 2016'!P98/'Population 2016'!P$14","v":0},{"$f":"'Population 2016'!Q98/'Population 2016'!Q$14","v":0},{"$f":"'Population 2016'!R98/'Population 2016'!R$14","v":0},{"$f":"'Population 2016'!S98/'Population 2016'!S$14","v":0},{"$f":"'Population 2016'!T98/'Population 2016'!T$14","v":0},{"$f":"'Population 2016'!U98/'Population 2016'!U$14","v":0},{"$f":"'Population 2016'!V98/'Population 2016'!V$14","v":0},{"$f":"'Population 2016'!W98/'Population 2016'!W$14","v":0},{"$f":"'Population 2016'!X98/'Population 2016'!X$14","v":0},{"$f":"'Population 2016'!Y98/'Population 2016'!Y$14","v":0},{"$f":"'Population 2016'!Z98/'Population 2016'!Z$14","v":0},{"$f":"'Population 2016'!AA98/'Population 2016'!AA$14","v":0},{"$f":"'Population 2016'!AB98/'Population 2016'!AB$14","v":0},{"$f":"'Population 2016'!AC98/'Population 2016'!AC$14","v":0},{"$f":"'Population 2016'!AD98/'Population 2016'!AD$14","v":0},{"$f":"'Population 2016'!AE98/'Population 2016'!AE$14","v":0},{"$f":"'Population 2016'!AF98/'Population 2016'!AF$14","v":0},{"$f":"'Population 2016'!AG98/'Population 2016'!AG$14","v":0},{"$f":"'Population 2016'!AH98/'Population 2016'!AH$14","v":0},{"$f":"'Population 2016'!AI98/'Population 2016'!AI$14","v":0},{"$f":"'Population 2016'!AJ98/'Population 2016'!AJ$14","v":0},{"$f":"'Population 2016'!AK98/'Population 2016'!AK$14","v":0},{"$f":"'Population 2016'!AL98/'Population 2016'!AL$14","v":0},{"$f":"'Population 2016'!AM98/'Population 2016'!AM$14","v":0},{"$f":"'Population 2016'!AN98/'Population 2016'!AN$14","v":0},{"$f":"'Population 2016'!AO98/'Population 2016'!AO$14","v":0},{"$f":"'Population 2016'!AP98/'Population 2016'!AP$14","v":0},{"$f":"'Population 2016'!AQ98/'Population 2016'!AQ$14","v":0},{"$f":"'Population 2016'!AR98/'Population 2016'!AR$14","v":0},{"$f":"'Population 2016'!AS98/'Population 2016'!AS$14","v":0},{"$f":"'Population 2016'!AT98/'Population 2016'!AT$14","v":0},{"$f":"'Population 2016'!AU98/'Population 2016'!AU$14","v":0},{"$f":"'Population 2016'!AV98/'Population 2016'!AV$14","v":0},{"$f":"'Population 2016'!AW98/'Population 2016'!AW$14","v":0},{"$f":"'Population 2016'!AX98/'Population 2016'!AX$14","v":0},{"$f":"'Population 2016'!AY98/'Population 2016'!AY$14","v":0},{"$f":"'Population 2016'!AZ98/'Population 2016'!AZ$14","v":0},{"$f":"'Population 2016'!BA98/'Population 2016'!BA$14","v":0},{"$f":"'Population 2016'!BB98/'Population 2016'!BB$14","v":0},{"$f":"'Population 2016'!BC98/'Population 2016'!BC$14","v":0},96]
[null,"Female 5-9",{"$f":"'Population 2016'!C99/'Population 2016'!C$14","v":0},{"$f":"'Population 2016'!D99/'Population 2016'!D$14","v":0},{"$f":"'Population 2016'!E99/'Population 2016'!E$14","v":0},{"$f":"'Population 2016'!F99/'Population 2016'!F$14","v":0},{"$f":"'Population 2016'!G99/'Population 2016'!G$14","v":0},{"$f":"'Population 2016'!H99/'Population 2016'!H$14","v":0},{"$f":"'Population 2016'!I99/'Population 2016'!I$14","v":0},{"$f":"'Population 2016'!J99/'Population 2016'!J$14","v":0},{"$f":"'Population 2016'!K99/'Population 2016'!K$14","v":0},{"$f":"'Population 2016'!L99/'Population 2016'!L$14","v":0},{"$f":"'Population 2016'!M99/'Population 2016'!M$14","v":0},{"$f":"'Population 2016'!N99/'Population 2016'!N$14","v":0},{"$f":"'Population 2016'!O99/'Population 2016'!O$14","v":0},{"$f":"'Population 2016'!P99/'Population 2016'!P$14","v":0},{"$f":"'Population 2016'!Q99/'Population 2016'!Q$14","v":0},{"$f":"'Population 2016'!R99/'Population 2016'!R$14","v":0},{"$f":"'Population 2016'!S99/'Population 2016'!S$14","v":0},{"$f":"'Population 2016'!T99/'Population 2016'!T$14","v":0},{"$f":"'Population 2016'!U99/'Population 2016'!U$14","v":0},{"$f":"'Population 2016'!V99/'Population 2016'!V$14","v":0},{"$f":"'Population 2016'!W99/'Population 2016'!W$14","v":0},{"$f":"'Population 2016'!X99/'Population 2016'!X$14","v":0},{"$f":"'Population 2016'!Y99/'Population 2016'!Y$14","v":0},{"$f":"'Population 2016'!Z99/'Population 2016'!Z$14","v":0},{"$f":"'Population 2016'!AA99/'Population 2016'!AA$14","v":0},{"$f":"'Population 2016'!AB99/'Population 2016'!AB$14","v":0},{"$f":"'Population 2016'!AC99/'Population 2016'!AC$14","v":0},{"$f":"'Population 2016'!AD99/'Population 2016'!AD$14","v":0},{"$f":"'Population 2016'!AE99/'Population 2016'!AE$14","v":0},{"$f":"'Population 2016'!AF99/'Population 2016'!AF$14","v":0},{"$f":"'Population 2016'!AG99/'Population 2016'!AG$14","v":0},{"$f":"'Population 2016'!AH99/'Population 2016'!AH$14","v":0},{"$f":"'Population 2016'!AI99/'Population 2016'!AI$14","v":0},{"$f":"'Population 2016'!AJ99/'Population 2016'!AJ$14","v":0},{"$f":"'Population 2016'!AK99/'Population 2016'!AK$14","v":0},{"$f":"'Population 2016'!AL99/'Population 2016'!AL$14","v":0},{"$f":"'Population 2016'!AM99/'Population 2016'!AM$14","v":0},{"$f":"'Population 2016'!AN99/'Population 2016'!AN$14","v":0},{"$f":"'Population 2016'!AO99/'Population 2016'!AO$14","v":0},{"$f":"'Population 2016'!AP99/'Population 2016'!AP$14","v":0},{"$f":"'Population 2016'!AQ99/'Population 2016'!AQ$14","v":0},{"$f":"'Population 2016'!AR99/'Population 2016'!AR$14","v":0},{"$f":"'Population 2016'!AS99/'Population 2016'!AS$14","v":0},{"$f":"'Population 2016'!AT99/'Population 2016'!AT$14","v":0},{"$f":"'Population 2016'!AU99/'Population 2016'!AU$14","v":0},{"$f":"'Population 2016'!AV99/'Population 2016'!AV$14","v":0},{"$f":"'Population 2016'!AW99/'Population 2016'!AW$14","v":0},{"$f":"'Population 2016'!AX99/'Population 2016'!AX$14","v":0},{"$f":"'Population 2016'!AY99/'Population 2016'!AY$14","v":0},{"$f":"'Population 2016'!AZ99/'Population 2016'!AZ$14","v":0},{"$f":"'Population 2016'!BA99/'Population 2016'!BA$14","v":0},{"$f":"'Population 2016'!BB99/'Population 2016'!BB$14","v":0},{"$f":"'Population 2016'!BC99/'Population 2016'!BC$14","v":0},97]
[null,"Female 10-15",{"$f":"'Population 2016'!C100/'Population 2016'!C$14","v":0},{"$f":"'Population 2016'!D100/'Population 2016'!D$14","v":0},{"$f":"'Population 2016'!E100/'Population 2016'!E$14","v":0},{"$f":"'Population 2016'!F100/'Population 2016'!F$14","v":0},{"$f":"'Population 2016'!G100/'Population 2016'!G$14","v":0},{"$f":"'Population 2016'!H100/'Population 2016'!H$14","v":0},{"$f":"'Population 2016'!I100/'Population 2016'!I$14","v":0},{"$f":"'Population 2016'!J100/'Population 2016'!J$14","v":0},{"$f":"'Population 2016'!K100/'Population 2016'!K$14","v":0},{"$f":"'Population 2016'!L100/'Population 2016'!L$14","v":0},{"$f":"'Population 2016'!M100/'Population 2016'!M$14","v":0},{"$f":"'Population 2016'!N100/'Population 2016'!N$14","v":0},{"$f":"'Population 2016'!O100/'Population 2016'!O$14","v":0},{"$f":"'Population 2016'!P100/'Population 2016'!P$14","v":0},{"$f":"'Population 2016'!Q100/'Population 2016'!Q$14","v":0},{"$f":"'Population 2016'!R100/'Population 2016'!R$14","v":0},{"$f":"'Population 2016'!S100/'Population 2016'!S$14","v":0},{"$f":"'Population 2016'!T100/'Population 2016'!T$14","v":0},{"$f":"'Population 2016'!U100/'Population 2016'!U$14","v":0},{"$f":"'Population 2016'!V100/'Population 2016'!V$14","v":0},{"$f":"'Population 2016'!W100/'Population 2016'!W$14","v":0},{"$f":"'Population 2016'!X100/'Population 2016'!X$14","v":0},{"$f":"'Population 2016'!Y100/'Population 2016'!Y$14","v":0},{"$f":"'Population 2016'!Z100/'Population 2016'!Z$14","v":0},{"$f":"'Population 2016'!AA100/'Population 2016'!AA$14","v":0},{"$f":"'Population 2016'!AB100/'Population 2016'!AB$14","v":0},{"$f":"'Population 2016'!AC100/'Population 2016'!AC$14","v":0},{"$f":"'Population 2016'!AD100/'Population 2016'!AD$14","v":0},{"$f":"'Population 2016'!AE100/'Population 2016'!AE$14","v":0},{"$f":"'Population 2016'!AF100/'Population 2016'!AF$14","v":0},{"$f":"'Population 2016'!AG100/'Population 2016'!AG$14","v":0},{"$f":"'Population 2016'!AH100/'Population 2016'!AH$14","v":0},{"$f":"'Population 2016'!AI100/'Population 2016'!AI$14","v":0},{"$f":"'Population 2016'!AJ100/'Population 2016'!AJ$14","v":0},{"$f":"'Population 2016'!AK100/'Population 2016'!AK$14","v":0},{"$f":"'Population 2016'!AL100/'Population 2016'!AL$14","v":0},{"$f":"'Population 2016'!AM100/'Population 2016'!AM$14","v":0},{"$f":"'Population 2016'!AN100/'Population 2016'!AN$14","v":0},{"$f":"'Population 2016'!AO100/'Population 2016'!AO$14","v":0},{"$f":"'Population 2016'!AP100/'Population 2016'!AP$14","v":0},{"$f":"'Population 2016'!AQ100/'Population 2016'!AQ$14","v":0},{"$f":"'Population 2016'!AR100/'Population 2016'!AR$14","v":0},{"$f":"'Population 2016'!AS100/'Population 2016'!AS$14","v":0},{"$f":"'Population 2016'!AT100/'Population 2016'!AT$14","v":0},{"$f":"'Population 2016'!AU100/'Population 2016'!AU$14","v":0},{"$f":"'Population 2016'!AV100/'Population 2016'!AV$14","v":0},{"$f":"'Population 2016'!AW100/'Population 2016'!AW$14","v":0},{"$f":"'Population 2016'!AX100/'Population 2016'!AX$14","v":0},{"$f":"'Population 2016'!AY100/'Population 2016'!AY$14","v":0},{"$f":"'Population 2016'!AZ100/'Population 2016'!AZ$14","v":0},{"$f":"'Population 2016'!BA100/'Population 2016'!BA$14","v":0},{"$f":"'Population 2016'!BB100/'Population 2016'!BB$14","v":0},{"$f":"'Population 2016'!BC100/'Population 2016'!BC$14","v":0},98]
[null,"Female 16-19",{"$f":"'Population 2016'!C101/'Population 2016'!C$14","v":5.9631515784630117E-3},{"$f":"'Population 2016'!D101/'Population 2016'!D$14","v":4.1119101385241859E-3},{"$f":"'Population 2016'!E101/'Population 2016'!E$14","v":2.3135284026385098E-3},{"$f":"'Population 2016'!F101/'Population 2016'!F$14","v":5.4825182750609172E-3},{"$f":"'Population 2016'!G101/'Population 2016'!G$14","v":5.3691531641699786E-3},{"$f":"'Population 2016'!H101/'Population 2016'!H$14","v":8.100450853463852E-3},{"$f":"'Population 2016'!I101/'Population 2016'!I$14","v":5.3013106831661418E-3},{"$f":"'Population 2016'!J101/'Population 2016'!J$14","v":6.9257571696596087E-3},{"$f":"'Population 2016'!K101/'Population 2016'!K$14","v":1.0140862435656381E-2},{"$f":"'Population 2016'!L101/'Population 2016'!L$14","v":9.932695872987337E-3},{"$f":"'Population 2016'!M101/'Population 2016'!M$14","v":9.932695872987337E-3},{"$f":"'Population 2016'!N101/'Population 2016'!N$14","v":6.7848944684827436E-3},{"$f":"'Population 2016'!O101/'Population 2016'!O$14","v":8.9582467802243465E-3},{"$f":"'Population 2016'!P101/'Population 2016'!P$14","v":5.4955989284347492E-3},{"$f":"'Population 2016'!Q101/'Population 2016'!Q$14","v":8.531289121060848E-3},{"$f":"'Population 2016'!R101/'Population 2016'!R$14","v":3.7855445021568799E-3},{"$f":"'Population 2016'!S101/'Population 2016'!S$14","v":6.6387777373590395E-3},{"$f":"'Population 2016'!T101/'Population 2016'!T$14","v":4.5383513294317453E-3},{"$f":"'Population 2016'!U101/'Population 2016'!U$14","v":7.3962642597467723E-3},{"$f":"'Population 2016'!V101/'Population 2016'!V$14","v":9.1200031414434939E-3},{"$f":"'Population 2016'!W101/'Population 2016'!W$14","v":6.7025398191993112E-3},{"$f":"'Population 2016'!X101/'Population 2016'!X$14","v":6.7025398191993112E-3},{"$f":"'Population 2016'!Y101/'Population 2016'!Y$14","v":8.0711697815403372E-3},{"$f":"'Population 2016'!Z101/'Population 2016'!Z$14","v":5.547686769425568E-3},{"$f":"'Population 2016'!AA101/'Population 2016'!AA$14","v":7.0492328432517565E-3},{"$f":"'Population 2016'!AB101/'Population 2016'!AB$14","v":4.1848155418248486E-3},{"$f":"'Population 2016'!AC101/'Population 2016'!AC$14","v":5.8459116620655982E-3},{"$f":"'Population 2016'!AD101/'Population 2016'!AD$14","v":6.2824143145672846E-3},{"$f":"'Population 2016'!AE101/'Population 2016'!AE$14","v":6.6126781000815354E-3},{"$f":"'Population 2016'!AF101/'Population 2016'!AF$14","v":4.6071001196649379E-3},{"$f":"'Population 2016'!AG101/'Population 2016'!AG$14","v":6.6126781000815354E-3},{"$f":"'Population 2016'!AH101/'Population 2016'!AH$14","v":9.2604209325281746E-3},{"$f":"'Population 2016'!AI101/'Population 2016'!AI$14","v":6.7684475784243444E-3},{"$f":"'Population 2016'!AJ101/'Population 2016'!AJ$14","v":1.3734774279827954E-2},{"$f":"'Population 2016'!AK101/'Population 2016'!AK$14","v":4.5827827861312283E-3},{"$f":"'Population 2016'!AL101/'Population 2016'!AL$14","v":6.715747890105944E-3},{"$f":"'Population 2016'!AM101/'Population 2016'!AM$14","v":1.0000273231509057E-2},{"$f":"'Population 2016'!AN101/'Population 2016'!AN$14","v":3.6657439964090672E-3},{"$f":"'Population 2016'!AO101/'Population 2016'!AO$14","v":3.6657439964090672E-3},{"$f":"'Population 2016'!AP101/'Population 2016'!AP$14","v":3.9241192411924117E-3},{"$f":"'Population 2016'!AQ101/'Population 2016'!AQ$14","v":6.6630777241397567E-3},{"$f":"'Population 2016'!AR101/'Population 2016'!AR$14","v":6.6250593493109178E-3},{"$f":"'Population 2016'!AS101/'Population 2016'!AS$14","v":5.3013106831661418E-3},{"$f":"'Population 2016'!AT101/'Population 2016'!AT$14","v":9.6127437517165614E-4},{"$f":"'Population 2016'!AU101/'Population 2016'!AU$14","v":9.6127437517165614E-4},{"$f":"'Population 2016'!AV101/'Population 2016'!AV$14","v":8.8357819518776037E-3},{"$f":"'Population 2016'!AW101/'Population 2016'!AW$14","v":8.4594945008355966E-3},{"$f":"'Population 2016'!AX101/'Population 2016'!AX$14","v":5.2110731194108363E-3},{"$f":"'Population 2016'!AY101/'Population 2016'!AY$14","v":6.02521920938751E-3},{"$f":"'Population 2016'!AZ101/'Population 2016'!AZ$14","v":5.423051605100807E-3},{"$f":"'Population 2016'!BA101/'Population 2016'!BA$14","v":9.9645971850444697E-3},{"$f":"'Population 2016'!BB101/'Population 2016'!BB$14","v":9.2614110740998953E-3},{"$f":"'Population 2016'!BC101/'Population 2016'!BC$14","v":7.3962642597467723E-3},99]
[null,"Female 20-24",{"$f":"'Population 2016'!C102/'Population 2016'!C$14","v":1.3636278844180798E-2},{"$f":"'Population 2016'!D102/'Population 2016'!D$14","v":8.5424779927015127E-3},{"$f":"'Population 2016'!E102/'Population 2016'!E$14","v":3.5941237586681806E-3},{"$f":"'Population 2016'!F102/'Population 2016'!F$14","v":1.0667535558451862E-2},{"$f":"'Population 2016'!G102/'Population 2016'!G$14","v":6.974166921430755E-3},{"$f":"'Population 2016'!H102/'Population 2016'!H$14","v":1.0973106678595863E-2},{"$f":"'Population 2016'!I102/'Population 2016'!I$14","v":8.0984110712455145E-3},{"$f":"'Population 2016'!J102/'Population 2016'!J$14","v":1.1064057893326186E-2},{"$f":"'Population 2016'!K102/'Population 2016'!K$14","v":1.158955706932158E-2},{"$f":"'Population 2016'!L102/'Population 2016'!L$14","v":1.241586984123417E-2},{"$f":"'Population 2016'!M102/'Population 2016'!M$14","v":1.241586984123417E-2},{"$f":"'Population 2016'!N102/'Population 2016'!N$14","v":1.6464541816482825E-2},{"$f":"'Population 2016'!O102/'Population 2016'!O$14","v":1.1606771915247196E-2},{"$f":"'Population 2016'!P102/'Population 2016'!P$14","v":7.8683505549177191E-3},{"$f":"'Population 2016'!Q102/'Population 2016'!Q$14","v":1.4357912307002766E-2},{"$f":"'Population 2016'!R102/'Population 2016'!R$14","v":4.8067611585526897E-3},{"$f":"'Population 2016'!S102/'Population 2016'!S$14","v":1.1317246675558789E-2},{"$f":"'Population 2016'!T102/'Population 2016'!T$14","v":1.1597380981312504E-2},{"$f":"'Population 2016'!U102/'Population 2016'!U$14","v":9.025949605114705E-3},{"$f":"'Population 2016'!V102/'Population 2016'!V$14","v":1.2791565224220529E-2},{"$f":"'Population 2016'!W102/'Population 2016'!W$14","v":9.0658631080499357E-3},{"$f":"'Population 2016'!X102/'Population 2016'!X$14","v":9.0658631080499357E-3},{"$f":"'Population 2016'!Y102/'Population 2016'!Y$14","v":1.1965829485648692E-2},{"$f":"'Population 2016'!Z102/'Population 2016'!Z$14","v":1.0554699359740106E-2},{"$f":"'Population 2016'!AA102/'Population 2016'!AA$14","v":1.0621400302991878E-2},{"$f":"'Population 2016'!AB102/'Population 2016'!AB$14","v":8.6596678043702312E-3},{"$f":"'Population 2016'!AC102/'Population 2016'!AC$14","v":9.5147429563720819E-3},{"$f":"'Population 2016'!AD102/'Population 2016'!AD$14","v":8.0839143805377101E-3},{"$f":"'Population 2016'!AE102/'Population 2016'!AE$14","v":8.4852337585163279E-3},{"$f":"'Population 2016'!AF102/'Population 2016'!AF$14","v":5.7638611886717192E-3},{"$f":"'Population 2016'!AG102/'Population 2016'!AG$14","v":8.4852337585163279E-3},{"$f":"'Population 2016'!AH102/'Population 2016'!AH$14","v":1.2654961734482523E-2},{"$f":"'Population 2016'!AI102/'Population 2016'!AI$14","v":1.2576026409485994E-2},{"$f":"'Population 2016'!AJ102/'Population 2016'!AJ$14","v":1.7222684064047422E-2},{"$f":"'Population 2016'!AK102/'Population 2016'!AK$14","v":9.2993694492297923E-3},{"$f":"'Population 2016'!AL102/'Population 2016'!AL$14","v":9.1219249416412285E-3},{"$f":"'Population 2016'!AM102/'Population 2016'!AM$14","v":1.2755357614506772E-2},{"$f":"'Population 2016'!AN102/'Population 2016'!AN$14","v":6.5833769731428148E-3},{"$f":"'Population 2016'!AO102/'Population 2016'!AO$14","v":6.5833769731428148E-3},{"$f":"'Population 2016'!AP102/'Population 2016'!AP$14","v":6.2439024390243906E-3},{"$f":"'Population 2016'!AQ102/'Population 2016'!AQ$14","v":8.4722577684426051E-3},{"$f":"'Population 2016'!AR102/'Population 2016'!AR$14","v":1.0572988405787966E-2},{"$f":"'Population 2016'!AS102/'Population 2016'!AS$14","v":8.0984110712455145E-3},{"$f":"'Population 2016'!AT102/'Population 2016'!AT$14","v":1.7852238396045043E-3},{"$f":"'Population 2016'!AU102/'Population 2016'!AU$14","v":1.7852238396045043E-3},{"$f":"'Population 2016'!AV102/'Population 2016'!AV$14","v":1.2542066327665189E-2},{"$f":"'Population 2016'!AW102/'Population 2016'!AW$14","v":1.2546278266099414E-2},{"$f":"'Population 2016'!AX102/'Population 2016'!AX$14","v":1.0783798001052078E-2},{"$f":"'Population 2016'!AY102/'Population 2016'!AY$14","v":1.0243277848911651E-2},{"$f":"'Population 2016'!AZ102/'Population 2016'!AZ$14","v":1.1290050977450516E-2},{"$f":"'Population 2016'!BA102/'Population 2016'!BA$14","v":1.3504878680597531E-2},{"$f":"'Population 2016'!BB102/'Population 2016'!BB$14","v":1.2351417185254043E-2},{"$f":"'Population 2016'!BC102/'Population 2016'!BC$14","v":9.025949605114705E-3},100]
[null,"Female 25-29",{"$f":"'Population 2016'!C103/'Population 2016'!C$14","v":1.5526579240273347E-2},{"$f":"'Population 2016'!D103/'Population 2016'!D$14","v":9.688420162454154E-3},{"$f":"'Population 2016'!E103/'Population 2016'!E$14","v":4.0169618479232606E-3},{"$f":"'Population 2016'!F103/'Population 2016'!F$14","v":1.0993369977899927E-2},{"$f":"'Population 2016'!G103/'Population 2016'!G$14","v":8.177927239376338E-3},{"$f":"'Population 2016'!H103/'Population 2016'!H$14","v":1.1793238952335841E-2},{"$f":"'Population 2016'!I103/'Population 2016'!I$14","v":8.2009226037929265E-3},{"$f":"'Population 2016'!J103/'Population 2016'!J$14","v":1.0924685071026535E-2},{"$f":"'Population 2016'!K103/'Population 2016'!K$14","v":1.3377307893844588E-2},{"$f":"'Population 2016'!L103/'Population 2016'!L$14","v":1.2045079158192789E-2},{"$f":"'Population 2016'!M103/'Population 2016'!M$14","v":1.2045079158192789E-2},{"$f":"'Population 2016'!N103/'Population 2016'!N$14","v":1.5205070388201597E-2},{"$f":"'Population 2016'!O103/'Population 2016'!O$14","v":1.3190693809721645E-2},{"$f":"'Population 2016'!P103/'Population 2016'!P$14","v":8.9399158055874471E-3},{"$f":"'Population 2016'!Q103/'Population 2016'!Q$14","v":1.4327001839172836E-2},{"$f":"'Population 2016'!R103/'Population 2016'!R$14","v":4.4722246676644067E-3},{"$f":"'Population 2016'!S103/'Population 2016'!S$14","v":1.252756333391716E-2},{"$f":"'Population 2016'!T103/'Population 2016'!T$14","v":1.3120526290505351E-2},{"$f":"'Population 2016'!U103/'Population 2016'!U$14","v":9.8407922777986705E-3},{"$f":"'Population 2016'!V103/'Population 2016'!V$14","v":1.3881253435953821E-2},{"$f":"'Population 2016'!W103/'Population 2016'!W$14","v":1.0301334481274214E-2},{"$f":"'Population 2016'!X103/'Population 2016'!X$14","v":1.0301334481274214E-2},{"$f":"'Population 2016'!Y103/'Population 2016'!Y$14","v":1.2468035605388979E-2},{"$f":"'Population 2016'!Z103/'Population 2016'!Z$14","v":1.3734048378786163E-2},{"$f":"'Population 2016'!AA103/'Population 2016'!AA$14","v":1.2245643657525744E-2},{"$f":"'Population 2016'!AB103/'Population 2016'!AB$14","v":9.4702168542410096E-3},{"$f":"'Population 2016'!AC103/'Population 2016'!AC$14","v":1.1678941191777592E-2},{"$f":"'Population 2016'!AD103/'Population 2016'!AD$14","v":8.7639172223406298E-3},{"$f":"'Population 2016'!AE103/'Population 2016'!AE$14","v":8.9758295214272879E-3},{"$f":"'Population 2016'!AF103/'Population 2016'!AF$14","v":7.1200638213003587E-3},{"$f":"'Population 2016'!AG103/'Population 2016'!AG$14","v":8.9758295214272879E-3},{"$f":"'Population 2016'!AH103/'Population 2016'!AH$14","v":1.3286999666227159E-2},{"$f":"'Population 2016'!AI103/'Population 2016'!AI$14","v":1.3904635047814659E-2},{"$f":"'Population 2016'!AJ103/'Population 2016'!AJ$14","v":1.8090143492247083E-2},{"$f":"'Population 2016'!AK103/'Population 2016'!AK$14","v":8.2791148873538611E-3},{"$f":"'Population 2016'!AL103/'Population 2016'!AL$14","v":9.1338959717483688E-3},{"$f":"'Population 2016'!AM103/'Population 2016'!AM$14","v":1.381185278286292E-2},{"$f":"'Population 2016'!AN103/'Population 2016'!AN$14","v":7.481110196753198E-3},{"$f":"'Population 2016'!AO103/'Population 2016'!AO$14","v":7.481110196753198E-3},{"$f":"'Population 2016'!AP103/'Population 2016'!AP$14","v":6.9593495934959348E-3},{"$f":"'Population 2016'!AQ103/'Population 2016'!AQ$14","v":9.4783383784451634E-3},{"$f":"'Population 2016'!AR103/'Population 2016'!AR$14","v":1.163633321117237E-2},{"$f":"'Population 2016'!AS103/'Population 2016'!AS$14","v":8.2009226037929265E-3},{"$f":"'Population 2016'!AT103/'Population 2016'!AT$14","v":1.5792364734962922E-3},{"$f":"'Population 2016'!AU103/'Population 2016'!AU$14","v":1.5792364734962922E-3},{"$f":"'Population 2016'!AV103/'Population 2016'!AV$14","v":1.349087512786681E-2},{"$f":"'Population 2016'!AW103/'Population 2016'!AW$14","v":1.2718820403354219E-2},{"$f":"'Population 2016'!AX103/'Population 2016'!AX$14","v":9.6166491320357709E-3},{"$f":"'Population 2016'!AY103/'Population 2016'!AY$14","v":1.0753820969545698E-2},{"$f":"'Population 2016'!AZ103/'Population 2016'!AZ$14","v":1.1156101220090933E-2},{"$f":"'Population 2016'!BA103/'Population 2016'!BA$14","v":1.4731024954667127E-2},{"$f":"'Population 2016'!BB103/'Population 2016'!BB$14","v":1.4064261798400771E-2},{"$f":"'Population 2016'!BC103/'Population 2016'!BC$14","v":9.8407922777986705E-3},101]
[null,"Female 30-34",{"$f":"'Population 2016'!C104/'Population 2016'!C$14","v":1.3225884679239651E-2},{"$f":"'Population 2016'!D104/'Population 2016'!D$14","v":8.4107252833449248E-3},{"$f":"'Population 2016'!E104/'Population 2016'!E$14","v":3.7330562737091359E-3},{"$f":"'Population 2016'!F104/'Population 2016'!F$14","v":1.0001700005666686E-2},{"$f":"'Population 2016'!G104/'Population 2016'!G$14","v":6.8022011617242433E-3},{"$f":"'Population 2016'!H104/'Population 2016'!H$14","v":1.1209936319141097E-2},{"$f":"'Population 2016'!I104/'Population 2016'!I$14","v":6.9414952039247276E-3},{"$f":"'Population 2016'!J104/'Population 2016'!J$14","v":9.0699544358080943E-3},{"$f":"'Population 2016'!K104/'Population 2016'!K$14","v":1.2421785901427118E-2},{"$f":"'Population 2016'!L104/'Population 2016'!L$14","v":1.2258564702974191E-2},{"$f":"'Population 2016'!M104/'Population 2016'!M$14","v":1.2258564702974191E-2},{"$f":"'Population 2016'!N104/'Population 2016'!N$14","v":1.1233672578056757E-2},{"$f":"'Population 2016'!O104/'Population 2016'!O$14","v":1.2541545492314085E-2},{"$f":"'Population 2016'!P104/'Population 2016'!P$14","v":7.898966704936854E-3},{"$f":"'Population 2016'!Q104/'Population 2016'!Q$14","v":1.4728837920961933E-2},{"$f":"'Population 2016'!R104/'Population 2016'!R$14","v":4.3313671978167092E-3},{"$f":"'Population 2016'!S104/'Population 2016'!S$14","v":1.1733784226811995E-2},{"$f":"'Population 2016'!T104/'Population 2016'!T$14","v":1.1009599489082242E-2},{"$f":"'Population 2016'!U104/'Population 2016'!U$14","v":9.4020308386611514E-3},{"$f":"'Population 2016'!V104/'Population 2016'!V$14","v":1.477460142935679E-2},{"$f":"'Population 2016'!W104/'Population 2016'!W$14","v":1.0206629358588033E-2},{"$f":"'Population 2016'!X104/'Population 2016'!X$14","v":1.0206629358588033E-2},{"$f":"'Population 2016'!Y104/'Population 2016'!Y$14","v":1.2047822321524657E-2},{"$f":"'Population 2016'!Z104/'Population 2016'!Z$14","v":1.1409611523291735E-2},{"$f":"'Population 2016'!AA104/'Population 2016'!AA$14","v":1.1616635188435587E-2},{"$f":"'Population 2016'!AB104/'Population 2016'!AB$14","v":8.4835740810756226E-3},{"$f":"'Population 2016'!AC104/'Population 2016'!AC$14","v":1.029797660347122E-2},{"$f":"'Population 2016'!AD104/'Population 2016'!AD$14","v":8.7182453896822252E-3},{"$f":"'Population 2016'!AE104/'Population 2016'!AE$14","v":9.4111468885172949E-3},{"$f":"'Population 2016'!AF104/'Population 2016'!AF$14","v":7.5588352612684486E-3},{"$f":"'Population 2016'!AG104/'Population 2016'!AG$14","v":9.4111468885172949E-3},{"$f":"'Population 2016'!AH104/'Population 2016'!AH$14","v":1.4039763944484819E-2},{"$f":"'Population 2016'!AI104/'Population 2016'!AI$14","v":1.288953737643855E-2},{"$f":"'Population 2016'!AJ104/'Population 2016'!AJ$14","v":1.9156395706075829E-2},{"$f":"'Population 2016'!AK104/'Population 2016'!AK$14","v":8.8812323337068688E-3},{"$f":"'Population 2016'!AL104/'Population 2016'!AL$14","v":9.4092296642126049E-3},{"$f":"'Population 2016'!AM104/'Population 2016'!AM$14","v":1.4581454866708561E-2},{"$f":"'Population 2016'!AN104/'Population 2016'!AN$14","v":4.638288321986983E-3},{"$f":"'Population 2016'!AO104/'Population 2016'!AO$14","v":4.638288321986983E-3},{"$f":"'Population 2016'!AP104/'Population 2016'!AP$14","v":7.5230352303523032E-3},{"$f":"'Population 2016'!AQ104/'Population 2016'!AQ$14","v":9.0988518325670065E-3},{"$f":"'Population 2016'!AR104/'Population 2016'!AR$14","v":1.0917694361292529E-2},{"$f":"'Population 2016'!AS104/'Population 2016'!AS$14","v":6.9414952039247276E-3},{"$f":"'Population 2016'!AT104/'Population 2016'!AT$14","v":1.0985992859104642E-3},{"$f":"'Population 2016'!AU104/'Population 2016'!AU$14","v":1.0985992859104642E-3},{"$f":"'Population 2016'!AV104/'Population 2016'!AV$14","v":1.1919410552532875E-2},{"$f":"'Population 2016'!AW104/'Population 2016'!AW$14","v":1.3453356930524676E-2},{"$f":"'Population 2016'!AX104/'Population 2016'!AX$14","v":7.2823513940031559E-3},{"$f":"'Population 2016'!AY104/'Population 2016'!AY$14","v":9.8806301560803254E-3},{"$f":"'Population 2016'!AZ104/'Population 2016'!AZ$14","v":9.5908026269460982E-3},{"$f":"'Population 2016'!BA104/'Population 2016'!BA$14","v":1.5266384595458078E-2},{"$f":"'Population 2016'!BB104/'Population 2016'!BB$14","v":1.4606519138241193E-2},{"$f":"'Population 2016'!BC104/'Population 2016'!BC$14","v":9.4020308386611514E-3},102]
[null,"Female 35-39",{"$f":"'Population 2016'!C105/'Population 2016'!C$14","v":9.8867685190366927E-3},{"$f":"'Population 2016'!D105/'Population 2016'!D$14","v":6.7622844081392536E-3},{"$f":"'Population 2016'!E105/'Population 2016'!E$14","v":3.7270157295769203E-3},{"$f":"'Population 2016'!F105/'Population 2016'!F$14","v":8.0183600612002033E-3},{"$f":"'Population 2016'!G105/'Population 2016'!G$14","v":7.1270253745032101E-3},{"$f":"'Population 2016'!H105/'Population 2016'!H$14","v":1.1288879532656176E-2},{"$f":"'Population 2016'!I105/'Population 2016'!I$14","v":6.6632496155817527E-3},{"$f":"'Population 2016'!J105/'Population 2016'!J$14","v":9.0913964084695792E-3},{"$f":"'Population 2016'!K105/'Population 2016'!K$14","v":1.254507906173905E-2},{"$f":"'Population 2016'!L105/'Population 2016'!L$14","v":1.1966426589062799E-2},{"$f":"'Population 2016'!M105/'Population 2016'!M$14","v":1.1966426589062799E-2},{"$f":"'Population 2016'!N105/'Population 2016'!N$14","v":8.7553578320840181E-3},{"$f":"'Population 2016'!O105/'Population 2016'!O$14","v":1.2463647694225177E-2},{"$f":"'Population 2016'!P105/'Population 2016'!P$14","v":8.8480673555300423E-3},{"$f":"'Population 2016'!Q105/'Population 2016'!Q$14","v":1.3894255289553807E-2},{"$f":"'Population 2016'!R105/'Population 2016'!R$14","v":4.7363324236288406E-3},{"$f":"'Population 2016'!S105/'Population 2016'!S$14","v":9.7723526849269552E-3},{"$f":"'Population 2016'!T105/'Population 2016'!T$14","v":7.4376965747598714E-3},{"$f":"'Population 2016'!U105/'Population 2016'!U$14","v":9.5900714554343746E-3},{"$f":"'Population 2016'!V105/'Population 2016'!V$14","v":1.4401555014529176E-2},{"$f":"'Population 2016'!W105/'Population 2016'!W$14","v":9.6211795092552739E-3},{"$f":"'Population 2016'!X105/'Population 2016'!X$14","v":9.6211795092552739E-3},{"$f":"'Population 2016'!Y105/'Population 2016'!Y$14","v":1.1863338440803735E-2},{"$f":"'Population 2016'!Z105/'Population 2016'!Z$14","v":8.5190841811212288E-3},{"$f":"'Population 2016'!AA105/'Population 2016'!AA$14","v":9.9031293588451603E-3},{"$f":"'Population 2016'!AB105/'Population 2016'!AB$14","v":6.8521175270226178E-3},{"$f":"'Population 2016'!AC105/'Population 2016'!AC$14","v":8.4313556254339665E-3},{"$f":"'Population 2016'!AD105/'Population 2016'!AD$14","v":8.2463031188787055E-3},{"$f":"'Population 2016'!AE105/'Population 2016'!AE$14","v":8.6510689459791869E-3},{"$f":"'Population 2016'!AF105/'Population 2016'!AF$14","v":4.9461507778220982E-3},{"$f":"'Population 2016'!AG105/'Population 2016'!AG$14","v":8.6510689459791869E-3},{"$f":"'Population 2016'!AH105/'Population 2016'!AH$14","v":1.2607618069183297E-2},{"$f":"'Population 2016'!AI105/'Population 2016'!AI$14","v":1.0191648406771159E-2},{"$f":"'Population 2016'!AJ105/'Population 2016'!AJ$14","v":1.8523873206346912E-2},{"$f":"'Population 2016'!AK105/'Population 2016'!AK$14","v":7.3424877485825154E-3},{"$f":"'Population 2016'!AL105/'Population 2016'!AL$14","v":9.217693182498354E-3},{"$f":"'Population 2016'!AM105/'Population 2016'!AM$14","v":1.3411113236245071E-2},{"$f":"'Population 2016'!AN105/'Population 2016'!AN$14","v":5.3115882396947709E-3},{"$f":"'Population 2016'!AO105/'Population 2016'!AO$14","v":5.3115882396947709E-3},{"$f":"'Population 2016'!AP105/'Population 2016'!AP$14","v":5.7235772357723579E-3},{"$f":"'Population 2016'!AQ105/'Population 2016'!AQ$14","v":8.4369566944074281E-3},{"$f":"'Population 2016'!AR105/'Population 2016'!AR$14","v":9.4597858811535235E-3},{"$f":"'Population 2016'!AS105/'Population 2016'!AS$14","v":6.6632496155817527E-3},{"$f":"'Population 2016'!AT105/'Population 2016'!AT$14","v":2.3345234825597363E-3},{"$f":"'Population 2016'!AU105/'Population 2016'!AU$14","v":2.3345234825597363E-3},{"$f":"'Population 2016'!AV105/'Population 2016'!AV$14","v":1.2512416052658888E-2},{"$f":"'Population 2016'!AW105/'Population 2016'!AW$14","v":1.1737795108676898E-2},{"$f":"'Population 2016'!AX105/'Population 2016'!AX$14","v":7.2494739610731197E-3},{"$f":"'Population 2016'!AY105/'Population 2016'!AY$14","v":8.4908183276876451E-3},{"$f":"'Population 2016'!AZ105/'Population 2016'!AZ$14","v":7.4858778684383752E-3},{"$f":"'Population 2016'!BA105/'Population 2016'!BA$14","v":1.3936620326396684E-2},{"$f":"'Population 2016'!BB105/'Population 2016'!BB$14","v":1.254938415059261E-2},{"$f":"'Population 2016'!BC105/'Population 2016'!BC$14","v":9.5900714554343746E-3},103]
[null,"Female 40-44",{"$f":"'Population 2016'!C106/'Population 2016'!C$14","v":8.9105278539494213E-3},{"$f":"'Population 2016'!D106/'Population 2016'!D$14","v":6.2628497191828877E-3},{"$f":"'Population 2016'!E106/'Population 2016'!E$14","v":3.6907724647836275E-3},{"$f":"'Population 2016'!F106/'Population 2016'!F$14","v":8.8683628945429825E-3},{"$f":"'Population 2016'!G106/'Population 2016'!G$14","v":8.3881076123509622E-3},{"$f":"'Population 2016'!H106/'Population 2016'!H$14","v":1.2350227181025559E-2},{"$f":"'Population 2016'!I106/'Population 2016'!I$14","v":7.2343852969173322E-3},{"$f":"'Population 2016'!J106/'Population 2016'!J$14","v":9.7024926293218985E-3},{"$f":"'Population 2016'!K106/'Population 2016'!K$14","v":1.4240360016028112E-2},{"$f":"'Population 2016'!L106/'Population 2016'!L$14","v":1.3449589321228328E-2},{"$f":"'Population 2016'!M106/'Population 2016'!M$14","v":1.3449589321228328E-2},{"$f":"'Population 2016'!N106/'Population 2016'!N$14","v":7.7904402055782394E-3},{"$f":"'Population 2016'!O106/'Population 2016'!O$14","v":1.3307540506855006E-2},{"$f":"'Population 2016'!P106/'Population 2016'!P$14","v":8.4194412552621514E-3},{"$f":"'Population 2016'!Q106/'Population 2016'!Q$14","v":1.349241920776471E-2},{"$f":"'Population 2016'!R106/'Population 2016'!R$14","v":4.6835108724359534E-3},{"$f":"'Population 2016'!S106/'Population 2016'!S$14","v":9.7195837768167103E-3},{"$f":"'Population 2016'!T106/'Population 2016'!T$14","v":6.5560243364144767E-3},{"$f":"'Population 2016'!U106/'Population 2016'!U$14","v":1.2536041118214868E-2},{"$f":"'Population 2016'!V106/'Population 2016'!V$14","v":1.5069111756852273E-2},{"$f":"'Population 2016'!W106/'Population 2016'!W$14","v":1.0288420146362462E-2},{"$f":"'Population 2016'!X106/'Population 2016'!X$14","v":1.0288420146362462E-2},{"$f":"'Population 2016'!Y106/'Population 2016'!Y$14","v":1.2503907471084715E-2},{"$f":"'Population 2016'!Z106/'Population 2016'!Z$14","v":7.4723944241242351E-3},{"$f":"'Population 2016'!AA106/'Population 2016'!AA$14","v":9.8881132415459261E-3},{"$f":"'Population 2016'!AB106/'Population 2016'!AB$14","v":6.4766235582326406E-3},{"$f":"'Population 2016'!AC106/'Population 2016'!AC$14","v":8.1015730371816978E-3},{"$f":"'Population 2016'!AD106/'Population 2016'!AD$14","v":9.1648144201199652E-3},{"$f":"'Population 2016'!AE106/'Population 2016'!AE$14","v":9.4456958859053912E-3},{"$f":"'Population 2016'!AF106/'Population 2016'!AF$14","v":5.8037495013960909E-3},{"$f":"'Population 2016'!AG106/'Population 2016'!AG$14","v":9.4456958859053912E-3},{"$f":"'Population 2016'!AH106/'Population 2016'!AH$14","v":1.3171007686244062E-2},{"$f":"'Population 2016'!AI106/'Population 2016'!AI$14","v":9.7832368227951279E-3},{"$f":"'Population 2016'!AJ106/'Population 2016'!AJ$14","v":1.7547981349622294E-2},{"$f":"'Population 2016'!AK106/'Population 2016'!AK$14","v":7.6435464717590192E-3},{"$f":"'Population 2016'!AL106/'Population 2016'!AL$14","v":1.09654635781409E-2},{"$f":"'Population 2016'!AM106/'Population 2016'!AM$14","v":1.3962130112844614E-2},{"$f":"'Population 2016'!AN106/'Population 2016'!AN$14","v":7.8551657065908578E-3},{"$f":"'Population 2016'!AO106/'Population 2016'!AO$14","v":7.8551657065908578E-3},{"$f":"'Population 2016'!AP106/'Population 2016'!AP$14","v":4.986449864498645E-3},{"$f":"'Population 2016'!AQ106/'Population 2016'!AQ$14","v":9.8136985817793513E-3},{"$f":"'Population 2016'!AR106/'Population 2016'!AR$14","v":9.582424408963959E-3},{"$f":"'Population 2016'!AS106/'Population 2016'!AS$14","v":7.2343852969173322E-3},{"$f":"'Population 2016'!AT106/'Population 2016'!AT$14","v":9.6127437517165614E-4},{"$f":"'Population 2016'!AU106/'Population 2016'!AU$14","v":9.6127437517165614E-4},{"$f":"'Population 2016'!AV106/'Population 2016'!AV$14","v":1.2971995315256548E-2},{"$f":"'Population 2016'!AW106/'Population 2016'!AW$14","v":1.2314578824642961E-2},{"$f":"'Population 2016'!AX106/'Population 2016'!AX$14","v":7.2823513940031559E-3},{"$f":"'Population 2016'!AY106/'Population 2016'!AY$14","v":8.5961684954375273E-3},{"$f":"'Population 2016'!AZ106/'Population 2016'!AZ$14","v":7.0916828682087473E-3},{"$f":"'Population 2016'!BA106/'Population 2016'!BA$14","v":1.4437440635523702E-2},{"$f":"'Population 2016'!BB106/'Population 2016'!BB$14","v":1.3849080314337112E-2},{"$f":"'Population 2016'!BC106/'Population 2016'!BC$14","v":1.2536041118214868E-2},104]
[null,"Female 45-49",{"$f":"'Population 2016'!C107/'Population 2016'!C$14","v":9.3147039254823684E-3},{"$f":"'Population 2016'!D107/'Population 2016'!D$14","v":6.6918120287159629E-3},{"$f":"'Population 2016'!E107/'Population 2016'!E$14","v":4.1438132746997852E-3},{"$f":"'Population 2016'!F107/'Population 2016'!F$14","v":9.4208647362157873E-3},{"$f":"'Population 2016'!G107/'Population 2016'!G$14","v":9.9357994497095686E-3},{"$f":"'Population 2016'!H107/'Population 2016'!H$14","v":1.5731628159921407E-2},{"$f":"'Population 2016'!I107/'Population 2016'!I$14","v":9.7239510873544707E-3},{"$f":"'Population 2016'!J107/'Population 2016'!J$14","v":1.1149825783972125E-2},{"$f":"'Population 2016'!K107/'Population 2016'!K$14","v":1.6798693092500695E-2},{"$f":"'Population 2016'!L107/'Population 2016'!L$14","v":1.7595703322509242E-2},{"$f":"'Population 2016'!M107/'Population 2016'!M$14","v":1.7595703322509242E-2},{"$f":"'Population 2016'!N107/'Population 2016'!N$14","v":8.1154650902959761E-3},{"$f":"'Population 2016'!O107/'Population 2016'!O$14","v":1.7241379310344827E-2},{"$f":"'Population 2016'!P107/'Population 2016'!P$14","v":1.1542288557213931E-2},{"$f":"'Population 2016'!Q107/'Population 2016'!Q$14","v":1.6908025902972041E-2},{"$f":"'Population 2016'!R107/'Population 2016'!R$14","v":6.7787657364204593E-3},{"$f":"'Population 2016'!S107/'Population 2016'!S$14","v":1.0910813808837332E-2},{"$f":"'Population 2016'!T107/'Population 2016'!T$14","v":6.1321434525945752E-3},{"$f":"'Population 2016'!U107/'Population 2016'!U$14","v":1.4604487902720321E-2},{"$f":"'Population 2016'!V107/'Population 2016'!V$14","v":1.7258305191235373E-2},{"$f":"'Population 2016'!W107/'Population 2016'!W$14","v":1.1773568661213948E-2},{"$f":"'Population 2016'!X107/'Population 2016'!X$14","v":1.1773568661213948E-2},{"$f":"'Population 2016'!Y107/'Population 2016'!Y$14","v":1.4338497173809438E-2},{"$f":"'Population 2016'!Z107/'Population 2016'!Z$14","v":8.4220400976910432E-3},{"$f":"'Population 2016'!AA107/'Population 2016'!AA$14","v":1.189359912973258E-2},{"$f":"'Population 2016'!AB107/'Population 2016'!AB$14","v":7.0230320231615042E-3},{"$f":"'Population 2016'!AC107/'Population 2016'!AC$14","v":9.639699640202044E-3},{"$f":"'Population 2016'!AD107/'Population 2016'!AD$14","v":1.0829298988115174E-2},{"$f":"'Population 2016'!AE107/'Population 2016'!AE$14","v":1.1152416356877323E-2},{"$f":"'Population 2016'!AF107/'Population 2016'!AF$14","v":7.9776625448743522E-3},{"$f":"'Population 2016'!AG107/'Population 2016'!AG$14","v":1.1152416356877323E-2},{"$f":"'Population 2016'!AH107/'Population 2016'!AH$14","v":1.60352994368471E-2},{"$f":"'Population 2016'!AI107/'Population 2016'!AI$14","v":1.070851783877402E-2},{"$f":"'Population 2016'!AJ107/'Population 2016'!AJ$14","v":2.1975638847724726E-2},{"$f":"'Population 2016'!AK107/'Population 2016'!AK$14","v":8.8310558798441186E-3},{"$f":"'Population 2016'!AL107/'Population 2016'!AL$14","v":1.3646974322140419E-2},{"$f":"'Population 2016'!AM107/'Population 2016'!AM$14","v":1.6430321411331821E-2},{"$f":"'Population 2016'!AN107/'Population 2016'!AN$14","v":7.1070546869155381E-3},{"$f":"'Population 2016'!AO107/'Population 2016'!AO$14","v":7.1070546869155381E-3},{"$f":"'Population 2016'!AP107/'Population 2016'!AP$14","v":6.3197831978319781E-3},{"$f":"'Population 2016'!AQ107/'Population 2016'!AQ$14","v":1.1181615200642479E-2},{"$f":"'Population 2016'!AR107/'Population 2016'!AR$14","v":1.1223717603585859E-2},{"$f":"'Population 2016'!AS107/'Population 2016'!AS$14","v":9.7239510873544707E-3},{"$f":"'Population 2016'!AT107/'Population 2016'!AT$14","v":1.5792364734962922E-3},{"$f":"'Population 2016'!AU107/'Population 2016'!AU$14","v":1.5792364734962922E-3},{"$f":"'Population 2016'!AV107/'Population 2016'!AV$14","v":1.6589328866025231E-2},{"$f":"'Population 2016'!AW107/'Population 2016'!AW$14","v":1.5607668758534674E-2},{"$f":"'Population 2016'!AX107/'Population 2016'!AX$14","v":8.1371646501841137E-3},{"$f":"'Population 2016'!AY107/'Population 2016'!AY$14","v":9.6881635034603477E-3},{"$f":"'Population 2016'!AZ107/'Population 2016'!AZ$14","v":7.8341472375732888E-3},{"$f":"'Population 2016'!BA107/'Population 2016'!BA$14","v":1.7822295138589069E-2},{"$f":"'Population 2016'!BB107/'Population 2016'!BB$14","v":1.5828749967722777E-2},{"$f":"'Population 2016'!BC107/'Population 2016'!BC$14","v":1.4604487902720321E-2},105]
[null,"Female 50-54",{"$f":"'Population 2016'!C108/'Population 2016'!C$14","v":9.7126619036071154E-3},{"$f":"'Population 2016'!D108/'Population 2016'!D$14","v":7.0319178598457575E-3},{"$f":"'Population 2016'!E108/'Population 2016'!E$14","v":4.4277188489139103E-3},{"$f":"'Population 2016'!F108/'Population 2016'!F$14","v":8.7833626112087046E-3},{"$f":"'Population 2016'!G108/'Population 2016'!G$14","v":1.102491592785081E-2},{"$f":"'Population 2016'!H108/'Population 2016'!H$14","v":1.6253530515937756E-2},{"$f":"'Population 2016'!I108/'Population 2016'!I$14","v":1.0441531815186351E-2},{"$f":"'Population 2016'!J108/'Population 2016'!J$14","v":1.1685875100509247E-2},{"$f":"'Population 2016'!K108/'Population 2016'!K$14","v":1.7322689023826405E-2},{"$f":"'Population 2016'!L108/'Population 2016'!L$14","v":1.9045157810761919E-2},{"$f":"'Population 2016'!M108/'Population 2016'!M$14","v":1.9045157810761919E-2},{"$f":"'Population 2016'!N108/'Population 2016'!N$14","v":9.6796473480000814E-3},{"$f":"'Population 2016'!O108/'Population 2016'!O$14","v":1.6280639800581635E-2},{"$f":"'Population 2016'!P108/'Population 2016'!P$14","v":1.1327975507079984E-2},{"$f":"'Population 2016'!Q108/'Population 2016'!Q$14","v":1.7186220113441418E-2},{"$f":"'Population 2016'!R108/'Population 2016'!R$14","v":6.39140769433929E-3},{"$f":"'Population 2016'!S108/'Population 2016'!S$14","v":1.1004001455074573E-2},{"$f":"'Population 2016'!T108/'Population 2016'!T$14","v":5.8212974711266468E-3},{"$f":"'Population 2016'!U108/'Population 2016'!U$14","v":1.6923655509590071E-2},{"$f":"'Population 2016'!V108/'Population 2016'!V$14","v":1.7199403125736278E-2},{"$f":"'Population 2016'!W108/'Population 2016'!W$14","v":1.2686181661644425E-2},{"$f":"'Population 2016'!X108/'Population 2016'!X$14","v":1.2686181661644425E-2},{"$f":"'Population 2016'!Y108/'Population 2016'!Y$14","v":1.4563977472468343E-2},{"$f":"'Population 2016'!Z108/'Population 2016'!Z$14","v":8.6299917050414402E-3},{"$f":"'Population 2016'!AA108/'Population 2016'!AA$14","v":1.2336574590059999E-2},{"$f":"'Population 2016'!AB108/'Population 2016'!AB$14","v":7.2716349266362477E-3},{"$f":"'Population 2016'!AC108/'Population 2016'!AC$14","v":9.952735456394626E-3},{"$f":"'Population 2016'!AD108/'Population 2016'!AD$14","v":1.1829004658526932E-2},{"$f":"'Population 2016'!AE108/'Population 2016'!AE$14","v":1.2119788283744005E-2},{"$f":"'Population 2016'!AF108/'Population 2016'!AF$14","v":9.5731950538492216E-3},{"$f":"'Population 2016'!AG108/'Population 2016'!AG$14","v":1.2119788283744005E-2},{"$f":"'Population 2016'!AH108/'Population 2016'!AH$14","v":1.6717048217155923E-2},{"$f":"'Population 2016'!AI108/'Population 2016'!AI$14","v":1.0406869448949399E-2},{"$f":"'Population 2016'!AJ108/'Population 2016'!AJ$14","v":2.181299020493729E-2},{"$f":"'Population 2016'!AK108/'Population 2016'!AK$14","v":8.5801736105303658E-3},{"$f":"'Population 2016'!AL108/'Population 2016'!AL$14","v":1.4233554797390316E-2},{"$f":"'Population 2016'!AM108/'Population 2016'!AM$14","v":1.6954015137025602E-2},{"$f":"'Population 2016'!AN108/'Population 2016'!AN$14","v":9.1269544400389025E-3},{"$f":"'Population 2016'!AO108/'Population 2016'!AO$14","v":9.1269544400389025E-3},{"$f":"'Population 2016'!AP108/'Population 2016'!AP$14","v":6.0921409214092139E-3},{"$f":"'Population 2016'!AQ108/'Population 2016'!AQ$14","v":1.160522808906461E-2},{"$f":"'Population 2016'!AR108/'Population 2016'!AR$14","v":1.1609971658465454E-2},{"$f":"'Population 2016'!AS108/'Population 2016'!AS$14","v":1.0441531815186351E-2},{"$f":"'Population 2016'!AT108/'Population 2016'!AT$14","v":1.3732491073880802E-3},{"$f":"'Population 2016'!AU108/'Population 2016'!AU$14","v":1.3732491073880802E-3},{"$f":"'Population 2016'!AV108/'Population 2016'!AV$14","v":1.8724148666478882E-2},{"$f":"'Population 2016'!AW108/'Population 2016'!AW$14","v":1.6460519894108426E-2},{"$f":"'Population 2016'!AX108/'Population 2016'!AX$14","v":8.6796422935297209E-3},{"$f":"'Population 2016'!AY108/'Population 2016'!AY$14","v":1.0295952932786593E-2},{"$f":"'Population 2016'!AZ108/'Population 2016'!AZ$14","v":8.1709351989345258E-3},{"$f":"'Population 2016'!BA108/'Population 2016'!BA$14","v":1.8875744754339004E-2},{"$f":"'Population 2016'!BB108/'Population 2016'!BB$14","v":1.5165990996806707E-2},{"$f":"'Population 2016'!BC108/'Population 2016'!BC$14","v":1.6923655509590071E-2},106]
[null,"Female 55-59",{"$f":"'Population 2016'!C109/'Population 2016'!C$14","v":8.6431498373968577E-3},{"$f":"'Population 2016'!D109/'Population 2016'!D$14","v":6.2628497191828877E-3},{"$f":"'Population 2016'!E109/'Population 2016'!E$14","v":3.9505158624688914E-3},{"$f":"'Population 2016'!F109/'Population 2016'!F$14","v":9.5058650195500652E-3},{"$f":"'Population 2016'!G109/'Population 2016'!G$14","v":1.1215988994191378E-2},{"$f":"'Population 2016'!H109/'Population 2016'!H$14","v":1.5279897549251794E-2},{"$f":"'Population 2016'!I109/'Population 2016'!I$14","v":1.0148641722193747E-2},{"$f":"'Population 2016'!J109/'Population 2016'!J$14","v":1.0034843205574913E-2},{"$f":"'Population 2016'!K109/'Population 2016'!K$14","v":1.4517769626729958E-2},{"$f":"'Population 2016'!L109/'Population 2016'!L$14","v":1.777548062337779E-2},{"$f":"'Population 2016'!M109/'Population 2016'!M$14","v":1.777548062337779E-2},{"$f":"'Population 2016'!N109/'Population 2016'!N$14","v":9.1413248826863313E-3},{"$f":"'Population 2016'!O109/'Population 2016'!O$14","v":1.5423764021603656E-2},{"$f":"'Population 2016'!P109/'Population 2016'!P$14","v":1.0715652506697282E-2},{"$f":"'Population 2016'!Q109/'Population 2016'!Q$14","v":1.6274361312458463E-2},{"$f":"'Population 2016'!R109/'Population 2016'!R$14","v":5.0708689145171227E-3},{"$f":"'Population 2016'!S109/'Population 2016'!S$14","v":1.0192258464357409E-2},{"$f":"'Population 2016'!T109/'Population 2016'!T$14","v":5.2872075575135713E-3},{"$f":"'Population 2016'!U109/'Population 2016'!U$14","v":1.4479127491538173E-2},{"$f":"'Population 2016'!V109/'Population 2016'!V$14","v":1.5020026702269693E-2},{"$f":"'Population 2016'!W109/'Population 2016'!W$14","v":1.1450710288420147E-2},{"$f":"'Population 2016'!X109/'Population 2016'!X$14","v":1.1450710288420147E-2},{"$f":"'Population 2016'!Y109/'Population 2016'!Y$14","v":1.2637145829383158E-2},{"$f":"'Population 2016'!Z109/'Population 2016'!Z$14","v":7.7242469263597143E-3},{"$f":"'Population 2016'!AA109/'Population 2016'!AA$14","v":1.1194515446579328E-2},{"$f":"'Population 2016'!AB109/'Population 2016'!AB$14","v":6.6112834642814595E-3},{"$f":"'Population 2016'!AC109/'Population 2016'!AC$14","v":8.9376234269306128E-3},{"$f":"'Population 2016'!AD109/'Population 2016'!AD$14","v":1.1463629997259689E-2},{"$f":"'Population 2016'!AE109/'Population 2016'!AE$14","v":1.1553184726579235E-2},{"$f":"'Population 2016'!AF109/'Population 2016'!AF$14","v":8.7355404866374161E-3},{"$f":"'Population 2016'!AG109/'Population 2016'!AG$14","v":1.1553184726579235E-2},{"$f":"'Population 2016'!AH109/'Population 2016'!AH$14","v":1.5341714740213473E-2},{"$f":"'Population 2016'!AI109/'Population 2016'!AI$14","v":9.7018934367750064E-3},{"$f":"'Population 2016'!AJ109/'Population 2016'!AJ$14","v":2.1379260490837458E-2},{"$f":"'Population 2016'!AK109/'Population 2016'!AK$14","v":8.5132716720466971E-3},{"$f":"'Population 2016'!AL109/'Population 2016'!AL$14","v":1.2689291913569163E-2},{"$f":"'Population 2016'!AM109/'Population 2016'!AM$14","v":1.5341949233585617E-2},{"$f":"'Population 2016'!AN109/'Population 2016'!AN$14","v":8.1544101144609867E-3},{"$f":"'Population 2016'!AO109/'Population 2016'!AO$14","v":8.1544101144609867E-3},{"$f":"'Population 2016'!AP109/'Population 2016'!AP$14","v":5.5176151761517616E-3},{"$f":"'Population 2016'!AQ109/'Population 2016'!AQ$14","v":1.0228486201692687E-2},{"$f":"'Population 2016'!AR109/'Population 2016'!AR$14","v":1.0680726925546665E-2},{"$f":"'Population 2016'!AS109/'Population 2016'!AS$14","v":1.0148641722193747E-2},{"$f":"'Population 2016'!AT109/'Population 2016'!AT$14","v":9.6127437517165614E-4},{"$f":"'Population 2016'!AU109/'Population 2016'!AU$14","v":9.6127437517165614E-4},{"$f":"'Population 2016'!AV109/'Population 2016'!AV$14","v":1.8323869953893821E-2},{"$f":"'Population 2016'!AW109/'Population 2016'!AW$14","v":1.534146088962726E-2},{"$f":"'Population 2016'!AX109/'Population 2016'!AX$14","v":7.6440031562335616E-3},{"$f":"'Population 2016'!AY109/'Population 2016'!AY$14","v":9.6030729833546727E-3},{"$f":"'Population 2016'!AZ109/'Population 2016'!AZ$14","v":7.9604427230837525E-3},{"$f":"'Population 2016'!BA109/'Population 2016'!BA$14","v":1.7442362490285811E-2},{"$f":"'Population 2016'!BB109/'Population 2016'!BB$14","v":1.392654564860003E-2},{"$f":"'Population 2016'!BC109/'Population 2016'!BC$14","v":1.4479127491538173E-2},107]
[null,"Female 60-64",{"$f":"'Population 2016'!C110/'Population 2016'!C$14","v":7.7228720129833787E-3},{"$f":"'Population 2016'!D110/'Population 2016'!D$14","v":5.674558551823243E-3},{"$f":"'Population 2016'!E110/'Population 2016'!E$14","v":3.6847319206514124E-3},{"$f":"'Population 2016'!F110/'Population 2016'!F$14","v":7.9758599195330643E-3},{"$f":"'Population 2016'!G110/'Population 2016'!G$14","v":1.005044328951391E-2},{"$f":"'Population 2016'!H110/'Population 2016'!H$14","v":1.3446660702068312E-2},{"$f":"'Population 2016'!I110/'Population 2016'!I$14","v":9.2113934246174124E-3},{"$f":"'Population 2016'!J110/'Population 2016'!J$14","v":8.5339051192709729E-3},{"$f":"'Population 2016'!K110/'Population 2016'!K$14","v":1.2884135252596862E-2},{"$f":"'Population 2016'!L110/'Population 2016'!L$14","v":1.7483342509466399E-2},{"$f":"'Population 2016'!M110/'Population 2016'!M$14","v":1.7483342509466399E-2},{"$f":"'Population 2016'!N110/'Population 2016'!N$14","v":7.8716964267576735E-3},{"$f":"'Population 2016'!O110/'Population 2016'!O$14","v":1.3502285002077275E-2},{"$f":"'Population 2016'!P110/'Population 2016'!P$14","v":8.0826636050516654E-3},{"$f":"'Population 2016'!Q110/'Population 2016'!Q$14","v":1.3631516312999397E-2},{"$f":"'Population 2016'!R110/'Population 2016'!R$14","v":4.4194031164715205E-3},{"$f":"'Population 2016'!S110/'Population 2016'!S$14","v":8.7596387463005632E-3},{"$f":"'Population 2016'!T110/'Population 2016'!T$14","v":4.340540250315791E-3},{"$f":"'Population 2016'!U110/'Population 2016'!U$14","v":1.5544690986586436E-2},{"$f":"'Population 2016'!V110/'Population 2016'!V$14","v":1.3999057566952014E-2},{"$f":"'Population 2016'!W110/'Population 2016'!W$14","v":1.0439087386999569E-2},{"$f":"'Population 2016'!X110/'Population 2016'!X$14","v":1.0439087386999569E-2},{"$f":"'Population 2016'!Y110/'Population 2016'!Y$14","v":1.1386755082274685E-2},{"$f":"'Population 2016'!Z110/'Population 2016'!Z$14","v":6.0768080814615766E-3},{"$f":"'Population 2016'!AA110/'Population 2016'!AA$14","v":9.509373394109677E-3},{"$f":"'Population 2016'!AB110/'Population 2016'!AB$14","v":6.0596957721968728E-3},{"$f":"'Population 2016'!AC110/'Population 2016'!AC$14","v":7.1276838312492189E-3},{"$f":"'Population 2016'!AD110/'Population 2016'!AD$14","v":1.0357356717311654E-2},{"$f":"'Population 2016'!AE110/'Population 2016'!AE$14","v":1.0468346208593026E-2},{"$f":"'Population 2016'!AF110/'Population 2016'!AF$14","v":6.3422417231751094E-3},{"$f":"'Population 2016'!AG110/'Population 2016'!AG$14","v":1.0468346208593026E-2},{"$f":"'Population 2016'!AH110/'Population 2016'!AH$14","v":1.3885897032262342E-2},{"$f":"'Population 2016'!AI110/'Population 2016'!AI$14","v":8.0462166004904336E-3},{"$f":"'Population 2016'!AJ110/'Population 2016'!AJ$14","v":1.751183720678064E-2},{"$f":"'Population 2016'!AK110/'Population 2016'!AK$14","v":8.1620364950074423E-3},{"$f":"'Population 2016'!AL110/'Population 2016'!AL$14","v":1.1049260788890885E-2},{"$f":"'Population 2016'!AM110/'Population 2016'!AM$14","v":1.3930253103454558E-2},{"$f":"'Population 2016'!AN110/'Population 2016'!AN$14","v":7.780354604623326E-3},{"$f":"'Population 2016'!AO110/'Population 2016'!AO$14","v":7.780354604623326E-3},{"$f":"'Population 2016'!AP110/'Population 2016'!AP$14","v":5.3983739837398376E-3},{"$f":"'Population 2016'!AQ110/'Population 2016'!AQ$14","v":8.304577666775512E-3},{"$f":"'Population 2016'!AR110/'Population 2016'!AR$14","v":9.3537665930931019E-3},{"$f":"'Population 2016'!AS110/'Population 2016'!AS$14","v":9.2113934246174124E-3},{"$f":"'Population 2016'!AT110/'Population 2016'!AT$14","v":2.0598736610821203E-3},{"$f":"'Population 2016'!AU110/'Population 2016'!AU$14","v":2.0598736610821203E-3},{"$f":"'Population 2016'!AV110/'Population 2016'!AV$14","v":1.6352126665974825E-2},{"$f":"'Population 2016'!AW110/'Population 2016'!AW$14","v":1.3837879407835384E-2},{"$f":"'Population 2016'!AX110/'Population 2016'!AX$14","v":6.2138348237769595E-3},{"$f":"'Population 2016'!AY110/'Population 2016'!AY$14","v":8.6326358611971028E-3},{"$f":"'Population 2016'!AZ110/'Population 2016'!AZ$14","v":7.0266215574912357E-3},{"$f":"'Population 2016'!BA110/'Population 2016'!BA$14","v":1.4938260944650721E-2},{"$f":"'Population 2016'!BB110/'Population 2016'!BB$14","v":1.1714479992425612E-2},{"$f":"'Population 2016'!BC110/'Population 2016'!BC$14","v":1.5544690986586436E-2},108]
[null,"Female 65-69",0,0,0,0,0,0,0,0,0,0,0,0,0,0,0,0,0,0,0,0,0,0,0,0,0,0,0,0,0,0,0,0,0,0,0,0,0,0,0,0,0,0,0,0,0,0,0,0,0,0,0,0,0,109]
[null,"Female 70-74",0,0,0,0,0,0,0,0,0,0,0,0,0,0,0,0,0,0,0,0,0,0,0,0,0,0,0,0,0,0,0,0,0,0,0,0,0,0,0,0,0,0,0,0,0,0,0,0,0,0,0,0,0,110]
[null,"Female 75-79",0,0,0,0,0,0,0,0,0,0,0,0,0,0,0,0,0,0,0,0,0,0,0,0,0,0,0,0,0,0,0,0,0,0,0,0,0,0,0,0,0,0,0,0,0,0,0,0,0,0,0,0,0,111]
[null,"Female 80-84",0,0,0,0,0,0,0,0,0,0,0,0,0,0,0,0,0,0,0,0,0,0,0,0,0,0,0,0,0,0,0,0,0,0,0,0,0,0,0,0,0,0,0,0,0,0,0,0,0,0,0,0,0,112]
[null,"Female 85-89",0,0,0,0,0,0,0,0,0,0,0,0,0,0,0,0,0,0,0,0,0,0,0,0,0,0,0,0,0,0,0,0,0,0,0,0,0,0,0,0,0,0,0,0,0,0,0,0,0,0,0,0,0,113]
[null,"Female 90+",0,0,0,0,0,0,0,0,0,0,0,0,0,0,0,0,0,0,0,0,0,0,0,0,0,0,0,0,0,0,0,0,0,0,0,0,0,0,0,0,0,0,0,0,0,0,0,0,0,0,0,0,0,114]
[null,"Male 0-4",{"$f":"'Population 2016'!C117/'Population 2016'!C$14","v":0},{"$f":"'Population 2016'!D117/'Population 2016'!D$14","v":0},{"$f":"'Population 2016'!E117/'Population 2016'!E$14","v":0},{"$f":"'Population 2016'!F117/'Population 2016'!F$14","v":0},{"$f":"'Population 2016'!G117/'Population 2016'!G$14","v":0},{"$f":"'Population 2016'!H117/'Population 2016'!H$14","v":0},{"$f":"'Population 2016'!I117/'Population 2016'!I$14","v":0},{"$f":"'Population 2016'!J117/'Population 2016'!J$14","v":0},{"$f":"'Population 2016'!K117/'Population 2016'!K$14","v":0},{"$f":"'Population 2016'!L117/'Population 2016'!L$14","v":0},{"$f":"'Population 2016'!M117/'Population 2016'!M$14","v":0},{"$f":"'Population 2016'!N117/'Population 2016'!N$14","v":0},{"$f":"'Population 2016'!O117/'Population 2016'!O$14","v":0},{"$f":"'Population 2016'!P117/'Population 2016'!P$14","v":0},{"$f":"'Population 2016'!Q117/'Population 2016'!Q$14","v":0},{"$f":"'Population 2016'!R117/'Population 2016'!R$14","v":0},{"$f":"'Population 2016'!S117/'Population 2016'!S$14","v":0},{"$f":"'Population 2016'!T117/'Population 2016'!T$14","v":0},{"$f":"'Population 2016'!U117/'Population 2016'!U$14","v":0},{"$f":"'Population 2016'!V117/'Population 2016'!V$14","v":0},{"$f":"'Population 2016'!W117/'Population 2016'!W$14","v":0},{"$f":"'Population 2016'!X117/'Population 2016'!X$14","v":0},{"$f":"'Population 2016'!Y117/'Population 2016'!Y$14","v":0},{"$f":"'Population 2016'!Z117/'Population 2016'!Z$14","v":0},{"$f":"'Population 2016'!AA117/'Population 2016'!AA$14","v":0},{"$f":"'Population 2016'!AB117/'Population 2016'!AB$14","v":0},{"$f":"'Population 2016'!AC117/'Population 2016'!AC$14","v":0},{"$f":"'Population 2016'!AD117/'Population 2016'!AD$14","v":0},{"$f":"'Population 2016'!AE117/'Population 2016'!AE$14","v":0},{"$f":"'Population 2016'!AF117/'Population 2016'!AF$14","v":0},{"$f":"'Population 2016'!AG117/'Population 2016'!AG$14","v":0},{"$f":"'Population 2016'!AH117/'Population 2016'!AH$14","v":0},{"$f":"'Population 2016'!AI117/'Population 2016'!AI$14","v":0},{"$f":"'Population 2016'!AJ117/'Population 2016'!AJ$14","v":0},{"$f":"'Population 2016'!AK117/'Population 2016'!AK$14","v":0},{"$f":"'Population 2016'!AL117/'Population 2016'!AL$14","v":0},{"$f":"'Population 2016'!AM117/'Population 2016'!AM$14","v":0},{"$f":"'Population 2016'!AN117/'Population 2016'!AN$14","v":0},{"$f":"'Population 2016'!AO117/'Population 2016'!AO$14","v":0},{"$f":"'Population 2016'!AP117/'Population 2016'!AP$14","v":0},{"$f":"'Population 2016'!AQ117/'Population 2016'!AQ$14","v":0},{"$f":"'Population 2016'!AR117/'Population 2016'!AR$14","v":0},{"$f":"'Population 2016'!AS117/'Population 2016'!AS$14","v":0},{"$f":"'Population 2016'!AT117/'Population 2016'!AT$14","v":0},{"$f":"'Population 2016'!AU117/'Population 2016'!AU$14","v":0},{"$f":"'Population 2016'!AV117/'Population 2016'!AV$14","v":0},{"$f":"'Population 2016'!AW117/'Population 2016'!AW$14","v":0},{"$f":"'Population 2016'!AX117/'Population 2016'!AX$14","v":0},{"$f":"'Population 2016'!AY117/'Population 2016'!AY$14","v":0},{"$f":"'Population 2016'!AZ117/'Population 2016'!AZ$14","v":0},{"$f":"'Population 2016'!BA117/'Population 2016'!BA$14","v":0},{"$f":"'Population 2016'!BB117/'Population 2016'!BB$14","v":0},{"$f":"'Population 2016'!BC117/'Population 2016'!BC$14","v":0},115]
[null,"Male 5-9",{"$f":"'Population 2016'!C118/'Population 2016'!C$14","v":0},{"$f":"'Population 2016'!D118/'Population 2016'!D$14","v":0},{"$f":"'Population 2016'!E118/'Population 2016'!E$14","v":0},{"$f":"'Population 2016'!F118/'Population 2016'!F$14","v":0},{"$f":"'Population 2016'!G118/'Population 2016'!G$14","v":0},{"$f":"'Population 2016'!H118/'Population 2016'!H$14","v":0},{"$f":"'Population 2016'!I118/'Population 2016'!I$14","v":0},{"$f":"'Population 2016'!J118/'Population 2016'!J$14","v":0},{"$f":"'Population 2016'!K118/'Population 2016'!K$14","v":0},{"$f":"'Population 2016'!L118/'Population 2016'!L$14","v":0},{"$f":"'Population 2016'!M118/'Population 2016'!M$14","v":0},{"$f":"'Population 2016'!N118/'Population 2016'!N$14","v":0},{"$f":"'Population 2016'!O118/'Population 2016'!O$14","v":0},{"$f":"'Population 2016'!P118/'Population 2016'!P$14","v":0},{"$f":"'Population 2016'!Q118/'Population 2016'!Q$14","v":0},{"$f":"'Population 2016'!R118/'Population 2016'!R$14","v":0},{"$f":"'Population 2016'!S118/'Population 2016'!S$14","v":0},{"$f":"'Population 2016'!T118/'Population 2016'!T$14","v":0},{"$f":"'Population 2016'!U118/'Population 2016'!U$14","v":0},{"$f":"'Population 2016'!V118/'Population 2016'!V$14","v":0},{"$f":"'Population 2016'!W118/'Population 2016'!W$14","v":0},{"$f":"'Population 2016'!X118/'Population 2016'!X$14","v":0},{"$f":"'Population 2016'!Y118/'Population 2016'!Y$14","v":0},{"$f":"'Population 2016'!Z118/'Population 2016'!Z$14","v":0},{"$f":"'Population 2016'!AA118/'Population 2016'!AA$14","v":0},{"$f":"'Population 2016'!AB118/'Population 2016'!AB$14","v":0},{"$f":"'Population 2016'!AC118/'Population 2016'!AC$14","v":0},{"$f":"'Population 2016'!AD118/'Population 2016'!AD$14","v":0},{"$f":"'Population 2016'!AE118/'Population 2016'!AE$14","v":0},{"$f":"'Population 2016'!AF118/'Population 2016'!AF$14","v":0},{"$f":"'Population 2016'!AG118/'Population 2016'!AG$14","v":0},{"$f":"'Population 2016'!AH118/'Population 2016'!AH$14","v":0},{"$f":"'Population 2016'!AI118/'Population 2016'!AI$14","v":0},{"$f":"'Population 2016'!AJ118/'Population 2016'!AJ$14","v":0},{"$f":"'Population 2016'!AK118/'Population 2016'!AK$14","v":0},{"$f":"'Population 2016'!AL118/'Population 2016'!AL$14","v":0},{"$f":"'Population 2016'!AM118/'Population 2016'!AM$14","v":0},{"$f":"'Population 2016'!AN118/'Population 2016'!AN$14","v":0},{"$f":"'Population 2016'!AO118/'Population 2016'!AO$14","v":0},{"$f":"'Population 2016'!AP118/'Population 2016'!AP$14","v":0},{"$f":"'Population 2016'!AQ118/'Population 2016'!AQ$14","v":0},{"$f":"'Population 2016'!AR118/'Population 2016'!AR$14","v":0},{"$f":"'Population 2016'!AS118/'Population 2016'!AS$14","v":0},{"$f":"'Population 2016'!AT118/'Population 2016'!AT$14","v":0},{"$f":"'Population 2016'!AU118/'Population 2016'!AU$14","v":0},{"$f":"'Population 2016'!AV118/'Population 2016'!AV$14","v":0},{"$f":"'Population 2016'!AW118/'Population 2016'!AW$14","v":0},{"$f":"'Population 2016'!AX118/'Population 2016'!AX$14","v":0},{"$f":"'Population 2016'!AY118/'Population 2016'!AY$14","v":0},{"$f":"'Population 2016'!AZ118/'Population 2016'!AZ$14","v":0},{"$f":"'Population 2016'!BA118/'Population 2016'!BA$14","v":0},{"$f":"'Population 2016'!BB118/'Population 2016'!BB$14","v":0},{"$f":"'Population 2016'!BC118/'Population 2016'!BC$14","v":0},116]
[null,"Male 10-15",{"$f":"'Population 2016'!C119/'Population 2016'!C$14","v":0},{"$f":"'Population 2016'!D119/'Population 2016'!D$14","v":0},{"$f":"'Population 2016'!E119/'Population 2016'!E$14","v":0},{"$f":"'Population 2016'!F119/'Population 2016'!F$14","v":0},{"$f":"'Population 2016'!G119/'Population 2016'!G$14","v":0},{"$f":"'Population 2016'!H119/'Population 2016'!H$14","v":0},{"$f":"'Population 2016'!I119/'Population 2016'!I$14","v":0},{"$f":"'Population 2016'!J119/'Population 2016'!J$14","v":0},{"$f":"'Population 2016'!K119/'Population 2016'!K$14","v":0},{"$f":"'Population 2016'!L119/'Population 2016'!L$14","v":0},{"$f":"'Population 2016'!M119/'Population 2016'!M$14","v":0},{"$f":"'Population 2016'!N119/'Population 2016'!N$14","v":0},{"$f":"'Population 2016'!O119/'Population 2016'!O$14","v":0},{"$f":"'Population 2016'!P119/'Population 2016'!P$14","v":0},{"$f":"'Population 2016'!Q119/'Population 2016'!Q$14","v":0},{"$f":"'Population 2016'!R119/'Population 2016'!R$14","v":0},{"$f":"'Population 2016'!S119/'Population 2016'!S$14","v":0},{"$f":"'Population 2016'!T119/'Population 2016'!T$14","v":0},{"$f":"'Population 2016'!U119/'Population 2016'!U$14","v":0},{"$f":"'Population 2016'!V119/'Population 2016'!V$14","v":0},{"$f":"'Population 2016'!W119/'Population 2016'!W$14","v":0},{"$f":"'Population 2016'!X119/'Population 2016'!X$14","v":0},{"$f":"'Population 2016'!Y119/'Population 2016'!Y$14","v":0},{"$f":"'Population 2016'!Z119/'Population 2016'!Z$14","v":0},{"$f":"'Population 2016'!AA119/'Population 2016'!AA$14","v":0},{"$f":"'Population 2016'!AB119/'Population 2016'!AB$14","v":0},{"$f":"'Population 2016'!AC119/'Population 2016'!AC$14","v":0},{"$f":"'Population 2016'!AD119/'Population 2016'!AD$14","v":0},{"$f":"'Population 2016'!AE119/'Population 2016'!AE$14","v":0},{"$f":"'Population 2016'!AF119/'Population 2016'!AF$14","v":0},{"$f":"'Population 2016'!AG119/'Population 2016'!AG$14","v":0},{"$f":"'Population 2016'!AH119/'Population 2016'!AH$14","v":0},{"$f":"'Population 2016'!AI119/'Population 2016'!AI$14","v":0},{"$f":"'Population 2016'!AJ119/'Population 2016'!AJ$14","v":0},{"$f":"'Population 2016'!AK119/'Population 2016'!AK$14","v":0},{"$f":"'Population 2016'!AL119/'Population 2016'!AL$14","v":0},{"$f":"'Population 2016'!AM119/'Population 2016'!AM$14","v":0},{"$f":"'Population 2016'!AN119/'Population 2016'!AN$14","v":0},{"$f":"'Population 2016'!AO119/'Population 2016'!AO$14","v":0},{"$f":"'Population 2016'!AP119/'Population 2016'!AP$14","v":0},{"$f":"'Population 2016'!AQ119/'Population 2016'!AQ$14","v":0},{"$f":"'Population 2016'!AR119/'Population 2016'!AR$14","v":0},{"$f":"'Population 2016'!AS119/'Population 2016'!AS$14","v":0},{"$f":"'Population 2016'!AT119/'Population 2016'!AT$14","v":0},{"$f":"'Population 2016'!AU119/'Population 2016'!AU$14","v":0},{"$f":"'Population 2016'!AV119/'Population 2016'!AV$14","v":0},{"$f":"'Population 2016'!AW119/'Population 2016'!AW$14","v":0},{"$f":"'Population 2016'!AX119/'Population 2016'!AX$14","v":0},{"$f":"'Population 2016'!AY119/'Population 2016'!AY$14","v":0},{"$f":"'Population 2016'!AZ119/'Population 2016'!AZ$14","v":0},{"$f":"'Population 2016'!BA119/'Population 2016'!BA$14","v":0},{"$f":"'Population 2016'!BB119/'Population 2016'!BB$14","v":0},{"$f":"'Population 2016'!BC119/'Population 2016'!BC$14","v":0},117]
[null,"Male 16-19",{"$f":"'Population 2016'!C120/'Population 2016'!C$14","v":5.7517364025842397E-3},{"$f":"'Population 2016'!D120/'Population 2016'!D$14","v":4.1364222704975044E-3},{"$f":"'Population 2016'!E120/'Population 2016'!E$14","v":2.5672312561915577E-3},{"$f":"'Population 2016'!F120/'Population 2016'!F$14","v":5.5250184167280562E-3},{"$f":"'Population 2016'!G120/'Population 2016'!G$14","v":5.8086212167532862E-3},{"$f":"'Population 2016'!H120/'Population 2016'!H$14","v":8.9118116590354898E-3},{"$f":"'Population 2016'!I120/'Population 2016'!I$14","v":5.3452441971150325E-3},{"$f":"'Population 2016'!J120/'Population 2016'!J$14","v":6.657732511391048E-3},{"$f":"'Population 2016'!K120/'Population 2016'!K$14","v":9.4319267638627753E-3},{"$f":"'Population 2016'!L120/'Population 2016'!L$14","v":1.0157417499073023E-2},{"$f":"'Population 2016'!M120/'Population 2016'!M$14","v":1.0157417499073023E-2},{"$f":"'Population 2016'!N120/'Population 2016'!N$14","v":5.728563593150101E-3},{"$f":"'Population 2016'!O120/'Population 2016'!O$14","v":9.4386165351059408E-3},{"$f":"'Population 2016'!P120/'Population 2016'!P$14","v":6.4140834290088026E-3},{"$f":"'Population 2016'!Q120/'Population 2016'!Q$14","v":9.3967822202989035E-3},{"$f":"'Population 2016'!R120/'Population 2016'!R$14","v":3.8383660533497666E-3},{"$f":"'Population 2016'!S120/'Population 2016'!S$14","v":6.6601098491482873E-3},{"$f":"'Population 2016'!T120/'Population 2016'!T$14","v":4.2868486716986041E-3},{"$f":"'Population 2016'!U120/'Population 2016'!U$14","v":8.7752287827504074E-3},{"$f":"'Population 2016'!V120/'Population 2016'!V$14","v":1.0739809942668656E-2},{"$f":"'Population 2016'!W120/'Population 2016'!W$14","v":7.0383125269048641E-3},{"$f":"'Population 2016'!X120/'Population 2016'!X$14","v":7.0383125269048641E-3},{"$f":"'Population 2016'!Y120/'Population 2016'!Y$14","v":8.7886070954550349E-3},{"$f":"'Population 2016'!Z120/'Population 2016'!Z$14","v":5.3813254835452518E-3},{"$f":"'Population 2016'!AA120/'Population 2016'!AA$14","v":7.1301530309198537E-3},{"$f":"'Population 2016'!AB120/'Population 2016'!AB$14","v":4.3919846280538015E-3},{"$f":"'Population 2016'!AC120/'Population 2016'!AC$14","v":5.7802127870622165E-3},{"$f":"'Population 2016'!AD120/'Population 2016'!AD$14","v":6.6883861604197748E-3},{"$f":"'Population 2016'!AE120/'Population 2016'!AE$14","v":7.006536670305828E-3},{"$f":"'Population 2016'!AF120/'Population 2016'!AF$14","v":4.2481053051455922E-3},{"$f":"'Population 2016'!AG120/'Population 2016'!AG$14","v":7.006536670305828E-3},{"$f":"'Population 2016'!AH120/'Population 2016'!AH$14","v":9.6107640557424323E-3},{"$f":"'Population 2016'!AI120/'Population 2016'!AI$14","v":6.6633790381483531E-3},{"$f":"'Population 2016'!AJ120/'Population 2016'!AJ$14","v":1.2957675208732426E-2},{"$f":"'Population 2016'!AK120/'Population 2016'!AK$14","v":5.7870176788372444E-3},{"$f":"'Population 2016'!AL120/'Population 2016'!AL$14","v":7.9367929610342971E-3},{"$f":"'Population 2016'!AM120/'Population 2016'!AM$14","v":1.0068581108773464E-2},{"$f":"'Population 2016'!AN120/'Population 2016'!AN$14","v":5.0123438318246429E-3},{"$f":"'Population 2016'!AO120/'Population 2016'!AO$14","v":5.0123438318246429E-3},{"$f":"'Population 2016'!AP120/'Population 2016'!AP$14","v":4.1192411924119241E-3},{"$f":"'Population 2016'!AQ120/'Population 2016'!AQ$14","v":6.3983196688759255E-3},{"$f":"'Population 2016'!AR120/'Population 2016'!AR$14","v":6.7889594378800037E-3},{"$f":"'Population 2016'!AS120/'Population 2016'!AS$14","v":5.3452441971150325E-3},{"$f":"'Population 2016'!AT120/'Population 2016'!AT$14","v":5.4929964295523208E-4},{"$f":"'Population 2016'!AU120/'Population 2016'!AU$14","v":5.4929964295523208E-4},{"$f":"'Population 2016'!AV120/'Population 2016'!AV$14","v":9.5177382770225191E-3},{"$f":"'Population 2016'!AW120/'Population 2016'!AW$14","v":9.1151546224038562E-3},{"$f":"'Population 2016'!AX120/'Population 2016'!AX$14","v":5.1781956864807993E-3},{"$f":"'Population 2016'!AY120/'Population 2016'!AY$14","v":6.0150893855654064E-3},{"$f":"'Population 2016'!AZ120/'Population 2016'!AZ$14","v":5.1053993233623682E-3},{"$f":"'Population 2016'!BA120/'Population 2016'!BA$14","v":1.0068215180036266E-2},{"$f":"'Population 2016'!BB120/'Population 2016'!BB$14","v":9.3819127051755456E-3},{"$f":"'Population 2016'!BC120/'Population 2016'!BC$14","v":8.7752287827504074E-3},118]
[null,"Male 20-24",{"$f":"'Population 2016'!C121/'Population 2016'!C$14","v":1.3847694020059569E-2},{"$f":"'Population 2016'!D121/'Population 2016'!D$14","v":8.6987428340314192E-3},{"$f":"'Population 2016'!E121/'Population 2016'!E$14","v":3.6968130089158431E-3},{"$f":"'Population 2016'!F121/'Population 2016'!F$14","v":8.6133620445401488E-3},{"$f":"'Population 2016'!G121/'Population 2016'!G$14","v":7.6047080403546319E-3},{"$f":"'Population 2016'!H121/'Population 2016'!H$14","v":1.144238022560216E-2},{"$f":"'Population 2016'!I121/'Population 2016'!I$14","v":7.9080325108003228E-3},{"$f":"'Population 2016'!J121/'Population 2016'!J$14","v":1.1064057893326186E-2},{"$f":"'Population 2016'!K121/'Population 2016'!K$14","v":1.2514255771661067E-2},{"$f":"'Population 2016'!L121/'Population 2016'!L$14","v":1.3708019191226868E-2},{"$f":"'Population 2016'!M121/'Population 2016'!M$14","v":1.3708019191226868E-2},{"$f":"'Population 2016'!N121/'Population 2016'!N$14","v":1.705364942003372E-2},{"$f":"'Population 2016'!O121/'Population 2016'!O$14","v":1.2697341088491899E-2},{"$f":"'Population 2016'!P121/'Population 2016'!P$14","v":9.4297742058936096E-3},{"$f":"'Population 2016'!Q121/'Population 2016'!Q$14","v":1.3183314529465404E-2},{"$f":"'Population 2016'!R121/'Population 2016'!R$14","v":5.194119200633859E-3},{"$f":"'Population 2016'!S121/'Population 2016'!S$14","v":9.8475764475521969E-3},{"$f":"'Population 2016'!T121/'Population 2016'!T$14","v":8.2769807247232759E-3},{"$f":"'Population 2016'!U121/'Population 2016'!U$14","v":9.7781120722075961E-3},{"$f":"'Population 2016'!V121/'Population 2016'!V$14","v":1.2909369355218723E-2},{"$f":"'Population 2016'!W121/'Population 2016'!W$14","v":8.7386999569522162E-3},{"$f":"'Population 2016'!X121/'Population 2016'!X$14","v":8.7386999569522162E-3},{"$f":"'Population 2016'!Y121/'Population 2016'!Y$14","v":1.2027324112555665E-2},{"$f":"'Population 2016'!Z121/'Population 2016'!Z$14","v":1.0145727865284327E-2},{"$f":"'Population 2016'!AA121/'Population 2016'!AA$14","v":1.0628908361641496E-2},{"$f":"'Population 2016'!AB121/'Population 2016'!AB$14","v":8.6104651463908555E-3},{"$f":"'Population 2016'!AC121/'Population 2016'!AC$14","v":9.5778654049047431E-3},{"$f":"'Population 2016'!AD121/'Population 2016'!AD$14","v":8.6573496128043523E-3},{"$f":"'Population 2016'!AE121/'Population 2016'!AE$14","v":9.0380177167258598E-3},{"$f":"'Population 2016'!AF121/'Population 2016'!AF$14","v":6.4220183486238536E-3},{"$f":"'Population 2016'!AG121/'Population 2016'!AG$14","v":9.0380177167258598E-3},{"$f":"'Population 2016'!AH121/'Population 2016'!AH$14","v":1.2560274403884073E-2},{"$f":"'Population 2016'!AI121/'Population 2016'!AI$14","v":1.0508548681474552E-2},{"$f":"'Population 2016'!AJ121/'Population 2016'!AJ$14","v":1.6011855278852061E-2},{"$f":"'Population 2016'!AK121/'Population 2016'!AK$14","v":8.1285855257656088E-3},{"$f":"'Population 2016'!AL121/'Population 2016'!AL$14","v":9.9598970491410789E-3},{"$f":"'Population 2016'!AM121/'Population 2016'!AM$14","v":1.2896527227519878E-2},{"$f":"'Population 2016'!AN121/'Population 2016'!AN$14","v":6.8078102790454101E-3},{"$f":"'Population 2016'!AO121/'Population 2016'!AO$14","v":6.8078102790454101E-3},{"$f":"'Population 2016'!AP121/'Population 2016'!AP$14","v":7.2520325203252033E-3},{"$f":"'Population 2016'!AQ121/'Population 2016'!AQ$14","v":8.6134620645833149E-3},{"$f":"'Population 2016'!AR121/'Population 2016'!AR$14","v":1.0305074799473114E-2},{"$f":"'Population 2016'!AS121/'Population 2016'!AS$14","v":7.9080325108003228E-3},{"$f":"'Population 2016'!AT121/'Population 2016'!AT$14","v":2.8838231255149684E-3},{"$f":"'Population 2016'!AU121/'Population 2016'!AU$14","v":2.8838231255149684E-3},{"$f":"'Population 2016'!AV121/'Population 2016'!AV$14","v":1.1845284865017123E-2},{"$f":"'Population 2016'!AW121/'Population 2016'!AW$14","v":1.2196264216239665E-2},{"$f":"'Population 2016'!AX121/'Population 2016'!AX$14","v":1.0290636507101526E-2},{"$f":"'Population 2016'!AY121/'Population 2016'!AY$14","v":1.0101460315402195E-2},{"$f":"'Population 2016'!AZ121/'Population 2016'!AZ$14","v":1.1313013792997872E-2},{"$f":"'Population 2016'!BA121/'Population 2016'!BA$14","v":1.4420170969691736E-2},{"$f":"'Population 2016'!BB121/'Population 2016'!BB$14","v":1.3194928602783589E-2},{"$f":"'Population 2016'!BC121/'Population 2016'!BC$14","v":9.7781120722075961E-3},119]
[null,"Male 25-29",{"$f":"'Population 2016'!C122/'Population 2016'!C$14","v":1.6533910372401615E-2},{"$f":"'Population 2016'!D122/'Population 2016'!D$14","v":1.0350247725733756E-2},{"$f":"'Population 2016'!E122/'Population 2016'!E$14","v":4.3431512310628945E-3},{"$f":"'Population 2016'!F122/'Population 2016'!F$14","v":1.0072533575111916E-2},{"$f":"'Population 2016'!G122/'Population 2016'!G$14","v":6.9550596147966983E-3},{"$f":"'Population 2016'!H122/'Population 2016'!H$14","v":1.1188007648720242E-2},{"$f":"'Population 2016'!I122/'Population 2016'!I$14","v":8.318078640989969E-3},{"$f":"'Population 2016'!J122/'Population 2016'!J$14","v":1.1160546770302869E-2},{"$f":"'Population 2016'!K122/'Population 2016'!K$14","v":1.1928613260179391E-2},{"$f":"'Population 2016'!L122/'Population 2016'!L$14","v":1.1157428735154327E-2},{"$f":"'Population 2016'!M122/'Population 2016'!M$14","v":1.1157428735154327E-2},{"$f":"'Population 2016'!N122/'Population 2016'!N$14","v":1.5794177991752492E-2},{"$f":"'Population 2016'!O122/'Population 2016'!O$14","v":1.2203988367262152E-2},{"$f":"'Population 2016'!P122/'Population 2016'!P$14","v":8.8786835055491772E-3},{"$f":"'Population 2016'!Q122/'Population 2016'!Q$14","v":1.3136948827720507E-2},{"$f":"'Population 2016'!R122/'Population 2016'!R$14","v":4.5426534025882559E-3},{"$f":"'Population 2016'!S122/'Population 2016'!S$14","v":1.158109121611001E-2},{"$f":"'Population 2016'!T122/'Population 2016'!T$14","v":1.2165381365631172E-2},{"$f":"'Population 2016'!U122/'Population 2016'!U$14","v":1.1094396389620158E-2},{"$f":"'Population 2016'!V122/'Population 2016'!V$14","v":1.3086075551716014E-2},{"$f":"'Population 2016'!W122/'Population 2016'!W$14","v":9.2854068015497202E-3},{"$f":"'Population 2016'!X122/'Population 2016'!X$14","v":9.2854068015497202E-3},{"$f":"'Population 2016'!Y122/'Population 2016'!Y$14","v":1.2165687023096356E-2},{"$f":"'Population 2016'!Z122/'Population 2016'!Z$14","v":1.3953552853211582E-2},{"$f":"'Population 2016'!AA122/'Population 2016'!AA$14","v":1.2067118707412623E-2},{"$f":"'Population 2016'!AB122/'Population 2016'!AB$14","v":1.0125389089440074E-2},{"$f":"'Population 2016'!AC122/'Population 2016'!AC$14","v":1.1667347272659348E-2},{"$f":"'Population 2016'!AD122/'Population 2016'!AD$14","v":8.3985425610733893E-3},{"$f":"'Population 2016'!AE122/'Population 2016'!AE$14","v":8.9205511256063349E-3},{"$f":"'Population 2016'!AF122/'Population 2016'!AF$14","v":6.3821300358994811E-3},{"$f":"'Population 2016'!AG122/'Population 2016'!AG$14","v":8.9205511256063349E-3},{"$f":"'Population 2016'!AH122/'Population 2016'!AH$14","v":1.2801727096910116E-2},{"$f":"'Population 2016'!AI122/'Population 2016'!AI$14","v":1.2862422914431841E-2},{"$f":"'Population 2016'!AJ122/'Population 2016'!AJ$14","v":1.6843170564210069E-2},{"$f":"'Population 2016'!AK122/'Population 2016'!AK$14","v":8.8979578183277855E-3},{"$f":"'Population 2016'!AL122/'Population 2016'!AL$14","v":9.289519363141199E-3},{"$f":"'Population 2016'!AM122/'Population 2016'!AM$14","v":1.3187974170514677E-2},{"$f":"'Population 2016'!AN122/'Population 2016'!AN$14","v":7.780354604623326E-3},{"$f":"'Population 2016'!AO122/'Population 2016'!AO$14","v":7.780354604623326E-3},{"$f":"'Population 2016'!AP122/'Population 2016'!AP$14","v":8.1842818428184277E-3},{"$f":"'Population 2016'!AQ122/'Population 2016'!AQ$14","v":8.9664728049350904E-3},{"$f":"'Population 2016'!AR122/'Population 2016'!AR$14","v":1.1350081133409228E-2},{"$f":"'Population 2016'!AS122/'Population 2016'!AS$14","v":8.318078640989969E-3},{"$f":"'Population 2016'!AT122/'Population 2016'!AT$14","v":3.1584729469925845E-3},{"$f":"'Population 2016'!AU122/'Population 2016'!AU$14","v":3.1584729469925845E-3},{"$f":"'Population 2016'!AV122/'Population 2016'!AV$14","v":1.2378989815130536E-2},{"$f":"'Population 2016'!AW122/'Population 2016'!AW$14","v":1.2383595679544883E-2},{"$f":"'Population 2016'!AX122/'Population 2016'!AX$14","v":1.0750920568122041E-2},{"$f":"'Population 2016'!AY122/'Population 2016'!AY$14","v":1.0490445550170991E-2},{"$f":"'Population 2016'!AZ122/'Population 2016'!AZ$14","v":1.1561777628094239E-2},{"$f":"'Population 2016'!BA122/'Population 2016'!BA$14","v":1.4575597962179433E-2},{"$f":"'Population 2016'!BB122/'Population 2016'!BB$14","v":1.2936710821907197E-2},{"$f":"'Population 2016'!BC122/'Population 2016'!BC$14","v":1.1094396389620158E-2},120]
[null,"Male 30-34",{"$f":"'Population 2016'!C123/'Population 2016'!C$14","v":1.3138831371524863E-2},{"$f":"'Population 2016'!D123/'Population 2016'!D$14","v":8.4352374153182433E-3},{"$f":"'Population 2016'!E123/'Population 2016'!E$14","v":3.8659482446178751E-3},{"$f":"'Population 2016'!F123/'Population 2016'!F$14","v":1.0185867286224287E-2},{"$f":"'Population 2016'!G123/'Population 2016'!G$14","v":7.394527667380006E-3},{"$f":"'Population 2016'!H123/'Population 2016'!H$14","v":1.065294809045138E-2},{"$f":"'Population 2016'!I123/'Population 2016'!I$14","v":7.0732957457713989E-3},{"$f":"'Population 2016'!J123/'Population 2016'!J$14","v":8.8448137228625042E-3},{"$f":"'Population 2016'!K123/'Population 2016'!K$14","v":1.1312147458619732E-2},{"$f":"'Population 2016'!L123/'Population 2016'!L$14","v":1.1202373060371465E-2},{"$f":"'Population 2016'!M123/'Population 2016'!M$14","v":1.1202373060371465E-2},{"$f":"'Population 2016'!N123/'Population 2016'!N$14","v":1.2147805066325391E-2},{"$f":"'Population 2016'!O123/'Population 2016'!O$14","v":1.2476630660573328E-2},{"$f":"'Population 2016'!P123/'Population 2016'!P$14","v":7.7765021048603142E-3},{"$f":"'Population 2016'!Q123/'Population 2016'!Q$14","v":1.2843299383336167E-2},{"$f":"'Population 2016'!R123/'Population 2016'!R$14","v":3.8735804208116912E-3},{"$f":"'Population 2016'!S123/'Population 2016'!S$14","v":1.1033192765944069E-2},{"$f":"'Population 2016'!T123/'Population 2016'!T$14","v":1.0989818381170646E-2},{"$f":"'Population 2016'!U123/'Population 2016'!U$14","v":9.1513100162968538E-3},{"$f":"'Population 2016'!V123/'Population 2016'!V$14","v":1.3105709573549045E-2},{"$f":"'Population 2016'!W123/'Population 2016'!W$14","v":9.0701678863538519E-3},{"$f":"'Population 2016'!X123/'Population 2016'!X$14","v":9.0701678863538519E-3},{"$f":"'Population 2016'!Y123/'Population 2016'!Y$14","v":1.1069032843255321E-2},{"$f":"'Population 2016'!Z123/'Population 2016'!Z$14","v":1.2946142844269662E-2},{"$f":"'Population 2016'!AA123/'Population 2016'!AA$14","v":1.1629148619518283E-2},{"$f":"'Population 2016'!AB123/'Population 2016'!AB$14","v":8.4110649008954878E-3},{"$f":"'Population 2016'!AC123/'Population 2016'!AC$14","v":1.102839350792058E-2},{"$f":"'Population 2016'!AD123/'Population 2016'!AD$14","v":8.30719889575658E-3},{"$f":"'Population 2016'!AE123/'Population 2016'!AE$14","v":8.6372493470239491E-3},{"$f":"'Population 2016'!AF123/'Population 2016'!AF$14","v":6.3621858795372957E-3},{"$f":"'Population 2016'!AG123/'Population 2016'!AG$14","v":8.6372493470239491E-3},{"$f":"'Population 2016'!AH123/'Population 2016'!AH$14","v":1.273307878222624E-2},{"$f":"'Population 2016'!AI123/'Population 2016'!AI$14","v":1.2264210096408859E-2},{"$f":"'Population 2016'!AJ123/'Population 2016'!AJ$14","v":1.6301008421585283E-2},{"$f":"'Population 2016'!AK123/'Population 2016'!AK$14","v":8.2791148873538611E-3},{"$f":"'Population 2016'!AL123/'Population 2016'!AL$14","v":8.4276051954270664E-3},{"$f":"'Population 2016'!AM123/'Population 2016'!AM$14","v":1.3493082688962358E-2},{"$f":"'Population 2016'!AN123/'Population 2016'!AN$14","v":5.3115882396947709E-3},{"$f":"'Population 2016'!AO123/'Population 2016'!AO$14","v":5.3115882396947709E-3},{"$f":"'Population 2016'!AP123/'Population 2016'!AP$14","v":8.1517615176151768E-3},{"$f":"'Population 2016'!AQ123/'Population 2016'!AQ$14","v":9.6371932116034627E-3},{"$f":"'Population 2016'!AR123/'Population 2016'!AR$14","v":1.0643763444033708E-2},{"$f":"'Population 2016'!AS123/'Population 2016'!AS$14","v":7.0732957457713989E-3},{"$f":"'Population 2016'!AT123/'Population 2016'!AT$14","v":1.6478989288656962E-3},{"$f":"'Population 2016'!AU123/'Population 2016'!AU$14","v":1.6478989288656962E-3},{"$f":"'Population 2016'!AV123/'Population 2016'!AV$14","v":1.1326405052406861E-2},{"$f":"'Population 2016'!AW123/'Population 2016'!AW$14","v":1.1910337245931702E-2},{"$f":"'Population 2016'!AX123/'Population 2016'!AX$14","v":7.5289321409784324E-3},{"$f":"'Population 2016'!AY123/'Population 2016'!AY$14","v":9.6719557853449812E-3},{"$f":"'Population 2016'!AZ123/'Population 2016'!AZ$14","v":1.0206971510800177E-2},{"$f":"'Population 2016'!BA123/'Population 2016'!BA$14","v":1.4143856316380278E-2},{"$f":"'Population 2016'!BB123/'Population 2016'!BB$14","v":1.390072387051239E-2},{"$f":"'Population 2016'!BC123/'Population 2016'!BC$14","v":9.1513100162968538E-3},121]
[null,"Male 35-39",{"$f":"'Population 2016'!C124/'Population 2016'!C$14","v":1.021010937626305E-2},{"$f":"'Population 2016'!D124/'Population 2016'!D$14","v":6.939997364945813E-3},{"$f":"'Population 2016'!E124/'Population 2016'!E$14","v":3.7632589943702127E-3},{"$f":"'Population 2016'!F124/'Population 2016'!F$14","v":8.6983623278744267E-3},{"$f":"'Population 2016'!G124/'Population 2016'!G$14","v":7.2034546010394376E-3},{"$f":"'Population 2016'!H124/'Population 2016'!H$14","v":9.4337140150518393E-3},{"$f":"'Population 2016'!I124/'Population 2016'!I$14","v":6.9122061946254665E-3},{"$f":"'Population 2016'!J124/'Population 2016'!J$14","v":7.8155990351112311E-3},{"$f":"'Population 2016'!K124/'Population 2016'!K$14","v":1.1836143389945443E-2},{"$f":"'Population 2016'!L124/'Population 2016'!L$14","v":1.0561916426027258E-2},{"$f":"'Population 2016'!M124/'Population 2016'!M$14","v":1.0561916426027258E-2},{"$f":"'Population 2016'!N124/'Population 2016'!N$14","v":8.2982915879497021E-3},{"$f":"'Population 2016'!O124/'Population 2016'!O$14","v":1.100955546323224E-2},{"$f":"'Population 2016'!P124/'Population 2016'!P$14","v":6.7661691542288561E-3},{"$f":"'Population 2016'!Q124/'Population 2016'!Q$14","v":1.2333276664142311E-2},{"$f":"'Population 2016'!R124/'Population 2016'!R$14","v":3.5038295624614845E-3},{"$f":"'Population 2016'!S124/'Population 2016'!S$14","v":9.672428582335215E-3},{"$f":"'Population 2016'!T124/'Population 2016'!T$14","v":8.4239260977808424E-3},{"$f":"'Population 2016'!U124/'Population 2016'!U$14","v":8.9005891939325562E-3},{"$f":"'Population 2016'!V124/'Population 2016'!V$14","v":1.3105709573549045E-2},{"$f":"'Population 2016'!W124/'Population 2016'!W$14","v":8.8893671975893238E-3},{"$f":"'Population 2016'!X124/'Population 2016'!X$14","v":8.8893671975893238E-3},{"$f":"'Population 2016'!Y124/'Population 2016'!Y$14","v":1.0577075827999528E-2},{"$f":"'Population 2016'!Z124/'Population 2016'!Z$14","v":1.0120311557719279E-2},{"$f":"'Population 2016'!AA124/'Population 2016'!AA$14","v":9.9498461682205573E-3},{"$f":"'Population 2016'!AB124/'Population 2016'!AB$14","v":7.07223468114088E-3},{"$f":"'Population 2016'!AC124/'Population 2016'!AC$14","v":9.0162044342875988E-3},{"$f":"'Population 2016'!AD124/'Population 2016'!AD$14","v":7.9012270499040898E-3},{"$f":"'Population 2016'!AE124/'Population 2016'!AE$14","v":8.153563383590608E-3},{"$f":"'Population 2016'!AF124/'Population 2016'!AF$14","v":6.1228560031910649E-3},{"$f":"'Population 2016'!AG124/'Population 2016'!AG$14","v":8.153563383590608E-3},{"$f":"'Population 2016'!AH124/'Population 2016'!AH$14","v":1.1665479129728745E-2},{"$f":"'Population 2016'!AI124/'Population 2016'!AI$14","v":1.0300106254797988E-2},{"$f":"'Population 2016'!AJ124/'Population 2016'!AJ$14","v":1.6011855278852061E-2},{"$f":"'Population 2016'!AK124/'Population 2016'!AK$14","v":7.7940758333472715E-3},{"$f":"'Population 2016'!AL124/'Population 2016'!AL$14","v":7.2185311546058535E-3},{"$f":"'Population 2016'!AM124/'Population 2016'!AM$14","v":1.207227884186271E-2},{"$f":"'Population 2016'!AN124/'Population 2016'!AN$14","v":5.3863993416623027E-3},{"$f":"'Population 2016'!AO124/'Population 2016'!AO$14","v":5.3863993416623027E-3},{"$f":"'Population 2016'!AP124/'Population 2016'!AP$14","v":7.3495934959349595E-3},{"$f":"'Population 2016'!AQ124/'Population 2016'!AQ$14","v":7.6426825286159327E-3},{"$f":"'Population 2016'!AR124/'Population 2016'!AR$14","v":9.2669453923301063E-3},{"$f":"'Population 2016'!AS124/'Population 2016'!AS$14","v":6.9122061946254665E-3},{"$f":"'Population 2016'!AT124/'Population 2016'!AT$14","v":2.2658610271903325E-3},{"$f":"'Population 2016'!AU124/'Population 2016'!AU$14","v":2.2658610271903325E-3},{"$f":"'Population 2016'!AV124/'Population 2016'!AV$14","v":1.0377596252205239E-2},{"$f":"'Population 2016'!AW124/'Population 2016'!AW$14","v":1.1225098472262619E-2},{"$f":"'Population 2016'!AX124/'Population 2016'!AX$14","v":5.6713571804313523E-3},{"$f":"'Population 2016'!AY124/'Population 2016'!AY$14","v":8.4563769266924917E-3},{"$f":"'Population 2016'!AZ124/'Population 2016'!AZ$14","v":8.0714296648959783E-3},{"$f":"'Population 2016'!BA124/'Population 2016'!BA$14","v":1.3902080994732752E-2},{"$f":"'Population 2016'!BB124/'Population 2016'!BB$14","v":1.2162057479278024E-2},{"$f":"'Population 2016'!BC124/'Population 2016'!BC$14","v":8.9005891939325562E-3},122]
[null,"Male 40-44",{"$f":"'Population 2016'!C125/'Population 2016'!C$14","v":8.885655480316626E-3},{"$f":"'Population 2016'!D125/'Population 2016'!D$14","v":6.1709292242829433E-3},{"$f":"'Population 2016'!E125/'Population 2016'!E$14","v":3.5337183173460266E-3},{"$f":"'Population 2016'!F125/'Population 2016'!F$14","v":8.2166940556468518E-3},{"$f":"'Population 2016'!G125/'Population 2016'!G$14","v":6.8786303882604708E-3},{"$f":"'Population 2016'!H125/'Population 2016'!H$14","v":1.1003806817185061E-2},{"$f":"'Population 2016'!I125/'Population 2016'!I$14","v":7.5272753899099359E-3},{"$f":"'Population 2016'!J125/'Population 2016'!J$14","v":8.4159742696328071E-3},{"$f":"'Population 2016'!K125/'Population 2016'!K$14","v":1.285331196251888E-2},{"$f":"'Population 2016'!L125/'Population 2016'!L$14","v":1.2606883223407004E-2},{"$f":"'Population 2016'!M125/'Population 2016'!M$14","v":1.2606883223407004E-2},{"$f":"'Population 2016'!N125/'Population 2016'!N$14","v":7.7904402055782394E-3},{"$f":"'Population 2016'!O125/'Population 2016'!O$14","v":1.2255920232654757E-2},{"$f":"'Population 2016'!P125/'Population 2016'!P$14","v":7.5928052047455029E-3},{"$f":"'Population 2016'!Q125/'Population 2016'!Q$14","v":1.2704202278101479E-2},{"$f":"'Population 2016'!R125/'Population 2016'!R$14","v":4.6659036887049914E-3},{"$f":"'Population 2016'!S125/'Population 2016'!S$14","v":9.6140459605962205E-3},{"$f":"'Population 2016'!T125/'Population 2016'!T$14","v":7.211626770055924E-3},{"$f":"'Population 2016'!U125/'Population 2016'!U$14","v":1.2473360912623794E-2},{"$f":"'Population 2016'!V125/'Population 2016'!V$14","v":1.4195397785282338E-2},{"$f":"'Population 2016'!W125/'Population 2016'!W$14","v":9.7503228583727935E-3},{"$f":"'Population 2016'!X125/'Population 2016'!X$14","v":9.7503228583727935E-3},{"$f":"'Population 2016'!Y125/'Population 2016'!Y$14","v":1.1432876052454917E-2},{"$f":"'Population 2016'!Z125/'Population 2016'!Z$14","v":7.8074275692998733E-3},{"$f":"'Population 2016'!AA125/'Population 2016'!AA$14","v":9.5602613471793066E-3},{"$f":"'Population 2016'!AB125/'Population 2016'!AB$14","v":6.2590960176922396E-3},{"$f":"'Population 2016'!AC125/'Population 2016'!AC$14","v":7.8220307651084876E-3},{"$f":"'Population 2016'!AD125/'Population 2016'!AD$14","v":7.7642115519288742E-3},{"$f":"'Population 2016'!AE125/'Population 2016'!AE$14","v":8.0844653888144172E-3},{"$f":"'Population 2016'!AF125/'Population 2016'!AF$14","v":5.2054248105305144E-3},{"$f":"'Population 2016'!AG125/'Population 2016'!AG$14","v":8.0844653888144172E-3},{"$f":"'Population 2016'!AH125/'Population 2016'!AH$14","v":1.2754383431610892E-2},{"$f":"'Population 2016'!AI125/'Population 2016'!AI$14","v":9.8018780154247396E-3},{"$f":"'Population 2016'!AJ125/'Population 2016'!AJ$14","v":1.5957639064589583E-2},{"$f":"'Population 2016'!AK125/'Population 2016'!AK$14","v":6.7403703022295069E-3},{"$f":"'Population 2016'!AL125/'Population 2016'!AL$14","v":8.8944753696055551E-3},{"$f":"'Population 2016'!AM125/'Population 2016'!AM$14","v":1.3351913075949252E-2},{"$f":"'Population 2016'!AN125/'Population 2016'!AN$14","v":7.6307324006882624E-3},{"$f":"'Population 2016'!AO125/'Population 2016'!AO$14","v":7.6307324006882624E-3},{"$f":"'Population 2016'!AP125/'Population 2016'!AP$14","v":5.4742547425474259E-3},{"$f":"'Population 2016'!AQ125/'Population 2016'!AQ$14","v":8.1015964910732402E-3},{"$f":"'Population 2016'!AR125/'Population 2016'!AR$14","v":9.173247264774002E-3},{"$f":"'Population 2016'!AS125/'Population 2016'!AS$14","v":7.5272753899099359E-3},{"$f":"'Population 2016'!AT125/'Population 2016'!AT$14","v":1.9912112057127165E-3},{"$f":"'Population 2016'!AU125/'Population 2016'!AU$14","v":1.9912112057127165E-3},{"$f":"'Population 2016'!AV125/'Population 2016'!AV$14","v":1.2186263027589581E-2},{"$f":"'Population 2016'!AW125/'Population 2016'!AW$14","v":1.2107528259937194E-2},{"$f":"'Population 2016'!AX125/'Population 2016'!AX$14","v":6.0494476591267752E-3},{"$f":"'Population 2016'!AY125/'Population 2016'!AY$14","v":8.340896935120504E-3},{"$f":"'Population 2016'!AZ125/'Population 2016'!AZ$14","v":7.0878557322841878E-3},{"$f":"'Population 2016'!BA125/'Population 2016'!BA$14","v":1.3004058371470511E-2},{"$f":"'Population 2016'!BB125/'Population 2016'!BB$14","v":1.314328504660831E-2},{"$f":"'Population 2016'!BC125/'Population 2016'!BC$14","v":1.2473360912623794E-2},123]
[null,"Male 45-49",{"$f":"'Population 2016'!C126/'Population 2016'!C$14","v":9.4328477002381533E-3},{"$f":"'Population 2016'!D126/'Population 2016'!D$14","v":6.556995302862711E-3},{"$f":"'Population 2016'!E126/'Population 2016'!E$14","v":3.7632589943702127E-3},{"$f":"'Population 2016'!F126/'Population 2016'!F$14","v":9.4350314501048336E-3},{"$f":"'Population 2016'!G126/'Population 2016'!G$14","v":9.5154387037603184E-3},{"$f":"'Population 2016'!H126/'Population 2016'!H$14","v":1.4126449485114819E-2},{"$f":"'Population 2016'!I126/'Population 2016'!I$14","v":8.9624368455736986E-3},{"$f":"'Population 2016'!J126/'Population 2016'!J$14","v":1.0367193781827929E-2},{"$f":"'Population 2016'!K126/'Population 2016'!K$14","v":1.64288136115649E-2},{"$f":"'Population 2016'!L126/'Population 2016'!L$14","v":1.5179945842088113E-2},{"$f":"'Population 2016'!M126/'Population 2016'!M$14","v":1.5179945842088113E-2},{"$f":"'Population 2016'!N126/'Population 2016'!N$14","v":9.2632092144554826E-3},{"$f":"'Population 2016'!O126/'Population 2016'!O$14","v":1.5306917324470294E-2},{"$f":"'Population 2016'!P126/'Population 2016'!P$14","v":8.6643704554152309E-3},{"$f":"'Population 2016'!Q126/'Population 2016'!Q$14","v":1.4466098944407523E-2},{"$f":"'Population 2016'!R126/'Population 2016'!R$14","v":5.0004401795932744E-3},{"$f":"'Population 2016'!S126/'Population 2016'!S$14","v":1.0310146450561147E-2},{"$f":"'Population 2016'!T126/'Population 2016'!T$14","v":6.615367660149263E-3},{"$f":"'Population 2016'!U126/'Population 2016'!U$14","v":1.472984831390247E-2},{"$f":"'Population 2016'!V126/'Population 2016'!V$14","v":1.6787088667242597E-2},{"$f":"'Population 2016'!W126/'Population 2016'!W$14","v":1.1170899698665519E-2},{"$f":"'Population 2016'!X126/'Population 2016'!X$14","v":1.1170899698665519E-2},{"$f":"'Population 2016'!Y126/'Population 2016'!Y$14","v":1.371842635249745E-2},{"$f":"'Population 2016'!Z126/'Population 2016'!Z$14","v":8.2487470915657141E-3},{"$f":"'Population 2016'!AA126/'Population 2016'!AA$14","v":1.0948417968619652E-2},{"$f":"'Population 2016'!AB126/'Population 2016'!AB$14","v":6.8935513442684084E-3},{"$f":"'Population 2016'!AC126/'Population 2016'!AC$14","v":8.6658104342695642E-3},{"$f":"'Population 2016'!AD126/'Population 2016'!AD$14","v":9.7839214850450121E-3},{"$f":"'Population 2016'!AE126/'Population 2016'!AE$14","v":9.8810132529953982E-3},{"$f":"'Population 2016'!AF126/'Population 2016'!AF$14","v":6.3621858795372957E-3},{"$f":"'Population 2016'!AG126/'Population 2016'!AG$14","v":9.8810132529953982E-3},{"$f":"'Population 2016'!AH126/'Population 2016'!AH$14","v":1.5142871345956732E-2},{"$f":"'Population 2016'!AI126/'Population 2016'!AI$14","v":1.0127251559505229E-2},{"$f":"'Population 2016'!AJ126/'Population 2016'!AJ$14","v":1.8523873206346912E-2},{"$f":"'Population 2016'!AK126/'Population 2016'!AK$14","v":8.7307029721186164E-3},{"$f":"'Population 2016'!AL126/'Population 2016'!AL$14","v":1.1875261866283593E-2},{"$f":"'Population 2016'!AM126/'Population 2016'!AM$14","v":1.5100594733918048E-2},{"$f":"'Population 2016'!AN126/'Population 2016'!AN$14","v":7.8551657065908578E-3},{"$f":"'Population 2016'!AO126/'Population 2016'!AO$14","v":7.8551657065908578E-3},{"$f":"'Population 2016'!AP126/'Population 2016'!AP$14","v":6.6233062330623305E-3},{"$f":"'Population 2016'!AQ126/'Population 2016'!AQ$14","v":9.3636098878308368E-3},{"$f":"'Population 2016'!AR126/'Population 2016'!AR$14","v":1.0512528757731886E-2},{"$f":"'Population 2016'!AS126/'Population 2016'!AS$14","v":8.9624368455736986E-3},{"$f":"'Population 2016'!AT126/'Population 2016'!AT$14","v":8.9261191980225213E-4},{"$f":"'Population 2016'!AU126/'Population 2016'!AU$14","v":8.9261191980225213E-4},{"$f":"'Population 2016'!AV126/'Population 2016'!AV$14","v":1.5566394378307858E-2},{"$f":"'Population 2016'!AW126/'Population 2016'!AW$14","v":1.5188637853773003E-2},{"$f":"'Population 2016'!AX126/'Population 2016'!AX$14","v":7.1344029458179905E-3},{"$f":"'Population 2016'!AY126/'Population 2016'!AY$14","v":9.6922154329891902E-3},{"$f":"'Population 2016'!AZ126/'Population 2016'!AZ$14","v":8.377600538860738E-3},{"$f":"'Population 2016'!BA126/'Population 2016'!BA$14","v":1.6008980226232622E-2},{"$f":"'Population 2016'!BB126/'Population 2016'!BB$14","v":1.4408552172902626E-2},{"$f":"'Population 2016'!BC126/'Population 2016'!BC$14","v":1.472984831390247E-2},124]
[null,"Male 50-54",{"$f":"'Population 2016'!C127/'Population 2016'!C$14","v":8.7550755187444426E-3},{"$f":"'Population 2016'!D127/'Population 2016'!D$14","v":6.3271940656128489E-3},{"$f":"'Population 2016'!E127/'Population 2016'!E$14","v":3.9686374948655371E-3},{"$f":"'Population 2016'!F127/'Population 2016'!F$14","v":9.4491981639938799E-3},{"$f":"'Population 2016'!G127/'Population 2016'!G$14","v":9.7829409966371135E-3},{"$f":"'Population 2016'!H127/'Population 2016'!H$14","v":1.4937810290686455E-2},{"$f":"'Population 2016'!I127/'Population 2016'!I$14","v":1.0148641722193747E-2},{"$f":"'Population 2016'!J127/'Population 2016'!J$14","v":1.0474403645135353E-2},{"$f":"'Population 2016'!K127/'Population 2016'!K$14","v":1.5349998458835496E-2},{"$f":"'Population 2016'!L127/'Population 2016'!L$14","v":1.777548062337779E-2},{"$f":"'Population 2016'!M127/'Population 2016'!M$14","v":1.777548062337779E-2},{"$f":"'Population 2016'!N127/'Population 2016'!N$14","v":8.6131594450200091E-3},{"$f":"'Population 2016'!O127/'Population 2016'!O$14","v":1.6020980473618614E-2},{"$f":"'Population 2016'!P127/'Population 2016'!P$14","v":1.111366245694604E-2},{"$f":"'Population 2016'!Q127/'Population 2016'!Q$14","v":1.5640696721944888E-2},{"$f":"'Population 2016'!R127/'Population 2016'!R$14","v":6.0216568359890837E-3},{"$f":"'Population 2016'!S127/'Population 2016'!S$14","v":1.0596445845627366E-2},{"$f":"'Population 2016'!T127/'Population 2016'!T$14","v":6.3695167475337194E-3},{"$f":"'Population 2016'!U127/'Population 2016'!U$14","v":1.6234173248088252E-2},{"$f":"'Population 2016'!V127/'Population 2016'!V$14","v":1.6315872143249824E-2},{"$f":"'Population 2016'!W127/'Population 2016'!W$14","v":1.1648730090400345E-2},{"$f":"'Population 2016'!X127/'Population 2016'!X$14","v":1.1648730090400345E-2},{"$f":"'Population 2016'!Y127/'Population 2016'!Y$14","v":1.3523693367292033E-2},{"$f":"'Population 2016'!Z127/'Population 2016'!Z$14","v":7.9737888551801896E-3},{"$f":"'Population 2016'!AA127/'Population 2016'!AA$14","v":1.1285446379113582E-2},{"$f":"'Population 2016'!AB127/'Population 2016'!AB$14","v":6.6553068951051121E-3},{"$f":"'Population 2016'!AC127/'Population 2016'!AC$14","v":9.061291897525213E-3},{"$f":"'Population 2016'!AD127/'Population 2016'!AD$14","v":1.0783627155456769E-2},{"$f":"'Population 2016'!AE127/'Population 2016'!AE$14","v":1.1145506557399704E-2},{"$f":"'Population 2016'!AF127/'Population 2016'!AF$14","v":8.3566015157558841E-3},{"$f":"'Population 2016'!AG127/'Population 2016'!AG$14","v":1.1145506557399704E-2},{"$f":"'Population 2016'!AH127/'Population 2016'!AH$14","v":1.5372488122657967E-2},{"$f":"'Population 2016'!AI127/'Population 2016'!AI$14","v":1.023401475365664E-2},{"$f":"'Population 2016'!AJ127/'Population 2016'!AJ$14","v":2.0096143419958797E-2},{"$f":"'Population 2016'!AK127/'Population 2016'!AK$14","v":8.4463697335630302E-3},{"$f":"'Population 2016'!AL127/'Population 2016'!AL$14","v":1.2042856287783564E-2},{"$f":"'Population 2016'!AM127/'Population 2016'!AM$14","v":1.5382933959944261E-2},{"$f":"'Population 2016'!AN127/'Population 2016'!AN$14","v":8.9025211341363063E-3},{"$f":"'Population 2016'!AO127/'Population 2016'!AO$14","v":8.9025211341363063E-3},{"$f":"'Population 2016'!AP127/'Population 2016'!AP$14","v":6.5257452574525743E-3},{"$f":"'Population 2016'!AQ127/'Population 2016'!AQ$14","v":9.8843007298497054E-3},{"$f":"'Population 2016'!AR127/'Population 2016'!AR$14","v":1.0836603932857125E-2},{"$f":"'Population 2016'!AS127/'Population 2016'!AS$14","v":1.0148641722193747E-2},{"$f":"'Population 2016'!AT127/'Population 2016'!AT$14","v":2.4718483932985444E-3},{"$f":"'Population 2016'!AU127/'Population 2016'!AU$14","v":2.4718483932985444E-3},{"$f":"'Population 2016'!AV127/'Population 2016'!AV$14","v":1.7286110328673297E-2},{"$f":"'Population 2016'!AW127/'Population 2016'!AW$14","v":1.5361179991027809E-2},{"$f":"'Population 2016'!AX127/'Population 2016'!AX$14","v":7.8741451867438191E-3},{"$f":"'Population 2016'!AY127/'Population 2016'!AY$14","v":9.7712280588016006E-3},{"$f":"'Population 2016'!AZ127/'Population 2016'!AZ$14","v":8.1020467522924539E-3},{"$f":"'Population 2016'!BA127/'Population 2016'!BA$14","v":1.6855193851998965E-2},{"$f":"'Population 2016'!BB127/'Population 2016'!BB$14","v":1.4296657801189524E-2},{"$f":"'Population 2016'!BC127/'Population 2016'!BC$14","v":1.6234173248088252E-2},125]
[null,"Male 55-59",{"$f":"'Population 2016'!C128/'Population 2016'!C$14","v":8.6120593703558623E-3},{"$f":"'Population 2016'!D128/'Population 2016'!D$14","v":6.2260815212229099E-3},{"$f":"'Population 2016'!E128/'Population 2016'!E$14","v":3.9082320535433835E-3},{"$f":"'Population 2016'!F128/'Population 2016'!F$14","v":7.9758599195330643E-3},{"$f":"'Population 2016'!G128/'Population 2016'!G$14","v":1.035616019565882E-2},{"$f":"'Population 2016'!H128/'Population 2016'!H$14","v":1.3815062365138677E-2},{"$f":"'Population 2016'!I128/'Population 2016'!I$14","v":9.8264626199018826E-3},{"$f":"'Population 2016'!J128/'Population 2016'!J$14","v":9.766818547306353E-3},{"$f":"'Population 2016'!K128/'Population 2016'!K$14","v":1.380883395493635E-2},{"$f":"'Population 2016'!L128/'Population 2016'!L$14","v":1.7191204395555007E-2},{"$f":"'Population 2016'!M128/'Population 2016'!M$14","v":1.7191204395555007E-2},{"$f":"'Population 2016'!N128/'Population 2016'!N$14","v":8.0037377861742545E-3},{"$f":"'Population 2016'!O128/'Population 2016'!O$14","v":1.4748649771499792E-2},{"$f":"'Population 2016'!P128/'Population 2016'!P$14","v":9.5216226559510144E-3},{"$f":"'Population 2016'!Q128/'Population 2016'!Q$14","v":1.4682472219217037E-2},{"$f":"'Population 2016'!R128/'Population 2016'!R$14","v":4.9652258121313493E-3},{"$f":"'Population 2016'!S128/'Population 2016'!S$14","v":9.6757968105124648E-3},{"$f":"'Population 2016'!T128/'Population 2016'!T$14","v":5.4737151463943277E-3},{"$f":"'Population 2016'!U128/'Population 2016'!U$14","v":1.6108812836906104E-2},{"$f":"'Population 2016'!V128/'Population 2016'!V$14","v":1.4892405560354984E-2},{"$f":"'Population 2016'!W128/'Population 2016'!W$14","v":1.0856650882479552E-2},{"$f":"'Population 2016'!X128/'Population 2016'!X$14","v":1.0856650882479552E-2},{"$f":"'Population 2016'!Y128/'Population 2016'!Y$14","v":1.244241284417774E-2},{"$f":"'Population 2016'!Z128/'Population 2016'!Z$14","v":7.1604670130986404E-3},{"$f":"'Population 2016'!AA128/'Population 2016'!AA$14","v":1.0395324314764514E-2},{"$f":"'Population 2016'!AB128/'Population 2016'!AB$14","v":6.4714443310769166E-3},{"$f":"'Population 2016'!AC128/'Population 2016'!AC$14","v":8.2329707871884612E-3},{"$f":"'Population 2016'!AD128/'Population 2016'!AD$14","v":1.0611089120969461E-2},{"$f":"'Population 2016'!AE128/'Population 2016'!AE$14","v":1.0703279390832078E-2},{"$f":"'Population 2016'!AF128/'Population 2016'!AF$14","v":7.5987235739928202E-3},{"$f":"'Population 2016'!AG128/'Population 2016'!AG$14","v":1.0703279390832078E-2},{"$f":"'Population 2016'!AH128/'Population 2016'!AH$14","v":1.4368802418314423E-2},{"$f":"'Population 2016'!AI128/'Population 2016'!AI$14","v":9.1934972741492416E-3},{"$f":"'Population 2016'!AJ128/'Population 2016'!AJ$14","v":1.895760292044674E-2},{"$f":"'Population 2016'!AK128/'Population 2016'!AK$14","v":7.8108013179681883E-3},{"$f":"'Population 2016'!AL128/'Population 2016'!AL$14","v":1.0941521517926617E-2},{"$f":"'Population 2016'!AM128/'Population 2016'!AM$14","v":1.3852837509221564E-2},{"$f":"'Population 2016'!AN128/'Population 2016'!AN$14","v":8.2292212164285176E-3},{"$f":"'Population 2016'!AO128/'Population 2016'!AO$14","v":8.2292212164285176E-3},{"$f":"'Population 2016'!AP128/'Population 2016'!AP$14","v":5.582655826558266E-3},{"$f":"'Population 2016'!AQ128/'Population 2016'!AQ$14","v":9.3106582767780704E-3},{"$f":"'Population 2016'!AR128/'Population 2016'!AR$14","v":1.0039166963472916E-2},{"$f":"'Population 2016'!AS128/'Population 2016'!AS$14","v":9.8264626199018826E-3},{"$f":"'Population 2016'!AT128/'Population 2016'!AT$14","v":1.7852238396045043E-3},{"$f":"'Population 2016'!AU128/'Population 2016'!AU$14","v":1.7852238396045043E-3},{"$f":"'Population 2016'!AV128/'Population 2016'!AV$14","v":1.6307651253465377E-2},{"$f":"'Population 2016'!AW128/'Population 2016'!AW$14","v":1.4927359760215727E-2},{"$f":"'Population 2016'!AX128/'Population 2016'!AX$14","v":7.6111257233035245E-3},{"$f":"'Population 2016'!AY128/'Population 2016'!AY$14","v":8.8899333862785465E-3},{"$f":"'Population 2016'!AZ128/'Population 2016'!AZ$14","v":7.141435635228021E-3},{"$f":"'Population 2016'!BA128/'Population 2016'!BA$14","v":1.6440721872031775E-2},{"$f":"'Population 2016'!BB128/'Population 2016'!BB$14","v":1.2816209190831547E-2},{"$f":"'Population 2016'!BC128/'Population 2016'!BC$14","v":1.6108812836906104E-2},126]
[null,"Male 60-64",{"$f":"'Population 2016'!C129/'Population 2016'!C$14","v":7.0450998314896688E-3},{"$f":"'Population 2016'!D129/'Population 2016'!D$14","v":5.1383556649069002E-3},{"$f":"'Population 2016'!E129/'Population 2016'!E$14","v":3.2860560079251938E-3},{"$f":"'Population 2016'!F129/'Population 2016'!F$14","v":7.9333597778659254E-3},{"$f":"'Population 2016'!G129/'Population 2016'!G$14","v":9.649189850198716E-3},{"$f":"'Population 2016'!H129/'Population 2016'!H$14","v":1.2130940476817009E-2},{"$f":"'Population 2016'!I129/'Population 2016'!I$14","v":9.4017719850626059E-3},{"$f":"'Population 2016'!J129/'Population 2016'!J$14","v":8.2122755293487001E-3},{"$f":"'Population 2016'!K129/'Population 2016'!K$14","v":1.2699195512128964E-2},{"$f":"'Population 2016'!L129/'Population 2016'!L$14","v":1.5550736525129496E-2},{"$f":"'Population 2016'!M129/'Population 2016'!M$14","v":1.5550736525129496E-2},{"$f":"'Population 2016'!N129/'Population 2016'!N$14","v":6.6528531090661626E-3},{"$f":"'Population 2016'!O129/'Population 2016'!O$14","v":1.2372766929788118E-2},{"$f":"'Population 2016'!P129/'Population 2016'!P$14","v":7.531572904707233E-3},{"$f":"'Population 2016'!Q129/'Population 2016'!Q$14","v":1.1575970202309011E-2},{"$f":"'Population 2016'!R129/'Population 2016'!R$14","v":4.5250462188572938E-3},{"$f":"'Population 2016'!S129/'Population 2016'!S$14","v":8.2364406361011191E-3},{"$f":"'Population 2016'!T129/'Population 2016'!T$14","v":4.3348885051981926E-3},{"$f":"'Population 2016'!U129/'Population 2016'!U$14","v":1.6234173248088252E-2},{"$f":"'Population 2016'!V129/'Population 2016'!V$14","v":1.2261446634728657E-2},{"$f":"'Population 2016'!W129/'Population 2016'!W$14","v":9.7718467498923798E-3},{"$f":"'Population 2016'!X129/'Population 2016'!X$14","v":9.7718467498923798E-3},{"$f":"'Population 2016'!Y129/'Population 2016'!Y$14","v":1.0325972768129384E-2},{"$f":"'Population 2016'!Z129/'Population 2016'!Z$14","v":5.7001846148158584E-3},{"$f":"'Population 2016'!AA129/'Population 2016'!AA$14","v":8.7368775819379463E-3},{"$f":"'Population 2016'!AB129/'Population 2016'!AB$14","v":5.3112974481947803E-3},{"$f":"'Population 2016'!AC129/'Population 2016'!AC$14","v":6.7038616768156402E-3},{"$f":"'Population 2016'!AD129/'Population 2016'!AD$14","v":9.5352637294603623E-3},{"$f":"'Population 2016'!AE129/'Population 2016'!AE$14","v":9.4940644822487253E-3},{"$f":"'Population 2016'!AF129/'Population 2016'!AF$14","v":5.7239728759473476E-3},{"$f":"'Population 2016'!AG129/'Population 2016'!AG$14","v":9.4940644822487253E-3},{"$f":"'Population 2016'!AH129/'Population 2016'!AH$14","v":1.247268862308051E-2},{"$f":"'Population 2016'!AI129/'Population 2016'!AI$14","v":7.4971487448546072E-3},{"$f":"'Population 2016'!AJ129/'Population 2016'!AJ$14","v":1.6644377778580979E-2},{"$f":"'Population 2016'!AK129/'Population 2016'!AK$14","v":6.2553312482229173E-3},{"$f":"'Population 2016'!AL129/'Population 2016'!AL$14","v":1.013946250074819E-2},{"$f":"'Population 2016'!AM129/'Population 2016'!AM$14","v":1.2422925945153328E-2},{"$f":"'Population 2016'!AN129/'Population 2016'!AN$14","v":8.1544101144609867E-3},{"$f":"'Population 2016'!AO129/'Population 2016'!AO$14","v":8.1544101144609867E-3},{"$f":"'Population 2016'!AP129/'Population 2016'!AP$14","v":5.1165311653116529E-3},{"$f":"'Population 2016'!AQ129/'Population 2016'!AQ$14","v":8.1457228336172128E-3},{"$f":"'Population 2016'!AR129/'Population 2016'!AR$14","v":8.5904277190580556E-3},{"$f":"'Population 2016'!AS129/'Population 2016'!AS$14","v":9.4017719850626059E-3},{"$f":"'Population 2016'!AT129/'Population 2016'!AT$14","v":1.4419115627574842E-3},{"$f":"'Population 2016'!AU129/'Population 2016'!AU$14","v":1.4419115627574842E-3},{"$f":"'Population 2016'!AV129/'Population 2016'!AV$14","v":1.432108282804323E-2},{"$f":"'Population 2016'!AW129/'Population 2016'!AW$14","v":1.2526559164698865E-2},{"$f":"'Population 2016'!AX129/'Population 2016'!AX$14","v":5.8193056286165177E-3},{"$f":"'Population 2016'!AY129/'Population 2016'!AY$14","v":8.0167425728131739E-3},{"$f":"'Population 2016'!AZ129/'Population 2016'!AZ$14","v":6.4563783047318713E-3},{"$f":"'Population 2016'!BA129/'Population 2016'!BA$14","v":1.3435800017269666E-2},{"$f":"'Population 2016'!BB129/'Population 2016'!BB$14","v":1.0500856422306573E-2},{"$f":"'Population 2016'!BC129/'Population 2016'!BC$14","v":1.6234173248088252E-2},127]
[null,"Male 65-69",0,0,0,0,0,0,0,0,0,0,0,0,0,0,0,0,0,0,0,0,0,0,0,0,0,0,0,0,0,0,0,0,0,0,0,0,0,0,0,0,0,0,0,0,0,0,0,0,0,0,0,0,0,128]
[null,"Male 70-74",0,0,0,0,0,0,0,0,0,0,0,0,0,0,0,0,0,0,0,0,0,0,0,0,0,0,0,0,0,0,0,0,0,0,0,0,0,0,0,0,0,0,0,0,0,0,0,0,0,0,0,0,0,129]
[null,"Male 75-79",0,0,0,0,0,0,0,0,0,0,0,0,0,0,0,0,0,0,0,0,0,0,0,0,0,0,0,0,0,0,0,0,0,0,0,0,0,0,0,0,0,0,0,0,0,0,0,0,0,0,0,0,0,130]
[null,"Male 80-84",0,0,0,0,0,0,0,0,0,0,0,0,0,0,0,0,0,0,0,0,0,0,0,0,0,0,0,0,0,0,0,0,0,0,0,0,0,0,0,0,0,0,0,0,0,0,0,0,0,0,0,0,0,131]
[null,"Male 85-89",0,0,0,0,0,0,0,0,0,0,0,0,0,0,0,0,0,0,0,0,0,0,0,0,0,0,0,0,0,0,0,0,0,0,0,0,0,0,0,0,0,0,0,0,0,0,0,0,0,0,0,0,0,132]
[null,"Male 90+",0,0,0,0,0,0,0,0,0,0,0,0,0,0,0,0,0,0,0,0,0,0,0,0,0,0,0,0,0,0,0,0,0,0,0,0,0,0,0,0,0,0,0,0,0,0,0,0,0,0,0,0,0,133]
["SIMD Q3","Female 0-4",{"$f":"'Population 2016'!C136/'Population 2016'!C$14","v":0},{"$f":"'Population 2016'!D136/'Population 2016'!D$14","v":0},{"$f":"'Population 2016'!E136/'Population 2016'!E$14","v":0},{"$f":"'Population 2016'!F136/'Population 2016'!F$14","v":0},{"$f":"'Population 2016'!G136/'Population 2016'!G$14","v":0},{"$f":"'Population 2016'!H136/'Population 2016'!H$14","v":0},{"$f":"'Population 2016'!I136/'Population 2016'!I$14","v":0},{"$f":"'Population 2016'!J136/'Population 2016'!J$14","v":0},{"$f":"'Population 2016'!K136/'Population 2016'!K$14","v":0},{"$f":"'Population 2016'!L136/'Population 2016'!L$14","v":0},{"$f":"'Population 2016'!M136/'Population 2016'!M$14","v":0},{"$f":"'Population 2016'!N136/'Population 2016'!N$14","v":0},{"$f":"'Population 2016'!O136/'Population 2016'!O$14","v":0},{"$f":"'Population 2016'!P136/'Population 2016'!P$14","v":0},{"$f":"'Population 2016'!Q136/'Population 2016'!Q$14","v":0},{"$f":"'Population 2016'!R136/'Population 2016'!R$14","v":0},{"$f":"'Population 2016'!S136/'Population 2016'!S$14","v":0},{"$f":"'Population 2016'!T136/'Population 2016'!T$14","v":0},{"$f":"'Population 2016'!U136/'Population 2016'!U$14","v":0},{"$f":"'Population 2016'!V136/'Population 2016'!V$14","v":0},{"$f":"'Population 2016'!W136/'Population 2016'!W$14","v":0},{"$f":"'Population 2016'!X136/'Population 2016'!X$14","v":0},{"$f":"'Population 2016'!Y136/'Population 2016'!Y$14","v":0},{"$f":"'Population 2016'!Z136/'Population 2016'!Z$14","v":0},{"$f":"'Population 2016'!AA136/'Population 2016'!AA$14","v":0},{"$f":"'Population 2016'!AB136/'Population 2016'!AB$14","v":0},{"$f":"'Population 2016'!AC136/'Population 2016'!AC$14","v":0},{"$f":"'Population 2016'!AD136/'Population 2016'!AD$14","v":0},{"$f":"'Population 2016'!AE136/'Population 2016'!AE$14","v":0},{"$f":"'Population 2016'!AF136/'Population 2016'!AF$14","v":0},{"$f":"'Population 2016'!AG136/'Population 2016'!AG$14","v":0},{"$f":"'Population 2016'!AH136/'Population 2016'!AH$14","v":0},{"$f":"'Population 2016'!AI136/'Population 2016'!AI$14","v":0},{"$f":"'Population 2016'!AJ136/'Population 2016'!AJ$14","v":0},{"$f":"'Population 2016'!AK136/'Population 2016'!AK$14","v":0},{"$f":"'Population 2016'!AL136/'Population 2016'!AL$14","v":0},{"$f":"'Population 2016'!AM136/'Population 2016'!AM$14","v":0},{"$f":"'Population 2016'!AN136/'Population 2016'!AN$14","v":0},{"$f":"'Population 2016'!AO136/'Population 2016'!AO$14","v":0},{"$f":"'Population 2016'!AP136/'Population 2016'!AP$14","v":0},{"$f":"'Population 2016'!AQ136/'Population 2016'!AQ$14","v":0},{"$f":"'Population 2016'!AR136/'Population 2016'!AR$14","v":0},{"$f":"'Population 2016'!AS136/'Population 2016'!AS$14","v":0},{"$f":"'Population 2016'!AT136/'Population 2016'!AT$14","v":0},{"$f":"'Population 2016'!AU136/'Population 2016'!AU$14","v":0},{"$f":"'Population 2016'!AV136/'Population 2016'!AV$14","v":0},{"$f":"'Population 2016'!AW136/'Population 2016'!AW$14","v":0},{"$f":"'Population 2016'!AX136/'Population 2016'!AX$14","v":0},{"$f":"'Population 2016'!AY136/'Population 2016'!AY$14","v":0},{"$f":"'Population 2016'!AZ136/'Population 2016'!AZ$14","v":0},{"$f":"'Population 2016'!BA136/'Population 2016'!BA$14","v":0},{"$f":"'Population 2016'!BB136/'Population 2016'!BB$14","v":0},{"$f":"'Population 2016'!BC136/'Population 2016'!BC$14","v":0},134]
[null,"Female 5-9",{"$f":"'Population 2016'!C137/'Population 2016'!C$14","v":0},{"$f":"'Population 2016'!D137/'Population 2016'!D$14","v":0},{"$f":"'Population 2016'!E137/'Population 2016'!E$14","v":0},{"$f":"'Population 2016'!F137/'Population 2016'!F$14","v":0},{"$f":"'Population 2016'!G137/'Population 2016'!G$14","v":0},{"$f":"'Population 2016'!H137/'Population 2016'!H$14","v":0},{"$f":"'Population 2016'!I137/'Population 2016'!I$14","v":0},{"$f":"'Population 2016'!J137/'Population 2016'!J$14","v":0},{"$f":"'Population 2016'!K137/'Population 2016'!K$14","v":0},{"$f":"'Population 2016'!L137/'Population 2016'!L$14","v":0},{"$f":"'Population 2016'!M137/'Population 2016'!M$14","v":0},{"$f":"'Population 2016'!N137/'Population 2016'!N$14","v":0},{"$f":"'Population 2016'!O137/'Population 2016'!O$14","v":0},{"$f":"'Population 2016'!P137/'Population 2016'!P$14","v":0},{"$f":"'Population 2016'!Q137/'Population 2016'!Q$14","v":0},{"$f":"'Population 2016'!R137/'Population 2016'!R$14","v":0},{"$f":"'Population 2016'!S137/'Population 2016'!S$14","v":0},{"$f":"'Population 2016'!T137/'Population 2016'!T$14","v":0},{"$f":"'Population 2016'!U137/'Population 2016'!U$14","v":0},{"$f":"'Population 2016'!V137/'Population 2016'!V$14","v":0},{"$f":"'Population 2016'!W137/'Population 2016'!W$14","v":0},{"$f":"'Population 2016'!X137/'Population 2016'!X$14","v":0},{"$f":"'Population 2016'!Y137/'Population 2016'!Y$14","v":0},{"$f":"'Population 2016'!Z137/'Population 2016'!Z$14","v":0},{"$f":"'Population 2016'!AA137/'Population 2016'!AA$14","v":0},{"$f":"'Population 2016'!AB137/'Population 2016'!AB$14","v":0},{"$f":"'Population 2016'!AC137/'Population 2016'!AC$14","v":0},{"$f":"'Population 2016'!AD137/'Population 2016'!AD$14","v":0},{"$f":"'Population 2016'!AE137/'Population 2016'!AE$14","v":0},{"$f":"'Population 2016'!AF137/'Population 2016'!AF$14","v":0},{"$f":"'Population 2016'!AG137/'Population 2016'!AG$14","v":0},{"$f":"'Population 2016'!AH137/'Population 2016'!AH$14","v":0},{"$f":"'Population 2016'!AI137/'Population 2016'!AI$14","v":0},{"$f":"'Population 2016'!AJ137/'Population 2016'!AJ$14","v":0},{"$f":"'Population 2016'!AK137/'Population 2016'!AK$14","v":0},{"$f":"'Population 2016'!AL137/'Population 2016'!AL$14","v":0},{"$f":"'Population 2016'!AM137/'Population 2016'!AM$14","v":0},{"$f":"'Population 2016'!AN137/'Population 2016'!AN$14","v":0},{"$f":"'Population 2016'!AO137/'Population 2016'!AO$14","v":0},{"$f":"'Population 2016'!AP137/'Population 2016'!AP$14","v":0},{"$f":"'Population 2016'!AQ137/'Population 2016'!AQ$14","v":0},{"$f":"'Population 2016'!AR137/'Population 2016'!AR$14","v":0},{"$f":"'Population 2016'!AS137/'Population 2016'!AS$14","v":0},{"$f":"'Population 2016'!AT137/'Population 2016'!AT$14","v":0},{"$f":"'Population 2016'!AU137/'Population 2016'!AU$14","v":0},{"$f":"'Population 2016'!AV137/'Population 2016'!AV$14","v":0},{"$f":"'Population 2016'!AW137/'Population 2016'!AW$14","v":0},{"$f":"'Population 2016'!AX137/'Population 2016'!AX$14","v":0},{"$f":"'Population 2016'!AY137/'Population 2016'!AY$14","v":0},{"$f":"'Population 2016'!AZ137/'Population 2016'!AZ$14","v":0},{"$f":"'Population 2016'!BA137/'Population 2016'!BA$14","v":0},{"$f":"'Population 2016'!BB137/'Population 2016'!BB$14","v":0},{"$f":"'Population 2016'!BC137/'Population 2016'!BC$14","v":0},135]
[null,"Female 10-15",{"$f":"'Population 2016'!C138/'Population 2016'!C$14","v":0},{"$f":"'Population 2016'!D138/'Population 2016'!D$14","v":0},{"$f":"'Population 2016'!E138/'Population 2016'!E$14","v":0},{"$f":"'Population 2016'!F138/'Population 2016'!F$14","v":0},{"$f":"'Population 2016'!G138/'Population 2016'!G$14","v":0},{"$f":"'Population 2016'!H138/'Population 2016'!H$14","v":0},{"$f":"'Population 2016'!I138/'Population 2016'!I$14","v":0},{"$f":"'Population 2016'!J138/'Population 2016'!J$14","v":0},{"$f":"'Population 2016'!K138/'Population 2016'!K$14","v":0},{"$f":"'Population 2016'!L138/'Population 2016'!L$14","v":0},{"$f":"'Population 2016'!M138/'Population 2016'!M$14","v":0},{"$f":"'Population 2016'!N138/'Population 2016'!N$14","v":0},{"$f":"'Population 2016'!O138/'Population 2016'!O$14","v":0},{"$f":"'Population 2016'!P138/'Population 2016'!P$14","v":0},{"$f":"'Population 2016'!Q138/'Population 2016'!Q$14","v":0},{"$f":"'Population 2016'!R138/'Population 2016'!R$14","v":0},{"$f":"'Population 2016'!S138/'Population 2016'!S$14","v":0},{"$f":"'Population 2016'!T138/'Population 2016'!T$14","v":0},{"$f":"'Population 2016'!U138/'Population 2016'!U$14","v":0},{"$f":"'Population 2016'!V138/'Population 2016'!V$14","v":0},{"$f":"'Population 2016'!W138/'Population 2016'!W$14","v":0},{"$f":"'Population 2016'!X138/'Population 2016'!X$14","v":0},{"$f":"'Population 2016'!Y138/'Population 2016'!Y$14","v":0},{"$f":"'Population 2016'!Z138/'Population 2016'!Z$14","v":0},{"$f":"'Population 2016'!AA138/'Population 2016'!AA$14","v":0},{"$f":"'Population 2016'!AB138/'Population 2016'!AB$14","v":0},{"$f":"'Population 2016'!AC138/'Population 2016'!AC$14","v":0},{"$f":"'Population 2016'!AD138/'Population 2016'!AD$14","v":0},{"$f":"'Population 2016'!AE138/'Population 2016'!AE$14","v":0},{"$f":"'Population 2016'!AF138/'Population 2016'!AF$14","v":0},{"$f":"'Population 2016'!AG138/'Population 2016'!AG$14","v":0},{"$f":"'Population 2016'!AH138/'Population 2016'!AH$14","v":0},{"$f":"'Population 2016'!AI138/'Population 2016'!AI$14","v":0},{"$f":"'Population 2016'!AJ138/'Population 2016'!AJ$14","v":0},{"$f":"'Population 2016'!AK138/'Population 2016'!AK$14","v":0},{"$f":"'Population 2016'!AL138/'Population 2016'!AL$14","v":0},{"$f":"'Population 2016'!AM138/'Population 2016'!AM$14","v":0},{"$f":"'Population 2016'!AN138/'Population 2016'!AN$14","v":0},{"$f":"'Population 2016'!AO138/'Population 2016'!AO$14","v":0},{"$f":"'Population 2016'!AP138/'Population 2016'!AP$14","v":0},{"$f":"'Population 2016'!AQ138/'Population 2016'!AQ$14","v":0},{"$f":"'Population 2016'!AR138/'Population 2016'!AR$14","v":0},{"$f":"'Population 2016'!AS138/'Population 2016'!AS$14","v":0},{"$f":"'Population 2016'!AT138/'Population 2016'!AT$14","v":0},{"$f":"'Population 2016'!AU138/'Population 2016'!AU$14","v":0},{"$f":"'Population 2016'!AV138/'Population 2016'!AV$14","v":0},{"$f":"'Population 2016'!AW138/'Population 2016'!AW$14","v":0},{"$f":"'Population 2016'!AX138/'Population 2016'!AX$14","v":0},{"$f":"'Population 2016'!AY138/'Population 2016'!AY$14","v":0},{"$f":"'Population 2016'!AZ138/'Population 2016'!AZ$14","v":0},{"$f":"'Population 2016'!BA138/'Population 2016'!BA$14","v":0},{"$f":"'Population 2016'!BB138/'Population 2016'!BB$14","v":0},{"$f":"'Population 2016'!BC138/'Population 2016'!BC$14","v":0},136]
[null,"Female 16-19",{"$f":"'Population 2016'!C139/'Population 2016'!C$14","v":4.2656120780246365E-3},{"$f":"'Population 2016'!D139/'Population 2016'!D$14","v":5.3283246877001188E-3},{"$f":"'Population 2016'!E139/'Population 2016'!E$14","v":6.3606929712228481E-3},{"$f":"'Population 2016'!F139/'Population 2016'!F$14","v":1.109253697512325E-2},{"$f":"'Population 2016'!G139/'Population 2016'!G$14","v":1.4540660348517273E-2},{"$f":"'Population 2016'!H139/'Population 2016'!H$14","v":5.8900408750416642E-3},{"$f":"'Population 2016'!I139/'Population 2016'!I$14","v":1.1393424617412317E-2},{"$f":"'Population 2016'!J139/'Population 2016'!J$14","v":5.5856338783168051E-3},{"$f":"'Population 2016'!K139/'Population 2016'!K$14","v":5.3940757636470119E-3},{"$f":"'Population 2016'!L139/'Population 2016'!L$14","v":1.2000134832975651E-2},{"$f":"'Population 2016'!M139/'Population 2016'!M$14","v":1.2000134832975651E-2},{"$f":"'Population 2016'!N139/'Population 2016'!N$14","v":4.8347451601763259E-3},{"$f":"'Population 2016'!O139/'Population 2016'!O$14","v":5.4138969671790613E-3},{"$f":"'Population 2016'!P139/'Population 2016'!P$14","v":2.5105243015690775E-3},{"$f":"'Population 2016'!Q139/'Population 2016'!Q$14","v":7.016676197394248E-3},{"$f":"'Population 2016'!R139/'Population 2016'!R$14","v":4.0672594418522754E-3},{"$f":"'Population 2016'!S139/'Population 2016'!S$14","v":6.3008321769083258E-3},{"$f":"'Population 2016'!T139/'Population 2016'!T$14","v":4.0579529944358567E-3},{"$f":"'Population 2016'!U139/'Population 2016'!U$14","v":2.2502193807195689E-2},{"$f":"'Population 2016'!V139/'Population 2016'!V$14","v":5.8705725280766511E-3},{"$f":"'Population 2016'!W139/'Population 2016'!W$14","v":6.9436074042186829E-3},{"$f":"'Population 2016'!X139/'Population 2016'!X$14","v":6.9436074042186829E-3},{"$f":"'Population 2016'!Y139/'Population 2016'!Y$14","v":5.7343739590753262E-3},{"$f":"'Population 2016'!Z139/'Population 2016'!Z$14","v":5.4668166999004139E-3},{"$f":"'Population 2016'!AA139/'Population 2016'!AA$14","v":5.5542949432390767E-3},{"$f":"'Population 2016'!AB139/'Population 2016'!AB$14","v":5.9794177512831536E-3},{"$f":"'Population 2016'!AC139/'Population 2016'!AC$14","v":5.0845776399675883E-3},{"$f":"'Population 2016'!AD139/'Population 2016'!AD$14","v":1.1184524353236103E-2},{"$f":"'Population 2016'!AE139/'Population 2016'!AE$14","v":9.9708406462044475E-3},{"$f":"'Population 2016'!AF139/'Population 2016'!AF$14","v":5.5045871559633031E-3},{"$f":"'Population 2016'!AG139/'Population 2016'!AG$14","v":9.9708406462044475E-3},{"$f":"'Population 2016'!AH139/'Population 2016'!AH$14","v":6.4174338313097859E-3},{"$f":"'Population 2016'!AI139/'Population 2016'!AI$14","v":5.4584801327252916E-3},{"$f":"'Population 2016'!AJ139/'Population 2016'!AJ$14","v":8.6384501391549504E-3},{"$f":"'Population 2016'!AK139/'Population 2016'!AK$14","v":9.5335262339226283E-3},{"$f":"'Population 2016'!AL139/'Population 2016'!AL$14","v":4.8722092536062729E-3},{"$f":"'Population 2016'!AM139/'Population 2016'!AM$14","v":6.3799557364955326E-3},{"$f":"'Population 2016'!AN139/'Population 2016'!AN$14","v":9.2017655420064334E-3},{"$f":"'Population 2016'!AO139/'Population 2016'!AO$14","v":9.2017655420064334E-3},{"$f":"'Population 2016'!AP139/'Population 2016'!AP$14","v":7.1653116531165311E-3},{"$f":"'Population 2016'!AQ139/'Population 2016'!AQ$14","v":5.8423277528218799E-3},{"$f":"'Population 2016'!AR139/'Population 2016'!AR$14","v":6.551418924901381E-3},{"$f":"'Population 2016'!AS139/'Population 2016'!AS$14","v":1.1393424617412317E-2},{"$f":"'Population 2016'!AT139/'Population 2016'!AT$14","v":1.0230705850041197E-2},{"$f":"'Population 2016'!AU139/'Population 2016'!AU$14","v":1.0230705850041197E-2},{"$f":"'Population 2016'!AV139/'Population 2016'!AV$14","v":7.6942463641350278E-3},{"$f":"'Population 2016'!AW139/'Population 2016'!AW$14","v":6.4580057086798554E-3},{"$f":"'Population 2016'!AX139/'Population 2016'!AX$14","v":5.6877958968963704E-3},{"$f":"'Population 2016'!AY139/'Population 2016'!AY$14","v":7.1577335126987475E-3},{"$f":"'Population 2016'!AZ139/'Population 2016'!AZ$14","v":7.3481009751542332E-3},{"$f":"'Population 2016'!BA139/'Population 2016'!BA$14","v":4.2828771263276055E-3},{"$f":"'Population 2016'!BB139/'Population 2016'!BB$14","v":7.3419922362520547E-3},{"$f":"'Population 2016'!BC139/'Population 2016'!BC$14","v":2.2502193807195689E-2},137]
[null,"Female 20-24",{"$f":"'Population 2016'!C140/'Population 2016'!C$14","v":1.2728437206583718E-2},{"$f":"'Population 2016'!D140/'Population 2016'!D$14","v":1.0313479527773778E-2},{"$f":"'Population 2016'!E140/'Population 2016'!E$14","v":7.9674777103921519E-3},{"$f":"'Population 2016'!F140/'Population 2016'!F$14","v":1.2636708789029297E-2},{"$f":"'Population 2016'!G140/'Population 2016'!G$14","v":1.2973861204524611E-2},{"$f":"'Population 2016'!H140/'Population 2016'!H$14","v":6.7364875532866693E-3},{"$f":"'Population 2016'!I140/'Population 2016'!I$14","v":1.3824412389250933E-2},{"$f":"'Population 2016'!J140/'Population 2016'!J$14","v":9.7346555883141249E-3},{"$f":"'Population 2016'!K140/'Population 2016'!K$14","v":7.8907622599636278E-3},{"$f":"'Population 2016'!L140/'Population 2016'!L$14","v":1.4134990280789671E-2},{"$f":"'Population 2016'!M140/'Population 2016'!M$14","v":1.4134990280789671E-2},{"$f":"'Population 2016'!N140/'Population 2016'!N$14","v":8.6944156661994433E-3},{"$f":"'Population 2016'!O140/'Population 2016'!O$14","v":6.4395513086830079E-3},{"$f":"'Population 2016'!P140/'Population 2016'!P$14","v":3.3065442020665903E-3},{"$f":"'Population 2016'!Q140/'Population 2016'!Q$14","v":9.6904316646832453E-3},{"$f":"'Population 2016'!R140/'Population 2016'!R$14","v":4.5426534025882559E-3},{"$f":"'Population 2016'!S140/'Population 2016'!S$14","v":1.1203849660258051E-2},{"$f":"'Population 2016'!T140/'Population 2016'!T$14","v":1.2934018701624594E-2},{"$f":"'Population 2016'!U140/'Population 2016'!U$14","v":2.2878275040742135E-2},{"$f":"'Population 2016'!V140/'Population 2016'!V$14","v":7.6572685148825889E-3},{"$f":"'Population 2016'!W140/'Population 2016'!W$14","v":9.6814464055101166E-3},{"$f":"'Population 2016'!X140/'Population 2016'!X$14","v":9.6814464055101166E-3},{"$f":"'Population 2016'!Y140/'Population 2016'!Y$14","v":8.6502441849143439E-3},{"$f":"'Population 2016'!Z140/'Population 2016'!Z$14","v":1.2202138204638245E-2},{"$f":"'Population 2016'!AA140/'Population 2016'!AA$14","v":8.9387609367387669E-3},{"$f":"'Population 2016'!AB140/'Population 2016'!AB$14","v":1.0503472671807913E-2},{"$f":"'Population 2016'!AC140/'Population 2016'!AC$14","v":9.4554851475455032E-3},{"$f":"'Population 2016'!AD140/'Population 2016'!AD$14","v":1.1818855362380618E-2},{"$f":"'Population 2016'!AE140/'Population 2016'!AE$14","v":1.1401169138071612E-2},{"$f":"'Population 2016'!AF140/'Population 2016'!AF$14","v":6.3621858795372957E-3},{"$f":"'Population 2016'!AG140/'Population 2016'!AG$14","v":1.1401169138071612E-2},{"$f":"'Population 2016'!AH140/'Population 2016'!AH$14","v":7.9892435192440159E-3},{"$f":"'Population 2016'!AI140/'Population 2016'!AI$14","v":1.1499921198594793E-2},{"$f":"'Population 2016'!AJ140/'Population 2016'!AJ$14","v":9.3251888531463469E-3},{"$f":"'Population 2016'!AK140/'Population 2016'!AK$14","v":1.1540584388432655E-2},{"$f":"'Population 2016'!AL140/'Population 2016'!AL$14","v":5.6862393008918419E-3},{"$f":"'Population 2016'!AM140/'Population 2016'!AM$14","v":7.7916518666265927E-3},{"$f":"'Population 2016'!AN140/'Population 2016'!AN$14","v":1.2643076232512904E-2},{"$f":"'Population 2016'!AO140/'Population 2016'!AO$14","v":1.2643076232512904E-2},{"$f":"'Population 2016'!AP140/'Population 2016'!AP$14","v":9.6910569105691062E-3},{"$f":"'Population 2016'!AQ140/'Population 2016'!AQ$14","v":7.6956341396686992E-3},{"$f":"'Population 2016'!AR140/'Population 2016'!AR$14","v":1.0003063097809097E-2},{"$f":"'Population 2016'!AS140/'Population 2016'!AS$14","v":1.3824412389250933E-2},{"$f":"'Population 2016'!AT140/'Population 2016'!AT$14","v":1.1878604778906893E-2},{"$f":"'Population 2016'!AU140/'Population 2016'!AU$14","v":1.1878604778906893E-2},{"$f":"'Population 2016'!AV140/'Population 2016'!AV$14","v":8.3762026892799431E-3},{"$f":"'Population 2016'!AW140/'Population 2016'!AW$14","v":8.2031461826284572E-3},{"$f":"'Population 2016'!AX140/'Population 2016'!AX$14","v":1.0718043135192003E-2},{"$f":"'Population 2016'!AY140/'Population 2016'!AY$14","v":9.9089936627822176E-3},{"$f":"'Population 2016'!AZ140/'Population 2016'!AZ$14","v":1.0111293112686191E-2},{"$f":"'Population 2016'!BA140/'Population 2016'!BA$14","v":6.8042483377946635E-3},{"$f":"'Population 2016'!BB140/'Population 2016'!BB$14","v":9.1753384804744327E-3},{"$f":"'Population 2016'!BC140/'Population 2016'!BC$14","v":2.2878275040742135E-2},138]
[null,"Female 25-29",{"$f":"'Population 2016'!C141/'Population 2016'!C$14","v":1.2442404909806555E-2},{"$f":"'Population 2016'!D141/'Population 2016'!D$14","v":1.0475872402097013E-2},{"$f":"'Population 2016'!E141/'Population 2016'!E$14","v":8.5654915794814799E-3},{"$f":"'Population 2016'!F141/'Population 2016'!F$14","v":1.1489204964016547E-2},{"$f":"'Population 2016'!G141/'Population 2016'!G$14","v":1.3910119229593397E-2},{"$f":"'Population 2016'!H141/'Population 2016'!H$14","v":6.8812167780643125E-3},{"$f":"'Population 2016'!I141/'Population 2016'!I$14","v":1.1261624075565644E-2},{"$f":"'Population 2016'!J141/'Population 2016'!J$14","v":9.0377914768158679E-3},{"$f":"'Population 2016'!K141/'Population 2016'!K$14","v":8.1681718706654756E-3},{"$f":"'Population 2016'!L141/'Population 2016'!L$14","v":1.4708030427308172E-2},{"$f":"'Population 2016'!M141/'Population 2016'!M$14","v":1.4708030427308172E-2},{"$f":"'Population 2016'!N141/'Population 2016'!N$14","v":9.7202754585897985E-3},{"$f":"'Population 2016'!O141/'Population 2016'!O$14","v":6.9458869962609054E-3},{"$f":"'Population 2016'!P141/'Population 2016'!P$14","v":3.0616150019135095E-3},{"$f":"'Population 2016'!Q141/'Population 2016'!Q$14","v":9.1340432437444947E-3},{"$f":"'Population 2016'!R141/'Population 2016'!R$14","v":4.6835108724359534E-3},{"$f":"'Population 2016'!S141/'Population 2016'!S$14","v":1.2535422532997409E-2},{"$f":"'Population 2016'!T141/'Population 2016'!T$14","v":1.5920965996275498E-2},{"$f":"'Population 2016'!U141/'Population 2016'!U$14","v":2.5886924909113703E-2},{"$f":"'Population 2016'!V141/'Population 2016'!V$14","v":7.7456216131312336E-3},{"$f":"'Population 2016'!W141/'Population 2016'!W$14","v":1.0688764528626776E-2},{"$f":"'Population 2016'!X141/'Population 2016'!X$14","v":1.0688764528626776E-2},{"$f":"'Population 2016'!Y141/'Population 2016'!Y$14","v":8.3632692593484641E-3},{"$f":"'Population 2016'!Z141/'Population 2016'!Z$14","v":1.1499723886476907E-2},{"$f":"'Population 2016'!AA141/'Population 2016'!AA$14","v":8.8394877168160493E-3},{"$f":"'Population 2016'!AB141/'Population 2016'!AB$14","v":1.0744306734549071E-2},{"$f":"'Population 2016'!AC141/'Population 2016'!AC$14","v":9.0381040592887266E-3},{"$f":"'Population 2016'!AD141/'Population 2016'!AD$14","v":1.2732292015548721E-2},{"$f":"'Population 2016'!AE141/'Population 2016'!AE$14","v":1.2306352869639723E-2},{"$f":"'Population 2016'!AF141/'Population 2016'!AF$14","v":6.1228560031910649E-3},{"$f":"'Population 2016'!AG141/'Population 2016'!AG$14","v":1.2306352869639723E-2},{"$f":"'Population 2016'!AH141/'Population 2016'!AH$14","v":8.4745160885610609E-3},{"$f":"'Population 2016'!AI141/'Population 2016'!AI$14","v":1.3409796116192248E-2},{"$f":"'Population 2016'!AJ141/'Population 2016'!AJ$14","v":1.0499873495500054E-2},{"$f":"'Population 2016'!AK141/'Population 2016'!AK$14","v":1.220960377326933E-2},{"$f":"'Population 2016'!AL141/'Population 2016'!AL$14","v":5.147542946070509E-3},{"$f":"'Population 2016'!AM141/'Population 2016'!AM$14","v":8.588577101377998E-3},{"$f":"'Population 2016'!AN141/'Population 2016'!AN$14","v":1.3765242762025884E-2},{"$f":"'Population 2016'!AO141/'Population 2016'!AO$14","v":1.3765242762025884E-2},{"$f":"'Population 2016'!AP141/'Population 2016'!AP$14","v":1.0059620596205961E-2},{"$f":"'Population 2016'!AQ141/'Population 2016'!AQ$14","v":7.7927120932654373E-3},{"$f":"'Population 2016'!AR141/'Population 2016'!AR$14","v":1.0439174871938729E-2},{"$f":"'Population 2016'!AS141/'Population 2016'!AS$14","v":1.1261624075565644E-2},{"$f":"'Population 2016'!AT141/'Population 2016'!AT$14","v":1.4419115627574842E-2},{"$f":"'Population 2016'!AU141/'Population 2016'!AU$14","v":1.4419115627574842E-2},{"$f":"'Population 2016'!AV141/'Population 2016'!AV$14","v":8.9543830519028065E-3},{"$f":"'Population 2016'!AW141/'Population 2016'!AW$14","v":8.3510394431325768E-3},{"$f":"'Population 2016'!AX141/'Population 2016'!AX$14","v":9.5015781167806426E-3},{"$f":"'Population 2016'!AY141/'Population 2016'!AY$14","v":1.0492471514935412E-2},{"$f":"'Population 2016'!AZ141/'Population 2016'!AZ$14","v":1.0317958452612403E-2},{"$f":"'Population 2016'!BA141/'Population 2016'!BA$14","v":6.6142820136430363E-3},{"$f":"'Population 2016'!BB141/'Population 2016'!BB$14","v":9.5282361143388342E-3},{"$f":"'Population 2016'!BC141/'Population 2016'!BC$14","v":2.5886924909113703E-2},139]
[null,"Female 30-34",{"$f":"'Population 2016'!C142/'Population 2016'!C$14","v":9.8245875849547019E-3},{"$f":"'Population 2016'!D142/'Population 2016'!D$14","v":9.5658595025875613E-3},{"$f":"'Population 2016'!E142/'Population 2016'!E$14","v":9.3145190518761928E-3},{"$f":"'Population 2016'!F142/'Population 2016'!F$14","v":1.4180880602935344E-2},{"$f":"'Population 2016'!G142/'Population 2016'!G$14","v":1.5763527973096911E-2},{"$f":"'Population 2016'!H142/'Population 2016'!H$14","v":7.3855761977439788E-3},{"$f":"'Population 2016'!I142/'Population 2016'!I$14","v":1.3882990407849455E-2},{"$f":"'Population 2016'!J142/'Population 2016'!J$14","v":7.3974805682122755E-3},{"$f":"'Population 2016'!K142/'Population 2016'!K$14","v":8.4455814813673216E-3},{"$f":"'Population 2016'!L142/'Population 2016'!L$14","v":1.4090045955572535E-2},{"$f":"'Population 2016'!M142/'Population 2016'!M$14","v":1.4090045955572535E-2},{"$f":"'Population 2016'!N142/'Population 2016'!N$14","v":6.2567290308164223E-3},{"$f":"'Population 2016'!O142/'Population 2016'!O$14","v":7.2055463232239304E-3},{"$f":"'Population 2016'!P142/'Population 2016'!P$14","v":2.4646000765403751E-3},{"$f":"'Population 2016'!Q142/'Population 2016'!Q$14","v":9.3813269863839387E-3},{"$f":"'Population 2016'!R142/'Population 2016'!R$14","v":4.9476186284003873E-3},{"$f":"'Population 2016'!S142/'Population 2016'!S$14","v":1.1328474102816288E-2},{"$f":"'Population 2016'!T142/'Population 2016'!T$14","v":1.2199291836336765E-2},{"$f":"'Population 2016'!U142/'Population 2016'!U$14","v":2.8394133132756676E-2},{"$f":"'Population 2016'!V142/'Population 2016'!V$14","v":9.0120160213618163E-3},{"$f":"'Population 2016'!W142/'Population 2016'!W$14","v":1.0210934136891951E-2},{"$f":"'Population 2016'!X142/'Population 2016'!X$14","v":1.0210934136891951E-2},{"$f":"'Population 2016'!Y142/'Population 2016'!Y$14","v":8.2402800055345164E-3},{"$f":"'Population 2016'!Z142/'Population 2016'!Z$14","v":9.1313861360973955E-3},{"$f":"'Population 2016'!AA142/'Population 2016'!AA$14","v":8.3364477872916939E-3},{"$f":"'Population 2016'!AB142/'Population 2016'!AB$14","v":1.0275586676956064E-2},{"$f":"'Population 2016'!AC142/'Population 2016'!AC$14","v":7.7550436768697448E-3},{"$f":"'Population 2016'!AD142/'Population 2016'!AD$14","v":1.3924834312740412E-2},{"$f":"'Population 2016'!AE142/'Population 2016'!AE$14","v":1.3259905197551167E-2},{"$f":"'Population 2016'!AF142/'Population 2016'!AF$14","v":5.3649780614280019E-3},{"$f":"'Population 2016'!AG142/'Population 2016'!AG$14","v":1.3259905197551167E-2},{"$f":"'Population 2016'!AH142/'Population 2016'!AH$14","v":9.4048191116908077E-3},{"$f":"'Population 2016'!AI142/'Population 2016'!AI$14","v":1.1472806736588086E-2},{"$f":"'Population 2016'!AJ142/'Population 2016'!AJ$14","v":1.1114323923808147E-2},{"$f":"'Population 2016'!AK142/'Population 2016'!AK$14","v":1.414975998929569E-2},{"$f":"'Population 2016'!AL142/'Population 2016'!AL$14","v":5.5665289998204342E-3},{"$f":"'Population 2016'!AM142/'Population 2016'!AM$14","v":9.804457316684426E-3},{"$f":"'Population 2016'!AN142/'Population 2016'!AN$14","v":1.5186653699408992E-2},{"$f":"'Population 2016'!AO142/'Population 2016'!AO$14","v":1.5186653699408992E-2},{"$f":"'Population 2016'!AP142/'Population 2016'!AP$14","v":1.0764227642276422E-2},{"$f":"'Population 2016'!AQ142/'Population 2016'!AQ$14","v":8.5869862590569317E-3},{"$f":"'Population 2016'!AR142/'Population 2016'!AR$14","v":9.9701111569254521E-3},{"$f":"'Population 2016'!AS142/'Population 2016'!AS$14","v":1.3882990407849455E-2},{"$f":"'Population 2016'!AT142/'Population 2016'!AT$14","v":1.2908541609447955E-2},{"$f":"'Population 2016'!AU142/'Population 2016'!AU$14","v":1.2908541609447955E-2},{"$f":"'Population 2016'!AV142/'Population 2016'!AV$14","v":9.8438913020918277E-3},{"$f":"'Population 2016'!AW142/'Population 2016'!AW$14","v":8.9721911372498755E-3},{"$f":"'Population 2016'!AX142/'Population 2016'!AX$14","v":6.8385060494476589E-3},{"$f":"'Population 2016'!AY142/'Population 2016'!AY$14","v":1.0093356456344512E-2},{"$f":"'Population 2016'!AZ142/'Population 2016'!AZ$14","v":9.9888247631002864E-3},{"$f":"'Population 2016'!BA142/'Population 2016'!BA$14","v":6.6315516794750026E-3},{"$f":"'Population 2016'!BB142/'Population 2016'!BB$14","v":1.0595536275294583E-2},{"$f":"'Population 2016'!BC142/'Population 2016'!BC$14","v":2.8394133132756676E-2},140]
[null,"Female 35-39",{"$f":"'Population 2016'!C143/'Population 2016'!C$14","v":6.1310401004843898E-3},{"$f":"'Population 2016'!D143/'Population 2016'!D$14","v":7.6202090272054022E-3},{"$f":"'Population 2016'!E143/'Population 2016'!E$14","v":9.066856742455361E-3},{"$f":"'Population 2016'!F143/'Population 2016'!F$14","v":1.5215050716835724E-2},{"$f":"'Population 2016'!G143/'Population 2016'!G$14","v":1.6126566799143992E-2},{"$f":"'Population 2016'!H143/'Population 2016'!H$14","v":7.5083767521007668E-3},{"$f":"'Population 2016'!I143/'Population 2016'!I$14","v":1.3194698689316834E-2},{"$f":"'Population 2016'!J143/'Population 2016'!J$14","v":7.5046904315196998E-3},{"$f":"'Population 2016'!K143/'Population 2016'!K$14","v":7.3051197484819532E-3},{"$f":"'Population 2016'!L143/'Population 2016'!L$14","v":1.3854088248182564E-2},{"$f":"'Population 2016'!M143/'Population 2016'!M$14","v":1.3854088248182564E-2},{"$f":"'Population 2016'!N143/'Population 2016'!N$14","v":4.8855302984134727E-3},{"$f":"'Population 2016'!O143/'Population 2016'!O$14","v":7.0757166597424179E-3},{"$f":"'Population 2016'!P143/'Population 2016'!P$14","v":2.9850746268656717E-3},{"$f":"'Population 2016'!Q143/'Population 2016'!Q$14","v":9.5667897933635233E-3},{"$f":"'Population 2016'!R143/'Population 2016'!R$14","v":5.194119200633859E-3},{"$f":"'Population 2016'!S143/'Population 2016'!S$14","v":9.7936847967162021E-3},{"$f":"'Population 2016'!T143/'Population 2016'!T$14","v":8.3306723033404646E-3},{"$f":"'Population 2016'!U143/'Population 2016'!U$14","v":3.4286072458317662E-2},{"$f":"'Population 2016'!V143/'Population 2016'!V$14","v":9.1690881960260744E-3},{"$f":"'Population 2016'!W143/'Population 2016'!W$14","v":1.0529487731381834E-2},{"$f":"'Population 2016'!X143/'Population 2016'!X$14","v":1.0529487731381834E-2},{"$f":"'Population 2016'!Y143/'Population 2016'!Y$14","v":8.3735183638329602E-3},{"$f":"'Population 2016'!Z143/'Population 2016'!Z$14","v":6.922477951353187E-3},{"$f":"'Population 2016'!AA143/'Population 2016'!AA$14","v":7.6840809135138386E-3},{"$f":"'Population 2016'!AB143/'Population 2016'!AB$14","v":8.2764049948466697E-3},{"$f":"'Population 2016'!AC143/'Population 2016'!AC$14","v":6.652333147401223E-3},{"$f":"'Population 2016'!AD143/'Population 2016'!AD$14","v":1.4711404764079611E-2},{"$f":"'Population 2016'!AE143/'Population 2016'!AE$14","v":1.4199637926507374E-2},{"$f":"'Population 2016'!AF143/'Population 2016'!AF$14","v":7.4391703230953328E-3},{"$f":"'Population 2016'!AG143/'Population 2016'!AG$14","v":1.4199637926507374E-2},{"$f":"'Population 2016'!AH143/'Population 2016'!AH$14","v":9.5799906732979365E-3},{"$f":"'Population 2016'!AI143/'Population 2016'!AI$14","v":9.1104592342536993E-3},{"$f":"'Population 2016'!AJ143/'Population 2016'!AJ$14","v":1.1186612209491452E-2},{"$f":"'Population 2016'!AK143/'Population 2016'!AK$14","v":1.1858368596230075E-2},{"$f":"'Population 2016'!AL143/'Population 2016'!AL$14","v":5.9735440234632191E-3},{"$f":"'Population 2016'!AM143/'Population 2016'!AM$14","v":1.010045811816352E-2},{"$f":"'Population 2016'!AN143/'Population 2016'!AN$14","v":1.0623176479389542E-2},{"$f":"'Population 2016'!AO143/'Population 2016'!AO$14","v":1.0623176479389542E-2},{"$f":"'Population 2016'!AP143/'Population 2016'!AP$14","v":9.9186991869918695E-3},{"$f":"'Population 2016'!AQ143/'Population 2016'!AQ$14","v":8.207499713178773E-3},{"$f":"'Population 2016'!AR143/'Population 2016'!AR$14","v":9.1569145636403691E-3},{"$f":"'Population 2016'!AS143/'Population 2016'!AS$14","v":1.3194698689316834E-2},{"$f":"'Population 2016'!AT143/'Population 2016'!AT$14","v":1.3045866520186761E-2},{"$f":"'Population 2016'!AU143/'Population 2016'!AU$14","v":1.3045866520186761E-2},{"$f":"'Population 2016'!AV143/'Population 2016'!AV$14","v":9.9031918521044291E-3},{"$f":"'Population 2016'!AW143/'Population 2016'!AW$14","v":9.0165591154011109E-3},{"$f":"'Population 2016'!AX143/'Population 2016'!AX$14","v":7.6111257233035245E-3},{"$f":"'Population 2016'!AY143/'Population 2016'!AY$14","v":9.9596427818927375E-3},{"$f":"'Population 2016'!AZ143/'Population 2016'!AZ$14","v":9.4530257336619562E-3},{"$f":"'Population 2016'!BA143/'Population 2016'!BA$14","v":6.4761246869873071E-3},{"$f":"'Population 2016'!BB143/'Population 2016'!BB$14","v":1.0242638641430182E-2},{"$f":"'Population 2016'!BC143/'Population 2016'!BC$14","v":3.4286072458317662E-2},141]
[null,"Female 40-44",{"$f":"'Population 2016'!C144/'Population 2016'!C$14","v":5.4035231717250859E-3},{"$f":"'Population 2016'!D144/'Population 2016'!D$14","v":7.6294010766953966E-3},{"$f":"'Population 2016'!E144/'Population 2016'!E$14","v":9.7917220383212118E-3},{"$f":"'Population 2016'!F144/'Population 2016'!F$14","v":1.768005893352978E-2},{"$f":"'Population 2016'!G144/'Population 2016'!G$14","v":2.0024457352491594E-2},{"$f":"'Population 2016'!H144/'Population 2016'!H$14","v":8.7319965615844774E-3},{"$f":"'Population 2016'!I144/'Population 2016'!I$14","v":1.75880500842059E-2},{"$f":"'Population 2016'!J144/'Population 2016'!J$14","v":8.2873224336638979E-3},{"$f":"'Population 2016'!K144/'Population 2016'!K$14","v":9.0312239928489971E-3},{"$f":"'Population 2016'!L144/'Population 2016'!L$14","v":1.761817548511781E-2},{"$f":"'Population 2016'!M144/'Population 2016'!M$14","v":1.761817548511781E-2},{"$f":"'Population 2016'!N144/'Population 2016'!N$14","v":4.286265667215146E-3},{"$f":"'Population 2016'!O144/'Population 2016'!O$14","v":8.5427918570835058E-3},{"$f":"'Population 2016'!P144/'Population 2016'!P$14","v":3.2606199770378874E-3},{"$f":"'Population 2016'!Q144/'Population 2016'!Q$14","v":1.0555924763921302E-2},{"$f":"'Population 2016'!R144/'Population 2016'!R$14","v":5.475834140329254E-3},{"$f":"'Population 2016'!S144/'Population 2016'!S$14","v":9.6859014950442142E-3},{"$f":"'Population 2016'!T144/'Population 2016'!T$14","v":6.6323228955020583E-3},{"$f":"'Population 2016'!U144/'Population 2016'!U$14","v":3.5978438009276671E-2},{"$f":"'Population 2016'!V144/'Population 2016'!V$14","v":9.8170109165161383E-3},{"$f":"'Population 2016'!W144/'Population 2016'!W$14","v":1.0477830391734826E-2},{"$f":"'Population 2016'!X144/'Population 2016'!X$14","v":1.0477830391734826E-2},{"$f":"'Population 2016'!Y144/'Population 2016'!Y$14","v":9.085831125505409E-3},{"$f":"'Population 2016'!Z144/'Population 2016'!Z$14","v":5.7949181248310392E-3},{"$f":"'Population 2016'!AA144/'Population 2016'!AA$14","v":7.5697915762918868E-3},{"$f":"'Population 2016'!AB144/'Population 2016'!AB$14","v":8.646719736480922E-3},{"$f":"'Population 2016'!AC144/'Population 2016'!AC$14","v":6.2839041620881423E-3},{"$f":"'Population 2016'!AD144/'Population 2016'!AD$14","v":1.6492606237757411E-2},{"$f":"'Population 2016'!AE144/'Population 2016'!AE$14","v":1.521537844971739E-2},{"$f":"'Population 2016'!AF144/'Population 2016'!AF$14","v":8.2768248903071408E-3},{"$f":"'Population 2016'!AG144/'Population 2016'!AG$14","v":1.521537844971739E-2},{"$f":"'Population 2016'!AH144/'Population 2016'!AH$14","v":9.9327009797771527E-3},{"$f":"'Population 2016'!AI144/'Population 2016'!AI$14","v":8.4597121460927207E-3},{"$f":"'Population 2016'!AJ144/'Population 2016'!AJ$14","v":1.1909495066324502E-2},{"$f":"'Population 2016'!AK144/'Population 2016'!AK$14","v":1.419993644315844E-2},{"$f":"'Population 2016'!AL144/'Population 2016'!AL$14","v":7.0150236427844615E-3},{"$f":"'Population 2016'!AM144/'Population 2016'!AM$14","v":1.0437443646001257E-2},{"$f":"'Population 2016'!AN144/'Population 2016'!AN$14","v":1.4438542679733673E-2},{"$f":"'Population 2016'!AO144/'Population 2016'!AO$14","v":1.4438542679733673E-2},{"$f":"'Population 2016'!AP144/'Population 2016'!AP$14","v":1.1208672086720868E-2},{"$f":"'Population 2016'!AQ144/'Population 2016'!AQ$14","v":9.0635507585318277E-3},{"$f":"'Population 2016'!AR144/'Population 2016'!AR$14","v":9.5391570778906518E-3},{"$f":"'Population 2016'!AS144/'Population 2016'!AS$14","v":1.75880500842059E-2},{"$f":"'Population 2016'!AT144/'Population 2016'!AT$14","v":1.3595166163141994E-2},{"$f":"'Population 2016'!AU144/'Population 2016'!AU$14","v":1.3595166163141994E-2},{"$f":"'Population 2016'!AV144/'Population 2016'!AV$14","v":1.1074377714853305E-2},{"$f":"'Population 2016'!AW144/'Population 2016'!AW$14","v":9.3862922666614074E-3},{"$f":"'Population 2016'!AX144/'Population 2016'!AX$14","v":7.8905839032088372E-3},{"$f":"'Population 2016'!AY144/'Population 2016'!AY$14","v":1.0409406959594159E-2},{"$f":"'Population 2016'!AZ144/'Population 2016'!AZ$14","v":1.0348575540008878E-2},{"$f":"'Population 2016'!BA144/'Population 2016'!BA$14","v":6.9769449961143253E-3},{"$f":"'Population 2016'!BB144/'Population 2016'!BB$14","v":1.1215258949397922E-2},{"$f":"'Population 2016'!BC144/'Population 2016'!BC$14","v":3.5978438009276671E-2},142]
[null,"Female 45-49",{"$f":"'Population 2016'!C145/'Population 2016'!C$14","v":5.5651936003382639E-3},{"$f":"'Population 2016'!D145/'Population 2016'!D$14","v":9.1246411270678278E-3},{"$f":"'Population 2016'!E145/'Population 2016'!E$14","v":1.258245342740474E-2},{"$f":"'Population 2016'!F145/'Population 2016'!F$14","v":2.004590015300051E-2},{"$f":"'Population 2016'!G145/'Population 2016'!G$14","v":2.4724854784469581E-2},{"$f":"'Population 2016'!H145/'Population 2016'!H$14","v":1.1157307510131045E-2},{"$f":"'Population 2016'!I145/'Population 2016'!I$14","v":2.269898220692685E-2},{"$f":"'Population 2016'!J145/'Population 2016'!J$14","v":1.0077727150897883E-2},{"$f":"'Population 2016'!K145/'Population 2016'!K$14","v":1.2113553000647289E-2},{"$f":"'Population 2016'!L145/'Population 2016'!L$14","v":2.4292407779862694E-2},{"$f":"'Population 2016'!M145/'Population 2016'!M$14","v":2.4292407779862694E-2},{"$f":"'Population 2016'!N145/'Population 2016'!N$14","v":5.4441668190220813E-3},{"$f":"'Population 2016'!O145/'Population 2016'!O$14","v":1.1269214790195263E-2},{"$f":"'Population 2016'!P145/'Population 2016'!P$14","v":4.7455032529659397E-3},{"$f":"'Population 2016'!Q145/'Population 2016'!Q$14","v":1.4558830347897315E-2},{"$f":"'Population 2016'!R145/'Population 2016'!R$14","v":6.2857645919535167E-3},{"$f":"'Population 2016'!S145/'Population 2016'!S$14","v":1.1349806214605535E-2},{"$f":"'Population 2016'!T145/'Population 2016'!T$14","v":5.9173771381258247E-3},{"$f":"'Population 2016'!U145/'Population 2016'!U$14","v":4.4440265764071708E-2},{"$f":"'Population 2016'!V145/'Population 2016'!V$14","v":1.1083405324746722E-2},{"$f":"'Population 2016'!W145/'Population 2016'!W$14","v":1.303486870426173E-2},{"$f":"'Population 2016'!X145/'Population 2016'!X$14","v":1.303486870426173E-2},{"$f":"'Population 2016'!Y145/'Population 2016'!Y$14","v":1.0602698589210768E-2},{"$f":"'Population 2016'!Z145/'Population 2016'!Z$14","v":6.317107716622034E-3},{"$f":"'Population 2016'!AA145/'Population 2016'!AA$14","v":9.0730717636930309E-3},{"$f":"'Population 2016'!AB145/'Population 2016'!AB$14","v":1.0301482812734684E-2},{"$f":"'Population 2016'!AC145/'Population 2016'!AC$14","v":7.532182787152392E-3},{"$f":"'Population 2016'!AD145/'Population 2016'!AD$14","v":2.1217103593865767E-2},{"$f":"'Population 2016'!AE145/'Population 2016'!AE$14","v":1.9948591091886514E-2},{"$f":"'Population 2016'!AF145/'Population 2016'!AF$14","v":9.7526924611088944E-3},{"$f":"'Population 2016'!AG145/'Population 2016'!AG$14","v":1.9948591091886514E-2},{"$f":"'Population 2016'!AH145/'Population 2016'!AH$14","v":1.1904564639489825E-2},{"$f":"'Population 2016'!AI145/'Population 2016'!AI$14","v":9.3731305849436789E-3},{"$f":"'Population 2016'!AJ145/'Population 2016'!AJ$14","v":1.5704630064698015E-2},{"$f":"'Population 2016'!AK145/'Population 2016'!AK$14","v":1.672548462091689E-2},{"$f":"'Population 2016'!AL145/'Population 2016'!AL$14","v":8.9064463997126954E-3},{"$f":"'Population 2016'!AM145/'Population 2016'!AM$14","v":1.1393753927702943E-2},{"$f":"'Population 2016'!AN145/'Population 2016'!AN$14","v":1.9450886511558314E-2},{"$f":"'Population 2016'!AO145/'Population 2016'!AO$14","v":1.9450886511558314E-2},{"$f":"'Population 2016'!AP145/'Population 2016'!AP$14","v":1.4840108401084011E-2},{"$f":"'Population 2016'!AQ145/'Population 2016'!AQ$14","v":1.2152394736609862E-2},{"$f":"'Population 2016'!AR145/'Population 2016'!AR$14","v":1.1601375499974068E-2},{"$f":"'Population 2016'!AS145/'Population 2016'!AS$14","v":2.269898220692685E-2},{"$f":"'Population 2016'!AT145/'Population 2016'!AT$14","v":1.9225487503433124E-2},{"$f":"'Population 2016'!AU145/'Population 2016'!AU$14","v":1.9225487503433124E-2},{"$f":"'Population 2016'!AV145/'Population 2016'!AV$14","v":1.3817028152936119E-2},{"$f":"'Population 2016'!AW145/'Population 2016'!AW$14","v":1.2457542309796942E-2},{"$f":"'Population 2016'!AX145/'Population 2016'!AX$14","v":8.9919779063650715E-3},{"$f":"'Population 2016'!AY145/'Population 2016'!AY$14","v":1.2860824324543347E-2},{"$f":"'Population 2016'!AZ145/'Population 2016'!AZ$14","v":1.2706091269537529E-2},{"$f":"'Population 2016'!BA145/'Population 2016'!BA$14","v":1.0016406182540369E-2},{"$f":"'Population 2016'!BB145/'Population 2016'!BB$14","v":1.39954037235004E-2},{"$f":"'Population 2016'!BC145/'Population 2016'!BC$14","v":4.4440265764071708E-2},143]
[null,"Female 50-54",{"$f":"'Population 2016'!C146/'Population 2016'!C$14","v":6.1932210345663815E-3},{"$f":"'Population 2016'!D146/'Population 2016'!D$14","v":9.4187867107476501E-3},{"$f":"'Population 2016'!E146/'Population 2016'!E$14","v":1.2552250706743663E-2},{"$f":"'Population 2016'!F146/'Population 2016'!F$14","v":2.2496741655805518E-2},{"$f":"'Population 2016'!G146/'Population 2016'!G$14","v":3.0800978294099664E-2},{"$f":"'Population 2016'!H146/'Population 2016'!H$14","v":1.2389698787783099E-2},{"$f":"'Population 2016'!I146/'Population 2016'!I$14","v":2.3328695906860951E-2},{"$f":"'Population 2016'!J146/'Population 2016'!J$14","v":1.0688823371750202E-2},{"$f":"'Population 2016'!K146/'Population 2016'!K$14","v":1.2483432481583083E-2},{"$f":"'Population 2016'!L146/'Population 2016'!L$14","v":2.6292430252025302E-2},{"$f":"'Population 2016'!M146/'Population 2016'!M$14","v":2.6292430252025302E-2},{"$f":"'Population 2016'!N146/'Population 2016'!N$14","v":6.7036382473033094E-3},{"$f":"'Population 2016'!O146/'Population 2016'!O$14","v":1.2022226838388035E-2},{"$f":"'Population 2016'!P146/'Population 2016'!P$14","v":4.0719479525449676E-3},{"$f":"'Population 2016'!Q146/'Population 2016'!Q$14","v":1.3121493593805543E-2},{"$f":"'Population 2016'!R146/'Population 2016'!R$14","v":7.1133022273087423E-3},{"$f":"'Population 2016'!S146/'Population 2016'!S$14","v":1.1533936021628517E-2},{"$f":"'Population 2016'!T146/'Population 2016'!T$14","v":5.8495561967146408E-3},{"$f":"'Population 2016'!U146/'Population 2016'!U$14","v":4.5067067819982452E-2},{"$f":"'Population 2016'!V146/'Population 2016'!V$14","v":1.1741145056153302E-2},{"$f":"'Population 2016'!W146/'Population 2016'!W$14","v":1.4080929832113646E-2},{"$f":"'Population 2016'!X146/'Population 2016'!X$14","v":1.4080929832113646E-2},{"$f":"'Population 2016'!Y146/'Population 2016'!Y$14","v":1.1238143067249498E-2},{"$f":"'Population 2016'!Z146/'Population 2016'!Z$14","v":6.6105505403275932E-3},{"$f":"'Population 2016'!AA146/'Population 2016'!AA$14","v":9.1506550364057419E-3},{"$f":"'Population 2016'!AB146/'Population 2016'!AB$14","v":1.0793509392528447E-2},{"$f":"'Population 2016'!AC146/'Population 2016'!AC$14","v":7.6996505077492469E-3},{"$f":"'Population 2016'!AD146/'Population 2016'!AD$14","v":2.4048757218686885E-2},{"$f":"'Population 2016'!AE146/'Population 2016'!AE$14","v":2.1606942966515112E-2},{"$f":"'Population 2016'!AF146/'Population 2016'!AF$14","v":1.088950937375349E-2},{"$f":"'Population 2016'!AG146/'Population 2016'!AG$14","v":2.1606942966515112E-2},{"$f":"'Population 2016'!AH146/'Population 2016'!AH$14","v":1.181697885868626E-2},{"$f":"'Population 2016'!AI146/'Population 2016'!AI$14","v":9.1663828121425345E-3},{"$f":"'Population 2016'!AJ146/'Population 2016'!AJ$14","v":1.5813062493222972E-2},{"$f":"'Population 2016'!AK146/'Population 2016'!AK$14","v":1.829768017528308E-2},{"$f":"'Population 2016'!AL146/'Population 2016'!AL$14","v":9.5528820254982948E-3},{"$f":"'Population 2016'!AM146/'Population 2016'!AM$14","v":1.1056768399865205E-2},{"$f":"'Population 2016'!AN146/'Population 2016'!AN$14","v":2.1246352958779084E-2},{"$f":"'Population 2016'!AO146/'Population 2016'!AO$14","v":2.1246352958779084E-2},{"$f":"'Population 2016'!AP146/'Population 2016'!AP$14","v":1.6227642276422764E-2},{"$f":"'Population 2016'!AQ146/'Population 2016'!AQ$14","v":1.1728781848187731E-2},{"$f":"'Population 2016'!AR146/'Population 2016'!AR$14","v":1.2188493124935708E-2},{"$f":"'Population 2016'!AS146/'Population 2016'!AS$14","v":2.3328695906860951E-2},{"$f":"'Population 2016'!AT146/'Population 2016'!AT$14","v":1.9362812414171929E-2},{"$f":"'Population 2016'!AU146/'Population 2016'!AU$14","v":1.9362812414171929E-2},{"$f":"'Population 2016'!AV146/'Population 2016'!AV$14","v":1.6322476390968527E-2},{"$f":"'Population 2016'!AW146/'Population 2016'!AW$14","v":1.2639943997752022E-2},{"$f":"'Population 2016'!AX146/'Population 2016'!AX$14","v":9.7317201472908992E-3},{"$f":"'Population 2016'!AY146/'Population 2016'!AY$14","v":1.4214168787176453E-2},{"$f":"'Population 2016'!AZ146/'Population 2016'!AZ$14","v":1.4332624037475315E-2},{"$f":"'Population 2016'!BA146/'Population 2016'!BA$14","v":9.8609791900526721E-3},{"$f":"'Population 2016'!BB146/'Population 2016'!BB$14","v":1.390072387051239E-2},{"$f":"'Population 2016'!BC146/'Population 2016'!BC$14","v":4.5067067819982452E-2},144]
[null,"Female 55-59",{"$f":"'Population 2016'!C147/'Population 2016'!C$14","v":5.6335926278284557E-3},{"$f":"'Population 2016'!D147/'Population 2016'!D$14","v":8.4811976627682164E-3},{"$f":"'Population 2016'!E147/'Population 2016'!E$14","v":1.1247493174185131E-2},{"$f":"'Population 2016'!F147/'Population 2016'!F$14","v":2.1845072816909391E-2},{"$f":"'Population 2016'!G147/'Population 2016'!G$14","v":2.8412564964842554E-2},{"$f":"'Population 2016'!H147/'Population 2016'!H$14","v":1.0964335210427521E-2},{"$f":"'Population 2016'!I147/'Population 2016'!I$14","v":2.2991872299919454E-2},{"$f":"'Population 2016'!J147/'Population 2016'!J$14","v":9.6274457250067006E-3},{"$f":"'Population 2016'!K147/'Population 2016'!K$14","v":1.1897789970101408E-2},{"$f":"'Population 2016'!L147/'Population 2016'!L$14","v":2.4416004674209821E-2},{"$f":"'Population 2016'!M147/'Population 2016'!M$14","v":2.4416004674209821E-2},{"$f":"'Population 2016'!N147/'Population 2016'!N$14","v":6.4801836390598654E-3},{"$f":"'Population 2016'!O147/'Population 2016'!O$14","v":1.049023680930619E-2},{"$f":"'Population 2016'!P147/'Population 2016'!P$14","v":4.2709529276693456E-3},{"$f":"'Population 2016'!Q147/'Population 2016'!Q$14","v":1.2920575552910993E-2},{"$f":"'Population 2016'!R147/'Population 2016'!R$14","v":6.9548375737300818E-3},{"$f":"'Population 2016'!S147/'Population 2016'!S$14","v":1.0501012713938626E-2},{"$f":"'Population 2016'!T147/'Population 2016'!T$14","v":5.1459139295736041E-3},{"$f":"'Population 2016'!U147/'Population 2016'!U$14","v":4.2810580418703774E-2},{"$f":"'Population 2016'!V147/'Population 2016'!V$14","v":1.050420168067227E-2},{"$f":"'Population 2016'!W147/'Population 2016'!W$14","v":1.2858372793801118E-2},{"$f":"'Population 2016'!X147/'Population 2016'!X$14","v":1.2858372793801118E-2},{"$f":"'Population 2016'!Y147/'Population 2016'!Y$14","v":1.0085118812743736E-2},{"$f":"'Population 2016'!Z147/'Population 2016'!Z$14","v":5.9035150753362466E-3},{"$f":"'Population 2016'!AA147/'Population 2016'!AA$14","v":8.4982881626278865E-3},{"$f":"'Population 2016'!AB147/'Population 2016'!AB$14","v":9.6437209639577588E-3},{"$f":"'Population 2016'!AC147/'Population 2016'!AC$14","v":7.1083606327188124E-3},{"$f":"'Population 2016'!AD147/'Population 2016'!AD$14","v":2.2871438865714664E-2},{"$f":"'Population 2016'!AE147/'Population 2016'!AE$14","v":2.086759442240986E-2},{"$f":"'Population 2016'!AF147/'Population 2016'!AF$14","v":1.1388113282808138E-2},{"$f":"'Population 2016'!AG147/'Population 2016'!AG$14","v":2.086759442240986E-2},{"$f":"'Population 2016'!AH147/'Population 2016'!AH$14","v":1.1052378664103796E-2},{"$f":"'Population 2016'!AI147/'Population 2016'!AI$14","v":8.127559986510555E-3},{"$f":"'Population 2016'!AJ147/'Population 2016'!AJ$14","v":1.380706256551126E-2},{"$f":"'Population 2016'!AK147/'Population 2016'!AK$14","v":1.5989563297596546E-2},{"$f":"'Population 2016'!AL147/'Population 2016'!AL$14","v":9.145867001855509E-3},{"$f":"'Population 2016'!AM147/'Population 2016'!AM$14","v":9.7634725903257835E-3},{"$f":"'Population 2016'!AN147/'Population 2016'!AN$14","v":1.8253908880077805E-2},{"$f":"'Population 2016'!AO147/'Population 2016'!AO$14","v":1.8253908880077805E-2},{"$f":"'Population 2016'!AP147/'Population 2016'!AP$14","v":1.4872628726287264E-2},{"$f":"'Population 2016'!AQ147/'Population 2016'!AQ$14","v":1.0343214692307014E-2},{"$f":"'Population 2016'!AR147/'Population 2016'!AR$14","v":1.1218846447107408E-2},{"$f":"'Population 2016'!AS147/'Population 2016'!AS$14","v":2.2991872299919454E-2},{"$f":"'Population 2016'!AT147/'Population 2016'!AT$14","v":1.7989563306783852E-2},{"$f":"'Population 2016'!AU147/'Population 2016'!AU$14","v":1.7989563306783852E-2},{"$f":"'Population 2016'!AV147/'Population 2016'!AV$14","v":1.3757727602923518E-2},{"$f":"'Population 2016'!AW147/'Population 2016'!AW$14","v":1.2447682759096667E-2},{"$f":"'Population 2016'!AX147/'Population 2016'!AX$14","v":8.4166228300894264E-3},{"$f":"'Population 2016'!AY147/'Population 2016'!AY$14","v":1.3247783594547724E-2},{"$f":"'Population 2016'!AZ147/'Population 2016'!AZ$14","v":1.3593986804035332E-2},{"$f":"'Population 2016'!BA147/'Population 2016'!BA$14","v":9.429237544253519E-3},{"$f":"'Population 2016'!BB147/'Population 2016'!BB$14","v":1.1834981623501261E-2},{"$f":"'Population 2016'!BC147/'Population 2016'!BC$14","v":4.2810580418703774E-2},145]
[null,"Female 60-64",{"$f":"'Population 2016'!C148/'Population 2016'!C$14","v":5.2294165562955085E-3},{"$f":"'Population 2016'!D148/'Population 2016'!D$14","v":8.0951315841884496E-3},{"$f":"'Population 2016'!E148/'Population 2016'!E$14","v":1.087901998211999E-2},{"$f":"'Population 2016'!F148/'Population 2016'!F$14","v":1.9295064316881057E-2},{"$f":"'Population 2016'!G148/'Population 2016'!G$14","v":2.8145062671965759E-2},{"$f":"'Population 2016'!H148/'Population 2016'!H$14","v":1.0078416925424978E-2},{"$f":"'Population 2016'!I148/'Population 2016'!I$14","v":2.0721974079226772E-2},{"$f":"'Population 2016'!J148/'Population 2016'!J$14","v":8.9305816135084436E-3},{"$f":"'Population 2016'!K148/'Population 2016'!K$14","v":1.0048392565422433E-2},{"$f":"'Population 2016'!L148/'Population 2016'!L$14","v":2.3944089259429882E-2},{"$f":"'Population 2016'!M148/'Population 2016'!M$14","v":2.3944089259429882E-2},{"$f":"'Population 2016'!N148/'Population 2016'!N$14","v":5.3425965425477886E-3},{"$f":"'Population 2016'!O148/'Population 2016'!O$14","v":8.6466555878687169E-3},{"$f":"'Population 2016'!P148/'Population 2016'!P$14","v":3.6739380022962113E-3},{"$f":"'Population 2016'!Q148/'Population 2016'!Q$14","v":1.1266865524009706E-2},{"$f":"'Population 2016'!R148/'Population 2016'!R$14","v":6.0392640197200458E-3},{"$f":"'Population 2016'!S148/'Population 2016'!S$14","v":8.9987829468852875E-3},{"$f":"'Population 2016'!T148/'Population 2016'!T$14","v":4.1992466223758238E-3},{"$f":"'Population 2016'!U148/'Population 2016'!U$14","v":4.3437382474614518E-2},{"$f":"'Population 2016'!V148/'Population 2016'!V$14","v":9.5225005890206549E-3},{"$f":"'Population 2016'!W148/'Population 2016'!W$14","v":1.1110632802410677E-2},{"$f":"'Population 2016'!X148/'Population 2016'!X$14","v":1.1110632802410677E-2},{"$f":"'Population 2016'!Y148/'Population 2016'!Y$14","v":9.2395676927728432E-3},{"$f":"'Population 2016'!Z148/'Population 2016'!Z$14","v":4.3484991670382838E-3},{"$f":"'Population 2016'!AA148/'Population 2016'!AA$14","v":6.9207616174694168E-3},{"$f":"'Population 2016'!AB148/'Population 2016'!AB$14","v":9.0791852039838611E-3},{"$f":"'Population 2016'!AC148/'Population 2016'!AC$14","v":5.6307800517604078E-3},{"$f":"'Population 2016'!AD148/'Population 2016'!AD$14","v":2.1506358534035666E-2},{"$f":"'Population 2016'!AE148/'Population 2016'!AE$14","v":1.9105595555616976E-2},{"$f":"'Population 2016'!AF148/'Population 2016'!AF$14","v":7.9178300757877934E-3},{"$f":"'Population 2016'!AG148/'Population 2016'!AG$14","v":1.9105595555616976E-2},{"$f":"'Population 2016'!AH148/'Population 2016'!AH$14","v":9.2911943149726704E-3},{"$f":"'Population 2016'!AI148/'Population 2016'!AI$14","v":6.8108139253098251E-3},{"$f":"'Population 2016'!AJ148/'Population 2016'!AJ$14","v":1.172877435211624E-2},{"$f":"'Population 2016'!AK148/'Population 2016'!AK$14","v":1.4450818712472193E-2},{"$f":"'Population 2016'!AL148/'Population 2016'!AL$14","v":9.1219249416412285E-3},{"$f":"'Population 2016'!AM148/'Population 2016'!AM$14","v":8.2652531489931427E-3},{"$f":"'Population 2016'!AN148/'Population 2016'!AN$14","v":1.6533253534824568E-2},{"$f":"'Population 2016'!AO148/'Population 2016'!AO$14","v":1.6533253534824568E-2},{"$f":"'Population 2016'!AP148/'Population 2016'!AP$14","v":1.3387533875338753E-2},{"$f":"'Population 2016'!AQ148/'Population 2016'!AQ$14","v":8.9752980734438843E-3},{"$f":"'Population 2016'!AR148/'Population 2016'!AR$14","v":9.9099380474857533E-3},{"$f":"'Population 2016'!AS148/'Population 2016'!AS$14","v":2.0721974079226772E-2},{"$f":"'Population 2016'!AT148/'Population 2016'!AT$14","v":1.7920900851414446E-2},{"$f":"'Population 2016'!AU148/'Population 2016'!AU$14","v":1.7920900851414446E-2},{"$f":"'Population 2016'!AV148/'Population 2016'!AV$14","v":1.2897869627740798E-2},{"$f":"'Population 2016'!AW148/'Population 2016'!AW$14","v":1.0401825988789691E-2},{"$f":"'Population 2016'!AX148/'Population 2016'!AX$14","v":8.3344292477643342E-3},{"$f":"'Population 2016'!AY148/'Population 2016'!AY$14","v":1.1556103016256342E-2},{"$f":"'Population 2016'!AZ148/'Population 2016'!AZ$14","v":1.1952145492399308E-2},{"$f":"'Population 2016'!BA148/'Population 2016'!BA$14","v":8.496675589327346E-3},{"$f":"'Population 2016'!BB148/'Population 2016'!BB$14","v":9.9413845637410601E-3},{"$f":"'Population 2016'!BC148/'Population 2016'!BC$14","v":4.3437382474614518E-2},146]
[null,"Female 65-69",0,0,0,0,0,0,0,0,0,0,0,0,0,0,0,0,0,0,0,0,0,0,0,0,0,0,0,0,0,0,0,0,0,0,0,0,0,0,0,0,0,0,0,0,0,0,0,0,0,0,0,0,0,147]
[null,"Female 70-74",0,0,0,0,0,0,0,0,0,0,0,0,0,0,0,0,0,0,0,0,0,0,0,0,0,0,0,0,0,0,0,0,0,0,0,0,0,0,0,0,0,0,0,0,0,0,0,0,0,0,0,0,0,148]
[null,"Female 75-79",0,0,0,0,0,0,0,0,0,0,0,0,0,0,0,0,0,0,0,0,0,0,0,0,0,0,0,0,0,0,0,0,0,0,0,0,0,0,0,0,0,0,0,0,0,0,0,0,0,0,0,0,0,149]
[null,"Female 80-84",0,0,0,0,0,0,0,0,0,0,0,0,0,0,0,0,0,0,0,0,0,0,0,0,0,0,0,0,0,0,0,0,0,0,0,0,0,0,0,0,0,0,0,0,0,0,0,0,0,0,0,0,0,150]
[null,"Female 85-89",0,0,0,0,0,0,0,0,0,0,0,0,0,0,0,0,0,0,0,0,0,0,0,0,0,0,0,0,0,0,0,0,0,0,0,0,0,0,0,0,0,0,0,0,0,0,0,0,0,0,0,0,0,151]
[null,"Female 90+",0,0,0,0,0,0,0,0,0,0,0,0,0,0,0,0,0,0,0,0,0,0,0,0,0,0,0,0,0,0,0,0,0,0,0,0,0,0,0,0,0,0,0,0,0,0,0,0,0,0,0,0,0,152]
[null,"Male 0-4",{"$f":"'Population 2016'!C155/'Population 2016'!C$14","v":0},{"$f":"'Population 2016'!D155/'Population 2016'!D$14","v":0},{"$f":"'Population 2016'!E155/'Population 2016'!E$14","v":0},{"$f":"'Population 2016'!F155/'Population 2016'!F$14","v":0},{"$f":"'Population 2016'!G155/'Population 2016'!G$14","v":0},{"$f":"'Population 2016'!H155/'Population 2016'!H$14","v":0},{"$f":"'Population 2016'!I155/'Population 2016'!I$14","v":0},{"$f":"'Population 2016'!J155/'Population 2016'!J$14","v":0},{"$f":"'Population 2016'!K155/'Population 2016'!K$14","v":0},{"$f":"'Population 2016'!L155/'Population 2016'!L$14","v":0},{"$f":"'Population 2016'!M155/'Population 2016'!M$14","v":0},{"$f":"'Population 2016'!N155/'Population 2016'!N$14","v":0},{"$f":"'Population 2016'!O155/'Population 2016'!O$14","v":0},{"$f":"'Population 2016'!P155/'Population 2016'!P$14","v":0},{"$f":"'Population 2016'!Q155/'Population 2016'!Q$14","v":0},{"$f":"'Population 2016'!R155/'Population 2016'!R$14","v":0},{"$f":"'Population 2016'!S155/'Population 2016'!S$14","v":0},{"$f":"'Population 2016'!T155/'Population 2016'!T$14","v":0},{"$f":"'Population 2016'!U155/'Population 2016'!U$14","v":0},{"$f":"'Population 2016'!V155/'Population 2016'!V$14","v":0},{"$f":"'Population 2016'!W155/'Population 2016'!W$14","v":0},{"$f":"'Population 2016'!X155/'Population 2016'!X$14","v":0},{"$f":"'Population 2016'!Y155/'Population 2016'!Y$14","v":0},{"$f":"'Population 2016'!Z155/'Population 2016'!Z$14","v":0},{"$f":"'Population 2016'!AA155/'Population 2016'!AA$14","v":0},{"$f":"'Population 2016'!AB155/'Population 2016'!AB$14","v":0},{"$f":"'Population 2016'!AC155/'Population 2016'!AC$14","v":0},{"$f":"'Population 2016'!AD155/'Population 2016'!AD$14","v":0},{"$f":"'Population 2016'!AE155/'Population 2016'!AE$14","v":0},{"$f":"'Population 2016'!AF155/'Population 2016'!AF$14","v":0},{"$f":"'Population 2016'!AG155/'Population 2016'!AG$14","v":0},{"$f":"'Population 2016'!AH155/'Population 2016'!AH$14","v":0},{"$f":"'Population 2016'!AI155/'Population 2016'!AI$14","v":0},{"$f":"'Population 2016'!AJ155/'Population 2016'!AJ$14","v":0},{"$f":"'Population 2016'!AK155/'Population 2016'!AK$14","v":0},{"$f":"'Population 2016'!AL155/'Population 2016'!AL$14","v":0},{"$f":"'Population 2016'!AM155/'Population 2016'!AM$14","v":0},{"$f":"'Population 2016'!AN155/'Population 2016'!AN$14","v":0},{"$f":"'Population 2016'!AO155/'Population 2016'!AO$14","v":0},{"$f":"'Population 2016'!AP155/'Population 2016'!AP$14","v":0},{"$f":"'Population 2016'!AQ155/'Population 2016'!AQ$14","v":0},{"$f":"'Population 2016'!AR155/'Population 2016'!AR$14","v":0},{"$f":"'Population 2016'!AS155/'Population 2016'!AS$14","v":0},{"$f":"'Population 2016'!AT155/'Population 2016'!AT$14","v":0},{"$f":"'Population 2016'!AU155/'Population 2016'!AU$14","v":0},{"$f":"'Population 2016'!AV155/'Population 2016'!AV$14","v":0},{"$f":"'Population 2016'!AW155/'Population 2016'!AW$14","v":0},{"$f":"'Population 2016'!AX155/'Population 2016'!AX$14","v":0},{"$f":"'Population 2016'!AY155/'Population 2016'!AY$14","v":0},{"$f":"'Population 2016'!AZ155/'Population 2016'!AZ$14","v":0},{"$f":"'Population 2016'!BA155/'Population 2016'!BA$14","v":0},{"$f":"'Population 2016'!BB155/'Population 2016'!BB$14","v":0},{"$f":"'Population 2016'!BC155/'Population 2016'!BC$14","v":0},153]
[null,"Male 5-9",{"$f":"'Population 2016'!C156/'Population 2016'!C$14","v":0},{"$f":"'Population 2016'!D156/'Population 2016'!D$14","v":0},{"$f":"'Population 2016'!E156/'Population 2016'!E$14","v":0},{"$f":"'Population 2016'!F156/'Population 2016'!F$14","v":0},{"$f":"'Population 2016'!G156/'Population 2016'!G$14","v":0},{"$f":"'Population 2016'!H156/'Population 2016'!H$14","v":0},{"$f":"'Population 2016'!I156/'Population 2016'!I$14","v":0},{"$f":"'Population 2016'!J156/'Population 2016'!J$14","v":0},{"$f":"'Population 2016'!K156/'Population 2016'!K$14","v":0},{"$f":"'Population 2016'!L156/'Population 2016'!L$14","v":0},{"$f":"'Population 2016'!M156/'Population 2016'!M$14","v":0},{"$f":"'Population 2016'!N156/'Population 2016'!N$14","v":0},{"$f":"'Population 2016'!O156/'Population 2016'!O$14","v":0},{"$f":"'Population 2016'!P156/'Population 2016'!P$14","v":0},{"$f":"'Population 2016'!Q156/'Population 2016'!Q$14","v":0},{"$f":"'Population 2016'!R156/'Population 2016'!R$14","v":0},{"$f":"'Population 2016'!S156/'Population 2016'!S$14","v":0},{"$f":"'Population 2016'!T156/'Population 2016'!T$14","v":0},{"$f":"'Population 2016'!U156/'Population 2016'!U$14","v":0},{"$f":"'Population 2016'!V156/'Population 2016'!V$14","v":0},{"$f":"'Population 2016'!W156/'Population 2016'!W$14","v":0},{"$f":"'Population 2016'!X156/'Population 2016'!X$14","v":0},{"$f":"'Population 2016'!Y156/'Population 2016'!Y$14","v":0},{"$f":"'Population 2016'!Z156/'Population 2016'!Z$14","v":0},{"$f":"'Population 2016'!AA156/'Population 2016'!AA$14","v":0},{"$f":"'Population 2016'!AB156/'Population 2016'!AB$14","v":0},{"$f":"'Population 2016'!AC156/'Population 2016'!AC$14","v":0},{"$f":"'Population 2016'!AD156/'Population 2016'!AD$14","v":0},{"$f":"'Population 2016'!AE156/'Population 2016'!AE$14","v":0},{"$f":"'Population 2016'!AF156/'Population 2016'!AF$14","v":0},{"$f":"'Population 2016'!AG156/'Population 2016'!AG$14","v":0},{"$f":"'Population 2016'!AH156/'Population 2016'!AH$14","v":0},{"$f":"'Population 2016'!AI156/'Population 2016'!AI$14","v":0},{"$f":"'Population 2016'!AJ156/'Population 2016'!AJ$14","v":0},{"$f":"'Population 2016'!AK156/'Population 2016'!AK$14","v":0},{"$f":"'Population 2016'!AL156/'Population 2016'!AL$14","v":0},{"$f":"'Population 2016'!AM156/'Population 2016'!AM$14","v":0},{"$f":"'Population 2016'!AN156/'Population 2016'!AN$14","v":0},{"$f":"'Population 2016'!AO156/'Population 2016'!AO$14","v":0},{"$f":"'Population 2016'!AP156/'Population 2016'!AP$14","v":0},{"$f":"'Population 2016'!AQ156/'Population 2016'!AQ$14","v":0},{"$f":"'Population 2016'!AR156/'Population 2016'!AR$14","v":0},{"$f":"'Population 2016'!AS156/'Population 2016'!AS$14","v":0},{"$f":"'Population 2016'!AT156/'Population 2016'!AT$14","v":0},{"$f":"'Population 2016'!AU156/'Population 2016'!AU$14","v":0},{"$f":"'Population 2016'!AV156/'Population 2016'!AV$14","v":0},{"$f":"'Population 2016'!AW156/'Population 2016'!AW$14","v":0},{"$f":"'Population 2016'!AX156/'Population 2016'!AX$14","v":0},{"$f":"'Population 2016'!AY156/'Population 2016'!AY$14","v":0},{"$f":"'Population 2016'!AZ156/'Population 2016'!AZ$14","v":0},{"$f":"'Population 2016'!BA156/'Population 2016'!BA$14","v":0},{"$f":"'Population 2016'!BB156/'Population 2016'!BB$14","v":0},{"$f":"'Population 2016'!BC156/'Population 2016'!BC$14","v":0},154]
[null,"Male 10-15",{"$f":"'Population 2016'!C157/'Population 2016'!C$14","v":0},{"$f":"'Population 2016'!D157/'Population 2016'!D$14","v":0},{"$f":"'Population 2016'!E157/'Population 2016'!E$14","v":0},{"$f":"'Population 2016'!F157/'Population 2016'!F$14","v":0},{"$f":"'Population 2016'!G157/'Population 2016'!G$14","v":0},{"$f":"'Population 2016'!H157/'Population 2016'!H$14","v":0},{"$f":"'Population 2016'!I157/'Population 2016'!I$14","v":0},{"$f":"'Population 2016'!J157/'Population 2016'!J$14","v":0},{"$f":"'Population 2016'!K157/'Population 2016'!K$14","v":0},{"$f":"'Population 2016'!L157/'Population 2016'!L$14","v":0},{"$f":"'Population 2016'!M157/'Population 2016'!M$14","v":0},{"$f":"'Population 2016'!N157/'Population 2016'!N$14","v":0},{"$f":"'Population 2016'!O157/'Population 2016'!O$14","v":0},{"$f":"'Population 2016'!P157/'Population 2016'!P$14","v":0},{"$f":"'Population 2016'!Q157/'Population 2016'!Q$14","v":0},{"$f":"'Population 2016'!R157/'Population 2016'!R$14","v":0},{"$f":"'Population 2016'!S157/'Population 2016'!S$14","v":0},{"$f":"'Population 2016'!T157/'Population 2016'!T$14","v":0},{"$f":"'Population 2016'!U157/'Population 2016'!U$14","v":0},{"$f":"'Population 2016'!V157/'Population 2016'!V$14","v":0},{"$f":"'Population 2016'!W157/'Population 2016'!W$14","v":0},{"$f":"'Population 2016'!X157/'Population 2016'!X$14","v":0},{"$f":"'Population 2016'!Y157/'Population 2016'!Y$14","v":0},{"$f":"'Population 2016'!Z157/'Population 2016'!Z$14","v":0},{"$f":"'Population 2016'!AA157/'Population 2016'!AA$14","v":0},{"$f":"'Population 2016'!AB157/'Population 2016'!AB$14","v":0},{"$f":"'Population 2016'!AC157/'Population 2016'!AC$14","v":0},{"$f":"'Population 2016'!AD157/'Population 2016'!AD$14","v":0},{"$f":"'Population 2016'!AE157/'Population 2016'!AE$14","v":0},{"$f":"'Population 2016'!AF157/'Population 2016'!AF$14","v":0},{"$f":"'Population 2016'!AG157/'Population 2016'!AG$14","v":0},{"$f":"'Population 2016'!AH157/'Population 2016'!AH$14","v":0},{"$f":"'Population 2016'!AI157/'Population 2016'!AI$14","v":0},{"$f":"'Population 2016'!AJ157/'Population 2016'!AJ$14","v":0},{"$f":"'Population 2016'!AK157/'Population 2016'!AK$14","v":0},{"$f":"'Population 2016'!AL157/'Population 2016'!AL$14","v":0},{"$f":"'Population 2016'!AM157/'Population 2016'!AM$14","v":0},{"$f":"'Population 2016'!AN157/'Population 2016'!AN$14","v":0},{"$f":"'Population 2016'!AO157/'Population 2016'!AO$14","v":0},{"$f":"'Population 2016'!AP157/'Population 2016'!AP$14","v":0},{"$f":"'Population 2016'!AQ157/'Population 2016'!AQ$14","v":0},{"$f":"'Population 2016'!AR157/'Population 2016'!AR$14","v":0},{"$f":"'Population 2016'!AS157/'Population 2016'!AS$14","v":0},{"$f":"'Population 2016'!AT157/'Population 2016'!AT$14","v":0},{"$f":"'Population 2016'!AU157/'Population 2016'!AU$14","v":0},{"$f":"'Population 2016'!AV157/'Population 2016'!AV$14","v":0},{"$f":"'Population 2016'!AW157/'Population 2016'!AW$14","v":0},{"$f":"'Population 2016'!AX157/'Population 2016'!AX$14","v":0},{"$f":"'Population 2016'!AY157/'Population 2016'!AY$14","v":0},{"$f":"'Population 2016'!AZ157/'Population 2016'!AZ$14","v":0},{"$f":"'Population 2016'!BA157/'Population 2016'!BA$14","v":0},{"$f":"'Population 2016'!BB157/'Population 2016'!BB$14","v":0},{"$f":"'Population 2016'!BC157/'Population 2016'!BC$14","v":0},155]
[null,"Male 16-19",{"$f":"'Population 2016'!C158/'Population 2016'!C$14","v":3.8489998196752913E-3},{"$f":"'Population 2016'!D158/'Population 2016'!D$14","v":5.6714945353265782E-3},{"$f":"'Population 2016'!E158/'Population 2016'!E$14","v":7.4419503708894096E-3},{"$f":"'Population 2016'!F158/'Population 2016'!F$14","v":1.3104210347367825E-2},{"$f":"'Population 2016'!G158/'Population 2016'!G$14","v":1.5572454906756343E-2},{"$f":"'Population 2016'!H158/'Population 2016'!H$14","v":6.3330000175429359E-3},{"$f":"'Population 2016'!I158/'Population 2016'!I$14","v":1.16277366918064E-2},{"$f":"'Population 2016'!J158/'Population 2016'!J$14","v":5.4891450013401233E-3},{"$f":"'Population 2016'!K158/'Population 2016'!K$14","v":6.6886539469222942E-3},{"$f":"'Population 2016'!L158/'Population 2016'!L$14","v":1.3573186215575456E-2},{"$f":"'Population 2016'!M158/'Population 2016'!M$14","v":1.3573186215575456E-2},{"$f":"'Population 2016'!N158/'Population 2016'!N$14","v":3.9510837548499805E-3},{"$f":"'Population 2016'!O158/'Population 2016'!O$14","v":6.0370793518903197E-3},{"$f":"'Population 2016'!P158/'Population 2016'!P$14","v":2.4492920015308076E-3},{"$f":"'Population 2016'!Q158/'Population 2016'!Q$14","v":7.9749007001220958E-3},{"$f":"'Population 2016'!R158/'Population 2016'!R$14","v":4.3313671978167092E-3},{"$f":"'Population 2016'!S158/'Population 2016'!S$14","v":6.2547997251525805E-3},{"$f":"'Population 2016'!T158/'Population 2016'!T$14","v":3.7047189245859391E-3},{"$f":"'Population 2016'!U158/'Population 2016'!U$14","v":2.3881158330199322E-2},{"$f":"'Population 2016'!V158/'Population 2016'!V$14","v":6.1454488337391033E-3},{"$f":"'Population 2016'!W158/'Population 2016'!W$14","v":7.128712871287129E-3},{"$f":"'Population 2016'!X158/'Population 2016'!X$14","v":7.128712871287129E-3},{"$f":"'Population 2016'!Y158/'Population 2016'!Y$14","v":5.8317404516780346E-3},{"$f":"'Population 2016'!Z158/'Population 2016'!Z$14","v":4.7459177944190406E-3},{"$f":"'Population 2016'!AA158/'Population 2016'!AA$14","v":5.5342734535067635E-3},{"$f":"'Population 2016'!AB158/'Population 2016'!AB$14","v":6.2357894954914832E-3},{"$f":"'Population 2016'!AC158/'Population 2016'!AC$14","v":4.8539874708380731E-3},{"$f":"'Population 2016'!AD158/'Population 2016'!AD$14","v":1.2711993423256096E-2},{"$f":"'Population 2016'!AE158/'Population 2016'!AE$14","v":1.1677561117176379E-2},{"$f":"'Population 2016'!AF158/'Population 2016'!AF$14","v":5.185480654168329E-3},{"$f":"'Population 2016'!AG158/'Population 2016'!AG$14","v":1.1677561117176379E-2},{"$f":"'Population 2016'!AH158/'Population 2016'!AH$14","v":6.7843472373787708E-3},{"$f":"'Population 2016'!AI158/'Population 2016'!AI$14","v":5.2890147451833697E-3},{"$f":"'Population 2016'!AJ158/'Population 2016'!AJ$14","v":7.4456934253804173E-3},{"$f":"'Population 2016'!AK158/'Population 2016'!AK$14","v":9.316094933850709E-3},{"$f":"'Population 2016'!AL158/'Population 2016'!AL$14","v":4.5849045310348956E-3},{"$f":"'Population 2016'!AM158/'Population 2016'!AM$14","v":6.7715875661447942E-3},{"$f":"'Population 2016'!AN158/'Population 2016'!AN$14","v":1.1221665295129798E-2},{"$f":"'Population 2016'!AO158/'Population 2016'!AO$14","v":1.1221665295129798E-2},{"$f":"'Population 2016'!AP158/'Population 2016'!AP$14","v":8.747967479674797E-3},{"$f":"'Population 2016'!AQ158/'Population 2016'!AQ$14","v":6.9278357794035888E-3},{"$f":"'Population 2016'!AR158/'Population 2016'!AR$14","v":6.7987017508369073E-3},{"$f":"'Population 2016'!AS158/'Population 2016'!AS$14","v":1.16277366918064E-2},{"$f":"'Population 2016'!AT158/'Population 2016'!AT$14","v":1.1466630046690469E-2},{"$f":"'Population 2016'!AU158/'Population 2016'!AU$14","v":1.1466630046690469E-2},{"$f":"'Population 2016'!AV158/'Population 2016'!AV$14","v":8.8357819518776037E-3},{"$f":"'Population 2016'!AW158/'Population 2016'!AW$14","v":6.7981602078393284E-3},{"$f":"'Population 2016'!AX158/'Population 2016'!AX$14","v":4.8494213571804315E-3},{"$f":"'Population 2016'!AY158/'Population 2016'!AY$14","v":7.6520689152174267E-3},{"$f":"'Population 2016'!AZ158/'Population 2016'!AZ$14","v":8.1173552959906917E-3},{"$f":"'Population 2016'!BA158/'Population 2016'!BA$14","v":4.5419221138070977E-3},{"$f":"'Population 2016'!BB158/'Population 2016'!BB$14","v":7.5916027577658998E-3},{"$f":"'Population 2016'!BC158/'Population 2016'!BC$14","v":2.3881158330199322E-2},156]
[null,"Male 20-24",{"$f":"'Population 2016'!C159/'Population 2016'!C$14","v":1.256054868456234E-2},{"$f":"'Population 2016'!D159/'Population 2016'!D$14","v":1.0831298315710131E-2},{"$f":"'Population 2016'!E159/'Population 2016'!E$14","v":9.1514243603063768E-3},{"$f":"'Population 2016'!F159/'Population 2016'!F$14","v":1.392587975293251E-2},{"$f":"'Population 2016'!G159/'Population 2016'!G$14","v":1.5706206053194741E-2},{"$f":"'Population 2016'!H159/'Population 2016'!H$14","v":7.9118642878444993E-3},{"$f":"'Population 2016'!I159/'Population 2016'!I$14","v":1.3736545361353152E-2},{"$f":"'Population 2016'!J159/'Population 2016'!J$14","v":9.9812382739212016E-3},{"$f":"'Population 2016'!K159/'Population 2016'!K$14","v":9.0312239928489971E-3},{"$f":"'Population 2016'!L159/'Population 2016'!L$14","v":1.5528264362520926E-2},{"$f":"'Population 2016'!M159/'Population 2016'!M$14","v":1.5528264362520926E-2},{"$f":"'Population 2016'!N159/'Population 2016'!N$14","v":7.7396550673410934E-3},{"$f":"'Population 2016'!O159/'Population 2016'!O$14","v":8.1662858329871208E-3},{"$f":"'Population 2016'!P159/'Population 2016'!P$14","v":3.383084577114428E-3},{"$f":"'Population 2016'!Q159/'Population 2016'!Q$14","v":9.8140735360029673E-3},{"$f":"'Population 2016'!R159/'Population 2016'!R$14","v":5.7399418962936878E-3},{"$f":"'Population 2016'!S159/'Population 2016'!S$14","v":1.0516731112099125E-2},{"$f":"'Population 2016'!T159/'Population 2016'!T$14","v":1.0385081653587586E-2},{"$f":"'Population 2016'!U159/'Population 2016'!U$14","v":2.8018051899210229E-2},{"$f":"'Population 2016'!V159/'Population 2016'!V$14","v":8.1481190607083955E-3},{"$f":"'Population 2016'!W159/'Population 2016'!W$14","v":9.8708566508824789E-3},{"$f":"'Population 2016'!X159/'Population 2016'!X$14","v":9.8708566508824789E-3},{"$f":"'Population 2016'!Y159/'Population 2016'!Y$14","v":9.0243364985984342E-3},{"$f":"'Population 2016'!Z159/'Population 2016'!Z$14","v":1.0938254546630838E-2},{"$f":"'Population 2016'!AA159/'Population 2016'!AA$14","v":8.7210272358998666E-3},{"$f":"'Population 2016'!AB159/'Population 2016'!AB$14","v":1.0902273162798647E-2},{"$f":"'Population 2016'!AC159/'Population 2016'!AC$14","v":8.917012015164847E-3},{"$f":"'Population 2016'!AD159/'Population 2016'!AD$14","v":1.3183935694059616E-2},{"$f":"'Population 2016'!AE159/'Population 2016'!AE$14","v":1.2271803872251628E-2},{"$f":"'Population 2016'!AF159/'Population 2016'!AF$14","v":7.6984443558037498E-3},{"$f":"'Population 2016'!AG159/'Population 2016'!AG$14","v":1.2271803872251628E-2},{"$f":"'Population 2016'!AH159/'Population 2016'!AH$14","v":8.3608912918429236E-3},{"$f":"'Population 2016'!AI159/'Population 2016'!AI$14","v":1.0398396179572304E-2},{"$f":"'Population 2016'!AJ159/'Population 2016'!AJ$14","v":1.0825170781074927E-2},{"$f":"'Population 2016'!AK159/'Population 2016'!AK$14","v":1.1289702119118901E-2},{"$f":"'Population 2016'!AL159/'Population 2016'!AL$14","v":6.3207038965703002E-3},{"$f":"'Population 2016'!AM159/'Population 2016'!AM$14","v":7.9510369135768737E-3},{"$f":"'Population 2016'!AN159/'Population 2016'!AN$14","v":1.3465998354155757E-2},{"$f":"'Population 2016'!AO159/'Population 2016'!AO$14","v":1.3465998354155757E-2},{"$f":"'Population 2016'!AP159/'Population 2016'!AP$14","v":1.1598915989159892E-2},{"$f":"'Population 2016'!AQ159/'Population 2016'!AQ$14","v":7.6250319915983442E-3},{"$f":"'Population 2016'!AR159/'Population 2016'!AR$14","v":1.0099626611528996E-2},{"$f":"'Population 2016'!AS159/'Population 2016'!AS$14","v":1.3736545361353152E-2},{"$f":"'Population 2016'!AT159/'Population 2016'!AT$14","v":1.5723702279593518E-2},{"$f":"'Population 2016'!AU159/'Population 2016'!AU$14","v":1.5723702279593518E-2},{"$f":"'Population 2016'!AV159/'Population 2016'!AV$14","v":9.5918639645382713E-3},{"$f":"'Population 2016'!AW159/'Population 2016'!AW$14","v":8.8045787753452068E-3},{"$f":"'Population 2016'!AX159/'Population 2016'!AX$14","v":1.0487901104681747E-2},{"$f":"'Population 2016'!AY159/'Population 2016'!AY$14","v":1.0348628016661534E-2},{"$f":"'Population 2016'!AZ159/'Population 2016'!AZ$14","v":1.0773387627634983E-2},{"$f":"'Population 2016'!BA159/'Population 2016'!BA$14","v":6.7524393402987656E-3},{"$f":"'Population 2016'!BB159/'Population 2016'!BB$14","v":1.0561107237844399E-2},{"$f":"'Population 2016'!BC159/'Population 2016'!BC$14","v":2.8018051899210229E-2},157]
[null,"Male 25-29",{"$f":"'Population 2016'!C160/'Population 2016'!C$14","v":1.5588760174355339E-2},{"$f":"'Population 2016'!D160/'Population 2016'!D$14","v":1.1830167693622863E-2},{"$f":"'Population 2016'!E160/'Population 2016'!E$14","v":8.1788967550196923E-3},{"$f":"'Population 2016'!F160/'Population 2016'!F$14","v":1.2381707939026463E-2},{"$f":"'Population 2016'!G160/'Population 2016'!G$14","v":1.4158514215836136E-2},{"$f":"'Population 2016'!H160/'Population 2016'!H$14","v":7.0215602687577847E-3},{"$f":"'Population 2016'!I160/'Population 2016'!I$14","v":1.2711430035879037E-2},{"$f":"'Population 2016'!J160/'Population 2016'!J$14","v":8.3945322969713222E-3},{"$f":"'Population 2016'!K160/'Population 2016'!K$14","v":7.0277101377801063E-3},{"$f":"'Population 2016'!L160/'Population 2016'!L$14","v":1.4775446915133878E-2},{"$f":"'Population 2016'!M160/'Population 2016'!M$14","v":1.4775446915133878E-2},{"$f":"'Population 2016'!N160/'Population 2016'!N$14","v":9.1210108273914719E-3},{"$f":"'Population 2016'!O160/'Population 2016'!O$14","v":8.1533028666389701E-3},{"$f":"'Population 2016'!P160/'Population 2016'!P$14","v":3.1840796019900496E-3},{"$f":"'Population 2016'!Q160/'Population 2016'!Q$14","v":9.2267746472342854E-3},{"$f":"'Population 2016'!R160/'Population 2016'!R$14","v":4.4370103002024826E-3},{"$f":"'Population 2016'!S160/'Population 2016'!S$14","v":1.1885354494788229E-2},{"$f":"'Population 2016'!T160/'Population 2016'!T$14","v":1.4313044510318673E-2},{"$f":"'Population 2016'!U160/'Population 2016'!U$14","v":2.5761564497931554E-2},{"$f":"'Population 2016'!V160/'Population 2016'!V$14","v":7.5885494384669754E-3},{"$f":"'Population 2016'!W160/'Population 2016'!W$14","v":9.8321136461472242E-3},{"$f":"'Population 2016'!X160/'Population 2016'!X$14","v":9.8321136461472242E-3},{"$f":"'Population 2016'!Y160/'Population 2016'!Y$14","v":7.9738032889376288E-3},{"$f":"'Population 2016'!Z160/'Population 2016'!Z$14","v":1.1254803104486441E-2},{"$f":"'Population 2016'!AA160/'Population 2016'!AA$14","v":8.643443963187154E-3},{"$f":"'Population 2016'!AB160/'Population 2016'!AB$14","v":1.1777562552115973E-2},{"$f":"'Population 2016'!AC160/'Population 2016'!AC$14","v":9.0767504563495378E-3},{"$f":"'Population 2016'!AD160/'Population 2016'!AD$14","v":1.2798262440499751E-2},{"$f":"'Population 2016'!AE160/'Population 2016'!AE$14","v":1.2306352869639723E-2},{"$f":"'Population 2016'!AF160/'Population 2016'!AF$14","v":7.2596729158356599E-3},{"$f":"'Population 2016'!AG160/'Population 2016'!AG$14","v":1.2306352869639723E-2},{"$f":"'Population 2016'!AH160/'Population 2016'!AH$14","v":7.8472125233463447E-3},{"$f":"'Population 2016'!AI160/'Population 2016'!AI$14","v":1.2598056909866444E-2},{"$f":"'Population 2016'!AJ160/'Population 2016'!AJ$14","v":1.0264936567029313E-2},{"$f":"'Population 2016'!AK160/'Population 2016'!AK$14","v":1.1490407934569903E-2},{"$f":"'Population 2016'!AL160/'Population 2016'!AL$14","v":5.0517747052133835E-3},{"$f":"'Population 2016'!AM160/'Population 2016'!AM$14","v":7.5320819330218494E-3},{"$f":"'Population 2016'!AN160/'Population 2016'!AN$14","v":1.5186653699408992E-2},{"$f":"'Population 2016'!AO160/'Population 2016'!AO$14","v":1.5186653699408992E-2},{"$f":"'Population 2016'!AP160/'Population 2016'!AP$14","v":9.355013550135502E-3},{"$f":"'Population 2016'!AQ160/'Population 2016'!AQ$14","v":8.0839459540556526E-3},{"$f":"'Population 2016'!AR160/'Population 2016'!AR$14","v":1.0298197872680005E-2},{"$f":"'Population 2016'!AS160/'Population 2016'!AS$14","v":1.2711430035879037E-2},{"$f":"'Population 2016'!AT160/'Population 2016'!AT$14","v":1.386981598461961E-2},{"$f":"'Population 2016'!AU160/'Population 2016'!AU$14","v":1.386981598461961E-2},{"$f":"'Population 2016'!AV160/'Population 2016'!AV$14","v":8.1686507642358391E-3},{"$f":"'Population 2016'!AW160/'Population 2016'!AW$14","v":8.1883568565780454E-3},{"$f":"'Population 2016'!AX160/'Population 2016'!AX$14","v":9.1234876380852179E-3},{"$f":"'Population 2016'!AY160/'Population 2016'!AY$14","v":9.9657206761860004E-3},{"$f":"'Population 2016'!AZ160/'Population 2016'!AZ$14","v":1.0084503161214274E-2},{"$f":"'Population 2016'!BA160/'Population 2016'!BA$14","v":7.5123046369052759E-3},{"$f":"'Population 2016'!BB160/'Population 2016'!BB$14","v":1.0363140272505832E-2},{"$f":"'Population 2016'!BC160/'Population 2016'!BC$14","v":2.5761564497931554E-2},158]
[null,"Male 30-34",{"$f":"'Population 2016'!C161/'Population 2016'!C$14","v":1.1820595568986637E-2},{"$f":"'Population 2016'!D161/'Population 2016'!D$14","v":1.0221559032873834E-2},{"$f":"'Population 2016'!E161/'Population 2016'!E$14","v":8.6681808297291423E-3},{"$f":"'Population 2016'!F161/'Population 2016'!F$14","v":1.3840879469598232E-2},{"$f":"'Population 2016'!G161/'Population 2016'!G$14","v":1.3413329257107918E-2},{"$f":"'Population 2016'!H161/'Population 2016'!H$14","v":6.5391295194989736E-3},{"$f":"'Population 2016'!I161/'Population 2016'!I$14","v":1.2960386614922751E-2},{"$f":"'Population 2016'!J161/'Population 2016'!J$14","v":7.0222460466362905E-3},{"$f":"'Population 2016'!K161/'Population 2016'!K$14","v":6.7811238171562429E-3},{"$f":"'Population 2016'!L161/'Population 2016'!L$14","v":1.3854088248182564E-2},{"$f":"'Population 2016'!M161/'Population 2016'!M$14","v":1.3854088248182564E-2},{"$f":"'Population 2016'!N161/'Population 2016'!N$14","v":7.4755723485079324E-3},{"$f":"'Population 2016'!O161/'Population 2016'!O$14","v":6.9069380972164524E-3},{"$f":"'Population 2016'!P161/'Population 2016'!P$14","v":2.7401454267125909E-3},{"$f":"'Population 2016'!Q161/'Population 2016'!Q$14","v":8.1139978053567843E-3},{"$f":"'Population 2016'!R161/'Population 2016'!R$14","v":4.4722246676644067E-3},{"$f":"'Population 2016'!S161/'Population 2016'!S$14","v":1.1192622233000552E-2},{"$f":"'Population 2016'!T161/'Population 2016'!T$14","v":1.2668386681097456E-2},{"$f":"'Population 2016'!U161/'Population 2016'!U$14","v":2.8143412310392378E-2},{"$f":"'Population 2016'!V161/'Population 2016'!V$14","v":7.6081834603000074E-3},{"$f":"'Population 2016'!W161/'Population 2016'!W$14","v":9.7503228583727935E-3},{"$f":"'Population 2016'!X161/'Population 2016'!X$14","v":9.7503228583727935E-3},{"$f":"'Population 2016'!Y161/'Population 2016'!Y$14","v":7.328109706414402E-3},{"$f":"'Population 2016'!Z161/'Population 2016'!Z$14","v":1.0379095780199772E-2},{"$f":"'Population 2016'!AA161/'Population 2016'!AA$14","v":8.5233150247932786E-3},{"$f":"'Population 2016'!AB161/'Population 2016'!AB$14","v":1.068992484941397E-2},{"$f":"'Population 2016'!AC161/'Population 2016'!AC$14","v":8.4712902357301396E-3},{"$f":"'Population 2016'!AD161/'Population 2016'!AD$14","v":1.3463041338083204E-2},{"$f":"'Population 2016'!AE161/'Population 2016'!AE$14","v":1.3481018780834981E-2},{"$f":"'Population 2016'!AF161/'Population 2016'!AF$14","v":6.441962504986039E-3},{"$f":"'Population 2016'!AG161/'Population 2016'!AG$14","v":1.3481018780834981E-2},{"$f":"'Population 2016'!AH161/'Population 2016'!AH$14","v":8.6189142677236923E-3},{"$f":"'Population 2016'!AI161/'Population 2016'!AI$14","v":1.1555844776483627E-2},{"$f":"'Population 2016'!AJ161/'Population 2016'!AJ$14","v":1.0246864495608486E-2},{"$f":"'Population 2016'!AK161/'Population 2016'!AK$14","v":1.3246583819766178E-2},{"$f":"'Population 2016'!AL161/'Population 2016'!AL$14","v":4.7165858622134436E-3},{"$f":"'Population 2016'!AM161/'Population 2016'!AM$14","v":8.775285299234041E-3},{"$f":"'Population 2016'!AN161/'Population 2016'!AN$14","v":1.3091942844318097E-2},{"$f":"'Population 2016'!AO161/'Population 2016'!AO$14","v":1.3091942844318097E-2},{"$f":"'Population 2016'!AP161/'Population 2016'!AP$14","v":1.0439024390243903E-2},{"$f":"'Population 2016'!AQ161/'Population 2016'!AQ$14","v":8.3840050833546616E-3},{"$f":"'Population 2016'!AR161/'Population 2016'!AR$14","v":9.9265572872357655E-3},{"$f":"'Population 2016'!AS161/'Population 2016'!AS$14","v":1.2960386614922751E-2},{"$f":"'Population 2016'!AT161/'Population 2016'!AT$14","v":1.524306509200769E-2},{"$f":"'Population 2016'!AU161/'Population 2016'!AU$14","v":1.524306509200769E-2},{"$f":"'Population 2016'!AV161/'Population 2016'!AV$14","v":8.3762026892799431E-3},{"$f":"'Population 2016'!AW161/'Population 2016'!AW$14","v":8.4496349501353221E-3},{"$f":"'Population 2016'!AX161/'Population 2016'!AX$14","v":7.1508416622830086E-3},{"$f":"'Population 2016'!AY161/'Population 2016'!AY$14","v":1.0010291901003257E-2},{"$f":"'Population 2016'!AZ161/'Population 2016'!AZ$14","v":1.0241415734121214E-2},{"$f":"'Population 2016'!BA161/'Population 2016'!BA$14","v":6.527933684483205E-3},{"$f":"'Population 2016'!BB161/'Population 2016'!BB$14","v":1.0707430647007686E-2},{"$f":"'Population 2016'!BC161/'Population 2016'!BC$14","v":2.8143412310392378E-2},159]
[null,"Male 35-39",{"$f":"'Population 2016'!C162/'Population 2016'!C$14","v":8.5685327164984667E-3},{"$f":"'Population 2016'!D162/'Population 2016'!D$14","v":8.6650386525681054E-3},{"$f":"'Population 2016'!E162/'Population 2016'!E$14","v":8.7587889917123737E-3},{"$f":"'Population 2016'!F162/'Population 2016'!F$14","v":1.3699212330707769E-2},{"$f":"'Population 2016'!G162/'Population 2016'!G$14","v":1.5056557627636809E-2},{"$f":"'Population 2016'!H162/'Population 2016'!H$14","v":6.9908601301685875E-3},{"$f":"'Population 2016'!I162/'Population 2016'!I$14","v":1.222816138244124E-2},{"$f":"'Population 2016'!J162/'Population 2016'!J$14","v":6.882873224336639E-3},{"$f":"'Population 2016'!K162/'Population 2016'!K$14","v":6.8427703973122089E-3},{"$f":"'Population 2016'!L162/'Population 2016'!L$14","v":1.2854077012101259E-2},{"$f":"'Population 2016'!M162/'Population 2016'!M$14","v":1.2854077012101259E-2},{"$f":"'Population 2016'!N162/'Population 2016'!N$14","v":5.3629105978426472E-3},{"$f":"'Population 2016'!O162/'Population 2016'!O$14","v":7.7638138761944326E-3},{"$f":"'Population 2016'!P162/'Population 2016'!P$14","v":2.4186758515116723E-3},{"$f":"'Population 2016'!Q162/'Population 2016'!Q$14","v":8.3458263140812634E-3},{"$f":"'Population 2016'!R162/'Population 2016'!R$14","v":4.6306893212430672E-3},{"$f":"'Population 2016'!S162/'Population 2016'!S$14","v":9.9385186083379359E-3},{"$f":"'Population 2016'!T162/'Population 2016'!T$14","v":9.6588324059761546E-3},{"$f":"'Population 2016'!U162/'Population 2016'!U$14","v":3.1026701767581797E-2},{"$f":"'Population 2016'!V162/'Population 2016'!V$14","v":9.1887222178591056E-3},{"$f":"'Population 2016'!W162/'Population 2016'!W$14","v":9.6082651743435218E-3},{"$f":"'Population 2016'!X162/'Population 2016'!X$14","v":9.6082651743435218E-3},{"$f":"'Population 2016'!Y162/'Population 2016'!Y$14","v":8.0865434382670822E-3},{"$f":"'Population 2016'!Z162/'Population 2016'!Z$14","v":7.9576148412751589E-3},{"$f":"'Population 2016'!AA162/'Population 2016'!AA$14","v":7.6740701686476816E-3},{"$f":"'Population 2016'!AB162/'Population 2016'!AB$14","v":9.1957178149876476E-3},{"$f":"'Population 2016'!AC162/'Population 2016'!AC$14","v":6.9241461400622725E-3},{"$f":"'Population 2016'!AD162/'Population 2016'!AD$14","v":1.4056775162642471E-2},{"$f":"'Population 2016'!AE162/'Population 2016'!AE$14","v":1.3695222564641174E-2},{"$f":"'Population 2016'!AF162/'Population 2016'!AF$14","v":6.9206222576785005E-3},{"$f":"'Population 2016'!AG162/'Population 2016'!AG$14","v":1.3695222564641174E-2},{"$f":"'Population 2016'!AH162/'Population 2016'!AH$14","v":9.0521088052115915E-3},{"$f":"'Population 2016'!AI162/'Population 2016'!AI$14","v":9.8035726693001587E-3},{"$f":"'Population 2016'!AJ162/'Population 2016'!AJ$14","v":1.0590233852604186E-2},{"$f":"'Population 2016'!AK162/'Population 2016'!AK$14","v":1.2092525380922913E-2},{"$f":"'Population 2016'!AL162/'Population 2016'!AL$14","v":4.9919195546776797E-3},{"$f":"'Population 2016'!AM162/'Population 2016'!AM$14","v":9.617749118828383E-3},{"$f":"'Population 2016'!AN162/'Population 2016'!AN$14","v":1.2119398518740181E-2},{"$f":"'Population 2016'!AO162/'Population 2016'!AO$14","v":1.2119398518740181E-2},{"$f":"'Population 2016'!AP162/'Population 2016'!AP$14","v":1.0211382113821138E-2},{"$f":"'Population 2016'!AQ162/'Population 2016'!AQ$14","v":7.3337981308081298E-3},{"$f":"'Population 2016'!AR162/'Population 2016'!AR$14","v":9.1712414944593468E-3},{"$f":"'Population 2016'!AS162/'Population 2016'!AS$14","v":1.222816138244124E-2},{"$f":"'Population 2016'!AT162/'Population 2016'!AT$14","v":1.5449052458115902E-2},{"$f":"'Population 2016'!AU162/'Population 2016'!AU$14","v":1.5449052458115902E-2},{"$f":"'Population 2016'!AV162/'Population 2016'!AV$14","v":8.5837546143240472E-3},{"$f":"'Population 2016'!AW162/'Population 2016'!AW$14","v":8.4397753994350476E-3},{"$f":"'Population 2016'!AX162/'Population 2016'!AX$14","v":6.904260915307733E-3},{"$f":"'Population 2016'!AY162/'Population 2016'!AY$14","v":9.4592294850807963E-3},{"$f":"'Population 2016'!AZ162/'Population 2016'!AZ$14","v":9.3267302481514925E-3},{"$f":"'Population 2016'!BA162/'Population 2016'!BA$14","v":5.7335290562127621E-3},{"$f":"'Population 2016'!BB162/'Population 2016'!BB$14","v":1.0681608868920047E-2},{"$f":"'Population 2016'!BC162/'Population 2016'!BC$14","v":3.1026701767581797E-2},160]
[null,"Male 40-44",{"$f":"'Population 2016'!C163/'Population 2016'!C$14","v":6.6098332929157263E-3},{"$f":"'Population 2016'!D163/'Population 2016'!D$14","v":8.1533478976250802E-3},{"$f":"'Population 2016'!E163/'Population 2016'!E$14","v":9.6527895232802578E-3},{"$f":"'Population 2016'!F163/'Population 2016'!F$14","v":1.6093386977956592E-2},{"$f":"'Population 2016'!G163/'Population 2016'!G$14","v":1.8018190155915621E-2},{"$f":"'Population 2016'!H163/'Population 2016'!H$14","v":7.8066066698243954E-3},{"$f":"'Population 2016'!I163/'Population 2016'!I$14","v":1.6079666105293988E-2},{"$f":"'Population 2016'!J163/'Population 2016'!J$14","v":7.6869471991423211E-3},{"$f":"'Population 2016'!K163/'Population 2016'!K$14","v":9.0004007027710137E-3},{"$f":"'Population 2016'!L163/'Population 2016'!L$14","v":1.5359723142956663E-2},{"$f":"'Population 2016'!M163/'Population 2016'!M$14","v":1.5359723142956663E-2},{"$f":"'Population 2016'!N163/'Population 2016'!N$14","v":4.8550592154711844E-3},{"$f":"'Population 2016'!O163/'Population 2016'!O$14","v":7.9066265060240958E-3},{"$f":"'Population 2016'!P163/'Population 2016'!P$14","v":2.877918101798699E-3},{"$f":"'Population 2016'!Q163/'Population 2016'!Q$14","v":1.0834118974390678E-2},{"$f":"'Population 2016'!R163/'Population 2016'!R$14","v":4.6659036887049914E-3},{"$f":"'Population 2016'!S163/'Population 2016'!S$14","v":9.7555115440407063E-3},{"$f":"'Population 2016'!T163/'Population 2016'!T$14","v":7.2201043877323217E-3},{"$f":"'Population 2016'!U163/'Population 2016'!U$14","v":3.5226275542183778E-2},{"$f":"'Population 2016'!V163/'Population 2016'!V$14","v":9.3654284143563967E-3},{"$f":"'Population 2016'!W163/'Population 2016'!W$14","v":1.0266896254842875E-2},{"$f":"'Population 2016'!X163/'Population 2016'!X$14","v":1.0266896254842875E-2},{"$f":"'Population 2016'!Y163/'Population 2016'!Y$14","v":8.5631267967961298E-3},{"$f":"'Population 2016'!Z163/'Population 2016'!Z$14","v":5.7741229640959997E-3},{"$f":"'Population 2016'!AA163/'Population 2016'!AA$14","v":7.0767623916336867E-3},{"$f":"'Population 2016'!AB163/'Population 2016'!AB$14","v":8.9756006608693855E-3},{"$f":"'Population 2016'!AC163/'Population 2016'!AC$14","v":5.8639466473606443E-3},{"$f":"'Population 2016'!AD163/'Population 2016'!AD$14","v":1.4665732931421207E-2},{"$f":"'Population 2016'!AE163/'Population 2016'!AE$14","v":1.3453379582924503E-2},{"$f":"'Population 2016'!AF163/'Population 2016'!AF$14","v":6.9605105704028721E-3},{"$f":"'Population 2016'!AG163/'Population 2016'!AG$14","v":1.3453379582924503E-2},{"$f":"'Population 2016'!AH163/'Population 2016'!AH$14","v":9.3053974145624382E-3},{"$f":"'Population 2016'!AI163/'Population 2016'!AI$14","v":8.8223680754324334E-3},{"$f":"'Population 2016'!AJ163/'Population 2016'!AJ$14","v":1.1566125709328804E-2},{"$f":"'Population 2016'!AK163/'Population 2016'!AK$14","v":1.3464015119838097E-2},{"$f":"'Population 2016'!AL163/'Population 2016'!AL$14","v":6.1650805051774709E-3},{"$f":"'Population 2016'!AM163/'Population 2016'!AM$14","v":9.5676566755011523E-3},{"$f":"'Population 2016'!AN163/'Population 2016'!AN$14","v":1.2418642926610308E-2},{"$f":"'Population 2016'!AO163/'Population 2016'!AO$14","v":1.2418642926610308E-2},{"$f":"'Population 2016'!AP163/'Population 2016'!AP$14","v":1.0005420054200543E-2},{"$f":"'Population 2016'!AQ163/'Population 2016'!AQ$14","v":7.4750024269488397E-3},{"$f":"'Population 2016'!AR163/'Population 2016'!AR$14","v":9.1208106979765498E-3},{"$f":"'Population 2016'!AS163/'Population 2016'!AS$14","v":1.6079666105293988E-2},{"$f":"'Population 2016'!AT163/'Population 2016'!AT$14","v":1.5105740181268883E-2},{"$f":"'Population 2016'!AU163/'Population 2016'!AU$14","v":1.5105740181268883E-2},{"$f":"'Population 2016'!AV163/'Population 2016'!AV$14","v":9.7252902020666249E-3},{"$f":"'Population 2016'!AW163/'Population 2016'!AW$14","v":9.0214888907512482E-3},{"$f":"'Population 2016'!AX163/'Population 2016'!AX$14","v":6.9864544976328252E-3},{"$f":"'Population 2016'!AY163/'Population 2016'!AY$14","v":9.9717985704792615E-3},{"$f":"'Population 2016'!AZ163/'Population 2016'!AZ$14","v":9.7094438406074429E-3},{"$f":"'Population 2016'!BA163/'Population 2016'!BA$14","v":6.9769449961143253E-3},{"$f":"'Population 2016'!BB163/'Population 2016'!BB$14","v":1.1275509764935746E-2},{"$f":"'Population 2016'!BC163/'Population 2016'!BC$14","v":3.5226275542183778E-2},161]
[null,"Male 45-49",{"$f":"'Population 2016'!C164/'Population 2016'!C$14","v":6.4979076115681406E-3},{"$f":"'Population 2016'!D164/'Population 2016'!D$14","v":9.3605703973110195E-3},{"$f":"'Population 2016'!E164/'Population 2016'!E$14","v":1.2141493705753015E-2},{"$f":"'Population 2016'!F164/'Population 2016'!F$14","v":1.9380064600215335E-2},{"$f":"'Population 2016'!G164/'Population 2016'!G$14","v":2.3903240599205136E-2},{"$f":"'Population 2016'!H164/'Population 2016'!H$14","v":1.0069645457256636E-2},{"$f":"'Population 2016'!I164/'Population 2016'!I$14","v":1.9901881818847479E-2},{"$f":"'Population 2016'!J164/'Population 2016'!J$14","v":9.4559099437148218E-3},{"$f":"'Population 2016'!K164/'Population 2016'!K$14","v":1.1404617328853683E-2},{"$f":"'Population 2016'!L164/'Population 2016'!L$14","v":2.1191249339880223E-2},{"$f":"'Population 2016'!M164/'Population 2016'!M$14","v":2.1191249339880223E-2},{"$f":"'Population 2016'!N164/'Population 2016'!N$14","v":5.0886708513620572E-3},{"$f":"'Population 2016'!O164/'Population 2016'!O$14","v":1.0360407145824677E-2},{"$f":"'Population 2016'!P164/'Population 2016'!P$14","v":3.6127057022579409E-3},{"$f":"'Population 2016'!Q164/'Population 2016'!Q$14","v":1.2395097599802172E-2},{"$f":"'Population 2016'!R164/'Population 2016'!R$14","v":5.3701910379434807E-3},{"$f":"'Population 2016'!S164/'Population 2016'!S$14","v":1.0657073952817859E-2},{"$f":"'Population 2016'!T164/'Population 2016'!T$14","v":6.3299545317105285E-3},{"$f":"'Population 2016'!U164/'Population 2016'!U$14","v":4.7323555221261124E-2},{"$f":"'Population 2016'!V164/'Population 2016'!V$14","v":1.1387732663158722E-2},{"$f":"'Population 2016'!W164/'Population 2016'!W$14","v":1.225570383125269E-2},{"$f":"'Population 2016'!X164/'Population 2016'!X$14","v":1.225570383125269E-2},{"$f":"'Population 2016'!Y164/'Population 2016'!Y$14","v":1.0464335678670077E-2},{"$f":"'Population 2016'!Z164/'Population 2016'!Z$14","v":6.0121120258414531E-3},{"$f":"'Population 2016'!AA164/'Population 2016'!AA$14","v":8.170436268261267E-3},{"$f":"'Population 2016'!AB164/'Population 2016'!AB$14","v":1.0441321945939226E-2},{"$f":"'Population 2016'!AC164/'Population 2016'!AC$14","v":6.6149749635757704E-3},{"$f":"'Population 2016'!AD164/'Population 2016'!AD$14","v":1.9278588029920125E-2},{"$f":"'Population 2016'!AE164/'Population 2016'!AE$14","v":1.760616906897362E-2},{"$f":"'Population 2016'!AF164/'Population 2016'!AF$14","v":8.017550857598723E-3},{"$f":"'Population 2016'!AG164/'Population 2016'!AG$14","v":1.760616906897362E-2},{"$f":"'Population 2016'!AH164/'Population 2016'!AH$14","v":1.1028706831454184E-2},{"$f":"'Population 2016'!AI164/'Population 2016'!AI$14","v":8.9579403854659709E-3},{"$f":"'Population 2016'!AJ164/'Population 2016'!AJ$14","v":1.3427549065673908E-2},{"$f":"'Population 2016'!AK164/'Population 2016'!AK$14","v":1.6340798474635803E-2},{"$f":"'Population 2016'!AL164/'Population 2016'!AL$14","v":8.068474292212845E-3},{"$f":"'Population 2016'!AM164/'Population 2016'!AM$14","v":1.0706121296574587E-2},{"$f":"'Population 2016'!AN164/'Population 2016'!AN$14","v":1.6159198024986908E-2},{"$f":"'Population 2016'!AO164/'Population 2016'!AO$14","v":1.6159198024986908E-2},{"$f":"'Population 2016'!AP164/'Population 2016'!AP$14","v":1.3084010840108401E-2},{"$f":"'Population 2016'!AQ164/'Population 2016'!AQ$14","v":9.6724942856386397E-3},{"$f":"'Population 2016'!AR164/'Population 2016'!AR$14","v":1.0788465445305366E-2},{"$f":"'Population 2016'!AS164/'Population 2016'!AS$14","v":1.9901881818847479E-2},{"$f":"'Population 2016'!AT164/'Population 2016'!AT$14","v":1.8058225762153254E-2},{"$f":"'Population 2016'!AU164/'Population 2016'!AU$14","v":1.8058225762153254E-2},{"$f":"'Population 2016'!AV164/'Population 2016'!AV$14","v":1.2215913302595881E-2},{"$f":"'Population 2016'!AW164/'Population 2016'!AW$14","v":1.1377921508116876E-2},{"$f":"'Population 2016'!AX164/'Population 2016'!AX$14","v":8.4166228300894264E-3},{"$f":"'Population 2016'!AY164/'Population 2016'!AY$14","v":1.19997892996645E-2},{"$f":"'Population 2016'!AZ164/'Population 2016'!AZ$14","v":1.1772270103945012E-2},{"$f":"'Population 2016'!BA164/'Population 2016'!BA$14","v":8.5312149209912785E-3},{"$f":"'Population 2016'!BB164/'Population 2016'!BB$14","v":1.2919496303182103E-2},{"$f":"'Population 2016'!BC164/'Population 2016'!BC$14","v":4.7323555221261124E-2},162]
[null,"Male 50-54",{"$f":"'Population 2016'!C165/'Population 2016'!C$14","v":6.6409237599567216E-3},{"$f":"'Population 2016'!D165/'Population 2016'!D$14","v":9.3728264632976788E-3},{"$f":"'Population 2016'!E165/'Population 2016'!E$14","v":1.2026723367240921E-2},{"$f":"'Population 2016'!F165/'Population 2016'!F$14","v":2.2553408511361703E-2},{"$f":"'Population 2016'!G165/'Population 2016'!G$14","v":2.673112198104555E-2},{"$f":"'Population 2016'!H165/'Population 2016'!H$14","v":1.126256512815115E-2},{"$f":"'Population 2016'!I165/'Population 2016'!I$14","v":2.2860071758072784E-2},{"$f":"'Population 2016'!J165/'Population 2016'!J$14","v":1.0142053068882337E-2},{"$f":"'Population 2016'!K165/'Population 2016'!K$14","v":1.171285022963351E-2},{"$f":"'Population 2016'!L165/'Population 2016'!L$14","v":2.4651962381599793E-2},{"$f":"'Population 2016'!M165/'Population 2016'!M$14","v":2.4651962381599793E-2},{"$f":"'Population 2016'!N165/'Population 2016'!N$14","v":6.5208117496495825E-3},{"$f":"'Population 2016'!O165/'Population 2016'!O$14","v":1.1749584545076859E-2},{"$f":"'Population 2016'!P165/'Population 2016'!P$14","v":3.7045541523153462E-3},{"$f":"'Population 2016'!Q165/'Population 2016'!Q$14","v":1.2657836576356583E-2},{"$f":"'Population 2016'!R165/'Population 2016'!R$14","v":6.8315872876133464E-3},{"$f":"'Population 2016'!S165/'Population 2016'!S$14","v":1.102757905231532E-2},{"$f":"'Population 2016'!T165/'Population 2016'!T$14","v":6.2197455019173545E-3},{"$f":"'Population 2016'!U165/'Population 2016'!U$14","v":4.5129748025573527E-2},{"$f":"'Population 2016'!V165/'Population 2016'!V$14","v":1.1809864132568916E-2},{"$f":"'Population 2016'!W165/'Population 2016'!W$14","v":1.2772277227722771E-2},{"$f":"'Population 2016'!X165/'Population 2016'!X$14","v":1.2772277227722771E-2},{"$f":"'Population 2016'!Y165/'Population 2016'!Y$14","v":1.1012662768590595E-2},{"$f":"'Population 2016'!Z165/'Population 2016'!Z$14","v":6.0329071865764927E-3},{"$f":"'Population 2016'!AA165/'Population 2016'!AA$14","v":8.5374969133536656E-3},{"$f":"'Population 2016'!AB165/'Population 2016'!AB$14","v":1.0513831126119361E-2},{"$f":"'Population 2016'!AC165/'Population 2016'!AC$14","v":7.1276838312492189E-3},{"$f":"'Population 2016'!AD165/'Population 2016'!AD$14","v":2.233860081803327E-2},{"$f":"'Population 2016'!AE165/'Population 2016'!AE$14","v":2.0750127831290335E-2},{"$f":"'Population 2016'!AF165/'Population 2016'!AF$14","v":9.5532508974870371E-3},{"$f":"'Population 2016'!AG165/'Population 2016'!AG$14","v":2.0750127831290335E-2},{"$f":"'Population 2016'!AH165/'Population 2016'!AH$14","v":1.1128128528582554E-2},{"$f":"'Population 2016'!AI165/'Population 2016'!AI$14","v":8.9714976164693237E-3},{"$f":"'Population 2016'!AJ165/'Population 2016'!AJ$14","v":1.3535981494198865E-2},{"$f":"'Population 2016'!AK165/'Population 2016'!AK$14","v":1.6742210105537808E-2},{"$f":"'Population 2016'!AL165/'Population 2016'!AL$14","v":9.0500987609983836E-3},{"$f":"'Population 2016'!AM165/'Population 2016'!AM$14","v":1.0564951683561481E-2},{"$f":"'Population 2016'!AN165/'Population 2016'!AN$14","v":2.1246352958779084E-2},{"$f":"'Population 2016'!AO165/'Population 2016'!AO$14","v":2.1246352958779084E-2},{"$f":"'Population 2016'!AP165/'Population 2016'!AP$14","v":1.5382113821138211E-2},{"$f":"'Population 2016'!AQ165/'Population 2016'!AQ$14","v":1.1181615200642479E-2},{"$f":"'Population 2016'!AR165/'Population 2016'!AR$14","v":1.1572148561103357E-2},{"$f":"'Population 2016'!AS165/'Population 2016'!AS$14","v":2.2860071758072784E-2},{"$f":"'Population 2016'!AT165/'Population 2016'!AT$14","v":2.0598736610821202E-2},{"$f":"'Population 2016'!AU165/'Population 2016'!AU$14","v":2.0598736610821202E-2},{"$f":"'Population 2016'!AV165/'Population 2016'!AV$14","v":1.344639971535736E-2},{"$f":"'Population 2016'!AW165/'Population 2016'!AW$14","v":1.1737795108676898E-2},{"$f":"'Population 2016'!AX165/'Population 2016'!AX$14","v":9.3043135192004203E-3},{"$f":"'Population 2016'!AY165/'Population 2016'!AY$14","v":1.341188674046581E-2},{"$f":"'Population 2016'!AZ165/'Population 2016'!AZ$14","v":1.3980527532415842E-2},{"$f":"'Population 2016'!BA165/'Population 2016'!BA$14","v":9.429237544253519E-3},{"$f":"'Population 2016'!BB165/'Population 2016'!BB$14","v":1.3126070527883216E-2},{"$f":"'Population 2016'!BC165/'Population 2016'!BC$14","v":4.5129748025573527E-2},163]
[null,"Male 55-59",{"$f":"'Population 2016'!C166/'Population 2016'!C$14","v":5.8885344575646216E-3},{"$f":"'Population 2016'!D166/'Population 2016'!D$14","v":8.5516700421915063E-3},{"$f":"'Population 2016'!E166/'Population 2016'!E$14","v":1.1138763379805253E-2},{"$f":"'Population 2016'!F166/'Population 2016'!F$14","v":2.0910069700232334E-2},{"$f":"'Population 2016'!G166/'Population 2016'!G$14","v":2.6998624273922349E-2},{"$f":"'Population 2016'!H166/'Population 2016'!H$14","v":9.8635159553005988E-3},{"$f":"'Population 2016'!I166/'Population 2016'!I$14","v":2.2406092113934246E-2},{"$f":"'Population 2016'!J166/'Population 2016'!J$14","v":9.5202358616992763E-3},{"$f":"'Population 2016'!K166/'Population 2016'!K$14","v":1.158955706932158E-2},{"$f":"'Population 2016'!L166/'Population 2016'!L$14","v":2.3663187226822775E-2},{"$f":"'Population 2016'!M166/'Population 2016'!M$14","v":2.3663187226822775E-2},{"$f":"'Population 2016'!N166/'Population 2016'!N$14","v":6.0535884778678368E-3},{"$f":"'Population 2016'!O166/'Population 2016'!O$14","v":9.2568550062318237E-3},{"$f":"'Population 2016'!P166/'Population 2016'!P$14","v":3.5361653272101032E-3},{"$f":"'Population 2016'!Q166/'Population 2016'!Q$14","v":1.2966941254655889E-2},{"$f":"'Population 2016'!R166/'Population 2016'!R$14","v":6.690729817765648E-3},{"$f":"'Population 2016'!S166/'Population 2016'!S$14","v":1.0321373877818646E-2},{"$f":"'Population 2016'!T166/'Population 2016'!T$14","v":5.2391677240139828E-3},{"$f":"'Population 2016'!U166/'Population 2016'!U$14","v":4.4440265764071708E-2},{"$f":"'Population 2016'!V166/'Population 2016'!V$14","v":1.0032985156679494E-2},{"$f":"'Population 2016'!W166/'Population 2016'!W$14","v":1.2509685751183814E-2},{"$f":"'Population 2016'!X166/'Population 2016'!X$14","v":1.2509685751183814E-2},{"$f":"'Population 2016'!Y166/'Population 2016'!Y$14","v":9.7878947826933616E-3},{"$f":"'Population 2016'!Z166/'Population 2016'!Z$14","v":5.3535986025651985E-3},{"$f":"'Population 2016'!AA166/'Population 2016'!AA$14","v":7.7383057815388519E-3},{"$f":"'Population 2016'!AB166/'Population 2016'!AB$14","v":9.7188197577157531E-3},{"$f":"'Population 2016'!AC166/'Population 2016'!AC$14","v":6.5196471841590994E-3},{"$f":"'Population 2016'!AD166/'Population 2016'!AD$14","v":2.2226958560423834E-2},{"$f":"'Population 2016'!AE166/'Population 2016'!AE$14","v":2.0501375050096048E-2},{"$f":"'Population 2016'!AF166/'Population 2016'!AF$14","v":1.0191463901076985E-2},{"$f":"'Population 2016'!AG166/'Population 2016'!AG$14","v":2.0501375050096048E-2},{"$f":"'Population 2016'!AH166/'Population 2016'!AH$14","v":9.9776774618114163E-3},{"$f":"'Population 2016'!AI166/'Population 2016'!AI$14","v":8.0614684853692054E-3},{"$f":"'Population 2016'!AJ166/'Population 2016'!AJ$14","v":1.2505873423211768E-2},{"$f":"'Population 2016'!AK166/'Population 2016'!AK$14","v":1.608991620532205E-2},{"$f":"'Population 2016'!AL166/'Population 2016'!AL$14","v":8.6430837373555995E-3},{"$f":"'Population 2016'!AM166/'Population 2016'!AM$14","v":8.7388544313596918E-3},{"$f":"'Population 2016'!AN166/'Population 2016'!AN$14","v":2.266776389616219E-2},{"$f":"'Population 2016'!AO166/'Population 2016'!AO$14","v":2.266776389616219E-2},{"$f":"'Population 2016'!AP166/'Population 2016'!AP$14","v":1.435230352303523E-2},{"$f":"'Population 2016'!AQ166/'Population 2016'!AQ$14","v":9.6724942856386397E-3},{"$f":"'Population 2016'!AR166/'Population 2016'!AR$14","v":1.0758092351969136E-2},{"$f":"'Population 2016'!AS166/'Population 2016'!AS$14","v":2.2406092113934246E-2},{"$f":"'Population 2016'!AT166/'Population 2016'!AT$14","v":1.8538862949739082E-2},{"$f":"'Population 2016'!AU166/'Population 2016'!AU$14","v":1.8538862949739082E-2},{"$f":"'Population 2016'!AV166/'Population 2016'!AV$14","v":1.2067661927564378E-2},{"$f":"'Population 2016'!AW166/'Population 2016'!AW$14","v":1.1318764203915227E-2},{"$f":"'Population 2016'!AX166/'Population 2016'!AX$14","v":8.4166228300894264E-3},{"$f":"'Population 2016'!AY166/'Population 2016'!AY$14","v":1.276762994537999E-2},{"$f":"'Population 2016'!AZ166/'Population 2016'!AZ$14","v":1.2996953599804051E-2},{"$f":"'Population 2016'!BA166/'Population 2016'!BA$14","v":9.0838442276141955E-3},{"$f":"'Population 2016'!BB166/'Population 2016'!BB$14","v":1.1809159845413622E-2},{"$f":"'Population 2016'!BC166/'Population 2016'!BC$14","v":4.4440265764071708E-2},164]
[null,"Male 60-64",{"$f":"'Population 2016'!C167/'Population 2016'!C$14","v":5.285379396969301E-3},{"$f":"'Population 2016'!D167/'Population 2016'!D$14","v":7.8867784624152421E-3},{"$f":"'Population 2016'!E167/'Population 2016'!E$14","v":1.0413898083939402E-2},{"$f":"'Population 2016'!F167/'Population 2016'!F$14","v":1.779339264464215E-2},{"$f":"'Population 2016'!G167/'Population 2016'!G$14","v":2.6177010088657904E-2},{"$f":"'Population 2016'!H167/'Population 2016'!H$14","v":9.5038857603985758E-3},{"$f":"'Population 2016'!I167/'Population 2016'!I$14","v":1.9770081277000806E-2},{"$f":"'Population 2016'!J167/'Population 2016'!J$14","v":8.3409273653176092E-3},{"$f":"'Population 2016'!K167/'Population 2016'!K$14","v":9.4935733440187405E-3},{"$f":"'Population 2016'!L167/'Population 2016'!L$14","v":2.289913369813144E-2},{"$f":"'Population 2016'!M167/'Population 2016'!M$14","v":2.289913369813144E-2},{"$f":"'Population 2016'!N167/'Population 2016'!N$14","v":5.0785138237146284E-3},{"$f":"'Population 2016'!O167/'Population 2016'!O$14","v":8.828417116742834E-3},{"$f":"'Population 2016'!P167/'Population 2016'!P$14","v":3.1228473019517798E-3},{"$f":"'Population 2016'!Q167/'Population 2016'!Q$14","v":1.142141786315936E-2},{"$f":"'Population 2016'!R167/'Population 2016'!R$14","v":5.2117263843648211E-3},{"$f":"'Population 2016'!S167/'Population 2016'!S$14","v":8.7832163435413099E-3},{"$f":"'Population 2016'!T167/'Population 2016'!T$14","v":4.3066297796101995E-3},{"$f":"'Population 2016'!U167/'Population 2016'!U$14","v":4.2810580418703774E-2},{"$f":"'Population 2016'!V167/'Population 2016'!V$14","v":8.3150082462891701E-3},{"$f":"'Population 2016'!W167/'Population 2016'!W$14","v":1.0464916056823073E-2},{"$f":"'Population 2016'!X167/'Population 2016'!X$14","v":1.0464916056823073E-2},{"$f":"'Population 2016'!Y167/'Population 2016'!Y$14","v":8.3273973936527287E-3},{"$f":"'Population 2016'!Z167/'Population 2016'!Z$14","v":4.470959558033517E-3},{"$f":"'Population 2016'!AA167/'Population 2016'!AA$14","v":6.5153264503900856E-3},{"$f":"'Population 2016'!AB167/'Population 2016'!AB$14","v":8.8305823005091176E-3},{"$f":"'Population 2016'!AC167/'Population 2016'!AC$14","v":5.3628316988054399E-3},{"$f":"'Population 2016'!AD167/'Population 2016'!AD$14","v":2.1201879649646298E-2},{"$f":"'Population 2016'!AE167/'Population 2016'!AE$14","v":1.9402716933154599E-2},{"$f":"'Population 2016'!AF167/'Population 2016'!AF$14","v":7.6386118867171919E-3},{"$f":"'Population 2016'!AG167/'Population 2016'!AG$14","v":1.9402716933154599E-2},{"$f":"'Population 2016'!AH167/'Population 2016'!AH$14","v":8.6331173673134601E-3},{"$f":"'Population 2016'!AI167/'Population 2016'!AI$14","v":6.8497909644444667E-3},{"$f":"'Population 2016'!AJ167/'Population 2016'!AJ$14","v":1.1891422994903676E-2},{"$f":"'Population 2016'!AK167/'Population 2016'!AK$14","v":1.3982505143086521E-2},{"$f":"'Population 2016'!AL167/'Population 2016'!AL$14","v":7.6734302986772012E-3},{"$f":"'Population 2016'!AM167/'Population 2016'!AM$14","v":7.4546663387888559E-3},{"$f":"'Population 2016'!AN167/'Population 2016'!AN$14","v":1.810428667614274E-2},{"$f":"'Population 2016'!AO167/'Population 2016'!AO$14","v":1.810428667614274E-2},{"$f":"'Population 2016'!AP167/'Population 2016'!AP$14","v":1.353929539295393E-2},{"$f":"'Population 2016'!AQ167/'Population 2016'!AQ$14","v":7.7838868247566435E-3},{"$f":"'Population 2016'!AR167/'Population 2016'!AR$14","v":9.5265493787699534E-3},{"$f":"'Population 2016'!AS167/'Population 2016'!AS$14","v":1.9770081277000806E-2},{"$f":"'Population 2016'!AT167/'Population 2016'!AT$14","v":1.8264213128261465E-2},{"$f":"'Population 2016'!AU167/'Population 2016'!AU$14","v":1.8264213128261465E-2},{"$f":"'Population 2016'!AV167/'Population 2016'!AV$14","v":1.2542066327665189E-2},{"$f":"'Population 2016'!AW167/'Population 2016'!AW$14","v":9.9088484537759609E-3},{"$f":"'Population 2016'!AX167/'Population 2016'!AX$14","v":7.7261967385586537E-3},{"$f":"'Population 2016'!AY167/'Population 2016'!AY$14","v":1.1013144459391562E-2},{"$f":"'Population 2016'!AZ167/'Population 2016'!AZ$14","v":1.1500543453301287E-2},{"$f":"'Population 2016'!BA167/'Population 2016'!BA$14","v":7.9958552802003278E-3},{"$f":"'Population 2016'!BB167/'Population 2016'!BB$14","v":9.6487377454144829E-3},{"$f":"'Population 2016'!BC167/'Population 2016'!BC$14","v":4.2810580418703774E-2},165]
[null,"Male 65-69",0,0,0,0,0,0,0,0,0,0,0,0,0,0,0,0,0,0,0,0,0,0,0,0,0,0,0,0,0,0,0,0,0,0,0,0,0,0,0,0,0,0,0,0,0,0,0,0,0,0,0,0,0,166]
[null,"Male 70-74",0,0,0,0,0,0,0,0,0,0,0,0,0,0,0,0,0,0,0,0,0,0,0,0,0,0,0,0,0,0,0,0,0,0,0,0,0,0,0,0,0,0,0,0,0,0,0,0,0,0,0,0,0,167]
[null,"Male 75-79",0,0,0,0,0,0,0,0,0,0,0,0,0,0,0,0,0,0,0,0,0,0,0,0,0,0,0,0,0,0,0,0,0,0,0,0,0,0,0,0,0,0,0,0,0,0,0,0,0,0,0,0,0,168]
[null,"Male 80-84",0,0,0,0,0,0,0,0,0,0,0,0,0,0,0,0,0,0,0,0,0,0,0,0,0,0,0,0,0,0,0,0,0,0,0,0,0,0,0,0,0,0,0,0,0,0,0,0,0,0,0,0,0,169]
[null,"Male 85-89",0,0,0,0,0,0,0,0,0,0,0,0,0,0,0,0,0,0,0,0,0,0,0,0,0,0,0,0,0,0,0,0,0,0,0,0,0,0,0,0,0,0,0,0,0,0,0,0,0,0,0,0,0,170]
[null,"Male 90+",0,0,0,0,0,0,0,0,0,0,0,0,0,0,0,0,0,0,0,0,0,0,0,0,0,0,0,0,0,0,0,0,0,0,0,0,0,0,0,0,0,0,0,0,0,0,0,0,0,0,0,0,0,171]
["SIMD Q4","Female 0-4",{"$f":"'Population 2016'!C174/'Population 2016'!C$14","v":0},{"$f":"'Population 2016'!D174/'Population 2016'!D$14","v":0},{"$f":"'Population 2016'!E174/'Population 2016'!E$14","v":0},{"$f":"'Population 2016'!F174/'Population 2016'!F$14","v":0},{"$f":"'Population 2016'!G174/'Population 2016'!G$14","v":0},{"$f":"'Population 2016'!H174/'Population 2016'!H$14","v":0},{"$f":"'Population 2016'!I174/'Population 2016'!I$14","v":0},{"$f":"'Population 2016'!J174/'Population 2016'!J$14","v":0},{"$f":"'Population 2016'!K174/'Population 2016'!K$14","v":0},{"$f":"'Population 2016'!L174/'Population 2016'!L$14","v":0},{"$f":"'Population 2016'!M174/'Population 2016'!M$14","v":0},{"$f":"'Population 2016'!N174/'Population 2016'!N$14","v":0},{"$f":"'Population 2016'!O174/'Population 2016'!O$14","v":0},{"$f":"'Population 2016'!P174/'Population 2016'!P$14","v":0},{"$f":"'Population 2016'!Q174/'Population 2016'!Q$14","v":0},{"$f":"'Population 2016'!R174/'Population 2016'!R$14","v":0},{"$f":"'Population 2016'!S174/'Population 2016'!S$14","v":0},{"$f":"'Population 2016'!T174/'Population 2016'!T$14","v":0},{"$f":"'Population 2016'!U174/'Population 2016'!U$14","v":0},{"$f":"'Population 2016'!V174/'Population 2016'!V$14","v":0},{"$f":"'Population 2016'!W174/'Population 2016'!W$14","v":0},{"$f":"'Population 2016'!X174/'Population 2016'!X$14","v":0},{"$f":"'Population 2016'!Y174/'Population 2016'!Y$14","v":0},{"$f":"'Population 2016'!Z174/'Population 2016'!Z$14","v":0},{"$f":"'Population 2016'!AA174/'Population 2016'!AA$14","v":0},{"$f":"'Population 2016'!AB174/'Population 2016'!AB$14","v":0},{"$f":"'Population 2016'!AC174/'Population 2016'!AC$14","v":0},{"$f":"'Population 2016'!AD174/'Population 2016'!AD$14","v":0},{"$f":"'Population 2016'!AE174/'Population 2016'!AE$14","v":0},{"$f":"'Population 2016'!AF174/'Population 2016'!AF$14","v":0},{"$f":"'Population 2016'!AG174/'Population 2016'!AG$14","v":0},{"$f":"'Population 2016'!AH174/'Population 2016'!AH$14","v":0},{"$f":"'Population 2016'!AI174/'Population 2016'!AI$14","v":0},{"$f":"'Population 2016'!AJ174/'Population 2016'!AJ$14","v":0},{"$f":"'Population 2016'!AK174/'Population 2016'!AK$14","v":0},{"$f":"'Population 2016'!AL174/'Population 2016'!AL$14","v":0},{"$f":"'Population 2016'!AM174/'Population 2016'!AM$14","v":0},{"$f":"'Population 2016'!AN174/'Population 2016'!AN$14","v":0},{"$f":"'Population 2016'!AO174/'Population 2016'!AO$14","v":0},{"$f":"'Population 2016'!AP174/'Population 2016'!AP$14","v":0},{"$f":"'Population 2016'!AQ174/'Population 2016'!AQ$14","v":0},{"$f":"'Population 2016'!AR174/'Population 2016'!AR$14","v":0},{"$f":"'Population 2016'!AS174/'Population 2016'!AS$14","v":0},{"$f":"'Population 2016'!AT174/'Population 2016'!AT$14","v":0},{"$f":"'Population 2016'!AU174/'Population 2016'!AU$14","v":0},{"$f":"'Population 2016'!AV174/'Population 2016'!AV$14","v":0},{"$f":"'Population 2016'!AW174/'Population 2016'!AW$14","v":0},{"$f":"'Population 2016'!AX174/'Population 2016'!AX$14","v":0},{"$f":"'Population 2016'!AY174/'Population 2016'!AY$14","v":0},{"$f":"'Population 2016'!AZ174/'Population 2016'!AZ$14","v":0},{"$f":"'Population 2016'!BA174/'Population 2016'!BA$14","v":0},{"$f":"'Population 2016'!BB174/'Population 2016'!BB$14","v":0},{"$f":"'Population 2016'!BC174/'Population 2016'!BC$14","v":0},172]
[null,"Female 5-9",{"$f":"'Population 2016'!C175/'Population 2016'!C$14","v":0},{"$f":"'Population 2016'!D175/'Population 2016'!D$14","v":0},{"$f":"'Population 2016'!E175/'Population 2016'!E$14","v":0},{"$f":"'Population 2016'!F175/'Population 2016'!F$14","v":0},{"$f":"'Population 2016'!G175/'Population 2016'!G$14","v":0},{"$f":"'Population 2016'!H175/'Population 2016'!H$14","v":0},{"$f":"'Population 2016'!I175/'Population 2016'!I$14","v":0},{"$f":"'Population 2016'!J175/'Population 2016'!J$14","v":0},{"$f":"'Population 2016'!K175/'Population 2016'!K$14","v":0},{"$f":"'Population 2016'!L175/'Population 2016'!L$14","v":0},{"$f":"'Population 2016'!M175/'Population 2016'!M$14","v":0},{"$f":"'Population 2016'!N175/'Population 2016'!N$14","v":0},{"$f":"'Population 2016'!O175/'Population 2016'!O$14","v":0},{"$f":"'Population 2016'!P175/'Population 2016'!P$14","v":0},{"$f":"'Population 2016'!Q175/'Population 2016'!Q$14","v":0},{"$f":"'Population 2016'!R175/'Population 2016'!R$14","v":0},{"$f":"'Population 2016'!S175/'Population 2016'!S$14","v":0},{"$f":"'Population 2016'!T175/'Population 2016'!T$14","v":0},{"$f":"'Population 2016'!U175/'Population 2016'!U$14","v":0},{"$f":"'Population 2016'!V175/'Population 2016'!V$14","v":0},{"$f":"'Population 2016'!W175/'Population 2016'!W$14","v":0},{"$f":"'Population 2016'!X175/'Population 2016'!X$14","v":0},{"$f":"'Population 2016'!Y175/'Population 2016'!Y$14","v":0},{"$f":"'Population 2016'!Z175/'Population 2016'!Z$14","v":0},{"$f":"'Population 2016'!AA175/'Population 2016'!AA$14","v":0},{"$f":"'Population 2016'!AB175/'Population 2016'!AB$14","v":0},{"$f":"'Population 2016'!AC175/'Population 2016'!AC$14","v":0},{"$f":"'Population 2016'!AD175/'Population 2016'!AD$14","v":0},{"$f":"'Population 2016'!AE175/'Population 2016'!AE$14","v":0},{"$f":"'Population 2016'!AF175/'Population 2016'!AF$14","v":0},{"$f":"'Population 2016'!AG175/'Population 2016'!AG$14","v":0},{"$f":"'Population 2016'!AH175/'Population 2016'!AH$14","v":0},{"$f":"'Population 2016'!AI175/'Population 2016'!AI$14","v":0},{"$f":"'Population 2016'!AJ175/'Population 2016'!AJ$14","v":0},{"$f":"'Population 2016'!AK175/'Population 2016'!AK$14","v":0},{"$f":"'Population 2016'!AL175/'Population 2016'!AL$14","v":0},{"$f":"'Population 2016'!AM175/'Population 2016'!AM$14","v":0},{"$f":"'Population 2016'!AN175/'Population 2016'!AN$14","v":0},{"$f":"'Population 2016'!AO175/'Population 2016'!AO$14","v":0},{"$f":"'Population 2016'!AP175/'Population 2016'!AP$14","v":0},{"$f":"'Population 2016'!AQ175/'Population 2016'!AQ$14","v":0},{"$f":"'Population 2016'!AR175/'Population 2016'!AR$14","v":0},{"$f":"'Population 2016'!AS175/'Population 2016'!AS$14","v":0},{"$f":"'Population 2016'!AT175/'Population 2016'!AT$14","v":0},{"$f":"'Population 2016'!AU175/'Population 2016'!AU$14","v":0},{"$f":"'Population 2016'!AV175/'Population 2016'!AV$14","v":0},{"$f":"'Population 2016'!AW175/'Population 2016'!AW$14","v":0},{"$f":"'Population 2016'!AX175/'Population 2016'!AX$14","v":0},{"$f":"'Population 2016'!AY175/'Population 2016'!AY$14","v":0},{"$f":"'Population 2016'!AZ175/'Population 2016'!AZ$14","v":0},{"$f":"'Population 2016'!BA175/'Population 2016'!BA$14","v":0},{"$f":"'Population 2016'!BB175/'Population 2016'!BB$14","v":0},{"$f":"'Population 2016'!BC175/'Population 2016'!BC$14","v":0},173]
[null,"Female 10-15",{"$f":"'Population 2016'!C176/'Population 2016'!C$14","v":0},{"$f":"'Population 2016'!D176/'Population 2016'!D$14","v":0},{"$f":"'Population 2016'!E176/'Population 2016'!E$14","v":0},{"$f":"'Population 2016'!F176/'Population 2016'!F$14","v":0},{"$f":"'Population 2016'!G176/'Population 2016'!G$14","v":0},{"$f":"'Population 2016'!H176/'Population 2016'!H$14","v":0},{"$f":"'Population 2016'!I176/'Population 2016'!I$14","v":0},{"$f":"'Population 2016'!J176/'Population 2016'!J$14","v":0},{"$f":"'Population 2016'!K176/'Population 2016'!K$14","v":0},{"$f":"'Population 2016'!L176/'Population 2016'!L$14","v":0},{"$f":"'Population 2016'!M176/'Population 2016'!M$14","v":0},{"$f":"'Population 2016'!N176/'Population 2016'!N$14","v":0},{"$f":"'Population 2016'!O176/'Population 2016'!O$14","v":0},{"$f":"'Population 2016'!P176/'Population 2016'!P$14","v":0},{"$f":"'Population 2016'!Q176/'Population 2016'!Q$14","v":0},{"$f":"'Population 2016'!R176/'Population 2016'!R$14","v":0},{"$f":"'Population 2016'!S176/'Population 2016'!S$14","v":0},{"$f":"'Population 2016'!T176/'Population 2016'!T$14","v":0},{"$f":"'Population 2016'!U176/'Population 2016'!U$14","v":0},{"$f":"'Population 2016'!V176/'Population 2016'!V$14","v":0},{"$f":"'Population 2016'!W176/'Population 2016'!W$14","v":0},{"$f":"'Population 2016'!X176/'Population 2016'!X$14","v":0},{"$f":"'Population 2016'!Y176/'Population 2016'!Y$14","v":0},{"$f":"'Population 2016'!Z176/'Population 2016'!Z$14","v":0},{"$f":"'Population 2016'!AA176/'Population 2016'!AA$14","v":0},{"$f":"'Population 2016'!AB176/'Population 2016'!AB$14","v":0},{"$f":"'Population 2016'!AC176/'Population 2016'!AC$14","v":0},{"$f":"'Population 2016'!AD176/'Population 2016'!AD$14","v":0},{"$f":"'Population 2016'!AE176/'Population 2016'!AE$14","v":0},{"$f":"'Population 2016'!AF176/'Population 2016'!AF$14","v":0},{"$f":"'Population 2016'!AG176/'Population 2016'!AG$14","v":0},{"$f":"'Population 2016'!AH176/'Population 2016'!AH$14","v":0},{"$f":"'Population 2016'!AI176/'Population 2016'!AI$14","v":0},{"$f":"'Population 2016'!AJ176/'Population 2016'!AJ$14","v":0},{"$f":"'Population 2016'!AK176/'Population 2016'!AK$14","v":0},{"$f":"'Population 2016'!AL176/'Population 2016'!AL$14","v":0},{"$f":"'Population 2016'!AM176/'Population 2016'!AM$14","v":0},{"$f":"'Population 2016'!AN176/'Population 2016'!AN$14","v":0},{"$f":"'Population 2016'!AO176/'Population 2016'!AO$14","v":0},{"$f":"'Population 2016'!AP176/'Population 2016'!AP$14","v":0},{"$f":"'Population 2016'!AQ176/'Population 2016'!AQ$14","v":0},{"$f":"'Population 2016'!AR176/'Population 2016'!AR$14","v":0},{"$f":"'Population 2016'!AS176/'Population 2016'!AS$14","v":0},{"$f":"'Population 2016'!AT176/'Population 2016'!AT$14","v":0},{"$f":"'Population 2016'!AU176/'Population 2016'!AU$14","v":0},{"$f":"'Population 2016'!AV176/'Population 2016'!AV$14","v":0},{"$f":"'Population 2016'!AW176/'Population 2016'!AW$14","v":0},{"$f":"'Population 2016'!AX176/'Population 2016'!AX$14","v":0},{"$f":"'Population 2016'!AY176/'Population 2016'!AY$14","v":0},{"$f":"'Population 2016'!AZ176/'Population 2016'!AZ$14","v":0},{"$f":"'Population 2016'!BA176/'Population 2016'!BA$14","v":0},{"$f":"'Population 2016'!BB176/'Population 2016'!BB$14","v":0},{"$f":"'Population 2016'!BC176/'Population 2016'!BC$14","v":0},174]
[null,"Female 16-19",{"$f":"'Population 2016'!C177/'Population 2016'!C$14","v":6.7279770676715103E-3},{"$f":"'Population 2016'!D177/'Population 2016'!D$14","v":9.1185130940744982E-3},{"$f":"'Population 2016'!E177/'Population 2016'!E$14","v":1.1440790586416024E-2},{"$f":"'Population 2016'!F177/'Population 2016'!F$14","v":8.0608602028673423E-3},{"$f":"'Population 2016'!G177/'Population 2016'!G$14","v":8.2734637725466222E-3},{"$f":"'Population 2016'!H177/'Population 2016'!H$14","v":4.7936073539989127E-3},{"$f":"'Population 2016'!I177/'Population 2016'!I$14","v":1.2813941568426449E-2},{"$f":"'Population 2016'!J177/'Population 2016'!J$14","v":9.4344679710533369E-3},{"$f":"'Population 2016'!K177/'Population 2016'!K$14","v":5.5173689239589431E-3},{"$f":"'Population 2016'!L177/'Population 2016'!L$14","v":5.4045551073607567E-3},{"$f":"'Population 2016'!M177/'Population 2016'!M$14","v":5.4045551073607567E-3},{"$f":"'Population 2016'!N177/'Population 2016'!N$14","v":9.2530521868080529E-3},{"$f":"'Population 2016'!O177/'Population 2016'!O$14","v":4.3752596593269631E-3},{"$f":"'Population 2016'!P177/'Population 2016'!P$14","v":5.5415231534634516E-3},{"$f":"'Population 2016'!Q177/'Population 2016'!Q$14","v":1.3507874441679675E-2},{"$f":"'Population 2016'!R177/'Population 2016'!R$14","v":6.109692754643895E-3},{"$f":"'Population 2016'!S177/'Population 2016'!S$14","v":5.9235906210563663E-3},{"$f":"'Population 2016'!T177/'Population 2016'!T$14","v":3.7527587580855276E-3},{"$f":"'Population 2016'!U177/'Population 2016'!U$14","v":1.8177259621411559E-3},{"$f":"'Population 2016'!V177/'Population 2016'!V$14","v":5.9392916044922646E-3},{"$f":"'Population 2016'!W177/'Population 2016'!W$14","v":5.3207059836418427E-3},{"$f":"'Population 2016'!X177/'Population 2016'!X$14","v":5.3207059836418427E-3},{"$f":"'Population 2016'!Y177/'Population 2016'!Y$14","v":7.6099600797380328E-3},{"$f":"'Population 2016'!Z177/'Population 2016'!Z$14","v":3.2024547531961005E-3},{"$f":"'Population 2016'!AA177/'Population 2016'!AA$14","v":4.8844092659454481E-3},{"$f":"'Population 2016'!AB177/'Population 2016'!AB$14","v":9.713640530560029E-3},{"$f":"'Population 2016'!AC177/'Population 2016'!AC$14","v":4.2279158384529074E-3},{"$f":"'Population 2016'!AD177/'Population 2016'!AD$14","v":9.8752651503618231E-3},{"$f":"'Population 2016'!AE177/'Population 2016'!AE$14","v":1.0454526609637789E-2},{"$f":"'Population 2016'!AF177/'Population 2016'!AF$14","v":6.4818508177104106E-3},{"$f":"'Population 2016'!AG177/'Population 2016'!AG$14","v":1.0454526609637789E-2},{"$f":"'Population 2016'!AH177/'Population 2016'!AH$14","v":6.0907625407451418E-3},{"$f":"'Population 2016'!AI177/'Population 2016'!AI$14","v":5.3635795157018157E-3},{"$f":"'Population 2016'!AJ177/'Population 2016'!AJ$14","v":5.186684497777135E-3},{"$f":"'Population 2016'!AK177/'Population 2016'!AK$14","v":1.296225058121059E-2},{"$f":"'Population 2016'!AL177/'Population 2016'!AL$14","v":5.5186448793918715E-3},{"$f":"'Population 2016'!AM177/'Population 2016'!AM$14","v":5.1549678042205165E-3},{"$f":"'Population 2016'!AN177/'Population 2016'!AN$14","v":1.47377870876038E-2},{"$f":"'Population 2016'!AO177/'Population 2016'!AO$14","v":1.47377870876038E-2},{"$f":"'Population 2016'!AP177/'Population 2016'!AP$14","v":1.5739837398373983E-2},{"$f":"'Population 2016'!AQ177/'Population 2016'!AQ$14","v":5.7099487251899639E-3},{"$f":"'Population 2016'!AR177/'Population 2016'!AR$14","v":6.7072959322118401E-3},{"$f":"'Population 2016'!AS177/'Population 2016'!AS$14","v":1.2813941568426449E-2},{"$f":"'Population 2016'!AT177/'Population 2016'!AT$14","v":2.4924471299093656E-2},{"$f":"'Population 2016'!AU177/'Population 2016'!AU$14","v":2.4924471299093656E-2},{"$f":"'Population 2016'!AV177/'Population 2016'!AV$14","v":4.3734155634293512E-3},{"$f":"'Population 2016'!AW177/'Population 2016'!AW$14","v":7.1038062795478413E-3},{"$f":"'Population 2016'!AX177/'Population 2016'!AX$14","v":1.1523540241977907E-2},{"$f":"'Population 2016'!AY177/'Population 2016'!AY$14","v":8.4442211381059659E-3},{"$f":"'Population 2016'!AZ177/'Population 2016'!AZ$14","v":1.1221162530808444E-2},{"$f":"'Population 2016'!BA177/'Population 2016'!BA$14","v":3.7129781538727227E-3},{"$f":"'Population 2016'!BB177/'Population 2016'!BB$14","v":5.8185073290813469E-3},{"$f":"'Population 2016'!BC177/'Population 2016'!BC$14","v":1.8177259621411559E-3},175]
[null,"Female 20-24",{"$f":"'Population 2016'!C178/'Population 2016'!C$14","v":1.5992936245888285E-2},{"$f":"'Population 2016'!D178/'Population 2016'!D$14","v":1.4572462458137874E-2},{"$f":"'Population 2016'!E178/'Population 2016'!E$14","v":1.3192548384758499E-2},{"$f":"'Population 2016'!F178/'Population 2016'!F$14","v":8.9816966056553513E-3},{"$f":"'Population 2016'!G178/'Population 2016'!G$14","v":8.808468358300214E-3},{"$f":"'Population 2016'!H178/'Population 2016'!H$14","v":5.7847832570215602E-3},{"$f":"'Population 2016'!I178/'Population 2016'!I$14","v":1.2301383905689391E-2},{"$f":"'Population 2016'!J178/'Population 2016'!J$14","v":1.3444116858751005E-2},{"$f":"'Population 2016'!K178/'Population 2016'!K$14","v":5.8872484048947387E-3},{"$f":"'Population 2016'!L178/'Population 2016'!L$14","v":7.0113147338734146E-3},{"$f":"'Population 2016'!M178/'Population 2016'!M$14","v":7.0113147338734146E-3},{"$f":"'Population 2016'!N178/'Population 2016'!N$14","v":2.021248501838422E-2},{"$f":"'Population 2016'!O178/'Population 2016'!O$14","v":5.7774200249272956E-3},{"$f":"'Population 2016'!P178/'Population 2016'!P$14","v":8.4194412552621514E-3},{"$f":"'Population 2016'!Q178/'Population 2016'!Q$14","v":1.7155309645611485E-2},{"$f":"'Population 2016'!R178/'Population 2016'!R$14","v":6.2857645919535167E-3},{"$f":"'Population 2016'!S178/'Population 2016'!S$14","v":9.1627033848447701E-3},{"$f":"'Population 2016'!T178/'Population 2016'!T$14","v":9.7662155632105303E-3},{"$f":"'Population 2016'!U178/'Population 2016'!U$14","v":3.134010279553717E-3},{"$f":"'Population 2016'!V178/'Population 2016'!V$14","v":7.9026937877954926E-3},{"$f":"'Population 2016'!W178/'Population 2016'!W$14","v":6.8790357296599223E-3},{"$f":"'Population 2016'!X178/'Population 2016'!X$14","v":6.8790357296599223E-3},{"$f":"'Population 2016'!Y178/'Population 2016'!Y$14","v":1.0551453066788289E-2},{"$f":"'Population 2016'!Z178/'Population 2016'!Z$14","v":1.1407300949876732E-2},{"$f":"'Population 2016'!AA178/'Population 2016'!AA$14","v":8.5324915409205875E-3},{"$f":"'Population 2016'!AB178/'Population 2016'!AB$14","v":1.4398251492912227E-2},{"$f":"'Population 2016'!AC178/'Population 2016'!AC$14","v":9.4438912284272591E-3},{"$f":"'Population 2016'!AD178/'Population 2016'!AD$14","v":1.0803925747749394E-2},{"$f":"'Population 2016'!AE178/'Population 2016'!AE$14","v":1.1525545528668758E-2},{"$f":"'Population 2016'!AF178/'Population 2016'!AF$14","v":7.9178300757877934E-3},{"$f":"'Population 2016'!AG178/'Population 2016'!AG$14","v":1.1525545528668758E-2},{"$f":"'Population 2016'!AH178/'Population 2016'!AH$14","v":6.8577299185925674E-3},{"$f":"'Population 2016'!AI178/'Population 2016'!AI$14","v":9.6985041290241682E-3},{"$f":"'Population 2016'!AJ178/'Population 2016'!AJ$14","v":5.9999277117143163E-3},{"$f":"'Population 2016'!AK178/'Population 2016'!AK$14","v":1.344728963521718E-2},{"$f":"'Population 2016'!AL178/'Population 2016'!AL$14","v":6.4045011073202845E-3},{"$f":"'Population 2016'!AM178/'Population 2016'!AM$14","v":5.7925079920216399E-3},{"$f":"'Population 2016'!AN178/'Population 2016'!AN$14","v":1.7430986758434953E-2},{"$f":"'Population 2016'!AO178/'Population 2016'!AO$14","v":1.7430986758434953E-2},{"$f":"'Population 2016'!AP178/'Population 2016'!AP$14","v":1.6075880758807587E-2},{"$f":"'Population 2016'!AQ178/'Population 2016'!AQ$14","v":7.1837685661586253E-3},{"$f":"'Population 2016'!AR178/'Population 2016'!AR$14","v":9.9809996243478746E-3},{"$f":"'Population 2016'!AS178/'Population 2016'!AS$14","v":1.2301383905689391E-2},{"$f":"'Population 2016'!AT178/'Population 2016'!AT$14","v":2.4924471299093656E-2},{"$f":"'Population 2016'!AU178/'Population 2016'!AU$14","v":2.4924471299093656E-2},{"$f":"'Population 2016'!AV178/'Population 2016'!AV$14","v":5.0257216135679659E-3},{"$f":"'Population 2016'!AW178/'Population 2016'!AW$14","v":8.0108849439731039E-3},{"$f":"'Population 2016'!AX178/'Population 2016'!AX$14","v":1.747435560231457E-2},{"$f":"'Population 2016'!AY178/'Population 2016'!AY$14","v":1.1558128981020762E-2},{"$f":"'Population 2016'!AZ178/'Population 2016'!AZ$14","v":1.5718047242165852E-2},{"$f":"'Population 2016'!BA178/'Population 2016'!BA$14","v":4.7664277696226574E-3},{"$f":"'Population 2016'!BB178/'Population 2016'!BB$14","v":7.1009889741007566E-3},{"$f":"'Population 2016'!BC178/'Population 2016'!BC$14","v":3.134010279553717E-3},176]
[null,"Female 25-29",{"$f":"'Population 2016'!C179/'Population 2016'!C$14","v":1.3033123783585477E-2},{"$f":"'Population 2016'!D179/'Population 2016'!D$14","v":1.3659385542131759E-2},{"$f":"'Population 2016'!E179/'Population 2016'!E$14","v":1.4267765240292846E-2},{"$f":"'Population 2016'!F179/'Population 2016'!F$14","v":8.9391964639882141E-3},{"$f":"'Population 2016'!G179/'Population 2016'!G$14","v":7.7575664934270861E-3},{"$f":"'Population 2016'!H179/'Population 2016'!H$14","v":5.2760381032577229E-3},{"$f":"'Population 2016'!I179/'Population 2016'!I$14","v":1.1598447682507139E-2},{"$f":"'Population 2016'!J179/'Population 2016'!J$14","v":1.0581613508442778E-2},{"$f":"'Population 2016'!K179/'Population 2016'!K$14","v":5.3940757636470119E-3},{"$f":"'Population 2016'!L179/'Population 2016'!L$14","v":6.820301351700581E-3},{"$f":"'Population 2016'!M179/'Population 2016'!M$14","v":6.820301351700581E-3},{"$f":"'Population 2016'!N179/'Population 2016'!N$14","v":1.0136713592134397E-2},{"$f":"'Population 2016'!O179/'Population 2016'!O$14","v":5.3489821354383051E-3},{"$f":"'Population 2016'!P179/'Population 2016'!P$14","v":6.6743207041714504E-3},{"$f":"'Population 2016'!Q179/'Population 2016'!Q$14","v":1.200871675192804E-2},{"$f":"'Population 2016'!R179/'Population 2016'!R$14","v":6.7259441852275731E-3},{"$f":"'Population 2016'!S179/'Population 2016'!S$14","v":1.0488662543955378E-2},{"$f":"'Population 2016'!T179/'Population 2016'!T$14","v":1.3581143517589643E-2},{"$f":"'Population 2016'!U179/'Population 2016'!U$14","v":2.5698884292340478E-3},{"$f":"'Population 2016'!V179/'Population 2016'!V$14","v":7.6180004712165239E-3},{"$f":"'Population 2016'!W179/'Population 2016'!W$14","v":6.8015497201894103E-3},{"$f":"'Population 2016'!X179/'Population 2016'!X$14","v":6.8015497201894103E-3},{"$f":"'Population 2016'!Y179/'Population 2016'!Y$14","v":9.0345856030829303E-3},{"$f":"'Population 2016'!Z179/'Population 2016'!Z$14","v":9.4641087078580297E-3},{"$f":"'Population 2016'!AA179/'Population 2016'!AA$14","v":7.6039949545845878E-3},{"$f":"'Population 2016'!AB179/'Population 2016'!AB$14","v":1.3857022255139089E-2},{"$f":"'Population 2016'!AC179/'Population 2016'!AC$14","v":8.0745205592391289E-3},{"$f":"'Population 2016'!AD179/'Population 2016'!AD$14","v":1.15549736625765E-2},{"$f":"'Population 2016'!AE179/'Population 2016'!AE$14","v":1.2928234822625447E-2},{"$f":"'Population 2016'!AF179/'Population 2016'!AF$14","v":6.3621858795372957E-3},{"$f":"'Population 2016'!AG179/'Population 2016'!AG$14","v":1.2928234822625447E-2},{"$f":"'Population 2016'!AH179/'Population 2016'!AH$14","v":6.739370755344508E-3},{"$f":"'Population 2016'!AI179/'Population 2016'!AI$14","v":1.1811737511671928E-2},{"$f":"'Population 2016'!AJ179/'Population 2016'!AJ$14","v":6.9577474970181083E-3},{"$f":"'Population 2016'!AK179/'Population 2016'!AK$14","v":1.4935857766478784E-2},{"$f":"'Population 2016'!AL179/'Population 2016'!AL$14","v":5.961572993356078E-3},{"$f":"'Population 2016'!AM179/'Population 2016'!AM$14","v":5.6194613696184774E-3},{"$f":"'Population 2016'!AN179/'Population 2016'!AN$14","v":1.9226453205655719E-2},{"$f":"'Population 2016'!AO179/'Population 2016'!AO$14","v":1.9226453205655719E-2},{"$f":"'Population 2016'!AP179/'Population 2016'!AP$14","v":1.5035230352303523E-2},{"$f":"'Population 2016'!AQ179/'Population 2016'!AQ$14","v":6.618951381595785E-3},{"$f":"'Population 2016'!AR179/'Population 2016'!AR$14","v":9.5798455614165435E-3},{"$f":"'Population 2016'!AS179/'Population 2016'!AS$14","v":1.1598447682507139E-2},{"$f":"'Population 2016'!AT179/'Population 2016'!AT$14","v":3.1653391925295246E-2},{"$f":"'Population 2016'!AU179/'Population 2016'!AU$14","v":3.1653391925295246E-2},{"$f":"'Population 2016'!AV179/'Population 2016'!AV$14","v":4.3437652884230505E-3},{"$f":"'Population 2016'!AW179/'Population 2016'!AW$14","v":7.951727639771455E-3},{"$f":"'Population 2016'!AX179/'Population 2016'!AX$14","v":1.3348237769594949E-2},{"$f":"'Population 2016'!AY179/'Population 2016'!AY$14","v":9.3113340572780756E-3},{"$f":"'Population 2016'!AZ179/'Population 2016'!AZ$14","v":1.1542641948471441E-2},{"$f":"'Population 2016'!BA179/'Population 2016'!BA$14","v":4.9218547621103529E-3},{"$f":"'Population 2016'!BB179/'Population 2016'!BB$14","v":8.6244738812714643E-3},{"$f":"'Population 2016'!BC179/'Population 2016'!BC$14","v":2.5698884292340478E-3},177]
[null,"Female 30-34",{"$f":"'Population 2016'!C180/'Population 2016'!C$14","v":1.0315816964202437E-2},{"$f":"'Population 2016'!D180/'Population 2016'!D$14","v":1.388918677938162E-2},{"$f":"'Population 2016'!E180/'Population 2016'!E$14","v":1.7360523835987147E-2},{"$f":"'Population 2016'!F180/'Population 2016'!F$14","v":1.0015866719555733E-2},{"$f":"'Population 2016'!G180/'Population 2016'!G$14","v":8.1397126261082246E-3},{"$f":"'Population 2016'!H180/'Population 2016'!H$14","v":5.7321544480115078E-3},{"$f":"'Population 2016'!I180/'Population 2016'!I$14","v":1.3472944277659809E-2},{"$f":"'Population 2016'!J180/'Population 2016'!J$14","v":9.5845617796837309E-3},{"$f":"'Population 2016'!K180/'Population 2016'!K$14","v":7.2434731683259871E-3},{"$f":"'Population 2016'!L180/'Population 2016'!L$14","v":7.0113147338734146E-3},{"$f":"'Population 2016'!M180/'Population 2016'!M$14","v":7.0113147338734146E-3},{"$f":"'Population 2016'!N180/'Population 2016'!N$14","v":7.9326385926422483E-3},{"$f":"'Population 2016'!O180/'Population 2016'!O$14","v":5.9851474864977151E-3},{"$f":"'Population 2016'!P180/'Population 2016'!P$14","v":7.1488710294680445E-3},{"$f":"'Population 2016'!Q180/'Population 2016'!Q$14","v":1.3337866868615057E-2},{"$f":"'Population 2016'!R180/'Population 2016'!R$14","v":6.0040496522581217E-3},{"$f":"'Population 2016'!S180/'Population 2016'!S$14","v":1.0309023707835397E-2},{"$f":"'Population 2016'!T180/'Population 2016'!T$14","v":1.1456087353372538E-2},{"$f":"'Population 2016'!U180/'Population 2016'!U$14","v":3.8234925410555345E-3},{"$f":"'Population 2016'!V180/'Population 2016'!V$14","v":8.6586036283672341E-3},{"$f":"'Population 2016'!W180/'Population 2016'!W$14","v":7.1717606543263025E-3},{"$f":"'Population 2016'!X180/'Population 2016'!X$14","v":7.1717606543263025E-3},{"$f":"'Population 2016'!Y180/'Population 2016'!Y$14","v":9.1012047822321522E-3},{"$f":"'Population 2016'!Z180/'Population 2016'!Z$14","v":7.5463327734043755E-3},{"$f":"'Population 2016'!AA180/'Population 2016'!AA$14","v":7.331202156981827E-3},{"$f":"'Population 2016'!AB180/'Population 2016'!AB$14","v":1.4364586516400022E-2},{"$f":"'Population 2016'!AC180/'Population 2016'!AC$14","v":7.0877492209530457E-3},{"$f":"'Population 2016'!AD180/'Population 2016'!AD$14","v":1.353408641110739E-2},{"$f":"'Population 2016'!AE180/'Population 2016'!AE$14","v":1.5484860629344536E-2},{"$f":"'Population 2016'!AF180/'Population 2016'!AF$14","v":5.6840845632229759E-3},{"$f":"'Population 2016'!AG180/'Population 2016'!AG$14","v":1.5484860629344536E-2},{"$f":"'Population 2016'!AH180/'Population 2016'!AH$14","v":7.7785642086624701E-3},{"$f":"'Population 2016'!AI180/'Population 2016'!AI$14","v":1.1177936962265142E-2},{"$f":"'Population 2016'!AJ180/'Population 2016'!AJ$14","v":8.6926663534174289E-3},{"$f":"'Population 2016'!AK180/'Population 2016'!AK$14","v":1.6959641405609727E-2},{"$f":"'Population 2016'!AL180/'Population 2016'!AL$14","v":5.6144131202489978E-3},{"$f":"'Population 2016'!AM180/'Population 2016'!AM$14","v":6.2160168310609583E-3},{"$f":"'Population 2016'!AN180/'Population 2016'!AN$14","v":2.1695219570584276E-2},{"$f":"'Population 2016'!AO180/'Population 2016'!AO$14","v":2.1695219570584276E-2},{"$f":"'Population 2016'!AP180/'Population 2016'!AP$14","v":1.8113821138211382E-2},{"$f":"'Population 2016'!AQ180/'Population 2016'!AQ$14","v":7.5809056490543725E-3},{"$f":"'Population 2016'!AR180/'Population 2016'!AR$14","v":9.6958937010502497E-3},{"$f":"'Population 2016'!AS180/'Population 2016'!AS$14","v":1.3472944277659809E-2},{"$f":"'Population 2016'!AT180/'Population 2016'!AT$14","v":3.0005492996429552E-2},{"$f":"'Population 2016'!AU180/'Population 2016'!AU$14","v":3.0005492996429552E-2},{"$f":"'Population 2016'!AV180/'Population 2016'!AV$14","v":5.5890768386876784E-3},{"$f":"'Population 2016'!AW180/'Population 2016'!AW$14","v":9.4700984476137427E-3},{"$f":"'Population 2016'!AX180/'Population 2016'!AX$14","v":1.0833114150447134E-2},{"$f":"'Population 2016'!AY180/'Population 2016'!AY$14","v":9.7752799883304431E-3},{"$f":"'Population 2016'!AZ180/'Population 2016'!AZ$14","v":1.208992238568345E-2},{"$f":"'Population 2016'!BA180/'Population 2016'!BA$14","v":4.9045850962783867E-3},{"$f":"'Population 2016'!BB180/'Population 2016'!BB$14","v":1.0311496716330554E-2},{"$f":"'Population 2016'!BC180/'Population 2016'!BC$14","v":3.8234925410555345E-3},178]
[null,"Female 35-39",{"$f":"'Population 2016'!C181/'Population 2016'!C$14","v":8.015122403168741E-3},{"$f":"'Population 2016'!D181/'Population 2016'!D$14","v":1.3110926589228756E-2},{"$f":"'Population 2016'!E181/'Population 2016'!E$14","v":1.8061226955324135E-2},{"$f":"'Population 2016'!F181/'Population 2016'!F$14","v":1.0809202697342325E-2},{"$f":"'Population 2016'!G181/'Population 2016'!G$14","v":9.9549067563436261E-3},{"$f":"'Population 2016'!H181/'Population 2016'!H$14","v":6.2935284107853975E-3},{"$f":"'Population 2016'!I181/'Population 2016'!I$14","v":1.3853701398550194E-2},{"$f":"'Population 2016'!J181/'Population 2016'!J$14","v":1.050656660412758E-2},{"$f":"'Population 2016'!K181/'Population 2016'!K$14","v":7.5208827790278331E-3},{"$f":"'Population 2016'!L181/'Population 2016'!L$14","v":6.797829189092012E-3},{"$f":"'Population 2016'!M181/'Population 2016'!M$14","v":6.797829189092012E-3},{"$f":"'Population 2016'!N181/'Population 2016'!N$14","v":6.7036382473033094E-3},{"$f":"'Population 2016'!O181/'Population 2016'!O$14","v":7.0497507270461156E-3},{"$f":"'Population 2016'!P181/'Population 2016'!P$14","v":7.6846536548029086E-3},{"$f":"'Population 2016'!Q181/'Population 2016'!Q$14","v":1.4806114090536761E-2},{"$f":"'Population 2016'!R181/'Population 2016'!R$14","v":7.1133022273087423E-3},{"$f":"'Population 2016'!S181/'Population 2016'!S$14","v":9.4467572944594898E-3},{"$f":"'Population 2016'!T181/'Population 2016'!T$14","v":8.5567421080444111E-3},{"$f":"'Population 2016'!U181/'Population 2016'!U$14","v":2.8832894571894194E-3},{"$f":"'Population 2016'!V181/'Population 2016'!V$14","v":9.2378072724416862E-3},{"$f":"'Population 2016'!W181/'Population 2016'!W$14","v":7.6969436074042184E-3},{"$f":"'Population 2016'!X181/'Population 2016'!X$14","v":7.6969436074042184E-3},{"$f":"'Population 2016'!Y181/'Population 2016'!Y$14","v":9.8442648573580892E-3},{"$f":"'Population 2016'!Z181/'Population 2016'!Z$14","v":5.547686769425568E-3},{"$f":"'Population 2016'!AA181/'Population 2016'!AA$14","v":7.2144101335433362E-3},{"$f":"'Population 2016'!AB181/'Population 2016'!AB$14","v":1.3639494714598688E-2},{"$f":"'Population 2016'!AC181/'Population 2016'!AC$14","v":6.2182052870847606E-3},{"$f":"'Population 2016'!AD181/'Population 2016'!AD$14","v":1.3549310355326858E-2},{"$f":"'Population 2016'!AE181/'Population 2016'!AE$14","v":1.4849159077403574E-2},{"$f":"'Population 2016'!AF181/'Population 2016'!AF$14","v":8.0374950139609092E-3},{"$f":"'Population 2016'!AG181/'Population 2016'!AG$14","v":1.4849159077403574E-2},{"$f":"'Population 2016'!AH181/'Population 2016'!AH$14","v":9.0450072554167076E-3},{"$f":"'Population 2016'!AI181/'Population 2016'!AI$14","v":9.6256340123811405E-3},{"$f":"'Population 2016'!AJ181/'Population 2016'!AJ$14","v":8.8914591390465182E-3},{"$f":"'Population 2016'!AK181/'Population 2016'!AK$14","v":1.6524778805465889E-2},{"$f":"'Population 2016'!AL181/'Population 2016'!AL$14","v":6.1291674148560484E-3},{"$f":"'Population 2016'!AM181/'Population 2016'!AM$14","v":6.9400803300636625E-3},{"$f":"'Population 2016'!AN181/'Population 2016'!AN$14","v":2.3565497119772575E-2},{"$f":"'Population 2016'!AO181/'Population 2016'!AO$14","v":2.3565497119772575E-2},{"$f":"'Population 2016'!AP181/'Population 2016'!AP$14","v":1.7127371273712739E-2},{"$f":"'Population 2016'!AQ181/'Population 2016'!AQ$14","v":7.5279540380016061E-3},{"$f":"'Population 2016'!AR181/'Population 2016'!AR$14","v":9.3984666172483074E-3},{"$f":"'Population 2016'!AS181/'Population 2016'!AS$14","v":1.3853701398550194E-2},{"$f":"'Population 2016'!AT181/'Population 2016'!AT$14","v":3.2683328755836308E-2},{"$f":"'Population 2016'!AU181/'Population 2016'!AU$14","v":3.2683328755836308E-2},{"$f":"'Population 2016'!AV181/'Population 2016'!AV$14","v":5.6335522511971299E-3},{"$f":"'Population 2016'!AW181/'Population 2016'!AW$14","v":1.1323693979265364E-2},{"$f":"'Population 2016'!AX181/'Population 2016'!AX$14","v":1.209889531825355E-2},{"$f":"'Population 2016'!AY181/'Population 2016'!AY$14","v":9.7063971863401346E-3},{"$f":"'Population 2016'!AZ181/'Population 2016'!AZ$14","v":1.1492889181452168E-2},{"$f":"'Population 2016'!BA181/'Population 2016'!BA$14","v":4.559191779639064E-3},{"$f":"'Population 2016'!BB181/'Population 2016'!BB$14","v":1.0345925753780738E-2},{"$f":"'Population 2016'!BC181/'Population 2016'!BC$14","v":2.8832894571894194E-3},179]
[null,"Female 40-44",{"$f":"'Population 2016'!C182/'Population 2016'!C$14","v":6.417072397261552E-3},{"$f":"'Population 2016'!D182/'Population 2016'!D$14","v":1.3107862572732092E-2},{"$f":"'Population 2016'!E182/'Population 2016'!E$14","v":1.9607606253171286E-2},{"$f":"'Population 2016'!F182/'Population 2016'!F$14","v":1.1673372244574149E-2},{"$f":"'Population 2016'!G182/'Population 2016'!G$14","v":1.2266890859064506E-2},{"$f":"'Population 2016'!H182/'Population 2016'!H$14","v":7.7408206585618299E-3},{"$f":"'Population 2016'!I182/'Population 2016'!I$14","v":1.8276341802738523E-2},{"$f":"'Population 2016'!J182/'Population 2016'!J$14","v":1.2811578665237203E-2},{"$f":"'Population 2016'!K182/'Population 2016'!K$14","v":9.9867459852664674E-3},{"$f":"'Population 2016'!L182/'Population 2016'!L$14","v":8.4158248969089539E-3},{"$f":"'Population 2016'!M182/'Population 2016'!M$14","v":8.4158248969089539E-3},{"$f":"'Population 2016'!N182/'Population 2016'!N$14","v":6.5715968878867284E-3},{"$f":"'Population 2016'!O182/'Population 2016'!O$14","v":7.2574781886165351E-3},{"$f":"'Population 2016'!P182/'Population 2016'!P$14","v":9.1389207807118251E-3},{"$f":"'Population 2016'!Q182/'Population 2016'!Q$14","v":1.7866250405699891E-2},{"$f":"'Population 2016'!R182/'Population 2016'!R$14","v":8.1521260674355129E-3},{"$f":"'Population 2016'!S182/'Population 2016'!S$14","v":9.8711540447929437E-3},{"$f":"'Population 2016'!T182/'Population 2016'!T$14","v":7.2992288193787034E-3},{"$f":"'Population 2016'!U182/'Population 2016'!U$14","v":3.2593706907358658E-3},{"$f":"'Population 2016'!V182/'Population 2016'!V$14","v":1.1358281630409172E-2},{"$f":"'Population 2016'!W182/'Population 2016'!W$14","v":8.8764528626775717E-3},{"$f":"'Population 2016'!X182/'Population 2016'!X$14","v":8.8764528626775717E-3},{"$f":"'Population 2016'!Y182/'Population 2016'!Y$14","v":1.2052946873766904E-2},{"$f":"'Population 2016'!Z182/'Population 2016'!Z$14","v":4.6742900185539043E-3},{"$f":"'Population 2016'!AA182/'Population 2016'!AA$14","v":7.5497700865595737E-3},{"$f":"'Population 2016'!AB182/'Population 2016'!AB$14","v":1.433351115346568E-2},{"$f":"'Population 2016'!AC182/'Population 2016'!AC$14","v":6.3096684267953508E-3},{"$f":"'Population 2016'!AD182/'Population 2016'!AD$14","v":1.6203351297587511E-2},{"$f":"'Population 2016'!AE182/'Population 2016'!AE$14","v":1.7626898467406477E-2},{"$f":"'Population 2016'!AF182/'Population 2016'!AF$14","v":9.2939768647786192E-3},{"$f":"'Population 2016'!AG182/'Population 2016'!AG$14","v":1.7626898467406477E-2},{"$f":"'Population 2016'!AH182/'Population 2016'!AH$14","v":9.8285449161188611E-3},{"$f":"'Population 2016'!AI182/'Population 2016'!AI$14","v":9.2900925450481366E-3},{"$f":"'Population 2016'!AJ182/'Population 2016'!AJ$14","v":8.5300177106299932E-3},{"$f":"'Population 2016'!AK182/'Population 2016'!AK$14","v":2.1023934168492533E-2},{"$f":"'Population 2016'!AL182/'Population 2016'!AL$14","v":7.9128509008200149E-3},{"$f":"'Population 2016'!AM182/'Population 2016'!AM$14","v":7.8189750175323546E-3},{"$f":"'Population 2016'!AN182/'Population 2016'!AN$14","v":2.5286152465025809E-2},{"$f":"'Population 2016'!AO182/'Population 2016'!AO$14","v":2.5286152465025809E-2},{"$f":"'Population 2016'!AP182/'Population 2016'!AP$14","v":2.1669376693766937E-2},{"$f":"'Population 2016'!AQ182/'Population 2016'!AQ$14","v":8.9752980734438843E-3},{"$f":"'Population 2016'!AR182/'Population 2016'!AR$14","v":1.0259515159468768E-2},{"$f":"'Population 2016'!AS182/'Population 2016'!AS$14","v":1.8276341802738523E-2},{"$f":"'Population 2016'!AT182/'Population 2016'!AT$14","v":3.4949189783026642E-2},{"$f":"'Population 2016'!AU182/'Population 2016'!AU$14","v":3.4949189783026642E-2},{"$f":"'Population 2016'!AV182/'Population 2016'!AV$14","v":8.0796999392169361E-3},{"$f":"'Population 2016'!AW182/'Population 2016'!AW$14","v":1.2004002977584312E-2},{"$f":"'Population 2016'!AX182/'Population 2016'!AX$14","v":1.4318122041031037E-2},{"$f":"'Population 2016'!AY182/'Population 2016'!AY$14","v":1.120763707677596E-2},{"$f":"'Population 2016'!AZ182/'Population 2016'!AZ$14","v":1.3280161658221453E-2},{"$f":"'Population 2016'!BA182/'Population 2016'!BA$14","v":5.7335290562127621E-3},{"$f":"'Population 2016'!BB182/'Population 2016'!BB$14","v":1.0939826649796439E-2},{"$f":"'Population 2016'!BC182/'Population 2016'!BC$14","v":3.2593706907358658E-3},180]
[null,"Female 45-49",{"$f":"'Population 2016'!C183/'Population 2016'!C$14","v":6.5911790126911285E-3},{"$f":"'Population 2016'!D183/'Population 2016'!D$14","v":1.5062705097604245E-2},{"$f":"'Population 2016'!E183/'Population 2016'!E$14","v":2.3292338173822699E-2},{"$f":"'Population 2016'!F183/'Population 2016'!F$14","v":1.5427551425171417E-2},{"$f":"'Population 2016'!G183/'Population 2016'!G$14","v":1.626031794558239E-2},{"$f":"'Population 2016'!H183/'Population 2016'!H$14","v":9.3284563970317345E-3},{"$f":"'Population 2016'!I183/'Population 2016'!I$14","v":2.4265944204437284E-2},{"$f":"'Population 2016'!J183/'Population 2016'!J$14","v":1.5062985794693113E-2},{"$f":"'Population 2016'!K183/'Population 2016'!K$14","v":1.2360139321271153E-2},{"$f":"'Population 2016'!L183/'Population 2016'!L$14","v":1.1516983336891426E-2},{"$f":"'Population 2016'!M183/'Population 2016'!M$14","v":1.1516983336891426E-2},{"$f":"'Population 2016'!N183/'Population 2016'!N$14","v":7.6076137079245133E-3},{"$f":"'Population 2016'!O183/'Population 2016'!O$14","v":8.7115704196094722E-3},{"$f":"'Population 2016'!P183/'Population 2016'!P$14","v":1.1664753157290471E-2},{"$f":"'Population 2016'!Q183/'Population 2016'!Q$14","v":2.1498230375716736E-2},{"$f":"'Population 2016'!R183/'Population 2016'!R$14","v":9.9304516242626987E-3},{"$f":"'Population 2016'!S183/'Population 2016'!S$14","v":1.1225181772047298E-2},{"$f":"'Population 2016'!T183/'Population 2016'!T$14","v":6.8951290434703973E-3},{"$f":"'Population 2016'!U183/'Population 2016'!U$14","v":3.2593706907358658E-3},{"$f":"'Population 2016'!V183/'Population 2016'!V$14","v":1.2801382235137045E-2},{"$f":"'Population 2016'!W183/'Population 2016'!W$14","v":1.1011622901420577E-2},{"$f":"'Population 2016'!X183/'Population 2016'!X$14","v":1.1011622901420577E-2},{"$f":"'Population 2016'!Y183/'Population 2016'!Y$14","v":1.3882412024249381E-2},{"$f":"'Population 2016'!Z183/'Population 2016'!Z$14","v":5.2126536242499298E-3},{"$f":"'Population 2016'!AA183/'Population 2016'!AA$14","v":8.9921515760249329E-3},{"$f":"'Population 2016'!AB183/'Population 2016'!AB$14","v":1.6449225446578862E-2},{"$f":"'Population 2016'!AC183/'Population 2016'!AC$14","v":7.7241265592210943E-3},{"$f":"'Population 2016'!AD183/'Population 2016'!AD$14","v":1.9390230287529561E-2},{"$f":"'Population 2016'!AE183/'Population 2016'!AE$14","v":2.0522104448528904E-2},{"$f":"'Population 2016'!AF183/'Population 2016'!AF$14","v":1.2345432788193059E-2},{"$f":"'Population 2016'!AG183/'Population 2016'!AG$14","v":2.0522104448528904E-2},{"$f":"'Population 2016'!AH183/'Population 2016'!AH$14","v":1.1322237556309372E-2},{"$f":"'Population 2016'!AI183/'Population 2016'!AI$14","v":9.8001833615493205E-3},{"$f":"'Population 2016'!AJ183/'Population 2016'!AJ$14","v":9.9757834242960933E-3},{"$f":"'Population 2016'!AK183/'Population 2016'!AK$14","v":2.4017795915636655E-2},{"$f":"'Population 2016'!AL183/'Population 2016'!AL$14","v":1.015143353085533E-2},{"$f":"'Population 2016'!AM183/'Population 2016'!AM$14","v":9.4538102133938078E-3},{"$f":"'Population 2016'!AN183/'Population 2016'!AN$14","v":2.9550385277175132E-2},{"$f":"'Population 2016'!AO183/'Population 2016'!AO$14","v":2.9550385277175132E-2},{"$f":"'Population 2016'!AP183/'Population 2016'!AP$14","v":2.7609756097560976E-2},{"$f":"'Population 2016'!AQ183/'Population 2016'!AQ$14","v":1.1587577552047021E-2},{"$f":"'Population 2016'!AR183/'Population 2016'!AR$14","v":1.2088777686435634E-2},{"$f":"'Population 2016'!AS183/'Population 2016'!AS$14","v":2.4265944204437284E-2},{"$f":"'Population 2016'!AT183/'Population 2016'!AT$14","v":3.7489700631694586E-2},{"$f":"'Population 2016'!AU183/'Population 2016'!AU$14","v":3.7489700631694586E-2},{"$f":"'Population 2016'!AV183/'Population 2016'!AV$14","v":9.0136836019154079E-3},{"$f":"'Population 2016'!AW183/'Population 2016'!AW$14","v":1.3344901872821656E-2},{"$f":"'Population 2016'!AX183/'Population 2016'!AX$14","v":1.6504471330878484E-2},{"$f":"'Population 2016'!AY183/'Population 2016'!AY$14","v":1.4066273359373735E-2},{"$f":"'Population 2016'!AZ183/'Population 2016'!AZ$14","v":1.6781991029193394E-2},{"$f":"'Population 2016'!BA183/'Population 2016'!BA$14","v":8.3239789310076851E-3},{"$f":"'Population 2016'!BB183/'Population 2016'!BB$14","v":1.205016310756492E-2},{"$f":"'Population 2016'!BC183/'Population 2016'!BC$14","v":3.2593706907358658E-3},181]
[null,"Female 50-54",{"$f":"'Population 2016'!C184/'Population 2016'!C$14","v":6.9642646171830793E-3},{"$f":"'Population 2016'!D184/'Population 2016'!D$14","v":1.5500859456627315E-2},{"$f":"'Population 2016'!E184/'Population 2016'!E$14","v":2.379370333679658E-2},{"$f":"'Population 2016'!F184/'Population 2016'!F$14","v":1.7538391794639317E-2},{"$f":"'Population 2016'!G184/'Population 2016'!G$14","v":1.7349434423723633E-2},{"$f":"'Population 2016'!H184/'Population 2016'!H$14","v":1.0056488255004123E-2},{"$f":"'Population 2016'!I184/'Population 2016'!I$14","v":2.6404041883283297E-2},{"$f":"'Population 2016'!J184/'Population 2016'!J$14","v":1.5877780755829535E-2},{"$f":"'Population 2016'!K184/'Population 2016'!K$14","v":1.1127207718151835E-2},{"$f":"'Population 2016'!L184/'Population 2016'!L$14","v":1.2752952280362701E-2},{"$f":"'Population 2016'!M184/'Population 2016'!M$14","v":1.2752952280362701E-2},{"$f":"'Population 2016'!N184/'Population 2016'!N$14","v":8.4709610579560002E-3},{"$f":"'Population 2016'!O184/'Population 2016'!O$14","v":8.984212712920648E-3},{"$f":"'Population 2016'!P184/'Population 2016'!P$14","v":1.3057787983161118E-2},{"$f":"'Population 2016'!Q184/'Population 2016'!Q$14","v":2.095729718869295E-2},{"$f":"'Population 2016'!R184/'Population 2016'!R$14","v":9.9656659917246228E-3},{"$f":"'Population 2016'!S184/'Population 2016'!S$14","v":1.1593441386093259E-2},{"$f":"'Population 2016'!T184/'Population 2016'!T$14","v":7.4942140259358584E-3},{"$f":"'Population 2016'!U184/'Population 2016'!U$14","v":4.1368935690109061E-3},{"$f":"'Population 2016'!V184/'Population 2016'!V$14","v":1.1957119296316657E-2},{"$f":"'Population 2016'!W184/'Population 2016'!W$14","v":1.1510977184674989E-2},{"$f":"'Population 2016'!X184/'Population 2016'!X$14","v":1.1510977184674989E-2},{"$f":"'Population 2016'!Y184/'Population 2016'!Y$14","v":1.3831166501826904E-2},{"$f":"'Population 2016'!Z184/'Population 2016'!Z$14","v":5.50147530112548E-3},{"$f":"'Population 2016'!AA184/'Population 2016'!AA$14","v":9.3775652533719528E-3},{"$f":"'Population 2016'!AB184/'Population 2016'!AB$14","v":1.6961968934995519E-2},{"$f":"'Population 2016'!AC184/'Population 2016'!AC$14","v":8.2844993166028783E-3},{"$f":"'Population 2016'!AD184/'Population 2016'!AD$14","v":2.0958296542134804E-2},{"$f":"'Population 2016'!AE184/'Population 2016'!AE$14","v":2.2263373916888932E-2},{"$f":"'Population 2016'!AF184/'Population 2016'!AF$14","v":1.3761467889908258E-2},{"$f":"'Population 2016'!AG184/'Population 2016'!AG$14","v":2.2263373916888932E-2},{"$f":"'Population 2016'!AH184/'Population 2016'!AH$14","v":1.1386151504463324E-2},{"$f":"'Population 2016'!AI184/'Population 2016'!AI$14","v":9.912030517326989E-3},{"$f":"'Population 2016'!AJ184/'Population 2016'!AJ$14","v":9.7408464958253522E-3},{"$f":"'Population 2016'!AK184/'Population 2016'!AK$14","v":2.4937697569787084E-2},{"$f":"'Population 2016'!AL184/'Population 2016'!AL$14","v":1.180343568564075E-2},{"$f":"'Population 2016'!AM184/'Population 2016'!AM$14","v":9.3946100530979907E-3},{"$f":"'Population 2016'!AN184/'Population 2016'!AN$14","v":3.0747362908655644E-2},{"$f":"'Population 2016'!AO184/'Population 2016'!AO$14","v":3.0747362908655644E-2},{"$f":"'Population 2016'!AP184/'Population 2016'!AP$14","v":2.8010840108401085E-2},{"$f":"'Population 2016'!AQ184/'Population 2016'!AQ$14","v":1.2364201180820926E-2},{"$f":"'Population 2016'!AR184/'Population 2016'!AR$14","v":1.2629189516927411E-2},{"$f":"'Population 2016'!AS184/'Population 2016'!AS$14","v":2.6404041883283297E-2},{"$f":"'Population 2016'!AT184/'Population 2016'!AT$14","v":3.9000274649821476E-2},{"$f":"'Population 2016'!AU184/'Population 2016'!AU$14","v":3.9000274649821476E-2},{"$f":"'Population 2016'!AV184/'Population 2016'!AV$14","v":9.1174595644374599E-3},{"$f":"'Population 2016'!AW184/'Population 2016'!AW$14","v":1.3542092886827147E-2},{"$f":"'Population 2016'!AX184/'Population 2016'!AX$14","v":1.841136244082062E-2},{"$f":"'Population 2016'!AY184/'Population 2016'!AY$14","v":1.485032172320459E-2},{"$f":"'Population 2016'!AZ184/'Population 2016'!AZ$14","v":1.7819144864749017E-2},{"$f":"'Population 2016'!BA184/'Population 2016'!BA$14","v":9.3256195492617214E-3},{"$f":"'Population 2016'!BB184/'Population 2016'!BB$14","v":1.1206651690035376E-2},{"$f":"'Population 2016'!BC184/'Population 2016'!BC$14","v":4.1368935690109061E-3},182]
[null,"Female 55-59",{"$f":"'Population 2016'!C185/'Population 2016'!C$14","v":6.4481628643025474E-3},{"$f":"'Population 2016'!D185/'Population 2016'!D$14","v":1.355214496474849E-2},{"$f":"'Population 2016'!E185/'Population 2016'!E$14","v":2.0453282431681447E-2},{"$f":"'Population 2016'!F185/'Population 2016'!F$14","v":1.5540885136283787E-2},{"$f":"'Population 2016'!G185/'Population 2016'!G$14","v":1.6202996025680219E-2},{"$f":"'Population 2016'!H185/'Population 2016'!H$14","v":9.626686314755363E-3},{"$f":"'Population 2016'!I185/'Population 2016'!I$14","v":2.4763857362524712E-2},{"$f":"'Population 2016'!J185/'Population 2016'!J$14","v":1.3165371214151702E-2},{"$f":"'Population 2016'!K185/'Population 2016'!K$14","v":9.9250994051105022E-3},{"$f":"'Population 2016'!L185/'Population 2016'!L$14","v":1.2797896605579838E-2},{"$f":"'Population 2016'!M185/'Population 2016'!M$14","v":1.2797896605579838E-2},{"$f":"'Population 2016'!N185/'Population 2016'!N$14","v":8.5420602514880047E-3},{"$f":"'Population 2016'!O185/'Population 2016'!O$14","v":8.568757789779809E-3},{"$f":"'Population 2016'!P185/'Population 2016'!P$14","v":1.3991580558744738E-2},{"$f":"'Population 2016'!Q185/'Population 2016'!Q$14","v":1.9643602305920899E-2},{"$f":"'Population 2016'!R185/'Population 2016'!R$14","v":9.1909499075622861E-3},{"$f":"'Population 2016'!S185/'Population 2016'!S$14","v":1.0452734776731382E-2},{"$f":"'Population 2016'!T185/'Population 2016'!T$14","v":6.7227508173836378E-3},{"$f":"'Population 2016'!U185/'Population 2016'!U$14","v":3.6354519242823118E-3},{"$f":"'Population 2016'!V185/'Population 2016'!V$14","v":1.047475064792272E-2},{"$f":"'Population 2016'!W185/'Population 2016'!W$14","v":1.0628497632371933E-2},{"$f":"'Population 2016'!X185/'Population 2016'!X$14","v":1.0628497632371933E-2},{"$f":"'Population 2016'!Y185/'Population 2016'!Y$14","v":1.1760847395958778E-2},{"$f":"'Population 2016'!Z185/'Population 2016'!Z$14","v":4.8360301576042125E-3},{"$f":"'Population 2016'!AA185/'Population 2016'!AA$14","v":8.4474002095582586E-3},{"$f":"'Population 2016'!AB185/'Population 2016'!AB$14","v":1.4955018412152538E-2},{"$f":"'Population 2016'!AC185/'Population 2016'!AC$14","v":7.7138208533382114E-3},{"$f":"'Population 2016'!AD185/'Population 2016'!AD$14","v":1.9085751403140193E-2},{"$f":"'Population 2016'!AE185/'Population 2016'!AE$14","v":2.0128245878304613E-2},{"$f":"'Population 2016'!AF185/'Population 2016'!AF$14","v":1.1786996410051855E-2},{"$f":"'Population 2016'!AG185/'Population 2016'!AG$14","v":2.0128245878304613E-2},{"$f":"'Population 2016'!AH185/'Population 2016'!AH$14","v":9.7954043504094035E-3},{"$f":"'Population 2016'!AI185/'Population 2016'!AI$14","v":8.7274674584089575E-3},{"$f":"'Population 2016'!AJ185/'Population 2016'!AJ$14","v":8.3492969964217307E-3},{"$f":"'Population 2016'!AK185/'Population 2016'!AK$14","v":2.2612855207479635E-2},{"$f":"'Population 2016'!AL185/'Population 2016'!AL$14","v":1.0642245765248099E-2},{"$f":"'Population 2016'!AM185/'Population 2016'!AM$14","v":7.7142362723935992E-3},{"$f":"'Population 2016'!AN185/'Population 2016'!AN$14","v":2.9849629685045259E-2},{"$f":"'Population 2016'!AO185/'Population 2016'!AO$14","v":2.9849629685045259E-2},{"$f":"'Population 2016'!AP185/'Population 2016'!AP$14","v":2.5127371273712736E-2},{"$f":"'Population 2016'!AQ185/'Population 2016'!AQ$14","v":1.1552276478011844E-2},{"$f":"'Population 2016'!AR185/'Population 2016'!AR$14","v":1.1408248472534271E-2},{"$f":"'Population 2016'!AS185/'Population 2016'!AS$14","v":2.4763857362524712E-2},{"$f":"'Population 2016'!AT185/'Population 2016'!AT$14","v":3.4331227684702002E-2},{"$f":"'Population 2016'!AU185/'Population 2016'!AU$14","v":3.4331227684702002E-2},{"$f":"'Population 2016'!AV185/'Population 2016'!AV$14","v":9.5770388270351205E-3},{"$f":"'Population 2016'!AW185/'Population 2016'!AW$14","v":1.2048370955735547E-2},{"$f":"'Population 2016'!AX185/'Population 2016'!AX$14","v":1.489347711730668E-2},{"$f":"'Population 2016'!AY185/'Population 2016'!AY$14","v":1.3624613040729996E-2},{"$f":"'Population 2016'!AZ185/'Population 2016'!AZ$14","v":1.6288290494925219E-2},{"$f":"'Population 2016'!BA185/'Population 2016'!BA$14","v":9.6537432000690787E-3},{"$f":"'Population 2016'!BB185/'Population 2016'!BB$14","v":8.9343352183231337E-3},{"$f":"'Population 2016'!BC185/'Population 2016'!BC$14","v":3.6354519242823118E-3},183]
[null,"Female 60-64",{"$f":"'Population 2016'!C186/'Population 2016'!C$14","v":5.9631515784630117E-3},{"$f":"'Population 2016'!D186/'Population 2016'!D$14","v":1.2240745904175948E-2},{"$f":"'Population 2016'!E186/'Population 2016'!E$14","v":1.8339091985406047E-2},{"$f":"'Population 2016'!F186/'Population 2016'!F$14","v":1.5668385561285206E-2},{"$f":"'Population 2016'!G186/'Population 2016'!G$14","v":1.5343167227147661E-2},{"$f":"'Population 2016'!H186/'Population 2016'!H$14","v":8.9512832657930291E-3},{"$f":"'Population 2016'!I186/'Population 2016'!I$14","v":2.2318225086036463E-2},{"$f":"'Population 2016'!J186/'Population 2016'!J$14","v":1.0967569016349505E-2},{"$f":"'Population 2016'!K186/'Population 2016'!K$14","v":8.1373485805874921E-3},{"$f":"'Population 2016'!L186/'Population 2016'!L$14","v":1.2325981190799896E-2},{"$f":"'Population 2016'!M186/'Population 2016'!M$14","v":1.2325981190799896E-2},{"$f":"'Population 2016'!N186/'Population 2016'!N$14","v":6.1043736161049827E-3},{"$f":"'Population 2016'!O186/'Population 2016'!O$14","v":7.6469671790610717E-3},{"$f":"'Population 2016'!P186/'Population 2016'!P$14","v":1.117489475698431E-2},{"$f":"'Population 2016'!Q186/'Population 2016'!Q$14","v":1.6413458417693153E-2},{"$f":"'Population 2016'!R186/'Population 2016'!R$14","v":8.2049476186284009E-3},{"$f":"'Population 2016'!S186/'Population 2016'!S$14","v":9.1155481903632748E-3},{"$f":"'Population 2016'!T186/'Population 2016'!T$14","v":5.6404416273634888E-3},{"$f":"'Population 2016'!U186/'Population 2016'!U$14","v":2.381847812460825E-3},{"$f":"'Population 2016'!V186/'Population 2016'!V$14","v":8.7175056938663311E-3},{"$f":"'Population 2016'!W186/'Population 2016'!W$14","v":9.6857511838140328E-3},{"$f":"'Population 2016'!X186/'Population 2016'!X$14","v":9.6857511838140328E-3},{"$f":"'Population 2016'!Y186/'Population 2016'!Y$14","v":9.7930193349356105E-3},{"$f":"'Population 2016'!Z186/'Population 2016'!Z$14","v":3.7777875335321966E-3},{"$f":"'Population 2016'!AA186/'Population 2016'!AA$14","v":6.9708153418001993E-3},{"$f":"'Population 2016'!AB186/'Population 2016'!AB$14","v":1.3463400991304077E-2},{"$f":"'Population 2016'!AC186/'Population 2016'!AC$14","v":6.2452577650273294E-3},{"$f":"'Population 2016'!AD186/'Population 2016'!AD$14","v":1.8182464046118403E-2},{"$f":"'Population 2016'!AE186/'Population 2016'!AE$14","v":1.9209242547781263E-2},{"$f":"'Population 2016'!AF186/'Population 2016'!AF$14","v":9.2540885520542484E-3},{"$f":"'Population 2016'!AG186/'Population 2016'!AG$14","v":1.9209242547781263E-2},{"$f":"'Population 2016'!AH186/'Population 2016'!AH$14","v":8.3040788934838541E-3},{"$f":"'Population 2016'!AI186/'Population 2016'!AI$14","v":7.3632710886964896E-3},{"$f":"'Population 2016'!AJ186/'Population 2016'!AJ$14","v":7.6264141395886798E-3},{"$f":"'Population 2016'!AK186/'Population 2016'!AK$14","v":2.0137483483583938E-2},{"$f":"'Population 2016'!AL186/'Population 2016'!AL$14","v":1.0666187825462381E-2},{"$f":"'Population 2016'!AM186/'Population 2016'!AM$14","v":6.580325509804457E-3},{"$f":"'Population 2016'!AN186/'Population 2016'!AN$14","v":2.76052966260193E-2},{"$f":"'Population 2016'!AO186/'Population 2016'!AO$14","v":2.76052966260193E-2},{"$f":"'Population 2016'!AP186/'Population 2016'!AP$14","v":2.3739837398373983E-2},{"$f":"'Population 2016'!AQ186/'Population 2016'!AQ$14","v":1.0016679757481621E-2},{"$f":"'Population 2016'!AR186/'Population 2016'!AR$14","v":1.0046330428882404E-2},{"$f":"'Population 2016'!AS186/'Population 2016'!AS$14","v":2.2318225086036463E-2},{"$f":"'Population 2016'!AT186/'Population 2016'!AT$14","v":3.0966767371601207E-2},{"$f":"'Population 2016'!AU186/'Population 2016'!AU$14","v":3.0966767371601207E-2},{"$f":"'Population 2016'!AV186/'Population 2016'!AV$14","v":8.3169021392673417E-3},{"$f":"'Population 2016'!AW186/'Population 2016'!AW$14","v":1.0170126547333238E-2},{"$f":"'Population 2016'!AX186/'Population 2016'!AX$14","v":1.2476985796948975E-2},{"$f":"'Population 2016'!AY186/'Population 2016'!AY$14","v":1.2453605406894764E-2},{"$f":"'Population 2016'!AZ186/'Population 2016'!AZ$14","v":1.4914348698008359E-2},{"$f":"'Population 2016'!BA186/'Population 2016'!BA$14","v":7.2187203177618512E-3},{"$f":"'Population 2016'!BB186/'Population 2016'!BB$14","v":7.4452793486026111E-3},{"$f":"'Population 2016'!BC186/'Population 2016'!BC$14","v":2.381847812460825E-3},184]
[null,"Female 65-69",0,0,0,0,0,0,0,0,0,0,0,0,0,0,0,0,0,0,0,0,0,0,0,0,0,0,0,0,0,0,0,0,0,0,0,0,0,0,0,0,0,0,0,0,0,0,0,0,0,0,0,0,0,185]
[null,"Female 70-74",0,0,0,0,0,0,0,0,0,0,0,0,0,0,0,0,0,0,0,0,0,0,0,0,0,0,0,0,0,0,0,0,0,0,0,0,0,0,0,0,0,0,0,0,0,0,0,0,0,0,0,0,0,186]
[null,"Female 75-79",0,0,0,0,0,0,0,0,0,0,0,0,0,0,0,0,0,0,0,0,0,0,0,0,0,0,0,0,0,0,0,0,0,0,0,0,0,0,0,0,0,0,0,0,0,0,0,0,0,0,0,0,0,187]
[null,"Female 80-84",0,0,0,0,0,0,0,0,0,0,0,0,0,0,0,0,0,0,0,0,0,0,0,0,0,0,0,0,0,0,0,0,0,0,0,0,0,0,0,0,0,0,0,0,0,0,0,0,0,0,0,0,0,188]
[null,"Female 85-89",0,0,0,0,0,0,0,0,0,0,0,0,0,0,0,0,0,0,0,0,0,0,0,0,0,0,0,0,0,0,0,0,0,0,0,0,0,0,0,0,0,0,0,0,0,0,0,0,0,0,0,0,0,189]
[null,"Female 90+",0,0,0,0,0,0,0,0,0,0,0,0,0,0,0,0,0,0,0,0,0,0,0,0,0,0,0,0,0,0,0,0,0,0,0,0,0,0,0,0,0,0,0,0,0,0,0,0,0,0,0,0,0,190]
[null,"Male 0-4",{"$f":"'Population 2016'!C193/'Population 2016'!C$14","v":0},{"$f":"'Population 2016'!D193/'Population 2016'!D$14","v":0},{"$f":"'Population 2016'!E193/'Population 2016'!E$14","v":0},{"$f":"'Population 2016'!F193/'Population 2016'!F$14","v":0},{"$f":"'Population 2016'!G193/'Population 2016'!G$14","v":0},{"$f":"'Population 2016'!H193/'Population 2016'!H$14","v":0},{"$f":"'Population 2016'!I193/'Population 2016'!I$14","v":0},{"$f":"'Population 2016'!J193/'Population 2016'!J$14","v":0},{"$f":"'Population 2016'!K193/'Population 2016'!K$14","v":0},{"$f":"'Population 2016'!L193/'Population 2016'!L$14","v":0},{"$f":"'Population 2016'!M193/'Population 2016'!M$14","v":0},{"$f":"'Population 2016'!N193/'Population 2016'!N$14","v":0},{"$f":"'Population 2016'!O193/'Population 2016'!O$14","v":0},{"$f":"'Population 2016'!P193/'Population 2016'!P$14","v":0},{"$f":"'Population 2016'!Q193/'Population 2016'!Q$14","v":0},{"$f":"'Population 2016'!R193/'Population 2016'!R$14","v":0},{"$f":"'Population 2016'!S193/'Population 2016'!S$14","v":0},{"$f":"'Population 2016'!T193/'Population 2016'!T$14","v":0},{"$f":"'Population 2016'!U193/'Population 2016'!U$14","v":0},{"$f":"'Population 2016'!V193/'Population 2016'!V$14","v":0},{"$f":"'Population 2016'!W193/'Population 2016'!W$14","v":0},{"$f":"'Population 2016'!X193/'Population 2016'!X$14","v":0},{"$f":"'Population 2016'!Y193/'Population 2016'!Y$14","v":0},{"$f":"'Population 2016'!Z193/'Population 2016'!Z$14","v":0},{"$f":"'Population 2016'!AA193/'Population 2016'!AA$14","v":0},{"$f":"'Population 2016'!AB193/'Population 2016'!AB$14","v":0},{"$f":"'Population 2016'!AC193/'Population 2016'!AC$14","v":0},{"$f":"'Population 2016'!AD193/'Population 2016'!AD$14","v":0},{"$f":"'Population 2016'!AE193/'Population 2016'!AE$14","v":0},{"$f":"'Population 2016'!AF193/'Population 2016'!AF$14","v":0},{"$f":"'Population 2016'!AG193/'Population 2016'!AG$14","v":0},{"$f":"'Population 2016'!AH193/'Population 2016'!AH$14","v":0},{"$f":"'Population 2016'!AI193/'Population 2016'!AI$14","v":0},{"$f":"'Population 2016'!AJ193/'Population 2016'!AJ$14","v":0},{"$f":"'Population 2016'!AK193/'Population 2016'!AK$14","v":0},{"$f":"'Population 2016'!AL193/'Population 2016'!AL$14","v":0},{"$f":"'Population 2016'!AM193/'Population 2016'!AM$14","v":0},{"$f":"'Population 2016'!AN193/'Population 2016'!AN$14","v":0},{"$f":"'Population 2016'!AO193/'Population 2016'!AO$14","v":0},{"$f":"'Population 2016'!AP193/'Population 2016'!AP$14","v":0},{"$f":"'Population 2016'!AQ193/'Population 2016'!AQ$14","v":0},{"$f":"'Population 2016'!AR193/'Population 2016'!AR$14","v":0},{"$f":"'Population 2016'!AS193/'Population 2016'!AS$14","v":0},{"$f":"'Population 2016'!AT193/'Population 2016'!AT$14","v":0},{"$f":"'Population 2016'!AU193/'Population 2016'!AU$14","v":0},{"$f":"'Population 2016'!AV193/'Population 2016'!AV$14","v":0},{"$f":"'Population 2016'!AW193/'Population 2016'!AW$14","v":0},{"$f":"'Population 2016'!AX193/'Population 2016'!AX$14","v":0},{"$f":"'Population 2016'!AY193/'Population 2016'!AY$14","v":0},{"$f":"'Population 2016'!AZ193/'Population 2016'!AZ$14","v":0},{"$f":"'Population 2016'!BA193/'Population 2016'!BA$14","v":0},{"$f":"'Population 2016'!BB193/'Population 2016'!BB$14","v":0},{"$f":"'Population 2016'!BC193/'Population 2016'!BC$14","v":0},191]
[null,"Male 5-9",{"$f":"'Population 2016'!C194/'Population 2016'!C$14","v":0},{"$f":"'Population 2016'!D194/'Population 2016'!D$14","v":0},{"$f":"'Population 2016'!E194/'Population 2016'!E$14","v":0},{"$f":"'Population 2016'!F194/'Population 2016'!F$14","v":0},{"$f":"'Population 2016'!G194/'Population 2016'!G$14","v":0},{"$f":"'Population 2016'!H194/'Population 2016'!H$14","v":0},{"$f":"'Population 2016'!I194/'Population 2016'!I$14","v":0},{"$f":"'Population 2016'!J194/'Population 2016'!J$14","v":0},{"$f":"'Population 2016'!K194/'Population 2016'!K$14","v":0},{"$f":"'Population 2016'!L194/'Population 2016'!L$14","v":0},{"$f":"'Population 2016'!M194/'Population 2016'!M$14","v":0},{"$f":"'Population 2016'!N194/'Population 2016'!N$14","v":0},{"$f":"'Population 2016'!O194/'Population 2016'!O$14","v":0},{"$f":"'Population 2016'!P194/'Population 2016'!P$14","v":0},{"$f":"'Population 2016'!Q194/'Population 2016'!Q$14","v":0},{"$f":"'Population 2016'!R194/'Population 2016'!R$14","v":0},{"$f":"'Population 2016'!S194/'Population 2016'!S$14","v":0},{"$f":"'Population 2016'!T194/'Population 2016'!T$14","v":0},{"$f":"'Population 2016'!U194/'Population 2016'!U$14","v":0},{"$f":"'Population 2016'!V194/'Population 2016'!V$14","v":0},{"$f":"'Population 2016'!W194/'Population 2016'!W$14","v":0},{"$f":"'Population 2016'!X194/'Population 2016'!X$14","v":0},{"$f":"'Population 2016'!Y194/'Population 2016'!Y$14","v":0},{"$f":"'Population 2016'!Z194/'Population 2016'!Z$14","v":0},{"$f":"'Population 2016'!AA194/'Population 2016'!AA$14","v":0},{"$f":"'Population 2016'!AB194/'Population 2016'!AB$14","v":0},{"$f":"'Population 2016'!AC194/'Population 2016'!AC$14","v":0},{"$f":"'Population 2016'!AD194/'Population 2016'!AD$14","v":0},{"$f":"'Population 2016'!AE194/'Population 2016'!AE$14","v":0},{"$f":"'Population 2016'!AF194/'Population 2016'!AF$14","v":0},{"$f":"'Population 2016'!AG194/'Population 2016'!AG$14","v":0},{"$f":"'Population 2016'!AH194/'Population 2016'!AH$14","v":0},{"$f":"'Population 2016'!AI194/'Population 2016'!AI$14","v":0},{"$f":"'Population 2016'!AJ194/'Population 2016'!AJ$14","v":0},{"$f":"'Population 2016'!AK194/'Population 2016'!AK$14","v":0},{"$f":"'Population 2016'!AL194/'Population 2016'!AL$14","v":0},{"$f":"'Population 2016'!AM194/'Population 2016'!AM$14","v":0},{"$f":"'Population 2016'!AN194/'Population 2016'!AN$14","v":0},{"$f":"'Population 2016'!AO194/'Population 2016'!AO$14","v":0},{"$f":"'Population 2016'!AP194/'Population 2016'!AP$14","v":0},{"$f":"'Population 2016'!AQ194/'Population 2016'!AQ$14","v":0},{"$f":"'Population 2016'!AR194/'Population 2016'!AR$14","v":0},{"$f":"'Population 2016'!AS194/'Population 2016'!AS$14","v":0},{"$f":"'Population 2016'!AT194/'Population 2016'!AT$14","v":0},{"$f":"'Population 2016'!AU194/'Population 2016'!AU$14","v":0},{"$f":"'Population 2016'!AV194/'Population 2016'!AV$14","v":0},{"$f":"'Population 2016'!AW194/'Population 2016'!AW$14","v":0},{"$f":"'Population 2016'!AX194/'Population 2016'!AX$14","v":0},{"$f":"'Population 2016'!AY194/'Population 2016'!AY$14","v":0},{"$f":"'Population 2016'!AZ194/'Population 2016'!AZ$14","v":0},{"$f":"'Population 2016'!BA194/'Population 2016'!BA$14","v":0},{"$f":"'Population 2016'!BB194/'Population 2016'!BB$14","v":0},{"$f":"'Population 2016'!BC194/'Population 2016'!BC$14","v":0},192]
[null,"Male 10-15",{"$f":"'Population 2016'!C195/'Population 2016'!C$14","v":0},{"$f":"'Population 2016'!D195/'Population 2016'!D$14","v":0},{"$f":"'Population 2016'!E195/'Population 2016'!E$14","v":0},{"$f":"'Population 2016'!F195/'Population 2016'!F$14","v":0},{"$f":"'Population 2016'!G195/'Population 2016'!G$14","v":0},{"$f":"'Population 2016'!H195/'Population 2016'!H$14","v":0},{"$f":"'Population 2016'!I195/'Population 2016'!I$14","v":0},{"$f":"'Population 2016'!J195/'Population 2016'!J$14","v":0},{"$f":"'Population 2016'!K195/'Population 2016'!K$14","v":0},{"$f":"'Population 2016'!L195/'Population 2016'!L$14","v":0},{"$f":"'Population 2016'!M195/'Population 2016'!M$14","v":0},{"$f":"'Population 2016'!N195/'Population 2016'!N$14","v":0},{"$f":"'Population 2016'!O195/'Population 2016'!O$14","v":0},{"$f":"'Population 2016'!P195/'Population 2016'!P$14","v":0},{"$f":"'Population 2016'!Q195/'Population 2016'!Q$14","v":0},{"$f":"'Population 2016'!R195/'Population 2016'!R$14","v":0},{"$f":"'Population 2016'!S195/'Population 2016'!S$14","v":0},{"$f":"'Population 2016'!T195/'Population 2016'!T$14","v":0},{"$f":"'Population 2016'!U195/'Population 2016'!U$14","v":0},{"$f":"'Population 2016'!V195/'Population 2016'!V$14","v":0},{"$f":"'Population 2016'!W195/'Population 2016'!W$14","v":0},{"$f":"'Population 2016'!X195/'Population 2016'!X$14","v":0},{"$f":"'Population 2016'!Y195/'Population 2016'!Y$14","v":0},{"$f":"'Population 2016'!Z195/'Population 2016'!Z$14","v":0},{"$f":"'Population 2016'!AA195/'Population 2016'!AA$14","v":0},{"$f":"'Population 2016'!AB195/'Population 2016'!AB$14","v":0},{"$f":"'Population 2016'!AC195/'Population 2016'!AC$14","v":0},{"$f":"'Population 2016'!AD195/'Population 2016'!AD$14","v":0},{"$f":"'Population 2016'!AE195/'Population 2016'!AE$14","v":0},{"$f":"'Population 2016'!AF195/'Population 2016'!AF$14","v":0},{"$f":"'Population 2016'!AG195/'Population 2016'!AG$14","v":0},{"$f":"'Population 2016'!AH195/'Population 2016'!AH$14","v":0},{"$f":"'Population 2016'!AI195/'Population 2016'!AI$14","v":0},{"$f":"'Population 2016'!AJ195/'Population 2016'!AJ$14","v":0},{"$f":"'Population 2016'!AK195/'Population 2016'!AK$14","v":0},{"$f":"'Population 2016'!AL195/'Population 2016'!AL$14","v":0},{"$f":"'Population 2016'!AM195/'Population 2016'!AM$14","v":0},{"$f":"'Population 2016'!AN195/'Population 2016'!AN$14","v":0},{"$f":"'Population 2016'!AO195/'Population 2016'!AO$14","v":0},{"$f":"'Population 2016'!AP195/'Population 2016'!AP$14","v":0},{"$f":"'Population 2016'!AQ195/'Population 2016'!AQ$14","v":0},{"$f":"'Population 2016'!AR195/'Population 2016'!AR$14","v":0},{"$f":"'Population 2016'!AS195/'Population 2016'!AS$14","v":0},{"$f":"'Population 2016'!AT195/'Population 2016'!AT$14","v":0},{"$f":"'Population 2016'!AU195/'Population 2016'!AU$14","v":0},{"$f":"'Population 2016'!AV195/'Population 2016'!AV$14","v":0},{"$f":"'Population 2016'!AW195/'Population 2016'!AW$14","v":0},{"$f":"'Population 2016'!AX195/'Population 2016'!AX$14","v":0},{"$f":"'Population 2016'!AY195/'Population 2016'!AY$14","v":0},{"$f":"'Population 2016'!AZ195/'Population 2016'!AZ$14","v":0},{"$f":"'Population 2016'!BA195/'Population 2016'!BA$14","v":0},{"$f":"'Population 2016'!BB195/'Population 2016'!BB$14","v":0},{"$f":"'Population 2016'!BC195/'Population 2016'!BC$14","v":0},193]
[null,"Male 16-19",{"$f":"'Population 2016'!C196/'Population 2016'!C$14","v":5.3724327046840896E-3},{"$f":"'Population 2016'!D196/'Population 2016'!D$14","v":9.3023540838743871E-3},{"$f":"'Population 2016'!E196/'Population 2016'!E$14","v":1.3120061855171913E-2},{"$f":"'Population 2016'!F196/'Population 2016'!F$14","v":9.9591998639995474E-3},{"$f":"'Population 2016'!G196/'Population 2016'!G$14","v":9.6682971568327735E-3},{"$f":"'Population 2016'!H196/'Population 2016'!H$14","v":5.3681385190253146E-3},{"$f":"'Population 2016'!I196/'Population 2016'!I$14","v":1.2447828952185692E-2},{"$f":"'Population 2016'!J196/'Population 2016'!J$14","v":9.5095148753685348E-3},{"$f":"'Population 2016'!K196/'Population 2016'!K$14","v":7.0893567179360724E-3},{"$f":"'Population 2016'!L196/'Population 2016'!L$14","v":5.9551230912706886E-3},{"$f":"'Population 2016'!M196/'Population 2016'!M$14","v":5.9551230912706886E-3},{"$f":"'Population 2016'!N196/'Population 2016'!N$14","v":7.759969122635952E-3},{"$f":"'Population 2016'!O196/'Population 2016'!O$14","v":4.6738678853344411E-3},{"$f":"'Population 2016'!P196/'Population 2016'!P$14","v":6.8886337543053958E-3},{"$f":"'Population 2016'!Q196/'Population 2016'!Q$14","v":1.1452328330989289E-2},{"$f":"'Population 2016'!R196/'Population 2016'!R$14","v":6.1801214895677433E-3},{"$f":"'Population 2016'!S196/'Population 2016'!S$14","v":5.7989661784981295E-3},{"$f":"'Population 2016'!T196/'Population 2016'!T$14","v":3.5464700612931757E-3},{"$f":"'Population 2016'!U196/'Population 2016'!U$14","v":2.1938071956876018E-3},{"$f":"'Population 2016'!V196/'Population 2016'!V$14","v":8.0204979187936849E-3},{"$f":"'Population 2016'!W196/'Population 2016'!W$14","v":5.9965561773568663E-3},{"$f":"'Population 2016'!X196/'Population 2016'!X$14","v":5.9965561773568663E-3},{"$f":"'Population 2016'!Y196/'Population 2016'!Y$14","v":8.732237020790309E-3},{"$f":"'Population 2016'!Z196/'Population 2016'!Z$14","v":2.9921925724306999E-3},{"$f":"'Population 2016'!AA196/'Population 2016'!AA$14","v":5.1204959990389688E-3},{"$f":"'Population 2016'!AB196/'Population 2016'!AB$14","v":1.0019214932747735E-2},{"$f":"'Population 2016'!AC196/'Population 2016'!AC$14","v":4.4108421178740871E-3},{"$f":"'Population 2016'!AD196/'Population 2016'!AD$14","v":1.1930497619990054E-2},{"$f":"'Population 2016'!AE196/'Population 2016'!AE$14","v":1.2748580036207349E-2},{"$f":"'Population 2016'!AF196/'Population 2016'!AF$14","v":7.8978859194256089E-3},{"$f":"'Population 2016'!AG196/'Population 2016'!AG$14","v":1.2748580036207349E-2},{"$f":"'Population 2016'!AH196/'Population 2016'!AH$14","v":6.4245353811046698E-3},{"$f":"'Population 2016'!AI196/'Population 2016'!AI$14","v":4.9517786239749459E-3},{"$f":"'Population 2016'!AJ196/'Population 2016'!AJ$14","v":4.9698196407272199E-3},{"$f":"'Population 2016'!AK196/'Population 2016'!AK$14","v":1.3932328689223771E-2},{"$f":"'Population 2016'!AL196/'Population 2016'!AL$14","v":6.1770515352846112E-3},{"$f":"'Population 2016'!AM196/'Population 2016'!AM$14","v":5.2369372569378032E-3},{"$f":"'Population 2016'!AN196/'Population 2016'!AN$14","v":1.84783421859804E-2},{"$f":"'Population 2016'!AO196/'Population 2016'!AO$14","v":1.84783421859804E-2},{"$f":"'Population 2016'!AP196/'Population 2016'!AP$14","v":1.7647696476964771E-2},{"$f":"'Population 2016'!AQ196/'Population 2016'!AQ$14","v":6.2571153727352157E-3},{"$f":"'Population 2016'!AR196/'Population 2016'!AR$14","v":7.086673060298327E-3},{"$f":"'Population 2016'!AS196/'Population 2016'!AS$14","v":1.2447828952185692E-2},{"$f":"'Population 2016'!AT196/'Population 2016'!AT$14","v":2.5679758308157101E-2},{"$f":"'Population 2016'!AU196/'Population 2016'!AU$14","v":2.5679758308157101E-2},{"$f":"'Population 2016'!AV196/'Population 2016'!AV$14","v":5.1591478510963186E-3},{"$f":"'Population 2016'!AW196/'Population 2016'!AW$14","v":7.7101686476147282E-3},{"$f":"'Population 2016'!AX196/'Population 2016'!AX$14","v":1.0800236717517096E-2},{"$f":"'Population 2016'!AY196/'Population 2016'!AY$14","v":9.0925298627206278E-3},{"$f":"'Population 2016'!AZ196/'Population 2016'!AZ$14","v":1.1844985686511642E-2},{"$f":"'Population 2016'!BA196/'Population 2016'!BA$14","v":3.851135480528452E-3},{"$f":"'Population 2016'!BB196/'Population 2016'!BB$14","v":5.6033258450176879E-3},{"$f":"'Population 2016'!BC196/'Population 2016'!BC$14","v":2.1938071956876018E-3},194]
[null,"Male 20-24",{"$f":"'Population 2016'!C197/'Population 2016'!C$14","v":1.331293798695444E-2},{"$f":"'Population 2016'!D197/'Population 2016'!D$14","v":1.405464367020152E-2},{"$f":"'Population 2016'!E197/'Population 2016'!E$14","v":1.4775170947398941E-2},{"$f":"'Population 2016'!F197/'Population 2016'!F$14","v":1.1914206380687936E-2},{"$f":"'Population 2016'!G197/'Population 2016'!G$14","v":1.0814735554876184E-2},{"$f":"'Population 2016'!H197/'Population 2016'!H$14","v":5.8330263319474416E-3},{"$f":"'Population 2016'!I197/'Population 2016'!I$14","v":1.28871640916746E-2},{"$f":"'Population 2016'!J197/'Population 2016'!J$14","v":1.3819351380326991E-2},{"$f":"'Population 2016'!K197/'Population 2016'!K$14","v":9.2778103134728597E-3},{"$f":"'Population 2016'!L197/'Population 2016'!L$14","v":7.2135641973505322E-3},{"$f":"'Population 2016'!M197/'Population 2016'!M$14","v":7.2135641973505322E-3},{"$f":"'Population 2016'!N197/'Population 2016'!N$14","v":1.695207914355943E-2},{"$f":"'Population 2016'!O197/'Population 2016'!O$14","v":5.2191524719567926E-3},{"$f":"'Population 2016'!P197/'Population 2016'!P$14","v":9.1389207807118251E-3},{"$f":"'Population 2016'!Q197/'Population 2016'!Q$14","v":1.4388822774832697E-2},{"$f":"'Population 2016'!R197/'Population 2016'!R$14","v":6.3209789594154417E-3},{"$f":"'Population 2016'!S197/'Population 2016'!S$14","v":8.6484872164513255E-3},{"$f":"'Population 2016'!T197/'Population 2016'!T$14","v":8.3730603917224547E-3},{"$f":"'Population 2016'!U197/'Population 2016'!U$14","v":2.9459696627804938E-3},{"$f":"'Population 2016'!V197/'Population 2016'!V$14","v":9.3850624361894296E-3},{"$f":"'Population 2016'!W197/'Population 2016'!W$14","v":7.8433060697374081E-3},{"$f":"'Population 2016'!X197/'Population 2016'!X$14","v":7.8433060697374081E-3},{"$f":"'Population 2016'!Y197/'Population 2016'!Y$14","v":1.1504619783846386E-2},{"$f":"'Population 2016'!Z197/'Population 2016'!Z$14","v":9.7667938252236058E-3},{"$f":"'Population 2016'!AA197/'Population 2016'!AA$14","v":8.4098599163101723E-3},{"$f":"'Population 2016'!AB197/'Population 2016'!AB$14","v":1.4587293284096147E-2},{"$f":"'Population 2016'!AC197/'Population 2016'!AC$14","v":8.8126667431006524E-3},{"$f":"'Population 2016'!AD197/'Population 2016'!AD$14","v":1.3254980767083802E-2},{"$f":"'Population 2016'!AE197/'Population 2016'!AE$14","v":1.41374497312088E-2},{"$f":"'Population 2016'!AF197/'Population 2016'!AF$14","v":8.2768248903071408E-3},{"$f":"'Population 2016'!AG197/'Population 2016'!AG$14","v":1.41374497312088E-2},{"$f":"'Population 2016'!AH197/'Population 2016'!AH$14","v":7.6696737784742557E-3},{"$f":"'Population 2016'!AI197/'Population 2016'!AI$14","v":8.4749640309714942E-3},{"$f":"'Population 2016'!AJ197/'Population 2016'!AJ$14","v":5.4035493548270502E-3},{"$f":"'Population 2016'!AK197/'Population 2016'!AK$14","v":1.749485691347907E-2},{"$f":"'Population 2016'!AL197/'Population 2016'!AL$14","v":7.0150236427844615E-3},{"$f":"'Population 2016'!AM197/'Population 2016'!AM$14","v":6.8808801697678446E-3},{"$f":"'Population 2016'!AN197/'Population 2016'!AN$14","v":1.9376075409590784E-2},{"$f":"'Population 2016'!AO197/'Population 2016'!AO$14","v":1.9376075409590784E-2},{"$f":"'Population 2016'!AP197/'Population 2016'!AP$14","v":1.8612466124661248E-2},{"$f":"'Population 2016'!AQ197/'Population 2016'!AQ$14","v":8.075120685546857E-3},{"$f":"'Population 2016'!AR197/'Population 2016'!AR$14","v":1.0094182377817784E-2},{"$f":"'Population 2016'!AS197/'Population 2016'!AS$14","v":1.28871640916746E-2},{"$f":"'Population 2016'!AT197/'Population 2016'!AT$14","v":3.0829442460862399E-2},{"$f":"'Population 2016'!AU197/'Population 2016'!AU$14","v":3.0829442460862399E-2},{"$f":"'Population 2016'!AV197/'Population 2016'!AV$14","v":5.0701970260774165E-3},{"$f":"'Population 2016'!AW197/'Population 2016'!AW$14","v":8.5235815803873811E-3},{"$f":"'Population 2016'!AX197/'Population 2016'!AX$14","v":1.6241451867438191E-2},{"$f":"'Population 2016'!AY197/'Population 2016'!AY$14","v":1.2255060859981523E-2},{"$f":"'Population 2016'!AZ197/'Population 2016'!AZ$14","v":1.6177303553112993E-2},{"$f":"'Population 2016'!BA197/'Population 2016'!BA$14","v":5.6644503928848979E-3},{"$f":"'Population 2016'!BB197/'Population 2016'!BB$14","v":6.954665564937468E-3},{"$f":"'Population 2016'!BC197/'Population 2016'!BC$14","v":2.9459696627804938E-3},195]
[null,"Male 25-29",{"$f":"'Population 2016'!C198/'Population 2016'!C$14","v":1.5078876514883006E-2},{"$f":"'Population 2016'!D198/'Population 2016'!D$14","v":1.4921760338757663E-2},{"$f":"'Population 2016'!E198/'Population 2016'!E$14","v":1.4769130403266726E-2},{"$f":"'Population 2016'!F198/'Population 2016'!F$14","v":9.8883662945543158E-3},{"$f":"'Population 2016'!G198/'Population 2016'!G$14","v":8.7893610516661565E-3},{"$f":"'Population 2016'!H198/'Population 2016'!H$14","v":5.1883234215743031E-3},{"$f":"'Population 2016'!I198/'Population 2016'!I$14","v":1.032437577798931E-2},{"$f":"'Population 2016'!J198/'Population 2016'!J$14","v":9.8954703832752622E-3},{"$f":"'Population 2016'!K198/'Population 2016'!K$14","v":7.7058225194957313E-3},{"$f":"'Population 2016'!L198/'Population 2016'!L$14","v":6.820301351700581E-3},{"$f":"'Population 2016'!M198/'Population 2016'!M$14","v":6.820301351700581E-3},{"$f":"'Population 2016'!N198/'Population 2016'!N$14","v":1.1142259329229895E-2},{"$f":"'Population 2016'!O198/'Population 2016'!O$14","v":5.1412546738678856E-3},{"$f":"'Population 2016'!P198/'Population 2016'!P$14","v":7.2101033295063144E-3},{"$f":"'Population 2016'!Q198/'Population 2016'!Q$14","v":1.0138633448217239E-2},{"$f":"'Population 2016'!R198/'Population 2016'!R$14","v":6.6731226340346859E-3},{"$f":"'Population 2016'!S198/'Population 2016'!S$14","v":9.5826091642752242E-3},{"$f":"'Population 2016'!T198/'Population 2016'!T$14","v":1.2416884023364314E-2},{"$f":"'Population 2016'!U198/'Population 2016'!U$14","v":1.5670051397768585E-3},{"$f":"'Population 2016'!V198/'Population 2016'!V$14","v":7.6867195476321374E-3},{"$f":"'Population 2016'!W198/'Population 2016'!W$14","v":6.8532070598364189E-3},{"$f":"'Population 2016'!X198/'Population 2016'!X$14","v":6.8532070598364189E-3},{"$f":"'Population 2016'!Y198/'Population 2016'!Y$14","v":8.7424861252748034E-3},{"$f":"'Population 2016'!Z198/'Population 2016'!Z$14","v":9.3809280649178699E-3},{"$f":"'Population 2016'!AA198/'Population 2016'!AA$14","v":7.8576004911938818E-3},{"$f":"'Population 2016'!AB198/'Population 2016'!AB$14","v":1.5056013341689153E-2},{"$f":"'Population 2016'!AC198/'Population 2016'!AC$14","v":8.4184734930803622E-3},{"$f":"'Population 2016'!AD198/'Population 2016'!AD$14","v":1.2564828629134569E-2},{"$f":"'Population 2016'!AE198/'Population 2016'!AE$14","v":1.3930155746880226E-2},{"$f":"'Population 2016'!AF198/'Population 2016'!AF$14","v":6.5616274431591548E-3},{"$f":"'Population 2016'!AG198/'Population 2016'!AG$14","v":1.3930155746880226E-2},{"$f":"'Population 2016'!AH198/'Population 2016'!AH$14","v":6.8269565361480725E-3},{"$f":"'Population 2016'!AI198/'Population 2016'!AI$14","v":1.0571250874865063E-2},{"$f":"'Population 2016'!AJ198/'Population 2016'!AJ$14","v":5.9457114974518378E-3},{"$f":"'Population 2016'!AK198/'Population 2016'!AK$14","v":1.5788857482145546E-2},{"$f":"'Population 2016'!AL198/'Population 2016'!AL$14","v":5.3510504578919019E-3},{"$f":"'Population 2016'!AM198/'Population 2016'!AM$14","v":5.8926928786761021E-3},{"$f":"'Population 2016'!AN198/'Population 2016'!AN$14","v":1.8927208797785592E-2},{"$f":"'Population 2016'!AO198/'Population 2016'!AO$14","v":1.8927208797785592E-2},{"$f":"'Population 2016'!AP198/'Population 2016'!AP$14","v":1.5674796747967481E-2},{"$f":"'Population 2016'!AQ198/'Population 2016'!AQ$14","v":8.5516851850217547E-3},{"$f":"'Population 2016'!AR198/'Population 2016'!AR$14","v":9.661509067084708E-3},{"$f":"'Population 2016'!AS198/'Population 2016'!AS$14","v":1.032437577798931E-2},{"$f":"'Population 2016'!AT198/'Population 2016'!AT$14","v":3.1516067014556441E-2},{"$f":"'Population 2016'!AU198/'Population 2016'!AU$14","v":3.1516067014556441E-2},{"$f":"'Population 2016'!AV198/'Population 2016'!AV$14","v":5.0405467510711158E-3},{"$f":"'Population 2016'!AW198/'Population 2016'!AW$14","v":7.8383428067182979E-3},{"$f":"'Population 2016'!AX198/'Population 2016'!AX$14","v":1.106325618095739E-2},{"$f":"'Population 2016'!AY198/'Population 2016'!AY$14","v":9.7914877064458096E-3},{"$f":"'Population 2016'!AZ198/'Population 2016'!AZ$14","v":1.2403747531497328E-2},{"$f":"'Population 2016'!BA198/'Population 2016'!BA$14","v":5.6471807270529317E-3},{"$f":"'Population 2016'!BB198/'Population 2016'!BB$14","v":7.3936357924273329E-3},{"$f":"'Population 2016'!BC198/'Population 2016'!BC$14","v":1.5670051397768585E-3},196]
[null,"Male 30-34",{"$f":"'Population 2016'!C199/'Population 2016'!C$14","v":1.1149041480901126E-2},{"$f":"'Population 2016'!D199/'Population 2016'!D$14","v":1.3588913162708468E-2},{"$f":"'Population 2016'!E199/'Population 2016'!E$14","v":1.5959117597313166E-2},{"$f":"'Population 2016'!F199/'Population 2016'!F$14","v":9.6475321584405284E-3},{"$f":"'Population 2016'!G199/'Population 2016'!G$14","v":7.6429226536227452E-3},{"$f":"'Population 2016'!H199/'Population 2016'!H$14","v":4.9120221742715298E-3},{"$f":"'Population 2016'!I199/'Population 2016'!I$14","v":1.041224280588709E-2},{"$f":"'Population 2016'!J199/'Population 2016'!J$14","v":9.2414902170999732E-3},{"$f":"'Population 2016'!K199/'Population 2016'!K$14","v":9.5860432142526892E-3},{"$f":"'Population 2016'!L199/'Population 2016'!L$14","v":7.2023281160462473E-3},{"$f":"'Population 2016'!M199/'Population 2016'!M$14","v":7.2023281160462473E-3},{"$f":"'Population 2016'!N199/'Population 2016'!N$14","v":7.0692912426107623E-3},{"$f":"'Population 2016'!O199/'Population 2016'!O$14","v":5.465828832571666E-3},{"$f":"'Population 2016'!P199/'Population 2016'!P$14","v":6.5212399540757748E-3},{"$f":"'Population 2016'!Q199/'Population 2016'!Q$14","v":1.0679566635241024E-2},{"$f":"'Population 2016'!R199/'Population 2016'!R$14","v":5.2293335680957832E-3},{"$f":"'Population 2016'!S199/'Population 2016'!S$14","v":9.7173382913652104E-3},{"$f":"'Population 2016'!T199/'Population 2016'!T$14","v":1.1761281589722866E-2},{"$f":"'Population 2016'!U199/'Population 2016'!U$14","v":1.4416447285947097E-3},{"$f":"'Population 2016'!V199/'Population 2016'!V$14","v":7.9615958532945896E-3},{"$f":"'Population 2016'!W199/'Population 2016'!W$14","v":6.8575118381403359E-3},{"$f":"'Population 2016'!X199/'Population 2016'!X$14","v":6.8575118381403359E-3},{"$f":"'Population 2016'!Y199/'Population 2016'!Y$14","v":8.5733759012806259E-3},{"$f":"'Population 2016'!Z199/'Population 2016'!Z$14","v":7.7727689680748072E-3},{"$f":"'Population 2016'!AA199/'Population 2016'!AA$14","v":7.255287341746808E-3},{"$f":"'Population 2016'!AB199/'Population 2016'!AB$14","v":1.3973554866142874E-2},{"$f":"'Population 2016'!AC199/'Population 2016'!AC$14","v":7.0272031988911059E-3},{"$f":"'Population 2016'!AD199/'Population 2016'!AD$14","v":1.2732292015548721E-2},{"$f":"'Population 2016'!AE199/'Population 2016'!AE$14","v":1.4572767098298807E-2},{"$f":"'Population 2016'!AF199/'Population 2016'!AF$14","v":6.9804547267650575E-3},{"$f":"'Population 2016'!AG199/'Population 2016'!AG$14","v":1.4572767098298807E-2},{"$f":"'Population 2016'!AH199/'Population 2016'!AH$14","v":7.6744081450041777E-3},{"$f":"'Population 2016'!AI199/'Population 2016'!AI$14","v":1.0762746762787434E-2},{"$f":"'Population 2016'!AJ199/'Population 2016'!AJ$14","v":6.9758195684389342E-3},{"$f":"'Population 2016'!AK199/'Population 2016'!AK$14","v":1.6073190720701132E-2},{"$f":"'Population 2016'!AL199/'Population 2016'!AL$14","v":4.5370204106063329E-3},{"$f":"'Population 2016'!AM199/'Population 2016'!AM$14","v":6.4072788874012954E-3},{"$f":"'Population 2016'!AN199/'Population 2016'!AN$14","v":1.8927208797785592E-2},{"$f":"'Population 2016'!AO199/'Population 2016'!AO$14","v":1.8927208797785592E-2},{"$f":"'Population 2016'!AP199/'Population 2016'!AP$14","v":1.7268292682926831E-2},{"$f":"'Population 2016'!AQ199/'Population 2016'!AQ$14","v":6.7336798722101117E-3},{"$f":"'Population 2016'!AR199/'Population 2016'!AR$14","v":9.2683780854120046E-3},{"$f":"'Population 2016'!AS199/'Population 2016'!AS$14","v":1.041224280588709E-2},{"$f":"'Population 2016'!AT199/'Population 2016'!AT$14","v":2.808294424608624E-2},{"$f":"'Population 2016'!AU199/'Population 2016'!AU$14","v":2.808294424608624E-2},{"$f":"'Population 2016'!AV199/'Population 2016'!AV$14","v":4.7440440010081096E-3},{"$f":"'Population 2016'!AW199/'Population 2016'!AW$14","v":9.0461377675019345E-3},{"$f":"'Population 2016'!AX199/'Population 2016'!AX$14","v":9.0577327722251438E-3},{"$f":"'Population 2016'!AY199/'Population 2016'!AY$14","v":9.2444772200521892E-3},{"$f":"'Population 2016'!AZ199/'Population 2016'!AZ$14","v":1.1366593695941705E-2},{"$f":"'Population 2016'!BA199/'Population 2016'!BA$14","v":4.4037647871513685E-3},{"$f":"'Population 2016'!BB199/'Population 2016'!BB$14","v":9.5712724111515646E-3},{"$f":"'Population 2016'!BC199/'Population 2016'!BC$14","v":1.4416447285947097E-3},197]
[null,"Male 35-39",{"$f":"'Population 2016'!C200/'Population 2016'!C$14","v":8.7675117055608411E-3},{"$f":"'Population 2016'!D200/'Population 2016'!D$14","v":1.3457160453351881E-2},{"$f":"'Population 2016'!E200/'Population 2016'!E$14","v":1.8012902602266411E-2},{"$f":"'Population 2016'!F200/'Population 2016'!F$14","v":9.2083640278800925E-3},{"$f":"'Population 2016'!G200/'Population 2016'!G$14","v":9.5536533170284318E-3},{"$f":"'Population 2016'!H200/'Population 2016'!H$14","v":5.758468852516534E-3},{"$f":"'Population 2016'!I200/'Population 2016'!I$14","v":1.234531741963828E-2},{"$f":"'Population 2016'!J200/'Population 2016'!J$14","v":1.0892522112034307E-2},{"$f":"'Population 2016'!K200/'Population 2016'!K$14","v":9.7093363745646213E-3},{"$f":"'Population 2016'!L200/'Population 2016'!L$14","v":6.1461364734435222E-3},{"$f":"'Population 2016'!M200/'Population 2016'!M$14","v":6.1461364734435222E-3},{"$f":"'Population 2016'!N200/'Population 2016'!N$14","v":5.7590346760923884E-3},{"$f":"'Population 2016'!O200/'Population 2016'!O$14","v":6.0760282509347736E-3},{"$f":"'Population 2016'!P200/'Population 2016'!P$14","v":6.4906238040566399E-3},{"$f":"'Population 2016'!Q200/'Population 2016'!Q$14","v":1.2966941254655889E-2},{"$f":"'Population 2016'!R200/'Population 2016'!R$14","v":6.2505502244915925E-3},{"$f":"'Population 2016'!S200/'Population 2016'!S$14","v":9.3490786773192495E-3},{"$f":"'Population 2016'!T200/'Population 2016'!T$14","v":9.2603843751854487E-3},{"$f":"'Population 2016'!U200/'Population 2016'!U$14","v":3.134010279553717E-3},{"$f":"'Population 2016'!V200/'Population 2016'!V$14","v":9.1985392287756221E-3},{"$f":"'Population 2016'!W200/'Population 2016'!W$14","v":7.5075333620318553E-3},{"$f":"'Population 2016'!X200/'Population 2016'!X$14","v":7.5075333620318553E-3},{"$f":"'Population 2016'!Y200/'Population 2016'!Y$14","v":1.0008250529110019E-2},{"$f":"'Population 2016'!Z200/'Population 2016'!Z$14","v":5.7556383767759641E-3},{"$f":"'Population 2016'!AA200/'Population 2016'!AA$14","v":6.9391146497240373E-3},{"$f":"'Population 2016'!AB200/'Population 2016'!AB$14","v":1.3851843027983365E-2},{"$f":"'Population 2016'!AC200/'Population 2016'!AC$14","v":6.008226529721012E-3},{"$f":"'Population 2016'!AD200/'Population 2016'!AD$14","v":1.3447817393863736E-2},{"$f":"'Population 2016'!AE200/'Population 2016'!AE$14","v":1.4856068876881193E-2},{"$f":"'Population 2016'!AF200/'Population 2016'!AF$14","v":6.7411248504188276E-3},{"$f":"'Population 2016'!AG200/'Population 2016'!AG$14","v":1.4856068876881193E-2},{"$f":"'Population 2016'!AH200/'Population 2016'!AH$14","v":8.649687650168188E-3},{"$f":"'Population 2016'!AI200/'Population 2016'!AI$14","v":9.7273132449062945E-3},{"$f":"'Population 2016'!AJ200/'Population 2016'!AJ$14","v":8.5480897820508182E-3},{"$f":"'Population 2016'!AK200/'Population 2016'!AK$14","v":1.6006288782217465E-2},{"$f":"'Population 2016'!AL200/'Population 2016'!AL$14","v":5.6503262105704194E-3},{"$f":"'Population 2016'!AM200/'Population 2016'!AM$14","v":6.953741905516544E-3},{"$f":"'Population 2016'!AN200/'Population 2016'!AN$14","v":1.8029475574175207E-2},{"$f":"'Population 2016'!AO200/'Population 2016'!AO$14","v":1.8029475574175207E-2},{"$f":"'Population 2016'!AP200/'Population 2016'!AP$14","v":1.7365853658536587E-2},{"$f":"'Population 2016'!AQ200/'Population 2016'!AQ$14","v":7.3514486678257183E-3},{"$f":"'Population 2016'!AR200/'Population 2016'!AR$14","v":9.1752530350886589E-3},{"$f":"'Population 2016'!AS200/'Population 2016'!AS$14","v":1.234531741963828E-2},{"$f":"'Population 2016'!AT200/'Population 2016'!AT$14","v":3.1172754737709422E-2},{"$f":"'Population 2016'!AU200/'Population 2016'!AU$14","v":3.1172754737709422E-2},{"$f":"'Population 2016'!AV200/'Population 2016'!AV$14","v":5.529776288675077E-3},{"$f":"'Population 2016'!AW200/'Population 2016'!AW$14","v":1.0485632169742024E-2},{"$f":"'Population 2016'!AX200/'Population 2016'!AX$14","v":1.1523540241977907E-2},{"$f":"'Population 2016'!AY200/'Population 2016'!AY$14","v":9.2444772200521892E-3},{"$f":"'Population 2016'!AZ200/'Population 2016'!AZ$14","v":1.0788696171333221E-2},{"$f":"'Population 2016'!BA200/'Population 2016'!BA$14","v":3.851135480528452E-3},{"$f":"'Population 2016'!BB200/'Population 2016'!BB$14","v":9.906955526290874E-3},{"$f":"'Population 2016'!BC200/'Population 2016'!BC$14","v":3.134010279553717E-3},198]
[null,"Male 40-44",{"$f":"'Population 2016'!C201/'Population 2016'!C$14","v":7.3497864084914287E-3},{"$f":"'Population 2016'!D201/'Population 2016'!D$14","v":1.3702281773085067E-2},{"$f":"'Population 2016'!E201/'Population 2016'!E$14","v":1.9873390194988766E-2},{"$f":"'Population 2016'!F201/'Population 2016'!F$14","v":1.0880036266787557E-2},{"$f":"'Population 2016'!G201/'Population 2016'!G$14","v":1.1961173952919596E-2},{"$f":"'Population 2016'!H201/'Population 2016'!H$14","v":6.8724453098959705E-3},{"$f":"'Population 2016'!I201/'Population 2016'!I$14","v":1.6050377095994727E-2},{"$f":"'Population 2016'!J201/'Population 2016'!J$14","v":1.2103993567408202E-2},{"$f":"'Population 2016'!K201/'Population 2016'!K$14","v":1.0479918626514194E-2},{"$f":"'Population 2016'!L201/'Population 2016'!L$14","v":8.0113259699547187E-3},{"$f":"'Population 2016'!M201/'Population 2016'!M$14","v":8.0113259699547187E-3},{"$f":"'Population 2016'!N201/'Population 2016'!N$14","v":5.8707619802141099E-3},{"$f":"'Population 2016'!O201/'Population 2016'!O$14","v":7.2185292895720812E-3},{"$f":"'Population 2016'!P201/'Population 2016'!P$14","v":7.7458859548411784E-3},{"$f":"'Population 2016'!Q201/'Population 2016'!Q$14","v":1.7232585815186312E-2},{"$f":"'Population 2016'!R201/'Population 2016'!R$14","v":7.588696188044722E-3},{"$f":"'Population 2016'!S201/'Population 2016'!S$14","v":9.5691362515662268E-3},{"$f":"'Population 2016'!T201/'Population 2016'!T$14","v":7.7315873208750035E-3},{"$f":"'Population 2016'!U201/'Population 2016'!U$14","v":3.4474113075090886E-3},{"$f":"'Population 2016'!V201/'Population 2016'!V$14","v":1.0101704233095107E-2},{"$f":"'Population 2016'!W201/'Population 2016'!W$14","v":7.9982780886784337E-3},{"$f":"'Population 2016'!X201/'Population 2016'!X$14","v":7.9982780886784337E-3},{"$f":"'Population 2016'!Y201/'Population 2016'!Y$14","v":1.1058783738770825E-2},{"$f":"'Population 2016'!Z201/'Population 2016'!Z$14","v":5.0023914434845296E-3},{"$f":"'Population 2016'!AA201/'Population 2016'!AA$14","v":7.260292714179886E-3},{"$f":"'Population 2016'!AB201/'Population 2016'!AB$14","v":1.4597651738407595E-2},{"$f":"'Population 2016'!AC201/'Population 2016'!AC$14","v":6.0971132429608809E-3},{"$f":"'Population 2016'!AD201/'Population 2016'!AD$14","v":1.5203645627175756E-2},{"$f":"'Population 2016'!AE201/'Population 2016'!AE$14","v":1.6376224761957409E-2},{"$f":"'Population 2016'!AF201/'Population 2016'!AF$14","v":8.157159952134025E-3},{"$f":"'Population 2016'!AG201/'Population 2016'!AG$14","v":1.6376224761957409E-2},{"$f":"'Population 2016'!AH201/'Population 2016'!AH$14","v":9.3977175618959238E-3},{"$f":"'Population 2016'!AI201/'Population 2016'!AI$14","v":9.4375274322096078E-3},{"$f":"'Population 2016'!AJ201/'Population 2016'!AJ$14","v":8.1866483536342932E-3},{"$f":"'Population 2016'!AK201/'Population 2016'!AK$14","v":1.9485189583368177E-2},{"$f":"'Population 2016'!AL201/'Population 2016'!AL$14","v":7.1706470341772908E-3},{"$f":"'Population 2016'!AM201/'Population 2016'!AM$14","v":7.8053134420794741E-3},{"$f":"'Population 2016'!AN201/'Population 2016'!AN$14","v":2.304181940599985E-2},{"$f":"'Population 2016'!AO201/'Population 2016'!AO$14","v":2.304181940599985E-2},{"$f":"'Population 2016'!AP201/'Population 2016'!AP$14","v":1.9414634146341463E-2},{"$f":"'Population 2016'!AQ201/'Population 2016'!AQ$14","v":8.0927712225644464E-3},{"$f":"'Population 2016'!AR201/'Population 2016'!AR$14","v":9.8420283954038061E-3},{"$f":"'Population 2016'!AS201/'Population 2016'!AS$14","v":1.6050377095994727E-2},{"$f":"'Population 2016'!AT201/'Population 2016'!AT$14","v":3.7833012908541609E-2},{"$f":"'Population 2016'!AU201/'Population 2016'!AU$14","v":3.7833012908541609E-2},{"$f":"'Population 2016'!AV201/'Population 2016'!AV$14","v":6.1079566512979404E-3},{"$f":"'Population 2016'!AW201/'Population 2016'!AW$14","v":1.1121573189909736E-2},{"$f":"'Population 2016'!AX201/'Population 2016'!AX$14","v":1.2970147290899526E-2},{"$f":"'Population 2016'!AY201/'Population 2016'!AY$14","v":1.0119693998281982E-2},{"$f":"'Population 2016'!AZ201/'Population 2016'!AZ$14","v":1.200572539534314E-2},{"$f":"'Population 2016'!BA201/'Population 2016'!BA$14","v":5.2672480787496765E-3},{"$f":"'Population 2016'!BB201/'Population 2016'!BB$14","v":1.088818309362116E-2},{"$f":"'Population 2016'!BC201/'Population 2016'!BC$14","v":3.4474113075090886E-3},199]
[null,"Male 45-49",{"$f":"'Population 2016'!C202/'Population 2016'!C$14","v":6.8896474962846892E-3},{"$f":"'Population 2016'!D202/'Population 2016'!D$14","v":1.4244612692994738E-2},{"$f":"'Population 2016'!E202/'Population 2016'!E$14","v":2.1389566772174837E-2},{"$f":"'Population 2016'!F202/'Population 2016'!F$14","v":1.3954213180710603E-2},{"$f":"'Population 2016'!G202/'Population 2016'!G$14","v":1.4655304188321614E-2},{"$f":"'Population 2016'!H202/'Population 2016'!H$14","v":8.7363822956686484E-3},{"$f":"'Population 2016'!I202/'Population 2016'!I$14","v":2.2069268506992749E-2},{"$f":"'Population 2016'!J202/'Population 2016'!J$14","v":1.5127311712677567E-2},{"$f":"'Population 2016'!K202/'Population 2016'!K$14","v":1.3161544863298709E-2},{"$f":"'Population 2016'!L202/'Population 2016'!L$14","v":1.0606860751244396E-2},{"$f":"'Population 2016'!M202/'Population 2016'!M$14","v":1.0606860751244396E-2},{"$f":"'Population 2016'!N202/'Population 2016'!N$14","v":7.0286631320210452E-3},{"$f":"'Population 2016'!O202/'Population 2016'!O$14","v":8.1533028666389701E-3},{"$f":"'Population 2016'!P202/'Population 2016'!P$14","v":1.0225794106391121E-2},{"$f":"'Population 2016'!Q202/'Population 2016'!Q$14","v":1.9040848183237254E-2},{"$f":"'Population 2016'!R202/'Population 2016'!R$14","v":7.8704111277401179E-3},{"$f":"'Population 2016'!S202/'Population 2016'!S$14","v":1.07457706281521E-2},{"$f":"'Population 2016'!T202/'Population 2016'!T$14","v":7.211626770055924E-3},{"$f":"'Population 2016'!U202/'Population 2016'!U$14","v":4.5129748025573525E-3},{"$f":"'Population 2016'!V202/'Population 2016'!V$14","v":1.2173093536480013E-2},{"$f":"'Population 2016'!W202/'Population 2016'!W$14","v":1.0744726646577701E-2},{"$f":"'Population 2016'!X202/'Population 2016'!X$14","v":1.0744726646577701E-2},{"$f":"'Population 2016'!Y202/'Population 2016'!Y$14","v":1.3585187994199006E-2},{"$f":"'Population 2016'!Z202/'Population 2016'!Z$14","v":5.1687527293648467E-3},{"$f":"'Population 2016'!AA202/'Population 2016'!AA$14","v":8.3823303679282438E-3},{"$f":"'Population 2016'!AB202/'Population 2016'!AB$14","v":1.5863972777982068E-2},{"$f":"'Population 2016'!AC202/'Population 2016'!AC$14","v":7.0645613827165585E-3},{"$f":"'Population 2016'!AD202/'Population 2016'!AD$14","v":1.8182464046118403E-2},{"$f":"'Population 2016'!AE202/'Population 2016'!AE$14","v":1.9457995328975554E-2},{"$f":"'Population 2016'!AF202/'Population 2016'!AF$14","v":1.1288392500997209E-2},{"$f":"'Population 2016'!AG202/'Population 2016'!AG$14","v":1.9457995328975554E-2},{"$f":"'Population 2016'!AH202/'Population 2016'!AH$14","v":1.0803824421282872E-2},{"$f":"'Population 2016'!AI202/'Population 2016'!AI$14","v":9.4358327783341887E-3},{"$f":"'Population 2016'!AJ202/'Population 2016'!AJ$14","v":8.5119456392091664E-3},{"$f":"'Population 2016'!AK202/'Population 2016'!AK$14","v":2.470354078509425E-2},{"$f":"'Population 2016'!AL202/'Population 2016'!AL$14","v":9.3613455437840422E-3},{"$f":"'Population 2016'!AM202/'Population 2016'!AM$14","v":9.0667322422288404E-3},{"$f":"'Population 2016'!AN202/'Population 2016'!AN$14","v":3.0373307398817984E-2},{"$f":"'Population 2016'!AO202/'Population 2016'!AO$14","v":3.0373307398817984E-2},{"$f":"'Population 2016'!AP202/'Population 2016'!AP$14","v":2.4260162601626015E-2},{"$f":"'Population 2016'!AQ202/'Population 2016'!AQ$14","v":1.0016679757481621E-2},{"$f":"'Population 2016'!AR202/'Population 2016'!AR$14","v":1.1417417708258415E-2},{"$f":"'Population 2016'!AS202/'Population 2016'!AS$14","v":2.2069268506992749E-2},{"$f":"'Population 2016'!AT202/'Population 2016'!AT$14","v":3.6940400988739359E-2},{"$f":"'Population 2016'!AU202/'Population 2016'!AU$14","v":3.6940400988739359E-2},{"$f":"'Population 2016'!AV202/'Population 2016'!AV$14","v":8.6282300268334996E-3},{"$f":"'Population 2016'!AW202/'Population 2016'!AW$14","v":1.2684311975903258E-2},{"$f":"'Population 2016'!AX202/'Population 2016'!AX$14","v":1.6175697001578115E-2},{"$f":"'Population 2016'!AY202/'Population 2016'!AY$14","v":1.2988460104701859E-2},{"$f":"'Population 2016'!AZ202/'Population 2016'!AZ$14","v":1.4983237144650429E-2},{"$f":"'Population 2016'!BA202/'Population 2016'!BA$14","v":7.4432259735774109E-3},{"$f":"'Population 2016'!BB202/'Population 2016'!BB$14","v":1.1301331543023386E-2},{"$f":"'Population 2016'!BC202/'Population 2016'!BC$14","v":4.5129748025573525E-3},200]
[null,"Male 50-54",{"$f":"'Population 2016'!C203/'Population 2016'!C$14","v":7.1134988589798597E-3},{"$f":"'Population 2016'!D203/'Population 2016'!D$14","v":1.52496101039008E-2},{"$f":"'Population 2016'!E203/'Population 2016'!E$14","v":2.3153405658781743E-2},{"$f":"'Population 2016'!F203/'Population 2016'!F$14","v":1.6546721822406074E-2},{"$f":"'Population 2016'!G203/'Population 2016'!G$14","v":1.6527820238459189E-2},{"$f":"'Population 2016'!H203/'Population 2016'!H$14","v":9.4073996105468131E-3},{"$f":"'Population 2016'!I203/'Population 2016'!I$14","v":2.5320348539210662E-2},{"$f":"'Population 2016'!J203/'Population 2016'!J$14","v":1.5620477083891719E-2},{"$f":"'Population 2016'!K203/'Population 2016'!K$14","v":1.2329316031193169E-2},{"$f":"'Population 2016'!L203/'Population 2016'!L$14","v":1.2573174979494152E-2},{"$f":"'Population 2016'!M203/'Population 2016'!M$14","v":1.2573174979494152E-2},{"$f":"'Population 2016'!N203/'Population 2016'!N$14","v":7.7701261502833808E-3},{"$f":"'Population 2016'!O203/'Population 2016'!O$14","v":8.5947237224761105E-3},{"$f":"'Population 2016'!P203/'Population 2016'!P$14","v":1.0960581706850363E-2},{"$f":"'Population 2016'!Q203/'Population 2016'!Q$14","v":2.0632737276478678E-2},{"$f":"'Population 2016'!R203/'Population 2016'!R$14","v":9.8424157056078883E-3},{"$f":"'Population 2016'!S203/'Population 2016'!S$14","v":1.1145467038519057E-2},{"$f":"'Population 2016'!T203/'Population 2016'!T$14","v":7.1438058286447401E-3},{"$f":"'Population 2016'!U203/'Population 2016'!U$14","v":3.510091513100163E-3},{"$f":"'Population 2016'!V203/'Population 2016'!V$14","v":1.1613523914238593E-2},{"$f":"'Population 2016'!W203/'Population 2016'!W$14","v":1.1015927679724494E-2},{"$f":"'Population 2016'!X203/'Population 2016'!X$14","v":1.1015927679724494E-2},{"$f":"'Population 2016'!Y203/'Population 2016'!Y$14","v":1.3528817919534281E-2},{"$f":"'Population 2016'!Z203/'Population 2016'!Z$14","v":5.0370500447095958E-3},{"$f":"'Population 2016'!AA203/'Population 2016'!AA$14","v":8.7602359866256457E-3},{"$f":"'Population 2016'!AB203/'Population 2016'!AB$14","v":1.6757389462344428E-2},{"$f":"'Population 2016'!AC203/'Population 2016'!AC$14","v":7.5064185224451834E-3},{"$f":"'Population 2016'!AD203/'Population 2016'!AD$14","v":1.9791127485308892E-2},{"$f":"'Population 2016'!AE203/'Population 2016'!AE$14","v":2.0971241414574147E-2},{"$f":"'Population 2016'!AF203/'Population 2016'!AF$14","v":1.2863980853609892E-2},{"$f":"'Population 2016'!AG203/'Population 2016'!AG$14","v":2.0971241414574147E-2},{"$f":"'Population 2016'!AH203/'Population 2016'!AH$14","v":1.1064214580428602E-2},{"$f":"'Population 2016'!AI203/'Population 2016'!AI$14","v":9.5561532034889526E-3},{"$f":"'Population 2016'!AJ203/'Population 2016'!AJ$14","v":8.7649546391007343E-3},{"$f":"'Population 2016'!AK203/'Population 2016'!AK$14","v":2.4987874023649836E-2},{"$f":"'Population 2016'!AL203/'Population 2016'!AL$14","v":1.0618303705033819E-2},{"$f":"'Population 2016'!AM203/'Population 2016'!AM$14","v":9.2443327231162969E-3},{"$f":"'Population 2016'!AN203/'Population 2016'!AN$14","v":3.3066507069649136E-2},{"$f":"'Population 2016'!AO203/'Population 2016'!AO$14","v":3.3066507069649136E-2},{"$f":"'Population 2016'!AP203/'Population 2016'!AP$14","v":2.7447154471544714E-2},{"$f":"'Population 2016'!AQ203/'Population 2016'!AQ$14","v":1.1084537247045742E-2},{"$f":"'Population 2016'!AR203/'Population 2016'!AR$14","v":1.2108548850965821E-2},{"$f":"'Population 2016'!AS203/'Population 2016'!AS$14","v":2.5320348539210662E-2},{"$f":"'Population 2016'!AT203/'Population 2016'!AT$14","v":4.0648173578687177E-2},{"$f":"'Population 2016'!AU203/'Population 2016'!AU$14","v":4.0648173578687177E-2},{"$f":"'Population 2016'!AV203/'Population 2016'!AV$14","v":8.8357819518776037E-3},{"$f":"'Population 2016'!AW203/'Population 2016'!AW$14","v":1.3034326025763005E-2},{"$f":"'Population 2016'!AX203/'Population 2016'!AX$14","v":1.7375723303524462E-2},{"$f":"'Population 2016'!AY203/'Population 2016'!AY$14","v":1.423037650529182E-2},{"$f":"'Population 2016'!AZ203/'Population 2016'!AZ$14","v":1.7088161903158153E-2},{"$f":"'Population 2016'!BA203/'Population 2016'!BA$14","v":8.134012606856058E-3},{"$f":"'Population 2016'!BB203/'Population 2016'!BB$14","v":1.1111971837047365E-2},{"$f":"'Population 2016'!BC203/'Population 2016'!BC$14","v":3.510091513100163E-3},201]
[null,"Male 55-59",{"$f":"'Population 2016'!C204/'Population 2016'!C$14","v":6.4543809577107467E-3},{"$f":"'Population 2016'!D204/'Population 2016'!D$14","v":1.3800330300978341E-2},{"$f":"'Population 2016'!E204/'Population 2016'!E$14","v":2.093652596225868E-2},{"$f":"'Population 2016'!F204/'Population 2016'!F$14","v":1.4520881736272454E-2},{"$f":"'Population 2016'!G204/'Population 2016'!G$14","v":1.5343167227147661E-2},{"$f":"'Population 2016'!H204/'Population 2016'!H$14","v":9.0126835429714218E-3},{"$f":"'Population 2016'!I204/'Population 2016'!I$14","v":2.334334041151058E-2},{"$f":"'Population 2016'!J204/'Population 2016'!J$14","v":1.3787188421334763E-2},{"$f":"'Population 2016'!K204/'Population 2016'!K$14","v":1.032580217612428E-2},{"$f":"'Population 2016'!L204/'Population 2016'!L$14","v":1.1595635906021416E-2},{"$f":"'Population 2016'!M204/'Population 2016'!M$14","v":1.1595635906021416E-2},{"$f":"'Population 2016'!N204/'Population 2016'!N$14","v":8.4100188920714237E-3},{"$f":"'Population 2016'!O204/'Population 2016'!O$14","v":8.1662858329871208E-3},{"$f":"'Population 2016'!P204/'Population 2016'!P$14","v":1.1710677382319174E-2},{"$f":"'Population 2016'!Q204/'Population 2016'!Q$14","v":1.9303587159791663E-2},{"$f":"'Population 2016'!R204/'Population 2016'!R$14","v":7.3950171670041373E-3},{"$f":"'Population 2016'!S204/'Population 2016'!S$14","v":1.0239413658838905E-2},{"$f":"'Population 2016'!T204/'Population 2016'!T$14","v":6.572979571767272E-3},{"$f":"'Population 2016'!U204/'Population 2016'!U$14","v":3.2593706907358658E-3},{"$f":"'Population 2016'!V204/'Population 2016'!V$14","v":1.0749626953585173E-2},{"$f":"'Population 2016'!W204/'Population 2016'!W$14","v":1.0284115368058545E-2},{"$f":"'Population 2016'!X204/'Population 2016'!X$14","v":1.0284115368058545E-2},{"$f":"'Population 2016'!Y204/'Population 2016'!Y$14","v":1.2201558888792092E-2},{"$f":"'Population 2016'!Z204/'Population 2016'!Z$14","v":4.3716049011883282E-3},{"$f":"'Population 2016'!AA204/'Population 2016'!AA$14","v":7.7041024032461509E-3},{"$f":"'Population 2016'!AB204/'Population 2016'!AB$14","v":1.5061192568844877E-2},{"$f":"'Population 2016'!AC204/'Population 2016'!AC$14","v":6.8970936621197037E-3},{"$f":"'Population 2016'!AD204/'Population 2016'!AD$14","v":1.8760973926458199E-2},{"$f":"'Population 2016'!AE204/'Population 2016'!AE$14","v":1.9996959688229846E-2},{"$f":"'Population 2016'!AF204/'Population 2016'!AF$14","v":1.1288392500997209E-2},{"$f":"'Population 2016'!AG204/'Population 2016'!AG$14","v":1.9996959688229846E-2},{"$f":"'Population 2016'!AH204/'Population 2016'!AH$14","v":9.1870382513143788E-3},{"$f":"'Population 2016'!AI204/'Population 2016'!AI$14","v":8.7054369580285076E-3},{"$f":"'Population 2016'!AJ204/'Population 2016'!AJ$14","v":8.3854411392633825E-3},{"$f":"'Population 2016'!AK204/'Population 2016'!AK$14","v":2.1943835822642963E-2},{"$f":"'Population 2016'!AL204/'Population 2016'!AL$14","v":9.9359549889267967E-3},{"$f":"'Population 2016'!AM204/'Population 2016'!AM$14","v":7.236081131542756E-3},{"$f":"'Population 2016'!AN204/'Population 2016'!AN$14","v":2.9176329767337472E-2},{"$f":"'Population 2016'!AO204/'Population 2016'!AO$14","v":2.9176329767337472E-2},{"$f":"'Population 2016'!AP204/'Population 2016'!AP$14","v":2.5170731707317075E-2},{"$f":"'Population 2016'!AQ204/'Population 2016'!AQ$14","v":1.0810953923273116E-2},{"$f":"'Population 2016'!AR204/'Population 2016'!AR$14","v":1.1026865574133127E-2},{"$f":"'Population 2016'!AS204/'Population 2016'!AS$14","v":2.334334041151058E-2},{"$f":"'Population 2016'!AT204/'Population 2016'!AT$14","v":3.6391101345784126E-2},{"$f":"'Population 2016'!AU204/'Population 2016'!AU$14","v":3.6391101345784126E-2},{"$f":"'Population 2016'!AV204/'Population 2016'!AV$14","v":8.8357819518776037E-3},{"$f":"'Population 2016'!AW204/'Population 2016'!AW$14","v":1.1299045102514678E-2},{"$f":"'Population 2016'!AX204/'Population 2016'!AX$14","v":1.563321935823251E-2},{"$f":"'Population 2016'!AY204/'Population 2016'!AY$14","v":1.3298432713658244E-2},{"$f":"'Population 2016'!AZ204/'Population 2016'!AZ$14","v":1.5978292485035898E-2},{"$f":"'Population 2016'!BA204/'Population 2016'!BA$14","v":8.3930575943355502E-3},{"$f":"'Population 2016'!BB204/'Population 2016'!BB$14","v":9.450770780075916E-3},{"$f":"'Population 2016'!BC204/'Population 2016'!BC$14","v":3.2593706907358658E-3},202]
[null,"Male 60-64",{"$f":"'Population 2016'!C205/'Population 2016'!C$14","v":6.2118753147909784E-3},{"$f":"'Population 2016'!D205/'Population 2016'!D$14","v":1.2461355091935815E-2},{"$f":"'Population 2016'!E205/'Population 2016'!E$14","v":1.8532389397636941E-2},{"$f":"'Population 2016'!F205/'Population 2016'!F$14","v":1.4563381877939593E-2},{"$f":"'Population 2016'!G205/'Population 2016'!G$14","v":1.5056557627636809E-2},{"$f":"'Population 2016'!H205/'Population 2016'!H$14","v":8.2144799396522989E-3},{"$f":"'Population 2016'!I205/'Population 2016'!I$14","v":2.2347514095335724E-2},{"$f":"'Population 2016'!J205/'Population 2016'!J$14","v":1.0913964084695792E-2},{"$f":"'Population 2016'!K205/'Population 2016'!K$14","v":7.9215855500416113E-3},{"$f":"'Population 2016'!L205/'Population 2016'!L$14","v":1.1752941044281396E-2},{"$f":"'Population 2016'!M205/'Population 2016'!M$14","v":1.1752941044281396E-2},{"$f":"'Population 2016'!N205/'Population 2016'!N$14","v":6.3278282243484267E-3},{"$f":"'Population 2016'!O205/'Population 2016'!O$14","v":7.5820523473203155E-3},{"$f":"'Population 2016'!P205/'Population 2016'!P$14","v":1.0531955606582473E-2},{"$f":"'Population 2016'!Q205/'Population 2016'!Q$14","v":1.4790658856621794E-2},{"$f":"'Population 2016'!R205/'Population 2016'!R$14","v":7.6591249229685712E-3},{"$f":"'Population 2016'!S205/'Population 2016'!S$14","v":8.6855377264010714E-3},{"$f":"'Population 2016'!T205/'Population 2016'!T$14","v":5.713914313892272E-3},{"$f":"'Population 2016'!U205/'Population 2016'!U$14","v":2.8206092515983454E-3},{"$f":"'Population 2016'!V205/'Population 2016'!V$14","v":8.334642268122203E-3},{"$f":"'Population 2016'!W205/'Population 2016'!W$14","v":8.7946620749031427E-3},{"$f":"'Population 2016'!X205/'Population 2016'!X$14","v":8.7946620749031427E-3},{"$f":"'Population 2016'!Y205/'Population 2016'!Y$14","v":9.5675390362767055E-3},{"$f":"'Population 2016'!Z205/'Population 2016'!Z$14","v":3.7038491842520558E-3},{"$f":"'Population 2016'!AA205/'Population 2016'!AA$14","v":6.5436902275108613E-3},{"$f":"'Population 2016'!AB205/'Population 2016'!AB$14","v":1.3815588437893298E-2},{"$f":"'Population 2016'!AC205/'Population 2016'!AC$14","v":5.9232044561872239E-3},{"$f":"'Population 2016'!AD205/'Population 2016'!AD$14","v":1.7431416131291295E-2},{"$f":"'Population 2016'!AE205/'Population 2016'!AE$14","v":1.8290239217257916E-2},{"$f":"'Population 2016'!AF205/'Population 2016'!AF$14","v":9.4535301156761075E-3},{"$f":"'Population 2016'!AG205/'Population 2016'!AG$14","v":1.8290239217257916E-2},{"$f":"'Population 2016'!AH205/'Population 2016'!AH$14","v":7.6838768780640226E-3},{"$f":"'Population 2016'!AI205/'Population 2016'!AI$14","v":7.0616226988718693E-3},{"$f":"'Population 2016'!AJ205/'Population 2016'!AJ$14","v":7.0842519969638923E-3},{"$f":"'Population 2016'!AK205/'Population 2016'!AK$14","v":2.1207914499322619E-2},{"$f":"'Population 2016'!AL205/'Population 2016'!AL$14","v":9.1817800921769315E-3},{"$f":"'Population 2016'!AM205/'Population 2016'!AM$14","v":6.0247547747206212E-3},{"$f":"'Population 2016'!AN205/'Population 2016'!AN$14","v":2.7006807810279046E-2},{"$f":"'Population 2016'!AO205/'Population 2016'!AO$14","v":2.7006807810279046E-2},{"$f":"'Population 2016'!AP205/'Population 2016'!AP$14","v":2.3219512195121951E-2},{"$f":"'Population 2016'!AQ205/'Population 2016'!AQ$14","v":8.8429190458119682E-3},{"$f":"'Population 2016'!AR205/'Population 2016'!AR$14","v":9.6907360059554186E-3},{"$f":"'Population 2016'!AS205/'Population 2016'!AS$14","v":2.2347514095335724E-2},{"$f":"'Population 2016'!AT205/'Population 2016'!AT$14","v":3.3301290854160948E-2},{"$f":"'Population 2016'!AU205/'Population 2016'!AU$14","v":3.3301290854160948E-2},{"$f":"'Population 2016'!AV205/'Population 2016'!AV$14","v":7.7387217766444784E-3},{"$f":"'Population 2016'!AW205/'Population 2016'!AW$14","v":9.4799579983140172E-3},{"$f":"'Population 2016'!AX205/'Population 2016'!AX$14","v":1.2509863229879011E-2},{"$f":"'Population 2016'!AY205/'Population 2016'!AY$14","v":1.1823530365159889E-2},{"$f":"'Population 2016'!AZ205/'Population 2016'!AZ$14","v":1.451632656185417E-2},{"$f":"'Population 2016'!BA205/'Population 2016'!BA$14","v":6.838787669458596E-3},{"$f":"'Population 2016'!BB205/'Population 2016'!BB$14","v":6.8513784525869115E-3},{"$f":"'Population 2016'!BC205/'Population 2016'!BC$14","v":2.8206092515983454E-3},203]
[null,"Male 65-69",0,0,0,0,0,0,0,0,0,0,0,0,0,0,0,0,0,0,0,0,0,0,0,0,0,0,0,0,0,0,0,0,0,0,0,0,0,0,0,0,0,0,0,0,0,0,0,0,0,0,0,0,0,204]
[null,"Male 70-74",0,0,0,0,0,0,0,0,0,0,0,0,0,0,0,0,0,0,0,0,0,0,0,0,0,0,0,0,0,0,0,0,0,0,0,0,0,0,0,0,0,0,0,0,0,0,0,0,0,0,0,0,0,205]
[null,"Male 75-79",0,0,0,0,0,0,0,0,0,0,0,0,0,0,0,0,0,0,0,0,0,0,0,0,0,0,0,0,0,0,0,0,0,0,0,0,0,0,0,0,0,0,0,0,0,0,0,0,0,0,0,0,0,206]
[null,"Male 80-84",0,0,0,0,0,0,0,0,0,0,0,0,0,0,0,0,0,0,0,0,0,0,0,0,0,0,0,0,0,0,0,0,0,0,0,0,0,0,0,0,0,0,0,0,0,0,0,0,0,0,0,0,0,207]
[null,"Male 85-89",0,0,0,0,0,0,0,0,0,0,0,0,0,0,0,0,0,0,0,0,0,0,0,0,0,0,0,0,0,0,0,0,0,0,0,0,0,0,0,0,0,0,0,0,0,0,0,0,0,0,0,0,0,208]
[null,"Male 90+",0,0,0,0,0,0,0,0,0,0,0,0,0,0,0,0,0,0,0,0,0,0,0,0,0,0,0,0,0,0,0,0,0,0,0,0,0,0,0,0,0,0,0,0,0,0,0,0,0,0,0,0,0,209]
["SIMD Q5 (least deprived)","Female 0-4",{"$f":"'Population 2016'!C212/'Population 2016'!C$14","v":0},{"$f":"'Population 2016'!D212/'Population 2016'!D$14","v":0},{"$f":"'Population 2016'!E212/'Population 2016'!E$14","v":0},{"$f":"'Population 2016'!F212/'Population 2016'!F$14","v":0},{"$f":"'Population 2016'!G212/'Population 2016'!G$14","v":0},{"$f":"'Population 2016'!H212/'Population 2016'!H$14","v":0},{"$f":"'Population 2016'!I212/'Population 2016'!I$14","v":0},{"$f":"'Population 2016'!J212/'Population 2016'!J$14","v":0},{"$f":"'Population 2016'!K212/'Population 2016'!K$14","v":0},{"$f":"'Population 2016'!L212/'Population 2016'!L$14","v":0},{"$f":"'Population 2016'!M212/'Population 2016'!M$14","v":0},{"$f":"'Population 2016'!N212/'Population 2016'!N$14","v":0},{"$f":"'Population 2016'!O212/'Population 2016'!O$14","v":0},{"$f":"'Population 2016'!P212/'Population 2016'!P$14","v":0},{"$f":"'Population 2016'!Q212/'Population 2016'!Q$14","v":0},{"$f":"'Population 2016'!R212/'Population 2016'!R$14","v":0},{"$f":"'Population 2016'!S212/'Population 2016'!S$14","v":0},{"$f":"'Population 2016'!T212/'Population 2016'!T$14","v":0},{"$f":"'Population 2016'!U212/'Population 2016'!U$14","v":0},{"$f":"'Population 2016'!V212/'Population 2016'!V$14","v":0},{"$f":"'Population 2016'!W212/'Population 2016'!W$14","v":0},{"$f":"'Population 2016'!X212/'Population 2016'!X$14","v":0},{"$f":"'Population 2016'!Y212/'Population 2016'!Y$14","v":0},{"$f":"'Population 2016'!Z212/'Population 2016'!Z$14","v":0},{"$f":"'Population 2016'!AA212/'Population 2016'!AA$14","v":0},{"$f":"'Population 2016'!AB212/'Population 2016'!AB$14","v":0},{"$f":"'Population 2016'!AC212/'Population 2016'!AC$14","v":0},{"$f":"'Population 2016'!AD212/'Population 2016'!AD$14","v":0},{"$f":"'Population 2016'!AE212/'Population 2016'!AE$14","v":0},{"$f":"'Population 2016'!AF212/'Population 2016'!AF$14","v":0},{"$f":"'Population 2016'!AG212/'Population 2016'!AG$14","v":0},{"$f":"'Population 2016'!AH212/'Population 2016'!AH$14","v":0},{"$f":"'Population 2016'!AI212/'Population 2016'!AI$14","v":0},{"$f":"'Population 2016'!AJ212/'Population 2016'!AJ$14","v":0},{"$f":"'Population 2016'!AK212/'Population 2016'!AK$14","v":0},{"$f":"'Population 2016'!AL212/'Population 2016'!AL$14","v":0},{"$f":"'Population 2016'!AM212/'Population 2016'!AM$14","v":0},{"$f":"'Population 2016'!AN212/'Population 2016'!AN$14","v":0},{"$f":"'Population 2016'!AO212/'Population 2016'!AO$14","v":0},{"$f":"'Population 2016'!AP212/'Population 2016'!AP$14","v":0},{"$f":"'Population 2016'!AQ212/'Population 2016'!AQ$14","v":0},{"$f":"'Population 2016'!AR212/'Population 2016'!AR$14","v":0},{"$f":"'Population 2016'!AS212/'Population 2016'!AS$14","v":0},{"$f":"'Population 2016'!AT212/'Population 2016'!AT$14","v":0},{"$f":"'Population 2016'!AU212/'Population 2016'!AU$14","v":0},{"$f":"'Population 2016'!AV212/'Population 2016'!AV$14","v":0},{"$f":"'Population 2016'!AW212/'Population 2016'!AW$14","v":0},{"$f":"'Population 2016'!AX212/'Population 2016'!AX$14","v":0},{"$f":"'Population 2016'!AY212/'Population 2016'!AY$14","v":0},{"$f":"'Population 2016'!AZ212/'Population 2016'!AZ$14","v":0},{"$f":"'Population 2016'!BA212/'Population 2016'!BA$14","v":0},{"$f":"'Population 2016'!BB212/'Population 2016'!BB$14","v":0},{"$f":"'Population 2016'!BC212/'Population 2016'!BC$14","v":0},210]
[null,"Female 5-9",{"$f":"'Population 2016'!C213/'Population 2016'!C$14","v":0},{"$f":"'Population 2016'!D213/'Population 2016'!D$14","v":0},{"$f":"'Population 2016'!E213/'Population 2016'!E$14","v":0},{"$f":"'Population 2016'!F213/'Population 2016'!F$14","v":0},{"$f":"'Population 2016'!G213/'Population 2016'!G$14","v":0},{"$f":"'Population 2016'!H213/'Population 2016'!H$14","v":0},{"$f":"'Population 2016'!I213/'Population 2016'!I$14","v":0},{"$f":"'Population 2016'!J213/'Population 2016'!J$14","v":0},{"$f":"'Population 2016'!K213/'Population 2016'!K$14","v":0},{"$f":"'Population 2016'!L213/'Population 2016'!L$14","v":0},{"$f":"'Population 2016'!M213/'Population 2016'!M$14","v":0},{"$f":"'Population 2016'!N213/'Population 2016'!N$14","v":0},{"$f":"'Population 2016'!O213/'Population 2016'!O$14","v":0},{"$f":"'Population 2016'!P213/'Population 2016'!P$14","v":0},{"$f":"'Population 2016'!Q213/'Population 2016'!Q$14","v":0},{"$f":"'Population 2016'!R213/'Population 2016'!R$14","v":0},{"$f":"'Population 2016'!S213/'Population 2016'!S$14","v":0},{"$f":"'Population 2016'!T213/'Population 2016'!T$14","v":0},{"$f":"'Population 2016'!U213/'Population 2016'!U$14","v":0},{"$f":"'Population 2016'!V213/'Population 2016'!V$14","v":0},{"$f":"'Population 2016'!W213/'Population 2016'!W$14","v":0},{"$f":"'Population 2016'!X213/'Population 2016'!X$14","v":0},{"$f":"'Population 2016'!Y213/'Population 2016'!Y$14","v":0},{"$f":"'Population 2016'!Z213/'Population 2016'!Z$14","v":0},{"$f":"'Population 2016'!AA213/'Population 2016'!AA$14","v":0},{"$f":"'Population 2016'!AB213/'Population 2016'!AB$14","v":0},{"$f":"'Population 2016'!AC213/'Population 2016'!AC$14","v":0},{"$f":"'Population 2016'!AD213/'Population 2016'!AD$14","v":0},{"$f":"'Population 2016'!AE213/'Population 2016'!AE$14","v":0},{"$f":"'Population 2016'!AF213/'Population 2016'!AF$14","v":0},{"$f":"'Population 2016'!AG213/'Population 2016'!AG$14","v":0},{"$f":"'Population 2016'!AH213/'Population 2016'!AH$14","v":0},{"$f":"'Population 2016'!AI213/'Population 2016'!AI$14","v":0},{"$f":"'Population 2016'!AJ213/'Population 2016'!AJ$14","v":0},{"$f":"'Population 2016'!AK213/'Population 2016'!AK$14","v":0},{"$f":"'Population 2016'!AL213/'Population 2016'!AL$14","v":0},{"$f":"'Population 2016'!AM213/'Population 2016'!AM$14","v":0},{"$f":"'Population 2016'!AN213/'Population 2016'!AN$14","v":0},{"$f":"'Population 2016'!AO213/'Population 2016'!AO$14","v":0},{"$f":"'Population 2016'!AP213/'Population 2016'!AP$14","v":0},{"$f":"'Population 2016'!AQ213/'Population 2016'!AQ$14","v":0},{"$f":"'Population 2016'!AR213/'Population 2016'!AR$14","v":0},{"$f":"'Population 2016'!AS213/'Population 2016'!AS$14","v":0},{"$f":"'Population 2016'!AT213/'Population 2016'!AT$14","v":0},{"$f":"'Population 2016'!AU213/'Population 2016'!AU$14","v":0},{"$f":"'Population 2016'!AV213/'Population 2016'!AV$14","v":0},{"$f":"'Population 2016'!AW213/'Population 2016'!AW$14","v":0},{"$f":"'Population 2016'!AX213/'Population 2016'!AX$14","v":0},{"$f":"'Population 2016'!AY213/'Population 2016'!AY$14","v":0},{"$f":"'Population 2016'!AZ213/'Population 2016'!AZ$14","v":0},{"$f":"'Population 2016'!BA213/'Population 2016'!BA$14","v":0},{"$f":"'Population 2016'!BB213/'Population 2016'!BB$14","v":0},{"$f":"'Population 2016'!BC213/'Population 2016'!BC$14","v":0},211]
[null,"Female 10-15",{"$f":"'Population 2016'!C214/'Population 2016'!C$14","v":0},{"$f":"'Population 2016'!D214/'Population 2016'!D$14","v":0},{"$f":"'Population 2016'!E214/'Population 2016'!E$14","v":0},{"$f":"'Population 2016'!F214/'Population 2016'!F$14","v":0},{"$f":"'Population 2016'!G214/'Population 2016'!G$14","v":0},{"$f":"'Population 2016'!H214/'Population 2016'!H$14","v":0},{"$f":"'Population 2016'!I214/'Population 2016'!I$14","v":0},{"$f":"'Population 2016'!J214/'Population 2016'!J$14","v":0},{"$f":"'Population 2016'!K214/'Population 2016'!K$14","v":0},{"$f":"'Population 2016'!L214/'Population 2016'!L$14","v":0},{"$f":"'Population 2016'!M214/'Population 2016'!M$14","v":0},{"$f":"'Population 2016'!N214/'Population 2016'!N$14","v":0},{"$f":"'Population 2016'!O214/'Population 2016'!O$14","v":0},{"$f":"'Population 2016'!P214/'Population 2016'!P$14","v":0},{"$f":"'Population 2016'!Q214/'Population 2016'!Q$14","v":0},{"$f":"'Population 2016'!R214/'Population 2016'!R$14","v":0},{"$f":"'Population 2016'!S214/'Population 2016'!S$14","v":0},{"$f":"'Population 2016'!T214/'Population 2016'!T$14","v":0},{"$f":"'Population 2016'!U214/'Population 2016'!U$14","v":0},{"$f":"'Population 2016'!V214/'Population 2016'!V$14","v":0},{"$f":"'Population 2016'!W214/'Population 2016'!W$14","v":0},{"$f":"'Population 2016'!X214/'Population 2016'!X$14","v":0},{"$f":"'Population 2016'!Y214/'Population 2016'!Y$14","v":0},{"$f":"'Population 2016'!Z214/'Population 2016'!Z$14","v":0},{"$f":"'Population 2016'!AA214/'Population 2016'!AA$14","v":0},{"$f":"'Population 2016'!AB214/'Population 2016'!AB$14","v":0},{"$f":"'Population 2016'!AC214/'Population 2016'!AC$14","v":0},{"$f":"'Population 2016'!AD214/'Population 2016'!AD$14","v":0},{"$f":"'Population 2016'!AE214/'Population 2016'!AE$14","v":0},{"$f":"'Population 2016'!AF214/'Population 2016'!AF$14","v":0},{"$f":"'Population 2016'!AG214/'Population 2016'!AG$14","v":0},{"$f":"'Population 2016'!AH214/'Population 2016'!AH$14","v":0},{"$f":"'Population 2016'!AI214/'Population 2016'!AI$14","v":0},{"$f":"'Population 2016'!AJ214/'Population 2016'!AJ$14","v":0},{"$f":"'Population 2016'!AK214/'Population 2016'!AK$14","v":0},{"$f":"'Population 2016'!AL214/'Population 2016'!AL$14","v":0},{"$f":"'Population 2016'!AM214/'Population 2016'!AM$14","v":0},{"$f":"'Population 2016'!AN214/'Population 2016'!AN$14","v":0},{"$f":"'Population 2016'!AO214/'Population 2016'!AO$14","v":0},{"$f":"'Population 2016'!AP214/'Population 2016'!AP$14","v":0},{"$f":"'Population 2016'!AQ214/'Population 2016'!AQ$14","v":0},{"$f":"'Population 2016'!AR214/'Population 2016'!AR$14","v":0},{"$f":"'Population 2016'!AS214/'Population 2016'!AS$14","v":0},{"$f":"'Population 2016'!AT214/'Population 2016'!AT$14","v":0},{"$f":"'Population 2016'!AU214/'Population 2016'!AU$14","v":0},{"$f":"'Population 2016'!AV214/'Population 2016'!AV$14","v":0},{"$f":"'Population 2016'!AW214/'Population 2016'!AW$14","v":0},{"$f":"'Population 2016'!AX214/'Population 2016'!AX$14","v":0},{"$f":"'Population 2016'!AY214/'Population 2016'!AY$14","v":0},{"$f":"'Population 2016'!AZ214/'Population 2016'!AZ$14","v":0},{"$f":"'Population 2016'!BA214/'Population 2016'!BA$14","v":0},{"$f":"'Population 2016'!BB214/'Population 2016'!BB$14","v":0},{"$f":"'Population 2016'!BC214/'Population 2016'!BC$14","v":0},212]
[null,"Female 16-19",{"$f":"'Population 2016'!C215/'Population 2016'!C$14","v":1.2672474365909925E-2},{"$f":"'Population 2016'!D215/'Population 2016'!D$14","v":1.1989496551449434E-2},{"$f":"'Population 2016'!E215/'Population 2016'!E$14","v":1.1326020247903931E-2},{"$f":"'Population 2016'!F215/'Population 2016'!F$14","v":6.5025216750722505E-3},{"$f":"'Population 2016'!G215/'Population 2016'!G$14","v":2.5603790889636197E-3},{"$f":"'Population 2016'!H215/'Population 2016'!H$14","v":4.6576495973896107E-3},{"$f":"'Population 2016'!I215/'Population 2016'!I$14","v":3.0753459764223477E-3},{"$f":"'Population 2016'!J215/'Population 2016'!J$14","v":1.3261860091128385E-2},{"$f":"'Population 2016'!K215/'Population 2016'!K$14","v":5.0241962827112163E-3},{"$f":"'Population 2016'!L215/'Population 2016'!L$14","v":2.9101450578096384E-3},{"$f":"'Population 2016'!M215/'Population 2016'!M$14","v":2.9101450578096384E-3},{"$f":"'Population 2016'!N215/'Population 2016'!N$14","v":6.4192414731752898E-3},{"$f":"'Population 2016'!O215/'Population 2016'!O$14","v":4.1285832987120897E-3},{"$f":"'Population 2016'!P215/'Population 2016'!P$14","v":2.022196708763873E-2},{"$f":"'Population 2016'!Q215/'Population 2016'!Q$14","v":5.5175185076426127E-3},{"$f":"'Population 2016'!R215/'Population 2016'!R$14","v":2.3047803503829564E-2},{"$f":"'Population 2016'!S215/'Population 2016'!S$14","v":9.6207824169507201E-3},{"$f":"'Population 2016'!T215/'Population 2016'!T$14","v":1.3018794878388574E-2},{"$f":"'Population 2016'!U215/'Population 2016'!U$14","v":0},{"$f":"'Population 2016'!V215/'Population 2016'!V$14","v":6.6461163904814264E-3},{"$f":"'Population 2016'!W215/'Population 2016'!W$14","v":9.8923805424020669E-3},{"$f":"'Population 2016'!X215/'Population 2016'!X$14","v":9.8923805424020669E-3},{"$f":"'Population 2016'!Y215/'Population 2016'!Y$14","v":9.8083929916623538E-3},{"$f":"'Population 2016'!Z215/'Population 2016'!Z$14","v":3.4427543883565584E-3},{"$f":"'Population 2016'!AA215/'Population 2016'!AA$14","v":5.7887132188549038E-3},{"$f":"'Population 2016'!AB215/'Population 2016'!AB$14","v":1.1210437178564214E-2},{"$f":"'Population 2016'!AC215/'Population 2016'!AC$14","v":6.6536213606365833E-3},{"$f":"'Population 2016'!AD215/'Population 2016'!AD$14","v":2.9179226420647728E-3},{"$f":"'Population 2016'!AE215/'Population 2016'!AE$14","v":3.0472215696300494E-3},{"$f":"'Population 2016'!AF215/'Population 2016'!AF$14","v":3.8891104906262465E-3},{"$f":"'Population 2016'!AG215/'Population 2016'!AG$14","v":3.0472215696300494E-3},{"$f":"'Population 2016'!AH215/'Population 2016'!AH$14","v":4.1993831120411508E-3},{"$f":"'Population 2016'!AI215/'Population 2016'!AI$14","v":1.0271297138915862E-2},{"$f":"'Population 2016'!AJ215/'Population 2016'!AJ$14","v":5.1143962120938306E-3},{"$f":"'Population 2016'!AK215/'Population 2016'!AK$14","v":6.9578016023014271E-3},{"$f":"'Population 2016'!AL215/'Population 2016'!AL$14","v":3.0645837074280242E-3},{"$f":"'Population 2016'!AM215/'Population 2016'!AM$14","v":3.5838866271391749E-3},{"$f":"'Population 2016'!AN215/'Population 2016'!AN$14","v":1.9450886511558315E-3},{"$f":"'Population 2016'!AO215/'Population 2016'!AO$14","v":1.9450886511558315E-3},{"$f":"'Population 2016'!AP215/'Population 2016'!AP$14","v":5.4634146341463411E-3},{"$f":"'Population 2016'!AQ215/'Population 2016'!AQ$14","v":6.6013008445781965E-3},{"$f":"'Population 2016'!AR215/'Population 2016'!AR$14","v":7.2402577586777508E-3},{"$f":"'Population 2016'!AS215/'Population 2016'!AS$14","v":3.0753459764223477E-3},{"$f":"'Population 2016'!AT215/'Population 2016'!AT$14","v":0},{"$f":"'Population 2016'!AU215/'Population 2016'!AU$14","v":0},{"$f":"'Population 2016'!AV215/'Population 2016'!AV$14","v":7.2346671015373664E-3},{"$f":"'Population 2016'!AW215/'Population 2016'!AW$14","v":4.8656882705855097E-3},{"$f":"'Population 2016'!AX215/'Population 2016'!AX$14","v":1.7655181483429774E-2},{"$f":"'Population 2016'!AY215/'Population 2016'!AY$14","v":7.8870808278902419E-3},{"$f":"'Population 2016'!AZ215/'Population 2016'!AZ$14","v":6.1042817996723973E-3},{"$f":"'Population 2016'!BA215/'Population 2016'!BA$14","v":1.7615059148605474E-3},{"$f":"'Population 2016'!BB215/'Population 2016'!BB$14","v":7.0063091211127462E-3},{"$f":"'Population 2016'!BC215/'Population 2016'!BC$14","v":0},213]
[null,"Female 20-24",{"$f":"'Population 2016'!C216/'Population 2016'!C$14","v":2.2335391522251447E-2},{"$f":"'Population 2016'!D216/'Population 2016'!D$14","v":1.7302501156666227E-2},{"$f":"'Population 2016'!E216/'Population 2016'!E$14","v":1.2413318191702709E-2},{"$f":"'Population 2016'!F216/'Population 2016'!F$14","v":6.0066866889556302E-3},{"$f":"'Population 2016'!G216/'Population 2016'!G$14","v":3.5157444206664629E-3},{"$f":"'Population 2016'!H216/'Population 2016'!H$14","v":4.5392347771169936E-3},{"$f":"'Population 2016'!I216/'Population 2016'!I$14","v":2.9728344438749361E-3},{"$f":"'Population 2016'!J216/'Population 2016'!J$14","v":1.3819351380326991E-2},{"$f":"'Population 2016'!K216/'Population 2016'!K$14","v":4.5002003513855068E-3},{"$f":"'Population 2016'!L216/'Population 2016'!L$14","v":3.4607130417195699E-3},{"$f":"'Population 2016'!M216/'Population 2016'!M$14","v":3.4607130417195699E-3},{"$f":"'Population 2016'!N216/'Population 2016'!N$14","v":7.8818534544051033E-3},{"$f":"'Population 2016'!O216/'Population 2016'!O$14","v":4.1285832987120897E-3},{"$f":"'Population 2016'!P216/'Population 2016'!P$14","v":2.1278224263298891E-2},{"$f":"'Population 2016'!Q216/'Population 2016'!Q$14","v":5.5329737415575784E-3},{"$f":"'Population 2016'!R216/'Population 2016'!R$14","v":2.4192270446342107E-2},{"$f":"'Population 2016'!S216/'Population 2016'!S$14","v":1.8092999025459314E-2},{"$f":"'Population 2016'!T216/'Population 2016'!T$14","v":2.9044318159339649E-2},{"$f":"'Population 2016'!U216/'Population 2016'!U$14","v":0},{"$f":"'Population 2016'!V216/'Population 2016'!V$14","v":7.8634257441294268E-3},{"$f":"'Population 2016'!W216/'Population 2016'!W$14","v":1.7938011192423591E-2},{"$f":"'Population 2016'!X216/'Population 2016'!X$14","v":1.7938011192423591E-2},{"$f":"'Population 2016'!Y216/'Population 2016'!Y$14","v":1.0710314186297972E-2},{"$f":"'Population 2016'!Z216/'Population 2016'!Z$14","v":8.9280556755770082E-3},{"$f":"'Population 2016'!AA216/'Population 2016'!AA$14","v":8.2488537697128252E-3},{"$f":"'Population 2016'!AB216/'Population 2016'!AB$14","v":1.5750029780556146E-2},{"$f":"'Population 2016'!AC216/'Population 2016'!AC$14","v":1.0143391015227968E-2},{"$f":"'Population 2016'!AD216/'Population 2016'!AD$14","v":3.4304620974535418E-3},{"$f":"'Population 2016'!AE216/'Population 2016'!AE$14","v":3.3996213429886265E-3},{"$f":"'Population 2016'!AF216/'Population 2016'!AF$14","v":4.8863183087355403E-3},{"$f":"'Population 2016'!AG216/'Population 2016'!AG$14","v":3.3996213429886265E-3},{"$f":"'Population 2016'!AH216/'Population 2016'!AH$14","v":4.7675070956318365E-3},{"$f":"'Population 2016'!AI216/'Population 2016'!AI$14","v":1.9903709766798679E-2},{"$f":"'Population 2016'!AJ216/'Population 2016'!AJ$14","v":6.3071529258683628E-3},{"$f":"'Population 2016'!AK216/'Population 2016'!AK$14","v":7.2755858100988476E-3},{"$f":"'Population 2016'!AL216/'Population 2016'!AL$14","v":2.980786496678039E-3},{"$f":"'Population 2016'!AM216/'Population 2016'!AM$14","v":3.9117644380083248E-3},{"$f":"'Population 2016'!AN216/'Population 2016'!AN$14","v":3.2916884865714074E-3},{"$f":"'Population 2016'!AO216/'Population 2016'!AO$14","v":3.2916884865714074E-3},{"$f":"'Population 2016'!AP216/'Population 2016'!AP$14","v":6.2330623306233067E-3},{"$f":"'Population 2016'!AQ216/'Population 2016'!AQ$14","v":7.7927120932654373E-3},{"$f":"'Population 2016'!AR216/'Population 2016'!AR$14","v":1.0892192424434753E-2},{"$f":"'Population 2016'!AS216/'Population 2016'!AS$14","v":2.9728344438749361E-3},{"$f":"'Population 2016'!AT216/'Population 2016'!AT$14","v":0},{"$f":"'Population 2016'!AU216/'Population 2016'!AU$14","v":0},{"$f":"'Population 2016'!AV216/'Population 2016'!AV$14","v":6.9381643514743602E-3},{"$f":"'Population 2016'!AW216/'Population 2016'!AW$14","v":5.6938905294085752E-3},{"$f":"'Population 2016'!AX216/'Population 2016'!AX$14","v":1.8789452919516045E-2},{"$f":"'Population 2016'!AY216/'Population 2016'!AY$14","v":1.2038282630188496E-2},{"$f":"'Population 2016'!AZ216/'Population 2016'!AZ$14","v":6.7931662660931065E-3},{"$f":"'Population 2016'!BA216/'Population 2016'!BA$14","v":2.0378205681720061E-3},{"$f":"'Population 2016'!BB216/'Population 2016'!BB$14","v":6.5415171155352421E-3},{"$f":"'Population 2016'!BC216/'Population 2016'!BC$14","v":0},214]
[null,"Female 25-29",{"$f":"'Population 2016'!C217/'Population 2016'!C$14","v":2.5002953594368896E-2},{"$f":"'Population 2016'!D217/'Population 2016'!D$14","v":1.8702756695642048E-2},{"$f":"'Population 2016'!E217/'Population 2016'!E$14","v":1.258245342740474E-2},{"$f":"'Population 2016'!F217/'Population 2016'!F$14","v":5.6950189833966111E-3},{"$f":"'Population 2016'!G217/'Population 2016'!G$14","v":2.7896667685723023E-3},{"$f":"'Population 2016'!H217/'Population 2016'!H$14","v":3.8112029191446064E-3},{"$f":"'Population 2016'!I217/'Population 2016'!I$14","v":2.3138317346415756E-3},{"$f":"'Population 2016'!J217/'Population 2016'!J$14","v":8.5446261056017162E-3},{"$f":"'Population 2016'!K217/'Population 2016'!K$14","v":3.2672687482661897E-3},{"$f":"'Population 2016'!L217/'Population 2016'!L$14","v":3.9775727817166484E-3},{"$f":"'Population 2016'!M217/'Population 2016'!M$14","v":3.9775727817166484E-3},{"$f":"'Population 2016'!N217/'Population 2016'!N$14","v":6.4903406667072951E-3},{"$f":"'Population 2016'!O217/'Population 2016'!O$14","v":4.4271915247195677E-3},{"$f":"'Population 2016'!P217/'Population 2016'!P$14","v":1.6180635285112897E-2},{"$f":"'Population 2016'!Q217/'Population 2016'!Q$14","v":5.6257051450473699E-3},{"$f":"'Population 2016'!R217/'Population 2016'!R$14","v":1.9825688881063473E-2},{"$f":"'Population 2016'!S217/'Population 2016'!S$14","v":1.3891695745703264E-2},{"$f":"'Population 2016'!T217/'Population 2016'!T$14","v":2.4938325331404203E-2},{"$f":"'Population 2016'!U217/'Population 2016'!U$14","v":0},{"$f":"'Population 2016'!V217/'Population 2016'!V$14","v":7.5590984057174269E-3},{"$f":"'Population 2016'!W217/'Population 2016'!W$14","v":8.3168316831683173E-3},{"$f":"'Population 2016'!X217/'Population 2016'!X$14","v":8.3168316831683173E-3},{"$f":"'Population 2016'!Y217/'Population 2016'!Y$14","v":8.0301733636023546E-3},{"$f":"'Population 2016'!Z217/'Population 2016'!Z$14","v":7.9183350932200847E-3},{"$f":"'Population 2016'!AA217/'Population 2016'!AA$14","v":6.8915636116097948E-3},{"$f":"'Population 2016'!AB217/'Population 2016'!AB$14","v":1.701376120655276E-2},{"$f":"'Population 2016'!AC217/'Population 2016'!AC$14","v":8.4777313019069427E-3},{"$f":"'Population 2016'!AD217/'Population 2016'!AD$14","v":3.8059860548670952E-3},{"$f":"'Population 2016'!AE217/'Population 2016'!AE$14","v":4.1735188844819722E-3},{"$f":"'Population 2016'!AF217/'Population 2016'!AF$14","v":3.4104507379337855E-3},{"$f":"'Population 2016'!AG217/'Population 2016'!AG$14","v":4.1735188844819722E-3},{"$f":"'Population 2016'!AH217/'Population 2016'!AH$14","v":3.976867885134799E-3},{"$f":"'Population 2016'!AI217/'Population 2016'!AI$14","v":1.7426125800935787E-2},{"$f":"'Population 2016'!AJ217/'Population 2016'!AJ$14","v":6.3071529258683628E-3},{"$f":"'Population 2016'!AK217/'Population 2016'!AK$14","v":7.7940758333472715E-3},{"$f":"'Population 2016'!AL217/'Population 2016'!AL$14","v":2.1787274794996111E-3},{"$f":"'Population 2016'!AM217/'Population 2016'!AM$14","v":3.3470859859559003E-3},{"$f":"'Population 2016'!AN217/'Population 2016'!AN$14","v":4.039799506246727E-3},{"$f":"'Population 2016'!AO217/'Population 2016'!AO$14","v":4.039799506246727E-3},{"$f":"'Population 2016'!AP217/'Population 2016'!AP$14","v":5.7669376693766936E-3},{"$f":"'Population 2016'!AQ217/'Population 2016'!AQ$14","v":6.4600965484374866E-3},{"$f":"'Population 2016'!AR217/'Population 2016'!AR$14","v":9.2755415508214926E-3},{"$f":"'Population 2016'!AS217/'Population 2016'!AS$14","v":2.3138317346415756E-3},{"$f":"'Population 2016'!AT217/'Population 2016'!AT$14","v":0},{"$f":"'Population 2016'!AU217/'Population 2016'!AU$14","v":0},{"$f":"'Population 2016'!AV217/'Population 2016'!AV$14","v":5.1294975760900179E-3},{"$f":"'Population 2016'!AW217/'Population 2016'!AW$14","v":4.6586377058797429E-3},{"$f":"'Population 2016'!AX217/'Population 2016'!AX$14","v":1.1359153077327723E-2},{"$f":"'Population 2016'!AY217/'Population 2016'!AY$14","v":7.1010064992949639E-3},{"$f":"'Population 2016'!AZ217/'Population 2016'!AZ$14","v":6.0200848093320885E-3},{"$f":"'Population 2016'!BA217/'Population 2016'!BA$14","v":1.1743372765736983E-3},{"$f":"'Population 2016'!BB217/'Population 2016'!BB$14","v":6.4124082250970466E-3},{"$f":"'Population 2016'!BC217/'Population 2016'!BC$14","v":0},215]
[null,"Female 30-34",{"$f":"'Population 2016'!C218/'Population 2016'!C$14","v":2.1390241324205174E-2},{"$f":"'Population 2016'!D218/'Population 2016'!D$14","v":1.9615833611648165E-2},{"$f":"'Population 2016'!E218/'Population 2016'!E$14","v":1.7892091719622104E-2},{"$f":"'Population 2016'!F218/'Population 2016'!F$14","v":6.9700232334107782E-3},{"$f":"'Population 2016'!G218/'Population 2016'!G$14","v":2.1400183430143687E-3},{"$f":"'Population 2016'!H218/'Population 2016'!H$14","v":4.4778344999386E-3},{"$f":"'Population 2016'!I218/'Population 2016'!I$14","v":4.0858167972468327E-3},{"$f":"'Population 2016'!J218/'Population 2016'!J$14","v":7.2795497185741088E-3},{"$f":"'Population 2016'!K218/'Population 2016'!K$14","v":4.3460839009955921E-3},{"$f":"'Population 2016'!L218/'Population 2016'!L$14","v":3.9775727817166484E-3},{"$f":"'Population 2016'!M218/'Population 2016'!M$14","v":3.9775727817166484E-3},{"$f":"'Population 2016'!N218/'Population 2016'!N$14","v":6.2872001137587097E-3},{"$f":"'Population 2016'!O218/'Population 2016'!O$14","v":5.1152887411715833E-3},{"$f":"'Population 2016'!P218/'Population 2016'!P$14","v":1.7267508610792192E-2},{"$f":"'Population 2016'!Q218/'Population 2016'!Q$14","v":6.5221087121153576E-3},{"$f":"'Population 2016'!R218/'Population 2016'!R$14","v":1.9614402676291928E-2},{"$f":"'Population 2016'!S218/'Population 2016'!S$14","v":1.2629732921960398E-2},{"$f":"'Population 2016'!T218/'Population 2016'!T$14","v":2.0363237658708067E-2},{"$f":"'Population 2016'!U218/'Population 2016'!U$14","v":0},{"$f":"'Population 2016'!V218/'Population 2016'!V$14","v":1.0160606298594204E-2},{"$f":"'Population 2016'!W218/'Population 2016'!W$14","v":8.7731381833835564E-3},{"$f":"'Population 2016'!X218/'Population 2016'!X$14","v":8.7731381833835564E-3},{"$f":"'Population 2016'!Y218/'Population 2016'!Y$14","v":8.783482543212786E-3},{"$f":"'Population 2016'!Z218/'Population 2016'!Z$14","v":5.9219996626562812E-3},{"$f":"'Population 2016'!AA218/'Population 2016'!AA$14","v":6.5036472480462359E-3},{"$f":"'Population 2016'!AB218/'Population 2016'!AB$14","v":1.7899409050181531E-2},{"$f":"'Population 2016'!AC218/'Population 2016'!AC$14","v":7.4922481768562189E-3},{"$f":"'Population 2016'!AD218/'Population 2016'!AD$14","v":3.9074790163302177E-3},{"$f":"'Population 2016'!AE218/'Population 2016'!AE$14","v":4.5466480562734073E-3},{"$f":"'Population 2016'!AF218/'Population 2016'!AF$14","v":3.5700039888312725E-3},{"$f":"'Population 2016'!AG218/'Population 2016'!AG$14","v":4.5466480562734073E-3},{"$f":"'Population 2016'!AH218/'Population 2016'!AH$14","v":4.6870228646231559E-3},{"$f":"'Population 2016'!AI218/'Population 2016'!AI$14","v":1.5136648415244428E-2},{"$f":"'Population 2016'!AJ218/'Population 2016'!AJ$14","v":7.6987024252719843E-3},{"$f":"'Population 2016'!AK218/'Population 2016'!AK$14","v":8.5299971566676139E-3},{"$f":"'Population 2016'!AL218/'Population 2016'!AL$14","v":3.1483809181780094E-3},{"$f":"'Population 2016'!AM218/'Population 2016'!AM$14","v":3.9345337304297935E-3},{"$f":"'Population 2016'!AN218/'Population 2016'!AN$14","v":2.9176329767337471E-3},{"$f":"'Population 2016'!AO218/'Population 2016'!AO$14","v":2.9176329767337471E-3},{"$f":"'Population 2016'!AP218/'Population 2016'!AP$14","v":7.2303523035230355E-3},{"$f":"'Population 2016'!AQ218/'Population 2016'!AQ$14","v":6.618951381595785E-3},{"$f":"'Population 2016'!AR218/'Population 2016'!AR$14","v":9.0640760519334045E-3},{"$f":"'Population 2016'!AS218/'Population 2016'!AS$14","v":4.0858167972468327E-3},{"$f":"'Population 2016'!AT218/'Population 2016'!AT$14","v":0},{"$f":"'Population 2016'!AU218/'Population 2016'!AU$14","v":0},{"$f":"'Population 2016'!AV218/'Population 2016'!AV$14","v":5.3963500511467243E-3},{"$f":"'Population 2016'!AW218/'Population 2016'!AW$14","v":5.5016292907532202E-3},{"$f":"'Population 2016'!AX218/'Population 2016'!AX$14","v":8.8440294581799053E-3},{"$f":"'Population 2016'!AY218/'Population 2016'!AY$14","v":7.731081541029838E-3},{"$f":"'Population 2016'!AZ218/'Population 2016'!AZ$14","v":6.8046476738667849E-3},{"$f":"'Population 2016'!BA218/'Population 2016'!BA$14","v":1.4161125982212245E-3},{"$f":"'Population 2016'!BB218/'Population 2016'!BB$14","v":7.5571737203157146E-3},{"$f":"'Population 2016'!BC218/'Population 2016'!BC$14","v":0},216]
[null,"Female 35-39",{"$f":"'Population 2016'!C219/'Population 2016'!C$14","v":1.9089546763171476E-2},{"$f":"'Population 2016'!D219/'Population 2016'!D$14","v":1.9278791797015034E-2},{"$f":"'Population 2016'!E219/'Population 2016'!E$14","v":1.9462633193998116E-2},{"$f":"'Population 2016'!F219/'Population 2016'!F$14","v":8.1458604862016202E-3},{"$f":"'Population 2016'!G219/'Population 2016'!G$14","v":3.2100275145215532E-3},{"$f":"'Population 2016'!H219/'Population 2016'!H$14","v":5.4076101257828539E-3},{"$f":"'Population 2016'!I219/'Population 2016'!I$14","v":4.5544409460350002E-3},{"$f":"'Population 2016'!J219/'Population 2016'!J$14","v":8.8769766818547306E-3},{"$f":"'Population 2016'!K219/'Population 2016'!K$14","v":5.9797182751286874E-3},{"$f":"'Population 2016'!L219/'Population 2016'!L$14","v":3.9101562938909425E-3},{"$f":"'Population 2016'!M219/'Population 2016'!M$14","v":3.9101562938909425E-3},{"$f":"'Population 2016'!N219/'Population 2016'!N$14","v":5.8098198143295343E-3},{"$f":"'Population 2016'!O219/'Population 2016'!O$14","v":5.2451184046530949E-3},{"$f":"'Population 2016'!P219/'Population 2016'!P$14","v":2.4768465365480292E-2},{"$f":"'Population 2016'!Q219/'Population 2016'!Q$14","v":8.5003786532309167E-3},{"$f":"'Population 2016'!R219/'Population 2016'!R$14","v":3.0266748833524079E-2},{"$f":"'Population 2016'!S219/'Population 2016'!S$14","v":1.30777072695346E-2},{"$f":"'Population 2016'!T219/'Population 2016'!T$14","v":1.9693505862272625E-2},{"$f":"'Population 2016'!U219/'Population 2016'!U$14","v":0},{"$f":"'Population 2016'!V219/'Population 2016'!V$14","v":1.0592554778920914E-2},{"$f":"'Population 2016'!W219/'Population 2016'!W$14","v":9.8708566508824789E-3},{"$f":"'Population 2016'!X219/'Population 2016'!X$14","v":9.8708566508824789E-3},{"$f":"'Population 2016'!Y219/'Population 2016'!Y$14","v":9.7725211259666184E-3},{"$f":"'Population 2016'!Z219/'Population 2016'!Z$14","v":4.6696688717238954E-3},{"$f":"'Population 2016'!AA219/'Population 2016'!AA$14","v":7.5764654062026576E-3},{"$f":"'Population 2016'!AB219/'Population 2016'!AB$14","v":1.7347821358096944E-2},{"$f":"'Population 2016'!AC219/'Population 2016'!AC$14","v":8.5653298019114504E-3},{"$f":"'Population 2016'!AD219/'Population 2016'!AD$14","v":4.3946452313532057E-3},{"$f":"'Population 2016'!AE219/'Population 2016'!AE$14","v":4.8230400353781733E-3},{"$f":"'Population 2016'!AF219/'Population 2016'!AF$14","v":4.6270442760271242E-3},{"$f":"'Population 2016'!AG219/'Population 2016'!AG$14","v":4.8230400353781733E-3},{"$f":"'Population 2016'!AH219/'Population 2016'!AH$14","v":5.7593568836505757E-3},{"$f":"'Population 2016'!AI219/'Population 2016'!AI$14","v":1.532644964929138E-2},{"$f":"'Population 2016'!AJ219/'Population 2016'!AJ$14","v":8.6203780677341236E-3},{"$f":"'Population 2016'!AK219/'Population 2016'!AK$14","v":6.8072722407131747E-3},{"$f":"'Population 2016'!AL219/'Population 2016'!AL$14","v":3.7828455138564673E-3},{"$f":"'Population 2016'!AM219/'Population 2016'!AM$14","v":4.7177973897283166E-3},{"$f":"'Population 2016'!AN219/'Population 2016'!AN$14","v":4.4138550160843868E-3},{"$f":"'Population 2016'!AO219/'Population 2016'!AO$14","v":4.4138550160843868E-3},{"$f":"'Population 2016'!AP219/'Population 2016'!AP$14","v":7.4471544715447157E-3},{"$f":"'Population 2016'!AQ219/'Population 2016'!AQ$14","v":8.2428007872139518E-3},{"$f":"'Population 2016'!AR219/'Population 2016'!AR$14","v":9.6494744451967682E-3},{"$f":"'Population 2016'!AS219/'Population 2016'!AS$14","v":4.5544409460350002E-3},{"$f":"'Population 2016'!AT219/'Population 2016'!AT$14","v":0},{"$f":"'Population 2016'!AU219/'Population 2016'!AU$14","v":0},{"$f":"'Population 2016'!AV219/'Population 2016'!AV$14","v":7.6052955391161256E-3},{"$f":"'Population 2016'!AW219/'Population 2016'!AW$14","v":6.8868961641418E-3},{"$f":"'Population 2016'!AX219/'Population 2016'!AX$14","v":1.0422146238821673E-2},{"$f":"'Population 2016'!AY219/'Population 2016'!AY$14","v":8.361156582764713E-3},{"$f":"'Population 2016'!AZ219/'Population 2016'!AZ$14","v":7.0189672856421168E-3},{"$f":"'Population 2016'!BA219/'Population 2016'!BA$14","v":2.158708228995769E-3},{"$f":"'Population 2016'!BB219/'Population 2016'!BB$14","v":9.020407811948598E-3},{"$f":"'Population 2016'!BC219/'Population 2016'!BC$14","v":0},217]
[null,"Female 40-44",{"$f":"'Population 2016'!C220/'Population 2016'!C$14","v":1.7590986251795473E-2},{"$f":"'Population 2016'!D220/'Population 2016'!D$14","v":1.9171551219631766E-2},{"$f":"'Population 2016'!E220/'Population 2016'!E$14","v":2.0706985285234493E-2},{"$f":"'Population 2016'!F220/'Population 2016'!F$14","v":1.0044200147333824E-2},{"$f":"'Population 2016'!G220/'Population 2016'!G$14","v":3.7068174870070313E-3},{"$f":"'Population 2016'!H220/'Population 2016'!H$14","v":6.8943739803168256E-3},{"$f":"'Population 2016'!I220/'Population 2016'!I$14","v":7.0440067364721387E-3},{"$f":"'Population 2016'!J220/'Population 2016'!J$14","v":1.1289198606271778E-2},{"$f":"'Population 2016'!K220/'Population 2016'!K$14","v":7.7058225194957313E-3},{"$f":"'Population 2016'!L220/'Population 2016'!L$14","v":4.2247665704109039E-3},{"$f":"'Population 2016'!M220/'Population 2016'!M$14","v":4.2247665704109039E-3},{"$f":"'Population 2016'!N220/'Population 2016'!N$14","v":6.8255225790724607E-3},{"$f":"'Population 2016'!O220/'Population 2016'!O$14","v":6.8550062318238469E-3},{"$f":"'Population 2016'!P220/'Population 2016'!P$14","v":2.8763872942977421E-2},{"$f":"'Population 2016'!Q220/'Population 2016'!Q$14","v":9.8758944716628282E-3},{"$f":"'Population 2016'!R220/'Population 2016'!R$14","v":3.4175543621797692E-2},{"$f":"'Population 2016'!S220/'Population 2016'!S$14","v":1.3700829482325785E-2},{"$f":"'Population 2016'!T220/'Population 2016'!T$14","v":1.8769445535545239E-2},{"$f":"'Population 2016'!U220/'Population 2016'!U$14","v":0},{"$f":"'Population 2016'!V220/'Population 2016'!V$14","v":1.2899552344302206E-2},{"$f":"'Population 2016'!W220/'Population 2016'!W$14","v":1.1338786052518295E-2},{"$f":"'Population 2016'!X220/'Population 2016'!X$14","v":1.1338786052518295E-2},{"$f":"'Population 2016'!Y220/'Population 2016'!Y$14","v":1.2129815157400622E-2},{"$f":"'Population 2016'!Z220/'Population 2016'!Z$14","v":4.3484991670382838E-3},{"$f":"'Population 2016'!AA220/'Population 2016'!AA$14","v":8.2672068019674447E-3},{"$f":"'Population 2016'!AB220/'Population 2016'!AB$14","v":1.7593834647993828E-2},{"$f":"'Population 2016'!AC220/'Population 2016'!AC$14","v":9.2661178019475213E-3},{"$f":"'Population 2016'!AD220/'Population 2016'!AD$14","v":5.0746480731561263E-3},{"$f":"'Population 2016'!AE220/'Population 2016'!AE$14","v":5.5692983789610425E-3},{"$f":"'Population 2016'!AF220/'Population 2016'!AF$14","v":6.0430793777423216E-3},{"$f":"'Population 2016'!AG220/'Population 2016'!AG$14","v":5.5692983789610425E-3},{"$f":"'Population 2016'!AH220/'Population 2016'!AH$14","v":6.4316369308995529E-3},{"$f":"'Population 2016'!AI220/'Population 2016'!AI$14","v":1.5401014419809825E-2},{"$f":"'Population 2016'!AJ220/'Population 2016'!AJ$14","v":8.92760328188817E-3},{"$f":"'Population 2016'!AK220/'Population 2016'!AK$14","v":8.9815852414323709E-3},{"$f":"'Population 2016'!AL220/'Population 2016'!AL$14","v":4.8482671933919915E-3},{"$f":"'Population 2016'!AM220/'Population 2016'!AM$14","v":5.0775522099875221E-3},{"$f":"'Population 2016'!AN220/'Population 2016'!AN$14","v":3.2168773846038752E-3},{"$f":"'Population 2016'!AO220/'Population 2016'!AO$14","v":3.2168773846038752E-3},{"$f":"'Population 2016'!AP220/'Population 2016'!AP$14","v":9.3441734417344172E-3},{"$f":"'Population 2016'!AQ220/'Population 2016'!AQ$14","v":9.3989109618660156E-3},{"$f":"'Population 2016'!AR220/'Population 2016'!AR$14","v":1.0460951806783572E-2},{"$f":"'Population 2016'!AS220/'Population 2016'!AS$14","v":7.0440067364721387E-3},{"$f":"'Population 2016'!AT220/'Population 2016'!AT$14","v":0},{"$f":"'Population 2016'!AU220/'Population 2016'!AU$14","v":0},{"$f":"'Population 2016'!AV220/'Population 2016'!AV$14","v":9.4732628645130684E-3},{"$f":"'Population 2016'!AW220/'Population 2016'!AW$14","v":7.8975001109199451E-3},{"$f":"'Population 2016'!AX220/'Population 2016'!AX$14","v":1.3200289321409785E-2},{"$f":"'Population 2016'!AY220/'Population 2016'!AY$14","v":9.8806301560803254E-3},{"$f":"'Population 2016'!AZ220/'Population 2016'!AZ$14","v":8.5842658787869518E-3},{"$f":"'Population 2016'!BA220/'Population 2016'!BA$14","v":2.1241688973318365E-3},{"$f":"'Population 2016'!BB220/'Population 2016'!BB$14","v":1.1301331543023386E-2},{"$f":"'Population 2016'!BC220/'Population 2016'!BC$14","v":0},218]
[null,"Female 45-49",{"$f":"'Population 2016'!C221/'Population 2016'!C$14","v":1.8728897345495925E-2},{"$f":"'Population 2016'!D221/'Population 2016'!D$14","v":2.0504398395680964E-2},{"$f":"'Population 2016'!E221/'Population 2016'!E$14","v":2.2229202406552781E-2},{"$f":"'Population 2016'!F221/'Population 2016'!F$14","v":1.1545871819572732E-2},{"$f":"'Population 2016'!G221/'Population 2016'!G$14","v":5.0443289513910118E-3},{"$f":"'Population 2016'!H221/'Population 2016'!H$14","v":8.7539252320053326E-3},{"$f":"'Population 2016'!I221/'Population 2016'!I$14","v":7.2197407922677016E-3},{"$f":"'Population 2016'!J221/'Population 2016'!J$14","v":1.4677030286786385E-2},{"$f":"'Population 2016'!K221/'Population 2016'!K$14","v":9.0928705730049623E-3},{"$f":"'Population 2016'!L221/'Population 2016'!L$14","v":5.6405128147507273E-3},{"$f":"'Population 2016'!M221/'Population 2016'!M$14","v":5.6405128147507273E-3},{"$f":"'Population 2016'!N221/'Population 2016'!N$14","v":8.6741016109045856E-3},{"$f":"'Population 2016'!O221/'Population 2016'!O$14","v":7.8546946406314912E-3},{"$f":"'Population 2016'!P221/'Population 2016'!P$14","v":3.4642173746651357E-2},{"$f":"'Population 2016'!Q221/'Population 2016'!Q$14","v":1.2070537687587901E-2},{"$f":"'Population 2016'!R221/'Population 2016'!R$14","v":4.0073950171670043E-2},{"$f":"'Population 2016'!S221/'Population 2016'!S$14","v":1.5030156869613643E-2},{"$f":"'Population 2016'!T221/'Population 2016'!T$14","v":2.0012829461416949E-2},{"$f":"'Population 2016'!U221/'Population 2016'!U$14","v":0},{"$f":"'Population 2016'!V221/'Population 2016'!V$14","v":1.3891070446870338E-2},{"$f":"'Population 2016'!W221/'Population 2016'!W$14","v":1.2445114076625054E-2},{"$f":"'Population 2016'!X221/'Population 2016'!X$14","v":1.2445114076625054E-2},{"$f":"'Population 2016'!Y221/'Population 2016'!Y$14","v":1.4266753442417969E-2},{"$f":"'Population 2016'!Z221/'Population 2016'!Z$14","v":4.9099685068843537E-3},{"$f":"'Population 2016'!AA221/'Population 2016'!AA$14","v":9.9214823910997799E-3},{"$f":"'Population 2016'!AB221/'Population 2016'!AB$14","v":1.8924896027014849E-2},{"$f":"'Population 2016'!AC221/'Population 2016'!AC$14","v":1.1099245235865403E-2},{"$f":"'Population 2016'!AD221/'Population 2016'!AD$14","v":5.8155466918369215E-3},{"$f":"'Population 2016'!AE221/'Population 2016'!AE$14","v":6.0944431392600988E-3},{"$f":"'Population 2016'!AF221/'Population 2016'!AF$14","v":7.8579976067012364E-3},{"$f":"'Population 2016'!AG221/'Population 2016'!AG$14","v":6.0944431392600988E-3},{"$f":"'Population 2016'!AH221/'Population 2016'!AH$14","v":7.7572595592778201E-3},{"$f":"'Population 2016'!AI221/'Population 2016'!AI$14","v":1.6951622715818408E-2},{"$f":"'Population 2016'!AJ221/'Population 2016'!AJ$14","v":1.0156504138504356E-2},{"$f":"'Population 2016'!AK221/'Population 2016'!AK$14","v":1.0302898526484805E-2},{"$f":"'Population 2016'!AL221/'Population 2016'!AL$14","v":6.4284431675345668E-3},{"$f":"'Population 2016'!AM221/'Population 2016'!AM$14","v":6.5347869249615196E-3},{"$f":"'Population 2016'!AN221/'Population 2016'!AN$14","v":5.6108326475648989E-3},{"$f":"'Population 2016'!AO221/'Population 2016'!AO$14","v":5.6108326475648989E-3},{"$f":"'Population 2016'!AP221/'Population 2016'!AP$14","v":1.1111111111111112E-2},{"$f":"'Population 2016'!AQ221/'Population 2016'!AQ$14","v":1.2152394736609862E-2},{"$f":"'Population 2016'!AR221/'Population 2016'!AR$14","v":1.1973016085418307E-2},{"$f":"'Population 2016'!AS221/'Population 2016'!AS$14","v":7.2197407922677016E-3},{"$f":"'Population 2016'!AT221/'Population 2016'!AT$14","v":0},{"$f":"'Population 2016'!AU221/'Population 2016'!AU$14","v":0},{"$f":"'Population 2016'!AV221/'Population 2016'!AV$14","v":1.2660667427690392E-2},{"$f":"'Population 2016'!AW221/'Population 2016'!AW$14","v":9.0806461949528954E-3},{"$f":"'Population 2016'!AX221/'Population 2016'!AX$14","v":1.7655181483429774E-2},{"$f":"'Population 2016'!AY221/'Population 2016'!AY$14","v":1.1315013209290264E-2},{"$f":"'Population 2016'!AZ221/'Population 2016'!AZ$14","v":1.0310304180763284E-2},{"$f":"'Population 2016'!BA221/'Population 2016'!BA$14","v":3.1258095155858733E-3},{"$f":"'Population 2016'!BB221/'Population 2016'!BB$14","v":1.3582255274098174E-2},{"$f":"'Population 2016'!BC221/'Population 2016'!BC$14","v":0},219]
[null,"Female 50-54",{"$f":"'Population 2016'!C222/'Population 2016'!C$14","v":1.9953861746911161E-2},{"$f":"'Population 2016'!D222/'Population 2016'!D$14","v":2.0718879550447499E-2},{"$f":"'Population 2016'!E222/'Population 2016'!E$14","v":2.1462053301761423E-2},{"$f":"'Population 2016'!F222/'Population 2016'!F$14","v":1.1843372811242705E-2},{"$f":"'Population 2016'!G222/'Population 2016'!G$14","v":5.2736166309996944E-3},{"$f":"'Population 2016'!H222/'Population 2016'!H$14","v":9.0126835429714218E-3},{"$f":"'Population 2016'!I222/'Population 2016'!I$14","v":6.5021600644358203E-3},{"$f":"'Population 2016'!J222/'Population 2016'!J$14","v":1.4398284642187082E-2},{"$f":"'Population 2016'!K222/'Population 2016'!K$14","v":9.6785130844866379E-3},{"$f":"'Population 2016'!L222/'Population 2016'!L$14","v":6.786593107787728E-3},{"$f":"'Population 2016'!M222/'Population 2016'!M$14","v":6.786593107787728E-3},{"$f":"'Population 2016'!N222/'Population 2016'!N$14","v":9.2327381315131934E-3},{"$f":"'Population 2016'!O222/'Population 2016'!O$14","v":7.5041545492314085E-3},{"$f":"'Population 2016'!P222/'Population 2016'!P$14","v":3.7810945273631838E-2},{"$f":"'Population 2016'!Q222/'Population 2016'!Q$14","v":1.1344141693584532E-2},{"$f":"'Population 2016'!R222/'Population 2016'!R$14","v":4.0126771722862928E-2},{"$f":"'Population 2016'!S222/'Population 2016'!S$14","v":1.4823572208075664E-2},{"$f":"'Population 2016'!T222/'Population 2016'!T$14","v":2.0377367021502064E-2},{"$f":"'Population 2016'!U222/'Population 2016'!U$14","v":0},{"$f":"'Population 2016'!V222/'Population 2016'!V$14","v":1.2781748213304012E-2},{"$f":"'Population 2016'!W222/'Population 2016'!W$14","v":1.2066293585880327E-2},{"$f":"'Population 2016'!X222/'Population 2016'!X$14","v":1.2066293585880327E-2},{"$f":"'Population 2016'!Y222/'Population 2016'!Y$14","v":1.355444068074552E-2},{"$f":"'Population 2016'!Z222/'Population 2016'!Z$14","v":4.988528002994503E-3},{"$f":"'Population 2016'!AA222/'Population 2016'!AA$14","v":1.0372800138815662E-2},{"$f":"'Population 2016'!AB222/'Population 2016'!AB$14","v":1.900776366150643E-2},{"$f":"'Population 2016'!AC222/'Population 2016'!AC$14","v":1.1595207331479165E-2},{"$f":"'Population 2016'!AD222/'Population 2016'!AD$14","v":6.1149509281531325E-3},{"$f":"'Population 2016'!AE222/'Population 2016'!AE$14","v":6.4192037147081989E-3},{"$f":"'Population 2016'!AF222/'Population 2016'!AF$14","v":7.9577183885121659E-3},{"$f":"'Population 2016'!AG222/'Population 2016'!AG$14","v":6.4192037147081989E-3},{"$f":"'Population 2016'!AH222/'Population 2016'!AH$14","v":8.1265401486117651E-3},{"$f":"'Population 2016'!AI222/'Population 2016'!AI$14","v":1.6871973983673703E-2},{"$f":"'Population 2016'!AJ222/'Population 2016'!AJ$14","v":9.5781978530379147E-3},{"$f":"'Population 2016'!AK222/'Population 2016'!AK$14","v":9.6673301108899639E-3},{"$f":"'Population 2016'!AL222/'Population 2016'!AL$14","v":6.2129646256060336E-3},{"$f":"'Population 2016'!AM222/'Population 2016'!AM$14","v":6.4300481798227642E-3},{"$f":"'Population 2016'!AN222/'Population 2016'!AN$14","v":5.0123438318246429E-3},{"$f":"'Population 2016'!AO222/'Population 2016'!AO$14","v":5.0123438318246429E-3},{"$f":"'Population 2016'!AP222/'Population 2016'!AP$14","v":1.2249322493224933E-2},{"$f":"'Population 2016'!AQ222/'Population 2016'!AQ$14","v":1.3140824809594833E-2},{"$f":"'Population 2016'!AR222/'Population 2016'!AR$14","v":1.215726041575034E-2},{"$f":"'Population 2016'!AS222/'Population 2016'!AS$14","v":6.5021600644358203E-3},{"$f":"'Population 2016'!AT222/'Population 2016'!AT$14","v":0},{"$f":"'Population 2016'!AU222/'Population 2016'!AU$14","v":0},{"$f":"'Population 2016'!AV222/'Population 2016'!AV$14","v":1.4202481728018027E-2},{"$f":"'Population 2016'!AW222/'Population 2016'!AW$14","v":9.9630759826274725E-3},{"$f":"'Population 2016'!AX222/'Population 2016'!AX$14","v":1.6915439242503945E-2},{"$f":"'Population 2016'!AY222/'Population 2016'!AY$14","v":1.15034279323814E-2},{"$f":"'Population 2016'!AZ222/'Population 2016'!AZ$14","v":1.1003015783108553E-2},{"$f":"'Population 2016'!BA222/'Population 2016'!BA$14","v":3.540281495553061E-3},{"$f":"'Population 2016'!BB222/'Population 2016'!BB$14","v":1.2747351115931177E-2},{"$f":"'Population 2016'!BC222/'Population 2016'!BC$14","v":0},220]
[null,"Female 55-59",{"$f":"'Population 2016'!C223/'Population 2016'!C$14","v":1.8442865048718761E-2},{"$f":"'Population 2016'!D223/'Population 2016'!D$14","v":1.8270730369612308E-2},{"$f":"'Population 2016'!E223/'Population 2016'!E$14","v":1.8103510764249642E-2},{"$f":"'Population 2016'!F223/'Population 2016'!F$14","v":1.102170340567802E-2},{"$f":"'Population 2016'!G223/'Population 2016'!G$14","v":5.6939773769489454E-3},{"$f":"'Population 2016'!H223/'Population 2016'!H$14","v":9.3679280037892738E-3},{"$f":"'Population 2016'!I223/'Population 2016'!I$14","v":5.7406458226550491E-3},{"$f":"'Population 2016'!J223/'Population 2016'!J$14","v":1.2554274993299384E-2},{"$f":"'Population 2016'!K223/'Population 2016'!K$14","v":8.1989951607434573E-3},{"$f":"'Population 2016'!L223/'Population 2016'!L$14","v":6.0113034977921104E-3},{"$f":"'Population 2016'!M223/'Population 2016'!M$14","v":6.0113034977921104E-3},{"$f":"'Population 2016'!N223/'Population 2016'!N$14","v":9.1514819103337593E-3},{"$f":"'Population 2016'!O223/'Population 2016'!O$14","v":7.2704611549646867E-3},{"$f":"'Population 2016'!P223/'Population 2016'!P$14","v":3.4091083046306925E-2},{"$f":"'Population 2016'!Q223/'Population 2016'!Q$14","v":9.5513345594485568E-3},{"$f":"'Population 2016'!R223/'Population 2016'!R$14","v":3.5848226076239102E-2},{"$f":"'Population 2016'!S223/'Population 2016'!S$14","v":1.3443721398129061E-2},{"$f":"'Population 2016'!T223/'Population 2016'!T$14","v":1.9049206918866374E-2},{"$f":"'Population 2016'!U223/'Population 2016'!U$14","v":0},{"$f":"'Population 2016'!V223/'Population 2016'!V$14","v":1.050420168067227E-2},{"$f":"'Population 2016'!W223/'Population 2016'!W$14","v":1.1162290142057683E-2},{"$f":"'Population 2016'!X223/'Population 2016'!X$14","v":1.1162290142057683E-2},{"$f":"'Population 2016'!Y223/'Population 2016'!Y$14","v":1.1484121574877396E-2},{"$f":"'Population 2016'!Z223/'Population 2016'!Z$14","v":4.4894441453535525E-3},{"$f":"'Population 2016'!AA223/'Population 2016'!AA$14","v":9.2407517402011488E-3},{"$f":"'Population 2016'!AB223/'Population 2016'!AB$14","v":1.6736672553721535E-2},{"$f":"'Population 2016'!AC223/'Population 2016'!AC$14","v":1.0384286890240367E-2},{"$f":"'Population 2016'!AD223/'Population 2016'!AD$14","v":5.6176354169838322E-3},{"$f":"'Population 2016'!AE223/'Population 2016'!AE$14","v":5.5900277773939001E-3},{"$f":"'Population 2016'!AF223/'Population 2016'!AF$14","v":6.9405664140406859E-3},{"$f":"'Population 2016'!AG223/'Population 2016'!AG$14","v":5.5900277773939001E-3},{"$f":"'Population 2016'!AH223/'Population 2016'!AH$14","v":7.1394247271229488E-3},{"$f":"'Population 2016'!AI223/'Population 2016'!AI$14","v":1.5233243686143323E-2},{"$f":"'Population 2016'!AJ223/'Population 2016'!AJ$14","v":8.9998915675714754E-3},{"$f":"'Population 2016'!AK223/'Population 2016'!AK$14","v":8.3627423104584448E-3},{"$f":"'Population 2016'!AL223/'Population 2016'!AL$14","v":6.3925300772131443E-3},{"$f":"'Population 2016'!AM223/'Population 2016'!AM$14","v":5.6149075111341842E-3},{"$f":"'Population 2016'!AN223/'Population 2016'!AN$14","v":3.9649884042791952E-3},{"$f":"'Population 2016'!AO223/'Population 2016'!AO$14","v":3.9649884042791952E-3},{"$f":"'Population 2016'!AP223/'Population 2016'!AP$14","v":1.1371273712737127E-2},{"$f":"'Population 2016'!AQ223/'Population 2016'!AQ$14","v":1.1799383996258087E-2},{"$f":"'Population 2016'!AR223/'Population 2016'!AR$14","v":1.0978440547964988E-2},{"$f":"'Population 2016'!AS223/'Population 2016'!AS$14","v":5.7406458226550491E-3},{"$f":"'Population 2016'!AT223/'Population 2016'!AT$14","v":0},{"$f":"'Population 2016'!AU223/'Population 2016'!AU$14","v":0},{"$f":"'Population 2016'!AV223/'Population 2016'!AV$14","v":1.5447793278282657E-2},{"$f":"'Population 2016'!AW223/'Population 2016'!AW$14","v":8.7897894492947951E-3},{"$f":"'Population 2016'!AX223/'Population 2016'!AX$14","v":1.4877038400841662E-2},{"$f":"'Population 2016'!AY223/'Population 2016'!AY$14","v":1.0780158511483168E-2},{"$f":"'Population 2016'!AZ223/'Population 2016'!AZ$14","v":1.0440426802198307E-2},{"$f":"'Population 2016'!BA223/'Population 2016'!BA$14","v":2.9358431914342457E-3},{"$f":"'Population 2016'!BB223/'Population 2016'!BB$14","v":9.7434175984024932E-3},{"$f":"'Population 2016'!BC223/'Population 2016'!BC$14","v":0},221]
[null,"Female 60-64",{"$f":"'Population 2016'!C224/'Population 2016'!C$14","v":1.4537902388369679E-2},{"$f":"'Population 2016'!D224/'Population 2016'!D$14","v":1.5657124297957219E-2},{"$f":"'Population 2016'!E224/'Population 2016'!E$14","v":1.6744388334501172E-2},{"$f":"'Population 2016'!F224/'Population 2016'!F$14","v":1.0285034283447611E-2},{"$f":"'Population 2016'!G224/'Population 2016'!G$14","v":4.1845001528584532E-3},{"$f":"'Population 2016'!H224/'Population 2016'!H$14","v":8.7407680297528195E-3},{"$f":"'Population 2016'!I224/'Population 2016'!I$14","v":5.3159551878157723E-3},{"$f":"'Population 2016'!J224/'Population 2016'!J$14","v":1.1857410881801126E-2},{"$f":"'Population 2016'!K224/'Population 2016'!K$14","v":9.524396634096724E-3},{"$f":"'Population 2016'!L224/'Population 2016'!L$14","v":5.7865818717064239E-3},{"$f":"'Population 2016'!M224/'Population 2016'!M$14","v":5.7865818717064239E-3},{"$f":"'Population 2016'!N224/'Population 2016'!N$14","v":6.8255225790724607E-3},{"$f":"'Population 2016'!O224/'Population 2016'!O$14","v":6.5174491067719149E-3},{"$f":"'Population 2016'!P224/'Population 2016'!P$14","v":3.0539609644087255E-2},{"$f":"'Population 2016'!Q224/'Population 2016'!Q$14","v":8.3458263140812634E-3},{"$f":"'Population 2016'!R224/'Population 2016'!R$14","v":3.1111893652610266E-2},{"$f":"'Population 2016'!S224/'Population 2016'!S$14","v":1.1712452115022746E-2},{"$f":"'Population 2016'!T224/'Population 2016'!T$14","v":1.6214856742390631E-2},{"$f":"'Population 2016'!U224/'Population 2016'!U$14","v":0},{"$f":"'Population 2016'!V224/'Population 2016'!V$14","v":8.7567737375323969E-3},{"$f":"'Population 2016'!W224/'Population 2016'!W$14","v":1.0348687042617306E-2},{"$f":"'Population 2016'!X224/'Population 2016'!X$14","v":1.0348687042617306E-2},{"$f":"'Population 2016'!Y224/'Population 2016'!Y$14","v":1.0238855380011172E-2},{"$f":"'Population 2016'!Z224/'Population 2016'!Z$14","v":3.9441488194125133E-3},{"$f":"'Population 2016'!AA224/'Population 2016'!AA$14","v":8.0528100160839299E-3},{"$f":"'Population 2016'!AB224/'Population 2016'!AB$14","v":1.4540680239694632E-2},{"$f":"'Population 2016'!AC224/'Population 2016'!AC$14","v":9.1733664490015708E-3},{"$f":"'Population 2016'!AD224/'Population 2016'!AD$14","v":5.0594241289366581E-3},{"$f":"'Population 2016'!AE224/'Population 2016'!AE$14","v":5.3758239935877061E-3},{"$f":"'Population 2016'!AF224/'Population 2016'!AF$14","v":7.9776625448743522E-3},{"$f":"'Population 2016'!AG224/'Population 2016'!AG$14","v":5.3758239935877061E-3},{"$f":"'Population 2016'!AH224/'Population 2016'!AH$14","v":5.9937080268817333E-3},{"$f":"'Population 2016'!AI224/'Population 2016'!AI$14","v":1.2989521955088283E-2},{"$f":"'Population 2016'!AJ224/'Population 2016'!AJ$14","v":7.7709907109552896E-3},{"$f":"'Population 2016'!AK224/'Population 2016'!AK$14","v":8.4463697335630302E-3},{"$f":"'Population 2016'!AL224/'Population 2016'!AL$14","v":5.6503262105704194E-3},{"$f":"'Population 2016'!AM224/'Population 2016'!AM$14","v":4.4081350127963426E-3},{"$f":"'Population 2016'!AN224/'Population 2016'!AN$14","v":4.1894217101817906E-3},{"$f":"'Population 2016'!AO224/'Population 2016'!AO$14","v":4.1894217101817906E-3},{"$f":"'Population 2016'!AP224/'Population 2016'!AP$14","v":1.0699186991869919E-2},{"$f":"'Population 2016'!AQ224/'Population 2016'!AQ$14","v":9.8666501928321177E-3},{"$f":"'Population 2016'!AR224/'Population 2016'!AR$14","v":9.6403052094726233E-3},{"$f":"'Population 2016'!AS224/'Population 2016'!AS$14","v":5.3159551878157723E-3},{"$f":"'Population 2016'!AT224/'Population 2016'!AT$14","v":0},{"$f":"'Population 2016'!AU224/'Population 2016'!AU$14","v":0},{"$f":"'Population 2016'!AV224/'Population 2016'!AV$14","v":1.5106815115710198E-2},{"$f":"'Population 2016'!AW224/'Population 2016'!AW$14","v":7.7101686476147282E-3},{"$f":"'Population 2016'!AX224/'Population 2016'!AX$14","v":1.3101657022619674E-2},{"$f":"'Population 2016'!AY224/'Population 2016'!AY$14","v":9.7023452568112938E-3},{"$f":"'Population 2016'!AZ224/'Population 2016'!AZ$14","v":9.1277191800743993E-3},{"$f":"'Population 2016'!BA224/'Population 2016'!BA$14","v":2.3141352214834641E-3},{"$f":"'Population 2016'!BB224/'Population 2016'!BB$14","v":8.2371472099568785E-3},{"$f":"'Population 2016'!BC224/'Population 2016'!BC$14","v":0},222]
[null,"Female 65-69",0,0,0,0,0,0,0,0,0,0,0,0,0,0,0,0,0,0,0,0,0,0,0,0,0,0,0,0,0,0,0,0,0,0,0,0,0,0,0,0,0,0,0,0,0,0,0,0,0,0,0,0,0,223]
[null,"Female 70-74",0,0,0,0,0,0,0,0,0,0,0,0,0,0,0,0,0,0,0,0,0,0,0,0,0,0,0,0,0,0,0,0,0,0,0,0,0,0,0,0,0,0,0,0,0,0,0,0,0,0,0,0,0,224]
[null,"Female 75-79",0,0,0,0,0,0,0,0,0,0,0,0,0,0,0,0,0,0,0,0,0,0,0,0,0,0,0,0,0,0,0,0,0,0,0,0,0,0,0,0,0,0,0,0,0,0,0,0,0,0,0,0,0,225]
[null,"Female 80-84",0,0,0,0,0,0,0,0,0,0,0,0,0,0,0,0,0,0,0,0,0,0,0,0,0,0,0,0,0,0,0,0,0,0,0,0,0,0,0,0,0,0,0,0,0,0,0,0,0,0,0,0,0,226]
[null,"Female 85-89",0,0,0,0,0,0,0,0,0,0,0,0,0,0,0,0,0,0,0,0,0,0,0,0,0,0,0,0,0,0,0,0,0,0,0,0,0,0,0,0,0,0,0,0,0,0,0,0,0,0,0,0,0,227]
[null,"Female 90+",0,0,0,0,0,0,0,0,0,0,0,0,0,0,0,0,0,0,0,0,0,0,0,0,0,0,0,0,0,0,0,0,0,0,0,0,0,0,0,0,0,0,0,0,0,0,0,0,0,0,0,0,0,228]
[null,"Male 0-4",{"$f":"'Population 2016'!C231/'Population 2016'!C$14","v":0},{"$f":"'Population 2016'!D231/'Population 2016'!D$14","v":0},{"$f":"'Population 2016'!E231/'Population 2016'!E$14","v":0},{"$f":"'Population 2016'!F231/'Population 2016'!F$14","v":0},{"$f":"'Population 2016'!G231/'Population 2016'!G$14","v":0},{"$f":"'Population 2016'!H231/'Population 2016'!H$14","v":0},{"$f":"'Population 2016'!I231/'Population 2016'!I$14","v":0},{"$f":"'Population 2016'!J231/'Population 2016'!J$14","v":0},{"$f":"'Population 2016'!K231/'Population 2016'!K$14","v":0},{"$f":"'Population 2016'!L231/'Population 2016'!L$14","v":0},{"$f":"'Population 2016'!M231/'Population 2016'!M$14","v":0},{"$f":"'Population 2016'!N231/'Population 2016'!N$14","v":0},{"$f":"'Population 2016'!O231/'Population 2016'!O$14","v":0},{"$f":"'Population 2016'!P231/'Population 2016'!P$14","v":0},{"$f":"'Population 2016'!Q231/'Population 2016'!Q$14","v":0},{"$f":"'Population 2016'!R231/'Population 2016'!R$14","v":0},{"$f":"'Population 2016'!S231/'Population 2016'!S$14","v":0},{"$f":"'Population 2016'!T231/'Population 2016'!T$14","v":0},{"$f":"'Population 2016'!U231/'Population 2016'!U$14","v":0},{"$f":"'Population 2016'!V231/'Population 2016'!V$14","v":0},{"$f":"'Population 2016'!W231/'Population 2016'!W$14","v":0},{"$f":"'Population 2016'!X231/'Population 2016'!X$14","v":0},{"$f":"'Population 2016'!Y231/'Population 2016'!Y$14","v":0},{"$f":"'Population 2016'!Z231/'Population 2016'!Z$14","v":0},{"$f":"'Population 2016'!AA231/'Population 2016'!AA$14","v":0},{"$f":"'Population 2016'!AB231/'Population 2016'!AB$14","v":0},{"$f":"'Population 2016'!AC231/'Population 2016'!AC$14","v":0},{"$f":"'Population 2016'!AD231/'Population 2016'!AD$14","v":0},{"$f":"'Population 2016'!AE231/'Population 2016'!AE$14","v":0},{"$f":"'Population 2016'!AF231/'Population 2016'!AF$14","v":0},{"$f":"'Population 2016'!AG231/'Population 2016'!AG$14","v":0},{"$f":"'Population 2016'!AH231/'Population 2016'!AH$14","v":0},{"$f":"'Population 2016'!AI231/'Population 2016'!AI$14","v":0},{"$f":"'Population 2016'!AJ231/'Population 2016'!AJ$14","v":0},{"$f":"'Population 2016'!AK231/'Population 2016'!AK$14","v":0},{"$f":"'Population 2016'!AL231/'Population 2016'!AL$14","v":0},{"$f":"'Population 2016'!AM231/'Population 2016'!AM$14","v":0},{"$f":"'Population 2016'!AN231/'Population 2016'!AN$14","v":0},{"$f":"'Population 2016'!AO231/'Population 2016'!AO$14","v":0},{"$f":"'Population 2016'!AP231/'Population 2016'!AP$14","v":0},{"$f":"'Population 2016'!AQ231/'Population 2016'!AQ$14","v":0},{"$f":"'Population 2016'!AR231/'Population 2016'!AR$14","v":0},{"$f":"'Population 2016'!AS231/'Population 2016'!AS$14","v":0},{"$f":"'Population 2016'!AT231/'Population 2016'!AT$14","v":0},{"$f":"'Population 2016'!AU231/'Population 2016'!AU$14","v":0},{"$f":"'Population 2016'!AV231/'Population 2016'!AV$14","v":0},{"$f":"'Population 2016'!AW231/'Population 2016'!AW$14","v":0},{"$f":"'Population 2016'!AX231/'Population 2016'!AX$14","v":0},{"$f":"'Population 2016'!AY231/'Population 2016'!AY$14","v":0},{"$f":"'Population 2016'!AZ231/'Population 2016'!AZ$14","v":0},{"$f":"'Population 2016'!BA231/'Population 2016'!BA$14","v":0},{"$f":"'Population 2016'!BB231/'Population 2016'!BB$14","v":0},{"$f":"'Population 2016'!BC231/'Population 2016'!BC$14","v":0},229]
[null,"Male 5-9",{"$f":"'Population 2016'!C232/'Population 2016'!C$14","v":0},{"$f":"'Population 2016'!D232/'Population 2016'!D$14","v":0},{"$f":"'Population 2016'!E232/'Population 2016'!E$14","v":0},{"$f":"'Population 2016'!F232/'Population 2016'!F$14","v":0},{"$f":"'Population 2016'!G232/'Population 2016'!G$14","v":0},{"$f":"'Population 2016'!H232/'Population 2016'!H$14","v":0},{"$f":"'Population 2016'!I232/'Population 2016'!I$14","v":0},{"$f":"'Population 2016'!J232/'Population 2016'!J$14","v":0},{"$f":"'Population 2016'!K232/'Population 2016'!K$14","v":0},{"$f":"'Population 2016'!L232/'Population 2016'!L$14","v":0},{"$f":"'Population 2016'!M232/'Population 2016'!M$14","v":0},{"$f":"'Population 2016'!N232/'Population 2016'!N$14","v":0},{"$f":"'Population 2016'!O232/'Population 2016'!O$14","v":0},{"$f":"'Population 2016'!P232/'Population 2016'!P$14","v":0},{"$f":"'Population 2016'!Q232/'Population 2016'!Q$14","v":0},{"$f":"'Population 2016'!R232/'Population 2016'!R$14","v":0},{"$f":"'Population 2016'!S232/'Population 2016'!S$14","v":0},{"$f":"'Population 2016'!T232/'Population 2016'!T$14","v":0},{"$f":"'Population 2016'!U232/'Population 2016'!U$14","v":0},{"$f":"'Population 2016'!V232/'Population 2016'!V$14","v":0},{"$f":"'Population 2016'!W232/'Population 2016'!W$14","v":0},{"$f":"'Population 2016'!X232/'Population 2016'!X$14","v":0},{"$f":"'Population 2016'!Y232/'Population 2016'!Y$14","v":0},{"$f":"'Population 2016'!Z232/'Population 2016'!Z$14","v":0},{"$f":"'Population 2016'!AA232/'Population 2016'!AA$14","v":0},{"$f":"'Population 2016'!AB232/'Population 2016'!AB$14","v":0},{"$f":"'Population 2016'!AC232/'Population 2016'!AC$14","v":0},{"$f":"'Population 2016'!AD232/'Population 2016'!AD$14","v":0},{"$f":"'Population 2016'!AE232/'Population 2016'!AE$14","v":0},{"$f":"'Population 2016'!AF232/'Population 2016'!AF$14","v":0},{"$f":"'Population 2016'!AG232/'Population 2016'!AG$14","v":0},{"$f":"'Population 2016'!AH232/'Population 2016'!AH$14","v":0},{"$f":"'Population 2016'!AI232/'Population 2016'!AI$14","v":0},{"$f":"'Population 2016'!AJ232/'Population 2016'!AJ$14","v":0},{"$f":"'Population 2016'!AK232/'Population 2016'!AK$14","v":0},{"$f":"'Population 2016'!AL232/'Population 2016'!AL$14","v":0},{"$f":"'Population 2016'!AM232/'Population 2016'!AM$14","v":0},{"$f":"'Population 2016'!AN232/'Population 2016'!AN$14","v":0},{"$f":"'Population 2016'!AO232/'Population 2016'!AO$14","v":0},{"$f":"'Population 2016'!AP232/'Population 2016'!AP$14","v":0},{"$f":"'Population 2016'!AQ232/'Population 2016'!AQ$14","v":0},{"$f":"'Population 2016'!AR232/'Population 2016'!AR$14","v":0},{"$f":"'Population 2016'!AS232/'Population 2016'!AS$14","v":0},{"$f":"'Population 2016'!AT232/'Population 2016'!AT$14","v":0},{"$f":"'Population 2016'!AU232/'Population 2016'!AU$14","v":0},{"$f":"'Population 2016'!AV232/'Population 2016'!AV$14","v":0},{"$f":"'Population 2016'!AW232/'Population 2016'!AW$14","v":0},{"$f":"'Population 2016'!AX232/'Population 2016'!AX$14","v":0},{"$f":"'Population 2016'!AY232/'Population 2016'!AY$14","v":0},{"$f":"'Population 2016'!AZ232/'Population 2016'!AZ$14","v":0},{"$f":"'Population 2016'!BA232/'Population 2016'!BA$14","v":0},{"$f":"'Population 2016'!BB232/'Population 2016'!BB$14","v":0},{"$f":"'Population 2016'!BC232/'Population 2016'!BC$14","v":0},230]
[null,"Male 10-15",{"$f":"'Population 2016'!C233/'Population 2016'!C$14","v":0},{"$f":"'Population 2016'!D233/'Population 2016'!D$14","v":0},{"$f":"'Population 2016'!E233/'Population 2016'!E$14","v":0},{"$f":"'Population 2016'!F233/'Population 2016'!F$14","v":0},{"$f":"'Population 2016'!G233/'Population 2016'!G$14","v":0},{"$f":"'Population 2016'!H233/'Population 2016'!H$14","v":0},{"$f":"'Population 2016'!I233/'Population 2016'!I$14","v":0},{"$f":"'Population 2016'!J233/'Population 2016'!J$14","v":0},{"$f":"'Population 2016'!K233/'Population 2016'!K$14","v":0},{"$f":"'Population 2016'!L233/'Population 2016'!L$14","v":0},{"$f":"'Population 2016'!M233/'Population 2016'!M$14","v":0},{"$f":"'Population 2016'!N233/'Population 2016'!N$14","v":0},{"$f":"'Population 2016'!O233/'Population 2016'!O$14","v":0},{"$f":"'Population 2016'!P233/'Population 2016'!P$14","v":0},{"$f":"'Population 2016'!Q233/'Population 2016'!Q$14","v":0},{"$f":"'Population 2016'!R233/'Population 2016'!R$14","v":0},{"$f":"'Population 2016'!S233/'Population 2016'!S$14","v":0},{"$f":"'Population 2016'!T233/'Population 2016'!T$14","v":0},{"$f":"'Population 2016'!U233/'Population 2016'!U$14","v":0},{"$f":"'Population 2016'!V233/'Population 2016'!V$14","v":0},{"$f":"'Population 2016'!W233/'Population 2016'!W$14","v":0},{"$f":"'Population 2016'!X233/'Population 2016'!X$14","v":0},{"$f":"'Population 2016'!Y233/'Population 2016'!Y$14","v":0},{"$f":"'Population 2016'!Z233/'Population 2016'!Z$14","v":0},{"$f":"'Population 2016'!AA233/'Population 2016'!AA$14","v":0},{"$f":"'Population 2016'!AB233/'Population 2016'!AB$14","v":0},{"$f":"'Population 2016'!AC233/'Population 2016'!AC$14","v":0},{"$f":"'Population 2016'!AD233/'Population 2016'!AD$14","v":0},{"$f":"'Population 2016'!AE233/'Population 2016'!AE$14","v":0},{"$f":"'Population 2016'!AF233/'Population 2016'!AF$14","v":0},{"$f":"'Population 2016'!AG233/'Population 2016'!AG$14","v":0},{"$f":"'Population 2016'!AH233/'Population 2016'!AH$14","v":0},{"$f":"'Population 2016'!AI233/'Population 2016'!AI$14","v":0},{"$f":"'Population 2016'!AJ233/'Population 2016'!AJ$14","v":0},{"$f":"'Population 2016'!AK233/'Population 2016'!AK$14","v":0},{"$f":"'Population 2016'!AL233/'Population 2016'!AL$14","v":0},{"$f":"'Population 2016'!AM233/'Population 2016'!AM$14","v":0},{"$f":"'Population 2016'!AN233/'Population 2016'!AN$14","v":0},{"$f":"'Population 2016'!AO233/'Population 2016'!AO$14","v":0},{"$f":"'Population 2016'!AP233/'Population 2016'!AP$14","v":0},{"$f":"'Population 2016'!AQ233/'Population 2016'!AQ$14","v":0},{"$f":"'Population 2016'!AR233/'Population 2016'!AR$14","v":0},{"$f":"'Population 2016'!AS233/'Population 2016'!AS$14","v":0},{"$f":"'Population 2016'!AT233/'Population 2016'!AT$14","v":0},{"$f":"'Population 2016'!AU233/'Population 2016'!AU$14","v":0},{"$f":"'Population 2016'!AV233/'Population 2016'!AV$14","v":0},{"$f":"'Population 2016'!AW233/'Population 2016'!AW$14","v":0},{"$f":"'Population 2016'!AX233/'Population 2016'!AX$14","v":0},{"$f":"'Population 2016'!AY233/'Population 2016'!AY$14","v":0},{"$f":"'Population 2016'!AZ233/'Population 2016'!AZ$14","v":0},{"$f":"'Population 2016'!BA233/'Population 2016'!BA$14","v":0},{"$f":"'Population 2016'!BB233/'Population 2016'!BB$14","v":0},{"$f":"'Population 2016'!BC233/'Population 2016'!BC$14","v":0},231]
[null,"Male 16-19",{"$f":"'Population 2016'!C234/'Population 2016'!C$14","v":1.1397765217229093E-2},{"$f":"'Population 2016'!D234/'Population 2016'!D$14","v":1.2372498613532535E-2},{"$f":"'Population 2016'!E234/'Population 2016'!E$14","v":1.3319399811535022E-2},{"$f":"'Population 2016'!F234/'Population 2016'!F$14","v":7.1258570861902869E-3},{"$f":"'Population 2016'!G234/'Population 2016'!G$14","v":6.4200550290431065E-3},{"$f":"'Population 2016'!H234/'Population 2016'!H$14","v":5.0655228672175151E-3},{"$f":"'Population 2016'!I234/'Population 2016'!I$14","v":4.2761953576920262E-3},{"$f":"'Population 2016'!J234/'Population 2016'!J$14","v":1.2822299651567944E-2},{"$f":"'Population 2016'!K234/'Population 2016'!K$14","v":4.8392565422433189E-3},{"$f":"'Population 2016'!L234/'Population 2016'!L$14","v":3.2022831717210304E-3},{"$f":"'Population 2016'!M234/'Population 2016'!M$14","v":3.2022831717210304E-3},{"$f":"'Population 2016'!N234/'Population 2016'!N$14","v":6.4598695837650068E-3},{"$f":"'Population 2016'!O234/'Population 2016'!O$14","v":4.3622766929788115E-3},{"$f":"'Population 2016'!P234/'Population 2016'!P$14","v":2.2319173363949483E-2},{"$f":"'Population 2016'!Q234/'Population 2016'!Q$14","v":5.5020632737276479E-3},{"$f":"'Population 2016'!R234/'Population 2016'!R$14","v":2.6357954045250463E-2},{"$f":"'Population 2016'!S234/'Population 2016'!S$14","v":1.0101316303571669E-2},{"$f":"'Population 2016'!T234/'Population 2016'!T$14","v":1.398241742093915E-2},{"$f":"'Population 2016'!U234/'Population 2016'!U$14","v":0},{"$f":"'Population 2016'!V234/'Population 2016'!V$14","v":6.9504437288934262E-3},{"$f":"'Population 2016'!W234/'Population 2016'!W$14","v":9.3844167025398193E-3},{"$f":"'Population 2016'!X234/'Population 2016'!X$14","v":9.3844167025398193E-3},{"$f":"'Population 2016'!Y234/'Population 2016'!Y$14","v":9.7571474692398751E-3},{"$f":"'Population 2016'!Z234/'Population 2016'!Z$14","v":3.0407146141457927E-3},{"$f":"'Population 2016'!AA234/'Population 2016'!AA$14","v":6.1274100868265275E-3},{"$f":"'Population 2016'!AB234/'Population 2016'!AB$14","v":1.2020986228434992E-2},{"$f":"'Population 2016'!AC234/'Population 2016'!AC$14","v":6.9756746694766888E-3},{"$f":"'Population 2016'!AD234/'Population 2016'!AD$14","v":4.2322564930122094E-3},{"$f":"'Population 2016'!AE234/'Population 2016'!AE$14","v":3.4410801398543412E-3},{"$f":"'Population 2016'!AF234/'Population 2016'!AF$14","v":4.0885520542481056E-3},{"$f":"'Population 2016'!AG234/'Population 2016'!AG$14","v":3.4410801398543412E-3},{"$f":"'Population 2016'!AH234/'Population 2016'!AH$14","v":4.5686637013750966E-3},{"$f":"'Population 2016'!AI234/'Population 2016'!AI$14","v":1.1057616537110378E-2},{"$f":"'Population 2016'!AJ234/'Population 2016'!AJ$14","v":6.3252249972891895E-3},{"$f":"'Population 2016'!AK234/'Population 2016'!AK$14","v":1.0102192711033802E-2},{"$f":"'Population 2016'!AL234/'Population 2016'!AL$14","v":3.7469324235350453E-3},{"$f":"'Population 2016'!AM234/'Population 2016'!AM$14","v":3.7478255325737496E-3},{"$f":"'Population 2016'!AN234/'Population 2016'!AN$14","v":2.2443330590259593E-3},{"$f":"'Population 2016'!AO234/'Population 2016'!AO$14","v":2.2443330590259593E-3},{"$f":"'Population 2016'!AP234/'Population 2016'!AP$14","v":6.2439024390243906E-3},{"$f":"'Population 2016'!AQ234/'Population 2016'!AQ$14","v":7.3337981308081298E-3},{"$f":"'Population 2016'!AR234/'Population 2016'!AR$14","v":7.7098945509237859E-3},{"$f":"'Population 2016'!AS234/'Population 2016'!AS$14","v":4.2761953576920262E-3},{"$f":"'Population 2016'!AT234/'Population 2016'!AT$14","v":0},{"$f":"'Population 2016'!AU234/'Population 2016'!AU$14","v":0},{"$f":"'Population 2016'!AV234/'Population 2016'!AV$14","v":7.5015195765940727E-3},{"$f":"'Population 2016'!AW234/'Population 2016'!AW$14","v":5.4572613126019848E-3},{"$f":"'Population 2016'!AX234/'Population 2016'!AX$14","v":1.7079826407154129E-2},{"$f":"'Population 2016'!AY234/'Population 2016'!AY$14","v":7.8911327574190827E-3},{"$f":"'Population 2016'!AZ234/'Population 2016'!AZ$14","v":6.5635381106195368E-3},{"$f":"'Population 2016'!BA234/'Population 2016'!BA$14","v":1.8651239098523443E-3},{"$f":"'Population 2016'!BB234/'Population 2016'!BB$14","v":7.4969229047778894E-3},{"$f":"'Population 2016'!BC234/'Population 2016'!BC$14","v":0},232]
[null,"Male 20-24",{"$f":"'Population 2016'!C235/'Population 2016'!C$14","v":1.8971402988415691E-2},{"$f":"'Population 2016'!D235/'Population 2016'!D$14","v":1.6643737609883292E-2},{"$f":"'Population 2016'!E235/'Population 2016'!E$14","v":1.4382535578804938E-2},{"$f":"'Population 2016'!F235/'Population 2016'!F$14","v":7.4375247917493059E-3},{"$f":"'Population 2016'!G235/'Population 2016'!G$14","v":1.7005502904310608E-2},{"$f":"'Population 2016'!H235/'Population 2016'!H$14","v":5.534796414223813E-3},{"$f":"'Population 2016'!I235/'Population 2016'!I$14","v":3.5146811159112541E-3},{"$f":"'Population 2016'!J235/'Population 2016'!J$14","v":1.4526936478155991E-2},{"$f":"'Population 2016'!K235/'Population 2016'!K$14","v":5.0550195727891998E-3},{"$f":"'Population 2016'!L235/'Population 2016'!L$14","v":3.5168934482409913E-3},{"$f":"'Population 2016'!M235/'Population 2016'!M$14","v":3.5168934482409913E-3},{"$f":"'Population 2016'!N235/'Population 2016'!N$14","v":8.1967213114754103E-3},{"$f":"'Population 2016'!O235/'Population 2016'!O$14","v":4.9465101786456168E-3},{"$f":"'Population 2016'!P235/'Population 2016'!P$14","v":2.6513585916570992E-2},{"$f":"'Population 2016'!Q235/'Population 2016'!Q$14","v":6.9857657295643166E-3},{"$f":"'Population 2016'!R235/'Population 2016'!R$14","v":2.8893388502509023E-2},{"$f":"'Population 2016'!S235/'Population 2016'!S$14","v":1.6425726077720741E-2},{"$f":"'Population 2016'!T235/'Population 2016'!T$14","v":2.5528932696193267E-2},{"$f":"'Population 2016'!U235/'Population 2016'!U$14","v":0},{"$f":"'Population 2016'!V235/'Population 2016'!V$14","v":8.1677530825414284E-3},{"$f":"'Population 2016'!W235/'Population 2016'!W$14","v":1.5393887214808437E-2},{"$f":"'Population 2016'!X235/'Population 2016'!X$14","v":1.5393887214808437E-2},{"$f":"'Population 2016'!Y235/'Population 2016'!Y$14","v":1.1207395753796012E-2},{"$f":"'Population 2016'!Z235/'Population 2016'!Z$14","v":7.2598216699438301E-3},{"$f":"'Population 2016'!AA235/'Population 2016'!AA$14","v":8.377324995495164E-3},{"$f":"'Population 2016'!AB235/'Population 2016'!AB$14","v":1.6104806840723226E-2},{"$f":"'Population 2016'!AC235/'Population 2016'!AC$14","v":1.0050639662282018E-2},{"$f":"'Population 2016'!AD235/'Population 2016'!AD$14","v":6.9624171563702061E-3},{"$f":"'Population 2016'!AE235/'Population 2016'!AE$14","v":3.3305233482124347E-3},{"$f":"'Population 2016'!AF235/'Population 2016'!AF$14","v":3.7295572397287595E-3},{"$f":"'Population 2016'!AG235/'Population 2016'!AG$14","v":3.3305233482124347E-3},{"$f":"'Population 2016'!AH235/'Population 2016'!AH$14","v":5.3024905135130654E-3},{"$f":"'Population 2016'!AI235/'Population 2016'!AI$14","v":1.8325987008783393E-2},{"$f":"'Population 2016'!AJ235/'Population 2016'!AJ$14","v":7.1023240683847182E-3},{"$f":"'Population 2016'!AK235/'Population 2016'!AK$14","v":1.3162956396661592E-2},{"$f":"'Population 2016'!AL235/'Population 2016'!AL$14","v":3.9504399353564373E-3},{"$f":"'Population 2016'!AM235/'Population 2016'!AM$14","v":4.2123190979717114E-3},{"$f":"'Population 2016'!AN235/'Population 2016'!AN$14","v":3.5161217924740032E-3},{"$f":"'Population 2016'!AO235/'Population 2016'!AO$14","v":3.5161217924740032E-3},{"$f":"'Population 2016'!AP235/'Population 2016'!AP$14","v":7.2086720867208676E-3},{"$f":"'Population 2016'!AQ235/'Population 2016'!AQ$14","v":8.4987335739689883E-3},{"$f":"'Population 2016'!AR235/'Population 2016'!AR$14","v":1.0908238586952005E-2},{"$f":"'Population 2016'!AS235/'Population 2016'!AS$14","v":3.5146811159112541E-3},{"$f":"'Population 2016'!AT235/'Population 2016'!AT$14","v":0},{"$f":"'Population 2016'!AU235/'Population 2016'!AU$14","v":0},{"$f":"'Population 2016'!AV235/'Population 2016'!AV$14","v":8.1686507642358391E-3},{"$f":"'Population 2016'!AW235/'Population 2016'!AW$14","v":6.4826545854305417E-3},{"$f":"'Population 2016'!AX235/'Population 2016'!AX$14","v":1.9578511309836927E-2},{"$f":"'Population 2016'!AY235/'Population 2016'!AY$14","v":1.1290701632117215E-2},{"$f":"'Population 2016'!AZ235/'Population 2016'!AZ$14","v":7.6427904413453145E-3},{"$f":"'Population 2016'!BA235/'Population 2016'!BA$14","v":2.3659442189793629E-3},{"$f":"'Population 2016'!BB235/'Population 2016'!BB$14","v":8.0477875039808577E-3},{"$f":"'Population 2016'!BC235/'Population 2016'!BC$14","v":0},233]
[null,"Male 25-29",{"$f":"'Population 2016'!C236/'Population 2016'!C$14","v":2.7726478507160136E-2},{"$f":"'Population 2016'!D236/'Population 2016'!D$14","v":2.0672919302997528E-2},{"$f":"'Population 2016'!E236/'Population 2016'!E$14","v":1.3820764974508903E-2},{"$f":"'Population 2016'!F236/'Population 2016'!F$14","v":5.822519408398028E-3},{"$f":"'Population 2016'!G236/'Population 2016'!G$14","v":1.3298685417303576E-2},{"$f":"'Population 2016'!H236/'Population 2016'!H$14","v":3.8638317281546584E-3},{"$f":"'Population 2016'!I236/'Population 2016'!I$14","v":2.4309877718386177E-3},{"$f":"'Population 2016'!J236/'Population 2016'!J$14","v":7.5904583221656392E-3},{"$f":"'Population 2016'!K236/'Population 2016'!K$14","v":3.5446783589680362E-3},{"$f":"'Population 2016'!L236/'Population 2016'!L$14","v":2.9326172204182069E-3},{"$f":"'Population 2016'!M236/'Population 2016'!M$14","v":2.9326172204182069E-3},{"$f":"'Population 2016'!N236/'Population 2016'!N$14","v":7.6177707355719422E-3},{"$f":"'Population 2016'!O236/'Population 2016'!O$14","v":3.9727877025342749E-3},{"$f":"'Population 2016'!P236/'Population 2016'!P$14","v":2.1446613088404134E-2},{"$f":"'Population 2016'!Q236/'Population 2016'!Q$14","v":5.3011452328330993E-3},{"$f":"'Population 2016'!R236/'Population 2016'!R$14","v":2.0248261290606567E-2},{"$f":"'Population 2016'!S236/'Population 2016'!S$14","v":1.4094912179063992E-2},{"$f":"'Population 2016'!T236/'Population 2016'!T$14","v":2.5020275635609386E-2},{"$f":"'Population 2016'!U236/'Population 2016'!U$14","v":0},{"$f":"'Population 2016'!V236/'Population 2016'!V$14","v":8.0204979187936849E-3},{"$f":"'Population 2016'!W236/'Population 2016'!W$14","v":8.5751183814033582E-3},{"$f":"'Population 2016'!X236/'Population 2016'!X$14","v":8.5751183814033582E-3},{"$f":"'Population 2016'!Y236/'Population 2016'!Y$14","v":7.8149421694279457E-3},{"$f":"'Population 2016'!Z236/'Population 2016'!Z$14","v":7.7011411922096708E-3},{"$f":"'Population 2016'!AA236/'Population 2016'!AA$14","v":7.233597394536803E-3},{"$f":"'Population 2016'!AB236/'Population 2016'!AB$14","v":1.9321106904427721E-2},{"$f":"'Population 2016'!AC236/'Population 2016'!AC$14","v":8.9247412945770085E-3},{"$f":"'Population 2016'!AD236/'Population 2016'!AD$14","v":6.0236072628363224E-3},{"$f":"'Population 2016'!AE236/'Population 2016'!AE$14","v":3.3927115435110071E-3},{"$f":"'Population 2016'!AF236/'Population 2016'!AF$14","v":3.9489429597128044E-3},{"$f":"'Population 2016'!AG236/'Population 2016'!AG$14","v":3.3927115435110071E-3},{"$f":"'Population 2016'!AH236/'Population 2016'!AH$14","v":4.1260004308273542E-3},{"$f":"'Population 2016'!AI236/'Population 2016'!AI$14","v":1.7617621688858158E-2},{"$f":"'Population 2016'!AJ236/'Population 2016'!AJ$14","v":6.7950988542306717E-3},{"$f":"'Population 2016'!AK236/'Population 2016'!AK$14","v":1.194199601933466E-2},{"$f":"'Population 2016'!AL236/'Population 2016'!AL$14","v":2.5378583827138325E-3},{"$f":"'Population 2016'!AM236/'Population 2016'!AM$14","v":3.5474557592648252E-3},{"$f":"'Population 2016'!AN236/'Population 2016'!AN$14","v":3.3664995885389392E-3},{"$f":"'Population 2016'!AO236/'Population 2016'!AO$14","v":3.3664995885389392E-3},{"$f":"'Population 2016'!AP236/'Population 2016'!AP$14","v":5.7886178861788614E-3},{"$f":"'Population 2016'!AQ236/'Population 2016'!AQ$14","v":6.6542524556309629E-3},{"$f":"'Population 2016'!AR236/'Population 2016'!AR$14","v":9.822543769489999E-3},{"$f":"'Population 2016'!AS236/'Population 2016'!AS$14","v":2.4309877718386177E-3},{"$f":"'Population 2016'!AT236/'Population 2016'!AT$14","v":0},{"$f":"'Population 2016'!AU236/'Population 2016'!AU$14","v":0},{"$f":"'Population 2016'!AV236/'Population 2016'!AV$14","v":5.3815249136435744E-3},{"$f":"'Population 2016'!AW236/'Population 2016'!AW$14","v":4.7523034375323518E-3},{"$f":"'Population 2016'!AX236/'Population 2016'!AX$14","v":9.7481588637559173E-3},{"$f":"'Population 2016'!AY236/'Population 2016'!AY$14","v":7.4697320864195527E-3},{"$f":"'Population 2016'!AZ236/'Population 2016'!AZ$14","v":6.4869953921283469E-3},{"$f":"'Population 2016'!BA236/'Population 2016'!BA$14","v":1.588809256540886E-3},{"$f":"'Population 2016'!BB236/'Population 2016'!BB$14","v":7.0837744553756635E-3},{"$f":"'Population 2016'!BC236/'Population 2016'!BC$14","v":0},234]
[null,"Male 30-34",{"$f":"'Population 2016'!C237/'Population 2016'!C$14","v":2.3995622462240629E-2},{"$f":"'Population 2016'!D237/'Population 2016'!D$14","v":2.0014155756214593E-2},{"$f":"'Population 2016'!E237/'Population 2016'!E$14","v":1.6146374465411846E-2},{"$f":"'Population 2016'!F237/'Population 2016'!F$14","v":6.5591885306284358E-3},{"$f":"'Population 2016'!G237/'Population 2016'!G$14","v":6.2671965759706514E-3},{"$f":"'Population 2016'!H237/'Population 2016'!H$14","v":3.4910443310001227E-3},{"$f":"'Population 2016'!I237/'Population 2016'!I$14","v":2.7092333601815917E-3},{"$f":"'Population 2016'!J237/'Population 2016'!J$14","v":6.2717770034843206E-3},{"$f":"'Population 2016'!K237/'Population 2016'!K$14","v":3.6371482292019849E-3},{"$f":"'Population 2016'!L237/'Population 2016'!L$14","v":3.393296553893864E-3},{"$f":"'Population 2016'!M237/'Population 2016'!M$14","v":3.393296553893864E-3},{"$f":"'Population 2016'!N237/'Population 2016'!N$14","v":5.2511832937209256E-3},{"$f":"'Population 2016'!O237/'Population 2016'!O$14","v":4.2584129621936022E-3},{"$f":"'Population 2016'!P237/'Population 2016'!P$14","v":1.8109452736318407E-2},{"$f":"'Population 2016'!Q237/'Population 2016'!Q$14","v":5.7648022502820584E-3},{"$f":"'Population 2016'!R237/'Population 2016'!R$14","v":1.649793115591161E-2},{"$f":"'Population 2016'!S237/'Population 2016'!S$14","v":1.1981910369202717E-2},{"$f":"'Population 2016'!T237/'Population 2016'!T$14","v":1.987718757859458E-2},{"$f":"'Population 2016'!U237/'Population 2016'!U$14","v":0},{"$f":"'Population 2016'!V237/'Population 2016'!V$14","v":9.5421346108536878E-3},{"$f":"'Population 2016'!W237/'Population 2016'!W$14","v":8.372793801119242E-3},{"$f":"'Population 2016'!X237/'Population 2016'!X$14","v":8.372793801119242E-3},{"$f":"'Population 2016'!Y237/'Population 2016'!Y$14","v":7.9789278411798777E-3},{"$f":"'Population 2016'!Z237/'Population 2016'!Z$14","v":6.0121120258414531E-3},{"$f":"'Population 2016'!AA237/'Population 2016'!AA$14","v":6.0873671073619021E-3},{"$f":"'Population 2016'!AB237/'Population 2016'!AB$14","v":1.8357770653463092E-2},{"$f":"'Population 2016'!AC237/'Population 2016'!AC$14","v":7.3003044047875157E-3},{"$f":"'Population 2016'!AD237/'Population 2016'!AD$14","v":4.3743466390605808E-3},{"$f":"'Population 2016'!AE237/'Population 2016'!AE$14","v":3.6898329210486311E-3},{"$f":"'Population 2016'!AF237/'Population 2016'!AF$14","v":3.7694455524531312E-3},{"$f":"'Population 2016'!AG237/'Population 2016'!AG$14","v":3.6898329210486311E-3},{"$f":"'Population 2016'!AH237/'Population 2016'!AH$14","v":3.8585087218867397E-3},{"$f":"'Population 2016'!AI237/'Population 2016'!AI$14","v":1.4475733403830935E-2},{"$f":"'Population 2016'!AJ237/'Population 2016'!AJ$14","v":6.9035312827556298E-3},{"$f":"'Population 2016'!AK237/'Population 2016'!AK$14","v":9.316094933850709E-3},{"$f":"'Population 2016'!AL237/'Population 2016'!AL$14","v":2.3582929311067218E-3},{"$f":"'Population 2016'!AM237/'Population 2016'!AM$14","v":3.1421623541626822E-3},{"$f":"'Population 2016'!AN237/'Population 2016'!AN$14","v":3.0672551806688111E-3},{"$f":"'Population 2016'!AO237/'Population 2016'!AO$14","v":3.0672551806688111E-3},{"$f":"'Population 2016'!AP237/'Population 2016'!AP$14","v":6.1571815718157183E-3},{"$f":"'Population 2016'!AQ237/'Population 2016'!AQ$14","v":5.9305804379098234E-3},{"$f":"'Population 2016'!AR237/'Population 2016'!AR$14","v":8.6431508244718871E-3},{"$f":"'Population 2016'!AS237/'Population 2016'!AS$14","v":2.7092333601815917E-3},{"$f":"'Population 2016'!AT237/'Population 2016'!AT$14","v":0},{"$f":"'Population 2016'!AU237/'Population 2016'!AU$14","v":0},{"$f":"'Population 2016'!AV237/'Population 2016'!AV$14","v":4.0176122633537427E-3},{"$f":"'Population 2016'!AW237/'Population 2016'!AW$14","v":4.6339888291290566E-3},{"$f":"'Population 2016'!AX237/'Population 2016'!AX$14","v":7.6768805891635978E-3},{"$f":"'Population 2016'!AY237/'Population 2016'!AY$14","v":7.0766949221219141E-3},{"$f":"'Population 2016'!AZ237/'Population 2016'!AZ$14","v":5.9244064112181005E-3},{"$f":"'Population 2016'!BA237/'Population 2016'!BA$14","v":1.4506519298851568E-3},{"$f":"'Population 2016'!BB237/'Population 2016'!BB$14","v":6.4812662999974178E-3},{"$f":"'Population 2016'!BC237/'Population 2016'!BC$14","v":0},235]
[null,"Male 35-39",{"$f":"'Population 2016'!C238/'Population 2016'!C$14","v":2.0283420697545719E-2},{"$f":"'Population 2016'!D238/'Population 2016'!D$14","v":1.9468760819808254E-2},{"$f":"'Population 2016'!E238/'Population 2016'!E$14","v":1.867736245681011E-2},{"$f":"'Population 2016'!F238/'Population 2016'!F$14","v":7.1258570861902869E-3},{"$f":"'Population 2016'!G238/'Population 2016'!G$14","v":5.6557627636808312E-3},{"$f":"'Population 2016'!H238/'Population 2016'!H$14","v":4.7716786835780576E-3},{"$f":"'Population 2016'!I238/'Population 2016'!I$14","v":3.9540162554001614E-3},{"$f":"'Population 2016'!J238/'Population 2016'!J$14","v":7.7512731171267757E-3},{"$f":"'Population 2016'!K238/'Population 2016'!K$14","v":4.623493511697439E-3},{"$f":"'Population 2016'!L238/'Population 2016'!L$14","v":3.6292542612838346E-3},{"$f":"'Population 2016'!M238/'Population 2016'!M$14","v":3.6292542612838346E-3},{"$f":"'Population 2016'!N238/'Population 2016'!N$14","v":5.7184065655026713E-3},{"$f":"'Population 2016'!O238/'Population 2016'!O$14","v":4.9854590776900708E-3},{"$f":"'Population 2016'!P238/'Population 2016'!P$14","v":2.1523153463451971E-2},{"$f":"'Population 2016'!Q238/'Population 2016'!Q$14","v":6.9548552617343861E-3},{"$f":"'Population 2016'!R238/'Population 2016'!R$14","v":2.4896557795580598E-2},{"$f":"'Population 2016'!S238/'Population 2016'!S$14","v":1.2172776632580198E-2},{"$f":"'Population 2016'!T238/'Population 2016'!T$14","v":1.8732709192280848E-2},{"$f":"'Population 2016'!U238/'Population 2016'!U$14","v":0},{"$f":"'Population 2016'!V238/'Population 2016'!V$14","v":1.0455116626089687E-2},{"$f":"'Population 2016'!W238/'Population 2016'!W$14","v":9.1089108910891083E-3},{"$f":"'Population 2016'!X238/'Population 2016'!X$14","v":9.1089108910891083E-3},{"$f":"'Population 2016'!Y238/'Population 2016'!Y$14","v":9.1626994091391269E-3},{"$f":"'Population 2016'!Z238/'Population 2016'!Z$14","v":5.0994355269147144E-3},{"$f":"'Population 2016'!AA238/'Population 2016'!AA$14","v":6.8915636116097948E-3},{"$f":"'Population 2016'!AB238/'Population 2016'!AB$14","v":1.7674112668907546E-2},{"$f":"'Population 2016'!AC238/'Population 2016'!AC$14","v":7.8619653754046608E-3},{"$f":"'Population 2016'!AD238/'Population 2016'!AD$14","v":5.0898720173755954E-3},{"$f":"'Population 2016'!AE238/'Population 2016'!AE$14","v":4.8852282306767461E-3},{"$f":"'Population 2016'!AF238/'Population 2016'!AF$14","v":3.7295572397287595E-3},{"$f":"'Population 2016'!AG238/'Population 2016'!AG$14","v":4.8852282306767461E-3},{"$f":"'Population 2016'!AH238/'Population 2016'!AH$14","v":5.1083814857862484E-3},{"$f":"'Population 2016'!AI238/'Population 2016'!AI$14","v":1.4329993170544881E-2},{"$f":"'Population 2016'!AJ238/'Population 2016'!AJ$14","v":7.7890627823761155E-3},{"$f":"'Population 2016'!AK238/'Population 2016'!AK$14","v":7.8777032564518561E-3},{"$f":"'Population 2016'!AL238/'Population 2016'!AL$14","v":3.3638594601065421E-3},{"$f":"'Population 2016'!AM238/'Population 2016'!AM$14","v":4.1713343716130681E-3},{"$f":"'Population 2016'!AN238/'Population 2016'!AN$14","v":4.5634772200194513E-3},{"$f":"'Population 2016'!AO238/'Population 2016'!AO$14","v":4.5634772200194513E-3},{"$f":"'Population 2016'!AP238/'Population 2016'!AP$14","v":7.1327913279132793E-3},{"$f":"'Population 2016'!AQ238/'Population 2016'!AQ$14","v":7.0778653440530925E-3},{"$f":"'Population 2016'!AR238/'Population 2016'!AR$14","v":9.1448799417524294E-3},{"$f":"'Population 2016'!AS238/'Population 2016'!AS$14","v":3.9540162554001614E-3},{"$f":"'Population 2016'!AT238/'Population 2016'!AT$14","v":0},{"$f":"'Population 2016'!AU238/'Population 2016'!AU$14","v":0},{"$f":"'Population 2016'!AV238/'Population 2016'!AV$14","v":6.2710331638325947E-3},{"$f":"'Population 2016'!AW238/'Population 2016'!AW$14","v":6.1227809848705197E-3},{"$f":"'Population 2016'!AX238/'Population 2016'!AX$14","v":9.4193845344555504E-3},{"$f":"'Population 2016'!AY238/'Population 2016'!AY$14","v":7.7797046953759384E-3},{"$f":"'Population 2016'!AZ238/'Population 2016'!AZ$14","v":6.5979823339405719E-3},{"$f":"'Population 2016'!BA238/'Population 2016'!BA$14","v":1.5024609273810551E-3},{"$f":"'Population 2016'!BB238/'Population 2016'!BB$14","v":8.1424673569688681E-3},{"$f":"'Population 2016'!BC238/'Population 2016'!BC$14","v":0},236]
[null,"Male 40-44",{"$f":"'Population 2016'!C239/'Population 2016'!C$14","v":1.8399338394861367E-2},{"$f":"'Population 2016'!D239/'Population 2016'!D$14","v":1.960051352916484E-2},{"$f":"'Population 2016'!E239/'Population 2016'!E$14","v":2.0767390726556648E-2},{"$f":"'Population 2016'!F239/'Population 2016'!F$14","v":9.2650308834362777E-3},{"$f":"'Population 2016'!G239/'Population 2016'!G$14","v":6.553806175481504E-3},{"$f":"'Population 2016'!H239/'Population 2016'!H$14","v":6.227742399522832E-3},{"$f":"'Population 2016'!I239/'Population 2016'!I$14","v":5.4916892436113352E-3},{"$f":"'Population 2016'!J239/'Population 2016'!J$14","v":1.0849638166711337E-2},{"$f":"'Population 2016'!K239/'Population 2016'!K$14","v":6.5345374965323794E-3},{"$f":"'Population 2016'!L239/'Population 2016'!L$14","v":3.9438645378037955E-3},{"$f":"'Population 2016'!M239/'Population 2016'!M$14","v":3.9438645378037955E-3},{"$f":"'Population 2016'!N239/'Population 2016'!N$14","v":5.7488776484449586E-3},{"$f":"'Population 2016'!O239/'Population 2016'!O$14","v":6.2577897798088908E-3},{"$f":"'Population 2016'!P239/'Population 2016'!P$14","v":2.6559510141599695E-2},{"$f":"'Population 2016'!Q239/'Population 2016'!Q$14","v":9.4431479220437996E-3},{"$f":"'Population 2016'!R239/'Population 2016'!R$14","v":3.0389999119640812E-2},{"$f":"'Population 2016'!S239/'Population 2016'!S$14","v":1.3271941761089329E-2},{"$f":"'Population 2016'!T239/'Population 2016'!T$14","v":1.8517942877812096E-2},{"$f":"'Population 2016'!U239/'Population 2016'!U$14","v":0},{"$f":"'Population 2016'!V239/'Population 2016'!V$14","v":1.192766826356711E-2},{"$f":"'Population 2016'!W239/'Population 2016'!W$14","v":1.1106328024106759E-2},{"$f":"'Population 2016'!X239/'Population 2016'!X$14","v":1.1106328024106759E-2},{"$f":"'Population 2016'!Y239/'Population 2016'!Y$14","v":1.1412377843485925E-2},{"$f":"'Population 2016'!Z239/'Population 2016'!Z$14","v":4.6072833895187768E-3},{"$f":"'Population 2016'!AA239/'Population 2016'!AA$14","v":7.7591615000100105E-3},{"$f":"'Population 2016'!AB239/'Population 2016'!AB$14","v":1.8059965092008971E-2},{"$f":"'Population 2016'!AC239/'Population 2016'!AC$14","v":8.674827926917086E-3},{"$f":"'Population 2016'!AD239/'Population 2016'!AD$14","v":5.2624100518629032E-3},{"$f":"'Population 2016'!AE239/'Population 2016'!AE$14","v":4.7954008374676968E-3},{"$f":"'Population 2016'!AF239/'Population 2016'!AF$14","v":4.8863183087355403E-3},{"$f":"'Population 2016'!AG239/'Population 2016'!AG$14","v":4.7954008374676968E-3},{"$f":"'Population 2016'!AH239/'Population 2016'!AH$14","v":6.0765594411553749E-3},{"$f":"'Population 2016'!AI239/'Population 2016'!AI$14","v":1.502480125946676E-2},{"$f":"'Population 2016'!AJ239/'Population 2016'!AJ$14","v":8.566161853471645E-3},{"$f":"'Population 2016'!AK239/'Population 2016'!AK$14","v":9.6506046262690454E-3},{"$f":"'Population 2016'!AL239/'Population 2016'!AL$14","v":4.2138025977135332E-3},{"$f":"'Population 2016'!AM239/'Population 2016'!AM$14","v":4.8953978706157732E-3},{"$f":"'Population 2016'!AN239/'Population 2016'!AN$14","v":3.441310690506471E-3},{"$f":"'Population 2016'!AO239/'Population 2016'!AO$14","v":3.441310690506471E-3},{"$f":"'Population 2016'!AP239/'Population 2016'!AP$14","v":7.7615176151761521E-3},{"$f":"'Population 2016'!AQ239/'Population 2016'!AQ$14","v":8.2957523982667165E-3},{"$f":"'Population 2016'!AR239/'Population 2016'!AR$14","v":1.0061230436934141E-2},{"$f":"'Population 2016'!AS239/'Population 2016'!AS$14","v":5.4916892436113352E-3},{"$f":"'Population 2016'!AT239/'Population 2016'!AT$14","v":0},{"$f":"'Population 2016'!AU239/'Population 2016'!AU$14","v":0},{"$f":"'Population 2016'!AV239/'Population 2016'!AV$14","v":8.687530576846101E-3},{"$f":"'Population 2016'!AW239/'Population 2016'!AW$14","v":7.3552248224048426E-3},{"$f":"'Population 2016'!AX239/'Population 2016'!AX$14","v":1.3150973172014729E-2},{"$f":"'Population 2016'!AY239/'Population 2016'!AY$14","v":9.1492568761244106E-3},{"$f":"'Population 2016'!AZ239/'Population 2016'!AZ$14","v":7.4093351499471853E-3},{"$f":"'Population 2016'!BA239/'Population 2016'!BA$14","v":1.6233485882048183E-3},{"$f":"'Population 2016'!BB239/'Population 2016'!BB$14","v":1.0569714497206945E-2},{"$f":"'Population 2016'!BC239/'Population 2016'!BC$14","v":0},237]
[null,"Male 45-49",{"$f":"'Population 2016'!C240/'Population 2016'!C$14","v":1.8561008823474546E-2},{"$f":"'Population 2016'!D240/'Population 2016'!D$14","v":2.0127524366591189E-2},{"$f":"'Population 2016'!E240/'Population 2016'!E$14","v":2.16493101698601E-2},{"$f":"'Population 2016'!F240/'Population 2016'!F$14","v":1.0228367427891426E-2},{"$f":"'Population 2016'!G240/'Population 2016'!G$14","v":5.5411189238764903E-3},{"$f":"'Population 2016'!H240/'Population 2016'!H$14","v":7.6881918495517784E-3},{"$f":"'Population 2016'!I240/'Population 2016'!I$14","v":7.3368968294647433E-3},{"$f":"'Population 2016'!J240/'Population 2016'!J$14","v":1.390511927097293E-2},{"$f":"'Population 2016'!K240/'Population 2016'!K$14","v":9.2778103134728597E-3},{"$f":"'Population 2016'!L240/'Population 2016'!L$14","v":5.3259025382307668E-3},{"$f":"'Population 2016'!M240/'Population 2016'!M$14","v":5.3259025382307668E-3},{"$f":"'Population 2016'!N240/'Population 2016'!N$14","v":7.9529526479371077E-3},{"$f":"'Population 2016'!O240/'Population 2016'!O$14","v":7.5431034482758624E-3},{"$f":"'Population 2016'!P240/'Population 2016'!P$14","v":3.1366245694603903E-2},{"$f":"'Population 2016'!Q240/'Population 2016'!Q$14","v":1.046319336043151E-2},{"$f":"'Population 2016'!R240/'Population 2016'!R$14","v":3.5020688440883879E-2},{"$f":"'Population 2016'!S240/'Population 2016'!S$14","v":1.4519308929397446E-2},{"$f":"'Population 2016'!T240/'Population 2016'!T$14","v":1.9399615116157492E-2},{"$f":"'Population 2016'!U240/'Population 2016'!U$14","v":0},{"$f":"'Population 2016'!V240/'Population 2016'!V$14","v":1.2938820387968272E-2},{"$f":"'Population 2016'!W240/'Population 2016'!W$14","v":1.2204046491605683E-2},{"$f":"'Population 2016'!X240/'Population 2016'!X$14","v":1.2204046491605683E-2},{"$f":"'Population 2016'!Y240/'Population 2016'!Y$14","v":1.3400704113478086E-2},{"$f":"'Population 2016'!Z240/'Population 2016'!Z$14","v":4.771334101984089E-3},{"$f":"'Population 2016'!AA240/'Population 2016'!AA$14","v":8.9763012299868532E-3},{"$f":"'Population 2016'!AB240/'Population 2016'!AB$14","v":1.873844384940879E-2},{"$f":"'Population 2016'!AC240/'Population 2016'!AC$14","v":1.0001687559338323E-2},{"$f":"'Population 2016'!AD240/'Population 2016'!AD$14","v":5.8104720437637649E-3},{"$f":"'Population 2016'!AE240/'Population 2016'!AE$14","v":5.9078785533643813E-3},{"$f":"'Population 2016'!AF240/'Population 2016'!AF$14","v":5.7638611886717192E-3},{"$f":"'Population 2016'!AG240/'Population 2016'!AG$14","v":5.9078785533643813E-3},{"$f":"'Population 2016'!AH240/'Population 2016'!AH$14","v":7.092081061823725E-3},{"$f":"'Population 2016'!AI240/'Population 2016'!AI$14","v":1.6261898588522786E-2},{"$f":"'Population 2016'!AJ240/'Population 2016'!AJ$14","v":1.0481801424079227E-2},{"$f":"'Population 2016'!AK240/'Population 2016'!AK$14","v":1.1155898242151567E-2},{"$f":"'Population 2016'!AL240/'Population 2016'!AL$14","v":5.6622972406775605E-3},{"$f":"'Population 2016'!AM240/'Population 2016'!AM$14","v":5.6695538129457089E-3},{"$f":"'Population 2016'!AN240/'Population 2016'!AN$14","v":5.0871549337921746E-3},{"$f":"'Population 2016'!AO240/'Population 2016'!AO$14","v":5.0871549337921746E-3},{"$f":"'Population 2016'!AP240/'Population 2016'!AP$14","v":9.4417344173441733E-3},{"$f":"'Population 2016'!AQ240/'Population 2016'!AQ$14","v":1.0652099090114817E-2},{"$f":"'Population 2016'!AR240/'Population 2016'!AR$14","v":1.1277873402081589E-2},{"$f":"'Population 2016'!AS240/'Population 2016'!AS$14","v":7.3368968294647433E-3},{"$f":"'Population 2016'!AT240/'Population 2016'!AT$14","v":0},{"$f":"'Population 2016'!AU240/'Population 2016'!AU$14","v":0},{"$f":"'Population 2016'!AV240/'Population 2016'!AV$14","v":1.036277111470209E-2},{"$f":"'Population 2016'!AW240/'Population 2016'!AW$14","v":8.6320366380904026E-3},{"$f":"'Population 2016'!AX240/'Population 2016'!AX$14","v":1.6372961599158339E-2},{"$f":"'Population 2016'!AY240/'Population 2016'!AY$14","v":1.0557302387396878E-2},{"$f":"'Population 2016'!AZ240/'Population 2016'!AZ$14","v":9.0932749567533642E-3},{"$f":"'Population 2016'!BA240/'Population 2016'!BA$14","v":2.8494948622744148E-3},{"$f":"'Population 2016'!BB240/'Population 2016'!BB$14","v":1.2687100300393352E-2},{"$f":"'Population 2016'!BC240/'Population 2016'!BC$14","v":0},238]
[null,"Male 50-54",{"$f":"'Population 2016'!C241/'Population 2016'!C$14","v":1.8958966801599295E-2},{"$f":"'Population 2016'!D241/'Population 2016'!D$14","v":2.0029475838697915E-2},{"$f":"'Population 2016'!E241/'Population 2016'!E$14","v":2.1069417933167418E-2},{"$f":"'Population 2016'!F241/'Population 2016'!F$14","v":1.2055873519578399E-2},{"$f":"'Population 2016'!G241/'Population 2016'!G$14","v":6.0761235096300822E-3},{"$f":"'Population 2016'!H241/'Population 2016'!H$14","v":8.3767521007666271E-3},{"$f":"'Population 2016'!I241/'Population 2016'!I$14","v":6.0628249249469138E-3},{"$f":"'Population 2016'!J241/'Population 2016'!J$14","v":1.3401232913428035E-2},{"$f":"'Population 2016'!K241/'Population 2016'!K$14","v":8.907930832537065E-3},{"$f":"'Population 2016'!L241/'Population 2016'!L$14","v":6.2023168799649432E-3},{"$f":"'Population 2016'!M241/'Population 2016'!M$14","v":6.2023168799649432E-3},{"$f":"'Population 2016'!N241/'Population 2016'!N$14","v":7.8513823714628159E-3},{"$f":"'Population 2016'!O241/'Population 2016'!O$14","v":6.8939551308683008E-3},{"$f":"'Population 2016'!P241/'Population 2016'!P$14","v":3.5009567546880976E-2},{"$f":"'Population 2016'!Q241/'Population 2016'!Q$14","v":1.2070537687587901E-2},{"$f":"'Population 2016'!R241/'Population 2016'!R$14","v":3.421075798925962E-2},{"$f":"'Population 2016'!S241/'Population 2016'!S$14","v":1.4155540286254485E-2},{"$f":"'Population 2016'!T241/'Population 2016'!T$14","v":1.9227236890070731E-2},{"$f":"'Population 2016'!U241/'Population 2016'!U$14","v":0},{"$f":"'Population 2016'!V241/'Population 2016'!V$14","v":1.2565773973140659E-2},{"$f":"'Population 2016'!W241/'Population 2016'!W$14","v":1.1433491175204476E-2},{"$f":"'Population 2016'!X241/'Population 2016'!X$14","v":1.1433491175204476E-2},{"$f":"'Population 2016'!Y241/'Population 2016'!Y$14","v":1.2965117172887019E-2},{"$f":"'Population 2016'!Z241/'Population 2016'!Z$14","v":4.6927746058739398E-3},{"$f":"'Population 2016'!AA241/'Population 2016'!AA$14","v":9.4835123032054412E-3},{"$f":"'Population 2016'!AB241/'Population 2016'!AB$14","v":1.8461355196577565E-2},{"$f":"'Population 2016'!AC241/'Population 2016'!AC$14","v":1.0609724206428441E-2},{"$f":"'Population 2016'!AD241/'Population 2016'!AD$14","v":5.9373382455926681E-3},{"$f":"'Population 2016'!AE241/'Population 2016'!AE$14","v":5.8871491549315237E-3},{"$f":"'Population 2016'!AF241/'Population 2016'!AF$14","v":8.536098923015557E-3},{"$f":"'Population 2016'!AG241/'Population 2016'!AG$14","v":5.8871491549315237E-3},{"$f":"'Population 2016'!AH241/'Population 2016'!AH$14","v":7.4140179858584471E-3},{"$f":"'Population 2016'!AI241/'Population 2016'!AI$14","v":1.6163608663748472E-2},{"$f":"'Population 2016'!AJ241/'Population 2016'!AJ$14","v":9.6685582101420468E-3},{"$f":"'Population 2016'!AK241/'Population 2016'!AK$14","v":9.9014868955827999E-3},{"$f":"'Population 2016'!AL241/'Population 2016'!AL$14","v":6.2847908062488777E-3},{"$f":"'Population 2016'!AM241/'Population 2016'!AM$14","v":6.1249396613750834E-3},{"$f":"'Population 2016'!AN241/'Population 2016'!AN$14","v":4.7130994239545148E-3},{"$f":"'Population 2016'!AO241/'Population 2016'!AO$14","v":4.7130994239545148E-3},{"$f":"'Population 2016'!AP241/'Population 2016'!AP$14","v":1.1815718157181573E-2},{"$f":"'Population 2016'!AQ241/'Population 2016'!AQ$14","v":1.2099443125557096E-2},{"$f":"'Population 2016'!AR241/'Population 2016'!AR$14","v":1.147415235430156E-2},{"$f":"'Population 2016'!AS241/'Population 2016'!AS$14","v":6.0628249249469138E-3},{"$f":"'Population 2016'!AT241/'Population 2016'!AT$14","v":0},{"$f":"'Population 2016'!AU241/'Population 2016'!AU$14","v":0},{"$f":"'Population 2016'!AV241/'Population 2016'!AV$14","v":1.2660667427690392E-2},{"$f":"'Population 2016'!AW241/'Population 2016'!AW$14","v":8.8095085506953441E-3},{"$f":"'Population 2016'!AX241/'Population 2016'!AX$14","v":1.5797606522882694E-2},{"$f":"'Population 2016'!AY241/'Population 2016'!AY$14","v":1.0879430784939787E-2},{"$f":"'Population 2016'!AZ241/'Population 2016'!AZ$14","v":1.0386846899254475E-2},{"$f":"'Population 2016'!BA241/'Population 2016'!BA$14","v":3.0394611864260428E-3},{"$f":"'Population 2016'!BB241/'Population 2016'!BB$14","v":1.2205093776090754E-2},{"$f":"'Population 2016'!BC241/'Population 2016'!BC$14","v":0},239]
[null,"Male 55-59",{"$f":"'Population 2016'!C242/'Population 2016'!C$14","v":1.7814837614490646E-2},{"$f":"'Population 2016'!D242/'Population 2016'!D$14","v":1.7970456752939158E-2},{"$f":"'Population 2016'!E242/'Population 2016'!E$14","v":1.8121632396646291E-2},{"$f":"'Population 2016'!F242/'Population 2016'!F$14","v":1.0426701422338074E-2},{"$f":"'Population 2016'!G242/'Population 2016'!G$14","v":5.2545093243656377E-3},{"$f":"'Population 2016'!H242/'Population 2016'!H$14","v":8.5083241232917564E-3},{"$f":"'Population 2016'!I242/'Population 2016'!I$14","v":5.1109321227209492E-3},{"$f":"'Population 2016'!J242/'Population 2016'!J$14","v":1.1417850442240687E-2},{"$f":"'Population 2016'!K242/'Population 2016'!K$14","v":7.4284129087938845E-3},{"$f":"'Population 2016'!L242/'Population 2016'!L$14","v":5.5618602456207374E-3},{"$f":"'Population 2016'!M242/'Population 2016'!M$14","v":5.5618602456207374E-3},{"$f":"'Population 2016'!N242/'Population 2016'!N$14","v":8.2779775326548444E-3},{"$f":"'Population 2016'!O242/'Population 2016'!O$14","v":7.0237847943498133E-3},{"$f":"'Population 2016'!P242/'Population 2016'!P$14","v":3.1917336394948335E-2},{"$f":"'Population 2016'!Q242/'Population 2016'!Q$14","v":9.1804089454893892E-3},{"$f":"'Population 2016'!R242/'Population 2016'!R$14","v":3.447486574522405E-2},{"$f":"'Population 2016'!S242/'Population 2016'!S$14","v":1.2850913238933125E-2},{"$f":"'Population 2016'!T242/'Population 2016'!T$14","v":1.7732350306465878E-2},{"$f":"'Population 2016'!U242/'Population 2016'!U$14","v":0},{"$f":"'Population 2016'!V242/'Population 2016'!V$14","v":1.0406031571507107E-2},{"$f":"'Population 2016'!W242/'Population 2016'!W$14","v":1.0972879896685321E-2},{"$f":"'Population 2016'!X242/'Population 2016'!X$14","v":1.0972879896685321E-2},{"$f":"'Population 2016'!Y242/'Population 2016'!Y$14","v":1.0889673514776646E-2},{"$f":"'Population 2016'!Z242/'Population 2016'!Z$14","v":4.1174418255378441E-3},{"$f":"'Population 2016'!AA242/'Population 2016'!AA$14","v":8.7535621567148732E-3},{"$f":"'Population 2016'!AB242/'Population 2016'!AB$14","v":1.6464763128046032E-2},{"$f":"'Population 2016'!AC242/'Population 2016'!AC$14","v":9.8509666108011519E-3},{"$f":"'Population 2016'!AD242/'Population 2016'!AD$14","v":5.3131565325944645E-3},{"$f":"'Population 2016'!AE242/'Population 2016'!AE$14","v":5.3343651967219909E-3},{"$f":"'Population 2016'!AF242/'Population 2016'!AF$14","v":7.6186677303550056E-3},{"$f":"'Population 2016'!AG242/'Population 2016'!AG$14","v":5.3343651967219909E-3},{"$f":"'Population 2016'!AH242/'Population 2016'!AH$14","v":6.737003572079547E-3},{"$f":"'Population 2016'!AI242/'Population 2016'!AI$14","v":1.448590132708345E-2},{"$f":"'Population 2016'!AJ242/'Population 2016'!AJ$14","v":8.4577294249466878E-3},{"$f":"'Population 2016'!AK242/'Population 2016'!AK$14","v":8.2456639181120277E-3},{"$f":"'Population 2016'!AL242/'Population 2016'!AL$14","v":5.5545579697132939E-3},{"$f":"'Population 2016'!AM242/'Population 2016'!AM$14","v":5.3097989926865034E-3},{"$f":"'Population 2016'!AN242/'Population 2016'!AN$14","v":5.4612104436298345E-3},{"$f":"'Population 2016'!AO242/'Population 2016'!AO$14","v":5.4612104436298345E-3},{"$f":"'Population 2016'!AP242/'Population 2016'!AP$14","v":9.6910569105691062E-3},{"$f":"'Population 2016'!AQ242/'Population 2016'!AQ$14","v":1.14640237929239E-2},{"$f":"'Population 2016'!AR242/'Population 2016'!AR$14","v":1.0436309485774934E-2},{"$f":"'Population 2016'!AS242/'Population 2016'!AS$14","v":5.1109321227209492E-3},{"$f":"'Population 2016'!AT242/'Population 2016'!AT$14","v":0},{"$f":"'Population 2016'!AU242/'Population 2016'!AU$14","v":0},{"$f":"'Population 2016'!AV242/'Population 2016'!AV$14","v":1.386150356544557E-2},{"$f":"'Population 2016'!AW242/'Population 2016'!AW$14","v":8.2820225882306552E-3},{"$f":"'Population 2016'!AX242/'Population 2016'!AX$14","v":1.3545502367175171E-2},{"$f":"'Population 2016'!AY242/'Population 2016'!AY$14","v":1.0117668033517562E-2},{"$f":"'Population 2016'!AZ242/'Population 2016'!AZ$14","v":9.3573473355479699E-3},{"$f":"'Population 2016'!BA242/'Population 2016'!BA$14","v":2.4350228823072275E-3},{"$f":"'Population 2016'!BB242/'Population 2016'!BB$14","v":1.0423391088043656E-2},{"$f":"'Population 2016'!BC242/'Population 2016'!BC$14","v":0},240]
[null,"Male 60-64",{"$f":"'Population 2016'!C243/'Population 2016'!C$14","v":1.5787739163417712E-2},{"$f":"'Population 2016'!D243/'Population 2016'!D$14","v":1.6196391201370227E-2},{"$f":"'Population 2016'!E243/'Population 2016'!E$14","v":1.6593374731195785E-2},{"$f":"'Population 2016'!F243/'Population 2016'!F$14","v":9.675865586218621E-3},{"$f":"'Population 2016'!G243/'Population 2016'!G$14","v":4.3373586059309082E-3},{"$f":"'Population 2016'!H243/'Population 2016'!H$14","v":7.9864217672754069E-3},{"$f":"'Population 2016'!I243/'Population 2016'!I$14","v":5.3891777110639232E-3},{"$f":"'Population 2016'!J243/'Population 2016'!J$14","v":1.0849638166711337E-2},{"$f":"'Population 2016'!K243/'Population 2016'!K$14","v":8.291465030977406E-3},{"$f":"'Population 2016'!L243/'Population 2016'!L$14","v":5.2921942943179139E-3},{"$f":"'Population 2016'!M243/'Population 2016'!M$14","v":5.2921942943179139E-3},{"$f":"'Population 2016'!N243/'Population 2016'!N$14","v":6.7341093302455968E-3},{"$f":"'Population 2016'!O243/'Population 2016'!O$14","v":6.0890112172829252E-3},{"$f":"'Population 2016'!P243/'Population 2016'!P$14","v":2.8212782242632989E-2},{"$f":"'Population 2016'!Q243/'Population 2016'!Q$14","v":7.7585274253125823E-3},{"$f":"'Population 2016'!R243/'Population 2016'!R$14","v":2.917510344220442E-2},{"$f":"'Population 2016'!S243/'Population 2016'!S$14","v":1.0952355289690078E-2},{"$f":"'Population 2016'!T243/'Population 2016'!T$14","v":1.5254060072398854E-2},{"$f":"'Population 2016'!U243/'Population 2016'!U$14","v":0},{"$f":"'Population 2016'!V243/'Population 2016'!V$14","v":8.4720804209534283E-3},{"$f":"'Population 2016'!W243/'Population 2016'!W$14","v":9.444683598794662E-3},{"$f":"'Population 2016'!X243/'Population 2016'!X$14","v":9.444683598794662E-3},{"$f":"'Population 2016'!Y243/'Population 2016'!Y$14","v":9.6085354542146881E-3},{"$f":"'Population 2016'!Z243/'Population 2016'!Z$14","v":3.6645694361969812E-3},{"$f":"'Population 2016'!AA243/'Population 2016'!AA$14","v":7.5814707786357356E-3},{"$f":"'Population 2016'!AB243/'Population 2016'!AB$14","v":1.4900636527017438E-2},{"$f":"'Population 2016'!AC243/'Population 2016'!AC$14","v":8.5047837798495115E-3},{"$f":"'Population 2016'!AD243/'Population 2016'!AD$14","v":4.7701691887667586E-3},{"$f":"'Population 2016'!AE243/'Population 2016'!AE$14","v":4.9266870275424604E-3},{"$f":"'Population 2016'!AF243/'Population 2016'!AF$14","v":6.322297566812924E-3},{"$f":"'Population 2016'!AG243/'Population 2016'!AG$14","v":4.9266870275424604E-3},{"$f":"'Population 2016'!AH243/'Population 2016'!AH$14","v":5.884817596693518E-3},{"$f":"'Population 2016'!AI243/'Population 2016'!AI$14","v":1.2189645325890414E-2},{"$f":"'Population 2016'!AJ243/'Population 2016'!AJ$14","v":7.1203961398055449E-3},{"$f":"'Population 2016'!AK243/'Population 2016'!AK$14","v":7.8275268025891059E-3},{"$f":"'Population 2016'!AL243/'Population 2016'!AL$14","v":5.6742682707847008E-3},{"$f":"'Population 2016'!AM243/'Population 2016'!AM$14","v":4.4035811543120485E-3},{"$f":"'Population 2016'!AN243/'Population 2016'!AN$14","v":4.039799506246727E-3},{"$f":"'Population 2016'!AO243/'Population 2016'!AO$14","v":4.039799506246727E-3},{"$f":"'Population 2016'!AP243/'Population 2016'!AP$14","v":9.7235772357723571E-3},{"$f":"'Population 2016'!AQ243/'Population 2016'!AQ$14","v":9.354784619322043E-3},{"$f":"'Population 2016'!AR243/'Population 2016'!AR$14","v":9.1695222627610692E-3},{"$f":"'Population 2016'!AS243/'Population 2016'!AS$14","v":5.3891777110639232E-3},{"$f":"'Population 2016'!AT243/'Population 2016'!AT$14","v":0},{"$f":"'Population 2016'!AU243/'Population 2016'!AU$14","v":0},{"$f":"'Population 2016'!AV243/'Population 2016'!AV$14","v":1.3016470727766001E-2},{"$f":"'Population 2016'!AW243/'Population 2016'!AW$14","v":7.4883287568585496E-3},{"$f":"'Population 2016'!AX243/'Population 2016'!AX$14","v":1.221396633350868E-2},{"$f":"'Population 2016'!AY243/'Population 2016'!AY$14","v":8.9892056597351659E-3},{"$f":"'Population 2016'!AZ243/'Population 2016'!AZ$14","v":8.5842658787869518E-3},{"$f":"'Population 2016'!BA243/'Population 2016'!BA$14","v":2.400483550643295E-3},{"$f":"'Population 2016'!BB243/'Population 2016'!BB$14","v":7.7379261669291884E-3},{"$f":"'Population 2016'!BC243/'Population 2016'!BC$14","v":0},241]
[null,"Male 65-69",0,0,0,0,0,0,0,0,0,0,0,0,0,0,0,0,0,0,0,0,0,0,0,0,0,0,0,0,0,0,0,0,0,0,0,0,0,0,0,0,0,0,0,0,0,0,0,0,0,0,0,0,0,242]
[null,"Male 70-74",0,0,0,0,0,0,0,0,0,0,0,0,0,0,0,0,0,0,0,0,0,0,0,0,0,0,0,0,0,0,0,0,0,0,0,0,0,0,0,0,0,0,0,0,0,0,0,0,0,0,0,0,0,243]
[null,"Male 75-79",0,0,0,0,0,0,0,0,0,0,0,0,0,0,0,0,0,0,0,0,0,0,0,0,0,0,0,0,0,0,0,0,0,0,0,0,0,0,0,0,0,0,0,0,0,0,0,0,0,0,0,0,0,244]
[null,"Male 80-84",0,0,0,0,0,0,0,0,0,0,0,0,0,0,0,0,0,0,0,0,0,0,0,0,0,0,0,0,0,0,0,0,0,0,0,0,0,0,0,0,0,0,0,0,0,0,0,0,0,0,0,0,0,245]
[null,"Male 85-89",0,0,0,0,0,0,0,0,0,0,0,0,0,0,0,0,0,0,0,0,0,0,0,0,0,0,0,0,0,0,0,0,0,0,0,0,0,0,0,0,0,0,0,0,0,0,0,0,0,0,0,0,0,246]
[null,"Male 90+",0,0,0,0,0,0,0,0,0,0,0,0,0,0,0,0,0,0,0,0,0,0,0,0,0,0,0,0,0,0,0,0,0,0,0,0,0,0,0,0,0,0,0,0,0,0,0,0,0,0,0,0,0,247]

{"sheet":"Pop2016fractionQ1","index":15,"n_rows":249,"n_cols":56,"rows_kept":249,"cut":false,"hidden":true,"merged":[]}
["Q1 subgroup's fraction of area's 2016 Q1 population (16+ only)"]
[]
["SIMD","group","Aberdeen City Local Authority","Aberdeen City Region Deal","Aberdeenshire Local Authority","Angus Local Authority","Argyll & Bute Local Authority","Ayrshire & Arran Health Board","Borders Health Board","Clackmannanshire & Stirling IJB","Clackmannanshire Local Authority","Dumfries & Galloway Health Board","Dumfries & Galloway Local Authority","Dundee City Local Authority","East Ayrshire Local Authority","East Dunbartonshire Local Authority","East Lothian Local Authority","East Renfrewshire Local Authority","Edinburgh & SE Scotland City Region Deal","Edinburgh, City of Local Authority","Eilean Siar Local Authority","Falkirk Local Authority","Fife Health Board","Fife Local Authority","Forth Valley Health Board","Glasgow City Local Authority","Glasgow City Region Deal","Grampian Health Board","Greater Glasgow & Clyde Health Board","Highland Health Board","Highland Local Authority","Inverclyde Local Authority","Inverness & Highland City Region Deal","Lanarkshire Health Board","Lothian Health Board","Midlothian Local Authority","Moray Local Authority","North Ayrshire Local Authority","North Lanarkshire Local Authority","Orkney Health Board","Orkney Islands Local Authority","Perth & Kinross Local Authority","Renfrewshire Local Authority","Scotland","Scottish Borders Local Authority","Shetland Health Board","Shetland Islands Local Authority","South Ayrshire Local Authority","South Lanarkshire Local Authority","Stirling Local Authority","Tay Cities Region Deal ","Tayside Health Board","West Dunbartonshire Local Authority","West Lothian Local Authority","Western Isles Health Board",1]
[null,null,"popS12000033","Aber_deal","popS12000034","popS12000041","popS12000035","popS08000015","popS08000016","ClacksStirIJB","popS12000005","popS08000017","popS12000006","popS12000042","popS12000008","popS12000045","popS12000010","popS12000011","EdinSE_deal","popS12000036","popS12000013","popS12000014","popS08000018","popS12000015","popS08000019","popS12000046","GClyde_deal","popS08000020","popS08000021","popS08000022","popS12000017","popS12000018","Inver_deal","popS08000023","popS08000024","popS12000019","popS12000020","popS12000021","popS12000044","popS08000025","popS12000023","popS12000024","popS12000038","popS00000001","popS12000026","popS08000026","popS12000027","popS12000028","popS12000029","popS12000030","Tay_deal","popS08000027","popS12000039","popS12000040","popS08000028",2]
[]
[]
[]
[]
[]
[]
[]
[]
[]
["All quintiles","16-64 Males and Females",null,null,null,null,null,null,null,null,null,null,null,null,null,null,null,null,null,null,null,null,null,null,null,null,null,null,null,null,null,null,null,null,null,null,null,null,null,null,null,null,null,null,null,null,null,null,null,null,null,null,null,null,null,12]
["Q1 and Q2","16-64 Males and Females",null,null,null,null,null,null,null,null,null,null,null,null,null,null,null,null,null,null,null,null,null,null,null,null,null,null,null,null,null,null,null,null,null,null,null,null,null,null,null,null,null,null,null,null,null,null,null,null,null,null,null,null,null,13]
["SIMD Q1 (most deprived)","16-64 Males and Females",{"$f":"'Population 2016'!R16/'Population 2016'!R$16","v":1},{"$f":"'Population 2016'!AX16/'Population 2016'!AX$16","v":1},{"$f":"'Population 2016'!S16/'Population 2016'!S$16","v":1},{"$f":"'Population 2016'!T16/'Population 2016'!T$16","v":1},{"$f":"'Population 2016'!U16/'Population 2016'!U$16","v":{"$error":"#DIV/0!"}},{"$f":"'Population 2016'!D16/'Population 2016'!D$16","v":1},{"$f":"'Population 2016'!E16/'Population 2016'!E$16","v":1},{"$f":"'Population 2016'!BC16/'Population 2016'!BC$16","v":{"$error":"#DIV/0!"}},{"$f":"'Population 2016'!V16/'Population 2016'!V$16","v":1},{"$f":"'Population 2016'!F16/'Population 2016'!F$16","v":1},{"$f":"'Population 2016'!W16/'Population 2016'!W$16","v":1},{"$f":"'Population 2016'!X16/'Population 2016'!X$16","v":1},{"$f":"'Population 2016'!Y16/'Population 2016'!Y$16","v":1},{"$f":"'Population 2016'!Z16/'Population 2016'!Z$16","v":1},{"$f":"'Population 2016'!AA16/'Population 2016'!AA$16","v":1},{"$f":"'Population 2016'!AB16/'Population 2016'!AB$16","v":1},{"$f":"'Population 2016'!AY16/'Population 2016'!AY$16","v":1},{"$f":"'Population 2016'!AC16/'Population 2016'!AC$16","v":1},{"$f":"'Population 2016'!AD16/'Population 2016'!AD$16","v":1},{"$f":"'Population 2016'!AE16/'Population 2016'!AE$16","v":1},{"$f":"'Population 2016'!G16/'Population 2016'!G$16","v":1},{"$f":"'Population 2016'!AF16/'Population 2016'!AF$16","v":1},{"$f":"'Population 2016'!H16/'Population 2016'!H$16","v":1},{"$f":"'Population 2016'!AG16/'Population 2016'!AG$16","v":1},{"$f":"'Population 2016'!AZ16/'Population 2016'!AZ$16","v":1},{"$f":"'Population 2016'!I16/'Population 2016'!I$16","v":1},{"$f":"'Population 2016'!J16/'Population 2016'!J$16","v":1},{"$f":"'Population 2016'!K16/'Population 2016'!K$16","v":1},{"$f":"'Population 2016'!AH16/'Population 2016'!AH$16","v":1},{"$f":"'Population 2016'!AI16/'Population 2016'!AI$16","v":1},{"$f":"'Population 2016'!BA16/'Population 2016'!BA$16","v":1},{"$f":"'Population 2016'!L16/'Population 2016'!L$16","v":1},{"$f":"'Population 2016'!M16/'Population 2016'!M$16","v":1},{"$f":"'Population 2016'!AJ16/'Population 2016'!AJ$16","v":1},{"$f":"'Population 2016'!AK16/'Population 2016'!AK$16","v":1},{"$f":"'Population 2016'!AL16/'Population 2016'!AL$16","v":1},{"$f":"'Population 2016'!AM16/'Population 2016'!AM$16","v":1},{"$f":"'Population 2016'!N16/'Population 2016'!N$16","v":1},{"$f":"'Population 2016'!AN16/'Population 2016'!AN$16","v":{"$error":"#DIV/0!"}},{"$f":"'Population 2016'!AO16/'Population 2016'!AO$16","v":{"$error":"#DIV/0!"}},{"$f":"'Population 2016'!AP16/'Population 2016'!AP$16","v":1},{"$f":"'Population 2016'!C16/'Population 2016'!C$16","v":1},{"$f":"'Population 2016'!AQ16/'Population 2016'!AQ$16","v":1},{"$f":"'Population 2016'!O16/'Population 2016'!O$16","v":1},{"$f":"'Population 2016'!AR16/'Population 2016'!AR$16","v":1},{"$f":"'Population 2016'!AS16/'Population 2016'!AS$16","v":1},{"$f":"'Population 2016'!AT16/'Population 2016'!AT$16","v":{"$error":"#DIV/0!"}},{"$f":"'Population 2016'!AU16/'Population 2016'!AU$16","v":{"$error":"#DIV/0!"}},{"$f":"'Population 2016'!BB16/'Population 2016'!BB$16","v":1},{"$f":"'Population 2016'!P16/'Population 2016'!P$16","v":1},{"$f":"'Population 2016'!AV16/'Population 2016'!AV$16","v":1},{"$f":"'Population 2016'!AW16/'Population 2016'!AW$16","v":1},{"$f":"'Population 2016'!Q16/'Population 2016'!Q$16","v":1},14]
["SIMD Q2",null,null,null,null,null,null,null,null,null,null,null,null,null,null,null,null,null,null,null,null,null,null,null,null,null,null,null,null,null,null,null,null,null,null,null,null,null,null,null,null,null,null,null,null,null,null,null,null,null,null,null,null,null,null,15]
["SIMD Q3",null,null,null,null,null,null,null,null,null,null,null,null,null,null,null,null,null,null,null,null,null,null,null,null,null,null,null,null,null,null,null,null,null,null,null,null,null,null,null,null,null,null,null,null,null,null,null,null,null,null,null,null,null,null,16]
["SIMD Q4",null,null,null,null,null,null,null,null,null,null,null,null,null,null,null,null,null,null,null,null,null,null,null,null,null,null,null,null,null,null,null,null,null,null,null,null,null,null,null,null,null,null,null,null,null,null,null,null,null,null,null,null,null,null,17]
["SIMD Q5 (least deprived)",null,null,null,null,null,null,null,null,null,null,null,null,null,null,null,null,null,null,null,null,null,null,null,null,null,null,null,null,null,null,null,null,null,null,null,null,null,null,null,null,null,null,null,null,null,null,null,null,null,null,null,null,null,null,18]
[]
["All quintiles","Female 0-4",null,null,null,null,null,null,null,null,null,null,null,null,null,null,null,null,null,null,null,null,null,null,null,null,null,null,null,null,null,null,null,null,null,null,null,null,null,null,null,null,null,null,null,null,null,null,null,null,null,null,null,null,null,20]
[null,"Female 5-9",null,null,null,null,null,null,null,null,null,null,null,null,null,null,null,null,null,null,null,null,null,null,null,null,null,null,null,null,null,null,null,null,null,null,null,null,null,null,null,null,null,null,null,null,null,null,null,null,null,null,null,null,null,21]
[null,"Female 10-15",null,null,null,null,null,null,null,null,null,null,null,null,null,null,null,null,null,null,null,null,null,null,null,null,null,null,null,null,null,null,null,null,null,null,null,null,null,null,null,null,null,null,null,null,null,null,null,null,null,null,null,null,null,22]
[null,"Female 16-19",null,null,null,null,null,null,null,null,null,null,null,null,null,null,null,null,null,null,null,null,null,null,null,null,null,null,null,null,null,null,null,null,null,null,null,null,null,null,null,null,null,null,null,null,null,null,null,null,null,null,null,null,null,23]
[null,"Female 20-24",null,null,null,null,null,null,null,null,null,null,null,null,null,null,null,null,null,null,null,null,null,null,null,null,null,null,null,null,null,null,null,null,null,null,null,null,null,null,null,null,null,null,null,null,null,null,null,null,null,null,null,null,null,24]
[null,"Female 25-29",null,null,null,null,null,null,null,null,null,null,null,null,null,null,null,null,null,null,null,null,null,null,null,null,null,null,null,null,null,null,null,null,null,null,null,null,null,null,null,null,null,null,null,null,null,null,null,null,null,null,null,null,null,25]
[null,"Female 30-34",null,null,null,null,null,null,null,null,null,null,null,null,null,null,null,null,null,null,null,null,null,null,null,null,null,null,null,null,null,null,null,null,null,null,null,null,null,null,null,null,null,null,null,null,null,null,null,null,null,null,null,null,null,26]
[null,"Female 35-39",null,null,null,null,null,null,null,null,null,null,null,null,null,null,null,null,null,null,null,null,null,null,null,null,null,null,null,null,null,null,null,null,null,null,null,null,null,null,null,null,null,null,null,null,null,null,null,null,null,null,null,null,null,27]
[null,"Female 40-44",null,null,null,null,null,null,null,null,null,null,null,null,null,null,null,null,null,null,null,null,null,null,null,null,null,null,null,null,null,null,null,null,null,null,null,null,null,null,null,null,null,null,null,null,null,null,null,null,null,null,null,null,null,28]
[null,"Female 45-49",null,null,null,null,null,null,null,null,null,null,null,null,null,null,null,null,null,null,null,null,null,null,null,null,null,null,null,null,null,null,null,null,null,null,null,null,null,null,null,null,null,null,null,null,null,null,null,null,null,null,null,null,null,29]
[null,"Female 50-54",null,null,null,null,null,null,null,null,null,null,null,null,null,null,null,null,null,null,null,null,null,null,null,null,null,null,null,null,null,null,null,null,null,null,null,null,null,null,null,null,null,null,null,null,null,null,null,null,null,null,null,null,null,30]
[null,"Female 55-59",null,null,null,null,null,null,null,null,null,null,null,null,null,null,null,null,null,null,null,null,null,null,null,null,null,null,null,null,null,null,null,null,null,null,null,null,null,null,null,null,null,null,null,null,null,null,null,null,null,null,null,null,null,31]
[null,"Female 60-64",null,null,null,null,null,null,null,null,null,null,null,null,null,null,null,null,null,null,null,null,null,null,null,null,null,null,null,null,null,null,null,null,null,null,null,null,null,null,null,null,null,null,null,null,null,null,null,null,null,null,null,null,null,32]
[null,"Female 65-69",null,null,null,null,null,null,null,null,null,null,null,null,null,null,null,null,null,null,null,null,null,null,null,null,null,null,null,null,null,null,null,null,null,null,null,null,null,null,null,null,null,null,null,null,null,null,null,null,null,null,null,null,null,33]
[null,"Female 70-74",null,null,null,null,null,null,null,null,null,null,null,null,null,null,null,null,null,null,null,null,null,null,null,null,null,null,null,null,null,null,null,null,null,null,null,null,null,null,null,null,null,null,null,null,null,null,null,null,null,null,null,null,null,34]
[null,"Female 75-79",null,null,null,null,null,null,null,null,null,null,null,null,null,null,null,null,null,null,null,null,null,null,null,null,null,null,null,null,null,null,null,null,null,null,null,null,null,null,null,null,null,null,null,null,null,null,null,null,null,null,null,null,null,35]
[null,"Female 80-84",null,null,null,null,null,null,null,null,null,null,null,null,null,null,null,null,null,null,null,null,null,null,null,null,null,null,null,null,null,null,null,null,null,null,null,null,null,null,null,null,null,null,null,null,null,null,null,null,null,null,null,null,null,36]
[null,"Female 85-89",null,null,null,null,null,null,null,null,null,null,null,null,null,null,null,null,null,null,null,null,null,null,null,null,null,null,null,null,null,null,null,null,null,null,null,null,null,null,null,null,null,null,null,null,null,null,null,null,null,null,null,null,null,37]
[null,"Female 90+",null,null,null,null,null,null,null,null,null,null,null,null,null,null,null,null,null,null,null,null,null,null,null,null,null,null,null,null,null,null,null,null,null,null,null,null,null,null,null,null,null,null,null,null,null,null,null,null,null,null,null,null,null,38]
[null,"Male 0-4",null,null,null,null,null,null,null,null,null,null,null,null,null,null,null,null,null,null,null,null,null,null,null,null,null,null,null,null,null,null,null,null,null,null,null,null,null,null,null,null,null,null,null,null,null,null,null,null,null,null,null,null,null,39]
[null,"Male 5-9",null,null,null,null,null,null,null,null,null,null,null,null,null,null,null,null,null,null,null,null,null,null,null,null,null,null,null,null,null,null,null,null,null,null,null,null,null,null,null,null,null,null,null,null,null,null,null,null,null,null,null,null,null,40]
[null,"Male 10-15",null,null,null,null,null,null,null,null,null,null,null,null,null,null,null,null,null,null,null,null,null,null,null,null,null,null,null,null,null,null,null,null,null,null,null,null,null,null,null,null,null,null,null,null,null,null,null,null,null,null,null,null,null,41]
[null,"Male 16-19",null,null,null,null,null,null,null,null,null,null,null,null,null,null,null,null,null,null,null,null,null,null,null,null,null,null,null,null,null,null,null,null,null,null,null,null,null,null,null,null,null,null,null,null,null,null,null,null,null,null,null,null,null,42]
[null,"Male 20-24",null,null,null,null,null,null,null,null,null,null,null,null,null,null,null,null,null,null,null,null,null,null,null,null,null,null,null,null,null,null,null,null,null,null,null,null,null,null,null,null,null,null,null,null,null,null,null,null,null,null,null,null,null,43]
[null,"Male 25-29",null,null,null,null,null,null,null,null,null,null,null,null,null,null,null,null,null,null,null,null,null,null,null,null,null,null,null,null,null,null,null,null,null,null,null,null,null,null,null,null,null,null,null,null,null,null,null,null,null,null,null,null,null,44]
[null,"Male 30-34",null,null,null,null,null,null,null,null,null,null,null,null,null,null,null,null,null,null,null,null,null,null,null,null,null,null,null,null,null,null,null,null,null,null,null,null,null,null,null,null,null,null,null,null,null,null,null,null,null,null,null,null,null,45]
[null,"Male 35-39",null,null,null,null,null,null,null,null,null,null,null,null,null,null,null,null,null,null,null,null,null,null,null,null,null,null,null,null,null,null,null,null,null,null,null,null,null,null,null,null,null,null,null,null,null,null,null,null,null,null,null,null,null,46]
[null,"Male 40-44",null,null,null,null,null,null,null,null,null,null,null,null,null,null,null,null,null,null,null,null,null,null,null,null,null,null,null,null,null,null,null,null,null,null,null,null,null,null,null,null,null,null,null,null,null,null,null,null,null,null,null,null,null,47]
[null,"Male 45-49",null,null,null,null,null,null,null,null,null,null,null,null,null,null,null,null,null,null,null,null,null,null,null,null,null,null,null,null,null,null,null,null,null,null,null,null,null,null,null,null,null,null,null,null,null,null,null,null,null,null,null,null,null,48]
[null,"Male 50-54",null,null,null,null,null,null,null,null,null,null,null,null,null,null,null,null,null,null,null,null,null,null,null,null,null,null,null,null,null,null,null,null,null,null,null,null,null,null,null,null,null,null,null,null,null,null,null,null,null,null,null,null,null,49]
[null,"Male 55-59",null,null,null,null,null,null,null,null,null,null,null,null,null,null,null,null,null,null,null,null,null,null,null,null,null,null,null,null,null,null,null,null,null,null,null,null,null,null,null,null,null,null,null,null,null,null,null,null,null,null,null,null,null,50]
[null,"Male 60-64",null,null,null,null,null,null,null,null,null,null,null,null,null,null,null,null,null,null,null,null,null,null,null,null,null,null,null,null,null,null,null,null,null,null,null,null,null,null,null,null,null,null,null,null,null,null,null,null,null,null,null,null,null,51]
[null,"Male 65-69",null,null,null,null,null,null,null,null,null,null,null,null,null,null,null,null,null,null,null,null,null,null,null,null,null,null,null,null,null,null,null,null,null,null,null,null,null,null,null,null,null,null,null,null,null,null,null,null,null,null,null,null,null,52]
[null,"Male 70-74",null,null,null,null,null,null,null,null,null,null,null,null,null,null,null,null,null,null,null,null,null,null,null,null,null,null,null,null,null,null,null,null,null,null,null,null,null,null,null,null,null,null,null,null,null,null,null,null,null,null,null,null,null,53]
[null,"Male 75-79",null,null,null,null,null,null,null,null,null,null,null,null,null,null,null,null,null,null,null,null,null,null,null,null,null,null,null,null,null,null,null,null,null,null,null,null,null,null,null,null,null,null,null,null,null,null,null,null,null,null,null,null,null,54]
[null,"Male 80-84",null,null,null,null,null,null,null,null,null,null,null,null,null,null,null,null,null,null,null,null,null,null,null,null,null,null,null,null,null,null,null,null,null,null,null,null,null,null,null,null,null,null,null,null,null,null,null,null,null,null,null,null,null,55]
[null,"Male 85-89",null,null,null,null,null,null,null,null,null,null,null,null,null,null,null,null,null,null,null,null,null,null,null,null,null,null,null,null,null,null,null,null,null,null,null,null,null,null,null,null,null,null,null,null,null,null,null,null,null,null,null,null,null,56]
[null,"Male 90+",null,null,null,null,null,null,null,null,null,null,null,null,null,null,null,null,null,null,null,null,null,null,null,null,null,null,null,null,null,null,null,null,null,null,null,null,null,null,null,null,null,null,null,null,null,null,null,null,null,null,null,null,null,57]
["SIMD Q1 (most deprived)","Female 0-4",{"$f":"'Population 2016'!C60/'Population 2016'!C$16","v":0},{"$f":"'Population 2016'!D60/'Population 2016'!D$16","v":0},{"$f":"'Population 2016'!E60/'Population 2016'!E$16","v":0},{"$f":"'Population 2016'!F60/'Population 2016'!F$16","v":0},{"$f":"'Population 2016'!G60/'Population 2016'!G$16","v":0},{"$f":"'Population 2016'!H60/'Population 2016'!H$16","v":0},{"$f":"'Population 2016'!I60/'Population 2016'!I$16","v":0},{"$f":"'Population 2016'!J60/'Population 2016'!J$16","v":0},{"$f":"'Population 2016'!K60/'Population 2016'!K$16","v":0},{"$f":"'Population 2016'!L60/'Population 2016'!L$16","v":0},{"$f":"'Population 2016'!M60/'Population 2016'!M$16","v":0},{"$f":"'Population 2016'!N60/'Population 2016'!N$16","v":0},{"$f":"'Population 2016'!O60/'Population 2016'!O$16","v":0},{"$f":"'Population 2016'!P60/'Population 2016'!P$16","v":0},{"$f":"'Population 2016'!Q60/'Population 2016'!Q$16","v":0},{"$f":"'Population 2016'!R60/'Population 2016'!R$16","v":0},{"$f":"'Population 2016'!S60/'Population 2016'!S$16","v":0},{"$f":"'Population 2016'!T60/'Population 2016'!T$16","v":0},{"$f":"'Population 2016'!U60/'Population 2016'!U$16","v":{"$error":"#DIV/0!"}},{"$f":"'Population 2016'!V60/'Population 2016'!V$16","v":0},{"$f":"'Population 2016'!W60/'Population 2016'!W$16","v":0},{"$f":"'Population 2016'!X60/'Population 2016'!X$16","v":0},{"$f":"'Population 2016'!Y60/'Population 2016'!Y$16","v":0},{"$f":"'Population 2016'!Z60/'Population 2016'!Z$16","v":0},{"$f":"'Population 2016'!AA60/'Population 2016'!AA$16","v":0},{"$f":"'Population 2016'!AB60/'Population 2016'!AB$16","v":0},{"$f":"'Population 2016'!AC60/'Population 2016'!AC$16","v":0},{"$f":"'Population 2016'!AD60/'Population 2016'!AD$16","v":0},{"$f":"'Population 2016'!AE60/'Population 2016'!AE$16","v":0},{"$f":"'Population 2016'!AF60/'Population 2016'!AF$16","v":0},{"$f":"'Population 2016'!AG60/'Population 2016'!AG$16","v":0},{"$f":"'Population 2016'!AH60/'Population 2016'!AH$16","v":0},{"$f":"'Population 2016'!AI60/'Population 2016'!AI$16","v":0},{"$f":"'Population 2016'!AJ60/'Population 2016'!AJ$16","v":0},{"$f":"'Population 2016'!AK60/'Population 2016'!AK$16","v":0},{"$f":"'Population 2016'!AL60/'Population 2016'!AL$16","v":0},{"$f":"'Population 2016'!AM60/'Population 2016'!AM$16","v":0},{"$f":"'Population 2016'!AN60/'Population 2016'!AN$16","v":{"$error":"#DIV/0!"}},{"$f":"'Population 2016'!AO60/'Population 2016'!AO$16","v":{"$error":"#DIV/0!"}},{"$f":"'Population 2016'!AP60/'Population 2016'!AP$16","v":0},{"$f":"'Population 2016'!AQ60/'Population 2016'!AQ$16","v":0},{"$f":"'Population 2016'!AR60/'Population 2016'!AR$16","v":0},{"$f":"'Population 2016'!AS60/'Population 2016'!AS$16","v":0},{"$f":"'Population 2016'!AT60/'Population 2016'!AT$16","v":{"$error":"#DIV/0!"}},{"$f":"'Population 2016'!AU60/'Population 2016'!AU$16","v":{"$error":"#DIV/0!"}},{"$f":"'Population 2016'!AV60/'Population 2016'!AV$16","v":0},{"$f":"'Population 2016'!AW60/'Population 2016'!AW$16","v":0},{"$f":"'Population 2016'!AX60/'Population 2016'!AX$16","v":0},{"$f":"'Population 2016'!AY60/'Population 2016'!AY$16","v":0},{"$f":"'Population 2016'!AZ60/'Population 2016'!AZ$16","v":0},{"$f":"'Population 2016'!BA60/'Population 2016'!BA$16","v":0},{"$f":"'Population 2016'!BB60/'Population 2016'!BB$16","v":0},{"$f":"'Population 2016'!BC60/'Population 2016'!BC$16","v":{"$error":"#DIV/0!"}},58]
[null,"Female 5-9",{"$f":"'Population 2016'!C61/'Population 2016'!C$16","v":0},{"$f":"'Population 2016'!D61/'Population 2016'!D$16","v":0},{"$f":"'Population 2016'!E61/'Population 2016'!E$16","v":0},{"$f":"'Population 2016'!F61/'Population 2016'!F$16","v":0},{"$f":"'Population 2016'!G61/'Population 2016'!G$16","v":0},{"$f":"'Population 2016'!H61/'Population 2016'!H$16","v":0},{"$f":"'Population 2016'!I61/'Population 2016'!I$16","v":0},{"$f":"'Population 2016'!J61/'Population 2016'!J$16","v":0},{"$f":"'Population 2016'!K61/'Population 2016'!K$16","v":0},{"$f":"'Population 2016'!L61/'Population 2016'!L$16","v":0},{"$f":"'Population 2016'!M61/'Population 2016'!M$16","v":0},{"$f":"'Population 2016'!N61/'Population 2016'!N$16","v":0},{"$f":"'Population 2016'!O61/'Population 2016'!O$16","v":0},{"$f":"'Population 2016'!P61/'Population 2016'!P$16","v":0},{"$f":"'Population 2016'!Q61/'Population 2016'!Q$16","v":0},{"$f":"'Population 2016'!R61/'Population 2016'!R$16","v":0},{"$f":"'Population 2016'!S61/'Population 2016'!S$16","v":0},{"$f":"'Population 2016'!T61/'Population 2016'!T$16","v":0},{"$f":"'Population 2016'!U61/'Population 2016'!U$16","v":{"$error":"#DIV/0!"}},{"$f":"'Population 2016'!V61/'Population 2016'!V$16","v":0},{"$f":"'Population 2016'!W61/'Population 2016'!W$16","v":0},{"$f":"'Population 2016'!X61/'Population 2016'!X$16","v":0},{"$f":"'Population 2016'!Y61/'Population 2016'!Y$16","v":0},{"$f":"'Population 2016'!Z61/'Population 2016'!Z$16","v":0},{"$f":"'Population 2016'!AA61/'Population 2016'!AA$16","v":0},{"$f":"'Population 2016'!AB61/'Population 2016'!AB$16","v":0},{"$f":"'Population 2016'!AC61/'Population 2016'!AC$16","v":0},{"$f":"'Population 2016'!AD61/'Population 2016'!AD$16","v":0},{"$f":"'Population 2016'!AE61/'Population 2016'!AE$16","v":0},{"$f":"'Population 2016'!AF61/'Population 2016'!AF$16","v":0},{"$f":"'Population 2016'!AG61/'Population 2016'!AG$16","v":0},{"$f":"'Population 2016'!AH61/'Population 2016'!AH$16","v":0},{"$f":"'Population 2016'!AI61/'Population 2016'!AI$16","v":0},{"$f":"'Population 2016'!AJ61/'Population 2016'!AJ$16","v":0},{"$f":"'Population 2016'!AK61/'Population 2016'!AK$16","v":0},{"$f":"'Population 2016'!AL61/'Population 2016'!AL$16","v":0},{"$f":"'Population 2016'!AM61/'Population 2016'!AM$16","v":0},{"$f":"'Population 2016'!AN61/'Population 2016'!AN$16","v":{"$error":"#DIV/0!"}},{"$f":"'Population 2016'!AO61/'Population 2016'!AO$16","v":{"$error":"#DIV/0!"}},{"$f":"'Population 2016'!AP61/'Population 2016'!AP$16","v":0},{"$f":"'Population 2016'!AQ61/'Population 2016'!AQ$16","v":0},{"$f":"'Population 2016'!AR61/'Population 2016'!AR$16","v":0},{"$f":"'Population 2016'!AS61/'Population 2016'!AS$16","v":0},{"$f":"'Population 2016'!AT61/'Population 2016'!AT$16","v":{"$error":"#DIV/0!"}},{"$f":"'Population 2016'!AU61/'Population 2016'!AU$16","v":{"$error":"#DIV/0!"}},{"$f":"'Population 2016'!AV61/'Population 2016'!AV$16","v":0},{"$f":"'Population 2016'!AW61/'Population 2016'!AW$16","v":0},{"$f":"'Population 2016'!AX61/'Population 2016'!AX$16","v":0},{"$f":"'Population 2016'!AY61/'Population 2016'!AY$16","v":0},{"$f":"'Population 2016'!AZ61/'Population 2016'!AZ$16","v":0},{"$f":"'Population 2016'!BA61/'Population 2016'!BA$16","v":0},{"$f":"'Population 2016'!BB61/'Population 2016'!BB$16","v":0},{"$f":"'Population 2016'!BC61/'Population 2016'!BC$16","v":{"$error":"#DIV/0!"}},59]
[null,"Female 10-15",{"$f":"'Population 2016'!C62/'Population 2016'!C$16","v":0},{"$f":"'Population 2016'!D62/'Population 2016'!D$16","v":0},{"$f":"'Population 2016'!E62/'Population 2016'!E$16","v":0},{"$f":"'Population 2016'!F62/'Population 2016'!F$16","v":0},{"$f":"'Population 2016'!G62/'Population 2016'!G$16","v":0},{"$f":"'Population 2016'!H62/'Population 2016'!H$16","v":0},{"$f":"'Population 2016'!I62/'Population 2016'!I$16","v":0},{"$f":"'Population 2016'!J62/'Population 2016'!J$16","v":0},{"$f":"'Population 2016'!K62/'Population 2016'!K$16","v":0},{"$f":"'Population 2016'!L62/'Population 2016'!L$16","v":0},{"$f":"'Population 2016'!M62/'Population 2016'!M$16","v":0},{"$f":"'Population 2016'!N62/'Population 2016'!N$16","v":0},{"$f":"'Population 2016'!O62/'Population 2016'!O$16","v":0},{"$f":"'Population 2016'!P62/'Population 2016'!P$16","v":0},{"$f":"'Population 2016'!Q62/'Population 2016'!Q$16","v":0},{"$f":"'Population 2016'!R62/'Population 2016'!R$16","v":0},{"$f":"'Population 2016'!S62/'Population 2016'!S$16","v":0},{"$f":"'Population 2016'!T62/'Population 2016'!T$16","v":0},{"$f":"'Population 2016'!U62/'Population 2016'!U$16","v":{"$error":"#DIV/0!"}},{"$f":"'Population 2016'!V62/'Population 2016'!V$16","v":0},{"$f":"'Population 2016'!W62/'Population 2016'!W$16","v":0},{"$f":"'Population 2016'!X62/'Population 2016'!X$16","v":0},{"$f":"'Population 2016'!Y62/'Population 2016'!Y$16","v":0},{"$f":"'Population 2016'!Z62/'Population 2016'!Z$16","v":0},{"$f":"'Population 2016'!AA62/'Population 2016'!AA$16","v":0},{"$f":"'Population 2016'!AB62/'Population 2016'!AB$16","v":0},{"$f":"'Population 2016'!AC62/'Population 2016'!AC$16","v":0},{"$f":"'Population 2016'!AD62/'Population 2016'!AD$16","v":0},{"$f":"'Population 2016'!AE62/'Population 2016'!AE$16","v":0},{"$f":"'Population 2016'!AF62/'Population 2016'!AF$16","v":0},{"$f":"'Population 2016'!AG62/'Population 2016'!AG$16","v":0},{"$f":"'Population 2016'!AH62/'Population 2016'!AH$16","v":0},{"$f":"'Population 2016'!AI62/'Population 2016'!AI$16","v":0},{"$f":"'Population 2016'!AJ62/'Population 2016'!AJ$16","v":0},{"$f":"'Population 2016'!AK62/'Population 2016'!AK$16","v":0},{"$f":"'Population 2016'!AL62/'Population 2016'!AL$16","v":0},{"$f":"'Population 2016'!AM62/'Population 2016'!AM$16","v":0},{"$f":"'Population 2016'!AN62/'Population 2016'!AN$16","v":{"$error":"#DIV/0!"}},{"$f":"'Population 2016'!AO62/'Population 2016'!AO$16","v":{"$error":"#DIV/0!"}},{"$f":"'Population 2016'!AP62/'Population 2016'!AP$16","v":0},{"$f":"'Population 2016'!AQ62/'Population 2016'!AQ$16","v":0},{"$f":"'Population 2016'!AR62/'Population 2016'!AR$16","v":0},{"$f":"'Population 2016'!AS62/'Population 2016'!AS$16","v":0},{"$f":"'Population 2016'!AT62/'Population 2016'!AT$16","v":{"$error":"#DIV/0!"}},{"$f":"'Population 2016'!AU62/'Population 2016'!AU$16","v":{"$error":"#DIV/0!"}},{"$f":"'Population 2016'!AV62/'Population 2016'!AV$16","v":0},{"$f":"'Population 2016'!AW62/'Population 2016'!AW$16","v":0},{"$f":"'Population 2016'!AX62/'Population 2016'!AX$16","v":0},{"$f":"'Population 2016'!AY62/'Population 2016'!AY$16","v":0},{"$f":"'Population 2016'!AZ62/'Population 2016'!AZ$16","v":0},{"$f":"'Population 2016'!BA62/'Population 2016'!BA$16","v":0},{"$f":"'Population 2016'!BB62/'Population 2016'!BB$16","v":0},{"$f":"'Population 2016'!BC62/'Population 2016'!BC$16","v":{"$error":"#DIV/0!"}},60]
[null,"Female 16-19",{"$f":"'Population 2016'!C63/'Population 2016'!C$16","v":2.7591910382677994E-2},{"$f":"'Population 2016'!D63/'Population 2016'!D$16","v":2.8183101906330901E-2},{"$f":"'Population 2016'!E63/'Population 2016'!E$16","v":3.0311231393775371E-2},{"$f":"'Population 2016'!F63/'Population 2016'!F$16","v":4.0846366145354189E-2},{"$f":"'Population 2016'!G63/'Population 2016'!G$16","v":3.5889872173058016E-2},{"$f":"'Population 2016'!H63/'Population 2016'!H$16","v":3.7750567651524652E-2},{"$f":"'Population 2016'!I63/'Population 2016'!I$16","v":4.2144638403990027E-2},{"$f":"'Population 2016'!J63/'Population 2016'!J$16","v":3.7250721183995986E-2},{"$f":"'Population 2016'!K63/'Population 2016'!K$16","v":3.468354430379747E-2},{"$f":"'Population 2016'!L63/'Population 2016'!L$16","v":3.9848197343453511E-2},{"$f":"'Population 2016'!M63/'Population 2016'!M$16","v":3.9848197343453511E-2},{"$f":"'Population 2016'!N63/'Population 2016'!N$16","v":3.5851581854942048E-2},{"$f":"'Population 2016'!O63/'Population 2016'!O$16","v":3.5699630693475586E-2},{"$f":"'Population 2016'!P63/'Population 2016'!P$16","v":3.3701163137488818E-2},{"$f":"'Population 2016'!Q63/'Population 2016'!Q$16","v":3.6024305555555552E-2},{"$f":"'Population 2016'!R63/'Population 2016'!R$16","v":4.2267780308782588E-2},{"$f":"'Population 2016'!S63/'Population 2016'!S$16","v":3.6417529520086582E-2},{"$f":"'Population 2016'!T63/'Population 2016'!T$16","v":3.1925281256633409E-2},{"$f":"'Population 2016'!U63/'Population 2016'!U$16","v":{"$error":"#DIV/0!"}},{"$f":"'Population 2016'!V63/'Population 2016'!V$16","v":3.1788612433773726E-2},{"$f":"'Population 2016'!W63/'Population 2016'!W$16","v":3.9458071753716045E-2},{"$f":"'Population 2016'!X63/'Population 2016'!X$16","v":3.9458071753716045E-2},{"$f":"'Population 2016'!Y63/'Population 2016'!Y$16","v":3.4611271348478467E-2},{"$f":"'Population 2016'!Z63/'Population 2016'!Z$16","v":3.0856855768935005E-2},{"$f":"'Population 2016'!AA63/'Population 2016'!AA$16","v":3.2995034802664906E-2},{"$f":"'Population 2016'!AB63/'Population 2016'!AB$16","v":2.8277634961439587E-2},{"$f":"'Population 2016'!AC63/'Population 2016'!AC$16","v":3.1639542626389912E-2},{"$f":"'Population 2016'!AD63/'Population 2016'!AD$16","v":3.712469569921558E-2},{"$f":"'Population 2016'!AE63/'Population 2016'!AE$16","v":3.7593283582089555E-2},{"$f":"'Population 2016'!AF63/'Population 2016'!AF$16","v":3.2368854387203008E-2},{"$f":"'Population 2016'!AG63/'Population 2016'!AG$16","v":3.7593283582089555E-2},{"$f":"'Population 2016'!AH63/'Population 2016'!AH$16","v":3.6450585454445891E-2},{"$f":"'Population 2016'!AI63/'Population 2016'!AI$16","v":3.4186056010129202E-2},{"$f":"'Population 2016'!AJ63/'Population 2016'!AJ$16","v":3.6574487065120426E-2},{"$f":"'Population 2016'!AK63/'Population 2016'!AK$16","v":3.1434184675834968E-2},{"$f":"'Population 2016'!AL63/'Population 2016'!AL$16","v":3.8783946718723088E-2},{"$f":"'Population 2016'!AM63/'Population 2016'!AM$16","v":3.7116627196444756E-2},{"$f":"'Population 2016'!AN63/'Population 2016'!AN$16","v":{"$error":"#DIV/0!"}},{"$f":"'Population 2016'!AO63/'Population 2016'!AO$16","v":{"$error":"#DIV/0!"}},{"$f":"'Population 2016'!AP63/'Population 2016'!AP$16","v":3.3134166214014125E-2},{"$f":"'Population 2016'!AQ63/'Population 2016'!AQ$16","v":3.1640400496082764E-2},{"$f":"'Population 2016'!AR63/'Population 2016'!AR$16","v":3.4408056576183163E-2},{"$f":"'Population 2016'!AS63/'Population 2016'!AS$16","v":4.2144638403990027E-2},{"$f":"'Population 2016'!AT63/'Population 2016'!AT$16","v":{"$error":"#DIV/0!"}},{"$f":"'Population 2016'!AU63/'Population 2016'!AU$16","v":{"$error":"#DIV/0!"}},{"$f":"'Population 2016'!AV63/'Population 2016'!AV$16","v":3.886195660812207E-2},{"$f":"'Population 2016'!AW63/'Population 2016'!AW$16","v":3.5343843369689314E-2},{"$f":"'Population 2016'!AX63/'Population 2016'!AX$16","v":3.9771314939100175E-2},{"$f":"'Population 2016'!AY63/'Population 2016'!AY$16","v":3.7791578309603148E-2},{"$f":"'Population 2016'!AZ63/'Population 2016'!AZ$16","v":3.6115029842647854E-2},{"$f":"'Population 2016'!BA63/'Population 2016'!BA$16","v":3.5534563432506404E-2},{"$f":"'Population 2016'!BB63/'Population 2016'!BB$16","v":3.9008246527777776E-2},{"$f":"'Population 2016'!BC63/'Population 2016'!BC$16","v":{"$error":"#DIV/0!"}},61]
[null,"Female 20-24",{"$f":"'Population 2016'!C64/'Population 2016'!C$16","v":5.8792571987068644E-2},{"$f":"'Population 2016'!D64/'Population 2016'!D$16","v":5.777830077665333E-2},{"$f":"'Population 2016'!E64/'Population 2016'!E$16","v":5.4127198917456022E-2},{"$f":"'Population 2016'!F64/'Population 2016'!F$16","v":5.8877644894204231E-2},{"$f":"'Population 2016'!G64/'Population 2016'!G$16","v":5.1130776794493606E-2},{"$f":"'Population 2016'!H64/'Population 2016'!H$16","v":5.6514410687171772E-2},{"$f":"'Population 2016'!I64/'Population 2016'!I$16","v":5.4114713216957606E-2},{"$f":"'Population 2016'!J64/'Population 2016'!J$16","v":6.0015050796437978E-2},{"$f":"'Population 2016'!K64/'Population 2016'!K$16","v":5.5949367088607593E-2},{"$f":"'Population 2016'!L64/'Population 2016'!L$16","v":6.3504111321948137E-2},{"$f":"'Population 2016'!M64/'Population 2016'!M$16","v":6.3504111321948137E-2},{"$f":"'Population 2016'!N64/'Population 2016'!N$16","v":6.1053051228749607E-2},{"$f":"'Population 2016'!O64/'Population 2016'!O$16","v":5.5929421419778413E-2},{"$f":"'Population 2016'!P64/'Population 2016'!P$16","v":5.2788547569340892E-2},{"$f":"'Population 2016'!Q64/'Population 2016'!Q$16","v":5.2083333333333336E-2},{"$f":"'Population 2016'!R64/'Population 2016'!R$16","v":5.7960010124019239E-2},{"$f":"'Population 2016'!S64/'Population 2016'!S$16","v":5.0575863795693538E-2},{"$f":"'Population 2016'!T64/'Population 2016'!T$16","v":5.0435151772447465E-2},{"$f":"'Population 2016'!U64/'Population 2016'!U$16","v":{"$error":"#DIV/0!"}},{"$f":"'Population 2016'!V64/'Population 2016'!V$16","v":5.2042116558245588E-2},{"$f":"'Population 2016'!W64/'Population 2016'!W$16","v":4.8497400384009667E-2},{"$f":"'Population 2016'!X64/'Population 2016'!X$16","v":4.8497400384009667E-2},{"$f":"'Population 2016'!Y64/'Population 2016'!Y$16","v":5.6162297047671519E-2},{"$f":"'Population 2016'!Z64/'Population 2016'!Z$16","v":5.2537142036890833E-2},{"$f":"'Population 2016'!AA64/'Population 2016'!AA$16","v":5.2588408025569092E-2},{"$f":"'Population 2016'!AB64/'Population 2016'!AB$16","v":5.8097686375321339E-2},{"$f":"'Population 2016'!AC64/'Population 2016'!AC$16","v":5.3588177593848221E-2},{"$f":"'Population 2016'!AD64/'Population 2016'!AD$16","v":5.4841763592101703E-2},{"$f":"'Population 2016'!AE64/'Population 2016'!AE$16","v":5.6250000000000001E-2},{"$f":"'Population 2016'!AF64/'Population 2016'!AF$16","v":5.3305104681251471E-2},{"$f":"'Population 2016'!AG64/'Population 2016'!AG$16","v":5.6250000000000001E-2},{"$f":"'Population 2016'!AH64/'Population 2016'!AH$16","v":5.0039699561023242E-2},{"$f":"'Population 2016'!AI64/'Population 2016'!AI$16","v":5.169432683013165E-2},{"$f":"'Population 2016'!AJ64/'Population 2016'!AJ$16","v":5.8162355040142728E-2},{"$f":"'Population 2016'!AK64/'Population 2016'!AK$16","v":6.8762278978389005E-2},{"$f":"'Population 2016'!AL64/'Population 2016'!AL$16","v":5.5864959522305795E-2},{"$f":"'Population 2016'!AM64/'Population 2016'!AM$16","v":5.0054088822617901E-2},{"$f":"'Population 2016'!AN64/'Population 2016'!AN$16","v":{"$error":"#DIV/0!"}},{"$f":"'Population 2016'!AO64/'Population 2016'!AO$16","v":{"$error":"#DIV/0!"}},{"$f":"'Population 2016'!AP64/'Population 2016'!AP$16","v":5.9025891725511495E-2},{"$f":"'Population 2016'!AQ64/'Population 2016'!AQ$16","v":5.8229226534377933E-2},{"$f":"'Population 2016'!AR64/'Population 2016'!AR$16","v":5.3623093390038741E-2},{"$f":"'Population 2016'!AS64/'Population 2016'!AS$16","v":5.4114713216957606E-2},{"$f":"'Population 2016'!AT64/'Population 2016'!AT$16","v":{"$error":"#DIV/0!"}},{"$f":"'Population 2016'!AU64/'Population 2016'!AU$16","v":{"$error":"#DIV/0!"}},{"$f":"'Population 2016'!AV64/'Population 2016'!AV$16","v":5.9445283318763413E-2},{"$f":"'Population 2016'!AW64/'Population 2016'!AW$16","v":5.0015789345835254E-2},{"$f":"'Population 2016'!AX64/'Population 2016'!AX$16","v":6.4006959980114339E-2},{"$f":"'Population 2016'!AY64/'Population 2016'!AY$16","v":5.4507292162548147E-2},{"$f":"'Population 2016'!AZ64/'Population 2016'!AZ$16","v":6.0553445469343464E-2},{"$f":"'Population 2016'!BA64/'Population 2016'!BA$16","v":5.5486889732497574E-2},{"$f":"'Population 2016'!BB64/'Population 2016'!BB$16","v":5.2897135416666664E-2},{"$f":"'Population 2016'!BC64/'Population 2016'!BC$16","v":{"$error":"#DIV/0!"}},62]
[null,"Female 25-29",{"$f":"'Population 2016'!C65/'Population 2016'!C$16","v":7.7512968949703026E-2},{"$f":"'Population 2016'!D65/'Population 2016'!D$16","v":7.4664626971052014E-2},{"$f":"'Population 2016'!E65/'Population 2016'!E$16","v":6.4411366711772666E-2},{"$f":"'Population 2016'!F65/'Population 2016'!F$16","v":5.501379944802208E-2},{"$f":"'Population 2016'!G65/'Population 2016'!G$16","v":4.2281219272369712E-2},{"$f":"'Population 2016'!H65/'Population 2016'!H$16","v":5.6597991279758175E-2},{"$f":"'Population 2016'!I65/'Population 2016'!I$16","v":5.0872817955112219E-2},{"$f":"'Population 2016'!J65/'Population 2016'!J$16","v":6.3589614950457798E-2},{"$f":"'Population 2016'!K65/'Population 2016'!K$16","v":5.4177215189873416E-2},{"$f":"'Population 2016'!L65/'Population 2016'!L$16","v":6.3757115749525611E-2},{"$f":"'Population 2016'!M65/'Population 2016'!M$16","v":6.3757115749525611E-2},{"$f":"'Population 2016'!N65/'Population 2016'!N$16","v":7.9534128769541815E-2},{"$f":"'Population 2016'!O65/'Population 2016'!O$16","v":5.7529749692244565E-2},{"$f":"'Population 2016'!P65/'Population 2016'!P$16","v":5.7262153295556222E-2},{"$f":"'Population 2016'!Q65/'Population 2016'!Q$16","v":5.9461805555555552E-2},{"$f":"'Population 2016'!R65/'Population 2016'!R$16","v":5.5682105796001011E-2},{"$f":"'Population 2016'!S65/'Population 2016'!S$16","v":6.4976497003569875E-2},{"$f":"'Population 2016'!T65/'Population 2016'!T$16","v":7.5949904478879213E-2},{"$f":"'Population 2016'!U65/'Population 2016'!U$16","v":{"$error":"#DIV/0!"}},{"$f":"'Population 2016'!V65/'Population 2016'!V$16","v":5.9821608208704982E-2},{"$f":"'Population 2016'!W65/'Population 2016'!W$16","v":5.9499924492481607E-2},{"$f":"'Population 2016'!X65/'Population 2016'!X$16","v":5.9499924492481607E-2},{"$f":"'Population 2016'!Y65/'Population 2016'!Y$16","v":6.1768804485205948E-2},{"$f":"'Population 2016'!Z65/'Population 2016'!Z$16","v":7.2587177410259301E-2},{"$f":"'Population 2016'!AA65/'Population 2016'!AA$16","v":6.4434427768078228E-2},{"$f":"'Population 2016'!AB65/'Population 2016'!AB$16","v":7.3807483576121102E-2},{"$f":"'Population 2016'!AC65/'Population 2016'!AC$16","v":6.8752819205682089E-2},{"$f":"'Population 2016'!AD65/'Population 2016'!AD$16","v":5.1866378144441436E-2},{"$f":"'Population 2016'!AE65/'Population 2016'!AE$16","v":5.5503731343283583E-2},{"$f":"'Population 2016'!AF65/'Population 2016'!AF$16","v":5.3775582215949191E-2},{"$f":"'Population 2016'!AG65/'Population 2016'!AG$16","v":5.5503731343283583E-2},{"$f":"'Population 2016'!AH65/'Population 2016'!AH$16","v":5.3425570167833315E-2},{"$f":"'Population 2016'!AI65/'Population 2016'!AI$16","v":6.9202597650134104E-2},{"$f":"'Population 2016'!AJ65/'Population 2016'!AJ$16","v":6.0124888492417483E-2},{"$f":"'Population 2016'!AK65/'Population 2016'!AK$16","v":4.5186640471512773E-2},{"$f":"'Population 2016'!AL65/'Population 2016'!AL$16","v":5.597978986048114E-2},{"$f":"'Population 2016'!AM65/'Population 2016'!AM$16","v":5.4366576031342283E-2},{"$f":"'Population 2016'!AN65/'Population 2016'!AN$16","v":{"$error":"#DIV/0!"}},{"$f":"'Population 2016'!AO65/'Population 2016'!AO$16","v":{"$error":"#DIV/0!"}},{"$f":"'Population 2016'!AP65/'Population 2016'!AP$16","v":7.2605468042730395E-2},{"$f":"'Population 2016'!AQ65/'Population 2016'!AQ$16","v":6.6093953235125083E-2},{"$f":"'Population 2016'!AR65/'Population 2016'!AR$16","v":6.4319492387812524E-2},{"$f":"'Population 2016'!AS65/'Population 2016'!AS$16","v":5.0872817955112219E-2},{"$f":"'Population 2016'!AT65/'Population 2016'!AT$16","v":{"$error":"#DIV/0!"}},{"$f":"'Population 2016'!AU65/'Population 2016'!AU$16","v":{"$error":"#DIV/0!"}},{"$f":"'Population 2016'!AV65/'Population 2016'!AV$16","v":5.6504808074386077E-2},{"$f":"'Population 2016'!AW65/'Population 2016'!AW$16","v":5.1861928243496003E-2},{"$f":"'Population 2016'!AX65/'Population 2016'!AX$16","v":7.2831220482227191E-2},{"$f":"'Population 2016'!AY65/'Population 2016'!AY$16","v":6.7631020902756744E-2},{"$f":"'Population 2016'!AZ65/'Population 2016'!AZ$16","v":7.5811177428106349E-2},{"$f":"'Population 2016'!BA65/'Population 2016'!BA$16","v":5.7649863158824047E-2},{"$f":"'Population 2016'!BB65/'Population 2016'!BB$16","v":5.5935329861111112E-2},{"$f":"'Population 2016'!BC65/'Population 2016'!BC$16","v":{"$error":"#DIV/0!"}},63]
[null,"Female 30-34",{"$f":"'Population 2016'!C66/'Population 2016'!C$16","v":6.8115179309826329E-2},{"$f":"'Population 2016'!D66/'Population 2016'!D$16","v":6.7133443163097203E-2},{"$f":"'Population 2016'!E66/'Population 2016'!E$16","v":6.359945872801083E-2},{"$f":"'Population 2016'!F66/'Population 2016'!F$16","v":6.1085556577736892E-2},{"$f":"'Population 2016'!G66/'Population 2016'!G$16","v":4.9410029498525077E-2},{"$f":"'Population 2016'!H66/'Population 2016'!H$16","v":5.0231936144427267E-2},{"$f":"'Population 2016'!I66/'Population 2016'!I$16","v":5.1620947630922696E-2},{"$f":"'Population 2016'!J66/'Population 2016'!J$16","v":5.5625235168694345E-2},{"$f":"'Population 2016'!K66/'Population 2016'!K$16","v":5.177215189873418E-2},{"$f":"'Population 2016'!L66/'Population 2016'!L$16","v":5.4395951929158762E-2},{"$f":"'Population 2016'!M66/'Population 2016'!M$16","v":5.4395951929158762E-2},{"$f":"'Population 2016'!N66/'Population 2016'!N$16","v":6.3758293703904095E-2},{"$f":"'Population 2016'!O66/'Population 2016'!O$16","v":5.1128436602379979E-2},{"$f":"'Population 2016'!P66/'Population 2016'!P$16","v":4.9209662988368624E-2},{"$f":"'Population 2016'!Q66/'Population 2016'!Q$16","v":5.3819444444444448E-2},{"$f":"'Population 2016'!R66/'Population 2016'!R$16","v":5.4163502910655532E-2},{"$f":"'Population 2016'!S66/'Population 2016'!S$16","v":6.2093139709564343E-2},{"$f":"'Population 2016'!T66/'Population 2016'!T$16","v":7.4782424113776266E-2},{"$f":"'Population 2016'!U66/'Population 2016'!U$16","v":{"$error":"#DIV/0!"}},{"$f":"'Population 2016'!V66/'Population 2016'!V$16","v":5.8614445711219904E-2},{"$f":"'Population 2016'!W66/'Population 2016'!W$16","v":5.2488512070416153E-2},{"$f":"'Population 2016'!X66/'Population 2016'!X$16","v":5.2488512070416153E-2},{"$f":"'Population 2016'!Y66/'Population 2016'!Y$16","v":5.7069708656058593E-2},{"$f":"'Population 2016'!Z66/'Population 2016'!Z$16","v":6.1462509355999631E-2},{"$f":"'Population 2016'!AA66/'Population 2016'!AA$16","v":5.8610413286466947E-2},{"$f":"'Population 2016'!AB66/'Population 2016'!AB$16","v":6.7066552413596117E-2},{"$f":"'Population 2016'!AC66/'Population 2016'!AC$16","v":5.9745680797897854E-2},{"$f":"'Population 2016'!AD66/'Population 2016'!AD$16","v":5.7884771436299699E-2},{"$f":"'Population 2016'!AE66/'Population 2016'!AE$16","v":6.1100746268656719E-2},{"$f":"'Population 2016'!AF66/'Population 2016'!AF$16","v":5.2599388379204894E-2},{"$f":"'Population 2016'!AG66/'Population 2016'!AG$16","v":6.1100746268656719E-2},{"$f":"'Population 2016'!AH66/'Population 2016'!AH$16","v":5.5716280470553881E-2},{"$f":"'Population 2016'!AI66/'Population 2016'!AI$16","v":6.8726089501844764E-2},{"$f":"'Population 2016'!AJ66/'Population 2016'!AJ$16","v":5.2809991079393402E-2},{"$f":"'Population 2016'!AK66/'Population 2016'!AK$16","v":6.4833005893909626E-2},{"$f":"'Population 2016'!AL66/'Population 2016'!AL$16","v":4.8601940632715161E-2},{"$f":"'Population 2016'!AM66/'Population 2016'!AM$16","v":5.4965938660351432E-2},{"$f":"'Population 2016'!AN66/'Population 2016'!AN$16","v":{"$error":"#DIV/0!"}},{"$f":"'Population 2016'!AO66/'Population 2016'!AO$16","v":{"$error":"#DIV/0!"}},{"$f":"'Population 2016'!AP66/'Population 2016'!AP$16","v":6.5181966322650733E-2},{"$f":"'Population 2016'!AQ66/'Population 2016'!AQ$16","v":5.6384040654587256E-2},{"$f":"'Population 2016'!AR66/'Population 2016'!AR$16","v":5.8776748123676309E-2},{"$f":"'Population 2016'!AS66/'Population 2016'!AS$16","v":5.1620947630922696E-2},{"$f":"'Population 2016'!AT66/'Population 2016'!AT$16","v":{"$error":"#DIV/0!"}},{"$f":"'Population 2016'!AU66/'Population 2016'!AU$16","v":{"$error":"#DIV/0!"}},{"$f":"'Population 2016'!AV66/'Population 2016'!AV$16","v":5.3008026702694111E-2},{"$f":"'Population 2016'!AW66/'Population 2016'!AW$16","v":5.6963101513348068E-2},{"$f":"'Population 2016'!AX66/'Population 2016'!AX$16","v":5.9408401690280888E-2},{"$f":"'Population 2016'!AY66/'Population 2016'!AY$16","v":5.8034361881680874E-2},{"$f":"'Population 2016'!AZ66/'Population 2016'!AZ$16","v":6.3613673358654366E-2},{"$f":"'Population 2016'!BA66/'Population 2016'!BA$16","v":5.9106559547982697E-2},{"$f":"'Population 2016'!BB66/'Population 2016'!BB$16","v":5.9950086805555552E-2},{"$f":"'Population 2016'!BC66/'Population 2016'!BC$16","v":{"$error":"#DIV/0!"}},64]
[null,"Female 35-39",{"$f":"'Population 2016'!C67/'Population 2016'!C$16","v":4.8718141493120815E-2},{"$f":"'Population 2016'!D67/'Population 2016'!D$16","v":4.8246646269710522E-2},{"$f":"'Population 2016'!E67/'Population 2016'!E$16","v":4.654939106901218E-2},{"$f":"'Population 2016'!F67/'Population 2016'!F$16","v":5.4829806807727692E-2},{"$f":"'Population 2016'!G67/'Population 2016'!G$16","v":4.3510324483775814E-2},{"$f":"'Population 2016'!H67/'Population 2016'!H$16","v":4.5119589897892373E-2},{"$f":"'Population 2016'!I67/'Population 2016'!I$16","v":4.7880299251870324E-2},{"$f":"'Population 2016'!J67/'Population 2016'!J$16","v":4.8538818512479619E-2},{"$f":"'Population 2016'!K67/'Population 2016'!K$16","v":5.3417721518987341E-2},{"$f":"'Population 2016'!L67/'Population 2016'!L$16","v":4.5667299177735612E-2},{"$f":"'Population 2016'!M67/'Population 2016'!M$16","v":4.5667299177735612E-2},{"$f":"'Population 2016'!N67/'Population 2016'!N$16","v":4.9918842725745365E-2},{"$f":"'Population 2016'!O67/'Population 2016'!O$16","v":4.4932293803857201E-2},{"$f":"'Population 2016'!P67/'Population 2016'!P$16","v":4.5034297643900982E-2},{"$f":"'Population 2016'!Q67/'Population 2016'!Q$16","v":6.2934027777777776E-2},{"$f":"'Population 2016'!R67/'Population 2016'!R$16","v":5.4416603391546442E-2},{"$f":"'Population 2016'!S67/'Population 2016'!S$16","v":5.3281535206034861E-2},{"$f":"'Population 2016'!T67/'Population 2016'!T$16","v":5.9902356187645937E-2},{"$f":"'Population 2016'!U67/'Population 2016'!U$16","v":{"$error":"#DIV/0!"}},{"$f":"'Population 2016'!V67/'Population 2016'!V$16","v":4.6274562403594663E-2},{"$f":"'Population 2016'!W67/'Population 2016'!W$16","v":4.7699178046728366E-2},{"$f":"'Population 2016'!X67/'Population 2016'!X$16","v":4.7699178046728366E-2},{"$f":"'Population 2016'!Y67/'Population 2016'!Y$16","v":4.7444664095667111E-2},{"$f":"'Population 2016'!Z67/'Population 2016'!Z$16","v":5.0947903743425164E-2},{"$f":"'Population 2016'!AA67/'Population 2016'!AA$16","v":5.0107095012432275E-2},{"$f":"'Population 2016'!AB67/'Population 2016'!AB$16","v":4.821479577263639E-2},{"$f":"'Population 2016'!AC67/'Population 2016'!AC$16","v":5.0301789255872899E-2},{"$f":"'Population 2016'!AD67/'Population 2016'!AD$16","v":4.7268055179875576E-2},{"$f":"'Population 2016'!AE67/'Population 2016'!AE$16","v":4.8694029850746272E-2},{"$f":"'Population 2016'!AF67/'Population 2016'!AF$16","v":4.6718419195483418E-2},{"$f":"'Population 2016'!AG67/'Population 2016'!AG$16","v":4.8694029850746272E-2},{"$f":"'Population 2016'!AH67/'Population 2016'!AH$16","v":4.961076177525485E-2},{"$f":"'Population 2016'!AI67/'Population 2016'!AI$16","v":5.7099290683584977E-2},{"$f":"'Population 2016'!AJ67/'Population 2016'!AJ$16","v":4.9955396966993755E-2},{"$f":"'Population 2016'!AK67/'Population 2016'!AK$16","v":4.7151277013752456E-2},{"$f":"'Population 2016'!AL67/'Population 2016'!AL$16","v":4.5415398748349316E-2},{"$f":"'Population 2016'!AM67/'Population 2016'!AM$16","v":4.919159138087302E-2},{"$f":"'Population 2016'!AN67/'Population 2016'!AN$16","v":{"$error":"#DIV/0!"}},{"$f":"'Population 2016'!AO67/'Population 2016'!AO$16","v":{"$error":"#DIV/0!"}},{"$f":"'Population 2016'!AP67/'Population 2016'!AP$16","v":5.3594061198623935E-2},{"$f":"'Population 2016'!AQ67/'Population 2016'!AQ$16","v":4.9759520856650231E-2},{"$f":"'Population 2016'!AR67/'Population 2016'!AR$16","v":4.9937432123117617E-2},{"$f":"'Population 2016'!AS67/'Population 2016'!AS$16","v":4.7880299251870324E-2},{"$f":"'Population 2016'!AT67/'Population 2016'!AT$16","v":{"$error":"#DIV/0!"}},{"$f":"'Population 2016'!AU67/'Population 2016'!AU$16","v":{"$error":"#DIV/0!"}},{"$f":"'Population 2016'!AV67/'Population 2016'!AV$16","v":4.4663434792974646E-2},{"$f":"'Population 2016'!AW67/'Population 2016'!AW$16","v":5.0307284961255375E-2},{"$f":"'Population 2016'!AX67/'Population 2016'!AX$16","v":4.3748446433010194E-2},{"$f":"'Population 2016'!AY67/'Population 2016'!AY$16","v":4.9314060674254555E-2},{"$f":"'Population 2016'!AZ67/'Population 2016'!AZ$16","v":5.0938686923494306E-2},{"$f":"'Population 2016'!BA67/'Population 2016'!BA$16","v":4.8953827138695151E-2},{"$f":"'Population 2016'!BB67/'Population 2016'!BB$16","v":5.1378038194444448E-2},{"$f":"'Population 2016'!BC67/'Population 2016'!BC$16","v":{"$error":"#DIV/0!"}},65]
[null,"Female 40-44",{"$f":"'Population 2016'!C68/'Population 2016'!C$16","v":4.9695511615667994E-2},{"$f":"'Population 2016'!D68/'Population 2016'!D$16","v":4.8776182631207345E-2},{"$f":"'Population 2016'!E68/'Population 2016'!E$16","v":4.5466847090663058E-2},{"$f":"'Population 2016'!F68/'Population 2016'!F$16","v":4.6918123275068994E-2},{"$f":"'Population 2016'!G68/'Population 2016'!G$16","v":5.1130776794493606E-2},{"$f":"'Population 2016'!H68/'Population 2016'!H$16","v":5.1220973156699684E-2},{"$f":"'Population 2016'!I68/'Population 2016'!I$16","v":5.8104738154613464E-2},{"$f":"'Population 2016'!J68/'Population 2016'!J$16","v":4.8538818512479619E-2},{"$f":"'Population 2016'!K68/'Population 2016'!K$16","v":5.1518987341772154E-2},{"$f":"'Population 2016'!L68/'Population 2016'!L$16","v":4.6173308032890575E-2},{"$f":"'Population 2016'!M68/'Population 2016'!M$16","v":4.6173308032890575E-2},{"$f":"'Population 2016'!N68/'Population 2016'!N$16","v":4.1262066805251019E-2},{"$f":"'Population 2016'!O68/'Population 2016'!O$16","v":5.0553959786622894E-2},{"$f":"'Population 2016'!P68/'Population 2016'!P$16","v":5.2490307187593198E-2},{"$f":"'Population 2016'!Q68/'Population 2016'!Q$16","v":4.6006944444444448E-2},{"$f":"'Population 2016'!R68/'Population 2016'!R$16","v":5.0873196659073652E-2},{"$f":"'Population 2016'!S68/'Population 2016'!S$16","v":4.9178606619606831E-2},{"$f":"'Population 2016'!T68/'Population 2016'!T$16","v":4.6380810868180855E-2},{"$f":"'Population 2016'!U68/'Population 2016'!U$16","v":{"$error":"#DIV/0!"}},{"$f":"'Population 2016'!V68/'Population 2016'!V$16","v":5.311514988934344E-2},{"$f":"'Population 2016'!W68/'Population 2016'!W$16","v":4.9079886954458182E-2},{"$f":"'Population 2016'!X68/'Population 2016'!X$16","v":4.9079886954458182E-2},{"$f":"'Population 2016'!Y68/'Population 2016'!Y$16","v":5.0750234954791459E-2},{"$f":"'Population 2016'!Z68/'Population 2016'!Z$16","v":4.5616265597604864E-2},{"$f":"'Population 2016'!AA68/'Population 2016'!AA$16","v":4.738407897003654E-2},{"$f":"'Population 2016'!AB68/'Population 2016'!AB$16","v":4.8957440731219652E-2},{"$f":"'Population 2016'!AC68/'Population 2016'!AC$16","v":4.6055976000057279E-2},{"$f":"'Population 2016'!AD68/'Population 2016'!AD$16","v":4.9634839058696242E-2},{"$f":"'Population 2016'!AE68/'Population 2016'!AE$16","v":4.9067164179104478E-2},{"$f":"'Population 2016'!AF68/'Population 2016'!AF$16","v":4.7000705716302049E-2},{"$f":"'Population 2016'!AG68/'Population 2016'!AG$16","v":4.9067164179104478E-2},{"$f":"'Population 2016'!AH68/'Population 2016'!AH$16","v":5.0769806430416252E-2},{"$f":"'Population 2016'!AI68/'Population 2016'!AI$16","v":4.8753590829260327E-2},{"$f":"'Population 2016'!AJ68/'Population 2016'!AJ$16","v":5.0669045495093663E-2},{"$f":"'Population 2016'!AK68/'Population 2016'!AK$16","v":5.50098231827112E-2},{"$f":"'Population 2016'!AL68/'Population 2016'!AL$16","v":5.2735832807027615E-2},{"$f":"'Population 2016'!AM68/'Population 2016'!AM$16","v":5.065345145162705E-2},{"$f":"'Population 2016'!AN68/'Population 2016'!AN$16","v":{"$error":"#DIV/0!"}},{"$f":"'Population 2016'!AO68/'Population 2016'!AO$16","v":{"$error":"#DIV/0!"}},{"$f":"'Population 2016'!AP68/'Population 2016'!AP$16","v":4.3997827267789245E-2},{"$f":"'Population 2016'!AQ68/'Population 2016'!AQ$16","v":4.494993798965486E-2},{"$f":"'Population 2016'!AR68/'Population 2016'!AR$16","v":4.7977732106869925E-2},{"$f":"'Population 2016'!AS68/'Population 2016'!AS$16","v":5.8104738154613464E-2},{"$f":"'Population 2016'!AT68/'Population 2016'!AT$16","v":{"$error":"#DIV/0!"}},{"$f":"'Population 2016'!AU68/'Population 2016'!AU$16","v":{"$error":"#DIV/0!"}},{"$f":"'Population 2016'!AV68/'Population 2016'!AV$16","v":4.8319160772470796E-2},{"$f":"'Population 2016'!AW68/'Population 2016'!AW$16","v":5.0963150095950642E-2},{"$f":"'Population 2016'!AX68/'Population 2016'!AX$16","v":4.5612726820780512E-2},{"$f":"'Population 2016'!AY68/'Population 2016'!AY$16","v":4.5678798632449044E-2},{"$f":"'Population 2016'!AZ68/'Population 2016'!AZ$16","v":4.2257189365165489E-2},{"$f":"'Population 2016'!BA68/'Population 2016'!BA$16","v":4.8777257879403194E-2},{"$f":"'Population 2016'!BB68/'Population 2016'!BB$16","v":5.4578993055555552E-2},{"$f":"'Population 2016'!BC68/'Population 2016'!BC$16","v":{"$error":"#DIV/0!"}},66]
[null,"Female 45-49",{"$f":"'Population 2016'!C69/'Population 2016'!C$16","v":4.4658296368694082E-2},{"$f":"'Population 2016'!D69/'Population 2016'!D$16","v":4.6481525064721113E-2},{"$f":"'Population 2016'!E69/'Population 2016'!E$16","v":5.30446549391069E-2},{"$f":"'Population 2016'!F69/'Population 2016'!F$16","v":5.5933762649494019E-2},{"$f":"'Population 2016'!G69/'Population 2016'!G$16","v":5.8751229105211404E-2},{"$f":"'Population 2016'!H69/'Population 2016'!H$16","v":6.1055622884366251E-2},{"$f":"'Population 2016'!I69/'Population 2016'!I$16","v":5.6608478802992516E-2},{"$f":"'Population 2016'!J69/'Population 2016'!J$16","v":6.1582842092060705E-2},{"$f":"'Population 2016'!K69/'Population 2016'!K$16","v":5.9746835443037973E-2},{"$f":"'Population 2016'!L69/'Population 2016'!L$16","v":5.7938013915243516E-2},{"$f":"'Population 2016'!M69/'Population 2016'!M$16","v":5.7938013915243516E-2},{"$f":"'Population 2016'!N69/'Population 2016'!N$16","v":4.6900361648204575E-2},{"$f":"'Population 2016'!O69/'Population 2016'!O$16","v":6.265900697578991E-2},{"$f":"'Population 2016'!P69/'Population 2016'!P$16","v":6.2928720548762307E-2},{"$f":"'Population 2016'!Q69/'Population 2016'!Q$16","v":6.640625E-2},{"$f":"'Population 2016'!R69/'Population 2016'!R$16","v":6.2262718299164771E-2},{"$f":"'Population 2016'!S69/'Population 2016'!S$16","v":5.5082623935903859E-2},{"$f":"'Population 2016'!T69/'Population 2016'!T$16","v":4.9437486733177667E-2},{"$f":"'Population 2016'!U69/'Population 2016'!U$16","v":{"$error":"#DIV/0!"}},{"$f":"'Population 2016'!V69/'Population 2016'!V$16","v":5.2913956139762588E-2},{"$f":"'Population 2016'!W69/'Population 2016'!W$16","v":5.9543071645848163E-2},{"$f":"'Population 2016'!X69/'Population 2016'!X$16","v":5.9543071645848163E-2},{"$f":"'Population 2016'!Y69/'Population 2016'!Y$16","v":5.7393784230482546E-2},{"$f":"'Population 2016'!Z69/'Population 2016'!Z$16","v":5.3541950764372355E-2},{"$f":"'Population 2016'!AA69/'Population 2016'!AA$16","v":5.6332233670260502E-2},{"$f":"'Population 2016'!AB69/'Population 2016'!AB$16","v":4.6729505855469866E-2},{"$f":"'Population 2016'!AC69/'Population 2016'!AC$16","v":5.5474807936019249E-2},{"$f":"'Population 2016'!AD69/'Population 2016'!AD$16","v":5.7411414660535572E-2},{"$f":"'Population 2016'!AE69/'Population 2016'!AE$16","v":5.6902985074626863E-2},{"$f":"'Population 2016'!AF69/'Population 2016'!AF$16","v":6.3185132909903546E-2},{"$f":"'Population 2016'!AG69/'Population 2016'!AG$16","v":5.6902985074626863E-2},{"$f":"'Population 2016'!AH69/'Population 2016'!AH$16","v":5.8518065581849542E-2},{"$f":"'Population 2016'!AI69/'Population 2016'!AI$16","v":5.2184449496943543E-2},{"$f":"'Population 2016'!AJ69/'Population 2016'!AJ$16","v":5.5664585191793042E-2},{"$f":"'Population 2016'!AK69/'Population 2016'!AK$16","v":5.50098231827112E-2},{"$f":"'Population 2016'!AL69/'Population 2016'!AL$16","v":6.0917494402021016E-2},{"$f":"'Population 2016'!AM69/'Population 2016'!AM$16","v":5.8240505218840451E-2},{"$f":"'Population 2016'!AN69/'Population 2016'!AN$16","v":{"$error":"#DIV/0!"}},{"$f":"'Population 2016'!AO69/'Population 2016'!AO$16","v":{"$error":"#DIV/0!"}},{"$f":"'Population 2016'!AP69/'Population 2016'!AP$16","v":4.3273583197537567E-2},{"$f":"'Population 2016'!AQ69/'Population 2016'!AQ$16","v":5.6777276989624613E-2},{"$f":"'Population 2016'!AR69/'Population 2016'!AR$16","v":5.5864990208626099E-2},{"$f":"'Population 2016'!AS69/'Population 2016'!AS$16","v":5.6608478802992516E-2},{"$f":"'Population 2016'!AT69/'Population 2016'!AT$16","v":{"$error":"#DIV/0!"}},{"$f":"'Population 2016'!AU69/'Population 2016'!AU$16","v":{"$error":"#DIV/0!"}},{"$f":"'Population 2016'!AV69/'Population 2016'!AV$16","v":5.8332671064134152E-2},{"$f":"'Population 2016'!AW69/'Population 2016'!AW$16","v":5.897927952000389E-2},{"$f":"'Population 2016'!AX69/'Population 2016'!AX$16","v":6.3385533184190906E-2},{"$f":"'Population 2016'!AY69/'Population 2016'!AY$16","v":5.3555199723027656E-2},{"$f":"'Population 2016'!AZ69/'Population 2016'!AZ$16","v":4.7531199131850242E-2},{"$f":"'Population 2016'!BA69/'Population 2016'!BA$16","v":6.0695682881610313E-2},{"$f":"'Population 2016'!BB69/'Population 2016'!BB$16","v":5.6369357638888888E-2},{"$f":"'Population 2016'!BC69/'Population 2016'!BC$16","v":{"$error":"#DIV/0!"}},67]
[null,"Female 50-54",{"$f":"'Population 2016'!C70/'Population 2016'!C$16","v":4.7139312833621536E-2},{"$f":"'Population 2016'!D70/'Population 2016'!D$16","v":4.7775947281713346E-2},{"$f":"'Population 2016'!E70/'Population 2016'!E$16","v":5.0067658998646819E-2},{"$f":"'Population 2016'!F70/'Population 2016'!F$16","v":5.1333946642134316E-2},{"$f":"'Population 2016'!G70/'Population 2016'!G$16","v":5.7276302851524089E-2},{"$f":"'Population 2016'!H70/'Population 2016'!H$16","v":6.2183960884282671E-2},{"$f":"'Population 2016'!I70/'Population 2016'!I$16","v":5.4862842892768077E-2},{"$f":"'Population 2016'!J70/'Population 2016'!J$16","v":5.6754044901542705E-2},{"$f":"'Population 2016'!K70/'Population 2016'!K$16","v":5.7848101265822786E-2},{"$f":"'Population 2016'!L70/'Population 2016'!L$16","v":5.9835547122074638E-2},{"$f":"'Population 2016'!M70/'Population 2016'!M$16","v":5.9835547122074638E-2},{"$f":"'Population 2016'!N70/'Population 2016'!N$16","v":5.3136657459350173E-2},{"$f":"'Population 2016'!O70/'Population 2016'!O$16","v":6.4259335248256055E-2},{"$f":"'Population 2016'!P70/'Population 2016'!P$16","v":6.3226960930509987E-2},{"$f":"'Population 2016'!Q70/'Population 2016'!Q$16","v":5.4253472222222224E-2},{"$f":"'Population 2016'!R70/'Population 2016'!R$16","v":6.5299924069855728E-2},{"$f":"'Population 2016'!S70/'Population 2016'!S$16","v":5.2974623225160319E-2},{"$f":"'Population 2016'!T70/'Population 2016'!T$16","v":4.4427934621099556E-2},{"$f":"'Population 2016'!U70/'Population 2016'!U$16","v":{"$error":"#DIV/0!"}},{"$f":"'Population 2016'!V70/'Population 2016'!V$16","v":5.633424988263698E-2},{"$f":"'Population 2016'!W70/'Population 2016'!W$16","v":5.9672513105947837E-2},{"$f":"'Population 2016'!X70/'Population 2016'!X$16","v":5.9672513105947837E-2},{"$f":"'Population 2016'!Y70/'Population 2016'!Y$16","v":5.6551187736980264E-2},{"$f":"'Population 2016'!Z70/'Population 2016'!Z$16","v":5.6166757236160811E-2},{"$f":"'Population 2016'!AA70/'Population 2016'!AA$16","v":5.7661600331184573E-2},{"$f":"'Population 2016'!AB70/'Population 2016'!AB$16","v":4.7929163096258214E-2},{"$f":"'Population 2016'!AC70/'Population 2016'!AC$16","v":5.7153801542239757E-2},{"$f":"'Population 2016'!AD70/'Population 2016'!AD$16","v":5.3759805247497974E-2},{"$f":"'Population 2016'!AE70/'Population 2016'!AE$16","v":5.2425373134328358E-2},{"$f":"'Population 2016'!AF70/'Population 2016'!AF$16","v":6.2244177840508119E-2},{"$f":"'Population 2016'!AG70/'Population 2016'!AG$16","v":5.2425373134328358E-2},{"$f":"'Population 2016'!AH70/'Population 2016'!AH$16","v":5.8956129703485349E-2},{"$f":"'Population 2016'!AI70/'Population 2016'!AI$16","v":4.8644674681079907E-2},{"$f":"'Population 2016'!AJ70/'Population 2016'!AJ$16","v":5.6556645851917928E-2},{"$f":"'Population 2016'!AK70/'Population 2016'!AK$16","v":5.304518664047151E-2},{"$f":"'Population 2016'!AL70/'Population 2016'!AL$16","v":6.3214101165527933E-2},{"$f":"'Population 2016'!AM70/'Population 2016'!AM$16","v":5.9088384059877791E-2},{"$f":"'Population 2016'!AN70/'Population 2016'!AN$16","v":{"$error":"#DIV/0!"}},{"$f":"'Population 2016'!AO70/'Population 2016'!AO$16","v":{"$error":"#DIV/0!"}},{"$f":"'Population 2016'!AP70/'Population 2016'!AP$16","v":4.6894803548795945E-2},{"$f":"'Population 2016'!AQ70/'Population 2016'!AQ$16","v":5.4387610030551439E-2},{"$f":"'Population 2016'!AR70/'Population 2016'!AR$16","v":5.6587585050980709E-2},{"$f":"'Population 2016'!AS70/'Population 2016'!AS$16","v":5.4862842892768077E-2},{"$f":"'Population 2016'!AT70/'Population 2016'!AT$16","v":{"$error":"#DIV/0!"}},{"$f":"'Population 2016'!AU70/'Population 2016'!AU$16","v":{"$error":"#DIV/0!"}},{"$f":"'Population 2016'!AV70/'Population 2016'!AV$16","v":5.5312723515854721E-2},{"$f":"'Population 2016'!AW70/'Population 2016'!AW$16","v":5.8736366507153789E-2},{"$f":"'Population 2016'!AX70/'Population 2016'!AX$16","v":5.5679840914740243E-2},{"$f":"'Population 2016'!AY70/'Population 2016'!AY$16","v":5.5935430821828884E-2},{"$f":"'Population 2016'!AZ70/'Population 2016'!AZ$16","v":5.217580032555616E-2},{"$f":"'Population 2016'!BA70/'Population 2016'!BA$16","v":6.2593802418998853E-2},{"$f":"'Population 2016'!BB70/'Population 2016'!BB$16","v":5.6315104166666664E-2},{"$f":"'Population 2016'!BC70/'Population 2016'!BC$16","v":{"$error":"#DIV/0!"}},68]
[null,"Female 55-59",{"$f":"'Population 2016'!C71/'Population 2016'!C$16","v":4.0673633561386362E-2},{"$f":"'Population 2016'!D71/'Population 2016'!D$16","v":4.118616144975288E-2},{"$f":"'Population 2016'!E71/'Population 2016'!E$16","v":4.3031123139377535E-2},{"$f":"'Population 2016'!F71/'Population 2016'!F$16","v":4.7838086476540941E-2},{"$f":"'Population 2016'!G71/'Population 2016'!G$16","v":5.4818092428711898E-2},{"$f":"'Population 2016'!H71/'Population 2016'!H$16","v":5.4508476465098141E-2},{"$f":"'Population 2016'!I71/'Population 2016'!I$16","v":4.8628428927680795E-2},{"$f":"'Population 2016'!J71/'Population 2016'!J$16","v":5.2364229273799072E-2},{"$f":"'Population 2016'!K71/'Population 2016'!K$16","v":5.3037974683544306E-2},{"$f":"'Population 2016'!L71/'Population 2016'!L$16","v":4.857685009487666E-2},{"$f":"'Population 2016'!M71/'Population 2016'!M$16","v":4.857685009487666E-2},{"$f":"'Population 2016'!N71/'Population 2016'!N$16","v":4.7526838852977191E-2},{"$f":"'Population 2016'!O71/'Population 2016'!O$16","v":5.2031185884283952E-2},{"$f":"'Population 2016'!P71/'Population 2016'!P$16","v":6.3226960930509987E-2},{"$f":"'Population 2016'!Q71/'Population 2016'!Q$16","v":5.9461805555555552E-2},{"$f":"'Population 2016'!R71/'Population 2016'!R$16","v":4.9354593773728167E-2},{"$f":"'Population 2016'!S71/'Population 2016'!S$16","v":4.912207020207731E-2},{"$f":"'Population 2016'!T71/'Population 2016'!T$16","v":4.3791127149225215E-2},{"$f":"'Population 2016'!U71/'Population 2016'!U$16","v":{"$error":"#DIV/0!"}},{"$f":"'Population 2016'!V71/'Population 2016'!V$16","v":5.1371470726309439E-2},{"$f":"'Population 2016'!W71/'Population 2016'!W$16","v":5.276896856729877E-2},{"$f":"'Population 2016'!X71/'Population 2016'!X$16","v":5.276896856729877E-2},{"$f":"'Population 2016'!Y71/'Population 2016'!Y$16","v":5.1884499465275305E-2},{"$f":"'Population 2016'!Z71/'Population 2016'!Z$16","v":4.8635818355189632E-2},{"$f":"'Population 2016'!AA71/'Population 2016'!AA$16","v":5.1230756967604082E-2},{"$f":"'Population 2016'!AB71/'Population 2016'!AB$16","v":4.1302485004284489E-2},{"$f":"'Population 2016'!AC71/'Population 2016'!AC$16","v":5.0273149706086623E-2},{"$f":"'Population 2016'!AD71/'Population 2016'!AD$16","v":4.9972951041384904E-2},{"$f":"'Population 2016'!AE71/'Population 2016'!AE$16","v":4.8134328358208953E-2},{"$f":"'Population 2016'!AF71/'Population 2016'!AF$16","v":5.942131263232181E-2},{"$f":"'Population 2016'!AG71/'Population 2016'!AG$16","v":4.8134328358208953E-2},{"$f":"'Population 2016'!AH71/'Population 2016'!AH$16","v":5.3671981236253455E-2},{"$f":"'Population 2016'!AI71/'Population 2016'!AI$16","v":4.6847558236102982E-2},{"$f":"'Population 2016'!AJ71/'Population 2016'!AJ$16","v":5.5307760927743088E-2},{"$f":"'Population 2016'!AK71/'Population 2016'!AK$16","v":4.5186640471512773E-2},{"$f":"'Population 2016'!AL71/'Population 2016'!AL$16","v":5.6295573290463342E-2},{"$f":"'Population 2016'!AM71/'Population 2016'!AM$16","v":5.2203023126626322E-2},{"$f":"'Population 2016'!AN71/'Population 2016'!AN$16","v":{"$error":"#DIV/0!"}},{"$f":"'Population 2016'!AO71/'Population 2016'!AO$16","v":{"$error":"#DIV/0!"}},{"$f":"'Population 2016'!AP71/'Population 2016'!AP$16","v":4.2187217092160056E-2},{"$f":"'Population 2016'!AQ71/'Population 2016'!AQ$16","v":5.0001512447442449E-2},{"$f":"'Population 2016'!AR71/'Population 2016'!AR$16","v":5.0635797947089528E-2},{"$f":"'Population 2016'!AS71/'Population 2016'!AS$16","v":4.8628428927680795E-2},{"$f":"'Population 2016'!AT71/'Population 2016'!AT$16","v":{"$error":"#DIV/0!"}},{"$f":"'Population 2016'!AU71/'Population 2016'!AU$16","v":{"$error":"#DIV/0!"}},{"$f":"'Population 2016'!AV71/'Population 2016'!AV$16","v":5.4359055869029643E-2},{"$f":"'Population 2016'!AW71/'Population 2016'!AW$16","v":5.6112905968372727E-2},{"$f":"'Population 2016'!AX71/'Population 2016'!AX$16","v":5.1702709420830224E-2},{"$f":"'Population 2016'!AY71/'Population 2016'!AY$16","v":4.985502228761847E-2},{"$f":"'Population 2016'!AZ71/'Population 2016'!AZ$16","v":4.6923494302767224E-2},{"$f":"'Population 2016'!BA71/'Population 2016'!BA$16","v":5.442747417674583E-2},{"$f":"'Population 2016'!BB71/'Population 2016'!BB$16","v":5.0509982638888888E-2},{"$f":"'Population 2016'!BC71/'Population 2016'!BC$16","v":{"$error":"#DIV/0!"}},69]
[null,"Female 60-64",{"$f":"'Population 2016'!C72/'Population 2016'!C$16","v":3.3080219532365986E-2},{"$f":"'Population 2016'!D72/'Population 2016'!D$16","v":3.324311602730054E-2},{"$f":"'Population 2016'!E72/'Population 2016'!E$16","v":3.3829499323410013E-2},{"$f":"'Population 2016'!F72/'Population 2016'!F$16","v":3.845446182152714E-2},{"$f":"'Population 2016'!G72/'Population 2016'!G$16","v":4.9164208456243856E-2},{"$f":"'Population 2016'!H72/'Population 2016'!H$16","v":4.9354339922270049E-2},{"$f":"'Population 2016'!I72/'Population 2016'!I$16","v":4.6384039900249377E-2},{"$f":"'Population 2016'!J72/'Population 2016'!J$16","v":4.0072745516116892E-2},{"$f":"'Population 2016'!K72/'Population 2016'!K$16","v":4.2784810126582279E-2},{"$f":"'Population 2016'!L72/'Population 2016'!L$16","v":4.3643263757115747E-2},{"$f":"'Population 2016'!M72/'Population 2016'!M$16","v":4.3643263757115747E-2},{"$f":"'Population 2016'!N72/'Population 2016'!N$16","v":3.7873394652162773E-2},{"$f":"'Population 2016'!O72/'Population 2016'!O$16","v":4.7230201066885517E-2},{"$f":"'Population 2016'!P72/'Population 2016'!P$16","v":4.861318222487325E-2},{"$f":"'Population 2016'!Q72/'Population 2016'!Q$16","v":4.2100694444444448E-2},{"$f":"'Population 2016'!R72/'Population 2016'!R$16","v":4.3533282713237156E-2},{"$f":"'Population 2016'!S72/'Population 2016'!S$16","v":3.9777408047555203E-2},{"$f":"'Population 2016'!T72/'Population 2016'!T$16","v":3.275313097007005E-2},{"$f":"'Population 2016'!U72/'Population 2016'!U$16","v":{"$error":"#DIV/0!"}},{"$f":"'Population 2016'!V72/'Population 2016'!V$16","v":4.3524914492656427E-2},{"$f":"'Population 2016'!W72/'Population 2016'!W$16","v":4.5002480961318578E-2},{"$f":"'Population 2016'!X72/'Population 2016'!X$16","v":4.5002480961318578E-2},{"$f":"'Population 2016'!Y72/'Population 2016'!Y$16","v":4.1740933985805487E-2},{"$f":"'Population 2016'!Z72/'Population 2016'!Z$16","v":3.7434251673826781E-2},{"$f":"'Population 2016'!AA72/'Population 2016'!AA$16","v":4.1338931929741557E-2},{"$f":"'Population 2016'!AB72/'Population 2016'!AB$16","v":3.4390174235932588E-2},{"$f":"'Population 2016'!AC72/'Population 2016'!AC$16","v":3.9347161462621807E-2},{"$f":"'Population 2016'!AD72/'Population 2016'!AD$16","v":4.6050852042196375E-2},{"$f":"'Population 2016'!AE72/'Population 2016'!AE$16","v":4.4869402985074629E-2},{"$f":"'Population 2016'!AF72/'Population 2016'!AF$16","v":4.9023759115502233E-2},{"$f":"'Population 2016'!AG72/'Population 2016'!AG$16","v":4.4869402985074629E-2},{"$f":"'Population 2016'!AH72/'Population 2016'!AH$16","v":4.6416544221660444E-2},{"$f":"'Population 2016'!AI72/'Population 2016'!AI$16","v":3.6119317640331647E-2},{"$f":"'Population 2016'!AJ72/'Population 2016'!AJ$16","v":4.1391614629794828E-2},{"$f":"'Population 2016'!AK72/'Population 2016'!AK$16","v":7.269155206286837E-2},{"$f":"'Population 2016'!AL72/'Population 2016'!AL$16","v":5.0582763966239883E-2},{"$f":"'Population 2016'!AM72/'Population 2016'!AM$16","v":4.4747536765780777E-2},{"$f":"'Population 2016'!AN72/'Population 2016'!AN$16","v":{"$error":"#DIV/0!"}},{"$f":"'Population 2016'!AO72/'Population 2016'!AO$16","v":{"$error":"#DIV/0!"}},{"$f":"'Population 2016'!AP72/'Population 2016'!AP$16","v":3.8384935723338766E-2},{"$f":"'Population 2016'!AQ72/'Population 2016'!AQ$16","v":3.8083426600925618E-2},{"$f":"'Population 2016'!AR72/'Population 2016'!AR$16","v":4.1634004999729204E-2},{"$f":"'Population 2016'!AS72/'Population 2016'!AS$16","v":4.6384039900249377E-2},{"$f":"'Population 2016'!AT72/'Population 2016'!AT$16","v":{"$error":"#DIV/0!"}},{"$f":"'Population 2016'!AU72/'Population 2016'!AU$16","v":{"$error":"#DIV/0!"}},{"$f":"'Population 2016'!AV72/'Population 2016'!AV$16","v":5.0067551458316775E-2},{"$f":"'Population 2016'!AW72/'Population 2016'!AW$16","v":4.918988510214492E-2},{"$f":"'Population 2016'!AX72/'Population 2016'!AX$16","v":3.74098931145911E-2},{"$f":"'Population 2016'!AY72/'Population 2016'!AY$16","v":4.1513394209546889E-2},{"$f":"'Population 2016'!AZ72/'Population 2016'!AZ$16","v":3.8003255561584376E-2},{"$f":"'Population 2016'!BA72/'Population 2016'!BA$16","v":4.6481857508607755E-2},{"$f":"'Population 2016'!BB72/'Population 2016'!BB$16","v":4.2371961805555552E-2},{"$f":"'Population 2016'!BC72/'Population 2016'!BC$16","v":{"$error":"#DIV/0!"}},70]
[null,"Female 65-69",0,0,0,0,0,0,0,0,0,0,0,0,0,0,0,0,0,0,0,0,0,0,0,0,0,0,0,0,0,0,0,0,0,0,0,0,0,0,0,0,0,0,0,0,0,0,0,0,0,0,0,0,0,71]
[null,"Female 70-74",0,0,0,0,0,0,0,0,0,0,0,0,0,0,0,0,0,0,0,0,0,0,0,0,0,0,0,0,0,0,0,0,0,0,0,0,0,0,0,0,0,0,0,0,0,0,0,0,0,0,0,0,0,72]
[null,"Female 75-79",0,0,0,0,0,0,0,0,0,0,0,0,0,0,0,0,0,0,0,0,0,0,0,0,0,0,0,0,0,0,0,0,0,0,0,0,0,0,0,0,0,0,0,0,0,0,0,0,0,0,0,0,0,73]
[null,"Female 80-84",0,0,0,0,0,0,0,0,0,0,0,0,0,0,0,0,0,0,0,0,0,0,0,0,0,0,0,0,0,0,0,0,0,0,0,0,0,0,0,0,0,0,0,0,0,0,0,0,0,0,0,0,0,74]
[null,"Female 85-89",0,0,0,0,0,0,0,0,0,0,0,0,0,0,0,0,0,0,0,0,0,0,0,0,0,0,0,0,0,0,0,0,0,0,0,0,0,0,0,0,0,0,0,0,0,0,0,0,0,0,0,0,0,75]
[null,"Female 90+",0,0,0,0,0,0,0,0,0,0,0,0,0,0,0,0,0,0,0,0,0,0,0,0,0,0,0,0,0,0,0,0,0,0,0,0,0,0,0,0,0,0,0,0,0,0,0,0,0,0,0,0,0,76]
[null,"Male 0-4",0,0,0,0,0,0,0,0,0,0,0,0,0,0,0,0,0,0,0,0,0,0,0,0,0,0,0,0,0,0,0,0,0,0,0,0,0,0,0,0,0,0,0,0,0,0,0,0,0,0,0,0,0,77]
[null,"Male 5-9",0,0,0,0,0,0,0,0,0,0,0,0,0,0,0,0,0,0,0,0,0,0,0,0,0,0,0,0,0,0,0,0,0,0,0,0,0,0,0,0,0,0,0,0,0,0,0,0,0,0,0,0,0,78]
[null,"Male 10-15",0,0,0,0,0,0,0,0,0,0,0,0,0,0,0,0,0,0,0,0,0,0,0,0,0,0,0,0,0,0,0,0,0,0,0,0,0,0,0,0,0,0,0,0,0,0,0,0,0,0,0,0,0,79]
[null,"Male 16-19",{"$f":"'Population 2016'!C82/'Population 2016'!C$16","v":2.8343733553868131E-2},{"$f":"'Population 2016'!D82/'Population 2016'!D$16","v":2.7418216050835491E-2},{"$f":"'Population 2016'!E82/'Population 2016'!E$16","v":2.408660351826793E-2},{"$f":"'Population 2016'!F82/'Population 2016'!F$16","v":4.4342226310947565E-2},{"$f":"'Population 2016'!G82/'Population 2016'!G$16","v":4.3756145526057028E-2},{"$f":"'Population 2016'!H82/'Population 2016'!H$16","v":3.8182400713221057E-2},{"$f":"'Population 2016'!I82/'Population 2016'!I$16","v":4.4139650872817952E-2},{"$f":"'Population 2016'!J82/'Population 2016'!J$16","v":4.3521886366486892E-2},{"$f":"'Population 2016'!K82/'Population 2016'!K$16","v":4.3291139240506329E-2},{"$f":"'Population 2016'!L82/'Population 2016'!L$16","v":3.7191650853889945E-2},{"$f":"'Population 2016'!M82/'Population 2016'!M$16","v":3.7191650853889945E-2},{"$f":"'Population 2016'!N82/'Population 2016'!N$16","v":3.3345673035851585E-2},{"$f":"'Population 2016'!O82/'Population 2016'!O$16","v":3.8572014772260979E-2},{"$f":"'Population 2016'!P82/'Population 2016'!P$16","v":4.0560691917685653E-2},{"$f":"'Population 2016'!Q82/'Population 2016'!Q$16","v":3.8194444444444448E-2},{"$f":"'Population 2016'!R82/'Population 2016'!R$16","v":4.1255378385218928E-2},{"$f":"'Population 2016'!S82/'Population 2016'!S$16","v":3.6288303422876249E-2},{"$f":"'Population 2016'!T82/'Population 2016'!T$16","v":3.1861600509445975E-2},{"$f":"'Population 2016'!U82/'Population 2016'!U$16","v":{"$error":"#DIV/0!"}},{"$f":"'Population 2016'!V82/'Population 2016'!V$16","v":3.3666420763194954E-2},{"$f":"'Population 2016'!W82/'Population 2016'!W$16","v":3.8487260802968527E-2},{"$f":"'Population 2016'!X82/'Population 2016'!X$16","v":3.8487260802968527E-2},{"$f":"'Population 2016'!Y82/'Population 2016'!Y$16","v":3.8759438701105098E-2},{"$f":"'Population 2016'!Z82/'Population 2016'!Z$16","v":3.4845331228019812E-2},{"$f":"'Population 2016'!AA82/'Population 2016'!AA$16","v":3.5934040786100532E-2},{"$f":"'Population 2016'!AB82/'Population 2016'!AB$16","v":2.7934875749785777E-2},{"$f":"'Population 2016'!AC82/'Population 2016'!AC$16","v":3.5001109782554218E-2},{"$f":"'Population 2016'!AD82/'Population 2016'!AD$16","v":3.9761969164187179E-2},{"$f":"'Population 2016'!AE82/'Population 2016'!AE$16","v":3.8246268656716417E-2},{"$f":"'Population 2016'!AF82/'Population 2016'!AF$16","v":3.6414961185603389E-2},{"$f":"'Population 2016'!AG82/'Population 2016'!AG$16","v":3.8246268656716417E-2},{"$f":"'Population 2016'!AH82/'Population 2016'!AH$16","v":3.8312357971398064E-2},{"$f":"'Population 2016'!AI82/'Population 2016'!AI$16","v":3.4471960899102802E-2},{"$f":"'Population 2016'!AJ82/'Population 2016'!AJ$16","v":3.6931311329170387E-2},{"$f":"'Population 2016'!AK82/'Population 2016'!AK$16","v":4.5186640471512773E-2},{"$f":"'Population 2016'!AL82/'Population 2016'!AL$16","v":3.9329390825055981E-2},{"$f":"'Population 2016'!AM82/'Population 2016'!AM$16","v":3.9908779931584946E-2},{"$f":"'Population 2016'!AN82/'Population 2016'!AN$16","v":{"$error":"#DIV/0!"}},{"$f":"'Population 2016'!AO82/'Population 2016'!AO$16","v":{"$error":"#DIV/0!"}},{"$f":"'Population 2016'!AP82/'Population 2016'!AP$16","v":3.0961434003259097E-2},{"$f":"'Population 2016'!AQ82/'Population 2016'!AQ$16","v":3.2305877370761363E-2},{"$f":"'Population 2016'!AR82/'Population 2016'!AR$16","v":3.61425692451093E-2},{"$f":"'Population 2016'!AS82/'Population 2016'!AS$16","v":4.4139650872817952E-2},{"$f":"'Population 2016'!AT82/'Population 2016'!AT$16","v":{"$error":"#DIV/0!"}},{"$f":"'Population 2016'!AU82/'Population 2016'!AU$16","v":{"$error":"#DIV/0!"}},{"$f":"'Population 2016'!AV82/'Population 2016'!AV$16","v":3.4252562981800842E-2},{"$f":"'Population 2016'!AW82/'Population 2016'!AW$16","v":3.5659630286394441E-2},{"$f":"'Population 2016'!AX82/'Population 2016'!AX$16","v":4.3748446433010194E-2},{"$f":"'Population 2016'!AY82/'Population 2016'!AY$16","v":3.6428355043926081E-2},{"$f":"'Population 2016'!AZ82/'Population 2016'!AZ$16","v":3.4357026587086274E-2},{"$f":"'Population 2016'!BA82/'Population 2016'!BA$16","v":3.7035402136488038E-2},{"$f":"'Population 2016'!BB82/'Population 2016'!BB$16","v":3.9930555555555552E-2},{"$f":"'Population 2016'!BC82/'Population 2016'!BC$16","v":{"$error":"#DIV/0!"}},80]
[null,"Male 20-24",{"$f":"'Population 2016'!C83/'Population 2016'!C$16","v":4.631230734531238E-2},{"$f":"'Population 2016'!D83/'Population 2016'!D$16","v":4.9894092727700637E-2},{"$f":"'Population 2016'!E83/'Population 2016'!E$16","v":6.2787550744248979E-2},{"$f":"'Population 2016'!F83/'Population 2016'!F$16","v":6.2557497700092002E-2},{"$f":"'Population 2016'!G83/'Population 2016'!G$16","v":6.8584070796460173E-2},{"$f":"'Population 2016'!H83/'Population 2016'!H$16","v":5.3519439452825723E-2},{"$f":"'Population 2016'!I83/'Population 2016'!I$16","v":5.2618453865336659E-2},{"$f":"'Population 2016'!J83/'Population 2016'!J$16","v":5.5625235168694345E-2},{"$f":"'Population 2016'!K83/'Population 2016'!K$16","v":5.4050632911392407E-2},{"$f":"'Population 2016'!L83/'Population 2016'!L$16","v":5.5534471853257432E-2},{"$f":"'Population 2016'!M83/'Population 2016'!M$16","v":5.5534471853257432E-2},{"$f":"'Population 2016'!N83/'Population 2016'!N$16","v":5.5044565310248594E-2},{"$f":"'Population 2016'!O83/'Population 2016'!O$16","v":5.3303241690603201E-2},{"$f":"'Population 2016'!P83/'Population 2016'!P$16","v":5.040262451535938E-2},{"$f":"'Population 2016'!Q83/'Population 2016'!Q$16","v":5.1649305555555552E-2},{"$f":"'Population 2016'!R83/'Population 2016'!R$16","v":4.9101493292837257E-2},{"$f":"'Population 2016'!S83/'Population 2016'!S$16","v":4.9647051221994282E-2},{"$f":"'Population 2016'!T83/'Population 2016'!T$16","v":4.6656760772659733E-2},{"$f":"'Population 2016'!U83/'Population 2016'!U$16","v":{"$error":"#DIV/0!"}},{"$f":"'Population 2016'!V83/'Population 2016'!V$16","v":4.9426597813694587E-2},{"$f":"'Population 2016'!W83/'Population 2016'!W$16","v":4.959765279485686E-2},{"$f":"'Population 2016'!X83/'Population 2016'!X$16","v":4.959765279485686E-2},{"$f":"'Population 2016'!Y83/'Population 2016'!Y$16","v":5.2629873286450399E-2},{"$f":"'Population 2016'!Z83/'Population 2016'!Z$16","v":5.4382709087367094E-2},{"$f":"'Population 2016'!AA83/'Population 2016'!AA$16","v":5.3557791451426688E-2},{"$f":"'Population 2016'!AB83/'Population 2016'!AB$16","v":4.9814338760354182E-2},{"$f":"'Population 2016'!AC83/'Population 2016'!AC$16","v":5.371347562416319E-2},{"$f":"'Population 2016'!AD83/'Population 2016'!AD$16","v":5.7140925074384639E-2},{"$f":"'Population 2016'!AE83/'Population 2016'!AE$16","v":5.2798507462686564E-2},{"$f":"'Population 2016'!AF83/'Population 2016'!AF$16","v":5.1846624323688542E-2},{"$f":"'Population 2016'!AG83/'Population 2016'!AG$16","v":5.2798507462686564E-2},{"$f":"'Population 2016'!AH83/'Population 2016'!AH$16","v":5.3160906427678352E-2},{"$f":"'Population 2016'!AI83/'Population 2016'!AI$16","v":4.9516003866523259E-2},{"$f":"'Population 2016'!AJ83/'Population 2016'!AJ$16","v":5.9054415700267621E-2},{"$f":"'Population 2016'!AK83/'Population 2016'!AK$16","v":4.7151277013752456E-2},{"$f":"'Population 2016'!AL83/'Population 2016'!AL$16","v":5.3740598266061895E-2},{"$f":"'Population 2016'!AM83/'Population 2016'!AM$16","v":5.4775896851153409E-2},{"$f":"'Population 2016'!AN83/'Population 2016'!AN$16","v":{"$error":"#DIV/0!"}},{"$f":"'Population 2016'!AO83/'Population 2016'!AO$16","v":{"$error":"#DIV/0!"}},{"$f":"'Population 2016'!AP83/'Population 2016'!AP$16","v":5.5947854426941883E-2},{"$f":"'Population 2016'!AQ83/'Population 2016'!AQ$16","v":5.2814664690402011E-2},{"$f":"'Population 2016'!AR83/'Population 2016'!AR$16","v":5.2990288439337667E-2},{"$f":"'Population 2016'!AS83/'Population 2016'!AS$16","v":5.2618453865336659E-2},{"$f":"'Population 2016'!AT83/'Population 2016'!AT$16","v":{"$error":"#DIV/0!"}},{"$f":"'Population 2016'!AU83/'Population 2016'!AU$16","v":{"$error":"#DIV/0!"}},{"$f":"'Population 2016'!AV83/'Population 2016'!AV$16","v":5.332591591830247E-2},{"$f":"'Population 2016'!AW83/'Population 2016'!AW$16","v":5.0477324070250441E-2},{"$f":"'Population 2016'!AX83/'Population 2016'!AX$16","v":5.7171265224956497E-2},{"$f":"'Population 2016'!AY83/'Population 2016'!AY$16","v":5.280867269658545E-2},{"$f":"'Population 2016'!AZ83/'Population 2016'!AZ$16","v":5.6039066739012482E-2},{"$f":"'Population 2016'!BA83/'Population 2016'!BA$16","v":5.2308643065242341E-2},{"$f":"'Population 2016'!BB83/'Population 2016'!BB$16","v":5.3656684027777776E-2},{"$f":"'Population 2016'!BC83/'Population 2016'!BC$16","v":{"$error":"#DIV/0!"}},81]
[null,"Male 25-29",{"$f":"'Population 2016'!C84/'Population 2016'!C$16","v":7.7738515901060068E-2},{"$f":"'Population 2016'!D84/'Population 2016'!D$16","v":7.6312073429042129E-2},{"$f":"'Population 2016'!E84/'Population 2016'!E$16","v":7.1177266576454665E-2},{"$f":"'Population 2016'!F84/'Population 2016'!F$16","v":5.7773689052437904E-2},{"$f":"'Population 2016'!G84/'Population 2016'!G$16","v":5.5309734513274339E-2},{"$f":"'Population 2016'!H84/'Population 2016'!H$16","v":5.1527435329516487E-2},{"$f":"'Population 2016'!I84/'Population 2016'!I$16","v":3.9401496259351618E-2},{"$f":"'Population 2016'!J84/'Population 2016'!J$16","v":5.4245578828546345E-2},{"$f":"'Population 2016'!K84/'Population 2016'!K$16","v":4.379746835443038E-2},{"$f":"'Population 2016'!L84/'Population 2016'!L$16","v":6.2745098039215685E-2},{"$f":"'Population 2016'!M84/'Population 2016'!M$16","v":6.2745098039215685E-2},{"$f":"'Population 2016'!N84/'Population 2016'!N$16","v":7.7312982316257078E-2},{"$f":"'Population 2016'!O84/'Population 2016'!O$16","v":5.2605662700041037E-2},{"$f":"'Population 2016'!P84/'Population 2016'!P$16","v":4.861318222487325E-2},{"$f":"'Population 2016'!Q84/'Population 2016'!Q$16","v":4.5572916666666664E-2},{"$f":"'Population 2016'!R84/'Population 2016'!R$16","v":4.9607694254619084E-2},{"$f":"'Population 2016'!S84/'Population 2016'!S$16","v":5.9032096531894618E-2},{"$f":"'Population 2016'!T84/'Population 2016'!T$16","v":7.079176395669709E-2},{"$f":"'Population 2016'!U84/'Population 2016'!U$16","v":{"$error":"#DIV/0!"}},{"$f":"'Population 2016'!V84/'Population 2016'!V$16","v":5.5797733217088058E-2},{"$f":"'Population 2016'!W84/'Population 2016'!W$16","v":5.2661100683882384E-2},{"$f":"'Population 2016'!X84/'Population 2016'!X$16","v":5.2661100683882384E-2},{"$f":"'Population 2016'!Y84/'Population 2016'!Y$16","v":5.4995624979745278E-2},{"$f":"'Population 2016'!Z84/'Population 2016'!Z$16","v":6.9336928771365006E-2},{"$f":"'Population 2016'!AA84/'Population 2016'!AA$16","v":6.1186864726014187E-2},{"$f":"'Population 2016'!AB84/'Population 2016'!AB$16","v":7.4778634675806907E-2},{"$f":"'Population 2016'!AC84/'Population 2016'!AC$16","v":6.5258794131756254E-2},{"$f":"'Population 2016'!AD84/'Population 2016'!AD$16","v":5.5585609954016769E-2},{"$f":"'Population 2016'!AE84/'Population 2016'!AE$16","v":5.5690298507462689E-2},{"$f":"'Population 2016'!AF84/'Population 2016'!AF$16","v":5.2270054104916489E-2},{"$f":"'Population 2016'!AG84/'Population 2016'!AG$16","v":5.5690298507462689E-2},{"$f":"'Population 2016'!AH84/'Population 2016'!AH$16","v":5.08063117738859E-2},{"$f":"'Population 2016'!AI84/'Population 2016'!AI$16","v":6.4124382241222036E-2},{"$f":"'Population 2016'!AJ84/'Population 2016'!AJ$16","v":4.5495093666369314E-2},{"$f":"'Population 2016'!AK84/'Population 2016'!AK$16","v":2.3575638506876228E-2},{"$f":"'Population 2016'!AL84/'Population 2016'!AL$16","v":4.9003846816328876E-2},{"$f":"'Population 2016'!AM84/'Population 2016'!AM$16","v":5.2246878928748942E-2},{"$f":"'Population 2016'!AN84/'Population 2016'!AN$16","v":{"$error":"#DIV/0!"}},{"$f":"'Population 2016'!AO84/'Population 2016'!AO$16","v":{"$error":"#DIV/0!"}},{"$f":"'Population 2016'!AP84/'Population 2016'!AP$16","v":8.021003078037299E-2},{"$f":"'Population 2016'!AQ84/'Population 2016'!AQ$16","v":6.2433830424392753E-2},{"$f":"'Population 2016'!AR84/'Population 2016'!AR$16","v":6.0715069594292216E-2},{"$f":"'Population 2016'!AS84/'Population 2016'!AS$16","v":3.9401496259351618E-2},{"$f":"'Population 2016'!AT84/'Population 2016'!AT$16","v":{"$error":"#DIV/0!"}},{"$f":"'Population 2016'!AU84/'Population 2016'!AU$16","v":{"$error":"#DIV/0!"}},{"$f":"'Population 2016'!AV84/'Population 2016'!AV$16","v":5.6425335770483989E-2},{"$f":"'Population 2016'!AW84/'Population 2016'!AW$16","v":4.8412563461024606E-2},{"$f":"'Population 2016'!AX84/'Population 2016'!AX$16","v":6.4504101416853088E-2},{"$f":"'Population 2016'!AY84/'Population 2016'!AY$16","v":6.3974120396416673E-2},{"$f":"'Population 2016'!AZ84/'Population 2016'!AZ$16","v":7.5355398806294091E-2},{"$f":"'Population 2016'!BA84/'Population 2016'!BA$16","v":5.1646508342897503E-2},{"$f":"'Population 2016'!BB84/'Population 2016'!BB$16","v":5.5067274305555552E-2},{"$f":"'Population 2016'!BC84/'Population 2016'!BC$16","v":{"$error":"#DIV/0!"}},82]
[null,"Male 30-34",{"$f":"'Population 2016'!C85/'Population 2016'!C$16","v":6.5183068942184799E-2},{"$f":"'Population 2016'!D85/'Population 2016'!D$16","v":6.7074605789597549E-2},{"$f":"'Population 2016'!E85/'Population 2016'!E$16","v":7.3883626522327467E-2},{"$f":"'Population 2016'!F85/'Population 2016'!F$16","v":4.7470101195952165E-2},{"$f":"'Population 2016'!G85/'Population 2016'!G$16","v":4.3264503441494594E-2},{"$f":"'Population 2016'!H85/'Population 2016'!H$16","v":4.5426052070709183E-2},{"$f":"'Population 2016'!I85/'Population 2016'!I$16","v":4.3391521197007482E-2},{"$f":"'Population 2016'!J85/'Population 2016'!J$16","v":4.7598143735105986E-2},{"$f":"'Population 2016'!K85/'Population 2016'!K$16","v":4.5949367088607598E-2},{"$f":"'Population 2016'!L85/'Population 2016'!L$16","v":4.3769765970904491E-2},{"$f":"'Population 2016'!M85/'Population 2016'!M$16","v":4.3769765970904491E-2},{"$f":"'Population 2016'!N85/'Population 2016'!N$16","v":6.0654383916621576E-2},{"$f":"'Population 2016'!O85/'Population 2016'!O$16","v":4.5794009027492817E-2},{"$f":"'Population 2016'!P85/'Population 2016'!P$16","v":3.9964211154190278E-2},{"$f":"'Population 2016'!Q85/'Population 2016'!Q$16","v":4.7743055555555552E-2},{"$f":"'Population 2016'!R85/'Population 2016'!R$16","v":4.657048848392812E-2},{"$f":"'Population 2016'!S85/'Population 2016'!S$16","v":5.3459221089699062E-2},{"$f":"'Population 2016'!T85/'Population 2016'!T$16","v":6.1154744215665462E-2},{"$f":"'Population 2016'!U85/'Population 2016'!U$16","v":{"$error":"#DIV/0!"}},{"$f":"'Population 2016'!V85/'Population 2016'!V$16","v":5.1237341559922205E-2},{"$f":"'Population 2016'!W85/'Population 2016'!W$16","v":4.9338769874657518E-2},{"$f":"'Population 2016'!X85/'Population 2016'!X$16","v":4.9338769874657518E-2},{"$f":"'Population 2016'!Y85/'Population 2016'!Y$16","v":4.9356709984768446E-2},{"$f":"'Population 2016'!Z85/'Population 2016'!Z$16","v":6.0714029385528702E-2},{"$f":"'Population 2016'!AA85/'Population 2016'!AA$16","v":5.5576268876620892E-2},{"$f":"'Population 2016'!AB85/'Population 2016'!AB$16","v":6.5638389031705227E-2},{"$f":"'Population 2016'!AC85/'Population 2016'!AC$16","v":5.8324443139753844E-2},{"$f":"'Population 2016'!AD85/'Population 2016'!AD$16","v":5.3827427644035704E-2},{"$f":"'Population 2016'!AE85/'Population 2016'!AE$16","v":5.7835820895522388E-2},{"$f":"'Population 2016'!AF85/'Population 2016'!AF$16","v":4.9211950129381322E-2},{"$f":"'Population 2016'!AG85/'Population 2016'!AG$16","v":5.7835820895522388E-2},{"$f":"'Population 2016'!AH85/'Population 2016'!AH$16","v":4.857035948636982E-2},{"$f":"'Population 2016'!AI85/'Population 2016'!AI$16","v":5.6609168016773084E-2},{"$f":"'Population 2016'!AJ85/'Population 2016'!AJ$16","v":5.0133809099018732E-2},{"$f":"'Population 2016'!AK85/'Population 2016'!AK$16","v":1.768172888015717E-2},{"$f":"'Population 2016'!AL85/'Population 2016'!AL$16","v":4.4496756042946548E-2},{"$f":"'Population 2016'!AM85/'Population 2016'!AM$16","v":4.9264684384410722E-2},{"$f":"'Population 2016'!AN85/'Population 2016'!AN$16","v":{"$error":"#DIV/0!"}},{"$f":"'Population 2016'!AO85/'Population 2016'!AO$16","v":{"$error":"#DIV/0!"}},{"$f":"'Population 2016'!AP85/'Population 2016'!AP$16","v":5.6128915444504796E-2},{"$f":"'Population 2016'!AQ85/'Population 2016'!AQ$16","v":5.8713209715962368E-2},{"$f":"'Population 2016'!AR85/'Population 2016'!AR$16","v":5.4167533685461733E-2},{"$f":"'Population 2016'!AS85/'Population 2016'!AS$16","v":4.3391521197007482E-2},{"$f":"'Population 2016'!AT85/'Population 2016'!AT$16","v":{"$error":"#DIV/0!"}},{"$f":"'Population 2016'!AU85/'Population 2016'!AU$16","v":{"$error":"#DIV/0!"}},{"$f":"'Population 2016'!AV85/'Population 2016'!AV$16","v":4.7286020821743623E-2},{"$f":"'Population 2016'!AW85/'Population 2016'!AW$16","v":4.7416620108339205E-2},{"$f":"'Population 2016'!AX85/'Population 2016'!AX$16","v":4.9217002237136466E-2},{"$f":"'Population 2016'!AY85/'Population 2016'!AY$16","v":5.3933872852382395E-2},{"$f":"'Population 2016'!AZ85/'Population 2016'!AZ$16","v":5.8556701030927832E-2},{"$f":"'Population 2016'!BA85/'Population 2016'!BA$16","v":5.0498808157499776E-2},{"$f":"'Population 2016'!BB85/'Population 2016'!BB$16","v":4.8068576388888888E-2},{"$f":"'Population 2016'!BC85/'Population 2016'!BC$16","v":{"$error":"#DIV/0!"}},83]
[null,"Male 35-39",{"$f":"'Population 2016'!C86/'Population 2016'!C$16","v":6.2100593940305239E-2},{"$f":"'Population 2016'!D86/'Population 2016'!D$16","v":6.0779006825135325E-2},{"$f":"'Population 2016'!E86/'Population 2016'!E$16","v":5.6021650879566981E-2},{"$f":"'Population 2016'!F86/'Population 2016'!F$16","v":4.7102115915363382E-2},{"$f":"'Population 2016'!G86/'Population 2016'!G$16","v":3.687315634218289E-2},{"$f":"'Population 2016'!H86/'Population 2016'!H$16","v":4.0592307799462296E-2},{"$f":"'Population 2016'!I86/'Population 2016'!I$16","v":4.6633416458852869E-2},{"$f":"'Population 2016'!J86/'Population 2016'!J$16","v":4.1201555248965259E-2},{"$f":"'Population 2016'!K86/'Population 2016'!K$16","v":4.5822784810126582E-2},{"$f":"'Population 2016'!L86/'Population 2016'!L$16","v":3.7697659709044908E-2},{"$f":"'Population 2016'!M86/'Population 2016'!M$16","v":3.7697659709044908E-2},{"$f":"'Population 2016'!N86/'Population 2016'!N$16","v":4.3654070678019193E-2},{"$f":"'Population 2016'!O86/'Population 2016'!O$16","v":3.8900287238407875E-2},{"$f":"'Population 2016'!P86/'Population 2016'!P$16","v":4.0560691917685653E-2},{"$f":"'Population 2016'!Q86/'Population 2016'!Q$16","v":3.7326388888888888E-2},{"$f":"'Population 2016'!R86/'Population 2016'!R$16","v":4.1761579347000762E-2},{"$f":"'Population 2016'!S86/'Population 2016'!S$16","v":4.9412828920800553E-2},{"$f":"'Population 2016'!T86/'Population 2016'!T$16","v":5.5614519210358732E-2},{"$f":"'Population 2016'!U86/'Population 2016'!U$16","v":{"$error":"#DIV/0!"}},{"$f":"'Population 2016'!V86/'Population 2016'!V$16","v":4.8353564482596742E-2},{"$f":"'Population 2016'!W86/'Population 2016'!W$16","v":4.5800703298599872E-2},{"$f":"'Population 2016'!X86/'Population 2016'!X$16","v":4.5800703298599872E-2},{"$f":"'Population 2016'!Y86/'Population 2016'!Y$16","v":4.4657614155621091E-2},{"$f":"'Population 2016'!Z86/'Population 2016'!Z$16","v":4.9522715854446279E-2},{"$f":"'Population 2016'!AA86/'Population 2016'!AA$16","v":4.7597497602254527E-2},{"$f":"'Population 2016'!AB86/'Population 2016'!AB$16","v":6.0497000856898027E-2},{"$f":"'Population 2016'!AC86/'Population 2016'!AC$16","v":4.7820888255636622E-2},{"$f":"'Population 2016'!AD86/'Population 2016'!AD$16","v":4.1384906681092778E-2},{"$f":"'Population 2016'!AE86/'Population 2016'!AE$16","v":4.3097014925373135E-2},{"$f":"'Population 2016'!AF86/'Population 2016'!AF$16","v":3.9096683133380383E-2},{"$f":"'Population 2016'!AG86/'Population 2016'!AG$16","v":4.3097014925373135E-2},{"$f":"'Population 2016'!AH86/'Population 2016'!AH$16","v":4.7028008724777089E-2},{"$f":"'Population 2016'!AI86/'Population 2016'!AI$16","v":5.184408653387973E-2},{"$f":"'Population 2016'!AJ86/'Population 2016'!AJ$16","v":4.246208742194469E-2},{"$f":"'Population 2016'!AK86/'Population 2016'!AK$16","v":5.1080550098231828E-2},{"$f":"'Population 2016'!AL86/'Population 2016'!AL$16","v":3.9731297008669689E-2},{"$f":"'Population 2016'!AM86/'Population 2016'!AM$16","v":4.639943864573283E-2},{"$f":"'Population 2016'!AN86/'Population 2016'!AN$16","v":{"$error":"#DIV/0!"}},{"$f":"'Population 2016'!AO86/'Population 2016'!AO$16","v":{"$error":"#DIV/0!"}},{"$f":"'Population 2016'!AP86/'Population 2016'!AP$16","v":5.5223610356690205E-2},{"$f":"'Population 2016'!AQ86/'Population 2016'!AQ$16","v":4.8700807646934269E-2},{"$f":"'Population 2016'!AR86/'Population 2016'!AR$16","v":4.7009996607937428E-2},{"$f":"'Population 2016'!AS86/'Population 2016'!AS$16","v":4.6633416458852869E-2},{"$f":"'Population 2016'!AT86/'Population 2016'!AT$16","v":{"$error":"#DIV/0!"}},{"$f":"'Population 2016'!AU86/'Population 2016'!AU$16","v":{"$error":"#DIV/0!"}},{"$f":"'Population 2016'!AV86/'Population 2016'!AV$16","v":4.625288087101645E-2},{"$f":"'Population 2016'!AW86/'Population 2016'!AW$16","v":4.8072485243034473E-2},{"$f":"'Population 2016'!AX86/'Population 2016'!AX$16","v":3.666418095948297E-2},{"$f":"'Population 2016'!AY86/'Population 2016'!AY$16","v":4.5624702471112652E-2},{"$f":"'Population 2016'!AZ86/'Population 2016'!AZ$16","v":4.5447639717851332E-2},{"$f":"'Population 2016'!BA86/'Population 2016'!BA$16","v":4.2200052970777786E-2},{"$f":"'Population 2016'!BB86/'Population 2016'!BB$16","v":4.6875E-2},{"$f":"'Population 2016'!BC86/'Population 2016'!BC$16","v":{"$error":"#DIV/0!"}},84]
[null,"Male 40-44",{"$f":"'Population 2016'!C87/'Population 2016'!C$16","v":5.0748064055334184E-2},{"$f":"'Population 2016'!D87/'Population 2016'!D$16","v":5.2188750294186868E-2},{"$f":"'Population 2016'!E87/'Population 2016'!E$16","v":5.7374830852503382E-2},{"$f":"'Population 2016'!F87/'Population 2016'!F$16","v":4.6182152713891443E-2},{"$f":"'Population 2016'!G87/'Population 2016'!G$16","v":4.1052114060963617E-2},{"$f":"'Population 2016'!H87/'Population 2016'!H$16","v":4.4325574268321559E-2},{"$f":"'Population 2016'!I87/'Population 2016'!I$16","v":4.738154613466334E-2},{"$f":"'Population 2016'!J87/'Population 2016'!J$16","v":3.9696475605167439E-2},{"$f":"'Population 2016'!K87/'Population 2016'!K$16","v":4.4556962025316456E-2},{"$f":"'Population 2016'!L87/'Population 2016'!L$16","v":4.3137254901960784E-2},{"$f":"'Population 2016'!M87/'Population 2016'!M$16","v":4.3137254901960784E-2},{"$f":"'Population 2016'!N87/'Population 2016'!N$16","v":3.6905202608423268E-2},{"$f":"'Population 2016'!O87/'Population 2016'!O$16","v":4.6081247435371356E-2},{"$f":"'Population 2016'!P87/'Population 2016'!P$16","v":4.0560691917685653E-2},{"$f":"'Population 2016'!Q87/'Population 2016'!Q$16","v":5.7725694444444448E-2},{"$f":"'Population 2016'!R87/'Population 2016'!R$16","v":4.2773981270564414E-2},{"$f":"'Population 2016'!S87/'Population 2016'!S$16","v":4.8047878269016429E-2},{"$f":"'Population 2016'!T87/'Population 2016'!T$16","v":5.0307790278072598E-2},{"$f":"'Population 2016'!U87/'Population 2016'!U$16","v":{"$error":"#DIV/0!"}},{"$f":"'Population 2016'!V87/'Population 2016'!V$16","v":5.0566695727986048E-2},{"$f":"'Population 2016'!W87/'Population 2016'!W$16","v":4.5347658188251032E-2},{"$f":"'Population 2016'!X87/'Population 2016'!X$16","v":4.5347658188251032E-2},{"$f":"'Population 2016'!Y87/'Population 2016'!Y$16","v":4.4949282172602648E-2},{"$f":"'Population 2016'!Z87/'Population 2016'!Z$16","v":4.4498672217038682E-2},{"$f":"'Population 2016'!AA87/'Population 2016'!AA$16","v":4.4607065442380828E-2},{"$f":"'Population 2016'!AB87/'Population 2016'!AB$16","v":5.2385032847757786E-2},{"$f":"'Population 2016'!AC87/'Population 2016'!AC$16","v":4.3406817644826623E-2},{"$f":"'Population 2016'!AD87/'Population 2016'!AD$16","v":4.7335677576413306E-2},{"$f":"'Population 2016'!AE87/'Population 2016'!AE$16","v":4.9720149253731347E-2},{"$f":"'Population 2016'!AF87/'Population 2016'!AF$16","v":4.0178781463185133E-2},{"$f":"'Population 2016'!AG87/'Population 2016'!AG$16","v":4.9720149253731347E-2},{"$f":"'Population 2016'!AH87/'Population 2016'!AH$16","v":4.7666852235495973E-2},{"$f":"'Population 2016'!AI87/'Population 2016'!AI$16","v":4.9788294236974312E-2},{"$f":"'Population 2016'!AJ87/'Population 2016'!AJ$16","v":4.7636039250669046E-2},{"$f":"'Population 2016'!AK87/'Population 2016'!AK$16","v":5.8939096267190572E-2},{"$f":"'Population 2016'!AL87/'Population 2016'!AL$16","v":4.2803008554860196E-2},{"$f":"'Population 2016'!AM87/'Population 2016'!AM$16","v":4.6779522264128875E-2},{"$f":"'Population 2016'!AN87/'Population 2016'!AN$16","v":{"$error":"#DIV/0!"}},{"$f":"'Population 2016'!AO87/'Population 2016'!AO$16","v":{"$error":"#DIV/0!"}},{"$f":"'Population 2016'!AP87/'Population 2016'!AP$16","v":4.5627376425855515E-2},{"$f":"'Population 2016'!AQ87/'Population 2016'!AQ$16","v":4.2590519979430717E-2},{"$f":"'Population 2016'!AR87/'Population 2016'!AR$16","v":4.5070249900946074E-2},{"$f":"'Population 2016'!AS87/'Population 2016'!AS$16","v":4.738154613466334E-2},{"$f":"'Population 2016'!AT87/'Population 2016'!AT$16","v":{"$error":"#DIV/0!"}},{"$f":"'Population 2016'!AU87/'Population 2016'!AU$16","v":{"$error":"#DIV/0!"}},{"$f":"'Population 2016'!AV87/'Population 2016'!AV$16","v":4.5140268616387189E-2},{"$f":"'Population 2016'!AW87/'Population 2016'!AW$16","v":4.91413024995749E-2},{"$f":"'Population 2016'!AX87/'Population 2016'!AX$16","v":3.4924185930897342E-2},{"$f":"'Population 2016'!AY87/'Population 2016'!AY$16","v":4.2205825074652703E-2},{"$f":"'Population 2016'!AZ87/'Population 2016'!AZ$16","v":3.9045035268583828E-2},{"$f":"'Population 2016'!BA87/'Population 2016'!BA$16","v":3.8756952414584621E-2},{"$f":"'Population 2016'!BB87/'Population 2016'!BB$16","v":4.8122829861111112E-2},{"$f":"'Population 2016'!BC87/'Population 2016'!BC$16","v":{"$error":"#DIV/0!"}},85]
[null,"Male 45-49",{"$f":"'Population 2016'!C88/'Population 2016'!C$16","v":4.7064130516502517E-2},{"$f":"'Population 2016'!D88/'Population 2016'!D$16","v":4.7952459402212287E-2},{"$f":"'Population 2016'!E88/'Population 2016'!E$16","v":5.1150202976995941E-2},{"$f":"'Population 2016'!F88/'Population 2016'!F$16","v":5.0965961361545541E-2},{"$f":"'Population 2016'!G88/'Population 2016'!G$16","v":4.990167158308751E-2},{"$f":"'Population 2016'!H88/'Population 2016'!H$16","v":5.0204075946898463E-2},{"$f":"'Population 2016'!I88/'Population 2016'!I$16","v":6.2842892768079806E-2},{"$f":"'Population 2016'!J88/'Population 2016'!J$16","v":4.8915088423429072E-2},{"$f":"'Population 2016'!K88/'Population 2016'!K$16","v":5.3797468354430382E-2},{"$f":"'Population 2016'!L88/'Population 2016'!L$16","v":5.135989879822897E-2},{"$f":"'Population 2016'!M88/'Population 2016'!M$16","v":5.135989879822897E-2},{"$f":"'Population 2016'!N88/'Population 2016'!N$16","v":4.6302360680012526E-2},{"$f":"'Population 2016'!O88/'Population 2016'!O$16","v":5.2523594583504307E-2},{"$f":"'Population 2016'!P88/'Population 2016'!P$16","v":5.5174470623322397E-2},{"$f":"'Population 2016'!Q88/'Population 2016'!Q$16","v":4.0798611111111112E-2},{"$f":"'Population 2016'!R88/'Population 2016'!R$16","v":4.6317388003037203E-2},{"$f":"'Population 2016'!S88/'Population 2016'!S$16","v":5.3475374351850354E-2},{"$f":"'Population 2016'!T88/'Population 2016'!T$16","v":4.89280407556782E-2},{"$f":"'Population 2016'!U88/'Population 2016'!U$16","v":{"$error":"#DIV/0!"}},{"$f":"'Population 2016'!V88/'Population 2016'!V$16","v":5.7071960297766747E-2},{"$f":"'Population 2016'!W88/'Population 2016'!W$16","v":5.6846374560438374E-2},{"$f":"'Population 2016'!X88/'Population 2016'!X$16","v":5.6846374560438374E-2},{"$f":"'Population 2016'!Y88/'Population 2016'!Y$16","v":5.2856726188547171E-2},{"$f":"'Population 2016'!Z88/'Population 2016'!Z$16","v":4.856917287836688E-2},{"$f":"'Population 2016'!AA88/'Population 2016'!AA$16","v":5.1076478438289871E-2},{"$f":"'Population 2016'!AB88/'Population 2016'!AB$16","v":4.8786061125392743E-2},{"$f":"'Population 2016'!AC88/'Population 2016'!AC$16","v":4.9496301918133846E-2},{"$f":"'Population 2016'!AD88/'Population 2016'!AD$16","v":4.9905328644847174E-2},{"$f":"'Population 2016'!AE88/'Population 2016'!AE$16","v":4.9906716417910446E-2},{"$f":"'Population 2016'!AF88/'Population 2016'!AF$16","v":5.2599388379204894E-2},{"$f":"'Population 2016'!AG88/'Population 2016'!AG$16","v":4.9906716417910446E-2},{"$f":"'Population 2016'!AH88/'Population 2016'!AH$16","v":5.5104815967437236E-2},{"$f":"'Population 2016'!AI88/'Population 2016'!AI$16","v":5.0836612163210851E-2},{"$f":"'Population 2016'!AJ88/'Population 2016'!AJ$16","v":5.5129348795718111E-2},{"$f":"'Population 2016'!AK88/'Population 2016'!AK$16","v":7.6620825147347735E-2},{"$f":"'Population 2016'!AL88/'Population 2016'!AL$16","v":4.9491875753574097E-2},{"$f":"'Population 2016'!AM88/'Population 2016'!AM$16","v":5.5360640879455018E-2},{"$f":"'Population 2016'!AN88/'Population 2016'!AN$16","v":{"$error":"#DIV/0!"}},{"$f":"'Population 2016'!AO88/'Population 2016'!AO$16","v":{"$error":"#DIV/0!"}},{"$f":"'Population 2016'!AP88/'Population 2016'!AP$16","v":4.6532681513670106E-2},{"$f":"'Population 2016'!AQ88/'Population 2016'!AQ$16","v":5.4841344263286851E-2},{"$f":"'Population 2016'!AR88/'Population 2016'!AR$16","v":5.1134630678498029E-2},{"$f":"'Population 2016'!AS88/'Population 2016'!AS$16","v":6.2842892768079806E-2},{"$f":"'Population 2016'!AT88/'Population 2016'!AT$16","v":{"$error":"#DIV/0!"}},{"$f":"'Population 2016'!AU88/'Population 2016'!AU$16","v":{"$error":"#DIV/0!"}},{"$f":"'Population 2016'!AV88/'Population 2016'!AV$16","v":4.768338234125407E-2},{"$f":"'Population 2016'!AW88/'Population 2016'!AW$16","v":5.4679719192557145E-2},{"$f":"'Population 2016'!AX88/'Population 2016'!AX$16","v":4.4121302510564259E-2},{"$f":"'Population 2016'!AY88/'Population 2016'!AY$16","v":5.1878218721599513E-2},{"$f":"'Population 2016'!AZ88/'Population 2016'!AZ$16","v":4.6880086814975581E-2},{"$f":"'Population 2016'!BA88/'Population 2016'!BA$16","v":4.6481857508607755E-2},{"$f":"'Population 2016'!BB88/'Population 2016'!BB$16","v":5.56640625E-2},{"$f":"'Population 2016'!BC88/'Population 2016'!BC$16","v":{"$error":"#DIV/0!"}},86]
[null,"Male 50-54",{"$f":"'Population 2016'!C89/'Population 2016'!C$16","v":4.6237125028193368E-2},{"$f":"'Population 2016'!D89/'Population 2016'!D$16","v":4.5422452341727468E-2},{"$f":"'Population 2016'!E89/'Population 2016'!E$16","v":4.2489851150202977E-2},{"$f":"'Population 2016'!F89/'Population 2016'!F$16","v":5.3725850965961358E-2},{"$f":"'Population 2016'!G89/'Population 2016'!G$16","v":6.4650934119960674E-2},{"$f":"'Population 2016'!H89/'Population 2016'!H$16","v":5.4048783205872933E-2},{"$f":"'Population 2016'!I89/'Population 2016'!I$16","v":6.4837905236907731E-2},{"$f":"'Population 2016'!J89/'Population 2016'!J$16","v":5.3994732221246705E-2},{"$f":"'Population 2016'!K89/'Population 2016'!K$16","v":5.7468354430379745E-2},{"$f":"'Population 2016'!L89/'Population 2016'!L$16","v":5.528146742567995E-2},{"$f":"'Population 2016'!M89/'Population 2016'!M$16","v":5.528146742567995E-2},{"$f":"'Population 2016'!N89/'Population 2016'!N$16","v":4.7412933906654894E-2},{"$f":"'Population 2016'!O89/'Population 2016'!O$16","v":5.5519080837094788E-2},{"$f":"'Population 2016'!P89/'Population 2016'!P$16","v":5.6367432150313153E-2},{"$f":"'Population 2016'!Q89/'Population 2016'!Q$16","v":6.2065972222222224E-2},{"$f":"'Population 2016'!R89/'Population 2016'!R$16","v":6.0997215894710202E-2},{"$f":"'Population 2016'!S89/'Population 2016'!S$16","v":5.2740400923966597E-2},{"$f":"'Population 2016'!T89/'Population 2016'!T$16","v":5.0732328592655487E-2},{"$f":"'Population 2016'!U89/'Population 2016'!U$16","v":{"$error":"#DIV/0!"}},{"$f":"'Population 2016'!V89/'Population 2016'!V$16","v":5.7541412380122059E-2},{"$f":"'Population 2016'!W89/'Population 2016'!W$16","v":5.2617953530515821E-2},{"$f":"'Population 2016'!X89/'Population 2016'!X$16","v":5.2617953530515821E-2},{"$f":"'Population 2016'!Y89/'Population 2016'!Y$16","v":5.5708591243477976E-2},{"$f":"'Population 2016'!Z89/'Population 2016'!Z$16","v":4.9743158585475386E-2},{"$f":"'Population 2016'!AA89/'Population 2016'!AA$16","v":5.2686117760801426E-2},{"$f":"'Population 2016'!AB89/'Population 2016'!AB$16","v":4.5529848614681519E-2},{"$f":"'Population 2016'!AC89/'Population 2016'!AC$16","v":5.2127560554748077E-2},{"$f":"'Population 2016'!AD89/'Population 2016'!AD$16","v":5.5112253178252635E-2},{"$f":"'Population 2016'!AE89/'Population 2016'!AE$16","v":5.1492537313432833E-2},{"$f":"'Population 2016'!AF89/'Population 2016'!AF$16","v":6.0456363208656785E-2},{"$f":"'Population 2016'!AG89/'Population 2016'!AG$16","v":5.1492537313432833E-2},{"$f":"'Population 2016'!AH89/'Population 2016'!AH$16","v":5.4110045357889262E-2},{"$f":"'Population 2016'!AI89/'Population 2016'!AI$16","v":5.2157220459898436E-2},{"$f":"'Population 2016'!AJ89/'Population 2016'!AJ$16","v":5.4415700267618196E-2},{"$f":"'Population 2016'!AK89/'Population 2016'!AK$16","v":4.9115913555992138E-2},{"$f":"'Population 2016'!AL89/'Population 2016'!AL$16","v":5.4400872710570133E-2},{"$f":"'Population 2016'!AM89/'Population 2016'!AM$16","v":5.5331403678039938E-2},{"$f":"'Population 2016'!AN89/'Population 2016'!AN$16","v":{"$error":"#DIV/0!"}},{"$f":"'Population 2016'!AO89/'Population 2016'!AO$16","v":{"$error":"#DIV/0!"}},{"$f":"'Population 2016'!AP89/'Population 2016'!AP$16","v":5.3775122216186855E-2},{"$f":"'Population 2016'!AQ89/'Population 2016'!AQ$16","v":5.4448107928249494E-2},{"$f":"'Population 2016'!AR89/'Population 2016'!AR$16","v":5.2622577454470826E-2},{"$f":"'Population 2016'!AS89/'Population 2016'!AS$16","v":6.4837905236907731E-2},{"$f":"'Population 2016'!AT89/'Population 2016'!AT$16","v":{"$error":"#DIV/0!"}},{"$f":"'Population 2016'!AU89/'Population 2016'!AU$16","v":{"$error":"#DIV/0!"}},{"$f":"'Population 2016'!AV89/'Population 2016'!AV$16","v":5.0226496066120958E-2},{"$f":"'Population 2016'!AW89/'Population 2016'!AW$16","v":5.208054995506109E-2},{"$f":"'Population 2016'!AX89/'Population 2016'!AX$16","v":5.0584141188168036E-2},{"$f":"'Population 2016'!AY89/'Population 2016'!AY$16","v":5.0774657030337129E-2},{"$f":"'Population 2016'!AZ89/'Population 2016'!AZ$16","v":4.8920238741182856E-2},{"$f":"'Population 2016'!BA89/'Population 2016'!BA$16","v":5.9283128807274654E-2},{"$f":"'Population 2016'!BB89/'Population 2016'!BB$16","v":5.3873697916666664E-2},{"$f":"'Population 2016'!BC89/'Population 2016'!BC$16","v":{"$error":"#DIV/0!"}},87]
[null,"Male 55-59",{"$f":"'Population 2016'!C90/'Population 2016'!C$16","v":4.2252462220885648E-2},{"$f":"'Population 2016'!D90/'Population 2016'!D$16","v":4.3775005883737353E-2},{"$f":"'Population 2016'!E90/'Population 2016'!E$16","v":4.9255751014884983E-2},{"$f":"'Population 2016'!F90/'Population 2016'!F$16","v":4.2686292548298067E-2},{"$f":"'Population 2016'!G90/'Population 2016'!G$16","v":5.2359882005899708E-2},{"$f":"'Population 2016'!H90/'Population 2016'!H$16","v":5.2641843230668506E-2},{"$f":"'Population 2016'!I90/'Population 2016'!I$16","v":4.9127182044887779E-2},{"$f":"'Population 2016'!J90/'Population 2016'!J$16","v":5.1047284585475979E-2},{"$f":"'Population 2016'!K90/'Population 2016'!K$16","v":5.4177215189873416E-2},{"$f":"'Population 2016'!L90/'Population 2016'!L$16","v":4.9209361163820367E-2},{"$f":"'Population 2016'!M90/'Population 2016'!M$16","v":4.9209361163820367E-2},{"$f":"'Population 2016'!N90/'Population 2016'!N$16","v":4.5704359711820484E-2},{"$f":"'Population 2016'!O90/'Population 2016'!O$16","v":5.1867049651210508E-2},{"$f":"'Population 2016'!P90/'Population 2016'!P$16","v":5.1595586042350136E-2},{"$f":"'Population 2016'!Q90/'Population 2016'!Q$16","v":4.8611111111111112E-2},{"$f":"'Population 2016'!R90/'Population 2016'!R$16","v":4.8848392811946341E-2},{"$f":"'Population 2016'!S90/'Population 2016'!S$16","v":4.5956030820424182E-2},{"$f":"'Population 2016'!T90/'Population 2016'!T$16","v":3.9991509233708339E-2},{"$f":"'Population 2016'!U90/'Population 2016'!U$16","v":{"$error":"#DIV/0!"}},{"$f":"'Population 2016'!V90/'Population 2016'!V$16","v":4.875595198175843E-2},{"$f":"'Population 2016'!W90/'Population 2016'!W$16","v":5.2057040536750587E-2},{"$f":"'Population 2016'!X90/'Population 2016'!X$16","v":5.2057040536750587E-2},{"$f":"'Population 2016'!Y90/'Population 2016'!Y$16","v":4.9940046018731567E-2},{"$f":"'Population 2016'!Z90/'Population 2016'!Z$16","v":4.3524622940398439E-2},{"$f":"'Population 2016'!AA90/'Population 2016'!AA$16","v":4.6962384323244372E-2},{"$f":"'Population 2016'!AB90/'Population 2016'!AB$16","v":4.4044558697514995E-2},{"$f":"'Population 2016'!AC90/'Population 2016'!AC$16","v":4.5676501965389103E-2},{"$f":"'Population 2016'!AD90/'Population 2016'!AD$16","v":5.0513930213686775E-2},{"$f":"'Population 2016'!AE90/'Population 2016'!AE$16","v":4.9813432835820896E-2},{"$f":"'Population 2016'!AF90/'Population 2016'!AF$16","v":5.2928722653493299E-2},{"$f":"'Population 2016'!AG90/'Population 2016'!AG$16","v":4.9813432835820896E-2},{"$f":"'Population 2016'!AH90/'Population 2016'!AH$16","v":5.0240478950106325E-2},{"$f":"'Population 2016'!AI90/'Population 2016'!AI$16","v":4.1932717049461547E-2},{"$f":"'Population 2016'!AJ90/'Population 2016'!AJ$16","v":4.7992863514719E-2},{"$f":"'Population 2016'!AK90/'Population 2016'!AK$16","v":5.304518664047151E-2},{"$f":"'Population 2016'!AL90/'Population 2016'!AL$16","v":5.3396107251535853E-2},{"$f":"'Population 2016'!AM90/'Population 2016'!AM$16","v":4.9513200596438905E-2},{"$f":"'Population 2016'!AN90/'Population 2016'!AN$16","v":{"$error":"#DIV/0!"}},{"$f":"'Population 2016'!AO90/'Population 2016'!AO$16","v":{"$error":"#DIV/0!"}},{"$f":"'Population 2016'!AP90/'Population 2016'!AP$16","v":4.2187217092160056E-2},{"$f":"'Population 2016'!AQ90/'Population 2016'!AQ$16","v":5.0666989322121055E-2},{"$f":"'Population 2016'!AR90/'Population 2016'!AR$16","v":4.7390534720183342E-2},{"$f":"'Population 2016'!AS90/'Population 2016'!AS$16","v":4.9127182044887779E-2},{"$f":"'Population 2016'!AT90/'Population 2016'!AT$16","v":{"$error":"#DIV/0!"}},{"$f":"'Population 2016'!AU90/'Population 2016'!AU$16","v":{"$error":"#DIV/0!"}},{"$f":"'Population 2016'!AV90/'Population 2016'!AV$16","v":5.2054359055869033E-2},{"$f":"'Population 2016'!AW90/'Population 2016'!AW$16","v":5.1448976121650836E-2},{"$f":"'Population 2016'!AX90/'Population 2016'!AX$16","v":4.7974148645289587E-2},{"$f":"'Population 2016'!AY90/'Population 2016'!AY$16","v":4.8502618254208679E-2},{"$f":"'Population 2016'!AZ90/'Population 2016'!AZ$16","v":4.4926749864351599E-2},{"$f":"'Population 2016'!BA90/'Population 2016'!BA$16","v":4.8688973249757218E-2},{"$f":"'Population 2016'!BB90/'Population 2016'!BB$16","v":4.4216579861111112E-2},{"$f":"'Population 2016'!BC90/'Population 2016'!BC$16","v":{"$error":"#DIV/0!"}},88]
[null,"Male 60-64",{"$f":"'Population 2016'!C91/'Population 2016'!C$16","v":3.8042252462220885E-2},{"$f":"'Population 2016'!D91/'Population 2016'!D$16","v":3.5714285714285712E-2},{"$f":"'Population 2016'!E91/'Population 2016'!E$16","v":2.733423545331529E-2},{"$f":"'Population 2016'!F91/'Population 2016'!F$16","v":3.6062557497700092E-2},{"$f":"'Population 2016'!G91/'Population 2016'!G$16","v":5.0884955752212392E-2},{"$f":"'Population 2016'!H91/'Population 2016'!H$16","v":4.4994219009012772E-2},{"$f":"'Population 2016'!I91/'Population 2016'!I$16","v":3.8403990024937655E-2},{"$f":"'Population 2016'!J91/'Population 2016'!J$16","v":3.9821898908817259E-2},{"$f":"'Population 2016'!K91/'Population 2016'!K$16","v":4.2151898734177212E-2},{"$f":"'Population 2016'!L91/'Population 2016'!L$16","v":4.0733712839974699E-2},{"$f":"'Population 2016'!M91/'Population 2016'!M$16","v":4.0733712839974699E-2},{"$f":"'Population 2016'!N91/'Population 2016'!N$16","v":3.6848250135262127E-2},{"$f":"'Population 2016'!O91/'Population 2016'!O$16","v":4.2880590890439066E-2},{"$f":"'Population 2016'!P91/'Population 2016'!P$16","v":4.7718461079630181E-2},{"$f":"'Population 2016'!Q91/'Population 2016'!Q$16","v":3.7760416666666664E-2},{"$f":"'Population 2016'!R91/'Population 2016'!R$16","v":3.6952670210073396E-2},{"$f":"'Population 2016'!S91/'Population 2016'!S$16","v":3.8460917182224948E-2},{"$f":"'Population 2016'!T91/'Population 2016'!T$16","v":3.4175334323922731E-2},{"$f":"'Population 2016'!U91/'Population 2016'!U$16","v":{"$error":"#DIV/0!"}},{"$f":"'Population 2016'!V91/'Population 2016'!V$16","v":4.1781235329622426E-2},{"$f":"'Population 2016'!W91/'Population 2016'!W$16","v":4.353547774685565E-2},{"$f":"'Population 2016'!X91/'Population 2016'!X$16","v":4.353547774685565E-2},{"$f":"'Population 2016'!Y91/'Population 2016'!Y$16","v":4.0768707262533621E-2},{"$f":"'Population 2016'!Z91/'Population 2016'!Z$16","v":3.507602710932934E-2},{"$f":"'Population 2016'!AA91/'Population 2016'!AA$16","v":3.8132509828827973E-2},{"$f":"'Population 2016'!AB91/'Population 2016'!AB$16","v":3.5818337617823479E-2},{"$f":"'Population 2016'!AC91/'Population 2016'!AC$16","v":3.6841200856322538E-2},{"$f":"'Population 2016'!AD91/'Population 2016'!AD$16","v":4.3616445766837979E-2},{"$f":"'Population 2016'!AE91/'Population 2016'!AE$16","v":4.0858208955223879E-2},{"$f":"'Population 2016'!AF91/'Population 2016'!AF$16","v":4.5354034344860031E-2},{"$f":"'Population 2016'!AG91/'Population 2016'!AG$16","v":4.0858208955223879E-2},{"$f":"'Population 2016'!AH91/'Population 2016'!AH$16","v":4.1424438502185759E-2},{"$f":"'Population 2016'!AI91/'Population 2016'!AI$16","v":3.5261602973410848E-2},{"$f":"'Population 2016'!AJ91/'Population 2016'!AJ$16","v":4.3532560214094559E-2},{"$f":"'Population 2016'!AK91/'Population 2016'!AK$16","v":3.9292730844793712E-2},{"$f":"'Population 2016'!AL91/'Population 2016'!AL$16","v":4.5214445656542458E-2},{"$f":"'Population 2016'!AM91/'Population 2016'!AM$16","v":3.9791831125924625E-2},{"$f":"'Population 2016'!AN91/'Population 2016'!AN$16","v":{"$error":"#DIV/0!"}},{"$f":"'Population 2016'!AO91/'Population 2016'!AO$16","v":{"$error":"#DIV/0!"}},{"$f":"'Population 2016'!AP91/'Population 2016'!AP$16","v":3.5125837407206227E-2},{"$f":"'Population 2016'!AQ91/'Population 2016'!AQ$16","v":3.6177742823436887E-2},{"$f":"'Population 2016'!AR91/'Population 2016'!AR$16","v":3.8991616759639587E-2},{"$f":"'Population 2016'!AS91/'Population 2016'!AS$16","v":3.8403990024937655E-2},{"$f":"'Population 2016'!AT91/'Population 2016'!AT$16","v":{"$error":"#DIV/0!"}},{"$f":"'Population 2016'!AU91/'Population 2016'!AU$16","v":{"$error":"#DIV/0!"}},{"$f":"'Population 2016'!AV91/'Population 2016'!AV$16","v":4.8478105380274972E-2},{"$f":"'Population 2016'!AW91/'Population 2016'!AW$16","v":4.4137294434862875E-2},{"$f":"'Population 2016'!AX91/'Population 2016'!AX$16","v":3.7534178473775791E-2},{"$f":"'Population 2016'!AY91/'Population 2016'!AY$16","v":4.0052797853464321E-2},{"$f":"'Population 2016'!AZ91/'Population 2016'!AZ$16","v":3.6549104720564295E-2},{"$f":"'Population 2016'!BA91/'Population 2016'!BA$16","v":4.3391895470998497E-2},{"$f":"'Population 2016'!BB91/'Population 2016'!BB$16","v":3.5210503472222224E-2},{"$f":"'Population 2016'!BC91/'Population 2016'!BC$16","v":{"$error":"#DIV/0!"}},89]
[null,"Male 65-69",0,0,0,0,0,0,0,0,0,0,0,0,0,0,0,0,0,0,0,0,0,0,0,0,0,0,0,0,0,0,0,0,0,0,0,0,0,0,0,0,0,0,0,0,0,0,0,0,0,0,0,0,0,90]
[null,"Male 70-74",0,0,0,0,0,0,0,0,0,0,0,0,0,0,0,0,0,0,0,0,0,0,0,0,0,0,0,0,0,0,0,0,0,0,0,0,0,0,0,0,0,0,0,0,0,0,0,0,0,0,0,0,0,91]
[null,"Male 75-79",0,0,0,0,0,0,0,0,0,0,0,0,0,0,0,0,0,0,0,0,0,0,0,0,0,0,0,0,0,0,0,0,0,0,0,0,0,0,0,0,0,0,0,0,0,0,0,0,0,0,0,0,0,92]
[null,"Male 80-84",0,0,0,0,0,0,0,0,0,0,0,0,0,0,0,0,0,0,0,0,0,0,0,0,0,0,0,0,0,0,0,0,0,0,0,0,0,0,0,0,0,0,0,0,0,0,0,0,0,0,0,0,0,93]
[null,"Male 85-89",0,0,0,0,0,0,0,0,0,0,0,0,0,0,0,0,0,0,0,0,0,0,0,0,0,0,0,0,0,0,0,0,0,0,0,0,0,0,0,0,0,0,0,0,0,0,0,0,0,0,0,0,0,94]
[null,"Male 90+",0,0,0,0,0,0,0,0,0,0,0,0,0,0,0,0,0,0,0,0,0,0,0,0,0,0,0,0,0,0,0,0,0,0,0,0,0,0,0,0,0,0,0,0,0,0,0,0,0,0,0,0,0,95]
["SIMD Q2","Female 0-4",0,0,0,0,0,0,0,0,0,0,0,0,0,0,0,0,0,0,0,0,0,0,0,0,0,0,0,0,0,0,0,0,0,0,0,0,0,0,0,0,0,0,0,0,0,0,0,0,0,0,0,0,0,96]
[null,"Female 5-9",0,0,0,0,0,0,0,0,0,0,0,0,0,0,0,0,0,0,0,0,0,0,0,0,0,0,0,0,0,0,0,0,0,0,0,0,0,0,0,0,0,0,0,0,0,0,0,0,0,0,0,0,0,97]
[null,"Female 10-15",0,0,0,0,0,0,0,0,0,0,0,0,0,0,0,0,0,0,0,0,0,0,0,0,0,0,0,0,0,0,0,0,0,0,0,0,0,0,0,0,0,0,0,0,0,0,0,0,0,0,0,0,0,98]
[null,"Female 16-19",0,0,0,0,0,0,0,0,0,0,0,0,0,0,0,0,0,0,0,0,0,0,0,0,0,0,0,0,0,0,0,0,0,0,0,0,0,0,0,0,0,0,0,0,0,0,0,0,0,0,0,0,0,99]
[null,"Female 20-24",0,0,0,0,0,0,0,0,0,0,0,0,0,0,0,0,0,0,0,0,0,0,0,0,0,0,0,0,0,0,0,0,0,0,0,0,0,0,0,0,0,0,0,0,0,0,0,0,0,0,0,0,0,100]
[null,"Female 25-29",0,0,0,0,0,0,0,0,0,0,0,0,0,0,0,0,0,0,0,0,0,0,0,0,0,0,0,0,0,0,0,0,0,0,0,0,0,0,0,0,0,0,0,0,0,0,0,0,0,0,0,0,0,101]
[null,"Female 30-34",0,0,0,0,0,0,0,0,0,0,0,0,0,0,0,0,0,0,0,0,0,0,0,0,0,0,0,0,0,0,0,0,0,0,0,0,0,0,0,0,0,0,0,0,0,0,0,0,0,0,0,0,0,102]
[null,"Female 35-39",0,0,0,0,0,0,0,0,0,0,0,0,0,0,0,0,0,0,0,0,0,0,0,0,0,0,0,0,0,0,0,0,0,0,0,0,0,0,0,0,0,0,0,0,0,0,0,0,0,0,0,0,0,103]
[null,"Female 40-44",0,0,0,0,0,0,0,0,0,0,0,0,0,0,0,0,0,0,0,0,0,0,0,0,0,0,0,0,0,0,0,0,0,0,0,0,0,0,0,0,0,0,0,0,0,0,0,0,0,0,0,0,0,104]
[null,"Female 45-49",0,0,0,0,0,0,0,0,0,0,0,0,0,0,0,0,0,0,0,0,0,0,0,0,0,0,0,0,0,0,0,0,0,0,0,0,0,0,0,0,0,0,0,0,0,0,0,0,0,0,0,0,0,105]
[null,"Female 50-54",0,0,0,0,0,0,0,0,0,0,0,0,0,0,0,0,0,0,0,0,0,0,0,0,0,0,0,0,0,0,0,0,0,0,0,0,0,0,0,0,0,0,0,0,0,0,0,0,0,0,0,0,0,106]
[null,"Female 55-59",0,0,0,0,0,0,0,0,0,0,0,0,0,0,0,0,0,0,0,0,0,0,0,0,0,0,0,0,0,0,0,0,0,0,0,0,0,0,0,0,0,0,0,0,0,0,0,0,0,0,0,0,0,107]
[null,"Female 60-64",0,0,0,0,0,0,0,0,0,0,0,0,0,0,0,0,0,0,0,0,0,0,0,0,0,0,0,0,0,0,0,0,0,0,0,0,0,0,0,0,0,0,0,0,0,0,0,0,0,0,0,0,0,108]
[null,"Female 65-69",0,0,0,0,0,0,0,0,0,0,0,0,0,0,0,0,0,0,0,0,0,0,0,0,0,0,0,0,0,0,0,0,0,0,0,0,0,0,0,0,0,0,0,0,0,0,0,0,0,0,0,0,0,109]
[null,"Female 70-74",0,0,0,0,0,0,0,0,0,0,0,0,0,0,0,0,0,0,0,0,0,0,0,0,0,0,0,0,0,0,0,0,0,0,0,0,0,0,0,0,0,0,0,0,0,0,0,0,0,0,0,0,0,110]
[null,"Female 75-79",0,0,0,0,0,0,0,0,0,0,0,0,0,0,0,0,0,0,0,0,0,0,0,0,0,0,0,0,0,0,0,0,0,0,0,0,0,0,0,0,0,0,0,0,0,0,0,0,0,0,0,0,0,111]
[null,"Female 80-84",0,0,0,0,0,0,0,0,0,0,0,0,0,0,0,0,0,0,0,0,0,0,0,0,0,0,0,0,0,0,0,0,0,0,0,0,0,0,0,0,0,0,0,0,0,0,0,0,0,0,0,0,0,112]
[null,"Female 85-89",0,0,0,0,0,0,0,0,0,0,0,0,0,0,0,0,0,0,0,0,0,0,0,0,0,0,0,0,0,0,0,0,0,0,0,0,0,0,0,0,0,0,0,0,0,0,0,0,0,0,0,0,0,113]
[null,"Female 90+",0,0,0,0,0,0,0,0,0,0,0,0,0,0,0,0,0,0,0,0,0,0,0,0,0,0,0,0,0,0,0,0,0,0,0,0,0,0,0,0,0,0,0,0,0,0,0,0,0,0,0,0,0,114]
[null,"Male 0-4",0,0,0,0,0,0,0,0,0,0,0,0,0,0,0,0,0,0,0,0,0,0,0,0,0,0,0,0,0,0,0,0,0,0,0,0,0,0,0,0,0,0,0,0,0,0,0,0,0,0,0,0,0,115]
[null,"Male 5-9",0,0,0,0,0,0,0,0,0,0,0,0,0,0,0,0,0,0,0,0,0,0,0,0,0,0,0,0,0,0,0,0,0,0,0,0,0,0,0,0,0,0,0,0,0,0,0,0,0,0,0,0,0,116]
[null,"Male 10-15",0,0,0,0,0,0,0,0,0,0,0,0,0,0,0,0,0,0,0,0,0,0,0,0,0,0,0,0,0,0,0,0,0,0,0,0,0,0,0,0,0,0,0,0,0,0,0,0,0,0,0,0,0,117]
[null,"Male 16-19",0,0,0,0,0,0,0,0,0,0,0,0,0,0,0,0,0,0,0,0,0,0,0,0,0,0,0,0,0,0,0,0,0,0,0,0,0,0,0,0,0,0,0,0,0,0,0,0,0,0,0,0,0,118]
[null,"Male 20-24",0,0,0,0,0,0,0,0,0,0,0,0,0,0,0,0,0,0,0,0,0,0,0,0,0,0,0,0,0,0,0,0,0,0,0,0,0,0,0,0,0,0,0,0,0,0,0,0,0,0,0,0,0,119]
[null,"Male 25-29",0,0,0,0,0,0,0,0,0,0,0,0,0,0,0,0,0,0,0,0,0,0,0,0,0,0,0,0,0,0,0,0,0,0,0,0,0,0,0,0,0,0,0,0,0,0,0,0,0,0,0,0,0,120]
[null,"Male 30-34",0,0,0,0,0,0,0,0,0,0,0,0,0,0,0,0,0,0,0,0,0,0,0,0,0,0,0,0,0,0,0,0,0,0,0,0,0,0,0,0,0,0,0,0,0,0,0,0,0,0,0,0,0,121]
[null,"Male 35-39",0,0,0,0,0,0,0,0,0,0,0,0,0,0,0,0,0,0,0,0,0,0,0,0,0,0,0,0,0,0,0,0,0,0,0,0,0,0,0,0,0,0,0,0,0,0,0,0,0,0,0,0,0,122]
[null,"Male 40-44",0,0,0,0,0,0,0,0,0,0,0,0,0,0,0,0,0,0,0,0,0,0,0,0,0,0,0,0,0,0,0,0,0,0,0,0,0,0,0,0,0,0,0,0,0,0,0,0,0,0,0,0,0,123]
[null,"Male 45-49",0,0,0,0,0,0,0,0,0,0,0,0,0,0,0,0,0,0,0,0,0,0,0,0,0,0,0,0,0,0,0,0,0,0,0,0,0,0,0,0,0,0,0,0,0,0,0,0,0,0,0,0,0,124]
[null,"Male 50-54",0,0,0,0,0,0,0,0,0,0,0,0,0,0,0,0,0,0,0,0,0,0,0,0,0,0,0,0,0,0,0,0,0,0,0,0,0,0,0,0,0,0,0,0,0,0,0,0,0,0,0,0,0,125]
[null,"Male 55-59",0,0,0,0,0,0,0,0,0,0,0,0,0,0,0,0,0,0,0,0,0,0,0,0,0,0,0,0,0,0,0,0,0,0,0,0,0,0,0,0,0,0,0,0,0,0,0,0,0,0,0,0,0,126]
[null,"Male 60-64",0,0,0,0,0,0,0,0,0,0,0,0,0,0,0,0,0,0,0,0,0,0,0,0,0,0,0,0,0,0,0,0,0,0,0,0,0,0,0,0,0,0,0,0,0,0,0,0,0,0,0,0,0,127]
[null,"Male 65-69",0,0,0,0,0,0,0,0,0,0,0,0,0,0,0,0,0,0,0,0,0,0,0,0,0,0,0,0,0,0,0,0,0,0,0,0,0,0,0,0,0,0,0,0,0,0,0,0,0,0,0,0,0,128]
[null,"Male 70-74",0,0,0,0,0,0,0,0,0,0,0,0,0,0,0,0,0,0,0,0,0,0,0,0,0,0,0,0,0,0,0,0,0,0,0,0,0,0,0,0,0,0,0,0,0,0,0,0,0,0,0,0,0,129]
[null,"Male 75-79",0,0,0,0,0,0,0,0,0,0,0,0,0,0,0,0,0,0,0,0,0,0,0,0,0,0,0,0,0,0,0,0,0,0,0,0,0,0,0,0,0,0,0,0,0,0,0,0,0,0,0,0,0,130]
[null,"Male 80-84",0,0,0,0,0,0,0,0,0,0,0,0,0,0,0,0,0,0,0,0,0,0,0,0,0,0,0,0,0,0,0,0,0,0,0,0,0,0,0,0,0,0,0,0,0,0,0,0,0,0,0,0,0,131]
[null,"Male 85-89",0,0,0,0,0,0,0,0,0,0,0,0,0,0,0,0,0,0,0,0,0,0,0,0,0,0,0,0,0,0,0,0,0,0,0,0,0,0,0,0,0,0,0,0,0,0,0,0,0,0,0,0,0,132]
[null,"Male 90+",0,0,0,0,0,0,0,0,0,0,0,0,0,0,0,0,0,0,0,0,0,0,0,0,0,0,0,0,0,0,0,0,0,0,0,0,0,0,0,0,0,0,0,0,0,0,0,0,0,0,0,0,0,133]
["SIMD Q3","Female 0-4",0,0,0,0,0,0,0,0,0,0,0,0,0,0,0,0,0,0,0,0,0,0,0,0,0,0,0,0,0,0,0,0,0,0,0,0,0,0,0,0,0,0,0,0,0,0,0,0,0,0,0,0,0,134]
[null,"Female 5-9",0,0,0,0,0,0,0,0,0,0,0,0,0,0,0,0,0,0,0,0,0,0,0,0,0,0,0,0,0,0,0,0,0,0,0,0,0,0,0,0,0,0,0,0,0,0,0,0,0,0,0,0,0,135]
[null,"Female 10-15",0,0,0,0,0,0,0,0,0,0,0,0,0,0,0,0,0,0,0,0,0,0,0,0,0,0,0,0,0,0,0,0,0,0,0,0,0,0,0,0,0,0,0,0,0,0,0,0,0,0,0,0,0,136]
[null,"Female 16-19",0,0,0,0,0,0,0,0,0,0,0,0,0,0,0,0,0,0,0,0,0,0,0,0,0,0,0,0,0,0,0,0,0,0,0,0,0,0,0,0,0,0,0,0,0,0,0,0,0,0,0,0,0,137]
[null,"Female 20-24",0,0,0,0,0,0,0,0,0,0,0,0,0,0,0,0,0,0,0,0,0,0,0,0,0,0,0,0,0,0,0,0,0,0,0,0,0,0,0,0,0,0,0,0,0,0,0,0,0,0,0,0,0,138]
[null,"Female 25-29",0,0,0,0,0,0,0,0,0,0,0,0,0,0,0,0,0,0,0,0,0,0,0,0,0,0,0,0,0,0,0,0,0,0,0,0,0,0,0,0,0,0,0,0,0,0,0,0,0,0,0,0,0,139]
[null,"Female 30-34",0,0,0,0,0,0,0,0,0,0,0,0,0,0,0,0,0,0,0,0,0,0,0,0,0,0,0,0,0,0,0,0,0,0,0,0,0,0,0,0,0,0,0,0,0,0,0,0,0,0,0,0,0,140]
[null,"Female 35-39",0,0,0,0,0,0,0,0,0,0,0,0,0,0,0,0,0,0,0,0,0,0,0,0,0,0,0,0,0,0,0,0,0,0,0,0,0,0,0,0,0,0,0,0,0,0,0,0,0,0,0,0,0,141]
[null,"Female 40-44",0,0,0,0,0,0,0,0,0,0,0,0,0,0,0,0,0,0,0,0,0,0,0,0,0,0,0,0,0,0,0,0,0,0,0,0,0,0,0,0,0,0,0,0,0,0,0,0,0,0,0,0,0,142]
[null,"Female 45-49",0,0,0,0,0,0,0,0,0,0,0,0,0,0,0,0,0,0,0,0,0,0,0,0,0,0,0,0,0,0,0,0,0,0,0,0,0,0,0,0,0,0,0,0,0,0,0,0,0,0,0,0,0,143]
[null,"Female 50-54",0,0,0,0,0,0,0,0,0,0,0,0,0,0,0,0,0,0,0,0,0,0,0,0,0,0,0,0,0,0,0,0,0,0,0,0,0,0,0,0,0,0,0,0,0,0,0,0,0,0,0,0,0,144]
[null,"Female 55-59",0,0,0,0,0,0,0,0,0,0,0,0,0,0,0,0,0,0,0,0,0,0,0,0,0,0,0,0,0,0,0,0,0,0,0,0,0,0,0,0,0,0,0,0,0,0,0,0,0,0,0,0,0,145]
[null,"Female 60-64",0,0,0,0,0,0,0,0,0,0,0,0,0,0,0,0,0,0,0,0,0,0,0,0,0,0,0,0,0,0,0,0,0,0,0,0,0,0,0,0,0,0,0,0,0,0,0,0,0,0,0,0,0,146]
[null,"Female 65-69",0,0,0,0,0,0,0,0,0,0,0,0,0,0,0,0,0,0,0,0,0,0,0,0,0,0,0,0,0,0,0,0,0,0,0,0,0,0,0,0,0,0,0,0,0,0,0,0,0,0,0,0,0,147]
[null,"Female 70-74",0,0,0,0,0,0,0,0,0,0,0,0,0,0,0,0,0,0,0,0,0,0,0,0,0,0,0,0,0,0,0,0,0,0,0,0,0,0,0,0,0,0,0,0,0,0,0,0,0,0,0,0,0,148]
[null,"Female 75-79",0,0,0,0,0,0,0,0,0,0,0,0,0,0,0,0,0,0,0,0,0,0,0,0,0,0,0,0,0,0,0,0,0,0,0,0,0,0,0,0,0,0,0,0,0,0,0,0,0,0,0,0,0,149]
[null,"Female 80-84",0,0,0,0,0,0,0,0,0,0,0,0,0,0,0,0,0,0,0,0,0,0,0,0,0,0,0,0,0,0,0,0,0,0,0,0,0,0,0,0,0,0,0,0,0,0,0,0,0,0,0,0,0,150]
[null,"Female 85-89",0,0,0,0,0,0,0,0,0,0,0,0,0,0,0,0,0,0,0,0,0,0,0,0,0,0,0,0,0,0,0,0,0,0,0,0,0,0,0,0,0,0,0,0,0,0,0,0,0,0,0,0,0,151]
[null,"Female 90+",0,0,0,0,0,0,0,0,0,0,0,0,0,0,0,0,0,0,0,0,0,0,0,0,0,0,0,0,0,0,0,0,0,0,0,0,0,0,0,0,0,0,0,0,0,0,0,0,0,0,0,0,0,152]
[null,"Male 0-4",0,0,0,0,0,0,0,0,0,0,0,0,0,0,0,0,0,0,0,0,0,0,0,0,0,0,0,0,0,0,0,0,0,0,0,0,0,0,0,0,0,0,0,0,0,0,0,0,0,0,0,0,0,153]
[null,"Male 5-9",0,0,0,0,0,0,0,0,0,0,0,0,0,0,0,0,0,0,0,0,0,0,0,0,0,0,0,0,0,0,0,0,0,0,0,0,0,0,0,0,0,0,0,0,0,0,0,0,0,0,0,0,0,154]
[null,"Male 10-15",0,0,0,0,0,0,0,0,0,0,0,0,0,0,0,0,0,0,0,0,0,0,0,0,0,0,0,0,0,0,0,0,0,0,0,0,0,0,0,0,0,0,0,0,0,0,0,0,0,0,0,0,0,155]
[null,"Male 16-19",0,0,0,0,0,0,0,0,0,0,0,0,0,0,0,0,0,0,0,0,0,0,0,0,0,0,0,0,0,0,0,0,0,0,0,0,0,0,0,0,0,0,0,0,0,0,0,0,0,0,0,0,0,156]
[null,"Male 20-24",0,0,0,0,0,0,0,0,0,0,0,0,0,0,0,0,0,0,0,0,0,0,0,0,0,0,0,0,0,0,0,0,0,0,0,0,0,0,0,0,0,0,0,0,0,0,0,0,0,0,0,0,0,157]
[null,"Male 25-29",0,0,0,0,0,0,0,0,0,0,0,0,0,0,0,0,0,0,0,0,0,0,0,0,0,0,0,0,0,0,0,0,0,0,0,0,0,0,0,0,0,0,0,0,0,0,0,0,0,0,0,0,0,158]
[null,"Male 30-34",0,0,0,0,0,0,0,0,0,0,0,0,0,0,0,0,0,0,0,0,0,0,0,0,0,0,0,0,0,0,0,0,0,0,0,0,0,0,0,0,0,0,0,0,0,0,0,0,0,0,0,0,0,159]
[null,"Male 35-39",0,0,0,0,0,0,0,0,0,0,0,0,0,0,0,0,0,0,0,0,0,0,0,0,0,0,0,0,0,0,0,0,0,0,0,0,0,0,0,0,0,0,0,0,0,0,0,0,0,0,0,0,0,160]
[null,"Male 40-44",0,0,0,0,0,0,0,0,0,0,0,0,0,0,0,0,0,0,0,0,0,0,0,0,0,0,0,0,0,0,0,0,0,0,0,0,0,0,0,0,0,0,0,0,0,0,0,0,0,0,0,0,0,161]
[null,"Male 45-49",0,0,0,0,0,0,0,0,0,0,0,0,0,0,0,0,0,0,0,0,0,0,0,0,0,0,0,0,0,0,0,0,0,0,0,0,0,0,0,0,0,0,0,0,0,0,0,0,0,0,0,0,0,162]
[null,"Male 50-54",0,0,0,0,0,0,0,0,0,0,0,0,0,0,0,0,0,0,0,0,0,0,0,0,0,0,0,0,0,0,0,0,0,0,0,0,0,0,0,0,0,0,0,0,0,0,0,0,0,0,0,0,0,163]
[null,"Male 55-59",0,0,0,0,0,0,0,0,0,0,0,0,0,0,0,0,0,0,0,0,0,0,0,0,0,0,0,0,0,0,0,0,0,0,0,0,0,0,0,0,0,0,0,0,0,0,0,0,0,0,0,0,0,164]
[null,"Male 60-64",0,0,0,0,0,0,0,0,0,0,0,0,0,0,0,0,0,0,0,0,0,0,0,0,0,0,0,0,0,0,0,0,0,0,0,0,0,0,0,0,0,0,0,0,0,0,0,0,0,0,0,0,0,165]
[null,"Male 65-69",0,0,0,0,0,0,0,0,0,0,0,0,0,0,0,0,0,0,0,0,0,0,0,0,0,0,0,0,0,0,0,0,0,0,0,0,0,0,0,0,0,0,0,0,0,0,0,0,0,0,0,0,0,166]
[null,"Male 70-74",0,0,0,0,0,0,0,0,0,0,0,0,0,0,0,0,0,0,0,0,0,0,0,0,0,0,0,0,0,0,0,0,0,0,0,0,0,0,0,0,0,0,0,0,0,0,0,0,0,0,0,0,0,167]
[null,"Male 75-79",0,0,0,0,0,0,0,0,0,0,0,0,0,0,0,0,0,0,0,0,0,0,0,0,0,0,0,0,0,0,0,0,0,0,0,0,0,0,0,0,0,0,0,0,0,0,0,0,0,0,0,0,0,168]
[null,"Male 80-84",0,0,0,0,0,0,0,0,0,0,0,0,0,0,0,0,0,0,0,0,0,0,0,0,0,0,0,0,0,0,0,0,0,0,0,0,0,0,0,0,0,0,0,0,0,0,0,0,0,0,0,0,0,169]
[null,"Male 85-89",0,0,0,0,0,0,0,0,0,0,0,0,0,0,0,0,0,0,0,0,0,0,0,0,0,0,0,0,0,0,0,0,0,0,0,0,0,0,0,0,0,0,0,0,0,0,0,0,0,0,0,0,0,170]
[null,"Male 90+",0,0,0,0,0,0,0,0,0,0,0,0,0,0,0,0,0,0,0,0,0,0,0,0,0,0,0,0,0,0,0,0,0,0,0,0,0,0,0,0,0,0,0,0,0,0,0,0,0,0,0,0,0,171]
["SIMD Q4","Female 0-4",0,0,0,0,0,0,0,0,0,0,0,0,0,0,0,0,0,0,0,0,0,0,0,0,0,0,0,0,0,0,0,0,0,0,0,0,0,0,0,0,0,0,0,0,0,0,0,0,0,0,0,0,0,172]
[null,"Female 5-9",0,0,0,0,0,0,0,0,0,0,0,0,0,0,0,0,0,0,0,0,0,0,0,0,0,0,0,0,0,0,0,0,0,0,0,0,0,0,0,0,0,0,0,0,0,0,0,0,0,0,0,0,0,173]
[null,"Female 10-15",0,0,0,0,0,0,0,0,0,0,0,0,0,0,0,0,0,0,0,0,0,0,0,0,0,0,0,0,0,0,0,0,0,0,0,0,0,0,0,0,0,0,0,0,0,0,0,0,0,0,0,0,0,174]
[null,"Female 16-19",0,0,0,0,0,0,0,0,0,0,0,0,0,0,0,0,0,0,0,0,0,0,0,0,0,0,0,0,0,0,0,0,0,0,0,0,0,0,0,0,0,0,0,0,0,0,0,0,0,0,0,0,0,175]
[null,"Female 20-24",0,0,0,0,0,0,0,0,0,0,0,0,0,0,0,0,0,0,0,0,0,0,0,0,0,0,0,0,0,0,0,0,0,0,0,0,0,0,0,0,0,0,0,0,0,0,0,0,0,0,0,0,0,176]
[null,"Female 25-29",0,0,0,0,0,0,0,0,0,0,0,0,0,0,0,0,0,0,0,0,0,0,0,0,0,0,0,0,0,0,0,0,0,0,0,0,0,0,0,0,0,0,0,0,0,0,0,0,0,0,0,0,0,177]
[null,"Female 30-34",0,0,0,0,0,0,0,0,0,0,0,0,0,0,0,0,0,0,0,0,0,0,0,0,0,0,0,0,0,0,0,0,0,0,0,0,0,0,0,0,0,0,0,0,0,0,0,0,0,0,0,0,0,178]
[null,"Female 35-39",0,0,0,0,0,0,0,0,0,0,0,0,0,0,0,0,0,0,0,0,0,0,0,0,0,0,0,0,0,0,0,0,0,0,0,0,0,0,0,0,0,0,0,0,0,0,0,0,0,0,0,0,0,179]
[null,"Female 40-44",0,0,0,0,0,0,0,0,0,0,0,0,0,0,0,0,0,0,0,0,0,0,0,0,0,0,0,0,0,0,0,0,0,0,0,0,0,0,0,0,0,0,0,0,0,0,0,0,0,0,0,0,0,180]
[null,"Female 45-49",0,0,0,0,0,0,0,0,0,0,0,0,0,0,0,0,0,0,0,0,0,0,0,0,0,0,0,0,0,0,0,0,0,0,0,0,0,0,0,0,0,0,0,0,0,0,0,0,0,0,0,0,0,181]
[null,"Female 50-54",0,0,0,0,0,0,0,0,0,0,0,0,0,0,0,0,0,0,0,0,0,0,0,0,0,0,0,0,0,0,0,0,0,0,0,0,0,0,0,0,0,0,0,0,0,0,0,0,0,0,0,0,0,182]
[null,"Female 55-59",0,0,0,0,0,0,0,0,0,0,0,0,0,0,0,0,0,0,0,0,0,0,0,0,0,0,0,0,0,0,0,0,0,0,0,0,0,0,0,0,0,0,0,0,0,0,0,0,0,0,0,0,0,183]
[null,"Female 60-64",0,0,0,0,0,0,0,0,0,0,0,0,0,0,0,0,0,0,0,0,0,0,0,0,0,0,0,0,0,0,0,0,0,0,0,0,0,0,0,0,0,0,0,0,0,0,0,0,0,0,0,0,0,184]
[null,"Female 65-69",0,0,0,0,0,0,0,0,0,0,0,0,0,0,0,0,0,0,0,0,0,0,0,0,0,0,0,0,0,0,0,0,0,0,0,0,0,0,0,0,0,0,0,0,0,0,0,0,0,0,0,0,0,185]
[null,"Female 70-74",0,0,0,0,0,0,0,0,0,0,0,0,0,0,0,0,0,0,0,0,0,0,0,0,0,0,0,0,0,0,0,0,0,0,0,0,0,0,0,0,0,0,0,0,0,0,0,0,0,0,0,0,0,186]
[null,"Female 75-79",0,0,0,0,0,0,0,0,0,0,0,0,0,0,0,0,0,0,0,0,0,0,0,0,0,0,0,0,0,0,0,0,0,0,0,0,0,0,0,0,0,0,0,0,0,0,0,0,0,0,0,0,0,187]
[null,"Female 80-84",0,0,0,0,0,0,0,0,0,0,0,0,0,0,0,0,0,0,0,0,0,0,0,0,0,0,0,0,0,0,0,0,0,0,0,0,0,0,0,0,0,0,0,0,0,0,0,0,0,0,0,0,0,188]
[null,"Female 85-89",0,0,0,0,0,0,0,0,0,0,0,0,0,0,0,0,0,0,0,0,0,0,0,0,0,0,0,0,0,0,0,0,0,0,0,0,0,0,0,0,0,0,0,0,0,0,0,0,0,0,0,0,0,189]
[null,"Female 90+",0,0,0,0,0,0,0,0,0,0,0,0,0,0,0,0,0,0,0,0,0,0,0,0,0,0,0,0,0,0,0,0,0,0,0,0,0,0,0,0,0,0,0,0,0,0,0,0,0,0,0,0,0,190]
[null,"Male 0-4",0,0,0,0,0,0,0,0,0,0,0,0,0,0,0,0,0,0,0,0,0,0,0,0,0,0,0,0,0,0,0,0,0,0,0,0,0,0,0,0,0,0,0,0,0,0,0,0,0,0,0,0,0,191]
[null,"Male 5-9",0,0,0,0,0,0,0,0,0,0,0,0,0,0,0,0,0,0,0,0,0,0,0,0,0,0,0,0,0,0,0,0,0,0,0,0,0,0,0,0,0,0,0,0,0,0,0,0,0,0,0,0,0,192]
[null,"Male 10-15",0,0,0,0,0,0,0,0,0,0,0,0,0,0,0,0,0,0,0,0,0,0,0,0,0,0,0,0,0,0,0,0,0,0,0,0,0,0,0,0,0,0,0,0,0,0,0,0,0,0,0,0,0,193]
[null,"Male 16-19",0,0,0,0,0,0,0,0,0,0,0,0,0,0,0,0,0,0,0,0,0,0,0,0,0,0,0,0,0,0,0,0,0,0,0,0,0,0,0,0,0,0,0,0,0,0,0,0,0,0,0,0,0,194]
[null,"Male 20-24",0,0,0,0,0,0,0,0,0,0,0,0,0,0,0,0,0,0,0,0,0,0,0,0,0,0,0,0,0,0,0,0,0,0,0,0,0,0,0,0,0,0,0,0,0,0,0,0,0,0,0,0,0,195]
[null,"Male 25-29",0,0,0,0,0,0,0,0,0,0,0,0,0,0,0,0,0,0,0,0,0,0,0,0,0,0,0,0,0,0,0,0,0,0,0,0,0,0,0,0,0,0,0,0,0,0,0,0,0,0,0,0,0,196]
[null,"Male 30-34",0,0,0,0,0,0,0,0,0,0,0,0,0,0,0,0,0,0,0,0,0,0,0,0,0,0,0,0,0,0,0,0,0,0,0,0,0,0,0,0,0,0,0,0,0,0,0,0,0,0,0,0,0,197]
[null,"Male 35-39",0,0,0,0,0,0,0,0,0,0,0,0,0,0,0,0,0,0,0,0,0,0,0,0,0,0,0,0,0,0,0,0,0,0,0,0,0,0,0,0,0,0,0,0,0,0,0,0,0,0,0,0,0,198]
[null,"Male 40-44",0,0,0,0,0,0,0,0,0,0,0,0,0,0,0,0,0,0,0,0,0,0,0,0,0,0,0,0,0,0,0,0,0,0,0,0,0,0,0,0,0,0,0,0,0,0,0,0,0,0,0,0,0,199]
[null,"Male 45-49",0,0,0,0,0,0,0,0,0,0,0,0,0,0,0,0,0,0,0,0,0,0,0,0,0,0,0,0,0,0,0,0,0,0,0,0,0,0,0,0,0,0,0,0,0,0,0,0,0,0,0,0,0,200]
[null,"Male 50-54",0,0,0,0,0,0,0,0,0,0,0,0,0,0,0,0,0,0,0,0,0,0,0,0,0,0,0,0,0,0,0,0,0,0,0,0,0,0,0,0,0,0,0,0,0,0,0,0,0,0,0,0,0,201]
[null,"Male 55-59",0,0,0,0,0,0,0,0,0,0,0,0,0,0,0,0,0,0,0,0,0,0,0,0,0,0,0,0,0,0,0,0,0,0,0,0,0,0,0,0,0,0,0,0,0,0,0,0,0,0,0,0,0,202]
[null,"Male 60-64",0,0,0,0,0,0,0,0,0,0,0,0,0,0,0,0,0,0,0,0,0,0,0,0,0,0,0,0,0,0,0,0,0,0,0,0,0,0,0,0,0,0,0,0,0,0,0,0,0,0,0,0,0,203]
[null,"Male 65-69",0,0,0,0,0,0,0,0,0,0,0,0,0,0,0,0,0,0,0,0,0,0,0,0,0,0,0,0,0,0,0,0,0,0,0,0,0,0,0,0,0,0,0,0,0,0,0,0,0,0,0,0,0,204]
[null,"Male 70-74",0,0,0,0,0,0,0,0,0,0,0,0,0,0,0,0,0,0,0,0,0,0,0,0,0,0,0,0,0,0,0,0,0,0,0,0,0,0,0,0,0,0,0,0,0,0,0,0,0,0,0,0,0,205]
[null,"Male 75-79",0,0,0,0,0,0,0,0,0,0,0,0,0,0,0,0,0,0,0,0,0,0,0,0,0,0,0,0,0,0,0,0,0,0,0,0,0,0,0,0,0,0,0,0,0,0,0,0,0,0,0,0,0,206]
[null,"Male 80-84",0,0,0,0,0,0,0,0,0,0,0,0,0,0,0,0,0,0,0,0,0,0,0,0,0,0,0,0,0,0,0,0,0,0,0,0,0,0,0,0,0,0,0,0,0,0,0,0,0,0,0,0,0,207]
[null,"Male 85-89",0,0,0,0,0,0,0,0,0,0,0,0,0,0,0,0,0,0,0,0,0,0,0,0,0,0,0,0,0,0,0,0,0,0,0,0,0,0,0,0,0,0,0,0,0,0,0,0,0,0,0,0,0,208]
[null,"Male 90+",0,0,0,0,0,0,0,0,0,0,0,0,0,0,0,0,0,0,0,0,0,0,0,0,0,0,0,0,0,0,0,0,0,0,0,0,0,0,0,0,0,0,0,0,0,0,0,0,0,0,0,0,0,209]
["SIMD Q5 (least deprived)","Female 0-4",0,0,0,0,0,0,0,0,0,0,0,0,0,0,0,0,0,0,0,0,0,0,0,0,0,0,0,0,0,0,0,0,0,0,0,0,0,0,0,0,0,0,0,0,0,0,0,0,0,0,0,0,0,210]
[null,"Female 5-9",0,0,0,0,0,0,0,0,0,0,0,0,0,0,0,0,0,0,0,0,0,0,0,0,0,0,0,0,0,0,0,0,0,0,0,0,0,0,0,0,0,0,0,0,0,0,0,0,0,0,0,0,0,211]
[null,"Female 10-15",0,0,0,0,0,0,0,0,0,0,0,0,0,0,0,0,0,0,0,0,0,0,0,0,0,0,0,0,0,0,0,0,0,0,0,0,0,0,0,0,0,0,0,0,0,0,0,0,0,0,0,0,0,212]
[null,"Female 16-19",0,0,0,0,0,0,0,0,0,0,0,0,0,0,0,0,0,0,0,0,0,0,0,0,0,0,0,0,0,0,0,0,0,0,0,0,0,0,0,0,0,0,0,0,0,0,0,0,0,0,0,0,0,213]
[null,"Female 20-24",0,0,0,0,0,0,0,0,0,0,0,0,0,0,0,0,0,0,0,0,0,0,0,0,0,0,0,0,0,0,0,0,0,0,0,0,0,0,0,0,0,0,0,0,0,0,0,0,0,0,0,0,0,214]
[null,"Female 25-29",0,0,0,0,0,0,0,0,0,0,0,0,0,0,0,0,0,0,0,0,0,0,0,0,0,0,0,0,0,0,0,0,0,0,0,0,0,0,0,0,0,0,0,0,0,0,0,0,0,0,0,0,0,215]
[null,"Female 30-34",0,0,0,0,0,0,0,0,0,0,0,0,0,0,0,0,0,0,0,0,0,0,0,0,0,0,0,0,0,0,0,0,0,0,0,0,0,0,0,0,0,0,0,0,0,0,0,0,0,0,0,0,0,216]
[null,"Female 35-39",0,0,0,0,0,0,0,0,0,0,0,0,0,0,0,0,0,0,0,0,0,0,0,0,0,0,0,0,0,0,0,0,0,0,0,0,0,0,0,0,0,0,0,0,0,0,0,0,0,0,0,0,0,217]
[null,"Female 40-44",0,0,0,0,0,0,0,0,0,0,0,0,0,0,0,0,0,0,0,0,0,0,0,0,0,0,0,0,0,0,0,0,0,0,0,0,0,0,0,0,0,0,0,0,0,0,0,0,0,0,0,0,0,218]
[null,"Female 45-49",0,0,0,0,0,0,0,0,0,0,0,0,0,0,0,0,0,0,0,0,0,0,0,0,0,0,0,0,0,0,0,0,0,0,0,0,0,0,0,0,0,0,0,0,0,0,0,0,0,0,0,0,0,219]
[null,"Female 50-54",0,0,0,0,0,0,0,0,0,0,0,0,0,0,0,0,0,0,0,0,0,0,0,0,0,0,0,0,0,0,0,0,0,0,0,0,0,0,0,0,0,0,0,0,0,0,0,0,0,0,0,0,0,220]
[null,"Female 55-59",0,0,0,0,0,0,0,0,0,0,0,0,0,0,0,0,0,0,0,0,0,0,0,0,0,0,0,0,0,0,0,0,0,0,0,0,0,0,0,0,0,0,0,0,0,0,0,0,0,0,0,0,0,221]
[null,"Female 60-64",0,0,0,0,0,0,0,0,0,0,0,0,0,0,0,0,0,0,0,0,0,0,0,0,0,0,0,0,0,0,0,0,0,0,0,0,0,0,0,0,0,0,0,0,0,0,0,0,0,0,0,0,0,222]
[null,"Female 65-69",0,0,0,0,0,0,0,0,0,0,0,0,0,0,0,0,0,0,0,0,0,0,0,0,0,0,0,0,0,0,0,0,0,0,0,0,0,0,0,0,0,0,0,0,0,0,0,0,0,0,0,0,0,223]
[null,"Female 70-74",0,0,0,0,0,0,0,0,0,0,0,0,0,0,0,0,0,0,0,0,0,0,0,0,0,0,0,0,0,0,0,0,0,0,0,0,0,0,0,0,0,0,0,0,0,0,0,0,0,0,0,0,0,224]
[null,"Female 75-79",0,0,0,0,0,0,0,0,0,0,0,0,0,0,0,0,0,0,0,0,0,0,0,0,0,0,0,0,0,0,0,0,0,0,0,0,0,0,0,0,0,0,0,0,0,0,0,0,0,0,0,0,0,225]
[null,"Female 80-84",0,0,0,0,0,0,0,0,0,0,0,0,0,0,0,0,0,0,0,0,0,0,0,0,0,0,0,0,0,0,0,0,0,0,0,0,0,0,0,0,0,0,0,0,0,0,0,0,0,0,0,0,0,226]
[null,"Female 85-89",0,0,0,0,0,0,0,0,0,0,0,0,0,0,0,0,0,0,0,0,0,0,0,0,0,0,0,0,0,0,0,0,0,0,0,0,0,0,0,0,0,0,0,0,0,0,0,0,0,0,0,0,0,227]
[null,"Female 90+",0,0,0,0,0,0,0,0,0,0,0,0,0,0,0,0,0,0,0,0,0,0,0,0,0,0,0,0,0,0,0,0,0,0,0,0,0,0,0,0,0,0,0,0,0,0,0,0,0,0,0,0,0,228]
[null,"Male 0-4",0,0,0,0,0,0,0,0,0,0,0,0,0,0,0,0,0,0,0,0,0,0,0,0,0,0,0,0,0,0,0,0,0,0,0,0,0,0,0,0,0,0,0,0,0,0,0,0,0,0,0,0,0,229]
[null,"Male 5-9",0,0,0,0,0,0,0,0,0,0,0,0,0,0,0,0,0,0,0,0,0,0,0,0,0,0,0,0,0,0,0,0,0,0,0,0,0,0,0,0,0,0,0,0,0,0,0,0,0,0,0,0,0,230]
[null,"Male 10-15",0,0,0,0,0,0,0,0,0,0,0,0,0,0,0,0,0,0,0,0,0,0,0,0,0,0,0,0,0,0,0,0,0,0,0,0,0,0,0,0,0,0,0,0,0,0,0,0,0,0,0,0,0,231]
[null,"Male 16-19",0,0,0,0,0,0,0,0,0,0,0,0,0,0,0,0,0,0,0,0,0,0,0,0,0,0,0,0,0,0,0,0,0,0,0,0,0,0,0,0,0,0,0,0,0,0,0,0,0,0,0,0,0,232]
[null,"Male 20-24",0,0,0,0,0,0,0,0,0,0,0,0,0,0,0,0,0,0,0,0,0,0,0,0,0,0,0,0,0,0,0,0,0,0,0,0,0,0,0,0,0,0,0,0,0,0,0,0,0,0,0,0,0,233]
[null,"Male 25-29",0,0,0,0,0,0,0,0,0,0,0,0,0,0,0,0,0,0,0,0,0,0,0,0,0,0,0,0,0,0,0,0,0,0,0,0,0,0,0,0,0,0,0,0,0,0,0,0,0,0,0,0,0,234]
[null,"Male 30-34",0,0,0,0,0,0,0,0,0,0,0,0,0,0,0,0,0,0,0,0,0,0,0,0,0,0,0,0,0,0,0,0,0,0,0,0,0,0,0,0,0,0,0,0,0,0,0,0,0,0,0,0,0,235]
[null,"Male 35-39",0,0,0,0,0,0,0,0,0,0,0,0,0,0,0,0,0,0,0,0,0,0,0,0,0,0,0,0,0,0,0,0,0,0,0,0,0,0,0,0,0,0,0,0,0,0,0,0,0,0,0,0,0,236]
[null,"Male 40-44",0,0,0,0,0,0,0,0,0,0,0,0,0,0,0,0,0,0,0,0,0,0,0,0,0,0,0,0,0,0,0,0,0,0,0,0,0,0,0,0,0,0,0,0,0,0,0,0,0,0,0,0,0,237]
[null,"Male 45-49",0,0,0,0,0,0,0,0,0,0,0,0,0,0,0,0,0,0,0,0,0,0,0,0,0,0,0,0,0,0,0,0,0,0,0,0,0,0,0,0,0,0,0,0,0,0,0,0,0,0,0,0,0,238]
[null,"Male 50-54",0,0,0,0,0,0,0,0,0,0,0,0,0,0,0,0,0,0,0,0,0,0,0,0,0,0,0,0,0,0,0,0,0,0,0,0,0,0,0,0,0,0,0,0,0,0,0,0,0,0,0,0,0,239]
[null,"Male 55-59",0,0,0,0,0,0,0,0,0,0,0,0,0,0,0,0,0,0,0,0,0,0,0,0,0,0,0,0,0,0,0,0,0,0,0,0,0,0,0,0,0,0,0,0,0,0,0,0,0,0,0,0,0,240]
[null,"Male 60-64",0,0,0,0,0,0,0,0,0,0,0,0,0,0,0,0,0,0,0,0,0,0,0,0,0,0,0,0,0,0,0,0,0,0,0,0,0,0,0,0,0,0,0,0,0,0,0,0,0,0,0,0,0,241]
[null,"Male 65-69",0,0,0,0,0,0,0,0,0,0,0,0,0,0,0,0,0,0,0,0,0,0,0,0,0,0,0,0,0,0,0,0,0,0,0,0,0,0,0,0,0,0,0,0,0,0,0,0,0,0,0,0,0,242]
[null,"Male 70-74",0,0,0,0,0,0,0,0,0,0,0,0,0,0,0,0,0,0,0,0,0,0,0,0,0,0,0,0,0,0,0,0,0,0,0,0,0,0,0,0,0,0,0,0,0,0,0,0,0,0,0,0,0,243]
[null,"Male 75-79",0,0,0,0,0,0,0,0,0,0,0,0,0,0,0,0,0,0,0,0,0,0,0,0,0,0,0,0,0,0,0,0,0,0,0,0,0,0,0,0,0,0,0,0,0,0,0,0,0,0,0,0,0,244]
[null,"Male 80-84",0,0,0,0,0,0,0,0,0,0,0,0,0,0,0,0,0,0,0,0,0,0,0,0,0,0,0,0,0,0,0,0,0,0,0,0,0,0,0,0,0,0,0,0,0,0,0,0,0,0,0,0,0,245]
[null,"Male 85-89",0,0,0,0,0,0,0,0,0,0,0,0,0,0,0,0,0,0,0,0,0,0,0,0,0,0,0,0,0,0,0,0,0,0,0,0,0,0,0,0,0,0,0,0,0,0,0,0,0,0,0,0,0,246]
[null,"Male 90+",0,0,0,0,0,0,0,0,0,0,0,0,0,0,0,0,0,0,0,0,0,0,0,0,0,0,0,0,0,0,0,0,0,0,0,0,0,0,0,0,0,0,0,0,0,0,0,0,0,0,0,0,0,247]

{"sheet":"Pop2016fractionQ1&2","index":16,"n_rows":249,"n_cols":56,"rows_kept":249,"cut":false,"hidden":true,"merged":[]}
["Q1 & Q2 subgroup's fraction of area's 2016 Q1 + Q2 population (16+ only)"]
[]
["SIMD","group","Aberdeen City Local Authority","Aberdeen City Region Deal","Aberdeenshire Local Authority","Angus Local Authority","Argyll & Bute Local Authority","Ayrshire & Arran Health Board","Borders Health Board","Clackmannanshire & Stirling IJB","Clackmannanshire Local Authority","Dumfries & Galloway Health Board","Dumfries & Galloway Local Authority","Dundee City Local Authority","East Ayrshire Local Authority","East Dunbartonshire Local Authority","East Lothian Local Authority","East Renfrewshire Local Authority","Edinburgh & SE Scotland City Region Deal","Edinburgh, City of Local Authority","Eilean Siar Local Authority","Falkirk Local Authority","Fife Health Board","Fife Local Authority","Forth Valley Health Board","Glasgow City Local Authority","Glasgow City Region Deal","Grampian Health Board","Greater Glasgow & Clyde Health Board","Highland Health Board","Highland Local Authority","Inverclyde Local Authority","Inverness & Highland City Region Deal","Lanarkshire Health Board","Lothian Health Board","Midlothian Local Authority","Moray Local Authority","North Ayrshire Local Authority","North Lanarkshire Local Authority","Orkney Health Board","Orkney Islands Local Authority","Perth & Kinross Local Authority","Renfrewshire Local Authority","Scotland","Scottish Borders Local Authority","Shetland Health Board","Shetland Islands Local Authority","South Ayrshire Local Authority","South Lanarkshire Local Authority","Stirling Local Authority","Tay Cities Region Deal ","Tayside Health Board","West Dunbartonshire Local Authority","West Lothian Local Authority","Western Isles Health Board",1]
[null,null,"popS12000033","Aber_deal","popS12000034","popS12000041","popS12000035","popS08000015","popS08000016","ClacksStirIJB","popS12000005","popS08000017","popS12000006","popS12000042","popS12000008","popS12000045","popS12000010","popS12000011","EdinSE_deal","popS12000036","popS12000013","popS12000014","popS08000018","popS12000015","popS08000019","popS12000046","GClyde_deal","popS08000020","popS08000021","popS08000022","popS12000017","popS12000018","Inver_deal","popS08000023","popS08000024","popS12000019","popS12000020","popS12000021","popS12000044","popS08000025","popS12000023","popS12000024","popS12000038","popS00000001","popS12000026","popS08000026","popS12000027","popS12000028","popS12000029","popS12000030","Tay_deal","popS08000027","popS12000039","popS12000040","popS08000028",2]
[]
[]
[]
[]
[]
[]
[]
[]
[]
["All quintiles","16-64 Males and Females",null,null,null,null,null,null,null,null,null,null,null,null,null,null,null,null,null,null,null,null,null,null,null,null,null,null,null,null,null,null,null,null,null,null,null,null,null,null,null,null,null,null,null,null,null,null,null,null,null,null,null,null,null,12]
["Q1 and Q2","16-64 Males and Females",{"$f":"'Population 2016'!R15/'Population 2016'!R$15","v":1},{"$f":"'Population 2016'!AX15/'Population 2016'!AX$15","v":1},{"$f":"'Population 2016'!S15/'Population 2016'!S$15","v":1},{"$f":"'Population 2016'!T15/'Population 2016'!T$15","v":1},{"$f":"'Population 2016'!U15/'Population 2016'!U$15","v":1},{"$f":"'Population 2016'!D15/'Population 2016'!D$15","v":1},{"$f":"'Population 2016'!E15/'Population 2016'!E$15","v":1},{"$f":"'Population 2016'!BC15/'Population 2016'!BC$15","v":1},{"$f":"'Population 2016'!V15/'Population 2016'!V$15","v":1},{"$f":"'Population 2016'!F15/'Population 2016'!F$15","v":1},{"$f":"'Population 2016'!W15/'Population 2016'!W$15","v":1},{"$f":"'Population 2016'!X15/'Population 2016'!X$15","v":1},{"$f":"'Population 2016'!Y15/'Population 2016'!Y$15","v":1},{"$f":"'Population 2016'!Z15/'Population 2016'!Z$15","v":1},{"$f":"'Population 2016'!AA15/'Population 2016'!AA$15","v":1},{"$f":"'Population 2016'!AB15/'Population 2016'!AB$15","v":1},{"$f":"'Population 2016'!AY15/'Population 2016'!AY$15","v":1},{"$f":"'Population 2016'!AC15/'Population 2016'!AC$15","v":1},{"$f":"'Population 2016'!AD15/'Population 2016'!AD$15","v":1},{"$f":"'Population 2016'!AE15/'Population 2016'!AE$15","v":1},{"$f":"'Population 2016'!G15/'Population 2016'!G$15","v":1},{"$f":"'Population 2016'!AF15/'Population 2016'!AF$15","v":1},{"$f":"'Population 2016'!H15/'Population 2016'!H$15","v":1},{"$f":"'Population 2016'!AG15/'Population 2016'!AG$15","v":1},{"$f":"'Population 2016'!AZ15/'Population 2016'!AZ$15","v":1},{"$f":"'Population 2016'!I15/'Population 2016'!I$15","v":1},{"$f":"'Population 2016'!J15/'Population 2016'!J$15","v":1},{"$f":"'Population 2016'!K15/'Population 2016'!K$15","v":1},{"$f":"'Population 2016'!AH15/'Population 2016'!AH$15","v":1},{"$f":"'Population 2016'!AI15/'Population 2016'!AI$15","v":1},{"$f":"'Population 2016'!BA15/'Population 2016'!BA$15","v":1},{"$f":"'Population 2016'!L15/'Population 2016'!L$15","v":1},{"$f":"'Population 2016'!M15/'Population 2016'!M$15","v":1},{"$f":"'Population 2016'!AJ15/'Population 2016'!AJ$15","v":1},{"$f":"'Population 2016'!AK15/'Population 2016'!AK$15","v":1},{"$f":"'Population 2016'!AL15/'Population 2016'!AL$15","v":1},{"$f":"'Population 2016'!AM15/'Population 2016'!AM$15","v":1},{"$f":"'Population 2016'!N15/'Population 2016'!N$15","v":1},{"$f":"'Population 2016'!AN15/'Population 2016'!AN$15","v":1},{"$f":"'Population 2016'!AO15/'Population 2016'!AO$15","v":1},{"$f":"'Population 2016'!AP15/'Population 2016'!AP$15","v":1},{"$f":"'Population 2016'!C15/'Population 2016'!C$15","v":1},{"$f":"'Population 2016'!AQ15/'Population 2016'!AQ$15","v":1},{"$f":"'Population 2016'!O15/'Population 2016'!O$15","v":1},{"$f":"'Population 2016'!AR15/'Population 2016'!AR$15","v":1},{"$f":"'Population 2016'!AS15/'Population 2016'!AS$15","v":1},{"$f":"'Population 2016'!AT15/'Population 2016'!AT$15","v":1},{"$f":"'Population 2016'!AU15/'Population 2016'!AU$15","v":1},{"$f":"'Population 2016'!BB15/'Population 2016'!BB$15","v":1},{"$f":"'Population 2016'!P15/'Population 2016'!P$15","v":1},{"$f":"'Population 2016'!AV15/'Population 2016'!AV$15","v":1},{"$f":"'Population 2016'!AW15/'Population 2016'!AW$15","v":1},{"$f":"'Population 2016'!Q15/'Population 2016'!Q$15","v":1},13]
["SIMD Q1 (most deprived)","16-64 Males and Females",null,null,null,null,null,null,null,null,null,null,null,null,null,null,null,null,null,null,null,null,null,null,null,null,null,null,null,null,null,null,null,null,null,null,null,null,null,null,null,null,null,null,null,null,null,null,null,null,null,null,null,null,null,14]
["SIMD Q2",null,null,null,null,null,null,null,null,null,null,null,null,null,null,null,null,null,null,null,null,null,null,null,null,null,null,null,null,null,null,null,null,null,null,null,null,null,null,null,null,null,null,null,null,null,null,null,null,null,null,null,null,null,null,15]
["SIMD Q3",null,null,null,null,null,null,null,null,null,null,null,null,null,null,null,null,null,null,null,null,null,null,null,null,null,null,null,null,null,null,null,null,null,null,null,null,null,null,null,null,null,null,null,null,null,null,null,null,null,null,null,null,null,null,16]
["SIMD Q4",null,null,null,null,null,null,null,null,null,null,null,null,null,null,null,null,null,null,null,null,null,null,null,null,null,null,null,null,null,null,null,null,null,null,null,null,null,null,null,null,null,null,null,null,null,null,null,null,null,null,null,null,null,null,17]
["SIMD Q5 (least deprived)",null,null,null,null,null,null,null,null,null,null,null,null,null,null,null,null,null,null,null,null,null,null,null,null,null,null,null,null,null,null,null,null,null,null,null,null,null,null,null,null,null,null,null,null,null,null,null,null,null,null,null,null,null,null,18]
[]
["All quintiles","Female 0-4",null,null,null,null,null,null,null,null,null,null,null,null,null,null,null,null,null,null,null,null,null,null,null,null,null,null,null,null,null,null,null,null,null,null,null,null,null,null,null,null,null,null,null,null,null,null,null,null,null,null,null,null,null,20]
[null,"Female 5-9",null,null,null,null,null,null,null,null,null,null,null,null,null,null,null,null,null,null,null,null,null,null,null,null,null,null,null,null,null,null,null,null,null,null,null,null,null,null,null,null,null,null,null,null,null,null,null,null,null,null,null,null,null,21]
[null,"Female 10-15",null,null,null,null,null,null,null,null,null,null,null,null,null,null,null,null,null,null,null,null,null,null,null,null,null,null,null,null,null,null,null,null,null,null,null,null,null,null,null,null,null,null,null,null,null,null,null,null,null,null,null,null,null,22]
[null,"Female 16-19",null,null,null,null,null,null,null,null,null,null,null,null,null,null,null,null,null,null,null,null,null,null,null,null,null,null,null,null,null,null,null,null,null,null,null,null,null,null,null,null,null,null,null,null,null,null,null,null,null,null,null,null,null,23]
[null,"Female 20-24",null,null,null,null,null,null,null,null,null,null,null,null,null,null,null,null,null,null,null,null,null,null,null,null,null,null,null,null,null,null,null,null,null,null,null,null,null,null,null,null,null,null,null,null,null,null,null,null,null,null,null,null,null,24]
[null,"Female 25-29",null,null,null,null,null,null,null,null,null,null,null,null,null,null,null,null,null,null,null,null,null,null,null,null,null,null,null,null,null,null,null,null,null,null,null,null,null,null,null,null,null,null,null,null,null,null,null,null,null,null,null,null,null,25]
[null,"Female 30-34",null,null,null,null,null,null,null,null,null,null,null,null,null,null,null,null,null,null,null,null,null,null,null,null,null,null,null,null,null,null,null,null,null,null,null,null,null,null,null,null,null,null,null,null,null,null,null,null,null,null,null,null,null,26]
[null,"Female 35-39",null,null,null,null,null,null,null,null,null,null,null,null,null,null,null,null,null,null,null,null,null,null,null,null,null,null,null,null,null,null,null,null,null,null,null,null,null,null,null,null,null,null,null,null,null,null,null,null,null,null,null,null,null,27]
[null,"Female 40-44",null,null,null,null,null,null,null,null,null,null,null,null,null,null,null,null,null,null,null,null,null,null,null,null,null,null,null,null,null,null,null,null,null,null,null,null,null,null,null,null,null,null,null,null,null,null,null,null,null,null,null,null,null,28]
[null,"Female 45-49",null,null,null,null,null,null,null,null,null,null,null,null,null,null,null,null,null,null,null,null,null,null,null,null,null,null,null,null,null,null,null,null,null,null,null,null,null,null,null,null,null,null,null,null,null,null,null,null,null,null,null,null,null,29]
[null,"Female 50-54",null,null,null,null,null,null,null,null,null,null,null,null,null,null,null,null,null,null,null,null,null,null,null,null,null,null,null,null,null,null,null,null,null,null,null,null,null,null,null,null,null,null,null,null,null,null,null,null,null,null,null,null,null,30]
[null,"Female 55-59",null,null,null,null,null,null,null,null,null,null,null,null,null,null,null,null,null,null,null,null,null,null,null,null,null,null,null,null,null,null,null,null,null,null,null,null,null,null,null,null,null,null,null,null,null,null,null,null,null,null,null,null,null,31]
[null,"Female 60-64",null,null,null,null,null,null,null,null,null,null,null,null,null,null,null,null,null,null,null,null,null,null,null,null,null,null,null,null,null,null,null,null,null,null,null,null,null,null,null,null,null,null,null,null,null,null,null,null,null,null,null,null,null,32]
[null,"Female 65-69",null,null,null,null,null,null,null,null,null,null,null,null,null,null,null,null,null,null,null,null,null,null,null,null,null,null,null,null,null,null,null,null,null,null,null,null,null,null,null,null,null,null,null,null,null,null,null,null,null,null,null,null,null,33]
[null,"Female 70-74",null,null,null,null,null,null,null,null,null,null,null,null,null,null,null,null,null,null,null,null,null,null,null,null,null,null,null,null,null,null,null,null,null,null,null,null,null,null,null,null,null,null,null,null,null,null,null,null,null,null,null,null,null,34]
[null,"Female 75-79",null,null,null,null,null,null,null,null,null,null,null,null,null,null,null,null,null,null,null,null,null,null,null,null,null,null,null,null,null,null,null,null,null,null,null,null,null,null,null,null,null,null,null,null,null,null,null,null,null,null,null,null,null,35]
[null,"Female 80-84",null,null,null,null,null,null,null,null,null,null,null,null,null,null,null,null,null,null,null,null,null,null,null,null,null,null,null,null,null,null,null,null,null,null,null,null,null,null,null,null,null,null,null,null,null,null,null,null,null,null,null,null,null,36]
[null,"Female 85-89",null,null,null,null,null,null,null,null,null,null,null,null,null,null,null,null,null,null,null,null,null,null,null,null,null,null,null,null,null,null,null,null,null,null,null,null,null,null,null,null,null,null,null,null,null,null,null,null,null,null,null,null,null,37]
[null,"Female 90+",null,null,null,null,null,null,null,null,null,null,null,null,null,null,null,null,null,null,null,null,null,null,null,null,null,null,null,null,null,null,null,null,null,null,null,null,null,null,null,null,null,null,null,null,null,null,null,null,null,null,null,null,null,38]
[null,"Male 0-4",null,null,null,null,null,null,null,null,null,null,null,null,null,null,null,null,null,null,null,null,null,null,null,null,null,null,null,null,null,null,null,null,null,null,null,null,null,null,null,null,null,null,null,null,null,null,null,null,null,null,null,null,null,39]
[null,"Male 5-9",null,null,null,null,null,null,null,null,null,null,null,null,null,null,null,null,null,null,null,null,null,null,null,null,null,null,null,null,null,null,null,null,null,null,null,null,null,null,null,null,null,null,null,null,null,null,null,null,null,null,null,null,null,40]
[null,"Male 10-15",null,null,null,null,null,null,null,null,null,null,null,null,null,null,null,null,null,null,null,null,null,null,null,null,null,null,null,null,null,null,null,null,null,null,null,null,null,null,null,null,null,null,null,null,null,null,null,null,null,null,null,null,null,41]
[null,"Male 16-19",null,null,null,null,null,null,null,null,null,null,null,null,null,null,null,null,null,null,null,null,null,null,null,null,null,null,null,null,null,null,null,null,null,null,null,null,null,null,null,null,null,null,null,null,null,null,null,null,null,null,null,null,null,42]
[null,"Male 20-24",null,null,null,null,null,null,null,null,null,null,null,null,null,null,null,null,null,null,null,null,null,null,null,null,null,null,null,null,null,null,null,null,null,null,null,null,null,null,null,null,null,null,null,null,null,null,null,null,null,null,null,null,null,43]
[null,"Male 25-29",null,null,null,null,null,null,null,null,null,null,null,null,null,null,null,null,null,null,null,null,null,null,null,null,null,null,null,null,null,null,null,null,null,null,null,null,null,null,null,null,null,null,null,null,null,null,null,null,null,null,null,null,null,44]
[null,"Male 30-34",null,null,null,null,null,null,null,null,null,null,null,null,null,null,null,null,null,null,null,null,null,null,null,null,null,null,null,null,null,null,null,null,null,null,null,null,null,null,null,null,null,null,null,null,null,null,null,null,null,null,null,null,null,45]
[null,"Male 35-39",null,null,null,null,null,null,null,null,null,null,null,null,null,null,null,null,null,null,null,null,null,null,null,null,null,null,null,null,null,null,null,null,null,null,null,null,null,null,null,null,null,null,null,null,null,null,null,null,null,null,null,null,null,46]
[null,"Male 40-44",null,null,null,null,null,null,null,null,null,null,null,null,null,null,null,null,null,null,null,null,null,null,null,null,null,null,null,null,null,null,null,null,null,null,null,null,null,null,null,null,null,null,null,null,null,null,null,null,null,null,null,null,null,47]
[null,"Male 45-49",null,null,null,null,null,null,null,null,null,null,null,null,null,null,null,null,null,null,null,null,null,null,null,null,null,null,null,null,null,null,null,null,null,null,null,null,null,null,null,null,null,null,null,null,null,null,null,null,null,null,null,null,null,48]
[null,"Male 50-54",null,null,null,null,null,null,null,null,null,null,null,null,null,null,null,null,null,null,null,null,null,null,null,null,null,null,null,null,null,null,null,null,null,null,null,null,null,null,null,null,null,null,null,null,null,null,null,null,null,null,null,null,null,49]
[null,"Male 55-59",null,null,null,null,null,null,null,null,null,null,null,null,null,null,null,null,null,null,null,null,null,null,null,null,null,null,null,null,null,null,null,null,null,null,null,null,null,null,null,null,null,null,null,null,null,null,null,null,null,null,null,null,null,50]
[null,"Male 60-64",null,null,null,null,null,null,null,null,null,null,null,null,null,null,null,null,null,null,null,null,null,null,null,null,null,null,null,null,null,null,null,null,null,null,null,null,null,null,null,null,null,null,null,null,null,null,null,null,null,null,null,null,null,51]
[null,"Male 65-69",null,null,null,null,null,null,null,null,null,null,null,null,null,null,null,null,null,null,null,null,null,null,null,null,null,null,null,null,null,null,null,null,null,null,null,null,null,null,null,null,null,null,null,null,null,null,null,null,null,null,null,null,null,52]
[null,"Male 70-74",null,null,null,null,null,null,null,null,null,null,null,null,null,null,null,null,null,null,null,null,null,null,null,null,null,null,null,null,null,null,null,null,null,null,null,null,null,null,null,null,null,null,null,null,null,null,null,null,null,null,null,null,null,53]
[null,"Male 75-79",null,null,null,null,null,null,null,null,null,null,null,null,null,null,null,null,null,null,null,null,null,null,null,null,null,null,null,null,null,null,null,null,null,null,null,null,null,null,null,null,null,null,null,null,null,null,null,null,null,null,null,null,null,54]
[null,"Male 80-84",null,null,null,null,null,null,null,null,null,null,null,null,null,null,null,null,null,null,null,null,null,null,null,null,null,null,null,null,null,null,null,null,null,null,null,null,null,null,null,null,null,null,null,null,null,null,null,null,null,null,null,null,null,55]
[null,"Male 85-89",null,null,null,null,null,null,null,null,null,null,null,null,null,null,null,null,null,null,null,null,null,null,null,null,null,null,null,null,null,null,null,null,null,null,null,null,null,null,null,null,null,null,null,null,null,null,null,null,null,null,null,null,null,56]
[null,"Male 90+",null,null,null,null,null,null,null,null,null,null,null,null,null,null,null,null,null,null,null,null,null,null,null,null,null,null,null,null,null,null,null,null,null,null,null,null,null,null,null,null,null,null,null,null,null,null,null,null,null,null,null,null,null,57]
["SIMD Q1 (most deprived)","Female 0-4",0,0,0,0,0,0,0,0,0,0,0,0,0,0,0,0,0,0,0,0,0,0,0,0,0,0,0,0,0,0,0,0,0,0,0,0,0,0,0,0,0,0,0,0,0,0,0,0,0,0,0,0,0,58]
[null,"Female 5-9",0,0,0,0,0,0,0,0,0,0,0,0,0,0,0,0,0,0,0,0,0,0,0,0,0,0,0,0,0,0,0,0,0,0,0,0,0,0,0,0,0,0,0,0,0,0,0,0,0,0,0,0,0,59]
[null,"Female 10-15",0,0,0,0,0,0,0,0,0,0,0,0,0,0,0,0,0,0,0,0,0,0,0,0,0,0,0,0,0,0,0,0,0,0,0,0,0,0,0,0,0,0,0,0,0,0,0,0,0,0,0,0,0,60]
[null,"Female 16-19",{"$f":"'Population 2016'!C63/'Population 2016'!C$15","v":7.9385680294181259E-3},{"$f":"'Population 2016'!D63/'Population 2016'!D$15","v":7.7044328636685323E-3},{"$f":"'Population 2016'!E63/'Population 2016'!E$15","v":7.0254673190314892E-3},{"$f":"'Population 2016'!F63/'Population 2016'!F$15","v":1.2439762411744928E-2},{"$f":"'Population 2016'!G63/'Population 2016'!G$15","v":1.1435732748492206E-2},{"$f":"'Population 2016'!H63/'Population 2016'!H$15","v":2.1265242706257161E-2},{"$f":"'Population 2016'!I63/'Population 2016'!I$15","v":1.1142612250280213E-2},{"$f":"'Population 2016'!J63/'Population 2016'!J$15","v":1.7595829136797202E-2},{"$f":"'Population 2016'!K63/'Population 2016'!K$15","v":1.6641360461585181E-2},{"$f":"'Population 2016'!L63/'Population 2016'!L$15","v":9.6209645398735531E-3},{"$f":"'Population 2016'!M63/'Population 2016'!M$15","v":9.6209645398735531E-3},{"$f":"'Population 2016'!N63/'Population 2016'!N$15","v":2.29551836050031E-2},{"$f":"'Population 2016'!O63/'Population 2016'!O$15","v":1.9493177387914229E-2},{"$f":"'Population 2016'!P63/'Population 2016'!P$15","v":7.7169978829474831E-3},{"$f":"'Population 2016'!Q63/'Population 2016'!Q$15","v":4.1526992545154349E-3},{"$f":"'Population 2016'!R63/'Population 2016'!R$15","v":1.7801940091674663E-2},{"$f":"'Population 2016'!S63/'Population 2016'!S$15","v":1.4941645072140079E-2},{"$f":"'Population 2016'!T63/'Population 2016'!T$15","v":1.5011927695209957E-2},{"$f":"'Population 2016'!U63/'Population 2016'!U$15","v":0},{"$f":"'Population 2016'!V63/'Population 2016'!V$15","v":1.0890042733079079E-2},{"$f":"'Population 2016'!W63/'Population 2016'!W$15","v":1.9767844018849165E-2},{"$f":"'Population 2016'!X63/'Population 2016'!X$15","v":1.9767844018849165E-2},{"$f":"'Population 2016'!Y63/'Population 2016'!Y$15","v":1.3819160498938979E-2},{"$f":"'Population 2016'!Z63/'Population 2016'!Z$15","v":2.2137222089409516E-2},{"$f":"'Population 2016'!AA63/'Population 2016'!AA$15","v":2.0083074313009236E-2},{"$f":"'Population 2016'!AB63/'Population 2016'!AB$15","v":6.8686083783146236E-3},{"$f":"'Population 2016'!AC63/'Population 2016'!AC$15","v":2.1204465461769344E-2},{"$f":"'Population 2016'!AD63/'Population 2016'!AD$15","v":1.0831393284141578E-2},{"$f":"'Population 2016'!AE63/'Population 2016'!AE$15","v":1.0627917402885097E-2},{"$f":"'Population 2016'!AF63/'Population 2016'!AF$15","v":2.4717970827046059E-2},{"$f":"'Population 2016'!AG63/'Population 2016'!AG$15","v":1.0627917402885097E-2},{"$f":"'Population 2016'!AH63/'Population 2016'!AH$15","v":1.7979085920584118E-2},{"$f":"'Population 2016'!AI63/'Population 2016'!AI$15","v":1.2937763740255457E-2},{"$f":"'Population 2016'!AJ63/'Population 2016'!AJ$15","v":8.1146340497961454E-3},{"$f":"'Population 2016'!AK63/'Population 2016'!AK$15","v":1.6169782718544719E-3},{"$f":"'Population 2016'!AL63/'Population 2016'!AL$15","v":2.6089139502549048E-2},{"$f":"'Population 2016'!AM63/'Population 2016'!AM$15","v":1.9780767702579524E-2},{"$f":"'Population 2016'!AN63/'Population 2016'!AN$15","v":0},{"$f":"'Population 2016'!AO63/'Population 2016'!AO$15","v":0},{"$f":"'Population 2016'!AP63/'Population 2016'!AP$15","v":1.0843801848779332E-2},{"$f":"'Population 2016'!AQ63/'Population 2016'!AQ$15","v":1.9594986980386281E-2},{"$f":"'Population 2016'!AR63/'Population 2016'!AR$15","v":1.7284719611949381E-2},{"$f":"'Population 2016'!AS63/'Population 2016'!AS$15","v":1.1142612250280213E-2},{"$f":"'Population 2016'!AT63/'Population 2016'!AT$15","v":0},{"$f":"'Population 2016'!AU63/'Population 2016'!AU$15","v":0},{"$f":"'Population 2016'!AV63/'Population 2016'!AV$15","v":1.5762498791219416E-2},{"$f":"'Population 2016'!AW63/'Population 2016'!AW$15","v":1.5513380957458151E-2},{"$f":"'Population 2016'!AX63/'Population 2016'!AX$15","v":1.8504597235875789E-2},{"$f":"'Population 2016'!AY63/'Population 2016'!AY$15","v":1.9182610987852296E-2},{"$f":"'Population 2016'!AZ63/'Population 2016'!AZ$15","v":1.8578063594140763E-2},{"$f":"'Population 2016'!BA63/'Population 2016'!BA$15","v":2.0294970376906592E-2},{"$f":"'Population 2016'!BB63/'Population 2016'!BB$15","v":1.4780249146897998E-2},{"$f":"'Population 2016'!BC63/'Population 2016'!BC$15","v":0},61]
[null,"Female 20-24",{"$f":"'Population 2016'!C64/'Population 2016'!C$15","v":1.6915422885572139E-2},{"$f":"'Population 2016'!D64/'Population 2016'!D$15","v":1.5794891591069934E-2},{"$f":"'Population 2016'!E64/'Population 2016'!E$15","v":1.2545477355413373E-2},{"$f":"'Population 2016'!F64/'Population 2016'!F$15","v":1.7931189061974672E-2},{"$f":"'Population 2016'!G64/'Population 2016'!G$15","v":1.6292002819769717E-2},{"$f":"'Population 2016'!H64/'Population 2016'!H$15","v":3.1835088435160627E-2},{"$f":"'Population 2016'!I64/'Population 2016'!I$15","v":1.4307377859827256E-2},{"$f":"'Population 2016'!J64/'Population 2016'!J$15","v":2.8348835831506606E-2},{"$f":"'Population 2016'!K64/'Population 2016'!K$15","v":2.6844822350440327E-2},{"$f":"'Population 2016'!L64/'Population 2016'!L$15","v":1.533245777465563E-2},{"$f":"'Population 2016'!M64/'Population 2016'!M$15","v":1.533245777465563E-2},{"$f":"'Population 2016'!N64/'Population 2016'!N$15","v":3.9091273748313463E-2},{"$f":"'Population 2016'!O64/'Population 2016'!O$15","v":3.0539311241065625E-2},{"$f":"'Population 2016'!P64/'Population 2016'!P$15","v":1.2087686949395616E-2},{"$f":"'Population 2016'!Q64/'Population 2016'!Q$15","v":6.0039025366488219E-3},{"$f":"'Population 2016'!R64/'Population 2016'!R$15","v":2.4411043598763459E-2},{"$f":"'Population 2016'!S64/'Population 2016'!S$15","v":2.0750627953369079E-2},{"$f":"'Population 2016'!T64/'Population 2016'!T$15","v":2.3715651731262537E-2},{"$f":"'Population 2016'!U64/'Population 2016'!U$15","v":0},{"$f":"'Population 2016'!V64/'Population 2016'!V$15","v":1.7828424390019759E-2},{"$f":"'Population 2016'!W64/'Population 2016'!W$15","v":2.4296398772210452E-2},{"$f":"'Population 2016'!X64/'Population 2016'!X$15","v":2.4296398772210452E-2},{"$f":"'Population 2016'!Y64/'Population 2016'!Y$15","v":2.2423787588634128E-2},{"$f":"'Population 2016'!Z64/'Population 2016'!Z$15","v":3.7691020430680962E-2},{"$f":"'Population 2016'!AA64/'Population 2016'!AA$15","v":3.200896476384546E-2},{"$f":"'Population 2016'!AB64/'Population 2016'!AB$15","v":1.4111868122719137E-2},{"$f":"'Population 2016'!AC64/'Population 2016'!AC$15","v":3.5914193652096096E-2},{"$f":"'Population 2016'!AD64/'Population 2016'!AD$15","v":1.6000473503531547E-2},{"$f":"'Population 2016'!AE64/'Population 2016'!AE$15","v":1.5902318099105989E-2},{"$f":"'Population 2016'!AF64/'Population 2016'!AF$15","v":4.0705611841632537E-2},{"$f":"'Population 2016'!AG64/'Population 2016'!AG$15","v":1.5902318099105989E-2},{"$f":"'Population 2016'!AH64/'Population 2016'!AH$15","v":2.4681854807852458E-2},{"$f":"'Population 2016'!AI64/'Population 2016'!AI$15","v":1.9563794871266416E-2},{"$f":"'Population 2016'!AJ64/'Population 2016'!AJ$15","v":1.2904247318212405E-2},{"$f":"'Population 2016'!AK64/'Population 2016'!AK$15","v":3.5371399696816574E-3},{"$f":"'Population 2016'!AL64/'Population 2016'!AL$15","v":3.7579175034759771E-2},{"$f":"'Population 2016'!AM64/'Population 2016'!AM$15","v":2.6675600084140327E-2},{"$f":"'Population 2016'!AN64/'Population 2016'!AN$15","v":0},{"$f":"'Population 2016'!AO64/'Population 2016'!AO$15","v":0},{"$f":"'Population 2016'!AP64/'Population 2016'!AP$15","v":1.9317373785257171E-2},{"$f":"'Population 2016'!AQ64/'Population 2016'!AQ$15","v":3.6061520016485264E-2},{"$f":"'Population 2016'!AR64/'Population 2016'!AR$15","v":2.6937299754783511E-2},{"$f":"'Population 2016'!AS64/'Population 2016'!AS$15","v":1.4307377859827256E-2},{"$f":"'Population 2016'!AT64/'Population 2016'!AT$15","v":0},{"$f":"'Population 2016'!AU64/'Population 2016'!AU$15","v":0},{"$f":"'Population 2016'!AV64/'Population 2016'!AV$15","v":2.4111143345259968E-2},{"$f":"'Population 2016'!AW64/'Population 2016'!AW$15","v":2.1953299925365176E-2},{"$f":"'Population 2016'!AX64/'Population 2016'!AX$15","v":2.9780836176487597E-2},{"$f":"'Population 2016'!AY64/'Population 2016'!AY$15","v":2.7667332996507261E-2},{"$f":"'Population 2016'!AZ64/'Population 2016'!AZ$15","v":3.1149517684887461E-2},{"$f":"'Population 2016'!BA64/'Population 2016'!BA$15","v":3.1690407159964705E-2},{"$f":"'Population 2016'!BB64/'Population 2016'!BB$15","v":2.0042757883484766E-2},{"$f":"'Population 2016'!BC64/'Population 2016'!BC$15","v":0},62]
[null,"Female 25-29",{"$f":"'Population 2016'!C65/'Population 2016'!C$15","v":2.2301535799264548E-2},{"$f":"'Population 2016'!D65/'Population 2016'!D$15","v":2.0411117544875505E-2},{"$f":"'Population 2016'!E65/'Population 2016'!E$15","v":1.4929118052941915E-2},{"$f":"'Population 2016'!F65/'Population 2016'!F$15","v":1.6754454779782584E-2},{"$f":"'Population 2016'!G65/'Population 2016'!G$15","v":1.3472233100963422E-2},{"$f":"'Population 2016'!H65/'Population 2016'!H$15","v":3.1882170153329462E-2},{"$f":"'Population 2016'!I65/'Population 2016'!I$15","v":1.3450253840574933E-2},{"$f":"'Population 2016'!J65/'Population 2016'!J$15","v":3.0037324486047751E-2},{"$f":"'Population 2016'!K65/'Population 2016'!K$15","v":2.59945338597024E-2},{"$f":"'Population 2016'!L65/'Population 2016'!L$15","v":1.5393543263797684E-2},{"$f":"'Population 2016'!M65/'Population 2016'!M$15","v":1.5393543263797684E-2},{"$f":"'Population 2016'!N65/'Population 2016'!N$15","v":5.0924406520074392E-2},{"$f":"'Population 2016'!O65/'Population 2016'!O$15","v":3.1413143330868677E-2},{"$f":"'Population 2016'!P65/'Population 2016'!P$15","v":1.3112067199344397E-2},{"$f":"'Population 2016'!Q65/'Population 2016'!Q$15","v":6.8544553960074046E-3},{"$f":"'Population 2016'!R65/'Population 2016'!R$15","v":2.3451657605798957E-2},{"$f":"'Population 2016'!S65/'Population 2016'!S$15","v":2.6659022977459954E-2},{"$f":"'Population 2016'!T65/'Population 2016'!T$15","v":3.571321628554603E-2},{"$f":"'Population 2016'!U65/'Population 2016'!U$15","v":0},{"$f":"'Population 2016'!V65/'Population 2016'!V$15","v":2.0493498139043331E-2},{"$f":"'Population 2016'!W65/'Population 2016'!W$15","v":2.9808482123557131E-2},{"$f":"'Population 2016'!X65/'Population 2016'!X$15","v":2.9808482123557131E-2},{"$f":"'Population 2016'!Y65/'Population 2016'!Y$15","v":2.4662284560840537E-2},{"$f":"'Population 2016'!Z65/'Population 2016'!Z$15","v":5.2075249636808325E-2},{"$f":"'Population 2016'!AA65/'Population 2016'!AA$15","v":3.9219276746391717E-2},{"$f":"'Population 2016'!AB65/'Population 2016'!AB$15","v":1.7927761666227261E-2},{"$f":"'Population 2016'!AC65/'Population 2016'!AC$15","v":4.6077365828612833E-2},{"$f":"'Population 2016'!AD65/'Population 2016'!AD$15","v":1.5132383695695063E-2},{"$f":"'Population 2016'!AE65/'Population 2016'!AE$15","v":1.5691342071257153E-2},{"$f":"'Population 2016'!AF65/'Population 2016'!AF$15","v":4.1064884673420995E-2},{"$f":"'Population 2016'!AG65/'Population 2016'!AG$15","v":1.5691342071257153E-2},{"$f":"'Population 2016'!AH65/'Population 2016'!AH$15","v":2.6351920124962298E-2},{"$f":"'Population 2016'!AI65/'Population 2016'!AI$15","v":2.6189826002277376E-2},{"$f":"'Population 2016'!AJ65/'Population 2016'!AJ$15","v":1.3339666706250248E-2},{"$f":"'Population 2016'!AK65/'Population 2016'!AK$15","v":2.3244062657908036E-3},{"$f":"'Population 2016'!AL65/'Population 2016'!AL$15","v":3.7656418971110765E-2},{"$f":"'Population 2016'!AM65/'Population 2016'!AM$15","v":2.8973877544660596E-2},{"$f":"'Population 2016'!AN65/'Population 2016'!AN$15","v":0},{"$f":"'Population 2016'!AO65/'Population 2016'!AO$15","v":0},{"$f":"'Population 2016'!AP65/'Population 2016'!AP$15","v":2.376155487082247E-2},{"$f":"'Population 2016'!AQ65/'Population 2016'!AQ$15","v":4.0932166875854707E-2},{"$f":"'Population 2016'!AR65/'Population 2016'!AR$15","v":3.2310583686838854E-2},{"$f":"'Population 2016'!AS65/'Population 2016'!AS$15","v":1.3450253840574933E-2},{"$f":"'Population 2016'!AT65/'Population 2016'!AT$15","v":0},{"$f":"'Population 2016'!AU65/'Population 2016'!AU$15","v":0},{"$f":"'Population 2016'!AV65/'Population 2016'!AV$15","v":2.291847983753989E-2},{"$f":"'Population 2016'!AW65/'Population 2016'!AW$15","v":2.2763620855101824E-2},{"$f":"'Population 2016'!AX65/'Population 2016'!AX$15","v":3.3886543688197539E-2},{"$f":"'Population 2016'!AY65/'Population 2016'!AY$15","v":3.4328800825956109E-2},{"$f":"'Population 2016'!AZ65/'Population 2016'!AZ$15","v":3.8998302965344768E-2},{"$f":"'Population 2016'!BA65/'Population 2016'!BA$15","v":3.2925753182906844E-2},{"$f":"'Population 2016'!BB65/'Population 2016'!BB$15","v":2.1193931669613125E-2},{"$f":"'Population 2016'!BC65/'Population 2016'!BC$15","v":0},63]
[null,"Female 30-34",{"$f":"'Population 2016'!C66/'Population 2016'!C$15","v":1.9597663854639843E-2},{"$f":"'Population 2016'!D66/'Population 2016'!D$15","v":1.8352312938300201E-2},{"$f":"'Population 2016'!E66/'Population 2016'!E$15","v":1.4740935892610715E-2},{"$f":"'Population 2016'!F66/'Population 2016'!F$15","v":1.8603608651798723E-2},{"$f":"'Population 2016'!G66/'Population 2016'!G$15","v":1.5743714263335162E-2},{"$f":"'Population 2016'!H66/'Population 2016'!H$15","v":2.8296112619469859E-2},{"$f":"'Population 2016'!I66/'Population 2016'!I$15","v":1.3648051691171623E-2},{"$f":"'Population 2016'!J66/'Population 2016'!J$15","v":2.6275253273298181E-2},{"$f":"'Population 2016'!K66/'Population 2016'!K$15","v":2.484057090798664E-2},{"$f":"'Population 2016'!L66/'Population 2016'!L$15","v":1.3133380165541676E-2},{"$f":"'Population 2016'!M66/'Population 2016'!M$15","v":1.3133380165541676E-2},{"$f":"'Population 2016'!N66/'Population 2016'!N$15","v":4.0823396419064288E-2},{"$f":"'Population 2016'!O66/'Population 2016'!O$15","v":2.7917814971656473E-2},{"$f":"'Population 2016'!P66/'Population 2016'!P$15","v":1.1268182749436591E-2},{"$f":"'Population 2016'!Q66/'Population 2016'!Q$15","v":6.2040326212037828E-3},{"$f":"'Population 2016'!R66/'Population 2016'!R$15","v":2.281206694382262E-2},{"$f":"'Population 2016'!S66/'Population 2016'!S$15","v":2.547601847740362E-2},{"$f":"'Population 2016'!T66/'Population 2016'!T$15","v":3.5164242865840876E-2},{"$f":"'Population 2016'!U66/'Population 2016'!U$15","v":0},{"$f":"'Population 2016'!V66/'Population 2016'!V$15","v":2.0079952212470706E-2},{"$f":"'Population 2016'!W66/'Population 2016'!W$15","v":2.6295879987895034E-2},{"$f":"'Population 2016'!X66/'Population 2016'!X$15","v":2.6295879987895034E-2},{"$f":"'Population 2016'!Y66/'Population 2016'!Y$15","v":2.2786087676621294E-2},{"$f":"'Population 2016'!Z66/'Population 2016'!Z$15","v":4.4094227551076705E-2},{"$f":"'Population 2016'!AA66/'Population 2016'!AA$15","v":3.5674376238367562E-2},{"$f":"'Population 2016'!AB66/'Population 2016'!AB$15","v":1.6290396436649229E-2},{"$f":"'Population 2016'!AC66/'Population 2016'!AC$15","v":4.0040883015554259E-2},{"$f":"'Population 2016'!AD66/'Population 2016'!AD$15","v":1.6888292625182495E-2},{"$f":"'Population 2016'!AE66/'Population 2016'!AE$15","v":1.727366228012342E-2},{"$f":"'Population 2016'!AF66/'Population 2016'!AF$15","v":4.0166702593949846E-2},{"$f":"'Population 2016'!AG66/'Population 2016'!AG$15","v":1.727366228012342E-2},{"$f":"'Population 2016'!AH66/'Population 2016'!AH$15","v":2.7481802590176775E-2},{"$f":"'Population 2016'!AI66/'Population 2016'!AI$15","v":2.6009490784870391E-2},{"$f":"'Population 2016'!AJ66/'Population 2016'!AJ$15","v":1.1716739896291019E-2},{"$f":"'Population 2016'!AK66/'Population 2016'!AK$15","v":3.3350176856998485E-3},{"$f":"'Population 2016'!AL66/'Population 2016'!AL$15","v":3.2693496060559248E-2},{"$f":"'Population 2016'!AM66/'Population 2016'!AM$15","v":2.929329915781765E-2},{"$f":"'Population 2016'!AN66/'Population 2016'!AN$15","v":0},{"$f":"'Population 2016'!AO66/'Population 2016'!AO$15","v":0},{"$f":"'Population 2016'!AP66/'Population 2016'!AP$15","v":2.1332069210713438E-2},{"$f":"'Population 2016'!AQ66/'Population 2016'!AQ$15","v":3.491879133024859E-2},{"$f":"'Population 2016'!AR66/'Population 2016'!AR$15","v":2.9526213105657877E-2},{"$f":"'Population 2016'!AS66/'Population 2016'!AS$15","v":1.3648051691171623E-2},{"$f":"'Population 2016'!AT66/'Population 2016'!AT$15","v":0},{"$f":"'Population 2016'!AU66/'Population 2016'!AU$15","v":0},{"$f":"'Population 2016'!AV66/'Population 2016'!AV$15","v":2.1500177287818716E-2},{"$f":"'Population 2016'!AW66/'Population 2016'!AW$15","v":2.5002665529374135E-2},{"$f":"'Population 2016'!AX66/'Population 2016'!AX$15","v":2.7641242121089458E-2},{"$f":"'Population 2016'!AY66/'Population 2016'!AY$15","v":2.9457636798980735E-2},{"$f":"'Population 2016'!AZ66/'Population 2016'!AZ$15","v":3.2723740621650586E-2},{"$f":"'Population 2016'!BA66/'Population 2016'!BA$15","v":3.3757720912643389E-2},{"$f":"'Population 2016'!BB66/'Population 2016'!BB$15","v":2.2715125601282738E-2},{"$f":"'Population 2016'!BC66/'Population 2016'!BC$15","v":0},64]
[null,"Female 35-39",{"$f":"'Population 2016'!C67/'Population 2016'!C$15","v":1.4016872160934458E-2},{"$f":"'Population 2016'!D67/'Population 2016'!D$15","v":1.3189217010873062E-2},{"$f":"'Population 2016'!E67/'Population 2016'!E$15","v":1.0789110525655501E-2},{"$f":"'Population 2016'!F67/'Population 2016'!F$15","v":1.6698419813963913E-2},{"$f":"'Population 2016'!G67/'Population 2016'!G$15","v":1.3863867784130963E-2},{"$f":"'Population 2016'!H67/'Population 2016'!H$15","v":2.5416280858142782E-2},{"$f":"'Population 2016'!I67/'Population 2016'!I$15","v":1.2659062438188172E-2},{"$f":"'Population 2016'!J67/'Population 2016'!J$15","v":2.2927898572190297E-2},{"$f":"'Population 2016'!K67/'Population 2016'!K$15","v":2.5630124506529E-2},{"$f":"'Population 2016'!L67/'Population 2016'!L$15","v":1.1025930790140802E-2},{"$f":"'Population 2016'!M67/'Population 2016'!M$15","v":1.1025930790140802E-2},{"$f":"'Population 2016'!N67/'Population 2016'!N$15","v":3.1962221492907415E-2},{"$f":"'Population 2016'!O67/'Population 2016'!O$15","v":2.4534516367547221E-2},{"$f":"'Population 2016'!P67/'Population 2016'!P$15","v":1.0312094516151062E-2},{"$f":"'Population 2016'!Q67/'Population 2016'!Q$15","v":7.2547155651173263E-3},{"$f":"'Population 2016'!R67/'Population 2016'!R$15","v":2.2918665387485344E-2},{"$f":"'Population 2016'!S67/'Population 2016'!S$15","v":2.1860730215326703E-2},{"$f":"'Population 2016'!T67/'Population 2016'!T$15","v":2.8167327098326131E-2},{"$f":"'Population 2016'!U67/'Population 2016'!U$15","v":0},{"$f":"'Population 2016'!V67/'Population 2016'!V$15","v":1.5852593851950557E-2},{"$f":"'Population 2016'!W67/'Population 2016'!W$15","v":2.3896502529073538E-2},{"$f":"'Population 2016'!X67/'Population 2016'!X$15","v":2.3896502529073538E-2},{"$f":"'Population 2016'!Y67/'Population 2016'!Y$15","v":1.8943118886186015E-2},{"$f":"'Population 2016'!Z67/'Population 2016'!Z$15","v":3.6550874418433583E-2},{"$f":"'Population 2016'!AA67/'Population 2016'!AA$15","v":3.04986649889036E-2},{"$f":"'Population 2016'!AB67/'Population 2016'!AB$15","v":1.171132418443948E-2},{"$f":"'Population 2016'!AC67/'Population 2016'!AC$15","v":3.3711693166250396E-2},{"$f":"'Population 2016'!AD67/'Population 2016'!AD$15","v":1.3790790356311408E-2},{"$f":"'Population 2016'!AE67/'Population 2016'!AE$15","v":1.3766185817136527E-2},{"$f":"'Population 2016'!AF67/'Population 2016'!AF$15","v":3.5675792196594093E-2},{"$f":"'Population 2016'!AG67/'Population 2016'!AG$15","v":1.3766185817136527E-2},{"$f":"'Population 2016'!AH67/'Population 2016'!AH$15","v":2.4470283190860104E-2},{"$f":"'Population 2016'!AI67/'Population 2016'!AI$15","v":2.1609311480139941E-2},{"$f":"'Population 2016'!AJ67/'Population 2016'!AJ$15","v":1.1083402604599613E-2},{"$f":"'Population 2016'!AK67/'Population 2016'!AK$15","v":2.4254674077817079E-3},{"$f":"'Population 2016'!AL67/'Population 2016'!AL$15","v":3.0549976826819095E-2},{"$f":"'Population 2016'!AM67/'Population 2016'!AM$15","v":2.6215944592036272E-2},{"$f":"'Population 2016'!AN67/'Population 2016'!AN$15","v":0},{"$f":"'Population 2016'!AO67/'Population 2016'!AO$15","v":0},{"$f":"'Population 2016'!AP67/'Population 2016'!AP$15","v":1.7539701351031049E-2},{"$f":"'Population 2016'!AQ67/'Population 2016'!AQ$15","v":3.081620801408741E-2},{"$f":"'Population 2016'!AR67/'Population 2016'!AR$15","v":2.5085825771000016E-2},{"$f":"'Population 2016'!AS67/'Population 2016'!AS$15","v":1.2659062438188172E-2},{"$f":"'Population 2016'!AT67/'Population 2016'!AT$15","v":0},{"$f":"'Population 2016'!AU67/'Population 2016'!AU$15","v":0},{"$f":"'Population 2016'!AV67/'Population 2016'!AV$15","v":1.8115591657802275E-2},{"$f":"'Population 2016'!AW67/'Population 2016'!AW$15","v":2.2081245335323595E-2},{"$f":"'Population 2016'!AX67/'Population 2016'!AX$15","v":2.0355056959463366E-2},{"$f":"'Population 2016'!AY67/'Population 2016'!AY$15","v":2.503130285789601E-2},{"$f":"'Population 2016'!AZ67/'Population 2016'!AZ$15","v":2.6203554841014647E-2},{"$f":"'Population 2016'!BA67/'Population 2016'!BA$15","v":2.7959157947812934E-2},{"$f":"'Population 2016'!BB67/'Population 2016'!BB$15","v":1.9467170990420588E-2},{"$f":"'Population 2016'!BC67/'Population 2016'!BC$15","v":0},65]
[null,"Female 40-44",{"$f":"'Population 2016'!C68/'Population 2016'!C$15","v":1.4298074843175428E-2},{"$f":"'Population 2016'!D68/'Population 2016'!D$15","v":1.3333976709772889E-2},{"$f":"'Population 2016'!E68/'Population 2016'!E$15","v":1.0538200978547234E-2},{"$f":"'Population 2016'!F68/'Population 2016'!F$15","v":1.4288916283761067E-2},{"$f":"'Population 2016'!G68/'Population 2016'!G$15","v":1.6292002819769717E-2},{"$f":"'Population 2016'!H68/'Population 2016'!H$15","v":2.885324628446774E-2},{"$f":"'Population 2016'!I68/'Population 2016'!I$15","v":1.536229972967627E-2},{"$f":"'Population 2016'!J68/'Population 2016'!J$15","v":2.2927898572190297E-2},{"$f":"'Population 2016'!K68/'Population 2016'!K$15","v":2.4719101123595506E-2},{"$f":"'Population 2016'!L68/'Population 2016'!L$15","v":1.1148101768424911E-2},{"$f":"'Population 2016'!M68/'Population 2016'!M$15","v":1.1148101768424911E-2},{"$f":"'Population 2016'!N68/'Population 2016'!N$15","v":2.6419428946504758E-2},{"$f":"'Population 2016'!O68/'Population 2016'!O$15","v":2.7604131657368199E-2},{"$f":"'Population 2016'!P68/'Population 2016'!P$15","v":1.2019394932732363E-2},{"$f":"'Population 2016'!Q68/'Population 2016'!Q$15","v":5.3034472407064593E-3},{"$f":"'Population 2016'!R68/'Population 2016'!R$15","v":2.1426287176207228E-2},{"$f":"'Population 2016'!S68/'Population 2016'!S$15","v":2.0177351262865587E-2},{"$f":"'Population 2016'!T68/'Population 2016'!T$15","v":2.1809216764650103E-2},{"$f":"'Population 2016'!U68/'Population 2016'!U$15","v":0},{"$f":"'Population 2016'!V68/'Population 2016'!V$15","v":1.8196020769195423E-2},{"$f":"'Population 2016'!W68/'Population 2016'!W$15","v":2.4588214949634691E-2},{"$f":"'Population 2016'!X68/'Population 2016'!X$15","v":2.4588214949634691E-2},{"$f":"'Population 2016'!Y68/'Population 2016'!Y$15","v":2.0262926349567827E-2},{"$f":"'Population 2016'!Z68/'Population 2016'!Z$15","v":3.2725868441861747E-2},{"$f":"'Population 2016'!AA68/'Population 2016'!AA$15","v":2.8841247930185023E-2},{"$f":"'Population 2016'!AB68/'Population 2016'!AB$15","v":1.1891711879223501E-2},{"$f":"'Population 2016'!AC68/'Population 2016'!AC$15","v":3.0866196895865873E-2},{"$f":"'Population 2016'!AD68/'Population 2016'!AD$15","v":1.4481316339817701E-2},{"$f":"'Population 2016'!AE68/'Population 2016'!AE$15","v":1.3871673831060945E-2},{"$f":"'Population 2016'!AF68/'Population 2016'!AF$15","v":3.5891355895667172E-2},{"$f":"'Population 2016'!AG68/'Population 2016'!AG$15","v":1.3871673831060945E-2},{"$f":"'Population 2016'!AH68/'Population 2016'!AH$15","v":2.5041976709116037E-2},{"$f":"'Population 2016'!AI68/'Population 2016'!AI$15","v":1.8450868958126164E-2},{"$f":"'Population 2016'!AJ68/'Population 2016'!AJ$15","v":1.1241736927522464E-2},{"$f":"'Population 2016'!AK68/'Population 2016'!AK$15","v":2.8297119757453261E-3},{"$f":"'Population 2016'!AL68/'Population 2016'!AL$15","v":3.5474277769195116E-2},{"$f":"'Population 2016'!AM68/'Population 2016'!AM$15","v":2.6995021697297381E-2},{"$f":"'Population 2016'!AN68/'Population 2016'!AN$15","v":0},{"$f":"'Population 2016'!AO68/'Population 2016'!AO$15","v":0},{"$f":"'Population 2016'!AP68/'Population 2016'!AP$15","v":1.4399146717231571E-2},{"$f":"'Population 2016'!AQ68/'Population 2016'!AQ$15","v":2.7837620127011485E-2},{"$f":"'Population 2016'!AR68/'Population 2016'!AR$15","v":2.410138001396123E-2},{"$f":"'Population 2016'!AS68/'Population 2016'!AS$15","v":1.536229972967627E-2},{"$f":"'Population 2016'!AT68/'Population 2016'!AT$15","v":0},{"$f":"'Population 2016'!AU68/'Population 2016'!AU$15","v":0},{"$f":"'Population 2016'!AV68/'Population 2016'!AV$15","v":1.959836250523805E-2},{"$f":"'Population 2016'!AW68/'Population 2016'!AW$15","v":2.2369122507730037E-2},{"$f":"'Population 2016'!AX68/'Population 2016'!AX$15","v":2.1222459954895044E-2},{"$f":"'Population 2016'!AY68/'Population 2016'!AY$15","v":2.3186081760868133E-2},{"$f":"'Population 2016'!AZ68/'Population 2016'!AZ$15","v":2.1737674169346195E-2},{"$f":"'Population 2016'!BA68/'Population 2016'!BA$15","v":2.7858313374511535E-2},{"$f":"'Population 2016'!BB68/'Population 2016'!BB$15","v":2.0680014800805821E-2},{"$f":"'Population 2016'!BC68/'Population 2016'!BC$15","v":0},66]
[null,"Female 45-49",{"$f":"'Population 2016'!C69/'Population 2016'!C$15","v":1.2848799480856586E-2},{"$f":"'Population 2016'!D69/'Population 2016'!D$15","v":1.2706684681206974E-2},{"$f":"'Population 2016'!E69/'Population 2016'!E$15","v":1.2294567808305106E-2},{"$f":"'Population 2016'!F69/'Population 2016'!F$15","v":1.7034629608875938E-2},{"$f":"'Population 2016'!G69/'Population 2016'!G$15","v":1.8720137855408474E-2},{"$f":"'Population 2016'!H69/'Population 2016'!H$15","v":3.4393195122333999E-2},{"$f":"'Population 2016'!I69/'Population 2016'!I$15","v":1.496670402848289E-2},{"$f":"'Population 2016'!J69/'Population 2016'!J$15","v":2.9089401030866758E-2},{"$f":"'Population 2016'!K69/'Population 2016'!K$15","v":2.8666869116307319E-2},{"$f":"'Population 2016'!L69/'Population 2016'!L$15","v":1.3988577013530436E-2},{"$f":"'Population 2016'!M69/'Population 2016'!M$15","v":1.3988577013530436E-2},{"$f":"'Population 2016'!N69/'Population 2016'!N$15","v":3.0029537249753855E-2},{"$f":"'Population 2016'!O69/'Population 2016'!O$15","v":3.421388720844256E-2},{"$f":"'Population 2016'!P69/'Population 2016'!P$15","v":1.4409615515946186E-2},{"$f":"'Population 2016'!Q69/'Population 2016'!Q$15","v":7.6549757342272481E-3},{"$f":"'Population 2016'!R69/'Population 2016'!R$15","v":2.622321714102974E-2},{"$f":"'Population 2016'!S69/'Population 2016'!S$15","v":2.2599693810599987E-2},{"$f":"'Population 2016'!T69/'Population 2016'!T$15","v":2.3246528990787229E-2},{"$f":"'Population 2016'!U69/'Population 2016'!U$15","v":0},{"$f":"'Population 2016'!V69/'Population 2016'!V$15","v":1.8127096448099986E-2},{"$f":"'Population 2016'!W69/'Population 2016'!W$15","v":2.9830098136699668E-2},{"$f":"'Population 2016'!X69/'Population 2016'!X$15","v":2.9830098136699668E-2},{"$f":"'Population 2016'!Y69/'Population 2016'!Y$15","v":2.2915480565188138E-2},{"$f":"'Population 2016'!Z69/'Population 2016'!Z$15","v":3.8411886941650271E-2},{"$f":"'Population 2016'!AA69/'Population 2016'!AA$15","v":3.4287717584897626E-2},{"$f":"'Population 2016'!AB69/'Population 2016'!AB$15","v":1.135054879487144E-2},{"$f":"'Population 2016'!AC69/'Population 2016'!AC$15","v":3.7178592079155658E-2},{"$f":"'Population 2016'!AD69/'Population 2016'!AD$15","v":1.6750187428481236E-2},{"$f":"'Population 2016'!AE69/'Population 2016'!AE$15","v":1.6086922123473721E-2},{"$f":"'Population 2016'!AF69/'Population 2016'!AF$15","v":4.8250341309190196E-2},{"$f":"'Population 2016'!AG69/'Population 2016'!AG$15","v":1.6086922123473721E-2},{"$f":"'Population 2016'!AH69/'Population 2016'!AH$15","v":2.8863770386275755E-2},{"$f":"'Population 2016'!AI69/'Population 2016'!AI$15","v":1.9749282523456459E-2},{"$f":"'Population 2016'!AJ69/'Population 2016'!AJ$15","v":1.2350077187982426E-2},{"$f":"'Population 2016'!AK69/'Population 2016'!AK$15","v":2.8297119757453261E-3},{"$f":"'Population 2016'!AL69/'Population 2016'!AL$15","v":4.0977908234203615E-2},{"$f":"'Population 2016'!AM69/'Population 2016'!AM$15","v":3.1038431873602529E-2},{"$f":"'Population 2016'!AN69/'Population 2016'!AN$15","v":0},{"$f":"'Population 2016'!AO69/'Population 2016'!AO$15","v":0},{"$f":"'Population 2016'!AP69/'Population 2016'!AP$15","v":1.4162123726001423E-2},{"$f":"'Population 2016'!AQ69/'Population 2016'!AQ$15","v":3.5162323673217061E-2},{"$f":"'Population 2016'!AR69/'Population 2016'!AR$15","v":2.8063505700835885E-2},{"$f":"'Population 2016'!AS69/'Population 2016'!AS$15","v":1.496670402848289E-2},{"$f":"'Population 2016'!AT69/'Population 2016'!AT$15","v":0},{"$f":"'Population 2016'!AU69/'Population 2016'!AU$15","v":0},{"$f":"'Population 2016'!AV69/'Population 2016'!AV$15","v":2.3659865261257778E-2},{"$f":"'Population 2016'!AW69/'Population 2016'!AW$15","v":2.5887621281586524E-2},{"$f":"'Population 2016'!AX69/'Population 2016'!AX$15","v":2.9491701844677035E-2},{"$f":"'Population 2016'!AY69/'Population 2016'!AY$15","v":2.718406080442853E-2},{"$f":"'Population 2016'!AZ69/'Population 2016'!AZ$15","v":2.4450696677384781E-2},{"$f":"'Population 2016'!BA69/'Population 2016'!BA$15","v":3.4665322072355981E-2},{"$f":"'Population 2016'!BB69/'Population 2016'!BB$15","v":2.135838506763146E-2},{"$f":"'Population 2016'!BC69/'Population 2016'!BC$15","v":0},67]
[null,"Female 50-54",{"$f":"'Population 2016'!C70/'Population 2016'!C$15","v":1.3562621674237508E-2},{"$f":"'Population 2016'!D70/'Population 2016'!D$15","v":1.3060541722962105E-2},{"$f":"'Population 2016'!E70/'Population 2016'!E$15","v":1.160456655375737E-2},{"$f":"'Population 2016'!F70/'Population 2016'!F$15","v":1.5633755463409168E-2},{"$f":"'Population 2016'!G70/'Population 2016'!G$15","v":1.8250176235607426E-2},{"$f":"'Population 2016'!H70/'Population 2016'!H$15","v":3.5028798317613269E-2},{"$f":"'Population 2016'!I70/'Population 2016'!I$15","v":1.4505175710423947E-2},{"$f":"'Population 2016'!J70/'Population 2016'!J$15","v":2.6808460216837492E-2},{"$f":"'Population 2016'!K70/'Population 2016'!K$15","v":2.7755845733373825E-2},{"$f":"'Population 2016'!L70/'Population 2016'!L$15","v":1.4446718182095843E-2},{"$f":"'Population 2016'!M70/'Population 2016'!M$15","v":1.4446718182095843E-2},{"$f":"'Population 2016'!N70/'Population 2016'!N$15","v":3.4022535827589982E-2},{"$f":"'Population 2016'!O70/'Population 2016'!O$15","v":3.5087719298245612E-2},{"$f":"'Population 2016'!P70/'Population 2016'!P$15","v":1.4477907532609437E-2},{"$f":"'Population 2016'!Q70/'Population 2016'!Q$15","v":6.2540651423425228E-3},{"$f":"'Population 2016'!R70/'Population 2016'!R$15","v":2.7502398464982411E-2},{"$f":"'Population 2016'!S70/'Population 2016'!S$15","v":2.1734808167701656E-2},{"$f":"'Population 2016'!T70/'Population 2016'!T$15","v":2.089093395350694E-2},{"$f":"'Population 2016'!U70/'Population 2016'!U$15","v":0},{"$f":"'Population 2016'!V70/'Population 2016'!V$15","v":1.9298809906722419E-2},{"$f":"'Population 2016'!W70/'Population 2016'!W$15","v":2.9894946176127275E-2},{"$f":"'Population 2016'!X70/'Population 2016'!X$15","v":2.9894946176127275E-2},{"$f":"'Population 2016'!Y70/'Population 2016'!Y$15","v":2.2579059054914342E-2},{"$f":"'Population 2016'!Z70/'Population 2016'!Z$15","v":4.0294966807039485E-2},{"$f":"'Population 2016'!AA70/'Population 2016'!AA$15","v":3.5096862645669587E-2},{"$f":"'Population 2016'!AB70/'Population 2016'!AB$15","v":1.1641944301830241E-2},{"$f":"'Population 2016'!AC70/'Population 2016'!AC$15","v":3.830383470209861E-2},{"$f":"'Population 2016'!AD70/'Population 2016'!AD$15","v":1.5684804482500099E-2},{"$f":"'Population 2016'!AE70/'Population 2016'!AE$15","v":1.4821065956380707E-2},{"$f":"'Population 2016'!AF70/'Population 2016'!AF$15","v":4.753179564561328E-2},{"$f":"'Population 2016'!AG70/'Population 2016'!AG$15","v":1.4821065956380707E-2},{"$f":"'Population 2016'!AH70/'Population 2016'!AH$15","v":2.90798435270339E-2},{"$f":"'Population 2016'!AI70/'Population 2016'!AI$15","v":1.840964947986171E-2},{"$f":"'Population 2016'!AJ70/'Population 2016'!AJ$15","v":1.254799509163599E-2},{"$f":"'Population 2016'!AK70/'Population 2016'!AK$15","v":2.7286508337544214E-3},{"$f":"'Population 2016'!AL70/'Population 2016'!AL$15","v":4.2522786961223545E-2},{"$f":"'Population 2016'!AM70/'Population 2016'!AM$15","v":3.1490296594653973E-2},{"$f":"'Population 2016'!AN70/'Population 2016'!AN$15","v":0},{"$f":"'Population 2016'!AO70/'Population 2016'!AO$15","v":0},{"$f":"'Population 2016'!AP70/'Population 2016'!AP$15","v":1.5347238682152169E-2},{"$f":"'Population 2016'!AQ70/'Population 2016'!AQ$15","v":3.3682396358254811E-2},{"$f":"'Population 2016'!AR70/'Population 2016'!AR$15","v":2.8426497699976731E-2},{"$f":"'Population 2016'!AS70/'Population 2016'!AS$15","v":1.4505175710423947E-2},{"$f":"'Population 2016'!AT70/'Population 2016'!AT$15","v":0},{"$f":"'Population 2016'!AU70/'Population 2016'!AU$15","v":0},{"$f":"'Population 2016'!AV70/'Population 2016'!AV$15","v":2.24349676046804E-2},{"$f":"'Population 2016'!AW70/'Population 2016'!AW$15","v":2.5781000106621176E-2},{"$f":"'Population 2016'!AX70/'Population 2016'!AX$15","v":2.5906436130226102E-2},{"$f":"'Population 2016'!AY70/'Population 2016'!AY$15","v":2.8392241284625353E-2},{"$f":"'Population 2016'!AZ70/'Population 2016'!AZ$15","v":2.6839942836727401E-2},{"$f":"'Population 2016'!BA70/'Population 2016'!BA$15","v":3.5749401235346021E-2},{"$f":"'Population 2016'!BB70/'Population 2016'!BB$15","v":2.1337828392879166E-2},{"$f":"'Population 2016'!BC70/'Population 2016'!BC$15","v":0},68]
[null,"Female 55-59",{"$f":"'Population 2016'!C71/'Population 2016'!C$15","v":1.1702357776335713E-2},{"$f":"'Population 2016'!D71/'Population 2016'!D$15","v":1.1259087692208711E-2},{"$f":"'Population 2016'!E71/'Population 2016'!E$15","v":9.9736544975536322E-3},{"$f":"'Population 2016'!F71/'Population 2016'!F$15","v":1.4569091112854421E-2},{"$f":"'Population 2016'!G71/'Population 2016'!G$15","v":1.7466906869272342E-2},{"$f":"'Population 2016'!H71/'Population 2016'!H$15","v":3.0705127199108586E-2},{"$f":"'Population 2016'!I71/'Population 2016'!I$15","v":1.2856860288784862E-2},{"$f":"'Population 2016'!J71/'Population 2016'!J$15","v":2.4734877658629067E-2},{"$f":"'Population 2016'!K71/'Population 2016'!K$15","v":2.5447919829942302E-2},{"$f":"'Population 2016'!L71/'Population 2016'!L$15","v":1.1728413915274426E-2},{"$f":"'Population 2016'!M71/'Population 2016'!M$15","v":1.1728413915274426E-2},{"$f":"'Population 2016'!N71/'Population 2016'!N$15","v":3.0430660394559311E-2},{"$f":"'Population 2016'!O71/'Population 2016'!O$15","v":2.8410745894109475E-2},{"$f":"'Population 2016'!P71/'Population 2016'!P$15","v":1.4477907532609437E-2},{"$f":"'Population 2016'!Q71/'Population 2016'!Q$15","v":6.8544553960074046E-3},{"$f":"'Population 2016'!R71/'Population 2016'!R$15","v":2.0786696514230891E-2},{"$f":"'Population 2016'!S71/'Population 2016'!S$15","v":2.0154155096197817E-2},{"$f":"'Population 2016'!T71/'Population 2016'!T$15","v":2.0591493906395041E-2},{"$f":"'Population 2016'!U71/'Population 2016'!U$15","v":0},{"$f":"'Population 2016'!V71/'Population 2016'!V$15","v":1.7598676653034967E-2},{"$f":"'Population 2016'!W71/'Population 2016'!W$15","v":2.6436384073321516E-2},{"$f":"'Population 2016'!X71/'Population 2016'!X$15","v":2.6436384073321516E-2},{"$f":"'Population 2016'!Y71/'Population 2016'!Y$15","v":2.0715801459551784E-2},{"$f":"'Population 2016'!Z71/'Population 2016'!Z$15","v":3.4892145865131757E-2},{"$f":"'Population 2016'!AA71/'Population 2016'!AA$15","v":3.118260385071665E-2},{"$f":"'Population 2016'!AB71/'Population 2016'!AB$15","v":1.0032331025295904E-2},{"$f":"'Population 2016'!AC71/'Population 2016'!AC$15","v":3.3692499262234311E-2},{"$f":"'Population 2016'!AD71/'Population 2016'!AD$15","v":1.4579962908890029E-2},{"$f":"'Population 2016'!AE71/'Population 2016'!AE$15","v":1.3607953796249902E-2},{"$f":"'Population 2016'!AF71/'Population 2016'!AF$15","v":4.5376158654882516E-2},{"$f":"'Population 2016'!AG71/'Population 2016'!AG$15","v":1.3607953796249902E-2},{"$f":"'Population 2016'!AH71/'Population 2016'!AH$15","v":2.6473461266638756E-2},{"$f":"'Population 2016'!AI71/'Population 2016'!AI$15","v":1.7729528088498221E-2},{"$f":"'Population 2016'!AJ71/'Population 2016'!AJ$15","v":1.2270910026520998E-2},{"$f":"'Population 2016'!AK71/'Population 2016'!AK$15","v":2.3244062657908036E-3},{"$f":"'Population 2016'!AL71/'Population 2016'!AL$15","v":3.7868839796076005E-2},{"$f":"'Population 2016'!AM71/'Population 2016'!AM$15","v":2.7820843428874156E-2},{"$f":"'Population 2016'!AN71/'Population 2016'!AN$15","v":0},{"$f":"'Population 2016'!AO71/'Population 2016'!AO$15","v":0},{"$f":"'Population 2016'!AP71/'Population 2016'!AP$15","v":1.3806589239156198E-2},{"$f":"'Population 2016'!AQ71/'Population 2016'!AQ$15","v":3.0966074071298776E-2},{"$f":"'Population 2016'!AR71/'Population 2016'!AR$15","v":2.5436646440781113E-2},{"$f":"'Population 2016'!AS71/'Population 2016'!AS$15","v":1.2856860288784862E-2},{"$f":"'Population 2016'!AT71/'Population 2016'!AT$15","v":0},{"$f":"'Population 2016'!AU71/'Population 2016'!AU$15","v":0},{"$f":"'Population 2016'!AV71/'Population 2016'!AV$15","v":2.2048157818392804E-2},{"$f":"'Population 2016'!AW71/'Population 2016'!AW$15","v":2.4629491416995414E-2},{"$f":"'Population 2016'!AX71/'Population 2016'!AX$15","v":2.4055976406638525E-2},{"$f":"'Population 2016'!AY71/'Population 2016'!AY$15","v":2.5305889330668015E-2},{"$f":"'Population 2016'!AZ71/'Population 2016'!AZ$15","v":2.4138085030367989E-2},{"$f":"'Population 2016'!BA71/'Population 2016'!BA$15","v":3.108533972015631E-2},{"$f":"'Population 2016'!BB71/'Population 2016'!BB$15","v":1.9138264194383917E-2},{"$f":"'Population 2016'!BC71/'Population 2016'!BC$15","v":0},69]
[null,"Female 60-64",{"$f":"'Population 2016'!C72/'Population 2016'!C$15","v":9.5176292450789533E-3},{"$f":"'Population 2016'!D72/'Population 2016'!D$15","v":9.087692208711317E-3},{"$f":"'Population 2016'!E72/'Population 2016'!E$15","v":7.8409233471333582E-3},{"$f":"'Population 2016'!F72/'Population 2016'!F$15","v":1.1711307856102207E-2},{"$f":"'Population 2016'!G72/'Population 2016'!G$15","v":1.5665387326701651E-2},{"$f":"'Population 2016'!H72/'Population 2016'!H$15","v":2.7801754578697092E-2},{"$f":"'Population 2016'!I72/'Population 2016'!I$15","v":1.226346673699479E-2},{"$f":"'Population 2016'!J72/'Population 2016'!J$15","v":1.8928846495645475E-2},{"$f":"'Population 2016'!K72/'Population 2016'!K$15","v":2.0528393562101427E-2},{"$f":"'Population 2016'!L72/'Population 2016'!L$15","v":1.0537246877004367E-2},{"$f":"'Population 2016'!M72/'Population 2016'!M$15","v":1.0537246877004367E-2},{"$f":"'Population 2016'!N72/'Population 2016'!N$15","v":2.4249717390511613E-2},{"$f":"'Population 2016'!O72/'Population 2016'!O$15","v":2.5789249624700319E-2},{"$f":"'Population 2016'!P72/'Population 2016'!P$15","v":1.1131598716110087E-2},{"$f":"'Population 2016'!Q72/'Population 2016'!Q$15","v":4.8531545504577975E-3},{"$f":"'Population 2016'!R72/'Population 2016'!R$15","v":1.8334932309988273E-2},{"$f":"'Population 2016'!S72/'Population 2016'!S$15","v":1.6320160119824768E-2},{"$f":"'Population 2016'!T72/'Population 2016'!T$15","v":1.5401199756455429E-2},{"$f":"'Population 2016'!U72/'Population 2016'!U$15","v":0},{"$f":"'Population 2016'!V72/'Population 2016'!V$15","v":1.4910628130312917E-2},{"$f":"'Population 2016'!W72/'Population 2016'!W$15","v":2.2545501707665037E-2},{"$f":"'Population 2016'!X72/'Population 2016'!X$15","v":2.2545501707665037E-2},{"$f":"'Population 2016'!Y72/'Population 2016'!Y$15","v":1.6665804047409555E-2},{"$f":"'Population 2016'!Z72/'Population 2016'!Z$15","v":2.6855955423968812E-2},{"$f":"'Population 2016'!AA72/'Population 2016'!AA$15","v":2.5161750758280043E-2},{"$f":"'Population 2016'!AB72/'Population 2016'!AB$15","v":8.353337866152331E-3},{"$f":"'Population 2016'!AC72/'Population 2016'!AC$15","v":2.637002488009808E-2},{"$f":"'Population 2016'!AD72/'Population 2016'!AD$15","v":1.3435662707651027E-2},{"$f":"'Population 2016'!AE72/'Population 2016'!AE$15","v":1.2684933674411245E-2},{"$f":"'Population 2016'!AF72/'Population 2016'!AF$15","v":3.7436229072357545E-2},{"$f":"'Population 2016'!AG72/'Population 2016'!AG$15","v":1.2684933674411245E-2},{"$f":"'Population 2016'!AH72/'Population 2016'!AH$15","v":2.2894749872831955E-2},{"$f":"'Population 2016'!AI72/'Population 2016'!AI$15","v":1.3669409479449513E-2},{"$f":"'Population 2016'!AJ72/'Population 2016'!AJ$15","v":9.1833907295253928E-3},{"$f":"'Population 2016'!AK72/'Population 2016'!AK$15","v":3.7392622536634662E-3},{"$f":"'Population 2016'!AL72/'Population 2016'!AL$15","v":3.4025953962613938E-2},{"$f":"'Population 2016'!AM72/'Population 2016'!AM$15","v":2.3847550192042506E-2},{"$f":"'Population 2016'!AN72/'Population 2016'!AN$15","v":0},{"$f":"'Population 2016'!AO72/'Population 2016'!AO$15","v":0},{"$f":"'Population 2016'!AP72/'Population 2016'!AP$15","v":1.2562218535197914E-2},{"$f":"'Population 2016'!AQ72/'Population 2016'!AQ$15","v":2.3585170753638935E-2},{"$f":"'Population 2016'!AR72/'Population 2016'!AR$15","v":2.0914639603357855E-2},{"$f":"'Population 2016'!AS72/'Population 2016'!AS$15","v":1.226346673699479E-2},{"$f":"'Population 2016'!AT72/'Population 2016'!AT$15","v":0},{"$f":"'Population 2016'!AU72/'Population 2016'!AU$15","v":0},{"$f":"'Population 2016'!AV72/'Population 2016'!AV$15","v":2.0307513780098638E-2},{"$f":"'Population 2016'!AW72/'Population 2016'!AW$15","v":2.1590787930482993E-2},{"$f":"'Population 2016'!AX72/'Population 2016'!AX$15","v":1.7405886774995664E-2},{"$f":"'Population 2016'!AY72/'Population 2016'!AY$15","v":2.1071765920523691E-2},{"$f":"'Population 2016'!AZ72/'Population 2016'!AZ$15","v":1.9549392640228654E-2},{"$f":"'Population 2016'!BA72/'Population 2016'!BA$15","v":2.6547333921593343E-2},{"$f":"'Population 2016'!BB72/'Population 2016'!BB$15","v":1.6054762981540106E-2},{"$f":"'Population 2016'!BC72/'Population 2016'!BC$15","v":0},70]
[null,"Female 65-69",0,0,0,0,0,0,0,0,0,0,0,0,0,0,0,0,0,0,0,0,0,0,0,0,0,0,0,0,0,0,0,0,0,0,0,0,0,0,0,0,0,0,0,0,0,0,0,0,0,0,0,0,0,71]
[null,"Female 70-74",0,0,0,0,0,0,0,0,0,0,0,0,0,0,0,0,0,0,0,0,0,0,0,0,0,0,0,0,0,0,0,0,0,0,0,0,0,0,0,0,0,0,0,0,0,0,0,0,0,0,0,0,0,72]
[null,"Female 75-79",0,0,0,0,0,0,0,0,0,0,0,0,0,0,0,0,0,0,0,0,0,0,0,0,0,0,0,0,0,0,0,0,0,0,0,0,0,0,0,0,0,0,0,0,0,0,0,0,0,0,0,0,0,73]
[null,"Female 80-84",0,0,0,0,0,0,0,0,0,0,0,0,0,0,0,0,0,0,0,0,0,0,0,0,0,0,0,0,0,0,0,0,0,0,0,0,0,0,0,0,0,0,0,0,0,0,0,0,0,0,0,0,0,74]
[null,"Female 85-89",0,0,0,0,0,0,0,0,0,0,0,0,0,0,0,0,0,0,0,0,0,0,0,0,0,0,0,0,0,0,0,0,0,0,0,0,0,0,0,0,0,0,0,0,0,0,0,0,0,0,0,0,0,75]
[null,"Female 90+",0,0,0,0,0,0,0,0,0,0,0,0,0,0,0,0,0,0,0,0,0,0,0,0,0,0,0,0,0,0,0,0,0,0,0,0,0,0,0,0,0,0,0,0,0,0,0,0,0,0,0,0,0,76]
[null,"Male 0-4",0,0,0,0,0,0,0,0,0,0,0,0,0,0,0,0,0,0,0,0,0,0,0,0,0,0,0,0,0,0,0,0,0,0,0,0,0,0,0,0,0,0,0,0,0,0,0,0,0,0,0,0,0,77]
[null,"Male 5-9",0,0,0,0,0,0,0,0,0,0,0,0,0,0,0,0,0,0,0,0,0,0,0,0,0,0,0,0,0,0,0,0,0,0,0,0,0,0,0,0,0,0,0,0,0,0,0,0,0,0,0,0,0,78]
[null,"Male 10-15",0,0,0,0,0,0,0,0,0,0,0,0,0,0,0,0,0,0,0,0,0,0,0,0,0,0,0,0,0,0,0,0,0,0,0,0,0,0,0,0,0,0,0,0,0,0,0,0,0,0,0,0,0,79]
[null,"Male 16-19",{"$f":"'Population 2016'!C82/'Population 2016'!C$15","v":8.1548777849881036E-3},{"$f":"'Population 2016'!D82/'Population 2016'!D$15","v":7.4953355208132282E-3},{"$f":"'Population 2016'!E82/'Population 2016'!E$15","v":5.5827374231589514E-3},{"$f":"'Population 2016'!F82/'Population 2016'!F$15","v":1.3504426762299675E-2},{"$f":"'Population 2016'!G82/'Population 2016'!G$15","v":1.394219472076447E-2},{"$f":"'Population 2016'!H82/'Population 2016'!H$15","v":2.1508498250129474E-2},{"$f":"'Population 2016'!I82/'Population 2016'!I$15","v":1.1670073185204721E-2},{"$f":"'Population 2016'!J82/'Population 2016'!J$15","v":2.055808993423781E-2},{"$f":"'Population 2016'!K82/'Population 2016'!K$15","v":2.0771333130883692E-2},{"$f":"'Population 2016'!L82/'Population 2016'!L$15","v":8.9795669038819827E-3},{"$f":"'Population 2016'!M82/'Population 2016'!M$15","v":8.9795669038819827E-3},{"$f":"'Population 2016'!N82/'Population 2016'!N$15","v":2.1350691025781278E-2},{"$f":"'Population 2016'!O82/'Population 2016'!O$15","v":2.1061593959355605E-2},{"$f":"'Population 2016'!P82/'Population 2016'!P$15","v":9.2877142662022814E-3},{"$f":"'Population 2016'!Q82/'Population 2016'!Q$15","v":4.4028618602091358E-3},{"$f":"'Population 2016'!R82/'Population 2016'!R$15","v":1.737554631702377E-2},{"$f":"'Population 2016'!S82/'Population 2016'!S$15","v":1.4888625262613744E-2},{"$f":"'Population 2016'!T82/'Population 2016'!T$15","v":1.4981983690498767E-2},{"$f":"'Population 2016'!U82/'Population 2016'!U$15","v":0},{"$f":"'Population 2016'!V82/'Population 2016'!V$15","v":1.1533336396636493E-2},{"$f":"'Population 2016'!W82/'Population 2016'!W$15","v":1.9281483723142104E-2},{"$f":"'Population 2016'!X82/'Population 2016'!X$15","v":1.9281483723142104E-2},{"$f":"'Population 2016'!Y82/'Population 2016'!Y$15","v":1.5475389472594586E-2},{"$f":"'Population 2016'!Z82/'Population 2016'!Z$15","v":2.4998620791114218E-2},{"$f":"'Population 2016'!AA82/'Population 2016'!AA$15","v":2.187195788063467E-2},{"$f":"'Population 2016'!AB82/'Population 2016'!AB$15","v":6.7853525191835379E-3},{"$f":"'Population 2016'!AC82/'Population 2016'!AC$15","v":2.345734994565726E-2},{"$f":"'Population 2016'!AD82/'Population 2016'!AD$15","v":1.1600836522905734E-2},{"$f":"'Population 2016'!AE82/'Population 2016'!AE$15","v":1.0812521427252829E-2},{"$f":"'Population 2016'!AF82/'Population 2016'!AF$15","v":2.7807717180426815E-2},{"$f":"'Population 2016'!AG82/'Population 2016'!AG$15","v":1.0812521427252829E-2},{"$f":"'Population 2016'!AH82/'Population 2016'!AH$15","v":1.8897396768806241E-2},{"$f":"'Population 2016'!AI82/'Population 2016'!AI$15","v":1.304596487069965E-2},{"$f":"'Population 2016'!AJ82/'Population 2016'!AJ$15","v":8.193801211257571E-3},{"$f":"'Population 2016'!AK82/'Population 2016'!AK$15","v":2.3244062657908036E-3},{"$f":"'Population 2016'!AL82/'Population 2016'!AL$15","v":2.6456048200216284E-2},{"$f":"'Population 2016'!AM82/'Population 2016'!AM$15","v":2.1268804973628239E-2},{"$f":"'Population 2016'!AN82/'Population 2016'!AN$15","v":0},{"$f":"'Population 2016'!AO82/'Population 2016'!AO$15","v":0},{"$f":"'Population 2016'!AP82/'Population 2016'!AP$15","v":1.0132732875088883E-2},{"$f":"'Population 2016'!AQ82/'Population 2016'!AQ$15","v":2.0007118637717539E-2},{"$f":"'Population 2016'!AR82/'Population 2016'!AR$15","v":1.8156043601997528E-2},{"$f":"'Population 2016'!AS82/'Population 2016'!AS$15","v":1.1670073185204721E-2},{"$f":"'Population 2016'!AT82/'Population 2016'!AT$15","v":0},{"$f":"'Population 2016'!AU82/'Population 2016'!AU$15","v":0},{"$f":"'Population 2016'!AV82/'Population 2016'!AV$15","v":1.3892918157496052E-2},{"$f":"'Population 2016'!AW82/'Population 2016'!AW$15","v":1.5651988484913105E-2},{"$f":"'Population 2016'!AX82/'Population 2016'!AX$15","v":2.0355056959463366E-2},{"$f":"'Population 2016'!AY82/'Population 2016'!AY$15","v":1.8490653076466843E-2},{"$f":"'Population 2016'!AZ82/'Population 2016'!AZ$15","v":1.7673722758127904E-2},{"$f":"'Population 2016'!BA82/'Population 2016'!BA$15","v":2.1152149249968485E-2},{"$f":"'Population 2016'!BB82/'Population 2016'!BB$15","v":1.5129712617686962E-2},{"$f":"'Population 2016'!BC82/'Population 2016'!BC$15","v":0},80]
[null,"Male 20-24",{"$f":"'Population 2016'!C83/'Population 2016'!C$15","v":1.3324680943110534E-2},{"$f":"'Population 2016'!D83/'Population 2016'!D$15","v":1.3639580518561411E-2},{"$f":"'Population 2016'!E83/'Population 2016'!E$15","v":1.4552753732279513E-2},{"$f":"'Population 2016'!F83/'Population 2016'!F$15","v":1.9051888378348088E-2},{"$f":"'Population 2016'!G83/'Population 2016'!G$15","v":2.1853215320748805E-2},{"$f":"'Population 2016'!H83/'Population 2016'!H$15","v":3.0147993534110705E-2},{"$f":"'Population 2016'!I83/'Population 2016'!I$15","v":1.3911782158633876E-2},{"$f":"'Population 2016'!J83/'Population 2016'!J$15","v":2.6275253273298181E-2},{"$f":"'Population 2016'!K83/'Population 2016'!K$15","v":2.5933798967506833E-2},{"$f":"'Population 2016'!L83/'Population 2016'!L$15","v":1.3408264866680919E-2},{"$f":"'Population 2016'!M83/'Population 2016'!M$15","v":1.3408264866680919E-2},{"$f":"'Population 2016'!N83/'Population 2016'!N$15","v":3.5244138132224774E-2},{"$f":"'Population 2016'!O83/'Population 2016'!O$15","v":2.91053303757478E-2},{"$f":"'Population 2016'!P83/'Population 2016'!P$15","v":1.1541350816089599E-2},{"$f":"'Population 2016'!Q83/'Population 2016'!Q$15","v":5.9538700155100819E-3},{"$f":"'Population 2016'!R83/'Population 2016'!R$15","v":2.068009807056817E-2},{"$f":"'Population 2016'!S83/'Population 2016'!S$15","v":2.036954807239855E-2},{"$f":"'Population 2016'!T83/'Population 2016'!T$15","v":2.1938974118398593E-2},{"$f":"'Population 2016'!U83/'Population 2016'!U$15","v":0},{"$f":"'Population 2016'!V83/'Population 2016'!V$15","v":1.6932408215779075E-2},{"$f":"'Population 2016'!W83/'Population 2016'!W$15","v":2.484760710734512E-2},{"$f":"'Population 2016'!X83/'Population 2016'!X$15","v":2.484760710734512E-2},{"$f":"'Population 2016'!Y83/'Population 2016'!Y$15","v":2.1013405103255525E-2},{"$f":"'Population 2016'!Z83/'Population 2016'!Z$15","v":3.9015060961032751E-2},{"$f":"'Population 2016'!AA83/'Population 2016'!AA$15","v":3.2598998976439322E-2},{"$f":"'Population 2016'!AB83/'Population 2016'!AB$15","v":1.2099851527051217E-2},{"$f":"'Population 2016'!AC83/'Population 2016'!AC$15","v":3.5998166982166464E-2},{"$f":"'Population 2016'!AD83/'Population 2016'!AD$15","v":1.6671270173223375E-2},{"$f":"'Population 2016'!AE83/'Population 2016'!AE$15","v":1.4926553970305125E-2},{"$f":"'Population 2016'!AF83/'Population 2016'!AF$15","v":3.9591866063088309E-2},{"$f":"'Population 2016'!AG83/'Population 2016'!AG$15","v":1.4926553970305125E-2},{"$f":"'Population 2016'!AH83/'Population 2016'!AH$15","v":2.6221375935754253E-2},{"$f":"'Population 2016'!AI83/'Population 2016'!AI$15","v":1.8739405305977338E-2},{"$f":"'Population 2016'!AJ83/'Population 2016'!AJ$15","v":1.3102165221865971E-2},{"$f":"'Population 2016'!AK83/'Population 2016'!AK$15","v":2.4254674077817079E-3},{"$f":"'Population 2016'!AL83/'Population 2016'!AL$15","v":3.6150162212266336E-2},{"$f":"'Population 2016'!AM83/'Population 2016'!AM$15","v":2.9192019134133704E-2},{"$f":"'Population 2016'!AN83/'Population 2016'!AN$15","v":0},{"$f":"'Population 2016'!AO83/'Population 2016'!AO$15","v":0},{"$f":"'Population 2016'!AP83/'Population 2016'!AP$15","v":1.8310026072529035E-2},{"$f":"'Population 2016'!AQ83/'Population 2016'!AQ$15","v":3.2708266986380921E-2},{"$f":"'Population 2016'!AR83/'Population 2016'!AR$15","v":2.6619413270328806E-2},{"$f":"'Population 2016'!AS83/'Population 2016'!AS$15","v":1.3911782158633876E-2},{"$f":"'Population 2016'!AT83/'Population 2016'!AT$15","v":0},{"$f":"'Population 2016'!AU83/'Population 2016'!AU$15","v":0},{"$f":"'Population 2016'!AV83/'Population 2016'!AV$15","v":2.1629113883247914E-2},{"$f":"'Population 2016'!AW83/'Population 2016'!AW$15","v":2.2155880157799339E-2},{"$f":"'Population 2016'!AX83/'Population 2016'!AX$15","v":2.6600358526571444E-2},{"$f":"'Population 2016'!AY83/'Population 2016'!AY$15","v":2.6805131472003162E-2},{"$f":"'Population 2016'!AZ83/'Population 2016'!AZ$15","v":2.8827259735619865E-2},{"$f":"'Population 2016'!BA83/'Population 2016'!BA$15","v":2.9875204840539519E-2},{"$f":"'Population 2016'!BB83/'Population 2016'!BB$15","v":2.0330551330016856E-2},{"$f":"'Population 2016'!BC83/'Population 2016'!BC$15","v":0},81]
[null,"Male 25-29",{"$f":"'Population 2016'!C84/'Population 2016'!C$15","v":2.2366428725935538E-2},{"$f":"'Population 2016'!D84/'Population 2016'!D$15","v":2.0861481052563854E-2},{"$f":"'Population 2016'!E84/'Population 2016'!E$15","v":1.6497302722368587E-2},{"$f":"'Population 2016'!F84/'Population 2016'!F$15","v":1.7594979267062646E-2},{"$f":"'Population 2016'!G84/'Population 2016'!G$15","v":1.762356074253936E-2},{"$f":"'Population 2016'!H84/'Population 2016'!H$15","v":2.9025879251086802E-2},{"$f":"'Population 2016'!I84/'Population 2016'!I$15","v":1.0417353464759017E-2},{"$f":"'Population 2016'!J84/'Population 2016'!J$15","v":2.5623555897861246E-2},{"$f":"'Population 2016'!K84/'Population 2016'!K$15","v":2.1014272699665958E-2},{"$f":"'Population 2016'!L84/'Population 2016'!L$15","v":1.5149201307229467E-2},{"$f":"'Population 2016'!M84/'Population 2016'!M$15","v":1.5149201307229467E-2},{"$f":"'Population 2016'!N84/'Population 2016'!N$15","v":4.9502242643036869E-2},{"$f":"'Population 2016'!O84/'Population 2016'!O$15","v":2.872442920839775E-2},{"$f":"'Population 2016'!P84/'Population 2016'!P$15","v":1.1131598716110087E-2},{"$f":"'Population 2016'!Q84/'Population 2016'!Q$15","v":5.2534147195677193E-3},{"$f":"'Population 2016'!R84/'Population 2016'!R$15","v":2.0893294957893615E-2},{"$f":"'Population 2016'!S84/'Population 2016'!S$15","v":2.4220111739248578E-2},{"$f":"'Population 2016'!T84/'Population 2016'!T$15","v":3.3287751903939636E-2},{"$f":"'Population 2016'!U84/'Population 2016'!U$15","v":0},{"$f":"'Population 2016'!V84/'Population 2016'!V$15","v":1.9115011717134586E-2},{"$f":"'Population 2016'!W84/'Population 2016'!W$15","v":2.6382344040465175E-2},{"$f":"'Population 2016'!X84/'Population 2016'!X$15","v":2.6382344040465175E-2},{"$f":"'Population 2016'!Y84/'Population 2016'!Y$15","v":2.1957973189793489E-2},{"$f":"'Population 2016'!Z84/'Population 2016'!Z$15","v":4.9743467147244341E-2},{"$f":"'Population 2016'!AA84/'Population 2016'!AA$15","v":3.7242583880327917E-2},{"$f":"'Population 2016'!AB84/'Population 2016'!AB$15","v":1.8163653267098671E-2},{"$f":"'Population 2016'!AC84/'Population 2016'!AC$15","v":4.3735709538650525E-2},{"$f":"'Population 2016'!AD84/'Population 2016'!AD$15","v":1.6217495955490668E-2},{"$f":"'Population 2016'!AE84/'Population 2016'!AE$15","v":1.5744086078219362E-2},{"$f":"'Population 2016'!AF84/'Population 2016'!AF$15","v":3.9915211611697921E-2},{"$f":"'Population 2016'!AG84/'Population 2016'!AG$15","v":1.5744086078219362E-2},{"$f":"'Population 2016'!AH84/'Population 2016'!AH$15","v":2.5059982804179214E-2},{"$f":"'Population 2016'!AI84/'Population 2016'!AI$15","v":2.4267967828197214E-2},{"$f":"'Population 2016'!AJ84/'Population 2016'!AJ$15","v":1.0093813086331789E-2},{"$f":"'Population 2016'!AK84/'Population 2016'!AK$15","v":1.2127337038908539E-3},{"$f":"'Population 2016'!AL84/'Population 2016'!AL$15","v":3.2963849837787731E-2},{"$f":"'Population 2016'!AM84/'Population 2016'!AM$15","v":2.784421574203199E-2},{"$f":"'Population 2016'!AN84/'Population 2016'!AN$15","v":0},{"$f":"'Population 2016'!AO84/'Population 2016'!AO$15","v":0},{"$f":"'Population 2016'!AP84/'Population 2016'!AP$15","v":2.6250296278739038E-2},{"$f":"'Population 2016'!AQ84/'Population 2016'!AQ$15","v":3.8665442760532777E-2},{"$f":"'Population 2016'!AR84/'Population 2016'!AR$15","v":3.049991945443806E-2},{"$f":"'Population 2016'!AS84/'Population 2016'!AS$15","v":1.0417353464759017E-2},{"$f":"'Population 2016'!AT84/'Population 2016'!AT$15","v":0},{"$f":"'Population 2016'!AU84/'Population 2016'!AU$15","v":0},{"$f":"'Population 2016'!AV84/'Population 2016'!AV$15","v":2.288624568868259E-2},{"$f":"'Population 2016'!AW84/'Population 2016'!AW$15","v":2.124960017059388E-2},{"$f":"'Population 2016'!AX84/'Population 2016'!AX$15","v":3.0012143641936044E-2},{"$f":"'Population 2016'!AY84/'Population 2016'!AY$15","v":3.2472596270017355E-2},{"$f":"'Population 2016'!AZ84/'Population 2016'!AZ$15","v":3.8763844230082174E-2},{"$f":"'Population 2016'!BA84/'Population 2016'!BA$15","v":2.9497037690659273E-2},{"$f":"'Population 2016'!BB84/'Population 2016'!BB$15","v":2.086502487357645E-2},{"$f":"'Population 2016'!BC84/'Population 2016'!BC$15","v":0},82]
[null,"Male 30-34",{"$f":"'Population 2016'!C85/'Population 2016'!C$15","v":1.8754055807916937E-2},{"$f":"'Population 2016'!D85/'Population 2016'!D$15","v":1.833622852731133E-2},{"$f":"'Population 2016'!E85/'Population 2016'!E$15","v":1.7124576590139256E-2},{"$f":"'Population 2016'!F85/'Population 2016'!F$15","v":1.445702118121708E-2},{"$f":"'Population 2016'!G85/'Population 2016'!G$15","v":1.3785540847497455E-2},{"$f":"'Population 2016'!H85/'Population 2016'!H$15","v":2.5588913824761843E-2},{"$f":"'Population 2016'!I85/'Population 2016'!I$15","v":1.1472275334608031E-2},{"$f":"'Population 2016'!J85/'Population 2016'!J$15","v":2.2483559452574204E-2},{"$f":"'Population 2016'!K85/'Population 2016'!K$15","v":2.2046765866990586E-2},{"$f":"'Population 2016'!L85/'Population 2016'!L$15","v":1.0567789621575395E-2},{"$f":"'Population 2016'!M85/'Population 2016'!M$15","v":1.0567789621575395E-2},{"$f":"'Population 2016'!N85/'Population 2016'!N$15","v":3.8836013565255442E-2},{"$f":"'Population 2016'!O85/'Population 2016'!O$15","v":2.5005041338979635E-2},{"$f":"'Population 2016'!P85/'Population 2016'!P$15","v":9.1511302328757763E-3},{"$f":"'Population 2016'!Q85/'Population 2016'!Q$15","v":5.5035773252614202E-3},{"$f":"'Population 2016'!R85/'Population 2016'!R$15","v":1.9614113633940944E-2},{"$f":"'Population 2016'!S85/'Population 2016'!S$15","v":2.193363245342541E-2},{"$f":"'Population 2016'!T85/'Population 2016'!T$15","v":2.87562258576462E-2},{"$f":"'Population 2016'!U85/'Population 2016'!U$15","v":0},{"$f":"'Population 2016'!V85/'Population 2016'!V$15","v":1.7552727105638009E-2},{"$f":"'Population 2016'!W85/'Population 2016'!W$15","v":2.4717911028489907E-2},{"$f":"'Population 2016'!X85/'Population 2016'!X$15","v":2.4717911028489907E-2},{"$f":"'Population 2016'!Y85/'Population 2016'!Y$15","v":1.9706536928730398E-2},{"$f":"'Population 2016'!Z85/'Population 2016'!Z$15","v":4.3557255558211813E-2},{"$f":"'Population 2016'!AA85/'Population 2016'!AA$15","v":3.382758480372363E-2},{"$f":"'Population 2016'!AB85/'Population 2016'!AB$15","v":1.5943497023603037E-2},{"$f":"'Population 2016'!AC85/'Population 2016'!AC$15","v":3.908838552875607E-2},{"$f":"'Population 2016'!AD85/'Population 2016'!AD$15","v":1.5704533796314563E-2},{"$f":"'Population 2016'!AE85/'Population 2016'!AE$15","v":1.6350642158284766E-2},{"$f":"'Population 2016'!AF85/'Population 2016'!AF$15","v":3.7579938205072931E-2},{"$f":"'Population 2016'!AG85/'Population 2016'!AG$15","v":1.6350642158284766E-2},{"$f":"'Population 2016'!AH85/'Population 2016'!AH$15","v":2.3957109481559508E-2},{"$f":"'Population 2016'!AI85/'Population 2016'!AI$15","v":2.1423823827949898E-2},{"$f":"'Population 2016'!AJ85/'Population 2016'!AJ$15","v":1.1122986185330325E-2},{"$f":"'Population 2016'!AK85/'Population 2016'!AK$15","v":9.095502779181405E-4},{"$f":"'Population 2016'!AL85/'Population 2016'!AL$15","v":2.9932025336011123E-2},{"$f":"'Population 2016'!AM85/'Population 2016'!AM$15","v":2.6254898447299328E-2},{"$f":"'Population 2016'!AN85/'Population 2016'!AN$15","v":0},{"$f":"'Population 2016'!AO85/'Population 2016'!AO$15","v":0},{"$f":"'Population 2016'!AP85/'Population 2016'!AP$15","v":1.8369281820336574E-2},{"$f":"'Population 2016'!AQ85/'Population 2016'!AQ$15","v":3.6361252130908003E-2},{"$f":"'Population 2016'!AR85/'Population 2016'!AR$15","v":2.7210796685102651E-2},{"$f":"'Population 2016'!AS85/'Population 2016'!AS$15","v":1.1472275334608031E-2},{"$f":"'Population 2016'!AT85/'Population 2016'!AT$15","v":0},{"$f":"'Population 2016'!AU85/'Population 2016'!AU$15","v":0},{"$f":"'Population 2016'!AV85/'Population 2016'!AV$15","v":1.9179318570093157E-2},{"$f":"'Population 2016'!AW85/'Population 2016'!AW$15","v":2.0812453353235952E-2},{"$f":"'Population 2016'!AX85/'Population 2016'!AX$15","v":2.2899439079396289E-2},{"$f":"'Population 2016'!AY85/'Population 2016'!AY$15","v":2.7376271335368935E-2},{"$f":"'Population 2016'!AZ85/'Population 2016'!AZ$15","v":3.0122365130403717E-2},{"$f":"'Population 2016'!BA85/'Population 2016'!BA$15","v":2.8841547964200177E-2},{"$f":"'Population 2016'!BB85/'Population 2016'!BB$15","v":1.8213213830530775E-2},{"$f":"'Population 2016'!BC85/'Population 2016'!BC$15","v":0},83]
[null,"Male 35-39",{"$f":"'Population 2016'!C86/'Population 2016'!C$15","v":1.7867185810080035E-2},{"$f":"'Population 2016'!D86/'Population 2016'!D$15","v":1.6615196551502284E-2},{"$f":"'Population 2016'!E86/'Population 2016'!E$15","v":1.2984569062852842E-2},{"$f":"'Population 2016'!F86/'Population 2016'!F$15","v":1.4344951249579737E-2},{"$f":"'Population 2016'!G86/'Population 2016'!G$15","v":1.1749040495026239E-2},{"$f":"'Population 2016'!H86/'Population 2016'!H$15","v":2.2866021123997552E-2},{"$f":"'Population 2016'!I86/'Population 2016'!I$15","v":1.2329399353860356E-2},{"$f":"'Population 2016'!J86/'Population 2016'!J$15","v":1.9462053439184786E-2},{"$f":"'Population 2016'!K86/'Population 2016'!K$15","v":2.1986030974795019E-2},{"$f":"'Population 2016'!L86/'Population 2016'!L$15","v":9.1017378821660923E-3},{"$f":"'Population 2016'!M86/'Population 2016'!M$15","v":9.1017378821660923E-3},{"$f":"'Population 2016'!N86/'Population 2016'!N$15","v":2.7950990044852859E-2},{"$f":"'Population 2016'!O86/'Population 2016'!O$15","v":2.1240841567520333E-2},{"$f":"'Population 2016'!P86/'Population 2016'!P$15","v":9.2877142662022814E-3},{"$f":"'Population 2016'!Q86/'Population 2016'!Q$15","v":4.3027968179316558E-3},{"$f":"'Population 2016'!R86/'Population 2016'!R$15","v":1.7588743204349215E-2},{"$f":"'Population 2016'!S86/'Population 2016'!S$15","v":2.027344966763207E-2},{"$f":"'Population 2016'!T86/'Population 2016'!T$15","v":2.6151097447772664E-2},{"$f":"'Population 2016'!U86/'Population 2016'!U$15","v":0},{"$f":"'Population 2016'!V86/'Population 2016'!V$15","v":1.656481183660341E-2},{"$f":"'Population 2016'!W86/'Population 2016'!W$15","v":2.2945397950801954E-2},{"$f":"'Population 2016'!X86/'Population 2016'!X$15","v":2.2945397950801954E-2},{"$f":"'Population 2016'!Y86/'Population 2016'!Y$15","v":1.7830340044511155E-2},{"$f":"'Population 2016'!Z86/'Population 2016'!Z$15","v":3.5528420897773035E-2},{"$f":"'Population 2016'!AA86/'Population 2016'!AA$15","v":2.8971149361604893E-2},{"$f":"'Population 2016'!AB86/'Population 2016'!AB$15","v":1.4694659136636741E-2},{"$f":"'Population 2016'!AC86/'Population 2016'!AC$15","v":3.204902123085708E-2},{"$f":"'Population 2016'!AD86/'Population 2016'!AD$15","v":1.2074340054452907E-2},{"$f":"'Population 2016'!AE86/'Population 2016'!AE$15","v":1.2183865608270261E-2},{"$f":"'Population 2016'!AF86/'Population 2016'!AF$15","v":2.9855572321621039E-2},{"$f":"'Population 2016'!AG86/'Population 2016'!AG$15","v":1.2183865608270261E-2},{"$f":"'Population 2016'!AH86/'Population 2016'!AH$15","v":2.3196351965140201E-2},{"$f":"'Population 2016'!AI86/'Population 2016'!AI$15","v":1.9620471653880041E-2},{"$f":"'Population 2016'!AJ86/'Population 2016'!AJ$15","v":9.4208922139096696E-3},{"$f":"'Population 2016'!AK86/'Population 2016'!AK$15","v":2.6275896917635167E-3},{"$f":"'Population 2016'!AL86/'Population 2016'!AL$15","v":2.6726401977444771E-2},{"$f":"'Population 2016'!AM86/'Population 2016'!AM$15","v":2.472790732098756E-2},{"$f":"'Population 2016'!AN86/'Population 2016'!AN$15","v":0},{"$f":"'Population 2016'!AO86/'Population 2016'!AO$15","v":0},{"$f":"'Population 2016'!AP86/'Population 2016'!AP$15","v":1.8073003081298885E-2},{"$f":"'Population 2016'!AQ86/'Population 2016'!AQ$15","v":3.0160544013787677E-2},{"$f":"'Population 2016'!AR86/'Population 2016'!AR$15","v":2.3615242800121714E-2},{"$f":"'Population 2016'!AS86/'Population 2016'!AS$15","v":1.2329399353860356E-2},{"$f":"'Population 2016'!AT86/'Population 2016'!AT$15","v":0},{"$f":"'Population 2016'!AU86/'Population 2016'!AU$15","v":0},{"$f":"'Population 2016'!AV86/'Population 2016'!AV$15","v":1.8760274634948264E-2},{"$f":"'Population 2016'!AW86/'Population 2016'!AW$15","v":2.1100330525642391E-2},{"$f":"'Population 2016'!AX86/'Population 2016'!AX$15","v":1.7058925576822991E-2},{"$f":"'Population 2016'!AY86/'Population 2016'!AY$15","v":2.3158623113590932E-2},{"$f":"'Population 2016'!AZ86/'Population 2016'!AZ$15","v":2.3378885316184352E-2},{"$f":"'Population 2016'!BA86/'Population 2016'!BA$15","v":2.4101853019034412E-2},{"$f":"'Population 2016'!BB86/'Population 2016'!BB$15","v":1.7760966985980349E-2},{"$f":"'Population 2016'!BC86/'Population 2016'!BC$15","v":0},84]
[null,"Male 40-44",{"$f":"'Population 2016'!C87/'Population 2016'!C$15","v":1.4600908500973394E-2},{"$f":"'Population 2016'!D87/'Population 2016'!D$15","v":1.4266872547127324E-2},{"$f":"'Population 2016'!E87/'Population 2016'!E$15","v":1.3298205996738175E-2},{"$f":"'Population 2016'!F87/'Population 2016'!F$15","v":1.4064776420486383E-2},{"$f":"'Population 2016'!G87/'Population 2016'!G$15","v":1.308059841779588E-2},{"$f":"'Population 2016'!H87/'Population 2016'!H$15","v":2.4969004535538849E-2},{"$f":"'Population 2016'!I87/'Population 2016'!I$15","v":1.2527197204457045E-2},{"$f":"'Population 2016'!J87/'Population 2016'!J$15","v":1.8751110847799041E-2},{"$f":"'Population 2016'!K87/'Population 2016'!K$15","v":2.1378682052839357E-2},{"$f":"'Population 2016'!L87/'Population 2016'!L$15","v":1.0415075898720259E-2},{"$f":"'Population 2016'!M87/'Population 2016'!M$15","v":1.0415075898720259E-2},{"$f":"'Population 2016'!N87/'Population 2016'!N$15","v":2.3629799803085001E-2},{"$f":"'Population 2016'!O87/'Population 2016'!O$15","v":2.516188299612377E-2},{"$f":"'Population 2016'!P87/'Population 2016'!P$15","v":9.2877142662022814E-3},{"$f":"'Population 2016'!Q87/'Population 2016'!Q$15","v":6.6543253114524437E-3},{"$f":"'Population 2016'!R87/'Population 2016'!R$15","v":1.8015136979000108E-2},{"$f":"'Population 2016'!S87/'Population 2016'!S$15","v":1.9713427929510162E-2},{"$f":"'Population 2016'!T87/'Population 2016'!T$15","v":2.365576372184016E-2},{"$f":"'Population 2016'!U87/'Population 2016'!U$15","v":0},{"$f":"'Population 2016'!V87/'Population 2016'!V$15","v":1.7322979368653218E-2},{"$f":"'Population 2016'!W87/'Population 2016'!W$15","v":2.2718429812805325E-2},{"$f":"'Population 2016'!X87/'Population 2016'!X$15","v":2.2718429812805325E-2},{"$f":"'Population 2016'!Y87/'Population 2016'!Y$15","v":1.7946793644221314E-2},{"$f":"'Population 2016'!Z87/'Population 2016'!Z$15","v":3.1924088342926496E-2},{"$f":"'Population 2016'!AA87/'Population 2016'!AA$15","v":2.7150964244239732E-2},{"$f":"'Population 2016'!AB87/'Population 2016'!AB$15","v":1.2724270470534364E-2},{"$f":"'Population 2016'!AC87/'Population 2016'!AC$15","v":2.9090760774378058E-2},{"$f":"'Population 2016'!AD87/'Population 2016'!AD$15","v":1.3810519670125873E-2},{"$f":"'Population 2016'!AE87/'Population 2016'!AE$15","v":1.4056277855428677E-2},{"$f":"'Population 2016'!AF87/'Population 2016'!AF$15","v":3.0681899834734499E-2},{"$f":"'Population 2016'!AG87/'Population 2016'!AG$15","v":1.4056277855428677E-2},{"$f":"'Population 2016'!AH87/'Population 2016'!AH$15","v":2.3511458628745832E-2},{"$f":"'Population 2016'!AI87/'Population 2016'!AI$15","v":1.8842454001638476E-2},{"$f":"'Population 2016'!AJ87/'Population 2016'!AJ$15","v":1.0568816055100344E-2},{"$f":"'Population 2016'!AK87/'Population 2016'!AK$15","v":3.0318342597271349E-3},{"$f":"'Population 2016'!AL87/'Population 2016'!AL$15","v":2.8792677274833926E-2},{"$f":"'Population 2016'!AM87/'Population 2016'!AM$15","v":2.4930467368355445E-2},{"$f":"'Population 2016'!AN87/'Population 2016'!AN$15","v":0},{"$f":"'Population 2016'!AO87/'Population 2016'!AO$15","v":0},{"$f":"'Population 2016'!AP87/'Population 2016'!AP$15","v":1.4932448447499408E-2},{"$f":"'Population 2016'!AQ87/'Population 2016'!AQ$15","v":2.6376426069200654E-2},{"$f":"'Population 2016'!AR87/'Population 2016'!AR$15","v":2.2640820490790959E-2},{"$f":"'Population 2016'!AS87/'Population 2016'!AS$15","v":1.2527197204457045E-2},{"$f":"'Population 2016'!AT87/'Population 2016'!AT$15","v":0},{"$f":"'Population 2016'!AU87/'Population 2016'!AU$15","v":0},{"$f":"'Population 2016'!AV87/'Population 2016'!AV$15","v":1.8308996550946071E-2},{"$f":"'Population 2016'!AW87/'Population 2016'!AW$15","v":2.1569463695489923E-2},{"$f":"'Population 2016'!AX87/'Population 2016'!AX$15","v":1.6249349447753428E-2},{"$f":"'Population 2016'!AY87/'Population 2016'!AY$15","v":2.1423236605671858E-2},{"$f":"'Population 2016'!AZ87/'Population 2016'!AZ$15","v":2.0085298320828868E-2},{"$f":"'Population 2016'!BA87/'Population 2016'!BA$15","v":2.213538383965713E-2},{"$f":"'Population 2016'!BB87/'Population 2016'!BB$15","v":1.8233770505283065E-2},{"$f":"'Population 2016'!BC87/'Population 2016'!BC$15","v":0},85]
[null,"Male 45-49",{"$f":"'Population 2016'!C88/'Population 2016'!C$15","v":1.354099069868051E-2},{"$f":"'Population 2016'!D88/'Population 2016'!D$15","v":1.3108794955928715E-2},{"$f":"'Population 2016'!E88/'Population 2016'!E$15","v":1.1855476100865637E-2},{"$f":"'Population 2016'!F88/'Population 2016'!F$15","v":1.5521685531771825E-2},{"$f":"'Population 2016'!G88/'Population 2016'!G$15","v":1.5900368136602179E-2},{"$f":"'Population 2016'!H88/'Population 2016'!H$15","v":2.828041871341358E-2},{"$f":"'Population 2016'!I88/'Population 2016'!I$15","v":1.6615019450121976E-2},{"$f":"'Population 2016'!J88/'Population 2016'!J$15","v":2.3105634220036732E-2},{"$f":"'Population 2016'!K88/'Population 2016'!K$15","v":2.5812329183115702E-2},{"$f":"'Population 2016'!L88/'Population 2016'!L$15","v":1.2400354295837024E-2},{"$f":"'Population 2016'!M88/'Population 2016'!M$15","v":1.2400354295837024E-2},{"$f":"'Population 2016'!N88/'Population 2016'!N$15","v":2.9646646975166831E-2},{"$f":"'Population 2016'!O88/'Population 2016'!O$15","v":2.867961730635657E-2},{"$f":"'Population 2016'!P88/'Population 2016'!P$15","v":1.2634023082701631E-2},{"$f":"'Population 2016'!Q88/'Population 2016'!Q$15","v":4.7030569870415767E-3},{"$f":"'Population 2016'!R88/'Population 2016'!R$15","v":1.9507515190278223E-2},{"$f":"'Population 2016'!S88/'Population 2016'!S$15","v":2.1940259929616204E-2},{"$f":"'Population 2016'!T88/'Population 2016'!T$15","v":2.3006976953097707E-2},{"$f":"'Population 2016'!U88/'Population 2016'!U$15","v":0},{"$f":"'Population 2016'!V88/'Population 2016'!V$15","v":1.955153241740569E-2},{"$f":"'Population 2016'!W88/'Population 2016'!W$15","v":2.8479097315291167E-2},{"$f":"'Population 2016'!X88/'Population 2016'!X$15","v":2.8479097315291167E-2},{"$f":"'Population 2016'!Y88/'Population 2016'!Y$15","v":2.1103980125252317E-2},{"$f":"'Population 2016'!Z88/'Population 2016'!Z$15","v":3.4844333290424613E-2},{"$f":"'Population 2016'!AA88/'Population 2016'!AA$15","v":3.1088699201497465E-2},{"$f":"'Population 2016'!AB88/'Population 2016'!AB$15","v":1.1850083949657957E-2},{"$f":"'Population 2016'!AC88/'Population 2016'!AC$15","v":3.3171864615798026E-2},{"$f":"'Population 2016'!AD88/'Population 2016'!AD$15","v":1.4560233595075564E-2},{"$f":"'Population 2016'!AE88/'Population 2016'!AE$15","v":1.4109021862390886E-2},{"$f":"'Population 2016'!AF88/'Population 2016'!AF$15","v":4.0166702593949846E-2},{"$f":"'Population 2016'!AG88/'Population 2016'!AG$15","v":1.4109021862390886E-2},{"$f":"'Population 2016'!AH88/'Population 2016'!AH$15","v":2.7180200497868529E-2},{"$f":"'Population 2016'!AI88/'Population 2016'!AI$15","v":1.9239191479933842E-2},{"$f":"'Population 2016'!AJ88/'Population 2016'!AJ$15","v":1.2231326445790286E-2},{"$f":"'Population 2016'!AK88/'Population 2016'!AK$15","v":3.9413845376452756E-3},{"$f":"'Population 2016'!AL88/'Population 2016'!AL$15","v":3.3292136567279466E-2},{"$f":"'Population 2016'!AM88/'Population 2016'!AM$15","v":2.9503649976238149E-2},{"$f":"'Population 2016'!AN88/'Population 2016'!AN$15","v":0},{"$f":"'Population 2016'!AO88/'Population 2016'!AO$15","v":0},{"$f":"'Population 2016'!AP88/'Population 2016'!AP$15","v":1.5228727186537094E-2},{"$f":"'Population 2016'!AQ88/'Population 2016'!AQ$15","v":3.3963395215526125E-2},{"$f":"'Population 2016'!AR88/'Population 2016'!AR$15","v":2.5687232633481896E-2},{"$f":"'Population 2016'!AS88/'Population 2016'!AS$15","v":1.6615019450121976E-2},{"$f":"'Population 2016'!AT88/'Population 2016'!AT$15","v":0},{"$f":"'Population 2016'!AU88/'Population 2016'!AU$15","v":0},{"$f":"'Population 2016'!AV88/'Population 2016'!AV$15","v":1.9340489314379653E-2},{"$f":"'Population 2016'!AW88/'Population 2016'!AW$15","v":2.4000426484699862E-2},{"$f":"'Population 2016'!AX88/'Population 2016'!AX$15","v":2.0528537558549702E-2},{"$f":"'Population 2016'!AY88/'Population 2016'!AY$15","v":2.6332842738835315E-2},{"$f":"'Population 2016'!AZ88/'Population 2016'!AZ$15","v":2.4115755627009645E-2},{"$f":"'Population 2016'!BA88/'Population 2016'!BA$15","v":2.6547333921593343E-2},{"$f":"'Population 2016'!BB88/'Population 2016'!BB$15","v":2.1091148295851663E-2},{"$f":"'Population 2016'!BC88/'Population 2016'!BC$15","v":0},86]
[null,"Male 50-54",{"$f":"'Population 2016'!C89/'Population 2016'!C$15","v":1.3303049967553536E-2},{"$f":"'Population 2016'!D89/'Population 2016'!D$15","v":1.2417165283407321E-2},{"$f":"'Population 2016'!E89/'Population 2016'!E$15","v":9.8481997239994977E-3},{"$f":"'Population 2016'!F89/'Population 2016'!F$15","v":1.6362210019051887E-2},{"$f":"'Population 2016'!G89/'Population 2016'!G$15","v":2.0599984334612673E-2},{"$f":"'Population 2016'!H89/'Population 2016'!H$15","v":3.0446177749179994E-2},{"$f":"'Population 2016'!I89/'Population 2016'!I$15","v":1.7142480385046482E-2},{"$f":"'Population 2016'!J89/'Population 2016'!J$15","v":2.5505065465963622E-2},{"$f":"'Population 2016'!K89/'Population 2016'!K$15","v":2.7573641056787123E-2},{"$f":"'Population 2016'!L89/'Population 2016'!L$15","v":1.3347179377538865E-2},{"$f":"'Population 2016'!M89/'Population 2016'!M$15","v":1.3347179377538865E-2},{"$f":"'Population 2016'!N89/'Population 2016'!N$15","v":3.0357728913685593E-2},{"$f":"'Population 2016'!O89/'Population 2016'!O$15","v":3.0315251730859718E-2},{"$f":"'Population 2016'!P89/'Population 2016'!P$15","v":1.290719114935464E-2},{"$f":"'Population 2016'!Q89/'Population 2016'!Q$15","v":7.1546505228398463E-3},{"$f":"'Population 2016'!R89/'Population 2016'!R$15","v":2.5690224922716127E-2},{"$f":"'Population 2016'!S89/'Population 2016'!S$15","v":2.1638709762935176E-2},{"$f":"'Population 2016'!T89/'Population 2016'!T$15","v":2.385539041991476E-2},{"$f":"'Population 2016'!U89/'Population 2016'!U$15","v":0},{"$f":"'Population 2016'!V89/'Population 2016'!V$15","v":1.9712355833295041E-2},{"$f":"'Population 2016'!W89/'Population 2016'!W$15","v":2.6360728027322641E-2},{"$f":"'Population 2016'!X89/'Population 2016'!X$15","v":2.6360728027322641E-2},{"$f":"'Population 2016'!Y89/'Population 2016'!Y$15","v":2.2242637544640547E-2},{"$f":"'Population 2016'!Z89/'Population 2016'!Z$15","v":3.5686570183342835E-2},{"$f":"'Population 2016'!AA89/'Population 2016'!AA$15","v":3.2068437708350939E-2},{"$f":"'Population 2016'!AB89/'Population 2016'!AB$15","v":1.1059153287912637E-2},{"$f":"'Population 2016'!AC89/'Population 2016'!AC$15","v":3.4935304547275788E-2},{"$f":"'Population 2016'!AD89/'Population 2016'!AD$15","v":1.6079390758789409E-2},{"$f":"'Population 2016'!AE89/'Population 2016'!AE$15","v":1.4557345921569662E-2},{"$f":"'Population 2016'!AF89/'Population 2016'!AF$15","v":4.6166558884817133E-2},{"$f":"'Population 2016'!AG89/'Population 2016'!AG$15","v":1.4557345921569662E-2},{"$f":"'Population 2016'!AH89/'Population 2016'!AH$15","v":2.6689534407396905E-2},{"$f":"'Population 2016'!AI89/'Population 2016'!AI$15","v":1.9738977653890346E-2},{"$f":"'Population 2016'!AJ89/'Population 2016'!AJ$15","v":1.2072992122867434E-2},{"$f":"'Population 2016'!AK89/'Population 2016'!AK$15","v":2.5265285497726125E-3},{"$f":"'Population 2016'!AL89/'Population 2016'!AL$15","v":3.6594314846284566E-2},{"$f":"'Population 2016'!AM89/'Population 2016'!AM$15","v":2.9488068434132927E-2},{"$f":"'Population 2016'!AN89/'Population 2016'!AN$15","v":0},{"$f":"'Population 2016'!AO89/'Population 2016'!AO$15","v":0},{"$f":"'Population 2016'!AP89/'Population 2016'!AP$15","v":1.7598957098838588E-2},{"$f":"'Population 2016'!AQ89/'Population 2016'!AQ$15","v":3.3719862872557654E-2},{"$f":"'Population 2016'!AR89/'Population 2016'!AR$15","v":2.6434695448280799E-2},{"$f":"'Population 2016'!AS89/'Population 2016'!AS$15","v":1.7142480385046482E-2},{"$f":"'Population 2016'!AT89/'Population 2016'!AT$15","v":0},{"$f":"'Population 2016'!AU89/'Population 2016'!AU$15","v":0},{"$f":"'Population 2016'!AV89/'Population 2016'!AV$15","v":2.0371982077813235E-2},{"$f":"'Population 2016'!AW89/'Population 2016'!AW$15","v":2.2859579912570635E-2},{"$f":"'Population 2016'!AX89/'Population 2016'!AX$15","v":2.3535534609379519E-2},{"$f":"'Population 2016'!AY89/'Population 2016'!AY$15","v":2.5772686334380422E-2},{"$f":"'Population 2016'!AZ89/'Population 2016'!AZ$15","v":2.5165237584851733E-2},{"$f":"'Population 2016'!BA89/'Population 2016'!BA$15","v":3.3858565485944785E-2},{"$f":"'Population 2016'!BB89/'Population 2016'!BB$15","v":2.0412778029026024E-2},{"$f":"'Population 2016'!BC89/'Population 2016'!BC$15","v":0},87]
[null,"Male 55-59",{"$f":"'Population 2016'!C90/'Population 2016'!C$15","v":1.2156608263032663E-2},{"$f":"'Population 2016'!D90/'Population 2016'!D$15","v":1.1966801775718973E-2},{"$f":"'Population 2016'!E90/'Population 2016'!E$15","v":1.141638439342617E-2},{"$f":"'Population 2016'!F90/'Population 2016'!F$15","v":1.3000112069931638E-2},{"$f":"'Population 2016'!G90/'Population 2016'!G$15","v":1.6683637502937259E-2},{"$f":"'Population 2016'!H90/'Population 2016'!H$15","v":2.9653635493337938E-2},{"$f":"'Population 2016'!I90/'Population 2016'!I$15","v":1.2988725522515988E-2},{"$f":"'Population 2016'!J90/'Population 2016'!J$15","v":2.4112802891166539E-2},{"$f":"'Population 2016'!K90/'Population 2016'!K$15","v":2.59945338597024E-2},{"$f":"'Population 2016'!L90/'Population 2016'!L$15","v":1.1881127638129563E-2},{"$f":"'Population 2016'!M90/'Population 2016'!M$15","v":1.1881127638129563E-2},{"$f":"'Population 2016'!N90/'Population 2016'!N$15","v":2.9263756700579804E-2},{"$f":"'Population 2016'!O90/'Population 2016'!O$15","v":2.8321122090027111E-2},{"$f":"'Population 2016'!P90/'Population 2016'!P$15","v":1.1814518882742608E-2},{"$f":"'Population 2016'!Q90/'Population 2016'!Q$15","v":5.6036423675389002E-3},{"$f":"'Population 2016'!R90/'Population 2016'!R$15","v":2.0573499626905446E-2},{"$f":"'Population 2016'!S90/'Population 2016'!S$15","v":1.8855169762802628E-2},{"$f":"'Population 2016'!T90/'Population 2016'!T$15","v":1.8804834958627368E-2},{"$f":"'Population 2016'!U90/'Population 2016'!U$15","v":0},{"$f":"'Population 2016'!V90/'Population 2016'!V$15","v":1.6702660478794283E-2},{"$f":"'Population 2016'!W90/'Population 2016'!W$15","v":2.6079719856469674E-2},{"$f":"'Population 2016'!X90/'Population 2016'!X$15","v":2.6079719856469674E-2},{"$f":"'Population 2016'!Y90/'Population 2016'!Y$15","v":1.9939444128150716E-2},{"$f":"'Population 2016'!Z90/'Population 2016'!Z$15","v":3.1225289174129721E-2},{"$f":"'Population 2016'!AA90/'Population 2016'!AA$15","v":2.8584575222319258E-2},{"$f":"'Population 2016'!AB90/'Population 2016'!AB$15","v":1.0698377898344597E-2},{"$f":"'Population 2016'!AC90/'Population 2016'!AC$15","v":3.0611877667652755E-2},{"$f":"'Population 2016'!AD90/'Population 2016'!AD$15","v":1.4737797419405754E-2},{"$f":"'Population 2016'!AE90/'Population 2016'!AE$15","v":1.4082649858909781E-2},{"$f":"'Population 2016'!AF90/'Population 2016'!AF$15","v":4.0418193576201765E-2},{"$f":"'Population 2016'!AG90/'Population 2016'!AG$15","v":1.4082649858909781E-2},{"$f":"'Population 2016'!AH90/'Population 2016'!AH$15","v":2.4780888330699941E-2},{"$f":"'Population 2016'!AI90/'Population 2016'!AI$15","v":1.5869499131814738E-2},{"$f":"'Population 2016'!AJ90/'Population 2016'!AJ$15","v":1.064798321656177E-2},{"$f":"'Population 2016'!AK90/'Population 2016'!AK$15","v":2.7286508337544214E-3},{"$f":"'Population 2016'!AL90/'Population 2016'!AL$15","v":3.5918430403213346E-2},{"$f":"'Population 2016'!AM90/'Population 2016'!AM$15","v":2.6387341555193719E-2},{"$f":"'Population 2016'!AN90/'Population 2016'!AN$15","v":0},{"$f":"'Population 2016'!AO90/'Population 2016'!AO$15","v":0},{"$f":"'Population 2016'!AP90/'Population 2016'!AP$15","v":1.3806589239156198E-2},{"$f":"'Population 2016'!AQ90/'Population 2016'!AQ$15","v":3.1378205728630038E-2},{"$f":"'Population 2016'!AR90/'Population 2016'!AR$15","v":2.3806404267124881E-2},{"$f":"'Population 2016'!AS90/'Population 2016'!AS$15","v":1.2988725522515988E-2},{"$f":"'Population 2016'!AT90/'Population 2016'!AT$15","v":0},{"$f":"'Population 2016'!AU90/'Population 2016'!AU$15","v":0},{"$f":"'Population 2016'!AV90/'Population 2016'!AV$15","v":2.1113367501531123E-2},{"$f":"'Population 2016'!AW90/'Population 2016'!AW$15","v":2.2582364857660731E-2},{"$f":"'Population 2016'!AX90/'Population 2016'!AX$15","v":2.2321170415775169E-2},{"$f":"'Population 2016'!AY90/'Population 2016'!AY$15","v":2.4619423148737999E-2},{"$f":"'Population 2016'!AZ90/'Population 2016'!AZ$15","v":2.3110932475884246E-2},{"$f":"'Population 2016'!BA90/'Population 2016'!BA$15","v":2.7807891087860834E-2},{"$f":"'Population 2016'!BB90/'Population 2016'!BB$15","v":1.6753689923118036E-2},{"$f":"'Population 2016'!BC90/'Population 2016'!BC$15","v":0},88]
[null,"Male 60-64",{"$f":"'Population 2016'!C91/'Population 2016'!C$15","v":1.0945273631840797E-2},{"$f":"'Population 2016'!D91/'Population 2016'!D$15","v":9.7632374702438397E-3},{"$f":"'Population 2016'!E91/'Population 2016'!E$15","v":6.3354660644837539E-3},{"$f":"'Population 2016'!F91/'Population 2016'!F$15","v":1.0982853300459486E-2},{"$f":"'Population 2016'!G91/'Population 2016'!G$15","v":1.621367588313621E-2},{"$f":"'Population 2016'!H91/'Population 2016'!H$15","v":2.534565828088953E-2},{"$f":"'Population 2016'!I91/'Population 2016'!I$15","v":1.0153622997296764E-2},{"$f":"'Population 2016'!J91/'Population 2016'!J$15","v":1.8810356063747851E-2},{"$f":"'Population 2016'!K91/'Population 2016'!K$15","v":2.0224719101123594E-2},{"$f":"'Population 2016'!L91/'Population 2016'!L$15","v":9.8347637518707426E-3},{"$f":"'Population 2016'!M91/'Population 2016'!M$15","v":9.8347637518707426E-3},{"$f":"'Population 2016'!N91/'Population 2016'!N$15","v":2.3593334062648141E-2},{"$f":"'Population 2016'!O91/'Population 2016'!O$15","v":2.3414218816517667E-2},{"$f":"'Population 2016'!P91/'Population 2016'!P$15","v":1.0926722666120331E-2},{"$f":"'Population 2016'!Q91/'Population 2016'!Q$15","v":4.3528293390703958E-3},{"$f":"'Population 2016'!R91/'Population 2016'!R$15","v":1.5563372774757488E-2},{"$f":"'Population 2016'!S91/'Population 2016'!S$15","v":1.5780020810275238E-2},{"$f":"'Population 2016'!T91/'Population 2016'!T$15","v":1.6069949195005338E-2},{"$f":"'Population 2016'!U91/'Population 2016'!U$15","v":0},{"$f":"'Population 2016'!V91/'Population 2016'!V$15","v":1.4313284014152461E-2},{"$f":"'Population 2016'!W91/'Population 2016'!W$15","v":2.1810557260818816E-2},{"$f":"'Population 2016'!X91/'Population 2016'!X$15","v":2.1810557260818816E-2},{"$f":"'Population 2016'!Y91/'Population 2016'!Y$15","v":1.6277625381709022E-2},{"$f":"'Population 2016'!Z91/'Population 2016'!Z$15","v":2.5164125857408192E-2},{"$f":"'Population 2016'!AA91/'Population 2016'!AA$15","v":2.3210099132008027E-2},{"$f":"'Population 2016'!AB91/'Population 2016'!AB$15","v":8.7002372791985232E-3},{"$f":"'Population 2016'!AC91/'Population 2016'!AC$15","v":2.4690558278690686E-2},{"$f":"'Population 2016'!AD91/'Population 2016'!AD$15","v":1.2725407410330269E-2},{"$f":"'Population 2016'!AE91/'Population 2016'!AE$15","v":1.1550937524723753E-2},{"$f":"'Population 2016'!AF91/'Population 2016'!AF$15","v":3.4633900984407558E-2},{"$f":"'Population 2016'!AG91/'Population 2016'!AG$15","v":1.1550937524723753E-2},{"$f":"'Population 2016'!AH91/'Population 2016'!AH$15","v":2.0432416372942241E-2},{"$f":"'Population 2016'!AI91/'Population 2016'!AI$15","v":1.334480608811694E-2},{"$f":"'Population 2016'!AJ91/'Population 2016'!AJ$15","v":9.6583936982939482E-3},{"$f":"'Population 2016'!AK91/'Population 2016'!AK$15","v":2.0212228398180901E-3},{"$f":"'Population 2016'!AL91/'Population 2016'!AL$15","v":3.041479993820485E-2},{"$f":"'Population 2016'!AM91/'Population 2016'!AM$15","v":2.1206478805207353E-2},{"$f":"'Population 2016'!AN91/'Population 2016'!AN$15","v":0},{"$f":"'Population 2016'!AO91/'Population 2016'!AO$15","v":0},{"$f":"'Population 2016'!AP91/'Population 2016'!AP$15","v":1.1495615074662242E-2},{"$f":"'Population 2016'!AQ91/'Population 2016'!AQ$15","v":2.2404975553099418E-2},{"$f":"'Population 2016'!AR91/'Population 2016'!AR$15","v":1.9587248742594283E-2},{"$f":"'Population 2016'!AS91/'Population 2016'!AS$15","v":1.0153622997296764E-2},{"$f":"'Population 2016'!AT91/'Population 2016'!AT$15","v":0},{"$f":"'Population 2016'!AU91/'Population 2016'!AU$15","v":0},{"$f":"'Population 2016'!AV91/'Population 2016'!AV$15","v":1.9662830802952648E-2},{"$f":"'Population 2016'!AW91/'Population 2016'!AW$15","v":1.9373067491203752E-2},{"$f":"'Population 2016'!AX91/'Population 2016'!AX$15","v":1.7463713641357775E-2},{"$f":"'Population 2016'!AY91/'Population 2016'!AY$15","v":2.0330382444039279E-2},{"$f":"'Population 2016'!AZ91/'Population 2016'!AZ$15","v":1.8801357627724186E-2},{"$f":"'Population 2016'!BA91/'Population 2016'!BA$15","v":2.4782553888818858E-2},{"$f":"'Population 2016'!BB91/'Population 2016'!BB$15","v":1.3341281914237554E-2},{"$f":"'Population 2016'!BC91/'Population 2016'!BC$15","v":0},89]
[null,"Male 65-69",0,0,0,0,0,0,0,0,0,0,0,0,0,0,0,0,0,0,0,0,0,0,0,0,0,0,0,0,0,0,0,0,0,0,0,0,0,0,0,0,0,0,0,0,0,0,0,0,0,0,0,0,0,90]
[null,"Male 70-74",0,0,0,0,0,0,0,0,0,0,0,0,0,0,0,0,0,0,0,0,0,0,0,0,0,0,0,0,0,0,0,0,0,0,0,0,0,0,0,0,0,0,0,0,0,0,0,0,0,0,0,0,0,91]
[null,"Male 75-79",0,0,0,0,0,0,0,0,0,0,0,0,0,0,0,0,0,0,0,0,0,0,0,0,0,0,0,0,0,0,0,0,0,0,0,0,0,0,0,0,0,0,0,0,0,0,0,0,0,0,0,0,0,92]
[null,"Male 80-84",0,0,0,0,0,0,0,0,0,0,0,0,0,0,0,0,0,0,0,0,0,0,0,0,0,0,0,0,0,0,0,0,0,0,0,0,0,0,0,0,0,0,0,0,0,0,0,0,0,0,0,0,0,93]
[null,"Male 85-89",0,0,0,0,0,0,0,0,0,0,0,0,0,0,0,0,0,0,0,0,0,0,0,0,0,0,0,0,0,0,0,0,0,0,0,0,0,0,0,0,0,0,0,0,0,0,0,0,0,0,0,0,0,94]
[null,"Male 90+",0,0,0,0,0,0,0,0,0,0,0,0,0,0,0,0,0,0,0,0,0,0,0,0,0,0,0,0,0,0,0,0,0,0,0,0,0,0,0,0,0,0,0,0,0,0,0,0,0,0,0,0,0,95]
["SIMD Q2","Female 0-4",0,0,0,0,0,0,0,0,0,0,0,0,0,0,0,0,0,0,0,0,0,0,0,0,0,0,0,0,0,0,0,0,0,0,0,0,0,0,0,0,0,0,0,0,0,0,0,0,0,0,0,0,0,96]
[null,"Female 5-9",0,0,0,0,0,0,0,0,0,0,0,0,0,0,0,0,0,0,0,0,0,0,0,0,0,0,0,0,0,0,0,0,0,0,0,0,0,0,0,0,0,0,0,0,0,0,0,0,0,0,0,0,0,97]
[null,"Female 10-15",0,0,0,0,0,0,0,0,0,0,0,0,0,0,0,0,0,0,0,0,0,0,0,0,0,0,0,0,0,0,0,0,0,0,0,0,0,0,0,0,0,0,0,0,0,0,0,0,0,0,0,0,0,98]
[null,"Female 16-19",{"$f":"'Population 2016'!C101/'Population 2016'!C$15","v":2.0744105559160717E-2},{"$f":"'Population 2016'!D101/'Population 2016'!D$15","v":2.1585279547062988E-2},{"$f":"'Population 2016'!E101/'Population 2016'!E$15","v":2.4024589135616611E-2},{"$f":"'Population 2016'!F101/'Population 2016'!F$15","v":2.1685531771825618E-2},{"$f":"'Population 2016'!G101/'Population 2016'!G$15","v":2.2009869194015822E-2},{"$f":"'Population 2016'!H101/'Population 2016'!H$15","v":1.4493322242973054E-2},{"$f":"'Population 2016'!I101/'Population 2016'!I$15","v":2.3867607305333948E-2},{"$f":"'Population 2016'!J101/'Population 2016'!J$15","v":1.913620475146632E-2},{"$f":"'Population 2016'!K101/'Population 2016'!K$15","v":1.9981779532341329E-2},{"$f":"'Population 2016'!L101/'Population 2016'!L$15","v":2.6999786200788002E-2},{"$f":"'Population 2016'!M101/'Population 2016'!M$15","v":2.6999786200788002E-2},{"$f":"'Population 2016'!N101/'Population 2016'!N$15","v":1.2179557305911097E-2},{"$f":"'Population 2016'!O101/'Population 2016'!O$15","v":1.5460106204207838E-2},{"$f":"'Population 2016'!P101/'Population 2016'!P$15","v":2.4516833982107491E-2},{"$f":"'Population 2016'!Q101/'Population 2016'!Q$15","v":2.7617951668584578E-2},{"$f":"'Population 2016'!R101/'Population 2016'!R$15","v":2.2918665387485344E-2},{"$f":"'Population 2016'!S101/'Population 2016'!S$15","v":1.9594133358075912E-2},{"$f":"'Population 2016'!T101/'Population 2016'!T$15","v":1.6030023855390419E-2},{"$f":"'Population 2016'!U101/'Population 2016'!U$15","v":3.0459473412493547E-2},{"$f":"'Population 2016'!V101/'Population 2016'!V$15","v":2.1343564765887058E-2},{"$f":"'Population 2016'!W101/'Population 2016'!W$15","v":1.6828066231464267E-2},{"$f":"'Population 2016'!X101/'Population 2016'!X$15","v":1.6828066231464267E-2},{"$f":"'Population 2016'!Y101/'Population 2016'!Y$15","v":2.0379379949277989E-2},{"$f":"'Population 2016'!Z101/'Population 2016'!Z$15","v":8.8306147593740225E-3},{"$f":"'Population 2016'!AA101/'Population 2016'!AA$15","v":1.3224904765034916E-2},{"$f":"'Population 2016'!AB101/'Population 2016'!AB$15","v":2.2423578059305924E-2},{"$f":"'Population 2016'!AC101/'Population 2016'!AC$15","v":1.0887742053123928E-2},{"$f":"'Population 2016'!AD101/'Population 2016'!AD$15","v":2.4424890502308328E-2},{"$f":"'Population 2016'!AE101/'Population 2016'!AE$15","v":2.5238007331416967E-2},{"$f":"'Population 2016'!AF101/'Population 2016'!AF$15","v":8.2992024143134294E-3},{"$f":"'Population 2016'!AG101/'Population 2016'!AG$15","v":2.5238007331416967E-2},{"$f":"'Population 2016'!AH101/'Population 2016'!AH$15","v":1.7609960971788952E-2},{"$f":"'Population 2016'!AI101/'Population 2016'!AI$15","v":2.0578824523528595E-2},{"$f":"'Population 2016'!AJ101/'Population 2016'!AJ$15","v":3.0083521355341803E-2},{"$f":"'Population 2016'!AK101/'Population 2016'!AK$15","v":2.7690752905507831E-2},{"$f":"'Population 2016'!AL101/'Population 2016'!AL$15","v":1.0833462073227251E-2},{"$f":"'Population 2016'!AM101/'Population 2016'!AM$15","v":1.7108533231533926E-2},{"$f":"'Population 2016'!AN101/'Population 2016'!AN$15","v":2.6415094339622643E-2},{"$f":"'Population 2016'!AO101/'Population 2016'!AO$15","v":2.6415094339622643E-2},{"$f":"'Population 2016'!AP101/'Population 2016'!AP$15","v":2.1450580706328513E-2},{"$f":"'Population 2016'!AQ101/'Population 2016'!AQ$15","v":1.4143609149322793E-2},{"$f":"'Population 2016'!AR101/'Population 2016'!AR$15","v":1.655372388981367E-2},{"$f":"'Population 2016'!AS101/'Population 2016'!AS$15","v":2.3867607305333948E-2},{"$f":"'Population 2016'!AT101/'Population 2016'!AT$15","v":2.8455284552845527E-2},{"$f":"'Population 2016'!AU101/'Population 2016'!AU$15","v":2.8455284552845527E-2},{"$f":"'Population 2016'!AV101/'Population 2016'!AV$15","v":1.9211552718950455E-2},{"$f":"'Population 2016'!AW101/'Population 2016'!AW$15","v":1.8296193624053738E-2},{"$f":"'Population 2016'!AX101/'Population 2016'!AX$15","v":1.8331116636789452E-2},{"$f":"'Population 2016'!AY101/'Population 2016'!AY$15","v":1.6332403400478878E-2},{"$f":"'Population 2016'!AZ101/'Population 2016'!AZ$15","v":1.5820382279385495E-2},{"$f":"'Population 2016'!BA101/'Population 2016'!BA$15","v":1.4546829698726838E-2},{"$f":"'Population 2016'!BB101/'Population 2016'!BB$15","v":2.2118982033466267E-2},{"$f":"'Population 2016'!BC101/'Population 2016'!BC$15","v":3.0459473412493547E-2},99]
[null,"Female 20-24",{"$f":"'Population 2016'!C102/'Population 2016'!C$15","v":4.7436729396495785E-2},{"$f":"'Population 2016'!D102/'Population 2016'!D$15","v":4.4843337836968408E-2},{"$f":"'Population 2016'!E102/'Population 2016'!E$15","v":3.7322795132354786E-2},{"$f":"'Population 2016'!F102/'Population 2016'!F$15","v":4.2194329261459149E-2},{"$f":"'Population 2016'!G102/'Population 2016'!G$15","v":2.8589331871230517E-2},{"$f":"'Population 2016'!H102/'Population 2016'!H$15","v":1.9633076476404211E-2},{"$f":"'Population 2016'!I102/'Population 2016'!I$15","v":3.646073712665656E-2},{"$f":"'Population 2016'!J102/'Population 2016'!J$15","v":3.0570531429587062E-2},{"$f":"'Population 2016'!K102/'Population 2016'!K$15","v":2.283631946553295E-2},{"$f":"'Population 2016'!L102/'Population 2016'!L$15","v":3.3749732750985001E-2},{"$f":"'Population 2016'!M102/'Population 2016'!M$15","v":3.3749732750985001E-2},{"$f":"'Population 2016'!N102/'Population 2016'!N$15","v":2.9555482624074682E-2},{"$f":"'Population 2016'!O102/'Population 2016'!O$15","v":2.0030920212408414E-2},{"$f":"'Population 2016'!P102/'Population 2016'!P$15","v":3.5102096564911561E-2},{"$f":"'Population 2016'!Q102/'Population 2016'!Q$15","v":4.648021213788963E-2},{"$f":"'Population 2016'!R102/'Population 2016'!R$15","v":2.9101375119923251E-2},{"$f":"'Population 2016'!S102/'Population 2016'!S$15","v":3.3402480001590594E-2},{"$f":"'Population 2016'!T102/'Population 2016'!T$15","v":4.0963398444908025E-2},{"$f":"'Population 2016'!U102/'Population 2016'!U$15","v":3.7170882808466699E-2},{"$f":"'Population 2016'!V102/'Population 2016'!V$15","v":2.9936130129118228E-2},{"$f":"'Population 2016'!W102/'Population 2016'!W$15","v":2.2761661839090397E-2},{"$f":"'Population 2016'!X102/'Population 2016'!X$15","v":2.2761661839090397E-2},{"$f":"'Population 2016'!Y102/'Population 2016'!Y$15","v":3.0213239480358159E-2},{"$f":"'Population 2016'!Z102/'Population 2016'!Z$15","v":1.6800603174019383E-2},{"$f":"'Population 2016'!AA102/'Population 2016'!AA$15","v":1.9926566564310598E-2},{"$f":"'Population 2016'!AB102/'Population 2016'!AB$15","v":4.6401265489058791E-2},{"$f":"'Population 2016'!AC102/'Population 2016'!AC$15","v":1.7720771882850008E-2},{"$f":"'Population 2016'!AD102/'Population 2016'!AD$15","v":3.1428796906443596E-2},{"$f":"'Population 2016'!AE102/'Population 2016'!AE$15","v":3.2384820274796278E-2},{"$f":"'Population 2016'!AF102/'Population 2016'!AF$15","v":1.0382984838686498E-2},{"$f":"'Population 2016'!AG102/'Population 2016'!AG$15","v":3.2384820274796278E-2},{"$f":"'Population 2016'!AH102/'Population 2016'!AH$15","v":2.4065146051938581E-2},{"$f":"'Population 2016'!AI102/'Population 2016'!AI$15","v":3.8236218525064022E-2},{"$f":"'Population 2016'!AJ102/'Population 2016'!AJ$15","v":3.7723152436369395E-2},{"$f":"'Population 2016'!AK102/'Population 2016'!AK$15","v":5.6189994946942899E-2},{"$f":"'Population 2016'!AL102/'Population 2016'!AL$15","v":1.4714969874864823E-2},{"$f":"'Population 2016'!AM102/'Population 2016'!AM$15","v":2.1821949718363626E-2},{"$f":"'Population 2016'!AN102/'Population 2016'!AN$15","v":4.7439353099730457E-2},{"$f":"'Population 2016'!AO102/'Population 2016'!AO$15","v":4.7439353099730457E-2},{"$f":"'Population 2016'!AP102/'Population 2016'!AP$15","v":3.4131310737141506E-2},{"$f":"'Population 2016'!AQ102/'Population 2016'!AQ$15","v":1.798392686536408E-2},{"$f":"'Population 2016'!AR102/'Population 2016'!AR$15","v":2.6418228355617607E-2},{"$f":"'Population 2016'!AS102/'Population 2016'!AS$15","v":3.646073712665656E-2},{"$f":"'Population 2016'!AT102/'Population 2016'!AT$15","v":5.2845528455284556E-2},{"$f":"'Population 2016'!AU102/'Population 2016'!AU$15","v":5.2845528455284556E-2},{"$f":"'Population 2016'!AV102/'Population 2016'!AV$15","v":2.7270089933275312E-2},{"$f":"'Population 2016'!AW102/'Population 2016'!AW$15","v":2.7135089028681097E-2},{"$f":"'Population 2016'!AX102/'Population 2016'!AX$15","v":3.7934424333545366E-2},{"$f":"'Population 2016'!AY102/'Population 2016'!AY$15","v":2.776618412670518E-2},{"$f":"'Population 2016'!AZ102/'Population 2016'!AZ$15","v":3.2935869953554839E-2},{"$f":"'Population 2016'!BA102/'Population 2016'!BA$15","v":1.9715114080423549E-2},{"$f":"'Population 2016'!BB102/'Population 2016'!BB$15","v":2.9498828269539118E-2},{"$f":"'Population 2016'!BC102/'Population 2016'!BC$15","v":3.7170882808466699E-2},100]
[null,"Female 25-29",{"$f":"'Population 2016'!C103/'Population 2016'!C$15","v":5.4012545965823056E-2},{"$f":"'Population 2016'!D103/'Population 2016'!D$15","v":5.0858907546805637E-2},{"$f":"'Population 2016'!E103/'Population 2016'!E$15","v":4.1713712206749465E-2},{"$f":"'Population 2016'!F103/'Population 2016'!F$15","v":4.348313347528858E-2},{"$f":"'Population 2016'!G103/'Population 2016'!G$15","v":3.3523928879141539E-2},{"$f":"'Population 2016'!H103/'Population 2016'!H$15","v":2.1100456692666237E-2},{"$f":"'Population 2016'!I103/'Population 2016'!I$15","v":3.6922265444715503E-2},{"$f":"'Population 2016'!J103/'Population 2016'!J$15","v":3.0185437525919782E-2},{"$f":"'Population 2016'!K103/'Population 2016'!K$15","v":2.6358943212875796E-2},{"$f":"'Population 2016'!L103/'Population 2016'!L$15","v":3.2741822180141107E-2},{"$f":"'Population 2016'!M103/'Population 2016'!M$15","v":3.2741822180141107E-2},{"$f":"'Population 2016'!N103/'Population 2016'!N$15","v":2.7294606716989387E-2},{"$f":"'Population 2016'!O103/'Population 2016'!O$15","v":2.2764446236920526E-2},{"$f":"'Population 2016'!P103/'Population 2016'!P$15","v":3.9882537731339207E-2},{"$f":"'Population 2016'!Q103/'Population 2016'!Q$15","v":4.6380147095612147E-2},{"$f":"'Population 2016'!R103/'Population 2016'!R$15","v":2.7076004690331522E-2},{"$f":"'Population 2016'!S103/'Population 2016'!S$15","v":3.6974689668427367E-2},{"$f":"'Population 2016'!T103/'Population 2016'!T$15","v":4.6343337958018503E-2},{"$f":"'Population 2016'!U103/'Population 2016'!U$15","v":4.0526587506453278E-2},{"$f":"'Population 2016'!V103/'Population 2016'!V$15","v":3.2486330009649407E-2},{"$f":"'Population 2016'!W103/'Population 2016'!W$15","v":2.5863559725044314E-2},{"$f":"'Population 2016'!X103/'Population 2016'!X$15","v":2.5863559725044314E-2},{"$f":"'Population 2016'!Y103/'Population 2016'!Y$15","v":3.1481289788313237E-2},{"$f":"'Population 2016'!Z103/'Population 2016'!Z$15","v":2.1861380312252893E-2},{"$f":"'Population 2016'!AA103/'Population 2016'!AA$15","v":2.2973772431473083E-2},{"$f":"'Population 2016'!AB103/'Population 2016'!AB$15","v":5.074444614039713E-2},{"$f":"'Population 2016'!AC103/'Population 2016'!AC$15","v":2.1751491726227749E-2},{"$f":"'Population 2016'!AD103/'Population 2016'!AD$15","v":3.4072524957581972E-2},{"$f":"'Population 2016'!AE103/'Population 2016'!AE$15","v":3.4257232521954693E-2},{"$f":"'Population 2016'!AF103/'Population 2016'!AF$15","v":1.2826040094848027E-2},{"$f":"'Population 2016'!AG103/'Population 2016'!AG$15","v":3.4257232521954693E-2},{"$f":"'Population 2016'!AH103/'Population 2016'!AH$15","v":2.5267052897405773E-2},{"$f":"'Population 2016'!AI103/'Population 2016'!AI$15","v":4.2275727394980499E-2},{"$f":"'Population 2016'!AJ103/'Population 2016'!AJ$15","v":3.9623164311443616E-2},{"$f":"'Population 2016'!AK103/'Population 2016'!AK$15","v":5.0025265285497729E-2},{"$f":"'Population 2016'!AL103/'Population 2016'!AL$15","v":1.4734280858952573E-2},{"$f":"'Population 2016'!AM103/'Population 2016'!AM$15","v":2.3629408602569395E-2},{"$f":"'Population 2016'!AN103/'Population 2016'!AN$15","v":5.3908355795148251E-2},{"$f":"'Population 2016'!AO103/'Population 2016'!AO$15","v":5.3908355795148251E-2},{"$f":"'Population 2016'!AP103/'Population 2016'!AP$15","v":3.804219009243897E-2},{"$f":"'Population 2016'!AQ103/'Population 2016'!AQ$15","v":2.0119518180626066E-2},{"$f":"'Population 2016'!AR103/'Population 2016'!AR$15","v":2.907515795879647E-2},{"$f":"'Population 2016'!AS103/'Population 2016'!AS$15","v":3.6922265444715503E-2},{"$f":"'Population 2016'!AT103/'Population 2016'!AT$15","v":4.6747967479674794E-2},{"$f":"'Population 2016'!AU103/'Population 2016'!AU$15","v":4.6747967479674794E-2},{"$f":"'Population 2016'!AV103/'Population 2016'!AV$15","v":2.9333075460142476E-2},{"$f":"'Population 2016'!AW103/'Population 2016'!AW$15","v":2.7508263141059815E-2},{"$f":"'Population 2016'!AX103/'Population 2016'!AX$15","v":3.3828716821835428E-2},{"$f":"'Population 2016'!AY103/'Population 2016'!AY$15","v":2.915009994947609E-2},{"$f":"'Population 2016'!AZ103/'Population 2016'!AZ$15","v":3.2545105394783849E-2},{"$f":"'Population 2016'!BA103/'Population 2016'!BA$15","v":2.1505105256523382E-2},{"$f":"'Population 2016'!BB103/'Population 2016'!BB$15","v":3.3589606545245239E-2},{"$f":"'Population 2016'!BC103/'Population 2016'!BC$15","v":4.0526587506453278E-2},101]
[null,"Female 30-34",{"$f":"'Population 2016'!C104/'Population 2016'!C$15","v":4.6009085009733941E-2},{"$f":"'Population 2016'!D104/'Population 2016'!D$15","v":4.4151708164447016E-2},{"$f":"'Population 2016'!E104/'Population 2016'!E$15","v":3.8765525028227325E-2},{"$f":"'Population 2016'!F104/'Population 2016'!F$15","v":3.9560685867981622E-2},{"$f":"'Population 2016'!G104/'Population 2016'!G$15","v":2.7884389441528941E-2},{"$f":"'Population 2016'!H104/'Population 2016'!H$15","v":2.0056811939923726E-2},{"$f":"'Population 2016'!I104/'Population 2016'!I$15","v":3.1252060394277047E-2},{"$f":"'Population 2016'!J104/'Population 2016'!J$15","v":2.5060726346347532E-2},{"$f":"'Population 2016'!K104/'Population 2016'!K$15","v":2.447616155481324E-2},{"$f":"'Population 2016'!L104/'Population 2016'!L$15","v":3.3322134326990625E-2},{"$f":"'Population 2016'!M104/'Population 2016'!M$15","v":3.3322134326990625E-2},{"$f":"'Population 2016'!N104/'Population 2016'!N$15","v":2.0165554461583343E-2},{"$f":"'Population 2016'!O104/'Population 2016'!O$15","v":2.1644148685890971E-2},{"$f":"'Population 2016'!P104/'Population 2016'!P$15","v":3.5238680598238065E-2},{"$f":"'Population 2016'!Q104/'Population 2016'!Q$15","v":4.768099264521939E-2},{"$f":"'Population 2016'!R104/'Population 2016'!R$15","v":2.622321714102974E-2},{"$f":"'Population 2016'!S104/'Population 2016'!S$15","v":3.4631876834982471E-2},{"$f":"'Population 2016'!T104/'Population 2016'!T$15","v":3.8887280784932178E-2},{"$f":"'Population 2016'!U104/'Population 2016'!U$15","v":3.8719669592152811E-2},{"$f":"'Population 2016'!V104/'Population 2016'!V$15","v":3.4577034416211003E-2},{"$f":"'Population 2016'!W104/'Population 2016'!W$15","v":2.5625783580476416E-2},{"$f":"'Population 2016'!X104/'Population 2016'!X$15","v":2.5625783580476416E-2},{"$f":"'Population 2016'!Y104/'Population 2016'!Y$15","v":3.042026810206511E-2},{"$f":"'Population 2016'!Z104/'Population 2016'!Z$15","v":1.8161422607992056E-2},{"$f":"'Population 2016'!AA104/'Population 2016'!AA$15","v":2.1793704006285351E-2},{"$f":"'Population 2016'!AB104/'Population 2016'!AB$15","v":4.545769908557315E-2},{"$f":"'Population 2016'!AC104/'Population 2016'!AC$15","v":1.9179508588072429E-2},{"$f":"'Population 2016'!AD104/'Population 2016'!AD$15","v":3.3894961133251786E-2},{"$f":"'Population 2016'!AE104/'Population 2016'!AE$15","v":3.5918668741264273E-2},{"$f":"'Population 2016'!AF104/'Population 2016'!AF$15","v":1.3616440324782641E-2},{"$f":"'Population 2016'!AG104/'Population 2016'!AG$15","v":3.5918668741264273E-2},{"$f":"'Population 2016'!AH104/'Population 2016'!AH$15","v":2.6698537454928492E-2},{"$f":"'Population 2016'!AI104/'Population 2016'!AI$15","v":3.9189418959929515E-2},{"$f":"'Population 2016'!AJ104/'Population 2016'!AJ$15","v":4.1958595574555675E-2},{"$f":"'Population 2016'!AK104/'Population 2016'!AK$15","v":5.366346639717029E-2},{"$f":"'Population 2016'!AL104/'Population 2016'!AL$15","v":1.5178433492970801E-2},{"$f":"'Population 2016'!AM104/'Population 2016'!AM$15","v":2.4946048910460667E-2},{"$f":"'Population 2016'!AN104/'Population 2016'!AN$15","v":3.3423180592991916E-2},{"$f":"'Population 2016'!AO104/'Population 2016'!AO$15","v":3.3423180592991916E-2},{"$f":"'Population 2016'!AP104/'Population 2016'!AP$15","v":4.1123488978430905E-2},{"$f":"'Population 2016'!AQ104/'Population 2016'!AQ$15","v":1.9313988123114967E-2},{"$f":"'Population 2016'!AR104/'Population 2016'!AR$15","v":2.7279528897957723E-2},{"$f":"'Population 2016'!AS104/'Population 2016'!AS$15","v":3.1252060394277047E-2},{"$f":"'Population 2016'!AT104/'Population 2016'!AT$15","v":3.2520325203252036E-2},{"$f":"'Population 2016'!AU104/'Population 2016'!AU$15","v":3.2520325203252036E-2},{"$f":"'Population 2016'!AV104/'Population 2016'!AV$15","v":2.5916255681268735E-2},{"$f":"'Population 2016'!AW104/'Population 2016'!AW$15","v":2.90969186480435E-2},{"$f":"'Population 2016'!AX104/'Population 2016'!AX$15","v":2.5617301798415544E-2},{"$f":"'Population 2016'!AY104/'Population 2016'!AY$15","v":2.6783164554181404E-2},{"$f":"'Population 2016'!AZ104/'Population 2016'!AZ$15","v":2.7978742408002858E-2},{"$f":"'Population 2016'!BA104/'Population 2016'!BA$15","v":2.2286650699609226E-2},{"$f":"'Population 2016'!BB104/'Population 2016'!BB$15","v":3.4884677054639643E-2},{"$f":"'Population 2016'!BC104/'Population 2016'!BC$15","v":3.8719669592152811E-2},102]
[null,"Female 35-39",{"$f":"'Population 2016'!C105/'Population 2016'!C$15","v":3.4393251135626218E-2},{"$f":"'Population 2016'!D105/'Population 2016'!D$15","v":3.549829505243518E-2},{"$f":"'Population 2016'!E105/'Population 2016'!E$15","v":3.8702797641450258E-2},{"$f":"'Population 2016'!F105/'Population 2016'!F$15","v":3.1715790653367701E-2},{"$f":"'Population 2016'!G105/'Population 2016'!G$15","v":2.9215947364298583E-2},{"$f":"'Population 2016'!H105/'Population 2016'!H$15","v":2.0198057094430233E-2},{"$f":"'Population 2016'!I105/'Population 2016'!I$15","v":2.9999340673831344E-2},{"$f":"'Population 2016'!J105/'Population 2016'!J$15","v":2.5119971562296346E-2},{"$f":"'Population 2016'!K105/'Population 2016'!K$15","v":2.4719101123595506E-2},{"$f":"'Population 2016'!L105/'Population 2016'!L$15","v":3.2528022968143916E-2},{"$f":"'Population 2016'!M105/'Population 2016'!M$15","v":3.2528022968143916E-2},{"$f":"'Population 2016'!N105/'Population 2016'!N$15","v":1.5716734128286475E-2},{"$f":"'Population 2016'!O105/'Population 2016'!O$15","v":2.1509712979767427E-2},{"$f":"'Population 2016'!P105/'Population 2016'!P$15","v":3.9472785631359697E-2},{"$f":"'Population 2016'!Q105/'Population 2016'!Q$15","v":4.497923650372742E-2},{"$f":"'Population 2016'!R105/'Population 2016'!R$15","v":2.8674981345272358E-2},{"$f":"'Population 2016'!S105/'Population 2016'!S$15","v":2.8842776382325845E-2},{"$f":"'Population 2016'!T105/'Population 2016'!T$15","v":2.6270873466617425E-2},{"$f":"'Population 2016'!U105/'Population 2016'!U$15","v":3.9494062983995867E-2},{"$f":"'Population 2016'!V105/'Population 2016'!V$15","v":3.3703993015668794E-2},{"$f":"'Population 2016'!W105/'Population 2016'!W$15","v":2.4155894686783971E-2},{"$f":"'Population 2016'!X105/'Population 2016'!X$15","v":2.4155894686783971E-2},{"$f":"'Population 2016'!Y105/'Population 2016'!Y$15","v":2.9954453703224471E-2},{"$f":"'Population 2016'!Z105/'Population 2016'!Z$15","v":1.3560381765019584E-2},{"$f":"'Population 2016'!AA105/'Population 2016'!AA$15","v":1.8579034848015326E-2},{"$f":"'Population 2016'!AB105/'Population 2016'!AB$15","v":3.671583387680908E-2},{"$f":"'Population 2016'!AC105/'Population 2016'!AC$15","v":1.5703012723159125E-2},{"$f":"'Population 2016'!AD105/'Population 2016'!AD$15","v":3.2060134948506493E-2},{"$f":"'Population 2016'!AE105/'Population 2016'!AE$15","v":3.3017748358342786E-2},{"$f":"'Population 2016'!AF105/'Population 2016'!AF$15","v":8.9099662283538116E-3},{"$f":"'Population 2016'!AG105/'Population 2016'!AG$15","v":3.3017748358342786E-2},{"$f":"'Population 2016'!AH105/'Population 2016'!AH$15","v":2.3975115576622685E-2},{"$f":"'Population 2016'!AI105/'Population 2016'!AI$15","v":3.0986742785303195E-2},{"$f":"'Population 2016'!AJ105/'Population 2016'!AJ$15","v":4.0573170248980724E-2},{"$f":"'Population 2016'!AK105/'Population 2016'!AK$15","v":4.4365841334007075E-2},{"$f":"'Population 2016'!AL105/'Population 2016'!AL$15","v":1.4869457747566817E-2},{"$f":"'Population 2016'!AM105/'Population 2016'!AM$15","v":2.2943820749939621E-2},{"$f":"'Population 2016'!AN105/'Population 2016'!AN$15","v":3.8274932614555258E-2},{"$f":"'Population 2016'!AO105/'Population 2016'!AO$15","v":3.8274932614555258E-2},{"$f":"'Population 2016'!AP105/'Population 2016'!AP$15","v":3.1287034842379713E-2},{"$f":"'Population 2016'!AQ105/'Population 2016'!AQ$15","v":1.7908993836758397E-2},{"$f":"'Population 2016'!AR105/'Population 2016'!AR$15","v":2.3636721616638923E-2},{"$f":"'Population 2016'!AS105/'Population 2016'!AS$15","v":2.9999340673831344E-2},{"$f":"'Population 2016'!AT105/'Population 2016'!AT$15","v":6.910569105691057E-2},{"$f":"'Population 2016'!AU105/'Population 2016'!AU$15","v":6.910569105691057E-2},{"$f":"'Population 2016'!AV105/'Population 2016'!AV$15","v":2.7205621635560714E-2},{"$f":"'Population 2016'!AW105/'Population 2016'!AW$15","v":2.5386501759249388E-2},{"$f":"'Population 2016'!AX105/'Population 2016'!AX$15","v":2.5501648065691319E-2},{"$f":"'Population 2016'!AY105/'Population 2016'!AY$15","v":2.301583814774949E-2},{"$f":"'Population 2016'!AZ105/'Population 2016'!AZ$15","v":2.1838156484458734E-2},{"$f":"'Population 2016'!BA105/'Population 2016'!BA$15","v":2.0345392663557293E-2},{"$f":"'Population 2016'!BB105/'Population 2016'!BB$15","v":2.9971631788841838E-2},{"$f":"'Population 2016'!BC105/'Population 2016'!BC$15","v":3.9494062983995867E-2},103]
[null,"Female 40-44",{"$f":"'Population 2016'!C106/'Population 2016'!C$15","v":3.099718797317759E-2},{"$f":"'Population 2016'!D106/'Population 2016'!D$15","v":3.2876536061249434E-2},{"$f":"'Population 2016'!E106/'Population 2016'!E$15","v":3.8326433320787855E-2},{"$f":"'Population 2016'!F106/'Population 2016'!F$15","v":3.507788860248795E-2},{"$f":"'Population 2016'!G106/'Population 2016'!G$15","v":3.4385525182110126E-2},{"$f":"'Population 2016'!H106/'Population 2016'!H$15","v":2.2097019727239913E-2},{"$f":"'Population 2016'!I106/'Population 2016'!I$15","v":3.2570712731588319E-2},{"$f":"'Population 2016'!J106/'Population 2016'!J$15","v":2.6808460216837492E-2},{"$f":"'Population 2016'!K106/'Population 2016'!K$15","v":2.8059520194351654E-2},{"$f":"'Population 2016'!L106/'Population 2016'!L$15","v":3.6559665251519505E-2},{"$f":"'Population 2016'!M106/'Population 2016'!M$15","v":3.6559665251519505E-2},{"$f":"'Population 2016'!N106/'Population 2016'!N$15","v":1.3984611457535646E-2},{"$f":"'Population 2016'!O106/'Population 2016'!O$15","v":2.2966099796105845E-2},{"$f":"'Population 2016'!P106/'Population 2016'!P$15","v":3.7560609164788636E-2},{"$f":"'Population 2016'!Q106/'Population 2016'!Q$15","v":4.3678390954120176E-2},{"$f":"'Population 2016'!R106/'Population 2016'!R$15","v":2.8355186014284193E-2},{"$f":"'Population 2016'!S106/'Population 2016'!S$15","v":2.8687030691842239E-2},{"$f":"'Population 2016'!T106/'Population 2016'!T$15","v":2.3156696976653658E-2},{"$f":"'Population 2016'!U106/'Population 2016'!U$15","v":5.1626226122870419E-2},{"$f":"'Population 2016'!V106/'Population 2016'!V$15","v":3.5266277627165374E-2},{"$f":"'Population 2016'!W106/'Population 2016'!W$15","v":2.5831135705330507E-2},{"$f":"'Population 2016'!X106/'Population 2016'!X$15","v":2.5831135705330507E-2},{"$f":"'Population 2016'!Y106/'Population 2016'!Y$15","v":3.1571864810310026E-2},{"$f":"'Population 2016'!Z106/'Population 2016'!Z$15","v":1.1894297430993583E-2},{"$f":"'Population 2016'!AA106/'Population 2016'!AA$15","v":1.8550863453249571E-2},{"$f":"'Population 2016'!AB106/'Population 2016'!AB$15","v":3.4703817281141157E-2},{"$f":"'Population 2016'!AC106/'Population 2016'!AC$15","v":1.5088807794644421E-2},{"$f":"'Population 2016'!AD106/'Population 2016'!AD$15","v":3.5631140748924754E-2},{"$f":"'Population 2016'!AE106/'Population 2016'!AE$15","v":3.6050528758669799E-2},{"$f":"'Population 2016'!AF106/'Population 2016'!AF$15","v":1.0454839405044191E-2},{"$f":"'Population 2016'!AG106/'Population 2016'!AG$15","v":3.6050528758669799E-2},{"$f":"'Population 2016'!AH106/'Population 2016'!AH$15","v":2.5046478232881829E-2},{"$f":"'Population 2016'!AI106/'Population 2016'!AI$15","v":2.9745006002586522E-2},{"$f":"'Population 2016'!AJ106/'Population 2016'!AJ$15","v":3.8435656889522225E-2},{"$f":"'Population 2016'!AK106/'Population 2016'!AK$15","v":4.6184941889843352E-2},{"$f":"'Population 2016'!AL106/'Population 2016'!AL$15","v":1.7688861424378186E-2},{"$f":"'Population 2016'!AM106/'Population 2016'!AM$15","v":2.3886504047305562E-2},{"$f":"'Population 2016'!AN106/'Population 2016'!AN$15","v":5.6603773584905662E-2},{"$f":"'Population 2016'!AO106/'Population 2016'!AO$15","v":5.6603773584905662E-2},{"$f":"'Population 2016'!AP106/'Population 2016'!AP$15","v":2.7257643991467174E-2},{"$f":"'Population 2016'!AQ106/'Population 2016'!AQ$15","v":2.083138195238006E-2},{"$f":"'Population 2016'!AR106/'Population 2016'!AR$15","v":2.3943152732284451E-2},{"$f":"'Population 2016'!AS106/'Population 2016'!AS$15","v":3.2570712731588319E-2},{"$f":"'Population 2016'!AT106/'Population 2016'!AT$15","v":2.8455284552845527E-2},{"$f":"'Population 2016'!AU106/'Population 2016'!AU$15","v":2.8455284552845527E-2},{"$f":"'Population 2016'!AV106/'Population 2016'!AV$15","v":2.8204880250136996E-2},{"$f":"'Population 2016'!AW106/'Population 2016'!AW$15","v":2.663396950634396E-2},{"$f":"'Population 2016'!AX106/'Population 2016'!AX$15","v":2.5617301798415544E-2},{"$f":"'Population 2016'!AY106/'Population 2016'!AY$15","v":2.3301408079432376E-2},{"$f":"'Population 2016'!AZ106/'Population 2016'!AZ$15","v":2.0688192211504107E-2},{"$f":"'Population 2016'!BA106/'Population 2016'!BA$15","v":2.1076515819992436E-2},{"$f":"'Population 2016'!BB106/'Population 2016'!BB$15","v":3.3075689676437939E-2},{"$f":"'Population 2016'!BC106/'Population 2016'!BC$15","v":5.1626226122870419E-2},104]
[null,"Female 45-49",{"$f":"'Population 2016'!C107/'Population 2016'!C$15","v":3.2403201384382435E-2},{"$f":"'Population 2016'!D107/'Population 2016'!D$15","v":3.512835359969118E-2},{"$f":"'Population 2016'!E107/'Population 2016'!E$15","v":4.303098732906787E-2},{"$f":"'Population 2016'!F107/'Population 2016'!F$15","v":3.7263252269416118E-2},{"$f":"'Population 2016'!G107/'Population 2016'!G$15","v":4.0730007049424297E-2},{"$f":"'Population 2016'!H107/'Population 2016'!H$15","v":2.8147020511935215E-2},{"$f":"'Population 2016'!I107/'Population 2016'!I$15","v":4.3779257598734092E-2},{"$f":"'Population 2016'!J107/'Population 2016'!J$15","v":3.080751229338231E-2},{"$f":"'Population 2016'!K107/'Population 2016'!K$15","v":3.310051624658366E-2},{"$f":"'Population 2016'!L107/'Population 2016'!L$15","v":4.7829937998228524E-2},{"$f":"'Population 2016'!M107/'Population 2016'!M$15","v":4.7829937998228524E-2},{"$f":"'Population 2016'!N107/'Population 2016'!N$15","v":1.4568063304525399E-2},{"$f":"'Population 2016'!O107/'Population 2016'!O$15","v":2.9755102955344941E-2},{"$f":"'Population 2016'!P107/'Population 2016'!P$15","v":5.1492180564092056E-2},{"$f":"'Population 2016'!Q107/'Population 2016'!Q$15","v":5.473557812578176E-2},{"$f":"'Population 2016'!R107/'Population 2016'!R$15","v":4.1040400810148168E-2},{"$f":"'Population 2016'!S107/'Population 2016'!S$15","v":3.220290681105728E-2},{"$f":"'Population 2016'!T107/'Population 2016'!T$15","v":2.1659496741094155E-2},{"$f":"'Population 2016'!U107/'Population 2016'!U$15","v":6.0144553433144038E-2},{"$f":"'Population 2016'!V107/'Population 2016'!V$15","v":4.0389652161926207E-2},{"$f":"'Population 2016'!W107/'Population 2016'!W$15","v":2.9559897972417967E-2},{"$f":"'Population 2016'!X107/'Population 2016'!X$15","v":2.9559897972417967E-2},{"$f":"'Population 2016'!Y107/'Population 2016'!Y$15","v":3.620413022100305E-2},{"$f":"'Population 2016'!Z107/'Population 2016'!Z$15","v":1.3405910369811876E-2},{"$f":"'Population 2016'!AA107/'Population 2016'!AA$15","v":2.2313309731964829E-2},{"$f":"'Population 2016'!AB107/'Population 2016'!AB$15","v":3.7631648327251029E-2},{"$f":"'Population 2016'!AC107/'Population 2016'!AC$15","v":1.7953497969045031E-2},{"$f":"'Population 2016'!AD107/'Population 2016'!AD$15","v":4.2102355680069446E-2},{"$f":"'Population 2016'!AE107/'Population 2016'!AE$15","v":4.2564413618502599E-2},{"$f":"'Population 2016'!AF107/'Population 2016'!AF$15","v":1.4370913271538407E-2},{"$f":"'Population 2016'!AG107/'Population 2016'!AG$15","v":4.2564413618502599E-2},{"$f":"'Population 2016'!AH107/'Population 2016'!AH$15","v":3.0493321989493442E-2},{"$f":"'Population 2016'!AI107/'Population 2016'!AI$15","v":3.25582353941355E-2},{"$f":"'Population 2016'!AJ107/'Population 2016'!AJ$15","v":4.8133634168546886E-2},{"$f":"'Population 2016'!AK107/'Population 2016'!AK$15","v":5.3360282971197576E-2},{"$f":"'Population 2016'!AL107/'Population 2016'!AL$15","v":2.2014521860033987E-2},{"$f":"'Population 2016'!AM107/'Population 2016'!AM$15","v":2.8109101957820765E-2},{"$f":"'Population 2016'!AN107/'Population 2016'!AN$15","v":5.1212938005390833E-2},{"$f":"'Population 2016'!AO107/'Population 2016'!AO$15","v":5.1212938005390833E-2},{"$f":"'Population 2016'!AP107/'Population 2016'!AP$15","v":3.4546100971794266E-2},{"$f":"'Population 2016'!AQ107/'Population 2016'!AQ$15","v":2.3735036810850301E-2},{"$f":"'Population 2016'!AR107/'Population 2016'!AR$15","v":2.8044174765970396E-2},{"$f":"'Population 2016'!AS107/'Population 2016'!AS$15","v":4.3779257598734092E-2},{"$f":"'Population 2016'!AT107/'Population 2016'!AT$15","v":4.6747967479674794E-2},{"$f":"'Population 2016'!AU107/'Population 2016'!AU$15","v":4.6747967479674794E-2},{"$f":"'Population 2016'!AV107/'Population 2016'!AV$15","v":3.6070012571318054E-2},{"$f":"'Population 2016'!AW107/'Population 2016'!AW$15","v":3.3756263994029215E-2},{"$f":"'Population 2016'!AX107/'Population 2016'!AX$15","v":2.8624298849245361E-2},{"$f":"'Population 2016'!AY107/'Population 2016'!AY$15","v":2.6261450255914594E-2},{"$f":"'Population 2016'!AZ107/'Population 2016'!AZ$15","v":2.2854144337263307E-2},{"$f":"'Population 2016'!BA107/'Population 2016'!BA$15","v":2.6017899911760997E-2},{"$f":"'Population 2016'!BB107/'Population 2016'!BB$15","v":3.7803724869465115E-2},{"$f":"'Population 2016'!BC107/'Population 2016'!BC$15","v":6.0144553433144038E-2},105]
[null,"Female 50-54",{"$f":"'Population 2016'!C108/'Population 2016'!C$15","v":3.3787583820030283E-2},{"$f":"'Population 2016'!D108/'Population 2016'!D$15","v":3.6913723219455706E-2},{"$f":"'Population 2016'!E108/'Population 2016'!E$15","v":4.5979174507590016E-2},{"$f":"'Population 2016'!F108/'Population 2016'!F$15","v":3.4741678807575928E-2},{"$f":"'Population 2016'!G108/'Population 2016'!G$15","v":4.5194642437534266E-2},{"$f":"'Population 2016'!H108/'Population 2016'!H$15","v":2.9080807922283777E-2},{"$f":"'Population 2016'!I108/'Population 2016'!I$15","v":4.70099558251467E-2},{"$f":"'Population 2016'!J108/'Population 2016'!J$15","v":3.2288642692102611E-2},{"$f":"'Population 2016'!K108/'Population 2016'!K$15","v":3.4133009413908288E-2},{"$f":"'Population 2016'!L108/'Population 2016'!L$15","v":5.1769952047891026E-2},{"$f":"'Population 2016'!M108/'Population 2016'!M$15","v":5.1769952047891026E-2},{"$f":"'Population 2016'!N108/'Population 2016'!N$15","v":1.7375925318163586E-2},{"$f":"'Population 2016'!O108/'Population 2016'!O$15","v":2.8097062579821201E-2},{"$f":"'Population 2016'!P108/'Population 2016'!P$15","v":5.0536092330806526E-2},{"$f":"'Population 2016'!Q108/'Population 2016'!Q$15","v":5.5636163506279084E-2},{"$f":"'Population 2016'!R108/'Population 2016'!R$15","v":3.8695235049568275E-2},{"$f":"'Population 2016'!S108/'Population 2016'!S$15","v":3.247794707297514E-2},{"$f":"'Population 2016'!T108/'Population 2016'!T$15","v":2.0561549901683851E-2},{"$f":"'Population 2016'!U108/'Population 2016'!U$15","v":6.969540526587506E-2},{"$f":"'Population 2016'!V108/'Population 2016'!V$15","v":4.0251803519735334E-2},{"$f":"'Population 2016'!W108/'Population 2016'!W$15","v":3.1851195365526781E-2},{"$f":"'Population 2016'!X108/'Population 2016'!X$15","v":3.1851195365526781E-2},{"$f":"'Population 2016'!Y108/'Population 2016'!Y$15","v":3.6773458930697167E-2},{"$f":"'Population 2016'!Z108/'Population 2016'!Z$15","v":1.3736920502399823E-2},{"$f":"'Population 2016'!AA108/'Population 2016'!AA$15","v":2.3144365877554599E-2},{"$f":"'Population 2016'!AB108/'Population 2016'!AB$15","v":3.8963742073348413E-2},{"$f":"'Population 2016'!AC108/'Population 2016'!AC$15","v":1.8536512803533599E-2},{"$f":"'Population 2016'!AD108/'Population 2016'!AD$15","v":4.598903050151916E-2},{"$f":"'Population 2016'!AE108/'Population 2016'!AE$15","v":4.6256494105857221E-2},{"$f":"'Population 2016'!AF108/'Population 2016'!AF$15","v":1.7245095925846089E-2},{"$f":"'Population 2016'!AG108/'Population 2016'!AG$15","v":4.6256494105857221E-2},{"$f":"'Population 2016'!AH108/'Population 2016'!AH$15","v":3.1789760834042322E-2},{"$f":"'Population 2016'!AI108/'Population 2016'!AI$15","v":3.1641102002751401E-2},{"$f":"'Population 2016'!AJ108/'Population 2016'!AJ$15","v":4.7777381941970468E-2},{"$f":"'Population 2016'!AK108/'Population 2016'!AK$15","v":5.1844365841334006E-2},{"$f":"'Population 2016'!AL108/'Population 2016'!AL$15","v":2.2960760080333695E-2},{"$f":"'Population 2016'!AM108/'Population 2016'!AM$15","v":2.9005040628871038E-2},{"$f":"'Population 2016'!AN108/'Population 2016'!AN$15","v":6.576819407008086E-2},{"$f":"'Population 2016'!AO108/'Population 2016'!AO$15","v":6.576819407008086E-2},{"$f":"'Population 2016'!AP108/'Population 2016'!AP$15","v":3.3301730267835977E-2},{"$f":"'Population 2016'!AQ108/'Population 2016'!AQ$15","v":2.4634233154118508E-2},{"$f":"'Population 2016'!AR108/'Population 2016'!AR$15","v":2.9009289588143694E-2},{"$f":"'Population 2016'!AS108/'Population 2016'!AS$15","v":4.70099558251467E-2},{"$f":"'Population 2016'!AT108/'Population 2016'!AT$15","v":4.065040650406504E-2},{"$f":"'Population 2016'!AU108/'Population 2016'!AU$15","v":4.065040650406504E-2},{"$f":"'Population 2016'!AV108/'Population 2016'!AV$15","v":4.071173000676917E-2},{"$f":"'Population 2016'!AW108/'Population 2016'!AW$15","v":3.5600810320929738E-2},{"$f":"'Population 2016'!AX108/'Population 2016'!AX$15","v":3.0532585439195049E-2},{"$f":"'Population 2016'!AY108/'Population 2016'!AY$15","v":2.7908969092546625E-2},{"$f":"'Population 2016'!AZ108/'Population 2016'!AZ$15","v":2.3836638085030368E-2},{"$f":"'Population 2016'!BA108/'Population 2016'!BA$15","v":2.7555779654607336E-2},{"$f":"'Population 2016'!BB108/'Population 2016'!BB$15","v":3.6220860913538627E-2},{"$f":"'Population 2016'!BC108/'Population 2016'!BC$15","v":6.969540526587506E-2},106]
[null,"Female 55-59",{"$f":"'Population 2016'!C109/'Population 2016'!C$15","v":3.0067056024226692E-2},{"$f":"'Population 2016'!D109/'Population 2016'!D$15","v":3.2876536061249434E-2},{"$f":"'Population 2016'!E109/'Population 2016'!E$15","v":4.1023710952201732E-2},{"$f":"'Population 2016'!F109/'Population 2016'!F$15","v":3.759946206432814E-2},{"$f":"'Population 2016'!G109/'Population 2016'!G$15","v":4.5977911803869349E-2},{"$f":"'Population 2016'!H109/'Population 2016'!H$15","v":2.7338784350036879E-2},{"$f":"'Population 2016'!I109/'Population 2016'!I$15","v":4.5691303487835434E-2},{"$f":"'Population 2016'!J109/'Population 2016'!J$15","v":2.7726761064044078E-2},{"$f":"'Population 2016'!K109/'Population 2016'!K$15","v":2.8606134224111752E-2},{"$f":"'Population 2016'!L109/'Population 2016'!L$15","v":4.8318621911364955E-2},{"$f":"'Population 2016'!M109/'Population 2016'!M$15","v":4.8318621911364955E-2},{"$f":"'Population 2016'!N109/'Population 2016'!N$15","v":1.6409583196586808E-2},{"$f":"'Population 2016'!O109/'Population 2016'!O$15","v":2.6618269812462191E-2},{"$f":"'Population 2016'!P109/'Population 2016'!P$15","v":4.7804411664276444E-2},{"$f":"'Population 2016'!Q109/'Population 2016'!Q$15","v":5.2684244759093411E-2},{"$f":"'Population 2016'!R109/'Population 2016'!R$15","v":3.0700351774864087E-2},{"$f":"'Population 2016'!S109/'Population 2016'!S$15","v":3.0082114430003911E-2},{"$f":"'Population 2016'!T109/'Population 2016'!T$15","v":1.8675077604878878E-2},{"$f":"'Population 2016'!U109/'Population 2016'!U$15","v":5.9628291171915336E-2},{"$f":"'Population 2016'!V109/'Population 2016'!V$15","v":3.5151403758672976E-2},{"$f":"'Population 2016'!W109/'Population 2016'!W$15","v":2.8749297479572868E-2},{"$f":"'Population 2016'!X109/'Population 2016'!X$15","v":2.8749297479572868E-2},{"$f":"'Population 2016'!Y109/'Population 2016'!Y$15","v":3.1908286320583817E-2},{"$f":"'Population 2016'!Z109/'Population 2016'!Z$15","v":1.2295187480461208E-2},{"$f":"'Population 2016'!AA109/'Population 2016'!AA$15","v":2.1001774797870243E-2},{"$f":"'Population 2016'!AB109/'Population 2016'!AB$15","v":3.542536806027724E-2},{"$f":"'Population 2016'!AC109/'Population 2016'!AC$15","v":1.6645913257949275E-2},{"$f":"'Population 2016'!AD109/'Population 2016'!AD$15","v":4.4568519906877636E-2},{"$f":"'Population 2016'!AE109/'Population 2016'!AE$15","v":4.4093989820406659E-2},{"$f":"'Population 2016'!AF109/'Population 2016'!AF$15","v":1.5736150032334556E-2},{"$f":"'Population 2016'!AG109/'Population 2016'!AG$15","v":4.4093989820406659E-2},{"$f":"'Population 2016'!AH109/'Population 2016'!AH$15","v":2.9174375526115591E-2},{"$f":"'Population 2016'!AI109/'Population 2016'!AI$15","v":2.9497689132999799E-2},{"$f":"'Population 2016'!AJ109/'Population 2016'!AJ$15","v":4.682737600443336E-2},{"$f":"'Population 2016'!AK109/'Population 2016'!AK$15","v":5.1440121273370387E-2},{"$f":"'Population 2016'!AL109/'Population 2016'!AL$15","v":2.0469643133014057E-2},{"$f":"'Population 2016'!AM109/'Population 2016'!AM$15","v":2.6247107676246717E-2},{"$f":"'Population 2016'!AN109/'Population 2016'!AN$15","v":5.8760107816711593E-2},{"$f":"'Population 2016'!AO109/'Population 2016'!AO$15","v":5.8760107816711593E-2},{"$f":"'Population 2016'!AP109/'Population 2016'!AP$15","v":3.0161175634036502E-2},{"$f":"'Population 2016'!AQ109/'Population 2016'!AQ$15","v":2.1711845038496845E-2},{"$f":"'Population 2016'!AR109/'Population 2016'!AR$15","v":2.6687429522633303E-2},{"$f":"'Population 2016'!AS109/'Population 2016'!AS$15","v":4.5691303487835434E-2},{"$f":"'Population 2016'!AT109/'Population 2016'!AT$15","v":2.8455284552845527E-2},{"$f":"'Population 2016'!AU109/'Population 2016'!AU$15","v":2.8455284552845527E-2},{"$f":"'Population 2016'!AV109/'Population 2016'!AV$15","v":3.9841407987622084E-2},{"$f":"'Population 2016'!AW109/'Population 2016'!AW$15","v":3.3180509649216337E-2},{"$f":"'Population 2016'!AX109/'Population 2016'!AX$15","v":2.6889492858382005E-2},{"$f":"'Population 2016'!AY109/'Population 2016'!AY$15","v":2.6030797618786107E-2},{"$f":"'Population 2016'!AZ109/'Population 2016'!AZ$15","v":2.3222579492675956E-2},{"$f":"'Population 2016'!BA109/'Population 2016'!BA$15","v":2.5463254758603303E-2},{"$f":"'Population 2016'!BB109/'Population 2016'!BB$15","v":3.3260699749208568E-2},{"$f":"'Population 2016'!BC109/'Population 2016'!BC$15","v":5.9628291171915336E-2},107]
[null,"Female 60-64",{"$f":"'Population 2016'!C110/'Population 2016'!C$15","v":2.6865671641791045E-2},{"$f":"'Population 2016'!D110/'Population 2016'!D$15","v":2.9788329151386475E-2},{"$f":"'Population 2016'!E110/'Population 2016'!E$15","v":3.8263705934010787E-2},{"$f":"'Population 2016'!F110/'Population 2016'!F$15","v":3.1547685755911686E-2},{"$f":"'Population 2016'!G110/'Population 2016'!G$15","v":4.1199968669225345E-2},{"$f":"'Population 2016'!H110/'Population 2016'!H$15","v":2.4058757984274707E-2},{"$f":"'Population 2016'!I110/'Population 2016'!I$15","v":4.1471616008439377E-2},{"$f":"'Population 2016'!J110/'Population 2016'!J$15","v":2.3579595947627228E-2},{"$f":"'Population 2016'!K110/'Population 2016'!K$15","v":2.5387184937746735E-2},{"$f":"'Population 2016'!L110/'Population 2016'!L$15","v":4.7524510552518252E-2},{"$f":"'Population 2016'!M110/'Population 2016'!M$15","v":4.7524510552518252E-2},{"$f":"'Population 2016'!N110/'Population 2016'!N$15","v":1.4130474419283083E-2},{"$f":"'Population 2016'!O110/'Population 2016'!O$15","v":2.3302189061414711E-2},{"$f":"'Population 2016'!P110/'Population 2016'!P$15","v":3.6058184798197092E-2},{"$f":"'Population 2016'!Q110/'Population 2016'!Q$15","v":4.4128683644368838E-2},{"$f":"'Population 2016'!R110/'Population 2016'!R$15","v":2.6756209359343353E-2},{"$f":"'Population 2016'!S110/'Population 2016'!S$15","v":2.5853784620278753E-2},{"$f":"'Population 2016'!T110/'Population 2016'!T$15","v":1.5331330412129317E-2},{"$f":"'Population 2016'!U110/'Population 2016'!U$15","v":6.4016520392359319E-2},{"$f":"'Population 2016'!V110/'Population 2016'!V$15","v":3.2762027294031153E-2},{"$f":"'Population 2016'!W110/'Population 2016'!W$15","v":2.620941593532489E-2},{"$f":"'Population 2016'!X110/'Population 2016'!X$15","v":2.620941593532489E-2},{"$f":"'Population 2016'!Y110/'Population 2016'!Y$15","v":2.8751099839552818E-2},{"$f":"'Population 2016'!Z110/'Population 2016'!Z$15","v":9.6728516522922459E-3},{"$f":"'Population 2016'!AA110/'Population 2016'!AA$15","v":1.7840318274157753E-2},{"$f":"'Population 2016'!AB110/'Population 2016'!AB$15","v":3.2469785061123677E-2},{"$f":"'Population 2016'!AC110/'Population 2016'!AC$15","v":1.3274983865124436E-2},{"$f":"'Population 2016'!AD110/'Population 2016'!AD$15","v":4.0267529495324153E-2},{"$f":"'Population 2016'!AE110/'Population 2016'!AE$15","v":3.9953585273873257E-2},{"$f":"'Population 2016'!AF110/'Population 2016'!AF$15","v":1.1424876050873034E-2},{"$f":"'Population 2016'!AG110/'Population 2016'!AG$15","v":3.9953585273873257E-2},{"$f":"'Population 2016'!AH110/'Population 2016'!AH$15","v":2.6405938410151836E-2},{"$f":"'Population 2016'!AI110/'Population 2016'!AI$15","v":2.4463760349953369E-2},{"$f":"'Population 2016'!AJ110/'Population 2016'!AJ$15","v":3.83564897280608E-2},{"$f":"'Population 2016'!AK110/'Population 2016'!AK$15","v":4.9317837291561396E-2},{"$f":"'Population 2016'!AL110/'Population 2016'!AL$15","v":1.7824038312992431E-2},{"$f":"'Population 2016'!AM110/'Population 2016'!AM$15","v":2.3831968649937283E-2},{"$f":"'Population 2016'!AN110/'Population 2016'!AN$15","v":5.6064690026954175E-2},{"$f":"'Population 2016'!AO110/'Population 2016'!AO$15","v":5.6064690026954175E-2},{"$f":"'Population 2016'!AP110/'Population 2016'!AP$15","v":2.9509362408153592E-2},{"$f":"'Population 2016'!AQ110/'Population 2016'!AQ$15","v":1.7627994979487083E-2},{"$f":"'Population 2016'!AR110/'Population 2016'!AR$15","v":2.3371816212926669E-2},{"$f":"'Population 2016'!AS110/'Population 2016'!AS$15","v":4.1471616008439377E-2},{"$f":"'Population 2016'!AT110/'Population 2016'!AT$15","v":6.097560975609756E-2},{"$f":"'Population 2016'!AU110/'Population 2016'!AU$15","v":6.097560975609756E-2},{"$f":"'Population 2016'!AV110/'Population 2016'!AV$15","v":3.5554266189601266E-2},{"$f":"'Population 2016'!AW110/'Population 2016'!AW$15","v":2.9928563812773215E-2},{"$f":"'Population 2016'!AX110/'Population 2016'!AX$15","v":2.1858555484878275E-2},{"$f":"'Population 2016'!AY110/'Population 2016'!AY$15","v":2.3400259209630295E-2},{"$f":"'Population 2016'!AZ110/'Population 2016'!AZ$15","v":2.0498392282958199E-2},{"$f":"'Population 2016'!BA110/'Population 2016'!BA$15","v":2.1807638976427582E-2},{"$f":"'Population 2016'!BB110/'Population 2016'!BB$15","v":2.7977634337869508E-2},{"$f":"'Population 2016'!BC110/'Population 2016'!BC$15","v":6.4016520392359319E-2},108]
[null,"Female 65-69",0,0,0,0,0,0,0,0,0,0,0,0,0,0,0,0,0,0,0,0,0,0,0,0,0,0,0,0,0,0,0,0,0,0,0,0,0,0,0,0,0,0,0,0,0,0,0,0,0,0,0,0,0,109]
[null,"Female 70-74",0,0,0,0,0,0,0,0,0,0,0,0,0,0,0,0,0,0,0,0,0,0,0,0,0,0,0,0,0,0,0,0,0,0,0,0,0,0,0,0,0,0,0,0,0,0,0,0,0,0,0,0,0,110]
[null,"Female 75-79",0,0,0,0,0,0,0,0,0,0,0,0,0,0,0,0,0,0,0,0,0,0,0,0,0,0,0,0,0,0,0,0,0,0,0,0,0,0,0,0,0,0,0,0,0,0,0,0,0,0,0,0,0,111]
[null,"Female 80-84",0,0,0,0,0,0,0,0,0,0,0,0,0,0,0,0,0,0,0,0,0,0,0,0,0,0,0,0,0,0,0,0,0,0,0,0,0,0,0,0,0,0,0,0,0,0,0,0,0,0,0,0,0,112]
[null,"Female 85-89",0,0,0,0,0,0,0,0,0,0,0,0,0,0,0,0,0,0,0,0,0,0,0,0,0,0,0,0,0,0,0,0,0,0,0,0,0,0,0,0,0,0,0,0,0,0,0,0,0,0,0,0,0,113]
[null,"Female 90+",0,0,0,0,0,0,0,0,0,0,0,0,0,0,0,0,0,0,0,0,0,0,0,0,0,0,0,0,0,0,0,0,0,0,0,0,0,0,0,0,0,0,0,0,0,0,0,0,0,0,0,0,0,114]
[null,"Male 0-4",0,0,0,0,0,0,0,0,0,0,0,0,0,0,0,0,0,0,0,0,0,0,0,0,0,0,0,0,0,0,0,0,0,0,0,0,0,0,0,0,0,0,0,0,0,0,0,0,0,0,0,0,0,115]
[null,"Male 5-9",0,0,0,0,0,0,0,0,0,0,0,0,0,0,0,0,0,0,0,0,0,0,0,0,0,0,0,0,0,0,0,0,0,0,0,0,0,0,0,0,0,0,0,0,0,0,0,0,0,0,0,0,0,116]
[null,"Male 10-15",0,0,0,0,0,0,0,0,0,0,0,0,0,0,0,0,0,0,0,0,0,0,0,0,0,0,0,0,0,0,0,0,0,0,0,0,0,0,0,0,0,0,0,0,0,0,0,0,0,0,0,0,0,117]
[null,"Male 16-19",{"$f":"'Population 2016'!C120/'Population 2016'!C$15","v":2.00086523902228E-2},{"$f":"'Population 2016'!D120/'Population 2016'!D$15","v":2.1713954834973945E-2},{"$f":"'Population 2016'!E120/'Population 2016'!E$15","v":2.6659139380253417E-2},{"$f":"'Population 2016'!F120/'Population 2016'!F$15","v":2.1853636669281633E-2},{"$f":"'Population 2016'!G120/'Population 2016'!G$15","v":2.3811388736586513E-2},{"$f":"'Population 2016'!H120/'Population 2016'!H$15","v":1.5945008553178801E-2},{"$f":"'Population 2016'!I120/'Population 2016'!I$15","v":2.4065405155930638E-2},{"$f":"'Population 2016'!J120/'Population 2016'!J$15","v":1.8395639552106168E-2},{"$f":"'Population 2016'!K120/'Population 2016'!K$15","v":1.8584877011843304E-2},{"$f":"'Population 2016'!L120/'Population 2016'!L$15","v":2.7610641092208545E-2},{"$f":"'Population 2016'!M120/'Population 2016'!M$15","v":2.7610641092208545E-2},{"$f":"'Population 2016'!N120/'Population 2016'!N$15","v":1.0283338803194399E-2},{"$f":"'Population 2016'!O120/'Population 2016'!O$15","v":1.6289126391969708E-2},{"$f":"'Population 2016'!P120/'Population 2016'!P$15","v":2.8614354981902616E-2},{"$f":"'Population 2016'!Q120/'Population 2016'!Q$15","v":3.0419772852354029E-2},{"$f":"'Population 2016'!R120/'Population 2016'!R$15","v":2.3238460718473509E-2},{"$f":"'Population 2016'!S120/'Population 2016'!S$15","v":1.9657094381888434E-2},{"$f":"'Population 2016'!T120/'Population 2016'!T$15","v":1.5141685048958447E-2},{"$f":"'Population 2016'!U120/'Population 2016'!U$15","v":3.6138358286009295E-2},{"$f":"'Population 2016'!V120/'Population 2016'!V$15","v":2.5134402426136102E-2},{"$f":"'Population 2016'!W120/'Population 2016'!W$15","v":1.7671090744023173E-2},{"$f":"'Population 2016'!X120/'Population 2016'!X$15","v":1.7671090744023173E-2},{"$f":"'Population 2016'!Y120/'Population 2016'!Y$15","v":2.219088038921381E-2},{"$f":"'Population 2016'!Z120/'Population 2016'!Z$15","v":8.5658066533036651E-3},{"$f":"'Population 2016'!AA120/'Population 2016'!AA$15","v":1.3376717281272595E-2},{"$f":"'Population 2016'!AB120/'Population 2016'!AB$15","v":2.3533656181053741E-2},{"$f":"'Population 2016'!AC120/'Population 2016'!AC$15","v":1.076538091502139E-2},{"$f":"'Population 2016'!AD120/'Population 2016'!AD$15","v":2.6003235607465574E-2},{"$f":"'Population 2016'!AE120/'Population 2016'!AE$15","v":2.6741211529839923E-2},{"$f":"'Population 2016'!AF120/'Population 2016'!AF$15","v":7.6525113170942015E-3},{"$f":"'Population 2016'!AG120/'Population 2016'!AG$15","v":2.6741211529839923E-2},{"$f":"'Population 2016'!AH120/'Population 2016'!AH$15","v":1.8276186489126569E-2},{"$f":"'Population 2016'!AI120/'Population 2016'!AI$15","v":2.0259373566979075E-2},{"$f":"'Population 2016'!AJ120/'Population 2016'!AJ$15","v":2.8381427383921149E-2},{"$f":"'Population 2016'!AK120/'Population 2016'!AK$15","v":3.4967155128852956E-2},{"$f":"'Population 2016'!AL120/'Population 2016'!AL$15","v":1.2803182450177661E-2},{"$f":"'Population 2016'!AM120/'Population 2016'!AM$15","v":1.7225394797323091E-2},{"$f":"'Population 2016'!AN120/'Population 2016'!AN$15","v":3.6118598382749327E-2},{"$f":"'Population 2016'!AO120/'Population 2016'!AO$15","v":3.6118598382749327E-2},{"$f":"'Population 2016'!AP120/'Population 2016'!AP$15","v":2.2517184166864185E-2},{"$f":"'Population 2016'!AQ120/'Population 2016'!AQ$15","v":1.3581611434780165E-2},{"$f":"'Population 2016'!AR120/'Population 2016'!AR$15","v":1.6963253324741807E-2},{"$f":"'Population 2016'!AS120/'Population 2016'!AS$15","v":2.4065405155930638E-2},{"$f":"'Population 2016'!AT120/'Population 2016'!AT$15","v":1.6260162601626018E-2},{"$f":"'Population 2016'!AU120/'Population 2016'!AU$15","v":1.6260162601626018E-2},{"$f":"'Population 2016'!AV120/'Population 2016'!AV$15","v":2.069432356638623E-2},{"$f":"'Population 2016'!AW120/'Population 2016'!AW$15","v":1.9714255251092869E-2},{"$f":"'Population 2016'!AX120/'Population 2016'!AX$15","v":1.8215462904065227E-2},{"$f":"'Population 2016'!AY120/'Population 2016'!AY$15","v":1.630494475320168E-2},{"$f":"'Population 2016'!AZ120/'Population 2016'!AZ$15","v":1.489371204001429E-2},{"$f":"'Population 2016'!BA120/'Population 2016'!BA$15","v":1.4698096558678935E-2},{"$f":"'Population 2016'!BB120/'Population 2016'!BB$15","v":2.2406775479998354E-2},{"$f":"'Population 2016'!BC120/'Population 2016'!BC$15","v":3.6138358286009295E-2},118]
[null,"Male 20-24",{"$f":"'Population 2016'!C121/'Population 2016'!C$15","v":4.8172182565433701E-2},{"$f":"'Population 2016'!D121/'Population 2016'!D$15","v":4.5663642797400761E-2},{"$f":"'Population 2016'!E121/'Population 2016'!E$15","v":3.8389160707564922E-2},{"$f":"'Population 2016'!F121/'Population 2016'!F$15","v":3.4069259217751877E-2},{"$f":"'Population 2016'!G121/'Population 2016'!G$15","v":3.1174120780136289E-2},{"$f":"'Population 2016'!H121/'Population 2016'!H$15","v":2.0472700450415104E-2},{"$f":"'Population 2016'!I121/'Population 2016'!I$15","v":3.5603613107404231E-2},{"$f":"'Population 2016'!J121/'Population 2016'!J$15","v":3.0570531429587062E-2},{"$f":"'Population 2016'!K121/'Population 2016'!K$15","v":2.4658366231399938E-2},{"$f":"'Population 2016'!L121/'Population 2016'!L$15","v":3.7262148376653127E-2},{"$f":"'Population 2016'!M121/'Population 2016'!M$15","v":3.7262148376653127E-2},{"$f":"'Population 2016'!N121/'Population 2016'!N$15","v":3.061298909674361E-2},{"$f":"'Population 2016'!O121/'Population 2016'!O$15","v":2.1913020098138065E-2},{"$f":"'Population 2016'!P121/'Population 2016'!P$15","v":4.2067882264563275E-2},{"$f":"'Population 2016'!Q121/'Population 2016'!Q$15","v":4.2677740531345376E-2},{"$f":"'Population 2016'!R121/'Population 2016'!R$15","v":3.1446540880503145E-2},{"$f":"'Population 2016'!S121/'Population 2016'!S$15","v":2.9064796834717372E-2},{"$f":"'Population 2016'!T121/'Population 2016'!T$15","v":2.9235329933025241E-2},{"$f":"'Population 2016'!U121/'Population 2016'!U$15","v":4.0268456375838924E-2},{"$f":"'Population 2016'!V121/'Population 2016'!V$15","v":3.0211827413499977E-2},{"$f":"'Population 2016'!W121/'Population 2016'!W$15","v":2.1940253339674032E-2},{"$f":"'Population 2016'!X121/'Population 2016'!X$15","v":2.1940253339674032E-2},{"$f":"'Population 2016'!Y121/'Population 2016'!Y$15","v":3.0368510946638373E-2},{"$f":"'Population 2016'!Z121/'Population 2016'!Z$15","v":1.6149616579929752E-2},{"$f":"'Population 2016'!AA121/'Population 2016'!AA$15","v":1.9940652261693476E-2},{"$f":"'Population 2016'!AB121/'Population 2016'!AB$15","v":4.6137621935143688E-2},{"$f":"'Population 2016'!AC121/'Population 2016'!AC$15","v":1.7838334544948525E-2},{"$f":"'Population 2016'!AD121/'Population 2016'!AD$15","v":3.3658209367478202E-2},{"$f":"'Population 2016'!AE121/'Population 2016'!AE$15","v":3.449458055328463E-2},{"$f":"'Population 2016'!AF121/'Population 2016'!AF$15","v":1.1568585183588416E-2},{"$f":"'Population 2016'!AG121/'Population 2016'!AG$15","v":3.449458055328463E-2},{"$f":"'Population 2016'!AH121/'Population 2016'!AH$15","v":2.3885085101306793E-2},{"$f":"'Population 2016'!AI121/'Population 2016'!AI$15","v":3.1950248089734803E-2},{"$f":"'Population 2016'!AJ121/'Population 2016'!AJ$15","v":3.5071052527411627E-2},{"$f":"'Population 2016'!AK121/'Population 2016'!AK$15","v":4.9115715007579587E-2},{"$f":"'Population 2016'!AL121/'Population 2016'!AL$15","v":1.6066738761007261E-2},{"$f":"'Population 2016'!AM121/'Population 2016'!AM$15","v":2.206346362099457E-2},{"$f":"'Population 2016'!AN121/'Population 2016'!AN$15","v":4.9056603773584909E-2},{"$f":"'Population 2016'!AO121/'Population 2016'!AO$15","v":4.9056603773584909E-2},{"$f":"'Population 2016'!AP121/'Population 2016'!AP$15","v":3.9642095283242473E-2},{"$f":"'Population 2016'!AQ121/'Population 2016'!AQ$15","v":1.8283658979786815E-2},{"$f":"'Population 2016'!AR121/'Population 2016'!AR$15","v":2.574880524083123E-2},{"$f":"'Population 2016'!AS121/'Population 2016'!AS$15","v":3.5603613107404231E-2},{"$f":"'Population 2016'!AT121/'Population 2016'!AT$15","v":8.5365853658536592E-2},{"$f":"'Population 2016'!AU121/'Population 2016'!AU$15","v":8.5365853658536592E-2},{"$f":"'Population 2016'!AV121/'Population 2016'!AV$15","v":2.5755084936982239E-2},{"$f":"'Population 2016'!AW121/'Population 2016'!AW$15","v":2.6378078686427123E-2},{"$f":"'Population 2016'!AX121/'Population 2016'!AX$15","v":3.6199618342682011E-2},{"$f":"'Population 2016'!AY121/'Population 2016'!AY$15","v":2.7381763064824375E-2},{"$f":"'Population 2016'!AZ121/'Population 2016'!AZ$15","v":3.300285816362987E-2},{"$f":"'Population 2016'!BA121/'Population 2016'!BA$15","v":2.1051304676667087E-2},{"$f":"'Population 2016'!BB121/'Population 2016'!BB$15","v":3.1513382395263745E-2},{"$f":"'Population 2016'!BC121/'Population 2016'!BC$15","v":4.0268456375838924E-2},119]
[null,"Male 25-29",{"$f":"'Population 2016'!C122/'Population 2016'!C$15","v":5.7516764006056674E-2},{"$f":"'Population 2016'!D122/'Population 2016'!D$15","v":5.4333140320401464E-2},{"$f":"'Population 2016'!E122/'Population 2016'!E$15","v":4.5100991092711075E-2},{"$f":"'Population 2016'!F122/'Population 2016'!F$15","v":3.9840860697074973E-2},{"$f":"'Population 2016'!G122/'Population 2016'!G$15","v":2.8511004934597007E-2},{"$f":"'Population 2016'!H122/'Population 2016'!H$15","v":2.0017577174783033E-2},{"$f":"'Population 2016'!I122/'Population 2016'!I$15","v":3.744972637964001E-2},{"$f":"'Population 2016'!J122/'Population 2016'!J$15","v":3.0837134901356717E-2},{"$f":"'Population 2016'!K122/'Population 2016'!K$15","v":2.3504403279684179E-2},{"$f":"'Population 2016'!L122/'Population 2016'!L$15","v":3.0328945359029962E-2},{"$f":"'Population 2016'!M122/'Population 2016'!M$15","v":3.0328945359029962E-2},{"$f":"'Population 2016'!N122/'Population 2016'!N$15","v":2.8352113189658315E-2},{"$f":"'Population 2016'!O122/'Population 2016'!O$15","v":2.1061593959355605E-2},{"$f":"'Population 2016'!P122/'Population 2016'!P$15","v":3.96093696646862E-2},{"$f":"'Population 2016'!Q122/'Population 2016'!Q$15","v":4.2527642967929151E-2},{"$f":"'Population 2016'!R122/'Population 2016'!R$15","v":2.7502398464982411E-2},{"$f":"'Population 2016'!S122/'Population 2016'!S$15","v":3.4181208454008627E-2},{"$f":"'Population 2016'!T122/'Population 2016'!T$15","v":4.2969646760557756E-2},{"$f":"'Population 2016'!U122/'Population 2016'!U$15","v":4.5689210118740317E-2},{"$f":"'Population 2016'!V122/'Population 2016'!V$15","v":3.0625373340072599E-2},{"$f":"'Population 2016'!W122/'Population 2016'!W$15","v":2.3312870174225064E-2},{"$f":"'Population 2016'!X122/'Population 2016'!X$15","v":2.3312870174225064E-2},{"$f":"'Population 2016'!Y122/'Population 2016'!Y$15","v":3.0717871745768854E-2},{"$f":"'Population 2016'!Z122/'Population 2016'!Z$15","v":2.2210779896651281E-2},{"$f":"'Population 2016'!AA122/'Population 2016'!AA$15","v":2.2638845849257998E-2},{"$f":"'Population 2016'!AB122/'Population 2016'!AB$15","v":5.4255068200424604E-2},{"$f":"'Population 2016'!AC122/'Population 2016'!AC$15","v":2.1729898584209654E-2},{"$f":"'Population 2016'!AD122/'Population 2016'!AD$15","v":3.2652014362940456E-2},{"$f":"'Population 2016'!AE122/'Population 2016'!AE$15","v":3.4046256494105857E-2},{"$f":"'Population 2016'!AF122/'Population 2016'!AF$15","v":1.1496730617230725E-2},{"$f":"'Population 2016'!AG122/'Population 2016'!AG$15","v":3.4046256494105857E-2},{"$f":"'Population 2016'!AH122/'Population 2016'!AH$15","v":2.4344240525417855E-2},{"$f":"'Population 2016'!AI122/'Population 2016'!AI$15","v":3.9106980003400606E-2},{"$f":"'Population 2016'!AJ122/'Population 2016'!AJ$15","v":3.6891897241024423E-2},{"$f":"'Population 2016'!AK122/'Population 2016'!AK$15","v":5.3764527539161194E-2},{"$f":"'Population 2016'!AL122/'Population 2016'!AL$15","v":1.498532365209331E-2},{"$f":"'Population 2016'!AM122/'Population 2016'!AM$15","v":2.2562072968361678E-2},{"$f":"'Population 2016'!AN122/'Population 2016'!AN$15","v":5.6064690026954175E-2},{"$f":"'Population 2016'!AO122/'Population 2016'!AO$15","v":5.6064690026954175E-2},{"$f":"'Population 2016'!AP122/'Population 2016'!AP$15","v":4.4738089594690687E-2},{"$f":"'Population 2016'!AQ122/'Population 2016'!AQ$15","v":1.9032989265843653E-2},{"$f":"'Population 2016'!AR122/'Population 2016'!AR$15","v":2.835991336877338E-2},{"$f":"'Population 2016'!AS122/'Population 2016'!AS$15","v":3.744972637964001E-2},{"$f":"'Population 2016'!AT122/'Population 2016'!AT$15","v":9.3495934959349589E-2},{"$f":"'Population 2016'!AU122/'Population 2016'!AU$15","v":9.3495934959349589E-2},{"$f":"'Population 2016'!AV122/'Population 2016'!AV$15","v":2.6915514295845017E-2},{"$f":"'Population 2016'!AW122/'Population 2016'!AW$15","v":2.6783239151295449E-2},{"$f":"'Population 2016'!AX122/'Population 2016'!AX$15","v":3.7818770600821144E-2},{"$f":"'Population 2016'!AY122/'Population 2016'!AY$15","v":2.8436175120268876E-2},{"$f":"'Population 2016'!AZ122/'Population 2016'!AZ$15","v":3.3728563772775992E-2},{"$f":"'Population 2016'!BA122/'Population 2016'!BA$15","v":2.1278204966595236E-2},{"$f":"'Population 2016'!BB122/'Population 2016'!BB$15","v":3.089668215269498E-2},{"$f":"'Population 2016'!BC122/'Population 2016'!BC$15","v":4.5689210118740317E-2},120]
[null,"Male 30-34",{"$f":"'Population 2016'!C123/'Population 2016'!C$15","v":4.570625135193597E-2},{"$f":"'Population 2016'!D123/'Population 2016'!D$15","v":4.4280383452357977E-2},{"$f":"'Population 2016'!E123/'Population 2016'!E$15","v":4.0145527537322798E-2},{"$f":"'Population 2016'!F123/'Population 2016'!F$15","v":4.0289140423624345E-2},{"$f":"'Population 2016'!G123/'Population 2016'!G$15","v":3.0312524477167698E-2},{"$f":"'Population 2016'!H123/'Population 2016'!H$15","v":1.9060248905350054E-2},{"$f":"'Population 2016'!I123/'Population 2016'!I$15","v":3.1845453946067116E-2},{"$f":"'Population 2016'!J123/'Population 2016'!J$15","v":2.4438651578885005E-2},{"$f":"'Population 2016'!K123/'Population 2016'!K$15","v":2.2289705435772852E-2},{"$f":"'Population 2016'!L123/'Population 2016'!L$15","v":3.0451116337314069E-2},{"$f":"'Population 2016'!M123/'Population 2016'!M$15","v":3.0451116337314069E-2},{"$f":"'Population 2016'!N123/'Population 2016'!N$15","v":2.1806512781242023E-2},{"$f":"'Population 2016'!O123/'Population 2016'!O$15","v":2.1532118930788019E-2},{"$f":"'Population 2016'!P123/'Population 2016'!P$15","v":3.4692344464932051E-2},{"$f":"'Population 2016'!Q123/'Population 2016'!Q$15","v":4.1577025066293093E-2},{"$f":"'Population 2016'!R123/'Population 2016'!R$15","v":2.3451657605798957E-2},{"$f":"'Population 2016'!S123/'Population 2016'!S$15","v":3.2564104263455435E-2},{"$f":"'Population 2016'!T123/'Population 2016'!T$15","v":3.8817411440606069E-2},{"$f":"'Population 2016'!U123/'Population 2016'!U$15","v":3.7687145069695407E-2},{"$f":"'Population 2016'!V123/'Population 2016'!V$15","v":3.0671322887469557E-2},{"$f":"'Population 2016'!W123/'Population 2016'!W$15","v":2.2772469845661666E-2},{"$f":"'Population 2016'!X123/'Population 2016'!X$15","v":2.2772469845661666E-2},{"$f":"'Population 2016'!Y123/'Population 2016'!Y$15","v":2.7948863930438383E-2},{"$f":"'Population 2016'!Z123/'Population 2016'!Z$15","v":2.0607219698780779E-2},{"$f":"'Population 2016'!AA123/'Population 2016'!AA$15","v":2.1817180168590147E-2},{"$f":"'Population 2016'!AB123/'Population 2016'!AB$15","v":4.5069171742961413E-2},{"$f":"'Population 2016'!AC123/'Population 2016'!AC$15","v":2.0539876535212418E-2},{"$f":"'Population 2016'!AD123/'Population 2016'!AD$15","v":3.2296886714280076E-2},{"$f":"'Population 2016'!AE123/'Population 2016'!AE$15","v":3.2965004351380577E-2},{"$f":"'Population 2016'!AF123/'Population 2016'!AF$15","v":1.1460803334051878E-2},{"$f":"'Population 2016'!AG123/'Population 2016'!AG$15","v":3.2965004351380577E-2},{"$f":"'Population 2016'!AH123/'Population 2016'!AH$15","v":2.4213696336209806E-2},{"$f":"'Population 2016'!AI123/'Population 2016'!AI$15","v":3.7288170524981581E-2},{"$f":"'Population 2016'!AJ123/'Population 2016'!AJ$15","v":3.5704389819103038E-2},{"$f":"'Population 2016'!AK123/'Population 2016'!AK$15","v":5.0025265285497729E-2},{"$f":"'Population 2016'!AL123/'Population 2016'!AL$15","v":1.3594932797775374E-2},{"$f":"'Population 2016'!AM123/'Population 2016'!AM$15","v":2.308405462888662E-2},{"$f":"'Population 2016'!AN123/'Population 2016'!AN$15","v":3.8274932614555258E-2},{"$f":"'Population 2016'!AO123/'Population 2016'!AO$15","v":3.8274932614555258E-2},{"$f":"'Population 2016'!AP123/'Population 2016'!AP$15","v":4.456032235126807E-2},{"$f":"'Population 2016'!AQ123/'Population 2016'!AQ$15","v":2.0456716809351641E-2},{"$f":"'Population 2016'!AR123/'Population 2016'!AR$15","v":2.65950706116093E-2},{"$f":"'Population 2016'!AS123/'Population 2016'!AS$15","v":3.1845453946067116E-2},{"$f":"'Population 2016'!AT123/'Population 2016'!AT$15","v":4.878048780487805E-2},{"$f":"'Population 2016'!AU123/'Population 2016'!AU$15","v":4.878048780487805E-2},{"$f":"'Population 2016'!AV123/'Population 2016'!AV$15","v":2.4626889726976759E-2},{"$f":"'Population 2016'!AW123/'Population 2016'!AW$15","v":2.5759675871628106E-2},{"$f":"'Population 2016'!AX123/'Population 2016'!AX$15","v":2.6484704793847222E-2},{"$f":"'Population 2016'!AY123/'Population 2016'!AY$15","v":2.6217516420271071E-2},{"$f":"'Population 2016'!AZ123/'Population 2016'!AZ$15","v":2.977625937834941E-2},{"$f":"'Population 2016'!BA123/'Population 2016'!BA$15","v":2.0647926383461489E-2},{"$f":"'Population 2016'!BB123/'Population 2016'!BB$15","v":3.3199029724951694E-2},{"$f":"'Population 2016'!BC123/'Population 2016'!BC$15","v":3.7687145069695407E-2},121]
[null,"Male 35-39",{"$f":"'Population 2016'!C124/'Population 2016'!C$15","v":3.5518061864590091E-2},{"$f":"'Population 2016'!D124/'Population 2016'!D$15","v":3.6431190889789619E-2},{"$f":"'Population 2016'!E124/'Population 2016'!E$15","v":3.9079161962112662E-2},{"$f":"'Population 2016'!F124/'Population 2016'!F$15","v":3.4405469012663906E-2},{"$f":"'Population 2016'!G124/'Population 2016'!G$15","v":2.9529255110832615E-2},{"$f":"'Population 2016'!H124/'Population 2016'!H$15","v":1.6878795963527364E-2},{"$f":"'Population 2016'!I124/'Population 2016'!I$15","v":3.1120195160545924E-2},{"$f":"'Population 2016'!J124/'Population 2016'!J$15","v":2.1594881213342021E-2},{"$f":"'Population 2016'!K124/'Population 2016'!K$15","v":2.3322198603097481E-2},{"$f":"'Population 2016'!L124/'Population 2016'!L$15","v":2.8710179896765522E-2},{"$f":"'Population 2016'!M124/'Population 2016'!M$15","v":2.8710179896765522E-2},{"$f":"'Population 2016'!N124/'Population 2016'!N$15","v":1.4896254968457135E-2},{"$f":"'Population 2016'!O124/'Population 2016'!O$15","v":1.9000246465461227E-2},{"$f":"'Population 2016'!P124/'Population 2016'!P$15","v":3.0185071365157412E-2},{"$f":"'Population 2016'!Q124/'Population 2016'!Q$15","v":3.9925951868714664E-2},{"$f":"'Population 2016'!R124/'Population 2016'!R$15","v":2.1213090288881783E-2},{"$f":"'Population 2016'!S124/'Population 2016'!S$15","v":2.8547853691835611E-2},{"$f":"'Population 2016'!T124/'Population 2016'!T$15","v":2.9754359348019205E-2},{"$f":"'Population 2016'!U124/'Population 2016'!U$15","v":3.6654620547237997E-2},{"$f":"'Population 2016'!V124/'Population 2016'!V$15","v":3.0671322887469557E-2},{"$f":"'Population 2016'!W124/'Population 2016'!W$15","v":2.2318533569668411E-2},{"$f":"'Population 2016'!X124/'Population 2016'!X$15","v":2.2318533569668411E-2},{"$f":"'Population 2016'!Y124/'Population 2016'!Y$15","v":2.6706692200196676E-2},{"$f":"'Population 2016'!Z124/'Population 2016'!Z$15","v":1.6109159785946781E-2},{"$f":"'Population 2016'!AA124/'Population 2016'!AA$15","v":1.8666679187286563E-2},{"$f":"'Population 2016'!AB124/'Population 2016'!AB$15","v":3.7895291881166138E-2},{"$f":"'Population 2016'!AC124/'Population 2016'!AC$15","v":1.6792266776071919E-2},{"$f":"'Population 2016'!AD124/'Population 2016'!AD$15","v":3.0718541609122834E-2},{"$f":"'Population 2016'!AE124/'Population 2016'!AE$15","v":3.1118964107703262E-2},{"$f":"'Population 2016'!AF124/'Population 2016'!AF$15","v":1.1029675935905727E-2},{"$f":"'Population 2016'!AG124/'Population 2016'!AG$15","v":3.1118964107703262E-2},{"$f":"'Population 2016'!AH124/'Population 2016'!AH$15","v":2.2183509117836387E-2},{"$f":"'Population 2016'!AI124/'Population 2016'!AI$15","v":3.1316498611418823E-2},{"$f":"'Population 2016'!AJ124/'Population 2016'!AJ$15","v":3.5071052527411627E-2},{"$f":"'Population 2016'!AK124/'Population 2016'!AK$15","v":4.7094492167761494E-2},{"$f":"'Population 2016'!AL124/'Population 2016'!AL$15","v":1.1644523404912715E-2},{"$f":"'Population 2016'!AM124/'Population 2016'!AM$15","v":2.0653334060471967E-2},{"$f":"'Population 2016'!AN124/'Population 2016'!AN$15","v":3.8814016172506738E-2},{"$f":"'Population 2016'!AO124/'Population 2016'!AO$15","v":3.8814016172506738E-2},{"$f":"'Population 2016'!AP124/'Population 2016'!AP$15","v":4.0175397013510313E-2},{"$f":"'Population 2016'!AQ124/'Population 2016'!AQ$15","v":1.6223000693130516E-2},{"$f":"'Population 2016'!AR124/'Population 2016'!AR$15","v":2.3154880166102849E-2},{"$f":"'Population 2016'!AS124/'Population 2016'!AS$15","v":3.1120195160545924E-2},{"$f":"'Population 2016'!AT124/'Population 2016'!AT$15","v":6.7073170731707321E-2},{"$f":"'Population 2016'!AU124/'Population 2016'!AU$15","v":6.7073170731707321E-2},{"$f":"'Population 2016'!AV124/'Population 2016'!AV$15","v":2.2563904200109595E-2},{"$f":"'Population 2016'!AW124/'Population 2016'!AW$15","v":2.4277641539609766E-2},{"$f":"'Population 2016'!AX124/'Population 2016'!AX$15","v":1.9950268894928583E-2},{"$f":"'Population 2016'!AY124/'Population 2016'!AY$15","v":2.2922478747007008E-2},{"$f":"'Population 2016'!AZ124/'Population 2016'!AZ$15","v":2.3546355841371918E-2},{"$f":"'Population 2016'!BA124/'Population 2016'!BA$15","v":2.0294970376906592E-2},{"$f":"'Population 2016'!BB124/'Population 2016'!BB$15","v":2.9046581424988695E-2},{"$f":"'Population 2016'!BC124/'Population 2016'!BC$15","v":3.6654620547237997E-2},122]
[null,"Male 40-44",{"$f":"'Population 2016'!C125/'Population 2016'!C$15","v":3.0910664070949601E-2},{"$f":"'Population 2016'!D125/'Population 2016'!D$15","v":3.2394003731583347E-2},{"$f":"'Population 2016'!E125/'Population 2016'!E$15","v":3.669552126458412E-2},{"$f":"'Population 2016'!F125/'Population 2016'!F$15","v":3.2500280174829095E-2},{"$f":"'Population 2016'!G125/'Population 2016'!G$15","v":2.8197697188062976E-2},{"$f":"'Population 2016'!H125/'Population 2016'!H$15","v":1.9688005147601186E-2},{"$f":"'Population 2016'!I125/'Population 2016'!I$15","v":3.3889365068899585E-2},{"$f":"'Population 2016'!J125/'Population 2016'!J$15","v":2.3253747259908763E-2},{"$f":"'Population 2016'!K125/'Population 2016'!K$15","v":2.5326450045551171E-2},{"$f":"'Population 2016'!L125/'Population 2016'!L$15","v":3.4268959408692463E-2},{"$f":"'Population 2016'!M125/'Population 2016'!M$15","v":3.4268959408692463E-2},{"$f":"'Population 2016'!N125/'Population 2016'!N$15","v":1.3984611457535646E-2},{"$f":"'Population 2016'!O125/'Population 2016'!O$15","v":2.1151217763437969E-2},{"$f":"'Population 2016'!P125/'Population 2016'!P$15","v":3.3872840264973024E-2},{"$f":"'Population 2016'!Q125/'Population 2016'!Q$15","v":4.1126732376044431E-2},{"$f":"'Population 2016'!R125/'Population 2016'!R$15","v":2.8248587570621469E-2},{"$f":"'Population 2016'!S125/'Population 2016'!S$15","v":2.8375539310875025E-2},{"$f":"'Population 2016'!T125/'Population 2016'!T$15","v":2.5472366674319024E-2},{"$f":"'Population 2016'!U125/'Population 2016'!U$15","v":5.1368094992256065E-2},{"$f":"'Population 2016'!V125/'Population 2016'!V$15","v":3.3221522768000736E-2},{"$f":"'Population 2016'!W125/'Population 2016'!W$15","v":2.4480134883922009E-2},{"$f":"'Population 2016'!X125/'Population 2016'!X$15","v":2.4480134883922009E-2},{"$f":"'Population 2016'!Y125/'Population 2016'!Y$15","v":2.8867553439262977E-2},{"$f":"'Population 2016'!Z125/'Population 2016'!Z$15","v":1.2427591533496386E-2},{"$f":"'Population 2016'!AA125/'Population 2016'!AA$15","v":1.7935788000863921E-2},{"$f":"'Population 2016'!AB125/'Population 2016'!AB$15","v":3.3538235253305952E-2},{"$f":"'Population 2016'!AC125/'Population 2016'!AC$15","v":1.4568173148208128E-2},{"$f":"'Population 2016'!AD125/'Population 2016'!AD$15","v":3.0185850136132265E-2},{"$f":"'Population 2016'!AE125/'Population 2016'!AE$15","v":3.0855244072892217E-2},{"$f":"'Population 2016'!AF125/'Population 2016'!AF$15","v":9.3770209096788095E-3},{"$f":"'Population 2016'!AG125/'Population 2016'!AG$15","v":3.0855244072892217E-2},{"$f":"'Population 2016'!AH125/'Population 2016'!AH$15","v":2.4254210050101959E-2},{"$f":"'Population 2016'!AI125/'Population 2016'!AI$15","v":2.9801682785200147E-2},{"$f":"'Population 2016'!AJ125/'Population 2016'!AJ$15","v":3.4952301785219492E-2},{"$f":"'Population 2016'!AK125/'Population 2016'!AK$15","v":4.0727640222334514E-2},{"$f":"'Population 2016'!AL125/'Population 2016'!AL$15","v":1.434806117719759E-2},{"$f":"'Population 2016'!AM125/'Population 2016'!AM$15","v":2.2842540726255679E-2},{"$f":"'Population 2016'!AN125/'Population 2016'!AN$15","v":5.498652291105121E-2},{"$f":"'Population 2016'!AO125/'Population 2016'!AO$15","v":5.498652291105121E-2},{"$f":"'Population 2016'!AP125/'Population 2016'!AP$15","v":2.9924152642806352E-2},{"$f":"'Population 2016'!AQ125/'Population 2016'!AQ$15","v":1.7197130065004403E-2},{"$f":"'Population 2016'!AR125/'Population 2016'!AR$15","v":2.2920761066065259E-2},{"$f":"'Population 2016'!AS125/'Population 2016'!AS$15","v":3.3889365068899585E-2},{"$f":"'Population 2016'!AT125/'Population 2016'!AT$15","v":5.894308943089431E-2},{"$f":"'Population 2016'!AU125/'Population 2016'!AU$15","v":5.894308943089431E-2},{"$f":"'Population 2016'!AV125/'Population 2016'!AV$15","v":2.6496470360700127E-2},{"$f":"'Population 2016'!AW125/'Population 2016'!AW$15","v":2.6186160571489498E-2},{"$f":"'Population 2016'!AX125/'Population 2016'!AX$15","v":2.1280286821257155E-2},{"$f":"'Population 2016'!AY125/'Population 2016'!AY$15","v":2.260945016804692E-2},{"$f":"'Population 2016'!AZ125/'Population 2016'!AZ$15","v":2.0677027509824936E-2},{"$f":"'Population 2016'!BA125/'Population 2016'!BA$15","v":1.8983990923988402E-2},{"$f":"'Population 2016'!BB125/'Population 2016'!BB$15","v":3.139004234674999E-2},{"$f":"'Population 2016'!BC125/'Population 2016'!BC$15","v":5.1368094992256065E-2},123]
[null,"Male 45-49",{"$f":"'Population 2016'!C126/'Population 2016'!C$15","v":3.2814189919965389E-2},{"$f":"'Population 2016'!D126/'Population 2016'!D$15","v":3.442063951618092E-2},{"$f":"'Population 2016'!E126/'Population 2016'!E$15","v":3.9079161962112662E-2},{"$f":"'Population 2016'!F126/'Population 2016'!F$15","v":3.731928723523479E-2},{"$f":"'Population 2016'!G126/'Population 2016'!G$15","v":3.9006814443487116E-2},{"$f":"'Population 2016'!H126/'Population 2016'!H$15","v":2.5275035703636279E-2},{"$f":"'Population 2016'!I126/'Population 2016'!I$15","v":4.0350761521724794E-2},{"$f":"'Population 2016'!J126/'Population 2016'!J$15","v":2.8645061911250668E-2},{"$f":"'Population 2016'!K126/'Population 2016'!K$15","v":3.2371697540236867E-2},{"$f":"'Population 2016'!L126/'Population 2016'!L$15","v":4.1263247915457685E-2},{"$f":"'Population 2016'!M126/'Population 2016'!M$15","v":4.1263247915457685E-2},{"$f":"'Population 2016'!N126/'Population 2016'!N$15","v":1.6628377639207964E-2},{"$f":"'Population 2016'!O126/'Population 2016'!O$15","v":2.6416616253276869E-2},{"$f":"'Population 2016'!P126/'Population 2016'!P$15","v":3.865328143140067E-2},{"$f":"'Population 2016'!Q126/'Population 2016'!Q$15","v":4.6830439785860808E-2},{"$f":"'Population 2016'!R126/'Population 2016'!R$15","v":3.0273958000213198E-2},{"$f":"'Population 2016'!S126/'Population 2016'!S$15","v":3.0430056930020478E-2},{"$f":"'Population 2016'!T126/'Population 2016'!T$15","v":2.3366305009631987E-2},{"$f":"'Population 2016'!U126/'Population 2016'!U$15","v":6.066081569437274E-2},{"$f":"'Population 2016'!V126/'Population 2016'!V$15","v":3.928686302439921E-2},{"$f":"'Population 2016'!W126/'Population 2016'!W$15","v":2.8046777052440446E-2},{"$f":"'Population 2016'!X126/'Population 2016'!X$15","v":2.8046777052440446E-2},{"$f":"'Population 2016'!Y126/'Population 2016'!Y$15","v":3.4638476269344236E-2},{"$f":"'Population 2016'!Z126/'Population 2016'!Z$15","v":1.3130068592655253E-2},{"$f":"'Population 2016'!AA126/'Population 2016'!AA$15","v":2.054007693920926E-2},{"$f":"'Population 2016'!AB126/'Population 2016'!AB$15","v":3.6937849501158644E-2},{"$f":"'Population 2016'!AC126/'Population 2016'!AC$15","v":1.6139674039525046E-2},{"$f":"'Population 2016'!AD126/'Population 2016'!AD$15","v":3.8038117034289547E-2},{"$f":"'Population 2016'!AE126/'Population 2016'!AE$15","v":3.7711964977979379E-2},{"$f":"'Population 2016'!AF126/'Population 2016'!AF$15","v":1.1460803334051878E-2},{"$f":"'Population 2016'!AG126/'Population 2016'!AG$15","v":3.7711964977979379E-2},{"$f":"'Population 2016'!AH126/'Population 2016'!AH$15","v":2.8796247529788835E-2},{"$f":"'Population 2016'!AI126/'Population 2016'!AI$15","v":3.0790950263547039E-2},{"$f":"'Population 2016'!AJ126/'Population 2016'!AJ$15","v":4.0573170248980724E-2},{"$f":"'Population 2016'!AK126/'Population 2016'!AK$15","v":5.2753916119252148E-2},{"$f":"'Population 2016'!AL126/'Population 2016'!AL$15","v":1.9156496215047118E-2},{"$f":"'Population 2016'!AM126/'Population 2016'!AM$15","v":2.5834196810458333E-2},{"$f":"'Population 2016'!AN126/'Population 2016'!AN$15","v":5.6603773584905662E-2},{"$f":"'Population 2016'!AO126/'Population 2016'!AO$15","v":5.6603773584905662E-2},{"$f":"'Population 2016'!AP126/'Population 2016'!AP$15","v":3.6205261910405309E-2},{"$f":"'Population 2016'!AQ126/'Population 2016'!AQ$15","v":1.9875985837657595E-2},{"$f":"'Population 2016'!AR126/'Population 2016'!AR$15","v":2.6267160679446563E-2},{"$f":"'Population 2016'!AS126/'Population 2016'!AS$15","v":4.0350761521724794E-2},{"$f":"'Population 2016'!AT126/'Population 2016'!AT$15","v":2.6422764227642278E-2},{"$f":"'Population 2016'!AU126/'Population 2016'!AU$15","v":2.6422764227642278E-2},{"$f":"'Population 2016'!AV126/'Population 2016'!AV$15","v":3.3845856300164394E-2},{"$f":"'Population 2016'!AW126/'Population 2016'!AW$15","v":3.2849984006823756E-2},{"$f":"'Population 2016'!AX126/'Population 2016'!AX$15","v":2.5096860001156539E-2},{"$f":"'Population 2016'!AY126/'Population 2016'!AY$15","v":2.6272433714825474E-2},{"$f":"'Population 2016'!AZ126/'Population 2016'!AZ$15","v":2.4439531975705611E-2},{"$f":"'Population 2016'!BA126/'Population 2016'!BA$15","v":2.337072986259927E-2},{"$f":"'Population 2016'!BB126/'Population 2016'!BB$15","v":3.4411873535336923E-2},{"$f":"'Population 2016'!BC126/'Population 2016'!BC$15","v":6.066081569437274E-2},124]
[null,"Male 50-54",{"$f":"'Population 2016'!C127/'Population 2016'!C$15","v":3.0456413584252651E-2},{"$f":"'Population 2016'!D127/'Population 2016'!D$15","v":3.32143086920157E-2},{"$f":"'Population 2016'!E127/'Population 2016'!E$15","v":4.1211893112532934E-2},{"$f":"'Population 2016'!F127/'Population 2016'!F$15","v":3.7375322201053454E-2},{"$f":"'Population 2016'!G127/'Population 2016'!G$15","v":4.0103391556356234E-2},{"$f":"'Population 2016'!H127/'Population 2016'!H$15","v":2.6726722013842026E-2},{"$f":"'Population 2016'!I127/'Population 2016'!I$15","v":4.5691303487835434E-2},{"$f":"'Population 2016'!J127/'Population 2016'!J$15","v":2.8941287990994727E-2},{"$f":"'Population 2016'!K127/'Population 2016'!K$15","v":3.0245976313392042E-2},{"$f":"'Population 2016'!L127/'Population 2016'!L$15","v":4.8318621911364955E-2},{"$f":"'Population 2016'!M127/'Population 2016'!M$15","v":4.8318621911364955E-2},{"$f":"'Population 2016'!N127/'Population 2016'!N$15","v":1.5461473945228458E-2},{"$f":"'Population 2016'!O127/'Population 2016'!O$15","v":2.7648943559409379E-2},{"$f":"'Population 2016'!P127/'Population 2016'!P$15","v":4.9580004097521002E-2},{"$f":"'Population 2016'!Q127/'Population 2016'!Q$15","v":5.0632911392405063E-2},{"$f":"'Population 2016'!R127/'Population 2016'!R$15","v":3.6456667732651105E-2},{"$f":"'Population 2016'!S127/'Population 2016'!S$15","v":3.1275060144346431E-2},{"$f":"'Population 2016'!T127/'Population 2016'!T$15","v":2.2497928873007476E-2},{"$f":"'Population 2016'!U127/'Population 2016'!U$15","v":6.6855962829117196E-2},{"$f":"'Population 2016'!V127/'Population 2016'!V$15","v":3.8184073886872213E-2},{"$f":"'Population 2016'!W127/'Population 2016'!W$15","v":2.9246465781851194E-2},{"$f":"'Population 2016'!X127/'Population 2016'!X$15","v":2.9246465781851194E-2},{"$f":"'Population 2016'!Y127/'Population 2016'!Y$15","v":3.414678329279023E-2},{"$f":"'Population 2016'!Z127/'Population 2016'!Z$15","v":1.2692399639566745E-2},{"$f":"'Population 2016'!AA127/'Population 2016'!AA$15","v":2.1172368243951759E-2},{"$f":"'Population 2016'!AB127/'Population 2016'!AB$15","v":3.566125966114865E-2},{"$f":"'Population 2016'!AC127/'Population 2016'!AC$15","v":1.687624010614229E-2},{"$f":"'Population 2016'!AD127/'Population 2016'!AD$15","v":4.192479185573926E-2},{"$f":"'Population 2016'!AE127/'Population 2016'!AE$15","v":4.2538041615021491E-2},{"$f":"'Population 2016'!AF127/'Population 2016'!AF$15","v":1.5053531651936481E-2},{"$f":"'Population 2016'!AG127/'Population 2016'!AG$15","v":4.2538041615021491E-2},{"$f":"'Population 2016'!AH127/'Population 2016'!AH$15","v":2.9232895335070921E-2},{"$f":"'Population 2016'!AI127/'Population 2016'!AI$15","v":3.1115553654879613E-2},{"$f":"'Population 2016'!AJ127/'Population 2016'!AJ$15","v":4.4016941772552748E-2},{"$f":"'Population 2016'!AK127/'Population 2016'!AK$15","v":5.1035876705406769E-2},{"$f":"'Population 2016'!AL127/'Population 2016'!AL$15","v":1.9426849992275605E-2},{"$f":"'Population 2016'!AM127/'Population 2016'!AM$15","v":2.6317224615720218E-2},{"$f":"'Population 2016'!AN127/'Population 2016'!AN$15","v":6.4150943396226415E-2},{"$f":"'Population 2016'!AO127/'Population 2016'!AO$15","v":6.4150943396226415E-2},{"$f":"'Population 2016'!AP127/'Population 2016'!AP$15","v":3.567196018013747E-2},{"$f":"'Population 2016'!AQ127/'Population 2016'!AQ$15","v":2.0981248009591429E-2},{"$f":"'Population 2016'!AR127/'Population 2016'!AR$15","v":2.7076912062145377E-2},{"$f":"'Population 2016'!AS127/'Population 2016'!AS$15","v":4.5691303487835434E-2},{"$f":"'Population 2016'!AT127/'Population 2016'!AT$15","v":7.3170731707317069E-2},{"$f":"'Population 2016'!AU127/'Population 2016'!AU$15","v":7.3170731707317069E-2},{"$f":"'Population 2016'!AV127/'Population 2016'!AV$15","v":3.758501756761113E-2},{"$f":"'Population 2016'!AW127/'Population 2016'!AW$15","v":3.3223158119202477E-2},{"$f":"'Population 2016'!AX127/'Population 2016'!AX$15","v":2.7699068987451569E-2},{"$f":"'Population 2016'!AY127/'Population 2016'!AY$15","v":2.6486611163587637E-2},{"$f":"'Population 2016'!AZ127/'Population 2016'!AZ$15","v":2.3635673454805287E-2},{"$f":"'Population 2016'!BA127/'Population 2016'!BA$15","v":2.4606075885541409E-2},{"$f":"'Population 2016'!BB127/'Population 2016'!BB$15","v":3.4144636763557126E-2},{"$f":"'Population 2016'!BC127/'Population 2016'!BC$15","v":6.6855962829117196E-2},125]
[null,"Male 55-59",{"$f":"'Population 2016'!C128/'Population 2016'!C$15","v":2.9958901146441706E-2},{"$f":"'Population 2016'!D128/'Population 2016'!D$15","v":3.2683523129383003E-2},{"$f":"'Population 2016'!E128/'Population 2016'!E$15","v":4.0584619244762261E-2},{"$f":"'Population 2016'!F128/'Population 2016'!F$15","v":3.1547685755911686E-2},{"$f":"'Population 2016'!G128/'Population 2016'!G$15","v":4.2453199655361477E-2},{"$f":"'Population 2016'!H128/'Population 2016'!H$15","v":2.4717902038638398E-2},{"$f":"'Population 2016'!I128/'Population 2016'!I$15","v":4.4240785916793035E-2},{"$f":"'Population 2016'!J128/'Population 2016'!J$15","v":2.6986195864683926E-2},{"$f":"'Population 2016'!K128/'Population 2016'!K$15","v":2.7209231703613727E-2},{"$f":"'Population 2016'!L128/'Population 2016'!L$15","v":4.6730399193671543E-2},{"$f":"'Population 2016'!M128/'Population 2016'!M$15","v":4.6730399193671543E-2},{"$f":"'Population 2016'!N128/'Population 2016'!N$15","v":1.4367501732122671E-2},{"$f":"'Population 2016'!O128/'Population 2016'!O$15","v":2.5453160359391453E-2},{"$f":"'Population 2016'!P128/'Population 2016'!P$15","v":4.2477634364542785E-2},{"$f":"'Population 2016'!Q128/'Population 2016'!Q$15","v":4.7530895081803172E-2},{"$f":"'Population 2016'!R128/'Population 2016'!R$15","v":3.0060761112887753E-2},{"$f":"'Population 2016'!S128/'Population 2016'!S$15","v":2.85577949061218E-2},{"$f":"'Population 2016'!T128/'Population 2016'!T$15","v":1.9333845708525057E-2},{"$f":"'Population 2016'!U128/'Population 2016'!U$15","v":6.6339700567888488E-2},{"$f":"'Population 2016'!V128/'Population 2016'!V$15","v":3.4852731700592748E-2},{"$f":"'Population 2016'!W128/'Population 2016'!W$15","v":2.7257792572737884E-2},{"$f":"'Population 2016'!X128/'Population 2016'!X$15","v":2.7257792572737884E-2},{"$f":"'Population 2016'!Y128/'Population 2016'!Y$15","v":3.1416593344029811E-2},{"$f":"'Population 2016'!Z128/'Population 2016'!Z$15","v":1.139778223211166E-2},{"$f":"'Population 2016'!AA128/'Population 2016'!AA$15","v":1.9502430565337289E-2},{"$f":"'Population 2016'!AB128/'Population 2016'!AB$15","v":3.4676065328097465E-2},{"$f":"'Population 2016'!AC128/'Population 2016'!AC$15","v":1.5333530070849498E-2},{"$f":"'Population 2016'!AD128/'Population 2016'!AD$15","v":4.1253995186047429E-2},{"$f":"'Population 2016'!AE128/'Population 2016'!AE$15","v":4.085023339223081E-2},{"$f":"'Population 2016'!AF128/'Population 2016'!AF$15","v":1.3688294891140332E-2},{"$f":"'Population 2016'!AG128/'Population 2016'!AG$15","v":4.085023339223081E-2},{"$f":"'Population 2016'!AH128/'Population 2016'!AH$15","v":2.7324249258373959E-2},{"$f":"'Population 2016'!AI128/'Population 2016'!AI$15","v":2.7951958698082778E-2},{"$f":"'Population 2016'!AJ128/'Population 2016'!AJ$15","v":4.1523176186517831E-2},{"$f":"'Population 2016'!AK128/'Population 2016'!AK$15","v":4.7195553309752399E-2},{"$f":"'Population 2016'!AL128/'Population 2016'!AL$15","v":1.7650239456202688E-2},{"$f":"'Population 2016'!AM128/'Population 2016'!AM$15","v":2.3699525542042896E-2},{"$f":"'Population 2016'!AN128/'Population 2016'!AN$15","v":5.9299191374663072E-2},{"$f":"'Population 2016'!AO128/'Population 2016'!AO$15","v":5.9299191374663072E-2},{"$f":"'Population 2016'!AP128/'Population 2016'!AP$15","v":3.0516710120881727E-2},{"$f":"'Population 2016'!AQ128/'Population 2016'!AQ$15","v":1.9763586294749069E-2},{"$f":"'Population 2016'!AR128/'Population 2016'!AR$15","v":2.508439384989887E-2},{"$f":"'Population 2016'!AS128/'Population 2016'!AS$15","v":4.4240785916793035E-2},{"$f":"'Population 2016'!AT128/'Population 2016'!AT$15","v":5.2845528455284556E-2},{"$f":"'Population 2016'!AU128/'Population 2016'!AU$15","v":5.2845528455284556E-2},{"$f":"'Population 2016'!AV128/'Population 2016'!AV$15","v":3.5457563743029365E-2},{"$f":"'Population 2016'!AW128/'Population 2016'!AW$15","v":3.2284891779507413E-2},{"$f":"'Population 2016'!AX128/'Population 2016'!AX$15","v":2.677383912565778E-2},{"$f":"'Population 2016'!AY128/'Population 2016'!AY$15","v":2.4097708850471189E-2},{"$f":"'Population 2016'!AZ128/'Population 2016'!AZ$15","v":2.0833333333333332E-2},{"$f":"'Population 2016'!BA128/'Population 2016'!BA$15","v":2.4001008445733014E-2},{"$f":"'Population 2016'!BB128/'Population 2016'!BB$15","v":3.0608888706162893E-2},{"$f":"'Population 2016'!BC128/'Population 2016'!BC$15","v":6.6339700567888488E-2},126]
[null,"Male 60-64",{"$f":"'Population 2016'!C129/'Population 2016'!C$15","v":2.4507895306078303E-2},{"$f":"'Population 2016'!D129/'Population 2016'!D$15","v":2.6973557228334298E-2},{"$f":"'Population 2016'!E129/'Population 2016'!E$15","v":3.4123698406724377E-2},{"$f":"'Population 2016'!F129/'Population 2016'!F$15","v":3.1379580858455679E-2},{"$f":"'Population 2016'!G129/'Population 2016'!G$15","v":3.9555102999921675E-2},{"$f":"'Population 2016'!H129/'Population 2016'!H$15","v":2.1704672075832956E-2},{"$f":"'Population 2016'!I129/'Population 2016'!I$15","v":4.23287400276917E-2},{"$f":"'Population 2016'!J129/'Population 2016'!J$15","v":2.2690917708395045E-2},{"$f":"'Population 2016'!K129/'Population 2016'!K$15","v":2.5022775584573338E-2},{"$f":"'Population 2016'!L129/'Population 2016'!L$15","v":4.2271158486301579E-2},{"$f":"'Population 2016'!M129/'Population 2016'!M$15","v":4.2271158486301579E-2},{"$f":"'Population 2016'!N129/'Population 2016'!N$15","v":1.1942529993071509E-2},{"$f":"'Population 2016'!O129/'Population 2016'!O$15","v":2.1352871322623288E-2},{"$f":"'Population 2016'!P129/'Population 2016'!P$15","v":3.3599672198320017E-2},{"$f":"'Population 2016'!Q129/'Population 2016'!Q$15","v":3.7474358332916395E-2},{"$f":"'Population 2016'!R129/'Population 2016'!R$15","v":2.7395800021319687E-2},{"$f":"'Population 2016'!S129/'Population 2016'!S$15","v":2.4309582667824264E-2},{"$f":"'Population 2016'!T129/'Population 2016'!T$15","v":1.5311367742321858E-2},{"$f":"'Population 2016'!U129/'Population 2016'!U$15","v":6.6855962829117196E-2},{"$f":"'Population 2016'!V129/'Population 2016'!V$15","v":2.8695492349400359E-2},{"$f":"'Population 2016'!W129/'Population 2016'!W$15","v":2.453417491677835E-2},{"$f":"'Population 2016'!X129/'Population 2016'!X$15","v":2.453417491677835E-2},{"$f":"'Population 2016'!Y129/'Population 2016'!Y$15","v":2.607266704621914E-2},{"$f":"'Population 2016'!Z129/'Population 2016'!Z$15","v":9.0733555232718512E-3},{"$f":"'Population 2016'!AA129/'Population 2016'!AA$15","v":1.6391056521208366E-2},{"$f":"'Population 2016'!AB129/'Population 2016'!AB$15","v":2.8459627846309683E-2},{"$f":"'Population 2016'!AC129/'Population 2016'!AC$15","v":1.2485634562462962E-2},{"$f":"'Population 2016'!AD129/'Population 2016'!AD$15","v":3.7071380657380734E-2},{"$f":"'Population 2016'!AE129/'Population 2016'!AE$15","v":3.6235132783037527E-2},{"$f":"'Population 2016'!AF129/'Population 2016'!AF$15","v":1.0311130272328807E-2},{"$f":"'Population 2016'!AG129/'Population 2016'!AG$15","v":3.6235132783037527E-2},{"$f":"'Population 2016'!AH129/'Population 2016'!AH$15","v":2.3718528721972387E-2},{"$f":"'Population 2016'!AI129/'Population 2016'!AI$15","v":2.2794371480242989E-2},{"$f":"'Population 2016'!AJ129/'Population 2016'!AJ$15","v":3.6456477852986578E-2},{"$f":"'Population 2016'!AK129/'Population 2016'!AK$15","v":3.7796867104598279E-2},{"$f":"'Population 2016'!AL129/'Population 2016'!AL$15","v":1.6356403522323499E-2},{"$f":"'Population 2016'!AM129/'Population 2016'!AM$15","v":2.1253223431523017E-2},{"$f":"'Population 2016'!AN129/'Population 2016'!AN$15","v":5.8760107816711593E-2},{"$f":"'Population 2016'!AO129/'Population 2016'!AO$15","v":5.8760107816711593E-2},{"$f":"'Population 2016'!AP129/'Population 2016'!AP$15","v":2.796871296515762E-2},{"$f":"'Population 2016'!AQ129/'Population 2016'!AQ$15","v":1.7290796350761507E-2},{"$f":"'Population 2016'!AR129/'Population 2016'!AR$15","v":2.1464497306198427E-2},{"$f":"'Population 2016'!AS129/'Population 2016'!AS$15","v":4.23287400276917E-2},{"$f":"'Population 2016'!AT129/'Population 2016'!AT$15","v":4.2682926829268296E-2},{"$f":"'Population 2016'!AU129/'Population 2016'!AU$15","v":4.2682926829268296E-2},{"$f":"'Population 2016'!AV129/'Population 2016'!AV$15","v":3.1138187796151243E-2},{"$f":"'Population 2016'!AW129/'Population 2016'!AW$15","v":2.7092440558694957E-2},{"$f":"'Population 2016'!AX129/'Population 2016'!AX$15","v":2.0470710692187592E-2},{"$f":"'Population 2016'!AY129/'Population 2016'!AY$15","v":2.1730773455176502E-2},{"$f":"'Population 2016'!AZ129/'Population 2016'!AZ$15","v":1.8834851732761702E-2},{"$f":"'Population 2016'!BA129/'Population 2016'!BA$15","v":1.9614269507122147E-2},{"$f":"'Population 2016'!BB129/'Population 2016'!BB$15","v":2.5079143197796326E-2},{"$f":"'Population 2016'!BC129/'Population 2016'!BC$15","v":6.6855962829117196E-2},127]
[null,"Male 65-69",0,0,0,0,0,0,0,0,0,0,0,0,0,0,0,0,0,0,0,0,0,0,0,0,0,0,0,0,0,0,0,0,0,0,0,0,0,0,0,0,0,0,0,0,0,0,0,0,0,0,0,0,0,128]
[null,"Male 70-74",0,0,0,0,0,0,0,0,0,0,0,0,0,0,0,0,0,0,0,0,0,0,0,0,0,0,0,0,0,0,0,0,0,0,0,0,0,0,0,0,0,0,0,0,0,0,0,0,0,0,0,0,0,129]
[null,"Male 75-79",0,0,0,0,0,0,0,0,0,0,0,0,0,0,0,0,0,0,0,0,0,0,0,0,0,0,0,0,0,0,0,0,0,0,0,0,0,0,0,0,0,0,0,0,0,0,0,0,0,0,0,0,0,130]
[null,"Male 80-84",0,0,0,0,0,0,0,0,0,0,0,0,0,0,0,0,0,0,0,0,0,0,0,0,0,0,0,0,0,0,0,0,0,0,0,0,0,0,0,0,0,0,0,0,0,0,0,0,0,0,0,0,0,131]
[null,"Male 85-89",0,0,0,0,0,0,0,0,0,0,0,0,0,0,0,0,0,0,0,0,0,0,0,0,0,0,0,0,0,0,0,0,0,0,0,0,0,0,0,0,0,0,0,0,0,0,0,0,0,0,0,0,0,132]
[null,"Male 90+",0,0,0,0,0,0,0,0,0,0,0,0,0,0,0,0,0,0,0,0,0,0,0,0,0,0,0,0,0,0,0,0,0,0,0,0,0,0,0,0,0,0,0,0,0,0,0,0,0,0,0,0,0,133]
["SIMD Q3","Female 0-4",0,0,0,0,0,0,0,0,0,0,0,0,0,0,0,0,0,0,0,0,0,0,0,0,0,0,0,0,0,0,0,0,0,0,0,0,0,0,0,0,0,0,0,0,0,0,0,0,0,0,0,0,0,134]
[null,"Female 5-9",0,0,0,0,0,0,0,0,0,0,0,0,0,0,0,0,0,0,0,0,0,0,0,0,0,0,0,0,0,0,0,0,0,0,0,0,0,0,0,0,0,0,0,0,0,0,0,0,0,0,0,0,0,135]
[null,"Female 10-15",0,0,0,0,0,0,0,0,0,0,0,0,0,0,0,0,0,0,0,0,0,0,0,0,0,0,0,0,0,0,0,0,0,0,0,0,0,0,0,0,0,0,0,0,0,0,0,0,0,0,0,0,0,136]
[null,"Female 16-19",0,0,0,0,0,0,0,0,0,0,0,0,0,0,0,0,0,0,0,0,0,0,0,0,0,0,0,0,0,0,0,0,0,0,0,0,0,0,0,0,0,0,0,0,0,0,0,0,0,0,0,0,0,137]
[null,"Female 20-24",0,0,0,0,0,0,0,0,0,0,0,0,0,0,0,0,0,0,0,0,0,0,0,0,0,0,0,0,0,0,0,0,0,0,0,0,0,0,0,0,0,0,0,0,0,0,0,0,0,0,0,0,0,138]
[null,"Female 25-29",0,0,0,0,0,0,0,0,0,0,0,0,0,0,0,0,0,0,0,0,0,0,0,0,0,0,0,0,0,0,0,0,0,0,0,0,0,0,0,0,0,0,0,0,0,0,0,0,0,0,0,0,0,139]
[null,"Female 30-34",0,0,0,0,0,0,0,0,0,0,0,0,0,0,0,0,0,0,0,0,0,0,0,0,0,0,0,0,0,0,0,0,0,0,0,0,0,0,0,0,0,0,0,0,0,0,0,0,0,0,0,0,0,140]
[null,"Female 35-39",0,0,0,0,0,0,0,0,0,0,0,0,0,0,0,0,0,0,0,0,0,0,0,0,0,0,0,0,0,0,0,0,0,0,0,0,0,0,0,0,0,0,0,0,0,0,0,0,0,0,0,0,0,141]
[null,"Female 40-44",0,0,0,0,0,0,0,0,0,0,0,0,0,0,0,0,0,0,0,0,0,0,0,0,0,0,0,0,0,0,0,0,0,0,0,0,0,0,0,0,0,0,0,0,0,0,0,0,0,0,0,0,0,142]
[null,"Female 45-49",0,0,0,0,0,0,0,0,0,0,0,0,0,0,0,0,0,0,0,0,0,0,0,0,0,0,0,0,0,0,0,0,0,0,0,0,0,0,0,0,0,0,0,0,0,0,0,0,0,0,0,0,0,143]
[null,"Female 50-54",0,0,0,0,0,0,0,0,0,0,0,0,0,0,0,0,0,0,0,0,0,0,0,0,0,0,0,0,0,0,0,0,0,0,0,0,0,0,0,0,0,0,0,0,0,0,0,0,0,0,0,0,0,144]
[null,"Female 55-59",0,0,0,0,0,0,0,0,0,0,0,0,0,0,0,0,0,0,0,0,0,0,0,0,0,0,0,0,0,0,0,0,0,0,0,0,0,0,0,0,0,0,0,0,0,0,0,0,0,0,0,0,0,145]
[null,"Female 60-64",0,0,0,0,0,0,0,0,0,0,0,0,0,0,0,0,0,0,0,0,0,0,0,0,0,0,0,0,0,0,0,0,0,0,0,0,0,0,0,0,0,0,0,0,0,0,0,0,0,0,0,0,0,146]
[null,"Female 65-69",0,0,0,0,0,0,0,0,0,0,0,0,0,0,0,0,0,0,0,0,0,0,0,0,0,0,0,0,0,0,0,0,0,0,0,0,0,0,0,0,0,0,0,0,0,0,0,0,0,0,0,0,0,147]
[null,"Female 70-74",0,0,0,0,0,0,0,0,0,0,0,0,0,0,0,0,0,0,0,0,0,0,0,0,0,0,0,0,0,0,0,0,0,0,0,0,0,0,0,0,0,0,0,0,0,0,0,0,0,0,0,0,0,148]
[null,"Female 75-79",0,0,0,0,0,0,0,0,0,0,0,0,0,0,0,0,0,0,0,0,0,0,0,0,0,0,0,0,0,0,0,0,0,0,0,0,0,0,0,0,0,0,0,0,0,0,0,0,0,0,0,0,0,149]
[null,"Female 80-84",0,0,0,0,0,0,0,0,0,0,0,0,0,0,0,0,0,0,0,0,0,0,0,0,0,0,0,0,0,0,0,0,0,0,0,0,0,0,0,0,0,0,0,0,0,0,0,0,0,0,0,0,0,150]
[null,"Female 85-89",0,0,0,0,0,0,0,0,0,0,0,0,0,0,0,0,0,0,0,0,0,0,0,0,0,0,0,0,0,0,0,0,0,0,0,0,0,0,0,0,0,0,0,0,0,0,0,0,0,0,0,0,0,151]
[null,"Female 90+",0,0,0,0,0,0,0,0,0,0,0,0,0,0,0,0,0,0,0,0,0,0,0,0,0,0,0,0,0,0,0,0,0,0,0,0,0,0,0,0,0,0,0,0,0,0,0,0,0,0,0,0,0,152]
[null,"Male 0-4",0,0,0,0,0,0,0,0,0,0,0,0,0,0,0,0,0,0,0,0,0,0,0,0,0,0,0,0,0,0,0,0,0,0,0,0,0,0,0,0,0,0,0,0,0,0,0,0,0,0,0,0,0,153]
[null,"Male 5-9",0,0,0,0,0,0,0,0,0,0,0,0,0,0,0,0,0,0,0,0,0,0,0,0,0,0,0,0,0,0,0,0,0,0,0,0,0,0,0,0,0,0,0,0,0,0,0,0,0,0,0,0,0,154]
[null,"Male 10-15",0,0,0,0,0,0,0,0,0,0,0,0,0,0,0,0,0,0,0,0,0,0,0,0,0,0,0,0,0,0,0,0,0,0,0,0,0,0,0,0,0,0,0,0,0,0,0,0,0,0,0,0,0,155]
[null,"Male 16-19",0,0,0,0,0,0,0,0,0,0,0,0,0,0,0,0,0,0,0,0,0,0,0,0,0,0,0,0,0,0,0,0,0,0,0,0,0,0,0,0,0,0,0,0,0,0,0,0,0,0,0,0,0,156]
[null,"Male 20-24",0,0,0,0,0,0,0,0,0,0,0,0,0,0,0,0,0,0,0,0,0,0,0,0,0,0,0,0,0,0,0,0,0,0,0,0,0,0,0,0,0,0,0,0,0,0,0,0,0,0,0,0,0,157]
[null,"Male 25-29",0,0,0,0,0,0,0,0,0,0,0,0,0,0,0,0,0,0,0,0,0,0,0,0,0,0,0,0,0,0,0,0,0,0,0,0,0,0,0,0,0,0,0,0,0,0,0,0,0,0,0,0,0,158]
[null,"Male 30-34",0,0,0,0,0,0,0,0,0,0,0,0,0,0,0,0,0,0,0,0,0,0,0,0,0,0,0,0,0,0,0,0,0,0,0,0,0,0,0,0,0,0,0,0,0,0,0,0,0,0,0,0,0,159]
[null,"Male 35-39",0,0,0,0,0,0,0,0,0,0,0,0,0,0,0,0,0,0,0,0,0,0,0,0,0,0,0,0,0,0,0,0,0,0,0,0,0,0,0,0,0,0,0,0,0,0,0,0,0,0,0,0,0,160]
[null,"Male 40-44",0,0,0,0,0,0,0,0,0,0,0,0,0,0,0,0,0,0,0,0,0,0,0,0,0,0,0,0,0,0,0,0,0,0,0,0,0,0,0,0,0,0,0,0,0,0,0,0,0,0,0,0,0,161]
[null,"Male 45-49",0,0,0,0,0,0,0,0,0,0,0,0,0,0,0,0,0,0,0,0,0,0,0,0,0,0,0,0,0,0,0,0,0,0,0,0,0,0,0,0,0,0,0,0,0,0,0,0,0,0,0,0,0,162]
[null,"Male 50-54",0,0,0,0,0,0,0,0,0,0,0,0,0,0,0,0,0,0,0,0,0,0,0,0,0,0,0,0,0,0,0,0,0,0,0,0,0,0,0,0,0,0,0,0,0,0,0,0,0,0,0,0,0,163]
[null,"Male 55-59",0,0,0,0,0,0,0,0,0,0,0,0,0,0,0,0,0,0,0,0,0,0,0,0,0,0,0,0,0,0,0,0,0,0,0,0,0,0,0,0,0,0,0,0,0,0,0,0,0,0,0,0,0,164]
[null,"Male 60-64",0,0,0,0,0,0,0,0,0,0,0,0,0,0,0,0,0,0,0,0,0,0,0,0,0,0,0,0,0,0,0,0,0,0,0,0,0,0,0,0,0,0,0,0,0,0,0,0,0,0,0,0,0,165]
[null,"Male 65-69",0,0,0,0,0,0,0,0,0,0,0,0,0,0,0,0,0,0,0,0,0,0,0,0,0,0,0,0,0,0,0,0,0,0,0,0,0,0,0,0,0,0,0,0,0,0,0,0,0,0,0,0,0,166]
[null,"Male 70-74",0,0,0,0,0,0,0,0,0,0,0,0,0,0,0,0,0,0,0,0,0,0,0,0,0,0,0,0,0,0,0,0,0,0,0,0,0,0,0,0,0,0,0,0,0,0,0,0,0,0,0,0,0,167]
[null,"Male 75-79",0,0,0,0,0,0,0,0,0,0,0,0,0,0,0,0,0,0,0,0,0,0,0,0,0,0,0,0,0,0,0,0,0,0,0,0,0,0,0,0,0,0,0,0,0,0,0,0,0,0,0,0,0,168]
[null,"Male 80-84",0,0,0,0,0,0,0,0,0,0,0,0,0,0,0,0,0,0,0,0,0,0,0,0,0,0,0,0,0,0,0,0,0,0,0,0,0,0,0,0,0,0,0,0,0,0,0,0,0,0,0,0,0,169]
[null,"Male 85-89",0,0,0,0,0,0,0,0,0,0,0,0,0,0,0,0,0,0,0,0,0,0,0,0,0,0,0,0,0,0,0,0,0,0,0,0,0,0,0,0,0,0,0,0,0,0,0,0,0,0,0,0,0,170]
[null,"Male 90+",0,0,0,0,0,0,0,0,0,0,0,0,0,0,0,0,0,0,0,0,0,0,0,0,0,0,0,0,0,0,0,0,0,0,0,0,0,0,0,0,0,0,0,0,0,0,0,0,0,0,0,0,0,171]
["SIMD Q4","Female 0-4",0,0,0,0,0,0,0,0,0,0,0,0,0,0,0,0,0,0,0,0,0,0,0,0,0,0,0,0,0,0,0,0,0,0,0,0,0,0,0,0,0,0,0,0,0,0,0,0,0,0,0,0,0,172]
[null,"Female 5-9",0,0,0,0,0,0,0,0,0,0,0,0,0,0,0,0,0,0,0,0,0,0,0,0,0,0,0,0,0,0,0,0,0,0,0,0,0,0,0,0,0,0,0,0,0,0,0,0,0,0,0,0,0,173]
[null,"Female 10-15",0,0,0,0,0,0,0,0,0,0,0,0,0,0,0,0,0,0,0,0,0,0,0,0,0,0,0,0,0,0,0,0,0,0,0,0,0,0,0,0,0,0,0,0,0,0,0,0,0,0,0,0,0,174]
[null,"Female 16-19",0,0,0,0,0,0,0,0,0,0,0,0,0,0,0,0,0,0,0,0,0,0,0,0,0,0,0,0,0,0,0,0,0,0,0,0,0,0,0,0,0,0,0,0,0,0,0,0,0,0,0,0,0,175]
[null,"Female 20-24",0,0,0,0,0,0,0,0,0,0,0,0,0,0,0,0,0,0,0,0,0,0,0,0,0,0,0,0,0,0,0,0,0,0,0,0,0,0,0,0,0,0,0,0,0,0,0,0,0,0,0,0,0,176]
[null,"Female 25-29",0,0,0,0,0,0,0,0,0,0,0,0,0,0,0,0,0,0,0,0,0,0,0,0,0,0,0,0,0,0,0,0,0,0,0,0,0,0,0,0,0,0,0,0,0,0,0,0,0,0,0,0,0,177]
[null,"Female 30-34",0,0,0,0,0,0,0,0,0,0,0,0,0,0,0,0,0,0,0,0,0,0,0,0,0,0,0,0,0,0,0,0,0,0,0,0,0,0,0,0,0,0,0,0,0,0,0,0,0,0,0,0,0,178]
[null,"Female 35-39",0,0,0,0,0,0,0,0,0,0,0,0,0,0,0,0,0,0,0,0,0,0,0,0,0,0,0,0,0,0,0,0,0,0,0,0,0,0,0,0,0,0,0,0,0,0,0,0,0,0,0,0,0,179]
[null,"Female 40-44",0,0,0,0,0,0,0,0,0,0,0,0,0,0,0,0,0,0,0,0,0,0,0,0,0,0,0,0,0,0,0,0,0,0,0,0,0,0,0,0,0,0,0,0,0,0,0,0,0,0,0,0,0,180]
[null,"Female 45-49",0,0,0,0,0,0,0,0,0,0,0,0,0,0,0,0,0,0,0,0,0,0,0,0,0,0,0,0,0,0,0,0,0,0,0,0,0,0,0,0,0,0,0,0,0,0,0,0,0,0,0,0,0,181]
[null,"Female 50-54",0,0,0,0,0,0,0,0,0,0,0,0,0,0,0,0,0,0,0,0,0,0,0,0,0,0,0,0,0,0,0,0,0,0,0,0,0,0,0,0,0,0,0,0,0,0,0,0,0,0,0,0,0,182]
[null,"Female 55-59",0,0,0,0,0,0,0,0,0,0,0,0,0,0,0,0,0,0,0,0,0,0,0,0,0,0,0,0,0,0,0,0,0,0,0,0,0,0,0,0,0,0,0,0,0,0,0,0,0,0,0,0,0,183]
[null,"Female 60-64",0,0,0,0,0,0,0,0,0,0,0,0,0,0,0,0,0,0,0,0,0,0,0,0,0,0,0,0,0,0,0,0,0,0,0,0,0,0,0,0,0,0,0,0,0,0,0,0,0,0,0,0,0,184]
[null,"Female 65-69",0,0,0,0,0,0,0,0,0,0,0,0,0,0,0,0,0,0,0,0,0,0,0,0,0,0,0,0,0,0,0,0,0,0,0,0,0,0,0,0,0,0,0,0,0,0,0,0,0,0,0,0,0,185]
[null,"Female 70-74",0,0,0,0,0,0,0,0,0,0,0,0,0,0,0,0,0,0,0,0,0,0,0,0,0,0,0,0,0,0,0,0,0,0,0,0,0,0,0,0,0,0,0,0,0,0,0,0,0,0,0,0,0,186]
[null,"Female 75-79",0,0,0,0,0,0,0,0,0,0,0,0,0,0,0,0,0,0,0,0,0,0,0,0,0,0,0,0,0,0,0,0,0,0,0,0,0,0,0,0,0,0,0,0,0,0,0,0,0,0,0,0,0,187]
[null,"Female 80-84",0,0,0,0,0,0,0,0,0,0,0,0,0,0,0,0,0,0,0,0,0,0,0,0,0,0,0,0,0,0,0,0,0,0,0,0,0,0,0,0,0,0,0,0,0,0,0,0,0,0,0,0,0,188]
[null,"Female 85-89",0,0,0,0,0,0,0,0,0,0,0,0,0,0,0,0,0,0,0,0,0,0,0,0,0,0,0,0,0,0,0,0,0,0,0,0,0,0,0,0,0,0,0,0,0,0,0,0,0,0,0,0,0,189]
[null,"Female 90+",0,0,0,0,0,0,0,0,0,0,0,0,0,0,0,0,0,0,0,0,0,0,0,0,0,0,0,0,0,0,0,0,0,0,0,0,0,0,0,0,0,0,0,0,0,0,0,0,0,0,0,0,0,190]
[null,"Male 0-4",0,0,0,0,0,0,0,0,0,0,0,0,0,0,0,0,0,0,0,0,0,0,0,0,0,0,0,0,0,0,0,0,0,0,0,0,0,0,0,0,0,0,0,0,0,0,0,0,0,0,0,0,0,191]
[null,"Male 5-9",0,0,0,0,0,0,0,0,0,0,0,0,0,0,0,0,0,0,0,0,0,0,0,0,0,0,0,0,0,0,0,0,0,0,0,0,0,0,0,0,0,0,0,0,0,0,0,0,0,0,0,0,0,192]
[null,"Male 10-15",0,0,0,0,0,0,0,0,0,0,0,0,0,0,0,0,0,0,0,0,0,0,0,0,0,0,0,0,0,0,0,0,0,0,0,0,0,0,0,0,0,0,0,0,0,0,0,0,0,0,0,0,0,193]
[null,"Male 16-19",0,0,0,0,0,0,0,0,0,0,0,0,0,0,0,0,0,0,0,0,0,0,0,0,0,0,0,0,0,0,0,0,0,0,0,0,0,0,0,0,0,0,0,0,0,0,0,0,0,0,0,0,0,194]
[null,"Male 20-24",0,0,0,0,0,0,0,0,0,0,0,0,0,0,0,0,0,0,0,0,0,0,0,0,0,0,0,0,0,0,0,0,0,0,0,0,0,0,0,0,0,0,0,0,0,0,0,0,0,0,0,0,0,195]
[null,"Male 25-29",0,0,0,0,0,0,0,0,0,0,0,0,0,0,0,0,0,0,0,0,0,0,0,0,0,0,0,0,0,0,0,0,0,0,0,0,0,0,0,0,0,0,0,0,0,0,0,0,0,0,0,0,0,196]
[null,"Male 30-34",0,0,0,0,0,0,0,0,0,0,0,0,0,0,0,0,0,0,0,0,0,0,0,0,0,0,0,0,0,0,0,0,0,0,0,0,0,0,0,0,0,0,0,0,0,0,0,0,0,0,0,0,0,197]
[null,"Male 35-39",0,0,0,0,0,0,0,0,0,0,0,0,0,0,0,0,0,0,0,0,0,0,0,0,0,0,0,0,0,0,0,0,0,0,0,0,0,0,0,0,0,0,0,0,0,0,0,0,0,0,0,0,0,198]
[null,"Male 40-44",0,0,0,0,0,0,0,0,0,0,0,0,0,0,0,0,0,0,0,0,0,0,0,0,0,0,0,0,0,0,0,0,0,0,0,0,0,0,0,0,0,0,0,0,0,0,0,0,0,0,0,0,0,199]
[null,"Male 45-49",0,0,0,0,0,0,0,0,0,0,0,0,0,0,0,0,0,0,0,0,0,0,0,0,0,0,0,0,0,0,0,0,0,0,0,0,0,0,0,0,0,0,0,0,0,0,0,0,0,0,0,0,0,200]
[null,"Male 50-54",0,0,0,0,0,0,0,0,0,0,0,0,0,0,0,0,0,0,0,0,0,0,0,0,0,0,0,0,0,0,0,0,0,0,0,0,0,0,0,0,0,0,0,0,0,0,0,0,0,0,0,0,0,201]
[null,"Male 55-59",0,0,0,0,0,0,0,0,0,0,0,0,0,0,0,0,0,0,0,0,0,0,0,0,0,0,0,0,0,0,0,0,0,0,0,0,0,0,0,0,0,0,0,0,0,0,0,0,0,0,0,0,0,202]
[null,"Male 60-64",0,0,0,0,0,0,0,0,0,0,0,0,0,0,0,0,0,0,0,0,0,0,0,0,0,0,0,0,0,0,0,0,0,0,0,0,0,0,0,0,0,0,0,0,0,0,0,0,0,0,0,0,0,203]
[null,"Male 65-69",0,0,0,0,0,0,0,0,0,0,0,0,0,0,0,0,0,0,0,0,0,0,0,0,0,0,0,0,0,0,0,0,0,0,0,0,0,0,0,0,0,0,0,0,0,0,0,0,0,0,0,0,0,204]
[null,"Male 70-74",0,0,0,0,0,0,0,0,0,0,0,0,0,0,0,0,0,0,0,0,0,0,0,0,0,0,0,0,0,0,0,0,0,0,0,0,0,0,0,0,0,0,0,0,0,0,0,0,0,0,0,0,0,205]
[null,"Male 75-79",0,0,0,0,0,0,0,0,0,0,0,0,0,0,0,0,0,0,0,0,0,0,0,0,0,0,0,0,0,0,0,0,0,0,0,0,0,0,0,0,0,0,0,0,0,0,0,0,0,0,0,0,0,206]
[null,"Male 80-84",0,0,0,0,0,0,0,0,0,0,0,0,0,0,0,0,0,0,0,0,0,0,0,0,0,0,0,0,0,0,0,0,0,0,0,0,0,0,0,0,0,0,0,0,0,0,0,0,0,0,0,0,0,207]
[null,"Male 85-89",0,0,0,0,0,0,0,0,0,0,0,0,0,0,0,0,0,0,0,0,0,0,0,0,0,0,0,0,0,0,0,0,0,0,0,0,0,0,0,0,0,0,0,0,0,0,0,0,0,0,0,0,0,208]
[null,"Male 90+",0,0,0,0,0,0,0,0,0,0,0,0,0,0,0,0,0,0,0,0,0,0,0,0,0,0,0,0,0,0,0,0,0,0,0,0,0,0,0,0,0,0,0,0,0,0,0,0,0,0,0,0,0,209]
["SIMD Q5 (least deprived)","Female 0-4",0,0,0,0,0,0,0,0,0,0,0,0,0,0,0,0,0,0,0,0,0,0,0,0,0,0,0,0,0,0,0,0,0,0,0,0,0,0,0,0,0,0,0,0,0,0,0,0,0,0,0,0,0,210]
[null,"Female 5-9",0,0,0,0,0,0,0,0,0,0,0,0,0,0,0,0,0,0,0,0,0,0,0,0,0,0,0,0,0,0,0,0,0,0,0,0,0,0,0,0,0,0,0,0,0,0,0,0,0,0,0,0,0,211]
[null,"Female 10-15",0,0,0,0,0,0,0,0,0,0,0,0,0,0,0,0,0,0,0,0,0,0,0,0,0,0,0,0,0,0,0,0,0,0,0,0,0,0,0,0,0,0,0,0,0,0,0,0,0,0,0,0,0,212]
[null,"Female 16-19",0,0,0,0,0,0,0,0,0,0,0,0,0,0,0,0,0,0,0,0,0,0,0,0,0,0,0,0,0,0,0,0,0,0,0,0,0,0,0,0,0,0,0,0,0,0,0,0,0,0,0,0,0,213]
[null,"Female 20-24",0,0,0,0,0,0,0,0,0,0,0,0,0,0,0,0,0,0,0,0,0,0,0,0,0,0,0,0,0,0,0,0,0,0,0,0,0,0,0,0,0,0,0,0,0,0,0,0,0,0,0,0,0,214]
[null,"Female 25-29",0,0,0,0,0,0,0,0,0,0,0,0,0,0,0,0,0,0,0,0,0,0,0,0,0,0,0,0,0,0,0,0,0,0,0,0,0,0,0,0,0,0,0,0,0,0,0,0,0,0,0,0,0,215]
[null,"Female 30-34",0,0,0,0,0,0,0,0,0,0,0,0,0,0,0,0,0,0,0,0,0,0,0,0,0,0,0,0,0,0,0,0,0,0,0,0,0,0,0,0,0,0,0,0,0,0,0,0,0,0,0,0,0,216]
[null,"Female 35-39",0,0,0,0,0,0,0,0,0,0,0,0,0,0,0,0,0,0,0,0,0,0,0,0,0,0,0,0,0,0,0,0,0,0,0,0,0,0,0,0,0,0,0,0,0,0,0,0,0,0,0,0,0,217]
[null,"Female 40-44",0,0,0,0,0,0,0,0,0,0,0,0,0,0,0,0,0,0,0,0,0,0,0,0,0,0,0,0,0,0,0,0,0,0,0,0,0,0,0,0,0,0,0,0,0,0,0,0,0,0,0,0,0,218]
[null,"Female 45-49",0,0,0,0,0,0,0,0,0,0,0,0,0,0,0,0,0,0,0,0,0,0,0,0,0,0,0,0,0,0,0,0,0,0,0,0,0,0,0,0,0,0,0,0,0,0,0,0,0,0,0,0,0,219]
[null,"Female 50-54",0,0,0,0,0,0,0,0,0,0,0,0,0,0,0,0,0,0,0,0,0,0,0,0,0,0,0,0,0,0,0,0,0,0,0,0,0,0,0,0,0,0,0,0,0,0,0,0,0,0,0,0,0,220]
[null,"Female 55-59",0,0,0,0,0,0,0,0,0,0,0,0,0,0,0,0,0,0,0,0,0,0,0,0,0,0,0,0,0,0,0,0,0,0,0,0,0,0,0,0,0,0,0,0,0,0,0,0,0,0,0,0,0,221]
[null,"Female 60-64",0,0,0,0,0,0,0,0,0,0,0,0,0,0,0,0,0,0,0,0,0,0,0,0,0,0,0,0,0,0,0,0,0,0,0,0,0,0,0,0,0,0,0,0,0,0,0,0,0,0,0,0,0,222]
[null,"Female 65-69",0,0,0,0,0,0,0,0,0,0,0,0,0,0,0,0,0,0,0,0,0,0,0,0,0,0,0,0,0,0,0,0,0,0,0,0,0,0,0,0,0,0,0,0,0,0,0,0,0,0,0,0,0,223]
[null,"Female 70-74",0,0,0,0,0,0,0,0,0,0,0,0,0,0,0,0,0,0,0,0,0,0,0,0,0,0,0,0,0,0,0,0,0,0,0,0,0,0,0,0,0,0,0,0,0,0,0,0,0,0,0,0,0,224]
[null,"Female 75-79",0,0,0,0,0,0,0,0,0,0,0,0,0,0,0,0,0,0,0,0,0,0,0,0,0,0,0,0,0,0,0,0,0,0,0,0,0,0,0,0,0,0,0,0,0,0,0,0,0,0,0,0,0,225]
[null,"Female 80-84",0,0,0,0,0,0,0,0,0,0,0,0,0,0,0,0,0,0,0,0,0,0,0,0,0,0,0,0,0,0,0,0,0,0,0,0,0,0,0,0,0,0,0,0,0,0,0,0,0,0,0,0,0,226]
[null,"Female 85-89",0,0,0,0,0,0,0,0,0,0,0,0,0,0,0,0,0,0,0,0,0,0,0,0,0,0,0,0,0,0,0,0,0,0,0,0,0,0,0,0,0,0,0,0,0,0,0,0,0,0,0,0,0,227]
[null,"Female 90+",0,0,0,0,0,0,0,0,0,0,0,0,0,0,0,0,0,0,0,0,0,0,0,0,0,0,0,0,0,0,0,0,0,0,0,0,0,0,0,0,0,0,0,0,0,0,0,0,0,0,0,0,0,228]
[null,"Male 0-4",0,0,0,0,0,0,0,0,0,0,0,0,0,0,0,0,0,0,0,0,0,0,0,0,0,0,0,0,0,0,0,0,0,0,0,0,0,0,0,0,0,0,0,0,0,0,0,0,0,0,0,0,0,229]
[null,"Male 5-9",0,0,0,0,0,0,0,0,0,0,0,0,0,0,0,0,0,0,0,0,0,0,0,0,0,0,0,0,0,0,0,0,0,0,0,0,0,0,0,0,0,0,0,0,0,0,0,0,0,0,0,0,0,230]
[null,"Male 10-15",0,0,0,0,0,0,0,0,0,0,0,0,0,0,0,0,0,0,0,0,0,0,0,0,0,0,0,0,0,0,0,0,0,0,0,0,0,0,0,0,0,0,0,0,0,0,0,0,0,0,0,0,0,231]
[null,"Male 16-19",0,0,0,0,0,0,0,0,0,0,0,0,0,0,0,0,0,0,0,0,0,0,0,0,0,0,0,0,0,0,0,0,0,0,0,0,0,0,0,0,0,0,0,0,0,0,0,0,0,0,0,0,0,232]
[null,"Male 20-24",0,0,0,0,0,0,0,0,0,0,0,0,0,0,0,0,0,0,0,0,0,0,0,0,0,0,0,0,0,0,0,0,0,0,0,0,0,0,0,0,0,0,0,0,0,0,0,0,0,0,0,0,0,233]
[null,"Male 25-29",0,0,0,0,0,0,0,0,0,0,0,0,0,0,0,0,0,0,0,0,0,0,0,0,0,0,0,0,0,0,0,0,0,0,0,0,0,0,0,0,0,0,0,0,0,0,0,0,0,0,0,0,0,234]
[null,"Male 30-34",0,0,0,0,0,0,0,0,0,0,0,0,0,0,0,0,0,0,0,0,0,0,0,0,0,0,0,0,0,0,0,0,0,0,0,0,0,0,0,0,0,0,0,0,0,0,0,0,0,0,0,0,0,235]
[null,"Male 35-39",0,0,0,0,0,0,0,0,0,0,0,0,0,0,0,0,0,0,0,0,0,0,0,0,0,0,0,0,0,0,0,0,0,0,0,0,0,0,0,0,0,0,0,0,0,0,0,0,0,0,0,0,0,236]
[null,"Male 40-44",0,0,0,0,0,0,0,0,0,0,0,0,0,0,0,0,0,0,0,0,0,0,0,0,0,0,0,0,0,0,0,0,0,0,0,0,0,0,0,0,0,0,0,0,0,0,0,0,0,0,0,0,0,237]
[null,"Male 45-49",0,0,0,0,0,0,0,0,0,0,0,0,0,0,0,0,0,0,0,0,0,0,0,0,0,0,0,0,0,0,0,0,0,0,0,0,0,0,0,0,0,0,0,0,0,0,0,0,0,0,0,0,0,238]
[null,"Male 50-54",0,0,0,0,0,0,0,0,0,0,0,0,0,0,0,0,0,0,0,0,0,0,0,0,0,0,0,0,0,0,0,0,0,0,0,0,0,0,0,0,0,0,0,0,0,0,0,0,0,0,0,0,0,239]
[null,"Male 55-59",0,0,0,0,0,0,0,0,0,0,0,0,0,0,0,0,0,0,0,0,0,0,0,0,0,0,0,0,0,0,0,0,0,0,0,0,0,0,0,0,0,0,0,0,0,0,0,0,0,0,0,0,0,240]
[null,"Male 60-64",0,0,0,0,0,0,0,0,0,0,0,0,0,0,0,0,0,0,0,0,0,0,0,0,0,0,0,0,0,0,0,0,0,0,0,0,0,0,0,0,0,0,0,0,0,0,0,0,0,0,0,0,0,241]
[null,"Male 65-69",0,0,0,0,0,0,0,0,0,0,0,0,0,0,0,0,0,0,0,0,0,0,0,0,0,0,0,0,0,0,0,0,0,0,0,0,0,0,0,0,0,0,0,0,0,0,0,0,0,0,0,0,0,242]
[null,"Male 70-74",0,0,0,0,0,0,0,0,0,0,0,0,0,0,0,0,0,0,0,0,0,0,0,0,0,0,0,0,0,0,0,0,0,0,0,0,0,0,0,0,0,0,0,0,0,0,0,0,0,0,0,0,0,243]
[null,"Male 75-79",0,0,0,0,0,0,0,0,0,0,0,0,0,0,0,0,0,0,0,0,0,0,0,0,0,0,0,0,0,0,0,0,0,0,0,0,0,0,0,0,0,0,0,0,0,0,0,0,0,0,0,0,0,244]
[null,"Male 80-84",0,0,0,0,0,0,0,0,0,0,0,0,0,0,0,0,0,0,0,0,0,0,0,0,0,0,0,0,0,0,0,0,0,0,0,0,0,0,0,0,0,0,0,0,0,0,0,0,0,0,0,0,0,245]
[null,"Male 85-89",0,0,0,0,0,0,0,0,0,0,0,0,0,0,0,0,0,0,0,0,0,0,0,0,0,0,0,0,0,0,0,0,0,0,0,0,0,0,0,0,0,0,0,0,0,0,0,0,0,0,0,0,0,246]
[null,"Male 90+",0,0,0,0,0,0,0,0,0,0,0,0,0,0,0,0,0,0,0,0,0,0,0,0,0,0,0,0,0,0,0,0,0,0,0,0,0,0,0,0,0,0,0,0,0,0,0,0,0,0,0,0,0,247]

{"sheet":"PARfraction","index":17,"n_rows":249,"n_cols":56,"rows_kept":249,"cut":false,"hidden":true,"merged":[]}
["Subgroup's fraction of area's 2016 Population-At-Risk (PAR) (16+ only)"]
[]
["SIMD","group","Aberdeen City Local Authority","Aberdeen City Region Deal","Aberdeenshire Local Authority","Angus Local Authority","Argyll & Bute Local Authority","Ayrshire & Arran Health Board","Borders Health Board","Clackmannanshire & Stirling IJB","Clackmannanshire Local Authority","Dumfries & Galloway Health Board","Dumfries & Galloway Local Authority","Dundee City Local Authority","East Ayrshire Local Authority","East Dunbartonshire Local Authority","East Lothian Local Authority","East Renfrewshire Local Authority","Edinburgh & SE Scotland City Region Deal","Edinburgh, City of Local Authority","Eilean Siar Local Authority","Falkirk Local Authority","Fife Health Board","Fife Local Authority","Forth Valley Health Board","Glasgow City Local Authority","Glasgow City Region Deal","Grampian Health Board","Greater Glasgow & Clyde Health Board","Highland Health Board","Highland Local Authority","Inverclyde Local Authority","Inverness & Highland City Region Deal","Lanarkshire Health Board","Lothian Health Board","Midlothian Local Authority","Moray Local Authority","North Ayrshire Local Authority","North Lanarkshire Local Authority","Orkney Health Board","Orkney Islands Local Authority","Perth & Kinross Local Authority","Renfrewshire Local Authority","Scotland","Scottish Borders Local Authority","Shetland Health Board","Shetland Islands Local Authority","South Ayrshire Local Authority","South Lanarkshire Local Authority","Stirling Local Authority","Tay Cities Region Deal ","Tayside Health Board","West Dunbartonshire Local Authority","West Lothian Local Authority","Western Isles Health Board",1]
[null,null,"popS12000033","Aber_deal","popS12000034","popS12000041","popS12000035","popS08000015","popS08000016","ClacksStirIJB","popS12000005","popS08000017","popS12000006","popS12000042","popS12000008","popS12000045","popS12000010","popS12000011","EdinSE_deal","popS12000036","popS12000013","popS12000014","popS08000018","popS12000015","popS08000019","popS12000046","GClyde_deal","popS08000020","popS08000021","popS08000022","popS12000017","popS12000018","Inver_deal","popS08000023","popS08000024","popS12000019","popS12000020","popS12000021","popS12000044","popS08000025","popS12000023","popS12000024","popS12000038","popS00000001","popS12000026","popS08000026","popS12000027","popS12000028","popS12000029","popS12000030","Tay_deal","popS08000027","popS12000039","popS12000040","popS08000028",2]
["All quintiles","16+ Males and Females",{"$f":"'Population at Risk'!R5/'Population at Risk'!R$5","v":1},{"$f":"'Population at Risk'!AX5/'Population at Risk'!AX$5","v":1},{"$f":"'Population at Risk'!S5/'Population at Risk'!S$5","v":1},{"$f":"'Population at Risk'!T5/'Population at Risk'!T$5","v":1},{"$f":"'Population at Risk'!U5/'Population at Risk'!U$5","v":1},{"$f":"'Population at Risk'!D5/'Population at Risk'!D$5","v":1},{"$f":"'Population at Risk'!E5/'Population at Risk'!E$5","v":1},{"$f":"'Population at Risk'!BC5/'Population at Risk'!BC$5","v":1},{"$f":"'Population at Risk'!V5/'Population at Risk'!V$5","v":1},{"$f":"'Population at Risk'!F5/'Population at Risk'!F$5","v":1},{"$f":"'Population at Risk'!W5/'Population at Risk'!W$5","v":1},{"$f":"'Population at Risk'!X5/'Population at Risk'!X$5","v":1},{"$f":"'Population at Risk'!Y5/'Population at Risk'!Y$5","v":1},{"$f":"'Population at Risk'!Z5/'Population at Risk'!Z$5","v":1},{"$f":"'Population at Risk'!AA5/'Population at Risk'!AA$5","v":1},{"$f":"'Population at Risk'!AB5/'Population at Risk'!AB$5","v":1},{"$f":"'Population at Risk'!AY5/'Population at Risk'!AY$5","v":1},{"$f":"'Population at Risk'!AC5/'Population at Risk'!AC$5","v":1},{"$f":"'Population at Risk'!AD5/'Population at Risk'!AD$5","v":1},{"$f":"'Population at Risk'!AE5/'Population at Risk'!AE$5","v":1},{"$f":"'Population at Risk'!G5/'Population at Risk'!G$5","v":1},{"$f":"'Population at Risk'!AF5/'Population at Risk'!AF$5","v":1},{"$f":"'Population at Risk'!H5/'Population at Risk'!H$5","v":1},{"$f":"'Population at Risk'!AG5/'Population at Risk'!AG$5","v":1},{"$f":"'Population at Risk'!AZ5/'Population at Risk'!AZ$5","v":1},{"$f":"'Population at Risk'!I5/'Population at Risk'!I$5","v":1},{"$f":"'Population at Risk'!J5/'Population at Risk'!J$5","v":1},{"$f":"'Population at Risk'!K5/'Population at Risk'!K$5","v":1},{"$f":"'Population at Risk'!AH5/'Population at Risk'!AH$5","v":1},{"$f":"'Population at Risk'!AI5/'Population at Risk'!AI$5","v":1},{"$f":"'Population at Risk'!BA5/'Population at Risk'!BA$5","v":1},{"$f":"'Population at Risk'!L5/'Population at Risk'!L$5","v":1},{"$f":"'Population at Risk'!M5/'Population at Risk'!M$5","v":1},{"$f":"'Population at Risk'!AJ5/'Population at Risk'!AJ$5","v":1},{"$f":"'Population at Risk'!AK5/'Population at Risk'!AK$5","v":1},{"$f":"'Population at Risk'!AL5/'Population at Risk'!AL$5","v":1},{"$f":"'Population at Risk'!AM5/'Population at Risk'!AM$5","v":1},{"$f":"'Population at Risk'!N5/'Population at Risk'!N$5","v":1},{"$f":"'Population at Risk'!AN5/'Population at Risk'!AN$5","v":1},{"$f":"'Population at Risk'!AO5/'Population at Risk'!AO$5","v":1},{"$f":"'Population at Risk'!AP5/'Population at Risk'!AP$5","v":1},{"$f":"'Population at Risk'!C5/'Population at Risk'!C$5","v":1},{"$f":"'Population at Risk'!AQ5/'Population at Risk'!AQ$5","v":1},{"$f":"'Population at Risk'!O5/'Population at Risk'!O$5","v":1},{"$f":"'Population at Risk'!AR5/'Population at Risk'!AR$5","v":1},{"$f":"'Population at Risk'!AS5/'Population at Risk'!AS$5","v":1},{"$f":"'Population at Risk'!AT5/'Population at Risk'!AT$5","v":1},{"$f":"'Population at Risk'!AU5/'Population at Risk'!AU$5","v":1},{"$f":"'Population at Risk'!BB5/'Population at Risk'!BB$5","v":1},{"$f":"'Population at Risk'!P5/'Population at Risk'!P$5","v":1},{"$f":"'Population at Risk'!AV5/'Population at Risk'!AV$5","v":1},{"$f":"'Population at Risk'!AW5/'Population at Risk'!AW$5","v":1},{"$f":"'Population at Risk'!Q5/'Population at Risk'!Q$5","v":1},3]
["Q1 and Q2","16+ Males and Females",{"$f":"'Population at Risk'!R6/'Population at Risk'!R$5","v":0.25655476448025821},{"$f":"'Population at Risk'!AX6/'Population at Risk'!AX$5","v":0.41243476067065149},{"$f":"'Population at Risk'!S6/'Population at Risk'!S$5","v":0.47311939678922854},{"$f":"'Population at Risk'!T6/'Population at Risk'!T$5","v":0.42207857484658384},{"$f":"'Population at Risk'!U6/'Population at Risk'!U$5","v":0.30216571143985399},{"$f":"'Population at Risk'!D6/'Population at Risk'!D$5","v":0.28331981089096714},{"$f":"'Population at Risk'!E6/'Population at Risk'!E$5","v":0.14679291433709818},{"$f":"'Population at Risk'!BC6/'Population at Risk'!BC$5","v":0.30216571143985399},{"$f":"'Population at Risk'!V6/'Population at Risk'!V$5","v":0.55885719317151783},{"$f":"'Population at Risk'!F6/'Population at Risk'!F$5","v":0.34074979534059135},{"$f":"'Population at Risk'!W6/'Population at Risk'!W$5","v":0.53996881112828465},{"$f":"'Population at Risk'!X6/'Population at Risk'!X$5","v":0.53996881112828465},{"$f":"'Population at Risk'!Y6/'Population at Risk'!Y$5","v":0.53166404526637734},{"$f":"'Population at Risk'!Z6/'Population at Risk'!Z$5","v":0.77400356063667763},{"$f":"'Population at Risk'!AA6/'Population at Risk'!AA$5","v":0.68057251167360955},{"$f":"'Population at Risk'!AB6/'Population at Risk'!AB$5","v":0.27439478058798195},{"$f":"'Population at Risk'!AY6/'Population at Risk'!AY$5","v":0.50692964173173516},{"$f":"'Population at Risk'!AC6/'Population at Risk'!AC$5","v":0.68975546627673834},{"$f":"'Population at Risk'!AD6/'Population at Risk'!AD$5","v":0.3562544935136695},{"$f":"'Population at Risk'!AE6/'Population at Risk'!AE$5","v":0.36276987926894794},{"$f":"'Population at Risk'!G6/'Population at Risk'!G$5","v":0.33882049235830852},{"$f":"'Population at Risk'!AF6/'Population at Risk'!AF$5","v":0.70737557766830217},{"$f":"'Population at Risk'!H6/'Population at Risk'!H$5","v":0.68810461172287074},{"$f":"'Population at Risk'!AG6/'Population at Risk'!AG$5","v":0.36276987926894794},{"$f":"'Population at Risk'!AZ6/'Population at Risk'!AZ$5","v":0.47661019702234458},{"$f":"'Population at Risk'!I6/'Population at Risk'!I$5","v":0.30319352205603589},{"$f":"'Population at Risk'!J6/'Population at Risk'!J$5","v":0.5015029999515741},{"$f":"'Population at Risk'!K6/'Population at Risk'!K$5","v":0.64251536568896461},{"$f":"'Population at Risk'!AH6/'Population at Risk'!AH$5","v":0.6633210801280619},{"$f":"'Population at Risk'!AI6/'Population at Risk'!AI$5","v":0.4637169822936823},{"$f":"'Population at Risk'!BA6/'Population at Risk'!BA$5","v":0.79055597656580268},{"$f":"'Population at Risk'!L6/'Population at Risk'!L$5","v":0.46260333566713624},{"$f":"'Population at Risk'!M6/'Population at Risk'!M$5","v":0.46260333566713624},{"$f":"'Population at Risk'!AJ6/'Population at Risk'!AJ$5","v":0.57190168390555274},{"$f":"'Population at Risk'!AK6/'Population at Risk'!AK$5","v":0.22715879166464864},{"$f":"'Population at Risk'!AL6/'Population at Risk'!AL$5","v":0.74454648088992104},{"$f":"'Population at Risk'!AM6/'Population at Risk'!AM$5","v":0.71868323650206434},{"$f":"'Population at Risk'!N6/'Population at Risk'!N$5","v":0.71096731788351553},{"$f":"'Population at Risk'!AN6/'Population at Risk'!AN$5","v":0.18880997778428787},{"$f":"'Population at Risk'!AO6/'Population at Risk'!AO$5","v":0.18880997778428787},{"$f":"'Population at Risk'!AP6/'Population at Risk'!AP$5","v":0.26781836554378557},{"$f":"'Population at Risk'!C6/'Population at Risk'!C$5","v":0.41632397217369788},{"$f":"'Population at Risk'!AQ6/'Population at Risk'!AQ$5","v":0.6212104193217588},{"$f":"'Population at Risk'!O6/'Population at Risk'!O$5","v":0.71041614036343192},{"$f":"'Population at Risk'!AR6/'Population at Risk'!AR$5","v":0.5435045298359773},{"$f":"'Population at Risk'!AS6/'Population at Risk'!AS$5","v":0.30319352205603589},{"$f":"'Population at Risk'!AT6/'Population at Risk'!AT$5","v":4.7651931597815111E-2},{"$f":"'Population at Risk'!AU6/'Population at Risk'!AU$5","v":4.7651931597815111E-2},{"$f":"'Population at Risk'!BB6/'Population at Risk'!BB$5","v":0.55443202554588622},{"$f":"'Population at Risk'!P6/'Population at Risk'!P$5","v":0.31930967939140192},{"$f":"'Population at Risk'!AV6/'Population at Risk'!AV$5","v":0.58060150235603514},{"$f":"'Population at Risk'!AW6/'Population at Risk'!AW$5","v":0.59861482279957778},{"$f":"'Population at Risk'!Q6/'Population at Risk'!Q$5","v":0.40558566121245465},4]
["SIMD Q1 (most deprived)","16+ Males and Females",{"$f":"'Population at Risk'!R7/'Population at Risk'!R$5","v":0.1314526884126688},{"$f":"'Population at Risk'!AX7/'Population at Risk'!AX$5","v":0.23120545794339298},{"$f":"'Population at Risk'!S7/'Population at Risk'!S$5","v":0.23760096418569113},{"$f":"'Population at Risk'!T7/'Population at Risk'!T$5","v":0.24233048291918277},{"$f":"'Population at Risk'!U7/'Population at Risk'!U$5","v":0},{"$f":"'Population at Risk'!D7/'Population at Risk'!D$5","v":0.10047941049705571},{"$f":"'Population at Risk'!E7/'Population at Risk'!E$5","v":4.3459714776683728E-2},{"$f":"'Population at Risk'!BC7/'Population at Risk'!BC$5","v":0},{"$f":"'Population at Risk'!V7/'Population at Risk'!V$5","v":0.23824326000029633},{"$f":"'Population at Risk'!F7/'Population at Risk'!F$5","v":0.13063001080339706},{"$f":"'Population at Risk'!W7/'Population at Risk'!W$5","v":0.31759385458347827},{"$f":"'Population at Risk'!X7/'Population at Risk'!X$5","v":0.31759385458347827},{"$f":"'Population at Risk'!Y7/'Population at Risk'!Y$5","v":0.25987088082703641},{"$f":"'Population at Risk'!Z7/'Population at Risk'!Z$5","v":0.6122809821739964},{"$f":"'Population at Risk'!AA7/'Population at Risk'!AA$5","v":0.47116076305178944},{"$f":"'Population at Risk'!AB7/'Population at Risk'!AB$5","v":8.7252552299539543E-2},{"$f":"'Population at Risk'!AY7/'Population at Risk'!AY$5","v":0.30379607191540969},{"$f":"'Population at Risk'!AC7/'Population at Risk'!AC$5","v":0.51621732317686642},{"$f":"'Population at Risk'!AD7/'Population at Risk'!AD$5","v":0.13097058854518845},{"$f":"'Population at Risk'!AE7/'Population at Risk'!AE$5","v":0.13002590693982843},{"$f":"'Population at Risk'!G7/'Population at Risk'!G$5","v":0.13327628771725047},{"$f":"'Population at Risk'!AF7/'Population at Risk'!AF$5","v":0.58289861201133975},{"$f":"'Population at Risk'!H7/'Population at Risk'!H$5","v":0.44510698763912449},{"$f":"'Population at Risk'!AG7/'Population at Risk'!AG$5","v":0.13002590693982843},{"$f":"'Population at Risk'!AZ7/'Population at Risk'!AZ$5","v":0.29081691350098837},{"$f":"'Population at Risk'!I7/'Population at Risk'!I$5","v":0.10139725752736425},{"$f":"'Population at Risk'!J7/'Population at Risk'!J$5","v":0.28365247050982739},{"$f":"'Population at Risk'!K7/'Population at Risk'!K$5","v":0.3666952725552049},{"$f":"'Population at Risk'!AH7/'Population at Risk'!AH$5","v":0.38648726146483542},{"$f":"'Population at Risk'!AI7/'Population at Risk'!AI$5","v":0.21845892374226578},{"$f":"'Population at Risk'!BA7/'Population at Risk'!BA$5","v":0.51896378579811864},{"$f":"'Population at Risk'!L7/'Population at Risk'!L$5","v":0.14013730031358701},{"$f":"'Population at Risk'!M7/'Population at Risk'!M$5","v":0.14013730031358701},{"$f":"'Population at Risk'!AJ7/'Population at Risk'!AJ$5","v":0.16459905020517246},{"$f":"'Population at Risk'!AK7/'Population at Risk'!AK$5","v":1.6889026554676889E-2},{"$f":"'Population at Risk'!AL7/'Population at Risk'!AL$5","v":0.55473102366278371},{"$f":"'Population at Risk'!AM7/'Population at Risk'!AM$5","v":0.44656350044417614},{"$f":"'Population at Risk'!N7/'Population at Risk'!N$5","v":0.5187881245630005},{"$f":"'Population at Risk'!AN7/'Population at Risk'!AN$5","v":0},{"$f":"'Population at Risk'!AO7/'Population at Risk'!AO$5","v":0},{"$f":"'Population at Risk'!AP7/'Population at Risk'!AP$5","v":0.111594786505483},{"$f":"'Population at Risk'!C7/'Population at Risk'!C$5","v":0.15661899569758683},{"$f":"'Population at Risk'!AQ7/'Population at Risk'!AQ$5","v":0.43598014012289893},{"$f":"'Population at Risk'!O7/'Population at Risk'!O$5","v":0.44981313059663092},{"$f":"'Population at Risk'!AR7/'Population at Risk'!AR$5","v":0.32220217919235866},{"$f":"'Population at Risk'!AS7/'Population at Risk'!AS$5","v":0.10139725752736425},{"$f":"'Population at Risk'!AT7/'Population at Risk'!AT$5","v":0},{"$f":"'Population at Risk'!AU7/'Population at Risk'!AU$5","v":0},{"$f":"'Population at Risk'!BB7/'Population at Risk'!BB$5","v":0.25944072181834571},{"$f":"'Population at Risk'!P7/'Population at Risk'!P$5","v":9.6141153735199616E-2},{"$f":"'Population at Risk'!AV7/'Population at Risk'!AV$5","v":0.2835979507238533},{"$f":"'Population at Risk'!AW7/'Population at Risk'!AW$5","v":0.31644800204565698},{"$f":"'Population at Risk'!Q7/'Population at Risk'!Q$5","v":6.3876966964083834E-2},5]
["SIMD Q2",null,{"$f":"'Population at Risk'!R8/'Population at Risk'!R$5","v":0.12510207606758941},{"$f":"'Population at Risk'!AX8/'Population at Risk'!AX$5","v":0.18122930272725851},{"$f":"'Population at Risk'!S8/'Population at Risk'!S$5","v":0.23551843260353744},{"$f":"'Population at Risk'!T8/'Population at Risk'!T$5","v":0.17974809192740107},{"$f":"'Population at Risk'!U8/'Population at Risk'!U$5","v":0.30216571143985399},{"$f":"'Population at Risk'!D8/'Population at Risk'!D$5","v":0.18284040039391147},{"$f":"'Population at Risk'!E8/'Population at Risk'!E$5","v":0.10333319956041445},{"$f":"'Population at Risk'!BC8/'Population at Risk'!BC$5","v":0.30216571143985399},{"$f":"'Population at Risk'!V8/'Population at Risk'!V$5","v":0.3206139331712215},{"$f":"'Population at Risk'!F8/'Population at Risk'!F$5","v":0.21011978453719429},{"$f":"'Population at Risk'!W8/'Population at Risk'!W$5","v":0.22237495654480632},{"$f":"'Population at Risk'!X8/'Population at Risk'!X$5","v":0.22237495654480632},{"$f":"'Population at Risk'!Y8/'Population at Risk'!Y$5","v":0.27179316443934087},{"$f":"'Population at Risk'!Z8/'Population at Risk'!Z$5","v":0.16172257846268118},{"$f":"'Population at Risk'!AA8/'Population at Risk'!AA$5","v":0.2094117486218201},{"$f":"'Population at Risk'!AB8/'Population at Risk'!AB$5","v":0.18714222828844243},{"$f":"'Population at Risk'!AY8/'Population at Risk'!AY$5","v":0.20313356981632547},{"$f":"'Population at Risk'!AC8/'Population at Risk'!AC$5","v":0.17353814309987198},{"$f":"'Population at Risk'!AD8/'Population at Risk'!AD$5","v":0.22528390496848105},{"$f":"'Population at Risk'!AE8/'Population at Risk'!AE$5","v":0.2327439723291195},{"$f":"'Population at Risk'!G8/'Population at Risk'!G$5","v":0.20554420464105802},{"$f":"'Population at Risk'!AF8/'Population at Risk'!AF$5","v":0.12447696565696235},{"$f":"'Population at Risk'!H8/'Population at Risk'!H$5","v":0.24299762408374626},{"$f":"'Population at Risk'!AG8/'Population at Risk'!AG$5","v":0.2327439723291195},{"$f":"'Population at Risk'!AZ8/'Population at Risk'!AZ$5","v":0.18579328352135618},{"$f":"'Population at Risk'!I8/'Population at Risk'!I$5","v":0.20179626452867164},{"$f":"'Population at Risk'!J8/'Population at Risk'!J$5","v":0.21785052944174674},{"$f":"'Population at Risk'!K8/'Population at Risk'!K$5","v":0.27582009313375977},{"$f":"'Population at Risk'!AH8/'Population at Risk'!AH$5","v":0.27683381866322654},{"$f":"'Population at Risk'!AI8/'Population at Risk'!AI$5","v":0.24525805855141652},{"$f":"'Population at Risk'!BA8/'Population at Risk'!BA$5","v":0.27159219076768409},{"$f":"'Population at Risk'!L8/'Population at Risk'!L$5","v":0.32246603535354917},{"$f":"'Population at Risk'!M8/'Population at Risk'!M$5","v":0.32246603535354917},{"$f":"'Population at Risk'!AJ8/'Population at Risk'!AJ$5","v":0.40730263370038028},{"$f":"'Population at Risk'!AK8/'Population at Risk'!AK$5","v":0.21026976510997175},{"$f":"'Population at Risk'!AL8/'Population at Risk'!AL$5","v":0.18981545722713733},{"$f":"'Population at Risk'!AM8/'Population at Risk'!AM$5","v":0.27211973605788808},{"$f":"'Population at Risk'!N8/'Population at Risk'!N$5","v":0.19217919332051508},{"$f":"'Population at Risk'!AN8/'Population at Risk'!AN$5","v":0.18880997778428787},{"$f":"'Population at Risk'!AO8/'Population at Risk'!AO$5","v":0.18880997778428787},{"$f":"'Population at Risk'!AP8/'Population at Risk'!AP$5","v":0.15622357903830256},{"$f":"'Population at Risk'!C8/'Population at Risk'!C$5","v":0.25970497647611107},{"$f":"'Population at Risk'!AQ8/'Population at Risk'!AQ$5","v":0.18523027919885987},{"$f":"'Population at Risk'!O8/'Population at Risk'!O$5","v":0.26060300976680101},{"$f":"'Population at Risk'!AR8/'Population at Risk'!AR$5","v":0.22130235064361861},{"$f":"'Population at Risk'!AS8/'Population at Risk'!AS$5","v":0.20179626452867164},{"$f":"'Population at Risk'!AT8/'Population at Risk'!AT$5","v":4.7651931597815111E-2},{"$f":"'Population at Risk'!AU8/'Population at Risk'!AU$5","v":4.7651931597815111E-2},{"$f":"'Population at Risk'!BB8/'Population at Risk'!BB$5","v":0.29499130372754051},{"$f":"'Population at Risk'!P8/'Population at Risk'!P$5","v":0.22316852565620229},{"$f":"'Population at Risk'!AV8/'Population at Risk'!AV$5","v":0.29700355163218189},{"$f":"'Population at Risk'!AW8/'Population at Risk'!AW$5","v":0.28216682075392086},{"$f":"'Population at Risk'!Q8/'Population at Risk'!Q$5","v":0.34170869424837086},6]
["SIMD Q3",null,{"$f":"'Population at Risk'!R9/'Population at Risk'!R$5","v":0.10913981302467508},{"$f":"'Population at Risk'!AX9/'Population at Risk'!AX$5","v":0.1479538694249376},{"$f":"'Population at Risk'!S9/'Population at Risk'!S$5","v":0.17772613894052725},{"$f":"'Population at Risk'!T9/'Population at Risk'!T$5","v":0.13681174622384007},{"$f":"'Population at Risk'!U9/'Population at Risk'!U$5","v":0.65149009931870305},{"$f":"'Population at Risk'!D9/'Population at Risk'!D$5","v":0.17418756064287474},{"$f":"'Population at Risk'!E9/'Population at Risk'!E$5","v":0.20961269879647965},{"$f":"'Population at Risk'!BC9/'Population at Risk'!BC$5","v":0.65149009931870305},{"$f":"'Population at Risk'!V9/'Population at Risk'!V$5","v":0.15676179932303097},{"$f":"'Population at Risk'!F9/'Population at Risk'!F$5","v":0.31166771343706268},{"$f":"'Population at Risk'!W9/'Population at Risk'!W$5","v":0.17936338168056923},{"$f":"'Population at Risk'!X9/'Population at Risk'!X$5","v":0.17936338168056923},{"$f":"'Population at Risk'!Y9/'Population at Risk'!Y$5","v":0.15232950689275462},{"$f":"'Population at Risk'!Z9/'Population at Risk'!Z$5","v":9.5255469254662176E-2},{"$f":"'Population at Risk'!AA9/'Population at Risk'!AA$5","v":0.11658828067942725},{"$f":"'Population at Risk'!AB9/'Population at Risk'!AB$5","v":0.1907297384895556},{"$f":"'Population at Risk'!AY9/'Population at Risk'!AY$5","v":0.18590346481607986},{"$f":"'Population at Risk'!AC9/'Population at Risk'!AC$5","v":0.1017262199191441},{"$f":"'Population at Risk'!AD9/'Population at Risk'!AD$5","v":0.32127078869751158},{"$f":"'Population at Risk'!AE9/'Population at Risk'!AE$5","v":0.29864827226894536},{"$f":"'Population at Risk'!G9/'Population at Risk'!G$5","v":0.38420117234289552},{"$f":"'Population at Risk'!AF9/'Population at Risk'!AF$5","v":0.11169968875971242},{"$f":"'Population at Risk'!H9/'Population at Risk'!H$5","v":0.12919090626439356},{"$f":"'Population at Risk'!AG9/'Population at Risk'!AG$5","v":0.29864827226894536},{"$f":"'Population at Risk'!AZ9/'Population at Risk'!AZ$5","v":0.19235812093059404},{"$f":"'Population at Risk'!I9/'Population at Risk'!I$5","v":0.32063949247648832},{"$f":"'Population at Risk'!J9/'Population at Risk'!J$5","v":0.14756943105342496},{"$f":"'Population at Risk'!K9/'Population at Risk'!K$5","v":0.1469068773421828},{"$f":"'Population at Risk'!AH9/'Population at Risk'!AH$5","v":0.1444765591627459},{"$f":"'Population at Risk'!AI9/'Population at Risk'!AI$5","v":0.16007369954842113},{"$f":"'Population at Risk'!BA9/'Population at Risk'!BA$5","v":0.10485995915418457},{"$f":"'Population at Risk'!L9/'Population at Risk'!L$5","v":0.32349048961985716},{"$f":"'Population at Risk'!M9/'Population at Risk'!M$5","v":0.32349048961985716},{"$f":"'Population at Risk'!AJ9/'Population at Risk'!AJ$5","v":0.19940576601979837},{"$f":"'Population at Risk'!AK9/'Population at Risk'!AK$5","v":0.28001429721226107},{"$f":"'Population at Risk'!AL9/'Population at Risk'!AL$5","v":9.9009507132106017E-2},{"$f":"'Population at Risk'!AM9/'Population at Risk'!AM$5","v":0.13252820497397347},{"$f":"'Population at Risk'!N9/'Population at Risk'!N$5","v":8.9302676282434046E-2},{"$f":"'Population at Risk'!AN9/'Population at Risk'!AN$5","v":0.31608038162280438},{"$f":"'Population at Risk'!AO9/'Population at Risk'!AO$5","v":0.31608038162280438},{"$f":"'Population at Risk'!AP9/'Population at Risk'!AP$5","v":0.23523469140145459},{"$f":"'Population at Risk'!C9/'Population at Risk'!C$5","v":0.1397619976611133},{"$f":"'Population at Risk'!AQ9/'Population at Risk'!AQ$5","v":0.13560333018652626},{"$f":"'Population at Risk'!O9/'Population at Risk'!O$5","v":0.12581449871501507},{"$f":"'Population at Risk'!AR9/'Population at Risk'!AR$5","v":0.16605888294137888},{"$f":"'Population at Risk'!AS9/'Population at Risk'!AS$5","v":0.32063949247648832},{"$f":"'Population at Risk'!AT9/'Population at Risk'!AT$5","v":0.34825588230563831},{"$f":"'Population at Risk'!AU9/'Population at Risk'!AU$5","v":0.34825588230563831},{"$f":"'Population at Risk'!BB9/'Population at Risk'!BB$5","v":0.18343131908948876},{"$f":"'Population at Risk'!P9/'Population at Risk'!P$5","v":6.4253358296630564E-2},{"$f":"'Population at Risk'!AV9/'Population at Risk'!AV$5","v":0.17626280157112273},{"$f":"'Population at Risk'!AW9/'Population at Risk'!AW$5","v":0.15836401307413142},{"$f":"'Population at Risk'!Q9/'Population at Risk'!Q$5","v":0.20034966542850688},7]
["SIMD Q4",null,{"$f":"'Population at Risk'!R10/'Population at Risk'!R$5","v":0.1308604091686181},{"$f":"'Population at Risk'!AX10/'Population at Risk'!AX$5","v":0.21942657713967609},{"$f":"'Population at Risk'!S10/'Population at Risk'!S$5","v":0.14783980431214946},{"$f":"'Population at Risk'!T10/'Population at Risk'!T$5","v":0.12341036675463088},{"$f":"'Population at Risk'!U10/'Population at Risk'!U$5","v":4.6344189241443158E-2},{"$f":"'Population at Risk'!D10/'Population at Risk'!D$5","v":0.23236122145031643},{"$f":"'Population at Risk'!E10/'Population at Risk'!E$5","v":0.3349828737048684},{"$f":"'Population at Risk'!BC10/'Population at Risk'!BC$5","v":4.6344189241443158E-2},{"$f":"'Population at Risk'!V10/'Population at Risk'!V$5","v":0.14125264728545661},{"$f":"'Population at Risk'!F10/'Population at Risk'!F$5","v":0.20620793530411757},{"$f":"'Population at Risk'!W10/'Population at Risk'!W$5","v":0.12629324935146768},{"$f":"'Population at Risk'!X10/'Population at Risk'!X$5","v":0.12629324935146768},{"$f":"'Population at Risk'!Y10/'Population at Risk'!Y$5","v":0.1598321356234737},{"$f":"'Population at Risk'!Z10/'Population at Risk'!Z$5","v":6.8862371976888229E-2},{"$f":"'Population at Risk'!AA10/'Population at Risk'!AA$5","v":9.8456938962237658E-2},{"$f":"'Population at Risk'!AB10/'Population at Risk'!AB$5","v":0.24944791092423294},{"$f":"'Population at Risk'!AY10/'Population at Risk'!AY$5","v":0.16941503363454624},{"$f":"'Population at Risk'!AC10/'Population at Risk'!AC$5","v":8.9860813283611007E-2},{"$f":"'Population at Risk'!AD10/'Population at Risk'!AD$5","v":0.24599147418920445},{"$f":"'Population at Risk'!AE10/'Population at Risk'!AE$5","v":0.26390413269465224},{"$f":"'Population at Risk'!G10/'Population at Risk'!G$5","v":0.19777835844264993},{"$f":"'Population at Risk'!AF10/'Population at Risk'!AF$5","v":0.11094685637560063},{"$f":"'Population at Risk'!H10/'Population at Risk'!H$5","v":9.5871833969566431E-2},{"$f":"'Population at Risk'!AG10/'Population at Risk'!AG$5","v":0.26390413269465224},{"$f":"'Population at Risk'!AZ10/'Population at Risk'!AZ$5","v":0.20852530609249231},{"$f":"'Population at Risk'!I10/'Population at Risk'!I$5","v":0.30048044664464552},{"$f":"'Population at Risk'!J10/'Population at Risk'!J$5","v":0.18020078661067795},{"$f":"'Population at Risk'!K10/'Population at Risk'!K$5","v":0.11829644646758201},{"$f":"'Population at Risk'!AH10/'Population at Risk'!AH$5","v":0.11456067053795453},{"$f":"'Population at Risk'!AI10/'Population at Risk'!AI$5","v":0.13937949896039006},{"$f":"'Population at Risk'!BA10/'Population at Risk'!BA$5","v":7.8107763662929194E-2},{"$f":"'Population at Risk'!L10/'Population at Risk'!L$5","v":0.14443339350337223},{"$f":"'Population at Risk'!M10/'Population at Risk'!M$5","v":0.14443339350337223},{"$f":"'Population at Risk'!AJ10/'Population at Risk'!AJ$5","v":0.1137694382357875},{"$f":"'Population at Risk'!AK10/'Population at Risk'!AK$5","v":0.34192531732851522},{"$f":"'Population at Risk'!AL10/'Population at Risk'!AL$5","v":0.10064192083417228},{"$f":"'Population at Risk'!AM10/'Population at Risk'!AM$5","v":8.9353816354506913E-2},{"$f":"'Population at Risk'!N10/'Population at Risk'!N$5","v":0.1059305941043243},{"$f":"'Population at Risk'!AN10/'Population at Risk'!AN$5","v":0.42745813016669021},{"$f":"'Population at Risk'!AO10/'Population at Risk'!AO$5","v":0.42745813016669021},{"$f":"'Population at Risk'!AP10/'Population at Risk'!AP$5","v":0.35137539370632259},{"$f":"'Population at Risk'!C10/'Population at Risk'!C$5","v":0.1341369874789079},{"$f":"'Population at Risk'!AQ10/'Population at Risk'!AQ$5","v":0.11982722935822013},{"$f":"'Population at Risk'!O10/'Population at Risk'!O$5","v":8.8878671505179224E-2},{"$f":"'Population at Risk'!AR10/'Population at Risk'!AR$5","v":0.14692391935065341},{"$f":"'Population at Risk'!AS10/'Population at Risk'!AS$5","v":0.30048044664464552},{"$f":"'Population at Risk'!AT10/'Population at Risk'!AT$5","v":0.60409218609654658},{"$f":"'Population at Risk'!AU10/'Population at Risk'!AU$5","v":0.60409218609654658},{"$f":"'Population at Risk'!BB10/'Population at Risk'!BB$5","v":0.13053218948829806},{"$f":"'Population at Risk'!P10/'Population at Risk'!P$5","v":0.16517591907894763},{"$f":"'Population at Risk'!AV10/'Population at Risk'!AV$5","v":9.784797630202291E-2},{"$f":"'Population at Risk'!AW10/'Population at Risk'!AW$5","v":0.14411473901723881},{"$f":"'Population at Risk'!Q10/'Population at Risk'!Q$5","v":0.26450794156386243},8]
["SIMD Q5 (least deprived)",null,{"$f":"'Population at Risk'!R11/'Population at Risk'!R$5","v":0.50344501332644864},{"$f":"'Population at Risk'!AX11/'Population at Risk'!AX$5","v":0.22018479276473488},{"$f":"'Population at Risk'!S11/'Population at Risk'!S$5","v":0.2013146599580948},{"$f":"'Population at Risk'!T11/'Population at Risk'!T$5","v":0.31769931217494524},{"$f":"'Population at Risk'!U11/'Population at Risk'!U$5","v":0},{"$f":"'Population at Risk'!D11/'Population at Risk'!D$5","v":0.31013140701584169},{"$f":"'Population at Risk'!E11/'Population at Risk'!E$5","v":0.30861151316155366},{"$f":"'Population at Risk'!BC11/'Population at Risk'!BC$5","v":0},{"$f":"'Population at Risk'!V11/'Population at Risk'!V$5","v":0.14312836021999475},{"$f":"'Population at Risk'!F11/'Population at Risk'!F$5","v":0.14137455591822845},{"$f":"'Population at Risk'!W11/'Population at Risk'!W$5","v":0.15437455783967846},{"$f":"'Population at Risk'!X11/'Population at Risk'!X$5","v":0.15437455783967846},{"$f":"'Population at Risk'!Y11/'Population at Risk'!Y$5","v":0.15617431221739442},{"$f":"'Population at Risk'!Z11/'Population at Risk'!Z$5","v":6.1878598131772065E-2},{"$f":"'Population at Risk'!AA11/'Population at Risk'!AA$5","v":0.10438226868472547},{"$f":"'Population at Risk'!AB11/'Population at Risk'!AB$5","v":0.28542756999822955},{"$f":"'Population at Risk'!AY11/'Population at Risk'!AY$5","v":0.13775185981763879},{"$f":"'Population at Risk'!AC11/'Population at Risk'!AC$5","v":0.11865750052050657},{"$f":"'Population at Risk'!AD11/'Population at Risk'!AD$5","v":7.6483243599614212E-2},{"$f":"'Population at Risk'!AE11/'Population at Risk'!AE$5","v":7.4677715767454356E-2},{"$f":"'Population at Risk'!G11/'Population at Risk'!G$5","v":7.9199976856145979E-2},{"$f":"'Population at Risk'!AF11/'Population at Risk'!AF$5","v":6.9977877196384847E-2},{"$f":"'Population at Risk'!H11/'Population at Risk'!H$5","v":8.6832648043169286E-2},{"$f":"'Population at Risk'!AG11/'Population at Risk'!AG$5","v":7.4677715767454356E-2},{"$f":"'Population at Risk'!AZ11/'Population at Risk'!AZ$5","v":0.12250637595456908},{"$f":"'Population at Risk'!I11/'Population at Risk'!I$5","v":7.5686538822830191E-2},{"$f":"'Population at Risk'!J11/'Population at Risk'!J$5","v":0.17072678238432296},{"$f":"'Population at Risk'!K11/'Population at Risk'!K$5","v":9.2281310501270503E-2},{"$f":"'Population at Risk'!AH11/'Population at Risk'!AH$5","v":7.7641690171237773E-2},{"$f":"'Population at Risk'!AI11/'Population at Risk'!AI$5","v":0.23682981919750637},{"$f":"'Population at Risk'!BA11/'Population at Risk'!BA$5","v":2.6476300617083476E-2},{"$f":"'Population at Risk'!L11/'Population at Risk'!L$5","v":6.9472781209634321E-2},{"$f":"'Population at Risk'!M11/'Population at Risk'!M$5","v":6.9472781209634321E-2},{"$f":"'Population at Risk'!AJ11/'Population at Risk'!AJ$5","v":0.11492311183886146},{"$f":"'Population at Risk'!AK11/'Population at Risk'!AK$5","v":0.15090159379457499},{"$f":"'Population at Risk'!AL11/'Population at Risk'!AL$5","v":5.5802091143800754E-2},{"$f":"'Population at Risk'!AM11/'Population at Risk'!AM$5","v":5.943474216945533E-2},{"$f":"'Population at Risk'!N11/'Population at Risk'!N$5","v":9.3799411729726168E-2},{"$f":"'Population at Risk'!AN11/'Population at Risk'!AN$5","v":6.7651510426217448E-2},{"$f":"'Population at Risk'!AO11/'Population at Risk'!AO$5","v":6.7651510426217448E-2},{"$f":"'Population at Risk'!AP11/'Population at Risk'!AP$5","v":0.14557154934843725},{"$f":"'Population at Risk'!C11/'Population at Risk'!C$5","v":0.30977704268628087},{"$f":"'Population at Risk'!AQ11/'Population at Risk'!AQ$5","v":0.12335902113349487},{"$f":"'Population at Risk'!O11/'Population at Risk'!O$5","v":7.4890689416373779E-2},{"$f":"'Population at Risk'!AR11/'Population at Risk'!AR$5","v":0.14351266787199055},{"$f":"'Population at Risk'!AS11/'Population at Risk'!AS$5","v":7.5686538822830191E-2},{"$f":"'Population at Risk'!AT11/'Population at Risk'!AT$5","v":0},{"$f":"'Population at Risk'!AU11/'Population at Risk'!AU$5","v":0},{"$f":"'Population at Risk'!BB11/'Population at Risk'!BB$5","v":0.13160446587632696},{"$f":"'Population at Risk'!P11/'Population at Risk'!P$5","v":0.45126104323301985},{"$f":"'Population at Risk'!AV11/'Population at Risk'!AV$5","v":0.14528771977081922},{"$f":"'Population at Risk'!AW11/'Population at Risk'!AW$5","v":9.8906425109052135E-2},{"$f":"'Population at Risk'!Q11/'Population at Risk'!Q$5","v":0.12955673179517604},9]
["SIMD Q1 (most deprived)","16+ Females",{"$f":"'Population at Risk'!R12/'Population at Risk'!R$5","v":7.5652411414319304E-2},{"$f":"'Population at Risk'!AX12/'Population at Risk'!AX$5","v":0.13160222472071512},{"$f":"'Population at Risk'!S12/'Population at Risk'!S$5","v":0.13480590082653285},{"$f":"'Population at Risk'!T12/'Population at Risk'!T$5","v":0.13546256034110177},{"$f":"'Population at Risk'!U12/'Population at Risk'!U$5","v":0},{"$f":"'Population at Risk'!D12/'Population at Risk'!D$5","v":5.3188577419333194E-2},{"$f":"'Population at Risk'!E12/'Population at Risk'!E$5","v":2.5063307143502328E-2},{"$f":"'Population at Risk'!BC12/'Population at Risk'!BC$5","v":0},{"$f":"'Population at Risk'!V12/'Population at Risk'!V$5","v":0.14209787237023666},{"$f":"'Population at Risk'!F12/'Population at Risk'!F$5","v":7.9896991740854545E-2},{"$f":"'Population at Risk'!W12/'Population at Risk'!W$5","v":0.179496561612731},{"$f":"'Population at Risk'!X12/'Population at Risk'!X$5","v":0.179496561612731},{"$f":"'Population at Risk'!Y12/'Population at Risk'!Y$5","v":0.14981752298864709},{"$f":"'Population at Risk'!Z12/'Population at Risk'!Z$5","v":0.36197642599466245},{"$f":"'Population at Risk'!AA12/'Population at Risk'!AA$5","v":0.26156533538266608},{"$f":"'Population at Risk'!AB12/'Population at Risk'!AB$5","v":4.6880148000007282E-2},{"$f":"'Population at Risk'!AY12/'Population at Risk'!AY$5","v":0.15686590910610837},{"$f":"'Population at Risk'!AC12/'Population at Risk'!AC$5","v":0.2894220996225022},{"$f":"'Population at Risk'!AD12/'Population at Risk'!AD$5","v":6.4324727511390511E-2},{"$f":"'Population at Risk'!AE12/'Population at Risk'!AE$5","v":6.2430196962212123E-2},{"$f":"'Population at Risk'!G12/'Population at Risk'!G$5","v":7.0533884625330098E-2},{"$f":"'Population at Risk'!AF12/'Population at Risk'!AF$5","v":0.27742676475991268},{"$f":"'Population at Risk'!H12/'Population at Risk'!H$5","v":0.24441618318178157},{"$f":"'Population at Risk'!AG12/'Population at Risk'!AG$5","v":6.2430196962212123E-2},{"$f":"'Population at Risk'!AZ12/'Population at Risk'!AZ$5","v":0.13666537900124737},{"$f":"'Population at Risk'!I12/'Population at Risk'!I$5","v":5.9497396826590117E-2},{"$f":"'Population at Risk'!J12/'Population at Risk'!J$5","v":0.15677772673453791},{"$f":"'Population at Risk'!K12/'Population at Risk'!K$5","v":0.19769639101684758},{"$f":"'Population at Risk'!AH12/'Population at Risk'!AH$5","v":0.21029809789812068},{"$f":"'Population at Risk'!AI12/'Population at Risk'!AI$5","v":0.12352484323774146},{"$f":"'Population at Risk'!BA12/'Population at Risk'!BA$5","v":0.28004875452820921},{"$f":"'Population at Risk'!L12/'Population at Risk'!L$5","v":9.040268678965635E-2},{"$f":"'Population at Risk'!M12/'Population at Risk'!M$5","v":9.040268678965635E-2},{"$f":"'Population at Risk'!AJ12/'Population at Risk'!AJ$5","v":9.5845661847444197E-2},{"$f":"'Population at Risk'!AK12/'Population at Risk'!AK$5","v":1.0274019573045648E-2},{"$f":"'Population at Risk'!AL12/'Population at Risk'!AL$5","v":0.31726456439373091},{"$f":"'Population at Risk'!AM12/'Population at Risk'!AM$5","v":0.23858721699840829},{"$f":"'Population at Risk'!N12/'Population at Risk'!N$5","v":0.21111336002606204},{"$f":"'Population at Risk'!AN12/'Population at Risk'!AN$5","v":0},{"$f":"'Population at Risk'!AO12/'Population at Risk'!AO$5","v":0},{"$f":"'Population at Risk'!AP12/'Population at Risk'!AP$5","v":4.8379136180161375E-2},{"$f":"'Population at Risk'!C12/'Population at Risk'!C$5","v":7.604023375772069E-2},{"$f":"'Population at Risk'!AQ12/'Population at Risk'!AQ$5","v":0.20699110369511747},{"$f":"'Population at Risk'!O12/'Population at Risk'!O$5","v":0.23733521337182925},{"$f":"'Population at Risk'!AR12/'Population at Risk'!AR$5","v":0.17989320086304561},{"$f":"'Population at Risk'!AS12/'Population at Risk'!AS$5","v":5.9497396826590117E-2},{"$f":"'Population at Risk'!AT12/'Population at Risk'!AT$5","v":0},{"$f":"'Population at Risk'!AU12/'Population at Risk'!AU$5","v":0},{"$f":"'Population at Risk'!BB12/'Population at Risk'!BB$5","v":0.1489077941863737},{"$f":"'Population at Risk'!P12/'Population at Risk'!P$5","v":5.592578774805667E-2},{"$f":"'Population at Risk'!AV12/'Population at Risk'!AV$5","v":0.15379912777371596},{"$f":"'Population at Risk'!AW12/'Population at Risk'!AW$5","v":0.17609074764676139},{"$f":"'Population at Risk'!Q12/'Population at Risk'!Q$5","v":3.7113660485164096E-2},10]
["SIMD Q2",null,{"$f":"'Population at Risk'!R13/'Population at Risk'!R$5","v":7.3828148569133556E-2},{"$f":"'Population at Risk'!AX13/'Population at Risk'!AX$5","v":0.10576305563214351},{"$f":"'Population at Risk'!S13/'Population at Risk'!S$5","v":0.14238151560224374},{"$f":"'Population at Risk'!T13/'Population at Risk'!T$5","v":0.10675229007880564},{"$f":"'Population at Risk'!U13/'Population at Risk'!U$5","v":0.17117186296236819},{"$f":"'Population at Risk'!D13/'Population at Risk'!D$5","v":0.10578828445846272},{"$f":"'Population at Risk'!E13/'Population at Risk'!E$5","v":6.5088381603515114E-2},{"$f":"'Population at Risk'!BC13/'Population at Risk'!BC$5","v":0.17117186296236819},{"$f":"'Population at Risk'!V13/'Population at Risk'!V$5","v":0.20432882506602426},{"$f":"'Population at Risk'!F13/'Population at Risk'!F$5","v":0.13613187357766005},{"$f":"'Population at Risk'!W13/'Population at Risk'!W$5","v":0.13428079028110837},{"$f":"'Population at Risk'!X13/'Population at Risk'!X$5","v":0.13428079028110837},{"$f":"'Population at Risk'!Y13/'Population at Risk'!Y$5","v":0.16565831522224919},{"$f":"'Population at Risk'!Z13/'Population at Risk'!Z$5","v":9.9926913401078385E-2},{"$f":"'Population at Risk'!AA13/'Population at Risk'!AA$5","v":0.12333104237842145},{"$f":"'Population at Risk'!AB13/'Population at Risk'!AB$5","v":0.10980482509696175},{"$f":"'Population at Risk'!AY13/'Population at Risk'!AY$5","v":0.1114633908731036},{"$f":"'Population at Risk'!AC13/'Population at Risk'!AC$5","v":0.10274083291386529},{"$f":"'Population at Risk'!AD13/'Population at Risk'!AD$5","v":0.12099196987173205},{"$f":"'Population at Risk'!AE13/'Population at Risk'!AE$5","v":0.12169850515103357},{"$f":"'Population at Risk'!G13/'Population at Risk'!G$5","v":0.11970296895716773},{"$f":"'Population at Risk'!AF13/'Population at Risk'!AF$5","v":6.4235735626332058E-2},{"$f":"'Population at Risk'!H13/'Population at Risk'!H$5","v":0.14111515269241665},{"$f":"'Population at Risk'!AG13/'Population at Risk'!AG$5","v":0.12169850515103357},{"$f":"'Population at Risk'!AZ13/'Population at Risk'!AZ$5","v":9.1865776664168924E-2},{"$f":"'Population at Risk'!I13/'Population at Risk'!I$5","v":0.12416186029754231},{"$f":"'Population at Risk'!J13/'Population at Risk'!J$5","v":0.12593285586975833},{"$f":"'Population at Risk'!K13/'Population at Risk'!K$5","v":0.15871857654968854},{"$f":"'Population at Risk'!AH13/'Population at Risk'!AH$5","v":0.16104765453721157},{"$f":"'Population at Risk'!AI13/'Population at Risk'!AI$5","v":0.14786304683708029},{"$f":"'Population at Risk'!BA13/'Population at Risk'!BA$5","v":0.15246907444545182},{"$f":"'Population at Risk'!L13/'Population at Risk'!L$5","v":0.21648292896873397},{"$f":"'Population at Risk'!M13/'Population at Risk'!M$5","v":0.21648292896873397},{"$f":"'Population at Risk'!AJ13/'Population at Risk'!AJ$5","v":0.25524822529530505},{"$f":"'Population at Risk'!AK13/'Population at Risk'!AK$5","v":0.13259272491657564},{"$f":"'Population at Risk'!AL13/'Population at Risk'!AL$5","v":0.11469141101221049},{"$f":"'Population at Risk'!AM13/'Population at Risk'!AM$5","v":0.15731551802259058},{"$f":"'Population at Risk'!N13/'Population at Risk'!N$5","v":8.3301909043462977E-2},{"$f":"'Population at Risk'!AN13/'Population at Risk'!AN$5","v":0.10446994963814132},{"$f":"'Population at Risk'!AO13/'Population at Risk'!AO$5","v":0.10446994963814132},{"$f":"'Population at Risk'!AP13/'Population at Risk'!AP$5","v":7.0909154828976778E-2},{"$f":"'Population at Risk'!C13/'Population at Risk'!C$5","v":0.1386193602126268},{"$f":"'Population at Risk'!AQ13/'Population at Risk'!AQ$5","v":9.7113870237970093E-2},{"$f":"'Population at Risk'!O13/'Population at Risk'!O$5","v":0.14464100961991225},{"$f":"'Population at Risk'!AR13/'Population at Risk'!AR$5","v":0.13103374453751307},{"$f":"'Population at Risk'!AS13/'Population at Risk'!AS$5","v":0.12416186029754231},{"$f":"'Population at Risk'!AT13/'Population at Risk'!AT$5","v":2.2528185868436516E-2},{"$f":"'Population at Risk'!AU13/'Population at Risk'!AU$5","v":2.2528185868436516E-2},{"$f":"'Population at Risk'!BB13/'Population at Risk'!BB$5","v":0.17843197317806758},{"$f":"'Population at Risk'!P13/'Population at Risk'!P$5","v":0.135511369962519},{"$f":"'Population at Risk'!AV13/'Population at Risk'!AV$5","v":0.17313584911914898},{"$f":"'Population at Risk'!AW13/'Population at Risk'!AW$5","v":0.16531638439980717},{"$f":"'Population at Risk'!Q13/'Population at Risk'!Q$5","v":0.20850156503757705},11]
["SIMD Q3",null,{"$f":"'Population at Risk'!R14/'Population at Risk'!R$5","v":6.6690900768460487E-2},{"$f":"'Population at Risk'!AX14/'Population at Risk'!AX$5","v":8.8391237290105548E-2},{"$f":"'Population at Risk'!S14/'Population at Risk'!S$5","v":0.10915509238127591},{"$f":"'Population at Risk'!T14/'Population at Risk'!T$5","v":8.2655255284795462E-2},{"$f":"'Population at Risk'!U14/'Population at Risk'!U$5","v":0.38675995870798413},{"$f":"'Population at Risk'!D14/'Population at Risk'!D$5","v":0.10075245607245156},{"$f":"'Population at Risk'!E14/'Population at Risk'!E$5","v":0.13469450935567084},{"$f":"'Population at Risk'!BC14/'Population at Risk'!BC$5","v":0.38675995870798413},{"$f":"'Population at Risk'!V14/'Population at Risk'!V$5","v":0.10230873222775405},{"$f":"'Population at Risk'!F14/'Population at Risk'!F$5","v":0.20505412310226234},{"$f":"'Population at Risk'!W14/'Population at Risk'!W$5","v":0.11085189796746746},{"$f":"'Population at Risk'!X14/'Population at Risk'!X$5","v":0.11085189796746746},{"$f":"'Population at Risk'!Y14/'Population at Risk'!Y$5","v":9.5118135285119795E-2},{"$f":"'Population at Risk'!Z14/'Population at Risk'!Z$5","v":6.0065559247274677E-2},{"$f":"'Population at Risk'!AA14/'Population at Risk'!AA$5","v":7.0545939967098889E-2},{"$f":"'Population at Risk'!AB14/'Population at Risk'!AB$5","v":0.11237729648940403},{"$f":"'Population at Risk'!AY14/'Population at Risk'!AY$5","v":0.10495624277967573},{"$f":"'Population at Risk'!AC14/'Population at Risk'!AC$5","v":6.1701943931779628E-2},{"$f":"'Population at Risk'!AD14/'Population at Risk'!AD$5","v":0.17596307297655533},{"$f":"'Population at Risk'!AE14/'Population at Risk'!AE$5","v":0.15818698747842813},{"$f":"'Population at Risk'!G14/'Population at Risk'!G$5","v":0.23119490263733442},{"$f":"'Population at Risk'!AF14/'Population at Risk'!AF$5","v":5.8545527493654631E-2},{"$f":"'Population at Risk'!H14/'Population at Risk'!H$5","v":7.6790424178208139E-2},{"$f":"'Population at Risk'!AG14/'Population at Risk'!AG$5","v":0.15818698747842813},{"$f":"'Population at Risk'!AZ14/'Population at Risk'!AZ$5","v":9.8637409501365847E-2},{"$f":"'Population at Risk'!I14/'Population at Risk'!I$5","v":0.20545198833202966},{"$f":"'Population at Risk'!J14/'Population at Risk'!J$5","v":8.7390247059773593E-2},{"$f":"'Population at Risk'!K14/'Population at Risk'!K$5","v":8.6622551535496584E-2},{"$f":"'Population at Risk'!AH14/'Population at Risk'!AH$5","v":8.6736301349424477E-2},{"$f":"'Population at Risk'!AI14/'Population at Risk'!AI$5","v":9.7387375503210569E-2},{"$f":"'Population at Risk'!BA14/'Population at Risk'!BA$5","v":6.0191747495807781E-2},{"$f":"'Population at Risk'!L14/'Population at Risk'!L$5","v":0.22097687013427211},{"$f":"'Population at Risk'!M14/'Population at Risk'!M$5","v":0.22097687013427211},{"$f":"'Population at Risk'!AJ14/'Population at Risk'!AJ$5","v":0.12661032931985203},{"$f":"'Population at Risk'!AK14/'Population at Risk'!AK$5","v":0.17909443759964036},{"$f":"'Population at Risk'!AL14/'Population at Risk'!AL$5","v":6.138262605209318E-2},{"$f":"'Population at Risk'!AM14/'Population at Risk'!AM$5","v":7.9003496696635561E-2},{"$f":"'Population at Risk'!N14/'Population at Risk'!N$5","v":3.9733992168915995E-2},{"$f":"'Population at Risk'!AN14/'Population at Risk'!AN$5","v":0.17966762569836189},{"$f":"'Population at Risk'!AO14/'Population at Risk'!AO$5","v":0.17966762569836189},{"$f":"'Population at Risk'!AP14/'Population at Risk'!AP$5","v":0.11543804958190416},{"$f":"'Population at Risk'!C14/'Population at Risk'!C$5","v":7.1815909181154339E-2},{"$f":"'Population at Risk'!AQ14/'Population at Risk'!AQ$5","v":7.3429542137265297E-2},{"$f":"'Population at Risk'!O14/'Population at Risk'!O$5","v":7.0667613333184012E-2},{"$f":"'Population at Risk'!AR14/'Population at Risk'!AR$5","v":0.10026081898918761},{"$f":"'Population at Risk'!AS14/'Population at Risk'!AS$5","v":0.20545198833202966},{"$f":"'Population at Risk'!AT14/'Population at Risk'!AT$5","v":0.18545248677489984},{"$f":"'Population at Risk'!AU14/'Population at Risk'!AU$5","v":0.18545248677489984},{"$f":"'Population at Risk'!BB14/'Population at Risk'!BB$5","v":0.11135846885540075},{"$f":"'Population at Risk'!P14/'Population at Risk'!P$5","v":4.0746763740935409E-2},{"$f":"'Population at Risk'!AV14/'Population at Risk'!AV$5","v":0.10579004110408885},{"$f":"'Population at Risk'!AW14/'Population at Risk'!AW$5","v":9.5900309216653934E-2},{"$f":"'Population at Risk'!Q14/'Population at Risk'!Q$5","v":0.1218271533210603},12]
["SIMD Q4",null,{"$f":"'Population at Risk'!R15/'Population at Risk'!R$5","v":8.9183664053294337E-2},{"$f":"'Population at Risk'!AX15/'Population at Risk'!AX$5","v":0.14402963008498412},{"$f":"'Population at Risk'!S15/'Population at Risk'!S$5","v":0.10058466523906893},{"$f":"'Population at Risk'!T15/'Population at Risk'!T$5","v":8.3087905368658205E-2},{"$f":"'Population at Risk'!U15/'Population at Risk'!U$5","v":3.0916612663263343E-2},{"$f":"'Population at Risk'!D15/'Population at Risk'!D$5","v":0.15113500698771792},{"$f":"'Population at Risk'!E15/'Population at Risk'!E$5","v":0.23414549026614856},{"$f":"'Population at Risk'!BC15/'Population at Risk'!BC$5","v":3.0916612663263343E-2},{"$f":"'Population at Risk'!V15/'Population at Risk'!V$5","v":9.9013728014886615E-2},{"$f":"'Population at Risk'!F15/'Population at Risk'!F$5","v":0.14732771837727748},{"$f":"'Population at Risk'!W15/'Population at Risk'!W$5","v":8.5260613584615813E-2},{"$f":"'Population at Risk'!X15/'Population at Risk'!X$5","v":8.5260613584615813E-2},{"$f":"'Population at Risk'!Y15/'Population at Risk'!Y$5","v":0.10778436683793947},{"$f":"'Population at Risk'!Z15/'Population at Risk'!Z$5","v":4.8064209881387689E-2},{"$f":"'Population at Risk'!AA15/'Population at Risk'!AA$5","v":6.5672299464764314E-2},{"$f":"'Population at Risk'!AB15/'Population at Risk'!AB$5","v":0.16365150490572603},{"$f":"'Population at Risk'!AY15/'Population at Risk'!AY$5","v":0.10594565369418527},{"$f":"'Population at Risk'!AC15/'Population at Risk'!AC$5","v":6.0434539633277586E-2},{"$f":"'Population at Risk'!AD15/'Population at Risk'!AD$5","v":0.14941738005556893},{"$f":"'Population at Risk'!AE15/'Population at Risk'!AE$5","v":0.15643157502276445},{"$f":"'Population at Risk'!G15/'Population at Risk'!G$5","v":0.12917334342649084},{"$f":"'Population at Risk'!AF15/'Population at Risk'!AF$5","v":6.4133086079954063E-2},{"$f":"'Population at Risk'!H15/'Population at Risk'!H$5","v":6.3068190517966499E-2},{"$f":"'Population at Risk'!AG15/'Population at Risk'!AG$5","v":0.15643157502276445},{"$f":"'Population at Risk'!AZ15/'Population at Risk'!AZ$5","v":0.12030037957895562},{"$f":"'Population at Risk'!I15/'Population at Risk'!I$5","v":0.21132235592942702},{"$f":"'Population at Risk'!J15/'Population at Risk'!J$5","v":0.11602329580087485},{"$f":"'Population at Risk'!K15/'Population at Risk'!K$5","v":7.3169051028909457E-2},{"$f":"'Population at Risk'!AH15/'Population at Risk'!AH$5","v":7.5247482837806523E-2},{"$f":"'Population at Risk'!AI15/'Population at Risk'!AI$5","v":9.4682118909455562E-2},{"$f":"'Population at Risk'!BA15/'Population at Risk'!BA$5","v":5.0371846921632268E-2},{"$f":"'Population at Risk'!L15/'Population at Risk'!L$5","v":0.10681183234310206},{"$f":"'Population at Risk'!M15/'Population at Risk'!M$5","v":0.10681183234310206},{"$f":"'Population at Risk'!AJ15/'Population at Risk'!AJ$5","v":7.9757526201524043E-2},{"$f":"'Population at Risk'!AK15/'Population at Risk'!AK$5","v":0.23532751311245409},{"$f":"'Population at Risk'!AL15/'Population at Risk'!AL$5","v":6.8212561450607986E-2},{"$f":"'Population at Risk'!AM15/'Population at Risk'!AM$5","v":5.7748964392306534E-2},{"$f":"'Population at Risk'!N15/'Population at Risk'!N$5","v":5.4103403829073249E-2},{"$f":"'Population at Risk'!AN15/'Population at Risk'!AN$5","v":0.27752849834834448},{"$f":"'Population at Risk'!AO15/'Population at Risk'!AO$5","v":0.27752849834834448},{"$f":"'Population at Risk'!AP15/'Population at Risk'!AP$5","v":0.19509840302336684},{"$f":"'Population at Risk'!C15/'Population at Risk'!C$5","v":8.1151090277497923E-2},{"$f":"'Population at Risk'!AQ15/'Population at Risk'!AQ$5","v":7.211206304351192E-2},{"$f":"'Population at Risk'!O15/'Population at Risk'!O$5","v":5.6646602605568343E-2},{"$f":"'Population at Risk'!AR15/'Population at Risk'!AR$5","v":9.781033935052906E-2},{"$f":"'Population at Risk'!AS15/'Population at Risk'!AS$5","v":0.21132235592942702},{"$f":"'Population at Risk'!AT15/'Population at Risk'!AT$5","v":0.36422614945666565},{"$f":"'Population at Risk'!AU15/'Population at Risk'!AU$5","v":0.36422614945666565},{"$f":"'Population at Risk'!BB15/'Population at Risk'!BB$5","v":8.8885799532105E-2},{"$f":"'Population at Risk'!P15/'Population at Risk'!P$5","v":0.11349763917273259},{"$f":"'Population at Risk'!AV15/'Population at Risk'!AV$5","v":6.4225249600979431E-2},{"$f":"'Population at Risk'!AW15/'Population at Risk'!AW$5","v":9.6141203325241217E-2},{"$f":"'Population at Risk'!Q15/'Population at Risk'!Q$5","v":0.18078835609392166},13]
["SIMD Q5 (least deprived)",null,{"$f":"'Population at Risk'!R16/'Population at Risk'!R$5","v":0.312268768498765},{"$f":"'Population at Risk'!AX16/'Population at Risk'!AX$5","v":0.13446906305209289},{"$f":"'Population at Risk'!S16/'Population at Risk'!S$5","v":0.12863514995179795},{"$f":"'Population at Risk'!T16/'Population at Risk'!T$5","v":0.20260124254241638},{"$f":"'Population at Risk'!U16/'Population at Risk'!U$5","v":0},{"$f":"'Population at Risk'!D16/'Population at Risk'!D$5","v":0.19051439418307295},{"$f":"'Population at Risk'!E16/'Population at Risk'!E$5","v":0.20358576935386238},{"$f":"'Population at Risk'!BC16/'Population at Risk'!BC$5","v":0},{"$f":"'Population at Risk'!V16/'Population at Risk'!V$5","v":9.6055789286833962E-2},{"$f":"'Population at Risk'!F16/'Population at Risk'!F$5","v":9.5077765626319644E-2},{"$f":"'Population at Risk'!W16/'Population at Risk'!W$5","v":9.767309448366697E-2},{"$f":"'Population at Risk'!X16/'Population at Risk'!X$5","v":9.767309448366697E-2},{"$f":"'Population at Risk'!Y16/'Population at Risk'!Y$5","v":0.10018647587719171},{"$f":"'Population at Risk'!Z16/'Population at Risk'!Z$5","v":4.1646116601395479E-2},{"$f":"'Population at Risk'!AA16/'Population at Risk'!AA$5","v":6.4895714378874716E-2},{"$f":"'Population at Risk'!AB16/'Population at Risk'!AB$5","v":0.17633954627070914},{"$f":"'Population at Risk'!AY16/'Population at Risk'!AY$5","v":8.0515612586524524E-2},{"$f":"'Population at Risk'!AC16/'Population at Risk'!AC$5","v":7.4447866302559215E-2},{"$f":"'Population at Risk'!AD16/'Population at Risk'!AD$5","v":4.074442911864521E-2},{"$f":"'Population at Risk'!AE16/'Population at Risk'!AE$5","v":4.204599081168138E-2},{"$f":"'Population at Risk'!G16/'Population at Risk'!G$5","v":3.7080106366865671E-2},{"$f":"'Population at Risk'!AF16/'Population at Risk'!AF$5","v":3.7897156222495273E-2},{"$f":"'Population at Risk'!H16/'Population at Risk'!H$5","v":5.2635623417716271E-2},{"$f":"'Population at Risk'!AG16/'Population at Risk'!AG$5","v":4.204599081168138E-2},{"$f":"'Population at Risk'!AZ16/'Population at Risk'!AZ$5","v":6.5833609800456508E-2},{"$f":"'Population at Risk'!I16/'Population at Risk'!I$5","v":4.9694798938574161E-2},{"$f":"'Population at Risk'!J16/'Population at Risk'!J$5","v":0.10380459966794496},{"$f":"'Population at Risk'!K16/'Population at Risk'!K$5","v":5.6669781301640139E-2},{"$f":"'Population at Risk'!AH16/'Population at Risk'!AH$5","v":4.7329941362783907E-2},{"$f":"'Population at Risk'!AI16/'Population at Risk'!AI$5","v":0.15107149497971067},{"$f":"'Population at Risk'!BA16/'Population at Risk'!BA$5","v":1.5600009376173096E-2},{"$f":"'Population at Risk'!L16/'Population at Risk'!L$5","v":4.9011088928446835E-2},{"$f":"'Population at Risk'!M16/'Population at Risk'!M$5","v":4.9011088928446835E-2},{"$f":"'Population at Risk'!AJ16/'Population at Risk'!AJ$5","v":7.4255165918726287E-2},{"$f":"'Population at Risk'!AK16/'Population at Risk'!AK$5","v":9.3822824290005144E-2},{"$f":"'Population at Risk'!AL16/'Population at Risk'!AL$5","v":3.4402054366448588E-2},{"$f":"'Population at Risk'!AM16/'Population at Risk'!AM$5","v":3.5910514018950762E-2},{"$f":"'Population at Risk'!N16/'Population at Risk'!N$5","v":4.3951368398921095E-2},{"$f":"'Population at Risk'!AN16/'Population at Risk'!AN$5","v":3.9663597157379986E-2},{"$f":"'Population at Risk'!AO16/'Population at Risk'!AO$5","v":3.9663597157379986E-2},{"$f":"'Population at Risk'!AP16/'Population at Risk'!AP$5","v":7.6190116991970452E-2},{"$f":"'Population at Risk'!C16/'Population at Risk'!C$5","v":0.1781208702216911},{"$f":"'Population at Risk'!AQ16/'Population at Risk'!AQ$5","v":6.7377991009656357E-2},{"$f":"'Population at Risk'!O16/'Population at Risk'!O$5","v":4.4101240959228315E-2},{"$f":"'Population at Risk'!AR16/'Population at Risk'!AR$5","v":8.9574016251350141E-2},{"$f":"'Population at Risk'!AS16/'Population at Risk'!AS$5","v":4.9694798938574161E-2},{"$f":"'Population at Risk'!AT16/'Population at Risk'!AT$5","v":0},{"$f":"'Population at Risk'!AU16/'Population at Risk'!AU$5","v":0},{"$f":"'Population at Risk'!BB16/'Population at Risk'!BB$5","v":8.2493239948344052E-2},{"$f":"'Population at Risk'!P16/'Population at Risk'!P$5","v":0.28210507205281726},{"$f":"'Population at Risk'!AV16/'Population at Risk'!AV$5","v":8.8522193824218054E-2},{"$f":"'Population at Risk'!AW16/'Population at Risk'!AW$5","v":6.0967354306664202E-2},{"$f":"'Population at Risk'!Q16/'Population at Risk'!Q$5","v":8.1734624901849115E-2},14]
["SIMD Q1 (most deprived)","16+ Males",{"$f":"'Population at Risk'!R17/'Population at Risk'!R$5","v":5.5800276998349489E-2},{"$f":"'Population at Risk'!AX17/'Population at Risk'!AX$5","v":9.9603233222677848E-2},{"$f":"'Population at Risk'!S17/'Population at Risk'!S$5","v":0.10279506335915828},{"$f":"'Population at Risk'!T17/'Population at Risk'!T$5","v":0.10686792257808103},{"$f":"'Population at Risk'!U17/'Population at Risk'!U$5","v":0},{"$f":"'Population at Risk'!D17/'Population at Risk'!D$5","v":4.7290833077722506E-2},{"$f":"'Population at Risk'!E17/'Population at Risk'!E$5","v":1.83964076331814E-2},{"$f":"'Population at Risk'!BC17/'Population at Risk'!BC$5","v":0},{"$f":"'Population at Risk'!V17/'Population at Risk'!V$5","v":9.6145387630059642E-2},{"$f":"'Population at Risk'!F17/'Population at Risk'!F$5","v":5.0733019062542503E-2},{"$f":"'Population at Risk'!W17/'Population at Risk'!W$5","v":0.1380972929707473},{"$f":"'Population at Risk'!X17/'Population at Risk'!X$5","v":0.1380972929707473},{"$f":"'Population at Risk'!Y17/'Population at Risk'!Y$5","v":0.11005335783838931},{"$f":"'Population at Risk'!Z17/'Population at Risk'!Z$5","v":0.25030455617933395},{"$f":"'Population at Risk'!AA17/'Population at Risk'!AA$5","v":0.20959542766912337},{"$f":"'Population at Risk'!AB17/'Population at Risk'!AB$5","v":4.0372404299532247E-2},{"$f":"'Population at Risk'!AY17/'Population at Risk'!AY$5","v":0.14693016280930127},{"$f":"'Population at Risk'!AC17/'Population at Risk'!AC$5","v":0.22679522355436421},{"$f":"'Population at Risk'!AD17/'Population at Risk'!AD$5","v":6.6645861033797951E-2},{"$f":"'Population at Risk'!AE17/'Population at Risk'!AE$5","v":6.7595709977616311E-2},{"$f":"'Population at Risk'!G17/'Population at Risk'!G$5","v":6.2742403091920362E-2},{"$f":"'Population at Risk'!AF17/'Population at Risk'!AF$5","v":0.30547184725142712},{"$f":"'Population at Risk'!H17/'Population at Risk'!H$5","v":0.20069080445734291},{"$f":"'Population at Risk'!AG17/'Population at Risk'!AG$5","v":6.7595709977616311E-2},{"$f":"'Population at Risk'!AZ17/'Population at Risk'!AZ$5","v":0.15415153449974103},{"$f":"'Population at Risk'!I17/'Population at Risk'!I$5","v":4.1899860700774137E-2},{"$f":"'Population at Risk'!J17/'Population at Risk'!J$5","v":0.12687474377528946},{"$f":"'Population at Risk'!K17/'Population at Risk'!K$5","v":0.16899888153835729},{"$f":"'Population at Risk'!AH17/'Population at Risk'!AH$5","v":0.17618916356671468},{"$f":"'Population at Risk'!AI17/'Population at Risk'!AI$5","v":9.4934080504524315E-2},{"$f":"'Population at Risk'!BA17/'Population at Risk'!BA$5","v":0.23891503126990934},{"$f":"'Population at Risk'!L17/'Population at Risk'!L$5","v":4.9734613523930639E-2},{"$f":"'Population at Risk'!M17/'Population at Risk'!M$5","v":4.9734613523930639E-2},{"$f":"'Population at Risk'!AJ17/'Population at Risk'!AJ$5","v":6.8753388357728262E-2},{"$f":"'Population at Risk'!AK17/'Population at Risk'!AK$5","v":6.6150069816312412E-3},{"$f":"'Population at Risk'!AL17/'Population at Risk'!AL$5","v":0.23746645926905283},{"$f":"'Population at Risk'!AM17/'Population at Risk'!AM$5","v":0.20797628344576785},{"$f":"'Population at Risk'!N17/'Population at Risk'!N$5","v":0.30767476453693837},{"$f":"'Population at Risk'!AN17/'Population at Risk'!AN$5","v":0},{"$f":"'Population at Risk'!AO17/'Population at Risk'!AO$5","v":0},{"$f":"'Population at Risk'!AP17/'Population at Risk'!AP$5","v":6.3215650325321629E-2},{"$f":"'Population at Risk'!C17/'Population at Risk'!C$5","v":8.0578761939866142E-2},{"$f":"'Population at Risk'!AQ17/'Population at Risk'!AQ$5","v":0.2289890364277814},{"$f":"'Population at Risk'!O17/'Population at Risk'!O$5","v":0.21247791722480164},{"$f":"'Population at Risk'!AR17/'Population at Risk'!AR$5","v":0.14230897832931302},{"$f":"'Population at Risk'!AS17/'Population at Risk'!AS$5","v":4.1899860700774137E-2},{"$f":"'Population at Risk'!AT17/'Population at Risk'!AT$5","v":0},{"$f":"'Population at Risk'!AU17/'Population at Risk'!AU$5","v":0},{"$f":"'Population at Risk'!BB17/'Population at Risk'!BB$5","v":0.11053292763197199},{"$f":"'Population at Risk'!P17/'Population at Risk'!P$5","v":4.021536598714294E-2},{"$f":"'Population at Risk'!AV17/'Population at Risk'!AV$5","v":0.12979882295013731},{"$f":"'Population at Risk'!AW17/'Population at Risk'!AW$5","v":0.1403572543988956},{"$f":"'Population at Risk'!Q17/'Population at Risk'!Q$5","v":2.6763306478919734E-2},15]
["SIMD Q2",null,{"$f":"'Population at Risk'!R18/'Population at Risk'!R$5","v":5.1273927498455864E-2},{"$f":"'Population at Risk'!AX18/'Population at Risk'!AX$5","v":7.5466247095115027E-2},{"$f":"'Population at Risk'!S18/'Population at Risk'!S$5","v":9.3136917001293701E-2},{"$f":"'Population at Risk'!T18/'Population at Risk'!T$5","v":7.2995801848595429E-2},{"$f":"'Population at Risk'!U18/'Population at Risk'!U$5","v":0.13099384847748577},{"$f":"'Population at Risk'!D18/'Population at Risk'!D$5","v":7.7052115935448751E-2},{"$f":"'Population at Risk'!E18/'Population at Risk'!E$5","v":3.8244817956899324E-2},{"$f":"'Population at Risk'!BC18/'Population at Risk'!BC$5","v":0.13099384847748577},{"$f":"'Population at Risk'!V18/'Population at Risk'!V$5","v":0.11628510810519727},{"$f":"'Population at Risk'!F18/'Population at Risk'!F$5","v":7.3987910959534262E-2},{"$f":"'Population at Risk'!W18/'Population at Risk'!W$5","v":8.809416626369794E-2},{"$f":"'Population at Risk'!X18/'Population at Risk'!X$5","v":8.809416626369794E-2},{"$f":"'Population at Risk'!Y18/'Population at Risk'!Y$5","v":0.10613484921709168},{"$f":"'Population at Risk'!Z18/'Population at Risk'!Z$5","v":6.1795665061602792E-2},{"$f":"'Population at Risk'!AA18/'Population at Risk'!AA$5","v":8.6080706243398655E-2},{"$f":"'Population at Risk'!AB18/'Population at Risk'!AB$5","v":7.7337403191480678E-2},{"$f":"'Population at Risk'!AY18/'Population at Risk'!AY$5","v":9.1670178943221867E-2},{"$f":"'Population at Risk'!AC18/'Population at Risk'!AC$5","v":7.0797310186006671E-2},{"$f":"'Population at Risk'!AD18/'Population at Risk'!AD$5","v":0.10429193509674903},{"$f":"'Population at Risk'!AE18/'Population at Risk'!AE$5","v":0.11104546717808594},{"$f":"'Population at Risk'!G18/'Population at Risk'!G$5","v":8.5841235683890307E-2},{"$f":"'Population at Risk'!AF18/'Population at Risk'!AF$5","v":6.0241230030630304E-2},{"$f":"'Population at Risk'!H18/'Population at Risk'!H$5","v":0.10188247139132964},{"$f":"'Population at Risk'!AG18/'Population at Risk'!AG$5","v":0.11104546717808594},{"$f":"'Population at Risk'!AZ18/'Population at Risk'!AZ$5","v":9.3927506857187273E-2},{"$f":"'Population at Risk'!I18/'Population at Risk'!I$5","v":7.7634404231129314E-2},{"$f":"'Population at Risk'!J18/'Population at Risk'!J$5","v":9.1917673571988379E-2},{"$f":"'Population at Risk'!K18/'Population at Risk'!K$5","v":0.11710151658407118},{"$f":"'Population at Risk'!AH18/'Population at Risk'!AH$5","v":0.11578616412601497},{"$f":"'Population at Risk'!AI18/'Population at Risk'!AI$5","v":9.7395011714336233E-2},{"$f":"'Population at Risk'!BA18/'Population at Risk'!BA$5","v":0.11912311632223231},{"$f":"'Population at Risk'!L18/'Population at Risk'!L$5","v":0.10598310638481524},{"$f":"'Population at Risk'!M18/'Population at Risk'!M$5","v":0.10598310638481524},{"$f":"'Population at Risk'!AJ18/'Population at Risk'!AJ$5","v":0.15205440840507525},{"$f":"'Population at Risk'!AK18/'Population at Risk'!AK$5","v":7.7677040193396094E-2},{"$f":"'Population at Risk'!AL18/'Population at Risk'!AL$5","v":7.5124046214926854E-2},{"$f":"'Population at Risk'!AM18/'Population at Risk'!AM$5","v":0.11480421803529751},{"$f":"'Population at Risk'!N18/'Population at Risk'!N$5","v":0.10887728427705209},{"$f":"'Population at Risk'!AN18/'Population at Risk'!AN$5","v":8.4340028146146537E-2},{"$f":"'Population at Risk'!AO18/'Population at Risk'!AO$5","v":8.4340028146146537E-2},{"$f":"'Population at Risk'!AP18/'Population at Risk'!AP$5","v":8.5314424209325765E-2},{"$f":"'Population at Risk'!C18/'Population at Risk'!C$5","v":0.12108561626348427},{"$f":"'Population at Risk'!AQ18/'Population at Risk'!AQ$5","v":8.8116408960889792E-2},{"$f":"'Population at Risk'!O18/'Population at Risk'!O$5","v":0.11596200014688877},{"$f":"'Population at Risk'!AR18/'Population at Risk'!AR$5","v":9.0268606106105542E-2},{"$f":"'Population at Risk'!AS18/'Population at Risk'!AS$5","v":7.7634404231129314E-2},{"$f":"'Population at Risk'!AT18/'Population at Risk'!AT$5","v":2.5123745729378599E-2},{"$f":"'Population at Risk'!AU18/'Population at Risk'!AU$5","v":2.5123745729378599E-2},{"$f":"'Population at Risk'!BB18/'Population at Risk'!BB$5","v":0.11655933054947293},{"$f":"'Population at Risk'!P18/'Population at Risk'!P$5","v":8.765715569368332E-2},{"$f":"'Population at Risk'!AV18/'Population at Risk'!AV$5","v":0.12386770251303292},{"$f":"'Population at Risk'!AW18/'Population at Risk'!AW$5","v":0.11685043635411366},{"$f":"'Population at Risk'!Q18/'Population at Risk'!Q$5","v":0.13320712921079383},16]
["SIMD Q3",null,{"$f":"'Population at Risk'!R19/'Population at Risk'!R$5","v":4.2448912256214583E-2},{"$f":"'Population at Risk'!AX19/'Population at Risk'!AX$5","v":5.9562632134832046E-2},{"$f":"'Population at Risk'!S19/'Population at Risk'!S$5","v":6.8571046559251322E-2},{"$f":"'Population at Risk'!T19/'Population at Risk'!T$5","v":5.4156490939044621E-2},{"$f":"'Population at Risk'!U19/'Population at Risk'!U$5","v":0.26473014061071887},{"$f":"'Population at Risk'!D19/'Population at Risk'!D$5","v":7.3435104570423182E-2},{"$f":"'Population at Risk'!E19/'Population at Risk'!E$5","v":7.491818944080883E-2},{"$f":"'Population at Risk'!BC19/'Population at Risk'!BC$5","v":0.26473014061071887},{"$f":"'Population at Risk'!V19/'Population at Risk'!V$5","v":5.4453067095276919E-2},{"$f":"'Population at Risk'!F19/'Population at Risk'!F$5","v":0.10661359033480032},{"$f":"'Population at Risk'!W19/'Population at Risk'!W$5","v":6.851148371310177E-2},{"$f":"'Population at Risk'!X19/'Population at Risk'!X$5","v":6.851148371310177E-2},{"$f":"'Population at Risk'!Y19/'Population at Risk'!Y$5","v":5.7211371607634828E-2},{"$f":"'Population at Risk'!Z19/'Population at Risk'!Z$5","v":3.5189910007387505E-2},{"$f":"'Population at Risk'!AA19/'Population at Risk'!AA$5","v":4.6042340712328371E-2},{"$f":"'Population at Risk'!AB19/'Population at Risk'!AB$5","v":7.8352442000151568E-2},{"$f":"'Population at Risk'!AY19/'Population at Risk'!AY$5","v":8.0947222036404143E-2},{"$f":"'Population at Risk'!AC19/'Population at Risk'!AC$5","v":4.0024275987364473E-2},{"$f":"'Population at Risk'!AD19/'Population at Risk'!AD$5","v":0.14530771572095624},{"$f":"'Population at Risk'!AE19/'Population at Risk'!AE$5","v":0.1404612847905172},{"$f":"'Population at Risk'!G19/'Population at Risk'!G$5","v":0.15300626970556114},{"$f":"'Population at Risk'!AF19/'Population at Risk'!AF$5","v":5.3154161266057792E-2},{"$f":"'Population at Risk'!H19/'Population at Risk'!H$5","v":5.2400482086185418E-2},{"$f":"'Population at Risk'!AG19/'Population at Risk'!AG$5","v":0.1404612847905172},{"$f":"'Population at Risk'!AZ19/'Population at Risk'!AZ$5","v":9.3720711429228179E-2},{"$f":"'Population at Risk'!I19/'Population at Risk'!I$5","v":0.11518750414445866},{"$f":"'Population at Risk'!J19/'Population at Risk'!J$5","v":6.0179183993651381E-2},{"$f":"'Population at Risk'!K19/'Population at Risk'!K$5","v":6.0284325806686218E-2},{"$f":"'Population at Risk'!AH19/'Population at Risk'!AH$5","v":5.7740257813321441E-2},{"$f":"'Population at Risk'!AI19/'Population at Risk'!AI$5","v":6.2686324045210559E-2},{"$f":"'Population at Risk'!BA19/'Population at Risk'!BA$5","v":4.4668211658376804E-2},{"$f":"'Population at Risk'!L19/'Population at Risk'!L$5","v":0.10251361948558503},{"$f":"'Population at Risk'!M19/'Population at Risk'!M$5","v":0.10251361948558503},{"$f":"'Population at Risk'!AJ19/'Population at Risk'!AJ$5","v":7.2795436699946342E-2},{"$f":"'Population at Risk'!AK19/'Population at Risk'!AK$5","v":0.10091985961262069},{"$f":"'Population at Risk'!AL19/'Population at Risk'!AL$5","v":3.7626881080012838E-2},{"$f":"'Population at Risk'!AM19/'Population at Risk'!AM$5","v":5.3524708277337907E-2},{"$f":"'Population at Risk'!N19/'Population at Risk'!N$5","v":4.9568684113518051E-2},{"$f":"'Population at Risk'!AN19/'Population at Risk'!AN$5","v":0.13641275592444252},{"$f":"'Population at Risk'!AO19/'Population at Risk'!AO$5","v":0.13641275592444252},{"$f":"'Population at Risk'!AP19/'Population at Risk'!AP$5","v":0.11979664181955044},{"$f":"'Population at Risk'!C19/'Population at Risk'!C$5","v":6.7946088479958963E-2},{"$f":"'Population at Risk'!AQ19/'Population at Risk'!AQ$5","v":6.2173788049260971E-2},{"$f":"'Population at Risk'!O19/'Population at Risk'!O$5","v":5.5146885381831066E-2},{"$f":"'Population at Risk'!AR19/'Population at Risk'!AR$5","v":6.5798063952191288E-2},{"$f":"'Population at Risk'!AS19/'Population at Risk'!AS$5","v":0.11518750414445866},{"$f":"'Population at Risk'!AT19/'Population at Risk'!AT$5","v":0.16280339553073847},{"$f":"'Population at Risk'!AU19/'Population at Risk'!AU$5","v":0.16280339553073847},{"$f":"'Population at Risk'!BB19/'Population at Risk'!BB$5","v":7.2072850234088034E-2},{"$f":"'Population at Risk'!P19/'Population at Risk'!P$5","v":2.3506594555695152E-2},{"$f":"'Population at Risk'!AV19/'Population at Risk'!AV$5","v":7.0472760467033893E-2},{"$f":"'Population at Risk'!AW19/'Population at Risk'!AW$5","v":6.2463703857477494E-2},{"$f":"'Population at Risk'!Q19/'Population at Risk'!Q$5","v":7.8522512107446568E-2},17]
["SIMD Q4",null,{"$f":"'Population at Risk'!R20/'Population at Risk'!R$5","v":4.1676745115323766E-2},{"$f":"'Population at Risk'!AX20/'Population at Risk'!AX$5","v":7.5396947054691951E-2},{"$f":"'Population at Risk'!S20/'Population at Risk'!S$5","v":4.7255139073080543E-2},{"$f":"'Population at Risk'!T20/'Population at Risk'!T$5","v":4.0322461385972681E-2},{"$f":"'Population at Risk'!U20/'Population at Risk'!U$5","v":1.5427576578179815E-2},{"$f":"'Population at Risk'!D20/'Population at Risk'!D$5","v":8.122621446259852E-2},{"$f":"'Population at Risk'!E20/'Population at Risk'!E$5","v":0.10083738343871983},{"$f":"'Population at Risk'!BC20/'Population at Risk'!BC$5","v":1.5427576578179815E-2},{"$f":"'Population at Risk'!V20/'Population at Risk'!V$5","v":4.2238919270569976E-2},{"$f":"'Population at Risk'!F20/'Population at Risk'!F$5","v":5.8880216926840097E-2},{"$f":"'Population at Risk'!W20/'Population at Risk'!W$5","v":4.1032635766851865E-2},{"$f":"'Population at Risk'!X20/'Population at Risk'!X$5","v":4.1032635766851865E-2},{"$f":"'Population at Risk'!Y20/'Population at Risk'!Y$5","v":5.2047768785534257E-2},{"$f":"'Population at Risk'!Z20/'Population at Risk'!Z$5","v":2.0798162095500537E-2},{"$f":"'Population at Risk'!AA20/'Population at Risk'!AA$5","v":3.2784639497473345E-2},{"$f":"'Population at Risk'!AB20/'Population at Risk'!AB$5","v":8.5796406018506924E-2},{"$f":"'Population at Risk'!AY20/'Population at Risk'!AY$5","v":6.346937994036099E-2},{"$f":"'Population at Risk'!AC20/'Population at Risk'!AC$5","v":2.9426273650333415E-2},{"$f":"'Population at Risk'!AD20/'Population at Risk'!AD$5","v":9.6574094133635491E-2},{"$f":"'Population at Risk'!AE20/'Population at Risk'!AE$5","v":0.10747255767188778},{"$f":"'Population at Risk'!G20/'Population at Risk'!G$5","v":6.8605015016159107E-2},{"$f":"'Population at Risk'!AF20/'Population at Risk'!AF$5","v":4.681377029564656E-2},{"$f":"'Population at Risk'!H20/'Population at Risk'!H$5","v":3.2803643451599931E-2},{"$f":"'Population at Risk'!AG20/'Population at Risk'!AG$5","v":0.10747255767188778},{"$f":"'Population at Risk'!AZ20/'Population at Risk'!AZ$5","v":8.8224926513536681E-2},{"$f":"'Population at Risk'!I20/'Population at Risk'!I$5","v":8.9158090715218505E-2},{"$f":"'Population at Risk'!J20/'Population at Risk'!J$5","v":6.4177490809803089E-2},{"$f":"'Population at Risk'!K20/'Population at Risk'!K$5","v":4.5127395438672557E-2},{"$f":"'Population at Risk'!AH20/'Population at Risk'!AH$5","v":3.9313187700148022E-2},{"$f":"'Population at Risk'!AI20/'Population at Risk'!AI$5","v":4.4697380050934502E-2},{"$f":"'Population at Risk'!BA20/'Population at Risk'!BA$5","v":2.7735916741296929E-2},{"$f":"'Population at Risk'!L20/'Population at Risk'!L$5","v":3.7621561160270177E-2},{"$f":"'Population at Risk'!M20/'Population at Risk'!M$5","v":3.7621561160270177E-2},{"$f":"'Population at Risk'!AJ20/'Population at Risk'!AJ$5","v":3.4011912034263451E-2},{"$f":"'Population at Risk'!AK20/'Population at Risk'!AK$5","v":0.10659780421606109},{"$f":"'Population at Risk'!AL20/'Population at Risk'!AL$5","v":3.2429359383564303E-2},{"$f":"'Population at Risk'!AM20/'Population at Risk'!AM$5","v":3.1604851962200385E-2},{"$f":"'Population at Risk'!N20/'Population at Risk'!N$5","v":5.1827190275251053E-2},{"$f":"'Population at Risk'!AN20/'Population at Risk'!AN$5","v":0.14992963181834576},{"$f":"'Population at Risk'!AO20/'Population at Risk'!AO$5","v":0.14992963181834576},{"$f":"'Population at Risk'!AP20/'Population at Risk'!AP$5","v":0.15627699068295575},{"$f":"'Population at Risk'!C20/'Population at Risk'!C$5","v":5.2985897201409955E-2},{"$f":"'Population at Risk'!AQ20/'Population at Risk'!AQ$5","v":4.7715166314708228E-2},{"$f":"'Population at Risk'!O20/'Population at Risk'!O$5","v":3.2232068899610868E-2},{"$f":"'Population at Risk'!AR20/'Population at Risk'!AR$5","v":4.9113580000124356E-2},{"$f":"'Population at Risk'!AS20/'Population at Risk'!AS$5","v":8.9158090715218505E-2},{"$f":"'Population at Risk'!AT20/'Population at Risk'!AT$5","v":0.23986603663988093},{"$f":"'Population at Risk'!AU20/'Population at Risk'!AU$5","v":0.23986603663988093},{"$f":"'Population at Risk'!BB20/'Population at Risk'!BB$5","v":4.1646389956193068E-2},{"$f":"'Population at Risk'!P20/'Population at Risk'!P$5","v":5.1678279906215034E-2},{"$f":"'Population at Risk'!AV20/'Population at Risk'!AV$5","v":3.3622726701043486E-2},{"$f":"'Population at Risk'!AW20/'Population at Risk'!AW$5","v":4.7973535691997603E-2},{"$f":"'Population at Risk'!Q20/'Population at Risk'!Q$5","v":8.3719585469940724E-2},18]
["SIMD Q5 (least deprived)",null,{"$f":"'Population at Risk'!R21/'Population at Risk'!R$5","v":0.19117624482768361},{"$f":"'Population at Risk'!AX21/'Population at Risk'!AX$5","v":8.5715729712641991E-2},{"$f":"'Population at Risk'!S21/'Population at Risk'!S$5","v":7.2679510006296855E-2},{"$f":"'Population at Risk'!T21/'Population at Risk'!T$5","v":0.11509806963252886},{"$f":"'Population at Risk'!U21/'Population at Risk'!U$5","v":0},{"$f":"'Population at Risk'!D21/'Population at Risk'!D$5","v":0.11961701283276874},{"$f":"'Population at Risk'!E21/'Population at Risk'!E$5","v":0.10502574380769127},{"$f":"'Population at Risk'!BC21/'Population at Risk'!BC$5","v":0},{"$f":"'Population at Risk'!V21/'Population at Risk'!V$5","v":4.7072570933160786E-2},{"$f":"'Population at Risk'!F21/'Population at Risk'!F$5","v":4.6296790291908793E-2},{"$f":"'Population at Risk'!W21/'Population at Risk'!W$5","v":5.6701463356011492E-2},{"$f":"'Population at Risk'!X21/'Population at Risk'!X$5","v":5.6701463356011492E-2},{"$f":"'Population at Risk'!Y21/'Population at Risk'!Y$5","v":5.5987836340202712E-2},{"$f":"'Population at Risk'!Z21/'Population at Risk'!Z$5","v":2.0232481530376583E-2},{"$f":"'Population at Risk'!AA21/'Population at Risk'!AA$5","v":3.9486554305850748E-2},{"$f":"'Population at Risk'!AB21/'Population at Risk'!AB$5","v":0.10908802372752038},{"$f":"'Population at Risk'!AY21/'Population at Risk'!AY$5","v":5.7236247231114264E-2},{"$f":"'Population at Risk'!AC21/'Population at Risk'!AC$5","v":4.4209634217947345E-2},{"$f":"'Population at Risk'!AD21/'Population at Risk'!AD$5","v":3.5738814480969008E-2},{"$f":"'Population at Risk'!AE21/'Population at Risk'!AE$5","v":3.2631724955772975E-2},{"$f":"'Population at Risk'!G21/'Population at Risk'!G$5","v":4.2119870489280307E-2},{"$f":"'Population at Risk'!AF21/'Population at Risk'!AF$5","v":3.208072097388958E-2},{"$f":"'Population at Risk'!H21/'Population at Risk'!H$5","v":3.4197024625453029E-2},{"$f":"'Population at Risk'!AG21/'Population at Risk'!AG$5","v":3.2631724955772975E-2},{"$f":"'Population at Risk'!AZ21/'Population at Risk'!AZ$5","v":5.6672766154112576E-2},{"$f":"'Population at Risk'!I21/'Population at Risk'!I$5","v":2.5991739884256029E-2},{"$f":"'Population at Risk'!J21/'Population at Risk'!J$5","v":6.6922182716377981E-2},{"$f":"'Population at Risk'!K21/'Population at Risk'!K$5","v":3.5611529199630364E-2},{"$f":"'Population at Risk'!AH21/'Population at Risk'!AH$5","v":3.0311748808453862E-2},{"$f":"'Population at Risk'!AI21/'Population at Risk'!AI$5","v":8.5758324217795681E-2},{"$f":"'Population at Risk'!BA21/'Population at Risk'!BA$5","v":1.0876291240910378E-2},{"$f":"'Population at Risk'!L21/'Population at Risk'!L$5","v":2.0461692281187487E-2},{"$f":"'Population at Risk'!M21/'Population at Risk'!M$5","v":2.0461692281187487E-2},{"$f":"'Population at Risk'!AJ21/'Population at Risk'!AJ$5","v":4.0667945920135173E-2},{"$f":"'Population at Risk'!AK21/'Population at Risk'!AK$5","v":5.7078769504569818E-2},{"$f":"'Population at Risk'!AL21/'Population at Risk'!AL$5","v":2.1400036777352163E-2},{"$f":"'Population at Risk'!AM21/'Population at Risk'!AM$5","v":2.3524228150504568E-2},{"$f":"'Population at Risk'!N21/'Population at Risk'!N$5","v":4.9848043330805072E-2},{"$f":"'Population at Risk'!AN21/'Population at Risk'!AN$5","v":2.7987913268837462E-2},{"$f":"'Population at Risk'!AO21/'Population at Risk'!AO$5","v":2.7987913268837462E-2},{"$f":"'Population at Risk'!AP21/'Population at Risk'!AP$5","v":6.938143235646678E-2},{"$f":"'Population at Risk'!C21/'Population at Risk'!C$5","v":0.13165617246458977},{"$f":"'Population at Risk'!AQ21/'Population at Risk'!AQ$5","v":5.5981030123838496E-2},{"$f":"'Population at Risk'!O21/'Population at Risk'!O$5","v":3.0789448457145457E-2},{"$f":"'Population at Risk'!AR21/'Population at Risk'!AR$5","v":5.393865162064039E-2},{"$f":"'Population at Risk'!AS21/'Population at Risk'!AS$5","v":2.5991739884256029E-2},{"$f":"'Population at Risk'!AT21/'Population at Risk'!AT$5","v":0},{"$f":"'Population at Risk'!AU21/'Population at Risk'!AU$5","v":0},{"$f":"'Population at Risk'!BB21/'Population at Risk'!BB$5","v":4.91112259279829E-2},{"$f":"'Population at Risk'!P21/'Population at Risk'!P$5","v":0.16915597118020265},{"$f":"'Population at Risk'!AV21/'Population at Risk'!AV$5","v":5.6765525946601156E-2},{"$f":"'Population at Risk'!AW21/'Population at Risk'!AW$5","v":3.7939070802387925E-2},{"$f":"'Population at Risk'!Q21/'Population at Risk'!Q$5","v":4.7822106893326936E-2},19]
["All quintiles","Female 0-4",{"$f":"'Population at Risk'!R22/'Population at Risk'!R$5","v":0},{"$f":"'Population at Risk'!AX22/'Population at Risk'!AX$5","v":0},{"$f":"'Population at Risk'!S22/'Population at Risk'!S$5","v":0},{"$f":"'Population at Risk'!T22/'Population at Risk'!T$5","v":0},{"$f":"'Population at Risk'!U22/'Population at Risk'!U$5","v":0},{"$f":"'Population at Risk'!D22/'Population at Risk'!D$5","v":0},{"$f":"'Population at Risk'!E22/'Population at Risk'!E$5","v":0},{"$f":"'Population at Risk'!BC22/'Population at Risk'!BC$5","v":0},{"$f":"'Population at Risk'!V22/'Population at Risk'!V$5","v":0},{"$f":"'Population at Risk'!F22/'Population at Risk'!F$5","v":0},{"$f":"'Population at Risk'!W22/'Population at Risk'!W$5","v":0},{"$f":"'Population at Risk'!X22/'Population at Risk'!X$5","v":0},{"$f":"'Population at Risk'!Y22/'Population at Risk'!Y$5","v":0},{"$f":"'Population at Risk'!Z22/'Population at Risk'!Z$5","v":0},{"$f":"'Population at Risk'!AA22/'Population at Risk'!AA$5","v":0},{"$f":"'Population at Risk'!AB22/'Population at Risk'!AB$5","v":0},{"$f":"'Population at Risk'!AY22/'Population at Risk'!AY$5","v":0},{"$f":"'Population at Risk'!AC22/'Population at Risk'!AC$5","v":0},{"$f":"'Population at Risk'!AD22/'Population at Risk'!AD$5","v":0},{"$f":"'Population at Risk'!AE22/'Population at Risk'!AE$5","v":0},{"$f":"'Population at Risk'!G22/'Population at Risk'!G$5","v":0},{"$f":"'Population at Risk'!AF22/'Population at Risk'!AF$5","v":0},{"$f":"'Population at Risk'!H22/'Population at Risk'!H$5","v":0},{"$f":"'Population at Risk'!AG22/'Population at Risk'!AG$5","v":0},{"$f":"'Population at Risk'!AZ22/'Population at Risk'!AZ$5","v":0},{"$f":"'Population at Risk'!I22/'Population at Risk'!I$5","v":0},{"$f":"'Population at Risk'!J22/'Population at Risk'!J$5","v":0},{"$f":"'Population at Risk'!K22/'Population at Risk'!K$5","v":0},{"$f":"'Population at Risk'!AH22/'Population at Risk'!AH$5","v":0},{"$f":"'Population at Risk'!AI22/'Population at Risk'!AI$5","v":0},{"$f":"'Population at Risk'!BA22/'Population at Risk'!BA$5","v":0},{"$f":"'Population at Risk'!L22/'Population at Risk'!L$5","v":0},{"$f":"'Population at Risk'!M22/'Population at Risk'!M$5","v":0},{"$f":"'Population at Risk'!AJ22/'Population at Risk'!AJ$5","v":0},{"$f":"'Population at Risk'!AK22/'Population at Risk'!AK$5","v":0},{"$f":"'Population at Risk'!AL22/'Population at Risk'!AL$5","v":0},{"$f":"'Population at Risk'!AM22/'Population at Risk'!AM$5","v":0},{"$f":"'Population at Risk'!N22/'Population at Risk'!N$5","v":0},{"$f":"'Population at Risk'!AN22/'Population at Risk'!AN$5","v":0},{"$f":"'Population at Risk'!AO22/'Population at Risk'!AO$5","v":0},{"$f":"'Population at Risk'!AP22/'Population at Risk'!AP$5","v":0},{"$f":"'Population at Risk'!C22/'Population at Risk'!C$5","v":0},{"$f":"'Population at Risk'!AQ22/'Population at Risk'!AQ$5","v":0},{"$f":"'Population at Risk'!O22/'Population at Risk'!O$5","v":0},{"$f":"'Population at Risk'!AR22/'Population at Risk'!AR$5","v":0},{"$f":"'Population at Risk'!AS22/'Population at Risk'!AS$5","v":0},{"$f":"'Population at Risk'!AT22/'Population at Risk'!AT$5","v":0},{"$f":"'Population at Risk'!AU22/'Population at Risk'!AU$5","v":0},{"$f":"'Population at Risk'!BB22/'Population at Risk'!BB$5","v":0},{"$f":"'Population at Risk'!P22/'Population at Risk'!P$5","v":0},{"$f":"'Population at Risk'!AV22/'Population at Risk'!AV$5","v":0},{"$f":"'Population at Risk'!AW22/'Population at Risk'!AW$5","v":0},{"$f":"'Population at Risk'!Q22/'Population at Risk'!Q$5","v":0},20]
[null,"Female 5-9",{"$f":"'Population at Risk'!R23/'Population at Risk'!R$5","v":0},{"$f":"'Population at Risk'!AX23/'Population at Risk'!AX$5","v":0},{"$f":"'Population at Risk'!S23/'Population at Risk'!S$5","v":0},{"$f":"'Population at Risk'!T23/'Population at Risk'!T$5","v":0},{"$f":"'Population at Risk'!U23/'Population at Risk'!U$5","v":0},{"$f":"'Population at Risk'!D23/'Population at Risk'!D$5","v":0},{"$f":"'Population at Risk'!E23/'Population at Risk'!E$5","v":0},{"$f":"'Population at Risk'!BC23/'Population at Risk'!BC$5","v":0},{"$f":"'Population at Risk'!V23/'Population at Risk'!V$5","v":0},{"$f":"'Population at Risk'!F23/'Population at Risk'!F$5","v":0},{"$f":"'Population at Risk'!W23/'Population at Risk'!W$5","v":0},{"$f":"'Population at Risk'!X23/'Population at Risk'!X$5","v":0},{"$f":"'Population at Risk'!Y23/'Population at Risk'!Y$5","v":0},{"$f":"'Population at Risk'!Z23/'Population at Risk'!Z$5","v":0},{"$f":"'Population at Risk'!AA23/'Population at Risk'!AA$5","v":0},{"$f":"'Population at Risk'!AB23/'Population at Risk'!AB$5","v":0},{"$f":"'Population at Risk'!AY23/'Population at Risk'!AY$5","v":0},{"$f":"'Population at Risk'!AC23/'Population at Risk'!AC$5","v":0},{"$f":"'Population at Risk'!AD23/'Population at Risk'!AD$5","v":0},{"$f":"'Population at Risk'!AE23/'Population at Risk'!AE$5","v":0},{"$f":"'Population at Risk'!G23/'Population at Risk'!G$5","v":0},{"$f":"'Population at Risk'!AF23/'Population at Risk'!AF$5","v":0},{"$f":"'Population at Risk'!H23/'Population at Risk'!H$5","v":0},{"$f":"'Population at Risk'!AG23/'Population at Risk'!AG$5","v":0},{"$f":"'Population at Risk'!AZ23/'Population at Risk'!AZ$5","v":0},{"$f":"'Population at Risk'!I23/'Population at Risk'!I$5","v":0},{"$f":"'Population at Risk'!J23/'Population at Risk'!J$5","v":0},{"$f":"'Population at Risk'!K23/'Population at Risk'!K$5","v":0},{"$f":"'Population at Risk'!AH23/'Population at Risk'!AH$5","v":0},{"$f":"'Population at Risk'!AI23/'Population at Risk'!AI$5","v":0},{"$f":"'Population at Risk'!BA23/'Population at Risk'!BA$5","v":0},{"$f":"'Population at Risk'!L23/'Population at Risk'!L$5","v":0},{"$f":"'Population at Risk'!M23/'Population at Risk'!M$5","v":0},{"$f":"'Population at Risk'!AJ23/'Population at Risk'!AJ$5","v":0},{"$f":"'Population at Risk'!AK23/'Population at Risk'!AK$5","v":0},{"$f":"'Population at Risk'!AL23/'Population at Risk'!AL$5","v":0},{"$f":"'Population at Risk'!AM23/'Population at Risk'!AM$5","v":0},{"$f":"'Population at Risk'!N23/'Population at Risk'!N$5","v":0},{"$f":"'Population at Risk'!AN23/'Population at Risk'!AN$5","v":0},{"$f":"'Population at Risk'!AO23/'Population at Risk'!AO$5","v":0},{"$f":"'Population at Risk'!AP23/'Population at Risk'!AP$5","v":0},{"$f":"'Population at Risk'!C23/'Population at Risk'!C$5","v":0},{"$f":"'Population at Risk'!AQ23/'Population at Risk'!AQ$5","v":0},{"$f":"'Population at Risk'!O23/'Population at Risk'!O$5","v":0},{"$f":"'Population at Risk'!AR23/'Population at Risk'!AR$5","v":0},{"$f":"'Population at Risk'!AS23/'Population at Risk'!AS$5","v":0},{"$f":"'Population at Risk'!AT23/'Population at Risk'!AT$5","v":0},{"$f":"'Population at Risk'!AU23/'Population at Risk'!AU$5","v":0},{"$f":"'Population at Risk'!BB23/'Population at Risk'!BB$5","v":0},{"$f":"'Population at Risk'!P23/'Population at Risk'!P$5","v":0},{"$f":"'Population at Risk'!AV23/'Population at Risk'!AV$5","v":0},{"$f":"'Population at Risk'!AW23/'Population at Risk'!AW$5","v":0},{"$f":"'Population at Risk'!Q23/'Population at Risk'!Q$5","v":0},21]
[null,"Female 10-15",{"$f":"'Population at Risk'!R24/'Population at Risk'!R$5","v":0},{"$f":"'Population at Risk'!AX24/'Population at Risk'!AX$5","v":0},{"$f":"'Population at Risk'!S24/'Population at Risk'!S$5","v":0},{"$f":"'Population at Risk'!T24/'Population at Risk'!T$5","v":0},{"$f":"'Population at Risk'!U24/'Population at Risk'!U$5","v":0},{"$f":"'Population at Risk'!D24/'Population at Risk'!D$5","v":0},{"$f":"'Population at Risk'!E24/'Population at Risk'!E$5","v":0},{"$f":"'Population at Risk'!BC24/'Population at Risk'!BC$5","v":0},{"$f":"'Population at Risk'!V24/'Population at Risk'!V$5","v":0},{"$f":"'Population at Risk'!F24/'Population at Risk'!F$5","v":0},{"$f":"'Population at Risk'!W24/'Population at Risk'!W$5","v":0},{"$f":"'Population at Risk'!X24/'Population at Risk'!X$5","v":0},{"$f":"'Population at Risk'!Y24/'Population at Risk'!Y$5","v":0},{"$f":"'Population at Risk'!Z24/'Population at Risk'!Z$5","v":0},{"$f":"'Population at Risk'!AA24/'Population at Risk'!AA$5","v":0},{"$f":"'Population at Risk'!AB24/'Population at Risk'!AB$5","v":0},{"$f":"'Population at Risk'!AY24/'Population at Risk'!AY$5","v":0},{"$f":"'Population at Risk'!AC24/'Population at Risk'!AC$5","v":0},{"$f":"'Population at Risk'!AD24/'Population at Risk'!AD$5","v":0},{"$f":"'Population at Risk'!AE24/'Population at Risk'!AE$5","v":0},{"$f":"'Population at Risk'!G24/'Population at Risk'!G$5","v":0},{"$f":"'Population at Risk'!AF24/'Population at Risk'!AF$5","v":0},{"$f":"'Population at Risk'!H24/'Population at Risk'!H$5","v":0},{"$f":"'Population at Risk'!AG24/'Population at Risk'!AG$5","v":0},{"$f":"'Population at Risk'!AZ24/'Population at Risk'!AZ$5","v":0},{"$f":"'Population at Risk'!I24/'Population at Risk'!I$5","v":0},{"$f":"'Population at Risk'!J24/'Population at Risk'!J$5","v":0},{"$f":"'Population at Risk'!K24/'Population at Risk'!K$5","v":0},{"$f":"'Population at Risk'!AH24/'Population at Risk'!AH$5","v":0},{"$f":"'Population at Risk'!AI24/'Population at Risk'!AI$5","v":0},{"$f":"'Population at Risk'!BA24/'Population at Risk'!BA$5","v":0},{"$f":"'Population at Risk'!L24/'Population at Risk'!L$5","v":0},{"$f":"'Population at Risk'!M24/'Population at Risk'!M$5","v":0},{"$f":"'Population at Risk'!AJ24/'Population at Risk'!AJ$5","v":0},{"$f":"'Population at Risk'!AK24/'Population at Risk'!AK$5","v":0},{"$f":"'Population at Risk'!AL24/'Population at Risk'!AL$5","v":0},{"$f":"'Population at Risk'!AM24/'Population at Risk'!AM$5","v":0},{"$f":"'Population at Risk'!N24/'Population at Risk'!N$5","v":0},{"$f":"'Population at Risk'!AN24/'Population at Risk'!AN$5","v":0},{"$f":"'Population at Risk'!AO24/'Population at Risk'!AO$5","v":0},{"$f":"'Population at Risk'!AP24/'Population at Risk'!AP$5","v":0},{"$f":"'Population at Risk'!C24/'Population at Risk'!C$5","v":0},{"$f":"'Population at Risk'!AQ24/'Population at Risk'!AQ$5","v":0},{"$f":"'Population at Risk'!O24/'Population at Risk'!O$5","v":0},{"$f":"'Population at Risk'!AR24/'Population at Risk'!AR$5","v":0},{"$f":"'Population at Risk'!AS24/'Population at Risk'!AS$5","v":0},{"$f":"'Population at Risk'!AT24/'Population at Risk'!AT$5","v":0},{"$f":"'Population at Risk'!AU24/'Population at Risk'!AU$5","v":0},{"$f":"'Population at Risk'!BB24/'Population at Risk'!BB$5","v":0},{"$f":"'Population at Risk'!P24/'Population at Risk'!P$5","v":0},{"$f":"'Population at Risk'!AV24/'Population at Risk'!AV$5","v":0},{"$f":"'Population at Risk'!AW24/'Population at Risk'!AW$5","v":0},{"$f":"'Population at Risk'!Q24/'Population at Risk'!Q$5","v":0},22]
[null,"Female 16-19",{"$f":"'Population at Risk'!R25/'Population at Risk'!R$5","v":3.268409537695291E-2},{"$f":"'Population at Risk'!AX25/'Population at Risk'!AX$5","v":3.4849429568435751E-2},{"$f":"'Population at Risk'!S25/'Population at Risk'!S$5","v":2.6135011799904476E-2},{"$f":"'Population at Risk'!T25/'Population at Risk'!T$5","v":2.4864411223801008E-2},{"$f":"'Population at Risk'!U25/'Population at Risk'!U$5","v":1.8278471022098029E-2},{"$f":"'Population at Risk'!D25/'Population at Risk'!D$5","v":2.5763121779502903E-2},{"$f":"'Population at Risk'!E25/'Population at Risk'!E$5","v":2.7960900188536201E-2},{"$f":"'Population at Risk'!BC25/'Population at Risk'!BC$5","v":1.8278471022098029E-2},{"$f":"'Population at Risk'!V25/'Population at Risk'!V$5","v":2.5243180761646482E-2},{"$f":"'Population at Risk'!F25/'Population at Risk'!F$5","v":2.6696046919572669E-2},{"$f":"'Population at Risk'!W25/'Population at Risk'!W$5","v":2.7466505347190563E-2},{"$f":"'Population at Risk'!X25/'Population at Risk'!X$5","v":2.7466505347190563E-2},{"$f":"'Population at Risk'!Y25/'Population at Risk'!Y$5","v":2.7944191365328028E-2},{"$f":"'Population at Risk'!Z25/'Population at Risk'!Z$5","v":2.4616981339897176E-2},{"$f":"'Population at Risk'!AA25/'Population at Risk'!AA$5","v":2.4526412905443384E-2},{"$f":"'Population at Risk'!AB25/'Population at Risk'!AB$5","v":2.6009220509612234E-2},{"$f":"'Population at Risk'!AY25/'Population at Risk'!AY$5","v":2.5225667006144013E-2},{"$f":"'Population at Risk'!AC25/'Population at Risk'!AC$5","v":2.4445808950056339E-2},{"$f":"'Population at Risk'!AD25/'Population at Risk'!AD$5","v":2.0930782735655337E-2},{"$f":"'Population at Risk'!AE25/'Population at Risk'!AE$5","v":2.0570480959453193E-2},{"$f":"'Population at Risk'!G25/'Population at Risk'!G$5","v":2.2173226950713734E-2},{"$f":"'Population at Risk'!AF25/'Population at Risk'!AF$5","v":2.0518530609647024E-2},{"$f":"'Population at Risk'!H25/'Population at Risk'!H$5","v":2.4198740120592366E-2},{"$f":"'Population at Risk'!AG25/'Population at Risk'!AG$5","v":2.0570480959453193E-2},{"$f":"'Population at Risk'!AZ25/'Population at Risk'!AZ$5","v":2.3065702095320637E-2},{"$f":"'Population at Risk'!I25/'Population at Risk'!I$5","v":2.5883137639420264E-2},{"$f":"'Population at Risk'!J25/'Population at Risk'!J$5","v":3.05092979953446E-2},{"$f":"'Population at Risk'!K25/'Population at Risk'!K$5","v":2.3983180295788543E-2},{"$f":"'Population at Risk'!AH25/'Population at Risk'!AH$5","v":2.4660595455079756E-2},{"$f":"'Population at Risk'!AI25/'Population at Risk'!AI$5","v":2.5550327125469879E-2},{"$f":"'Population at Risk'!BA25/'Population at Risk'!BA$5","v":2.22173737481479E-2},{"$f":"'Population at Risk'!L25/'Population at Risk'!L$5","v":2.5132301325630265E-2},{"$f":"'Population at Risk'!M25/'Population at Risk'!M$5","v":2.5132301325630265E-2},{"$f":"'Population at Risk'!AJ25/'Population at Risk'!AJ$5","v":2.6129616459786387E-2},{"$f":"'Population at Risk'!AK25/'Population at Risk'!AK$5","v":2.7333807394423145E-2},{"$f":"'Population at Risk'!AL25/'Population at Risk'!AL$5","v":2.5928140069635095E-2},{"$f":"'Population at Risk'!AM25/'Population at Risk'!AM$5","v":2.5124962453400793E-2},{"$f":"'Population at Risk'!N25/'Population at Risk'!N$5","v":2.1571650818802836E-2},{"$f":"'Population at Risk'!AN25/'Population at Risk'!AN$5","v":2.0973748264709425E-2},{"$f":"'Population at Risk'!AO25/'Population at Risk'!AO$5","v":2.0973748264709425E-2},{"$f":"'Population at Risk'!AP25/'Population at Risk'!AP$5","v":2.138754234716558E-2},{"$f":"'Population at Risk'!C25/'Population at Risk'!C$5","v":2.3730961705963616E-2},{"$f":"'Population at Risk'!AQ25/'Population at Risk'!AQ$5","v":2.1385444707894895E-2},{"$f":"'Population at Risk'!O25/'Population at Risk'!O$5","v":2.272539988393309E-2},{"$f":"'Population at Risk'!AR25/'Population at Risk'!AR$5","v":2.519488775892879E-2},{"$f":"'Population at Risk'!AS25/'Population at Risk'!AS$5","v":2.5883137639420264E-2},{"$f":"'Population at Risk'!AT25/'Population at Risk'!AT$5","v":2.6410410185705377E-2},{"$f":"'Population at Risk'!AU25/'Population at Risk'!AU$5","v":2.6410410185705377E-2},{"$f":"'Population at Risk'!BB25/'Population at Risk'!BB$5","v":2.6835397011630256E-2},{"$f":"'Population at Risk'!P25/'Population at Risk'!P$5","v":2.8580387267201982E-2},{"$f":"'Population at Risk'!AV25/'Population at Risk'!AV$5","v":2.3726145128477361E-2},{"$f":"'Population at Risk'!AW25/'Population at Risk'!AW$5","v":2.4071648703529541E-2},{"$f":"'Population at Risk'!Q25/'Population at Risk'!Q$5","v":2.6227736621415056E-2},23]
[null,"Female 20-24",{"$f":"'Population at Risk'!R26/'Population at Risk'!R$5","v":3.6326723644501305E-2},{"$f":"'Population at Risk'!AX26/'Population at Risk'!AX$5","v":5.0767061658703962E-2},{"$f":"'Population at Risk'!S26/'Population at Risk'!S$5","v":4.3354618023037028E-2},{"$f":"'Population at Risk'!T26/'Population at Risk'!T$5","v":5.6148292279640098E-2},{"$f":"'Population at Risk'!U26/'Population at Risk'!U$5","v":2.0583008893447045E-2},{"$f":"'Population at Risk'!D26/'Population at Risk'!D$5","v":4.3244023101712534E-2},{"$f":"'Population at Risk'!E26/'Population at Risk'!E$5","v":3.357969105113881E-2},{"$f":"'Population at Risk'!BC26/'Population at Risk'!BC$5","v":2.0583008893447045E-2},{"$f":"'Population at Risk'!V26/'Population at Risk'!V$5","v":3.5087591305701875E-2},{"$f":"'Population at Risk'!F26/'Population at Risk'!F$5","v":3.3992867666757944E-2},{"$f":"'Population at Risk'!W26/'Population at Risk'!W$5","v":3.9073127949981371E-2},{"$f":"'Population at Risk'!X26/'Population at Risk'!X$5","v":3.9073127949981371E-2},{"$f":"'Population at Risk'!Y26/'Population at Risk'!Y$5","v":3.9163290638614061E-2},{"$f":"'Population at Risk'!Z26/'Population at Risk'!Z$5","v":4.9357018295248543E-2},{"$f":"'Population at Risk'!AA26/'Population at Risk'!AA$5","v":3.8593586049354943E-2},{"$f":"'Population at Risk'!AB26/'Population at Risk'!AB$5","v":4.1879222447696159E-2},{"$f":"'Population at Risk'!AY26/'Population at Risk'!AY$5","v":3.7229383000605416E-2},{"$f":"'Population at Risk'!AC26/'Population at Risk'!AC$5","v":4.2203973520252971E-2},{"$f":"'Population at Risk'!AD26/'Population at Risk'!AD$5","v":2.487604805431173E-2},{"$f":"'Population at Risk'!AE26/'Population at Risk'!AE$5","v":2.4886287475829605E-2},{"$f":"'Population at Risk'!G26/'Population at Risk'!G$5","v":2.5021097752597237E-2},{"$f":"'Population at Risk'!AF26/'Population at Risk'!AF$5","v":2.9924513016037265E-2},{"$f":"'Population at Risk'!H26/'Population at Risk'!H$5","v":3.2516981052118851E-2},{"$f":"'Population at Risk'!AG26/'Population at Risk'!AG$5","v":2.4886287475829605E-2},{"$f":"'Population at Risk'!AZ26/'Population at Risk'!AZ$5","v":3.5180674971996756E-2},{"$f":"'Population at Risk'!I26/'Population at Risk'!I$5","v":2.9883926613731834E-2},{"$f":"'Population at Risk'!J26/'Population at Risk'!J$5","v":4.3049846277379102E-2},{"$f":"'Population at Risk'!K26/'Population at Risk'!K$5","v":3.134293481757814E-2},{"$f":"'Population at Risk'!AH26/'Population at Risk'!AH$5","v":3.1946445998012267E-2},{"$f":"'Population at Risk'!AI26/'Population at Risk'!AI$5","v":4.6719975313268526E-2},{"$f":"'Population at Risk'!BA26/'Population at Risk'!BA$5","v":3.2748625741489394E-2},{"$f":"'Population at Risk'!L26/'Population at Risk'!L$5","v":3.2594888991913984E-2},{"$f":"'Population at Risk'!M26/'Population at Risk'!M$5","v":3.2594888991913984E-2},{"$f":"'Population at Risk'!AJ26/'Population at Risk'!AJ$5","v":3.3096884680346571E-2},{"$f":"'Population at Risk'!AK26/'Population at Risk'!AK$5","v":3.3841701337662816E-2},{"$f":"'Population at Risk'!AL26/'Population at Risk'!AL$5","v":3.485989359695274E-2},{"$f":"'Population at Risk'!AM26/'Population at Risk'!AM$5","v":3.191565841788372E-2},{"$f":"'Population at Risk'!N26/'Population at Risk'!N$5","v":3.9684094357099187E-2},{"$f":"'Population at Risk'!AN26/'Population at Risk'!AN$5","v":2.8367163629845711E-2},{"$f":"'Population at Risk'!AO26/'Population at Risk'!AO$5","v":2.8367163629845711E-2},{"$f":"'Population at Risk'!AP26/'Population at Risk'!AP$5","v":2.6457579062270437E-2},{"$f":"'Population at Risk'!C26/'Population at Risk'!C$5","v":5.0890568350530699E-2},{"$f":"'Population at Risk'!AQ26/'Population at Risk'!AQ$5","v":3.1874678828640951E-2},{"$f":"'Population at Risk'!O26/'Population at Risk'!O$5","v":3.1521959757083509E-2},{"$f":"'Population at Risk'!AR26/'Population at Risk'!AR$5","v":3.8752287921583244E-2},{"$f":"'Population at Risk'!AS26/'Population at Risk'!AS$5","v":2.9883926613731834E-2},{"$f":"'Population at Risk'!AT26/'Population at Risk'!AT$5","v":2.8035802894589571E-2},{"$f":"'Population at Risk'!AU26/'Population at Risk'!AU$5","v":2.8035802894589571E-2},{"$f":"'Population at Risk'!BB26/'Population at Risk'!BB$5","v":3.3189557320192076E-2},{"$f":"'Population at Risk'!P26/'Population at Risk'!P$5","v":3.5315824144729099E-2},{"$f":"'Population at Risk'!AV26/'Population at Risk'!AV$5","v":3.061118795238869E-2},{"$f":"'Population at Risk'!AW26/'Population at Risk'!AW$5","v":3.1942057994727317E-2},{"$f":"'Population at Risk'!Q26/'Population at Risk'!Q$5","v":3.5583330441613797E-2},24]
[null,"Female 25-29",{"$f":"'Population at Risk'!R27/'Population at Risk'!R$5","v":4.4227687408055175E-2},{"$f":"'Population at Risk'!AX27/'Population at Risk'!AX$5","v":5.9924521298588176E-2},{"$f":"'Population at Risk'!S27/'Population at Risk'!S$5","v":6.6089573118969305E-2},{"$f":"'Population at Risk'!T27/'Population at Risk'!T$5","v":8.9995532706408074E-2},{"$f":"'Population at Risk'!U27/'Population at Risk'!U$5","v":3.7473431178955616E-2},{"$f":"'Population at Risk'!D27/'Population at Risk'!D$5","v":6.3695667880639795E-2},{"$f":"'Population at Risk'!E27/'Population at Risk'!E$5","v":4.6986893612179899E-2},{"$f":"'Population at Risk'!BC27/'Population at Risk'!BC$5","v":3.7473431178955616E-2},{"$f":"'Population at Risk'!V27/'Population at Risk'!V$5","v":5.5777472311424242E-2},{"$f":"'Population at Risk'!F27/'Population at Risk'!F$5","v":4.9169244122788031E-2},{"$f":"'Population at Risk'!W27/'Population at Risk'!W$5","v":5.4058336189367971E-2},{"$f":"'Population at Risk'!X27/'Population at Risk'!X$5","v":5.4058336189367971E-2},{"$f":"'Population at Risk'!Y27/'Population at Risk'!Y$5","v":5.5567203364529458E-2},{"$f":"'Population at Risk'!Z27/'Population at Risk'!Z$5","v":8.741217346052009E-2},{"$f":"'Population at Risk'!AA27/'Population at Risk'!AA$5","v":6.3019324880717806E-2},{"$f":"'Population at Risk'!AB27/'Population at Risk'!AB$5","v":6.1471073731322483E-2},{"$f":"'Population at Risk'!AY27/'Population at Risk'!AY$5","v":5.3052810543205563E-2},{"$f":"'Population at Risk'!AC27/'Population at Risk'!AC$5","v":6.9980082163378463E-2},{"$f":"'Population at Risk'!AD27/'Population at Risk'!AD$5","v":3.825502682461944E-2},{"$f":"'Population at Risk'!AE27/'Population at Risk'!AE$5","v":3.8890703698432061E-2},{"$f":"'Population at Risk'!G27/'Population at Risk'!G$5","v":3.6595363898539283E-2},{"$f":"'Population at Risk'!AF27/'Population at Risk'!AF$5","v":4.3151907397393663E-2},{"$f":"'Population at Risk'!H27/'Population at Risk'!H$5","v":4.9220094634292555E-2},{"$f":"'Population at Risk'!AG27/'Population at Risk'!AG$5","v":3.8890703698432061E-2},{"$f":"'Population at Risk'!AZ27/'Population at Risk'!AZ$5","v":5.1395770309808186E-2},{"$f":"'Population at Risk'!I27/'Population at Risk'!I$5","v":3.9575317931973525E-2},{"$f":"'Population at Risk'!J27/'Population at Risk'!J$5","v":5.5061244847281691E-2},{"$f":"'Population at Risk'!K27/'Population at Risk'!K$5","v":4.7940070210196244E-2},{"$f":"'Population at Risk'!AH27/'Population at Risk'!AH$5","v":5.0210145382564277E-2},{"$f":"'Population at Risk'!AI27/'Population at Risk'!AI$5","v":7.4319921071246048E-2},{"$f":"'Population at Risk'!BA27/'Population at Risk'!BA$5","v":5.2094658268073087E-2},{"$f":"'Population at Risk'!L27/'Population at Risk'!L$5","v":5.0817522289189516E-2},{"$f":"'Population at Risk'!M27/'Population at Risk'!M$5","v":5.0817522289189516E-2},{"$f":"'Population at Risk'!AJ27/'Population at Risk'!AJ$5","v":5.5081685438668024E-2},{"$f":"'Population at Risk'!AK27/'Population at Risk'!AK$5","v":4.8395335078513478E-2},{"$f":"'Population at Risk'!AL27/'Population at Risk'!AL$5","v":5.0890500422328032E-2},{"$f":"'Population at Risk'!AM27/'Population at Risk'!AM$5","v":5.1918645766692632E-2},{"$f":"'Population at Risk'!N27/'Population at Risk'!N$5","v":5.8959534833060476E-2},{"$f":"'Population at Risk'!AN27/'Population at Risk'!AN$5","v":4.3193857333333682E-2},{"$f":"'Population at Risk'!AO27/'Population at Risk'!AO$5","v":4.3193857333333682E-2},{"$f":"'Population at Risk'!AP27/'Population at Risk'!AP$5","v":3.746052355721375E-2},{"$f":"'Population at Risk'!C27/'Population at Risk'!C$5","v":7.7007056902792664E-2},{"$f":"'Population at Risk'!AQ27/'Population at Risk'!AQ$5","v":4.9827675781815448E-2},{"$f":"'Population at Risk'!O27/'Population at Risk'!O$5","v":5.0390716752987806E-2},{"$f":"'Population at Risk'!AR27/'Population at Risk'!AR$5","v":6.0085746235071229E-2},{"$f":"'Population at Risk'!AS27/'Population at Risk'!AS$5","v":3.9575317931973525E-2},{"$f":"'Population at Risk'!AT27/'Population at Risk'!AT$5","v":4.1900840038743753E-2},{"$f":"'Population at Risk'!AU27/'Population at Risk'!AU$5","v":4.1900840038743753E-2},{"$f":"'Population at Risk'!BB27/'Population at Risk'!BB$5","v":5.4561206166636414E-2},{"$f":"'Population at Risk'!P27/'Population at Risk'!P$5","v":4.3563421005027317E-2},{"$f":"'Population at Risk'!AV27/'Population at Risk'!AV$5","v":4.5526235428117123E-2},{"$f":"'Population at Risk'!AW27/'Population at Risk'!AW$5","v":4.8095702115980674E-2},{"$f":"'Population at Risk'!Q27/'Population at Risk'!Q$5","v":4.7419587813065531E-2},25]
[null,"Female 30-34",{"$f":"'Population at Risk'!R28/'Population at Risk'!R$5","v":4.3262612106602913E-2},{"$f":"'Population at Risk'!AX28/'Population at Risk'!AX$5","v":4.6873685112325106E-2},{"$f":"'Population at Risk'!S28/'Population at Risk'!S$5","v":6.1866683255466577E-2},{"$f":"'Population at Risk'!T28/'Population at Risk'!T$5","v":7.6861967116547955E-2},{"$f":"'Population at Risk'!U28/'Population at Risk'!U$5","v":3.9919893574515218E-2},{"$f":"'Population at Risk'!D28/'Population at Risk'!D$5","v":6.1141930705999464E-2},{"$f":"'Population at Risk'!E28/'Population at Risk'!E$5","v":5.6173098194235022E-2},{"$f":"'Population at Risk'!BC28/'Population at Risk'!BC$5","v":3.9919893574515218E-2},{"$f":"'Population at Risk'!V28/'Population at Risk'!V$5","v":6.1036985911012302E-2},{"$f":"'Population at Risk'!F28/'Population at Risk'!F$5","v":5.3311575446573049E-2},{"$f":"'Population at Risk'!W28/'Population at Risk'!W$5","v":5.1784184108839899E-2},{"$f":"'Population at Risk'!X28/'Population at Risk'!X$5","v":5.1784184108839899E-2},{"$f":"'Population at Risk'!Y28/'Population at Risk'!Y$5","v":5.4266216667558168E-2},{"$f":"'Population at Risk'!Z28/'Population at Risk'!Z$5","v":7.2424360396006637E-2},{"$f":"'Population at Risk'!AA28/'Population at Risk'!AA$5","v":5.8527620887519276E-2},{"$f":"'Population at Risk'!AB28/'Population at Risk'!AB$5","v":6.0164354320220798E-2},{"$f":"'Population at Risk'!AY28/'Population at Risk'!AY$5","v":4.9590103557275222E-2},{"$f":"'Population at Risk'!AC28/'Population at Risk'!AC$5","v":6.105361441887424E-2},{"$f":"'Population at Risk'!AD28/'Population at Risk'!AD$5","v":4.1278161688373463E-2},{"$f":"'Population at Risk'!AE28/'Population at Risk'!AE$5","v":4.2787821609763049E-2},{"$f":"'Population at Risk'!G28/'Population at Risk'!G$5","v":3.6985625518090495E-2},{"$f":"'Population at Risk'!AF28/'Population at Risk'!AF$5","v":4.2278588330181728E-2},{"$f":"'Population at Risk'!H28/'Population at Risk'!H$5","v":4.6754463794514263E-2},{"$f":"'Population at Risk'!AG28/'Population at Risk'!AG$5","v":4.2787821609763049E-2},{"$f":"'Population at Risk'!AZ28/'Population at Risk'!AZ$5","v":4.7064985313260033E-2},{"$f":"'Population at Risk'!I28/'Population at Risk'!I$5","v":4.339648406892866E-2},{"$f":"'Population at Risk'!J28/'Population at Risk'!J$5","v":4.7176750496304376E-2},{"$f":"'Population at Risk'!K28/'Population at Risk'!K$5","v":4.8084986340646167E-2},{"$f":"'Population at Risk'!AH28/'Population at Risk'!AH$5","v":5.3859319153162694E-2},{"$f":"'Population at Risk'!AI28/'Population at Risk'!AI$5","v":6.8332505750030192E-2},{"$f":"'Population at Risk'!BA28/'Population at Risk'!BA$5","v":5.3545873953074072E-2},{"$f":"'Population at Risk'!L28/'Population at Risk'!L$5","v":4.910339150547733E-2},{"$f":"'Population at Risk'!M28/'Population at Risk'!M$5","v":4.910339150547733E-2},{"$f":"'Population at Risk'!AJ28/'Population at Risk'!AJ$5","v":5.81958901407926E-2},{"$f":"'Population at Risk'!AK28/'Population at Risk'!AK$5","v":5.4295142256107438E-2},{"$f":"'Population at Risk'!AL28/'Population at Risk'!AL$5","v":4.7597778211024719E-2},{"$f":"'Population at Risk'!AM28/'Population at Risk'!AM$5","v":5.4660951683446216E-2},{"$f":"'Population at Risk'!N28/'Population at Risk'!N$5","v":4.6152792112109431E-2},{"$f":"'Population at Risk'!AN28/'Population at Risk'!AN$5","v":4.110038776441375E-2},{"$f":"'Population at Risk'!AO28/'Population at Risk'!AO$5","v":4.110038776441375E-2},{"$f":"'Population at Risk'!AP28/'Population at Risk'!AP$5","v":4.1113669424987301E-2},{"$f":"'Population at Risk'!C28/'Population at Risk'!C$5","v":6.475280980026317E-2},{"$f":"'Population at Risk'!AQ28/'Population at Risk'!AQ$5","v":4.6647078840383972E-2},{"$f":"'Population at Risk'!O28/'Population at Risk'!O$5","v":4.784809285437791E-2},{"$f":"'Population at Risk'!AR28/'Population at Risk'!AR$5","v":5.6762127851187262E-2},{"$f":"'Population at Risk'!AS28/'Population at Risk'!AS$5","v":4.339648406892866E-2},{"$f":"'Population at Risk'!AT28/'Population at Risk'!AT$5","v":3.8378659892151154E-2},{"$f":"'Population at Risk'!AU28/'Population at Risk'!AU$5","v":3.8378659892151154E-2},{"$f":"'Population at Risk'!BB28/'Population at Risk'!BB$5","v":5.9534627538511437E-2},{"$f":"'Population at Risk'!P28/'Population at Risk'!P$5","v":4.2067880546438667E-2},{"$f":"'Population at Risk'!AV28/'Population at Risk'!AV$5","v":4.4288838788825696E-2},{"$f":"'Population at Risk'!AW28/'Population at Risk'!AW$5","v":5.2828025549458507E-2},{"$f":"'Population at Risk'!Q28/'Population at Risk'!Q$5","v":4.9699249658069003E-2},26]
[null,"Female 35-39",{"$f":"'Population at Risk'!R29/'Population at Risk'!R$5","v":4.6923117245180321E-2},{"$f":"'Population at Risk'!AX29/'Population at Risk'!AX$5","v":4.2429611348022381E-2},{"$f":"'Population at Risk'!S29/'Population at Risk'!S$5","v":5.0520292529333689E-2},{"$f":"'Population at Risk'!T29/'Population at Risk'!T$5","v":5.4377419215056864E-2},{"$f":"'Population at Risk'!U29/'Population at Risk'!U$5","v":4.6110245514163282E-2},{"$f":"'Population at Risk'!D29/'Population at Risk'!D$5","v":4.7855598484181062E-2},{"$f":"'Population at Risk'!E29/'Population at Risk'!E$5","v":5.2008349439778105E-2},{"$f":"'Population at Risk'!BC29/'Population at Risk'!BC$5","v":4.6110245514163282E-2},{"$f":"'Population at Risk'!V29/'Population at Risk'!V$5","v":5.3218705055160555E-2},{"$f":"'Population at Risk'!F29/'Population at Risk'!F$5","v":4.9612441078831539E-2},{"$f":"'Population at Risk'!W29/'Population at Risk'!W$5","v":4.7084338958766188E-2},{"$f":"'Population at Risk'!X29/'Population at Risk'!X$5","v":4.7084338958766188E-2},{"$f":"'Population at Risk'!Y29/'Population at Risk'!Y$5","v":4.8531950099751246E-2},{"$f":"'Population at Risk'!Z29/'Population at Risk'!Z$5","v":5.3702513940358493E-2},{"$f":"'Population at Risk'!AA29/'Population at Risk'!AA$5","v":4.8504816338110678E-2},{"$f":"'Population at Risk'!AB29/'Population at Risk'!AB$5","v":4.7464315723862248E-2},{"$f":"'Population at Risk'!AY29/'Population at Risk'!AY$5","v":4.2503734616301372E-2},{"$f":"'Population at Risk'!AC29/'Population at Risk'!AC$5","v":4.8753725950186677E-2},{"$f":"'Population at Risk'!AD29/'Population at Risk'!AD$5","v":3.9199000768027736E-2},{"$f":"'Population at Risk'!AE29/'Population at Risk'!AE$5","v":3.9550601695847662E-2},{"$f":"'Population at Risk'!G29/'Population at Risk'!G$5","v":3.8408758629168475E-2},{"$f":"'Population at Risk'!AF29/'Population at Risk'!AF$5","v":3.7247843428711395E-2},{"$f":"'Population at Risk'!H29/'Population at Risk'!H$5","v":4.2242483546642132E-2},{"$f":"'Population at Risk'!AG29/'Population at Risk'!AG$5","v":3.9550601695847662E-2},{"$f":"'Population at Risk'!AZ29/'Population at Risk'!AZ$5","v":3.8237785390875051E-2},{"$f":"'Population at Risk'!I29/'Population at Risk'!I$5","v":4.1472386785696203E-2},{"$f":"'Population at Risk'!J29/'Population at Risk'!J$5","v":4.356641358417989E-2},{"$f":"'Population at Risk'!K29/'Population at Risk'!K$5","v":4.5748967229043348E-2},{"$f":"'Population at Risk'!AH29/'Population at Risk'!AH$5","v":4.8020869920907816E-2},{"$f":"'Population at Risk'!AI29/'Population at Risk'!AI$5","v":5.3005067555382507E-2},{"$f":"'Population at Risk'!BA29/'Population at Risk'!BA$5","v":4.3811407267152831E-2},{"$f":"'Population at Risk'!L29/'Population at Risk'!L$5","v":4.4629223221156679E-2},{"$f":"'Population at Risk'!M29/'Population at Risk'!M$5","v":4.4629223221156679E-2},{"$f":"'Population at Risk'!AJ29/'Population at Risk'!AJ$5","v":5.3446415378457172E-2},{"$f":"'Population at Risk'!AK29/'Population at Risk'!AK$5","v":4.502821522560696E-2},{"$f":"'Population at Risk'!AL29/'Population at Risk'!AL$5","v":4.3218113588426796E-2},{"$f":"'Population at Risk'!AM29/'Population at Risk'!AM$5","v":4.8469749259351845E-2},{"$f":"'Population at Risk'!N29/'Population at Risk'!N$5","v":3.3928845481360985E-2},{"$f":"'Population at Risk'!AN29/'Population at Risk'!AN$5","v":4.0193278005175623E-2},{"$f":"'Population at Risk'!AO29/'Population at Risk'!AO$5","v":4.0193278005175623E-2},{"$f":"'Population at Risk'!AP29/'Population at Risk'!AP$5","v":3.4955562236898274E-2},{"$f":"'Population at Risk'!C29/'Population at Risk'!C$5","v":4.4022578336449604E-2},{"$f":"'Population at Risk'!AQ29/'Population at Risk'!AQ$5","v":4.0765112820416116E-2},{"$f":"'Population at Risk'!O29/'Population at Risk'!O$5","v":4.2225070884022865E-2},{"$f":"'Population at Risk'!AR29/'Population at Risk'!AR$5","v":4.7538113555283389E-2},{"$f":"'Population at Risk'!AS29/'Population at Risk'!AS$5","v":4.1472386785696203E-2},{"$f":"'Population at Risk'!AT29/'Population at Risk'!AT$5","v":4.4039606604586737E-2},{"$f":"'Population at Risk'!AU29/'Population at Risk'!AU$5","v":4.4039606604586737E-2},{"$f":"'Population at Risk'!BB29/'Population at Risk'!BB$5","v":5.1326682970708512E-2},{"$f":"'Population at Risk'!P29/'Population at Risk'!P$5","v":4.3514477140822259E-2},{"$f":"'Population at Risk'!AV29/'Population at Risk'!AV$5","v":4.0992418236429636E-2},{"$f":"'Population at Risk'!AW29/'Population at Risk'!AW$5","v":4.7420287142495528E-2},{"$f":"'Population at Risk'!Q29/'Population at Risk'!Q$5","v":4.8736162385741917E-2},27]
[null,"Female 40-44",{"$f":"'Population at Risk'!R30/'Population at Risk'!R$5","v":5.0407280380370831E-2},{"$f":"'Population at Risk'!AX30/'Population at Risk'!AX$5","v":4.671594718094798E-2},{"$f":"'Population at Risk'!S30/'Population at Risk'!S$5","v":5.0108443000358265E-2},{"$f":"'Population at Risk'!T30/'Population at Risk'!T$5","v":4.6453589312803703E-2},{"$f":"'Population at Risk'!U30/'Population at Risk'!U$5","v":5.157783968447973E-2},{"$f":"'Population at Risk'!D30/'Population at Risk'!D$5","v":4.7143632223920727E-2},{"$f":"'Population at Risk'!E30/'Population at Risk'!E$5","v":5.5254416710327534E-2},{"$f":"'Population at Risk'!BC30/'Population at Risk'!BC$5","v":5.157783968447973E-2},{"$f":"'Population at Risk'!V30/'Population at Risk'!V$5","v":5.9642942063109147E-2},{"$f":"'Population at Risk'!F30/'Population at Risk'!F$5","v":5.4310455671892147E-2},{"$f":"'Population at Risk'!W30/'Population at Risk'!W$5","v":4.9984883917562083E-2},{"$f":"'Population at Risk'!X30/'Population at Risk'!X$5","v":4.9984883917562083E-2},{"$f":"'Population at Risk'!Y30/'Population at Risk'!Y$5","v":5.4036144094341404E-2},{"$f":"'Population at Risk'!Z30/'Population at Risk'!Z$5","v":4.7508587678644514E-2},{"$f":"'Population at Risk'!AA30/'Population at Risk'!AA$5","v":4.7730596108927555E-2},{"$f":"'Population at Risk'!AB30/'Population at Risk'!AB$5","v":4.8177837806124904E-2},{"$f":"'Population at Risk'!AY30/'Population at Risk'!AY$5","v":4.384757157703642E-2},{"$f":"'Population at Risk'!AC30/'Population at Risk'!AC$5","v":4.6378678732326255E-2},{"$f":"'Population at Risk'!AD30/'Population at Risk'!AD$5","v":4.4240777421182549E-2},{"$f":"'Population at Risk'!AE30/'Population at Risk'!AE$5","v":4.3595663780661618E-2},{"$f":"'Population at Risk'!G30/'Population at Risk'!G$5","v":4.6513250699194493E-2},{"$f":"'Population at Risk'!AF30/'Population at Risk'!AF$5","v":3.9867641819373967E-2},{"$f":"'Population at Risk'!H30/'Population at Risk'!H$5","v":4.8409598128601988E-2},{"$f":"'Population at Risk'!AG30/'Population at Risk'!AG$5","v":4.3595663780661618E-2},{"$f":"'Population at Risk'!AZ30/'Population at Risk'!AZ$5","v":3.8347765232582223E-2},{"$f":"'Population at Risk'!I30/'Population at Risk'!I$5","v":5.305467524596913E-2},{"$f":"'Population at Risk'!J30/'Population at Risk'!J$5","v":4.8117175797485229E-2},{"$f":"'Population at Risk'!K30/'Population at Risk'!K$5","v":5.0756164021920291E-2},{"$f":"'Population at Risk'!AH30/'Population at Risk'!AH$5","v":5.0184806823179891E-2},{"$f":"'Population at Risk'!AI30/'Population at Risk'!AI$5","v":4.9777078672246136E-2},{"$f":"'Population at Risk'!BA30/'Population at Risk'!BA$5","v":4.5125683453768647E-2},{"$f":"'Population at Risk'!L30/'Population at Risk'!L$5","v":5.1866495610648759E-2},{"$f":"'Population at Risk'!M30/'Population at Risk'!M$5","v":5.1866495610648759E-2},{"$f":"'Population at Risk'!AJ30/'Population at Risk'!AJ$5","v":5.3000453335332771E-2},{"$f":"'Population at Risk'!AK30/'Population at Risk'!AK$5","v":5.3971443823956529E-2},{"$f":"'Population at Risk'!AL30/'Population at Risk'!AL$5","v":5.117658381142464E-2},{"$f":"'Population at Risk'!AM30/'Population at Risk'!AM$5","v":5.0607058700094645E-2},{"$f":"'Population at Risk'!N30/'Population at Risk'!N$5","v":2.9932910780243342E-2},{"$f":"'Population at Risk'!AN30/'Population at Risk'!AN$5","v":4.8016172966943389E-2},{"$f":"'Population at Risk'!AO30/'Population at Risk'!AO$5","v":4.8016172966943389E-2},{"$f":"'Population at Risk'!AP30/'Population at Risk'!AP$5","v":3.8472576945586652E-2},{"$f":"'Population at Risk'!C30/'Population at Risk'!C$5","v":4.0038930213488366E-2},{"$f":"'Population at Risk'!AQ30/'Population at Risk'!AQ$5","v":4.2246795761590406E-2},{"$f":"'Population at Risk'!O30/'Population at Risk'!O$5","v":4.7362640554742569E-2},{"$f":"'Population at Risk'!AR30/'Population at Risk'!AR$5","v":4.8496991092127295E-2},{"$f":"'Population at Risk'!AS30/'Population at Risk'!AS$5","v":5.305467524596913E-2},{"$f":"'Population at Risk'!AT30/'Population at Risk'!AT$5","v":4.4616372356471985E-2},{"$f":"'Population at Risk'!AU30/'Population at Risk'!AU$5","v":4.4616372356471985E-2},{"$f":"'Population at Risk'!BB30/'Population at Risk'!BB$5","v":5.6537281478847679E-2},{"$f":"'Population at Risk'!P30/'Population at Risk'!P$5","v":4.8031016500445931E-2},{"$f":"'Population at Risk'!AV30/'Population at Risk'!AV$5","v":4.6012630342506661E-2},{"$f":"'Population at Risk'!AW30/'Population at Risk'!AW$5","v":4.9613367181546561E-2},{"$f":"'Population at Risk'!Q30/'Population at Risk'!Q$5","v":5.1466430109595382E-2},28]
[null,"Female 45-49",{"$f":"'Population at Risk'!R31/'Population at Risk'!R$5","v":5.6146804915394741E-2},{"$f":"'Population at Risk'!AX31/'Population at Risk'!AX$5","v":5.6832682034743773E-2},{"$f":"'Population at Risk'!S31/'Population at Risk'!S$5","v":5.5132384273949862E-2},{"$f":"'Population at Risk'!T31/'Population at Risk'!T$5","v":4.4643767566266528E-2},{"$f":"'Population at Risk'!U31/'Population at Risk'!U$5","v":5.6887003624669141E-2},{"$f":"'Population at Risk'!D31/'Population at Risk'!D$5","v":4.8977067211098207E-2},{"$f":"'Population at Risk'!E31/'Population at Risk'!E$5","v":6.1277844075131795E-2},{"$f":"'Population at Risk'!BC31/'Population at Risk'!BC$5","v":5.6887003624669141E-2},{"$f":"'Population at Risk'!V31/'Population at Risk'!V$5","v":6.3683961432008745E-2},{"$f":"'Population at Risk'!F31/'Population at Risk'!F$5","v":6.0738992765275127E-2},{"$f":"'Population at Risk'!W31/'Population at Risk'!W$5","v":5.9156076692639593E-2},{"$f":"'Population at Risk'!X31/'Population at Risk'!X$5","v":5.9156076692639593E-2},{"$f":"'Population at Risk'!Y31/'Population at Risk'!Y$5","v":6.1222227480493795E-2},{"$f":"'Population at Risk'!Z31/'Population at Risk'!Z$5","v":5.8110482897397044E-2},{"$f":"'Population at Risk'!AA31/'Population at Risk'!AA$5","v":5.8438284224886394E-2},{"$f":"'Population at Risk'!AB31/'Population at Risk'!AB$5","v":5.065287064060682E-2},{"$f":"'Population at Risk'!AY31/'Population at Risk'!AY$5","v":5.1827035281488451E-2},{"$f":"'Population at Risk'!AC31/'Population at Risk'!AC$5","v":5.7588783997972404E-2},{"$f":"'Population at Risk'!AD31/'Population at Risk'!AD$5","v":5.253857934192712E-2},{"$f":"'Population at Risk'!AE31/'Population at Risk'!AE$5","v":5.1542647133619647E-2},{"$f":"'Population at Risk'!G31/'Population at Risk'!G$5","v":5.5935242544571918E-2},{"$f":"'Population at Risk'!AF31/'Population at Risk'!AF$5","v":5.5658123084253053E-2},{"$f":"'Population at Risk'!H31/'Population at Risk'!H$5","v":6.0821828371583474E-2},{"$f":"'Population at Risk'!AG31/'Population at Risk'!AG$5","v":5.1542647133619647E-2},{"$f":"'Population at Risk'!AZ31/'Population at Risk'!AZ$5","v":4.5268102579284056E-2},{"$f":"'Population at Risk'!I31/'Population at Risk'!I$5","v":6.478597208613493E-2},{"$f":"'Population at Risk'!J31/'Population at Risk'!J$5","v":5.8424545526303398E-2},{"$f":"'Population at Risk'!K31/'Population at Risk'!K$5","v":6.1457082084455432E-2},{"$f":"'Population at Risk'!AH31/'Population at Risk'!AH$5","v":5.9964497947214548E-2},{"$f":"'Population at Risk'!AI31/'Population at Risk'!AI$5","v":5.2210592900232812E-2},{"$f":"'Population at Risk'!BA31/'Population at Risk'!BA$5","v":6.0118346121565511E-2},{"$f":"'Population at Risk'!L31/'Population at Risk'!L$5","v":6.6532454639667435E-2},{"$f":"'Population at Risk'!M31/'Population at Risk'!M$5","v":6.6532454639667435E-2},{"$f":"'Population at Risk'!AJ31/'Population at Risk'!AJ$5","v":6.1949110164783147E-2},{"$f":"'Population at Risk'!AK31/'Population at Risk'!AK$5","v":6.0142579347563237E-2},{"$f":"'Population at Risk'!AL31/'Population at Risk'!AL$5","v":6.4507758255058709E-2},{"$f":"'Population at Risk'!AM31/'Population at Risk'!AM$5","v":5.9976548199940298E-2},{"$f":"'Population at Risk'!N31/'Population at Risk'!N$5","v":3.5528673313165046E-2},{"$f":"'Population at Risk'!AN31/'Population at Risk'!AN$5","v":5.6308827401376625E-2},{"$f":"'Population at Risk'!AO31/'Population at Risk'!AO$5","v":5.6308827401376625E-2},{"$f":"'Population at Risk'!AP31/'Population at Risk'!AP$5","v":4.7184406115110392E-2},{"$f":"'Population at Risk'!C31/'Population at Risk'!C$5","v":3.8387635192129128E-2},{"$f":"'Population at Risk'!AQ31/'Population at Risk'!AQ$5","v":5.3759297251696099E-2},{"$f":"'Population at Risk'!O31/'Population at Risk'!O$5","v":6.0663286577596627E-2},{"$f":"'Population at Risk'!AR31/'Population at Risk'!AR$5","v":5.6813036799248769E-2},{"$f":"'Population at Risk'!AS31/'Population at Risk'!AS$5","v":6.478597208613493E-2},{"$f":"'Population at Risk'!AT31/'Population at Risk'!AT$5","v":5.4506093049118284E-2},{"$f":"'Population at Risk'!AU31/'Population at Risk'!AU$5","v":5.4506093049118284E-2},{"$f":"'Population at Risk'!BB31/'Population at Risk'!BB$5","v":6.2746614315102298E-2},{"$f":"'Population at Risk'!P31/'Population at Risk'!P$5","v":5.626372124533726E-2},{"$f":"'Population at Risk'!AV31/'Population at Risk'!AV$5","v":5.6060736099750159E-2},{"$f":"'Population at Risk'!AW31/'Population at Risk'!AW$5","v":5.98724827320938E-2},{"$f":"'Population at Risk'!Q31/'Population at Risk'!Q$5","v":6.3082061552425447E-2},29]
[null,"Female 50-54",{"$f":"'Population at Risk'!R32/'Population at Risk'!R$5","v":5.6947801027327168E-2},{"$f":"'Population at Risk'!AX32/'Population at Risk'!AX$5","v":5.7278645132070052E-2},{"$f":"'Population at Risk'!S32/'Population at Risk'!S$5","v":5.5017184932106326E-2},{"$f":"'Population at Risk'!T32/'Population at Risk'!T$5","v":4.3543054991344594E-2},{"$f":"'Population at Risk'!U32/'Population at Risk'!U$5","v":6.076171859538973E-2},{"$f":"'Population at Risk'!D32/'Population at Risk'!D$5","v":5.03779438349427E-2},{"$f":"'Population at Risk'!E32/'Population at Risk'!E$5","v":6.1487494409217851E-2},{"$f":"'Population at Risk'!BC32/'Population at Risk'!BC$5","v":6.076171859538973E-2},{"$f":"'Population at Risk'!V32/'Population at Risk'!V$5","v":6.3862209173248696E-2},{"$f":"'Population at Risk'!F32/'Population at Risk'!F$5","v":6.3572622679445023E-2},{"$f":"'Population at Risk'!W32/'Population at Risk'!W$5","v":6.120228606395705E-2},{"$f":"'Population at Risk'!X32/'Population at Risk'!X$5","v":6.120228606395705E-2},{"$f":"'Population at Risk'!Y32/'Population at Risk'!Y$5","v":6.1336560405571013E-2},{"$f":"'Population at Risk'!Z32/'Population at Risk'!Z$5","v":6.0698672461048965E-2},{"$f":"'Population at Risk'!AA32/'Population at Risk'!AA$5","v":6.0093187553907142E-2},{"$f":"'Population at Risk'!AB32/'Population at Risk'!AB$5","v":5.20999824008554E-2},{"$f":"'Population at Risk'!AY32/'Population at Risk'!AY$5","v":5.485882215086018E-2},{"$f":"'Population at Risk'!AC32/'Population at Risk'!AC$5","v":5.9606723594402763E-2},{"$f":"'Population at Risk'!AD32/'Population at Risk'!AD$5","v":5.6602556383506752E-2},{"$f":"'Population at Risk'!AE32/'Population at Risk'!AE$5","v":5.4633629253660672E-2},{"$f":"'Population at Risk'!G32/'Population at Risk'!G$5","v":6.2982974835261052E-2},{"$f":"'Population at Risk'!AF32/'Population at Risk'!AF$5","v":5.7809505238781166E-2},{"$f":"'Population at Risk'!H32/'Population at Risk'!H$5","v":6.3246114162429951E-2},{"$f":"'Population at Risk'!AG32/'Population at Risk'!AG$5","v":5.4633629253660672E-2},{"$f":"'Population at Risk'!AZ32/'Population at Risk'!AZ$5","v":4.9017075992672174E-2},{"$f":"'Population at Risk'!I32/'Population at Risk'!I$5","v":6.7479973804539739E-2},{"$f":"'Population at Risk'!J32/'Population at Risk'!J$5","v":5.8474065834802719E-2},{"$f":"'Population at Risk'!K32/'Population at Risk'!K$5","v":6.0885361840710674E-2},{"$f":"'Population at Risk'!AH32/'Population at Risk'!AH$5","v":6.0952256175147879E-2},{"$f":"'Population at Risk'!AI32/'Population at Risk'!AI$5","v":5.0825941748925504E-2},{"$f":"'Population at Risk'!BA32/'Population at Risk'!BA$5","v":6.2679363329190829E-2},{"$f":"'Population at Risk'!L32/'Population at Risk'!L$5","v":7.2125901022899133E-2},{"$f":"'Population at Risk'!M32/'Population at Risk'!M$5","v":7.2125901022899133E-2},{"$f":"'Population at Risk'!AJ32/'Population at Risk'!AJ$5","v":6.1534199267610321E-2},{"$f":"'Population at Risk'!AK32/'Population at Risk'!AK$5","v":6.1851326221342692E-2},{"$f":"'Population at Risk'!AL32/'Population at Risk'!AL$5","v":6.7814424053572797E-2},{"$f":"'Population at Risk'!AM32/'Population at Risk'!AM$5","v":6.0550450684678701E-2},{"$f":"'Population at Risk'!N32/'Population at Risk'!N$5","v":4.0606090355248536E-2},{"$f":"'Population at Risk'!AN32/'Population at Risk'!AN$5","v":6.1181729043011147E-2},{"$f":"'Population at Risk'!AO32/'Population at Risk'!AO$5","v":6.1181729043011147E-2},{"$f":"'Population at Risk'!AP32/'Population at Risk'!AP$5","v":4.9200496680877899E-2},{"$f":"'Population at Risk'!C32/'Population at Risk'!C$5","v":4.0763395675728134E-2},{"$f":"'Population at Risk'!AQ32/'Population at Risk'!AQ$5","v":5.3714815326179964E-2},{"$f":"'Population at Risk'!O32/'Population at Risk'!O$5","v":6.109400336342094E-2},{"$f":"'Population at Risk'!AR32/'Population at Risk'!AR$5","v":5.8462210727058601E-2},{"$f":"'Population at Risk'!AS32/'Population at Risk'!AS$5","v":6.7479973804539739E-2},{"$f":"'Population at Risk'!AT32/'Population at Risk'!AT$5","v":5.575371006356717E-2},{"$f":"'Population at Risk'!AU32/'Population at Risk'!AU$5","v":5.575371006356717E-2},{"$f":"'Population at Risk'!BB32/'Population at Risk'!BB$5","v":6.0806418952773084E-2},{"$f":"'Population at Risk'!P32/'Population at Risk'!P$5","v":5.850471800560577E-2},{"$f":"'Population at Risk'!AV32/'Population at Risk'!AV$5","v":5.9797781123632529E-2},{"$f":"'Population at Risk'!AW32/'Population at Risk'!AW$5","v":6.1355420576806603E-2},{"$f":"'Population at Risk'!Q32/'Population at Risk'!Q$5","v":6.0386450301401974E-2},30]
[null,"Female 55-59",{"$f":"'Population at Risk'!R33/'Population at Risk'!R$5","v":0.13383811211704197},{"$f":"'Population at Risk'!AX33/'Population at Risk'!AX$5","v":0.11273467134484426},{"$f":"'Population at Risk'!S33/'Population at Risk'!S$5","v":0.11169681871640673},{"$f":"'Population at Risk'!T33/'Population at Risk'!T$5","v":9.5251503364866999E-2},{"$f":"'Population at Risk'!U33/'Population at Risk'!U$5","v":0.12802431119322544},{"$f":"'Population at Risk'!D33/'Population at Risk'!D$5","v":0.11272567719827019},{"$f":"'Population at Risk'!E33/'Population at Risk'!E$5","v":0.13946240681199745},{"$f":"'Population at Risk'!BC33/'Population at Risk'!BC$5","v":0.12802431119322544},{"$f":"'Population at Risk'!V33/'Population at Risk'!V$5","v":0.1204436959892496},{"$f":"'Population at Risk'!F33/'Population at Risk'!F$5","v":0.14254823703788427},{"$f":"'Population at Risk'!W33/'Population at Risk'!W$5","v":0.11513752637791581},{"$f":"'Population at Risk'!X33/'Population at Risk'!X$5","v":0.11513752637791581},{"$f":"'Population at Risk'!Y33/'Population at Risk'!Y$5","v":0.11573718879246232},{"$f":"'Population at Risk'!Z33/'Population at Risk'!Z$5","v":8.8738420237531021E-2},{"$f":"'Population at Risk'!AA33/'Population at Risk'!AA$5","v":0.10199779462767476},{"$f":"'Population at Risk'!AB33/'Population at Risk'!AB$5","v":0.11652837481741604},{"$f":"'Population at Risk'!AY33/'Population at Risk'!AY$5","v":0.10703024989715609},{"$f":"'Population at Risk'!AC33/'Population at Risk'!AC$5","v":9.890797057265692E-2},{"$f":"'Population at Risk'!AD33/'Population at Risk'!AD$5","v":0.12087378141332812},{"$f":"'Population at Risk'!AE33/'Population at Risk'!AE$5","v":0.1161912467816224},{"$f":"'Population at Risk'!G33/'Population at Risk'!G$5","v":0.13595050872374501},{"$f":"'Population at Risk'!AF33/'Population at Risk'!AF$5","v":9.6944817344740711E-2},{"$f":"'Population at Risk'!H33/'Population at Risk'!H$5","v":0.11038055451272159},{"$f":"'Population at Risk'!AG33/'Population at Risk'!AG$5","v":0.1161912467816224},{"$f":"'Population at Risk'!AZ33/'Population at Risk'!AZ$5","v":9.8955754599201778E-2},{"$f":"'Population at Risk'!I33/'Population at Risk'!I$5","v":0.14923479806836887},{"$f":"'Population at Risk'!J33/'Population at Risk'!J$5","v":0.11039535031368883},{"$f":"'Population at Risk'!K33/'Population at Risk'!K$5","v":0.1077400402953263},{"$f":"'Population at Risk'!AH33/'Population at Risk'!AH$5","v":0.10761089525512289},{"$f":"'Population at Risk'!AI33/'Population at Risk'!AI$5","v":0.10581445002108211},{"$f":"'Population at Risk'!BA33/'Population at Risk'!BA$5","v":0.10107565056634656},{"$f":"'Population at Risk'!L33/'Population at Risk'!L$5","v":0.14763347681421432},{"$f":"'Population at Risk'!M33/'Population at Risk'!M$5","v":0.14763347681421432},{"$f":"'Population at Risk'!AJ33/'Population at Risk'!AJ$5","v":0.12484476620011664},{"$f":"'Population at Risk'!AK33/'Population at Risk'!AK$5","v":0.1380563191346037},{"$f":"'Population at Risk'!AL33/'Population at Risk'!AL$5","v":0.10933918302011805},{"$f":"'Population at Risk'!AM33/'Population at Risk'!AM$5","v":9.9459784706534091E-2},{"$f":"'Population at Risk'!N33/'Population at Risk'!N$5","v":7.0234336966465583E-2},{"$f":"'Population at Risk'!AN33/'Population at Risk'!AN$5","v":0.13563712520412924},{"$f":"'Population at Risk'!AO33/'Population at Risk'!AO$5","v":0.13563712520412924},{"$f":"'Population at Risk'!AP33/'Population at Risk'!AP$5","v":0.1084269342842049},{"$f":"'Population at Risk'!C33/'Population at Risk'!C$5","v":8.965704085150783E-2},{"$f":"'Population at Risk'!AQ33/'Population at Risk'!AQ$5","v":9.7098551227876417E-2},{"$f":"'Population at Risk'!O33/'Population at Risk'!O$5","v":0.10072587092352427},{"$f":"'Population at Risk'!AR33/'Population at Risk'!AR$5","v":0.11059873694950477},{"$f":"'Population at Risk'!AS33/'Population at Risk'!AS$5","v":0.14923479806836887},{"$f":"'Population at Risk'!AT33/'Population at Risk'!AT$5","v":0.12176104894626195},{"$f":"'Population at Risk'!AU33/'Population at Risk'!AU$5","v":0.12176104894626195},{"$f":"'Population at Risk'!BB33/'Population at Risk'!BB$5","v":0.11116618802422847},{"$f":"'Population at Risk'!P33/'Population at Risk'!P$5","v":0.14787301254026863},{"$f":"'Population at Risk'!AV33/'Population at Risk'!AV$5","v":0.12418547832147087},{"$f":"'Population at Risk'!AW33/'Population at Risk'!AW$5","v":0.11724969887718233},{"$f":"'Population at Risk'!Q33/'Population at Risk'!Q$5","v":0.13416832464161996},31]
[null,"Female 60-64",{"$f":"'Population at Risk'!R34/'Population at Risk'!R$5","v":0.11685965908254534},{"$f":"'Population at Risk'!AX34/'Population at Risk'!AX$5","v":9.5848956101359781E-2},{"$f":"'Population at Risk'!S34/'Population at Risk'!S$5","v":9.5641314351387091E-2},{"$f":"'Population at Risk'!T34/'Population at Risk'!T$5","v":7.8419715839041587E-2},{"$f":"'Population at Risk'!U34/'Population at Risk'!U$5","v":0.12923251105267247},{"$f":"'Population at Risk'!D34/'Population at Risk'!D$5","v":0.10045405670077076},{"$f":"'Population at Risk'!E34/'Population at Risk'!E$5","v":0.12838636323015656},{"$f":"'Population at Risk'!BC34/'Population at Risk'!BC$5","v":0.12923251105267247},{"$f":"'Population at Risk'!V34/'Population at Risk'!V$5","v":0.10580820296317396},{"$f":"'Population at Risk'!F34/'Population at Risk'!F$5","v":0.12953598903535427},{"$f":"'Population at Risk'!W34/'Population at Risk'!W$5","v":0.10261569232336906},{"$f":"'Population at Risk'!X34/'Population at Risk'!X$5","v":0.10261569232336906},{"$f":"'Population at Risk'!Y34/'Population at Risk'!Y$5","v":0.10075984330249778},{"$f":"'Population at Risk'!Z34/'Population at Risk'!Z$5","v":6.9110014419146243E-2},{"$f":"'Population at Risk'!AA34/'Population at Risk'!AA$5","v":8.4578707995283484E-2},{"$f":"'Population at Risk'!AB34/'Population at Risk'!AB$5","v":0.10460606836509115},{"$f":"'Population at Risk'!AY34/'Population at Risk'!AY$5","v":9.4581431409524755E-2},{"$f":"'Population at Risk'!AC34/'Population at Risk'!AC$5","v":7.9827920503876854E-2},{"$f":"'Population at Risk'!AD34/'Population at Risk'!AD$5","v":0.11264686490295982},{"$f":"'Population at Risk'!AE34/'Population at Risk'!AE$5","v":0.10814417303722976},{"$f":"'Population at Risk'!G34/'Population at Risk'!G$5","v":0.127119156461307},{"$f":"'Population at Risk'!AF34/'Population at Risk'!AF$5","v":7.8836799913228742E-2},{"$f":"'Population at Risk'!H34/'Population at Risk'!H$5","v":0.10023471566459194},{"$f":"'Population at Risk'!AG34/'Population at Risk'!AG$5","v":0.10814417303722976},{"$f":"'Population at Risk'!AZ34/'Population at Risk'!AZ$5","v":8.676893806119336E-2},{"$f":"'Population at Risk'!I34/'Population at Risk'!I$5","v":0.13536172807940017},{"$f":"'Population at Risk'!J34/'Population at Risk'!J$5","v":9.515403446011983E-2},{"$f":"'Population at Risk'!K34/'Population at Risk'!K$5","v":9.4937564296917132E-2},{"$f":"'Population at Risk'!AH34/'Population at Risk'!AH$5","v":9.3249645874955114E-2},{"$f":"'Population at Risk'!AI34/'Population at Risk'!AI$5","v":8.7973019309314851E-2},{"$f":"'Population at Risk'!BA34/'Population at Risk'!BA$5","v":8.5264450318465315E-2},{"$f":"'Population at Risk'!L34/'Population at Risk'!L$5","v":0.14324975174341389},{"$f":"'Population at Risk'!M34/'Population at Risk'!M$5","v":0.14324975174341389},{"$f":"'Population at Risk'!AJ34/'Population at Risk'!AJ$5","v":0.10443788751695803},{"$f":"'Population at Risk'!AK34/'Population at Risk'!AK$5","v":0.12819564967194094},{"$f":"'Population at Risk'!AL34/'Population at Risk'!AL$5","v":0.10062084224654953},{"$f":"'Population at Risk'!AM34/'Population at Risk'!AM$5","v":8.5881900256868787E-2},{"$f":"'Population at Risk'!N34/'Population at Risk'!N$5","v":5.5605104448879936E-2},{"$f":"'Population at Risk'!AN34/'Population at Risk'!AN$5","v":0.12635738122928908},{"$f":"'Population at Risk'!AO34/'Population at Risk'!AO$5","v":0.12635738122928908},{"$f":"'Population at Risk'!AP34/'Population at Risk'!AP$5","v":0.10135556995206445},{"$f":"'Population at Risk'!C34/'Population at Risk'!C$5","v":7.6496486621837653E-2},{"$f":"'Population at Risk'!AQ34/'Population at Risk'!AQ$5","v":7.9705119577026862E-2},{"$f":"'Population at Risk'!O34/'Population at Risk'!O$5","v":8.8834638338032568E-2},{"$f":"'Population at Risk'!AR34/'Population at Risk'!AR$5","v":9.5867981101632124E-2},{"$f":"'Population at Risk'!AS34/'Population at Risk'!AS$5","v":0.13536172807940017},{"$f":"'Population at Risk'!AT34/'Population at Risk'!AT$5","v":0.116804278068806},{"$f":"'Population at Risk'!AU34/'Population at Risk'!AU$5","v":0.116804278068806},{"$f":"'Population at Risk'!BB34/'Population at Risk'!BB$5","v":9.3373301921660851E-2},{"$f":"'Population at Risk'!P34/'Population at Risk'!P$5","v":0.124072174281184},{"$f":"'Population at Risk'!AV34/'Population at Risk'!AV$5","v":0.11427101000055256},{"$f":"'Population at Risk'!AW34/'Population at Risk'!AW$5","v":0.10196730802130702},{"$f":"'Population at Risk'!Q34/'Population at Risk'!Q$5","v":0.11319602631462415},32]
[null,"Female 65-69",{"$f":"'Population at Risk'!R35/'Population at Risk'!R$5","v":0},{"$f":"'Population at Risk'!AX35/'Population at Risk'!AX$5","v":0},{"$f":"'Population at Risk'!S35/'Population at Risk'!S$5","v":0},{"$f":"'Population at Risk'!T35/'Population at Risk'!T$5","v":0},{"$f":"'Population at Risk'!U35/'Population at Risk'!U$5","v":0},{"$f":"'Population at Risk'!D35/'Population at Risk'!D$5","v":0},{"$f":"'Population at Risk'!E35/'Population at Risk'!E$5","v":0},{"$f":"'Population at Risk'!BC35/'Population at Risk'!BC$5","v":0},{"$f":"'Population at Risk'!V35/'Population at Risk'!V$5","v":0},{"$f":"'Population at Risk'!F35/'Population at Risk'!F$5","v":0},{"$f":"'Population at Risk'!W35/'Population at Risk'!W$5","v":0},{"$f":"'Population at Risk'!X35/'Population at Risk'!X$5","v":0},{"$f":"'Population at Risk'!Y35/'Population at Risk'!Y$5","v":0},{"$f":"'Population at Risk'!Z35/'Population at Risk'!Z$5","v":0},{"$f":"'Population at Risk'!AA35/'Population at Risk'!AA$5","v":0},{"$f":"'Population at Risk'!AB35/'Population at Risk'!AB$5","v":0},{"$f":"'Population at Risk'!AY35/'Population at Risk'!AY$5","v":0},{"$f":"'Population at Risk'!AC35/'Population at Risk'!AC$5","v":0},{"$f":"'Population at Risk'!AD35/'Population at Risk'!AD$5","v":0},{"$f":"'Population at Risk'!AE35/'Population at Risk'!AE$5","v":0},{"$f":"'Population at Risk'!G35/'Population at Risk'!G$5","v":0},{"$f":"'Population at Risk'!AF35/'Population at Risk'!AF$5","v":0},{"$f":"'Population at Risk'!H35/'Population at Risk'!H$5","v":0},{"$f":"'Population at Risk'!AG35/'Population at Risk'!AG$5","v":0},{"$f":"'Population at Risk'!AZ35/'Population at Risk'!AZ$5","v":0},{"$f":"'Population at Risk'!I35/'Population at Risk'!I$5","v":0},{"$f":"'Population at Risk'!J35/'Population at Risk'!J$5","v":0},{"$f":"'Population at Risk'!K35/'Population at Risk'!K$5","v":0},{"$f":"'Population at Risk'!AH35/'Population at Risk'!AH$5","v":0},{"$f":"'Population at Risk'!AI35/'Population at Risk'!AI$5","v":0},{"$f":"'Population at Risk'!BA35/'Population at Risk'!BA$5","v":0},{"$f":"'Population at Risk'!L35/'Population at Risk'!L$5","v":0},{"$f":"'Population at Risk'!M35/'Population at Risk'!M$5","v":0},{"$f":"'Population at Risk'!AJ35/'Population at Risk'!AJ$5","v":0},{"$f":"'Population at Risk'!AK35/'Population at Risk'!AK$5","v":0},{"$f":"'Population at Risk'!AL35/'Population at Risk'!AL$5","v":0},{"$f":"'Population at Risk'!AM35/'Population at Risk'!AM$5","v":0},{"$f":"'Population at Risk'!N35/'Population at Risk'!N$5","v":0},{"$f":"'Population at Risk'!AN35/'Population at Risk'!AN$5","v":0},{"$f":"'Population at Risk'!AO35/'Population at Risk'!AO$5","v":0},{"$f":"'Population at Risk'!AP35/'Population at Risk'!AP$5","v":0},{"$f":"'Population at Risk'!C35/'Population at Risk'!C$5","v":0},{"$f":"'Population at Risk'!AQ35/'Population at Risk'!AQ$5","v":0},{"$f":"'Population at Risk'!O35/'Population at Risk'!O$5","v":0},{"$f":"'Population at Risk'!AR35/'Population at Risk'!AR$5","v":0},{"$f":"'Population at Risk'!AS35/'Population at Risk'!AS$5","v":0},{"$f":"'Population at Risk'!AT35/'Population at Risk'!AT$5","v":0},{"$f":"'Population at Risk'!AU35/'Population at Risk'!AU$5","v":0},{"$f":"'Population at Risk'!BB35/'Population at Risk'!BB$5","v":0},{"$f":"'Population at Risk'!P35/'Population at Risk'!P$5","v":0},{"$f":"'Population at Risk'!AV35/'Population at Risk'!AV$5","v":0},{"$f":"'Population at Risk'!AW35/'Population at Risk'!AW$5","v":0},{"$f":"'Population at Risk'!Q35/'Population at Risk'!Q$5","v":0},33]
[null,"Female 70-74",{"$f":"'Population at Risk'!R36/'Population at Risk'!R$5","v":0},{"$f":"'Population at Risk'!AX36/'Population at Risk'!AX$5","v":0},{"$f":"'Population at Risk'!S36/'Population at Risk'!S$5","v":0},{"$f":"'Population at Risk'!T36/'Population at Risk'!T$5","v":0},{"$f":"'Population at Risk'!U36/'Population at Risk'!U$5","v":0},{"$f":"'Population at Risk'!D36/'Population at Risk'!D$5","v":0},{"$f":"'Population at Risk'!E36/'Population at Risk'!E$5","v":0},{"$f":"'Population at Risk'!BC36/'Population at Risk'!BC$5","v":0},{"$f":"'Population at Risk'!V36/'Population at Risk'!V$5","v":0},{"$f":"'Population at Risk'!F36/'Population at Risk'!F$5","v":0},{"$f":"'Population at Risk'!W36/'Population at Risk'!W$5","v":0},{"$f":"'Population at Risk'!X36/'Population at Risk'!X$5","v":0},{"$f":"'Population at Risk'!Y36/'Population at Risk'!Y$5","v":0},{"$f":"'Population at Risk'!Z36/'Population at Risk'!Z$5","v":0},{"$f":"'Population at Risk'!AA36/'Population at Risk'!AA$5","v":0},{"$f":"'Population at Risk'!AB36/'Population at Risk'!AB$5","v":0},{"$f":"'Population at Risk'!AY36/'Population at Risk'!AY$5","v":0},{"$f":"'Population at Risk'!AC36/'Population at Risk'!AC$5","v":0},{"$f":"'Population at Risk'!AD36/'Population at Risk'!AD$5","v":0},{"$f":"'Population at Risk'!AE36/'Population at Risk'!AE$5","v":0},{"$f":"'Population at Risk'!G36/'Population at Risk'!G$5","v":0},{"$f":"'Population at Risk'!AF36/'Population at Risk'!AF$5","v":0},{"$f":"'Population at Risk'!H36/'Population at Risk'!H$5","v":0},{"$f":"'Population at Risk'!AG36/'Population at Risk'!AG$5","v":0},{"$f":"'Population at Risk'!AZ36/'Population at Risk'!AZ$5","v":0},{"$f":"'Population at Risk'!I36/'Population at Risk'!I$5","v":0},{"$f":"'Population at Risk'!J36/'Population at Risk'!J$5","v":0},{"$f":"'Population at Risk'!K36/'Population at Risk'!K$5","v":0},{"$f":"'Population at Risk'!AH36/'Population at Risk'!AH$5","v":0},{"$f":"'Population at Risk'!AI36/'Population at Risk'!AI$5","v":0},{"$f":"'Population at Risk'!BA36/'Population at Risk'!BA$5","v":0},{"$f":"'Population at Risk'!L36/'Population at Risk'!L$5","v":0},{"$f":"'Population at Risk'!M36/'Population at Risk'!M$5","v":0},{"$f":"'Population at Risk'!AJ36/'Population at Risk'!AJ$5","v":0},{"$f":"'Population at Risk'!AK36/'Population at Risk'!AK$5","v":0},{"$f":"'Population at Risk'!AL36/'Population at Risk'!AL$5","v":0},{"$f":"'Population at Risk'!AM36/'Population at Risk'!AM$5","v":0},{"$f":"'Population at Risk'!N36/'Population at Risk'!N$5","v":0},{"$f":"'Population at Risk'!AN36/'Population at Risk'!AN$5","v":0},{"$f":"'Population at Risk'!AO36/'Population at Risk'!AO$5","v":0},{"$f":"'Population at Risk'!AP36/'Population at Risk'!AP$5","v":0},{"$f":"'Population at Risk'!C36/'Population at Risk'!C$5","v":0},{"$f":"'Population at Risk'!AQ36/'Population at Risk'!AQ$5","v":0},{"$f":"'Population at Risk'!O36/'Population at Risk'!O$5","v":0},{"$f":"'Population at Risk'!AR36/'Population at Risk'!AR$5","v":0},{"$f":"'Population at Risk'!AS36/'Population at Risk'!AS$5","v":0},{"$f":"'Population at Risk'!AT36/'Population at Risk'!AT$5","v":0},{"$f":"'Population at Risk'!AU36/'Population at Risk'!AU$5","v":0},{"$f":"'Population at Risk'!BB36/'Population at Risk'!BB$5","v":0},{"$f":"'Population at Risk'!P36/'Population at Risk'!P$5","v":0},{"$f":"'Population at Risk'!AV36/'Population at Risk'!AV$5","v":0},{"$f":"'Population at Risk'!AW36/'Population at Risk'!AW$5","v":0},{"$f":"'Population at Risk'!Q36/'Population at Risk'!Q$5","v":0},34]
[null,"Female 75-79",{"$f":"'Population at Risk'!R37/'Population at Risk'!R$5","v":0},{"$f":"'Population at Risk'!AX37/'Population at Risk'!AX$5","v":0},{"$f":"'Population at Risk'!S37/'Population at Risk'!S$5","v":0},{"$f":"'Population at Risk'!T37/'Population at Risk'!T$5","v":0},{"$f":"'Population at Risk'!U37/'Population at Risk'!U$5","v":0},{"$f":"'Population at Risk'!D37/'Population at Risk'!D$5","v":0},{"$f":"'Population at Risk'!E37/'Population at Risk'!E$5","v":0},{"$f":"'Population at Risk'!BC37/'Population at Risk'!BC$5","v":0},{"$f":"'Population at Risk'!V37/'Population at Risk'!V$5","v":0},{"$f":"'Population at Risk'!F37/'Population at Risk'!F$5","v":0},{"$f":"'Population at Risk'!W37/'Population at Risk'!W$5","v":0},{"$f":"'Population at Risk'!X37/'Population at Risk'!X$5","v":0},{"$f":"'Population at Risk'!Y37/'Population at Risk'!Y$5","v":0},{"$f":"'Population at Risk'!Z37/'Population at Risk'!Z$5","v":0},{"$f":"'Population at Risk'!AA37/'Population at Risk'!AA$5","v":0},{"$f":"'Population at Risk'!AB37/'Population at Risk'!AB$5","v":0},{"$f":"'Population at Risk'!AY37/'Population at Risk'!AY$5","v":0},{"$f":"'Population at Risk'!AC37/'Population at Risk'!AC$5","v":0},{"$f":"'Population at Risk'!AD37/'Population at Risk'!AD$5","v":0},{"$f":"'Population at Risk'!AE37/'Population at Risk'!AE$5","v":0},{"$f":"'Population at Risk'!G37/'Population at Risk'!G$5","v":0},{"$f":"'Population at Risk'!AF37/'Population at Risk'!AF$5","v":0},{"$f":"'Population at Risk'!H37/'Population at Risk'!H$5","v":0},{"$f":"'Population at Risk'!AG37/'Population at Risk'!AG$5","v":0},{"$f":"'Population at Risk'!AZ37/'Population at Risk'!AZ$5","v":0},{"$f":"'Population at Risk'!I37/'Population at Risk'!I$5","v":0},{"$f":"'Population at Risk'!J37/'Population at Risk'!J$5","v":0},{"$f":"'Population at Risk'!K37/'Population at Risk'!K$5","v":0},{"$f":"'Population at Risk'!AH37/'Population at Risk'!AH$5","v":0},{"$f":"'Population at Risk'!AI37/'Population at Risk'!AI$5","v":0},{"$f":"'Population at Risk'!BA37/'Population at Risk'!BA$5","v":0},{"$f":"'Population at Risk'!L37/'Population at Risk'!L$5","v":0},{"$f":"'Population at Risk'!M37/'Population at Risk'!M$5","v":0},{"$f":"'Population at Risk'!AJ37/'Population at Risk'!AJ$5","v":0},{"$f":"'Population at Risk'!AK37/'Population at Risk'!AK$5","v":0},{"$f":"'Population at Risk'!AL37/'Population at Risk'!AL$5","v":0},{"$f":"'Population at Risk'!AM37/'Population at Risk'!AM$5","v":0},{"$f":"'Population at Risk'!N37/'Population at Risk'!N$5","v":0},{"$f":"'Population at Risk'!AN37/'Population at Risk'!AN$5","v":0},{"$f":"'Population at Risk'!AO37/'Population at Risk'!AO$5","v":0},{"$f":"'Population at Risk'!AP37/'Population at Risk'!AP$5","v":0},{"$f":"'Population at Risk'!C37/'Population at Risk'!C$5","v":0},{"$f":"'Population at Risk'!AQ37/'Population at Risk'!AQ$5","v":0},{"$f":"'Population at Risk'!O37/'Population at Risk'!O$5","v":0},{"$f":"'Population at Risk'!AR37/'Population at Risk'!AR$5","v":0},{"$f":"'Population at Risk'!AS37/'Population at Risk'!AS$5","v":0},{"$f":"'Population at Risk'!AT37/'Population at Risk'!AT$5","v":0},{"$f":"'Population at Risk'!AU37/'Population at Risk'!AU$5","v":0},{"$f":"'Population at Risk'!BB37/'Population at Risk'!BB$5","v":0},{"$f":"'Population at Risk'!P37/'Population at Risk'!P$5","v":0},{"$f":"'Population at Risk'!AV37/'Population at Risk'!AV$5","v":0},{"$f":"'Population at Risk'!AW37/'Population at Risk'!AW$5","v":0},{"$f":"'Population at Risk'!Q37/'Population at Risk'!Q$5","v":0},35]
[null,"Female 80-84",{"$f":"'Population at Risk'!R38/'Population at Risk'!R$5","v":0},{"$f":"'Population at Risk'!AX38/'Population at Risk'!AX$5","v":0},{"$f":"'Population at Risk'!S38/'Population at Risk'!S$5","v":0},{"$f":"'Population at Risk'!T38/'Population at Risk'!T$5","v":0},{"$f":"'Population at Risk'!U38/'Population at Risk'!U$5","v":0},{"$f":"'Population at Risk'!D38/'Population at Risk'!D$5","v":0},{"$f":"'Population at Risk'!E38/'Population at Risk'!E$5","v":0},{"$f":"'Population at Risk'!BC38/'Population at Risk'!BC$5","v":0},{"$f":"'Population at Risk'!V38/'Population at Risk'!V$5","v":0},{"$f":"'Population at Risk'!F38/'Population at Risk'!F$5","v":0},{"$f":"'Population at Risk'!W38/'Population at Risk'!W$5","v":0},{"$f":"'Population at Risk'!X38/'Population at Risk'!X$5","v":0},{"$f":"'Population at Risk'!Y38/'Population at Risk'!Y$5","v":0},{"$f":"'Population at Risk'!Z38/'Population at Risk'!Z$5","v":0},{"$f":"'Population at Risk'!AA38/'Population at Risk'!AA$5","v":0},{"$f":"'Population at Risk'!AB38/'Population at Risk'!AB$5","v":0},{"$f":"'Population at Risk'!AY38/'Population at Risk'!AY$5","v":0},{"$f":"'Population at Risk'!AC38/'Population at Risk'!AC$5","v":0},{"$f":"'Population at Risk'!AD38/'Population at Risk'!AD$5","v":0},{"$f":"'Population at Risk'!AE38/'Population at Risk'!AE$5","v":0},{"$f":"'Population at Risk'!G38/'Population at Risk'!G$5","v":0},{"$f":"'Population at Risk'!AF38/'Population at Risk'!AF$5","v":0},{"$f":"'Population at Risk'!H38/'Population at Risk'!H$5","v":0},{"$f":"'Population at Risk'!AG38/'Population at Risk'!AG$5","v":0},{"$f":"'Population at Risk'!AZ38/'Population at Risk'!AZ$5","v":0},{"$f":"'Population at Risk'!I38/'Population at Risk'!I$5","v":0},{"$f":"'Population at Risk'!J38/'Population at Risk'!J$5","v":0},{"$f":"'Population at Risk'!K38/'Population at Risk'!K$5","v":0},{"$f":"'Population at Risk'!AH38/'Population at Risk'!AH$5","v":0},{"$f":"'Population at Risk'!AI38/'Population at Risk'!AI$5","v":0},{"$f":"'Population at Risk'!BA38/'Population at Risk'!BA$5","v":0},{"$f":"'Population at Risk'!L38/'Population at Risk'!L$5","v":0},{"$f":"'Population at Risk'!M38/'Population at Risk'!M$5","v":0},{"$f":"'Population at Risk'!AJ38/'Population at Risk'!AJ$5","v":0},{"$f":"'Population at Risk'!AK38/'Population at Risk'!AK$5","v":0},{"$f":"'Population at Risk'!AL38/'Population at Risk'!AL$5","v":0},{"$f":"'Population at Risk'!AM38/'Population at Risk'!AM$5","v":0},{"$f":"'Population at Risk'!N38/'Population at Risk'!N$5","v":0},{"$f":"'Population at Risk'!AN38/'Population at Risk'!AN$5","v":0},{"$f":"'Population at Risk'!AO38/'Population at Risk'!AO$5","v":0},{"$f":"'Population at Risk'!AP38/'Population at Risk'!AP$5","v":0},{"$f":"'Population at Risk'!C38/'Population at Risk'!C$5","v":0},{"$f":"'Population at Risk'!AQ38/'Population at Risk'!AQ$5","v":0},{"$f":"'Population at Risk'!O38/'Population at Risk'!O$5","v":0},{"$f":"'Population at Risk'!AR38/'Population at Risk'!AR$5","v":0},{"$f":"'Population at Risk'!AS38/'Population at Risk'!AS$5","v":0},{"$f":"'Population at Risk'!AT38/'Population at Risk'!AT$5","v":0},{"$f":"'Population at Risk'!AU38/'Population at Risk'!AU$5","v":0},{"$f":"'Population at Risk'!BB38/'Population at Risk'!BB$5","v":0},{"$f":"'Population at Risk'!P38/'Population at Risk'!P$5","v":0},{"$f":"'Population at Risk'!AV38/'Population at Risk'!AV$5","v":0},{"$f":"'Population at Risk'!AW38/'Population at Risk'!AW$5","v":0},{"$f":"'Population at Risk'!Q38/'Population at Risk'!Q$5","v":0},36]
[null,"Female 85-89",{"$f":"'Population at Risk'!R39/'Population at Risk'!R$5","v":0},{"$f":"'Population at Risk'!AX39/'Population at Risk'!AX$5","v":0},{"$f":"'Population at Risk'!S39/'Population at Risk'!S$5","v":0},{"$f":"'Population at Risk'!T39/'Population at Risk'!T$5","v":0},{"$f":"'Population at Risk'!U39/'Population at Risk'!U$5","v":0},{"$f":"'Population at Risk'!D39/'Population at Risk'!D$5","v":0},{"$f":"'Population at Risk'!E39/'Population at Risk'!E$5","v":0},{"$f":"'Population at Risk'!BC39/'Population at Risk'!BC$5","v":0},{"$f":"'Population at Risk'!V39/'Population at Risk'!V$5","v":0},{"$f":"'Population at Risk'!F39/'Population at Risk'!F$5","v":0},{"$f":"'Population at Risk'!W39/'Population at Risk'!W$5","v":0},{"$f":"'Population at Risk'!X39/'Population at Risk'!X$5","v":0},{"$f":"'Population at Risk'!Y39/'Population at Risk'!Y$5","v":0},{"$f":"'Population at Risk'!Z39/'Population at Risk'!Z$5","v":0},{"$f":"'Population at Risk'!AA39/'Population at Risk'!AA$5","v":0},{"$f":"'Population at Risk'!AB39/'Population at Risk'!AB$5","v":0},{"$f":"'Population at Risk'!AY39/'Population at Risk'!AY$5","v":0},{"$f":"'Population at Risk'!AC39/'Population at Risk'!AC$5","v":0},{"$f":"'Population at Risk'!AD39/'Population at Risk'!AD$5","v":0},{"$f":"'Population at Risk'!AE39/'Population at Risk'!AE$5","v":0},{"$f":"'Population at Risk'!G39/'Population at Risk'!G$5","v":0},{"$f":"'Population at Risk'!AF39/'Population at Risk'!AF$5","v":0},{"$f":"'Population at Risk'!H39/'Population at Risk'!H$5","v":0},{"$f":"'Population at Risk'!AG39/'Population at Risk'!AG$5","v":0},{"$f":"'Population at Risk'!AZ39/'Population at Risk'!AZ$5","v":0},{"$f":"'Population at Risk'!I39/'Population at Risk'!I$5","v":0},{"$f":"'Population at Risk'!J39/'Population at Risk'!J$5","v":0},{"$f":"'Population at Risk'!K39/'Population at Risk'!K$5","v":0},{"$f":"'Population at Risk'!AH39/'Population at Risk'!AH$5","v":0},{"$f":"'Population at Risk'!AI39/'Population at Risk'!AI$5","v":0},{"$f":"'Population at Risk'!BA39/'Population at Risk'!BA$5","v":0},{"$f":"'Population at Risk'!L39/'Population at Risk'!L$5","v":0},{"$f":"'Population at Risk'!M39/'Population at Risk'!M$5","v":0},{"$f":"'Population at Risk'!AJ39/'Population at Risk'!AJ$5","v":0},{"$f":"'Population at Risk'!AK39/'Population at Risk'!AK$5","v":0},{"$f":"'Population at Risk'!AL39/'Population at Risk'!AL$5","v":0},{"$f":"'Population at Risk'!AM39/'Population at Risk'!AM$5","v":0},{"$f":"'Population at Risk'!N39/'Population at Risk'!N$5","v":0},{"$f":"'Population at Risk'!AN39/'Population at Risk'!AN$5","v":0},{"$f":"'Population at Risk'!AO39/'Population at Risk'!AO$5","v":0},{"$f":"'Population at Risk'!AP39/'Population at Risk'!AP$5","v":0},{"$f":"'Population at Risk'!C39/'Population at Risk'!C$5","v":0},{"$f":"'Population at Risk'!AQ39/'Population at Risk'!AQ$5","v":0},{"$f":"'Population at Risk'!O39/'Population at Risk'!O$5","v":0},{"$f":"'Population at Risk'!AR39/'Population at Risk'!AR$5","v":0},{"$f":"'Population at Risk'!AS39/'Population at Risk'!AS$5","v":0},{"$f":"'Population at Risk'!AT39/'Population at Risk'!AT$5","v":0},{"$f":"'Population at Risk'!AU39/'Population at Risk'!AU$5","v":0},{"$f":"'Population at Risk'!BB39/'Population at Risk'!BB$5","v":0},{"$f":"'Population at Risk'!P39/'Population at Risk'!P$5","v":0},{"$f":"'Population at Risk'!AV39/'Population at Risk'!AV$5","v":0},{"$f":"'Population at Risk'!AW39/'Population at Risk'!AW$5","v":0},{"$f":"'Population at Risk'!Q39/'Population at Risk'!Q$5","v":0},37]
[null,"Female 90+",{"$f":"'Population at Risk'!R40/'Population at Risk'!R$5","v":0},{"$f":"'Population at Risk'!AX40/'Population at Risk'!AX$5","v":0},{"$f":"'Population at Risk'!S40/'Population at Risk'!S$5","v":0},{"$f":"'Population at Risk'!T40/'Population at Risk'!T$5","v":0},{"$f":"'Population at Risk'!U40/'Population at Risk'!U$5","v":0},{"$f":"'Population at Risk'!D40/'Population at Risk'!D$5","v":0},{"$f":"'Population at Risk'!E40/'Population at Risk'!E$5","v":0},{"$f":"'Population at Risk'!BC40/'Population at Risk'!BC$5","v":0},{"$f":"'Population at Risk'!V40/'Population at Risk'!V$5","v":0},{"$f":"'Population at Risk'!F40/'Population at Risk'!F$5","v":0},{"$f":"'Population at Risk'!W40/'Population at Risk'!W$5","v":0},{"$f":"'Population at Risk'!X40/'Population at Risk'!X$5","v":0},{"$f":"'Population at Risk'!Y40/'Population at Risk'!Y$5","v":0},{"$f":"'Population at Risk'!Z40/'Population at Risk'!Z$5","v":0},{"$f":"'Population at Risk'!AA40/'Population at Risk'!AA$5","v":0},{"$f":"'Population at Risk'!AB40/'Population at Risk'!AB$5","v":0},{"$f":"'Population at Risk'!AY40/'Population at Risk'!AY$5","v":0},{"$f":"'Population at Risk'!AC40/'Population at Risk'!AC$5","v":0},{"$f":"'Population at Risk'!AD40/'Population at Risk'!AD$5","v":0},{"$f":"'Population at Risk'!AE40/'Population at Risk'!AE$5","v":0},{"$f":"'Population at Risk'!G40/'Population at Risk'!G$5","v":0},{"$f":"'Population at Risk'!AF40/'Population at Risk'!AF$5","v":0},{"$f":"'Population at Risk'!H40/'Population at Risk'!H$5","v":0},{"$f":"'Population at Risk'!AG40/'Population at Risk'!AG$5","v":0},{"$f":"'Population at Risk'!AZ40/'Population at Risk'!AZ$5","v":0},{"$f":"'Population at Risk'!I40/'Population at Risk'!I$5","v":0},{"$f":"'Population at Risk'!J40/'Population at Risk'!J$5","v":0},{"$f":"'Population at Risk'!K40/'Population at Risk'!K$5","v":0},{"$f":"'Population at Risk'!AH40/'Population at Risk'!AH$5","v":0},{"$f":"'Population at Risk'!AI40/'Population at Risk'!AI$5","v":0},{"$f":"'Population at Risk'!BA40/'Population at Risk'!BA$5","v":0},{"$f":"'Population at Risk'!L40/'Population at Risk'!L$5","v":0},{"$f":"'Population at Risk'!M40/'Population at Risk'!M$5","v":0},{"$f":"'Population at Risk'!AJ40/'Population at Risk'!AJ$5","v":0},{"$f":"'Population at Risk'!AK40/'Population at Risk'!AK$5","v":0},{"$f":"'Population at Risk'!AL40/'Population at Risk'!AL$5","v":0},{"$f":"'Population at Risk'!AM40/'Population at Risk'!AM$5","v":0},{"$f":"'Population at Risk'!N40/'Population at Risk'!N$5","v":0},{"$f":"'Population at Risk'!AN40/'Population at Risk'!AN$5","v":0},{"$f":"'Population at Risk'!AO40/'Population at Risk'!AO$5","v":0},{"$f":"'Population at Risk'!AP40/'Population at Risk'!AP$5","v":0},{"$f":"'Population at Risk'!C40/'Population at Risk'!C$5","v":0},{"$f":"'Population at Risk'!AQ40/'Population at Risk'!AQ$5","v":0},{"$f":"'Population at Risk'!O40/'Population at Risk'!O$5","v":0},{"$f":"'Population at Risk'!AR40/'Population at Risk'!AR$5","v":0},{"$f":"'Population at Risk'!AS40/'Population at Risk'!AS$5","v":0},{"$f":"'Population at Risk'!AT40/'Population at Risk'!AT$5","v":0},{"$f":"'Population at Risk'!AU40/'Population at Risk'!AU$5","v":0},{"$f":"'Population at Risk'!BB40/'Population at Risk'!BB$5","v":0},{"$f":"'Population at Risk'!P40/'Population at Risk'!P$5","v":0},{"$f":"'Population at Risk'!AV40/'Population at Risk'!AV$5","v":0},{"$f":"'Population at Risk'!AW40/'Population at Risk'!AW$5","v":0},{"$f":"'Population at Risk'!Q40/'Population at Risk'!Q$5","v":0},38]
[null,"Male 0-4",{"$f":"'Population at Risk'!R41/'Population at Risk'!R$5","v":0},{"$f":"'Population at Risk'!AX41/'Population at Risk'!AX$5","v":0},{"$f":"'Population at Risk'!S41/'Population at Risk'!S$5","v":0},{"$f":"'Population at Risk'!T41/'Population at Risk'!T$5","v":0},{"$f":"'Population at Risk'!U41/'Population at Risk'!U$5","v":0},{"$f":"'Population at Risk'!D41/'Population at Risk'!D$5","v":0},{"$f":"'Population at Risk'!E41/'Population at Risk'!E$5","v":0},{"$f":"'Population at Risk'!BC41/'Population at Risk'!BC$5","v":0},{"$f":"'Population at Risk'!V41/'Population at Risk'!V$5","v":0},{"$f":"'Population at Risk'!F41/'Population at Risk'!F$5","v":0},{"$f":"'Population at Risk'!W41/'Population at Risk'!W$5","v":0},{"$f":"'Population at Risk'!X41/'Population at Risk'!X$5","v":0},{"$f":"'Population at Risk'!Y41/'Population at Risk'!Y$5","v":0},{"$f":"'Population at Risk'!Z41/'Population at Risk'!Z$5","v":0},{"$f":"'Population at Risk'!AA41/'Population at Risk'!AA$5","v":0},{"$f":"'Population at Risk'!AB41/'Population at Risk'!AB$5","v":0},{"$f":"'Population at Risk'!AY41/'Population at Risk'!AY$5","v":0},{"$f":"'Population at Risk'!AC41/'Population at Risk'!AC$5","v":0},{"$f":"'Population at Risk'!AD41/'Population at Risk'!AD$5","v":0},{"$f":"'Population at Risk'!AE41/'Population at Risk'!AE$5","v":0},{"$f":"'Population at Risk'!G41/'Population at Risk'!G$5","v":0},{"$f":"'Population at Risk'!AF41/'Population at Risk'!AF$5","v":0},{"$f":"'Population at Risk'!H41/'Population at Risk'!H$5","v":0},{"$f":"'Population at Risk'!AG41/'Population at Risk'!AG$5","v":0},{"$f":"'Population at Risk'!AZ41/'Population at Risk'!AZ$5","v":0},{"$f":"'Population at Risk'!I41/'Population at Risk'!I$5","v":0},{"$f":"'Population at Risk'!J41/'Population at Risk'!J$5","v":0},{"$f":"'Population at Risk'!K41/'Population at Risk'!K$5","v":0},{"$f":"'Population at Risk'!AH41/'Population at Risk'!AH$5","v":0},{"$f":"'Population at Risk'!AI41/'Population at Risk'!AI$5","v":0},{"$f":"'Population at Risk'!BA41/'Population at Risk'!BA$5","v":0},{"$f":"'Population at Risk'!L41/'Population at Risk'!L$5","v":0},{"$f":"'Population at Risk'!M41/'Population at Risk'!M$5","v":0},{"$f":"'Population at Risk'!AJ41/'Population at Risk'!AJ$5","v":0},{"$f":"'Population at Risk'!AK41/'Population at Risk'!AK$5","v":0},{"$f":"'Population at Risk'!AL41/'Population at Risk'!AL$5","v":0},{"$f":"'Population at Risk'!AM41/'Population at Risk'!AM$5","v":0},{"$f":"'Population at Risk'!N41/'Population at Risk'!N$5","v":0},{"$f":"'Population at Risk'!AN41/'Population at Risk'!AN$5","v":0},{"$f":"'Population at Risk'!AO41/'Population at Risk'!AO$5","v":0},{"$f":"'Population at Risk'!AP41/'Population at Risk'!AP$5","v":0},{"$f":"'Population at Risk'!C41/'Population at Risk'!C$5","v":0},{"$f":"'Population at Risk'!AQ41/'Population at Risk'!AQ$5","v":0},{"$f":"'Population at Risk'!O41/'Population at Risk'!O$5","v":0},{"$f":"'Population at Risk'!AR41/'Population at Risk'!AR$5","v":0},{"$f":"'Population at Risk'!AS41/'Population at Risk'!AS$5","v":0},{"$f":"'Population at Risk'!AT41/'Population at Risk'!AT$5","v":0},{"$f":"'Population at Risk'!AU41/'Population at Risk'!AU$5","v":0},{"$f":"'Population at Risk'!BB41/'Population at Risk'!BB$5","v":0},{"$f":"'Population at Risk'!P41/'Population at Risk'!P$5","v":0},{"$f":"'Population at Risk'!AV41/'Population at Risk'!AV$5","v":0},{"$f":"'Population at Risk'!AW41/'Population at Risk'!AW$5","v":0},{"$f":"'Population at Risk'!Q41/'Population at Risk'!Q$5","v":0},39]
[null,"Male 5-9",{"$f":"'Population at Risk'!R42/'Population at Risk'!R$5","v":0},{"$f":"'Population at Risk'!AX42/'Population at Risk'!AX$5","v":0},{"$f":"'Population at Risk'!S42/'Population at Risk'!S$5","v":0},{"$f":"'Population at Risk'!T42/'Population at Risk'!T$5","v":0},{"$f":"'Population at Risk'!U42/'Population at Risk'!U$5","v":0},{"$f":"'Population at Risk'!D42/'Population at Risk'!D$5","v":0},{"$f":"'Population at Risk'!E42/'Population at Risk'!E$5","v":0},{"$f":"'Population at Risk'!BC42/'Population at Risk'!BC$5","v":0},{"$f":"'Population at Risk'!V42/'Population at Risk'!V$5","v":0},{"$f":"'Population at Risk'!F42/'Population at Risk'!F$5","v":0},{"$f":"'Population at Risk'!W42/'Population at Risk'!W$5","v":0},{"$f":"'Population at Risk'!X42/'Population at Risk'!X$5","v":0},{"$f":"'Population at Risk'!Y42/'Population at Risk'!Y$5","v":0},{"$f":"'Population at Risk'!Z42/'Population at Risk'!Z$5","v":0},{"$f":"'Population at Risk'!AA42/'Population at Risk'!AA$5","v":0},{"$f":"'Population at Risk'!AB42/'Population at Risk'!AB$5","v":0},{"$f":"'Population at Risk'!AY42/'Population at Risk'!AY$5","v":0},{"$f":"'Population at Risk'!AC42/'Population at Risk'!AC$5","v":0},{"$f":"'Population at Risk'!AD42/'Population at Risk'!AD$5","v":0},{"$f":"'Population at Risk'!AE42/'Population at Risk'!AE$5","v":0},{"$f":"'Population at Risk'!G42/'Population at Risk'!G$5","v":0},{"$f":"'Population at Risk'!AF42/'Population at Risk'!AF$5","v":0},{"$f":"'Population at Risk'!H42/'Population at Risk'!H$5","v":0},{"$f":"'Population at Risk'!AG42/'Population at Risk'!AG$5","v":0},{"$f":"'Population at Risk'!AZ42/'Population at Risk'!AZ$5","v":0},{"$f":"'Population at Risk'!I42/'Population at Risk'!I$5","v":0},{"$f":"'Population at Risk'!J42/'Population at Risk'!J$5","v":0},{"$f":"'Population at Risk'!K42/'Population at Risk'!K$5","v":0},{"$f":"'Population at Risk'!AH42/'Population at Risk'!AH$5","v":0},{"$f":"'Population at Risk'!AI42/'Population at Risk'!AI$5","v":0},{"$f":"'Population at Risk'!BA42/'Population at Risk'!BA$5","v":0},{"$f":"'Population at Risk'!L42/'Population at Risk'!L$5","v":0},{"$f":"'Population at Risk'!M42/'Population at Risk'!M$5","v":0},{"$f":"'Population at Risk'!AJ42/'Population at Risk'!AJ$5","v":0},{"$f":"'Population at Risk'!AK42/'Population at Risk'!AK$5","v":0},{"$f":"'Population at Risk'!AL42/'Population at Risk'!AL$5","v":0},{"$f":"'Population at Risk'!AM42/'Population at Risk'!AM$5","v":0},{"$f":"'Population at Risk'!N42/'Population at Risk'!N$5","v":0},{"$f":"'Population at Risk'!AN42/'Population at Risk'!AN$5","v":0},{"$f":"'Population at Risk'!AO42/'Population at Risk'!AO$5","v":0},{"$f":"'Population at Risk'!AP42/'Population at Risk'!AP$5","v":0},{"$f":"'Population at Risk'!C42/'Population at Risk'!C$5","v":0},{"$f":"'Population at Risk'!AQ42/'Population at Risk'!AQ$5","v":0},{"$f":"'Population at Risk'!O42/'Population at Risk'!O$5","v":0},{"$f":"'Population at Risk'!AR42/'Population at Risk'!AR$5","v":0},{"$f":"'Population at Risk'!AS42/'Population at Risk'!AS$5","v":0},{"$f":"'Population at Risk'!AT42/'Population at Risk'!AT$5","v":0},{"$f":"'Population at Risk'!AU42/'Population at Risk'!AU$5","v":0},{"$f":"'Population at Risk'!BB42/'Population at Risk'!BB$5","v":0},{"$f":"'Population at Risk'!P42/'Population at Risk'!P$5","v":0},{"$f":"'Population at Risk'!AV42/'Population at Risk'!AV$5","v":0},{"$f":"'Population at Risk'!AW42/'Population at Risk'!AW$5","v":0},{"$f":"'Population at Risk'!Q42/'Population at Risk'!Q$5","v":0},40]
[null,"Male 10-15",{"$f":"'Population at Risk'!R43/'Population at Risk'!R$5","v":0},{"$f":"'Population at Risk'!AX43/'Population at Risk'!AX$5","v":0},{"$f":"'Population at Risk'!S43/'Population at Risk'!S$5","v":0},{"$f":"'Population at Risk'!T43/'Population at Risk'!T$5","v":0},{"$f":"'Population at Risk'!U43/'Population at Risk'!U$5","v":0},{"$f":"'Population at Risk'!D43/'Population at Risk'!D$5","v":0},{"$f":"'Population at Risk'!E43/'Population at Risk'!E$5","v":0},{"$f":"'Population at Risk'!BC43/'Population at Risk'!BC$5","v":0},{"$f":"'Population at Risk'!V43/'Population at Risk'!V$5","v":0},{"$f":"'Population at Risk'!F43/'Population at Risk'!F$5","v":0},{"$f":"'Population at Risk'!W43/'Population at Risk'!W$5","v":0},{"$f":"'Population at Risk'!X43/'Population at Risk'!X$5","v":0},{"$f":"'Population at Risk'!Y43/'Population at Risk'!Y$5","v":0},{"$f":"'Population at Risk'!Z43/'Population at Risk'!Z$5","v":0},{"$f":"'Population at Risk'!AA43/'Population at Risk'!AA$5","v":0},{"$f":"'Population at Risk'!AB43/'Population at Risk'!AB$5","v":0},{"$f":"'Population at Risk'!AY43/'Population at Risk'!AY$5","v":0},{"$f":"'Population at Risk'!AC43/'Population at Risk'!AC$5","v":0},{"$f":"'Population at Risk'!AD43/'Population at Risk'!AD$5","v":0},{"$f":"'Population at Risk'!AE43/'Population at Risk'!AE$5","v":0},{"$f":"'Population at Risk'!G43/'Population at Risk'!G$5","v":0},{"$f":"'Population at Risk'!AF43/'Population at Risk'!AF$5","v":0},{"$f":"'Population at Risk'!H43/'Population at Risk'!H$5","v":0},{"$f":"'Population at Risk'!AG43/'Population at Risk'!AG$5","v":0},{"$f":"'Population at Risk'!AZ43/'Population at Risk'!AZ$5","v":0},{"$f":"'Population at Risk'!I43/'Population at Risk'!I$5","v":0},{"$f":"'Population at Risk'!J43/'Population at Risk'!J$5","v":0},{"$f":"'Population at Risk'!K43/'Population at Risk'!K$5","v":0},{"$f":"'Population at Risk'!AH43/'Population at Risk'!AH$5","v":0},{"$f":"'Population at Risk'!AI43/'Population at Risk'!AI$5","v":0},{"$f":"'Population at Risk'!BA43/'Population at Risk'!BA$5","v":0},{"$f":"'Population at Risk'!L43/'Population at Risk'!L$5","v":0},{"$f":"'Population at Risk'!M43/'Population at Risk'!M$5","v":0},{"$f":"'Population at Risk'!AJ43/'Population at Risk'!AJ$5","v":0},{"$f":"'Population at Risk'!AK43/'Population at Risk'!AK$5","v":0},{"$f":"'Population at Risk'!AL43/'Population at Risk'!AL$5","v":0},{"$f":"'Population at Risk'!AM43/'Population at Risk'!AM$5","v":0},{"$f":"'Population at Risk'!N43/'Population at Risk'!N$5","v":0},{"$f":"'Population at Risk'!AN43/'Population at Risk'!AN$5","v":0},{"$f":"'Population at Risk'!AO43/'Population at Risk'!AO$5","v":0},{"$f":"'Population at Risk'!AP43/'Population at Risk'!AP$5","v":0},{"$f":"'Population at Risk'!C43/'Population at Risk'!C$5","v":0},{"$f":"'Population at Risk'!AQ43/'Population at Risk'!AQ$5","v":0},{"$f":"'Population at Risk'!O43/'Population at Risk'!O$5","v":0},{"$f":"'Population at Risk'!AR43/'Population at Risk'!AR$5","v":0},{"$f":"'Population at Risk'!AS43/'Population at Risk'!AS$5","v":0},{"$f":"'Population at Risk'!AT43/'Population at Risk'!AT$5","v":0},{"$f":"'Population at Risk'!AU43/'Population at Risk'!AU$5","v":0},{"$f":"'Population at Risk'!BB43/'Population at Risk'!BB$5","v":0},{"$f":"'Population at Risk'!P43/'Population at Risk'!P$5","v":0},{"$f":"'Population at Risk'!AV43/'Population at Risk'!AV$5","v":0},{"$f":"'Population at Risk'!AW43/'Population at Risk'!AW$5","v":0},{"$f":"'Population at Risk'!Q43/'Population at Risk'!Q$5","v":0},41]
[null,"Male 16-19",{"$f":"'Population at Risk'!R44/'Population at Risk'!R$5","v":3.3083807981896106E-2},{"$f":"'Population at Risk'!AX44/'Population at Risk'!AX$5","v":3.2967555748380242E-2},{"$f":"'Population at Risk'!S44/'Population at Risk'!S$5","v":2.4567864804029924E-2},{"$f":"'Population at Risk'!T44/'Population at Risk'!T$5","v":2.3570655332554539E-2},{"$f":"'Population at Risk'!U44/'Population at Risk'!U$5","v":2.2592983408928125E-2},{"$f":"'Population at Risk'!D44/'Population at Risk'!D$5","v":2.5479414780489311E-2},{"$f":"'Population at Risk'!E44/'Population at Risk'!E$5","v":2.4391231136049744E-2},{"$f":"'Population at Risk'!BC44/'Population at Risk'!BC$5","v":2.2592983408928125E-2},{"$f":"'Population at Risk'!V44/'Population at Risk'!V$5","v":2.3133873045707121E-2},{"$f":"'Population at Risk'!F44/'Population at Risk'!F$5","v":2.3360826788798847E-2},{"$f":"'Population at Risk'!W44/'Population at Risk'!W$5","v":2.6024994835629624E-2},{"$f":"'Population at Risk'!X44/'Population at Risk'!X$5","v":2.6024994835629624E-2},{"$f":"'Population at Risk'!Y44/'Population at Risk'!Y$5","v":2.6892590576731702E-2},{"$f":"'Population at Risk'!Z44/'Population at Risk'!Z$5","v":2.2306827878567099E-2},{"$f":"'Population at Risk'!AA44/'Population at Risk'!AA$5","v":2.5862610437190563E-2},{"$f":"'Population at Risk'!AB44/'Population at Risk'!AB$5","v":2.5593231583220265E-2},{"$f":"'Population at Risk'!AY44/'Population at Risk'!AY$5","v":2.9135364619666752E-2},{"$f":"'Population at Risk'!AC44/'Population at Risk'!AC$5","v":2.5220889920725589E-2},{"$f":"'Population at Risk'!AD44/'Population at Risk'!AD$5","v":2.9948951339584837E-2},{"$f":"'Population at Risk'!AE44/'Population at Risk'!AE$5","v":3.0403202885149937E-2},{"$f":"'Population at Risk'!G44/'Population at Risk'!G$5","v":2.8130599458613136E-2},{"$f":"'Population at Risk'!AF44/'Population at Risk'!AF$5","v":3.0890658399700312E-2},{"$f":"'Population at Risk'!H44/'Population at Risk'!H$5","v":2.7155245601818048E-2},{"$f":"'Population at Risk'!AG44/'Population at Risk'!AG$5","v":3.0403202885149937E-2},{"$f":"'Population at Risk'!AZ44/'Population at Risk'!AZ$5","v":3.2146194985023406E-2},{"$f":"'Population at Risk'!I44/'Population at Risk'!I$5","v":2.2284783903890468E-2},{"$f":"'Population at Risk'!J44/'Population at Risk'!J$5","v":3.1468341157748818E-2},{"$f":"'Population at Risk'!K44/'Population at Risk'!K$5","v":2.858433821676834E-2},{"$f":"'Population at Risk'!AH44/'Population at Risk'!AH$5","v":2.711162724821822E-2},{"$f":"'Population at Risk'!AI44/'Population at Risk'!AI$5","v":2.4223429273892566E-2},{"$f":"'Population at Risk'!BA44/'Population at Risk'!BA$5","v":2.6440108990221155E-2},{"$f":"'Population at Risk'!L44/'Population at Risk'!L$5","v":1.9390289017495597E-2},{"$f":"'Population at Risk'!M44/'Population at Risk'!M$5","v":1.9390289017495597E-2},{"$f":"'Population at Risk'!AJ44/'Population at Risk'!AJ$5","v":2.358721749667439E-2},{"$f":"'Population at Risk'!AK44/'Population at Risk'!AK$5","v":2.5798811502042662E-2},{"$f":"'Population at Risk'!AL44/'Population at Risk'!AL$5","v":2.6791173139770825E-2},{"$f":"'Population at Risk'!AM44/'Population at Risk'!AM$5","v":2.8552197732727366E-2},{"$f":"'Population at Risk'!N44/'Population at Risk'!N$5","v":3.5288996432265476E-2},{"$f":"'Population at Risk'!AN44/'Population at Risk'!AN$5","v":2.5870744708853435E-2},{"$f":"'Population at Risk'!AO44/'Population at Risk'!AO$5","v":2.5870744708853435E-2},{"$f":"'Population at Risk'!AP44/'Population at Risk'!AP$5","v":3.4040715918829151E-2},{"$f":"'Population at Risk'!C44/'Population at Risk'!C$5","v":2.5552107249894922E-2},{"$f":"'Population at Risk'!AQ44/'Population at Risk'!AQ$5","v":2.9873881897667581E-2},{"$f":"'Population at Risk'!O44/'Population at Risk'!O$5","v":2.8207034765904356E-2},{"$f":"'Population at Risk'!AR44/'Population at Risk'!AR$5","v":2.5729121889788511E-2},{"$f":"'Population at Risk'!AS44/'Population at Risk'!AS$5","v":2.2284783903890468E-2},{"$f":"'Population at Risk'!AT44/'Population at Risk'!AT$5","v":2.942039453024067E-2},{"$f":"'Population at Risk'!AU44/'Population at Risk'!AU$5","v":2.942039453024067E-2},{"$f":"'Population at Risk'!BB44/'Population at Risk'!BB$5","v":2.6054263964611836E-2},{"$f":"'Population at Risk'!P44/'Population at Risk'!P$5","v":2.891610151640232E-2},{"$f":"'Population at Risk'!AV44/'Population at Risk'!AV$5","v":2.6128207565853833E-2},{"$f":"'Population at Risk'!AW44/'Population at Risk'!AW$5","v":2.5481024893448029E-2},{"$f":"'Population at Risk'!Q44/'Population at Risk'!Q$5","v":2.4489281880677245E-2},42]
[null,"Male 20-24",{"$f":"'Population at Risk'!R45/'Population at Risk'!R$5","v":3.7885807245138667E-2},{"$f":"'Population at Risk'!AX45/'Population at Risk'!AX$5","v":4.8003918796444035E-2},{"$f":"'Population at Risk'!S45/'Population at Risk'!S$5","v":3.7399979327382808E-2},{"$f":"'Population at Risk'!T45/'Population at Risk'!T$5","v":4.4850344897709497E-2},{"$f":"'Population at Risk'!U45/'Population at Risk'!U$5","v":2.6296396948025328E-2},{"$f":"'Population at Risk'!D45/'Population at Risk'!D$5","v":4.1439407603931611E-2},{"$f":"'Population at Risk'!E45/'Population at Risk'!E$5","v":2.9233784186976655E-2},{"$f":"'Population at Risk'!BC45/'Population at Risk'!BC$5","v":2.6296396948025328E-2},{"$f":"'Population at Risk'!V45/'Population at Risk'!V$5","v":2.9330411773310264E-2},{"$f":"'Population at Risk'!F45/'Population at Risk'!F$5","v":2.8596581107879566E-2},{"$f":"'Population at Risk'!W45/'Population at Risk'!W$5","v":3.5687931604063E-2},{"$f":"'Population at Risk'!X45/'Population at Risk'!X$5","v":3.5687931604063E-2},{"$f":"'Population at Risk'!Y45/'Population at Risk'!Y$5","v":3.5780877002456114E-2},{"$f":"'Population at Risk'!Z45/'Population at Risk'!Z$5","v":4.0735155894694987E-2},{"$f":"'Population at Risk'!AA45/'Population at Risk'!AA$5","v":3.8731795419218729E-2},{"$f":"'Population at Risk'!AB45/'Population at Risk'!AB$5","v":4.0090122255499683E-2},{"$f":"'Population at Risk'!AY45/'Population at Risk'!AY$5","v":4.2293241621841567E-2},{"$f":"'Population at Risk'!AC45/'Population at Risk'!AC$5","v":4.050472763058368E-2},{"$f":"'Population at Risk'!AD45/'Population at Risk'!AD$5","v":3.6847903926750913E-2},{"$f":"'Population at Risk'!AE45/'Population at Risk'!AE$5","v":3.5195045317098765E-2},{"$f":"'Population at Risk'!G45/'Population at Risk'!G$5","v":3.9793394550326974E-2},{"$f":"'Population at Risk'!AF45/'Population at Risk'!AF$5","v":4.1581127751881199E-2},{"$f":"'Population at Risk'!H45/'Population at Risk'!H$5","v":3.519036755528443E-2},{"$f":"'Population at Risk'!AG45/'Population at Risk'!AG$5","v":3.5195045317098765E-2},{"$f":"'Population at Risk'!AZ45/'Population at Risk'!AZ$5","v":4.9092488626468679E-2},{"$f":"'Population at Risk'!I45/'Population at Risk'!I$5","v":2.5677897074477148E-2},{"$f":"'Population at Risk'!J45/'Population at Risk'!J$5","v":4.3741419170672029E-2},{"$f":"'Population at Risk'!K45/'Population at Risk'!K$5","v":3.6217724848359979E-2},{"$f":"'Population at Risk'!AH45/'Population at Risk'!AH$5","v":3.5289662567156432E-2},{"$f":"'Population at Risk'!AI45/'Population at Risk'!AI$5","v":3.9671717135596585E-2},{"$f":"'Population at Risk'!BA45/'Population at Risk'!BA$5","v":3.7600576656729716E-2},{"$f":"'Population at Risk'!L45/'Population at Risk'!L$5","v":2.46059553402087E-2},{"$f":"'Population at Risk'!M45/'Population at Risk'!M$5","v":2.46059553402087E-2},{"$f":"'Population at Risk'!AJ45/'Population at Risk'!AJ$5","v":3.0725024274117507E-2},{"$f":"'Population at Risk'!AK45/'Population at Risk'!AK$5","v":3.3077344019963519E-2},{"$f":"'Population at Risk'!AL45/'Population at Risk'!AL$5","v":3.4903844631688288E-2},{"$f":"'Population at Risk'!AM45/'Population at Risk'!AM$5","v":3.7158334245002471E-2},{"$f":"'Population at Risk'!N45/'Population at Risk'!N$5","v":6.7033529216633456E-2},{"$f":"'Population at Risk'!AN45/'Population at Risk'!AN$5","v":3.0624810181740691E-2},{"$f":"'Population at Risk'!AO45/'Population at Risk'!AO$5","v":3.0624810181740691E-2},{"$f":"'Population at Risk'!AP45/'Population at Risk'!AP$5","v":4.4012742961136983E-2},{"$f":"'Population at Risk'!C45/'Population at Risk'!C$5","v":5.4431396213785926E-2},{"$f":"'Population at Risk'!AQ45/'Population at Risk'!AQ$5","v":4.1468158171762137E-2},{"$f":"'Population at Risk'!O45/'Population at Risk'!O$5","v":3.7391906076588696E-2},{"$f":"'Population at Risk'!AR45/'Population at Risk'!AR$5","v":3.7663845195639062E-2},{"$f":"'Population at Risk'!AS45/'Population at Risk'!AS$5","v":2.5677897074477148E-2},{"$f":"'Population at Risk'!AT45/'Population at Risk'!AT$5","v":3.9374360665547704E-2},{"$f":"'Population at Risk'!AU45/'Population at Risk'!AU$5","v":3.9374360665547704E-2},{"$f":"'Population at Risk'!BB45/'Population at Risk'!BB$5","v":3.4109454103366993E-2},{"$f":"'Population at Risk'!P45/'Population at Risk'!P$5","v":3.6862012886842592E-2},{"$f":"'Population at Risk'!AV45/'Population at Risk'!AV$5","v":3.26024581768804E-2},{"$f":"'Population at Risk'!AW45/'Population at Risk'!AW$5","v":3.3174443750043886E-2},{"$f":"'Population at Risk'!Q45/'Population at Risk'!Q$5","v":3.1986706707309014E-2},43]
[null,"Male 25-29",{"$f":"'Population at Risk'!R46/'Population at Risk'!R$5","v":1.8720585080116068E-2},{"$f":"'Population at Risk'!AX46/'Population at Risk'!AX$5","v":2.8980189878723219E-2},{"$f":"'Population at Risk'!S46/'Population at Risk'!S$5","v":2.9266304461774841E-2},{"$f":"'Population at Risk'!T46/'Population at Risk'!T$5","v":3.9456507915761871E-2},{"$f":"'Population at Risk'!U46/'Population at Risk'!U$5","v":2.082178028294332E-2},{"$f":"'Population at Risk'!D46/'Population at Risk'!D$5","v":3.2491731731530839E-2},{"$f":"'Population at Risk'!E46/'Population at Risk'!E$5","v":1.8019447829096841E-2},{"$f":"'Population at Risk'!BC46/'Population at Risk'!BC$5","v":2.082178028294332E-2},{"$f":"'Population at Risk'!V46/'Population at Risk'!V$5","v":2.2412903913563008E-2},{"$f":"'Population at Risk'!F46/'Population at Risk'!F$5","v":1.983002398172987E-2},{"$f":"'Population at Risk'!W46/'Population at Risk'!W$5","v":2.4900815703707477E-2},{"$f":"'Population at Risk'!X46/'Population at Risk'!X$5","v":2.4900815703707477E-2},{"$f":"'Population at Risk'!Y46/'Population at Risk'!Y$5","v":2.4694946827060527E-2},{"$f":"'Population at Risk'!Z46/'Population at Risk'!Z$5","v":4.1140521428450635E-2},{"$f":"'Population at Risk'!AA46/'Population at Risk'!AA$5","v":3.3736321735196514E-2},{"$f":"'Population at Risk'!AB46/'Population at Risk'!AB$5","v":3.0525663776362365E-2},{"$f":"'Population at Risk'!AY46/'Population at Risk'!AY$5","v":3.1947465135510979E-2},{"$f":"'Population at Risk'!AC46/'Population at Risk'!AC$5","v":3.7044791616561316E-2},{"$f":"'Population at Risk'!AD46/'Population at Risk'!AD$5","v":2.5598052745529915E-2},{"$f":"'Population at Risk'!AE46/'Population at Risk'!AE$5","v":2.6276888619642867E-2},{"$f":"'Population at Risk'!G46/'Population at Risk'!G$5","v":2.336296818795619E-2},{"$f":"'Population at Risk'!AF46/'Population at Risk'!AF$5","v":3.4340052928799013E-2},{"$f":"'Population at Risk'!H46/'Population at Risk'!H$5","v":2.727076712387554E-2},{"$f":"'Population at Risk'!AG46/'Population at Risk'!AG$5","v":2.6276888619642867E-2},{"$f":"'Population at Risk'!AZ46/'Population at Risk'!AZ$5","v":3.947367636172161E-2},{"$f":"'Population at Risk'!I46/'Population at Risk'!I$5","v":1.694760388812239E-2},{"$f":"'Population at Risk'!J46/'Population at Risk'!J$5","v":2.7385945967094507E-2},{"$f":"'Population at Risk'!K46/'Population at Risk'!K$5","v":2.4408971383525508E-2},{"$f":"'Population at Risk'!AH46/'Population at Risk'!AH$5","v":2.7309938592394011E-2},{"$f":"'Population at Risk'!AI46/'Population at Risk'!AI$5","v":3.278828546379247E-2},{"$f":"'Population at Risk'!BA46/'Population at Risk'!BA$5","v":3.2029502203645685E-2},{"$f":"'Population at Risk'!L46/'Population at Risk'!L$5","v":1.8159531017846741E-2},{"$f":"'Population at Risk'!M46/'Population at Risk'!M$5","v":1.8159531017846741E-2},{"$f":"'Population at Risk'!AJ46/'Population at Risk'!AJ$5","v":2.2804249843607557E-2},{"$f":"'Population at Risk'!AK46/'Population at Risk'!AK$5","v":2.0678742449087375E-2},{"$f":"'Population at Risk'!AL46/'Population at Risk'!AL$5","v":2.6173865190500703E-2},{"$f":"'Population at Risk'!AM46/'Population at Risk'!AM$5","v":2.9576358663950818E-2},{"$f":"'Population at Risk'!N46/'Population at Risk'!N$5","v":6.0994222225644969E-2},{"$f":"'Population at Risk'!AN46/'Population at Risk'!AN$5","v":2.2385476111490568E-2},{"$f":"'Population at Risk'!AO46/'Population at Risk'!AO$5","v":2.2385476111490568E-2},{"$f":"'Population at Risk'!AP46/'Population at Risk'!AP$5","v":3.0291413925832289E-2},{"$f":"'Population at Risk'!C46/'Population at Risk'!C$5","v":4.8725789383221106E-2},{"$f":"'Population at Risk'!AQ46/'Population at Risk'!AQ$5","v":3.6089990967278648E-2},{"$f":"'Population at Risk'!O46/'Population at Risk'!O$5","v":3.0223642713384794E-2},{"$f":"'Population at Risk'!AR46/'Population at Risk'!AR$5","v":3.0337473022817217E-2},{"$f":"'Population at Risk'!AS46/'Population at Risk'!AS$5","v":1.694760388812239E-2},{"$f":"'Population at Risk'!AT46/'Population at Risk'!AT$5","v":2.5160130732480603E-2},{"$f":"'Population at Risk'!AU46/'Population at Risk'!AU$5","v":2.5160130732480603E-2},{"$f":"'Population at Risk'!BB46/'Population at Risk'!BB$5","v":2.622500933704763E-2},{"$f":"'Population at Risk'!P46/'Population at Risk'!P$5","v":1.9548656200710935E-2},{"$f":"'Population at Risk'!AV46/'Population at Risk'!AV$5","v":2.5104388152346273E-2},{"$f":"'Population at Risk'!AW46/'Population at Risk'!AW$5","v":2.4749940129799423E-2},{"$f":"'Population at Risk'!Q46/'Population at Risk'!Q$5","v":2.034199413068314E-2},44]
[null,"Male 30-34",{"$f":"'Population at Risk'!R47/'Population at Risk'!R$5","v":1.6319347239481537E-2},{"$f":"'Population at Risk'!AX47/'Population at Risk'!AX$5","v":2.1991770938378234E-2},{"$f":"'Population at Risk'!S47/'Population at Risk'!S$5","v":2.7157322138202478E-2},{"$f":"'Population at Risk'!T47/'Population at Risk'!T$5","v":3.4394250154755709E-2},{"$f":"'Population at Risk'!U47/'Population at Risk'!U$5","v":2.0641861377494471E-2},{"$f":"'Population at Risk'!D47/'Population at Risk'!D$5","v":2.8708096779403943E-2},{"$f":"'Population at Risk'!E47/'Population at Risk'!E$5","v":1.9073269345315176E-2},{"$f":"'Population at Risk'!BC47/'Population at Risk'!BC$5","v":2.0641861377494471E-2},{"$f":"'Population at Risk'!V47/'Population at Risk'!V$5","v":2.2228457799944687E-2},{"$f":"'Population at Risk'!F47/'Population at Risk'!F$5","v":1.9865335078529885E-2},{"$f":"'Population at Risk'!W47/'Population at Risk'!W$5","v":2.4002644840673527E-2},{"$f":"'Population at Risk'!X47/'Population at Risk'!X$5","v":2.4002644840673527E-2},{"$f":"'Population at Risk'!Y47/'Population at Risk'!Y$5","v":2.2785533913369158E-2},{"$f":"'Population at Risk'!Z47/'Population at Risk'!Z$5","v":3.6332832783369989E-2},{"$f":"'Population at Risk'!AA47/'Population at Risk'!AA$5","v":3.1230295703936595E-2},{"$f":"'Population at Risk'!AB47/'Population at Risk'!AB$5","v":2.733847592558716E-2},{"$f":"'Population at Risk'!AY47/'Population at Risk'!AY$5","v":2.8887001046079136E-2},{"$f":"'Population at Risk'!AC47/'Population at Risk'!AC$5","v":3.3316147406675219E-2},{"$f":"'Population at Risk'!AD47/'Population at Risk'!AD$5","v":2.524915082683778E-2},{"$f":"'Population at Risk'!AE47/'Population at Risk'!AE$5","v":2.7288191201420144E-2},{"$f":"'Population at Risk'!G47/'Population at Risk'!G$5","v":1.9835532313017351E-2},{"$f":"'Population at Risk'!AF47/'Population at Risk'!AF$5","v":3.2614488467500986E-2},{"$f":"'Population at Risk'!H47/'Population at Risk'!H$5","v":2.4750567864748454E-2},{"$f":"'Population at Risk'!AG47/'Population at Risk'!AG$5","v":2.7288191201420144E-2},{"$f":"'Population at Risk'!AZ47/'Population at Risk'!AZ$5","v":3.3964181586045979E-2},{"$f":"'Population at Risk'!I47/'Population at Risk'!I$5","v":1.6621010478107486E-2},{"$f":"'Population at Risk'!J47/'Population at Risk'!J$5","v":2.3268028227599259E-2},{"$f":"'Population at Risk'!K47/'Population at Risk'!K$5","v":2.4983173199023358E-2},{"$f":"'Population at Risk'!AH47/'Population at Risk'!AH$5","v":2.717950999247537E-2},{"$f":"'Population at Risk'!AI47/'Population at Risk'!AI$5","v":2.9913580326038969E-2},{"$f":"'Population at Risk'!BA47/'Population at Risk'!BA$5","v":3.0622875087162185E-2},{"$f":"'Population at Risk'!L47/'Population at Risk'!L$5","v":1.6583119532516278E-2},{"$f":"'Population at Risk'!M47/'Population at Risk'!M$5","v":1.6583119532516278E-2},{"$f":"'Population at Risk'!AJ47/'Population at Risk'!AJ$5","v":2.3242991729665628E-2},{"$f":"'Population at Risk'!AK47/'Population at Risk'!AK$5","v":2.0397917508082133E-2},{"$f":"'Population at Risk'!AL47/'Population at Risk'!AL$5","v":2.3750600811597494E-2},{"$f":"'Population at Risk'!AM47/'Population at Risk'!AM$5","v":2.9408983792759774E-2},{"$f":"'Population at Risk'!N47/'Population at Risk'!N$5","v":4.7020203670601612E-2},{"$f":"'Population at Risk'!AN47/'Population at Risk'!AN$5","v":1.9147301417826178E-2},{"$f":"'Population at Risk'!AO47/'Population at Risk'!AO$5","v":1.9147301417826178E-2},{"$f":"'Population at Risk'!AP47/'Population at Risk'!AP$5","v":2.954370864137687E-2},{"$f":"'Population at Risk'!C47/'Population at Risk'!C$5","v":3.9163151052699866E-2},{"$f":"'Population at Risk'!AQ47/'Population at Risk'!AQ$5","v":3.4685512743994729E-2},{"$f":"'Population at Risk'!O47/'Population at Risk'!O$5","v":2.78170457211592E-2},{"$f":"'Population at Risk'!AR47/'Population at Risk'!AR$5","v":2.7888521446212084E-2},{"$f":"'Population at Risk'!AS47/'Population at Risk'!AS$5","v":1.6621010478107486E-2},{"$f":"'Population at Risk'!AT47/'Population at Risk'!AT$5","v":2.3290106531580586E-2},{"$f":"'Population at Risk'!AU47/'Population at Risk'!AU$5","v":2.3290106531580586E-2},{"$f":"'Population at Risk'!BB47/'Population at Risk'!BB$5","v":2.6264091359016754E-2},{"$f":"'Population at Risk'!P47/'Population at Risk'!P$5","v":1.6800429822007069E-2},{"$f":"'Population at Risk'!AV47/'Population at Risk'!AV$5","v":2.2338421666507319E-2},{"$f":"'Population at Risk'!AW47/'Population at Risk'!AW$5","v":2.4661132929727683E-2},{"$f":"'Population at Risk'!Q47/'Population at Risk'!Q$5","v":1.9961587816296845E-2},45]
[null,"Male 35-39",{"$f":"'Population at Risk'!R48/'Population at Risk'!R$5","v":2.1004782650420575E-2},{"$f":"'Population at Risk'!AX48/'Population at Risk'!AX$5","v":2.3521178472774244E-2},{"$f":"'Population at Risk'!S48/'Population at Risk'!S$5","v":3.0109998097671776E-2},{"$f":"'Population at Risk'!T48/'Population at Risk'!T$5","v":3.4588872154363064E-2},{"$f":"'Population at Risk'!U48/'Population at Risk'!U$5","v":2.3040798752487577E-2},{"$f":"'Population at Risk'!D48/'Population at Risk'!D$5","v":2.9179447304297942E-2},{"$f":"'Population at Risk'!E48/'Population at Risk'!E$5","v":2.1129937398257082E-2},{"$f":"'Population at Risk'!BC48/'Population at Risk'!BC$5","v":2.3040798752487577E-2},{"$f":"'Population at Risk'!V48/'Population at Risk'!V$5","v":2.8140649443384021E-2},{"$f":"'Population at Risk'!F48/'Population at Risk'!F$5","v":2.1696906110200195E-2},{"$f":"'Population at Risk'!W48/'Population at Risk'!W$5","v":2.9213517506631613E-2},{"$f":"'Population at Risk'!X48/'Population at Risk'!X$5","v":2.9213517506631613E-2},{"$f":"'Population at Risk'!Y48/'Population at Risk'!Y$5","v":2.7891227970813958E-2},{"$f":"'Population at Risk'!Z48/'Population at Risk'!Z$5","v":3.9417454544730696E-2},{"$f":"'Population at Risk'!AA48/'Population at Risk'!AA$5","v":3.612426364912473E-2},{"$f":"'Population at Risk'!AB48/'Population at Risk'!AB$5","v":2.7783184339378836E-2},{"$f":"'Population at Risk'!AY48/'Population at Risk'!AY$5","v":3.2318087465317863E-2},{"$f":"'Population at Risk'!AC48/'Population at Risk'!AC$5","v":3.6950813261168919E-2},{"$f":"'Population at Risk'!AD48/'Population at Risk'!AD$5","v":2.7667395854922006E-2},{"$f":"'Population at Risk'!AE48/'Population at Risk'!AE$5","v":2.9439847972484987E-2},{"$f":"'Population at Risk'!G48/'Population at Risk'!G$5","v":2.2817587997252468E-2},{"$f":"'Population at Risk'!AF48/'Population at Risk'!AF$5","v":3.748320374302988E-2},{"$f":"'Population at Risk'!H48/'Population at Risk'!H$5","v":3.0549948758427859E-2},{"$f":"'Population at Risk'!AG48/'Population at Risk'!AG$5","v":2.9439847972484987E-2},{"$f":"'Population at Risk'!AZ48/'Population at Risk'!AZ$5","v":3.5256293248989601E-2},{"$f":"'Population at Risk'!I48/'Population at Risk'!I$5","v":1.9456271196803657E-2},{"$f":"'Population at Risk'!J48/'Population at Risk'!J$5","v":2.7278716199754336E-2},{"$f":"'Population at Risk'!K48/'Population at Risk'!K$5","v":3.2937853593379904E-2},{"$f":"'Population at Risk'!AH48/'Population at Risk'!AH$5","v":3.4520938863581069E-2},{"$f":"'Population at Risk'!AI48/'Population at Risk'!AI$5","v":3.1880105189442821E-2},{"$f":"'Population at Risk'!BA48/'Population at Risk'!BA$5","v":3.6498909240602444E-2},{"$f":"'Population at Risk'!L48/'Population at Risk'!L$5","v":1.7802728926252526E-2},{"$f":"'Population at Risk'!M48/'Population at Risk'!M$5","v":1.7802728926252526E-2},{"$f":"'Population at Risk'!AJ48/'Population at Risk'!AJ$5","v":2.7590199399386239E-2},{"$f":"'Population at Risk'!AK48/'Population at Risk'!AK$5","v":2.070877697325257E-2},{"$f":"'Population at Risk'!AL48/'Population at Risk'!AL$5","v":2.980946056654989E-2},{"$f":"'Population at Risk'!AM48/'Population at Risk'!AM$5","v":3.7055977779393033E-2},{"$f":"'Population at Risk'!N48/'Population at Risk'!N$5","v":4.5982030423000433E-2},{"$f":"'Population at Risk'!AN48/'Population at Risk'!AN$5","v":1.9543265850403446E-2},{"$f":"'Population at Risk'!AO48/'Population at Risk'!AO$5","v":1.9543265850403446E-2},{"$f":"'Population at Risk'!AP48/'Population at Risk'!AP$5","v":3.2921559721793239E-2},{"$f":"'Population at Risk'!C48/'Population at Risk'!C$5","v":3.7655343797251835E-2},{"$f":"'Population at Risk'!AQ48/'Population at Risk'!AQ$5","v":3.9089606248320988E-2},{"$f":"'Population at Risk'!O48/'Population at Risk'!O$5","v":3.3086155376039428E-2},{"$f":"'Population at Risk'!AR48/'Population at Risk'!AR$5","v":3.1448042528828039E-2},{"$f":"'Population at Risk'!AS48/'Population at Risk'!AS$5","v":1.9456271196803657E-2},{"$f":"'Population at Risk'!AT48/'Population at Risk'!AT$5","v":2.5127141729171319E-2},{"$f":"'Population at Risk'!AU48/'Population at Risk'!AU$5","v":2.5127141729171319E-2},{"$f":"'Population at Risk'!BB48/'Population at Risk'!BB$5","v":3.1108467885728752E-2},{"$f":"'Population at Risk'!P48/'Population at Risk'!P$5","v":1.941269723127657E-2},{"$f":"'Population at Risk'!AV48/'Population at Risk'!AV$5","v":2.8301661155121647E-2},{"$f":"'Population at Risk'!AW48/'Population at Risk'!AW$5","v":3.165612900850534E-2},{"$f":"'Population at Risk'!Q48/'Population at Risk'!Q$5","v":2.319663860465368E-2},46]
[null,"Male 40-44",{"$f":"'Population at Risk'!R49/'Population at Risk'!R$5","v":2.4439777399468114E-2},{"$f":"'Population at Risk'!AX49/'Population at Risk'!AX$5","v":2.5070331767748692E-2},{"$f":"'Population at Risk'!S49/'Population at Risk'!S$5","v":3.0036270095692669E-2},{"$f":"'Population at Risk'!T49/'Population at Risk'!T$5","v":3.0433750393783883E-2},{"$f":"'Population at Risk'!U49/'Population at Risk'!U$5","v":2.8194942405393875E-2},{"$f":"'Population at Risk'!D49/'Population at Risk'!D$5","v":2.7365628390321074E-2},{"$f":"'Population at Risk'!E49/'Population at Risk'!E$5","v":2.2613370717707852E-2},{"$f":"'Population at Risk'!BC49/'Population at Risk'!BC$5","v":2.8194942405393875E-2},{"$f":"'Population at Risk'!V49/'Population at Risk'!V$5","v":3.005547141356938E-2},{"$f":"'Population at Risk'!F49/'Population at Risk'!F$5","v":2.3161070780083424E-2},{"$f":"'Population at Risk'!W49/'Population at Risk'!W$5","v":3.0674210429649653E-2},{"$f":"'Population at Risk'!X49/'Population at Risk'!X$5","v":3.0674210429649653E-2},{"$f":"'Population at Risk'!Y49/'Population at Risk'!Y$5","v":2.9723267604360948E-2},{"$f":"'Population at Risk'!Z49/'Population at Risk'!Z$5","v":3.4083859232345581E-2},{"$f":"'Population at Risk'!AA49/'Population at Risk'!AA$5","v":3.4494810362481823E-2},{"$f":"'Population at Risk'!AB49/'Population at Risk'!AB$5","v":2.6521047250807457E-2},{"$f":"'Population at Risk'!AY49/'Population at Risk'!AY$5","v":3.201639798492685E-2},{"$f":"'Population at Risk'!AC49/'Population at Risk'!AC$5","v":3.3640407930756275E-2},{"$f":"'Population at Risk'!AD49/'Population at Risk'!AD$5","v":2.9372425534008054E-2},{"$f":"'Population at Risk'!AE49/'Population at Risk'!AE$5","v":3.0729194468799358E-2},{"$f":"'Population at Risk'!G49/'Population at Risk'!G$5","v":2.5453751126183314E-2},{"$f":"'Population at Risk'!AF49/'Population at Risk'!AF$5","v":3.8184730751364832E-2},{"$f":"'Population at Risk'!H49/'Population at Risk'!H$5","v":3.434060143121985E-2},{"$f":"'Population at Risk'!AG49/'Population at Risk'!AG$5","v":3.0729194468799358E-2},{"$f":"'Population at Risk'!AZ49/'Population at Risk'!AZ$5","v":3.2913123072021308E-2},{"$f":"'Population at Risk'!I49/'Population at Risk'!I$5","v":2.3081571071313176E-2},{"$f":"'Population at Risk'!J49/'Population at Risk'!J$5","v":2.8984746055659875E-2},{"$f":"'Population at Risk'!K49/'Population at Risk'!K$5","v":3.4871767607702359E-2},{"$f":"'Population at Risk'!AH49/'Population at Risk'!AH$5","v":3.6157786723971803E-2},{"$f":"'Population at Risk'!AI49/'Population at Risk'!AI$5","v":3.0653592767785062E-2},{"$f":"'Population at Risk'!BA49/'Population at Risk'!BA$5","v":3.4827328371695478E-2},{"$f":"'Population at Risk'!L49/'Population at Risk'!L$5","v":2.1113690895438648E-2},{"$f":"'Population at Risk'!M49/'Population at Risk'!M$5","v":2.1113690895438648E-2},{"$f":"'Population at Risk'!AJ49/'Population at Risk'!AJ$5","v":2.884132027955057E-2},{"$f":"'Population at Risk'!AK49/'Population at Risk'!AK$5","v":2.2112414017912151E-2},{"$f":"'Population at Risk'!AL49/'Population at Risk'!AL$5","v":3.3508534189165294E-2},{"$f":"'Population at Risk'!AM49/'Population at Risk'!AM$5","v":3.8582418386803242E-2},{"$f":"'Population at Risk'!N49/'Population at Risk'!N$5","v":4.0493930647481163E-2},{"$f":"'Population at Risk'!AN49/'Population at Risk'!AN$5","v":2.3305952347316982E-2},{"$f":"'Population at Risk'!AO49/'Population at Risk'!AO$5","v":2.3305952347316982E-2},{"$f":"'Population at Risk'!AP49/'Population at Risk'!AP$5","v":3.0285644183035268E-2},{"$f":"'Population at Risk'!C49/'Population at Risk'!C$5","v":3.1864377228399313E-2},{"$f":"'Population at Risk'!AQ49/'Population at Risk'!AQ$5","v":3.7077032254212515E-2},{"$f":"'Population at Risk'!O49/'Population at Risk'!O$5","v":3.8145988178413352E-2},{"$f":"'Population at Risk'!AR49/'Population at Risk'!AR$5","v":3.1165353437763846E-2},{"$f":"'Population at Risk'!AS49/'Population at Risk'!AS$5","v":2.3081571071313176E-2},{"$f":"'Population at Risk'!AT49/'Population at Risk'!AT$5","v":2.7284417610920264E-2},{"$f":"'Population at Risk'!AU49/'Population at Risk'!AU$5","v":2.7284417610920264E-2},{"$f":"'Population at Risk'!BB49/'Population at Risk'!BB$5","v":3.3393877671053465E-2},{"$f":"'Population at Risk'!P49/'Population at Risk'!P$5","v":2.2277334862512353E-2},{"$f":"'Population at Risk'!AV49/'Population at Risk'!AV$5","v":3.0695253551672498E-2},{"$f":"'Population at Risk'!AW49/'Population at Risk'!AW$5","v":3.3416642364634874E-2},{"$f":"'Population at Risk'!Q49/'Population at Risk'!Q$5","v":2.7971005477992483E-2},47]
[null,"Male 45-49",{"$f":"'Population at Risk'!R50/'Population at Risk'!R$5","v":3.0589854274008278E-2},{"$f":"'Population at Risk'!AX50/'Population at Risk'!AX$5","v":3.5550818445023613E-2},{"$f":"'Population at Risk'!S50/'Population at Risk'!S$5","v":3.7453707606360374E-2},{"$f":"'Population at Risk'!T50/'Population at Risk'!T$5","v":3.2377987775520735E-2},{"$f":"'Population at Risk'!U50/'Population at Risk'!U$5","v":5.0005639624077142E-2},{"$f":"'Population at Risk'!D50/'Population at Risk'!D$5","v":3.3848851286798688E-2},{"$f":"'Population at Risk'!E50/'Population at Risk'!E$5","v":3.0893678576272531E-2},{"$f":"'Population at Risk'!BC50/'Population at Risk'!BC$5","v":5.0005639624077142E-2},{"$f":"'Population at Risk'!V50/'Population at Risk'!V$5","v":3.9399386869784836E-2},{"$f":"'Population at Risk'!F50/'Population at Risk'!F$5","v":3.3334015933501646E-2},{"$f":"'Population at Risk'!W50/'Population at Risk'!W$5","v":4.1475003455645539E-2},{"$f":"'Population at Risk'!X50/'Population at Risk'!X$5","v":4.1475003455645539E-2},{"$f":"'Population at Risk'!Y50/'Population at Risk'!Y$5","v":4.0108468143416627E-2},{"$f":"'Population at Risk'!Z50/'Population at Risk'!Z$5","v":3.8070009669184862E-2},{"$f":"'Population at Risk'!AA50/'Population at Risk'!AA$5","v":4.2276625323042341E-2},{"$f":"'Population at Risk'!AB50/'Population at Risk'!AB$5","v":3.4210574714102507E-2},{"$f":"'Population at Risk'!AY50/'Population at Risk'!AY$5","v":4.382048142809826E-2},{"$f":"'Population at Risk'!AC50/'Population at Risk'!AC$5","v":4.0220247290686024E-2},{"$f":"'Population at Risk'!AD50/'Population at Risk'!AD$5","v":4.4158856742779709E-2},{"$f":"'Population at Risk'!AE50/'Population at Risk'!AE$5","v":4.5141023427953911E-2},{"$f":"'Population at Risk'!G50/'Population at Risk'!G$5","v":4.0745747225668726E-2},{"$f":"'Population at Risk'!AF50/'Population at Risk'!AF$5","v":5.1716577267948066E-2},{"$f":"'Population at Risk'!H50/'Population at Risk'!H$5","v":4.4357580543957387E-2},{"$f":"'Population at Risk'!AG50/'Population at Risk'!AG$5","v":4.5141023427953911E-2},{"$f":"'Population at Risk'!AZ50/'Population at Risk'!AZ$5","v":4.5638580574010539E-2},{"$f":"'Population at Risk'!I50/'Population at Risk'!I$5","v":3.6921335170112569E-2},{"$f":"'Population at Risk'!J50/'Population at Risk'!J$5","v":4.0607026748982124E-2},{"$f":"'Population at Risk'!K50/'Population at Risk'!K$5","v":4.8164404403689208E-2},{"$f":"'Population at Risk'!AH50/'Population at Risk'!AH$5","v":4.6275891738742747E-2},{"$f":"'Population at Risk'!AI50/'Population at Risk'!AI$5","v":3.575373150104541E-2},{"$f":"'Population at Risk'!BA50/'Population at Risk'!BA$5","v":4.5389237628364124E-2},{"$f":"'Population at Risk'!L50/'Population at Risk'!L$5","v":3.2404894150638755E-2},{"$f":"'Population at Risk'!M50/'Population at Risk'!M$5","v":3.2404894150638755E-2},{"$f":"'Population at Risk'!AJ50/'Population at Risk'!AJ$5","v":3.845397640215726E-2},{"$f":"'Population at Risk'!AK50/'Population at Risk'!AK$5","v":3.5491715249879062E-2},{"$f":"'Population at Risk'!AL50/'Population at Risk'!AL$5","v":4.28658036453715E-2},{"$f":"'Population at Risk'!AM50/'Population at Risk'!AM$5","v":4.8392612452634758E-2},{"$f":"'Population at Risk'!N50/'Population at Risk'!N$5","v":5.2304659894569748E-2},{"$f":"'Population at Risk'!AN50/'Population at Risk'!AN$5","v":3.79019285245948E-2},{"$f":"'Population at Risk'!AO50/'Population at Risk'!AO$5","v":3.79019285245948E-2},{"$f":"'Population at Risk'!AP50/'Population at Risk'!AP$5","v":4.5357286828604508E-2},{"$f":"'Population at Risk'!C50/'Population at Risk'!C$5","v":3.5807615913789531E-2},{"$f":"'Population at Risk'!AQ50/'Population at Risk'!AQ$5","v":5.0439585551359092E-2},{"$f":"'Population at Risk'!O50/'Population at Risk'!O$5","v":4.8742697318907277E-2},{"$f":"'Population at Risk'!AR50/'Population at Risk'!AR$5","v":3.9891926992242782E-2},{"$f":"'Population at Risk'!AS50/'Population at Risk'!AS$5","v":3.6921335170112569E-2},{"$f":"'Population at Risk'!AT50/'Population at Risk'!AT$5","v":3.9297691149882193E-2},{"$f":"'Population at Risk'!AU50/'Population at Risk'!AU$5","v":3.9297691149882193E-2},{"$f":"'Population at Risk'!BB50/'Population at Risk'!BB$5","v":4.278116811281963E-2},{"$f":"'Population at Risk'!P50/'Population at Risk'!P$5","v":3.0420727588062635E-2},{"$f":"'Population at Risk'!AV50/'Population at Risk'!AV$5","v":4.0889013779906815E-2},{"$f":"'Population at Risk'!AW50/'Population at Risk'!AW$5","v":4.3877681351595213E-2},{"$f":"'Population at Risk'!Q50/'Population at Risk'!Q$5","v":3.6701696364837694E-2},48]
[null,"Male 50-54",{"$f":"'Population at Risk'!R51/'Population at Risk'!R$5","v":3.5259115966527636E-2},{"$f":"'Population at Risk'!AX51/'Population at Risk'!AX$5","v":3.8745677280952427E-2},{"$f":"'Population at Risk'!S51/'Population at Risk'!S$5","v":3.7866051228329249E-2},{"$f":"'Population at Risk'!T51/'Population at Risk'!T$5","v":3.237634816972209E-2},{"$f":"'Population at Risk'!U51/'Population at Risk'!U$5","v":4.9447790595173388E-2},{"$f":"'Population at Risk'!D51/'Population at Risk'!D$5","v":3.3789006737919222E-2},{"$f":"'Population at Risk'!E51/'Population at Risk'!E$5","v":3.1237695038253344E-2},{"$f":"'Population at Risk'!BC51/'Population at Risk'!BC$5","v":4.9447790595173388E-2},{"$f":"'Population at Risk'!V51/'Population at Risk'!V$5","v":3.9087468292645512E-2},{"$f":"'Population at Risk'!F51/'Population at Risk'!F$5","v":3.7054370974156564E-2},{"$f":"'Population at Risk'!W51/'Population at Risk'!W$5","v":4.0866501893074419E-2},{"$f":"'Population at Risk'!X51/'Population at Risk'!X$5","v":4.0866501893074419E-2},{"$f":"'Population at Risk'!Y51/'Population at Risk'!Y$5","v":4.0832978215707971E-2},{"$f":"'Population at Risk'!Z51/'Population at Risk'!Z$5","v":3.8469606277677558E-2},{"$f":"'Population at Risk'!AA51/'Population at Risk'!AA$5","v":4.3767805110802048E-2},{"$f":"'Population at Risk'!AB51/'Population at Risk'!AB$5","v":3.404870200436378E-2},{"$f":"'Population at Risk'!AY51/'Population at Risk'!AY$5","v":4.5229080332622247E-2},{"$f":"'Population at Risk'!AC51/'Population at Risk'!AC$5","v":4.2445906798549628E-2},{"$f":"'Population at Risk'!AD51/'Population at Risk'!AD$5","v":4.9312840803547031E-2},{"$f":"'Population at Risk'!AE51/'Population at Risk'!AE$5","v":5.0241783470993576E-2},{"$f":"'Population at Risk'!G51/'Population at Risk'!G$5","v":4.5894705164926768E-2},{"$f":"'Population at Risk'!AF51/'Population at Risk'!AF$5","v":6.112769195918509E-2},{"$f":"'Population at Risk'!H51/'Population at Risk'!H$5","v":4.7821523026020017E-2},{"$f":"'Population at Risk'!AG51/'Population at Risk'!AG$5","v":5.0241783470993576E-2},{"$f":"'Population at Risk'!AZ51/'Population at Risk'!AZ$5","v":4.9361704906026226E-2},{"$f":"'Population at Risk'!I51/'Population at Risk'!I$5","v":4.0954566005315385E-2},{"$f":"'Population at Risk'!J51/'Population at Risk'!J$5","v":4.2662894350295973E-2},{"$f":"'Population at Risk'!K51/'Population at Risk'!K$5","v":4.8352240701202316E-2},{"$f":"'Population at Risk'!AH51/'Population at Risk'!AH$5","v":4.6339946087509173E-2},{"$f":"'Population at Risk'!AI51/'Population at Risk'!AI$5","v":3.6157842832960842E-2},{"$f":"'Population at Risk'!BA51/'Population at Risk'!BA$5","v":5.36209588175122E-2},{"$f":"'Population at Risk'!L51/'Population at Risk'!L$5","v":3.7365714872068169E-2},{"$f":"'Population at Risk'!M51/'Population at Risk'!M$5","v":3.7365714872068169E-2},{"$f":"'Population at Risk'!AJ51/'Population at Risk'!AJ$5","v":3.9622617675544661E-2},{"$f":"'Population at Risk'!AK51/'Population at Risk'!AK$5","v":3.4842099313372434E-2},{"$f":"'Population at Risk'!AL51/'Population at Risk'!AL$5","v":4.6600319397133397E-2},{"$f":"'Population at Risk'!AM51/'Population at Risk'!AM$5","v":4.8707728608037966E-2},{"$f":"'Population at Risk'!N51/'Population at Risk'!N$5","v":5.3861575134107963E-2},{"$f":"'Population at Risk'!AN51/'Population at Risk'!AN$5","v":4.4400086820322864E-2},{"$f":"'Population at Risk'!AO51/'Population at Risk'!AO$5","v":4.4400086820322864E-2},{"$f":"'Population at Risk'!AP51/'Population at Risk'!AP$5","v":5.1254634686463983E-2},{"$f":"'Population at Risk'!C51/'Population at Risk'!C$5","v":3.5252545166367298E-2},{"$f":"'Population at Risk'!AQ51/'Population at Risk'!AQ$5","v":5.2763350892701039E-2},{"$f":"'Population at Risk'!O51/'Population at Risk'!O$5","v":5.1599635635062771E-2},{"$f":"'Population at Risk'!AR51/'Population at Risk'!AR$5","v":4.1484090578944602E-2},{"$f":"'Population at Risk'!AS51/'Population at Risk'!AS$5","v":4.0954566005315385E-2},{"$f":"'Population at Risk'!AT51/'Population at Risk'!AT$5","v":4.5899330289885916E-2},{"$f":"'Population at Risk'!AU51/'Population at Risk'!AU$5","v":4.5899330289885916E-2},{"$f":"'Population at Risk'!BB51/'Population at Risk'!BB$5","v":4.2180624730120658E-2},{"$f":"'Population at Risk'!P51/'Population at Risk'!P$5","v":3.4492944108109144E-2},{"$f":"'Population at Risk'!AV51/'Population at Risk'!AV$5","v":4.4619092343129864E-2},{"$f":"'Population at Risk'!AW51/'Population at Risk'!AW$5","v":4.3659193984154514E-2},{"$f":"'Population at Risk'!Q51/'Population at Risk'!Q$5","v":4.0453421980582036E-2},49]
[null,"Male 55-59",{"$f":"'Population at Risk'!R52/'Population at Risk'!R$5","v":8.8928836975459585E-2},{"$f":"'Population at Risk'!AX52/'Population at Risk'!AX$5","v":7.683527788024698E-2},{"$f":"'Population at Risk'!S52/'Population at Risk'!S$5","v":7.0653064775163074E-2},{"$f":"'Population at Risk'!T52/'Population at Risk'!T$5","v":6.3611502980656806E-2},{"$f":"'Population at Risk'!U52/'Population at Risk'!U$5","v":8.6206999364762213E-2},{"$f":"'Population at Risk'!D52/'Population at Risk'!D$5","v":7.7557953610977559E-2},{"$f":"'Population at Risk'!E52/'Population at Risk'!E$5","v":7.4494224907251716E-2},{"$f":"'Population at Risk'!BC52/'Population at Risk'!BC$5","v":8.6206999364762213E-2},{"$f":"'Population at Risk'!V52/'Population at Risk'!V$5","v":6.7174064174025536E-2},{"$f":"'Population at Risk'!F52/'Population at Risk'!F$5","v":6.7484046574151108E-2},{"$f":"'Population at Risk'!W52/'Population at Risk'!W$5","v":7.5159128275893439E-2},{"$f":"'Population at Risk'!X52/'Population at Risk'!X$5","v":7.5159128275893439E-2},{"$f":"'Population at Risk'!Y52/'Population at Risk'!Y$5","v":7.2419866781268383E-2},{"$f":"'Population at Risk'!Z52/'Population at Risk'!Z$5","v":5.3824960420982712E-2},{"$f":"'Population at Risk'!AA52/'Population at Risk'!AA$5","v":6.967954968968508E-2},{"$f":"'Population at Risk'!AB52/'Population at Risk'!AB$5","v":7.6678322691916379E-2},{"$f":"'Population at Risk'!AY52/'Population at Risk'!AY$5","v":8.2677349682738044E-2},{"$f":"'Population at Risk'!AC52/'Population at Risk'!AC$5","v":6.6826029460861386E-2},{"$f":"'Population at Risk'!AD52/'Population at Risk'!AD$5","v":9.3895716640586699E-2},{"$f":"'Population at Risk'!AE52/'Population at Risk'!AE$5","v":9.6597838780100628E-2},{"$f":"'Population at Risk'!G52/'Population at Risk'!G$5","v":8.5200246328770199E-2},{"$f":"'Population at Risk'!AF52/'Population at Risk'!AF$5","v":9.3099757243203393E-2},{"$f":"'Population at Risk'!H52/'Population at Risk'!H$5","v":7.9592468028228877E-2},{"$f":"'Population at Risk'!AG52/'Population at Risk'!AG$5","v":9.6597838780100628E-2},{"$f":"'Population at Risk'!AZ52/'Population at Risk'!AZ$5","v":8.9701321995950781E-2},{"$f":"'Population at Risk'!I52/'Population at Risk'!I$5","v":7.677339571425755E-2},{"$f":"'Population at Risk'!J52/'Population at Risk'!J$5","v":7.8442830797083654E-2},{"$f":"'Population at Risk'!K52/'Population at Risk'!K$5","v":7.9876864438929787E-2},{"$f":"'Population at Risk'!AH52/'Population at Risk'!AH$5","v":7.5229969146325473E-2},{"$f":"'Population at Risk'!AI52/'Population at Risk'!AI$5","v":6.7905131980549718E-2},{"$f":"'Population at Risk'!BA52/'Population at Risk'!BA$5","v":7.7399531098665306E-2},{"$f":"'Population at Risk'!L52/'Population at Risk'!L$5","v":6.6545892726603648E-2},{"$f":"'Population at Risk'!M52/'Population at Risk'!M$5","v":6.6545892726603648E-2},{"$f":"'Population at Risk'!AJ52/'Population at Risk'!AJ$5","v":7.0695324585587874E-2},{"$f":"'Population at Risk'!AK52/'Population at Risk'!AK$5","v":7.1433255610966598E-2},{"$f":"'Population at Risk'!AL52/'Population at Risk'!AL$5","v":7.392308821850789E-2},{"$f":"'Population at Risk'!AM52/'Population at Risk'!AM$5","v":7.2787778413576004E-2},{"$f":"'Population at Risk'!N52/'Population at Risk'!N$5","v":9.1131118816554751E-2},{"$f":"'Population at Risk'!AN52/'Population at Risk'!AN$5","v":9.3610069108136629E-2},{"$f":"'Population at Risk'!AO52/'Population at Risk'!AO$5","v":9.3610069108136629E-2},{"$f":"'Population at Risk'!AP52/'Population at Risk'!AP$5","v":0.10143723566393389},{"$f":"'Population at Risk'!C52/'Population at Risk'!C$5","v":7.7472495969913402E-2},{"$f":"'Population at Risk'!AQ52/'Population at Risk'!AQ$5","v":9.0356195650833832E-2},{"$f":"'Population at Risk'!O52/'Population at Risk'!O$5","v":8.1382687322130498E-2},{"$f":"'Population at Risk'!AR52/'Population at Risk'!AR$5","v":7.3030493146954673E-2},{"$f":"'Population at Risk'!AS52/'Population at Risk'!AS$5","v":7.677339571425755E-2},{"$f":"'Population at Risk'!AT52/'Population at Risk'!AT$5","v":8.9368620734585541E-2},{"$f":"'Population at Risk'!AU52/'Population at Risk'!AU$5","v":8.9368620734585541E-2},{"$f":"'Population at Risk'!BB52/'Population at Risk'!BB$5","v":7.1519529341643046E-2},{"$f":"'Population at Risk'!P52/'Population at Risk'!P$5","v":8.7359803604782391E-2},{"$f":"'Population at Risk'!AV52/'Population at Risk'!AV$5","v":8.4929449798910872E-2},{"$f":"'Population at Risk'!AW52/'Population at Risk'!AW$5","v":7.7951709969627872E-2},{"$f":"'Population at Risk'!Q52/'Population at Risk'!Q$5","v":8.0050980097141289E-2},50]
[null,"Male 60-64",{"$f":"'Population at Risk'!R53/'Population at Risk'!R$5","v":7.6144191883510751E-2},{"$f":"'Population at Risk'!AX53/'Population at Risk'!AX$5","v":6.4078070011287167E-2},{"$f":"'Population at Risk'!S53/'Population at Risk'!S$5","v":5.9927113464473492E-2},{"$f":"'Population at Risk'!T53/'Population at Risk'!T$5","v":5.3780526609394384E-2},{"$f":"'Population at Risk'!U53/'Population at Risk'!U$5","v":8.3902372907099024E-2},{"$f":"'Population at Risk'!D53/'Population at Risk'!D$5","v":6.8761742653291505E-2},{"$f":"'Population at Risk'!E53/'Population at Risk'!E$5","v":6.6335903142119707E-2},{"$f":"'Population at Risk'!BC53/'Population at Risk'!BC$5","v":8.3902372907099024E-2},{"$f":"'Population at Risk'!V53/'Population at Risk'!V$5","v":5.523236630833022E-2},{"$f":"'Population at Risk'!F53/'Population at Risk'!F$5","v":6.2128350246594861E-2},{"$f":"'Population at Risk'!W53/'Population at Risk'!W$5","v":6.4432293525442066E-2},{"$f":"'Population at Risk'!X53/'Population at Risk'!X$5","v":6.4432293525442066E-2},{"$f":"'Population at Risk'!Y53/'Population at Risk'!Y$5","v":6.0305426753667402E-2},{"$f":"'Population at Risk'!Z53/'Population at Risk'!Z$5","v":4.3939546744197262E-2},{"$f":"'Population at Risk'!AA53/'Population at Risk'!AA$5","v":5.8085590997496023E-2},{"$f":"'Population at Risk'!AB53/'Population at Risk'!AB$5","v":6.8157354695953368E-2},{"$f":"'Population at Risk'!AY53/'Population at Risk'!AY$5","v":7.192872164360084E-2},{"$f":"'Population at Risk'!AC53/'Population at Risk'!AC$5","v":5.5082756279448065E-2},{"$f":"'Population at Risk'!AD53/'Population at Risk'!AD$5","v":8.6507126051560745E-2},{"$f":"'Population at Risk'!AE53/'Population at Risk'!AE$5","v":8.7893728430236004E-2},{"$f":"'Population at Risk'!G53/'Population at Risk'!G$5","v":8.1080261634096082E-2},{"$f":"'Population at Risk'!AF53/'Population at Risk'!AF$5","v":7.6723441305038678E-2},{"$f":"'Population at Risk'!H53/'Population at Risk'!H$5","v":7.0945356078330468E-2},{"$f":"'Population at Risk'!AG53/'Population at Risk'!AG$5","v":8.7893728430236004E-2},{"$f":"'Population at Risk'!AZ53/'Population at Risk'!AZ$5","v":7.9149880097547642E-2},{"$f":"'Population at Risk'!I53/'Population at Risk'!I$5","v":7.1153165173436853E-2},{"$f":"'Population at Risk'!J53/'Population at Risk'!J$5","v":6.6231326192219733E-2},{"$f":"'Population at Risk'!K53/'Population at Risk'!K$5","v":6.8726310174836824E-2},{"$f":"'Population at Risk'!AH53/'Population at Risk'!AH$5","v":6.3925251054278709E-2},{"$f":"'Population at Risk'!AI53/'Population at Risk'!AI$5","v":5.6523704061696857E-2},{"$f":"'Population at Risk'!BA53/'Population at Risk'!BA$5","v":6.688953913812748E-2},{"$f":"'Population at Risk'!L53/'Population at Risk'!L$5","v":6.2342776356719504E-2},{"$f":"'Population at Risk'!M53/'Population at Risk'!M$5","v":6.2342776356719504E-2},{"$f":"'Population at Risk'!AJ53/'Population at Risk'!AJ$5","v":6.2720169730856812E-2},{"$f":"'Population at Risk'!AK53/'Population at Risk'!AK$5","v":6.4347403863720398E-2},{"$f":"'Population at Risk'!AL53/'Population at Risk'!AL$5","v":6.5720092934623747E-2},{"$f":"'Population at Risk'!AM53/'Population at Risk'!AM$5","v":6.1211899796222789E-2},{"$f":"'Population at Risk'!N53/'Population at Risk'!N$5","v":7.3685700072705099E-2},{"$f":"'Population at Risk'!AN53/'Population at Risk'!AN$5","v":8.1880694087086703E-2},{"$f":"'Population at Risk'!AO53/'Population at Risk'!AO$5","v":8.1880694087086703E-2},{"$f":"'Population at Risk'!AP53/'Population at Risk'!AP$5","v":9.4840196862614148E-2},{"$f":"'Population at Risk'!C53/'Population at Risk'!C$5","v":6.8327714373985909E-2},{"$f":"'Population at Risk'!AQ53/'Population at Risk'!AQ$5","v":7.1132115498348317E-2},{"$f":"'Population at Risk'!O53/'Population at Risk'!O$5","v":7.001152700268741E-2},{"$f":"'Population at Risk'!AR53/'Population at Risk'!AR$5","v":6.2789011769183792E-2},{"$f":"'Population at Risk'!AS53/'Population at Risk'!AS$5","v":7.1153165173436853E-2},{"$f":"'Population at Risk'!AT53/'Population at Risk'!AT$5","v":8.357098392570321E-2},{"$f":"'Population at Risk'!AU53/'Population at Risk'!AU$5","v":8.357098392570321E-2},{"$f":"'Population at Risk'!BB53/'Population at Risk'!BB$5","v":5.6286237794300149E-2},{"$f":"'Population at Risk'!P53/'Population at Risk'!P$5","v":7.6122659502233084E-2},{"$f":"'Population at Risk'!AV53/'Population at Risk'!AV$5","v":7.8919592387519222E-2},{"$f":"'Population at Risk'!AW53/'Population at Risk'!AW$5","v":6.6956102723335409E-2},{"$f":"'Population at Risk'!Q53/'Population at Risk'!Q$5","v":6.4881327100254363E-2},51]
[null,"Male 65-69",{"$f":"'Population at Risk'!R54/'Population at Risk'!R$5","v":0},{"$f":"'Population at Risk'!AX54/'Population at Risk'!AX$5","v":0},{"$f":"'Population at Risk'!S54/'Population at Risk'!S$5","v":0},{"$f":"'Population at Risk'!T54/'Population at Risk'!T$5","v":0},{"$f":"'Population at Risk'!U54/'Population at Risk'!U$5","v":0},{"$f":"'Population at Risk'!D54/'Population at Risk'!D$5","v":0},{"$f":"'Population at Risk'!E54/'Population at Risk'!E$5","v":0},{"$f":"'Population at Risk'!BC54/'Population at Risk'!BC$5","v":0},{"$f":"'Population at Risk'!V54/'Population at Risk'!V$5","v":0},{"$f":"'Population at Risk'!F54/'Population at Risk'!F$5","v":0},{"$f":"'Population at Risk'!W54/'Population at Risk'!W$5","v":0},{"$f":"'Population at Risk'!X54/'Population at Risk'!X$5","v":0},{"$f":"'Population at Risk'!Y54/'Population at Risk'!Y$5","v":0},{"$f":"'Population at Risk'!Z54/'Population at Risk'!Z$5","v":0},{"$f":"'Population at Risk'!AA54/'Population at Risk'!AA$5","v":0},{"$f":"'Population at Risk'!AB54/'Population at Risk'!AB$5","v":0},{"$f":"'Population at Risk'!AY54/'Population at Risk'!AY$5","v":0},{"$f":"'Population at Risk'!AC54/'Population at Risk'!AC$5","v":0},{"$f":"'Population at Risk'!AD54/'Population at Risk'!AD$5","v":0},{"$f":"'Population at Risk'!AE54/'Population at Risk'!AE$5","v":0},{"$f":"'Population at Risk'!G54/'Population at Risk'!G$5","v":0},{"$f":"'Population at Risk'!AF54/'Population at Risk'!AF$5","v":0},{"$f":"'Population at Risk'!H54/'Population at Risk'!H$5","v":0},{"$f":"'Population at Risk'!AG54/'Population at Risk'!AG$5","v":0},{"$f":"'Population at Risk'!AZ54/'Population at Risk'!AZ$5","v":0},{"$f":"'Population at Risk'!I54/'Population at Risk'!I$5","v":0},{"$f":"'Population at Risk'!J54/'Population at Risk'!J$5","v":0},{"$f":"'Population at Risk'!K54/'Population at Risk'!K$5","v":0},{"$f":"'Population at Risk'!AH54/'Population at Risk'!AH$5","v":0},{"$f":"'Population at Risk'!AI54/'Population at Risk'!AI$5","v":0},{"$f":"'Population at Risk'!BA54/'Population at Risk'!BA$5","v":0},{"$f":"'Population at Risk'!L54/'Population at Risk'!L$5","v":0},{"$f":"'Population at Risk'!M54/'Population at Risk'!M$5","v":0},{"$f":"'Population at Risk'!AJ54/'Population at Risk'!AJ$5","v":0},{"$f":"'Population at Risk'!AK54/'Population at Risk'!AK$5","v":0},{"$f":"'Population at Risk'!AL54/'Population at Risk'!AL$5","v":0},{"$f":"'Population at Risk'!AM54/'Population at Risk'!AM$5","v":0},{"$f":"'Population at Risk'!N54/'Population at Risk'!N$5","v":0},{"$f":"'Population at Risk'!AN54/'Population at Risk'!AN$5","v":0},{"$f":"'Population at Risk'!AO54/'Population at Risk'!AO$5","v":0},{"$f":"'Population at Risk'!AP54/'Population at Risk'!AP$5","v":0},{"$f":"'Population at Risk'!C54/'Population at Risk'!C$5","v":0},{"$f":"'Population at Risk'!AQ54/'Population at Risk'!AQ$5","v":0},{"$f":"'Population at Risk'!O54/'Population at Risk'!O$5","v":0},{"$f":"'Population at Risk'!AR54/'Population at Risk'!AR$5","v":0},{"$f":"'Population at Risk'!AS54/'Population at Risk'!AS$5","v":0},{"$f":"'Population at Risk'!AT54/'Population at Risk'!AT$5","v":0},{"$f":"'Population at Risk'!AU54/'Population at Risk'!AU$5","v":0},{"$f":"'Population at Risk'!BB54/'Population at Risk'!BB$5","v":0},{"$f":"'Population at Risk'!P54/'Population at Risk'!P$5","v":0},{"$f":"'Population at Risk'!AV54/'Population at Risk'!AV$5","v":0},{"$f":"'Population at Risk'!AW54/'Population at Risk'!AW$5","v":0},{"$f":"'Population at Risk'!Q54/'Population at Risk'!Q$5","v":0},52]
[null,"Male 70-74",{"$f":"'Population at Risk'!R55/'Population at Risk'!R$5","v":0},{"$f":"'Population at Risk'!AX55/'Population at Risk'!AX$5","v":0},{"$f":"'Population at Risk'!S55/'Population at Risk'!S$5","v":0},{"$f":"'Population at Risk'!T55/'Population at Risk'!T$5","v":0},{"$f":"'Population at Risk'!U55/'Population at Risk'!U$5","v":0},{"$f":"'Population at Risk'!D55/'Population at Risk'!D$5","v":0},{"$f":"'Population at Risk'!E55/'Population at Risk'!E$5","v":0},{"$f":"'Population at Risk'!BC55/'Population at Risk'!BC$5","v":0},{"$f":"'Population at Risk'!V55/'Population at Risk'!V$5","v":0},{"$f":"'Population at Risk'!F55/'Population at Risk'!F$5","v":0},{"$f":"'Population at Risk'!W55/'Population at Risk'!W$5","v":0},{"$f":"'Population at Risk'!X55/'Population at Risk'!X$5","v":0},{"$f":"'Population at Risk'!Y55/'Population at Risk'!Y$5","v":0},{"$f":"'Population at Risk'!Z55/'Population at Risk'!Z$5","v":0},{"$f":"'Population at Risk'!AA55/'Population at Risk'!AA$5","v":0},{"$f":"'Population at Risk'!AB55/'Population at Risk'!AB$5","v":0},{"$f":"'Population at Risk'!AY55/'Population at Risk'!AY$5","v":0},{"$f":"'Population at Risk'!AC55/'Population at Risk'!AC$5","v":0},{"$f":"'Population at Risk'!AD55/'Population at Risk'!AD$5","v":0},{"$f":"'Population at Risk'!AE55/'Population at Risk'!AE$5","v":0},{"$f":"'Population at Risk'!G55/'Population at Risk'!G$5","v":0},{"$f":"'Population at Risk'!AF55/'Population at Risk'!AF$5","v":0},{"$f":"'Population at Risk'!H55/'Population at Risk'!H$5","v":0},{"$f":"'Population at Risk'!AG55/'Population at Risk'!AG$5","v":0},{"$f":"'Population at Risk'!AZ55/'Population at Risk'!AZ$5","v":0},{"$f":"'Population at Risk'!I55/'Population at Risk'!I$5","v":0},{"$f":"'Population at Risk'!J55/'Population at Risk'!J$5","v":0},{"$f":"'Population at Risk'!K55/'Population at Risk'!K$5","v":0},{"$f":"'Population at Risk'!AH55/'Population at Risk'!AH$5","v":0},{"$f":"'Population at Risk'!AI55/'Population at Risk'!AI$5","v":0},{"$f":"'Population at Risk'!BA55/'Population at Risk'!BA$5","v":0},{"$f":"'Population at Risk'!L55/'Population at Risk'!L$5","v":0},{"$f":"'Population at Risk'!M55/'Population at Risk'!M$5","v":0},{"$f":"'Population at Risk'!AJ55/'Population at Risk'!AJ$5","v":0},{"$f":"'Population at Risk'!AK55/'Population at Risk'!AK$5","v":0},{"$f":"'Population at Risk'!AL55/'Population at Risk'!AL$5","v":0},{"$f":"'Population at Risk'!AM55/'Population at Risk'!AM$5","v":0},{"$f":"'Population at Risk'!N55/'Population at Risk'!N$5","v":0},{"$f":"'Population at Risk'!AN55/'Population at Risk'!AN$5","v":0},{"$f":"'Population at Risk'!AO55/'Population at Risk'!AO$5","v":0},{"$f":"'Population at Risk'!AP55/'Population at Risk'!AP$5","v":0},{"$f":"'Population at Risk'!C55/'Population at Risk'!C$5","v":0},{"$f":"'Population at Risk'!AQ55/'Population at Risk'!AQ$5","v":0},{"$f":"'Population at Risk'!O55/'Population at Risk'!O$5","v":0},{"$f":"'Population at Risk'!AR55/'Population at Risk'!AR$5","v":0},{"$f":"'Population at Risk'!AS55/'Population at Risk'!AS$5","v":0},{"$f":"'Population at Risk'!AT55/'Population at Risk'!AT$5","v":0},{"$f":"'Population at Risk'!AU55/'Population at Risk'!AU$5","v":0},{"$f":"'Population at Risk'!BB55/'Population at Risk'!BB$5","v":0},{"$f":"'Population at Risk'!P55/'Population at Risk'!P$5","v":0},{"$f":"'Population at Risk'!AV55/'Population at Risk'!AV$5","v":0},{"$f":"'Population at Risk'!AW55/'Population at Risk'!AW$5","v":0},{"$f":"'Population at Risk'!Q55/'Population at Risk'!Q$5","v":0},53]
[null,"Male 75-79",{"$f":"'Population at Risk'!R56/'Population at Risk'!R$5","v":0},{"$f":"'Population at Risk'!AX56/'Population at Risk'!AX$5","v":0},{"$f":"'Population at Risk'!S56/'Population at Risk'!S$5","v":0},{"$f":"'Population at Risk'!T56/'Population at Risk'!T$5","v":0},{"$f":"'Population at Risk'!U56/'Population at Risk'!U$5","v":0},{"$f":"'Population at Risk'!D56/'Population at Risk'!D$5","v":0},{"$f":"'Population at Risk'!E56/'Population at Risk'!E$5","v":0},{"$f":"'Population at Risk'!BC56/'Population at Risk'!BC$5","v":0},{"$f":"'Population at Risk'!V56/'Population at Risk'!V$5","v":0},{"$f":"'Population at Risk'!F56/'Population at Risk'!F$5","v":0},{"$f":"'Population at Risk'!W56/'Population at Risk'!W$5","v":0},{"$f":"'Population at Risk'!X56/'Population at Risk'!X$5","v":0},{"$f":"'Population at Risk'!Y56/'Population at Risk'!Y$5","v":0},{"$f":"'Population at Risk'!Z56/'Population at Risk'!Z$5","v":0},{"$f":"'Population at Risk'!AA56/'Population at Risk'!AA$5","v":0},{"$f":"'Population at Risk'!AB56/'Population at Risk'!AB$5","v":0},{"$f":"'Population at Risk'!AY56/'Population at Risk'!AY$5","v":0},{"$f":"'Population at Risk'!AC56/'Population at Risk'!AC$5","v":0},{"$f":"'Population at Risk'!AD56/'Population at Risk'!AD$5","v":0},{"$f":"'Population at Risk'!AE56/'Population at Risk'!AE$5","v":0},{"$f":"'Population at Risk'!G56/'Population at Risk'!G$5","v":0},{"$f":"'Population at Risk'!AF56/'Population at Risk'!AF$5","v":0},{"$f":"'Population at Risk'!H56/'Population at Risk'!H$5","v":0},{"$f":"'Population at Risk'!AG56/'Population at Risk'!AG$5","v":0},{"$f":"'Population at Risk'!AZ56/'Population at Risk'!AZ$5","v":0},{"$f":"'Population at Risk'!I56/'Population at Risk'!I$5","v":0},{"$f":"'Population at Risk'!J56/'Population at Risk'!J$5","v":0},{"$f":"'Population at Risk'!K56/'Population at Risk'!K$5","v":0},{"$f":"'Population at Risk'!AH56/'Population at Risk'!AH$5","v":0},{"$f":"'Population at Risk'!AI56/'Population at Risk'!AI$5","v":0},{"$f":"'Population at Risk'!BA56/'Population at Risk'!BA$5","v":0},{"$f":"'Population at Risk'!L56/'Population at Risk'!L$5","v":0},{"$f":"'Population at Risk'!M56/'Population at Risk'!M$5","v":0},{"$f":"'Population at Risk'!AJ56/'Population at Risk'!AJ$5","v":0},{"$f":"'Population at Risk'!AK56/'Population at Risk'!AK$5","v":0},{"$f":"'Population at Risk'!AL56/'Population at Risk'!AL$5","v":0},{"$f":"'Population at Risk'!AM56/'Population at Risk'!AM$5","v":0},{"$f":"'Population at Risk'!N56/'Population at Risk'!N$5","v":0},{"$f":"'Population at Risk'!AN56/'Population at Risk'!AN$5","v":0},{"$f":"'Population at Risk'!AO56/'Population at Risk'!AO$5","v":0},{"$f":"'Population at Risk'!AP56/'Population at Risk'!AP$5","v":0},{"$f":"'Population at Risk'!C56/'Population at Risk'!C$5","v":0},{"$f":"'Population at Risk'!AQ56/'Population at Risk'!AQ$5","v":0},{"$f":"'Population at Risk'!O56/'Population at Risk'!O$5","v":0},{"$f":"'Population at Risk'!AR56/'Population at Risk'!AR$5","v":0},{"$f":"'Population at Risk'!AS56/'Population at Risk'!AS$5","v":0},{"$f":"'Population at Risk'!AT56/'Population at Risk'!AT$5","v":0},{"$f":"'Population at Risk'!AU56/'Population at Risk'!AU$5","v":0},{"$f":"'Population at Risk'!BB56/'Population at Risk'!BB$5","v":0},{"$f":"'Population at Risk'!P56/'Population at Risk'!P$5","v":0},{"$f":"'Population at Risk'!AV56/'Population at Risk'!AV$5","v":0},{"$f":"'Population at Risk'!AW56/'Population at Risk'!AW$5","v":0},{"$f":"'Population at Risk'!Q56/'Population at Risk'!Q$5","v":0},54]
[null,"Male 80-84",{"$f":"'Population at Risk'!R57/'Population at Risk'!R$5","v":0},{"$f":"'Population at Risk'!AX57/'Population at Risk'!AX$5","v":0},{"$f":"'Population at Risk'!S57/'Population at Risk'!S$5","v":0},{"$f":"'Population at Risk'!T57/'Population at Risk'!T$5","v":0},{"$f":"'Population at Risk'!U57/'Population at Risk'!U$5","v":0},{"$f":"'Population at Risk'!D57/'Population at Risk'!D$5","v":0},{"$f":"'Population at Risk'!E57/'Population at Risk'!E$5","v":0},{"$f":"'Population at Risk'!BC57/'Population at Risk'!BC$5","v":0},{"$f":"'Population at Risk'!V57/'Population at Risk'!V$5","v":0},{"$f":"'Population at Risk'!F57/'Population at Risk'!F$5","v":0},{"$f":"'Population at Risk'!W57/'Population at Risk'!W$5","v":0},{"$f":"'Population at Risk'!X57/'Population at Risk'!X$5","v":0},{"$f":"'Population at Risk'!Y57/'Population at Risk'!Y$5","v":0},{"$f":"'Population at Risk'!Z57/'Population at Risk'!Z$5","v":0},{"$f":"'Population at Risk'!AA57/'Population at Risk'!AA$5","v":0},{"$f":"'Population at Risk'!AB57/'Population at Risk'!AB$5","v":0},{"$f":"'Population at Risk'!AY57/'Population at Risk'!AY$5","v":0},{"$f":"'Population at Risk'!AC57/'Population at Risk'!AC$5","v":0},{"$f":"'Population at Risk'!AD57/'Population at Risk'!AD$5","v":0},{"$f":"'Population at Risk'!AE57/'Population at Risk'!AE$5","v":0},{"$f":"'Population at Risk'!G57/'Population at Risk'!G$5","v":0},{"$f":"'Population at Risk'!AF57/'Population at Risk'!AF$5","v":0},{"$f":"'Population at Risk'!H57/'Population at Risk'!H$5","v":0},{"$f":"'Population at Risk'!AG57/'Population at Risk'!AG$5","v":0},{"$f":"'Population at Risk'!AZ57/'Population at Risk'!AZ$5","v":0},{"$f":"'Population at Risk'!I57/'Population at Risk'!I$5","v":0},{"$f":"'Population at Risk'!J57/'Population at Risk'!J$5","v":0},{"$f":"'Population at Risk'!K57/'Population at Risk'!K$5","v":0},{"$f":"'Population at Risk'!AH57/'Population at Risk'!AH$5","v":0},{"$f":"'Population at Risk'!AI57/'Population at Risk'!AI$5","v":0},{"$f":"'Population at Risk'!BA57/'Population at Risk'!BA$5","v":0},{"$f":"'Population at Risk'!L57/'Population at Risk'!L$5","v":0},{"$f":"'Population at Risk'!M57/'Population at Risk'!M$5","v":0},{"$f":"'Population at Risk'!AJ57/'Population at Risk'!AJ$5","v":0},{"$f":"'Population at Risk'!AK57/'Population at Risk'!AK$5","v":0},{"$f":"'Population at Risk'!AL57/'Population at Risk'!AL$5","v":0},{"$f":"'Population at Risk'!AM57/'Population at Risk'!AM$5","v":0},{"$f":"'Population at Risk'!N57/'Population at Risk'!N$5","v":0},{"$f":"'Population at Risk'!AN57/'Population at Risk'!AN$5","v":0},{"$f":"'Population at Risk'!AO57/'Population at Risk'!AO$5","v":0},{"$f":"'Population at Risk'!AP57/'Population at Risk'!AP$5","v":0},{"$f":"'Population at Risk'!C57/'Population at Risk'!C$5","v":0},{"$f":"'Population at Risk'!AQ57/'Population at Risk'!AQ$5","v":0},{"$f":"'Population at Risk'!O57/'Population at Risk'!O$5","v":0},{"$f":"'Population at Risk'!AR57/'Population at Risk'!AR$5","v":0},{"$f":"'Population at Risk'!AS57/'Population at Risk'!AS$5","v":0},{"$f":"'Population at Risk'!AT57/'Population at Risk'!AT$5","v":0},{"$f":"'Population at Risk'!AU57/'Population at Risk'!AU$5","v":0},{"$f":"'Population at Risk'!BB57/'Population at Risk'!BB$5","v":0},{"$f":"'Population at Risk'!P57/'Population at Risk'!P$5","v":0},{"$f":"'Population at Risk'!AV57/'Population at Risk'!AV$5","v":0},{"$f":"'Population at Risk'!AW57/'Population at Risk'!AW$5","v":0},{"$f":"'Population at Risk'!Q57/'Population at Risk'!Q$5","v":0},55]
[null,"Male 85-89",{"$f":"'Population at Risk'!R58/'Population at Risk'!R$5","v":0},{"$f":"'Population at Risk'!AX58/'Population at Risk'!AX$5","v":0},{"$f":"'Population at Risk'!S58/'Population at Risk'!S$5","v":0},{"$f":"'Population at Risk'!T58/'Population at Risk'!T$5","v":0},{"$f":"'Population at Risk'!U58/'Population at Risk'!U$5","v":0},{"$f":"'Population at Risk'!D58/'Population at Risk'!D$5","v":0},{"$f":"'Population at Risk'!E58/'Population at Risk'!E$5","v":0},{"$f":"'Population at Risk'!BC58/'Population at Risk'!BC$5","v":0},{"$f":"'Population at Risk'!V58/'Population at Risk'!V$5","v":0},{"$f":"'Population at Risk'!F58/'Population at Risk'!F$5","v":0},{"$f":"'Population at Risk'!W58/'Population at Risk'!W$5","v":0},{"$f":"'Population at Risk'!X58/'Population at Risk'!X$5","v":0},{"$f":"'Population at Risk'!Y58/'Population at Risk'!Y$5","v":0},{"$f":"'Population at Risk'!Z58/'Population at Risk'!Z$5","v":0},{"$f":"'Population at Risk'!AA58/'Population at Risk'!AA$5","v":0},{"$f":"'Population at Risk'!AB58/'Population at Risk'!AB$5","v":0},{"$f":"'Population at Risk'!AY58/'Population at Risk'!AY$5","v":0},{"$f":"'Population at Risk'!AC58/'Population at Risk'!AC$5","v":0},{"$f":"'Population at Risk'!AD58/'Population at Risk'!AD$5","v":0},{"$f":"'Population at Risk'!AE58/'Population at Risk'!AE$5","v":0},{"$f":"'Population at Risk'!G58/'Population at Risk'!G$5","v":0},{"$f":"'Population at Risk'!AF58/'Population at Risk'!AF$5","v":0},{"$f":"'Population at Risk'!H58/'Population at Risk'!H$5","v":0},{"$f":"'Population at Risk'!AG58/'Population at Risk'!AG$5","v":0},{"$f":"'Population at Risk'!AZ58/'Population at Risk'!AZ$5","v":0},{"$f":"'Population at Risk'!I58/'Population at Risk'!I$5","v":0},{"$f":"'Population at Risk'!J58/'Population at Risk'!J$5","v":0},{"$f":"'Population at Risk'!K58/'Population at Risk'!K$5","v":0},{"$f":"'Population at Risk'!AH58/'Population at Risk'!AH$5","v":0},{"$f":"'Population at Risk'!AI58/'Population at Risk'!AI$5","v":0},{"$f":"'Population at Risk'!BA58/'Population at Risk'!BA$5","v":0},{"$f":"'Population at Risk'!L58/'Population at Risk'!L$5","v":0},{"$f":"'Population at Risk'!M58/'Population at Risk'!M$5","v":0},{"$f":"'Population at Risk'!AJ58/'Population at Risk'!AJ$5","v":0},{"$f":"'Population at Risk'!AK58/'Population at Risk'!AK$5","v":0},{"$f":"'Population at Risk'!AL58/'Population at Risk'!AL$5","v":0},{"$f":"'Population at Risk'!AM58/'Population at Risk'!AM$5","v":0},{"$f":"'Population at Risk'!N58/'Population at Risk'!N$5","v":0},{"$f":"'Population at Risk'!AN58/'Population at Risk'!AN$5","v":0},{"$f":"'Population at Risk'!AO58/'Population at Risk'!AO$5","v":0},{"$f":"'Population at Risk'!AP58/'Population at Risk'!AP$5","v":0},{"$f":"'Population at Risk'!C58/'Population at Risk'!C$5","v":0},{"$f":"'Population at Risk'!AQ58/'Population at Risk'!AQ$5","v":0},{"$f":"'Population at Risk'!O58/'Population at Risk'!O$5","v":0},{"$f":"'Population at Risk'!AR58/'Population at Risk'!AR$5","v":0},{"$f":"'Population at Risk'!AS58/'Population at Risk'!AS$5","v":0},{"$f":"'Population at Risk'!AT58/'Population at Risk'!AT$5","v":0},{"$f":"'Population at Risk'!AU58/'Population at Risk'!AU$5","v":0},{"$f":"'Population at Risk'!BB58/'Population at Risk'!BB$5","v":0},{"$f":"'Population at Risk'!P58/'Population at Risk'!P$5","v":0},{"$f":"'Population at Risk'!AV58/'Population at Risk'!AV$5","v":0},{"$f":"'Population at Risk'!AW58/'Population at Risk'!AW$5","v":0},{"$f":"'Population at Risk'!Q58/'Population at Risk'!Q$5","v":0},56]
[null,"Male 90+",{"$f":"'Population at Risk'!R59/'Population at Risk'!R$5","v":0},{"$f":"'Population at Risk'!AX59/'Population at Risk'!AX$5","v":0},{"$f":"'Population at Risk'!S59/'Population at Risk'!S$5","v":0},{"$f":"'Population at Risk'!T59/'Population at Risk'!T$5","v":0},{"$f":"'Population at Risk'!U59/'Population at Risk'!U$5","v":0},{"$f":"'Population at Risk'!D59/'Population at Risk'!D$5","v":0},{"$f":"'Population at Risk'!E59/'Population at Risk'!E$5","v":0},{"$f":"'Population at Risk'!BC59/'Population at Risk'!BC$5","v":0},{"$f":"'Population at Risk'!V59/'Population at Risk'!V$5","v":0},{"$f":"'Population at Risk'!F59/'Population at Risk'!F$5","v":0},{"$f":"'Population at Risk'!W59/'Population at Risk'!W$5","v":0},{"$f":"'Population at Risk'!X59/'Population at Risk'!X$5","v":0},{"$f":"'Population at Risk'!Y59/'Population at Risk'!Y$5","v":0},{"$f":"'Population at Risk'!Z59/'Population at Risk'!Z$5","v":0},{"$f":"'Population at Risk'!AA59/'Population at Risk'!AA$5","v":0},{"$f":"'Population at Risk'!AB59/'Population at Risk'!AB$5","v":0},{"$f":"'Population at Risk'!AY59/'Population at Risk'!AY$5","v":0},{"$f":"'Population at Risk'!AC59/'Population at Risk'!AC$5","v":0},{"$f":"'Population at Risk'!AD59/'Population at Risk'!AD$5","v":0},{"$f":"'Population at Risk'!AE59/'Population at Risk'!AE$5","v":0},{"$f":"'Population at Risk'!G59/'Population at Risk'!G$5","v":0},{"$f":"'Population at Risk'!AF59/'Population at Risk'!AF$5","v":0},{"$f":"'Population at Risk'!H59/'Population at Risk'!H$5","v":0},{"$f":"'Population at Risk'!AG59/'Population at Risk'!AG$5","v":0},{"$f":"'Population at Risk'!AZ59/'Population at Risk'!AZ$5","v":0},{"$f":"'Population at Risk'!I59/'Population at Risk'!I$5","v":0},{"$f":"'Population at Risk'!J59/'Population at Risk'!J$5","v":0},{"$f":"'Population at Risk'!K59/'Population at Risk'!K$5","v":0},{"$f":"'Population at Risk'!AH59/'Population at Risk'!AH$5","v":0},{"$f":"'Population at Risk'!AI59/'Population at Risk'!AI$5","v":0},{"$f":"'Population at Risk'!BA59/'Population at Risk'!BA$5","v":0},{"$f":"'Population at Risk'!L59/'Population at Risk'!L$5","v":0},{"$f":"'Population at Risk'!M59/'Population at Risk'!M$5","v":0},{"$f":"'Population at Risk'!AJ59/'Population at Risk'!AJ$5","v":0},{"$f":"'Population at Risk'!AK59/'Population at Risk'!AK$5","v":0},{"$f":"'Population at Risk'!AL59/'Population at Risk'!AL$5","v":0},{"$f":"'Population at Risk'!AM59/'Population at Risk'!AM$5","v":0},{"$f":"'Population at Risk'!N59/'Population at Risk'!N$5","v":0},{"$f":"'Population at Risk'!AN59/'Population at Risk'!AN$5","v":0},{"$f":"'Population at Risk'!AO59/'Population at Risk'!AO$5","v":0},{"$f":"'Population at Risk'!AP59/'Population at Risk'!AP$5","v":0},{"$f":"'Population at Risk'!C59/'Population at Risk'!C$5","v":0},{"$f":"'Population at Risk'!AQ59/'Population at Risk'!AQ$5","v":0},{"$f":"'Population at Risk'!O59/'Population at Risk'!O$5","v":0},{"$f":"'Population at Risk'!AR59/'Population at Risk'!AR$5","v":0},{"$f":"'Population at Risk'!AS59/'Population at Risk'!AS$5","v":0},{"$f":"'Population at Risk'!AT59/'Population at Risk'!AT$5","v":0},{"$f":"'Population at Risk'!AU59/'Population at Risk'!AU$5","v":0},{"$f":"'Population at Risk'!BB59/'Population at Risk'!BB$5","v":0},{"$f":"'Population at Risk'!P59/'Population at Risk'!P$5","v":0},{"$f":"'Population at Risk'!AV59/'Population at Risk'!AV$5","v":0},{"$f":"'Population at Risk'!AW59/'Population at Risk'!AW$5","v":0},{"$f":"'Population at Risk'!Q59/'Population at Risk'!Q$5","v":0},57]
["SIMD Q1 (most deprived)","Female 0-4",{"$f":"'Population at Risk'!C60/'Population at Risk'!C$5","v":0},{"$f":"'Population at Risk'!D60/'Population at Risk'!D$5","v":0},{"$f":"'Population at Risk'!E60/'Population at Risk'!E$5","v":0},{"$f":"'Population at Risk'!F60/'Population at Risk'!F$5","v":0},{"$f":"'Population at Risk'!G60/'Population at Risk'!G$5","v":0},{"$f":"'Population at Risk'!H60/'Population at Risk'!H$5","v":0},{"$f":"'Population at Risk'!I60/'Population at Risk'!I$5","v":0},{"$f":"'Population at Risk'!J60/'Population at Risk'!J$5","v":0},{"$f":"'Population at Risk'!K60/'Population at Risk'!K$5","v":0},{"$f":"'Population at Risk'!L60/'Population at Risk'!L$5","v":0},{"$f":"'Population at Risk'!M60/'Population at Risk'!M$5","v":0},{"$f":"'Population at Risk'!N60/'Population at Risk'!N$5","v":0},{"$f":"'Population at Risk'!O60/'Population at Risk'!O$5","v":0},{"$f":"'Population at Risk'!P60/'Population at Risk'!P$5","v":0},{"$f":"'Population at Risk'!Q60/'Population at Risk'!Q$5","v":0},{"$f":"'Population at Risk'!R60/'Population at Risk'!R$5","v":0},{"$f":"'Population at Risk'!S60/'Population at Risk'!S$5","v":0},{"$f":"'Population at Risk'!T60/'Population at Risk'!T$5","v":0},{"$f":"'Population at Risk'!U60/'Population at Risk'!U$5","v":0},{"$f":"'Population at Risk'!V60/'Population at Risk'!V$5","v":0},{"$f":"'Population at Risk'!W60/'Population at Risk'!W$5","v":0},{"$f":"'Population at Risk'!X60/'Population at Risk'!X$5","v":0},{"$f":"'Population at Risk'!Y60/'Population at Risk'!Y$5","v":0},{"$f":"'Population at Risk'!Z60/'Population at Risk'!Z$5","v":0},{"$f":"'Population at Risk'!AA60/'Population at Risk'!AA$5","v":0},{"$f":"'Population at Risk'!AB60/'Population at Risk'!AB$5","v":0},{"$f":"'Population at Risk'!AC60/'Population at Risk'!AC$5","v":0},{"$f":"'Population at Risk'!AD60/'Population at Risk'!AD$5","v":0},{"$f":"'Population at Risk'!AE60/'Population at Risk'!AE$5","v":0},{"$f":"'Population at Risk'!AF60/'Population at Risk'!AF$5","v":0},{"$f":"'Population at Risk'!AG60/'Population at Risk'!AG$5","v":0},{"$f":"'Population at Risk'!AH60/'Population at Risk'!AH$5","v":0},{"$f":"'Population at Risk'!AI60/'Population at Risk'!AI$5","v":0},{"$f":"'Population at Risk'!AJ60/'Population at Risk'!AJ$5","v":0},{"$f":"'Population at Risk'!AK60/'Population at Risk'!AK$5","v":0},{"$f":"'Population at Risk'!AL60/'Population at Risk'!AL$5","v":0},{"$f":"'Population at Risk'!AM60/'Population at Risk'!AM$5","v":0},{"$f":"'Population at Risk'!AN60/'Population at Risk'!AN$5","v":0},{"$f":"'Population at Risk'!AO60/'Population at Risk'!AO$5","v":0},{"$f":"'Population at Risk'!AP60/'Population at Risk'!AP$5","v":0},{"$f":"'Population at Risk'!AQ60/'Population at Risk'!AQ$5","v":0},{"$f":"'Population at Risk'!AR60/'Population at Risk'!AR$5","v":0},{"$f":"'Population at Risk'!AS60/'Population at Risk'!AS$5","v":0},{"$f":"'Population at Risk'!AT60/'Population at Risk'!AT$5","v":0},{"$f":"'Population at Risk'!AU60/'Population at Risk'!AU$5","v":0},{"$f":"'Population at Risk'!AV60/'Population at Risk'!AV$5","v":0},{"$f":"'Population at Risk'!AW60/'Population at Risk'!AW$5","v":0},{"$f":"'Population at Risk'!AX60/'Population at Risk'!AX$5","v":0},{"$f":"'Population at Risk'!AY60/'Population at Risk'!AY$5","v":0},{"$f":"'Population at Risk'!AZ60/'Population at Risk'!AZ$5","v":0},{"$f":"'Population at Risk'!BA60/'Population at Risk'!BA$5","v":0},{"$f":"'Population at Risk'!BB60/'Population at Risk'!BB$5","v":0},{"$f":"'Population at Risk'!BC60/'Population at Risk'!BC$5","v":0},58]
[null,"Female 5-9",{"$f":"'Population at Risk'!C61/'Population at Risk'!C$5","v":0},{"$f":"'Population at Risk'!D61/'Population at Risk'!D$5","v":0},{"$f":"'Population at Risk'!E61/'Population at Risk'!E$5","v":0},{"$f":"'Population at Risk'!F61/'Population at Risk'!F$5","v":0},{"$f":"'Population at Risk'!G61/'Population at Risk'!G$5","v":0},{"$f":"'Population at Risk'!H61/'Population at Risk'!H$5","v":0},{"$f":"'Population at Risk'!I61/'Population at Risk'!I$5","v":0},{"$f":"'Population at Risk'!J61/'Population at Risk'!J$5","v":0},{"$f":"'Population at Risk'!K61/'Population at Risk'!K$5","v":0},{"$f":"'Population at Risk'!L61/'Population at Risk'!L$5","v":0},{"$f":"'Population at Risk'!M61/'Population at Risk'!M$5","v":0},{"$f":"'Population at Risk'!N61/'Population at Risk'!N$5","v":0},{"$f":"'Population at Risk'!O61/'Population at Risk'!O$5","v":0},{"$f":"'Population at Risk'!P61/'Population at Risk'!P$5","v":0},{"$f":"'Population at Risk'!Q61/'Population at Risk'!Q$5","v":0},{"$f":"'Population at Risk'!R61/'Population at Risk'!R$5","v":0},{"$f":"'Population at Risk'!S61/'Population at Risk'!S$5","v":0},{"$f":"'Population at Risk'!T61/'Population at Risk'!T$5","v":0},{"$f":"'Population at Risk'!U61/'Population at Risk'!U$5","v":0},{"$f":"'Population at Risk'!V61/'Population at Risk'!V$5","v":0},{"$f":"'Population at Risk'!W61/'Population at Risk'!W$5","v":0},{"$f":"'Population at Risk'!X61/'Population at Risk'!X$5","v":0},{"$f":"'Population at Risk'!Y61/'Population at Risk'!Y$5","v":0},{"$f":"'Population at Risk'!Z61/'Population at Risk'!Z$5","v":0},{"$f":"'Population at Risk'!AA61/'Population at Risk'!AA$5","v":0},{"$f":"'Population at Risk'!AB61/'Population at Risk'!AB$5","v":0},{"$f":"'Population at Risk'!AC61/'Population at Risk'!AC$5","v":0},{"$f":"'Population at Risk'!AD61/'Population at Risk'!AD$5","v":0},{"$f":"'Population at Risk'!AE61/'Population at Risk'!AE$5","v":0},{"$f":"'Population at Risk'!AF61/'Population at Risk'!AF$5","v":0},{"$f":"'Population at Risk'!AG61/'Population at Risk'!AG$5","v":0},{"$f":"'Population at Risk'!AH61/'Population at Risk'!AH$5","v":0},{"$f":"'Population at Risk'!AI61/'Population at Risk'!AI$5","v":0},{"$f":"'Population at Risk'!AJ61/'Population at Risk'!AJ$5","v":0},{"$f":"'Population at Risk'!AK61/'Population at Risk'!AK$5","v":0},{"$f":"'Population at Risk'!AL61/'Population at Risk'!AL$5","v":0},{"$f":"'Population at Risk'!AM61/'Population at Risk'!AM$5","v":0},{"$f":"'Population at Risk'!AN61/'Population at Risk'!AN$5","v":0},{"$f":"'Population at Risk'!AO61/'Population at Risk'!AO$5","v":0},{"$f":"'Population at Risk'!AP61/'Population at Risk'!AP$5","v":0},{"$f":"'Population at Risk'!AQ61/'Population at Risk'!AQ$5","v":0},{"$f":"'Population at Risk'!AR61/'Population at Risk'!AR$5","v":0},{"$f":"'Population at Risk'!AS61/'Population at Risk'!AS$5","v":0},{"$f":"'Population at Risk'!AT61/'Population at Risk'!AT$5","v":0},{"$f":"'Population at Risk'!AU61/'Population at Risk'!AU$5","v":0},{"$f":"'Population at Risk'!AV61/'Population at Risk'!AV$5","v":0},{"$f":"'Population at Risk'!AW61/'Population at Risk'!AW$5","v":0},{"$f":"'Population at Risk'!AX61/'Population at Risk'!AX$5","v":0},{"$f":"'Population at Risk'!AY61/'Population at Risk'!AY$5","v":0},{"$f":"'Population at Risk'!AZ61/'Population at Risk'!AZ$5","v":0},{"$f":"'Population at Risk'!BA61/'Population at Risk'!BA$5","v":0},{"$f":"'Population at Risk'!BB61/'Population at Risk'!BB$5","v":0},{"$f":"'Population at Risk'!BC61/'Population at Risk'!BC$5","v":0},59]
[null,"Female 10-15",{"$f":"'Population at Risk'!C62/'Population at Risk'!C$5","v":0},{"$f":"'Population at Risk'!D62/'Population at Risk'!D$5","v":0},{"$f":"'Population at Risk'!E62/'Population at Risk'!E$5","v":0},{"$f":"'Population at Risk'!F62/'Population at Risk'!F$5","v":0},{"$f":"'Population at Risk'!G62/'Population at Risk'!G$5","v":0},{"$f":"'Population at Risk'!H62/'Population at Risk'!H$5","v":0},{"$f":"'Population at Risk'!I62/'Population at Risk'!I$5","v":0},{"$f":"'Population at Risk'!J62/'Population at Risk'!J$5","v":0},{"$f":"'Population at Risk'!K62/'Population at Risk'!K$5","v":0},{"$f":"'Population at Risk'!L62/'Population at Risk'!L$5","v":0},{"$f":"'Population at Risk'!M62/'Population at Risk'!M$5","v":0},{"$f":"'Population at Risk'!N62/'Population at Risk'!N$5","v":0},{"$f":"'Population at Risk'!O62/'Population at Risk'!O$5","v":0},{"$f":"'Population at Risk'!P62/'Population at Risk'!P$5","v":0},{"$f":"'Population at Risk'!Q62/'Population at Risk'!Q$5","v":0},{"$f":"'Population at Risk'!R62/'Population at Risk'!R$5","v":0},{"$f":"'Population at Risk'!S62/'Population at Risk'!S$5","v":0},{"$f":"'Population at Risk'!T62/'Population at Risk'!T$5","v":0},{"$f":"'Population at Risk'!U62/'Population at Risk'!U$5","v":0},{"$f":"'Population at Risk'!V62/'Population at Risk'!V$5","v":0},{"$f":"'Population at Risk'!W62/'Population at Risk'!W$5","v":0},{"$f":"'Population at Risk'!X62/'Population at Risk'!X$5","v":0},{"$f":"'Population at Risk'!Y62/'Population at Risk'!Y$5","v":0},{"$f":"'Population at Risk'!Z62/'Population at Risk'!Z$5","v":0},{"$f":"'Population at Risk'!AA62/'Population at Risk'!AA$5","v":0},{"$f":"'Population at Risk'!AB62/'Population at Risk'!AB$5","v":0},{"$f":"'Population at Risk'!AC62/'Population at Risk'!AC$5","v":0},{"$f":"'Population at Risk'!AD62/'Population at Risk'!AD$5","v":0},{"$f":"'Population at Risk'!AE62/'Population at Risk'!AE$5","v":0},{"$f":"'Population at Risk'!AF62/'Population at Risk'!AF$5","v":0},{"$f":"'Population at Risk'!AG62/'Population at Risk'!AG$5","v":0},{"$f":"'Population at Risk'!AH62/'Population at Risk'!AH$5","v":0},{"$f":"'Population at Risk'!AI62/'Population at Risk'!AI$5","v":0},{"$f":"'Population at Risk'!AJ62/'Population at Risk'!AJ$5","v":0},{"$f":"'Population at Risk'!AK62/'Population at Risk'!AK$5","v":0},{"$f":"'Population at Risk'!AL62/'Population at Risk'!AL$5","v":0},{"$f":"'Population at Risk'!AM62/'Population at Risk'!AM$5","v":0},{"$f":"'Population at Risk'!AN62/'Population at Risk'!AN$5","v":0},{"$f":"'Population at Risk'!AO62/'Population at Risk'!AO$5","v":0},{"$f":"'Population at Risk'!AP62/'Population at Risk'!AP$5","v":0},{"$f":"'Population at Risk'!AQ62/'Population at Risk'!AQ$5","v":0},{"$f":"'Population at Risk'!AR62/'Population at Risk'!AR$5","v":0},{"$f":"'Population at Risk'!AS62/'Population at Risk'!AS$5","v":0},{"$f":"'Population at Risk'!AT62/'Population at Risk'!AT$5","v":0},{"$f":"'Population at Risk'!AU62/'Population at Risk'!AU$5","v":0},{"$f":"'Population at Risk'!AV62/'Population at Risk'!AV$5","v":0},{"$f":"'Population at Risk'!AW62/'Population at Risk'!AW$5","v":0},{"$f":"'Population at Risk'!AX62/'Population at Risk'!AX$5","v":0},{"$f":"'Population at Risk'!AY62/'Population at Risk'!AY$5","v":0},{"$f":"'Population at Risk'!AZ62/'Population at Risk'!AZ$5","v":0},{"$f":"'Population at Risk'!BA62/'Population at Risk'!BA$5","v":0},{"$f":"'Population at Risk'!BB62/'Population at Risk'!BB$5","v":0},{"$f":"'Population at Risk'!BC62/'Population at Risk'!BC$5","v":0},60]
[null,"Female 16-19",{"$f":"'Population at Risk'!C63/'Population at Risk'!C$5","v":2.8793936701616875E-3},{"$f":"'Population at Risk'!D63/'Population at Risk'!D$5","v":2.0650857580854576E-3},{"$f":"'Population at Risk'!E63/'Population at Risk'!E$5","v":1.0611665289092594E-3},{"$f":"'Population at Risk'!F63/'Population at Risk'!F$5","v":4.335866063816406E-3},{"$f":"'Population at Risk'!G63/'Population at Risk'!G$5","v":3.4019459278330469E-3},{"$f":"'Population at Risk'!H63/'Population at Risk'!H$5","v":1.1725175242724147E-2},{"$f":"'Population at Risk'!I63/'Population at Risk'!I$5","v":3.302313125765744E-3},{"$f":"'Population at Risk'!J63/'Population at Risk'!J$5","v":7.5047969546920279E-3},{"$f":"'Population at Risk'!K63/'Population at Risk'!K$5","v":8.9223313400509652E-3},{"$f":"'Population at Risk'!L63/'Population at Risk'!L$5","v":4.6527940370021323E-3},{"$f":"'Population at Risk'!M63/'Population at Risk'!M$5","v":4.6527940370021323E-3},{"$f":"'Population at Risk'!N63/'Population at Risk'!N$5","v":9.9262052734200648E-3},{"$f":"'Population at Risk'!O63/'Population at Risk'!O$5","v":1.0833517717629323E-2},{"$f":"'Population at Risk'!P63/'Population at Risk'!P$5","v":2.3527086648507307E-3},{"$f":"'Population at Risk'!Q63/'Population at Risk'!Q$5","v":1.673845995210341E-3},{"$f":"'Population at Risk'!R63/'Population at Risk'!R$5","v":4.0285624350449873E-3},{"$f":"'Population at Risk'!S63/'Population at Risk'!S$5","v":6.4286873204132435E-3},{"$f":"'Population at Risk'!T63/'Population at Risk'!T$5","v":5.7523202026708697E-3},{"$f":"'Population at Risk'!U63/'Population at Risk'!U$5","v":0},{"$f":"'Population at Risk'!V63/'Population at Risk'!V$5","v":5.9614992187670352E-3},{"$f":"'Population at Risk'!W63/'Population at Risk'!W$5","v":9.1969401999250737E-3},{"$f":"'Population at Risk'!X63/'Population at Risk'!X$5","v":9.1969401999250737E-3},{"$f":"'Population at Risk'!Y63/'Population at Risk'!Y$5","v":6.7492516638559558E-3},{"$f":"'Population at Risk'!Z63/'Population at Risk'!Z$5","v":1.4714784576593618E-2},{"$f":"'Population at Risk'!AA63/'Population at Risk'!AA$5","v":1.1263079677120804E-2},{"$f":"'Population at Risk'!AB63/'Population at Risk'!AB$5","v":1.8200781242750617E-3},{"$f":"'Population at Risk'!AC63/'Population at Risk'!AC$5","v":1.1982219077497074E-2},{"$f":"'Population at Risk'!AD63/'Population at Risk'!AD$5","v":3.1632087482150384E-3},{"$f":"'Population at Risk'!AE63/'Population at Risk'!AE$5","v":3.0919742734021602E-3},{"$f":"'Population at Risk'!AF63/'Population at Risk'!AF$5","v":1.1412260052905502E-2},{"$f":"'Population at Risk'!AG63/'Population at Risk'!AG$5","v":3.0919742734021602E-3},{"$f":"'Population at Risk'!AH63/'Population at Risk'!AH$5","v":9.9370584176936821E-3},{"$f":"'Population at Risk'!AI63/'Population at Risk'!AI$5","v":5.5576486829042922E-3},{"$f":"'Population at Risk'!AJ63/'Population at Risk'!AJ$5","v":4.5496977378786246E-3},{"$f":"'Population at Risk'!AK63/'Population at Risk'!AK$5","v":3.9836681496611303E-4},{"$f":"'Population at Risk'!AL63/'Population at Risk'!AL$5","v":1.5496659416616466E-2},{"$f":"'Population at Risk'!AM63/'Population at Risk'!AM$5","v":1.1576197518972322E-2},{"$f":"'Population at Risk'!AN63/'Population at Risk'!AN$5","v":0},{"$f":"'Population at Risk'!AO63/'Population at Risk'!AO$5","v":0},{"$f":"'Population at Risk'!AP63/'Population at Risk'!AP$5","v":2.186298653843574E-3},{"$f":"'Population at Risk'!AQ63/'Population at Risk'!AQ$5","v":8.7052713911166275E-3},{"$f":"'Population at Risk'!AR63/'Population at Risk'!AR$5","v":8.0769393352295854E-3},{"$f":"'Population at Risk'!AS63/'Population at Risk'!AS$5","v":3.302313125765744E-3},{"$f":"'Population at Risk'!AT63/'Population at Risk'!AT$5","v":0},{"$f":"'Population at Risk'!AU63/'Population at Risk'!AU$5","v":0},{"$f":"'Population at Risk'!AV63/'Population at Risk'!AV$5","v":7.6959251446554258E-3},{"$f":"'Population at Risk'!AW63/'Population at Risk'!AW$5","v":7.9579106526029286E-3},{"$f":"'Population at Risk'!AX63/'Population at Risk'!AX$5","v":6.6447842850929873E-3},{"$f":"'Population at Risk'!AY63/'Population at Risk'!AY$5","v":7.7595886253880152E-3},{"$f":"'Population at Risk'!AZ63/'Population at Risk'!AZ$5","v":6.5128985174794677E-3},{"$f":"'Population at Risk'!BA63/'Population at Risk'!BA$5","v":1.2529509379529567E-2},{"$f":"'Population at Risk'!BB63/'Population at Risk'!BB$5","v":7.5223983482795428E-3},{"$f":"'Population at Risk'!BC63/'Population at Risk'!BC$5","v":0},61]
[null,"Female 20-24",{"$f":"'Population at Risk'!C64/'Population at Risk'!C$5","v":6.135383787646974E-3},{"$f":"'Population at Risk'!D64/'Population at Risk'!D$5","v":4.2336413662628801E-3},{"$f":"'Population at Risk'!E64/'Population at Risk'!E$5","v":1.8949402301951062E-3},{"$f":"'Population at Risk'!F64/'Population at Risk'!F$5","v":6.2498970289245493E-3},{"$f":"'Population at Risk'!G64/'Population at Risk'!G$5","v":4.8466078971868068E-3},{"$f":"'Population at Risk'!H64/'Population at Risk'!H$5","v":1.7553149800639066E-2},{"$f":"'Population at Risk'!I64/'Population at Risk'!I$5","v":4.2402482147406301E-3},{"$f":"'Population at Risk'!J64/'Population at Risk'!J$5","v":1.2091061760337156E-2},{"$f":"'Population at Risk'!K64/'Population at Risk'!K$5","v":1.4392957855118708E-2},{"$f":"'Population at Risk'!L64/'Population at Risk'!L$5","v":7.4149289097621279E-3},{"$f":"'Population at Risk'!M64/'Population at Risk'!M$5","v":7.4149289097621279E-3},{"$f":"'Population at Risk'!N64/'Population at Risk'!N$5","v":1.6903720497388898E-2},{"$f":"'Population at Risk'!O64/'Population at Risk'!O$5","v":1.6972511090952606E-2},{"$f":"'Population at Risk'!P64/'Population at Risk'!P$5","v":3.685216227244065E-3},{"$f":"'Population at Risk'!Q64/'Population at Risk'!Q$5","v":2.420018306328204E-3},{"$f":"'Population at Risk'!R64/'Population at Risk'!R$5","v":5.5241963929658798E-3},{"$f":"'Population at Risk'!S64/'Population at Risk'!S$5","v":8.928019516617371E-3},{"$f":"'Population at Risk'!T64/'Population at Risk'!T$5","v":9.0874420223045118E-3},{"$f":"'Population at Risk'!U64/'Population at Risk'!U$5","v":0},{"$f":"'Population at Risk'!V64/'Population at Risk'!V$5","v":9.7597539952810532E-3},{"$f":"'Population at Risk'!W64/'Population at Risk'!W$5","v":1.1303839021012337E-2},{"$f":"'Population at Risk'!X64/'Population at Risk'!X$5","v":1.1303839021012337E-2},{"$f":"'Population at Risk'!Y64/'Population at Risk'!Y$5","v":1.095173514369136E-2},{"$f":"'Population at Risk'!Z64/'Population at Risk'!Z$5","v":2.5053515923065525E-2},{"$f":"'Population at Risk'!AA64/'Population at Risk'!AA$5","v":1.7951410969176643E-2},{"$f":"'Population at Risk'!AB64/'Population at Risk'!AB$5","v":3.7394332371469448E-3},{"$f":"'Population at Risk'!AC64/'Population at Risk'!AC$5","v":2.0294392099010378E-2},{"$f":"'Population at Risk'!AD64/'Population at Risk'!AD$5","v":4.6727910652138369E-3},{"$f":"'Population at Risk'!AE64/'Population at Risk'!AE$5","v":4.6264528209962836E-3},{"$f":"'Population at Risk'!AF64/'Population at Risk'!AF$5","v":1.8793736395264441E-2},{"$f":"'Population at Risk'!AG64/'Population at Risk'!AG$5","v":4.6264528209962836E-3},{"$f":"'Population at Risk'!AH64/'Population at Risk'!AH$5","v":1.3641685354084741E-2},{"$f":"'Population at Risk'!AI64/'Population at Risk'!AI$5","v":8.4039793106282738E-3},{"$f":"'Population at Risk'!AJ64/'Population at Risk'!AJ$5","v":7.2351290856021051E-3},{"$f":"'Population at Risk'!AK64/'Population at Risk'!AK$5","v":8.7142740773837218E-4},{"$f":"'Population at Risk'!AL64/'Population at Risk'!AL$5","v":2.232161304569626E-2},{"$f":"'Population at Risk'!AM64/'Population at Risk'!AM$5","v":1.5611225011800407E-2},{"$f":"'Population at Risk'!AN64/'Population at Risk'!AN$5","v":0},{"$f":"'Population at Risk'!AO64/'Population at Risk'!AO$5","v":0},{"$f":"'Population at Risk'!AP64/'Population at Risk'!AP$5","v":3.894717820508225E-3},{"$f":"'Population at Risk'!AQ64/'Population at Risk'!AQ$5","v":1.6020695437762439E-2},{"$f":"'Population at Risk'!AR64/'Population at Risk'!AR$5","v":1.2587472684478417E-2},{"$f":"'Population at Risk'!AS64/'Population at Risk'!AS$5","v":4.2402482147406301E-3},{"$f":"'Population at Risk'!AT64/'Population at Risk'!AT$5","v":0},{"$f":"'Population at Risk'!AU64/'Population at Risk'!AU$5","v":0},{"$f":"'Population at Risk'!AV64/'Population at Risk'!AV$5","v":1.1772089996323638E-2},{"$f":"'Population at Risk'!AW64/'Population at Risk'!AW$5","v":1.1261400710453217E-2},{"$f":"'Population at Risk'!AX64/'Population at Risk'!AX$5","v":1.0693949708821527E-2},{"$f":"'Population at Risk'!AY64/'Population at Risk'!AY$5","v":1.1191757084083832E-2},{"$f":"'Population at Risk'!AZ64/'Population at Risk'!AZ$5","v":1.0920064221014252E-2},{"$f":"'Population at Risk'!BA64/'Population at Risk'!BA$5","v":1.9564712161575983E-2},{"$f":"'Population at Risk'!BB64/'Population at Risk'!BB$5","v":1.0200748803299797E-2},{"$f":"'Population at Risk'!BC64/'Population at Risk'!BC$5","v":0},62]
[null,"Female 25-29",{"$f":"'Population at Risk'!C65/'Population at Risk'!C$5","v":1.1924851228254043E-2},{"$f":"'Population at Risk'!D65/'Population at Risk'!D$5","v":8.0653556577527149E-3},{"$f":"'Population at Risk'!E65/'Population at Risk'!E$5","v":3.3243121771489702E-3},{"$f":"'Population at Risk'!F65/'Population at Risk'!F$5","v":8.6090136236543248E-3},{"$f":"'Population at Risk'!G65/'Population at Risk'!G$5","v":5.9082970285108879E-3},{"$f":"'Population at Risk'!H65/'Population at Risk'!H$5","v":2.5915297378777787E-2},{"$f":"'Population at Risk'!I65/'Population at Risk'!I$5","v":5.8765310678605765E-3},{"$f":"'Population at Risk'!J65/'Population at Risk'!J$5","v":1.8886425927968506E-2},{"$f":"'Population at Risk'!K65/'Population at Risk'!K$5","v":2.054616996054117E-2},{"$f":"'Population at Risk'!L65/'Population at Risk'!L$5","v":1.0974712041005148E-2},{"$f":"'Population at Risk'!M65/'Population at Risk'!M$5","v":1.0974712041005148E-2},{"$f":"'Population at Risk'!N65/'Population at Risk'!N$5","v":3.246293488897125E-2},{"$f":"'Population at Risk'!O65/'Population at Risk'!O$5","v":2.5736979812560436E-2},{"$f":"'Population at Risk'!P65/'Population at Risk'!P$5","v":5.893187515432774E-3},{"$f":"'Population at Risk'!Q65/'Population at Risk'!Q$5","v":4.0730270588418141E-3},{"$f":"'Population at Risk'!R65/'Population at Risk'!R$5","v":7.8237620130357996E-3},{"$f":"'Population at Risk'!S65/'Population at Risk'!S$5","v":1.6909370462465812E-2},{"$f":"'Population at Risk'!T65/'Population at Risk'!T$5","v":2.0174132829698359E-2},{"$f":"'Population at Risk'!U65/'Population at Risk'!U$5","v":0},{"$f":"'Population at Risk'!V65/'Population at Risk'!V$5","v":1.6538698383551539E-2},{"$f":"'Population at Risk'!W65/'Population at Risk'!W$5","v":2.04448176772851E-2},{"$f":"'Population at Risk'!X65/'Population at Risk'!X$5","v":2.04448176772851E-2},{"$f":"'Population at Risk'!Y65/'Population at Risk'!Y$5","v":1.7756877100122383E-2},{"$f":"'Population at Risk'!Z65/'Population at Risk'!Z$5","v":5.1029518424583122E-2},{"$f":"'Population at Risk'!AA65/'Population at Risk'!AA$5","v":3.2425438995925773E-2},{"$f":"'Population at Risk'!AB65/'Population at Risk'!AB$5","v":7.0033634862866172E-3},{"$f":"'Population at Risk'!AC65/'Population at Risk'!AC$5","v":3.8384588841844577E-2},{"$f":"'Population at Risk'!AD65/'Population at Risk'!AD$5","v":6.5149366266884562E-3},{"$f":"'Population at Risk'!AE65/'Population at Risk'!AE$5","v":6.7298768056866303E-3},{"$f":"'Population at Risk'!AF65/'Population at Risk'!AF$5","v":2.7950448079830399E-2},{"$f":"'Population at Risk'!AG65/'Population at Risk'!AG$5","v":6.7298768056866303E-3},{"$f":"'Population at Risk'!AH65/'Population at Risk'!AH$5","v":2.1471472221537485E-2},{"$f":"'Population at Risk'!AI65/'Population at Risk'!AI$5","v":1.6585318273757525E-2},{"$f":"'Population at Risk'!AJ65/'Population at Risk'!AJ$5","v":1.1025997959022456E-2},{"$f":"'Population at Risk'!AK65/'Population at Risk'!AK$5","v":8.4420968399297018E-4},{"$f":"'Population at Risk'!AL65/'Population at Risk'!AL$5","v":3.2974382664632623E-2},{"$f":"'Population at Risk'!AM65/'Population at Risk'!AM$5","v":2.4997048265834803E-2},{"$f":"'Population at Risk'!AN65/'Population at Risk'!AN$5","v":0},{"$f":"'Population at Risk'!AO65/'Population at Risk'!AO$5","v":0},{"$f":"'Population at Risk'!AP65/'Population at Risk'!AP$5","v":7.0625590702655837E-3},{"$f":"'Population at Risk'!AQ65/'Population at Risk'!AQ$5","v":2.6807813577671289E-2},{"$f":"'Population at Risk'!AR65/'Population at Risk'!AR$5","v":2.225812661516377E-2},{"$f":"'Population at Risk'!AS65/'Population at Risk'!AS$5","v":5.8765310678605765E-3},{"$f":"'Population at Risk'!AT65/'Population at Risk'!AT$5","v":0},{"$f":"'Population at Risk'!AU65/'Population at Risk'!AU$5","v":0},{"$f":"'Population at Risk'!AV65/'Population at Risk'!AV$5","v":1.6496085518301479E-2},{"$f":"'Population at Risk'!AW65/'Population at Risk'!AW$5","v":1.7214454605883257E-2},{"$f":"'Population at Risk'!AX65/'Population at Risk'!AX$5","v":1.7938571142682592E-2},{"$f":"'Population at Risk'!AY65/'Population at Risk'!AY$5","v":2.0471465507461151E-2},{"$f":"'Population at Risk'!AZ65/'Population at Risk'!AZ$5","v":2.0154818789102372E-2},{"$f":"'Population at Risk'!BA65/'Population at Risk'!BA$5","v":2.9966821786898232E-2},{"$f":"'Population at Risk'!BB65/'Population at Risk'!BB$5","v":1.5901768461419583E-2},{"$f":"'Population at Risk'!BC65/'Population at Risk'!BC$5","v":0},63]
[null,"Female 30-34",{"$f":"'Population at Risk'!C66/'Population at Risk'!C$5","v":1.0479064221918685E-2},{"$f":"'Population at Risk'!D66/'Population at Risk'!D$5","v":7.2518288459384149E-3},{"$f":"'Population at Risk'!E66/'Population at Risk'!E$5","v":3.2824090824790254E-3},{"$f":"'Population at Risk'!F66/'Population at Risk'!F$5","v":9.5591723179037982E-3},{"$f":"'Population at Risk'!G66/'Population at Risk'!G$5","v":6.9044633879691199E-3},{"$f":"'Population at Risk'!H66/'Population at Risk'!H$5","v":2.300038453061105E-2},{"$f":"'Population at Risk'!I66/'Population at Risk'!I$5","v":5.962950642387937E-3},{"$f":"'Population at Risk'!J66/'Population at Risk'!J$5","v":1.6520966270323532E-2},{"$f":"'Population at Risk'!K66/'Population at Risk'!K$5","v":1.9634073630517147E-2},{"$f":"'Population at Risk'!L66/'Population at Risk'!L$5","v":9.3633455905401067E-3},{"$f":"'Population at Risk'!M66/'Population at Risk'!M$5","v":9.3633455905401067E-3},{"$f":"'Population at Risk'!N66/'Population at Risk'!N$5","v":2.6023813539708781E-2},{"$f":"'Population at Risk'!O66/'Population at Risk'!O$5","v":2.2873235981776253E-2},{"$f":"'Population at Risk'!P66/'Population at Risk'!P$5","v":5.0644580210750401E-3},{"$f":"'Population at Risk'!Q66/'Population at Risk'!Q$5","v":3.6865354401195978E-3},{"$f":"'Population at Risk'!R66/'Population at Risk'!R$5","v":7.6103866854075513E-3},{"$f":"'Population at Risk'!S66/'Population at Risk'!S$5","v":1.6159010579917608E-2},{"$f":"'Population at Risk'!T66/'Population at Risk'!T$5","v":1.9864021788436926E-2},{"$f":"'Population at Risk'!U66/'Population at Risk'!U$5","v":0},{"$f":"'Population at Risk'!V66/'Population at Risk'!V$5","v":1.6204957833210812E-2},{"$f":"'Population at Risk'!W66/'Population at Risk'!W$5","v":1.8035620525320761E-2},{"$f":"'Population at Risk'!X66/'Population at Risk'!X$5","v":1.8035620525320761E-2},{"$f":"'Population at Risk'!Y66/'Population at Risk'!Y$5","v":1.6406012892610448E-2},{"$f":"'Population at Risk'!Z66/'Population at Risk'!Z$5","v":4.3208764488475673E-2},{"$f":"'Population at Risk'!AA66/'Population at Risk'!AA$5","v":2.9494610977019518E-2},{"$f":"'Population at Risk'!AB66/'Population at Risk'!AB$5","v":6.3637374093657032E-3},{"$f":"'Population at Risk'!AC66/'Population at Risk'!AC$5","v":3.335591789542016E-2},{"$f":"'Population at Risk'!AD66/'Population at Risk'!AD$5","v":7.270907108794418E-3},{"$f":"'Population at Risk'!AE66/'Population at Risk'!AE$5","v":7.4085198449155348E-3},{"$f":"'Population at Risk'!AF66/'Population at Risk'!AF$5","v":2.7339108445538395E-2},{"$f":"'Population at Risk'!AG66/'Population at Risk'!AG$5","v":7.4085198449155348E-3},{"$f":"'Population at Risk'!AH66/'Population at Risk'!AH$5","v":2.2392097354370744E-2},{"$f":"'Population at Risk'!AI66/'Population at Risk'!AI$5","v":1.6471116790463897E-2},{"$f":"'Population at Risk'!AJ66/'Population at Risk'!AJ$5","v":9.684556070832781E-3},{"$f":"'Population at Risk'!AK66/'Population at Risk'!AK$5","v":1.2112573726855659E-3},{"$f":"'Population at Risk'!AL66/'Population at Risk'!AL$5","v":2.8628528128832324E-2},{"$f":"'Population at Risk'!AM66/'Population at Risk'!AM$5","v":2.5272627448114777E-2},{"$f":"'Population at Risk'!AN66/'Population at Risk'!AN$5","v":0},{"$f":"'Population at Risk'!AO66/'Population at Risk'!AO$5","v":0},{"$f":"'Population at Risk'!AP66/'Population at Risk'!AP$5","v":6.3404520331561348E-3},{"$f":"'Population at Risk'!AQ66/'Population at Risk'!AQ$5","v":2.2869457441088915E-2},{"$f":"'Population at Risk'!AR66/'Population at Risk'!AR$5","v":2.0340028398797977E-2},{"$f":"'Population at Risk'!AS66/'Population at Risk'!AS$5","v":5.962950642387937E-3},{"$f":"'Population at Risk'!AT66/'Population at Risk'!AT$5","v":0},{"$f":"'Population at Risk'!AU66/'Population at Risk'!AU$5","v":0},{"$f":"'Population at Risk'!AV66/'Population at Risk'!AV$5","v":1.5475230718294073E-2},{"$f":"'Population at Risk'!AW66/'Population at Risk'!AW$5","v":1.8907679649084887E-2},{"$f":"'Population at Risk'!AX66/'Population at Risk'!AX$5","v":1.463248635870696E-2},{"$f":"'Population at Risk'!AY66/'Population at Risk'!AY$5","v":1.7566619897939787E-2},{"$f":"'Population at Risk'!AZ66/'Population at Risk'!AZ$5","v":1.6912045196352435E-2},{"$f":"'Population at Risk'!BA66/'Population at Risk'!BA$5","v":3.0724023256245583E-2},{"$f":"'Population at Risk'!BB66/'Population at Risk'!BB$5","v":1.7043117507147078E-2},{"$f":"'Population at Risk'!BC66/'Population at Risk'!BC$5","v":0},64]
[null,"Female 35-39",{"$f":"'Population at Risk'!C67/'Population at Risk'!C$5","v":6.9345211847140894E-3},{"$f":"'Population at Risk'!D67/'Population at Risk'!D$5","v":4.8219524407257007E-3},{"$f":"'Population at Risk'!E67/'Population at Risk'!E$5","v":2.2228003647189565E-3},{"$f":"'Population at Risk'!F67/'Population at Risk'!F$5","v":7.9386314421109518E-3},{"$f":"'Population at Risk'!G67/'Population at Risk'!G$5","v":5.6254116603794519E-3},{"$f":"'Population at Risk'!H67/'Population at Risk'!H$5","v":1.9114700230228647E-2},{"$f":"'Population at Risk'!I67/'Population at Risk'!I$5","v":5.117281014952374E-3},{"$f":"'Population at Risk'!J67/'Population at Risk'!J$5","v":1.3338283823140238E-2},{"$f":"'Population at Risk'!K67/'Population at Risk'!K$5","v":1.8743328955706982E-2},{"$f":"'Population at Risk'!L67/'Population at Risk'!L$5","v":7.2730566180078306E-3},{"$f":"'Population at Risk'!M67/'Population at Risk'!M$5","v":7.2730566180078306E-3},{"$f":"'Population at Risk'!N67/'Population at Risk'!N$5","v":1.8851500770582751E-2},{"$f":"'Population at Risk'!O67/'Population at Risk'!O$5","v":1.8598197551865744E-2},{"$f":"'Population at Risk'!P67/'Population at Risk'!P$5","v":4.2881813908110895E-3},{"$f":"'Population at Risk'!Q67/'Population at Risk'!Q$5","v":3.9885211510880788E-3},{"$f":"'Population at Risk'!R67/'Population at Risk'!R$5","v":7.0742202904390148E-3},{"$f":"'Population at Risk'!S67/'Population at Risk'!S$5","v":1.2829066129857429E-2},{"$f":"'Population at Risk'!T67/'Population at Risk'!T$5","v":1.4721725587278432E-2},{"$f":"'Population at Risk'!U67/'Population at Risk'!U$5","v":0},{"$f":"'Population at Risk'!V67/'Population at Risk'!V$5","v":1.1836757014195978E-2},{"$f":"'Population at Risk'!W67/'Population at Risk'!W$5","v":1.5164388136338596E-2},{"$f":"'Population at Risk'!X67/'Population at Risk'!X$5","v":1.5164388136338596E-2},{"$f":"'Population at Risk'!Y67/'Population at Risk'!Y$5","v":1.2619203337278333E-2},{"$f":"'Population at Risk'!Z67/'Population at Risk'!Z$5","v":3.3138668112785576E-2},{"$f":"'Population at Risk'!AA67/'Population at Risk'!AA$5","v":2.3329975496451862E-2},{"$f":"'Population at Risk'!AB67/'Population at Risk'!AB$5","v":4.2328586839841505E-3},{"$f":"'Population at Risk'!AC67/'Population at Risk'!AC$5","v":2.5983460144124566E-2},{"$f":"'Population at Risk'!AD67/'Population at Risk'!AD$5","v":5.4933741102757786E-3},{"$f":"'Population at Risk'!AE67/'Population at Risk'!AE$5","v":5.4627059118711012E-3},{"$f":"'Population at Risk'!AF67/'Population at Risk'!AF$5","v":2.2466683216088763E-2},{"$f":"'Population at Risk'!AG67/'Population at Risk'!AG$5","v":5.4627059118711012E-3},{"$f":"'Population at Risk'!AH67/'Population at Risk'!AH$5","v":1.844742368984046E-2},{"$f":"'Population at Risk'!AI67/'Population at Risk'!AI$5","v":1.266132904872295E-2},{"$f":"'Population at Risk'!AJ67/'Population at Risk'!AJ$5","v":8.4760440934683167E-3},{"$f":"'Population at Risk'!AK67/'Population at Risk'!AK$5","v":8.1504371804709725E-4},{"$f":"'Population at Risk'!AL67/'Population at Risk'!AL$5","v":2.4751168711144141E-2},{"$f":"'Population at Risk'!AM67/'Population at Risk'!AM$5","v":2.0926412798615519E-2},{"$f":"'Population at Risk'!AN67/'Population at Risk'!AN$5","v":0},{"$f":"'Population at Risk'!AO67/'Population at Risk'!AO$5","v":0},{"$f":"'Population at Risk'!AP67/'Population at Risk'!AP$5","v":4.8234368918002131E-3},{"$f":"'Population at Risk'!AQ67/'Population at Risk'!AQ$5","v":1.8673383856063496E-2},{"$f":"'Population at Risk'!AR67/'Population at Risk'!AR$5","v":1.5988929062637242E-2},{"$f":"'Population at Risk'!AS67/'Population at Risk'!AS$5","v":5.117281014952374E-3},{"$f":"'Population at Risk'!AT67/'Population at Risk'!AT$5","v":0},{"$f":"'Population at Risk'!AU67/'Population at Risk'!AU$5","v":0},{"$f":"'Population at Risk'!AV67/'Population at Risk'!AV$5","v":1.2064095968771825E-2},{"$f":"'Population at Risk'!AW67/'Population at Risk'!AW$5","v":1.5449792693535986E-2},{"$f":"'Population at Risk'!AX67/'Population at Risk'!AX$5","v":9.9696534859614831E-3},{"$f":"'Population at Risk'!AY67/'Population at Risk'!AY$5","v":1.3810866427516761E-2},{"$f":"'Population at Risk'!AZ67/'Population at Risk'!AZ$5","v":1.2529697059193773E-2},{"$f":"'Population at Risk'!BA67/'Population at Risk'!BA$5","v":2.3543781759296167E-2},{"$f":"'Population at Risk'!BB67/'Population at Risk'!BB$5","v":1.351399980726865E-2},{"$f":"'Population at Risk'!BC67/'Population at Risk'!BC$5","v":0},65]
[null,"Female 40-44",{"$f":"'Population at Risk'!C68/'Population at Risk'!C$5","v":7.0736396652716256E-3},{"$f":"'Population at Risk'!D68/'Population at Risk'!D$5","v":4.8748763089775686E-3},{"$f":"'Population at Risk'!E68/'Population at Risk'!E$5","v":2.1711073329813064E-3},{"$f":"'Population at Risk'!F68/'Population at Risk'!F$5","v":6.7931242205982985E-3},{"$f":"'Population at Risk'!G68/'Population at Risk'!G$5","v":6.610653250615401E-3},{"$f":"'Population at Risk'!H68/'Population at Risk'!H$5","v":2.1699522305202452E-2},{"$f":"'Population at Risk'!I68/'Population at Risk'!I$5","v":6.2100337316869968E-3},{"$f":"'Population at Risk'!J68/'Population at Risk'!J$5","v":1.3338283823140238E-2},{"$f":"'Population at Risk'!K68/'Population at Risk'!K$5","v":1.8077096883821663E-2},{"$f":"'Population at Risk'!L68/'Population at Risk'!L$5","v":7.3536445029719058E-3},{"$f":"'Population at Risk'!M68/'Population at Risk'!M$5","v":7.3536445029719058E-3},{"$f":"'Population at Risk'!N68/'Population at Risk'!N$5","v":1.5582330072204454E-2},{"$f":"'Population at Risk'!O68/'Population at Risk'!O$5","v":2.0925095327761274E-2},{"$f":"'Population at Risk'!P68/'Population at Risk'!P$5","v":4.9981451972367667E-3},{"$f":"'Population at Risk'!Q68/'Population at Risk'!Q$5","v":2.9157464966574919E-3},{"$f":"'Population at Risk'!R68/'Population at Risk'!R$5","v":6.6135733878057764E-3},{"$f":"'Population at Risk'!S68/'Population at Risk'!S$5","v":1.1841167752721222E-2},{"$f":"'Population at Risk'!T68/'Population at Risk'!T$5","v":1.1398642951170579E-2},{"$f":"'Population at Risk'!U68/'Population at Risk'!U$5","v":0},{"$f":"'Population at Risk'!V68/'Population at Risk'!V$5","v":1.358653848585973E-2},{"$f":"'Population at Risk'!W68/'Population at Risk'!W$5","v":1.5603339217625646E-2},{"$f":"'Population at Risk'!X68/'Population at Risk'!X$5","v":1.5603339217625646E-2},{"$f":"'Population at Risk'!Y68/'Population at Risk'!Y$5","v":1.3498410127170674E-2},{"$f":"'Population at Risk'!Z68/'Population at Risk'!Z$5","v":2.9670745508911862E-2},{"$f":"'Population at Risk'!AA68/'Population at Risk'!AA$5","v":2.2062133137405193E-2},{"$f":"'Population at Risk'!AB68/'Population at Risk'!AB$5","v":4.2980567442824844E-3},{"$f":"'Population at Risk'!AC68/'Population at Risk'!AC$5","v":2.3790279322052705E-2},{"$f":"'Population at Risk'!AD68/'Population at Risk'!AD$5","v":5.7684357610048951E-3},{"$f":"'Population at Risk'!AE68/'Population at Risk'!AE$5","v":5.5045657272877373E-3},{"$f":"'Population at Risk'!AF68/'Population at Risk'!AF$5","v":2.2602433567847607E-2},{"$f":"'Population at Risk'!AG68/'Population at Risk'!AG$5","v":5.5045657272877373E-3},{"$f":"'Population at Risk'!AH68/'Population at Risk'!AH$5","v":1.887840654646477E-2},{"$f":"'Population at Risk'!AI68/'Population at Risk'!AI$5","v":1.0810734221143748E-2},{"$f":"'Population at Risk'!AJ68/'Population at Risk'!AJ$5","v":8.5971304376607216E-3},{"$f":"'Population at Risk'!AK68/'Population at Risk'!AK$5","v":9.5088433772161341E-4},{"$f":"'Population at Risk'!AL68/'Population at Risk'!AL$5","v":2.8740769230323506E-2},{"$f":"'Population at Risk'!AM68/'Population at Risk'!AM$5","v":2.1548297280000826E-2},{"$f":"'Population at Risk'!AN68/'Population at Risk'!AN$5","v":0},{"$f":"'Population at Risk'!AO68/'Population at Risk'!AO$5","v":0},{"$f":"'Population at Risk'!AP68/'Population at Risk'!AP$5","v":3.9597809618494989E-3},{"$f":"'Population at Risk'!AQ68/'Population at Risk'!AQ$5","v":1.686847927666283E-2},{"$f":"'Population at Risk'!AR68/'Population at Risk'!AR$5","v":1.536147380088925E-2},{"$f":"'Population at Risk'!AS68/'Population at Risk'!AS$5","v":6.2100337316869968E-3},{"$f":"'Population at Risk'!AT68/'Population at Risk'!AT$5","v":0},{"$f":"'Population at Risk'!AU68/'Population at Risk'!AU$5","v":0},{"$f":"'Population at Risk'!AV68/'Population at Risk'!AV$5","v":1.3051548663724679E-2},{"$f":"'Population at Risk'!AW68/'Population at Risk'!AW$5","v":1.5651214423485514E-2},{"$f":"'Population at Risk'!AX68/'Population at Risk'!AX$5","v":1.0394496674283703E-2},{"$f":"'Population at Risk'!AY68/'Population at Risk'!AY$5","v":1.279277710771737E-2},{"$f":"'Population at Risk'!AZ68/'Population at Risk'!AZ$5","v":1.0394256571900417E-2},{"$f":"'Population at Risk'!BA68/'Population at Risk'!BA$5","v":2.345886279893802E-2},{"$f":"'Population at Risk'!BB68/'Population at Risk'!BB$5","v":1.4355949108883066E-2},{"$f":"'Population at Risk'!BC68/'Population at Risk'!BC$5","v":0},66]
[null,"Female 45-49",{"$f":"'Population at Risk'!C69/'Population at Risk'!C$5","v":7.2195608486035111E-3},{"$f":"'Population at Risk'!D69/'Population at Risk'!D$5","v":5.2761729646210393E-3},{"$f":"'Population at Risk'!E69/'Population at Risk'!E$5","v":2.8768084557751262E-3},{"$f":"'Population at Risk'!F69/'Population at Risk'!F$5","v":9.1978393988004243E-3},{"$f":"'Population at Risk'!G69/'Population at Risk'!G$5","v":8.6270398948908693E-3},{"$f":"'Population at Risk'!H69/'Population at Risk'!H$5","v":2.9377232262874354E-2},{"$f":"'Population at Risk'!I69/'Population at Risk'!I$5","v":6.871424168849366E-3},{"$f":"'Population at Risk'!J69/'Population at Risk'!J$5","v":1.9219998273319206E-2},{"$f":"'Population at Risk'!K69/'Population at Risk'!K$5","v":2.3809985875876714E-2},{"$f":"'Population at Risk'!L69/'Population at Risk'!L$5","v":1.0479923374532654E-2},{"$f":"'Population at Risk'!M69/'Population at Risk'!M$5","v":1.0479923374532654E-2},{"$f":"'Population at Risk'!N69/'Population at Risk'!N$5","v":2.0115946688974023E-2},{"$f":"'Population at Risk'!O69/'Population at Risk'!O$5","v":2.9456330037339697E-2},{"$f":"'Population at Risk'!P69/'Population at Risk'!P$5","v":6.8055231957335699E-3},{"$f":"'Population at Risk'!Q69/'Population at Risk'!Q$5","v":4.7798931754109725E-3},{"$f":"'Population at Risk'!R69/'Population at Risk'!R$5","v":9.1930175563399025E-3},{"$f":"'Population at Risk'!S69/'Population at Risk'!S$5","v":1.5063149870554314E-2},{"$f":"'Population at Risk'!T69/'Population at Risk'!T$5","v":1.3799204795199107E-2},{"$f":"'Population at Risk'!U69/'Population at Risk'!U$5","v":0},{"$f":"'Population at Risk'!V69/'Population at Risk'!V$5","v":1.5372464815269009E-2},{"$f":"'Population at Risk'!W69/'Population at Risk'!W$5","v":2.1499486836001159E-2},{"$f":"'Population at Risk'!X69/'Population at Risk'!X$5","v":2.1499486836001159E-2},{"$f":"'Population at Risk'!Y69/'Population at Risk'!Y$5","v":1.7337732001761409E-2},{"$f":"'Population at Risk'!Z69/'Population at Risk'!Z$5","v":3.9553578669046276E-2},{"$f":"'Population at Risk'!AA69/'Population at Risk'!AA$5","v":2.978892921808737E-2},{"$f":"'Population at Risk'!AB69/'Population at Risk'!AB$5","v":4.6593731144483974E-3},{"$f":"'Population at Risk'!AC69/'Population at Risk'!AC$5","v":3.2545595397174193E-2},{"$f":"'Population at Risk'!AD69/'Population at Risk'!AD$5","v":7.5779642768018874E-3},{"$f":"'Population at Risk'!AE69/'Population at Risk'!AE$5","v":7.2502004749478302E-3},{"$f":"'Population at Risk'!AF69/'Population at Risk'!AF$5","v":3.451028839807968E-2},{"$f":"'Population at Risk'!AG69/'Population at Risk'!AG$5","v":7.2502004749478302E-3},{"$f":"'Population at Risk'!AH69/'Population at Risk'!AH$5","v":2.4713408669609329E-2},{"$f":"'Population at Risk'!AI69/'Population at Risk'!AI$5","v":1.3142335551992861E-2},{"$f":"'Population at Risk'!AJ69/'Population at Risk'!AJ$5","v":1.0726860498857018E-2},{"$f":"'Population at Risk'!AK69/'Population at Risk'!AK$5","v":1.0799671781701245E-3},{"$f":"'Population at Risk'!AL69/'Population at Risk'!AL$5","v":3.7706608658266881E-2},{"$f":"'Population at Risk'!AM69/'Population at Risk'!AM$5","v":2.8139210739267891E-2},{"$f":"'Population at Risk'!AN69/'Population at Risk'!AN$5","v":0},{"$f":"'Population at Risk'!AO69/'Population at Risk'!AO$5","v":0},{"$f":"'Population at Risk'!AP69/'Population at Risk'!AP$5","v":4.4232924427051118E-3},{"$f":"'Population at Risk'!AQ69/'Population at Risk'!AQ$5","v":2.4199381036320244E-2},{"$f":"'Population at Risk'!AR69/'Population at Risk'!AR$5","v":2.0314950062307956E-2},{"$f":"'Population at Risk'!AS69/'Population at Risk'!AS$5","v":6.871424168849366E-3},{"$f":"'Population at Risk'!AT69/'Population at Risk'!AT$5","v":0},{"$f":"'Population at Risk'!AU69/'Population at Risk'!AU$5","v":0},{"$f":"'Population at Risk'!AV69/'Population at Risk'!AV$5","v":1.7895234361185786E-2},{"$f":"'Population at Risk'!AW69/'Population at Risk'!AW$5","v":2.0571885700207151E-2},{"$f":"'Population at Risk'!AX69/'Population at Risk'!AX$5","v":1.640553656832883E-2},{"$f":"'Population at Risk'!AY69/'Population at Risk'!AY$5","v":1.7034706913729533E-2},{"$f":"'Population at Risk'!AZ69/'Population at Risk'!AZ$5","v":1.3278666355986114E-2},{"$f":"'Population at Risk'!BA69/'Population at Risk'!BA$5","v":3.3153565248521193E-2},{"$f":"'Population at Risk'!BB69/'Population at Risk'!BB$5","v":1.6839622041144323E-2},{"$f":"'Population at Risk'!BC69/'Population at Risk'!BC$5","v":0},67]
[null,"Female 50-54",{"$f":"'Population at Risk'!C70/'Population at Risk'!C$5","v":7.6206475624148173E-3},{"$f":"'Population at Risk'!D70/'Population at Risk'!D$5","v":5.4231043636358027E-3},{"$f":"'Population at Risk'!E70/'Population at Risk'!E$5","v":2.7153549199918285E-3},{"$f":"'Population at Risk'!F70/'Population at Risk'!F$5","v":8.4414381324517031E-3},{"$f":"'Population at Risk'!G70/'Population at Risk'!G$5","v":8.4104614874877491E-3},{"$f":"'Population at Risk'!H70/'Population at Risk'!H$5","v":2.9920137992578401E-2},{"$f":"'Population at Risk'!I70/'Population at Risk'!I$5","v":6.6595300314839668E-3},{"$f":"'Population at Risk'!J70/'Population at Risk'!J$5","v":1.7712931198934707E-2},{"$f":"'Population at Risk'!K70/'Population at Risk'!K$5","v":2.3053312595923008E-2},{"$f":"'Population at Risk'!L70/'Population at Risk'!L$5","v":1.082315230601298E-2},{"$f":"'Population at Risk'!M70/'Population at Risk'!M$5","v":1.082315230601298E-2},{"$f":"'Population at Risk'!N70/'Population at Risk'!N$5","v":2.2790744700440509E-2},{"$f":"'Population at Risk'!O70/'Population at Risk'!O$5","v":3.0208652808430891E-2},{"$f":"'Population at Risk'!P70/'Population at Risk'!P$5","v":6.8377768601683257E-3},{"$f":"'Population at Risk'!Q70/'Population at Risk'!Q$5","v":3.9051414831788997E-3},{"$f":"'Population at Risk'!R70/'Population at Risk'!R$5","v":9.6414574371369716E-3},{"$f":"'Population at Risk'!S70/'Population at Risk'!S$5","v":1.4486686217150402E-2},{"$f":"'Population at Risk'!T70/'Population at Risk'!T$5","v":1.2400916975677001E-2},{"$f":"'Population at Risk'!U70/'Population at Risk'!U$5","v":0},{"$f":"'Population at Risk'!V70/'Population at Risk'!V$5","v":1.6366122236788298E-2},{"$f":"'Population at Risk'!W70/'Population at Risk'!W$5","v":2.1546224850862033E-2},{"$f":"'Population at Risk'!X70/'Population at Risk'!X$5","v":2.1546224850862033E-2},{"$f":"'Population at Risk'!Y70/'Population at Risk'!Y$5","v":1.708319725752324E-2},{"$f":"'Population at Risk'!Z70/'Population at Risk'!Z$5","v":4.149262810207497E-2},{"$f":"'Population at Risk'!AA70/'Population at Risk'!AA$5","v":3.0491908787457063E-2},{"$f":"'Population at Risk'!AB70/'Population at Risk'!AB$5","v":4.7789902726432833E-3},{"$f":"'Population at Risk'!AC70/'Population at Risk'!AC$5","v":3.3530616321365898E-2},{"$f":"'Population at Risk'!AD70/'Population at Risk'!AD$5","v":7.0959736160865735E-3},{"$f":"'Population at Risk'!AE70/'Population at Risk'!AE$5","v":6.6796928965912805E-3},{"$f":"'Population at Risk'!AF70/'Population at Risk'!AF$5","v":3.3996360052613118E-2},{"$f":"'Population at Risk'!AG70/'Population at Risk'!AG$5","v":6.6796928965912805E-3},{"$f":"'Population at Risk'!AH70/'Population at Risk'!AH$5","v":2.4898412352725555E-2},{"$f":"'Population at Risk'!AI70/'Population at Risk'!AI$5","v":1.2250864838839156E-2},{"$f":"'Population at Risk'!AJ70/'Population at Risk'!AJ$5","v":1.0898765314543828E-2},{"$f":"'Population at Risk'!AK70/'Population at Risk'!AK$5","v":1.041396921806906E-3},{"$f":"'Population at Risk'!AL70/'Population at Risk'!AL$5","v":3.91281584663071E-2},{"$f":"'Population at Risk'!AM70/'Population at Risk'!AM$5","v":2.8548867923725102E-2},{"$f":"'Population at Risk'!AN70/'Population at Risk'!AN$5","v":0},{"$f":"'Population at Risk'!AO70/'Population at Risk'!AO$5","v":0},{"$f":"'Population at Risk'!AP70/'Population at Risk'!AP$5","v":4.7934424379105604E-3},{"$f":"'Population at Risk'!AQ70/'Population at Risk'!AQ$5","v":2.3180866863773998E-2},{"$f":"'Population at Risk'!AR70/'Population at Risk'!AR$5","v":2.0577717102683243E-2},{"$f":"'Population at Risk'!AS70/'Population at Risk'!AS$5","v":6.6595300314839668E-3},{"$f":"'Population at Risk'!AT70/'Population at Risk'!AT$5","v":0},{"$f":"'Population at Risk'!AU70/'Population at Risk'!AU$5","v":0},{"$f":"'Population at Risk'!AV70/'Population at Risk'!AV$5","v":1.6968778086356006E-2},{"$f":"'Population at Risk'!AW70/'Population at Risk'!AW$5","v":2.048715799962969E-2},{"$f":"'Population at Risk'!AX70/'Population at Risk'!AX$5","v":1.4411138005120229E-2},{"$f":"'Population at Risk'!AY70/'Population at Risk'!AY$5","v":1.7791804998784182E-2},{"$f":"'Population at Risk'!AZ70/'Population at Risk'!AZ$5","v":1.4576216401730875E-2},{"$f":"'Population at Risk'!BA70/'Population at Risk'!BA$5","v":3.4190367652656761E-2},{"$f":"'Population at Risk'!BB70/'Population at Risk'!BB$5","v":1.6823414512712038E-2},{"$f":"'Population at Risk'!BC70/'Population at Risk'!BC$5","v":0},68]
[null,"Female 55-59",{"$f":"'Population at Risk'!C71/'Population at Risk'!C$5","v":8.6985584398631809E-3},{"$f":"'Population at Risk'!D71/'Population at Risk'!D$5","v":6.1846575488802595E-3},{"$f":"'Population at Risk'!E71/'Population at Risk'!E$5","v":3.0872918315392158E-3},{"$f":"'Population at Risk'!F71/'Population at Risk'!F$5","v":1.0406657725531905E-2},{"$f":"'Population at Risk'!G71/'Population at Risk'!G$5","v":1.0648647546505578E-2},{"$f":"'Population at Risk'!H71/'Population at Risk'!H$5","v":3.4695642837106223E-2},{"$f":"'Population at Risk'!I71/'Population at Risk'!I$5","v":7.8087442037485331E-3},{"$f":"'Population at Risk'!J71/'Population at Risk'!J$5","v":2.161991670063754E-2},{"$f":"'Population at Risk'!K71/'Population at Risk'!K$5","v":2.796126699099474E-2},{"$f":"'Population at Risk'!L71/'Population at Risk'!L$5","v":1.1623837713815423E-2},{"$f":"'Population at Risk'!M71/'Population at Risk'!M$5","v":1.1623837713815423E-2},{"$f":"'Population at Risk'!N71/'Population at Risk'!N$5","v":2.6966767935647118E-2},{"$f":"'Population at Risk'!O71/'Population at Risk'!O$5","v":3.2358213633391697E-2},{"$f":"'Population at Risk'!P71/'Population at Risk'!P$5","v":9.045667261885099E-3},{"$f":"'Population at Risk'!Q71/'Population at Risk'!Q$5","v":5.662041020645432E-3},{"$f":"'Population at Risk'!R71/'Population at Risk'!R$5","v":9.6401386025830212E-3},{"$f":"'Population at Risk'!S71/'Population at Risk'!S$5","v":1.7770658561380315E-2},{"$f":"'Population at Risk'!T71/'Population at Risk'!T$5","v":1.6169980041103128E-2},{"$f":"'Population at Risk'!U71/'Population at Risk'!U$5","v":0},{"$f":"'Population at Risk'!V71/'Population at Risk'!V$5","v":1.974335517786709E-2},{"$f":"'Population at Risk'!W71/'Population at Risk'!W$5","v":2.5205838480337438E-2},{"$f":"'Population at Risk'!X71/'Population at Risk'!X$5","v":2.5205838480337438E-2},{"$f":"'Population at Risk'!Y71/'Population at Risk'!Y$5","v":2.0734365056032499E-2},{"$f":"'Population at Risk'!Z71/'Population at Risk'!Z$5","v":4.7530622783265059E-2},{"$f":"'Population at Risk'!AA71/'Population at Risk'!AA$5","v":3.583887575409047E-2},{"$f":"'Population at Risk'!AB71/'Population at Risk'!AB$5","v":5.4480134027445025E-3},{"$f":"'Population at Risk'!AC71/'Population at Risk'!AC$5","v":3.9017388098134889E-2},{"$f":"'Population at Risk'!AD71/'Population at Risk'!AD$5","v":8.7259955285569086E-3},{"$f":"'Population at Risk'!AE71/'Population at Risk'!AE$5","v":8.1132632242337036E-3},{"$f":"'Population at Risk'!AF71/'Population at Risk'!AF$5","v":4.2934025594296599E-2},{"$f":"'Population at Risk'!AG71/'Population at Risk'!AG$5","v":8.1132632242337036E-3},{"$f":"'Population at Risk'!AH71/'Population at Risk'!AH$5","v":2.998582491921584E-2},{"$f":"'Population at Risk'!AI71/'Population at Risk'!AI$5","v":1.5607886173756585E-2},{"$f":"'Population at Risk'!AJ71/'Population at Risk'!AJ$5","v":1.4099555353079865E-2},{"$f":"'Population at Risk'!AK71/'Population at Risk'!AK$5","v":1.1735620195348071E-3},{"$f":"'Population at Risk'!AL71/'Population at Risk'!AL$5","v":4.6097287611339952E-2},{"$f":"'Population at Risk'!AM71/'Population at Risk'!AM$5","v":3.3366305107527985E-2},{"$f":"'Population at Risk'!AN71/'Population at Risk'!AN$5","v":0},{"$f":"'Population at Risk'!AO71/'Population at Risk'!AO$5","v":0},{"$f":"'Population at Risk'!AP71/'Population at Risk'!AP$5","v":5.7046546455562595E-3},{"$f":"'Population at Risk'!AQ71/'Population at Risk'!AQ$5","v":2.8192820298292936E-2},{"$f":"'Population at Risk'!AR71/'Population at Risk'!AR$5","v":2.4358995469831463E-2},{"$f":"'Population at Risk'!AS71/'Population at Risk'!AS$5","v":7.8087442037485331E-3},{"$f":"'Population at Risk'!AT71/'Population at Risk'!AT$5","v":0},{"$f":"'Population at Risk'!AU71/'Population at Risk'!AU$5","v":0},{"$f":"'Population at Risk'!AV71/'Population at Risk'!AV$5","v":2.2060894438519399E-2},{"$f":"'Population at Risk'!AW71/'Population at Risk'!AW$5","v":2.5891850126745063E-2},{"$f":"'Population at Risk'!AX71/'Population at Risk'!AX$5","v":1.7702690561442393E-2},{"$f":"'Population at Risk'!AY71/'Population at Risk'!AY$5","v":2.0978171021952811E-2},{"$f":"'Population at Risk'!AZ71/'Population at Risk'!AZ$5","v":1.7341701955254359E-2},{"$f":"'Population at Risk'!BA71/'Population at Risk'!BA$5","v":3.9329307623555236E-2},{"$f":"'Population at Risk'!BB71/'Population at Risk'!BB$5","v":1.9961453317804016E-2},{"$f":"'Population at Risk'!BC71/'Population at Risk'!BC$5","v":0},69]
[null,"Female 60-64",{"$f":"'Population at Risk'!C72/'Population at Risk'!C$5","v":7.0746131488720878E-3},{"$f":"'Population at Risk'!D72/'Population at Risk'!D$5","v":4.9919021644533523E-3},{"$f":"'Population at Risk'!E72/'Population at Risk'!E$5","v":2.4271162197635346E-3},{"$f":"'Population at Risk'!F72/'Population at Risk'!F$5","v":8.3653517870621846E-3},{"$f":"'Population at Risk'!G72/'Population at Risk'!G$5","v":9.5503565439511908E-3},{"$f":"'Population at Risk'!H72/'Population at Risk'!H$5","v":3.1414940601039443E-2},{"$f":"'Population at Risk'!I72/'Population at Risk'!I$5","v":7.4483406251139852E-3},{"$f":"'Population at Risk'!J72/'Population at Risk'!J$5","v":1.6545062002044777E-2},{"$f":"'Population at Risk'!K72/'Population at Risk'!K$5","v":2.2555866928296472E-2},{"$f":"'Population at Risk'!L72/'Population at Risk'!L$5","v":1.0443291696006045E-2},{"$f":"'Population at Risk'!M72/'Population at Risk'!M$5","v":1.0443291696006045E-2},{"$f":"'Population at Risk'!N72/'Population at Risk'!N$5","v":2.1489395658724188E-2},{"$f":"'Population at Risk'!O72/'Population at Risk'!O$5","v":2.9372479410121326E-2},{"$f":"'Population at Risk'!P72/'Population at Risk'!P$5","v":6.954923413619204E-3},{"$f":"'Population at Risk'!Q72/'Population at Risk'!Q$5","v":4.0088903576832617E-3},{"$f":"'Population at Risk'!R72/'Population at Risk'!R$5","v":8.5030966135604073E-3},{"$f":"'Population at Risk'!S72/'Population at Risk'!S$5","v":1.4390084415455121E-2},{"$f":"'Population at Risk'!T72/'Population at Risk'!T$5","v":1.2094173147562833E-2},{"$f":"'Population at Risk'!U72/'Population at Risk'!U$5","v":0},{"$f":"'Population at Risk'!V72/'Population at Risk'!V$5","v":1.6727725209446136E-2},{"$f":"'Population at Risk'!W72/'Population at Risk'!W$5","v":2.1496066668022853E-2},{"$f":"'Population at Risk'!X72/'Population at Risk'!X$5","v":2.1496066668022853E-2},{"$f":"'Population at Risk'!Y72/'Population at Risk'!Y$5","v":1.6680738408600782E-2},{"$f":"'Population at Risk'!Z72/'Population at Risk'!Z$5","v":3.6583599405860805E-2},{"$f":"'Population at Risk'!AA72/'Population at Risk'!AA$5","v":2.8918972369931361E-2},{"$f":"'Population at Risk'!AB72/'Population at Risk'!AB$5","v":4.5362435248301391E-3},{"$f":"'Population at Risk'!AC72/'Population at Risk'!AC$5","v":3.0537642425877705E-2},{"$f":"'Population at Risk'!AD72/'Population at Risk'!AD$5","v":8.0411406697527121E-3},{"$f":"'Population at Risk'!AE72/'Population at Risk'!AE$5","v":7.5629449822798671E-3},{"$f":"'Population at Risk'!AF72/'Population at Risk'!AF$5","v":3.5421420957448178E-2},{"$f":"'Population at Risk'!AG72/'Population at Risk'!AG$5","v":7.5629449822798671E-3},{"$f":"'Population at Risk'!AH72/'Population at Risk'!AH$5","v":2.5932308372578095E-2},{"$f":"'Population at Risk'!AI72/'Population at Risk'!AI$5","v":1.2033630345532178E-2},{"$f":"'Population at Risk'!AJ72/'Population at Risk'!AJ$5","v":1.055192529649848E-2},{"$f":"'Population at Risk'!AK72/'Population at Risk'!AK$5","v":1.887904118382081E-3},{"$f":"'Population at Risk'!AL72/'Population at Risk'!AL$5","v":4.1419388460571645E-2},{"$f":"'Population at Risk'!AM72/'Population at Risk'!AM$5","v":2.860102490454863E-2},{"$f":"'Population at Risk'!AN72/'Population at Risk'!AN$5","v":0},{"$f":"'Population at Risk'!AO72/'Population at Risk'!AO$5","v":0},{"$f":"'Population at Risk'!AP72/'Population at Risk'!AP$5","v":5.1905012225662104E-3},{"$f":"'Population at Risk'!AQ72/'Population at Risk'!AQ$5","v":2.1472934516364676E-2},{"$f":"'Population at Risk'!AR72/'Population at Risk'!AR$5","v":2.0028568331026706E-2},{"$f":"'Population at Risk'!AS72/'Population at Risk'!AS$5","v":7.4483406251139852E-3},{"$f":"'Population at Risk'!AT72/'Population at Risk'!AT$5","v":0},{"$f":"'Population at Risk'!AU72/'Population at Risk'!AU$5","v":0},{"$f":"'Population at Risk'!AV72/'Population at Risk'!AV$5","v":2.0319244877583659E-2},{"$f":"'Population at Risk'!AW72/'Population at Risk'!AW$5","v":2.2697401085133663E-2},{"$f":"'Population at Risk'!AX72/'Population at Risk'!AX$5","v":1.2808917930274425E-2},{"$f":"'Population at Risk'!AY72/'Population at Risk'!AY$5","v":1.7468151521534924E-2},{"$f":"'Population at Risk'!AZ72/'Population at Risk'!AZ$5","v":1.4045013933233296E-2},{"$f":"'Population at Risk'!BA72/'Population at Risk'!BA$5","v":3.358780286099243E-2},{"$f":"'Population at Risk'!BB72/'Population at Risk'!BB$5","v":1.6745322278415613E-2},{"$f":"'Population at Risk'!BC72/'Population at Risk'!BC$5","v":0},70]
[null,"Female 65-69",{"$f":"'Population at Risk'!C73/'Population at Risk'!C$5","v":0},{"$f":"'Population at Risk'!D73/'Population at Risk'!D$5","v":0},{"$f":"'Population at Risk'!E73/'Population at Risk'!E$5","v":0},{"$f":"'Population at Risk'!F73/'Population at Risk'!F$5","v":0},{"$f":"'Population at Risk'!G73/'Population at Risk'!G$5","v":0},{"$f":"'Population at Risk'!H73/'Population at Risk'!H$5","v":0},{"$f":"'Population at Risk'!I73/'Population at Risk'!I$5","v":0},{"$f":"'Population at Risk'!J73/'Population at Risk'!J$5","v":0},{"$f":"'Population at Risk'!K73/'Population at Risk'!K$5","v":0},{"$f":"'Population at Risk'!L73/'Population at Risk'!L$5","v":0},{"$f":"'Population at Risk'!M73/'Population at Risk'!M$5","v":0},{"$f":"'Population at Risk'!N73/'Population at Risk'!N$5","v":0},{"$f":"'Population at Risk'!O73/'Population at Risk'!O$5","v":0},{"$f":"'Population at Risk'!P73/'Population at Risk'!P$5","v":0},{"$f":"'Population at Risk'!Q73/'Population at Risk'!Q$5","v":0},{"$f":"'Population at Risk'!R73/'Population at Risk'!R$5","v":0},{"$f":"'Population at Risk'!S73/'Population at Risk'!S$5","v":0},{"$f":"'Population at Risk'!T73/'Population at Risk'!T$5","v":0},{"$f":"'Population at Risk'!U73/'Population at Risk'!U$5","v":0},{"$f":"'Population at Risk'!V73/'Population at Risk'!V$5","v":0},{"$f":"'Population at Risk'!W73/'Population at Risk'!W$5","v":0},{"$f":"'Population at Risk'!X73/'Population at Risk'!X$5","v":0},{"$f":"'Population at Risk'!Y73/'Population at Risk'!Y$5","v":0},{"$f":"'Population at Risk'!Z73/'Population at Risk'!Z$5","v":0},{"$f":"'Population at Risk'!AA73/'Population at Risk'!AA$5","v":0},{"$f":"'Population at Risk'!AB73/'Population at Risk'!AB$5","v":0},{"$f":"'Population at Risk'!AC73/'Population at Risk'!AC$5","v":0},{"$f":"'Population at Risk'!AD73/'Population at Risk'!AD$5","v":0},{"$f":"'Population at Risk'!AE73/'Population at Risk'!AE$5","v":0},{"$f":"'Population at Risk'!AF73/'Population at Risk'!AF$5","v":0},{"$f":"'Population at Risk'!AG73/'Population at Risk'!AG$5","v":0},{"$f":"'Population at Risk'!AH73/'Population at Risk'!AH$5","v":0},{"$f":"'Population at Risk'!AI73/'Population at Risk'!AI$5","v":0},{"$f":"'Population at Risk'!AJ73/'Population at Risk'!AJ$5","v":0},{"$f":"'Population at Risk'!AK73/'Population at Risk'!AK$5","v":0},{"$f":"'Population at Risk'!AL73/'Population at Risk'!AL$5","v":0},{"$f":"'Population at Risk'!AM73/'Population at Risk'!AM$5","v":0},{"$f":"'Population at Risk'!AN73/'Population at Risk'!AN$5","v":0},{"$f":"'Population at Risk'!AO73/'Population at Risk'!AO$5","v":0},{"$f":"'Population at Risk'!AP73/'Population at Risk'!AP$5","v":0},{"$f":"'Population at Risk'!AQ73/'Population at Risk'!AQ$5","v":0},{"$f":"'Population at Risk'!AR73/'Population at Risk'!AR$5","v":0},{"$f":"'Population at Risk'!AS73/'Population at Risk'!AS$5","v":0},{"$f":"'Population at Risk'!AT73/'Population at Risk'!AT$5","v":0},{"$f":"'Population at Risk'!AU73/'Population at Risk'!AU$5","v":0},{"$f":"'Population at Risk'!AV73/'Population at Risk'!AV$5","v":0},{"$f":"'Population at Risk'!AW73/'Population at Risk'!AW$5","v":0},{"$f":"'Population at Risk'!AX73/'Population at Risk'!AX$5","v":0},{"$f":"'Population at Risk'!AY73/'Population at Risk'!AY$5","v":0},{"$f":"'Population at Risk'!AZ73/'Population at Risk'!AZ$5","v":0},{"$f":"'Population at Risk'!BA73/'Population at Risk'!BA$5","v":0},{"$f":"'Population at Risk'!BB73/'Population at Risk'!BB$5","v":0},{"$f":"'Population at Risk'!BC73/'Population at Risk'!BC$5","v":0},71]
[null,"Female 70-74",{"$f":"'Population at Risk'!C74/'Population at Risk'!C$5","v":0},{"$f":"'Population at Risk'!D74/'Population at Risk'!D$5","v":0},{"$f":"'Population at Risk'!E74/'Population at Risk'!E$5","v":0},{"$f":"'Population at Risk'!F74/'Population at Risk'!F$5","v":0},{"$f":"'Population at Risk'!G74/'Population at Risk'!G$5","v":0},{"$f":"'Population at Risk'!H74/'Population at Risk'!H$5","v":0},{"$f":"'Population at Risk'!I74/'Population at Risk'!I$5","v":0},{"$f":"'Population at Risk'!J74/'Population at Risk'!J$5","v":0},{"$f":"'Population at Risk'!K74/'Population at Risk'!K$5","v":0},{"$f":"'Population at Risk'!L74/'Population at Risk'!L$5","v":0},{"$f":"'Population at Risk'!M74/'Population at Risk'!M$5","v":0},{"$f":"'Population at Risk'!N74/'Population at Risk'!N$5","v":0},{"$f":"'Population at Risk'!O74/'Population at Risk'!O$5","v":0},{"$f":"'Population at Risk'!P74/'Population at Risk'!P$5","v":0},{"$f":"'Population at Risk'!Q74/'Population at Risk'!Q$5","v":0},{"$f":"'Population at Risk'!R74/'Population at Risk'!R$5","v":0},{"$f":"'Population at Risk'!S74/'Population at Risk'!S$5","v":0},{"$f":"'Population at Risk'!T74/'Population at Risk'!T$5","v":0},{"$f":"'Population at Risk'!U74/'Population at Risk'!U$5","v":0},{"$f":"'Population at Risk'!V74/'Population at Risk'!V$5","v":0},{"$f":"'Population at Risk'!W74/'Population at Risk'!W$5","v":0},{"$f":"'Population at Risk'!X74/'Population at Risk'!X$5","v":0},{"$f":"'Population at Risk'!Y74/'Population at Risk'!Y$5","v":0},{"$f":"'Population at Risk'!Z74/'Population at Risk'!Z$5","v":0},{"$f":"'Population at Risk'!AA74/'Population at Risk'!AA$5","v":0},{"$f":"'Population at Risk'!AB74/'Population at Risk'!AB$5","v":0},{"$f":"'Population at Risk'!AC74/'Population at Risk'!AC$5","v":0},{"$f":"'Population at Risk'!AD74/'Population at Risk'!AD$5","v":0},{"$f":"'Population at Risk'!AE74/'Population at Risk'!AE$5","v":0},{"$f":"'Population at Risk'!AF74/'Population at Risk'!AF$5","v":0},{"$f":"'Population at Risk'!AG74/'Population at Risk'!AG$5","v":0},{"$f":"'Population at Risk'!AH74/'Population at Risk'!AH$5","v":0},{"$f":"'Population at Risk'!AI74/'Population at Risk'!AI$5","v":0},{"$f":"'Population at Risk'!AJ74/'Population at Risk'!AJ$5","v":0},{"$f":"'Population at Risk'!AK74/'Population at Risk'!AK$5","v":0},{"$f":"'Population at Risk'!AL74/'Population at Risk'!AL$5","v":0},{"$f":"'Population at Risk'!AM74/'Population at Risk'!AM$5","v":0},{"$f":"'Population at Risk'!AN74/'Population at Risk'!AN$5","v":0},{"$f":"'Population at Risk'!AO74/'Population at Risk'!AO$5","v":0},{"$f":"'Population at Risk'!AP74/'Population at Risk'!AP$5","v":0},{"$f":"'Population at Risk'!AQ74/'Population at Risk'!AQ$5","v":0},{"$f":"'Population at Risk'!AR74/'Population at Risk'!AR$5","v":0},{"$f":"'Population at Risk'!AS74/'Population at Risk'!AS$5","v":0},{"$f":"'Population at Risk'!AT74/'Population at Risk'!AT$5","v":0},{"$f":"'Population at Risk'!AU74/'Population at Risk'!AU$5","v":0},{"$f":"'Population at Risk'!AV74/'Population at Risk'!AV$5","v":0},{"$f":"'Population at Risk'!AW74/'Population at Risk'!AW$5","v":0},{"$f":"'Population at Risk'!AX74/'Population at Risk'!AX$5","v":0},{"$f":"'Population at Risk'!AY74/'Population at Risk'!AY$5","v":0},{"$f":"'Population at Risk'!AZ74/'Population at Risk'!AZ$5","v":0},{"$f":"'Population at Risk'!BA74/'Population at Risk'!BA$5","v":0},{"$f":"'Population at Risk'!BB74/'Population at Risk'!BB$5","v":0},{"$f":"'Population at Risk'!BC74/'Population at Risk'!BC$5","v":0},72]
[null,"Female 75-79",{"$f":"'Population at Risk'!C75/'Population at Risk'!C$5","v":0},{"$f":"'Population at Risk'!D75/'Population at Risk'!D$5","v":0},{"$f":"'Population at Risk'!E75/'Population at Risk'!E$5","v":0},{"$f":"'Population at Risk'!F75/'Population at Risk'!F$5","v":0},{"$f":"'Population at Risk'!G75/'Population at Risk'!G$5","v":0},{"$f":"'Population at Risk'!H75/'Population at Risk'!H$5","v":0},{"$f":"'Population at Risk'!I75/'Population at Risk'!I$5","v":0},{"$f":"'Population at Risk'!J75/'Population at Risk'!J$5","v":0},{"$f":"'Population at Risk'!K75/'Population at Risk'!K$5","v":0},{"$f":"'Population at Risk'!L75/'Population at Risk'!L$5","v":0},{"$f":"'Population at Risk'!M75/'Population at Risk'!M$5","v":0},{"$f":"'Population at Risk'!N75/'Population at Risk'!N$5","v":0},{"$f":"'Population at Risk'!O75/'Population at Risk'!O$5","v":0},{"$f":"'Population at Risk'!P75/'Population at Risk'!P$5","v":0},{"$f":"'Population at Risk'!Q75/'Population at Risk'!Q$5","v":0},{"$f":"'Population at Risk'!R75/'Population at Risk'!R$5","v":0},{"$f":"'Population at Risk'!S75/'Population at Risk'!S$5","v":0},{"$f":"'Population at Risk'!T75/'Population at Risk'!T$5","v":0},{"$f":"'Population at Risk'!U75/'Population at Risk'!U$5","v":0},{"$f":"'Population at Risk'!V75/'Population at Risk'!V$5","v":0},{"$f":"'Population at Risk'!W75/'Population at Risk'!W$5","v":0},{"$f":"'Population at Risk'!X75/'Population at Risk'!X$5","v":0},{"$f":"'Population at Risk'!Y75/'Population at Risk'!Y$5","v":0},{"$f":"'Population at Risk'!Z75/'Population at Risk'!Z$5","v":0},{"$f":"'Population at Risk'!AA75/'Population at Risk'!AA$5","v":0},{"$f":"'Population at Risk'!AB75/'Population at Risk'!AB$5","v":0},{"$f":"'Population at Risk'!AC75/'Population at Risk'!AC$5","v":0},{"$f":"'Population at Risk'!AD75/'Population at Risk'!AD$5","v":0},{"$f":"'Population at Risk'!AE75/'Population at Risk'!AE$5","v":0},{"$f":"'Population at Risk'!AF75/'Population at Risk'!AF$5","v":0},{"$f":"'Population at Risk'!AG75/'Population at Risk'!AG$5","v":0},{"$f":"'Population at Risk'!AH75/'Population at Risk'!AH$5","v":0},{"$f":"'Population at Risk'!AI75/'Population at Risk'!AI$5","v":0},{"$f":"'Population at Risk'!AJ75/'Population at Risk'!AJ$5","v":0},{"$f":"'Population at Risk'!AK75/'Population at Risk'!AK$5","v":0},{"$f":"'Population at Risk'!AL75/'Population at Risk'!AL$5","v":0},{"$f":"'Population at Risk'!AM75/'Population at Risk'!AM$5","v":0},{"$f":"'Population at Risk'!AN75/'Population at Risk'!AN$5","v":0},{"$f":"'Population at Risk'!AO75/'Population at Risk'!AO$5","v":0},{"$f":"'Population at Risk'!AP75/'Population at Risk'!AP$5","v":0},{"$f":"'Population at Risk'!AQ75/'Population at Risk'!AQ$5","v":0},{"$f":"'Population at Risk'!AR75/'Population at Risk'!AR$5","v":0},{"$f":"'Population at Risk'!AS75/'Population at Risk'!AS$5","v":0},{"$f":"'Population at Risk'!AT75/'Population at Risk'!AT$5","v":0},{"$f":"'Population at Risk'!AU75/'Population at Risk'!AU$5","v":0},{"$f":"'Population at Risk'!AV75/'Population at Risk'!AV$5","v":0},{"$f":"'Population at Risk'!AW75/'Population at Risk'!AW$5","v":0},{"$f":"'Population at Risk'!AX75/'Population at Risk'!AX$5","v":0},{"$f":"'Population at Risk'!AY75/'Population at Risk'!AY$5","v":0},{"$f":"'Population at Risk'!AZ75/'Population at Risk'!AZ$5","v":0},{"$f":"'Population at Risk'!BA75/'Population at Risk'!BA$5","v":0},{"$f":"'Population at Risk'!BB75/'Population at Risk'!BB$5","v":0},{"$f":"'Population at Risk'!BC75/'Population at Risk'!BC$5","v":0},73]
[null,"Female 80-84",{"$f":"'Population at Risk'!C76/'Population at Risk'!C$5","v":0},{"$f":"'Population at Risk'!D76/'Population at Risk'!D$5","v":0},{"$f":"'Population at Risk'!E76/'Population at Risk'!E$5","v":0},{"$f":"'Population at Risk'!F76/'Population at Risk'!F$5","v":0},{"$f":"'Population at Risk'!G76/'Population at Risk'!G$5","v":0},{"$f":"'Population at Risk'!H76/'Population at Risk'!H$5","v":0},{"$f":"'Population at Risk'!I76/'Population at Risk'!I$5","v":0},{"$f":"'Population at Risk'!J76/'Population at Risk'!J$5","v":0},{"$f":"'Population at Risk'!K76/'Population at Risk'!K$5","v":0},{"$f":"'Population at Risk'!L76/'Population at Risk'!L$5","v":0},{"$f":"'Population at Risk'!M76/'Population at Risk'!M$5","v":0},{"$f":"'Population at Risk'!N76/'Population at Risk'!N$5","v":0},{"$f":"'Population at Risk'!O76/'Population at Risk'!O$5","v":0},{"$f":"'Population at Risk'!P76/'Population at Risk'!P$5","v":0},{"$f":"'Population at Risk'!Q76/'Population at Risk'!Q$5","v":0},{"$f":"'Population at Risk'!R76/'Population at Risk'!R$5","v":0},{"$f":"'Population at Risk'!S76/'Population at Risk'!S$5","v":0},{"$f":"'Population at Risk'!T76/'Population at Risk'!T$5","v":0},{"$f":"'Population at Risk'!U76/'Population at Risk'!U$5","v":0},{"$f":"'Population at Risk'!V76/'Population at Risk'!V$5","v":0},{"$f":"'Population at Risk'!W76/'Population at Risk'!W$5","v":0},{"$f":"'Population at Risk'!X76/'Population at Risk'!X$5","v":0},{"$f":"'Population at Risk'!Y76/'Population at Risk'!Y$5","v":0},{"$f":"'Population at Risk'!Z76/'Population at Risk'!Z$5","v":0},{"$f":"'Population at Risk'!AA76/'Population at Risk'!AA$5","v":0},{"$f":"'Population at Risk'!AB76/'Population at Risk'!AB$5","v":0},{"$f":"'Population at Risk'!AC76/'Population at Risk'!AC$5","v":0},{"$f":"'Population at Risk'!AD76/'Population at Risk'!AD$5","v":0},{"$f":"'Population at Risk'!AE76/'Population at Risk'!AE$5","v":0},{"$f":"'Population at Risk'!AF76/'Population at Risk'!AF$5","v":0},{"$f":"'Population at Risk'!AG76/'Population at Risk'!AG$5","v":0},{"$f":"'Population at Risk'!AH76/'Population at Risk'!AH$5","v":0},{"$f":"'Population at Risk'!AI76/'Population at Risk'!AI$5","v":0},{"$f":"'Population at Risk'!AJ76/'Population at Risk'!AJ$5","v":0},{"$f":"'Population at Risk'!AK76/'Population at Risk'!AK$5","v":0},{"$f":"'Population at Risk'!AL76/'Population at Risk'!AL$5","v":0},{"$f":"'Population at Risk'!AM76/'Population at Risk'!AM$5","v":0},{"$f":"'Population at Risk'!AN76/'Population at Risk'!AN$5","v":0},{"$f":"'Population at Risk'!AO76/'Population at Risk'!AO$5","v":0},{"$f":"'Population at Risk'!AP76/'Population at Risk'!AP$5","v":0},{"$f":"'Population at Risk'!AQ76/'Population at Risk'!AQ$5","v":0},{"$f":"'Population at Risk'!AR76/'Population at Risk'!AR$5","v":0},{"$f":"'Population at Risk'!AS76/'Population at Risk'!AS$5","v":0},{"$f":"'Population at Risk'!AT76/'Population at Risk'!AT$5","v":0},{"$f":"'Population at Risk'!AU76/'Population at Risk'!AU$5","v":0},{"$f":"'Population at Risk'!AV76/'Population at Risk'!AV$5","v":0},{"$f":"'Population at Risk'!AW76/'Population at Risk'!AW$5","v":0},{"$f":"'Population at Risk'!AX76/'Population at Risk'!AX$5","v":0},{"$f":"'Population at Risk'!AY76/'Population at Risk'!AY$5","v":0},{"$f":"'Population at Risk'!AZ76/'Population at Risk'!AZ$5","v":0},{"$f":"'Population at Risk'!BA76/'Population at Risk'!BA$5","v":0},{"$f":"'Population at Risk'!BB76/'Population at Risk'!BB$5","v":0},{"$f":"'Population at Risk'!BC76/'Population at Risk'!BC$5","v":0},74]
[null,"Female 85-89",{"$f":"'Population at Risk'!C77/'Population at Risk'!C$5","v":0},{"$f":"'Population at Risk'!D77/'Population at Risk'!D$5","v":0},{"$f":"'Population at Risk'!E77/'Population at Risk'!E$5","v":0},{"$f":"'Population at Risk'!F77/'Population at Risk'!F$5","v":0},{"$f":"'Population at Risk'!G77/'Population at Risk'!G$5","v":0},{"$f":"'Population at Risk'!H77/'Population at Risk'!H$5","v":0},{"$f":"'Population at Risk'!I77/'Population at Risk'!I$5","v":0},{"$f":"'Population at Risk'!J77/'Population at Risk'!J$5","v":0},{"$f":"'Population at Risk'!K77/'Population at Risk'!K$5","v":0},{"$f":"'Population at Risk'!L77/'Population at Risk'!L$5","v":0},{"$f":"'Population at Risk'!M77/'Population at Risk'!M$5","v":0},{"$f":"'Population at Risk'!N77/'Population at Risk'!N$5","v":0},{"$f":"'Population at Risk'!O77/'Population at Risk'!O$5","v":0},{"$f":"'Population at Risk'!P77/'Population at Risk'!P$5","v":0},{"$f":"'Population at Risk'!Q77/'Population at Risk'!Q$5","v":0},{"$f":"'Population at Risk'!R77/'Population at Risk'!R$5","v":0},{"$f":"'Population at Risk'!S77/'Population at Risk'!S$5","v":0},{"$f":"'Population at Risk'!T77/'Population at Risk'!T$5","v":0},{"$f":"'Population at Risk'!U77/'Population at Risk'!U$5","v":0},{"$f":"'Population at Risk'!V77/'Population at Risk'!V$5","v":0},{"$f":"'Population at Risk'!W77/'Population at Risk'!W$5","v":0},{"$f":"'Population at Risk'!X77/'Population at Risk'!X$5","v":0},{"$f":"'Population at Risk'!Y77/'Population at Risk'!Y$5","v":0},{"$f":"'Population at Risk'!Z77/'Population at Risk'!Z$5","v":0},{"$f":"'Population at Risk'!AA77/'Population at Risk'!AA$5","v":0},{"$f":"'Population at Risk'!AB77/'Population at Risk'!AB$5","v":0},{"$f":"'Population at Risk'!AC77/'Population at Risk'!AC$5","v":0},{"$f":"'Population at Risk'!AD77/'Population at Risk'!AD$5","v":0},{"$f":"'Population at Risk'!AE77/'Population at Risk'!AE$5","v":0},{"$f":"'Population at Risk'!AF77/'Population at Risk'!AF$5","v":0},{"$f":"'Population at Risk'!AG77/'Population at Risk'!AG$5","v":0},{"$f":"'Population at Risk'!AH77/'Population at Risk'!AH$5","v":0},{"$f":"'Population at Risk'!AI77/'Population at Risk'!AI$5","v":0},{"$f":"'Population at Risk'!AJ77/'Population at Risk'!AJ$5","v":0},{"$f":"'Population at Risk'!AK77/'Population at Risk'!AK$5","v":0},{"$f":"'Population at Risk'!AL77/'Population at Risk'!AL$5","v":0},{"$f":"'Population at Risk'!AM77/'Population at Risk'!AM$5","v":0},{"$f":"'Population at Risk'!AN77/'Population at Risk'!AN$5","v":0},{"$f":"'Population at Risk'!AO77/'Population at Risk'!AO$5","v":0},{"$f":"'Population at Risk'!AP77/'Population at Risk'!AP$5","v":0},{"$f":"'Population at Risk'!AQ77/'Population at Risk'!AQ$5","v":0},{"$f":"'Population at Risk'!AR77/'Population at Risk'!AR$5","v":0},{"$f":"'Population at Risk'!AS77/'Population at Risk'!AS$5","v":0},{"$f":"'Population at Risk'!AT77/'Population at Risk'!AT$5","v":0},{"$f":"'Population at Risk'!AU77/'Population at Risk'!AU$5","v":0},{"$f":"'Population at Risk'!AV77/'Population at Risk'!AV$5","v":0},{"$f":"'Population at Risk'!AW77/'Population at Risk'!AW$5","v":0},{"$f":"'Population at Risk'!AX77/'Population at Risk'!AX$5","v":0},{"$f":"'Population at Risk'!AY77/'Population at Risk'!AY$5","v":0},{"$f":"'Population at Risk'!AZ77/'Population at Risk'!AZ$5","v":0},{"$f":"'Population at Risk'!BA77/'Population at Risk'!BA$5","v":0},{"$f":"'Population at Risk'!BB77/'Population at Risk'!BB$5","v":0},{"$f":"'Population at Risk'!BC77/'Population at Risk'!BC$5","v":0},75]
[null,"Female 90+",{"$f":"'Population at Risk'!C78/'Population at Risk'!C$5","v":0},{"$f":"'Population at Risk'!D78/'Population at Risk'!D$5","v":0},{"$f":"'Population at Risk'!E78/'Population at Risk'!E$5","v":0},{"$f":"'Population at Risk'!F78/'Population at Risk'!F$5","v":0},{"$f":"'Population at Risk'!G78/'Population at Risk'!G$5","v":0},{"$f":"'Population at Risk'!H78/'Population at Risk'!H$5","v":0},{"$f":"'Population at Risk'!I78/'Population at Risk'!I$5","v":0},{"$f":"'Population at Risk'!J78/'Population at Risk'!J$5","v":0},{"$f":"'Population at Risk'!K78/'Population at Risk'!K$5","v":0},{"$f":"'Population at Risk'!L78/'Population at Risk'!L$5","v":0},{"$f":"'Population at Risk'!M78/'Population at Risk'!M$5","v":0},{"$f":"'Population at Risk'!N78/'Population at Risk'!N$5","v":0},{"$f":"'Population at Risk'!O78/'Population at Risk'!O$5","v":0},{"$f":"'Population at Risk'!P78/'Population at Risk'!P$5","v":0},{"$f":"'Population at Risk'!Q78/'Population at Risk'!Q$5","v":0},{"$f":"'Population at Risk'!R78/'Population at Risk'!R$5","v":0},{"$f":"'Population at Risk'!S78/'Population at Risk'!S$5","v":0},{"$f":"'Population at Risk'!T78/'Population at Risk'!T$5","v":0},{"$f":"'Population at Risk'!U78/'Population at Risk'!U$5","v":0},{"$f":"'Population at Risk'!V78/'Population at Risk'!V$5","v":0},{"$f":"'Population at Risk'!W78/'Population at Risk'!W$5","v":0},{"$f":"'Population at Risk'!X78/'Population at Risk'!X$5","v":0},{"$f":"'Population at Risk'!Y78/'Population at Risk'!Y$5","v":0},{"$f":"'Population at Risk'!Z78/'Population at Risk'!Z$5","v":0},{"$f":"'Population at Risk'!AA78/'Population at Risk'!AA$5","v":0},{"$f":"'Population at Risk'!AB78/'Population at Risk'!AB$5","v":0},{"$f":"'Population at Risk'!AC78/'Population at Risk'!AC$5","v":0},{"$f":"'Population at Risk'!AD78/'Population at Risk'!AD$5","v":0},{"$f":"'Population at Risk'!AE78/'Population at Risk'!AE$5","v":0},{"$f":"'Population at Risk'!AF78/'Population at Risk'!AF$5","v":0},{"$f":"'Population at Risk'!AG78/'Population at Risk'!AG$5","v":0},{"$f":"'Population at Risk'!AH78/'Population at Risk'!AH$5","v":0},{"$f":"'Population at Risk'!AI78/'Population at Risk'!AI$5","v":0},{"$f":"'Population at Risk'!AJ78/'Population at Risk'!AJ$5","v":0},{"$f":"'Population at Risk'!AK78/'Population at Risk'!AK$5","v":0},{"$f":"'Population at Risk'!AL78/'Population at Risk'!AL$5","v":0},{"$f":"'Population at Risk'!AM78/'Population at Risk'!AM$5","v":0},{"$f":"'Population at Risk'!AN78/'Population at Risk'!AN$5","v":0},{"$f":"'Population at Risk'!AO78/'Population at Risk'!AO$5","v":0},{"$f":"'Population at Risk'!AP78/'Population at Risk'!AP$5","v":0},{"$f":"'Population at Risk'!AQ78/'Population at Risk'!AQ$5","v":0},{"$f":"'Population at Risk'!AR78/'Population at Risk'!AR$5","v":0},{"$f":"'Population at Risk'!AS78/'Population at Risk'!AS$5","v":0},{"$f":"'Population at Risk'!AT78/'Population at Risk'!AT$5","v":0},{"$f":"'Population at Risk'!AU78/'Population at Risk'!AU$5","v":0},{"$f":"'Population at Risk'!AV78/'Population at Risk'!AV$5","v":0},{"$f":"'Population at Risk'!AW78/'Population at Risk'!AW$5","v":0},{"$f":"'Population at Risk'!AX78/'Population at Risk'!AX$5","v":0},{"$f":"'Population at Risk'!AY78/'Population at Risk'!AY$5","v":0},{"$f":"'Population at Risk'!AZ78/'Population at Risk'!AZ$5","v":0},{"$f":"'Population at Risk'!BA78/'Population at Risk'!BA$5","v":0},{"$f":"'Population at Risk'!BB78/'Population at Risk'!BB$5","v":0},{"$f":"'Population at Risk'!BC78/'Population at Risk'!BC$5","v":0},76]
[null,"Male 0-4",{"$f":"'Population at Risk'!C79/'Population at Risk'!C$5","v":0},{"$f":"'Population at Risk'!D79/'Population at Risk'!D$5","v":0},{"$f":"'Population at Risk'!E79/'Population at Risk'!E$5","v":0},{"$f":"'Population at Risk'!F79/'Population at Risk'!F$5","v":0},{"$f":"'Population at Risk'!G79/'Population at Risk'!G$5","v":0},{"$f":"'Population at Risk'!H79/'Population at Risk'!H$5","v":0},{"$f":"'Population at Risk'!I79/'Population at Risk'!I$5","v":0},{"$f":"'Population at Risk'!J79/'Population at Risk'!J$5","v":0},{"$f":"'Population at Risk'!K79/'Population at Risk'!K$5","v":0},{"$f":"'Population at Risk'!L79/'Population at Risk'!L$5","v":0},{"$f":"'Population at Risk'!M79/'Population at Risk'!M$5","v":0},{"$f":"'Population at Risk'!N79/'Population at Risk'!N$5","v":0},{"$f":"'Population at Risk'!O79/'Population at Risk'!O$5","v":0},{"$f":"'Population at Risk'!P79/'Population at Risk'!P$5","v":0},{"$f":"'Population at Risk'!Q79/'Population at Risk'!Q$5","v":0},{"$f":"'Population at Risk'!R79/'Population at Risk'!R$5","v":0},{"$f":"'Population at Risk'!S79/'Population at Risk'!S$5","v":0},{"$f":"'Population at Risk'!T79/'Population at Risk'!T$5","v":0},{"$f":"'Population at Risk'!U79/'Population at Risk'!U$5","v":0},{"$f":"'Population at Risk'!V79/'Population at Risk'!V$5","v":0},{"$f":"'Population at Risk'!W79/'Population at Risk'!W$5","v":0},{"$f":"'Population at Risk'!X79/'Population at Risk'!X$5","v":0},{"$f":"'Population at Risk'!Y79/'Population at Risk'!Y$5","v":0},{"$f":"'Population at Risk'!Z79/'Population at Risk'!Z$5","v":0},{"$f":"'Population at Risk'!AA79/'Population at Risk'!AA$5","v":0},{"$f":"'Population at Risk'!AB79/'Population at Risk'!AB$5","v":0},{"$f":"'Population at Risk'!AC79/'Population at Risk'!AC$5","v":0},{"$f":"'Population at Risk'!AD79/'Population at Risk'!AD$5","v":0},{"$f":"'Population at Risk'!AE79/'Population at Risk'!AE$5","v":0},{"$f":"'Population at Risk'!AF79/'Population at Risk'!AF$5","v":0},{"$f":"'Population at Risk'!AG79/'Population at Risk'!AG$5","v":0},{"$f":"'Population at Risk'!AH79/'Population at Risk'!AH$5","v":0},{"$f":"'Population at Risk'!AI79/'Population at Risk'!AI$5","v":0},{"$f":"'Population at Risk'!AJ79/'Population at Risk'!AJ$5","v":0},{"$f":"'Population at Risk'!AK79/'Population at Risk'!AK$5","v":0},{"$f":"'Population at Risk'!AL79/'Population at Risk'!AL$5","v":0},{"$f":"'Population at Risk'!AM79/'Population at Risk'!AM$5","v":0},{"$f":"'Population at Risk'!AN79/'Population at Risk'!AN$5","v":0},{"$f":"'Population at Risk'!AO79/'Population at Risk'!AO$5","v":0},{"$f":"'Population at Risk'!AP79/'Population at Risk'!AP$5","v":0},{"$f":"'Population at Risk'!AQ79/'Population at Risk'!AQ$5","v":0},{"$f":"'Population at Risk'!AR79/'Population at Risk'!AR$5","v":0},{"$f":"'Population at Risk'!AS79/'Population at Risk'!AS$5","v":0},{"$f":"'Population at Risk'!AT79/'Population at Risk'!AT$5","v":0},{"$f":"'Population at Risk'!AU79/'Population at Risk'!AU$5","v":0},{"$f":"'Population at Risk'!AV79/'Population at Risk'!AV$5","v":0},{"$f":"'Population at Risk'!AW79/'Population at Risk'!AW$5","v":0},{"$f":"'Population at Risk'!AX79/'Population at Risk'!AX$5","v":0},{"$f":"'Population at Risk'!AY79/'Population at Risk'!AY$5","v":0},{"$f":"'Population at Risk'!AZ79/'Population at Risk'!AZ$5","v":0},{"$f":"'Population at Risk'!BA79/'Population at Risk'!BA$5","v":0},{"$f":"'Population at Risk'!BB79/'Population at Risk'!BB$5","v":0},{"$f":"'Population at Risk'!BC79/'Population at Risk'!BC$5","v":0},77]
[null,"Male 5-9",{"$f":"'Population at Risk'!C80/'Population at Risk'!C$5","v":0},{"$f":"'Population at Risk'!D80/'Population at Risk'!D$5","v":0},{"$f":"'Population at Risk'!E80/'Population at Risk'!E$5","v":0},{"$f":"'Population at Risk'!F80/'Population at Risk'!F$5","v":0},{"$f":"'Population at Risk'!G80/'Population at Risk'!G$5","v":0},{"$f":"'Population at Risk'!H80/'Population at Risk'!H$5","v":0},{"$f":"'Population at Risk'!I80/'Population at Risk'!I$5","v":0},{"$f":"'Population at Risk'!J80/'Population at Risk'!J$5","v":0},{"$f":"'Population at Risk'!K80/'Population at Risk'!K$5","v":0},{"$f":"'Population at Risk'!L80/'Population at Risk'!L$5","v":0},{"$f":"'Population at Risk'!M80/'Population at Risk'!M$5","v":0},{"$f":"'Population at Risk'!N80/'Population at Risk'!N$5","v":0},{"$f":"'Population at Risk'!O80/'Population at Risk'!O$5","v":0},{"$f":"'Population at Risk'!P80/'Population at Risk'!P$5","v":0},{"$f":"'Population at Risk'!Q80/'Population at Risk'!Q$5","v":0},{"$f":"'Population at Risk'!R80/'Population at Risk'!R$5","v":0},{"$f":"'Population at Risk'!S80/'Population at Risk'!S$5","v":0},{"$f":"'Population at Risk'!T80/'Population at Risk'!T$5","v":0},{"$f":"'Population at Risk'!U80/'Population at Risk'!U$5","v":0},{"$f":"'Population at Risk'!V80/'Population at Risk'!V$5","v":0},{"$f":"'Population at Risk'!W80/'Population at Risk'!W$5","v":0},{"$f":"'Population at Risk'!X80/'Population at Risk'!X$5","v":0},{"$f":"'Population at Risk'!Y80/'Population at Risk'!Y$5","v":0},{"$f":"'Population at Risk'!Z80/'Population at Risk'!Z$5","v":0},{"$f":"'Population at Risk'!AA80/'Population at Risk'!AA$5","v":0},{"$f":"'Population at Risk'!AB80/'Population at Risk'!AB$5","v":0},{"$f":"'Population at Risk'!AC80/'Population at Risk'!AC$5","v":0},{"$f":"'Population at Risk'!AD80/'Population at Risk'!AD$5","v":0},{"$f":"'Population at Risk'!AE80/'Population at Risk'!AE$5","v":0},{"$f":"'Population at Risk'!AF80/'Population at Risk'!AF$5","v":0},{"$f":"'Population at Risk'!AG80/'Population at Risk'!AG$5","v":0},{"$f":"'Population at Risk'!AH80/'Population at Risk'!AH$5","v":0},{"$f":"'Population at Risk'!AI80/'Population at Risk'!AI$5","v":0},{"$f":"'Population at Risk'!AJ80/'Population at Risk'!AJ$5","v":0},{"$f":"'Population at Risk'!AK80/'Population at Risk'!AK$5","v":0},{"$f":"'Population at Risk'!AL80/'Population at Risk'!AL$5","v":0},{"$f":"'Population at Risk'!AM80/'Population at Risk'!AM$5","v":0},{"$f":"'Population at Risk'!AN80/'Population at Risk'!AN$5","v":0},{"$f":"'Population at Risk'!AO80/'Population at Risk'!AO$5","v":0},{"$f":"'Population at Risk'!AP80/'Population at Risk'!AP$5","v":0},{"$f":"'Population at Risk'!AQ80/'Population at Risk'!AQ$5","v":0},{"$f":"'Population at Risk'!AR80/'Population at Risk'!AR$5","v":0},{"$f":"'Population at Risk'!AS80/'Population at Risk'!AS$5","v":0},{"$f":"'Population at Risk'!AT80/'Population at Risk'!AT$5","v":0},{"$f":"'Population at Risk'!AU80/'Population at Risk'!AU$5","v":0},{"$f":"'Population at Risk'!AV80/'Population at Risk'!AV$5","v":0},{"$f":"'Population at Risk'!AW80/'Population at Risk'!AW$5","v":0},{"$f":"'Population at Risk'!AX80/'Population at Risk'!AX$5","v":0},{"$f":"'Population at Risk'!AY80/'Population at Risk'!AY$5","v":0},{"$f":"'Population at Risk'!AZ80/'Population at Risk'!AZ$5","v":0},{"$f":"'Population at Risk'!BA80/'Population at Risk'!BA$5","v":0},{"$f":"'Population at Risk'!BB80/'Population at Risk'!BB$5","v":0},{"$f":"'Population at Risk'!BC80/'Population at Risk'!BC$5","v":0},78]
[null,"Male 10-15",{"$f":"'Population at Risk'!C81/'Population at Risk'!C$5","v":0},{"$f":"'Population at Risk'!D81/'Population at Risk'!D$5","v":0},{"$f":"'Population at Risk'!E81/'Population at Risk'!E$5","v":0},{"$f":"'Population at Risk'!F81/'Population at Risk'!F$5","v":0},{"$f":"'Population at Risk'!G81/'Population at Risk'!G$5","v":0},{"$f":"'Population at Risk'!H81/'Population at Risk'!H$5","v":0},{"$f":"'Population at Risk'!I81/'Population at Risk'!I$5","v":0},{"$f":"'Population at Risk'!J81/'Population at Risk'!J$5","v":0},{"$f":"'Population at Risk'!K81/'Population at Risk'!K$5","v":0},{"$f":"'Population at Risk'!L81/'Population at Risk'!L$5","v":0},{"$f":"'Population at Risk'!M81/'Population at Risk'!M$5","v":0},{"$f":"'Population at Risk'!N81/'Population at Risk'!N$5","v":0},{"$f":"'Population at Risk'!O81/'Population at Risk'!O$5","v":0},{"$f":"'Population at Risk'!P81/'Population at Risk'!P$5","v":0},{"$f":"'Population at Risk'!Q81/'Population at Risk'!Q$5","v":0},{"$f":"'Population at Risk'!R81/'Population at Risk'!R$5","v":0},{"$f":"'Population at Risk'!S81/'Population at Risk'!S$5","v":0},{"$f":"'Population at Risk'!T81/'Population at Risk'!T$5","v":0},{"$f":"'Population at Risk'!U81/'Population at Risk'!U$5","v":0},{"$f":"'Population at Risk'!V81/'Population at Risk'!V$5","v":0},{"$f":"'Population at Risk'!W81/'Population at Risk'!W$5","v":0},{"$f":"'Population at Risk'!X81/'Population at Risk'!X$5","v":0},{"$f":"'Population at Risk'!Y81/'Population at Risk'!Y$5","v":0},{"$f":"'Population at Risk'!Z81/'Population at Risk'!Z$5","v":0},{"$f":"'Population at Risk'!AA81/'Population at Risk'!AA$5","v":0},{"$f":"'Population at Risk'!AB81/'Population at Risk'!AB$5","v":0},{"$f":"'Population at Risk'!AC81/'Population at Risk'!AC$5","v":0},{"$f":"'Population at Risk'!AD81/'Population at Risk'!AD$5","v":0},{"$f":"'Population at Risk'!AE81/'Population at Risk'!AE$5","v":0},{"$f":"'Population at Risk'!AF81/'Population at Risk'!AF$5","v":0},{"$f":"'Population at Risk'!AG81/'Population at Risk'!AG$5","v":0},{"$f":"'Population at Risk'!AH81/'Population at Risk'!AH$5","v":0},{"$f":"'Population at Risk'!AI81/'Population at Risk'!AI$5","v":0},{"$f":"'Population at Risk'!AJ81/'Population at Risk'!AJ$5","v":0},{"$f":"'Population at Risk'!AK81/'Population at Risk'!AK$5","v":0},{"$f":"'Population at Risk'!AL81/'Population at Risk'!AL$5","v":0},{"$f":"'Population at Risk'!AM81/'Population at Risk'!AM$5","v":0},{"$f":"'Population at Risk'!AN81/'Population at Risk'!AN$5","v":0},{"$f":"'Population at Risk'!AO81/'Population at Risk'!AO$5","v":0},{"$f":"'Population at Risk'!AP81/'Population at Risk'!AP$5","v":0},{"$f":"'Population at Risk'!AQ81/'Population at Risk'!AQ$5","v":0},{"$f":"'Population at Risk'!AR81/'Population at Risk'!AR$5","v":0},{"$f":"'Population at Risk'!AS81/'Population at Risk'!AS$5","v":0},{"$f":"'Population at Risk'!AT81/'Population at Risk'!AT$5","v":0},{"$f":"'Population at Risk'!AU81/'Population at Risk'!AU$5","v":0},{"$f":"'Population at Risk'!AV81/'Population at Risk'!AV$5","v":0},{"$f":"'Population at Risk'!AW81/'Population at Risk'!AW$5","v":0},{"$f":"'Population at Risk'!AX81/'Population at Risk'!AX$5","v":0},{"$f":"'Population at Risk'!AY81/'Population at Risk'!AY$5","v":0},{"$f":"'Population at Risk'!AZ81/'Population at Risk'!AZ$5","v":0},{"$f":"'Population at Risk'!BA81/'Population at Risk'!BA$5","v":0},{"$f":"'Population at Risk'!BB81/'Population at Risk'!BB$5","v":0},{"$f":"'Population at Risk'!BC81/'Population at Risk'!BC$5","v":0},79]
[null,"Male 16-19",{"$f":"'Population at Risk'!C82/'Population at Risk'!C$5","v":3.6250424702053358E-3},{"$f":"'Population at Risk'!D82/'Population at Risk'!D$5","v":2.0518641176535063E-3},{"$f":"'Population at Risk'!E82/'Population at Risk'!E$5","v":6.9371746846819073E-4},{"$f":"'Population at Risk'!F82/'Population at Risk'!F$5","v":3.6698376190944892E-3},{"$f":"'Population at Risk'!G82/'Population at Risk'!G$5","v":4.23309433088968E-3},{"$f":"'Population at Risk'!H82/'Population at Risk'!H$5","v":1.2517054004875693E-2},{"$f":"'Population at Risk'!I82/'Population at Risk'!I$5","v":2.9380355537705718E-3},{"$f":"'Population at Risk'!J82/'Population at Risk'!J$5","v":9.1321934728671918E-3},{"$f":"'Population at Risk'!K82/'Population at Risk'!K$5","v":1.1694534062440908E-2},{"$f":"'Population at Risk'!L82/'Population at Risk'!L$5","v":3.0536134385592243E-3},{"$f":"'Population at Risk'!M82/'Population at Risk'!M$5","v":3.0536134385592243E-3},{"$f":"'Population at Risk'!N82/'Population at Risk'!N$5","v":1.7110896008349055E-2},{"$f":"'Population at Risk'!O82/'Population at Risk'!O$5","v":1.3356590940243699E-2},{"$f":"'Population at Risk'!P82/'Population at Risk'!P$5","v":2.6686990616051052E-3},{"$f":"'Population at Risk'!Q82/'Population at Risk'!Q$5","v":1.7074435952854296E-3},{"$f":"'Population at Risk'!R82/'Population at Risk'!R$5","v":3.8865759436459936E-3},{"$f":"'Population at Risk'!S82/'Population at Risk'!S$5","v":6.0486760891733668E-3},{"$f":"'Population at Risk'!T82/'Population at Risk'!T$5","v":5.5668692204642115E-3},{"$f":"'Population at Risk'!U82/'Population at Risk'!U$5","v":0},{"$f":"'Population at Risk'!V82/'Population at Risk'!V$5","v":5.1134160282090011E-3},{"$f":"'Population at Risk'!W82/'Population at Risk'!W$5","v":8.503964821756884E-3},{"$f":"'Population at Risk'!X82/'Population at Risk'!X$5","v":8.503964821756884E-3},{"$f":"'Population at Risk'!Y82/'Population at Risk'!Y$5","v":6.898261005221379E-3},{"$f":"'Population at Risk'!Z82/'Population at Risk'!Z$5","v":1.42859850476987E-2},{"$f":"'Population at Risk'!AA82/'Population at Risk'!AA$5","v":1.2246937675923778E-2},{"$f":"'Population at Risk'!AB82/'Population at Risk'!AB$5","v":1.7861100594674614E-3},{"$f":"'Population at Risk'!AC82/'Population at Risk'!AC$5","v":1.2977618659870304E-2},{"$f":"'Population at Risk'!AD82/'Population at Risk'!AD$5","v":4.2143166310478503E-3},{"$f":"'Population at Risk'!AE82/'Population at Risk'!AE$5","v":4.1610289968478991E-3},{"$f":"'Population at Risk'!AF82/'Population at Risk'!AF$5","v":1.7997778379403157E-2},{"$f":"'Population at Risk'!AG82/'Population at Risk'!AG$5","v":4.1610289968478991E-3},{"$f":"'Population at Risk'!AH82/'Population at Risk'!AH$5","v":1.0828035888199909E-2},{"$f":"'Population at Risk'!AI82/'Population at Risk'!AI$5","v":5.3580544451781124E-3},{"$f":"'Population at Risk'!AJ82/'Population at Risk'!AJ$5","v":4.1063813350986659E-3},{"$f":"'Population at Risk'!AK82/'Population at Risk'!AK$5","v":4.8626998603839287E-4},{"$f":"'Population at Risk'!AL82/'Population at Risk'!AL$5","v":1.5351085962232636E-2},{"$f":"'Population at Risk'!AM82/'Population at Risk'!AM$5","v":1.329690130816339E-2},{"$f":"'Population at Risk'!AN82/'Population at Risk'!AN$5","v":0},{"$f":"'Population at Risk'!AO82/'Population at Risk'!AO$5","v":0},{"$f":"'Population at Risk'!AP82/'Population at Risk'!AP$5","v":3.1381544680461394E-3},{"$f":"'Population at Risk'!AQ82/'Population at Risk'!AQ$5","v":1.1857128965658874E-2},{"$f":"'Population at Risk'!AR82/'Population at Risk'!AR$5","v":8.3628829195967133E-3},{"$f":"'Population at Risk'!AS82/'Population at Risk'!AS$5","v":2.9380355537705718E-3},{"$f":"'Population at Risk'!AT82/'Population at Risk'!AT$5","v":0},{"$f":"'Population at Risk'!AU82/'Population at Risk'!AU$5","v":0},{"$f":"'Population at Risk'!AV82/'Population at Risk'!AV$5","v":7.1709885070588078E-3},{"$f":"'Population at Risk'!AW82/'Population at Risk'!AW$5","v":8.0460210596615157E-3},{"$f":"'Population at Risk'!AX82/'Population at Risk'!AX$5","v":7.4603520366741524E-3},{"$f":"'Population at Risk'!AY82/'Population at Risk'!AY$5","v":8.7092909221770931E-3},{"$f":"'Population at Risk'!AZ82/'Population at Risk'!AZ$5","v":8.767569428776897E-3},{"$f":"'Population at Risk'!BA82/'Population at Risk'!BA$5","v":1.4718035990918621E-2},{"$f":"'Population at Risk'!BB82/'Population at Risk'!BB$5","v":7.2623301990383171E-3},{"$f":"'Population at Risk'!BC82/'Population at Risk'!BC$5","v":0},80]
[null,"Male 20-24",{"$f":"'Population at Risk'!C83/'Population at Risk'!C$5","v":5.9231463173646864E-3},{"$f":"'Population at Risk'!D83/'Population at Risk'!D$5","v":3.733864317103376E-3},{"$f":"'Population at Risk'!E83/'Population at Risk'!E$5","v":1.8083421649957333E-3},{"$f":"'Population at Risk'!F83/'Population at Risk'!F$5","v":5.1773642759009395E-3},{"$f":"'Population at Risk'!G83/'Population at Risk'!G$5","v":6.6350186422371943E-3},{"$f":"'Population at Risk'!H83/'Population at Risk'!H$5","v":1.7544881972540099E-2},{"$f":"'Population at Risk'!I83/'Population at Risk'!I$5","v":3.5024039652293256E-3},{"$f":"'Population at Risk'!J83/'Population at Risk'!J$5","v":1.167183805537925E-2},{"$f":"'Population at Risk'!K83/'Population at Risk'!K$5","v":1.460107030603002E-2},{"$f":"'Population at Risk'!L83/'Population at Risk'!L$5","v":4.5596472773044199E-3},{"$f":"'Population at Risk'!M83/'Population at Risk'!M$5","v":4.5596472773044199E-3},{"$f":"'Population at Risk'!N83/'Population at Risk'!N$5","v":2.8245398790895583E-2},{"$f":"'Population at Risk'!O83/'Population at Risk'!O$5","v":1.8457671948272941E-2},{"$f":"'Population at Risk'!P83/'Population at Risk'!P$5","v":3.3162510397886967E-3},{"$f":"'Population at Risk'!Q83/'Population at Risk'!Q$5","v":2.3089294072609788E-3},{"$f":"'Population at Risk'!R83/'Population at Risk'!R$5","v":4.6257406936645569E-3},{"$f":"'Population at Risk'!S83/'Population at Risk'!S$5","v":8.2753643267635627E-3},{"$f":"'Population at Risk'!T83/'Population at Risk'!T$5","v":8.1518844414259408E-3},{"$f":"'Population at Risk'!U83/'Population at Risk'!U$5","v":0},{"$f":"'Population at Risk'!V83/'Population at Risk'!V$5","v":7.5071466390239719E-3},{"$f":"'Population at Risk'!W83/'Population at Risk'!W$5","v":1.0958864980503965E-2},{"$f":"'Population at Risk'!X83/'Population at Risk'!X$5","v":1.0958864980503965E-2},{"$f":"'Population at Risk'!Y83/'Population at Risk'!Y$5","v":9.3668694585949154E-3},{"$f":"'Population at Risk'!Z83/'Population at Risk'!Z$5","v":2.2295973133145186E-2},{"$f":"'Population at Risk'!AA83/'Population at Risk'!AA$5","v":1.8253414300666647E-2},{"$f":"'Population at Risk'!AB83/'Population at Risk'!AB$5","v":3.1850469772098699E-3},{"$f":"'Population at Risk'!AC83/'Population at Risk'!AC$5","v":1.9915740040165088E-2},{"$f":"'Population at Risk'!AD83/'Population at Risk'!AD$5","v":6.0562883558425741E-3},{"$f":"'Population at Risk'!AE83/'Population at Risk'!AE$5","v":5.7442497858924664E-3},{"$f":"'Population at Risk'!AF83/'Population at Risk'!AF$5","v":2.5624743894188989E-2},{"$f":"'Population at Risk'!AG83/'Population at Risk'!AG$5","v":5.7442497858924664E-3},{"$f":"'Population at Risk'!AH83/'Population at Risk'!AH$5","v":1.5024609111187344E-2},{"$f":"'Population at Risk'!AI83/'Population at Risk'!AI$5","v":7.6963838930145306E-3},{"$f":"'Population at Risk'!AJ83/'Population at Risk'!AJ$5","v":6.5662426179597024E-3},{"$f":"'Population at Risk'!AK83/'Population at Risk'!AK$5","v":5.074121593444099E-4},{"$f":"'Population at Risk'!AL83/'Population at Risk'!AL$5","v":2.0976082424306201E-2},{"$f":"'Population at Risk'!AM83/'Population at Risk'!AM$5","v":1.8250362344940742E-2},{"$f":"'Population at Risk'!AN83/'Population at Risk'!AN$5","v":0},{"$f":"'Population at Risk'!AO83/'Population at Risk'!AO$5","v":0},{"$f":"'Population at Risk'!AP83/'Population at Risk'!AP$5","v":5.6707001791009189E-3},{"$f":"'Population at Risk'!AQ83/'Population at Risk'!AQ$5","v":1.9384407466329957E-2},{"$f":"'Population at Risk'!AR83/'Population at Risk'!AR$5","v":1.2261208523624979E-2},{"$f":"'Population at Risk'!AS83/'Population at Risk'!AS$5","v":3.5024039652293256E-3},{"$f":"'Population at Risk'!AT83/'Population at Risk'!AT$5","v":0},{"$f":"'Population at Risk'!AU83/'Population at Risk'!AU$5","v":0},{"$f":"'Population at Risk'!AV83/'Population at Risk'!AV$5","v":1.1164114357857217E-2},{"$f":"'Population at Risk'!AW83/'Population at Risk'!AW$5","v":1.1389394933226587E-2},{"$f":"'Population at Risk'!AX83/'Population at Risk'!AX$5","v":9.7493236842900836E-3},{"$f":"'Population at Risk'!AY83/'Population at Risk'!AY$5","v":1.2625497175867655E-2},{"$f":"'Population at Risk'!AZ83/'Population at Risk'!AZ$5","v":1.4300609137777604E-2},{"$f":"'Population at Risk'!BA83/'Population at Risk'!BA$5","v":2.0787690881094834E-2},{"$f":"'Population at Risk'!BB83/'Population at Risk'!BB$5","v":9.7587562049577387E-3},{"$f":"'Population at Risk'!BC83/'Population at Risk'!BC$5","v":0},81]
[null,"Male 25-29",{"$f":"'Population at Risk'!C84/'Population at Risk'!C$5","v":9.1865303106797996E-3},{"$f":"'Population at Risk'!D84/'Population at Risk'!D$5","v":5.2766936483937274E-3},{"$f":"'Population at Risk'!E84/'Population at Risk'!E$5","v":1.894120468175406E-3},{"$f":"'Population at Risk'!F84/'Population at Risk'!F$5","v":4.4179284546249789E-3},{"$f":"'Population at Risk'!G84/'Population at Risk'!G$5","v":4.9440139444001975E-3},{"$f":"'Population at Risk'!H84/'Population at Risk'!H$5","v":1.5607618698776632E-2},{"$f":"'Population at Risk'!I84/'Population at Risk'!I$5","v":2.4232604390644376E-3},{"$f":"'Population at Risk'!J84/'Population at Risk'!J$5","v":1.0516978002241918E-2},{"$f":"'Population at Risk'!K84/'Population at Risk'!K$5","v":1.0931811656366426E-2},{"$f":"'Population at Risk'!L84/'Population at Risk'!L$5","v":4.7600074125085223E-3},{"$f":"'Population at Risk'!M84/'Population at Risk'!M$5","v":4.7600074125085223E-3},{"$f":"'Population at Risk'!N84/'Population at Risk'!N$5","v":3.6655986799912735E-2},{"$f":"'Population at Risk'!O84/'Population at Risk'!O$5","v":1.6831197719164422E-2},{"$f":"'Population at Risk'!P84/'Population at Risk'!P$5","v":2.9553404882574335E-3},{"$f":"'Population at Risk'!Q84/'Population at Risk'!Q$5","v":1.8824013147317787E-3},{"$f":"'Population at Risk'!R84/'Population at Risk'!R$5","v":4.3181214194355734E-3},{"$f":"'Population at Risk'!S84/'Population at Risk'!S$5","v":9.0916162534749583E-3},{"$f":"'Population at Risk'!T84/'Population at Risk'!T$5","v":1.1428398868455984E-2},{"$f":"'Population at Risk'!U84/'Population at Risk'!U$5","v":0},{"$f":"'Population at Risk'!V84/'Population at Risk'!V$5","v":7.8305084453705789E-3},{"$f":"'Population at Risk'!W84/'Population at Risk'!W$5","v":1.0751117518605193E-2},{"$f":"'Population at Risk'!X84/'Population at Risk'!X$5","v":1.0751117518605193E-2},{"$f":"'Population at Risk'!Y84/'Population at Risk'!Y$5","v":9.0437700202785406E-3},{"$f":"'Population at Risk'!Z84/'Population at Risk'!Z$5","v":2.6265726626812404E-2},{"$f":"'Population at Risk'!AA84/'Population at Risk'!AA$5","v":1.9268099315093098E-2},{"$f":"'Population at Risk'!AB84/'Population at Risk'!AB$5","v":4.4177204299006107E-3},{"$f":"'Population at Risk'!AC84/'Population at Risk'!AC$5","v":2.2356893756660008E-2},{"$f":"'Population at Risk'!AD84/'Population at Risk'!AD$5","v":5.4435332274361571E-3},{"$f":"'Population at Risk'!AE84/'Population at Risk'!AE$5","v":5.5982261865774917E-3},{"$f":"'Population at Risk'!AF84/'Population at Risk'!AF$5","v":2.3869934247488039E-2},{"$f":"'Population at Risk'!AG84/'Population at Risk'!AG$5","v":5.5982261865774917E-3},{"$f":"'Population at Risk'!AH84/'Population at Risk'!AH$5","v":1.3267457291907366E-2},{"$f":"'Population at Risk'!AI84/'Population at Risk'!AI$5","v":9.209234946024606E-3},{"$f":"'Population at Risk'!AJ84/'Population at Risk'!AJ$5","v":4.6739960060035229E-3},{"$f":"'Population at Risk'!AK84/'Population at Risk'!AK$5","v":2.3441753738869504E-4},{"$f":"'Population at Risk'!AL84/'Population at Risk'!AL$5","v":1.7673040891772865E-2},{"$f":"'Population at Risk'!AM84/'Population at Risk'!AM$5","v":1.6084278014587602E-2},{"$f":"'Population at Risk'!AN84/'Population at Risk'!AN$5","v":0},{"$f":"'Population at Risk'!AO84/'Population at Risk'!AO$5","v":0},{"$f":"'Population at Risk'!AP84/'Population at Risk'!AP$5","v":7.5117505494805394E-3},{"$f":"'Population at Risk'!AQ84/'Population at Risk'!AQ$5","v":2.117274702551292E-2},{"$f":"'Population at Risk'!AR84/'Population at Risk'!AR$5","v":1.2980538715610512E-2},{"$f":"'Population at Risk'!AS84/'Population at Risk'!AS$5","v":2.4232604390644376E-3},{"$f":"'Population at Risk'!AT84/'Population at Risk'!AT$5","v":0},{"$f":"'Population at Risk'!AU84/'Population at Risk'!AU$5","v":0},{"$f":"'Population at Risk'!AV84/'Population at Risk'!AV$5","v":1.0914889157729068E-2},{"$f":"'Population at Risk'!AW84/'Population at Risk'!AW$5","v":1.0093031596077365E-2},{"$f":"'Population at Risk'!AX84/'Population at Risk'!AX$5","v":1.0163498804078684E-2},{"$f":"'Population at Risk'!AY84/'Population at Risk'!AY$5","v":1.4132102709847534E-2},{"$f":"'Population at Risk'!AZ84/'Population at Risk'!AZ$5","v":1.7767946588822102E-2},{"$f":"'Population at Risk'!BA84/'Population at Risk'!BA$5","v":1.8964132728163274E-2},{"$f":"'Population at Risk'!BB84/'Population at Risk'!BB$5","v":9.2538710596571858E-3},{"$f":"'Population at Risk'!BC84/'Population at Risk'!BC$5","v":0},82]
[null,"Male 30-34",{"$f":"'Population at Risk'!C85/'Population at Risk'!C$5","v":7.7028257053765835E-3},{"$f":"'Population at Risk'!D85/'Population at Risk'!D$5","v":4.6379574087654961E-3},{"$f":"'Population at Risk'!E85/'Population at Risk'!E$5","v":1.96614025783987E-3},{"$f":"'Population at Risk'!F85/'Population at Risk'!F$5","v":3.6300176474307155E-3},{"$f":"'Population at Risk'!G85/'Population at Risk'!G$5","v":3.8673175742863762E-3},{"$f":"'Population at Risk'!H85/'Population at Risk'!H$5","v":1.3759514619278343E-2},{"$f":"'Population at Risk'!I85/'Population at Risk'!I$5","v":2.6686539012481785E-3},{"$f":"'Population at Risk'!J85/'Population at Risk'!J$5","v":9.228192258614586E-3},{"$f":"'Population at Risk'!K85/'Population at Risk'!K$5","v":1.1468923789771712E-2},{"$f":"'Population at Risk'!L85/'Population at Risk'!L$5","v":3.3204890417902191E-3},{"$f":"'Population at Risk'!M85/'Population at Risk'!M$5","v":3.3204890417902191E-3},{"$f":"'Population at Risk'!N85/'Population at Risk'!N$5","v":2.8757735500484025E-2},{"$f":"'Population at Risk'!O85/'Population at Risk'!O$5","v":1.4651807062860761E-2},{"$f":"'Population at Risk'!P85/'Population at Risk'!P$5","v":2.4295437142729821E-3},{"$f":"'Population at Risk'!Q85/'Population at Risk'!Q$5","v":1.9720394725761493E-3},{"$f":"'Population at Risk'!R85/'Population at Risk'!R$5","v":4.053746638653803E-3},{"$f":"'Population at Risk'!S85/'Population at Risk'!S$5","v":8.2333298647900878E-3},{"$f":"'Population at Risk'!T85/'Population at Risk'!T$5","v":9.872628827592711E-3},{"$f":"'Population at Risk'!U85/'Population at Risk'!U$5","v":0},{"$f":"'Population at Risk'!V85/'Population at Risk'!V$5","v":7.1905149666624067E-3},{"$f":"'Population at Risk'!W85/'Population at Risk'!W$5","v":1.0072841362167176E-2},{"$f":"'Population at Risk'!X85/'Population at Risk'!X$5","v":1.0072841362167176E-2},{"$f":"'Population at Risk'!Y85/'Population at Risk'!Y$5","v":8.1164771602146232E-3},{"$f":"'Population at Risk'!Z85/'Population at Risk'!Z$5","v":2.2999260661097174E-2},{"$f":"'Population at Risk'!AA85/'Population at Risk'!AA$5","v":1.7501290073811661E-2},{"$f":"'Population at Risk'!AB85/'Population at Risk'!AB$5","v":3.8777393231136763E-3},{"$f":"'Population at Risk'!AC85/'Population at Risk'!AC$5","v":1.9981266832163305E-2},{"$f":"'Population at Risk'!AD85/'Population at Risk'!AD$5","v":5.2713533443299043E-3},{"$f":"'Population at Risk'!AE85/'Population at Risk'!AE$5","v":5.8139032423417825E-3},{"$f":"'Population at Risk'!AF85/'Population at Risk'!AF$5","v":2.2473403440929331E-2},{"$f":"'Population at Risk'!AG85/'Population at Risk'!AG$5","v":5.8139032423417825E-3},{"$f":"'Population at Risk'!AH85/'Population at Risk'!AH$5","v":1.2683565242955093E-2},{"$f":"'Population at Risk'!AI85/'Population at Risk'!AI$5","v":8.1299360733694918E-3},{"$f":"'Population at Risk'!AJ85/'Population at Risk'!AJ$5","v":5.1505603046548623E-3},{"$f":"'Population at Risk'!AK85/'Population at Risk'!AK$5","v":1.7581315304152127E-4},{"$f":"'Population at Risk'!AL85/'Population at Risk'!AL$5","v":1.6047576673841792E-2},{"$f":"'Population at Risk'!AM85/'Population at Risk'!AM$5","v":1.5166205066916683E-2},{"$f":"'Population at Risk'!AN85/'Population at Risk'!AN$5","v":0},{"$f":"'Population at Risk'!AO85/'Population at Risk'!AO$5","v":0},{"$f":"'Population at Risk'!AP85/'Population at Risk'!AP$5","v":5.2565297298848013E-3},{"$f":"'Population at Risk'!AQ85/'Population at Risk'!AQ$5","v":1.9910999019632065E-2},{"$f":"'Population at Risk'!AR85/'Population at Risk'!AR$5","v":1.1580712545199368E-2},{"$f":"'Population at Risk'!AS85/'Population at Risk'!AS$5","v":2.6686539012481785E-3},{"$f":"'Population at Risk'!AT85/'Population at Risk'!AT$5","v":0},{"$f":"'Population at Risk'!AU85/'Population at Risk'!AU$5","v":0},{"$f":"'Population at Risk'!AV85/'Population at Risk'!AV$5","v":9.1469845758433733E-3},{"$f":"'Population at Risk'!AW85/'Population at Risk'!AW$5","v":9.8853977298258983E-3},{"$f":"'Population at Risk'!AX85/'Population at Risk'!AX$5","v":7.7548083360600359E-3},{"$f":"'Population at Risk'!AY85/'Population at Risk'!AY$5","v":1.1914177576287831E-2},{"$f":"'Population at Risk'!AZ85/'Population at Risk'!AZ$5","v":1.380700457852593E-2},{"$f":"'Population at Risk'!BA85/'Population at Risk'!BA$5","v":1.8542707556426313E-2},{"$f":"'Population at Risk'!BB85/'Population at Risk'!BB$5","v":8.0777633092179949E-3},{"$f":"'Population at Risk'!BC85/'Population at Risk'!BC$5","v":0},83]
[null,"Male 35-39",{"$f":"'Population at Risk'!C86/'Population at Risk'!C$5","v":1.0877185702317618E-2},{"$f":"'Population at Risk'!D86/'Population at Risk'!D$5","v":6.2291350775937919E-3},{"$f":"'Population at Risk'!E86/'Population at Risk'!E$5","v":2.2096715109123388E-3},{"$f":"'Population at Risk'!F86/'Population at Risk'!F$5","v":5.3386877190197109E-3},{"$f":"'Population at Risk'!G86/'Population at Risk'!G$5","v":4.8853305054327324E-3},{"$f":"'Population at Risk'!H86/'Population at Risk'!H$5","v":1.8224154344776589E-2},{"$f":"'Population at Risk'!I86/'Population at Risk'!I$5","v":4.2509904973492005E-3},{"$f":"'Population at Risk'!J86/'Population at Risk'!J$5","v":1.1839837720772227E-2},{"$f":"'Population at Risk'!K86/'Population at Risk'!K$5","v":1.695235875833315E-2},{"$f":"'Population at Risk'!L86/'Population at Risk'!L$5","v":4.2388469782427577E-3},{"$f":"'Population at Risk'!M86/'Population at Risk'!M$5","v":4.2388469782427577E-3},{"$f":"'Population at Risk'!N86/'Population at Risk'!N$5","v":3.0677697353130803E-2},{"$f":"'Population at Risk'!O86/'Population at Risk'!O$5","v":1.8447641753276078E-2},{"$f":"'Population at Risk'!P86/'Population at Risk'!P$5","v":3.6548061742618801E-3},{"$f":"'Population at Risk'!Q86/'Population at Risk'!Q$5","v":2.2852140837038891E-3},{"$f":"'Population at Risk'!R86/'Population at Risk'!R$5","v":5.3880081632789239E-3},{"$f":"'Population at Risk'!S86/'Population at Risk'!S$5","v":1.1279715071959857E-2},{"$f":"'Population at Risk'!T86/'Population at Risk'!T$5","v":1.3307496629621524E-2},{"$f":"'Population at Risk'!U86/'Population at Risk'!U$5","v":0},{"$f":"'Population at Risk'!V86/'Population at Risk'!V$5","v":1.0057902539015546E-2},{"$f":"'Population at Risk'!W86/'Population at Risk'!W$5","v":1.3859301609896542E-2},{"$f":"'Population at Risk'!X86/'Population at Risk'!X$5","v":1.3859301609896542E-2},{"$f":"'Population at Risk'!Y86/'Population at Risk'!Y$5","v":1.0884848967951343E-2},{"$f":"'Population at Risk'!Z86/'Population at Risk'!Z$5","v":2.7805761588937543E-2},{"$f":"'Population at Risk'!AA86/'Population at Risk'!AA$5","v":2.2216227753017865E-2},{"$f":"'Population at Risk'!AB86/'Population at Risk'!AB$5","v":5.2973670324879592E-3},{"$f":"'Population at Risk'!AC86/'Population at Risk'!AC$5","v":2.4282622003897355E-2},{"$f":"'Population at Risk'!AD86/'Population at Risk'!AD$5","v":6.0071158152456144E-3},{"$f":"'Population at Risk'!AE86/'Population at Risk'!AE$5","v":6.4213095763329814E-3},{"$f":"'Population at Risk'!AF86/'Population at Risk'!AF$5","v":2.646328230627534E-2},{"$f":"'Population at Risk'!AG86/'Population at Risk'!AG$5","v":6.4213095763329814E-3},{"$f":"'Population at Risk'!AH86/'Population at Risk'!AH$5","v":1.8202546188314597E-2},{"$f":"'Population at Risk'!AI86/'Population at Risk'!AI$5","v":1.1035832690085547E-2},{"$f":"'Population at Risk'!AJ86/'Population at Risk'!AJ$5","v":6.4659245985273913E-3},{"$f":"'Population at Risk'!AK86/'Population at Risk'!AK$5","v":7.52814063168085E-4},{"$f":"'Population at Risk'!AL86/'Population at Risk'!AL$5","v":2.123828153919597E-2},{"$f":"'Population at Risk'!AM86/'Population at Risk'!AM$5","v":2.1171882142520776E-2},{"$f":"'Population at Risk'!AN86/'Population at Risk'!AN$5","v":0},{"$f":"'Population at Risk'!AO86/'Population at Risk'!AO$5","v":0},{"$f":"'Population at Risk'!AP86/'Population at Risk'!AP$5","v":7.6655406817297423E-3},{"$f":"'Population at Risk'!AQ86/'Population at Risk'!AQ$5","v":2.4479295442826243E-2},{"$f":"'Population at Risk'!AR86/'Population at Risk'!AR$5","v":1.4896764831202608E-2},{"$f":"'Population at Risk'!AS86/'Population at Risk'!AS$5","v":4.2509904973492005E-3},{"$f":"'Population at Risk'!AT86/'Population at Risk'!AT$5","v":0},{"$f":"'Population at Risk'!AU86/'Population at Risk'!AU$5","v":0},{"$f":"'Population at Risk'!AV86/'Population at Risk'!AV$5","v":1.3261403456226799E-2},{"$f":"'Population at Risk'!AW86/'Population at Risk'!AW$5","v":1.4854760377664485E-2},{"$f":"'Population at Risk'!AX86/'Population at Risk'!AX$5","v":8.5625559204141263E-3},{"$f":"'Population at Risk'!AY86/'Population at Risk'!AY$5","v":1.4938535704942146E-2},{"$f":"'Population at Risk'!AZ86/'Population at Risk'!AZ$5","v":1.5883262853889125E-2},{"$f":"'Population at Risk'!BA86/'Population at Risk'!BA$5","v":2.296733151014755E-2},{"$f":"'Population at Risk'!BB86/'Population at Risk'!BB$5","v":1.1675531675091043E-2},{"$f":"'Population at Risk'!BC86/'Population at Risk'!BC$5","v":0},84]
[null,"Male 40-44",{"$f":"'Population at Risk'!C87/'Population at Risk'!C$5","v":8.8887413426929681E-3},{"$f":"'Population at Risk'!D87/'Population at Risk'!D$5","v":5.3487345729193543E-3},{"$f":"'Population at Risk'!E87/'Population at Risk'!E$5","v":2.2630452189053908E-3},{"$f":"'Population at Risk'!F87/'Population at Risk'!F$5","v":5.2344164745076072E-3},{"$f":"'Population at Risk'!G87/'Population at Risk'!G$5","v":5.4390012960484424E-3},{"$f":"'Population at Risk'!H87/'Population at Risk'!H$5","v":1.9900226192546017E-2},{"$f":"'Population at Risk'!I87/'Population at Risk'!I$5","v":4.3191882058628232E-3},{"$f":"'Population at Risk'!J87/'Population at Risk'!J$5","v":1.1407332233255435E-2},{"$f":"'Population at Risk'!K87/'Population at Risk'!K$5","v":1.6484061555064281E-2},{"$f":"'Population at Risk'!L87/'Population at Risk'!L$5","v":4.8504926831569812E-3},{"$f":"'Population at Risk'!M87/'Population at Risk'!M$5","v":4.8504926831569812E-3},{"$f":"'Population at Risk'!N87/'Population at Risk'!N$5","v":2.5934961363116453E-2},{"$f":"'Population at Risk'!O87/'Population at Risk'!O$5","v":2.1853060853300674E-2},{"$f":"'Population at Risk'!P87/'Population at Risk'!P$5","v":3.6548061742618801E-3},{"$f":"'Population at Risk'!Q87/'Population at Risk'!Q$5","v":3.5341101527048518E-3},{"$f":"'Population at Risk'!R87/'Population at Risk'!R$5","v":5.5186265429947763E-3},{"$f":"'Population at Risk'!S87/'Population at Risk'!S$5","v":1.0968130919105786E-2},{"$f":"'Population at Risk'!T87/'Population at Risk'!T$5","v":1.2037697332901911E-2},{"$f":"'Population at Risk'!U87/'Population at Risk'!U$5","v":0},{"$f":"'Population at Risk'!V87/'Population at Risk'!V$5","v":1.0518250366737479E-2},{"$f":"'Population at Risk'!W87/'Population at Risk'!W$5","v":1.3722210072540052E-2},{"$f":"'Population at Risk'!X87/'Population at Risk'!X$5","v":1.3722210072540052E-2},{"$f":"'Population at Risk'!Y87/'Population at Risk'!Y$5","v":1.0955940144084552E-2},{"$f":"'Population at Risk'!Z87/'Population at Risk'!Z$5","v":2.498488722484243E-2},{"$f":"'Population at Risk'!AA87/'Population at Risk'!AA$5","v":2.0820437526841012E-2},{"$f":"'Population at Risk'!AB87/'Population at Risk'!AB$5","v":4.5870496400297056E-3},{"$f":"'Population at Risk'!AC87/'Population at Risk'!AC$5","v":2.204123310355258E-2},{"$f":"'Population at Risk'!AD87/'Population at Risk'!AD$5","v":6.8708841024051146E-3},{"$f":"'Population at Risk'!AE87/'Population at Risk'!AE$5","v":7.4081342081936778E-3},{"$f":"'Population at Risk'!AF87/'Population at Risk'!AF$5","v":2.7195719722694515E-2},{"$f":"'Population at Risk'!AG87/'Population at Risk'!AG$5","v":7.4081342081936778E-3},{"$f":"'Population at Risk'!AH87/'Population at Risk'!AH$5","v":1.844981539716032E-2},{"$f":"'Population at Risk'!AI87/'Population at Risk'!AI$5","v":1.0598224828687721E-2},{"$f":"'Population at Risk'!AJ87/'Population at Risk'!AJ$5","v":7.2537893605328294E-3},{"$f":"'Population at Risk'!AK87/'Population at Risk'!AK$5","v":8.6863161134779034E-4},{"$f":"'Population at Risk'!AL87/'Population at Risk'!AL$5","v":2.2880258507905486E-2},{"$f":"'Population at Risk'!AM87/'Population at Risk'!AM$5","v":2.1345312809094671E-2},{"$f":"'Population at Risk'!AN87/'Population at Risk'!AN$5","v":0},{"$f":"'Population at Risk'!AO87/'Population at Risk'!AO$5","v":0},{"$f":"'Population at Risk'!AP87/'Population at Risk'!AP$5","v":6.3334959075275242E-3},{"$f":"'Population at Risk'!AQ87/'Population at Risk'!AQ$5","v":2.140798011397475E-2},{"$f":"'Population at Risk'!AR87/'Population at Risk'!AR$5","v":1.428208811111812E-2},{"$f":"'Population at Risk'!AS87/'Population at Risk'!AS$5","v":4.3191882058628232E-3},{"$f":"'Population at Risk'!AT87/'Population at Risk'!AT$5","v":0},{"$f":"'Population at Risk'!AU87/'Population at Risk'!AU$5","v":0},{"$f":"'Population at Risk'!AV87/'Population at Risk'!AV$5","v":1.2942400623946431E-2},{"$f":"'Population at Risk'!AW87/'Population at Risk'!AW$5","v":1.5185032968173445E-2},{"$f":"'Population at Risk'!AX87/'Population at Risk'!AX$5","v":8.1561973343605727E-3},{"$f":"'Population at Risk'!AY87/'Population at Risk'!AY$5","v":1.3819119702390163E-2},{"$f":"'Population at Risk'!AZ87/'Population at Risk'!AZ$5","v":1.3645649414587646E-2},{"$f":"'Population at Risk'!BA87/'Population at Risk'!BA$5","v":2.1093427893210823E-2},{"$f":"'Population at Risk'!BB87/'Population at Risk'!BB$5","v":1.1986338652552955E-2},{"$f":"'Population at Risk'!BC87/'Population at Risk'!BC$5","v":0},85]
[null,"Male 45-49",{"$f":"'Population at Risk'!C88/'Population at Risk'!C$5","v":7.9900127763176017E-3},{"$f":"'Population at Risk'!D88/'Population at Risk'!D$5","v":4.763450762841316E-3},{"$f":"'Population at Risk'!E88/'Population at Risk'!E$5","v":1.955490992599757E-3},{"$f":"'Population at Risk'!F88/'Population at Risk'!F$5","v":5.5990064329512314E-3},{"$f":"'Population at Risk'!G88/'Population at Risk'!G$5","v":6.4081899098070369E-3},{"$f":"'Population at Risk'!H88/'Population at Risk'!H$5","v":2.184636897920663E-2},{"$f":"'Population at Risk'!I88/'Population at Risk'!I$5","v":5.5524635101318982E-3},{"$f":"'Population at Risk'!J88/'Population at Risk'!J$5","v":1.3624219368870332E-2},{"$f":"'Population at Risk'!K88/'Population at Risk'!K$5","v":1.9290662322800474E-2},{"$f":"'Population at Risk'!L88/'Population at Risk'!L$5","v":5.5975006555152593E-3},{"$f":"'Population at Risk'!M88/'Population at Risk'!M$5","v":5.5975006555152593E-3},{"$f":"'Population at Risk'!N88/'Population at Risk'!N$5","v":3.1538264402801074E-2},{"$f":"'Population at Risk'!O88/'Population at Risk'!O$5","v":2.4142327290029058E-2},{"$f":"'Population at Risk'!P88/'Population at Risk'!P$5","v":4.8187435565916698E-3},{"$f":"'Population at Risk'!Q88/'Population at Risk'!Q$5","v":2.4209896847507272E-3},{"$f":"'Population at Risk'!R88/'Population at Risk'!R$5","v":5.7920464394259508E-3},{"$f":"'Population at Risk'!S88/'Population at Risk'!S$5","v":1.1831747405035658E-2},{"$f":"'Population at Risk'!T88/'Population at Risk'!T$5","v":1.1347564186835841E-2},{"$f":"'Population at Risk'!U88/'Population at Risk'!U$5","v":0},{"$f":"'Population at Risk'!V88/'Population at Risk'!V$5","v":1.1506370740661678E-2},{"$f":"'Population at Risk'!W88/'Population at Risk'!W$5","v":1.667280290337465E-2},{"$f":"'Population at Risk'!X88/'Population at Risk'!X$5","v":1.667280290337465E-2},{"$f":"'Population at Risk'!Y88/'Population at Risk'!Y$5","v":1.2487163425855707E-2},{"$f":"'Population at Risk'!Z88/'Population at Risk'!Z$5","v":2.6431858057822884E-2},{"$f":"'Population at Risk'!AA88/'Population at Risk'!AA$5","v":2.3107011977404966E-2},{"$f":"'Population at Risk'!AB88/'Population at Risk'!AB$5","v":4.1405555900072295E-3},{"$f":"'Population at Risk'!AC88/'Population at Risk'!AC$5","v":2.4360563924681427E-2},{"$f":"'Population at Risk'!AD88/'Population at Risk'!AD$5","v":7.0211392988484009E-3},{"$f":"'Population at Risk'!AE88/'Population at Risk'!AE$5","v":7.2072910314505871E-3},{"$f":"'Population at Risk'!AF88/'Population at Risk'!AF$5","v":3.4508106865573832E-2},{"$f":"'Population at Risk'!AG88/'Population at Risk'!AG$5","v":7.2072910314505871E-3},{"$f":"'Population at Risk'!AH88/'Population at Risk'!AH$5","v":2.0672916604971892E-2},{"$f":"'Population at Risk'!AI88/'Population at Risk'!AI$5","v":1.0488638716913424E-2},{"$f":"'Population at Risk'!AJ88/'Population at Risk'!AJ$5","v":8.1367093503976456E-3},{"$f":"'Population at Risk'!AK88/'Population at Risk'!AK$5","v":1.0944996505532745E-3},{"$f":"'Population at Risk'!AL88/'Population at Risk'!AL$5","v":2.5642312565925113E-2},{"$f":"'Population at Risk'!AM88/'Population at Risk'!AM$5","v":2.4484119763156575E-2},{"$f":"'Population at Risk'!AN88/'Population at Risk'!AN$5","v":0},{"$f":"'Population at Risk'!AO88/'Population at Risk'!AO$5","v":0},{"$f":"'Population at Risk'!AP88/'Population at Risk'!AP$5","v":6.2605533607877316E-3},{"$f":"'Population at Risk'!AQ88/'Population at Risk'!AQ$5","v":2.671821785527468E-2},{"$f":"'Population at Risk'!AR88/'Population at Risk'!AR$5","v":1.5705563037016989E-2},{"$f":"'Population at Risk'!AS88/'Population at Risk'!AS$5","v":5.5524635101318982E-3},{"$f":"'Population at Risk'!AT88/'Population at Risk'!AT$5","v":0},{"$f":"'Population at Risk'!AU88/'Population at Risk'!AU$5","v":0},{"$f":"'Population at Risk'!AV88/'Population at Risk'!AV$5","v":1.3251175272646432E-2},{"$f":"'Population at Risk'!AW88/'Population at Risk'!AW$5","v":1.6376911272977294E-2},{"$f":"'Population at Risk'!AX88/'Population at Risk'!AX$5","v":9.9872610698628732E-3},{"$f":"'Population at Risk'!AY88/'Population at Risk'!AY$5","v":1.6463784948604867E-2},{"$f":"'Population at Risk'!AZ88/'Population at Risk'!AZ$5","v":1.5880107632864869E-2},{"$f":"'Population at Risk'!BA88/'Population at Risk'!BA$5","v":2.4519841735539481E-2},{"$f":"'Population at Risk'!BB88/'Population at Risk'!BB$5","v":1.343838036668441E-2},{"$f":"'Population at Risk'!BC88/'Population at Risk'!BC$5","v":0},86]
[null,"Male 50-54",{"$f":"'Population at Risk'!C89/'Population at Risk'!C$5","v":7.8496131907912544E-3},{"$f":"'Population at Risk'!D89/'Population at Risk'!D$5","v":4.5121275937588905E-3},{"$f":"'Population at Risk'!E89/'Population at Risk'!E$5","v":1.624402570572285E-3},{"$f":"'Population at Risk'!F89/'Population at Risk'!F$5","v":5.9022017271543673E-3},{"$f":"'Population at Risk'!G89/'Population at Risk'!G$5","v":8.3022361885677371E-3},{"$f":"'Population at Risk'!H89/'Population at Risk'!H$5","v":2.351939834609371E-2},{"$f":"'Population at Risk'!I89/'Population at Risk'!I$5","v":5.7287321929932293E-3},{"$f":"'Population at Risk'!J89/'Population at Risk'!J$5","v":1.5039042149483789E-2},{"$f":"'Population at Risk'!K89/'Population at Risk'!K$5","v":2.0606966340120977E-2},{"$f":"'Population at Risk'!L89/'Population at Risk'!L$5","v":6.0248960257639613E-3},{"$f":"'Population at Risk'!M89/'Population at Risk'!M$5","v":6.0248960257639613E-3},{"$f":"'Population at Risk'!N89/'Population at Risk'!N$5","v":3.2294717239030622E-2},{"$f":"'Population at Risk'!O89/'Population at Risk'!O$5","v":2.5519194393288529E-2},{"$f":"'Population at Risk'!P89/'Population at Risk'!P$5","v":4.922932606463923E-3},{"$f":"'Population at Risk'!Q89/'Population at Risk'!Q$5","v":3.6829949459505746E-3},{"$f":"'Population at Risk'!R89/'Population at Risk'!R$5","v":7.6277770049270723E-3},{"$f":"'Population at Risk'!S89/'Population at Risk'!S$5","v":1.1669130124585841E-2},{"$f":"'Population at Risk'!T89/'Population at Risk'!T$5","v":1.1766021000667098E-2},{"$f":"'Population at Risk'!U89/'Population at Risk'!U$5","v":0},{"$f":"'Population at Risk'!V89/'Population at Risk'!V$5","v":1.1601017738528459E-2},{"$f":"'Population at Risk'!W89/'Population at Risk'!W$5","v":1.5432624774698585E-2},{"$f":"'Population at Risk'!X89/'Population at Risk'!X$5","v":1.5432624774698585E-2},{"$f":"'Population at Risk'!Y89/'Population at Risk'!Y$5","v":1.316090369653339E-2},{"$f":"'Population at Risk'!Z89/'Population at Risk'!Z$5","v":2.7070753508027807E-2},{"$f":"'Population at Risk'!AA89/'Population at Risk'!AA$5","v":2.3835213220752507E-2},{"$f":"'Population at Risk'!AB89/'Population at Risk'!AB$5","v":3.864195322290119E-3},{"$f":"'Population at Risk'!AC89/'Population at Risk'!AC$5","v":2.5655588840393918E-2},{"$f":"'Population at Risk'!AD89/'Population at Risk'!AD$5","v":7.7536971931726926E-3},{"$f":"'Population at Risk'!AE89/'Population at Risk'!AE$5","v":7.4363077558144385E-3},{"$f":"'Population at Risk'!AF89/'Population at Risk'!AF$5","v":3.9662716746209636E-2},{"$f":"'Population at Risk'!AG89/'Population at Risk'!AG$5","v":7.4363077558144385E-3},{"$f":"'Population at Risk'!AH89/'Population at Risk'!AH$5","v":2.029972218464365E-2},{"$f":"'Population at Risk'!AI89/'Population at Risk'!AI$5","v":1.0761107371316371E-2},{"$f":"'Population at Risk'!AJ89/'Population at Risk'!AJ$5","v":8.0313797795187117E-3},{"$f":"'Population at Risk'!AK89/'Population at Risk'!AK$5","v":7.0160234009825301E-4},{"$f":"'Population at Risk'!AL89/'Population at Risk'!AL$5","v":2.8185720598856202E-2},{"$f":"'Population at Risk'!AM89/'Population at Risk'!AM$5","v":2.4471189148018917E-2},{"$f":"'Population at Risk'!AN89/'Population at Risk'!AN$5","v":0},{"$f":"'Population at Risk'!AO89/'Population at Risk'!AO$5","v":0},{"$f":"'Population at Risk'!AP89/'Population at Risk'!AP$5","v":7.2349585531282347E-3},{"$f":"'Population at Risk'!AQ89/'Population at Risk'!AQ$5","v":2.6526636591006299E-2},{"$f":"'Population at Risk'!AR89/'Population at Risk'!AR$5","v":1.6162573121487857E-2},{"$f":"'Population at Risk'!AS89/'Population at Risk'!AS$5","v":5.7287321929932293E-3},{"$f":"'Population at Risk'!AT89/'Population at Risk'!AT$5","v":0},{"$f":"'Population at Risk'!AU89/'Population at Risk'!AU$5","v":0},{"$f":"'Population at Risk'!AV89/'Population at Risk'!AV$5","v":1.3957904620520907E-2},{"$f":"'Population at Risk'!AW89/'Population at Risk'!AW$5","v":1.5598444144497254E-2},{"$f":"'Population at Risk'!AX89/'Population at Risk'!AX$5","v":1.1450183818124477E-2},{"$f":"'Population at Risk'!AY89/'Population at Risk'!AY$5","v":1.6113564705693979E-2},{"$f":"'Population at Risk'!AZ89/'Population at Risk'!AZ$5","v":1.6571186390961768E-2},{"$f":"'Population at Risk'!BA89/'Population at Risk'!BA$5","v":3.1272694635165736E-2},{"$f":"'Population at Risk'!BB89/'Population at Risk'!BB$5","v":1.300615175839924E-2},{"$f":"'Population at Risk'!BC89/'Population at Risk'!BC$5","v":0},87]
[null,"Male 55-59",{"$f":"'Population at Risk'!C90/'Population at Risk'!C$5","v":9.7537858031419601E-3},{"$f":"'Population at Risk'!D90/'Population at Risk'!D$5","v":5.9129031462232607E-3},{"$f":"'Population at Risk'!E90/'Population at Risk'!E$5","v":2.5605258321189472E-3},{"$f":"'Population at Risk'!F90/'Population at Risk'!F$5","v":6.3765084606335577E-3},{"$f":"'Population at Risk'!G90/'Population at Risk'!G$5","v":9.1428732122701365E-3},{"$f":"'Population at Risk'!H90/'Population at Risk'!H$5","v":3.1148356171188867E-2},{"$f":"'Population at Risk'!I90/'Population at Risk'!I$5","v":5.9022167798277007E-3},{"$f":"'Population at Risk'!J90/'Population at Risk'!J$5","v":1.9333264291398929E-2},{"$f":"'Population at Risk'!K90/'Population at Risk'!K$5","v":2.6415919705518733E-2},{"$f":"'Population at Risk'!L90/'Population at Risk'!L$5","v":7.2925846474173528E-3},{"$f":"'Population at Risk'!M90/'Population at Risk'!M$5","v":7.2925846474173528E-3},{"$f":"'Population at Risk'!N90/'Population at Risk'!N$5","v":4.2330757799981009E-2},{"$f":"'Population at Risk'!O90/'Population at Risk'!O$5","v":3.2417535528002583E-2},{"$f":"'Population at Risk'!P90/'Population at Risk'!P$5","v":6.1273395456264588E-3},{"$f":"'Population at Risk'!Q90/'Population at Risk'!Q$5","v":3.9223547138643178E-3},{"$f":"'Population at Risk'!R90/'Population at Risk'!R$5","v":8.3061928949802605E-3},{"$f":"'Population at Risk'!S90/'Population at Risk'!S$5","v":1.3826151961470677E-2},{"$f":"'Population at Risk'!T90/'Population at Risk'!T$5","v":1.2611779662306286E-2},{"$f":"'Population at Risk'!U90/'Population at Risk'!U$5","v":0},{"$f":"'Population at Risk'!V90/'Population at Risk'!V$5","v":1.3366169733758019E-2},{"$f":"'Population at Risk'!W90/'Population at Risk'!W$5","v":2.0761038629957991E-2},{"$f":"'Population at Risk'!X90/'Population at Risk'!X$5","v":2.0761038629957991E-2},{"$f":"'Population at Risk'!Y90/'Population at Risk'!Y$5","v":1.6042654527269794E-2},{"$f":"'Population at Risk'!Z90/'Population at Risk'!Z$5","v":3.2208148598341001E-2},{"$f":"'Population at Risk'!AA90/'Population at Risk'!AA$5","v":2.8889281409287922E-2},{"$f":"'Population at Risk'!AB90/'Population at Risk'!AB$5","v":5.082985666805975E-3},{"$f":"'Population at Risk'!AC90/'Population at Risk'!AC$5","v":3.0568292506639238E-2},{"$f":"'Population at Risk'!AD90/'Population at Risk'!AD$5","v":9.6635252872886695E-3},{"$f":"'Population at Risk'!AE90/'Population at Risk'!AE$5","v":9.7819016560536081E-3},{"$f":"'Population at Risk'!AF90/'Population at Risk'!AF$5","v":4.7216697872066726E-2},{"$f":"'Population at Risk'!AG90/'Population at Risk'!AG$5","v":9.7819016560536081E-3},{"$f":"'Population at Risk'!AH90/'Population at Risk'!AH$5","v":2.5628885762031747E-2},{"$f":"'Population at Risk'!AI90/'Population at Risk'!AI$5","v":1.1764115700705163E-2},{"$f":"'Population at Risk'!AJ90/'Population at Risk'!AJ$5","v":9.6317757238877071E-3},{"$f":"'Population at Risk'!AK90/'Population at Risk'!AK$5","v":1.0303352122887687E-3},{"$f":"'Population at Risk'!AL90/'Population at Risk'!AL$5","v":3.7618080406209869E-2},{"$f":"'Population at Risk'!AM90/'Population at Risk'!AM$5","v":2.9776122648129667E-2},{"$f":"'Population at Risk'!AN90/'Population at Risk'!AN$5","v":0},{"$f":"'Population at Risk'!AO90/'Population at Risk'!AO$5","v":0},{"$f":"'Population at Risk'!AP90/'Population at Risk'!AP$5","v":7.7179023107334576E-3},{"$f":"'Population at Risk'!AQ90/'Population at Risk'!AQ$5","v":3.3565123689366899E-2},{"$f":"'Population at Risk'!AR90/'Population at Risk'!AR$5","v":1.9792185543148405E-2},{"$f":"'Population at Risk'!AS90/'Population at Risk'!AS$5","v":5.9022167798277007E-3},{"$f":"'Population at Risk'!AT90/'Population at Risk'!AT$5","v":0},{"$f":"'Population at Risk'!AU90/'Population at Risk'!AU$5","v":0},{"$f":"'Population at Risk'!AV90/'Population at Risk'!AV$5","v":1.9670174195882933E-2},{"$f":"'Population at Risk'!AW90/'Population at Risk'!AW$5","v":2.0953000089190578E-2},{"$f":"'Population at Risk'!AX90/'Population at Risk'!AX$5","v":1.476621243671767E-2},{"$f":"'Population at Risk'!AY90/'Population at Risk'!AY$5","v":2.0930209238427089E-2},{"$f":"'Population at Risk'!AZ90/'Population at Risk'!AZ$5","v":2.0693492498726072E-2},{"$f":"'Population at Risk'!BA90/'Population at Risk'!BA$5","v":3.4924368493856522E-2},{"$f":"'Population at Risk'!BB90/'Population at Risk'!BB$5","v":1.4515130185241856E-2},{"$f":"'Population at Risk'!BC90/'Population at Risk'!BC$5","v":0},88]
[null,"Male 60-64",{"$f":"'Population at Risk'!C91/'Population at Risk'!C$5","v":8.781878320978348E-3},{"$f":"'Population at Risk'!D91/'Population at Risk'!D$5","v":4.8241024324697833E-3},{"$f":"'Population at Risk'!E91/'Population at Risk'!E$5","v":1.4209511485934814E-3},{"$f":"'Population at Risk'!F91/'Population at Risk'!F$5","v":5.387050251224902E-3},{"$f":"'Population at Risk'!G91/'Population at Risk'!G$5","v":8.8853274879808382E-3},{"$f":"'Population at Risk'!H91/'Population at Risk'!H$5","v":2.6623231128060341E-2},{"$f":"'Population at Risk'!I91/'Population at Risk'!I$5","v":4.6139156552967809E-3},{"$f":"'Population at Risk'!J91/'Population at Risk'!J$5","v":1.5081846222405796E-2},{"$f":"'Population at Risk'!K91/'Population at Risk'!K$5","v":2.0552573041910605E-2},{"$f":"'Population at Risk'!L91/'Population at Risk'!L$5","v":6.0365353636719476E-3},{"$f":"'Population at Risk'!M91/'Population at Risk'!M$5","v":6.0365353636719476E-3},{"$f":"'Population at Risk'!N91/'Population at Risk'!N$5","v":3.4128349279237025E-2},{"$f":"'Population at Risk'!O91/'Population at Risk'!O$5","v":2.6800889736362899E-2},{"$f":"'Population at Risk'!P91/'Population at Risk'!P$5","v":5.6669036260129108E-3},{"$f":"'Population at Risk'!Q91/'Population at Risk'!Q$5","v":3.0468291080910322E-3},{"$f":"'Population at Risk'!R91/'Population at Risk'!R$5","v":6.2834412573425803E-3},{"$f":"'Population at Risk'!S91/'Population at Risk'!S$5","v":1.1571201342798482E-2},{"$f":"'Population at Risk'!T91/'Population at Risk'!T$5","v":1.0777582407809513E-2},{"$f":"'Population at Risk'!U91/'Population at Risk'!U$5","v":0},{"$f":"'Population at Risk'!V91/'Population at Risk'!V$5","v":1.1454090432092497E-2},{"$f":"'Population at Risk'!W91/'Population at Risk'!W$5","v":1.7362526297246262E-2},{"$f":"'Population at Risk'!X91/'Population at Risk'!X$5","v":1.7362526297246262E-2},{"$f":"'Population at Risk'!Y91/'Population at Risk'!Y$5","v":1.3096469432385075E-2},{"$f":"'Population at Risk'!Z91/'Population at Risk'!Z$5","v":2.595620173260885E-2},{"$f":"'Population at Risk'!AA91/'Population at Risk'!AA$5","v":2.3457514416323912E-2},{"$f":"'Population at Risk'!AB91/'Population at Risk'!AB$5","v":4.1336342582196442E-3},{"$f":"'Population at Risk'!AC91/'Population at Risk'!AC$5","v":2.4655403886340965E-2},{"$f":"'Population at Risk'!AD91/'Population at Risk'!AD$5","v":8.3440077781809802E-3},{"$f":"'Population at Risk'!AE91/'Population at Risk'!AE$5","v":8.0233575381113871E-3},{"$f":"'Population at Risk'!AF91/'Population at Risk'!AF$5","v":4.0459463776597628E-2},{"$f":"'Population at Risk'!AG91/'Population at Risk'!AG$5","v":8.0233575381113871E-3},{"$f":"'Population at Risk'!AH91/'Population at Risk'!AH$5","v":2.1131609895342799E-2},{"$f":"'Population at Risk'!AI91/'Population at Risk'!AI$5","v":9.8925518392293417E-3},{"$f":"'Population at Risk'!AJ91/'Population at Risk'!AJ$5","v":8.7366292811472141E-3},{"$f":"'Population at Risk'!AK91/'Population at Risk'!AK$5","v":7.6321126836205086E-4},{"$f":"'Population at Risk'!AL91/'Population at Risk'!AL$5","v":3.1854019698806746E-2},{"$f":"'Population at Risk'!AM91/'Population at Risk'!AM$5","v":2.3929910200238842E-2},{"$f":"'Population at Risk'!AN91/'Population at Risk'!AN$5","v":0},{"$f":"'Population at Risk'!AO91/'Population at Risk'!AO$5","v":0},{"$f":"'Population at Risk'!AP91/'Population at Risk'!AP$5","v":6.4260645849025348E-3},{"$f":"'Population at Risk'!AQ91/'Population at Risk'!AQ$5","v":2.3966500258198693E-2},{"$f":"'Population at Risk'!AR91/'Population at Risk'!AR$5","v":1.6284460981307453E-2},{"$f":"'Population at Risk'!AS91/'Population at Risk'!AS$5","v":4.6139156552967809E-3},{"$f":"'Population at Risk'!AT91/'Population at Risk'!AT$5","v":0},{"$f":"'Population at Risk'!AU91/'Population at Risk'!AU$5","v":0},{"$f":"'Population at Risk'!AV91/'Population at Risk'!AV$5","v":1.8318788182425327E-2},{"$f":"'Population at Risk'!AW91/'Population at Risk'!AW$5","v":1.797526022760117E-2},{"$f":"'Population at Risk'!AX91/'Population at Risk'!AX$5","v":1.1552839782095172E-2},{"$f":"'Population at Risk'!AY91/'Population at Risk'!AY$5","v":1.728388012506292E-2},{"$f":"'Population at Risk'!AZ91/'Population at Risk'!AZ$5","v":1.6834705974809037E-2},{"$f":"'Population at Risk'!BA91/'Population at Risk'!BA$5","v":3.1124799845386186E-2},{"$f":"'Population at Risk'!BB91/'Population at Risk'!BB$5","v":1.1558674221131245E-2},{"$f":"'Population at Risk'!BC91/'Population at Risk'!BC$5","v":0},89]
[null,"Male 65-69",{"$f":"'Population at Risk'!C92/'Population at Risk'!C$5","v":0},{"$f":"'Population at Risk'!D92/'Population at Risk'!D$5","v":0},{"$f":"'Population at Risk'!E92/'Population at Risk'!E$5","v":0},{"$f":"'Population at Risk'!F92/'Population at Risk'!F$5","v":0},{"$f":"'Population at Risk'!G92/'Population at Risk'!G$5","v":0},{"$f":"'Population at Risk'!H92/'Population at Risk'!H$5","v":0},{"$f":"'Population at Risk'!I92/'Population at Risk'!I$5","v":0},{"$f":"'Population at Risk'!J92/'Population at Risk'!J$5","v":0},{"$f":"'Population at Risk'!K92/'Population at Risk'!K$5","v":0},{"$f":"'Population at Risk'!L92/'Population at Risk'!L$5","v":0},{"$f":"'Population at Risk'!M92/'Population at Risk'!M$5","v":0},{"$f":"'Population at Risk'!N92/'Population at Risk'!N$5","v":0},{"$f":"'Population at Risk'!O92/'Population at Risk'!O$5","v":0},{"$f":"'Population at Risk'!P92/'Population at Risk'!P$5","v":0},{"$f":"'Population at Risk'!Q92/'Population at Risk'!Q$5","v":0},{"$f":"'Population at Risk'!R92/'Population at Risk'!R$5","v":0},{"$f":"'Population at Risk'!S92/'Population at Risk'!S$5","v":0},{"$f":"'Population at Risk'!T92/'Population at Risk'!T$5","v":0},{"$f":"'Population at Risk'!U92/'Population at Risk'!U$5","v":0},{"$f":"'Population at Risk'!V92/'Population at Risk'!V$5","v":0},{"$f":"'Population at Risk'!W92/'Population at Risk'!W$5","v":0},{"$f":"'Population at Risk'!X92/'Population at Risk'!X$5","v":0},{"$f":"'Population at Risk'!Y92/'Population at Risk'!Y$5","v":0},{"$f":"'Population at Risk'!Z92/'Population at Risk'!Z$5","v":0},{"$f":"'Population at Risk'!AA92/'Population at Risk'!AA$5","v":0},{"$f":"'Population at Risk'!AB92/'Population at Risk'!AB$5","v":0},{"$f":"'Population at Risk'!AC92/'Population at Risk'!AC$5","v":0},{"$f":"'Population at Risk'!AD92/'Population at Risk'!AD$5","v":0},{"$f":"'Population at Risk'!AE92/'Population at Risk'!AE$5","v":0},{"$f":"'Population at Risk'!AF92/'Population at Risk'!AF$5","v":0},{"$f":"'Population at Risk'!AG92/'Population at Risk'!AG$5","v":0},{"$f":"'Population at Risk'!AH92/'Population at Risk'!AH$5","v":0},{"$f":"'Population at Risk'!AI92/'Population at Risk'!AI$5","v":0},{"$f":"'Population at Risk'!AJ92/'Population at Risk'!AJ$5","v":0},{"$f":"'Population at Risk'!AK92/'Population at Risk'!AK$5","v":0},{"$f":"'Population at Risk'!AL92/'Population at Risk'!AL$5","v":0},{"$f":"'Population at Risk'!AM92/'Population at Risk'!AM$5","v":0},{"$f":"'Population at Risk'!AN92/'Population at Risk'!AN$5","v":0},{"$f":"'Population at Risk'!AO92/'Population at Risk'!AO$5","v":0},{"$f":"'Population at Risk'!AP92/'Population at Risk'!AP$5","v":0},{"$f":"'Population at Risk'!AQ92/'Population at Risk'!AQ$5","v":0},{"$f":"'Population at Risk'!AR92/'Population at Risk'!AR$5","v":0},{"$f":"'Population at Risk'!AS92/'Population at Risk'!AS$5","v":0},{"$f":"'Population at Risk'!AT92/'Population at Risk'!AT$5","v":0},{"$f":"'Population at Risk'!AU92/'Population at Risk'!AU$5","v":0},{"$f":"'Population at Risk'!AV92/'Population at Risk'!AV$5","v":0},{"$f":"'Population at Risk'!AW92/'Population at Risk'!AW$5","v":0},{"$f":"'Population at Risk'!AX92/'Population at Risk'!AX$5","v":0},{"$f":"'Population at Risk'!AY92/'Population at Risk'!AY$5","v":0},{"$f":"'Population at Risk'!AZ92/'Population at Risk'!AZ$5","v":0},{"$f":"'Population at Risk'!BA92/'Population at Risk'!BA$5","v":0},{"$f":"'Population at Risk'!BB92/'Population at Risk'!BB$5","v":0},{"$f":"'Population at Risk'!BC92/'Population at Risk'!BC$5","v":0},90]
[null,"Male 70-74",{"$f":"'Population at Risk'!C93/'Population at Risk'!C$5","v":0},{"$f":"'Population at Risk'!D93/'Population at Risk'!D$5","v":0},{"$f":"'Population at Risk'!E93/'Population at Risk'!E$5","v":0},{"$f":"'Population at Risk'!F93/'Population at Risk'!F$5","v":0},{"$f":"'Population at Risk'!G93/'Population at Risk'!G$5","v":0},{"$f":"'Population at Risk'!H93/'Population at Risk'!H$5","v":0},{"$f":"'Population at Risk'!I93/'Population at Risk'!I$5","v":0},{"$f":"'Population at Risk'!J93/'Population at Risk'!J$5","v":0},{"$f":"'Population at Risk'!K93/'Population at Risk'!K$5","v":0},{"$f":"'Population at Risk'!L93/'Population at Risk'!L$5","v":0},{"$f":"'Population at Risk'!M93/'Population at Risk'!M$5","v":0},{"$f":"'Population at Risk'!N93/'Population at Risk'!N$5","v":0},{"$f":"'Population at Risk'!O93/'Population at Risk'!O$5","v":0},{"$f":"'Population at Risk'!P93/'Population at Risk'!P$5","v":0},{"$f":"'Population at Risk'!Q93/'Population at Risk'!Q$5","v":0},{"$f":"'Population at Risk'!R93/'Population at Risk'!R$5","v":0},{"$f":"'Population at Risk'!S93/'Population at Risk'!S$5","v":0},{"$f":"'Population at Risk'!T93/'Population at Risk'!T$5","v":0},{"$f":"'Population at Risk'!U93/'Population at Risk'!U$5","v":0},{"$f":"'Population at Risk'!V93/'Population at Risk'!V$5","v":0},{"$f":"'Population at Risk'!W93/'Population at Risk'!W$5","v":0},{"$f":"'Population at Risk'!X93/'Population at Risk'!X$5","v":0},{"$f":"'Population at Risk'!Y93/'Population at Risk'!Y$5","v":0},{"$f":"'Population at Risk'!Z93/'Population at Risk'!Z$5","v":0},{"$f":"'Population at Risk'!AA93/'Population at Risk'!AA$5","v":0},{"$f":"'Population at Risk'!AB93/'Population at Risk'!AB$5","v":0},{"$f":"'Population at Risk'!AC93/'Population at Risk'!AC$5","v":0},{"$f":"'Population at Risk'!AD93/'Population at Risk'!AD$5","v":0},{"$f":"'Population at Risk'!AE93/'Population at Risk'!AE$5","v":0},{"$f":"'Population at Risk'!AF93/'Population at Risk'!AF$5","v":0},{"$f":"'Population at Risk'!AG93/'Population at Risk'!AG$5","v":0},{"$f":"'Population at Risk'!AH93/'Population at Risk'!AH$5","v":0},{"$f":"'Population at Risk'!AI93/'Population at Risk'!AI$5","v":0},{"$f":"'Population at Risk'!AJ93/'Population at Risk'!AJ$5","v":0},{"$f":"'Population at Risk'!AK93/'Population at Risk'!AK$5","v":0},{"$f":"'Population at Risk'!AL93/'Population at Risk'!AL$5","v":0},{"$f":"'Population at Risk'!AM93/'Population at Risk'!AM$5","v":0},{"$f":"'Population at Risk'!AN93/'Population at Risk'!AN$5","v":0},{"$f":"'Population at Risk'!AO93/'Population at Risk'!AO$5","v":0},{"$f":"'Population at Risk'!AP93/'Population at Risk'!AP$5","v":0},{"$f":"'Population at Risk'!AQ93/'Population at Risk'!AQ$5","v":0},{"$f":"'Population at Risk'!AR93/'Population at Risk'!AR$5","v":0},{"$f":"'Population at Risk'!AS93/'Population at Risk'!AS$5","v":0},{"$f":"'Population at Risk'!AT93/'Population at Risk'!AT$5","v":0},{"$f":"'Population at Risk'!AU93/'Population at Risk'!AU$5","v":0},{"$f":"'Population at Risk'!AV93/'Population at Risk'!AV$5","v":0},{"$f":"'Population at Risk'!AW93/'Population at Risk'!AW$5","v":0},{"$f":"'Population at Risk'!AX93/'Population at Risk'!AX$5","v":0},{"$f":"'Population at Risk'!AY93/'Population at Risk'!AY$5","v":0},{"$f":"'Population at Risk'!AZ93/'Population at Risk'!AZ$5","v":0},{"$f":"'Population at Risk'!BA93/'Population at Risk'!BA$5","v":0},{"$f":"'Population at Risk'!BB93/'Population at Risk'!BB$5","v":0},{"$f":"'Population at Risk'!BC93/'Population at Risk'!BC$5","v":0},91]
[null,"Male 75-79",{"$f":"'Population at Risk'!C94/'Population at Risk'!C$5","v":0},{"$f":"'Population at Risk'!D94/'Population at Risk'!D$5","v":0},{"$f":"'Population at Risk'!E94/'Population at Risk'!E$5","v":0},{"$f":"'Population at Risk'!F94/'Population at Risk'!F$5","v":0},{"$f":"'Population at Risk'!G94/'Population at Risk'!G$5","v":0},{"$f":"'Population at Risk'!H94/'Population at Risk'!H$5","v":0},{"$f":"'Population at Risk'!I94/'Population at Risk'!I$5","v":0},{"$f":"'Population at Risk'!J94/'Population at Risk'!J$5","v":0},{"$f":"'Population at Risk'!K94/'Population at Risk'!K$5","v":0},{"$f":"'Population at Risk'!L94/'Population at Risk'!L$5","v":0},{"$f":"'Population at Risk'!M94/'Population at Risk'!M$5","v":0},{"$f":"'Population at Risk'!N94/'Population at Risk'!N$5","v":0},{"$f":"'Population at Risk'!O94/'Population at Risk'!O$5","v":0},{"$f":"'Population at Risk'!P94/'Population at Risk'!P$5","v":0},{"$f":"'Population at Risk'!Q94/'Population at Risk'!Q$5","v":0},{"$f":"'Population at Risk'!R94/'Population at Risk'!R$5","v":0},{"$f":"'Population at Risk'!S94/'Population at Risk'!S$5","v":0},{"$f":"'Population at Risk'!T94/'Population at Risk'!T$5","v":0},{"$f":"'Population at Risk'!U94/'Population at Risk'!U$5","v":0},{"$f":"'Population at Risk'!V94/'Population at Risk'!V$5","v":0},{"$f":"'Population at Risk'!W94/'Population at Risk'!W$5","v":0},{"$f":"'Population at Risk'!X94/'Population at Risk'!X$5","v":0},{"$f":"'Population at Risk'!Y94/'Population at Risk'!Y$5","v":0},{"$f":"'Population at Risk'!Z94/'Population at Risk'!Z$5","v":0},{"$f":"'Population at Risk'!AA94/'Population at Risk'!AA$5","v":0},{"$f":"'Population at Risk'!AB94/'Population at Risk'!AB$5","v":0},{"$f":"'Population at Risk'!AC94/'Population at Risk'!AC$5","v":0},{"$f":"'Population at Risk'!AD94/'Population at Risk'!AD$5","v":0},{"$f":"'Population at Risk'!AE94/'Population at Risk'!AE$5","v":0},{"$f":"'Population at Risk'!AF94/'Population at Risk'!AF$5","v":0},{"$f":"'Population at Risk'!AG94/'Population at Risk'!AG$5","v":0},{"$f":"'Population at Risk'!AH94/'Population at Risk'!AH$5","v":0},{"$f":"'Population at Risk'!AI94/'Population at Risk'!AI$5","v":0},{"$f":"'Population at Risk'!AJ94/'Population at Risk'!AJ$5","v":0},{"$f":"'Population at Risk'!AK94/'Population at Risk'!AK$5","v":0},{"$f":"'Population at Risk'!AL94/'Population at Risk'!AL$5","v":0},{"$f":"'Population at Risk'!AM94/'Population at Risk'!AM$5","v":0},{"$f":"'Population at Risk'!AN94/'Population at Risk'!AN$5","v":0},{"$f":"'Population at Risk'!AO94/'Population at Risk'!AO$5","v":0},{"$f":"'Population at Risk'!AP94/'Population at Risk'!AP$5","v":0},{"$f":"'Population at Risk'!AQ94/'Population at Risk'!AQ$5","v":0},{"$f":"'Population at Risk'!AR94/'Population at Risk'!AR$5","v":0},{"$f":"'Population at Risk'!AS94/'Population at Risk'!AS$5","v":0},{"$f":"'Population at Risk'!AT94/'Population at Risk'!AT$5","v":0},{"$f":"'Population at Risk'!AU94/'Population at Risk'!AU$5","v":0},{"$f":"'Population at Risk'!AV94/'Population at Risk'!AV$5","v":0},{"$f":"'Population at Risk'!AW94/'Population at Risk'!AW$5","v":0},{"$f":"'Population at Risk'!AX94/'Population at Risk'!AX$5","v":0},{"$f":"'Population at Risk'!AY94/'Population at Risk'!AY$5","v":0},{"$f":"'Population at Risk'!AZ94/'Population at Risk'!AZ$5","v":0},{"$f":"'Population at Risk'!BA94/'Population at Risk'!BA$5","v":0},{"$f":"'Population at Risk'!BB94/'Population at Risk'!BB$5","v":0},{"$f":"'Population at Risk'!BC94/'Population at Risk'!BC$5","v":0},92]
[null,"Male 80-84",{"$f":"'Population at Risk'!C95/'Population at Risk'!C$5","v":0},{"$f":"'Population at Risk'!D95/'Population at Risk'!D$5","v":0},{"$f":"'Population at Risk'!E95/'Population at Risk'!E$5","v":0},{"$f":"'Population at Risk'!F95/'Population at Risk'!F$5","v":0},{"$f":"'Population at Risk'!G95/'Population at Risk'!G$5","v":0},{"$f":"'Population at Risk'!H95/'Population at Risk'!H$5","v":0},{"$f":"'Population at Risk'!I95/'Population at Risk'!I$5","v":0},{"$f":"'Population at Risk'!J95/'Population at Risk'!J$5","v":0},{"$f":"'Population at Risk'!K95/'Population at Risk'!K$5","v":0},{"$f":"'Population at Risk'!L95/'Population at Risk'!L$5","v":0},{"$f":"'Population at Risk'!M95/'Population at Risk'!M$5","v":0},{"$f":"'Population at Risk'!N95/'Population at Risk'!N$5","v":0},{"$f":"'Population at Risk'!O95/'Population at Risk'!O$5","v":0},{"$f":"'Population at Risk'!P95/'Population at Risk'!P$5","v":0},{"$f":"'Population at Risk'!Q95/'Population at Risk'!Q$5","v":0},{"$f":"'Population at Risk'!R95/'Population at Risk'!R$5","v":0},{"$f":"'Population at Risk'!S95/'Population at Risk'!S$5","v":0},{"$f":"'Population at Risk'!T95/'Population at Risk'!T$5","v":0},{"$f":"'Population at Risk'!U95/'Population at Risk'!U$5","v":0},{"$f":"'Population at Risk'!V95/'Population at Risk'!V$5","v":0},{"$f":"'Population at Risk'!W95/'Population at Risk'!W$5","v":0},{"$f":"'Population at Risk'!X95/'Population at Risk'!X$5","v":0},{"$f":"'Population at Risk'!Y95/'Population at Risk'!Y$5","v":0},{"$f":"'Population at Risk'!Z95/'Population at Risk'!Z$5","v":0},{"$f":"'Population at Risk'!AA95/'Population at Risk'!AA$5","v":0},{"$f":"'Population at Risk'!AB95/'Population at Risk'!AB$5","v":0},{"$f":"'Population at Risk'!AC95/'Population at Risk'!AC$5","v":0},{"$f":"'Population at Risk'!AD95/'Population at Risk'!AD$5","v":0},{"$f":"'Population at Risk'!AE95/'Population at Risk'!AE$5","v":0},{"$f":"'Population at Risk'!AF95/'Population at Risk'!AF$5","v":0},{"$f":"'Population at Risk'!AG95/'Population at Risk'!AG$5","v":0},{"$f":"'Population at Risk'!AH95/'Population at Risk'!AH$5","v":0},{"$f":"'Population at Risk'!AI95/'Population at Risk'!AI$5","v":0},{"$f":"'Population at Risk'!AJ95/'Population at Risk'!AJ$5","v":0},{"$f":"'Population at Risk'!AK95/'Population at Risk'!AK$5","v":0},{"$f":"'Population at Risk'!AL95/'Population at Risk'!AL$5","v":0},{"$f":"'Population at Risk'!AM95/'Population at Risk'!AM$5","v":0},{"$f":"'Population at Risk'!AN95/'Population at Risk'!AN$5","v":0},{"$f":"'Population at Risk'!AO95/'Population at Risk'!AO$5","v":0},{"$f":"'Population at Risk'!AP95/'Population at Risk'!AP$5","v":0},{"$f":"'Population at Risk'!AQ95/'Population at Risk'!AQ$5","v":0},{"$f":"'Population at Risk'!AR95/'Population at Risk'!AR$5","v":0},{"$f":"'Population at Risk'!AS95/'Population at Risk'!AS$5","v":0},{"$f":"'Population at Risk'!AT95/'Population at Risk'!AT$5","v":0},{"$f":"'Population at Risk'!AU95/'Population at Risk'!AU$5","v":0},{"$f":"'Population at Risk'!AV95/'Population at Risk'!AV$5","v":0},{"$f":"'Population at Risk'!AW95/'Population at Risk'!AW$5","v":0},{"$f":"'Population at Risk'!AX95/'Population at Risk'!AX$5","v":0},{"$f":"'Population at Risk'!AY95/'Population at Risk'!AY$5","v":0},{"$f":"'Population at Risk'!AZ95/'Population at Risk'!AZ$5","v":0},{"$f":"'Population at Risk'!BA95/'Population at Risk'!BA$5","v":0},{"$f":"'Population at Risk'!BB95/'Population at Risk'!BB$5","v":0},{"$f":"'Population at Risk'!BC95/'Population at Risk'!BC$5","v":0},93]
[null,"Male 85-89",{"$f":"'Population at Risk'!C96/'Population at Risk'!C$5","v":0},{"$f":"'Population at Risk'!D96/'Population at Risk'!D$5","v":0},{"$f":"'Population at Risk'!E96/'Population at Risk'!E$5","v":0},{"$f":"'Population at Risk'!F96/'Population at Risk'!F$5","v":0},{"$f":"'Population at Risk'!G96/'Population at Risk'!G$5","v":0},{"$f":"'Population at Risk'!H96/'Population at Risk'!H$5","v":0},{"$f":"'Population at Risk'!I96/'Population at Risk'!I$5","v":0},{"$f":"'Population at Risk'!J96/'Population at Risk'!J$5","v":0},{"$f":"'Population at Risk'!K96/'Population at Risk'!K$5","v":0},{"$f":"'Population at Risk'!L96/'Population at Risk'!L$5","v":0},{"$f":"'Population at Risk'!M96/'Population at Risk'!M$5","v":0},{"$f":"'Population at Risk'!N96/'Population at Risk'!N$5","v":0},{"$f":"'Population at Risk'!O96/'Population at Risk'!O$5","v":0},{"$f":"'Population at Risk'!P96/'Population at Risk'!P$5","v":0},{"$f":"'Population at Risk'!Q96/'Population at Risk'!Q$5","v":0},{"$f":"'Population at Risk'!R96/'Population at Risk'!R$5","v":0},{"$f":"'Population at Risk'!S96/'Population at Risk'!S$5","v":0},{"$f":"'Population at Risk'!T96/'Population at Risk'!T$5","v":0},{"$f":"'Population at Risk'!U96/'Population at Risk'!U$5","v":0},{"$f":"'Population at Risk'!V96/'Population at Risk'!V$5","v":0},{"$f":"'Population at Risk'!W96/'Population at Risk'!W$5","v":0},{"$f":"'Population at Risk'!X96/'Population at Risk'!X$5","v":0},{"$f":"'Population at Risk'!Y96/'Population at Risk'!Y$5","v":0},{"$f":"'Population at Risk'!Z96/'Population at Risk'!Z$5","v":0},{"$f":"'Population at Risk'!AA96/'Population at Risk'!AA$5","v":0},{"$f":"'Population at Risk'!AB96/'Population at Risk'!AB$5","v":0},{"$f":"'Population at Risk'!AC96/'Population at Risk'!AC$5","v":0},{"$f":"'Population at Risk'!AD96/'Population at Risk'!AD$5","v":0},{"$f":"'Population at Risk'!AE96/'Population at Risk'!AE$5","v":0},{"$f":"'Population at Risk'!AF96/'Population at Risk'!AF$5","v":0},{"$f":"'Population at Risk'!AG96/'Population at Risk'!AG$5","v":0},{"$f":"'Population at Risk'!AH96/'Population at Risk'!AH$5","v":0},{"$f":"'Population at Risk'!AI96/'Population at Risk'!AI$5","v":0},{"$f":"'Population at Risk'!AJ96/'Population at Risk'!AJ$5","v":0},{"$f":"'Population at Risk'!AK96/'Population at Risk'!AK$5","v":0},{"$f":"'Population at Risk'!AL96/'Population at Risk'!AL$5","v":0},{"$f":"'Population at Risk'!AM96/'Population at Risk'!AM$5","v":0},{"$f":"'Population at Risk'!AN96/'Population at Risk'!AN$5","v":0},{"$f":"'Population at Risk'!AO96/'Population at Risk'!AO$5","v":0},{"$f":"'Population at Risk'!AP96/'Population at Risk'!AP$5","v":0},{"$f":"'Population at Risk'!AQ96/'Population at Risk'!AQ$5","v":0},{"$f":"'Population at Risk'!AR96/'Population at Risk'!AR$5","v":0},{"$f":"'Population at Risk'!AS96/'Population at Risk'!AS$5","v":0},{"$f":"'Population at Risk'!AT96/'Population at Risk'!AT$5","v":0},{"$f":"'Population at Risk'!AU96/'Population at Risk'!AU$5","v":0},{"$f":"'Population at Risk'!AV96/'Population at Risk'!AV$5","v":0},{"$f":"'Population at Risk'!AW96/'Population at Risk'!AW$5","v":0},{"$f":"'Population at Risk'!AX96/'Population at Risk'!AX$5","v":0},{"$f":"'Population at Risk'!AY96/'Population at Risk'!AY$5","v":0},{"$f":"'Population at Risk'!AZ96/'Population at Risk'!AZ$5","v":0},{"$f":"'Population at Risk'!BA96/'Population at Risk'!BA$5","v":0},{"$f":"'Population at Risk'!BB96/'Population at Risk'!BB$5","v":0},{"$f":"'Population at Risk'!BC96/'Population at Risk'!BC$5","v":0},94]
[null,"Male 90+",{"$f":"'Population at Risk'!C97/'Population at Risk'!C$5","v":0},{"$f":"'Population at Risk'!D97/'Population at Risk'!D$5","v":0},{"$f":"'Population at Risk'!E97/'Population at Risk'!E$5","v":0},{"$f":"'Population at Risk'!F97/'Population at Risk'!F$5","v":0},{"$f":"'Population at Risk'!G97/'Population at Risk'!G$5","v":0},{"$f":"'Population at Risk'!H97/'Population at Risk'!H$5","v":0},{"$f":"'Population at Risk'!I97/'Population at Risk'!I$5","v":0},{"$f":"'Population at Risk'!J97/'Population at Risk'!J$5","v":0},{"$f":"'Population at Risk'!K97/'Population at Risk'!K$5","v":0},{"$f":"'Population at Risk'!L97/'Population at Risk'!L$5","v":0},{"$f":"'Population at Risk'!M97/'Population at Risk'!M$5","v":0},{"$f":"'Population at Risk'!N97/'Population at Risk'!N$5","v":0},{"$f":"'Population at Risk'!O97/'Population at Risk'!O$5","v":0},{"$f":"'Population at Risk'!P97/'Population at Risk'!P$5","v":0},{"$f":"'Population at Risk'!Q97/'Population at Risk'!Q$5","v":0},{"$f":"'Population at Risk'!R97/'Population at Risk'!R$5","v":0},{"$f":"'Population at Risk'!S97/'Population at Risk'!S$5","v":0},{"$f":"'Population at Risk'!T97/'Population at Risk'!T$5","v":0},{"$f":"'Population at Risk'!U97/'Population at Risk'!U$5","v":0},{"$f":"'Population at Risk'!V97/'Population at Risk'!V$5","v":0},{"$f":"'Population at Risk'!W97/'Population at Risk'!W$5","v":0},{"$f":"'Population at Risk'!X97/'Population at Risk'!X$5","v":0},{"$f":"'Population at Risk'!Y97/'Population at Risk'!Y$5","v":0},{"$f":"'Population at Risk'!Z97/'Population at Risk'!Z$5","v":0},{"$f":"'Population at Risk'!AA97/'Population at Risk'!AA$5","v":0},{"$f":"'Population at Risk'!AB97/'Population at Risk'!AB$5","v":0},{"$f":"'Population at Risk'!AC97/'Population at Risk'!AC$5","v":0},{"$f":"'Population at Risk'!AD97/'Population at Risk'!AD$5","v":0},{"$f":"'Population at Risk'!AE97/'Population at Risk'!AE$5","v":0},{"$f":"'Population at Risk'!AF97/'Population at Risk'!AF$5","v":0},{"$f":"'Population at Risk'!AG97/'Population at Risk'!AG$5","v":0},{"$f":"'Population at Risk'!AH97/'Population at Risk'!AH$5","v":0},{"$f":"'Population at Risk'!AI97/'Population at Risk'!AI$5","v":0},{"$f":"'Population at Risk'!AJ97/'Population at Risk'!AJ$5","v":0},{"$f":"'Population at Risk'!AK97/'Population at Risk'!AK$5","v":0},{"$f":"'Population at Risk'!AL97/'Population at Risk'!AL$5","v":0},{"$f":"'Population at Risk'!AM97/'Population at Risk'!AM$5","v":0},{"$f":"'Population at Risk'!AN97/'Population at Risk'!AN$5","v":0},{"$f":"'Population at Risk'!AO97/'Population at Risk'!AO$5","v":0},{"$f":"'Population at Risk'!AP97/'Population at Risk'!AP$5","v":0},{"$f":"'Population at Risk'!AQ97/'Population at Risk'!AQ$5","v":0},{"$f":"'Population at Risk'!AR97/'Population at Risk'!AR$5","v":0},{"$f":"'Population at Risk'!AS97/'Population at Risk'!AS$5","v":0},{"$f":"'Population at Risk'!AT97/'Population at Risk'!AT$5","v":0},{"$f":"'Population at Risk'!AU97/'Population at Risk'!AU$5","v":0},{"$f":"'Population at Risk'!AV97/'Population at Risk'!AV$5","v":0},{"$f":"'Population at Risk'!AW97/'Population at Risk'!AW$5","v":0},{"$f":"'Population at Risk'!AX97/'Population at Risk'!AX$5","v":0},{"$f":"'Population at Risk'!AY97/'Population at Risk'!AY$5","v":0},{"$f":"'Population at Risk'!AZ97/'Population at Risk'!AZ$5","v":0},{"$f":"'Population at Risk'!BA97/'Population at Risk'!BA$5","v":0},{"$f":"'Population at Risk'!BB97/'Population at Risk'!BB$5","v":0},{"$f":"'Population at Risk'!BC97/'Population at Risk'!BC$5","v":0},95]
["SIMD Q2","Female 0-4",{"$f":"'Population at Risk'!C98/'Population at Risk'!C$5","v":0},{"$f":"'Population at Risk'!D98/'Population at Risk'!D$5","v":0},{"$f":"'Population at Risk'!E98/'Population at Risk'!E$5","v":0},{"$f":"'Population at Risk'!F98/'Population at Risk'!F$5","v":0},{"$f":"'Population at Risk'!G98/'Population at Risk'!G$5","v":0},{"$f":"'Population at Risk'!H98/'Population at Risk'!H$5","v":0},{"$f":"'Population at Risk'!I98/'Population at Risk'!I$5","v":0},{"$f":"'Population at Risk'!J98/'Population at Risk'!J$5","v":0},{"$f":"'Population at Risk'!K98/'Population at Risk'!K$5","v":0},{"$f":"'Population at Risk'!L98/'Population at Risk'!L$5","v":0},{"$f":"'Population at Risk'!M98/'Population at Risk'!M$5","v":0},{"$f":"'Population at Risk'!N98/'Population at Risk'!N$5","v":0},{"$f":"'Population at Risk'!O98/'Population at Risk'!O$5","v":0},{"$f":"'Population at Risk'!P98/'Population at Risk'!P$5","v":0},{"$f":"'Population at Risk'!Q98/'Population at Risk'!Q$5","v":0},{"$f":"'Population at Risk'!R98/'Population at Risk'!R$5","v":0},{"$f":"'Population at Risk'!S98/'Population at Risk'!S$5","v":0},{"$f":"'Population at Risk'!T98/'Population at Risk'!T$5","v":0},{"$f":"'Population at Risk'!U98/'Population at Risk'!U$5","v":0},{"$f":"'Population at Risk'!V98/'Population at Risk'!V$5","v":0},{"$f":"'Population at Risk'!W98/'Population at Risk'!W$5","v":0},{"$f":"'Population at Risk'!X98/'Population at Risk'!X$5","v":0},{"$f":"'Population at Risk'!Y98/'Population at Risk'!Y$5","v":0},{"$f":"'Population at Risk'!Z98/'Population at Risk'!Z$5","v":0},{"$f":"'Population at Risk'!AA98/'Population at Risk'!AA$5","v":0},{"$f":"'Population at Risk'!AB98/'Population at Risk'!AB$5","v":0},{"$f":"'Population at Risk'!AC98/'Population at Risk'!AC$5","v":0},{"$f":"'Population at Risk'!AD98/'Population at Risk'!AD$5","v":0},{"$f":"'Population at Risk'!AE98/'Population at Risk'!AE$5","v":0},{"$f":"'Population at Risk'!AF98/'Population at Risk'!AF$5","v":0},{"$f":"'Population at Risk'!AG98/'Population at Risk'!AG$5","v":0},{"$f":"'Population at Risk'!AH98/'Population at Risk'!AH$5","v":0},{"$f":"'Population at Risk'!AI98/'Population at Risk'!AI$5","v":0},{"$f":"'Population at Risk'!AJ98/'Population at Risk'!AJ$5","v":0},{"$f":"'Population at Risk'!AK98/'Population at Risk'!AK$5","v":0},{"$f":"'Population at Risk'!AL98/'Population at Risk'!AL$5","v":0},{"$f":"'Population at Risk'!AM98/'Population at Risk'!AM$5","v":0},{"$f":"'Population at Risk'!AN98/'Population at Risk'!AN$5","v":0},{"$f":"'Population at Risk'!AO98/'Population at Risk'!AO$5","v":0},{"$f":"'Population at Risk'!AP98/'Population at Risk'!AP$5","v":0},{"$f":"'Population at Risk'!AQ98/'Population at Risk'!AQ$5","v":0},{"$f":"'Population at Risk'!AR98/'Population at Risk'!AR$5","v":0},{"$f":"'Population at Risk'!AS98/'Population at Risk'!AS$5","v":0},{"$f":"'Population at Risk'!AT98/'Population at Risk'!AT$5","v":0},{"$f":"'Population at Risk'!AU98/'Population at Risk'!AU$5","v":0},{"$f":"'Population at Risk'!AV98/'Population at Risk'!AV$5","v":0},{"$f":"'Population at Risk'!AW98/'Population at Risk'!AW$5","v":0},{"$f":"'Population at Risk'!AX98/'Population at Risk'!AX$5","v":0},{"$f":"'Population at Risk'!AY98/'Population at Risk'!AY$5","v":0},{"$f":"'Population at Risk'!AZ98/'Population at Risk'!AZ$5","v":0},{"$f":"'Population at Risk'!BA98/'Population at Risk'!BA$5","v":0},{"$f":"'Population at Risk'!BB98/'Population at Risk'!BB$5","v":0},{"$f":"'Population at Risk'!BC98/'Population at Risk'!BC$5","v":0},96]
[null,"Female 5-9",{"$f":"'Population at Risk'!C99/'Population at Risk'!C$5","v":0},{"$f":"'Population at Risk'!D99/'Population at Risk'!D$5","v":0},{"$f":"'Population at Risk'!E99/'Population at Risk'!E$5","v":0},{"$f":"'Population at Risk'!F99/'Population at Risk'!F$5","v":0},{"$f":"'Population at Risk'!G99/'Population at Risk'!G$5","v":0},{"$f":"'Population at Risk'!H99/'Population at Risk'!H$5","v":0},{"$f":"'Population at Risk'!I99/'Population at Risk'!I$5","v":0},{"$f":"'Population at Risk'!J99/'Population at Risk'!J$5","v":0},{"$f":"'Population at Risk'!K99/'Population at Risk'!K$5","v":0},{"$f":"'Population at Risk'!L99/'Population at Risk'!L$5","v":0},{"$f":"'Population at Risk'!M99/'Population at Risk'!M$5","v":0},{"$f":"'Population at Risk'!N99/'Population at Risk'!N$5","v":0},{"$f":"'Population at Risk'!O99/'Population at Risk'!O$5","v":0},{"$f":"'Population at Risk'!P99/'Population at Risk'!P$5","v":0},{"$f":"'Population at Risk'!Q99/'Population at Risk'!Q$5","v":0},{"$f":"'Population at Risk'!R99/'Population at Risk'!R$5","v":0},{"$f":"'Population at Risk'!S99/'Population at Risk'!S$5","v":0},{"$f":"'Population at Risk'!T99/'Population at Risk'!T$5","v":0},{"$f":"'Population at Risk'!U99/'Population at Risk'!U$5","v":0},{"$f":"'Population at Risk'!V99/'Population at Risk'!V$5","v":0},{"$f":"'Population at Risk'!W99/'Population at Risk'!W$5","v":0},{"$f":"'Population at Risk'!X99/'Population at Risk'!X$5","v":0},{"$f":"'Population at Risk'!Y99/'Population at Risk'!Y$5","v":0},{"$f":"'Population at Risk'!Z99/'Population at Risk'!Z$5","v":0},{"$f":"'Population at Risk'!AA99/'Population at Risk'!AA$5","v":0},{"$f":"'Population at Risk'!AB99/'Population at Risk'!AB$5","v":0},{"$f":"'Population at Risk'!AC99/'Population at Risk'!AC$5","v":0},{"$f":"'Population at Risk'!AD99/'Population at Risk'!AD$5","v":0},{"$f":"'Population at Risk'!AE99/'Population at Risk'!AE$5","v":0},{"$f":"'Population at Risk'!AF99/'Population at Risk'!AF$5","v":0},{"$f":"'Population at Risk'!AG99/'Population at Risk'!AG$5","v":0},{"$f":"'Population at Risk'!AH99/'Population at Risk'!AH$5","v":0},{"$f":"'Population at Risk'!AI99/'Population at Risk'!AI$5","v":0},{"$f":"'Population at Risk'!AJ99/'Population at Risk'!AJ$5","v":0},{"$f":"'Population at Risk'!AK99/'Population at Risk'!AK$5","v":0},{"$f":"'Population at Risk'!AL99/'Population at Risk'!AL$5","v":0},{"$f":"'Population at Risk'!AM99/'Population at Risk'!AM$5","v":0},{"$f":"'Population at Risk'!AN99/'Population at Risk'!AN$5","v":0},{"$f":"'Population at Risk'!AO99/'Population at Risk'!AO$5","v":0},{"$f":"'Population at Risk'!AP99/'Population at Risk'!AP$5","v":0},{"$f":"'Population at Risk'!AQ99/'Population at Risk'!AQ$5","v":0},{"$f":"'Population at Risk'!AR99/'Population at Risk'!AR$5","v":0},{"$f":"'Population at Risk'!AS99/'Population at Risk'!AS$5","v":0},{"$f":"'Population at Risk'!AT99/'Population at Risk'!AT$5","v":0},{"$f":"'Population at Risk'!AU99/'Population at Risk'!AU$5","v":0},{"$f":"'Population at Risk'!AV99/'Population at Risk'!AV$5","v":0},{"$f":"'Population at Risk'!AW99/'Population at Risk'!AW$5","v":0},{"$f":"'Population at Risk'!AX99/'Population at Risk'!AX$5","v":0},{"$f":"'Population at Risk'!AY99/'Population at Risk'!AY$5","v":0},{"$f":"'Population at Risk'!AZ99/'Population at Risk'!AZ$5","v":0},{"$f":"'Population at Risk'!BA99/'Population at Risk'!BA$5","v":0},{"$f":"'Population at Risk'!BB99/'Population at Risk'!BB$5","v":0},{"$f":"'Population at Risk'!BC99/'Population at Risk'!BC$5","v":0},97]
[null,"Female 10-15",{"$f":"'Population at Risk'!C100/'Population at Risk'!C$5","v":0},{"$f":"'Population at Risk'!D100/'Population at Risk'!D$5","v":0},{"$f":"'Population at Risk'!E100/'Population at Risk'!E$5","v":0},{"$f":"'Population at Risk'!F100/'Population at Risk'!F$5","v":0},{"$f":"'Population at Risk'!G100/'Population at Risk'!G$5","v":0},{"$f":"'Population at Risk'!H100/'Population at Risk'!H$5","v":0},{"$f":"'Population at Risk'!I100/'Population at Risk'!I$5","v":0},{"$f":"'Population at Risk'!J100/'Population at Risk'!J$5","v":0},{"$f":"'Population at Risk'!K100/'Population at Risk'!K$5","v":0},{"$f":"'Population at Risk'!L100/'Population at Risk'!L$5","v":0},{"$f":"'Population at Risk'!M100/'Population at Risk'!M$5","v":0},{"$f":"'Population at Risk'!N100/'Population at Risk'!N$5","v":0},{"$f":"'Population at Risk'!O100/'Population at Risk'!O$5","v":0},{"$f":"'Population at Risk'!P100/'Population at Risk'!P$5","v":0},{"$f":"'Population at Risk'!Q100/'Population at Risk'!Q$5","v":0},{"$f":"'Population at Risk'!R100/'Population at Risk'!R$5","v":0},{"$f":"'Population at Risk'!S100/'Population at Risk'!S$5","v":0},{"$f":"'Population at Risk'!T100/'Population at Risk'!T$5","v":0},{"$f":"'Population at Risk'!U100/'Population at Risk'!U$5","v":0},{"$f":"'Population at Risk'!V100/'Population at Risk'!V$5","v":0},{"$f":"'Population at Risk'!W100/'Population at Risk'!W$5","v":0},{"$f":"'Population at Risk'!X100/'Population at Risk'!X$5","v":0},{"$f":"'Population at Risk'!Y100/'Population at Risk'!Y$5","v":0},{"$f":"'Population at Risk'!Z100/'Population at Risk'!Z$5","v":0},{"$f":"'Population at Risk'!AA100/'Population at Risk'!AA$5","v":0},{"$f":"'Population at Risk'!AB100/'Population at Risk'!AB$5","v":0},{"$f":"'Population at Risk'!AC100/'Population at Risk'!AC$5","v":0},{"$f":"'Population at Risk'!AD100/'Population at Risk'!AD$5","v":0},{"$f":"'Population at Risk'!AE100/'Population at Risk'!AE$5","v":0},{"$f":"'Population at Risk'!AF100/'Population at Risk'!AF$5","v":0},{"$f":"'Population at Risk'!AG100/'Population at Risk'!AG$5","v":0},{"$f":"'Population at Risk'!AH100/'Population at Risk'!AH$5","v":0},{"$f":"'Population at Risk'!AI100/'Population at Risk'!AI$5","v":0},{"$f":"'Population at Risk'!AJ100/'Population at Risk'!AJ$5","v":0},{"$f":"'Population at Risk'!AK100/'Population at Risk'!AK$5","v":0},{"$f":"'Population at Risk'!AL100/'Population at Risk'!AL$5","v":0},{"$f":"'Population at Risk'!AM100/'Population at Risk'!AM$5","v":0},{"$f":"'Population at Risk'!AN100/'Population at Risk'!AN$5","v":0},{"$f":"'Population at Risk'!AO100/'Population at Risk'!AO$5","v":0},{"$f":"'Population at Risk'!AP100/'Population at Risk'!AP$5","v":0},{"$f":"'Population at Risk'!AQ100/'Population at Risk'!AQ$5","v":0},{"$f":"'Population at Risk'!AR100/'Population at Risk'!AR$5","v":0},{"$f":"'Population at Risk'!AS100/'Population at Risk'!AS$5","v":0},{"$f":"'Population at Risk'!AT100/'Population at Risk'!AT$5","v":0},{"$f":"'Population at Risk'!AU100/'Population at Risk'!AU$5","v":0},{"$f":"'Population at Risk'!AV100/'Population at Risk'!AV$5","v":0},{"$f":"'Population at Risk'!AW100/'Population at Risk'!AW$5","v":0},{"$f":"'Population at Risk'!AX100/'Population at Risk'!AX$5","v":0},{"$f":"'Population at Risk'!AY100/'Population at Risk'!AY$5","v":0},{"$f":"'Population at Risk'!AZ100/'Population at Risk'!AZ$5","v":0},{"$f":"'Population at Risk'!BA100/'Population at Risk'!BA$5","v":0},{"$f":"'Population at Risk'!BB100/'Population at Risk'!BB$5","v":0},{"$f":"'Population at Risk'!BC100/'Population at Risk'!BC$5","v":0},98]
[null,"Female 16-19",{"$f":"'Population at Risk'!C101/'Population at Risk'!C$5","v":4.3969283257059592E-3},{"$f":"'Population at Risk'!D101/'Population at Risk'!D$5","v":3.3810445382272594E-3},{"$f":"'Population at Risk'!E101/'Population at Risk'!E$5","v":2.1206065189193733E-3},{"$f":"'Population at Risk'!F101/'Population at Risk'!F$5","v":4.4170228561943555E-3},{"$f":"'Population at Risk'!G101/'Population at Risk'!G$5","v":3.8262793003395585E-3},{"$f":"'Population at Risk'!H101/'Population at Risk'!H$5","v":4.6699555262197283E-3},{"$f":"'Population at Risk'!I101/'Population at Risk'!I$5","v":4.1336710603306313E-3},{"$f":"'Population at Risk'!J101/'Population at Risk'!J$5","v":4.7695874666895061E-3},{"$f":"'Population at Risk'!K101/'Population at Risk'!K$5","v":6.2606507885071723E-3},{"$f":"'Population at Risk'!L101/'Population at Risk'!L$5","v":7.6304708432080436E-3},{"$f":"'Population at Risk'!M101/'Population at Risk'!M$5","v":7.6304708432080436E-3},{"$f":"'Population at Risk'!N101/'Population at Risk'!N$5","v":3.0777247871637582E-3},{"$f":"'Population at Risk'!O101/'Population at Risk'!O$5","v":5.0210567939721375E-3},{"$f":"'Population at Risk'!P101/'Population at Risk'!P$5","v":4.3679730966587711E-3},{"$f":"'Population at Risk'!Q101/'Population at Risk'!Q$5","v":6.5053741652876477E-3},{"$f":"'Population at Risk'!R101/'Population at Risk'!R$5","v":3.0308740215497453E-3},{"$f":"'Population at Risk'!S101/'Population at Risk'!S$5","v":4.9265823250303461E-3},{"$f":"'Population at Risk'!T101/'Population at Risk'!T$5","v":3.5895214710583924E-3},{"$f":"'Population at Risk'!U101/'Population at Risk'!U$5","v":5.3661170441836447E-3},{"$f":"'Population at Risk'!V101/'Population at Risk'!V$5","v":6.827923732523368E-3},{"$f":"'Population at Risk'!W101/'Population at Risk'!W$5","v":4.5752419699502502E-3},{"$f":"'Population at Risk'!X101/'Population at Risk'!X$5","v":4.5752419699502502E-3},{"$f":"'Population at Risk'!Y101/'Population at Risk'!Y$5","v":5.8164865133600177E-3},{"$f":"'Population at Risk'!Z101/'Population at Risk'!Z$5","v":3.4301848376653513E-3},{"$f":"'Population at Risk'!AA101/'Population at Risk'!AA$5","v":4.3342635157685959E-3},{"$f":"'Population at Risk'!AB101/'Population at Risk'!AB$5","v":3.472337935889149E-3},{"$f":"'Population at Risk'!AC101/'Population at Risk'!AC$5","v":3.5953696481883157E-3},{"$f":"'Population at Risk'!AD101/'Population at Risk'!AD$5","v":4.1684246076903846E-3},{"$f":"'Population at Risk'!AE101/'Population at Risk'!AE$5","v":4.290802856826626E-3},{"$f":"'Population at Risk'!AF101/'Population at Risk'!AF$5","v":2.2391902726086365E-3},{"$f":"'Population at Risk'!AG101/'Population at Risk'!AG$5","v":4.290802856826626E-3},{"$f":"'Population at Risk'!AH101/'Population at Risk'!AH$5","v":5.6878014321845236E-3},{"$f":"'Population at Risk'!AI101/'Population at Risk'!AI$5","v":5.1659266532561405E-3},{"$f":"'Population at Risk'!AJ101/'Population at Risk'!AJ$5","v":9.8568483285581647E-3},{"$f":"'Population at Risk'!AK101/'Population at Risk'!AK$5","v":3.9866630527808262E-3},{"$f":"'Population at Risk'!AL101/'Population at Risk'!AL$5","v":3.7604636782129042E-3},{"$f":"'Population at Risk'!AM101/'Population at Risk'!AM$5","v":5.8510170137003699E-3},{"$f":"'Population at Risk'!AN101/'Population at Risk'!AN$5","v":2.9018512581200596E-3},{"$f":"'Population at Risk'!AO101/'Population at Risk'!AO$5","v":2.9018512581200596E-3},{"$f":"'Population at Risk'!AP101/'Population at Risk'!AP$5","v":2.5273347331139905E-3},{"$f":"'Population at Risk'!AQ101/'Population at Risk'!AQ$5","v":3.6719214302676339E-3},{"$f":"'Population at Risk'!AR101/'Population at Risk'!AR$5","v":4.5203908463333402E-3},{"$f":"'Population at Risk'!AS101/'Population at Risk'!AS$5","v":4.1336710603306313E-3},{"$f":"'Population at Risk'!AT101/'Population at Risk'!AT$5","v":7.8201337133426382E-4},{"$f":"'Population at Risk'!AU101/'Population at Risk'!AU$5","v":7.8201337133426382E-4},{"$f":"'Population at Risk'!AV101/'Population at Risk'!AV$5","v":5.4814320296536854E-3},{"$f":"'Population at Risk'!AW101/'Population at Risk'!AW$5","v":5.4846528818431909E-3},{"$f":"'Population at Risk'!AX101/'Population at Risk'!AX$5","v":3.8466791925543769E-3},{"$f":"'Population at Risk'!AY101/'Population at Risk'!AY$5","v":3.8607961725732752E-3},{"$f":"'Population at Risk'!AZ101/'Population at Risk'!AZ$5","v":3.2410567626642828E-3},{"$f":"'Population at Risk'!BA101/'Population at Risk'!BA$5","v":5.2481929811485127E-3},{"$f":"'Population at Risk'!BB101/'Population at Risk'!BB$5","v":6.5786306852094363E-3},{"$f":"'Population at Risk'!BC101/'Population at Risk'!BC$5","v":5.3661170441836447E-3},99]
[null,"Female 20-24",{"$f":"'Population at Risk'!C102/'Population at Risk'!C$5","v":1.0054706796948037E-2},{"$f":"'Population at Risk'!D102/'Population at Risk'!D$5","v":7.0241074311308488E-3},{"$f":"'Population at Risk'!E102/'Population at Risk'!E$5","v":3.2944148270418459E-3},{"$f":"'Population at Risk'!F102/'Population at Risk'!F$5","v":8.594362301587468E-3},{"$f":"'Population at Risk'!G102/'Population at Risk'!G$5","v":4.9700780947471131E-3},{"$f":"'Population at Risk'!H102/'Population at Risk'!H$5","v":6.3260577837583971E-3},{"$f":"'Population at Risk'!I102/'Population at Risk'!I$5","v":6.314696398792374E-3},{"$f":"'Population at Risk'!J102/'Population at Risk'!J$5","v":7.6195267269714715E-3},{"$f":"'Population at Risk'!K102/'Population at Risk'!K$5","v":7.1550294725796259E-3},{"$f":"'Population at Risk'!L102/'Population at Risk'!L$5","v":9.538088554010055E-3},{"$f":"'Population at Risk'!M102/'Population at Risk'!M$5","v":9.538088554010055E-3},{"$f":"'Population at Risk'!N102/'Population at Risk'!N$5","v":7.4685507185515742E-3},{"$f":"'Population at Risk'!O102/'Population at Risk'!O$5","v":6.5055431504508557E-3},{"$f":"'Population at Risk'!P102/'Population at Risk'!P$5","v":6.2538667734891602E-3},{"$f":"'Population at Risk'!Q102/'Population at Risk'!Q$5","v":1.0948356158609103E-2},{"$f":"'Population at Risk'!R102/'Population at Risk'!R$5","v":3.8485051529445601E-3},{"$f":"'Population at Risk'!S102/'Population at Risk'!S$5","v":8.3984356225783683E-3},{"$f":"'Population at Risk'!T102/'Population at Risk'!T$5","v":9.1727248550583073E-3},{"$f":"'Population at Risk'!U102/'Population at Risk'!U$5","v":6.5484818166308889E-3},{"$f":"'Population at Risk'!V102/'Population at Risk'!V$5","v":9.5767326409881039E-3},{"$f":"'Population at Risk'!W102/'Population at Risk'!W$5","v":6.1884775778517824E-3},{"$f":"'Population at Risk'!X102/'Population at Risk'!X$5","v":6.1884775778517824E-3},{"$f":"'Population at Risk'!Y102/'Population at Risk'!Y$5","v":8.6231720690131061E-3},{"$f":"'Population at Risk'!Z102/'Population at Risk'!Z$5","v":6.5260659468785193E-3},{"$f":"'Population at Risk'!AA102/'Population at Risk'!AA$5","v":6.5306323174870728E-3},{"$f":"'Population at Risk'!AB102/'Population at Risk'!AB$5","v":7.1853329564438824E-3},{"$f":"'Population at Risk'!AC102/'Population at Risk'!AC$5","v":5.8517849760949536E-3},{"$f":"'Population at Risk'!AD102/'Population at Risk'!AD$5","v":5.363732148667838E-3},{"$f":"'Population at Risk'!AE102/'Population at Risk'!AE$5","v":5.5058577932947722E-3},{"$f":"'Population at Risk'!AF102/'Population at Risk'!AF$5","v":2.8014112068566925E-3},{"$f":"'Population at Risk'!AG102/'Population at Risk'!AG$5","v":5.5058577932947722E-3},{"$f":"'Population at Risk'!AH102/'Population at Risk'!AH$5","v":7.7727470491969477E-3},{"$f":"'Population at Risk'!AI102/'Population at Risk'!AI$5","v":9.5984831481757179E-3},{"$f":"'Population at Risk'!AJ102/'Population at Risk'!AJ$5","v":1.2359969022520961E-2},{"$f":"'Population at Risk'!AK102/'Population at Risk'!AK$5","v":8.0897250268107262E-3},{"$f":"'Population at Risk'!AL102/'Population at Risk'!AL$5","v":5.1077955843105757E-3},{"$f":"'Population at Risk'!AM102/'Population at Risk'!AM$5","v":7.4629775297699154E-3},{"$f":"'Population at Risk'!AN102/'Population at Risk'!AN$5","v":5.2114879737666375E-3},{"$f":"'Population at Risk'!AO102/'Population at Risk'!AO$5","v":5.2114879737666375E-3},{"$f":"'Population at Risk'!AP102/'Population at Risk'!AP$5","v":4.0213944924686702E-3},{"$f":"'Population at Risk'!AQ102/'Population at Risk'!AQ$5","v":4.6689332093469253E-3},{"$f":"'Population at Risk'!AR102/'Population at Risk'!AR$5","v":7.2141300912094601E-3},{"$f":"'Population at Risk'!AS102/'Population at Risk'!AS$5","v":6.314696398792374E-3},{"$f":"'Population at Risk'!AT102/'Population at Risk'!AT$5","v":1.4523105467636329E-3},{"$f":"'Population at Risk'!AU102/'Population at Risk'!AU$5","v":1.4523105467636329E-3},{"$f":"'Population at Risk'!AV102/'Population at Risk'!AV$5","v":7.7806904313540556E-3},{"$f":"'Population at Risk'!AW102/'Population at Risk'!AW$5","v":8.1342899675355025E-3},{"$f":"'Population at Risk'!AX102/'Population at Risk'!AX$5","v":7.9603203479989629E-3},{"$f":"'Population at Risk'!AY102/'Population at Risk'!AY$5","v":6.5636131299698997E-3},{"$f":"'Population at Risk'!AZ102/'Population at Risk'!AZ$5","v":6.7474364501479431E-3},{"$f":"'Population at Risk'!BA102/'Population at Risk'!BA$5","v":7.1128022725444311E-3},{"$f":"'Population at Risk'!BB102/'Population at Risk'!BB$5","v":8.7735455699586816E-3},{"$f":"'Population at Risk'!BC102/'Population at Risk'!BC$5","v":6.5484818166308889E-3},100]
[null,"Female 25-29",{"$f":"'Population at Risk'!C103/'Population at Risk'!C$5","v":2.1645464042106672E-2},{"$f":"'Population at Risk'!D103/'Population at Risk'!D$5","v":1.5061832752265648E-2},{"$f":"'Population at Risk'!E103/'Population at Risk'!E$5","v":6.961463378429086E-3},{"$f":"'Population at Risk'!F103/'Population at Risk'!F$5","v":1.6745494701498487E-2},{"$f":"'Population at Risk'!G103/'Population at Risk'!G$5","v":1.1018733942875577E-2},{"$f":"'Population at Risk'!H103/'Population at Risk'!H$5","v":1.2854471649648419E-2},{"$f":"'Population at Risk'!I103/'Population at Risk'!I$5","v":1.2090185108038198E-2},{"$f":"'Population at Risk'!J103/'Population at Risk'!J$5","v":1.4224600003067127E-2},{"$f":"'Population at Risk'!K103/'Population at Risk'!K$5","v":1.5614600992335073E-2},{"$f":"'Population at Risk'!L103/'Population at Risk'!L$5","v":1.749489889187144E-2},{"$f":"'Population at Risk'!M103/'Population at Risk'!M$5","v":1.749489889187144E-2},{"$f":"'Population at Risk'!N103/'Population at Risk'!N$5","v":1.3040453638474683E-2},{"$f":"'Population at Risk'!O103/'Population at Risk'!O$5","v":1.3978395701296229E-2},{"$f":"'Population at Risk'!P103/'Population at Risk'!P$5","v":1.3434327544046184E-2},{"$f":"'Population at Risk'!Q103/'Population at Risk'!Q$5","v":2.065525288257206E-2},{"$f":"'Population at Risk'!R103/'Population at Risk'!R$5","v":6.7698761138213276E-3},{"$f":"'Population at Risk'!S103/'Population at Risk'!S$5","v":1.7576880570710593E-2},{"$f":"'Population at Risk'!T103/'Population at Risk'!T$5","v":1.9620373817868297E-2},{"$f":"'Population at Risk'!U103/'Population at Risk'!U$5","v":1.3498806302908674E-2},{"$f":"'Population at Risk'!V103/'Population at Risk'!V$5","v":1.9648976636577865E-2},{"$f":"'Population at Risk'!W103/'Population at Risk'!W$5","v":1.3294920137308487E-2},{"$f":"'Population at Risk'!X103/'Population at Risk'!X$5","v":1.3294920137308487E-2},{"$f":"'Population at Risk'!Y103/'Population at Risk'!Y$5","v":1.6987906249490859E-2},{"$f":"'Population at Risk'!Z103/'Population at Risk'!Z$5","v":1.6055422662880642E-2},{"$f":"'Population at Risk'!AA103/'Population at Risk'!AA$5","v":1.4235497618945492E-2},{"$f":"'Population at Risk'!AB103/'Population at Risk'!AB$5","v":1.4856727865861738E-2},{"$f":"'Population at Risk'!AC103/'Population at Risk'!AC$5","v":1.3580393384002267E-2},{"$f":"'Population at Risk'!AD103/'Population at Risk'!AD$5","v":1.0994138994364343E-2},{"$f":"'Population at Risk'!AE103/'Population at Risk'!AE$5","v":1.1011674205727358E-2},{"$f":"'Population at Risk'!AF103/'Population at Risk'!AF$5","v":6.5428176173210357E-3},{"$f":"'Population at Risk'!AG103/'Population at Risk'!AG$5","v":1.1011674205727358E-2},{"$f":"'Population at Risk'!AH103/'Population at Risk'!AH$5","v":1.542972556516521E-2},{"$f":"'Population at Risk'!AI103/'Population at Risk'!AI$5","v":2.0064869520169257E-2},{"$f":"'Population at Risk'!AJ103/'Population at Risk'!AJ$5","v":2.4545740499556122E-2},{"$f":"'Population at Risk'!AK103/'Population at Risk'!AK$5","v":1.3617009696590325E-2},{"$f":"'Population at Risk'!AL103/'Population at Risk'!AL$5","v":9.6698704176856106E-3},{"$f":"'Population at Risk'!AM103/'Population at Risk'!AM$5","v":1.5278791868028652E-2},{"$f":"'Population at Risk'!AN103/'Population at Risk'!AN$5","v":1.1196870288968283E-2},{"$f":"'Population at Risk'!AO103/'Population at Risk'!AO$5","v":1.1196870288968283E-2},{"$f":"'Population at Risk'!AP103/'Population at Risk'!AP$5","v":8.4743579208259347E-3},{"$f":"'Population at Risk'!AQ103/'Population at Risk'!AQ$5","v":9.8757091025109926E-3},{"$f":"'Population at Risk'!AR103/'Population at Risk'!AR$5","v":1.501135660232261E-2},{"$f":"'Population at Risk'!AS103/'Population at Risk'!AS$5","v":1.2090185108038198E-2},{"$f":"'Population at Risk'!AT103/'Population at Risk'!AT$5","v":2.4290226172504073E-3},{"$f":"'Population at Risk'!AU103/'Population at Risk'!AU$5","v":2.4290226172504073E-3},{"$f":"'Population at Risk'!AV103/'Population at Risk'!AV$5","v":1.5823652799332785E-2},{"$f":"'Population at Risk'!AW103/'Population at Risk'!AW$5","v":1.5590826856756628E-2},{"$f":"'Population at Risk'!AX103/'Population at Risk'!AX$5","v":1.3421472056239827E-2},{"$f":"'Population at Risk'!AY103/'Population at Risk'!AY$5","v":1.302819959368666E-2},{"$f":"'Population at Risk'!AZ103/'Population at Risk'!AZ$5","v":1.2605872940221847E-2},{"$f":"'Population at Risk'!BA103/'Population at Risk'!BA$5","v":1.4669002867222537E-2},{"$f":"'Population at Risk'!BB103/'Population at Risk'!BB$5","v":1.8888299768902717E-2},{"$f":"'Population at Risk'!BC103/'Population at Risk'!BC$5","v":1.3498806302908674E-2},101]
[null,"Female 30-34",{"$f":"'Population at Risk'!C104/'Population at Risk'!C$5","v":1.8438086510837365E-2},{"$f":"'Population at Risk'!D104/'Population at Risk'!D$5","v":1.3075499969945985E-2},{"$f":"'Population at Risk'!E104/'Population at Risk'!E$5","v":6.4694501772468802E-3},{"$f":"'Population at Risk'!F104/'Population at Risk'!F$5","v":1.5234947499043725E-2},{"$f":"'Population at Risk'!G104/'Population at Risk'!G$5","v":9.1651151487469745E-3},{"$f":"'Population at Risk'!H104/'Population at Risk'!H$5","v":1.2218679634251156E-2},{"$f":"'Population at Risk'!I104/'Population at Risk'!I$5","v":1.0233478109303759E-2},{"$f":"'Population at Risk'!J104/'Population at Risk'!J$5","v":1.1809628658091058E-2},{"$f":"'Population at Risk'!K104/'Population at Risk'!K$5","v":1.4499272350025424E-2},{"$f":"'Population at Risk'!L104/'Population at Risk'!L$5","v":1.7804976390887819E-2},{"$f":"'Population at Risk'!M104/'Population at Risk'!M$5","v":1.7804976390887819E-2},{"$f":"'Population at Risk'!N104/'Population at Risk'!N$5","v":9.6344300094542423E-3},{"$f":"'Population at Risk'!O104/'Population at Risk'!O$5","v":1.3290482527019839E-2},{"$f":"'Population at Risk'!P104/'Population at Risk'!P$5","v":1.1870056528643546E-2},{"$f":"'Population at Risk'!Q104/'Population at Risk'!Q$5","v":2.1234580363636648E-2},{"$f":"'Population at Risk'!R104/'Population at Risk'!R$5","v":6.5566516692915217E-3},{"$f":"'Population at Risk'!S104/'Population at Risk'!S$5","v":1.6463163545841226E-2},{"$f":"'Population at Risk'!T104/'Population at Risk'!T$5","v":1.6463703724836288E-2},{"$f":"'Population at Risk'!U104/'Population at Risk'!U$5","v":1.2896948697046504E-2},{"$f":"'Population at Risk'!V104/'Population at Risk'!V$5","v":2.0913514736951688E-2},{"$f":"'Population at Risk'!W104/'Population at Risk'!W$5","v":1.3172693541812963E-2},{"$f":"'Population at Risk'!X104/'Population at Risk'!X$5","v":1.3172693541812963E-2},{"$f":"'Population at Risk'!Y104/'Population at Risk'!Y$5","v":1.6415358648809289E-2},{"$f":"'Population at Risk'!Z104/'Population at Risk'!Z$5","v":1.333810180169997E-2},{"$f":"'Population at Risk'!AA104/'Population at Risk'!AA$5","v":1.3504278516507661E-2},{"$f":"'Population at Risk'!AB104/'Population at Risk'!AB$5","v":1.3308898137424955E-2},{"$f":"'Population at Risk'!AC104/'Population at Risk'!AC$5","v":1.1974593504490857E-2},{"$f":"'Population at Risk'!AD104/'Population at Risk'!AD$5","v":1.093684469734681E-2},{"$f":"'Population at Risk'!AE104/'Population at Risk'!AE$5","v":1.1545727689146006E-2},{"$f":"'Population at Risk'!AF104/'Population at Risk'!AF$5","v":6.9460164620859174E-3},{"$f":"'Population at Risk'!AG104/'Population at Risk'!AG$5","v":1.1545727689146006E-2},{"$f":"'Population at Risk'!AH104/'Population at Risk'!AH$5","v":1.6303884255655595E-2},{"$f":"'Population at Risk'!AI104/'Population at Risk'!AI$5","v":1.8600048454650502E-2},{"$f":"'Population at Risk'!AJ104/'Population at Risk'!AJ$5","v":2.5992492437092396E-2},{"$f":"'Population at Risk'!AK104/'Population at Risk'!AK$5","v":1.4607337674524164E-2},{"$f":"'Population at Risk'!AL104/'Population at Risk'!AL$5","v":9.9613606137626334E-3},{"$f":"'Population at Risk'!AM104/'Population at Risk'!AM$5","v":1.6130132397437432E-2},{"$f":"'Population at Risk'!AN104/'Population at Risk'!AN$5","v":6.9420595791603347E-3},{"$f":"'Population at Risk'!AO104/'Population at Risk'!AO$5","v":6.9420595791603347E-3},{"$f":"'Population at Risk'!AP104/'Population at Risk'!AP$5","v":9.1607545125439224E-3},{"$f":"'Population at Risk'!AQ104/'Population at Risk'!AQ$5","v":9.4803129280156741E-3},{"$f":"'Population at Risk'!AR104/'Population at Risk'!AR$5","v":1.4084282424567746E-2},{"$f":"'Population at Risk'!AS104/'Population at Risk'!AS$5","v":1.0233478109303759E-2},{"$f":"'Population at Risk'!AT104/'Population at Risk'!AT$5","v":1.6897548641741965E-3},{"$f":"'Population at Risk'!AU104/'Population at Risk'!AU$5","v":1.6897548641741965E-3},{"$f":"'Population at Risk'!AV104/'Population at Risk'!AV$5","v":1.3980458077652263E-2},{"$f":"'Population at Risk'!AW104/'Population at Risk'!AW$5","v":1.649122732251505E-2},{"$f":"'Population at Risk'!AX104/'Population at Risk'!AX$5","v":1.0163610463101271E-2},{"$f":"'Population at Risk'!AY104/'Population at Risk'!AY$5","v":1.197033334936131E-2},{"$f":"'Population at Risk'!AZ104/'Population at Risk'!AZ$5","v":1.0837158692348525E-2},{"$f":"'Population at Risk'!BA104/'Population at Risk'!BA$5","v":1.5202108481388891E-2},{"$f":"'Population at Risk'!BB104/'Population at Risk'!BB$5","v":1.9616551228780851E-2},{"$f":"'Population at Risk'!BC104/'Population at Risk'!BC$5","v":1.2896948697046504E-2},102]
[null,"Female 35-39",{"$f":"'Population at Risk'!C105/'Population at Risk'!C$5","v":1.2267960505770071E-2},{"$f":"'Population at Risk'!D105/'Population at Risk'!D$5","v":9.3571841143676934E-3},{"$f":"'Population at Risk'!E105/'Population at Risk'!E$5","v":5.7489819882304821E-3},{"$f":"'Population at Risk'!F105/'Population at Risk'!F$5","v":1.0871252388822935E-2},{"$f":"'Population at Risk'!G105/'Population at Risk'!G$5","v":8.5471956634073538E-3},{"$f":"'Population at Risk'!H105/'Population at Risk'!H$5","v":1.0952136743154928E-2},{"$f":"'Population at Risk'!I105/'Population at Risk'!I$5","v":8.7434575590775773E-3},{"$f":"'Population at Risk'!J105/'Population at Risk'!J$5","v":1.053631188123636E-2},{"$f":"'Population at Risk'!K105/'Population at Risk'!K$5","v":1.3033542040067431E-2},{"$f":"'Population at Risk'!L105/'Population at Risk'!L$5","v":1.5470100881207885E-2},{"$f":"'Population at Risk'!M105/'Population at Risk'!M$5","v":1.5470100881207885E-2},{"$f":"'Population at Risk'!N105/'Population at Risk'!N$5","v":6.683516912803277E-3},{"$f":"'Population at Risk'!O105/'Population at Risk'!O$5","v":1.1756058590612486E-2},{"$f":"'Population at Risk'!P105/'Population at Risk'!P$5","v":1.1834715179241877E-2},{"$f":"'Population at Risk'!Q105/'Population at Risk'!Q$5","v":1.7829425946760239E-2},{"$f":"'Population at Risk'!R105/'Population at Risk'!R$5","v":6.3815499239756471E-3},{"$f":"'Population at Risk'!S105/'Population at Risk'!S$5","v":1.2203972309181058E-2},{"$f":"'Population at Risk'!T105/'Population at Risk'!T$5","v":9.8996847566657116E-3},{"$f":"'Population at Risk'!U105/'Population at Risk'!U$5","v":1.1708844286542236E-2},{"$f":"'Population at Risk'!V105/'Population at Risk'!V$5","v":1.8144605368869221E-2},{"$f":"'Population at Risk'!W105/'Population at Risk'!W$5","v":1.1052167244287026E-2},{"$f":"'Population at Risk'!X105/'Population at Risk'!X$5","v":1.1052167244287026E-2},{"$f":"'Population at Risk'!Y105/'Population at Risk'!Y$5","v":1.4387178386661309E-2},{"$f":"'Population at Risk'!Z105/'Population at Risk'!Z$5","v":8.8642698025868782E-3},{"$f":"'Population at Risk'!AA105/'Population at Risk'!AA$5","v":1.0246849886810213E-2},{"$f":"'Population at Risk'!AB105/'Population at Risk'!AB$5","v":9.5678626954084998E-3},{"$f":"'Population at Risk'!AC105/'Population at Risk'!AC$5","v":8.7263609526954961E-3},{"$f":"'Population at Risk'!AD105/'Population at Risk'!AD$5","v":9.207657099511872E-3},{"$f":"'Population at Risk'!AE105/'Population at Risk'!AE$5","v":9.4465976443252001E-3},{"$f":"'Population at Risk'!AF105/'Population at Risk'!AF$5","v":4.0455275731636261E-3},{"$f":"'Population at Risk'!AG105/'Population at Risk'!AG$5","v":9.4465976443252001E-3},{"$f":"'Population at Risk'!AH105/'Population at Risk'!AH$5","v":1.303140397094512E-2},{"$f":"'Population at Risk'!AI105/'Population at Risk'!AI$5","v":1.3090253732945199E-2},{"$f":"'Population at Risk'!AJ105/'Population at Risk'!AJ$5","v":2.2371381959777666E-2},{"$f":"'Population at Risk'!AK105/'Population at Risk'!AK$5","v":1.0748997316461235E-2},{"$f":"'Population at Risk'!AL105/'Population at Risk'!AL$5","v":8.6858780578667992E-3},{"$f":"'Population at Risk'!AM105/'Population at Risk'!AM$5","v":1.3204707639584923E-2},{"$f":"'Population at Risk'!AN105/'Population at Risk'!AN$5","v":7.0759031876410526E-3},{"$f":"'Population at Risk'!AO105/'Population at Risk'!AO$5","v":7.0759031876410526E-3},{"$f":"'Population at Risk'!AP105/'Population at Risk'!AP$5","v":6.2034399662327612E-3},{"$f":"'Population at Risk'!AQ105/'Population at Risk'!AQ$5","v":7.8243593168554459E-3},{"$f":"'Population at Risk'!AR105/'Population at Risk'!AR$5","v":1.0862054708452137E-2},{"$f":"'Population at Risk'!AS105/'Population at Risk'!AS$5","v":8.7434575590775773E-3},{"$f":"'Population at Risk'!AT105/'Population at Risk'!AT$5","v":3.1960202777094873E-3},{"$f":"'Population at Risk'!AU105/'Population at Risk'!AU$5","v":3.1960202777094873E-3},{"$f":"'Population at Risk'!AV105/'Population at Risk'!AV$5","v":1.3062752124301084E-2},{"$f":"'Population at Risk'!AW105/'Population at Risk'!AW$5","v":1.2806655419753168E-2},{"$f":"'Population at Risk'!AX105/'Population at Risk'!AX$5","v":9.0055400364343532E-3},{"$f":"'Population at Risk'!AY105/'Population at Risk'!AY$5","v":9.1558366642320744E-3},{"$f":"'Population at Risk'!AZ105/'Population at Risk'!AZ$5","v":7.5288752851478584E-3},{"$f":"'Population at Risk'!BA105/'Population at Risk'!BA$5","v":1.2352418110613947E-2},{"$f":"'Population at Risk'!BB105/'Population at Risk'!BB$5","v":1.5001173183306061E-2},{"$f":"'Population at Risk'!BC105/'Population at Risk'!BC$5","v":1.1708844286542236E-2},103]
[null,"Female 40-44",{"$f":"'Population at Risk'!C106/'Population at Risk'!C$5","v":1.1056595852055666E-2},{"$f":"'Population at Risk'!D106/'Population at Risk'!D$5","v":8.6661007384538115E-3},{"$f":"'Population at Risk'!E106/'Population at Risk'!E$5","v":5.6930761666269441E-3},{"$f":"'Population at Risk'!F106/'Population at Risk'!F$5","v":1.2023681970676955E-2},{"$f":"'Population at Risk'!G106/'Population at Risk'!G$5","v":1.0059568086423132E-2},{"$f":"'Population at Risk'!H106/'Population at Risk'!H$5","v":1.1981824813024195E-2},{"$f":"'Population at Risk'!I106/'Population at Risk'!I$5","v":9.4928967784270839E-3},{"$f":"'Population at Risk'!J106/'Population at Risk'!J$5","v":1.1244530958159084E-2},{"$f":"'Population at Risk'!K106/'Population at Risk'!K$5","v":1.4794831504941408E-2},{"$f":"'Population at Risk'!L106/'Population at Risk'!L$5","v":1.7387521835498441E-2},{"$f":"'Population at Risk'!M106/'Population at Risk'!M$5","v":1.7387521835498441E-2},{"$f":"'Population at Risk'!N106/'Population at Risk'!N$5","v":5.9469344224131254E-3},{"$f":"'Population at Risk'!O106/'Population at Risk'!O$5","v":1.2552041724351872E-2},{"$f":"'Population at Risk'!P106/'Population at Risk'!P$5","v":1.1261407177479294E-2},{"$f":"'Population at Risk'!Q106/'Population at Risk'!Q$5","v":1.731378070247129E-2},{"$f":"'Population at Risk'!R106/'Population at Risk'!R$5","v":6.3103802222212717E-3},{"$f":"'Population at Risk'!S106/'Population at Risk'!S$5","v":1.2138073102088745E-2},{"$f":"'Population at Risk'!T106/'Population at Risk'!T$5","v":8.7261658949333021E-3},{"$f":"'Population at Risk'!U106/'Population at Risk'!U$5","v":1.5305678805937565E-2},{"$f":"'Population at Risk'!V106/'Population at Risk'!V$5","v":1.8985664104440525E-2},{"$f":"'Population at Risk'!W106/'Population at Risk'!W$5","v":1.1818648641541831E-2},{"$f":"'Population at Risk'!X106/'Population at Risk'!X$5","v":1.1818648641541831E-2},{"$f":"'Population at Risk'!Y106/'Population at Risk'!Y$5","v":1.5164023871902202E-2},{"$f":"'Population at Risk'!Z106/'Population at Risk'!Z$5","v":7.7751691189492707E-3},{"$f":"'Population at Risk'!AA106/'Population at Risk'!AA$5","v":1.0231312585996247E-2},{"$f":"'Population at Risk'!AB106/'Population at Risk'!AB$5","v":9.0435467124779529E-3},{"$f":"'Population at Risk'!AC106/'Population at Risk'!AC$5","v":8.3850395770056485E-3},{"$f":"'Population at Risk'!AD106/'Population at Risk'!AD$5","v":1.0233248444134426E-2},{"$f":"'Population at Risk'!AE106/'Population at Risk'!AE$5","v":1.0314296309738456E-2},{"$f":"'Population at Risk'!AF106/'Population at Risk'!AF$5","v":4.7469698539944162E-3},{"$f":"'Population at Risk'!AG106/'Population at Risk'!AG$5","v":1.0314296309738456E-2},{"$f":"'Population at Risk'!AH106/'Population at Risk'!AH$5","v":1.3613731072913752E-2},{"$f":"'Population at Risk'!AI106/'Population at Risk'!AI$5","v":1.2565685866360598E-2},{"$f":"'Population at Risk'!AJ106/'Population at Risk'!AJ$5","v":2.1192792080921084E-2},{"$f":"'Population at Risk'!AK106/'Population at Risk'!AK$5","v":1.1189730691623656E-2},{"$f":"'Population at Risk'!AL106/'Population at Risk'!AL$5","v":1.0332810780527259E-2},{"$f":"'Population at Risk'!AM106/'Population at Risk'!AM$5","v":1.3747244014589939E-2},{"$f":"'Population at Risk'!AN106/'Population at Risk'!AN$5","v":1.0464363869046627E-2},{"$f":"'Population at Risk'!AO106/'Population at Risk'!AO$5","v":1.0464363869046627E-2},{"$f":"'Population at Risk'!AP106/'Population at Risk'!AP$5","v":5.4045120917936944E-3},{"$f":"'Population at Risk'!AQ106/'Population at Risk'!AQ$5","v":9.1011376154218147E-3},{"$f":"'Population at Risk'!AR106/'Population at Risk'!AR$5","v":1.100287252559691E-2},{"$f":"'Population at Risk'!AS106/'Population at Risk'!AS$5","v":9.4928967784270839E-3},{"$f":"'Population at Risk'!AT106/'Population at Risk'!AT$5","v":1.3160083496450829E-3},{"$f":"'Population at Risk'!AU106/'Population at Risk'!AU$5","v":1.3160083496450829E-3},{"$f":"'Population at Risk'!AV106/'Population at Risk'!AV$5","v":1.3542545152563326E-2},{"$f":"'Population at Risk'!AW106/'Population at Risk'!AW$5","v":1.3435961880950614E-2},{"$f":"'Population at Risk'!AX106/'Population at Risk'!AX$5","v":9.0463814878467552E-3},{"$f":"'Population at Risk'!AY106/'Population at Risk'!AY$5","v":9.2694380735711488E-3},{"$f":"'Population at Risk'!AZ106/'Population at Risk'!AZ$5","v":7.1324161060219741E-3},{"$f":"'Population at Risk'!BA106/'Population at Risk'!BA$5","v":1.27963092199173E-2},{"$f":"'Population at Risk'!BB106/'Population at Risk'!BB$5","v":1.655479262821636E-2},{"$f":"'Population at Risk'!BC106/'Population at Risk'!BC$5","v":1.5305678805937565E-2},104]
[null,"Female 45-49",{"$f":"'Population at Risk'!C107/'Population at Risk'!C$5","v":1.0730952028900174E-2},{"$f":"'Population at Risk'!D107/'Population at Risk'!D$5","v":8.5969949359019169E-3},{"$f":"'Population at Risk'!E107/'Population at Risk'!E$5","v":5.9344584687371082E-3},{"$f":"'Population at Risk'!F107/'Population at Risk'!F$5","v":1.1858670109909148E-2},{"$f":"'Population at Risk'!G107/'Population at Risk'!G$5","v":1.1062909330535102E-2},{"$f":"'Population at Risk'!H107/'Population at Risk'!H$5","v":1.4170099077630062E-2},{"$f":"'Population at Risk'!I107/'Population at Risk'!I$5","v":1.1846527971617579E-2},{"$f":"'Population at Risk'!J107/'Population at Risk'!J$5","v":1.1997128201615715E-2},{"$f":"'Population at Risk'!K107/'Population at Risk'!K$5","v":1.6203757884303917E-2},{"$f":"'Population at Risk'!L107/'Population at Risk'!L$5","v":2.1119639020131416E-2},{"$f":"'Population at Risk'!M107/'Population at Risk'!M$5","v":2.1119639020131416E-2},{"$f":"'Population at Risk'!N107/'Population at Risk'!N$5","v":5.7516938316370921E-3},{"$f":"'Population at Risk'!O107/'Population at Risk'!O$5","v":1.5098707751586534E-2},{"$f":"'Population at Risk'!P107/'Population at Risk'!P$5","v":1.4333508656885905E-2},{"$f":"'Population at Risk'!Q107/'Population at Risk'!Q$5","v":2.0144021945501502E-2},{"$f":"'Population at Risk'!R107/'Population at Risk'!R$5","v":8.4798040321110938E-3},{"$f":"'Population at Risk'!S107/'Population at Risk'!S$5","v":1.2650579526698234E-2},{"$f":"'Population at Risk'!T107/'Population at Risk'!T$5","v":7.5778570662497552E-3},{"$f":"'Population at Risk'!U107/'Population at Risk'!U$5","v":1.6555020232277028E-2},{"$f":"'Population at Risk'!V107/'Population at Risk'!V$5","v":2.0187729605433996E-2},{"$f":"'Population at Risk'!W107/'Population at Risk'!W$5","v":1.2556784662150773E-2},{"$f":"'Population at Risk'!X107/'Population at Risk'!X$5","v":1.2556784662150773E-2},{"$f":"'Population at Risk'!Y107/'Population at Risk'!Y$5","v":1.6144460562809323E-2},{"$f":"'Population at Risk'!Z107/'Population at Risk'!Z$5","v":8.1361426888430007E-3},{"$f":"'Population at Risk'!AA107/'Population at Risk'!AA$5","v":1.1425689397738456E-2},{"$f":"'Population at Risk'!AB107/'Population at Risk'!AB$5","v":9.1047070121838651E-3},{"$f":"'Population at Risk'!AC107/'Population at Risk'!AC$5","v":9.2629743720058777E-3},{"$f":"'Population at Risk'!AD107/'Population at Risk'!AD$5","v":1.1226422494852993E-2},{"$f":"'Population at Risk'!AE107/'Population at Risk'!AE$5","v":1.1306438237425052E-2},{"$f":"'Population at Risk'!AF107/'Population at Risk'!AF$5","v":6.0580753566990787E-3},{"$f":"'Population at Risk'!AG107/'Population at Risk'!AG$5","v":1.1306438237425052E-2},{"$f":"'Population at Risk'!AH107/'Population at Risk'!AH$5","v":1.538815079304388E-2},{"$f":"'Population at Risk'!AI107/'Population at Risk'!AI$5","v":1.2769802825354814E-2},{"$f":"'Population at Risk'!AJ107/'Population at Risk'!AJ$5","v":2.4640738374224508E-2},{"$f":"'Population at Risk'!AK107/'Population at Risk'!AK$5","v":1.2002965337892014E-2},{"$f":"'Population at Risk'!AL107/'Population at Risk'!AL$5","v":1.193930506979687E-2},{"$f":"'Population at Risk'!AM107/'Population at Risk'!AM$5","v":1.5019698505359775E-2},{"$f":"'Population at Risk'!AN107/'Population at Risk'!AN$5","v":8.7901914488034433E-3},{"$f":"'Population at Risk'!AO107/'Population at Risk'!AO$5","v":8.7901914488034433E-3},{"$f":"'Population at Risk'!AP107/'Population at Risk'!AP$5","v":6.3594332190560409E-3},{"$f":"'Population at Risk'!AQ107/'Population at Risk'!AQ$5","v":9.6276147603059341E-3},{"$f":"'Population at Risk'!AR107/'Population at Risk'!AR$5","v":1.1965162622922708E-2},{"$f":"'Population at Risk'!AS107/'Population at Risk'!AS$5","v":1.1846527971617579E-2},{"$f":"'Population at Risk'!AT107/'Population at Risk'!AT$5","v":2.0072877780331106E-3},{"$f":"'Population at Risk'!AU107/'Population at Risk'!AU$5","v":2.0072877780331106E-3},{"$f":"'Population at Risk'!AV107/'Population at Risk'!AV$5","v":1.6079536318507857E-2},{"$f":"'Population at Risk'!AW107/'Population at Risk'!AW$5","v":1.5810238985476118E-2},{"$f":"'Population at Risk'!AX107/'Population at Risk'!AX$5","v":9.3848549787420646E-3},{"$f":"'Population at Risk'!AY107/'Population at Risk'!AY$5","v":9.6993167569762537E-3},{"$f":"'Population at Risk'!AZ107/'Population at Risk'!AZ$5","v":7.3152688276256744E-3},{"$f":"'Population at Risk'!BA107/'Population at Risk'!BA$5","v":1.4665920997740466E-2},{"$f":"'Population at Risk'!BB107/'Population at Risk'!BB$5","v":1.7567122320385056E-2},{"$f":"'Population at Risk'!BC107/'Population at Risk'!BC$5","v":1.6555020232277028E-2},105]
[null,"Female 50-54",{"$f":"'Population at Risk'!C108/'Population at Risk'!C$5","v":1.1189417269120207E-2},{"$f":"'Population at Risk'!D108/'Population at Risk'!D$5","v":9.033930118083745E-3},{"$f":"'Population at Risk'!E108/'Population at Risk'!E$5","v":6.3410467311724502E-3},{"$f":"'Population at Risk'!F108/'Population at Risk'!F$5","v":1.1056203711494243E-2},{"$f":"'Population at Risk'!G108/'Population at Risk'!G$5","v":1.2275574391766833E-2},{"$f":"'Population at Risk'!H108/'Population at Risk'!H$5","v":1.4640197151295513E-2},{"$f":"'Population at Risk'!I108/'Population at Risk'!I$5","v":1.2720744644221888E-2},{"$f":"'Population at Risk'!J108/'Population at Risk'!J$5","v":1.2573913211308779E-2},{"$f":"'Population at Risk'!K108/'Population at Risk'!K$5","v":1.6709196203630827E-2},{"$f":"'Population at Risk'!L108/'Population at Risk'!L$5","v":2.2859379399184383E-2},{"$f":"'Population at Risk'!M108/'Population at Risk'!M$5","v":2.2859379399184383E-2},{"$f":"'Population at Risk'!N108/'Population at Risk'!N$5","v":6.8602806277223384E-3},{"$f":"'Population at Risk'!O108/'Population at Risk'!O$5","v":1.4257364096754151E-2},{"$f":"'Population at Risk'!P108/'Population at Risk'!P$5","v":1.4067369238853541E-2},{"$f":"'Population at Risk'!Q108/'Population at Risk'!Q$5","v":2.0475459235281237E-2},{"$f":"'Population at Risk'!R108/'Population at Risk'!R$5","v":7.9952438017047468E-3},{"$f":"'Population at Risk'!S108/'Population at Risk'!S$5","v":1.2758626254493659E-2},{"$f":"'Population at Risk'!T108/'Population at Risk'!T$5","v":7.1937260628914725E-3},{"$f":"'Population at Risk'!U108/'Population at Risk'!U$5","v":1.9183929024527025E-2},{"$f":"'Population at Risk'!V108/'Population at Risk'!V$5","v":2.0118829504391561E-2},{"$f":"'Population at Risk'!W108/'Population at Risk'!W$5","v":1.3530107641447287E-2},{"$f":"'Population at Risk'!X108/'Population at Risk'!X$5","v":1.3530107641447287E-2},{"$f":"'Population at Risk'!Y108/'Population at Risk'!Y$5","v":1.6398340571659793E-2},{"$f":"'Population at Risk'!Z108/'Population at Risk'!Z$5","v":8.3370351009131993E-3},{"$f":"'Population at Risk'!AA108/'Population at Risk'!AA$5","v":1.1851237624588363E-2},{"$f":"'Population at Risk'!AB108/'Population at Risk'!AB$5","v":9.4269975258894877E-3},{"$f":"'Population at Risk'!AC108/'Population at Risk'!AC$5","v":9.5637765599515447E-3},{"$f":"'Population at Risk'!AD108/'Population at Risk'!AD$5","v":1.2262788582709617E-2},{"$f":"'Population at Risk'!AE108/'Population at Risk'!AE$5","v":1.2287170178713469E-2},{"$f":"'Population at Risk'!AF108/'Population at Risk'!AF$5","v":7.2696904280388939E-3},{"$f":"'Population at Risk'!AG108/'Population at Risk'!AG$5","v":1.2287170178713469E-2},{"$f":"'Population at Risk'!AH108/'Population at Risk'!AH$5","v":1.6042385724900486E-2},{"$f":"'Population at Risk'!AI108/'Population at Risk'!AI$5","v":1.2410090069711017E-2},{"$f":"'Population at Risk'!AJ108/'Population at Risk'!AJ$5","v":2.445836448823107E-2},{"$f":"'Population at Risk'!AK108/'Population at Risk'!AK$5","v":1.1661972004429172E-2},{"$f":"'Population at Risk'!AL108/'Population at Risk'!AL$5","v":1.2452485726305685E-2},{"$f":"'Population at Risk'!AM108/'Population at Risk'!AM$5","v":1.5498430580780057E-2},{"$f":"'Population at Risk'!AN108/'Population at Risk'!AN$5","v":1.1288456386884421E-2},{"$f":"'Population at Risk'!AO108/'Population at Risk'!AO$5","v":1.1288456386884421E-2},{"$f":"'Population at Risk'!AP108/'Population at Risk'!AP$5","v":6.1303627257452741E-3},{"$f":"'Population at Risk'!AQ108/'Population at Risk'!AQ$5","v":9.99235470386922E-3},{"$f":"'Population at Risk'!AR108/'Population at Risk'!AR$5","v":1.2376932835220381E-2},{"$f":"'Population at Risk'!AS108/'Population at Risk'!AS$5","v":1.2720744644221888E-2},{"$f":"'Population at Risk'!AT108/'Population at Risk'!AT$5","v":1.7454676330722703E-3},{"$f":"'Population at Risk'!AU108/'Population at Risk'!AU$5","v":1.7454676330722703E-3},{"$f":"'Population at Risk'!AV108/'Population at Risk'!AV$5","v":1.8148752788449886E-2},{"$f":"'Population at Risk'!AW108/'Population at Risk'!AW$5","v":1.667415918272418E-2},{"$f":"'Population at Risk'!AX108/'Population at Risk'!AX$5","v":1.0010511977324868E-2},{"$f":"'Population at Risk'!AY108/'Population at Risk'!AY$5","v":1.0307805888530598E-2},{"$f":"'Population at Risk'!AZ108/'Population at Risk'!AZ$5","v":7.6297503404889186E-3},{"$f":"'Population at Risk'!BA108/'Population at Risk'!BA$5","v":1.5532801986947993E-2},{"$f":"'Population at Risk'!BB108/'Population at Risk'!BB$5","v":1.6831576687612003E-2},{"$f":"'Population at Risk'!BC108/'Population at Risk'!BC$5","v":1.9183929024527025E-2},106]
[null,"Female 55-59",{"$f":"'Population at Risk'!C109/'Population at Risk'!C$5","v":2.0511609401536422E-2},{"$f":"'Population at Risk'!D109/'Population at Risk'!D$5","v":1.657423246252962E-2},{"$f":"'Population at Risk'!E109/'Population at Risk'!E$5","v":1.1654488693837471E-2},{"$f":"'Population at Risk'!F109/'Population at Risk'!F$5","v":2.4648776113280681E-2},{"$f":"'Population at Risk'!G109/'Population at Risk'!G$5","v":2.5725427946107281E-2},{"$f":"'Population at Risk'!H109/'Population at Risk'!H$5","v":2.8351637925496938E-2},{"$f":"'Population at Risk'!I109/'Population at Risk'!I$5","v":2.5469166753963025E-2},{"$f":"'Population at Risk'!J109/'Population at Risk'!J$5","v":2.2242228938690295E-2},{"$f":"'Population at Risk'!K109/'Population at Risk'!K$5","v":2.8846866695796631E-2},{"$f":"'Population at Risk'!L109/'Population at Risk'!L$5","v":4.3950084030473541E-2},{"$f":"'Population at Risk'!M109/'Population at Risk'!M$5","v":4.3950084030473541E-2},{"$f":"'Population at Risk'!N109/'Population at Risk'!N$5","v":1.3345965185503642E-2},{"$f":"'Population at Risk'!O109/'Population at Risk'!O$5","v":2.7823812759979964E-2},{"$f":"'Population at Risk'!P109/'Population at Risk'!P$5","v":2.741180947642876E-2},{"$f":"'Population at Risk'!Q109/'Population at Risk'!Q$5","v":3.9940705560848888E-2},{"$f":"'Population at Risk'!R109/'Population at Risk'!R$5","v":1.3067005428341249E-2},{"$f":"'Population at Risk'!S109/'Population at Risk'!S$5","v":2.4343454199854977E-2},{"$f":"'Population at Risk'!T109/'Population at Risk'!T$5","v":1.3459191128592821E-2},{"$f":"'Population at Risk'!U109/'Population at Risk'!U$5","v":3.3809930041304129E-2},{"$f":"'Population at Risk'!V109/'Population at Risk'!V$5","v":3.6192496131883405E-2},{"$f":"'Population at Risk'!W109/'Population at Risk'!W$5","v":2.5157139032498766E-2},{"$f":"'Population at Risk'!X109/'Population at Risk'!X$5","v":2.5157139032498766E-2},{"$f":"'Population at Risk'!Y109/'Population at Risk'!Y$5","v":2.9310781499041771E-2},{"$f":"'Population at Risk'!Z109/'Population at Risk'!Z$5","v":1.5371487556693724E-2},{"$f":"'Population at Risk'!AA109/'Population at Risk'!AA$5","v":2.2153018719991143E-2},{"$f":"'Population at Risk'!AB109/'Population at Risk'!AB$5","v":1.7655726873899619E-2},{"$f":"'Population at Risk'!AC109/'Population at Risk'!AC$5","v":1.7691616237652773E-2},{"$f":"'Population at Risk'!AD109/'Population at Risk'!AD$5","v":2.4480579586219318E-2},{"$f":"'Population at Risk'!AE109/'Population at Risk'!AE$5","v":2.4127762809638784E-2},{"$f":"'Population at Risk'!AF109/'Population at Risk'!AF$5","v":1.3664926114731376E-2},{"$f":"'Population at Risk'!AG109/'Population at Risk'!AG$5","v":2.4127762809638784E-2},{"$f":"'Population at Risk'!AH109/'Population at Risk'!AH$5","v":3.0327859537300418E-2},{"$f":"'Population at Risk'!AI109/'Population at Risk'!AI$5","v":2.3832512230780725E-2},{"$f":"'Population at Risk'!AJ109/'Population at Risk'!AJ$5","v":4.9381398446808812E-2},{"$f":"'Population at Risk'!AK109/'Population at Risk'!AK$5","v":2.3835864568476372E-2},{"$f":"'Population at Risk'!AL109/'Population at Risk'!AL$5","v":2.2868546418944362E-2},{"$f":"'Population at Risk'!AM109/'Population at Risk'!AM$5","v":2.889044255393293E-2},{"$f":"'Population at Risk'!AN109/'Population at Risk'!AN$5","v":2.077589415674555E-2},{"$f":"'Population at Risk'!AO109/'Population at Risk'!AO$5","v":2.077589415674555E-2},{"$f":"'Population at Risk'!AP109/'Population at Risk'!AP$5","v":1.1437369086497529E-2},{"$f":"'Population at Risk'!AQ109/'Population at Risk'!AQ$5","v":1.8141952376964435E-2},{"$f":"'Population at Risk'!AR109/'Population at Risk'!AR$5","v":2.3455310346402157E-2},{"$f":"'Population at Risk'!AS109/'Population at Risk'!AS$5","v":2.5469166753963025E-2},{"$f":"'Population at Risk'!AT109/'Population at Risk'!AT$5","v":2.5169137733262936E-3},{"$f":"'Population at Risk'!AU109/'Population at Risk'!AU$5","v":2.5169137733262936E-3},{"$f":"'Population at Risk'!AV109/'Population at Risk'!AV$5","v":3.6586461023986695E-2},{"$f":"'Population at Risk'!AW109/'Population at Risk'!AW$5","v":3.2012943632338302E-2},{"$f":"'Population at Risk'!AX109/'Population at Risk'!AX$5","v":1.8160751563148253E-2},{"$f":"'Population at Risk'!AY109/'Population at Risk'!AY$5","v":1.9804706465672613E-2},{"$f":"'Population at Risk'!AZ109/'Population at Risk'!AZ$5","v":1.531208320218691E-2},{"$f":"'Population at Risk'!BA109/'Population at Risk'!BA$5","v":2.9567153441710407E-2},{"$f":"'Population at Risk'!BB109/'Population at Risk'!BB$5","v":3.1838742809337635E-2},{"$f":"'Population at Risk'!BC109/'Population at Risk'!BC$5","v":3.3809930041304129E-2},107]
[null,"Female 60-64",{"$f":"'Population at Risk'!C110/'Population at Risk'!C$5","v":1.8327639479646211E-2},{"$f":"'Population at Risk'!D110/'Population at Risk'!D$5","v":1.5017357397556191E-2},{"$f":"'Population at Risk'!E110/'Population at Risk'!E$5","v":1.0870394653273484E-2},{"$f":"'Population at Risk'!F110/'Population at Risk'!F$5","v":2.0681461925152043E-2},{"$f":"'Population at Risk'!G110/'Population at Risk'!G$5","v":2.3052087052218791E-2},{"$f":"'Population at Risk'!H110/'Population at Risk'!H$5","v":2.4950092387937321E-2},{"$f":"'Population at Risk'!I110/'Population at Risk'!I$5","v":2.3117035913770193E-2},{"$f":"'Population at Risk'!J110/'Population at Risk'!J$5","v":1.8915399823928924E-2},{"$f":"'Population at Risk'!K110/'Population at Risk'!K$5","v":2.5600828617501046E-2},{"$f":"'Population at Risk'!L110/'Population at Risk'!L$5","v":4.3227769122260958E-2},{"$f":"'Population at Risk'!M110/'Population at Risk'!M$5","v":4.3227769122260958E-2},{"$f":"'Population at Risk'!N110/'Population at Risk'!N$5","v":1.1492358909739249E-2},{"$f":"'Population at Risk'!O110/'Population at Risk'!O$5","v":2.4357546523888184E-2},{"$f":"'Population at Risk'!P110/'Population at Risk'!P$5","v":2.0676336290791981E-2},{"$f":"'Population at Risk'!Q110/'Population at Risk'!Q$5","v":3.3454608076608473E-2},{"$f":"'Population at Risk'!R110/'Population at Risk'!R$5","v":1.1388258203172408E-2},{"$f":"'Population at Risk'!S110/'Population at Risk'!S$5","v":2.0921748145766524E-2},{"$f":"'Population at Risk'!T110/'Population at Risk'!T$5","v":1.1049341300651295E-2},{"$f":"'Population at Risk'!U110/'Population at Risk'!U$5","v":3.629810671101049E-2},{"$f":"'Population at Risk'!V110/'Population at Risk'!V$5","v":3.3732352603964531E-2},{"$f":"'Population at Risk'!W110/'Population at Risk'!W$5","v":2.2934609832259211E-2},{"$f":"'Population at Risk'!X110/'Population at Risk'!X$5","v":2.2934609832259211E-2},{"$f":"'Population at Risk'!Y110/'Population at Risk'!Y$5","v":2.6410606849501552E-2},{"$f":"'Population at Risk'!Z110/'Population at Risk'!Z$5","v":1.2093033883967841E-2},{"$f":"'Population at Risk'!AA110/'Population at Risk'!AA$5","v":1.8818262194588199E-2},{"$f":"'Population at Risk'!AB110/'Population at Risk'!AB$5","v":1.6182687381482607E-2},{"$f":"'Population at Risk'!AC110/'Population at Risk'!AC$5","v":1.4108923701777571E-2},{"$f":"'Population at Risk'!AD110/'Population at Risk'!AD$5","v":2.2118133216234449E-2},{"$f":"'Population at Risk'!AE110/'Population at Risk'!AE$5","v":2.1862177426197824E-2},{"$f":"'Population at Risk'!AF110/'Population at Risk'!AF$5","v":9.9211107408323698E-3},{"$f":"'Population at Risk'!AG110/'Population at Risk'!AG$5","v":2.1862177426197824E-2},{"$f":"'Population at Risk'!AH110/'Population at Risk'!AH$5","v":2.7449965135905609E-2},{"$f":"'Population at Risk'!AI110/'Population at Risk'!AI$5","v":1.9765374335676315E-2},{"$f":"'Population at Risk'!AJ110/'Population at Risk'!AJ$5","v":4.0448499657614316E-2},{"$f":"'Population at Risk'!AK110/'Population at Risk'!AK$5","v":2.2852459546987169E-2},{"$f":"'Population at Risk'!AL110/'Population at Risk'!AL$5","v":1.991289466479778E-2},{"$f":"'Population at Risk'!AM110/'Population at Risk'!AM$5","v":2.6232075919406603E-2},{"$f":"'Population at Risk'!AN110/'Population at Risk'!AN$5","v":1.9822871489004929E-2},{"$f":"'Population at Risk'!AO110/'Population at Risk'!AO$5","v":1.9822871489004929E-2},{"$f":"'Population at Risk'!AP110/'Population at Risk'!AP$5","v":1.1190196080698957E-2},{"$f":"'Population at Risk'!AQ110/'Population at Risk'!AQ$5","v":1.4729574794412023E-2},{"$f":"'Population at Risk'!AR110/'Population at Risk'!AR$5","v":2.0541251534485636E-2},{"$f":"'Population at Risk'!AS110/'Population at Risk'!AS$5","v":2.3117035913770193E-2},{"$f":"'Population at Risk'!AT110/'Population at Risk'!AT$5","v":5.3933866571277715E-3},{"$f":"'Population at Risk'!AU110/'Population at Risk'!AU$5","v":5.3933866571277715E-3},{"$f":"'Population at Risk'!AV110/'Population at Risk'!AV$5","v":3.264956837334735E-2},{"$f":"'Population at Risk'!AW110/'Population at Risk'!AW$5","v":2.8875428269914401E-2},{"$f":"'Population at Risk'!AX110/'Population at Risk'!AX$5","v":1.4762933528752773E-2},{"$f":"'Population at Risk'!AY110/'Population at Risk'!AY$5","v":1.780334477852975E-2},{"$f":"'Population at Risk'!AZ110/'Population at Risk'!AZ$5","v":1.3515858057314985E-2},{"$f":"'Population at Risk'!BA110/'Population at Risk'!BA$5","v":2.5322364086217325E-2},{"$f":"'Population at Risk'!BB110/'Population at Risk'!BB$5","v":2.6781538296358789E-2},{"$f":"'Population at Risk'!BC110/'Population at Risk'!BC$5","v":3.629810671101049E-2},108]
[null,"Female 65-69",{"$f":"'Population at Risk'!C111/'Population at Risk'!C$5","v":0},{"$f":"'Population at Risk'!D111/'Population at Risk'!D$5","v":0},{"$f":"'Population at Risk'!E111/'Population at Risk'!E$5","v":0},{"$f":"'Population at Risk'!F111/'Population at Risk'!F$5","v":0},{"$f":"'Population at Risk'!G111/'Population at Risk'!G$5","v":0},{"$f":"'Population at Risk'!H111/'Population at Risk'!H$5","v":0},{"$f":"'Population at Risk'!I111/'Population at Risk'!I$5","v":0},{"$f":"'Population at Risk'!J111/'Population at Risk'!J$5","v":0},{"$f":"'Population at Risk'!K111/'Population at Risk'!K$5","v":0},{"$f":"'Population at Risk'!L111/'Population at Risk'!L$5","v":0},{"$f":"'Population at Risk'!M111/'Population at Risk'!M$5","v":0},{"$f":"'Population at Risk'!N111/'Population at Risk'!N$5","v":0},{"$f":"'Population at Risk'!O111/'Population at Risk'!O$5","v":0},{"$f":"'Population at Risk'!P111/'Population at Risk'!P$5","v":0},{"$f":"'Population at Risk'!Q111/'Population at Risk'!Q$5","v":0},{"$f":"'Population at Risk'!R111/'Population at Risk'!R$5","v":0},{"$f":"'Population at Risk'!S111/'Population at Risk'!S$5","v":0},{"$f":"'Population at Risk'!T111/'Population at Risk'!T$5","v":0},{"$f":"'Population at Risk'!U111/'Population at Risk'!U$5","v":0},{"$f":"'Population at Risk'!V111/'Population at Risk'!V$5","v":0},{"$f":"'Population at Risk'!W111/'Population at Risk'!W$5","v":0},{"$f":"'Population at Risk'!X111/'Population at Risk'!X$5","v":0},{"$f":"'Population at Risk'!Y111/'Population at Risk'!Y$5","v":0},{"$f":"'Population at Risk'!Z111/'Population at Risk'!Z$5","v":0},{"$f":"'Population at Risk'!AA111/'Population at Risk'!AA$5","v":0},{"$f":"'Population at Risk'!AB111/'Population at Risk'!AB$5","v":0},{"$f":"'Population at Risk'!AC111/'Population at Risk'!AC$5","v":0},{"$f":"'Population at Risk'!AD111/'Population at Risk'!AD$5","v":0},{"$f":"'Population at Risk'!AE111/'Population at Risk'!AE$5","v":0},{"$f":"'Population at Risk'!AF111/'Population at Risk'!AF$5","v":0},{"$f":"'Population at Risk'!AG111/'Population at Risk'!AG$5","v":0},{"$f":"'Population at Risk'!AH111/'Population at Risk'!AH$5","v":0},{"$f":"'Population at Risk'!AI111/'Population at Risk'!AI$5","v":0},{"$f":"'Population at Risk'!AJ111/'Population at Risk'!AJ$5","v":0},{"$f":"'Population at Risk'!AK111/'Population at Risk'!AK$5","v":0},{"$f":"'Population at Risk'!AL111/'Population at Risk'!AL$5","v":0},{"$f":"'Population at Risk'!AM111/'Population at Risk'!AM$5","v":0},{"$f":"'Population at Risk'!AN111/'Population at Risk'!AN$5","v":0},{"$f":"'Population at Risk'!AO111/'Population at Risk'!AO$5","v":0},{"$f":"'Population at Risk'!AP111/'Population at Risk'!AP$5","v":0},{"$f":"'Population at Risk'!AQ111/'Population at Risk'!AQ$5","v":0},{"$f":"'Population at Risk'!AR111/'Population at Risk'!AR$5","v":0},{"$f":"'Population at Risk'!AS111/'Population at Risk'!AS$5","v":0},{"$f":"'Population at Risk'!AT111/'Population at Risk'!AT$5","v":0},{"$f":"'Population at Risk'!AU111/'Population at Risk'!AU$5","v":0},{"$f":"'Population at Risk'!AV111/'Population at Risk'!AV$5","v":0},{"$f":"'Population at Risk'!AW111/'Population at Risk'!AW$5","v":0},{"$f":"'Population at Risk'!AX111/'Population at Risk'!AX$5","v":0},{"$f":"'Population at Risk'!AY111/'Population at Risk'!AY$5","v":0},{"$f":"'Population at Risk'!AZ111/'Population at Risk'!AZ$5","v":0},{"$f":"'Population at Risk'!BA111/'Population at Risk'!BA$5","v":0},{"$f":"'Population at Risk'!BB111/'Population at Risk'!BB$5","v":0},{"$f":"'Population at Risk'!BC111/'Population at Risk'!BC$5","v":0},109]
[null,"Female 70-74",{"$f":"'Population at Risk'!C112/'Population at Risk'!C$5","v":0},{"$f":"'Population at Risk'!D112/'Population at Risk'!D$5","v":0},{"$f":"'Population at Risk'!E112/'Population at Risk'!E$5","v":0},{"$f":"'Population at Risk'!F112/'Population at Risk'!F$5","v":0},{"$f":"'Population at Risk'!G112/'Population at Risk'!G$5","v":0},{"$f":"'Population at Risk'!H112/'Population at Risk'!H$5","v":0},{"$f":"'Population at Risk'!I112/'Population at Risk'!I$5","v":0},{"$f":"'Population at Risk'!J112/'Population at Risk'!J$5","v":0},{"$f":"'Population at Risk'!K112/'Population at Risk'!K$5","v":0},{"$f":"'Population at Risk'!L112/'Population at Risk'!L$5","v":0},{"$f":"'Population at Risk'!M112/'Population at Risk'!M$5","v":0},{"$f":"'Population at Risk'!N112/'Population at Risk'!N$5","v":0},{"$f":"'Population at Risk'!O112/'Population at Risk'!O$5","v":0},{"$f":"'Population at Risk'!P112/'Population at Risk'!P$5","v":0},{"$f":"'Population at Risk'!Q112/'Population at Risk'!Q$5","v":0},{"$f":"'Population at Risk'!R112/'Population at Risk'!R$5","v":0},{"$f":"'Population at Risk'!S112/'Population at Risk'!S$5","v":0},{"$f":"'Population at Risk'!T112/'Population at Risk'!T$5","v":0},{"$f":"'Population at Risk'!U112/'Population at Risk'!U$5","v":0},{"$f":"'Population at Risk'!V112/'Population at Risk'!V$5","v":0},{"$f":"'Population at Risk'!W112/'Population at Risk'!W$5","v":0},{"$f":"'Population at Risk'!X112/'Population at Risk'!X$5","v":0},{"$f":"'Population at Risk'!Y112/'Population at Risk'!Y$5","v":0},{"$f":"'Population at Risk'!Z112/'Population at Risk'!Z$5","v":0},{"$f":"'Population at Risk'!AA112/'Population at Risk'!AA$5","v":0},{"$f":"'Population at Risk'!AB112/'Population at Risk'!AB$5","v":0},{"$f":"'Population at Risk'!AC112/'Population at Risk'!AC$5","v":0},{"$f":"'Population at Risk'!AD112/'Population at Risk'!AD$5","v":0},{"$f":"'Population at Risk'!AE112/'Population at Risk'!AE$5","v":0},{"$f":"'Population at Risk'!AF112/'Population at Risk'!AF$5","v":0},{"$f":"'Population at Risk'!AG112/'Population at Risk'!AG$5","v":0},{"$f":"'Population at Risk'!AH112/'Population at Risk'!AH$5","v":0},{"$f":"'Population at Risk'!AI112/'Population at Risk'!AI$5","v":0},{"$f":"'Population at Risk'!AJ112/'Population at Risk'!AJ$5","v":0},{"$f":"'Population at Risk'!AK112/'Population at Risk'!AK$5","v":0},{"$f":"'Population at Risk'!AL112/'Population at Risk'!AL$5","v":0},{"$f":"'Population at Risk'!AM112/'Population at Risk'!AM$5","v":0},{"$f":"'Population at Risk'!AN112/'Population at Risk'!AN$5","v":0},{"$f":"'Population at Risk'!AO112/'Population at Risk'!AO$5","v":0},{"$f":"'Population at Risk'!AP112/'Population at Risk'!AP$5","v":0},{"$f":"'Population at Risk'!AQ112/'Population at Risk'!AQ$5","v":0},{"$f":"'Population at Risk'!AR112/'Population at Risk'!AR$5","v":0},{"$f":"'Population at Risk'!AS112/'Population at Risk'!AS$5","v":0},{"$f":"'Population at Risk'!AT112/'Population at Risk'!AT$5","v":0},{"$f":"'Population at Risk'!AU112/'Population at Risk'!AU$5","v":0},{"$f":"'Population at Risk'!AV112/'Population at Risk'!AV$5","v":0},{"$f":"'Population at Risk'!AW112/'Population at Risk'!AW$5","v":0},{"$f":"'Population at Risk'!AX112/'Population at Risk'!AX$5","v":0},{"$f":"'Population at Risk'!AY112/'Population at Risk'!AY$5","v":0},{"$f":"'Population at Risk'!AZ112/'Population at Risk'!AZ$5","v":0},{"$f":"'Population at Risk'!BA112/'Population at Risk'!BA$5","v":0},{"$f":"'Population at Risk'!BB112/'Population at Risk'!BB$5","v":0},{"$f":"'Population at Risk'!BC112/'Population at Risk'!BC$5","v":0},110]
[null,"Female 75-79",{"$f":"'Population at Risk'!C113/'Population at Risk'!C$5","v":0},{"$f":"'Population at Risk'!D113/'Population at Risk'!D$5","v":0},{"$f":"'Population at Risk'!E113/'Population at Risk'!E$5","v":0},{"$f":"'Population at Risk'!F113/'Population at Risk'!F$5","v":0},{"$f":"'Population at Risk'!G113/'Population at Risk'!G$5","v":0},{"$f":"'Population at Risk'!H113/'Population at Risk'!H$5","v":0},{"$f":"'Population at Risk'!I113/'Population at Risk'!I$5","v":0},{"$f":"'Population at Risk'!J113/'Population at Risk'!J$5","v":0},{"$f":"'Population at Risk'!K113/'Population at Risk'!K$5","v":0},{"$f":"'Population at Risk'!L113/'Population at Risk'!L$5","v":0},{"$f":"'Population at Risk'!M113/'Population at Risk'!M$5","v":0},{"$f":"'Population at Risk'!N113/'Population at Risk'!N$5","v":0},{"$f":"'Population at Risk'!O113/'Population at Risk'!O$5","v":0},{"$f":"'Population at Risk'!P113/'Population at Risk'!P$5","v":0},{"$f":"'Population at Risk'!Q113/'Population at Risk'!Q$5","v":0},{"$f":"'Population at Risk'!R113/'Population at Risk'!R$5","v":0},{"$f":"'Population at Risk'!S113/'Population at Risk'!S$5","v":0},{"$f":"'Population at Risk'!T113/'Population at Risk'!T$5","v":0},{"$f":"'Population at Risk'!U113/'Population at Risk'!U$5","v":0},{"$f":"'Population at Risk'!V113/'Population at Risk'!V$5","v":0},{"$f":"'Population at Risk'!W113/'Population at Risk'!W$5","v":0},{"$f":"'Population at Risk'!X113/'Population at Risk'!X$5","v":0},{"$f":"'Population at Risk'!Y113/'Population at Risk'!Y$5","v":0},{"$f":"'Population at Risk'!Z113/'Population at Risk'!Z$5","v":0},{"$f":"'Population at Risk'!AA113/'Population at Risk'!AA$5","v":0},{"$f":"'Population at Risk'!AB113/'Population at Risk'!AB$5","v":0},{"$f":"'Population at Risk'!AC113/'Population at Risk'!AC$5","v":0},{"$f":"'Population at Risk'!AD113/'Population at Risk'!AD$5","v":0},{"$f":"'Population at Risk'!AE113/'Population at Risk'!AE$5","v":0},{"$f":"'Population at Risk'!AF113/'Population at Risk'!AF$5","v":0},{"$f":"'Population at Risk'!AG113/'Population at Risk'!AG$5","v":0},{"$f":"'Population at Risk'!AH113/'Population at Risk'!AH$5","v":0},{"$f":"'Population at Risk'!AI113/'Population at Risk'!AI$5","v":0},{"$f":"'Population at Risk'!AJ113/'Population at Risk'!AJ$5","v":0},{"$f":"'Population at Risk'!AK113/'Population at Risk'!AK$5","v":0},{"$f":"'Population at Risk'!AL113/'Population at Risk'!AL$5","v":0},{"$f":"'Population at Risk'!AM113/'Population at Risk'!AM$5","v":0},{"$f":"'Population at Risk'!AN113/'Population at Risk'!AN$5","v":0},{"$f":"'Population at Risk'!AO113/'Population at Risk'!AO$5","v":0},{"$f":"'Population at Risk'!AP113/'Population at Risk'!AP$5","v":0},{"$f":"'Population at Risk'!AQ113/'Population at Risk'!AQ$5","v":0},{"$f":"'Population at Risk'!AR113/'Population at Risk'!AR$5","v":0},{"$f":"'Population at Risk'!AS113/'Population at Risk'!AS$5","v":0},{"$f":"'Population at Risk'!AT113/'Population at Risk'!AT$5","v":0},{"$f":"'Population at Risk'!AU113/'Population at Risk'!AU$5","v":0},{"$f":"'Population at Risk'!AV113/'Population at Risk'!AV$5","v":0},{"$f":"'Population at Risk'!AW113/'Population at Risk'!AW$5","v":0},{"$f":"'Population at Risk'!AX113/'Population at Risk'!AX$5","v":0},{"$f":"'Population at Risk'!AY113/'Population at Risk'!AY$5","v":0},{"$f":"'Population at Risk'!AZ113/'Population at Risk'!AZ$5","v":0},{"$f":"'Population at Risk'!BA113/'Population at Risk'!BA$5","v":0},{"$f":"'Population at Risk'!BB113/'Population at Risk'!BB$5","v":0},{"$f":"'Population at Risk'!BC113/'Population at Risk'!BC$5","v":0},111]
[null,"Female 80-84",{"$f":"'Population at Risk'!C114/'Population at Risk'!C$5","v":0},{"$f":"'Population at Risk'!D114/'Population at Risk'!D$5","v":0},{"$f":"'Population at Risk'!E114/'Population at Risk'!E$5","v":0},{"$f":"'Population at Risk'!F114/'Population at Risk'!F$5","v":0},{"$f":"'Population at Risk'!G114/'Population at Risk'!G$5","v":0},{"$f":"'Population at Risk'!H114/'Population at Risk'!H$5","v":0},{"$f":"'Population at Risk'!I114/'Population at Risk'!I$5","v":0},{"$f":"'Population at Risk'!J114/'Population at Risk'!J$5","v":0},{"$f":"'Population at Risk'!K114/'Population at Risk'!K$5","v":0},{"$f":"'Population at Risk'!L114/'Population at Risk'!L$5","v":0},{"$f":"'Population at Risk'!M114/'Population at Risk'!M$5","v":0},{"$f":"'Population at Risk'!N114/'Population at Risk'!N$5","v":0},{"$f":"'Population at Risk'!O114/'Population at Risk'!O$5","v":0},{"$f":"'Population at Risk'!P114/'Population at Risk'!P$5","v":0},{"$f":"'Population at Risk'!Q114/'Population at Risk'!Q$5","v":0},{"$f":"'Population at Risk'!R114/'Population at Risk'!R$5","v":0},{"$f":"'Population at Risk'!S114/'Population at Risk'!S$5","v":0},{"$f":"'Population at Risk'!T114/'Population at Risk'!T$5","v":0},{"$f":"'Population at Risk'!U114/'Population at Risk'!U$5","v":0},{"$f":"'Population at Risk'!V114/'Population at Risk'!V$5","v":0},{"$f":"'Population at Risk'!W114/'Population at Risk'!W$5","v":0},{"$f":"'Population at Risk'!X114/'Population at Risk'!X$5","v":0},{"$f":"'Population at Risk'!Y114/'Population at Risk'!Y$5","v":0},{"$f":"'Population at Risk'!Z114/'Population at Risk'!Z$5","v":0},{"$f":"'Population at Risk'!AA114/'Population at Risk'!AA$5","v":0},{"$f":"'Population at Risk'!AB114/'Population at Risk'!AB$5","v":0},{"$f":"'Population at Risk'!AC114/'Population at Risk'!AC$5","v":0},{"$f":"'Population at Risk'!AD114/'Population at Risk'!AD$5","v":0},{"$f":"'Population at Risk'!AE114/'Population at Risk'!AE$5","v":0},{"$f":"'Population at Risk'!AF114/'Population at Risk'!AF$5","v":0},{"$f":"'Population at Risk'!AG114/'Population at Risk'!AG$5","v":0},{"$f":"'Population at Risk'!AH114/'Population at Risk'!AH$5","v":0},{"$f":"'Population at Risk'!AI114/'Population at Risk'!AI$5","v":0},{"$f":"'Population at Risk'!AJ114/'Population at Risk'!AJ$5","v":0},{"$f":"'Population at Risk'!AK114/'Population at Risk'!AK$5","v":0},{"$f":"'Population at Risk'!AL114/'Population at Risk'!AL$5","v":0},{"$f":"'Population at Risk'!AM114/'Population at Risk'!AM$5","v":0},{"$f":"'Population at Risk'!AN114/'Population at Risk'!AN$5","v":0},{"$f":"'Population at Risk'!AO114/'Population at Risk'!AO$5","v":0},{"$f":"'Population at Risk'!AP114/'Population at Risk'!AP$5","v":0},{"$f":"'Population at Risk'!AQ114/'Population at Risk'!AQ$5","v":0},{"$f":"'Population at Risk'!AR114/'Population at Risk'!AR$5","v":0},{"$f":"'Population at Risk'!AS114/'Population at Risk'!AS$5","v":0},{"$f":"'Population at Risk'!AT114/'Population at Risk'!AT$5","v":0},{"$f":"'Population at Risk'!AU114/'Population at Risk'!AU$5","v":0},{"$f":"'Population at Risk'!AV114/'Population at Risk'!AV$5","v":0},{"$f":"'Population at Risk'!AW114/'Population at Risk'!AW$5","v":0},{"$f":"'Population at Risk'!AX114/'Population at Risk'!AX$5","v":0},{"$f":"'Population at Risk'!AY114/'Population at Risk'!AY$5","v":0},{"$f":"'Population at Risk'!AZ114/'Population at Risk'!AZ$5","v":0},{"$f":"'Population at Risk'!BA114/'Population at Risk'!BA$5","v":0},{"$f":"'Population at Risk'!BB114/'Population at Risk'!BB$5","v":0},{"$f":"'Population at Risk'!BC114/'Population at Risk'!BC$5","v":0},112]
[null,"Female 85-89",{"$f":"'Population at Risk'!C115/'Population at Risk'!C$5","v":0},{"$f":"'Population at Risk'!D115/'Population at Risk'!D$5","v":0},{"$f":"'Population at Risk'!E115/'Population at Risk'!E$5","v":0},{"$f":"'Population at Risk'!F115/'Population at Risk'!F$5","v":0},{"$f":"'Population at Risk'!G115/'Population at Risk'!G$5","v":0},{"$f":"'Population at Risk'!H115/'Population at Risk'!H$5","v":0},{"$f":"'Population at Risk'!I115/'Population at Risk'!I$5","v":0},{"$f":"'Population at Risk'!J115/'Population at Risk'!J$5","v":0},{"$f":"'Population at Risk'!K115/'Population at Risk'!K$5","v":0},{"$f":"'Population at Risk'!L115/'Population at Risk'!L$5","v":0},{"$f":"'Population at Risk'!M115/'Population at Risk'!M$5","v":0},{"$f":"'Population at Risk'!N115/'Population at Risk'!N$5","v":0},{"$f":"'Population at Risk'!O115/'Population at Risk'!O$5","v":0},{"$f":"'Population at Risk'!P115/'Population at Risk'!P$5","v":0},{"$f":"'Population at Risk'!Q115/'Population at Risk'!Q$5","v":0},{"$f":"'Population at Risk'!R115/'Population at Risk'!R$5","v":0},{"$f":"'Population at Risk'!S115/'Population at Risk'!S$5","v":0},{"$f":"'Population at Risk'!T115/'Population at Risk'!T$5","v":0},{"$f":"'Population at Risk'!U115/'Population at Risk'!U$5","v":0},{"$f":"'Population at Risk'!V115/'Population at Risk'!V$5","v":0},{"$f":"'Population at Risk'!W115/'Population at Risk'!W$5","v":0},{"$f":"'Population at Risk'!X115/'Population at Risk'!X$5","v":0},{"$f":"'Population at Risk'!Y115/'Population at Risk'!Y$5","v":0},{"$f":"'Population at Risk'!Z115/'Population at Risk'!Z$5","v":0},{"$f":"'Population at Risk'!AA115/'Population at Risk'!AA$5","v":0},{"$f":"'Population at Risk'!AB115/'Population at Risk'!AB$5","v":0},{"$f":"'Population at Risk'!AC115/'Population at Risk'!AC$5","v":0},{"$f":"'Population at Risk'!AD115/'Population at Risk'!AD$5","v":0},{"$f":"'Population at Risk'!AE115/'Population at Risk'!AE$5","v":0},{"$f":"'Population at Risk'!AF115/'Population at Risk'!AF$5","v":0},{"$f":"'Population at Risk'!AG115/'Population at Risk'!AG$5","v":0},{"$f":"'Population at Risk'!AH115/'Population at Risk'!AH$5","v":0},{"$f":"'Population at Risk'!AI115/'Population at Risk'!AI$5","v":0},{"$f":"'Population at Risk'!AJ115/'Population at Risk'!AJ$5","v":0},{"$f":"'Population at Risk'!AK115/'Population at Risk'!AK$5","v":0},{"$f":"'Population at Risk'!AL115/'Population at Risk'!AL$5","v":0},{"$f":"'Population at Risk'!AM115/'Population at Risk'!AM$5","v":0},{"$f":"'Population at Risk'!AN115/'Population at Risk'!AN$5","v":0},{"$f":"'Population at Risk'!AO115/'Population at Risk'!AO$5","v":0},{"$f":"'Population at Risk'!AP115/'Population at Risk'!AP$5","v":0},{"$f":"'Population at Risk'!AQ115/'Population at Risk'!AQ$5","v":0},{"$f":"'Population at Risk'!AR115/'Population at Risk'!AR$5","v":0},{"$f":"'Population at Risk'!AS115/'Population at Risk'!AS$5","v":0},{"$f":"'Population at Risk'!AT115/'Population at Risk'!AT$5","v":0},{"$f":"'Population at Risk'!AU115/'Population at Risk'!AU$5","v":0},{"$f":"'Population at Risk'!AV115/'Population at Risk'!AV$5","v":0},{"$f":"'Population at Risk'!AW115/'Population at Risk'!AW$5","v":0},{"$f":"'Population at Risk'!AX115/'Population at Risk'!AX$5","v":0},{"$f":"'Population at Risk'!AY115/'Population at Risk'!AY$5","v":0},{"$f":"'Population at Risk'!AZ115/'Population at Risk'!AZ$5","v":0},{"$f":"'Population at Risk'!BA115/'Population at Risk'!BA$5","v":0},{"$f":"'Population at Risk'!BB115/'Population at Risk'!BB$5","v":0},{"$f":"'Population at Risk'!BC115/'Population at Risk'!BC$5","v":0},113]
[null,"Female 90+",{"$f":"'Population at Risk'!C116/'Population at Risk'!C$5","v":0},{"$f":"'Population at Risk'!D116/'Population at Risk'!D$5","v":0},{"$f":"'Population at Risk'!E116/'Population at Risk'!E$5","v":0},{"$f":"'Population at Risk'!F116/'Population at Risk'!F$5","v":0},{"$f":"'Population at Risk'!G116/'Population at Risk'!G$5","v":0},{"$f":"'Population at Risk'!H116/'Population at Risk'!H$5","v":0},{"$f":"'Population at Risk'!I116/'Population at Risk'!I$5","v":0},{"$f":"'Population at Risk'!J116/'Population at Risk'!J$5","v":0},{"$f":"'Population at Risk'!K116/'Population at Risk'!K$5","v":0},{"$f":"'Population at Risk'!L116/'Population at Risk'!L$5","v":0},{"$f":"'Population at Risk'!M116/'Population at Risk'!M$5","v":0},{"$f":"'Population at Risk'!N116/'Population at Risk'!N$5","v":0},{"$f":"'Population at Risk'!O116/'Population at Risk'!O$5","v":0},{"$f":"'Population at Risk'!P116/'Population at Risk'!P$5","v":0},{"$f":"'Population at Risk'!Q116/'Population at Risk'!Q$5","v":0},{"$f":"'Population at Risk'!R116/'Population at Risk'!R$5","v":0},{"$f":"'Population at Risk'!S116/'Population at Risk'!S$5","v":0},{"$f":"'Population at Risk'!T116/'Population at Risk'!T$5","v":0},{"$f":"'Population at Risk'!U116/'Population at Risk'!U$5","v":0},{"$f":"'Population at Risk'!V116/'Population at Risk'!V$5","v":0},{"$f":"'Population at Risk'!W116/'Population at Risk'!W$5","v":0},{"$f":"'Population at Risk'!X116/'Population at Risk'!X$5","v":0},{"$f":"'Population at Risk'!Y116/'Population at Risk'!Y$5","v":0},{"$f":"'Population at Risk'!Z116/'Population at Risk'!Z$5","v":0},{"$f":"'Population at Risk'!AA116/'Population at Risk'!AA$5","v":0},{"$f":"'Population at Risk'!AB116/'Population at Risk'!AB$5","v":0},{"$f":"'Population at Risk'!AC116/'Population at Risk'!AC$5","v":0},{"$f":"'Population at Risk'!AD116/'Population at Risk'!AD$5","v":0},{"$f":"'Population at Risk'!AE116/'Population at Risk'!AE$5","v":0},{"$f":"'Population at Risk'!AF116/'Population at Risk'!AF$5","v":0},{"$f":"'Population at Risk'!AG116/'Population at Risk'!AG$5","v":0},{"$f":"'Population at Risk'!AH116/'Population at Risk'!AH$5","v":0},{"$f":"'Population at Risk'!AI116/'Population at Risk'!AI$5","v":0},{"$f":"'Population at Risk'!AJ116/'Population at Risk'!AJ$5","v":0},{"$f":"'Population at Risk'!AK116/'Population at Risk'!AK$5","v":0},{"$f":"'Population at Risk'!AL116/'Population at Risk'!AL$5","v":0},{"$f":"'Population at Risk'!AM116/'Population at Risk'!AM$5","v":0},{"$f":"'Population at Risk'!AN116/'Population at Risk'!AN$5","v":0},{"$f":"'Population at Risk'!AO116/'Population at Risk'!AO$5","v":0},{"$f":"'Population at Risk'!AP116/'Population at Risk'!AP$5","v":0},{"$f":"'Population at Risk'!AQ116/'Population at Risk'!AQ$5","v":0},{"$f":"'Population at Risk'!AR116/'Population at Risk'!AR$5","v":0},{"$f":"'Population at Risk'!AS116/'Population at Risk'!AS$5","v":0},{"$f":"'Population at Risk'!AT116/'Population at Risk'!AT$5","v":0},{"$f":"'Population at Risk'!AU116/'Population at Risk'!AU$5","v":0},{"$f":"'Population at Risk'!AV116/'Population at Risk'!AV$5","v":0},{"$f":"'Population at Risk'!AW116/'Population at Risk'!AW$5","v":0},{"$f":"'Population at Risk'!AX116/'Population at Risk'!AX$5","v":0},{"$f":"'Population at Risk'!AY116/'Population at Risk'!AY$5","v":0},{"$f":"'Population at Risk'!AZ116/'Population at Risk'!AZ$5","v":0},{"$f":"'Population at Risk'!BA116/'Population at Risk'!BA$5","v":0},{"$f":"'Population at Risk'!BB116/'Population at Risk'!BB$5","v":0},{"$f":"'Population at Risk'!BC116/'Population at Risk'!BC$5","v":0},114]
[null,"Male 0-4",{"$f":"'Population at Risk'!C117/'Population at Risk'!C$5","v":0},{"$f":"'Population at Risk'!D117/'Population at Risk'!D$5","v":0},{"$f":"'Population at Risk'!E117/'Population at Risk'!E$5","v":0},{"$f":"'Population at Risk'!F117/'Population at Risk'!F$5","v":0},{"$f":"'Population at Risk'!G117/'Population at Risk'!G$5","v":0},{"$f":"'Population at Risk'!H117/'Population at Risk'!H$5","v":0},{"$f":"'Population at Risk'!I117/'Population at Risk'!I$5","v":0},{"$f":"'Population at Risk'!J117/'Population at Risk'!J$5","v":0},{"$f":"'Population at Risk'!K117/'Population at Risk'!K$5","v":0},{"$f":"'Population at Risk'!L117/'Population at Risk'!L$5","v":0},{"$f":"'Population at Risk'!M117/'Population at Risk'!M$5","v":0},{"$f":"'Population at Risk'!N117/'Population at Risk'!N$5","v":0},{"$f":"'Population at Risk'!O117/'Population at Risk'!O$5","v":0},{"$f":"'Population at Risk'!P117/'Population at Risk'!P$5","v":0},{"$f":"'Population at Risk'!Q117/'Population at Risk'!Q$5","v":0},{"$f":"'Population at Risk'!R117/'Population at Risk'!R$5","v":0},{"$f":"'Population at Risk'!S117/'Population at Risk'!S$5","v":0},{"$f":"'Population at Risk'!T117/'Population at Risk'!T$5","v":0},{"$f":"'Population at Risk'!U117/'Population at Risk'!U$5","v":0},{"$f":"'Population at Risk'!V117/'Population at Risk'!V$5","v":0},{"$f":"'Population at Risk'!W117/'Population at Risk'!W$5","v":0},{"$f":"'Population at Risk'!X117/'Population at Risk'!X$5","v":0},{"$f":"'Population at Risk'!Y117/'Population at Risk'!Y$5","v":0},{"$f":"'Population at Risk'!Z117/'Population at Risk'!Z$5","v":0},{"$f":"'Population at Risk'!AA117/'Population at Risk'!AA$5","v":0},{"$f":"'Population at Risk'!AB117/'Population at Risk'!AB$5","v":0},{"$f":"'Population at Risk'!AC117/'Population at Risk'!AC$5","v":0},{"$f":"'Population at Risk'!AD117/'Population at Risk'!AD$5","v":0},{"$f":"'Population at Risk'!AE117/'Population at Risk'!AE$5","v":0},{"$f":"'Population at Risk'!AF117/'Population at Risk'!AF$5","v":0},{"$f":"'Population at Risk'!AG117/'Population at Risk'!AG$5","v":0},{"$f":"'Population at Risk'!AH117/'Population at Risk'!AH$5","v":0},{"$f":"'Population at Risk'!AI117/'Population at Risk'!AI$5","v":0},{"$f":"'Population at Risk'!AJ117/'Population at Risk'!AJ$5","v":0},{"$f":"'Population at Risk'!AK117/'Population at Risk'!AK$5","v":0},{"$f":"'Population at Risk'!AL117/'Population at Risk'!AL$5","v":0},{"$f":"'Population at Risk'!AM117/'Population at Risk'!AM$5","v":0},{"$f":"'Population at Risk'!AN117/'Population at Risk'!AN$5","v":0},{"$f":"'Population at Risk'!AO117/'Population at Risk'!AO$5","v":0},{"$f":"'Population at Risk'!AP117/'Population at Risk'!AP$5","v":0},{"$f":"'Population at Risk'!AQ117/'Population at Risk'!AQ$5","v":0},{"$f":"'Population at Risk'!AR117/'Population at Risk'!AR$5","v":0},{"$f":"'Population at Risk'!AS117/'Population at Risk'!AS$5","v":0},{"$f":"'Population at Risk'!AT117/'Population at Risk'!AT$5","v":0},{"$f":"'Population at Risk'!AU117/'Population at Risk'!AU$5","v":0},{"$f":"'Population at Risk'!AV117/'Population at Risk'!AV$5","v":0},{"$f":"'Population at Risk'!AW117/'Population at Risk'!AW$5","v":0},{"$f":"'Population at Risk'!AX117/'Population at Risk'!AX$5","v":0},{"$f":"'Population at Risk'!AY117/'Population at Risk'!AY$5","v":0},{"$f":"'Population at Risk'!AZ117/'Population at Risk'!AZ$5","v":0},{"$f":"'Population at Risk'!BA117/'Population at Risk'!BA$5","v":0},{"$f":"'Population at Risk'!BB117/'Population at Risk'!BB$5","v":0},{"$f":"'Population at Risk'!BC117/'Population at Risk'!BC$5","v":0},115]
[null,"Male 5-9",{"$f":"'Population at Risk'!C118/'Population at Risk'!C$5","v":0},{"$f":"'Population at Risk'!D118/'Population at Risk'!D$5","v":0},{"$f":"'Population at Risk'!E118/'Population at Risk'!E$5","v":0},{"$f":"'Population at Risk'!F118/'Population at Risk'!F$5","v":0},{"$f":"'Population at Risk'!G118/'Population at Risk'!G$5","v":0},{"$f":"'Population at Risk'!H118/'Population at Risk'!H$5","v":0},{"$f":"'Population at Risk'!I118/'Population at Risk'!I$5","v":0},{"$f":"'Population at Risk'!J118/'Population at Risk'!J$5","v":0},{"$f":"'Population at Risk'!K118/'Population at Risk'!K$5","v":0},{"$f":"'Population at Risk'!L118/'Population at Risk'!L$5","v":0},{"$f":"'Population at Risk'!M118/'Population at Risk'!M$5","v":0},{"$f":"'Population at Risk'!N118/'Population at Risk'!N$5","v":0},{"$f":"'Population at Risk'!O118/'Population at Risk'!O$5","v":0},{"$f":"'Population at Risk'!P118/'Population at Risk'!P$5","v":0},{"$f":"'Population at Risk'!Q118/'Population at Risk'!Q$5","v":0},{"$f":"'Population at Risk'!R118/'Population at Risk'!R$5","v":0},{"$f":"'Population at Risk'!S118/'Population at Risk'!S$5","v":0},{"$f":"'Population at Risk'!T118/'Population at Risk'!T$5","v":0},{"$f":"'Population at Risk'!U118/'Population at Risk'!U$5","v":0},{"$f":"'Population at Risk'!V118/'Population at Risk'!V$5","v":0},{"$f":"'Population at Risk'!W118/'Population at Risk'!W$5","v":0},{"$f":"'Population at Risk'!X118/'Population at Risk'!X$5","v":0},{"$f":"'Population at Risk'!Y118/'Population at Risk'!Y$5","v":0},{"$f":"'Population at Risk'!Z118/'Population at Risk'!Z$5","v":0},{"$f":"'Population at Risk'!AA118/'Population at Risk'!AA$5","v":0},{"$f":"'Population at Risk'!AB118/'Population at Risk'!AB$5","v":0},{"$f":"'Population at Risk'!AC118/'Population at Risk'!AC$5","v":0},{"$f":"'Population at Risk'!AD118/'Population at Risk'!AD$5","v":0},{"$f":"'Population at Risk'!AE118/'Population at Risk'!AE$5","v":0},{"$f":"'Population at Risk'!AF118/'Population at Risk'!AF$5","v":0},{"$f":"'Population at Risk'!AG118/'Population at Risk'!AG$5","v":0},{"$f":"'Population at Risk'!AH118/'Population at Risk'!AH$5","v":0},{"$f":"'Population at Risk'!AI118/'Population at Risk'!AI$5","v":0},{"$f":"'Population at Risk'!AJ118/'Population at Risk'!AJ$5","v":0},{"$f":"'Population at Risk'!AK118/'Population at Risk'!AK$5","v":0},{"$f":"'Population at Risk'!AL118/'Population at Risk'!AL$5","v":0},{"$f":"'Population at Risk'!AM118/'Population at Risk'!AM$5","v":0},{"$f":"'Population at Risk'!AN118/'Population at Risk'!AN$5","v":0},{"$f":"'Population at Risk'!AO118/'Population at Risk'!AO$5","v":0},{"$f":"'Population at Risk'!AP118/'Population at Risk'!AP$5","v":0},{"$f":"'Population at Risk'!AQ118/'Population at Risk'!AQ$5","v":0},{"$f":"'Population at Risk'!AR118/'Population at Risk'!AR$5","v":0},{"$f":"'Population at Risk'!AS118/'Population at Risk'!AS$5","v":0},{"$f":"'Population at Risk'!AT118/'Population at Risk'!AT$5","v":0},{"$f":"'Population at Risk'!AU118/'Population at Risk'!AU$5","v":0},{"$f":"'Population at Risk'!AV118/'Population at Risk'!AV$5","v":0},{"$f":"'Population at Risk'!AW118/'Population at Risk'!AW$5","v":0},{"$f":"'Population at Risk'!AX118/'Population at Risk'!AX$5","v":0},{"$f":"'Population at Risk'!AY118/'Population at Risk'!AY$5","v":0},{"$f":"'Population at Risk'!AZ118/'Population at Risk'!AZ$5","v":0},{"$f":"'Population at Risk'!BA118/'Population at Risk'!BA$5","v":0},{"$f":"'Population at Risk'!BB118/'Population at Risk'!BB$5","v":0},{"$f":"'Population at Risk'!BC118/'Population at Risk'!BC$5","v":0},116]
[null,"Male 10-15",{"$f":"'Population at Risk'!C119/'Population at Risk'!C$5","v":0},{"$f":"'Population at Risk'!D119/'Population at Risk'!D$5","v":0},{"$f":"'Population at Risk'!E119/'Population at Risk'!E$5","v":0},{"$f":"'Population at Risk'!F119/'Population at Risk'!F$5","v":0},{"$f":"'Population at Risk'!G119/'Population at Risk'!G$5","v":0},{"$f":"'Population at Risk'!H119/'Population at Risk'!H$5","v":0},{"$f":"'Population at Risk'!I119/'Population at Risk'!I$5","v":0},{"$f":"'Population at Risk'!J119/'Population at Risk'!J$5","v":0},{"$f":"'Population at Risk'!K119/'Population at Risk'!K$5","v":0},{"$f":"'Population at Risk'!L119/'Population at Risk'!L$5","v":0},{"$f":"'Population at Risk'!M119/'Population at Risk'!M$5","v":0},{"$f":"'Population at Risk'!N119/'Population at Risk'!N$5","v":0},{"$f":"'Population at Risk'!O119/'Population at Risk'!O$5","v":0},{"$f":"'Population at Risk'!P119/'Population at Risk'!P$5","v":0},{"$f":"'Population at Risk'!Q119/'Population at Risk'!Q$5","v":0},{"$f":"'Population at Risk'!R119/'Population at Risk'!R$5","v":0},{"$f":"'Population at Risk'!S119/'Population at Risk'!S$5","v":0},{"$f":"'Population at Risk'!T119/'Population at Risk'!T$5","v":0},{"$f":"'Population at Risk'!U119/'Population at Risk'!U$5","v":0},{"$f":"'Population at Risk'!V119/'Population at Risk'!V$5","v":0},{"$f":"'Population at Risk'!W119/'Population at Risk'!W$5","v":0},{"$f":"'Population at Risk'!X119/'Population at Risk'!X$5","v":0},{"$f":"'Population at Risk'!Y119/'Population at Risk'!Y$5","v":0},{"$f":"'Population at Risk'!Z119/'Population at Risk'!Z$5","v":0},{"$f":"'Population at Risk'!AA119/'Population at Risk'!AA$5","v":0},{"$f":"'Population at Risk'!AB119/'Population at Risk'!AB$5","v":0},{"$f":"'Population at Risk'!AC119/'Population at Risk'!AC$5","v":0},{"$f":"'Population at Risk'!AD119/'Population at Risk'!AD$5","v":0},{"$f":"'Population at Risk'!AE119/'Population at Risk'!AE$5","v":0},{"$f":"'Population at Risk'!AF119/'Population at Risk'!AF$5","v":0},{"$f":"'Population at Risk'!AG119/'Population at Risk'!AG$5","v":0},{"$f":"'Population at Risk'!AH119/'Population at Risk'!AH$5","v":0},{"$f":"'Population at Risk'!AI119/'Population at Risk'!AI$5","v":0},{"$f":"'Population at Risk'!AJ119/'Population at Risk'!AJ$5","v":0},{"$f":"'Population at Risk'!AK119/'Population at Risk'!AK$5","v":0},{"$f":"'Population at Risk'!AL119/'Population at Risk'!AL$5","v":0},{"$f":"'Population at Risk'!AM119/'Population at Risk'!AM$5","v":0},{"$f":"'Population at Risk'!AN119/'Population at Risk'!AN$5","v":0},{"$f":"'Population at Risk'!AO119/'Population at Risk'!AO$5","v":0},{"$f":"'Population at Risk'!AP119/'Population at Risk'!AP$5","v":0},{"$f":"'Population at Risk'!AQ119/'Population at Risk'!AQ$5","v":0},{"$f":"'Population at Risk'!AR119/'Population at Risk'!AR$5","v":0},{"$f":"'Population at Risk'!AS119/'Population at Risk'!AS$5","v":0},{"$f":"'Population at Risk'!AT119/'Population at Risk'!AT$5","v":0},{"$f":"'Population at Risk'!AU119/'Population at Risk'!AU$5","v":0},{"$f":"'Population at Risk'!AV119/'Population at Risk'!AV$5","v":0},{"$f":"'Population at Risk'!AW119/'Population at Risk'!AW$5","v":0},{"$f":"'Population at Risk'!AX119/'Population at Risk'!AX$5","v":0},{"$f":"'Population at Risk'!AY119/'Population at Risk'!AY$5","v":0},{"$f":"'Population at Risk'!AZ119/'Population at Risk'!AZ$5","v":0},{"$f":"'Population at Risk'!BA119/'Population at Risk'!BA$5","v":0},{"$f":"'Population at Risk'!BB119/'Population at Risk'!BB$5","v":0},{"$f":"'Population at Risk'!BC119/'Population at Risk'!BC$5","v":0},117]
[null,"Male 16-19",{"$f":"'Population at Risk'!C120/'Population at Risk'!C$5","v":5.8206828495380751E-3},{"$f":"'Population at Risk'!D120/'Population at Risk'!D$5","v":3.8900654072604869E-3},{"$f":"'Population at Risk'!E120/'Population at Risk'!E$5","v":2.1679137956056253E-3},{"$f":"'Population at Risk'!F120/'Population at Risk'!F$5","v":3.8864659555490661E-3},{"$f":"'Population at Risk'!G120/'Population at Risk'!G$5","v":4.7312073601902304E-3},{"$f":"'Population at Risk'!H120/'Population at Risk'!H$5","v":6.0726359896913695E-3},{"$f":"'Population at Risk'!I120/'Population at Risk'!I$5","v":3.9649443860744638E-3},{"$f":"'Population at Risk'!J120/'Population at Risk'!J$5","v":5.3477080372403563E-3},{"$f":"'Population at Risk'!K120/'Population at Risk'!K$5","v":6.8476049727559142E-3},{"$f":"'Population at Risk'!L120/'Population at Risk'!L$5","v":6.1446282516762008E-3},{"$f":"'Population at Risk'!M120/'Population at Risk'!M$5","v":6.1446282516762008E-3},{"$f":"'Population at Risk'!N120/'Population at Risk'!N$5","v":5.3933103994994978E-3},{"$f":"'Population at Risk'!O120/'Population at Risk'!O$5","v":6.7602481462918102E-3},{"$f":"'Population at Risk'!P120/'Population at Risk'!P$5","v":5.3806553216366364E-3},{"$f":"'Population at Risk'!Q120/'Population at Risk'!Q$5","v":7.720185364055783E-3},{"$f":"'Population at Risk'!R120/'Population at Risk'!R$5","v":3.4017038572728285E-3},{"$f":"'Population at Risk'!S120/'Population at Risk'!S$5","v":5.2261937611422244E-3},{"$f":"'Population at Risk'!T120/'Population at Risk'!T$5","v":3.6819370775350059E-3},{"$f":"'Population at Risk'!U120/'Population at Risk'!U$5","v":7.0541291351260329E-3},{"$f":"'Population at Risk'!V120/'Population at Risk'!V$5","v":7.2926469366811396E-3},{"$f":"'Population at Risk'!W120/'Population at Risk'!W$5","v":5.1004068103860968E-3},{"$f":"'Population at Risk'!X120/'Population at Risk'!X$5","v":5.1004068103860968E-3},{"$f":"'Population at Risk'!Y120/'Population at Risk'!Y$5","v":6.4734086266874961E-3},{"$f":"'Population at Risk'!Z120/'Population at Risk'!Z$5","v":3.203486254682252E-3},{"$f":"'Population at Risk'!AA120/'Population at Risk'!AA$5","v":4.9017352446209346E-3},{"$f":"'Population at Risk'!AB120/'Population at Risk'!AB$5","v":4.0540178846009472E-3},{"$f":"'Population at Risk'!AC120/'Population at Risk'!AC$5","v":3.8976776421390403E-3},{"$f":"'Population at Risk'!AD120/'Population at Risk'!AD$5","v":6.1819530332830157E-3},{"$f":"'Population at Risk'!AE120/'Population at Risk'!AE$5","v":6.7346541129343577E-3},{"$f":"'Population at Risk'!AF120/'Population at Risk'!AF$5","v":3.2412908072718019E-3},{"$f":"'Population at Risk'!AG120/'Population at Risk'!AG$5","v":6.7346541129343577E-3},{"$f":"'Population at Risk'!AH120/'Population at Risk'!AH$5","v":6.8532052811658747E-3},{"$f":"'Population at Risk'!AI120/'Population at Risk'!AI$5","v":5.4452445017911409E-3},{"$f":"'Population at Risk'!AJ120/'Population at Risk'!AJ$5","v":9.3082607911682876E-3},{"$f":"'Population at Risk'!AK120/'Population at Risk'!AK$5","v":4.7872508212240348E-3},{"$f":"'Population at Risk'!AL120/'Population at Risk'!AL$5","v":4.8617488475514638E-3},{"$f":"'Population at Risk'!AM120/'Population at Risk'!AM$5","v":7.0475310171409207E-3},{"$f":"'Population at Risk'!AN120/'Population at Risk'!AN$5","v":4.6443909459047148E-3},{"$f":"'Population at Risk'!AO120/'Population at Risk'!AO$5","v":4.6443909459047148E-3},{"$f":"'Population at Risk'!AP120/'Population at Risk'!AP$5","v":4.5637543313079279E-3},{"$f":"'Population at Risk'!AQ120/'Population at Risk'!AQ$5","v":5.2675267829200506E-3},{"$f":"'Population at Risk'!AR120/'Population at Risk'!AR$5","v":5.1133368370411018E-3},{"$f":"'Population at Risk'!AS120/'Population at Risk'!AS$5","v":3.9649443860744638E-3},{"$f":"'Population at Risk'!AT120/'Population at Risk'!AT$5","v":6.0426036444219649E-4},{"$f":"'Population at Risk'!AU120/'Population at Risk'!AU$5","v":6.0426036444219649E-4},{"$f":"'Population at Risk'!AV120/'Population at Risk'!AV$5","v":6.9903229334481029E-3},{"$f":"'Population at Risk'!AW120/'Population at Risk'!AW$5","v":6.6321215262168083E-3},{"$f":"'Population at Risk'!AX120/'Population at Risk'!AX$5","v":4.3690565570812592E-3},{"$f":"'Population at Risk'!AY120/'Population at Risk'!AY$5","v":5.0258593903044014E-3},{"$f":"'Population at Risk'!AZ120/'Population at Risk'!AZ$5","v":4.8352015671748808E-3},{"$f":"'Population at Risk'!BA120/'Population at Risk'!BA$5","v":6.6929396586792632E-3},{"$f":"'Population at Risk'!BB120/'Population at Risk'!BB$5","v":7.0385812764302289E-3},{"$f":"'Population at Risk'!BC120/'Population at Risk'!BC$5","v":7.0541291351260329E-3},118]
[null,"Male 20-24",{"$f":"'Population at Risk'!C121/'Population at Risk'!C$5","v":1.401368724964464E-2},{"$f":"'Population at Risk'!D121/'Population at Risk'!D$5","v":8.1806634749722381E-3},{"$f":"'Population at Risk'!E121/'Population at Risk'!E$5","v":3.1217958656721001E-3},{"$f":"'Population at Risk'!F121/'Population at Risk'!F$5","v":6.0589007717277753E-3},{"$f":"'Population at Risk'!G121/'Population at Risk'!G$5","v":6.1941464781437887E-3},{"$f":"'Population at Risk'!H121/'Population at Risk'!H$5","v":7.7970016225909376E-3},{"$f":"'Population at Risk'!I121/'Population at Risk'!I$5","v":5.8659451191238636E-3},{"$f":"'Population at Risk'!J121/'Population at Risk'!J$5","v":8.8870123903897705E-3},{"$f":"'Population at Risk'!K121/'Population at Risk'!K$5","v":9.0853843756173221E-3},{"$f":"'Population at Risk'!L121/'Population at Risk'!L$5","v":8.2925292777046074E-3},{"$f":"'Population at Risk'!M121/'Population at Risk'!M$5","v":8.2925292777046074E-3},{"$f":"'Population at Risk'!N121/'Population at Risk'!N$5","v":1.605561730631145E-2},{"$f":"'Population at Risk'!O121/'Population at Risk'!O$5","v":9.0942540399909077E-3},{"$f":"'Population at Risk'!P121/'Population at Risk'!P$5","v":7.9104622389693756E-3},{"$f":"'Population at Risk'!Q121/'Population at Risk'!Q$5","v":1.0831115321611158E-2},{"$f":"'Population at Risk'!R121/'Population at Risk'!R$5","v":4.6032231096123132E-3},{"$f":"'Population at Risk'!S121/'Population at Risk'!S$5","v":7.7274014630779589E-3},{"$f":"'Population at Risk'!T121/'Population at Risk'!T$5","v":7.1090268293342333E-3},{"$f":"'Population at Risk'!U121/'Population at Risk'!U$5","v":7.8603153219975793E-3},{"$f":"'Population at Risk'!V121/'Population at Risk'!V$5","v":8.7658416103616986E-3},{"$f":"'Population at Risk'!W121/'Population at Risk'!W$5","v":6.3326151835374784E-3},{"$f":"'Population at Risk'!X121/'Population at Risk'!X$5","v":6.3326151835374784E-3},{"$f":"'Population at Risk'!Y121/'Population at Risk'!Y$5","v":8.8589446337233556E-3},{"$f":"'Population at Risk'!Z121/'Population at Risk'!Z$5","v":6.039720113486375E-3},{"$f":"'Population at Risk'!AA121/'Population at Risk'!AA$5","v":7.3070093309600256E-3},{"$f":"'Population at Risk'!AB121/'Population at Risk'!AB$5","v":7.9478829400342864E-3},{"$f":"'Population at Risk'!AC121/'Population at Risk'!AC$5","v":6.4584874680864192E-3},{"$f":"'Population at Risk'!AD121/'Population at Risk'!AD$5","v":8.0018299505165581E-3},{"$f":"'Population at Risk'!AE121/'Population at Risk'!AE$5","v":8.6873053054419523E-3},{"$f":"'Population at Risk'!AF121/'Population at Risk'!AF$5","v":4.8999795302418795E-3},{"$f":"'Population at Risk'!AG121/'Population at Risk'!AG$5","v":8.6873053054419523E-3},{"$f":"'Population at Risk'!AH121/'Population at Risk'!AH$5","v":8.9564303502133319E-3},{"$f":"'Population at Risk'!AI121/'Population at Risk'!AI$5","v":8.5874774047830262E-3},{"$f":"'Population at Risk'!AJ121/'Population at Risk'!AJ$5","v":1.1502258104567788E-2},{"$f":"'Population at Risk'!AK121/'Population at Risk'!AK$5","v":6.7242887257655511E-3},{"$f":"'Population at Risk'!AL121/'Population at Risk'!AL$5","v":6.10101816163321E-3},{"$f":"'Population at Risk'!AM121/'Population at Risk'!AM$5","v":9.0269596746011243E-3},{"$f":"'Population at Risk'!AN121/'Population at Risk'!AN$5","v":6.3080533742884935E-3},{"$f":"'Population at Risk'!AO121/'Population at Risk'!AO$5","v":6.3080533742884935E-3},{"$f":"'Population at Risk'!AP121/'Population at Risk'!AP$5","v":8.0346095990657986E-3},{"$f":"'Population at Risk'!AQ121/'Population at Risk'!AQ$5","v":7.0911808829378885E-3},{"$f":"'Population at Risk'!AR121/'Population at Risk'!AR$5","v":7.7616192971487847E-3},{"$f":"'Population at Risk'!AS121/'Population at Risk'!AS$5","v":5.8659451191238636E-3},{"$f":"'Population at Risk'!AT121/'Population at Risk'!AT$5","v":3.1723669133215315E-3},{"$f":"'Population at Risk'!AU121/'Population at Risk'!AU$5","v":3.1723669133215315E-3},{"$f":"'Population at Risk'!AV121/'Population at Risk'!AV$5","v":8.6997944296340092E-3},{"$f":"'Population at Risk'!AW121/'Population at Risk'!AW$5","v":8.8739149031154055E-3},{"$f":"'Population at Risk'!AX121/'Population at Risk'!AX$5","v":8.6826330308979946E-3},{"$f":"'Population at Risk'!AY121/'Population at Risk'!AY$5","v":8.4401936409760001E-3},{"$f":"'Population at Risk'!AZ121/'Population at Risk'!AZ$5","v":1.0714284732060679E-2},{"$f":"'Population at Risk'!BA121/'Population at Risk'!BA$5","v":9.5859427358442276E-3},{"$f":"'Population at Risk'!BB121/'Population at Risk'!BB$5","v":9.8992156851078345E-3},{"$f":"'Population at Risk'!BC121/'Population at Risk'!BC$5","v":7.8603153219975793E-3},119]
[null,"Male 25-29",{"$f":"'Population at Risk'!C122/'Population at Risk'!C$5","v":1.4196593881284135E-2},{"$f":"'Population at Risk'!D122/'Population at Risk'!D$5","v":8.2587895173579055E-3},{"$f":"'Population at Risk'!E122/'Population at Risk'!E$5","v":3.1118280192045694E-3},{"$f":"'Population at Risk'!F122/'Population at Risk'!F$5","v":6.01164710835382E-3},{"$f":"'Population at Risk'!G122/'Population at Risk'!G$5","v":4.8065492914913582E-3},{"$f":"'Population at Risk'!H122/'Population at Risk'!H$5","v":6.4684112184386989E-3},{"$f":"'Population at Risk'!I122/'Population at Risk'!I$5","v":5.2351145494515111E-3},{"$f":"'Population at Risk'!J122/'Population at Risk'!J$5","v":7.606072057046556E-3},{"$f":"'Population at Risk'!K122/'Population at Risk'!K$5","v":7.3478766095644195E-3},{"$f":"'Population at Risk'!L122/'Population at Risk'!L$5","v":5.7267740570799202E-3},{"$f":"'Population at Risk'!M122/'Population at Risk'!M$5","v":5.7267740570799202E-3},{"$f":"'Population at Risk'!N122/'Population at Risk'!N$5","v":1.2616541563265238E-2},{"$f":"'Population at Risk'!O122/'Population at Risk'!O$5","v":7.4163411327795459E-3},{"$f":"'Population at Risk'!P122/'Population at Risk'!P$5","v":6.3195006186354784E-3},{"$f":"'Population at Risk'!Q122/'Population at Risk'!Q$5","v":9.1574950376636516E-3},{"$f":"'Population at Risk'!R122/'Population at Risk'!R$5","v":3.415807064380686E-3},{"$f":"'Population at Risk'!S122/'Population at Risk'!S$5","v":7.7105829681068556E-3},{"$f":"'Population at Risk'!T122/'Population at Risk'!T$5","v":8.8653840673528755E-3},{"$f":"'Population at Risk'!U122/'Population at Risk'!U$5","v":7.5669742130637383E-3},{"$f":"'Population at Risk'!V122/'Population at Risk'!V$5","v":7.539310561673662E-3},{"$f":"'Population at Risk'!W122/'Population at Risk'!W$5","v":5.7091417048217678E-3},{"$f":"'Population at Risk'!X122/'Population at Risk'!X$5","v":5.7091417048217678E-3},{"$f":"'Population at Risk'!Y122/'Population at Risk'!Y$5","v":7.6029691804670304E-3},{"$f":"'Population at Risk'!Z122/'Population at Risk'!Z$5","v":7.0477748819255713E-3},{"$f":"'Population at Risk'!AA122/'Population at Risk'!AA$5","v":7.0386310620934762E-3},{"$f":"'Population at Risk'!AB122/'Population at Risk'!AB$5","v":7.9299452215171266E-3},{"$f":"'Population at Risk'!AC122/'Population at Risk'!AC$5","v":6.6752545835843122E-3},{"$f":"'Population at Risk'!AD122/'Population at Risk'!AD$5","v":6.5863060372589677E-3},{"$f":"'Population at Risk'!AE122/'Population at Risk'!AE$5","v":7.2750704016482301E-3},{"$f":"'Population at Risk'!AF122/'Population at Risk'!AF$5","v":4.1316354010785877E-3},{"$f":"'Population at Risk'!AG122/'Population at Risk'!AG$5","v":7.2750704016482301E-3},{"$f":"'Population at Risk'!AH122/'Population at Risk'!AH$5","v":7.7452957870124102E-3},{"$f":"'Population at Risk'!AI122/'Population at Risk'!AI$5","v":8.9182423395323101E-3},{"$f":"'Population at Risk'!AJ122/'Population at Risk'!AJ$5","v":1.0265944610802413E-2},{"$f":"'Population at Risk'!AK122/'Population at Risk'!AK$5","v":6.2453291682665482E-3},{"$f":"'Population at Risk'!AL122/'Population at Risk'!AL$5","v":4.828078584784983E-3},{"$f":"'Population at Risk'!AM122/'Population at Risk'!AM$5","v":7.83213975702041E-3},{"$f":"'Population at Risk'!AN122/'Population at Risk'!AN$5","v":6.1167527217383293E-3},{"$f":"'Population at Risk'!AO122/'Population at Risk'!AO$5","v":6.1167527217383293E-3},{"$f":"'Population at Risk'!AP122/'Population at Risk'!AP$5","v":7.6934162543743929E-3},{"$f":"'Population at Risk'!AQ122/'Population at Risk'!AQ$5","v":6.2631969908077626E-3},{"$f":"'Population at Risk'!AR122/'Population at Risk'!AR$5","v":7.2532687962918781E-3},{"$f":"'Population at Risk'!AS122/'Population at Risk'!AS$5","v":5.2351145494515111E-3},{"$f":"'Population at Risk'!AT122/'Population at Risk'!AT$5","v":2.9479870439746828E-3},{"$f":"'Population at Risk'!AU122/'Population at Risk'!AU$5","v":2.9479870439746828E-3},{"$f":"'Population at Risk'!AV122/'Population at Risk'!AV$5","v":7.7140474221964678E-3},{"$f":"'Population at Risk'!AW122/'Population at Risk'!AW$5","v":7.6448473334112697E-3},{"$f":"'Population at Risk'!AX122/'Population at Risk'!AX$5","v":7.6964150246713022E-3},{"$f":"'Population at Risk'!AY122/'Population at Risk'!AY$5","v":7.4369660704265358E-3},{"$f":"'Population at Risk'!AZ122/'Population at Risk'!AZ$5","v":9.2905857615857082E-3},{"$f":"'Population at Risk'!BA122/'Population at Risk'!BA$5","v":8.2209956609172723E-3},{"$f":"'Population at Risk'!BB122/'Population at Risk'!BB$5","v":8.2347653812385492E-3},{"$f":"'Population at Risk'!BC122/'Population at Risk'!BC$5","v":7.5669742130637383E-3},120]
[null,"Male 30-34",{"$f":"'Population at Risk'!C123/'Population at Risk'!C$5","v":1.1281460274973064E-2},{"$f":"'Population at Risk'!D123/'Population at Risk'!D$5","v":6.7307423153600693E-3},{"$f":"'Population at Risk'!E123/'Population at Risk'!E$5","v":2.7699164565937748E-3},{"$f":"'Population at Risk'!F123/'Population at Risk'!F$5","v":6.0792887073226392E-3},{"$f":"'Population at Risk'!G123/'Population at Risk'!G$5","v":5.1102598236460323E-3},{"$f":"'Population at Risk'!H123/'Population at Risk'!H$5","v":6.1590634455459033E-3},{"$f":"'Population at Risk'!I123/'Population at Risk'!I$5","v":4.4516907172272536E-3},{"$f":"'Population at Risk'!J123/'Population at Risk'!J$5","v":6.0278669039994315E-3},{"$f":"'Population at Risk'!K123/'Population at Risk'!K$5","v":6.9681413842639338E-3},{"$f":"'Population at Risk'!L123/'Population at Risk'!L$5","v":5.7498426333420748E-3},{"$f":"'Population at Risk'!M123/'Population at Risk'!M$5","v":5.7498426333420748E-3},{"$f":"'Population at Risk'!N123/'Population at Risk'!N$5","v":9.7037837361191159E-3},{"$f":"'Population at Risk'!O123/'Population at Risk'!O$5","v":7.5820253495756844E-3},{"$f":"'Population at Risk'!P123/'Population at Risk'!P$5","v":5.535010886666936E-3},{"$f":"'Population at Risk'!Q123/'Population at Risk'!Q$5","v":8.9527980897629346E-3},{"$f":"'Population at Risk'!R123/'Population at Risk'!R$5","v":2.9127036983091124E-3},{"$f":"'Population at Risk'!S123/'Population at Risk'!S$5","v":7.3457972687916697E-3},{"$f":"'Population at Risk'!T123/'Population at Risk'!T$5","v":8.0087058392416567E-3},{"$f":"'Population at Risk'!U123/'Population at Risk'!U$5","v":6.2416849441090721E-3},{"$f":"'Population at Risk'!V123/'Population at Risk'!V$5","v":7.5506223554646203E-3},{"$f":"'Population at Risk'!W123/'Population at Risk'!W$5","v":5.5768018414740208E-3},{"$f":"'Population at Risk'!X123/'Population at Risk'!X$5","v":5.5768018414740208E-3},{"$f":"'Population at Risk'!Y123/'Population at Risk'!Y$5","v":6.9176130706860937E-3},{"$f":"'Population at Risk'!Z123/'Population at Risk'!Z$5","v":6.5389439747357142E-3},{"$f":"'Population at Risk'!AA123/'Population at Risk'!AA$5","v":6.7831674390309762E-3},{"$f":"'Population at Risk'!AB123/'Population at Risk'!AB$5","v":6.5873304551119253E-3},{"$f":"'Population at Risk'!AC123/'Population at Risk'!AC$5","v":6.309689134378414E-3},{"$f":"'Population at Risk'!AD123/'Population at Risk'!AD$5","v":6.5146724972766946E-3},{"$f":"'Population at Risk'!AE123/'Population at Risk'!AE$5","v":7.0440263377693942E-3},{"$f":"'Population at Risk'!AF123/'Population at Risk'!AF$5","v":4.1187240404502168E-3},{"$f":"'Population at Risk'!AG123/'Population at Risk'!AG$5","v":7.0440263377693942E-3},{"$f":"'Population at Risk'!AH123/'Population at Risk'!AH$5","v":7.703762211231464E-3},{"$f":"'Population at Risk'!AI123/'Population at Risk'!AI$5","v":8.5034676958096606E-3},{"$f":"'Population at Risk'!AJ123/'Population at Risk'!AJ$5","v":9.9354957499396736E-3},{"$f":"'Population at Risk'!AK123/'Population at Risk'!AK$5","v":5.8109735682179342E-3},{"$f":"'Population at Risk'!AL123/'Population at Risk'!AL$5","v":4.3801125305265821E-3},{"$f":"'Population at Risk'!AM123/'Population at Risk'!AM$5","v":8.0133391229459498E-3},{"$f":"'Population at Risk'!AN123/'Population at Risk'!AN$5","v":4.1758600311867441E-3},{"$f":"'Population at Risk'!AO123/'Population at Risk'!AO$5","v":4.1758600311867441E-3},{"$f":"'Population at Risk'!AP123/'Population at Risk'!AP$5","v":7.6628463884629719E-3},{"$f":"'Population at Risk'!AQ123/'Population at Risk'!AQ$5","v":6.7317038523248785E-3},{"$f":"'Population at Risk'!AR123/'Population at Risk'!AR$5","v":6.8018965112483431E-3},{"$f":"'Population at Risk'!AS123/'Population at Risk'!AS$5","v":4.4516907172272536E-3},{"$f":"'Population at Risk'!AT123/'Population at Risk'!AT$5","v":1.5380801968563563E-3},{"$f":"'Population at Risk'!AU123/'Population at Risk'!AU$5","v":1.5380801968563563E-3},{"$f":"'Population at Risk'!AV123/'Population at Risk'!AV$5","v":7.0581224318061082E-3},{"$f":"'Population at Risk'!AW123/'Population at Risk'!AW$5","v":7.3526875627076549E-3},{"$f":"'Population at Risk'!AX123/'Population at Risk'!AX$5","v":5.3898441610083425E-3},{"$f":"'Population at Risk'!AY123/'Population at Risk'!AY$5","v":6.856716110509131E-3},{"$f":"'Population at Risk'!AZ123/'Population at Risk'!AZ$5","v":8.2019173208040651E-3},{"$f":"'Population at Risk'!BA123/'Population at Risk'!BA$5","v":7.9774827562692479E-3},{"$f":"'Population at Risk'!BB123/'Population at Risk'!BB$5","v":8.8484005926149426E-3},{"$f":"'Population at Risk'!BC123/'Population at Risk'!BC$5","v":6.2416849441090721E-3},121]
[null,"Male 35-39",{"$f":"'Population at Risk'!C124/'Population at Risk'!C$5","v":1.1226732267760357E-2},{"$f":"'Population at Risk'!D124/'Population at Risk'!D$5","v":7.0915203028762853E-3},{"$f":"'Population at Risk'!E124/'Population at Risk'!E$5","v":3.4529408182420746E-3},{"$f":"'Population at Risk'!F124/'Population at Risk'!F$5","v":6.648239265880756E-3},{"$f":"'Population at Risk'!G124/'Population at Risk'!G$5","v":6.3751111130084456E-3},{"$f":"'Population at Risk'!H124/'Population at Risk'!H$5","v":6.9846068422530034E-3},{"$f":"'Population at Risk'!I124/'Population at Risk'!I$5","v":5.571013918039166E-3},{"$f":"'Population at Risk'!J124/'Population at Risk'!J$5","v":6.8210561699494328E-3},{"$f":"'Population at Risk'!K124/'Population at Risk'!K$5","v":9.336766669535132E-3},{"$f":"'Population at Risk'!L124/'Population at Risk'!L$5","v":6.9422947018687956E-3},{"$f":"'Population at Risk'!M124/'Population at Risk'!M$5","v":6.9422947018687956E-3},{"$f":"'Population at Risk'!N124/'Population at Risk'!N$5","v":8.4888014858667867E-3},{"$f":"'Population at Risk'!O124/'Population at Risk'!O$5","v":8.5678546115438483E-3},{"$f":"'Population at Risk'!P124/'Population at Risk'!P$5","v":6.1672482172124132E-3},{"$f":"'Population at Risk'!Q124/'Population at Risk'!Q$5","v":1.1009688949236297E-2},{"$f":"'Population at Risk'!R124/'Population at Risk'!R$5","v":3.3739690502926638E-3},{"$f":"'Population at Risk'!S124/'Population at Risk'!S$5","v":8.2468416524969276E-3},{"$f":"'Population at Risk'!T124/'Population at Risk'!T$5","v":7.8614157913212031E-3},{"$f":"'Population at Risk'!U124/'Population at Risk'!U$5","v":7.774128656233675E-3},{"$f":"'Population at Risk'!V124/'Population at Risk'!V$5","v":9.6693468958868965E-3},{"$f":"'Population at Risk'!W124/'Population at Risk'!W$5","v":6.9993083281696808E-3},{"$f":"'Population at Risk'!X124/'Population at Risk'!X$5","v":6.9993083281696808E-3},{"$f":"'Population at Risk'!Y124/'Population at Risk'!Y$5","v":8.464992935210771E-3},{"$f":"'Population at Risk'!Z124/'Population at Risk'!Z$5","v":6.545992389183776E-3},{"$f":"'Population at Risk'!AA124/'Population at Risk'!AA$5","v":7.4321655454799894E-3},{"$f":"'Population at Risk'!AB124/'Population at Risk'!AB$5","v":7.0929928436791181E-3},{"$f":"'Population at Risk'!AC124/'Population at Risk'!AC$5","v":6.6059282307978501E-3},{"$f":"'Population at Risk'!AD124/'Population at Risk'!AD$5","v":7.9349996643263334E-3},{"$f":"'Population at Risk'!AE124/'Population at Risk'!AE$5","v":8.5154451727701107E-3},{"$f":"'Population at Risk'!AF124/'Population at Risk'!AF$5","v":5.076036995816653E-3},{"$f":"'Population at Risk'!AG124/'Population at Risk'!AG$5","v":8.5154451727701107E-3},{"$f":"'Population at Risk'!AH124/'Population at Risk'!AH$5","v":9.0382929920763497E-3},{"$f":"'Population at Risk'!AI124/'Population at Risk'!AI$5","v":9.1456079634419894E-3},{"$f":"'Population at Risk'!AJ124/'Population at Risk'!AJ$5","v":1.2497729422007706E-2},{"$f":"'Population at Risk'!AK124/'Population at Risk'!AK$5","v":7.0055785892708588E-3},{"$f":"'Population at Risk'!AL124/'Population at Risk'!AL$5","v":4.8044570226018646E-3},{"$f":"'Population at Risk'!AM124/'Population at Risk'!AM$5","v":9.1813383075204386E-3},{"$f":"'Population at Risk'!AN124/'Population at Risk'!AN$5","v":5.4229359201852191E-3},{"$f":"'Population at Risk'!AO124/'Population at Risk'!AO$5","v":5.4229359201852191E-3},{"$f":"'Population at Risk'!AP124/'Population at Risk'!AP$5","v":8.8474142999383151E-3},{"$f":"'Population at Risk'!AQ124/'Population at Risk'!AQ$5","v":6.836513049117832E-3},{"$f":"'Population at Risk'!AR124/'Population at Risk'!AR$5","v":7.5837813211730503E-3},{"$f":"'Population at Risk'!AS124/'Population at Risk'!AS$5","v":5.571013918039166E-3},{"$f":"'Population at Risk'!AT124/'Population at Risk'!AT$5","v":2.7082956385323783E-3},{"$f":"'Population at Risk'!AU124/'Population at Risk'!AU$5","v":2.7082956385323783E-3},{"$f":"'Population at Risk'!AV124/'Population at Risk'!AV$5","v":8.2814857809026393E-3},{"$f":"'Population at Risk'!AW124/'Population at Risk'!AW$5","v":8.8741467076006338E-3},{"$f":"'Population at Risk'!AX124/'Population at Risk'!AX$5","v":5.1992921001511412E-3},{"$f":"'Population at Risk'!AY124/'Population at Risk'!AY$5","v":7.6771599738619783E-3},{"$f":"'Population at Risk'!AZ124/'Population at Risk'!AZ$5","v":8.305835829922054E-3},{"$f":"'Population at Risk'!BA124/'Population at Risk'!BA$5","v":1.0041353220665012E-2},{"$f":"'Population at Risk'!BB124/'Population at Risk'!BB$5","v":9.9139974525641085E-3},{"$f":"'Population at Risk'!BC124/'Population at Risk'!BC$5","v":7.774128656233675E-3},122]
[null,"Male 40-44",{"$f":"'Population at Risk'!C125/'Population at Risk'!C$5","v":9.7704021989217724E-3},{"$f":"'Population at Risk'!D125/'Population at Risk'!D$5","v":6.3056608785840339E-3},{"$f":"'Population at Risk'!E125/'Population at Risk'!E$5","v":3.2423280556526705E-3},{"$f":"'Population at Risk'!F125/'Population at Risk'!F$5","v":6.2800957234704202E-3},{"$f":"'Population at Risk'!G125/'Population at Risk'!G$5","v":6.0876392591062076E-3},{"$f":"'Population at Risk'!H125/'Population at Risk'!H$5","v":8.1470844106056647E-3},{"$f":"'Population at Risk'!I125/'Population at Risk'!I$5","v":6.066739732779939E-3},{"$f":"'Population at Risk'!J125/'Population at Risk'!J$5","v":7.3450330499455485E-3},{"$f":"'Population at Risk'!K125/'Population at Risk'!K$5","v":1.0139145055198308E-2},{"$f":"'Population at Risk'!L125/'Population at Risk'!L$5","v":8.2864411228689254E-3},{"$f":"'Population at Risk'!M125/'Population at Risk'!M$5","v":8.2864411228689254E-3},{"$f":"'Population at Risk'!N125/'Population at Risk'!N$5","v":7.969290991015697E-3},{"$f":"'Population at Risk'!O125/'Population at Risk'!O$5","v":9.5378004166242862E-3},{"$f":"'Population at Risk'!P125/'Population at Risk'!P$5","v":6.9207129315324821E-3},{"$f":"'Population at Risk'!Q125/'Population at Risk'!Q$5","v":1.1340807413874983E-2},{"$f":"'Population at Risk'!R125/'Population at Risk'!R$5","v":4.4929738609424917E-3},{"$f":"'Population at Risk'!S125/'Population at Risk'!S$5","v":8.1970638502996147E-3},{"$f":"'Population at Risk'!T125/'Population at Risk'!T$5","v":6.7300681313155692E-3},{"$f":"'Population at Risk'!U125/'Population at Risk'!U$5","v":1.0894729595707756E-2},{"$f":"'Population at Risk'!V125/'Population at Risk'!V$5","v":1.047331506475839E-2},{"$f":"'Population at Risk'!W125/'Population at Risk'!W$5","v":7.6772074398568169E-3},{"$f":"'Population at Risk'!X125/'Population at Risk'!X$5","v":7.6772074398568169E-3},{"$f":"'Population at Risk'!Y125/'Population at Risk'!Y$5","v":9.1499027318097045E-3},{"$f":"'Population at Risk'!Z125/'Population at Risk'!Z$5","v":5.0499790600575288E-3},{"$f":"'Population at Risk'!AA125/'Population at Risk'!AA$5","v":7.1411601535340558E-3},{"$f":"'Population at Risk'!AB125/'Population at Risk'!AB$5","v":6.2774674855995711E-3},{"$f":"'Population at Risk'!AC125/'Population at Risk'!AC$5","v":5.7309896010007922E-3},{"$f":"'Population at Risk'!AD125/'Population at Risk'!AD$5","v":7.7973985140778997E-3},{"$f":"'Population at Risk'!AE125/'Population at Risk'!AE$5","v":8.4432803831703627E-3},{"$f":"'Population at Risk'!AF125/'Population at Risk'!AF$5","v":4.3154581625672516E-3},{"$f":"'Population at Risk'!AG125/'Population at Risk'!AG$5","v":8.4432803831703627E-3},{"$f":"'Population at Risk'!AH125/'Population at Risk'!AH$5","v":9.8819648216938658E-3},{"$f":"'Population at Risk'!AI125/'Population at Risk'!AI$5","v":8.70322416264371E-3},{"$f":"'Population at Risk'!AJ125/'Population at Risk'!AJ$5","v":1.2455412053761628E-2},{"$f":"'Population at Risk'!AK125/'Population at Risk'!AK$5","v":6.0584724709788753E-3},{"$f":"'Population at Risk'!AL125/'Population at Risk'!AL$5","v":5.9199196812490633E-3},{"$f":"'Population at Risk'!AM125/'Population at Risk'!AM$5","v":1.0154539388023359E-2},{"$f":"'Population at Risk'!AN125/'Population at Risk'!AN$5","v":7.6824925535957265E-3},{"$f":"'Population at Risk'!AO125/'Population at Risk'!AO$5","v":7.6824925535957265E-3},{"$f":"'Population at Risk'!AP125/'Population at Risk'!AP$5","v":6.5898882322549396E-3},{"$f":"'Population at Risk'!AQ125/'Population at Risk'!AQ$5","v":7.2470196063396889E-3},{"$f":"'Population at Risk'!AR125/'Population at Risk'!AR$5","v":7.5071016732950139E-3},{"$f":"'Population at Risk'!AS125/'Population at Risk'!AS$5","v":6.066739732779939E-3},{"$f":"'Population at Risk'!AT125/'Population at Risk'!AT$5","v":2.3800173793163326E-3},{"$f":"'Population at Risk'!AU125/'Population at Risk'!AU$5","v":2.3800173793163326E-3},{"$f":"'Population at Risk'!AV125/'Population at Risk'!AV$5","v":9.7248304455742427E-3},{"$f":"'Population at Risk'!AW125/'Population at Risk'!AW$5","v":9.5717629836922068E-3},{"$f":"'Population at Risk'!AX125/'Population at Risk'!AX$5","v":5.5459115734945502E-3},{"$f":"'Population at Risk'!AY125/'Population at Risk'!AY$5","v":7.5723209421154208E-3},{"$f":"'Population at Risk'!AZ125/'Population at Risk'!AZ$5","v":7.2936974665792536E-3},{"$f":"'Population at Risk'!BA125/'Population at Risk'!BA$5","v":9.3927192238021772E-3},{"$f":"'Population at Risk'!BB125/'Population at Risk'!BB$5","v":1.0713852873365459E-2},{"$f":"'Population at Risk'!BC125/'Population at Risk'!BC$5","v":1.0894729595707756E-2},123]
[null,"Male 45-49",{"$f":"'Population at Risk'!C126/'Population at Risk'!C$5","v":1.1286069145823693E-2},{"$f":"'Population at Risk'!D126/'Population at Risk'!D$5","v":7.2905758137629759E-3},{"$f":"'Population at Risk'!E126/'Population at Risk'!E$5","v":3.7572150016240082E-3},{"$f":"'Population at Risk'!F126/'Population at Risk'!F$5","v":7.8467426985354659E-3},{"$f":"'Population at Risk'!G126/'Population at Risk'!G$5","v":9.1633160083911761E-3},{"$f":"'Population at Risk'!H126/'Population at Risk'!H$5","v":1.1380705688283341E-2},{"$f":"'Population at Risk'!I126/'Population at Risk'!I$5","v":7.8599644154103542E-3},{"$f":"'Population at Risk'!J126/'Population at Risk'!J$5","v":9.8452666821465615E-3},{"$f":"'Population at Risk'!K126/'Population at Risk'!K$5","v":1.4101632851606778E-2},{"$f":"'Population at Risk'!L126/'Population at Risk'!L$5","v":1.0856940404597384E-2},{"$f":"'Population at Risk'!M126/'Population at Risk'!M$5","v":1.0856940404597384E-2},{"$f":"'Population at Risk'!N126/'Population at Risk'!N$5","v":1.0310888066036507E-2},{"$f":"'Population at Risk'!O126/'Population at Risk'!O$5","v":1.2961848887715599E-2},{"$f":"'Population at Risk'!P126/'Population at Risk'!P$5","v":8.5933500440438029E-3},{"$f":"'Population at Risk'!Q126/'Population at Risk'!Q$5","v":1.4051572209758745E-2},{"$f":"'Population at Risk'!R126/'Population at Risk'!R$5","v":5.2394206926426358E-3},{"$f":"'Population at Risk'!S126/'Population at Risk'!S$5","v":9.5651959474661076E-3},{"$f":"'Population at Risk'!T126/'Population at Risk'!T$5","v":6.7176460502029927E-3},{"$f":"'Population at Risk'!U126/'Population at Risk'!U$5","v":1.3999359117631173E-2},{"$f":"'Population at Risk'!V126/'Population at Risk'!V$5","v":1.3476865644681394E-2},{"$f":"'Population at Risk'!W126/'Population at Risk'!W$5","v":9.5708243141174945E-3},{"$f":"'Population at Risk'!X126/'Population at Risk'!X$5","v":9.5708243141174945E-3},{"$f":"'Population at Risk'!Y126/'Population at Risk'!Y$5","v":1.1946541362824109E-2},{"$f":"'Population at Risk'!Z126/'Population at Risk'!Z$5","v":5.8055920387763138E-3},{"$f":"'Population at Risk'!AA126/'Population at Risk'!AA$5","v":8.8987148400666866E-3},{"$f":"'Population at Risk'!AB126/'Population at Risk'!AB$5","v":7.5230298593033425E-3},{"$f":"'Population at Risk'!AC126/'Population at Risk'!AC$5","v":6.9086978301575661E-3},{"$f":"'Population at Risk'!AD126/'Population at Risk'!AD$5","v":1.0691588682400993E-2},{"$f":"'Population at Risk'!AE126/'Population at Risk'!AE$5","v":1.1228928076505069E-2},{"$f":"'Population at Risk'!AF126/'Population at Risk'!AF$5","v":5.7392348856759069E-3},{"$f":"'Population at Risk'!AG126/'Population at Risk'!AG$5","v":1.1228928076505069E-2},{"$f":"'Population at Risk'!AH126/'Population at Risk'!AH$5","v":1.276641564898388E-2},{"$f":"'Population at Risk'!AI126/'Population at Risk'!AI$5","v":9.7845168815284562E-3},{"$f":"'Population at Risk'!AJ126/'Population at Risk'!AJ$5","v":1.5732515716507231E-2},{"$f":"'Population at Risk'!AK126/'Population at Risk'!AK$5","v":8.5389704097470626E-3},{"$f":"'Population at Risk'!AL126/'Population at Risk'!AL$5","v":8.6003393078274582E-3},{"$f":"'Population at Risk'!AM126/'Population at Risk'!AM$5","v":1.249647996650494E-2},{"$f":"'Population at Risk'!AN126/'Population at Risk'!AN$5","v":8.6053430522939137E-3},{"$f":"'Population at Risk'!AO126/'Population at Risk'!AO$5","v":8.6053430522939137E-3},{"$f":"'Population at Risk'!AP126/'Population at Risk'!AP$5","v":8.6757053503737393E-3},{"$f":"'Population at Risk'!AQ126/'Population at Risk'!AQ$5","v":9.1140005794934885E-3},{"$f":"'Population at Risk'!AR126/'Population at Risk'!AR$5","v":9.3612384442226457E-3},{"$f":"'Population at Risk'!AS126/'Population at Risk'!AS$5","v":7.8599644154103542E-3},{"$f":"'Population at Risk'!AT126/'Population at Risk'!AT$5","v":1.1609202739825187E-3},{"$f":"'Population at Risk'!AU126/'Population at Risk'!AU$5","v":1.1609202739825187E-3},{"$f":"'Population at Risk'!AV126/'Population at Risk'!AV$5","v":1.3516879197882296E-2},{"$f":"'Population at Risk'!AW126/'Population at Risk'!AW$5","v":1.3065685036059625E-2},{"$f":"'Population at Risk'!AX126/'Population at Risk'!AX$5","v":7.1169147627002487E-3},{"$f":"'Population at Risk'!AY126/'Population at Risk'!AY$5","v":9.5745027782808551E-3},{"$f":"'Population at Risk'!AZ126/'Population at Risk'!AZ$5","v":9.3805745113121845E-3},{"$f":"'Population at Risk'!BA126/'Population at Risk'!BA$5","v":1.258209647890283E-2},{"$f":"'Population at Risk'!BB126/'Population at Risk'!BB$5","v":1.2780239945803575E-2},{"$f":"'Population at Risk'!BC126/'Population at Risk'!BC$5","v":1.3999359117631173E-2},124]
[null,"Male 50-54",{"$f":"'Population at Risk'!C127/'Population at Risk'!C$5","v":1.0475138666657719E-2},{"$f":"'Population at Risk'!D127/'Population at Risk'!D$5","v":7.0350649791684795E-3},{"$f":"'Population at Risk'!E127/'Population at Risk'!E$5","v":3.9622636533980316E-3},{"$f":"'Population at Risk'!F127/'Population at Risk'!F$5","v":7.8585245944792128E-3},{"$f":"'Population at Risk'!G127/'Population at Risk'!G$5","v":9.4209192696712504E-3},{"$f":"'Population at Risk'!H127/'Population at Risk'!H$5","v":1.2034363109063353E-2},{"$f":"'Population at Risk'!I127/'Population at Risk'!I$5","v":8.9002538233323124E-3},{"$f":"'Population at Risk'!J127/'Population at Risk'!J$5","v":9.9470791607623489E-3},{"$f":"'Population at Risk'!K127/'Population at Risk'!K$5","v":1.3175634446717027E-2},{"$f":"'Population at Risk'!L127/'Population at Risk'!L$5","v":1.2713308453051858E-2},{"$f":"'Population at Risk'!M127/'Population at Risk'!M$5","v":1.2713308453051858E-2},{"$f":"'Population at Risk'!N127/'Population at Risk'!N$5","v":9.5873169736830684E-3},{"$f":"'Population at Risk'!O127/'Population at Risk'!O$5","v":1.3566515290450422E-2},{"$f":"'Population at Risk'!P127/'Population at Risk'!P$5","v":1.1022565604197529E-2},{"$f":"'Population at Risk'!Q127/'Population at Risk'!Q$5","v":1.5192511833628044E-2},{"$f":"'Population at Risk'!R127/'Population at Risk'!R$5","v":6.3094432284640191E-3},{"$f":"'Population at Risk'!S127/'Population at Risk'!S$5","v":9.8308090332337068E-3},{"$f":"'Population at Risk'!T127/'Population at Risk'!T$5","v":6.4679941038690916E-3},{"$f":"'Population at Risk'!U127/'Population at Risk'!U$5","v":1.5429080899857336E-2},{"$f":"'Population at Risk'!V127/'Population at Risk'!V$5","v":1.3098567661672793E-2},{"$f":"'Population at Risk'!W127/'Population at Risk'!W$5","v":9.9802121749525772E-3},{"$f":"'Population at Risk'!X127/'Population at Risk'!X$5","v":9.9802121749525772E-3},{"$f":"'Population at Risk'!Y127/'Population at Risk'!Y$5","v":1.1776960275118726E-2},{"$f":"'Population at Risk'!Z127/'Population at Risk'!Z$5","v":5.6120723041504358E-3},{"$f":"'Population at Risk'!AA127/'Population at Risk'!AA$5","v":9.1726466288038835E-3},{"$f":"'Population at Risk'!AB127/'Population at Risk'!AB$5","v":7.2630303299810644E-3},{"$f":"'Population at Risk'!AC127/'Population at Risk'!AC$5","v":7.2239899713584547E-3},{"$f":"'Population at Risk'!AD127/'Population at Risk'!AD$5","v":1.178403835586209E-2},{"$f":"'Population at Risk'!AE127/'Population at Risk'!AE$5","v":1.2665916774407466E-2},{"$f":"'Population at Risk'!AF127/'Population at Risk'!AF$5","v":7.538368078677758E-3},{"$f":"'Population at Risk'!AG127/'Population at Risk'!AG$5","v":1.2665916774407466E-2},{"$f":"'Population at Risk'!AH127/'Population at Risk'!AH$5","v":1.2959997377599081E-2},{"$f":"'Population at Risk'!AI127/'Population at Risk'!AI$5","v":9.8876669088939686E-3},{"$f":"'Population at Risk'!AJ127/'Population at Risk'!AJ$5","v":1.706786095293272E-2},{"$f":"'Population at Risk'!AK127/'Population at Risk'!AK$5","v":8.2608813351001276E-3},{"$f":"'Population at Risk'!AL127/'Population at Risk'!AL$5","v":8.7217150641879272E-3},{"$f":"'Population at Risk'!AM127/'Population at Risk'!AM$5","v":1.2730129471306901E-2},{"$f":"'Population at Risk'!AN127/'Population at Risk'!AN$5","v":9.7527221259331026E-3},{"$f":"'Population at Risk'!AO127/'Population at Risk'!AO$5","v":9.7527221259331026E-3},{"$f":"'Population at Risk'!AP127/'Population at Risk'!AP$5","v":8.5479126365384465E-3},{"$f":"'Population at Risk'!AQ127/'Population at Risk'!AQ$5","v":9.6208111677970852E-3},{"$f":"'Population at Risk'!AR127/'Population at Risk'!AR$5","v":9.6498221958693925E-3},{"$f":"'Population at Risk'!AS127/'Population at Risk'!AS$5","v":8.9002538233323124E-3},{"$f":"'Population at Risk'!AT127/'Population at Risk'!AT$5","v":3.2148561433362061E-3},{"$f":"'Population at Risk'!AU127/'Population at Risk'!AU$5","v":3.2148561433362061E-3},{"$f":"'Population at Risk'!AV127/'Population at Risk'!AV$5","v":1.50101725187912E-2},{"$f":"'Population at Risk'!AW127/'Population at Risk'!AW$5","v":1.3214110539552675E-2},{"$f":"'Population at Risk'!AX127/'Population at Risk'!AX$5","v":7.8548437127498125E-3},{"$f":"'Population at Risk'!AY127/'Population at Risk'!AY$5","v":9.6525557900603177E-3},{"$f":"'Population at Risk'!AZ127/'Population at Risk'!AZ$5","v":9.0720311742566902E-3},{"$f":"'Population at Risk'!BA127/'Population at Risk'!BA$5","v":1.3247169539815711E-2},{"$f":"'Population at Risk'!BB127/'Population at Risk'!BB$5","v":1.2680990770597216E-2},{"$f":"'Population at Risk'!BC127/'Population at Risk'!BC$5","v":1.5429080899857336E-2},125]
[null,"Male 55-59",{"$f":"'Population at Risk'!C128/'Population at Risk'!C$5","v":1.8159478504567089E-2},{"$f":"'Population at Risk'!D128/'Population at Risk'!D$5","v":1.2200236062574267E-2},{"$f":"'Population at Risk'!E128/'Population at Risk'!E$5","v":6.8766790430029277E-3},{"$f":"'Population at Risk'!F128/'Population at Risk'!F$5","v":1.1690149112700898E-2},{"$f":"'Population at Risk'!G128/'Population at Risk'!G$5","v":1.7575961029122313E-2},{"$f":"'Population at Risk'!H128/'Population at Risk'!H$5","v":1.961487272723135E-2},{"$f":"'Population at Risk'!I128/'Population at Risk'!I$5","v":1.5187565048943098E-2},{"$f":"'Population at Risk'!J128/'Population at Risk'!J$5","v":1.6346164328433589E-2},{"$f":"'Population at Risk'!K128/'Population at Risk'!K$5","v":2.0888953416311553E-2},{"$f":"'Population at Risk'!L128/'Population at Risk'!L$5","v":2.1669056845716187E-2},{"$f":"'Population at Risk'!M128/'Population at Risk'!M$5","v":2.1669056845716187E-2},{"$f":"'Population at Risk'!N128/'Population at Risk'!N$5","v":1.5700877476882008E-2},{"$f":"'Population at Risk'!O128/'Population at Risk'!O$5","v":2.201040092910355E-2},{"$f":"'Population at Risk'!P128/'Population at Risk'!P$5","v":1.6643050444120785E-2},{"$f":"'Population at Risk'!Q128/'Population at Risk'!Q$5","v":2.513443628113133E-2},{"$f":"'Population at Risk'!R128/'Population at Risk'!R$5","v":9.1687580484304879E-3},{"$f":"'Population at Risk'!S128/'Population at Risk'!S$5","v":1.5820210207249372E-2},{"$f":"'Population at Risk'!T128/'Population at Risk'!T$5","v":9.7958425835393131E-3},{"$f":"'Population at Risk'!U128/'Population at Risk'!U$5","v":2.6981735997279401E-2},{"$f":"'Population at Risk'!V128/'Population at Risk'!V$5","v":2.1070500041353319E-2},{"$f":"'Population at Risk'!W128/'Population at Risk'!W$5","v":1.6392814990028259E-2},{"$f":"'Population at Risk'!X128/'Population at Risk'!X$5","v":1.6392814990028259E-2},{"$f":"'Population at Risk'!Y128/'Population at Risk'!Y$5","v":1.9095849160605523E-2},{"$f":"'Population at Risk'!Z128/'Population at Risk'!Z$5","v":8.8817050726249253E-3},{"$f":"'Population at Risk'!AA128/'Population at Risk'!AA$5","v":1.4890539653839463E-2},{"$f":"'Population at Risk'!AB128/'Population at Risk'!AB$5","v":1.2446506312738805E-2},{"$f":"'Population at Risk'!AC128/'Population at Risk'!AC$5","v":1.1567514728357394E-2},{"$f":"'Population at Risk'!AD128/'Population at Risk'!AD$5","v":2.0435521215217092E-2},{"$f":"'Population at Risk'!AE128/'Population at Risk'!AE$5","v":2.1436316151288746E-2},{"$f":"'Population at Risk'!AF128/'Population at Risk'!AF$5","v":1.2080495974688538E-2},{"$f":"'Population at Risk'!AG128/'Population at Risk'!AG$5","v":2.1436316151288746E-2},{"$f":"'Population at Risk'!AH128/'Population at Risk'!AH$5","v":2.1349012603594227E-2},{"$f":"'Population at Risk'!AI128/'Population at Risk'!AI$5","v":1.5653988619994157E-2},{"$f":"'Population at Risk'!AJ128/'Population at Risk'!AJ$5","v":2.8375679503834433E-2},{"$f":"'Population at Risk'!AK128/'Population at Risk'!AK$5","v":1.3463201919088378E-2},{"$f":"'Population at Risk'!AL128/'Population at Risk'!AL$5","v":1.39651814374286E-2},{"$f":"'Population at Risk'!AM128/'Population at Risk'!AM$5","v":2.0203604500272136E-2},{"$f":"'Population at Risk'!AN128/'Population at Risk'!AN$5","v":1.5887956695489647E-2},{"$f":"'Population at Risk'!AO128/'Population at Risk'!AO$5","v":1.5887956695489647E-2},{"$f":"'Population at Risk'!AP128/'Population at Risk'!AP$5","v":1.2887458678074726E-2},{"$f":"'Population at Risk'!AQ128/'Population at Risk'!AQ$5","v":1.5971385809835408E-2},{"$f":"'Population at Risk'!AR128/'Population at Risk'!AR$5","v":1.5755067237612438E-2},{"$f":"'Population at Risk'!AS128/'Population at Risk'!AS$5","v":1.5187565048943098E-2},{"$f":"'Population at Risk'!AT128/'Population at Risk'!AT$5","v":4.0919363014048152E-3},{"$f":"'Population at Risk'!AU128/'Population at Risk'!AU$5","v":4.0919363014048152E-3},{"$f":"'Population at Risk'!AV128/'Population at Risk'!AV$5","v":2.4956075550860424E-2},{"$f":"'Population at Risk'!AW128/'Population at Risk'!AW$5","v":2.2630431272867884E-2},{"$f":"'Population at Risk'!AX128/'Population at Risk'!AX$5","v":1.3380720499146691E-2},{"$f":"'Population at Risk'!AY128/'Population at Risk'!AY$5","v":1.547704875188299E-2},{"$f":"'Population at Risk'!AZ128/'Population at Risk'!AZ$5","v":1.4092621522334824E-2},{"$f":"'Population at Risk'!BA128/'Population at Risk'!BA$5","v":2.277228961217596E-2},{"$f":"'Population at Risk'!BB128/'Population at Risk'!BB$5","v":2.0034325472623571E-2},{"$f":"'Population at Risk'!BC128/'Population at Risk'!BC$5","v":2.6981735997279401E-2},126]
[null,"Male 60-64",{"$f":"'Population at Risk'!C129/'Population at Risk'!C$5","v":1.4855371224313725E-2},{"$f":"'Population at Risk'!D129/'Population at Risk'!D$5","v":1.0068797183532012E-2},{"$f":"'Population at Risk'!E129/'Population at Risk'!E$5","v":5.7819372479035441E-3},{"$f":"'Population at Risk'!F129/'Population at Risk'!F$5","v":1.1627857021514214E-2},{"$f":"'Population at Risk'!G129/'Population at Risk'!G$5","v":1.6376126051119499E-2},{"$f":"'Population at Risk'!H129/'Population at Risk'!H$5","v":1.7223726337626005E-2},{"$f":"'Population at Risk'!I129/'Population at Risk'!I$5","v":1.4531172520747345E-2},{"$f":"'Population at Risk'!J129/'Population at Risk'!J$5","v":1.3744414792074786E-2},{"$f":"'Population at Risk'!K129/'Population at Risk'!K$5","v":1.9210376802500803E-2},{"$f":"'Population at Risk'!L129/'Population at Risk'!L$5","v":1.9601290636909283E-2},{"$f":"'Population at Risk'!M129/'Population at Risk'!M$5","v":1.9601290636909283E-2},{"$f":"'Population at Risk'!N129/'Population at Risk'!N$5","v":1.3050856278372732E-2},{"$f":"'Population at Risk'!O129/'Population at Risk'!O$5","v":1.8464711342813103E-2},{"$f":"'Population at Risk'!P129/'Population at Risk'!P$5","v":1.3164599386667888E-2},{"$f":"'Population at Risk'!Q129/'Population at Risk'!Q$5","v":1.981651871007091E-2},{"$f":"'Population at Risk'!R129/'Population at Risk'!R$5","v":8.3559248881086359E-3},{"$f":"'Population at Risk'!S129/'Population at Risk'!S$5","v":1.3466820849429264E-2},{"$f":"'Population at Risk'!T129/'Population at Risk'!T$5","v":7.7577813748834828E-3},{"$f":"'Population at Risk'!U129/'Population at Risk'!U$5","v":2.7191710596480019E-2},{"$f":"'Population at Risk'!V129/'Population at Risk'!V$5","v":1.7348091332663348E-2},{"$f":"'Population at Risk'!W129/'Population at Risk'!W$5","v":1.4754833476353748E-2},{"$f":"'Population at Risk'!X129/'Population at Risk'!X$5","v":1.4754833476353748E-2},{"$f":"'Population at Risk'!Y129/'Population at Risk'!Y$5","v":1.5847667239958868E-2},{"$f":"'Population at Risk'!Z129/'Population at Risk'!Z$5","v":7.0703989719798936E-3},{"$f":"'Population at Risk'!AA129/'Population at Risk'!AA$5","v":1.251493634496916E-2},{"$f":"'Population at Risk'!AB129/'Population at Risk'!AB$5","v":1.0215199858914482E-2},{"$f":"'Population at Risk'!AC129/'Population at Risk'!AC$5","v":9.4190809961464377E-3},{"$f":"'Population at Risk'!AD129/'Population at Risk'!AD$5","v":1.8363627146529372E-2},{"$f":"'Population at Risk'!AE129/'Population at Risk'!AE$5","v":1.901452446215025E-2},{"$f":"'Population at Risk'!AF129/'Population at Risk'!AF$5","v":9.1000061541617085E-3},{"$f":"'Population at Risk'!AG129/'Population at Risk'!AG$5","v":1.901452446215025E-2},{"$f":"'Population at Risk'!AH129/'Population at Risk'!AH$5","v":1.853178705244448E-2},{"$f":"'Population at Risk'!AI129/'Population at Risk'!AI$5","v":1.2765575235917816E-2},{"$f":"'Population at Risk'!AJ129/'Population at Risk'!AJ$5","v":2.4913251499553396E-2},{"$f":"'Population at Risk'!AK129/'Population at Risk'!AK$5","v":1.0782093185736731E-2},{"$f":"'Population at Risk'!AL129/'Population at Risk'!AL$5","v":1.2941475577135696E-2},{"$f":"'Population at Risk'!AM129/'Population at Risk'!AM$5","v":1.8118156829961336E-2},{"$f":"'Population at Risk'!AN129/'Population at Risk'!AN$5","v":1.574352072553065E-2},{"$f":"'Population at Risk'!AO129/'Population at Risk'!AO$5","v":1.574352072553065E-2},{"$f":"'Population at Risk'!AP129/'Population at Risk'!AP$5","v":1.1811418438934506E-2},{"$f":"'Population at Risk'!AQ129/'Population at Risk'!AQ$5","v":1.3973070239315717E-2},{"$f":"'Population at Risk'!AR129/'Population at Risk'!AR$5","v":1.3481473792202901E-2},{"$f":"'Population at Risk'!AS129/'Population at Risk'!AS$5","v":1.4531172520747345E-2},{"$f":"'Population at Risk'!AT129/'Population at Risk'!AT$5","v":3.305025474211582E-3},{"$f":"'Population at Risk'!AU129/'Population at Risk'!AU$5","v":3.305025474211582E-3},{"$f":"'Population at Risk'!AV129/'Population at Risk'!AV$5","v":2.1915971801937426E-2},{"$f":"'Population at Risk'!AW129/'Population at Risk'!AW$5","v":1.8990728488889465E-2},{"$f":"'Population at Risk'!AX129/'Population at Risk'!AX$5","v":1.0230615673213669E-2},{"$f":"'Population at Risk'!AY129/'Population at Risk'!AY$5","v":1.3956855494804238E-2},{"$f":"'Population at Risk'!AZ129/'Population at Risk'!AZ$5","v":1.2740756971156939E-2},{"$f":"'Population at Risk'!BA129/'Population at Risk'!BA$5","v":1.8610127435160606E-2},{"$f":"'Population at Risk'!BB129/'Population at Risk'!BB$5","v":1.6414961099127441E-2},{"$f":"'Population at Risk'!BC129/'Population at Risk'!BC$5","v":2.7191710596480019E-2},127]
[null,"Male 65-69",{"$f":"'Population at Risk'!C130/'Population at Risk'!C$5","v":0},{"$f":"'Population at Risk'!D130/'Population at Risk'!D$5","v":0},{"$f":"'Population at Risk'!E130/'Population at Risk'!E$5","v":0},{"$f":"'Population at Risk'!F130/'Population at Risk'!F$5","v":0},{"$f":"'Population at Risk'!G130/'Population at Risk'!G$5","v":0},{"$f":"'Population at Risk'!H130/'Population at Risk'!H$5","v":0},{"$f":"'Population at Risk'!I130/'Population at Risk'!I$5","v":0},{"$f":"'Population at Risk'!J130/'Population at Risk'!J$5","v":0},{"$f":"'Population at Risk'!K130/'Population at Risk'!K$5","v":0},{"$f":"'Population at Risk'!L130/'Population at Risk'!L$5","v":0},{"$f":"'Population at Risk'!M130/'Population at Risk'!M$5","v":0},{"$f":"'Population at Risk'!N130/'Population at Risk'!N$5","v":0},{"$f":"'Population at Risk'!O130/'Population at Risk'!O$5","v":0},{"$f":"'Population at Risk'!P130/'Population at Risk'!P$5","v":0},{"$f":"'Population at Risk'!Q130/'Population at Risk'!Q$5","v":0},{"$f":"'Population at Risk'!R130/'Population at Risk'!R$5","v":0},{"$f":"'Population at Risk'!S130/'Population at Risk'!S$5","v":0},{"$f":"'Population at Risk'!T130/'Population at Risk'!T$5","v":0},{"$f":"'Population at Risk'!U130/'Population at Risk'!U$5","v":0},{"$f":"'Population at Risk'!V130/'Population at Risk'!V$5","v":0},{"$f":"'Population at Risk'!W130/'Population at Risk'!W$5","v":0},{"$f":"'Population at Risk'!X130/'Population at Risk'!X$5","v":0},{"$f":"'Population at Risk'!Y130/'Population at Risk'!Y$5","v":0},{"$f":"'Population at Risk'!Z130/'Population at Risk'!Z$5","v":0},{"$f":"'Population at Risk'!AA130/'Population at Risk'!AA$5","v":0},{"$f":"'Population at Risk'!AB130/'Population at Risk'!AB$5","v":0},{"$f":"'Population at Risk'!AC130/'Population at Risk'!AC$5","v":0},{"$f":"'Population at Risk'!AD130/'Population at Risk'!AD$5","v":0},{"$f":"'Population at Risk'!AE130/'Population at Risk'!AE$5","v":0},{"$f":"'Population at Risk'!AF130/'Population at Risk'!AF$5","v":0},{"$f":"'Population at Risk'!AG130/'Population at Risk'!AG$5","v":0},{"$f":"'Population at Risk'!AH130/'Population at Risk'!AH$5","v":0},{"$f":"'Population at Risk'!AI130/'Population at Risk'!AI$5","v":0},{"$f":"'Population at Risk'!AJ130/'Population at Risk'!AJ$5","v":0},{"$f":"'Population at Risk'!AK130/'Population at Risk'!AK$5","v":0},{"$f":"'Population at Risk'!AL130/'Population at Risk'!AL$5","v":0},{"$f":"'Population at Risk'!AM130/'Population at Risk'!AM$5","v":0},{"$f":"'Population at Risk'!AN130/'Population at Risk'!AN$5","v":0},{"$f":"'Population at Risk'!AO130/'Population at Risk'!AO$5","v":0},{"$f":"'Population at Risk'!AP130/'Population at Risk'!AP$5","v":0},{"$f":"'Population at Risk'!AQ130/'Population at Risk'!AQ$5","v":0},{"$f":"'Population at Risk'!AR130/'Population at Risk'!AR$5","v":0},{"$f":"'Population at Risk'!AS130/'Population at Risk'!AS$5","v":0},{"$f":"'Population at Risk'!AT130/'Population at Risk'!AT$5","v":0},{"$f":"'Population at Risk'!AU130/'Population at Risk'!AU$5","v":0},{"$f":"'Population at Risk'!AV130/'Population at Risk'!AV$5","v":0},{"$f":"'Population at Risk'!AW130/'Population at Risk'!AW$5","v":0},{"$f":"'Population at Risk'!AX130/'Population at Risk'!AX$5","v":0},{"$f":"'Population at Risk'!AY130/'Population at Risk'!AY$5","v":0},{"$f":"'Population at Risk'!AZ130/'Population at Risk'!AZ$5","v":0},{"$f":"'Population at Risk'!BA130/'Population at Risk'!BA$5","v":0},{"$f":"'Population at Risk'!BB130/'Population at Risk'!BB$5","v":0},{"$f":"'Population at Risk'!BC130/'Population at Risk'!BC$5","v":0},128]
[null,"Male 70-74",{"$f":"'Population at Risk'!C131/'Population at Risk'!C$5","v":0},{"$f":"'Population at Risk'!D131/'Population at Risk'!D$5","v":0},{"$f":"'Population at Risk'!E131/'Population at Risk'!E$5","v":0},{"$f":"'Population at Risk'!F131/'Population at Risk'!F$5","v":0},{"$f":"'Population at Risk'!G131/'Population at Risk'!G$5","v":0},{"$f":"'Population at Risk'!H131/'Population at Risk'!H$5","v":0},{"$f":"'Population at Risk'!I131/'Population at Risk'!I$5","v":0},{"$f":"'Population at Risk'!J131/'Population at Risk'!J$5","v":0},{"$f":"'Population at Risk'!K131/'Population at Risk'!K$5","v":0},{"$f":"'Population at Risk'!L131/'Population at Risk'!L$5","v":0},{"$f":"'Population at Risk'!M131/'Population at Risk'!M$5","v":0},{"$f":"'Population at Risk'!N131/'Population at Risk'!N$5","v":0},{"$f":"'Population at Risk'!O131/'Population at Risk'!O$5","v":0},{"$f":"'Population at Risk'!P131/'Population at Risk'!P$5","v":0},{"$f":"'Population at Risk'!Q131/'Population at Risk'!Q$5","v":0},{"$f":"'Population at Risk'!R131/'Population at Risk'!R$5","v":0},{"$f":"'Population at Risk'!S131/'Population at Risk'!S$5","v":0},{"$f":"'Population at Risk'!T131/'Population at Risk'!T$5","v":0},{"$f":"'Population at Risk'!U131/'Population at Risk'!U$5","v":0},{"$f":"'Population at Risk'!V131/'Population at Risk'!V$5","v":0},{"$f":"'Population at Risk'!W131/'Population at Risk'!W$5","v":0},{"$f":"'Population at Risk'!X131/'Population at Risk'!X$5","v":0},{"$f":"'Population at Risk'!Y131/'Population at Risk'!Y$5","v":0},{"$f":"'Population at Risk'!Z131/'Population at Risk'!Z$5","v":0},{"$f":"'Population at Risk'!AA131/'Population at Risk'!AA$5","v":0},{"$f":"'Population at Risk'!AB131/'Population at Risk'!AB$5","v":0},{"$f":"'Population at Risk'!AC131/'Population at Risk'!AC$5","v":0},{"$f":"'Population at Risk'!AD131/'Population at Risk'!AD$5","v":0},{"$f":"'Population at Risk'!AE131/'Population at Risk'!AE$5","v":0},{"$f":"'Population at Risk'!AF131/'Population at Risk'!AF$5","v":0},{"$f":"'Population at Risk'!AG131/'Population at Risk'!AG$5","v":0},{"$f":"'Population at Risk'!AH131/'Population at Risk'!AH$5","v":0},{"$f":"'Population at Risk'!AI131/'Population at Risk'!AI$5","v":0},{"$f":"'Population at Risk'!AJ131/'Population at Risk'!AJ$5","v":0},{"$f":"'Population at Risk'!AK131/'Population at Risk'!AK$5","v":0},{"$f":"'Population at Risk'!AL131/'Population at Risk'!AL$5","v":0},{"$f":"'Population at Risk'!AM131/'Population at Risk'!AM$5","v":0},{"$f":"'Population at Risk'!AN131/'Population at Risk'!AN$5","v":0},{"$f":"'Population at Risk'!AO131/'Population at Risk'!AO$5","v":0},{"$f":"'Population at Risk'!AP131/'Population at Risk'!AP$5","v":0},{"$f":"'Population at Risk'!AQ131/'Population at Risk'!AQ$5","v":0},{"$f":"'Population at Risk'!AR131/'Population at Risk'!AR$5","v":0},{"$f":"'Population at Risk'!AS131/'Population at Risk'!AS$5","v":0},{"$f":"'Population at Risk'!AT131/'Population at Risk'!AT$5","v":0},{"$f":"'Population at Risk'!AU131/'Population at Risk'!AU$5","v":0},{"$f":"'Population at Risk'!AV131/'Population at Risk'!AV$5","v":0},{"$f":"'Population at Risk'!AW131/'Population at Risk'!AW$5","v":0},{"$f":"'Population at Risk'!AX131/'Population at Risk'!AX$5","v":0},{"$f":"'Population at Risk'!AY131/'Population at Risk'!AY$5","v":0},{"$f":"'Population at Risk'!AZ131/'Population at Risk'!AZ$5","v":0},{"$f":"'Population at Risk'!BA131/'Population at Risk'!BA$5","v":0},{"$f":"'Population at Risk'!BB131/'Population at Risk'!BB$5","v":0},{"$f":"'Population at Risk'!BC131/'Population at Risk'!BC$5","v":0},129]
[null,"Male 75-79",{"$f":"'Population at Risk'!C132/'Population at Risk'!C$5","v":0},{"$f":"'Population at Risk'!D132/'Population at Risk'!D$5","v":0},{"$f":"'Population at Risk'!E132/'Population at Risk'!E$5","v":0},{"$f":"'Population at Risk'!F132/'Population at Risk'!F$5","v":0},{"$f":"'Population at Risk'!G132/'Population at Risk'!G$5","v":0},{"$f":"'Population at Risk'!H132/'Population at Risk'!H$5","v":0},{"$f":"'Population at Risk'!I132/'Population at Risk'!I$5","v":0},{"$f":"'Population at Risk'!J132/'Population at Risk'!J$5","v":0},{"$f":"'Population at Risk'!K132/'Population at Risk'!K$5","v":0},{"$f":"'Population at Risk'!L132/'Population at Risk'!L$5","v":0},{"$f":"'Population at Risk'!M132/'Population at Risk'!M$5","v":0},{"$f":"'Population at Risk'!N132/'Population at Risk'!N$5","v":0},{"$f":"'Population at Risk'!O132/'Population at Risk'!O$5","v":0},{"$f":"'Population at Risk'!P132/'Population at Risk'!P$5","v":0},{"$f":"'Population at Risk'!Q132/'Population at Risk'!Q$5","v":0},{"$f":"'Population at Risk'!R132/'Population at Risk'!R$5","v":0},{"$f":"'Population at Risk'!S132/'Population at Risk'!S$5","v":0},{"$f":"'Population at Risk'!T132/'Population at Risk'!T$5","v":0},{"$f":"'Population at Risk'!U132/'Population at Risk'!U$5","v":0},{"$f":"'Population at Risk'!V132/'Population at Risk'!V$5","v":0},{"$f":"'Population at Risk'!W132/'Population at Risk'!W$5","v":0},{"$f":"'Population at Risk'!X132/'Population at Risk'!X$5","v":0},{"$f":"'Population at Risk'!Y132/'Population at Risk'!Y$5","v":0},{"$f":"'Population at Risk'!Z132/'Population at Risk'!Z$5","v":0},{"$f":"'Population at Risk'!AA132/'Population at Risk'!AA$5","v":0},{"$f":"'Population at Risk'!AB132/'Population at Risk'!AB$5","v":0},{"$f":"'Population at Risk'!AC132/'Population at Risk'!AC$5","v":0},{"$f":"'Population at Risk'!AD132/'Population at Risk'!AD$5","v":0},{"$f":"'Population at Risk'!AE132/'Population at Risk'!AE$5","v":0},{"$f":"'Population at Risk'!AF132/'Population at Risk'!AF$5","v":0},{"$f":"'Population at Risk'!AG132/'Population at Risk'!AG$5","v":0},{"$f":"'Population at Risk'!AH132/'Population at Risk'!AH$5","v":0},{"$f":"'Population at Risk'!AI132/'Population at Risk'!AI$5","v":0},{"$f":"'Population at Risk'!AJ132/'Population at Risk'!AJ$5","v":0},{"$f":"'Population at Risk'!AK132/'Population at Risk'!AK$5","v":0},{"$f":"'Population at Risk'!AL132/'Population at Risk'!AL$5","v":0},{"$f":"'Population at Risk'!AM132/'Population at Risk'!AM$5","v":0},{"$f":"'Population at Risk'!AN132/'Population at Risk'!AN$5","v":0},{"$f":"'Population at Risk'!AO132/'Population at Risk'!AO$5","v":0},{"$f":"'Population at Risk'!AP132/'Population at Risk'!AP$5","v":0},{"$f":"'Population at Risk'!AQ132/'Population at Risk'!AQ$5","v":0},{"$f":"'Population at Risk'!AR132/'Population at Risk'!AR$5","v":0},{"$f":"'Population at Risk'!AS132/'Population at Risk'!AS$5","v":0},{"$f":"'Population at Risk'!AT132/'Population at Risk'!AT$5","v":0},{"$f":"'Population at Risk'!AU132/'Population at Risk'!AU$5","v":0},{"$f":"'Population at Risk'!AV132/'Population at Risk'!AV$5","v":0},{"$f":"'Population at Risk'!AW132/'Population at Risk'!AW$5","v":0},{"$f":"'Population at Risk'!AX132/'Population at Risk'!AX$5","v":0},{"$f":"'Population at Risk'!AY132/'Population at Risk'!AY$5","v":0},{"$f":"'Population at Risk'!AZ132/'Population at Risk'!AZ$5","v":0},{"$f":"'Population at Risk'!BA132/'Population at Risk'!BA$5","v":0},{"$f":"'Population at Risk'!BB132/'Population at Risk'!BB$5","v":0},{"$f":"'Population at Risk'!BC132/'Population at Risk'!BC$5","v":0},130]
[null,"Male 80-84",{"$f":"'Population at Risk'!C133/'Population at Risk'!C$5","v":0},{"$f":"'Population at Risk'!D133/'Population at Risk'!D$5","v":0},{"$f":"'Population at Risk'!E133/'Population at Risk'!E$5","v":0},{"$f":"'Population at Risk'!F133/'Population at Risk'!F$5","v":0},{"$f":"'Population at Risk'!G133/'Population at Risk'!G$5","v":0},{"$f":"'Population at Risk'!H133/'Population at Risk'!H$5","v":0},{"$f":"'Population at Risk'!I133/'Population at Risk'!I$5","v":0},{"$f":"'Population at Risk'!J133/'Population at Risk'!J$5","v":0},{"$f":"'Population at Risk'!K133/'Population at Risk'!K$5","v":0},{"$f":"'Population at Risk'!L133/'Population at Risk'!L$5","v":0},{"$f":"'Population at Risk'!M133/'Population at Risk'!M$5","v":0},{"$f":"'Population at Risk'!N133/'Population at Risk'!N$5","v":0},{"$f":"'Population at Risk'!O133/'Population at Risk'!O$5","v":0},{"$f":"'Population at Risk'!P133/'Population at Risk'!P$5","v":0},{"$f":"'Population at Risk'!Q133/'Population at Risk'!Q$5","v":0},{"$f":"'Population at Risk'!R133/'Population at Risk'!R$5","v":0},{"$f":"'Population at Risk'!S133/'Population at Risk'!S$5","v":0},{"$f":"'Population at Risk'!T133/'Population at Risk'!T$5","v":0},{"$f":"'Population at Risk'!U133/'Population at Risk'!U$5","v":0},{"$f":"'Population at Risk'!V133/'Population at Risk'!V$5","v":0},{"$f":"'Population at Risk'!W133/'Population at Risk'!W$5","v":0},{"$f":"'Population at Risk'!X133/'Population at Risk'!X$5","v":0},{"$f":"'Population at Risk'!Y133/'Population at Risk'!Y$5","v":0},{"$f":"'Population at Risk'!Z133/'Population at Risk'!Z$5","v":0},{"$f":"'Population at Risk'!AA133/'Population at Risk'!AA$5","v":0},{"$f":"'Population at Risk'!AB133/'Population at Risk'!AB$5","v":0},{"$f":"'Population at Risk'!AC133/'Population at Risk'!AC$5","v":0},{"$f":"'Population at Risk'!AD133/'Population at Risk'!AD$5","v":0},{"$f":"'Population at Risk'!AE133/'Population at Risk'!AE$5","v":0},{"$f":"'Population at Risk'!AF133/'Population at Risk'!AF$5","v":0},{"$f":"'Population at Risk'!AG133/'Population at Risk'!AG$5","v":0},{"$f":"'Population at Risk'!AH133/'Population at Risk'!AH$5","v":0},{"$f":"'Population at Risk'!AI133/'Population at Risk'!AI$5","v":0},{"$f":"'Population at Risk'!AJ133/'Population at Risk'!AJ$5","v":0},{"$f":"'Population at Risk'!AK133/'Population at Risk'!AK$5","v":0},{"$f":"'Population at Risk'!AL133/'Population at Risk'!AL$5","v":0},{"$f":"'Population at Risk'!AM133/'Population at Risk'!AM$5","v":0},{"$f":"'Population at Risk'!AN133/'Population at Risk'!AN$5","v":0},{"$f":"'Population at Risk'!AO133/'Population at Risk'!AO$5","v":0},{"$f":"'Population at Risk'!AP133/'Population at Risk'!AP$5","v":0},{"$f":"'Population at Risk'!AQ133/'Population at Risk'!AQ$5","v":0},{"$f":"'Population at Risk'!AR133/'Population at Risk'!AR$5","v":0},{"$f":"'Population at Risk'!AS133/'Population at Risk'!AS$5","v":0},{"$f":"'Population at Risk'!AT133/'Population at Risk'!AT$5","v":0},{"$f":"'Population at Risk'!AU133/'Population at Risk'!AU$5","v":0},{"$f":"'Population at Risk'!AV133/'Population at Risk'!AV$5","v":0},{"$f":"'Population at Risk'!AW133/'Population at Risk'!AW$5","v":0},{"$f":"'Population at Risk'!AX133/'Population at Risk'!AX$5","v":0},{"$f":"'Population at Risk'!AY133/'Population at Risk'!AY$5","v":0},{"$f":"'Population at Risk'!AZ133/'Population at Risk'!AZ$5","v":0},{"$f":"'Population at Risk'!BA133/'Population at Risk'!BA$5","v":0},{"$f":"'Population at Risk'!BB133/'Population at Risk'!BB$5","v":0},{"$f":"'Population at Risk'!BC133/'Population at Risk'!BC$5","v":0},131]
[null,"Male 85-89",{"$f":"'Population at Risk'!C134/'Population at Risk'!C$5","v":0},{"$f":"'Population at Risk'!D134/'Population at Risk'!D$5","v":0},{"$f":"'Population at Risk'!E134/'Population at Risk'!E$5","v":0},{"$f":"'Population at Risk'!F134/'Population at Risk'!F$5","v":0},{"$f":"'Population at Risk'!G134/'Population at Risk'!G$5","v":0},{"$f":"'Population at Risk'!H134/'Population at Risk'!H$5","v":0},{"$f":"'Population at Risk'!I134/'Population at Risk'!I$5","v":0},{"$f":"'Population at Risk'!J134/'Population at Risk'!J$5","v":0},{"$f":"'Population at Risk'!K134/'Population at Risk'!K$5","v":0},{"$f":"'Population at Risk'!L134/'Population at Risk'!L$5","v":0},{"$f":"'Population at Risk'!M134/'Population at Risk'!M$5","v":0},{"$f":"'Population at Risk'!N134/'Population at Risk'!N$5","v":0},{"$f":"'Population at Risk'!O134/'Population at Risk'!O$5","v":0},{"$f":"'Population at Risk'!P134/'Population at Risk'!P$5","v":0},{"$f":"'Population at Risk'!Q134/'Population at Risk'!Q$5","v":0},{"$f":"'Population at Risk'!R134/'Population at Risk'!R$5","v":0},{"$f":"'Population at Risk'!S134/'Population at Risk'!S$5","v":0},{"$f":"'Population at Risk'!T134/'Population at Risk'!T$5","v":0},{"$f":"'Population at Risk'!U134/'Population at Risk'!U$5","v":0},{"$f":"'Population at Risk'!V134/'Population at Risk'!V$5","v":0},{"$f":"'Population at Risk'!W134/'Population at Risk'!W$5","v":0},{"$f":"'Population at Risk'!X134/'Population at Risk'!X$5","v":0},{"$f":"'Population at Risk'!Y134/'Population at Risk'!Y$5","v":0},{"$f":"'Population at Risk'!Z134/'Population at Risk'!Z$5","v":0},{"$f":"'Population at Risk'!AA134/'Population at Risk'!AA$5","v":0},{"$f":"'Population at Risk'!AB134/'Population at Risk'!AB$5","v":0},{"$f":"'Population at Risk'!AC134/'Population at Risk'!AC$5","v":0},{"$f":"'Population at Risk'!AD134/'Population at Risk'!AD$5","v":0},{"$f":"'Population at Risk'!AE134/'Population at Risk'!AE$5","v":0},{"$f":"'Population at Risk'!AF134/'Population at Risk'!AF$5","v":0},{"$f":"'Population at Risk'!AG134/'Population at Risk'!AG$5","v":0},{"$f":"'Population at Risk'!AH134/'Population at Risk'!AH$5","v":0},{"$f":"'Population at Risk'!AI134/'Population at Risk'!AI$5","v":0},{"$f":"'Population at Risk'!AJ134/'Population at Risk'!AJ$5","v":0},{"$f":"'Population at Risk'!AK134/'Population at Risk'!AK$5","v":0},{"$f":"'Population at Risk'!AL134/'Population at Risk'!AL$5","v":0},{"$f":"'Population at Risk'!AM134/'Population at Risk'!AM$5","v":0},{"$f":"'Population at Risk'!AN134/'Population at Risk'!AN$5","v":0},{"$f":"'Population at Risk'!AO134/'Population at Risk'!AO$5","v":0},{"$f":"'Population at Risk'!AP134/'Population at Risk'!AP$5","v":0},{"$f":"'Population at Risk'!AQ134/'Population at Risk'!AQ$5","v":0},{"$f":"'Population at Risk'!AR134/'Population at Risk'!AR$5","v":0},{"$f":"'Population at Risk'!AS134/'Population at Risk'!AS$5","v":0},{"$f":"'Population at Risk'!AT134/'Population at Risk'!AT$5","v":0},{"$f":"'Population at Risk'!AU134/'Population at Risk'!AU$5","v":0},{"$f":"'Population at Risk'!AV134/'Population at Risk'!AV$5","v":0},{"$f":"'Population at Risk'!AW134/'Population at Risk'!AW$5","v":0},{"$f":"'Population at Risk'!AX134/'Population at Risk'!AX$5","v":0},{"$f":"'Population at Risk'!AY134/'Population at Risk'!AY$5","v":0},{"$f":"'Population at Risk'!AZ134/'Population at Risk'!AZ$5","v":0},{"$f":"'Population at Risk'!BA134/'Population at Risk'!BA$5","v":0},{"$f":"'Population at Risk'!BB134/'Population at Risk'!BB$5","v":0},{"$f":"'Population at Risk'!BC134/'Population at Risk'!BC$5","v":0},132]
[null,"Male 90+",{"$f":"'Population at Risk'!C135/'Population at Risk'!C$5","v":0},{"$f":"'Population at Risk'!D135/'Population at Risk'!D$5","v":0},{"$f":"'Population at Risk'!E135/'Population at Risk'!E$5","v":0},{"$f":"'Population at Risk'!F135/'Population at Risk'!F$5","v":0},{"$f":"'Population at Risk'!G135/'Population at Risk'!G$5","v":0},{"$f":"'Population at Risk'!H135/'Population at Risk'!H$5","v":0},{"$f":"'Population at Risk'!I135/'Population at Risk'!I$5","v":0},{"$f":"'Population at Risk'!J135/'Population at Risk'!J$5","v":0},{"$f":"'Population at Risk'!K135/'Population at Risk'!K$5","v":0},{"$f":"'Population at Risk'!L135/'Population at Risk'!L$5","v":0},{"$f":"'Population at Risk'!M135/'Population at Risk'!M$5","v":0},{"$f":"'Population at Risk'!N135/'Population at Risk'!N$5","v":0},{"$f":"'Population at Risk'!O135/'Population at Risk'!O$5","v":0},{"$f":"'Population at Risk'!P135/'Population at Risk'!P$5","v":0},{"$f":"'Population at Risk'!Q135/'Population at Risk'!Q$5","v":0},{"$f":"'Population at Risk'!R135/'Population at Risk'!R$5","v":0},{"$f":"'Population at Risk'!S135/'Population at Risk'!S$5","v":0},{"$f":"'Population at Risk'!T135/'Population at Risk'!T$5","v":0},{"$f":"'Population at Risk'!U135/'Population at Risk'!U$5","v":0},{"$f":"'Population at Risk'!V135/'Population at Risk'!V$5","v":0},{"$f":"'Population at Risk'!W135/'Population at Risk'!W$5","v":0},{"$f":"'Population at Risk'!X135/'Population at Risk'!X$5","v":0},{"$f":"'Population at Risk'!Y135/'Population at Risk'!Y$5","v":0},{"$f":"'Population at Risk'!Z135/'Population at Risk'!Z$5","v":0},{"$f":"'Population at Risk'!AA135/'Population at Risk'!AA$5","v":0},{"$f":"'Population at Risk'!AB135/'Population at Risk'!AB$5","v":0},{"$f":"'Population at Risk'!AC135/'Population at Risk'!AC$5","v":0},{"$f":"'Population at Risk'!AD135/'Population at Risk'!AD$5","v":0},{"$f":"'Population at Risk'!AE135/'Population at Risk'!AE$5","v":0},{"$f":"'Population at Risk'!AF135/'Population at Risk'!AF$5","v":0},{"$f":"'Population at Risk'!AG135/'Population at Risk'!AG$5","v":0},{"$f":"'Population at Risk'!AH135/'Population at Risk'!AH$5","v":0},{"$f":"'Population at Risk'!AI135/'Population at Risk'!AI$5","v":0},{"$f":"'Population at Risk'!AJ135/'Population at Risk'!AJ$5","v":0},{"$f":"'Population at Risk'!AK135/'Population at Risk'!AK$5","v":0},{"$f":"'Population at Risk'!AL135/'Population at Risk'!AL$5","v":0},{"$f":"'Population at Risk'!AM135/'Population at Risk'!AM$5","v":0},{"$f":"'Population at Risk'!AN135/'Population at Risk'!AN$5","v":0},{"$f":"'Population at Risk'!AO135/'Population at Risk'!AO$5","v":0},{"$f":"'Population at Risk'!AP135/'Population at Risk'!AP$5","v":0},{"$f":"'Population at Risk'!AQ135/'Population at Risk'!AQ$5","v":0},{"$f":"'Population at Risk'!AR135/'Population at Risk'!AR$5","v":0},{"$f":"'Population at Risk'!AS135/'Population at Risk'!AS$5","v":0},{"$f":"'Population at Risk'!AT135/'Population at Risk'!AT$5","v":0},{"$f":"'Population at Risk'!AU135/'Population at Risk'!AU$5","v":0},{"$f":"'Population at Risk'!AV135/'Population at Risk'!AV$5","v":0},{"$f":"'Population at Risk'!AW135/'Population at Risk'!AW$5","v":0},{"$f":"'Population at Risk'!AX135/'Population at Risk'!AX$5","v":0},{"$f":"'Population at Risk'!AY135/'Population at Risk'!AY$5","v":0},{"$f":"'Population at Risk'!AZ135/'Population at Risk'!AZ$5","v":0},{"$f":"'Population at Risk'!BA135/'Population at Risk'!BA$5","v":0},{"$f":"'Population at Risk'!BB135/'Population at Risk'!BB$5","v":0},{"$f":"'Population at Risk'!BC135/'Population at Risk'!BC$5","v":0},133]
["SIMD Q3","Female 0-4",{"$f":"'Population at Risk'!C136/'Population at Risk'!C$5","v":0},{"$f":"'Population at Risk'!D136/'Population at Risk'!D$5","v":0},{"$f":"'Population at Risk'!E136/'Population at Risk'!E$5","v":0},{"$f":"'Population at Risk'!F136/'Population at Risk'!F$5","v":0},{"$f":"'Population at Risk'!G136/'Population at Risk'!G$5","v":0},{"$f":"'Population at Risk'!H136/'Population at Risk'!H$5","v":0},{"$f":"'Population at Risk'!I136/'Population at Risk'!I$5","v":0},{"$f":"'Population at Risk'!J136/'Population at Risk'!J$5","v":0},{"$f":"'Population at Risk'!K136/'Population at Risk'!K$5","v":0},{"$f":"'Population at Risk'!L136/'Population at Risk'!L$5","v":0},{"$f":"'Population at Risk'!M136/'Population at Risk'!M$5","v":0},{"$f":"'Population at Risk'!N136/'Population at Risk'!N$5","v":0},{"$f":"'Population at Risk'!O136/'Population at Risk'!O$5","v":0},{"$f":"'Population at Risk'!P136/'Population at Risk'!P$5","v":0},{"$f":"'Population at Risk'!Q136/'Population at Risk'!Q$5","v":0},{"$f":"'Population at Risk'!R136/'Population at Risk'!R$5","v":0},{"$f":"'Population at Risk'!S136/'Population at Risk'!S$5","v":0},{"$f":"'Population at Risk'!T136/'Population at Risk'!T$5","v":0},{"$f":"'Population at Risk'!U136/'Population at Risk'!U$5","v":0},{"$f":"'Population at Risk'!V136/'Population at Risk'!V$5","v":0},{"$f":"'Population at Risk'!W136/'Population at Risk'!W$5","v":0},{"$f":"'Population at Risk'!X136/'Population at Risk'!X$5","v":0},{"$f":"'Population at Risk'!Y136/'Population at Risk'!Y$5","v":0},{"$f":"'Population at Risk'!Z136/'Population at Risk'!Z$5","v":0},{"$f":"'Population at Risk'!AA136/'Population at Risk'!AA$5","v":0},{"$f":"'Population at Risk'!AB136/'Population at Risk'!AB$5","v":0},{"$f":"'Population at Risk'!AC136/'Population at Risk'!AC$5","v":0},{"$f":"'Population at Risk'!AD136/'Population at Risk'!AD$5","v":0},{"$f":"'Population at Risk'!AE136/'Population at Risk'!AE$5","v":0},{"$f":"'Population at Risk'!AF136/'Population at Risk'!AF$5","v":0},{"$f":"'Population at Risk'!AG136/'Population at Risk'!AG$5","v":0},{"$f":"'Population at Risk'!AH136/'Population at Risk'!AH$5","v":0},{"$f":"'Population at Risk'!AI136/'Population at Risk'!AI$5","v":0},{"$f":"'Population at Risk'!AJ136/'Population at Risk'!AJ$5","v":0},{"$f":"'Population at Risk'!AK136/'Population at Risk'!AK$5","v":0},{"$f":"'Population at Risk'!AL136/'Population at Risk'!AL$5","v":0},{"$f":"'Population at Risk'!AM136/'Population at Risk'!AM$5","v":0},{"$f":"'Population at Risk'!AN136/'Population at Risk'!AN$5","v":0},{"$f":"'Population at Risk'!AO136/'Population at Risk'!AO$5","v":0},{"$f":"'Population at Risk'!AP136/'Population at Risk'!AP$5","v":0},{"$f":"'Population at Risk'!AQ136/'Population at Risk'!AQ$5","v":0},{"$f":"'Population at Risk'!AR136/'Population at Risk'!AR$5","v":0},{"$f":"'Population at Risk'!AS136/'Population at Risk'!AS$5","v":0},{"$f":"'Population at Risk'!AT136/'Population at Risk'!AT$5","v":0},{"$f":"'Population at Risk'!AU136/'Population at Risk'!AU$5","v":0},{"$f":"'Population at Risk'!AV136/'Population at Risk'!AV$5","v":0},{"$f":"'Population at Risk'!AW136/'Population at Risk'!AW$5","v":0},{"$f":"'Population at Risk'!AX136/'Population at Risk'!AX$5","v":0},{"$f":"'Population at Risk'!AY136/'Population at Risk'!AY$5","v":0},{"$f":"'Population at Risk'!AZ136/'Population at Risk'!AZ$5","v":0},{"$f":"'Population at Risk'!BA136/'Population at Risk'!BA$5","v":0},{"$f":"'Population at Risk'!BB136/'Population at Risk'!BB$5","v":0},{"$f":"'Population at Risk'!BC136/'Population at Risk'!BC$5","v":0},134]
[null,"Female 5-9",{"$f":"'Population at Risk'!C137/'Population at Risk'!C$5","v":0},{"$f":"'Population at Risk'!D137/'Population at Risk'!D$5","v":0},{"$f":"'Population at Risk'!E137/'Population at Risk'!E$5","v":0},{"$f":"'Population at Risk'!F137/'Population at Risk'!F$5","v":0},{"$f":"'Population at Risk'!G137/'Population at Risk'!G$5","v":0},{"$f":"'Population at Risk'!H137/'Population at Risk'!H$5","v":0},{"$f":"'Population at Risk'!I137/'Population at Risk'!I$5","v":0},{"$f":"'Population at Risk'!J137/'Population at Risk'!J$5","v":0},{"$f":"'Population at Risk'!K137/'Population at Risk'!K$5","v":0},{"$f":"'Population at Risk'!L137/'Population at Risk'!L$5","v":0},{"$f":"'Population at Risk'!M137/'Population at Risk'!M$5","v":0},{"$f":"'Population at Risk'!N137/'Population at Risk'!N$5","v":0},{"$f":"'Population at Risk'!O137/'Population at Risk'!O$5","v":0},{"$f":"'Population at Risk'!P137/'Population at Risk'!P$5","v":0},{"$f":"'Population at Risk'!Q137/'Population at Risk'!Q$5","v":0},{"$f":"'Population at Risk'!R137/'Population at Risk'!R$5","v":0},{"$f":"'Population at Risk'!S137/'Population at Risk'!S$5","v":0},{"$f":"'Population at Risk'!T137/'Population at Risk'!T$5","v":0},{"$f":"'Population at Risk'!U137/'Population at Risk'!U$5","v":0},{"$f":"'Population at Risk'!V137/'Population at Risk'!V$5","v":0},{"$f":"'Population at Risk'!W137/'Population at Risk'!W$5","v":0},{"$f":"'Population at Risk'!X137/'Population at Risk'!X$5","v":0},{"$f":"'Population at Risk'!Y137/'Population at Risk'!Y$5","v":0},{"$f":"'Population at Risk'!Z137/'Population at Risk'!Z$5","v":0},{"$f":"'Population at Risk'!AA137/'Population at Risk'!AA$5","v":0},{"$f":"'Population at Risk'!AB137/'Population at Risk'!AB$5","v":0},{"$f":"'Population at Risk'!AC137/'Population at Risk'!AC$5","v":0},{"$f":"'Population at Risk'!AD137/'Population at Risk'!AD$5","v":0},{"$f":"'Population at Risk'!AE137/'Population at Risk'!AE$5","v":0},{"$f":"'Population at Risk'!AF137/'Population at Risk'!AF$5","v":0},{"$f":"'Population at Risk'!AG137/'Population at Risk'!AG$5","v":0},{"$f":"'Population at Risk'!AH137/'Population at Risk'!AH$5","v":0},{"$f":"'Population at Risk'!AI137/'Population at Risk'!AI$5","v":0},{"$f":"'Population at Risk'!AJ137/'Population at Risk'!AJ$5","v":0},{"$f":"'Population at Risk'!AK137/'Population at Risk'!AK$5","v":0},{"$f":"'Population at Risk'!AL137/'Population at Risk'!AL$5","v":0},{"$f":"'Population at Risk'!AM137/'Population at Risk'!AM$5","v":0},{"$f":"'Population at Risk'!AN137/'Population at Risk'!AN$5","v":0},{"$f":"'Population at Risk'!AO137/'Population at Risk'!AO$5","v":0},{"$f":"'Population at Risk'!AP137/'Population at Risk'!AP$5","v":0},{"$f":"'Population at Risk'!AQ137/'Population at Risk'!AQ$5","v":0},{"$f":"'Population at Risk'!AR137/'Population at Risk'!AR$5","v":0},{"$f":"'Population at Risk'!AS137/'Population at Risk'!AS$5","v":0},{"$f":"'Population at Risk'!AT137/'Population at Risk'!AT$5","v":0},{"$f":"'Population at Risk'!AU137/'Population at Risk'!AU$5","v":0},{"$f":"'Population at Risk'!AV137/'Population at Risk'!AV$5","v":0},{"$f":"'Population at Risk'!AW137/'Population at Risk'!AW$5","v":0},{"$f":"'Population at Risk'!AX137/'Population at Risk'!AX$5","v":0},{"$f":"'Population at Risk'!AY137/'Population at Risk'!AY$5","v":0},{"$f":"'Population at Risk'!AZ137/'Population at Risk'!AZ$5","v":0},{"$f":"'Population at Risk'!BA137/'Population at Risk'!BA$5","v":0},{"$f":"'Population at Risk'!BB137/'Population at Risk'!BB$5","v":0},{"$f":"'Population at Risk'!BC137/'Population at Risk'!BC$5","v":0},135]
[null,"Female 10-15",{"$f":"'Population at Risk'!C138/'Population at Risk'!C$5","v":0},{"$f":"'Population at Risk'!D138/'Population at Risk'!D$5","v":0},{"$f":"'Population at Risk'!E138/'Population at Risk'!E$5","v":0},{"$f":"'Population at Risk'!F138/'Population at Risk'!F$5","v":0},{"$f":"'Population at Risk'!G138/'Population at Risk'!G$5","v":0},{"$f":"'Population at Risk'!H138/'Population at Risk'!H$5","v":0},{"$f":"'Population at Risk'!I138/'Population at Risk'!I$5","v":0},{"$f":"'Population at Risk'!J138/'Population at Risk'!J$5","v":0},{"$f":"'Population at Risk'!K138/'Population at Risk'!K$5","v":0},{"$f":"'Population at Risk'!L138/'Population at Risk'!L$5","v":0},{"$f":"'Population at Risk'!M138/'Population at Risk'!M$5","v":0},{"$f":"'Population at Risk'!N138/'Population at Risk'!N$5","v":0},{"$f":"'Population at Risk'!O138/'Population at Risk'!O$5","v":0},{"$f":"'Population at Risk'!P138/'Population at Risk'!P$5","v":0},{"$f":"'Population at Risk'!Q138/'Population at Risk'!Q$5","v":0},{"$f":"'Population at Risk'!R138/'Population at Risk'!R$5","v":0},{"$f":"'Population at Risk'!S138/'Population at Risk'!S$5","v":0},{"$f":"'Population at Risk'!T138/'Population at Risk'!T$5","v":0},{"$f":"'Population at Risk'!U138/'Population at Risk'!U$5","v":0},{"$f":"'Population at Risk'!V138/'Population at Risk'!V$5","v":0},{"$f":"'Population at Risk'!W138/'Population at Risk'!W$5","v":0},{"$f":"'Population at Risk'!X138/'Population at Risk'!X$5","v":0},{"$f":"'Population at Risk'!Y138/'Population at Risk'!Y$5","v":0},{"$f":"'Population at Risk'!Z138/'Population at Risk'!Z$5","v":0},{"$f":"'Population at Risk'!AA138/'Population at Risk'!AA$5","v":0},{"$f":"'Population at Risk'!AB138/'Population at Risk'!AB$5","v":0},{"$f":"'Population at Risk'!AC138/'Population at Risk'!AC$5","v":0},{"$f":"'Population at Risk'!AD138/'Population at Risk'!AD$5","v":0},{"$f":"'Population at Risk'!AE138/'Population at Risk'!AE$5","v":0},{"$f":"'Population at Risk'!AF138/'Population at Risk'!AF$5","v":0},{"$f":"'Population at Risk'!AG138/'Population at Risk'!AG$5","v":0},{"$f":"'Population at Risk'!AH138/'Population at Risk'!AH$5","v":0},{"$f":"'Population at Risk'!AI138/'Population at Risk'!AI$5","v":0},{"$f":"'Population at Risk'!AJ138/'Population at Risk'!AJ$5","v":0},{"$f":"'Population at Risk'!AK138/'Population at Risk'!AK$5","v":0},{"$f":"'Population at Risk'!AL138/'Population at Risk'!AL$5","v":0},{"$f":"'Population at Risk'!AM138/'Population at Risk'!AM$5","v":0},{"$f":"'Population at Risk'!AN138/'Population at Risk'!AN$5","v":0},{"$f":"'Population at Risk'!AO138/'Population at Risk'!AO$5","v":0},{"$f":"'Population at Risk'!AP138/'Population at Risk'!AP$5","v":0},{"$f":"'Population at Risk'!AQ138/'Population at Risk'!AQ$5","v":0},{"$f":"'Population at Risk'!AR138/'Population at Risk'!AR$5","v":0},{"$f":"'Population at Risk'!AS138/'Population at Risk'!AS$5","v":0},{"$f":"'Population at Risk'!AT138/'Population at Risk'!AT$5","v":0},{"$f":"'Population at Risk'!AU138/'Population at Risk'!AU$5","v":0},{"$f":"'Population at Risk'!AV138/'Population at Risk'!AV$5","v":0},{"$f":"'Population at Risk'!AW138/'Population at Risk'!AW$5","v":0},{"$f":"'Population at Risk'!AX138/'Population at Risk'!AX$5","v":0},{"$f":"'Population at Risk'!AY138/'Population at Risk'!AY$5","v":0},{"$f":"'Population at Risk'!AZ138/'Population at Risk'!AZ$5","v":0},{"$f":"'Population at Risk'!BA138/'Population at Risk'!BA$5","v":0},{"$f":"'Population at Risk'!BB138/'Population at Risk'!BB$5","v":0},{"$f":"'Population at Risk'!BC138/'Population at Risk'!BC$5","v":0},136]
[null,"Female 16-19",{"$f":"'Population at Risk'!C139/'Population at Risk'!C$5","v":2.2408063363239181E-3},{"$f":"'Population at Risk'!D139/'Population at Risk'!D$5","v":3.1213853447877461E-3},{"$f":"'Population at Risk'!E139/'Population at Risk'!E$5","v":4.1537381798877311E-3},{"$f":"'Population at Risk'!F139/'Population at Risk'!F$5","v":6.366927032102611E-3},{"$f":"'Population at Risk'!G139/'Population at Risk'!G$5","v":7.382516635310081E-3},{"$f":"'Population at Risk'!H139/'Population at Risk'!H$5","v":2.4191973102067549E-3},{"$f":"'Population at Risk'!I139/'Population at Risk'!I$5","v":6.3293100386773793E-3},{"$f":"'Population at Risk'!J139/'Population at Risk'!J$5","v":2.740535624375377E-3},{"$f":"'Population at Risk'!K139/'Population at Risk'!K$5","v":2.372526433769387E-3},{"$f":"'Population at Risk'!L139/'Population at Risk'!L$5","v":6.5677974990222179E-3},{"$f":"'Population at Risk'!M139/'Population at Risk'!M$5","v":6.5677974990222179E-3},{"$f":"'Population at Risk'!N139/'Population at Risk'!N$5","v":1.5624628552731717E-3},{"$f":"'Population at Risk'!O139/'Population at Risk'!O$5","v":2.1618797177738887E-3},{"$f":"'Population at Risk'!P139/'Population at Risk'!P$5","v":1.4216044797465308E-3},{"$f":"'Population at Risk'!Q139/'Population at Risk'!Q$5","v":3.8118735443768343E-3},{"$f":"'Population at Risk'!R139/'Population at Risk'!R$5","v":2.320015221762116E-3},{"$f":"'Population at Risk'!S139/'Population at Risk'!S$5","v":3.3312325917557836E-3},{"$f":"'Population at Risk'!T139/'Population at Risk'!T$5","v":2.2866246636420815E-3},{"$f":"'Population at Risk'!U139/'Population at Risk'!U$5","v":1.1631132723262749E-2},{"$f":"'Population at Risk'!V139/'Population at Risk'!V$5","v":3.1312919428347643E-3},{"$f":"'Population at Risk'!W139/'Population at Risk'!W$5","v":3.3768304191098561E-3},{"$f":"'Population at Risk'!X139/'Population at Risk'!X$5","v":3.3768304191098561E-3},{"$f":"'Population at Risk'!Y139/'Population at Risk'!Y$5","v":2.9441483055424361E-3},{"$f":"'Population at Risk'!Z139/'Population at Risk'!Z$5","v":2.4081832548399741E-3},{"$f":"'Population at Risk'!AA139/'Population at Risk'!AA$5","v":2.4330544212453321E-3},{"$f":"'Population at Risk'!AB139/'Population at Risk'!AB$5","v":3.534711644970513E-3},{"$f":"'Population at Risk'!AC139/'Population at Risk'!AC$5","v":2.2278995807130842E-3},{"$f":"'Population at Risk'!AD139/'Population at Risk'!AD$5","v":5.2870367065397167E-3},{"$f":"'Population at Risk'!AE139/'Population at Risk'!AE$5","v":4.6093786246688834E-3},{"$f":"'Population at Risk'!AF139/'Population at Risk'!AF$5","v":1.9060642247434709E-3},{"$f":"'Population at Risk'!AG139/'Population at Risk'!AG$5","v":4.6093786246688834E-3},{"$f":"'Population at Risk'!AH139/'Population at Risk'!AH$5","v":2.8081773156420995E-3},{"$f":"'Population at Risk'!AI139/'Population at Risk'!AI$5","v":2.9681123027301328E-3},{"$f":"'Population at Risk'!AJ139/'Population at Risk'!AJ$5","v":4.4167397247457576E-3},{"$f":"'Population at Risk'!AK139/'Population at Risk'!AK$5","v":5.9085818107711893E-3},{"$f":"'Population at Risk'!AL139/'Population at Risk'!AL$5","v":1.9436693009283793E-3},{"$f":"'Population at Risk'!AM139/'Population at Risk'!AM$5","v":2.6594179121320989E-3},{"$f":"'Population at Risk'!AN139/'Population at Risk'!AN$5","v":5.189596694341948E-3},{"$f":"'Population at Risk'!AO139/'Population at Risk'!AO$5","v":5.189596694341948E-3},{"$f":"'Population at Risk'!AP139/'Population at Risk'!AP$5","v":3.2877976745377124E-3},{"$f":"'Population at Risk'!AQ139/'Population at Risk'!AQ$5","v":2.2937910123750752E-3},{"$f":"'Population at Risk'!AR139/'Population at Risk'!AR$5","v":3.1847182282433001E-3},{"$f":"'Population at Risk'!AS139/'Population at Risk'!AS$5","v":6.3293100386773793E-3},{"$f":"'Population at Risk'!AT139/'Population at Risk'!AT$5","v":5.9295514368653667E-3},{"$f":"'Population at Risk'!AU139/'Population at Risk'!AU$5","v":5.9295514368653667E-3},{"$f":"'Population at Risk'!AV139/'Population at Risk'!AV$5","v":3.4006705497331316E-3},{"$f":"'Population at Risk'!AW139/'Population at Risk'!AW$5","v":2.9829954295576338E-3},{"$f":"'Population at Risk'!AX139/'Population at Risk'!AX$5","v":2.9912467100073775E-3},{"$f":"'Population at Risk'!AY139/'Population at Risk'!AY$5","v":3.2676006694326164E-3},{"$f":"'Population at Risk'!AZ139/'Population at Risk'!AZ$5","v":3.1287253768115244E-3},{"$f":"'Population at Risk'!BA139/'Population at Risk'!BA$5","v":1.6070711059778407E-3},{"$f":"'Population at Risk'!BB139/'Population at Risk'!BB$5","v":3.715537897430332E-3},{"$f":"'Population at Risk'!BC139/'Population at Risk'!BC$5","v":1.1631132723262749E-2},137]
[null,"Female 20-24",{"$f":"'Population at Risk'!C140/'Population at Risk'!C$5","v":6.6864877120336157E-3},{"$f":"'Population at Risk'!D140/'Population at Risk'!D$5","v":6.0417383959491394E-3},{"$f":"'Population at Risk'!E140/'Population at Risk'!E$5","v":5.2030205691091331E-3},{"$f":"'Population at Risk'!F140/'Population at Risk'!F$5","v":7.2532553162650438E-3},{"$f":"'Population at Risk'!G140/'Population at Risk'!G$5","v":6.5870286404409268E-3},{"$f":"'Population at Risk'!H140/'Population at Risk'!H$5","v":2.7668555982707189E-3},{"$f":"'Population at Risk'!I140/'Population at Risk'!I$5","v":7.6797797898604707E-3},{"$f":"'Population at Risk'!J140/'Population at Risk'!J$5","v":4.7762117983355893E-3},{"$f":"'Population at Risk'!K140/'Population at Risk'!K$5","v":3.4706672402569317E-3},{"$f":"'Population at Risk'!L140/'Population at Risk'!L$5","v":7.7362258930430252E-3},{"$f":"'Population at Risk'!M140/'Population at Risk'!M$5","v":7.7362258930430252E-3},{"$f":"'Population at Risk'!N140/'Population at Risk'!N$5","v":2.8098071514996532E-3},{"$f":"'Population at Risk'!O140/'Population at Risk'!O$5","v":2.5714444604696615E-3},{"$f":"'Population at Risk'!P140/'Population at Risk'!P$5","v":1.8723571196661625E-3},{"$f":"'Population at Risk'!Q140/'Population at Risk'!Q$5","v":5.2644156659125002E-3},{"$f":"'Population at Risk'!R140/'Population at Risk'!R$5","v":2.5911858320979476E-3},{"$f":"'Population at Risk'!S140/'Population at Risk'!S$5","v":5.9234444107503495E-3},{"$f":"'Population at Risk'!T140/'Population at Risk'!T$5","v":7.2882180261071069E-3},{"$f":"'Population at Risk'!U140/'Population at Risk'!U$5","v":1.1825524913623686E-2},{"$f":"'Population at Risk'!V140/'Population at Risk'!V$5","v":4.0842938384801266E-3},{"$f":"'Population at Risk'!W140/'Population at Risk'!W$5","v":4.7083023016603019E-3},{"$f":"'Population at Risk'!X140/'Population at Risk'!X$5","v":4.7083023016603019E-3},{"$f":"'Population at Risk'!Y140/'Population at Risk'!Y$5","v":4.4412174618012794E-3},{"$f":"'Population at Risk'!Z140/'Population at Risk'!Z$5","v":5.3751545937489017E-3},{"$f":"'Population at Risk'!AA140/'Population at Risk'!AA$5","v":3.9156170206734349E-3},{"$f":"'Population at Risk'!AB140/'Population at Risk'!AB$5","v":6.2090907024687754E-3},{"$f":"'Population at Risk'!AC140/'Population at Risk'!AC$5","v":4.143091695574877E-3},{"$f":"'Population at Risk'!AD140/'Population at Risk'!AD$5","v":5.586891329188293E-3},{"$f":"'Population at Risk'!AE140/'Population at Risk'!AE$5","v":5.2705992589768937E-3},{"$f":"'Population at Risk'!AF140/'Population at Risk'!AF$5","v":2.2030235061346638E-3},{"$f":"'Population at Risk'!AG140/'Population at Risk'!AG$5","v":5.2705992589768937E-3},{"$f":"'Population at Risk'!AH140/'Population at Risk'!AH$5","v":3.4959787680900359E-3},{"$f":"'Population at Risk'!AI140/'Population at Risk'!AI$5","v":6.2532164192259185E-3},{"$f":"'Population at Risk'!AJ140/'Population at Risk'!AJ$5","v":4.7678612928217798E-3},{"$f":"'Population at Risk'!AK140/'Population at Risk'!AK$5","v":7.1524937709335447E-3},{"$f":"'Population at Risk'!AL140/'Population at Risk'!AL$5","v":2.2684101177911061E-3},{"$f":"'Population at Risk'!AM140/'Population at Risk'!AM$5","v":3.2478686992562606E-3},{"$f":"'Population at Risk'!AN140/'Population at Risk'!AN$5","v":7.1304214743397511E-3},{"$f":"'Population at Risk'!AO140/'Population at Risk'!AO$5","v":7.1304214743397511E-3},{"$f":"'Population at Risk'!AP140/'Population at Risk'!AP$5","v":4.4467339198740012E-3},{"$f":"'Population at Risk'!AQ140/'Population at Risk'!AQ$5","v":3.0214286446994944E-3},{"$f":"'Population at Risk'!AR140/'Population at Risk'!AR$5","v":4.8626011786202595E-3},{"$f":"'Population at Risk'!AS140/'Population at Risk'!AS$5","v":7.6797797898604707E-3},{"$f":"'Population at Risk'!AT140/'Population at Risk'!AT$5","v":6.8846469703201909E-3},{"$f":"'Population at Risk'!AU140/'Population at Risk'!AU$5","v":6.8846469703201909E-3},{"$f":"'Population at Risk'!AV140/'Population at Risk'!AV$5","v":3.7020787294782648E-3},{"$f":"'Population at Risk'!AW140/'Population at Risk'!AW$5","v":3.7890873242625209E-3},{"$f":"'Population at Risk'!AX140/'Population at Risk'!AX$5","v":5.6366845518058097E-3},{"$f":"'Population at Risk'!AY140/'Population at Risk'!AY$5","v":4.5235875669954505E-3},{"$f":"'Population at Risk'!AZ140/'Population at Risk'!AZ$5","v":4.3052564820500244E-3},{"$f":"'Population at Risk'!BA140/'Population at Risk'!BA$5","v":2.5531694183680213E-3},{"$f":"'Population at Risk'!BB140/'Population at Risk'!BB$5","v":4.6433334099187972E-3},{"$f":"'Population at Risk'!BC140/'Population at Risk'!BC$5","v":1.1825524913623686E-2},138]
[null,"Female 25-29",{"$f":"'Population at Risk'!C141/'Population at Risk'!C$5","v":1.0803685225126281E-2},{"$f":"'Population at Risk'!D141/'Population at Risk'!D$5","v":1.0143586362286013E-2},{"$f":"'Population at Risk'!E141/'Population at Risk'!E$5","v":9.2455255571736051E-3},{"$f":"'Population at Risk'!F141/'Population at Risk'!F$5","v":1.0900178003726328E-2},{"$f":"'Population at Risk'!G141/'Population at Risk'!G$5","v":1.1673357392959978E-2},{"$f":"'Population at Risk'!H141/'Population at Risk'!H$5","v":4.6715698537434973E-3},{"$f":"'Population at Risk'!I141/'Population at Risk'!I$5","v":1.034064760190976E-2},{"$f":"'Population at Risk'!J141/'Population at Risk'!J$5","v":7.3294253941036556E-3},{"$f":"'Population at Risk'!K141/'Population at Risk'!K$5","v":5.9383188188796938E-3},{"$f":"'Population at Risk'!L141/'Population at Risk'!L$5","v":1.3305548218992918E-2},{"$f":"'Population at Risk'!M141/'Population at Risk'!M$5","v":1.3305548218992918E-2},{"$f":"'Population at Risk'!N141/'Population at Risk'!N$5","v":5.1922944388375081E-3},{"$f":"'Population at Risk'!O141/'Population at Risk'!O$5","v":4.5845200824822345E-3},{"$f":"'Population at Risk'!P141/'Population at Risk'!P$5","v":2.8655603300675892E-3},{"$f":"'Population at Risk'!Q141/'Population at Risk'!Q$5","v":8.2019050669046838E-3},{"$f":"'Population at Risk'!R141/'Population at Risk'!R$5","v":4.415756495214646E-3},{"$f":"'Population at Risk'!S141/'Population at Risk'!S$5","v":1.0954451761265213E-2},{"$f":"'Population at Risk'!T141/'Population at Risk'!T$5","v":1.4828660138308301E-2},{"$f":"'Population at Risk'!U141/'Population at Risk'!U$5","v":2.2116797415720965E-2},{"$f":"'Population at Risk'!V141/'Population at Risk'!V$5","v":6.8287938939623231E-3},{"$f":"'Population at Risk'!W141/'Population at Risk'!W$5","v":8.5920387867684297E-3},{"$f":"'Population at Risk'!X141/'Population at Risk'!X$5","v":8.5920387867684297E-3},{"$f":"'Population at Risk'!Y141/'Population at Risk'!Y$5","v":7.0973198245854931E-3},{"$f":"'Population at Risk'!Z141/'Population at Risk'!Z$5","v":8.3731150383452579E-3},{"$f":"'Population at Risk'!AA141/'Population at Risk'!AA$5","v":6.4002156474943549E-3},{"$f":"'Population at Risk'!AB141/'Population at Risk'!AB$5","v":1.0498279184207438E-2},{"$f":"'Population at Risk'!AC141/'Population at Risk'!AC$5","v":6.5457993866177263E-3},{"$f":"'Population at Risk'!AD141/'Population at Risk'!AD$5","v":9.9482346872764391E-3},{"$f":"'Population at Risk'!AE141/'Population at Risk'!AE$5","v":9.4033932183699934E-3},{"$f":"'Population at Risk'!AF141/'Population at Risk'!AF$5","v":3.5043820636977219E-3},{"$f":"'Population at Risk'!AG141/'Population at Risk'!AG$5","v":9.4033932183699934E-3},{"$f":"'Population at Risk'!AH141/'Population at Risk'!AH$5","v":6.1294662943433501E-3},{"$f":"'Population at Risk'!AI141/'Population at Risk'!AI$5","v":1.2052451577587959E-2},{"$f":"'Population at Risk'!AJ141/'Population at Risk'!AJ$5","v":8.873494173648069E-3},{"$f":"'Population at Risk'!AK141/'Population at Risk'!AK$5","v":1.2507654695847376E-2},{"$f":"'Population at Risk'!AL141/'Population at Risk'!AL$5","v":3.3942282754247091E-3},{"$f":"'Population at Risk'!AM141/'Population at Risk'!AM$5","v":5.9174523301315351E-3},{"$f":"'Population at Risk'!AN141/'Population at Risk'!AN$5","v":1.2831899371886293E-2},{"$f":"'Population at Risk'!AO141/'Population at Risk'!AO$5","v":1.2831899371886293E-2},{"$f":"'Population at Risk'!AP141/'Population at Risk'!AP$5","v":7.6295026117977945E-3},{"$f":"'Population at Risk'!AQ141/'Population at Risk'!AQ$5","v":5.0570958625931724E-3},{"$f":"'Population at Risk'!AR141/'Population at Risk'!AR$5","v":8.3877686016459469E-3},{"$f":"'Population at Risk'!AS141/'Population at Risk'!AS$5","v":1.034064760190976E-2},{"$f":"'Population at Risk'!AT141/'Population at Risk'!AT$5","v":1.3813365153272252E-2},{"$f":"'Population at Risk'!AU141/'Population at Risk'!AU$5","v":1.3813365153272252E-2},{"$f":"'Population at Risk'!AV141/'Population at Risk'!AV$5","v":6.5415214001458988E-3},{"$f":"'Population at Risk'!AW141/'Population at Risk'!AW$5","v":6.375868093710972E-3},{"$f":"'Population at Risk'!AX141/'Population at Risk'!AX$5","v":8.2594018935855541E-3},{"$f":"'Population at Risk'!AY141/'Population at Risk'!AY$5","v":7.9172776475832461E-3},{"$f":"'Population at Risk'!AZ141/'Population at Risk'!AZ$5","v":7.2615733607815699E-3},{"$f":"'Population at Risk'!BA141/'Population at Risk'!BA$5","v":4.1022942787890754E-3},{"$f":"'Population at Risk'!BB141/'Population at Risk'!BB$5","v":7.9701209197589017E-3},{"$f":"'Population at Risk'!BC141/'Population at Risk'!BC$5","v":2.2116797415720965E-2},139]
[null,"Female 30-34",{"$f":"'Population at Risk'!C142/'Population at Risk'!C$5","v":8.5306460048473372E-3},{"$f":"'Population at Risk'!D142/'Population at Risk'!D$5","v":9.2624383220406368E-3},{"$f":"'Population at Risk'!E142/'Population at Risk'!E$5","v":1.0054020034669747E-2},{"$f":"'Population at Risk'!F142/'Population at Risk'!F$5","v":1.3453857190789216E-2},{"$f":"'Population at Risk'!G142/'Population at Risk'!G$5","v":1.3228736056582393E-2},{"$f":"'Population at Risk'!H142/'Population at Risk'!H$5","v":5.0139729978993311E-3},{"$f":"'Population at Risk'!I142/'Population at Risk'!I$5","v":1.2747638396112421E-2},{"$f":"'Population at Risk'!J142/'Population at Risk'!J$5","v":5.9991738101204291E-3},{"$f":"'Population at Risk'!K142/'Population at Risk'!K$5","v":6.1399975712190039E-3},{"$f":"'Population at Risk'!L142/'Population at Risk'!L$5","v":1.2746491571136071E-2},{"$f":"'Population at Risk'!M142/'Population at Risk'!M$5","v":1.2746491571136071E-2},{"$f":"'Population at Risk'!N142/'Population at Risk'!N$5","v":3.3421665353436832E-3},{"$f":"'Population at Risk'!O142/'Population at Risk'!O$5","v":4.7559040107993276E-3},{"$f":"'Population at Risk'!P142/'Population at Risk'!P$5","v":2.3067760657044089E-3},{"$f":"'Population at Risk'!Q142/'Population at Risk'!Q$5","v":8.4239532582252828E-3},{"$f":"'Population at Risk'!R142/'Population at Risk'!R$5","v":4.6647653201327645E-3},{"$f":"'Population at Risk'!S142/'Population at Risk'!S$5","v":9.8997239830869669E-3},{"$f":"'Population at Risk'!T142/'Population at Risk'!T$5","v":1.1362322651238363E-2},{"$f":"'Population at Risk'!U142/'Population at Risk'!U$5","v":2.4258860119422753E-2},{"$f":"'Population at Risk'!V142/'Population at Risk'!V$5","v":7.9452887131272673E-3},{"$f":"'Population at Risk'!W142/'Population at Risk'!W$5","v":8.2079403955758017E-3},{"$f":"'Population at Risk'!X142/'Population at Risk'!X$5","v":8.2079403955758017E-3},{"$f":"'Population at Risk'!Y142/'Population at Risk'!Y$5","v":6.9929474742239416E-3},{"$f":"'Population at Risk'!Z142/'Population at Risk'!Z$5","v":6.6486941192566724E-3},{"$f":"'Population at Risk'!AA142/'Population at Risk'!AA$5","v":6.0359904648368337E-3},{"$f":"'Population at Risk'!AB142/'Population at Risk'!AB$5","v":1.0040292071085833E-2},{"$f":"'Population at Risk'!AC142/'Population at Risk'!AC$5","v":5.6165496447318566E-3},{"$f":"'Population at Risk'!AD142/'Population at Risk'!AD$5","v":1.0880014341126563E-2},{"$f":"'Population at Risk'!AE142/'Population at Risk'!AE$5","v":1.0132010997221797E-2},{"$f":"'Population at Risk'!AF142/'Population at Risk'!AF$5","v":3.0706149027188512E-3},{"$f":"'Population at Risk'!AG142/'Population at Risk'!AG$5","v":1.0132010997221797E-2},{"$f":"'Population at Risk'!AH142/'Population at Risk'!AH$5","v":6.8023378735827178E-3},{"$f":"'Population at Risk'!AI142/'Population at Risk'!AI$5","v":1.0311524981709907E-2},{"$f":"'Population at Risk'!AJ142/'Population at Risk'!AJ$5","v":9.3927692199544961E-3},{"$f":"'Population at Risk'!AK142/'Population at Risk'!AK$5","v":1.4495172428338192E-2},{"$f":"'Population at Risk'!AL142/'Population at Risk'!AL$5","v":3.6705026699360224E-3},{"$f":"'Population at Risk'!AM142/'Population at Risk'!AM$5","v":6.755182856189393E-3},{"$f":"'Population at Risk'!AN142/'Population at Risk'!AN$5","v":1.415693245920064E-2},{"$f":"'Population at Risk'!AO142/'Population at Risk'!AO$5","v":1.415693245920064E-2},{"$f":"'Population at Risk'!AP142/'Population at Risk'!AP$5","v":8.163896652494838E-3},{"$f":"'Population at Risk'!AQ142/'Population at Risk'!AQ$5","v":5.5725416470024415E-3},{"$f":"'Population at Risk'!AR142/'Population at Risk'!AR$5","v":8.0108807777303122E-3},{"$f":"'Population at Risk'!AS142/'Population at Risk'!AS$5","v":1.2747638396112421E-2},{"$f":"'Population at Risk'!AT142/'Population at Risk'!AT$5","v":1.2366250708643729E-2},{"$f":"'Population at Risk'!AU142/'Population at Risk'!AU$5","v":1.2366250708643729E-2},{"$f":"'Population at Risk'!AV142/'Population at Risk'!AV$5","v":7.191341406782909E-3},{"$f":"'Population at Risk'!AW142/'Population at Risk'!AW$5","v":6.8501062163836895E-3},{"$f":"'Population at Risk'!AX142/'Population at Risk'!AX$5","v":5.9444830237570766E-3},{"$f":"'Population at Risk'!AY142/'Population at Risk'!AY$5","v":7.6161184090094095E-3},{"$f":"'Population at Risk'!AZ142/'Population at Risk'!AZ$5","v":7.0299356348812675E-3},{"$f":"'Population at Risk'!BA142/'Population at Risk'!BA$5","v":4.1130052299086298E-3},{"$f":"'Population at Risk'!BB142/'Population at Risk'!BB$5","v":8.862889658738219E-3},{"$f":"'Population at Risk'!BC142/'Population at Risk'!BC$5","v":2.4258860119422753E-2},140]
[null,"Female 35-39",{"$f":"'Population at Risk'!C143/'Population at Risk'!C$5","v":5.8648645339697391E-3},{"$f":"'Population at Risk'!D143/'Population at Risk'!D$5","v":8.1287628289676995E-3},{"$f":"'Population at Risk'!E143/'Population at Risk'!E$5","v":1.078182557493575E-2},{"$f":"'Population at Risk'!F143/'Population at Risk'!F$5","v":1.5902787441617921E-2},{"$f":"'Population at Risk'!G143/'Population at Risk'!G$5","v":1.4909500238124115E-2},{"$f":"'Population at Risk'!H143/'Population at Risk'!H$5","v":5.6156483008063234E-3},{"$f":"'Population at Risk'!I143/'Population at Risk'!I$5","v":1.3347576729092469E-2},{"$f":"'Population at Risk'!J143/'Population at Risk'!J$5","v":6.704966784413062E-3},{"$f":"'Population at Risk'!K143/'Population at Risk'!K$5","v":5.8508938551362771E-3},{"$f":"'Population at Risk'!L143/'Population at Risk'!L$5","v":1.3807416962046059E-2},{"$f":"'Population at Risk'!M143/'Population at Risk'!M$5","v":1.3807416962046059E-2},{"$f":"'Population at Risk'!N143/'Population at Risk'!N$5","v":2.8750717501985147E-3},{"$f":"'Population at Risk'!O143/'Population at Risk'!O$5","v":5.1450883480193927E-3},{"$f":"'Population at Risk'!P143/'Population at Risk'!P$5","v":3.0780127100433568E-3},{"$f":"'Population at Risk'!Q143/'Population at Risk'!Q$5","v":9.4639871772724555E-3},{"$f":"'Population at Risk'!R143/'Population at Risk'!R$5","v":5.3951277486527956E-3},{"$f":"'Population at Risk'!S143/'Population at Risk'!S$5","v":9.4287480118336979E-3},{"$f":"'Population at Risk'!T143/'Population at Risk'!T$5","v":8.5480840734909868E-3},{"$f":"'Population at Risk'!U143/'Population at Risk'!U$5","v":3.2271247300281906E-2},{"$f":"'Population at Risk'!V143/'Population at Risk'!V$5","v":8.9057421126116035E-3},{"$f":"'Population at Risk'!W143/'Population at Risk'!W$5","v":9.3246426843759788E-3},{"$f":"'Population at Risk'!X143/'Population at Risk'!X$5","v":9.3246426843759788E-3},{"$f":"'Population at Risk'!Y143/'Population at Risk'!Y$5","v":7.8285712897300797E-3},{"$f":"'Population at Risk'!Z143/'Population at Risk'!Z$5","v":5.5528694495728557E-3},{"$f":"'Population at Risk'!AA143/'Population at Risk'!AA$5","v":6.1293677191230338E-3},{"$f":"'Population at Risk'!AB143/'Population at Risk'!AB$5","v":8.9091791200192616E-3},{"$f":"'Population at Risk'!AC143/'Population at Risk'!AC$5","v":5.3078126007770525E-3},{"$f":"'Population at Risk'!AD143/'Population at Risk'!AD$5","v":1.2663385064067566E-2},{"$f":"'Population at Risk'!AE143/'Population at Risk'!AE$5","v":1.195332535962523E-2},{"$f":"'Population at Risk'!AF143/'Population at Risk'!AF$5","v":4.6907052280705042E-3},{"$f":"'Population at Risk'!AG143/'Population at Risk'!AG$5","v":1.195332535962523E-2},{"$f":"'Population at Risk'!AH143/'Population at Risk'!AH$5","v":7.6335943152392796E-3},{"$f":"'Population at Risk'!AI143/'Population at Risk'!AI$5","v":9.0208970490324274E-3},{"$f":"'Population at Risk'!AJ143/'Population at Risk'!AJ$5","v":1.0415147430503707E-2},{"$f":"'Population at Risk'!AK143/'Population at Risk'!AK$5","v":1.3383062152247176E-2},{"$f":"'Population at Risk'!AL143/'Population at Risk'!AL$5","v":4.3393968947774263E-3},{"$f":"'Population at Risk'!AM143/'Population at Risk'!AM$5","v":7.6667421688872547E-3},{"$f":"'Population at Risk'!AN143/'Population at Risk'!AN$5","v":1.0909822967666023E-2},{"$f":"'Population at Risk'!AO143/'Population at Risk'!AO$5","v":1.0909822967666023E-2},{"$f":"'Population at Risk'!AP143/'Population at Risk'!AP$5","v":8.2875389151924571E-3},{"$f":"'Population at Risk'!AQ143/'Population at Risk'!AQ$5","v":5.8678589794461016E-3},{"$f":"'Population at Risk'!AR143/'Population at Risk'!AR$5","v":8.1056093118819939E-3},{"$f":"'Population at Risk'!AS143/'Population at Risk'!AS$5","v":1.3347576729092469E-2},{"$f":"'Population at Risk'!AT143/'Population at Risk'!AT$5","v":1.3768607999542775E-2},{"$f":"'Population at Risk'!AU143/'Population at Risk'!AU$5","v":1.3768607999542775E-2},{"$f":"'Population at Risk'!AV143/'Population at Risk'!AV$5","v":7.9702974076032874E-3},{"$f":"'Population at Risk'!AW143/'Population at Risk'!AW$5","v":7.5839569650554802E-3},{"$f":"'Population at Risk'!AX143/'Population at Risk'!AX$5","v":7.2888328063237286E-3},{"$f":"'Population at Risk'!AY143/'Population at Risk'!AY$5","v":8.2793849448554013E-3},{"$f":"'Population at Risk'!AZ143/'Population at Risk'!AZ$5","v":7.3293258717833801E-3},{"$f":"'Population at Risk'!BA143/'Population at Risk'!BA$5","v":4.4250230972697575E-3},{"$f":"'Population at Risk'!BB143/'Population at Risk'!BB$5","v":9.4388804991266083E-3},{"$f":"'Population at Risk'!BC143/'Population at Risk'!BC$5","v":3.2271247300281906E-2},141]
[null,"Female 40-44",{"$f":"'Population at Risk'!C144/'Population at Risk'!C$5","v":5.1689323326771838E-3},{"$f":"'Population at Risk'!D144/'Population at Risk'!D$5","v":8.1385683329833428E-3},{"$f":"'Population at Risk'!E144/'Population at Risk'!E$5","v":1.1643796973331681E-2},{"$f":"'Population at Risk'!F144/'Population at Risk'!F$5","v":1.8479216691935908E-2},{"$f":"'Population at Risk'!G144/'Population at Risk'!G$5","v":1.8513218305158854E-2},{"$f":"'Population at Risk'!H144/'Population at Risk'!H$5","v":6.5308152844073541E-3},{"$f":"'Population at Risk'!I144/'Population at Risk'!I$5","v":1.7791830911920152E-2},{"$f":"'Population at Risk'!J144/'Population at Risk'!J$5","v":7.404199034787568E-3},{"$f":"'Population at Risk'!K144/'Population at Risk'!K$5","v":7.2333835424258615E-3},{"$f":"'Population at Risk'!L144/'Population at Risk'!L$5","v":1.755882384143408E-2},{"$f":"'Population at Risk'!M144/'Population at Risk'!M$5","v":1.755882384143408E-2},{"$f":"'Population at Risk'!N144/'Population at Risk'!N$5","v":2.522412221587886E-3},{"$f":"'Population at Risk'!O144/'Population at Risk'!O$5","v":6.2118681339390098E-3},{"$f":"'Population at Risk'!P144/'Population at Risk'!P$5","v":3.3621369602012054E-3},{"$f":"'Population at Risk'!Q144/'Population at Risk'!Q$5","v":1.0442493121287701E-2},{"$f":"'Population at Risk'!R144/'Population at Risk'!R$5","v":5.6877448468848112E-3},{"$f":"'Population at Risk'!S144/'Population at Risk'!S$5","v":9.3249809810947281E-3},{"$f":"'Population at Risk'!T144/'Population at Risk'!T$5","v":6.8054115741123964E-3},{"$f":"'Population at Risk'!U144/'Population at Risk'!U$5","v":3.3864160786767489E-2},{"$f":"'Population at Risk'!V144/'Population at Risk'!V$5","v":9.5350557950873716E-3},{"$f":"'Population at Risk'!W144/'Population at Risk'!W$5","v":9.2788962770936761E-3},{"$f":"'Population at Risk'!X144/'Population at Risk'!X$5","v":9.2788962770936761E-3},{"$f":"'Population at Risk'!Y144/'Population at Risk'!Y$5","v":8.4945268645602399E-3},{"$f":"'Population at Risk'!Z144/'Population at Risk'!Z$5","v":4.6483967221390924E-3},{"$f":"'Population at Risk'!AA144/'Population at Risk'!AA$5","v":6.0382024409208999E-3},{"$f":"'Population at Risk'!AB144/'Population at Risk'!AB$5","v":9.3078063459775713E-3},{"$f":"'Population at Risk'!AC144/'Population at Risk'!AC$5","v":5.0138477665744507E-3},{"$f":"'Population at Risk'!AD144/'Population at Risk'!AD$5","v":1.4196620026981575E-2},{"$f":"'Population at Risk'!AE144/'Population at Risk'!AE$5","v":1.280838075031375E-2},{"$f":"'Population at Risk'!AF144/'Population at Risk'!AF$5","v":5.2188811518746898E-3},{"$f":"'Population at Risk'!AG144/'Population at Risk'!AG$5","v":1.280838075031375E-2},{"$f":"'Population at Risk'!AH144/'Population at Risk'!AH$5","v":7.9146433770061805E-3},{"$f":"'Population at Risk'!AI144/'Population at Risk'!AI$5","v":8.3765472598158267E-3},{"$f":"'Population at Risk'!AJ144/'Population at Risk'!AJ$5","v":1.1088177959130764E-2},{"$f":"'Population at Risk'!AK144/'Population at Risk'!AK$5","v":1.6025697838163402E-2},{"$f":"'Population at Risk'!AL144/'Population at Risk'!AL$5","v":5.0959650908608657E-3},{"$f":"'Population at Risk'!AM144/'Population at Risk'!AM$5","v":7.9225306812847548E-3},{"$f":"'Population at Risk'!AN144/'Population at Risk'!AN$5","v":1.4828139667320722E-2},{"$f":"'Population at Risk'!AO144/'Population at Risk'!AO$5","v":1.4828139667320722E-2},{"$f":"'Population at Risk'!AP144/'Population at Risk'!AP$5","v":9.3653718451464502E-3},{"$f":"'Population at Risk'!AQ144/'Population at Risk'!AQ$5","v":6.4798829805281155E-3},{"$f":"'Population at Risk'!AR144/'Population at Risk'!AR$5","v":8.4439665676334895E-3},{"$f":"'Population at Risk'!AS144/'Population at Risk'!AS$5","v":1.7791830911920152E-2},{"$f":"'Population at Risk'!AT144/'Population at Risk'!AT$5","v":1.434833886268142E-2},{"$f":"'Population at Risk'!AU144/'Population at Risk'!AU$5","v":1.434833886268142E-2},{"$f":"'Population at Risk'!AV144/'Population at Risk'!AV$5","v":8.9128924602988862E-3},{"$f":"'Population at Risk'!AW144/'Population at Risk'!AW$5","v":7.8949448121736644E-3},{"$f":"'Population at Risk'!AX144/'Population at Risk'!AX$5","v":7.556457337009481E-3},{"$f":"'Population at Risk'!AY144/'Population at Risk'!AY$5","v":8.6532709208029003E-3},{"$f":"'Population at Risk'!AZ144/'Population at Risk'!AZ$5","v":8.0236830596365424E-3},{"$f":"'Population at Risk'!BA144/'Population at Risk'!BA$5","v":4.7672248834586192E-3},{"$f":"'Population at Risk'!BB144/'Population at Risk'!BB$5","v":1.0335177554926026E-2},{"$f":"'Population at Risk'!BC144/'Population at Risk'!BC$5","v":3.3864160786767489E-2},142]
[null,"Female 45-49",{"$f":"'Population at Risk'!C145/'Population at Risk'!C$5","v":4.7953926175013789E-3},{"$f":"'Population at Risk'!D145/'Population at Risk'!D$5","v":8.7678563383407297E-3},{"$f":"'Population at Risk'!E145/'Population at Risk'!E$5","v":1.3477860099230472E-2},{"$f":"'Population at Risk'!F145/'Population at Risk'!F$5","v":1.8873197183247533E-2},{"$f":"'Population at Risk'!G145/'Population at Risk'!G$5","v":2.059088346399747E-2},{"$f":"'Population at Risk'!H145/'Population at Risk'!H$5","v":7.5168054871005497E-3},{"$f":"'Population at Risk'!I145/'Population at Risk'!I$5","v":2.0683755623306325E-2},{"$f":"'Population at Risk'!J145/'Population at Risk'!J$5","v":8.1104790913242575E-3},{"$f":"'Population at Risk'!K145/'Population at Risk'!K$5","v":8.7394980222732666E-3},{"$f":"'Population at Risk'!L145/'Population at Risk'!L$5","v":2.1808465961708122E-2},{"$f":"'Population at Risk'!M145/'Population at Risk'!M$5","v":2.1808465961708122E-2},{"$f":"'Population at Risk'!N145/'Population at Risk'!N$5","v":2.8859477597803409E-3},{"$f":"'Population at Risk'!O145/'Population at Risk'!O$5","v":7.3813555322480183E-3},{"$f":"'Population at Risk'!P145/'Population at Risk'!P$5","v":4.4077561087208644E-3},{"$f":"'Population at Risk'!Q145/'Population at Risk'!Q$5","v":1.2973419508493364E-2},{"$f":"'Population at Risk'!R145/'Population at Risk'!R$5","v":5.8812277456328005E-3},{"$f":"'Population at Risk'!S145/'Population at Risk'!S$5","v":9.8427491724247251E-3},{"$f":"'Population at Risk'!T145/'Population at Risk'!T$5","v":5.4693793652153067E-3},{"$f":"'Population at Risk'!U145/'Population at Risk'!U$5","v":3.7678597168300111E-2},{"$f":"'Population at Risk'!V145/'Population at Risk'!V$5","v":9.6969966441483105E-3},{"$f":"'Population at Risk'!W145/'Population at Risk'!W$5","v":1.0398044738062526E-2},{"$f":"'Population at Risk'!X145/'Population at Risk'!X$5","v":1.0398044738062526E-2},{"$f":"'Population at Risk'!Y145/'Population at Risk'!Y$5","v":8.9291684060449402E-3},{"$f":"'Population at Risk'!Z145/'Population at Risk'!Z$5","v":4.564510695345185E-3},{"$f":"'Population at Risk'!AA145/'Population at Risk'!AA$5","v":6.5192578417136698E-3},{"$f":"'Population at Risk'!AB145/'Population at Risk'!AB$5","v":9.9888562540049568E-3},{"$f":"'Population at Risk'!AC145/'Population at Risk'!AC$5","v":5.4135544095951947E-3},{"$f":"'Population at Risk'!AD145/'Population at Risk'!AD$5","v":1.6451360903380449E-2},{"$f":"'Population at Risk'!AE145/'Population at Risk'!AE$5","v":1.5126684999104687E-2},{"$f":"'Population at Risk'!AF145/'Population at Risk'!AF$5","v":5.5393426965251007E-3},{"$f":"'Population at Risk'!AG145/'Population at Risk'!AG$5","v":1.5126684999104687E-2},{"$f":"'Population at Risk'!AH145/'Population at Risk'!AH$5","v":8.544714800391616E-3},{"$f":"'Population at Risk'!AI145/'Population at Risk'!AI$5","v":8.3601523070176691E-3},{"$f":"'Population at Risk'!AJ145/'Population at Risk'!AJ$5","v":1.317087457592731E-2},{"$f":"'Population at Risk'!AK145/'Population at Risk'!AK$5","v":1.7003147582212323E-2},{"$f":"'Population at Risk'!AL145/'Population at Risk'!AL$5","v":5.8280306688082003E-3},{"$f":"'Population at Risk'!AM145/'Population at Risk'!AM$5","v":7.7903449176918447E-3},{"$f":"'Population at Risk'!AN145/'Population at Risk'!AN$5","v":1.799379513877155E-2},{"$f":"'Population at Risk'!AO145/'Population at Risk'!AO$5","v":1.799379513877155E-2},{"$f":"'Population at Risk'!AP145/'Population at Risk'!AP$5","v":1.1169352555543575E-2},{"$f":"'Population at Risk'!AQ145/'Population at Risk'!AQ$5","v":7.826196075783597E-3},{"$f":"'Population at Risk'!AR145/'Population at Risk'!AR$5","v":9.2505180174147529E-3},{"$f":"'Population at Risk'!AS145/'Population at Risk'!AS$5","v":2.0683755623306325E-2},{"$f":"'Population at Risk'!AT145/'Population at Risk'!AT$5","v":1.8277404802550828E-2},{"$f":"'Population at Risk'!AU145/'Population at Risk'!AU$5","v":1.8277404802550828E-2},{"$f":"'Population at Risk'!AV145/'Population at Risk'!AV$5","v":1.0016916227679508E-2},{"$f":"'Population at Risk'!AW145/'Population at Risk'!AW$5","v":9.4385973841923272E-3},{"$f":"'Population at Risk'!AX145/'Population at Risk'!AX$5","v":7.7568320518833361E-3},{"$f":"'Population at Risk'!AY145/'Population at Risk'!AY$5","v":9.630374674053005E-3},{"$f":"'Population at Risk'!AZ145/'Population at Risk'!AZ$5","v":8.874118557983094E-3},{"$f":"'Population at Risk'!BA145/'Population at Risk'!BA$5","v":6.1649893750132722E-3},{"$f":"'Population at Risk'!BB145/'Population at Risk'!BB$5","v":1.1617538818730462E-2},{"$f":"'Population at Risk'!BC145/'Population at Risk'!BC$5","v":3.7678597168300111E-2},143]
[null,"Female 50-54",{"$f":"'Population at Risk'!C146/'Population at Risk'!C$5","v":5.336548655900975E-3},{"$f":"'Population at Risk'!D146/'Population at Risk'!D$5","v":9.0505004647613834E-3},{"$f":"'Population at Risk'!E146/'Population at Risk'!E$5","v":1.3445508058665831E-2},{"$f":"'Population at Risk'!F146/'Population at Risk'!F$5","v":2.1180662280563308E-2},{"$f":"'Population at Risk'!G146/'Population at Risk'!G$5","v":2.5651085118982935E-2},{"$f":"'Population at Risk'!H146/'Population at Risk'!H$5","v":8.3470815648817049E-3},{"$f":"'Population at Risk'!I146/'Population at Risk'!I$5","v":2.1257563037372244E-2},{"$f":"'Population at Risk'!J146/'Population at Risk'!J$5","v":8.6022847383513679E-3},{"$f":"'Population at Risk'!K146/'Population at Risk'!K$5","v":9.0063529237167234E-3},{"$f":"'Population at Risk'!L146/'Population at Risk'!L$5","v":2.360398258575255E-2},{"$f":"'Population at Risk'!M146/'Population at Risk'!M$5","v":2.360398258575255E-2},{"$f":"'Population at Risk'!N146/'Population at Risk'!N$5","v":3.5535923907743005E-3},{"$f":"'Population at Risk'!O146/'Population at Risk'!O$5","v":7.8745797498406267E-3},{"$f":"'Population at Risk'!P146/'Population at Risk'!P$5","v":3.7821391126443542E-3},{"$f":"'Population at Risk'!Q146/'Population at Risk'!Q$5","v":1.1692604206699434E-2},{"$f":"'Population at Risk'!R146/'Population at Risk'!R$5","v":6.6555070286712925E-3},{"$f":"'Population at Risk'!S146/'Population at Risk'!S$5","v":1.0002429740658739E-2},{"$f":"'Population at Risk'!T146/'Population at Risk'!T$5","v":5.4066930687658478E-3},{"$f":"'Population at Risk'!U146/'Population at Risk'!U$5","v":3.8210030132592075E-2},{"$f":"'Population at Risk'!V146/'Population at Risk'!V$5","v":1.0272460572543295E-2},{"$f":"'Population at Risk'!W146/'Population at Risk'!W$5","v":1.1232498130185772E-2},{"$f":"'Population at Risk'!X146/'Population at Risk'!X$5","v":1.1232498130185772E-2},{"$f":"'Population at Risk'!Y146/'Population at Risk'!Y$5","v":9.4643143134154444E-3},{"$f":"'Population at Risk'!Z146/'Population at Risk'!Z$5","v":4.7765417334976502E-3},{"$f":"'Population at Risk'!AA146/'Population at Risk'!AA$5","v":6.5750036103123608E-3},{"$f":"'Population at Risk'!AB146/'Population at Risk'!AB$5","v":1.0465950946881011E-2},{"$f":"'Population at Risk'!AC146/'Population at Risk'!AC$5","v":5.533917343278686E-3},{"$f":"'Population at Risk'!AD146/'Population at Risk'!AD$5","v":1.8646974245663705E-2},{"$f":"'Population at Risk'!AE146/'Population at Risk'!AE$5","v":1.6384185657152876E-2},{"$f":"'Population at Risk'!AF146/'Population at Risk'!AF$5","v":6.1850329494942853E-3},{"$f":"'Population at Risk'!AG146/'Population at Risk'!AG$5","v":1.6384185657152876E-2},{"$f":"'Population at Risk'!AH146/'Population at Risk'!AH$5","v":8.4818485352067905E-3},{"$f":"'Population at Risk'!AI146/'Population at Risk'!AI$5","v":8.1757482966296462E-3},{"$f":"'Population at Risk'!AJ146/'Population at Risk'!AJ$5","v":1.3261812720295047E-2},{"$f":"'Population at Risk'!AK146/'Population at Risk'!AK$5","v":1.8601443454940282E-2},{"$f":"'Population at Risk'!AL146/'Population at Risk'!AL$5","v":6.2510328947700854E-3},{"$f":"'Population at Risk'!AM146/'Population at Risk'!AM$5","v":7.5599350360334924E-3},{"$f":"'Population at Risk'!AN146/'Population at Risk'!AN$5","v":1.9654760843888924E-2},{"$f":"'Population at Risk'!AO146/'Population at Risk'!AO$5","v":1.9654760843888924E-2},{"$f":"'Population at Risk'!AP146/'Population at Risk'!AP$5","v":1.2213674781335816E-2},{"$f":"'Population at Risk'!AQ146/'Population at Risk'!AQ$5","v":7.5533874979785047E-3},{"$f":"'Population at Risk'!AR146/'Population at Risk'!AR$5","v":9.7186644167845115E-3},{"$f":"'Population at Risk'!AS146/'Population at Risk'!AS$5","v":2.1257563037372244E-2},{"$f":"'Population at Risk'!AT146/'Population at Risk'!AT$5","v":1.8407957693997622E-2},{"$f":"'Population at Risk'!AU146/'Population at Risk'!AU$5","v":1.8407957693997622E-2},{"$f":"'Population at Risk'!AV146/'Population at Risk'!AV$5","v":1.1833288376260877E-2},{"$f":"'Population at Risk'!AW146/'Population at Risk'!AW$5","v":9.5767960795683105E-3},{"$f":"'Population at Risk'!AX146/'Population at Risk'!AX$5","v":8.3949626594422948E-3},{"$f":"'Population at Risk'!AY146/'Population at Risk'!AY$5","v":1.0643778940320711E-2},{"$f":"'Population at Risk'!AZ146/'Population at Risk'!AZ$5","v":1.001011265049599E-2},{"$f":"'Population at Risk'!BA146/'Population at Risk'!BA$5","v":6.0693257467803081E-3},{"$f":"'Population at Risk'!BB146/'Population at Risk'!BB$5","v":1.1538945382687391E-2},{"$f":"'Population at Risk'!BC146/'Population at Risk'!BC$5","v":3.8210030132592075E-2},144]
[null,"Female 55-59",{"$f":"'Population at Risk'!C147/'Population at Risk'!C$5","v":1.1610774162033868E-2},{"$f":"'Population at Risk'!D147/'Population at Risk'!D$5","v":1.9492460495508856E-2},{"$f":"'Population at Risk'!E147/'Population at Risk'!E$5","v":2.8816630369297776E-2},{"$f":"'Population at Risk'!F147/'Population at Risk'!F$5","v":4.9193220628590335E-2},{"$f":"'Population at Risk'!G147/'Population at Risk'!G$5","v":5.6595710702855191E-2},{"$f":"'Population at Risk'!H147/'Population at Risk'!H$5","v":1.7668027188876563E-2},{"$f":"'Population at Risk'!I147/'Population at Risk'!I$5","v":5.011055321270759E-2},{"$f":"'Population at Risk'!J147/'Population at Risk'!J$5","v":1.8532193971113886E-2},{"$f":"'Population at Risk'!K147/'Population at Risk'!K$5","v":2.0531141105812223E-2},{"$f":"'Population at Risk'!L147/'Population at Risk'!L$5","v":5.2427723407823153E-2},{"$f":"'Population at Risk'!M147/'Population at Risk'!M$5","v":5.2427723407823153E-2},{"$f":"'Population at Risk'!N147/'Population at Risk'!N$5","v":8.2162983229090731E-3},{"$f":"'Population at Risk'!O147/'Population at Risk'!O$5","v":1.643461765567868E-2},{"$f":"'Population at Risk'!P147/'Population at Risk'!P$5","v":9.4883765285266285E-3},{"$f":"'Population at Risk'!Q147/'Population at Risk'!Q$5","v":2.7538588805941469E-2},{"$f":"'Population at Risk'!R147/'Population at Risk'!R$5","v":1.556426877929196E-2},{"$f":"'Population at Risk'!S147/'Population at Risk'!S$5","v":2.1781661311364504E-2},{"$f":"'Population at Risk'!T147/'Population at Risk'!T$5","v":1.1376355669564346E-2},{"$f":"'Population at Risk'!U147/'Population at Risk'!U$5","v":8.6816253172305596E-2},{"$f":"'Population at Risk'!V147/'Population at Risk'!V$5","v":2.1981581041669668E-2},{"$f":"'Population at Risk'!W147/'Population at Risk'!W$5","v":2.4533690292538633E-2},{"$f":"'Population at Risk'!X147/'Population at Risk'!X$5","v":2.4533690292538633E-2},{"$f":"'Population at Risk'!Y147/'Population at Risk'!Y$5","v":2.0314561974909825E-2},{"$f":"'Population at Risk'!Z147/'Population at Risk'!Z$5","v":1.0202778735981924E-2},{"$f":"'Population at Risk'!AA147/'Population at Risk'!AA$5","v":1.4605186612970583E-2},{"$f":"'Population at Risk'!AB147/'Population at Risk'!AB$5","v":2.2366215344189911E-2},{"$f":"'Population at Risk'!AC147/'Population at Risk'!AC$5","v":1.2219767798423747E-2},{"$f":"'Population at Risk'!AD147/'Population at Risk'!AD$5","v":4.2417109024036129E-2},{"$f":"'Population at Risk'!AE147/'Population at Risk'!AE$5","v":3.7847375351986519E-2},{"$f":"'Population at Risk'!AF147/'Population at Risk'!AF$5","v":1.5470962313941881E-2},{"$f":"'Population at Risk'!AG147/'Population at Risk'!AG$5","v":3.7847375351986519E-2},{"$f":"'Population at Risk'!AH147/'Population at Risk'!AH$5","v":1.8974557433845435E-2},{"$f":"'Population at Risk'!AI147/'Population at Risk'!AI$5","v":1.7338900349878089E-2},{"$f":"'Population at Risk'!AJ147/'Population at Risk'!AJ$5","v":2.7696190727698772E-2},{"$f":"'Population at Risk'!AK147/'Population at Risk'!AK$5","v":3.8879355920920143E-2},{"$f":"'Population at Risk'!AL147/'Population at Risk'!AL$5","v":1.4314431235937378E-2},{"$f":"'Population at Risk'!AM147/'Population at Risk'!AM$5","v":1.596709860362263E-2},{"$f":"'Population at Risk'!AN147/'Population at Risk'!AN$5","v":4.0389743500539414E-2},{"$f":"'Population at Risk'!AO147/'Population at Risk'!AO$5","v":4.0389743500539414E-2},{"$f":"'Population at Risk'!AP147/'Population at Risk'!AP$5","v":2.6773830386976082E-2},{"$f":"'Population at Risk'!AQ147/'Population at Risk'!AQ$5","v":1.5932218026495436E-2},{"$f":"'Population at Risk'!AR147/'Population at Risk'!AR$5","v":2.139619851011881E-2},{"$f":"'Population at Risk'!AS147/'Population at Risk'!AS$5","v":5.011055321270759E-2},{"$f":"'Population at Risk'!AT147/'Population at Risk'!AT$5","v":4.0906246930249947E-2},{"$f":"'Population at Risk'!AU147/'Population at Risk'!AU$5","v":4.0906246930249947E-2},{"$f":"'Population at Risk'!AV147/'Population at Risk'!AV$5","v":2.3856017830248304E-2},{"$f":"'Population at Risk'!AW147/'Population at Risk'!AW$5","v":2.2557732729701636E-2},{"$f":"'Population at Risk'!AX147/'Population at Risk'!AX$5","v":1.7365962868715345E-2},{"$f":"'Population at Risk'!AY147/'Population at Risk'!AY$5","v":2.3727361566144557E-2},{"$f":"'Population at Risk'!AZ147/'Population at Risk'!AZ$5","v":2.2708682854930273E-2},{"$f":"'Population at Risk'!BA147/'Population at Risk'!BA$5","v":1.3881258016081184E-2},{"$f":"'Population at Risk'!BB147/'Population at Risk'!BB$5","v":2.3497850388089124E-2},{"$f":"'Population at Risk'!BC147/'Population at Risk'!BC$5","v":8.6816253172305596E-2},145]
[null,"Female 60-64",{"$f":"'Population at Risk'!C148/'Population at Risk'!C$5","v":1.0777771600740046E-2},{"$f":"'Population at Risk'!D148/'Population at Risk'!D$5","v":1.8605159186826009E-2},{"$f":"'Population at Risk'!E148/'Population at Risk'!E$5","v":2.7872583939369113E-2},{"$f":"'Population at Risk'!F148/'Population at Risk'!F$5","v":4.345082133342415E-2},{"$f":"'Population at Risk'!G148/'Population at Risk'!G$5","v":5.6062866082922463E-2},{"$f":"'Population at Risk'!H148/'Population at Risk'!H$5","v":1.6240450592015336E-2},{"$f":"'Population at Risk'!I148/'Population at Risk'!I$5","v":4.5163332991070851E-2},{"$f":"'Population at Risk'!J148/'Population at Risk'!J$5","v":1.7190776812848405E-2},{"$f":"'Population at Risk'!K148/'Population at Risk'!K$5","v":1.7339772022007212E-2},{"$f":"'Population at Risk'!L148/'Population at Risk'!L$5","v":5.1414394193313916E-2},{"$f":"'Population at Risk'!M148/'Population at Risk'!M$5","v":5.1414394193313916E-2},{"$f":"'Population at Risk'!N148/'Population at Risk'!N$5","v":6.7739387427118688E-3},{"$f":"'Population at Risk'!O148/'Population at Risk'!O$5","v":1.3546355641933169E-2},{"$f":"'Population at Risk'!P148/'Population at Risk'!P$5","v":8.1620443256143031E-3},{"$f":"'Population at Risk'!Q148/'Population at Risk'!Q$5","v":2.4013912965946568E-2},{"$f":"'Population at Risk'!R148/'Population at Risk'!R$5","v":1.3515301750119347E-2},{"$f":"'Population at Risk'!S148/'Population at Risk'!S$5","v":1.8665670417041216E-2},{"$f":"'Population at Risk'!T148/'Population at Risk'!T$5","v":9.283506054350698E-3},{"$f":"'Population at Risk'!U148/'Population at Risk'!U$5","v":8.8087354975706841E-2},{"$f":"'Population at Risk'!V148/'Population at Risk'!V$5","v":1.9927227673289326E-2},{"$f":"'Population at Risk'!W148/'Population at Risk'!W$5","v":2.1199013942096487E-2},{"$f":"'Population at Risk'!X148/'Population at Risk'!X$5","v":2.1199013942096487E-2},{"$f":"'Population at Risk'!Y148/'Population at Risk'!Y$5","v":1.8611359370306106E-2},{"$f":"'Population at Risk'!Z148/'Population at Risk'!Z$5","v":7.5153149045471554E-3},{"$f":"'Population at Risk'!AA148/'Population at Risk'!AA$5","v":1.1894044187808378E-2},{"$f":"'Population at Risk'!AB148/'Population at Risk'!AB$5","v":2.105691487559877E-2},{"$f":"'Population at Risk'!AC148/'Population at Risk'!AC$5","v":9.6797037054929674E-3},{"$f":"'Population at Risk'!AD148/'Population at Risk'!AD$5","v":3.9885446648294902E-2},{"$f":"'Population at Risk'!AE148/'Population at Risk'!AE$5","v":3.4651653261007526E-2},{"$f":"'Population at Risk'!AF148/'Population at Risk'!AF$5","v":1.0756518456453463E-2},{"$f":"'Population at Risk'!AG148/'Population at Risk'!AG$5","v":3.4651653261007526E-2},{"$f":"'Population at Risk'!AH148/'Population at Risk'!AH$5","v":1.5950982636076961E-2},{"$f":"'Population at Risk'!AI148/'Population at Risk'!AI$5","v":1.4529824959582995E-2},{"$f":"'Population at Risk'!AJ148/'Population at Risk'!AJ$5","v":2.3527261495126316E-2},{"$f":"'Population at Risk'!AK148/'Population at Risk'!AK$5","v":3.5137827945266743E-2},{"$f":"'Population at Risk'!AL148/'Population at Risk'!AL$5","v":1.4276958902859006E-2},{"$f":"'Population at Risk'!AM148/'Population at Risk'!AM$5","v":1.3516923491406286E-2},{"$f":"'Population at Risk'!AN148/'Population at Risk'!AN$5","v":3.6582513580406602E-2},{"$f":"'Population at Risk'!AO148/'Population at Risk'!AO$5","v":3.6582513580406602E-2},{"$f":"'Population at Risk'!AP148/'Population at Risk'!AP$5","v":2.410035023900544E-2},{"$f":"'Population at Risk'!AQ148/'Population at Risk'!AQ$5","v":1.382514141036336E-2},{"$f":"'Population at Risk'!AR148/'Population at Risk'!AR$5","v":1.8899893379114217E-2},{"$f":"'Population at Risk'!AS148/'Population at Risk'!AS$5","v":4.5163332991070851E-2},{"$f":"'Population at Risk'!AT148/'Population at Risk'!AT$5","v":4.0750116216775711E-2},{"$f":"'Population at Risk'!AU148/'Population at Risk'!AU$5","v":4.0750116216775711E-2},{"$f":"'Population at Risk'!AV148/'Population at Risk'!AV$5","v":2.2365016715857784E-2},{"$f":"'Population at Risk'!AW148/'Population at Risk'!AW$5","v":1.8850224182047706E-2},{"$f":"'Population at Risk'!AX148/'Population at Risk'!AX$5","v":1.7196373387575549E-2},{"$f":"'Population at Risk'!AY148/'Population at Risk'!AY$5","v":2.0697487440478446E-2},{"$f":"'Population at Risk'!AZ148/'Population at Risk'!AZ$5","v":1.996599565201217E-2},{"$f":"'Population at Risk'!BA148/'Population at Risk'!BA$5","v":1.2508386344161066E-2},{"$f":"'Population at Risk'!BB148/'Population at Risk'!BB$5","v":1.9738194325994864E-2},{"$f":"'Population at Risk'!BC148/'Population at Risk'!BC$5","v":8.8087354975706841E-2},146]
[null,"Female 65-69",{"$f":"'Population at Risk'!C149/'Population at Risk'!C$5","v":0},{"$f":"'Population at Risk'!D149/'Population at Risk'!D$5","v":0},{"$f":"'Population at Risk'!E149/'Population at Risk'!E$5","v":0},{"$f":"'Population at Risk'!F149/'Population at Risk'!F$5","v":0},{"$f":"'Population at Risk'!G149/'Population at Risk'!G$5","v":0},{"$f":"'Population at Risk'!H149/'Population at Risk'!H$5","v":0},{"$f":"'Population at Risk'!I149/'Population at Risk'!I$5","v":0},{"$f":"'Population at Risk'!J149/'Population at Risk'!J$5","v":0},{"$f":"'Population at Risk'!K149/'Population at Risk'!K$5","v":0},{"$f":"'Population at Risk'!L149/'Population at Risk'!L$5","v":0},{"$f":"'Population at Risk'!M149/'Population at Risk'!M$5","v":0},{"$f":"'Population at Risk'!N149/'Population at Risk'!N$5","v":0},{"$f":"'Population at Risk'!O149/'Population at Risk'!O$5","v":0},{"$f":"'Population at Risk'!P149/'Population at Risk'!P$5","v":0},{"$f":"'Population at Risk'!Q149/'Population at Risk'!Q$5","v":0},{"$f":"'Population at Risk'!R149/'Population at Risk'!R$5","v":0},{"$f":"'Population at Risk'!S149/'Population at Risk'!S$5","v":0},{"$f":"'Population at Risk'!T149/'Population at Risk'!T$5","v":0},{"$f":"'Population at Risk'!U149/'Population at Risk'!U$5","v":0},{"$f":"'Population at Risk'!V149/'Population at Risk'!V$5","v":0},{"$f":"'Population at Risk'!W149/'Population at Risk'!W$5","v":0},{"$f":"'Population at Risk'!X149/'Population at Risk'!X$5","v":0},{"$f":"'Population at Risk'!Y149/'Population at Risk'!Y$5","v":0},{"$f":"'Population at Risk'!Z149/'Population at Risk'!Z$5","v":0},{"$f":"'Population at Risk'!AA149/'Population at Risk'!AA$5","v":0},{"$f":"'Population at Risk'!AB149/'Population at Risk'!AB$5","v":0},{"$f":"'Population at Risk'!AC149/'Population at Risk'!AC$5","v":0},{"$f":"'Population at Risk'!AD149/'Population at Risk'!AD$5","v":0},{"$f":"'Population at Risk'!AE149/'Population at Risk'!AE$5","v":0},{"$f":"'Population at Risk'!AF149/'Population at Risk'!AF$5","v":0},{"$f":"'Population at Risk'!AG149/'Population at Risk'!AG$5","v":0},{"$f":"'Population at Risk'!AH149/'Population at Risk'!AH$5","v":0},{"$f":"'Population at Risk'!AI149/'Population at Risk'!AI$5","v":0},{"$f":"'Population at Risk'!AJ149/'Population at Risk'!AJ$5","v":0},{"$f":"'Population at Risk'!AK149/'Population at Risk'!AK$5","v":0},{"$f":"'Population at Risk'!AL149/'Population at Risk'!AL$5","v":0},{"$f":"'Population at Risk'!AM149/'Population at Risk'!AM$5","v":0},{"$f":"'Population at Risk'!AN149/'Population at Risk'!AN$5","v":0},{"$f":"'Population at Risk'!AO149/'Population at Risk'!AO$5","v":0},{"$f":"'Population at Risk'!AP149/'Population at Risk'!AP$5","v":0},{"$f":"'Population at Risk'!AQ149/'Population at Risk'!AQ$5","v":0},{"$f":"'Population at Risk'!AR149/'Population at Risk'!AR$5","v":0},{"$f":"'Population at Risk'!AS149/'Population at Risk'!AS$5","v":0},{"$f":"'Population at Risk'!AT149/'Population at Risk'!AT$5","v":0},{"$f":"'Population at Risk'!AU149/'Population at Risk'!AU$5","v":0},{"$f":"'Population at Risk'!AV149/'Population at Risk'!AV$5","v":0},{"$f":"'Population at Risk'!AW149/'Population at Risk'!AW$5","v":0},{"$f":"'Population at Risk'!AX149/'Population at Risk'!AX$5","v":0},{"$f":"'Population at Risk'!AY149/'Population at Risk'!AY$5","v":0},{"$f":"'Population at Risk'!AZ149/'Population at Risk'!AZ$5","v":0},{"$f":"'Population at Risk'!BA149/'Population at Risk'!BA$5","v":0},{"$f":"'Population at Risk'!BB149/'Population at Risk'!BB$5","v":0},{"$f":"'Population at Risk'!BC149/'Population at Risk'!BC$5","v":0},147]
[null,"Female 70-74",{"$f":"'Population at Risk'!C150/'Population at Risk'!C$5","v":0},{"$f":"'Population at Risk'!D150/'Population at Risk'!D$5","v":0},{"$f":"'Population at Risk'!E150/'Population at Risk'!E$5","v":0},{"$f":"'Population at Risk'!F150/'Population at Risk'!F$5","v":0},{"$f":"'Population at Risk'!G150/'Population at Risk'!G$5","v":0},{"$f":"'Population at Risk'!H150/'Population at Risk'!H$5","v":0},{"$f":"'Population at Risk'!I150/'Population at Risk'!I$5","v":0},{"$f":"'Population at Risk'!J150/'Population at Risk'!J$5","v":0},{"$f":"'Population at Risk'!K150/'Population at Risk'!K$5","v":0},{"$f":"'Population at Risk'!L150/'Population at Risk'!L$5","v":0},{"$f":"'Population at Risk'!M150/'Population at Risk'!M$5","v":0},{"$f":"'Population at Risk'!N150/'Population at Risk'!N$5","v":0},{"$f":"'Population at Risk'!O150/'Population at Risk'!O$5","v":0},{"$f":"'Population at Risk'!P150/'Population at Risk'!P$5","v":0},{"$f":"'Population at Risk'!Q150/'Population at Risk'!Q$5","v":0},{"$f":"'Population at Risk'!R150/'Population at Risk'!R$5","v":0},{"$f":"'Population at Risk'!S150/'Population at Risk'!S$5","v":0},{"$f":"'Population at Risk'!T150/'Population at Risk'!T$5","v":0},{"$f":"'Population at Risk'!U150/'Population at Risk'!U$5","v":0},{"$f":"'Population at Risk'!V150/'Population at Risk'!V$5","v":0},{"$f":"'Population at Risk'!W150/'Population at Risk'!W$5","v":0},{"$f":"'Population at Risk'!X150/'Population at Risk'!X$5","v":0},{"$f":"'Population at Risk'!Y150/'Population at Risk'!Y$5","v":0},{"$f":"'Population at Risk'!Z150/'Population at Risk'!Z$5","v":0},{"$f":"'Population at Risk'!AA150/'Population at Risk'!AA$5","v":0},{"$f":"'Population at Risk'!AB150/'Population at Risk'!AB$5","v":0},{"$f":"'Population at Risk'!AC150/'Population at Risk'!AC$5","v":0},{"$f":"'Population at Risk'!AD150/'Population at Risk'!AD$5","v":0},{"$f":"'Population at Risk'!AE150/'Population at Risk'!AE$5","v":0},{"$f":"'Population at Risk'!AF150/'Population at Risk'!AF$5","v":0},{"$f":"'Population at Risk'!AG150/'Population at Risk'!AG$5","v":0},{"$f":"'Population at Risk'!AH150/'Population at Risk'!AH$5","v":0},{"$f":"'Population at Risk'!AI150/'Population at Risk'!AI$5","v":0},{"$f":"'Population at Risk'!AJ150/'Population at Risk'!AJ$5","v":0},{"$f":"'Population at Risk'!AK150/'Population at Risk'!AK$5","v":0},{"$f":"'Population at Risk'!AL150/'Population at Risk'!AL$5","v":0},{"$f":"'Population at Risk'!AM150/'Population at Risk'!AM$5","v":0},{"$f":"'Population at Risk'!AN150/'Population at Risk'!AN$5","v":0},{"$f":"'Population at Risk'!AO150/'Population at Risk'!AO$5","v":0},{"$f":"'Population at Risk'!AP150/'Population at Risk'!AP$5","v":0},{"$f":"'Population at Risk'!AQ150/'Population at Risk'!AQ$5","v":0},{"$f":"'Population at Risk'!AR150/'Population at Risk'!AR$5","v":0},{"$f":"'Population at Risk'!AS150/'Population at Risk'!AS$5","v":0},{"$f":"'Population at Risk'!AT150/'Population at Risk'!AT$5","v":0},{"$f":"'Population at Risk'!AU150/'Population at Risk'!AU$5","v":0},{"$f":"'Population at Risk'!AV150/'Population at Risk'!AV$5","v":0},{"$f":"'Population at Risk'!AW150/'Population at Risk'!AW$5","v":0},{"$f":"'Population at Risk'!AX150/'Population at Risk'!AX$5","v":0},{"$f":"'Population at Risk'!AY150/'Population at Risk'!AY$5","v":0},{"$f":"'Population at Risk'!AZ150/'Population at Risk'!AZ$5","v":0},{"$f":"'Population at Risk'!BA150/'Population at Risk'!BA$5","v":0},{"$f":"'Population at Risk'!BB150/'Population at Risk'!BB$5","v":0},{"$f":"'Population at Risk'!BC150/'Population at Risk'!BC$5","v":0},148]
[null,"Female 75-79",{"$f":"'Population at Risk'!C151/'Population at Risk'!C$5","v":0},{"$f":"'Population at Risk'!D151/'Population at Risk'!D$5","v":0},{"$f":"'Population at Risk'!E151/'Population at Risk'!E$5","v":0},{"$f":"'Population at Risk'!F151/'Population at Risk'!F$5","v":0},{"$f":"'Population at Risk'!G151/'Population at Risk'!G$5","v":0},{"$f":"'Population at Risk'!H151/'Population at Risk'!H$5","v":0},{"$f":"'Population at Risk'!I151/'Population at Risk'!I$5","v":0},{"$f":"'Population at Risk'!J151/'Population at Risk'!J$5","v":0},{"$f":"'Population at Risk'!K151/'Population at Risk'!K$5","v":0},{"$f":"'Population at Risk'!L151/'Population at Risk'!L$5","v":0},{"$f":"'Population at Risk'!M151/'Population at Risk'!M$5","v":0},{"$f":"'Population at Risk'!N151/'Population at Risk'!N$5","v":0},{"$f":"'Population at Risk'!O151/'Population at Risk'!O$5","v":0},{"$f":"'Population at Risk'!P151/'Population at Risk'!P$5","v":0},{"$f":"'Population at Risk'!Q151/'Population at Risk'!Q$5","v":0},{"$f":"'Population at Risk'!R151/'Population at Risk'!R$5","v":0},{"$f":"'Population at Risk'!S151/'Population at Risk'!S$5","v":0},{"$f":"'Population at Risk'!T151/'Population at Risk'!T$5","v":0},{"$f":"'Population at Risk'!U151/'Population at Risk'!U$5","v":0},{"$f":"'Population at Risk'!V151/'Population at Risk'!V$5","v":0},{"$f":"'Population at Risk'!W151/'Population at Risk'!W$5","v":0},{"$f":"'Population at Risk'!X151/'Population at Risk'!X$5","v":0},{"$f":"'Population at Risk'!Y151/'Population at Risk'!Y$5","v":0},{"$f":"'Population at Risk'!Z151/'Population at Risk'!Z$5","v":0},{"$f":"'Population at Risk'!AA151/'Population at Risk'!AA$5","v":0},{"$f":"'Population at Risk'!AB151/'Population at Risk'!AB$5","v":0},{"$f":"'Population at Risk'!AC151/'Population at Risk'!AC$5","v":0},{"$f":"'Population at Risk'!AD151/'Population at Risk'!AD$5","v":0},{"$f":"'Population at Risk'!AE151/'Population at Risk'!AE$5","v":0},{"$f":"'Population at Risk'!AF151/'Population at Risk'!AF$5","v":0},{"$f":"'Population at Risk'!AG151/'Population at Risk'!AG$5","v":0},{"$f":"'Population at Risk'!AH151/'Population at Risk'!AH$5","v":0},{"$f":"'Population at Risk'!AI151/'Population at Risk'!AI$5","v":0},{"$f":"'Population at Risk'!AJ151/'Population at Risk'!AJ$5","v":0},{"$f":"'Population at Risk'!AK151/'Population at Risk'!AK$5","v":0},{"$f":"'Population at Risk'!AL151/'Population at Risk'!AL$5","v":0},{"$f":"'Population at Risk'!AM151/'Population at Risk'!AM$5","v":0},{"$f":"'Population at Risk'!AN151/'Population at Risk'!AN$5","v":0},{"$f":"'Population at Risk'!AO151/'Population at Risk'!AO$5","v":0},{"$f":"'Population at Risk'!AP151/'Population at Risk'!AP$5","v":0},{"$f":"'Population at Risk'!AQ151/'Population at Risk'!AQ$5","v":0},{"$f":"'Population at Risk'!AR151/'Population at Risk'!AR$5","v":0},{"$f":"'Population at Risk'!AS151/'Population at Risk'!AS$5","v":0},{"$f":"'Population at Risk'!AT151/'Population at Risk'!AT$5","v":0},{"$f":"'Population at Risk'!AU151/'Population at Risk'!AU$5","v":0},{"$f":"'Population at Risk'!AV151/'Population at Risk'!AV$5","v":0},{"$f":"'Population at Risk'!AW151/'Population at Risk'!AW$5","v":0},{"$f":"'Population at Risk'!AX151/'Population at Risk'!AX$5","v":0},{"$f":"'Population at Risk'!AY151/'Population at Risk'!AY$5","v":0},{"$f":"'Population at Risk'!AZ151/'Population at Risk'!AZ$5","v":0},{"$f":"'Population at Risk'!BA151/'Population at Risk'!BA$5","v":0},{"$f":"'Population at Risk'!BB151/'Population at Risk'!BB$5","v":0},{"$f":"'Population at Risk'!BC151/'Population at Risk'!BC$5","v":0},149]
[null,"Female 80-84",{"$f":"'Population at Risk'!C152/'Population at Risk'!C$5","v":0},{"$f":"'Population at Risk'!D152/'Population at Risk'!D$5","v":0},{"$f":"'Population at Risk'!E152/'Population at Risk'!E$5","v":0},{"$f":"'Population at Risk'!F152/'Population at Risk'!F$5","v":0},{"$f":"'Population at Risk'!G152/'Population at Risk'!G$5","v":0},{"$f":"'Population at Risk'!H152/'Population at Risk'!H$5","v":0},{"$f":"'Population at Risk'!I152/'Population at Risk'!I$5","v":0},{"$f":"'Population at Risk'!J152/'Population at Risk'!J$5","v":0},{"$f":"'Population at Risk'!K152/'Population at Risk'!K$5","v":0},{"$f":"'Population at Risk'!L152/'Population at Risk'!L$5","v":0},{"$f":"'Population at Risk'!M152/'Population at Risk'!M$5","v":0},{"$f":"'Population at Risk'!N152/'Population at Risk'!N$5","v":0},{"$f":"'Population at Risk'!O152/'Population at Risk'!O$5","v":0},{"$f":"'Population at Risk'!P152/'Population at Risk'!P$5","v":0},{"$f":"'Population at Risk'!Q152/'Population at Risk'!Q$5","v":0},{"$f":"'Population at Risk'!R152/'Population at Risk'!R$5","v":0},{"$f":"'Population at Risk'!S152/'Population at Risk'!S$5","v":0},{"$f":"'Population at Risk'!T152/'Population at Risk'!T$5","v":0},{"$f":"'Population at Risk'!U152/'Population at Risk'!U$5","v":0},{"$f":"'Population at Risk'!V152/'Population at Risk'!V$5","v":0},{"$f":"'Population at Risk'!W152/'Population at Risk'!W$5","v":0},{"$f":"'Population at Risk'!X152/'Population at Risk'!X$5","v":0},{"$f":"'Population at Risk'!Y152/'Population at Risk'!Y$5","v":0},{"$f":"'Population at Risk'!Z152/'Population at Risk'!Z$5","v":0},{"$f":"'Population at Risk'!AA152/'Population at Risk'!AA$5","v":0},{"$f":"'Population at Risk'!AB152/'Population at Risk'!AB$5","v":0},{"$f":"'Population at Risk'!AC152/'Population at Risk'!AC$5","v":0},{"$f":"'Population at Risk'!AD152/'Population at Risk'!AD$5","v":0},{"$f":"'Population at Risk'!AE152/'Population at Risk'!AE$5","v":0},{"$f":"'Population at Risk'!AF152/'Population at Risk'!AF$5","v":0},{"$f":"'Population at Risk'!AG152/'Population at Risk'!AG$5","v":0},{"$f":"'Population at Risk'!AH152/'Population at Risk'!AH$5","v":0},{"$f":"'Population at Risk'!AI152/'Population at Risk'!AI$5","v":0},{"$f":"'Population at Risk'!AJ152/'Population at Risk'!AJ$5","v":0},{"$f":"'Population at Risk'!AK152/'Population at Risk'!AK$5","v":0},{"$f":"'Population at Risk'!AL152/'Population at Risk'!AL$5","v":0},{"$f":"'Population at Risk'!AM152/'Population at Risk'!AM$5","v":0},{"$f":"'Population at Risk'!AN152/'Population at Risk'!AN$5","v":0},{"$f":"'Population at Risk'!AO152/'Population at Risk'!AO$5","v":0},{"$f":"'Population at Risk'!AP152/'Population at Risk'!AP$5","v":0},{"$f":"'Population at Risk'!AQ152/'Population at Risk'!AQ$5","v":0},{"$f":"'Population at Risk'!AR152/'Population at Risk'!AR$5","v":0},{"$f":"'Population at Risk'!AS152/'Population at Risk'!AS$5","v":0},{"$f":"'Population at Risk'!AT152/'Population at Risk'!AT$5","v":0},{"$f":"'Population at Risk'!AU152/'Population at Risk'!AU$5","v":0},{"$f":"'Population at Risk'!AV152/'Population at Risk'!AV$5","v":0},{"$f":"'Population at Risk'!AW152/'Population at Risk'!AW$5","v":0},{"$f":"'Population at Risk'!AX152/'Population at Risk'!AX$5","v":0},{"$f":"'Population at Risk'!AY152/'Population at Risk'!AY$5","v":0},{"$f":"'Population at Risk'!AZ152/'Population at Risk'!AZ$5","v":0},{"$f":"'Population at Risk'!BA152/'Population at Risk'!BA$5","v":0},{"$f":"'Population at Risk'!BB152/'Population at Risk'!BB$5","v":0},{"$f":"'Population at Risk'!BC152/'Population at Risk'!BC$5","v":0},150]
[null,"Female 85-89",{"$f":"'Population at Risk'!C153/'Population at Risk'!C$5","v":0},{"$f":"'Population at Risk'!D153/'Population at Risk'!D$5","v":0},{"$f":"'Population at Risk'!E153/'Population at Risk'!E$5","v":0},{"$f":"'Population at Risk'!F153/'Population at Risk'!F$5","v":0},{"$f":"'Population at Risk'!G153/'Population at Risk'!G$5","v":0},{"$f":"'Population at Risk'!H153/'Population at Risk'!H$5","v":0},{"$f":"'Population at Risk'!I153/'Population at Risk'!I$5","v":0},{"$f":"'Population at Risk'!J153/'Population at Risk'!J$5","v":0},{"$f":"'Population at Risk'!K153/'Population at Risk'!K$5","v":0},{"$f":"'Population at Risk'!L153/'Population at Risk'!L$5","v":0},{"$f":"'Population at Risk'!M153/'Population at Risk'!M$5","v":0},{"$f":"'Population at Risk'!N153/'Population at Risk'!N$5","v":0},{"$f":"'Population at Risk'!O153/'Population at Risk'!O$5","v":0},{"$f":"'Population at Risk'!P153/'Population at Risk'!P$5","v":0},{"$f":"'Population at Risk'!Q153/'Population at Risk'!Q$5","v":0},{"$f":"'Population at Risk'!R153/'Population at Risk'!R$5","v":0},{"$f":"'Population at Risk'!S153/'Population at Risk'!S$5","v":0},{"$f":"'Population at Risk'!T153/'Population at Risk'!T$5","v":0},{"$f":"'Population at Risk'!U153/'Population at Risk'!U$5","v":0},{"$f":"'Population at Risk'!V153/'Population at Risk'!V$5","v":0},{"$f":"'Population at Risk'!W153/'Population at Risk'!W$5","v":0},{"$f":"'Population at Risk'!X153/'Population at Risk'!X$5","v":0},{"$f":"'Population at Risk'!Y153/'Population at Risk'!Y$5","v":0},{"$f":"'Population at Risk'!Z153/'Population at Risk'!Z$5","v":0},{"$f":"'Population at Risk'!AA153/'Population at Risk'!AA$5","v":0},{"$f":"'Population at Risk'!AB153/'Population at Risk'!AB$5","v":0},{"$f":"'Population at Risk'!AC153/'Population at Risk'!AC$5","v":0},{"$f":"'Population at Risk'!AD153/'Population at Risk'!AD$5","v":0},{"$f":"'Population at Risk'!AE153/'Population at Risk'!AE$5","v":0},{"$f":"'Population at Risk'!AF153/'Population at Risk'!AF$5","v":0},{"$f":"'Population at Risk'!AG153/'Population at Risk'!AG$5","v":0},{"$f":"'Population at Risk'!AH153/'Population at Risk'!AH$5","v":0},{"$f":"'Population at Risk'!AI153/'Population at Risk'!AI$5","v":0},{"$f":"'Population at Risk'!AJ153/'Population at Risk'!AJ$5","v":0},{"$f":"'Population at Risk'!AK153/'Population at Risk'!AK$5","v":0},{"$f":"'Population at Risk'!AL153/'Population at Risk'!AL$5","v":0},{"$f":"'Population at Risk'!AM153/'Population at Risk'!AM$5","v":0},{"$f":"'Population at Risk'!AN153/'Population at Risk'!AN$5","v":0},{"$f":"'Population at Risk'!AO153/'Population at Risk'!AO$5","v":0},{"$f":"'Population at Risk'!AP153/'Population at Risk'!AP$5","v":0},{"$f":"'Population at Risk'!AQ153/'Population at Risk'!AQ$5","v":0},{"$f":"'Population at Risk'!AR153/'Population at Risk'!AR$5","v":0},{"$f":"'Population at Risk'!AS153/'Population at Risk'!AS$5","v":0},{"$f":"'Population at Risk'!AT153/'Population at Risk'!AT$5","v":0},{"$f":"'Population at Risk'!AU153/'Population at Risk'!AU$5","v":0},{"$f":"'Population at Risk'!AV153/'Population at Risk'!AV$5","v":0},{"$f":"'Population at Risk'!AW153/'Population at Risk'!AW$5","v":0},{"$f":"'Population at Risk'!AX153/'Population at Risk'!AX$5","v":0},{"$f":"'Population at Risk'!AY153/'Population at Risk'!AY$5","v":0},{"$f":"'Population at Risk'!AZ153/'Population at Risk'!AZ$5","v":0},{"$f":"'Population at Risk'!BA153/'Population at Risk'!BA$5","v":0},{"$f":"'Population at Risk'!BB153/'Population at Risk'!BB$5","v":0},{"$f":"'Population at Risk'!BC153/'Population at Risk'!BC$5","v":0},151]
[null,"Female 90+",{"$f":"'Population at Risk'!C154/'Population at Risk'!C$5","v":0},{"$f":"'Population at Risk'!D154/'Population at Risk'!D$5","v":0},{"$f":"'Population at Risk'!E154/'Population at Risk'!E$5","v":0},{"$f":"'Population at Risk'!F154/'Population at Risk'!F$5","v":0},{"$f":"'Population at Risk'!G154/'Population at Risk'!G$5","v":0},{"$f":"'Population at Risk'!H154/'Population at Risk'!H$5","v":0},{"$f":"'Population at Risk'!I154/'Population at Risk'!I$5","v":0},{"$f":"'Population at Risk'!J154/'Population at Risk'!J$5","v":0},{"$f":"'Population at Risk'!K154/'Population at Risk'!K$5","v":0},{"$f":"'Population at Risk'!L154/'Population at Risk'!L$5","v":0},{"$f":"'Population at Risk'!M154/'Population at Risk'!M$5","v":0},{"$f":"'Population at Risk'!N154/'Population at Risk'!N$5","v":0},{"$f":"'Population at Risk'!O154/'Population at Risk'!O$5","v":0},{"$f":"'Population at Risk'!P154/'Population at Risk'!P$5","v":0},{"$f":"'Population at Risk'!Q154/'Population at Risk'!Q$5","v":0},{"$f":"'Population at Risk'!R154/'Population at Risk'!R$5","v":0},{"$f":"'Population at Risk'!S154/'Population at Risk'!S$5","v":0},{"$f":"'Population at Risk'!T154/'Population at Risk'!T$5","v":0},{"$f":"'Population at Risk'!U154/'Population at Risk'!U$5","v":0},{"$f":"'Population at Risk'!V154/'Population at Risk'!V$5","v":0},{"$f":"'Population at Risk'!W154/'Population at Risk'!W$5","v":0},{"$f":"'Population at Risk'!X154/'Population at Risk'!X$5","v":0},{"$f":"'Population at Risk'!Y154/'Population at Risk'!Y$5","v":0},{"$f":"'Population at Risk'!Z154/'Population at Risk'!Z$5","v":0},{"$f":"'Population at Risk'!AA154/'Population at Risk'!AA$5","v":0},{"$f":"'Population at Risk'!AB154/'Population at Risk'!AB$5","v":0},{"$f":"'Population at Risk'!AC154/'Population at Risk'!AC$5","v":0},{"$f":"'Population at Risk'!AD154/'Population at Risk'!AD$5","v":0},{"$f":"'Population at Risk'!AE154/'Population at Risk'!AE$5","v":0},{"$f":"'Population at Risk'!AF154/'Population at Risk'!AF$5","v":0},{"$f":"'Population at Risk'!AG154/'Population at Risk'!AG$5","v":0},{"$f":"'Population at Risk'!AH154/'Population at Risk'!AH$5","v":0},{"$f":"'Population at Risk'!AI154/'Population at Risk'!AI$5","v":0},{"$f":"'Population at Risk'!AJ154/'Population at Risk'!AJ$5","v":0},{"$f":"'Population at Risk'!AK154/'Population at Risk'!AK$5","v":0},{"$f":"'Population at Risk'!AL154/'Population at Risk'!AL$5","v":0},{"$f":"'Population at Risk'!AM154/'Population at Risk'!AM$5","v":0},{"$f":"'Population at Risk'!AN154/'Population at Risk'!AN$5","v":0},{"$f":"'Population at Risk'!AO154/'Population at Risk'!AO$5","v":0},{"$f":"'Population at Risk'!AP154/'Population at Risk'!AP$5","v":0},{"$f":"'Population at Risk'!AQ154/'Population at Risk'!AQ$5","v":0},{"$f":"'Population at Risk'!AR154/'Population at Risk'!AR$5","v":0},{"$f":"'Population at Risk'!AS154/'Population at Risk'!AS$5","v":0},{"$f":"'Population at Risk'!AT154/'Population at Risk'!AT$5","v":0},{"$f":"'Population at Risk'!AU154/'Population at Risk'!AU$5","v":0},{"$f":"'Population at Risk'!AV154/'Population at Risk'!AV$5","v":0},{"$f":"'Population at Risk'!AW154/'Population at Risk'!AW$5","v":0},{"$f":"'Population at Risk'!AX154/'Population at Risk'!AX$5","v":0},{"$f":"'Population at Risk'!AY154/'Population at Risk'!AY$5","v":0},{"$f":"'Population at Risk'!AZ154/'Population at Risk'!AZ$5","v":0},{"$f":"'Population at Risk'!BA154/'Population at Risk'!BA$5","v":0},{"$f":"'Population at Risk'!BB154/'Population at Risk'!BB$5","v":0},{"$f":"'Population at Risk'!BC154/'Population at Risk'!BC$5","v":0},152]
[null,"Male 0-4",{"$f":"'Population at Risk'!C155/'Population at Risk'!C$5","v":0},{"$f":"'Population at Risk'!D155/'Population at Risk'!D$5","v":0},{"$f":"'Population at Risk'!E155/'Population at Risk'!E$5","v":0},{"$f":"'Population at Risk'!F155/'Population at Risk'!F$5","v":0},{"$f":"'Population at Risk'!G155/'Population at Risk'!G$5","v":0},{"$f":"'Population at Risk'!H155/'Population at Risk'!H$5","v":0},{"$f":"'Population at Risk'!I155/'Population at Risk'!I$5","v":0},{"$f":"'Population at Risk'!J155/'Population at Risk'!J$5","v":0},{"$f":"'Population at Risk'!K155/'Population at Risk'!K$5","v":0},{"$f":"'Population at Risk'!L155/'Population at Risk'!L$5","v":0},{"$f":"'Population at Risk'!M155/'Population at Risk'!M$5","v":0},{"$f":"'Population at Risk'!N155/'Population at Risk'!N$5","v":0},{"$f":"'Population at Risk'!O155/'Population at Risk'!O$5","v":0},{"$f":"'Population at Risk'!P155/'Population at Risk'!P$5","v":0},{"$f":"'Population at Risk'!Q155/'Population at Risk'!Q$5","v":0},{"$f":"'Population at Risk'!R155/'Population at Risk'!R$5","v":0},{"$f":"'Population at Risk'!S155/'Population at Risk'!S$5","v":0},{"$f":"'Population at Risk'!T155/'Population at Risk'!T$5","v":0},{"$f":"'Population at Risk'!U155/'Population at Risk'!U$5","v":0},{"$f":"'Population at Risk'!V155/'Population at Risk'!V$5","v":0},{"$f":"'Population at Risk'!W155/'Population at Risk'!W$5","v":0},{"$f":"'Population at Risk'!X155/'Population at Risk'!X$5","v":0},{"$f":"'Population at Risk'!Y155/'Population at Risk'!Y$5","v":0},{"$f":"'Population at Risk'!Z155/'Population at Risk'!Z$5","v":0},{"$f":"'Population at Risk'!AA155/'Population at Risk'!AA$5","v":0},{"$f":"'Population at Risk'!AB155/'Population at Risk'!AB$5","v":0},{"$f":"'Population at Risk'!AC155/'Population at Risk'!AC$5","v":0},{"$f":"'Population at Risk'!AD155/'Population at Risk'!AD$5","v":0},{"$f":"'Population at Risk'!AE155/'Population at Risk'!AE$5","v":0},{"$f":"'Population at Risk'!AF155/'Population at Risk'!AF$5","v":0},{"$f":"'Population at Risk'!AG155/'Population at Risk'!AG$5","v":0},{"$f":"'Population at Risk'!AH155/'Population at Risk'!AH$5","v":0},{"$f":"'Population at Risk'!AI155/'Population at Risk'!AI$5","v":0},{"$f":"'Population at Risk'!AJ155/'Population at Risk'!AJ$5","v":0},{"$f":"'Population at Risk'!AK155/'Population at Risk'!AK$5","v":0},{"$f":"'Population at Risk'!AL155/'Population at Risk'!AL$5","v":0},{"$f":"'Population at Risk'!AM155/'Population at Risk'!AM$5","v":0},{"$f":"'Population at Risk'!AN155/'Population at Risk'!AN$5","v":0},{"$f":"'Population at Risk'!AO155/'Population at Risk'!AO$5","v":0},{"$f":"'Population at Risk'!AP155/'Population at Risk'!AP$5","v":0},{"$f":"'Population at Risk'!AQ155/'Population at Risk'!AQ$5","v":0},{"$f":"'Population at Risk'!AR155/'Population at Risk'!AR$5","v":0},{"$f":"'Population at Risk'!AS155/'Population at Risk'!AS$5","v":0},{"$f":"'Population at Risk'!AT155/'Population at Risk'!AT$5","v":0},{"$f":"'Population at Risk'!AU155/'Population at Risk'!AU$5","v":0},{"$f":"'Population at Risk'!AV155/'Population at Risk'!AV$5","v":0},{"$f":"'Population at Risk'!AW155/'Population at Risk'!AW$5","v":0},{"$f":"'Population at Risk'!AX155/'Population at Risk'!AX$5","v":0},{"$f":"'Population at Risk'!AY155/'Population at Risk'!AY$5","v":0},{"$f":"'Population at Risk'!AZ155/'Population at Risk'!AZ$5","v":0},{"$f":"'Population at Risk'!BA155/'Population at Risk'!BA$5","v":0},{"$f":"'Population at Risk'!BB155/'Population at Risk'!BB$5","v":0},{"$f":"'Population at Risk'!BC155/'Population at Risk'!BC$5","v":0},153]
[null,"Male 5-9",{"$f":"'Population at Risk'!C156/'Population at Risk'!C$5","v":0},{"$f":"'Population at Risk'!D156/'Population at Risk'!D$5","v":0},{"$f":"'Population at Risk'!E156/'Population at Risk'!E$5","v":0},{"$f":"'Population at Risk'!F156/'Population at Risk'!F$5","v":0},{"$f":"'Population at Risk'!G156/'Population at Risk'!G$5","v":0},{"$f":"'Population at Risk'!H156/'Population at Risk'!H$5","v":0},{"$f":"'Population at Risk'!I156/'Population at Risk'!I$5","v":0},{"$f":"'Population at Risk'!J156/'Population at Risk'!J$5","v":0},{"$f":"'Population at Risk'!K156/'Population at Risk'!K$5","v":0},{"$f":"'Population at Risk'!L156/'Population at Risk'!L$5","v":0},{"$f":"'Population at Risk'!M156/'Population at Risk'!M$5","v":0},{"$f":"'Population at Risk'!N156/'Population at Risk'!N$5","v":0},{"$f":"'Population at Risk'!O156/'Population at Risk'!O$5","v":0},{"$f":"'Population at Risk'!P156/'Population at Risk'!P$5","v":0},{"$f":"'Population at Risk'!Q156/'Population at Risk'!Q$5","v":0},{"$f":"'Population at Risk'!R156/'Population at Risk'!R$5","v":0},{"$f":"'Population at Risk'!S156/'Population at Risk'!S$5","v":0},{"$f":"'Population at Risk'!T156/'Population at Risk'!T$5","v":0},{"$f":"'Population at Risk'!U156/'Population at Risk'!U$5","v":0},{"$f":"'Population at Risk'!V156/'Population at Risk'!V$5","v":0},{"$f":"'Population at Risk'!W156/'Population at Risk'!W$5","v":0},{"$f":"'Population at Risk'!X156/'Population at Risk'!X$5","v":0},{"$f":"'Population at Risk'!Y156/'Population at Risk'!Y$5","v":0},{"$f":"'Population at Risk'!Z156/'Population at Risk'!Z$5","v":0},{"$f":"'Population at Risk'!AA156/'Population at Risk'!AA$5","v":0},{"$f":"'Population at Risk'!AB156/'Population at Risk'!AB$5","v":0},{"$f":"'Population at Risk'!AC156/'Population at Risk'!AC$5","v":0},{"$f":"'Population at Risk'!AD156/'Population at Risk'!AD$5","v":0},{"$f":"'Population at Risk'!AE156/'Population at Risk'!AE$5","v":0},{"$f":"'Population at Risk'!AF156/'Population at Risk'!AF$5","v":0},{"$f":"'Population at Risk'!AG156/'Population at Risk'!AG$5","v":0},{"$f":"'Population at Risk'!AH156/'Population at Risk'!AH$5","v":0},{"$f":"'Population at Risk'!AI156/'Population at Risk'!AI$5","v":0},{"$f":"'Population at Risk'!AJ156/'Population at Risk'!AJ$5","v":0},{"$f":"'Population at Risk'!AK156/'Population at Risk'!AK$5","v":0},{"$f":"'Population at Risk'!AL156/'Population at Risk'!AL$5","v":0},{"$f":"'Population at Risk'!AM156/'Population at Risk'!AM$5","v":0},{"$f":"'Population at Risk'!AN156/'Population at Risk'!AN$5","v":0},{"$f":"'Population at Risk'!AO156/'Population at Risk'!AO$5","v":0},{"$f":"'Population at Risk'!AP156/'Population at Risk'!AP$5","v":0},{"$f":"'Population at Risk'!AQ156/'Population at Risk'!AQ$5","v":0},{"$f":"'Population at Risk'!AR156/'Population at Risk'!AR$5","v":0},{"$f":"'Population at Risk'!AS156/'Population at Risk'!AS$5","v":0},{"$f":"'Population at Risk'!AT156/'Population at Risk'!AT$5","v":0},{"$f":"'Population at Risk'!AU156/'Population at Risk'!AU$5","v":0},{"$f":"'Population at Risk'!AV156/'Population at Risk'!AV$5","v":0},{"$f":"'Population at Risk'!AW156/'Population at Risk'!AW$5","v":0},{"$f":"'Population at Risk'!AX156/'Population at Risk'!AX$5","v":0},{"$f":"'Population at Risk'!AY156/'Population at Risk'!AY$5","v":0},{"$f":"'Population at Risk'!AZ156/'Population at Risk'!AZ$5","v":0},{"$f":"'Population at Risk'!BA156/'Population at Risk'!BA$5","v":0},{"$f":"'Population at Risk'!BB156/'Population at Risk'!BB$5","v":0},{"$f":"'Population at Risk'!BC156/'Population at Risk'!BC$5","v":0},154]
[null,"Male 10-15",{"$f":"'Population at Risk'!C157/'Population at Risk'!C$5","v":0},{"$f":"'Population at Risk'!D157/'Population at Risk'!D$5","v":0},{"$f":"'Population at Risk'!E157/'Population at Risk'!E$5","v":0},{"$f":"'Population at Risk'!F157/'Population at Risk'!F$5","v":0},{"$f":"'Population at Risk'!G157/'Population at Risk'!G$5","v":0},{"$f":"'Population at Risk'!H157/'Population at Risk'!H$5","v":0},{"$f":"'Population at Risk'!I157/'Population at Risk'!I$5","v":0},{"$f":"'Population at Risk'!J157/'Population at Risk'!J$5","v":0},{"$f":"'Population at Risk'!K157/'Population at Risk'!K$5","v":0},{"$f":"'Population at Risk'!L157/'Population at Risk'!L$5","v":0},{"$f":"'Population at Risk'!M157/'Population at Risk'!M$5","v":0},{"$f":"'Population at Risk'!N157/'Population at Risk'!N$5","v":0},{"$f":"'Population at Risk'!O157/'Population at Risk'!O$5","v":0},{"$f":"'Population at Risk'!P157/'Population at Risk'!P$5","v":0},{"$f":"'Population at Risk'!Q157/'Population at Risk'!Q$5","v":0},{"$f":"'Population at Risk'!R157/'Population at Risk'!R$5","v":0},{"$f":"'Population at Risk'!S157/'Population at Risk'!S$5","v":0},{"$f":"'Population at Risk'!T157/'Population at Risk'!T$5","v":0},{"$f":"'Population at Risk'!U157/'Population at Risk'!U$5","v":0},{"$f":"'Population at Risk'!V157/'Population at Risk'!V$5","v":0},{"$f":"'Population at Risk'!W157/'Population at Risk'!W$5","v":0},{"$f":"'Population at Risk'!X157/'Population at Risk'!X$5","v":0},{"$f":"'Population at Risk'!Y157/'Population at Risk'!Y$5","v":0},{"$f":"'Population at Risk'!Z157/'Population at Risk'!Z$5","v":0},{"$f":"'Population at Risk'!AA157/'Population at Risk'!AA$5","v":0},{"$f":"'Population at Risk'!AB157/'Population at Risk'!AB$5","v":0},{"$f":"'Population at Risk'!AC157/'Population at Risk'!AC$5","v":0},{"$f":"'Population at Risk'!AD157/'Population at Risk'!AD$5","v":0},{"$f":"'Population at Risk'!AE157/'Population at Risk'!AE$5","v":0},{"$f":"'Population at Risk'!AF157/'Population at Risk'!AF$5","v":0},{"$f":"'Population at Risk'!AG157/'Population at Risk'!AG$5","v":0},{"$f":"'Population at Risk'!AH157/'Population at Risk'!AH$5","v":0},{"$f":"'Population at Risk'!AI157/'Population at Risk'!AI$5","v":0},{"$f":"'Population at Risk'!AJ157/'Population at Risk'!AJ$5","v":0},{"$f":"'Population at Risk'!AK157/'Population at Risk'!AK$5","v":0},{"$f":"'Population at Risk'!AL157/'Population at Risk'!AL$5","v":0},{"$f":"'Population at Risk'!AM157/'Population at Risk'!AM$5","v":0},{"$f":"'Population at Risk'!AN157/'Population at Risk'!AN$5","v":0},{"$f":"'Population at Risk'!AO157/'Population at Risk'!AO$5","v":0},{"$f":"'Population at Risk'!AP157/'Population at Risk'!AP$5","v":0},{"$f":"'Population at Risk'!AQ157/'Population at Risk'!AQ$5","v":0},{"$f":"'Population at Risk'!AR157/'Population at Risk'!AR$5","v":0},{"$f":"'Population at Risk'!AS157/'Population at Risk'!AS$5","v":0},{"$f":"'Population at Risk'!AT157/'Population at Risk'!AT$5","v":0},{"$f":"'Population at Risk'!AU157/'Population at Risk'!AU$5","v":0},{"$f":"'Population at Risk'!AV157/'Population at Risk'!AV$5","v":0},{"$f":"'Population at Risk'!AW157/'Population at Risk'!AW$5","v":0},{"$f":"'Population at Risk'!AX157/'Population at Risk'!AX$5","v":0},{"$f":"'Population at Risk'!AY157/'Population at Risk'!AY$5","v":0},{"$f":"'Population at Risk'!AZ157/'Population at Risk'!AZ$5","v":0},{"$f":"'Population at Risk'!BA157/'Population at Risk'!BA$5","v":0},{"$f":"'Population at Risk'!BB157/'Population at Risk'!BB$5","v":0},{"$f":"'Population at Risk'!BC157/'Population at Risk'!BC$5","v":0},155]
[null,"Male 16-19",{"$f":"'Population at Risk'!C158/'Population at Risk'!C$5","v":2.9070806365727743E-3},{"$f":"'Population at Risk'!D158/'Population at Risk'!D$5","v":3.9807396934539684E-3},{"$f":"'Population at Risk'!E158/'Population at Risk'!E$5","v":4.690271817492082E-3},{"$f":"'Population at Risk'!F158/'Population at Risk'!F$5","v":6.8796480161203823E-3},{"$f":"'Population at Risk'!G158/'Population at Risk'!G$5","v":9.4665173116776323E-3},{"$f":"'Population at Risk'!H158/'Population at Risk'!H$5","v":3.2207347880382226E-3},{"$f":"'Population at Risk'!I158/'Population at Risk'!I$5","v":6.4372290659474923E-3},{"$f":"'Population at Risk'!J158/'Population at Risk'!J$5","v":3.2906392597799104E-3},{"$f":"'Population at Risk'!K158/'Population at Risk'!K$5","v":3.624192284931927E-3},{"$f":"'Population at Risk'!L158/'Population at Risk'!L$5","v":6.1281352624182545E-3},{"$f":"'Population at Risk'!M158/'Population at Risk'!M$5","v":6.1281352624182545E-3},{"$f":"'Population at Risk'!N158/'Population at Risk'!N$5","v":2.776260017865862E-3},{"$f":"'Population at Risk'!O158/'Population at Risk'!O$5","v":3.2271221578645489E-3},{"$f":"'Population at Risk'!P158/'Population at Risk'!P$5","v":1.5334702600643276E-3},{"$f":"'Population at Risk'!Q158/'Population at Risk'!Q$5","v":4.8899911808137795E-3},{"$f":"'Population at Risk'!R158/'Population at Risk'!R$5","v":2.8648991691979505E-3},{"$f":"'Population at Risk'!S158/'Population at Risk'!S$5","v":3.6631250846932643E-3},{"$f":"'Population at Risk'!T158/'Population at Risk'!T$5","v":2.374803600855094E-3},{"$f":"'Population at Risk'!U158/'Population at Risk'!U$5","v":1.4327637045930179E-2},{"$f":"'Population at Risk'!V158/'Population at Risk'!V$5","v":3.1144145884850062E-3},{"$f":"'Population at Risk'!W158/'Population at Risk'!W$5","v":3.8555080828064385E-3},{"$f":"'Population at Risk'!X158/'Population at Risk'!X$5","v":3.8555080828064385E-3},{"$f":"'Population at Risk'!Y158/'Population at Risk'!Y$5","v":3.2058661463829847E-3},{"$f":"'Population at Risk'!Z158/'Population at Risk'!Z$5","v":2.1085700868346603E-3},{"$f":"'Population at Risk'!AA158/'Population at Risk'!AA$5","v":2.8395259298827661E-3},{"$f":"'Population at Risk'!AB158/'Population at Risk'!AB$5","v":4.2958639663186818E-3},{"$f":"'Population at Risk'!AC158/'Population at Risk'!AC$5","v":2.442839692321115E-3},{"$f":"'Population at Risk'!AD158/'Population at Risk'!AD$5","v":8.7690439488067266E-3},{"$f":"'Population at Risk'!AE158/'Population at Risk'!AE$5","v":8.3771881688206925E-3},{"$f":"'Population at Risk'!AF158/'Population at Risk'!AF$5","v":2.9528811504441555E-3},{"$f":"'Population at Risk'!AG158/'Population at Risk'!AG$5","v":8.3771881688206925E-3},{"$f":"'Population at Risk'!AH158/'Population at Risk'!AH$5","v":3.6105895335361796E-3},{"$f":"'Population at Risk'!AI158/'Population at Risk'!AI$5","v":3.2257586474718934E-3},{"$f":"'Population at Risk'!AJ158/'Population at Risk'!AJ$5","v":3.9919108002619084E-3},{"$f":"'Population at Risk'!AK158/'Population at Risk'!AK$5","v":5.7517434184111678E-3},{"$f":"'Population at Risk'!AL158/'Population at Risk'!AL$5","v":2.096099966311419E-3},{"$f":"'Population at Risk'!AM158/'Population at Risk'!AM$5","v":3.5374755545574095E-3},{"$f":"'Population at Risk'!AN158/'Population at Risk'!AN$5","v":7.7603168133765976E-3},{"$f":"'Population at Risk'!AO158/'Population at Risk'!AO$5","v":7.7603168133765976E-3},{"$f":"'Population at Risk'!AP158/'Population at Risk'!AP$5","v":7.2334656216846696E-3},{"$f":"'Population at Risk'!AQ158/'Population at Risk'!AQ$5","v":4.2566959297051067E-3},{"$f":"'Population at Risk'!AR158/'Population at Risk'!AR$5","v":3.8217423402333059E-3},{"$f":"'Population at Risk'!AS158/'Population at Risk'!AS$5","v":6.4372290659474923E-3},{"$f":"'Population at Risk'!AT158/'Population at Risk'!AT$5","v":9.4142302937705279E-3},{"$f":"'Population at Risk'!AU158/'Population at Risk'!AU$5","v":9.4142302937705279E-3},{"$f":"'Population at Risk'!AV158/'Population at Risk'!AV$5","v":4.8433147873125776E-3},{"$f":"'Population at Risk'!AW158/'Population at Risk'!AW$5","v":3.6915950595319551E-3},{"$f":"'Population at Risk'!AX158/'Population at Risk'!AX$5","v":3.0537491165951941E-3},{"$f":"'Population at Risk'!AY158/'Population at Risk'!AY$5","v":4.7717902647120888E-3},{"$f":"'Population at Risk'!AZ158/'Population at Risk'!AZ$5","v":5.7376446541547331E-3},{"$f":"'Population at Risk'!BA158/'Population at Risk'!BA$5","v":2.2534002014300281E-3},{"$f":"'Population at Risk'!BB158/'Population at Risk'!BB$5","v":4.2507096659890088E-3},{"$f":"'Population at Risk'!BC158/'Population at Risk'!BC$5","v":1.4327637045930179E-2},156]
[null,"Male 20-24",{"$f":"'Population at Risk'!C159/'Population at Risk'!C$5","v":9.4867574893004909E-3},{"$f":"'Population at Risk'!D159/'Population at Risk'!D$5","v":7.602331073127919E-3},{"$f":"'Population at Risk'!E159/'Population at Risk'!E$5","v":5.7676638015426171E-3},{"$f":"'Population at Risk'!F159/'Population at Risk'!F$5","v":7.3110205403744185E-3},{"$f":"'Population at Risk'!G159/'Population at Risk'!G$5","v":9.5478248223300789E-3},{"$f":"'Population at Risk'!H159/'Population at Risk'!H$5","v":4.0236880592942892E-3},{"$f":"'Population at Risk'!I159/'Population at Risk'!I$5","v":7.6046862265223515E-3},{"$f":"'Population at Risk'!J159/'Population at Risk'!J$5","v":5.9835647477638606E-3},{"$f":"'Population at Risk'!K159/'Population at Risk'!K$5","v":4.8934946520048607E-3},{"$f":"'Population at Risk'!L159/'Population at Risk'!L$5","v":7.0108302422698917E-3},{"$f":"'Population at Risk'!M159/'Population at Risk'!M$5","v":7.0108302422698917E-3},{"$f":"'Population at Risk'!N159/'Population at Risk'!N$5","v":5.4383293923233591E-3},{"$f":"'Population at Risk'!O159/'Population at Risk'!O$5","v":4.3652899726812936E-3},{"$f":"'Population at Risk'!P159/'Population at Risk'!P$5","v":2.1181057967138523E-3},{"$f":"'Population at Risk'!Q159/'Population at Risk'!Q$5","v":6.0177217050712203E-3},{"$f":"'Population at Risk'!R159/'Population at Risk'!R$5","v":3.7965736957663895E-3},{"$f":"'Population at Risk'!S159/'Population at Risk'!S$5","v":6.1591263091584645E-3},{"$f":"'Population at Risk'!T159/'Population at Risk'!T$5","v":6.6570581488500924E-3},{"$f":"'Population at Risk'!U159/'Population at Risk'!U$5","v":1.6809589920028321E-2},{"$f":"'Population at Risk'!V159/'Population at Risk'!V$5","v":4.1293356364897043E-3},{"$f":"'Population at Risk'!W159/'Population at Risk'!W$5","v":5.3385748996830698E-3},{"$f":"'Population at Risk'!X159/'Population at Risk'!X$5","v":5.3385748996830698E-3},{"$f":"'Population at Risk'!Y159/'Population at Risk'!Y$5","v":4.9609229207209452E-3},{"$f":"'Population at Risk'!Z159/'Population at Risk'!Z$5","v":4.8597715633277904E-3},{"$f":"'Population at Risk'!AA159/'Population at Risk'!AA$5","v":4.4745860824531858E-3},{"$f":"'Population at Risk'!AB159/'Population at Risk'!AB$5","v":7.5106259544026801E-3},{"$f":"'Population at Risk'!AC159/'Population at Risk'!AC$5","v":4.4876158042056148E-3},{"$f":"'Population at Risk'!AD159/'Population at Risk'!AD$5","v":9.0946012690618274E-3},{"$f":"'Population at Risk'!AE159/'Population at Risk'!AE$5","v":8.8034829513760661E-3},{"$f":"'Population at Risk'!AF159/'Population at Risk'!AF$5","v":4.3838927848901697E-3},{"$f":"'Population at Risk'!AG159/'Population at Risk'!AG$5","v":8.8034829513760661E-3},{"$f":"'Population at Risk'!AH159/'Population at Risk'!AH$5","v":4.4496169687542868E-3},{"$f":"'Population at Risk'!AI159/'Population at Risk'!AI$5","v":6.3419593274231132E-3},{"$f":"'Population at Risk'!AJ159/'Population at Risk'!AJ$5","v":5.8037732265943769E-3},{"$f":"'Population at Risk'!AK159/'Population at Risk'!AK$5","v":6.9702456147711644E-3},{"$f":"'Population at Risk'!AL159/'Population at Risk'!AL$5","v":2.8896626167426351E-3},{"$f":"'Population at Risk'!AM159/'Population at Risk'!AM$5","v":4.1536195818811282E-3},{"$f":"'Population at Risk'!AN159/'Population at Risk'!AN$5","v":9.3123801760519164E-3},{"$f":"'Population at Risk'!AO159/'Population at Risk'!AO$5","v":9.3123801760519164E-3},{"$f":"'Population at Risk'!AP159/'Population at Risk'!AP$5","v":9.5908404153687687E-3},{"$f":"'Population at Risk'!AQ159/'Population at Risk'!AQ$5","v":4.6850767939684229E-3},{"$f":"'Population at Risk'!AR159/'Population at Risk'!AR$5","v":5.6772854666078025E-3},{"$f":"'Population at Risk'!AS159/'Population at Risk'!AS$5","v":7.6046862265223515E-3},{"$f":"'Population at Risk'!AT159/'Population at Risk'!AT$5","v":1.290933375612845E-2},{"$f":"'Population at Risk'!AU159/'Population at Risk'!AU$5","v":1.290933375612845E-2},{"$f":"'Population at Risk'!AV159/'Population at Risk'!AV$5","v":5.2577595090457004E-3},{"$f":"'Population at Risk'!AW159/'Population at Risk'!AW$5","v":4.7811376187991816E-3},{"$f":"'Population at Risk'!AX159/'Population at Risk'!AX$5","v":6.6043794453821492E-3},{"$f":"'Population at Risk'!AY159/'Population at Risk'!AY$5","v":6.4533504559569363E-3},{"$f":"'Population at Risk'!AZ159/'Population at Risk'!AZ$5","v":7.6150257904033826E-3},{"$f":"'Population at Risk'!BA159/'Population at Risk'!BA$5","v":3.3501120865366573E-3},{"$f":"'Population at Risk'!BB159/'Population at Risk'!BB$5","v":5.9134022224132813E-3},{"$f":"'Population at Risk'!BC159/'Population at Risk'!BC$5","v":1.6809589920028321E-2},157]
[null,"Male 25-29",{"$f":"'Population at Risk'!C160/'Population at Risk'!C$5","v":9.7432691899792395E-3},{"$f":"'Population at Risk'!D160/'Population at Risk'!D$5","v":6.8713346533188719E-3},{"$f":"'Population at Risk'!E160/'Population at Risk'!E$5","v":4.265696052489441E-3},{"$f":"'Population at Risk'!F160/'Population at Risk'!F$5","v":5.3792268196898368E-3},{"$f":"'Population at Risk'!G160/'Population at Risk'!G$5","v":7.1225379331542622E-3},{"$f":"'Population at Risk'!H160/'Population at Risk'!H$5","v":2.9550378034213761E-3},{"$f":"'Population at Risk'!I160/'Population at Risk'!I$5","v":5.8234737815863469E-3},{"$f":"'Population at Risk'!J160/'Population at Risk'!J$5","v":4.1644342932322847E-3},{"$f":"'Population at Risk'!K160/'Population at Risk'!K$5","v":3.1511587509681074E-3},{"$f":"'Population at Risk'!L160/'Population at Risk'!L$5","v":5.5204070188096662E-3},{"$f":"'Population at Risk'!M160/'Population at Risk'!M$5","v":5.5204070188096662E-3},{"$f":"'Population at Risk'!N160/'Population at Risk'!N$5","v":5.3036006139618912E-3},{"$f":"'Population at Risk'!O160/'Population at Risk'!O$5","v":3.6066669015227784E-3},{"$f":"'Population at Risk'!P160/'Population at Risk'!P$5","v":1.6496911639849925E-3},{"$f":"'Population at Risk'!Q160/'Population at Risk'!Q$5","v":4.6818408171148893E-3},{"$f":"'Population at Risk'!R160/'Population at Risk'!R$5","v":2.4286152254103448E-3},{"$f":"'Population at Risk'!S160/'Population at Risk'!S$5","v":5.7601582913522353E-3},{"$f":"'Population at Risk'!T160/'Population at Risk'!T$5","v":7.5925628386244908E-3},{"$f":"'Population at Risk'!U160/'Population at Risk'!U$5","v":1.27901416898777E-2},{"$f":"'Population at Risk'!V160/'Population at Risk'!V$5","v":3.1824788340477882E-3},{"$f":"'Population at Risk'!W160/'Population at Risk'!W$5","v":4.4004928862655069E-3},{"$f":"'Population at Risk'!X160/'Population at Risk'!X$5","v":4.4004928862655069E-3},{"$f":"'Population at Risk'!Y160/'Population at Risk'!Y$5","v":3.627410069299009E-3},{"$f":"'Population at Risk'!Z160/'Population at Risk'!Z$5","v":4.1379922184488476E-3},{"$f":"'Population at Risk'!AA160/'Population at Risk'!AA$5","v":3.6699148148630323E-3},{"$f":"'Population at Risk'!AB160/'Population at Risk'!AB$5","v":6.7142642890201847E-3},{"$f":"'Population at Risk'!AC160/'Population at Risk'!AC$5","v":3.7801640790291685E-3},{"$f":"'Population at Risk'!AD160/'Population at Risk'!AD$5","v":7.3058968616115652E-3},{"$f":"'Population at Risk'!AE160/'Population at Risk'!AE$5","v":7.3056594473326726E-3},{"$f":"'Population at Risk'!AF160/'Population at Risk'!AF$5","v":3.4210383401259087E-3},{"$f":"'Population at Risk'!AG160/'Population at Risk'!AG$5","v":7.3056594473326726E-3},{"$f":"'Population at Risk'!AH160/'Population at Risk'!AH$5","v":3.4559655427879084E-3},{"$f":"'Population at Risk'!AI160/'Population at Risk'!AI$5","v":6.3583524331277579E-3},{"$f":"'Population at Risk'!AJ160/'Population at Risk'!AJ$5","v":4.5542397152408256E-3},{"$f":"'Population at Risk'!AK160/'Population at Risk'!AK$5","v":5.8706337136835403E-3},{"$f":"'Population at Risk'!AL160/'Population at Risk'!AL$5","v":1.9112152680640883E-3},{"$f":"'Population at Risk'!AM160/'Population at Risk'!AM$5","v":3.2561313993706266E-3},{"$f":"'Population at Risk'!AN160/'Population at Risk'!AN$5","v":8.6909683562968361E-3},{"$f":"'Population at Risk'!AO160/'Population at Risk'!AO$5","v":8.6909683562968361E-3},{"$f":"'Population at Risk'!AP160/'Population at Risk'!AP$5","v":6.4012917436069763E-3},{"$f":"'Population at Risk'!AQ160/'Population at Risk'!AQ$5","v":4.110383875793904E-3},{"$f":"'Population at Risk'!AR160/'Population at Risk'!AR$5","v":4.7904971323283006E-3},{"$f":"'Population at Risk'!AS160/'Population at Risk'!AS$5","v":5.8234737815863469E-3},{"$f":"'Population at Risk'!AT160/'Population at Risk'!AT$5","v":9.4233138198121791E-3},{"$f":"'Population at Risk'!AU160/'Population at Risk'!AU$5","v":9.4233138198121791E-3},{"$f":"'Population at Risk'!AV160/'Population at Risk'!AV$5","v":3.7053733522552958E-3},{"$f":"'Population at Risk'!AW160/'Population at Risk'!AW$5","v":3.6796233030142672E-3},{"$f":"'Population at Risk'!AX160/'Population at Risk'!AX$5","v":4.7543183597720728E-3},{"$f":"'Population at Risk'!AY160/'Population at Risk'!AY$5","v":5.1427465644896028E-3},{"$f":"'Population at Risk'!AZ160/'Population at Risk'!AZ$5","v":5.8987166790926563E-3},{"$f":"'Population at Risk'!BA160/'Population at Risk'!BA$5","v":3.0842940458113252E-3},{"$f":"'Population at Risk'!BB160/'Population at Risk'!BB$5","v":4.8017913239908226E-3},{"$f":"'Population at Risk'!BC160/'Population at Risk'!BC$5","v":1.27901416898777E-2},158]
[null,"Male 30-34",{"$f":"'Population at Risk'!C161/'Population at Risk'!C$5","v":7.388095225429013E-3},{"$f":"'Population at Risk'!D161/'Population at Risk'!D$5","v":5.9370039895031744E-3},{"$f":"'Population at Risk'!E161/'Population at Risk'!E$5","v":4.5208817099869625E-3},{"$f":"'Population at Risk'!F161/'Population at Risk'!F$5","v":6.0131631611406991E-3},{"$f":"'Population at Risk'!G161/'Population at Risk'!G$5","v":6.7476675156198278E-3},{"$f":"'Population at Risk'!H161/'Population at Risk'!H$5","v":2.7520058494074151E-3},{"$f":"'Population at Risk'!I161/'Population at Risk'!I$5","v":5.9375279915943749E-3},{"$f":"'Population at Risk'!J161/'Population at Risk'!J$5","v":3.4836583168162791E-3},{"$f":"'Population at Risk'!K161/'Population at Risk'!K$5","v":3.0405917772499281E-3},{"$f":"'Population at Risk'!L161/'Population at Risk'!L$5","v":5.1761687104124095E-3},{"$f":"'Population at Risk'!M161/'Population at Risk'!M$5","v":5.1761687104124095E-3},{"$f":"'Population at Risk'!N161/'Population at Risk'!N$5","v":4.346826338391928E-3},{"$f":"'Population at Risk'!O161/'Population at Risk'!O$5","v":3.0553292860033723E-3},{"$f":"'Population at Risk'!P161/'Population at Risk'!P$5","v":1.4196861459293923E-3},{"$f":"'Population at Risk'!Q161/'Population at Risk'!Q$5","v":4.1171966984678678E-3},{"$f":"'Population at Risk'!R161/'Population at Risk'!R$5","v":2.4478899494215379E-3},{"$f":"'Population at Risk'!S161/'Population at Risk'!S$5","v":5.4244301914311756E-3},{"$f":"'Population at Risk'!T161/'Population at Risk'!T$5","v":6.7201301491714889E-3},{"$f":"'Population at Risk'!U161/'Population at Risk'!U$5","v":1.3972685203783669E-2},{"$f":"'Population at Risk'!V161/'Population at Risk'!V$5","v":3.1907129319366568E-3},{"$f":"'Population at Risk'!W161/'Population at Risk'!W$5","v":4.3638863342344014E-3},{"$f":"'Population at Risk'!X161/'Population at Risk'!X$5","v":4.3638863342344014E-3},{"$f":"'Population at Risk'!Y161/'Population at Risk'!Y$5","v":3.3336737783403489E-3},{"$f":"'Population at Risk'!Z161/'Population at Risk'!Z$5","v":3.8160256713759438E-3},{"$f":"'Population at Risk'!AA161/'Population at Risk'!AA$5","v":3.6189093392004247E-3},{"$f":"'Population at Risk'!AB161/'Population at Risk'!AB$5","v":6.0942134971581621E-3},{"$f":"'Population at Risk'!AC161/'Population at Risk'!AC$5","v":3.5280100743252641E-3},{"$f":"'Population at Risk'!AD161/'Population at Risk'!AD$5","v":7.6853863496651404E-3},{"$f":"'Population at Risk'!AE161/'Population at Risk'!AE$5","v":8.0029992036754882E-3},{"$f":"'Population at Risk'!AF161/'Population at Risk'!AF$5","v":3.0357016040128255E-3},{"$f":"'Population at Risk'!AG161/'Population at Risk'!AG$5","v":8.0029992036754882E-3},{"$f":"'Population at Risk'!AH161/'Population at Risk'!AH$5","v":3.7958282175839437E-3},{"$f":"'Population at Risk'!AI161/'Population at Risk'!AI$5","v":5.8323386119852267E-3},{"$f":"'Population at Risk'!AJ161/'Population at Risk'!AJ$5","v":4.5462216875731482E-3},{"$f":"'Population at Risk'!AK161/'Population at Risk'!AK$5","v":6.7678921415391035E-3},{"$f":"'Population at Risk'!AL161/'Population at Risk'!AL$5","v":1.784404776344196E-3},{"$f":"'Population at Risk'!AM161/'Population at Risk'!AM$5","v":3.7935702579124531E-3},{"$f":"'Population at Risk'!AN161/'Population at Risk'!AN$5","v":7.4922141002558944E-3},{"$f":"'Population at Risk'!AO161/'Population at Risk'!AO$5","v":7.4922141002558944E-3},{"$f":"'Population at Risk'!AP161/'Population at Risk'!AP$5","v":7.1430404972114923E-3},{"$f":"'Population at Risk'!AQ161/'Population at Risk'!AQ$5","v":4.2629527096115808E-3},{"$f":"'Population at Risk'!AR161/'Population at Risk'!AR$5","v":4.6176180343697644E-3},{"$f":"'Population at Risk'!AS161/'Population at Risk'!AS$5","v":5.9375279915943749E-3},{"$f":"'Population at Risk'!AT161/'Population at Risk'!AT$5","v":1.0356315188110414E-2},{"$f":"'Population at Risk'!AU161/'Population at Risk'!AU$5","v":1.0356315188110414E-2},{"$f":"'Population at Risk'!AV161/'Population at Risk'!AV$5","v":3.7995207695539789E-3},{"$f":"'Population at Risk'!AW161/'Population at Risk'!AW$5","v":3.7970345221953368E-3},{"$f":"'Population at Risk'!AX161/'Population at Risk'!AX$5","v":3.7263576333348681E-3},{"$f":"'Population at Risk'!AY161/'Population at Risk'!AY$5","v":5.1657472606511743E-3},{"$f":"'Population at Risk'!AZ161/'Population at Risk'!AZ$5","v":5.9904993674580439E-3},{"$f":"'Population at Risk'!BA161/'Population at Risk'!BA$5","v":2.6801451708429445E-3},{"$f":"'Population at Risk'!BB161/'Population at Risk'!BB$5","v":4.9613192749539733E-3},{"$f":"'Population at Risk'!BC161/'Population at Risk'!BC$5","v":1.3972685203783669E-2},159]
[null,"Male 35-39",{"$f":"'Population at Risk'!C162/'Population at Risk'!C$5","v":4.9845904063413379E-3},{"$f":"'Population at Risk'!D162/'Population at Risk'!D$5","v":4.6843635830637279E-3},{"$f":"'Population at Risk'!E162/'Population at Risk'!E$5","v":4.2517638692368444E-3},{"$f":"'Population at Risk'!F162/'Population at Risk'!F$5","v":5.5394263258138256E-3},{"$f":"'Population at Risk'!G162/'Population at Risk'!G$5","v":7.0497330582311689E-3},{"$f":"'Population at Risk'!H162/'Population at Risk'!H$5","v":2.7383560660125578E-3},{"$f":"'Population at Risk'!I162/'Population at Risk'!I$5","v":5.2140929264252135E-3},{"$f":"'Population at Risk'!J162/'Population at Risk'!J$5","v":3.1780386329358992E-3},{"$f":"'Population at Risk'!K162/'Population at Risk'!K$5","v":2.8557376180648473E-3},{"$f":"'Population at Risk'!L162/'Population at Risk'!L$5","v":4.4699355691405814E-3},{"$f":"'Population at Risk'!M162/'Population at Risk'!M$5","v":4.4699355691405814E-3},{"$f":"'Population at Risk'!N162/'Population at Risk'!N$5","v":2.902406848963735E-3},{"$f":"'Population at Risk'!O162/'Population at Risk'!O$5","v":3.1965202990993295E-3},{"$f":"'Population at Risk'!P162/'Population at Risk'!P$5","v":1.1663430138562684E-3},{"$f":"'Population at Risk'!Q162/'Population at Risk'!Q$5","v":3.9415402370081383E-3},{"$f":"'Population at Risk'!R162/'Population at Risk'!R$5","v":2.3590862167517249E-3},{"$f":"'Population at Risk'!S162/'Population at Risk'!S$5","v":4.4830525111047579E-3},{"$f":"'Population at Risk'!T162/'Population at Risk'!T$5","v":4.7688196219793358E-3},{"$f":"'Population at Risk'!U162/'Population at Risk'!U$5","v":1.4337341336250139E-2},{"$f":"'Population at Risk'!V162/'Population at Risk'!V$5","v":3.5866728959574631E-3},{"$f":"'Population at Risk'!W162/'Population at Risk'!W$5","v":4.0024812497793712E-3},{"$f":"'Population at Risk'!X162/'Population at Risk'!X$5","v":4.0024812497793712E-3},{"$f":"'Population at Risk'!Y162/'Population at Risk'!Y$5","v":3.4239227100782105E-3},{"$f":"'Population at Risk'!Z162/'Population at Risk'!Z$5","v":2.7231061749162671E-3},{"$f":"'Population at Risk'!AA162/'Population at Risk'!AA$5","v":3.0326676662420231E-3},{"$f":"'Population at Risk'!AB162/'Population at Risk'!AB$5","v":4.8793114519306022E-3},{"$f":"'Population at Risk'!AC162/'Population at Risk'!AC$5","v":2.6839620621808527E-3},{"$f":"'Population at Risk'!AD162/'Population at Risk'!AD$5","v":7.4685813509842332E-3},{"$f":"'Population at Risk'!AE162/'Population at Risk'!AE$5","v":7.5670925654448993E-3},{"$f":"'Population at Risk'!AF162/'Population at Risk'!AF$5","v":3.035399964346291E-3},{"$f":"'Population at Risk'!AG162/'Population at Risk'!AG$5","v":7.5670925654448993E-3},{"$f":"'Population at Risk'!AH162/'Population at Risk'!AH$5","v":3.710510344985503E-3},{"$f":"'Population at Risk'!AI162/'Population at Risk'!AI$5","v":4.6052720978234339E-3},{"$f":"'Population at Risk'!AJ162/'Population at Risk'!AJ$5","v":4.3731568944353387E-3},{"$f":"'Population at Risk'!AK162/'Population at Risk'!AK$5","v":5.7503785662822429E-3},{"$f":"'Population at Risk'!AL162/'Population at Risk'!AL$5","v":1.757774267073145E-3},{"$f":"'Population at Risk'!AM162/'Population at Risk'!AM$5","v":3.8698151727021217E-3},{"$f":"'Population at Risk'!AN162/'Population at Risk'!AN$5","v":6.4553090252610201E-3},{"$f":"'Population at Risk'!AO162/'Population at Risk'!AO$5","v":6.4553090252610201E-3},{"$f":"'Population at Risk'!AP162/'Population at Risk'!AP$5","v":6.5033573744661382E-3},{"$f":"'Population at Risk'!AQ162/'Population at Risk'!AQ$5","v":3.4707059915178892E-3},{"$f":"'Population at Risk'!AR162/'Population at Risk'!AR$5","v":3.970794153198837E-3},{"$f":"'Population at Risk'!AS162/'Population at Risk'!AS$5","v":5.2140929264252135E-3},{"$f":"'Population at Risk'!AT162/'Population at Risk'!AT$5","v":9.7693280941531895E-3},{"$f":"'Population at Risk'!AU162/'Population at Risk'!AU$5","v":9.7693280941531895E-3},{"$f":"'Population at Risk'!AV162/'Population at Risk'!AV$5","v":3.6240053563442844E-3},{"$f":"'Population at Risk'!AW162/'Population at Risk'!AW$5","v":3.5299404636707321E-3},{"$f":"'Population at Risk'!AX162/'Population at Risk'!AX$5","v":3.3486862515779555E-3},{"$f":"'Population at Risk'!AY162/'Population at Risk'!AY$5","v":4.5433068149943537E-3},{"$f":"'Population at Risk'!AZ162/'Population at Risk'!AZ$5","v":5.0776450544699672E-3},{"$f":"'Population at Risk'!BA162/'Population at Risk'!BA$5","v":2.1909602298398469E-3},{"$f":"'Population at Risk'!BB162/'Population at Risk'!BB$5","v":4.6065784255508229E-3},{"$f":"'Population at Risk'!BC162/'Population at Risk'!BC$5","v":1.4337341336250139E-2},160]
[null,"Male 40-44",{"$f":"'Population at Risk'!C163/'Population at Risk'!C$5","v":3.8451521059077224E-3},{"$f":"'Population at Risk'!D163/'Population at Risk'!D$5","v":4.4077409810935574E-3},{"$f":"'Population at Risk'!E163/'Population at Risk'!E$5","v":4.6857370089934324E-3},{"$f":"'Population at Risk'!F163/'Population at Risk'!F$5","v":6.507537028050161E-3},{"$f":"'Population at Risk'!G163/'Population at Risk'!G$5","v":8.4364191293299397E-3},{"$f":"'Population at Risk'!H163/'Population at Risk'!H$5","v":3.0578882042047385E-3},{"$f":"'Population at Risk'!I163/'Population at Risk'!I$5","v":6.8563760876824966E-3},{"$f":"'Population at Risk'!J163/'Population at Risk'!J$5","v":3.5493048283723361E-3},{"$f":"'Population at Risk'!K163/'Population at Risk'!K$5","v":3.7561954255627716E-3},{"$f":"'Population at Risk'!L163/'Population at Risk'!L$5","v":5.341260422216062E-3},{"$f":"'Population at Risk'!M163/'Population at Risk'!M$5","v":5.341260422216062E-3},{"$f":"'Population at Risk'!N163/'Population at Risk'!N$5","v":2.6275577155391388E-3},{"$f":"'Population at Risk'!O163/'Population at Risk'!O$5","v":3.2553191674774104E-3},{"$f":"'Population at Risk'!P163/'Population at Risk'!P$5","v":1.3878005481327751E-3},{"$f":"'Population at Risk'!Q163/'Population at Risk'!Q$5","v":5.1167031595235274E-3},{"$f":"'Population at Risk'!R163/'Population at Risk'!R$5","v":2.3770260358905214E-3},{"$f":"'Population at Risk'!S163/'Population at Risk'!S$5","v":4.400501950857348E-3},{"$f":"'Population at Risk'!T163/'Population at Risk'!T$5","v":3.5647554517721485E-3},{"$f":"'Population at Risk'!U163/'Population at Risk'!U$5","v":1.6277951173681974E-2},{"$f":"'Population at Risk'!V163/'Population at Risk'!V$5","v":3.6556473747258755E-3},{"$f":"'Population at Risk'!W163/'Population at Risk'!W$5","v":4.2768448838368276E-3},{"$f":"'Population at Risk'!X163/'Population at Risk'!X$5","v":4.2768448838368276E-3},{"$f":"'Population at Risk'!Y163/'Population at Risk'!Y$5","v":3.6257128317748353E-3},{"$f":"'Population at Risk'!Z163/'Population at Risk'!Z$5","v":1.975912407408755E-3},{"$f":"'Population at Risk'!AA163/'Population at Risk'!AA$5","v":2.796621351530719E-3},{"$f":"'Population at Risk'!AB163/'Population at Risk'!AB$5","v":4.7625157680629302E-3},{"$f":"'Population at Risk'!AC163/'Population at Risk'!AC$5","v":2.2730037780553003E-3},{"$f":"'Population at Risk'!AD163/'Population at Risk'!AD$5","v":7.7921300015683873E-3},{"$f":"'Population at Risk'!AE163/'Population at Risk'!AE$5","v":7.4334658047029356E-3},{"$f":"'Population at Risk'!AF163/'Population at Risk'!AF$5","v":3.0528950650053469E-3},{"$f":"'Population at Risk'!AG163/'Population at Risk'!AG$5","v":7.4334658047029356E-3},{"$f":"'Population at Risk'!AH163/'Population at Risk'!AH$5","v":3.8143347714796058E-3},{"$f":"'Population at Risk'!AI163/'Population at Risk'!AI$5","v":4.1443468524233005E-3},{"$f":"'Population at Risk'!AJ163/'Population at Risk'!AJ$5","v":4.7761440485300632E-3},{"$f":"'Population at Risk'!AK163/'Population at Risk'!AK$5","v":6.4025653469670886E-3},{"$f":"'Population at Risk'!AL163/'Population at Risk'!AL$5","v":2.1708722962653954E-3},{"$f":"'Population at Risk'!AM163/'Population at Risk'!AM$5","v":3.8496598853442979E-3},{"$f":"'Population at Risk'!AN163/'Population at Risk'!AN$5","v":6.6146993715637615E-3},{"$f":"'Population at Risk'!AO163/'Population at Risk'!AO$5","v":6.6146993715637615E-3},{"$f":"'Population at Risk'!AP163/'Population at Risk'!AP$5","v":6.3721856227518534E-3},{"$f":"'Population at Risk'!AQ163/'Population at Risk'!AQ$5","v":3.5375306556145029E-3},{"$f":"'Population at Risk'!AR163/'Population at Risk'!AR$5","v":3.9489595616731396E-3},{"$f":"'Population at Risk'!AS163/'Population at Risk'!AS$5","v":6.8563760876824966E-3},{"$f":"'Population at Risk'!AT163/'Population at Risk'!AT$5","v":9.5522319142831193E-3},{"$f":"'Population at Risk'!AU163/'Population at Risk'!AU$5","v":9.5522319142831193E-3},{"$f":"'Population at Risk'!AV163/'Population at Risk'!AV$5","v":4.1059542552018147E-3},{"$f":"'Population at Risk'!AW163/'Population at Risk'!AW$5","v":3.7732424348816823E-3},{"$f":"'Population at Risk'!AX163/'Population at Risk'!AX$5","v":3.3885515640967403E-3},{"$f":"'Population at Risk'!AY163/'Population at Risk'!AY$5","v":4.789495854230501E-3},{"$f":"'Population at Risk'!AZ163/'Population at Risk'!AZ$5","v":5.2860014375011519E-3},{"$f":"'Population at Risk'!BA163/'Population at Risk'!BA$5","v":2.6661082314918621E-3},{"$f":"'Population at Risk'!BB163/'Population at Risk'!BB$5","v":4.8627056708070732E-3},{"$f":"'Population at Risk'!BC163/'Population at Risk'!BC$5","v":1.6277951173681974E-2},161]
[null,"Male 45-49",{"$f":"'Population at Risk'!C164/'Population at Risk'!C$5","v":5.9109665844754907E-3},{"$f":"'Population at Risk'!D164/'Population at Risk'!D$5","v":7.913058193301549E-3},{"$f":"'Population at Risk'!E164/'Population at Risk'!E$5","v":9.2163539717780851E-3},{"$f":"'Population at Risk'!F164/'Population at Risk'!F$5","v":1.2254239612252129E-2},{"$f":"'Population at Risk'!G164/'Population at Risk'!G$5","v":1.7501115009309304E-2},{"$f":"'Population at Risk'!H164/'Population at Risk'!H$5","v":6.1678732325243938E-3},{"$f":"'Population at Risk'!I164/'Population at Risk'!I$5","v":1.3270084926589407E-2},{"$f":"'Population at Risk'!J164/'Population at Risk'!J$5","v":6.8273895554368516E-3},{"$f":"'Population at Risk'!K164/'Population at Risk'!K$5","v":7.4426741622795941E-3},{"$f":"'Population at Risk'!L164/'Population at Risk'!L$5","v":1.1523353401571122E-2},{"$f":"'Population at Risk'!M164/'Population at Risk'!M$5","v":1.1523353401571122E-2},{"$f":"'Population at Risk'!N164/'Population at Risk'!N$5","v":4.3064959945603018E-3},{"$f":"'Population at Risk'!O164/'Population at Risk'!O$5","v":6.6702348966717088E-3},{"$f":"'Population at Risk'!P164/'Population at Risk'!P$5","v":2.7242261815806383E-3},{"$f":"'Population at Risk'!Q164/'Population at Risk'!Q$5","v":9.1539498103699029E-3},{"$f":"'Population at Risk'!R164/'Population at Risk'!R$5","v":4.278089422331168E-3},{"$f":"'Population at Risk'!S164/'Population at Risk'!S$5","v":7.5171307500371811E-3},{"$f":"'Population at Risk'!T164/'Population at Risk'!T$5","v":4.8870728145947269E-3},{"$f":"'Population at Risk'!U164/'Population at Risk'!U$5","v":3.4195765609293383E-2},{"$f":"'Population at Risk'!V164/'Population at Risk'!V$5","v":6.9508171733194644E-3},{"$f":"'Population at Risk'!W164/'Population at Risk'!W$5","v":7.9833383701819385E-3},{"$f":"'Population at Risk'!X164/'Population at Risk'!X$5","v":7.9833383701819385E-3},{"$f":"'Population at Risk'!Y164/'Population at Risk'!Y$5","v":6.9284270008596986E-3},{"$f":"'Population at Risk'!Z164/'Population at Risk'!Z$5","v":3.2171453189395248E-3},{"$f":"'Population at Risk'!AA164/'Population at Risk'!AA$5","v":5.0490102902386955E-3},{"$f":"'Population at Risk'!AB164/'Population at Risk'!AB$5","v":8.6634394762671423E-3},{"$f":"'Population at Risk'!AC164/'Population at Risk'!AC$5","v":4.0095931393098524E-3},{"$f":"'Population at Risk'!AD164/'Population at Risk'!AD$5","v":1.6017310495074617E-2},{"$f":"'Population at Risk'!AE164/'Population at Risk'!AE$5","v":1.5212016021823375E-2},{"$f":"'Population at Risk'!AF164/'Population at Risk'!AF$5","v":5.4988827187222328E-3},{"$f":"'Population at Risk'!AG164/'Population at Risk'!AG$5","v":1.5212016021823375E-2},{"$f":"'Population at Risk'!AH164/'Population at Risk'!AH$5","v":7.0692025862531096E-3},{"$f":"'Population at Risk'!AI164/'Population at Risk'!AI$5","v":6.5802295586081241E-3},{"$f":"'Population at Risk'!AJ164/'Population at Risk'!AJ$5","v":8.6705812146980338E-3},{"$f":"'Population at Risk'!AK164/'Population at Risk'!AK$5","v":1.2151073760386721E-2},{"$f":"'Population at Risk'!AL164/'Population at Risk'!AL$5","v":4.4427195400453447E-3},{"$f":"'Population at Risk'!AM164/'Population at Risk'!AM$5","v":6.7361367069253561E-3},{"$f":"'Population at Risk'!AN164/'Population at Risk'!AN$5","v":1.3459152938398411E-2},{"$f":"'Population at Risk'!AO164/'Population at Risk'!AO$5","v":1.3459152938398411E-2},{"$f":"'Population at Risk'!AP164/'Population at Risk'!AP$5","v":1.3030345809925913E-2},{"$f":"'Population at Risk'!AQ164/'Population at Risk'!AQ$5","v":7.1579607057210629E-3},{"$f":"'Population at Risk'!AR164/'Population at Risk'!AR$5","v":7.3041700136296118E-3},{"$f":"'Population at Risk'!AS164/'Population at Risk'!AS$5","v":1.3270084926589407E-2},{"$f":"'Population at Risk'!AT164/'Population at Risk'!AT$5","v":1.7856645616730192E-2},{"$f":"'Population at Risk'!AU164/'Population at Risk'!AU$5","v":1.7856645616730192E-2},{"$f":"'Population at Risk'!AV164/'Population at Risk'!AV$5","v":8.0649082856694837E-3},{"$f":"'Population at Risk'!AW164/'Population at Risk'!AW$5","v":7.441515296527406E-3},{"$f":"'Population at Risk'!AX164/'Population at Risk'!AX$5","v":6.3834738518217509E-3},{"$f":"'Population at Risk'!AY164/'Population at Risk'!AY$5","v":9.0126369914164204E-3},{"$f":"'Population at Risk'!AZ164/'Population at Risk'!AZ$5","v":1.0022016072269595E-2},{"$f":"'Population at Risk'!BA164/'Population at Risk'!BA$5","v":5.0978295881573344E-3},{"$f":"'Population at Risk'!BB164/'Population at Risk'!BB$5","v":8.7126312619601153E-3},{"$f":"'Population at Risk'!BC164/'Population at Risk'!BC$5","v":3.4195765609293383E-2},162]
[null,"Male 50-54",{"$f":"'Population at Risk'!C165/'Population at Risk'!C$5","v":6.0410644136074873E-3},{"$f":"'Population at Risk'!D165/'Population at Risk'!D$5","v":7.9234189896266564E-3},{"$f":"'Population at Risk'!E165/'Population at Risk'!E$5","v":9.1292342078657558E-3},{"$f":"'Population at Risk'!F165/'Population at Risk'!F$5","v":1.4260781770983472E-2},{"$f":"'Population at Risk'!G165/'Population at Risk'!G$5","v":1.9571590645902248E-2},{"$f":"'Population at Risk'!H165/'Population at Risk'!H$5","v":6.8985620475272838E-3},{"$f":"'Population at Risk'!I165/'Population at Risk'!I$5","v":1.5242533164390042E-2},{"$f":"'Population at Risk'!J165/'Population at Risk'!J$5","v":7.322801042452678E-3},{"$f":"'Population at Risk'!K165/'Population at Risk'!K$5","v":7.64382751801688E-3},{"$f":"'Population at Risk'!L165/'Population at Risk'!L$5","v":1.3405215993132049E-2},{"$f":"'Population at Risk'!M165/'Population at Risk'!M$5","v":1.3405215993132049E-2},{"$f":"'Population at Risk'!N165/'Population at Risk'!N$5","v":5.5185038493167941E-3},{"$f":"'Population at Risk'!O165/'Population at Risk'!O$5","v":7.5646147637692934E-3},{"$f":"'Population at Risk'!P165/'Population at Risk'!P$5","v":2.7934861692479425E-3},{"$f":"'Population at Risk'!Q165/'Population at Risk'!Q$5","v":9.347986152983729E-3},{"$f":"'Population at Risk'!R165/'Population at Risk'!R$5","v":5.4422908061130919E-3},{"$f":"'Population at Risk'!S165/'Population at Risk'!S$5","v":7.7784722110056043E-3},{"$f":"'Population at Risk'!T165/'Population at Risk'!T$5","v":4.8019853861263366E-3},{"$f":"'Population at Risk'!U165/'Population at Risk'!U$5","v":3.2610531441975149E-2},{"$f":"'Population at Risk'!V165/'Population at Risk'!V$5","v":7.2084767754338926E-3},{"$f":"'Population at Risk'!W165/'Population at Risk'!W$5","v":8.3198331381558882E-3},{"$f":"'Population at Risk'!X165/'Population at Risk'!X$5","v":8.3198331381558882E-3},{"$f":"'Population at Risk'!Y165/'Population at Risk'!Y$5","v":7.2914738613356969E-3},{"$f":"'Population at Risk'!Z165/'Population at Risk'!Z$5","v":3.228273031418562E-3},{"$f":"'Population at Risk'!AA165/'Population at Risk'!AA$5","v":5.275839423147112E-3},{"$f":"'Population at Risk'!AB165/'Population at Risk'!AB$5","v":8.7236022504078876E-3},{"$f":"'Population at Risk'!AC165/'Population at Risk'!AC$5","v":4.3203658889584056E-3},{"$f":"'Population at Risk'!AD165/'Population at Risk'!AD$5","v":1.8559673808717682E-2},{"$f":"'Population at Risk'!AE165/'Population at Risk'!AE$5","v":1.7928447454291833E-2},{"$f":"'Population at Risk'!AF165/'Population at Risk'!AF$5","v":6.5521512991740041E-3},{"$f":"'Population at Risk'!AG165/'Population at Risk'!AG$5","v":1.7928447454291833E-2},{"$f":"'Population at Risk'!AH165/'Population at Risk'!AH$5","v":7.1329301047383283E-3},{"$f":"'Population at Risk'!AI165/'Population at Risk'!AI$5","v":6.5901882866574741E-3},{"$f":"'Population at Risk'!AJ165/'Population at Risk'!AJ$5","v":8.7405993671720427E-3},{"$f":"'Population at Risk'!AK165/'Population at Risk'!AK$5","v":1.2449564825124982E-2},{"$f":"'Population at Risk'!AL165/'Population at Risk'!AL$5","v":4.983228445510802E-3},{"$f":"'Population at Risk'!AM165/'Population at Risk'!AM$5","v":6.6473148277613045E-3},{"$f":"'Population at Risk'!AN165/'Population at Risk'!AN$5","v":1.7696293678264578E-2},{"$f":"'Population at Risk'!AO165/'Population at Risk'!AO$5","v":1.7696293678264578E-2},{"$f":"'Population at Risk'!AP165/'Population at Risk'!AP$5","v":1.5319022953011492E-2},{"$f":"'Population at Risk'!AQ165/'Population at Risk'!AQ$5","v":8.2747593194786376E-3},{"$f":"'Population at Risk'!AR165/'Population at Risk'!AR$5","v":7.8347510071563962E-3},{"$f":"'Population at Risk'!AS165/'Population at Risk'!AS$5","v":1.5242533164390042E-2},{"$f":"'Population at Risk'!AT165/'Population at Risk'!AT$5","v":2.0368797281441288E-2},{"$f":"'Population at Risk'!AU165/'Population at Risk'!AU$5","v":2.0368797281441288E-2},{"$f":"'Population at Risk'!AV165/'Population at Risk'!AV$5","v":8.8772716202696871E-3},{"$f":"'Population at Risk'!AW165/'Population at Risk'!AW$5","v":7.6768838479340344E-3},{"$f":"'Population at Risk'!AX165/'Population at Risk'!AX$5","v":7.0567308596310762E-3},{"$f":"'Population at Risk'!AY165/'Population at Risk'!AY$5","v":1.0073215749312293E-2},{"$f":"'Population at Risk'!AZ165/'Population at Risk'!AZ$5","v":1.1901958618985966E-2},{"$f":"'Population at Risk'!BA165/'Population at Risk'!BA$5","v":5.6344432290160009E-3},{"$f":"'Population at Risk'!BB165/'Population at Risk'!BB$5","v":8.8519404893332276E-3},{"$f":"'Population at Risk'!BC165/'Population at Risk'!BC$5","v":3.2610531441975149E-2},163]
[null,"Male 55-59",{"$f":"'Population at Risk'!C166/'Population at Risk'!C$5","v":9.295625748271058E-3},{"$f":"'Population at Risk'!D166/'Population at Risk'!D$5","v":1.2545252849634501E-2},{"$f":"'Population at Risk'!E166/'Population at Risk'!E$5","v":1.467271368571332E-2},{"$f":"'Population at Risk'!F166/'Population at Risk'!F$5","v":2.2944207709046156E-2},{"$f":"'Population at Risk'!G166/'Population at Risk'!G$5","v":3.4303387433578657E-2},{"$f":"'Population at Risk'!H166/'Population at Risk'!H$5","v":1.0484300213861708E-2},{"$f":"'Population at Risk'!I166/'Population at Risk'!I$5","v":2.5925796861039248E-2},{"$f":"'Population at Risk'!J166/'Population at Risk'!J$5","v":1.1928490843561115E-2},{"$f":"'Population at Risk'!K166/'Population at Risk'!K$5","v":1.3125068070497577E-2},{"$f":"'Population at Risk'!L166/'Population at Risk'!L$5","v":2.2329654173500284E-2},{"$f":"'Population at Risk'!M166/'Population at Risk'!M$5","v":2.2329654173500284E-2},{"$f":"'Population at Risk'!N166/'Population at Risk'!N$5","v":8.890353277542562E-3},{"$f":"'Population at Risk'!O166/'Population at Risk'!O$5","v":1.0342230293536665E-2},{"$f":"'Population at Risk'!P166/'Population at Risk'!P$5","v":4.6273204570085663E-3},{"$f":"'Population at Risk'!Q166/'Population at Risk'!Q$5","v":1.661814549326518E-2},{"$f":"'Population at Risk'!R166/'Population at Risk'!R$5","v":9.2495382535889136E-3},{"$f":"'Population at Risk'!S166/'Population at Risk'!S$5","v":1.2633918538058682E-2},{"$f":"'Population at Risk'!T166/'Population at Risk'!T$5","v":7.0193509848399793E-3},{"$f":"'Population at Risk'!U166/'Population at Risk'!U$5","v":5.5726023353188159E-2},{"$f":"'Population at Risk'!V166/'Population at Risk'!V$5","v":1.0627110820946204E-2},{"$f":"'Population at Risk'!W166/'Population at Risk'!W$5","v":1.4140967277659381E-2},{"$f":"'Population at Risk'!X166/'Population at Risk'!X$5","v":1.4140967277659381E-2},{"$f":"'Population at Risk'!Y166/'Population at Risk'!Y$5","v":1.1246016399346621E-2},{"$f":"'Population at Risk'!Z166/'Population at Risk'!Z$5","v":4.9713673706349116E-3},{"$f":"'Population at Risk'!AA166/'Population at Risk'!AA$5","v":8.2983802936796424E-3},{"$f":"'Population at Risk'!AB166/'Population at Risk'!AB$5","v":1.3993772981394261E-2},{"$f":"'Population at Risk'!AC166/'Population at Risk'!AC$5","v":6.8577655414681499E-3},{"$f":"'Population at Risk'!AD166/'Population at Risk'!AD$5","v":3.2046518037314939E-2},{"$f":"'Population at Risk'!AE166/'Population at Risk'!AE$5","v":3.0739113199036716E-2},{"$f":"'Population at Risk'!AF166/'Population at Risk'!AF$5","v":1.2129858692842435E-2},{"$f":"'Population at Risk'!AG166/'Population at Risk'!AG$5","v":3.0739113199036716E-2},{"$f":"'Population at Risk'!AH166/'Population at Risk'!AH$5","v":1.1098434764385507E-2},{"$f":"'Population at Risk'!AI166/'Population at Risk'!AI$5","v":1.0276221927336793E-2},{"$f":"'Population at Risk'!AJ166/'Population at Risk'!AJ$5","v":1.4013671365811034E-2},{"$f":"'Population at Risk'!AK166/'Population at Risk'!AK$5","v":2.0762593582251049E-2},{"$f":"'Population at Risk'!AL166/'Population at Risk'!AL$5","v":8.2587179885836338E-3},{"$f":"'Population at Risk'!AM166/'Population at Risk'!AM$5","v":9.5415663682803329E-3},{"$f":"'Population at Risk'!AN166/'Population at Risk'!AN$5","v":3.276370771355408E-2},{"$f":"'Population at Risk'!AO166/'Population at Risk'!AO$5","v":3.276370771355408E-2},{"$f":"'Population at Risk'!AP166/'Population at Risk'!AP$5","v":2.4804078320535029E-2},{"$f":"'Population at Risk'!AQ166/'Population at Risk'!AQ$5","v":1.2421548729202956E-2},{"$f":"'Population at Risk'!AR166/'Population at Risk'!AR$5","v":1.2639587597372796E-2},{"$f":"'Population at Risk'!AS166/'Population at Risk'!AS$5","v":2.5925796861039248E-2},{"$f":"'Population at Risk'!AT166/'Population at Risk'!AT$5","v":3.1812246050193012E-2},{"$f":"'Population at Risk'!AU166/'Population at Risk'!AU$5","v":3.1812246050193012E-2},{"$f":"'Population at Risk'!AV166/'Population at Risk'!AV$5","v":1.3825570578641077E-2},{"$f":"'Population at Risk'!AW166/'Population at Risk'!AW$5","v":1.2846472617250108E-2},{"$f":"'Population at Risk'!AX166/'Population at Risk'!AX$5","v":1.1077544956152308E-2},{"$f":"'Population at Risk'!AY166/'Population at Risk'!AY$5","v":1.6640829951627033E-2},{"$f":"'Population at Risk'!AZ166/'Population at Risk'!AZ$5","v":1.9200957342855107E-2},{"$f":"'Population at Risk'!BA166/'Population at Risk'!BA$5","v":9.4195584715691845E-3},{"$f":"'Population at Risk'!BB166/'Population at Risk'!BB$5","v":1.3820036520477766E-2},{"$f":"'Population at Risk'!BC166/'Population at Risk'!BC$5","v":5.5726023353188159E-2},164]
[null,"Male 60-64",{"$f":"'Population at Risk'!C167/'Population at Risk'!C$5","v":8.3434866800743395E-3},{"$f":"'Population at Risk'!D167/'Population at Risk'!D$5","v":1.1569860564299251E-2},{"$f":"'Population at Risk'!E167/'Population at Risk'!E$5","v":1.3717873315710286E-2},{"$f":"'Population at Risk'!F167/'Population at Risk'!F$5","v":1.9524339351329249E-2},{"$f":"'Population at Risk'!G167/'Population at Risk'!G$5","v":3.3259476846427993E-2},{"$f":"'Population at Risk'!H167/'Population at Risk'!H$5","v":1.0102035821893429E-2},{"$f":"'Population at Risk'!I167/'Population at Risk'!I$5","v":2.2875703112681691E-2},{"$f":"'Population at Risk'!J167/'Population at Risk'!J$5","v":1.0450862473300166E-2},{"$f":"'Population at Risk'!K167/'Population at Risk'!K$5","v":1.0751385547109716E-2},{"$f":"'Population at Risk'!L167/'Population at Risk'!L$5","v":2.1608658692114709E-2},{"$f":"'Population at Risk'!M167/'Population at Risk'!M$5","v":2.1608658692114709E-2},{"$f":"'Population at Risk'!N167/'Population at Risk'!N$5","v":7.4583500650524858E-3},{"$f":"'Population at Risk'!O167/'Population at Risk'!O$5","v":9.8635576432046738E-3},{"$f":"'Population at Risk'!P167/'Population at Risk'!P$5","v":4.0864648191763966E-3},{"$f":"'Population at Risk'!Q167/'Population at Risk'!Q$5","v":1.4637436852828327E-2},{"$f":"'Population at Risk'!R167/'Population at Risk'!R$5","v":7.2049034817429428E-3},{"$f":"'Population at Risk'!S167/'Population at Risk'!S$5","v":1.0751130721552602E-2},{"$f":"'Population at Risk'!T167/'Population at Risk'!T$5","v":5.7699519422309215E-3},{"$f":"'Population at Risk'!U167/'Population at Risk'!U$5","v":5.3682473836710175E-2},{"$f":"'Population at Risk'!V167/'Population at Risk'!V$5","v":8.8074000639348678E-3},{"$f":"'Population at Risk'!W167/'Population at Risk'!W$5","v":1.1829556590498953E-2},{"$f":"'Population at Risk'!X167/'Population at Risk'!X$5","v":1.1829556590498953E-2},{"$f":"'Population at Risk'!Y167/'Population at Risk'!Y$5","v":9.5679458894964708E-3},{"$f":"'Population at Risk'!Z167/'Population at Risk'!Z$5","v":4.1517461640822421E-3},{"$f":"'Population at Risk'!AA167/'Population at Risk'!AA$5","v":6.9868855210907721E-3},{"$f":"'Population at Risk'!AB167/'Population at Risk'!AB$5","v":1.2714832365189029E-2},{"$f":"'Population at Risk'!AC167/'Population at Risk'!AC$5","v":5.6409559275107501E-3},{"$f":"'Population at Risk'!AD167/'Population at Risk'!AD$5","v":3.05685735981511E-2},{"$f":"'Population at Risk'!AE167/'Population at Risk'!AE$5","v":2.9091819974012501E-2},{"$f":"'Population at Risk'!AF167/'Population at Risk'!AF$5","v":9.0914596464944271E-3},{"$f":"'Population at Risk'!AG167/'Population at Risk'!AG$5","v":2.9091819974012501E-2},{"$f":"'Population at Risk'!AH167/'Population at Risk'!AH$5","v":9.6028449788170701E-3},{"$f":"'Population at Risk'!AI167/'Population at Risk'!AI$5","v":8.7316563023534417E-3},{"$f":"'Population at Risk'!AJ167/'Population at Risk'!AJ$5","v":1.3325138379629568E-2},{"$f":"'Population at Risk'!AK167/'Population at Risk'!AK$5","v":1.8043168643203614E-2},{"$f":"'Population at Risk'!AL167/'Population at Risk'!AL$5","v":7.332185915072174E-3},{"$f":"'Population at Risk'!AM167/'Population at Risk'!AM$5","v":8.1394185226028697E-3},{"$f":"'Population at Risk'!AN167/'Population at Risk'!AN$5","v":2.6167713751419432E-2},{"$f":"'Population at Risk'!AO167/'Population at Risk'!AO$5","v":2.6167713751419432E-2},{"$f":"'Population at Risk'!AP167/'Population at Risk'!AP$5","v":2.3399013460988105E-2},{"$f":"'Population at Risk'!AQ167/'Population at Risk'!AQ$5","v":9.9961733386469062E-3},{"$f":"'Population at Risk'!AR167/'Population at Risk'!AR$5","v":1.1192658645621346E-2},{"$f":"'Population at Risk'!AS167/'Population at Risk'!AS$5","v":2.2875703112681691E-2},{"$f":"'Population at Risk'!AT167/'Population at Risk'!AT$5","v":3.1340953516116085E-2},{"$f":"'Population at Risk'!AU167/'Population at Risk'!AU$5","v":3.1340953516116085E-2},{"$f":"'Population at Risk'!AV167/'Population at Risk'!AV$5","v":1.4369081952739988E-2},{"$f":"'Population at Risk'!AW167/'Population at Risk'!AW$5","v":1.1246258693672786E-2},{"$f":"'Population at Risk'!AX167/'Population at Risk'!AX$5","v":1.016884009646794E-2},{"$f":"'Population at Risk'!AY167/'Population at Risk'!AY$5","v":1.4354102129013734E-2},{"$f":"'Population at Risk'!AZ167/'Population at Risk'!AZ$5","v":1.6990246412037571E-2},{"$f":"'Population at Risk'!BA167/'Population at Risk'!BA$5","v":8.2913604036816205E-3},{"$f":"'Population at Risk'!BB167/'Population at Risk'!BB$5","v":1.1291735378611936E-2},{"$f":"'Population at Risk'!BC167/'Population at Risk'!BC$5","v":5.3682473836710175E-2},165]
[null,"Male 65-69",{"$f":"'Population at Risk'!C168/'Population at Risk'!C$5","v":0},{"$f":"'Population at Risk'!D168/'Population at Risk'!D$5","v":0},{"$f":"'Population at Risk'!E168/'Population at Risk'!E$5","v":0},{"$f":"'Population at Risk'!F168/'Population at Risk'!F$5","v":0},{"$f":"'Population at Risk'!G168/'Population at Risk'!G$5","v":0},{"$f":"'Population at Risk'!H168/'Population at Risk'!H$5","v":0},{"$f":"'Population at Risk'!I168/'Population at Risk'!I$5","v":0},{"$f":"'Population at Risk'!J168/'Population at Risk'!J$5","v":0},{"$f":"'Population at Risk'!K168/'Population at Risk'!K$5","v":0},{"$f":"'Population at Risk'!L168/'Population at Risk'!L$5","v":0},{"$f":"'Population at Risk'!M168/'Population at Risk'!M$5","v":0},{"$f":"'Population at Risk'!N168/'Population at Risk'!N$5","v":0},{"$f":"'Population at Risk'!O168/'Population at Risk'!O$5","v":0},{"$f":"'Population at Risk'!P168/'Population at Risk'!P$5","v":0},{"$f":"'Population at Risk'!Q168/'Population at Risk'!Q$5","v":0},{"$f":"'Population at Risk'!R168/'Population at Risk'!R$5","v":0},{"$f":"'Population at Risk'!S168/'Population at Risk'!S$5","v":0},{"$f":"'Population at Risk'!T168/'Population at Risk'!T$5","v":0},{"$f":"'Population at Risk'!U168/'Population at Risk'!U$5","v":0},{"$f":"'Population at Risk'!V168/'Population at Risk'!V$5","v":0},{"$f":"'Population at Risk'!W168/'Population at Risk'!W$5","v":0},{"$f":"'Population at Risk'!X168/'Population at Risk'!X$5","v":0},{"$f":"'Population at Risk'!Y168/'Population at Risk'!Y$5","v":0},{"$f":"'Population at Risk'!Z168/'Population at Risk'!Z$5","v":0},{"$f":"'Population at Risk'!AA168/'Population at Risk'!AA$5","v":0},{"$f":"'Population at Risk'!AB168/'Population at Risk'!AB$5","v":0},{"$f":"'Population at Risk'!AC168/'Population at Risk'!AC$5","v":0},{"$f":"'Population at Risk'!AD168/'Population at Risk'!AD$5","v":0},{"$f":"'Population at Risk'!AE168/'Population at Risk'!AE$5","v":0},{"$f":"'Population at Risk'!AF168/'Population at Risk'!AF$5","v":0},{"$f":"'Population at Risk'!AG168/'Population at Risk'!AG$5","v":0},{"$f":"'Population at Risk'!AH168/'Population at Risk'!AH$5","v":0},{"$f":"'Population at Risk'!AI168/'Population at Risk'!AI$5","v":0},{"$f":"'Population at Risk'!AJ168/'Population at Risk'!AJ$5","v":0},{"$f":"'Population at Risk'!AK168/'Population at Risk'!AK$5","v":0},{"$f":"'Population at Risk'!AL168/'Population at Risk'!AL$5","v":0},{"$f":"'Population at Risk'!AM168/'Population at Risk'!AM$5","v":0},{"$f":"'Population at Risk'!AN168/'Population at Risk'!AN$5","v":0},{"$f":"'Population at Risk'!AO168/'Population at Risk'!AO$5","v":0},{"$f":"'Population at Risk'!AP168/'Population at Risk'!AP$5","v":0},{"$f":"'Population at Risk'!AQ168/'Population at Risk'!AQ$5","v":0},{"$f":"'Population at Risk'!AR168/'Population at Risk'!AR$5","v":0},{"$f":"'Population at Risk'!AS168/'Population at Risk'!AS$5","v":0},{"$f":"'Population at Risk'!AT168/'Population at Risk'!AT$5","v":0},{"$f":"'Population at Risk'!AU168/'Population at Risk'!AU$5","v":0},{"$f":"'Population at Risk'!AV168/'Population at Risk'!AV$5","v":0},{"$f":"'Population at Risk'!AW168/'Population at Risk'!AW$5","v":0},{"$f":"'Population at Risk'!AX168/'Population at Risk'!AX$5","v":0},{"$f":"'Population at Risk'!AY168/'Population at Risk'!AY$5","v":0},{"$f":"'Population at Risk'!AZ168/'Population at Risk'!AZ$5","v":0},{"$f":"'Population at Risk'!BA168/'Population at Risk'!BA$5","v":0},{"$f":"'Population at Risk'!BB168/'Population at Risk'!BB$5","v":0},{"$f":"'Population at Risk'!BC168/'Population at Risk'!BC$5","v":0},166]
[null,"Male 70-74",{"$f":"'Population at Risk'!C169/'Population at Risk'!C$5","v":0},{"$f":"'Population at Risk'!D169/'Population at Risk'!D$5","v":0},{"$f":"'Population at Risk'!E169/'Population at Risk'!E$5","v":0},{"$f":"'Population at Risk'!F169/'Population at Risk'!F$5","v":0},{"$f":"'Population at Risk'!G169/'Population at Risk'!G$5","v":0},{"$f":"'Population at Risk'!H169/'Population at Risk'!H$5","v":0},{"$f":"'Population at Risk'!I169/'Population at Risk'!I$5","v":0},{"$f":"'Population at Risk'!J169/'Population at Risk'!J$5","v":0},{"$f":"'Population at Risk'!K169/'Population at Risk'!K$5","v":0},{"$f":"'Population at Risk'!L169/'Population at Risk'!L$5","v":0},{"$f":"'Population at Risk'!M169/'Population at Risk'!M$5","v":0},{"$f":"'Population at Risk'!N169/'Population at Risk'!N$5","v":0},{"$f":"'Population at Risk'!O169/'Population at Risk'!O$5","v":0},{"$f":"'Population at Risk'!P169/'Population at Risk'!P$5","v":0},{"$f":"'Population at Risk'!Q169/'Population at Risk'!Q$5","v":0},{"$f":"'Population at Risk'!R169/'Population at Risk'!R$5","v":0},{"$f":"'Population at Risk'!S169/'Population at Risk'!S$5","v":0},{"$f":"'Population at Risk'!T169/'Population at Risk'!T$5","v":0},{"$f":"'Population at Risk'!U169/'Population at Risk'!U$5","v":0},{"$f":"'Population at Risk'!V169/'Population at Risk'!V$5","v":0},{"$f":"'Population at Risk'!W169/'Population at Risk'!W$5","v":0},{"$f":"'Population at Risk'!X169/'Population at Risk'!X$5","v":0},{"$f":"'Population at Risk'!Y169/'Population at Risk'!Y$5","v":0},{"$f":"'Population at Risk'!Z169/'Population at Risk'!Z$5","v":0},{"$f":"'Population at Risk'!AA169/'Population at Risk'!AA$5","v":0},{"$f":"'Population at Risk'!AB169/'Population at Risk'!AB$5","v":0},{"$f":"'Population at Risk'!AC169/'Population at Risk'!AC$5","v":0},{"$f":"'Population at Risk'!AD169/'Population at Risk'!AD$5","v":0},{"$f":"'Population at Risk'!AE169/'Population at Risk'!AE$5","v":0},{"$f":"'Population at Risk'!AF169/'Population at Risk'!AF$5","v":0},{"$f":"'Population at Risk'!AG169/'Population at Risk'!AG$5","v":0},{"$f":"'Population at Risk'!AH169/'Population at Risk'!AH$5","v":0},{"$f":"'Population at Risk'!AI169/'Population at Risk'!AI$5","v":0},{"$f":"'Population at Risk'!AJ169/'Population at Risk'!AJ$5","v":0},{"$f":"'Population at Risk'!AK169/'Population at Risk'!AK$5","v":0},{"$f":"'Population at Risk'!AL169/'Population at Risk'!AL$5","v":0},{"$f":"'Population at Risk'!AM169/'Population at Risk'!AM$5","v":0},{"$f":"'Population at Risk'!AN169/'Population at Risk'!AN$5","v":0},{"$f":"'Population at Risk'!AO169/'Population at Risk'!AO$5","v":0},{"$f":"'Population at Risk'!AP169/'Population at Risk'!AP$5","v":0},{"$f":"'Population at Risk'!AQ169/'Population at Risk'!AQ$5","v":0},{"$f":"'Population at Risk'!AR169/'Population at Risk'!AR$5","v":0},{"$f":"'Population at Risk'!AS169/'Population at Risk'!AS$5","v":0},{"$f":"'Population at Risk'!AT169/'Population at Risk'!AT$5","v":0},{"$f":"'Population at Risk'!AU169/'Population at Risk'!AU$5","v":0},{"$f":"'Population at Risk'!AV169/'Population at Risk'!AV$5","v":0},{"$f":"'Population at Risk'!AW169/'Population at Risk'!AW$5","v":0},{"$f":"'Population at Risk'!AX169/'Population at Risk'!AX$5","v":0},{"$f":"'Population at Risk'!AY169/'Population at Risk'!AY$5","v":0},{"$f":"'Population at Risk'!AZ169/'Population at Risk'!AZ$5","v":0},{"$f":"'Population at Risk'!BA169/'Population at Risk'!BA$5","v":0},{"$f":"'Population at Risk'!BB169/'Population at Risk'!BB$5","v":0},{"$f":"'Population at Risk'!BC169/'Population at Risk'!BC$5","v":0},167]
[null,"Male 75-79",{"$f":"'Population at Risk'!C170/'Population at Risk'!C$5","v":0},{"$f":"'Population at Risk'!D170/'Population at Risk'!D$5","v":0},{"$f":"'Population at Risk'!E170/'Population at Risk'!E$5","v":0},{"$f":"'Population at Risk'!F170/'Population at Risk'!F$5","v":0},{"$f":"'Population at Risk'!G170/'Population at Risk'!G$5","v":0},{"$f":"'Population at Risk'!H170/'Population at Risk'!H$5","v":0},{"$f":"'Population at Risk'!I170/'Population at Risk'!I$5","v":0},{"$f":"'Population at Risk'!J170/'Population at Risk'!J$5","v":0},{"$f":"'Population at Risk'!K170/'Population at Risk'!K$5","v":0},{"$f":"'Population at Risk'!L170/'Population at Risk'!L$5","v":0},{"$f":"'Population at Risk'!M170/'Population at Risk'!M$5","v":0},{"$f":"'Population at Risk'!N170/'Population at Risk'!N$5","v":0},{"$f":"'Population at Risk'!O170/'Population at Risk'!O$5","v":0},{"$f":"'Population at Risk'!P170/'Population at Risk'!P$5","v":0},{"$f":"'Population at Risk'!Q170/'Population at Risk'!Q$5","v":0},{"$f":"'Population at Risk'!R170/'Population at Risk'!R$5","v":0},{"$f":"'Population at Risk'!S170/'Population at Risk'!S$5","v":0},{"$f":"'Population at Risk'!T170/'Population at Risk'!T$5","v":0},{"$f":"'Population at Risk'!U170/'Population at Risk'!U$5","v":0},{"$f":"'Population at Risk'!V170/'Population at Risk'!V$5","v":0},{"$f":"'Population at Risk'!W170/'Population at Risk'!W$5","v":0},{"$f":"'Population at Risk'!X170/'Population at Risk'!X$5","v":0},{"$f":"'Population at Risk'!Y170/'Population at Risk'!Y$5","v":0},{"$f":"'Population at Risk'!Z170/'Population at Risk'!Z$5","v":0},{"$f":"'Population at Risk'!AA170/'Population at Risk'!AA$5","v":0},{"$f":"'Population at Risk'!AB170/'Population at Risk'!AB$5","v":0},{"$f":"'Population at Risk'!AC170/'Population at Risk'!AC$5","v":0},{"$f":"'Population at Risk'!AD170/'Population at Risk'!AD$5","v":0},{"$f":"'Population at Risk'!AE170/'Population at Risk'!AE$5","v":0},{"$f":"'Population at Risk'!AF170/'Population at Risk'!AF$5","v":0},{"$f":"'Population at Risk'!AG170/'Population at Risk'!AG$5","v":0},{"$f":"'Population at Risk'!AH170/'Population at Risk'!AH$5","v":0},{"$f":"'Population at Risk'!AI170/'Population at Risk'!AI$5","v":0},{"$f":"'Population at Risk'!AJ170/'Population at Risk'!AJ$5","v":0},{"$f":"'Population at Risk'!AK170/'Population at Risk'!AK$5","v":0},{"$f":"'Population at Risk'!AL170/'Population at Risk'!AL$5","v":0},{"$f":"'Population at Risk'!AM170/'Population at Risk'!AM$5","v":0},{"$f":"'Population at Risk'!AN170/'Population at Risk'!AN$5","v":0},{"$f":"'Population at Risk'!AO170/'Population at Risk'!AO$5","v":0},{"$f":"'Population at Risk'!AP170/'Population at Risk'!AP$5","v":0},{"$f":"'Population at Risk'!AQ170/'Population at Risk'!AQ$5","v":0},{"$f":"'Population at Risk'!AR170/'Population at Risk'!AR$5","v":0},{"$f":"'Population at Risk'!AS170/'Population at Risk'!AS$5","v":0},{"$f":"'Population at Risk'!AT170/'Population at Risk'!AT$5","v":0},{"$f":"'Population at Risk'!AU170/'Population at Risk'!AU$5","v":0},{"$f":"'Population at Risk'!AV170/'Population at Risk'!AV$5","v":0},{"$f":"'Population at Risk'!AW170/'Population at Risk'!AW$5","v":0},{"$f":"'Population at Risk'!AX170/'Population at Risk'!AX$5","v":0},{"$f":"'Population at Risk'!AY170/'Population at Risk'!AY$5","v":0},{"$f":"'Population at Risk'!AZ170/'Population at Risk'!AZ$5","v":0},{"$f":"'Population at Risk'!BA170/'Population at Risk'!BA$5","v":0},{"$f":"'Population at Risk'!BB170/'Population at Risk'!BB$5","v":0},{"$f":"'Population at Risk'!BC170/'Population at Risk'!BC$5","v":0},168]
[null,"Male 80-84",{"$f":"'Population at Risk'!C171/'Population at Risk'!C$5","v":0},{"$f":"'Population at Risk'!D171/'Population at Risk'!D$5","v":0},{"$f":"'Population at Risk'!E171/'Population at Risk'!E$5","v":0},{"$f":"'Population at Risk'!F171/'Population at Risk'!F$5","v":0},{"$f":"'Population at Risk'!G171/'Population at Risk'!G$5","v":0},{"$f":"'Population at Risk'!H171/'Population at Risk'!H$5","v":0},{"$f":"'Population at Risk'!I171/'Population at Risk'!I$5","v":0},{"$f":"'Population at Risk'!J171/'Population at Risk'!J$5","v":0},{"$f":"'Population at Risk'!K171/'Population at Risk'!K$5","v":0},{"$f":"'Population at Risk'!L171/'Population at Risk'!L$5","v":0},{"$f":"'Population at Risk'!M171/'Population at Risk'!M$5","v":0},{"$f":"'Population at Risk'!N171/'Population at Risk'!N$5","v":0},{"$f":"'Population at Risk'!O171/'Population at Risk'!O$5","v":0},{"$f":"'Population at Risk'!P171/'Population at Risk'!P$5","v":0},{"$f":"'Population at Risk'!Q171/'Population at Risk'!Q$5","v":0},{"$f":"'Population at Risk'!R171/'Population at Risk'!R$5","v":0},{"$f":"'Population at Risk'!S171/'Population at Risk'!S$5","v":0},{"$f":"'Population at Risk'!T171/'Population at Risk'!T$5","v":0},{"$f":"'Population at Risk'!U171/'Population at Risk'!U$5","v":0},{"$f":"'Population at Risk'!V171/'Population at Risk'!V$5","v":0},{"$f":"'Population at Risk'!W171/'Population at Risk'!W$5","v":0},{"$f":"'Population at Risk'!X171/'Population at Risk'!X$5","v":0},{"$f":"'Population at Risk'!Y171/'Population at Risk'!Y$5","v":0},{"$f":"'Population at Risk'!Z171/'Population at Risk'!Z$5","v":0},{"$f":"'Population at Risk'!AA171/'Population at Risk'!AA$5","v":0},{"$f":"'Population at Risk'!AB171/'Population at Risk'!AB$5","v":0},{"$f":"'Population at Risk'!AC171/'Population at Risk'!AC$5","v":0},{"$f":"'Population at Risk'!AD171/'Population at Risk'!AD$5","v":0},{"$f":"'Population at Risk'!AE171/'Population at Risk'!AE$5","v":0},{"$f":"'Population at Risk'!AF171/'Population at Risk'!AF$5","v":0},{"$f":"'Population at Risk'!AG171/'Population at Risk'!AG$5","v":0},{"$f":"'Population at Risk'!AH171/'Population at Risk'!AH$5","v":0},{"$f":"'Population at Risk'!AI171/'Population at Risk'!AI$5","v":0},{"$f":"'Population at Risk'!AJ171/'Population at Risk'!AJ$5","v":0},{"$f":"'Population at Risk'!AK171/'Population at Risk'!AK$5","v":0},{"$f":"'Population at Risk'!AL171/'Population at Risk'!AL$5","v":0},{"$f":"'Population at Risk'!AM171/'Population at Risk'!AM$5","v":0},{"$f":"'Population at Risk'!AN171/'Population at Risk'!AN$5","v":0},{"$f":"'Population at Risk'!AO171/'Population at Risk'!AO$5","v":0},{"$f":"'Population at Risk'!AP171/'Population at Risk'!AP$5","v":0},{"$f":"'Population at Risk'!AQ171/'Population at Risk'!AQ$5","v":0},{"$f":"'Population at Risk'!AR171/'Population at Risk'!AR$5","v":0},{"$f":"'Population at Risk'!AS171/'Population at Risk'!AS$5","v":0},{"$f":"'Population at Risk'!AT171/'Population at Risk'!AT$5","v":0},{"$f":"'Population at Risk'!AU171/'Population at Risk'!AU$5","v":0},{"$f":"'Population at Risk'!AV171/'Population at Risk'!AV$5","v":0},{"$f":"'Population at Risk'!AW171/'Population at Risk'!AW$5","v":0},{"$f":"'Population at Risk'!AX171/'Population at Risk'!AX$5","v":0},{"$f":"'Population at Risk'!AY171/'Population at Risk'!AY$5","v":0},{"$f":"'Population at Risk'!AZ171/'Population at Risk'!AZ$5","v":0},{"$f":"'Population at Risk'!BA171/'Population at Risk'!BA$5","v":0},{"$f":"'Population at Risk'!BB171/'Population at Risk'!BB$5","v":0},{"$f":"'Population at Risk'!BC171/'Population at Risk'!BC$5","v":0},169]
[null,"Male 85-89",{"$f":"'Population at Risk'!C172/'Population at Risk'!C$5","v":0},{"$f":"'Population at Risk'!D172/'Population at Risk'!D$5","v":0},{"$f":"'Population at Risk'!E172/'Population at Risk'!E$5","v":0},{"$f":"'Population at Risk'!F172/'Population at Risk'!F$5","v":0},{"$f":"'Population at Risk'!G172/'Population at Risk'!G$5","v":0},{"$f":"'Population at Risk'!H172/'Population at Risk'!H$5","v":0},{"$f":"'Population at Risk'!I172/'Population at Risk'!I$5","v":0},{"$f":"'Population at Risk'!J172/'Population at Risk'!J$5","v":0},{"$f":"'Population at Risk'!K172/'Population at Risk'!K$5","v":0},{"$f":"'Population at Risk'!L172/'Population at Risk'!L$5","v":0},{"$f":"'Population at Risk'!M172/'Population at Risk'!M$5","v":0},{"$f":"'Population at Risk'!N172/'Population at Risk'!N$5","v":0},{"$f":"'Population at Risk'!O172/'Population at Risk'!O$5","v":0},{"$f":"'Population at Risk'!P172/'Population at Risk'!P$5","v":0},{"$f":"'Population at Risk'!Q172/'Population at Risk'!Q$5","v":0},{"$f":"'Population at Risk'!R172/'Population at Risk'!R$5","v":0},{"$f":"'Population at Risk'!S172/'Population at Risk'!S$5","v":0},{"$f":"'Population at Risk'!T172/'Population at Risk'!T$5","v":0},{"$f":"'Population at Risk'!U172/'Population at Risk'!U$5","v":0},{"$f":"'Population at Risk'!V172/'Population at Risk'!V$5","v":0},{"$f":"'Population at Risk'!W172/'Population at Risk'!W$5","v":0},{"$f":"'Population at Risk'!X172/'Population at Risk'!X$5","v":0},{"$f":"'Population at Risk'!Y172/'Population at Risk'!Y$5","v":0},{"$f":"'Population at Risk'!Z172/'Population at Risk'!Z$5","v":0},{"$f":"'Population at Risk'!AA172/'Population at Risk'!AA$5","v":0},{"$f":"'Population at Risk'!AB172/'Population at Risk'!AB$5","v":0},{"$f":"'Population at Risk'!AC172/'Population at Risk'!AC$5","v":0},{"$f":"'Population at Risk'!AD172/'Population at Risk'!AD$5","v":0},{"$f":"'Population at Risk'!AE172/'Population at Risk'!AE$5","v":0},{"$f":"'Population at Risk'!AF172/'Population at Risk'!AF$5","v":0},{"$f":"'Population at Risk'!AG172/'Population at Risk'!AG$5","v":0},{"$f":"'Population at Risk'!AH172/'Population at Risk'!AH$5","v":0},{"$f":"'Population at Risk'!AI172/'Population at Risk'!AI$5","v":0},{"$f":"'Population at Risk'!AJ172/'Population at Risk'!AJ$5","v":0},{"$f":"'Population at Risk'!AK172/'Population at Risk'!AK$5","v":0},{"$f":"'Population at Risk'!AL172/'Population at Risk'!AL$5","v":0},{"$f":"'Population at Risk'!AM172/'Population at Risk'!AM$5","v":0},{"$f":"'Population at Risk'!AN172/'Population at Risk'!AN$5","v":0},{"$f":"'Population at Risk'!AO172/'Population at Risk'!AO$5","v":0},{"$f":"'Population at Risk'!AP172/'Population at Risk'!AP$5","v":0},{"$f":"'Population at Risk'!AQ172/'Population at Risk'!AQ$5","v":0},{"$f":"'Population at Risk'!AR172/'Population at Risk'!AR$5","v":0},{"$f":"'Population at Risk'!AS172/'Population at Risk'!AS$5","v":0},{"$f":"'Population at Risk'!AT172/'Population at Risk'!AT$5","v":0},{"$f":"'Population at Risk'!AU172/'Population at Risk'!AU$5","v":0},{"$f":"'Population at Risk'!AV172/'Population at Risk'!AV$5","v":0},{"$f":"'Population at Risk'!AW172/'Population at Risk'!AW$5","v":0},{"$f":"'Population at Risk'!AX172/'Population at Risk'!AX$5","v":0},{"$f":"'Population at Risk'!AY172/'Population at Risk'!AY$5","v":0},{"$f":"'Population at Risk'!AZ172/'Population at Risk'!AZ$5","v":0},{"$f":"'Population at Risk'!BA172/'Population at Risk'!BA$5","v":0},{"$f":"'Population at Risk'!BB172/'Population at Risk'!BB$5","v":0},{"$f":"'Population at Risk'!BC172/'Population at Risk'!BC$5","v":0},170]
[null,"Male 90+",{"$f":"'Population at Risk'!C173/'Population at Risk'!C$5","v":0},{"$f":"'Population at Risk'!D173/'Population at Risk'!D$5","v":0},{"$f":"'Population at Risk'!E173/'Population at Risk'!E$5","v":0},{"$f":"'Population at Risk'!F173/'Population at Risk'!F$5","v":0},{"$f":"'Population at Risk'!G173/'Population at Risk'!G$5","v":0},{"$f":"'Population at Risk'!H173/'Population at Risk'!H$5","v":0},{"$f":"'Population at Risk'!I173/'Population at Risk'!I$5","v":0},{"$f":"'Population at Risk'!J173/'Population at Risk'!J$5","v":0},{"$f":"'Population at Risk'!K173/'Population at Risk'!K$5","v":0},{"$f":"'Population at Risk'!L173/'Population at Risk'!L$5","v":0},{"$f":"'Population at Risk'!M173/'Population at Risk'!M$5","v":0},{"$f":"'Population at Risk'!N173/'Population at Risk'!N$5","v":0},{"$f":"'Population at Risk'!O173/'Population at Risk'!O$5","v":0},{"$f":"'Population at Risk'!P173/'Population at Risk'!P$5","v":0},{"$f":"'Population at Risk'!Q173/'Population at Risk'!Q$5","v":0},{"$f":"'Population at Risk'!R173/'Population at Risk'!R$5","v":0},{"$f":"'Population at Risk'!S173/'Population at Risk'!S$5","v":0},{"$f":"'Population at Risk'!T173/'Population at Risk'!T$5","v":0},{"$f":"'Population at Risk'!U173/'Population at Risk'!U$5","v":0},{"$f":"'Population at Risk'!V173/'Population at Risk'!V$5","v":0},{"$f":"'Population at Risk'!W173/'Population at Risk'!W$5","v":0},{"$f":"'Population at Risk'!X173/'Population at Risk'!X$5","v":0},{"$f":"'Population at Risk'!Y173/'Population at Risk'!Y$5","v":0},{"$f":"'Population at Risk'!Z173/'Population at Risk'!Z$5","v":0},{"$f":"'Population at Risk'!AA173/'Population at Risk'!AA$5","v":0},{"$f":"'Population at Risk'!AB173/'Population at Risk'!AB$5","v":0},{"$f":"'Population at Risk'!AC173/'Population at Risk'!AC$5","v":0},{"$f":"'Population at Risk'!AD173/'Population at Risk'!AD$5","v":0},{"$f":"'Population at Risk'!AE173/'Population at Risk'!AE$5","v":0},{"$f":"'Population at Risk'!AF173/'Population at Risk'!AF$5","v":0},{"$f":"'Population at Risk'!AG173/'Population at Risk'!AG$5","v":0},{"$f":"'Population at Risk'!AH173/'Population at Risk'!AH$5","v":0},{"$f":"'Population at Risk'!AI173/'Population at Risk'!AI$5","v":0},{"$f":"'Population at Risk'!AJ173/'Population at Risk'!AJ$5","v":0},{"$f":"'Population at Risk'!AK173/'Population at Risk'!AK$5","v":0},{"$f":"'Population at Risk'!AL173/'Population at Risk'!AL$5","v":0},{"$f":"'Population at Risk'!AM173/'Population at Risk'!AM$5","v":0},{"$f":"'Population at Risk'!AN173/'Population at Risk'!AN$5","v":0},{"$f":"'Population at Risk'!AO173/'Population at Risk'!AO$5","v":0},{"$f":"'Population at Risk'!AP173/'Population at Risk'!AP$5","v":0},{"$f":"'Population at Risk'!AQ173/'Population at Risk'!AQ$5","v":0},{"$f":"'Population at Risk'!AR173/'Population at Risk'!AR$5","v":0},{"$f":"'Population at Risk'!AS173/'Population at Risk'!AS$5","v":0},{"$f":"'Population at Risk'!AT173/'Population at Risk'!AT$5","v":0},{"$f":"'Population at Risk'!AU173/'Population at Risk'!AU$5","v":0},{"$f":"'Population at Risk'!AV173/'Population at Risk'!AV$5","v":0},{"$f":"'Population at Risk'!AW173/'Population at Risk'!AW$5","v":0},{"$f":"'Population at Risk'!AX173/'Population at Risk'!AX$5","v":0},{"$f":"'Population at Risk'!AY173/'Population at Risk'!AY$5","v":0},{"$f":"'Population at Risk'!AZ173/'Population at Risk'!AZ$5","v":0},{"$f":"'Population at Risk'!BA173/'Population at Risk'!BA$5","v":0},{"$f":"'Population at Risk'!BB173/'Population at Risk'!BB$5","v":0},{"$f":"'Population at Risk'!BC173/'Population at Risk'!BC$5","v":0},171]
["SIMD Q4","Female 0-4",{"$f":"'Population at Risk'!C174/'Population at Risk'!C$5","v":0},{"$f":"'Population at Risk'!D174/'Population at Risk'!D$5","v":0},{"$f":"'Population at Risk'!E174/'Population at Risk'!E$5","v":0},{"$f":"'Population at Risk'!F174/'Population at Risk'!F$5","v":0},{"$f":"'Population at Risk'!G174/'Population at Risk'!G$5","v":0},{"$f":"'Population at Risk'!H174/'Population at Risk'!H$5","v":0},{"$f":"'Population at Risk'!I174/'Population at Risk'!I$5","v":0},{"$f":"'Population at Risk'!J174/'Population at Risk'!J$5","v":0},{"$f":"'Population at Risk'!K174/'Population at Risk'!K$5","v":0},{"$f":"'Population at Risk'!L174/'Population at Risk'!L$5","v":0},{"$f":"'Population at Risk'!M174/'Population at Risk'!M$5","v":0},{"$f":"'Population at Risk'!N174/'Population at Risk'!N$5","v":0},{"$f":"'Population at Risk'!O174/'Population at Risk'!O$5","v":0},{"$f":"'Population at Risk'!P174/'Population at Risk'!P$5","v":0},{"$f":"'Population at Risk'!Q174/'Population at Risk'!Q$5","v":0},{"$f":"'Population at Risk'!R174/'Population at Risk'!R$5","v":0},{"$f":"'Population at Risk'!S174/'Population at Risk'!S$5","v":0},{"$f":"'Population at Risk'!T174/'Population at Risk'!T$5","v":0},{"$f":"'Population at Risk'!U174/'Population at Risk'!U$5","v":0},{"$f":"'Population at Risk'!V174/'Population at Risk'!V$5","v":0},{"$f":"'Population at Risk'!W174/'Population at Risk'!W$5","v":0},{"$f":"'Population at Risk'!X174/'Population at Risk'!X$5","v":0},{"$f":"'Population at Risk'!Y174/'Population at Risk'!Y$5","v":0},{"$f":"'Population at Risk'!Z174/'Population at Risk'!Z$5","v":0},{"$f":"'Population at Risk'!AA174/'Population at Risk'!AA$5","v":0},{"$f":"'Population at Risk'!AB174/'Population at Risk'!AB$5","v":0},{"$f":"'Population at Risk'!AC174/'Population at Risk'!AC$5","v":0},{"$f":"'Population at Risk'!AD174/'Population at Risk'!AD$5","v":0},{"$f":"'Population at Risk'!AE174/'Population at Risk'!AE$5","v":0},{"$f":"'Population at Risk'!AF174/'Population at Risk'!AF$5","v":0},{"$f":"'Population at Risk'!AG174/'Population at Risk'!AG$5","v":0},{"$f":"'Population at Risk'!AH174/'Population at Risk'!AH$5","v":0},{"$f":"'Population at Risk'!AI174/'Population at Risk'!AI$5","v":0},{"$f":"'Population at Risk'!AJ174/'Population at Risk'!AJ$5","v":0},{"$f":"'Population at Risk'!AK174/'Population at Risk'!AK$5","v":0},{"$f":"'Population at Risk'!AL174/'Population at Risk'!AL$5","v":0},{"$f":"'Population at Risk'!AM174/'Population at Risk'!AM$5","v":0},{"$f":"'Population at Risk'!AN174/'Population at Risk'!AN$5","v":0},{"$f":"'Population at Risk'!AO174/'Population at Risk'!AO$5","v":0},{"$f":"'Population at Risk'!AP174/'Population at Risk'!AP$5","v":0},{"$f":"'Population at Risk'!AQ174/'Population at Risk'!AQ$5","v":0},{"$f":"'Population at Risk'!AR174/'Population at Risk'!AR$5","v":0},{"$f":"'Population at Risk'!AS174/'Population at Risk'!AS$5","v":0},{"$f":"'Population at Risk'!AT174/'Population at Risk'!AT$5","v":0},{"$f":"'Population at Risk'!AU174/'Population at Risk'!AU$5","v":0},{"$f":"'Population at Risk'!AV174/'Population at Risk'!AV$5","v":0},{"$f":"'Population at Risk'!AW174/'Population at Risk'!AW$5","v":0},{"$f":"'Population at Risk'!AX174/'Population at Risk'!AX$5","v":0},{"$f":"'Population at Risk'!AY174/'Population at Risk'!AY$5","v":0},{"$f":"'Population at Risk'!AZ174/'Population at Risk'!AZ$5","v":0},{"$f":"'Population at Risk'!BA174/'Population at Risk'!BA$5","v":0},{"$f":"'Population at Risk'!BB174/'Population at Risk'!BB$5","v":0},{"$f":"'Population at Risk'!BC174/'Population at Risk'!BC$5","v":0},172]
[null,"Female 5-9",{"$f":"'Population at Risk'!C175/'Population at Risk'!C$5","v":0},{"$f":"'Population at Risk'!D175/'Population at Risk'!D$5","v":0},{"$f":"'Population at Risk'!E175/'Population at Risk'!E$5","v":0},{"$f":"'Population at Risk'!F175/'Population at Risk'!F$5","v":0},{"$f":"'Population at Risk'!G175/'Population at Risk'!G$5","v":0},{"$f":"'Population at Risk'!H175/'Population at Risk'!H$5","v":0},{"$f":"'Population at Risk'!I175/'Population at Risk'!I$5","v":0},{"$f":"'Population at Risk'!J175/'Population at Risk'!J$5","v":0},{"$f":"'Population at Risk'!K175/'Population at Risk'!K$5","v":0},{"$f":"'Population at Risk'!L175/'Population at Risk'!L$5","v":0},{"$f":"'Population at Risk'!M175/'Population at Risk'!M$5","v":0},{"$f":"'Population at Risk'!N175/'Population at Risk'!N$5","v":0},{"$f":"'Population at Risk'!O175/'Population at Risk'!O$5","v":0},{"$f":"'Population at Risk'!P175/'Population at Risk'!P$5","v":0},{"$f":"'Population at Risk'!Q175/'Population at Risk'!Q$5","v":0},{"$f":"'Population at Risk'!R175/'Population at Risk'!R$5","v":0},{"$f":"'Population at Risk'!S175/'Population at Risk'!S$5","v":0},{"$f":"'Population at Risk'!T175/'Population at Risk'!T$5","v":0},{"$f":"'Population at Risk'!U175/'Population at Risk'!U$5","v":0},{"$f":"'Population at Risk'!V175/'Population at Risk'!V$5","v":0},{"$f":"'Population at Risk'!W175/'Population at Risk'!W$5","v":0},{"$f":"'Population at Risk'!X175/'Population at Risk'!X$5","v":0},{"$f":"'Population at Risk'!Y175/'Population at Risk'!Y$5","v":0},{"$f":"'Population at Risk'!Z175/'Population at Risk'!Z$5","v":0},{"$f":"'Population at Risk'!AA175/'Population at Risk'!AA$5","v":0},{"$f":"'Population at Risk'!AB175/'Population at Risk'!AB$5","v":0},{"$f":"'Population at Risk'!AC175/'Population at Risk'!AC$5","v":0},{"$f":"'Population at Risk'!AD175/'Population at Risk'!AD$5","v":0},{"$f":"'Population at Risk'!AE175/'Population at Risk'!AE$5","v":0},{"$f":"'Population at Risk'!AF175/'Population at Risk'!AF$5","v":0},{"$f":"'Population at Risk'!AG175/'Population at Risk'!AG$5","v":0},{"$f":"'Population at Risk'!AH175/'Population at Risk'!AH$5","v":0},{"$f":"'Population at Risk'!AI175/'Population at Risk'!AI$5","v":0},{"$f":"'Population at Risk'!AJ175/'Population at Risk'!AJ$5","v":0},{"$f":"'Population at Risk'!AK175/'Population at Risk'!AK$5","v":0},{"$f":"'Population at Risk'!AL175/'Population at Risk'!AL$5","v":0},{"$f":"'Population at Risk'!AM175/'Population at Risk'!AM$5","v":0},{"$f":"'Population at Risk'!AN175/'Population at Risk'!AN$5","v":0},{"$f":"'Population at Risk'!AO175/'Population at Risk'!AO$5","v":0},{"$f":"'Population at Risk'!AP175/'Population at Risk'!AP$5","v":0},{"$f":"'Population at Risk'!AQ175/'Population at Risk'!AQ$5","v":0},{"$f":"'Population at Risk'!AR175/'Population at Risk'!AR$5","v":0},{"$f":"'Population at Risk'!AS175/'Population at Risk'!AS$5","v":0},{"$f":"'Population at Risk'!AT175/'Population at Risk'!AT$5","v":0},{"$f":"'Population at Risk'!AU175/'Population at Risk'!AU$5","v":0},{"$f":"'Population at Risk'!AV175/'Population at Risk'!AV$5","v":0},{"$f":"'Population at Risk'!AW175/'Population at Risk'!AW$5","v":0},{"$f":"'Population at Risk'!AX175/'Population at Risk'!AX$5","v":0},{"$f":"'Population at Risk'!AY175/'Population at Risk'!AY$5","v":0},{"$f":"'Population at Risk'!AZ175/'Population at Risk'!AZ$5","v":0},{"$f":"'Population at Risk'!BA175/'Population at Risk'!BA$5","v":0},{"$f":"'Population at Risk'!BB175/'Population at Risk'!BB$5","v":0},{"$f":"'Population at Risk'!BC175/'Population at Risk'!BC$5","v":0},173]
[null,"Female 10-15",{"$f":"'Population at Risk'!C176/'Population at Risk'!C$5","v":0},{"$f":"'Population at Risk'!D176/'Population at Risk'!D$5","v":0},{"$f":"'Population at Risk'!E176/'Population at Risk'!E$5","v":0},{"$f":"'Population at Risk'!F176/'Population at Risk'!F$5","v":0},{"$f":"'Population at Risk'!G176/'Population at Risk'!G$5","v":0},{"$f":"'Population at Risk'!H176/'Population at Risk'!H$5","v":0},{"$f":"'Population at Risk'!I176/'Population at Risk'!I$5","v":0},{"$f":"'Population at Risk'!J176/'Population at Risk'!J$5","v":0},{"$f":"'Population at Risk'!K176/'Population at Risk'!K$5","v":0},{"$f":"'Population at Risk'!L176/'Population at Risk'!L$5","v":0},{"$f":"'Population at Risk'!M176/'Population at Risk'!M$5","v":0},{"$f":"'Population at Risk'!N176/'Population at Risk'!N$5","v":0},{"$f":"'Population at Risk'!O176/'Population at Risk'!O$5","v":0},{"$f":"'Population at Risk'!P176/'Population at Risk'!P$5","v":0},{"$f":"'Population at Risk'!Q176/'Population at Risk'!Q$5","v":0},{"$f":"'Population at Risk'!R176/'Population at Risk'!R$5","v":0},{"$f":"'Population at Risk'!S176/'Population at Risk'!S$5","v":0},{"$f":"'Population at Risk'!T176/'Population at Risk'!T$5","v":0},{"$f":"'Population at Risk'!U176/'Population at Risk'!U$5","v":0},{"$f":"'Population at Risk'!V176/'Population at Risk'!V$5","v":0},{"$f":"'Population at Risk'!W176/'Population at Risk'!W$5","v":0},{"$f":"'Population at Risk'!X176/'Population at Risk'!X$5","v":0},{"$f":"'Population at Risk'!Y176/'Population at Risk'!Y$5","v":0},{"$f":"'Population at Risk'!Z176/'Population at Risk'!Z$5","v":0},{"$f":"'Population at Risk'!AA176/'Population at Risk'!AA$5","v":0},{"$f":"'Population at Risk'!AB176/'Population at Risk'!AB$5","v":0},{"$f":"'Population at Risk'!AC176/'Population at Risk'!AC$5","v":0},{"$f":"'Population at Risk'!AD176/'Population at Risk'!AD$5","v":0},{"$f":"'Population at Risk'!AE176/'Population at Risk'!AE$5","v":0},{"$f":"'Population at Risk'!AF176/'Population at Risk'!AF$5","v":0},{"$f":"'Population at Risk'!AG176/'Population at Risk'!AG$5","v":0},{"$f":"'Population at Risk'!AH176/'Population at Risk'!AH$5","v":0},{"$f":"'Population at Risk'!AI176/'Population at Risk'!AI$5","v":0},{"$f":"'Population at Risk'!AJ176/'Population at Risk'!AJ$5","v":0},{"$f":"'Population at Risk'!AK176/'Population at Risk'!AK$5","v":0},{"$f":"'Population at Risk'!AL176/'Population at Risk'!AL$5","v":0},{"$f":"'Population at Risk'!AM176/'Population at Risk'!AM$5","v":0},{"$f":"'Population at Risk'!AN176/'Population at Risk'!AN$5","v":0},{"$f":"'Population at Risk'!AO176/'Population at Risk'!AO$5","v":0},{"$f":"'Population at Risk'!AP176/'Population at Risk'!AP$5","v":0},{"$f":"'Population at Risk'!AQ176/'Population at Risk'!AQ$5","v":0},{"$f":"'Population at Risk'!AR176/'Population at Risk'!AR$5","v":0},{"$f":"'Population at Risk'!AS176/'Population at Risk'!AS$5","v":0},{"$f":"'Population at Risk'!AT176/'Population at Risk'!AT$5","v":0},{"$f":"'Population at Risk'!AU176/'Population at Risk'!AU$5","v":0},{"$f":"'Population at Risk'!AV176/'Population at Risk'!AV$5","v":0},{"$f":"'Population at Risk'!AW176/'Population at Risk'!AW$5","v":0},{"$f":"'Population at Risk'!AX176/'Population at Risk'!AX$5","v":0},{"$f":"'Population at Risk'!AY176/'Population at Risk'!AY$5","v":0},{"$f":"'Population at Risk'!AZ176/'Population at Risk'!AZ$5","v":0},{"$f":"'Population at Risk'!BA176/'Population at Risk'!BA$5","v":0},{"$f":"'Population at Risk'!BB176/'Population at Risk'!BB$5","v":0},{"$f":"'Population at Risk'!BC176/'Population at Risk'!BC$5","v":0},174]
[null,"Female 16-19",{"$f":"'Population at Risk'!C177/'Population at Risk'!C$5","v":4.819545035586693E-3},{"$f":"'Population at Risk'!D177/'Population at Risk'!D$5","v":7.2841571326951208E-3},{"$f":"'Population at Risk'!E177/'Population at Risk'!E$5","v":1.018800843396447E-2},{"$f":"'Population at Risk'!F177/'Population at Risk'!F$5","v":6.3092676441420846E-3},{"$f":"'Population at Risk'!G177/'Population at Risk'!G$5","v":5.7280427125001752E-3},{"$f":"'Population at Risk'!H177/'Population at Risk'!H$5","v":2.6848128275123364E-3},{"$f":"'Population at Risk'!I177/'Population at Risk'!I$5","v":9.7069635729890857E-3},{"$f":"'Population at Risk'!J177/'Population at Risk'!J$5","v":6.3121741828223643E-3},{"$f":"'Population at Risk'!K177/'Population at Risk'!K$5","v":3.3092121946341831E-3},{"$f":"'Population at Risk'!L177/'Population at Risk'!L$5","v":4.0335937142871392E-3},{"$f":"'Population at Risk'!M177/'Population at Risk'!M$5","v":4.0335937142871392E-3},{"$f":"'Population at Risk'!N177/'Population at Risk'!N$5","v":4.0777415808456625E-3},{"$f":"'Population at Risk'!O177/'Population at Risk'!O$5","v":2.3824508335179872E-3},{"$f":"'Population at Risk'!P177/'Population at Risk'!P$5","v":4.2789979628734274E-3},{"$f":"'Population at Risk'!Q177/'Population at Risk'!Q$5","v":1.0006740521982438E-2},{"$f":"'Population at Risk'!R177/'Population at Risk'!R$5","v":4.7523334235623034E-3},{"$f":"'Population at Risk'!S177/'Population at Risk'!S$5","v":4.2706173023966936E-3},{"$f":"'Population at Risk'!T177/'Population at Risk'!T$5","v":2.8836137819543087E-3},{"$f":"'Population at Risk'!U177/'Population at Risk'!U$5","v":1.281221254651632E-3},{"$f":"'Population at Risk'!V177/'Population at Risk'!V$5","v":4.3199261753155199E-3},{"$f":"'Population at Risk'!W177/'Population at Risk'!W$5","v":3.5285146801722783E-3},{"$f":"'Population at Risk'!X177/'Population at Risk'!X$5","v":3.5285146801722783E-3},{"$f":"'Population at Risk'!Y177/'Population at Risk'!Y$5","v":5.3278823223623173E-3},{"$f":"'Population at Risk'!Z177/'Population at Risk'!Z$5","v":1.9236966828603342E-3},{"$f":"'Population at Risk'!AA177/'Population at Risk'!AA$5","v":2.9176521006290621E-3},{"$f":"'Population at Risk'!AB177/'Population at Risk'!AB$5","v":7.8302512187198685E-3},{"$f":"'Population at Risk'!AC177/'Population at Risk'!AC$5","v":2.5261878148767798E-3},{"$f":"'Population at Risk'!AD177/'Population at Risk'!AD$5","v":6.3656410437177985E-3},{"$f":"'Population at Risk'!AE177/'Population at Risk'!AE$5","v":6.5904270072992049E-3},{"$f":"'Population at Risk'!AF177/'Population at Risk'!AF$5","v":3.0606268430910478E-3},{"$f":"'Population at Risk'!AG177/'Population at Risk'!AG$5","v":6.5904270072992049E-3},{"$f":"'Population at Risk'!AH177/'Population at Risk'!AH$5","v":3.6344054021396613E-3},{"$f":"'Population at Risk'!AI177/'Population at Risk'!AI$5","v":3.9770577057411036E-3},{"$f":"'Population at Risk'!AJ177/'Population at Risk'!AJ$5","v":3.616216149682481E-3},{"$f":"'Population at Risk'!AK177/'Population at Risk'!AK$5","v":1.0954906467338925E-2},{"$f":"'Population at Risk'!AL177/'Population at Risk'!AL$5","v":3.0021159740718658E-3},{"$f":"'Population at Risk'!AM177/'Population at Risk'!AM$5","v":2.9301743006945069E-3},{"$f":"'Population at Risk'!AN177/'Population at Risk'!AN$5","v":1.1334263290303369E-2},{"$f":"'Population at Risk'!AO177/'Population at Risk'!AO$5","v":1.1334263290303369E-2},{"$f":"'Population at Risk'!AP177/'Population at Risk'!AP$5","v":9.8484710977075202E-3},{"$f":"'Population at Risk'!AQ177/'Population at Risk'!AQ$5","v":3.0570230397006458E-3},{"$f":"'Population at Risk'!AR177/'Population at Risk'!AR$5","v":4.4461251681913111E-3},{"$f":"'Population at Risk'!AS177/'Population at Risk'!AS$5","v":9.7069635729890857E-3},{"$f":"'Population at Risk'!AT177/'Population at Risk'!AT$5","v":1.9698845377505748E-2},{"$f":"'Population at Risk'!AU177/'Population at Risk'!AU$5","v":1.9698845377505748E-2},{"$f":"'Population at Risk'!AV177/'Population at Risk'!AV$5","v":2.6358324019213706E-3},{"$f":"'Population at Risk'!AW177/'Population at Risk'!AW$5","v":4.4744931443364503E-3},{"$f":"'Population at Risk'!AX177/'Population at Risk'!AX$5","v":8.2640460209478638E-3},{"$f":"'Population at Risk'!AY177/'Population at Risk'!AY$5","v":5.2566810038578394E-3},{"$f":"'Population at Risk'!AZ177/'Population at Risk'!AZ$5","v":6.5152150602353623E-3},{"$f":"'Population at Risk'!BA177/'Population at Risk'!BA$5","v":1.8998549548308416E-3},{"$f":"'Population at Risk'!BB177/'Population at Risk'!BB$5","v":4.0152994010384281E-3},{"$f":"'Population at Risk'!BC177/'Population at Risk'!BC$5","v":1.281221254651632E-3},175]
[null,"Female 20-24",{"$f":"'Population at Risk'!C178/'Population at Risk'!C$5","v":1.1456441618788331E-2},{"$f":"'Population at Risk'!D178/'Population at Risk'!D$5","v":1.1640944665019488E-2},{"$f":"'Population at Risk'!E178/'Population at Risk'!E$5","v":1.1747946367359241E-2},{"$f":"'Population at Risk'!F178/'Population at Risk'!F$5","v":7.0300099936486506E-3},{"$f":"'Population at Risk'!G178/'Population at Risk'!G$5","v":6.0984473220844822E-3},{"$f":"'Population at Risk'!H178/'Population at Risk'!H$5","v":3.2399525338415109E-3},{"$f":"'Population at Risk'!I178/'Population at Risk'!I$5","v":9.3186850300695234E-3},{"$f":"'Population at Risk'!J178/'Population at Risk'!J$5","v":8.9948482105218688E-3},{"$f":"'Population at Risk'!K178/'Population at Risk'!K$5","v":3.5310588222074247E-3},{"$f":"'Population at Risk'!L178/'Population at Risk'!L$5","v":5.2327702239400717E-3},{"$f":"'Population at Risk'!M178/'Population at Risk'!M$5","v":5.2327702239400717E-3},{"$f":"'Population at Risk'!N178/'Population at Risk'!N$5","v":8.9074706321436541E-3},{"$f":"'Population at Risk'!O178/'Population at Risk'!O$5","v":3.145966234170636E-3},{"$f":"'Population at Risk'!P178/'Population at Risk'!P$5","v":6.5012399988408432E-3},{"$f":"'Population at Risk'!Q178/'Population at Risk'!Q$5","v":1.2708789450114995E-2},{"$f":"'Population at Risk'!R178/'Population at Risk'!R$5","v":4.8892882772672685E-3},{"$f":"'Population at Risk'!S178/'Population at Risk'!S$5","v":6.6058581889422699E-3},{"$f":"'Population at Risk'!T178/'Population at Risk'!T$5","v":7.5043443000256714E-3},{"$f":"'Population at Risk'!U178/'Population at Risk'!U$5","v":2.2090021631924689E-3},{"$f":"'Population at Risk'!V178/'Population at Risk'!V$5","v":5.748000944014865E-3},{"$f":"'Population at Risk'!W178/'Population at Risk'!W$5","v":4.5619469732324442E-3},{"$f":"'Population at Risk'!X178/'Population at Risk'!X$5","v":4.5619469732324442E-3},{"$f":"'Population at Risk'!Y178/'Population at Risk'!Y$5","v":7.3872792604336773E-3},{"$f":"'Population at Risk'!Z178/'Population at Risk'!Z$5","v":6.8523019648495456E-3},{"$f":"'Population at Risk'!AA178/'Population at Risk'!AA$5","v":5.096796871944329E-3},{"$f":"'Population at Risk'!AB178/'Population at Risk'!AB$5","v":1.1606557391650885E-2},{"$f":"'Population at Risk'!AC178/'Population at Risk'!AC$5","v":5.6427431050766821E-3},{"$f":"'Population at Risk'!AD178/'Population at Risk'!AD$5","v":6.9642599085689592E-3},{"$f":"'Population at Risk'!AE178/'Population at Risk'!AE$5","v":7.2655864165069887E-3},{"$f":"'Population at Risk'!AF178/'Population at Risk'!AF$5","v":3.7386734052527568E-3},{"$f":"'Population at Risk'!AG178/'Population at Risk'!AG$5","v":7.2655864165069887E-3},{"$f":"'Population at Risk'!AH178/'Population at Risk'!AH$5","v":4.0920608045078117E-3},{"$f":"'Population at Risk'!AI178/'Population at Risk'!AI$5","v":7.1913748025138509E-3},{"$f":"'Population at Risk'!AJ178/'Population at Risk'!AJ$5","v":4.1832186818626617E-3},{"$f":"'Population at Risk'!AK178/'Population at Risk'!AK$5","v":1.1364831999665155E-2},{"$f":"'Population at Risk'!AL178/'Population at Risk'!AL$5","v":3.4840174536408855E-3},{"$f":"'Population at Risk'!AM178/'Population at Risk'!AM$5","v":3.2925633484835802E-3},{"$f":"'Population at Risk'!AN178/'Population at Risk'!AN$5","v":1.3405499221526319E-2},{"$f":"'Population at Risk'!AO178/'Population at Risk'!AO$5","v":1.3405499221526319E-2},{"$f":"'Population at Risk'!AP178/'Population at Risk'!AP$5","v":1.0058734599104857E-2},{"$f":"'Population at Risk'!AQ178/'Population at Risk'!AQ$5","v":3.8460846280005036E-3},{"$f":"'Population at Risk'!AR178/'Population at Risk'!AR$5","v":6.6161943772901554E-3},{"$f":"'Population at Risk'!AS178/'Population at Risk'!AS$5","v":9.3186850300695234E-3},{"$f":"'Population at Risk'!AT178/'Population at Risk'!AT$5","v":1.9698845377505748E-2},{"$f":"'Population at Risk'!AU178/'Population at Risk'!AU$5","v":1.9698845377505748E-2},{"$f":"'Population at Risk'!AV178/'Population at Risk'!AV$5","v":3.0289735059367616E-3},{"$f":"'Population at Risk'!AW178/'Population at Risk'!AW$5","v":5.0458371683183428E-3},{"$f":"'Population at Risk'!AX178/'Population at Risk'!AX$5","v":1.2531641826344621E-2},{"$f":"'Population at Risk'!AY178/'Population at Risk'!AY$5","v":7.1951451840232663E-3},{"$f":"'Population at Risk'!AZ178/'Population at Risk'!AZ$5","v":9.1261897177307774E-3},{"$f":"'Population at Risk'!BA178/'Population at Risk'!BA$5","v":2.4388835699223829E-3},{"$f":"'Population at Risk'!BB178/'Population at Risk'!BB$5","v":4.900328411030626E-3},{"$f":"'Population at Risk'!BC178/'Population at Risk'!BC$5","v":2.2090021631924689E-3},176]
[null,"Female 25-29",{"$f":"'Population at Risk'!C179/'Population at Risk'!C$5","v":9.5755878426368162E-3},{"$f":"'Population at Risk'!D179/'Population at Risk'!D$5","v":1.1191333229099413E-2},{"$f":"'Population at Risk'!E179/'Population at Risk'!E$5","v":1.3031205654035188E-2},{"$f":"'Population at Risk'!F179/'Population at Risk'!F$5","v":7.1761486791107314E-3},{"$f":"'Population at Risk'!G179/'Population at Risk'!G$5","v":5.5085813733050781E-3},{"$f":"'Population at Risk'!H179/'Population at Risk'!H$5","v":3.0307831482368837E-3},{"$f":"'Population at Risk'!I179/'Population at Risk'!I$5","v":9.0114756334738252E-3},{"$f":"'Population at Risk'!J179/'Population at Risk'!J$5","v":7.261207364155798E-3},{"$f":"'Population at Risk'!K179/'Population at Risk'!K$5","v":3.3182187884886537E-3},{"$f":"'Population at Risk'!L179/'Population at Risk'!L$5","v":5.2207290038323861E-3},{"$f":"'Population at Risk'!M179/'Population at Risk'!M$5","v":5.2207290038323861E-3},{"$f":"'Population at Risk'!N179/'Population at Risk'!N$5","v":4.5817063218035652E-3},{"$f":"'Population at Risk'!O179/'Population at Risk'!O$5","v":2.9873537043579425E-3},{"$f":"'Population at Risk'!P179/'Population at Risk'!P$5","v":5.2858566703862147E-3},{"$f":"'Population at Risk'!Q179/'Population at Risk'!Q$5","v":9.1242590923902543E-3},{"$f":"'Population at Risk'!R179/'Population at Risk'!R$5","v":5.3658209349022393E-3},{"$f":"'Population at Risk'!S179/'Population at Risk'!S$5","v":7.7557020351451018E-3},{"$f":"'Population at Risk'!T179/'Population at Risk'!T$5","v":1.0703311581767384E-2},{"$f":"'Population at Risk'!U179/'Population at Risk'!U$5","v":1.8578274603259744E-3},{"$f":"'Population at Risk'!V179/'Population at Risk'!V$5","v":5.6830052333881644E-3},{"$f":"'Population at Risk'!W179/'Population at Risk'!W$5","v":4.6262162431932622E-3},{"$f":"'Population at Risk'!X179/'Population at Risk'!X$5","v":4.6262162431932622E-3},{"$f":"'Population at Risk'!Y179/'Population at Risk'!Y$5","v":6.4874775338511726E-3},{"$f":"'Population at Risk'!Z179/'Population at Risk'!Z$5","v":5.8308074244244126E-3},{"$f":"'Population at Risk'!AA179/'Population at Risk'!AA$5","v":4.6586347670820732E-3},{"$f":"'Population at Risk'!AB179/'Population at Risk'!AB$5","v":1.1456684855695239E-2},{"$f":"'Population at Risk'!AC179/'Population at Risk'!AC$5","v":4.9482476987601854E-3},{"$f":"'Population at Risk'!AD179/'Population at Risk'!AD$5","v":7.6393731554776035E-3},{"$f":"'Population at Risk'!AE179/'Population at Risk'!AE$5","v":8.3587973838065415E-3},{"$f":"'Population at Risk'!AF179/'Population at Risk'!AF$5","v":3.0811517568316979E-3},{"$f":"'Population at Risk'!AG179/'Population at Risk'!AG$5","v":8.3587973838065415E-3},{"$f":"'Population at Risk'!AH179/'Population at Risk'!AH$5","v":4.1245486880092542E-3},{"$f":"'Population at Risk'!AI179/'Population at Risk'!AI$5","v":8.9828953567514889E-3},{"$f":"'Population at Risk'!AJ179/'Population at Risk'!AJ$5","v":4.9754068350853402E-3},{"$f":"'Population at Risk'!AK179/'Population at Risk'!AK$5","v":1.2946542895396079E-2},{"$f":"'Population at Risk'!AL179/'Population at Risk'!AL$5","v":3.3262222706219244E-3},{"$f":"'Population at Risk'!AM179/'Population at Risk'!AM$5","v":3.2761031866059809E-3},{"$f":"'Population at Risk'!AN179/'Population at Risk'!AN$5","v":1.5165459667358929E-2},{"$f":"'Population at Risk'!AO179/'Population at Risk'!AO$5","v":1.5165459667358929E-2},{"$f":"'Population at Risk'!AP179/'Population at Risk'!AP$5","v":9.6488164247512422E-3},{"$f":"'Population at Risk'!AQ179/'Population at Risk'!AQ$5","v":3.6345536080140844E-3},{"$f":"'Population at Risk'!AR179/'Population at Risk'!AR$5","v":6.5131054361489442E-3},{"$f":"'Population at Risk'!AS179/'Population at Risk'!AS$5","v":9.0114756334738252E-3},{"$f":"'Population at Risk'!AT179/'Population at Risk'!AT$5","v":2.5658452268221096E-2},{"$f":"'Population at Risk'!AU179/'Population at Risk'!AU$5","v":2.5658452268221096E-2},{"$f":"'Population at Risk'!AV179/'Population at Risk'!AV$5","v":2.6850895915270295E-3},{"$f":"'Population at Risk'!AW179/'Population at Risk'!AW$5","v":5.137000616960939E-3},{"$f":"'Population at Risk'!AX179/'Population at Risk'!AX$5","v":9.8180699645336929E-3},{"$f":"'Population at Risk'!AY179/'Population at Risk'!AY$5","v":5.9451020950171346E-3},{"$f":"'Population at Risk'!AZ179/'Population at Risk'!AZ$5","v":6.8737148429950171E-3},{"$f":"'Population at Risk'!BA179/'Population at Risk'!BA$5","v":2.582987058446225E-3},{"$f":"'Population at Risk'!BB179/'Population at Risk'!BB$5","v":6.1042785614330219E-3},{"$f":"'Population at Risk'!BC179/'Population at Risk'!BC$5","v":1.8578274603259744E-3},177]
[null,"Female 30-34",{"$f":"'Population at Risk'!C180/'Population at Risk'!C$5","v":7.5791508735374418E-3},{"$f":"'Population at Risk'!D180/'Population at Risk'!D$5","v":1.137961272487834E-2},{"$f":"'Population at Risk'!E180/'Population at Risk'!E$5","v":1.5855920850845522E-2},{"$f":"'Population at Risk'!F180/'Population at Risk'!F$5","v":8.040470865501248E-3},{"$f":"'Population at Risk'!G180/'Population at Risk'!G$5","v":5.7799400616452305E-3},{"$f":"'Population at Risk'!H180/'Population at Risk'!H$5","v":3.2927959889822167E-3},{"$f":"'Population at Risk'!I180/'Population at Risk'!I$5","v":1.0467875735853433E-2},{"$f":"'Population at Risk'!J180/'Population at Risk'!J$5","v":6.5770206520316954E-3},{"$f":"'Population at Risk'!K180/'Population at Risk'!K$5","v":4.4558938016847635E-3},{"$f":"'Population at Risk'!L180/'Population at Risk'!L$5","v":5.3669438194257147E-3},{"$f":"'Population at Risk'!M180/'Population at Risk'!M$5","v":5.3669438194257147E-3},{"$f":"'Population at Risk'!N180/'Population at Risk'!N$5","v":3.5854836045376599E-3},{"$f":"'Population at Risk'!O180/'Population at Risk'!O$5","v":3.3426457711383771E-3},{"$f":"'Population at Risk'!P180/'Population at Risk'!P$5","v":5.6616859290604636E-3},{"$f":"'Population at Risk'!Q180/'Population at Risk'!Q$5","v":1.0134151347146448E-2},{"$f":"'Population at Risk'!R180/'Population at Risk'!R$5","v":4.7899082167582813E-3},{"$f":"'Population at Risk'!S180/'Population at Risk'!S$5","v":7.6228704866947456E-3},{"$f":"'Population at Risk'!T180/'Population at Risk'!T$5","v":9.0285528823314549E-3},{"$f":"'Population at Risk'!U180/'Population at Risk'!U$5","v":2.7640847580459619E-3},{"$f":"'Population at Risk'!V180/'Population at Risk'!V$5","v":6.4592920307324237E-3},{"$f":"'Population at Risk'!W180/'Population at Risk'!W$5","v":4.8780229501012504E-3},{"$f":"'Population at Risk'!X180/'Population at Risk'!X$5","v":4.8780229501012504E-3},{"$f":"'Population at Risk'!Y180/'Population at Risk'!Y$5","v":6.5353148611002167E-3},{"$f":"'Population at Risk'!Z180/'Population at Risk'!Z$5","v":4.6492717402759108E-3},{"$f":"'Population at Risk'!AA180/'Population at Risk'!AA$5","v":4.4915065642476427E-3},{"$f":"'Population at Risk'!AB180/'Population at Risk'!AB$5","v":1.1876327956371051E-2},{"$f":"'Population at Risk'!AC180/'Population at Risk'!AC$5","v":4.3435320418919177E-3},{"$f":"'Population at Risk'!AD180/'Population at Risk'!AD$5","v":8.947829690671396E-3},{"$f":"'Population at Risk'!AE180/'Population at Risk'!AE$5","v":1.0011793125125847E-2},{"$f":"'Population at Risk'!AF180/'Population at Risk'!AF$5","v":2.7527531369812975E-3},{"$f":"'Population at Risk'!AG180/'Population at Risk'!AG$5","v":1.0011793125125847E-2},{"$f":"'Population at Risk'!AH180/'Population at Risk'!AH$5","v":4.7605433750609102E-3},{"$f":"'Population at Risk'!AI180/'Population at Risk'!AI$5","v":8.5008863376087249E-3},{"$f":"'Population at Risk'!AJ180/'Population at Risk'!AJ$5","v":6.2160277601975298E-3},{"$f":"'Population at Risk'!AK180/'Population at Risk'!AK$5","v":1.4700777711009657E-2},{"$f":"'Population at Risk'!AL180/'Population at Risk'!AL$5","v":3.1325265962282777E-3},{"$f":"'Population at Risk'!AM180/'Population at Risk'!AM$5","v":3.6238904778907329E-3},{"$f":"'Population at Risk'!AN180/'Population at Risk'!AN$5","v":1.711277550013264E-2},{"$f":"'Population at Risk'!AO180/'Population at Risk'!AO$5","v":1.711277550013264E-2},{"$f":"'Population at Risk'!AP180/'Population at Risk'!AP$5","v":1.1624493327872621E-2},{"$f":"'Population at Risk'!AQ180/'Population at Risk'!AQ$5","v":4.1627753990454638E-3},{"$f":"'Population at Risk'!AR180/'Population at Risk'!AR$5","v":6.5920037612062325E-3},{"$f":"'Population at Risk'!AS180/'Population at Risk'!AS$5","v":1.0467875735853433E-2},{"$f":"'Population at Risk'!AT180/'Population at Risk'!AT$5","v":2.4322654319333229E-2},{"$f":"'Population at Risk'!AU180/'Population at Risk'!AU$5","v":2.4322654319333229E-2},{"$f":"'Population at Risk'!AV180/'Population at Risk'!AV$5","v":3.4548763686201027E-3},{"$f":"'Population at Risk'!AW180/'Population at Risk'!AW$5","v":6.1179034006087806E-3},{"$f":"'Population at Risk'!AX180/'Population at Risk'!AX$5","v":7.9681134318075175E-3},{"$f":"'Population at Risk'!AY180/'Population at Risk'!AY$5","v":6.2413223691161158E-3},{"$f":"'Population at Risk'!AZ180/'Population at Risk'!AZ$5","v":7.1996237364128834E-3},{"$f":"'Population at Risk'!BA180/'Population at Risk'!BA$5","v":2.573923945960449E-3},{"$f":"'Population at Risk'!BB180/'Population at Risk'!BB$5","v":7.2983290584798001E-3},{"$f":"'Population at Risk'!BC180/'Population at Risk'!BC$5","v":2.7640847580459619E-3},178]
[null,"Female 35-39",{"$f":"'Population at Risk'!C181/'Population at Risk'!C$5","v":6.0180905516024827E-3},{"$f":"'Population at Risk'!D181/'Population at Risk'!D$5","v":1.0977809346535168E-2},{"$f":"'Population at Risk'!E181/'Population at Risk'!E$5","v":1.6858057396841212E-2},{"$f":"'Population at Risk'!F181/'Population at Risk'!F$5","v":8.8678480143472831E-3},{"$f":"'Population at Risk'!G181/'Population at Risk'!G$5","v":7.2240890924288601E-3},{"$f":"'Population at Risk'!H181/'Population at Risk'!H$5","v":3.6946454796494685E-3},{"$f":"'Population at Risk'!I181/'Population at Risk'!I$5","v":1.1000020687390175E-2},{"$f":"'Population at Risk'!J181/'Population at Risk'!J$5","v":7.3679962615612578E-3},{"$f":"'Population at Risk'!K181/'Population at Risk'!K$5","v":4.7281193430859852E-3},{"$f":"'Population at Risk'!L181/'Population at Risk'!L$5","v":5.3177690066326406E-3},{"$f":"'Population at Risk'!M181/'Population at Risk'!M$5","v":5.3177690066326406E-3},{"$f":"'Population at Risk'!N181/'Population at Risk'!N$5","v":3.0965085033801873E-3},{"$f":"'Population at Risk'!O181/'Population at Risk'!O$5","v":4.0236564669269663E-3},{"$f":"'Population at Risk'!P181/'Population at Risk'!P$5","v":6.2196256367998866E-3},{"$f":"'Population at Risk'!Q181/'Population at Risk'!Q$5","v":1.1496714157894397E-2},{"$f":"'Population at Risk'!R181/'Population at Risk'!R$5","v":5.7994366945660746E-3},{"$f":"'Population at Risk'!S181/'Population at Risk'!S$5","v":7.1386385801090512E-3},{"$f":"'Population at Risk'!T181/'Population at Risk'!T$5","v":6.8916292722241562E-3},{"$f":"'Population at Risk'!U181/'Population at Risk'!U$5","v":2.1301539273391405E-3},{"$f":"'Population at Risk'!V181/'Population at Risk'!V$5","v":7.0426741107372671E-3},{"$f":"'Population at Risk'!W181/'Population at Risk'!W$5","v":5.3501750410599224E-3},{"$f":"'Population at Risk'!X181/'Population at Risk'!X$5","v":5.3501750410599224E-3},{"$f":"'Population at Risk'!Y181/'Population at Risk'!Y$5","v":7.224080118017691E-3},{"$f":"'Population at Risk'!Z181/'Population at Risk'!Z$5","v":3.492951412450354E-3},{"$f":"'Population at Risk'!AA181/'Population at Risk'!AA$5","v":4.5169918379288181E-3},{"$f":"'Population at Risk'!AB181/'Population at Risk'!AB$5","v":1.1524417112965602E-2},{"$f":"'Population at Risk'!AC181/'Population at Risk'!AC$5","v":3.894317683969199E-3},{"$f":"'Population at Risk'!AD181/'Population at Risk'!AD$5","v":9.1545624016851797E-3},{"$f":"'Population at Risk'!AE181/'Population at Risk'!AE$5","v":9.8115599203762258E-3},{"$f":"'Population at Risk'!AF181/'Population at Risk'!AF$5","v":3.9779478629183357E-3},{"$f":"'Population at Risk'!AG181/'Population at Risk'!AG$5","v":9.8115599203762258E-3},{"$f":"'Population at Risk'!AH181/'Population at Risk'!AH$5","v":5.6571492865912952E-3},{"$f":"'Population at Risk'!AI181/'Population at Risk'!AI$5","v":7.4810667976903051E-3},{"$f":"'Population at Risk'!AJ181/'Population at Risk'!AJ$5","v":6.4977740609430271E-3},{"$f":"'Population at Risk'!AK181/'Population at Risk'!AK$5","v":1.4638309817053522E-2},{"$f":"'Population at Risk'!AL181/'Population at Risk'!AL$5","v":3.4948095968744771E-3},{"$f":"'Population at Risk'!AM181/'Population at Risk'!AM$5","v":4.1348429030210977E-3},{"$f":"'Population at Risk'!AN181/'Population at Risk'!AN$5","v":1.8996108576017853E-2},{"$f":"'Population at Risk'!AO181/'Population at Risk'!AO$5","v":1.8996108576017853E-2},{"$f":"'Population at Risk'!AP181/'Population at Risk'!AP$5","v":1.1232755452516049E-2},{"$f":"'Population at Risk'!AQ181/'Population at Risk'!AQ$5","v":4.2244529843992133E-3},{"$f":"'Population at Risk'!AR181/'Population at Risk'!AR$5","v":6.5300760400998185E-3},{"$f":"'Population at Risk'!AS181/'Population at Risk'!AS$5","v":1.1000020687390175E-2},{"$f":"'Population at Risk'!AT181/'Population at Risk'!AT$5","v":2.7074978327334475E-2},{"$f":"'Population at Risk'!AU181/'Population at Risk'!AU$5","v":2.7074978327334475E-2},{"$f":"'Population at Risk'!AV181/'Population at Risk'!AV$5","v":3.5588230250169946E-3},{"$f":"'Population at Risk'!AW181/'Population at Risk'!AW$5","v":7.475975682688301E-3},{"$f":"'Population at Risk'!AX181/'Population at Risk'!AX$5","v":9.0945149681940507E-3},{"$f":"'Population at Risk'!AY181/'Population at Risk'!AY$5","v":6.3334026925153976E-3},{"$f":"'Population at Risk'!AZ181/'Population at Risk'!AZ$5","v":6.9943464569699916E-3},{"$f":"'Population at Risk'!BA181/'Population at Risk'!BA$5","v":2.4451918043069585E-3},{"$f":"'Population at Risk'!BB181/'Population at Risk'!BB$5","v":7.4834648725959673E-3},{"$f":"'Population at Risk'!BC181/'Population at Risk'!BC$5","v":2.1301539273391405E-3},179]
[null,"Female 40-44",{"$f":"'Population at Risk'!C182/'Population at Risk'!C$5","v":4.8182074858446567E-3},{"$f":"'Population at Risk'!D182/'Population at Risk'!D$5","v":1.0975243838391553E-2},{"$f":"'Population at Risk'!E182/'Population at Risk'!E$5","v":1.8301422846202869E-2},{"$f":"'Population at Risk'!F182/'Population at Risk'!F$5","v":9.5768109617590576E-3},{"$f":"'Population at Risk'!G182/'Population at Risk'!G$5","v":8.90185258606397E-3},{"$f":"'Population at Risk'!H182/'Population at Risk'!H$5","v":4.544285206676873E-3},{"$f":"'Population at Risk'!I182/'Population at Risk'!I$5","v":1.4511655198586616E-2},{"$f":"'Population at Risk'!J182/'Population at Risk'!J$5","v":8.9844444209854109E-3},{"$f":"'Population at Risk'!K182/'Population at Risk'!K$5","v":6.2783224063928658E-3},{"$f":"'Population at Risk'!L182/'Population at Risk'!L$5","v":6.5834859272195841E-3},{"$f":"'Population at Risk'!M182/'Population at Risk'!M$5","v":6.5834859272195841E-3},{"$f":"'Population at Risk'!N182/'Population at Risk'!N$5","v":3.0355166692226992E-3},{"$f":"'Population at Risk'!O182/'Population at Risk'!O$5","v":4.1422172467995844E-3},{"$f":"'Population at Risk'!P182/'Population at Risk'!P$5","v":7.3966464246405031E-3},{"$f":"'Population at Risk'!Q182/'Population at Risk'!Q$5","v":1.3872861760465472E-2},{"$f":"'Population at Risk'!R182/'Population at Risk'!R$5","v":6.6463841326338926E-3},{"$f":"'Population at Risk'!S182/'Population at Risk'!S$5","v":7.4593428091655313E-3},{"$f":"'Population at Risk'!T182/'Population at Risk'!T$5","v":5.8788237814250315E-3},{"$f":"'Population at Risk'!U182/'Population at Risk'!U$5","v":2.4080000917746803E-3},{"$f":"'Population at Risk'!V182/'Population at Risk'!V$5","v":8.6592709310552782E-3},{"$f":"'Population at Risk'!W182/'Population at Risk'!W$5","v":6.1700564511552349E-3},{"$f":"'Population at Risk'!X182/'Population at Risk'!X$5","v":6.1700564511552349E-3},{"$f":"'Population at Risk'!Y182/'Population at Risk'!Y$5","v":8.8448914302850651E-3},{"$f":"'Population at Risk'!Z182/'Population at Risk'!Z$5","v":2.9430406944552542E-3},{"$f":"'Population at Risk'!AA182/'Population at Risk'!AA$5","v":4.72696301263365E-3},{"$f":"'Population at Risk'!AB182/'Population at Risk'!AB$5","v":1.2110812363824682E-2},{"$f":"'Population at Risk'!AC182/'Population at Risk'!AC$5","v":3.9515989260578283E-3},{"$f":"'Population at Risk'!AD182/'Population at Risk'!AD$5","v":1.0947759456397293E-2},{"$f":"'Population at Risk'!AE182/'Population at Risk'!AE$5","v":1.1646947118138552E-2},{"$f":"'Population at Risk'!AF182/'Population at Risk'!AF$5","v":4.5998106801983744E-3},{"$f":"'Population at Risk'!AG182/'Population at Risk'!AG$5","v":1.1646947118138552E-2},{"$f":"'Population at Risk'!AH182/'Population at Risk'!AH$5","v":6.1472085417239091E-3},{"$f":"'Population at Risk'!AI182/'Population at Risk'!AI$5","v":7.2202831311511005E-3},{"$f":"'Population at Risk'!AJ182/'Population at Risk'!AJ$5","v":6.2336369039941225E-3},{"$f":"'Population at Risk'!AK182/'Population at Risk'!AK$5","v":1.8623841538498258E-2},{"$f":"'Population at Risk'!AL182/'Population at Risk'!AL$5","v":4.5118537959649013E-3},{"$f":"'Population at Risk'!AM182/'Population at Risk'!AM$5","v":4.6584811446766568E-3},{"$f":"'Population at Risk'!AN182/'Population at Risk'!AN$5","v":2.0383126027600111E-2},{"$f":"'Population at Risk'!AO182/'Population at Risk'!AO$5","v":2.0383126027600111E-2},{"$f":"'Population at Risk'!AP182/'Population at Risk'!AP$5","v":1.4211568449101002E-2},{"$f":"'Population at Risk'!AQ182/'Population at Risk'!AQ$5","v":5.0366573096529898E-3},{"$f":"'Population at Risk'!AR182/'Population at Risk'!AR$5","v":7.1283345309687187E-3},{"$f":"'Population at Risk'!AS182/'Population at Risk'!AS$5","v":1.4511655198586616E-2},{"$f":"'Population at Risk'!AT182/'Population at Risk'!AT$5","v":2.895202514414548E-2},{"$f":"'Population at Risk'!AU182/'Population at Risk'!AU$5","v":2.895202514414548E-2},{"$f":"'Population at Risk'!AV182/'Population at Risk'!AV$5","v":5.1041014437743738E-3},{"$f":"'Population at Risk'!AW182/'Population at Risk'!AW$5","v":7.9251200641471536E-3},{"$f":"'Population at Risk'!AX182/'Population at Risk'!AX$5","v":1.0762666490892686E-2},{"$f":"'Population at Risk'!AY182/'Population at Risk'!AY$5","v":7.3129584001242294E-3},{"$f":"'Population at Risk'!AZ182/'Population at Risk'!AZ$5","v":8.0820453565387512E-3},{"$f":"'Population at Risk'!BA182/'Population at Risk'!BA$5","v":3.0750139357193567E-3},{"$f":"'Population at Risk'!BB182/'Population at Risk'!BB$5","v":7.9130481306734397E-3},{"$f":"'Population at Risk'!BC182/'Population at Risk'!BC$5","v":2.4080000917746803E-3},180]
[null,"Female 45-49",{"$f":"'Population at Risk'!C183/'Population at Risk'!C$5","v":5.4532528737127172E-3},{"$f":"'Population at Risk'!D183/'Population at Risk'!D$5","v":1.3897261919341123E-2},{"$f":"'Population at Risk'!E183/'Population at Risk'!E$5","v":2.395616722234567E-2},{"$f":"'Population at Risk'!F183/'Population at Risk'!F$5","v":1.3946510362213067E-2},{"$f":"'Population at Risk'!G183/'Population at Risk'!G$5","v":1.3002261642514296E-2},{"$f":"'Population at Risk'!H183/'Population at Risk'!H$5","v":6.0343755028728864E-3},{"$f":"'Population at Risk'!I183/'Population at Risk'!I$5","v":2.1230921513700759E-2},{"$f":"'Population at Risk'!J183/'Population at Risk'!J$5","v":1.1639749026820315E-2},{"$f":"'Population at Risk'!K183/'Population at Risk'!K$5","v":8.5622311341285503E-3},{"$f":"'Population at Risk'!L183/'Population at Risk'!L$5","v":9.9275465044315891E-3},{"$f":"'Population at Risk'!M183/'Population at Risk'!M$5","v":9.9275465044315891E-3},{"$f":"'Population at Risk'!N183/'Population at Risk'!N$5","v":3.8721674511047357E-3},{"$f":"'Population at Risk'!O183/'Population at Risk'!O$5","v":5.4788266018513465E-3},{"$f":"'Population at Risk'!P183/'Population at Risk'!P$5","v":1.0403020878527939E-2},{"$f":"'Population at Risk'!Q183/'Population at Risk'!Q$5","v":1.8394133131601167E-2},{"$f":"'Population at Risk'!R183/'Population at Risk'!R$5","v":8.9212872246760867E-3},{"$f":"'Population at Risk'!S183/'Population at Risk'!S$5","v":9.3469515253880794E-3},{"$f":"'Population at Risk'!T183/'Population at Risk'!T$5","v":6.1192730638509364E-3},{"$f":"'Population at Risk'!U183/'Population at Risk'!U$5","v":2.6533862240920069E-3},{"$f":"'Population at Risk'!V183/'Population at Risk'!V$5","v":1.0753987600316648E-2},{"$f":"'Population at Risk'!W183/'Population at Risk'!W$5","v":8.4342212144270148E-3},{"$f":"'Population at Risk'!X183/'Population at Risk'!X$5","v":8.4342212144270148E-3},{"$f":"'Population at Risk'!Y183/'Population at Risk'!Y$5","v":1.1225563861727232E-2},{"$f":"'Population at Risk'!Z183/'Population at Risk'!Z$5","v":3.6164582078734315E-3},{"$f":"'Population at Risk'!AA183/'Population at Risk'!AA$5","v":6.2037754191743271E-3},{"$f":"'Population at Risk'!AB183/'Population at Risk'!AB$5","v":1.5314757014361007E-2},{"$f":"'Population at Risk'!AC183/'Population at Risk'!AC$5","v":5.3303984381496651E-3},{"$f":"'Population at Risk'!AD183/'Population at Risk'!AD$5","v":1.4436015396822474E-2},{"$f":"'Population at Risk'!AE183/'Population at Risk'!AE$5","v":1.4941770626525405E-2},{"$f":"'Population at Risk'!AF183/'Population at Risk'!AF$5","v":6.7326906547006439E-3},{"$f":"'Population at Risk'!AG183/'Population at Risk'!AG$5","v":1.4941770626525405E-2},{"$f":"'Population at Risk'!AH183/'Population at Risk'!AH$5","v":7.8030601298020958E-3},{"$f":"'Population at Risk'!AI183/'Population at Risk'!AI$5","v":8.3929060182726077E-3},{"$f":"'Population at Risk'!AJ183/'Population at Risk'!AJ$5","v":8.0330885065995113E-3},{"$f":"'Population at Risk'!AK183/'Population at Risk'!AK$5","v":2.3444037149232173E-2},{"$f":"'Population at Risk'!AL183/'Population at Risk'!AL$5","v":6.3781302195526652E-3},{"$f":"'Population at Risk'!AM183/'Population at Risk'!AM$5","v":6.206480095405093E-3},{"$f":"'Population at Risk'!AN183/'Population at Risk'!AN$5","v":2.6247935848689157E-2},{"$f":"'Population at Risk'!AO183/'Population at Risk'!AO$5","v":2.6247935848689157E-2},{"$f":"'Population at Risk'!AP183/'Population at Risk'!AP$5","v":1.9952721140663245E-2},{"$f":"'Population at Risk'!AQ183/'Population at Risk'!AQ$5","v":7.1652301860821634E-3},{"$f":"'Population at Risk'!AR183/'Population at Risk'!AR$5","v":9.2552381270567252E-3},{"$f":"'Population at Risk'!AS183/'Population at Risk'!AS$5","v":2.1230921513700759E-2},{"$f":"'Population at Risk'!AT183/'Population at Risk'!AT$5","v":3.4221400468534349E-2},{"$f":"'Population at Risk'!AU183/'Population at Risk'!AU$5","v":3.4221400468534349E-2},{"$f":"'Population at Risk'!AV183/'Population at Risk'!AV$5","v":6.274373175195129E-3},{"$f":"'Population at Risk'!AW183/'Population at Risk'!AW$5","v":9.7082088705027682E-3},{"$f":"'Population at Risk'!AX183/'Population at Risk'!AX$5","v":1.3670342997837275E-2},{"$f":"'Population at Risk'!AY183/'Population at Risk'!AY$5","v":1.0113513712710225E-2},{"$f":"'Population at Risk'!AZ183/'Population at Risk'!AZ$5","v":1.125396025850782E-2},{"$f":"'Population at Risk'!BA183/'Population at Risk'!BA$5","v":4.9192626798618792E-3},{"$f":"'Population at Risk'!BB183/'Population at Risk'!BB$5","v":9.6044005362393627E-3},{"$f":"'Population at Risk'!BC183/'Population at Risk'!BC$5","v":2.6533862240920069E-3},181]
[null,"Female 50-54",{"$f":"'Population at Risk'!C184/'Population at Risk'!C$5","v":5.7619275646775877E-3},{"$f":"'Population at Risk'!D184/'Population at Risk'!D$5","v":1.4301515063048567E-2},{"$f":"'Population at Risk'!E184/'Population at Risk'!E$5","v":2.4471821236727073E-2},{"$f":"'Population at Risk'!F184/'Population at Risk'!F$5","v":1.5854710586244058E-2},{"$f":"'Population at Risk'!G184/'Population at Risk'!G$5","v":1.3873153432905969E-2},{"$f":"'Population at Risk'!H184/'Population at Risk'!H$5","v":6.5053234734779161E-3},{"$f":"'Population at Risk'!I184/'Population at Risk'!I$5","v":2.3101600174533776E-2},{"$f":"'Population at Risk'!J184/'Population at Risk'!J$5","v":1.2269372461723051E-2},{"$f":"'Population at Risk'!K184/'Population at Risk'!K$5","v":7.7081432404498915E-3},{"$f":"'Population at Risk'!L184/'Population at Risk'!L$5","v":1.0992941739053517E-2},{"$f":"'Population at Risk'!M184/'Population at Risk'!M$5","v":1.0992941739053517E-2},{"$f":"'Population at Risk'!N184/'Population at Risk'!N$5","v":4.3115990043008671E-3},{"$f":"'Population at Risk'!O184/'Population at Risk'!O$5","v":5.6502950946067535E-3},{"$f":"'Population at Risk'!P184/'Population at Risk'!P$5","v":1.1645376390268154E-2},{"$f":"'Population at Risk'!Q184/'Population at Risk'!Q$5","v":1.7931304476240965E-2},{"$f":"'Population at Risk'!R184/'Population at Risk'!R$5","v":8.9529229949763568E-3},{"$f":"'Population at Risk'!S184/'Population at Risk'!S$5","v":9.6535928636884687E-3},{"$f":"'Population at Risk'!T184/'Population at Risk'!T$5","v":6.6509476087429024E-3},{"$f":"'Population at Risk'!U184/'Population at Risk'!U$5","v":3.3677594382706243E-3},{"$f":"'Population at Risk'!V184/'Population at Risk'!V$5","v":1.0044752221768158E-2},{"$f":"'Population at Risk'!W184/'Population at Risk'!W$5","v":8.8166956713752291E-3},{"$f":"'Population at Risk'!X184/'Population at Risk'!X$5","v":8.8166956713752291E-3},{"$f":"'Population at Risk'!Y184/'Population at Risk'!Y$5","v":1.1184125826061941E-2},{"$f":"'Population at Risk'!Z184/'Population at Risk'!Z$5","v":3.8168382060933693E-3},{"$f":"'Population at Risk'!AA184/'Population at Risk'!AA$5","v":6.469676174685835E-3},{"$f":"'Population at Risk'!AB184/'Population at Risk'!AB$5","v":1.579213766436785E-2},{"$f":"'Population at Risk'!AC184/'Population at Risk'!AC$5","v":5.717110132711891E-3},{"$f":"'Population at Risk'!AD184/'Population at Risk'!AD$5","v":1.5603439829593517E-2},{"$f":"'Population at Risk'!AE184/'Population at Risk'!AE$5","v":1.6209557225139681E-2},{"$f":"'Population at Risk'!AF184/'Population at Risk'!AF$5","v":7.5049378864999105E-3},{"$f":"'Population at Risk'!AG184/'Population at Risk'!AG$5","v":1.6209557225139681E-2},{"$f":"'Population at Risk'!AH184/'Population at Risk'!AH$5","v":7.8471083471352877E-3},{"$f":"'Population at Risk'!AI184/'Population at Risk'!AI$5","v":8.4886922533073637E-3},{"$f":"'Population at Risk'!AJ184/'Population at Risk'!AJ$5","v":7.8439034511904645E-3},{"$f":"'Population at Risk'!AK184/'Population at Risk'!AK$5","v":2.4341963363165159E-2},{"$f":"'Population at Risk'!AL184/'Population at Risk'!AL$5","v":7.4160806562251508E-3},{"$f":"'Population at Risk'!AM184/'Population at Risk'!AM$5","v":6.1676148539598786E-3},{"$f":"'Population at Risk'!AN184/'Population at Risk'!AN$5","v":2.7311143376737325E-2},{"$f":"'Population at Risk'!AO184/'Population at Risk'!AO$5","v":2.7311143376737325E-2},{"$f":"'Population at Risk'!AP184/'Population at Risk'!AP$5","v":2.0242572213378024E-2},{"$f":"'Population at Risk'!AQ184/'Population at Risk'!AQ$5","v":7.6454588657281879E-3},{"$f":"'Population at Risk'!AR184/'Population at Risk'!AR$5","v":9.6689805506180553E-3},{"$f":"'Population at Risk'!AS184/'Population at Risk'!AS$5","v":2.3101600174533776E-2},{"$f":"'Population at Risk'!AT184/'Population at Risk'!AT$5","v":3.5600284736497276E-2},{"$f":"'Population at Risk'!AU184/'Population at Risk'!AU$5","v":3.5600284736497276E-2},{"$f":"'Population at Risk'!AV184/'Population at Risk'!AV$5","v":6.3466110242516522E-3},{"$f":"'Population at Risk'!AW184/'Population at Risk'!AW$5","v":9.8516622708796093E-3},{"$f":"'Population at Risk'!AX184/'Population at Risk'!AX$5","v":1.5249785017507719E-2},{"$f":"'Population at Risk'!AY184/'Population at Risk'!AY$5","v":1.0677236859306632E-2},{"$f":"'Population at Risk'!AZ184/'Population at Risk'!AZ$5","v":1.1949472967756536E-2},{"$f":"'Population at Risk'!BA184/'Population at Risk'!BA$5","v":5.5112071517124783E-3},{"$f":"'Population at Risk'!BB184/'Population at Risk'!BB$5","v":8.9320924987026061E-3},{"$f":"'Population at Risk'!BC184/'Population at Risk'!BC$5","v":3.3677594382706243E-3},182]
[null,"Female 55-59",{"$f":"'Population at Risk'!C185/'Population at Risk'!C$5","v":1.3335989593718595E-2},{"$f":"'Population at Risk'!D185/'Population at Risk'!D$5","v":3.125582939782616E-2},{"$f":"'Population at Risk'!E185/'Population at Risk'!E$5","v":5.2585255016039133E-2},{"$f":"'Population at Risk'!F185/'Population at Risk'!F$5","v":3.5118909475048338E-2},{"$f":"'Population at Risk'!G185/'Population at Risk'!G$5","v":3.2387834628819043E-2},{"$f":"'Population at Risk'!H185/'Population at Risk'!H$5","v":1.5566683168789544E-2},{"$f":"'Population at Risk'!I185/'Population at Risk'!I$5","v":5.4160998701513308E-2},{"$f":"'Population at Risk'!J185/'Population at Risk'!J$5","v":2.5430937980662281E-2},{"$f":"'Population at Risk'!K185/'Population at Risk'!K$5","v":1.7186805661951462E-2},{"$f":"'Population at Risk'!L185/'Population at Risk'!L$5","v":2.7576459610229982E-2},{"$f":"'Population at Risk'!M185/'Population at Risk'!M$5","v":2.7576459610229982E-2},{"$f":"'Population at Risk'!N185/'Population at Risk'!N$5","v":1.0868385341136252E-2},{"$f":"'Population at Risk'!O185/'Population at Risk'!O$5","v":1.347118160964866E-2},{"$f":"'Population at Risk'!P185/'Population at Risk'!P$5","v":3.1192301096800684E-2},{"$f":"'Population at Risk'!Q185/'Population at Risk'!Q$5","v":4.2014042066174317E-2},{"$f":"'Population at Risk'!R185/'Population at Risk'!R$5","v":2.0640282676480631E-2},{"$f":"'Population at Risk'!S185/'Population at Risk'!S$5","v":2.1757212770473808E-2},{"$f":"'Population at Risk'!T185/'Population at Risk'!T$5","v":1.4914241426327813E-2},{"$f":"'Population at Risk'!U185/'Population at Risk'!U$5","v":7.3981279796157253E-3},{"$f":"'Population at Risk'!V185/'Population at Risk'!V$5","v":2.1996474488483221E-2},{"$f":"'Population at Risk'!W185/'Population at Risk'!W$5","v":2.0349898962617304E-2},{"$f":"'Population at Risk'!X185/'Population at Risk'!X$5","v":2.0349898962617304E-2},{"$f":"'Population at Risk'!Y185/'Population at Risk'!Y$5","v":2.3772703275632384E-2},{"$f":"'Population at Risk'!Z185/'Population at Risk'!Z$5","v":8.387070693718867E-3},{"$f":"'Population at Risk'!AA185/'Population at Risk'!AA$5","v":1.4568412796594371E-2},{"$f":"'Population at Risk'!AB185/'Population at Risk'!AB$5","v":3.4805536278282374E-2},{"$f":"'Population at Risk'!AC185/'Population at Risk'!AC$5","v":1.3306889802989962E-2},{"$f":"'Population at Risk'!AD185/'Population at Risk'!AD$5","v":3.5519786953741715E-2},{"$f":"'Population at Risk'!AE185/'Population at Risk'!AE$5","v":3.6633871728465016E-2},{"$f":"'Population at Risk'!AF185/'Population at Risk'!AF$5","v":1.6068754376688796E-2},{"$f":"'Population at Risk'!AG185/'Population at Risk'!AG$5","v":3.6633871728465016E-2},{"$f":"'Population at Risk'!AH185/'Population at Risk'!AH$5","v":1.6875310752238633E-2},{"$f":"'Population at Risk'!AI185/'Population at Risk'!AI$5","v":1.8683709953455287E-2},{"$f":"'Population at Risk'!AJ185/'Population at Risk'!AJ$5","v":1.6806689230327646E-2},{"$f":"'Population at Risk'!AK185/'Population at Risk'!AK$5","v":5.5176147314288208E-2},{"$f":"'Population at Risk'!AL185/'Population at Risk'!AL$5","v":1.671460086793447E-2},{"$f":"'Population at Risk'!AM185/'Population at Risk'!AM$5","v":1.2659837863707522E-2},{"$f":"'Population at Risk'!AN185/'Population at Risk'!AN$5","v":6.6277737694207722E-2},{"$f":"'Population at Risk'!AO185/'Population at Risk'!AO$5","v":6.6277737694207722E-2},{"$f":"'Population at Risk'!AP185/'Population at Risk'!AP$5","v":4.5392420274568586E-2},{"$f":"'Population at Risk'!AQ185/'Population at Risk'!AQ$5","v":1.7856724047856491E-2},{"$f":"'Population at Risk'!AR185/'Population at Risk'!AR$5","v":2.1833376187314849E-2},{"$f":"'Population at Risk'!AS185/'Population at Risk'!AS$5","v":5.4160998701513308E-2},{"$f":"'Population at Risk'!AT185/'Population at Risk'!AT$5","v":7.8337888242685713E-2},{"$f":"'Population at Risk'!AU185/'Population at Risk'!AU$5","v":7.8337888242685713E-2},{"$f":"'Population at Risk'!AV185/'Population at Risk'!AV$5","v":1.6664642598027728E-2},{"$f":"'Population at Risk'!AW185/'Population at Risk'!AW$5","v":2.1910322864214873E-2},{"$f":"'Population at Risk'!AX185/'Population at Risk'!AX$5","v":3.0836893169026037E-2},{"$f":"'Population at Risk'!AY185/'Population at Risk'!AY$5","v":2.448746966390495E-2},{"$f":"'Population at Risk'!AZ185/'Population at Risk'!AZ$5","v":2.7304493117843363E-2},{"$f":"'Population at Risk'!BA185/'Population at Risk'!BA$5","v":1.4261378401092407E-2},{"$f":"'Population at Risk'!BB185/'Population at Risk'!BB$5","v":1.7800668033770041E-2},{"$f":"'Population at Risk'!BC185/'Population at Risk'!BC$5","v":7.3981279796157253E-3},183]
[null,"Female 60-64",{"$f":"'Population at Risk'!C186/'Population at Risk'!C$5","v":1.2332896837392606E-2},{"$f":"'Population at Risk'!D186/'Population at Risk'!D$5","v":2.8231299670883E-2},{"$f":"'Population at Risk'!E186/'Population at Risk'!E$5","v":4.7149685241788183E-2},{"$f":"'Population at Risk'!F186/'Population at Risk'!F$5","v":3.5407031795262958E-2},{"$f":"'Population at Risk'!G186/'Population at Risk'!G$5","v":3.0669140574223694E-2},{"$f":"'Population at Risk'!H186/'Population at Risk'!H$5","v":1.4474533187926861E-2},{"$f":"'Population at Risk'!I186/'Population at Risk'!I$5","v":4.8812159681316546E-2},{"$f":"'Population at Risk'!J186/'Population at Risk'!J$5","v":2.1185545239590809E-2},{"$f":"'Population at Risk'!K186/'Population at Risk'!K$5","v":1.4091045635885672E-2},{"$f":"'Population at Risk'!L186/'Population at Risk'!L$5","v":2.655959279404942E-2},{"$f":"'Population at Risk'!M186/'Population at Risk'!M$5","v":2.655959279404942E-2},{"$f":"'Population at Risk'!N186/'Population at Risk'!N$5","v":7.7668247205979635E-3},{"$f":"'Population at Risk'!O186/'Population at Risk'!O$5","v":1.2022009042550094E-2},{"$f":"'Population at Risk'!P186/'Population at Risk'!P$5","v":2.4912888184534462E-2},{"$f":"'Population at Risk'!Q186/'Population at Risk'!Q$5","v":3.5105360089911185E-2},{"$f":"'Population at Risk'!R186/'Population at Risk'!R$5","v":1.842599947747121E-2},{"$f":"'Population at Risk'!S186/'Population at Risk'!S$5","v":1.8973878677065181E-2},{"$f":"'Population at Risk'!T186/'Population at Risk'!T$5","v":1.251316767000854E-2},{"$f":"'Population at Risk'!U186/'Population at Risk'!U$5","v":4.8470493659551299E-3},{"$f":"'Population at Risk'!V186/'Population at Risk'!V$5","v":1.8306344279075071E-2},{"$f":"'Population at Risk'!W186/'Population at Risk'!W$5","v":1.8544865397281871E-2},{"$f":"'Population at Risk'!X186/'Population at Risk'!X$5","v":1.8544865397281871E-2},{"$f":"'Population at Risk'!Y186/'Population at Risk'!Y$5","v":1.979504834846775E-2},{"$f":"'Population at Risk'!Z186/'Population at Risk'!Z$5","v":6.5517728543862154E-3},{"$f":"'Population at Risk'!AA186/'Population at Risk'!AA$5","v":1.2021889919844219E-2},{"$f":"'Population at Risk'!AB186/'Population at Risk'!AB$5","v":3.1334023049487458E-2},{"$f":"'Population at Risk'!AC186/'Population at Risk'!AC$5","v":1.0773513988793474E-2},{"$f":"'Population at Risk'!AD186/'Population at Risk'!AD$5","v":3.3838712218893001E-2},{"$f":"'Population at Risk'!AE186/'Population at Risk'!AE$5","v":3.4961264471380968E-2},{"$f":"'Population at Risk'!AF186/'Population at Risk'!AF$5","v":1.2615739476791203E-2},{"$f":"'Population at Risk'!AG186/'Population at Risk'!AG$5","v":3.4961264471380968E-2},{"$f":"'Population at Risk'!AH186/'Population at Risk'!AH$5","v":1.4306087510597662E-2},{"$f":"'Population at Risk'!AI186/'Population at Risk'!AI$5","v":1.5763246552963728E-2},{"$f":"'Population at Risk'!AJ186/'Population at Risk'!AJ$5","v":1.5351564621641268E-2},{"$f":"'Population at Risk'!AK186/'Population at Risk'!AK$5","v":4.9136154856806953E-2},{"$f":"'Population at Risk'!AL186/'Population at Risk'!AL$5","v":1.6752204019493375E-2},{"$f":"'Population at Risk'!AM186/'Population at Risk'!AM$5","v":1.0798976217861493E-2},{"$f":"'Population at Risk'!AN186/'Population at Risk'!AN$5","v":6.1294449145771056E-2},{"$f":"'Population at Risk'!AO186/'Population at Risk'!AO$5","v":6.1294449145771056E-2},{"$f":"'Population at Risk'!AP186/'Population at Risk'!AP$5","v":4.288585004370371E-2},{"$f":"'Population at Risk'!AQ186/'Population at Risk'!AQ$5","v":1.5483102975032173E-2},{"$f":"'Population at Risk'!AR186/'Population at Risk'!AR$5","v":1.9226905171634251E-2},{"$f":"'Population at Risk'!AS186/'Population at Risk'!AS$5","v":4.8812159681316546E-2},{"$f":"'Population at Risk'!AT186/'Population at Risk'!AT$5","v":7.066077519490252E-2},{"$f":"'Population at Risk'!AU186/'Population at Risk'!AU$5","v":7.066077519490252E-2},{"$f":"'Population at Risk'!AV186/'Population at Risk'!AV$5","v":1.4471926466708288E-2},{"$f":"'Population at Risk'!AW186/'Population at Risk'!AW$5","v":1.8494679242583995E-2},{"$f":"'Population at Risk'!AX186/'Population at Risk'!AX$5","v":2.5833556197892672E-2},{"$f":"'Population at Risk'!AY186/'Population at Risk'!AY$5","v":2.2382821713609471E-2},{"$f":"'Population at Risk'!AZ186/'Population at Risk'!AZ$5","v":2.5001318063965126E-2},{"$f":"'Population at Risk'!BA186/'Population at Risk'!BA$5","v":1.0664143419779297E-2},{"$f":"'Population at Risk'!BB186/'Population at Risk'!BB$5","v":1.4833890028141701E-2},{"$f":"'Population at Risk'!BC186/'Population at Risk'!BC$5","v":4.8470493659551299E-3},184]
[null,"Female 65-69",{"$f":"'Population at Risk'!C187/'Population at Risk'!C$5","v":0},{"$f":"'Population at Risk'!D187/'Population at Risk'!D$5","v":0},{"$f":"'Population at Risk'!E187/'Population at Risk'!E$5","v":0},{"$f":"'Population at Risk'!F187/'Population at Risk'!F$5","v":0},{"$f":"'Population at Risk'!G187/'Population at Risk'!G$5","v":0},{"$f":"'Population at Risk'!H187/'Population at Risk'!H$5","v":0},{"$f":"'Population at Risk'!I187/'Population at Risk'!I$5","v":0},{"$f":"'Population at Risk'!J187/'Population at Risk'!J$5","v":0},{"$f":"'Population at Risk'!K187/'Population at Risk'!K$5","v":0},{"$f":"'Population at Risk'!L187/'Population at Risk'!L$5","v":0},{"$f":"'Population at Risk'!M187/'Population at Risk'!M$5","v":0},{"$f":"'Population at Risk'!N187/'Population at Risk'!N$5","v":0},{"$f":"'Population at Risk'!O187/'Population at Risk'!O$5","v":0},{"$f":"'Population at Risk'!P187/'Population at Risk'!P$5","v":0},{"$f":"'Population at Risk'!Q187/'Population at Risk'!Q$5","v":0},{"$f":"'Population at Risk'!R187/'Population at Risk'!R$5","v":0},{"$f":"'Population at Risk'!S187/'Population at Risk'!S$5","v":0},{"$f":"'Population at Risk'!T187/'Population at Risk'!T$5","v":0},{"$f":"'Population at Risk'!U187/'Population at Risk'!U$5","v":0},{"$f":"'Population at Risk'!V187/'Population at Risk'!V$5","v":0},{"$f":"'Population at Risk'!W187/'Population at Risk'!W$5","v":0},{"$f":"'Population at Risk'!X187/'Population at Risk'!X$5","v":0},{"$f":"'Population at Risk'!Y187/'Population at Risk'!Y$5","v":0},{"$f":"'Population at Risk'!Z187/'Population at Risk'!Z$5","v":0},{"$f":"'Population at Risk'!AA187/'Population at Risk'!AA$5","v":0},{"$f":"'Population at Risk'!AB187/'Population at Risk'!AB$5","v":0},{"$f":"'Population at Risk'!AC187/'Population at Risk'!AC$5","v":0},{"$f":"'Population at Risk'!AD187/'Population at Risk'!AD$5","v":0},{"$f":"'Population at Risk'!AE187/'Population at Risk'!AE$5","v":0},{"$f":"'Population at Risk'!AF187/'Population at Risk'!AF$5","v":0},{"$f":"'Population at Risk'!AG187/'Population at Risk'!AG$5","v":0},{"$f":"'Population at Risk'!AH187/'Population at Risk'!AH$5","v":0},{"$f":"'Population at Risk'!AI187/'Population at Risk'!AI$5","v":0},{"$f":"'Population at Risk'!AJ187/'Population at Risk'!AJ$5","v":0},{"$f":"'Population at Risk'!AK187/'Population at Risk'!AK$5","v":0},{"$f":"'Population at Risk'!AL187/'Population at Risk'!AL$5","v":0},{"$f":"'Population at Risk'!AM187/'Population at Risk'!AM$5","v":0},{"$f":"'Population at Risk'!AN187/'Population at Risk'!AN$5","v":0},{"$f":"'Population at Risk'!AO187/'Population at Risk'!AO$5","v":0},{"$f":"'Population at Risk'!AP187/'Population at Risk'!AP$5","v":0},{"$f":"'Population at Risk'!AQ187/'Population at Risk'!AQ$5","v":0},{"$f":"'Population at Risk'!AR187/'Population at Risk'!AR$5","v":0},{"$f":"'Population at Risk'!AS187/'Population at Risk'!AS$5","v":0},{"$f":"'Population at Risk'!AT187/'Population at Risk'!AT$5","v":0},{"$f":"'Population at Risk'!AU187/'Population at Risk'!AU$5","v":0},{"$f":"'Population at Risk'!AV187/'Population at Risk'!AV$5","v":0},{"$f":"'Population at Risk'!AW187/'Population at Risk'!AW$5","v":0},{"$f":"'Population at Risk'!AX187/'Population at Risk'!AX$5","v":0},{"$f":"'Population at Risk'!AY187/'Population at Risk'!AY$5","v":0},{"$f":"'Population at Risk'!AZ187/'Population at Risk'!AZ$5","v":0},{"$f":"'Population at Risk'!BA187/'Population at Risk'!BA$5","v":0},{"$f":"'Population at Risk'!BB187/'Population at Risk'!BB$5","v":0},{"$f":"'Population at Risk'!BC187/'Population at Risk'!BC$5","v":0},185]
[null,"Female 70-74",{"$f":"'Population at Risk'!C188/'Population at Risk'!C$5","v":0},{"$f":"'Population at Risk'!D188/'Population at Risk'!D$5","v":0},{"$f":"'Population at Risk'!E188/'Population at Risk'!E$5","v":0},{"$f":"'Population at Risk'!F188/'Population at Risk'!F$5","v":0},{"$f":"'Population at Risk'!G188/'Population at Risk'!G$5","v":0},{"$f":"'Population at Risk'!H188/'Population at Risk'!H$5","v":0},{"$f":"'Population at Risk'!I188/'Population at Risk'!I$5","v":0},{"$f":"'Population at Risk'!J188/'Population at Risk'!J$5","v":0},{"$f":"'Population at Risk'!K188/'Population at Risk'!K$5","v":0},{"$f":"'Population at Risk'!L188/'Population at Risk'!L$5","v":0},{"$f":"'Population at Risk'!M188/'Population at Risk'!M$5","v":0},{"$f":"'Population at Risk'!N188/'Population at Risk'!N$5","v":0},{"$f":"'Population at Risk'!O188/'Population at Risk'!O$5","v":0},{"$f":"'Population at Risk'!P188/'Population at Risk'!P$5","v":0},{"$f":"'Population at Risk'!Q188/'Population at Risk'!Q$5","v":0},{"$f":"'Population at Risk'!R188/'Population at Risk'!R$5","v":0},{"$f":"'Population at Risk'!S188/'Population at Risk'!S$5","v":0},{"$f":"'Population at Risk'!T188/'Population at Risk'!T$5","v":0},{"$f":"'Population at Risk'!U188/'Population at Risk'!U$5","v":0},{"$f":"'Population at Risk'!V188/'Population at Risk'!V$5","v":0},{"$f":"'Population at Risk'!W188/'Population at Risk'!W$5","v":0},{"$f":"'Population at Risk'!X188/'Population at Risk'!X$5","v":0},{"$f":"'Population at Risk'!Y188/'Population at Risk'!Y$5","v":0},{"$f":"'Population at Risk'!Z188/'Population at Risk'!Z$5","v":0},{"$f":"'Population at Risk'!AA188/'Population at Risk'!AA$5","v":0},{"$f":"'Population at Risk'!AB188/'Population at Risk'!AB$5","v":0},{"$f":"'Population at Risk'!AC188/'Population at Risk'!AC$5","v":0},{"$f":"'Population at Risk'!AD188/'Population at Risk'!AD$5","v":0},{"$f":"'Population at Risk'!AE188/'Population at Risk'!AE$5","v":0},{"$f":"'Population at Risk'!AF188/'Population at Risk'!AF$5","v":0},{"$f":"'Population at Risk'!AG188/'Population at Risk'!AG$5","v":0},{"$f":"'Population at Risk'!AH188/'Population at Risk'!AH$5","v":0},{"$f":"'Population at Risk'!AI188/'Population at Risk'!AI$5","v":0},{"$f":"'Population at Risk'!AJ188/'Population at Risk'!AJ$5","v":0},{"$f":"'Population at Risk'!AK188/'Population at Risk'!AK$5","v":0},{"$f":"'Population at Risk'!AL188/'Population at Risk'!AL$5","v":0},{"$f":"'Population at Risk'!AM188/'Population at Risk'!AM$5","v":0},{"$f":"'Population at Risk'!AN188/'Population at Risk'!AN$5","v":0},{"$f":"'Population at Risk'!AO188/'Population at Risk'!AO$5","v":0},{"$f":"'Population at Risk'!AP188/'Population at Risk'!AP$5","v":0},{"$f":"'Population at Risk'!AQ188/'Population at Risk'!AQ$5","v":0},{"$f":"'Population at Risk'!AR188/'Population at Risk'!AR$5","v":0},{"$f":"'Population at Risk'!AS188/'Population at Risk'!AS$5","v":0},{"$f":"'Population at Risk'!AT188/'Population at Risk'!AT$5","v":0},{"$f":"'Population at Risk'!AU188/'Population at Risk'!AU$5","v":0},{"$f":"'Population at Risk'!AV188/'Population at Risk'!AV$5","v":0},{"$f":"'Population at Risk'!AW188/'Population at Risk'!AW$5","v":0},{"$f":"'Population at Risk'!AX188/'Population at Risk'!AX$5","v":0},{"$f":"'Population at Risk'!AY188/'Population at Risk'!AY$5","v":0},{"$f":"'Population at Risk'!AZ188/'Population at Risk'!AZ$5","v":0},{"$f":"'Population at Risk'!BA188/'Population at Risk'!BA$5","v":0},{"$f":"'Population at Risk'!BB188/'Population at Risk'!BB$5","v":0},{"$f":"'Population at Risk'!BC188/'Population at Risk'!BC$5","v":0},186]
[null,"Female 75-79",{"$f":"'Population at Risk'!C189/'Population at Risk'!C$5","v":0},{"$f":"'Population at Risk'!D189/'Population at Risk'!D$5","v":0},{"$f":"'Population at Risk'!E189/'Population at Risk'!E$5","v":0},{"$f":"'Population at Risk'!F189/'Population at Risk'!F$5","v":0},{"$f":"'Population at Risk'!G189/'Population at Risk'!G$5","v":0},{"$f":"'Population at Risk'!H189/'Population at Risk'!H$5","v":0},{"$f":"'Population at Risk'!I189/'Population at Risk'!I$5","v":0},{"$f":"'Population at Risk'!J189/'Population at Risk'!J$5","v":0},{"$f":"'Population at Risk'!K189/'Population at Risk'!K$5","v":0},{"$f":"'Population at Risk'!L189/'Population at Risk'!L$5","v":0},{"$f":"'Population at Risk'!M189/'Population at Risk'!M$5","v":0},{"$f":"'Population at Risk'!N189/'Population at Risk'!N$5","v":0},{"$f":"'Population at Risk'!O189/'Population at Risk'!O$5","v":0},{"$f":"'Population at Risk'!P189/'Population at Risk'!P$5","v":0},{"$f":"'Population at Risk'!Q189/'Population at Risk'!Q$5","v":0},{"$f":"'Population at Risk'!R189/'Population at Risk'!R$5","v":0},{"$f":"'Population at Risk'!S189/'Population at Risk'!S$5","v":0},{"$f":"'Population at Risk'!T189/'Population at Risk'!T$5","v":0},{"$f":"'Population at Risk'!U189/'Population at Risk'!U$5","v":0},{"$f":"'Population at Risk'!V189/'Population at Risk'!V$5","v":0},{"$f":"'Population at Risk'!W189/'Population at Risk'!W$5","v":0},{"$f":"'Population at Risk'!X189/'Population at Risk'!X$5","v":0},{"$f":"'Population at Risk'!Y189/'Population at Risk'!Y$5","v":0},{"$f":"'Population at Risk'!Z189/'Population at Risk'!Z$5","v":0},{"$f":"'Population at Risk'!AA189/'Population at Risk'!AA$5","v":0},{"$f":"'Population at Risk'!AB189/'Population at Risk'!AB$5","v":0},{"$f":"'Population at Risk'!AC189/'Population at Risk'!AC$5","v":0},{"$f":"'Population at Risk'!AD189/'Population at Risk'!AD$5","v":0},{"$f":"'Population at Risk'!AE189/'Population at Risk'!AE$5","v":0},{"$f":"'Population at Risk'!AF189/'Population at Risk'!AF$5","v":0},{"$f":"'Population at Risk'!AG189/'Population at Risk'!AG$5","v":0},{"$f":"'Population at Risk'!AH189/'Population at Risk'!AH$5","v":0},{"$f":"'Population at Risk'!AI189/'Population at Risk'!AI$5","v":0},{"$f":"'Population at Risk'!AJ189/'Population at Risk'!AJ$5","v":0},{"$f":"'Population at Risk'!AK189/'Population at Risk'!AK$5","v":0},{"$f":"'Population at Risk'!AL189/'Population at Risk'!AL$5","v":0},{"$f":"'Population at Risk'!AM189/'Population at Risk'!AM$5","v":0},{"$f":"'Population at Risk'!AN189/'Population at Risk'!AN$5","v":0},{"$f":"'Population at Risk'!AO189/'Population at Risk'!AO$5","v":0},{"$f":"'Population at Risk'!AP189/'Population at Risk'!AP$5","v":0},{"$f":"'Population at Risk'!AQ189/'Population at Risk'!AQ$5","v":0},{"$f":"'Population at Risk'!AR189/'Population at Risk'!AR$5","v":0},{"$f":"'Population at Risk'!AS189/'Population at Risk'!AS$5","v":0},{"$f":"'Population at Risk'!AT189/'Population at Risk'!AT$5","v":0},{"$f":"'Population at Risk'!AU189/'Population at Risk'!AU$5","v":0},{"$f":"'Population at Risk'!AV189/'Population at Risk'!AV$5","v":0},{"$f":"'Population at Risk'!AW189/'Population at Risk'!AW$5","v":0},{"$f":"'Population at Risk'!AX189/'Population at Risk'!AX$5","v":0},{"$f":"'Population at Risk'!AY189/'Population at Risk'!AY$5","v":0},{"$f":"'Population at Risk'!AZ189/'Population at Risk'!AZ$5","v":0},{"$f":"'Population at Risk'!BA189/'Population at Risk'!BA$5","v":0},{"$f":"'Population at Risk'!BB189/'Population at Risk'!BB$5","v":0},{"$f":"'Population at Risk'!BC189/'Population at Risk'!BC$5","v":0},187]
[null,"Female 80-84",{"$f":"'Population at Risk'!C190/'Population at Risk'!C$5","v":0},{"$f":"'Population at Risk'!D190/'Population at Risk'!D$5","v":0},{"$f":"'Population at Risk'!E190/'Population at Risk'!E$5","v":0},{"$f":"'Population at Risk'!F190/'Population at Risk'!F$5","v":0},{"$f":"'Population at Risk'!G190/'Population at Risk'!G$5","v":0},{"$f":"'Population at Risk'!H190/'Population at Risk'!H$5","v":0},{"$f":"'Population at Risk'!I190/'Population at Risk'!I$5","v":0},{"$f":"'Population at Risk'!J190/'Population at Risk'!J$5","v":0},{"$f":"'Population at Risk'!K190/'Population at Risk'!K$5","v":0},{"$f":"'Population at Risk'!L190/'Population at Risk'!L$5","v":0},{"$f":"'Population at Risk'!M190/'Population at Risk'!M$5","v":0},{"$f":"'Population at Risk'!N190/'Population at Risk'!N$5","v":0},{"$f":"'Population at Risk'!O190/'Population at Risk'!O$5","v":0},{"$f":"'Population at Risk'!P190/'Population at Risk'!P$5","v":0},{"$f":"'Population at Risk'!Q190/'Population at Risk'!Q$5","v":0},{"$f":"'Population at Risk'!R190/'Population at Risk'!R$5","v":0},{"$f":"'Population at Risk'!S190/'Population at Risk'!S$5","v":0},{"$f":"'Population at Risk'!T190/'Population at Risk'!T$5","v":0},{"$f":"'Population at Risk'!U190/'Population at Risk'!U$5","v":0},{"$f":"'Population at Risk'!V190/'Population at Risk'!V$5","v":0},{"$f":"'Population at Risk'!W190/'Population at Risk'!W$5","v":0},{"$f":"'Population at Risk'!X190/'Population at Risk'!X$5","v":0},{"$f":"'Population at Risk'!Y190/'Population at Risk'!Y$5","v":0},{"$f":"'Population at Risk'!Z190/'Population at Risk'!Z$5","v":0},{"$f":"'Population at Risk'!AA190/'Population at Risk'!AA$5","v":0},{"$f":"'Population at Risk'!AB190/'Population at Risk'!AB$5","v":0},{"$f":"'Population at Risk'!AC190/'Population at Risk'!AC$5","v":0},{"$f":"'Population at Risk'!AD190/'Population at Risk'!AD$5","v":0},{"$f":"'Population at Risk'!AE190/'Population at Risk'!AE$5","v":0},{"$f":"'Population at Risk'!AF190/'Population at Risk'!AF$5","v":0},{"$f":"'Population at Risk'!AG190/'Population at Risk'!AG$5","v":0},{"$f":"'Population at Risk'!AH190/'Population at Risk'!AH$5","v":0},{"$f":"'Population at Risk'!AI190/'Population at Risk'!AI$5","v":0},{"$f":"'Population at Risk'!AJ190/'Population at Risk'!AJ$5","v":0},{"$f":"'Population at Risk'!AK190/'Population at Risk'!AK$5","v":0},{"$f":"'Population at Risk'!AL190/'Population at Risk'!AL$5","v":0},{"$f":"'Population at Risk'!AM190/'Population at Risk'!AM$5","v":0},{"$f":"'Population at Risk'!AN190/'Population at Risk'!AN$5","v":0},{"$f":"'Population at Risk'!AO190/'Population at Risk'!AO$5","v":0},{"$f":"'Population at Risk'!AP190/'Population at Risk'!AP$5","v":0},{"$f":"'Population at Risk'!AQ190/'Population at Risk'!AQ$5","v":0},{"$f":"'Population at Risk'!AR190/'Population at Risk'!AR$5","v":0},{"$f":"'Population at Risk'!AS190/'Population at Risk'!AS$5","v":0},{"$f":"'Population at Risk'!AT190/'Population at Risk'!AT$5","v":0},{"$f":"'Population at Risk'!AU190/'Population at Risk'!AU$5","v":0},{"$f":"'Population at Risk'!AV190/'Population at Risk'!AV$5","v":0},{"$f":"'Population at Risk'!AW190/'Population at Risk'!AW$5","v":0},{"$f":"'Population at Risk'!AX190/'Population at Risk'!AX$5","v":0},{"$f":"'Population at Risk'!AY190/'Population at Risk'!AY$5","v":0},{"$f":"'Population at Risk'!AZ190/'Population at Risk'!AZ$5","v":0},{"$f":"'Population at Risk'!BA190/'Population at Risk'!BA$5","v":0},{"$f":"'Population at Risk'!BB190/'Population at Risk'!BB$5","v":0},{"$f":"'Population at Risk'!BC190/'Population at Risk'!BC$5","v":0},188]
[null,"Female 85-89",{"$f":"'Population at Risk'!C191/'Population at Risk'!C$5","v":0},{"$f":"'Population at Risk'!D191/'Population at Risk'!D$5","v":0},{"$f":"'Population at Risk'!E191/'Population at Risk'!E$5","v":0},{"$f":"'Population at Risk'!F191/'Population at Risk'!F$5","v":0},{"$f":"'Population at Risk'!G191/'Population at Risk'!G$5","v":0},{"$f":"'Population at Risk'!H191/'Population at Risk'!H$5","v":0},{"$f":"'Population at Risk'!I191/'Population at Risk'!I$5","v":0},{"$f":"'Population at Risk'!J191/'Population at Risk'!J$5","v":0},{"$f":"'Population at Risk'!K191/'Population at Risk'!K$5","v":0},{"$f":"'Population at Risk'!L191/'Population at Risk'!L$5","v":0},{"$f":"'Population at Risk'!M191/'Population at Risk'!M$5","v":0},{"$f":"'Population at Risk'!N191/'Population at Risk'!N$5","v":0},{"$f":"'Population at Risk'!O191/'Population at Risk'!O$5","v":0},{"$f":"'Population at Risk'!P191/'Population at Risk'!P$5","v":0},{"$f":"'Population at Risk'!Q191/'Population at Risk'!Q$5","v":0},{"$f":"'Population at Risk'!R191/'Population at Risk'!R$5","v":0},{"$f":"'Population at Risk'!S191/'Population at Risk'!S$5","v":0},{"$f":"'Population at Risk'!T191/'Population at Risk'!T$5","v":0},{"$f":"'Population at Risk'!U191/'Population at Risk'!U$5","v":0},{"$f":"'Population at Risk'!V191/'Population at Risk'!V$5","v":0},{"$f":"'Population at Risk'!W191/'Population at Risk'!W$5","v":0},{"$f":"'Population at Risk'!X191/'Population at Risk'!X$5","v":0},{"$f":"'Population at Risk'!Y191/'Population at Risk'!Y$5","v":0},{"$f":"'Population at Risk'!Z191/'Population at Risk'!Z$5","v":0},{"$f":"'Population at Risk'!AA191/'Population at Risk'!AA$5","v":0},{"$f":"'Population at Risk'!AB191/'Population at Risk'!AB$5","v":0},{"$f":"'Population at Risk'!AC191/'Population at Risk'!AC$5","v":0},{"$f":"'Population at Risk'!AD191/'Population at Risk'!AD$5","v":0},{"$f":"'Population at Risk'!AE191/'Population at Risk'!AE$5","v":0},{"$f":"'Population at Risk'!AF191/'Population at Risk'!AF$5","v":0},{"$f":"'Population at Risk'!AG191/'Population at Risk'!AG$5","v":0},{"$f":"'Population at Risk'!AH191/'Population at Risk'!AH$5","v":0},{"$f":"'Population at Risk'!AI191/'Population at Risk'!AI$5","v":0},{"$f":"'Population at Risk'!AJ191/'Population at Risk'!AJ$5","v":0},{"$f":"'Population at Risk'!AK191/'Population at Risk'!AK$5","v":0},{"$f":"'Population at Risk'!AL191/'Population at Risk'!AL$5","v":0},{"$f":"'Population at Risk'!AM191/'Population at Risk'!AM$5","v":0},{"$f":"'Population at Risk'!AN191/'Population at Risk'!AN$5","v":0},{"$f":"'Population at Risk'!AO191/'Population at Risk'!AO$5","v":0},{"$f":"'Population at Risk'!AP191/'Population at Risk'!AP$5","v":0},{"$f":"'Population at Risk'!AQ191/'Population at Risk'!AQ$5","v":0},{"$f":"'Population at Risk'!AR191/'Population at Risk'!AR$5","v":0},{"$f":"'Population at Risk'!AS191/'Population at Risk'!AS$5","v":0},{"$f":"'Population at Risk'!AT191/'Population at Risk'!AT$5","v":0},{"$f":"'Population at Risk'!AU191/'Population at Risk'!AU$5","v":0},{"$f":"'Population at Risk'!AV191/'Population at Risk'!AV$5","v":0},{"$f":"'Population at Risk'!AW191/'Population at Risk'!AW$5","v":0},{"$f":"'Population at Risk'!AX191/'Population at Risk'!AX$5","v":0},{"$f":"'Population at Risk'!AY191/'Population at Risk'!AY$5","v":0},{"$f":"'Population at Risk'!AZ191/'Population at Risk'!AZ$5","v":0},{"$f":"'Population at Risk'!BA191/'Population at Risk'!BA$5","v":0},{"$f":"'Population at Risk'!BB191/'Population at Risk'!BB$5","v":0},{"$f":"'Population at Risk'!BC191/'Population at Risk'!BC$5","v":0},189]
[null,"Female 90+",{"$f":"'Population at Risk'!C192/'Population at Risk'!C$5","v":0},{"$f":"'Population at Risk'!D192/'Population at Risk'!D$5","v":0},{"$f":"'Population at Risk'!E192/'Population at Risk'!E$5","v":0},{"$f":"'Population at Risk'!F192/'Population at Risk'!F$5","v":0},{"$f":"'Population at Risk'!G192/'Population at Risk'!G$5","v":0},{"$f":"'Population at Risk'!H192/'Population at Risk'!H$5","v":0},{"$f":"'Population at Risk'!I192/'Population at Risk'!I$5","v":0},{"$f":"'Population at Risk'!J192/'Population at Risk'!J$5","v":0},{"$f":"'Population at Risk'!K192/'Population at Risk'!K$5","v":0},{"$f":"'Population at Risk'!L192/'Population at Risk'!L$5","v":0},{"$f":"'Population at Risk'!M192/'Population at Risk'!M$5","v":0},{"$f":"'Population at Risk'!N192/'Population at Risk'!N$5","v":0},{"$f":"'Population at Risk'!O192/'Population at Risk'!O$5","v":0},{"$f":"'Population at Risk'!P192/'Population at Risk'!P$5","v":0},{"$f":"'Population at Risk'!Q192/'Population at Risk'!Q$5","v":0},{"$f":"'Population at Risk'!R192/'Population at Risk'!R$5","v":0},{"$f":"'Population at Risk'!S192/'Population at Risk'!S$5","v":0},{"$f":"'Population at Risk'!T192/'Population at Risk'!T$5","v":0},{"$f":"'Population at Risk'!U192/'Population at Risk'!U$5","v":0},{"$f":"'Population at Risk'!V192/'Population at Risk'!V$5","v":0},{"$f":"'Population at Risk'!W192/'Population at Risk'!W$5","v":0},{"$f":"'Population at Risk'!X192/'Population at Risk'!X$5","v":0},{"$f":"'Population at Risk'!Y192/'Population at Risk'!Y$5","v":0},{"$f":"'Population at Risk'!Z192/'Population at Risk'!Z$5","v":0},{"$f":"'Population at Risk'!AA192/'Population at Risk'!AA$5","v":0},{"$f":"'Population at Risk'!AB192/'Population at Risk'!AB$5","v":0},{"$f":"'Population at Risk'!AC192/'Population at Risk'!AC$5","v":0},{"$f":"'Population at Risk'!AD192/'Population at Risk'!AD$5","v":0},{"$f":"'Population at Risk'!AE192/'Population at Risk'!AE$5","v":0},{"$f":"'Population at Risk'!AF192/'Population at Risk'!AF$5","v":0},{"$f":"'Population at Risk'!AG192/'Population at Risk'!AG$5","v":0},{"$f":"'Population at Risk'!AH192/'Population at Risk'!AH$5","v":0},{"$f":"'Population at Risk'!AI192/'Population at Risk'!AI$5","v":0},{"$f":"'Population at Risk'!AJ192/'Population at Risk'!AJ$5","v":0},{"$f":"'Population at Risk'!AK192/'Population at Risk'!AK$5","v":0},{"$f":"'Population at Risk'!AL192/'Population at Risk'!AL$5","v":0},{"$f":"'Population at Risk'!AM192/'Population at Risk'!AM$5","v":0},{"$f":"'Population at Risk'!AN192/'Population at Risk'!AN$5","v":0},{"$f":"'Population at Risk'!AO192/'Population at Risk'!AO$5","v":0},{"$f":"'Population at Risk'!AP192/'Population at Risk'!AP$5","v":0},{"$f":"'Population at Risk'!AQ192/'Population at Risk'!AQ$5","v":0},{"$f":"'Population at Risk'!AR192/'Population at Risk'!AR$5","v":0},{"$f":"'Population at Risk'!AS192/'Population at Risk'!AS$5","v":0},{"$f":"'Population at Risk'!AT192/'Population at Risk'!AT$5","v":0},{"$f":"'Population at Risk'!AU192/'Population at Risk'!AU$5","v":0},{"$f":"'Population at Risk'!AV192/'Population at Risk'!AV$5","v":0},{"$f":"'Population at Risk'!AW192/'Population at Risk'!AW$5","v":0},{"$f":"'Population at Risk'!AX192/'Population at Risk'!AX$5","v":0},{"$f":"'Population at Risk'!AY192/'Population at Risk'!AY$5","v":0},{"$f":"'Population at Risk'!AZ192/'Population at Risk'!AZ$5","v":0},{"$f":"'Population at Risk'!BA192/'Population at Risk'!BA$5","v":0},{"$f":"'Population at Risk'!BB192/'Population at Risk'!BB$5","v":0},{"$f":"'Population at Risk'!BC192/'Population at Risk'!BC$5","v":0},190]
[null,"Male 0-4",{"$f":"'Population at Risk'!C193/'Population at Risk'!C$5","v":0},{"$f":"'Population at Risk'!D193/'Population at Risk'!D$5","v":0},{"$f":"'Population at Risk'!E193/'Population at Risk'!E$5","v":0},{"$f":"'Population at Risk'!F193/'Population at Risk'!F$5","v":0},{"$f":"'Population at Risk'!G193/'Population at Risk'!G$5","v":0},{"$f":"'Population at Risk'!H193/'Population at Risk'!H$5","v":0},{"$f":"'Population at Risk'!I193/'Population at Risk'!I$5","v":0},{"$f":"'Population at Risk'!J193/'Population at Risk'!J$5","v":0},{"$f":"'Population at Risk'!K193/'Population at Risk'!K$5","v":0},{"$f":"'Population at Risk'!L193/'Population at Risk'!L$5","v":0},{"$f":"'Population at Risk'!M193/'Population at Risk'!M$5","v":0},{"$f":"'Population at Risk'!N193/'Population at Risk'!N$5","v":0},{"$f":"'Population at Risk'!O193/'Population at Risk'!O$5","v":0},{"$f":"'Population at Risk'!P193/'Population at Risk'!P$5","v":0},{"$f":"'Population at Risk'!Q193/'Population at Risk'!Q$5","v":0},{"$f":"'Population at Risk'!R193/'Population at Risk'!R$5","v":0},{"$f":"'Population at Risk'!S193/'Population at Risk'!S$5","v":0},{"$f":"'Population at Risk'!T193/'Population at Risk'!T$5","v":0},{"$f":"'Population at Risk'!U193/'Population at Risk'!U$5","v":0},{"$f":"'Population at Risk'!V193/'Population at Risk'!V$5","v":0},{"$f":"'Population at Risk'!W193/'Population at Risk'!W$5","v":0},{"$f":"'Population at Risk'!X193/'Population at Risk'!X$5","v":0},{"$f":"'Population at Risk'!Y193/'Population at Risk'!Y$5","v":0},{"$f":"'Population at Risk'!Z193/'Population at Risk'!Z$5","v":0},{"$f":"'Population at Risk'!AA193/'Population at Risk'!AA$5","v":0},{"$f":"'Population at Risk'!AB193/'Population at Risk'!AB$5","v":0},{"$f":"'Population at Risk'!AC193/'Population at Risk'!AC$5","v":0},{"$f":"'Population at Risk'!AD193/'Population at Risk'!AD$5","v":0},{"$f":"'Population at Risk'!AE193/'Population at Risk'!AE$5","v":0},{"$f":"'Population at Risk'!AF193/'Population at Risk'!AF$5","v":0},{"$f":"'Population at Risk'!AG193/'Population at Risk'!AG$5","v":0},{"$f":"'Population at Risk'!AH193/'Population at Risk'!AH$5","v":0},{"$f":"'Population at Risk'!AI193/'Population at Risk'!AI$5","v":0},{"$f":"'Population at Risk'!AJ193/'Population at Risk'!AJ$5","v":0},{"$f":"'Population at Risk'!AK193/'Population at Risk'!AK$5","v":0},{"$f":"'Population at Risk'!AL193/'Population at Risk'!AL$5","v":0},{"$f":"'Population at Risk'!AM193/'Population at Risk'!AM$5","v":0},{"$f":"'Population at Risk'!AN193/'Population at Risk'!AN$5","v":0},{"$f":"'Population at Risk'!AO193/'Population at Risk'!AO$5","v":0},{"$f":"'Population at Risk'!AP193/'Population at Risk'!AP$5","v":0},{"$f":"'Population at Risk'!AQ193/'Population at Risk'!AQ$5","v":0},{"$f":"'Population at Risk'!AR193/'Population at Risk'!AR$5","v":0},{"$f":"'Population at Risk'!AS193/'Population at Risk'!AS$5","v":0},{"$f":"'Population at Risk'!AT193/'Population at Risk'!AT$5","v":0},{"$f":"'Population at Risk'!AU193/'Population at Risk'!AU$5","v":0},{"$f":"'Population at Risk'!AV193/'Population at Risk'!AV$5","v":0},{"$f":"'Population at Risk'!AW193/'Population at Risk'!AW$5","v":0},{"$f":"'Population at Risk'!AX193/'Population at Risk'!AX$5","v":0},{"$f":"'Population at Risk'!AY193/'Population at Risk'!AY$5","v":0},{"$f":"'Population at Risk'!AZ193/'Population at Risk'!AZ$5","v":0},{"$f":"'Population at Risk'!BA193/'Population at Risk'!BA$5","v":0},{"$f":"'Population at Risk'!BB193/'Population at Risk'!BB$5","v":0},{"$f":"'Population at Risk'!BC193/'Population at Risk'!BC$5","v":0},191]
[null,"Male 5-9",{"$f":"'Population at Risk'!C194/'Population at Risk'!C$5","v":0},{"$f":"'Population at Risk'!D194/'Population at Risk'!D$5","v":0},{"$f":"'Population at Risk'!E194/'Population at Risk'!E$5","v":0},{"$f":"'Population at Risk'!F194/'Population at Risk'!F$5","v":0},{"$f":"'Population at Risk'!G194/'Population at Risk'!G$5","v":0},{"$f":"'Population at Risk'!H194/'Population at Risk'!H$5","v":0},{"$f":"'Population at Risk'!I194/'Population at Risk'!I$5","v":0},{"$f":"'Population at Risk'!J194/'Population at Risk'!J$5","v":0},{"$f":"'Population at Risk'!K194/'Population at Risk'!K$5","v":0},{"$f":"'Population at Risk'!L194/'Population at Risk'!L$5","v":0},{"$f":"'Population at Risk'!M194/'Population at Risk'!M$5","v":0},{"$f":"'Population at Risk'!N194/'Population at Risk'!N$5","v":0},{"$f":"'Population at Risk'!O194/'Population at Risk'!O$5","v":0},{"$f":"'Population at Risk'!P194/'Population at Risk'!P$5","v":0},{"$f":"'Population at Risk'!Q194/'Population at Risk'!Q$5","v":0},{"$f":"'Population at Risk'!R194/'Population at Risk'!R$5","v":0},{"$f":"'Population at Risk'!S194/'Population at Risk'!S$5","v":0},{"$f":"'Population at Risk'!T194/'Population at Risk'!T$5","v":0},{"$f":"'Population at Risk'!U194/'Population at Risk'!U$5","v":0},{"$f":"'Population at Risk'!V194/'Population at Risk'!V$5","v":0},{"$f":"'Population at Risk'!W194/'Population at Risk'!W$5","v":0},{"$f":"'Population at Risk'!X194/'Population at Risk'!X$5","v":0},{"$f":"'Population at Risk'!Y194/'Population at Risk'!Y$5","v":0},{"$f":"'Population at Risk'!Z194/'Population at Risk'!Z$5","v":0},{"$f":"'Population at Risk'!AA194/'Population at Risk'!AA$5","v":0},{"$f":"'Population at Risk'!AB194/'Population at Risk'!AB$5","v":0},{"$f":"'Population at Risk'!AC194/'Population at Risk'!AC$5","v":0},{"$f":"'Population at Risk'!AD194/'Population at Risk'!AD$5","v":0},{"$f":"'Population at Risk'!AE194/'Population at Risk'!AE$5","v":0},{"$f":"'Population at Risk'!AF194/'Population at Risk'!AF$5","v":0},{"$f":"'Population at Risk'!AG194/'Population at Risk'!AG$5","v":0},{"$f":"'Population at Risk'!AH194/'Population at Risk'!AH$5","v":0},{"$f":"'Population at Risk'!AI194/'Population at Risk'!AI$5","v":0},{"$f":"'Population at Risk'!AJ194/'Population at Risk'!AJ$5","v":0},{"$f":"'Population at Risk'!AK194/'Population at Risk'!AK$5","v":0},{"$f":"'Population at Risk'!AL194/'Population at Risk'!AL$5","v":0},{"$f":"'Population at Risk'!AM194/'Population at Risk'!AM$5","v":0},{"$f":"'Population at Risk'!AN194/'Population at Risk'!AN$5","v":0},{"$f":"'Population at Risk'!AO194/'Population at Risk'!AO$5","v":0},{"$f":"'Population at Risk'!AP194/'Population at Risk'!AP$5","v":0},{"$f":"'Population at Risk'!AQ194/'Population at Risk'!AQ$5","v":0},{"$f":"'Population at Risk'!AR194/'Population at Risk'!AR$5","v":0},{"$f":"'Population at Risk'!AS194/'Population at Risk'!AS$5","v":0},{"$f":"'Population at Risk'!AT194/'Population at Risk'!AT$5","v":0},{"$f":"'Population at Risk'!AU194/'Population at Risk'!AU$5","v":0},{"$f":"'Population at Risk'!AV194/'Population at Risk'!AV$5","v":0},{"$f":"'Population at Risk'!AW194/'Population at Risk'!AW$5","v":0},{"$f":"'Population at Risk'!AX194/'Population at Risk'!AX$5","v":0},{"$f":"'Population at Risk'!AY194/'Population at Risk'!AY$5","v":0},{"$f":"'Population at Risk'!AZ194/'Population at Risk'!AZ$5","v":0},{"$f":"'Population at Risk'!BA194/'Population at Risk'!BA$5","v":0},{"$f":"'Population at Risk'!BB194/'Population at Risk'!BB$5","v":0},{"$f":"'Population at Risk'!BC194/'Population at Risk'!BC$5","v":0},192]
[null,"Male 10-15",{"$f":"'Population at Risk'!C195/'Population at Risk'!C$5","v":0},{"$f":"'Population at Risk'!D195/'Population at Risk'!D$5","v":0},{"$f":"'Population at Risk'!E195/'Population at Risk'!E$5","v":0},{"$f":"'Population at Risk'!F195/'Population at Risk'!F$5","v":0},{"$f":"'Population at Risk'!G195/'Population at Risk'!G$5","v":0},{"$f":"'Population at Risk'!H195/'Population at Risk'!H$5","v":0},{"$f":"'Population at Risk'!I195/'Population at Risk'!I$5","v":0},{"$f":"'Population at Risk'!J195/'Population at Risk'!J$5","v":0},{"$f":"'Population at Risk'!K195/'Population at Risk'!K$5","v":0},{"$f":"'Population at Risk'!L195/'Population at Risk'!L$5","v":0},{"$f":"'Population at Risk'!M195/'Population at Risk'!M$5","v":0},{"$f":"'Population at Risk'!N195/'Population at Risk'!N$5","v":0},{"$f":"'Population at Risk'!O195/'Population at Risk'!O$5","v":0},{"$f":"'Population at Risk'!P195/'Population at Risk'!P$5","v":0},{"$f":"'Population at Risk'!Q195/'Population at Risk'!Q$5","v":0},{"$f":"'Population at Risk'!R195/'Population at Risk'!R$5","v":0},{"$f":"'Population at Risk'!S195/'Population at Risk'!S$5","v":0},{"$f":"'Population at Risk'!T195/'Population at Risk'!T$5","v":0},{"$f":"'Population at Risk'!U195/'Population at Risk'!U$5","v":0},{"$f":"'Population at Risk'!V195/'Population at Risk'!V$5","v":0},{"$f":"'Population at Risk'!W195/'Population at Risk'!W$5","v":0},{"$f":"'Population at Risk'!X195/'Population at Risk'!X$5","v":0},{"$f":"'Population at Risk'!Y195/'Population at Risk'!Y$5","v":0},{"$f":"'Population at Risk'!Z195/'Population at Risk'!Z$5","v":0},{"$f":"'Population at Risk'!AA195/'Population at Risk'!AA$5","v":0},{"$f":"'Population at Risk'!AB195/'Population at Risk'!AB$5","v":0},{"$f":"'Population at Risk'!AC195/'Population at Risk'!AC$5","v":0},{"$f":"'Population at Risk'!AD195/'Population at Risk'!AD$5","v":0},{"$f":"'Population at Risk'!AE195/'Population at Risk'!AE$5","v":0},{"$f":"'Population at Risk'!AF195/'Population at Risk'!AF$5","v":0},{"$f":"'Population at Risk'!AG195/'Population at Risk'!AG$5","v":0},{"$f":"'Population at Risk'!AH195/'Population at Risk'!AH$5","v":0},{"$f":"'Population at Risk'!AI195/'Population at Risk'!AI$5","v":0},{"$f":"'Population at Risk'!AJ195/'Population at Risk'!AJ$5","v":0},{"$f":"'Population at Risk'!AK195/'Population at Risk'!AK$5","v":0},{"$f":"'Population at Risk'!AL195/'Population at Risk'!AL$5","v":0},{"$f":"'Population at Risk'!AM195/'Population at Risk'!AM$5","v":0},{"$f":"'Population at Risk'!AN195/'Population at Risk'!AN$5","v":0},{"$f":"'Population at Risk'!AO195/'Population at Risk'!AO$5","v":0},{"$f":"'Population at Risk'!AP195/'Population at Risk'!AP$5","v":0},{"$f":"'Population at Risk'!AQ195/'Population at Risk'!AQ$5","v":0},{"$f":"'Population at Risk'!AR195/'Population at Risk'!AR$5","v":0},{"$f":"'Population at Risk'!AS195/'Population at Risk'!AS$5","v":0},{"$f":"'Population at Risk'!AT195/'Population at Risk'!AT$5","v":0},{"$f":"'Population at Risk'!AU195/'Population at Risk'!AU$5","v":0},{"$f":"'Population at Risk'!AV195/'Population at Risk'!AV$5","v":0},{"$f":"'Population at Risk'!AW195/'Population at Risk'!AW$5","v":0},{"$f":"'Population at Risk'!AX195/'Population at Risk'!AX$5","v":0},{"$f":"'Population at Risk'!AY195/'Population at Risk'!AY$5","v":0},{"$f":"'Population at Risk'!AZ195/'Population at Risk'!AZ$5","v":0},{"$f":"'Population at Risk'!BA195/'Population at Risk'!BA$5","v":0},{"$f":"'Population at Risk'!BB195/'Population at Risk'!BB$5","v":0},{"$f":"'Population at Risk'!BC195/'Population at Risk'!BC$5","v":0},193]
[null,"Male 16-19",{"$f":"'Population at Risk'!C196/'Population at Risk'!C$5","v":3.7340881957238616E-3},{"$f":"'Population at Risk'!D196/'Population at Risk'!D$5","v":6.0084648842301785E-3},{"$f":"'Population at Risk'!E196/'Population at Risk'!E$5","v":7.6094194635672558E-3},{"$f":"'Population at Risk'!F196/'Population at Risk'!F$5","v":4.8115412206801095E-3},{"$f":"'Population at Risk'!G196/'Population at Risk'!G$5","v":5.4086333417443623E-3},{"$f":"'Population at Risk'!H196/'Population at Risk'!H$5","v":2.512312090136875E-3},{"$f":"'Population at Risk'!I196/'Population at Risk'!I$5","v":6.3416429477707618E-3},{"$f":"'Population at Risk'!J196/'Population at Risk'!J$5","v":5.2461213624694705E-3},{"$f":"'Population at Risk'!K196/'Population at Risk'!K$5","v":3.5349537270475562E-3},{"$f":"'Population at Risk'!L196/'Population at Risk'!L$5","v":2.4742391670326525E-3},{"$f":"'Population at Risk'!M196/'Population at Risk'!M$5","v":2.4742391670326525E-3},{"$f":"'Population at Risk'!N196/'Population at Risk'!N$5","v":5.0177416330781125E-3},{"$f":"'Population at Risk'!O196/'Population at Risk'!O$5","v":2.2991608339490263E-3},{"$f":"'Population at Risk'!P196/'Population at Risk'!P$5","v":3.9689194817863153E-3},{"$f":"'Population at Risk'!Q196/'Population at Risk'!Q$5","v":6.4622087310734801E-3},{"$f":"'Population at Risk'!R196/'Population at Risk'!R$5","v":3.7617138002279805E-3},{"$f":"'Population at Risk'!S196/'Population at Risk'!S$5","v":3.1253115409044705E-3},{"$f":"'Population at Risk'!T196/'Population at Risk'!T$5","v":2.0920551661329258E-3},{"$f":"'Population at Risk'!U196/'Population at Risk'!U$5","v":1.211217227871915E-3},{"$f":"'Population at Risk'!V196/'Population at Risk'!V$5","v":3.7404904293577425E-3},{"$f":"'Population at Risk'!W196/'Population at Risk'!W$5","v":2.9845358599942173E-3},{"$f":"'Population at Risk'!X196/'Population at Risk'!X$5","v":2.9845358599942173E-3},{"$f":"'Population at Risk'!Y196/'Population at Risk'!Y$5","v":4.4175056466358147E-3},{"$f":"'Population at Risk'!Z196/'Population at Risk'!Z$5","v":1.2233811084243333E-3},{"$f":"'Population at Risk'!AA196/'Population at Risk'!AA$5","v":2.4176957961185614E-3},{"$f":"'Population at Risk'!AB196/'Population at Risk'!AB$5","v":6.3518051505809829E-3},{"$f":"'Population at Risk'!AC196/'Population at Risk'!AC$5","v":2.0427829735665047E-3},{"$f":"'Population at Risk'!AD196/'Population at Risk'!AD$5","v":7.5735857178544181E-3},{"$f":"'Population at Risk'!AE196/'Population at Risk'!AE$5","v":8.4161280793911952E-3},{"$f":"'Population at Risk'!AF196/'Population at Risk'!AF$5","v":4.1387786967949803E-3},{"$f":"'Population at Risk'!AG196/'Population at Risk'!AG$5","v":8.4161280793911952E-3},{"$f":"'Population at Risk'!AH196/'Population at Risk'!AH$5","v":3.1464162448377672E-3},{"$f":"'Population at Risk'!AI196/'Population at Risk'!AI$5","v":2.7792186319620556E-3},{"$f":"'Population at Risk'!AJ196/'Population at Risk'!AJ$5","v":2.4520013540577337E-3},{"$f":"'Population at Risk'!AK196/'Population at Risk'!AK$5","v":7.9157798983667763E-3},{"$f":"'Population at Risk'!AL196/'Population at Risk'!AL$5","v":2.5987668495439432E-3},{"$f":"'Population at Risk'!AM196/'Population at Risk'!AM$5","v":2.517588341295539E-3},{"$f":"'Population at Risk'!AN196/'Population at Risk'!AN$5","v":1.1759518653010339E-2},{"$f":"'Population at Risk'!AO196/'Population at Risk'!AO$5","v":1.1759518653010339E-2},{"$f":"'Population at Risk'!AP196/'Population at Risk'!AP$5","v":1.3428629358316414E-2},{"$f":"'Population at Risk'!AQ196/'Population at Risk'!AQ$5","v":3.5379656016391778E-3},{"$f":"'Population at Risk'!AR196/'Population at Risk'!AR$5","v":3.6659134801980656E-3},{"$f":"'Population at Risk'!AS196/'Population at Risk'!AS$5","v":6.3416429477707618E-3},{"$f":"'Population at Risk'!AT196/'Population at Risk'!AT$5","v":1.9401903872027945E-2},{"$f":"'Population at Risk'!AU196/'Population at Risk'!AU$5","v":1.9401903872027945E-2},{"$f":"'Population at Risk'!AV196/'Population at Risk'!AV$5","v":2.6024361336910106E-3},{"$f":"'Population at Risk'!AW196/'Population at Risk'!AW$5","v":3.8529283972191268E-3},{"$f":"'Population at Risk'!AX196/'Population at Risk'!AX$5","v":6.258656371015147E-3},{"$f":"'Population at Risk'!AY196/'Population at Risk'!AY$5","v":5.2178502362522049E-3},{"$f":"'Population at Risk'!AZ196/'Population at Risk'!AZ$5","v":7.7047407874391736E-3},{"$f":"'Population at Risk'!BA196/'Population at Risk'!BA$5","v":1.7582954120001172E-3},{"$f":"'Population at Risk'!BB196/'Population at Risk'!BB$5","v":2.8872091509704097E-3},{"$f":"'Population at Risk'!BC196/'Population at Risk'!BC$5","v":1.211217227871915E-3},194]
[null,"Male 20-24",{"$f":"'Population at Risk'!C197/'Population at Risk'!C$5","v":9.2531051238944305E-3},{"$f":"'Population at Risk'!D197/'Population at Risk'!D$5","v":9.0780067272608119E-3},{"$f":"'Population at Risk'!E197/'Population at Risk'!E$5","v":8.5693554364113765E-3},{"$f":"'Population at Risk'!F197/'Population at Risk'!F$5","v":5.7560542910269873E-3},{"$f":"'Population at Risk'!G197/'Population at Risk'!G$5","v":6.0499732636903336E-3},{"$f":"'Population at Risk'!H197/'Population at Risk'!H$5","v":2.7298816012108198E-3},{"$f":"'Population at Risk'!I197/'Population at Risk'!I$5","v":6.5654656400450243E-3},{"$f":"'Population at Risk'!J197/'Population at Risk'!J$5","v":7.6237321716157236E-3},{"$f":"'Population at Risk'!K197/'Population at Risk'!K$5","v":4.6261785732231069E-3},{"$f":"'Population at Risk'!L197/'Population at Risk'!L$5","v":2.997097255160308E-3},{"$f":"'Population at Risk'!M197/'Population at Risk'!M$5","v":2.997097255160308E-3},{"$f":"'Population at Risk'!N197/'Population at Risk'!N$5","v":1.0961532441894465E-2},{"$f":"'Population at Risk'!O197/'Population at Risk'!O$5","v":2.5673962645764129E-3},{"$f":"'Population at Risk'!P197/'Population at Risk'!P$5","v":5.2654331791698447E-3},{"$f":"'Population at Risk'!Q197/'Population at Risk'!Q$5","v":8.1191853287846272E-3},{"$f":"'Population at Risk'!R197/'Population at Risk'!R$5","v":3.8474508668998428E-3},{"$f":"'Population at Risk'!S197/'Population at Risk'!S$5","v":4.6610406194747605E-3},{"$f":"'Population at Risk'!T197/'Population at Risk'!T$5","v":4.9392505635472983E-3},{"$f":"'Population at Risk'!U197/'Population at Risk'!U$5","v":1.6264917059994287E-3},{"$f":"'Population at Risk'!V197/'Population at Risk'!V$5","v":4.3768774179510422E-3},{"$f":"'Population at Risk'!W197/'Population at Risk'!W$5","v":3.9036786338187105E-3},{"$f":"'Population at Risk'!X197/'Population at Risk'!X$5","v":3.9036786338187105E-3},{"$f":"'Population at Risk'!Y197/'Population at Risk'!Y$5","v":5.8200118407848609E-3},{"$f":"'Population at Risk'!Z197/'Population at Risk'!Z$5","v":3.9932293013974184E-3},{"$f":"'Population at Risk'!AA197/'Population at Risk'!AA$5","v":3.9708034083856657E-3},{"$f":"'Population at Risk'!AB197/'Population at Risk'!AB$5","v":9.247794885816148E-3},{"$f":"'Population at Risk'!AC197/'Population at Risk'!AC$5","v":4.0813896968949935E-3},{"$f":"'Population at Risk'!AD197/'Population at Risk'!AD$5","v":8.4143793683690935E-3},{"$f":"'Population at Risk'!AE197/'Population at Risk'!AE$5","v":9.3330070734061726E-3},{"$f":"'Population at Risk'!AF197/'Population at Risk'!AF$5","v":4.3373564625502955E-3},{"$f":"'Population at Risk'!AG197/'Population at Risk'!AG$5","v":9.3330070734061726E-3},{"$f":"'Population at Risk'!AH197/'Population at Risk'!AH$5","v":3.7562227830782485E-3},{"$f":"'Population at Risk'!AI197/'Population at Risk'!AI$5","v":4.7566298351958388E-3},{"$f":"'Population at Risk'!AJ197/'Population at Risk'!AJ$5","v":2.6659941995027725E-3},{"$f":"'Population at Risk'!AK197/'Population at Risk'!AK$5","v":9.9398628735794109E-3},{"$f":"'Population at Risk'!AL197/'Population at Risk'!AL$5","v":2.9513127399859512E-3},{"$f":"'Population at Risk'!AM197/'Population at Risk'!AM$5","v":3.3078921597370077E-3},{"$f":"'Population at Risk'!AN197/'Population at Risk'!AN$5","v":1.2330831300120153E-2},{"$f":"'Population at Risk'!AO197/'Population at Risk'!AO$5","v":1.2330831300120153E-2},{"$f":"'Population at Risk'!AP197/'Population at Risk'!AP$5","v":1.4162749759354595E-2},{"$f":"'Population at Risk'!AQ197/'Population at Risk'!AQ$5","v":4.5659217566993617E-3},{"$f":"'Population at Risk'!AR197/'Population at Risk'!AR$5","v":5.2216885039793569E-3},{"$f":"'Population at Risk'!AS197/'Population at Risk'!AS$5","v":6.5654656400450243E-3},{"$f":"'Population at Risk'!AT197/'Population at Risk'!AT$5","v":2.3292659996097718E-2},{"$f":"'Population at Risk'!AU197/'Population at Risk'!AU$5","v":2.3292659996097718E-2},{"$f":"'Population at Risk'!AV197/'Population at Risk'!AV$5","v":2.557566545179097E-3},{"$f":"'Population at Risk'!AW197/'Population at Risk'!AW$5","v":4.2594074161073333E-3},{"$f":"'Population at Risk'!AX197/'Population at Risk'!AX$5","v":9.4117998395174523E-3},{"$f":"'Population at Risk'!AY197/'Population at Risk'!AY$5","v":7.0327041174442044E-3},{"$f":"'Population at Risk'!AZ197/'Population at Risk'!AZ$5","v":1.0522759065752953E-2},{"$f":"'Population at Risk'!BA197/'Population at Risk'!BA$5","v":2.5861923548701274E-3},{"$f":"'Population at Risk'!BB197/'Population at Risk'!BB$5","v":3.5835099753979893E-3},{"$f":"'Population at Risk'!BC197/'Population at Risk'!BC$5","v":1.6264917059994287E-3},195]
[null,"Male 25-29",{"$f":"'Population at Risk'!C198/'Population at Risk'!C$5","v":5.6289572442582295E-3},{"$f":"'Population at Risk'!D198/'Population at Risk'!D$5","v":5.1764985823074469E-3},{"$f":"'Population at Risk'!E198/'Population at Risk'!E$5","v":4.6006155769186367E-3},{"$f":"'Population at Risk'!F198/'Population at Risk'!F$5","v":2.5658406805714406E-3},{"$f":"'Population at Risk'!G198/'Population at Risk'!G$5","v":2.6408287170604965E-3},{"$f":"'Population at Risk'!H198/'Population at Risk'!H$5","v":1.3041342273453569E-3},{"$f":"'Population at Risk'!I198/'Population at Risk'!I$5","v":2.8249928680797501E-3},{"$f":"'Population at Risk'!J198/'Population at Risk'!J$5","v":2.9319853266128793E-3},{"$f":"'Population at Risk'!K198/'Population at Risk'!K$5","v":2.0636749093340817E-3},{"$f":"'Population at Risk'!L198/'Population at Risk'!L$5","v":1.5219482199513492E-3},{"$f":"'Population at Risk'!M198/'Population at Risk'!M$5","v":1.5219482199513492E-3},{"$f":"'Population at Risk'!N198/'Population at Risk'!N$5","v":3.8696077351908966E-3},{"$f":"'Population at Risk'!O198/'Population at Risk'!O$5","v":1.358336641045984E-3},{"$f":"'Population at Risk'!P198/'Population at Risk'!P$5","v":2.2311360826778068E-3},{"$f":"'Population at Risk'!Q198/'Population at Risk'!Q$5","v":3.0726422021870935E-3},{"$f":"'Population at Risk'!R198/'Population at Risk'!R$5","v":2.1815402082823966E-3},{"$f":"'Population at Risk'!S198/'Population at Risk'!S$5","v":2.7737792396607787E-3},{"$f":"'Population at Risk'!T198/'Population at Risk'!T$5","v":3.9340043632014113E-3},{"$f":"'Population at Risk'!U198/'Population at Risk'!U$5","v":4.646643800018826E-4},{"$f":"'Population at Risk'!V198/'Population at Risk'!V$5","v":1.9253674768638296E-3},{"$f":"'Population at Risk'!W198/'Population at Risk'!W$5","v":1.8319521526809085E-3},{"$f":"'Population at Risk'!X198/'Population at Risk'!X$5","v":1.8319521526809085E-3},{"$f":"'Population at Risk'!Y198/'Population at Risk'!Y$5","v":2.3753736131257364E-3},{"$f":"'Population at Risk'!Z198/'Population at Risk'!Z$5","v":2.0599819406628326E-3},{"$f":"'Population at Risk'!AA198/'Population at Risk'!AA$5","v":1.9926221160388733E-3},{"$f":"'Population at Risk'!AB198/'Population at Risk'!AB$5","v":5.1264749892360219E-3},{"$f":"'Population at Risk'!AC198/'Population at Risk'!AC$5","v":2.0940133368178926E-3},{"$f":"'Population at Risk'!AD198/'Population at Risk'!AD$5","v":4.2839553374682433E-3},{"$f":"'Population at Risk'!AE198/'Population at Risk'!AE$5","v":4.9391460848659781E-3},{"$f":"'Population at Risk'!AF198/'Population at Risk'!AF$5","v":1.8467933204885719E-3},{"$f":"'Population at Risk'!AG198/'Population at Risk'!AG$5","v":4.9391460848659781E-3},{"$f":"'Population at Risk'!AH198/'Population at Risk'!AH$5","v":1.7957545126176435E-3},{"$f":"'Population at Risk'!AI198/'Population at Risk'!AI$5","v":3.1866418069608853E-3},{"$f":"'Population at Risk'!AJ198/'Population at Risk'!AJ$5","v":1.5755394714517125E-3},{"$f":"'Population at Risk'!AK198/'Population at Risk'!AK$5","v":4.817992070905457E-3},{"$f":"'Population at Risk'!AL198/'Population at Risk'!AL$5","v":1.2091230983866327E-3},{"$f":"'Population at Risk'!AM198/'Population at Risk'!AM$5","v":1.5214809981269027E-3},{"$f":"'Population at Risk'!AN198/'Population at Risk'!AN$5","v":6.4693178788969938E-3},{"$f":"'Population at Risk'!AO198/'Population at Risk'!AO$5","v":6.4693178788969938E-3},{"$f":"'Population at Risk'!AP198/'Population at Risk'!AP$5","v":6.4060593446933845E-3},{"$f":"'Population at Risk'!AQ198/'Population at Risk'!AQ$5","v":2.597027366325133E-3},{"$f":"'Population at Risk'!AR198/'Population at Risk'!AR$5","v":2.6842944748805822E-3},{"$f":"'Population at Risk'!AS198/'Population at Risk'!AS$5","v":2.8249928680797501E-3},{"$f":"'Population at Risk'!AT198/'Population at Risk'!AT$5","v":1.2788829868693743E-2},{"$f":"'Population at Risk'!AU198/'Population at Risk'!AU$5","v":1.2788829868693743E-2},{"$f":"'Population at Risk'!AV198/'Population at Risk'!AV$5","v":1.3656051045727664E-3},{"$f":"'Population at Risk'!AW198/'Population at Risk'!AW$5","v":2.1037624146903883E-3},{"$f":"'Population at Risk'!AX198/'Population at Risk'!AX$5","v":3.4433104467485385E-3},{"$f":"'Population at Risk'!AY198/'Population at Risk'!AY$5","v":3.0178728272329696E-3},{"$f":"'Population at Risk'!AZ198/'Population at Risk'!AZ$5","v":4.3333302441048707E-3},{"$f":"'Population at Risk'!BA198/'Population at Risk'!BA$5","v":1.3847778574637745E-3},{"$f":"'Population at Risk'!BB198/'Population at Risk'!BB$5","v":2.0461421362048256E-3},{"$f":"'Population at Risk'!BC198/'Population at Risk'!BC$5","v":4.646643800018826E-4},196]
[null,"Male 30-34",{"$f":"'Population at Risk'!C199/'Population at Risk'!C$5","v":4.1619465315278371E-3},{"$f":"'Population at Risk'!D199/'Population at Risk'!D$5","v":4.7141213988775204E-3},{"$f":"'Population at Risk'!E199/'Population at Risk'!E$5","v":4.9712991223799753E-3},{"$f":"'Population at Risk'!F199/'Population at Risk'!F$5","v":2.503348858838325E-3},{"$f":"'Population at Risk'!G199/'Population at Risk'!G$5","v":2.29637279744391E-3},{"$f":"'Population at Risk'!H199/'Population at Risk'!H$5","v":1.2346832921612848E-3},{"$f":"'Population at Risk'!I199/'Population at Risk'!I$5","v":2.8490353605740461E-3},{"$f":"'Population at Risk'!J199/'Population at Risk'!J$5","v":2.7382138153199372E-3},{"$f":"'Population at Risk'!K199/'Population at Risk'!K$5","v":2.5672115872115973E-3},{"$f":"'Population at Risk'!L199/'Population at Risk'!L$5","v":1.6071973788942585E-3},{"$f":"'Population at Risk'!M199/'Population at Risk'!M$5","v":1.6071973788942585E-3},{"$f":"'Population at Risk'!N199/'Population at Risk'!N$5","v":2.4551020817619547E-3},{"$f":"'Population at Risk'!O199/'Population at Risk'!O$5","v":1.4440902168695942E-3},{"$f":"'Population at Risk'!P199/'Population at Risk'!P$5","v":2.0179702149060422E-3},{"$f":"'Population at Risk'!Q199/'Population at Risk'!Q$5","v":3.2365789050476856E-3},{"$f":"'Population at Risk'!R199/'Population at Risk'!R$5","v":1.7095447014772341E-3},{"$f":"'Population at Risk'!S199/'Population at Risk'!S$5","v":2.8127778932939707E-3},{"$f":"'Population at Risk'!T199/'Population at Risk'!T$5","v":3.726291797825279E-3},{"$f":"'Population at Risk'!U199/'Population at Risk'!U$5","v":4.2749122960173205E-4},{"$f":"'Population at Risk'!V199/'Population at Risk'!V$5","v":1.9942184211194963E-3},{"$f":"'Population at Risk'!W199/'Population at Risk'!W$5","v":1.833102876394904E-3},{"$f":"'Population at Risk'!X199/'Population at Risk'!X$5","v":1.833102876394904E-3},{"$f":"'Population at Risk'!Y199/'Population at Risk'!Y$5","v":2.329425588956247E-3},{"$f":"'Population at Risk'!Z199/'Population at Risk'!Z$5","v":1.7068421794063468E-3},{"$f":"'Population at Risk'!AA199/'Population at Risk'!AA$5","v":1.8398805120702917E-3},{"$f":"'Population at Risk'!AB199/'Population at Risk'!AB$5","v":4.7579048919706868E-3},{"$f":"'Population at Risk'!AC199/'Population at Risk'!AC$5","v":1.7479483936253411E-3},{"$f":"'Population at Risk'!AD199/'Population at Risk'!AD$5","v":4.341051672741447E-3},{"$f":"'Population at Risk'!AE199/'Population at Risk'!AE$5","v":5.1669935977094973E-3},{"$f":"'Population at Risk'!AF199/'Population at Risk'!AF$5","v":1.9646737452006088E-3},{"$f":"'Population at Risk'!AG199/'Population at Risk'!AG$5","v":5.1669935977094973E-3},{"$f":"'Population at Risk'!AH199/'Population at Risk'!AH$5","v":2.0186671740313458E-3},{"$f":"'Population at Risk'!AI199/'Population at Risk'!AI$5","v":3.2443671234383751E-3},{"$f":"'Population at Risk'!AJ199/'Population at Risk'!AJ$5","v":1.8485052765360517E-3},{"$f":"'Population at Risk'!AK199/'Population at Risk'!AK$5","v":4.9047567586230339E-3},{"$f":"'Population at Risk'!AL199/'Population at Risk'!AL$5","v":1.0251849089228941E-3},{"$f":"'Population at Risk'!AM199/'Population at Risk'!AM$5","v":1.6543460311936261E-3},{"$f":"'Population at Risk'!AN199/'Population at Risk'!AN$5","v":6.4693178788969938E-3},{"$f":"'Population at Risk'!AO199/'Population at Risk'!AO$5","v":6.4693178788969938E-3},{"$f":"'Population at Risk'!AP199/'Population at Risk'!AP$5","v":7.0572977428053681E-3},{"$f":"'Population at Risk'!AQ199/'Population at Risk'!AQ$5","v":2.0449245412859406E-3},{"$f":"'Population at Risk'!AR199/'Population at Risk'!AR$5","v":2.5750693719819471E-3},{"$f":"'Population at Risk'!AS199/'Population at Risk'!AS$5","v":2.8490353605740461E-3},{"$f":"'Population at Risk'!AT199/'Population at Risk'!AT$5","v":1.1395711146613816E-2},{"$f":"'Population at Risk'!AU199/'Population at Risk'!AU$5","v":1.1395711146613816E-2},{"$f":"'Population at Risk'!AV199/'Population at Risk'!AV$5","v":1.2852753925390744E-3},{"$f":"'Population at Risk'!AW199/'Population at Risk'!AW$5","v":2.427927063494882E-3},{"$f":"'Population at Risk'!AX199/'Population at Risk'!AX$5","v":2.8191144965207205E-3},{"$f":"'Population at Risk'!AY199/'Population at Risk'!AY$5","v":2.8492765799015191E-3},{"$f":"'Population at Risk'!AZ199/'Population at Risk'!AZ$5","v":3.9709937750667902E-3},{"$f":"'Population at Risk'!BA199/'Population at Risk'!BA$5","v":1.0798726411414754E-3},{"$f":"'Population at Risk'!BB199/'Population at Risk'!BB$5","v":2.648789354435117E-3},{"$f":"'Population at Risk'!BC199/'Population at Risk'!BC$5","v":4.2749122960173205E-4},197]
[null,"Male 35-39",{"$f":"'Population at Risk'!C200/'Population at Risk'!C$5","v":3.2729194698573622E-3},{"$f":"'Population at Risk'!D200/'Population at Risk'!D$5","v":4.6684151485614587E-3},{"$f":"'Population at Risk'!E200/'Population at Risk'!E$5","v":5.6110575257142638E-3},{"$f":"'Population at Risk'!F200/'Population at Risk'!F$5","v":2.3893931839132324E-3},{"$f":"'Population at Risk'!G200/'Population at Risk'!G$5","v":2.8704659968048878E-3},{"$f":"'Population at Risk'!H200/'Population at Risk'!H$5","v":1.4474456808997917E-3},{"$f":"'Population at Risk'!I200/'Population at Risk'!I$5","v":3.3779701954485524E-3},{"$f":"'Population at Risk'!J200/'Population at Risk'!J$5","v":3.2274074667808079E-3},{"$f":"'Population at Risk'!K200/'Population at Risk'!K$5","v":2.600230385760943E-3},{"$f":"'Population at Risk'!L200/'Population at Risk'!L$5","v":1.3715085276991567E-3},{"$f":"'Population at Risk'!M200/'Population at Risk'!M$5","v":1.3715085276991567E-3},{"$f":"'Population at Risk'!N200/'Population at Risk'!N$5","v":2.0000616097112477E-3},{"$f":"'Population at Risk'!O200/'Population at Risk'!O$5","v":1.605306939417981E-3},{"$f":"'Population at Risk'!P200/'Population at Risk'!P$5","v":2.0084961763384081E-3},{"$f":"'Population at Risk'!Q200/'Population at Risk'!Q$5","v":3.9297969628581874E-3},{"$f":"'Population at Risk'!R200/'Population at Risk'!R$5","v":2.0433951819003979E-3},{"$f":"'Population at Risk'!S200/'Population at Risk'!S$5","v":2.7061815733632455E-3},{"$f":"'Population at Risk'!T200/'Population at Risk'!T$5","v":2.9339399859378756E-3},{"$f":"'Population at Risk'!U200/'Population at Risk'!U$5","v":9.2932876000376521E-4},{"$f":"'Population at Risk'!V200/'Population at Risk'!V$5","v":2.3040476702699975E-3},{"$f":"'Population at Risk'!W200/'Population at Risk'!W$5","v":2.0068621572082316E-3},{"$f":"'Population at Risk'!X200/'Population at Risk'!X$5","v":2.0068621572082316E-3},{"$f":"'Population at Risk'!Y200/'Population at Risk'!Y$5","v":2.7192876122125224E-3},{"$f":"'Population at Risk'!Z200/'Population at Risk'!Z$5","v":1.2638953236923929E-3},{"$f":"'Population at Risk'!AA200/'Population at Risk'!AA$5","v":1.7597017476601916E-3},{"$f":"'Population at Risk'!AB200/'Population at Risk'!AB$5","v":4.7164627996944403E-3},{"$f":"'Population at Risk'!AC200/'Population at Risk'!AC$5","v":1.4944878657870929E-3},{"$f":"'Population at Risk'!AD200/'Population at Risk'!AD$5","v":4.585008741636044E-3},{"$f":"'Population at Risk'!AE200/'Population at Risk'!AE$5","v":5.2674425012211572E-3},{"$f":"'Population at Risk'!AF200/'Population at Risk'!AF$5","v":1.8973135025080162E-3},{"$f":"'Population at Risk'!AG200/'Population at Risk'!AG$5","v":5.2674425012211572E-3},{"$f":"'Population at Risk'!AH200/'Population at Risk'!AH$5","v":2.2752035329767235E-3},{"$f":"'Population at Risk'!AI200/'Population at Risk'!AI$5","v":2.9322417396530111E-3},{"$f":"'Population at Risk'!AJ200/'Population at Risk'!AJ$5","v":2.2651372948226745E-3},{"$f":"'Population at Risk'!AK200/'Population at Risk'!AK$5","v":4.8843415379836034E-3},{"$f":"'Population at Risk'!AL200/'Population at Risk'!AL$5","v":1.2767474327483011E-3},{"$f":"'Population at Risk'!AM200/'Population at Risk'!AM$5","v":1.7954416415299694E-3},{"$f":"'Population at Risk'!AN200/'Population at Risk'!AN$5","v":6.1624727621113658E-3},{"$f":"'Population at Risk'!AO200/'Population at Risk'!AO$5","v":6.1624727621113658E-3},{"$f":"'Population at Risk'!AP200/'Population at Risk'!AP$5","v":7.0971694814652856E-3},{"$f":"'Population at Risk'!AQ200/'Population at Risk'!AQ$5","v":2.2325322973672196E-3},{"$f":"'Population at Risk'!AR200/'Population at Risk'!AR$5","v":2.5491960786568338E-3},{"$f":"'Population at Risk'!AS200/'Population at Risk'!AS$5","v":3.3779701954485524E-3},{"$f":"'Population at Risk'!AT200/'Population at Risk'!AT$5","v":1.2649517996485752E-2},{"$f":"'Population at Risk'!AU200/'Population at Risk'!AU$5","v":1.2649517996485752E-2},{"$f":"'Population at Risk'!AV200/'Population at Risk'!AV$5","v":1.4981491294283585E-3},{"$f":"'Population at Risk'!AW200/'Population at Risk'!AW$5","v":2.814278400029218E-3},{"$f":"'Population at Risk'!AX200/'Population at Risk'!AX$5","v":3.5865685336860706E-3},{"$f":"'Population at Risk'!AY200/'Population at Risk'!AY$5","v":2.8492765799015191E-3},{"$f":"'Population at Risk'!AZ200/'Population at Risk'!AZ$5","v":3.7691014989607008E-3},{"$f":"'Population at Risk'!BA200/'Population at Risk'!BA$5","v":9.4435921166489815E-4},{"$f":"'Population at Risk'!BB200/'Population at Risk'!BB$5","v":2.7416875422255575E-3},{"$f":"'Population at Risk'!BC200/'Population at Risk'!BC$5","v":9.2932876000376521E-4},198]
[null,"Male 40-44",{"$f":"'Population at Risk'!C201/'Population at Risk'!C$5","v":2.7436814279229805E-3},{"$f":"'Population at Risk'!D201/'Population at Risk'!D$5","v":4.7534500328704115E-3},{"$f":"'Population at Risk'!E201/'Population at Risk'!E$5","v":6.1906033734406198E-3},{"$f":"'Population at Risk'!F201/'Population at Risk'!F$5","v":2.8231599465313268E-3},{"$f":"'Population at Risk'!G201/'Population at Risk'!G$5","v":3.5938234279997193E-3},{"$f":"'Population at Risk'!H201/'Population at Risk'!H$5","v":1.727454213229226E-3},{"$f":"'Population at Risk'!I201/'Population at Risk'!I$5","v":4.3917619622913561E-3},{"$f":"'Population at Risk'!J201/'Population at Risk'!J$5","v":3.5863612499956021E-3},{"$f":"'Population at Risk'!K201/'Population at Risk'!K$5","v":2.8065978766943509E-3},{"$f":"'Population at Risk'!L201/'Population at Risk'!L$5","v":1.7877250095968897E-3},{"$f":"'Population at Risk'!M201/'Population at Risk'!M$5","v":1.7877250095968897E-3},{"$f":"'Population at Risk'!N201/'Population at Risk'!N$5","v":2.0388635104287497E-3},{"$f":"'Population at Risk'!O201/'Population at Risk'!O$5","v":1.9071595263170883E-3},{"$f":"'Population at Risk'!P201/'Population at Risk'!P$5","v":2.3969317576114021E-3},{"$f":"'Population at Risk'!Q201/'Population at Risk'!Q$5","v":5.2225549625588555E-3},{"$f":"'Population at Risk'!R201/'Population at Risk'!R$5","v":2.4808544321100606E-3},{"$f":"'Population at Risk'!S201/'Population at Risk'!S$5","v":2.7698793742974596E-3},{"$f":"'Population at Risk'!T201/'Population at Risk'!T$5","v":2.4495757709874972E-3},{"$f":"'Population at Risk'!U201/'Population at Risk'!U$5","v":1.0222616360041417E-3},{"$f":"'Population at Risk'!V201/'Population at Risk'!V$5","v":2.5302722013957604E-3},{"$f":"'Population at Risk'!W201/'Population at Risk'!W$5","v":2.1380446606037236E-3},{"$f":"'Population at Risk'!X201/'Population at Risk'!X$5","v":2.1380446606037236E-3},{"$f":"'Population at Risk'!Y201/'Population at Risk'!Y$5","v":3.0047223078108671E-3},{"$f":"'Population at Risk'!Z201/'Population at Risk'!Z$5","v":1.0984879067820275E-3},{"$f":"'Population at Risk'!AA201/'Population at Risk'!AA$5","v":1.8411498328788948E-3},{"$f":"'Population at Risk'!AB201/'Population at Risk'!AB$5","v":4.9704058332169683E-3},{"$f":"'Population at Risk'!AC201/'Population at Risk'!AC$5","v":1.5165975704910612E-3},{"$f":"'Population at Risk'!AD201/'Population at Risk'!AD$5","v":5.1836551660156931E-3},{"$f":"'Population at Risk'!AE201/'Population at Risk'!AE$5","v":5.8064366176251818E-3},{"$f":"'Population at Risk'!AF201/'Population at Risk'!AF$5","v":2.295861605105854E-3},{"$f":"'Population at Risk'!AG201/'Population at Risk'!AG$5","v":5.8064366176251818E-3},{"$f":"'Population at Risk'!AH201/'Population at Risk'!AH$5","v":2.4719644296435665E-3},{"$f":"'Population at Risk'!AI201/'Population at Risk'!AI$5","v":2.844887499673801E-3},{"$f":"'Population at Risk'!AJ201/'Population at Risk'!AJ$5","v":2.1693598193544853E-3},{"$f":"'Population at Risk'!AK201/'Population at Risk'!AK$5","v":5.9459330112339587E-3},{"$f":"'Population at Risk'!AL201/'Population at Risk'!AL$5","v":1.6202790513055771E-3},{"$f":"'Population at Risk'!AM201/'Population at Risk'!AM$5","v":2.0153156343041046E-3},{"$f":"'Population at Risk'!AN201/'Population at Risk'!AN$5","v":7.8756913308311218E-3},{"$f":"'Population at Risk'!AO201/'Population at Risk'!AO$5","v":7.8756913308311218E-3},{"$f":"'Population at Risk'!AP201/'Population at Risk'!AP$5","v":7.93447599332355E-3},{"$f":"'Population at Risk'!AQ201/'Population at Risk'!AQ$5","v":2.4576616046647543E-3},{"$f":"'Population at Risk'!AR201/'Population at Risk'!AR$5","v":2.7344488588646487E-3},{"$f":"'Population at Risk'!AS201/'Population at Risk'!AS$5","v":4.3917619622913561E-3},{"$f":"'Population at Risk'!AT201/'Population at Risk'!AT$5","v":1.5352168317320811E-2},{"$f":"'Population at Risk'!AU201/'Population at Risk'!AU$5","v":1.5352168317320811E-2},{"$f":"'Population at Risk'!AV201/'Population at Risk'!AV$5","v":1.6547920678940582E-3},{"$f":"'Population at Risk'!AW201/'Population at Risk'!AW$5","v":2.9849610110323998E-3},{"$f":"'Population at Risk'!AX201/'Population at Risk'!AX$5","v":4.0368082354897434E-3},{"$f":"'Population at Risk'!AY201/'Population at Risk'!AY$5","v":3.11903057563184E-3},{"$f":"'Population at Risk'!AZ201/'Population at Risk'!AZ$5","v":4.1942786102304782E-3},{"$f":"'Population at Risk'!BA201/'Population at Risk'!BA$5","v":1.2916123746986275E-3},{"$f":"'Population at Risk'!BB201/'Population at Risk'!BB$5","v":3.0132360911514604E-3},{"$f":"'Population at Risk'!BC201/'Population at Risk'!BC$5","v":1.0222616360041417E-3},199]
[null,"Male 45-49",{"$f":"'Population at Risk'!C202/'Population at Risk'!C$5","v":3.4795749879809592E-3},{"$f":"'Population at Risk'!D202/'Population at Risk'!D$5","v":6.685546555060015E-3},{"$f":"'Population at Risk'!E202/'Population at Risk'!E$5","v":9.0143256205293572E-3},{"$f":"'Population at Risk'!F202/'Population at Risk'!F$5","v":4.8986986867465294E-3},{"$f":"'Population at Risk'!G202/'Population at Risk'!G$5","v":5.9572798115232785E-3},{"$f":"'Population at Risk'!H202/'Population at Risk'!H$5","v":2.9709621278396501E-3},{"$f":"'Population at Risk'!I202/'Population at Risk'!I$5","v":8.1698056268366837E-3},{"$f":"'Population at Risk'!J202/'Population at Risk'!J$5","v":6.0639741075274598E-3},{"$f":"'Population at Risk'!K202/'Population at Risk'!K$5","v":4.7686932094391883E-3},{"$f":"'Population at Risk'!L202/'Population at Risk'!L$5","v":3.2022365724458692E-3},{"$f":"'Population at Risk'!M202/'Population at Risk'!M$5","v":3.2022365724458692E-3},{"$f":"'Population at Risk'!N202/'Population at Risk'!N$5","v":3.3024529763173915E-3},{"$f":"'Population at Risk'!O202/'Population at Risk'!O$5","v":2.9143526801959918E-3},{"$f":"'Population at Risk'!P202/'Population at Risk'!P$5","v":4.2810652595712219E-3},{"$f":"'Population at Risk'!Q202/'Population at Risk'!Q$5","v":7.8070883234947477E-3},{"$f":"'Population at Risk'!R202/'Population at Risk'!R$5","v":3.4809819241387171E-3},{"$f":"'Population at Risk'!S202/'Population at Risk'!S$5","v":4.2081955922691396E-3},{"$f":"'Population at Risk'!T202/'Population at Risk'!T$5","v":3.0911899141077034E-3},{"$f":"'Population at Risk'!U202/'Population at Risk'!U$5","v":1.8105148971525847E-3},{"$f":"'Population at Risk'!V202/'Population at Risk'!V$5","v":4.1251883975199442E-3},{"$f":"'Population at Risk'!W202/'Population at Risk'!W$5","v":3.8858486128467147E-3},{"$f":"'Population at Risk'!X202/'Population at Risk'!X$5","v":3.8858486128467147E-3},{"$f":"'Population at Risk'!Y202/'Population at Risk'!Y$5","v":4.9938197395911314E-3},{"$f":"'Population at Risk'!Z202/'Population at Risk'!Z$5","v":1.5355840644129012E-3},{"$f":"'Population at Risk'!AA202/'Population at Risk'!AA$5","v":2.8758750213832215E-3},{"$f":"'Population at Risk'!AB202/'Population at Risk'!AB$5","v":7.3078738344706205E-3},{"$f":"'Population at Risk'!AC202/'Population at Risk'!AC$5","v":2.3773960160008221E-3},{"$f":"'Population at Risk'!AD202/'Population at Risk'!AD$5","v":8.3870906159011875E-3},{"$f":"'Population at Risk'!AE202/'Population at Risk'!AE$5","v":9.3339232857643142E-3},{"$f":"'Population at Risk'!AF202/'Population at Risk'!AF$5","v":4.2984221089409471E-3},{"$f":"'Population at Risk'!AG202/'Population at Risk'!AG$5","v":9.3339232857643142E-3},{"$f":"'Population at Risk'!AH202/'Population at Risk'!AH$5","v":3.8447453394742331E-3},{"$f":"'Population at Risk'!AI202/'Population at Risk'!AI$5","v":3.848197372495078E-3},{"$f":"'Population at Risk'!AJ202/'Population at Risk'!AJ$5","v":3.051578385204257E-3},{"$f":"'Population at Risk'!AK202/'Population at Risk'!AK$5","v":1.0198699952421396E-2},{"$f":"'Population at Risk'!AL202/'Population at Risk'!AL$5","v":2.861804621553523E-3},{"$f":"'Population at Risk'!AM202/'Population at Risk'!AM$5","v":3.1671873161206437E-3},{"$f":"'Population at Risk'!AN202/'Population at Risk'!AN$5","v":1.4045404033279715E-2},{"$f":"'Population at Risk'!AO202/'Population at Risk'!AO$5","v":1.4045404033279715E-2},{"$f":"'Population at Risk'!AP202/'Population at Risk'!AP$5","v":1.3413835615270531E-2},{"$f":"'Population at Risk'!AQ202/'Population at Risk'!AQ$5","v":4.1154643457503078E-3},{"$f":"'Population at Risk'!AR202/'Population at Risk'!AR$5","v":4.2916402996223488E-3},{"$f":"'Population at Risk'!AS202/'Population at Risk'!AS$5","v":8.1698056268366837E-3},{"$f":"'Population at Risk'!AT202/'Population at Risk'!AT$5","v":2.0280125259169477E-2},{"$f":"'Population at Risk'!AU202/'Population at Risk'!AU$5","v":2.0280125259169477E-2},{"$f":"'Population at Risk'!AV202/'Population at Risk'!AV$5","v":3.1625647945884082E-3},{"$f":"'Population at Risk'!AW202/'Population at Risk'!AW$5","v":4.6058478435888678E-3},{"$f":"'Population at Risk'!AX202/'Population at Risk'!AX$5","v":6.8112441420918523E-3},{"$f":"'Population at Risk'!AY202/'Population at Risk'!AY$5","v":5.4160186287126903E-3},{"$f":"'Population at Risk'!AZ202/'Population at Risk'!AZ$5","v":7.0818179181440675E-3},{"$f":"'Population at Risk'!BA202/'Population at Risk'!BA$5","v":2.4693341414255806E-3},{"$f":"'Population at Risk'!BB202/'Population at Risk'!BB$5","v":4.2313367910653803E-3},{"$f":"'Population at Risk'!BC202/'Population at Risk'!BC$5","v":1.8105148971525847E-3},200]
[null,"Male 50-54",{"$f":"'Population at Risk'!C203/'Population at Risk'!C$5","v":3.5926297709839507E-3},{"$f":"'Population at Risk'!D203/'Population at Risk'!D$5","v":7.1572306312182614E-3},{"$f":"'Population at Risk'!E203/'Population at Risk'!E$5","v":9.7576701789011643E-3},{"$f":"'Population at Risk'!F203/'Population at Risk'!F$5","v":5.8088122498679657E-3},{"$f":"'Population at Risk'!G203/'Population at Risk'!G$5","v":6.7184446375066964E-3},{"$f":"'Population at Risk'!H203/'Population at Risk'!H$5","v":3.1991534960923943E-3},{"$f":"'Population at Risk'!I203/'Population at Risk'!I$5","v":9.3733204570674352E-3},{"$f":"'Population at Risk'!J203/'Population at Risk'!J$5","v":6.2616656801328906E-3},{"$f":"'Population at Risk'!K203/'Population at Risk'!K$5","v":4.4671599151655163E-3},{"$f":"'Population at Risk'!L203/'Population at Risk'!L$5","v":3.7958715302615761E-3},{"$f":"'Population at Risk'!M203/'Population at Risk'!M$5","v":3.7958715302615761E-3},{"$f":"'Population at Risk'!N203/'Population at Risk'!N$5","v":3.6508331313335322E-3},{"$f":"'Population at Risk'!O203/'Population at Risk'!O$5","v":3.0721361055569213E-3},{"$f":"'Population at Risk'!P203/'Population at Risk'!P$5","v":4.5886867153487948E-3},{"$f":"'Population at Risk'!Q203/'Population at Risk'!Q$5","v":8.4597913245661443E-3},{"$f":"'Population at Risk'!R203/'Population at Risk'!R$5","v":4.3531742630728018E-3},{"$f":"'Population at Risk'!S203/'Population at Risk'!S$5","v":4.3647223534067229E-3},{"$f":"'Population at Risk'!T203/'Population at Risk'!T$5","v":3.0621191625643707E-3},{"$f":"'Population at Risk'!U203/'Population at Risk'!U$5","v":1.4081782533408992E-3},{"$f":"'Population at Risk'!V203/'Population at Risk'!V$5","v":3.9355628018274951E-3},{"$f":"'Population at Risk'!W203/'Population at Risk'!W$5","v":3.9839289263921248E-3},{"$f":"'Population at Risk'!X203/'Population at Risk'!X$5","v":3.9839289263921248E-3},{"$f":"'Population at Risk'!Y203/'Population at Risk'!Y$5","v":4.9730984958583887E-3},{"$f":"'Population at Risk'!Z203/'Population at Risk'!Z$5","v":1.4964565312562024E-3},{"$f":"'Population at Risk'!AA203/'Population at Risk'!AA$5","v":3.005529816833719E-3},{"$f":"'Population at Risk'!AB203/'Population at Risk'!AB$5","v":7.7194338202512874E-3},{"$f":"'Population at Risk'!AC203/'Population at Risk'!AC$5","v":2.5260916457397501E-3},{"$f":"'Population at Risk'!AD203/'Population at Risk'!AD$5","v":9.1291245888960731E-3},{"$f":"'Population at Risk'!AE203/'Population at Risk'!AE$5","v":1.0059821439025103E-2},{"$f":"'Population at Risk'!AF203/'Population at Risk'!AF$5","v":4.8983785517083232E-3},{"$f":"'Population at Risk'!AG203/'Population at Risk'!AG$5","v":1.0059821439025103E-2},{"$f":"'Population at Risk'!AH203/'Population at Risk'!AH$5","v":3.9374101044484149E-3},{"$f":"'Population at Risk'!AI203/'Population at Risk'!AI$5","v":3.8972674180136036E-3},{"$f":"'Population at Risk'!AJ203/'Population at Risk'!AJ$5","v":3.1422834752103286E-3},{"$f":"'Population at Risk'!AK203/'Population at Risk'!AK$5","v":1.0316085124521033E-2},{"$f":"'Population at Risk'!AL203/'Population at Risk'!AL$5","v":3.2460622753426784E-3},{"$f":"'Population at Risk'!AM203/'Population at Risk'!AM$5","v":3.2292266457684109E-3},{"$f":"'Population at Risk'!AN203/'Population at Risk'!AN$5","v":1.5290809317018804E-2},{"$f":"'Population at Risk'!AO203/'Population at Risk'!AO$5","v":1.5290809317018804E-2},{"$f":"'Population at Risk'!AP203/'Population at Risk'!AP$5","v":1.5175974878402583E-2},{"$f":"'Population at Risk'!AQ203/'Population at Risk'!AQ$5","v":4.554205478645274E-3},{"$f":"'Population at Risk'!AR203/'Population at Risk'!AR$5","v":4.5514263861226034E-3},{"$f":"'Population at Risk'!AS203/'Population at Risk'!AS$5","v":9.3733204570674352E-3},{"$f":"'Population at Risk'!AT203/'Population at Risk'!AT$5","v":2.2315676865108422E-2},{"$f":"'Population at Risk'!AU203/'Population at Risk'!AU$5","v":2.2315676865108422E-2},{"$f":"'Population at Risk'!AV203/'Population at Risk'!AV$5","v":3.238640236382631E-3},{"$f":"'Population at Risk'!AW203/'Population at Risk'!AW$5","v":4.7329427510489569E-3},{"$f":"'Population at Risk'!AX203/'Population at Risk'!AX$5","v":7.3165498558852519E-3},{"$f":"'Population at Risk'!AY203/'Population at Risk'!AY$5","v":5.9338815860361773E-3},{"$f":"'Population at Risk'!AZ203/'Population at Risk'!AZ$5","v":8.0767093242690314E-3},{"$f":"'Population at Risk'!BA203/'Population at Risk'!BA$5","v":2.6985066835532446E-3},{"$f":"'Population at Risk'!BB203/'Population at Risk'!BB$5","v":4.1604385356172171E-3},{"$f":"'Population at Risk'!BC203/'Population at Risk'!BC$5","v":1.4081782533408992E-3},201]
[null,"Male 55-59",{"$f":"'Population at Risk'!C204/'Population at Risk'!C$5","v":8.7233756692843556E-3},{"$f":"'Population at Risk'!D204/'Population at Risk'!D$5","v":1.7333111676813055E-2},{"$f":"'Population at Risk'!E204/'Population at Risk'!E$5","v":2.3612211008602838E-2},{"$f":"'Population at Risk'!F204/'Population at Risk'!F$5","v":1.364172041104763E-2},{"$f":"'Population at Risk'!G204/'Population at Risk'!G$5","v":1.6690485227514453E-2},{"$f":"'Population at Risk'!H204/'Population at Risk'!H$5","v":8.2020118037466182E-3},{"$f":"'Population at Risk'!I204/'Population at Risk'!I$5","v":2.3125310409431159E-2},{"$f":"'Population at Risk'!J204/'Population at Risk'!J$5","v":1.4790132857353271E-2},{"$f":"'Population at Risk'!K204/'Population at Risk'!K$5","v":1.0011913699926909E-2},{"$f":"'Population at Risk'!L204/'Population at Risk'!L$5","v":9.3683239168447629E-3},{"$f":"'Population at Risk'!M204/'Population at Risk'!M$5","v":9.3683239168447629E-3},{"$f":"'Population at Risk'!N204/'Population at Risk'!N$5","v":1.0574544444371288E-2},{"$f":"'Population at Risk'!O204/'Population at Risk'!O$5","v":7.8114901698828464E-3},{"$f":"'Population at Risk'!P204/'Population at Risk'!P$5","v":1.3120113829790763E-2},{"$f":"'Population at Risk'!Q204/'Population at Risk'!Q$5","v":2.1180763224380336E-2},{"$f":"'Population at Risk'!R204/'Population at Risk'!R$5","v":8.7527458358245807E-3},{"$f":"'Population at Risk'!S204/'Population at Risk'!S$5","v":1.073085240175956E-2},{"$f":"'Population at Risk'!T204/'Population at Risk'!T$5","v":7.5397250742963466E-3},{"$f":"'Population at Risk'!U204/'Population at Risk'!U$5","v":3.4992400142946412E-3},{"$f":"'Population at Risk'!V204/'Population at Risk'!V$5","v":9.748482215750932E-3},{"$f":"'Population at Risk'!W204/'Population at Risk'!W$5","v":9.9530968023090177E-3},{"$f":"'Population at Risk'!X204/'Population at Risk'!X$5","v":9.9530968023090177E-3},{"$f":"'Population at Risk'!Y204/'Population at Risk'!Y$5","v":1.2002820504347986E-2},{"$f":"'Population at Risk'!Z204/'Population at Risk'!Z$5","v":3.4755979041687628E-3},{"$f":"'Population at Risk'!AA204/'Population at Risk'!AA$5","v":7.0733974944534083E-3},{"$f":"'Population at Risk'!AB204/'Population at Risk'!AB$5","v":1.8566892737330906E-2},{"$f":"'Population at Risk'!AC204/'Population at Risk'!AC$5","v":6.2113104074205082E-3},{"$f":"'Population at Risk'!AD204/'Population at Risk'!AD$5","v":2.3158731084241858E-2},{"$f":"'Population at Risk'!AE204/'Population at Risk'!AE$5","v":2.5670296539504131E-2},{"$f":"'Population at Risk'!AF204/'Population at Risk'!AF$5","v":1.1502966195316841E-2},{"$f":"'Population at Risk'!AG204/'Population at Risk'!AG$5","v":2.5670296539504131E-2},{"$f":"'Population at Risk'!AH204/'Population at Risk'!AH$5","v":8.7491601922624618E-3},{"$f":"'Population at Risk'!AI204/'Population at Risk'!AI$5","v":9.5009812273360392E-3},{"$f":"'Population at Risk'!AJ204/'Population at Risk'!AJ$5","v":8.0449321492631707E-3},{"$f":"'Population at Risk'!AK204/'Population at Risk'!AK$5","v":2.4243701984812193E-2},{"$f":"'Population at Risk'!AL204/'Population at Risk'!AL$5","v":8.1285316698766989E-3},{"$f":"'Population at Risk'!AM204/'Population at Risk'!AM$5","v":6.7643671035244905E-3},{"$f":"'Population at Risk'!AN204/'Population at Risk'!AN$5","v":3.6105519013355937E-2},{"$f":"'Population at Risk'!AO204/'Population at Risk'!AO$5","v":3.6105519013355937E-2},{"$f":"'Population at Risk'!AP204/'Population at Risk'!AP$5","v":3.7243963740737095E-2},{"$f":"'Population at Risk'!AQ204/'Population at Risk'!AQ$5","v":1.1886660336711066E-2},{"$f":"'Population at Risk'!AR204/'Population at Risk'!AR$5","v":1.1091959803475831E-2},{"$f":"'Population at Risk'!AS204/'Population at Risk'!AS$5","v":2.3125310409431159E-2},{"$f":"'Population at Risk'!AT204/'Population at Risk'!AT$5","v":5.3464438382987707E-2},{"$f":"'Population at Risk'!AU204/'Population at Risk'!AU$5","v":5.3464438382987707E-2},{"$f":"'Population at Risk'!AV204/'Population at Risk'!AV$5","v":8.6668940866491736E-3},{"$f":"'Population at Risk'!AW204/'Population at Risk'!AW$5","v":1.0979566563428352E-2},{"$f":"'Population at Risk'!AX204/'Population at Risk'!AX$5","v":1.7616216864593488E-2},{"$f":"'Population at Risk'!AY204/'Population at Risk'!AY$5","v":1.4839652359992178E-2},{"$f":"'Population at Risk'!AZ204/'Population at Risk'!AZ$5","v":2.0210183274842992E-2},{"$f":"'Population at Risk'!BA204/'Population at Risk'!BA$5","v":7.4514302804272528E-3},{"$f":"'Population at Risk'!BB204/'Population at Risk'!BB$5","v":9.4692588892710487E-3},{"$f":"'Population at Risk'!BC204/'Population at Risk'!BC$5","v":3.4992400142946412E-3},202]
[null,"Male 60-64",{"$f":"'Population at Risk'!C205/'Population at Risk'!C$5","v":8.3956187799759854E-3},{"$f":"'Population at Risk'!D205/'Population at Risk'!D$5","v":1.5651368825399355E-2},{"$f":"'Population at Risk'!E205/'Population at Risk'!E$5","v":2.0900826132254333E-2},{"$f":"'Population at Risk'!F205/'Population at Risk'!F$5","v":1.3681647397616549E-2},{"$f":"'Population at Risk'!G205/'Population at Risk'!G$5","v":1.637870779487097E-2},{"$f":"'Population at Risk'!H205/'Population at Risk'!H$5","v":7.4756049189379174E-3},{"$f":"'Population at Risk'!I205/'Population at Risk'!I$5","v":2.2138785247673744E-2},{"$f":"'Population at Risk'!J205/'Population at Risk'!J$5","v":1.1707896771995047E-2},{"$f":"'Population at Risk'!K205/'Population at Risk'!K$5","v":7.6807815548693001E-3},{"$f":"'Population at Risk'!L205/'Population at Risk'!L$5","v":9.4954135823833545E-3},{"$f":"'Population at Risk'!M205/'Population at Risk'!M$5","v":9.4954135823833545E-3},{"$f":"'Population at Risk'!N205/'Population at Risk'!N$5","v":7.9564507111634201E-3},{"$f":"'Population at Risk'!O205/'Population at Risk'!O$5","v":7.2526395217990171E-3},{"$f":"'Population at Risk'!P205/'Population at Risk'!P$5","v":1.1799527209014435E-2},{"$f":"'Population at Risk'!Q205/'Population at Risk'!Q$5","v":1.6228975504989578E-2},{"$f":"'Population at Risk'!R205/'Population at Risk'!R$5","v":9.0653439013897458E-3},{"$f":"'Population at Risk'!S205/'Population at Risk'!S$5","v":9.1023984846504338E-3},{"$f":"'Population at Risk'!T205/'Population at Risk'!T$5","v":6.5543095873719752E-3},{"$f":"'Population at Risk'!U205/'Population at Risk'!U$5","v":3.0281884739088239E-3},{"$f":"'Population at Risk'!V205/'Population at Risk'!V$5","v":7.5584122385137361E-3},{"$f":"'Population at Risk'!W205/'Population at Risk'!W$5","v":8.511585084603316E-3},{"$f":"'Population at Risk'!X205/'Population at Risk'!X$5","v":8.511585084603316E-3},{"$f":"'Population at Risk'!Y205/'Population at Risk'!Y$5","v":9.4117034362107051E-3},{"$f":"'Population at Risk'!Z205/'Population at Risk'!Z$5","v":2.9447058352973189E-3},{"$f":"'Population at Risk'!AA205/'Population at Risk'!AA$5","v":6.0079837516505176E-3},{"$f":"'Population at Risk'!AB205/'Population at Risk'!AB$5","v":1.7031357075938856E-2},{"$f":"'Population at Risk'!AC205/'Population at Risk'!AC$5","v":5.334255743989446E-3},{"$f":"'Population at Risk'!AD205/'Population at Risk'!AD$5","v":2.1517511840511438E-2},{"$f":"'Population at Risk'!AE205/'Population at Risk'!AE$5","v":2.347936245337506E-2},{"$f":"'Population at Risk'!AF205/'Population at Risk'!AF$5","v":9.6332261070321262E-3},{"$f":"'Population at Risk'!AG205/'Population at Risk'!AG$5","v":2.347936245337506E-2},{"$f":"'Population at Risk'!AH205/'Population at Risk'!AH$5","v":7.3176433867776216E-3},{"$f":"'Population at Risk'!AI205/'Population at Risk'!AI$5","v":7.7069473962058151E-3},{"$f":"'Population at Risk'!AJ205/'Population at Risk'!AJ$5","v":6.7965806088602651E-3},{"$f":"'Population at Risk'!AK205/'Population at Risk'!AK$5","v":2.3430651003614224E-2},{"$f":"'Population at Risk'!AL205/'Population at Risk'!AL$5","v":7.5115467358981055E-3},{"$f":"'Population at Risk'!AM205/'Population at Risk'!AM$5","v":5.6320060905996868E-3},{"$f":"'Population at Risk'!AN205/'Population at Risk'!AN$5","v":3.3420749650824338E-2},{"$f":"'Population at Risk'!AO205/'Population at Risk'!AO$5","v":3.3420749650824338E-2},{"$f":"'Population at Risk'!AP205/'Population at Risk'!AP$5","v":3.4356834768586933E-2},{"$f":"'Population at Risk'!AQ205/'Population at Risk'!AQ$5","v":9.722802985619991E-3},{"$f":"'Population at Risk'!AR205/'Population at Risk'!AR$5","v":9.7479427423421399E-3},{"$f":"'Population at Risk'!AS205/'Population at Risk'!AS$5","v":2.2138785247673744E-2},{"$f":"'Population at Risk'!AT205/'Population at Risk'!AT$5","v":4.8925004935375542E-2},{"$f":"'Population at Risk'!AU205/'Population at Risk'!AU$5","v":4.8925004935375542E-2},{"$f":"'Population at Risk'!AV205/'Population at Risk'!AV$5","v":7.5908032101189068E-3},{"$f":"'Population at Risk'!AW205/'Population at Risk'!AW$5","v":9.2119138313580817E-3},{"$f":"'Population at Risk'!AX205/'Population at Risk'!AX$5","v":1.4096678269143686E-2},{"$f":"'Population at Risk'!AY205/'Population at Risk'!AY$5","v":1.3193816449255692E-2},{"$f":"'Population at Risk'!AZ205/'Population at Risk'!AZ$5","v":1.836101201472562E-2},{"$f":"'Population at Risk'!BA205/'Population at Risk'!BA$5","v":6.071535784051835E-3},{"$f":"'Population at Risk'!BB205/'Population at Risk'!BB$5","v":6.8647814898540587E-3},{"$f":"'Population at Risk'!BC205/'Population at Risk'!BC$5","v":3.0281884739088239E-3},203]
[null,"Male 65-69",{"$f":"'Population at Risk'!C206/'Population at Risk'!C$5","v":0},{"$f":"'Population at Risk'!D206/'Population at Risk'!D$5","v":0},{"$f":"'Population at Risk'!E206/'Population at Risk'!E$5","v":0},{"$f":"'Population at Risk'!F206/'Population at Risk'!F$5","v":0},{"$f":"'Population at Risk'!G206/'Population at Risk'!G$5","v":0},{"$f":"'Population at Risk'!H206/'Population at Risk'!H$5","v":0},{"$f":"'Population at Risk'!I206/'Population at Risk'!I$5","v":0},{"$f":"'Population at Risk'!J206/'Population at Risk'!J$5","v":0},{"$f":"'Population at Risk'!K206/'Population at Risk'!K$5","v":0},{"$f":"'Population at Risk'!L206/'Population at Risk'!L$5","v":0},{"$f":"'Population at Risk'!M206/'Population at Risk'!M$5","v":0},{"$f":"'Population at Risk'!N206/'Population at Risk'!N$5","v":0},{"$f":"'Population at Risk'!O206/'Population at Risk'!O$5","v":0},{"$f":"'Population at Risk'!P206/'Population at Risk'!P$5","v":0},{"$f":"'Population at Risk'!Q206/'Population at Risk'!Q$5","v":0},{"$f":"'Population at Risk'!R206/'Population at Risk'!R$5","v":0},{"$f":"'Population at Risk'!S206/'Population at Risk'!S$5","v":0},{"$f":"'Population at Risk'!T206/'Population at Risk'!T$5","v":0},{"$f":"'Population at Risk'!U206/'Population at Risk'!U$5","v":0},{"$f":"'Population at Risk'!V206/'Population at Risk'!V$5","v":0},{"$f":"'Population at Risk'!W206/'Population at Risk'!W$5","v":0},{"$f":"'Population at Risk'!X206/'Population at Risk'!X$5","v":0},{"$f":"'Population at Risk'!Y206/'Population at Risk'!Y$5","v":0},{"$f":"'Population at Risk'!Z206/'Population at Risk'!Z$5","v":0},{"$f":"'Population at Risk'!AA206/'Population at Risk'!AA$5","v":0},{"$f":"'Population at Risk'!AB206/'Population at Risk'!AB$5","v":0},{"$f":"'Population at Risk'!AC206/'Population at Risk'!AC$5","v":0},{"$f":"'Population at Risk'!AD206/'Population at Risk'!AD$5","v":0},{"$f":"'Population at Risk'!AE206/'Population at Risk'!AE$5","v":0},{"$f":"'Population at Risk'!AF206/'Population at Risk'!AF$5","v":0},{"$f":"'Population at Risk'!AG206/'Population at Risk'!AG$5","v":0},{"$f":"'Population at Risk'!AH206/'Population at Risk'!AH$5","v":0},{"$f":"'Population at Risk'!AI206/'Population at Risk'!AI$5","v":0},{"$f":"'Population at Risk'!AJ206/'Population at Risk'!AJ$5","v":0},{"$f":"'Population at Risk'!AK206/'Population at Risk'!AK$5","v":0},{"$f":"'Population at Risk'!AL206/'Population at Risk'!AL$5","v":0},{"$f":"'Population at Risk'!AM206/'Population at Risk'!AM$5","v":0},{"$f":"'Population at Risk'!AN206/'Population at Risk'!AN$5","v":0},{"$f":"'Population at Risk'!AO206/'Population at Risk'!AO$5","v":0},{"$f":"'Population at Risk'!AP206/'Population at Risk'!AP$5","v":0},{"$f":"'Population at Risk'!AQ206/'Population at Risk'!AQ$5","v":0},{"$f":"'Population at Risk'!AR206/'Population at Risk'!AR$5","v":0},{"$f":"'Population at Risk'!AS206/'Population at Risk'!AS$5","v":0},{"$f":"'Population at Risk'!AT206/'Population at Risk'!AT$5","v":0},{"$f":"'Population at Risk'!AU206/'Population at Risk'!AU$5","v":0},{"$f":"'Population at Risk'!AV206/'Population at Risk'!AV$5","v":0},{"$f":"'Population at Risk'!AW206/'Population at Risk'!AW$5","v":0},{"$f":"'Population at Risk'!AX206/'Population at Risk'!AX$5","v":0},{"$f":"'Population at Risk'!AY206/'Population at Risk'!AY$5","v":0},{"$f":"'Population at Risk'!AZ206/'Population at Risk'!AZ$5","v":0},{"$f":"'Population at Risk'!BA206/'Population at Risk'!BA$5","v":0},{"$f":"'Population at Risk'!BB206/'Population at Risk'!BB$5","v":0},{"$f":"'Population at Risk'!BC206/'Population at Risk'!BC$5","v":0},204]
[null,"Male 70-74",{"$f":"'Population at Risk'!C207/'Population at Risk'!C$5","v":0},{"$f":"'Population at Risk'!D207/'Population at Risk'!D$5","v":0},{"$f":"'Population at Risk'!E207/'Population at Risk'!E$5","v":0},{"$f":"'Population at Risk'!F207/'Population at Risk'!F$5","v":0},{"$f":"'Population at Risk'!G207/'Population at Risk'!G$5","v":0},{"$f":"'Population at Risk'!H207/'Population at Risk'!H$5","v":0},{"$f":"'Population at Risk'!I207/'Population at Risk'!I$5","v":0},{"$f":"'Population at Risk'!J207/'Population at Risk'!J$5","v":0},{"$f":"'Population at Risk'!K207/'Population at Risk'!K$5","v":0},{"$f":"'Population at Risk'!L207/'Population at Risk'!L$5","v":0},{"$f":"'Population at Risk'!M207/'Population at Risk'!M$5","v":0},{"$f":"'Population at Risk'!N207/'Population at Risk'!N$5","v":0},{"$f":"'Population at Risk'!O207/'Population at Risk'!O$5","v":0},{"$f":"'Population at Risk'!P207/'Population at Risk'!P$5","v":0},{"$f":"'Population at Risk'!Q207/'Population at Risk'!Q$5","v":0},{"$f":"'Population at Risk'!R207/'Population at Risk'!R$5","v":0},{"$f":"'Population at Risk'!S207/'Population at Risk'!S$5","v":0},{"$f":"'Population at Risk'!T207/'Population at Risk'!T$5","v":0},{"$f":"'Population at Risk'!U207/'Population at Risk'!U$5","v":0},{"$f":"'Population at Risk'!V207/'Population at Risk'!V$5","v":0},{"$f":"'Population at Risk'!W207/'Population at Risk'!W$5","v":0},{"$f":"'Population at Risk'!X207/'Population at Risk'!X$5","v":0},{"$f":"'Population at Risk'!Y207/'Population at Risk'!Y$5","v":0},{"$f":"'Population at Risk'!Z207/'Population at Risk'!Z$5","v":0},{"$f":"'Population at Risk'!AA207/'Population at Risk'!AA$5","v":0},{"$f":"'Population at Risk'!AB207/'Population at Risk'!AB$5","v":0},{"$f":"'Population at Risk'!AC207/'Population at Risk'!AC$5","v":0},{"$f":"'Population at Risk'!AD207/'Population at Risk'!AD$5","v":0},{"$f":"'Population at Risk'!AE207/'Population at Risk'!AE$5","v":0},{"$f":"'Population at Risk'!AF207/'Population at Risk'!AF$5","v":0},{"$f":"'Population at Risk'!AG207/'Population at Risk'!AG$5","v":0},{"$f":"'Population at Risk'!AH207/'Population at Risk'!AH$5","v":0},{"$f":"'Population at Risk'!AI207/'Population at Risk'!AI$5","v":0},{"$f":"'Population at Risk'!AJ207/'Population at Risk'!AJ$5","v":0},{"$f":"'Population at Risk'!AK207/'Population at Risk'!AK$5","v":0},{"$f":"'Population at Risk'!AL207/'Population at Risk'!AL$5","v":0},{"$f":"'Population at Risk'!AM207/'Population at Risk'!AM$5","v":0},{"$f":"'Population at Risk'!AN207/'Population at Risk'!AN$5","v":0},{"$f":"'Population at Risk'!AO207/'Population at Risk'!AO$5","v":0},{"$f":"'Population at Risk'!AP207/'Population at Risk'!AP$5","v":0},{"$f":"'Population at Risk'!AQ207/'Population at Risk'!AQ$5","v":0},{"$f":"'Population at Risk'!AR207/'Population at Risk'!AR$5","v":0},{"$f":"'Population at Risk'!AS207/'Population at Risk'!AS$5","v":0},{"$f":"'Population at Risk'!AT207/'Population at Risk'!AT$5","v":0},{"$f":"'Population at Risk'!AU207/'Population at Risk'!AU$5","v":0},{"$f":"'Population at Risk'!AV207/'Population at Risk'!AV$5","v":0},{"$f":"'Population at Risk'!AW207/'Population at Risk'!AW$5","v":0},{"$f":"'Population at Risk'!AX207/'Population at Risk'!AX$5","v":0},{"$f":"'Population at Risk'!AY207/'Population at Risk'!AY$5","v":0},{"$f":"'Population at Risk'!AZ207/'Population at Risk'!AZ$5","v":0},{"$f":"'Population at Risk'!BA207/'Population at Risk'!BA$5","v":0},{"$f":"'Population at Risk'!BB207/'Population at Risk'!BB$5","v":0},{"$f":"'Population at Risk'!BC207/'Population at Risk'!BC$5","v":0},205]
[null,"Male 75-79",{"$f":"'Population at Risk'!C208/'Population at Risk'!C$5","v":0},{"$f":"'Population at Risk'!D208/'Population at Risk'!D$5","v":0},{"$f":"'Population at Risk'!E208/'Population at Risk'!E$5","v":0},{"$f":"'Population at Risk'!F208/'Population at Risk'!F$5","v":0},{"$f":"'Population at Risk'!G208/'Population at Risk'!G$5","v":0},{"$f":"'Population at Risk'!H208/'Population at Risk'!H$5","v":0},{"$f":"'Population at Risk'!I208/'Population at Risk'!I$5","v":0},{"$f":"'Population at Risk'!J208/'Population at Risk'!J$5","v":0},{"$f":"'Population at Risk'!K208/'Population at Risk'!K$5","v":0},{"$f":"'Population at Risk'!L208/'Population at Risk'!L$5","v":0},{"$f":"'Population at Risk'!M208/'Population at Risk'!M$5","v":0},{"$f":"'Population at Risk'!N208/'Population at Risk'!N$5","v":0},{"$f":"'Population at Risk'!O208/'Population at Risk'!O$5","v":0},{"$f":"'Population at Risk'!P208/'Population at Risk'!P$5","v":0},{"$f":"'Population at Risk'!Q208/'Population at Risk'!Q$5","v":0},{"$f":"'Population at Risk'!R208/'Population at Risk'!R$5","v":0},{"$f":"'Population at Risk'!S208/'Population at Risk'!S$5","v":0},{"$f":"'Population at Risk'!T208/'Population at Risk'!T$5","v":0},{"$f":"'Population at Risk'!U208/'Population at Risk'!U$5","v":0},{"$f":"'Population at Risk'!V208/'Population at Risk'!V$5","v":0},{"$f":"'Population at Risk'!W208/'Population at Risk'!W$5","v":0},{"$f":"'Population at Risk'!X208/'Population at Risk'!X$5","v":0},{"$f":"'Population at Risk'!Y208/'Population at Risk'!Y$5","v":0},{"$f":"'Population at Risk'!Z208/'Population at Risk'!Z$5","v":0},{"$f":"'Population at Risk'!AA208/'Population at Risk'!AA$5","v":0},{"$f":"'Population at Risk'!AB208/'Population at Risk'!AB$5","v":0},{"$f":"'Population at Risk'!AC208/'Population at Risk'!AC$5","v":0},{"$f":"'Population at Risk'!AD208/'Population at Risk'!AD$5","v":0},{"$f":"'Population at Risk'!AE208/'Population at Risk'!AE$5","v":0},{"$f":"'Population at Risk'!AF208/'Population at Risk'!AF$5","v":0},{"$f":"'Population at Risk'!AG208/'Population at Risk'!AG$5","v":0},{"$f":"'Population at Risk'!AH208/'Population at Risk'!AH$5","v":0},{"$f":"'Population at Risk'!AI208/'Population at Risk'!AI$5","v":0},{"$f":"'Population at Risk'!AJ208/'Population at Risk'!AJ$5","v":0},{"$f":"'Population at Risk'!AK208/'Population at Risk'!AK$5","v":0},{"$f":"'Population at Risk'!AL208/'Population at Risk'!AL$5","v":0},{"$f":"'Population at Risk'!AM208/'Population at Risk'!AM$5","v":0},{"$f":"'Population at Risk'!AN208/'Population at Risk'!AN$5","v":0},{"$f":"'Population at Risk'!AO208/'Population at Risk'!AO$5","v":0},{"$f":"'Population at Risk'!AP208/'Population at Risk'!AP$5","v":0},{"$f":"'Population at Risk'!AQ208/'Population at Risk'!AQ$5","v":0},{"$f":"'Population at Risk'!AR208/'Population at Risk'!AR$5","v":0},{"$f":"'Population at Risk'!AS208/'Population at Risk'!AS$5","v":0},{"$f":"'Population at Risk'!AT208/'Population at Risk'!AT$5","v":0},{"$f":"'Population at Risk'!AU208/'Population at Risk'!AU$5","v":0},{"$f":"'Population at Risk'!AV208/'Population at Risk'!AV$5","v":0},{"$f":"'Population at Risk'!AW208/'Population at Risk'!AW$5","v":0},{"$f":"'Population at Risk'!AX208/'Population at Risk'!AX$5","v":0},{"$f":"'Population at Risk'!AY208/'Population at Risk'!AY$5","v":0},{"$f":"'Population at Risk'!AZ208/'Population at Risk'!AZ$5","v":0},{"$f":"'Population at Risk'!BA208/'Population at Risk'!BA$5","v":0},{"$f":"'Population at Risk'!BB208/'Population at Risk'!BB$5","v":0},{"$f":"'Population at Risk'!BC208/'Population at Risk'!BC$5","v":0},206]
[null,"Male 80-84",{"$f":"'Population at Risk'!C209/'Population at Risk'!C$5","v":0},{"$f":"'Population at Risk'!D209/'Population at Risk'!D$5","v":0},{"$f":"'Population at Risk'!E209/'Population at Risk'!E$5","v":0},{"$f":"'Population at Risk'!F209/'Population at Risk'!F$5","v":0},{"$f":"'Population at Risk'!G209/'Population at Risk'!G$5","v":0},{"$f":"'Population at Risk'!H209/'Population at Risk'!H$5","v":0},{"$f":"'Population at Risk'!I209/'Population at Risk'!I$5","v":0},{"$f":"'Population at Risk'!J209/'Population at Risk'!J$5","v":0},{"$f":"'Population at Risk'!K209/'Population at Risk'!K$5","v":0},{"$f":"'Population at Risk'!L209/'Population at Risk'!L$5","v":0},{"$f":"'Population at Risk'!M209/'Population at Risk'!M$5","v":0},{"$f":"'Population at Risk'!N209/'Population at Risk'!N$5","v":0},{"$f":"'Population at Risk'!O209/'Population at Risk'!O$5","v":0},{"$f":"'Population at Risk'!P209/'Population at Risk'!P$5","v":0},{"$f":"'Population at Risk'!Q209/'Population at Risk'!Q$5","v":0},{"$f":"'Population at Risk'!R209/'Population at Risk'!R$5","v":0},{"$f":"'Population at Risk'!S209/'Population at Risk'!S$5","v":0},{"$f":"'Population at Risk'!T209/'Population at Risk'!T$5","v":0},{"$f":"'Population at Risk'!U209/'Population at Risk'!U$5","v":0},{"$f":"'Population at Risk'!V209/'Population at Risk'!V$5","v":0},{"$f":"'Population at Risk'!W209/'Population at Risk'!W$5","v":0},{"$f":"'Population at Risk'!X209/'Population at Risk'!X$5","v":0},{"$f":"'Population at Risk'!Y209/'Population at Risk'!Y$5","v":0},{"$f":"'Population at Risk'!Z209/'Population at Risk'!Z$5","v":0},{"$f":"'Population at Risk'!AA209/'Population at Risk'!AA$5","v":0},{"$f":"'Population at Risk'!AB209/'Population at Risk'!AB$5","v":0},{"$f":"'Population at Risk'!AC209/'Population at Risk'!AC$5","v":0},{"$f":"'Population at Risk'!AD209/'Population at Risk'!AD$5","v":0},{"$f":"'Population at Risk'!AE209/'Population at Risk'!AE$5","v":0},{"$f":"'Population at Risk'!AF209/'Population at Risk'!AF$5","v":0},{"$f":"'Population at Risk'!AG209/'Population at Risk'!AG$5","v":0},{"$f":"'Population at Risk'!AH209/'Population at Risk'!AH$5","v":0},{"$f":"'Population at Risk'!AI209/'Population at Risk'!AI$5","v":0},{"$f":"'Population at Risk'!AJ209/'Population at Risk'!AJ$5","v":0},{"$f":"'Population at Risk'!AK209/'Population at Risk'!AK$5","v":0},{"$f":"'Population at Risk'!AL209/'Population at Risk'!AL$5","v":0},{"$f":"'Population at Risk'!AM209/'Population at Risk'!AM$5","v":0},{"$f":"'Population at Risk'!AN209/'Population at Risk'!AN$5","v":0},{"$f":"'Population at Risk'!AO209/'Population at Risk'!AO$5","v":0},{"$f":"'Population at Risk'!AP209/'Population at Risk'!AP$5","v":0},{"$f":"'Population at Risk'!AQ209/'Population at Risk'!AQ$5","v":0},{"$f":"'Population at Risk'!AR209/'Population at Risk'!AR$5","v":0},{"$f":"'Population at Risk'!AS209/'Population at Risk'!AS$5","v":0},{"$f":"'Population at Risk'!AT209/'Population at Risk'!AT$5","v":0},{"$f":"'Population at Risk'!AU209/'Population at Risk'!AU$5","v":0},{"$f":"'Population at Risk'!AV209/'Population at Risk'!AV$5","v":0},{"$f":"'Population at Risk'!AW209/'Population at Risk'!AW$5","v":0},{"$f":"'Population at Risk'!AX209/'Population at Risk'!AX$5","v":0},{"$f":"'Population at Risk'!AY209/'Population at Risk'!AY$5","v":0},{"$f":"'Population at Risk'!AZ209/'Population at Risk'!AZ$5","v":0},{"$f":"'Population at Risk'!BA209/'Population at Risk'!BA$5","v":0},{"$f":"'Population at Risk'!BB209/'Population at Risk'!BB$5","v":0},{"$f":"'Population at Risk'!BC209/'Population at Risk'!BC$5","v":0},207]
[null,"Male 85-89",{"$f":"'Population at Risk'!C210/'Population at Risk'!C$5","v":0},{"$f":"'Population at Risk'!D210/'Population at Risk'!D$5","v":0},{"$f":"'Population at Risk'!E210/'Population at Risk'!E$5","v":0},{"$f":"'Population at Risk'!F210/'Population at Risk'!F$5","v":0},{"$f":"'Population at Risk'!G210/'Population at Risk'!G$5","v":0},{"$f":"'Population at Risk'!H210/'Population at Risk'!H$5","v":0},{"$f":"'Population at Risk'!I210/'Population at Risk'!I$5","v":0},{"$f":"'Population at Risk'!J210/'Population at Risk'!J$5","v":0},{"$f":"'Population at Risk'!K210/'Population at Risk'!K$5","v":0},{"$f":"'Population at Risk'!L210/'Population at Risk'!L$5","v":0},{"$f":"'Population at Risk'!M210/'Population at Risk'!M$5","v":0},{"$f":"'Population at Risk'!N210/'Population at Risk'!N$5","v":0},{"$f":"'Population at Risk'!O210/'Population at Risk'!O$5","v":0},{"$f":"'Population at Risk'!P210/'Population at Risk'!P$5","v":0},{"$f":"'Population at Risk'!Q210/'Population at Risk'!Q$5","v":0},{"$f":"'Population at Risk'!R210/'Population at Risk'!R$5","v":0},{"$f":"'Population at Risk'!S210/'Population at Risk'!S$5","v":0},{"$f":"'Population at Risk'!T210/'Population at Risk'!T$5","v":0},{"$f":"'Population at Risk'!U210/'Population at Risk'!U$5","v":0},{"$f":"'Population at Risk'!V210/'Population at Risk'!V$5","v":0},{"$f":"'Population at Risk'!W210/'Population at Risk'!W$5","v":0},{"$f":"'Population at Risk'!X210/'Population at Risk'!X$5","v":0},{"$f":"'Population at Risk'!Y210/'Population at Risk'!Y$5","v":0},{"$f":"'Population at Risk'!Z210/'Population at Risk'!Z$5","v":0},{"$f":"'Population at Risk'!AA210/'Population at Risk'!AA$5","v":0},{"$f":"'Population at Risk'!AB210/'Population at Risk'!AB$5","v":0},{"$f":"'Population at Risk'!AC210/'Population at Risk'!AC$5","v":0},{"$f":"'Population at Risk'!AD210/'Population at Risk'!AD$5","v":0},{"$f":"'Population at Risk'!AE210/'Population at Risk'!AE$5","v":0},{"$f":"'Population at Risk'!AF210/'Population at Risk'!AF$5","v":0},{"$f":"'Population at Risk'!AG210/'Population at Risk'!AG$5","v":0},{"$f":"'Population at Risk'!AH210/'Population at Risk'!AH$5","v":0},{"$f":"'Population at Risk'!AI210/'Population at Risk'!AI$5","v":0},{"$f":"'Population at Risk'!AJ210/'Population at Risk'!AJ$5","v":0},{"$f":"'Population at Risk'!AK210/'Population at Risk'!AK$5","v":0},{"$f":"'Population at Risk'!AL210/'Population at Risk'!AL$5","v":0},{"$f":"'Population at Risk'!AM210/'Population at Risk'!AM$5","v":0},{"$f":"'Population at Risk'!AN210/'Population at Risk'!AN$5","v":0},{"$f":"'Population at Risk'!AO210/'Population at Risk'!AO$5","v":0},{"$f":"'Population at Risk'!AP210/'Population at Risk'!AP$5","v":0},{"$f":"'Population at Risk'!AQ210/'Population at Risk'!AQ$5","v":0},{"$f":"'Population at Risk'!AR210/'Population at Risk'!AR$5","v":0},{"$f":"'Population at Risk'!AS210/'Population at Risk'!AS$5","v":0},{"$f":"'Population at Risk'!AT210/'Population at Risk'!AT$5","v":0},{"$f":"'Population at Risk'!AU210/'Population at Risk'!AU$5","v":0},{"$f":"'Population at Risk'!AV210/'Population at Risk'!AV$5","v":0},{"$f":"'Population at Risk'!AW210/'Population at Risk'!AW$5","v":0},{"$f":"'Population at Risk'!AX210/'Population at Risk'!AX$5","v":0},{"$f":"'Population at Risk'!AY210/'Population at Risk'!AY$5","v":0},{"$f":"'Population at Risk'!AZ210/'Population at Risk'!AZ$5","v":0},{"$f":"'Population at Risk'!BA210/'Population at Risk'!BA$5","v":0},{"$f":"'Population at Risk'!BB210/'Population at Risk'!BB$5","v":0},{"$f":"'Population at Risk'!BC210/'Population at Risk'!BC$5","v":0},208]
[null,"Male 90+",{"$f":"'Population at Risk'!C211/'Population at Risk'!C$5","v":0},{"$f":"'Population at Risk'!D211/'Population at Risk'!D$5","v":0},{"$f":"'Population at Risk'!E211/'Population at Risk'!E$5","v":0},{"$f":"'Population at Risk'!F211/'Population at Risk'!F$5","v":0},{"$f":"'Population at Risk'!G211/'Population at Risk'!G$5","v":0},{"$f":"'Population at Risk'!H211/'Population at Risk'!H$5","v":0},{"$f":"'Population at Risk'!I211/'Population at Risk'!I$5","v":0},{"$f":"'Population at Risk'!J211/'Population at Risk'!J$5","v":0},{"$f":"'Population at Risk'!K211/'Population at Risk'!K$5","v":0},{"$f":"'Population at Risk'!L211/'Population at Risk'!L$5","v":0},{"$f":"'Population at Risk'!M211/'Population at Risk'!M$5","v":0},{"$f":"'Population at Risk'!N211/'Population at Risk'!N$5","v":0},{"$f":"'Population at Risk'!O211/'Population at Risk'!O$5","v":0},{"$f":"'Population at Risk'!P211/'Population at Risk'!P$5","v":0},{"$f":"'Population at Risk'!Q211/'Population at Risk'!Q$5","v":0},{"$f":"'Population at Risk'!R211/'Population at Risk'!R$5","v":0},{"$f":"'Population at Risk'!S211/'Population at Risk'!S$5","v":0},{"$f":"'Population at Risk'!T211/'Population at Risk'!T$5","v":0},{"$f":"'Population at Risk'!U211/'Population at Risk'!U$5","v":0},{"$f":"'Population at Risk'!V211/'Population at Risk'!V$5","v":0},{"$f":"'Population at Risk'!W211/'Population at Risk'!W$5","v":0},{"$f":"'Population at Risk'!X211/'Population at Risk'!X$5","v":0},{"$f":"'Population at Risk'!Y211/'Population at Risk'!Y$5","v":0},{"$f":"'Population at Risk'!Z211/'Population at Risk'!Z$5","v":0},{"$f":"'Population at Risk'!AA211/'Population at Risk'!AA$5","v":0},{"$f":"'Population at Risk'!AB211/'Population at Risk'!AB$5","v":0},{"$f":"'Population at Risk'!AC211/'Population at Risk'!AC$5","v":0},{"$f":"'Population at Risk'!AD211/'Population at Risk'!AD$5","v":0},{"$f":"'Population at Risk'!AE211/'Population at Risk'!AE$5","v":0},{"$f":"'Population at Risk'!AF211/'Population at Risk'!AF$5","v":0},{"$f":"'Population at Risk'!AG211/'Population at Risk'!AG$5","v":0},{"$f":"'Population at Risk'!AH211/'Population at Risk'!AH$5","v":0},{"$f":"'Population at Risk'!AI211/'Population at Risk'!AI$5","v":0},{"$f":"'Population at Risk'!AJ211/'Population at Risk'!AJ$5","v":0},{"$f":"'Population at Risk'!AK211/'Population at Risk'!AK$5","v":0},{"$f":"'Population at Risk'!AL211/'Population at Risk'!AL$5","v":0},{"$f":"'Population at Risk'!AM211/'Population at Risk'!AM$5","v":0},{"$f":"'Population at Risk'!AN211/'Population at Risk'!AN$5","v":0},{"$f":"'Population at Risk'!AO211/'Population at Risk'!AO$5","v":0},{"$f":"'Population at Risk'!AP211/'Population at Risk'!AP$5","v":0},{"$f":"'Population at Risk'!AQ211/'Population at Risk'!AQ$5","v":0},{"$f":"'Population at Risk'!AR211/'Population at Risk'!AR$5","v":0},{"$f":"'Population at Risk'!AS211/'Population at Risk'!AS$5","v":0},{"$f":"'Population at Risk'!AT211/'Population at Risk'!AT$5","v":0},{"$f":"'Population at Risk'!AU211/'Population at Risk'!AU$5","v":0},{"$f":"'Population at Risk'!AV211/'Population at Risk'!AV$5","v":0},{"$f":"'Population at Risk'!AW211/'Population at Risk'!AW$5","v":0},{"$f":"'Population at Risk'!AX211/'Population at Risk'!AX$5","v":0},{"$f":"'Population at Risk'!AY211/'Population at Risk'!AY$5","v":0},{"$f":"'Population at Risk'!AZ211/'Population at Risk'!AZ$5","v":0},{"$f":"'Population at Risk'!BA211/'Population at Risk'!BA$5","v":0},{"$f":"'Population at Risk'!BB211/'Population at Risk'!BB$5","v":0},{"$f":"'Population at Risk'!BC211/'Population at Risk'!BC$5","v":0},209]
["SIMD Q5 (least deprived)","Female 0-4",{"$f":"'Population at Risk'!C212/'Population at Risk'!C$5","v":0},{"$f":"'Population at Risk'!D212/'Population at Risk'!D$5","v":0},{"$f":"'Population at Risk'!E212/'Population at Risk'!E$5","v":0},{"$f":"'Population at Risk'!F212/'Population at Risk'!F$5","v":0},{"$f":"'Population at Risk'!G212/'Population at Risk'!G$5","v":0},{"$f":"'Population at Risk'!H212/'Population at Risk'!H$5","v":0},{"$f":"'Population at Risk'!I212/'Population at Risk'!I$5","v":0},{"$f":"'Population at Risk'!J212/'Population at Risk'!J$5","v":0},{"$f":"'Population at Risk'!K212/'Population at Risk'!K$5","v":0},{"$f":"'Population at Risk'!L212/'Population at Risk'!L$5","v":0},{"$f":"'Population at Risk'!M212/'Population at Risk'!M$5","v":0},{"$f":"'Population at Risk'!N212/'Population at Risk'!N$5","v":0},{"$f":"'Population at Risk'!O212/'Population at Risk'!O$5","v":0},{"$f":"'Population at Risk'!P212/'Population at Risk'!P$5","v":0},{"$f":"'Population at Risk'!Q212/'Population at Risk'!Q$5","v":0},{"$f":"'Population at Risk'!R212/'Population at Risk'!R$5","v":0},{"$f":"'Population at Risk'!S212/'Population at Risk'!S$5","v":0},{"$f":"'Population at Risk'!T212/'Population at Risk'!T$5","v":0},{"$f":"'Population at Risk'!U212/'Population at Risk'!U$5","v":0},{"$f":"'Population at Risk'!V212/'Population at Risk'!V$5","v":0},{"$f":"'Population at Risk'!W212/'Population at Risk'!W$5","v":0},{"$f":"'Population at Risk'!X212/'Population at Risk'!X$5","v":0},{"$f":"'Population at Risk'!Y212/'Population at Risk'!Y$5","v":0},{"$f":"'Population at Risk'!Z212/'Population at Risk'!Z$5","v":0},{"$f":"'Population at Risk'!AA212/'Population at Risk'!AA$5","v":0},{"$f":"'Population at Risk'!AB212/'Population at Risk'!AB$5","v":0},{"$f":"'Population at Risk'!AC212/'Population at Risk'!AC$5","v":0},{"$f":"'Population at Risk'!AD212/'Population at Risk'!AD$5","v":0},{"$f":"'Population at Risk'!AE212/'Population at Risk'!AE$5","v":0},{"$f":"'Population at Risk'!AF212/'Population at Risk'!AF$5","v":0},{"$f":"'Population at Risk'!AG212/'Population at Risk'!AG$5","v":0},{"$f":"'Population at Risk'!AH212/'Population at Risk'!AH$5","v":0},{"$f":"'Population at Risk'!AI212/'Population at Risk'!AI$5","v":0},{"$f":"'Population at Risk'!AJ212/'Population at Risk'!AJ$5","v":0},{"$f":"'Population at Risk'!AK212/'Population at Risk'!AK$5","v":0},{"$f":"'Population at Risk'!AL212/'Population at Risk'!AL$5","v":0},{"$f":"'Population at Risk'!AM212/'Population at Risk'!AM$5","v":0},{"$f":"'Population at Risk'!AN212/'Population at Risk'!AN$5","v":0},{"$f":"'Population at Risk'!AO212/'Population at Risk'!AO$5","v":0},{"$f":"'Population at Risk'!AP212/'Population at Risk'!AP$5","v":0},{"$f":"'Population at Risk'!AQ212/'Population at Risk'!AQ$5","v":0},{"$f":"'Population at Risk'!AR212/'Population at Risk'!AR$5","v":0},{"$f":"'Population at Risk'!AS212/'Population at Risk'!AS$5","v":0},{"$f":"'Population at Risk'!AT212/'Population at Risk'!AT$5","v":0},{"$f":"'Population at Risk'!AU212/'Population at Risk'!AU$5","v":0},{"$f":"'Population at Risk'!AV212/'Population at Risk'!AV$5","v":0},{"$f":"'Population at Risk'!AW212/'Population at Risk'!AW$5","v":0},{"$f":"'Population at Risk'!AX212/'Population at Risk'!AX$5","v":0},{"$f":"'Population at Risk'!AY212/'Population at Risk'!AY$5","v":0},{"$f":"'Population at Risk'!AZ212/'Population at Risk'!AZ$5","v":0},{"$f":"'Population at Risk'!BA212/'Population at Risk'!BA$5","v":0},{"$f":"'Population at Risk'!BB212/'Population at Risk'!BB$5","v":0},{"$f":"'Population at Risk'!BC212/'Population at Risk'!BC$5","v":0},210]
[null,"Female 5-9",{"$f":"'Population at Risk'!C213/'Population at Risk'!C$5","v":0},{"$f":"'Population at Risk'!D213/'Population at Risk'!D$5","v":0},{"$f":"'Population at Risk'!E213/'Population at Risk'!E$5","v":0},{"$f":"'Population at Risk'!F213/'Population at Risk'!F$5","v":0},{"$f":"'Population at Risk'!G213/'Population at Risk'!G$5","v":0},{"$f":"'Population at Risk'!H213/'Population at Risk'!H$5","v":0},{"$f":"'Population at Risk'!I213/'Population at Risk'!I$5","v":0},{"$f":"'Population at Risk'!J213/'Population at Risk'!J$5","v":0},{"$f":"'Population at Risk'!K213/'Population at Risk'!K$5","v":0},{"$f":"'Population at Risk'!L213/'Population at Risk'!L$5","v":0},{"$f":"'Population at Risk'!M213/'Population at Risk'!M$5","v":0},{"$f":"'Population at Risk'!N213/'Population at Risk'!N$5","v":0},{"$f":"'Population at Risk'!O213/'Population at Risk'!O$5","v":0},{"$f":"'Population at Risk'!P213/'Population at Risk'!P$5","v":0},{"$f":"'Population at Risk'!Q213/'Population at Risk'!Q$5","v":0},{"$f":"'Population at Risk'!R213/'Population at Risk'!R$5","v":0},{"$f":"'Population at Risk'!S213/'Population at Risk'!S$5","v":0},{"$f":"'Population at Risk'!T213/'Population at Risk'!T$5","v":0},{"$f":"'Population at Risk'!U213/'Population at Risk'!U$5","v":0},{"$f":"'Population at Risk'!V213/'Population at Risk'!V$5","v":0},{"$f":"'Population at Risk'!W213/'Population at Risk'!W$5","v":0},{"$f":"'Population at Risk'!X213/'Population at Risk'!X$5","v":0},{"$f":"'Population at Risk'!Y213/'Population at Risk'!Y$5","v":0},{"$f":"'Population at Risk'!Z213/'Population at Risk'!Z$5","v":0},{"$f":"'Population at Risk'!AA213/'Population at Risk'!AA$5","v":0},{"$f":"'Population at Risk'!AB213/'Population at Risk'!AB$5","v":0},{"$f":"'Population at Risk'!AC213/'Population at Risk'!AC$5","v":0},{"$f":"'Population at Risk'!AD213/'Population at Risk'!AD$5","v":0},{"$f":"'Population at Risk'!AE213/'Population at Risk'!AE$5","v":0},{"$f":"'Population at Risk'!AF213/'Population at Risk'!AF$5","v":0},{"$f":"'Population at Risk'!AG213/'Population at Risk'!AG$5","v":0},{"$f":"'Population at Risk'!AH213/'Population at Risk'!AH$5","v":0},{"$f":"'Population at Risk'!AI213/'Population at Risk'!AI$5","v":0},{"$f":"'Population at Risk'!AJ213/'Population at Risk'!AJ$5","v":0},{"$f":"'Population at Risk'!AK213/'Population at Risk'!AK$5","v":0},{"$f":"'Population at Risk'!AL213/'Population at Risk'!AL$5","v":0},{"$f":"'Population at Risk'!AM213/'Population at Risk'!AM$5","v":0},{"$f":"'Population at Risk'!AN213/'Population at Risk'!AN$5","v":0},{"$f":"'Population at Risk'!AO213/'Population at Risk'!AO$5","v":0},{"$f":"'Population at Risk'!AP213/'Population at Risk'!AP$5","v":0},{"$f":"'Population at Risk'!AQ213/'Population at Risk'!AQ$5","v":0},{"$f":"'Population at Risk'!AR213/'Population at Risk'!AR$5","v":0},{"$f":"'Population at Risk'!AS213/'Population at Risk'!AS$5","v":0},{"$f":"'Population at Risk'!AT213/'Population at Risk'!AT$5","v":0},{"$f":"'Population at Risk'!AU213/'Population at Risk'!AU$5","v":0},{"$f":"'Population at Risk'!AV213/'Population at Risk'!AV$5","v":0},{"$f":"'Population at Risk'!AW213/'Population at Risk'!AW$5","v":0},{"$f":"'Population at Risk'!AX213/'Population at Risk'!AX$5","v":0},{"$f":"'Population at Risk'!AY213/'Population at Risk'!AY$5","v":0},{"$f":"'Population at Risk'!AZ213/'Population at Risk'!AZ$5","v":0},{"$f":"'Population at Risk'!BA213/'Population at Risk'!BA$5","v":0},{"$f":"'Population at Risk'!BB213/'Population at Risk'!BB$5","v":0},{"$f":"'Population at Risk'!BC213/'Population at Risk'!BC$5","v":0},211]
[null,"Female 10-15",{"$f":"'Population at Risk'!C214/'Population at Risk'!C$5","v":0},{"$f":"'Population at Risk'!D214/'Population at Risk'!D$5","v":0},{"$f":"'Population at Risk'!E214/'Population at Risk'!E$5","v":0},{"$f":"'Population at Risk'!F214/'Population at Risk'!F$5","v":0},{"$f":"'Population at Risk'!G214/'Population at Risk'!G$5","v":0},{"$f":"'Population at Risk'!H214/'Population at Risk'!H$5","v":0},{"$f":"'Population at Risk'!I214/'Population at Risk'!I$5","v":0},{"$f":"'Population at Risk'!J214/'Population at Risk'!J$5","v":0},{"$f":"'Population at Risk'!K214/'Population at Risk'!K$5","v":0},{"$f":"'Population at Risk'!L214/'Population at Risk'!L$5","v":0},{"$f":"'Population at Risk'!M214/'Population at Risk'!M$5","v":0},{"$f":"'Population at Risk'!N214/'Population at Risk'!N$5","v":0},{"$f":"'Population at Risk'!O214/'Population at Risk'!O$5","v":0},{"$f":"'Population at Risk'!P214/'Population at Risk'!P$5","v":0},{"$f":"'Population at Risk'!Q214/'Population at Risk'!Q$5","v":0},{"$f":"'Population at Risk'!R214/'Population at Risk'!R$5","v":0},{"$f":"'Population at Risk'!S214/'Population at Risk'!S$5","v":0},{"$f":"'Population at Risk'!T214/'Population at Risk'!T$5","v":0},{"$f":"'Population at Risk'!U214/'Population at Risk'!U$5","v":0},{"$f":"'Population at Risk'!V214/'Population at Risk'!V$5","v":0},{"$f":"'Population at Risk'!W214/'Population at Risk'!W$5","v":0},{"$f":"'Population at Risk'!X214/'Population at Risk'!X$5","v":0},{"$f":"'Population at Risk'!Y214/'Population at Risk'!Y$5","v":0},{"$f":"'Population at Risk'!Z214/'Population at Risk'!Z$5","v":0},{"$f":"'Population at Risk'!AA214/'Population at Risk'!AA$5","v":0},{"$f":"'Population at Risk'!AB214/'Population at Risk'!AB$5","v":0},{"$f":"'Population at Risk'!AC214/'Population at Risk'!AC$5","v":0},{"$f":"'Population at Risk'!AD214/'Population at Risk'!AD$5","v":0},{"$f":"'Population at Risk'!AE214/'Population at Risk'!AE$5","v":0},{"$f":"'Population at Risk'!AF214/'Population at Risk'!AF$5","v":0},{"$f":"'Population at Risk'!AG214/'Population at Risk'!AG$5","v":0},{"$f":"'Population at Risk'!AH214/'Population at Risk'!AH$5","v":0},{"$f":"'Population at Risk'!AI214/'Population at Risk'!AI$5","v":0},{"$f":"'Population at Risk'!AJ214/'Population at Risk'!AJ$5","v":0},{"$f":"'Population at Risk'!AK214/'Population at Risk'!AK$5","v":0},{"$f":"'Population at Risk'!AL214/'Population at Risk'!AL$5","v":0},{"$f":"'Population at Risk'!AM214/'Population at Risk'!AM$5","v":0},{"$f":"'Population at Risk'!AN214/'Population at Risk'!AN$5","v":0},{"$f":"'Population at Risk'!AO214/'Population at Risk'!AO$5","v":0},{"$f":"'Population at Risk'!AP214/'Population at Risk'!AP$5","v":0},{"$f":"'Population at Risk'!AQ214/'Population at Risk'!AQ$5","v":0},{"$f":"'Population at Risk'!AR214/'Population at Risk'!AR$5","v":0},{"$f":"'Population at Risk'!AS214/'Population at Risk'!AS$5","v":0},{"$f":"'Population at Risk'!AT214/'Population at Risk'!AT$5","v":0},{"$f":"'Population at Risk'!AU214/'Population at Risk'!AU$5","v":0},{"$f":"'Population at Risk'!AV214/'Population at Risk'!AV$5","v":0},{"$f":"'Population at Risk'!AW214/'Population at Risk'!AW$5","v":0},{"$f":"'Population at Risk'!AX214/'Population at Risk'!AX$5","v":0},{"$f":"'Population at Risk'!AY214/'Population at Risk'!AY$5","v":0},{"$f":"'Population at Risk'!AZ214/'Population at Risk'!AZ$5","v":0},{"$f":"'Population at Risk'!BA214/'Population at Risk'!BA$5","v":0},{"$f":"'Population at Risk'!BB214/'Population at Risk'!BB$5","v":0},{"$f":"'Population at Risk'!BC214/'Population at Risk'!BC$5","v":0},212]
[null,"Female 16-19",{"$f":"'Population at Risk'!C215/'Population at Risk'!C$5","v":9.3942883381853554E-3},{"$f":"'Population at Risk'!D215/'Population at Risk'!D$5","v":9.9114490057073193E-3},{"$f":"'Population at Risk'!E215/'Population at Risk'!E$5","v":1.0437380526855368E-2},{"$f":"'Population at Risk'!F215/'Population at Risk'!F$5","v":5.2669633233172067E-3},{"$f":"'Population at Risk'!G215/'Population at Risk'!G$5","v":1.83444237473087E-3},{"$f":"'Population at Risk'!H215/'Population at Risk'!H$5","v":2.6995992139293985E-3},{"$f":"'Population at Risk'!I215/'Population at Risk'!I$5","v":2.4108798416574203E-3},{"$f":"'Population at Risk'!J215/'Population at Risk'!J$5","v":9.1822037667653265E-3},{"$f":"'Population at Risk'!K215/'Population at Risk'!K$5","v":3.1184595388268357E-3},{"$f":"'Population at Risk'!L215/'Population at Risk'!L$5","v":2.2476452321107316E-3},{"$f":"'Population at Risk'!M215/'Population at Risk'!M$5","v":2.2476452321107316E-3},{"$f":"'Population at Risk'!N215/'Population at Risk'!N$5","v":2.9275163221001797E-3},{"$f":"'Population at Risk'!O215/'Population at Risk'!O$5","v":2.3264948210397528E-3},{"$f":"'Population at Risk'!P215/'Population at Risk'!P$5","v":1.615910306307252E-2},{"$f":"'Population at Risk'!Q215/'Population at Risk'!Q$5","v":4.2299023945577942E-3},{"$f":"'Population at Risk'!R215/'Population at Risk'!R$5","v":1.8552310275033755E-2},{"$f":"'Population at Risk'!S215/'Population at Risk'!S$5","v":7.1778922603084067E-3},{"$f":"'Population at Risk'!T215/'Population at Risk'!T$5","v":1.0352331104475357E-2},{"$f":"'Population at Risk'!U215/'Population at Risk'!U$5","v":0},{"$f":"'Population at Risk'!V215/'Population at Risk'!V$5","v":5.0025396922057947E-3},{"$f":"'Population at Risk'!W215/'Population at Risk'!W$5","v":6.7889780780330993E-3},{"$f":"'Population at Risk'!X215/'Population at Risk'!X$5","v":6.7889780780330993E-3},{"$f":"'Population at Risk'!Y215/'Population at Risk'!Y$5","v":7.1064225602073027E-3},{"$f":"'Population at Risk'!Z215/'Population at Risk'!Z$5","v":2.1401319879378938E-3},{"$f":"'Population at Risk'!AA215/'Population at Risk'!AA$5","v":3.5783631906795886E-3},{"$f":"'Population at Risk'!AB215/'Population at Risk'!AB$5","v":9.3518415857576399E-3},{"$f":"'Population at Risk'!AC215/'Population at Risk'!AC$5","v":4.1141328287810849E-3},{"$f":"'Population at Risk'!AD215/'Population at Risk'!AD$5","v":1.9464716294923996E-3},{"$f":"'Population at Risk'!AE215/'Population at Risk'!AE$5","v":1.9878981972563147E-3},{"$f":"'Population at Risk'!AF215/'Population at Risk'!AF$5","v":1.9003892162983628E-3},{"$f":"'Population at Risk'!AG215/'Population at Risk'!AG$5","v":1.9878981972563147E-3},{"$f":"'Population at Risk'!AH215/'Population at Risk'!AH$5","v":2.5931528874197913E-3},{"$f":"'Population at Risk'!AI215/'Population at Risk'!AI$5","v":7.8815817808382104E-3},{"$f":"'Population at Risk'!AJ215/'Population at Risk'!AJ$5","v":3.6901145189213603E-3},{"$f":"'Population at Risk'!AK215/'Population at Risk'!AK$5","v":6.0852892485660885E-3},{"$f":"'Population at Risk'!AL215/'Population at Risk'!AL$5","v":1.725231699805476E-3},{"$f":"'Population at Risk'!AM215/'Population at Risk'!AM$5","v":2.1081557079014991E-3},{"$f":"'Population at Risk'!AN215/'Population at Risk'!AN$5","v":1.5480370219440476E-3},{"$f":"'Population at Risk'!AO215/'Population at Risk'!AO$5","v":1.5480370219440476E-3},{"$f":"'Population at Risk'!AP215/'Population at Risk'!AP$5","v":3.5376401879627837E-3},{"$f":"'Population at Risk'!AQ215/'Population at Risk'!AQ$5","v":3.6574378344349139E-3},{"$f":"'Population at Risk'!AR215/'Population at Risk'!AR$5","v":4.9667141809312514E-3},{"$f":"'Population at Risk'!AS215/'Population at Risk'!AS$5","v":2.4108798416574203E-3},{"$f":"'Population at Risk'!AT215/'Population at Risk'!AT$5","v":0},{"$f":"'Population at Risk'!AU215/'Population at Risk'!AU$5","v":0},{"$f":"'Population at Risk'!AV215/'Population at Risk'!AV$5","v":4.5122850025137466E-3},{"$f":"'Population at Risk'!AW215/'Population at Risk'!AW$5","v":3.1715965951893371E-3},{"$f":"'Population at Risk'!AX215/'Population at Risk'!AX$5","v":1.3102673359833146E-2},{"$f":"'Population at Risk'!AY215/'Population at Risk'!AY$5","v":5.0810005348922689E-3},{"$f":"'Population at Risk'!AZ215/'Population at Risk'!AZ$5","v":3.66780637813E-3},{"$f":"'Population at Risk'!BA215/'Population at Risk'!BA$5","v":9.3274532666113674E-4},{"$f":"'Population at Risk'!BB215/'Population at Risk'!BB$5","v":5.0035306796725196E-3},{"$f":"'Population at Risk'!BC215/'Population at Risk'!BC$5","v":0},213]
[null,"Female 20-24",{"$f":"'Population at Risk'!C216/'Population at Risk'!C$5","v":1.6557548435113735E-2},{"$f":"'Population at Risk'!D216/'Population at Risk'!D$5","v":1.4303591243350174E-2},{"$f":"'Population at Risk'!E216/'Population at Risk'!E$5","v":1.1439369057433481E-2},{"$f":"'Population at Risk'!F216/'Population at Risk'!F$5","v":4.8653430263322353E-3},{"$f":"'Population at Risk'!G216/'Population at Risk'!G$5","v":2.5189357981379107E-3},{"$f":"'Population at Risk'!H216/'Population at Risk'!H$5","v":2.6309653356091597E-3},{"$f":"'Population at Risk'!I216/'Population at Risk'!I$5","v":2.3305171802688396E-3},{"$f":"'Population at Risk'!J216/'Population at Risk'!J$5","v":9.5681977812130201E-3},{"$f":"'Population at Risk'!K216/'Population at Risk'!K$5","v":2.7932214274154479E-3},{"$f":"'Population at Risk'!L216/'Population at Risk'!L$5","v":2.6728754111587081E-3},{"$f":"'Population at Risk'!M216/'Population at Risk'!M$5","v":2.6728754111587081E-3},{"$f":"'Population at Risk'!N216/'Population at Risk'!N$5","v":3.5945453575154107E-3},{"$f":"'Population at Risk'!O216/'Population at Risk'!O$5","v":2.3264948210397528E-3},{"$f":"'Population at Risk'!P216/'Population at Risk'!P$5","v":1.7003144025488873E-2},{"$f":"'Population at Risk'!Q216/'Population at Risk'!Q$5","v":4.241750860648992E-3},{"$f":"'Population at Risk'!R216/'Population at Risk'!R$5","v":1.947354798922565E-2},{"$f":"'Population at Risk'!S216/'Population at Risk'!S$5","v":1.3498860284148671E-2},{"$f":"'Population at Risk'!T216/'Population at Risk'!T$5","v":2.30955630761445E-2},{"$f":"'Population at Risk'!U216/'Population at Risk'!U$5","v":0},{"$f":"'Population at Risk'!V216/'Population at Risk'!V$5","v":5.9188098869377278E-3},{"$f":"'Population at Risk'!W216/'Population at Risk'!W$5","v":1.231056207622451E-2},{"$f":"'Population at Risk'!X216/'Population at Risk'!X$5","v":1.231056207622451E-2},{"$f":"'Population at Risk'!Y216/'Population at Risk'!Y$5","v":7.7598867036746408E-3},{"$f":"'Population at Risk'!Z216/'Population at Risk'!Z$5","v":5.5499798667060542E-3},{"$f":"'Population at Risk'!AA216/'Population at Risk'!AA$5","v":5.0991288700734643E-3},{"$f":"'Population at Risk'!AB216/'Population at Risk'!AB$5","v":1.3138808159985669E-2},{"$f":"'Population at Risk'!AC216/'Population at Risk'!AC$5","v":6.271961644496081E-3},{"$f":"'Population at Risk'!AD216/'Population at Risk'!AD$5","v":2.2883736026728034E-3},{"$f":"'Population at Risk'!AE216/'Population at Risk'!AE$5","v":2.2177911860546641E-3},{"$f":"'Population at Risk'!AF216/'Population at Risk'!AF$5","v":2.3876685025287121E-3},{"$f":"'Population at Risk'!AG216/'Population at Risk'!AG$5","v":2.2177911860546641E-3},{"$f":"'Population at Risk'!AH216/'Population at Risk'!AH$5","v":2.9439740221327282E-3},{"$f":"'Population at Risk'!AI216/'Population at Risk'!AI$5","v":1.527292163272476E-2},{"$f":"'Population at Risk'!AJ216/'Population at Risk'!AJ$5","v":4.5507065975390632E-3},{"$f":"'Population at Risk'!AK216/'Population at Risk'!AK$5","v":6.363223132515021E-3},{"$f":"'Population at Risk'!AL216/'Population at Risk'!AL$5","v":1.67805739551392E-3},{"$f":"'Population at Risk'!AM216/'Population at Risk'!AM$5","v":2.301023828573555E-3},{"$f":"'Population at Risk'!AN216/'Population at Risk'!AN$5","v":2.6197549602130039E-3},{"$f":"'Population at Risk'!AO216/'Population at Risk'!AO$5","v":2.6197549602130039E-3},{"$f":"'Population at Risk'!AP216/'Population at Risk'!AP$5","v":4.035998230314683E-3},{"$f":"'Population at Risk'!AQ216/'Population at Risk'!AQ$5","v":4.3175369088315893E-3},{"$f":"'Population at Risk'!AR216/'Population at Risk'!AR$5","v":7.4718895899849478E-3},{"$f":"'Population at Risk'!AS216/'Population at Risk'!AS$5","v":2.3305171802688396E-3},{"$f":"'Population at Risk'!AT216/'Population at Risk'!AT$5","v":0},{"$f":"'Population at Risk'!AU216/'Population at Risk'!AU$5","v":0},{"$f":"'Population at Risk'!AV216/'Population at Risk'!AV$5","v":4.3273552892959697E-3},{"$f":"'Population at Risk'!AW216/'Population at Risk'!AW$5","v":3.7114428241577352E-3},{"$f":"'Population at Risk'!AX216/'Population at Risk'!AX$5","v":1.394446522373304E-2},{"$f":"'Population at Risk'!AY216/'Population at Risk'!AY$5","v":7.7552800355329731E-3},{"$f":"'Population at Risk'!AZ216/'Population at Risk'!AZ$5","v":4.0817281010537615E-3},{"$f":"'Population at Risk'!BA216/'Population at Risk'!BA$5","v":1.0790583190785701E-3},{"$f":"'Population at Risk'!BB216/'Population at Risk'!BB$5","v":4.6716011259841711E-3},{"$f":"'Population at Risk'!BC216/'Population at Risk'!BC$5","v":0},214]
[null,"Female 25-29",{"$f":"'Population at Risk'!C217/'Population at Risk'!C$5","v":2.3057468564668861E-2},{"$f":"'Population at Risk'!D217/'Population at Risk'!D$5","v":1.9233559879236011E-2},{"$f":"'Population at Risk'!E217/'Population at Risk'!E$5","v":1.4424386845393043E-2},{"$f":"'Population at Risk'!F217/'Population at Risk'!F$5","v":5.7384091147981587E-3},{"$f":"'Population at Risk'!G217/'Population at Risk'!G$5","v":2.4863941608877613E-3},{"$f":"'Population at Risk'!H217/'Population at Risk'!H$5","v":2.7479726038859686E-3},{"$f":"'Population at Risk'!I217/'Population at Risk'!I$5","v":2.2564785206911644E-3},{"$f":"'Population at Risk'!J217/'Population at Risk'!J$5","v":7.359586157986619E-3},{"$f":"'Population at Risk'!K217/'Population at Risk'!K$5","v":2.5227616499516486E-3},{"$f":"'Population at Risk'!L217/'Population at Risk'!L$5","v":3.8216341334876211E-3},{"$f":"'Population at Risk'!M217/'Population at Risk'!M$5","v":3.8216341334876211E-3},{"$f":"'Population at Risk'!N217/'Population at Risk'!N$5","v":3.6821455449734708E-3},{"$f":"'Population at Risk'!O217/'Population at Risk'!O$5","v":3.1034674522909711E-3},{"$f":"'Population at Risk'!P217/'Population at Risk'!P$5","v":1.6084488945094552E-2},{"$f":"'Population at Risk'!Q217/'Population at Risk'!Q$5","v":5.3651437123567163E-3},{"$f":"'Population at Risk'!R217/'Population at Risk'!R$5","v":1.9852471851081164E-2},{"$f":"'Population at Risk'!S217/'Population at Risk'!S$5","v":1.2893168289382589E-2},{"$f":"'Population at Risk'!T217/'Population at Risk'!T$5","v":2.466905433876574E-2},{"$f":"'Population at Risk'!U217/'Population at Risk'!U$5","v":0},{"$f":"'Population at Risk'!V217/'Population at Risk'!V$5","v":7.0779981639443402E-3},{"$f":"'Population at Risk'!W217/'Population at Risk'!W$5","v":7.1003433448126917E-3},{"$f":"'Population at Risk'!X217/'Population at Risk'!X$5","v":7.1003433448126917E-3},{"$f":"'Population at Risk'!Y217/'Population at Risk'!Y$5","v":7.2376226564795539E-3},{"$f":"'Population at Risk'!Z217/'Population at Risk'!Z$5","v":6.1233099102866511E-3},{"$f":"'Population at Risk'!AA217/'Population at Risk'!AA$5","v":5.2995378512701169E-3},{"$f":"'Population at Risk'!AB217/'Population at Risk'!AB$5","v":1.765601833927145E-2},{"$f":"'Population at Risk'!AC217/'Population at Risk'!AC$5","v":6.5210528521537116E-3},{"$f":"'Population at Risk'!AD217/'Population at Risk'!AD$5","v":3.1583433608126017E-3},{"$f":"'Population at Risk'!AE217/'Population at Risk'!AE$5","v":3.3869620848415395E-3},{"$f":"'Population at Risk'!AF217/'Population at Risk'!AF$5","v":2.0731078797128115E-3},{"$f":"'Population at Risk'!AG217/'Population at Risk'!AG$5","v":3.3869620848415395E-3},{"$f":"'Population at Risk'!AH217/'Population at Risk'!AH$5","v":3.05493261350898E-3},{"$f":"'Population at Risk'!AI217/'Population at Risk'!AI$5","v":1.6634386342979816E-2},{"$f":"'Population at Risk'!AJ217/'Population at Risk'!AJ$5","v":5.6610459713560346E-3},{"$f":"'Population at Risk'!AK217/'Population at Risk'!AK$5","v":8.4799181066867371E-3},{"$f":"'Population at Risk'!AL217/'Population at Risk'!AL$5","v":1.5257967939631715E-3},{"$f":"'Population at Risk'!AM217/'Population at Risk'!AM$5","v":2.4492501160916676E-3},{"$f":"'Population at Risk'!AN217/'Population at Risk'!AN$5","v":3.9996280051201811E-3},{"$f":"'Population at Risk'!AO217/'Population at Risk'!AO$5","v":3.9996280051201811E-3},{"$f":"'Population at Risk'!AP217/'Population at Risk'!AP$5","v":4.6452875295732001E-3},{"$f":"'Population at Risk'!AQ217/'Population at Risk'!AQ$5","v":4.4525036310259147E-3},{"$f":"'Population at Risk'!AR217/'Population at Risk'!AR$5","v":7.9153889797899651E-3},{"$f":"'Population at Risk'!AS217/'Population at Risk'!AS$5","v":2.2564785206911644E-3},{"$f":"'Population at Risk'!AT217/'Population at Risk'!AT$5","v":0},{"$f":"'Population at Risk'!AU217/'Population at Risk'!AU$5","v":0},{"$f":"'Population at Risk'!AV217/'Population at Risk'!AV$5","v":3.9798861188099352E-3},{"$f":"'Population at Risk'!AW217/'Population at Risk'!AW$5","v":3.7775519426688831E-3},{"$f":"'Population at Risk'!AX217/'Population at Risk'!AX$5","v":1.048700624154651E-2},{"$f":"'Population at Risk'!AY217/'Population at Risk'!AY$5","v":5.6907656994573692E-3},{"$f":"'Population at Risk'!AZ217/'Population at Risk'!AZ$5","v":4.4997903767073797E-3},{"$f":"'Population at Risk'!BA217/'Population at Risk'!BA$5","v":7.735522767170109E-4},{"$f":"'Population at Risk'!BB217/'Population at Risk'!BB$5","v":5.6967384551221932E-3},{"$f":"'Population at Risk'!BC217/'Population at Risk'!BC$5","v":0},215]
[null,"Female 30-34",{"$f":"'Population at Risk'!C218/'Population at Risk'!C$5","v":1.9725862189122329E-2},{"$f":"'Population at Risk'!D218/'Population at Risk'!D$5","v":2.0172550843196094E-2},{"$f":"'Population at Risk'!E218/'Population at Risk'!E$5","v":2.0511298048993851E-2},{"$f":"'Population at Risk'!F218/'Population at Risk'!F$5","v":7.0231275733350605E-3},{"$f":"'Population at Risk'!G218/'Population at Risk'!G$5","v":1.9073708631467759E-3},{"$f":"'Population at Risk'!H218/'Population at Risk'!H$5","v":3.228630642770511E-3},{"$f":"'Population at Risk'!I218/'Population at Risk'!I$5","v":3.984541185271106E-3},{"$f":"'Population at Risk'!J218/'Population at Risk'!J$5","v":6.2699611057376592E-3},{"$f":"'Population at Risk'!K218/'Population at Risk'!K$5","v":3.3557489871998344E-3},{"$f":"'Population at Risk'!L218/'Population at Risk'!L$5","v":3.8216341334876211E-3},{"$f":"'Population at Risk'!M218/'Population at Risk'!M$5","v":3.8216341334876211E-3},{"$f":"'Population at Risk'!N218/'Population at Risk'!N$5","v":3.566898423065068E-3},{"$f":"'Population at Risk'!O218/'Population at Risk'!O$5","v":3.5858245636441128E-3},{"$f":"'Population at Risk'!P218/'Population at Risk'!P$5","v":1.7164904001955208E-2},{"$f":"'Population at Risk'!Q218/'Population at Risk'!Q$5","v":6.2200292489410286E-3},{"$f":"'Population at Risk'!R218/'Population at Risk'!R$5","v":1.9640900215012802E-2},{"$f":"'Population at Risk'!S218/'Population at Risk'!S$5","v":1.1721914659926027E-2},{"$f":"'Population at Risk'!T218/'Population at Risk'!T$5","v":2.0143366069704922E-2},{"$f":"'Population at Risk'!U218/'Population at Risk'!U$5","v":0},{"$f":"'Population at Risk'!V218/'Population at Risk'!V$5","v":9.5139325969901215E-3},{"$f":"'Population at Risk'!W218/'Population at Risk'!W$5","v":7.4899066960291225E-3},{"$f":"'Population at Risk'!X218/'Population at Risk'!X$5","v":7.4899066960291225E-3},{"$f":"'Population at Risk'!Y218/'Population at Risk'!Y$5","v":7.9165827908142666E-3},{"$f":"'Population at Risk'!Z218/'Population at Risk'!Z$5","v":4.5795282462984203E-3},{"$f":"'Population at Risk'!AA218/'Population at Risk'!AA$5","v":5.0012343649076174E-3},{"$f":"'Population at Risk'!AB218/'Population at Risk'!AB$5","v":1.8575098745973254E-2},{"$f":"'Population at Risk'!AC218/'Population at Risk'!AC$5","v":5.7630213323394599E-3},{"$f":"'Population at Risk'!AD218/'Population at Risk'!AD$5","v":3.242565850434271E-3},{"$f":"'Population at Risk'!AE218/'Population at Risk'!AE$5","v":3.6897699533538623E-3},{"$f":"'Population at Risk'!AF218/'Population at Risk'!AF$5","v":2.170095382857271E-3},{"$f":"'Population at Risk'!AG218/'Population at Risk'!AG$5","v":3.6897699533538623E-3},{"$f":"'Population at Risk'!AH218/'Population at Risk'!AH$5","v":3.6004562944927264E-3},{"$f":"'Population at Risk'!AI218/'Population at Risk'!AI$5","v":1.4448929185597171E-2},{"$f":"'Population at Risk'!AJ218/'Population at Risk'!AJ$5","v":6.9100446527153893E-3},{"$f":"'Population at Risk'!AK218/'Population at Risk'!AK$5","v":9.2805970695498622E-3},{"$f":"'Population at Risk'!AL218/'Population at Risk'!AL$5","v":2.2048602022654621E-3},{"$f":"'Population at Risk'!AM218/'Population at Risk'!AM$5","v":2.8791185038138786E-3},{"$f":"'Population at Risk'!AN218/'Population at Risk'!AN$5","v":2.8886202259201309E-3},{"$f":"'Population at Risk'!AO218/'Population at Risk'!AO$5","v":2.8886202259201309E-3},{"$f":"'Population at Risk'!AP218/'Population at Risk'!AP$5","v":5.8240728989197828E-3},{"$f":"'Population at Risk'!AQ218/'Population at Risk'!AQ$5","v":4.5619914252314703E-3},{"$f":"'Population at Risk'!AR218/'Population at Risk'!AR$5","v":7.7349324888849897E-3},{"$f":"'Population at Risk'!AS218/'Population at Risk'!AS$5","v":3.984541185271106E-3},{"$f":"'Population at Risk'!AT218/'Population at Risk'!AT$5","v":0},{"$f":"'Population at Risk'!AU218/'Population at Risk'!AU$5","v":0},{"$f":"'Population at Risk'!AV218/'Population at Risk'!AV$5","v":4.1869322174763477E-3},{"$f":"'Population at Risk'!AW218/'Population at Risk'!AW$5","v":4.4611089608661099E-3},{"$f":"'Population at Risk'!AX218/'Population at Risk'!AX$5","v":8.1649918349522756E-3},{"$f":"'Population at Risk'!AY218/'Population at Risk'!AY$5","v":6.1957095318485936E-3},{"$f":"'Population at Risk'!AZ218/'Population at Risk'!AZ$5","v":5.0862220532649207E-3},{"$f":"'Population at Risk'!BA218/'Population at Risk'!BA$5","v":9.328130395705131E-4},{"$f":"'Population at Risk'!BB218/'Population at Risk'!BB$5","v":6.7137400853654831E-3},{"$f":"'Population at Risk'!BC218/'Population at Risk'!BC$5","v":0},216]
[null,"Female 35-39",{"$f":"'Population at Risk'!C219/'Population at Risk'!C$5","v":1.2937141560393226E-2},{"$f":"'Population at Risk'!D219/'Population at Risk'!D$5","v":1.4569889753584805E-2},{"$f":"'Population at Risk'!E219/'Population at Risk'!E$5","v":1.6396684115051699E-2},{"$f":"'Population at Risk'!F219/'Population at Risk'!F$5","v":6.0319217919324519E-3},{"$f":"'Population at Risk'!G219/'Population at Risk'!G$5","v":2.1025619748286923E-3},{"$f":"'Population at Risk'!H219/'Population at Risk'!H$5","v":2.8653527928027647E-3},{"$f":"'Population at Risk'!I219/'Population at Risk'!I$5","v":3.2640507951836079E-3},{"$f":"'Population at Risk'!J219/'Population at Risk'!J$5","v":5.6188548338289741E-3},{"$f":"'Population at Risk'!K219/'Population at Risk'!K$5","v":3.3930830350466725E-3},{"$f":"'Population at Risk'!L219/'Population at Risk'!L$5","v":2.7608797532622663E-3},{"$f":"'Population at Risk'!M219/'Population at Risk'!M$5","v":2.7608797532622663E-3},{"$f":"'Population at Risk'!N219/'Population at Risk'!N$5","v":2.4222475443962522E-3},{"$f":"'Population at Risk'!O219/'Population at Risk'!O$5","v":2.7020699265982826E-3},{"$f":"'Population at Risk'!P219/'Population at Risk'!P$5","v":1.8093942223926043E-2},{"$f":"'Population at Risk'!Q219/'Population at Risk'!Q$5","v":5.957513952726738E-3},{"$f":"'Population at Risk'!R219/'Population at Risk'!R$5","v":2.2272782587546787E-2},{"$f":"'Population at Risk'!S219/'Population at Risk'!S$5","v":8.9198674983524563E-3},{"$f":"'Population at Risk'!T219/'Population at Risk'!T$5","v":1.4316295525397576E-2},{"$f":"'Population at Risk'!U219/'Population at Risk'!U$5","v":0},{"$f":"'Population at Risk'!V219/'Population at Risk'!V$5","v":7.2889264487464838E-3},{"$f":"'Population at Risk'!W219/'Population at Risk'!W$5","v":6.1929658527046594E-3},{"$f":"'Population at Risk'!X219/'Population at Risk'!X$5","v":6.1929658527046594E-3},{"$f":"'Population at Risk'!Y219/'Population at Risk'!Y$5","v":6.4729169680638275E-3},{"$f":"'Population at Risk'!Z219/'Population at Risk'!Z$5","v":2.6537551629628271E-3},{"$f":"'Population at Risk'!AA219/'Population at Risk'!AA$5","v":4.2816313977967488E-3},{"$f":"'Population at Risk'!AB219/'Population at Risk'!AB$5","v":1.3229998111484729E-2},{"$f":"'Population at Risk'!AC219/'Population at Risk'!AC$5","v":4.8417745686203627E-3},{"$f":"'Population at Risk'!AD219/'Population at Risk'!AD$5","v":2.6800220924873375E-3},{"$f":"'Population at Risk'!AE219/'Population at Risk'!AE$5","v":2.8764128596498982E-3},{"$f":"'Population at Risk'!AF219/'Population at Risk'!AF$5","v":2.0669795484701669E-3},{"$f":"'Population at Risk'!AG219/'Population at Risk'!AG$5","v":2.8764128596498982E-3},{"$f":"'Population at Risk'!AH219/'Population at Risk'!AH$5","v":3.2512986582916592E-3},{"$f":"'Population at Risk'!AI219/'Population at Risk'!AI$5","v":1.0751520926991625E-2},{"$f":"'Population at Risk'!AJ219/'Population at Risk'!AJ$5","v":5.686067833764458E-3},{"$f":"'Population at Risk'!AK219/'Population at Risk'!AK$5","v":5.4428022217979282E-3},{"$f":"'Population at Risk'!AL219/'Population at Risk'!AL$5","v":1.9468603277639606E-3},{"$f":"'Population at Risk'!AM219/'Population at Risk'!AM$5","v":2.5370437492430432E-3},{"$f":"'Population at Risk'!AN219/'Population at Risk'!AN$5","v":3.2114432738506943E-3},{"$f":"'Population at Risk'!AO219/'Population at Risk'!AO$5","v":3.2114432738506943E-3},{"$f":"'Population at Risk'!AP219/'Population at Risk'!AP$5","v":4.4083910111567945E-3},{"$f":"'Population at Risk'!AQ219/'Population at Risk'!AQ$5","v":4.1750576836518559E-3},{"$f":"'Population at Risk'!AR219/'Population at Risk'!AR$5","v":6.051444432212197E-3},{"$f":"'Population at Risk'!AS219/'Population at Risk'!AS$5","v":3.2640507951836079E-3},{"$f":"'Population at Risk'!AT219/'Population at Risk'!AT$5","v":0},{"$f":"'Population at Risk'!AU219/'Population at Risk'!AU$5","v":0},{"$f":"'Population at Risk'!AV219/'Population at Risk'!AV$5","v":4.3364497107364402E-3},{"$f":"'Population at Risk'!AW219/'Population at Risk'!AW$5","v":4.1039063814625994E-3},{"$f":"'Population at Risk'!AX219/'Population at Risk'!AX$5","v":7.0710700511087627E-3},{"$f":"'Population at Risk'!AY219/'Population at Risk'!AY$5","v":4.9242438871817343E-3},{"$f":"'Population at Risk'!AZ219/'Population at Risk'!AZ$5","v":3.8555407177800465E-3},{"$f":"'Population at Risk'!BA219/'Population at Risk'!BA$5","v":1.0449924956660087E-3},{"$f":"'Population at Risk'!BB219/'Population at Risk'!BB$5","v":5.8891646084112221E-3},{"$f":"'Population at Risk'!BC219/'Population at Risk'!BC$5","v":0},217]
[null,"Female 40-44",{"$f":"'Population at Risk'!C220/'Population at Risk'!C$5","v":1.192155487763923E-2},{"$f":"'Population at Risk'!D220/'Population at Risk'!D$5","v":1.448884300511445E-2},{"$f":"'Population at Risk'!E220/'Population at Risk'!E$5","v":1.744501339118474E-2},{"$f":"'Population at Risk'!F220/'Population at Risk'!F$5","v":7.4376218269219269E-3},{"$f":"'Population at Risk'!G220/'Population at Risk'!G$5","v":2.4279584709331324E-3},{"$f":"'Population at Risk'!H220/'Population at Risk'!H$5","v":3.6531505192911162E-3},{"$f":"'Population at Risk'!I220/'Population at Risk'!I$5","v":5.0482586253482809E-3},{"$f":"'Population at Risk'!J220/'Population at Risk'!J$5","v":7.1457175604129342E-3},{"$f":"'Population at Risk'!K220/'Population at Risk'!K$5","v":4.3725296843384956E-3},{"$f":"'Population at Risk'!L220/'Population at Risk'!L$5","v":2.9830195035247475E-3},{"$f":"'Population at Risk'!M220/'Population at Risk'!M$5","v":2.9830195035247475E-3},{"$f":"'Population at Risk'!N220/'Population at Risk'!N$5","v":2.8457173948151782E-3},{"$f":"'Population at Risk'!O220/'Population at Risk'!O$5","v":3.5314181218908244E-3},{"$f":"'Population at Risk'!P220/'Population at Risk'!P$5","v":2.1012680740888155E-2},{"$f":"'Population at Risk'!Q220/'Population at Risk'!Q$5","v":6.9215480287134279E-3},{"$f":"'Population at Risk'!R220/'Population at Risk'!R$5","v":2.5149197790825081E-2},{"$f":"'Population at Risk'!S220/'Population at Risk'!S$5","v":9.3448783552880343E-3},{"$f":"'Population at Risk'!T220/'Population at Risk'!T$5","v":1.3644545111162391E-2},{"$f":"'Population at Risk'!U220/'Population at Risk'!U$5","v":0},{"$f":"'Population at Risk'!V220/'Population at Risk'!V$5","v":8.8764127466662481E-3},{"$f":"'Population at Risk'!W220/'Population at Risk'!W$5","v":7.1139433301456922E-3},{"$f":"'Population at Risk'!X220/'Population at Risk'!X$5","v":7.1139433301456922E-3},{"$f":"'Population at Risk'!Y220/'Population at Risk'!Y$5","v":8.0342918004232215E-3},{"$f":"'Population at Risk'!Z220/'Population at Risk'!Z$5","v":2.4712356341890351E-3},{"$f":"'Population at Risk'!AA220/'Population at Risk'!AA$5","v":4.6719849319715682E-3},{"$f":"'Population at Risk'!AB220/'Population at Risk'!AB$5","v":1.3417615639562211E-2},{"$f":"'Population at Risk'!AC220/'Population at Risk'!AC$5","v":5.2379131406356241E-3},{"$f":"'Population at Risk'!AD220/'Population at Risk'!AD$5","v":3.0947137326643626E-3},{"$f":"'Population at Risk'!AE220/'Population at Risk'!AE$5","v":3.3214738751831201E-3},{"$f":"'Population at Risk'!AF220/'Population at Risk'!AF$5","v":2.6995465654588817E-3},{"$f":"'Population at Risk'!AG220/'Population at Risk'!AG$5","v":3.3214738751831201E-3},{"$f":"'Population at Risk'!AH220/'Population at Risk'!AH$5","v":3.6308172850712853E-3},{"$f":"'Population at Risk'!AI220/'Population at Risk'!AI$5","v":1.0803828193774866E-2},{"$f":"'Population at Risk'!AJ220/'Population at Risk'!AJ$5","v":5.8887159536260836E-3},{"$f":"'Population at Risk'!AK220/'Population at Risk'!AK$5","v":7.1812894179495998E-3},{"$f":"'Population at Risk'!AL220/'Population at Risk'!AL$5","v":2.4951849137481142E-3},{"$f":"'Population at Risk'!AM220/'Population at Risk'!AM$5","v":2.7305055795424642E-3},{"$f":"'Population at Risk'!AN220/'Population at Risk'!AN$5","v":2.3405434029759296E-3},{"$f":"'Population at Risk'!AO220/'Population at Risk'!AO$5","v":2.3405434029759296E-3},{"$f":"'Population at Risk'!AP220/'Population at Risk'!AP$5","v":5.5313435976960066E-3},{"$f":"'Population at Risk'!AQ220/'Population at Risk'!AQ$5","v":4.7606385793246544E-3},{"$f":"'Population at Risk'!AR220/'Population at Risk'!AR$5","v":6.5603436670389264E-3},{"$f":"'Population at Risk'!AS220/'Population at Risk'!AS$5","v":5.0482586253482809E-3},{"$f":"'Population at Risk'!AT220/'Population at Risk'!AT$5","v":0},{"$f":"'Population at Risk'!AU220/'Population at Risk'!AU$5","v":0},{"$f":"'Population at Risk'!AV220/'Population at Risk'!AV$5","v":5.4015426221453913E-3},{"$f":"'Population at Risk'!AW220/'Population at Risk'!AW$5","v":4.7061260007896103E-3},{"$f":"'Population at Risk'!AX220/'Population at Risk'!AX$5","v":8.9559451909153581E-3},{"$f":"'Population at Risk'!AY220/'Population at Risk'!AY$5","v":5.8191270748207697E-3},{"$f":"'Population at Risk'!AZ220/'Population at Risk'!AZ$5","v":4.7153641384845386E-3},{"$f":"'Population at Risk'!BA220/'Population at Risk'!BA$5","v":1.0282726157353529E-3},{"$f":"'Population at Risk'!BB220/'Population at Risk'!BB$5","v":7.3783140561487935E-3},{"$f":"'Population at Risk'!BC220/'Population at Risk'!BC$5","v":0},218]
[null,"Female 45-49",{"$f":"'Population at Risk'!C221/'Population at Risk'!C$5","v":1.0188476823411348E-2},{"$f":"'Population at Risk'!D221/'Population at Risk'!D$5","v":1.2438781052893399E-2},{"$f":"'Population at Risk'!E221/'Population at Risk'!E$5","v":1.5032549829043415E-2},{"$f":"'Population at Risk'!F221/'Population at Risk'!F$5","v":6.8627757111049533E-3},{"$f":"'Population at Risk'!G221/'Population at Risk'!G$5","v":2.6521482126341798E-3},{"$f":"'Population at Risk'!H221/'Population at Risk'!H$5","v":3.723316041105621E-3},{"$f":"'Population at Risk'!I221/'Population at Risk'!I$5","v":4.1533428086608978E-3},{"$f":"'Population at Risk'!J221/'Population at Risk'!J$5","v":7.4571909332239068E-3},{"$f":"'Population at Risk'!K221/'Population at Risk'!K$5","v":4.1416091678729838E-3},{"$f":"'Population at Risk'!L221/'Population at Risk'!L$5","v":3.1968797788636495E-3},{"$f":"'Population at Risk'!M221/'Population at Risk'!M$5","v":3.1968797788636495E-3},{"$f":"'Population at Risk'!N221/'Population at Risk'!N$5","v":2.9029175816688516E-3},{"$f":"'Population at Risk'!O221/'Population at Risk'!O$5","v":3.2480666545710332E-3},{"$f":"'Population at Risk'!P221/'Population at Risk'!P$5","v":2.0313912405468978E-2},{"$f":"'Population at Risk'!Q221/'Population at Risk'!Q$5","v":6.7905937914184275E-3},{"$f":"'Population at Risk'!R221/'Population at Risk'!R$5","v":2.3671468356634858E-2},{"$f":"'Population at Risk'!S221/'Population at Risk'!S$5","v":8.2289541788845167E-3},{"$f":"'Population at Risk'!T221/'Population at Risk'!T$5","v":1.1678053275751426E-2},{"$f":"'Population at Risk'!U221/'Population at Risk'!U$5","v":0},{"$f":"'Population at Risk'!V221/'Population at Risk'!V$5","v":7.6727827668407866E-3},{"$f":"'Population at Risk'!W221/'Population at Risk'!W$5","v":6.267539241998122E-3},{"$f":"'Population at Risk'!X221/'Population at Risk'!X$5","v":6.267539241998122E-3},{"$f":"'Population at Risk'!Y221/'Population at Risk'!Y$5","v":7.5853026481508901E-3},{"$f":"'Population at Risk'!Z221/'Population at Risk'!Z$5","v":2.2397926362891477E-3},{"$f":"'Population at Risk'!AA221/'Population at Risk'!AA$5","v":4.5006323481725742E-3},{"$f":"'Population at Risk'!AB221/'Population at Risk'!AB$5","v":1.1585177245608595E-2},{"$f":"'Population at Risk'!AC221/'Population at Risk'!AC$5","v":5.0362613810474681E-3},{"$f":"'Population at Risk'!AD221/'Population at Risk'!AD$5","v":2.8468162700693161E-3},{"$f":"'Population at Risk'!AE221/'Population at Risk'!AE$5","v":2.9175527956166744E-3},{"$f":"'Population at Risk'!AF221/'Population at Risk'!AF$5","v":2.8177259782485448E-3},{"$f":"'Population at Risk'!AG221/'Population at Risk'!AG$5","v":2.9175527956166744E-3},{"$f":"'Population at Risk'!AH221/'Population at Risk'!AH$5","v":3.515163554367623E-3},{"$f":"'Population at Risk'!AI221/'Population at Risk'!AI$5","v":9.5453961975948583E-3},{"$f":"'Population at Risk'!AJ221/'Population at Risk'!AJ$5","v":5.377548209174807E-3},{"$f":"'Population at Risk'!AK221/'Population at Risk'!AK$5","v":6.6124621000566083E-3},{"$f":"'Population at Risk'!AL221/'Population at Risk'!AL$5","v":2.655683638634089E-3},{"$f":"'Population at Risk'!AM221/'Population at Risk'!AM$5","v":2.8208139422156858E-3},{"$f":"'Population at Risk'!AN221/'Population at Risk'!AN$5","v":3.2769049651124754E-3},{"$f":"'Population at Risk'!AO221/'Population at Risk'!AO$5","v":3.2769049651124754E-3},{"$f":"'Population at Risk'!AP221/'Population at Risk'!AP$5","v":5.2796067571424174E-3},{"$f":"'Population at Risk'!AQ221/'Population at Risk'!AQ$5","v":4.9408751932041618E-3},{"$f":"'Population at Risk'!AR221/'Population at Risk'!AR$5","v":6.0271679695466322E-3},{"$f":"'Population at Risk'!AS221/'Population at Risk'!AS$5","v":4.1533428086608978E-3},{"$f":"'Population at Risk'!AT221/'Population at Risk'!AT$5","v":0},{"$f":"'Population at Risk'!AU221/'Population at Risk'!AU$5","v":0},{"$f":"'Population at Risk'!AV221/'Population at Risk'!AV$5","v":5.7946760171818873E-3},{"$f":"'Population at Risk'!AW221/'Population at Risk'!AW$5","v":4.3435517917154243E-3},{"$f":"'Population at Risk'!AX221/'Population at Risk'!AX$5","v":9.61511543795226E-3},{"$f":"'Population at Risk'!AY221/'Population at Risk'!AY$5","v":5.3491232240194453E-3},{"$f":"'Population at Risk'!AZ221/'Population at Risk'!AZ$5","v":4.5460885791813576E-3},{"$f":"'Population at Risk'!BA221/'Population at Risk'!BA$5","v":1.2146078204287073E-3},{"$f":"'Population at Risk'!BB221/'Population at Risk'!BB$5","v":7.117930598603087E-3},{"$f":"'Population at Risk'!BC221/'Population at Risk'!BC$5","v":0},219]
[null,"Female 50-54",{"$f":"'Population at Risk'!C222/'Population at Risk'!C$5","v":1.0854854623614548E-2},{"$f":"'Population at Risk'!D222/'Population at Risk'!D$5","v":1.2568893825413202E-2},{"$f":"'Population at Risk'!E222/'Population at Risk'!E$5","v":1.4513763462660667E-2},{"$f":"'Population at Risk'!F222/'Population at Risk'!F$5","v":7.0396079686917065E-3},{"$f":"'Population at Risk'!G222/'Population at Risk'!G$5","v":2.7727004041175514E-3},{"$f":"'Population at Risk'!H222/'Population at Risk'!H$5","v":3.8333739801964181E-3},{"$f":"'Population at Risk'!I222/'Population at Risk'!I$5","v":3.740535916927868E-3},{"$f":"'Population at Risk'!J222/'Population at Risk'!J$5","v":7.3155642244848119E-3},{"$f":"'Population at Risk'!K222/'Population at Risk'!K$5","v":4.4083568769902274E-3},{"$f":"'Population at Risk'!L222/'Population at Risk'!L$5","v":3.8464449928957058E-3},{"$f":"'Population at Risk'!M222/'Population at Risk'!M$5","v":3.8464449928957058E-3},{"$f":"'Population at Risk'!N222/'Population at Risk'!N$5","v":3.0898736320105224E-3},{"$f":"'Population at Risk'!O222/'Population at Risk'!O$5","v":3.1031116137885243E-3},{"$f":"'Population at Risk'!P222/'Population at Risk'!P$5","v":2.2172056403671401E-2},{"$f":"'Population at Risk'!Q222/'Population at Risk'!Q$5","v":6.3819409000014406E-3},{"$f":"'Population at Risk'!R222/'Population at Risk'!R$5","v":2.3702669764837803E-2},{"$f":"'Population at Risk'!S222/'Population at Risk'!S$5","v":8.1158498561150587E-3},{"$f":"'Population at Risk'!T222/'Population at Risk'!T$5","v":1.1890771275267374E-2},{"$f":"'Population at Risk'!U222/'Population at Risk'!U$5","v":0},{"$f":"'Population at Risk'!V222/'Population at Risk'!V$5","v":7.0600446377573883E-3},{"$f":"'Population at Risk'!W222/'Population at Risk'!W$5","v":6.0767597700867306E-3},{"$f":"'Population at Risk'!X222/'Population at Risk'!X$5","v":6.0767597700867306E-3},{"$f":"'Population at Risk'!Y222/'Population at Risk'!Y$5","v":7.2065824369105975E-3},{"$f":"'Population at Risk'!Z222/'Population at Risk'!Z$5","v":2.2756293184697739E-3},{"$f":"'Population at Risk'!AA222/'Population at Risk'!AA$5","v":4.7053613568635152E-3},{"$f":"'Population at Risk'!AB222/'Population at Risk'!AB$5","v":1.1635905991073765E-2},{"$f":"'Population at Risk'!AC222/'Population at Risk'!AC$5","v":5.2613032370947381E-3},{"$f":"'Population at Risk'!AD222/'Population at Risk'!AD$5","v":2.9933801094533382E-3},{"$f":"'Population at Risk'!AE222/'Population at Risk'!AE$5","v":3.0730232960633681E-3},{"$f":"'Population at Risk'!AF222/'Population at Risk'!AF$5","v":2.8534839221349474E-3},{"$f":"'Population at Risk'!AG222/'Population at Risk'!AG$5","v":3.0730232960633681E-3},{"$f":"'Population at Risk'!AH222/'Population at Risk'!AH$5","v":3.6825012151797533E-3},{"$f":"'Population at Risk'!AI222/'Population at Risk'!AI$5","v":9.5005462904383109E-3},{"$f":"'Population at Risk'!AJ222/'Population at Risk'!AJ$5","v":5.0713532933499075E-3},{"$f":"'Population at Risk'!AK222/'Population at Risk'!AK$5","v":6.2045504770011682E-3},{"$f":"'Population at Risk'!AL222/'Population at Risk'!AL$5","v":2.5666663099647899E-3},{"$f":"'Population at Risk'!AM222/'Population at Risk'!AM$5","v":2.7756022901801731E-3},{"$f":"'Population at Risk'!AN222/'Population at Risk'!AN$5","v":2.9273684355004782E-3},{"$f":"'Population at Risk'!AO222/'Population at Risk'!AO$5","v":2.9273684355004782E-3},{"$f":"'Population at Risk'!AP222/'Population at Risk'!AP$5","v":5.8204445225082261E-3},{"$f":"'Population at Risk'!AQ222/'Population at Risk'!AQ$5","v":5.3427473948300637E-3},{"$f":"'Population at Risk'!AR222/'Population at Risk'!AR$5","v":6.119915821752411E-3},{"$f":"'Population at Risk'!AS222/'Population at Risk'!AS$5","v":3.740535916927868E-3},{"$f":"'Population at Risk'!AT222/'Population at Risk'!AT$5","v":0},{"$f":"'Population at Risk'!AU222/'Population at Risk'!AU$5","v":0},{"$f":"'Population at Risk'!AV222/'Population at Risk'!AV$5","v":6.5003508483141084E-3},{"$f":"'Population at Risk'!AW222/'Population at Risk'!AW$5","v":4.7656450440048169E-3},{"$f":"'Population at Risk'!AX222/'Population at Risk'!AX$5","v":9.2122474726749302E-3},{"$f":"'Population at Risk'!AY222/'Population at Risk'!AY$5","v":5.4381954639180679E-3},{"$f":"'Population at Risk'!AZ222/'Population at Risk'!AZ$5","v":4.8515236321998523E-3},{"$f":"'Population at Risk'!BA222/'Population at Risk'!BA$5","v":1.3756607910932874E-3},{"$f":"'Population at Risk'!BB222/'Population at Risk'!BB$5","v":6.6803898710590436E-3},{"$f":"'Population at Risk'!BC222/'Population at Risk'!BC$5","v":0},220]
[null,"Female 55-59",{"$f":"'Population at Risk'!C223/'Population at Risk'!C$5","v":3.5500109254355768E-2},{"$f":"'Population at Risk'!D223/'Population at Risk'!D$5","v":3.9218497293525299E-2},{"$f":"'Population at Risk'!E223/'Population at Risk'!E$5","v":4.3318740901283855E-2},{"$f":"'Population at Risk'!F223/'Population at Risk'!F$5","v":2.3180673095433021E-2},{"$f":"'Population at Risk'!G223/'Population at Risk'!G$5","v":1.0592887899457913E-2},{"$f":"'Population at Risk'!H223/'Population at Risk'!H$5","v":1.4098563392452331E-2},{"$f":"'Population at Risk'!I223/'Population at Risk'!I$5","v":1.1685335196436388E-2},{"$f":"'Population at Risk'!J223/'Population at Risk'!J$5","v":2.2570072722584808E-2},{"$f":"'Population at Risk'!K223/'Population at Risk'!K$5","v":1.321395984077124E-2},{"$f":"'Population at Risk'!L223/'Population at Risk'!L$5","v":1.2055372051872229E-2},{"$f":"'Population at Risk'!M223/'Population at Risk'!M$5","v":1.2055372051872229E-2},{"$f":"'Population at Risk'!N223/'Population at Risk'!N$5","v":1.0836920181269496E-2},{"$f":"'Population at Risk'!O223/'Population at Risk'!O$5","v":1.0638045264825265E-2},{"$f":"'Population at Risk'!P223/'Population at Risk'!P$5","v":7.073485817662746E-2},{"$f":"'Population at Risk'!Q223/'Population at Risk'!Q$5","v":1.9012947188009877E-2},{"$f":"'Population at Risk'!R223/'Population at Risk'!R$5","v":7.4926416630345147E-2},{"$f":"'Population at Risk'!S223/'Population at Risk'!S$5","v":2.6043831873333121E-2},{"$f":"'Population at Risk'!T223/'Population at Risk'!T$5","v":3.933173509927889E-2},{"$f":"'Population at Risk'!U223/'Population at Risk'!U$5","v":0},{"$f":"'Population at Risk'!V223/'Population at Risk'!V$5","v":2.0529789149346198E-2},{"$f":"'Population at Risk'!W223/'Population at Risk'!W$5","v":1.9890959609923684E-2},{"$f":"'Population at Risk'!X223/'Population at Risk'!X$5","v":1.9890959609923684E-2},{"$f":"'Population at Risk'!Y223/'Population at Risk'!Y$5","v":2.1604776986845833E-2},{"$f":"'Population at Risk'!Z223/'Population at Risk'!Z$5","v":7.2464604678714436E-3},{"$f":"'Population at Risk'!AA223/'Population at Risk'!AA$5","v":1.4832300744028198E-2},{"$f":"'Population at Risk'!AB223/'Population at Risk'!AB$5","v":3.6252882918299652E-2},{"$f":"'Population at Risk'!AC223/'Population at Risk'!AC$5","v":1.6672308635455567E-2},{"$f":"'Population at Risk'!AD223/'Population at Risk'!AD$5","v":9.7303103207740382E-3},{"$f":"'Population at Risk'!AE223/'Population at Risk'!AE$5","v":9.4689736672983679E-3},{"$f":"'Population at Risk'!AF223/'Population at Risk'!AF$5","v":8.8061489450820592E-3},{"$f":"'Population at Risk'!AG223/'Population at Risk'!AG$5","v":9.4689736672983679E-3},{"$f":"'Population at Risk'!AH223/'Population at Risk'!AH$5","v":1.1447342612522563E-2},{"$f":"'Population at Risk'!AI223/'Population at Risk'!AI$5","v":3.0351441313211422E-2},{"$f":"'Population at Risk'!AJ223/'Population at Risk'!AJ$5","v":1.6860932442201541E-2},{"$f":"'Population at Risk'!AK223/'Population at Risk'!AK$5","v":1.8991389311384138E-2},{"$f":"'Population at Risk'!AL223/'Population at Risk'!AL$5","v":9.3443168859618786E-3},{"$f":"'Population at Risk'!AM223/'Population at Risk'!AM$5","v":8.5761005777430181E-3},{"$f":"'Population at Risk'!AN223/'Population at Risk'!AN$5","v":8.1937498526365223E-3},{"$f":"'Population at Risk'!AO223/'Population at Risk'!AO$5","v":8.1937498526365223E-3},{"$f":"'Population at Risk'!AP223/'Population at Risk'!AP$5","v":1.9118659890606435E-2},{"$f":"'Population at Risk'!AQ223/'Population at Risk'!AQ$5","v":1.697483647826711E-2},{"$f":"'Population at Risk'!AR223/'Population at Risk'!AR$5","v":1.9554856435837494E-2},{"$f":"'Population at Risk'!AS223/'Population at Risk'!AS$5","v":1.1685335196436388E-2},{"$f":"'Population at Risk'!AT223/'Population at Risk'!AT$5","v":0},{"$f":"'Population at Risk'!AU223/'Population at Risk'!AU$5","v":0},{"$f":"'Population at Risk'!AV223/'Population at Risk'!AV$5","v":2.5017462430688739E-2},{"$f":"'Population at Risk'!AW223/'Population at Risk'!AW$5","v":1.4876849524182455E-2},{"$f":"'Population at Risk'!AX223/'Population at Risk'!AX$5","v":2.8668373182512231E-2},{"$f":"'Population at Risk'!AY223/'Population at Risk'!AY$5","v":1.8032541179481158E-2},{"$f":"'Population at Risk'!AZ223/'Population at Risk'!AZ$5","v":1.6288793468986873E-2},{"$f":"'Population at Risk'!BA223/'Population at Risk'!BA$5","v":4.0365530839073255E-3},{"$f":"'Population at Risk'!BB223/'Population at Risk'!BB$5","v":1.8067473475227656E-2},{"$f":"'Population at Risk'!BC223/'Population at Risk'!BC$5","v":0},221]
[null,"Female 60-64",{"$f":"'Population at Risk'!C224/'Population at Risk'!C$5","v":2.7983565555186711E-2},{"$f":"'Population at Risk'!D224/'Population at Risk'!D$5","v":3.3608338281052197E-2},{"$f":"'Population at Risk'!E224/'Population at Risk'!E$5","v":4.0066583175962248E-2},{"$f":"'Population at Risk'!F224/'Population at Risk'!F$5","v":2.1631322194452924E-2},{"$f":"'Population at Risk'!G224/'Population at Risk'!G$5","v":7.7847062079908821E-3},{"$f":"'Population at Risk'!H224/'Population at Risk'!H$5","v":1.3154698895672985E-2},{"$f":"'Population at Risk'!I224/'Population at Risk'!I$5","v":1.0820858868128592E-2},{"$f":"'Population at Risk'!J224/'Population at Risk'!J$5","v":2.1317250581706915E-2},{"$f":"'Population at Risk'!K224/'Population at Risk'!K$5","v":1.5350051093226741E-2},{"$f":"'Population at Risk'!L224/'Population at Risk'!L$5","v":1.1604703937783546E-2},{"$f":"'Population at Risk'!M224/'Population at Risk'!M$5","v":1.1604703937783546E-2},{"$f":"'Population at Risk'!N224/'Population at Risk'!N$5","v":8.082586417106661E-3},{"$f":"'Population at Risk'!O224/'Population at Risk'!O$5","v":9.5362477195397918E-3},{"$f":"'Population at Risk'!P224/'Population at Risk'!P$5","v":6.3365982066624055E-2},{"$f":"'Population at Risk'!Q224/'Population at Risk'!Q$5","v":1.6613254824474653E-2},{"$f":"'Population at Risk'!R224/'Population at Risk'!R$5","v":6.5027003038221953E-2},{"$f":"'Population at Risk'!S224/'Population at Risk'!S$5","v":2.2689932696059054E-2},{"$f":"'Population at Risk'!T224/'Population at Risk'!T$5","v":3.3479527666468216E-2},{"$f":"'Population at Risk'!U224/'Population at Risk'!U$5","v":0},{"$f":"'Population at Risk'!V224/'Population at Risk'!V$5","v":1.7114553197398887E-2},{"$f":"'Population at Risk'!W224/'Population at Risk'!W$5","v":1.8441136483708653E-2},{"$f":"'Population at Risk'!X224/'Population at Risk'!X$5","v":1.8441136483708653E-2},{"$f":"'Population at Risk'!Y224/'Population at Risk'!Y$5","v":1.9262090325621588E-2},{"$f":"'Population at Risk'!Z224/'Population at Risk'!Z$5","v":6.3662933703842279E-3},{"$f":"'Population at Risk'!AA224/'Population at Risk'!AA$5","v":1.2925539323111327E-2},{"$f":"'Population at Risk'!AB224/'Population at Risk'!AB$5","v":3.1496199533692183E-2},{"$f":"'Population at Risk'!AC224/'Population at Risk'!AC$5","v":1.4728136681935129E-2},{"$f":"'Population at Risk'!AD224/'Population at Risk'!AD$5","v":8.7634321497847504E-3},{"$f":"'Population at Risk'!AE224/'Population at Risk'!AE$5","v":9.1061328963635731E-3},{"$f":"'Population at Risk'!AF224/'Population at Risk'!AF$5","v":1.0122010281703519E-2},{"$f":"'Population at Risk'!AG224/'Population at Risk'!AG$5","v":9.1061328963635731E-3},{"$f":"'Population at Risk'!AH224/'Population at Risk'!AH$5","v":9.610302219796793E-3},{"$f":"'Population at Risk'!AI224/'Population at Risk'!AI$5","v":2.5880943115559631E-2},{"$f":"'Population at Risk'!AJ224/'Population at Risk'!AJ$5","v":1.4558636446077636E-2},{"$f":"'Population at Risk'!AK224/'Population at Risk'!AK$5","v":1.9181303204497978E-2},{"$f":"'Population at Risk'!AL224/'Population at Risk'!AL$5","v":8.259396198827729E-3},{"$f":"'Population at Risk'!AM224/'Population at Risk'!AM$5","v":6.7328997236457758E-3},{"$f":"'Population at Risk'!AN224/'Population at Risk'!AN$5","v":8.6575470141065126E-3},{"$f":"'Population at Risk'!AO224/'Population at Risk'!AO$5","v":8.6575470141065126E-3},{"$f":"'Population at Risk'!AP224/'Population at Risk'!AP$5","v":1.7988672366090135E-2},{"$f":"'Population at Risk'!AQ224/'Population at Risk'!AQ$5","v":1.4194365880854621E-2},{"$f":"'Population at Risk'!AR224/'Population at Risk'!AR$5","v":1.7171362685371318E-2},{"$f":"'Population at Risk'!AS224/'Population at Risk'!AS$5","v":1.0820858868128592E-2},{"$f":"'Population at Risk'!AT224/'Population at Risk'!AT$5","v":0},{"$f":"'Population at Risk'!AU224/'Population at Risk'!AU$5","v":0},{"$f":"'Population at Risk'!AV224/'Population at Risk'!AV$5","v":2.4465253567055496E-2},{"$f":"'Population at Risk'!AW224/'Population at Risk'!AW$5","v":1.3049575241627235E-2},{"$f":"'Population at Risk'!AX224/'Population at Risk'!AX$5","v":2.5247175056864364E-2},{"$f":"'Population at Risk'!AY224/'Population at Risk'!AY$5","v":1.6229625955372157E-2},{"$f":"'Population at Risk'!AZ224/'Population at Risk'!AZ$5","v":1.4240752354667775E-2},{"$f":"'Population at Risk'!BA224/'Population at Risk'!BA$5","v":3.1817536073151858E-3},{"$f":"'Population at Risk'!BB224/'Population at Risk'!BB$5","v":1.5274356992749882E-2},{"$f":"'Population at Risk'!BC224/'Population at Risk'!BC$5","v":0},222]
[null,"Female 65-69",{"$f":"'Population at Risk'!C225/'Population at Risk'!C$5","v":0},{"$f":"'Population at Risk'!D225/'Population at Risk'!D$5","v":0},{"$f":"'Population at Risk'!E225/'Population at Risk'!E$5","v":0},{"$f":"'Population at Risk'!F225/'Population at Risk'!F$5","v":0},{"$f":"'Population at Risk'!G225/'Population at Risk'!G$5","v":0},{"$f":"'Population at Risk'!H225/'Population at Risk'!H$5","v":0},{"$f":"'Population at Risk'!I225/'Population at Risk'!I$5","v":0},{"$f":"'Population at Risk'!J225/'Population at Risk'!J$5","v":0},{"$f":"'Population at Risk'!K225/'Population at Risk'!K$5","v":0},{"$f":"'Population at Risk'!L225/'Population at Risk'!L$5","v":0},{"$f":"'Population at Risk'!M225/'Population at Risk'!M$5","v":0},{"$f":"'Population at Risk'!N225/'Population at Risk'!N$5","v":0},{"$f":"'Population at Risk'!O225/'Population at Risk'!O$5","v":0},{"$f":"'Population at Risk'!P225/'Population at Risk'!P$5","v":0},{"$f":"'Population at Risk'!Q225/'Population at Risk'!Q$5","v":0},{"$f":"'Population at Risk'!R225/'Population at Risk'!R$5","v":0},{"$f":"'Population at Risk'!S225/'Population at Risk'!S$5","v":0},{"$f":"'Population at Risk'!T225/'Population at Risk'!T$5","v":0},{"$f":"'Population at Risk'!U225/'Population at Risk'!U$5","v":0},{"$f":"'Population at Risk'!V225/'Population at Risk'!V$5","v":0},{"$f":"'Population at Risk'!W225/'Population at Risk'!W$5","v":0},{"$f":"'Population at Risk'!X225/'Population at Risk'!X$5","v":0},{"$f":"'Population at Risk'!Y225/'Population at Risk'!Y$5","v":0},{"$f":"'Population at Risk'!Z225/'Population at Risk'!Z$5","v":0},{"$f":"'Population at Risk'!AA225/'Population at Risk'!AA$5","v":0},{"$f":"'Population at Risk'!AB225/'Population at Risk'!AB$5","v":0},{"$f":"'Population at Risk'!AC225/'Population at Risk'!AC$5","v":0},{"$f":"'Population at Risk'!AD225/'Population at Risk'!AD$5","v":0},{"$f":"'Population at Risk'!AE225/'Population at Risk'!AE$5","v":0},{"$f":"'Population at Risk'!AF225/'Population at Risk'!AF$5","v":0},{"$f":"'Population at Risk'!AG225/'Population at Risk'!AG$5","v":0},{"$f":"'Population at Risk'!AH225/'Population at Risk'!AH$5","v":0},{"$f":"'Population at Risk'!AI225/'Population at Risk'!AI$5","v":0},{"$f":"'Population at Risk'!AJ225/'Population at Risk'!AJ$5","v":0},{"$f":"'Population at Risk'!AK225/'Population at Risk'!AK$5","v":0},{"$f":"'Population at Risk'!AL225/'Population at Risk'!AL$5","v":0},{"$f":"'Population at Risk'!AM225/'Population at Risk'!AM$5","v":0},{"$f":"'Population at Risk'!AN225/'Population at Risk'!AN$5","v":0},{"$f":"'Population at Risk'!AO225/'Population at Risk'!AO$5","v":0},{"$f":"'Population at Risk'!AP225/'Population at Risk'!AP$5","v":0},{"$f":"'Population at Risk'!AQ225/'Population at Risk'!AQ$5","v":0},{"$f":"'Population at Risk'!AR225/'Population at Risk'!AR$5","v":0},{"$f":"'Population at Risk'!AS225/'Population at Risk'!AS$5","v":0},{"$f":"'Population at Risk'!AT225/'Population at Risk'!AT$5","v":0},{"$f":"'Population at Risk'!AU225/'Population at Risk'!AU$5","v":0},{"$f":"'Population at Risk'!AV225/'Population at Risk'!AV$5","v":0},{"$f":"'Population at Risk'!AW225/'Population at Risk'!AW$5","v":0},{"$f":"'Population at Risk'!AX225/'Population at Risk'!AX$5","v":0},{"$f":"'Population at Risk'!AY225/'Population at Risk'!AY$5","v":0},{"$f":"'Population at Risk'!AZ225/'Population at Risk'!AZ$5","v":0},{"$f":"'Population at Risk'!BA225/'Population at Risk'!BA$5","v":0},{"$f":"'Population at Risk'!BB225/'Population at Risk'!BB$5","v":0},{"$f":"'Population at Risk'!BC225/'Population at Risk'!BC$5","v":0},223]
[null,"Female 70-74",{"$f":"'Population at Risk'!C226/'Population at Risk'!C$5","v":0},{"$f":"'Population at Risk'!D226/'Population at Risk'!D$5","v":0},{"$f":"'Population at Risk'!E226/'Population at Risk'!E$5","v":0},{"$f":"'Population at Risk'!F226/'Population at Risk'!F$5","v":0},{"$f":"'Population at Risk'!G226/'Population at Risk'!G$5","v":0},{"$f":"'Population at Risk'!H226/'Population at Risk'!H$5","v":0},{"$f":"'Population at Risk'!I226/'Population at Risk'!I$5","v":0},{"$f":"'Population at Risk'!J226/'Population at Risk'!J$5","v":0},{"$f":"'Population at Risk'!K226/'Population at Risk'!K$5","v":0},{"$f":"'Population at Risk'!L226/'Population at Risk'!L$5","v":0},{"$f":"'Population at Risk'!M226/'Population at Risk'!M$5","v":0},{"$f":"'Population at Risk'!N226/'Population at Risk'!N$5","v":0},{"$f":"'Population at Risk'!O226/'Population at Risk'!O$5","v":0},{"$f":"'Population at Risk'!P226/'Population at Risk'!P$5","v":0},{"$f":"'Population at Risk'!Q226/'Population at Risk'!Q$5","v":0},{"$f":"'Population at Risk'!R226/'Population at Risk'!R$5","v":0},{"$f":"'Population at Risk'!S226/'Population at Risk'!S$5","v":0},{"$f":"'Population at Risk'!T226/'Population at Risk'!T$5","v":0},{"$f":"'Population at Risk'!U226/'Population at Risk'!U$5","v":0},{"$f":"'Population at Risk'!V226/'Population at Risk'!V$5","v":0},{"$f":"'Population at Risk'!W226/'Population at Risk'!W$5","v":0},{"$f":"'Population at Risk'!X226/'Population at Risk'!X$5","v":0},{"$f":"'Population at Risk'!Y226/'Population at Risk'!Y$5","v":0},{"$f":"'Population at Risk'!Z226/'Population at Risk'!Z$5","v":0},{"$f":"'Population at Risk'!AA226/'Population at Risk'!AA$5","v":0},{"$f":"'Population at Risk'!AB226/'Population at Risk'!AB$5","v":0},{"$f":"'Population at Risk'!AC226/'Population at Risk'!AC$5","v":0},{"$f":"'Population at Risk'!AD226/'Population at Risk'!AD$5","v":0},{"$f":"'Population at Risk'!AE226/'Population at Risk'!AE$5","v":0},{"$f":"'Population at Risk'!AF226/'Population at Risk'!AF$5","v":0},{"$f":"'Population at Risk'!AG226/'Population at Risk'!AG$5","v":0},{"$f":"'Population at Risk'!AH226/'Population at Risk'!AH$5","v":0},{"$f":"'Population at Risk'!AI226/'Population at Risk'!AI$5","v":0},{"$f":"'Population at Risk'!AJ226/'Population at Risk'!AJ$5","v":0},{"$f":"'Population at Risk'!AK226/'Population at Risk'!AK$5","v":0},{"$f":"'Population at Risk'!AL226/'Population at Risk'!AL$5","v":0},{"$f":"'Population at Risk'!AM226/'Population at Risk'!AM$5","v":0},{"$f":"'Population at Risk'!AN226/'Population at Risk'!AN$5","v":0},{"$f":"'Population at Risk'!AO226/'Population at Risk'!AO$5","v":0},{"$f":"'Population at Risk'!AP226/'Population at Risk'!AP$5","v":0},{"$f":"'Population at Risk'!AQ226/'Population at Risk'!AQ$5","v":0},{"$f":"'Population at Risk'!AR226/'Population at Risk'!AR$5","v":0},{"$f":"'Population at Risk'!AS226/'Population at Risk'!AS$5","v":0},{"$f":"'Population at Risk'!AT226/'Population at Risk'!AT$5","v":0},{"$f":"'Population at Risk'!AU226/'Population at Risk'!AU$5","v":0},{"$f":"'Population at Risk'!AV226/'Population at Risk'!AV$5","v":0},{"$f":"'Population at Risk'!AW226/'Population at Risk'!AW$5","v":0},{"$f":"'Population at Risk'!AX226/'Population at Risk'!AX$5","v":0},{"$f":"'Population at Risk'!AY226/'Population at Risk'!AY$5","v":0},{"$f":"'Population at Risk'!AZ226/'Population at Risk'!AZ$5","v":0},{"$f":"'Population at Risk'!BA226/'Population at Risk'!BA$5","v":0},{"$f":"'Population at Risk'!BB226/'Population at Risk'!BB$5","v":0},{"$f":"'Population at Risk'!BC226/'Population at Risk'!BC$5","v":0},224]
[null,"Female 75-79",{"$f":"'Population at Risk'!C227/'Population at Risk'!C$5","v":0},{"$f":"'Population at Risk'!D227/'Population at Risk'!D$5","v":0},{"$f":"'Population at Risk'!E227/'Population at Risk'!E$5","v":0},{"$f":"'Population at Risk'!F227/'Population at Risk'!F$5","v":0},{"$f":"'Population at Risk'!G227/'Population at Risk'!G$5","v":0},{"$f":"'Population at Risk'!H227/'Population at Risk'!H$5","v":0},{"$f":"'Population at Risk'!I227/'Population at Risk'!I$5","v":0},{"$f":"'Population at Risk'!J227/'Population at Risk'!J$5","v":0},{"$f":"'Population at Risk'!K227/'Population at Risk'!K$5","v":0},{"$f":"'Population at Risk'!L227/'Population at Risk'!L$5","v":0},{"$f":"'Population at Risk'!M227/'Population at Risk'!M$5","v":0},{"$f":"'Population at Risk'!N227/'Population at Risk'!N$5","v":0},{"$f":"'Population at Risk'!O227/'Population at Risk'!O$5","v":0},{"$f":"'Population at Risk'!P227/'Population at Risk'!P$5","v":0},{"$f":"'Population at Risk'!Q227/'Population at Risk'!Q$5","v":0},{"$f":"'Population at Risk'!R227/'Population at Risk'!R$5","v":0},{"$f":"'Population at Risk'!S227/'Population at Risk'!S$5","v":0},{"$f":"'Population at Risk'!T227/'Population at Risk'!T$5","v":0},{"$f":"'Population at Risk'!U227/'Population at Risk'!U$5","v":0},{"$f":"'Population at Risk'!V227/'Population at Risk'!V$5","v":0},{"$f":"'Population at Risk'!W227/'Population at Risk'!W$5","v":0},{"$f":"'Population at Risk'!X227/'Population at Risk'!X$5","v":0},{"$f":"'Population at Risk'!Y227/'Population at Risk'!Y$5","v":0},{"$f":"'Population at Risk'!Z227/'Population at Risk'!Z$5","v":0},{"$f":"'Population at Risk'!AA227/'Population at Risk'!AA$5","v":0},{"$f":"'Population at Risk'!AB227/'Population at Risk'!AB$5","v":0},{"$f":"'Population at Risk'!AC227/'Population at Risk'!AC$5","v":0},{"$f":"'Population at Risk'!AD227/'Population at Risk'!AD$5","v":0},{"$f":"'Population at Risk'!AE227/'Population at Risk'!AE$5","v":0},{"$f":"'Population at Risk'!AF227/'Population at Risk'!AF$5","v":0},{"$f":"'Population at Risk'!AG227/'Population at Risk'!AG$5","v":0},{"$f":"'Population at Risk'!AH227/'Population at Risk'!AH$5","v":0},{"$f":"'Population at Risk'!AI227/'Population at Risk'!AI$5","v":0},{"$f":"'Population at Risk'!AJ227/'Population at Risk'!AJ$5","v":0},{"$f":"'Population at Risk'!AK227/'Population at Risk'!AK$5","v":0},{"$f":"'Population at Risk'!AL227/'Population at Risk'!AL$5","v":0},{"$f":"'Population at Risk'!AM227/'Population at Risk'!AM$5","v":0},{"$f":"'Population at Risk'!AN227/'Population at Risk'!AN$5","v":0},{"$f":"'Population at Risk'!AO227/'Population at Risk'!AO$5","v":0},{"$f":"'Population at Risk'!AP227/'Population at Risk'!AP$5","v":0},{"$f":"'Population at Risk'!AQ227/'Population at Risk'!AQ$5","v":0},{"$f":"'Population at Risk'!AR227/'Population at Risk'!AR$5","v":0},{"$f":"'Population at Risk'!AS227/'Population at Risk'!AS$5","v":0},{"$f":"'Population at Risk'!AT227/'Population at Risk'!AT$5","v":0},{"$f":"'Population at Risk'!AU227/'Population at Risk'!AU$5","v":0},{"$f":"'Population at Risk'!AV227/'Population at Risk'!AV$5","v":0},{"$f":"'Population at Risk'!AW227/'Population at Risk'!AW$5","v":0},{"$f":"'Population at Risk'!AX227/'Population at Risk'!AX$5","v":0},{"$f":"'Population at Risk'!AY227/'Population at Risk'!AY$5","v":0},{"$f":"'Population at Risk'!AZ227/'Population at Risk'!AZ$5","v":0},{"$f":"'Population at Risk'!BA227/'Population at Risk'!BA$5","v":0},{"$f":"'Population at Risk'!BB227/'Population at Risk'!BB$5","v":0},{"$f":"'Population at Risk'!BC227/'Population at Risk'!BC$5","v":0},225]
[null,"Female 80-84",{"$f":"'Population at Risk'!C228/'Population at Risk'!C$5","v":0},{"$f":"'Population at Risk'!D228/'Population at Risk'!D$5","v":0},{"$f":"'Population at Risk'!E228/'Population at Risk'!E$5","v":0},{"$f":"'Population at Risk'!F228/'Population at Risk'!F$5","v":0},{"$f":"'Population at Risk'!G228/'Population at Risk'!G$5","v":0},{"$f":"'Population at Risk'!H228/'Population at Risk'!H$5","v":0},{"$f":"'Population at Risk'!I228/'Population at Risk'!I$5","v":0},{"$f":"'Population at Risk'!J228/'Population at Risk'!J$5","v":0},{"$f":"'Population at Risk'!K228/'Population at Risk'!K$5","v":0},{"$f":"'Population at Risk'!L228/'Population at Risk'!L$5","v":0},{"$f":"'Population at Risk'!M228/'Population at Risk'!M$5","v":0},{"$f":"'Population at Risk'!N228/'Population at Risk'!N$5","v":0},{"$f":"'Population at Risk'!O228/'Population at Risk'!O$5","v":0},{"$f":"'Population at Risk'!P228/'Population at Risk'!P$5","v":0},{"$f":"'Population at Risk'!Q228/'Population at Risk'!Q$5","v":0},{"$f":"'Population at Risk'!R228/'Population at Risk'!R$5","v":0},{"$f":"'Population at Risk'!S228/'Population at Risk'!S$5","v":0},{"$f":"'Population at Risk'!T228/'Population at Risk'!T$5","v":0},{"$f":"'Population at Risk'!U228/'Population at Risk'!U$5","v":0},{"$f":"'Population at Risk'!V228/'Population at Risk'!V$5","v":0},{"$f":"'Population at Risk'!W228/'Population at Risk'!W$5","v":0},{"$f":"'Population at Risk'!X228/'Population at Risk'!X$5","v":0},{"$f":"'Population at Risk'!Y228/'Population at Risk'!Y$5","v":0},{"$f":"'Population at Risk'!Z228/'Population at Risk'!Z$5","v":0},{"$f":"'Population at Risk'!AA228/'Population at Risk'!AA$5","v":0},{"$f":"'Population at Risk'!AB228/'Population at Risk'!AB$5","v":0},{"$f":"'Population at Risk'!AC228/'Population at Risk'!AC$5","v":0},{"$f":"'Population at Risk'!AD228/'Population at Risk'!AD$5","v":0},{"$f":"'Population at Risk'!AE228/'Population at Risk'!AE$5","v":0},{"$f":"'Population at Risk'!AF228/'Population at Risk'!AF$5","v":0},{"$f":"'Population at Risk'!AG228/'Population at Risk'!AG$5","v":0},{"$f":"'Population at Risk'!AH228/'Population at Risk'!AH$5","v":0},{"$f":"'Population at Risk'!AI228/'Population at Risk'!AI$5","v":0},{"$f":"'Population at Risk'!AJ228/'Population at Risk'!AJ$5","v":0},{"$f":"'Population at Risk'!AK228/'Population at Risk'!AK$5","v":0},{"$f":"'Population at Risk'!AL228/'Population at Risk'!AL$5","v":0},{"$f":"'Population at Risk'!AM228/'Population at Risk'!AM$5","v":0},{"$f":"'Population at Risk'!AN228/'Population at Risk'!AN$5","v":0},{"$f":"'Population at Risk'!AO228/'Population at Risk'!AO$5","v":0},{"$f":"'Population at Risk'!AP228/'Population at Risk'!AP$5","v":0},{"$f":"'Population at Risk'!AQ228/'Population at Risk'!AQ$5","v":0},{"$f":"'Population at Risk'!AR228/'Population at Risk'!AR$5","v":0},{"$f":"'Population at Risk'!AS228/'Population at Risk'!AS$5","v":0},{"$f":"'Population at Risk'!AT228/'Population at Risk'!AT$5","v":0},{"$f":"'Population at Risk'!AU228/'Population at Risk'!AU$5","v":0},{"$f":"'Population at Risk'!AV228/'Population at Risk'!AV$5","v":0},{"$f":"'Population at Risk'!AW228/'Population at Risk'!AW$5","v":0},{"$f":"'Population at Risk'!AX228/'Population at Risk'!AX$5","v":0},{"$f":"'Population at Risk'!AY228/'Population at Risk'!AY$5","v":0},{"$f":"'Population at Risk'!AZ228/'Population at Risk'!AZ$5","v":0},{"$f":"'Population at Risk'!BA228/'Population at Risk'!BA$5","v":0},{"$f":"'Population at Risk'!BB228/'Population at Risk'!BB$5","v":0},{"$f":"'Population at Risk'!BC228/'Population at Risk'!BC$5","v":0},226]
[null,"Female 85-89",{"$f":"'Population at Risk'!C229/'Population at Risk'!C$5","v":0},{"$f":"'Population at Risk'!D229/'Population at Risk'!D$5","v":0},{"$f":"'Population at Risk'!E229/'Population at Risk'!E$5","v":0},{"$f":"'Population at Risk'!F229/'Population at Risk'!F$5","v":0},{"$f":"'Population at Risk'!G229/'Population at Risk'!G$5","v":0},{"$f":"'Population at Risk'!H229/'Population at Risk'!H$5","v":0},{"$f":"'Population at Risk'!I229/'Population at Risk'!I$5","v":0},{"$f":"'Population at Risk'!J229/'Population at Risk'!J$5","v":0},{"$f":"'Population at Risk'!K229/'Population at Risk'!K$5","v":0},{"$f":"'Population at Risk'!L229/'Population at Risk'!L$5","v":0},{"$f":"'Population at Risk'!M229/'Population at Risk'!M$5","v":0},{"$f":"'Population at Risk'!N229/'Population at Risk'!N$5","v":0},{"$f":"'Population at Risk'!O229/'Population at Risk'!O$5","v":0},{"$f":"'Population at Risk'!P229/'Population at Risk'!P$5","v":0},{"$f":"'Population at Risk'!Q229/'Population at Risk'!Q$5","v":0},{"$f":"'Population at Risk'!R229/'Population at Risk'!R$5","v":0},{"$f":"'Population at Risk'!S229/'Population at Risk'!S$5","v":0},{"$f":"'Population at Risk'!T229/'Population at Risk'!T$5","v":0},{"$f":"'Population at Risk'!U229/'Population at Risk'!U$5","v":0},{"$f":"'Population at Risk'!V229/'Population at Risk'!V$5","v":0},{"$f":"'Population at Risk'!W229/'Population at Risk'!W$5","v":0},{"$f":"'Population at Risk'!X229/'Population at Risk'!X$5","v":0},{"$f":"'Population at Risk'!Y229/'Population at Risk'!Y$5","v":0},{"$f":"'Population at Risk'!Z229/'Population at Risk'!Z$5","v":0},{"$f":"'Population at Risk'!AA229/'Population at Risk'!AA$5","v":0},{"$f":"'Population at Risk'!AB229/'Population at Risk'!AB$5","v":0},{"$f":"'Population at Risk'!AC229/'Population at Risk'!AC$5","v":0},{"$f":"'Population at Risk'!AD229/'Population at Risk'!AD$5","v":0},{"$f":"'Population at Risk'!AE229/'Population at Risk'!AE$5","v":0},{"$f":"'Population at Risk'!AF229/'Population at Risk'!AF$5","v":0},{"$f":"'Population at Risk'!AG229/'Population at Risk'!AG$5","v":0},{"$f":"'Population at Risk'!AH229/'Population at Risk'!AH$5","v":0},{"$f":"'Population at Risk'!AI229/'Population at Risk'!AI$5","v":0},{"$f":"'Population at Risk'!AJ229/'Population at Risk'!AJ$5","v":0},{"$f":"'Population at Risk'!AK229/'Population at Risk'!AK$5","v":0},{"$f":"'Population at Risk'!AL229/'Population at Risk'!AL$5","v":0},{"$f":"'Population at Risk'!AM229/'Population at Risk'!AM$5","v":0},{"$f":"'Population at Risk'!AN229/'Population at Risk'!AN$5","v":0},{"$f":"'Population at Risk'!AO229/'Population at Risk'!AO$5","v":0},{"$f":"'Population at Risk'!AP229/'Population at Risk'!AP$5","v":0},{"$f":"'Population at Risk'!AQ229/'Population at Risk'!AQ$5","v":0},{"$f":"'Population at Risk'!AR229/'Population at Risk'!AR$5","v":0},{"$f":"'Population at Risk'!AS229/'Population at Risk'!AS$5","v":0},{"$f":"'Population at Risk'!AT229/'Population at Risk'!AT$5","v":0},{"$f":"'Population at Risk'!AU229/'Population at Risk'!AU$5","v":0},{"$f":"'Population at Risk'!AV229/'Population at Risk'!AV$5","v":0},{"$f":"'Population at Risk'!AW229/'Population at Risk'!AW$5","v":0},{"$f":"'Population at Risk'!AX229/'Population at Risk'!AX$5","v":0},{"$f":"'Population at Risk'!AY229/'Population at Risk'!AY$5","v":0},{"$f":"'Population at Risk'!AZ229/'Population at Risk'!AZ$5","v":0},{"$f":"'Population at Risk'!BA229/'Population at Risk'!BA$5","v":0},{"$f":"'Population at Risk'!BB229/'Population at Risk'!BB$5","v":0},{"$f":"'Population at Risk'!BC229/'Population at Risk'!BC$5","v":0},227]
[null,"Female 90+",{"$f":"'Population at Risk'!C230/'Population at Risk'!C$5","v":0},{"$f":"'Population at Risk'!D230/'Population at Risk'!D$5","v":0},{"$f":"'Population at Risk'!E230/'Population at Risk'!E$5","v":0},{"$f":"'Population at Risk'!F230/'Population at Risk'!F$5","v":0},{"$f":"'Population at Risk'!G230/'Population at Risk'!G$5","v":0},{"$f":"'Population at Risk'!H230/'Population at Risk'!H$5","v":0},{"$f":"'Population at Risk'!I230/'Population at Risk'!I$5","v":0},{"$f":"'Population at Risk'!J230/'Population at Risk'!J$5","v":0},{"$f":"'Population at Risk'!K230/'Population at Risk'!K$5","v":0},{"$f":"'Population at Risk'!L230/'Population at Risk'!L$5","v":0},{"$f":"'Population at Risk'!M230/'Population at Risk'!M$5","v":0},{"$f":"'Population at Risk'!N230/'Population at Risk'!N$5","v":0},{"$f":"'Population at Risk'!O230/'Population at Risk'!O$5","v":0},{"$f":"'Population at Risk'!P230/'Population at Risk'!P$5","v":0},{"$f":"'Population at Risk'!Q230/'Population at Risk'!Q$5","v":0},{"$f":"'Population at Risk'!R230/'Population at Risk'!R$5","v":0},{"$f":"'Population at Risk'!S230/'Population at Risk'!S$5","v":0},{"$f":"'Population at Risk'!T230/'Population at Risk'!T$5","v":0},{"$f":"'Population at Risk'!U230/'Population at Risk'!U$5","v":0},{"$f":"'Population at Risk'!V230/'Population at Risk'!V$5","v":0},{"$f":"'Population at Risk'!W230/'Population at Risk'!W$5","v":0},{"$f":"'Population at Risk'!X230/'Population at Risk'!X$5","v":0},{"$f":"'Population at Risk'!Y230/'Population at Risk'!Y$5","v":0},{"$f":"'Population at Risk'!Z230/'Population at Risk'!Z$5","v":0},{"$f":"'Population at Risk'!AA230/'Population at Risk'!AA$5","v":0},{"$f":"'Population at Risk'!AB230/'Population at Risk'!AB$5","v":0},{"$f":"'Population at Risk'!AC230/'Population at Risk'!AC$5","v":0},{"$f":"'Population at Risk'!AD230/'Population at Risk'!AD$5","v":0},{"$f":"'Population at Risk'!AE230/'Population at Risk'!AE$5","v":0},{"$f":"'Population at Risk'!AF230/'Population at Risk'!AF$5","v":0},{"$f":"'Population at Risk'!AG230/'Population at Risk'!AG$5","v":0},{"$f":"'Population at Risk'!AH230/'Population at Risk'!AH$5","v":0},{"$f":"'Population at Risk'!AI230/'Population at Risk'!AI$5","v":0},{"$f":"'Population at Risk'!AJ230/'Population at Risk'!AJ$5","v":0},{"$f":"'Population at Risk'!AK230/'Population at Risk'!AK$5","v":0},{"$f":"'Population at Risk'!AL230/'Population at Risk'!AL$5","v":0},{"$f":"'Population at Risk'!AM230/'Population at Risk'!AM$5","v":0},{"$f":"'Population at Risk'!AN230/'Population at Risk'!AN$5","v":0},{"$f":"'Population at Risk'!AO230/'Population at Risk'!AO$5","v":0},{"$f":"'Population at Risk'!AP230/'Population at Risk'!AP$5","v":0},{"$f":"'Population at Risk'!AQ230/'Population at Risk'!AQ$5","v":0},{"$f":"'Population at Risk'!AR230/'Population at Risk'!AR$5","v":0},{"$f":"'Population at Risk'!AS230/'Population at Risk'!AS$5","v":0},{"$f":"'Population at Risk'!AT230/'Population at Risk'!AT$5","v":0},{"$f":"'Population at Risk'!AU230/'Population at Risk'!AU$5","v":0},{"$f":"'Population at Risk'!AV230/'Population at Risk'!AV$5","v":0},{"$f":"'Population at Risk'!AW230/'Population at Risk'!AW$5","v":0},{"$f":"'Population at Risk'!AX230/'Population at Risk'!AX$5","v":0},{"$f":"'Population at Risk'!AY230/'Population at Risk'!AY$5","v":0},{"$f":"'Population at Risk'!AZ230/'Population at Risk'!AZ$5","v":0},{"$f":"'Population at Risk'!BA230/'Population at Risk'!BA$5","v":0},{"$f":"'Population at Risk'!BB230/'Population at Risk'!BB$5","v":0},{"$f":"'Population at Risk'!BC230/'Population at Risk'!BC$5","v":0},228]
[null,"Male 0-4",{"$f":"'Population at Risk'!C231/'Population at Risk'!C$5","v":0},{"$f":"'Population at Risk'!D231/'Population at Risk'!D$5","v":0},{"$f":"'Population at Risk'!E231/'Population at Risk'!E$5","v":0},{"$f":"'Population at Risk'!F231/'Population at Risk'!F$5","v":0},{"$f":"'Population at Risk'!G231/'Population at Risk'!G$5","v":0},{"$f":"'Population at Risk'!H231/'Population at Risk'!H$5","v":0},{"$f":"'Population at Risk'!I231/'Population at Risk'!I$5","v":0},{"$f":"'Population at Risk'!J231/'Population at Risk'!J$5","v":0},{"$f":"'Population at Risk'!K231/'Population at Risk'!K$5","v":0},{"$f":"'Population at Risk'!L231/'Population at Risk'!L$5","v":0},{"$f":"'Population at Risk'!M231/'Population at Risk'!M$5","v":0},{"$f":"'Population at Risk'!N231/'Population at Risk'!N$5","v":0},{"$f":"'Population at Risk'!O231/'Population at Risk'!O$5","v":0},{"$f":"'Population at Risk'!P231/'Population at Risk'!P$5","v":0},{"$f":"'Population at Risk'!Q231/'Population at Risk'!Q$5","v":0},{"$f":"'Population at Risk'!R231/'Population at Risk'!R$5","v":0},{"$f":"'Population at Risk'!S231/'Population at Risk'!S$5","v":0},{"$f":"'Population at Risk'!T231/'Population at Risk'!T$5","v":0},{"$f":"'Population at Risk'!U231/'Population at Risk'!U$5","v":0},{"$f":"'Population at Risk'!V231/'Population at Risk'!V$5","v":0},{"$f":"'Population at Risk'!W231/'Population at Risk'!W$5","v":0},{"$f":"'Population at Risk'!X231/'Population at Risk'!X$5","v":0},{"$f":"'Population at Risk'!Y231/'Population at Risk'!Y$5","v":0},{"$f":"'Population at Risk'!Z231/'Population at Risk'!Z$5","v":0},{"$f":"'Population at Risk'!AA231/'Population at Risk'!AA$5","v":0},{"$f":"'Population at Risk'!AB231/'Population at Risk'!AB$5","v":0},{"$f":"'Population at Risk'!AC231/'Population at Risk'!AC$5","v":0},{"$f":"'Population at Risk'!AD231/'Population at Risk'!AD$5","v":0},{"$f":"'Population at Risk'!AE231/'Population at Risk'!AE$5","v":0},{"$f":"'Population at Risk'!AF231/'Population at Risk'!AF$5","v":0},{"$f":"'Population at Risk'!AG231/'Population at Risk'!AG$5","v":0},{"$f":"'Population at Risk'!AH231/'Population at Risk'!AH$5","v":0},{"$f":"'Population at Risk'!AI231/'Population at Risk'!AI$5","v":0},{"$f":"'Population at Risk'!AJ231/'Population at Risk'!AJ$5","v":0},{"$f":"'Population at Risk'!AK231/'Population at Risk'!AK$5","v":0},{"$f":"'Population at Risk'!AL231/'Population at Risk'!AL$5","v":0},{"$f":"'Population at Risk'!AM231/'Population at Risk'!AM$5","v":0},{"$f":"'Population at Risk'!AN231/'Population at Risk'!AN$5","v":0},{"$f":"'Population at Risk'!AO231/'Population at Risk'!AO$5","v":0},{"$f":"'Population at Risk'!AP231/'Population at Risk'!AP$5","v":0},{"$f":"'Population at Risk'!AQ231/'Population at Risk'!AQ$5","v":0},{"$f":"'Population at Risk'!AR231/'Population at Risk'!AR$5","v":0},{"$f":"'Population at Risk'!AS231/'Population at Risk'!AS$5","v":0},{"$f":"'Population at Risk'!AT231/'Population at Risk'!AT$5","v":0},{"$f":"'Population at Risk'!AU231/'Population at Risk'!AU$5","v":0},{"$f":"'Population at Risk'!AV231/'Population at Risk'!AV$5","v":0},{"$f":"'Population at Risk'!AW231/'Population at Risk'!AW$5","v":0},{"$f":"'Population at Risk'!AX231/'Population at Risk'!AX$5","v":0},{"$f":"'Population at Risk'!AY231/'Population at Risk'!AY$5","v":0},{"$f":"'Population at Risk'!AZ231/'Population at Risk'!AZ$5","v":0},{"$f":"'Population at Risk'!BA231/'Population at Risk'!BA$5","v":0},{"$f":"'Population at Risk'!BB231/'Population at Risk'!BB$5","v":0},{"$f":"'Population at Risk'!BC231/'Population at Risk'!BC$5","v":0},229]
[null,"Male 5-9",{"$f":"'Population at Risk'!C232/'Population at Risk'!C$5","v":0},{"$f":"'Population at Risk'!D232/'Population at Risk'!D$5","v":0},{"$f":"'Population at Risk'!E232/'Population at Risk'!E$5","v":0},{"$f":"'Population at Risk'!F232/'Population at Risk'!F$5","v":0},{"$f":"'Population at Risk'!G232/'Population at Risk'!G$5","v":0},{"$f":"'Population at Risk'!H232/'Population at Risk'!H$5","v":0},{"$f":"'Population at Risk'!I232/'Population at Risk'!I$5","v":0},{"$f":"'Population at Risk'!J232/'Population at Risk'!J$5","v":0},{"$f":"'Population at Risk'!K232/'Population at Risk'!K$5","v":0},{"$f":"'Population at Risk'!L232/'Population at Risk'!L$5","v":0},{"$f":"'Population at Risk'!M232/'Population at Risk'!M$5","v":0},{"$f":"'Population at Risk'!N232/'Population at Risk'!N$5","v":0},{"$f":"'Population at Risk'!O232/'Population at Risk'!O$5","v":0},{"$f":"'Population at Risk'!P232/'Population at Risk'!P$5","v":0},{"$f":"'Population at Risk'!Q232/'Population at Risk'!Q$5","v":0},{"$f":"'Population at Risk'!R232/'Population at Risk'!R$5","v":0},{"$f":"'Population at Risk'!S232/'Population at Risk'!S$5","v":0},{"$f":"'Population at Risk'!T232/'Population at Risk'!T$5","v":0},{"$f":"'Population at Risk'!U232/'Population at Risk'!U$5","v":0},{"$f":"'Population at Risk'!V232/'Population at Risk'!V$5","v":0},{"$f":"'Population at Risk'!W232/'Population at Risk'!W$5","v":0},{"$f":"'Population at Risk'!X232/'Population at Risk'!X$5","v":0},{"$f":"'Population at Risk'!Y232/'Population at Risk'!Y$5","v":0},{"$f":"'Population at Risk'!Z232/'Population at Risk'!Z$5","v":0},{"$f":"'Population at Risk'!AA232/'Population at Risk'!AA$5","v":0},{"$f":"'Population at Risk'!AB232/'Population at Risk'!AB$5","v":0},{"$f":"'Population at Risk'!AC232/'Population at Risk'!AC$5","v":0},{"$f":"'Population at Risk'!AD232/'Population at Risk'!AD$5","v":0},{"$f":"'Population at Risk'!AE232/'Population at Risk'!AE$5","v":0},{"$f":"'Population at Risk'!AF232/'Population at Risk'!AF$5","v":0},{"$f":"'Population at Risk'!AG232/'Population at Risk'!AG$5","v":0},{"$f":"'Population at Risk'!AH232/'Population at Risk'!AH$5","v":0},{"$f":"'Population at Risk'!AI232/'Population at Risk'!AI$5","v":0},{"$f":"'Population at Risk'!AJ232/'Population at Risk'!AJ$5","v":0},{"$f":"'Population at Risk'!AK232/'Population at Risk'!AK$5","v":0},{"$f":"'Population at Risk'!AL232/'Population at Risk'!AL$5","v":0},{"$f":"'Population at Risk'!AM232/'Population at Risk'!AM$5","v":0},{"$f":"'Population at Risk'!AN232/'Population at Risk'!AN$5","v":0},{"$f":"'Population at Risk'!AO232/'Population at Risk'!AO$5","v":0},{"$f":"'Population at Risk'!AP232/'Population at Risk'!AP$5","v":0},{"$f":"'Population at Risk'!AQ232/'Population at Risk'!AQ$5","v":0},{"$f":"'Population at Risk'!AR232/'Population at Risk'!AR$5","v":0},{"$f":"'Population at Risk'!AS232/'Population at Risk'!AS$5","v":0},{"$f":"'Population at Risk'!AT232/'Population at Risk'!AT$5","v":0},{"$f":"'Population at Risk'!AU232/'Population at Risk'!AU$5","v":0},{"$f":"'Population at Risk'!AV232/'Population at Risk'!AV$5","v":0},{"$f":"'Population at Risk'!AW232/'Population at Risk'!AW$5","v":0},{"$f":"'Population at Risk'!AX232/'Population at Risk'!AX$5","v":0},{"$f":"'Population at Risk'!AY232/'Population at Risk'!AY$5","v":0},{"$f":"'Population at Risk'!AZ232/'Population at Risk'!AZ$5","v":0},{"$f":"'Population at Risk'!BA232/'Population at Risk'!BA$5","v":0},{"$f":"'Population at Risk'!BB232/'Population at Risk'!BB$5","v":0},{"$f":"'Population at Risk'!BC232/'Population at Risk'!BC$5","v":0},230]
[null,"Male 10-15",{"$f":"'Population at Risk'!C233/'Population at Risk'!C$5","v":0},{"$f":"'Population at Risk'!D233/'Population at Risk'!D$5","v":0},{"$f":"'Population at Risk'!E233/'Population at Risk'!E$5","v":0},{"$f":"'Population at Risk'!F233/'Population at Risk'!F$5","v":0},{"$f":"'Population at Risk'!G233/'Population at Risk'!G$5","v":0},{"$f":"'Population at Risk'!H233/'Population at Risk'!H$5","v":0},{"$f":"'Population at Risk'!I233/'Population at Risk'!I$5","v":0},{"$f":"'Population at Risk'!J233/'Population at Risk'!J$5","v":0},{"$f":"'Population at Risk'!K233/'Population at Risk'!K$5","v":0},{"$f":"'Population at Risk'!L233/'Population at Risk'!L$5","v":0},{"$f":"'Population at Risk'!M233/'Population at Risk'!M$5","v":0},{"$f":"'Population at Risk'!N233/'Population at Risk'!N$5","v":0},{"$f":"'Population at Risk'!O233/'Population at Risk'!O$5","v":0},{"$f":"'Population at Risk'!P233/'Population at Risk'!P$5","v":0},{"$f":"'Population at Risk'!Q233/'Population at Risk'!Q$5","v":0},{"$f":"'Population at Risk'!R233/'Population at Risk'!R$5","v":0},{"$f":"'Population at Risk'!S233/'Population at Risk'!S$5","v":0},{"$f":"'Population at Risk'!T233/'Population at Risk'!T$5","v":0},{"$f":"'Population at Risk'!U233/'Population at Risk'!U$5","v":0},{"$f":"'Population at Risk'!V233/'Population at Risk'!V$5","v":0},{"$f":"'Population at Risk'!W233/'Population at Risk'!W$5","v":0},{"$f":"'Population at Risk'!X233/'Population at Risk'!X$5","v":0},{"$f":"'Population at Risk'!Y233/'Population at Risk'!Y$5","v":0},{"$f":"'Population at Risk'!Z233/'Population at Risk'!Z$5","v":0},{"$f":"'Population at Risk'!AA233/'Population at Risk'!AA$5","v":0},{"$f":"'Population at Risk'!AB233/'Population at Risk'!AB$5","v":0},{"$f":"'Population at Risk'!AC233/'Population at Risk'!AC$5","v":0},{"$f":"'Population at Risk'!AD233/'Population at Risk'!AD$5","v":0},{"$f":"'Population at Risk'!AE233/'Population at Risk'!AE$5","v":0},{"$f":"'Population at Risk'!AF233/'Population at Risk'!AF$5","v":0},{"$f":"'Population at Risk'!AG233/'Population at Risk'!AG$5","v":0},{"$f":"'Population at Risk'!AH233/'Population at Risk'!AH$5","v":0},{"$f":"'Population at Risk'!AI233/'Population at Risk'!AI$5","v":0},{"$f":"'Population at Risk'!AJ233/'Population at Risk'!AJ$5","v":0},{"$f":"'Population at Risk'!AK233/'Population at Risk'!AK$5","v":0},{"$f":"'Population at Risk'!AL233/'Population at Risk'!AL$5","v":0},{"$f":"'Population at Risk'!AM233/'Population at Risk'!AM$5","v":0},{"$f":"'Population at Risk'!AN233/'Population at Risk'!AN$5","v":0},{"$f":"'Population at Risk'!AO233/'Population at Risk'!AO$5","v":0},{"$f":"'Population at Risk'!AP233/'Population at Risk'!AP$5","v":0},{"$f":"'Population at Risk'!AQ233/'Population at Risk'!AQ$5","v":0},{"$f":"'Population at Risk'!AR233/'Population at Risk'!AR$5","v":0},{"$f":"'Population at Risk'!AS233/'Population at Risk'!AS$5","v":0},{"$f":"'Population at Risk'!AT233/'Population at Risk'!AT$5","v":0},{"$f":"'Population at Risk'!AU233/'Population at Risk'!AU$5","v":0},{"$f":"'Population at Risk'!AV233/'Population at Risk'!AV$5","v":0},{"$f":"'Population at Risk'!AW233/'Population at Risk'!AW$5","v":0},{"$f":"'Population at Risk'!AX233/'Population at Risk'!AX$5","v":0},{"$f":"'Population at Risk'!AY233/'Population at Risk'!AY$5","v":0},{"$f":"'Population at Risk'!AZ233/'Population at Risk'!AZ$5","v":0},{"$f":"'Population at Risk'!BA233/'Population at Risk'!BA$5","v":0},{"$f":"'Population at Risk'!BB233/'Population at Risk'!BB$5","v":0},{"$f":"'Population at Risk'!BC233/'Population at Risk'!BC$5","v":0},231]
[null,"Male 16-19",{"$f":"'Population at Risk'!C234/'Population at Risk'!C$5","v":9.4652130978548736E-3},{"$f":"'Population at Risk'!D234/'Population at Risk'!D$5","v":9.5482806778911678E-3},{"$f":"'Population at Risk'!E234/'Population at Risk'!E$5","v":9.2299085909165867E-3},{"$f":"'Population at Risk'!F234/'Population at Risk'!F$5","v":4.1133339773548007E-3},{"$f":"'Population at Risk'!G234/'Population at Risk'!G$5","v":4.2911471141112304E-3},{"$f":"'Population at Risk'!H234/'Population at Risk'!H$5","v":2.8325087290758887E-3},{"$f":"'Population at Risk'!I234/'Population at Risk'!I$5","v":2.6029319503271774E-3},{"$f":"'Population at Risk'!J234/'Population at Risk'!J$5","v":8.4516790253918901E-3},{"$f":"'Population at Risk'!K234/'Population at Risk'!K$5","v":2.8830531695920331E-3},{"$f":"'Population at Risk'!L234/'Population at Risk'!L$5","v":1.5896728978092665E-3},{"$f":"'Population at Risk'!M234/'Population at Risk'!M$5","v":1.5896728978092665E-3},{"$f":"'Population at Risk'!N234/'Population at Risk'!N$5","v":4.9907883734729474E-3},{"$f":"'Population at Risk'!O234/'Population at Risk'!O$5","v":2.5639126875552781E-3},{"$f":"'Population at Risk'!P234/'Population at Risk'!P$5","v":1.5364357391309934E-2},{"$f":"'Population at Risk'!Q234/'Population at Risk'!Q$5","v":3.7094530094487726E-3},{"$f":"'Population at Risk'!R234/'Population at Risk'!R$5","v":1.9168915211551351E-2},{"$f":"'Population at Risk'!S234/'Population at Risk'!S$5","v":6.5045583281165996E-3},{"$f":"'Population at Risk'!T234/'Population at Risk'!T$5","v":9.8549902675672992E-3},{"$f":"'Population at Risk'!U234/'Population at Risk'!U$5","v":0},{"$f":"'Population at Risk'!V234/'Population at Risk'!V$5","v":3.8729050629742316E-3},{"$f":"'Population at Risk'!W234/'Population at Risk'!W$5","v":5.5805792606859915E-3},{"$f":"'Population at Risk'!X234/'Population at Risk'!X$5","v":5.5805792606859915E-3},{"$f":"'Population at Risk'!Y234/'Population at Risk'!Y$5","v":5.8975491518040235E-3},{"$f":"'Population at Risk'!Z234/'Population at Risk'!Z$5","v":1.4854053809271511E-3},{"$f":"'Population at Risk'!AA234/'Population at Risk'!AA$5","v":3.4567157906445199E-3},{"$f":"'Population at Risk'!AB234/'Population at Risk'!AB$5","v":9.1054345222521902E-3},{"$f":"'Population at Risk'!AC234/'Population at Risk'!AC$5","v":3.8599709528286254E-3},{"$f":"'Population at Risk'!AD234/'Population at Risk'!AD$5","v":3.2100520085928275E-3},{"$f":"'Population at Risk'!AE234/'Population at Risk'!AE$5","v":2.7142035271557883E-3},{"$f":"'Population at Risk'!AF234/'Population at Risk'!AF$5","v":2.5599293657862171E-3},{"$f":"'Population at Risk'!AG234/'Population at Risk'!AG$5","v":2.7142035271557883E-3},{"$f":"'Population at Risk'!AH234/'Population at Risk'!AH$5","v":2.6733803004784906E-3},{"$f":"'Population at Risk'!AI234/'Population at Risk'!AI$5","v":7.4151530474893647E-3},{"$f":"'Population at Risk'!AJ234/'Population at Risk'!AJ$5","v":3.7286632160877936E-3},{"$f":"'Population at Risk'!AK234/'Population at Risk'!AK$5","v":6.8577673780022925E-3},{"$f":"'Population at Risk'!AL234/'Population at Risk'!AL$5","v":1.8834715141313649E-3},{"$f":"'Population at Risk'!AM234/'Population at Risk'!AM$5","v":2.1527015115701074E-3},{"$f":"'Population at Risk'!AN234/'Population at Risk'!AN$5","v":1.7065182965617823E-3},{"$f":"'Population at Risk'!AO234/'Population at Risk'!AO$5","v":1.7065182965617823E-3},{"$f":"'Population at Risk'!AP234/'Population at Risk'!AP$5","v":5.6767121394740057E-3},{"$f":"'Population at Risk'!AQ234/'Population at Risk'!AQ$5","v":4.9545646177443703E-3},{"$f":"'Population at Risk'!AR234/'Population at Risk'!AR$5","v":4.7652463127193234E-3},{"$f":"'Population at Risk'!AS234/'Population at Risk'!AS$5","v":2.6029319503271774E-3},{"$f":"'Population at Risk'!AT234/'Population at Risk'!AT$5","v":0},{"$f":"'Population at Risk'!AU234/'Population at Risk'!AU$5","v":0},{"$f":"'Population at Risk'!AV234/'Population at Risk'!AV$5","v":4.5211452043433329E-3},{"$f":"'Population at Risk'!AW234/'Population at Risk'!AW$5","v":3.2583588508186194E-3},{"$f":"'Population at Risk'!AX234/'Population at Risk'!AX$5","v":1.182574166701449E-2},{"$f":"'Population at Risk'!AY234/'Population at Risk'!AY$5","v":5.4105738062209625E-3},{"$f":"'Population at Risk'!AZ234/'Population at Risk'!AZ$5","v":5.1010385474777199E-3},{"$f":"'Population at Risk'!BA234/'Population at Risk'!BA$5","v":1.017437727193126E-3},{"$f":"'Population at Risk'!BB234/'Population at Risk'!BB$5","v":4.6154336721838706E-3},{"$f":"'Population at Risk'!BC234/'Population at Risk'!BC$5","v":0},232]
[null,"Male 20-24",{"$f":"'Population at Risk'!C235/'Population at Risk'!C$5","v":1.5754700033581679E-2},{"$f":"'Population at Risk'!D235/'Population at Risk'!D$5","v":1.2844542011467265E-2},{"$f":"'Population at Risk'!E235/'Population at Risk'!E$5","v":9.9666269183548272E-3},{"$f":"'Population at Risk'!F235/'Population at Risk'!F$5","v":4.2932412288494443E-3},{"$f":"'Population at Risk'!G235/'Population at Risk'!G$5","v":1.1366431343925579E-2},{"$f":"'Population at Risk'!H235/'Population at Risk'!H$5","v":3.0949142996482869E-3},{"$f":"'Population at Risk'!I235/'Population at Risk'!I$5","v":2.1393961235565842E-3},{"$f":"'Population at Risk'!J235/'Population at Risk'!J$5","v":9.5752718055234203E-3},{"$f":"'Population at Risk'!K235/'Population at Risk'!K$5","v":3.0115969414846711E-3},{"$f":"'Population at Risk'!L235/'Population at Risk'!L$5","v":1.7458512877694752E-3},{"$f":"'Population at Risk'!M235/'Population at Risk'!M$5","v":1.7458512877694752E-3},{"$f":"'Population at Risk'!N235/'Population at Risk'!N$5","v":6.3326512852085971E-3},{"$f":"'Population at Risk'!O235/'Population at Risk'!O$5","v":2.9072938510671456E-3},{"$f":"'Population at Risk'!P235/'Population at Risk'!P$5","v":1.8251760632200825E-2},{"$f":"'Population at Risk'!Q235/'Population at Risk'!Q$5","v":4.7097549445810263E-3},{"$f":"'Population at Risk'!R235/'Population at Risk'!R$5","v":2.101281887919557E-2},{"$f":"'Population at Risk'!S235/'Population at Risk'!S$5","v":1.0577046608908064E-2},{"$f":"'Population at Risk'!T235/'Population at Risk'!T$5","v":1.7993124914551933E-2},{"$f":"'Population at Risk'!U235/'Population at Risk'!U$5","v":0},{"$f":"'Population at Risk'!V235/'Population at Risk'!V$5","v":4.5512104694838424E-3},{"$f":"'Population at Risk'!W235/'Population at Risk'!W$5","v":9.1541979065197752E-3},{"$f":"'Population at Risk'!X235/'Population at Risk'!X$5","v":9.1541979065197752E-3},{"$f":"'Population at Risk'!Y235/'Population at Risk'!Y$5","v":6.7741281486320372E-3},{"$f":"'Population at Risk'!Z235/'Population at Risk'!Z$5","v":3.5464617833382284E-3},{"$f":"'Population at Risk'!AA235/'Population at Risk'!AA$5","v":4.7259822967532011E-3},{"$f":"'Population at Risk'!AB235/'Population at Risk'!AB$5","v":1.2198771498036703E-2},{"$f":"'Population at Risk'!AC235/'Population at Risk'!AC$5","v":5.5614946212315681E-3},{"$f":"'Population at Risk'!AD235/'Population at Risk'!AD$5","v":5.2808049829608621E-3},{"$f":"'Population at Risk'!AE235/'Population at Risk'!AE$5","v":2.6270002009821086E-3},{"$f":"'Population at Risk'!AF235/'Population at Risk'!AF$5","v":2.3351550800098666E-3},{"$f":"'Population at Risk'!AG235/'Population at Risk'!AG$5","v":2.6270002009821086E-3},{"$f":"'Population at Risk'!AH235/'Population at Risk'!AH$5","v":3.1027833539232223E-3},{"$f":"'Population at Risk'!AI235/'Population at Risk'!AI$5","v":1.2289266675180075E-2},{"$f":"'Population at Risk'!AJ235/'Population at Risk'!AJ$5","v":4.1867561254928659E-3},{"$f":"'Population at Risk'!AK235/'Population at Risk'!AK$5","v":8.9355346465029867E-3},{"$f":"'Population at Risk'!AL235/'Population at Risk'!AL$5","v":1.9857686890202889E-3},{"$f":"'Population at Risk'!AM235/'Population at Risk'!AM$5","v":2.4195004838424659E-3},{"$f":"'Population at Risk'!AN235/'Population at Risk'!AN$5","v":2.6735453312801251E-3},{"$f":"'Population at Risk'!AO235/'Population at Risk'!AO$5","v":2.6735453312801251E-3},{"$f":"'Population at Risk'!AP235/'Population at Risk'!AP$5","v":6.5538430082468999E-3},{"$f":"'Population at Risk'!AQ235/'Population at Risk'!AQ$5","v":5.7415712718265084E-3},{"$f":"'Population at Risk'!AR235/'Population at Risk'!AR$5","v":6.7420434042781401E-3},{"$f":"'Population at Risk'!AS235/'Population at Risk'!AS$5","v":2.1393961235565842E-3},{"$f":"'Population at Risk'!AT235/'Population at Risk'!AT$5","v":0},{"$f":"'Population at Risk'!AU235/'Population at Risk'!AU$5","v":0},{"$f":"'Population at Risk'!AV235/'Population at Risk'!AV$5","v":4.9232233351643798E-3},{"$f":"'Population at Risk'!AW235/'Population at Risk'!AW$5","v":3.8705888787953792E-3},{"$f":"'Population at Risk'!AX235/'Population at Risk'!AX$5","v":1.355578279635636E-2},{"$f":"'Population at Risk'!AY235/'Population at Risk'!AY$5","v":7.7414962315967709E-3},{"$f":"'Population at Risk'!AZ235/'Population at Risk'!AZ$5","v":5.9398099004740563E-3},{"$f":"'Population at Risk'!BA235/'Population at Risk'!BA$5","v":1.2906385983838728E-3},{"$f":"'Population at Risk'!BB235/'Population at Risk'!BB$5","v":4.9545700154901484E-3},{"$f":"'Population at Risk'!BC235/'Population at Risk'!BC$5","v":0},233]
[null,"Male 25-29",{"$f":"'Population at Risk'!C236/'Population at Risk'!C$5","v":9.9704387570196985E-3},{"$f":"'Population at Risk'!D236/'Population at Risk'!D$5","v":6.9084153301528888E-3},{"$f":"'Population at Risk'!E236/'Population at Risk'!E$5","v":4.1471877123087893E-3},{"$f":"'Population at Risk'!F236/'Population at Risk'!F$5","v":1.4553809184897962E-3},{"$f":"'Population at Risk'!G236/'Population at Risk'!G$5","v":3.8490383018498779E-3},{"$f":"'Population at Risk'!H236/'Population at Risk'!H$5","v":9.3556517589347206E-4},{"$f":"'Population at Risk'!I236/'Population at Risk'!I$5","v":6.407622499403448E-4},{"$f":"'Population at Risk'!J236/'Population at Risk'!J$5","v":2.1664762879608679E-3},{"$f":"'Population at Risk'!K236/'Population at Risk'!K$5","v":9.1444945729247517E-4},{"$f":"'Population at Risk'!L236/'Population at Risk'!L$5","v":6.303943094972818E-4},{"$f":"'Population at Risk'!M236/'Population at Risk'!M$5","v":6.303943094972818E-4},{"$f":"'Population at Risk'!N236/'Population at Risk'!N$5","v":2.5484855133142076E-3},{"$f":"'Population at Risk'!O236/'Population at Risk'!O$5","v":1.0111003188720605E-3},{"$f":"'Population at Risk'!P236/'Population at Risk'!P$5","v":6.3929878471552237E-3},{"$f":"'Population at Risk'!Q236/'Population at Risk'!Q$5","v":1.5476147589857298E-3},{"$f":"'Population at Risk'!R236/'Population at Risk'!R$5","v":6.3765011626070707E-3},{"$f":"'Population at Risk'!S236/'Population at Risk'!S$5","v":3.9301677091800108E-3},{"$f":"'Population at Risk'!T236/'Population at Risk'!T$5","v":7.6361577781271202E-3},{"$f":"'Population at Risk'!U236/'Population at Risk'!U$5","v":0},{"$f":"'Population at Risk'!V236/'Population at Risk'!V$5","v":1.935238595607149E-3},{"$f":"'Population at Risk'!W236/'Population at Risk'!W$5","v":2.2081114413341012E-3},{"$f":"'Population at Risk'!X236/'Population at Risk'!X$5","v":2.2081114413341012E-3},{"$f":"'Population at Risk'!Y236/'Population at Risk'!Y$5","v":2.0454239438902132E-3},{"$f":"'Population at Risk'!Z236/'Population at Risk'!Z$5","v":1.6290457606009858E-3},{"$f":"'Population at Risk'!AA236/'Population at Risk'!AA$5","v":1.7670544271080417E-3},{"$f":"'Population at Risk'!AB236/'Population at Risk'!AB$5","v":6.3372588466884235E-3},{"$f":"'Population at Risk'!AC236/'Population at Risk'!AC$5","v":2.1384658604699284E-3},{"$f":"'Population at Risk'!AD236/'Population at Risk'!AD$5","v":1.9783612817549836E-3},{"$f":"'Population at Risk'!AE236/'Population at Risk'!AE$5","v":1.1587864992184964E-3},{"$f":"'Population at Risk'!AF236/'Population at Risk'!AF$5","v":1.0706516196179084E-3},{"$f":"'Population at Risk'!AG236/'Population at Risk'!AG$5","v":1.1587864992184964E-3},{"$f":"'Population at Risk'!AH236/'Population at Risk'!AH$5","v":1.0454654580686858E-3},{"$f":"'Population at Risk'!AI236/'Population at Risk'!AI$5","v":5.1158139381469051E-3},{"$f":"'Population at Risk'!AJ236/'Population at Risk'!AJ$5","v":1.7345300401090855E-3},{"$f":"'Population at Risk'!AK236/'Population at Risk'!AK$5","v":3.510369958843134E-3},{"$f":"'Population at Risk'!AL236/'Population at Risk'!AL$5","v":5.5240734749213282E-4},{"$f":"'Population at Risk'!AM236/'Population at Risk'!AM$5","v":8.8232849484527471E-4},{"$f":"'Population at Risk'!AN236/'Population at Risk'!AN$5","v":1.1084371545584063E-3},{"$f":"'Population at Risk'!AO236/'Population at Risk'!AO$5","v":1.1084371545584063E-3},{"$f":"'Population at Risk'!AP236/'Population at Risk'!AP$5","v":2.278896033676999E-3},{"$f":"'Population at Risk'!AQ236/'Population at Risk'!AQ$5","v":1.9466357088389267E-3},{"$f":"'Population at Risk'!AR236/'Population at Risk'!AR$5","v":2.6288739037059459E-3},{"$f":"'Population at Risk'!AS236/'Population at Risk'!AS$5","v":6.407622499403448E-4},{"$f":"'Population at Risk'!AT236/'Population at Risk'!AT$5","v":0},{"$f":"'Population at Risk'!AU236/'Population at Risk'!AU$5","v":0},{"$f":"'Population at Risk'!AV236/'Population at Risk'!AV$5","v":1.4044731155926768E-3},{"$f":"'Population at Risk'!AW236/'Population at Risk'!AW$5","v":1.2286754826061348E-3},{"$f":"'Population at Risk'!AX236/'Population at Risk'!AX$5","v":2.9226472434526283E-3},{"$f":"'Population at Risk'!AY236/'Population at Risk'!AY$5","v":2.2177769635143376E-3},{"$f":"'Population at Risk'!AZ236/'Population at Risk'!AZ$5","v":2.1830970881162753E-3},{"$f":"'Population at Risk'!BA236/'Population at Risk'!BA$5","v":3.753019112900318E-4},{"$f":"'Population at Risk'!BB236/'Population at Risk'!BB$5","v":1.8884394359562505E-3},{"$f":"'Population at Risk'!BC236/'Population at Risk'!BC$5","v":0},234]
[null,"Male 30-34",{"$f":"'Population at Risk'!C237/'Population at Risk'!C$5","v":8.6288233153933649E-3},{"$f":"'Population at Risk'!D237/'Population at Risk'!D$5","v":6.688271666897682E-3},{"$f":"'Population at Risk'!E237/'Population at Risk'!E$5","v":4.8450317985145944E-3},{"$f":"'Population at Risk'!F237/'Population at Risk'!F$5","v":1.6395167037975074E-3},{"$f":"'Population at Risk'!G237/'Population at Risk'!G$5","v":1.8139146020212068E-3},{"$f":"'Population at Risk'!H237/'Population at Risk'!H$5","v":8.4530065835550954E-4},{"$f":"'Population at Risk'!I237/'Population at Risk'!I$5","v":7.141025074636374E-4},{"$f":"'Population at Risk'!J237/'Population at Risk'!J$5","v":1.7900969328490219E-3},{"$f":"'Population at Risk'!K237/'Population at Risk'!K$5","v":9.3830466052619195E-4},{"$f":"'Population at Risk'!L237/'Population at Risk'!L$5","v":7.2942176807731449E-4},{"$f":"'Population at Risk'!M237/'Population at Risk'!M$5","v":7.2942176807731449E-4},{"$f":"'Population at Risk'!N237/'Population at Risk'!N$5","v":1.7567560138445938E-3},{"$f":"'Population at Risk'!O237/'Population at Risk'!O$5","v":1.0837938058497903E-3},{"$f":"'Population at Risk'!P237/'Population at Risk'!P$5","v":5.3982188602317138E-3},{"$f":"'Population at Risk'!Q237/'Population at Risk'!Q$5","v":1.6829746504422075E-3},{"$f":"'Population at Risk'!R237/'Population at Risk'!R$5","v":5.1954622516198479E-3},{"$f":"'Population at Risk'!S237/'Population at Risk'!S$5","v":3.340986919895577E-3},{"$f":"'Population at Risk'!T237/'Population at Risk'!T$5","v":6.0664935409245717E-3},{"$f":"'Population at Risk'!U237/'Population at Risk'!U$5","v":0},{"$f":"'Population at Risk'!V237/'Population at Risk'!V$5","v":2.3023891247615043E-3},{"$f":"'Population at Risk'!W237/'Population at Risk'!W$5","v":2.1560124264030254E-3},{"$f":"'Population at Risk'!X237/'Population at Risk'!X$5","v":2.1560124264030254E-3},{"$f":"'Population at Risk'!Y237/'Population at Risk'!Y$5","v":2.0883443151718437E-3},{"$f":"'Population at Risk'!Z237/'Population at Risk'!Z$5","v":1.271760296754805E-3},{"$f":"'Population at Risk'!AA237/'Population at Risk'!AA$5","v":1.4870483398232476E-3},{"$f":"'Population at Risk'!AB237/'Population at Risk'!AB$5","v":6.0212877582327077E-3},{"$f":"'Population at Risk'!AC237/'Population at Risk'!AC$5","v":1.7492329721828931E-3},{"$f":"'Population at Risk'!AD237/'Population at Risk'!AD$5","v":1.4366869628245963E-3},{"$f":"'Population at Risk'!AE237/'Population at Risk'!AE$5","v":1.2602688199239861E-3},{"$f":"'Population at Risk'!AF237/'Population at Risk'!AF$5","v":1.0219856369080033E-3},{"$f":"'Population at Risk'!AG237/'Population at Risk'!AG$5","v":1.2602688199239861E-3},{"$f":"'Population at Risk'!AH237/'Population at Risk'!AH$5","v":9.7768714667352714E-4},{"$f":"'Population at Risk'!AI237/'Population at Risk'!AI$5","v":4.2034708214362124E-3},{"$f":"'Population at Risk'!AJ237/'Population at Risk'!AJ$5","v":1.7622087109618902E-3},{"$f":"'Population at Risk'!AK237/'Population at Risk'!AK$5","v":2.7384818866605402E-3},{"$f":"'Population at Risk'!AL237/'Population at Risk'!AL$5","v":5.1332192196202903E-4},{"$f":"'Population at Risk'!AM237/'Population at Risk'!AM$5","v":7.8152331379106486E-4},{"$f":"'Population at Risk'!AN237/'Population at Risk'!AN$5","v":1.009909407486548E-3},{"$f":"'Population at Risk'!AO237/'Population at Risk'!AO$5","v":1.009909407486548E-3},{"$f":"'Population at Risk'!AP237/'Population at Risk'!AP$5","v":2.4239942830122387E-3},{"$f":"'Population at Risk'!AQ237/'Population at Risk'!AQ$5","v":1.7349326211402634E-3},{"$f":"'Population at Risk'!AR237/'Population at Risk'!AR$5","v":2.3132249834126651E-3},{"$f":"'Population at Risk'!AS237/'Population at Risk'!AS$5","v":7.141025074636374E-4},{"$f":"'Population at Risk'!AT237/'Population at Risk'!AT$5","v":0},{"$f":"'Population at Risk'!AU237/'Population at Risk'!AU$5","v":0},{"$f":"'Population at Risk'!AV237/'Population at Risk'!AV$5","v":1.0485184967647808E-3},{"$f":"'Population at Risk'!AW237/'Population at Risk'!AW$5","v":1.1980860515039074E-3},{"$f":"'Population at Risk'!AX237/'Population at Risk'!AX$5","v":2.3016463114542622E-3},{"$f":"'Population at Risk'!AY237/'Population at Risk'!AY$5","v":2.101083518729477E-3},{"$f":"'Population at Risk'!AZ237/'Population at Risk'!AZ$5","v":1.9937665441911471E-3},{"$f":"'Population at Risk'!BA237/'Population at Risk'!BA$5","v":3.4266696248220298E-4},{"$f":"'Population at Risk'!BB237/'Population at Risk'!BB$5","v":1.7278188277947224E-3},{"$f":"'Population at Risk'!BC237/'Population at Risk'!BC$5","v":0},235]
[null,"Male 35-39",{"$f":"'Population at Risk'!C238/'Population at Risk'!C$5","v":7.293915950975163E-3},{"$f":"'Population at Risk'!D238/'Population at Risk'!D$5","v":6.5060131922026762E-3},{"$f":"'Population at Risk'!E238/'Population at Risk'!E$5","v":5.6045036741515621E-3},{"$f":"'Population at Risk'!F238/'Population at Risk'!F$5","v":1.7811596155726699E-3},{"$f":"'Population at Risk'!G238/'Population at Risk'!G$5","v":1.6369473237752353E-3},{"$f":"'Population at Risk'!H238/'Population at Risk'!H$5","v":1.1553858244859223E-3},{"$f":"'Population at Risk'!I238/'Population at Risk'!I$5","v":1.0422036595415247E-3},{"$f":"'Population at Risk'!J238/'Population at Risk'!J$5","v":2.2123762093159706E-3},{"$f":"'Population at Risk'!K238/'Population at Risk'!K$5","v":1.1927601616858372E-3},{"$f":"'Population at Risk'!L238/'Population at Risk'!L$5","v":7.8014314930123377E-4},{"$f":"'Population at Risk'!M238/'Population at Risk'!M$5","v":7.8014314930123377E-4},{"$f":"'Population at Risk'!N238/'Population at Risk'!N$5","v":1.9130631253278653E-3},{"$f":"'Population at Risk'!O238/'Population at Risk'!O$5","v":1.2688317727021935E-3},{"$f":"'Population at Risk'!P238/'Population at Risk'!P$5","v":6.4158036496075981E-3},{"$f":"'Population at Risk'!Q238/'Population at Risk'!Q$5","v":2.0303983718471673E-3},{"$f":"'Population at Risk'!R238/'Population at Risk'!R$5","v":7.8403240381968668E-3},{"$f":"'Population at Risk'!S238/'Population at Risk'!S$5","v":3.394207288746987E-3},{"$f":"'Population at Risk'!T238/'Population at Risk'!T$5","v":5.7172001255031265E-3},{"$f":"'Population at Risk'!U238/'Population at Risk'!U$5","v":0},{"$f":"'Population at Risk'!V238/'Population at Risk'!V$5","v":2.5226794422541173E-3},{"$f":"'Population at Risk'!W238/'Population at Risk'!W$5","v":2.3455641615777903E-3},{"$f":"'Population at Risk'!X238/'Population at Risk'!X$5","v":2.3455641615777903E-3},{"$f":"'Population at Risk'!Y238/'Population at Risk'!Y$5","v":2.3981757453611155E-3},{"$f":"'Population at Risk'!Z238/'Population at Risk'!Z$5","v":1.0786990680007127E-3},{"$f":"'Population at Risk'!AA238/'Population at Risk'!AA$5","v":1.6835009367246608E-3},{"$f":"'Population at Risk'!AB238/'Population at Risk'!AB$5","v":5.7970502115867167E-3},{"$f":"'Population at Risk'!AC238/'Population at Risk'!AC$5","v":1.8838130985057698E-3},{"$f":"'Population at Risk'!AD238/'Population at Risk'!AD$5","v":1.6716902827297795E-3},{"$f":"'Population at Risk'!AE238/'Population at Risk'!AE$5","v":1.6685581567158392E-3},{"$f":"'Population at Risk'!AF238/'Population at Risk'!AF$5","v":1.0111709740835801E-3},{"$f":"'Population at Risk'!AG238/'Population at Risk'!AG$5","v":1.6685581567158392E-3},{"$f":"'Population at Risk'!AH238/'Population at Risk'!AH$5","v":1.2943858052278966E-3},{"$f":"'Population at Risk'!AI238/'Population at Risk'!AI$5","v":4.1611506984388456E-3},{"$f":"'Population at Risk'!AJ238/'Population at Risk'!AJ$5","v":1.9882511895931276E-3},{"$f":"'Population at Risk'!AK238/'Population at Risk'!AK$5","v":2.3156642165477817E-3},{"$f":"'Population at Risk'!AL238/'Population at Risk'!AL$5","v":7.3220030493060997E-4},{"$f":"'Population at Risk'!AM238/'Population at Risk'!AM$5","v":1.0375005151197325E-3},{"$f":"'Population at Risk'!AN238/'Population at Risk'!AN$5","v":1.5025481428458396E-3},{"$f":"'Population at Risk'!AO238/'Population at Risk'!AO$5","v":1.5025481428458396E-3},{"$f":"'Population at Risk'!AP238/'Population at Risk'!AP$5","v":2.8080778841937555E-3},{"$f":"'Population at Risk'!AQ238/'Population at Risk'!AQ$5","v":2.0705594674918027E-3},{"$f":"'Population at Risk'!AR238/'Population at Risk'!AR$5","v":2.4475061445967117E-3},{"$f":"'Population at Risk'!AS238/'Population at Risk'!AS$5","v":1.0422036595415247E-3},{"$f":"'Population at Risk'!AT238/'Population at Risk'!AT$5","v":0},{"$f":"'Population at Risk'!AU238/'Population at Risk'!AU$5","v":0},{"$f":"'Population at Risk'!AV238/'Population at Risk'!AV$5","v":1.6366174322195654E-3},{"$f":"'Population at Risk'!AW238/'Population at Risk'!AW$5","v":1.5830030595402691E-3},{"$f":"'Population at Risk'!AX238/'Population at Risk'!AX$5","v":2.8240756669449512E-3},{"$f":"'Population at Risk'!AY238/'Population at Risk'!AY$5","v":2.3098083916178618E-3},{"$f":"'Population at Risk'!AZ238/'Population at Risk'!AZ$5","v":2.2204480117477632E-3},{"$f":"'Population at Risk'!BA238/'Population at Risk'!BA$5","v":3.5490506828513881E-4},{"$f":"'Population at Risk'!BB238/'Population at Risk'!BB$5","v":2.1706727902972211E-3},{"$f":"'Population at Risk'!BC238/'Population at Risk'!BC$5","v":0},236]
[null,"Male 40-44",{"$f":"'Population at Risk'!C239/'Population at Risk'!C$5","v":6.6164001529538654E-3},{"$f":"'Population at Risk'!D239/'Population at Risk'!D$5","v":6.5500419248537166E-3},{"$f":"'Population at Risk'!E239/'Population at Risk'!E$5","v":6.2316570607157413E-3},{"$f":"'Population at Risk'!F239/'Population at Risk'!F$5","v":2.315861607523909E-3},{"$f":"'Population at Risk'!G239/'Population at Risk'!G$5","v":1.896868013699006E-3},{"$f":"'Population at Risk'!H239/'Population at Risk'!H$5","v":1.5079484106342003E-3},{"$f":"'Population at Risk'!I239/'Population at Risk'!I$5","v":1.447505082696562E-3},{"$f":"'Population at Risk'!J239/'Population at Risk'!J$5","v":3.0967146940909579E-3},{"$f":"'Population at Risk'!K239/'Population at Risk'!K$5","v":1.6857676951826501E-3},{"$f":"'Population at Risk'!L239/'Population at Risk'!L$5","v":8.4777165759979264E-4},{"$f":"'Population at Risk'!M239/'Population at Risk'!M$5","v":8.4777165759979264E-4},{"$f":"'Population at Risk'!N239/'Population at Risk'!N$5","v":1.923257067381122E-3},{"$f":"'Population at Risk'!O239/'Population at Risk'!O$5","v":1.5926482146938993E-3},{"$f":"'Population at Risk'!P239/'Population at Risk'!P$5","v":7.917083450973814E-3},{"$f":"'Population at Risk'!Q239/'Population at Risk'!Q$5","v":2.7568297893302649E-3},{"$f":"'Population at Risk'!R239/'Population at Risk'!R$5","v":9.5702965275302632E-3},{"$f":"'Population at Risk'!S239/'Population at Risk'!S$5","v":3.70069400113246E-3},{"$f":"'Population at Risk'!T239/'Population at Risk'!T$5","v":5.6516537068067559E-3},{"$f":"'Population at Risk'!U239/'Population at Risk'!U$5","v":0},{"$f":"'Population at Risk'!V239/'Population at Risk'!V$5","v":2.8779864059518801E-3},{"$f":"'Population at Risk'!W239/'Population at Risk'!W$5","v":2.8599033728122394E-3},{"$f":"'Population at Risk'!X239/'Population at Risk'!X$5","v":2.8599033728122394E-3},{"$f":"'Population at Risk'!Y239/'Population at Risk'!Y$5","v":2.9869895888809867E-3},{"$f":"'Population at Risk'!Z239/'Population at Risk'!Z$5","v":9.7459263325483511E-4},{"$f":"'Population at Risk'!AA239/'Population at Risk'!AA$5","v":1.8954414976971395E-3},{"$f":"'Population at Risk'!AB239/'Population at Risk'!AB$5","v":5.9236085238982801E-3},{"$f":"'Population at Risk'!AC239/'Population at Risk'!AC$5","v":2.0785838776565383E-3},{"$f":"'Population at Risk'!AD239/'Population at Risk'!AD$5","v":1.7283577499409585E-3},{"$f":"'Population at Risk'!AE239/'Population at Risk'!AE$5","v":1.6378774551072026E-3},{"$f":"'Population at Risk'!AF239/'Population at Risk'!AF$5","v":1.3247961959918563E-3},{"$f":"'Population at Risk'!AG239/'Population at Risk'!AG$5","v":1.6378774551072026E-3},{"$f":"'Population at Risk'!AH239/'Population at Risk'!AH$5","v":1.5397073039944442E-3},{"$f":"'Population at Risk'!AI239/'Population at Risk'!AI$5","v":4.3629094243565281E-3},{"$f":"'Population at Risk'!AJ239/'Population at Risk'!AJ$5","v":2.1866149973715603E-3},{"$f":"'Population at Risk'!AK239/'Population at Risk'!AK$5","v":2.8368115773844374E-3},{"$f":"'Population at Risk'!AL239/'Population at Risk'!AL$5","v":9.1720465243976771E-4},{"$f":"'Population at Risk'!AM239/'Population at Risk'!AM$5","v":1.2175906700368038E-3},{"$f":"'Population at Risk'!AN239/'Population at Risk'!AN$5","v":1.1330690913263707E-3},{"$f":"'Population at Risk'!AO239/'Population at Risk'!AO$5","v":1.1330690913263707E-3},{"$f":"'Population at Risk'!AP239/'Population at Risk'!AP$5","v":3.0555984271773999E-3},{"$f":"'Population at Risk'!AQ239/'Population at Risk'!AQ$5","v":2.4268402736188207E-3},{"$f":"'Population at Risk'!AR239/'Population at Risk'!AR$5","v":2.6927552328129198E-3},{"$f":"'Population at Risk'!AS239/'Population at Risk'!AS$5","v":1.447505082696562E-3},{"$f":"'Population at Risk'!AT239/'Population at Risk'!AT$5","v":0},{"$f":"'Population at Risk'!AU239/'Population at Risk'!AU$5","v":0},{"$f":"'Population at Risk'!AV239/'Population at Risk'!AV$5","v":2.2672761590559463E-3},{"$f":"'Population at Risk'!AW239/'Population at Risk'!AW$5","v":1.9016429668551381E-3},{"$f":"'Population at Risk'!AX239/'Population at Risk'!AX$5","v":3.942863060307087E-3},{"$f":"'Population at Risk'!AY239/'Population at Risk'!AY$5","v":2.7164309105589227E-3},{"$f":"'Population at Risk'!AZ239/'Population at Risk'!AZ$5","v":2.4934961431227784E-3},{"$f":"'Population at Risk'!BA239/'Population at Risk'!BA$5","v":3.8346064849198902E-4},{"$f":"'Population at Risk'!BB239/'Population at Risk'!BB$5","v":2.8177443831765197E-3},{"$f":"'Population at Risk'!BC239/'Population at Risk'!BC$5","v":0},237]
[null,"Male 45-49",{"$f":"'Population at Risk'!C240/'Population at Risk'!C$5","v":7.1409924191917834E-3},{"$f":"'Population at Risk'!D240/'Population at Risk'!D$5","v":7.1962199618328315E-3},{"$f":"'Population at Risk'!E240/'Population at Risk'!E$5","v":6.9502929897413239E-3},{"$f":"'Population at Risk'!F240/'Population at Risk'!F$5","v":2.7353285030162896E-3},{"$f":"'Population at Risk'!G240/'Population at Risk'!G$5","v":1.7158464866379273E-3},{"$f":"'Population at Risk'!H240/'Population at Risk'!H$5","v":1.9916705161033758E-3},{"$f":"'Population at Risk'!I240/'Population at Risk'!I$5","v":2.0690166911442273E-3},{"$f":"'Population at Risk'!J240/'Population at Risk'!J$5","v":4.2461770350009191E-3},{"$f":"'Population at Risk'!K240/'Population at Risk'!K$5","v":2.5607418575631759E-3},{"$f":"'Population at Risk'!L240/'Population at Risk'!L$5","v":1.2248631165091247E-3},{"$f":"'Population at Risk'!M240/'Population at Risk'!M$5","v":1.2248631165091247E-3},{"$f":"'Population at Risk'!N240/'Population at Risk'!N$5","v":2.8465584548544786E-3},{"$f":"'Population at Risk'!O240/'Population at Risk'!O$5","v":2.0539335642949241E-3},{"$f":"'Population at Risk'!P240/'Population at Risk'!P$5","v":1.0003342546275296E-2},{"$f":"'Population at Risk'!Q240/'Population at Risk'!Q$5","v":3.2680963364635717E-3},{"$f":"'Population at Risk'!R240/'Population at Risk'!R$5","v":1.1799315795469809E-2},{"$f":"'Population at Risk'!S240/'Population at Risk'!S$5","v":4.3314379115522864E-3},{"$f":"'Population at Risk'!T240/'Population at Risk'!T$5","v":6.3345148097794695E-3},{"$f":"'Population at Risk'!U240/'Population at Risk'!U$5","v":0},{"$f":"'Population at Risk'!V240/'Population at Risk'!V$5","v":3.3401449136023597E-3},{"$f":"'Population at Risk'!W240/'Population at Risk'!W$5","v":3.3621892551247419E-3},{"$f":"'Population at Risk'!X240/'Population at Risk'!X$5","v":3.3621892551247419E-3},{"$f":"'Population at Risk'!Y240/'Population at Risk'!Y$5","v":3.7525166142859793E-3},{"$f":"'Population at Risk'!Z240/'Population at Risk'!Z$5","v":1.0798301892332362E-3},{"$f":"'Population at Risk'!AA240/'Population at Risk'!AA$5","v":2.3460131939487686E-3},{"$f":"'Population at Risk'!AB240/'Population at Risk'!AB$5","v":6.5756759540541729E-3},{"$f":"'Population at Risk'!AC240/'Population at Risk'!AC$5","v":2.5639963805363587E-3},{"$f":"'Population at Risk'!AD240/'Population at Risk'!AD$5","v":2.0417276505545106E-3},{"$f":"'Population at Risk'!AE240/'Population at Risk'!AE$5","v":2.158865012410565E-3},{"$f":"'Population at Risk'!AF240/'Population at Risk'!AF$5","v":1.671930689035142E-3},{"$f":"'Population at Risk'!AG240/'Population at Risk'!AG$5","v":2.158865012410565E-3},{"$f":"'Population at Risk'!AH240/'Population at Risk'!AH$5","v":1.9226115590596337E-3},{"$f":"'Population at Risk'!AI240/'Population at Risk'!AI$5","v":5.0521489715003275E-3},{"$f":"'Population at Risk'!AJ240/'Population at Risk'!AJ$5","v":2.8625917353500923E-3},{"$f":"'Population at Risk'!AK240/'Population at Risk'!AK$5","v":3.5084714767706113E-3},{"$f":"'Population at Risk'!AL240/'Population at Risk'!AL$5","v":1.31862761002006E-3},{"$f":"'Population at Risk'!AM240/'Population at Risk'!AM$5","v":1.5086886999272433E-3},{"$f":"'Population at Risk'!AN240/'Population at Risk'!AN$5","v":1.7920285006227615E-3},{"$f":"'Population at Risk'!AO240/'Population at Risk'!AO$5","v":1.7920285006227615E-3},{"$f":"'Population at Risk'!AP240/'Population at Risk'!AP$5","v":3.9768466922465908E-3},{"$f":"'Population at Risk'!AQ240/'Population at Risk'!AQ$5","v":3.333942065119555E-3},{"$f":"'Population at Risk'!AR240/'Population at Risk'!AR$5","v":3.229315197751186E-3},{"$f":"'Population at Risk'!AS240/'Population at Risk'!AS$5","v":2.0690166911442273E-3},{"$f":"'Population at Risk'!AT240/'Population at Risk'!AT$5","v":0},{"$f":"'Population at Risk'!AU240/'Population at Risk'!AU$5","v":0},{"$f":"'Population at Risk'!AV240/'Population at Risk'!AV$5","v":2.8934862291201892E-3},{"$f":"'Population at Risk'!AW240/'Population at Risk'!AW$5","v":2.3877219024420289E-3},{"$f":"'Population at Risk'!AX240/'Population at Risk'!AX$5","v":5.2519246185468863E-3},{"$f":"'Population at Risk'!AY240/'Population at Risk'!AY$5","v":3.3535380810834296E-3},{"$f":"'Population at Risk'!AZ240/'Population at Risk'!AZ$5","v":3.2740644394198249E-3},{"$f":"'Population at Risk'!BA240/'Population at Risk'!BA$5","v":7.2013568433890716E-4},{"$f":"'Population at Risk'!BB240/'Population at Risk'!BB$5","v":3.6185797473061447E-3},{"$f":"'Population at Risk'!BC240/'Population at Risk'!BC$5","v":0},238]
[null,"Male 50-54",{"$f":"'Population at Risk'!C241/'Population at Risk'!C$5","v":7.2940991243268839E-3},{"$f":"'Population at Risk'!D241/'Population at Risk'!D$5","v":7.1611645441469352E-3},{"$f":"'Population at Risk'!E241/'Population at Risk'!E$5","v":6.76412442751611E-3},{"$f":"'Population at Risk'!F241/'Population at Risk'!F$5","v":3.2240506316715549E-3},{"$f":"'Population at Risk'!G241/'Population at Risk'!G$5","v":1.8815144232788303E-3},{"$f":"'Population at Risk'!H241/'Population at Risk'!H$5","v":2.1700460272432677E-3},{"$f":"'Population at Risk'!I241/'Population at Risk'!I$5","v":1.7097263675323554E-3},{"$f":"'Population at Risk'!J241/'Population at Risk'!J$5","v":4.0923063174642636E-3},{"$f":"'Population at Risk'!K241/'Population at Risk'!K$5","v":2.4586524811819198E-3},{"$f":"'Population at Risk'!L241/'Population at Risk'!L$5","v":1.4264228698587273E-3},{"$f":"'Population at Risk'!M241/'Population at Risk'!M$5","v":1.4264228698587273E-3},{"$f":"'Population at Risk'!N241/'Population at Risk'!N$5","v":2.8102039407439487E-3},{"$f":"'Population at Risk'!O241/'Population at Risk'!O$5","v":1.8771750819975984E-3},{"$f":"'Population at Risk'!P241/'Population at Risk'!P$5","v":1.1165273012850955E-2},{"$f":"'Population at Risk'!Q241/'Population at Risk'!Q$5","v":3.7701377234535447E-3},{"$f":"'Population at Risk'!R241/'Population at Risk'!R$5","v":1.1526430663950647E-2},{"$f":"'Population at Risk'!S241/'Population at Risk'!S$5","v":4.2229175060973729E-3},{"$f":"'Population at Risk'!T241/'Population at Risk'!T$5","v":6.278228516495195E-3},{"$f":"'Population at Risk'!U241/'Population at Risk'!U$5","v":0},{"$f":"'Population at Risk'!V241/'Population at Risk'!V$5","v":3.2438433151828687E-3},{"$f":"'Population at Risk'!W241/'Population at Risk'!W$5","v":3.149902878875243E-3},{"$f":"'Population at Risk'!X241/'Population at Risk'!X$5","v":3.149902878875243E-3},{"$f":"'Population at Risk'!Y241/'Population at Risk'!Y$5","v":3.6305418868617695E-3},{"$f":"'Population at Risk'!Z241/'Population at Risk'!Z$5","v":1.0620509028245535E-3},{"$f":"'Population at Risk'!AA241/'Population at Risk'!AA$5","v":2.4785760212648329E-3},{"$f":"'Population at Risk'!AB241/'Population at Risk'!AB$5","v":6.4784402814334159E-3},{"$f":"'Population at Risk'!AC241/'Population at Risk'!AC$5","v":2.7198704520991056E-3},{"$f":"'Population at Risk'!AD241/'Population at Risk'!AD$5","v":2.0863068568984957E-3},{"$f":"'Population at Risk'!AE241/'Population at Risk'!AE$5","v":2.1512900474547386E-3},{"$f":"'Population at Risk'!AF241/'Population at Risk'!AF$5","v":2.476077283415366E-3},{"$f":"'Population at Risk'!AG241/'Population at Risk'!AG$5","v":2.1512900474547386E-3},{"$f":"'Population at Risk'!AH241/'Population at Risk'!AH$5","v":2.0098863160796974E-3},{"$f":"'Population at Risk'!AI241/'Population at Risk'!AI$5","v":5.0216128480794217E-3},{"$f":"'Population at Risk'!AJ241/'Population at Risk'!AJ$5","v":2.6404941007108613E-3},{"$f":"'Population at Risk'!AK241/'Population at Risk'!AK$5","v":3.1139656885280391E-3},{"$f":"'Population at Risk'!AL241/'Population at Risk'!AL$5","v":1.4635930132357962E-3},{"$f":"'Population at Risk'!AM241/'Population at Risk'!AM$5","v":1.6298685151824436E-3},{"$f":"'Population at Risk'!AN241/'Population at Risk'!AN$5","v":1.6602616991063821E-3},{"$f":"'Population at Risk'!AO241/'Population at Risk'!AO$5","v":1.6602616991063821E-3},{"$f":"'Population at Risk'!AP241/'Population at Risk'!AP$5","v":4.9767656653832201E-3},{"$f":"'Population at Risk'!AQ241/'Population at Risk'!AQ$5","v":3.7869383357737449E-3},{"$f":"'Population at Risk'!AR241/'Population at Risk'!AR$5","v":3.2855178683083536E-3},{"$f":"'Population at Risk'!AS241/'Population at Risk'!AS$5","v":1.7097263675323554E-3},{"$f":"'Population at Risk'!AT241/'Population at Risk'!AT$5","v":0},{"$f":"'Population at Risk'!AU241/'Population at Risk'!AU$5","v":0},{"$f":"'Population at Risk'!AV241/'Population at Risk'!AV$5","v":3.5351033471654387E-3},{"$f":"'Population at Risk'!AW241/'Population at Risk'!AW$5","v":2.4368127011215909E-3},{"$f":"'Population at Risk'!AX241/'Population at Risk'!AX$5","v":5.0673690345618043E-3},{"$f":"'Population at Risk'!AY241/'Population at Risk'!AY$5","v":3.4558625015194814E-3},{"$f":"'Population at Risk'!AZ241/'Population at Risk'!AZ$5","v":3.7398193975527795E-3},{"$f":"'Population at Risk'!BA241/'Population at Risk'!BA$5","v":7.6814472996150098E-4},{"$f":"'Population at Risk'!BB241/'Population at Risk'!BB$5","v":3.4811031761737541E-3},{"$f":"'Population at Risk'!BC241/'Population at Risk'!BC$5","v":0},239]
[null,"Male 55-59",{"$f":"'Population at Risk'!C242/'Population at Risk'!C$5","v":3.1540230244648942E-2},{"$f":"'Population at Risk'!D242/'Population at Risk'!D$5","v":2.9566449875732471E-2},{"$f":"'Population at Risk'!E242/'Population at Risk'!E$5","v":2.6772095337813683E-2},{"$f":"'Population at Risk'!F242/'Population at Risk'!F$5","v":1.2831460880722872E-2},{"$f":"'Population at Risk'!G242/'Population at Risk'!G$5","v":7.4875394262846401E-3},{"$f":"'Population at Risk'!H242/'Population at Risk'!H$5","v":1.0142927112200327E-2},{"$f":"'Population at Risk'!I242/'Population at Risk'!I$5","v":6.6325066150163354E-3},{"$f":"'Population at Risk'!J242/'Population at Risk'!J$5","v":1.604477847633675E-2},{"$f":"'Population at Risk'!K242/'Population at Risk'!K$5","v":9.4350095466750206E-3},{"$f":"'Population at Risk'!L242/'Population at Risk'!L$5","v":5.8862731431250604E-3},{"$f":"'Population at Risk'!M242/'Population at Risk'!M$5","v":5.8862731431250604E-3},{"$f":"'Population at Risk'!N242/'Population at Risk'!N$5","v":1.3634585817777885E-2},{"$f":"'Population at Risk'!O242/'Population at Risk'!O$5","v":8.8010304016048532E-3},{"$f":"'Population at Risk'!P242/'Population at Risk'!P$5","v":4.6841979328235826E-2},{"$f":"'Population at Risk'!Q242/'Population at Risk'!Q$5","v":1.3195280384500132E-2},{"$f":"'Population at Risk'!R242/'Population at Risk'!R$5","v":5.3451601942635339E-2},{"$f":"'Population at Risk'!S242/'Population at Risk'!S$5","v":1.764193166662479E-2},{"$f":"'Population at Risk'!T242/'Population at Risk'!T$5","v":2.6644804675674885E-2},{"$f":"'Population at Risk'!U242/'Population at Risk'!U$5","v":0},{"$f":"'Population at Risk'!V242/'Population at Risk'!V$5","v":1.2361801362217057E-2},{"$f":"'Population at Risk'!W242/'Population at Risk'!W$5","v":1.3911210575938792E-2},{"$f":"'Population at Risk'!X242/'Population at Risk'!X$5","v":1.3911210575938792E-2},{"$f":"'Population at Risk'!Y242/'Population at Risk'!Y$5","v":1.4032526189698457E-2},{"$f":"'Population at Risk'!Z242/'Population at Risk'!Z$5","v":4.2881414752131159E-3},{"$f":"'Population at Risk'!AA242/'Population at Risk'!AA$5","v":1.0527950838424656E-2},{"$f":"'Population at Risk'!AB242/'Population at Risk'!AB$5","v":2.6588164993646437E-2},{"$f":"'Population at Risk'!AC242/'Population at Risk'!AC$5","v":1.1621146276976095E-2},{"$f":"'Population at Risk'!AD242/'Population at Risk'!AD$5","v":8.5914210165241346E-3},{"$f":"'Population at Risk'!AE242/'Population at Risk'!AE$5","v":8.9702112342174255E-3},{"$f":"'Population at Risk'!AF242/'Population at Risk'!AF$5","v":1.0169738508288851E-2},{"$f":"'Population at Risk'!AG242/'Population at Risk'!AG$5","v":8.9702112342174255E-3},{"$f":"'Population at Risk'!AH242/'Population at Risk'!AH$5","v":8.4044758240515299E-3},{"$f":"'Population at Risk'!AI242/'Population at Risk'!AI$5","v":2.0709824505177568E-2},{"$f":"'Population at Risk'!AJ242/'Population at Risk'!AJ$5","v":1.0629265842791525E-2},{"$f":"'Population at Risk'!AK242/'Population at Risk'!AK$5","v":1.193342291252621E-2},{"$f":"'Population at Risk'!AL242/'Population at Risk'!AL$5","v":5.9525767164090981E-3},{"$f":"'Population at Risk'!AM242/'Population at Risk'!AM$5","v":6.502117793369378E-3},{"$f":"'Population at Risk'!AN242/'Population at Risk'!AN$5","v":8.8528856857369668E-3},{"$f":"'Population at Risk'!AO242/'Population at Risk'!AO$5","v":8.8528856857369668E-3},{"$f":"'Population at Risk'!AP242/'Population at Risk'!AP$5","v":1.8783832613853579E-2},{"$f":"'Population at Risk'!AQ242/'Population at Risk'!AQ$5","v":1.6511477085717499E-2},{"$f":"'Population at Risk'!AR242/'Population at Risk'!AR$5","v":1.3751692965345197E-2},{"$f":"'Population at Risk'!AS242/'Population at Risk'!AS$5","v":6.6325066150163354E-3},{"$f":"'Population at Risk'!AT242/'Population at Risk'!AT$5","v":0},{"$f":"'Population at Risk'!AU242/'Population at Risk'!AU$5","v":0},{"$f":"'Population at Risk'!AV242/'Population at Risk'!AV$5","v":1.7810735386877267E-2},{"$f":"'Population at Risk'!AW242/'Population at Risk'!AW$5","v":1.0542239426890952E-2},{"$f":"'Population at Risk'!AX242/'Population at Risk'!AX$5","v":1.9994583123636819E-2},{"$f":"'Population at Risk'!AY242/'Population at Risk'!AY$5","v":1.4789609380808767E-2},{"$f":"'Population at Risk'!AZ242/'Population at Risk'!AZ$5","v":1.5504067357191774E-2},{"$f":"'Population at Risk'!BA242/'Population at Risk'!BA$5","v":2.8318842406363882E-3},{"$f":"'Population at Risk'!BB242/'Population at Risk'!BB$5","v":1.3680778274028802E-2},{"$f":"'Population at Risk'!BC242/'Population at Risk'!BC$5","v":0},240]
[null,"Male 60-64",{"$f":"'Population at Risk'!C243/'Population at Risk'!C$5","v":2.7951359368643514E-2},{"$f":"'Population at Risk'!D243/'Population at Risk'!D$5","v":2.6647613647591106E-2},{"$f":"'Population at Risk'!E243/'Population at Risk'!E$5","v":2.451431529765806E-2},{"$f":"'Population at Risk'!F243/'Population at Risk'!F$5","v":1.1907456224909949E-2},{"$f":"'Population at Risk'!G243/'Population at Risk'!G$5","v":6.180623453696776E-3},{"$f":"'Population at Risk'!H243/'Population at Risk'!H$5","v":9.5207578718127812E-3},{"$f":"'Population at Risk'!I243/'Population at Risk'!I$5","v":6.9935886370372817E-3},{"$f":"'Population at Risk'!J243/'Population at Risk'!J$5","v":1.5246305932443934E-2},{"$f":"'Population at Risk'!K243/'Population at Risk'!K$5","v":1.0531193228446393E-2},{"$f":"'Population at Risk'!L243/'Population at Risk'!L$5","v":5.6008780816402086E-3},{"$f":"'Population at Risk'!M243/'Population at Risk'!M$5","v":5.6008780816402086E-3},{"$f":"'Population at Risk'!N243/'Population at Risk'!N$5","v":1.1091693738879433E-2},{"$f":"'Population at Risk'!O243/'Population at Risk'!O$5","v":7.629728758507719E-3},{"$f":"'Population at Risk'!P243/'Population at Risk'!P$5","v":4.1405164461361457E-2},{"$f":"'Population at Risk'!Q243/'Population at Risk'!Q$5","v":1.115156692427452E-2},{"$f":"'Population at Risk'!R243/'Population at Risk'!R$5","v":4.5234578354926842E-2},{"$f":"'Population at Risk'!S243/'Population at Risk'!S$5","v":1.5035562066042708E-2},{"$f":"'Population at Risk'!T243/'Population at Risk'!T$5","v":2.2920901297098492E-2},{"$f":"'Population at Risk'!U243/'Population at Risk'!U$5","v":0},{"$f":"'Population at Risk'!V243/'Population at Risk'!V$5","v":1.0064372241125774E-2},{"$f":"'Population at Risk'!W243/'Population at Risk'!W$5","v":1.1973792076739785E-2},{"$f":"'Population at Risk'!X243/'Population at Risk'!X$5","v":1.1973792076739785E-2},{"$f":"'Population at Risk'!Y243/'Population at Risk'!Y$5","v":1.2381640755616284E-2},{"$f":"'Population at Risk'!Z243/'Population at Risk'!Z$5","v":3.816494040228957E-3},{"$f":"'Population at Risk'!AA243/'Population at Risk'!AA$5","v":9.1182709634616676E-3},{"$f":"'Population at Risk'!AB243/'Population at Risk'!AB$5","v":2.4062331137691351E-2},{"$f":"'Population at Risk'!AC243/'Population at Risk'!AC$5","v":1.0033059725460466E-2},{"$f":"'Population at Risk'!AD243/'Population at Risk'!AD$5","v":7.7134056881878578E-3},{"$f":"'Population at Risk'!AE243/'Population at Risk'!AE$5","v":8.2846640025868203E-3},{"$f":"'Population at Risk'!AF243/'Population at Risk'!AF$5","v":8.4392856207527907E-3},{"$f":"'Population at Risk'!AG243/'Population at Risk'!AG$5","v":8.2846640025868203E-3},{"$f":"'Population at Risk'!AH243/'Population at Risk'!AH$5","v":7.3413657408967336E-3},{"$f":"'Population at Risk'!AI243/'Population at Risk'!AI$5","v":1.7426973287990435E-2},{"$f":"'Population at Risk'!AJ243/'Population at Risk'!AJ$5","v":8.948569961666368E-3},{"$f":"'Population at Risk'!AK243/'Population at Risk'!AK$5","v":1.1328279762803786E-2},{"$f":"'Population at Risk'!AL243/'Population at Risk'!AL$5","v":6.080865007711018E-3},{"$f":"'Population at Risk'!AM243/'Population at Risk'!AM$5","v":5.3924081528200583E-3},{"$f":"'Population at Risk'!AN243/'Population at Risk'!AN$5","v":6.548709959312277E-3},{"$f":"'Population at Risk'!AO243/'Population at Risk'!AO$5","v":6.548709959312277E-3},{"$f":"'Population at Risk'!AP243/'Population at Risk'!AP$5","v":1.8846865609202082E-2},{"$f":"'Population at Risk'!AQ243/'Population at Risk'!AQ$5","v":1.3473568676567014E-2},{"$f":"'Population at Risk'!AR243/'Population at Risk'!AR$5","v":1.2082475607709945E-2},{"$f":"'Population at Risk'!AS243/'Population at Risk'!AS$5","v":6.9935886370372817E-3},{"$f":"'Population at Risk'!AT243/'Population at Risk'!AT$5","v":0},{"$f":"'Population at Risk'!AU243/'Population at Risk'!AU$5","v":0},{"$f":"'Population at Risk'!AV243/'Population at Risk'!AV$5","v":1.6724947240297584E-2},{"$f":"'Population at Risk'!AW243/'Population at Risk'!AW$5","v":9.5319414818139034E-3},{"$f":"'Population at Risk'!AX243/'Population at Risk'!AX$5","v":1.8029096190366693E-2},{"$f":"'Population at Risk'!AY243/'Population at Risk'!AY$5","v":1.3140067445464258E-2},{"$f":"'Population at Risk'!AZ243/'Population at Risk'!AZ$5","v":1.4223158724818467E-2},{"$f":"'Population at Risk'!BA243/'Population at Risk'!BA$5","v":2.7917156698472195E-3},{"$f":"'Population at Risk'!BB243/'Population at Risk'!BB$5","v":1.015608560557547E-2},{"$f":"'Population at Risk'!BC243/'Population at Risk'!BC$5","v":0},241]
[null,"Male 65-69",{"$f":"'Population at Risk'!C244/'Population at Risk'!C$5","v":0},{"$f":"'Population at Risk'!D244/'Population at Risk'!D$5","v":0},{"$f":"'Population at Risk'!E244/'Population at Risk'!E$5","v":0},{"$f":"'Population at Risk'!F244/'Population at Risk'!F$5","v":0},{"$f":"'Population at Risk'!G244/'Population at Risk'!G$5","v":0},{"$f":"'Population at Risk'!H244/'Population at Risk'!H$5","v":0},{"$f":"'Population at Risk'!I244/'Population at Risk'!I$5","v":0},{"$f":"'Population at Risk'!J244/'Population at Risk'!J$5","v":0},{"$f":"'Population at Risk'!K244/'Population at Risk'!K$5","v":0},{"$f":"'Population at Risk'!L244/'Population at Risk'!L$5","v":0},{"$f":"'Population at Risk'!M244/'Population at Risk'!M$5","v":0},{"$f":"'Population at Risk'!N244/'Population at Risk'!N$5","v":0},{"$f":"'Population at Risk'!O244/'Population at Risk'!O$5","v":0},{"$f":"'Population at Risk'!P244/'Population at Risk'!P$5","v":0},{"$f":"'Population at Risk'!Q244/'Population at Risk'!Q$5","v":0},{"$f":"'Population at Risk'!R244/'Population at Risk'!R$5","v":0},{"$f":"'Population at Risk'!S244/'Population at Risk'!S$5","v":0},{"$f":"'Population at Risk'!T244/'Population at Risk'!T$5","v":0},{"$f":"'Population at Risk'!U244/'Population at Risk'!U$5","v":0},{"$f":"'Population at Risk'!V244/'Population at Risk'!V$5","v":0},{"$f":"'Population at Risk'!W244/'Population at Risk'!W$5","v":0},{"$f":"'Population at Risk'!X244/'Population at Risk'!X$5","v":0},{"$f":"'Population at Risk'!Y244/'Population at Risk'!Y$5","v":0},{"$f":"'Population at Risk'!Z244/'Population at Risk'!Z$5","v":0},{"$f":"'Population at Risk'!AA244/'Population at Risk'!AA$5","v":0},{"$f":"'Population at Risk'!AB244/'Population at Risk'!AB$5","v":0},{"$f":"'Population at Risk'!AC244/'Population at Risk'!AC$5","v":0},{"$f":"'Population at Risk'!AD244/'Population at Risk'!AD$5","v":0},{"$f":"'Population at Risk'!AE244/'Population at Risk'!AE$5","v":0},{"$f":"'Population at Risk'!AF244/'Population at Risk'!AF$5","v":0},{"$f":"'Population at Risk'!AG244/'Population at Risk'!AG$5","v":0},{"$f":"'Population at Risk'!AH244/'Population at Risk'!AH$5","v":0},{"$f":"'Population at Risk'!AI244/'Population at Risk'!AI$5","v":0},{"$f":"'Population at Risk'!AJ244/'Population at Risk'!AJ$5","v":0},{"$f":"'Population at Risk'!AK244/'Population at Risk'!AK$5","v":0},{"$f":"'Population at Risk'!AL244/'Population at Risk'!AL$5","v":0},{"$f":"'Population at Risk'!AM244/'Population at Risk'!AM$5","v":0},{"$f":"'Population at Risk'!AN244/'Population at Risk'!AN$5","v":0},{"$f":"'Population at Risk'!AO244/'Population at Risk'!AO$5","v":0},{"$f":"'Population at Risk'!AP244/'Population at Risk'!AP$5","v":0},{"$f":"'Population at Risk'!AQ244/'Population at Risk'!AQ$5","v":0},{"$f":"'Population at Risk'!AR244/'Population at Risk'!AR$5","v":0},{"$f":"'Population at Risk'!AS244/'Population at Risk'!AS$5","v":0},{"$f":"'Population at Risk'!AT244/'Population at Risk'!AT$5","v":0},{"$f":"'Population at Risk'!AU244/'Population at Risk'!AU$5","v":0},{"$f":"'Population at Risk'!AV244/'Population at Risk'!AV$5","v":0},{"$f":"'Population at Risk'!AW244/'Population at Risk'!AW$5","v":0},{"$f":"'Population at Risk'!AX244/'Population at Risk'!AX$5","v":0},{"$f":"'Population at Risk'!AY244/'Population at Risk'!AY$5","v":0},{"$f":"'Population at Risk'!AZ244/'Population at Risk'!AZ$5","v":0},{"$f":"'Population at Risk'!BA244/'Population at Risk'!BA$5","v":0},{"$f":"'Population at Risk'!BB244/'Population at Risk'!BB$5","v":0},{"$f":"'Population at Risk'!BC244/'Population at Risk'!BC$5","v":0},242]
[null,"Male 70-74",{"$f":"'Population at Risk'!C245/'Population at Risk'!C$5","v":0},{"$f":"'Population at Risk'!D245/'Population at Risk'!D$5","v":0},{"$f":"'Population at Risk'!E245/'Population at Risk'!E$5","v":0},{"$f":"'Population at Risk'!F245/'Population at Risk'!F$5","v":0},{"$f":"'Population at Risk'!G245/'Population at Risk'!G$5","v":0},{"$f":"'Population at Risk'!H245/'Population at Risk'!H$5","v":0},{"$f":"'Population at Risk'!I245/'Population at Risk'!I$5","v":0},{"$f":"'Population at Risk'!J245/'Population at Risk'!J$5","v":0},{"$f":"'Population at Risk'!K245/'Population at Risk'!K$5","v":0},{"$f":"'Population at Risk'!L245/'Population at Risk'!L$5","v":0},{"$f":"'Population at Risk'!M245/'Population at Risk'!M$5","v":0},{"$f":"'Population at Risk'!N245/'Population at Risk'!N$5","v":0},{"$f":"'Population at Risk'!O245/'Population at Risk'!O$5","v":0},{"$f":"'Population at Risk'!P245/'Population at Risk'!P$5","v":0},{"$f":"'Population at Risk'!Q245/'Population at Risk'!Q$5","v":0},{"$f":"'Population at Risk'!R245/'Population at Risk'!R$5","v":0},{"$f":"'Population at Risk'!S245/'Population at Risk'!S$5","v":0},{"$f":"'Population at Risk'!T245/'Population at Risk'!T$5","v":0},{"$f":"'Population at Risk'!U245/'Population at Risk'!U$5","v":0},{"$f":"'Population at Risk'!V245/'Population at Risk'!V$5","v":0},{"$f":"'Population at Risk'!W245/'Population at Risk'!W$5","v":0},{"$f":"'Population at Risk'!X245/'Population at Risk'!X$5","v":0},{"$f":"'Population at Risk'!Y245/'Population at Risk'!Y$5","v":0},{"$f":"'Population at Risk'!Z245/'Population at Risk'!Z$5","v":0},{"$f":"'Population at Risk'!AA245/'Population at Risk'!AA$5","v":0},{"$f":"'Population at Risk'!AB245/'Population at Risk'!AB$5","v":0},{"$f":"'Population at Risk'!AC245/'Population at Risk'!AC$5","v":0},{"$f":"'Population at Risk'!AD245/'Population at Risk'!AD$5","v":0},{"$f":"'Population at Risk'!AE245/'Population at Risk'!AE$5","v":0},{"$f":"'Population at Risk'!AF245/'Population at Risk'!AF$5","v":0},{"$f":"'Population at Risk'!AG245/'Population at Risk'!AG$5","v":0},{"$f":"'Population at Risk'!AH245/'Population at Risk'!AH$5","v":0},{"$f":"'Population at Risk'!AI245/'Population at Risk'!AI$5","v":0},{"$f":"'Population at Risk'!AJ245/'Population at Risk'!AJ$5","v":0},{"$f":"'Population at Risk'!AK245/'Population at Risk'!AK$5","v":0},{"$f":"'Population at Risk'!AL245/'Population at Risk'!AL$5","v":0},{"$f":"'Population at Risk'!AM245/'Population at Risk'!AM$5","v":0},{"$f":"'Population at Risk'!AN245/'Population at Risk'!AN$5","v":0},{"$f":"'Population at Risk'!AO245/'Population at Risk'!AO$5","v":0},{"$f":"'Population at Risk'!AP245/'Population at Risk'!AP$5","v":0},{"$f":"'Population at Risk'!AQ245/'Population at Risk'!AQ$5","v":0},{"$f":"'Population at Risk'!AR245/'Population at Risk'!AR$5","v":0},{"$f":"'Population at Risk'!AS245/'Population at Risk'!AS$5","v":0},{"$f":"'Population at Risk'!AT245/'Population at Risk'!AT$5","v":0},{"$f":"'Population at Risk'!AU245/'Population at Risk'!AU$5","v":0},{"$f":"'Population at Risk'!AV245/'Population at Risk'!AV$5","v":0},{"$f":"'Population at Risk'!AW245/'Population at Risk'!AW$5","v":0},{"$f":"'Population at Risk'!AX245/'Population at Risk'!AX$5","v":0},{"$f":"'Population at Risk'!AY245/'Population at Risk'!AY$5","v":0},{"$f":"'Population at Risk'!AZ245/'Population at Risk'!AZ$5","v":0},{"$f":"'Population at Risk'!BA245/'Population at Risk'!BA$5","v":0},{"$f":"'Population at Risk'!BB245/'Population at Risk'!BB$5","v":0},{"$f":"'Population at Risk'!BC245/'Population at Risk'!BC$5","v":0},243]
[null,"Male 75-79",{"$f":"'Population at Risk'!C246/'Population at Risk'!C$5","v":0},{"$f":"'Population at Risk'!D246/'Population at Risk'!D$5","v":0},{"$f":"'Population at Risk'!E246/'Population at Risk'!E$5","v":0},{"$f":"'Population at Risk'!F246/'Population at Risk'!F$5","v":0},{"$f":"'Population at Risk'!G246/'Population at Risk'!G$5","v":0},{"$f":"'Population at Risk'!H246/'Population at Risk'!H$5","v":0},{"$f":"'Population at Risk'!I246/'Population at Risk'!I$5","v":0},{"$f":"'Population at Risk'!J246/'Population at Risk'!J$5","v":0},{"$f":"'Population at Risk'!K246/'Population at Risk'!K$5","v":0},{"$f":"'Population at Risk'!L246/'Population at Risk'!L$5","v":0},{"$f":"'Population at Risk'!M246/'Population at Risk'!M$5","v":0},{"$f":"'Population at Risk'!N246/'Population at Risk'!N$5","v":0},{"$f":"'Population at Risk'!O246/'Population at Risk'!O$5","v":0},{"$f":"'Population at Risk'!P246/'Population at Risk'!P$5","v":0},{"$f":"'Population at Risk'!Q246/'Population at Risk'!Q$5","v":0},{"$f":"'Population at Risk'!R246/'Population at Risk'!R$5","v":0},{"$f":"'Population at Risk'!S246/'Population at Risk'!S$5","v":0},{"$f":"'Population at Risk'!T246/'Population at Risk'!T$5","v":0},{"$f":"'Population at Risk'!U246/'Population at Risk'!U$5","v":0},{"$f":"'Population at Risk'!V246/'Population at Risk'!V$5","v":0},{"$f":"'Population at Risk'!W246/'Population at Risk'!W$5","v":0},{"$f":"'Population at Risk'!X246/'Population at Risk'!X$5","v":0},{"$f":"'Population at Risk'!Y246/'Population at Risk'!Y$5","v":0},{"$f":"'Population at Risk'!Z246/'Population at Risk'!Z$5","v":0},{"$f":"'Population at Risk'!AA246/'Population at Risk'!AA$5","v":0},{"$f":"'Population at Risk'!AB246/'Population at Risk'!AB$5","v":0},{"$f":"'Population at Risk'!AC246/'Population at Risk'!AC$5","v":0},{"$f":"'Population at Risk'!AD246/'Population at Risk'!AD$5","v":0},{"$f":"'Population at Risk'!AE246/'Population at Risk'!AE$5","v":0},{"$f":"'Population at Risk'!AF246/'Population at Risk'!AF$5","v":0},{"$f":"'Population at Risk'!AG246/'Population at Risk'!AG$5","v":0},{"$f":"'Population at Risk'!AH246/'Population at Risk'!AH$5","v":0},{"$f":"'Population at Risk'!AI246/'Population at Risk'!AI$5","v":0},{"$f":"'Population at Risk'!AJ246/'Population at Risk'!AJ$5","v":0},{"$f":"'Population at Risk'!AK246/'Population at Risk'!AK$5","v":0},{"$f":"'Population at Risk'!AL246/'Population at Risk'!AL$5","v":0},{"$f":"'Population at Risk'!AM246/'Population at Risk'!AM$5","v":0},{"$f":"'Population at Risk'!AN246/'Population at Risk'!AN$5","v":0},{"$f":"'Population at Risk'!AO246/'Population at Risk'!AO$5","v":0},{"$f":"'Population at Risk'!AP246/'Population at Risk'!AP$5","v":0},{"$f":"'Population at Risk'!AQ246/'Population at Risk'!AQ$5","v":0},{"$f":"'Population at Risk'!AR246/'Population at Risk'!AR$5","v":0},{"$f":"'Population at Risk'!AS246/'Population at Risk'!AS$5","v":0},{"$f":"'Population at Risk'!AT246/'Population at Risk'!AT$5","v":0},{"$f":"'Population at Risk'!AU246/'Population at Risk'!AU$5","v":0},{"$f":"'Population at Risk'!AV246/'Population at Risk'!AV$5","v":0},{"$f":"'Population at Risk'!AW246/'Population at Risk'!AW$5","v":0},{"$f":"'Population at Risk'!AX246/'Population at Risk'!AX$5","v":0},{"$f":"'Population at Risk'!AY246/'Population at Risk'!AY$5","v":0},{"$f":"'Population at Risk'!AZ246/'Population at Risk'!AZ$5","v":0},{"$f":"'Population at Risk'!BA246/'Population at Risk'!BA$5","v":0},{"$f":"'Population at Risk'!BB246/'Population at Risk'!BB$5","v":0},{"$f":"'Population at Risk'!BC246/'Population at Risk'!BC$5","v":0},244]
[null,"Male 80-84",{"$f":"'Population at Risk'!C247/'Population at Risk'!C$5","v":0},{"$f":"'Population at Risk'!D247/'Population at Risk'!D$5","v":0},{"$f":"'Population at Risk'!E247/'Population at Risk'!E$5","v":0},{"$f":"'Population at Risk'!F247/'Population at Risk'!F$5","v":0},{"$f":"'Population at Risk'!G247/'Population at Risk'!G$5","v":0},{"$f":"'Population at Risk'!H247/'Population at Risk'!H$5","v":0},{"$f":"'Population at Risk'!I247/'Population at Risk'!I$5","v":0},{"$f":"'Population at Risk'!J247/'Population at Risk'!J$5","v":0},{"$f":"'Population at Risk'!K247/'Population at Risk'!K$5","v":0},{"$f":"'Population at Risk'!L247/'Population at Risk'!L$5","v":0},{"$f":"'Population at Risk'!M247/'Population at Risk'!M$5","v":0},{"$f":"'Population at Risk'!N247/'Population at Risk'!N$5","v":0},{"$f":"'Population at Risk'!O247/'Population at Risk'!O$5","v":0},{"$f":"'Population at Risk'!P247/'Population at Risk'!P$5","v":0},{"$f":"'Population at Risk'!Q247/'Population at Risk'!Q$5","v":0},{"$f":"'Population at Risk'!R247/'Population at Risk'!R$5","v":0},{"$f":"'Population at Risk'!S247/'Population at Risk'!S$5","v":0},{"$f":"'Population at Risk'!T247/'Population at Risk'!T$5","v":0},{"$f":"'Population at Risk'!U247/'Population at Risk'!U$5","v":0},{"$f":"'Population at Risk'!V247/'Population at Risk'!V$5","v":0},{"$f":"'Population at Risk'!W247/'Population at Risk'!W$5","v":0},{"$f":"'Population at Risk'!X247/'Population at Risk'!X$5","v":0},{"$f":"'Population at Risk'!Y247/'Population at Risk'!Y$5","v":0},{"$f":"'Population at Risk'!Z247/'Population at Risk'!Z$5","v":0},{"$f":"'Population at Risk'!AA247/'Population at Risk'!AA$5","v":0},{"$f":"'Population at Risk'!AB247/'Population at Risk'!AB$5","v":0},{"$f":"'Population at Risk'!AC247/'Population at Risk'!AC$5","v":0},{"$f":"'Population at Risk'!AD247/'Population at Risk'!AD$5","v":0},{"$f":"'Population at Risk'!AE247/'Population at Risk'!AE$5","v":0},{"$f":"'Population at Risk'!AF247/'Population at Risk'!AF$5","v":0},{"$f":"'Population at Risk'!AG247/'Population at Risk'!AG$5","v":0},{"$f":"'Population at Risk'!AH247/'Population at Risk'!AH$5","v":0},{"$f":"'Population at Risk'!AI247/'Population at Risk'!AI$5","v":0},{"$f":"'Population at Risk'!AJ247/'Population at Risk'!AJ$5","v":0},{"$f":"'Population at Risk'!AK247/'Population at Risk'!AK$5","v":0},{"$f":"'Population at Risk'!AL247/'Population at Risk'!AL$5","v":0},{"$f":"'Population at Risk'!AM247/'Population at Risk'!AM$5","v":0},{"$f":"'Population at Risk'!AN247/'Population at Risk'!AN$5","v":0},{"$f":"'Population at Risk'!AO247/'Population at Risk'!AO$5","v":0},{"$f":"'Population at Risk'!AP247/'Population at Risk'!AP$5","v":0},{"$f":"'Population at Risk'!AQ247/'Population at Risk'!AQ$5","v":0},{"$f":"'Population at Risk'!AR247/'Population at Risk'!AR$5","v":0},{"$f":"'Population at Risk'!AS247/'Population at Risk'!AS$5","v":0},{"$f":"'Population at Risk'!AT247/'Population at Risk'!AT$5","v":0},{"$f":"'Population at Risk'!AU247/'Population at Risk'!AU$5","v":0},{"$f":"'Population at Risk'!AV247/'Population at Risk'!AV$5","v":0},{"$f":"'Population at Risk'!AW247/'Population at Risk'!AW$5","v":0},{"$f":"'Population at Risk'!AX247/'Population at Risk'!AX$5","v":0},{"$f":"'Population at Risk'!AY247/'Population at Risk'!AY$5","v":0},{"$f":"'Population at Risk'!AZ247/'Population at Risk'!AZ$5","v":0},{"$f":"'Population at Risk'!BA247/'Population at Risk'!BA$5","v":0},{"$f":"'Population at Risk'!BB247/'Population at Risk'!BB$5","v":0},{"$f":"'Population at Risk'!BC247/'Population at Risk'!BC$5","v":0},245]
[null,"Male 85-89",{"$f":"'Population at Risk'!C248/'Population at Risk'!C$5","v":0},{"$f":"'Population at Risk'!D248/'Population at Risk'!D$5","v":0},{"$f":"'Population at Risk'!E248/'Population at Risk'!E$5","v":0},{"$f":"'Population at Risk'!F248/'Population at Risk'!F$5","v":0},{"$f":"'Population at Risk'!G248/'Population at Risk'!G$5","v":0},{"$f":"'Population at Risk'!H248/'Population at Risk'!H$5","v":0},{"$f":"'Population at Risk'!I248/'Population at Risk'!I$5","v":0},{"$f":"'Population at Risk'!J248/'Population at Risk'!J$5","v":0},{"$f":"'Population at Risk'!K248/'Population at Risk'!K$5","v":0},{"$f":"'Population at Risk'!L248/'Population at Risk'!L$5","v":0},{"$f":"'Population at Risk'!M248/'Population at Risk'!M$5","v":0},{"$f":"'Population at Risk'!N248/'Population at Risk'!N$5","v":0},{"$f":"'Population at Risk'!O248/'Population at Risk'!O$5","v":0},{"$f":"'Population at Risk'!P248/'Population at Risk'!P$5","v":0},{"$f":"'Population at Risk'!Q248/'Population at Risk'!Q$5","v":0},{"$f":"'Population at Risk'!R248/'Population at Risk'!R$5","v":0},{"$f":"'Population at Risk'!S248/'Population at Risk'!S$5","v":0},{"$f":"'Population at Risk'!T248/'Population at Risk'!T$5","v":0},{"$f":"'Population at Risk'!U248/'Population at Risk'!U$5","v":0},{"$f":"'Population at Risk'!V248/'Population at Risk'!V$5","v":0},{"$f":"'Population at Risk'!W248/'Population at Risk'!W$5","v":0},{"$f":"'Population at Risk'!X248/'Population at Risk'!X$5","v":0},{"$f":"'Population at Risk'!Y248/'Population at Risk'!Y$5","v":0},{"$f":"'Population at Risk'!Z248/'Population at Risk'!Z$5","v":0},{"$f":"'Population at Risk'!AA248/'Population at Risk'!AA$5","v":0},{"$f":"'Population at Risk'!AB248/'Population at Risk'!AB$5","v":0},{"$f":"'Population at Risk'!AC248/'Population at Risk'!AC$5","v":0},{"$f":"'Population at Risk'!AD248/'Population at Risk'!AD$5","v":0},{"$f":"'Population at Risk'!AE248/'Population at Risk'!AE$5","v":0},{"$f":"'Population at Risk'!AF248/'Population at Risk'!AF$5","v":0},{"$f":"'Population at Risk'!AG248/'Population at Risk'!AG$5","v":0},{"$f":"'Population at Risk'!AH248/'Population at Risk'!AH$5","v":0},{"$f":"'Population at Risk'!AI248/'Population at Risk'!AI$5","v":0},{"$f":"'Population at Risk'!AJ248/'Population at Risk'!AJ$5","v":0},{"$f":"'Population at Risk'!AK248/'Population at Risk'!AK$5","v":0},{"$f":"'Population at Risk'!AL248/'Population at Risk'!AL$5","v":0},{"$f":"'Population at Risk'!AM248/'Population at Risk'!AM$5","v":0},{"$f":"'Population at Risk'!AN248/'Population at Risk'!AN$5","v":0},{"$f":"'Population at Risk'!AO248/'Population at Risk'!AO$5","v":0},{"$f":"'Population at Risk'!AP248/'Population at Risk'!AP$5","v":0},{"$f":"'Population at Risk'!AQ248/'Population at Risk'!AQ$5","v":0},{"$f":"'Population at Risk'!AR248/'Population at Risk'!AR$5","v":0},{"$f":"'Population at Risk'!AS248/'Population at Risk'!AS$5","v":0},{"$f":"'Population at Risk'!AT248/'Population at Risk'!AT$5","v":0},{"$f":"'Population at Risk'!AU248/'Population at Risk'!AU$5","v":0},{"$f":"'Population at Risk'!AV248/'Population at Risk'!AV$5","v":0},{"$f":"'Population at Risk'!AW248/'Population at Risk'!AW$5","v":0},{"$f":"'Population at Risk'!AX248/'Population at Risk'!AX$5","v":0},{"$f":"'Population at Risk'!AY248/'Population at Risk'!AY$5","v":0},{"$f":"'Population at Risk'!AZ248/'Population at Risk'!AZ$5","v":0},{"$f":"'Population at Risk'!BA248/'Population at Risk'!BA$5","v":0},{"$f":"'Population at Risk'!BB248/'Population at Risk'!BB$5","v":0},{"$f":"'Population at Risk'!BC248/'Population at Risk'!BC$5","v":0},246]
[null,"Male 90+",{"$f":"'Population at Risk'!C249/'Population at Risk'!C$5","v":0},{"$f":"'Population at Risk'!D249/'Population at Risk'!D$5","v":0},{"$f":"'Population at Risk'!E249/'Population at Risk'!E$5","v":0},{"$f":"'Population at Risk'!F249/'Population at Risk'!F$5","v":0},{"$f":"'Population at Risk'!G249/'Population at Risk'!G$5","v":0},{"$f":"'Population at Risk'!H249/'Population at Risk'!H$5","v":0},{"$f":"'Population at Risk'!I249/'Population at Risk'!I$5","v":0},{"$f":"'Population at Risk'!J249/'Population at Risk'!J$5","v":0},{"$f":"'Population at Risk'!K249/'Population at Risk'!K$5","v":0},{"$f":"'Population at Risk'!L249/'Population at Risk'!L$5","v":0},{"$f":"'Population at Risk'!M249/'Population at Risk'!M$5","v":0},{"$f":"'Population at Risk'!N249/'Population at Risk'!N$5","v":0},{"$f":"'Population at Risk'!O249/'Population at Risk'!O$5","v":0},{"$f":"'Population at Risk'!P249/'Population at Risk'!P$5","v":0},{"$f":"'Population at Risk'!Q249/'Population at Risk'!Q$5","v":0},{"$f":"'Population at Risk'!R249/'Population at Risk'!R$5","v":0},{"$f":"'Population at Risk'!S249/'Population at Risk'!S$5","v":0},{"$f":"'Population at Risk'!T249/'Population at Risk'!T$5","v":0},{"$f":"'Population at Risk'!U249/'Population at Risk'!U$5","v":0},{"$f":"'Population at Risk'!V249/'Population at Risk'!V$5","v":0},{"$f":"'Population at Risk'!W249/'Population at Risk'!W$5","v":0},{"$f":"'Population at Risk'!X249/'Population at Risk'!X$5","v":0},{"$f":"'Population at Risk'!Y249/'Population at Risk'!Y$5","v":0},{"$f":"'Population at Risk'!Z249/'Population at Risk'!Z$5","v":0},{"$f":"'Population at Risk'!AA249/'Population at Risk'!AA$5","v":0},{"$f":"'Population at Risk'!AB249/'Population at Risk'!AB$5","v":0},{"$f":"'Population at Risk'!AC249/'Population at Risk'!AC$5","v":0},{"$f":"'Population at Risk'!AD249/'Population at Risk'!AD$5","v":0},{"$f":"'Population at Risk'!AE249/'Population at Risk'!AE$5","v":0},{"$f":"'Population at Risk'!AF249/'Population at Risk'!AF$5","v":0},{"$f":"'Population at Risk'!AG249/'Population at Risk'!AG$5","v":0},{"$f":"'Population at Risk'!AH249/'Population at Risk'!AH$5","v":0},{"$f":"'Population at Risk'!AI249/'Population at Risk'!AI$5","v":0},{"$f":"'Population at Risk'!AJ249/'Population at Risk'!AJ$5","v":0},{"$f":"'Population at Risk'!AK249/'Population at Risk'!AK$5","v":0},{"$f":"'Population at Risk'!AL249/'Population at Risk'!AL$5","v":0},{"$f":"'Population at Risk'!AM249/'Population at Risk'!AM$5","v":0},{"$f":"'Population at Risk'!AN249/'Population at Risk'!AN$5","v":0},{"$f":"'Population at Risk'!AO249/'Population at Risk'!AO$5","v":0},{"$f":"'Population at Risk'!AP249/'Population at Risk'!AP$5","v":0},{"$f":"'Population at Risk'!AQ249/'Population at Risk'!AQ$5","v":0},{"$f":"'Population at Risk'!AR249/'Population at Risk'!AR$5","v":0},{"$f":"'Population at Risk'!AS249/'Population at Risk'!AS$5","v":0},{"$f":"'Population at Risk'!AT249/'Population at Risk'!AT$5","v":0},{"$f":"'Population at Risk'!AU249/'Population at Risk'!AU$5","v":0},{"$f":"'Population at Risk'!AV249/'Population at Risk'!AV$5","v":0},{"$f":"'Population at Risk'!AW249/'Population at Risk'!AW$5","v":0},{"$f":"'Population at Risk'!AX249/'Population at Risk'!AX$5","v":0},{"$f":"'Population at Risk'!AY249/'Population at Risk'!AY$5","v":0},{"$f":"'Population at Risk'!AZ249/'Population at Risk'!AZ$5","v":0},{"$f":"'Population at Risk'!BA249/'Population at Risk'!BA$5","v":0},{"$f":"'Population at Risk'!BB249/'Population at Risk'!BB$5","v":0},{"$f":"'Population at Risk'!BC249/'Population at Risk'!BC$5","v":0},247]

{"sheet":"Targeting","index":18,"n_rows":249,"n_cols":7,"rows_kept":249,"cut":false,"hidden":true,"merged":[]}
["Calculating how many will be treated in each group, for each targeting strategy"]
[]
["SIMD","group","Even distribution","Targeting to SIMD Q1","Targeting to SIMD Q1 & Q2","Proportionate to need",1]
[null,null,null,null,null,null,2]
["All quintiles","16+ Males and Females",null,null,null,null,3]
["Q1 and Q2","16+ Males and Females",null,null,null,null,4]
["SIMD Q1 (most deprived)","16+ Males and Females",null,null,null,null,5]
["SIMD Q2",null,null,null,null,null,6]
["SIMD Q3",null,null,null,null,null,7]
["SIMD Q4",null,null,null,null,null,8]
["SIMD Q5 (least deprived)",null,null,null,null,null,9]
["SIMD Q1 (most deprived)","16+ Females",null,null,null,null,10]
["SIMD Q2",null,null,null,null,null,11]
["SIMD Q3",null,null,null,null,null,12]
["SIMD Q4",null,null,null,null,null,13]
["SIMD Q5 (least deprived)",null,null,null,null,null,14]
["SIMD Q1 (most deprived)","16+ Males",null,null,null,null,15]
["SIMD Q2",null,null,null,null,null,16]
["SIMD Q3",null,null,null,null,null,17]
["SIMD Q4",null,null,null,null,null,18]
["SIMD Q5 (least deprived)",null,null,null,null,null,19]
["All quintiles","Female 0-4",null,null,null,null,20]
[null,"Female 5-9",null,null,null,null,21]
[null,"Female 10-15",null,null,null,null,22]
[null,"Female 16-19",null,null,null,null,23]
[null,"Female 20-24",null,null,null,null,24]
[null,"Female 25-29",null,null,null,null,25]
[null,"Female 30-34",null,null,null,null,26]
[null,"Female 35-39",null,null,null,null,27]
[null,"Female 40-44",null,null,null,null,28]
[null,"Female 45-49",null,null,null,null,29]
[null,"Female 50-54",null,null,null,null,30]
[null,"Female 55-59",null,null,null,null,31]
[null,"Female 60-64",null,null,null,null,32]
[null,"Female 65-69",null,null,null,null,33]
[null,"Female 70-74",null,null,null,null,34]
[null,"Female 75-79",null,null,null,null,35]
[null,"Female 80-84",null,null,null,null,36]
[null,"Female 85-89",null,null,null,null,37]
[null,"Female 90+",null,null,null,null,38]
[null,"Male 0-4",null,null,null,null,39]
[null,"Male 5-9",null,null,null,null,40]
[null,"Male 10-15",null,null,null,null,41]
[null,"Male 16-19",null,null,null,null,42]
[null,"Male 20-24",null,null,null,null,43]
[null,"Male 25-29",null,null,null,null,44]
[null,"Male 30-34",null,null,null,null,45]
[null,"Male 35-39",null,null,null,null,46]
[null,"Male 40-44",null,null,null,null,47]
[null,"Male 45-49",null,null,null,null,48]
[null,"Male 50-54",null,null,null,null,49]
[null,"Male 55-59",null,null,null,null,50]
[null,"Male 60-64",null,null,null,null,51]
[null,"Male 65-69",null,null,null,null,52]
[null,"Male 70-74",null,null,null,null,53]
[null,"Male 75-79",null,null,null,null,54]
[null,"Male 80-84",null,null,null,null,55]
[null,"Male 85-89",null,null,null,null,56]
[null,"Male 90+",null,null,null,null,57]
["SIMD Q1 (most deprived)","Female 0-4",{"$f":"ROUND(Options!$B$21*HLOOKUP(Calculations!$E$2,Pop2016fraction!$C$3:$BC$251,Pop2016fraction!$BD60,FALSE),0)","v":0},{"$f":"ROUND(Options!$B$21*HLOOKUP(Calculations!$E$2,Pop2016fractionQ1!$C$3:$BC$251,Pop2016fractionQ1!$BD60,FALSE),0)","v":0},{"$f":"ROUND(Options!$B$21*HLOOKUP(Calculations!$E$2,'Pop2016fractionQ1&2'!$C$3:$BC$251,'Pop2016fractionQ1&2'!$BD60,FALSE),0)","v":0},{"$f":"ROUND(Options!$B$21*HLOOKUP(Calculations!$E$2,PARfraction!$C$3:$BC$251,PARfraction!$BD60,FALSE),0)","v":0},58]
[null,"Female 5-9",{"$f":"ROUND(Options!$B$21*HLOOKUP(Calculations!$E$2,Pop2016fraction!$C$3:$BC$251,Pop2016fraction!$BD61,FALSE),0)","v":0},{"$f":"ROUND(Options!$B$21*HLOOKUP(Calculations!$E$2,Pop2016fractionQ1!$C$3:$BC$251,Pop2016fractionQ1!$BD61,FALSE),0)","v":0},{"$f":"ROUND(Options!$B$21*HLOOKUP(Calculations!$E$2,'Pop2016fractionQ1&2'!$C$3:$BC$251,'Pop2016fractionQ1&2'!$BD61,FALSE),0)","v":0},{"$f":"ROUND(Options!$B$21*HLOOKUP(Calculations!$E$2,PARfraction!$C$3:$BC$251,PARfraction!$BD61,FALSE),0)","v":0},59]
[null,"Female 10-15",{"$f":"ROUND(Options!$B$21*HLOOKUP(Calculations!$E$2,Pop2016fraction!$C$3:$BC$251,Pop2016fraction!$BD62,FALSE),0)","v":0},{"$f":"ROUND(Options!$B$21*HLOOKUP(Calculations!$E$2,Pop2016fractionQ1!$C$3:$BC$251,Pop2016fractionQ1!$BD62,FALSE),0)","v":0},{"$f":"ROUND(Options!$B$21*HLOOKUP(Calculations!$E$2,'Pop2016fractionQ1&2'!$C$3:$BC$251,'Pop2016fractionQ1&2'!$BD62,FALSE),0)","v":0},{"$f":"ROUND(Options!$B$21*HLOOKUP(Calculations!$E$2,PARfraction!$C$3:$BC$251,PARfraction!$BD62,FALSE),0)","v":0},60]
[null,"Female 16-19",{"$f":"ROUND(Options!$B$21*HLOOKUP(Calculations!$E$2,Pop2016fraction!$C$3:$BC$251,Pop2016fraction!$BD63,FALSE),0)","v":1639},{"$f":"ROUND(Options!$B$21*HLOOKUP(Calculations!$E$2,Pop2016fractionQ1!$C$3:$BC$251,Pop2016fractionQ1!$BD63,FALSE),0)","v":8152},{"$f":"ROUND(Options!$B$21*HLOOKUP(Calculations!$E$2,'Pop2016fractionQ1&2'!$C$3:$BC$251,'Pop2016fractionQ1&2'!$BD63,FALSE),0)","v":4095},{"$f":"ROUND(Options!$B$21*HLOOKUP(Calculations!$E$2,PARfraction!$C$3:$BC$251,PARfraction!$BD63,FALSE),0)","v":1914},61]
[null,"Female 20-24",{"$f":"ROUND(Options!$B$21*HLOOKUP(Calculations!$E$2,Pop2016fraction!$C$3:$BC$251,Pop2016fraction!$BD64,FALSE),0)","v":2554},{"$f":"ROUND(Options!$B$21*HLOOKUP(Calculations!$E$2,Pop2016fractionQ1!$C$3:$BC$251,Pop2016fractionQ1!$BD64,FALSE),0)","v":12704},{"$f":"ROUND(Options!$B$21*HLOOKUP(Calculations!$E$2,'Pop2016fractionQ1&2'!$C$3:$BC$251,'Pop2016fractionQ1&2'!$BD64,FALSE),0)","v":6382},{"$f":"ROUND(Options!$B$21*HLOOKUP(Calculations!$E$2,PARfraction!$C$3:$BC$251,PARfraction!$BD64,FALSE),0)","v":2982},62]
[null,"Female 25-29",{"$f":"ROUND(Options!$B$21*HLOOKUP(Calculations!$E$2,Pop2016fraction!$C$3:$BC$251,Pop2016fraction!$BD65,FALSE),0)","v":3064},{"$f":"ROUND(Options!$B$21*HLOOKUP(Calculations!$E$2,Pop2016fractionQ1!$C$3:$BC$251,Pop2016fractionQ1!$BD65,FALSE),0)","v":15238},{"$f":"ROUND(Options!$B$21*HLOOKUP(Calculations!$E$2,'Pop2016fractionQ1&2'!$C$3:$BC$251,'Pop2016fractionQ1&2'!$BD65,FALSE),0)","v":7655},{"$f":"ROUND(Options!$B$21*HLOOKUP(Calculations!$E$2,PARfraction!$C$3:$BC$251,PARfraction!$BD65,FALSE),0)","v":5273},63]
[null,"Female 30-34",{"$f":"ROUND(Options!$B$21*HLOOKUP(Calculations!$E$2,Pop2016fraction!$C$3:$BC$251,Pop2016fraction!$BD66,FALSE),0)","v":2800},{"$f":"ROUND(Options!$B$21*HLOOKUP(Calculations!$E$2,Pop2016fractionQ1!$C$3:$BC$251,Pop2016fractionQ1!$BD66,FALSE),0)","v":13925},{"$f":"ROUND(Options!$B$21*HLOOKUP(Calculations!$E$2,'Pop2016fractionQ1&2'!$C$3:$BC$251,'Pop2016fractionQ1&2'!$BD66,FALSE),0)","v":6995},{"$f":"ROUND(Options!$B$21*HLOOKUP(Calculations!$E$2,PARfraction!$C$3:$BC$251,PARfraction!$BD66,FALSE),0)","v":4819},64]
[null,"Female 35-39",{"$f":"ROUND(Options!$B$21*HLOOKUP(Calculations!$E$2,Pop2016fraction!$C$3:$BC$251,Pop2016fraction!$BD67,FALSE),0)","v":2379},{"$f":"ROUND(Options!$B$21*HLOOKUP(Calculations!$E$2,Pop2016fractionQ1!$C$3:$BC$251,Pop2016fractionQ1!$BD67,FALSE),0)","v":11831},{"$f":"ROUND(Options!$B$21*HLOOKUP(Calculations!$E$2,'Pop2016fractionQ1&2'!$C$3:$BC$251,'Pop2016fractionQ1&2'!$BD67,FALSE),0)","v":5943},{"$f":"ROUND(Options!$B$21*HLOOKUP(Calculations!$E$2,PARfraction!$C$3:$BC$251,PARfraction!$BD67,FALSE),0)","v":3788},65]
[null,"Female 40-44",{"$f":"ROUND(Options!$B$21*HLOOKUP(Calculations!$E$2,Pop2016fraction!$C$3:$BC$251,Pop2016fraction!$BD68,FALSE),0)","v":2285},{"$f":"ROUND(Options!$B$21*HLOOKUP(Calculations!$E$2,Pop2016fractionQ1!$C$3:$BC$251,Pop2016fractionQ1!$BD68,FALSE),0)","v":11367},{"$f":"ROUND(Options!$B$21*HLOOKUP(Calculations!$E$2,'Pop2016fractionQ1&2'!$C$3:$BC$251,'Pop2016fractionQ1&2'!$BD68,FALSE),0)","v":5710},{"$f":"ROUND(Options!$B$21*HLOOKUP(Calculations!$E$2,PARfraction!$C$3:$BC$251,PARfraction!$BD68,FALSE),0)","v":3639},66]
[null,"Female 45-49",{"$f":"ROUND(Options!$B$21*HLOOKUP(Calculations!$E$2,Pop2016fraction!$C$3:$BC$251,Pop2016fraction!$BD69,FALSE),0)","v":2661},{"$f":"ROUND(Options!$B$21*HLOOKUP(Calculations!$E$2,Pop2016fractionQ1!$C$3:$BC$251,Pop2016fractionQ1!$BD69,FALSE),0)","v":13235},{"$f":"ROUND(Options!$B$21*HLOOKUP(Calculations!$E$2,'Pop2016fractionQ1&2'!$C$3:$BC$251,'Pop2016fractionQ1&2'!$BD69,FALSE),0)","v":6649},{"$f":"ROUND(Options!$B$21*HLOOKUP(Calculations!$E$2,PARfraction!$C$3:$BC$251,PARfraction!$BD69,FALSE),0)","v":4813},67]
[null,"Female 50-54",{"$f":"ROUND(Options!$B$21*HLOOKUP(Calculations!$E$2,Pop2016fraction!$C$3:$BC$251,Pop2016fraction!$BD70,FALSE),0)","v":2695},{"$f":"ROUND(Options!$B$21*HLOOKUP(Calculations!$E$2,Pop2016fractionQ1!$C$3:$BC$251,Pop2016fractionQ1!$BD70,FALSE),0)","v":13407},{"$f":"ROUND(Options!$B$21*HLOOKUP(Calculations!$E$2,'Pop2016fractionQ1&2'!$C$3:$BC$251,'Pop2016fractionQ1&2'!$BD70,FALSE),0)","v":6735},{"$f":"ROUND(Options!$B$21*HLOOKUP(Calculations!$E$2,PARfraction!$C$3:$BC$251,PARfraction!$BD70,FALSE),0)","v":4875},68]
[null,"Female 55-59",{"$f":"ROUND(Options!$B$21*HLOOKUP(Calculations!$E$2,Pop2016fraction!$C$3:$BC$251,Pop2016fraction!$BD71,FALSE),0)","v":2412},{"$f":"ROUND(Options!$B$21*HLOOKUP(Calculations!$E$2,Pop2016fractionQ1!$C$3:$BC$251,Pop2016fractionQ1!$BD71,FALSE),0)","v":11996},{"$f":"ROUND(Options!$B$21*HLOOKUP(Calculations!$E$2,'Pop2016fractionQ1&2'!$C$3:$BC$251,'Pop2016fractionQ1&2'!$BD71,FALSE),0)","v":6026},{"$f":"ROUND(Options!$B$21*HLOOKUP(Calculations!$E$2,PARfraction!$C$3:$BC$251,PARfraction!$BD71,FALSE),0)","v":5771},69]
[null,"Female 60-64",{"$f":"ROUND(Options!$B$21*HLOOKUP(Calculations!$E$2,Pop2016fraction!$C$3:$BC$251,Pop2016fraction!$BD72,FALSE),0)","v":1983},{"$f":"ROUND(Options!$B$21*HLOOKUP(Calculations!$E$2,Pop2016fractionQ1!$C$3:$BC$251,Pop2016fractionQ1!$BD72,FALSE),0)","v":9864},{"$f":"ROUND(Options!$B$21*HLOOKUP(Calculations!$E$2,'Pop2016fractionQ1&2'!$C$3:$BC$251,'Pop2016fractionQ1&2'!$BD72,FALSE),0)","v":4955},{"$f":"ROUND(Options!$B$21*HLOOKUP(Calculations!$E$2,PARfraction!$C$3:$BC$251,PARfraction!$BD72,FALSE),0)","v":4745},70]
[null,"Female 65-69",{"$f":"ROUND(Options!$B$21*HLOOKUP(Calculations!$E$2,Pop2016fraction!$C$3:$BC$251,Pop2016fraction!$BD73,FALSE),0)","v":0},{"$f":"ROUND(Options!$B$21*HLOOKUP(Calculations!$E$2,Pop2016fractionQ1!$C$3:$BC$251,Pop2016fractionQ1!$BD73,FALSE),0)","v":0},{"$f":"ROUND(Options!$B$21*HLOOKUP(Calculations!$E$2,'Pop2016fractionQ1&2'!$C$3:$BC$251,'Pop2016fractionQ1&2'!$BD73,FALSE),0)","v":0},{"$f":"ROUND(Options!$B$21*HLOOKUP(Calculations!$E$2,PARfraction!$C$3:$BC$251,PARfraction!$BD73,FALSE),0)","v":0},71]
[null,"Female 70-74",{"$f":"ROUND(Options!$B$21*HLOOKUP(Calculations!$E$2,Pop2016fraction!$C$3:$BC$251,Pop2016fraction!$BD74,FALSE),0)","v":0},{"$f":"ROUND(Options!$B$21*HLOOKUP(Calculations!$E$2,Pop2016fractionQ1!$C$3:$BC$251,Pop2016fractionQ1!$BD74,FALSE),0)","v":0},{"$f":"ROUND(Options!$B$21*HLOOKUP(Calculations!$E$2,'Pop2016fractionQ1&2'!$C$3:$BC$251,'Pop2016fractionQ1&2'!$BD74,FALSE),0)","v":0},{"$f":"ROUND(Options!$B$21*HLOOKUP(Calculations!$E$2,PARfraction!$C$3:$BC$251,PARfraction!$BD74,FALSE),0)","v":0},72]
[null,"Female 75-79",{"$f":"ROUND(Options!$B$21*HLOOKUP(Calculations!$E$2,Pop2016fraction!$C$3:$BC$251,Pop2016fraction!$BD75,FALSE),0)","v":0},{"$f":"ROUND(Options!$B$21*HLOOKUP(Calculations!$E$2,Pop2016fractionQ1!$C$3:$BC$251,Pop2016fractionQ1!$BD75,FALSE),0)","v":0},{"$f":"ROUND(Options!$B$21*HLOOKUP(Calculations!$E$2,'Pop2016fractionQ1&2'!$C$3:$BC$251,'Pop2016fractionQ1&2'!$BD75,FALSE),0)","v":0},{"$f":"ROUND(Options!$B$21*HLOOKUP(Calculations!$E$2,PARfraction!$C$3:$BC$251,PARfraction!$BD75,FALSE),0)","v":0},73]
[null,"Female 80-84",{"$f":"ROUND(Options!$B$21*HLOOKUP(Calculations!$E$2,Pop2016fraction!$C$3:$BC$251,Pop2016fraction!$BD76,FALSE),0)","v":0},{"$f":"ROUND(Options!$B$21*HLOOKUP(Calculations!$E$2,Pop2016fractionQ1!$C$3:$BC$251,Pop2016fractionQ1!$BD76,FALSE),0)","v":0},{"$f":"ROUND(Options!$B$21*HLOOKUP(Calculations!$E$2,'Pop2016fractionQ1&2'!$C$3:$BC$251,'Pop2016fractionQ1&2'!$BD76,FALSE),0)","v":0},{"$f":"ROUND(Options!$B$21*HLOOKUP(Calculations!$E$2,PARfraction!$C$3:$BC$251,PARfraction!$BD76,FALSE),0)","v":0},74]
[null,"Female 85-89",{"$f":"ROUND(Options!$B$21*HLOOKUP(Calculations!$E$2,Pop2016fraction!$C$3:$BC$251,Pop2016fraction!$BD77,FALSE),0)","v":0},{"$f":"ROUND(Options!$B$21*HLOOKUP(Calculations!$E$2,Pop2016fractionQ1!$C$3:$BC$251,Pop2016fractionQ1!$BD77,FALSE),0)","v":0},{"$f":"ROUND(Options!$B$21*HLOOKUP(Calculations!$E$2,'Pop2016fractionQ1&2'!$C$3:$BC$251,'Pop2016fractionQ1&2'!$BD77,FALSE),0)","v":0},{"$f":"ROUND(Options!$B$21*HLOOKUP(Calculations!$E$2,PARfraction!$C$3:$BC$251,PARfraction!$BD77,FALSE),0)","v":0},75]
[null,"Female 90+",{"$f":"ROUND(Options!$B$21*HLOOKUP(Calculations!$E$2,Pop2016fraction!$C$3:$BC$251,Pop2016fraction!$BD78,FALSE),0)","v":0},{"$f":"ROUND(Options!$B$21*HLOOKUP(Calculations!$E$2,Pop2016fractionQ1!$C$3:$BC$251,Pop2016fractionQ1!$BD78,FALSE),0)","v":0},{"$f":"ROUND(Options!$B$21*HLOOKUP(Calculations!$E$2,'Pop2016fractionQ1&2'!$C$3:$BC$251,'Pop2016fractionQ1&2'!$BD78,FALSE),0)","v":0},{"$f":"ROUND(Options!$B$21*HLOOKUP(Calculations!$E$2,PARfraction!$C$3:$BC$251,PARfraction!$BD78,FALSE),0)","v":0},76]
[null,"Male 0-4",{"$f":"ROUND(Options!$B$21*HLOOKUP(Calculations!$E$2,Pop2016fraction!$C$3:$BC$251,Pop2016fraction!$BD79,FALSE),0)","v":0},{"$f":"ROUND(Options!$B$21*HLOOKUP(Calculations!$E$2,Pop2016fractionQ1!$C$3:$BC$251,Pop2016fractionQ1!$BD79,FALSE),0)","v":0},{"$f":"ROUND(Options!$B$21*HLOOKUP(Calculations!$E$2,'Pop2016fractionQ1&2'!$C$3:$BC$251,'Pop2016fractionQ1&2'!$BD79,FALSE),0)","v":0},{"$f":"ROUND(Options!$B$21*HLOOKUP(Calculations!$E$2,PARfraction!$C$3:$BC$251,PARfraction!$BD79,FALSE),0)","v":0},77]
[null,"Male 5-9",{"$f":"ROUND(Options!$B$21*HLOOKUP(Calculations!$E$2,Pop2016fraction!$C$3:$BC$251,Pop2016fraction!$BD80,FALSE),0)","v":0},{"$f":"ROUND(Options!$B$21*HLOOKUP(Calculations!$E$2,Pop2016fractionQ1!$C$3:$BC$251,Pop2016fractionQ1!$BD80,FALSE),0)","v":0},{"$f":"ROUND(Options!$B$21*HLOOKUP(Calculations!$E$2,'Pop2016fractionQ1&2'!$C$3:$BC$251,'Pop2016fractionQ1&2'!$BD80,FALSE),0)","v":0},{"$f":"ROUND(Options!$B$21*HLOOKUP(Calculations!$E$2,PARfraction!$C$3:$BC$251,PARfraction!$BD80,FALSE),0)","v":0},78]
[null,"Male 10-15",{"$f":"ROUND(Options!$B$21*HLOOKUP(Calculations!$E$2,Pop2016fraction!$C$3:$BC$251,Pop2016fraction!$BD81,FALSE),0)","v":0},{"$f":"ROUND(Options!$B$21*HLOOKUP(Calculations!$E$2,Pop2016fractionQ1!$C$3:$BC$251,Pop2016fractionQ1!$BD81,FALSE),0)","v":0},{"$f":"ROUND(Options!$B$21*HLOOKUP(Calculations!$E$2,'Pop2016fractionQ1&2'!$C$3:$BC$251,'Pop2016fractionQ1&2'!$BD81,FALSE),0)","v":0},{"$f":"ROUND(Options!$B$21*HLOOKUP(Calculations!$E$2,PARfraction!$C$3:$BC$251,PARfraction!$BD81,FALSE),0)","v":0},79]
[null,"Male 16-19",{"$f":"ROUND(Options!$B$21*HLOOKUP(Calculations!$E$2,Pop2016fraction!$C$3:$BC$251,Pop2016fraction!$BD82,FALSE),0)","v":1722},{"$f":"ROUND(Options!$B$21*HLOOKUP(Calculations!$E$2,Pop2016fractionQ1!$C$3:$BC$251,Pop2016fractionQ1!$BD82,FALSE),0)","v":8563},{"$f":"ROUND(Options!$B$21*HLOOKUP(Calculations!$E$2,'Pop2016fractionQ1&2'!$C$3:$BC$251,'Pop2016fractionQ1&2'!$BD82,FALSE),0)","v":4301},{"$f":"ROUND(Options!$B$21*HLOOKUP(Calculations!$E$2,PARfraction!$C$3:$BC$251,PARfraction!$BD82,FALSE),0)","v":1981},80]
[null,"Male 20-24",{"$f":"ROUND(Options!$B$21*HLOOKUP(Calculations!$E$2,Pop2016fraction!$C$3:$BC$251,Pop2016fraction!$BD83,FALSE),0)","v":2524},{"$f":"ROUND(Options!$B$21*HLOOKUP(Calculations!$E$2,Pop2016fractionQ1!$C$3:$BC$251,Pop2016fractionQ1!$BD83,FALSE),0)","v":12554},{"$f":"ROUND(Options!$B$21*HLOOKUP(Calculations!$E$2,'Pop2016fractionQ1&2'!$C$3:$BC$251,'Pop2016fractionQ1&2'!$BD83,FALSE),0)","v":6307},{"$f":"ROUND(Options!$B$21*HLOOKUP(Calculations!$E$2,PARfraction!$C$3:$BC$251,PARfraction!$BD83,FALSE),0)","v":2905},81]
[null,"Male 25-29",{"$f":"ROUND(Options!$B$21*HLOOKUP(Calculations!$E$2,Pop2016fraction!$C$3:$BC$251,Pop2016fraction!$BD84,FALSE),0)","v":2892},{"$f":"ROUND(Options!$B$21*HLOOKUP(Calculations!$E$2,Pop2016fractionQ1!$C$3:$BC$251,Pop2016fractionQ1!$BD84,FALSE),0)","v":14384},{"$f":"ROUND(Options!$B$21*HLOOKUP(Calculations!$E$2,'Pop2016fractionQ1&2'!$C$3:$BC$251,'Pop2016fractionQ1&2'!$BD84,FALSE),0)","v":7226},{"$f":"ROUND(Options!$B$21*HLOOKUP(Calculations!$E$2,PARfraction!$C$3:$BC$251,PARfraction!$BD84,FALSE),0)","v":3075},82]
[null,"Male 30-34",{"$f":"ROUND(Options!$B$21*HLOOKUP(Calculations!$E$2,Pop2016fraction!$C$3:$BC$251,Pop2016fraction!$BD85,FALSE),0)","v":2580},{"$f":"ROUND(Options!$B$21*HLOOKUP(Calculations!$E$2,Pop2016fractionQ1!$C$3:$BC$251,Pop2016fractionQ1!$BD85,FALSE),0)","v":12833},{"$f":"ROUND(Options!$B$21*HLOOKUP(Calculations!$E$2,'Pop2016fractionQ1&2'!$C$3:$BC$251,'Pop2016fractionQ1&2'!$BD85,FALSE),0)","v":6447},{"$f":"ROUND(Options!$B$21*HLOOKUP(Calculations!$E$2,PARfraction!$C$3:$BC$251,PARfraction!$BD85,FALSE),0)","v":2744},83]
[null,"Male 35-39",{"$f":"ROUND(Options!$B$21*HLOOKUP(Calculations!$E$2,Pop2016fraction!$C$3:$BC$251,Pop2016fraction!$BD86,FALSE),0)","v":2239},{"$f":"ROUND(Options!$B$21*HLOOKUP(Calculations!$E$2,Pop2016fractionQ1!$C$3:$BC$251,Pop2016fractionQ1!$BD86,FALSE),0)","v":11137},{"$f":"ROUND(Options!$B$21*HLOOKUP(Calculations!$E$2,'Pop2016fractionQ1&2'!$C$3:$BC$251,'Pop2016fractionQ1&2'!$BD86,FALSE),0)","v":5595},{"$f":"ROUND(Options!$B$21*HLOOKUP(Calculations!$E$2,PARfraction!$C$3:$BC$251,PARfraction!$BD86,FALSE),0)","v":3529},84]
[null,"Male 40-44",{"$f":"ROUND(Options!$B$21*HLOOKUP(Calculations!$E$2,Pop2016fraction!$C$3:$BC$251,Pop2016fraction!$BD87,FALSE),0)","v":2147},{"$f":"ROUND(Options!$B$21*HLOOKUP(Calculations!$E$2,Pop2016fractionQ1!$C$3:$BC$251,Pop2016fractionQ1!$BD87,FALSE),0)","v":10678},{"$f":"ROUND(Options!$B$21*HLOOKUP(Calculations!$E$2,'Pop2016fractionQ1&2'!$C$3:$BC$251,'Pop2016fractionQ1&2'!$BD87,FALSE),0)","v":5364},{"$f":"ROUND(Options!$B$21*HLOOKUP(Calculations!$E$2,PARfraction!$C$3:$BC$251,PARfraction!$BD87,FALSE),0)","v":3384},85]
[null,"Male 45-49",{"$f":"ROUND(Options!$B$21*HLOOKUP(Calculations!$E$2,Pop2016fraction!$C$3:$BC$251,Pop2016fraction!$BD88,FALSE),0)","v":2436},{"$f":"ROUND(Options!$B$21*HLOOKUP(Calculations!$E$2,Pop2016fractionQ1!$C$3:$BC$251,Pop2016fractionQ1!$BD88,FALSE),0)","v":12115},{"$f":"ROUND(Options!$B$21*HLOOKUP(Calculations!$E$2,'Pop2016fractionQ1&2'!$C$3:$BC$251,'Pop2016fractionQ1&2'!$BD88,FALSE),0)","v":6086},{"$f":"ROUND(Options!$B$21*HLOOKUP(Calculations!$E$2,PARfraction!$C$3:$BC$251,PARfraction!$BD88,FALSE),0)","v":3721},86]
[null,"Male 50-54",{"$f":"ROUND(Options!$B$21*HLOOKUP(Calculations!$E$2,Pop2016fraction!$C$3:$BC$251,Pop2016fraction!$BD89,FALSE),0)","v":2506},{"$f":"ROUND(Options!$B$21*HLOOKUP(Calculations!$E$2,Pop2016fractionQ1!$C$3:$BC$251,Pop2016fractionQ1!$BD89,FALSE),0)","v":12467},{"$f":"ROUND(Options!$B$21*HLOOKUP(Calculations!$E$2,'Pop2016fractionQ1&2'!$C$3:$BC$251,'Pop2016fractionQ1&2'!$BD89,FALSE),0)","v":6263},{"$f":"ROUND(Options!$B$21*HLOOKUP(Calculations!$E$2,PARfraction!$C$3:$BC$251,PARfraction!$BD89,FALSE),0)","v":3829},87]
[null,"Male 55-59",{"$f":"ROUND(Options!$B$21*HLOOKUP(Calculations!$E$2,Pop2016fraction!$C$3:$BC$251,Pop2016fraction!$BD90,FALSE),0)","v":2257},{"$f":"ROUND(Options!$B$21*HLOOKUP(Calculations!$E$2,Pop2016fractionQ1!$C$3:$BC$251,Pop2016fractionQ1!$BD90,FALSE),0)","v":11228},{"$f":"ROUND(Options!$B$21*HLOOKUP(Calculations!$E$2,'Pop2016fractionQ1&2'!$C$3:$BC$251,'Pop2016fractionQ1&2'!$BD90,FALSE),0)","v":5640},{"$f":"ROUND(Options!$B$21*HLOOKUP(Calculations!$E$2,PARfraction!$C$3:$BC$251,PARfraction!$BD90,FALSE),0)","v":4689},88]
[null,"Male 60-64",{"$f":"ROUND(Options!$B$21*HLOOKUP(Calculations!$E$2,Pop2016fraction!$C$3:$BC$251,Pop2016fraction!$BD91,FALSE),0)","v":1857},{"$f":"ROUND(Options!$B$21*HLOOKUP(Calculations!$E$2,Pop2016fractionQ1!$C$3:$BC$251,Pop2016fractionQ1!$BD91,FALSE),0)","v":9238},{"$f":"ROUND(Options!$B$21*HLOOKUP(Calculations!$E$2,'Pop2016fractionQ1&2'!$C$3:$BC$251,'Pop2016fractionQ1&2'!$BD91,FALSE),0)","v":4641},{"$f":"ROUND(Options!$B$21*HLOOKUP(Calculations!$E$2,PARfraction!$C$3:$BC$251,PARfraction!$BD91,FALSE),0)","v":3858},89]
[null,"Male 65-69",{"$f":"ROUND(Options!$B$21*HLOOKUP(Calculations!$E$2,Pop2016fraction!$C$3:$BC$251,Pop2016fraction!$BD92,FALSE),0)","v":0},{"$f":"ROUND(Options!$B$21*HLOOKUP(Calculations!$E$2,Pop2016fractionQ1!$C$3:$BC$251,Pop2016fractionQ1!$BD92,FALSE),0)","v":0},{"$f":"ROUND(Options!$B$21*HLOOKUP(Calculations!$E$2,'Pop2016fractionQ1&2'!$C$3:$BC$251,'Pop2016fractionQ1&2'!$BD92,FALSE),0)","v":0},{"$f":"ROUND(Options!$B$21*HLOOKUP(Calculations!$E$2,PARfraction!$C$3:$BC$251,PARfraction!$BD92,FALSE),0)","v":0},90]
[null,"Male 70-74",{"$f":"ROUND(Options!$B$21*HLOOKUP(Calculations!$E$2,Pop2016fraction!$C$3:$BC$251,Pop2016fraction!$BD93,FALSE),0)","v":0},{"$f":"ROUND(Options!$B$21*HLOOKUP(Calculations!$E$2,Pop2016fractionQ1!$C$3:$BC$251,Pop2016fractionQ1!$BD93,FALSE),0)","v":0},{"$f":"ROUND(Options!$B$21*HLOOKUP(Calculations!$E$2,'Pop2016fractionQ1&2'!$C$3:$BC$251,'Pop2016fractionQ1&2'!$BD93,FALSE),0)","v":0},{"$f":"ROUND(Options!$B$21*HLOOKUP(Calculations!$E$2,PARfraction!$C$3:$BC$251,PARfraction!$BD93,FALSE),0)","v":0},91]
[null,"Male 75-79",{"$f":"ROUND(Options!$B$21*HLOOKUP(Calculations!$E$2,Pop2016fraction!$C$3:$BC$251,Pop2016fraction!$BD94,FALSE),0)","v":0},{"$f":"ROUND(Options!$B$21*HLOOKUP(Calculations!$E$2,Pop2016fractionQ1!$C$3:$BC$251,Pop2016fractionQ1!$BD94,FALSE),0)","v":0},{"$f":"ROUND(Options!$B$21*HLOOKUP(Calculations!$E$2,'Pop2016fractionQ1&2'!$C$3:$BC$251,'Pop2016fractionQ1&2'!$BD94,FALSE),0)","v":0},{"$f":"ROUND(Options!$B$21*HLOOKUP(Calculations!$E$2,PARfraction!$C$3:$BC$251,PARfraction!$BD94,FALSE),0)","v":0},92]
[null,"Male 80-84",{"$f":"ROUND(Options!$B$21*HLOOKUP(Calculations!$E$2,Pop2016fraction!$C$3:$BC$251,Pop2016fraction!$BD95,FALSE),0)","v":0},{"$f":"ROUND(Options!$B$21*HLOOKUP(Calculations!$E$2,Pop2016fractionQ1!$C$3:$BC$251,Pop2016fractionQ1!$BD95,FALSE),0)","v":0},{"$f":"ROUND(Options!$B$21*HLOOKUP(Calculations!$E$2,'Pop2016fractionQ1&2'!$C$3:$BC$251,'Pop2016fractionQ1&2'!$BD95,FALSE),0)","v":0},{"$f":"ROUND(Options!$B$21*HLOOKUP(Calculations!$E$2,PARfraction!$C$3:$BC$251,PARfraction!$BD95,FALSE),0)","v":0},93]
[null,"Male 85-89",{"$f":"ROUND(Options!$B$21*HLOOKUP(Calculations!$E$2,Pop2016fraction!$C$3:$BC$251,Pop2016fraction!$BD96,FALSE),0)","v":0},{"$f":"ROUND(Options!$B$21*HLOOKUP(Calculations!$E$2,Pop2016fractionQ1!$C$3:$BC$251,Pop2016fractionQ1!$BD96,FALSE),0)","v":0},{"$f":"ROUND(Options!$B$21*HLOOKUP(Calculations!$E$2,'Pop2016fractionQ1&2'!$C$3:$BC$251,'Pop2016fractionQ1&2'!$BD96,FALSE),0)","v":0},{"$f":"ROUND(Options!$B$21*HLOOKUP(Calculations!$E$2,PARfraction!$C$3:$BC$251,PARfraction!$BD96,FALSE),0)","v":0},94]
[null,"Male 90+",{"$f":"ROUND(Options!$B$21*HLOOKUP(Calculations!$E$2,Pop2016fraction!$C$3:$BC$251,Pop2016fraction!$BD97,FALSE),0)","v":0},{"$f":"ROUND(Options!$B$21*HLOOKUP(Calculations!$E$2,Pop2016fractionQ1!$C$3:$BC$251,Pop2016fractionQ1!$BD97,FALSE),0)","v":0},{"$f":"ROUND(Options!$B$21*HLOOKUP(Calculations!$E$2,'Pop2016fractionQ1&2'!$C$3:$BC$251,'Pop2016fractionQ1&2'!$BD97,FALSE),0)","v":0},{"$f":"ROUND(Options!$B$21*HLOOKUP(Calculations!$E$2,PARfraction!$C$3:$BC$251,PARfraction!$BD97,FALSE),0)","v":0},95]
["SIMD Q2","Female 0-4",{"$f":"ROUND(Options!$B$21*HLOOKUP(Calculations!$E$2,Pop2016fraction!$C$3:$BC$251,Pop2016fraction!$BD98,FALSE),0)","v":0},{"$f":"ROUND(Options!$B$21*HLOOKUP(Calculations!$E$2,Pop2016fractionQ1!$C$3:$BC$251,Pop2016fractionQ1!$BD98,FALSE),0)","v":0},{"$f":"ROUND(Options!$B$21*HLOOKUP(Calculations!$E$2,'Pop2016fractionQ1&2'!$C$3:$BC$251,'Pop2016fractionQ1&2'!$BD98,FALSE),0)","v":0},{"$f":"ROUND(Options!$B$21*HLOOKUP(Calculations!$E$2,PARfraction!$C$3:$BC$251,PARfraction!$BD98,FALSE),0)","v":0},96]
[null,"Female 5-9",{"$f":"ROUND(Options!$B$21*HLOOKUP(Calculations!$E$2,Pop2016fraction!$C$3:$BC$251,Pop2016fraction!$BD99,FALSE),0)","v":0},{"$f":"ROUND(Options!$B$21*HLOOKUP(Calculations!$E$2,Pop2016fractionQ1!$C$3:$BC$251,Pop2016fractionQ1!$BD99,FALSE),0)","v":0},{"$f":"ROUND(Options!$B$21*HLOOKUP(Calculations!$E$2,'Pop2016fractionQ1&2'!$C$3:$BC$251,'Pop2016fractionQ1&2'!$BD99,FALSE),0)","v":0},{"$f":"ROUND(Options!$B$21*HLOOKUP(Calculations!$E$2,PARfraction!$C$3:$BC$251,PARfraction!$BD99,FALSE),0)","v":0},97]
[null,"Female 10-15",{"$f":"ROUND(Options!$B$21*HLOOKUP(Calculations!$E$2,Pop2016fraction!$C$3:$BC$251,Pop2016fraction!$BD100,FALSE),0)","v":0},{"$f":"ROUND(Options!$B$21*HLOOKUP(Calculations!$E$2,Pop2016fractionQ1!$C$3:$BC$251,Pop2016fractionQ1!$BD100,FALSE),0)","v":0},{"$f":"ROUND(Options!$B$21*HLOOKUP(Calculations!$E$2,'Pop2016fractionQ1&2'!$C$3:$BC$251,'Pop2016fractionQ1&2'!$BD100,FALSE),0)","v":0},{"$f":"ROUND(Options!$B$21*HLOOKUP(Calculations!$E$2,PARfraction!$C$3:$BC$251,PARfraction!$BD100,FALSE),0)","v":0},98]
[null,"Female 16-19",{"$f":"ROUND(Options!$B$21*HLOOKUP(Calculations!$E$2,Pop2016fraction!$C$3:$BC$251,Pop2016fraction!$BD101,FALSE),0)","v":1570},{"$f":"ROUND(Options!$B$21*HLOOKUP(Calculations!$E$2,Pop2016fractionQ1!$C$3:$BC$251,Pop2016fractionQ1!$BD101,FALSE),0)","v":0},{"$f":"ROUND(Options!$B$21*HLOOKUP(Calculations!$E$2,'Pop2016fractionQ1&2'!$C$3:$BC$251,'Pop2016fractionQ1&2'!$BD101,FALSE),0)","v":3922},{"$f":"ROUND(Options!$B$21*HLOOKUP(Calculations!$E$2,PARfraction!$C$3:$BC$251,PARfraction!$BD101,FALSE),0)","v":1071},99]
[null,"Female 20-24",{"$f":"ROUND(Options!$B$21*HLOOKUP(Calculations!$E$2,Pop2016fraction!$C$3:$BC$251,Pop2016fraction!$BD102,FALSE),0)","v":2505},{"$f":"ROUND(Options!$B$21*HLOOKUP(Calculations!$E$2,Pop2016fractionQ1!$C$3:$BC$251,Pop2016fractionQ1!$BD102,FALSE),0)","v":0},{"$f":"ROUND(Options!$B$21*HLOOKUP(Calculations!$E$2,'Pop2016fractionQ1&2'!$C$3:$BC$251,'Pop2016fractionQ1&2'!$BD102,FALSE),0)","v":6259},{"$f":"ROUND(Options!$B$21*HLOOKUP(Calculations!$E$2,PARfraction!$C$3:$BC$251,PARfraction!$BD102,FALSE),0)","v":1709},100]
[null,"Female 25-29",{"$f":"ROUND(Options!$B$21*HLOOKUP(Calculations!$E$2,Pop2016fraction!$C$3:$BC$251,Pop2016fraction!$BD103,FALSE),0)","v":2757},{"$f":"ROUND(Options!$B$21*HLOOKUP(Calculations!$E$2,Pop2016fractionQ1!$C$3:$BC$251,Pop2016fractionQ1!$BD103,FALSE),0)","v":0},{"$f":"ROUND(Options!$B$21*HLOOKUP(Calculations!$E$2,'Pop2016fractionQ1&2'!$C$3:$BC$251,'Pop2016fractionQ1&2'!$BD103,FALSE),0)","v":6888},{"$f":"ROUND(Options!$B$21*HLOOKUP(Calculations!$E$2,PARfraction!$C$3:$BC$251,PARfraction!$BD103,FALSE),0)","v":3556},101]
[null,"Female 30-34",{"$f":"ROUND(Options!$B$21*HLOOKUP(Calculations!$E$2,Pop2016fraction!$C$3:$BC$251,Pop2016fraction!$BD104,FALSE),0)","v":2587},{"$f":"ROUND(Options!$B$21*HLOOKUP(Calculations!$E$2,Pop2016fractionQ1!$C$3:$BC$251,Pop2016fractionQ1!$BD104,FALSE),0)","v":0},{"$f":"ROUND(Options!$B$21*HLOOKUP(Calculations!$E$2,'Pop2016fractionQ1&2'!$C$3:$BC$251,'Pop2016fractionQ1&2'!$BD104,FALSE),0)","v":6463},{"$f":"ROUND(Options!$B$21*HLOOKUP(Calculations!$E$2,PARfraction!$C$3:$BC$251,PARfraction!$BD104,FALSE),0)","v":3337},102]
[null,"Female 35-39",{"$f":"ROUND(Options!$B$21*HLOOKUP(Calculations!$E$2,Pop2016fraction!$C$3:$BC$251,Pop2016fraction!$BD105,FALSE),0)","v":2241},{"$f":"ROUND(Options!$B$21*HLOOKUP(Calculations!$E$2,Pop2016fractionQ1!$C$3:$BC$251,Pop2016fractionQ1!$BD105,FALSE),0)","v":0},{"$f":"ROUND(Options!$B$21*HLOOKUP(Calculations!$E$2,'Pop2016fractionQ1&2'!$C$3:$BC$251,'Pop2016fractionQ1&2'!$BD105,FALSE),0)","v":5600},{"$f":"ROUND(Options!$B$21*HLOOKUP(Calculations!$E$2,PARfraction!$C$3:$BC$251,PARfraction!$BD105,FALSE),0)","v":2573},103]
[null,"Female 40-44",{"$f":"ROUND(Options!$B$21*HLOOKUP(Calculations!$E$2,Pop2016fraction!$C$3:$BC$251,Pop2016fraction!$BD106,FALSE),0)","v":2270},{"$f":"ROUND(Options!$B$21*HLOOKUP(Calculations!$E$2,Pop2016fractionQ1!$C$3:$BC$251,Pop2016fractionQ1!$BD106,FALSE),0)","v":0},{"$f":"ROUND(Options!$B$21*HLOOKUP(Calculations!$E$2,'Pop2016fractionQ1&2'!$C$3:$BC$251,'Pop2016fractionQ1&2'!$BD106,FALSE),0)","v":5673},{"$f":"ROUND(Options!$B$21*HLOOKUP(Calculations!$E$2,PARfraction!$C$3:$BC$251,PARfraction!$BD106,FALSE),0)","v":2607},104]
[null,"Female 45-49",{"$f":"ROUND(Options!$B$21*HLOOKUP(Calculations!$E$2,Pop2016fraction!$C$3:$BC$251,Pop2016fraction!$BD107,FALSE),0)","v":2659},{"$f":"ROUND(Options!$B$21*HLOOKUP(Calculations!$E$2,Pop2016fractionQ1!$C$3:$BC$251,Pop2016fractionQ1!$BD107,FALSE),0)","v":0},{"$f":"ROUND(Options!$B$21*HLOOKUP(Calculations!$E$2,'Pop2016fractionQ1&2'!$C$3:$BC$251,'Pop2016fractionQ1&2'!$BD107,FALSE),0)","v":6644},{"$f":"ROUND(Options!$B$21*HLOOKUP(Calculations!$E$2,PARfraction!$C$3:$BC$251,PARfraction!$BD107,FALSE),0)","v":2835},105]
[null,"Female 50-54",{"$f":"ROUND(Options!$B$21*HLOOKUP(Calculations!$E$2,Pop2016fraction!$C$3:$BC$251,Pop2016fraction!$BD108,FALSE),0)","v":2751},{"$f":"ROUND(Options!$B$21*HLOOKUP(Calculations!$E$2,Pop2016fractionQ1!$C$3:$BC$251,Pop2016fractionQ1!$BD108,FALSE),0)","v":0},{"$f":"ROUND(Options!$B$21*HLOOKUP(Calculations!$E$2,'Pop2016fractionQ1&2'!$C$3:$BC$251,'Pop2016fractionQ1&2'!$BD108,FALSE),0)","v":6873},{"$f":"ROUND(Options!$B$21*HLOOKUP(Calculations!$E$2,PARfraction!$C$3:$BC$251,PARfraction!$BD108,FALSE),0)","v":2932},106]
[null,"Female 55-59",{"$f":"ROUND(Options!$B$21*HLOOKUP(Calculations!$E$2,Pop2016fraction!$C$3:$BC$251,Pop2016fraction!$BD109,FALSE),0)","v":2530},{"$f":"ROUND(Options!$B$21*HLOOKUP(Calculations!$E$2,Pop2016fractionQ1!$C$3:$BC$251,Pop2016fractionQ1!$BD109,FALSE),0)","v":0},{"$f":"ROUND(Options!$B$21*HLOOKUP(Calculations!$E$2,'Pop2016fractionQ1&2'!$C$3:$BC$251,'Pop2016fractionQ1&2'!$BD109,FALSE),0)","v":6323},{"$f":"ROUND(Options!$B$21*HLOOKUP(Calculations!$E$2,PARfraction!$C$3:$BC$251,PARfraction!$BD109,FALSE),0)","v":5557},107]
[null,"Female 60-64",{"$f":"ROUND(Options!$B$21*HLOOKUP(Calculations!$E$2,Pop2016fraction!$C$3:$BC$251,Pop2016fraction!$BD110,FALSE),0)","v":2216},{"$f":"ROUND(Options!$B$21*HLOOKUP(Calculations!$E$2,Pop2016fractionQ1!$C$3:$BC$251,Pop2016fractionQ1!$BD110,FALSE),0)","v":0},{"$f":"ROUND(Options!$B$21*HLOOKUP(Calculations!$E$2,'Pop2016fractionQ1&2'!$C$3:$BC$251,'Pop2016fractionQ1&2'!$BD110,FALSE),0)","v":5537},{"$f":"ROUND(Options!$B$21*HLOOKUP(Calculations!$E$2,PARfraction!$C$3:$BC$251,PARfraction!$BD110,FALSE),0)","v":4867},108]
[null,"Female 65-69",{"$f":"ROUND(Options!$B$21*HLOOKUP(Calculations!$E$2,Pop2016fraction!$C$3:$BC$251,Pop2016fraction!$BD111,FALSE),0)","v":0},{"$f":"ROUND(Options!$B$21*HLOOKUP(Calculations!$E$2,Pop2016fractionQ1!$C$3:$BC$251,Pop2016fractionQ1!$BD111,FALSE),0)","v":0},{"$f":"ROUND(Options!$B$21*HLOOKUP(Calculations!$E$2,'Pop2016fractionQ1&2'!$C$3:$BC$251,'Pop2016fractionQ1&2'!$BD111,FALSE),0)","v":0},{"$f":"ROUND(Options!$B$21*HLOOKUP(Calculations!$E$2,PARfraction!$C$3:$BC$251,PARfraction!$BD111,FALSE),0)","v":0},109]
[null,"Female 70-74",{"$f":"ROUND(Options!$B$21*HLOOKUP(Calculations!$E$2,Pop2016fraction!$C$3:$BC$251,Pop2016fraction!$BD112,FALSE),0)","v":0},{"$f":"ROUND(Options!$B$21*HLOOKUP(Calculations!$E$2,Pop2016fractionQ1!$C$3:$BC$251,Pop2016fractionQ1!$BD112,FALSE),0)","v":0},{"$f":"ROUND(Options!$B$21*HLOOKUP(Calculations!$E$2,'Pop2016fractionQ1&2'!$C$3:$BC$251,'Pop2016fractionQ1&2'!$BD112,FALSE),0)","v":0},{"$f":"ROUND(Options!$B$21*HLOOKUP(Calculations!$E$2,PARfraction!$C$3:$BC$251,PARfraction!$BD112,FALSE),0)","v":0},110]
[null,"Female 75-79",{"$f":"ROUND(Options!$B$21*HLOOKUP(Calculations!$E$2,Pop2016fraction!$C$3:$BC$251,Pop2016fraction!$BD113,FALSE),0)","v":0},{"$f":"ROUND(Options!$B$21*HLOOKUP(Calculations!$E$2,Pop2016fractionQ1!$C$3:$BC$251,Pop2016fractionQ1!$BD113,FALSE),0)","v":0},{"$f":"ROUND(Options!$B$21*HLOOKUP(Calculations!$E$2,'Pop2016fractionQ1&2'!$C$3:$BC$251,'Pop2016fractionQ1&2'!$BD113,FALSE),0)","v":0},{"$f":"ROUND(Options!$B$21*HLOOKUP(Calculations!$E$2,PARfraction!$C$3:$BC$251,PARfraction!$BD113,FALSE),0)","v":0},111]
[null,"Female 80-84",{"$f":"ROUND(Options!$B$21*HLOOKUP(Calculations!$E$2,Pop2016fraction!$C$3:$BC$251,Pop2016fraction!$BD114,FALSE),0)","v":0},{"$f":"ROUND(Options!$B$21*HLOOKUP(Calculations!$E$2,Pop2016fractionQ1!$C$3:$BC$251,Pop2016fractionQ1!$BD114,FALSE),0)","v":0},{"$f":"ROUND(Options!$B$21*HLOOKUP(Calculations!$E$2,'Pop2016fractionQ1&2'!$C$3:$BC$251,'Pop2016fractionQ1&2'!$BD114,FALSE),0)","v":0},{"$f":"ROUND(Options!$B$21*HLOOKUP(Calculations!$E$2,PARfraction!$C$3:$BC$251,PARfraction!$BD114,FALSE),0)","v":0},112]
[null,"Female 85-89",{"$f":"ROUND(Options!$B$21*HLOOKUP(Calculations!$E$2,Pop2016fraction!$C$3:$BC$251,Pop2016fraction!$BD115,FALSE),0)","v":0},{"$f":"ROUND(Options!$B$21*HLOOKUP(Calculations!$E$2,Pop2016fractionQ1!$C$3:$BC$251,Pop2016fractionQ1!$BD115,FALSE),0)","v":0},{"$f":"ROUND(Options!$B$21*HLOOKUP(Calculations!$E$2,'Pop2016fractionQ1&2'!$C$3:$BC$251,'Pop2016fractionQ1&2'!$BD115,FALSE),0)","v":0},{"$f":"ROUND(Options!$B$21*HLOOKUP(Calculations!$E$2,PARfraction!$C$3:$BC$251,PARfraction!$BD115,FALSE),0)","v":0},113]
[null,"Female 90+",{"$f":"ROUND(Options!$B$21*HLOOKUP(Calculations!$E$2,Pop2016fraction!$C$3:$BC$251,Pop2016fraction!$BD116,FALSE),0)","v":0},{"$f":"ROUND(Options!$B$21*HLOOKUP(Calculations!$E$2,Pop2016fractionQ1!$C$3:$BC$251,Pop2016fractionQ1!$BD116,FALSE),0)","v":0},{"$f":"ROUND(Options!$B$21*HLOOKUP(Calculations!$E$2,'Pop2016fractionQ1&2'!$C$3:$BC$251,'Pop2016fractionQ1&2'!$BD116,FALSE),0)","v":0},{"$f":"ROUND(Options!$B$21*HLOOKUP(Calculations!$E$2,PARfraction!$C$3:$BC$251,PARfraction!$BD116,FALSE),0)","v":0},114]
[null,"Male 0-4",{"$f":"ROUND(Options!$B$21*HLOOKUP(Calculations!$E$2,Pop2016fraction!$C$3:$BC$251,Pop2016fraction!$BD117,FALSE),0)","v":0},{"$f":"ROUND(Options!$B$21*HLOOKUP(Calculations!$E$2,Pop2016fractionQ1!$C$3:$BC$251,Pop2016fractionQ1!$BD117,FALSE),0)","v":0},{"$f":"ROUND(Options!$B$21*HLOOKUP(Calculations!$E$2,'Pop2016fractionQ1&2'!$C$3:$BC$251,'Pop2016fractionQ1&2'!$BD117,FALSE),0)","v":0},{"$f":"ROUND(Options!$B$21*HLOOKUP(Calculations!$E$2,PARfraction!$C$3:$BC$251,PARfraction!$BD117,FALSE),0)","v":0},115]
[null,"Male 5-9",{"$f":"ROUND(Options!$B$21*HLOOKUP(Calculations!$E$2,Pop2016fraction!$C$3:$BC$251,Pop2016fraction!$BD118,FALSE),0)","v":0},{"$f":"ROUND(Options!$B$21*HLOOKUP(Calculations!$E$2,Pop2016fractionQ1!$C$3:$BC$251,Pop2016fractionQ1!$BD118,FALSE),0)","v":0},{"$f":"ROUND(Options!$B$21*HLOOKUP(Calculations!$E$2,'Pop2016fractionQ1&2'!$C$3:$BC$251,'Pop2016fractionQ1&2'!$BD118,FALSE),0)","v":0},{"$f":"ROUND(Options!$B$21*HLOOKUP(Calculations!$E$2,PARfraction!$C$3:$BC$251,PARfraction!$BD118,FALSE),0)","v":0},116]
[null,"Male 10-15",{"$f":"ROUND(Options!$B$21*HLOOKUP(Calculations!$E$2,Pop2016fraction!$C$3:$BC$251,Pop2016fraction!$BD119,FALSE),0)","v":0},{"$f":"ROUND(Options!$B$21*HLOOKUP(Calculations!$E$2,Pop2016fractionQ1!$C$3:$BC$251,Pop2016fractionQ1!$BD119,FALSE),0)","v":0},{"$f":"ROUND(Options!$B$21*HLOOKUP(Calculations!$E$2,'Pop2016fractionQ1&2'!$C$3:$BC$251,'Pop2016fractionQ1&2'!$BD119,FALSE),0)","v":0},{"$f":"ROUND(Options!$B$21*HLOOKUP(Calculations!$E$2,PARfraction!$C$3:$BC$251,PARfraction!$BD119,FALSE),0)","v":0},117]
[null,"Male 16-19",{"$f":"ROUND(Options!$B$21*HLOOKUP(Calculations!$E$2,Pop2016fraction!$C$3:$BC$251,Pop2016fraction!$BD120,FALSE),0)","v":1608},{"$f":"ROUND(Options!$B$21*HLOOKUP(Calculations!$E$2,Pop2016fractionQ1!$C$3:$BC$251,Pop2016fractionQ1!$BD120,FALSE),0)","v":0},{"$f":"ROUND(Options!$B$21*HLOOKUP(Calculations!$E$2,'Pop2016fractionQ1&2'!$C$3:$BC$251,'Pop2016fractionQ1&2'!$BD120,FALSE),0)","v":4019},{"$f":"ROUND(Options!$B$21*HLOOKUP(Calculations!$E$2,PARfraction!$C$3:$BC$251,PARfraction!$BD120,FALSE),0)","v":1211},118]
[null,"Male 20-24",{"$f":"ROUND(Options!$B$21*HLOOKUP(Calculations!$E$2,Pop2016fraction!$C$3:$BC$251,Pop2016fraction!$BD121,FALSE),0)","v":2441},{"$f":"ROUND(Options!$B$21*HLOOKUP(Calculations!$E$2,Pop2016fractionQ1!$C$3:$BC$251,Pop2016fractionQ1!$BD121,FALSE),0)","v":0},{"$f":"ROUND(Options!$B$21*HLOOKUP(Calculations!$E$2,'Pop2016fractionQ1&2'!$C$3:$BC$251,'Pop2016fractionQ1&2'!$BD121,FALSE),0)","v":6100},{"$f":"ROUND(Options!$B$21*HLOOKUP(Calculations!$E$2,PARfraction!$C$3:$BC$251,PARfraction!$BD121,FALSE),0)","v":1839},119]
[null,"Male 25-29",{"$f":"ROUND(Options!$B$21*HLOOKUP(Calculations!$E$2,Pop2016fraction!$C$3:$BC$251,Pop2016fraction!$BD122,FALSE),0)","v":2689},{"$f":"ROUND(Options!$B$21*HLOOKUP(Calculations!$E$2,Pop2016fractionQ1!$C$3:$BC$251,Pop2016fractionQ1!$BD122,FALSE),0)","v":0},{"$f":"ROUND(Options!$B$21*HLOOKUP(Calculations!$E$2,'Pop2016fractionQ1&2'!$C$3:$BC$251,'Pop2016fractionQ1&2'!$BD122,FALSE),0)","v":6719},{"$f":"ROUND(Options!$B$21*HLOOKUP(Calculations!$E$2,PARfraction!$C$3:$BC$251,PARfraction!$BD122,FALSE),0)","v":1718},120]
[null,"Male 30-34",{"$f":"ROUND(Options!$B$21*HLOOKUP(Calculations!$E$2,Pop2016fraction!$C$3:$BC$251,Pop2016fraction!$BD123,FALSE),0)","v":2522},{"$f":"ROUND(Options!$B$21*HLOOKUP(Calculations!$E$2,Pop2016fractionQ1!$C$3:$BC$251,Pop2016fractionQ1!$BD123,FALSE),0)","v":0},{"$f":"ROUND(Options!$B$21*HLOOKUP(Calculations!$E$2,'Pop2016fractionQ1&2'!$C$3:$BC$251,'Pop2016fractionQ1&2'!$BD123,FALSE),0)","v":6301},{"$f":"ROUND(Options!$B$21*HLOOKUP(Calculations!$E$2,PARfraction!$C$3:$BC$251,PARfraction!$BD123,FALSE),0)","v":1611},121]
[null,"Male 35-39",{"$f":"ROUND(Options!$B$21*HLOOKUP(Calculations!$E$2,Pop2016fraction!$C$3:$BC$251,Pop2016fraction!$BD124,FALSE),0)","v":2195},{"$f":"ROUND(Options!$B$21*HLOOKUP(Calculations!$E$2,Pop2016fractionQ1!$C$3:$BC$251,Pop2016fractionQ1!$BD124,FALSE),0)","v":0},{"$f":"ROUND(Options!$B$21*HLOOKUP(Calculations!$E$2,'Pop2016fractionQ1&2'!$C$3:$BC$251,'Pop2016fractionQ1&2'!$BD124,FALSE),0)","v":5486},{"$f":"ROUND(Options!$B$21*HLOOKUP(Calculations!$E$2,PARfraction!$C$3:$BC$251,PARfraction!$BD124,FALSE),0)","v":1797},122]
[null,"Male 40-44",{"$f":"ROUND(Options!$B$21*HLOOKUP(Calculations!$E$2,Pop2016fraction!$C$3:$BC$251,Pop2016fraction!$BD125,FALSE),0)","v":2173},{"$f":"ROUND(Options!$B$21*HLOOKUP(Calculations!$E$2,Pop2016fractionQ1!$C$3:$BC$251,Pop2016fractionQ1!$BD125,FALSE),0)","v":0},{"$f":"ROUND(Options!$B$21*HLOOKUP(Calculations!$E$2,'Pop2016fractionQ1&2'!$C$3:$BC$251,'Pop2016fractionQ1&2'!$BD125,FALSE),0)","v":5430},{"$f":"ROUND(Options!$B$21*HLOOKUP(Calculations!$E$2,PARfraction!$C$3:$BC$251,PARfraction!$BD125,FALSE),0)","v":1779},123]
[null,"Male 45-49",{"$f":"ROUND(Options!$B$21*HLOOKUP(Calculations!$E$2,Pop2016fraction!$C$3:$BC$251,Pop2016fraction!$BD126,FALSE),0)","v":2491},{"$f":"ROUND(Options!$B$21*HLOOKUP(Calculations!$E$2,Pop2016fractionQ1!$C$3:$BC$251,Pop2016fractionQ1!$BD126,FALSE),0)","v":0},{"$f":"ROUND(Options!$B$21*HLOOKUP(Calculations!$E$2,'Pop2016fractionQ1&2'!$C$3:$BC$251,'Pop2016fractionQ1&2'!$BD126,FALSE),0)","v":6223},{"$f":"ROUND(Options!$B$21*HLOOKUP(Calculations!$E$2,PARfraction!$C$3:$BC$251,PARfraction!$BD126,FALSE),0)","v":2218},124]
[null,"Male 50-54",{"$f":"ROUND(Options!$B$21*HLOOKUP(Calculations!$E$2,Pop2016fraction!$C$3:$BC$251,Pop2016fraction!$BD127,FALSE),0)","v":2567},{"$f":"ROUND(Options!$B$21*HLOOKUP(Calculations!$E$2,Pop2016fractionQ1!$C$3:$BC$251,Pop2016fractionQ1!$BD127,FALSE),0)","v":0},{"$f":"ROUND(Options!$B$21*HLOOKUP(Calculations!$E$2,'Pop2016fractionQ1&2'!$C$3:$BC$251,'Pop2016fractionQ1&2'!$BD127,FALSE),0)","v":6415},{"$f":"ROUND(Options!$B$21*HLOOKUP(Calculations!$E$2,PARfraction!$C$3:$BC$251,PARfraction!$BD127,FALSE),0)","v":2286},125]
[null,"Male 55-59",{"$f":"ROUND(Options!$B$21*HLOOKUP(Calculations!$E$2,Pop2016fraction!$C$3:$BC$251,Pop2016fraction!$BD128,FALSE),0)","v":2378},{"$f":"ROUND(Options!$B$21*HLOOKUP(Calculations!$E$2,Pop2016fractionQ1!$C$3:$BC$251,Pop2016fractionQ1!$BD128,FALSE),0)","v":0},{"$f":"ROUND(Options!$B$21*HLOOKUP(Calculations!$E$2,'Pop2016fractionQ1&2'!$C$3:$BC$251,'Pop2016fractionQ1&2'!$BD128,FALSE),0)","v":5943},{"$f":"ROUND(Options!$B$21*HLOOKUP(Calculations!$E$2,PARfraction!$C$3:$BC$251,PARfraction!$BD128,FALSE),0)","v":3733},126]
[null,"Male 60-64",{"$f":"ROUND(Options!$B$21*HLOOKUP(Calculations!$E$2,Pop2016fraction!$C$3:$BC$251,Pop2016fraction!$BD129,FALSE),0)","v":2035},{"$f":"ROUND(Options!$B$21*HLOOKUP(Calculations!$E$2,Pop2016fractionQ1!$C$3:$BC$251,Pop2016fractionQ1!$BD129,FALSE),0)","v":0},{"$f":"ROUND(Options!$B$21*HLOOKUP(Calculations!$E$2,'Pop2016fractionQ1&2'!$C$3:$BC$251,'Pop2016fractionQ1&2'!$BD129,FALSE),0)","v":5085},{"$f":"ROUND(Options!$B$21*HLOOKUP(Calculations!$E$2,PARfraction!$C$3:$BC$251,PARfraction!$BD129,FALSE),0)","v":3194},127]
[null,"Male 65-69",{"$f":"ROUND(Options!$B$21*HLOOKUP(Calculations!$E$2,Pop2016fraction!$C$3:$BC$251,Pop2016fraction!$BD130,FALSE),0)","v":0},{"$f":"ROUND(Options!$B$21*HLOOKUP(Calculations!$E$2,Pop2016fractionQ1!$C$3:$BC$251,Pop2016fractionQ1!$BD130,FALSE),0)","v":0},{"$f":"ROUND(Options!$B$21*HLOOKUP(Calculations!$E$2,'Pop2016fractionQ1&2'!$C$3:$BC$251,'Pop2016fractionQ1&2'!$BD130,FALSE),0)","v":0},{"$f":"ROUND(Options!$B$21*HLOOKUP(Calculations!$E$2,PARfraction!$C$3:$BC$251,PARfraction!$BD130,FALSE),0)","v":0},128]
[null,"Male 70-74",{"$f":"ROUND(Options!$B$21*HLOOKUP(Calculations!$E$2,Pop2016fraction!$C$3:$BC$251,Pop2016fraction!$BD131,FALSE),0)","v":0},{"$f":"ROUND(Options!$B$21*HLOOKUP(Calculations!$E$2,Pop2016fractionQ1!$C$3:$BC$251,Pop2016fractionQ1!$BD131,FALSE),0)","v":0},{"$f":"ROUND(Options!$B$21*HLOOKUP(Calculations!$E$2,'Pop2016fractionQ1&2'!$C$3:$BC$251,'Pop2016fractionQ1&2'!$BD131,FALSE),0)","v":0},{"$f":"ROUND(Options!$B$21*HLOOKUP(Calculations!$E$2,PARfraction!$C$3:$BC$251,PARfraction!$BD131,FALSE),0)","v":0},129]
[null,"Male 75-79",{"$f":"ROUND(Options!$B$21*HLOOKUP(Calculations!$E$2,Pop2016fraction!$C$3:$BC$251,Pop2016fraction!$BD132,FALSE),0)","v":0},{"$f":"ROUND(Options!$B$21*HLOOKUP(Calculations!$E$2,Pop2016fractionQ1!$C$3:$BC$251,Pop2016fractionQ1!$BD132,FALSE),0)","v":0},{"$f":"ROUND(Options!$B$21*HLOOKUP(Calculations!$E$2,'Pop2016fractionQ1&2'!$C$3:$BC$251,'Pop2016fractionQ1&2'!$BD132,FALSE),0)","v":0},{"$f":"ROUND(Options!$B$21*HLOOKUP(Calculations!$E$2,PARfraction!$C$3:$BC$251,PARfraction!$BD132,FALSE),0)","v":0},130]
[null,"Male 80-84",{"$f":"ROUND(Options!$B$21*HLOOKUP(Calculations!$E$2,Pop2016fraction!$C$3:$BC$251,Pop2016fraction!$BD133,FALSE),0)","v":0},{"$f":"ROUND(Options!$B$21*HLOOKUP(Calculations!$E$2,Pop2016fractionQ1!$C$3:$BC$251,Pop2016fractionQ1!$BD133,FALSE),0)","v":0},{"$f":"ROUND(Options!$B$21*HLOOKUP(Calculations!$E$2,'Pop2016fractionQ1&2'!$C$3:$BC$251,'Pop2016fractionQ1&2'!$BD133,FALSE),0)","v":0},{"$f":"ROUND(Options!$B$21*HLOOKUP(Calculations!$E$2,PARfraction!$C$3:$BC$251,PARfraction!$BD133,FALSE),0)","v":0},131]
[null,"Male 85-89",{"$f":"ROUND(Options!$B$21*HLOOKUP(Calculations!$E$2,Pop2016fraction!$C$3:$BC$251,Pop2016fraction!$BD134,FALSE),0)","v":0},{"$f":"ROUND(Options!$B$21*HLOOKUP(Calculations!$E$2,Pop2016fractionQ1!$C$3:$BC$251,Pop2016fractionQ1!$BD134,FALSE),0)","v":0},{"$f":"ROUND(Options!$B$21*HLOOKUP(Calculations!$E$2,'Pop2016fractionQ1&2'!$C$3:$BC$251,'Pop2016fractionQ1&2'!$BD134,FALSE),0)","v":0},{"$f":"ROUND(Options!$B$21*HLOOKUP(Calculations!$E$2,PARfraction!$C$3:$BC$251,PARfraction!$BD134,FALSE),0)","v":0},132]
[null,"Male 90+",{"$f":"ROUND(Options!$B$21*HLOOKUP(Calculations!$E$2,Pop2016fraction!$C$3:$BC$251,Pop2016fraction!$BD135,FALSE),0)","v":0},{"$f":"ROUND(Options!$B$21*HLOOKUP(Calculations!$E$2,Pop2016fractionQ1!$C$3:$BC$251,Pop2016fractionQ1!$BD135,FALSE),0)","v":0},{"$f":"ROUND(Options!$B$21*HLOOKUP(Calculations!$E$2,'Pop2016fractionQ1&2'!$C$3:$BC$251,'Pop2016fractionQ1&2'!$BD135,FALSE),0)","v":0},{"$f":"ROUND(Options!$B$21*HLOOKUP(Calculations!$E$2,PARfraction!$C$3:$BC$251,PARfraction!$BD135,FALSE),0)","v":0},133]
["SIMD Q3","Female 0-4",{"$f":"ROUND(Options!$B$21*HLOOKUP(Calculations!$E$2,Pop2016fraction!$C$3:$BC$251,Pop2016fraction!$BD136,FALSE),0)","v":0},{"$f":"ROUND(Options!$B$21*HLOOKUP(Calculations!$E$2,Pop2016fractionQ1!$C$3:$BC$251,Pop2016fractionQ1!$BD136,FALSE),0)","v":0},{"$f":"ROUND(Options!$B$21*HLOOKUP(Calculations!$E$2,'Pop2016fractionQ1&2'!$C$3:$BC$251,'Pop2016fractionQ1&2'!$BD136,FALSE),0)","v":0},{"$f":"ROUND(Options!$B$21*HLOOKUP(Calculations!$E$2,PARfraction!$C$3:$BC$251,PARfraction!$BD136,FALSE),0)","v":0},134]
[null,"Female 5-9",{"$f":"ROUND(Options!$B$21*HLOOKUP(Calculations!$E$2,Pop2016fraction!$C$3:$BC$251,Pop2016fraction!$BD137,FALSE),0)","v":0},{"$f":"ROUND(Options!$B$21*HLOOKUP(Calculations!$E$2,Pop2016fractionQ1!$C$3:$BC$251,Pop2016fractionQ1!$BD137,FALSE),0)","v":0},{"$f":"ROUND(Options!$B$21*HLOOKUP(Calculations!$E$2,'Pop2016fractionQ1&2'!$C$3:$BC$251,'Pop2016fractionQ1&2'!$BD137,FALSE),0)","v":0},{"$f":"ROUND(Options!$B$21*HLOOKUP(Calculations!$E$2,PARfraction!$C$3:$BC$251,PARfraction!$BD137,FALSE),0)","v":0},135]
[null,"Female 10-15",{"$f":"ROUND(Options!$B$21*HLOOKUP(Calculations!$E$2,Pop2016fraction!$C$3:$BC$251,Pop2016fraction!$BD138,FALSE),0)","v":0},{"$f":"ROUND(Options!$B$21*HLOOKUP(Calculations!$E$2,Pop2016fractionQ1!$C$3:$BC$251,Pop2016fractionQ1!$BD138,FALSE),0)","v":0},{"$f":"ROUND(Options!$B$21*HLOOKUP(Calculations!$E$2,'Pop2016fractionQ1&2'!$C$3:$BC$251,'Pop2016fractionQ1&2'!$BD138,FALSE),0)","v":0},{"$f":"ROUND(Options!$B$21*HLOOKUP(Calculations!$E$2,PARfraction!$C$3:$BC$251,PARfraction!$BD138,FALSE),0)","v":0},136]
[null,"Female 16-19",{"$f":"ROUND(Options!$B$21*HLOOKUP(Calculations!$E$2,Pop2016fraction!$C$3:$BC$251,Pop2016fraction!$BD139,FALSE),0)","v":1552},{"$f":"ROUND(Options!$B$21*HLOOKUP(Calculations!$E$2,Pop2016fractionQ1!$C$3:$BC$251,Pop2016fractionQ1!$BD139,FALSE),0)","v":0},{"$f":"ROUND(Options!$B$21*HLOOKUP(Calculations!$E$2,'Pop2016fractionQ1&2'!$C$3:$BC$251,'Pop2016fractionQ1&2'!$BD139,FALSE),0)","v":0},{"$f":"ROUND(Options!$B$21*HLOOKUP(Calculations!$E$2,PARfraction!$C$3:$BC$251,PARfraction!$BD139,FALSE),0)","v":755},137]
[null,"Female 20-24",{"$f":"ROUND(Options!$B$21*HLOOKUP(Calculations!$E$2,Pop2016fraction!$C$3:$BC$251,Pop2016fraction!$BD140,FALSE),0)","v":2370},{"$f":"ROUND(Options!$B$21*HLOOKUP(Calculations!$E$2,Pop2016fractionQ1!$C$3:$BC$251,Pop2016fractionQ1!$BD140,FALSE),0)","v":0},{"$f":"ROUND(Options!$B$21*HLOOKUP(Calculations!$E$2,'Pop2016fractionQ1&2'!$C$3:$BC$251,'Pop2016fractionQ1&2'!$BD140,FALSE),0)","v":0},{"$f":"ROUND(Options!$B$21*HLOOKUP(Calculations!$E$2,PARfraction!$C$3:$BC$251,PARfraction!$BD140,FALSE),0)","v":1152},138]
[null,"Female 25-29",{"$f":"ROUND(Options!$B$21*HLOOKUP(Calculations!$E$2,Pop2016fraction!$C$3:$BC$251,Pop2016fraction!$BD141,FALSE),0)","v":2473},{"$f":"ROUND(Options!$B$21*HLOOKUP(Calculations!$E$2,Pop2016fractionQ1!$C$3:$BC$251,Pop2016fractionQ1!$BD141,FALSE),0)","v":0},{"$f":"ROUND(Options!$B$21*HLOOKUP(Calculations!$E$2,'Pop2016fractionQ1&2'!$C$3:$BC$251,'Pop2016fractionQ1&2'!$BD141,FALSE),0)","v":0},{"$f":"ROUND(Options!$B$21*HLOOKUP(Calculations!$E$2,PARfraction!$C$3:$BC$251,PARfraction!$BD141,FALSE),0)","v":1987},139]
[null,"Female 30-34",{"$f":"ROUND(Options!$B$21*HLOOKUP(Calculations!$E$2,Pop2016fraction!$C$3:$BC$251,Pop2016fraction!$BD142,FALSE),0)","v":2362},{"$f":"ROUND(Options!$B$21*HLOOKUP(Calculations!$E$2,Pop2016fractionQ1!$C$3:$BC$251,Pop2016fractionQ1!$BD142,FALSE),0)","v":0},{"$f":"ROUND(Options!$B$21*HLOOKUP(Calculations!$E$2,'Pop2016fractionQ1&2'!$C$3:$BC$251,'Pop2016fractionQ1&2'!$BD142,FALSE),0)","v":0},{"$f":"ROUND(Options!$B$21*HLOOKUP(Calculations!$E$2,PARfraction!$C$3:$BC$251,PARfraction!$BD142,FALSE),0)","v":1898},140]
[null,"Female 35-39",{"$f":"ROUND(Options!$B$21*HLOOKUP(Calculations!$E$2,Pop2016fraction!$C$3:$BC$251,Pop2016fraction!$BD143,FALSE),0)","v":2169},{"$f":"ROUND(Options!$B$21*HLOOKUP(Calculations!$E$2,Pop2016fractionQ1!$C$3:$BC$251,Pop2016fractionQ1!$BD143,FALSE),0)","v":0},{"$f":"ROUND(Options!$B$21*HLOOKUP(Calculations!$E$2,'Pop2016fractionQ1&2'!$C$3:$BC$251,'Pop2016fractionQ1&2'!$BD143,FALSE),0)","v":0},{"$f":"ROUND(Options!$B$21*HLOOKUP(Calculations!$E$2,PARfraction!$C$3:$BC$251,PARfraction!$BD143,FALSE),0)","v":1920},141]
[null,"Female 40-44",{"$f":"ROUND(Options!$B$21*HLOOKUP(Calculations!$E$2,Pop2016fraction!$C$3:$BC$251,Pop2016fraction!$BD144,FALSE),0)","v":2260},{"$f":"ROUND(Options!$B$21*HLOOKUP(Calculations!$E$2,Pop2016fractionQ1!$C$3:$BC$251,Pop2016fractionQ1!$BD144,FALSE),0)","v":0},{"$f":"ROUND(Options!$B$21*HLOOKUP(Calculations!$E$2,'Pop2016fractionQ1&2'!$C$3:$BC$251,'Pop2016fractionQ1&2'!$BD144,FALSE),0)","v":0},{"$f":"ROUND(Options!$B$21*HLOOKUP(Calculations!$E$2,PARfraction!$C$3:$BC$251,PARfraction!$BD144,FALSE),0)","v":2001},142]
[null,"Female 45-49",{"$f":"ROUND(Options!$B$21*HLOOKUP(Calculations!$E$2,Pop2016fraction!$C$3:$BC$251,Pop2016fraction!$BD145,FALSE),0)","v":2749},{"$f":"ROUND(Options!$B$21*HLOOKUP(Calculations!$E$2,Pop2016fractionQ1!$C$3:$BC$251,Pop2016fractionQ1!$BD145,FALSE),0)","v":0},{"$f":"ROUND(Options!$B$21*HLOOKUP(Calculations!$E$2,'Pop2016fractionQ1&2'!$C$3:$BC$251,'Pop2016fractionQ1&2'!$BD145,FALSE),0)","v":0},{"$f":"ROUND(Options!$B$21*HLOOKUP(Calculations!$E$2,PARfraction!$C$3:$BC$251,PARfraction!$BD145,FALSE),0)","v":2192},143]
[null,"Female 50-54",{"$f":"ROUND(Options!$B$21*HLOOKUP(Calculations!$E$2,Pop2016fraction!$C$3:$BC$251,Pop2016fraction!$BD146,FALSE),0)","v":2888},{"$f":"ROUND(Options!$B$21*HLOOKUP(Calculations!$E$2,Pop2016fractionQ1!$C$3:$BC$251,Pop2016fractionQ1!$BD146,FALSE),0)","v":0},{"$f":"ROUND(Options!$B$21*HLOOKUP(Calculations!$E$2,'Pop2016fractionQ1&2'!$C$3:$BC$251,'Pop2016fractionQ1&2'!$BD146,FALSE),0)","v":0},{"$f":"ROUND(Options!$B$21*HLOOKUP(Calculations!$E$2,PARfraction!$C$3:$BC$251,PARfraction!$BD146,FALSE),0)","v":2303},144]
[null,"Female 55-59",{"$f":"ROUND(Options!$B$21*HLOOKUP(Calculations!$E$2,Pop2016fraction!$C$3:$BC$251,Pop2016fraction!$BD147,FALSE),0)","v":2658},{"$f":"ROUND(Options!$B$21*HLOOKUP(Calculations!$E$2,Pop2016fractionQ1!$C$3:$BC$251,Pop2016fractionQ1!$BD147,FALSE),0)","v":0},{"$f":"ROUND(Options!$B$21*HLOOKUP(Calculations!$E$2,'Pop2016fractionQ1&2'!$C$3:$BC$251,'Pop2016fractionQ1&2'!$BD147,FALSE),0)","v":0},{"$f":"ROUND(Options!$B$21*HLOOKUP(Calculations!$E$2,PARfraction!$C$3:$BC$251,PARfraction!$BD147,FALSE),0)","v":5069},145]
[null,"Female 60-64",{"$f":"ROUND(Options!$B$21*HLOOKUP(Calculations!$E$2,Pop2016fraction!$C$3:$BC$251,Pop2016fraction!$BD148,FALSE),0)","v":2348},{"$f":"ROUND(Options!$B$21*HLOOKUP(Calculations!$E$2,Pop2016fractionQ1!$C$3:$BC$251,Pop2016fractionQ1!$BD148,FALSE),0)","v":0},{"$f":"ROUND(Options!$B$21*HLOOKUP(Calculations!$E$2,'Pop2016fractionQ1&2'!$C$3:$BC$251,'Pop2016fractionQ1&2'!$BD148,FALSE),0)","v":0},{"$f":"ROUND(Options!$B$21*HLOOKUP(Calculations!$E$2,PARfraction!$C$3:$BC$251,PARfraction!$BD148,FALSE),0)","v":4478},146]
[null,"Female 65-69",{"$f":"ROUND(Options!$B$21*HLOOKUP(Calculations!$E$2,Pop2016fraction!$C$3:$BC$251,Pop2016fraction!$BD149,FALSE),0)","v":0},{"$f":"ROUND(Options!$B$21*HLOOKUP(Calculations!$E$2,Pop2016fractionQ1!$C$3:$BC$251,Pop2016fractionQ1!$BD149,FALSE),0)","v":0},{"$f":"ROUND(Options!$B$21*HLOOKUP(Calculations!$E$2,'Pop2016fractionQ1&2'!$C$3:$BC$251,'Pop2016fractionQ1&2'!$BD149,FALSE),0)","v":0},{"$f":"ROUND(Options!$B$21*HLOOKUP(Calculations!$E$2,PARfraction!$C$3:$BC$251,PARfraction!$BD149,FALSE),0)","v":0},147]
[null,"Female 70-74",{"$f":"ROUND(Options!$B$21*HLOOKUP(Calculations!$E$2,Pop2016fraction!$C$3:$BC$251,Pop2016fraction!$BD150,FALSE),0)","v":0},{"$f":"ROUND(Options!$B$21*HLOOKUP(Calculations!$E$2,Pop2016fractionQ1!$C$3:$BC$251,Pop2016fractionQ1!$BD150,FALSE),0)","v":0},{"$f":"ROUND(Options!$B$21*HLOOKUP(Calculations!$E$2,'Pop2016fractionQ1&2'!$C$3:$BC$251,'Pop2016fractionQ1&2'!$BD150,FALSE),0)","v":0},{"$f":"ROUND(Options!$B$21*HLOOKUP(Calculations!$E$2,PARfraction!$C$3:$BC$251,PARfraction!$BD150,FALSE),0)","v":0},148]
[null,"Female 75-79",{"$f":"ROUND(Options!$B$21*HLOOKUP(Calculations!$E$2,Pop2016fraction!$C$3:$BC$251,Pop2016fraction!$BD151,FALSE),0)","v":0},{"$f":"ROUND(Options!$B$21*HLOOKUP(Calculations!$E$2,Pop2016fractionQ1!$C$3:$BC$251,Pop2016fractionQ1!$BD151,FALSE),0)","v":0},{"$f":"ROUND(Options!$B$21*HLOOKUP(Calculations!$E$2,'Pop2016fractionQ1&2'!$C$3:$BC$251,'Pop2016fractionQ1&2'!$BD151,FALSE),0)","v":0},{"$f":"ROUND(Options!$B$21*HLOOKUP(Calculations!$E$2,PARfraction!$C$3:$BC$251,PARfraction!$BD151,FALSE),0)","v":0},149]
[null,"Female 80-84",{"$f":"ROUND(Options!$B$21*HLOOKUP(Calculations!$E$2,Pop2016fraction!$C$3:$BC$251,Pop2016fraction!$BD152,FALSE),0)","v":0},{"$f":"ROUND(Options!$B$21*HLOOKUP(Calculations!$E$2,Pop2016fractionQ1!$C$3:$BC$251,Pop2016fractionQ1!$BD152,FALSE),0)","v":0},{"$f":"ROUND(Options!$B$21*HLOOKUP(Calculations!$E$2,'Pop2016fractionQ1&2'!$C$3:$BC$251,'Pop2016fractionQ1&2'!$BD152,FALSE),0)","v":0},{"$f":"ROUND(Options!$B$21*HLOOKUP(Calculations!$E$2,PARfraction!$C$3:$BC$251,PARfraction!$BD152,FALSE),0)","v":0},150]
[null,"Female 85-89",{"$f":"ROUND(Options!$B$21*HLOOKUP(Calculations!$E$2,Pop2016fraction!$C$3:$BC$251,Pop2016fraction!$BD153,FALSE),0)","v":0},{"$f":"ROUND(Options!$B$21*HLOOKUP(Calculations!$E$2,Pop2016fractionQ1!$C$3:$BC$251,Pop2016fractionQ1!$BD153,FALSE),0)","v":0},{"$f":"ROUND(Options!$B$21*HLOOKUP(Calculations!$E$2,'Pop2016fractionQ1&2'!$C$3:$BC$251,'Pop2016fractionQ1&2'!$BD153,FALSE),0)","v":0},{"$f":"ROUND(Options!$B$21*HLOOKUP(Calculations!$E$2,PARfraction!$C$3:$BC$251,PARfraction!$BD153,FALSE),0)","v":0},151]
[null,"Female 90+",{"$f":"ROUND(Options!$B$21*HLOOKUP(Calculations!$E$2,Pop2016fraction!$C$3:$BC$251,Pop2016fraction!$BD154,FALSE),0)","v":0},{"$f":"ROUND(Options!$B$21*HLOOKUP(Calculations!$E$2,Pop2016fractionQ1!$C$3:$BC$251,Pop2016fractionQ1!$BD154,FALSE),0)","v":0},{"$f":"ROUND(Options!$B$21*HLOOKUP(Calculations!$E$2,'Pop2016fractionQ1&2'!$C$3:$BC$251,'Pop2016fractionQ1&2'!$BD154,FALSE),0)","v":0},{"$f":"ROUND(Options!$B$21*HLOOKUP(Calculations!$E$2,PARfraction!$C$3:$BC$251,PARfraction!$BD154,FALSE),0)","v":0},152]
[null,"Male 0-4",{"$f":"ROUND(Options!$B$21*HLOOKUP(Calculations!$E$2,Pop2016fraction!$C$3:$BC$251,Pop2016fraction!$BD155,FALSE),0)","v":0},{"$f":"ROUND(Options!$B$21*HLOOKUP(Calculations!$E$2,Pop2016fractionQ1!$C$3:$BC$251,Pop2016fractionQ1!$BD155,FALSE),0)","v":0},{"$f":"ROUND(Options!$B$21*HLOOKUP(Calculations!$E$2,'Pop2016fractionQ1&2'!$C$3:$BC$251,'Pop2016fractionQ1&2'!$BD155,FALSE),0)","v":0},{"$f":"ROUND(Options!$B$21*HLOOKUP(Calculations!$E$2,PARfraction!$C$3:$BC$251,PARfraction!$BD155,FALSE),0)","v":0},153]
[null,"Male 5-9",{"$f":"ROUND(Options!$B$21*HLOOKUP(Calculations!$E$2,Pop2016fraction!$C$3:$BC$251,Pop2016fraction!$BD156,FALSE),0)","v":0},{"$f":"ROUND(Options!$B$21*HLOOKUP(Calculations!$E$2,Pop2016fractionQ1!$C$3:$BC$251,Pop2016fractionQ1!$BD156,FALSE),0)","v":0},{"$f":"ROUND(Options!$B$21*HLOOKUP(Calculations!$E$2,'Pop2016fractionQ1&2'!$C$3:$BC$251,'Pop2016fractionQ1&2'!$BD156,FALSE),0)","v":0},{"$f":"ROUND(Options!$B$21*HLOOKUP(Calculations!$E$2,PARfraction!$C$3:$BC$251,PARfraction!$BD156,FALSE),0)","v":0},154]
[null,"Male 10-15",{"$f":"ROUND(Options!$B$21*HLOOKUP(Calculations!$E$2,Pop2016fraction!$C$3:$BC$251,Pop2016fraction!$BD157,FALSE),0)","v":0},{"$f":"ROUND(Options!$B$21*HLOOKUP(Calculations!$E$2,Pop2016fractionQ1!$C$3:$BC$251,Pop2016fractionQ1!$BD157,FALSE),0)","v":0},{"$f":"ROUND(Options!$B$21*HLOOKUP(Calculations!$E$2,'Pop2016fractionQ1&2'!$C$3:$BC$251,'Pop2016fractionQ1&2'!$BD157,FALSE),0)","v":0},{"$f":"ROUND(Options!$B$21*HLOOKUP(Calculations!$E$2,PARfraction!$C$3:$BC$251,PARfraction!$BD157,FALSE),0)","v":0},155]
[null,"Male 16-19",{"$f":"ROUND(Options!$B$21*HLOOKUP(Calculations!$E$2,Pop2016fraction!$C$3:$BC$251,Pop2016fraction!$BD158,FALSE),0)","v":1611},{"$f":"ROUND(Options!$B$21*HLOOKUP(Calculations!$E$2,Pop2016fractionQ1!$C$3:$BC$251,Pop2016fractionQ1!$BD158,FALSE),0)","v":0},{"$f":"ROUND(Options!$B$21*HLOOKUP(Calculations!$E$2,'Pop2016fractionQ1&2'!$C$3:$BC$251,'Pop2016fractionQ1&2'!$BD158,FALSE),0)","v":0},{"$f":"ROUND(Options!$B$21*HLOOKUP(Calculations!$E$2,PARfraction!$C$3:$BC$251,PARfraction!$BD158,FALSE),0)","v":905},156]
[null,"Male 20-24",{"$f":"ROUND(Options!$B$21*HLOOKUP(Calculations!$E$2,Pop2016fraction!$C$3:$BC$251,Pop2016fraction!$BD159,FALSE),0)","v":2393},{"$f":"ROUND(Options!$B$21*HLOOKUP(Calculations!$E$2,Pop2016fractionQ1!$C$3:$BC$251,Pop2016fractionQ1!$BD159,FALSE),0)","v":0},{"$f":"ROUND(Options!$B$21*HLOOKUP(Calculations!$E$2,'Pop2016fractionQ1&2'!$C$3:$BC$251,'Pop2016fractionQ1&2'!$BD159,FALSE),0)","v":0},{"$f":"ROUND(Options!$B$21*HLOOKUP(Calculations!$E$2,PARfraction!$C$3:$BC$251,PARfraction!$BD159,FALSE),0)","v":1345},157]
[null,"Male 25-29",{"$f":"ROUND(Options!$B$21*HLOOKUP(Calculations!$E$2,Pop2016fraction!$C$3:$BC$251,Pop2016fraction!$BD160,FALSE),0)","v":2440},{"$f":"ROUND(Options!$B$21*HLOOKUP(Calculations!$E$2,Pop2016fractionQ1!$C$3:$BC$251,Pop2016fractionQ1!$BD160,FALSE),0)","v":0},{"$f":"ROUND(Options!$B$21*HLOOKUP(Calculations!$E$2,'Pop2016fractionQ1&2'!$C$3:$BC$251,'Pop2016fractionQ1&2'!$BD160,FALSE),0)","v":0},{"$f":"ROUND(Options!$B$21*HLOOKUP(Calculations!$E$2,PARfraction!$C$3:$BC$251,PARfraction!$BD160,FALSE),0)","v":1135},158]
[null,"Male 30-34",{"$f":"ROUND(Options!$B$21*HLOOKUP(Calculations!$E$2,Pop2016fraction!$C$3:$BC$251,Pop2016fraction!$BD161,FALSE),0)","v":2352},{"$f":"ROUND(Options!$B$21*HLOOKUP(Calculations!$E$2,Pop2016fractionQ1!$C$3:$BC$251,Pop2016fractionQ1!$BD161,FALSE),0)","v":0},{"$f":"ROUND(Options!$B$21*HLOOKUP(Calculations!$E$2,'Pop2016fractionQ1&2'!$C$3:$BC$251,'Pop2016fractionQ1&2'!$BD161,FALSE),0)","v":0},{"$f":"ROUND(Options!$B$21*HLOOKUP(Calculations!$E$2,PARfraction!$C$3:$BC$251,PARfraction!$BD161,FALSE),0)","v":1094},159]
[null,"Male 35-39",{"$f":"ROUND(Options!$B$21*HLOOKUP(Calculations!$E$2,Pop2016fraction!$C$3:$BC$251,Pop2016fraction!$BD162,FALSE),0)","v":2173},{"$f":"ROUND(Options!$B$21*HLOOKUP(Calculations!$E$2,Pop2016fractionQ1!$C$3:$BC$251,Pop2016fractionQ1!$BD162,FALSE),0)","v":0},{"$f":"ROUND(Options!$B$21*HLOOKUP(Calculations!$E$2,'Pop2016fractionQ1&2'!$C$3:$BC$251,'Pop2016fractionQ1&2'!$BD162,FALSE),0)","v":0},{"$f":"ROUND(Options!$B$21*HLOOKUP(Calculations!$E$2,PARfraction!$C$3:$BC$251,PARfraction!$BD162,FALSE),0)","v":941},160]
[null,"Male 40-44",{"$f":"ROUND(Options!$B$21*HLOOKUP(Calculations!$E$2,Pop2016fraction!$C$3:$BC$251,Pop2016fraction!$BD163,FALSE),0)","v":2161},{"$f":"ROUND(Options!$B$21*HLOOKUP(Calculations!$E$2,Pop2016fractionQ1!$C$3:$BC$251,Pop2016fractionQ1!$BD163,FALSE),0)","v":0},{"$f":"ROUND(Options!$B$21*HLOOKUP(Calculations!$E$2,'Pop2016fractionQ1&2'!$C$3:$BC$251,'Pop2016fractionQ1&2'!$BD163,FALSE),0)","v":0},{"$f":"ROUND(Options!$B$21*HLOOKUP(Calculations!$E$2,PARfraction!$C$3:$BC$251,PARfraction!$BD163,FALSE),0)","v":936},161]
[null,"Male 45-49",{"$f":"ROUND(Options!$B$21*HLOOKUP(Calculations!$E$2,Pop2016fraction!$C$3:$BC$251,Pop2016fraction!$BD164,FALSE),0)","v":2556},{"$f":"ROUND(Options!$B$21*HLOOKUP(Calculations!$E$2,Pop2016fractionQ1!$C$3:$BC$251,Pop2016fractionQ1!$BD164,FALSE),0)","v":0},{"$f":"ROUND(Options!$B$21*HLOOKUP(Calculations!$E$2,'Pop2016fractionQ1&2'!$C$3:$BC$251,'Pop2016fractionQ1&2'!$BD164,FALSE),0)","v":0},{"$f":"ROUND(Options!$B$21*HLOOKUP(Calculations!$E$2,PARfraction!$C$3:$BC$251,PARfraction!$BD164,FALSE),0)","v":1730},162]
[null,"Male 50-54",{"$f":"ROUND(Options!$B$21*HLOOKUP(Calculations!$E$2,Pop2016fraction!$C$3:$BC$251,Pop2016fraction!$BD165,FALSE),0)","v":2742},{"$f":"ROUND(Options!$B$21*HLOOKUP(Calculations!$E$2,Pop2016fractionQ1!$C$3:$BC$251,Pop2016fractionQ1!$BD165,FALSE),0)","v":0},{"$f":"ROUND(Options!$B$21*HLOOKUP(Calculations!$E$2,'Pop2016fractionQ1&2'!$C$3:$BC$251,'Pop2016fractionQ1&2'!$BD165,FALSE),0)","v":0},{"$f":"ROUND(Options!$B$21*HLOOKUP(Calculations!$E$2,PARfraction!$C$3:$BC$251,PARfraction!$BD165,FALSE),0)","v":1856},163]
[null,"Male 55-59",{"$f":"ROUND(Options!$B$21*HLOOKUP(Calculations!$E$2,Pop2016fraction!$C$3:$BC$251,Pop2016fraction!$BD166,FALSE),0)","v":2549},{"$f":"ROUND(Options!$B$21*HLOOKUP(Calculations!$E$2,Pop2016fractionQ1!$C$3:$BC$251,Pop2016fractionQ1!$BD166,FALSE),0)","v":0},{"$f":"ROUND(Options!$B$21*HLOOKUP(Calculations!$E$2,'Pop2016fractionQ1&2'!$C$3:$BC$251,'Pop2016fractionQ1&2'!$BD166,FALSE),0)","v":0},{"$f":"ROUND(Options!$B$21*HLOOKUP(Calculations!$E$2,PARfraction!$C$3:$BC$251,PARfraction!$BD166,FALSE),0)","v":2995},164]
[null,"Male 60-64",{"$f":"ROUND(Options!$B$21*HLOOKUP(Calculations!$E$2,Pop2016fraction!$C$3:$BC$251,Pop2016fraction!$BD167,FALSE),0)","v":2257},{"$f":"ROUND(Options!$B$21*HLOOKUP(Calculations!$E$2,Pop2016fractionQ1!$C$3:$BC$251,Pop2016fractionQ1!$BD167,FALSE),0)","v":0},{"$f":"ROUND(Options!$B$21*HLOOKUP(Calculations!$E$2,'Pop2016fractionQ1&2'!$C$3:$BC$251,'Pop2016fractionQ1&2'!$BD167,FALSE),0)","v":0},{"$f":"ROUND(Options!$B$21*HLOOKUP(Calculations!$E$2,PARfraction!$C$3:$BC$251,PARfraction!$BD167,FALSE),0)","v":2652},165]
[null,"Male 65-69",{"$f":"ROUND(Options!$B$21*HLOOKUP(Calculations!$E$2,Pop2016fraction!$C$3:$BC$251,Pop2016fraction!$BD168,FALSE),0)","v":0},{"$f":"ROUND(Options!$B$21*HLOOKUP(Calculations!$E$2,Pop2016fractionQ1!$C$3:$BC$251,Pop2016fractionQ1!$BD168,FALSE),0)","v":0},{"$f":"ROUND(Options!$B$21*HLOOKUP(Calculations!$E$2,'Pop2016fractionQ1&2'!$C$3:$BC$251,'Pop2016fractionQ1&2'!$BD168,FALSE),0)","v":0},{"$f":"ROUND(Options!$B$21*HLOOKUP(Calculations!$E$2,PARfraction!$C$3:$BC$251,PARfraction!$BD168,FALSE),0)","v":0},166]
[null,"Male 70-74",{"$f":"ROUND(Options!$B$21*HLOOKUP(Calculations!$E$2,Pop2016fraction!$C$3:$BC$251,Pop2016fraction!$BD169,FALSE),0)","v":0},{"$f":"ROUND(Options!$B$21*HLOOKUP(Calculations!$E$2,Pop2016fractionQ1!$C$3:$BC$251,Pop2016fractionQ1!$BD169,FALSE),0)","v":0},{"$f":"ROUND(Options!$B$21*HLOOKUP(Calculations!$E$2,'Pop2016fractionQ1&2'!$C$3:$BC$251,'Pop2016fractionQ1&2'!$BD169,FALSE),0)","v":0},{"$f":"ROUND(Options!$B$21*HLOOKUP(Calculations!$E$2,PARfraction!$C$3:$BC$251,PARfraction!$BD169,FALSE),0)","v":0},167]
[null,"Male 75-79",{"$f":"ROUND(Options!$B$21*HLOOKUP(Calculations!$E$2,Pop2016fraction!$C$3:$BC$251,Pop2016fraction!$BD170,FALSE),0)","v":0},{"$f":"ROUND(Options!$B$21*HLOOKUP(Calculations!$E$2,Pop2016fractionQ1!$C$3:$BC$251,Pop2016fractionQ1!$BD170,FALSE),0)","v":0},{"$f":"ROUND(Options!$B$21*HLOOKUP(Calculations!$E$2,'Pop2016fractionQ1&2'!$C$3:$BC$251,'Pop2016fractionQ1&2'!$BD170,FALSE),0)","v":0},{"$f":"ROUND(Options!$B$21*HLOOKUP(Calculations!$E$2,PARfraction!$C$3:$BC$251,PARfraction!$BD170,FALSE),0)","v":0},168]
[null,"Male 80-84",{"$f":"ROUND(Options!$B$21*HLOOKUP(Calculations!$E$2,Pop2016fraction!$C$3:$BC$251,Pop2016fraction!$BD171,FALSE),0)","v":0},{"$f":"ROUND(Options!$B$21*HLOOKUP(Calculations!$E$2,Pop2016fractionQ1!$C$3:$BC$251,Pop2016fractionQ1!$BD171,FALSE),0)","v":0},{"$f":"ROUND(Options!$B$21*HLOOKUP(Calculations!$E$2,'Pop2016fractionQ1&2'!$C$3:$BC$251,'Pop2016fractionQ1&2'!$BD171,FALSE),0)","v":0},{"$f":"ROUND(Options!$B$21*HLOOKUP(Calculations!$E$2,PARfraction!$C$3:$BC$251,PARfraction!$BD171,FALSE),0)","v":0},169]
[null,"Male 85-89",{"$f":"ROUND(Options!$B$21*HLOOKUP(Calculations!$E$2,Pop2016fraction!$C$3:$BC$251,Pop2016fraction!$BD172,FALSE),0)","v":0},{"$f":"ROUND(Options!$B$21*HLOOKUP(Calculations!$E$2,Pop2016fractionQ1!$C$3:$BC$251,Pop2016fractionQ1!$BD172,FALSE),0)","v":0},{"$f":"ROUND(Options!$B$21*HLOOKUP(Calculations!$E$2,'Pop2016fractionQ1&2'!$C$3:$BC$251,'Pop2016fractionQ1&2'!$BD172,FALSE),0)","v":0},{"$f":"ROUND(Options!$B$21*HLOOKUP(Calculations!$E$2,PARfraction!$C$3:$BC$251,PARfraction!$BD172,FALSE),0)","v":0},170]
[null,"Male 90+",{"$f":"ROUND(Options!$B$21*HLOOKUP(Calculations!$E$2,Pop2016fraction!$C$3:$BC$251,Pop2016fraction!$BD173,FALSE),0)","v":0},{"$f":"ROUND(Options!$B$21*HLOOKUP(Calculations!$E$2,Pop2016fractionQ1!$C$3:$BC$251,Pop2016fractionQ1!$BD173,FALSE),0)","v":0},{"$f":"ROUND(Options!$B$21*HLOOKUP(Calculations!$E$2,'Pop2016fractionQ1&2'!$C$3:$BC$251,'Pop2016fractionQ1&2'!$BD173,FALSE),0)","v":0},{"$f":"ROUND(Options!$B$21*HLOOKUP(Calculations!$E$2,PARfraction!$C$3:$BC$251,PARfraction!$BD173,FALSE),0)","v":0},171]
["SIMD Q4","Female 0-4",{"$f":"ROUND(Options!$B$21*HLOOKUP(Calculations!$E$2,Pop2016fraction!$C$3:$BC$251,Pop2016fraction!$BD174,FALSE),0)","v":0},{"$f":"ROUND(Options!$B$21*HLOOKUP(Calculations!$E$2,Pop2016fractionQ1!$C$3:$BC$251,Pop2016fractionQ1!$BD174,FALSE),0)","v":0},{"$f":"ROUND(Options!$B$21*HLOOKUP(Calculations!$E$2,'Pop2016fractionQ1&2'!$C$3:$BC$251,'Pop2016fractionQ1&2'!$BD174,FALSE),0)","v":0},{"$f":"ROUND(Options!$B$21*HLOOKUP(Calculations!$E$2,PARfraction!$C$3:$BC$251,PARfraction!$BD174,FALSE),0)","v":0},172]
[null,"Female 5-9",{"$f":"ROUND(Options!$B$21*HLOOKUP(Calculations!$E$2,Pop2016fraction!$C$3:$BC$251,Pop2016fraction!$BD175,FALSE),0)","v":0},{"$f":"ROUND(Options!$B$21*HLOOKUP(Calculations!$E$2,Pop2016fractionQ1!$C$3:$BC$251,Pop2016fractionQ1!$BD175,FALSE),0)","v":0},{"$f":"ROUND(Options!$B$21*HLOOKUP(Calculations!$E$2,'Pop2016fractionQ1&2'!$C$3:$BC$251,'Pop2016fractionQ1&2'!$BD175,FALSE),0)","v":0},{"$f":"ROUND(Options!$B$21*HLOOKUP(Calculations!$E$2,PARfraction!$C$3:$BC$251,PARfraction!$BD175,FALSE),0)","v":0},173]
[null,"Female 10-15",{"$f":"ROUND(Options!$B$21*HLOOKUP(Calculations!$E$2,Pop2016fraction!$C$3:$BC$251,Pop2016fraction!$BD176,FALSE),0)","v":0},{"$f":"ROUND(Options!$B$21*HLOOKUP(Calculations!$E$2,Pop2016fractionQ1!$C$3:$BC$251,Pop2016fractionQ1!$BD176,FALSE),0)","v":0},{"$f":"ROUND(Options!$B$21*HLOOKUP(Calculations!$E$2,'Pop2016fractionQ1&2'!$C$3:$BC$251,'Pop2016fractionQ1&2'!$BD176,FALSE),0)","v":0},{"$f":"ROUND(Options!$B$21*HLOOKUP(Calculations!$E$2,PARfraction!$C$3:$BC$251,PARfraction!$BD176,FALSE),0)","v":0},174]
[null,"Female 16-19",{"$f":"ROUND(Options!$B$21*HLOOKUP(Calculations!$E$2,Pop2016fraction!$C$3:$BC$251,Pop2016fraction!$BD177,FALSE),0)","v":1589},{"$f":"ROUND(Options!$B$21*HLOOKUP(Calculations!$E$2,Pop2016fractionQ1!$C$3:$BC$251,Pop2016fractionQ1!$BD177,FALSE),0)","v":0},{"$f":"ROUND(Options!$B$21*HLOOKUP(Calculations!$E$2,'Pop2016fractionQ1&2'!$C$3:$BC$251,'Pop2016fractionQ1&2'!$BD177,FALSE),0)","v":0},{"$f":"ROUND(Options!$B$21*HLOOKUP(Calculations!$E$2,PARfraction!$C$3:$BC$251,PARfraction!$BD177,FALSE),0)","v":1053},175]
[null,"Female 20-24",{"$f":"ROUND(Options!$B$21*HLOOKUP(Calculations!$E$2,Pop2016fraction!$C$3:$BC$251,Pop2016fraction!$BD178,FALSE),0)","v":2365},{"$f":"ROUND(Options!$B$21*HLOOKUP(Calculations!$E$2,Pop2016fractionQ1!$C$3:$BC$251,Pop2016fractionQ1!$BD178,FALSE),0)","v":0},{"$f":"ROUND(Options!$B$21*HLOOKUP(Calculations!$E$2,'Pop2016fractionQ1&2'!$C$3:$BC$251,'Pop2016fractionQ1&2'!$BD178,FALSE),0)","v":0},{"$f":"ROUND(Options!$B$21*HLOOKUP(Calculations!$E$2,PARfraction!$C$3:$BC$251,PARfraction!$BD178,FALSE),0)","v":1567},176]
[null,"Female 25-29",{"$f":"ROUND(Options!$B$21*HLOOKUP(Calculations!$E$2,Pop2016fraction!$C$3:$BC$251,Pop2016fraction!$BD179,FALSE),0)","v":2270},{"$f":"ROUND(Options!$B$21*HLOOKUP(Calculations!$E$2,Pop2016fractionQ1!$C$3:$BC$251,Pop2016fractionQ1!$BD179,FALSE),0)","v":0},{"$f":"ROUND(Options!$B$21*HLOOKUP(Calculations!$E$2,'Pop2016fractionQ1&2'!$C$3:$BC$251,'Pop2016fractionQ1&2'!$BD179,FALSE),0)","v":0},{"$f":"ROUND(Options!$B$21*HLOOKUP(Calculations!$E$2,PARfraction!$C$3:$BC$251,PARfraction!$BD179,FALSE),0)","v":1543},177]
[null,"Female 30-34",{"$f":"ROUND(Options!$B$21*HLOOKUP(Calculations!$E$2,Pop2016fraction!$C$3:$BC$251,Pop2016fraction!$BD180,FALSE),0)","v":2297},{"$f":"ROUND(Options!$B$21*HLOOKUP(Calculations!$E$2,Pop2016fractionQ1!$C$3:$BC$251,Pop2016fractionQ1!$BD180,FALSE),0)","v":0},{"$f":"ROUND(Options!$B$21*HLOOKUP(Calculations!$E$2,'Pop2016fractionQ1&2'!$C$3:$BC$251,'Pop2016fractionQ1&2'!$BD180,FALSE),0)","v":0},{"$f":"ROUND(Options!$B$21*HLOOKUP(Calculations!$E$2,PARfraction!$C$3:$BC$251,PARfraction!$BD180,FALSE),0)","v":1562},178]
[null,"Female 35-39",{"$f":"ROUND(Options!$B$21*HLOOKUP(Calculations!$E$2,Pop2016fraction!$C$3:$BC$251,Pop2016fraction!$BD181,FALSE),0)","v":2227},{"$f":"ROUND(Options!$B$21*HLOOKUP(Calculations!$E$2,Pop2016fractionQ1!$C$3:$BC$251,Pop2016fractionQ1!$BD181,FALSE),0)","v":0},{"$f":"ROUND(Options!$B$21*HLOOKUP(Calculations!$E$2,'Pop2016fractionQ1&2'!$C$3:$BC$251,'Pop2016fractionQ1&2'!$BD181,FALSE),0)","v":0},{"$f":"ROUND(Options!$B$21*HLOOKUP(Calculations!$E$2,PARfraction!$C$3:$BC$251,PARfraction!$BD181,FALSE),0)","v":1547},179]
[null,"Female 40-44",{"$f":"ROUND(Options!$B$21*HLOOKUP(Calculations!$E$2,Pop2016fraction!$C$3:$BC$251,Pop2016fraction!$BD182,FALSE),0)","v":2431},{"$f":"ROUND(Options!$B$21*HLOOKUP(Calculations!$E$2,Pop2016fractionQ1!$C$3:$BC$251,Pop2016fractionQ1!$BD182,FALSE),0)","v":0},{"$f":"ROUND(Options!$B$21*HLOOKUP(Calculations!$E$2,'Pop2016fractionQ1&2'!$C$3:$BC$251,'Pop2016fractionQ1&2'!$BD182,FALSE),0)","v":0},{"$f":"ROUND(Options!$B$21*HLOOKUP(Calculations!$E$2,PARfraction!$C$3:$BC$251,PARfraction!$BD182,FALSE),0)","v":1689},180]
[null,"Female 45-49",{"$f":"ROUND(Options!$B$21*HLOOKUP(Calculations!$E$2,Pop2016fraction!$C$3:$BC$251,Pop2016fraction!$BD183,FALSE),0)","v":2864},{"$f":"ROUND(Options!$B$21*HLOOKUP(Calculations!$E$2,Pop2016fractionQ1!$C$3:$BC$251,Pop2016fractionQ1!$BD183,FALSE),0)","v":0},{"$f":"ROUND(Options!$B$21*HLOOKUP(Calculations!$E$2,'Pop2016fractionQ1&2'!$C$3:$BC$251,'Pop2016fractionQ1&2'!$BD183,FALSE),0)","v":0},{"$f":"ROUND(Options!$B$21*HLOOKUP(Calculations!$E$2,PARfraction!$C$3:$BC$251,PARfraction!$BD183,FALSE),0)","v":2193},181]
[null,"Female 50-54",{"$f":"ROUND(Options!$B$21*HLOOKUP(Calculations!$E$2,Pop2016fraction!$C$3:$BC$251,Pop2016fraction!$BD184,FALSE),0)","v":2992},{"$f":"ROUND(Options!$B$21*HLOOKUP(Calculations!$E$2,Pop2016fractionQ1!$C$3:$BC$251,Pop2016fractionQ1!$BD184,FALSE),0)","v":0},{"$f":"ROUND(Options!$B$21*HLOOKUP(Calculations!$E$2,'Pop2016fractionQ1&2'!$C$3:$BC$251,'Pop2016fractionQ1&2'!$BD184,FALSE),0)","v":0},{"$f":"ROUND(Options!$B$21*HLOOKUP(Calculations!$E$2,PARfraction!$C$3:$BC$251,PARfraction!$BD184,FALSE),0)","v":2291},182]
[null,"Female 55-59",{"$f":"ROUND(Options!$B$21*HLOOKUP(Calculations!$E$2,Pop2016fraction!$C$3:$BC$251,Pop2016fraction!$BD185,FALSE),0)","v":2703},{"$f":"ROUND(Options!$B$21*HLOOKUP(Calculations!$E$2,Pop2016fractionQ1!$C$3:$BC$251,Pop2016fractionQ1!$BD185,FALSE),0)","v":0},{"$f":"ROUND(Options!$B$21*HLOOKUP(Calculations!$E$2,'Pop2016fractionQ1&2'!$C$3:$BC$251,'Pop2016fractionQ1&2'!$BD185,FALSE),0)","v":0},{"$f":"ROUND(Options!$B$21*HLOOKUP(Calculations!$E$2,PARfraction!$C$3:$BC$251,PARfraction!$BD185,FALSE),0)","v":5173},183]
[null,"Female 60-64",{"$f":"ROUND(Options!$B$21*HLOOKUP(Calculations!$E$2,Pop2016fraction!$C$3:$BC$251,Pop2016fraction!$BD186,FALSE),0)","v":2380},{"$f":"ROUND(Options!$B$21*HLOOKUP(Calculations!$E$2,Pop2016fractionQ1!$C$3:$BC$251,Pop2016fractionQ1!$BD186,FALSE),0)","v":0},{"$f":"ROUND(Options!$B$21*HLOOKUP(Calculations!$E$2,'Pop2016fractionQ1&2'!$C$3:$BC$251,'Pop2016fractionQ1&2'!$BD186,FALSE),0)","v":0},{"$f":"ROUND(Options!$B$21*HLOOKUP(Calculations!$E$2,PARfraction!$C$3:$BC$251,PARfraction!$BD186,FALSE),0)","v":4555},184]
[null,"Female 65-69",{"$f":"ROUND(Options!$B$21*HLOOKUP(Calculations!$E$2,Pop2016fraction!$C$3:$BC$251,Pop2016fraction!$BD187,FALSE),0)","v":0},{"$f":"ROUND(Options!$B$21*HLOOKUP(Calculations!$E$2,Pop2016fractionQ1!$C$3:$BC$251,Pop2016fractionQ1!$BD187,FALSE),0)","v":0},{"$f":"ROUND(Options!$B$21*HLOOKUP(Calculations!$E$2,'Pop2016fractionQ1&2'!$C$3:$BC$251,'Pop2016fractionQ1&2'!$BD187,FALSE),0)","v":0},{"$f":"ROUND(Options!$B$21*HLOOKUP(Calculations!$E$2,PARfraction!$C$3:$BC$251,PARfraction!$BD187,FALSE),0)","v":0},185]
[null,"Female 70-74",{"$f":"ROUND(Options!$B$21*HLOOKUP(Calculations!$E$2,Pop2016fraction!$C$3:$BC$251,Pop2016fraction!$BD188,FALSE),0)","v":0},{"$f":"ROUND(Options!$B$21*HLOOKUP(Calculations!$E$2,Pop2016fractionQ1!$C$3:$BC$251,Pop2016fractionQ1!$BD188,FALSE),0)","v":0},{"$f":"ROUND(Options!$B$21*HLOOKUP(Calculations!$E$2,'Pop2016fractionQ1&2'!$C$3:$BC$251,'Pop2016fractionQ1&2'!$BD188,FALSE),0)","v":0},{"$f":"ROUND(Options!$B$21*HLOOKUP(Calculations!$E$2,PARfraction!$C$3:$BC$251,PARfraction!$BD188,FALSE),0)","v":0},186]
[null,"Female 75-79",{"$f":"ROUND(Options!$B$21*HLOOKUP(Calculations!$E$2,Pop2016fraction!$C$3:$BC$251,Pop2016fraction!$BD189,FALSE),0)","v":0},{"$f":"ROUND(Options!$B$21*HLOOKUP(Calculations!$E$2,Pop2016fractionQ1!$C$3:$BC$251,Pop2016fractionQ1!$BD189,FALSE),0)","v":0},{"$f":"ROUND(Options!$B$21*HLOOKUP(Calculations!$E$2,'Pop2016fractionQ1&2'!$C$3:$BC$251,'Pop2016fractionQ1&2'!$BD189,FALSE),0)","v":0},{"$f":"ROUND(Options!$B$21*HLOOKUP(Calculations!$E$2,PARfraction!$C$3:$BC$251,PARfraction!$BD189,FALSE),0)","v":0},187]
[null,"Female 80-84",{"$f":"ROUND(Options!$B$21*HLOOKUP(Calculations!$E$2,Pop2016fraction!$C$3:$BC$251,Pop2016fraction!$BD190,FALSE),0)","v":0},{"$f":"ROUND(Options!$B$21*HLOOKUP(Calculations!$E$2,Pop2016fractionQ1!$C$3:$BC$251,Pop2016fractionQ1!$BD190,FALSE),0)","v":0},{"$f":"ROUND(Options!$B$21*HLOOKUP(Calculations!$E$2,'Pop2016fractionQ1&2'!$C$3:$BC$251,'Pop2016fractionQ1&2'!$BD190,FALSE),0)","v":0},{"$f":"ROUND(Options!$B$21*HLOOKUP(Calculations!$E$2,PARfraction!$C$3:$BC$251,PARfraction!$BD190,FALSE),0)","v":0},188]
[null,"Female 85-89",{"$f":"ROUND(Options!$B$21*HLOOKUP(Calculations!$E$2,Pop2016fraction!$C$3:$BC$251,Pop2016fraction!$BD191,FALSE),0)","v":0},{"$f":"ROUND(Options!$B$21*HLOOKUP(Calculations!$E$2,Pop2016fractionQ1!$C$3:$BC$251,Pop2016fractionQ1!$BD191,FALSE),0)","v":0},{"$f":"ROUND(Options!$B$21*HLOOKUP(Calculations!$E$2,'Pop2016fractionQ1&2'!$C$3:$BC$251,'Pop2016fractionQ1&2'!$BD191,FALSE),0)","v":0},{"$f":"ROUND(Options!$B$21*HLOOKUP(Calculations!$E$2,PARfraction!$C$3:$BC$251,PARfraction!$BD191,FALSE),0)","v":0},189]
[null,"Female 90+",{"$f":"ROUND(Options!$B$21*HLOOKUP(Calculations!$E$2,Pop2016fraction!$C$3:$BC$251,Pop2016fraction!$BD192,FALSE),0)","v":0},{"$f":"ROUND(Options!$B$21*HLOOKUP(Calculations!$E$2,Pop2016fractionQ1!$C$3:$BC$251,Pop2016fractionQ1!$BD192,FALSE),0)","v":0},{"$f":"ROUND(Options!$B$21*HLOOKUP(Calculations!$E$2,'Pop2016fractionQ1&2'!$C$3:$BC$251,'Pop2016fractionQ1&2'!$BD192,FALSE),0)","v":0},{"$f":"ROUND(Options!$B$21*HLOOKUP(Calculations!$E$2,PARfraction!$C$3:$BC$251,PARfraction!$BD192,FALSE),0)","v":0},190]
[null,"Male 0-4",{"$f":"ROUND(Options!$B$21*HLOOKUP(Calculations!$E$2,Pop2016fraction!$C$3:$BC$251,Pop2016fraction!$BD193,FALSE),0)","v":0},{"$f":"ROUND(Options!$B$21*HLOOKUP(Calculations!$E$2,Pop2016fractionQ1!$C$3:$BC$251,Pop2016fractionQ1!$BD193,FALSE),0)","v":0},{"$f":"ROUND(Options!$B$21*HLOOKUP(Calculations!$E$2,'Pop2016fractionQ1&2'!$C$3:$BC$251,'Pop2016fractionQ1&2'!$BD193,FALSE),0)","v":0},{"$f":"ROUND(Options!$B$21*HLOOKUP(Calculations!$E$2,PARfraction!$C$3:$BC$251,PARfraction!$BD193,FALSE),0)","v":0},191]
[null,"Male 5-9",{"$f":"ROUND(Options!$B$21*HLOOKUP(Calculations!$E$2,Pop2016fraction!$C$3:$BC$251,Pop2016fraction!$BD194,FALSE),0)","v":0},{"$f":"ROUND(Options!$B$21*HLOOKUP(Calculations!$E$2,Pop2016fractionQ1!$C$3:$BC$251,Pop2016fractionQ1!$BD194,FALSE),0)","v":0},{"$f":"ROUND(Options!$B$21*HLOOKUP(Calculations!$E$2,'Pop2016fractionQ1&2'!$C$3:$BC$251,'Pop2016fractionQ1&2'!$BD194,FALSE),0)","v":0},{"$f":"ROUND(Options!$B$21*HLOOKUP(Calculations!$E$2,PARfraction!$C$3:$BC$251,PARfraction!$BD194,FALSE),0)","v":0},192]
[null,"Male 10-15",{"$f":"ROUND(Options!$B$21*HLOOKUP(Calculations!$E$2,Pop2016fraction!$C$3:$BC$251,Pop2016fraction!$BD195,FALSE),0)","v":0},{"$f":"ROUND(Options!$B$21*HLOOKUP(Calculations!$E$2,Pop2016fractionQ1!$C$3:$BC$251,Pop2016fractionQ1!$BD195,FALSE),0)","v":0},{"$f":"ROUND(Options!$B$21*HLOOKUP(Calculations!$E$2,'Pop2016fractionQ1&2'!$C$3:$BC$251,'Pop2016fractionQ1&2'!$BD195,FALSE),0)","v":0},{"$f":"ROUND(Options!$B$21*HLOOKUP(Calculations!$E$2,PARfraction!$C$3:$BC$251,PARfraction!$BD195,FALSE),0)","v":0},193]
[null,"Male 16-19",{"$f":"ROUND(Options!$B$21*HLOOKUP(Calculations!$E$2,Pop2016fraction!$C$3:$BC$251,Pop2016fraction!$BD196,FALSE),0)","v":1679},{"$f":"ROUND(Options!$B$21*HLOOKUP(Calculations!$E$2,Pop2016fractionQ1!$C$3:$BC$251,Pop2016fractionQ1!$BD196,FALSE),0)","v":0},{"$f":"ROUND(Options!$B$21*HLOOKUP(Calculations!$E$2,'Pop2016fractionQ1&2'!$C$3:$BC$251,'Pop2016fractionQ1&2'!$BD196,FALSE),0)","v":0},{"$f":"ROUND(Options!$B$21*HLOOKUP(Calculations!$E$2,PARfraction!$C$3:$BC$251,PARfraction!$BD196,FALSE),0)","v":869},194]
[null,"Male 20-24",{"$f":"ROUND(Options!$B$21*HLOOKUP(Calculations!$E$2,Pop2016fraction!$C$3:$BC$251,Pop2016fraction!$BD197,FALSE),0)","v":2391},{"$f":"ROUND(Options!$B$21*HLOOKUP(Calculations!$E$2,Pop2016fractionQ1!$C$3:$BC$251,Pop2016fractionQ1!$BD197,FALSE),0)","v":0},{"$f":"ROUND(Options!$B$21*HLOOKUP(Calculations!$E$2,'Pop2016fractionQ1&2'!$C$3:$BC$251,'Pop2016fractionQ1&2'!$BD197,FALSE),0)","v":0},{"$f":"ROUND(Options!$B$21*HLOOKUP(Calculations!$E$2,PARfraction!$C$3:$BC$251,PARfraction!$BD197,FALSE),0)","v":1237},195]
[null,"Male 25-29",{"$f":"ROUND(Options!$B$21*HLOOKUP(Calculations!$E$2,Pop2016fraction!$C$3:$BC$251,Pop2016fraction!$BD198,FALSE),0)","v":2289},{"$f":"ROUND(Options!$B$21*HLOOKUP(Calculations!$E$2,Pop2016fractionQ1!$C$3:$BC$251,Pop2016fractionQ1!$BD198,FALSE),0)","v":0},{"$f":"ROUND(Options!$B$21*HLOOKUP(Calculations!$E$2,'Pop2016fractionQ1&2'!$C$3:$BC$251,'Pop2016fractionQ1&2'!$BD198,FALSE),0)","v":0},{"$f":"ROUND(Options!$B$21*HLOOKUP(Calculations!$E$2,PARfraction!$C$3:$BC$251,PARfraction!$BD198,FALSE),0)","v":636},196]
[null,"Male 30-34",{"$f":"ROUND(Options!$B$21*HLOOKUP(Calculations!$E$2,Pop2016fraction!$C$3:$BC$251,Pop2016fraction!$BD199,FALSE),0)","v":2196},{"$f":"ROUND(Options!$B$21*HLOOKUP(Calculations!$E$2,Pop2016fractionQ1!$C$3:$BC$251,Pop2016fractionQ1!$BD199,FALSE),0)","v":0},{"$f":"ROUND(Options!$B$21*HLOOKUP(Calculations!$E$2,'Pop2016fractionQ1&2'!$C$3:$BC$251,'Pop2016fractionQ1&2'!$BD199,FALSE),0)","v":0},{"$f":"ROUND(Options!$B$21*HLOOKUP(Calculations!$E$2,PARfraction!$C$3:$BC$251,PARfraction!$BD199,FALSE),0)","v":610},197]
[null,"Male 35-39",{"$f":"ROUND(Options!$B$21*HLOOKUP(Calculations!$E$2,Pop2016fraction!$C$3:$BC$251,Pop2016fraction!$BD200,FALSE),0)","v":2174},{"$f":"ROUND(Options!$B$21*HLOOKUP(Calculations!$E$2,Pop2016fractionQ1!$C$3:$BC$251,Pop2016fractionQ1!$BD200,FALSE),0)","v":0},{"$f":"ROUND(Options!$B$21*HLOOKUP(Calculations!$E$2,'Pop2016fractionQ1&2'!$C$3:$BC$251,'Pop2016fractionQ1&2'!$BD200,FALSE),0)","v":0},{"$f":"ROUND(Options!$B$21*HLOOKUP(Calculations!$E$2,PARfraction!$C$3:$BC$251,PARfraction!$BD200,FALSE),0)","v":604},198]
[null,"Male 40-44",{"$f":"ROUND(Options!$B$21*HLOOKUP(Calculations!$E$2,Pop2016fraction!$C$3:$BC$251,Pop2016fraction!$BD201,FALSE),0)","v":2332},{"$f":"ROUND(Options!$B$21*HLOOKUP(Calculations!$E$2,Pop2016fractionQ1!$C$3:$BC$251,Pop2016fractionQ1!$BD201,FALSE),0)","v":0},{"$f":"ROUND(Options!$B$21*HLOOKUP(Calculations!$E$2,'Pop2016fractionQ1&2'!$C$3:$BC$251,'Pop2016fractionQ1&2'!$BD201,FALSE),0)","v":0},{"$f":"ROUND(Options!$B$21*HLOOKUP(Calculations!$E$2,PARfraction!$C$3:$BC$251,PARfraction!$BD201,FALSE),0)","v":648},199]
[null,"Male 45-49",{"$f":"ROUND(Options!$B$21*HLOOKUP(Calculations!$E$2,Pop2016fraction!$C$3:$BC$251,Pop2016fraction!$BD202,FALSE),0)","v":2705},{"$f":"ROUND(Options!$B$21*HLOOKUP(Calculations!$E$2,Pop2016fractionQ1!$C$3:$BC$251,Pop2016fractionQ1!$BD202,FALSE),0)","v":0},{"$f":"ROUND(Options!$B$21*HLOOKUP(Calculations!$E$2,'Pop2016fractionQ1&2'!$C$3:$BC$251,'Pop2016fractionQ1&2'!$BD202,FALSE),0)","v":0},{"$f":"ROUND(Options!$B$21*HLOOKUP(Calculations!$E$2,PARfraction!$C$3:$BC$251,PARfraction!$BD202,FALSE),0)","v":1017},200]
[null,"Male 50-54",{"$f":"ROUND(Options!$B$21*HLOOKUP(Calculations!$E$2,Pop2016fraction!$C$3:$BC$251,Pop2016fraction!$BD203,FALSE),0)","v":2869},{"$f":"ROUND(Options!$B$21*HLOOKUP(Calculations!$E$2,Pop2016fractionQ1!$C$3:$BC$251,Pop2016fractionQ1!$BD203,FALSE),0)","v":0},{"$f":"ROUND(Options!$B$21*HLOOKUP(Calculations!$E$2,'Pop2016fractionQ1&2'!$C$3:$BC$251,'Pop2016fractionQ1&2'!$BD203,FALSE),0)","v":0},{"$f":"ROUND(Options!$B$21*HLOOKUP(Calculations!$E$2,PARfraction!$C$3:$BC$251,PARfraction!$BD203,FALSE),0)","v":1078},201]
[null,"Male 55-59",{"$f":"ROUND(Options!$B$21*HLOOKUP(Calculations!$E$2,Pop2016fraction!$C$3:$BC$251,Pop2016fraction!$BD204,FALSE),0)","v":2612},{"$f":"ROUND(Options!$B$21*HLOOKUP(Calculations!$E$2,Pop2016fractionQ1!$C$3:$BC$251,Pop2016fractionQ1!$BD204,FALSE),0)","v":0},{"$f":"ROUND(Options!$B$21*HLOOKUP(Calculations!$E$2,'Pop2016fractionQ1&2'!$C$3:$BC$251,'Pop2016fractionQ1&2'!$BD204,FALSE),0)","v":0},{"$f":"ROUND(Options!$B$21*HLOOKUP(Calculations!$E$2,PARfraction!$C$3:$BC$251,PARfraction!$BD204,FALSE),0)","v":2628},202]
[null,"Male 60-64",{"$f":"ROUND(Options!$B$21*HLOOKUP(Calculations!$E$2,Pop2016fraction!$C$3:$BC$251,Pop2016fraction!$BD205,FALSE),0)","v":2296},{"$f":"ROUND(Options!$B$21*HLOOKUP(Calculations!$E$2,Pop2016fractionQ1!$C$3:$BC$251,Pop2016fractionQ1!$BD205,FALSE),0)","v":0},{"$f":"ROUND(Options!$B$21*HLOOKUP(Calculations!$E$2,'Pop2016fractionQ1&2'!$C$3:$BC$251,'Pop2016fractionQ1&2'!$BD205,FALSE),0)","v":0},{"$f":"ROUND(Options!$B$21*HLOOKUP(Calculations!$E$2,PARfraction!$C$3:$BC$251,PARfraction!$BD205,FALSE),0)","v":2309},203]
[null,"Male 65-69",{"$f":"ROUND(Options!$B$21*HLOOKUP(Calculations!$E$2,Pop2016fraction!$C$3:$BC$251,Pop2016fraction!$BD206,FALSE),0)","v":0},{"$f":"ROUND(Options!$B$21*HLOOKUP(Calculations!$E$2,Pop2016fractionQ1!$C$3:$BC$251,Pop2016fractionQ1!$BD206,FALSE),0)","v":0},{"$f":"ROUND(Options!$B$21*HLOOKUP(Calculations!$E$2,'Pop2016fractionQ1&2'!$C$3:$BC$251,'Pop2016fractionQ1&2'!$BD206,FALSE),0)","v":0},{"$f":"ROUND(Options!$B$21*HLOOKUP(Calculations!$E$2,PARfraction!$C$3:$BC$251,PARfraction!$BD206,FALSE),0)","v":0},204]
[null,"Male 70-74",{"$f":"ROUND(Options!$B$21*HLOOKUP(Calculations!$E$2,Pop2016fraction!$C$3:$BC$251,Pop2016fraction!$BD207,FALSE),0)","v":0},{"$f":"ROUND(Options!$B$21*HLOOKUP(Calculations!$E$2,Pop2016fractionQ1!$C$3:$BC$251,Pop2016fractionQ1!$BD207,FALSE),0)","v":0},{"$f":"ROUND(Options!$B$21*HLOOKUP(Calculations!$E$2,'Pop2016fractionQ1&2'!$C$3:$BC$251,'Pop2016fractionQ1&2'!$BD207,FALSE),0)","v":0},{"$f":"ROUND(Options!$B$21*HLOOKUP(Calculations!$E$2,PARfraction!$C$3:$BC$251,PARfraction!$BD207,FALSE),0)","v":0},205]
[null,"Male 75-79",{"$f":"ROUND(Options!$B$21*HLOOKUP(Calculations!$E$2,Pop2016fraction!$C$3:$BC$251,Pop2016fraction!$BD208,FALSE),0)","v":0},{"$f":"ROUND(Options!$B$21*HLOOKUP(Calculations!$E$2,Pop2016fractionQ1!$C$3:$BC$251,Pop2016fractionQ1!$BD208,FALSE),0)","v":0},{"$f":"ROUND(Options!$B$21*HLOOKUP(Calculations!$E$2,'Pop2016fractionQ1&2'!$C$3:$BC$251,'Pop2016fractionQ1&2'!$BD208,FALSE),0)","v":0},{"$f":"ROUND(Options!$B$21*HLOOKUP(Calculations!$E$2,PARfraction!$C$3:$BC$251,PARfraction!$BD208,FALSE),0)","v":0},206]
[null,"Male 80-84",{"$f":"ROUND(Options!$B$21*HLOOKUP(Calculations!$E$2,Pop2016fraction!$C$3:$BC$251,Pop2016fraction!$BD209,FALSE),0)","v":0},{"$f":"ROUND(Options!$B$21*HLOOKUP(Calculations!$E$2,Pop2016fractionQ1!$C$3:$BC$251,Pop2016fractionQ1!$BD209,FALSE),0)","v":0},{"$f":"ROUND(Options!$B$21*HLOOKUP(Calculations!$E$2,'Pop2016fractionQ1&2'!$C$3:$BC$251,'Pop2016fractionQ1&2'!$BD209,FALSE),0)","v":0},{"$f":"ROUND(Options!$B$21*HLOOKUP(Calculations!$E$2,PARfraction!$C$3:$BC$251,PARfraction!$BD209,FALSE),0)","v":0},207]
[null,"Male 85-89",{"$f":"ROUND(Options!$B$21*HLOOKUP(Calculations!$E$2,Pop2016fraction!$C$3:$BC$251,Pop2016fraction!$BD210,FALSE),0)","v":0},{"$f":"ROUND(Options!$B$21*HLOOKUP(Calculations!$E$2,Pop2016fractionQ1!$C$3:$BC$251,Pop2016fractionQ1!$BD210,FALSE),0)","v":0},{"$f":"ROUND(Options!$B$21*HLOOKUP(Calculations!$E$2,'Pop2016fractionQ1&2'!$C$3:$BC$251,'Pop2016fractionQ1&2'!$BD210,FALSE),0)","v":0},{"$f":"ROUND(Options!$B$21*HLOOKUP(Calculations!$E$2,PARfraction!$C$3:$BC$251,PARfraction!$BD210,FALSE),0)","v":0},208]
[null,"Male 90+",{"$f":"ROUND(Options!$B$21*HLOOKUP(Calculations!$E$2,Pop2016fraction!$C$3:$BC$251,Pop2016fraction!$BD211,FALSE),0)","v":0},{"$f":"ROUND(Options!$B$21*HLOOKUP(Calculations!$E$2,Pop2016fractionQ1!$C$3:$BC$251,Pop2016fractionQ1!$BD211,FALSE),0)","v":0},{"$f":"ROUND(Options!$B$21*HLOOKUP(Calculations!$E$2,'Pop2016fractionQ1&2'!$C$3:$BC$251,'Pop2016fractionQ1&2'!$BD211,FALSE),0)","v":0},{"$f":"ROUND(Options!$B$21*HLOOKUP(Calculations!$E$2,PARfraction!$C$3:$BC$251,PARfraction!$BD211,FALSE),0)","v":0},209]
["SIMD Q5 (least deprived)","Female 0-4",{"$f":"ROUND(Options!$B$21*HLOOKUP(Calculations!$E$2,Pop2016fraction!$C$3:$BC$251,Pop2016fraction!$BD212,FALSE),0)","v":0},{"$f":"ROUND(Options!$B$21*HLOOKUP(Calculations!$E$2,Pop2016fractionQ1!$C$3:$BC$251,Pop2016fractionQ1!$BD212,FALSE),0)","v":0},{"$f":"ROUND(Options!$B$21*HLOOKUP(Calculations!$E$2,'Pop2016fractionQ1&2'!$C$3:$BC$251,'Pop2016fractionQ1&2'!$BD212,FALSE),0)","v":0},{"$f":"ROUND(Options!$B$21*HLOOKUP(Calculations!$E$2,PARfraction!$C$3:$BC$251,PARfraction!$BD212,FALSE),0)","v":0},210]
[null,"Female 5-9",{"$f":"ROUND(Options!$B$21*HLOOKUP(Calculations!$E$2,Pop2016fraction!$C$3:$BC$251,Pop2016fraction!$BD213,FALSE),0)","v":0},{"$f":"ROUND(Options!$B$21*HLOOKUP(Calculations!$E$2,Pop2016fractionQ1!$C$3:$BC$251,Pop2016fractionQ1!$BD213,FALSE),0)","v":0},{"$f":"ROUND(Options!$B$21*HLOOKUP(Calculations!$E$2,'Pop2016fractionQ1&2'!$C$3:$BC$251,'Pop2016fractionQ1&2'!$BD213,FALSE),0)","v":0},{"$f":"ROUND(Options!$B$21*HLOOKUP(Calculations!$E$2,PARfraction!$C$3:$BC$251,PARfraction!$BD213,FALSE),0)","v":0},211]
[null,"Female 10-15",{"$f":"ROUND(Options!$B$21*HLOOKUP(Calculations!$E$2,Pop2016fraction!$C$3:$BC$251,Pop2016fraction!$BD214,FALSE),0)","v":0},{"$f":"ROUND(Options!$B$21*HLOOKUP(Calculations!$E$2,Pop2016fractionQ1!$C$3:$BC$251,Pop2016fractionQ1!$BD214,FALSE),0)","v":0},{"$f":"ROUND(Options!$B$21*HLOOKUP(Calculations!$E$2,'Pop2016fractionQ1&2'!$C$3:$BC$251,'Pop2016fractionQ1&2'!$BD214,FALSE),0)","v":0},{"$f":"ROUND(Options!$B$21*HLOOKUP(Calculations!$E$2,PARfraction!$C$3:$BC$251,PARfraction!$BD214,FALSE),0)","v":0},212]
[null,"Female 16-19",{"$f":"ROUND(Options!$B$21*HLOOKUP(Calculations!$E$2,Pop2016fraction!$C$3:$BC$251,Pop2016fraction!$BD215,FALSE),0)","v":1715},{"$f":"ROUND(Options!$B$21*HLOOKUP(Calculations!$E$2,Pop2016fractionQ1!$C$3:$BC$251,Pop2016fractionQ1!$BD215,FALSE),0)","v":0},{"$f":"ROUND(Options!$B$21*HLOOKUP(Calculations!$E$2,'Pop2016fractionQ1&2'!$C$3:$BC$251,'Pop2016fractionQ1&2'!$BD215,FALSE),0)","v":0},{"$f":"ROUND(Options!$B$21*HLOOKUP(Calculations!$E$2,PARfraction!$C$3:$BC$251,PARfraction!$BD215,FALSE),0)","v":1177},213]
[null,"Female 20-24",{"$f":"ROUND(Options!$B$21*HLOOKUP(Calculations!$E$2,Pop2016fraction!$C$3:$BC$251,Pop2016fraction!$BD216,FALSE),0)","v":2581},{"$f":"ROUND(Options!$B$21*HLOOKUP(Calculations!$E$2,Pop2016fractionQ1!$C$3:$BC$251,Pop2016fractionQ1!$BD216,FALSE),0)","v":0},{"$f":"ROUND(Options!$B$21*HLOOKUP(Calculations!$E$2,'Pop2016fractionQ1&2'!$C$3:$BC$251,'Pop2016fractionQ1&2'!$BD216,FALSE),0)","v":0},{"$f":"ROUND(Options!$B$21*HLOOKUP(Calculations!$E$2,PARfraction!$C$3:$BC$251,PARfraction!$BD216,FALSE),0)","v":1770},214]
[null,"Female 25-29",{"$f":"ROUND(Options!$B$21*HLOOKUP(Calculations!$E$2,Pop2016fraction!$C$3:$BC$251,Pop2016fraction!$BD217,FALSE),0)","v":2198},{"$f":"ROUND(Options!$B$21*HLOOKUP(Calculations!$E$2,Pop2016fractionQ1!$C$3:$BC$251,Pop2016fractionQ1!$BD217,FALSE),0)","v":0},{"$f":"ROUND(Options!$B$21*HLOOKUP(Calculations!$E$2,'Pop2016fractionQ1&2'!$C$3:$BC$251,'Pop2016fractionQ1&2'!$BD217,FALSE),0)","v":0},{"$f":"ROUND(Options!$B$21*HLOOKUP(Calculations!$E$2,PARfraction!$C$3:$BC$251,PARfraction!$BD217,FALSE),0)","v":1875},215]
[null,"Female 30-34",{"$f":"ROUND(Options!$B$21*HLOOKUP(Calculations!$E$2,Pop2016fraction!$C$3:$BC$251,Pop2016fraction!$BD218,FALSE),0)","v":2147},{"$f":"ROUND(Options!$B$21*HLOOKUP(Calculations!$E$2,Pop2016fractionQ1!$C$3:$BC$251,Pop2016fractionQ1!$BD218,FALSE),0)","v":0},{"$f":"ROUND(Options!$B$21*HLOOKUP(Calculations!$E$2,'Pop2016fractionQ1&2'!$C$3:$BC$251,'Pop2016fractionQ1&2'!$BD218,FALSE),0)","v":0},{"$f":"ROUND(Options!$B$21*HLOOKUP(Calculations!$E$2,PARfraction!$C$3:$BC$251,PARfraction!$BD218,FALSE),0)","v":1833},216]
[null,"Female 35-39",{"$f":"ROUND(Options!$B$21*HLOOKUP(Calculations!$E$2,Pop2016fraction!$C$3:$BC$251,Pop2016fraction!$BD219,FALSE),0)","v":2286},{"$f":"ROUND(Options!$B$21*HLOOKUP(Calculations!$E$2,Pop2016fractionQ1!$C$3:$BC$251,Pop2016fractionQ1!$BD219,FALSE),0)","v":0},{"$f":"ROUND(Options!$B$21*HLOOKUP(Calculations!$E$2,'Pop2016fractionQ1&2'!$C$3:$BC$251,'Pop2016fractionQ1&2'!$BD219,FALSE),0)","v":0},{"$f":"ROUND(Options!$B$21*HLOOKUP(Calculations!$E$2,PARfraction!$C$3:$BC$251,PARfraction!$BD219,FALSE),0)","v":1434},217]
[null,"Female 40-44",{"$f":"ROUND(Options!$B$21*HLOOKUP(Calculations!$E$2,Pop2016fraction!$C$3:$BC$251,Pop2016fraction!$BD220,FALSE),0)","v":2478},{"$f":"ROUND(Options!$B$21*HLOOKUP(Calculations!$E$2,Pop2016fractionQ1!$C$3:$BC$251,Pop2016fractionQ1!$BD220,FALSE),0)","v":0},{"$f":"ROUND(Options!$B$21*HLOOKUP(Calculations!$E$2,'Pop2016fractionQ1&2'!$C$3:$BC$251,'Pop2016fractionQ1&2'!$BD220,FALSE),0)","v":0},{"$f":"ROUND(Options!$B$21*HLOOKUP(Calculations!$E$2,PARfraction!$C$3:$BC$251,PARfraction!$BD220,FALSE),0)","v":1554},218]
[null,"Female 45-49",{"$f":"ROUND(Options!$B$21*HLOOKUP(Calculations!$E$2,Pop2016fraction!$C$3:$BC$251,Pop2016fraction!$BD221,FALSE),0)","v":2837},{"$f":"ROUND(Options!$B$21*HLOOKUP(Calculations!$E$2,Pop2016fractionQ1!$C$3:$BC$251,Pop2016fractionQ1!$BD221,FALSE),0)","v":0},{"$f":"ROUND(Options!$B$21*HLOOKUP(Calculations!$E$2,'Pop2016fractionQ1&2'!$C$3:$BC$251,'Pop2016fractionQ1&2'!$BD221,FALSE),0)","v":0},{"$f":"ROUND(Options!$B$21*HLOOKUP(Calculations!$E$2,PARfraction!$C$3:$BC$251,PARfraction!$BD221,FALSE),0)","v":1428},219]
[null,"Female 50-54",{"$f":"ROUND(Options!$B$21*HLOOKUP(Calculations!$E$2,Pop2016fraction!$C$3:$BC$251,Pop2016fraction!$BD222,FALSE),0)","v":2880},{"$f":"ROUND(Options!$B$21*HLOOKUP(Calculations!$E$2,Pop2016fractionQ1!$C$3:$BC$251,Pop2016fractionQ1!$BD222,FALSE),0)","v":0},{"$f":"ROUND(Options!$B$21*HLOOKUP(Calculations!$E$2,'Pop2016fractionQ1&2'!$C$3:$BC$251,'Pop2016fractionQ1&2'!$BD222,FALSE),0)","v":0},{"$f":"ROUND(Options!$B$21*HLOOKUP(Calculations!$E$2,PARfraction!$C$3:$BC$251,PARfraction!$BD222,FALSE),0)","v":1450},220]
[null,"Female 55-59",{"$f":"ROUND(Options!$B$21*HLOOKUP(Calculations!$E$2,Pop2016fraction!$C$3:$BC$251,Pop2016fraction!$BD223,FALSE),0)","v":2601},{"$f":"ROUND(Options!$B$21*HLOOKUP(Calculations!$E$2,Pop2016fractionQ1!$C$3:$BC$251,Pop2016fractionQ1!$BD223,FALSE),0)","v":0},{"$f":"ROUND(Options!$B$21*HLOOKUP(Calculations!$E$2,'Pop2016fractionQ1&2'!$C$3:$BC$251,'Pop2016fractionQ1&2'!$BD223,FALSE),0)","v":0},{"$f":"ROUND(Options!$B$21*HLOOKUP(Calculations!$E$2,PARfraction!$C$3:$BC$251,PARfraction!$BD223,FALSE),0)","v":4633},221]
[null,"Female 60-64",{"$f":"ROUND(Options!$B$21*HLOOKUP(Calculations!$E$2,Pop2016fraction!$C$3:$BC$251,Pop2016fraction!$BD224,FALSE),0)","v":2284},{"$f":"ROUND(Options!$B$21*HLOOKUP(Calculations!$E$2,Pop2016fractionQ1!$C$3:$BC$251,Pop2016fractionQ1!$BD224,FALSE),0)","v":0},{"$f":"ROUND(Options!$B$21*HLOOKUP(Calculations!$E$2,'Pop2016fractionQ1&2'!$C$3:$BC$251,'Pop2016fractionQ1&2'!$BD224,FALSE),0)","v":0},{"$f":"ROUND(Options!$B$21*HLOOKUP(Calculations!$E$2,PARfraction!$C$3:$BC$251,PARfraction!$BD224,FALSE),0)","v":4068},222]
[null,"Female 65-69",{"$f":"ROUND(Options!$B$21*HLOOKUP(Calculations!$E$2,Pop2016fraction!$C$3:$BC$251,Pop2016fraction!$BD225,FALSE),0)","v":0},{"$f":"ROUND(Options!$B$21*HLOOKUP(Calculations!$E$2,Pop2016fractionQ1!$C$3:$BC$251,Pop2016fractionQ1!$BD225,FALSE),0)","v":0},{"$f":"ROUND(Options!$B$21*HLOOKUP(Calculations!$E$2,'Pop2016fractionQ1&2'!$C$3:$BC$251,'Pop2016fractionQ1&2'!$BD225,FALSE),0)","v":0},{"$f":"ROUND(Options!$B$21*HLOOKUP(Calculations!$E$2,PARfraction!$C$3:$BC$251,PARfraction!$BD225,FALSE),0)","v":0},223]
[null,"Female 70-74",{"$f":"ROUND(Options!$B$21*HLOOKUP(Calculations!$E$2,Pop2016fraction!$C$3:$BC$251,Pop2016fraction!$BD226,FALSE),0)","v":0},{"$f":"ROUND(Options!$B$21*HLOOKUP(Calculations!$E$2,Pop2016fractionQ1!$C$3:$BC$251,Pop2016fractionQ1!$BD226,FALSE),0)","v":0},{"$f":"ROUND(Options!$B$21*HLOOKUP(Calculations!$E$2,'Pop2016fractionQ1&2'!$C$3:$BC$251,'Pop2016fractionQ1&2'!$BD226,FALSE),0)","v":0},{"$f":"ROUND(Options!$B$21*HLOOKUP(Calculations!$E$2,PARfraction!$C$3:$BC$251,PARfraction!$BD226,FALSE),0)","v":0},224]
[null,"Female 75-79",{"$f":"ROUND(Options!$B$21*HLOOKUP(Calculations!$E$2,Pop2016fraction!$C$3:$BC$251,Pop2016fraction!$BD227,FALSE),0)","v":0},{"$f":"ROUND(Options!$B$21*HLOOKUP(Calculations!$E$2,Pop2016fractionQ1!$C$3:$BC$251,Pop2016fractionQ1!$BD227,FALSE),0)","v":0},{"$f":"ROUND(Options!$B$21*HLOOKUP(Calculations!$E$2,'Pop2016fractionQ1&2'!$C$3:$BC$251,'Pop2016fractionQ1&2'!$BD227,FALSE),0)","v":0},{"$f":"ROUND(Options!$B$21*HLOOKUP(Calculations!$E$2,PARfraction!$C$3:$BC$251,PARfraction!$BD227,FALSE),0)","v":0},225]
[null,"Female 80-84",{"$f":"ROUND(Options!$B$21*HLOOKUP(Calculations!$E$2,Pop2016fraction!$C$3:$BC$251,Pop2016fraction!$BD228,FALSE),0)","v":0},{"$f":"ROUND(Options!$B$21*HLOOKUP(Calculations!$E$2,Pop2016fractionQ1!$C$3:$BC$251,Pop2016fractionQ1!$BD228,FALSE),0)","v":0},{"$f":"ROUND(Options!$B$21*HLOOKUP(Calculations!$E$2,'Pop2016fractionQ1&2'!$C$3:$BC$251,'Pop2016fractionQ1&2'!$BD228,FALSE),0)","v":0},{"$f":"ROUND(Options!$B$21*HLOOKUP(Calculations!$E$2,PARfraction!$C$3:$BC$251,PARfraction!$BD228,FALSE),0)","v":0},226]
[null,"Female 85-89",{"$f":"ROUND(Options!$B$21*HLOOKUP(Calculations!$E$2,Pop2016fraction!$C$3:$BC$251,Pop2016fraction!$BD229,FALSE),0)","v":0},{"$f":"ROUND(Options!$B$21*HLOOKUP(Calculations!$E$2,Pop2016fractionQ1!$C$3:$BC$251,Pop2016fractionQ1!$BD229,FALSE),0)","v":0},{"$f":"ROUND(Options!$B$21*HLOOKUP(Calculations!$E$2,'Pop2016fractionQ1&2'!$C$3:$BC$251,'Pop2016fractionQ1&2'!$BD229,FALSE),0)","v":0},{"$f":"ROUND(Options!$B$21*HLOOKUP(Calculations!$E$2,PARfraction!$C$3:$BC$251,PARfraction!$BD229,FALSE),0)","v":0},227]
[null,"Female 90+",{"$f":"ROUND(Options!$B$21*HLOOKUP(Calculations!$E$2,Pop2016fraction!$C$3:$BC$251,Pop2016fraction!$BD230,FALSE),0)","v":0},{"$f":"ROUND(Options!$B$21*HLOOKUP(Calculations!$E$2,Pop2016fractionQ1!$C$3:$BC$251,Pop2016fractionQ1!$BD230,FALSE),0)","v":0},{"$f":"ROUND(Options!$B$21*HLOOKUP(Calculations!$E$2,'Pop2016fractionQ1&2'!$C$3:$BC$251,'Pop2016fractionQ1&2'!$BD230,FALSE),0)","v":0},{"$f":"ROUND(Options!$B$21*HLOOKUP(Calculations!$E$2,PARfraction!$C$3:$BC$251,PARfraction!$BD230,FALSE),0)","v":0},228]
[null,"Male 0-4",{"$f":"ROUND(Options!$B$21*HLOOKUP(Calculations!$E$2,Pop2016fraction!$C$3:$BC$251,Pop2016fraction!$BD231,FALSE),0)","v":0},{"$f":"ROUND(Options!$B$21*HLOOKUP(Calculations!$E$2,Pop2016fractionQ1!$C$3:$BC$251,Pop2016fractionQ1!$BD231,FALSE),0)","v":0},{"$f":"ROUND(Options!$B$21*HLOOKUP(Calculations!$E$2,'Pop2016fractionQ1&2'!$C$3:$BC$251,'Pop2016fractionQ1&2'!$BD231,FALSE),0)","v":0},{"$f":"ROUND(Options!$B$21*HLOOKUP(Calculations!$E$2,PARfraction!$C$3:$BC$251,PARfraction!$BD231,FALSE),0)","v":0},229]
[null,"Male 5-9",{"$f":"ROUND(Options!$B$21*HLOOKUP(Calculations!$E$2,Pop2016fraction!$C$3:$BC$251,Pop2016fraction!$BD232,FALSE),0)","v":0},{"$f":"ROUND(Options!$B$21*HLOOKUP(Calculations!$E$2,Pop2016fractionQ1!$C$3:$BC$251,Pop2016fractionQ1!$BD232,FALSE),0)","v":0},{"$f":"ROUND(Options!$B$21*HLOOKUP(Calculations!$E$2,'Pop2016fractionQ1&2'!$C$3:$BC$251,'Pop2016fractionQ1&2'!$BD232,FALSE),0)","v":0},{"$f":"ROUND(Options!$B$21*HLOOKUP(Calculations!$E$2,PARfraction!$C$3:$BC$251,PARfraction!$BD232,FALSE),0)","v":0},230]
[null,"Male 10-15",{"$f":"ROUND(Options!$B$21*HLOOKUP(Calculations!$E$2,Pop2016fraction!$C$3:$BC$251,Pop2016fraction!$BD233,FALSE),0)","v":0},{"$f":"ROUND(Options!$B$21*HLOOKUP(Calculations!$E$2,Pop2016fractionQ1!$C$3:$BC$251,Pop2016fractionQ1!$BD233,FALSE),0)","v":0},{"$f":"ROUND(Options!$B$21*HLOOKUP(Calculations!$E$2,'Pop2016fractionQ1&2'!$C$3:$BC$251,'Pop2016fractionQ1&2'!$BD233,FALSE),0)","v":0},{"$f":"ROUND(Options!$B$21*HLOOKUP(Calculations!$E$2,PARfraction!$C$3:$BC$251,PARfraction!$BD233,FALSE),0)","v":0},231]
[null,"Male 16-19",{"$f":"ROUND(Options!$B$21*HLOOKUP(Calculations!$E$2,Pop2016fraction!$C$3:$BC$251,Pop2016fraction!$BD234,FALSE),0)","v":1827},{"$f":"ROUND(Options!$B$21*HLOOKUP(Calculations!$E$2,Pop2016fractionQ1!$C$3:$BC$251,Pop2016fractionQ1!$BD234,FALSE),0)","v":0},{"$f":"ROUND(Options!$B$21*HLOOKUP(Calculations!$E$2,'Pop2016fractionQ1&2'!$C$3:$BC$251,'Pop2016fractionQ1&2'!$BD234,FALSE),0)","v":0},{"$f":"ROUND(Options!$B$21*HLOOKUP(Calculations!$E$2,PARfraction!$C$3:$BC$251,PARfraction!$BD234,FALSE),0)","v":1129},232]
[null,"Male 20-24",{"$f":"ROUND(Options!$B$21*HLOOKUP(Calculations!$E$2,Pop2016fraction!$C$3:$BC$251,Pop2016fraction!$BD235,FALSE),0)","v":2584},{"$f":"ROUND(Options!$B$21*HLOOKUP(Calculations!$E$2,Pop2016fractionQ1!$C$3:$BC$251,Pop2016fractionQ1!$BD235,FALSE),0)","v":0},{"$f":"ROUND(Options!$B$21*HLOOKUP(Calculations!$E$2,'Pop2016fractionQ1&2'!$C$3:$BC$251,'Pop2016fractionQ1&2'!$BD235,FALSE),0)","v":0},{"$f":"ROUND(Options!$B$21*HLOOKUP(Calculations!$E$2,PARfraction!$C$3:$BC$251,PARfraction!$BD235,FALSE),0)","v":1597},233]
[null,"Male 25-29",{"$f":"ROUND(Options!$B$21*HLOOKUP(Calculations!$E$2,Pop2016fraction!$C$3:$BC$251,Pop2016fraction!$BD236,FALSE),0)","v":2327},{"$f":"ROUND(Options!$B$21*HLOOKUP(Calculations!$E$2,Pop2016fractionQ1!$C$3:$BC$251,Pop2016fractionQ1!$BD236,FALSE),0)","v":0},{"$f":"ROUND(Options!$B$21*HLOOKUP(Calculations!$E$2,'Pop2016fractionQ1&2'!$C$3:$BC$251,'Pop2016fractionQ1&2'!$BD236,FALSE),0)","v":0},{"$f":"ROUND(Options!$B$21*HLOOKUP(Calculations!$E$2,PARfraction!$C$3:$BC$251,PARfraction!$BD236,FALSE),0)","v":623},234]
[null,"Male 30-34",{"$f":"ROUND(Options!$B$21*HLOOKUP(Calculations!$E$2,Pop2016fraction!$C$3:$BC$251,Pop2016fraction!$BD237,FALSE),0)","v":2048},{"$f":"ROUND(Options!$B$21*HLOOKUP(Calculations!$E$2,Pop2016fractionQ1!$C$3:$BC$251,Pop2016fractionQ1!$BD237,FALSE),0)","v":0},{"$f":"ROUND(Options!$B$21*HLOOKUP(Calculations!$E$2,'Pop2016fractionQ1&2'!$C$3:$BC$251,'Pop2016fractionQ1&2'!$BD237,FALSE),0)","v":0},{"$f":"ROUND(Options!$B$21*HLOOKUP(Calculations!$E$2,PARfraction!$C$3:$BC$251,PARfraction!$BD237,FALSE),0)","v":548},235]
[null,"Male 35-39",{"$f":"ROUND(Options!$B$21*HLOOKUP(Calculations!$E$2,Pop2016fraction!$C$3:$BC$251,Pop2016fraction!$BD238,FALSE),0)","v":2167},{"$f":"ROUND(Options!$B$21*HLOOKUP(Calculations!$E$2,Pop2016fractionQ1!$C$3:$BC$251,Pop2016fractionQ1!$BD238,FALSE),0)","v":0},{"$f":"ROUND(Options!$B$21*HLOOKUP(Calculations!$E$2,'Pop2016fractionQ1&2'!$C$3:$BC$251,'Pop2016fractionQ1&2'!$BD238,FALSE),0)","v":0},{"$f":"ROUND(Options!$B$21*HLOOKUP(Calculations!$E$2,PARfraction!$C$3:$BC$251,PARfraction!$BD238,FALSE),0)","v":580},236]
[null,"Male 40-44",{"$f":"ROUND(Options!$B$21*HLOOKUP(Calculations!$E$2,Pop2016fraction!$C$3:$BC$251,Pop2016fraction!$BD239,FALSE),0)","v":2384},{"$f":"ROUND(Options!$B$21*HLOOKUP(Calculations!$E$2,Pop2016fractionQ1!$C$3:$BC$251,Pop2016fractionQ1!$BD239,FALSE),0)","v":0},{"$f":"ROUND(Options!$B$21*HLOOKUP(Calculations!$E$2,'Pop2016fractionQ1&2'!$C$3:$BC$251,'Pop2016fractionQ1&2'!$BD239,FALSE),0)","v":0},{"$f":"ROUND(Options!$B$21*HLOOKUP(Calculations!$E$2,PARfraction!$C$3:$BC$251,PARfraction!$BD239,FALSE),0)","v":638},237]
[null,"Male 45-49",{"$f":"ROUND(Options!$B$21*HLOOKUP(Calculations!$E$2,Pop2016fraction!$C$3:$BC$251,Pop2016fraction!$BD240,FALSE),0)","v":2672},{"$f":"ROUND(Options!$B$21*HLOOKUP(Calculations!$E$2,Pop2016fractionQ1!$C$3:$BC$251,Pop2016fractionQ1!$BD240,FALSE),0)","v":0},{"$f":"ROUND(Options!$B$21*HLOOKUP(Calculations!$E$2,'Pop2016fractionQ1&2'!$C$3:$BC$251,'Pop2016fractionQ1&2'!$BD240,FALSE),0)","v":0},{"$f":"ROUND(Options!$B$21*HLOOKUP(Calculations!$E$2,PARfraction!$C$3:$BC$251,PARfraction!$BD240,FALSE),0)","v":765},238]
[null,"Male 50-54",{"$f":"ROUND(Options!$B$21*HLOOKUP(Calculations!$E$2,Pop2016fraction!$C$3:$BC$251,Pop2016fraction!$BD241,FALSE),0)","v":2718},{"$f":"ROUND(Options!$B$21*HLOOKUP(Calculations!$E$2,Pop2016fractionQ1!$C$3:$BC$251,Pop2016fractionQ1!$BD241,FALSE),0)","v":0},{"$f":"ROUND(Options!$B$21*HLOOKUP(Calculations!$E$2,'Pop2016fractionQ1&2'!$C$3:$BC$251,'Pop2016fractionQ1&2'!$BD241,FALSE),0)","v":0},{"$f":"ROUND(Options!$B$21*HLOOKUP(Calculations!$E$2,PARfraction!$C$3:$BC$251,PARfraction!$BD241,FALSE),0)","v":778},239]
[null,"Male 55-59",{"$f":"ROUND(Options!$B$21*HLOOKUP(Calculations!$E$2,Pop2016fraction!$C$3:$BC$251,Pop2016fraction!$BD242,FALSE),0)","v":2473},{"$f":"ROUND(Options!$B$21*HLOOKUP(Calculations!$E$2,Pop2016fractionQ1!$C$3:$BC$251,Pop2016fractionQ1!$BD242,FALSE),0)","v":0},{"$f":"ROUND(Options!$B$21*HLOOKUP(Calculations!$E$2,'Pop2016fractionQ1&2'!$C$3:$BC$251,'Pop2016fractionQ1&2'!$BD242,FALSE),0)","v":0},{"$f":"ROUND(Options!$B$21*HLOOKUP(Calculations!$E$2,PARfraction!$C$3:$BC$251,PARfraction!$BD242,FALSE),0)","v":3258},240]
[null,"Male 60-64",{"$f":"ROUND(Options!$B$21*HLOOKUP(Calculations!$E$2,Pop2016fraction!$C$3:$BC$251,Pop2016fraction!$BD243,FALSE),0)","v":2172},{"$f":"ROUND(Options!$B$21*HLOOKUP(Calculations!$E$2,Pop2016fractionQ1!$C$3:$BC$251,Pop2016fractionQ1!$BD243,FALSE),0)","v":0},{"$f":"ROUND(Options!$B$21*HLOOKUP(Calculations!$E$2,'Pop2016fractionQ1&2'!$C$3:$BC$251,'Pop2016fractionQ1&2'!$BD243,FALSE),0)","v":0},{"$f":"ROUND(Options!$B$21*HLOOKUP(Calculations!$E$2,PARfraction!$C$3:$BC$251,PARfraction!$BD243,FALSE),0)","v":2863},241]
[null,"Male 65-69",{"$f":"ROUND(Options!$B$21*HLOOKUP(Calculations!$E$2,Pop2016fraction!$C$3:$BC$251,Pop2016fraction!$BD244,FALSE),0)","v":0},{"$f":"ROUND(Options!$B$21*HLOOKUP(Calculations!$E$2,Pop2016fractionQ1!$C$3:$BC$251,Pop2016fractionQ1!$BD244,FALSE),0)","v":0},{"$f":"ROUND(Options!$B$21*HLOOKUP(Calculations!$E$2,'Pop2016fractionQ1&2'!$C$3:$BC$251,'Pop2016fractionQ1&2'!$BD244,FALSE),0)","v":0},{"$f":"ROUND(Options!$B$21*HLOOKUP(Calculations!$E$2,PARfraction!$C$3:$BC$251,PARfraction!$BD244,FALSE),0)","v":0},242]
[null,"Male 70-74",{"$f":"ROUND(Options!$B$21*HLOOKUP(Calculations!$E$2,Pop2016fraction!$C$3:$BC$251,Pop2016fraction!$BD245,FALSE),0)","v":0},{"$f":"ROUND(Options!$B$21*HLOOKUP(Calculations!$E$2,Pop2016fractionQ1!$C$3:$BC$251,Pop2016fractionQ1!$BD245,FALSE),0)","v":0},{"$f":"ROUND(Options!$B$21*HLOOKUP(Calculations!$E$2,'Pop2016fractionQ1&2'!$C$3:$BC$251,'Pop2016fractionQ1&2'!$BD245,FALSE),0)","v":0},{"$f":"ROUND(Options!$B$21*HLOOKUP(Calculations!$E$2,PARfraction!$C$3:$BC$251,PARfraction!$BD245,FALSE),0)","v":0},243]
[null,"Male 75-79",{"$f":"ROUND(Options!$B$21*HLOOKUP(Calculations!$E$2,Pop2016fraction!$C$3:$BC$251,Pop2016fraction!$BD246,FALSE),0)","v":0},{"$f":"ROUND(Options!$B$21*HLOOKUP(Calculations!$E$2,Pop2016fractionQ1!$C$3:$BC$251,Pop2016fractionQ1!$BD246,FALSE),0)","v":0},{"$f":"ROUND(Options!$B$21*HLOOKUP(Calculations!$E$2,'Pop2016fractionQ1&2'!$C$3:$BC$251,'Pop2016fractionQ1&2'!$BD246,FALSE),0)","v":0},{"$f":"ROUND(Options!$B$21*HLOOKUP(Calculations!$E$2,PARfraction!$C$3:$BC$251,PARfraction!$BD246,FALSE),0)","v":0},244]
[null,"Male 80-84",{"$f":"ROUND(Options!$B$21*HLOOKUP(Calculations!$E$2,Pop2016fraction!$C$3:$BC$251,Pop2016fraction!$BD247,FALSE),0)","v":0},{"$f":"ROUND(Options!$B$21*HLOOKUP(Calculations!$E$2,Pop2016fractionQ1!$C$3:$BC$251,Pop2016fractionQ1!$BD247,FALSE),0)","v":0},{"$f":"ROUND(Options!$B$21*HLOOKUP(Calculations!$E$2,'Pop2016fractionQ1&2'!$C$3:$BC$251,'Pop2016fractionQ1&2'!$BD247,FALSE),0)","v":0},{"$f":"ROUND(Options!$B$21*HLOOKUP(Calculations!$E$2,PARfraction!$C$3:$BC$251,PARfraction!$BD247,FALSE),0)","v":0},245]
[null,"Male 85-89",{"$f":"ROUND(Options!$B$21*HLOOKUP(Calculations!$E$2,Pop2016fraction!$C$3:$BC$251,Pop2016fraction!$BD248,FALSE),0)","v":0},{"$f":"ROUND(Options!$B$21*HLOOKUP(Calculations!$E$2,Pop2016fractionQ1!$C$3:$BC$251,Pop2016fractionQ1!$BD248,FALSE),0)","v":0},{"$f":"ROUND(Options!$B$21*HLOOKUP(Calculations!$E$2,'Pop2016fractionQ1&2'!$C$3:$BC$251,'Pop2016fractionQ1&2'!$BD248,FALSE),0)","v":0},{"$f":"ROUND(Options!$B$21*HLOOKUP(Calculations!$E$2,PARfraction!$C$3:$BC$251,PARfraction!$BD248,FALSE),0)","v":0},246]
[null,"Male 90+",{"$f":"ROUND(Options!$B$21*HLOOKUP(Calculations!$E$2,Pop2016fraction!$C$3:$BC$251,Pop2016fraction!$BD249,FALSE),0)","v":0},{"$f":"ROUND(Options!$B$21*HLOOKUP(Calculations!$E$2,Pop2016fractionQ1!$C$3:$BC$251,Pop2016fractionQ1!$BD249,FALSE),0)","v":0},{"$f":"ROUND(Options!$B$21*HLOOKUP(Calculations!$E$2,'Pop2016fractionQ1&2'!$C$3:$BC$251,'Pop2016fractionQ1&2'!$BD249,FALSE),0)","v":0},{"$f":"ROUND(Options!$B$21*HLOOKUP(Calculations!$E$2,PARfraction!$C$3:$BC$251,PARfraction!$BD249,FALSE),0)","v":0},247]